{"text_format":"1","workbook":"xlsx","n_sheets":8,"sheets":["Instructions and Example","Template","Attachments","Validate entry","Account mapping","Structure mapping","Upload","Values"],"not_rendered":{"charts":0,"images":3,"macros":1,"external_links":0,"defined_names":9,"comments":2,"pivot_tables":0},"unopened":[],"bounds":{"document_bytes":16777216,"sheet_cells":100000,"rows_first":2000,"rows_last":500,"rows_between":2000,"halvings":0,"cell_chars":16384,"cell_head_chars":4096},"cells_cut":0,"cells_raw":0,"read":"whole","date_system":"1900"}

{"sheet":"Instructions and Example","index":0,"n_rows":120,"n_cols":15,"rows_kept":120,"cut":false,"hidden":false,"merged":[[94,1,94,2],[73,1,73,2],[77,1,77,2],[82,1,82,2],[42,1,42,2],[46,1,46,2],[50,1,50,2],[54,1,54,2],[58,1,58,2],[62,1,62,2],[103,1,103,2],[1,0,1,2],[10,0,10,1],[26,1,26,2],[28,1,28,2],[30,1,30,2],[2,0,2,2],[7,0,7,2],[22,1,22,2],[24,1,24,2],[101,1,101,2],[37,1,37,2],[13,1,13,2],[98,1,98,2],[86,1,86,2],[90,1,90,2]]}
[]
["Journal Voucher Request for RPM instructions"]
["This excel template is to be used for any request to make a budget adjustment affecting a provision account. Only the RPM and FIS team have access to these accounts:"]
[]
["775B00","Central Campus Appropriations Ongoing"]
["775B10","Central Campus Appropriations One Time"]
[]
["This template should only be used for revenue transfers which is the equivalent of BAs from KFS:"]
[]
["Instructions"]
["Required fields are in red"]
[null,"Header fields"]
["Steps","Action"]
[1,"Journal name field: In AE all documents are routed for approval to the RPM and FIS team. In order to assist the approvers we developed a journal naming scheme that all journals should follow. \n\nThe naming structure for this template is as follows: Approval org + JV transaction code + short description"]
[]
[null,"Approval Org","JV Transaction code","Short Description (25 characters)","Journal name"]
["*Journal",null,null,null,{"$f":"B17&\" \"&C17&\" \"&D17","v":"  "}]
[null,"Approval Org in cell B4 should be RPM","Transaction code in cell C4 has 3 options","Cell D4 add a short description that explains the purpose of the journal","Do not edit cell E4. This is an automated field"]
[null,null,"REVINC- Revenue income. This is to be used when there is an increase in state funding or on the capital side if there is a property sold."]
[null,null,"REVSWP- Revenue swap. This is to be used to move any revenue from one segment to another. For example to a different department or fund."]
[null,null,"REVALC- Revenue Allocation. This is to be used for any salary adjustments, fund new employees, fund department and temporary commitments."]
[]
[2,"Description field: more detail in regards to the entry should be added here. For example employee ID, start date end date, the project to be funded. Max length 240 characters \n"]
[]
[3,"Accounting date: enter the date within the period that you would like to post. Format MM/DD/YY \n"]
[]
[4,"Ledger field: all entries should have UCD Primary ledger, this field is hard coded.\n"]
[]
[5,"Journal Category: all journals coming to RPM will be revenue transfers, this field is hard coded.\n"]
[]
[6,"Debits and Credits: Debits and Credits need to equal 0. These three fields are automated. If entry is not equal to 0 then Journal validation will turn red in cell J7"]
[null,"Total Entered Debit",0]
[null,"Total Entered Credit",0]
[null,"Journal Validation",0]
[]
[]
[null,"Journal Lines"]
[7,"Entity: All UC ANR entries should have entity 3310"]
[null,"*Entity"]
[null,"4 Characters"]
[null,"3310"]
[]
[8,"Fund: Funding resources that are classified based on designations and restriction types."]
[null,"*Fund"]
[null,"5 Characters"]
[]
[9,"Department: The academic or operating unit. Aligned with UC ANR organization structure."]
[null,"*Department"]
[null,"7 Characters"]
[]
[10,"(Natural) Account: The academic or operating unit. Aligned with UC ANR organization structure."]
[null,"*Account"]
[null,"6 Characters"]
[]
[11,"Purpose: Functional classification of expenses or revenue. Used for external reporting requirements. \nFor Central Campus Appropriations accounts purpose should be 80. For all other accounts select a value that best represents the functional purpose or default 00."]
[null,"*Purpose"]
[null,"2 Characters"]
[]
[12,"Program: Represents  system-wide or cross-campus formal programs. This helps to track specific ​UC initiatives.\nIf federal fund please use appropriate purpose. If not use 000 as default"]
[null,"*Program"]
[null,"3 Characters"]
[]
[13,"Project: Tracks financial activity that has start and end date. Can be GL or PPM project"]
[null,"First characters in project represent what type of project"]
[null,"GL= GL project, only used for salary"]
[null,"KL= KL is for all sponsor projects that transferred from KFS, in the future it will be SP with GTS# (grant tracking system)"]
[null,"KN= Capital projects that transferred from KFS, in the future it will be CP"]
[null,"PPMRC= Rate & Recharge when there is a service provide to external customers."]
[null,"DEP= Department project for those that do not have central funding. "]
[null,"FP= Faculty project"]
[null,"*Project"]
[null,"10 Characters"]
[]
[14,"Activity: Another level of detail that can be used for tracking. Still under discussion to use."]
[null,"Activity"]
[null,"6 Characters"]
[]
[15,"The Inter Entity, Future 1, and Future 2 segments should always be populated with the default zero value. These fields may be used for future consideration but currently they are not enabled in AE."]
[null,"Inter Entity","Future 1","Future 2"]
[null,"5 Characters","5 Characters","5 Characters"]
[null,"0000","000000","000000"]
[]
[16,"Currency field will always de USD as we only handle USD."]
[null,"Currency"]
[null,"USD"]
[]
[17,"Debit field is where you want to move the funds from (Decrease)"]
[null,"*Entered Debit"]
[null,"From/ Decrease"]
[]
[18,"Credit field is where you want to move the funds to (Increase)"]
[null,"*Entered Credit"]
[null,"To/ Increase"]
[]
[19,"Line Description field can be used this to add additional information to each line. This field is included on the UCD Transaction Listing Report which can help for reconciliation purposes."]
[null,"*Line Description"]
[null,"add 2 digit purpose-1 for salary, 6 for benefits, 3 for everything else- short description. Max length 240"]
[]
[20,"Attachment tab please add any screenshot or email to justify the entry"]
[]
[]
[21,"Save this new excel and send it to ANR Budget <budget@ucanr.edu> for processing"]
[]
[22,"Click on the clear journal line button to begin a new JV"]
[]
[]
["Example"]
[]
["*Indicates Required Field"]
[]
[null,"Approval Org","JV Transaction code","Short Description (25 characters)","Journal name"]
["*Journal","RPM","REVSWP","move fund to correct proj",{"$f":"B112&\" \"&C112&\" \"&D112","v":"RPM REVSWP move fund to correct proj"},"Category","991000B_REVENUE_TRANSFER",null,"Total Entered Debit",{"$f":"SUM(OFFSET($M$118,1,0):OFFSET($M$118,ROWS(TAB1136877249),0))","v":10000}]
["*Description","RPM balances are in incorrect project. Moving revenue to correct permanent GL project",null,null,null,null,null,null,"Total Entered Credit",{"$f":"SUM(OFFSET($N$118,1,0):OFFSET($N$118,ROWS(TAB1136877249),0))","v":10000}]
["Ledger","UCD Primary Ledger",null,null,null,null,null,null,"Journal Validation",{"$f":"J112-J113","v":0}]
[]
["Journal Lines"]
[]
["*Entity","*Fund","*Department","*Account","*Purpose","*Program","*Project","Activity","Inter Entity","Future 1","Future 2","Currency","*Entered Debit","*Entered Credit","*Line Description"]
["3310 - UC ANR","19974-UCOP ANR General Fund ","9936111 - Resource Planning and Management ","775B00 - Central Campus Appropriations Ongoing ","80 - Provisions for Allocations ","000 - Default","DEPBUDG001","000000","0000","000000","000000","USD",10000,null,"62-1 transferring budget to correct GL perm staff project"]
["3310 - UC ANR","19974-UCOP ANR General Fund ","9936111 - Resource Planning and Management ","775B00 - Central Campus Appropriations Ongoing ","80 - Provisions for Allocations ","000 - Default","GLANRPERMS","000000","0000","000000","000000","USD",null,10000,"62-1 transferring budget to correct GL perm staff project"]

{"sheet":"Template","index":1,"n_rows":21,"n_cols":15,"rows_kept":21,"cut":false,"hidden":false,"merged":[]}
[null,"Segments updated as of 6/24/2024"]
[]
[]
[]
[null,"Approval Org","JV Transaction code","Short Description (25 characters)","Journal name"]
["*Journal","RPM","REVALC","RPM new hire",{"$f":"B6&\" \"&C6&\" \"&D6","v":"RPM REVALC RPM new hire"},"Category","991000B_REVENUE_TRANSFER",null,"Total Entered Debit",{"$f":"SUM(M14:M1048576)","v":126192}]
["*Description","new hire for RPM John Smith hired. Initiated by Ann Smith",null,null,null,null,null,null,"Total Entered Credit",{"$f":"SUM(N14:N1048576)","v":126192}]
["Ledger","UCD Primary Ledger",null,null,null,null,null,null,"Journal Validation",{"$f":"J6-J7","v":0}]
["*Accounting Date","2024-08-01"]
[]
["Journal Lines"]
[]
["*Entity","*Fund","*Department","*Account","*Purpose","*Program","*Project","Activity","Inter Entity","Future 1","Future 2","Currency","*Entered Debit","*Entered Credit","*Line Description"]
[3310,"19974 - UCOP ANR General Fund ","9936111 - Resource Planning and Management ","775B00 - Central Campus Appropriations Ongoing ","80 - Provisions for Allocations ","000 - Default","GLANRPERMS","000000 - Default Activity Value ","0000","000000","000000","USD",null,44000,"44-1 RPM new hire Smith 7/1/24 1.00 FTE @$88,000"]
[3310,"21050 - Smith Lever 3 BandC Funds ","9951144 - Provision 44 ","775B00 - Central Campus Appropriations Ongoing ","80 - Provisions for Allocations ","000 - Default","GLANRPERMS","000000 - Default Activity Value ","0000","000000","000000","USD",44000,null,"44-1 RPM new hire Smith 7/1/24 1.00 FTE @$88,000"]
[3310,"21056 - Smith Lever Integrated ","9936111 - Resource Planning and Management ","775B00 - Central Campus Appropriations Ongoing ","80 - Provisions for Allocations ","000 - Default","GLANRPERMS","000000 - Default Activity Value ","0000","000000","000000","USD",null,44000,"62-1 RPM new hire Smith 7/1/24 1.00 FTE @$88,000"]
[3310,"19974 - UCOP ANR General Fund ","9951162 - Provision 62 ","775B00 - Central Campus Appropriations Ongoing ","80 - Provisions for Allocations ","000 - Default","GLANRPERMS","000000 - Default Activity Value ","0000","000000","000000","USD",44000,null,"62-1 RPM new hire Smith 7/1/24 1.00 FTE @$88,000"]
[3310,"19974 - UCOP ANR General Fund ","9936111 - Resource Planning and Management ","775B00 - Central Campus Appropriations Ongoing ","80 - Provisions for Allocations ","000 - Default","GLANRPERMS","200537 - Allocated Benefits ","0000","000000","000000","USD",null,19096,"44-1 RPM new hire Smith 1.00 FTE benefits CBR 43.4%"]
[3310,"19974 - UCOP ANR General Fund ","9951144 - Provision 44 ","775B00 - Central Campus Appropriations Ongoing ","80 - Provisions for Allocations ","000 - Default","GLANRPERMS","200537 - Allocated Benefits ","0000","000000","000000","USD",19096,null,"44-1 RPM new hire Smith 1.00 FTE benefits CBR 43.4%"]
[3310,"19974 - UCOP ANR General Fund ","9936111 - Resource Planning and Management ","775B00 - Central Campus Appropriations Ongoing ","80 - Provisions for Allocations ","000 - Default","GLANRPERMS","200537 - Allocated Benefits ","0000","000000","000000","USD",null,19096,"62-1 RPM new hire Smith 1.00 FTE benefits CBR 43.4%"]
[3310,"19974 - UCOP ANR General Fund ","9951162 - Provision 62 ","775B00 - Central Campus Appropriations Ongoing ","80 - Provisions for Allocations ","000 - Default","GLANRPERMS","200537 - Allocated Benefits ","0000","000000","000000","USD",19096,null,"62-1 RPM new hire Smith 1.00 FTE benefits CBR 43.4%"]

{"sheet":"Attachments","index":2,"n_rows":1,"n_cols":1,"rows_kept":1,"cut":false,"hidden":false,"merged":[]}
["Please add any screenshot or email to justify the entry"]

{"sheet":"Validate entry","index":3,"n_rows":1010,"n_cols":32,"rows_kept":1010,"cut":false,"hidden":true,"merged":[]}
["Entity","Entity Description","Fund","Fund Description","Financial Department","Financial Department Description","Account","Account Description","Purpose","Purpose Description","Program","Program Description","Project","Project Description","Activity","Activity Description","Document Type","Accounting Sequence Number","Tracking#","Reference","Journal Line Description","Accounting Period","Journal Accounting Date","Journal Source","Journal Category","Commitment","Obligations","Actuals","Journal Name","Journal Batch Name","Journal Reference","Account Parent 5"]
[{"$f":"LEFT(Template!A14,4)","v":"3310"},{"$f":"VLOOKUP(A2,'Structure mapping'!K:V,7,0)","v":"UC ANR at UCD"},{"$f":"LEFT(Template!B14,5)","v":"19974"},{"$f":"VLOOKUP(C2,'Structure mapping'!F:J,5,0)","v":"UCOP ANR General Fund"},{"$f":"LEFT(Template!C14,7)","v":"9936111"},{"$f":"VLOOKUP(E2,'Structure mapping'!A:E,5,0)","v":"Resource Planning and Management"},{"$f":"LEFT(Template!D14,6)","v":"775B00"},{"$f":"VLOOKUP(G2,'Account mapping'!A:E,5,0)","v":"Central Campus Appropriations Ongoing"},{"$f":"LEFT(Template!E14,2)","v":"80"},{"$f":"VLOOKUP(I2,'Structure mapping'!X:AB,5,0)","v":"Provisions for Allocations"},{"$f":"LEFT(Template!F14,3)","v":"000"},{"$f":"VLOOKUP(K2,'Structure mapping'!AC:AG,5,0)","v":"Default Program Value"},{"$f":"LEFT(Template!G14,10)","v":"GLANRPERMS"},{"$f":"VLOOKUP(M2,'Structure mapping'!AH:AL,5,0)","v":"ANR Permanent Staff Salaries"},{"$f":"LEFT(Template!H14,6)","v":"000000"},{"$f":"VLOOKUP(O2,'Structure mapping'!AM:AQ,5,0)","v":"Default Activity Value"},null,null,null,null,{"$f":"IF(Template!O14=\"\",\"\",Template!O14)","v":"44-1 RPM new hire Smith 7/1/24 1.00 FTE @$88,000"},{"$f":"TEXT(W2,\"mmm-yy\")&\" pending entries\"","v":"Aug-24 pending entries"},{"$f":"TEXT(Template!$B$9,\"mm/dd/yyy\")","v":"08/01/2024"},null,null,null,null,{"$f":"IF(Template!M14>0,Template!M14,-Template!N14)","v":-44000},null,null,null,{"$f":"VLOOKUP(G2,'Account mapping'!A:D,4,0)","v":"Revenue"}]
[{"$f":"LEFT(Template!A15,4)","v":"3310"},{"$f":"VLOOKUP(A3,'Structure mapping'!K:V,7,0)","v":"UC ANR at UCD"},{"$f":"LEFT(Template!B15,5)","v":"21050"},{"$f":"VLOOKUP(C3,'Structure mapping'!F:J,5,0)","v":"Smith Lever 3 BandC Funds"},{"$f":"LEFT(Template!C15,7)","v":"9951144"},{"$f":"VLOOKUP(E3,'Structure mapping'!A:E,5,0)","v":"Provision 44"},{"$f":"LEFT(Template!D15,6)","v":"775B00"},{"$f":"VLOOKUP(G3,'Account mapping'!A:E,5,0)","v":"Central Campus Appropriations Ongoing"},{"$f":"LEFT(Template!E15,2)","v":"80"},{"$f":"VLOOKUP(I3,'Structure mapping'!X:AB,5,0)","v":"Provisions for Allocations"},{"$f":"LEFT(Template!F15,3)","v":"000"},{"$f":"VLOOKUP(K3,'Structure mapping'!AC:AG,5,0)","v":"Default Program Value"},{"$f":"LEFT(Template!G15,10)","v":"GLANRPERMS"},{"$f":"VLOOKUP(M3,'Structure mapping'!AH:AL,5,0)","v":"ANR Permanent Staff Salaries"},{"$f":"LEFT(Template!H15,6)","v":"000000"},{"$f":"VLOOKUP(O3,'Structure mapping'!AM:AQ,5,0)","v":"Default Activity Value"},null,null,null,null,{"$f":"IF(Template!O15=\"\",\"\",Template!O15)","v":"44-1 RPM new hire Smith 7/1/24 1.00 FTE @$88,000"},{"$f":"TEXT(W3,\"mmm-yy\")&\" pending entries\"","v":"Aug-24 pending entries"},{"$f":"TEXT(Template!$B$9,\"mm/dd/yyy\")","v":"08/01/2024"},null,null,null,null,{"$f":"IF(Template!M15>0,Template!M15,-Template!N15)","v":44000},null,null,null,{"$f":"VLOOKUP(G3,'Account mapping'!A:D,4,0)","v":"Revenue"}]
[{"$f":"LEFT(Template!A16,4)","v":"3310"},{"$f":"VLOOKUP(A4,'Structure mapping'!K:V,7,0)","v":"UC ANR at UCD"},{"$f":"LEFT(Template!B16,5)","v":"21056"},{"$f":"VLOOKUP(C4,'Structure mapping'!F:J,5,0)","v":"Smith Lever Integrated"},{"$f":"LEFT(Template!C16,7)","v":"9936111"},{"$f":"VLOOKUP(E4,'Structure mapping'!A:E,5,0)","v":"Resource Planning and Management"},{"$f":"LEFT(Template!D16,6)","v":"775B00"},{"$f":"VLOOKUP(G4,'Account mapping'!A:E,5,0)","v":"Central Campus Appropriations Ongoing"},{"$f":"LEFT(Template!E16,2)","v":"80"},{"$f":"VLOOKUP(I4,'Structure mapping'!X:AB,5,0)","v":"Provisions for Allocations"},{"$f":"LEFT(Template!F16,3)","v":"000"},{"$f":"VLOOKUP(K4,'Structure mapping'!AC:AG,5,0)","v":"Default Program Value"},{"$f":"LEFT(Template!G16,10)","v":"GLANRPERMS"},{"$f":"VLOOKUP(M4,'Structure mapping'!AH:AL,5,0)","v":"ANR Permanent Staff Salaries"},{"$f":"LEFT(Template!H16,6)","v":"000000"},{"$f":"VLOOKUP(O4,'Structure mapping'!AM:AQ,5,0)","v":"Default Activity Value"},null,null,null,null,{"$f":"IF(Template!O16=\"\",\"\",Template!O16)","v":"62-1 RPM new hire Smith 7/1/24 1.00 FTE @$88,000"},"Aug-24 pending entries",{"$f":"TEXT(Template!$B$9,\"mm/dd/yyy\")","v":"08/01/2024"},null,null,null,null,{"$f":"IF(Template!M16>0,Template!M16,-Template!N16)","v":-44000},null,null,null,{"$f":"VLOOKUP(G4,'Account mapping'!A:D,4,0)","v":"Revenue"}]
[{"$f":"LEFT(Template!A17,4)","v":"3310"},{"$f":"VLOOKUP(A5,'Structure mapping'!K:V,7,0)","v":"UC ANR at UCD"},{"$f":"LEFT(Template!B17,5)","v":"19974"},{"$f":"VLOOKUP(C5,'Structure mapping'!F:J,5,0)","v":"UCOP ANR General Fund"},{"$f":"LEFT(Template!C17,7)","v":"9951162"},{"$f":"VLOOKUP(E5,'Structure mapping'!A:E,5,0)","v":"Provision 62"},{"$f":"LEFT(Template!D17,6)","v":"775B00"},{"$f":"VLOOKUP(G5,'Account mapping'!A:E,5,0)","v":"Central Campus Appropriations Ongoing"},{"$f":"LEFT(Template!E17,2)","v":"80"},{"$f":"VLOOKUP(I5,'Structure mapping'!X:AB,5,0)","v":"Provisions for Allocations"},{"$f":"LEFT(Template!F17,3)","v":"000"},{"$f":"VLOOKUP(K5,'Structure mapping'!AC:AG,5,0)","v":"Default Program Value"},{"$f":"LEFT(Template!G17,10)","v":"GLANRPERMS"},{"$f":"VLOOKUP(M5,'Structure mapping'!AH:AL,5,0)","v":"ANR Permanent Staff Salaries"},{"$f":"LEFT(Template!H17,6)","v":"000000"},{"$f":"VLOOKUP(O5,'Structure mapping'!AM:AQ,5,0)","v":"Default Activity Value"},null,null,null,null,{"$f":"IF(Template!O17=\"\",\"\",Template!O17)","v":"62-1 RPM new hire Smith 7/1/24 1.00 FTE @$88,000"},"Aug-24 pending entries",{"$f":"TEXT(Template!$B$9,\"mm/dd/yyy\")","v":"08/01/2024"},null,null,null,null,{"$f":"IF(Template!M17>0,Template!M17,-Template!N17)","v":44000},null,null,null,{"$f":"VLOOKUP(G5,'Account mapping'!A:D,4,0)","v":"Revenue"}]
[{"$f":"LEFT(Template!A18,4)","v":"3310"},{"$f":"VLOOKUP(A6,'Structure mapping'!K:V,7,0)","v":"UC ANR at UCD"},{"$f":"LEFT(Template!B18,5)","v":"19974"},{"$f":"VLOOKUP(C6,'Structure mapping'!F:J,5,0)","v":"UCOP ANR General Fund"},{"$f":"LEFT(Template!C18,7)","v":"9936111"},{"$f":"VLOOKUP(E6,'Structure mapping'!A:E,5,0)","v":"Resource Planning and Management"},{"$f":"LEFT(Template!D18,6)","v":"775B00"},{"$f":"VLOOKUP(G6,'Account mapping'!A:E,5,0)","v":"Central Campus Appropriations Ongoing"},{"$f":"LEFT(Template!E18,2)","v":"80"},{"$f":"VLOOKUP(I6,'Structure mapping'!X:AB,5,0)","v":"Provisions for Allocations"},{"$f":"LEFT(Template!F18,3)","v":"000"},{"$f":"VLOOKUP(K6,'Structure mapping'!AC:AG,5,0)","v":"Default Program Value"},{"$f":"LEFT(Template!G18,10)","v":"GLANRPERMS"},{"$f":"VLOOKUP(M6,'Structure mapping'!AH:AL,5,0)","v":"ANR Permanent Staff Salaries"},{"$f":"LEFT(Template!H18,6)","v":"200537"},{"$f":"VLOOKUP(O6,'Structure mapping'!AM:AQ,5,0)","v":"Allocated Benefits"},null,null,null,null,{"$f":"IF(Template!O18=\"\",\"\",Template!O18)","v":"44-1 RPM new hire Smith 1.00 FTE benefits CBR 43.4%"},"Aug-24 pending entries",{"$f":"TEXT(Template!$B$9,\"mm/dd/yyy\")","v":"08/01/2024"},null,null,null,null,{"$f":"IF(Template!M18>0,Template!M18,-Template!N18)","v":-19096},null,null,null,{"$f":"VLOOKUP(G6,'Account mapping'!A:D,4,0)","v":"Revenue"}]
[{"$f":"LEFT(Template!A19,4)","v":"3310"},{"$f":"VLOOKUP(A7,'Structure mapping'!K:V,7,0)","v":"UC ANR at UCD"},{"$f":"LEFT(Template!B19,5)","v":"19974"},{"$f":"VLOOKUP(C7,'Structure mapping'!F:J,5,0)","v":"UCOP ANR General Fund"},{"$f":"LEFT(Template!C19,7)","v":"9951144"},{"$f":"VLOOKUP(E7,'Structure mapping'!A:E,5,0)","v":"Provision 44"},{"$f":"LEFT(Template!D19,6)","v":"775B00"},{"$f":"VLOOKUP(G7,'Account mapping'!A:E,5,0)","v":"Central Campus Appropriations Ongoing"},{"$f":"LEFT(Template!E19,2)","v":"80"},{"$f":"VLOOKUP(I7,'Structure mapping'!X:AB,5,0)","v":"Provisions for Allocations"},{"$f":"LEFT(Template!F19,3)","v":"000"},{"$f":"VLOOKUP(K7,'Structure mapping'!AC:AG,5,0)","v":"Default Program Value"},{"$f":"LEFT(Template!G19,10)","v":"GLANRPERMS"},{"$f":"VLOOKUP(M7,'Structure mapping'!AH:AL,5,0)","v":"ANR Permanent Staff Salaries"},{"$f":"LEFT(Template!H19,6)","v":"200537"},{"$f":"VLOOKUP(O7,'Structure mapping'!AM:AQ,5,0)","v":"Allocated Benefits"},null,null,null,null,{"$f":"IF(Template!O19=\"\",\"\",Template!O19)","v":"44-1 RPM new hire Smith 1.00 FTE benefits CBR 43.4%"},"Aug-24 pending entries",{"$f":"TEXT(Template!$B$9,\"mm/dd/yyy\")","v":"08/01/2024"},null,null,null,null,{"$f":"IF(Template!M19>0,Template!M19,-Template!N19)","v":19096},null,null,null,{"$f":"VLOOKUP(G7,'Account mapping'!A:D,4,0)","v":"Revenue"}]
[{"$f":"LEFT(Template!A20,4)","v":"3310"},{"$f":"VLOOKUP(A8,'Structure mapping'!K:V,7,0)","v":"UC ANR at UCD"},{"$f":"LEFT(Template!B20,5)","v":"19974"},{"$f":"VLOOKUP(C8,'Structure mapping'!F:J,5,0)","v":"UCOP ANR General Fund"},{"$f":"LEFT(Template!C20,7)","v":"9936111"},{"$f":"VLOOKUP(E8,'Structure mapping'!A:E,5,0)","v":"Resource Planning and Management"},{"$f":"LEFT(Template!D20,6)","v":"775B00"},{"$f":"VLOOKUP(G8,'Account mapping'!A:E,5,0)","v":"Central Campus Appropriations Ongoing"},{"$f":"LEFT(Template!E20,2)","v":"80"},{"$f":"VLOOKUP(I8,'Structure mapping'!X:AB,5,0)","v":"Provisions for Allocations"},{"$f":"LEFT(Template!F20,3)","v":"000"},{"$f":"VLOOKUP(K8,'Structure mapping'!AC:AG,5,0)","v":"Default Program Value"},{"$f":"LEFT(Template!G20,10)","v":"GLANRPERMS"},{"$f":"VLOOKUP(M8,'Structure mapping'!AH:AL,5,0)","v":"ANR Permanent Staff Salaries"},{"$f":"LEFT(Template!H20,6)","v":"200537"},{"$f":"VLOOKUP(O8,'Structure mapping'!AM:AQ,5,0)","v":"Allocated Benefits"},null,null,null,null,{"$f":"IF(Template!O20=\"\",\"\",Template!O20)","v":"62-1 RPM new hire Smith 1.00 FTE benefits CBR 43.4%"},"Aug-24 pending entries",{"$f":"TEXT(Template!$B$9,\"mm/dd/yyy\")","v":"08/01/2024"},null,null,null,null,{"$f":"IF(Template!M20>0,Template!M20,-Template!N20)","v":-19096},null,null,null,{"$f":"VLOOKUP(G8,'Account mapping'!A:D,4,0)","v":"Revenue"}]
[{"$f":"LEFT(Template!A21,4)","v":"3310"},{"$f":"VLOOKUP(A9,'Structure mapping'!K:V,7,0)","v":"UC ANR at UCD"},{"$f":"LEFT(Template!B21,5)","v":"19974"},{"$f":"VLOOKUP(C9,'Structure mapping'!F:J,5,0)","v":"UCOP ANR General Fund"},{"$f":"LEFT(Template!C21,7)","v":"9951162"},{"$f":"VLOOKUP(E9,'Structure mapping'!A:E,5,0)","v":"Provision 62"},{"$f":"LEFT(Template!D21,6)","v":"775B00"},{"$f":"VLOOKUP(G9,'Account mapping'!A:E,5,0)","v":"Central Campus Appropriations Ongoing"},{"$f":"LEFT(Template!E21,2)","v":"80"},{"$f":"VLOOKUP(I9,'Structure mapping'!X:AB,5,0)","v":"Provisions for Allocations"},{"$f":"LEFT(Template!F21,3)","v":"000"},{"$f":"VLOOKUP(K9,'Structure mapping'!AC:AG,5,0)","v":"Default Program Value"},{"$f":"LEFT(Template!G21,10)","v":"GLANRPERMS"},{"$f":"VLOOKUP(M9,'Structure mapping'!AH:AL,5,0)","v":"ANR Permanent Staff Salaries"},{"$f":"LEFT(Template!H21,6)","v":"200537"},{"$f":"VLOOKUP(O9,'Structure mapping'!AM:AQ,5,0)","v":"Allocated Benefits"},null,null,null,null,{"$f":"IF(Template!O21=\"\",\"\",Template!O21)","v":"62-1 RPM new hire Smith 1.00 FTE benefits CBR 43.4%"},"Aug-24 pending entries",{"$f":"TEXT(Template!$B$9,\"mm/dd/yyy\")","v":"08/01/2024"},null,null,null,null,{"$f":"IF(Template!M21>0,Template!M21,-Template!N21)","v":19096},null,null,null,{"$f":"VLOOKUP(G9,'Account mapping'!A:D,4,0)","v":"Revenue"}]
[{"$f":"LEFT(Template!A22,4)","v":""},{"$f":"VLOOKUP(A10,'Structure mapping'!K:V,7,0)","v":{"$error":"#N/A"}},{"$f":"LEFT(Template!B22,5)","v":""},{"$f":"VLOOKUP(C10,'Structure mapping'!F:J,5,0)","v":{"$error":"#N/A"}},{"$f":"LEFT(Template!C22,7)","v":""},{"$f":"VLOOKUP(E10,'Structure mapping'!A:E,5,0)","v":{"$error":"#N/A"}},{"$f":"LEFT(Template!D22,6)","v":""},{"$f":"VLOOKUP(G10,'Account mapping'!A:E,5,0)","v":{"$error":"#N/A"}},{"$f":"LEFT(Template!E22,2)","v":""},{"$f":"VLOOKUP(I10,'Structure mapping'!X:AB,5,0)","v":{"$error":"#N/A"}},{"$f":"LEFT(Template!F22,3)","v":""},{"$f":"VLOOKUP(K10,'Structure mapping'!AC:AG,5,0)","v":{"$error":"#N/A"}},{"$f":"LEFT(Template!G22,10)","v":""},{"$f":"VLOOKUP(M10,'Structure mapping'!AH:AL,5,0)","v":{"$error":"#N/A"}},{"$f":"LEFT(Template!H22,6)","v":""},{"$f":"VLOOKUP(O10,'Structure mapping'!AM:AQ,5,0)","v":{"$error":"#N/A"}},null,null,null,null,{"$f":"IF(Template!O22=\"\",\"\",Template!O22)","v":""},"Aug-24 pending entries",{"$f":"TEXT(Template!$B$9,\"mm/dd/yyy\")","v":"08/01/2024"},null,null,null,null,{"$f":"IF(Template!M22>0,Template!M22,-Template!N22)","v":0},null,null,null,{"$f":"VLOOKUP(G10,'Account mapping'!A:D,4,0)","v":{"$error":"#N/A"}}]
[{"$f":"LEFT(Template!A23,4)","v":""},{"$f":"VLOOKUP(A11,'Structure mapping'!K:V,7,0)","v":{"$error":"#N/A"}},{"$f":"LEFT(Template!B23,5)","v":""},{"$f":"VLOOKUP(C11,'Structure mapping'!F:J,5,0)","v":{"$error":"#N/A"}},{"$f":"LEFT(Template!C23,7)","v":""},{"$f":"VLOOKUP(E11,'Structure mapping'!A:E,5,0)","v":{"$error":"#N/A"}},{"$f":"LEFT(Template!D23,6)","v":""},{"$f":"VLOOKUP(G11,'Account mapping'!A:E,5,0)","v":{"$error":"#N/A"}},{"$f":"LEFT(Template!E23,2)","v":""},{"$f":"VLOOKUP(I11,'Structure mapping'!X:AB,5,0)","v":{"$error":"#N/A"}},{"$f":"LEFT(Template!F23,3)","v":""},{"$f":"VLOOKUP(K11,'Structure mapping'!AC:AG,5,0)","v":{"$error":"#N/A"}},{"$f":"LEFT(Template!G23,10)","v":""},{"$f":"VLOOKUP(M11,'Structure mapping'!AH:AL,5,0)","v":{"$error":"#N/A"}},{"$f":"LEFT(Template!H23,6)","v":""},{"$f":"VLOOKUP(O11,'Structure mapping'!AM:AQ,5,0)","v":{"$error":"#N/A"}},null,null,null,null,{"$f":"IF(Template!O23=\"\",\"\",Template!O23)","v":""},"Aug-24 pending entries",{"$f":"TEXT(Template!$B$9,\"mm/dd/yyy\")","v":"08/01/2024"},null,null,null,null,{"$f":"IF(Template!M23>0,Template!M23,-Template!N23)","v":0},null,null,null,{"$f":"VLOOKUP(G11,'Account mapping'!A:D,4,0)","v":{"$error":"#N/A"}}]
[{"$f":"LEFT(Template!A24,4)","v":""},{"$f":"VLOOKUP(A12,'Structure mapping'!K:V,7,0)","v":{"$error":"#N/A"}},{"$f":"LEFT(Template!B24,5)","v":""},{"$f":"VLOOKUP(C12,'Structure mapping'!F:J,5,0)","v":{"$error":"#N/A"}},{"$f":"LEFT(Template!C24,7)","v":""},{"$f":"VLOOKUP(E12,'Structure mapping'!A:E,5,0)","v":{"$error":"#N/A"}},{"$f":"LEFT(Template!D24,6)","v":""},{"$f":"VLOOKUP(G12,'Account mapping'!A:E,5,0)","v":{"$error":"#N/A"}},{"$f":"LEFT(Template!E24,2)","v":""},{"$f":"VLOOKUP(I12,'Structure mapping'!X:AB,5,0)","v":{"$error":"#N/A"}},{"$f":"LEFT(Template!F24,3)","v":""},{"$f":"VLOOKUP(K12,'Structure mapping'!AC:AG,5,0)","v":{"$error":"#N/A"}},{"$f":"LEFT(Template!G24,10)","v":""},{"$f":"VLOOKUP(M12,'Structure mapping'!AH:AL,5,0)","v":{"$error":"#N/A"}},{"$f":"LEFT(Template!H24,6)","v":""},{"$f":"VLOOKUP(O12,'Structure mapping'!AM:AQ,5,0)","v":{"$error":"#N/A"}},null,null,null,null,{"$f":"IF(Template!O24=\"\",\"\",Template!O24)","v":""},"Aug-24 pending entries",{"$f":"TEXT(Template!$B$9,\"mm/dd/yyy\")","v":"08/01/2024"},null,null,null,null,{"$f":"IF(Template!M24>0,Template!M24,-Template!N24)","v":0},null,null,null,{"$f":"VLOOKUP(G12,'Account mapping'!A:D,4,0)","v":{"$error":"#N/A"}}]
[{"$f":"LEFT(Template!A25,4)","v":""},{"$f":"VLOOKUP(A13,'Structure mapping'!K:V,7,0)","v":{"$error":"#N/A"}},{"$f":"LEFT(Template!B25,5)","v":""},{"$f":"VLOOKUP(C13,'Structure mapping'!F:J,5,0)","v":{"$error":"#N/A"}},{"$f":"LEFT(Template!C25,7)","v":""},{"$f":"VLOOKUP(E13,'Structure mapping'!A:E,5,0)","v":{"$error":"#N/A"}},{"$f":"LEFT(Template!D25,6)","v":""},{"$f":"VLOOKUP(G13,'Account mapping'!A:E,5,0)","v":{"$error":"#N/A"}},{"$f":"LEFT(Template!E25,2)","v":""},{"$f":"VLOOKUP(I13,'Structure mapping'!X:AB,5,0)","v":{"$error":"#N/A"}},{"$f":"LEFT(Template!F25,3)","v":""},{"$f":"VLOOKUP(K13,'Structure mapping'!AC:AG,5,0)","v":{"$error":"#N/A"}},{"$f":"LEFT(Template!G25,10)","v":""},{"$f":"VLOOKUP(M13,'Structure mapping'!AH:AL,5,0)","v":{"$error":"#N/A"}},{"$f":"LEFT(Template!H25,6)","v":""},{"$f":"VLOOKUP(O13,'Structure mapping'!AM:AQ,5,0)","v":{"$error":"#N/A"}},null,null,null,null,{"$f":"IF(Template!O25=\"\",\"\",Template!O25)","v":""},"Aug-24 pending entries",{"$f":"TEXT(Template!$B$9,\"mm/dd/yyy\")","v":"08/01/2024"},null,null,null,null,{"$f":"IF(Template!M25>0,Template!M25,-Template!N25)","v":0},null,null,null,{"$f":"VLOOKUP(G13,'Account mapping'!A:D,4,0)","v":{"$error":"#N/A"}}]
[{"$f":"LEFT(Template!A26,4)","v":""},{"$f":"VLOOKUP(A14,'Structure mapping'!K:V,7,0)","v":{"$error":"#N/A"}},{"$f":"LEFT(Template!B26,5)","v":""},{"$f":"VLOOKUP(C14,'Structure mapping'!F:J,5,0)","v":{"$error":"#N/A"}},{"$f":"LEFT(Template!C26,7)","v":""},{"$f":"VLOOKUP(E14,'Structure mapping'!A:E,5,0)","v":{"$error":"#N/A"}},{"$f":"LEFT(Template!D26,6)","v":""},{"$f":"VLOOKUP(G14,'Account mapping'!A:E,5,0)","v":{"$error":"#N/A"}},{"$f":"LEFT(Template!E26,2)","v":""},{"$f":"VLOOKUP(I14,'Structure mapping'!X:AB,5,0)","v":{"$error":"#N/A"}},{"$f":"LEFT(Template!F26,3)","v":""},{"$f":"VLOOKUP(K14,'Structure mapping'!AC:AG,5,0)","v":{"$error":"#N/A"}},{"$f":"LEFT(Template!G26,10)","v":""},{"$f":"VLOOKUP(M14,'Structure mapping'!AH:AL,5,0)","v":{"$error":"#N/A"}},{"$f":"LEFT(Template!H26,6)","v":""},{"$f":"VLOOKUP(O14,'Structure mapping'!AM:AQ,5,0)","v":{"$error":"#N/A"}},null,null,null,null,{"$f":"IF(Template!O26=\"\",\"\",Template!O26)","v":""},"Aug-24 pending entries",{"$f":"TEXT(Template!$B$9,\"mm/dd/yyy\")","v":"08/01/2024"},null,null,null,null,{"$f":"IF(Template!M26>0,Template!M26,-Template!N26)","v":0},null,null,null,{"$f":"VLOOKUP(G14,'Account mapping'!A:D,4,0)","v":{"$error":"#N/A"}}]
[{"$f":"LEFT(Template!A27,4)","v":""},{"$f":"VLOOKUP(A15,'Structure mapping'!K:V,7,0)","v":{"$error":"#N/A"}},{"$f":"LEFT(Template!B27,5)","v":""},{"$f":"VLOOKUP(C15,'Structure mapping'!F:J,5,0)","v":{"$error":"#N/A"}},{"$f":"LEFT(Template!C27,7)","v":""},{"$f":"VLOOKUP(E15,'Structure mapping'!A:E,5,0)","v":{"$error":"#N/A"}},{"$f":"LEFT(Template!D27,6)","v":""},{"$f":"VLOOKUP(G15,'Account mapping'!A:E,5,0)","v":{"$error":"#N/A"}},{"$f":"LEFT(Template!E27,2)","v":""},{"$f":"VLOOKUP(I15,'Structure mapping'!X:AB,5,0)","v":{"$error":"#N/A"}},{"$f":"LEFT(Template!F27,3)","v":""},{"$f":"VLOOKUP(K15,'Structure mapping'!AC:AG,5,0)","v":{"$error":"#N/A"}},{"$f":"LEFT(Template!G27,10)","v":""},{"$f":"VLOOKUP(M15,'Structure mapping'!AH:AL,5,0)","v":{"$error":"#N/A"}},{"$f":"LEFT(Template!H27,6)","v":""},{"$f":"VLOOKUP(O15,'Structure mapping'!AM:AQ,5,0)","v":{"$error":"#N/A"}},null,null,null,null,{"$f":"IF(Template!O27=\"\",\"\",Template!O27)","v":""},"Aug-24 pending entries",{"$f":"TEXT(Template!$B$9,\"mm/dd/yyy\")","v":"08/01/2024"},null,null,null,null,{"$f":"IF(Template!M27>0,Template!M27,-Template!N27)","v":0},null,null,null,{"$f":"VLOOKUP(G15,'Account mapping'!A:D,4,0)","v":{"$error":"#N/A"}}]
[{"$f":"LEFT(Template!A28,4)","v":""},{"$f":"VLOOKUP(A16,'Structure mapping'!K:V,7,0)","v":{"$error":"#N/A"}},{"$f":"LEFT(Template!B28,5)","v":""},{"$f":"VLOOKUP(C16,'Structure mapping'!F:J,5,0)","v":{"$error":"#N/A"}},{"$f":"LEFT(Template!C28,7)","v":""},{"$f":"VLOOKUP(E16,'Structure mapping'!A:E,5,0)","v":{"$error":"#N/A"}},{"$f":"LEFT(Template!D28,6)","v":""},{"$f":"VLOOKUP(G16,'Account mapping'!A:E,5,0)","v":{"$error":"#N/A"}},{"$f":"LEFT(Template!E28,2)","v":""},{"$f":"VLOOKUP(I16,'Structure mapping'!X:AB,5,0)","v":{"$error":"#N/A"}},{"$f":"LEFT(Template!F28,3)","v":""},{"$f":"VLOOKUP(K16,'Structure mapping'!AC:AG,5,0)","v":{"$error":"#N/A"}},{"$f":"LEFT(Template!G28,10)","v":""},{"$f":"VLOOKUP(M16,'Structure mapping'!AH:AL,5,0)","v":{"$error":"#N/A"}},{"$f":"LEFT(Template!H28,6)","v":""},{"$f":"VLOOKUP(O16,'Structure mapping'!AM:AQ,5,0)","v":{"$error":"#N/A"}},null,null,null,null,{"$f":"IF(Template!O28=\"\",\"\",Template!O28)","v":""},"Aug-24 pending entries",{"$f":"TEXT(Template!$B$9,\"mm/dd/yyy\")","v":"08/01/2024"},null,null,null,null,{"$f":"IF(Template!M28>0,Template!M28,-Template!N28)","v":0},null,null,null,{"$f":"VLOOKUP(G16,'Account mapping'!A:D,4,0)","v":{"$error":"#N/A"}}]
[{"$f":"LEFT(Template!A29,4)","v":""},{"$f":"VLOOKUP(A17,'Structure mapping'!K:V,7,0)","v":{"$error":"#N/A"}},{"$f":"LEFT(Template!B29,5)","v":""},{"$f":"VLOOKUP(C17,'Structure mapping'!F:J,5,0)","v":{"$error":"#N/A"}},{"$f":"LEFT(Template!C29,7)","v":""},{"$f":"VLOOKUP(E17,'Structure mapping'!A:E,5,0)","v":{"$error":"#N/A"}},{"$f":"LEFT(Template!D29,6)","v":""},{"$f":"VLOOKUP(G17,'Account mapping'!A:E,5,0)","v":{"$error":"#N/A"}},{"$f":"LEFT(Template!E29,2)","v":""},{"$f":"VLOOKUP(I17,'Structure mapping'!X:AB,5,0)","v":{"$error":"#N/A"}},{"$f":"LEFT(Template!F29,3)","v":""},{"$f":"VLOOKUP(K17,'Structure mapping'!AC:AG,5,0)","v":{"$error":"#N/A"}},{"$f":"LEFT(Template!G29,10)","v":""},{"$f":"VLOOKUP(M17,'Structure mapping'!AH:AL,5,0)","v":{"$error":"#N/A"}},{"$f":"LEFT(Template!H29,6)","v":""},{"$f":"VLOOKUP(O17,'Structure mapping'!AM:AQ,5,0)","v":{"$error":"#N/A"}},null,null,null,null,{"$f":"IF(Template!O29=\"\",\"\",Template!O29)","v":""},"Aug-24 pending entries",{"$f":"TEXT(Template!$B$9,\"mm/dd/yyy\")","v":"08/01/2024"},null,null,null,null,{"$f":"IF(Template!M29>0,Template!M29,-Template!N29)","v":0},null,null,null,{"$f":"VLOOKUP(G17,'Account mapping'!A:D,4,0)","v":{"$error":"#N/A"}}]
[{"$f":"LEFT(Template!A30,4)","v":""},{"$f":"VLOOKUP(A18,'Structure mapping'!K:V,7,0)","v":{"$error":"#N/A"}},{"$f":"LEFT(Template!B30,5)","v":""},{"$f":"VLOOKUP(C18,'Structure mapping'!F:J,5,0)","v":{"$error":"#N/A"}},{"$f":"LEFT(Template!C30,7)","v":""},{"$f":"VLOOKUP(E18,'Structure mapping'!A:E,5,0)","v":{"$error":"#N/A"}},{"$f":"LEFT(Template!D30,6)","v":""},{"$f":"VLOOKUP(G18,'Account mapping'!A:E,5,0)","v":{"$error":"#N/A"}},{"$f":"LEFT(Template!E30,2)","v":""},{"$f":"VLOOKUP(I18,'Structure mapping'!X:AB,5,0)","v":{"$error":"#N/A"}},{"$f":"LEFT(Template!F30,3)","v":""},{"$f":"VLOOKUP(K18,'Structure mapping'!AC:AG,5,0)","v":{"$error":"#N/A"}},{"$f":"LEFT(Template!G30,10)","v":""},{"$f":"VLOOKUP(M18,'Structure mapping'!AH:AL,5,0)","v":{"$error":"#N/A"}},{"$f":"LEFT(Template!H30,6)","v":""},{"$f":"VLOOKUP(O18,'Structure mapping'!AM:AQ,5,0)","v":{"$error":"#N/A"}},null,null,null,null,{"$f":"IF(Template!O30=\"\",\"\",Template!O30)","v":""},"Aug-24 pending entries",{"$f":"TEXT(Template!$B$9,\"mm/dd/yyy\")","v":"08/01/2024"},null,null,null,null,{"$f":"IF(Template!M30>0,Template!M30,-Template!N30)","v":0},null,null,null,{"$f":"VLOOKUP(G18,'Account mapping'!A:D,4,0)","v":{"$error":"#N/A"}}]
[{"$f":"LEFT(Template!A31,4)","v":""},{"$f":"VLOOKUP(A19,'Structure mapping'!K:V,7,0)","v":{"$error":"#N/A"}},{"$f":"LEFT(Template!B31,5)","v":""},{"$f":"VLOOKUP(C19,'Structure mapping'!F:J,5,0)","v":{"$error":"#N/A"}},{"$f":"LEFT(Template!C31,7)","v":""},{"$f":"VLOOKUP(E19,'Structure mapping'!A:E,5,0)","v":{"$error":"#N/A"}},{"$f":"LEFT(Template!D31,6)","v":""},{"$f":"VLOOKUP(G19,'Account mapping'!A:E,5,0)","v":{"$error":"#N/A"}},{"$f":"LEFT(Template!E31,2)","v":""},{"$f":"VLOOKUP(I19,'Structure mapping'!X:AB,5,0)","v":{"$error":"#N/A"}},{"$f":"LEFT(Template!F31,3)","v":""},{"$f":"VLOOKUP(K19,'Structure mapping'!AC:AG,5,0)","v":{"$error":"#N/A"}},{"$f":"LEFT(Template!G31,10)","v":""},{"$f":"VLOOKUP(M19,'Structure mapping'!AH:AL,5,0)","v":{"$error":"#N/A"}},{"$f":"LEFT(Template!H31,6)","v":""},{"$f":"VLOOKUP(O19,'Structure mapping'!AM:AQ,5,0)","v":{"$error":"#N/A"}},null,null,null,null,{"$f":"IF(Template!O31=\"\",\"\",Template!O31)","v":""},"Aug-24 pending entries",{"$f":"TEXT(Template!$B$9,\"mm/dd/yyy\")","v":"08/01/2024"},null,null,null,null,{"$f":"IF(Template!M31>0,Template!M31,-Template!N31)","v":0},null,null,null,{"$f":"VLOOKUP(G19,'Account mapping'!A:D,4,0)","v":{"$error":"#N/A"}}]
[{"$f":"LEFT(Template!A32,4)","v":""},{"$f":"VLOOKUP(A20,'Structure mapping'!K:V,7,0)","v":{"$error":"#N/A"}},{"$f":"LEFT(Template!B32,5)","v":""},{"$f":"VLOOKUP(C20,'Structure mapping'!F:J,5,0)","v":{"$error":"#N/A"}},{"$f":"LEFT(Template!C32,7)","v":""},{"$f":"VLOOKUP(E20,'Structure mapping'!A:E,5,0)","v":{"$error":"#N/A"}},{"$f":"LEFT(Template!D32,6)","v":""},{"$f":"VLOOKUP(G20,'Account mapping'!A:E,5,0)","v":{"$error":"#N/A"}},{"$f":"LEFT(Template!E32,2)","v":""},{"$f":"VLOOKUP(I20,'Structure mapping'!X:AB,5,0)","v":{"$error":"#N/A"}},{"$f":"LEFT(Template!F32,3)","v":""},{"$f":"VLOOKUP(K20,'Structure mapping'!AC:AG,5,0)","v":{"$error":"#N/A"}},{"$f":"LEFT(Template!G32,10)","v":""},{"$f":"VLOOKUP(M20,'Structure mapping'!AH:AL,5,0)","v":{"$error":"#N/A"}},{"$f":"LEFT(Template!H32,6)","v":""},{"$f":"VLOOKUP(O20,'Structure mapping'!AM:AQ,5,0)","v":{"$error":"#N/A"}},null,null,null,null,{"$f":"IF(Template!O32=\"\",\"\",Template!O32)","v":""},"Aug-24 pending entries",{"$f":"TEXT(Template!$B$9,\"mm/dd/yyy\")","v":"08/01/2024"},null,null,null,null,{"$f":"IF(Template!M32>0,Template!M32,-Template!N32)","v":0},null,null,null,{"$f":"VLOOKUP(G20,'Account mapping'!A:D,4,0)","v":{"$error":"#N/A"}}]
[{"$f":"LEFT(Template!A33,4)","v":""},{"$f":"VLOOKUP(A21,'Structure mapping'!K:V,7,0)","v":{"$error":"#N/A"}},{"$f":"LEFT(Template!B33,5)","v":""},{"$f":"VLOOKUP(C21,'Structure mapping'!F:J,5,0)","v":{"$error":"#N/A"}},{"$f":"LEFT(Template!C33,7)","v":""},{"$f":"VLOOKUP(E21,'Structure mapping'!A:E,5,0)","v":{"$error":"#N/A"}},{"$f":"LEFT(Template!D33,6)","v":""},{"$f":"VLOOKUP(G21,'Account mapping'!A:E,5,0)","v":{"$error":"#N/A"}},{"$f":"LEFT(Template!E33,2)","v":""},{"$f":"VLOOKUP(I21,'Structure mapping'!X:AB,5,0)","v":{"$error":"#N/A"}},{"$f":"LEFT(Template!F33,3)","v":""},{"$f":"VLOOKUP(K21,'Structure mapping'!AC:AG,5,0)","v":{"$error":"#N/A"}},{"$f":"LEFT(Template!G33,10)","v":""},{"$f":"VLOOKUP(M21,'Structure mapping'!AH:AL,5,0)","v":{"$error":"#N/A"}},{"$f":"LEFT(Template!H33,6)","v":""},{"$f":"VLOOKUP(O21,'Structure mapping'!AM:AQ,5,0)","v":{"$error":"#N/A"}},null,null,null,null,{"$f":"IF(Template!O33=\"\",\"\",Template!O33)","v":""},"Aug-24 pending entries",{"$f":"TEXT(Template!$B$9,\"mm/dd/yyy\")","v":"08/01/2024"},null,null,null,null,{"$f":"IF(Template!M33>0,Template!M33,-Template!N33)","v":0},null,null,null,{"$f":"VLOOKUP(G21,'Account mapping'!A:D,4,0)","v":{"$error":"#N/A"}}]
[{"$f":"LEFT(Template!A34,4)","v":""},{"$f":"VLOOKUP(A22,'Structure mapping'!K:V,7,0)","v":{"$error":"#N/A"}},{"$f":"LEFT(Template!B34,5)","v":""},{"$f":"VLOOKUP(C22,'Structure mapping'!F:J,5,0)","v":{"$error":"#N/A"}},{"$f":"LEFT(Template!C34,7)","v":""},{"$f":"VLOOKUP(E22,'Structure mapping'!A:E,5,0)","v":{"$error":"#N/A"}},{"$f":"LEFT(Template!D34,6)","v":""},{"$f":"VLOOKUP(G22,'Account mapping'!A:E,5,0)","v":{"$error":"#N/A"}},{"$f":"LEFT(Template!E34,2)","v":""},{"$f":"VLOOKUP(I22,'Structure mapping'!X:AB,5,0)","v":{"$error":"#N/A"}},{"$f":"LEFT(Template!F34,3)","v":""},{"$f":"VLOOKUP(K22,'Structure mapping'!AC:AG,5,0)","v":{"$error":"#N/A"}},{"$f":"LEFT(Template!G34,10)","v":""},{"$f":"VLOOKUP(M22,'Structure mapping'!AH:AL,5,0)","v":{"$error":"#N/A"}},{"$f":"LEFT(Template!H34,6)","v":""},{"$f":"VLOOKUP(O22,'Structure mapping'!AM:AQ,5,0)","v":{"$error":"#N/A"}},null,null,null,null,{"$f":"IF(Template!O34=\"\",\"\",Template!O34)","v":""},"Aug-24 pending entries",{"$f":"TEXT(Template!$B$9,\"mm/dd/yyy\")","v":"08/01/2024"},null,null,null,null,{"$f":"IF(Template!M34>0,Template!M34,-Template!N34)","v":0},null,null,null,{"$f":"VLOOKUP(G22,'Account mapping'!A:D,4,0)","v":{"$error":"#N/A"}}]
[{"$f":"LEFT(Template!A35,4)","v":""},{"$f":"VLOOKUP(A23,'Structure mapping'!K:V,7,0)","v":{"$error":"#N/A"}},{"$f":"LEFT(Template!B35,5)","v":""},{"$f":"VLOOKUP(C23,'Structure mapping'!F:J,5,0)","v":{"$error":"#N/A"}},{"$f":"LEFT(Template!C35,7)","v":""},{"$f":"VLOOKUP(E23,'Structure mapping'!A:E,5,0)","v":{"$error":"#N/A"}},{"$f":"LEFT(Template!D35,6)","v":""},{"$f":"VLOOKUP(G23,'Account mapping'!A:E,5,0)","v":{"$error":"#N/A"}},{"$f":"LEFT(Template!E35,2)","v":""},{"$f":"VLOOKUP(I23,'Structure mapping'!X:AB,5,0)","v":{"$error":"#N/A"}},{"$f":"LEFT(Template!F35,3)","v":""},{"$f":"VLOOKUP(K23,'Structure mapping'!AC:AG,5,0)","v":{"$error":"#N/A"}},{"$f":"LEFT(Template!G35,10)","v":""},{"$f":"VLOOKUP(M23,'Structure mapping'!AH:AL,5,0)","v":{"$error":"#N/A"}},{"$f":"LEFT(Template!H35,6)","v":""},{"$f":"VLOOKUP(O23,'Structure mapping'!AM:AQ,5,0)","v":{"$error":"#N/A"}},null,null,null,null,{"$f":"IF(Template!O35=\"\",\"\",Template!O35)","v":""},"Aug-24 pending entries",{"$f":"TEXT(Template!$B$9,\"mm/dd/yyy\")","v":"08/01/2024"},null,null,null,null,{"$f":"IF(Template!M35>0,Template!M35,-Template!N35)","v":0},null,null,null,{"$f":"VLOOKUP(G23,'Account mapping'!A:D,4,0)","v":{"$error":"#N/A"}}]
[{"$f":"LEFT(Template!A36,4)","v":""},{"$f":"VLOOKUP(A24,'Structure mapping'!K:V,7,0)","v":{"$error":"#N/A"}},{"$f":"LEFT(Template!B36,5)","v":""},{"$f":"VLOOKUP(C24,'Structure mapping'!F:J,5,0)","v":{"$error":"#N/A"}},{"$f":"LEFT(Template!C36,7)","v":""},{"$f":"VLOOKUP(E24,'Structure mapping'!A:E,5,0)","v":{"$error":"#N/A"}},{"$f":"LEFT(Template!D36,6)","v":""},{"$f":"VLOOKUP(G24,'Account mapping'!A:E,5,0)","v":{"$error":"#N/A"}},{"$f":"LEFT(Template!E36,2)","v":""},{"$f":"VLOOKUP(I24,'Structure mapping'!X:AB,5,0)","v":{"$error":"#N/A"}},{"$f":"LEFT(Template!F36,3)","v":""},{"$f":"VLOOKUP(K24,'Structure mapping'!AC:AG,5,0)","v":{"$error":"#N/A"}},{"$f":"LEFT(Template!G36,10)","v":""},{"$f":"VLOOKUP(M24,'Structure mapping'!AH:AL,5,0)","v":{"$error":"#N/A"}},{"$f":"LEFT(Template!H36,6)","v":""},{"$f":"VLOOKUP(O24,'Structure mapping'!AM:AQ,5,0)","v":{"$error":"#N/A"}},null,null,null,null,{"$f":"IF(Template!O36=\"\",\"\",Template!O36)","v":""},"Aug-24 pending entries",{"$f":"TEXT(Template!$B$9,\"mm/dd/yyy\")","v":"08/01/2024"},null,null,null,null,{"$f":"IF(Template!M36>0,Template!M36,-Template!N36)","v":0},null,null,null,{"$f":"VLOOKUP(G24,'Account mapping'!A:D,4,0)","v":{"$error":"#N/A"}}]
[{"$f":"LEFT(Template!A37,4)","v":""},{"$f":"VLOOKUP(A25,'Structure mapping'!K:V,7,0)","v":{"$error":"#N/A"}},{"$f":"LEFT(Template!B37,5)","v":""},{"$f":"VLOOKUP(C25,'Structure mapping'!F:J,5,0)","v":{"$error":"#N/A"}},{"$f":"LEFT(Template!C37,7)","v":""},{"$f":"VLOOKUP(E25,'Structure mapping'!A:E,5,0)","v":{"$error":"#N/A"}},{"$f":"LEFT(Template!D37,6)","v":""},{"$f":"VLOOKUP(G25,'Account mapping'!A:E,5,0)","v":{"$error":"#N/A"}},{"$f":"LEFT(Template!E37,2)","v":""},{"$f":"VLOOKUP(I25,'Structure mapping'!X:AB,5,0)","v":{"$error":"#N/A"}},{"$f":"LEFT(Template!F37,3)","v":""},{"$f":"VLOOKUP(K25,'Structure mapping'!AC:AG,5,0)","v":{"$error":"#N/A"}},{"$f":"LEFT(Template!G37,10)","v":""},{"$f":"VLOOKUP(M25,'Structure mapping'!AH:AL,5,0)","v":{"$error":"#N/A"}},{"$f":"LEFT(Template!H37,6)","v":""},{"$f":"VLOOKUP(O25,'Structure mapping'!AM:AQ,5,0)","v":{"$error":"#N/A"}},null,null,null,null,{"$f":"IF(Template!O37=\"\",\"\",Template!O37)","v":""},"Aug-24 pending entries",{"$f":"TEXT(Template!$B$9,\"mm/dd/yyy\")","v":"08/01/2024"},null,null,null,null,{"$f":"IF(Template!M37>0,Template!M37,-Template!N37)","v":0},null,null,null,{"$f":"VLOOKUP(G25,'Account mapping'!A:D,4,0)","v":{"$error":"#N/A"}}]
[{"$f":"LEFT(Template!A38,4)","v":""},{"$f":"VLOOKUP(A26,'Structure mapping'!K:V,7,0)","v":{"$error":"#N/A"}},{"$f":"LEFT(Template!B38,5)","v":""},{"$f":"VLOOKUP(C26,'Structure mapping'!F:J,5,0)","v":{"$error":"#N/A"}},{"$f":"LEFT(Template!C38,7)","v":""},{"$f":"VLOOKUP(E26,'Structure mapping'!A:E,5,0)","v":{"$error":"#N/A"}},{"$f":"LEFT(Template!D38,6)","v":""},{"$f":"VLOOKUP(G26,'Account mapping'!A:E,5,0)","v":{"$error":"#N/A"}},{"$f":"LEFT(Template!E38,2)","v":""},{"$f":"VLOOKUP(I26,'Structure mapping'!X:AB,5,0)","v":{"$error":"#N/A"}},{"$f":"LEFT(Template!F38,3)","v":""},{"$f":"VLOOKUP(K26,'Structure mapping'!AC:AG,5,0)","v":{"$error":"#N/A"}},{"$f":"LEFT(Template!G38,10)","v":""},{"$f":"VLOOKUP(M26,'Structure mapping'!AH:AL,5,0)","v":{"$error":"#N/A"}},{"$f":"LEFT(Template!H38,6)","v":""},{"$f":"VLOOKUP(O26,'Structure mapping'!AM:AQ,5,0)","v":{"$error":"#N/A"}},null,null,null,null,{"$f":"IF(Template!O38=\"\",\"\",Template!O38)","v":""},"Aug-24 pending entries",{"$f":"TEXT(Template!$B$9,\"mm/dd/yyy\")","v":"08/01/2024"},null,null,null,null,{"$f":"IF(Template!M38>0,Template!M38,-Template!N38)","v":0},null,null,null,{"$f":"VLOOKUP(G26,'Account mapping'!A:D,4,0)","v":{"$error":"#N/A"}}]
[{"$f":"LEFT(Template!A39,4)","v":""},{"$f":"VLOOKUP(A27,'Structure mapping'!K:V,7,0)","v":{"$error":"#N/A"}},{"$f":"LEFT(Template!B39,5)","v":""},{"$f":"VLOOKUP(C27,'Structure mapping'!F:J,5,0)","v":{"$error":"#N/A"}},{"$f":"LEFT(Template!C39,7)","v":""},{"$f":"VLOOKUP(E27,'Structure mapping'!A:E,5,0)","v":{"$error":"#N/A"}},{"$f":"LEFT(Template!D39,6)","v":""},{"$f":"VLOOKUP(G27,'Account mapping'!A:E,5,0)","v":{"$error":"#N/A"}},{"$f":"LEFT(Template!E39,2)","v":""},{"$f":"VLOOKUP(I27,'Structure mapping'!X:AB,5,0)","v":{"$error":"#N/A"}},{"$f":"LEFT(Template!F39,3)","v":""},{"$f":"VLOOKUP(K27,'Structure mapping'!AC:AG,5,0)","v":{"$error":"#N/A"}},{"$f":"LEFT(Template!G39,10)","v":""},{"$f":"VLOOKUP(M27,'Structure mapping'!AH:AL,5,0)","v":{"$error":"#N/A"}},{"$f":"LEFT(Template!H39,6)","v":""},{"$f":"VLOOKUP(O27,'Structure mapping'!AM:AQ,5,0)","v":{"$error":"#N/A"}},null,null,null,null,{"$f":"IF(Template!O39=\"\",\"\",Template!O39)","v":""},"Aug-24 pending entries",{"$f":"TEXT(Template!$B$9,\"mm/dd/yyy\")","v":"08/01/2024"},null,null,null,null,{"$f":"IF(Template!M39>0,Template!M39,-Template!N39)","v":0},null,null,null,{"$f":"VLOOKUP(G27,'Account mapping'!A:D,4,0)","v":{"$error":"#N/A"}}]
[{"$f":"LEFT(Template!A40,4)","v":""},{"$f":"VLOOKUP(A28,'Structure mapping'!K:V,7,0)","v":{"$error":"#N/A"}},{"$f":"LEFT(Template!B40,5)","v":""},{"$f":"VLOOKUP(C28,'Structure mapping'!F:J,5,0)","v":{"$error":"#N/A"}},{"$f":"LEFT(Template!C40,7)","v":""},{"$f":"VLOOKUP(E28,'Structure mapping'!A:E,5,0)","v":{"$error":"#N/A"}},{"$f":"LEFT(Template!D40,6)","v":""},{"$f":"VLOOKUP(G28,'Account mapping'!A:E,5,0)","v":{"$error":"#N/A"}},{"$f":"LEFT(Template!E40,2)","v":""},{"$f":"VLOOKUP(I28,'Structure mapping'!X:AB,5,0)","v":{"$error":"#N/A"}},{"$f":"LEFT(Template!F40,3)","v":""},{"$f":"VLOOKUP(K28,'Structure mapping'!AC:AG,5,0)","v":{"$error":"#N/A"}},{"$f":"LEFT(Template!G40,10)","v":""},{"$f":"VLOOKUP(M28,'Structure mapping'!AH:AL,5,0)","v":{"$error":"#N/A"}},{"$f":"LEFT(Template!H40,6)","v":""},{"$f":"VLOOKUP(O28,'Structure mapping'!AM:AQ,5,0)","v":{"$error":"#N/A"}},null,null,null,null,{"$f":"IF(Template!O40=\"\",\"\",Template!O40)","v":""},"Aug-24 pending entries",{"$f":"TEXT(Template!$B$9,\"mm/dd/yyy\")","v":"08/01/2024"},null,null,null,null,{"$f":"IF(Template!M40>0,Template!M40,-Template!N40)","v":0},null,null,null,{"$f":"VLOOKUP(G28,'Account mapping'!A:D,4,0)","v":{"$error":"#N/A"}}]
[{"$f":"LEFT(Template!A41,4)","v":""},{"$f":"VLOOKUP(A29,'Structure mapping'!K:V,7,0)","v":{"$error":"#N/A"}},{"$f":"LEFT(Template!B41,5)","v":""},{"$f":"VLOOKUP(C29,'Structure mapping'!F:J,5,0)","v":{"$error":"#N/A"}},{"$f":"LEFT(Template!C41,7)","v":""},{"$f":"VLOOKUP(E29,'Structure mapping'!A:E,5,0)","v":{"$error":"#N/A"}},{"$f":"LEFT(Template!D41,6)","v":""},{"$f":"VLOOKUP(G29,'Account mapping'!A:E,5,0)","v":{"$error":"#N/A"}},{"$f":"LEFT(Template!E41,2)","v":""},{"$f":"VLOOKUP(I29,'Structure mapping'!X:AB,5,0)","v":{"$error":"#N/A"}},{"$f":"LEFT(Template!F41,3)","v":""},{"$f":"VLOOKUP(K29,'Structure mapping'!AC:AG,5,0)","v":{"$error":"#N/A"}},{"$f":"LEFT(Template!G41,10)","v":""},{"$f":"VLOOKUP(M29,'Structure mapping'!AH:AL,5,0)","v":{"$error":"#N/A"}},{"$f":"LEFT(Template!H41,6)","v":""},{"$f":"VLOOKUP(O29,'Structure mapping'!AM:AQ,5,0)","v":{"$error":"#N/A"}},null,null,null,null,{"$f":"IF(Template!O41=\"\",\"\",Template!O41)","v":""},"Aug-24 pending entries",{"$f":"TEXT(Template!$B$9,\"mm/dd/yyy\")","v":"08/01/2024"},null,null,null,null,{"$f":"IF(Template!M41>0,Template!M41,-Template!N41)","v":0},null,null,null,{"$f":"VLOOKUP(G29,'Account mapping'!A:D,4,0)","v":{"$error":"#N/A"}}]
[{"$f":"LEFT(Template!A42,4)","v":""},{"$f":"VLOOKUP(A30,'Structure mapping'!K:V,7,0)","v":{"$error":"#N/A"}},{"$f":"LEFT(Template!B42,5)","v":""},{"$f":"VLOOKUP(C30,'Structure mapping'!F:J,5,0)","v":{"$error":"#N/A"}},{"$f":"LEFT(Template!C42,7)","v":""},{"$f":"VLOOKUP(E30,'Structure mapping'!A:E,5,0)","v":{"$error":"#N/A"}},{"$f":"LEFT(Template!D42,6)","v":""},{"$f":"VLOOKUP(G30,'Account mapping'!A:E,5,0)","v":{"$error":"#N/A"}},{"$f":"LEFT(Template!E42,2)","v":""},{"$f":"VLOOKUP(I30,'Structure mapping'!X:AB,5,0)","v":{"$error":"#N/A"}},{"$f":"LEFT(Template!F42,3)","v":""},{"$f":"VLOOKUP(K30,'Structure mapping'!AC:AG,5,0)","v":{"$error":"#N/A"}},{"$f":"LEFT(Template!G42,10)","v":""},{"$f":"VLOOKUP(M30,'Structure mapping'!AH:AL,5,0)","v":{"$error":"#N/A"}},{"$f":"LEFT(Template!H42,6)","v":""},{"$f":"VLOOKUP(O30,'Structure mapping'!AM:AQ,5,0)","v":{"$error":"#N/A"}},null,null,null,null,{"$f":"IF(Template!O42=\"\",\"\",Template!O42)","v":""},"Aug-24 pending entries",{"$f":"TEXT(Template!$B$9,\"mm/dd/yyy\")","v":"08/01/2024"},null,null,null,null,{"$f":"IF(Template!M42>0,Template!M42,-Template!N42)","v":0},null,null,null,{"$f":"VLOOKUP(G30,'Account mapping'!A:D,4,0)","v":{"$error":"#N/A"}}]
[{"$f":"LEFT(Template!A43,4)","v":""},{"$f":"VLOOKUP(A31,'Structure mapping'!K:V,7,0)","v":{"$error":"#N/A"}},{"$f":"LEFT(Template!B43,5)","v":""},{"$f":"VLOOKUP(C31,'Structure mapping'!F:J,5,0)","v":{"$error":"#N/A"}},{"$f":"LEFT(Template!C43,7)","v":""},{"$f":"VLOOKUP(E31,'Structure mapping'!A:E,5,0)","v":{"$error":"#N/A"}},{"$f":"LEFT(Template!D43,6)","v":""},{"$f":"VLOOKUP(G31,'Account mapping'!A:E,5,0)","v":{"$error":"#N/A"}},{"$f":"LEFT(Template!E43,2)","v":""},{"$f":"VLOOKUP(I31,'Structure mapping'!X:AB,5,0)","v":{"$error":"#N/A"}},{"$f":"LEFT(Template!F43,3)","v":""},{"$f":"VLOOKUP(K31,'Structure mapping'!AC:AG,5,0)","v":{"$error":"#N/A"}},{"$f":"LEFT(Template!G43,10)","v":""},{"$f":"VLOOKUP(M31,'Structure mapping'!AH:AL,5,0)","v":{"$error":"#N/A"}},{"$f":"LEFT(Template!H43,6)","v":""},{"$f":"VLOOKUP(O31,'Structure mapping'!AM:AQ,5,0)","v":{"$error":"#N/A"}},null,null,null,null,{"$f":"IF(Template!O43=\"\",\"\",Template!O43)","v":""},"Aug-24 pending entries",{"$f":"TEXT(Template!$B$9,\"mm/dd/yyy\")","v":"08/01/2024"},null,null,null,null,{"$f":"IF(Template!M43>0,Template!M43,-Template!N43)","v":0},null,null,null,{"$f":"VLOOKUP(G31,'Account mapping'!A:D,4,0)","v":{"$error":"#N/A"}}]
[{"$f":"LEFT(Template!A44,4)","v":""},{"$f":"VLOOKUP(A32,'Structure mapping'!K:V,7,0)","v":{"$error":"#N/A"}},{"$f":"LEFT(Template!B44,5)","v":""},{"$f":"VLOOKUP(C32,'Structure mapping'!F:J,5,0)","v":{"$error":"#N/A"}},{"$f":"LEFT(Template!C44,7)","v":""},{"$f":"VLOOKUP(E32,'Structure mapping'!A:E,5,0)","v":{"$error":"#N/A"}},{"$f":"LEFT(Template!D44,6)","v":""},{"$f":"VLOOKUP(G32,'Account mapping'!A:E,5,0)","v":{"$error":"#N/A"}},{"$f":"LEFT(Template!E44,2)","v":""},{"$f":"VLOOKUP(I32,'Structure mapping'!X:AB,5,0)","v":{"$error":"#N/A"}},{"$f":"LEFT(Template!F44,3)","v":""},{"$f":"VLOOKUP(K32,'Structure mapping'!AC:AG,5,0)","v":{"$error":"#N/A"}},{"$f":"LEFT(Template!G44,10)","v":""},{"$f":"VLOOKUP(M32,'Structure mapping'!AH:AL,5,0)","v":{"$error":"#N/A"}},{"$f":"LEFT(Template!H44,6)","v":""},{"$f":"VLOOKUP(O32,'Structure mapping'!AM:AQ,5,0)","v":{"$error":"#N/A"}},null,null,null,null,{"$f":"IF(Template!O44=\"\",\"\",Template!O44)","v":""},"Aug-24 pending entries",{"$f":"TEXT(Template!$B$9,\"mm/dd/yyy\")","v":"08/01/2024"},null,null,null,null,{"$f":"IF(Template!M44>0,Template!M44,-Template!N44)","v":0},null,null,null,{"$f":"VLOOKUP(G32,'Account mapping'!A:D,4,0)","v":{"$error":"#N/A"}}]
[{"$f":"LEFT(Template!A45,4)","v":""},{"$f":"VLOOKUP(A33,'Structure mapping'!K:V,7,0)","v":{"$error":"#N/A"}},{"$f":"LEFT(Template!B45,5)","v":""},{"$f":"VLOOKUP(C33,'Structure mapping'!F:J,5,0)","v":{"$error":"#N/A"}},{"$f":"LEFT(Template!C45,7)","v":""},{"$f":"VLOOKUP(E33,'Structure mapping'!A:E,5,0)","v":{"$error":"#N/A"}},{"$f":"LEFT(Template!D45,6)","v":""},{"$f":"VLOOKUP(G33,'Account mapping'!A:E,5,0)","v":{"$error":"#N/A"}},{"$f":"LEFT(Template!E45,2)","v":""},{"$f":"VLOOKUP(I33,'Structure mapping'!X:AB,5,0)","v":{"$error":"#N/A"}},{"$f":"LEFT(Template!F45,3)","v":""},{"$f":"VLOOKUP(K33,'Structure mapping'!AC:AG,5,0)","v":{"$error":"#N/A"}},{"$f":"LEFT(Template!G45,10)","v":""},{"$f":"VLOOKUP(M33,'Structure mapping'!AH:AL,5,0)","v":{"$error":"#N/A"}},{"$f":"LEFT(Template!H45,6)","v":""},{"$f":"VLOOKUP(O33,'Structure mapping'!AM:AQ,5,0)","v":{"$error":"#N/A"}},null,null,null,null,{"$f":"IF(Template!O45=\"\",\"\",Template!O45)","v":""},"Aug-24 pending entries",{"$f":"TEXT(Template!$B$9,\"mm/dd/yyy\")","v":"08/01/2024"},null,null,null,null,{"$f":"IF(Template!M45>0,Template!M45,-Template!N45)","v":0},null,null,null,{"$f":"VLOOKUP(G33,'Account mapping'!A:D,4,0)","v":{"$error":"#N/A"}}]
[{"$f":"LEFT(Template!A46,4)","v":""},{"$f":"VLOOKUP(A34,'Structure mapping'!K:V,7,0)","v":{"$error":"#N/A"}},{"$f":"LEFT(Template!B46,5)","v":""},{"$f":"VLOOKUP(C34,'Structure mapping'!F:J,5,0)","v":{"$error":"#N/A"}},{"$f":"LEFT(Template!C46,7)","v":""},{"$f":"VLOOKUP(E34,'Structure mapping'!A:E,5,0)","v":{"$error":"#N/A"}},{"$f":"LEFT(Template!D46,6)","v":""},{"$f":"VLOOKUP(G34,'Account mapping'!A:E,5,0)","v":{"$error":"#N/A"}},{"$f":"LEFT(Template!E46,2)","v":""},{"$f":"VLOOKUP(I34,'Structure mapping'!X:AB,5,0)","v":{"$error":"#N/A"}},{"$f":"LEFT(Template!F46,3)","v":""},{"$f":"VLOOKUP(K34,'Structure mapping'!AC:AG,5,0)","v":{"$error":"#N/A"}},{"$f":"LEFT(Template!G46,10)","v":""},{"$f":"VLOOKUP(M34,'Structure mapping'!AH:AL,5,0)","v":{"$error":"#N/A"}},{"$f":"LEFT(Template!H46,6)","v":""},{"$f":"VLOOKUP(O34,'Structure mapping'!AM:AQ,5,0)","v":{"$error":"#N/A"}},null,null,null,null,{"$f":"IF(Template!O46=\"\",\"\",Template!O46)","v":""},"Aug-24 pending entries",{"$f":"TEXT(Template!$B$9,\"mm/dd/yyy\")","v":"08/01/2024"},null,null,null,null,{"$f":"IF(Template!M46>0,Template!M46,-Template!N46)","v":0},null,null,null,{"$f":"VLOOKUP(G34,'Account mapping'!A:D,4,0)","v":{"$error":"#N/A"}}]
[{"$f":"LEFT(Template!A47,4)","v":""},{"$f":"VLOOKUP(A35,'Structure mapping'!K:V,7,0)","v":{"$error":"#N/A"}},{"$f":"LEFT(Template!B47,5)","v":""},{"$f":"VLOOKUP(C35,'Structure mapping'!F:J,5,0)","v":{"$error":"#N/A"}},{"$f":"LEFT(Template!C47,7)","v":""},{"$f":"VLOOKUP(E35,'Structure mapping'!A:E,5,0)","v":{"$error":"#N/A"}},{"$f":"LEFT(Template!D47,6)","v":""},{"$f":"VLOOKUP(G35,'Account mapping'!A:E,5,0)","v":{"$error":"#N/A"}},{"$f":"LEFT(Template!E47,2)","v":""},{"$f":"VLOOKUP(I35,'Structure mapping'!X:AB,5,0)","v":{"$error":"#N/A"}},{"$f":"LEFT(Template!F47,3)","v":""},{"$f":"VLOOKUP(K35,'Structure mapping'!AC:AG,5,0)","v":{"$error":"#N/A"}},{"$f":"LEFT(Template!G47,10)","v":""},{"$f":"VLOOKUP(M35,'Structure mapping'!AH:AL,5,0)","v":{"$error":"#N/A"}},{"$f":"LEFT(Template!H47,6)","v":""},{"$f":"VLOOKUP(O35,'Structure mapping'!AM:AQ,5,0)","v":{"$error":"#N/A"}},null,null,null,null,{"$f":"IF(Template!O47=\"\",\"\",Template!O47)","v":""},"Aug-24 pending entries",{"$f":"TEXT(Template!$B$9,\"mm/dd/yyy\")","v":"08/01/2024"},null,null,null,null,{"$f":"IF(Template!M47>0,Template!M47,-Template!N47)","v":0},null,null,null,{"$f":"VLOOKUP(G35,'Account mapping'!A:D,4,0)","v":{"$error":"#N/A"}}]
[{"$f":"LEFT(Template!A48,4)","v":""},{"$f":"VLOOKUP(A36,'Structure mapping'!K:V,7,0)","v":{"$error":"#N/A"}},{"$f":"LEFT(Template!B48,5)","v":""},{"$f":"VLOOKUP(C36,'Structure mapping'!F:J,5,0)","v":{"$error":"#N/A"}},{"$f":"LEFT(Template!C48,7)","v":""},{"$f":"VLOOKUP(E36,'Structure mapping'!A:E,5,0)","v":{"$error":"#N/A"}},{"$f":"LEFT(Template!D48,6)","v":""},{"$f":"VLOOKUP(G36,'Account mapping'!A:E,5,0)","v":{"$error":"#N/A"}},{"$f":"LEFT(Template!E48,2)","v":""},{"$f":"VLOOKUP(I36,'Structure mapping'!X:AB,5,0)","v":{"$error":"#N/A"}},{"$f":"LEFT(Template!F48,3)","v":""},{"$f":"VLOOKUP(K36,'Structure mapping'!AC:AG,5,0)","v":{"$error":"#N/A"}},{"$f":"LEFT(Template!G48,10)","v":""},{"$f":"VLOOKUP(M36,'Structure mapping'!AH:AL,5,0)","v":{"$error":"#N/A"}},{"$f":"LEFT(Template!H48,6)","v":""},{"$f":"VLOOKUP(O36,'Structure mapping'!AM:AQ,5,0)","v":{"$error":"#N/A"}},null,null,null,null,{"$f":"IF(Template!O48=\"\",\"\",Template!O48)","v":""},"Aug-24 pending entries",{"$f":"TEXT(Template!$B$9,\"mm/dd/yyy\")","v":"08/01/2024"},null,null,null,null,{"$f":"IF(Template!M48>0,Template!M48,-Template!N48)","v":0},null,null,null,{"$f":"VLOOKUP(G36,'Account mapping'!A:D,4,0)","v":{"$error":"#N/A"}}]
[{"$f":"LEFT(Template!A49,4)","v":""},{"$f":"VLOOKUP(A37,'Structure mapping'!K:V,7,0)","v":{"$error":"#N/A"}},{"$f":"LEFT(Template!B49,5)","v":""},{"$f":"VLOOKUP(C37,'Structure mapping'!F:J,5,0)","v":{"$error":"#N/A"}},{"$f":"LEFT(Template!C49,7)","v":""},{"$f":"VLOOKUP(E37,'Structure mapping'!A:E,5,0)","v":{"$error":"#N/A"}},{"$f":"LEFT(Template!D49,6)","v":""},{"$f":"VLOOKUP(G37,'Account mapping'!A:E,5,0)","v":{"$error":"#N/A"}},{"$f":"LEFT(Template!E49,2)","v":""},{"$f":"VLOOKUP(I37,'Structure mapping'!X:AB,5,0)","v":{"$error":"#N/A"}},{"$f":"LEFT(Template!F49,3)","v":""},{"$f":"VLOOKUP(K37,'Structure mapping'!AC:AG,5,0)","v":{"$error":"#N/A"}},{"$f":"LEFT(Template!G49,10)","v":""},{"$f":"VLOOKUP(M37,'Structure mapping'!AH:AL,5,0)","v":{"$error":"#N/A"}},{"$f":"LEFT(Template!H49,6)","v":""},{"$f":"VLOOKUP(O37,'Structure mapping'!AM:AQ,5,0)","v":{"$error":"#N/A"}},null,null,null,null,{"$f":"IF(Template!O49=\"\",\"\",Template!O49)","v":""},"Aug-24 pending entries",{"$f":"TEXT(Template!$B$9,\"mm/dd/yyy\")","v":"08/01/2024"},null,null,null,null,{"$f":"IF(Template!M49>0,Template!M49,-Template!N49)","v":0},null,null,null,{"$f":"VLOOKUP(G37,'Account mapping'!A:D,4,0)","v":{"$error":"#N/A"}}]
[{"$f":"LEFT(Template!A50,4)","v":""},{"$f":"VLOOKUP(A38,'Structure mapping'!K:V,7,0)","v":{"$error":"#N/A"}},{"$f":"LEFT(Template!B50,5)","v":""},{"$f":"VLOOKUP(C38,'Structure mapping'!F:J,5,0)","v":{"$error":"#N/A"}},{"$f":"LEFT(Template!C50,7)","v":""},{"$f":"VLOOKUP(E38,'Structure mapping'!A:E,5,0)","v":{"$error":"#N/A"}},{"$f":"LEFT(Template!D50,6)","v":""},{"$f":"VLOOKUP(G38,'Account mapping'!A:E,5,0)","v":{"$error":"#N/A"}},{"$f":"LEFT(Template!E50,2)","v":""},{"$f":"VLOOKUP(I38,'Structure mapping'!X:AB,5,0)","v":{"$error":"#N/A"}},{"$f":"LEFT(Template!F50,3)","v":""},{"$f":"VLOOKUP(K38,'Structure mapping'!AC:AG,5,0)","v":{"$error":"#N/A"}},{"$f":"LEFT(Template!G50,10)","v":""},{"$f":"VLOOKUP(M38,'Structure mapping'!AH:AL,5,0)","v":{"$error":"#N/A"}},{"$f":"LEFT(Template!H50,6)","v":""},{"$f":"VLOOKUP(O38,'Structure mapping'!AM:AQ,5,0)","v":{"$error":"#N/A"}},null,null,null,null,{"$f":"IF(Template!O50=\"\",\"\",Template!O50)","v":""},"Aug-24 pending entries",{"$f":"TEXT(Template!$B$9,\"mm/dd/yyy\")","v":"08/01/2024"},null,null,null,null,{"$f":"IF(Template!M50>0,Template!M50,-Template!N50)","v":0},null,null,null,{"$f":"VLOOKUP(G38,'Account mapping'!A:D,4,0)","v":{"$error":"#N/A"}}]
[{"$f":"LEFT(Template!A51,4)","v":""},{"$f":"VLOOKUP(A39,'Structure mapping'!K:V,7,0)","v":{"$error":"#N/A"}},{"$f":"LEFT(Template!B51,5)","v":""},{"$f":"VLOOKUP(C39,'Structure mapping'!F:J,5,0)","v":{"$error":"#N/A"}},{"$f":"LEFT(Template!C51,7)","v":""},{"$f":"VLOOKUP(E39,'Structure mapping'!A:E,5,0)","v":{"$error":"#N/A"}},{"$f":"LEFT(Template!D51,6)","v":""},{"$f":"VLOOKUP(G39,'Account mapping'!A:E,5,0)","v":{"$error":"#N/A"}},{"$f":"LEFT(Template!E51,2)","v":""},{"$f":"VLOOKUP(I39,'Structure mapping'!X:AB,5,0)","v":{"$error":"#N/A"}},{"$f":"LEFT(Template!F51,3)","v":""},{"$f":"VLOOKUP(K39,'Structure mapping'!AC:AG,5,0)","v":{"$error":"#N/A"}},{"$f":"LEFT(Template!G51,10)","v":""},{"$f":"VLOOKUP(M39,'Structure mapping'!AH:AL,5,0)","v":{"$error":"#N/A"}},{"$f":"LEFT(Template!H51,6)","v":""},{"$f":"VLOOKUP(O39,'Structure mapping'!AM:AQ,5,0)","v":{"$error":"#N/A"}},null,null,null,null,{"$f":"IF(Template!O51=\"\",\"\",Template!O51)","v":""},"Aug-24 pending entries",{"$f":"TEXT(Template!$B$9,\"mm/dd/yyy\")","v":"08/01/2024"},null,null,null,null,{"$f":"IF(Template!M51>0,Template!M51,-Template!N51)","v":0},null,null,null,{"$f":"VLOOKUP(G39,'Account mapping'!A:D,4,0)","v":{"$error":"#N/A"}}]
[{"$f":"LEFT(Template!A52,4)","v":""},{"$f":"VLOOKUP(A40,'Structure mapping'!K:V,7,0)","v":{"$error":"#N/A"}},{"$f":"LEFT(Template!B52,5)","v":""},{"$f":"VLOOKUP(C40,'Structure mapping'!F:J,5,0)","v":{"$error":"#N/A"}},{"$f":"LEFT(Template!C52,7)","v":""},{"$f":"VLOOKUP(E40,'Structure mapping'!A:E,5,0)","v":{"$error":"#N/A"}},{"$f":"LEFT(Template!D52,6)","v":""},{"$f":"VLOOKUP(G40,'Account mapping'!A:E,5,0)","v":{"$error":"#N/A"}},{"$f":"LEFT(Template!E52,2)","v":""},{"$f":"VLOOKUP(I40,'Structure mapping'!X:AB,5,0)","v":{"$error":"#N/A"}},{"$f":"LEFT(Template!F52,3)","v":""},{"$f":"VLOOKUP(K40,'Structure mapping'!AC:AG,5,0)","v":{"$error":"#N/A"}},{"$f":"LEFT(Template!G52,10)","v":""},{"$f":"VLOOKUP(M40,'Structure mapping'!AH:AL,5,0)","v":{"$error":"#N/A"}},{"$f":"LEFT(Template!H52,6)","v":""},{"$f":"VLOOKUP(O40,'Structure mapping'!AM:AQ,5,0)","v":{"$error":"#N/A"}},null,null,null,null,{"$f":"IF(Template!O52=\"\",\"\",Template!O52)","v":""},"Aug-24 pending entries",{"$f":"TEXT(Template!$B$9,\"mm/dd/yyy\")","v":"08/01/2024"},null,null,null,null,{"$f":"IF(Template!M52>0,Template!M52,-Template!N52)","v":0},null,null,null,{"$f":"VLOOKUP(G40,'Account mapping'!A:D,4,0)","v":{"$error":"#N/A"}}]
[{"$f":"LEFT(Template!A53,4)","v":""},{"$f":"VLOOKUP(A41,'Structure mapping'!K:V,7,0)","v":{"$error":"#N/A"}},{"$f":"LEFT(Template!B53,5)","v":""},{"$f":"VLOOKUP(C41,'Structure mapping'!F:J,5,0)","v":{"$error":"#N/A"}},{"$f":"LEFT(Template!C53,7)","v":""},{"$f":"VLOOKUP(E41,'Structure mapping'!A:E,5,0)","v":{"$error":"#N/A"}},{"$f":"LEFT(Template!D53,6)","v":""},{"$f":"VLOOKUP(G41,'Account mapping'!A:E,5,0)","v":{"$error":"#N/A"}},{"$f":"LEFT(Template!E53,2)","v":""},{"$f":"VLOOKUP(I41,'Structure mapping'!X:AB,5,0)","v":{"$error":"#N/A"}},{"$f":"LEFT(Template!F53,3)","v":""},{"$f":"VLOOKUP(K41,'Structure mapping'!AC:AG,5,0)","v":{"$error":"#N/A"}},{"$f":"LEFT(Template!G53,10)","v":""},{"$f":"VLOOKUP(M41,'Structure mapping'!AH:AL,5,0)","v":{"$error":"#N/A"}},{"$f":"LEFT(Template!H53,6)","v":""},{"$f":"VLOOKUP(O41,'Structure mapping'!AM:AQ,5,0)","v":{"$error":"#N/A"}},null,null,null,null,{"$f":"IF(Template!O53=\"\",\"\",Template!O53)","v":""},"Aug-24 pending entries",{"$f":"TEXT(Template!$B$9,\"mm/dd/yyy\")","v":"08/01/2024"},null,null,null,null,{"$f":"IF(Template!M53>0,Template!M53,-Template!N53)","v":0},null,null,null,{"$f":"VLOOKUP(G41,'Account mapping'!A:D,4,0)","v":{"$error":"#N/A"}}]
[{"$f":"LEFT(Template!A54,4)","v":""},{"$f":"VLOOKUP(A42,'Structure mapping'!K:V,7,0)","v":{"$error":"#N/A"}},{"$f":"LEFT(Template!B54,5)","v":""},{"$f":"VLOOKUP(C42,'Structure mapping'!F:J,5,0)","v":{"$error":"#N/A"}},{"$f":"LEFT(Template!C54,7)","v":""},{"$f":"VLOOKUP(E42,'Structure mapping'!A:E,5,0)","v":{"$error":"#N/A"}},{"$f":"LEFT(Template!D54,6)","v":""},{"$f":"VLOOKUP(G42,'Account mapping'!A:E,5,0)","v":{"$error":"#N/A"}},{"$f":"LEFT(Template!E54,2)","v":""},{"$f":"VLOOKUP(I42,'Structure mapping'!X:AB,5,0)","v":{"$error":"#N/A"}},{"$f":"LEFT(Template!F54,3)","v":""},{"$f":"VLOOKUP(K42,'Structure mapping'!AC:AG,5,0)","v":{"$error":"#N/A"}},{"$f":"LEFT(Template!G54,10)","v":""},{"$f":"VLOOKUP(M42,'Structure mapping'!AH:AL,5,0)","v":{"$error":"#N/A"}},{"$f":"LEFT(Template!H54,6)","v":""},{"$f":"VLOOKUP(O42,'Structure mapping'!AM:AQ,5,0)","v":{"$error":"#N/A"}},null,null,null,null,{"$f":"IF(Template!O54=\"\",\"\",Template!O54)","v":""},"Aug-24 pending entries",{"$f":"TEXT(Template!$B$9,\"mm/dd/yyy\")","v":"08/01/2024"},null,null,null,null,{"$f":"IF(Template!M54>0,Template!M54,-Template!N54)","v":0},null,null,null,{"$f":"VLOOKUP(G42,'Account mapping'!A:D,4,0)","v":{"$error":"#N/A"}}]
[{"$f":"LEFT(Template!A55,4)","v":""},{"$f":"VLOOKUP(A43,'Structure mapping'!K:V,7,0)","v":{"$error":"#N/A"}},{"$f":"LEFT(Template!B55,5)","v":""},{"$f":"VLOOKUP(C43,'Structure mapping'!F:J,5,0)","v":{"$error":"#N/A"}},{"$f":"LEFT(Template!C55,7)","v":""},{"$f":"VLOOKUP(E43,'Structure mapping'!A:E,5,0)","v":{"$error":"#N/A"}},{"$f":"LEFT(Template!D55,6)","v":""},{"$f":"VLOOKUP(G43,'Account mapping'!A:E,5,0)","v":{"$error":"#N/A"}},{"$f":"LEFT(Template!E55,2)","v":""},{"$f":"VLOOKUP(I43,'Structure mapping'!X:AB,5,0)","v":{"$error":"#N/A"}},{"$f":"LEFT(Template!F55,3)","v":""},{"$f":"VLOOKUP(K43,'Structure mapping'!AC:AG,5,0)","v":{"$error":"#N/A"}},{"$f":"LEFT(Template!G55,10)","v":""},{"$f":"VLOOKUP(M43,'Structure mapping'!AH:AL,5,0)","v":{"$error":"#N/A"}},{"$f":"LEFT(Template!H55,6)","v":""},{"$f":"VLOOKUP(O43,'Structure mapping'!AM:AQ,5,0)","v":{"$error":"#N/A"}},null,null,null,null,{"$f":"IF(Template!O55=\"\",\"\",Template!O55)","v":""},"Aug-24 pending entries",{"$f":"TEXT(Template!$B$9,\"mm/dd/yyy\")","v":"08/01/2024"},null,null,null,null,{"$f":"IF(Template!M55>0,Template!M55,-Template!N55)","v":0},null,null,null,{"$f":"VLOOKUP(G43,'Account mapping'!A:D,4,0)","v":{"$error":"#N/A"}}]
[{"$f":"LEFT(Template!A56,4)","v":""},{"$f":"VLOOKUP(A44,'Structure mapping'!K:V,7,0)","v":{"$error":"#N/A"}},{"$f":"LEFT(Template!B56,5)","v":""},{"$f":"VLOOKUP(C44,'Structure mapping'!F:J,5,0)","v":{"$error":"#N/A"}},{"$f":"LEFT(Template!C56,7)","v":""},{"$f":"VLOOKUP(E44,'Structure mapping'!A:E,5,0)","v":{"$error":"#N/A"}},{"$f":"LEFT(Template!D56,6)","v":""},{"$f":"VLOOKUP(G44,'Account mapping'!A:E,5,0)","v":{"$error":"#N/A"}},{"$f":"LEFT(Template!E56,2)","v":""},{"$f":"VLOOKUP(I44,'Structure mapping'!X:AB,5,0)","v":{"$error":"#N/A"}},{"$f":"LEFT(Template!F56,3)","v":""},{"$f":"VLOOKUP(K44,'Structure mapping'!AC:AG,5,0)","v":{"$error":"#N/A"}},{"$f":"LEFT(Template!G56,10)","v":""},{"$f":"VLOOKUP(M44,'Structure mapping'!AH:AL,5,0)","v":{"$error":"#N/A"}},{"$f":"LEFT(Template!H56,6)","v":""},{"$f":"VLOOKUP(O44,'Structure mapping'!AM:AQ,5,0)","v":{"$error":"#N/A"}},null,null,null,null,{"$f":"IF(Template!O56=\"\",\"\",Template!O56)","v":""},"Aug-24 pending entries",{"$f":"TEXT(Template!$B$9,\"mm/dd/yyy\")","v":"08/01/2024"},null,null,null,null,{"$f":"IF(Template!M56>0,Template!M56,-Template!N56)","v":0},null,null,null,{"$f":"VLOOKUP(G44,'Account mapping'!A:D,4,0)","v":{"$error":"#N/A"}}]
[{"$f":"LEFT(Template!A57,4)","v":""},{"$f":"VLOOKUP(A45,'Structure mapping'!K:V,7,0)","v":{"$error":"#N/A"}},{"$f":"LEFT(Template!B57,5)","v":""},{"$f":"VLOOKUP(C45,'Structure mapping'!F:J,5,0)","v":{"$error":"#N/A"}},{"$f":"LEFT(Template!C57,7)","v":""},{"$f":"VLOOKUP(E45,'Structure mapping'!A:E,5,0)","v":{"$error":"#N/A"}},{"$f":"LEFT(Template!D57,6)","v":""},{"$f":"VLOOKUP(G45,'Account mapping'!A:E,5,0)","v":{"$error":"#N/A"}},{"$f":"LEFT(Template!E57,2)","v":""},{"$f":"VLOOKUP(I45,'Structure mapping'!X:AB,5,0)","v":{"$error":"#N/A"}},{"$f":"LEFT(Template!F57,3)","v":""},{"$f":"VLOOKUP(K45,'Structure mapping'!AC:AG,5,0)","v":{"$error":"#N/A"}},{"$f":"LEFT(Template!G57,10)","v":""},{"$f":"VLOOKUP(M45,'Structure mapping'!AH:AL,5,0)","v":{"$error":"#N/A"}},{"$f":"LEFT(Template!H57,6)","v":""},{"$f":"VLOOKUP(O45,'Structure mapping'!AM:AQ,5,0)","v":{"$error":"#N/A"}},null,null,null,null,{"$f":"IF(Template!O57=\"\",\"\",Template!O57)","v":""},"Aug-24 pending entries",{"$f":"TEXT(Template!$B$9,\"mm/dd/yyy\")","v":"08/01/2024"},null,null,null,null,{"$f":"IF(Template!M57>0,Template!M57,-Template!N57)","v":0},null,null,null,{"$f":"VLOOKUP(G45,'Account mapping'!A:D,4,0)","v":{"$error":"#N/A"}}]
[{"$f":"LEFT(Template!A58,4)","v":""},{"$f":"VLOOKUP(A46,'Structure mapping'!K:V,7,0)","v":{"$error":"#N/A"}},{"$f":"LEFT(Template!B58,5)","v":""},{"$f":"VLOOKUP(C46,'Structure mapping'!F:J,5,0)","v":{"$error":"#N/A"}},{"$f":"LEFT(Template!C58,7)","v":""},{"$f":"VLOOKUP(E46,'Structure mapping'!A:E,5,0)","v":{"$error":"#N/A"}},{"$f":"LEFT(Template!D58,6)","v":""},{"$f":"VLOOKUP(G46,'Account mapping'!A:E,5,0)","v":{"$error":"#N/A"}},{"$f":"LEFT(Template!E58,2)","v":""},{"$f":"VLOOKUP(I46,'Structure mapping'!X:AB,5,0)","v":{"$error":"#N/A"}},{"$f":"LEFT(Template!F58,3)","v":""},{"$f":"VLOOKUP(K46,'Structure mapping'!AC:AG,5,0)","v":{"$error":"#N/A"}},{"$f":"LEFT(Template!G58,10)","v":""},{"$f":"VLOOKUP(M46,'Structure mapping'!AH:AL,5,0)","v":{"$error":"#N/A"}},{"$f":"LEFT(Template!H58,6)","v":""},{"$f":"VLOOKUP(O46,'Structure mapping'!AM:AQ,5,0)","v":{"$error":"#N/A"}},null,null,null,null,{"$f":"IF(Template!O58=\"\",\"\",Template!O58)","v":""},"Aug-24 pending entries",{"$f":"TEXT(Template!$B$9,\"mm/dd/yyy\")","v":"08/01/2024"},null,null,null,null,{"$f":"IF(Template!M58>0,Template!M58,-Template!N58)","v":0},null,null,null,{"$f":"VLOOKUP(G46,'Account mapping'!A:D,4,0)","v":{"$error":"#N/A"}}]
[{"$f":"LEFT(Template!A59,4)","v":""},{"$f":"VLOOKUP(A47,'Structure mapping'!K:V,7,0)","v":{"$error":"#N/A"}},{"$f":"LEFT(Template!B59,5)","v":""},{"$f":"VLOOKUP(C47,'Structure mapping'!F:J,5,0)","v":{"$error":"#N/A"}},{"$f":"LEFT(Template!C59,7)","v":""},{"$f":"VLOOKUP(E47,'Structure mapping'!A:E,5,0)","v":{"$error":"#N/A"}},{"$f":"LEFT(Template!D59,6)","v":""},{"$f":"VLOOKUP(G47,'Account mapping'!A:E,5,0)","v":{"$error":"#N/A"}},{"$f":"LEFT(Template!E59,2)","v":""},{"$f":"VLOOKUP(I47,'Structure mapping'!X:AB,5,0)","v":{"$error":"#N/A"}},{"$f":"LEFT(Template!F59,3)","v":""},{"$f":"VLOOKUP(K47,'Structure mapping'!AC:AG,5,0)","v":{"$error":"#N/A"}},{"$f":"LEFT(Template!G59,10)","v":""},{"$f":"VLOOKUP(M47,'Structure mapping'!AH:AL,5,0)","v":{"$error":"#N/A"}},{"$f":"LEFT(Template!H59,6)","v":""},{"$f":"VLOOKUP(O47,'Structure mapping'!AM:AQ,5,0)","v":{"$error":"#N/A"}},null,null,null,null,{"$f":"IF(Template!O59=\"\",\"\",Template!O59)","v":""},"Aug-24 pending entries",{"$f":"TEXT(Template!$B$9,\"mm/dd/yyy\")","v":"08/01/2024"},null,null,null,null,{"$f":"IF(Template!M59>0,Template!M59,-Template!N59)","v":0},null,null,null,{"$f":"VLOOKUP(G47,'Account mapping'!A:D,4,0)","v":{"$error":"#N/A"}}]
[{"$f":"LEFT(Template!A60,4)","v":""},{"$f":"VLOOKUP(A48,'Structure mapping'!K:V,7,0)","v":{"$error":"#N/A"}},{"$f":"LEFT(Template!B60,5)","v":""},{"$f":"VLOOKUP(C48,'Structure mapping'!F:J,5,0)","v":{"$error":"#N/A"}},{"$f":"LEFT(Template!C60,7)","v":""},{"$f":"VLOOKUP(E48,'Structure mapping'!A:E,5,0)","v":{"$error":"#N/A"}},{"$f":"LEFT(Template!D60,6)","v":""},{"$f":"VLOOKUP(G48,'Account mapping'!A:E,5,0)","v":{"$error":"#N/A"}},{"$f":"LEFT(Template!E60,2)","v":""},{"$f":"VLOOKUP(I48,'Structure mapping'!X:AB,5,0)","v":{"$error":"#N/A"}},{"$f":"LEFT(Template!F60,3)","v":""},{"$f":"VLOOKUP(K48,'Structure mapping'!AC:AG,5,0)","v":{"$error":"#N/A"}},{"$f":"LEFT(Template!G60,10)","v":""},{"$f":"VLOOKUP(M48,'Structure mapping'!AH:AL,5,0)","v":{"$error":"#N/A"}},{"$f":"LEFT(Template!H60,6)","v":""},{"$f":"VLOOKUP(O48,'Structure mapping'!AM:AQ,5,0)","v":{"$error":"#N/A"}},null,null,null,null,{"$f":"IF(Template!O60=\"\",\"\",Template!O60)","v":""},"Aug-24 pending entries",{"$f":"TEXT(Template!$B$9,\"mm/dd/yyy\")","v":"08/01/2024"},null,null,null,null,{"$f":"IF(Template!M60>0,Template!M60,-Template!N60)","v":0},null,null,null,{"$f":"VLOOKUP(G48,'Account mapping'!A:D,4,0)","v":{"$error":"#N/A"}}]
[{"$f":"LEFT(Template!A61,4)","v":""},{"$f":"VLOOKUP(A49,'Structure mapping'!K:V,7,0)","v":{"$error":"#N/A"}},{"$f":"LEFT(Template!B61,5)","v":""},{"$f":"VLOOKUP(C49,'Structure mapping'!F:J,5,0)","v":{"$error":"#N/A"}},{"$f":"LEFT(Template!C61,7)","v":""},{"$f":"VLOOKUP(E49,'Structure mapping'!A:E,5,0)","v":{"$error":"#N/A"}},{"$f":"LEFT(Template!D61,6)","v":""},{"$f":"VLOOKUP(G49,'Account mapping'!A:E,5,0)","v":{"$error":"#N/A"}},{"$f":"LEFT(Template!E61,2)","v":""},{"$f":"VLOOKUP(I49,'Structure mapping'!X:AB,5,0)","v":{"$error":"#N/A"}},{"$f":"LEFT(Template!F61,3)","v":""},{"$f":"VLOOKUP(K49,'Structure mapping'!AC:AG,5,0)","v":{"$error":"#N/A"}},{"$f":"LEFT(Template!G61,10)","v":""},{"$f":"VLOOKUP(M49,'Structure mapping'!AH:AL,5,0)","v":{"$error":"#N/A"}},{"$f":"LEFT(Template!H61,6)","v":""},{"$f":"VLOOKUP(O49,'Structure mapping'!AM:AQ,5,0)","v":{"$error":"#N/A"}},null,null,null,null,{"$f":"IF(Template!O61=\"\",\"\",Template!O61)","v":""},"Aug-24 pending entries",{"$f":"TEXT(Template!$B$9,\"mm/dd/yyy\")","v":"08/01/2024"},null,null,null,null,{"$f":"IF(Template!M61>0,Template!M61,-Template!N61)","v":0},null,null,null,{"$f":"VLOOKUP(G49,'Account mapping'!A:D,4,0)","v":{"$error":"#N/A"}}]
[{"$f":"LEFT(Template!A62,4)","v":""},{"$f":"VLOOKUP(A50,'Structure mapping'!K:V,7,0)","v":{"$error":"#N/A"}},{"$f":"LEFT(Template!B62,5)","v":""},{"$f":"VLOOKUP(C50,'Structure mapping'!F:J,5,0)","v":{"$error":"#N/A"}},{"$f":"LEFT(Template!C62,7)","v":""},{"$f":"VLOOKUP(E50,'Structure mapping'!A:E,5,0)","v":{"$error":"#N/A"}},{"$f":"LEFT(Template!D62,6)","v":""},{"$f":"VLOOKUP(G50,'Account mapping'!A:E,5,0)","v":{"$error":"#N/A"}},{"$f":"LEFT(Template!E62,2)","v":""},{"$f":"VLOOKUP(I50,'Structure mapping'!X:AB,5,0)","v":{"$error":"#N/A"}},{"$f":"LEFT(Template!F62,3)","v":""},{"$f":"VLOOKUP(K50,'Structure mapping'!AC:AG,5,0)","v":{"$error":"#N/A"}},{"$f":"LEFT(Template!G62,10)","v":""},{"$f":"VLOOKUP(M50,'Structure mapping'!AH:AL,5,0)","v":{"$error":"#N/A"}},{"$f":"LEFT(Template!H62,6)","v":""},{"$f":"VLOOKUP(O50,'Structure mapping'!AM:AQ,5,0)","v":{"$error":"#N/A"}},null,null,null,null,{"$f":"IF(Template!O62=\"\",\"\",Template!O62)","v":""},"Aug-24 pending entries",{"$f":"TEXT(Template!$B$9,\"mm/dd/yyy\")","v":"08/01/2024"},null,null,null,null,{"$f":"IF(Template!M62>0,Template!M62,-Template!N62)","v":0},null,null,null,{"$f":"VLOOKUP(G50,'Account mapping'!A:D,4,0)","v":{"$error":"#N/A"}}]
[{"$f":"LEFT(Template!A63,4)","v":""},{"$f":"VLOOKUP(A51,'Structure mapping'!K:V,7,0)","v":{"$error":"#N/A"}},{"$f":"LEFT(Template!B63,5)","v":""},{"$f":"VLOOKUP(C51,'Structure mapping'!F:J,5,0)","v":{"$error":"#N/A"}},{"$f":"LEFT(Template!C63,7)","v":""},{"$f":"VLOOKUP(E51,'Structure mapping'!A:E,5,0)","v":{"$error":"#N/A"}},{"$f":"LEFT(Template!D63,6)","v":""},{"$f":"VLOOKUP(G51,'Account mapping'!A:E,5,0)","v":{"$error":"#N/A"}},{"$f":"LEFT(Template!E63,2)","v":""},{"$f":"VLOOKUP(I51,'Structure mapping'!X:AB,5,0)","v":{"$error":"#N/A"}},{"$f":"LEFT(Template!F63,3)","v":""},{"$f":"VLOOKUP(K51,'Structure mapping'!AC:AG,5,0)","v":{"$error":"#N/A"}},{"$f":"LEFT(Template!G63,10)","v":""},{"$f":"VLOOKUP(M51,'Structure mapping'!AH:AL,5,0)","v":{"$error":"#N/A"}},{"$f":"LEFT(Template!H63,6)","v":""},{"$f":"VLOOKUP(O51,'Structure mapping'!AM:AQ,5,0)","v":{"$error":"#N/A"}},null,null,null,null,{"$f":"IF(Template!O63=\"\",\"\",Template!O63)","v":""},"Aug-24 pending entries",{"$f":"TEXT(Template!$B$9,\"mm/dd/yyy\")","v":"08/01/2024"},null,null,null,null,{"$f":"IF(Template!M63>0,Template!M63,-Template!N63)","v":0},null,null,null,{"$f":"VLOOKUP(G51,'Account mapping'!A:D,4,0)","v":{"$error":"#N/A"}}]
[{"$f":"LEFT(Template!A64,4)","v":""},{"$f":"VLOOKUP(A52,'Structure mapping'!K:V,7,0)","v":{"$error":"#N/A"}},{"$f":"LEFT(Template!B64,5)","v":""},{"$f":"VLOOKUP(C52,'Structure mapping'!F:J,5,0)","v":{"$error":"#N/A"}},{"$f":"LEFT(Template!C64,7)","v":""},{"$f":"VLOOKUP(E52,'Structure mapping'!A:E,5,0)","v":{"$error":"#N/A"}},{"$f":"LEFT(Template!D64,6)","v":""},{"$f":"VLOOKUP(G52,'Account mapping'!A:E,5,0)","v":{"$error":"#N/A"}},{"$f":"LEFT(Template!E64,2)","v":""},{"$f":"VLOOKUP(I52,'Structure mapping'!X:AB,5,0)","v":{"$error":"#N/A"}},{"$f":"LEFT(Template!F64,3)","v":""},{"$f":"VLOOKUP(K52,'Structure mapping'!AC:AG,5,0)","v":{"$error":"#N/A"}},{"$f":"LEFT(Template!G64,10)","v":""},{"$f":"VLOOKUP(M52,'Structure mapping'!AH:AL,5,0)","v":{"$error":"#N/A"}},{"$f":"LEFT(Template!H64,6)","v":""},{"$f":"VLOOKUP(O52,'Structure mapping'!AM:AQ,5,0)","v":{"$error":"#N/A"}},null,null,null,null,{"$f":"IF(Template!O64=\"\",\"\",Template!O64)","v":""},"Aug-24 pending entries",{"$f":"TEXT(Template!$B$9,\"mm/dd/yyy\")","v":"08/01/2024"},null,null,null,null,{"$f":"IF(Template!M64>0,Template!M64,-Template!N64)","v":0},null,null,null,{"$f":"VLOOKUP(G52,'Account mapping'!A:D,4,0)","v":{"$error":"#N/A"}}]
[{"$f":"LEFT(Template!A65,4)","v":""},{"$f":"VLOOKUP(A53,'Structure mapping'!K:V,7,0)","v":{"$error":"#N/A"}},{"$f":"LEFT(Template!B65,5)","v":""},{"$f":"VLOOKUP(C53,'Structure mapping'!F:J,5,0)","v":{"$error":"#N/A"}},{"$f":"LEFT(Template!C65,7)","v":""},{"$f":"VLOOKUP(E53,'Structure mapping'!A:E,5,0)","v":{"$error":"#N/A"}},{"$f":"LEFT(Template!D65,6)","v":""},{"$f":"VLOOKUP(G53,'Account mapping'!A:E,5,0)","v":{"$error":"#N/A"}},{"$f":"LEFT(Template!E65,2)","v":""},{"$f":"VLOOKUP(I53,'Structure mapping'!X:AB,5,0)","v":{"$error":"#N/A"}},{"$f":"LEFT(Template!F65,3)","v":""},{"$f":"VLOOKUP(K53,'Structure mapping'!AC:AG,5,0)","v":{"$error":"#N/A"}},{"$f":"LEFT(Template!G65,10)","v":""},{"$f":"VLOOKUP(M53,'Structure mapping'!AH:AL,5,0)","v":{"$error":"#N/A"}},{"$f":"LEFT(Template!H65,6)","v":""},{"$f":"VLOOKUP(O53,'Structure mapping'!AM:AQ,5,0)","v":{"$error":"#N/A"}},null,null,null,null,{"$f":"IF(Template!O65=\"\",\"\",Template!O65)","v":""},"Aug-24 pending entries",{"$f":"TEXT(Template!$B$9,\"mm/dd/yyy\")","v":"08/01/2024"},null,null,null,null,{"$f":"IF(Template!M65>0,Template!M65,-Template!N65)","v":0},null,null,null,{"$f":"VLOOKUP(G53,'Account mapping'!A:D,4,0)","v":{"$error":"#N/A"}}]
[{"$f":"LEFT(Template!A66,4)","v":""},{"$f":"VLOOKUP(A54,'Structure mapping'!K:V,7,0)","v":{"$error":"#N/A"}},{"$f":"LEFT(Template!B66,5)","v":""},{"$f":"VLOOKUP(C54,'Structure mapping'!F:J,5,0)","v":{"$error":"#N/A"}},{"$f":"LEFT(Template!C66,7)","v":""},{"$f":"VLOOKUP(E54,'Structure mapping'!A:E,5,0)","v":{"$error":"#N/A"}},{"$f":"LEFT(Template!D66,6)","v":""},{"$f":"VLOOKUP(G54,'Account mapping'!A:E,5,0)","v":{"$error":"#N/A"}},{"$f":"LEFT(Template!E66,2)","v":""},{"$f":"VLOOKUP(I54,'Structure mapping'!X:AB,5,0)","v":{"$error":"#N/A"}},{"$f":"LEFT(Template!F66,3)","v":""},{"$f":"VLOOKUP(K54,'Structure mapping'!AC:AG,5,0)","v":{"$error":"#N/A"}},{"$f":"LEFT(Template!G66,10)","v":""},{"$f":"VLOOKUP(M54,'Structure mapping'!AH:AL,5,0)","v":{"$error":"#N/A"}},{"$f":"LEFT(Template!H66,6)","v":""},{"$f":"VLOOKUP(O54,'Structure mapping'!AM:AQ,5,0)","v":{"$error":"#N/A"}},null,null,null,null,{"$f":"IF(Template!O66=\"\",\"\",Template!O66)","v":""},"Aug-24 pending entries",{"$f":"TEXT(Template!$B$9,\"mm/dd/yyy\")","v":"08/01/2024"},null,null,null,null,{"$f":"IF(Template!M66>0,Template!M66,-Template!N66)","v":0},null,null,null,{"$f":"VLOOKUP(G54,'Account mapping'!A:D,4,0)","v":{"$error":"#N/A"}}]
[{"$f":"LEFT(Template!A67,4)","v":""},{"$f":"VLOOKUP(A55,'Structure mapping'!K:V,7,0)","v":{"$error":"#N/A"}},{"$f":"LEFT(Template!B67,5)","v":""},{"$f":"VLOOKUP(C55,'Structure mapping'!F:J,5,0)","v":{"$error":"#N/A"}},{"$f":"LEFT(Template!C67,7)","v":""},{"$f":"VLOOKUP(E55,'Structure mapping'!A:E,5,0)","v":{"$error":"#N/A"}},{"$f":"LEFT(Template!D67,6)","v":""},{"$f":"VLOOKUP(G55,'Account mapping'!A:E,5,0)","v":{"$error":"#N/A"}},{"$f":"LEFT(Template!E67,2)","v":""},{"$f":"VLOOKUP(I55,'Structure mapping'!X:AB,5,0)","v":{"$error":"#N/A"}},{"$f":"LEFT(Template!F67,3)","v":""},{"$f":"VLOOKUP(K55,'Structure mapping'!AC:AG,5,0)","v":{"$error":"#N/A"}},{"$f":"LEFT(Template!G67,10)","v":""},{"$f":"VLOOKUP(M55,'Structure mapping'!AH:AL,5,0)","v":{"$error":"#N/A"}},{"$f":"LEFT(Template!H67,6)","v":""},{"$f":"VLOOKUP(O55,'Structure mapping'!AM:AQ,5,0)","v":{"$error":"#N/A"}},null,null,null,null,{"$f":"IF(Template!O67=\"\",\"\",Template!O67)","v":""},"Aug-24 pending entries",{"$f":"TEXT(Template!$B$9,\"mm/dd/yyy\")","v":"08/01/2024"},null,null,null,null,{"$f":"IF(Template!M67>0,Template!M67,-Template!N67)","v":0},null,null,null,{"$f":"VLOOKUP(G55,'Account mapping'!A:D,4,0)","v":{"$error":"#N/A"}}]
[{"$f":"LEFT(Template!A68,4)","v":""},{"$f":"VLOOKUP(A56,'Structure mapping'!K:V,7,0)","v":{"$error":"#N/A"}},{"$f":"LEFT(Template!B68,5)","v":""},{"$f":"VLOOKUP(C56,'Structure mapping'!F:J,5,0)","v":{"$error":"#N/A"}},{"$f":"LEFT(Template!C68,7)","v":""},{"$f":"VLOOKUP(E56,'Structure mapping'!A:E,5,0)","v":{"$error":"#N/A"}},{"$f":"LEFT(Template!D68,6)","v":""},{"$f":"VLOOKUP(G56,'Account mapping'!A:E,5,0)","v":{"$error":"#N/A"}},{"$f":"LEFT(Template!E68,2)","v":""},{"$f":"VLOOKUP(I56,'Structure mapping'!X:AB,5,0)","v":{"$error":"#N/A"}},{"$f":"LEFT(Template!F68,3)","v":""},{"$f":"VLOOKUP(K56,'Structure mapping'!AC:AG,5,0)","v":{"$error":"#N/A"}},{"$f":"LEFT(Template!G68,10)","v":""},{"$f":"VLOOKUP(M56,'Structure mapping'!AH:AL,5,0)","v":{"$error":"#N/A"}},{"$f":"LEFT(Template!H68,6)","v":""},{"$f":"VLOOKUP(O56,'Structure mapping'!AM:AQ,5,0)","v":{"$error":"#N/A"}},null,null,null,null,{"$f":"IF(Template!O68=\"\",\"\",Template!O68)","v":""},"Aug-24 pending entries",{"$f":"TEXT(Template!$B$9,\"mm/dd/yyy\")","v":"08/01/2024"},null,null,null,null,{"$f":"IF(Template!M68>0,Template!M68,-Template!N68)","v":0},null,null,null,{"$f":"VLOOKUP(G56,'Account mapping'!A:D,4,0)","v":{"$error":"#N/A"}}]
[{"$f":"LEFT(Template!A69,4)","v":""},{"$f":"VLOOKUP(A57,'Structure mapping'!K:V,7,0)","v":{"$error":"#N/A"}},{"$f":"LEFT(Template!B69,5)","v":""},{"$f":"VLOOKUP(C57,'Structure mapping'!F:J,5,0)","v":{"$error":"#N/A"}},{"$f":"LEFT(Template!C69,7)","v":""},{"$f":"VLOOKUP(E57,'Structure mapping'!A:E,5,0)","v":{"$error":"#N/A"}},{"$f":"LEFT(Template!D69,6)","v":""},{"$f":"VLOOKUP(G57,'Account mapping'!A:E,5,0)","v":{"$error":"#N/A"}},{"$f":"LEFT(Template!E69,2)","v":""},{"$f":"VLOOKUP(I57,'Structure mapping'!X:AB,5,0)","v":{"$error":"#N/A"}},{"$f":"LEFT(Template!F69,3)","v":""},{"$f":"VLOOKUP(K57,'Structure mapping'!AC:AG,5,0)","v":{"$error":"#N/A"}},{"$f":"LEFT(Template!G69,10)","v":""},{"$f":"VLOOKUP(M57,'Structure mapping'!AH:AL,5,0)","v":{"$error":"#N/A"}},{"$f":"LEFT(Template!H69,6)","v":""},{"$f":"VLOOKUP(O57,'Structure mapping'!AM:AQ,5,0)","v":{"$error":"#N/A"}},null,null,null,null,{"$f":"IF(Template!O69=\"\",\"\",Template!O69)","v":""},"Aug-24 pending entries",{"$f":"TEXT(Template!$B$9,\"mm/dd/yyy\")","v":"08/01/2024"},null,null,null,null,{"$f":"IF(Template!M69>0,Template!M69,-Template!N69)","v":0},null,null,null,{"$f":"VLOOKUP(G57,'Account mapping'!A:D,4,0)","v":{"$error":"#N/A"}}]
[{"$f":"LEFT(Template!A70,4)","v":""},{"$f":"VLOOKUP(A58,'Structure mapping'!K:V,7,0)","v":{"$error":"#N/A"}},{"$f":"LEFT(Template!B70,5)","v":""},{"$f":"VLOOKUP(C58,'Structure mapping'!F:J,5,0)","v":{"$error":"#N/A"}},{"$f":"LEFT(Template!C70,7)","v":""},{"$f":"VLOOKUP(E58,'Structure mapping'!A:E,5,0)","v":{"$error":"#N/A"}},{"$f":"LEFT(Template!D70,6)","v":""},{"$f":"VLOOKUP(G58,'Account mapping'!A:E,5,0)","v":{"$error":"#N/A"}},{"$f":"LEFT(Template!E70,2)","v":""},{"$f":"VLOOKUP(I58,'Structure mapping'!X:AB,5,0)","v":{"$error":"#N/A"}},{"$f":"LEFT(Template!F70,3)","v":""},{"$f":"VLOOKUP(K58,'Structure mapping'!AC:AG,5,0)","v":{"$error":"#N/A"}},{"$f":"LEFT(Template!G70,10)","v":""},{"$f":"VLOOKUP(M58,'Structure mapping'!AH:AL,5,0)","v":{"$error":"#N/A"}},{"$f":"LEFT(Template!H70,6)","v":""},{"$f":"VLOOKUP(O58,'Structure mapping'!AM:AQ,5,0)","v":{"$error":"#N/A"}},null,null,null,null,{"$f":"IF(Template!O70=\"\",\"\",Template!O70)","v":""},"Aug-24 pending entries",{"$f":"TEXT(Template!$B$9,\"mm/dd/yyy\")","v":"08/01/2024"},null,null,null,null,{"$f":"IF(Template!M70>0,Template!M70,-Template!N70)","v":0},null,null,null,{"$f":"VLOOKUP(G58,'Account mapping'!A:D,4,0)","v":{"$error":"#N/A"}}]
[{"$f":"LEFT(Template!A71,4)","v":""},{"$f":"VLOOKUP(A59,'Structure mapping'!K:V,7,0)","v":{"$error":"#N/A"}},{"$f":"LEFT(Template!B71,5)","v":""},{"$f":"VLOOKUP(C59,'Structure mapping'!F:J,5,0)","v":{"$error":"#N/A"}},{"$f":"LEFT(Template!C71,7)","v":""},{"$f":"VLOOKUP(E59,'Structure mapping'!A:E,5,0)","v":{"$error":"#N/A"}},{"$f":"LEFT(Template!D71,6)","v":""},{"$f":"VLOOKUP(G59,'Account mapping'!A:E,5,0)","v":{"$error":"#N/A"}},{"$f":"LEFT(Template!E71,2)","v":""},{"$f":"VLOOKUP(I59,'Structure mapping'!X:AB,5,0)","v":{"$error":"#N/A"}},{"$f":"LEFT(Template!F71,3)","v":""},{"$f":"VLOOKUP(K59,'Structure mapping'!AC:AG,5,0)","v":{"$error":"#N/A"}},{"$f":"LEFT(Template!G71,10)","v":""},{"$f":"VLOOKUP(M59,'Structure mapping'!AH:AL,5,0)","v":{"$error":"#N/A"}},{"$f":"LEFT(Template!H71,6)","v":""},{"$f":"VLOOKUP(O59,'Structure mapping'!AM:AQ,5,0)","v":{"$error":"#N/A"}},null,null,null,null,{"$f":"IF(Template!O71=\"\",\"\",Template!O71)","v":""},"Aug-24 pending entries",{"$f":"TEXT(Template!$B$9,\"mm/dd/yyy\")","v":"08/01/2024"},null,null,null,null,{"$f":"IF(Template!M71>0,Template!M71,-Template!N71)","v":0},null,null,null,{"$f":"VLOOKUP(G59,'Account mapping'!A:D,4,0)","v":{"$error":"#N/A"}}]
[{"$f":"LEFT(Template!A72,4)","v":""},{"$f":"VLOOKUP(A60,'Structure mapping'!K:V,7,0)","v":{"$error":"#N/A"}},{"$f":"LEFT(Template!B72,5)","v":""},{"$f":"VLOOKUP(C60,'Structure mapping'!F:J,5,0)","v":{"$error":"#N/A"}},{"$f":"LEFT(Template!C72,7)","v":""},{"$f":"VLOOKUP(E60,'Structure mapping'!A:E,5,0)","v":{"$error":"#N/A"}},{"$f":"LEFT(Template!D72,6)","v":""},{"$f":"VLOOKUP(G60,'Account mapping'!A:E,5,0)","v":{"$error":"#N/A"}},{"$f":"LEFT(Template!E72,2)","v":""},{"$f":"VLOOKUP(I60,'Structure mapping'!X:AB,5,0)","v":{"$error":"#N/A"}},{"$f":"LEFT(Template!F72,3)","v":""},{"$f":"VLOOKUP(K60,'Structure mapping'!AC:AG,5,0)","v":{"$error":"#N/A"}},{"$f":"LEFT(Template!G72,10)","v":""},{"$f":"VLOOKUP(M60,'Structure mapping'!AH:AL,5,0)","v":{"$error":"#N/A"}},{"$f":"LEFT(Template!H72,6)","v":""},{"$f":"VLOOKUP(O60,'Structure mapping'!AM:AQ,5,0)","v":{"$error":"#N/A"}},null,null,null,null,{"$f":"IF(Template!O72=\"\",\"\",Template!O72)","v":""},"Aug-24 pending entries",{"$f":"TEXT(Template!$B$9,\"mm/dd/yyy\")","v":"08/01/2024"},null,null,null,null,{"$f":"IF(Template!M72>0,Template!M72,-Template!N72)","v":0},null,null,null,{"$f":"VLOOKUP(G60,'Account mapping'!A:D,4,0)","v":{"$error":"#N/A"}}]
[{"$f":"LEFT(Template!A73,4)","v":""},{"$f":"VLOOKUP(A61,'Structure mapping'!K:V,7,0)","v":{"$error":"#N/A"}},{"$f":"LEFT(Template!B73,5)","v":""},{"$f":"VLOOKUP(C61,'Structure mapping'!F:J,5,0)","v":{"$error":"#N/A"}},{"$f":"LEFT(Template!C73,7)","v":""},{"$f":"VLOOKUP(E61,'Structure mapping'!A:E,5,0)","v":{"$error":"#N/A"}},{"$f":"LEFT(Template!D73,6)","v":""},{"$f":"VLOOKUP(G61,'Account mapping'!A:E,5,0)","v":{"$error":"#N/A"}},{"$f":"LEFT(Template!E73,2)","v":""},{"$f":"VLOOKUP(I61,'Structure mapping'!X:AB,5,0)","v":{"$error":"#N/A"}},{"$f":"LEFT(Template!F73,3)","v":""},{"$f":"VLOOKUP(K61,'Structure mapping'!AC:AG,5,0)","v":{"$error":"#N/A"}},{"$f":"LEFT(Template!G73,10)","v":""},{"$f":"VLOOKUP(M61,'Structure mapping'!AH:AL,5,0)","v":{"$error":"#N/A"}},{"$f":"LEFT(Template!H73,6)","v":""},{"$f":"VLOOKUP(O61,'Structure mapping'!AM:AQ,5,0)","v":{"$error":"#N/A"}},null,null,null,null,{"$f":"IF(Template!O73=\"\",\"\",Template!O73)","v":""},"Aug-24 pending entries",{"$f":"TEXT(Template!$B$9,\"mm/dd/yyy\")","v":"08/01/2024"},null,null,null,null,{"$f":"IF(Template!M73>0,Template!M73,-Template!N73)","v":0},null,null,null,{"$f":"VLOOKUP(G61,'Account mapping'!A:D,4,0)","v":{"$error":"#N/A"}}]
[{"$f":"LEFT(Template!A74,4)","v":""},{"$f":"VLOOKUP(A62,'Structure mapping'!K:V,7,0)","v":{"$error":"#N/A"}},{"$f":"LEFT(Template!B74,5)","v":""},{"$f":"VLOOKUP(C62,'Structure mapping'!F:J,5,0)","v":{"$error":"#N/A"}},{"$f":"LEFT(Template!C74,7)","v":""},{"$f":"VLOOKUP(E62,'Structure mapping'!A:E,5,0)","v":{"$error":"#N/A"}},{"$f":"LEFT(Template!D74,6)","v":""},{"$f":"VLOOKUP(G62,'Account mapping'!A:E,5,0)","v":{"$error":"#N/A"}},{"$f":"LEFT(Template!E74,2)","v":""},{"$f":"VLOOKUP(I62,'Structure mapping'!X:AB,5,0)","v":{"$error":"#N/A"}},{"$f":"LEFT(Template!F74,3)","v":""},{"$f":"VLOOKUP(K62,'Structure mapping'!AC:AG,5,0)","v":{"$error":"#N/A"}},{"$f":"LEFT(Template!G74,10)","v":""},{"$f":"VLOOKUP(M62,'Structure mapping'!AH:AL,5,0)","v":{"$error":"#N/A"}},{"$f":"LEFT(Template!H74,6)","v":""},{"$f":"VLOOKUP(O62,'Structure mapping'!AM:AQ,5,0)","v":{"$error":"#N/A"}},null,null,null,null,{"$f":"IF(Template!O74=\"\",\"\",Template!O74)","v":""},"Aug-24 pending entries",{"$f":"TEXT(Template!$B$9,\"mm/dd/yyy\")","v":"08/01/2024"},null,null,null,null,{"$f":"IF(Template!M74>0,Template!M74,-Template!N74)","v":0},null,null,null,{"$f":"VLOOKUP(G62,'Account mapping'!A:D,4,0)","v":{"$error":"#N/A"}}]
[{"$f":"LEFT(Template!A75,4)","v":""},{"$f":"VLOOKUP(A63,'Structure mapping'!K:V,7,0)","v":{"$error":"#N/A"}},{"$f":"LEFT(Template!B75,5)","v":""},{"$f":"VLOOKUP(C63,'Structure mapping'!F:J,5,0)","v":{"$error":"#N/A"}},{"$f":"LEFT(Template!C75,7)","v":""},{"$f":"VLOOKUP(E63,'Structure mapping'!A:E,5,0)","v":{"$error":"#N/A"}},{"$f":"LEFT(Template!D75,6)","v":""},{"$f":"VLOOKUP(G63,'Account mapping'!A:E,5,0)","v":{"$error":"#N/A"}},{"$f":"LEFT(Template!E75,2)","v":""},{"$f":"VLOOKUP(I63,'Structure mapping'!X:AB,5,0)","v":{"$error":"#N/A"}},{"$f":"LEFT(Template!F75,3)","v":""},{"$f":"VLOOKUP(K63,'Structure mapping'!AC:AG,5,0)","v":{"$error":"#N/A"}},{"$f":"LEFT(Template!G75,10)","v":""},{"$f":"VLOOKUP(M63,'Structure mapping'!AH:AL,5,0)","v":{"$error":"#N/A"}},{"$f":"LEFT(Template!H75,6)","v":""},{"$f":"VLOOKUP(O63,'Structure mapping'!AM:AQ,5,0)","v":{"$error":"#N/A"}},null,null,null,null,{"$f":"IF(Template!O75=\"\",\"\",Template!O75)","v":""},"Aug-24 pending entries",{"$f":"TEXT(Template!$B$9,\"mm/dd/yyy\")","v":"08/01/2024"},null,null,null,null,{"$f":"IF(Template!M75>0,Template!M75,-Template!N75)","v":0},null,null,null,{"$f":"VLOOKUP(G63,'Account mapping'!A:D,4,0)","v":{"$error":"#N/A"}}]
[{"$f":"LEFT(Template!A76,4)","v":""},{"$f":"VLOOKUP(A64,'Structure mapping'!K:V,7,0)","v":{"$error":"#N/A"}},{"$f":"LEFT(Template!B76,5)","v":""},{"$f":"VLOOKUP(C64,'Structure mapping'!F:J,5,0)","v":{"$error":"#N/A"}},{"$f":"LEFT(Template!C76,7)","v":""},{"$f":"VLOOKUP(E64,'Structure mapping'!A:E,5,0)","v":{"$error":"#N/A"}},{"$f":"LEFT(Template!D76,6)","v":""},{"$f":"VLOOKUP(G64,'Account mapping'!A:E,5,0)","v":{"$error":"#N/A"}},{"$f":"LEFT(Template!E76,2)","v":""},{"$f":"VLOOKUP(I64,'Structure mapping'!X:AB,5,0)","v":{"$error":"#N/A"}},{"$f":"LEFT(Template!F76,3)","v":""},{"$f":"VLOOKUP(K64,'Structure mapping'!AC:AG,5,0)","v":{"$error":"#N/A"}},{"$f":"LEFT(Template!G76,10)","v":""},{"$f":"VLOOKUP(M64,'Structure mapping'!AH:AL,5,0)","v":{"$error":"#N/A"}},{"$f":"LEFT(Template!H76,6)","v":""},{"$f":"VLOOKUP(O64,'Structure mapping'!AM:AQ,5,0)","v":{"$error":"#N/A"}},null,null,null,null,{"$f":"IF(Template!O76=\"\",\"\",Template!O76)","v":""},"Aug-24 pending entries",{"$f":"TEXT(Template!$B$9,\"mm/dd/yyy\")","v":"08/01/2024"},null,null,null,null,{"$f":"IF(Template!M76>0,Template!M76,-Template!N76)","v":0},null,null,null,{"$f":"VLOOKUP(G64,'Account mapping'!A:D,4,0)","v":{"$error":"#N/A"}}]
[{"$f":"LEFT(Template!A77,4)","v":""},{"$f":"VLOOKUP(A65,'Structure mapping'!K:V,7,0)","v":{"$error":"#N/A"}},{"$f":"LEFT(Template!B77,5)","v":""},{"$f":"VLOOKUP(C65,'Structure mapping'!F:J,5,0)","v":{"$error":"#N/A"}},{"$f":"LEFT(Template!C77,7)","v":""},{"$f":"VLOOKUP(E65,'Structure mapping'!A:E,5,0)","v":{"$error":"#N/A"}},{"$f":"LEFT(Template!D77,6)","v":""},{"$f":"VLOOKUP(G65,'Account mapping'!A:E,5,0)","v":{"$error":"#N/A"}},{"$f":"LEFT(Template!E77,2)","v":""},{"$f":"VLOOKUP(I65,'Structure mapping'!X:AB,5,0)","v":{"$error":"#N/A"}},{"$f":"LEFT(Template!F77,3)","v":""},{"$f":"VLOOKUP(K65,'Structure mapping'!AC:AG,5,0)","v":{"$error":"#N/A"}},{"$f":"LEFT(Template!G77,10)","v":""},{"$f":"VLOOKUP(M65,'Structure mapping'!AH:AL,5,0)","v":{"$error":"#N/A"}},{"$f":"LEFT(Template!H77,6)","v":""},{"$f":"VLOOKUP(O65,'Structure mapping'!AM:AQ,5,0)","v":{"$error":"#N/A"}},null,null,null,null,{"$f":"IF(Template!O77=\"\",\"\",Template!O77)","v":""},"Aug-24 pending entries",{"$f":"TEXT(Template!$B$9,\"mm/dd/yyy\")","v":"08/01/2024"},null,null,null,null,{"$f":"IF(Template!M77>0,Template!M77,-Template!N77)","v":0},null,null,null,{"$f":"VLOOKUP(G65,'Account mapping'!A:D,4,0)","v":{"$error":"#N/A"}}]
[{"$f":"LEFT(Template!A78,4)","v":""},{"$f":"VLOOKUP(A66,'Structure mapping'!K:V,7,0)","v":{"$error":"#N/A"}},{"$f":"LEFT(Template!B78,5)","v":""},{"$f":"VLOOKUP(C66,'Structure mapping'!F:J,5,0)","v":{"$error":"#N/A"}},{"$f":"LEFT(Template!C78,7)","v":""},{"$f":"VLOOKUP(E66,'Structure mapping'!A:E,5,0)","v":{"$error":"#N/A"}},{"$f":"LEFT(Template!D78,6)","v":""},{"$f":"VLOOKUP(G66,'Account mapping'!A:E,5,0)","v":{"$error":"#N/A"}},{"$f":"LEFT(Template!E78,2)","v":""},{"$f":"VLOOKUP(I66,'Structure mapping'!X:AB,5,0)","v":{"$error":"#N/A"}},{"$f":"LEFT(Template!F78,3)","v":""},{"$f":"VLOOKUP(K66,'Structure mapping'!AC:AG,5,0)","v":{"$error":"#N/A"}},{"$f":"LEFT(Template!G78,10)","v":""},{"$f":"VLOOKUP(M66,'Structure mapping'!AH:AL,5,0)","v":{"$error":"#N/A"}},{"$f":"LEFT(Template!H78,6)","v":""},{"$f":"VLOOKUP(O66,'Structure mapping'!AM:AQ,5,0)","v":{"$error":"#N/A"}},null,null,null,null,{"$f":"IF(Template!O78=\"\",\"\",Template!O78)","v":""},"Aug-24 pending entries",{"$f":"TEXT(Template!$B$9,\"mm/dd/yyy\")","v":"08/01/2024"},null,null,null,null,{"$f":"IF(Template!M78>0,Template!M78,-Template!N78)","v":0},null,null,null,{"$f":"VLOOKUP(G66,'Account mapping'!A:D,4,0)","v":{"$error":"#N/A"}}]
[{"$f":"LEFT(Template!A79,4)","v":""},{"$f":"VLOOKUP(A67,'Structure mapping'!K:V,7,0)","v":{"$error":"#N/A"}},{"$f":"LEFT(Template!B79,5)","v":""},{"$f":"VLOOKUP(C67,'Structure mapping'!F:J,5,0)","v":{"$error":"#N/A"}},{"$f":"LEFT(Template!C79,7)","v":""},{"$f":"VLOOKUP(E67,'Structure mapping'!A:E,5,0)","v":{"$error":"#N/A"}},{"$f":"LEFT(Template!D79,6)","v":""},{"$f":"VLOOKUP(G67,'Account mapping'!A:E,5,0)","v":{"$error":"#N/A"}},{"$f":"LEFT(Template!E79,2)","v":""},{"$f":"VLOOKUP(I67,'Structure mapping'!X:AB,5,0)","v":{"$error":"#N/A"}},{"$f":"LEFT(Template!F79,3)","v":""},{"$f":"VLOOKUP(K67,'Structure mapping'!AC:AG,5,0)","v":{"$error":"#N/A"}},{"$f":"LEFT(Template!G79,10)","v":""},{"$f":"VLOOKUP(M67,'Structure mapping'!AH:AL,5,0)","v":{"$error":"#N/A"}},{"$f":"LEFT(Template!H79,6)","v":""},{"$f":"VLOOKUP(O67,'Structure mapping'!AM:AQ,5,0)","v":{"$error":"#N/A"}},null,null,null,null,{"$f":"IF(Template!O79=\"\",\"\",Template!O79)","v":""},{"$f":"TEXT(W67,\"mmm-yy\")&\" pending entries\"","v":"Aug-24 pending entries"},{"$f":"TEXT(Template!$B$9,\"mm/dd/yyy\")","v":"08/01/2024"},null,null,null,null,{"$f":"IF(Template!M79>0,Template!M79,-Template!N79)","v":0},null,null,null,{"$f":"VLOOKUP(G67,'Account mapping'!A:D,4,0)","v":{"$error":"#N/A"}}]
[{"$f":"LEFT(Template!A80,4)","v":""},{"$f":"VLOOKUP(A68,'Structure mapping'!K:V,7,0)","v":{"$error":"#N/A"}},{"$f":"LEFT(Template!B80,5)","v":""},{"$f":"VLOOKUP(C68,'Structure mapping'!F:J,5,0)","v":{"$error":"#N/A"}},{"$f":"LEFT(Template!C80,7)","v":""},{"$f":"VLOOKUP(E68,'Structure mapping'!A:E,5,0)","v":{"$error":"#N/A"}},{"$f":"LEFT(Template!D80,6)","v":""},{"$f":"VLOOKUP(G68,'Account mapping'!A:E,5,0)","v":{"$error":"#N/A"}},{"$f":"LEFT(Template!E80,2)","v":""},{"$f":"VLOOKUP(I68,'Structure mapping'!X:AB,5,0)","v":{"$error":"#N/A"}},{"$f":"LEFT(Template!F80,3)","v":""},{"$f":"VLOOKUP(K68,'Structure mapping'!AC:AG,5,0)","v":{"$error":"#N/A"}},{"$f":"LEFT(Template!G80,10)","v":""},{"$f":"VLOOKUP(M68,'Structure mapping'!AH:AL,5,0)","v":{"$error":"#N/A"}},{"$f":"LEFT(Template!H80,6)","v":""},{"$f":"VLOOKUP(O68,'Structure mapping'!AM:AQ,5,0)","v":{"$error":"#N/A"}},null,null,null,null,{"$f":"IF(Template!O80=\"\",\"\",Template!O80)","v":""},"Aug-24 pending entries",{"$f":"TEXT(Template!$B$9,\"mm/dd/yyy\")","v":"08/01/2024"},null,null,null,null,{"$f":"IF(Template!M80>0,Template!M80,-Template!N80)","v":0},null,null,null,{"$f":"VLOOKUP(G68,'Account mapping'!A:D,4,0)","v":{"$error":"#N/A"}}]
[{"$f":"LEFT(Template!A81,4)","v":""},{"$f":"VLOOKUP(A69,'Structure mapping'!K:V,7,0)","v":{"$error":"#N/A"}},{"$f":"LEFT(Template!B81,5)","v":""},{"$f":"VLOOKUP(C69,'Structure mapping'!F:J,5,0)","v":{"$error":"#N/A"}},{"$f":"LEFT(Template!C81,7)","v":""},{"$f":"VLOOKUP(E69,'Structure mapping'!A:E,5,0)","v":{"$error":"#N/A"}},{"$f":"LEFT(Template!D81,6)","v":""},{"$f":"VLOOKUP(G69,'Account mapping'!A:E,5,0)","v":{"$error":"#N/A"}},{"$f":"LEFT(Template!E81,2)","v":""},{"$f":"VLOOKUP(I69,'Structure mapping'!X:AB,5,0)","v":{"$error":"#N/A"}},{"$f":"LEFT(Template!F81,3)","v":""},{"$f":"VLOOKUP(K69,'Structure mapping'!AC:AG,5,0)","v":{"$error":"#N/A"}},{"$f":"LEFT(Template!G81,10)","v":""},{"$f":"VLOOKUP(M69,'Structure mapping'!AH:AL,5,0)","v":{"$error":"#N/A"}},{"$f":"LEFT(Template!H81,6)","v":""},{"$f":"VLOOKUP(O69,'Structure mapping'!AM:AQ,5,0)","v":{"$error":"#N/A"}},null,null,null,null,{"$f":"IF(Template!O81=\"\",\"\",Template!O81)","v":""},"Aug-24 pending entries",{"$f":"TEXT(Template!$B$9,\"mm/dd/yyy\")","v":"08/01/2024"},null,null,null,null,{"$f":"IF(Template!M81>0,Template!M81,-Template!N81)","v":0},null,null,null,{"$f":"VLOOKUP(G69,'Account mapping'!A:D,4,0)","v":{"$error":"#N/A"}}]
[{"$f":"LEFT(Template!A82,4)","v":""},{"$f":"VLOOKUP(A70,'Structure mapping'!K:V,7,0)","v":{"$error":"#N/A"}},{"$f":"LEFT(Template!B82,5)","v":""},{"$f":"VLOOKUP(C70,'Structure mapping'!F:J,5,0)","v":{"$error":"#N/A"}},{"$f":"LEFT(Template!C82,7)","v":""},{"$f":"VLOOKUP(E70,'Structure mapping'!A:E,5,0)","v":{"$error":"#N/A"}},{"$f":"LEFT(Template!D82,6)","v":""},{"$f":"VLOOKUP(G70,'Account mapping'!A:E,5,0)","v":{"$error":"#N/A"}},{"$f":"LEFT(Template!E82,2)","v":""},{"$f":"VLOOKUP(I70,'Structure mapping'!X:AB,5,0)","v":{"$error":"#N/A"}},{"$f":"LEFT(Template!F82,3)","v":""},{"$f":"VLOOKUP(K70,'Structure mapping'!AC:AG,5,0)","v":{"$error":"#N/A"}},{"$f":"LEFT(Template!G82,10)","v":""},{"$f":"VLOOKUP(M70,'Structure mapping'!AH:AL,5,0)","v":{"$error":"#N/A"}},{"$f":"LEFT(Template!H82,6)","v":""},{"$f":"VLOOKUP(O70,'Structure mapping'!AM:AQ,5,0)","v":{"$error":"#N/A"}},null,null,null,null,{"$f":"IF(Template!O82=\"\",\"\",Template!O82)","v":""},"Aug-24 pending entries",{"$f":"TEXT(Template!$B$9,\"mm/dd/yyy\")","v":"08/01/2024"},null,null,null,null,{"$f":"IF(Template!M82>0,Template!M82,-Template!N82)","v":0},null,null,null,{"$f":"VLOOKUP(G70,'Account mapping'!A:D,4,0)","v":{"$error":"#N/A"}}]
[{"$f":"LEFT(Template!A83,4)","v":""},{"$f":"VLOOKUP(A71,'Structure mapping'!K:V,7,0)","v":{"$error":"#N/A"}},{"$f":"LEFT(Template!B83,5)","v":""},{"$f":"VLOOKUP(C71,'Structure mapping'!F:J,5,0)","v":{"$error":"#N/A"}},{"$f":"LEFT(Template!C83,7)","v":""},{"$f":"VLOOKUP(E71,'Structure mapping'!A:E,5,0)","v":{"$error":"#N/A"}},{"$f":"LEFT(Template!D83,6)","v":""},{"$f":"VLOOKUP(G71,'Account mapping'!A:E,5,0)","v":{"$error":"#N/A"}},{"$f":"LEFT(Template!E83,2)","v":""},{"$f":"VLOOKUP(I71,'Structure mapping'!X:AB,5,0)","v":{"$error":"#N/A"}},{"$f":"LEFT(Template!F83,3)","v":""},{"$f":"VLOOKUP(K71,'Structure mapping'!AC:AG,5,0)","v":{"$error":"#N/A"}},{"$f":"LEFT(Template!G83,10)","v":""},{"$f":"VLOOKUP(M71,'Structure mapping'!AH:AL,5,0)","v":{"$error":"#N/A"}},{"$f":"LEFT(Template!H83,6)","v":""},{"$f":"VLOOKUP(O71,'Structure mapping'!AM:AQ,5,0)","v":{"$error":"#N/A"}},null,null,null,null,{"$f":"IF(Template!O83=\"\",\"\",Template!O83)","v":""},"Aug-24 pending entries",{"$f":"TEXT(Template!$B$9,\"mm/dd/yyy\")","v":"08/01/2024"},null,null,null,null,{"$f":"IF(Template!M83>0,Template!M83,-Template!N83)","v":0},null,null,null,{"$f":"VLOOKUP(G71,'Account mapping'!A:D,4,0)","v":{"$error":"#N/A"}}]
[{"$f":"LEFT(Template!A84,4)","v":""},{"$f":"VLOOKUP(A72,'Structure mapping'!K:V,7,0)","v":{"$error":"#N/A"}},{"$f":"LEFT(Template!B84,5)","v":""},{"$f":"VLOOKUP(C72,'Structure mapping'!F:J,5,0)","v":{"$error":"#N/A"}},{"$f":"LEFT(Template!C84,7)","v":""},{"$f":"VLOOKUP(E72,'Structure mapping'!A:E,5,0)","v":{"$error":"#N/A"}},{"$f":"LEFT(Template!D84,6)","v":""},{"$f":"VLOOKUP(G72,'Account mapping'!A:E,5,0)","v":{"$error":"#N/A"}},{"$f":"LEFT(Template!E84,2)","v":""},{"$f":"VLOOKUP(I72,'Structure mapping'!X:AB,5,0)","v":{"$error":"#N/A"}},{"$f":"LEFT(Template!F84,3)","v":""},{"$f":"VLOOKUP(K72,'Structure mapping'!AC:AG,5,0)","v":{"$error":"#N/A"}},{"$f":"LEFT(Template!G84,10)","v":""},{"$f":"VLOOKUP(M72,'Structure mapping'!AH:AL,5,0)","v":{"$error":"#N/A"}},{"$f":"LEFT(Template!H84,6)","v":""},{"$f":"VLOOKUP(O72,'Structure mapping'!AM:AQ,5,0)","v":{"$error":"#N/A"}},null,null,null,null,{"$f":"IF(Template!O84=\"\",\"\",Template!O84)","v":""},"Aug-24 pending entries",{"$f":"TEXT(Template!$B$9,\"mm/dd/yyy\")","v":"08/01/2024"},null,null,null,null,{"$f":"IF(Template!M84>0,Template!M84,-Template!N84)","v":0},null,null,null,{"$f":"VLOOKUP(G72,'Account mapping'!A:D,4,0)","v":{"$error":"#N/A"}}]
[{"$f":"LEFT(Template!A85,4)","v":""},{"$f":"VLOOKUP(A73,'Structure mapping'!K:V,7,0)","v":{"$error":"#N/A"}},{"$f":"LEFT(Template!B85,5)","v":""},{"$f":"VLOOKUP(C73,'Structure mapping'!F:J,5,0)","v":{"$error":"#N/A"}},{"$f":"LEFT(Template!C85,7)","v":""},{"$f":"VLOOKUP(E73,'Structure mapping'!A:E,5,0)","v":{"$error":"#N/A"}},{"$f":"LEFT(Template!D85,6)","v":""},{"$f":"VLOOKUP(G73,'Account mapping'!A:E,5,0)","v":{"$error":"#N/A"}},{"$f":"LEFT(Template!E85,2)","v":""},{"$f":"VLOOKUP(I73,'Structure mapping'!X:AB,5,0)","v":{"$error":"#N/A"}},{"$f":"LEFT(Template!F85,3)","v":""},{"$f":"VLOOKUP(K73,'Structure mapping'!AC:AG,5,0)","v":{"$error":"#N/A"}},{"$f":"LEFT(Template!G85,10)","v":""},{"$f":"VLOOKUP(M73,'Structure mapping'!AH:AL,5,0)","v":{"$error":"#N/A"}},{"$f":"LEFT(Template!H85,6)","v":""},{"$f":"VLOOKUP(O73,'Structure mapping'!AM:AQ,5,0)","v":{"$error":"#N/A"}},null,null,null,null,{"$f":"IF(Template!O85=\"\",\"\",Template!O85)","v":""},"Aug-24 pending entries",{"$f":"TEXT(Template!$B$9,\"mm/dd/yyy\")","v":"08/01/2024"},null,null,null,null,{"$f":"IF(Template!M85>0,Template!M85,-Template!N85)","v":0},null,null,null,{"$f":"VLOOKUP(G73,'Account mapping'!A:D,4,0)","v":{"$error":"#N/A"}}]
[{"$f":"LEFT(Template!A86,4)","v":""},{"$f":"VLOOKUP(A74,'Structure mapping'!K:V,7,0)","v":{"$error":"#N/A"}},{"$f":"LEFT(Template!B86,5)","v":""},{"$f":"VLOOKUP(C74,'Structure mapping'!F:J,5,0)","v":{"$error":"#N/A"}},{"$f":"LEFT(Template!C86,7)","v":""},{"$f":"VLOOKUP(E74,'Structure mapping'!A:E,5,0)","v":{"$error":"#N/A"}},{"$f":"LEFT(Template!D86,6)","v":""},{"$f":"VLOOKUP(G74,'Account mapping'!A:E,5,0)","v":{"$error":"#N/A"}},{"$f":"LEFT(Template!E86,2)","v":""},{"$f":"VLOOKUP(I74,'Structure mapping'!X:AB,5,0)","v":{"$error":"#N/A"}},{"$f":"LEFT(Template!F86,3)","v":""},{"$f":"VLOOKUP(K74,'Structure mapping'!AC:AG,5,0)","v":{"$error":"#N/A"}},{"$f":"LEFT(Template!G86,10)","v":""},{"$f":"VLOOKUP(M74,'Structure mapping'!AH:AL,5,0)","v":{"$error":"#N/A"}},{"$f":"LEFT(Template!H86,6)","v":""},{"$f":"VLOOKUP(O74,'Structure mapping'!AM:AQ,5,0)","v":{"$error":"#N/A"}},null,null,null,null,{"$f":"IF(Template!O86=\"\",\"\",Template!O86)","v":""},"Aug-24 pending entries",{"$f":"TEXT(Template!$B$9,\"mm/dd/yyy\")","v":"08/01/2024"},null,null,null,null,{"$f":"IF(Template!M86>0,Template!M86,-Template!N86)","v":0},null,null,null,{"$f":"VLOOKUP(G74,'Account mapping'!A:D,4,0)","v":{"$error":"#N/A"}}]
[{"$f":"LEFT(Template!A87,4)","v":""},{"$f":"VLOOKUP(A75,'Structure mapping'!K:V,7,0)","v":{"$error":"#N/A"}},{"$f":"LEFT(Template!B87,5)","v":""},{"$f":"VLOOKUP(C75,'Structure mapping'!F:J,5,0)","v":{"$error":"#N/A"}},{"$f":"LEFT(Template!C87,7)","v":""},{"$f":"VLOOKUP(E75,'Structure mapping'!A:E,5,0)","v":{"$error":"#N/A"}},{"$f":"LEFT(Template!D87,6)","v":""},{"$f":"VLOOKUP(G75,'Account mapping'!A:E,5,0)","v":{"$error":"#N/A"}},{"$f":"LEFT(Template!E87,2)","v":""},{"$f":"VLOOKUP(I75,'Structure mapping'!X:AB,5,0)","v":{"$error":"#N/A"}},{"$f":"LEFT(Template!F87,3)","v":""},{"$f":"VLOOKUP(K75,'Structure mapping'!AC:AG,5,0)","v":{"$error":"#N/A"}},{"$f":"LEFT(Template!G87,10)","v":""},{"$f":"VLOOKUP(M75,'Structure mapping'!AH:AL,5,0)","v":{"$error":"#N/A"}},{"$f":"LEFT(Template!H87,6)","v":""},{"$f":"VLOOKUP(O75,'Structure mapping'!AM:AQ,5,0)","v":{"$error":"#N/A"}},null,null,null,null,{"$f":"IF(Template!O87=\"\",\"\",Template!O87)","v":""},"Aug-24 pending entries",{"$f":"TEXT(Template!$B$9,\"mm/dd/yyy\")","v":"08/01/2024"},null,null,null,null,{"$f":"IF(Template!M87>0,Template!M87,-Template!N87)","v":0},null,null,null,{"$f":"VLOOKUP(G75,'Account mapping'!A:D,4,0)","v":{"$error":"#N/A"}}]
[{"$f":"LEFT(Template!A88,4)","v":""},{"$f":"VLOOKUP(A76,'Structure mapping'!K:V,7,0)","v":{"$error":"#N/A"}},{"$f":"LEFT(Template!B88,5)","v":""},{"$f":"VLOOKUP(C76,'Structure mapping'!F:J,5,0)","v":{"$error":"#N/A"}},{"$f":"LEFT(Template!C88,7)","v":""},{"$f":"VLOOKUP(E76,'Structure mapping'!A:E,5,0)","v":{"$error":"#N/A"}},{"$f":"LEFT(Template!D88,6)","v":""},{"$f":"VLOOKUP(G76,'Account mapping'!A:E,5,0)","v":{"$error":"#N/A"}},{"$f":"LEFT(Template!E88,2)","v":""},{"$f":"VLOOKUP(I76,'Structure mapping'!X:AB,5,0)","v":{"$error":"#N/A"}},{"$f":"LEFT(Template!F88,3)","v":""},{"$f":"VLOOKUP(K76,'Structure mapping'!AC:AG,5,0)","v":{"$error":"#N/A"}},{"$f":"LEFT(Template!G88,10)","v":""},{"$f":"VLOOKUP(M76,'Structure mapping'!AH:AL,5,0)","v":{"$error":"#N/A"}},{"$f":"LEFT(Template!H88,6)","v":""},{"$f":"VLOOKUP(O76,'Structure mapping'!AM:AQ,5,0)","v":{"$error":"#N/A"}},null,null,null,null,{"$f":"IF(Template!O88=\"\",\"\",Template!O88)","v":""},"Aug-24 pending entries",{"$f":"TEXT(Template!$B$9,\"mm/dd/yyy\")","v":"08/01/2024"},null,null,null,null,{"$f":"IF(Template!M88>0,Template!M88,-Template!N88)","v":0},null,null,null,{"$f":"VLOOKUP(G76,'Account mapping'!A:D,4,0)","v":{"$error":"#N/A"}}]
[{"$f":"LEFT(Template!A89,4)","v":""},{"$f":"VLOOKUP(A77,'Structure mapping'!K:V,7,0)","v":{"$error":"#N/A"}},{"$f":"LEFT(Template!B89,5)","v":""},{"$f":"VLOOKUP(C77,'Structure mapping'!F:J,5,0)","v":{"$error":"#N/A"}},{"$f":"LEFT(Template!C89,7)","v":""},{"$f":"VLOOKUP(E77,'Structure mapping'!A:E,5,0)","v":{"$error":"#N/A"}},{"$f":"LEFT(Template!D89,6)","v":""},{"$f":"VLOOKUP(G77,'Account mapping'!A:E,5,0)","v":{"$error":"#N/A"}},{"$f":"LEFT(Template!E89,2)","v":""},{"$f":"VLOOKUP(I77,'Structure mapping'!X:AB,5,0)","v":{"$error":"#N/A"}},{"$f":"LEFT(Template!F89,3)","v":""},{"$f":"VLOOKUP(K77,'Structure mapping'!AC:AG,5,0)","v":{"$error":"#N/A"}},{"$f":"LEFT(Template!G89,10)","v":""},{"$f":"VLOOKUP(M77,'Structure mapping'!AH:AL,5,0)","v":{"$error":"#N/A"}},{"$f":"LEFT(Template!H89,6)","v":""},{"$f":"VLOOKUP(O77,'Structure mapping'!AM:AQ,5,0)","v":{"$error":"#N/A"}},null,null,null,null,{"$f":"IF(Template!O89=\"\",\"\",Template!O89)","v":""},"Aug-24 pending entries",{"$f":"TEXT(Template!$B$9,\"mm/dd/yyy\")","v":"08/01/2024"},null,null,null,null,{"$f":"IF(Template!M89>0,Template!M89,-Template!N89)","v":0},null,null,null,{"$f":"VLOOKUP(G77,'Account mapping'!A:D,4,0)","v":{"$error":"#N/A"}}]
[{"$f":"LEFT(Template!A90,4)","v":""},{"$f":"VLOOKUP(A78,'Structure mapping'!K:V,7,0)","v":{"$error":"#N/A"}},{"$f":"LEFT(Template!B90,5)","v":""},{"$f":"VLOOKUP(C78,'Structure mapping'!F:J,5,0)","v":{"$error":"#N/A"}},{"$f":"LEFT(Template!C90,7)","v":""},{"$f":"VLOOKUP(E78,'Structure mapping'!A:E,5,0)","v":{"$error":"#N/A"}},{"$f":"LEFT(Template!D90,6)","v":""},{"$f":"VLOOKUP(G78,'Account mapping'!A:E,5,0)","v":{"$error":"#N/A"}},{"$f":"LEFT(Template!E90,2)","v":""},{"$f":"VLOOKUP(I78,'Structure mapping'!X:AB,5,0)","v":{"$error":"#N/A"}},{"$f":"LEFT(Template!F90,3)","v":""},{"$f":"VLOOKUP(K78,'Structure mapping'!AC:AG,5,0)","v":{"$error":"#N/A"}},{"$f":"LEFT(Template!G90,10)","v":""},{"$f":"VLOOKUP(M78,'Structure mapping'!AH:AL,5,0)","v":{"$error":"#N/A"}},{"$f":"LEFT(Template!H90,6)","v":""},{"$f":"VLOOKUP(O78,'Structure mapping'!AM:AQ,5,0)","v":{"$error":"#N/A"}},null,null,null,null,{"$f":"IF(Template!O90=\"\",\"\",Template!O90)","v":""},"Aug-24 pending entries",{"$f":"TEXT(Template!$B$9,\"mm/dd/yyy\")","v":"08/01/2024"},null,null,null,null,{"$f":"IF(Template!M90>0,Template!M90,-Template!N90)","v":0},null,null,null,{"$f":"VLOOKUP(G78,'Account mapping'!A:D,4,0)","v":{"$error":"#N/A"}}]
[{"$f":"LEFT(Template!A91,4)","v":""},{"$f":"VLOOKUP(A79,'Structure mapping'!K:V,7,0)","v":{"$error":"#N/A"}},{"$f":"LEFT(Template!B91,5)","v":""},{"$f":"VLOOKUP(C79,'Structure mapping'!F:J,5,0)","v":{"$error":"#N/A"}},{"$f":"LEFT(Template!C91,7)","v":""},{"$f":"VLOOKUP(E79,'Structure mapping'!A:E,5,0)","v":{"$error":"#N/A"}},{"$f":"LEFT(Template!D91,6)","v":""},{"$f":"VLOOKUP(G79,'Account mapping'!A:E,5,0)","v":{"$error":"#N/A"}},{"$f":"LEFT(Template!E91,2)","v":""},{"$f":"VLOOKUP(I79,'Structure mapping'!X:AB,5,0)","v":{"$error":"#N/A"}},{"$f":"LEFT(Template!F91,3)","v":""},{"$f":"VLOOKUP(K79,'Structure mapping'!AC:AG,5,0)","v":{"$error":"#N/A"}},{"$f":"LEFT(Template!G91,10)","v":""},{"$f":"VLOOKUP(M79,'Structure mapping'!AH:AL,5,0)","v":{"$error":"#N/A"}},{"$f":"LEFT(Template!H91,6)","v":""},{"$f":"VLOOKUP(O79,'Structure mapping'!AM:AQ,5,0)","v":{"$error":"#N/A"}},null,null,null,null,{"$f":"IF(Template!O91=\"\",\"\",Template!O91)","v":""},"Aug-24 pending entries",{"$f":"TEXT(Template!$B$9,\"mm/dd/yyy\")","v":"08/01/2024"},null,null,null,null,{"$f":"IF(Template!M91>0,Template!M91,-Template!N91)","v":0},null,null,null,{"$f":"VLOOKUP(G79,'Account mapping'!A:D,4,0)","v":{"$error":"#N/A"}}]
[{"$f":"LEFT(Template!A92,4)","v":""},{"$f":"VLOOKUP(A80,'Structure mapping'!K:V,7,0)","v":{"$error":"#N/A"}},{"$f":"LEFT(Template!B92,5)","v":""},{"$f":"VLOOKUP(C80,'Structure mapping'!F:J,5,0)","v":{"$error":"#N/A"}},{"$f":"LEFT(Template!C92,7)","v":""},{"$f":"VLOOKUP(E80,'Structure mapping'!A:E,5,0)","v":{"$error":"#N/A"}},{"$f":"LEFT(Template!D92,6)","v":""},{"$f":"VLOOKUP(G80,'Account mapping'!A:E,5,0)","v":{"$error":"#N/A"}},{"$f":"LEFT(Template!E92,2)","v":""},{"$f":"VLOOKUP(I80,'Structure mapping'!X:AB,5,0)","v":{"$error":"#N/A"}},{"$f":"LEFT(Template!F92,3)","v":""},{"$f":"VLOOKUP(K80,'Structure mapping'!AC:AG,5,0)","v":{"$error":"#N/A"}},{"$f":"LEFT(Template!G92,10)","v":""},{"$f":"VLOOKUP(M80,'Structure mapping'!AH:AL,5,0)","v":{"$error":"#N/A"}},{"$f":"LEFT(Template!H92,6)","v":""},{"$f":"VLOOKUP(O80,'Structure mapping'!AM:AQ,5,0)","v":{"$error":"#N/A"}},null,null,null,null,{"$f":"IF(Template!O92=\"\",\"\",Template!O92)","v":""},"Aug-24 pending entries",{"$f":"TEXT(Template!$B$9,\"mm/dd/yyy\")","v":"08/01/2024"},null,null,null,null,{"$f":"IF(Template!M92>0,Template!M92,-Template!N92)","v":0},null,null,null,{"$f":"VLOOKUP(G80,'Account mapping'!A:D,4,0)","v":{"$error":"#N/A"}}]
[{"$f":"LEFT(Template!A93,4)","v":""},{"$f":"VLOOKUP(A81,'Structure mapping'!K:V,7,0)","v":{"$error":"#N/A"}},{"$f":"LEFT(Template!B93,5)","v":""},{"$f":"VLOOKUP(C81,'Structure mapping'!F:J,5,0)","v":{"$error":"#N/A"}},{"$f":"LEFT(Template!C93,7)","v":""},{"$f":"VLOOKUP(E81,'Structure mapping'!A:E,5,0)","v":{"$error":"#N/A"}},{"$f":"LEFT(Template!D93,6)","v":""},{"$f":"VLOOKUP(G81,'Account mapping'!A:E,5,0)","v":{"$error":"#N/A"}},{"$f":"LEFT(Template!E93,2)","v":""},{"$f":"VLOOKUP(I81,'Structure mapping'!X:AB,5,0)","v":{"$error":"#N/A"}},{"$f":"LEFT(Template!F93,3)","v":""},{"$f":"VLOOKUP(K81,'Structure mapping'!AC:AG,5,0)","v":{"$error":"#N/A"}},{"$f":"LEFT(Template!G93,10)","v":""},{"$f":"VLOOKUP(M81,'Structure mapping'!AH:AL,5,0)","v":{"$error":"#N/A"}},{"$f":"LEFT(Template!H93,6)","v":""},{"$f":"VLOOKUP(O81,'Structure mapping'!AM:AQ,5,0)","v":{"$error":"#N/A"}},null,null,null,null,{"$f":"IF(Template!O93=\"\",\"\",Template!O93)","v":""},"Aug-24 pending entries",{"$f":"TEXT(Template!$B$9,\"mm/dd/yyy\")","v":"08/01/2024"},null,null,null,null,{"$f":"IF(Template!M93>0,Template!M93,-Template!N93)","v":0},null,null,null,{"$f":"VLOOKUP(G81,'Account mapping'!A:D,4,0)","v":{"$error":"#N/A"}}]
[{"$f":"LEFT(Template!A94,4)","v":""},{"$f":"VLOOKUP(A82,'Structure mapping'!K:V,7,0)","v":{"$error":"#N/A"}},{"$f":"LEFT(Template!B94,5)","v":""},{"$f":"VLOOKUP(C82,'Structure mapping'!F:J,5,0)","v":{"$error":"#N/A"}},{"$f":"LEFT(Template!C94,7)","v":""},{"$f":"VLOOKUP(E82,'Structure mapping'!A:E,5,0)","v":{"$error":"#N/A"}},{"$f":"LEFT(Template!D94,6)","v":""},{"$f":"VLOOKUP(G82,'Account mapping'!A:E,5,0)","v":{"$error":"#N/A"}},{"$f":"LEFT(Template!E94,2)","v":""},{"$f":"VLOOKUP(I82,'Structure mapping'!X:AB,5,0)","v":{"$error":"#N/A"}},{"$f":"LEFT(Template!F94,3)","v":""},{"$f":"VLOOKUP(K82,'Structure mapping'!AC:AG,5,0)","v":{"$error":"#N/A"}},{"$f":"LEFT(Template!G94,10)","v":""},{"$f":"VLOOKUP(M82,'Structure mapping'!AH:AL,5,0)","v":{"$error":"#N/A"}},{"$f":"LEFT(Template!H94,6)","v":""},{"$f":"VLOOKUP(O82,'Structure mapping'!AM:AQ,5,0)","v":{"$error":"#N/A"}},null,null,null,null,{"$f":"IF(Template!O94=\"\",\"\",Template!O94)","v":""},"Aug-24 pending entries",{"$f":"TEXT(Template!$B$9,\"mm/dd/yyy\")","v":"08/01/2024"},null,null,null,null,{"$f":"IF(Template!M94>0,Template!M94,-Template!N94)","v":0},null,null,null,{"$f":"VLOOKUP(G82,'Account mapping'!A:D,4,0)","v":{"$error":"#N/A"}}]
[{"$f":"LEFT(Template!A95,4)","v":""},{"$f":"VLOOKUP(A83,'Structure mapping'!K:V,7,0)","v":{"$error":"#N/A"}},{"$f":"LEFT(Template!B95,5)","v":""},{"$f":"VLOOKUP(C83,'Structure mapping'!F:J,5,0)","v":{"$error":"#N/A"}},{"$f":"LEFT(Template!C95,7)","v":""},{"$f":"VLOOKUP(E83,'Structure mapping'!A:E,5,0)","v":{"$error":"#N/A"}},{"$f":"LEFT(Template!D95,6)","v":""},{"$f":"VLOOKUP(G83,'Account mapping'!A:E,5,0)","v":{"$error":"#N/A"}},{"$f":"LEFT(Template!E95,2)","v":""},{"$f":"VLOOKUP(I83,'Structure mapping'!X:AB,5,0)","v":{"$error":"#N/A"}},{"$f":"LEFT(Template!F95,3)","v":""},{"$f":"VLOOKUP(K83,'Structure mapping'!AC:AG,5,0)","v":{"$error":"#N/A"}},{"$f":"LEFT(Template!G95,10)","v":""},{"$f":"VLOOKUP(M83,'Structure mapping'!AH:AL,5,0)","v":{"$error":"#N/A"}},{"$f":"LEFT(Template!H95,6)","v":""},{"$f":"VLOOKUP(O83,'Structure mapping'!AM:AQ,5,0)","v":{"$error":"#N/A"}},null,null,null,null,{"$f":"IF(Template!O95=\"\",\"\",Template!O95)","v":""},"Aug-24 pending entries",{"$f":"TEXT(Template!$B$9,\"mm/dd/yyy\")","v":"08/01/2024"},null,null,null,null,{"$f":"IF(Template!M95>0,Template!M95,-Template!N95)","v":0},null,null,null,{"$f":"VLOOKUP(G83,'Account mapping'!A:D,4,0)","v":{"$error":"#N/A"}}]
[{"$f":"LEFT(Template!A96,4)","v":""},{"$f":"VLOOKUP(A84,'Structure mapping'!K:V,7,0)","v":{"$error":"#N/A"}},{"$f":"LEFT(Template!B96,5)","v":""},{"$f":"VLOOKUP(C84,'Structure mapping'!F:J,5,0)","v":{"$error":"#N/A"}},{"$f":"LEFT(Template!C96,7)","v":""},{"$f":"VLOOKUP(E84,'Structure mapping'!A:E,5,0)","v":{"$error":"#N/A"}},{"$f":"LEFT(Template!D96,6)","v":""},{"$f":"VLOOKUP(G84,'Account mapping'!A:E,5,0)","v":{"$error":"#N/A"}},{"$f":"LEFT(Template!E96,2)","v":""},{"$f":"VLOOKUP(I84,'Structure mapping'!X:AB,5,0)","v":{"$error":"#N/A"}},{"$f":"LEFT(Template!F96,3)","v":""},{"$f":"VLOOKUP(K84,'Structure mapping'!AC:AG,5,0)","v":{"$error":"#N/A"}},{"$f":"LEFT(Template!G96,10)","v":""},{"$f":"VLOOKUP(M84,'Structure mapping'!AH:AL,5,0)","v":{"$error":"#N/A"}},{"$f":"LEFT(Template!H96,6)","v":""},{"$f":"VLOOKUP(O84,'Structure mapping'!AM:AQ,5,0)","v":{"$error":"#N/A"}},null,null,null,null,{"$f":"IF(Template!O96=\"\",\"\",Template!O96)","v":""},"Aug-24 pending entries",{"$f":"TEXT(Template!$B$9,\"mm/dd/yyy\")","v":"08/01/2024"},null,null,null,null,{"$f":"IF(Template!M96>0,Template!M96,-Template!N96)","v":0},null,null,null,{"$f":"VLOOKUP(G84,'Account mapping'!A:D,4,0)","v":{"$error":"#N/A"}}]
[{"$f":"LEFT(Template!A97,4)","v":""},{"$f":"VLOOKUP(A85,'Structure mapping'!K:V,7,0)","v":{"$error":"#N/A"}},{"$f":"LEFT(Template!B97,5)","v":""},{"$f":"VLOOKUP(C85,'Structure mapping'!F:J,5,0)","v":{"$error":"#N/A"}},{"$f":"LEFT(Template!C97,7)","v":""},{"$f":"VLOOKUP(E85,'Structure mapping'!A:E,5,0)","v":{"$error":"#N/A"}},{"$f":"LEFT(Template!D97,6)","v":""},{"$f":"VLOOKUP(G85,'Account mapping'!A:E,5,0)","v":{"$error":"#N/A"}},{"$f":"LEFT(Template!E97,2)","v":""},{"$f":"VLOOKUP(I85,'Structure mapping'!X:AB,5,0)","v":{"$error":"#N/A"}},{"$f":"LEFT(Template!F97,3)","v":""},{"$f":"VLOOKUP(K85,'Structure mapping'!AC:AG,5,0)","v":{"$error":"#N/A"}},{"$f":"LEFT(Template!G97,10)","v":""},{"$f":"VLOOKUP(M85,'Structure mapping'!AH:AL,5,0)","v":{"$error":"#N/A"}},{"$f":"LEFT(Template!H97,6)","v":""},{"$f":"VLOOKUP(O85,'Structure mapping'!AM:AQ,5,0)","v":{"$error":"#N/A"}},null,null,null,null,{"$f":"IF(Template!O97=\"\",\"\",Template!O97)","v":""},"Aug-24 pending entries",{"$f":"TEXT(Template!$B$9,\"mm/dd/yyy\")","v":"08/01/2024"},null,null,null,null,{"$f":"IF(Template!M97>0,Template!M97,-Template!N97)","v":0},null,null,null,{"$f":"VLOOKUP(G85,'Account mapping'!A:D,4,0)","v":{"$error":"#N/A"}}]
[{"$f":"LEFT(Template!A98,4)","v":""},{"$f":"VLOOKUP(A86,'Structure mapping'!K:V,7,0)","v":{"$error":"#N/A"}},{"$f":"LEFT(Template!B98,5)","v":""},{"$f":"VLOOKUP(C86,'Structure mapping'!F:J,5,0)","v":{"$error":"#N/A"}},{"$f":"LEFT(Template!C98,7)","v":""},{"$f":"VLOOKUP(E86,'Structure mapping'!A:E,5,0)","v":{"$error":"#N/A"}},{"$f":"LEFT(Template!D98,6)","v":""},{"$f":"VLOOKUP(G86,'Account mapping'!A:E,5,0)","v":{"$error":"#N/A"}},{"$f":"LEFT(Template!E98,2)","v":""},{"$f":"VLOOKUP(I86,'Structure mapping'!X:AB,5,0)","v":{"$error":"#N/A"}},{"$f":"LEFT(Template!F98,3)","v":""},{"$f":"VLOOKUP(K86,'Structure mapping'!AC:AG,5,0)","v":{"$error":"#N/A"}},{"$f":"LEFT(Template!G98,10)","v":""},{"$f":"VLOOKUP(M86,'Structure mapping'!AH:AL,5,0)","v":{"$error":"#N/A"}},{"$f":"LEFT(Template!H98,6)","v":""},{"$f":"VLOOKUP(O86,'Structure mapping'!AM:AQ,5,0)","v":{"$error":"#N/A"}},null,null,null,null,{"$f":"IF(Template!O98=\"\",\"\",Template!O98)","v":""},"Aug-24 pending entries",{"$f":"TEXT(Template!$B$9,\"mm/dd/yyy\")","v":"08/01/2024"},null,null,null,null,{"$f":"IF(Template!M98>0,Template!M98,-Template!N98)","v":0},null,null,null,{"$f":"VLOOKUP(G86,'Account mapping'!A:D,4,0)","v":{"$error":"#N/A"}}]
[{"$f":"LEFT(Template!A99,4)","v":""},{"$f":"VLOOKUP(A87,'Structure mapping'!K:V,7,0)","v":{"$error":"#N/A"}},{"$f":"LEFT(Template!B99,5)","v":""},{"$f":"VLOOKUP(C87,'Structure mapping'!F:J,5,0)","v":{"$error":"#N/A"}},{"$f":"LEFT(Template!C99,7)","v":""},{"$f":"VLOOKUP(E87,'Structure mapping'!A:E,5,0)","v":{"$error":"#N/A"}},{"$f":"LEFT(Template!D99,6)","v":""},{"$f":"VLOOKUP(G87,'Account mapping'!A:E,5,0)","v":{"$error":"#N/A"}},{"$f":"LEFT(Template!E99,2)","v":""},{"$f":"VLOOKUP(I87,'Structure mapping'!X:AB,5,0)","v":{"$error":"#N/A"}},{"$f":"LEFT(Template!F99,3)","v":""},{"$f":"VLOOKUP(K87,'Structure mapping'!AC:AG,5,0)","v":{"$error":"#N/A"}},{"$f":"LEFT(Template!G99,10)","v":""},{"$f":"VLOOKUP(M87,'Structure mapping'!AH:AL,5,0)","v":{"$error":"#N/A"}},{"$f":"LEFT(Template!H99,6)","v":""},{"$f":"VLOOKUP(O87,'Structure mapping'!AM:AQ,5,0)","v":{"$error":"#N/A"}},null,null,null,null,{"$f":"IF(Template!O99=\"\",\"\",Template!O99)","v":""},"Aug-24 pending entries",{"$f":"TEXT(Template!$B$9,\"mm/dd/yyy\")","v":"08/01/2024"},null,null,null,null,{"$f":"IF(Template!M99>0,Template!M99,-Template!N99)","v":0},null,null,null,{"$f":"VLOOKUP(G87,'Account mapping'!A:D,4,0)","v":{"$error":"#N/A"}}]
[{"$f":"LEFT(Template!A100,4)","v":""},{"$f":"VLOOKUP(A88,'Structure mapping'!K:V,7,0)","v":{"$error":"#N/A"}},{"$f":"LEFT(Template!B100,5)","v":""},{"$f":"VLOOKUP(C88,'Structure mapping'!F:J,5,0)","v":{"$error":"#N/A"}},{"$f":"LEFT(Template!C100,7)","v":""},{"$f":"VLOOKUP(E88,'Structure mapping'!A:E,5,0)","v":{"$error":"#N/A"}},{"$f":"LEFT(Template!D100,6)","v":""},{"$f":"VLOOKUP(G88,'Account mapping'!A:E,5,0)","v":{"$error":"#N/A"}},{"$f":"LEFT(Template!E100,2)","v":""},{"$f":"VLOOKUP(I88,'Structure mapping'!X:AB,5,0)","v":{"$error":"#N/A"}},{"$f":"LEFT(Template!F100,3)","v":""},{"$f":"VLOOKUP(K88,'Structure mapping'!AC:AG,5,0)","v":{"$error":"#N/A"}},{"$f":"LEFT(Template!G100,10)","v":""},{"$f":"VLOOKUP(M88,'Structure mapping'!AH:AL,5,0)","v":{"$error":"#N/A"}},{"$f":"LEFT(Template!H100,6)","v":""},{"$f":"VLOOKUP(O88,'Structure mapping'!AM:AQ,5,0)","v":{"$error":"#N/A"}},null,null,null,null,{"$f":"IF(Template!O100=\"\",\"\",Template!O100)","v":""},"Aug-24 pending entries",{"$f":"TEXT(Template!$B$9,\"mm/dd/yyy\")","v":"08/01/2024"},null,null,null,null,{"$f":"IF(Template!M100>0,Template!M100,-Template!N100)","v":0},null,null,null,{"$f":"VLOOKUP(G88,'Account mapping'!A:D,4,0)","v":{"$error":"#N/A"}}]
[{"$f":"LEFT(Template!A101,4)","v":""},{"$f":"VLOOKUP(A89,'Structure mapping'!K:V,7,0)","v":{"$error":"#N/A"}},{"$f":"LEFT(Template!B101,5)","v":""},{"$f":"VLOOKUP(C89,'Structure mapping'!F:J,5,0)","v":{"$error":"#N/A"}},{"$f":"LEFT(Template!C101,7)","v":""},{"$f":"VLOOKUP(E89,'Structure mapping'!A:E,5,0)","v":{"$error":"#N/A"}},{"$f":"LEFT(Template!D101,6)","v":""},{"$f":"VLOOKUP(G89,'Account mapping'!A:E,5,0)","v":{"$error":"#N/A"}},{"$f":"LEFT(Template!E101,2)","v":""},{"$f":"VLOOKUP(I89,'Structure mapping'!X:AB,5,0)","v":{"$error":"#N/A"}},{"$f":"LEFT(Template!F101,3)","v":""},{"$f":"VLOOKUP(K89,'Structure mapping'!AC:AG,5,0)","v":{"$error":"#N/A"}},{"$f":"LEFT(Template!G101,10)","v":""},{"$f":"VLOOKUP(M89,'Structure mapping'!AH:AL,5,0)","v":{"$error":"#N/A"}},{"$f":"LEFT(Template!H101,6)","v":""},{"$f":"VLOOKUP(O89,'Structure mapping'!AM:AQ,5,0)","v":{"$error":"#N/A"}},null,null,null,null,{"$f":"IF(Template!O101=\"\",\"\",Template!O101)","v":""},"Aug-24 pending entries",{"$f":"TEXT(Template!$B$9,\"mm/dd/yyy\")","v":"08/01/2024"},null,null,null,null,{"$f":"IF(Template!M101>0,Template!M101,-Template!N101)","v":0},null,null,null,{"$f":"VLOOKUP(G89,'Account mapping'!A:D,4,0)","v":{"$error":"#N/A"}}]
[{"$f":"LEFT(Template!A102,4)","v":""},{"$f":"VLOOKUP(A90,'Structure mapping'!K:V,7,0)","v":{"$error":"#N/A"}},{"$f":"LEFT(Template!B102,5)","v":""},{"$f":"VLOOKUP(C90,'Structure mapping'!F:J,5,0)","v":{"$error":"#N/A"}},{"$f":"LEFT(Template!C102,7)","v":""},{"$f":"VLOOKUP(E90,'Structure mapping'!A:E,5,0)","v":{"$error":"#N/A"}},{"$f":"LEFT(Template!D102,6)","v":""},{"$f":"VLOOKUP(G90,'Account mapping'!A:E,5,0)","v":{"$error":"#N/A"}},{"$f":"LEFT(Template!E102,2)","v":""},{"$f":"VLOOKUP(I90,'Structure mapping'!X:AB,5,0)","v":{"$error":"#N/A"}},{"$f":"LEFT(Template!F102,3)","v":""},{"$f":"VLOOKUP(K90,'Structure mapping'!AC:AG,5,0)","v":{"$error":"#N/A"}},{"$f":"LEFT(Template!G102,10)","v":""},{"$f":"VLOOKUP(M90,'Structure mapping'!AH:AL,5,0)","v":{"$error":"#N/A"}},{"$f":"LEFT(Template!H102,6)","v":""},{"$f":"VLOOKUP(O90,'Structure mapping'!AM:AQ,5,0)","v":{"$error":"#N/A"}},null,null,null,null,{"$f":"IF(Template!O102=\"\",\"\",Template!O102)","v":""},"Aug-24 pending entries",{"$f":"TEXT(Template!$B$9,\"mm/dd/yyy\")","v":"08/01/2024"},null,null,null,null,{"$f":"IF(Template!M102>0,Template!M102,-Template!N102)","v":0},null,null,null,{"$f":"VLOOKUP(G90,'Account mapping'!A:D,4,0)","v":{"$error":"#N/A"}}]
[{"$f":"LEFT(Template!A103,4)","v":""},{"$f":"VLOOKUP(A91,'Structure mapping'!K:V,7,0)","v":{"$error":"#N/A"}},{"$f":"LEFT(Template!B103,5)","v":""},{"$f":"VLOOKUP(C91,'Structure mapping'!F:J,5,0)","v":{"$error":"#N/A"}},{"$f":"LEFT(Template!C103,7)","v":""},{"$f":"VLOOKUP(E91,'Structure mapping'!A:E,5,0)","v":{"$error":"#N/A"}},{"$f":"LEFT(Template!D103,6)","v":""},{"$f":"VLOOKUP(G91,'Account mapping'!A:E,5,0)","v":{"$error":"#N/A"}},{"$f":"LEFT(Template!E103,2)","v":""},{"$f":"VLOOKUP(I91,'Structure mapping'!X:AB,5,0)","v":{"$error":"#N/A"}},{"$f":"LEFT(Template!F103,3)","v":""},{"$f":"VLOOKUP(K91,'Structure mapping'!AC:AG,5,0)","v":{"$error":"#N/A"}},{"$f":"LEFT(Template!G103,10)","v":""},{"$f":"VLOOKUP(M91,'Structure mapping'!AH:AL,5,0)","v":{"$error":"#N/A"}},{"$f":"LEFT(Template!H103,6)","v":""},{"$f":"VLOOKUP(O91,'Structure mapping'!AM:AQ,5,0)","v":{"$error":"#N/A"}},null,null,null,null,{"$f":"IF(Template!O103=\"\",\"\",Template!O103)","v":""},"Aug-24 pending entries",{"$f":"TEXT(Template!$B$9,\"mm/dd/yyy\")","v":"08/01/2024"},null,null,null,null,{"$f":"IF(Template!M103>0,Template!M103,-Template!N103)","v":0},null,null,null,{"$f":"VLOOKUP(G91,'Account mapping'!A:D,4,0)","v":{"$error":"#N/A"}}]
[{"$f":"LEFT(Template!A104,4)","v":""},{"$f":"VLOOKUP(A92,'Structure mapping'!K:V,7,0)","v":{"$error":"#N/A"}},{"$f":"LEFT(Template!B104,5)","v":""},{"$f":"VLOOKUP(C92,'Structure mapping'!F:J,5,0)","v":{"$error":"#N/A"}},{"$f":"LEFT(Template!C104,7)","v":""},{"$f":"VLOOKUP(E92,'Structure mapping'!A:E,5,0)","v":{"$error":"#N/A"}},{"$f":"LEFT(Template!D104,6)","v":""},{"$f":"VLOOKUP(G92,'Account mapping'!A:E,5,0)","v":{"$error":"#N/A"}},{"$f":"LEFT(Template!E104,2)","v":""},{"$f":"VLOOKUP(I92,'Structure mapping'!X:AB,5,0)","v":{"$error":"#N/A"}},{"$f":"LEFT(Template!F104,3)","v":""},{"$f":"VLOOKUP(K92,'Structure mapping'!AC:AG,5,0)","v":{"$error":"#N/A"}},{"$f":"LEFT(Template!G104,10)","v":""},{"$f":"VLOOKUP(M92,'Structure mapping'!AH:AL,5,0)","v":{"$error":"#N/A"}},{"$f":"LEFT(Template!H104,6)","v":""},{"$f":"VLOOKUP(O92,'Structure mapping'!AM:AQ,5,0)","v":{"$error":"#N/A"}},null,null,null,null,{"$f":"IF(Template!O104=\"\",\"\",Template!O104)","v":""},"Aug-24 pending entries",{"$f":"TEXT(Template!$B$9,\"mm/dd/yyy\")","v":"08/01/2024"},null,null,null,null,{"$f":"IF(Template!M104>0,Template!M104,-Template!N104)","v":0},null,null,null,{"$f":"VLOOKUP(G92,'Account mapping'!A:D,4,0)","v":{"$error":"#N/A"}}]
[{"$f":"LEFT(Template!A105,4)","v":""},{"$f":"VLOOKUP(A93,'Structure mapping'!K:V,7,0)","v":{"$error":"#N/A"}},{"$f":"LEFT(Template!B105,5)","v":""},{"$f":"VLOOKUP(C93,'Structure mapping'!F:J,5,0)","v":{"$error":"#N/A"}},{"$f":"LEFT(Template!C105,7)","v":""},{"$f":"VLOOKUP(E93,'Structure mapping'!A:E,5,0)","v":{"$error":"#N/A"}},{"$f":"LEFT(Template!D105,6)","v":""},{"$f":"VLOOKUP(G93,'Account mapping'!A:E,5,0)","v":{"$error":"#N/A"}},{"$f":"LEFT(Template!E105,2)","v":""},{"$f":"VLOOKUP(I93,'Structure mapping'!X:AB,5,0)","v":{"$error":"#N/A"}},{"$f":"LEFT(Template!F105,3)","v":""},{"$f":"VLOOKUP(K93,'Structure mapping'!AC:AG,5,0)","v":{"$error":"#N/A"}},{"$f":"LEFT(Template!G105,10)","v":""},{"$f":"VLOOKUP(M93,'Structure mapping'!AH:AL,5,0)","v":{"$error":"#N/A"}},{"$f":"LEFT(Template!H105,6)","v":""},{"$f":"VLOOKUP(O93,'Structure mapping'!AM:AQ,5,0)","v":{"$error":"#N/A"}},null,null,null,null,{"$f":"IF(Template!O105=\"\",\"\",Template!O105)","v":""},"Aug-24 pending entries",{"$f":"TEXT(Template!$B$9,\"mm/dd/yyy\")","v":"08/01/2024"},null,null,null,null,{"$f":"IF(Template!M105>0,Template!M105,-Template!N105)","v":0},null,null,null,{"$f":"VLOOKUP(G93,'Account mapping'!A:D,4,0)","v":{"$error":"#N/A"}}]
[{"$f":"LEFT(Template!A106,4)","v":""},{"$f":"VLOOKUP(A94,'Structure mapping'!K:V,7,0)","v":{"$error":"#N/A"}},{"$f":"LEFT(Template!B106,5)","v":""},{"$f":"VLOOKUP(C94,'Structure mapping'!F:J,5,0)","v":{"$error":"#N/A"}},{"$f":"LEFT(Template!C106,7)","v":""},{"$f":"VLOOKUP(E94,'Structure mapping'!A:E,5,0)","v":{"$error":"#N/A"}},{"$f":"LEFT(Template!D106,6)","v":""},{"$f":"VLOOKUP(G94,'Account mapping'!A:E,5,0)","v":{"$error":"#N/A"}},{"$f":"LEFT(Template!E106,2)","v":""},{"$f":"VLOOKUP(I94,'Structure mapping'!X:AB,5,0)","v":{"$error":"#N/A"}},{"$f":"LEFT(Template!F106,3)","v":""},{"$f":"VLOOKUP(K94,'Structure mapping'!AC:AG,5,0)","v":{"$error":"#N/A"}},{"$f":"LEFT(Template!G106,10)","v":""},{"$f":"VLOOKUP(M94,'Structure mapping'!AH:AL,5,0)","v":{"$error":"#N/A"}},{"$f":"LEFT(Template!H106,6)","v":""},{"$f":"VLOOKUP(O94,'Structure mapping'!AM:AQ,5,0)","v":{"$error":"#N/A"}},null,null,null,null,{"$f":"IF(Template!O106=\"\",\"\",Template!O106)","v":""},"Aug-24 pending entries",{"$f":"TEXT(Template!$B$9,\"mm/dd/yyy\")","v":"08/01/2024"},null,null,null,null,{"$f":"IF(Template!M106>0,Template!M106,-Template!N106)","v":0},null,null,null,{"$f":"VLOOKUP(G94,'Account mapping'!A:D,4,0)","v":{"$error":"#N/A"}}]
[{"$f":"LEFT(Template!A107,4)","v":""},{"$f":"VLOOKUP(A95,'Structure mapping'!K:V,7,0)","v":{"$error":"#N/A"}},{"$f":"LEFT(Template!B107,5)","v":""},{"$f":"VLOOKUP(C95,'Structure mapping'!F:J,5,0)","v":{"$error":"#N/A"}},{"$f":"LEFT(Template!C107,7)","v":""},{"$f":"VLOOKUP(E95,'Structure mapping'!A:E,5,0)","v":{"$error":"#N/A"}},{"$f":"LEFT(Template!D107,6)","v":""},{"$f":"VLOOKUP(G95,'Account mapping'!A:E,5,0)","v":{"$error":"#N/A"}},{"$f":"LEFT(Template!E107,2)","v":""},{"$f":"VLOOKUP(I95,'Structure mapping'!X:AB,5,0)","v":{"$error":"#N/A"}},{"$f":"LEFT(Template!F107,3)","v":""},{"$f":"VLOOKUP(K95,'Structure mapping'!AC:AG,5,0)","v":{"$error":"#N/A"}},{"$f":"LEFT(Template!G107,10)","v":""},{"$f":"VLOOKUP(M95,'Structure mapping'!AH:AL,5,0)","v":{"$error":"#N/A"}},{"$f":"LEFT(Template!H107,6)","v":""},{"$f":"VLOOKUP(O95,'Structure mapping'!AM:AQ,5,0)","v":{"$error":"#N/A"}},null,null,null,null,{"$f":"IF(Template!O107=\"\",\"\",Template!O107)","v":""},"Aug-24 pending entries",{"$f":"TEXT(Template!$B$9,\"mm/dd/yyy\")","v":"08/01/2024"},null,null,null,null,{"$f":"IF(Template!M107>0,Template!M107,-Template!N107)","v":0},null,null,null,{"$f":"VLOOKUP(G95,'Account mapping'!A:D,4,0)","v":{"$error":"#N/A"}}]
[{"$f":"LEFT(Template!A108,4)","v":""},{"$f":"VLOOKUP(A96,'Structure mapping'!K:V,7,0)","v":{"$error":"#N/A"}},{"$f":"LEFT(Template!B108,5)","v":""},{"$f":"VLOOKUP(C96,'Structure mapping'!F:J,5,0)","v":{"$error":"#N/A"}},{"$f":"LEFT(Template!C108,7)","v":""},{"$f":"VLOOKUP(E96,'Structure mapping'!A:E,5,0)","v":{"$error":"#N/A"}},{"$f":"LEFT(Template!D108,6)","v":""},{"$f":"VLOOKUP(G96,'Account mapping'!A:E,5,0)","v":{"$error":"#N/A"}},{"$f":"LEFT(Template!E108,2)","v":""},{"$f":"VLOOKUP(I96,'Structure mapping'!X:AB,5,0)","v":{"$error":"#N/A"}},{"$f":"LEFT(Template!F108,3)","v":""},{"$f":"VLOOKUP(K96,'Structure mapping'!AC:AG,5,0)","v":{"$error":"#N/A"}},{"$f":"LEFT(Template!G108,10)","v":""},{"$f":"VLOOKUP(M96,'Structure mapping'!AH:AL,5,0)","v":{"$error":"#N/A"}},{"$f":"LEFT(Template!H108,6)","v":""},{"$f":"VLOOKUP(O96,'Structure mapping'!AM:AQ,5,0)","v":{"$error":"#N/A"}},null,null,null,null,{"$f":"IF(Template!O108=\"\",\"\",Template!O108)","v":""},"Aug-24 pending entries",{"$f":"TEXT(Template!$B$9,\"mm/dd/yyy\")","v":"08/01/2024"},null,null,null,null,{"$f":"IF(Template!M108>0,Template!M108,-Template!N108)","v":0},null,null,null,{"$f":"VLOOKUP(G96,'Account mapping'!A:D,4,0)","v":{"$error":"#N/A"}}]
[{"$f":"LEFT(Template!A109,4)","v":""},{"$f":"VLOOKUP(A97,'Structure mapping'!K:V,7,0)","v":{"$error":"#N/A"}},{"$f":"LEFT(Template!B109,5)","v":""},{"$f":"VLOOKUP(C97,'Structure mapping'!F:J,5,0)","v":{"$error":"#N/A"}},{"$f":"LEFT(Template!C109,7)","v":""},{"$f":"VLOOKUP(E97,'Structure mapping'!A:E,5,0)","v":{"$error":"#N/A"}},{"$f":"LEFT(Template!D109,6)","v":""},{"$f":"VLOOKUP(G97,'Account mapping'!A:E,5,0)","v":{"$error":"#N/A"}},{"$f":"LEFT(Template!E109,2)","v":""},{"$f":"VLOOKUP(I97,'Structure mapping'!X:AB,5,0)","v":{"$error":"#N/A"}},{"$f":"LEFT(Template!F109,3)","v":""},{"$f":"VLOOKUP(K97,'Structure mapping'!AC:AG,5,0)","v":{"$error":"#N/A"}},{"$f":"LEFT(Template!G109,10)","v":""},{"$f":"VLOOKUP(M97,'Structure mapping'!AH:AL,5,0)","v":{"$error":"#N/A"}},{"$f":"LEFT(Template!H109,6)","v":""},{"$f":"VLOOKUP(O97,'Structure mapping'!AM:AQ,5,0)","v":{"$error":"#N/A"}},null,null,null,null,{"$f":"IF(Template!O109=\"\",\"\",Template!O109)","v":""},"Aug-24 pending entries",{"$f":"TEXT(Template!$B$9,\"mm/dd/yyy\")","v":"08/01/2024"},null,null,null,null,{"$f":"IF(Template!M109>0,Template!M109,-Template!N109)","v":0},null,null,null,{"$f":"VLOOKUP(G97,'Account mapping'!A:D,4,0)","v":{"$error":"#N/A"}}]
[{"$f":"LEFT(Template!A110,4)","v":""},{"$f":"VLOOKUP(A98,'Structure mapping'!K:V,7,0)","v":{"$error":"#N/A"}},{"$f":"LEFT(Template!B110,5)","v":""},{"$f":"VLOOKUP(C98,'Structure mapping'!F:J,5,0)","v":{"$error":"#N/A"}},{"$f":"LEFT(Template!C110,7)","v":""},{"$f":"VLOOKUP(E98,'Structure mapping'!A:E,5,0)","v":{"$error":"#N/A"}},{"$f":"LEFT(Template!D110,6)","v":""},{"$f":"VLOOKUP(G98,'Account mapping'!A:E,5,0)","v":{"$error":"#N/A"}},{"$f":"LEFT(Template!E110,2)","v":""},{"$f":"VLOOKUP(I98,'Structure mapping'!X:AB,5,0)","v":{"$error":"#N/A"}},{"$f":"LEFT(Template!F110,3)","v":""},{"$f":"VLOOKUP(K98,'Structure mapping'!AC:AG,5,0)","v":{"$error":"#N/A"}},{"$f":"LEFT(Template!G110,10)","v":""},{"$f":"VLOOKUP(M98,'Structure mapping'!AH:AL,5,0)","v":{"$error":"#N/A"}},{"$f":"LEFT(Template!H110,6)","v":""},{"$f":"VLOOKUP(O98,'Structure mapping'!AM:AQ,5,0)","v":{"$error":"#N/A"}},null,null,null,null,{"$f":"IF(Template!O110=\"\",\"\",Template!O110)","v":""},"Aug-24 pending entries",{"$f":"TEXT(Template!$B$9,\"mm/dd/yyy\")","v":"08/01/2024"},null,null,null,null,{"$f":"IF(Template!M110>0,Template!M110,-Template!N110)","v":0},null,null,null,{"$f":"VLOOKUP(G98,'Account mapping'!A:D,4,0)","v":{"$error":"#N/A"}}]
[{"$f":"LEFT(Template!A111,4)","v":""},{"$f":"VLOOKUP(A99,'Structure mapping'!K:V,7,0)","v":{"$error":"#N/A"}},{"$f":"LEFT(Template!B111,5)","v":""},{"$f":"VLOOKUP(C99,'Structure mapping'!F:J,5,0)","v":{"$error":"#N/A"}},{"$f":"LEFT(Template!C111,7)","v":""},{"$f":"VLOOKUP(E99,'Structure mapping'!A:E,5,0)","v":{"$error":"#N/A"}},{"$f":"LEFT(Template!D111,6)","v":""},{"$f":"VLOOKUP(G99,'Account mapping'!A:E,5,0)","v":{"$error":"#N/A"}},{"$f":"LEFT(Template!E111,2)","v":""},{"$f":"VLOOKUP(I99,'Structure mapping'!X:AB,5,0)","v":{"$error":"#N/A"}},{"$f":"LEFT(Template!F111,3)","v":""},{"$f":"VLOOKUP(K99,'Structure mapping'!AC:AG,5,0)","v":{"$error":"#N/A"}},{"$f":"LEFT(Template!G111,10)","v":""},{"$f":"VLOOKUP(M99,'Structure mapping'!AH:AL,5,0)","v":{"$error":"#N/A"}},{"$f":"LEFT(Template!H111,6)","v":""},{"$f":"VLOOKUP(O99,'Structure mapping'!AM:AQ,5,0)","v":{"$error":"#N/A"}},null,null,null,null,{"$f":"IF(Template!O111=\"\",\"\",Template!O111)","v":""},"Aug-24 pending entries",{"$f":"TEXT(Template!$B$9,\"mm/dd/yyy\")","v":"08/01/2024"},null,null,null,null,{"$f":"IF(Template!M111>0,Template!M111,-Template!N111)","v":0},null,null,null,{"$f":"VLOOKUP(G99,'Account mapping'!A:D,4,0)","v":{"$error":"#N/A"}}]
[{"$f":"LEFT(Template!A112,4)","v":""},{"$f":"VLOOKUP(A100,'Structure mapping'!K:V,7,0)","v":{"$error":"#N/A"}},{"$f":"LEFT(Template!B112,5)","v":""},{"$f":"VLOOKUP(C100,'Structure mapping'!F:J,5,0)","v":{"$error":"#N/A"}},{"$f":"LEFT(Template!C112,7)","v":""},{"$f":"VLOOKUP(E100,'Structure mapping'!A:E,5,0)","v":{"$error":"#N/A"}},{"$f":"LEFT(Template!D112,6)","v":""},{"$f":"VLOOKUP(G100,'Account mapping'!A:E,5,0)","v":{"$error":"#N/A"}},{"$f":"LEFT(Template!E112,2)","v":""},{"$f":"VLOOKUP(I100,'Structure mapping'!X:AB,5,0)","v":{"$error":"#N/A"}},{"$f":"LEFT(Template!F112,3)","v":""},{"$f":"VLOOKUP(K100,'Structure mapping'!AC:AG,5,0)","v":{"$error":"#N/A"}},{"$f":"LEFT(Template!G112,10)","v":""},{"$f":"VLOOKUP(M100,'Structure mapping'!AH:AL,5,0)","v":{"$error":"#N/A"}},{"$f":"LEFT(Template!H112,6)","v":""},{"$f":"VLOOKUP(O100,'Structure mapping'!AM:AQ,5,0)","v":{"$error":"#N/A"}},null,null,null,null,{"$f":"IF(Template!O112=\"\",\"\",Template!O112)","v":""},"Aug-24 pending entries",{"$f":"TEXT(Template!$B$9,\"mm/dd/yyy\")","v":"08/01/2024"},null,null,null,null,{"$f":"IF(Template!M112>0,Template!M112,-Template!N112)","v":0},null,null,null,{"$f":"VLOOKUP(G100,'Account mapping'!A:D,4,0)","v":{"$error":"#N/A"}}]
[{"$f":"LEFT(Template!A113,4)","v":""},{"$f":"VLOOKUP(A101,'Structure mapping'!K:V,7,0)","v":{"$error":"#N/A"}},{"$f":"LEFT(Template!B113,5)","v":""},{"$f":"VLOOKUP(C101,'Structure mapping'!F:J,5,0)","v":{"$error":"#N/A"}},{"$f":"LEFT(Template!C113,7)","v":""},{"$f":"VLOOKUP(E101,'Structure mapping'!A:E,5,0)","v":{"$error":"#N/A"}},{"$f":"LEFT(Template!D113,6)","v":""},{"$f":"VLOOKUP(G101,'Account mapping'!A:E,5,0)","v":{"$error":"#N/A"}},{"$f":"LEFT(Template!E113,2)","v":""},{"$f":"VLOOKUP(I101,'Structure mapping'!X:AB,5,0)","v":{"$error":"#N/A"}},{"$f":"LEFT(Template!F113,3)","v":""},{"$f":"VLOOKUP(K101,'Structure mapping'!AC:AG,5,0)","v":{"$error":"#N/A"}},{"$f":"LEFT(Template!G113,10)","v":""},{"$f":"VLOOKUP(M101,'Structure mapping'!AH:AL,5,0)","v":{"$error":"#N/A"}},{"$f":"LEFT(Template!H113,6)","v":""},{"$f":"VLOOKUP(O101,'Structure mapping'!AM:AQ,5,0)","v":{"$error":"#N/A"}},null,null,null,null,{"$f":"IF(Template!O113=\"\",\"\",Template!O113)","v":""},"Aug-24 pending entries",{"$f":"TEXT(Template!$B$9,\"mm/dd/yyy\")","v":"08/01/2024"},null,null,null,null,{"$f":"IF(Template!M113>0,Template!M113,-Template!N113)","v":0},null,null,null,{"$f":"VLOOKUP(G101,'Account mapping'!A:D,4,0)","v":{"$error":"#N/A"}}]
[{"$f":"LEFT(Template!A114,4)","v":""},{"$f":"VLOOKUP(A102,'Structure mapping'!K:V,7,0)","v":{"$error":"#N/A"}},{"$f":"LEFT(Template!B114,5)","v":""},{"$f":"VLOOKUP(C102,'Structure mapping'!F:J,5,0)","v":{"$error":"#N/A"}},{"$f":"LEFT(Template!C114,7)","v":""},{"$f":"VLOOKUP(E102,'Structure mapping'!A:E,5,0)","v":{"$error":"#N/A"}},{"$f":"LEFT(Template!D114,6)","v":""},{"$f":"VLOOKUP(G102,'Account mapping'!A:E,5,0)","v":{"$error":"#N/A"}},{"$f":"LEFT(Template!E114,2)","v":""},{"$f":"VLOOKUP(I102,'Structure mapping'!X:AB,5,0)","v":{"$error":"#N/A"}},{"$f":"LEFT(Template!F114,3)","v":""},{"$f":"VLOOKUP(K102,'Structure mapping'!AC:AG,5,0)","v":{"$error":"#N/A"}},{"$f":"LEFT(Template!G114,10)","v":""},{"$f":"VLOOKUP(M102,'Structure mapping'!AH:AL,5,0)","v":{"$error":"#N/A"}},{"$f":"LEFT(Template!H114,6)","v":""},{"$f":"VLOOKUP(O102,'Structure mapping'!AM:AQ,5,0)","v":{"$error":"#N/A"}},null,null,null,null,{"$f":"IF(Template!O114=\"\",\"\",Template!O114)","v":""},"Aug-24 pending entries",{"$f":"TEXT(Template!$B$9,\"mm/dd/yyy\")","v":"08/01/2024"},null,null,null,null,{"$f":"IF(Template!M114>0,Template!M114,-Template!N114)","v":0},null,null,null,{"$f":"VLOOKUP(G102,'Account mapping'!A:D,4,0)","v":{"$error":"#N/A"}}]
[{"$f":"LEFT(Template!A115,4)","v":""},{"$f":"VLOOKUP(A103,'Structure mapping'!K:V,7,0)","v":{"$error":"#N/A"}},{"$f":"LEFT(Template!B115,5)","v":""},{"$f":"VLOOKUP(C103,'Structure mapping'!F:J,5,0)","v":{"$error":"#N/A"}},{"$f":"LEFT(Template!C115,7)","v":""},{"$f":"VLOOKUP(E103,'Structure mapping'!A:E,5,0)","v":{"$error":"#N/A"}},{"$f":"LEFT(Template!D115,6)","v":""},{"$f":"VLOOKUP(G103,'Account mapping'!A:E,5,0)","v":{"$error":"#N/A"}},{"$f":"LEFT(Template!E115,2)","v":""},{"$f":"VLOOKUP(I103,'Structure mapping'!X:AB,5,0)","v":{"$error":"#N/A"}},{"$f":"LEFT(Template!F115,3)","v":""},{"$f":"VLOOKUP(K103,'Structure mapping'!AC:AG,5,0)","v":{"$error":"#N/A"}},{"$f":"LEFT(Template!G115,10)","v":""},{"$f":"VLOOKUP(M103,'Structure mapping'!AH:AL,5,0)","v":{"$error":"#N/A"}},{"$f":"LEFT(Template!H115,6)","v":""},{"$f":"VLOOKUP(O103,'Structure mapping'!AM:AQ,5,0)","v":{"$error":"#N/A"}},null,null,null,null,{"$f":"IF(Template!O115=\"\",\"\",Template!O115)","v":""},"Aug-24 pending entries",{"$f":"TEXT(Template!$B$9,\"mm/dd/yyy\")","v":"08/01/2024"},null,null,null,null,{"$f":"IF(Template!M115>0,Template!M115,-Template!N115)","v":0},null,null,null,{"$f":"VLOOKUP(G103,'Account mapping'!A:D,4,0)","v":{"$error":"#N/A"}}]
[{"$f":"LEFT(Template!A116,4)","v":""},{"$f":"VLOOKUP(A104,'Structure mapping'!K:V,7,0)","v":{"$error":"#N/A"}},{"$f":"LEFT(Template!B116,5)","v":""},{"$f":"VLOOKUP(C104,'Structure mapping'!F:J,5,0)","v":{"$error":"#N/A"}},{"$f":"LEFT(Template!C116,7)","v":""},{"$f":"VLOOKUP(E104,'Structure mapping'!A:E,5,0)","v":{"$error":"#N/A"}},{"$f":"LEFT(Template!D116,6)","v":""},{"$f":"VLOOKUP(G104,'Account mapping'!A:E,5,0)","v":{"$error":"#N/A"}},{"$f":"LEFT(Template!E116,2)","v":""},{"$f":"VLOOKUP(I104,'Structure mapping'!X:AB,5,0)","v":{"$error":"#N/A"}},{"$f":"LEFT(Template!F116,3)","v":""},{"$f":"VLOOKUP(K104,'Structure mapping'!AC:AG,5,0)","v":{"$error":"#N/A"}},{"$f":"LEFT(Template!G116,10)","v":""},{"$f":"VLOOKUP(M104,'Structure mapping'!AH:AL,5,0)","v":{"$error":"#N/A"}},{"$f":"LEFT(Template!H116,6)","v":""},{"$f":"VLOOKUP(O104,'Structure mapping'!AM:AQ,5,0)","v":{"$error":"#N/A"}},null,null,null,null,{"$f":"IF(Template!O116=\"\",\"\",Template!O116)","v":""},"Aug-24 pending entries",{"$f":"TEXT(Template!$B$9,\"mm/dd/yyy\")","v":"08/01/2024"},null,null,null,null,{"$f":"IF(Template!M116>0,Template!M116,-Template!N116)","v":0},null,null,null,{"$f":"VLOOKUP(G104,'Account mapping'!A:D,4,0)","v":{"$error":"#N/A"}}]
[{"$f":"LEFT(Template!A117,4)","v":""},{"$f":"VLOOKUP(A105,'Structure mapping'!K:V,7,0)","v":{"$error":"#N/A"}},{"$f":"LEFT(Template!B117,5)","v":""},{"$f":"VLOOKUP(C105,'Structure mapping'!F:J,5,0)","v":{"$error":"#N/A"}},{"$f":"LEFT(Template!C117,7)","v":""},{"$f":"VLOOKUP(E105,'Structure mapping'!A:E,5,0)","v":{"$error":"#N/A"}},{"$f":"LEFT(Template!D117,6)","v":""},{"$f":"VLOOKUP(G105,'Account mapping'!A:E,5,0)","v":{"$error":"#N/A"}},{"$f":"LEFT(Template!E117,2)","v":""},{"$f":"VLOOKUP(I105,'Structure mapping'!X:AB,5,0)","v":{"$error":"#N/A"}},{"$f":"LEFT(Template!F117,3)","v":""},{"$f":"VLOOKUP(K105,'Structure mapping'!AC:AG,5,0)","v":{"$error":"#N/A"}},{"$f":"LEFT(Template!G117,10)","v":""},{"$f":"VLOOKUP(M105,'Structure mapping'!AH:AL,5,0)","v":{"$error":"#N/A"}},{"$f":"LEFT(Template!H117,6)","v":""},{"$f":"VLOOKUP(O105,'Structure mapping'!AM:AQ,5,0)","v":{"$error":"#N/A"}},null,null,null,null,{"$f":"IF(Template!O117=\"\",\"\",Template!O117)","v":""},"Aug-24 pending entries",{"$f":"TEXT(Template!$B$9,\"mm/dd/yyy\")","v":"08/01/2024"},null,null,null,null,{"$f":"IF(Template!M117>0,Template!M117,-Template!N117)","v":0},null,null,null,{"$f":"VLOOKUP(G105,'Account mapping'!A:D,4,0)","v":{"$error":"#N/A"}}]
[{"$f":"LEFT(Template!A118,4)","v":""},{"$f":"VLOOKUP(A106,'Structure mapping'!K:V,7,0)","v":{"$error":"#N/A"}},{"$f":"LEFT(Template!B118,5)","v":""},{"$f":"VLOOKUP(C106,'Structure mapping'!F:J,5,0)","v":{"$error":"#N/A"}},{"$f":"LEFT(Template!C118,7)","v":""},{"$f":"VLOOKUP(E106,'Structure mapping'!A:E,5,0)","v":{"$error":"#N/A"}},{"$f":"LEFT(Template!D118,6)","v":""},{"$f":"VLOOKUP(G106,'Account mapping'!A:E,5,0)","v":{"$error":"#N/A"}},{"$f":"LEFT(Template!E118,2)","v":""},{"$f":"VLOOKUP(I106,'Structure mapping'!X:AB,5,0)","v":{"$error":"#N/A"}},{"$f":"LEFT(Template!F118,3)","v":""},{"$f":"VLOOKUP(K106,'Structure mapping'!AC:AG,5,0)","v":{"$error":"#N/A"}},{"$f":"LEFT(Template!G118,10)","v":""},{"$f":"VLOOKUP(M106,'Structure mapping'!AH:AL,5,0)","v":{"$error":"#N/A"}},{"$f":"LEFT(Template!H118,6)","v":""},{"$f":"VLOOKUP(O106,'Structure mapping'!AM:AQ,5,0)","v":{"$error":"#N/A"}},null,null,null,null,{"$f":"IF(Template!O118=\"\",\"\",Template!O118)","v":""},"Aug-24 pending entries",{"$f":"TEXT(Template!$B$9,\"mm/dd/yyy\")","v":"08/01/2024"},null,null,null,null,{"$f":"IF(Template!M118>0,Template!M118,-Template!N118)","v":0},null,null,null,{"$f":"VLOOKUP(G106,'Account mapping'!A:D,4,0)","v":{"$error":"#N/A"}}]
[{"$f":"LEFT(Template!A119,4)","v":""},{"$f":"VLOOKUP(A107,'Structure mapping'!K:V,7,0)","v":{"$error":"#N/A"}},{"$f":"LEFT(Template!B119,5)","v":""},{"$f":"VLOOKUP(C107,'Structure mapping'!F:J,5,0)","v":{"$error":"#N/A"}},{"$f":"LEFT(Template!C119,7)","v":""},{"$f":"VLOOKUP(E107,'Structure mapping'!A:E,5,0)","v":{"$error":"#N/A"}},{"$f":"LEFT(Template!D119,6)","v":""},{"$f":"VLOOKUP(G107,'Account mapping'!A:E,5,0)","v":{"$error":"#N/A"}},{"$f":"LEFT(Template!E119,2)","v":""},{"$f":"VLOOKUP(I107,'Structure mapping'!X:AB,5,0)","v":{"$error":"#N/A"}},{"$f":"LEFT(Template!F119,3)","v":""},{"$f":"VLOOKUP(K107,'Structure mapping'!AC:AG,5,0)","v":{"$error":"#N/A"}},{"$f":"LEFT(Template!G119,10)","v":""},{"$f":"VLOOKUP(M107,'Structure mapping'!AH:AL,5,0)","v":{"$error":"#N/A"}},{"$f":"LEFT(Template!H119,6)","v":""},{"$f":"VLOOKUP(O107,'Structure mapping'!AM:AQ,5,0)","v":{"$error":"#N/A"}},null,null,null,null,{"$f":"IF(Template!O119=\"\",\"\",Template!O119)","v":""},"Aug-24 pending entries",{"$f":"TEXT(Template!$B$9,\"mm/dd/yyy\")","v":"08/01/2024"},null,null,null,null,{"$f":"IF(Template!M119>0,Template!M119,-Template!N119)","v":0},null,null,null,{"$f":"VLOOKUP(G107,'Account mapping'!A:D,4,0)","v":{"$error":"#N/A"}}]
[{"$f":"LEFT(Template!A120,4)","v":""},{"$f":"VLOOKUP(A108,'Structure mapping'!K:V,7,0)","v":{"$error":"#N/A"}},{"$f":"LEFT(Template!B120,5)","v":""},{"$f":"VLOOKUP(C108,'Structure mapping'!F:J,5,0)","v":{"$error":"#N/A"}},{"$f":"LEFT(Template!C120,7)","v":""},{"$f":"VLOOKUP(E108,'Structure mapping'!A:E,5,0)","v":{"$error":"#N/A"}},{"$f":"LEFT(Template!D120,6)","v":""},{"$f":"VLOOKUP(G108,'Account mapping'!A:E,5,0)","v":{"$error":"#N/A"}},{"$f":"LEFT(Template!E120,2)","v":""},{"$f":"VLOOKUP(I108,'Structure mapping'!X:AB,5,0)","v":{"$error":"#N/A"}},{"$f":"LEFT(Template!F120,3)","v":""},{"$f":"VLOOKUP(K108,'Structure mapping'!AC:AG,5,0)","v":{"$error":"#N/A"}},{"$f":"LEFT(Template!G120,10)","v":""},{"$f":"VLOOKUP(M108,'Structure mapping'!AH:AL,5,0)","v":{"$error":"#N/A"}},{"$f":"LEFT(Template!H120,6)","v":""},{"$f":"VLOOKUP(O108,'Structure mapping'!AM:AQ,5,0)","v":{"$error":"#N/A"}},null,null,null,null,{"$f":"IF(Template!O120=\"\",\"\",Template!O120)","v":""},"Aug-24 pending entries",{"$f":"TEXT(Template!$B$9,\"mm/dd/yyy\")","v":"08/01/2024"},null,null,null,null,{"$f":"IF(Template!M120>0,Template!M120,-Template!N120)","v":0},null,null,null,{"$f":"VLOOKUP(G108,'Account mapping'!A:D,4,0)","v":{"$error":"#N/A"}}]
[{"$f":"LEFT(Template!A121,4)","v":""},{"$f":"VLOOKUP(A109,'Structure mapping'!K:V,7,0)","v":{"$error":"#N/A"}},{"$f":"LEFT(Template!B121,5)","v":""},{"$f":"VLOOKUP(C109,'Structure mapping'!F:J,5,0)","v":{"$error":"#N/A"}},{"$f":"LEFT(Template!C121,7)","v":""},{"$f":"VLOOKUP(E109,'Structure mapping'!A:E,5,0)","v":{"$error":"#N/A"}},{"$f":"LEFT(Template!D121,6)","v":""},{"$f":"VLOOKUP(G109,'Account mapping'!A:E,5,0)","v":{"$error":"#N/A"}},{"$f":"LEFT(Template!E121,2)","v":""},{"$f":"VLOOKUP(I109,'Structure mapping'!X:AB,5,0)","v":{"$error":"#N/A"}},{"$f":"LEFT(Template!F121,3)","v":""},{"$f":"VLOOKUP(K109,'Structure mapping'!AC:AG,5,0)","v":{"$error":"#N/A"}},{"$f":"LEFT(Template!G121,10)","v":""},{"$f":"VLOOKUP(M109,'Structure mapping'!AH:AL,5,0)","v":{"$error":"#N/A"}},{"$f":"LEFT(Template!H121,6)","v":""},{"$f":"VLOOKUP(O109,'Structure mapping'!AM:AQ,5,0)","v":{"$error":"#N/A"}},null,null,null,null,{"$f":"IF(Template!O121=\"\",\"\",Template!O121)","v":""},"Aug-24 pending entries",{"$f":"TEXT(Template!$B$9,\"mm/dd/yyy\")","v":"08/01/2024"},null,null,null,null,{"$f":"IF(Template!M121>0,Template!M121,-Template!N121)","v":0},null,null,null,{"$f":"VLOOKUP(G109,'Account mapping'!A:D,4,0)","v":{"$error":"#N/A"}}]
[{"$f":"LEFT(Template!A122,4)","v":""},{"$f":"VLOOKUP(A110,'Structure mapping'!K:V,7,0)","v":{"$error":"#N/A"}},{"$f":"LEFT(Template!B122,5)","v":""},{"$f":"VLOOKUP(C110,'Structure mapping'!F:J,5,0)","v":{"$error":"#N/A"}},{"$f":"LEFT(Template!C122,7)","v":""},{"$f":"VLOOKUP(E110,'Structure mapping'!A:E,5,0)","v":{"$error":"#N/A"}},{"$f":"LEFT(Template!D122,6)","v":""},{"$f":"VLOOKUP(G110,'Account mapping'!A:E,5,0)","v":{"$error":"#N/A"}},{"$f":"LEFT(Template!E122,2)","v":""},{"$f":"VLOOKUP(I110,'Structure mapping'!X:AB,5,0)","v":{"$error":"#N/A"}},{"$f":"LEFT(Template!F122,3)","v":""},{"$f":"VLOOKUP(K110,'Structure mapping'!AC:AG,5,0)","v":{"$error":"#N/A"}},{"$f":"LEFT(Template!G122,10)","v":""},{"$f":"VLOOKUP(M110,'Structure mapping'!AH:AL,5,0)","v":{"$error":"#N/A"}},{"$f":"LEFT(Template!H122,6)","v":""},{"$f":"VLOOKUP(O110,'Structure mapping'!AM:AQ,5,0)","v":{"$error":"#N/A"}},null,null,null,null,{"$f":"IF(Template!O122=\"\",\"\",Template!O122)","v":""},"Aug-24 pending entries",{"$f":"TEXT(Template!$B$9,\"mm/dd/yyy\")","v":"08/01/2024"},null,null,null,null,{"$f":"IF(Template!M122>0,Template!M122,-Template!N122)","v":0},null,null,null,{"$f":"VLOOKUP(G110,'Account mapping'!A:D,4,0)","v":{"$error":"#N/A"}}]
[{"$f":"LEFT(Template!A123,4)","v":""},{"$f":"VLOOKUP(A111,'Structure mapping'!K:V,7,0)","v":{"$error":"#N/A"}},{"$f":"LEFT(Template!B123,5)","v":""},{"$f":"VLOOKUP(C111,'Structure mapping'!F:J,5,0)","v":{"$error":"#N/A"}},{"$f":"LEFT(Template!C123,7)","v":""},{"$f":"VLOOKUP(E111,'Structure mapping'!A:E,5,0)","v":{"$error":"#N/A"}},{"$f":"LEFT(Template!D123,6)","v":""},{"$f":"VLOOKUP(G111,'Account mapping'!A:E,5,0)","v":{"$error":"#N/A"}},{"$f":"LEFT(Template!E123,2)","v":""},{"$f":"VLOOKUP(I111,'Structure mapping'!X:AB,5,0)","v":{"$error":"#N/A"}},{"$f":"LEFT(Template!F123,3)","v":""},{"$f":"VLOOKUP(K111,'Structure mapping'!AC:AG,5,0)","v":{"$error":"#N/A"}},{"$f":"LEFT(Template!G123,10)","v":""},{"$f":"VLOOKUP(M111,'Structure mapping'!AH:AL,5,0)","v":{"$error":"#N/A"}},{"$f":"LEFT(Template!H123,6)","v":""},{"$f":"VLOOKUP(O111,'Structure mapping'!AM:AQ,5,0)","v":{"$error":"#N/A"}},null,null,null,null,{"$f":"IF(Template!O123=\"\",\"\",Template!O123)","v":""},"Aug-24 pending entries",{"$f":"TEXT(Template!$B$9,\"mm/dd/yyy\")","v":"08/01/2024"},null,null,null,null,{"$f":"IF(Template!M123>0,Template!M123,-Template!N123)","v":0},null,null,null,{"$f":"VLOOKUP(G111,'Account mapping'!A:D,4,0)","v":{"$error":"#N/A"}}]
[{"$f":"LEFT(Template!A124,4)","v":""},{"$f":"VLOOKUP(A112,'Structure mapping'!K:V,7,0)","v":{"$error":"#N/A"}},{"$f":"LEFT(Template!B124,5)","v":""},{"$f":"VLOOKUP(C112,'Structure mapping'!F:J,5,0)","v":{"$error":"#N/A"}},{"$f":"LEFT(Template!C124,7)","v":""},{"$f":"VLOOKUP(E112,'Structure mapping'!A:E,5,0)","v":{"$error":"#N/A"}},{"$f":"LEFT(Template!D124,6)","v":""},{"$f":"VLOOKUP(G112,'Account mapping'!A:E,5,0)","v":{"$error":"#N/A"}},{"$f":"LEFT(Template!E124,2)","v":""},{"$f":"VLOOKUP(I112,'Structure mapping'!X:AB,5,0)","v":{"$error":"#N/A"}},{"$f":"LEFT(Template!F124,3)","v":""},{"$f":"VLOOKUP(K112,'Structure mapping'!AC:AG,5,0)","v":{"$error":"#N/A"}},{"$f":"LEFT(Template!G124,10)","v":""},{"$f":"VLOOKUP(M112,'Structure mapping'!AH:AL,5,0)","v":{"$error":"#N/A"}},{"$f":"LEFT(Template!H124,6)","v":""},{"$f":"VLOOKUP(O112,'Structure mapping'!AM:AQ,5,0)","v":{"$error":"#N/A"}},null,null,null,null,{"$f":"IF(Template!O124=\"\",\"\",Template!O124)","v":""},"Aug-24 pending entries",{"$f":"TEXT(Template!$B$9,\"mm/dd/yyy\")","v":"08/01/2024"},null,null,null,null,{"$f":"IF(Template!M124>0,Template!M124,-Template!N124)","v":0},null,null,null,{"$f":"VLOOKUP(G112,'Account mapping'!A:D,4,0)","v":{"$error":"#N/A"}}]
[{"$f":"LEFT(Template!A125,4)","v":""},{"$f":"VLOOKUP(A113,'Structure mapping'!K:V,7,0)","v":{"$error":"#N/A"}},{"$f":"LEFT(Template!B125,5)","v":""},{"$f":"VLOOKUP(C113,'Structure mapping'!F:J,5,0)","v":{"$error":"#N/A"}},{"$f":"LEFT(Template!C125,7)","v":""},{"$f":"VLOOKUP(E113,'Structure mapping'!A:E,5,0)","v":{"$error":"#N/A"}},{"$f":"LEFT(Template!D125,6)","v":""},{"$f":"VLOOKUP(G113,'Account mapping'!A:E,5,0)","v":{"$error":"#N/A"}},{"$f":"LEFT(Template!E125,2)","v":""},{"$f":"VLOOKUP(I113,'Structure mapping'!X:AB,5,0)","v":{"$error":"#N/A"}},{"$f":"LEFT(Template!F125,3)","v":""},{"$f":"VLOOKUP(K113,'Structure mapping'!AC:AG,5,0)","v":{"$error":"#N/A"}},{"$f":"LEFT(Template!G125,10)","v":""},{"$f":"VLOOKUP(M113,'Structure mapping'!AH:AL,5,0)","v":{"$error":"#N/A"}},{"$f":"LEFT(Template!H125,6)","v":""},{"$f":"VLOOKUP(O113,'Structure mapping'!AM:AQ,5,0)","v":{"$error":"#N/A"}},null,null,null,null,{"$f":"IF(Template!O125=\"\",\"\",Template!O125)","v":""},"Aug-24 pending entries",{"$f":"TEXT(Template!$B$9,\"mm/dd/yyy\")","v":"08/01/2024"},null,null,null,null,{"$f":"IF(Template!M125>0,Template!M125,-Template!N125)","v":0},null,null,null,{"$f":"VLOOKUP(G113,'Account mapping'!A:D,4,0)","v":{"$error":"#N/A"}}]
[{"$f":"LEFT(Template!A126,4)","v":""},{"$f":"VLOOKUP(A114,'Structure mapping'!K:V,7,0)","v":{"$error":"#N/A"}},{"$f":"LEFT(Template!B126,5)","v":""},{"$f":"VLOOKUP(C114,'Structure mapping'!F:J,5,0)","v":{"$error":"#N/A"}},{"$f":"LEFT(Template!C126,7)","v":""},{"$f":"VLOOKUP(E114,'Structure mapping'!A:E,5,0)","v":{"$error":"#N/A"}},{"$f":"LEFT(Template!D126,6)","v":""},{"$f":"VLOOKUP(G114,'Account mapping'!A:E,5,0)","v":{"$error":"#N/A"}},{"$f":"LEFT(Template!E126,2)","v":""},{"$f":"VLOOKUP(I114,'Structure mapping'!X:AB,5,0)","v":{"$error":"#N/A"}},{"$f":"LEFT(Template!F126,3)","v":""},{"$f":"VLOOKUP(K114,'Structure mapping'!AC:AG,5,0)","v":{"$error":"#N/A"}},{"$f":"LEFT(Template!G126,10)","v":""},{"$f":"VLOOKUP(M114,'Structure mapping'!AH:AL,5,0)","v":{"$error":"#N/A"}},{"$f":"LEFT(Template!H126,6)","v":""},{"$f":"VLOOKUP(O114,'Structure mapping'!AM:AQ,5,0)","v":{"$error":"#N/A"}},null,null,null,null,{"$f":"IF(Template!O126=\"\",\"\",Template!O126)","v":""},"Aug-24 pending entries",{"$f":"TEXT(Template!$B$9,\"mm/dd/yyy\")","v":"08/01/2024"},null,null,null,null,{"$f":"IF(Template!M126>0,Template!M126,-Template!N126)","v":0},null,null,null,{"$f":"VLOOKUP(G114,'Account mapping'!A:D,4,0)","v":{"$error":"#N/A"}}]
[{"$f":"LEFT(Template!A127,4)","v":""},{"$f":"VLOOKUP(A115,'Structure mapping'!K:V,7,0)","v":{"$error":"#N/A"}},{"$f":"LEFT(Template!B127,5)","v":""},{"$f":"VLOOKUP(C115,'Structure mapping'!F:J,5,0)","v":{"$error":"#N/A"}},{"$f":"LEFT(Template!C127,7)","v":""},{"$f":"VLOOKUP(E115,'Structure mapping'!A:E,5,0)","v":{"$error":"#N/A"}},{"$f":"LEFT(Template!D127,6)","v":""},{"$f":"VLOOKUP(G115,'Account mapping'!A:E,5,0)","v":{"$error":"#N/A"}},{"$f":"LEFT(Template!E127,2)","v":""},{"$f":"VLOOKUP(I115,'Structure mapping'!X:AB,5,0)","v":{"$error":"#N/A"}},{"$f":"LEFT(Template!F127,3)","v":""},{"$f":"VLOOKUP(K115,'Structure mapping'!AC:AG,5,0)","v":{"$error":"#N/A"}},{"$f":"LEFT(Template!G127,10)","v":""},{"$f":"VLOOKUP(M115,'Structure mapping'!AH:AL,5,0)","v":{"$error":"#N/A"}},{"$f":"LEFT(Template!H127,6)","v":""},{"$f":"VLOOKUP(O115,'Structure mapping'!AM:AQ,5,0)","v":{"$error":"#N/A"}},null,null,null,null,{"$f":"IF(Template!O127=\"\",\"\",Template!O127)","v":""},"Aug-24 pending entries",{"$f":"TEXT(Template!$B$9,\"mm/dd/yyy\")","v":"08/01/2024"},null,null,null,null,{"$f":"IF(Template!M127>0,Template!M127,-Template!N127)","v":0},null,null,null,{"$f":"VLOOKUP(G115,'Account mapping'!A:D,4,0)","v":{"$error":"#N/A"}}]
[{"$f":"LEFT(Template!A128,4)","v":""},{"$f":"VLOOKUP(A116,'Structure mapping'!K:V,7,0)","v":{"$error":"#N/A"}},{"$f":"LEFT(Template!B128,5)","v":""},{"$f":"VLOOKUP(C116,'Structure mapping'!F:J,5,0)","v":{"$error":"#N/A"}},{"$f":"LEFT(Template!C128,7)","v":""},{"$f":"VLOOKUP(E116,'Structure mapping'!A:E,5,0)","v":{"$error":"#N/A"}},{"$f":"LEFT(Template!D128,6)","v":""},{"$f":"VLOOKUP(G116,'Account mapping'!A:E,5,0)","v":{"$error":"#N/A"}},{"$f":"LEFT(Template!E128,2)","v":""},{"$f":"VLOOKUP(I116,'Structure mapping'!X:AB,5,0)","v":{"$error":"#N/A"}},{"$f":"LEFT(Template!F128,3)","v":""},{"$f":"VLOOKUP(K116,'Structure mapping'!AC:AG,5,0)","v":{"$error":"#N/A"}},{"$f":"LEFT(Template!G128,10)","v":""},{"$f":"VLOOKUP(M116,'Structure mapping'!AH:AL,5,0)","v":{"$error":"#N/A"}},{"$f":"LEFT(Template!H128,6)","v":""},{"$f":"VLOOKUP(O116,'Structure mapping'!AM:AQ,5,0)","v":{"$error":"#N/A"}},null,null,null,null,{"$f":"IF(Template!O128=\"\",\"\",Template!O128)","v":""},"Aug-24 pending entries",{"$f":"TEXT(Template!$B$9,\"mm/dd/yyy\")","v":"08/01/2024"},null,null,null,null,{"$f":"IF(Template!M128>0,Template!M128,-Template!N128)","v":0},null,null,null,{"$f":"VLOOKUP(G116,'Account mapping'!A:D,4,0)","v":{"$error":"#N/A"}}]
[{"$f":"LEFT(Template!A129,4)","v":""},{"$f":"VLOOKUP(A117,'Structure mapping'!K:V,7,0)","v":{"$error":"#N/A"}},{"$f":"LEFT(Template!B129,5)","v":""},{"$f":"VLOOKUP(C117,'Structure mapping'!F:J,5,0)","v":{"$error":"#N/A"}},{"$f":"LEFT(Template!C129,7)","v":""},{"$f":"VLOOKUP(E117,'Structure mapping'!A:E,5,0)","v":{"$error":"#N/A"}},{"$f":"LEFT(Template!D129,6)","v":""},{"$f":"VLOOKUP(G117,'Account mapping'!A:E,5,0)","v":{"$error":"#N/A"}},{"$f":"LEFT(Template!E129,2)","v":""},{"$f":"VLOOKUP(I117,'Structure mapping'!X:AB,5,0)","v":{"$error":"#N/A"}},{"$f":"LEFT(Template!F129,3)","v":""},{"$f":"VLOOKUP(K117,'Structure mapping'!AC:AG,5,0)","v":{"$error":"#N/A"}},{"$f":"LEFT(Template!G129,10)","v":""},{"$f":"VLOOKUP(M117,'Structure mapping'!AH:AL,5,0)","v":{"$error":"#N/A"}},{"$f":"LEFT(Template!H129,6)","v":""},{"$f":"VLOOKUP(O117,'Structure mapping'!AM:AQ,5,0)","v":{"$error":"#N/A"}},null,null,null,null,{"$f":"IF(Template!O129=\"\",\"\",Template!O129)","v":""},"Aug-24 pending entries",{"$f":"TEXT(Template!$B$9,\"mm/dd/yyy\")","v":"08/01/2024"},null,null,null,null,{"$f":"IF(Template!M129>0,Template!M129,-Template!N129)","v":0},null,null,null,{"$f":"VLOOKUP(G117,'Account mapping'!A:D,4,0)","v":{"$error":"#N/A"}}]
[{"$f":"LEFT(Template!A130,4)","v":""},{"$f":"VLOOKUP(A118,'Structure mapping'!K:V,7,0)","v":{"$error":"#N/A"}},{"$f":"LEFT(Template!B130,5)","v":""},{"$f":"VLOOKUP(C118,'Structure mapping'!F:J,5,0)","v":{"$error":"#N/A"}},{"$f":"LEFT(Template!C130,7)","v":""},{"$f":"VLOOKUP(E118,'Structure mapping'!A:E,5,0)","v":{"$error":"#N/A"}},{"$f":"LEFT(Template!D130,6)","v":""},{"$f":"VLOOKUP(G118,'Account mapping'!A:E,5,0)","v":{"$error":"#N/A"}},{"$f":"LEFT(Template!E130,2)","v":""},{"$f":"VLOOKUP(I118,'Structure mapping'!X:AB,5,0)","v":{"$error":"#N/A"}},{"$f":"LEFT(Template!F130,3)","v":""},{"$f":"VLOOKUP(K118,'Structure mapping'!AC:AG,5,0)","v":{"$error":"#N/A"}},{"$f":"LEFT(Template!G130,10)","v":""},{"$f":"VLOOKUP(M118,'Structure mapping'!AH:AL,5,0)","v":{"$error":"#N/A"}},{"$f":"LEFT(Template!H130,6)","v":""},{"$f":"VLOOKUP(O118,'Structure mapping'!AM:AQ,5,0)","v":{"$error":"#N/A"}},null,null,null,null,{"$f":"IF(Template!O130=\"\",\"\",Template!O130)","v":""},"Aug-24 pending entries",{"$f":"TEXT(Template!$B$9,\"mm/dd/yyy\")","v":"08/01/2024"},null,null,null,null,{"$f":"IF(Template!M130>0,Template!M130,-Template!N130)","v":0},null,null,null,{"$f":"VLOOKUP(G118,'Account mapping'!A:D,4,0)","v":{"$error":"#N/A"}}]
[{"$f":"LEFT(Template!A131,4)","v":""},{"$f":"VLOOKUP(A119,'Structure mapping'!K:V,7,0)","v":{"$error":"#N/A"}},{"$f":"LEFT(Template!B131,5)","v":""},{"$f":"VLOOKUP(C119,'Structure mapping'!F:J,5,0)","v":{"$error":"#N/A"}},{"$f":"LEFT(Template!C131,7)","v":""},{"$f":"VLOOKUP(E119,'Structure mapping'!A:E,5,0)","v":{"$error":"#N/A"}},{"$f":"LEFT(Template!D131,6)","v":""},{"$f":"VLOOKUP(G119,'Account mapping'!A:E,5,0)","v":{"$error":"#N/A"}},{"$f":"LEFT(Template!E131,2)","v":""},{"$f":"VLOOKUP(I119,'Structure mapping'!X:AB,5,0)","v":{"$error":"#N/A"}},{"$f":"LEFT(Template!F131,3)","v":""},{"$f":"VLOOKUP(K119,'Structure mapping'!AC:AG,5,0)","v":{"$error":"#N/A"}},{"$f":"LEFT(Template!G131,10)","v":""},{"$f":"VLOOKUP(M119,'Structure mapping'!AH:AL,5,0)","v":{"$error":"#N/A"}},{"$f":"LEFT(Template!H131,6)","v":""},{"$f":"VLOOKUP(O119,'Structure mapping'!AM:AQ,5,0)","v":{"$error":"#N/A"}},null,null,null,null,{"$f":"IF(Template!O131=\"\",\"\",Template!O131)","v":""},"Aug-24 pending entries",{"$f":"TEXT(Template!$B$9,\"mm/dd/yyy\")","v":"08/01/2024"},null,null,null,null,{"$f":"IF(Template!M131>0,Template!M131,-Template!N131)","v":0},null,null,null,{"$f":"VLOOKUP(G119,'Account mapping'!A:D,4,0)","v":{"$error":"#N/A"}}]
[{"$f":"LEFT(Template!A132,4)","v":""},{"$f":"VLOOKUP(A120,'Structure mapping'!K:V,7,0)","v":{"$error":"#N/A"}},{"$f":"LEFT(Template!B132,5)","v":""},{"$f":"VLOOKUP(C120,'Structure mapping'!F:J,5,0)","v":{"$error":"#N/A"}},{"$f":"LEFT(Template!C132,7)","v":""},{"$f":"VLOOKUP(E120,'Structure mapping'!A:E,5,0)","v":{"$error":"#N/A"}},{"$f":"LEFT(Template!D132,6)","v":""},{"$f":"VLOOKUP(G120,'Account mapping'!A:E,5,0)","v":{"$error":"#N/A"}},{"$f":"LEFT(Template!E132,2)","v":""},{"$f":"VLOOKUP(I120,'Structure mapping'!X:AB,5,0)","v":{"$error":"#N/A"}},{"$f":"LEFT(Template!F132,3)","v":""},{"$f":"VLOOKUP(K120,'Structure mapping'!AC:AG,5,0)","v":{"$error":"#N/A"}},{"$f":"LEFT(Template!G132,10)","v":""},{"$f":"VLOOKUP(M120,'Structure mapping'!AH:AL,5,0)","v":{"$error":"#N/A"}},{"$f":"LEFT(Template!H132,6)","v":""},{"$f":"VLOOKUP(O120,'Structure mapping'!AM:AQ,5,0)","v":{"$error":"#N/A"}},null,null,null,null,{"$f":"IF(Template!O132=\"\",\"\",Template!O132)","v":""},"Aug-24 pending entries",{"$f":"TEXT(Template!$B$9,\"mm/dd/yyy\")","v":"08/01/2024"},null,null,null,null,{"$f":"IF(Template!M132>0,Template!M132,-Template!N132)","v":0},null,null,null,{"$f":"VLOOKUP(G120,'Account mapping'!A:D,4,0)","v":{"$error":"#N/A"}}]
[{"$f":"LEFT(Template!A133,4)","v":""},{"$f":"VLOOKUP(A121,'Structure mapping'!K:V,7,0)","v":{"$error":"#N/A"}},{"$f":"LEFT(Template!B133,5)","v":""},{"$f":"VLOOKUP(C121,'Structure mapping'!F:J,5,0)","v":{"$error":"#N/A"}},{"$f":"LEFT(Template!C133,7)","v":""},{"$f":"VLOOKUP(E121,'Structure mapping'!A:E,5,0)","v":{"$error":"#N/A"}},{"$f":"LEFT(Template!D133,6)","v":""},{"$f":"VLOOKUP(G121,'Account mapping'!A:E,5,0)","v":{"$error":"#N/A"}},{"$f":"LEFT(Template!E133,2)","v":""},{"$f":"VLOOKUP(I121,'Structure mapping'!X:AB,5,0)","v":{"$error":"#N/A"}},{"$f":"LEFT(Template!F133,3)","v":""},{"$f":"VLOOKUP(K121,'Structure mapping'!AC:AG,5,0)","v":{"$error":"#N/A"}},{"$f":"LEFT(Template!G133,10)","v":""},{"$f":"VLOOKUP(M121,'Structure mapping'!AH:AL,5,0)","v":{"$error":"#N/A"}},{"$f":"LEFT(Template!H133,6)","v":""},{"$f":"VLOOKUP(O121,'Structure mapping'!AM:AQ,5,0)","v":{"$error":"#N/A"}},null,null,null,null,{"$f":"IF(Template!O133=\"\",\"\",Template!O133)","v":""},"Aug-24 pending entries",{"$f":"TEXT(Template!$B$9,\"mm/dd/yyy\")","v":"08/01/2024"},null,null,null,null,{"$f":"IF(Template!M133>0,Template!M133,-Template!N133)","v":0},null,null,null,{"$f":"VLOOKUP(G121,'Account mapping'!A:D,4,0)","v":{"$error":"#N/A"}}]
[{"$f":"LEFT(Template!A134,4)","v":""},{"$f":"VLOOKUP(A122,'Structure mapping'!K:V,7,0)","v":{"$error":"#N/A"}},{"$f":"LEFT(Template!B134,5)","v":""},{"$f":"VLOOKUP(C122,'Structure mapping'!F:J,5,0)","v":{"$error":"#N/A"}},{"$f":"LEFT(Template!C134,7)","v":""},{"$f":"VLOOKUP(E122,'Structure mapping'!A:E,5,0)","v":{"$error":"#N/A"}},{"$f":"LEFT(Template!D134,6)","v":""},{"$f":"VLOOKUP(G122,'Account mapping'!A:E,5,0)","v":{"$error":"#N/A"}},{"$f":"LEFT(Template!E134,2)","v":""},{"$f":"VLOOKUP(I122,'Structure mapping'!X:AB,5,0)","v":{"$error":"#N/A"}},{"$f":"LEFT(Template!F134,3)","v":""},{"$f":"VLOOKUP(K122,'Structure mapping'!AC:AG,5,0)","v":{"$error":"#N/A"}},{"$f":"LEFT(Template!G134,10)","v":""},{"$f":"VLOOKUP(M122,'Structure mapping'!AH:AL,5,0)","v":{"$error":"#N/A"}},{"$f":"LEFT(Template!H134,6)","v":""},{"$f":"VLOOKUP(O122,'Structure mapping'!AM:AQ,5,0)","v":{"$error":"#N/A"}},null,null,null,null,{"$f":"IF(Template!O134=\"\",\"\",Template!O134)","v":""},"Aug-24 pending entries",{"$f":"TEXT(Template!$B$9,\"mm/dd/yyy\")","v":"08/01/2024"},null,null,null,null,{"$f":"IF(Template!M134>0,Template!M134,-Template!N134)","v":0},null,null,null,{"$f":"VLOOKUP(G122,'Account mapping'!A:D,4,0)","v":{"$error":"#N/A"}}]
[{"$f":"LEFT(Template!A135,4)","v":""},{"$f":"VLOOKUP(A123,'Structure mapping'!K:V,7,0)","v":{"$error":"#N/A"}},{"$f":"LEFT(Template!B135,5)","v":""},{"$f":"VLOOKUP(C123,'Structure mapping'!F:J,5,0)","v":{"$error":"#N/A"}},{"$f":"LEFT(Template!C135,7)","v":""},{"$f":"VLOOKUP(E123,'Structure mapping'!A:E,5,0)","v":{"$error":"#N/A"}},{"$f":"LEFT(Template!D135,6)","v":""},{"$f":"VLOOKUP(G123,'Account mapping'!A:E,5,0)","v":{"$error":"#N/A"}},{"$f":"LEFT(Template!E135,2)","v":""},{"$f":"VLOOKUP(I123,'Structure mapping'!X:AB,5,0)","v":{"$error":"#N/A"}},{"$f":"LEFT(Template!F135,3)","v":""},{"$f":"VLOOKUP(K123,'Structure mapping'!AC:AG,5,0)","v":{"$error":"#N/A"}},{"$f":"LEFT(Template!G135,10)","v":""},{"$f":"VLOOKUP(M123,'Structure mapping'!AH:AL,5,0)","v":{"$error":"#N/A"}},{"$f":"LEFT(Template!H135,6)","v":""},{"$f":"VLOOKUP(O123,'Structure mapping'!AM:AQ,5,0)","v":{"$error":"#N/A"}},null,null,null,null,{"$f":"IF(Template!O135=\"\",\"\",Template!O135)","v":""},"Aug-24 pending entries",{"$f":"TEXT(Template!$B$9,\"mm/dd/yyy\")","v":"08/01/2024"},null,null,null,null,{"$f":"IF(Template!M135>0,Template!M135,-Template!N135)","v":0},null,null,null,{"$f":"VLOOKUP(G123,'Account mapping'!A:D,4,0)","v":{"$error":"#N/A"}}]
[{"$f":"LEFT(Template!A136,4)","v":""},{"$f":"VLOOKUP(A124,'Structure mapping'!K:V,7,0)","v":{"$error":"#N/A"}},{"$f":"LEFT(Template!B136,5)","v":""},{"$f":"VLOOKUP(C124,'Structure mapping'!F:J,5,0)","v":{"$error":"#N/A"}},{"$f":"LEFT(Template!C136,7)","v":""},{"$f":"VLOOKUP(E124,'Structure mapping'!A:E,5,0)","v":{"$error":"#N/A"}},{"$f":"LEFT(Template!D136,6)","v":""},{"$f":"VLOOKUP(G124,'Account mapping'!A:E,5,0)","v":{"$error":"#N/A"}},{"$f":"LEFT(Template!E136,2)","v":""},{"$f":"VLOOKUP(I124,'Structure mapping'!X:AB,5,0)","v":{"$error":"#N/A"}},{"$f":"LEFT(Template!F136,3)","v":""},{"$f":"VLOOKUP(K124,'Structure mapping'!AC:AG,5,0)","v":{"$error":"#N/A"}},{"$f":"LEFT(Template!G136,10)","v":""},{"$f":"VLOOKUP(M124,'Structure mapping'!AH:AL,5,0)","v":{"$error":"#N/A"}},{"$f":"LEFT(Template!H136,6)","v":""},{"$f":"VLOOKUP(O124,'Structure mapping'!AM:AQ,5,0)","v":{"$error":"#N/A"}},null,null,null,null,{"$f":"IF(Template!O136=\"\",\"\",Template!O136)","v":""},"Aug-24 pending entries",{"$f":"TEXT(Template!$B$9,\"mm/dd/yyy\")","v":"08/01/2024"},null,null,null,null,{"$f":"IF(Template!M136>0,Template!M136,-Template!N136)","v":0},null,null,null,{"$f":"VLOOKUP(G124,'Account mapping'!A:D,4,0)","v":{"$error":"#N/A"}}]
[{"$f":"LEFT(Template!A137,4)","v":""},{"$f":"VLOOKUP(A125,'Structure mapping'!K:V,7,0)","v":{"$error":"#N/A"}},{"$f":"LEFT(Template!B137,5)","v":""},{"$f":"VLOOKUP(C125,'Structure mapping'!F:J,5,0)","v":{"$error":"#N/A"}},{"$f":"LEFT(Template!C137,7)","v":""},{"$f":"VLOOKUP(E125,'Structure mapping'!A:E,5,0)","v":{"$error":"#N/A"}},{"$f":"LEFT(Template!D137,6)","v":""},{"$f":"VLOOKUP(G125,'Account mapping'!A:E,5,0)","v":{"$error":"#N/A"}},{"$f":"LEFT(Template!E137,2)","v":""},{"$f":"VLOOKUP(I125,'Structure mapping'!X:AB,5,0)","v":{"$error":"#N/A"}},{"$f":"LEFT(Template!F137,3)","v":""},{"$f":"VLOOKUP(K125,'Structure mapping'!AC:AG,5,0)","v":{"$error":"#N/A"}},{"$f":"LEFT(Template!G137,10)","v":""},{"$f":"VLOOKUP(M125,'Structure mapping'!AH:AL,5,0)","v":{"$error":"#N/A"}},{"$f":"LEFT(Template!H137,6)","v":""},{"$f":"VLOOKUP(O125,'Structure mapping'!AM:AQ,5,0)","v":{"$error":"#N/A"}},null,null,null,null,{"$f":"IF(Template!O137=\"\",\"\",Template!O137)","v":""},"Aug-24 pending entries",{"$f":"TEXT(Template!$B$9,\"mm/dd/yyy\")","v":"08/01/2024"},null,null,null,null,{"$f":"IF(Template!M137>0,Template!M137,-Template!N137)","v":0},null,null,null,{"$f":"VLOOKUP(G125,'Account mapping'!A:D,4,0)","v":{"$error":"#N/A"}}]
[{"$f":"LEFT(Template!A138,4)","v":""},{"$f":"VLOOKUP(A126,'Structure mapping'!K:V,7,0)","v":{"$error":"#N/A"}},{"$f":"LEFT(Template!B138,5)","v":""},{"$f":"VLOOKUP(C126,'Structure mapping'!F:J,5,0)","v":{"$error":"#N/A"}},{"$f":"LEFT(Template!C138,7)","v":""},{"$f":"VLOOKUP(E126,'Structure mapping'!A:E,5,0)","v":{"$error":"#N/A"}},{"$f":"LEFT(Template!D138,6)","v":""},{"$f":"VLOOKUP(G126,'Account mapping'!A:E,5,0)","v":{"$error":"#N/A"}},{"$f":"LEFT(Template!E138,2)","v":""},{"$f":"VLOOKUP(I126,'Structure mapping'!X:AB,5,0)","v":{"$error":"#N/A"}},{"$f":"LEFT(Template!F138,3)","v":""},{"$f":"VLOOKUP(K126,'Structure mapping'!AC:AG,5,0)","v":{"$error":"#N/A"}},{"$f":"LEFT(Template!G138,10)","v":""},{"$f":"VLOOKUP(M126,'Structure mapping'!AH:AL,5,0)","v":{"$error":"#N/A"}},{"$f":"LEFT(Template!H138,6)","v":""},{"$f":"VLOOKUP(O126,'Structure mapping'!AM:AQ,5,0)","v":{"$error":"#N/A"}},null,null,null,null,{"$f":"IF(Template!O138=\"\",\"\",Template!O138)","v":""},"Aug-24 pending entries",{"$f":"TEXT(Template!$B$9,\"mm/dd/yyy\")","v":"08/01/2024"},null,null,null,null,{"$f":"IF(Template!M138>0,Template!M138,-Template!N138)","v":0},null,null,null,{"$f":"VLOOKUP(G126,'Account mapping'!A:D,4,0)","v":{"$error":"#N/A"}}]
[{"$f":"LEFT(Template!A139,4)","v":""},{"$f":"VLOOKUP(A127,'Structure mapping'!K:V,7,0)","v":{"$error":"#N/A"}},{"$f":"LEFT(Template!B139,5)","v":""},{"$f":"VLOOKUP(C127,'Structure mapping'!F:J,5,0)","v":{"$error":"#N/A"}},{"$f":"LEFT(Template!C139,7)","v":""},{"$f":"VLOOKUP(E127,'Structure mapping'!A:E,5,0)","v":{"$error":"#N/A"}},{"$f":"LEFT(Template!D139,6)","v":""},{"$f":"VLOOKUP(G127,'Account mapping'!A:E,5,0)","v":{"$error":"#N/A"}},{"$f":"LEFT(Template!E139,2)","v":""},{"$f":"VLOOKUP(I127,'Structure mapping'!X:AB,5,0)","v":{"$error":"#N/A"}},{"$f":"LEFT(Template!F139,3)","v":""},{"$f":"VLOOKUP(K127,'Structure mapping'!AC:AG,5,0)","v":{"$error":"#N/A"}},{"$f":"LEFT(Template!G139,10)","v":""},{"$f":"VLOOKUP(M127,'Structure mapping'!AH:AL,5,0)","v":{"$error":"#N/A"}},{"$f":"LEFT(Template!H139,6)","v":""},{"$f":"VLOOKUP(O127,'Structure mapping'!AM:AQ,5,0)","v":{"$error":"#N/A"}},null,null,null,null,{"$f":"IF(Template!O139=\"\",\"\",Template!O139)","v":""},"Aug-24 pending entries",{"$f":"TEXT(Template!$B$9,\"mm/dd/yyy\")","v":"08/01/2024"},null,null,null,null,{"$f":"IF(Template!M139>0,Template!M139,-Template!N139)","v":0},null,null,null,{"$f":"VLOOKUP(G127,'Account mapping'!A:D,4,0)","v":{"$error":"#N/A"}}]
[{"$f":"LEFT(Template!A140,4)","v":""},{"$f":"VLOOKUP(A128,'Structure mapping'!K:V,7,0)","v":{"$error":"#N/A"}},{"$f":"LEFT(Template!B140,5)","v":""},{"$f":"VLOOKUP(C128,'Structure mapping'!F:J,5,0)","v":{"$error":"#N/A"}},{"$f":"LEFT(Template!C140,7)","v":""},{"$f":"VLOOKUP(E128,'Structure mapping'!A:E,5,0)","v":{"$error":"#N/A"}},{"$f":"LEFT(Template!D140,6)","v":""},{"$f":"VLOOKUP(G128,'Account mapping'!A:E,5,0)","v":{"$error":"#N/A"}},{"$f":"LEFT(Template!E140,2)","v":""},{"$f":"VLOOKUP(I128,'Structure mapping'!X:AB,5,0)","v":{"$error":"#N/A"}},{"$f":"LEFT(Template!F140,3)","v":""},{"$f":"VLOOKUP(K128,'Structure mapping'!AC:AG,5,0)","v":{"$error":"#N/A"}},{"$f":"LEFT(Template!G140,10)","v":""},{"$f":"VLOOKUP(M128,'Structure mapping'!AH:AL,5,0)","v":{"$error":"#N/A"}},{"$f":"LEFT(Template!H140,6)","v":""},{"$f":"VLOOKUP(O128,'Structure mapping'!AM:AQ,5,0)","v":{"$error":"#N/A"}},null,null,null,null,{"$f":"IF(Template!O140=\"\",\"\",Template!O140)","v":""},"Aug-24 pending entries",{"$f":"TEXT(Template!$B$9,\"mm/dd/yyy\")","v":"08/01/2024"},null,null,null,null,{"$f":"IF(Template!M140>0,Template!M140,-Template!N140)","v":0},null,null,null,{"$f":"VLOOKUP(G128,'Account mapping'!A:D,4,0)","v":{"$error":"#N/A"}}]
[{"$f":"LEFT(Template!A141,4)","v":""},{"$f":"VLOOKUP(A129,'Structure mapping'!K:V,7,0)","v":{"$error":"#N/A"}},{"$f":"LEFT(Template!B141,5)","v":""},{"$f":"VLOOKUP(C129,'Structure mapping'!F:J,5,0)","v":{"$error":"#N/A"}},{"$f":"LEFT(Template!C141,7)","v":""},{"$f":"VLOOKUP(E129,'Structure mapping'!A:E,5,0)","v":{"$error":"#N/A"}},{"$f":"LEFT(Template!D141,6)","v":""},{"$f":"VLOOKUP(G129,'Account mapping'!A:E,5,0)","v":{"$error":"#N/A"}},{"$f":"LEFT(Template!E141,2)","v":""},{"$f":"VLOOKUP(I129,'Structure mapping'!X:AB,5,0)","v":{"$error":"#N/A"}},{"$f":"LEFT(Template!F141,3)","v":""},{"$f":"VLOOKUP(K129,'Structure mapping'!AC:AG,5,0)","v":{"$error":"#N/A"}},{"$f":"LEFT(Template!G141,10)","v":""},{"$f":"VLOOKUP(M129,'Structure mapping'!AH:AL,5,0)","v":{"$error":"#N/A"}},{"$f":"LEFT(Template!H141,6)","v":""},{"$f":"VLOOKUP(O129,'Structure mapping'!AM:AQ,5,0)","v":{"$error":"#N/A"}},null,null,null,null,{"$f":"IF(Template!O141=\"\",\"\",Template!O141)","v":""},"Aug-24 pending entries",{"$f":"TEXT(Template!$B$9,\"mm/dd/yyy\")","v":"08/01/2024"},null,null,null,null,{"$f":"IF(Template!M141>0,Template!M141,-Template!N141)","v":0},null,null,null,{"$f":"VLOOKUP(G129,'Account mapping'!A:D,4,0)","v":{"$error":"#N/A"}}]
[{"$f":"LEFT(Template!A142,4)","v":""},{"$f":"VLOOKUP(A130,'Structure mapping'!K:V,7,0)","v":{"$error":"#N/A"}},{"$f":"LEFT(Template!B142,5)","v":""},{"$f":"VLOOKUP(C130,'Structure mapping'!F:J,5,0)","v":{"$error":"#N/A"}},{"$f":"LEFT(Template!C142,7)","v":""},{"$f":"VLOOKUP(E130,'Structure mapping'!A:E,5,0)","v":{"$error":"#N/A"}},{"$f":"LEFT(Template!D142,6)","v":""},{"$f":"VLOOKUP(G130,'Account mapping'!A:E,5,0)","v":{"$error":"#N/A"}},{"$f":"LEFT(Template!E142,2)","v":""},{"$f":"VLOOKUP(I130,'Structure mapping'!X:AB,5,0)","v":{"$error":"#N/A"}},{"$f":"LEFT(Template!F142,3)","v":""},{"$f":"VLOOKUP(K130,'Structure mapping'!AC:AG,5,0)","v":{"$error":"#N/A"}},{"$f":"LEFT(Template!G142,10)","v":""},{"$f":"VLOOKUP(M130,'Structure mapping'!AH:AL,5,0)","v":{"$error":"#N/A"}},{"$f":"LEFT(Template!H142,6)","v":""},{"$f":"VLOOKUP(O130,'Structure mapping'!AM:AQ,5,0)","v":{"$error":"#N/A"}},null,null,null,null,{"$f":"IF(Template!O142=\"\",\"\",Template!O142)","v":""},"Aug-24 pending entries",{"$f":"TEXT(Template!$B$9,\"mm/dd/yyy\")","v":"08/01/2024"},null,null,null,null,{"$f":"IF(Template!M142>0,Template!M142,-Template!N142)","v":0},null,null,null,{"$f":"VLOOKUP(G130,'Account mapping'!A:D,4,0)","v":{"$error":"#N/A"}}]
[{"$f":"LEFT(Template!A143,4)","v":""},{"$f":"VLOOKUP(A131,'Structure mapping'!K:V,7,0)","v":{"$error":"#N/A"}},{"$f":"LEFT(Template!B143,5)","v":""},{"$f":"VLOOKUP(C131,'Structure mapping'!F:J,5,0)","v":{"$error":"#N/A"}},{"$f":"LEFT(Template!C143,7)","v":""},{"$f":"VLOOKUP(E131,'Structure mapping'!A:E,5,0)","v":{"$error":"#N/A"}},{"$f":"LEFT(Template!D143,6)","v":""},{"$f":"VLOOKUP(G131,'Account mapping'!A:E,5,0)","v":{"$error":"#N/A"}},{"$f":"LEFT(Template!E143,2)","v":""},{"$f":"VLOOKUP(I131,'Structure mapping'!X:AB,5,0)","v":{"$error":"#N/A"}},{"$f":"LEFT(Template!F143,3)","v":""},{"$f":"VLOOKUP(K131,'Structure mapping'!AC:AG,5,0)","v":{"$error":"#N/A"}},{"$f":"LEFT(Template!G143,10)","v":""},{"$f":"VLOOKUP(M131,'Structure mapping'!AH:AL,5,0)","v":{"$error":"#N/A"}},{"$f":"LEFT(Template!H143,6)","v":""},{"$f":"VLOOKUP(O131,'Structure mapping'!AM:AQ,5,0)","v":{"$error":"#N/A"}},null,null,null,null,{"$f":"IF(Template!O143=\"\",\"\",Template!O143)","v":""},{"$f":"TEXT(W131,\"mmm-yy\")&\" pending entries\"","v":"Aug-24 pending entries"},{"$f":"TEXT(Template!$B$9,\"mm/dd/yyy\")","v":"08/01/2024"},null,null,null,null,{"$f":"IF(Template!M143>0,Template!M143,-Template!N143)","v":0},null,null,null,{"$f":"VLOOKUP(G131,'Account mapping'!A:D,4,0)","v":{"$error":"#N/A"}}]
[{"$f":"LEFT(Template!A144,4)","v":""},{"$f":"VLOOKUP(A132,'Structure mapping'!K:V,7,0)","v":{"$error":"#N/A"}},{"$f":"LEFT(Template!B144,5)","v":""},{"$f":"VLOOKUP(C132,'Structure mapping'!F:J,5,0)","v":{"$error":"#N/A"}},{"$f":"LEFT(Template!C144,7)","v":""},{"$f":"VLOOKUP(E132,'Structure mapping'!A:E,5,0)","v":{"$error":"#N/A"}},{"$f":"LEFT(Template!D144,6)","v":""},{"$f":"VLOOKUP(G132,'Account mapping'!A:E,5,0)","v":{"$error":"#N/A"}},{"$f":"LEFT(Template!E144,2)","v":""},{"$f":"VLOOKUP(I132,'Structure mapping'!X:AB,5,0)","v":{"$error":"#N/A"}},{"$f":"LEFT(Template!F144,3)","v":""},{"$f":"VLOOKUP(K132,'Structure mapping'!AC:AG,5,0)","v":{"$error":"#N/A"}},{"$f":"LEFT(Template!G144,10)","v":""},{"$f":"VLOOKUP(M132,'Structure mapping'!AH:AL,5,0)","v":{"$error":"#N/A"}},{"$f":"LEFT(Template!H144,6)","v":""},{"$f":"VLOOKUP(O132,'Structure mapping'!AM:AQ,5,0)","v":{"$error":"#N/A"}},null,null,null,null,{"$f":"IF(Template!O144=\"\",\"\",Template!O144)","v":""},"Aug-24 pending entries",{"$f":"TEXT(Template!$B$9,\"mm/dd/yyy\")","v":"08/01/2024"},null,null,null,null,{"$f":"IF(Template!M144>0,Template!M144,-Template!N144)","v":0},null,null,null,{"$f":"VLOOKUP(G132,'Account mapping'!A:D,4,0)","v":{"$error":"#N/A"}}]
[{"$f":"LEFT(Template!A145,4)","v":""},{"$f":"VLOOKUP(A133,'Structure mapping'!K:V,7,0)","v":{"$error":"#N/A"}},{"$f":"LEFT(Template!B145,5)","v":""},{"$f":"VLOOKUP(C133,'Structure mapping'!F:J,5,0)","v":{"$error":"#N/A"}},{"$f":"LEFT(Template!C145,7)","v":""},{"$f":"VLOOKUP(E133,'Structure mapping'!A:E,5,0)","v":{"$error":"#N/A"}},{"$f":"LEFT(Template!D145,6)","v":""},{"$f":"VLOOKUP(G133,'Account mapping'!A:E,5,0)","v":{"$error":"#N/A"}},{"$f":"LEFT(Template!E145,2)","v":""},{"$f":"VLOOKUP(I133,'Structure mapping'!X:AB,5,0)","v":{"$error":"#N/A"}},{"$f":"LEFT(Template!F145,3)","v":""},{"$f":"VLOOKUP(K133,'Structure mapping'!AC:AG,5,0)","v":{"$error":"#N/A"}},{"$f":"LEFT(Template!G145,10)","v":""},{"$f":"VLOOKUP(M133,'Structure mapping'!AH:AL,5,0)","v":{"$error":"#N/A"}},{"$f":"LEFT(Template!H145,6)","v":""},{"$f":"VLOOKUP(O133,'Structure mapping'!AM:AQ,5,0)","v":{"$error":"#N/A"}},null,null,null,null,{"$f":"IF(Template!O145=\"\",\"\",Template!O145)","v":""},"Aug-24 pending entries",{"$f":"TEXT(Template!$B$9,\"mm/dd/yyy\")","v":"08/01/2024"},null,null,null,null,{"$f":"IF(Template!M145>0,Template!M145,-Template!N145)","v":0},null,null,null,{"$f":"VLOOKUP(G133,'Account mapping'!A:D,4,0)","v":{"$error":"#N/A"}}]
[{"$f":"LEFT(Template!A146,4)","v":""},{"$f":"VLOOKUP(A134,'Structure mapping'!K:V,7,0)","v":{"$error":"#N/A"}},{"$f":"LEFT(Template!B146,5)","v":""},{"$f":"VLOOKUP(C134,'Structure mapping'!F:J,5,0)","v":{"$error":"#N/A"}},{"$f":"LEFT(Template!C146,7)","v":""},{"$f":"VLOOKUP(E134,'Structure mapping'!A:E,5,0)","v":{"$error":"#N/A"}},{"$f":"LEFT(Template!D146,6)","v":""},{"$f":"VLOOKUP(G134,'Account mapping'!A:E,5,0)","v":{"$error":"#N/A"}},{"$f":"LEFT(Template!E146,2)","v":""},{"$f":"VLOOKUP(I134,'Structure mapping'!X:AB,5,0)","v":{"$error":"#N/A"}},{"$f":"LEFT(Template!F146,3)","v":""},{"$f":"VLOOKUP(K134,'Structure mapping'!AC:AG,5,0)","v":{"$error":"#N/A"}},{"$f":"LEFT(Template!G146,10)","v":""},{"$f":"VLOOKUP(M134,'Structure mapping'!AH:AL,5,0)","v":{"$error":"#N/A"}},{"$f":"LEFT(Template!H146,6)","v":""},{"$f":"VLOOKUP(O134,'Structure mapping'!AM:AQ,5,0)","v":{"$error":"#N/A"}},null,null,null,null,{"$f":"IF(Template!O146=\"\",\"\",Template!O146)","v":""},"Aug-24 pending entries",{"$f":"TEXT(Template!$B$9,\"mm/dd/yyy\")","v":"08/01/2024"},null,null,null,null,{"$f":"IF(Template!M146>0,Template!M146,-Template!N146)","v":0},null,null,null,{"$f":"VLOOKUP(G134,'Account mapping'!A:D,4,0)","v":{"$error":"#N/A"}}]
[{"$f":"LEFT(Template!A147,4)","v":""},{"$f":"VLOOKUP(A135,'Structure mapping'!K:V,7,0)","v":{"$error":"#N/A"}},{"$f":"LEFT(Template!B147,5)","v":""},{"$f":"VLOOKUP(C135,'Structure mapping'!F:J,5,0)","v":{"$error":"#N/A"}},{"$f":"LEFT(Template!C147,7)","v":""},{"$f":"VLOOKUP(E135,'Structure mapping'!A:E,5,0)","v":{"$error":"#N/A"}},{"$f":"LEFT(Template!D147,6)","v":""},{"$f":"VLOOKUP(G135,'Account mapping'!A:E,5,0)","v":{"$error":"#N/A"}},{"$f":"LEFT(Template!E147,2)","v":""},{"$f":"VLOOKUP(I135,'Structure mapping'!X:AB,5,0)","v":{"$error":"#N/A"}},{"$f":"LEFT(Template!F147,3)","v":""},{"$f":"VLOOKUP(K135,'Structure mapping'!AC:AG,5,0)","v":{"$error":"#N/A"}},{"$f":"LEFT(Template!G147,10)","v":""},{"$f":"VLOOKUP(M135,'Structure mapping'!AH:AL,5,0)","v":{"$error":"#N/A"}},{"$f":"LEFT(Template!H147,6)","v":""},{"$f":"VLOOKUP(O135,'Structure mapping'!AM:AQ,5,0)","v":{"$error":"#N/A"}},null,null,null,null,{"$f":"IF(Template!O147=\"\",\"\",Template!O147)","v":""},"Aug-24 pending entries",{"$f":"TEXT(Template!$B$9,\"mm/dd/yyy\")","v":"08/01/2024"},null,null,null,null,{"$f":"IF(Template!M147>0,Template!M147,-Template!N147)","v":0},null,null,null,{"$f":"VLOOKUP(G135,'Account mapping'!A:D,4,0)","v":{"$error":"#N/A"}}]
[{"$f":"LEFT(Template!A148,4)","v":""},{"$f":"VLOOKUP(A136,'Structure mapping'!K:V,7,0)","v":{"$error":"#N/A"}},{"$f":"LEFT(Template!B148,5)","v":""},{"$f":"VLOOKUP(C136,'Structure mapping'!F:J,5,0)","v":{"$error":"#N/A"}},{"$f":"LEFT(Template!C148,7)","v":""},{"$f":"VLOOKUP(E136,'Structure mapping'!A:E,5,0)","v":{"$error":"#N/A"}},{"$f":"LEFT(Template!D148,6)","v":""},{"$f":"VLOOKUP(G136,'Account mapping'!A:E,5,0)","v":{"$error":"#N/A"}},{"$f":"LEFT(Template!E148,2)","v":""},{"$f":"VLOOKUP(I136,'Structure mapping'!X:AB,5,0)","v":{"$error":"#N/A"}},{"$f":"LEFT(Template!F148,3)","v":""},{"$f":"VLOOKUP(K136,'Structure mapping'!AC:AG,5,0)","v":{"$error":"#N/A"}},{"$f":"LEFT(Template!G148,10)","v":""},{"$f":"VLOOKUP(M136,'Structure mapping'!AH:AL,5,0)","v":{"$error":"#N/A"}},{"$f":"LEFT(Template!H148,6)","v":""},{"$f":"VLOOKUP(O136,'Structure mapping'!AM:AQ,5,0)","v":{"$error":"#N/A"}},null,null,null,null,{"$f":"IF(Template!O148=\"\",\"\",Template!O148)","v":""},"Aug-24 pending entries",{"$f":"TEXT(Template!$B$9,\"mm/dd/yyy\")","v":"08/01/2024"},null,null,null,null,{"$f":"IF(Template!M148>0,Template!M148,-Template!N148)","v":0},null,null,null,{"$f":"VLOOKUP(G136,'Account mapping'!A:D,4,0)","v":{"$error":"#N/A"}}]
[{"$f":"LEFT(Template!A149,4)","v":""},{"$f":"VLOOKUP(A137,'Structure mapping'!K:V,7,0)","v":{"$error":"#N/A"}},{"$f":"LEFT(Template!B149,5)","v":""},{"$f":"VLOOKUP(C137,'Structure mapping'!F:J,5,0)","v":{"$error":"#N/A"}},{"$f":"LEFT(Template!C149,7)","v":""},{"$f":"VLOOKUP(E137,'Structure mapping'!A:E,5,0)","v":{"$error":"#N/A"}},{"$f":"LEFT(Template!D149,6)","v":""},{"$f":"VLOOKUP(G137,'Account mapping'!A:E,5,0)","v":{"$error":"#N/A"}},{"$f":"LEFT(Template!E149,2)","v":""},{"$f":"VLOOKUP(I137,'Structure mapping'!X:AB,5,0)","v":{"$error":"#N/A"}},{"$f":"LEFT(Template!F149,3)","v":""},{"$f":"VLOOKUP(K137,'Structure mapping'!AC:AG,5,0)","v":{"$error":"#N/A"}},{"$f":"LEFT(Template!G149,10)","v":""},{"$f":"VLOOKUP(M137,'Structure mapping'!AH:AL,5,0)","v":{"$error":"#N/A"}},{"$f":"LEFT(Template!H149,6)","v":""},{"$f":"VLOOKUP(O137,'Structure mapping'!AM:AQ,5,0)","v":{"$error":"#N/A"}},null,null,null,null,{"$f":"IF(Template!O149=\"\",\"\",Template!O149)","v":""},"Aug-24 pending entries",{"$f":"TEXT(Template!$B$9,\"mm/dd/yyy\")","v":"08/01/2024"},null,null,null,null,{"$f":"IF(Template!M149>0,Template!M149,-Template!N149)","v":0},null,null,null,{"$f":"VLOOKUP(G137,'Account mapping'!A:D,4,0)","v":{"$error":"#N/A"}}]
[{"$f":"LEFT(Template!A150,4)","v":""},{"$f":"VLOOKUP(A138,'Structure mapping'!K:V,7,0)","v":{"$error":"#N/A"}},{"$f":"LEFT(Template!B150,5)","v":""},{"$f":"VLOOKUP(C138,'Structure mapping'!F:J,5,0)","v":{"$error":"#N/A"}},{"$f":"LEFT(Template!C150,7)","v":""},{"$f":"VLOOKUP(E138,'Structure mapping'!A:E,5,0)","v":{"$error":"#N/A"}},{"$f":"LEFT(Template!D150,6)","v":""},{"$f":"VLOOKUP(G138,'Account mapping'!A:E,5,0)","v":{"$error":"#N/A"}},{"$f":"LEFT(Template!E150,2)","v":""},{"$f":"VLOOKUP(I138,'Structure mapping'!X:AB,5,0)","v":{"$error":"#N/A"}},{"$f":"LEFT(Template!F150,3)","v":""},{"$f":"VLOOKUP(K138,'Structure mapping'!AC:AG,5,0)","v":{"$error":"#N/A"}},{"$f":"LEFT(Template!G150,10)","v":""},{"$f":"VLOOKUP(M138,'Structure mapping'!AH:AL,5,0)","v":{"$error":"#N/A"}},{"$f":"LEFT(Template!H150,6)","v":""},{"$f":"VLOOKUP(O138,'Structure mapping'!AM:AQ,5,0)","v":{"$error":"#N/A"}},null,null,null,null,{"$f":"IF(Template!O150=\"\",\"\",Template!O150)","v":""},"Aug-24 pending entries",{"$f":"TEXT(Template!$B$9,\"mm/dd/yyy\")","v":"08/01/2024"},null,null,null,null,{"$f":"IF(Template!M150>0,Template!M150,-Template!N150)","v":0},null,null,null,{"$f":"VLOOKUP(G138,'Account mapping'!A:D,4,0)","v":{"$error":"#N/A"}}]
[{"$f":"LEFT(Template!A151,4)","v":""},{"$f":"VLOOKUP(A139,'Structure mapping'!K:V,7,0)","v":{"$error":"#N/A"}},{"$f":"LEFT(Template!B151,5)","v":""},{"$f":"VLOOKUP(C139,'Structure mapping'!F:J,5,0)","v":{"$error":"#N/A"}},{"$f":"LEFT(Template!C151,7)","v":""},{"$f":"VLOOKUP(E139,'Structure mapping'!A:E,5,0)","v":{"$error":"#N/A"}},{"$f":"LEFT(Template!D151,6)","v":""},{"$f":"VLOOKUP(G139,'Account mapping'!A:E,5,0)","v":{"$error":"#N/A"}},{"$f":"LEFT(Template!E151,2)","v":""},{"$f":"VLOOKUP(I139,'Structure mapping'!X:AB,5,0)","v":{"$error":"#N/A"}},{"$f":"LEFT(Template!F151,3)","v":""},{"$f":"VLOOKUP(K139,'Structure mapping'!AC:AG,5,0)","v":{"$error":"#N/A"}},{"$f":"LEFT(Template!G151,10)","v":""},{"$f":"VLOOKUP(M139,'Structure mapping'!AH:AL,5,0)","v":{"$error":"#N/A"}},{"$f":"LEFT(Template!H151,6)","v":""},{"$f":"VLOOKUP(O139,'Structure mapping'!AM:AQ,5,0)","v":{"$error":"#N/A"}},null,null,null,null,{"$f":"IF(Template!O151=\"\",\"\",Template!O151)","v":""},"Aug-24 pending entries",{"$f":"TEXT(Template!$B$9,\"mm/dd/yyy\")","v":"08/01/2024"},null,null,null,null,{"$f":"IF(Template!M151>0,Template!M151,-Template!N151)","v":0},null,null,null,{"$f":"VLOOKUP(G139,'Account mapping'!A:D,4,0)","v":{"$error":"#N/A"}}]
[{"$f":"LEFT(Template!A152,4)","v":""},{"$f":"VLOOKUP(A140,'Structure mapping'!K:V,7,0)","v":{"$error":"#N/A"}},{"$f":"LEFT(Template!B152,5)","v":""},{"$f":"VLOOKUP(C140,'Structure mapping'!F:J,5,0)","v":{"$error":"#N/A"}},{"$f":"LEFT(Template!C152,7)","v":""},{"$f":"VLOOKUP(E140,'Structure mapping'!A:E,5,0)","v":{"$error":"#N/A"}},{"$f":"LEFT(Template!D152,6)","v":""},{"$f":"VLOOKUP(G140,'Account mapping'!A:E,5,0)","v":{"$error":"#N/A"}},{"$f":"LEFT(Template!E152,2)","v":""},{"$f":"VLOOKUP(I140,'Structure mapping'!X:AB,5,0)","v":{"$error":"#N/A"}},{"$f":"LEFT(Template!F152,3)","v":""},{"$f":"VLOOKUP(K140,'Structure mapping'!AC:AG,5,0)","v":{"$error":"#N/A"}},{"$f":"LEFT(Template!G152,10)","v":""},{"$f":"VLOOKUP(M140,'Structure mapping'!AH:AL,5,0)","v":{"$error":"#N/A"}},{"$f":"LEFT(Template!H152,6)","v":""},{"$f":"VLOOKUP(O140,'Structure mapping'!AM:AQ,5,0)","v":{"$error":"#N/A"}},null,null,null,null,{"$f":"IF(Template!O152=\"\",\"\",Template!O152)","v":""},"Aug-24 pending entries",{"$f":"TEXT(Template!$B$9,\"mm/dd/yyy\")","v":"08/01/2024"},null,null,null,null,{"$f":"IF(Template!M152>0,Template!M152,-Template!N152)","v":0},null,null,null,{"$f":"VLOOKUP(G140,'Account mapping'!A:D,4,0)","v":{"$error":"#N/A"}}]
[{"$f":"LEFT(Template!A153,4)","v":""},{"$f":"VLOOKUP(A141,'Structure mapping'!K:V,7,0)","v":{"$error":"#N/A"}},{"$f":"LEFT(Template!B153,5)","v":""},{"$f":"VLOOKUP(C141,'Structure mapping'!F:J,5,0)","v":{"$error":"#N/A"}},{"$f":"LEFT(Template!C153,7)","v":""},{"$f":"VLOOKUP(E141,'Structure mapping'!A:E,5,0)","v":{"$error":"#N/A"}},{"$f":"LEFT(Template!D153,6)","v":""},{"$f":"VLOOKUP(G141,'Account mapping'!A:E,5,0)","v":{"$error":"#N/A"}},{"$f":"LEFT(Template!E153,2)","v":""},{"$f":"VLOOKUP(I141,'Structure mapping'!X:AB,5,0)","v":{"$error":"#N/A"}},{"$f":"LEFT(Template!F153,3)","v":""},{"$f":"VLOOKUP(K141,'Structure mapping'!AC:AG,5,0)","v":{"$error":"#N/A"}},{"$f":"LEFT(Template!G153,10)","v":""},{"$f":"VLOOKUP(M141,'Structure mapping'!AH:AL,5,0)","v":{"$error":"#N/A"}},{"$f":"LEFT(Template!H153,6)","v":""},{"$f":"VLOOKUP(O141,'Structure mapping'!AM:AQ,5,0)","v":{"$error":"#N/A"}},null,null,null,null,{"$f":"IF(Template!O153=\"\",\"\",Template!O153)","v":""},"Aug-24 pending entries",{"$f":"TEXT(Template!$B$9,\"mm/dd/yyy\")","v":"08/01/2024"},null,null,null,null,{"$f":"IF(Template!M153>0,Template!M153,-Template!N153)","v":0},null,null,null,{"$f":"VLOOKUP(G141,'Account mapping'!A:D,4,0)","v":{"$error":"#N/A"}}]
[{"$f":"LEFT(Template!A154,4)","v":""},{"$f":"VLOOKUP(A142,'Structure mapping'!K:V,7,0)","v":{"$error":"#N/A"}},{"$f":"LEFT(Template!B154,5)","v":""},{"$f":"VLOOKUP(C142,'Structure mapping'!F:J,5,0)","v":{"$error":"#N/A"}},{"$f":"LEFT(Template!C154,7)","v":""},{"$f":"VLOOKUP(E142,'Structure mapping'!A:E,5,0)","v":{"$error":"#N/A"}},{"$f":"LEFT(Template!D154,6)","v":""},{"$f":"VLOOKUP(G142,'Account mapping'!A:E,5,0)","v":{"$error":"#N/A"}},{"$f":"LEFT(Template!E154,2)","v":""},{"$f":"VLOOKUP(I142,'Structure mapping'!X:AB,5,0)","v":{"$error":"#N/A"}},{"$f":"LEFT(Template!F154,3)","v":""},{"$f":"VLOOKUP(K142,'Structure mapping'!AC:AG,5,0)","v":{"$error":"#N/A"}},{"$f":"LEFT(Template!G154,10)","v":""},{"$f":"VLOOKUP(M142,'Structure mapping'!AH:AL,5,0)","v":{"$error":"#N/A"}},{"$f":"LEFT(Template!H154,6)","v":""},{"$f":"VLOOKUP(O142,'Structure mapping'!AM:AQ,5,0)","v":{"$error":"#N/A"}},null,null,null,null,{"$f":"IF(Template!O154=\"\",\"\",Template!O154)","v":""},"Aug-24 pending entries",{"$f":"TEXT(Template!$B$9,\"mm/dd/yyy\")","v":"08/01/2024"},null,null,null,null,{"$f":"IF(Template!M154>0,Template!M154,-Template!N154)","v":0},null,null,null,{"$f":"VLOOKUP(G142,'Account mapping'!A:D,4,0)","v":{"$error":"#N/A"}}]
[{"$f":"LEFT(Template!A155,4)","v":""},{"$f":"VLOOKUP(A143,'Structure mapping'!K:V,7,0)","v":{"$error":"#N/A"}},{"$f":"LEFT(Template!B155,5)","v":""},{"$f":"VLOOKUP(C143,'Structure mapping'!F:J,5,0)","v":{"$error":"#N/A"}},{"$f":"LEFT(Template!C155,7)","v":""},{"$f":"VLOOKUP(E143,'Structure mapping'!A:E,5,0)","v":{"$error":"#N/A"}},{"$f":"LEFT(Template!D155,6)","v":""},{"$f":"VLOOKUP(G143,'Account mapping'!A:E,5,0)","v":{"$error":"#N/A"}},{"$f":"LEFT(Template!E155,2)","v":""},{"$f":"VLOOKUP(I143,'Structure mapping'!X:AB,5,0)","v":{"$error":"#N/A"}},{"$f":"LEFT(Template!F155,3)","v":""},{"$f":"VLOOKUP(K143,'Structure mapping'!AC:AG,5,0)","v":{"$error":"#N/A"}},{"$f":"LEFT(Template!G155,10)","v":""},{"$f":"VLOOKUP(M143,'Structure mapping'!AH:AL,5,0)","v":{"$error":"#N/A"}},{"$f":"LEFT(Template!H155,6)","v":""},{"$f":"VLOOKUP(O143,'Structure mapping'!AM:AQ,5,0)","v":{"$error":"#N/A"}},null,null,null,null,{"$f":"IF(Template!O155=\"\",\"\",Template!O155)","v":""},"Aug-24 pending entries",{"$f":"TEXT(Template!$B$9,\"mm/dd/yyy\")","v":"08/01/2024"},null,null,null,null,{"$f":"IF(Template!M155>0,Template!M155,-Template!N155)","v":0},null,null,null,{"$f":"VLOOKUP(G143,'Account mapping'!A:D,4,0)","v":{"$error":"#N/A"}}]
[{"$f":"LEFT(Template!A156,4)","v":""},{"$f":"VLOOKUP(A144,'Structure mapping'!K:V,7,0)","v":{"$error":"#N/A"}},{"$f":"LEFT(Template!B156,5)","v":""},{"$f":"VLOOKUP(C144,'Structure mapping'!F:J,5,0)","v":{"$error":"#N/A"}},{"$f":"LEFT(Template!C156,7)","v":""},{"$f":"VLOOKUP(E144,'Structure mapping'!A:E,5,0)","v":{"$error":"#N/A"}},{"$f":"LEFT(Template!D156,6)","v":""},{"$f":"VLOOKUP(G144,'Account mapping'!A:E,5,0)","v":{"$error":"#N/A"}},{"$f":"LEFT(Template!E156,2)","v":""},{"$f":"VLOOKUP(I144,'Structure mapping'!X:AB,5,0)","v":{"$error":"#N/A"}},{"$f":"LEFT(Template!F156,3)","v":""},{"$f":"VLOOKUP(K144,'Structure mapping'!AC:AG,5,0)","v":{"$error":"#N/A"}},{"$f":"LEFT(Template!G156,10)","v":""},{"$f":"VLOOKUP(M144,'Structure mapping'!AH:AL,5,0)","v":{"$error":"#N/A"}},{"$f":"LEFT(Template!H156,6)","v":""},{"$f":"VLOOKUP(O144,'Structure mapping'!AM:AQ,5,0)","v":{"$error":"#N/A"}},null,null,null,null,{"$f":"IF(Template!O156=\"\",\"\",Template!O156)","v":""},"Aug-24 pending entries",{"$f":"TEXT(Template!$B$9,\"mm/dd/yyy\")","v":"08/01/2024"},null,null,null,null,{"$f":"IF(Template!M156>0,Template!M156,-Template!N156)","v":0},null,null,null,{"$f":"VLOOKUP(G144,'Account mapping'!A:D,4,0)","v":{"$error":"#N/A"}}]
[{"$f":"LEFT(Template!A157,4)","v":""},{"$f":"VLOOKUP(A145,'Structure mapping'!K:V,7,0)","v":{"$error":"#N/A"}},{"$f":"LEFT(Template!B157,5)","v":""},{"$f":"VLOOKUP(C145,'Structure mapping'!F:J,5,0)","v":{"$error":"#N/A"}},{"$f":"LEFT(Template!C157,7)","v":""},{"$f":"VLOOKUP(E145,'Structure mapping'!A:E,5,0)","v":{"$error":"#N/A"}},{"$f":"LEFT(Template!D157,6)","v":""},{"$f":"VLOOKUP(G145,'Account mapping'!A:E,5,0)","v":{"$error":"#N/A"}},{"$f":"LEFT(Template!E157,2)","v":""},{"$f":"VLOOKUP(I145,'Structure mapping'!X:AB,5,0)","v":{"$error":"#N/A"}},{"$f":"LEFT(Template!F157,3)","v":""},{"$f":"VLOOKUP(K145,'Structure mapping'!AC:AG,5,0)","v":{"$error":"#N/A"}},{"$f":"LEFT(Template!G157,10)","v":""},{"$f":"VLOOKUP(M145,'Structure mapping'!AH:AL,5,0)","v":{"$error":"#N/A"}},{"$f":"LEFT(Template!H157,6)","v":""},{"$f":"VLOOKUP(O145,'Structure mapping'!AM:AQ,5,0)","v":{"$error":"#N/A"}},null,null,null,null,{"$f":"IF(Template!O157=\"\",\"\",Template!O157)","v":""},"Aug-24 pending entries",{"$f":"TEXT(Template!$B$9,\"mm/dd/yyy\")","v":"08/01/2024"},null,null,null,null,{"$f":"IF(Template!M157>0,Template!M157,-Template!N157)","v":0},null,null,null,{"$f":"VLOOKUP(G145,'Account mapping'!A:D,4,0)","v":{"$error":"#N/A"}}]
[{"$f":"LEFT(Template!A158,4)","v":""},{"$f":"VLOOKUP(A146,'Structure mapping'!K:V,7,0)","v":{"$error":"#N/A"}},{"$f":"LEFT(Template!B158,5)","v":""},{"$f":"VLOOKUP(C146,'Structure mapping'!F:J,5,0)","v":{"$error":"#N/A"}},{"$f":"LEFT(Template!C158,7)","v":""},{"$f":"VLOOKUP(E146,'Structure mapping'!A:E,5,0)","v":{"$error":"#N/A"}},{"$f":"LEFT(Template!D158,6)","v":""},{"$f":"VLOOKUP(G146,'Account mapping'!A:E,5,0)","v":{"$error":"#N/A"}},{"$f":"LEFT(Template!E158,2)","v":""},{"$f":"VLOOKUP(I146,'Structure mapping'!X:AB,5,0)","v":{"$error":"#N/A"}},{"$f":"LEFT(Template!F158,3)","v":""},{"$f":"VLOOKUP(K146,'Structure mapping'!AC:AG,5,0)","v":{"$error":"#N/A"}},{"$f":"LEFT(Template!G158,10)","v":""},{"$f":"VLOOKUP(M146,'Structure mapping'!AH:AL,5,0)","v":{"$error":"#N/A"}},{"$f":"LEFT(Template!H158,6)","v":""},{"$f":"VLOOKUP(O146,'Structure mapping'!AM:AQ,5,0)","v":{"$error":"#N/A"}},null,null,null,null,{"$f":"IF(Template!O158=\"\",\"\",Template!O158)","v":""},"Aug-24 pending entries",{"$f":"TEXT(Template!$B$9,\"mm/dd/yyy\")","v":"08/01/2024"},null,null,null,null,{"$f":"IF(Template!M158>0,Template!M158,-Template!N158)","v":0},null,null,null,{"$f":"VLOOKUP(G146,'Account mapping'!A:D,4,0)","v":{"$error":"#N/A"}}]
[{"$f":"LEFT(Template!A159,4)","v":""},{"$f":"VLOOKUP(A147,'Structure mapping'!K:V,7,0)","v":{"$error":"#N/A"}},{"$f":"LEFT(Template!B159,5)","v":""},{"$f":"VLOOKUP(C147,'Structure mapping'!F:J,5,0)","v":{"$error":"#N/A"}},{"$f":"LEFT(Template!C159,7)","v":""},{"$f":"VLOOKUP(E147,'Structure mapping'!A:E,5,0)","v":{"$error":"#N/A"}},{"$f":"LEFT(Template!D159,6)","v":""},{"$f":"VLOOKUP(G147,'Account mapping'!A:E,5,0)","v":{"$error":"#N/A"}},{"$f":"LEFT(Template!E159,2)","v":""},{"$f":"VLOOKUP(I147,'Structure mapping'!X:AB,5,0)","v":{"$error":"#N/A"}},{"$f":"LEFT(Template!F159,3)","v":""},{"$f":"VLOOKUP(K147,'Structure mapping'!AC:AG,5,0)","v":{"$error":"#N/A"}},{"$f":"LEFT(Template!G159,10)","v":""},{"$f":"VLOOKUP(M147,'Structure mapping'!AH:AL,5,0)","v":{"$error":"#N/A"}},{"$f":"LEFT(Template!H159,6)","v":""},{"$f":"VLOOKUP(O147,'Structure mapping'!AM:AQ,5,0)","v":{"$error":"#N/A"}},null,null,null,null,{"$f":"IF(Template!O159=\"\",\"\",Template!O159)","v":""},"Aug-24 pending entries",{"$f":"TEXT(Template!$B$9,\"mm/dd/yyy\")","v":"08/01/2024"},null,null,null,null,{"$f":"IF(Template!M159>0,Template!M159,-Template!N159)","v":0},null,null,null,{"$f":"VLOOKUP(G147,'Account mapping'!A:D,4,0)","v":{"$error":"#N/A"}}]
[{"$f":"LEFT(Template!A160,4)","v":""},{"$f":"VLOOKUP(A148,'Structure mapping'!K:V,7,0)","v":{"$error":"#N/A"}},{"$f":"LEFT(Template!B160,5)","v":""},{"$f":"VLOOKUP(C148,'Structure mapping'!F:J,5,0)","v":{"$error":"#N/A"}},{"$f":"LEFT(Template!C160,7)","v":""},{"$f":"VLOOKUP(E148,'Structure mapping'!A:E,5,0)","v":{"$error":"#N/A"}},{"$f":"LEFT(Template!D160,6)","v":""},{"$f":"VLOOKUP(G148,'Account mapping'!A:E,5,0)","v":{"$error":"#N/A"}},{"$f":"LEFT(Template!E160,2)","v":""},{"$f":"VLOOKUP(I148,'Structure mapping'!X:AB,5,0)","v":{"$error":"#N/A"}},{"$f":"LEFT(Template!F160,3)","v":""},{"$f":"VLOOKUP(K148,'Structure mapping'!AC:AG,5,0)","v":{"$error":"#N/A"}},{"$f":"LEFT(Template!G160,10)","v":""},{"$f":"VLOOKUP(M148,'Structure mapping'!AH:AL,5,0)","v":{"$error":"#N/A"}},{"$f":"LEFT(Template!H160,6)","v":""},{"$f":"VLOOKUP(O148,'Structure mapping'!AM:AQ,5,0)","v":{"$error":"#N/A"}},null,null,null,null,{"$f":"IF(Template!O160=\"\",\"\",Template!O160)","v":""},"Aug-24 pending entries",{"$f":"TEXT(Template!$B$9,\"mm/dd/yyy\")","v":"08/01/2024"},null,null,null,null,{"$f":"IF(Template!M160>0,Template!M160,-Template!N160)","v":0},null,null,null,{"$f":"VLOOKUP(G148,'Account mapping'!A:D,4,0)","v":{"$error":"#N/A"}}]
[{"$f":"LEFT(Template!A161,4)","v":""},{"$f":"VLOOKUP(A149,'Structure mapping'!K:V,7,0)","v":{"$error":"#N/A"}},{"$f":"LEFT(Template!B161,5)","v":""},{"$f":"VLOOKUP(C149,'Structure mapping'!F:J,5,0)","v":{"$error":"#N/A"}},{"$f":"LEFT(Template!C161,7)","v":""},{"$f":"VLOOKUP(E149,'Structure mapping'!A:E,5,0)","v":{"$error":"#N/A"}},{"$f":"LEFT(Template!D161,6)","v":""},{"$f":"VLOOKUP(G149,'Account mapping'!A:E,5,0)","v":{"$error":"#N/A"}},{"$f":"LEFT(Template!E161,2)","v":""},{"$f":"VLOOKUP(I149,'Structure mapping'!X:AB,5,0)","v":{"$error":"#N/A"}},{"$f":"LEFT(Template!F161,3)","v":""},{"$f":"VLOOKUP(K149,'Structure mapping'!AC:AG,5,0)","v":{"$error":"#N/A"}},{"$f":"LEFT(Template!G161,10)","v":""},{"$f":"VLOOKUP(M149,'Structure mapping'!AH:AL,5,0)","v":{"$error":"#N/A"}},{"$f":"LEFT(Template!H161,6)","v":""},{"$f":"VLOOKUP(O149,'Structure mapping'!AM:AQ,5,0)","v":{"$error":"#N/A"}},null,null,null,null,{"$f":"IF(Template!O161=\"\",\"\",Template!O161)","v":""},"Aug-24 pending entries",{"$f":"TEXT(Template!$B$9,\"mm/dd/yyy\")","v":"08/01/2024"},null,null,null,null,{"$f":"IF(Template!M161>0,Template!M161,-Template!N161)","v":0},null,null,null,{"$f":"VLOOKUP(G149,'Account mapping'!A:D,4,0)","v":{"$error":"#N/A"}}]
[{"$f":"LEFT(Template!A162,4)","v":""},{"$f":"VLOOKUP(A150,'Structure mapping'!K:V,7,0)","v":{"$error":"#N/A"}},{"$f":"LEFT(Template!B162,5)","v":""},{"$f":"VLOOKUP(C150,'Structure mapping'!F:J,5,0)","v":{"$error":"#N/A"}},{"$f":"LEFT(Template!C162,7)","v":""},{"$f":"VLOOKUP(E150,'Structure mapping'!A:E,5,0)","v":{"$error":"#N/A"}},{"$f":"LEFT(Template!D162,6)","v":""},{"$f":"VLOOKUP(G150,'Account mapping'!A:E,5,0)","v":{"$error":"#N/A"}},{"$f":"LEFT(Template!E162,2)","v":""},{"$f":"VLOOKUP(I150,'Structure mapping'!X:AB,5,0)","v":{"$error":"#N/A"}},{"$f":"LEFT(Template!F162,3)","v":""},{"$f":"VLOOKUP(K150,'Structure mapping'!AC:AG,5,0)","v":{"$error":"#N/A"}},{"$f":"LEFT(Template!G162,10)","v":""},{"$f":"VLOOKUP(M150,'Structure mapping'!AH:AL,5,0)","v":{"$error":"#N/A"}},{"$f":"LEFT(Template!H162,6)","v":""},{"$f":"VLOOKUP(O150,'Structure mapping'!AM:AQ,5,0)","v":{"$error":"#N/A"}},null,null,null,null,{"$f":"IF(Template!O162=\"\",\"\",Template!O162)","v":""},"Aug-24 pending entries",{"$f":"TEXT(Template!$B$9,\"mm/dd/yyy\")","v":"08/01/2024"},null,null,null,null,{"$f":"IF(Template!M162>0,Template!M162,-Template!N162)","v":0},null,null,null,{"$f":"VLOOKUP(G150,'Account mapping'!A:D,4,0)","v":{"$error":"#N/A"}}]
[{"$f":"LEFT(Template!A163,4)","v":""},{"$f":"VLOOKUP(A151,'Structure mapping'!K:V,7,0)","v":{"$error":"#N/A"}},{"$f":"LEFT(Template!B163,5)","v":""},{"$f":"VLOOKUP(C151,'Structure mapping'!F:J,5,0)","v":{"$error":"#N/A"}},{"$f":"LEFT(Template!C163,7)","v":""},{"$f":"VLOOKUP(E151,'Structure mapping'!A:E,5,0)","v":{"$error":"#N/A"}},{"$f":"LEFT(Template!D163,6)","v":""},{"$f":"VLOOKUP(G151,'Account mapping'!A:E,5,0)","v":{"$error":"#N/A"}},{"$f":"LEFT(Template!E163,2)","v":""},{"$f":"VLOOKUP(I151,'Structure mapping'!X:AB,5,0)","v":{"$error":"#N/A"}},{"$f":"LEFT(Template!F163,3)","v":""},{"$f":"VLOOKUP(K151,'Structure mapping'!AC:AG,5,0)","v":{"$error":"#N/A"}},{"$f":"LEFT(Template!G163,10)","v":""},{"$f":"VLOOKUP(M151,'Structure mapping'!AH:AL,5,0)","v":{"$error":"#N/A"}},{"$f":"LEFT(Template!H163,6)","v":""},{"$f":"VLOOKUP(O151,'Structure mapping'!AM:AQ,5,0)","v":{"$error":"#N/A"}},null,null,null,null,{"$f":"IF(Template!O163=\"\",\"\",Template!O163)","v":""},"Aug-24 pending entries",{"$f":"TEXT(Template!$B$9,\"mm/dd/yyy\")","v":"08/01/2024"},null,null,null,null,{"$f":"IF(Template!M163>0,Template!M163,-Template!N163)","v":0},null,null,null,{"$f":"VLOOKUP(G151,'Account mapping'!A:D,4,0)","v":{"$error":"#N/A"}}]
[{"$f":"LEFT(Template!A164,4)","v":""},{"$f":"VLOOKUP(A152,'Structure mapping'!K:V,7,0)","v":{"$error":"#N/A"}},{"$f":"LEFT(Template!B164,5)","v":""},{"$f":"VLOOKUP(C152,'Structure mapping'!F:J,5,0)","v":{"$error":"#N/A"}},{"$f":"LEFT(Template!C164,7)","v":""},{"$f":"VLOOKUP(E152,'Structure mapping'!A:E,5,0)","v":{"$error":"#N/A"}},{"$f":"LEFT(Template!D164,6)","v":""},{"$f":"VLOOKUP(G152,'Account mapping'!A:E,5,0)","v":{"$error":"#N/A"}},{"$f":"LEFT(Template!E164,2)","v":""},{"$f":"VLOOKUP(I152,'Structure mapping'!X:AB,5,0)","v":{"$error":"#N/A"}},{"$f":"LEFT(Template!F164,3)","v":""},{"$f":"VLOOKUP(K152,'Structure mapping'!AC:AG,5,0)","v":{"$error":"#N/A"}},{"$f":"LEFT(Template!G164,10)","v":""},{"$f":"VLOOKUP(M152,'Structure mapping'!AH:AL,5,0)","v":{"$error":"#N/A"}},{"$f":"LEFT(Template!H164,6)","v":""},{"$f":"VLOOKUP(O152,'Structure mapping'!AM:AQ,5,0)","v":{"$error":"#N/A"}},null,null,null,null,{"$f":"IF(Template!O164=\"\",\"\",Template!O164)","v":""},"Aug-24 pending entries",{"$f":"TEXT(Template!$B$9,\"mm/dd/yyy\")","v":"08/01/2024"},null,null,null,null,{"$f":"IF(Template!M164>0,Template!M164,-Template!N164)","v":0},null,null,null,{"$f":"VLOOKUP(G152,'Account mapping'!A:D,4,0)","v":{"$error":"#N/A"}}]
[{"$f":"LEFT(Template!A165,4)","v":""},{"$f":"VLOOKUP(A153,'Structure mapping'!K:V,7,0)","v":{"$error":"#N/A"}},{"$f":"LEFT(Template!B165,5)","v":""},{"$f":"VLOOKUP(C153,'Structure mapping'!F:J,5,0)","v":{"$error":"#N/A"}},{"$f":"LEFT(Template!C165,7)","v":""},{"$f":"VLOOKUP(E153,'Structure mapping'!A:E,5,0)","v":{"$error":"#N/A"}},{"$f":"LEFT(Template!D165,6)","v":""},{"$f":"VLOOKUP(G153,'Account mapping'!A:E,5,0)","v":{"$error":"#N/A"}},{"$f":"LEFT(Template!E165,2)","v":""},{"$f":"VLOOKUP(I153,'Structure mapping'!X:AB,5,0)","v":{"$error":"#N/A"}},{"$f":"LEFT(Template!F165,3)","v":""},{"$f":"VLOOKUP(K153,'Structure mapping'!AC:AG,5,0)","v":{"$error":"#N/A"}},{"$f":"LEFT(Template!G165,10)","v":""},{"$f":"VLOOKUP(M153,'Structure mapping'!AH:AL,5,0)","v":{"$error":"#N/A"}},{"$f":"LEFT(Template!H165,6)","v":""},{"$f":"VLOOKUP(O153,'Structure mapping'!AM:AQ,5,0)","v":{"$error":"#N/A"}},null,null,null,null,{"$f":"IF(Template!O165=\"\",\"\",Template!O165)","v":""},"Aug-24 pending entries",{"$f":"TEXT(Template!$B$9,\"mm/dd/yyy\")","v":"08/01/2024"},null,null,null,null,{"$f":"IF(Template!M165>0,Template!M165,-Template!N165)","v":0},null,null,null,{"$f":"VLOOKUP(G153,'Account mapping'!A:D,4,0)","v":{"$error":"#N/A"}}]
[{"$f":"LEFT(Template!A166,4)","v":""},{"$f":"VLOOKUP(A154,'Structure mapping'!K:V,7,0)","v":{"$error":"#N/A"}},{"$f":"LEFT(Template!B166,5)","v":""},{"$f":"VLOOKUP(C154,'Structure mapping'!F:J,5,0)","v":{"$error":"#N/A"}},{"$f":"LEFT(Template!C166,7)","v":""},{"$f":"VLOOKUP(E154,'Structure mapping'!A:E,5,0)","v":{"$error":"#N/A"}},{"$f":"LEFT(Template!D166,6)","v":""},{"$f":"VLOOKUP(G154,'Account mapping'!A:E,5,0)","v":{"$error":"#N/A"}},{"$f":"LEFT(Template!E166,2)","v":""},{"$f":"VLOOKUP(I154,'Structure mapping'!X:AB,5,0)","v":{"$error":"#N/A"}},{"$f":"LEFT(Template!F166,3)","v":""},{"$f":"VLOOKUP(K154,'Structure mapping'!AC:AG,5,0)","v":{"$error":"#N/A"}},{"$f":"LEFT(Template!G166,10)","v":""},{"$f":"VLOOKUP(M154,'Structure mapping'!AH:AL,5,0)","v":{"$error":"#N/A"}},{"$f":"LEFT(Template!H166,6)","v":""},{"$f":"VLOOKUP(O154,'Structure mapping'!AM:AQ,5,0)","v":{"$error":"#N/A"}},null,null,null,null,{"$f":"IF(Template!O166=\"\",\"\",Template!O166)","v":""},"Aug-24 pending entries",{"$f":"TEXT(Template!$B$9,\"mm/dd/yyy\")","v":"08/01/2024"},null,null,null,null,{"$f":"IF(Template!M166>0,Template!M166,-Template!N166)","v":0},null,null,null,{"$f":"VLOOKUP(G154,'Account mapping'!A:D,4,0)","v":{"$error":"#N/A"}}]
[{"$f":"LEFT(Template!A167,4)","v":""},{"$f":"VLOOKUP(A155,'Structure mapping'!K:V,7,0)","v":{"$error":"#N/A"}},{"$f":"LEFT(Template!B167,5)","v":""},{"$f":"VLOOKUP(C155,'Structure mapping'!F:J,5,0)","v":{"$error":"#N/A"}},{"$f":"LEFT(Template!C167,7)","v":""},{"$f":"VLOOKUP(E155,'Structure mapping'!A:E,5,0)","v":{"$error":"#N/A"}},{"$f":"LEFT(Template!D167,6)","v":""},{"$f":"VLOOKUP(G155,'Account mapping'!A:E,5,0)","v":{"$error":"#N/A"}},{"$f":"LEFT(Template!E167,2)","v":""},{"$f":"VLOOKUP(I155,'Structure mapping'!X:AB,5,0)","v":{"$error":"#N/A"}},{"$f":"LEFT(Template!F167,3)","v":""},{"$f":"VLOOKUP(K155,'Structure mapping'!AC:AG,5,0)","v":{"$error":"#N/A"}},{"$f":"LEFT(Template!G167,10)","v":""},{"$f":"VLOOKUP(M155,'Structure mapping'!AH:AL,5,0)","v":{"$error":"#N/A"}},{"$f":"LEFT(Template!H167,6)","v":""},{"$f":"VLOOKUP(O155,'Structure mapping'!AM:AQ,5,0)","v":{"$error":"#N/A"}},null,null,null,null,{"$f":"IF(Template!O167=\"\",\"\",Template!O167)","v":""},"Aug-24 pending entries",{"$f":"TEXT(Template!$B$9,\"mm/dd/yyy\")","v":"08/01/2024"},null,null,null,null,{"$f":"IF(Template!M167>0,Template!M167,-Template!N167)","v":0},null,null,null,{"$f":"VLOOKUP(G155,'Account mapping'!A:D,4,0)","v":{"$error":"#N/A"}}]
[{"$f":"LEFT(Template!A168,4)","v":""},{"$f":"VLOOKUP(A156,'Structure mapping'!K:V,7,0)","v":{"$error":"#N/A"}},{"$f":"LEFT(Template!B168,5)","v":""},{"$f":"VLOOKUP(C156,'Structure mapping'!F:J,5,0)","v":{"$error":"#N/A"}},{"$f":"LEFT(Template!C168,7)","v":""},{"$f":"VLOOKUP(E156,'Structure mapping'!A:E,5,0)","v":{"$error":"#N/A"}},{"$f":"LEFT(Template!D168,6)","v":""},{"$f":"VLOOKUP(G156,'Account mapping'!A:E,5,0)","v":{"$error":"#N/A"}},{"$f":"LEFT(Template!E168,2)","v":""},{"$f":"VLOOKUP(I156,'Structure mapping'!X:AB,5,0)","v":{"$error":"#N/A"}},{"$f":"LEFT(Template!F168,3)","v":""},{"$f":"VLOOKUP(K156,'Structure mapping'!AC:AG,5,0)","v":{"$error":"#N/A"}},{"$f":"LEFT(Template!G168,10)","v":""},{"$f":"VLOOKUP(M156,'Structure mapping'!AH:AL,5,0)","v":{"$error":"#N/A"}},{"$f":"LEFT(Template!H168,6)","v":""},{"$f":"VLOOKUP(O156,'Structure mapping'!AM:AQ,5,0)","v":{"$error":"#N/A"}},null,null,null,null,{"$f":"IF(Template!O168=\"\",\"\",Template!O168)","v":""},"Aug-24 pending entries",{"$f":"TEXT(Template!$B$9,\"mm/dd/yyy\")","v":"08/01/2024"},null,null,null,null,{"$f":"IF(Template!M168>0,Template!M168,-Template!N168)","v":0},null,null,null,{"$f":"VLOOKUP(G156,'Account mapping'!A:D,4,0)","v":{"$error":"#N/A"}}]
[{"$f":"LEFT(Template!A169,4)","v":""},{"$f":"VLOOKUP(A157,'Structure mapping'!K:V,7,0)","v":{"$error":"#N/A"}},{"$f":"LEFT(Template!B169,5)","v":""},{"$f":"VLOOKUP(C157,'Structure mapping'!F:J,5,0)","v":{"$error":"#N/A"}},{"$f":"LEFT(Template!C169,7)","v":""},{"$f":"VLOOKUP(E157,'Structure mapping'!A:E,5,0)","v":{"$error":"#N/A"}},{"$f":"LEFT(Template!D169,6)","v":""},{"$f":"VLOOKUP(G157,'Account mapping'!A:E,5,0)","v":{"$error":"#N/A"}},{"$f":"LEFT(Template!E169,2)","v":""},{"$f":"VLOOKUP(I157,'Structure mapping'!X:AB,5,0)","v":{"$error":"#N/A"}},{"$f":"LEFT(Template!F169,3)","v":""},{"$f":"VLOOKUP(K157,'Structure mapping'!AC:AG,5,0)","v":{"$error":"#N/A"}},{"$f":"LEFT(Template!G169,10)","v":""},{"$f":"VLOOKUP(M157,'Structure mapping'!AH:AL,5,0)","v":{"$error":"#N/A"}},{"$f":"LEFT(Template!H169,6)","v":""},{"$f":"VLOOKUP(O157,'Structure mapping'!AM:AQ,5,0)","v":{"$error":"#N/A"}},null,null,null,null,{"$f":"IF(Template!O169=\"\",\"\",Template!O169)","v":""},"Aug-24 pending entries",{"$f":"TEXT(Template!$B$9,\"mm/dd/yyy\")","v":"08/01/2024"},null,null,null,null,{"$f":"IF(Template!M169>0,Template!M169,-Template!N169)","v":0},null,null,null,{"$f":"VLOOKUP(G157,'Account mapping'!A:D,4,0)","v":{"$error":"#N/A"}}]
[{"$f":"LEFT(Template!A170,4)","v":""},{"$f":"VLOOKUP(A158,'Structure mapping'!K:V,7,0)","v":{"$error":"#N/A"}},{"$f":"LEFT(Template!B170,5)","v":""},{"$f":"VLOOKUP(C158,'Structure mapping'!F:J,5,0)","v":{"$error":"#N/A"}},{"$f":"LEFT(Template!C170,7)","v":""},{"$f":"VLOOKUP(E158,'Structure mapping'!A:E,5,0)","v":{"$error":"#N/A"}},{"$f":"LEFT(Template!D170,6)","v":""},{"$f":"VLOOKUP(G158,'Account mapping'!A:E,5,0)","v":{"$error":"#N/A"}},{"$f":"LEFT(Template!E170,2)","v":""},{"$f":"VLOOKUP(I158,'Structure mapping'!X:AB,5,0)","v":{"$error":"#N/A"}},{"$f":"LEFT(Template!F170,3)","v":""},{"$f":"VLOOKUP(K158,'Structure mapping'!AC:AG,5,0)","v":{"$error":"#N/A"}},{"$f":"LEFT(Template!G170,10)","v":""},{"$f":"VLOOKUP(M158,'Structure mapping'!AH:AL,5,0)","v":{"$error":"#N/A"}},{"$f":"LEFT(Template!H170,6)","v":""},{"$f":"VLOOKUP(O158,'Structure mapping'!AM:AQ,5,0)","v":{"$error":"#N/A"}},null,null,null,null,{"$f":"IF(Template!O170=\"\",\"\",Template!O170)","v":""},"Aug-24 pending entries",{"$f":"TEXT(Template!$B$9,\"mm/dd/yyy\")","v":"08/01/2024"},null,null,null,null,{"$f":"IF(Template!M170>0,Template!M170,-Template!N170)","v":0},null,null,null,{"$f":"VLOOKUP(G158,'Account mapping'!A:D,4,0)","v":{"$error":"#N/A"}}]
[{"$f":"LEFT(Template!A171,4)","v":""},{"$f":"VLOOKUP(A159,'Structure mapping'!K:V,7,0)","v":{"$error":"#N/A"}},{"$f":"LEFT(Template!B171,5)","v":""},{"$f":"VLOOKUP(C159,'Structure mapping'!F:J,5,0)","v":{"$error":"#N/A"}},{"$f":"LEFT(Template!C171,7)","v":""},{"$f":"VLOOKUP(E159,'Structure mapping'!A:E,5,0)","v":{"$error":"#N/A"}},{"$f":"LEFT(Template!D171,6)","v":""},{"$f":"VLOOKUP(G159,'Account mapping'!A:E,5,0)","v":{"$error":"#N/A"}},{"$f":"LEFT(Template!E171,2)","v":""},{"$f":"VLOOKUP(I159,'Structure mapping'!X:AB,5,0)","v":{"$error":"#N/A"}},{"$f":"LEFT(Template!F171,3)","v":""},{"$f":"VLOOKUP(K159,'Structure mapping'!AC:AG,5,0)","v":{"$error":"#N/A"}},{"$f":"LEFT(Template!G171,10)","v":""},{"$f":"VLOOKUP(M159,'Structure mapping'!AH:AL,5,0)","v":{"$error":"#N/A"}},{"$f":"LEFT(Template!H171,6)","v":""},{"$f":"VLOOKUP(O159,'Structure mapping'!AM:AQ,5,0)","v":{"$error":"#N/A"}},null,null,null,null,{"$f":"IF(Template!O171=\"\",\"\",Template!O171)","v":""},"Aug-24 pending entries",{"$f":"TEXT(Template!$B$9,\"mm/dd/yyy\")","v":"08/01/2024"},null,null,null,null,{"$f":"IF(Template!M171>0,Template!M171,-Template!N171)","v":0},null,null,null,{"$f":"VLOOKUP(G159,'Account mapping'!A:D,4,0)","v":{"$error":"#N/A"}}]
[{"$f":"LEFT(Template!A172,4)","v":""},{"$f":"VLOOKUP(A160,'Structure mapping'!K:V,7,0)","v":{"$error":"#N/A"}},{"$f":"LEFT(Template!B172,5)","v":""},{"$f":"VLOOKUP(C160,'Structure mapping'!F:J,5,0)","v":{"$error":"#N/A"}},{"$f":"LEFT(Template!C172,7)","v":""},{"$f":"VLOOKUP(E160,'Structure mapping'!A:E,5,0)","v":{"$error":"#N/A"}},{"$f":"LEFT(Template!D172,6)","v":""},{"$f":"VLOOKUP(G160,'Account mapping'!A:E,5,0)","v":{"$error":"#N/A"}},{"$f":"LEFT(Template!E172,2)","v":""},{"$f":"VLOOKUP(I160,'Structure mapping'!X:AB,5,0)","v":{"$error":"#N/A"}},{"$f":"LEFT(Template!F172,3)","v":""},{"$f":"VLOOKUP(K160,'Structure mapping'!AC:AG,5,0)","v":{"$error":"#N/A"}},{"$f":"LEFT(Template!G172,10)","v":""},{"$f":"VLOOKUP(M160,'Structure mapping'!AH:AL,5,0)","v":{"$error":"#N/A"}},{"$f":"LEFT(Template!H172,6)","v":""},{"$f":"VLOOKUP(O160,'Structure mapping'!AM:AQ,5,0)","v":{"$error":"#N/A"}},null,null,null,null,{"$f":"IF(Template!O172=\"\",\"\",Template!O172)","v":""},"Aug-24 pending entries",{"$f":"TEXT(Template!$B$9,\"mm/dd/yyy\")","v":"08/01/2024"},null,null,null,null,{"$f":"IF(Template!M172>0,Template!M172,-Template!N172)","v":0},null,null,null,{"$f":"VLOOKUP(G160,'Account mapping'!A:D,4,0)","v":{"$error":"#N/A"}}]
[{"$f":"LEFT(Template!A173,4)","v":""},{"$f":"VLOOKUP(A161,'Structure mapping'!K:V,7,0)","v":{"$error":"#N/A"}},{"$f":"LEFT(Template!B173,5)","v":""},{"$f":"VLOOKUP(C161,'Structure mapping'!F:J,5,0)","v":{"$error":"#N/A"}},{"$f":"LEFT(Template!C173,7)","v":""},{"$f":"VLOOKUP(E161,'Structure mapping'!A:E,5,0)","v":{"$error":"#N/A"}},{"$f":"LEFT(Template!D173,6)","v":""},{"$f":"VLOOKUP(G161,'Account mapping'!A:E,5,0)","v":{"$error":"#N/A"}},{"$f":"LEFT(Template!E173,2)","v":""},{"$f":"VLOOKUP(I161,'Structure mapping'!X:AB,5,0)","v":{"$error":"#N/A"}},{"$f":"LEFT(Template!F173,3)","v":""},{"$f":"VLOOKUP(K161,'Structure mapping'!AC:AG,5,0)","v":{"$error":"#N/A"}},{"$f":"LEFT(Template!G173,10)","v":""},{"$f":"VLOOKUP(M161,'Structure mapping'!AH:AL,5,0)","v":{"$error":"#N/A"}},{"$f":"LEFT(Template!H173,6)","v":""},{"$f":"VLOOKUP(O161,'Structure mapping'!AM:AQ,5,0)","v":{"$error":"#N/A"}},null,null,null,null,{"$f":"IF(Template!O173=\"\",\"\",Template!O173)","v":""},"Aug-24 pending entries",{"$f":"TEXT(Template!$B$9,\"mm/dd/yyy\")","v":"08/01/2024"},null,null,null,null,{"$f":"IF(Template!M173>0,Template!M173,-Template!N173)","v":0},null,null,null,{"$f":"VLOOKUP(G161,'Account mapping'!A:D,4,0)","v":{"$error":"#N/A"}}]
[{"$f":"LEFT(Template!A174,4)","v":""},{"$f":"VLOOKUP(A162,'Structure mapping'!K:V,7,0)","v":{"$error":"#N/A"}},{"$f":"LEFT(Template!B174,5)","v":""},{"$f":"VLOOKUP(C162,'Structure mapping'!F:J,5,0)","v":{"$error":"#N/A"}},{"$f":"LEFT(Template!C174,7)","v":""},{"$f":"VLOOKUP(E162,'Structure mapping'!A:E,5,0)","v":{"$error":"#N/A"}},{"$f":"LEFT(Template!D174,6)","v":""},{"$f":"VLOOKUP(G162,'Account mapping'!A:E,5,0)","v":{"$error":"#N/A"}},{"$f":"LEFT(Template!E174,2)","v":""},{"$f":"VLOOKUP(I162,'Structure mapping'!X:AB,5,0)","v":{"$error":"#N/A"}},{"$f":"LEFT(Template!F174,3)","v":""},{"$f":"VLOOKUP(K162,'Structure mapping'!AC:AG,5,0)","v":{"$error":"#N/A"}},{"$f":"LEFT(Template!G174,10)","v":""},{"$f":"VLOOKUP(M162,'Structure mapping'!AH:AL,5,0)","v":{"$error":"#N/A"}},{"$f":"LEFT(Template!H174,6)","v":""},{"$f":"VLOOKUP(O162,'Structure mapping'!AM:AQ,5,0)","v":{"$error":"#N/A"}},null,null,null,null,{"$f":"IF(Template!O174=\"\",\"\",Template!O174)","v":""},"Aug-24 pending entries",{"$f":"TEXT(Template!$B$9,\"mm/dd/yyy\")","v":"08/01/2024"},null,null,null,null,{"$f":"IF(Template!M174>0,Template!M174,-Template!N174)","v":0},null,null,null,{"$f":"VLOOKUP(G162,'Account mapping'!A:D,4,0)","v":{"$error":"#N/A"}}]
[{"$f":"LEFT(Template!A175,4)","v":""},{"$f":"VLOOKUP(A163,'Structure mapping'!K:V,7,0)","v":{"$error":"#N/A"}},{"$f":"LEFT(Template!B175,5)","v":""},{"$f":"VLOOKUP(C163,'Structure mapping'!F:J,5,0)","v":{"$error":"#N/A"}},{"$f":"LEFT(Template!C175,7)","v":""},{"$f":"VLOOKUP(E163,'Structure mapping'!A:E,5,0)","v":{"$error":"#N/A"}},{"$f":"LEFT(Template!D175,6)","v":""},{"$f":"VLOOKUP(G163,'Account mapping'!A:E,5,0)","v":{"$error":"#N/A"}},{"$f":"LEFT(Template!E175,2)","v":""},{"$f":"VLOOKUP(I163,'Structure mapping'!X:AB,5,0)","v":{"$error":"#N/A"}},{"$f":"LEFT(Template!F175,3)","v":""},{"$f":"VLOOKUP(K163,'Structure mapping'!AC:AG,5,0)","v":{"$error":"#N/A"}},{"$f":"LEFT(Template!G175,10)","v":""},{"$f":"VLOOKUP(M163,'Structure mapping'!AH:AL,5,0)","v":{"$error":"#N/A"}},{"$f":"LEFT(Template!H175,6)","v":""},{"$f":"VLOOKUP(O163,'Structure mapping'!AM:AQ,5,0)","v":{"$error":"#N/A"}},null,null,null,null,{"$f":"IF(Template!O175=\"\",\"\",Template!O175)","v":""},"Aug-24 pending entries",{"$f":"TEXT(Template!$B$9,\"mm/dd/yyy\")","v":"08/01/2024"},null,null,null,null,{"$f":"IF(Template!M175>0,Template!M175,-Template!N175)","v":0},null,null,null,{"$f":"VLOOKUP(G163,'Account mapping'!A:D,4,0)","v":{"$error":"#N/A"}}]
[{"$f":"LEFT(Template!A176,4)","v":""},{"$f":"VLOOKUP(A164,'Structure mapping'!K:V,7,0)","v":{"$error":"#N/A"}},{"$f":"LEFT(Template!B176,5)","v":""},{"$f":"VLOOKUP(C164,'Structure mapping'!F:J,5,0)","v":{"$error":"#N/A"}},{"$f":"LEFT(Template!C176,7)","v":""},{"$f":"VLOOKUP(E164,'Structure mapping'!A:E,5,0)","v":{"$error":"#N/A"}},{"$f":"LEFT(Template!D176,6)","v":""},{"$f":"VLOOKUP(G164,'Account mapping'!A:E,5,0)","v":{"$error":"#N/A"}},{"$f":"LEFT(Template!E176,2)","v":""},{"$f":"VLOOKUP(I164,'Structure mapping'!X:AB,5,0)","v":{"$error":"#N/A"}},{"$f":"LEFT(Template!F176,3)","v":""},{"$f":"VLOOKUP(K164,'Structure mapping'!AC:AG,5,0)","v":{"$error":"#N/A"}},{"$f":"LEFT(Template!G176,10)","v":""},{"$f":"VLOOKUP(M164,'Structure mapping'!AH:AL,5,0)","v":{"$error":"#N/A"}},{"$f":"LEFT(Template!H176,6)","v":""},{"$f":"VLOOKUP(O164,'Structure mapping'!AM:AQ,5,0)","v":{"$error":"#N/A"}},null,null,null,null,{"$f":"IF(Template!O176=\"\",\"\",Template!O176)","v":""},"Aug-24 pending entries",{"$f":"TEXT(Template!$B$9,\"mm/dd/yyy\")","v":"08/01/2024"},null,null,null,null,{"$f":"IF(Template!M176>0,Template!M176,-Template!N176)","v":0},null,null,null,{"$f":"VLOOKUP(G164,'Account mapping'!A:D,4,0)","v":{"$error":"#N/A"}}]
[{"$f":"LEFT(Template!A177,4)","v":""},{"$f":"VLOOKUP(A165,'Structure mapping'!K:V,7,0)","v":{"$error":"#N/A"}},{"$f":"LEFT(Template!B177,5)","v":""},{"$f":"VLOOKUP(C165,'Structure mapping'!F:J,5,0)","v":{"$error":"#N/A"}},{"$f":"LEFT(Template!C177,7)","v":""},{"$f":"VLOOKUP(E165,'Structure mapping'!A:E,5,0)","v":{"$error":"#N/A"}},{"$f":"LEFT(Template!D177,6)","v":""},{"$f":"VLOOKUP(G165,'Account mapping'!A:E,5,0)","v":{"$error":"#N/A"}},{"$f":"LEFT(Template!E177,2)","v":""},{"$f":"VLOOKUP(I165,'Structure mapping'!X:AB,5,0)","v":{"$error":"#N/A"}},{"$f":"LEFT(Template!F177,3)","v":""},{"$f":"VLOOKUP(K165,'Structure mapping'!AC:AG,5,0)","v":{"$error":"#N/A"}},{"$f":"LEFT(Template!G177,10)","v":""},{"$f":"VLOOKUP(M165,'Structure mapping'!AH:AL,5,0)","v":{"$error":"#N/A"}},{"$f":"LEFT(Template!H177,6)","v":""},{"$f":"VLOOKUP(O165,'Structure mapping'!AM:AQ,5,0)","v":{"$error":"#N/A"}},null,null,null,null,{"$f":"IF(Template!O177=\"\",\"\",Template!O177)","v":""},"Aug-24 pending entries",{"$f":"TEXT(Template!$B$9,\"mm/dd/yyy\")","v":"08/01/2024"},null,null,null,null,{"$f":"IF(Template!M177>0,Template!M177,-Template!N177)","v":0},null,null,null,{"$f":"VLOOKUP(G165,'Account mapping'!A:D,4,0)","v":{"$error":"#N/A"}}]
[{"$f":"LEFT(Template!A178,4)","v":""},{"$f":"VLOOKUP(A166,'Structure mapping'!K:V,7,0)","v":{"$error":"#N/A"}},{"$f":"LEFT(Template!B178,5)","v":""},{"$f":"VLOOKUP(C166,'Structure mapping'!F:J,5,0)","v":{"$error":"#N/A"}},{"$f":"LEFT(Template!C178,7)","v":""},{"$f":"VLOOKUP(E166,'Structure mapping'!A:E,5,0)","v":{"$error":"#N/A"}},{"$f":"LEFT(Template!D178,6)","v":""},{"$f":"VLOOKUP(G166,'Account mapping'!A:E,5,0)","v":{"$error":"#N/A"}},{"$f":"LEFT(Template!E178,2)","v":""},{"$f":"VLOOKUP(I166,'Structure mapping'!X:AB,5,0)","v":{"$error":"#N/A"}},{"$f":"LEFT(Template!F178,3)","v":""},{"$f":"VLOOKUP(K166,'Structure mapping'!AC:AG,5,0)","v":{"$error":"#N/A"}},{"$f":"LEFT(Template!G178,10)","v":""},{"$f":"VLOOKUP(M166,'Structure mapping'!AH:AL,5,0)","v":{"$error":"#N/A"}},{"$f":"LEFT(Template!H178,6)","v":""},{"$f":"VLOOKUP(O166,'Structure mapping'!AM:AQ,5,0)","v":{"$error":"#N/A"}},null,null,null,null,{"$f":"IF(Template!O178=\"\",\"\",Template!O178)","v":""},"Aug-24 pending entries",{"$f":"TEXT(Template!$B$9,\"mm/dd/yyy\")","v":"08/01/2024"},null,null,null,null,{"$f":"IF(Template!M178>0,Template!M178,-Template!N178)","v":0},null,null,null,{"$f":"VLOOKUP(G166,'Account mapping'!A:D,4,0)","v":{"$error":"#N/A"}}]
[{"$f":"LEFT(Template!A179,4)","v":""},{"$f":"VLOOKUP(A167,'Structure mapping'!K:V,7,0)","v":{"$error":"#N/A"}},{"$f":"LEFT(Template!B179,5)","v":""},{"$f":"VLOOKUP(C167,'Structure mapping'!F:J,5,0)","v":{"$error":"#N/A"}},{"$f":"LEFT(Template!C179,7)","v":""},{"$f":"VLOOKUP(E167,'Structure mapping'!A:E,5,0)","v":{"$error":"#N/A"}},{"$f":"LEFT(Template!D179,6)","v":""},{"$f":"VLOOKUP(G167,'Account mapping'!A:E,5,0)","v":{"$error":"#N/A"}},{"$f":"LEFT(Template!E179,2)","v":""},{"$f":"VLOOKUP(I167,'Structure mapping'!X:AB,5,0)","v":{"$error":"#N/A"}},{"$f":"LEFT(Template!F179,3)","v":""},{"$f":"VLOOKUP(K167,'Structure mapping'!AC:AG,5,0)","v":{"$error":"#N/A"}},{"$f":"LEFT(Template!G179,10)","v":""},{"$f":"VLOOKUP(M167,'Structure mapping'!AH:AL,5,0)","v":{"$error":"#N/A"}},{"$f":"LEFT(Template!H179,6)","v":""},{"$f":"VLOOKUP(O167,'Structure mapping'!AM:AQ,5,0)","v":{"$error":"#N/A"}},null,null,null,null,{"$f":"IF(Template!O179=\"\",\"\",Template!O179)","v":""},"Aug-24 pending entries",{"$f":"TEXT(Template!$B$9,\"mm/dd/yyy\")","v":"08/01/2024"},null,null,null,null,{"$f":"IF(Template!M179>0,Template!M179,-Template!N179)","v":0},null,null,null,{"$f":"VLOOKUP(G167,'Account mapping'!A:D,4,0)","v":{"$error":"#N/A"}}]
[{"$f":"LEFT(Template!A180,4)","v":""},{"$f":"VLOOKUP(A168,'Structure mapping'!K:V,7,0)","v":{"$error":"#N/A"}},{"$f":"LEFT(Template!B180,5)","v":""},{"$f":"VLOOKUP(C168,'Structure mapping'!F:J,5,0)","v":{"$error":"#N/A"}},{"$f":"LEFT(Template!C180,7)","v":""},{"$f":"VLOOKUP(E168,'Structure mapping'!A:E,5,0)","v":{"$error":"#N/A"}},{"$f":"LEFT(Template!D180,6)","v":""},{"$f":"VLOOKUP(G168,'Account mapping'!A:E,5,0)","v":{"$error":"#N/A"}},{"$f":"LEFT(Template!E180,2)","v":""},{"$f":"VLOOKUP(I168,'Structure mapping'!X:AB,5,0)","v":{"$error":"#N/A"}},{"$f":"LEFT(Template!F180,3)","v":""},{"$f":"VLOOKUP(K168,'Structure mapping'!AC:AG,5,0)","v":{"$error":"#N/A"}},{"$f":"LEFT(Template!G180,10)","v":""},{"$f":"VLOOKUP(M168,'Structure mapping'!AH:AL,5,0)","v":{"$error":"#N/A"}},{"$f":"LEFT(Template!H180,6)","v":""},{"$f":"VLOOKUP(O168,'Structure mapping'!AM:AQ,5,0)","v":{"$error":"#N/A"}},null,null,null,null,{"$f":"IF(Template!O180=\"\",\"\",Template!O180)","v":""},"Aug-24 pending entries",{"$f":"TEXT(Template!$B$9,\"mm/dd/yyy\")","v":"08/01/2024"},null,null,null,null,{"$f":"IF(Template!M180>0,Template!M180,-Template!N180)","v":0},null,null,null,{"$f":"VLOOKUP(G168,'Account mapping'!A:D,4,0)","v":{"$error":"#N/A"}}]
[{"$f":"LEFT(Template!A181,4)","v":""},{"$f":"VLOOKUP(A169,'Structure mapping'!K:V,7,0)","v":{"$error":"#N/A"}},{"$f":"LEFT(Template!B181,5)","v":""},{"$f":"VLOOKUP(C169,'Structure mapping'!F:J,5,0)","v":{"$error":"#N/A"}},{"$f":"LEFT(Template!C181,7)","v":""},{"$f":"VLOOKUP(E169,'Structure mapping'!A:E,5,0)","v":{"$error":"#N/A"}},{"$f":"LEFT(Template!D181,6)","v":""},{"$f":"VLOOKUP(G169,'Account mapping'!A:E,5,0)","v":{"$error":"#N/A"}},{"$f":"LEFT(Template!E181,2)","v":""},{"$f":"VLOOKUP(I169,'Structure mapping'!X:AB,5,0)","v":{"$error":"#N/A"}},{"$f":"LEFT(Template!F181,3)","v":""},{"$f":"VLOOKUP(K169,'Structure mapping'!AC:AG,5,0)","v":{"$error":"#N/A"}},{"$f":"LEFT(Template!G181,10)","v":""},{"$f":"VLOOKUP(M169,'Structure mapping'!AH:AL,5,0)","v":{"$error":"#N/A"}},{"$f":"LEFT(Template!H181,6)","v":""},{"$f":"VLOOKUP(O169,'Structure mapping'!AM:AQ,5,0)","v":{"$error":"#N/A"}},null,null,null,null,{"$f":"IF(Template!O181=\"\",\"\",Template!O181)","v":""},"Aug-24 pending entries",{"$f":"TEXT(Template!$B$9,\"mm/dd/yyy\")","v":"08/01/2024"},null,null,null,null,{"$f":"IF(Template!M181>0,Template!M181,-Template!N181)","v":0},null,null,null,{"$f":"VLOOKUP(G169,'Account mapping'!A:D,4,0)","v":{"$error":"#N/A"}}]
[{"$f":"LEFT(Template!A182,4)","v":""},{"$f":"VLOOKUP(A170,'Structure mapping'!K:V,7,0)","v":{"$error":"#N/A"}},{"$f":"LEFT(Template!B182,5)","v":""},{"$f":"VLOOKUP(C170,'Structure mapping'!F:J,5,0)","v":{"$error":"#N/A"}},{"$f":"LEFT(Template!C182,7)","v":""},{"$f":"VLOOKUP(E170,'Structure mapping'!A:E,5,0)","v":{"$error":"#N/A"}},{"$f":"LEFT(Template!D182,6)","v":""},{"$f":"VLOOKUP(G170,'Account mapping'!A:E,5,0)","v":{"$error":"#N/A"}},{"$f":"LEFT(Template!E182,2)","v":""},{"$f":"VLOOKUP(I170,'Structure mapping'!X:AB,5,0)","v":{"$error":"#N/A"}},{"$f":"LEFT(Template!F182,3)","v":""},{"$f":"VLOOKUP(K170,'Structure mapping'!AC:AG,5,0)","v":{"$error":"#N/A"}},{"$f":"LEFT(Template!G182,10)","v":""},{"$f":"VLOOKUP(M170,'Structure mapping'!AH:AL,5,0)","v":{"$error":"#N/A"}},{"$f":"LEFT(Template!H182,6)","v":""},{"$f":"VLOOKUP(O170,'Structure mapping'!AM:AQ,5,0)","v":{"$error":"#N/A"}},null,null,null,null,{"$f":"IF(Template!O182=\"\",\"\",Template!O182)","v":""},"Aug-24 pending entries",{"$f":"TEXT(Template!$B$9,\"mm/dd/yyy\")","v":"08/01/2024"},null,null,null,null,{"$f":"IF(Template!M182>0,Template!M182,-Template!N182)","v":0},null,null,null,{"$f":"VLOOKUP(G170,'Account mapping'!A:D,4,0)","v":{"$error":"#N/A"}}]
[{"$f":"LEFT(Template!A183,4)","v":""},{"$f":"VLOOKUP(A171,'Structure mapping'!K:V,7,0)","v":{"$error":"#N/A"}},{"$f":"LEFT(Template!B183,5)","v":""},{"$f":"VLOOKUP(C171,'Structure mapping'!F:J,5,0)","v":{"$error":"#N/A"}},{"$f":"LEFT(Template!C183,7)","v":""},{"$f":"VLOOKUP(E171,'Structure mapping'!A:E,5,0)","v":{"$error":"#N/A"}},{"$f":"LEFT(Template!D183,6)","v":""},{"$f":"VLOOKUP(G171,'Account mapping'!A:E,5,0)","v":{"$error":"#N/A"}},{"$f":"LEFT(Template!E183,2)","v":""},{"$f":"VLOOKUP(I171,'Structure mapping'!X:AB,5,0)","v":{"$error":"#N/A"}},{"$f":"LEFT(Template!F183,3)","v":""},{"$f":"VLOOKUP(K171,'Structure mapping'!AC:AG,5,0)","v":{"$error":"#N/A"}},{"$f":"LEFT(Template!G183,10)","v":""},{"$f":"VLOOKUP(M171,'Structure mapping'!AH:AL,5,0)","v":{"$error":"#N/A"}},{"$f":"LEFT(Template!H183,6)","v":""},{"$f":"VLOOKUP(O171,'Structure mapping'!AM:AQ,5,0)","v":{"$error":"#N/A"}},null,null,null,null,{"$f":"IF(Template!O183=\"\",\"\",Template!O183)","v":""},"Aug-24 pending entries",{"$f":"TEXT(Template!$B$9,\"mm/dd/yyy\")","v":"08/01/2024"},null,null,null,null,{"$f":"IF(Template!M183>0,Template!M183,-Template!N183)","v":0},null,null,null,{"$f":"VLOOKUP(G171,'Account mapping'!A:D,4,0)","v":{"$error":"#N/A"}}]
[{"$f":"LEFT(Template!A184,4)","v":""},{"$f":"VLOOKUP(A172,'Structure mapping'!K:V,7,0)","v":{"$error":"#N/A"}},{"$f":"LEFT(Template!B184,5)","v":""},{"$f":"VLOOKUP(C172,'Structure mapping'!F:J,5,0)","v":{"$error":"#N/A"}},{"$f":"LEFT(Template!C184,7)","v":""},{"$f":"VLOOKUP(E172,'Structure mapping'!A:E,5,0)","v":{"$error":"#N/A"}},{"$f":"LEFT(Template!D184,6)","v":""},{"$f":"VLOOKUP(G172,'Account mapping'!A:E,5,0)","v":{"$error":"#N/A"}},{"$f":"LEFT(Template!E184,2)","v":""},{"$f":"VLOOKUP(I172,'Structure mapping'!X:AB,5,0)","v":{"$error":"#N/A"}},{"$f":"LEFT(Template!F184,3)","v":""},{"$f":"VLOOKUP(K172,'Structure mapping'!AC:AG,5,0)","v":{"$error":"#N/A"}},{"$f":"LEFT(Template!G184,10)","v":""},{"$f":"VLOOKUP(M172,'Structure mapping'!AH:AL,5,0)","v":{"$error":"#N/A"}},{"$f":"LEFT(Template!H184,6)","v":""},{"$f":"VLOOKUP(O172,'Structure mapping'!AM:AQ,5,0)","v":{"$error":"#N/A"}},null,null,null,null,{"$f":"IF(Template!O184=\"\",\"\",Template!O184)","v":""},"Aug-24 pending entries",{"$f":"TEXT(Template!$B$9,\"mm/dd/yyy\")","v":"08/01/2024"},null,null,null,null,{"$f":"IF(Template!M184>0,Template!M184,-Template!N184)","v":0},null,null,null,{"$f":"VLOOKUP(G172,'Account mapping'!A:D,4,0)","v":{"$error":"#N/A"}}]
[{"$f":"LEFT(Template!A185,4)","v":""},{"$f":"VLOOKUP(A173,'Structure mapping'!K:V,7,0)","v":{"$error":"#N/A"}},{"$f":"LEFT(Template!B185,5)","v":""},{"$f":"VLOOKUP(C173,'Structure mapping'!F:J,5,0)","v":{"$error":"#N/A"}},{"$f":"LEFT(Template!C185,7)","v":""},{"$f":"VLOOKUP(E173,'Structure mapping'!A:E,5,0)","v":{"$error":"#N/A"}},{"$f":"LEFT(Template!D185,6)","v":""},{"$f":"VLOOKUP(G173,'Account mapping'!A:E,5,0)","v":{"$error":"#N/A"}},{"$f":"LEFT(Template!E185,2)","v":""},{"$f":"VLOOKUP(I173,'Structure mapping'!X:AB,5,0)","v":{"$error":"#N/A"}},{"$f":"LEFT(Template!F185,3)","v":""},{"$f":"VLOOKUP(K173,'Structure mapping'!AC:AG,5,0)","v":{"$error":"#N/A"}},{"$f":"LEFT(Template!G185,10)","v":""},{"$f":"VLOOKUP(M173,'Structure mapping'!AH:AL,5,0)","v":{"$error":"#N/A"}},{"$f":"LEFT(Template!H185,6)","v":""},{"$f":"VLOOKUP(O173,'Structure mapping'!AM:AQ,5,0)","v":{"$error":"#N/A"}},null,null,null,null,{"$f":"IF(Template!O185=\"\",\"\",Template!O185)","v":""},"Aug-24 pending entries",{"$f":"TEXT(Template!$B$9,\"mm/dd/yyy\")","v":"08/01/2024"},null,null,null,null,{"$f":"IF(Template!M185>0,Template!M185,-Template!N185)","v":0},null,null,null,{"$f":"VLOOKUP(G173,'Account mapping'!A:D,4,0)","v":{"$error":"#N/A"}}]
[{"$f":"LEFT(Template!A186,4)","v":""},{"$f":"VLOOKUP(A174,'Structure mapping'!K:V,7,0)","v":{"$error":"#N/A"}},{"$f":"LEFT(Template!B186,5)","v":""},{"$f":"VLOOKUP(C174,'Structure mapping'!F:J,5,0)","v":{"$error":"#N/A"}},{"$f":"LEFT(Template!C186,7)","v":""},{"$f":"VLOOKUP(E174,'Structure mapping'!A:E,5,0)","v":{"$error":"#N/A"}},{"$f":"LEFT(Template!D186,6)","v":""},{"$f":"VLOOKUP(G174,'Account mapping'!A:E,5,0)","v":{"$error":"#N/A"}},{"$f":"LEFT(Template!E186,2)","v":""},{"$f":"VLOOKUP(I174,'Structure mapping'!X:AB,5,0)","v":{"$error":"#N/A"}},{"$f":"LEFT(Template!F186,3)","v":""},{"$f":"VLOOKUP(K174,'Structure mapping'!AC:AG,5,0)","v":{"$error":"#N/A"}},{"$f":"LEFT(Template!G186,10)","v":""},{"$f":"VLOOKUP(M174,'Structure mapping'!AH:AL,5,0)","v":{"$error":"#N/A"}},{"$f":"LEFT(Template!H186,6)","v":""},{"$f":"VLOOKUP(O174,'Structure mapping'!AM:AQ,5,0)","v":{"$error":"#N/A"}},null,null,null,null,{"$f":"IF(Template!O186=\"\",\"\",Template!O186)","v":""},"Aug-24 pending entries",{"$f":"TEXT(Template!$B$9,\"mm/dd/yyy\")","v":"08/01/2024"},null,null,null,null,{"$f":"IF(Template!M186>0,Template!M186,-Template!N186)","v":0},null,null,null,{"$f":"VLOOKUP(G174,'Account mapping'!A:D,4,0)","v":{"$error":"#N/A"}}]
[{"$f":"LEFT(Template!A187,4)","v":""},{"$f":"VLOOKUP(A175,'Structure mapping'!K:V,7,0)","v":{"$error":"#N/A"}},{"$f":"LEFT(Template!B187,5)","v":""},{"$f":"VLOOKUP(C175,'Structure mapping'!F:J,5,0)","v":{"$error":"#N/A"}},{"$f":"LEFT(Template!C187,7)","v":""},{"$f":"VLOOKUP(E175,'Structure mapping'!A:E,5,0)","v":{"$error":"#N/A"}},{"$f":"LEFT(Template!D187,6)","v":""},{"$f":"VLOOKUP(G175,'Account mapping'!A:E,5,0)","v":{"$error":"#N/A"}},{"$f":"LEFT(Template!E187,2)","v":""},{"$f":"VLOOKUP(I175,'Structure mapping'!X:AB,5,0)","v":{"$error":"#N/A"}},{"$f":"LEFT(Template!F187,3)","v":""},{"$f":"VLOOKUP(K175,'Structure mapping'!AC:AG,5,0)","v":{"$error":"#N/A"}},{"$f":"LEFT(Template!G187,10)","v":""},{"$f":"VLOOKUP(M175,'Structure mapping'!AH:AL,5,0)","v":{"$error":"#N/A"}},{"$f":"LEFT(Template!H187,6)","v":""},{"$f":"VLOOKUP(O175,'Structure mapping'!AM:AQ,5,0)","v":{"$error":"#N/A"}},null,null,null,null,{"$f":"IF(Template!O187=\"\",\"\",Template!O187)","v":""},"Aug-24 pending entries",{"$f":"TEXT(Template!$B$9,\"mm/dd/yyy\")","v":"08/01/2024"},null,null,null,null,{"$f":"IF(Template!M187>0,Template!M187,-Template!N187)","v":0},null,null,null,{"$f":"VLOOKUP(G175,'Account mapping'!A:D,4,0)","v":{"$error":"#N/A"}}]
[{"$f":"LEFT(Template!A188,4)","v":""},{"$f":"VLOOKUP(A176,'Structure mapping'!K:V,7,0)","v":{"$error":"#N/A"}},{"$f":"LEFT(Template!B188,5)","v":""},{"$f":"VLOOKUP(C176,'Structure mapping'!F:J,5,0)","v":{"$error":"#N/A"}},{"$f":"LEFT(Template!C188,7)","v":""},{"$f":"VLOOKUP(E176,'Structure mapping'!A:E,5,0)","v":{"$error":"#N/A"}},{"$f":"LEFT(Template!D188,6)","v":""},{"$f":"VLOOKUP(G176,'Account mapping'!A:E,5,0)","v":{"$error":"#N/A"}},{"$f":"LEFT(Template!E188,2)","v":""},{"$f":"VLOOKUP(I176,'Structure mapping'!X:AB,5,0)","v":{"$error":"#N/A"}},{"$f":"LEFT(Template!F188,3)","v":""},{"$f":"VLOOKUP(K176,'Structure mapping'!AC:AG,5,0)","v":{"$error":"#N/A"}},{"$f":"LEFT(Template!G188,10)","v":""},{"$f":"VLOOKUP(M176,'Structure mapping'!AH:AL,5,0)","v":{"$error":"#N/A"}},{"$f":"LEFT(Template!H188,6)","v":""},{"$f":"VLOOKUP(O176,'Structure mapping'!AM:AQ,5,0)","v":{"$error":"#N/A"}},null,null,null,null,{"$f":"IF(Template!O188=\"\",\"\",Template!O188)","v":""},"Aug-24 pending entries",{"$f":"TEXT(Template!$B$9,\"mm/dd/yyy\")","v":"08/01/2024"},null,null,null,null,{"$f":"IF(Template!M188>0,Template!M188,-Template!N188)","v":0},null,null,null,{"$f":"VLOOKUP(G176,'Account mapping'!A:D,4,0)","v":{"$error":"#N/A"}}]
[{"$f":"LEFT(Template!A189,4)","v":""},{"$f":"VLOOKUP(A177,'Structure mapping'!K:V,7,0)","v":{"$error":"#N/A"}},{"$f":"LEFT(Template!B189,5)","v":""},{"$f":"VLOOKUP(C177,'Structure mapping'!F:J,5,0)","v":{"$error":"#N/A"}},{"$f":"LEFT(Template!C189,7)","v":""},{"$f":"VLOOKUP(E177,'Structure mapping'!A:E,5,0)","v":{"$error":"#N/A"}},{"$f":"LEFT(Template!D189,6)","v":""},{"$f":"VLOOKUP(G177,'Account mapping'!A:E,5,0)","v":{"$error":"#N/A"}},{"$f":"LEFT(Template!E189,2)","v":""},{"$f":"VLOOKUP(I177,'Structure mapping'!X:AB,5,0)","v":{"$error":"#N/A"}},{"$f":"LEFT(Template!F189,3)","v":""},{"$f":"VLOOKUP(K177,'Structure mapping'!AC:AG,5,0)","v":{"$error":"#N/A"}},{"$f":"LEFT(Template!G189,10)","v":""},{"$f":"VLOOKUP(M177,'Structure mapping'!AH:AL,5,0)","v":{"$error":"#N/A"}},{"$f":"LEFT(Template!H189,6)","v":""},{"$f":"VLOOKUP(O177,'Structure mapping'!AM:AQ,5,0)","v":{"$error":"#N/A"}},null,null,null,null,{"$f":"IF(Template!O189=\"\",\"\",Template!O189)","v":""},"Aug-24 pending entries",{"$f":"TEXT(Template!$B$9,\"mm/dd/yyy\")","v":"08/01/2024"},null,null,null,null,{"$f":"IF(Template!M189>0,Template!M189,-Template!N189)","v":0},null,null,null,{"$f":"VLOOKUP(G177,'Account mapping'!A:D,4,0)","v":{"$error":"#N/A"}}]
[{"$f":"LEFT(Template!A190,4)","v":""},{"$f":"VLOOKUP(A178,'Structure mapping'!K:V,7,0)","v":{"$error":"#N/A"}},{"$f":"LEFT(Template!B190,5)","v":""},{"$f":"VLOOKUP(C178,'Structure mapping'!F:J,5,0)","v":{"$error":"#N/A"}},{"$f":"LEFT(Template!C190,7)","v":""},{"$f":"VLOOKUP(E178,'Structure mapping'!A:E,5,0)","v":{"$error":"#N/A"}},{"$f":"LEFT(Template!D190,6)","v":""},{"$f":"VLOOKUP(G178,'Account mapping'!A:E,5,0)","v":{"$error":"#N/A"}},{"$f":"LEFT(Template!E190,2)","v":""},{"$f":"VLOOKUP(I178,'Structure mapping'!X:AB,5,0)","v":{"$error":"#N/A"}},{"$f":"LEFT(Template!F190,3)","v":""},{"$f":"VLOOKUP(K178,'Structure mapping'!AC:AG,5,0)","v":{"$error":"#N/A"}},{"$f":"LEFT(Template!G190,10)","v":""},{"$f":"VLOOKUP(M178,'Structure mapping'!AH:AL,5,0)","v":{"$error":"#N/A"}},{"$f":"LEFT(Template!H190,6)","v":""},{"$f":"VLOOKUP(O178,'Structure mapping'!AM:AQ,5,0)","v":{"$error":"#N/A"}},null,null,null,null,{"$f":"IF(Template!O190=\"\",\"\",Template!O190)","v":""},"Aug-24 pending entries",{"$f":"TEXT(Template!$B$9,\"mm/dd/yyy\")","v":"08/01/2024"},null,null,null,null,{"$f":"IF(Template!M190>0,Template!M190,-Template!N190)","v":0},null,null,null,{"$f":"VLOOKUP(G178,'Account mapping'!A:D,4,0)","v":{"$error":"#N/A"}}]
[{"$f":"LEFT(Template!A191,4)","v":""},{"$f":"VLOOKUP(A179,'Structure mapping'!K:V,7,0)","v":{"$error":"#N/A"}},{"$f":"LEFT(Template!B191,5)","v":""},{"$f":"VLOOKUP(C179,'Structure mapping'!F:J,5,0)","v":{"$error":"#N/A"}},{"$f":"LEFT(Template!C191,7)","v":""},{"$f":"VLOOKUP(E179,'Structure mapping'!A:E,5,0)","v":{"$error":"#N/A"}},{"$f":"LEFT(Template!D191,6)","v":""},{"$f":"VLOOKUP(G179,'Account mapping'!A:E,5,0)","v":{"$error":"#N/A"}},{"$f":"LEFT(Template!E191,2)","v":""},{"$f":"VLOOKUP(I179,'Structure mapping'!X:AB,5,0)","v":{"$error":"#N/A"}},{"$f":"LEFT(Template!F191,3)","v":""},{"$f":"VLOOKUP(K179,'Structure mapping'!AC:AG,5,0)","v":{"$error":"#N/A"}},{"$f":"LEFT(Template!G191,10)","v":""},{"$f":"VLOOKUP(M179,'Structure mapping'!AH:AL,5,0)","v":{"$error":"#N/A"}},{"$f":"LEFT(Template!H191,6)","v":""},{"$f":"VLOOKUP(O179,'Structure mapping'!AM:AQ,5,0)","v":{"$error":"#N/A"}},null,null,null,null,{"$f":"IF(Template!O191=\"\",\"\",Template!O191)","v":""},"Aug-24 pending entries",{"$f":"TEXT(Template!$B$9,\"mm/dd/yyy\")","v":"08/01/2024"},null,null,null,null,{"$f":"IF(Template!M191>0,Template!M191,-Template!N191)","v":0},null,null,null,{"$f":"VLOOKUP(G179,'Account mapping'!A:D,4,0)","v":{"$error":"#N/A"}}]
[{"$f":"LEFT(Template!A192,4)","v":""},{"$f":"VLOOKUP(A180,'Structure mapping'!K:V,7,0)","v":{"$error":"#N/A"}},{"$f":"LEFT(Template!B192,5)","v":""},{"$f":"VLOOKUP(C180,'Structure mapping'!F:J,5,0)","v":{"$error":"#N/A"}},{"$f":"LEFT(Template!C192,7)","v":""},{"$f":"VLOOKUP(E180,'Structure mapping'!A:E,5,0)","v":{"$error":"#N/A"}},{"$f":"LEFT(Template!D192,6)","v":""},{"$f":"VLOOKUP(G180,'Account mapping'!A:E,5,0)","v":{"$error":"#N/A"}},{"$f":"LEFT(Template!E192,2)","v":""},{"$f":"VLOOKUP(I180,'Structure mapping'!X:AB,5,0)","v":{"$error":"#N/A"}},{"$f":"LEFT(Template!F192,3)","v":""},{"$f":"VLOOKUP(K180,'Structure mapping'!AC:AG,5,0)","v":{"$error":"#N/A"}},{"$f":"LEFT(Template!G192,10)","v":""},{"$f":"VLOOKUP(M180,'Structure mapping'!AH:AL,5,0)","v":{"$error":"#N/A"}},{"$f":"LEFT(Template!H192,6)","v":""},{"$f":"VLOOKUP(O180,'Structure mapping'!AM:AQ,5,0)","v":{"$error":"#N/A"}},null,null,null,null,{"$f":"IF(Template!O192=\"\",\"\",Template!O192)","v":""},"Aug-24 pending entries",{"$f":"TEXT(Template!$B$9,\"mm/dd/yyy\")","v":"08/01/2024"},null,null,null,null,{"$f":"IF(Template!M192>0,Template!M192,-Template!N192)","v":0},null,null,null,{"$f":"VLOOKUP(G180,'Account mapping'!A:D,4,0)","v":{"$error":"#N/A"}}]
[{"$f":"LEFT(Template!A193,4)","v":""},{"$f":"VLOOKUP(A181,'Structure mapping'!K:V,7,0)","v":{"$error":"#N/A"}},{"$f":"LEFT(Template!B193,5)","v":""},{"$f":"VLOOKUP(C181,'Structure mapping'!F:J,5,0)","v":{"$error":"#N/A"}},{"$f":"LEFT(Template!C193,7)","v":""},{"$f":"VLOOKUP(E181,'Structure mapping'!A:E,5,0)","v":{"$error":"#N/A"}},{"$f":"LEFT(Template!D193,6)","v":""},{"$f":"VLOOKUP(G181,'Account mapping'!A:E,5,0)","v":{"$error":"#N/A"}},{"$f":"LEFT(Template!E193,2)","v":""},{"$f":"VLOOKUP(I181,'Structure mapping'!X:AB,5,0)","v":{"$error":"#N/A"}},{"$f":"LEFT(Template!F193,3)","v":""},{"$f":"VLOOKUP(K181,'Structure mapping'!AC:AG,5,0)","v":{"$error":"#N/A"}},{"$f":"LEFT(Template!G193,10)","v":""},{"$f":"VLOOKUP(M181,'Structure mapping'!AH:AL,5,0)","v":{"$error":"#N/A"}},{"$f":"LEFT(Template!H193,6)","v":""},{"$f":"VLOOKUP(O181,'Structure mapping'!AM:AQ,5,0)","v":{"$error":"#N/A"}},null,null,null,null,{"$f":"IF(Template!O193=\"\",\"\",Template!O193)","v":""},"Aug-24 pending entries",{"$f":"TEXT(Template!$B$9,\"mm/dd/yyy\")","v":"08/01/2024"},null,null,null,null,{"$f":"IF(Template!M193>0,Template!M193,-Template!N193)","v":0},null,null,null,{"$f":"VLOOKUP(G181,'Account mapping'!A:D,4,0)","v":{"$error":"#N/A"}}]
[{"$f":"LEFT(Template!A194,4)","v":""},{"$f":"VLOOKUP(A182,'Structure mapping'!K:V,7,0)","v":{"$error":"#N/A"}},{"$f":"LEFT(Template!B194,5)","v":""},{"$f":"VLOOKUP(C182,'Structure mapping'!F:J,5,0)","v":{"$error":"#N/A"}},{"$f":"LEFT(Template!C194,7)","v":""},{"$f":"VLOOKUP(E182,'Structure mapping'!A:E,5,0)","v":{"$error":"#N/A"}},{"$f":"LEFT(Template!D194,6)","v":""},{"$f":"VLOOKUP(G182,'Account mapping'!A:E,5,0)","v":{"$error":"#N/A"}},{"$f":"LEFT(Template!E194,2)","v":""},{"$f":"VLOOKUP(I182,'Structure mapping'!X:AB,5,0)","v":{"$error":"#N/A"}},{"$f":"LEFT(Template!F194,3)","v":""},{"$f":"VLOOKUP(K182,'Structure mapping'!AC:AG,5,0)","v":{"$error":"#N/A"}},{"$f":"LEFT(Template!G194,10)","v":""},{"$f":"VLOOKUP(M182,'Structure mapping'!AH:AL,5,0)","v":{"$error":"#N/A"}},{"$f":"LEFT(Template!H194,6)","v":""},{"$f":"VLOOKUP(O182,'Structure mapping'!AM:AQ,5,0)","v":{"$error":"#N/A"}},null,null,null,null,{"$f":"IF(Template!O194=\"\",\"\",Template!O194)","v":""},"Aug-24 pending entries",{"$f":"TEXT(Template!$B$9,\"mm/dd/yyy\")","v":"08/01/2024"},null,null,null,null,{"$f":"IF(Template!M194>0,Template!M194,-Template!N194)","v":0},null,null,null,{"$f":"VLOOKUP(G182,'Account mapping'!A:D,4,0)","v":{"$error":"#N/A"}}]
[{"$f":"LEFT(Template!A195,4)","v":""},{"$f":"VLOOKUP(A183,'Structure mapping'!K:V,7,0)","v":{"$error":"#N/A"}},{"$f":"LEFT(Template!B195,5)","v":""},{"$f":"VLOOKUP(C183,'Structure mapping'!F:J,5,0)","v":{"$error":"#N/A"}},{"$f":"LEFT(Template!C195,7)","v":""},{"$f":"VLOOKUP(E183,'Structure mapping'!A:E,5,0)","v":{"$error":"#N/A"}},{"$f":"LEFT(Template!D195,6)","v":""},{"$f":"VLOOKUP(G183,'Account mapping'!A:E,5,0)","v":{"$error":"#N/A"}},{"$f":"LEFT(Template!E195,2)","v":""},{"$f":"VLOOKUP(I183,'Structure mapping'!X:AB,5,0)","v":{"$error":"#N/A"}},{"$f":"LEFT(Template!F195,3)","v":""},{"$f":"VLOOKUP(K183,'Structure mapping'!AC:AG,5,0)","v":{"$error":"#N/A"}},{"$f":"LEFT(Template!G195,10)","v":""},{"$f":"VLOOKUP(M183,'Structure mapping'!AH:AL,5,0)","v":{"$error":"#N/A"}},{"$f":"LEFT(Template!H195,6)","v":""},{"$f":"VLOOKUP(O183,'Structure mapping'!AM:AQ,5,0)","v":{"$error":"#N/A"}},null,null,null,null,{"$f":"IF(Template!O195=\"\",\"\",Template!O195)","v":""},"Aug-24 pending entries",{"$f":"TEXT(Template!$B$9,\"mm/dd/yyy\")","v":"08/01/2024"},null,null,null,null,{"$f":"IF(Template!M195>0,Template!M195,-Template!N195)","v":0},null,null,null,{"$f":"VLOOKUP(G183,'Account mapping'!A:D,4,0)","v":{"$error":"#N/A"}}]
[{"$f":"LEFT(Template!A196,4)","v":""},{"$f":"VLOOKUP(A184,'Structure mapping'!K:V,7,0)","v":{"$error":"#N/A"}},{"$f":"LEFT(Template!B196,5)","v":""},{"$f":"VLOOKUP(C184,'Structure mapping'!F:J,5,0)","v":{"$error":"#N/A"}},{"$f":"LEFT(Template!C196,7)","v":""},{"$f":"VLOOKUP(E184,'Structure mapping'!A:E,5,0)","v":{"$error":"#N/A"}},{"$f":"LEFT(Template!D196,6)","v":""},{"$f":"VLOOKUP(G184,'Account mapping'!A:E,5,0)","v":{"$error":"#N/A"}},{"$f":"LEFT(Template!E196,2)","v":""},{"$f":"VLOOKUP(I184,'Structure mapping'!X:AB,5,0)","v":{"$error":"#N/A"}},{"$f":"LEFT(Template!F196,3)","v":""},{"$f":"VLOOKUP(K184,'Structure mapping'!AC:AG,5,0)","v":{"$error":"#N/A"}},{"$f":"LEFT(Template!G196,10)","v":""},{"$f":"VLOOKUP(M184,'Structure mapping'!AH:AL,5,0)","v":{"$error":"#N/A"}},{"$f":"LEFT(Template!H196,6)","v":""},{"$f":"VLOOKUP(O184,'Structure mapping'!AM:AQ,5,0)","v":{"$error":"#N/A"}},null,null,null,null,{"$f":"IF(Template!O196=\"\",\"\",Template!O196)","v":""},"Aug-24 pending entries",{"$f":"TEXT(Template!$B$9,\"mm/dd/yyy\")","v":"08/01/2024"},null,null,null,null,{"$f":"IF(Template!M196>0,Template!M196,-Template!N196)","v":0},null,null,null,{"$f":"VLOOKUP(G184,'Account mapping'!A:D,4,0)","v":{"$error":"#N/A"}}]
[{"$f":"LEFT(Template!A197,4)","v":""},{"$f":"VLOOKUP(A185,'Structure mapping'!K:V,7,0)","v":{"$error":"#N/A"}},{"$f":"LEFT(Template!B197,5)","v":""},{"$f":"VLOOKUP(C185,'Structure mapping'!F:J,5,0)","v":{"$error":"#N/A"}},{"$f":"LEFT(Template!C197,7)","v":""},{"$f":"VLOOKUP(E185,'Structure mapping'!A:E,5,0)","v":{"$error":"#N/A"}},{"$f":"LEFT(Template!D197,6)","v":""},{"$f":"VLOOKUP(G185,'Account mapping'!A:E,5,0)","v":{"$error":"#N/A"}},{"$f":"LEFT(Template!E197,2)","v":""},{"$f":"VLOOKUP(I185,'Structure mapping'!X:AB,5,0)","v":{"$error":"#N/A"}},{"$f":"LEFT(Template!F197,3)","v":""},{"$f":"VLOOKUP(K185,'Structure mapping'!AC:AG,5,0)","v":{"$error":"#N/A"}},{"$f":"LEFT(Template!G197,10)","v":""},{"$f":"VLOOKUP(M185,'Structure mapping'!AH:AL,5,0)","v":{"$error":"#N/A"}},{"$f":"LEFT(Template!H197,6)","v":""},{"$f":"VLOOKUP(O185,'Structure mapping'!AM:AQ,5,0)","v":{"$error":"#N/A"}},null,null,null,null,{"$f":"IF(Template!O197=\"\",\"\",Template!O197)","v":""},"Aug-24 pending entries",{"$f":"TEXT(Template!$B$9,\"mm/dd/yyy\")","v":"08/01/2024"},null,null,null,null,{"$f":"IF(Template!M197>0,Template!M197,-Template!N197)","v":0},null,null,null,{"$f":"VLOOKUP(G185,'Account mapping'!A:D,4,0)","v":{"$error":"#N/A"}}]
[{"$f":"LEFT(Template!A198,4)","v":""},{"$f":"VLOOKUP(A186,'Structure mapping'!K:V,7,0)","v":{"$error":"#N/A"}},{"$f":"LEFT(Template!B198,5)","v":""},{"$f":"VLOOKUP(C186,'Structure mapping'!F:J,5,0)","v":{"$error":"#N/A"}},{"$f":"LEFT(Template!C198,7)","v":""},{"$f":"VLOOKUP(E186,'Structure mapping'!A:E,5,0)","v":{"$error":"#N/A"}},{"$f":"LEFT(Template!D198,6)","v":""},{"$f":"VLOOKUP(G186,'Account mapping'!A:E,5,0)","v":{"$error":"#N/A"}},{"$f":"LEFT(Template!E198,2)","v":""},{"$f":"VLOOKUP(I186,'Structure mapping'!X:AB,5,0)","v":{"$error":"#N/A"}},{"$f":"LEFT(Template!F198,3)","v":""},{"$f":"VLOOKUP(K186,'Structure mapping'!AC:AG,5,0)","v":{"$error":"#N/A"}},{"$f":"LEFT(Template!G198,10)","v":""},{"$f":"VLOOKUP(M186,'Structure mapping'!AH:AL,5,0)","v":{"$error":"#N/A"}},{"$f":"LEFT(Template!H198,6)","v":""},{"$f":"VLOOKUP(O186,'Structure mapping'!AM:AQ,5,0)","v":{"$error":"#N/A"}},null,null,null,null,{"$f":"IF(Template!O198=\"\",\"\",Template!O198)","v":""},"Aug-24 pending entries",{"$f":"TEXT(Template!$B$9,\"mm/dd/yyy\")","v":"08/01/2024"},null,null,null,null,{"$f":"IF(Template!M198>0,Template!M198,-Template!N198)","v":0},null,null,null,{"$f":"VLOOKUP(G186,'Account mapping'!A:D,4,0)","v":{"$error":"#N/A"}}]
[{"$f":"LEFT(Template!A199,4)","v":""},{"$f":"VLOOKUP(A187,'Structure mapping'!K:V,7,0)","v":{"$error":"#N/A"}},{"$f":"LEFT(Template!B199,5)","v":""},{"$f":"VLOOKUP(C187,'Structure mapping'!F:J,5,0)","v":{"$error":"#N/A"}},{"$f":"LEFT(Template!C199,7)","v":""},{"$f":"VLOOKUP(E187,'Structure mapping'!A:E,5,0)","v":{"$error":"#N/A"}},{"$f":"LEFT(Template!D199,6)","v":""},{"$f":"VLOOKUP(G187,'Account mapping'!A:E,5,0)","v":{"$error":"#N/A"}},{"$f":"LEFT(Template!E199,2)","v":""},{"$f":"VLOOKUP(I187,'Structure mapping'!X:AB,5,0)","v":{"$error":"#N/A"}},{"$f":"LEFT(Template!F199,3)","v":""},{"$f":"VLOOKUP(K187,'Structure mapping'!AC:AG,5,0)","v":{"$error":"#N/A"}},{"$f":"LEFT(Template!G199,10)","v":""},{"$f":"VLOOKUP(M187,'Structure mapping'!AH:AL,5,0)","v":{"$error":"#N/A"}},{"$f":"LEFT(Template!H199,6)","v":""},{"$f":"VLOOKUP(O187,'Structure mapping'!AM:AQ,5,0)","v":{"$error":"#N/A"}},null,null,null,null,{"$f":"IF(Template!O199=\"\",\"\",Template!O199)","v":""},"Aug-24 pending entries",{"$f":"TEXT(Template!$B$9,\"mm/dd/yyy\")","v":"08/01/2024"},null,null,null,null,{"$f":"IF(Template!M199>0,Template!M199,-Template!N199)","v":0},null,null,null,{"$f":"VLOOKUP(G187,'Account mapping'!A:D,4,0)","v":{"$error":"#N/A"}}]
[{"$f":"LEFT(Template!A200,4)","v":""},{"$f":"VLOOKUP(A188,'Structure mapping'!K:V,7,0)","v":{"$error":"#N/A"}},{"$f":"LEFT(Template!B200,5)","v":""},{"$f":"VLOOKUP(C188,'Structure mapping'!F:J,5,0)","v":{"$error":"#N/A"}},{"$f":"LEFT(Template!C200,7)","v":""},{"$f":"VLOOKUP(E188,'Structure mapping'!A:E,5,0)","v":{"$error":"#N/A"}},{"$f":"LEFT(Template!D200,6)","v":""},{"$f":"VLOOKUP(G188,'Account mapping'!A:E,5,0)","v":{"$error":"#N/A"}},{"$f":"LEFT(Template!E200,2)","v":""},{"$f":"VLOOKUP(I188,'Structure mapping'!X:AB,5,0)","v":{"$error":"#N/A"}},{"$f":"LEFT(Template!F200,3)","v":""},{"$f":"VLOOKUP(K188,'Structure mapping'!AC:AG,5,0)","v":{"$error":"#N/A"}},{"$f":"LEFT(Template!G200,10)","v":""},{"$f":"VLOOKUP(M188,'Structure mapping'!AH:AL,5,0)","v":{"$error":"#N/A"}},{"$f":"LEFT(Template!H200,6)","v":""},{"$f":"VLOOKUP(O188,'Structure mapping'!AM:AQ,5,0)","v":{"$error":"#N/A"}},null,null,null,null,{"$f":"IF(Template!O200=\"\",\"\",Template!O200)","v":""},"Aug-24 pending entries",{"$f":"TEXT(Template!$B$9,\"mm/dd/yyy\")","v":"08/01/2024"},null,null,null,null,{"$f":"IF(Template!M200>0,Template!M200,-Template!N200)","v":0},null,null,null,{"$f":"VLOOKUP(G188,'Account mapping'!A:D,4,0)","v":{"$error":"#N/A"}}]
[{"$f":"LEFT(Template!A201,4)","v":""},{"$f":"VLOOKUP(A189,'Structure mapping'!K:V,7,0)","v":{"$error":"#N/A"}},{"$f":"LEFT(Template!B201,5)","v":""},{"$f":"VLOOKUP(C189,'Structure mapping'!F:J,5,0)","v":{"$error":"#N/A"}},{"$f":"LEFT(Template!C201,7)","v":""},{"$f":"VLOOKUP(E189,'Structure mapping'!A:E,5,0)","v":{"$error":"#N/A"}},{"$f":"LEFT(Template!D201,6)","v":""},{"$f":"VLOOKUP(G189,'Account mapping'!A:E,5,0)","v":{"$error":"#N/A"}},{"$f":"LEFT(Template!E201,2)","v":""},{"$f":"VLOOKUP(I189,'Structure mapping'!X:AB,5,0)","v":{"$error":"#N/A"}},{"$f":"LEFT(Template!F201,3)","v":""},{"$f":"VLOOKUP(K189,'Structure mapping'!AC:AG,5,0)","v":{"$error":"#N/A"}},{"$f":"LEFT(Template!G201,10)","v":""},{"$f":"VLOOKUP(M189,'Structure mapping'!AH:AL,5,0)","v":{"$error":"#N/A"}},{"$f":"LEFT(Template!H201,6)","v":""},{"$f":"VLOOKUP(O189,'Structure mapping'!AM:AQ,5,0)","v":{"$error":"#N/A"}},null,null,null,null,{"$f":"IF(Template!O201=\"\",\"\",Template!O201)","v":""},"Aug-24 pending entries",{"$f":"TEXT(Template!$B$9,\"mm/dd/yyy\")","v":"08/01/2024"},null,null,null,null,{"$f":"IF(Template!M201>0,Template!M201,-Template!N201)","v":0},null,null,null,{"$f":"VLOOKUP(G189,'Account mapping'!A:D,4,0)","v":{"$error":"#N/A"}}]
[{"$f":"LEFT(Template!A202,4)","v":""},{"$f":"VLOOKUP(A190,'Structure mapping'!K:V,7,0)","v":{"$error":"#N/A"}},{"$f":"LEFT(Template!B202,5)","v":""},{"$f":"VLOOKUP(C190,'Structure mapping'!F:J,5,0)","v":{"$error":"#N/A"}},{"$f":"LEFT(Template!C202,7)","v":""},{"$f":"VLOOKUP(E190,'Structure mapping'!A:E,5,0)","v":{"$error":"#N/A"}},{"$f":"LEFT(Template!D202,6)","v":""},{"$f":"VLOOKUP(G190,'Account mapping'!A:E,5,0)","v":{"$error":"#N/A"}},{"$f":"LEFT(Template!E202,2)","v":""},{"$f":"VLOOKUP(I190,'Structure mapping'!X:AB,5,0)","v":{"$error":"#N/A"}},{"$f":"LEFT(Template!F202,3)","v":""},{"$f":"VLOOKUP(K190,'Structure mapping'!AC:AG,5,0)","v":{"$error":"#N/A"}},{"$f":"LEFT(Template!G202,10)","v":""},{"$f":"VLOOKUP(M190,'Structure mapping'!AH:AL,5,0)","v":{"$error":"#N/A"}},{"$f":"LEFT(Template!H202,6)","v":""},{"$f":"VLOOKUP(O190,'Structure mapping'!AM:AQ,5,0)","v":{"$error":"#N/A"}},null,null,null,null,{"$f":"IF(Template!O202=\"\",\"\",Template!O202)","v":""},"Aug-24 pending entries",{"$f":"TEXT(Template!$B$9,\"mm/dd/yyy\")","v":"08/01/2024"},null,null,null,null,{"$f":"IF(Template!M202>0,Template!M202,-Template!N202)","v":0},null,null,null,{"$f":"VLOOKUP(G190,'Account mapping'!A:D,4,0)","v":{"$error":"#N/A"}}]
[{"$f":"LEFT(Template!A203,4)","v":""},{"$f":"VLOOKUP(A191,'Structure mapping'!K:V,7,0)","v":{"$error":"#N/A"}},{"$f":"LEFT(Template!B203,5)","v":""},{"$f":"VLOOKUP(C191,'Structure mapping'!F:J,5,0)","v":{"$error":"#N/A"}},{"$f":"LEFT(Template!C203,7)","v":""},{"$f":"VLOOKUP(E191,'Structure mapping'!A:E,5,0)","v":{"$error":"#N/A"}},{"$f":"LEFT(Template!D203,6)","v":""},{"$f":"VLOOKUP(G191,'Account mapping'!A:E,5,0)","v":{"$error":"#N/A"}},{"$f":"LEFT(Template!E203,2)","v":""},{"$f":"VLOOKUP(I191,'Structure mapping'!X:AB,5,0)","v":{"$error":"#N/A"}},{"$f":"LEFT(Template!F203,3)","v":""},{"$f":"VLOOKUP(K191,'Structure mapping'!AC:AG,5,0)","v":{"$error":"#N/A"}},{"$f":"LEFT(Template!G203,10)","v":""},{"$f":"VLOOKUP(M191,'Structure mapping'!AH:AL,5,0)","v":{"$error":"#N/A"}},{"$f":"LEFT(Template!H203,6)","v":""},{"$f":"VLOOKUP(O191,'Structure mapping'!AM:AQ,5,0)","v":{"$error":"#N/A"}},null,null,null,null,{"$f":"IF(Template!O203=\"\",\"\",Template!O203)","v":""},"Aug-24 pending entries",{"$f":"TEXT(Template!$B$9,\"mm/dd/yyy\")","v":"08/01/2024"},null,null,null,null,{"$f":"IF(Template!M203>0,Template!M203,-Template!N203)","v":0},null,null,null,{"$f":"VLOOKUP(G191,'Account mapping'!A:D,4,0)","v":{"$error":"#N/A"}}]
[{"$f":"LEFT(Template!A204,4)","v":""},{"$f":"VLOOKUP(A192,'Structure mapping'!K:V,7,0)","v":{"$error":"#N/A"}},{"$f":"LEFT(Template!B204,5)","v":""},{"$f":"VLOOKUP(C192,'Structure mapping'!F:J,5,0)","v":{"$error":"#N/A"}},{"$f":"LEFT(Template!C204,7)","v":""},{"$f":"VLOOKUP(E192,'Structure mapping'!A:E,5,0)","v":{"$error":"#N/A"}},{"$f":"LEFT(Template!D204,6)","v":""},{"$f":"VLOOKUP(G192,'Account mapping'!A:E,5,0)","v":{"$error":"#N/A"}},{"$f":"LEFT(Template!E204,2)","v":""},{"$f":"VLOOKUP(I192,'Structure mapping'!X:AB,5,0)","v":{"$error":"#N/A"}},{"$f":"LEFT(Template!F204,3)","v":""},{"$f":"VLOOKUP(K192,'Structure mapping'!AC:AG,5,0)","v":{"$error":"#N/A"}},{"$f":"LEFT(Template!G204,10)","v":""},{"$f":"VLOOKUP(M192,'Structure mapping'!AH:AL,5,0)","v":{"$error":"#N/A"}},{"$f":"LEFT(Template!H204,6)","v":""},{"$f":"VLOOKUP(O192,'Structure mapping'!AM:AQ,5,0)","v":{"$error":"#N/A"}},null,null,null,null,{"$f":"IF(Template!O204=\"\",\"\",Template!O204)","v":""},"Aug-24 pending entries",{"$f":"TEXT(Template!$B$9,\"mm/dd/yyy\")","v":"08/01/2024"},null,null,null,null,{"$f":"IF(Template!M204>0,Template!M204,-Template!N204)","v":0},null,null,null,{"$f":"VLOOKUP(G192,'Account mapping'!A:D,4,0)","v":{"$error":"#N/A"}}]
[{"$f":"LEFT(Template!A205,4)","v":""},{"$f":"VLOOKUP(A193,'Structure mapping'!K:V,7,0)","v":{"$error":"#N/A"}},{"$f":"LEFT(Template!B205,5)","v":""},{"$f":"VLOOKUP(C193,'Structure mapping'!F:J,5,0)","v":{"$error":"#N/A"}},{"$f":"LEFT(Template!C205,7)","v":""},{"$f":"VLOOKUP(E193,'Structure mapping'!A:E,5,0)","v":{"$error":"#N/A"}},{"$f":"LEFT(Template!D205,6)","v":""},{"$f":"VLOOKUP(G193,'Account mapping'!A:E,5,0)","v":{"$error":"#N/A"}},{"$f":"LEFT(Template!E205,2)","v":""},{"$f":"VLOOKUP(I193,'Structure mapping'!X:AB,5,0)","v":{"$error":"#N/A"}},{"$f":"LEFT(Template!F205,3)","v":""},{"$f":"VLOOKUP(K193,'Structure mapping'!AC:AG,5,0)","v":{"$error":"#N/A"}},{"$f":"LEFT(Template!G205,10)","v":""},{"$f":"VLOOKUP(M193,'Structure mapping'!AH:AL,5,0)","v":{"$error":"#N/A"}},{"$f":"LEFT(Template!H205,6)","v":""},{"$f":"VLOOKUP(O193,'Structure mapping'!AM:AQ,5,0)","v":{"$error":"#N/A"}},null,null,null,null,{"$f":"IF(Template!O205=\"\",\"\",Template!O205)","v":""},"Aug-24 pending entries",{"$f":"TEXT(Template!$B$9,\"mm/dd/yyy\")","v":"08/01/2024"},null,null,null,null,{"$f":"IF(Template!M205>0,Template!M205,-Template!N205)","v":0},null,null,null,{"$f":"VLOOKUP(G193,'Account mapping'!A:D,4,0)","v":{"$error":"#N/A"}}]
[{"$f":"LEFT(Template!A206,4)","v":""},{"$f":"VLOOKUP(A194,'Structure mapping'!K:V,7,0)","v":{"$error":"#N/A"}},{"$f":"LEFT(Template!B206,5)","v":""},{"$f":"VLOOKUP(C194,'Structure mapping'!F:J,5,0)","v":{"$error":"#N/A"}},{"$f":"LEFT(Template!C206,7)","v":""},{"$f":"VLOOKUP(E194,'Structure mapping'!A:E,5,0)","v":{"$error":"#N/A"}},{"$f":"LEFT(Template!D206,6)","v":""},{"$f":"VLOOKUP(G194,'Account mapping'!A:E,5,0)","v":{"$error":"#N/A"}},{"$f":"LEFT(Template!E206,2)","v":""},{"$f":"VLOOKUP(I194,'Structure mapping'!X:AB,5,0)","v":{"$error":"#N/A"}},{"$f":"LEFT(Template!F206,3)","v":""},{"$f":"VLOOKUP(K194,'Structure mapping'!AC:AG,5,0)","v":{"$error":"#N/A"}},{"$f":"LEFT(Template!G206,10)","v":""},{"$f":"VLOOKUP(M194,'Structure mapping'!AH:AL,5,0)","v":{"$error":"#N/A"}},{"$f":"LEFT(Template!H206,6)","v":""},{"$f":"VLOOKUP(O194,'Structure mapping'!AM:AQ,5,0)","v":{"$error":"#N/A"}},null,null,null,null,{"$f":"IF(Template!O206=\"\",\"\",Template!O206)","v":""},"Aug-24 pending entries",{"$f":"TEXT(Template!$B$9,\"mm/dd/yyy\")","v":"08/01/2024"},null,null,null,null,{"$f":"IF(Template!M206>0,Template!M206,-Template!N206)","v":0},null,null,null,{"$f":"VLOOKUP(G194,'Account mapping'!A:D,4,0)","v":{"$error":"#N/A"}}]
[{"$f":"LEFT(Template!A207,4)","v":""},{"$f":"VLOOKUP(A195,'Structure mapping'!K:V,7,0)","v":{"$error":"#N/A"}},{"$f":"LEFT(Template!B207,5)","v":""},{"$f":"VLOOKUP(C195,'Structure mapping'!F:J,5,0)","v":{"$error":"#N/A"}},{"$f":"LEFT(Template!C207,7)","v":""},{"$f":"VLOOKUP(E195,'Structure mapping'!A:E,5,0)","v":{"$error":"#N/A"}},{"$f":"LEFT(Template!D207,6)","v":""},{"$f":"VLOOKUP(G195,'Account mapping'!A:E,5,0)","v":{"$error":"#N/A"}},{"$f":"LEFT(Template!E207,2)","v":""},{"$f":"VLOOKUP(I195,'Structure mapping'!X:AB,5,0)","v":{"$error":"#N/A"}},{"$f":"LEFT(Template!F207,3)","v":""},{"$f":"VLOOKUP(K195,'Structure mapping'!AC:AG,5,0)","v":{"$error":"#N/A"}},{"$f":"LEFT(Template!G207,10)","v":""},{"$f":"VLOOKUP(M195,'Structure mapping'!AH:AL,5,0)","v":{"$error":"#N/A"}},{"$f":"LEFT(Template!H207,6)","v":""},{"$f":"VLOOKUP(O195,'Structure mapping'!AM:AQ,5,0)","v":{"$error":"#N/A"}},null,null,null,null,{"$f":"IF(Template!O207=\"\",\"\",Template!O207)","v":""},{"$f":"TEXT(W195,\"mmm-yy\")&\" pending entries\"","v":"Aug-24 pending entries"},{"$f":"TEXT(Template!$B$9,\"mm/dd/yyy\")","v":"08/01/2024"},null,null,null,null,{"$f":"IF(Template!M207>0,Template!M207,-Template!N207)","v":0},null,null,null,{"$f":"VLOOKUP(G195,'Account mapping'!A:D,4,0)","v":{"$error":"#N/A"}}]
[{"$f":"LEFT(Template!A208,4)","v":""},{"$f":"VLOOKUP(A196,'Structure mapping'!K:V,7,0)","v":{"$error":"#N/A"}},{"$f":"LEFT(Template!B208,5)","v":""},{"$f":"VLOOKUP(C196,'Structure mapping'!F:J,5,0)","v":{"$error":"#N/A"}},{"$f":"LEFT(Template!C208,7)","v":""},{"$f":"VLOOKUP(E196,'Structure mapping'!A:E,5,0)","v":{"$error":"#N/A"}},{"$f":"LEFT(Template!D208,6)","v":""},{"$f":"VLOOKUP(G196,'Account mapping'!A:E,5,0)","v":{"$error":"#N/A"}},{"$f":"LEFT(Template!E208,2)","v":""},{"$f":"VLOOKUP(I196,'Structure mapping'!X:AB,5,0)","v":{"$error":"#N/A"}},{"$f":"LEFT(Template!F208,3)","v":""},{"$f":"VLOOKUP(K196,'Structure mapping'!AC:AG,5,0)","v":{"$error":"#N/A"}},{"$f":"LEFT(Template!G208,10)","v":""},{"$f":"VLOOKUP(M196,'Structure mapping'!AH:AL,5,0)","v":{"$error":"#N/A"}},{"$f":"LEFT(Template!H208,6)","v":""},{"$f":"VLOOKUP(O196,'Structure mapping'!AM:AQ,5,0)","v":{"$error":"#N/A"}},null,null,null,null,{"$f":"IF(Template!O208=\"\",\"\",Template!O208)","v":""},"Aug-24 pending entries",{"$f":"TEXT(Template!$B$9,\"mm/dd/yyy\")","v":"08/01/2024"},null,null,null,null,{"$f":"IF(Template!M208>0,Template!M208,-Template!N208)","v":0},null,null,null,{"$f":"VLOOKUP(G196,'Account mapping'!A:D,4,0)","v":{"$error":"#N/A"}}]
[{"$f":"LEFT(Template!A209,4)","v":""},{"$f":"VLOOKUP(A197,'Structure mapping'!K:V,7,0)","v":{"$error":"#N/A"}},{"$f":"LEFT(Template!B209,5)","v":""},{"$f":"VLOOKUP(C197,'Structure mapping'!F:J,5,0)","v":{"$error":"#N/A"}},{"$f":"LEFT(Template!C209,7)","v":""},{"$f":"VLOOKUP(E197,'Structure mapping'!A:E,5,0)","v":{"$error":"#N/A"}},{"$f":"LEFT(Template!D209,6)","v":""},{"$f":"VLOOKUP(G197,'Account mapping'!A:E,5,0)","v":{"$error":"#N/A"}},{"$f":"LEFT(Template!E209,2)","v":""},{"$f":"VLOOKUP(I197,'Structure mapping'!X:AB,5,0)","v":{"$error":"#N/A"}},{"$f":"LEFT(Template!F209,3)","v":""},{"$f":"VLOOKUP(K197,'Structure mapping'!AC:AG,5,0)","v":{"$error":"#N/A"}},{"$f":"LEFT(Template!G209,10)","v":""},{"$f":"VLOOKUP(M197,'Structure mapping'!AH:AL,5,0)","v":{"$error":"#N/A"}},{"$f":"LEFT(Template!H209,6)","v":""},{"$f":"VLOOKUP(O197,'Structure mapping'!AM:AQ,5,0)","v":{"$error":"#N/A"}},null,null,null,null,{"$f":"IF(Template!O209=\"\",\"\",Template!O209)","v":""},"Aug-24 pending entries",{"$f":"TEXT(Template!$B$9,\"mm/dd/yyy\")","v":"08/01/2024"},null,null,null,null,{"$f":"IF(Template!M209>0,Template!M209,-Template!N209)","v":0},null,null,null,{"$f":"VLOOKUP(G197,'Account mapping'!A:D,4,0)","v":{"$error":"#N/A"}}]
[{"$f":"LEFT(Template!A210,4)","v":""},{"$f":"VLOOKUP(A198,'Structure mapping'!K:V,7,0)","v":{"$error":"#N/A"}},{"$f":"LEFT(Template!B210,5)","v":""},{"$f":"VLOOKUP(C198,'Structure mapping'!F:J,5,0)","v":{"$error":"#N/A"}},{"$f":"LEFT(Template!C210,7)","v":""},{"$f":"VLOOKUP(E198,'Structure mapping'!A:E,5,0)","v":{"$error":"#N/A"}},{"$f":"LEFT(Template!D210,6)","v":""},{"$f":"VLOOKUP(G198,'Account mapping'!A:E,5,0)","v":{"$error":"#N/A"}},{"$f":"LEFT(Template!E210,2)","v":""},{"$f":"VLOOKUP(I198,'Structure mapping'!X:AB,5,0)","v":{"$error":"#N/A"}},{"$f":"LEFT(Template!F210,3)","v":""},{"$f":"VLOOKUP(K198,'Structure mapping'!AC:AG,5,0)","v":{"$error":"#N/A"}},{"$f":"LEFT(Template!G210,10)","v":""},{"$f":"VLOOKUP(M198,'Structure mapping'!AH:AL,5,0)","v":{"$error":"#N/A"}},{"$f":"LEFT(Template!H210,6)","v":""},{"$f":"VLOOKUP(O198,'Structure mapping'!AM:AQ,5,0)","v":{"$error":"#N/A"}},null,null,null,null,{"$f":"IF(Template!O210=\"\",\"\",Template!O210)","v":""},"Aug-24 pending entries",{"$f":"TEXT(Template!$B$9,\"mm/dd/yyy\")","v":"08/01/2024"},null,null,null,null,{"$f":"IF(Template!M210>0,Template!M210,-Template!N210)","v":0},null,null,null,{"$f":"VLOOKUP(G198,'Account mapping'!A:D,4,0)","v":{"$error":"#N/A"}}]
[{"$f":"LEFT(Template!A211,4)","v":""},{"$f":"VLOOKUP(A199,'Structure mapping'!K:V,7,0)","v":{"$error":"#N/A"}},{"$f":"LEFT(Template!B211,5)","v":""},{"$f":"VLOOKUP(C199,'Structure mapping'!F:J,5,0)","v":{"$error":"#N/A"}},{"$f":"LEFT(Template!C211,7)","v":""},{"$f":"VLOOKUP(E199,'Structure mapping'!A:E,5,0)","v":{"$error":"#N/A"}},{"$f":"LEFT(Template!D211,6)","v":""},{"$f":"VLOOKUP(G199,'Account mapping'!A:E,5,0)","v":{"$error":"#N/A"}},{"$f":"LEFT(Template!E211,2)","v":""},{"$f":"VLOOKUP(I199,'Structure mapping'!X:AB,5,0)","v":{"$error":"#N/A"}},{"$f":"LEFT(Template!F211,3)","v":""},{"$f":"VLOOKUP(K199,'Structure mapping'!AC:AG,5,0)","v":{"$error":"#N/A"}},{"$f":"LEFT(Template!G211,10)","v":""},{"$f":"VLOOKUP(M199,'Structure mapping'!AH:AL,5,0)","v":{"$error":"#N/A"}},{"$f":"LEFT(Template!H211,6)","v":""},{"$f":"VLOOKUP(O199,'Structure mapping'!AM:AQ,5,0)","v":{"$error":"#N/A"}},null,null,null,null,{"$f":"IF(Template!O211=\"\",\"\",Template!O211)","v":""},"Aug-24 pending entries",{"$f":"TEXT(Template!$B$9,\"mm/dd/yyy\")","v":"08/01/2024"},null,null,null,null,{"$f":"IF(Template!M211>0,Template!M211,-Template!N211)","v":0},null,null,null,{"$f":"VLOOKUP(G199,'Account mapping'!A:D,4,0)","v":{"$error":"#N/A"}}]
[{"$f":"LEFT(Template!A212,4)","v":""},{"$f":"VLOOKUP(A200,'Structure mapping'!K:V,7,0)","v":{"$error":"#N/A"}},{"$f":"LEFT(Template!B212,5)","v":""},{"$f":"VLOOKUP(C200,'Structure mapping'!F:J,5,0)","v":{"$error":"#N/A"}},{"$f":"LEFT(Template!C212,7)","v":""},{"$f":"VLOOKUP(E200,'Structure mapping'!A:E,5,0)","v":{"$error":"#N/A"}},{"$f":"LEFT(Template!D212,6)","v":""},{"$f":"VLOOKUP(G200,'Account mapping'!A:E,5,0)","v":{"$error":"#N/A"}},{"$f":"LEFT(Template!E212,2)","v":""},{"$f":"VLOOKUP(I200,'Structure mapping'!X:AB,5,0)","v":{"$error":"#N/A"}},{"$f":"LEFT(Template!F212,3)","v":""},{"$f":"VLOOKUP(K200,'Structure mapping'!AC:AG,5,0)","v":{"$error":"#N/A"}},{"$f":"LEFT(Template!G212,10)","v":""},{"$f":"VLOOKUP(M200,'Structure mapping'!AH:AL,5,0)","v":{"$error":"#N/A"}},{"$f":"LEFT(Template!H212,6)","v":""},{"$f":"VLOOKUP(O200,'Structure mapping'!AM:AQ,5,0)","v":{"$error":"#N/A"}},null,null,null,null,{"$f":"IF(Template!O212=\"\",\"\",Template!O212)","v":""},"Aug-24 pending entries",{"$f":"TEXT(Template!$B$9,\"mm/dd/yyy\")","v":"08/01/2024"},null,null,null,null,{"$f":"IF(Template!M212>0,Template!M212,-Template!N212)","v":0},null,null,null,{"$f":"VLOOKUP(G200,'Account mapping'!A:D,4,0)","v":{"$error":"#N/A"}}]
[{"$f":"LEFT(Template!A213,4)","v":""},{"$f":"VLOOKUP(A201,'Structure mapping'!K:V,7,0)","v":{"$error":"#N/A"}},{"$f":"LEFT(Template!B213,5)","v":""},{"$f":"VLOOKUP(C201,'Structure mapping'!F:J,5,0)","v":{"$error":"#N/A"}},{"$f":"LEFT(Template!C213,7)","v":""},{"$f":"VLOOKUP(E201,'Structure mapping'!A:E,5,0)","v":{"$error":"#N/A"}},{"$f":"LEFT(Template!D213,6)","v":""},{"$f":"VLOOKUP(G201,'Account mapping'!A:E,5,0)","v":{"$error":"#N/A"}},{"$f":"LEFT(Template!E213,2)","v":""},{"$f":"VLOOKUP(I201,'Structure mapping'!X:AB,5,0)","v":{"$error":"#N/A"}},{"$f":"LEFT(Template!F213,3)","v":""},{"$f":"VLOOKUP(K201,'Structure mapping'!AC:AG,5,0)","v":{"$error":"#N/A"}},{"$f":"LEFT(Template!G213,10)","v":""},{"$f":"VLOOKUP(M201,'Structure mapping'!AH:AL,5,0)","v":{"$error":"#N/A"}},{"$f":"LEFT(Template!H213,6)","v":""},{"$f":"VLOOKUP(O201,'Structure mapping'!AM:AQ,5,0)","v":{"$error":"#N/A"}},null,null,null,null,{"$f":"IF(Template!O213=\"\",\"\",Template!O213)","v":""},"Aug-24 pending entries",{"$f":"TEXT(Template!$B$9,\"mm/dd/yyy\")","v":"08/01/2024"},null,null,null,null,{"$f":"IF(Template!M213>0,Template!M213,-Template!N213)","v":0},null,null,null,{"$f":"VLOOKUP(G201,'Account mapping'!A:D,4,0)","v":{"$error":"#N/A"}}]
[{"$f":"LEFT(Template!A214,4)","v":""},{"$f":"VLOOKUP(A202,'Structure mapping'!K:V,7,0)","v":{"$error":"#N/A"}},{"$f":"LEFT(Template!B214,5)","v":""},{"$f":"VLOOKUP(C202,'Structure mapping'!F:J,5,0)","v":{"$error":"#N/A"}},{"$f":"LEFT(Template!C214,7)","v":""},{"$f":"VLOOKUP(E202,'Structure mapping'!A:E,5,0)","v":{"$error":"#N/A"}},{"$f":"LEFT(Template!D214,6)","v":""},{"$f":"VLOOKUP(G202,'Account mapping'!A:E,5,0)","v":{"$error":"#N/A"}},{"$f":"LEFT(Template!E214,2)","v":""},{"$f":"VLOOKUP(I202,'Structure mapping'!X:AB,5,0)","v":{"$error":"#N/A"}},{"$f":"LEFT(Template!F214,3)","v":""},{"$f":"VLOOKUP(K202,'Structure mapping'!AC:AG,5,0)","v":{"$error":"#N/A"}},{"$f":"LEFT(Template!G214,10)","v":""},{"$f":"VLOOKUP(M202,'Structure mapping'!AH:AL,5,0)","v":{"$error":"#N/A"}},{"$f":"LEFT(Template!H214,6)","v":""},{"$f":"VLOOKUP(O202,'Structure mapping'!AM:AQ,5,0)","v":{"$error":"#N/A"}},null,null,null,null,{"$f":"IF(Template!O214=\"\",\"\",Template!O214)","v":""},"Aug-24 pending entries",{"$f":"TEXT(Template!$B$9,\"mm/dd/yyy\")","v":"08/01/2024"},null,null,null,null,{"$f":"IF(Template!M214>0,Template!M214,-Template!N214)","v":0},null,null,null,{"$f":"VLOOKUP(G202,'Account mapping'!A:D,4,0)","v":{"$error":"#N/A"}}]
[{"$f":"LEFT(Template!A215,4)","v":""},{"$f":"VLOOKUP(A203,'Structure mapping'!K:V,7,0)","v":{"$error":"#N/A"}},{"$f":"LEFT(Template!B215,5)","v":""},{"$f":"VLOOKUP(C203,'Structure mapping'!F:J,5,0)","v":{"$error":"#N/A"}},{"$f":"LEFT(Template!C215,7)","v":""},{"$f":"VLOOKUP(E203,'Structure mapping'!A:E,5,0)","v":{"$error":"#N/A"}},{"$f":"LEFT(Template!D215,6)","v":""},{"$f":"VLOOKUP(G203,'Account mapping'!A:E,5,0)","v":{"$error":"#N/A"}},{"$f":"LEFT(Template!E215,2)","v":""},{"$f":"VLOOKUP(I203,'Structure mapping'!X:AB,5,0)","v":{"$error":"#N/A"}},{"$f":"LEFT(Template!F215,3)","v":""},{"$f":"VLOOKUP(K203,'Structure mapping'!AC:AG,5,0)","v":{"$error":"#N/A"}},{"$f":"LEFT(Template!G215,10)","v":""},{"$f":"VLOOKUP(M203,'Structure mapping'!AH:AL,5,0)","v":{"$error":"#N/A"}},{"$f":"LEFT(Template!H215,6)","v":""},{"$f":"VLOOKUP(O203,'Structure mapping'!AM:AQ,5,0)","v":{"$error":"#N/A"}},null,null,null,null,{"$f":"IF(Template!O215=\"\",\"\",Template!O215)","v":""},"Aug-24 pending entries",{"$f":"TEXT(Template!$B$9,\"mm/dd/yyy\")","v":"08/01/2024"},null,null,null,null,{"$f":"IF(Template!M215>0,Template!M215,-Template!N215)","v":0},null,null,null,{"$f":"VLOOKUP(G203,'Account mapping'!A:D,4,0)","v":{"$error":"#N/A"}}]
[{"$f":"LEFT(Template!A216,4)","v":""},{"$f":"VLOOKUP(A204,'Structure mapping'!K:V,7,0)","v":{"$error":"#N/A"}},{"$f":"LEFT(Template!B216,5)","v":""},{"$f":"VLOOKUP(C204,'Structure mapping'!F:J,5,0)","v":{"$error":"#N/A"}},{"$f":"LEFT(Template!C216,7)","v":""},{"$f":"VLOOKUP(E204,'Structure mapping'!A:E,5,0)","v":{"$error":"#N/A"}},{"$f":"LEFT(Template!D216,6)","v":""},{"$f":"VLOOKUP(G204,'Account mapping'!A:E,5,0)","v":{"$error":"#N/A"}},{"$f":"LEFT(Template!E216,2)","v":""},{"$f":"VLOOKUP(I204,'Structure mapping'!X:AB,5,0)","v":{"$error":"#N/A"}},{"$f":"LEFT(Template!F216,3)","v":""},{"$f":"VLOOKUP(K204,'Structure mapping'!AC:AG,5,0)","v":{"$error":"#N/A"}},{"$f":"LEFT(Template!G216,10)","v":""},{"$f":"VLOOKUP(M204,'Structure mapping'!AH:AL,5,0)","v":{"$error":"#N/A"}},{"$f":"LEFT(Template!H216,6)","v":""},{"$f":"VLOOKUP(O204,'Structure mapping'!AM:AQ,5,0)","v":{"$error":"#N/A"}},null,null,null,null,{"$f":"IF(Template!O216=\"\",\"\",Template!O216)","v":""},"Aug-24 pending entries",{"$f":"TEXT(Template!$B$9,\"mm/dd/yyy\")","v":"08/01/2024"},null,null,null,null,{"$f":"IF(Template!M216>0,Template!M216,-Template!N216)","v":0},null,null,null,{"$f":"VLOOKUP(G204,'Account mapping'!A:D,4,0)","v":{"$error":"#N/A"}}]
[{"$f":"LEFT(Template!A217,4)","v":""},{"$f":"VLOOKUP(A205,'Structure mapping'!K:V,7,0)","v":{"$error":"#N/A"}},{"$f":"LEFT(Template!B217,5)","v":""},{"$f":"VLOOKUP(C205,'Structure mapping'!F:J,5,0)","v":{"$error":"#N/A"}},{"$f":"LEFT(Template!C217,7)","v":""},{"$f":"VLOOKUP(E205,'Structure mapping'!A:E,5,0)","v":{"$error":"#N/A"}},{"$f":"LEFT(Template!D217,6)","v":""},{"$f":"VLOOKUP(G205,'Account mapping'!A:E,5,0)","v":{"$error":"#N/A"}},{"$f":"LEFT(Template!E217,2)","v":""},{"$f":"VLOOKUP(I205,'Structure mapping'!X:AB,5,0)","v":{"$error":"#N/A"}},{"$f":"LEFT(Template!F217,3)","v":""},{"$f":"VLOOKUP(K205,'Structure mapping'!AC:AG,5,0)","v":{"$error":"#N/A"}},{"$f":"LEFT(Template!G217,10)","v":""},{"$f":"VLOOKUP(M205,'Structure mapping'!AH:AL,5,0)","v":{"$error":"#N/A"}},{"$f":"LEFT(Template!H217,6)","v":""},{"$f":"VLOOKUP(O205,'Structure mapping'!AM:AQ,5,0)","v":{"$error":"#N/A"}},null,null,null,null,{"$f":"IF(Template!O217=\"\",\"\",Template!O217)","v":""},"Aug-24 pending entries",{"$f":"TEXT(Template!$B$9,\"mm/dd/yyy\")","v":"08/01/2024"},null,null,null,null,{"$f":"IF(Template!M217>0,Template!M217,-Template!N217)","v":0},null,null,null,{"$f":"VLOOKUP(G205,'Account mapping'!A:D,4,0)","v":{"$error":"#N/A"}}]
[{"$f":"LEFT(Template!A218,4)","v":""},{"$f":"VLOOKUP(A206,'Structure mapping'!K:V,7,0)","v":{"$error":"#N/A"}},{"$f":"LEFT(Template!B218,5)","v":""},{"$f":"VLOOKUP(C206,'Structure mapping'!F:J,5,0)","v":{"$error":"#N/A"}},{"$f":"LEFT(Template!C218,7)","v":""},{"$f":"VLOOKUP(E206,'Structure mapping'!A:E,5,0)","v":{"$error":"#N/A"}},{"$f":"LEFT(Template!D218,6)","v":""},{"$f":"VLOOKUP(G206,'Account mapping'!A:E,5,0)","v":{"$error":"#N/A"}},{"$f":"LEFT(Template!E218,2)","v":""},{"$f":"VLOOKUP(I206,'Structure mapping'!X:AB,5,0)","v":{"$error":"#N/A"}},{"$f":"LEFT(Template!F218,3)","v":""},{"$f":"VLOOKUP(K206,'Structure mapping'!AC:AG,5,0)","v":{"$error":"#N/A"}},{"$f":"LEFT(Template!G218,10)","v":""},{"$f":"VLOOKUP(M206,'Structure mapping'!AH:AL,5,0)","v":{"$error":"#N/A"}},{"$f":"LEFT(Template!H218,6)","v":""},{"$f":"VLOOKUP(O206,'Structure mapping'!AM:AQ,5,0)","v":{"$error":"#N/A"}},null,null,null,null,{"$f":"IF(Template!O218=\"\",\"\",Template!O218)","v":""},"Aug-24 pending entries",{"$f":"TEXT(Template!$B$9,\"mm/dd/yyy\")","v":"08/01/2024"},null,null,null,null,{"$f":"IF(Template!M218>0,Template!M218,-Template!N218)","v":0},null,null,null,{"$f":"VLOOKUP(G206,'Account mapping'!A:D,4,0)","v":{"$error":"#N/A"}}]
[{"$f":"LEFT(Template!A219,4)","v":""},{"$f":"VLOOKUP(A207,'Structure mapping'!K:V,7,0)","v":{"$error":"#N/A"}},{"$f":"LEFT(Template!B219,5)","v":""},{"$f":"VLOOKUP(C207,'Structure mapping'!F:J,5,0)","v":{"$error":"#N/A"}},{"$f":"LEFT(Template!C219,7)","v":""},{"$f":"VLOOKUP(E207,'Structure mapping'!A:E,5,0)","v":{"$error":"#N/A"}},{"$f":"LEFT(Template!D219,6)","v":""},{"$f":"VLOOKUP(G207,'Account mapping'!A:E,5,0)","v":{"$error":"#N/A"}},{"$f":"LEFT(Template!E219,2)","v":""},{"$f":"VLOOKUP(I207,'Structure mapping'!X:AB,5,0)","v":{"$error":"#N/A"}},{"$f":"LEFT(Template!F219,3)","v":""},{"$f":"VLOOKUP(K207,'Structure mapping'!AC:AG,5,0)","v":{"$error":"#N/A"}},{"$f":"LEFT(Template!G219,10)","v":""},{"$f":"VLOOKUP(M207,'Structure mapping'!AH:AL,5,0)","v":{"$error":"#N/A"}},{"$f":"LEFT(Template!H219,6)","v":""},{"$f":"VLOOKUP(O207,'Structure mapping'!AM:AQ,5,0)","v":{"$error":"#N/A"}},null,null,null,null,{"$f":"IF(Template!O219=\"\",\"\",Template!O219)","v":""},"Aug-24 pending entries",{"$f":"TEXT(Template!$B$9,\"mm/dd/yyy\")","v":"08/01/2024"},null,null,null,null,{"$f":"IF(Template!M219>0,Template!M219,-Template!N219)","v":0},null,null,null,{"$f":"VLOOKUP(G207,'Account mapping'!A:D,4,0)","v":{"$error":"#N/A"}}]
[{"$f":"LEFT(Template!A220,4)","v":""},{"$f":"VLOOKUP(A208,'Structure mapping'!K:V,7,0)","v":{"$error":"#N/A"}},{"$f":"LEFT(Template!B220,5)","v":""},{"$f":"VLOOKUP(C208,'Structure mapping'!F:J,5,0)","v":{"$error":"#N/A"}},{"$f":"LEFT(Template!C220,7)","v":""},{"$f":"VLOOKUP(E208,'Structure mapping'!A:E,5,0)","v":{"$error":"#N/A"}},{"$f":"LEFT(Template!D220,6)","v":""},{"$f":"VLOOKUP(G208,'Account mapping'!A:E,5,0)","v":{"$error":"#N/A"}},{"$f":"LEFT(Template!E220,2)","v":""},{"$f":"VLOOKUP(I208,'Structure mapping'!X:AB,5,0)","v":{"$error":"#N/A"}},{"$f":"LEFT(Template!F220,3)","v":""},{"$f":"VLOOKUP(K208,'Structure mapping'!AC:AG,5,0)","v":{"$error":"#N/A"}},{"$f":"LEFT(Template!G220,10)","v":""},{"$f":"VLOOKUP(M208,'Structure mapping'!AH:AL,5,0)","v":{"$error":"#N/A"}},{"$f":"LEFT(Template!H220,6)","v":""},{"$f":"VLOOKUP(O208,'Structure mapping'!AM:AQ,5,0)","v":{"$error":"#N/A"}},null,null,null,null,{"$f":"IF(Template!O220=\"\",\"\",Template!O220)","v":""},"Aug-24 pending entries",{"$f":"TEXT(Template!$B$9,\"mm/dd/yyy\")","v":"08/01/2024"},null,null,null,null,{"$f":"IF(Template!M220>0,Template!M220,-Template!N220)","v":0},null,null,null,{"$f":"VLOOKUP(G208,'Account mapping'!A:D,4,0)","v":{"$error":"#N/A"}}]
[{"$f":"LEFT(Template!A221,4)","v":""},{"$f":"VLOOKUP(A209,'Structure mapping'!K:V,7,0)","v":{"$error":"#N/A"}},{"$f":"LEFT(Template!B221,5)","v":""},{"$f":"VLOOKUP(C209,'Structure mapping'!F:J,5,0)","v":{"$error":"#N/A"}},{"$f":"LEFT(Template!C221,7)","v":""},{"$f":"VLOOKUP(E209,'Structure mapping'!A:E,5,0)","v":{"$error":"#N/A"}},{"$f":"LEFT(Template!D221,6)","v":""},{"$f":"VLOOKUP(G209,'Account mapping'!A:E,5,0)","v":{"$error":"#N/A"}},{"$f":"LEFT(Template!E221,2)","v":""},{"$f":"VLOOKUP(I209,'Structure mapping'!X:AB,5,0)","v":{"$error":"#N/A"}},{"$f":"LEFT(Template!F221,3)","v":""},{"$f":"VLOOKUP(K209,'Structure mapping'!AC:AG,5,0)","v":{"$error":"#N/A"}},{"$f":"LEFT(Template!G221,10)","v":""},{"$f":"VLOOKUP(M209,'Structure mapping'!AH:AL,5,0)","v":{"$error":"#N/A"}},{"$f":"LEFT(Template!H221,6)","v":""},{"$f":"VLOOKUP(O209,'Structure mapping'!AM:AQ,5,0)","v":{"$error":"#N/A"}},null,null,null,null,{"$f":"IF(Template!O221=\"\",\"\",Template!O221)","v":""},"Aug-24 pending entries",{"$f":"TEXT(Template!$B$9,\"mm/dd/yyy\")","v":"08/01/2024"},null,null,null,null,{"$f":"IF(Template!M221>0,Template!M221,-Template!N221)","v":0},null,null,null,{"$f":"VLOOKUP(G209,'Account mapping'!A:D,4,0)","v":{"$error":"#N/A"}}]
[{"$f":"LEFT(Template!A222,4)","v":""},{"$f":"VLOOKUP(A210,'Structure mapping'!K:V,7,0)","v":{"$error":"#N/A"}},{"$f":"LEFT(Template!B222,5)","v":""},{"$f":"VLOOKUP(C210,'Structure mapping'!F:J,5,0)","v":{"$error":"#N/A"}},{"$f":"LEFT(Template!C222,7)","v":""},{"$f":"VLOOKUP(E210,'Structure mapping'!A:E,5,0)","v":{"$error":"#N/A"}},{"$f":"LEFT(Template!D222,6)","v":""},{"$f":"VLOOKUP(G210,'Account mapping'!A:E,5,0)","v":{"$error":"#N/A"}},{"$f":"LEFT(Template!E222,2)","v":""},{"$f":"VLOOKUP(I210,'Structure mapping'!X:AB,5,0)","v":{"$error":"#N/A"}},{"$f":"LEFT(Template!F222,3)","v":""},{"$f":"VLOOKUP(K210,'Structure mapping'!AC:AG,5,0)","v":{"$error":"#N/A"}},{"$f":"LEFT(Template!G222,10)","v":""},{"$f":"VLOOKUP(M210,'Structure mapping'!AH:AL,5,0)","v":{"$error":"#N/A"}},{"$f":"LEFT(Template!H222,6)","v":""},{"$f":"VLOOKUP(O210,'Structure mapping'!AM:AQ,5,0)","v":{"$error":"#N/A"}},null,null,null,null,{"$f":"IF(Template!O222=\"\",\"\",Template!O222)","v":""},"Aug-24 pending entries",{"$f":"TEXT(Template!$B$9,\"mm/dd/yyy\")","v":"08/01/2024"},null,null,null,null,{"$f":"IF(Template!M222>0,Template!M222,-Template!N222)","v":0},null,null,null,{"$f":"VLOOKUP(G210,'Account mapping'!A:D,4,0)","v":{"$error":"#N/A"}}]
[{"$f":"LEFT(Template!A223,4)","v":""},{"$f":"VLOOKUP(A211,'Structure mapping'!K:V,7,0)","v":{"$error":"#N/A"}},{"$f":"LEFT(Template!B223,5)","v":""},{"$f":"VLOOKUP(C211,'Structure mapping'!F:J,5,0)","v":{"$error":"#N/A"}},{"$f":"LEFT(Template!C223,7)","v":""},{"$f":"VLOOKUP(E211,'Structure mapping'!A:E,5,0)","v":{"$error":"#N/A"}},{"$f":"LEFT(Template!D223,6)","v":""},{"$f":"VLOOKUP(G211,'Account mapping'!A:E,5,0)","v":{"$error":"#N/A"}},{"$f":"LEFT(Template!E223,2)","v":""},{"$f":"VLOOKUP(I211,'Structure mapping'!X:AB,5,0)","v":{"$error":"#N/A"}},{"$f":"LEFT(Template!F223,3)","v":""},{"$f":"VLOOKUP(K211,'Structure mapping'!AC:AG,5,0)","v":{"$error":"#N/A"}},{"$f":"LEFT(Template!G223,10)","v":""},{"$f":"VLOOKUP(M211,'Structure mapping'!AH:AL,5,0)","v":{"$error":"#N/A"}},{"$f":"LEFT(Template!H223,6)","v":""},{"$f":"VLOOKUP(O211,'Structure mapping'!AM:AQ,5,0)","v":{"$error":"#N/A"}},null,null,null,null,{"$f":"IF(Template!O223=\"\",\"\",Template!O223)","v":""},"Aug-24 pending entries",{"$f":"TEXT(Template!$B$9,\"mm/dd/yyy\")","v":"08/01/2024"},null,null,null,null,{"$f":"IF(Template!M223>0,Template!M223,-Template!N223)","v":0},null,null,null,{"$f":"VLOOKUP(G211,'Account mapping'!A:D,4,0)","v":{"$error":"#N/A"}}]
[{"$f":"LEFT(Template!A224,4)","v":""},{"$f":"VLOOKUP(A212,'Structure mapping'!K:V,7,0)","v":{"$error":"#N/A"}},{"$f":"LEFT(Template!B224,5)","v":""},{"$f":"VLOOKUP(C212,'Structure mapping'!F:J,5,0)","v":{"$error":"#N/A"}},{"$f":"LEFT(Template!C224,7)","v":""},{"$f":"VLOOKUP(E212,'Structure mapping'!A:E,5,0)","v":{"$error":"#N/A"}},{"$f":"LEFT(Template!D224,6)","v":""},{"$f":"VLOOKUP(G212,'Account mapping'!A:E,5,0)","v":{"$error":"#N/A"}},{"$f":"LEFT(Template!E224,2)","v":""},{"$f":"VLOOKUP(I212,'Structure mapping'!X:AB,5,0)","v":{"$error":"#N/A"}},{"$f":"LEFT(Template!F224,3)","v":""},{"$f":"VLOOKUP(K212,'Structure mapping'!AC:AG,5,0)","v":{"$error":"#N/A"}},{"$f":"LEFT(Template!G224,10)","v":""},{"$f":"VLOOKUP(M212,'Structure mapping'!AH:AL,5,0)","v":{"$error":"#N/A"}},{"$f":"LEFT(Template!H224,6)","v":""},{"$f":"VLOOKUP(O212,'Structure mapping'!AM:AQ,5,0)","v":{"$error":"#N/A"}},null,null,null,null,{"$f":"IF(Template!O224=\"\",\"\",Template!O224)","v":""},"Aug-24 pending entries",{"$f":"TEXT(Template!$B$9,\"mm/dd/yyy\")","v":"08/01/2024"},null,null,null,null,{"$f":"IF(Template!M224>0,Template!M224,-Template!N224)","v":0},null,null,null,{"$f":"VLOOKUP(G212,'Account mapping'!A:D,4,0)","v":{"$error":"#N/A"}}]
[{"$f":"LEFT(Template!A225,4)","v":""},{"$f":"VLOOKUP(A213,'Structure mapping'!K:V,7,0)","v":{"$error":"#N/A"}},{"$f":"LEFT(Template!B225,5)","v":""},{"$f":"VLOOKUP(C213,'Structure mapping'!F:J,5,0)","v":{"$error":"#N/A"}},{"$f":"LEFT(Template!C225,7)","v":""},{"$f":"VLOOKUP(E213,'Structure mapping'!A:E,5,0)","v":{"$error":"#N/A"}},{"$f":"LEFT(Template!D225,6)","v":""},{"$f":"VLOOKUP(G213,'Account mapping'!A:E,5,0)","v":{"$error":"#N/A"}},{"$f":"LEFT(Template!E225,2)","v":""},{"$f":"VLOOKUP(I213,'Structure mapping'!X:AB,5,0)","v":{"$error":"#N/A"}},{"$f":"LEFT(Template!F225,3)","v":""},{"$f":"VLOOKUP(K213,'Structure mapping'!AC:AG,5,0)","v":{"$error":"#N/A"}},{"$f":"LEFT(Template!G225,10)","v":""},{"$f":"VLOOKUP(M213,'Structure mapping'!AH:AL,5,0)","v":{"$error":"#N/A"}},{"$f":"LEFT(Template!H225,6)","v":""},{"$f":"VLOOKUP(O213,'Structure mapping'!AM:AQ,5,0)","v":{"$error":"#N/A"}},null,null,null,null,{"$f":"IF(Template!O225=\"\",\"\",Template!O225)","v":""},"Aug-24 pending entries",{"$f":"TEXT(Template!$B$9,\"mm/dd/yyy\")","v":"08/01/2024"},null,null,null,null,{"$f":"IF(Template!M225>0,Template!M225,-Template!N225)","v":0},null,null,null,{"$f":"VLOOKUP(G213,'Account mapping'!A:D,4,0)","v":{"$error":"#N/A"}}]
[{"$f":"LEFT(Template!A226,4)","v":""},{"$f":"VLOOKUP(A214,'Structure mapping'!K:V,7,0)","v":{"$error":"#N/A"}},{"$f":"LEFT(Template!B226,5)","v":""},{"$f":"VLOOKUP(C214,'Structure mapping'!F:J,5,0)","v":{"$error":"#N/A"}},{"$f":"LEFT(Template!C226,7)","v":""},{"$f":"VLOOKUP(E214,'Structure mapping'!A:E,5,0)","v":{"$error":"#N/A"}},{"$f":"LEFT(Template!D226,6)","v":""},{"$f":"VLOOKUP(G214,'Account mapping'!A:E,5,0)","v":{"$error":"#N/A"}},{"$f":"LEFT(Template!E226,2)","v":""},{"$f":"VLOOKUP(I214,'Structure mapping'!X:AB,5,0)","v":{"$error":"#N/A"}},{"$f":"LEFT(Template!F226,3)","v":""},{"$f":"VLOOKUP(K214,'Structure mapping'!AC:AG,5,0)","v":{"$error":"#N/A"}},{"$f":"LEFT(Template!G226,10)","v":""},{"$f":"VLOOKUP(M214,'Structure mapping'!AH:AL,5,0)","v":{"$error":"#N/A"}},{"$f":"LEFT(Template!H226,6)","v":""},{"$f":"VLOOKUP(O214,'Structure mapping'!AM:AQ,5,0)","v":{"$error":"#N/A"}},null,null,null,null,{"$f":"IF(Template!O226=\"\",\"\",Template!O226)","v":""},"Aug-24 pending entries",{"$f":"TEXT(Template!$B$9,\"mm/dd/yyy\")","v":"08/01/2024"},null,null,null,null,{"$f":"IF(Template!M226>0,Template!M226,-Template!N226)","v":0},null,null,null,{"$f":"VLOOKUP(G214,'Account mapping'!A:D,4,0)","v":{"$error":"#N/A"}}]
[{"$f":"LEFT(Template!A227,4)","v":""},{"$f":"VLOOKUP(A215,'Structure mapping'!K:V,7,0)","v":{"$error":"#N/A"}},{"$f":"LEFT(Template!B227,5)","v":""},{"$f":"VLOOKUP(C215,'Structure mapping'!F:J,5,0)","v":{"$error":"#N/A"}},{"$f":"LEFT(Template!C227,7)","v":""},{"$f":"VLOOKUP(E215,'Structure mapping'!A:E,5,0)","v":{"$error":"#N/A"}},{"$f":"LEFT(Template!D227,6)","v":""},{"$f":"VLOOKUP(G215,'Account mapping'!A:E,5,0)","v":{"$error":"#N/A"}},{"$f":"LEFT(Template!E227,2)","v":""},{"$f":"VLOOKUP(I215,'Structure mapping'!X:AB,5,0)","v":{"$error":"#N/A"}},{"$f":"LEFT(Template!F227,3)","v":""},{"$f":"VLOOKUP(K215,'Structure mapping'!AC:AG,5,0)","v":{"$error":"#N/A"}},{"$f":"LEFT(Template!G227,10)","v":""},{"$f":"VLOOKUP(M215,'Structure mapping'!AH:AL,5,0)","v":{"$error":"#N/A"}},{"$f":"LEFT(Template!H227,6)","v":""},{"$f":"VLOOKUP(O215,'Structure mapping'!AM:AQ,5,0)","v":{"$error":"#N/A"}},null,null,null,null,{"$f":"IF(Template!O227=\"\",\"\",Template!O227)","v":""},"Aug-24 pending entries",{"$f":"TEXT(Template!$B$9,\"mm/dd/yyy\")","v":"08/01/2024"},null,null,null,null,{"$f":"IF(Template!M227>0,Template!M227,-Template!N227)","v":0},null,null,null,{"$f":"VLOOKUP(G215,'Account mapping'!A:D,4,0)","v":{"$error":"#N/A"}}]
[{"$f":"LEFT(Template!A228,4)","v":""},{"$f":"VLOOKUP(A216,'Structure mapping'!K:V,7,0)","v":{"$error":"#N/A"}},{"$f":"LEFT(Template!B228,5)","v":""},{"$f":"VLOOKUP(C216,'Structure mapping'!F:J,5,0)","v":{"$error":"#N/A"}},{"$f":"LEFT(Template!C228,7)","v":""},{"$f":"VLOOKUP(E216,'Structure mapping'!A:E,5,0)","v":{"$error":"#N/A"}},{"$f":"LEFT(Template!D228,6)","v":""},{"$f":"VLOOKUP(G216,'Account mapping'!A:E,5,0)","v":{"$error":"#N/A"}},{"$f":"LEFT(Template!E228,2)","v":""},{"$f":"VLOOKUP(I216,'Structure mapping'!X:AB,5,0)","v":{"$error":"#N/A"}},{"$f":"LEFT(Template!F228,3)","v":""},{"$f":"VLOOKUP(K216,'Structure mapping'!AC:AG,5,0)","v":{"$error":"#N/A"}},{"$f":"LEFT(Template!G228,10)","v":""},{"$f":"VLOOKUP(M216,'Structure mapping'!AH:AL,5,0)","v":{"$error":"#N/A"}},{"$f":"LEFT(Template!H228,6)","v":""},{"$f":"VLOOKUP(O216,'Structure mapping'!AM:AQ,5,0)","v":{"$error":"#N/A"}},null,null,null,null,{"$f":"IF(Template!O228=\"\",\"\",Template!O228)","v":""},"Aug-24 pending entries",{"$f":"TEXT(Template!$B$9,\"mm/dd/yyy\")","v":"08/01/2024"},null,null,null,null,{"$f":"IF(Template!M228>0,Template!M228,-Template!N228)","v":0},null,null,null,{"$f":"VLOOKUP(G216,'Account mapping'!A:D,4,0)","v":{"$error":"#N/A"}}]
[{"$f":"LEFT(Template!A229,4)","v":""},{"$f":"VLOOKUP(A217,'Structure mapping'!K:V,7,0)","v":{"$error":"#N/A"}},{"$f":"LEFT(Template!B229,5)","v":""},{"$f":"VLOOKUP(C217,'Structure mapping'!F:J,5,0)","v":{"$error":"#N/A"}},{"$f":"LEFT(Template!C229,7)","v":""},{"$f":"VLOOKUP(E217,'Structure mapping'!A:E,5,0)","v":{"$error":"#N/A"}},{"$f":"LEFT(Template!D229,6)","v":""},{"$f":"VLOOKUP(G217,'Account mapping'!A:E,5,0)","v":{"$error":"#N/A"}},{"$f":"LEFT(Template!E229,2)","v":""},{"$f":"VLOOKUP(I217,'Structure mapping'!X:AB,5,0)","v":{"$error":"#N/A"}},{"$f":"LEFT(Template!F229,3)","v":""},{"$f":"VLOOKUP(K217,'Structure mapping'!AC:AG,5,0)","v":{"$error":"#N/A"}},{"$f":"LEFT(Template!G229,10)","v":""},{"$f":"VLOOKUP(M217,'Structure mapping'!AH:AL,5,0)","v":{"$error":"#N/A"}},{"$f":"LEFT(Template!H229,6)","v":""},{"$f":"VLOOKUP(O217,'Structure mapping'!AM:AQ,5,0)","v":{"$error":"#N/A"}},null,null,null,null,{"$f":"IF(Template!O229=\"\",\"\",Template!O229)","v":""},"Aug-24 pending entries",{"$f":"TEXT(Template!$B$9,\"mm/dd/yyy\")","v":"08/01/2024"},null,null,null,null,{"$f":"IF(Template!M229>0,Template!M229,-Template!N229)","v":0},null,null,null,{"$f":"VLOOKUP(G217,'Account mapping'!A:D,4,0)","v":{"$error":"#N/A"}}]
[{"$f":"LEFT(Template!A230,4)","v":""},{"$f":"VLOOKUP(A218,'Structure mapping'!K:V,7,0)","v":{"$error":"#N/A"}},{"$f":"LEFT(Template!B230,5)","v":""},{"$f":"VLOOKUP(C218,'Structure mapping'!F:J,5,0)","v":{"$error":"#N/A"}},{"$f":"LEFT(Template!C230,7)","v":""},{"$f":"VLOOKUP(E218,'Structure mapping'!A:E,5,0)","v":{"$error":"#N/A"}},{"$f":"LEFT(Template!D230,6)","v":""},{"$f":"VLOOKUP(G218,'Account mapping'!A:E,5,0)","v":{"$error":"#N/A"}},{"$f":"LEFT(Template!E230,2)","v":""},{"$f":"VLOOKUP(I218,'Structure mapping'!X:AB,5,0)","v":{"$error":"#N/A"}},{"$f":"LEFT(Template!F230,3)","v":""},{"$f":"VLOOKUP(K218,'Structure mapping'!AC:AG,5,0)","v":{"$error":"#N/A"}},{"$f":"LEFT(Template!G230,10)","v":""},{"$f":"VLOOKUP(M218,'Structure mapping'!AH:AL,5,0)","v":{"$error":"#N/A"}},{"$f":"LEFT(Template!H230,6)","v":""},{"$f":"VLOOKUP(O218,'Structure mapping'!AM:AQ,5,0)","v":{"$error":"#N/A"}},null,null,null,null,{"$f":"IF(Template!O230=\"\",\"\",Template!O230)","v":""},"Aug-24 pending entries",{"$f":"TEXT(Template!$B$9,\"mm/dd/yyy\")","v":"08/01/2024"},null,null,null,null,{"$f":"IF(Template!M230>0,Template!M230,-Template!N230)","v":0},null,null,null,{"$f":"VLOOKUP(G218,'Account mapping'!A:D,4,0)","v":{"$error":"#N/A"}}]
[{"$f":"LEFT(Template!A231,4)","v":""},{"$f":"VLOOKUP(A219,'Structure mapping'!K:V,7,0)","v":{"$error":"#N/A"}},{"$f":"LEFT(Template!B231,5)","v":""},{"$f":"VLOOKUP(C219,'Structure mapping'!F:J,5,0)","v":{"$error":"#N/A"}},{"$f":"LEFT(Template!C231,7)","v":""},{"$f":"VLOOKUP(E219,'Structure mapping'!A:E,5,0)","v":{"$error":"#N/A"}},{"$f":"LEFT(Template!D231,6)","v":""},{"$f":"VLOOKUP(G219,'Account mapping'!A:E,5,0)","v":{"$error":"#N/A"}},{"$f":"LEFT(Template!E231,2)","v":""},{"$f":"VLOOKUP(I219,'Structure mapping'!X:AB,5,0)","v":{"$error":"#N/A"}},{"$f":"LEFT(Template!F231,3)","v":""},{"$f":"VLOOKUP(K219,'Structure mapping'!AC:AG,5,0)","v":{"$error":"#N/A"}},{"$f":"LEFT(Template!G231,10)","v":""},{"$f":"VLOOKUP(M219,'Structure mapping'!AH:AL,5,0)","v":{"$error":"#N/A"}},{"$f":"LEFT(Template!H231,6)","v":""},{"$f":"VLOOKUP(O219,'Structure mapping'!AM:AQ,5,0)","v":{"$error":"#N/A"}},null,null,null,null,{"$f":"IF(Template!O231=\"\",\"\",Template!O231)","v":""},"Aug-24 pending entries",{"$f":"TEXT(Template!$B$9,\"mm/dd/yyy\")","v":"08/01/2024"},null,null,null,null,{"$f":"IF(Template!M231>0,Template!M231,-Template!N231)","v":0},null,null,null,{"$f":"VLOOKUP(G219,'Account mapping'!A:D,4,0)","v":{"$error":"#N/A"}}]
[{"$f":"LEFT(Template!A232,4)","v":""},{"$f":"VLOOKUP(A220,'Structure mapping'!K:V,7,0)","v":{"$error":"#N/A"}},{"$f":"LEFT(Template!B232,5)","v":""},{"$f":"VLOOKUP(C220,'Structure mapping'!F:J,5,0)","v":{"$error":"#N/A"}},{"$f":"LEFT(Template!C232,7)","v":""},{"$f":"VLOOKUP(E220,'Structure mapping'!A:E,5,0)","v":{"$error":"#N/A"}},{"$f":"LEFT(Template!D232,6)","v":""},{"$f":"VLOOKUP(G220,'Account mapping'!A:E,5,0)","v":{"$error":"#N/A"}},{"$f":"LEFT(Template!E232,2)","v":""},{"$f":"VLOOKUP(I220,'Structure mapping'!X:AB,5,0)","v":{"$error":"#N/A"}},{"$f":"LEFT(Template!F232,3)","v":""},{"$f":"VLOOKUP(K220,'Structure mapping'!AC:AG,5,0)","v":{"$error":"#N/A"}},{"$f":"LEFT(Template!G232,10)","v":""},{"$f":"VLOOKUP(M220,'Structure mapping'!AH:AL,5,0)","v":{"$error":"#N/A"}},{"$f":"LEFT(Template!H232,6)","v":""},{"$f":"VLOOKUP(O220,'Structure mapping'!AM:AQ,5,0)","v":{"$error":"#N/A"}},null,null,null,null,{"$f":"IF(Template!O232=\"\",\"\",Template!O232)","v":""},"Aug-24 pending entries",{"$f":"TEXT(Template!$B$9,\"mm/dd/yyy\")","v":"08/01/2024"},null,null,null,null,{"$f":"IF(Template!M232>0,Template!M232,-Template!N232)","v":0},null,null,null,{"$f":"VLOOKUP(G220,'Account mapping'!A:D,4,0)","v":{"$error":"#N/A"}}]
[{"$f":"LEFT(Template!A233,4)","v":""},{"$f":"VLOOKUP(A221,'Structure mapping'!K:V,7,0)","v":{"$error":"#N/A"}},{"$f":"LEFT(Template!B233,5)","v":""},{"$f":"VLOOKUP(C221,'Structure mapping'!F:J,5,0)","v":{"$error":"#N/A"}},{"$f":"LEFT(Template!C233,7)","v":""},{"$f":"VLOOKUP(E221,'Structure mapping'!A:E,5,0)","v":{"$error":"#N/A"}},{"$f":"LEFT(Template!D233,6)","v":""},{"$f":"VLOOKUP(G221,'Account mapping'!A:E,5,0)","v":{"$error":"#N/A"}},{"$f":"LEFT(Template!E233,2)","v":""},{"$f":"VLOOKUP(I221,'Structure mapping'!X:AB,5,0)","v":{"$error":"#N/A"}},{"$f":"LEFT(Template!F233,3)","v":""},{"$f":"VLOOKUP(K221,'Structure mapping'!AC:AG,5,0)","v":{"$error":"#N/A"}},{"$f":"LEFT(Template!G233,10)","v":""},{"$f":"VLOOKUP(M221,'Structure mapping'!AH:AL,5,0)","v":{"$error":"#N/A"}},{"$f":"LEFT(Template!H233,6)","v":""},{"$f":"VLOOKUP(O221,'Structure mapping'!AM:AQ,5,0)","v":{"$error":"#N/A"}},null,null,null,null,{"$f":"IF(Template!O233=\"\",\"\",Template!O233)","v":""},"Aug-24 pending entries",{"$f":"TEXT(Template!$B$9,\"mm/dd/yyy\")","v":"08/01/2024"},null,null,null,null,{"$f":"IF(Template!M233>0,Template!M233,-Template!N233)","v":0},null,null,null,{"$f":"VLOOKUP(G221,'Account mapping'!A:D,4,0)","v":{"$error":"#N/A"}}]
[{"$f":"LEFT(Template!A234,4)","v":""},{"$f":"VLOOKUP(A222,'Structure mapping'!K:V,7,0)","v":{"$error":"#N/A"}},{"$f":"LEFT(Template!B234,5)","v":""},{"$f":"VLOOKUP(C222,'Structure mapping'!F:J,5,0)","v":{"$error":"#N/A"}},{"$f":"LEFT(Template!C234,7)","v":""},{"$f":"VLOOKUP(E222,'Structure mapping'!A:E,5,0)","v":{"$error":"#N/A"}},{"$f":"LEFT(Template!D234,6)","v":""},{"$f":"VLOOKUP(G222,'Account mapping'!A:E,5,0)","v":{"$error":"#N/A"}},{"$f":"LEFT(Template!E234,2)","v":""},{"$f":"VLOOKUP(I222,'Structure mapping'!X:AB,5,0)","v":{"$error":"#N/A"}},{"$f":"LEFT(Template!F234,3)","v":""},{"$f":"VLOOKUP(K222,'Structure mapping'!AC:AG,5,0)","v":{"$error":"#N/A"}},{"$f":"LEFT(Template!G234,10)","v":""},{"$f":"VLOOKUP(M222,'Structure mapping'!AH:AL,5,0)","v":{"$error":"#N/A"}},{"$f":"LEFT(Template!H234,6)","v":""},{"$f":"VLOOKUP(O222,'Structure mapping'!AM:AQ,5,0)","v":{"$error":"#N/A"}},null,null,null,null,{"$f":"IF(Template!O234=\"\",\"\",Template!O234)","v":""},"Aug-24 pending entries",{"$f":"TEXT(Template!$B$9,\"mm/dd/yyy\")","v":"08/01/2024"},null,null,null,null,{"$f":"IF(Template!M234>0,Template!M234,-Template!N234)","v":0},null,null,null,{"$f":"VLOOKUP(G222,'Account mapping'!A:D,4,0)","v":{"$error":"#N/A"}}]
[{"$f":"LEFT(Template!A235,4)","v":""},{"$f":"VLOOKUP(A223,'Structure mapping'!K:V,7,0)","v":{"$error":"#N/A"}},{"$f":"LEFT(Template!B235,5)","v":""},{"$f":"VLOOKUP(C223,'Structure mapping'!F:J,5,0)","v":{"$error":"#N/A"}},{"$f":"LEFT(Template!C235,7)","v":""},{"$f":"VLOOKUP(E223,'Structure mapping'!A:E,5,0)","v":{"$error":"#N/A"}},{"$f":"LEFT(Template!D235,6)","v":""},{"$f":"VLOOKUP(G223,'Account mapping'!A:E,5,0)","v":{"$error":"#N/A"}},{"$f":"LEFT(Template!E235,2)","v":""},{"$f":"VLOOKUP(I223,'Structure mapping'!X:AB,5,0)","v":{"$error":"#N/A"}},{"$f":"LEFT(Template!F235,3)","v":""},{"$f":"VLOOKUP(K223,'Structure mapping'!AC:AG,5,0)","v":{"$error":"#N/A"}},{"$f":"LEFT(Template!G235,10)","v":""},{"$f":"VLOOKUP(M223,'Structure mapping'!AH:AL,5,0)","v":{"$error":"#N/A"}},{"$f":"LEFT(Template!H235,6)","v":""},{"$f":"VLOOKUP(O223,'Structure mapping'!AM:AQ,5,0)","v":{"$error":"#N/A"}},null,null,null,null,{"$f":"IF(Template!O235=\"\",\"\",Template!O235)","v":""},"Aug-24 pending entries",{"$f":"TEXT(Template!$B$9,\"mm/dd/yyy\")","v":"08/01/2024"},null,null,null,null,{"$f":"IF(Template!M235>0,Template!M235,-Template!N235)","v":0},null,null,null,{"$f":"VLOOKUP(G223,'Account mapping'!A:D,4,0)","v":{"$error":"#N/A"}}]
[{"$f":"LEFT(Template!A236,4)","v":""},{"$f":"VLOOKUP(A224,'Structure mapping'!K:V,7,0)","v":{"$error":"#N/A"}},{"$f":"LEFT(Template!B236,5)","v":""},{"$f":"VLOOKUP(C224,'Structure mapping'!F:J,5,0)","v":{"$error":"#N/A"}},{"$f":"LEFT(Template!C236,7)","v":""},{"$f":"VLOOKUP(E224,'Structure mapping'!A:E,5,0)","v":{"$error":"#N/A"}},{"$f":"LEFT(Template!D236,6)","v":""},{"$f":"VLOOKUP(G224,'Account mapping'!A:E,5,0)","v":{"$error":"#N/A"}},{"$f":"LEFT(Template!E236,2)","v":""},{"$f":"VLOOKUP(I224,'Structure mapping'!X:AB,5,0)","v":{"$error":"#N/A"}},{"$f":"LEFT(Template!F236,3)","v":""},{"$f":"VLOOKUP(K224,'Structure mapping'!AC:AG,5,0)","v":{"$error":"#N/A"}},{"$f":"LEFT(Template!G236,10)","v":""},{"$f":"VLOOKUP(M224,'Structure mapping'!AH:AL,5,0)","v":{"$error":"#N/A"}},{"$f":"LEFT(Template!H236,6)","v":""},{"$f":"VLOOKUP(O224,'Structure mapping'!AM:AQ,5,0)","v":{"$error":"#N/A"}},null,null,null,null,{"$f":"IF(Template!O236=\"\",\"\",Template!O236)","v":""},"Aug-24 pending entries",{"$f":"TEXT(Template!$B$9,\"mm/dd/yyy\")","v":"08/01/2024"},null,null,null,null,{"$f":"IF(Template!M236>0,Template!M236,-Template!N236)","v":0},null,null,null,{"$f":"VLOOKUP(G224,'Account mapping'!A:D,4,0)","v":{"$error":"#N/A"}}]
[{"$f":"LEFT(Template!A237,4)","v":""},{"$f":"VLOOKUP(A225,'Structure mapping'!K:V,7,0)","v":{"$error":"#N/A"}},{"$f":"LEFT(Template!B237,5)","v":""},{"$f":"VLOOKUP(C225,'Structure mapping'!F:J,5,0)","v":{"$error":"#N/A"}},{"$f":"LEFT(Template!C237,7)","v":""},{"$f":"VLOOKUP(E225,'Structure mapping'!A:E,5,0)","v":{"$error":"#N/A"}},{"$f":"LEFT(Template!D237,6)","v":""},{"$f":"VLOOKUP(G225,'Account mapping'!A:E,5,0)","v":{"$error":"#N/A"}},{"$f":"LEFT(Template!E237,2)","v":""},{"$f":"VLOOKUP(I225,'Structure mapping'!X:AB,5,0)","v":{"$error":"#N/A"}},{"$f":"LEFT(Template!F237,3)","v":""},{"$f":"VLOOKUP(K225,'Structure mapping'!AC:AG,5,0)","v":{"$error":"#N/A"}},{"$f":"LEFT(Template!G237,10)","v":""},{"$f":"VLOOKUP(M225,'Structure mapping'!AH:AL,5,0)","v":{"$error":"#N/A"}},{"$f":"LEFT(Template!H237,6)","v":""},{"$f":"VLOOKUP(O225,'Structure mapping'!AM:AQ,5,0)","v":{"$error":"#N/A"}},null,null,null,null,{"$f":"IF(Template!O237=\"\",\"\",Template!O237)","v":""},"Aug-24 pending entries",{"$f":"TEXT(Template!$B$9,\"mm/dd/yyy\")","v":"08/01/2024"},null,null,null,null,{"$f":"IF(Template!M237>0,Template!M237,-Template!N237)","v":0},null,null,null,{"$f":"VLOOKUP(G225,'Account mapping'!A:D,4,0)","v":{"$error":"#N/A"}}]
[{"$f":"LEFT(Template!A238,4)","v":""},{"$f":"VLOOKUP(A226,'Structure mapping'!K:V,7,0)","v":{"$error":"#N/A"}},{"$f":"LEFT(Template!B238,5)","v":""},{"$f":"VLOOKUP(C226,'Structure mapping'!F:J,5,0)","v":{"$error":"#N/A"}},{"$f":"LEFT(Template!C238,7)","v":""},{"$f":"VLOOKUP(E226,'Structure mapping'!A:E,5,0)","v":{"$error":"#N/A"}},{"$f":"LEFT(Template!D238,6)","v":""},{"$f":"VLOOKUP(G226,'Account mapping'!A:E,5,0)","v":{"$error":"#N/A"}},{"$f":"LEFT(Template!E238,2)","v":""},{"$f":"VLOOKUP(I226,'Structure mapping'!X:AB,5,0)","v":{"$error":"#N/A"}},{"$f":"LEFT(Template!F238,3)","v":""},{"$f":"VLOOKUP(K226,'Structure mapping'!AC:AG,5,0)","v":{"$error":"#N/A"}},{"$f":"LEFT(Template!G238,10)","v":""},{"$f":"VLOOKUP(M226,'Structure mapping'!AH:AL,5,0)","v":{"$error":"#N/A"}},{"$f":"LEFT(Template!H238,6)","v":""},{"$f":"VLOOKUP(O226,'Structure mapping'!AM:AQ,5,0)","v":{"$error":"#N/A"}},null,null,null,null,{"$f":"IF(Template!O238=\"\",\"\",Template!O238)","v":""},"Aug-24 pending entries",{"$f":"TEXT(Template!$B$9,\"mm/dd/yyy\")","v":"08/01/2024"},null,null,null,null,{"$f":"IF(Template!M238>0,Template!M238,-Template!N238)","v":0},null,null,null,{"$f":"VLOOKUP(G226,'Account mapping'!A:D,4,0)","v":{"$error":"#N/A"}}]
[{"$f":"LEFT(Template!A239,4)","v":""},{"$f":"VLOOKUP(A227,'Structure mapping'!K:V,7,0)","v":{"$error":"#N/A"}},{"$f":"LEFT(Template!B239,5)","v":""},{"$f":"VLOOKUP(C227,'Structure mapping'!F:J,5,0)","v":{"$error":"#N/A"}},{"$f":"LEFT(Template!C239,7)","v":""},{"$f":"VLOOKUP(E227,'Structure mapping'!A:E,5,0)","v":{"$error":"#N/A"}},{"$f":"LEFT(Template!D239,6)","v":""},{"$f":"VLOOKUP(G227,'Account mapping'!A:E,5,0)","v":{"$error":"#N/A"}},{"$f":"LEFT(Template!E239,2)","v":""},{"$f":"VLOOKUP(I227,'Structure mapping'!X:AB,5,0)","v":{"$error":"#N/A"}},{"$f":"LEFT(Template!F239,3)","v":""},{"$f":"VLOOKUP(K227,'Structure mapping'!AC:AG,5,0)","v":{"$error":"#N/A"}},{"$f":"LEFT(Template!G239,10)","v":""},{"$f":"VLOOKUP(M227,'Structure mapping'!AH:AL,5,0)","v":{"$error":"#N/A"}},{"$f":"LEFT(Template!H239,6)","v":""},{"$f":"VLOOKUP(O227,'Structure mapping'!AM:AQ,5,0)","v":{"$error":"#N/A"}},null,null,null,null,{"$f":"IF(Template!O239=\"\",\"\",Template!O239)","v":""},"Aug-24 pending entries",{"$f":"TEXT(Template!$B$9,\"mm/dd/yyy\")","v":"08/01/2024"},null,null,null,null,{"$f":"IF(Template!M239>0,Template!M239,-Template!N239)","v":0},null,null,null,{"$f":"VLOOKUP(G227,'Account mapping'!A:D,4,0)","v":{"$error":"#N/A"}}]
[{"$f":"LEFT(Template!A240,4)","v":""},{"$f":"VLOOKUP(A228,'Structure mapping'!K:V,7,0)","v":{"$error":"#N/A"}},{"$f":"LEFT(Template!B240,5)","v":""},{"$f":"VLOOKUP(C228,'Structure mapping'!F:J,5,0)","v":{"$error":"#N/A"}},{"$f":"LEFT(Template!C240,7)","v":""},{"$f":"VLOOKUP(E228,'Structure mapping'!A:E,5,0)","v":{"$error":"#N/A"}},{"$f":"LEFT(Template!D240,6)","v":""},{"$f":"VLOOKUP(G228,'Account mapping'!A:E,5,0)","v":{"$error":"#N/A"}},{"$f":"LEFT(Template!E240,2)","v":""},{"$f":"VLOOKUP(I228,'Structure mapping'!X:AB,5,0)","v":{"$error":"#N/A"}},{"$f":"LEFT(Template!F240,3)","v":""},{"$f":"VLOOKUP(K228,'Structure mapping'!AC:AG,5,0)","v":{"$error":"#N/A"}},{"$f":"LEFT(Template!G240,10)","v":""},{"$f":"VLOOKUP(M228,'Structure mapping'!AH:AL,5,0)","v":{"$error":"#N/A"}},{"$f":"LEFT(Template!H240,6)","v":""},{"$f":"VLOOKUP(O228,'Structure mapping'!AM:AQ,5,0)","v":{"$error":"#N/A"}},null,null,null,null,{"$f":"IF(Template!O240=\"\",\"\",Template!O240)","v":""},"Aug-24 pending entries",{"$f":"TEXT(Template!$B$9,\"mm/dd/yyy\")","v":"08/01/2024"},null,null,null,null,{"$f":"IF(Template!M240>0,Template!M240,-Template!N240)","v":0},null,null,null,{"$f":"VLOOKUP(G228,'Account mapping'!A:D,4,0)","v":{"$error":"#N/A"}}]
[{"$f":"LEFT(Template!A241,4)","v":""},{"$f":"VLOOKUP(A229,'Structure mapping'!K:V,7,0)","v":{"$error":"#N/A"}},{"$f":"LEFT(Template!B241,5)","v":""},{"$f":"VLOOKUP(C229,'Structure mapping'!F:J,5,0)","v":{"$error":"#N/A"}},{"$f":"LEFT(Template!C241,7)","v":""},{"$f":"VLOOKUP(E229,'Structure mapping'!A:E,5,0)","v":{"$error":"#N/A"}},{"$f":"LEFT(Template!D241,6)","v":""},{"$f":"VLOOKUP(G229,'Account mapping'!A:E,5,0)","v":{"$error":"#N/A"}},{"$f":"LEFT(Template!E241,2)","v":""},{"$f":"VLOOKUP(I229,'Structure mapping'!X:AB,5,0)","v":{"$error":"#N/A"}},{"$f":"LEFT(Template!F241,3)","v":""},{"$f":"VLOOKUP(K229,'Structure mapping'!AC:AG,5,0)","v":{"$error":"#N/A"}},{"$f":"LEFT(Template!G241,10)","v":""},{"$f":"VLOOKUP(M229,'Structure mapping'!AH:AL,5,0)","v":{"$error":"#N/A"}},{"$f":"LEFT(Template!H241,6)","v":""},{"$f":"VLOOKUP(O229,'Structure mapping'!AM:AQ,5,0)","v":{"$error":"#N/A"}},null,null,null,null,{"$f":"IF(Template!O241=\"\",\"\",Template!O241)","v":""},"Aug-24 pending entries",{"$f":"TEXT(Template!$B$9,\"mm/dd/yyy\")","v":"08/01/2024"},null,null,null,null,{"$f":"IF(Template!M241>0,Template!M241,-Template!N241)","v":0},null,null,null,{"$f":"VLOOKUP(G229,'Account mapping'!A:D,4,0)","v":{"$error":"#N/A"}}]
[{"$f":"LEFT(Template!A242,4)","v":""},{"$f":"VLOOKUP(A230,'Structure mapping'!K:V,7,0)","v":{"$error":"#N/A"}},{"$f":"LEFT(Template!B242,5)","v":""},{"$f":"VLOOKUP(C230,'Structure mapping'!F:J,5,0)","v":{"$error":"#N/A"}},{"$f":"LEFT(Template!C242,7)","v":""},{"$f":"VLOOKUP(E230,'Structure mapping'!A:E,5,0)","v":{"$error":"#N/A"}},{"$f":"LEFT(Template!D242,6)","v":""},{"$f":"VLOOKUP(G230,'Account mapping'!A:E,5,0)","v":{"$error":"#N/A"}},{"$f":"LEFT(Template!E242,2)","v":""},{"$f":"VLOOKUP(I230,'Structure mapping'!X:AB,5,0)","v":{"$error":"#N/A"}},{"$f":"LEFT(Template!F242,3)","v":""},{"$f":"VLOOKUP(K230,'Structure mapping'!AC:AG,5,0)","v":{"$error":"#N/A"}},{"$f":"LEFT(Template!G242,10)","v":""},{"$f":"VLOOKUP(M230,'Structure mapping'!AH:AL,5,0)","v":{"$error":"#N/A"}},{"$f":"LEFT(Template!H242,6)","v":""},{"$f":"VLOOKUP(O230,'Structure mapping'!AM:AQ,5,0)","v":{"$error":"#N/A"}},null,null,null,null,{"$f":"IF(Template!O242=\"\",\"\",Template!O242)","v":""},"Aug-24 pending entries",{"$f":"TEXT(Template!$B$9,\"mm/dd/yyy\")","v":"08/01/2024"},null,null,null,null,{"$f":"IF(Template!M242>0,Template!M242,-Template!N242)","v":0},null,null,null,{"$f":"VLOOKUP(G230,'Account mapping'!A:D,4,0)","v":{"$error":"#N/A"}}]
[{"$f":"LEFT(Template!A243,4)","v":""},{"$f":"VLOOKUP(A231,'Structure mapping'!K:V,7,0)","v":{"$error":"#N/A"}},{"$f":"LEFT(Template!B243,5)","v":""},{"$f":"VLOOKUP(C231,'Structure mapping'!F:J,5,0)","v":{"$error":"#N/A"}},{"$f":"LEFT(Template!C243,7)","v":""},{"$f":"VLOOKUP(E231,'Structure mapping'!A:E,5,0)","v":{"$error":"#N/A"}},{"$f":"LEFT(Template!D243,6)","v":""},{"$f":"VLOOKUP(G231,'Account mapping'!A:E,5,0)","v":{"$error":"#N/A"}},{"$f":"LEFT(Template!E243,2)","v":""},{"$f":"VLOOKUP(I231,'Structure mapping'!X:AB,5,0)","v":{"$error":"#N/A"}},{"$f":"LEFT(Template!F243,3)","v":""},{"$f":"VLOOKUP(K231,'Structure mapping'!AC:AG,5,0)","v":{"$error":"#N/A"}},{"$f":"LEFT(Template!G243,10)","v":""},{"$f":"VLOOKUP(M231,'Structure mapping'!AH:AL,5,0)","v":{"$error":"#N/A"}},{"$f":"LEFT(Template!H243,6)","v":""},{"$f":"VLOOKUP(O231,'Structure mapping'!AM:AQ,5,0)","v":{"$error":"#N/A"}},null,null,null,null,{"$f":"IF(Template!O243=\"\",\"\",Template!O243)","v":""},"Aug-24 pending entries",{"$f":"TEXT(Template!$B$9,\"mm/dd/yyy\")","v":"08/01/2024"},null,null,null,null,{"$f":"IF(Template!M243>0,Template!M243,-Template!N243)","v":0},null,null,null,{"$f":"VLOOKUP(G231,'Account mapping'!A:D,4,0)","v":{"$error":"#N/A"}}]
[{"$f":"LEFT(Template!A244,4)","v":""},{"$f":"VLOOKUP(A232,'Structure mapping'!K:V,7,0)","v":{"$error":"#N/A"}},{"$f":"LEFT(Template!B244,5)","v":""},{"$f":"VLOOKUP(C232,'Structure mapping'!F:J,5,0)","v":{"$error":"#N/A"}},{"$f":"LEFT(Template!C244,7)","v":""},{"$f":"VLOOKUP(E232,'Structure mapping'!A:E,5,0)","v":{"$error":"#N/A"}},{"$f":"LEFT(Template!D244,6)","v":""},{"$f":"VLOOKUP(G232,'Account mapping'!A:E,5,0)","v":{"$error":"#N/A"}},{"$f":"LEFT(Template!E244,2)","v":""},{"$f":"VLOOKUP(I232,'Structure mapping'!X:AB,5,0)","v":{"$error":"#N/A"}},{"$f":"LEFT(Template!F244,3)","v":""},{"$f":"VLOOKUP(K232,'Structure mapping'!AC:AG,5,0)","v":{"$error":"#N/A"}},{"$f":"LEFT(Template!G244,10)","v":""},{"$f":"VLOOKUP(M232,'Structure mapping'!AH:AL,5,0)","v":{"$error":"#N/A"}},{"$f":"LEFT(Template!H244,6)","v":""},{"$f":"VLOOKUP(O232,'Structure mapping'!AM:AQ,5,0)","v":{"$error":"#N/A"}},null,null,null,null,{"$f":"IF(Template!O244=\"\",\"\",Template!O244)","v":""},"Aug-24 pending entries",{"$f":"TEXT(Template!$B$9,\"mm/dd/yyy\")","v":"08/01/2024"},null,null,null,null,{"$f":"IF(Template!M244>0,Template!M244,-Template!N244)","v":0},null,null,null,{"$f":"VLOOKUP(G232,'Account mapping'!A:D,4,0)","v":{"$error":"#N/A"}}]
[{"$f":"LEFT(Template!A245,4)","v":""},{"$f":"VLOOKUP(A233,'Structure mapping'!K:V,7,0)","v":{"$error":"#N/A"}},{"$f":"LEFT(Template!B245,5)","v":""},{"$f":"VLOOKUP(C233,'Structure mapping'!F:J,5,0)","v":{"$error":"#N/A"}},{"$f":"LEFT(Template!C245,7)","v":""},{"$f":"VLOOKUP(E233,'Structure mapping'!A:E,5,0)","v":{"$error":"#N/A"}},{"$f":"LEFT(Template!D245,6)","v":""},{"$f":"VLOOKUP(G233,'Account mapping'!A:E,5,0)","v":{"$error":"#N/A"}},{"$f":"LEFT(Template!E245,2)","v":""},{"$f":"VLOOKUP(I233,'Structure mapping'!X:AB,5,0)","v":{"$error":"#N/A"}},{"$f":"LEFT(Template!F245,3)","v":""},{"$f":"VLOOKUP(K233,'Structure mapping'!AC:AG,5,0)","v":{"$error":"#N/A"}},{"$f":"LEFT(Template!G245,10)","v":""},{"$f":"VLOOKUP(M233,'Structure mapping'!AH:AL,5,0)","v":{"$error":"#N/A"}},{"$f":"LEFT(Template!H245,6)","v":""},{"$f":"VLOOKUP(O233,'Structure mapping'!AM:AQ,5,0)","v":{"$error":"#N/A"}},null,null,null,null,{"$f":"IF(Template!O245=\"\",\"\",Template!O245)","v":""},"Aug-24 pending entries",{"$f":"TEXT(Template!$B$9,\"mm/dd/yyy\")","v":"08/01/2024"},null,null,null,null,{"$f":"IF(Template!M245>0,Template!M245,-Template!N245)","v":0},null,null,null,{"$f":"VLOOKUP(G233,'Account mapping'!A:D,4,0)","v":{"$error":"#N/A"}}]
[{"$f":"LEFT(Template!A246,4)","v":""},{"$f":"VLOOKUP(A234,'Structure mapping'!K:V,7,0)","v":{"$error":"#N/A"}},{"$f":"LEFT(Template!B246,5)","v":""},{"$f":"VLOOKUP(C234,'Structure mapping'!F:J,5,0)","v":{"$error":"#N/A"}},{"$f":"LEFT(Template!C246,7)","v":""},{"$f":"VLOOKUP(E234,'Structure mapping'!A:E,5,0)","v":{"$error":"#N/A"}},{"$f":"LEFT(Template!D246,6)","v":""},{"$f":"VLOOKUP(G234,'Account mapping'!A:E,5,0)","v":{"$error":"#N/A"}},{"$f":"LEFT(Template!E246,2)","v":""},{"$f":"VLOOKUP(I234,'Structure mapping'!X:AB,5,0)","v":{"$error":"#N/A"}},{"$f":"LEFT(Template!F246,3)","v":""},{"$f":"VLOOKUP(K234,'Structure mapping'!AC:AG,5,0)","v":{"$error":"#N/A"}},{"$f":"LEFT(Template!G246,10)","v":""},{"$f":"VLOOKUP(M234,'Structure mapping'!AH:AL,5,0)","v":{"$error":"#N/A"}},{"$f":"LEFT(Template!H246,6)","v":""},{"$f":"VLOOKUP(O234,'Structure mapping'!AM:AQ,5,0)","v":{"$error":"#N/A"}},null,null,null,null,{"$f":"IF(Template!O246=\"\",\"\",Template!O246)","v":""},"Aug-24 pending entries",{"$f":"TEXT(Template!$B$9,\"mm/dd/yyy\")","v":"08/01/2024"},null,null,null,null,{"$f":"IF(Template!M246>0,Template!M246,-Template!N246)","v":0},null,null,null,{"$f":"VLOOKUP(G234,'Account mapping'!A:D,4,0)","v":{"$error":"#N/A"}}]
[{"$f":"LEFT(Template!A247,4)","v":""},{"$f":"VLOOKUP(A235,'Structure mapping'!K:V,7,0)","v":{"$error":"#N/A"}},{"$f":"LEFT(Template!B247,5)","v":""},{"$f":"VLOOKUP(C235,'Structure mapping'!F:J,5,0)","v":{"$error":"#N/A"}},{"$f":"LEFT(Template!C247,7)","v":""},{"$f":"VLOOKUP(E235,'Structure mapping'!A:E,5,0)","v":{"$error":"#N/A"}},{"$f":"LEFT(Template!D247,6)","v":""},{"$f":"VLOOKUP(G235,'Account mapping'!A:E,5,0)","v":{"$error":"#N/A"}},{"$f":"LEFT(Template!E247,2)","v":""},{"$f":"VLOOKUP(I235,'Structure mapping'!X:AB,5,0)","v":{"$error":"#N/A"}},{"$f":"LEFT(Template!F247,3)","v":""},{"$f":"VLOOKUP(K235,'Structure mapping'!AC:AG,5,0)","v":{"$error":"#N/A"}},{"$f":"LEFT(Template!G247,10)","v":""},{"$f":"VLOOKUP(M235,'Structure mapping'!AH:AL,5,0)","v":{"$error":"#N/A"}},{"$f":"LEFT(Template!H247,6)","v":""},{"$f":"VLOOKUP(O235,'Structure mapping'!AM:AQ,5,0)","v":{"$error":"#N/A"}},null,null,null,null,{"$f":"IF(Template!O247=\"\",\"\",Template!O247)","v":""},"Aug-24 pending entries",{"$f":"TEXT(Template!$B$9,\"mm/dd/yyy\")","v":"08/01/2024"},null,null,null,null,{"$f":"IF(Template!M247>0,Template!M247,-Template!N247)","v":0},null,null,null,{"$f":"VLOOKUP(G235,'Account mapping'!A:D,4,0)","v":{"$error":"#N/A"}}]
[{"$f":"LEFT(Template!A248,4)","v":""},{"$f":"VLOOKUP(A236,'Structure mapping'!K:V,7,0)","v":{"$error":"#N/A"}},{"$f":"LEFT(Template!B248,5)","v":""},{"$f":"VLOOKUP(C236,'Structure mapping'!F:J,5,0)","v":{"$error":"#N/A"}},{"$f":"LEFT(Template!C248,7)","v":""},{"$f":"VLOOKUP(E236,'Structure mapping'!A:E,5,0)","v":{"$error":"#N/A"}},{"$f":"LEFT(Template!D248,6)","v":""},{"$f":"VLOOKUP(G236,'Account mapping'!A:E,5,0)","v":{"$error":"#N/A"}},{"$f":"LEFT(Template!E248,2)","v":""},{"$f":"VLOOKUP(I236,'Structure mapping'!X:AB,5,0)","v":{"$error":"#N/A"}},{"$f":"LEFT(Template!F248,3)","v":""},{"$f":"VLOOKUP(K236,'Structure mapping'!AC:AG,5,0)","v":{"$error":"#N/A"}},{"$f":"LEFT(Template!G248,10)","v":""},{"$f":"VLOOKUP(M236,'Structure mapping'!AH:AL,5,0)","v":{"$error":"#N/A"}},{"$f":"LEFT(Template!H248,6)","v":""},{"$f":"VLOOKUP(O236,'Structure mapping'!AM:AQ,5,0)","v":{"$error":"#N/A"}},null,null,null,null,{"$f":"IF(Template!O248=\"\",\"\",Template!O248)","v":""},"Aug-24 pending entries",{"$f":"TEXT(Template!$B$9,\"mm/dd/yyy\")","v":"08/01/2024"},null,null,null,null,{"$f":"IF(Template!M248>0,Template!M248,-Template!N248)","v":0},null,null,null,{"$f":"VLOOKUP(G236,'Account mapping'!A:D,4,0)","v":{"$error":"#N/A"}}]
[{"$f":"LEFT(Template!A249,4)","v":""},{"$f":"VLOOKUP(A237,'Structure mapping'!K:V,7,0)","v":{"$error":"#N/A"}},{"$f":"LEFT(Template!B249,5)","v":""},{"$f":"VLOOKUP(C237,'Structure mapping'!F:J,5,0)","v":{"$error":"#N/A"}},{"$f":"LEFT(Template!C249,7)","v":""},{"$f":"VLOOKUP(E237,'Structure mapping'!A:E,5,0)","v":{"$error":"#N/A"}},{"$f":"LEFT(Template!D249,6)","v":""},{"$f":"VLOOKUP(G237,'Account mapping'!A:E,5,0)","v":{"$error":"#N/A"}},{"$f":"LEFT(Template!E249,2)","v":""},{"$f":"VLOOKUP(I237,'Structure mapping'!X:AB,5,0)","v":{"$error":"#N/A"}},{"$f":"LEFT(Template!F249,3)","v":""},{"$f":"VLOOKUP(K237,'Structure mapping'!AC:AG,5,0)","v":{"$error":"#N/A"}},{"$f":"LEFT(Template!G249,10)","v":""},{"$f":"VLOOKUP(M237,'Structure mapping'!AH:AL,5,0)","v":{"$error":"#N/A"}},{"$f":"LEFT(Template!H249,6)","v":""},{"$f":"VLOOKUP(O237,'Structure mapping'!AM:AQ,5,0)","v":{"$error":"#N/A"}},null,null,null,null,{"$f":"IF(Template!O249=\"\",\"\",Template!O249)","v":""},"Aug-24 pending entries",{"$f":"TEXT(Template!$B$9,\"mm/dd/yyy\")","v":"08/01/2024"},null,null,null,null,{"$f":"IF(Template!M249>0,Template!M249,-Template!N249)","v":0},null,null,null,{"$f":"VLOOKUP(G237,'Account mapping'!A:D,4,0)","v":{"$error":"#N/A"}}]
[{"$f":"LEFT(Template!A250,4)","v":""},{"$f":"VLOOKUP(A238,'Structure mapping'!K:V,7,0)","v":{"$error":"#N/A"}},{"$f":"LEFT(Template!B250,5)","v":""},{"$f":"VLOOKUP(C238,'Structure mapping'!F:J,5,0)","v":{"$error":"#N/A"}},{"$f":"LEFT(Template!C250,7)","v":""},{"$f":"VLOOKUP(E238,'Structure mapping'!A:E,5,0)","v":{"$error":"#N/A"}},{"$f":"LEFT(Template!D250,6)","v":""},{"$f":"VLOOKUP(G238,'Account mapping'!A:E,5,0)","v":{"$error":"#N/A"}},{"$f":"LEFT(Template!E250,2)","v":""},{"$f":"VLOOKUP(I238,'Structure mapping'!X:AB,5,0)","v":{"$error":"#N/A"}},{"$f":"LEFT(Template!F250,3)","v":""},{"$f":"VLOOKUP(K238,'Structure mapping'!AC:AG,5,0)","v":{"$error":"#N/A"}},{"$f":"LEFT(Template!G250,10)","v":""},{"$f":"VLOOKUP(M238,'Structure mapping'!AH:AL,5,0)","v":{"$error":"#N/A"}},{"$f":"LEFT(Template!H250,6)","v":""},{"$f":"VLOOKUP(O238,'Structure mapping'!AM:AQ,5,0)","v":{"$error":"#N/A"}},null,null,null,null,{"$f":"IF(Template!O250=\"\",\"\",Template!O250)","v":""},"Aug-24 pending entries",{"$f":"TEXT(Template!$B$9,\"mm/dd/yyy\")","v":"08/01/2024"},null,null,null,null,{"$f":"IF(Template!M250>0,Template!M250,-Template!N250)","v":0},null,null,null,{"$f":"VLOOKUP(G238,'Account mapping'!A:D,4,0)","v":{"$error":"#N/A"}}]
[{"$f":"LEFT(Template!A251,4)","v":""},{"$f":"VLOOKUP(A239,'Structure mapping'!K:V,7,0)","v":{"$error":"#N/A"}},{"$f":"LEFT(Template!B251,5)","v":""},{"$f":"VLOOKUP(C239,'Structure mapping'!F:J,5,0)","v":{"$error":"#N/A"}},{"$f":"LEFT(Template!C251,7)","v":""},{"$f":"VLOOKUP(E239,'Structure mapping'!A:E,5,0)","v":{"$error":"#N/A"}},{"$f":"LEFT(Template!D251,6)","v":""},{"$f":"VLOOKUP(G239,'Account mapping'!A:E,5,0)","v":{"$error":"#N/A"}},{"$f":"LEFT(Template!E251,2)","v":""},{"$f":"VLOOKUP(I239,'Structure mapping'!X:AB,5,0)","v":{"$error":"#N/A"}},{"$f":"LEFT(Template!F251,3)","v":""},{"$f":"VLOOKUP(K239,'Structure mapping'!AC:AG,5,0)","v":{"$error":"#N/A"}},{"$f":"LEFT(Template!G251,10)","v":""},{"$f":"VLOOKUP(M239,'Structure mapping'!AH:AL,5,0)","v":{"$error":"#N/A"}},{"$f":"LEFT(Template!H251,6)","v":""},{"$f":"VLOOKUP(O239,'Structure mapping'!AM:AQ,5,0)","v":{"$error":"#N/A"}},null,null,null,null,{"$f":"IF(Template!O251=\"\",\"\",Template!O251)","v":""},"Aug-24 pending entries",{"$f":"TEXT(Template!$B$9,\"mm/dd/yyy\")","v":"08/01/2024"},null,null,null,null,{"$f":"IF(Template!M251>0,Template!M251,-Template!N251)","v":0},null,null,null,{"$f":"VLOOKUP(G239,'Account mapping'!A:D,4,0)","v":{"$error":"#N/A"}}]
[{"$f":"LEFT(Template!A252,4)","v":""},{"$f":"VLOOKUP(A240,'Structure mapping'!K:V,7,0)","v":{"$error":"#N/A"}},{"$f":"LEFT(Template!B252,5)","v":""},{"$f":"VLOOKUP(C240,'Structure mapping'!F:J,5,0)","v":{"$error":"#N/A"}},{"$f":"LEFT(Template!C252,7)","v":""},{"$f":"VLOOKUP(E240,'Structure mapping'!A:E,5,0)","v":{"$error":"#N/A"}},{"$f":"LEFT(Template!D252,6)","v":""},{"$f":"VLOOKUP(G240,'Account mapping'!A:E,5,0)","v":{"$error":"#N/A"}},{"$f":"LEFT(Template!E252,2)","v":""},{"$f":"VLOOKUP(I240,'Structure mapping'!X:AB,5,0)","v":{"$error":"#N/A"}},{"$f":"LEFT(Template!F252,3)","v":""},{"$f":"VLOOKUP(K240,'Structure mapping'!AC:AG,5,0)","v":{"$error":"#N/A"}},{"$f":"LEFT(Template!G252,10)","v":""},{"$f":"VLOOKUP(M240,'Structure mapping'!AH:AL,5,0)","v":{"$error":"#N/A"}},{"$f":"LEFT(Template!H252,6)","v":""},{"$f":"VLOOKUP(O240,'Structure mapping'!AM:AQ,5,0)","v":{"$error":"#N/A"}},null,null,null,null,{"$f":"IF(Template!O252=\"\",\"\",Template!O252)","v":""},"Aug-24 pending entries",{"$f":"TEXT(Template!$B$9,\"mm/dd/yyy\")","v":"08/01/2024"},null,null,null,null,{"$f":"IF(Template!M252>0,Template!M252,-Template!N252)","v":0},null,null,null,{"$f":"VLOOKUP(G240,'Account mapping'!A:D,4,0)","v":{"$error":"#N/A"}}]
[{"$f":"LEFT(Template!A253,4)","v":""},{"$f":"VLOOKUP(A241,'Structure mapping'!K:V,7,0)","v":{"$error":"#N/A"}},{"$f":"LEFT(Template!B253,5)","v":""},{"$f":"VLOOKUP(C241,'Structure mapping'!F:J,5,0)","v":{"$error":"#N/A"}},{"$f":"LEFT(Template!C253,7)","v":""},{"$f":"VLOOKUP(E241,'Structure mapping'!A:E,5,0)","v":{"$error":"#N/A"}},{"$f":"LEFT(Template!D253,6)","v":""},{"$f":"VLOOKUP(G241,'Account mapping'!A:E,5,0)","v":{"$error":"#N/A"}},{"$f":"LEFT(Template!E253,2)","v":""},{"$f":"VLOOKUP(I241,'Structure mapping'!X:AB,5,0)","v":{"$error":"#N/A"}},{"$f":"LEFT(Template!F253,3)","v":""},{"$f":"VLOOKUP(K241,'Structure mapping'!AC:AG,5,0)","v":{"$error":"#N/A"}},{"$f":"LEFT(Template!G253,10)","v":""},{"$f":"VLOOKUP(M241,'Structure mapping'!AH:AL,5,0)","v":{"$error":"#N/A"}},{"$f":"LEFT(Template!H253,6)","v":""},{"$f":"VLOOKUP(O241,'Structure mapping'!AM:AQ,5,0)","v":{"$error":"#N/A"}},null,null,null,null,{"$f":"IF(Template!O253=\"\",\"\",Template!O253)","v":""},"Aug-24 pending entries",{"$f":"TEXT(Template!$B$9,\"mm/dd/yyy\")","v":"08/01/2024"},null,null,null,null,{"$f":"IF(Template!M253>0,Template!M253,-Template!N253)","v":0},null,null,null,{"$f":"VLOOKUP(G241,'Account mapping'!A:D,4,0)","v":{"$error":"#N/A"}}]
[{"$f":"LEFT(Template!A254,4)","v":""},{"$f":"VLOOKUP(A242,'Structure mapping'!K:V,7,0)","v":{"$error":"#N/A"}},{"$f":"LEFT(Template!B254,5)","v":""},{"$f":"VLOOKUP(C242,'Structure mapping'!F:J,5,0)","v":{"$error":"#N/A"}},{"$f":"LEFT(Template!C254,7)","v":""},{"$f":"VLOOKUP(E242,'Structure mapping'!A:E,5,0)","v":{"$error":"#N/A"}},{"$f":"LEFT(Template!D254,6)","v":""},{"$f":"VLOOKUP(G242,'Account mapping'!A:E,5,0)","v":{"$error":"#N/A"}},{"$f":"LEFT(Template!E254,2)","v":""},{"$f":"VLOOKUP(I242,'Structure mapping'!X:AB,5,0)","v":{"$error":"#N/A"}},{"$f":"LEFT(Template!F254,3)","v":""},{"$f":"VLOOKUP(K242,'Structure mapping'!AC:AG,5,0)","v":{"$error":"#N/A"}},{"$f":"LEFT(Template!G254,10)","v":""},{"$f":"VLOOKUP(M242,'Structure mapping'!AH:AL,5,0)","v":{"$error":"#N/A"}},{"$f":"LEFT(Template!H254,6)","v":""},{"$f":"VLOOKUP(O242,'Structure mapping'!AM:AQ,5,0)","v":{"$error":"#N/A"}},null,null,null,null,{"$f":"IF(Template!O254=\"\",\"\",Template!O254)","v":""},"Aug-24 pending entries",{"$f":"TEXT(Template!$B$9,\"mm/dd/yyy\")","v":"08/01/2024"},null,null,null,null,{"$f":"IF(Template!M254>0,Template!M254,-Template!N254)","v":0},null,null,null,{"$f":"VLOOKUP(G242,'Account mapping'!A:D,4,0)","v":{"$error":"#N/A"}}]
[{"$f":"LEFT(Template!A255,4)","v":""},{"$f":"VLOOKUP(A243,'Structure mapping'!K:V,7,0)","v":{"$error":"#N/A"}},{"$f":"LEFT(Template!B255,5)","v":""},{"$f":"VLOOKUP(C243,'Structure mapping'!F:J,5,0)","v":{"$error":"#N/A"}},{"$f":"LEFT(Template!C255,7)","v":""},{"$f":"VLOOKUP(E243,'Structure mapping'!A:E,5,0)","v":{"$error":"#N/A"}},{"$f":"LEFT(Template!D255,6)","v":""},{"$f":"VLOOKUP(G243,'Account mapping'!A:E,5,0)","v":{"$error":"#N/A"}},{"$f":"LEFT(Template!E255,2)","v":""},{"$f":"VLOOKUP(I243,'Structure mapping'!X:AB,5,0)","v":{"$error":"#N/A"}},{"$f":"LEFT(Template!F255,3)","v":""},{"$f":"VLOOKUP(K243,'Structure mapping'!AC:AG,5,0)","v":{"$error":"#N/A"}},{"$f":"LEFT(Template!G255,10)","v":""},{"$f":"VLOOKUP(M243,'Structure mapping'!AH:AL,5,0)","v":{"$error":"#N/A"}},{"$f":"LEFT(Template!H255,6)","v":""},{"$f":"VLOOKUP(O243,'Structure mapping'!AM:AQ,5,0)","v":{"$error":"#N/A"}},null,null,null,null,{"$f":"IF(Template!O255=\"\",\"\",Template!O255)","v":""},"Aug-24 pending entries",{"$f":"TEXT(Template!$B$9,\"mm/dd/yyy\")","v":"08/01/2024"},null,null,null,null,{"$f":"IF(Template!M255>0,Template!M255,-Template!N255)","v":0},null,null,null,{"$f":"VLOOKUP(G243,'Account mapping'!A:D,4,0)","v":{"$error":"#N/A"}}]
[{"$f":"LEFT(Template!A256,4)","v":""},{"$f":"VLOOKUP(A244,'Structure mapping'!K:V,7,0)","v":{"$error":"#N/A"}},{"$f":"LEFT(Template!B256,5)","v":""},{"$f":"VLOOKUP(C244,'Structure mapping'!F:J,5,0)","v":{"$error":"#N/A"}},{"$f":"LEFT(Template!C256,7)","v":""},{"$f":"VLOOKUP(E244,'Structure mapping'!A:E,5,0)","v":{"$error":"#N/A"}},{"$f":"LEFT(Template!D256,6)","v":""},{"$f":"VLOOKUP(G244,'Account mapping'!A:E,5,0)","v":{"$error":"#N/A"}},{"$f":"LEFT(Template!E256,2)","v":""},{"$f":"VLOOKUP(I244,'Structure mapping'!X:AB,5,0)","v":{"$error":"#N/A"}},{"$f":"LEFT(Template!F256,3)","v":""},{"$f":"VLOOKUP(K244,'Structure mapping'!AC:AG,5,0)","v":{"$error":"#N/A"}},{"$f":"LEFT(Template!G256,10)","v":""},{"$f":"VLOOKUP(M244,'Structure mapping'!AH:AL,5,0)","v":{"$error":"#N/A"}},{"$f":"LEFT(Template!H256,6)","v":""},{"$f":"VLOOKUP(O244,'Structure mapping'!AM:AQ,5,0)","v":{"$error":"#N/A"}},null,null,null,null,{"$f":"IF(Template!O256=\"\",\"\",Template!O256)","v":""},"Aug-24 pending entries",{"$f":"TEXT(Template!$B$9,\"mm/dd/yyy\")","v":"08/01/2024"},null,null,null,null,{"$f":"IF(Template!M256>0,Template!M256,-Template!N256)","v":0},null,null,null,{"$f":"VLOOKUP(G244,'Account mapping'!A:D,4,0)","v":{"$error":"#N/A"}}]
[{"$f":"LEFT(Template!A257,4)","v":""},{"$f":"VLOOKUP(A245,'Structure mapping'!K:V,7,0)","v":{"$error":"#N/A"}},{"$f":"LEFT(Template!B257,5)","v":""},{"$f":"VLOOKUP(C245,'Structure mapping'!F:J,5,0)","v":{"$error":"#N/A"}},{"$f":"LEFT(Template!C257,7)","v":""},{"$f":"VLOOKUP(E245,'Structure mapping'!A:E,5,0)","v":{"$error":"#N/A"}},{"$f":"LEFT(Template!D257,6)","v":""},{"$f":"VLOOKUP(G245,'Account mapping'!A:E,5,0)","v":{"$error":"#N/A"}},{"$f":"LEFT(Template!E257,2)","v":""},{"$f":"VLOOKUP(I245,'Structure mapping'!X:AB,5,0)","v":{"$error":"#N/A"}},{"$f":"LEFT(Template!F257,3)","v":""},{"$f":"VLOOKUP(K245,'Structure mapping'!AC:AG,5,0)","v":{"$error":"#N/A"}},{"$f":"LEFT(Template!G257,10)","v":""},{"$f":"VLOOKUP(M245,'Structure mapping'!AH:AL,5,0)","v":{"$error":"#N/A"}},{"$f":"LEFT(Template!H257,6)","v":""},{"$f":"VLOOKUP(O245,'Structure mapping'!AM:AQ,5,0)","v":{"$error":"#N/A"}},null,null,null,null,{"$f":"IF(Template!O257=\"\",\"\",Template!O257)","v":""},"Aug-24 pending entries",{"$f":"TEXT(Template!$B$9,\"mm/dd/yyy\")","v":"08/01/2024"},null,null,null,null,{"$f":"IF(Template!M257>0,Template!M257,-Template!N257)","v":0},null,null,null,{"$f":"VLOOKUP(G245,'Account mapping'!A:D,4,0)","v":{"$error":"#N/A"}}]
[{"$f":"LEFT(Template!A258,4)","v":""},{"$f":"VLOOKUP(A246,'Structure mapping'!K:V,7,0)","v":{"$error":"#N/A"}},{"$f":"LEFT(Template!B258,5)","v":""},{"$f":"VLOOKUP(C246,'Structure mapping'!F:J,5,0)","v":{"$error":"#N/A"}},{"$f":"LEFT(Template!C258,7)","v":""},{"$f":"VLOOKUP(E246,'Structure mapping'!A:E,5,0)","v":{"$error":"#N/A"}},{"$f":"LEFT(Template!D258,6)","v":""},{"$f":"VLOOKUP(G246,'Account mapping'!A:E,5,0)","v":{"$error":"#N/A"}},{"$f":"LEFT(Template!E258,2)","v":""},{"$f":"VLOOKUP(I246,'Structure mapping'!X:AB,5,0)","v":{"$error":"#N/A"}},{"$f":"LEFT(Template!F258,3)","v":""},{"$f":"VLOOKUP(K246,'Structure mapping'!AC:AG,5,0)","v":{"$error":"#N/A"}},{"$f":"LEFT(Template!G258,10)","v":""},{"$f":"VLOOKUP(M246,'Structure mapping'!AH:AL,5,0)","v":{"$error":"#N/A"}},{"$f":"LEFT(Template!H258,6)","v":""},{"$f":"VLOOKUP(O246,'Structure mapping'!AM:AQ,5,0)","v":{"$error":"#N/A"}},null,null,null,null,{"$f":"IF(Template!O258=\"\",\"\",Template!O258)","v":""},"Aug-24 pending entries",{"$f":"TEXT(Template!$B$9,\"mm/dd/yyy\")","v":"08/01/2024"},null,null,null,null,{"$f":"IF(Template!M258>0,Template!M258,-Template!N258)","v":0},null,null,null,{"$f":"VLOOKUP(G246,'Account mapping'!A:D,4,0)","v":{"$error":"#N/A"}}]
[{"$f":"LEFT(Template!A259,4)","v":""},{"$f":"VLOOKUP(A247,'Structure mapping'!K:V,7,0)","v":{"$error":"#N/A"}},{"$f":"LEFT(Template!B259,5)","v":""},{"$f":"VLOOKUP(C247,'Structure mapping'!F:J,5,0)","v":{"$error":"#N/A"}},{"$f":"LEFT(Template!C259,7)","v":""},{"$f":"VLOOKUP(E247,'Structure mapping'!A:E,5,0)","v":{"$error":"#N/A"}},{"$f":"LEFT(Template!D259,6)","v":""},{"$f":"VLOOKUP(G247,'Account mapping'!A:E,5,0)","v":{"$error":"#N/A"}},{"$f":"LEFT(Template!E259,2)","v":""},{"$f":"VLOOKUP(I247,'Structure mapping'!X:AB,5,0)","v":{"$error":"#N/A"}},{"$f":"LEFT(Template!F259,3)","v":""},{"$f":"VLOOKUP(K247,'Structure mapping'!AC:AG,5,0)","v":{"$error":"#N/A"}},{"$f":"LEFT(Template!G259,10)","v":""},{"$f":"VLOOKUP(M247,'Structure mapping'!AH:AL,5,0)","v":{"$error":"#N/A"}},{"$f":"LEFT(Template!H259,6)","v":""},{"$f":"VLOOKUP(O247,'Structure mapping'!AM:AQ,5,0)","v":{"$error":"#N/A"}},null,null,null,null,{"$f":"IF(Template!O259=\"\",\"\",Template!O259)","v":""},"Aug-24 pending entries",{"$f":"TEXT(Template!$B$9,\"mm/dd/yyy\")","v":"08/01/2024"},null,null,null,null,{"$f":"IF(Template!M259>0,Template!M259,-Template!N259)","v":0},null,null,null,{"$f":"VLOOKUP(G247,'Account mapping'!A:D,4,0)","v":{"$error":"#N/A"}}]
[{"$f":"LEFT(Template!A260,4)","v":""},{"$f":"VLOOKUP(A248,'Structure mapping'!K:V,7,0)","v":{"$error":"#N/A"}},{"$f":"LEFT(Template!B260,5)","v":""},{"$f":"VLOOKUP(C248,'Structure mapping'!F:J,5,0)","v":{"$error":"#N/A"}},{"$f":"LEFT(Template!C260,7)","v":""},{"$f":"VLOOKUP(E248,'Structure mapping'!A:E,5,0)","v":{"$error":"#N/A"}},{"$f":"LEFT(Template!D260,6)","v":""},{"$f":"VLOOKUP(G248,'Account mapping'!A:E,5,0)","v":{"$error":"#N/A"}},{"$f":"LEFT(Template!E260,2)","v":""},{"$f":"VLOOKUP(I248,'Structure mapping'!X:AB,5,0)","v":{"$error":"#N/A"}},{"$f":"LEFT(Template!F260,3)","v":""},{"$f":"VLOOKUP(K248,'Structure mapping'!AC:AG,5,0)","v":{"$error":"#N/A"}},{"$f":"LEFT(Template!G260,10)","v":""},{"$f":"VLOOKUP(M248,'Structure mapping'!AH:AL,5,0)","v":{"$error":"#N/A"}},{"$f":"LEFT(Template!H260,6)","v":""},{"$f":"VLOOKUP(O248,'Structure mapping'!AM:AQ,5,0)","v":{"$error":"#N/A"}},null,null,null,null,{"$f":"IF(Template!O260=\"\",\"\",Template!O260)","v":""},"Aug-24 pending entries",{"$f":"TEXT(Template!$B$9,\"mm/dd/yyy\")","v":"08/01/2024"},null,null,null,null,{"$f":"IF(Template!M260>0,Template!M260,-Template!N260)","v":0},null,null,null,{"$f":"VLOOKUP(G248,'Account mapping'!A:D,4,0)","v":{"$error":"#N/A"}}]
[{"$f":"LEFT(Template!A261,4)","v":""},{"$f":"VLOOKUP(A249,'Structure mapping'!K:V,7,0)","v":{"$error":"#N/A"}},{"$f":"LEFT(Template!B261,5)","v":""},{"$f":"VLOOKUP(C249,'Structure mapping'!F:J,5,0)","v":{"$error":"#N/A"}},{"$f":"LEFT(Template!C261,7)","v":""},{"$f":"VLOOKUP(E249,'Structure mapping'!A:E,5,0)","v":{"$error":"#N/A"}},{"$f":"LEFT(Template!D261,6)","v":""},{"$f":"VLOOKUP(G249,'Account mapping'!A:E,5,0)","v":{"$error":"#N/A"}},{"$f":"LEFT(Template!E261,2)","v":""},{"$f":"VLOOKUP(I249,'Structure mapping'!X:AB,5,0)","v":{"$error":"#N/A"}},{"$f":"LEFT(Template!F261,3)","v":""},{"$f":"VLOOKUP(K249,'Structure mapping'!AC:AG,5,0)","v":{"$error":"#N/A"}},{"$f":"LEFT(Template!G261,10)","v":""},{"$f":"VLOOKUP(M249,'Structure mapping'!AH:AL,5,0)","v":{"$error":"#N/A"}},{"$f":"LEFT(Template!H261,6)","v":""},{"$f":"VLOOKUP(O249,'Structure mapping'!AM:AQ,5,0)","v":{"$error":"#N/A"}},null,null,null,null,{"$f":"IF(Template!O261=\"\",\"\",Template!O261)","v":""},"Aug-24 pending entries",{"$f":"TEXT(Template!$B$9,\"mm/dd/yyy\")","v":"08/01/2024"},null,null,null,null,{"$f":"IF(Template!M261>0,Template!M261,-Template!N261)","v":0},null,null,null,{"$f":"VLOOKUP(G249,'Account mapping'!A:D,4,0)","v":{"$error":"#N/A"}}]
[{"$f":"LEFT(Template!A262,4)","v":""},{"$f":"VLOOKUP(A250,'Structure mapping'!K:V,7,0)","v":{"$error":"#N/A"}},{"$f":"LEFT(Template!B262,5)","v":""},{"$f":"VLOOKUP(C250,'Structure mapping'!F:J,5,0)","v":{"$error":"#N/A"}},{"$f":"LEFT(Template!C262,7)","v":""},{"$f":"VLOOKUP(E250,'Structure mapping'!A:E,5,0)","v":{"$error":"#N/A"}},{"$f":"LEFT(Template!D262,6)","v":""},{"$f":"VLOOKUP(G250,'Account mapping'!A:E,5,0)","v":{"$error":"#N/A"}},{"$f":"LEFT(Template!E262,2)","v":""},{"$f":"VLOOKUP(I250,'Structure mapping'!X:AB,5,0)","v":{"$error":"#N/A"}},{"$f":"LEFT(Template!F262,3)","v":""},{"$f":"VLOOKUP(K250,'Structure mapping'!AC:AG,5,0)","v":{"$error":"#N/A"}},{"$f":"LEFT(Template!G262,10)","v":""},{"$f":"VLOOKUP(M250,'Structure mapping'!AH:AL,5,0)","v":{"$error":"#N/A"}},{"$f":"LEFT(Template!H262,6)","v":""},{"$f":"VLOOKUP(O250,'Structure mapping'!AM:AQ,5,0)","v":{"$error":"#N/A"}},null,null,null,null,{"$f":"IF(Template!O262=\"\",\"\",Template!O262)","v":""},"Aug-24 pending entries",{"$f":"TEXT(Template!$B$9,\"mm/dd/yyy\")","v":"08/01/2024"},null,null,null,null,{"$f":"IF(Template!M262>0,Template!M262,-Template!N262)","v":0},null,null,null,{"$f":"VLOOKUP(G250,'Account mapping'!A:D,4,0)","v":{"$error":"#N/A"}}]
[{"$f":"LEFT(Template!A263,4)","v":""},{"$f":"VLOOKUP(A251,'Structure mapping'!K:V,7,0)","v":{"$error":"#N/A"}},{"$f":"LEFT(Template!B263,5)","v":""},{"$f":"VLOOKUP(C251,'Structure mapping'!F:J,5,0)","v":{"$error":"#N/A"}},{"$f":"LEFT(Template!C263,7)","v":""},{"$f":"VLOOKUP(E251,'Structure mapping'!A:E,5,0)","v":{"$error":"#N/A"}},{"$f":"LEFT(Template!D263,6)","v":""},{"$f":"VLOOKUP(G251,'Account mapping'!A:E,5,0)","v":{"$error":"#N/A"}},{"$f":"LEFT(Template!E263,2)","v":""},{"$f":"VLOOKUP(I251,'Structure mapping'!X:AB,5,0)","v":{"$error":"#N/A"}},{"$f":"LEFT(Template!F263,3)","v":""},{"$f":"VLOOKUP(K251,'Structure mapping'!AC:AG,5,0)","v":{"$error":"#N/A"}},{"$f":"LEFT(Template!G263,10)","v":""},{"$f":"VLOOKUP(M251,'Structure mapping'!AH:AL,5,0)","v":{"$error":"#N/A"}},{"$f":"LEFT(Template!H263,6)","v":""},{"$f":"VLOOKUP(O251,'Structure mapping'!AM:AQ,5,0)","v":{"$error":"#N/A"}},null,null,null,null,{"$f":"IF(Template!O263=\"\",\"\",Template!O263)","v":""},"Aug-24 pending entries",{"$f":"TEXT(Template!$B$9,\"mm/dd/yyy\")","v":"08/01/2024"},null,null,null,null,{"$f":"IF(Template!M263>0,Template!M263,-Template!N263)","v":0},null,null,null,{"$f":"VLOOKUP(G251,'Account mapping'!A:D,4,0)","v":{"$error":"#N/A"}}]
[{"$f":"LEFT(Template!A264,4)","v":""},{"$f":"VLOOKUP(A252,'Structure mapping'!K:V,7,0)","v":{"$error":"#N/A"}},{"$f":"LEFT(Template!B264,5)","v":""},{"$f":"VLOOKUP(C252,'Structure mapping'!F:J,5,0)","v":{"$error":"#N/A"}},{"$f":"LEFT(Template!C264,7)","v":""},{"$f":"VLOOKUP(E252,'Structure mapping'!A:E,5,0)","v":{"$error":"#N/A"}},{"$f":"LEFT(Template!D264,6)","v":""},{"$f":"VLOOKUP(G252,'Account mapping'!A:E,5,0)","v":{"$error":"#N/A"}},{"$f":"LEFT(Template!E264,2)","v":""},{"$f":"VLOOKUP(I252,'Structure mapping'!X:AB,5,0)","v":{"$error":"#N/A"}},{"$f":"LEFT(Template!F264,3)","v":""},{"$f":"VLOOKUP(K252,'Structure mapping'!AC:AG,5,0)","v":{"$error":"#N/A"}},{"$f":"LEFT(Template!G264,10)","v":""},{"$f":"VLOOKUP(M252,'Structure mapping'!AH:AL,5,0)","v":{"$error":"#N/A"}},{"$f":"LEFT(Template!H264,6)","v":""},{"$f":"VLOOKUP(O252,'Structure mapping'!AM:AQ,5,0)","v":{"$error":"#N/A"}},null,null,null,null,{"$f":"IF(Template!O264=\"\",\"\",Template!O264)","v":""},"Aug-24 pending entries",{"$f":"TEXT(Template!$B$9,\"mm/dd/yyy\")","v":"08/01/2024"},null,null,null,null,{"$f":"IF(Template!M264>0,Template!M264,-Template!N264)","v":0},null,null,null,{"$f":"VLOOKUP(G252,'Account mapping'!A:D,4,0)","v":{"$error":"#N/A"}}]
[{"$f":"LEFT(Template!A265,4)","v":""},{"$f":"VLOOKUP(A253,'Structure mapping'!K:V,7,0)","v":{"$error":"#N/A"}},{"$f":"LEFT(Template!B265,5)","v":""},{"$f":"VLOOKUP(C253,'Structure mapping'!F:J,5,0)","v":{"$error":"#N/A"}},{"$f":"LEFT(Template!C265,7)","v":""},{"$f":"VLOOKUP(E253,'Structure mapping'!A:E,5,0)","v":{"$error":"#N/A"}},{"$f":"LEFT(Template!D265,6)","v":""},{"$f":"VLOOKUP(G253,'Account mapping'!A:E,5,0)","v":{"$error":"#N/A"}},{"$f":"LEFT(Template!E265,2)","v":""},{"$f":"VLOOKUP(I253,'Structure mapping'!X:AB,5,0)","v":{"$error":"#N/A"}},{"$f":"LEFT(Template!F265,3)","v":""},{"$f":"VLOOKUP(K253,'Structure mapping'!AC:AG,5,0)","v":{"$error":"#N/A"}},{"$f":"LEFT(Template!G265,10)","v":""},{"$f":"VLOOKUP(M253,'Structure mapping'!AH:AL,5,0)","v":{"$error":"#N/A"}},{"$f":"LEFT(Template!H265,6)","v":""},{"$f":"VLOOKUP(O253,'Structure mapping'!AM:AQ,5,0)","v":{"$error":"#N/A"}},null,null,null,null,{"$f":"IF(Template!O265=\"\",\"\",Template!O265)","v":""},"Aug-24 pending entries",{"$f":"TEXT(Template!$B$9,\"mm/dd/yyy\")","v":"08/01/2024"},null,null,null,null,{"$f":"IF(Template!M265>0,Template!M265,-Template!N265)","v":0},null,null,null,{"$f":"VLOOKUP(G253,'Account mapping'!A:D,4,0)","v":{"$error":"#N/A"}}]
[{"$f":"LEFT(Template!A266,4)","v":""},{"$f":"VLOOKUP(A254,'Structure mapping'!K:V,7,0)","v":{"$error":"#N/A"}},{"$f":"LEFT(Template!B266,5)","v":""},{"$f":"VLOOKUP(C254,'Structure mapping'!F:J,5,0)","v":{"$error":"#N/A"}},{"$f":"LEFT(Template!C266,7)","v":""},{"$f":"VLOOKUP(E254,'Structure mapping'!A:E,5,0)","v":{"$error":"#N/A"}},{"$f":"LEFT(Template!D266,6)","v":""},{"$f":"VLOOKUP(G254,'Account mapping'!A:E,5,0)","v":{"$error":"#N/A"}},{"$f":"LEFT(Template!E266,2)","v":""},{"$f":"VLOOKUP(I254,'Structure mapping'!X:AB,5,0)","v":{"$error":"#N/A"}},{"$f":"LEFT(Template!F266,3)","v":""},{"$f":"VLOOKUP(K254,'Structure mapping'!AC:AG,5,0)","v":{"$error":"#N/A"}},{"$f":"LEFT(Template!G266,10)","v":""},{"$f":"VLOOKUP(M254,'Structure mapping'!AH:AL,5,0)","v":{"$error":"#N/A"}},{"$f":"LEFT(Template!H266,6)","v":""},{"$f":"VLOOKUP(O254,'Structure mapping'!AM:AQ,5,0)","v":{"$error":"#N/A"}},null,null,null,null,{"$f":"IF(Template!O266=\"\",\"\",Template!O266)","v":""},"Aug-24 pending entries",{"$f":"TEXT(Template!$B$9,\"mm/dd/yyy\")","v":"08/01/2024"},null,null,null,null,{"$f":"IF(Template!M266>0,Template!M266,-Template!N266)","v":0},null,null,null,{"$f":"VLOOKUP(G254,'Account mapping'!A:D,4,0)","v":{"$error":"#N/A"}}]
[{"$f":"LEFT(Template!A267,4)","v":""},{"$f":"VLOOKUP(A255,'Structure mapping'!K:V,7,0)","v":{"$error":"#N/A"}},{"$f":"LEFT(Template!B267,5)","v":""},{"$f":"VLOOKUP(C255,'Structure mapping'!F:J,5,0)","v":{"$error":"#N/A"}},{"$f":"LEFT(Template!C267,7)","v":""},{"$f":"VLOOKUP(E255,'Structure mapping'!A:E,5,0)","v":{"$error":"#N/A"}},{"$f":"LEFT(Template!D267,6)","v":""},{"$f":"VLOOKUP(G255,'Account mapping'!A:E,5,0)","v":{"$error":"#N/A"}},{"$f":"LEFT(Template!E267,2)","v":""},{"$f":"VLOOKUP(I255,'Structure mapping'!X:AB,5,0)","v":{"$error":"#N/A"}},{"$f":"LEFT(Template!F267,3)","v":""},{"$f":"VLOOKUP(K255,'Structure mapping'!AC:AG,5,0)","v":{"$error":"#N/A"}},{"$f":"LEFT(Template!G267,10)","v":""},{"$f":"VLOOKUP(M255,'Structure mapping'!AH:AL,5,0)","v":{"$error":"#N/A"}},{"$f":"LEFT(Template!H267,6)","v":""},{"$f":"VLOOKUP(O255,'Structure mapping'!AM:AQ,5,0)","v":{"$error":"#N/A"}},null,null,null,null,{"$f":"IF(Template!O267=\"\",\"\",Template!O267)","v":""},"Aug-24 pending entries",{"$f":"TEXT(Template!$B$9,\"mm/dd/yyy\")","v":"08/01/2024"},null,null,null,null,{"$f":"IF(Template!M267>0,Template!M267,-Template!N267)","v":0},null,null,null,{"$f":"VLOOKUP(G255,'Account mapping'!A:D,4,0)","v":{"$error":"#N/A"}}]
[{"$f":"LEFT(Template!A268,4)","v":""},{"$f":"VLOOKUP(A256,'Structure mapping'!K:V,7,0)","v":{"$error":"#N/A"}},{"$f":"LEFT(Template!B268,5)","v":""},{"$f":"VLOOKUP(C256,'Structure mapping'!F:J,5,0)","v":{"$error":"#N/A"}},{"$f":"LEFT(Template!C268,7)","v":""},{"$f":"VLOOKUP(E256,'Structure mapping'!A:E,5,0)","v":{"$error":"#N/A"}},{"$f":"LEFT(Template!D268,6)","v":""},{"$f":"VLOOKUP(G256,'Account mapping'!A:E,5,0)","v":{"$error":"#N/A"}},{"$f":"LEFT(Template!E268,2)","v":""},{"$f":"VLOOKUP(I256,'Structure mapping'!X:AB,5,0)","v":{"$error":"#N/A"}},{"$f":"LEFT(Template!F268,3)","v":""},{"$f":"VLOOKUP(K256,'Structure mapping'!AC:AG,5,0)","v":{"$error":"#N/A"}},{"$f":"LEFT(Template!G268,10)","v":""},{"$f":"VLOOKUP(M256,'Structure mapping'!AH:AL,5,0)","v":{"$error":"#N/A"}},{"$f":"LEFT(Template!H268,6)","v":""},{"$f":"VLOOKUP(O256,'Structure mapping'!AM:AQ,5,0)","v":{"$error":"#N/A"}},null,null,null,null,{"$f":"IF(Template!O268=\"\",\"\",Template!O268)","v":""},"Aug-24 pending entries",{"$f":"TEXT(Template!$B$9,\"mm/dd/yyy\")","v":"08/01/2024"},null,null,null,null,{"$f":"IF(Template!M268>0,Template!M268,-Template!N268)","v":0},null,null,null,{"$f":"VLOOKUP(G256,'Account mapping'!A:D,4,0)","v":{"$error":"#N/A"}}]
[{"$f":"LEFT(Template!A269,4)","v":""},{"$f":"VLOOKUP(A257,'Structure mapping'!K:V,7,0)","v":{"$error":"#N/A"}},{"$f":"LEFT(Template!B269,5)","v":""},{"$f":"VLOOKUP(C257,'Structure mapping'!F:J,5,0)","v":{"$error":"#N/A"}},{"$f":"LEFT(Template!C269,7)","v":""},{"$f":"VLOOKUP(E257,'Structure mapping'!A:E,5,0)","v":{"$error":"#N/A"}},{"$f":"LEFT(Template!D269,6)","v":""},{"$f":"VLOOKUP(G257,'Account mapping'!A:E,5,0)","v":{"$error":"#N/A"}},{"$f":"LEFT(Template!E269,2)","v":""},{"$f":"VLOOKUP(I257,'Structure mapping'!X:AB,5,0)","v":{"$error":"#N/A"}},{"$f":"LEFT(Template!F269,3)","v":""},{"$f":"VLOOKUP(K257,'Structure mapping'!AC:AG,5,0)","v":{"$error":"#N/A"}},{"$f":"LEFT(Template!G269,10)","v":""},{"$f":"VLOOKUP(M257,'Structure mapping'!AH:AL,5,0)","v":{"$error":"#N/A"}},{"$f":"LEFT(Template!H269,6)","v":""},{"$f":"VLOOKUP(O257,'Structure mapping'!AM:AQ,5,0)","v":{"$error":"#N/A"}},null,null,null,null,{"$f":"IF(Template!O269=\"\",\"\",Template!O269)","v":""},"Aug-24 pending entries",{"$f":"TEXT(Template!$B$9,\"mm/dd/yyy\")","v":"08/01/2024"},null,null,null,null,{"$f":"IF(Template!M269>0,Template!M269,-Template!N269)","v":0},null,null,null,{"$f":"VLOOKUP(G257,'Account mapping'!A:D,4,0)","v":{"$error":"#N/A"}}]
[{"$f":"LEFT(Template!A270,4)","v":""},{"$f":"VLOOKUP(A258,'Structure mapping'!K:V,7,0)","v":{"$error":"#N/A"}},{"$f":"LEFT(Template!B270,5)","v":""},{"$f":"VLOOKUP(C258,'Structure mapping'!F:J,5,0)","v":{"$error":"#N/A"}},{"$f":"LEFT(Template!C270,7)","v":""},{"$f":"VLOOKUP(E258,'Structure mapping'!A:E,5,0)","v":{"$error":"#N/A"}},{"$f":"LEFT(Template!D270,6)","v":""},{"$f":"VLOOKUP(G258,'Account mapping'!A:E,5,0)","v":{"$error":"#N/A"}},{"$f":"LEFT(Template!E270,2)","v":""},{"$f":"VLOOKUP(I258,'Structure mapping'!X:AB,5,0)","v":{"$error":"#N/A"}},{"$f":"LEFT(Template!F270,3)","v":""},{"$f":"VLOOKUP(K258,'Structure mapping'!AC:AG,5,0)","v":{"$error":"#N/A"}},{"$f":"LEFT(Template!G270,10)","v":""},{"$f":"VLOOKUP(M258,'Structure mapping'!AH:AL,5,0)","v":{"$error":"#N/A"}},{"$f":"LEFT(Template!H270,6)","v":""},{"$f":"VLOOKUP(O258,'Structure mapping'!AM:AQ,5,0)","v":{"$error":"#N/A"}},null,null,null,null,{"$f":"IF(Template!O270=\"\",\"\",Template!O270)","v":""},"Aug-24 pending entries",{"$f":"TEXT(Template!$B$9,\"mm/dd/yyy\")","v":"08/01/2024"},null,null,null,null,{"$f":"IF(Template!M270>0,Template!M270,-Template!N270)","v":0},null,null,null,{"$f":"VLOOKUP(G258,'Account mapping'!A:D,4,0)","v":{"$error":"#N/A"}}]
[{"$f":"LEFT(Template!A271,4)","v":""},{"$f":"VLOOKUP(A259,'Structure mapping'!K:V,7,0)","v":{"$error":"#N/A"}},{"$f":"LEFT(Template!B271,5)","v":""},{"$f":"VLOOKUP(C259,'Structure mapping'!F:J,5,0)","v":{"$error":"#N/A"}},{"$f":"LEFT(Template!C271,7)","v":""},{"$f":"VLOOKUP(E259,'Structure mapping'!A:E,5,0)","v":{"$error":"#N/A"}},{"$f":"LEFT(Template!D271,6)","v":""},{"$f":"VLOOKUP(G259,'Account mapping'!A:E,5,0)","v":{"$error":"#N/A"}},{"$f":"LEFT(Template!E271,2)","v":""},{"$f":"VLOOKUP(I259,'Structure mapping'!X:AB,5,0)","v":{"$error":"#N/A"}},{"$f":"LEFT(Template!F271,3)","v":""},{"$f":"VLOOKUP(K259,'Structure mapping'!AC:AG,5,0)","v":{"$error":"#N/A"}},{"$f":"LEFT(Template!G271,10)","v":""},{"$f":"VLOOKUP(M259,'Structure mapping'!AH:AL,5,0)","v":{"$error":"#N/A"}},{"$f":"LEFT(Template!H271,6)","v":""},{"$f":"VLOOKUP(O259,'Structure mapping'!AM:AQ,5,0)","v":{"$error":"#N/A"}},null,null,null,null,{"$f":"IF(Template!O271=\"\",\"\",Template!O271)","v":""},{"$f":"TEXT(W259,\"mmm-yy\")&\" pending entries\"","v":"Aug-24 pending entries"},{"$f":"TEXT(Template!$B$9,\"mm/dd/yyy\")","v":"08/01/2024"},null,null,null,null,{"$f":"IF(Template!M271>0,Template!M271,-Template!N271)","v":0},null,null,null,{"$f":"VLOOKUP(G259,'Account mapping'!A:D,4,0)","v":{"$error":"#N/A"}}]
[{"$f":"LEFT(Template!A272,4)","v":""},{"$f":"VLOOKUP(A260,'Structure mapping'!K:V,7,0)","v":{"$error":"#N/A"}},{"$f":"LEFT(Template!B272,5)","v":""},{"$f":"VLOOKUP(C260,'Structure mapping'!F:J,5,0)","v":{"$error":"#N/A"}},{"$f":"LEFT(Template!C272,7)","v":""},{"$f":"VLOOKUP(E260,'Structure mapping'!A:E,5,0)","v":{"$error":"#N/A"}},{"$f":"LEFT(Template!D272,6)","v":""},{"$f":"VLOOKUP(G260,'Account mapping'!A:E,5,0)","v":{"$error":"#N/A"}},{"$f":"LEFT(Template!E272,2)","v":""},{"$f":"VLOOKUP(I260,'Structure mapping'!X:AB,5,0)","v":{"$error":"#N/A"}},{"$f":"LEFT(Template!F272,3)","v":""},{"$f":"VLOOKUP(K260,'Structure mapping'!AC:AG,5,0)","v":{"$error":"#N/A"}},{"$f":"LEFT(Template!G272,10)","v":""},{"$f":"VLOOKUP(M260,'Structure mapping'!AH:AL,5,0)","v":{"$error":"#N/A"}},{"$f":"LEFT(Template!H272,6)","v":""},{"$f":"VLOOKUP(O260,'Structure mapping'!AM:AQ,5,0)","v":{"$error":"#N/A"}},null,null,null,null,{"$f":"IF(Template!O272=\"\",\"\",Template!O272)","v":""},"Aug-24 pending entries",{"$f":"TEXT(Template!$B$9,\"mm/dd/yyy\")","v":"08/01/2024"},null,null,null,null,{"$f":"IF(Template!M272>0,Template!M272,-Template!N272)","v":0},null,null,null,{"$f":"VLOOKUP(G260,'Account mapping'!A:D,4,0)","v":{"$error":"#N/A"}}]
[{"$f":"LEFT(Template!A273,4)","v":""},{"$f":"VLOOKUP(A261,'Structure mapping'!K:V,7,0)","v":{"$error":"#N/A"}},{"$f":"LEFT(Template!B273,5)","v":""},{"$f":"VLOOKUP(C261,'Structure mapping'!F:J,5,0)","v":{"$error":"#N/A"}},{"$f":"LEFT(Template!C273,7)","v":""},{"$f":"VLOOKUP(E261,'Structure mapping'!A:E,5,0)","v":{"$error":"#N/A"}},{"$f":"LEFT(Template!D273,6)","v":""},{"$f":"VLOOKUP(G261,'Account mapping'!A:E,5,0)","v":{"$error":"#N/A"}},{"$f":"LEFT(Template!E273,2)","v":""},{"$f":"VLOOKUP(I261,'Structure mapping'!X:AB,5,0)","v":{"$error":"#N/A"}},{"$f":"LEFT(Template!F273,3)","v":""},{"$f":"VLOOKUP(K261,'Structure mapping'!AC:AG,5,0)","v":{"$error":"#N/A"}},{"$f":"LEFT(Template!G273,10)","v":""},{"$f":"VLOOKUP(M261,'Structure mapping'!AH:AL,5,0)","v":{"$error":"#N/A"}},{"$f":"LEFT(Template!H273,6)","v":""},{"$f":"VLOOKUP(O261,'Structure mapping'!AM:AQ,5,0)","v":{"$error":"#N/A"}},null,null,null,null,{"$f":"IF(Template!O273=\"\",\"\",Template!O273)","v":""},"Aug-24 pending entries",{"$f":"TEXT(Template!$B$9,\"mm/dd/yyy\")","v":"08/01/2024"},null,null,null,null,{"$f":"IF(Template!M273>0,Template!M273,-Template!N273)","v":0},null,null,null,{"$f":"VLOOKUP(G261,'Account mapping'!A:D,4,0)","v":{"$error":"#N/A"}}]
[{"$f":"LEFT(Template!A274,4)","v":""},{"$f":"VLOOKUP(A262,'Structure mapping'!K:V,7,0)","v":{"$error":"#N/A"}},{"$f":"LEFT(Template!B274,5)","v":""},{"$f":"VLOOKUP(C262,'Structure mapping'!F:J,5,0)","v":{"$error":"#N/A"}},{"$f":"LEFT(Template!C274,7)","v":""},{"$f":"VLOOKUP(E262,'Structure mapping'!A:E,5,0)","v":{"$error":"#N/A"}},{"$f":"LEFT(Template!D274,6)","v":""},{"$f":"VLOOKUP(G262,'Account mapping'!A:E,5,0)","v":{"$error":"#N/A"}},{"$f":"LEFT(Template!E274,2)","v":""},{"$f":"VLOOKUP(I262,'Structure mapping'!X:AB,5,0)","v":{"$error":"#N/A"}},{"$f":"LEFT(Template!F274,3)","v":""},{"$f":"VLOOKUP(K262,'Structure mapping'!AC:AG,5,0)","v":{"$error":"#N/A"}},{"$f":"LEFT(Template!G274,10)","v":""},{"$f":"VLOOKUP(M262,'Structure mapping'!AH:AL,5,0)","v":{"$error":"#N/A"}},{"$f":"LEFT(Template!H274,6)","v":""},{"$f":"VLOOKUP(O262,'Structure mapping'!AM:AQ,5,0)","v":{"$error":"#N/A"}},null,null,null,null,{"$f":"IF(Template!O274=\"\",\"\",Template!O274)","v":""},"Aug-24 pending entries",{"$f":"TEXT(Template!$B$9,\"mm/dd/yyy\")","v":"08/01/2024"},null,null,null,null,{"$f":"IF(Template!M274>0,Template!M274,-Template!N274)","v":0},null,null,null,{"$f":"VLOOKUP(G262,'Account mapping'!A:D,4,0)","v":{"$error":"#N/A"}}]
[{"$f":"LEFT(Template!A275,4)","v":""},{"$f":"VLOOKUP(A263,'Structure mapping'!K:V,7,0)","v":{"$error":"#N/A"}},{"$f":"LEFT(Template!B275,5)","v":""},{"$f":"VLOOKUP(C263,'Structure mapping'!F:J,5,0)","v":{"$error":"#N/A"}},{"$f":"LEFT(Template!C275,7)","v":""},{"$f":"VLOOKUP(E263,'Structure mapping'!A:E,5,0)","v":{"$error":"#N/A"}},{"$f":"LEFT(Template!D275,6)","v":""},{"$f":"VLOOKUP(G263,'Account mapping'!A:E,5,0)","v":{"$error":"#N/A"}},{"$f":"LEFT(Template!E275,2)","v":""},{"$f":"VLOOKUP(I263,'Structure mapping'!X:AB,5,0)","v":{"$error":"#N/A"}},{"$f":"LEFT(Template!F275,3)","v":""},{"$f":"VLOOKUP(K263,'Structure mapping'!AC:AG,5,0)","v":{"$error":"#N/A"}},{"$f":"LEFT(Template!G275,10)","v":""},{"$f":"VLOOKUP(M263,'Structure mapping'!AH:AL,5,0)","v":{"$error":"#N/A"}},{"$f":"LEFT(Template!H275,6)","v":""},{"$f":"VLOOKUP(O263,'Structure mapping'!AM:AQ,5,0)","v":{"$error":"#N/A"}},null,null,null,null,{"$f":"IF(Template!O275=\"\",\"\",Template!O275)","v":""},"Aug-24 pending entries",{"$f":"TEXT(Template!$B$9,\"mm/dd/yyy\")","v":"08/01/2024"},null,null,null,null,{"$f":"IF(Template!M275>0,Template!M275,-Template!N275)","v":0},null,null,null,{"$f":"VLOOKUP(G263,'Account mapping'!A:D,4,0)","v":{"$error":"#N/A"}}]
[{"$f":"LEFT(Template!A276,4)","v":""},{"$f":"VLOOKUP(A264,'Structure mapping'!K:V,7,0)","v":{"$error":"#N/A"}},{"$f":"LEFT(Template!B276,5)","v":""},{"$f":"VLOOKUP(C264,'Structure mapping'!F:J,5,0)","v":{"$error":"#N/A"}},{"$f":"LEFT(Template!C276,7)","v":""},{"$f":"VLOOKUP(E264,'Structure mapping'!A:E,5,0)","v":{"$error":"#N/A"}},{"$f":"LEFT(Template!D276,6)","v":""},{"$f":"VLOOKUP(G264,'Account mapping'!A:E,5,0)","v":{"$error":"#N/A"}},{"$f":"LEFT(Template!E276,2)","v":""},{"$f":"VLOOKUP(I264,'Structure mapping'!X:AB,5,0)","v":{"$error":"#N/A"}},{"$f":"LEFT(Template!F276,3)","v":""},{"$f":"VLOOKUP(K264,'Structure mapping'!AC:AG,5,0)","v":{"$error":"#N/A"}},{"$f":"LEFT(Template!G276,10)","v":""},{"$f":"VLOOKUP(M264,'Structure mapping'!AH:AL,5,0)","v":{"$error":"#N/A"}},{"$f":"LEFT(Template!H276,6)","v":""},{"$f":"VLOOKUP(O264,'Structure mapping'!AM:AQ,5,0)","v":{"$error":"#N/A"}},null,null,null,null,{"$f":"IF(Template!O276=\"\",\"\",Template!O276)","v":""},"Aug-24 pending entries",{"$f":"TEXT(Template!$B$9,\"mm/dd/yyy\")","v":"08/01/2024"},null,null,null,null,{"$f":"IF(Template!M276>0,Template!M276,-Template!N276)","v":0},null,null,null,{"$f":"VLOOKUP(G264,'Account mapping'!A:D,4,0)","v":{"$error":"#N/A"}}]
[{"$f":"LEFT(Template!A277,4)","v":""},{"$f":"VLOOKUP(A265,'Structure mapping'!K:V,7,0)","v":{"$error":"#N/A"}},{"$f":"LEFT(Template!B277,5)","v":""},{"$f":"VLOOKUP(C265,'Structure mapping'!F:J,5,0)","v":{"$error":"#N/A"}},{"$f":"LEFT(Template!C277,7)","v":""},{"$f":"VLOOKUP(E265,'Structure mapping'!A:E,5,0)","v":{"$error":"#N/A"}},{"$f":"LEFT(Template!D277,6)","v":""},{"$f":"VLOOKUP(G265,'Account mapping'!A:E,5,0)","v":{"$error":"#N/A"}},{"$f":"LEFT(Template!E277,2)","v":""},{"$f":"VLOOKUP(I265,'Structure mapping'!X:AB,5,0)","v":{"$error":"#N/A"}},{"$f":"LEFT(Template!F277,3)","v":""},{"$f":"VLOOKUP(K265,'Structure mapping'!AC:AG,5,0)","v":{"$error":"#N/A"}},{"$f":"LEFT(Template!G277,10)","v":""},{"$f":"VLOOKUP(M265,'Structure mapping'!AH:AL,5,0)","v":{"$error":"#N/A"}},{"$f":"LEFT(Template!H277,6)","v":""},{"$f":"VLOOKUP(O265,'Structure mapping'!AM:AQ,5,0)","v":{"$error":"#N/A"}},null,null,null,null,{"$f":"IF(Template!O277=\"\",\"\",Template!O277)","v":""},"Aug-24 pending entries",{"$f":"TEXT(Template!$B$9,\"mm/dd/yyy\")","v":"08/01/2024"},null,null,null,null,{"$f":"IF(Template!M277>0,Template!M277,-Template!N277)","v":0},null,null,null,{"$f":"VLOOKUP(G265,'Account mapping'!A:D,4,0)","v":{"$error":"#N/A"}}]
[{"$f":"LEFT(Template!A278,4)","v":""},{"$f":"VLOOKUP(A266,'Structure mapping'!K:V,7,0)","v":{"$error":"#N/A"}},{"$f":"LEFT(Template!B278,5)","v":""},{"$f":"VLOOKUP(C266,'Structure mapping'!F:J,5,0)","v":{"$error":"#N/A"}},{"$f":"LEFT(Template!C278,7)","v":""},{"$f":"VLOOKUP(E266,'Structure mapping'!A:E,5,0)","v":{"$error":"#N/A"}},{"$f":"LEFT(Template!D278,6)","v":""},{"$f":"VLOOKUP(G266,'Account mapping'!A:E,5,0)","v":{"$error":"#N/A"}},{"$f":"LEFT(Template!E278,2)","v":""},{"$f":"VLOOKUP(I266,'Structure mapping'!X:AB,5,0)","v":{"$error":"#N/A"}},{"$f":"LEFT(Template!F278,3)","v":""},{"$f":"VLOOKUP(K266,'Structure mapping'!AC:AG,5,0)","v":{"$error":"#N/A"}},{"$f":"LEFT(Template!G278,10)","v":""},{"$f":"VLOOKUP(M266,'Structure mapping'!AH:AL,5,0)","v":{"$error":"#N/A"}},{"$f":"LEFT(Template!H278,6)","v":""},{"$f":"VLOOKUP(O266,'Structure mapping'!AM:AQ,5,0)","v":{"$error":"#N/A"}},null,null,null,null,{"$f":"IF(Template!O278=\"\",\"\",Template!O278)","v":""},"Aug-24 pending entries",{"$f":"TEXT(Template!$B$9,\"mm/dd/yyy\")","v":"08/01/2024"},null,null,null,null,{"$f":"IF(Template!M278>0,Template!M278,-Template!N278)","v":0},null,null,null,{"$f":"VLOOKUP(G266,'Account mapping'!A:D,4,0)","v":{"$error":"#N/A"}}]
[{"$f":"LEFT(Template!A279,4)","v":""},{"$f":"VLOOKUP(A267,'Structure mapping'!K:V,7,0)","v":{"$error":"#N/A"}},{"$f":"LEFT(Template!B279,5)","v":""},{"$f":"VLOOKUP(C267,'Structure mapping'!F:J,5,0)","v":{"$error":"#N/A"}},{"$f":"LEFT(Template!C279,7)","v":""},{"$f":"VLOOKUP(E267,'Structure mapping'!A:E,5,0)","v":{"$error":"#N/A"}},{"$f":"LEFT(Template!D279,6)","v":""},{"$f":"VLOOKUP(G267,'Account mapping'!A:E,5,0)","v":{"$error":"#N/A"}},{"$f":"LEFT(Template!E279,2)","v":""},{"$f":"VLOOKUP(I267,'Structure mapping'!X:AB,5,0)","v":{"$error":"#N/A"}},{"$f":"LEFT(Template!F279,3)","v":""},{"$f":"VLOOKUP(K267,'Structure mapping'!AC:AG,5,0)","v":{"$error":"#N/A"}},{"$f":"LEFT(Template!G279,10)","v":""},{"$f":"VLOOKUP(M267,'Structure mapping'!AH:AL,5,0)","v":{"$error":"#N/A"}},{"$f":"LEFT(Template!H279,6)","v":""},{"$f":"VLOOKUP(O267,'Structure mapping'!AM:AQ,5,0)","v":{"$error":"#N/A"}},null,null,null,null,{"$f":"IF(Template!O279=\"\",\"\",Template!O279)","v":""},"Aug-24 pending entries",{"$f":"TEXT(Template!$B$9,\"mm/dd/yyy\")","v":"08/01/2024"},null,null,null,null,{"$f":"IF(Template!M279>0,Template!M279,-Template!N279)","v":0},null,null,null,{"$f":"VLOOKUP(G267,'Account mapping'!A:D,4,0)","v":{"$error":"#N/A"}}]
[{"$f":"LEFT(Template!A280,4)","v":""},{"$f":"VLOOKUP(A268,'Structure mapping'!K:V,7,0)","v":{"$error":"#N/A"}},{"$f":"LEFT(Template!B280,5)","v":""},{"$f":"VLOOKUP(C268,'Structure mapping'!F:J,5,0)","v":{"$error":"#N/A"}},{"$f":"LEFT(Template!C280,7)","v":""},{"$f":"VLOOKUP(E268,'Structure mapping'!A:E,5,0)","v":{"$error":"#N/A"}},{"$f":"LEFT(Template!D280,6)","v":""},{"$f":"VLOOKUP(G268,'Account mapping'!A:E,5,0)","v":{"$error":"#N/A"}},{"$f":"LEFT(Template!E280,2)","v":""},{"$f":"VLOOKUP(I268,'Structure mapping'!X:AB,5,0)","v":{"$error":"#N/A"}},{"$f":"LEFT(Template!F280,3)","v":""},{"$f":"VLOOKUP(K268,'Structure mapping'!AC:AG,5,0)","v":{"$error":"#N/A"}},{"$f":"LEFT(Template!G280,10)","v":""},{"$f":"VLOOKUP(M268,'Structure mapping'!AH:AL,5,0)","v":{"$error":"#N/A"}},{"$f":"LEFT(Template!H280,6)","v":""},{"$f":"VLOOKUP(O268,'Structure mapping'!AM:AQ,5,0)","v":{"$error":"#N/A"}},null,null,null,null,{"$f":"IF(Template!O280=\"\",\"\",Template!O280)","v":""},"Aug-24 pending entries",{"$f":"TEXT(Template!$B$9,\"mm/dd/yyy\")","v":"08/01/2024"},null,null,null,null,{"$f":"IF(Template!M280>0,Template!M280,-Template!N280)","v":0},null,null,null,{"$f":"VLOOKUP(G268,'Account mapping'!A:D,4,0)","v":{"$error":"#N/A"}}]
[{"$f":"LEFT(Template!A281,4)","v":""},{"$f":"VLOOKUP(A269,'Structure mapping'!K:V,7,0)","v":{"$error":"#N/A"}},{"$f":"LEFT(Template!B281,5)","v":""},{"$f":"VLOOKUP(C269,'Structure mapping'!F:J,5,0)","v":{"$error":"#N/A"}},{"$f":"LEFT(Template!C281,7)","v":""},{"$f":"VLOOKUP(E269,'Structure mapping'!A:E,5,0)","v":{"$error":"#N/A"}},{"$f":"LEFT(Template!D281,6)","v":""},{"$f":"VLOOKUP(G269,'Account mapping'!A:E,5,0)","v":{"$error":"#N/A"}},{"$f":"LEFT(Template!E281,2)","v":""},{"$f":"VLOOKUP(I269,'Structure mapping'!X:AB,5,0)","v":{"$error":"#N/A"}},{"$f":"LEFT(Template!F281,3)","v":""},{"$f":"VLOOKUP(K269,'Structure mapping'!AC:AG,5,0)","v":{"$error":"#N/A"}},{"$f":"LEFT(Template!G281,10)","v":""},{"$f":"VLOOKUP(M269,'Structure mapping'!AH:AL,5,0)","v":{"$error":"#N/A"}},{"$f":"LEFT(Template!H281,6)","v":""},{"$f":"VLOOKUP(O269,'Structure mapping'!AM:AQ,5,0)","v":{"$error":"#N/A"}},null,null,null,null,{"$f":"IF(Template!O281=\"\",\"\",Template!O281)","v":""},"Aug-24 pending entries",{"$f":"TEXT(Template!$B$9,\"mm/dd/yyy\")","v":"08/01/2024"},null,null,null,null,{"$f":"IF(Template!M281>0,Template!M281,-Template!N281)","v":0},null,null,null,{"$f":"VLOOKUP(G269,'Account mapping'!A:D,4,0)","v":{"$error":"#N/A"}}]
[{"$f":"LEFT(Template!A282,4)","v":""},{"$f":"VLOOKUP(A270,'Structure mapping'!K:V,7,0)","v":{"$error":"#N/A"}},{"$f":"LEFT(Template!B282,5)","v":""},{"$f":"VLOOKUP(C270,'Structure mapping'!F:J,5,0)","v":{"$error":"#N/A"}},{"$f":"LEFT(Template!C282,7)","v":""},{"$f":"VLOOKUP(E270,'Structure mapping'!A:E,5,0)","v":{"$error":"#N/A"}},{"$f":"LEFT(Template!D282,6)","v":""},{"$f":"VLOOKUP(G270,'Account mapping'!A:E,5,0)","v":{"$error":"#N/A"}},{"$f":"LEFT(Template!E282,2)","v":""},{"$f":"VLOOKUP(I270,'Structure mapping'!X:AB,5,0)","v":{"$error":"#N/A"}},{"$f":"LEFT(Template!F282,3)","v":""},{"$f":"VLOOKUP(K270,'Structure mapping'!AC:AG,5,0)","v":{"$error":"#N/A"}},{"$f":"LEFT(Template!G282,10)","v":""},{"$f":"VLOOKUP(M270,'Structure mapping'!AH:AL,5,0)","v":{"$error":"#N/A"}},{"$f":"LEFT(Template!H282,6)","v":""},{"$f":"VLOOKUP(O270,'Structure mapping'!AM:AQ,5,0)","v":{"$error":"#N/A"}},null,null,null,null,{"$f":"IF(Template!O282=\"\",\"\",Template!O282)","v":""},"Aug-24 pending entries",{"$f":"TEXT(Template!$B$9,\"mm/dd/yyy\")","v":"08/01/2024"},null,null,null,null,{"$f":"IF(Template!M282>0,Template!M282,-Template!N282)","v":0},null,null,null,{"$f":"VLOOKUP(G270,'Account mapping'!A:D,4,0)","v":{"$error":"#N/A"}}]
[{"$f":"LEFT(Template!A283,4)","v":""},{"$f":"VLOOKUP(A271,'Structure mapping'!K:V,7,0)","v":{"$error":"#N/A"}},{"$f":"LEFT(Template!B283,5)","v":""},{"$f":"VLOOKUP(C271,'Structure mapping'!F:J,5,0)","v":{"$error":"#N/A"}},{"$f":"LEFT(Template!C283,7)","v":""},{"$f":"VLOOKUP(E271,'Structure mapping'!A:E,5,0)","v":{"$error":"#N/A"}},{"$f":"LEFT(Template!D283,6)","v":""},{"$f":"VLOOKUP(G271,'Account mapping'!A:E,5,0)","v":{"$error":"#N/A"}},{"$f":"LEFT(Template!E283,2)","v":""},{"$f":"VLOOKUP(I271,'Structure mapping'!X:AB,5,0)","v":{"$error":"#N/A"}},{"$f":"LEFT(Template!F283,3)","v":""},{"$f":"VLOOKUP(K271,'Structure mapping'!AC:AG,5,0)","v":{"$error":"#N/A"}},{"$f":"LEFT(Template!G283,10)","v":""},{"$f":"VLOOKUP(M271,'Structure mapping'!AH:AL,5,0)","v":{"$error":"#N/A"}},{"$f":"LEFT(Template!H283,6)","v":""},{"$f":"VLOOKUP(O271,'Structure mapping'!AM:AQ,5,0)","v":{"$error":"#N/A"}},null,null,null,null,{"$f":"IF(Template!O283=\"\",\"\",Template!O283)","v":""},"Aug-24 pending entries",{"$f":"TEXT(Template!$B$9,\"mm/dd/yyy\")","v":"08/01/2024"},null,null,null,null,{"$f":"IF(Template!M283>0,Template!M283,-Template!N283)","v":0},null,null,null,{"$f":"VLOOKUP(G271,'Account mapping'!A:D,4,0)","v":{"$error":"#N/A"}}]
[{"$f":"LEFT(Template!A284,4)","v":""},{"$f":"VLOOKUP(A272,'Structure mapping'!K:V,7,0)","v":{"$error":"#N/A"}},{"$f":"LEFT(Template!B284,5)","v":""},{"$f":"VLOOKUP(C272,'Structure mapping'!F:J,5,0)","v":{"$error":"#N/A"}},{"$f":"LEFT(Template!C284,7)","v":""},{"$f":"VLOOKUP(E272,'Structure mapping'!A:E,5,0)","v":{"$error":"#N/A"}},{"$f":"LEFT(Template!D284,6)","v":""},{"$f":"VLOOKUP(G272,'Account mapping'!A:E,5,0)","v":{"$error":"#N/A"}},{"$f":"LEFT(Template!E284,2)","v":""},{"$f":"VLOOKUP(I272,'Structure mapping'!X:AB,5,0)","v":{"$error":"#N/A"}},{"$f":"LEFT(Template!F284,3)","v":""},{"$f":"VLOOKUP(K272,'Structure mapping'!AC:AG,5,0)","v":{"$error":"#N/A"}},{"$f":"LEFT(Template!G284,10)","v":""},{"$f":"VLOOKUP(M272,'Structure mapping'!AH:AL,5,0)","v":{"$error":"#N/A"}},{"$f":"LEFT(Template!H284,6)","v":""},{"$f":"VLOOKUP(O272,'Structure mapping'!AM:AQ,5,0)","v":{"$error":"#N/A"}},null,null,null,null,{"$f":"IF(Template!O284=\"\",\"\",Template!O284)","v":""},"Aug-24 pending entries",{"$f":"TEXT(Template!$B$9,\"mm/dd/yyy\")","v":"08/01/2024"},null,null,null,null,{"$f":"IF(Template!M284>0,Template!M284,-Template!N284)","v":0},null,null,null,{"$f":"VLOOKUP(G272,'Account mapping'!A:D,4,0)","v":{"$error":"#N/A"}}]
[{"$f":"LEFT(Template!A285,4)","v":""},{"$f":"VLOOKUP(A273,'Structure mapping'!K:V,7,0)","v":{"$error":"#N/A"}},{"$f":"LEFT(Template!B285,5)","v":""},{"$f":"VLOOKUP(C273,'Structure mapping'!F:J,5,0)","v":{"$error":"#N/A"}},{"$f":"LEFT(Template!C285,7)","v":""},{"$f":"VLOOKUP(E273,'Structure mapping'!A:E,5,0)","v":{"$error":"#N/A"}},{"$f":"LEFT(Template!D285,6)","v":""},{"$f":"VLOOKUP(G273,'Account mapping'!A:E,5,0)","v":{"$error":"#N/A"}},{"$f":"LEFT(Template!E285,2)","v":""},{"$f":"VLOOKUP(I273,'Structure mapping'!X:AB,5,0)","v":{"$error":"#N/A"}},{"$f":"LEFT(Template!F285,3)","v":""},{"$f":"VLOOKUP(K273,'Structure mapping'!AC:AG,5,0)","v":{"$error":"#N/A"}},{"$f":"LEFT(Template!G285,10)","v":""},{"$f":"VLOOKUP(M273,'Structure mapping'!AH:AL,5,0)","v":{"$error":"#N/A"}},{"$f":"LEFT(Template!H285,6)","v":""},{"$f":"VLOOKUP(O273,'Structure mapping'!AM:AQ,5,0)","v":{"$error":"#N/A"}},null,null,null,null,{"$f":"IF(Template!O285=\"\",\"\",Template!O285)","v":""},"Aug-24 pending entries",{"$f":"TEXT(Template!$B$9,\"mm/dd/yyy\")","v":"08/01/2024"},null,null,null,null,{"$f":"IF(Template!M285>0,Template!M285,-Template!N285)","v":0},null,null,null,{"$f":"VLOOKUP(G273,'Account mapping'!A:D,4,0)","v":{"$error":"#N/A"}}]
[{"$f":"LEFT(Template!A286,4)","v":""},{"$f":"VLOOKUP(A274,'Structure mapping'!K:V,7,0)","v":{"$error":"#N/A"}},{"$f":"LEFT(Template!B286,5)","v":""},{"$f":"VLOOKUP(C274,'Structure mapping'!F:J,5,0)","v":{"$error":"#N/A"}},{"$f":"LEFT(Template!C286,7)","v":""},{"$f":"VLOOKUP(E274,'Structure mapping'!A:E,5,0)","v":{"$error":"#N/A"}},{"$f":"LEFT(Template!D286,6)","v":""},{"$f":"VLOOKUP(G274,'Account mapping'!A:E,5,0)","v":{"$error":"#N/A"}},{"$f":"LEFT(Template!E286,2)","v":""},{"$f":"VLOOKUP(I274,'Structure mapping'!X:AB,5,0)","v":{"$error":"#N/A"}},{"$f":"LEFT(Template!F286,3)","v":""},{"$f":"VLOOKUP(K274,'Structure mapping'!AC:AG,5,0)","v":{"$error":"#N/A"}},{"$f":"LEFT(Template!G286,10)","v":""},{"$f":"VLOOKUP(M274,'Structure mapping'!AH:AL,5,0)","v":{"$error":"#N/A"}},{"$f":"LEFT(Template!H286,6)","v":""},{"$f":"VLOOKUP(O274,'Structure mapping'!AM:AQ,5,0)","v":{"$error":"#N/A"}},null,null,null,null,{"$f":"IF(Template!O286=\"\",\"\",Template!O286)","v":""},"Aug-24 pending entries",{"$f":"TEXT(Template!$B$9,\"mm/dd/yyy\")","v":"08/01/2024"},null,null,null,null,{"$f":"IF(Template!M286>0,Template!M286,-Template!N286)","v":0},null,null,null,{"$f":"VLOOKUP(G274,'Account mapping'!A:D,4,0)","v":{"$error":"#N/A"}}]
[{"$f":"LEFT(Template!A287,4)","v":""},{"$f":"VLOOKUP(A275,'Structure mapping'!K:V,7,0)","v":{"$error":"#N/A"}},{"$f":"LEFT(Template!B287,5)","v":""},{"$f":"VLOOKUP(C275,'Structure mapping'!F:J,5,0)","v":{"$error":"#N/A"}},{"$f":"LEFT(Template!C287,7)","v":""},{"$f":"VLOOKUP(E275,'Structure mapping'!A:E,5,0)","v":{"$error":"#N/A"}},{"$f":"LEFT(Template!D287,6)","v":""},{"$f":"VLOOKUP(G275,'Account mapping'!A:E,5,0)","v":{"$error":"#N/A"}},{"$f":"LEFT(Template!E287,2)","v":""},{"$f":"VLOOKUP(I275,'Structure mapping'!X:AB,5,0)","v":{"$error":"#N/A"}},{"$f":"LEFT(Template!F287,3)","v":""},{"$f":"VLOOKUP(K275,'Structure mapping'!AC:AG,5,0)","v":{"$error":"#N/A"}},{"$f":"LEFT(Template!G287,10)","v":""},{"$f":"VLOOKUP(M275,'Structure mapping'!AH:AL,5,0)","v":{"$error":"#N/A"}},{"$f":"LEFT(Template!H287,6)","v":""},{"$f":"VLOOKUP(O275,'Structure mapping'!AM:AQ,5,0)","v":{"$error":"#N/A"}},null,null,null,null,{"$f":"IF(Template!O287=\"\",\"\",Template!O287)","v":""},"Aug-24 pending entries",{"$f":"TEXT(Template!$B$9,\"mm/dd/yyy\")","v":"08/01/2024"},null,null,null,null,{"$f":"IF(Template!M287>0,Template!M287,-Template!N287)","v":0},null,null,null,{"$f":"VLOOKUP(G275,'Account mapping'!A:D,4,0)","v":{"$error":"#N/A"}}]
[{"$f":"LEFT(Template!A288,4)","v":""},{"$f":"VLOOKUP(A276,'Structure mapping'!K:V,7,0)","v":{"$error":"#N/A"}},{"$f":"LEFT(Template!B288,5)","v":""},{"$f":"VLOOKUP(C276,'Structure mapping'!F:J,5,0)","v":{"$error":"#N/A"}},{"$f":"LEFT(Template!C288,7)","v":""},{"$f":"VLOOKUP(E276,'Structure mapping'!A:E,5,0)","v":{"$error":"#N/A"}},{"$f":"LEFT(Template!D288,6)","v":""},{"$f":"VLOOKUP(G276,'Account mapping'!A:E,5,0)","v":{"$error":"#N/A"}},{"$f":"LEFT(Template!E288,2)","v":""},{"$f":"VLOOKUP(I276,'Structure mapping'!X:AB,5,0)","v":{"$error":"#N/A"}},{"$f":"LEFT(Template!F288,3)","v":""},{"$f":"VLOOKUP(K276,'Structure mapping'!AC:AG,5,0)","v":{"$error":"#N/A"}},{"$f":"LEFT(Template!G288,10)","v":""},{"$f":"VLOOKUP(M276,'Structure mapping'!AH:AL,5,0)","v":{"$error":"#N/A"}},{"$f":"LEFT(Template!H288,6)","v":""},{"$f":"VLOOKUP(O276,'Structure mapping'!AM:AQ,5,0)","v":{"$error":"#N/A"}},null,null,null,null,{"$f":"IF(Template!O288=\"\",\"\",Template!O288)","v":""},"Aug-24 pending entries",{"$f":"TEXT(Template!$B$9,\"mm/dd/yyy\")","v":"08/01/2024"},null,null,null,null,{"$f":"IF(Template!M288>0,Template!M288,-Template!N288)","v":0},null,null,null,{"$f":"VLOOKUP(G276,'Account mapping'!A:D,4,0)","v":{"$error":"#N/A"}}]
[{"$f":"LEFT(Template!A289,4)","v":""},{"$f":"VLOOKUP(A277,'Structure mapping'!K:V,7,0)","v":{"$error":"#N/A"}},{"$f":"LEFT(Template!B289,5)","v":""},{"$f":"VLOOKUP(C277,'Structure mapping'!F:J,5,0)","v":{"$error":"#N/A"}},{"$f":"LEFT(Template!C289,7)","v":""},{"$f":"VLOOKUP(E277,'Structure mapping'!A:E,5,0)","v":{"$error":"#N/A"}},{"$f":"LEFT(Template!D289,6)","v":""},{"$f":"VLOOKUP(G277,'Account mapping'!A:E,5,0)","v":{"$error":"#N/A"}},{"$f":"LEFT(Template!E289,2)","v":""},{"$f":"VLOOKUP(I277,'Structure mapping'!X:AB,5,0)","v":{"$error":"#N/A"}},{"$f":"LEFT(Template!F289,3)","v":""},{"$f":"VLOOKUP(K277,'Structure mapping'!AC:AG,5,0)","v":{"$error":"#N/A"}},{"$f":"LEFT(Template!G289,10)","v":""},{"$f":"VLOOKUP(M277,'Structure mapping'!AH:AL,5,0)","v":{"$error":"#N/A"}},{"$f":"LEFT(Template!H289,6)","v":""},{"$f":"VLOOKUP(O277,'Structure mapping'!AM:AQ,5,0)","v":{"$error":"#N/A"}},null,null,null,null,{"$f":"IF(Template!O289=\"\",\"\",Template!O289)","v":""},"Aug-24 pending entries",{"$f":"TEXT(Template!$B$9,\"mm/dd/yyy\")","v":"08/01/2024"},null,null,null,null,{"$f":"IF(Template!M289>0,Template!M289,-Template!N289)","v":0},null,null,null,{"$f":"VLOOKUP(G277,'Account mapping'!A:D,4,0)","v":{"$error":"#N/A"}}]
[{"$f":"LEFT(Template!A290,4)","v":""},{"$f":"VLOOKUP(A278,'Structure mapping'!K:V,7,0)","v":{"$error":"#N/A"}},{"$f":"LEFT(Template!B290,5)","v":""},{"$f":"VLOOKUP(C278,'Structure mapping'!F:J,5,0)","v":{"$error":"#N/A"}},{"$f":"LEFT(Template!C290,7)","v":""},{"$f":"VLOOKUP(E278,'Structure mapping'!A:E,5,0)","v":{"$error":"#N/A"}},{"$f":"LEFT(Template!D290,6)","v":""},{"$f":"VLOOKUP(G278,'Account mapping'!A:E,5,0)","v":{"$error":"#N/A"}},{"$f":"LEFT(Template!E290,2)","v":""},{"$f":"VLOOKUP(I278,'Structure mapping'!X:AB,5,0)","v":{"$error":"#N/A"}},{"$f":"LEFT(Template!F290,3)","v":""},{"$f":"VLOOKUP(K278,'Structure mapping'!AC:AG,5,0)","v":{"$error":"#N/A"}},{"$f":"LEFT(Template!G290,10)","v":""},{"$f":"VLOOKUP(M278,'Structure mapping'!AH:AL,5,0)","v":{"$error":"#N/A"}},{"$f":"LEFT(Template!H290,6)","v":""},{"$f":"VLOOKUP(O278,'Structure mapping'!AM:AQ,5,0)","v":{"$error":"#N/A"}},null,null,null,null,{"$f":"IF(Template!O290=\"\",\"\",Template!O290)","v":""},"Aug-24 pending entries",{"$f":"TEXT(Template!$B$9,\"mm/dd/yyy\")","v":"08/01/2024"},null,null,null,null,{"$f":"IF(Template!M290>0,Template!M290,-Template!N290)","v":0},null,null,null,{"$f":"VLOOKUP(G278,'Account mapping'!A:D,4,0)","v":{"$error":"#N/A"}}]
[{"$f":"LEFT(Template!A291,4)","v":""},{"$f":"VLOOKUP(A279,'Structure mapping'!K:V,7,0)","v":{"$error":"#N/A"}},{"$f":"LEFT(Template!B291,5)","v":""},{"$f":"VLOOKUP(C279,'Structure mapping'!F:J,5,0)","v":{"$error":"#N/A"}},{"$f":"LEFT(Template!C291,7)","v":""},{"$f":"VLOOKUP(E279,'Structure mapping'!A:E,5,0)","v":{"$error":"#N/A"}},{"$f":"LEFT(Template!D291,6)","v":""},{"$f":"VLOOKUP(G279,'Account mapping'!A:E,5,0)","v":{"$error":"#N/A"}},{"$f":"LEFT(Template!E291,2)","v":""},{"$f":"VLOOKUP(I279,'Structure mapping'!X:AB,5,0)","v":{"$error":"#N/A"}},{"$f":"LEFT(Template!F291,3)","v":""},{"$f":"VLOOKUP(K279,'Structure mapping'!AC:AG,5,0)","v":{"$error":"#N/A"}},{"$f":"LEFT(Template!G291,10)","v":""},{"$f":"VLOOKUP(M279,'Structure mapping'!AH:AL,5,0)","v":{"$error":"#N/A"}},{"$f":"LEFT(Template!H291,6)","v":""},{"$f":"VLOOKUP(O279,'Structure mapping'!AM:AQ,5,0)","v":{"$error":"#N/A"}},null,null,null,null,{"$f":"IF(Template!O291=\"\",\"\",Template!O291)","v":""},"Aug-24 pending entries",{"$f":"TEXT(Template!$B$9,\"mm/dd/yyy\")","v":"08/01/2024"},null,null,null,null,{"$f":"IF(Template!M291>0,Template!M291,-Template!N291)","v":0},null,null,null,{"$f":"VLOOKUP(G279,'Account mapping'!A:D,4,0)","v":{"$error":"#N/A"}}]
[{"$f":"LEFT(Template!A292,4)","v":""},{"$f":"VLOOKUP(A280,'Structure mapping'!K:V,7,0)","v":{"$error":"#N/A"}},{"$f":"LEFT(Template!B292,5)","v":""},{"$f":"VLOOKUP(C280,'Structure mapping'!F:J,5,0)","v":{"$error":"#N/A"}},{"$f":"LEFT(Template!C292,7)","v":""},{"$f":"VLOOKUP(E280,'Structure mapping'!A:E,5,0)","v":{"$error":"#N/A"}},{"$f":"LEFT(Template!D292,6)","v":""},{"$f":"VLOOKUP(G280,'Account mapping'!A:E,5,0)","v":{"$error":"#N/A"}},{"$f":"LEFT(Template!E292,2)","v":""},{"$f":"VLOOKUP(I280,'Structure mapping'!X:AB,5,0)","v":{"$error":"#N/A"}},{"$f":"LEFT(Template!F292,3)","v":""},{"$f":"VLOOKUP(K280,'Structure mapping'!AC:AG,5,0)","v":{"$error":"#N/A"}},{"$f":"LEFT(Template!G292,10)","v":""},{"$f":"VLOOKUP(M280,'Structure mapping'!AH:AL,5,0)","v":{"$error":"#N/A"}},{"$f":"LEFT(Template!H292,6)","v":""},{"$f":"VLOOKUP(O280,'Structure mapping'!AM:AQ,5,0)","v":{"$error":"#N/A"}},null,null,null,null,{"$f":"IF(Template!O292=\"\",\"\",Template!O292)","v":""},"Aug-24 pending entries",{"$f":"TEXT(Template!$B$9,\"mm/dd/yyy\")","v":"08/01/2024"},null,null,null,null,{"$f":"IF(Template!M292>0,Template!M292,-Template!N292)","v":0},null,null,null,{"$f":"VLOOKUP(G280,'Account mapping'!A:D,4,0)","v":{"$error":"#N/A"}}]
[{"$f":"LEFT(Template!A293,4)","v":""},{"$f":"VLOOKUP(A281,'Structure mapping'!K:V,7,0)","v":{"$error":"#N/A"}},{"$f":"LEFT(Template!B293,5)","v":""},{"$f":"VLOOKUP(C281,'Structure mapping'!F:J,5,0)","v":{"$error":"#N/A"}},{"$f":"LEFT(Template!C293,7)","v":""},{"$f":"VLOOKUP(E281,'Structure mapping'!A:E,5,0)","v":{"$error":"#N/A"}},{"$f":"LEFT(Template!D293,6)","v":""},{"$f":"VLOOKUP(G281,'Account mapping'!A:E,5,0)","v":{"$error":"#N/A"}},{"$f":"LEFT(Template!E293,2)","v":""},{"$f":"VLOOKUP(I281,'Structure mapping'!X:AB,5,0)","v":{"$error":"#N/A"}},{"$f":"LEFT(Template!F293,3)","v":""},{"$f":"VLOOKUP(K281,'Structure mapping'!AC:AG,5,0)","v":{"$error":"#N/A"}},{"$f":"LEFT(Template!G293,10)","v":""},{"$f":"VLOOKUP(M281,'Structure mapping'!AH:AL,5,0)","v":{"$error":"#N/A"}},{"$f":"LEFT(Template!H293,6)","v":""},{"$f":"VLOOKUP(O281,'Structure mapping'!AM:AQ,5,0)","v":{"$error":"#N/A"}},null,null,null,null,{"$f":"IF(Template!O293=\"\",\"\",Template!O293)","v":""},"Aug-24 pending entries",{"$f":"TEXT(Template!$B$9,\"mm/dd/yyy\")","v":"08/01/2024"},null,null,null,null,{"$f":"IF(Template!M293>0,Template!M293,-Template!N293)","v":0},null,null,null,{"$f":"VLOOKUP(G281,'Account mapping'!A:D,4,0)","v":{"$error":"#N/A"}}]
[{"$f":"LEFT(Template!A294,4)","v":""},{"$f":"VLOOKUP(A282,'Structure mapping'!K:V,7,0)","v":{"$error":"#N/A"}},{"$f":"LEFT(Template!B294,5)","v":""},{"$f":"VLOOKUP(C282,'Structure mapping'!F:J,5,0)","v":{"$error":"#N/A"}},{"$f":"LEFT(Template!C294,7)","v":""},{"$f":"VLOOKUP(E282,'Structure mapping'!A:E,5,0)","v":{"$error":"#N/A"}},{"$f":"LEFT(Template!D294,6)","v":""},{"$f":"VLOOKUP(G282,'Account mapping'!A:E,5,0)","v":{"$error":"#N/A"}},{"$f":"LEFT(Template!E294,2)","v":""},{"$f":"VLOOKUP(I282,'Structure mapping'!X:AB,5,0)","v":{"$error":"#N/A"}},{"$f":"LEFT(Template!F294,3)","v":""},{"$f":"VLOOKUP(K282,'Structure mapping'!AC:AG,5,0)","v":{"$error":"#N/A"}},{"$f":"LEFT(Template!G294,10)","v":""},{"$f":"VLOOKUP(M282,'Structure mapping'!AH:AL,5,0)","v":{"$error":"#N/A"}},{"$f":"LEFT(Template!H294,6)","v":""},{"$f":"VLOOKUP(O282,'Structure mapping'!AM:AQ,5,0)","v":{"$error":"#N/A"}},null,null,null,null,{"$f":"IF(Template!O294=\"\",\"\",Template!O294)","v":""},"Aug-24 pending entries",{"$f":"TEXT(Template!$B$9,\"mm/dd/yyy\")","v":"08/01/2024"},null,null,null,null,{"$f":"IF(Template!M294>0,Template!M294,-Template!N294)","v":0},null,null,null,{"$f":"VLOOKUP(G282,'Account mapping'!A:D,4,0)","v":{"$error":"#N/A"}}]
[{"$f":"LEFT(Template!A295,4)","v":""},{"$f":"VLOOKUP(A283,'Structure mapping'!K:V,7,0)","v":{"$error":"#N/A"}},{"$f":"LEFT(Template!B295,5)","v":""},{"$f":"VLOOKUP(C283,'Structure mapping'!F:J,5,0)","v":{"$error":"#N/A"}},{"$f":"LEFT(Template!C295,7)","v":""},{"$f":"VLOOKUP(E283,'Structure mapping'!A:E,5,0)","v":{"$error":"#N/A"}},{"$f":"LEFT(Template!D295,6)","v":""},{"$f":"VLOOKUP(G283,'Account mapping'!A:E,5,0)","v":{"$error":"#N/A"}},{"$f":"LEFT(Template!E295,2)","v":""},{"$f":"VLOOKUP(I283,'Structure mapping'!X:AB,5,0)","v":{"$error":"#N/A"}},{"$f":"LEFT(Template!F295,3)","v":""},{"$f":"VLOOKUP(K283,'Structure mapping'!AC:AG,5,0)","v":{"$error":"#N/A"}},{"$f":"LEFT(Template!G295,10)","v":""},{"$f":"VLOOKUP(M283,'Structure mapping'!AH:AL,5,0)","v":{"$error":"#N/A"}},{"$f":"LEFT(Template!H295,6)","v":""},{"$f":"VLOOKUP(O283,'Structure mapping'!AM:AQ,5,0)","v":{"$error":"#N/A"}},null,null,null,null,{"$f":"IF(Template!O295=\"\",\"\",Template!O295)","v":""},"Aug-24 pending entries",{"$f":"TEXT(Template!$B$9,\"mm/dd/yyy\")","v":"08/01/2024"},null,null,null,null,{"$f":"IF(Template!M295>0,Template!M295,-Template!N295)","v":0},null,null,null,{"$f":"VLOOKUP(G283,'Account mapping'!A:D,4,0)","v":{"$error":"#N/A"}}]
[{"$f":"LEFT(Template!A296,4)","v":""},{"$f":"VLOOKUP(A284,'Structure mapping'!K:V,7,0)","v":{"$error":"#N/A"}},{"$f":"LEFT(Template!B296,5)","v":""},{"$f":"VLOOKUP(C284,'Structure mapping'!F:J,5,0)","v":{"$error":"#N/A"}},{"$f":"LEFT(Template!C296,7)","v":""},{"$f":"VLOOKUP(E284,'Structure mapping'!A:E,5,0)","v":{"$error":"#N/A"}},{"$f":"LEFT(Template!D296,6)","v":""},{"$f":"VLOOKUP(G284,'Account mapping'!A:E,5,0)","v":{"$error":"#N/A"}},{"$f":"LEFT(Template!E296,2)","v":""},{"$f":"VLOOKUP(I284,'Structure mapping'!X:AB,5,0)","v":{"$error":"#N/A"}},{"$f":"LEFT(Template!F296,3)","v":""},{"$f":"VLOOKUP(K284,'Structure mapping'!AC:AG,5,0)","v":{"$error":"#N/A"}},{"$f":"LEFT(Template!G296,10)","v":""},{"$f":"VLOOKUP(M284,'Structure mapping'!AH:AL,5,0)","v":{"$error":"#N/A"}},{"$f":"LEFT(Template!H296,6)","v":""},{"$f":"VLOOKUP(O284,'Structure mapping'!AM:AQ,5,0)","v":{"$error":"#N/A"}},null,null,null,null,{"$f":"IF(Template!O296=\"\",\"\",Template!O296)","v":""},"Aug-24 pending entries",{"$f":"TEXT(Template!$B$9,\"mm/dd/yyy\")","v":"08/01/2024"},null,null,null,null,{"$f":"IF(Template!M296>0,Template!M296,-Template!N296)","v":0},null,null,null,{"$f":"VLOOKUP(G284,'Account mapping'!A:D,4,0)","v":{"$error":"#N/A"}}]
[{"$f":"LEFT(Template!A297,4)","v":""},{"$f":"VLOOKUP(A285,'Structure mapping'!K:V,7,0)","v":{"$error":"#N/A"}},{"$f":"LEFT(Template!B297,5)","v":""},{"$f":"VLOOKUP(C285,'Structure mapping'!F:J,5,0)","v":{"$error":"#N/A"}},{"$f":"LEFT(Template!C297,7)","v":""},{"$f":"VLOOKUP(E285,'Structure mapping'!A:E,5,0)","v":{"$error":"#N/A"}},{"$f":"LEFT(Template!D297,6)","v":""},{"$f":"VLOOKUP(G285,'Account mapping'!A:E,5,0)","v":{"$error":"#N/A"}},{"$f":"LEFT(Template!E297,2)","v":""},{"$f":"VLOOKUP(I285,'Structure mapping'!X:AB,5,0)","v":{"$error":"#N/A"}},{"$f":"LEFT(Template!F297,3)","v":""},{"$f":"VLOOKUP(K285,'Structure mapping'!AC:AG,5,0)","v":{"$error":"#N/A"}},{"$f":"LEFT(Template!G297,10)","v":""},{"$f":"VLOOKUP(M285,'Structure mapping'!AH:AL,5,0)","v":{"$error":"#N/A"}},{"$f":"LEFT(Template!H297,6)","v":""},{"$f":"VLOOKUP(O285,'Structure mapping'!AM:AQ,5,0)","v":{"$error":"#N/A"}},null,null,null,null,{"$f":"IF(Template!O297=\"\",\"\",Template!O297)","v":""},"Aug-24 pending entries",{"$f":"TEXT(Template!$B$9,\"mm/dd/yyy\")","v":"08/01/2024"},null,null,null,null,{"$f":"IF(Template!M297>0,Template!M297,-Template!N297)","v":0},null,null,null,{"$f":"VLOOKUP(G285,'Account mapping'!A:D,4,0)","v":{"$error":"#N/A"}}]
[{"$f":"LEFT(Template!A298,4)","v":""},{"$f":"VLOOKUP(A286,'Structure mapping'!K:V,7,0)","v":{"$error":"#N/A"}},{"$f":"LEFT(Template!B298,5)","v":""},{"$f":"VLOOKUP(C286,'Structure mapping'!F:J,5,0)","v":{"$error":"#N/A"}},{"$f":"LEFT(Template!C298,7)","v":""},{"$f":"VLOOKUP(E286,'Structure mapping'!A:E,5,0)","v":{"$error":"#N/A"}},{"$f":"LEFT(Template!D298,6)","v":""},{"$f":"VLOOKUP(G286,'Account mapping'!A:E,5,0)","v":{"$error":"#N/A"}},{"$f":"LEFT(Template!E298,2)","v":""},{"$f":"VLOOKUP(I286,'Structure mapping'!X:AB,5,0)","v":{"$error":"#N/A"}},{"$f":"LEFT(Template!F298,3)","v":""},{"$f":"VLOOKUP(K286,'Structure mapping'!AC:AG,5,0)","v":{"$error":"#N/A"}},{"$f":"LEFT(Template!G298,10)","v":""},{"$f":"VLOOKUP(M286,'Structure mapping'!AH:AL,5,0)","v":{"$error":"#N/A"}},{"$f":"LEFT(Template!H298,6)","v":""},{"$f":"VLOOKUP(O286,'Structure mapping'!AM:AQ,5,0)","v":{"$error":"#N/A"}},null,null,null,null,{"$f":"IF(Template!O298=\"\",\"\",Template!O298)","v":""},"Aug-24 pending entries",{"$f":"TEXT(Template!$B$9,\"mm/dd/yyy\")","v":"08/01/2024"},null,null,null,null,{"$f":"IF(Template!M298>0,Template!M298,-Template!N298)","v":0},null,null,null,{"$f":"VLOOKUP(G286,'Account mapping'!A:D,4,0)","v":{"$error":"#N/A"}}]
[{"$f":"LEFT(Template!A299,4)","v":""},{"$f":"VLOOKUP(A287,'Structure mapping'!K:V,7,0)","v":{"$error":"#N/A"}},{"$f":"LEFT(Template!B299,5)","v":""},{"$f":"VLOOKUP(C287,'Structure mapping'!F:J,5,0)","v":{"$error":"#N/A"}},{"$f":"LEFT(Template!C299,7)","v":""},{"$f":"VLOOKUP(E287,'Structure mapping'!A:E,5,0)","v":{"$error":"#N/A"}},{"$f":"LEFT(Template!D299,6)","v":""},{"$f":"VLOOKUP(G287,'Account mapping'!A:E,5,0)","v":{"$error":"#N/A"}},{"$f":"LEFT(Template!E299,2)","v":""},{"$f":"VLOOKUP(I287,'Structure mapping'!X:AB,5,0)","v":{"$error":"#N/A"}},{"$f":"LEFT(Template!F299,3)","v":""},{"$f":"VLOOKUP(K287,'Structure mapping'!AC:AG,5,0)","v":{"$error":"#N/A"}},{"$f":"LEFT(Template!G299,10)","v":""},{"$f":"VLOOKUP(M287,'Structure mapping'!AH:AL,5,0)","v":{"$error":"#N/A"}},{"$f":"LEFT(Template!H299,6)","v":""},{"$f":"VLOOKUP(O287,'Structure mapping'!AM:AQ,5,0)","v":{"$error":"#N/A"}},null,null,null,null,{"$f":"IF(Template!O299=\"\",\"\",Template!O299)","v":""},"Aug-24 pending entries",{"$f":"TEXT(Template!$B$9,\"mm/dd/yyy\")","v":"08/01/2024"},null,null,null,null,{"$f":"IF(Template!M299>0,Template!M299,-Template!N299)","v":0},null,null,null,{"$f":"VLOOKUP(G287,'Account mapping'!A:D,4,0)","v":{"$error":"#N/A"}}]
[{"$f":"LEFT(Template!A300,4)","v":""},{"$f":"VLOOKUP(A288,'Structure mapping'!K:V,7,0)","v":{"$error":"#N/A"}},{"$f":"LEFT(Template!B300,5)","v":""},{"$f":"VLOOKUP(C288,'Structure mapping'!F:J,5,0)","v":{"$error":"#N/A"}},{"$f":"LEFT(Template!C300,7)","v":""},{"$f":"VLOOKUP(E288,'Structure mapping'!A:E,5,0)","v":{"$error":"#N/A"}},{"$f":"LEFT(Template!D300,6)","v":""},{"$f":"VLOOKUP(G288,'Account mapping'!A:E,5,0)","v":{"$error":"#N/A"}},{"$f":"LEFT(Template!E300,2)","v":""},{"$f":"VLOOKUP(I288,'Structure mapping'!X:AB,5,0)","v":{"$error":"#N/A"}},{"$f":"LEFT(Template!F300,3)","v":""},{"$f":"VLOOKUP(K288,'Structure mapping'!AC:AG,5,0)","v":{"$error":"#N/A"}},{"$f":"LEFT(Template!G300,10)","v":""},{"$f":"VLOOKUP(M288,'Structure mapping'!AH:AL,5,0)","v":{"$error":"#N/A"}},{"$f":"LEFT(Template!H300,6)","v":""},{"$f":"VLOOKUP(O288,'Structure mapping'!AM:AQ,5,0)","v":{"$error":"#N/A"}},null,null,null,null,{"$f":"IF(Template!O300=\"\",\"\",Template!O300)","v":""},"Aug-24 pending entries",{"$f":"TEXT(Template!$B$9,\"mm/dd/yyy\")","v":"08/01/2024"},null,null,null,null,{"$f":"IF(Template!M300>0,Template!M300,-Template!N300)","v":0},null,null,null,{"$f":"VLOOKUP(G288,'Account mapping'!A:D,4,0)","v":{"$error":"#N/A"}}]
[{"$f":"LEFT(Template!A301,4)","v":""},{"$f":"VLOOKUP(A289,'Structure mapping'!K:V,7,0)","v":{"$error":"#N/A"}},{"$f":"LEFT(Template!B301,5)","v":""},{"$f":"VLOOKUP(C289,'Structure mapping'!F:J,5,0)","v":{"$error":"#N/A"}},{"$f":"LEFT(Template!C301,7)","v":""},{"$f":"VLOOKUP(E289,'Structure mapping'!A:E,5,0)","v":{"$error":"#N/A"}},{"$f":"LEFT(Template!D301,6)","v":""},{"$f":"VLOOKUP(G289,'Account mapping'!A:E,5,0)","v":{"$error":"#N/A"}},{"$f":"LEFT(Template!E301,2)","v":""},{"$f":"VLOOKUP(I289,'Structure mapping'!X:AB,5,0)","v":{"$error":"#N/A"}},{"$f":"LEFT(Template!F301,3)","v":""},{"$f":"VLOOKUP(K289,'Structure mapping'!AC:AG,5,0)","v":{"$error":"#N/A"}},{"$f":"LEFT(Template!G301,10)","v":""},{"$f":"VLOOKUP(M289,'Structure mapping'!AH:AL,5,0)","v":{"$error":"#N/A"}},{"$f":"LEFT(Template!H301,6)","v":""},{"$f":"VLOOKUP(O289,'Structure mapping'!AM:AQ,5,0)","v":{"$error":"#N/A"}},null,null,null,null,{"$f":"IF(Template!O301=\"\",\"\",Template!O301)","v":""},"Aug-24 pending entries",{"$f":"TEXT(Template!$B$9,\"mm/dd/yyy\")","v":"08/01/2024"},null,null,null,null,{"$f":"IF(Template!M301>0,Template!M301,-Template!N301)","v":0},null,null,null,{"$f":"VLOOKUP(G289,'Account mapping'!A:D,4,0)","v":{"$error":"#N/A"}}]
[{"$f":"LEFT(Template!A302,4)","v":""},{"$f":"VLOOKUP(A290,'Structure mapping'!K:V,7,0)","v":{"$error":"#N/A"}},{"$f":"LEFT(Template!B302,5)","v":""},{"$f":"VLOOKUP(C290,'Structure mapping'!F:J,5,0)","v":{"$error":"#N/A"}},{"$f":"LEFT(Template!C302,7)","v":""},{"$f":"VLOOKUP(E290,'Structure mapping'!A:E,5,0)","v":{"$error":"#N/A"}},{"$f":"LEFT(Template!D302,6)","v":""},{"$f":"VLOOKUP(G290,'Account mapping'!A:E,5,0)","v":{"$error":"#N/A"}},{"$f":"LEFT(Template!E302,2)","v":""},{"$f":"VLOOKUP(I290,'Structure mapping'!X:AB,5,0)","v":{"$error":"#N/A"}},{"$f":"LEFT(Template!F302,3)","v":""},{"$f":"VLOOKUP(K290,'Structure mapping'!AC:AG,5,0)","v":{"$error":"#N/A"}},{"$f":"LEFT(Template!G302,10)","v":""},{"$f":"VLOOKUP(M290,'Structure mapping'!AH:AL,5,0)","v":{"$error":"#N/A"}},{"$f":"LEFT(Template!H302,6)","v":""},{"$f":"VLOOKUP(O290,'Structure mapping'!AM:AQ,5,0)","v":{"$error":"#N/A"}},null,null,null,null,{"$f":"IF(Template!O302=\"\",\"\",Template!O302)","v":""},"Aug-24 pending entries",{"$f":"TEXT(Template!$B$9,\"mm/dd/yyy\")","v":"08/01/2024"},null,null,null,null,{"$f":"IF(Template!M302>0,Template!M302,-Template!N302)","v":0},null,null,null,{"$f":"VLOOKUP(G290,'Account mapping'!A:D,4,0)","v":{"$error":"#N/A"}}]
[{"$f":"LEFT(Template!A303,4)","v":""},{"$f":"VLOOKUP(A291,'Structure mapping'!K:V,7,0)","v":{"$error":"#N/A"}},{"$f":"LEFT(Template!B303,5)","v":""},{"$f":"VLOOKUP(C291,'Structure mapping'!F:J,5,0)","v":{"$error":"#N/A"}},{"$f":"LEFT(Template!C303,7)","v":""},{"$f":"VLOOKUP(E291,'Structure mapping'!A:E,5,0)","v":{"$error":"#N/A"}},{"$f":"LEFT(Template!D303,6)","v":""},{"$f":"VLOOKUP(G291,'Account mapping'!A:E,5,0)","v":{"$error":"#N/A"}},{"$f":"LEFT(Template!E303,2)","v":""},{"$f":"VLOOKUP(I291,'Structure mapping'!X:AB,5,0)","v":{"$error":"#N/A"}},{"$f":"LEFT(Template!F303,3)","v":""},{"$f":"VLOOKUP(K291,'Structure mapping'!AC:AG,5,0)","v":{"$error":"#N/A"}},{"$f":"LEFT(Template!G303,10)","v":""},{"$f":"VLOOKUP(M291,'Structure mapping'!AH:AL,5,0)","v":{"$error":"#N/A"}},{"$f":"LEFT(Template!H303,6)","v":""},{"$f":"VLOOKUP(O291,'Structure mapping'!AM:AQ,5,0)","v":{"$error":"#N/A"}},null,null,null,null,{"$f":"IF(Template!O303=\"\",\"\",Template!O303)","v":""},"Aug-24 pending entries",{"$f":"TEXT(Template!$B$9,\"mm/dd/yyy\")","v":"08/01/2024"},null,null,null,null,{"$f":"IF(Template!M303>0,Template!M303,-Template!N303)","v":0},null,null,null,{"$f":"VLOOKUP(G291,'Account mapping'!A:D,4,0)","v":{"$error":"#N/A"}}]
[{"$f":"LEFT(Template!A304,4)","v":""},{"$f":"VLOOKUP(A292,'Structure mapping'!K:V,7,0)","v":{"$error":"#N/A"}},{"$f":"LEFT(Template!B304,5)","v":""},{"$f":"VLOOKUP(C292,'Structure mapping'!F:J,5,0)","v":{"$error":"#N/A"}},{"$f":"LEFT(Template!C304,7)","v":""},{"$f":"VLOOKUP(E292,'Structure mapping'!A:E,5,0)","v":{"$error":"#N/A"}},{"$f":"LEFT(Template!D304,6)","v":""},{"$f":"VLOOKUP(G292,'Account mapping'!A:E,5,0)","v":{"$error":"#N/A"}},{"$f":"LEFT(Template!E304,2)","v":""},{"$f":"VLOOKUP(I292,'Structure mapping'!X:AB,5,0)","v":{"$error":"#N/A"}},{"$f":"LEFT(Template!F304,3)","v":""},{"$f":"VLOOKUP(K292,'Structure mapping'!AC:AG,5,0)","v":{"$error":"#N/A"}},{"$f":"LEFT(Template!G304,10)","v":""},{"$f":"VLOOKUP(M292,'Structure mapping'!AH:AL,5,0)","v":{"$error":"#N/A"}},{"$f":"LEFT(Template!H304,6)","v":""},{"$f":"VLOOKUP(O292,'Structure mapping'!AM:AQ,5,0)","v":{"$error":"#N/A"}},null,null,null,null,{"$f":"IF(Template!O304=\"\",\"\",Template!O304)","v":""},"Aug-24 pending entries",{"$f":"TEXT(Template!$B$9,\"mm/dd/yyy\")","v":"08/01/2024"},null,null,null,null,{"$f":"IF(Template!M304>0,Template!M304,-Template!N304)","v":0},null,null,null,{"$f":"VLOOKUP(G292,'Account mapping'!A:D,4,0)","v":{"$error":"#N/A"}}]
[{"$f":"LEFT(Template!A305,4)","v":""},{"$f":"VLOOKUP(A293,'Structure mapping'!K:V,7,0)","v":{"$error":"#N/A"}},{"$f":"LEFT(Template!B305,5)","v":""},{"$f":"VLOOKUP(C293,'Structure mapping'!F:J,5,0)","v":{"$error":"#N/A"}},{"$f":"LEFT(Template!C305,7)","v":""},{"$f":"VLOOKUP(E293,'Structure mapping'!A:E,5,0)","v":{"$error":"#N/A"}},{"$f":"LEFT(Template!D305,6)","v":""},{"$f":"VLOOKUP(G293,'Account mapping'!A:E,5,0)","v":{"$error":"#N/A"}},{"$f":"LEFT(Template!E305,2)","v":""},{"$f":"VLOOKUP(I293,'Structure mapping'!X:AB,5,0)","v":{"$error":"#N/A"}},{"$f":"LEFT(Template!F305,3)","v":""},{"$f":"VLOOKUP(K293,'Structure mapping'!AC:AG,5,0)","v":{"$error":"#N/A"}},{"$f":"LEFT(Template!G305,10)","v":""},{"$f":"VLOOKUP(M293,'Structure mapping'!AH:AL,5,0)","v":{"$error":"#N/A"}},{"$f":"LEFT(Template!H305,6)","v":""},{"$f":"VLOOKUP(O293,'Structure mapping'!AM:AQ,5,0)","v":{"$error":"#N/A"}},null,null,null,null,{"$f":"IF(Template!O305=\"\",\"\",Template!O305)","v":""},"Aug-24 pending entries",{"$f":"TEXT(Template!$B$9,\"mm/dd/yyy\")","v":"08/01/2024"},null,null,null,null,{"$f":"IF(Template!M305>0,Template!M305,-Template!N305)","v":0},null,null,null,{"$f":"VLOOKUP(G293,'Account mapping'!A:D,4,0)","v":{"$error":"#N/A"}}]
[{"$f":"LEFT(Template!A306,4)","v":""},{"$f":"VLOOKUP(A294,'Structure mapping'!K:V,7,0)","v":{"$error":"#N/A"}},{"$f":"LEFT(Template!B306,5)","v":""},{"$f":"VLOOKUP(C294,'Structure mapping'!F:J,5,0)","v":{"$error":"#N/A"}},{"$f":"LEFT(Template!C306,7)","v":""},{"$f":"VLOOKUP(E294,'Structure mapping'!A:E,5,0)","v":{"$error":"#N/A"}},{"$f":"LEFT(Template!D306,6)","v":""},{"$f":"VLOOKUP(G294,'Account mapping'!A:E,5,0)","v":{"$error":"#N/A"}},{"$f":"LEFT(Template!E306,2)","v":""},{"$f":"VLOOKUP(I294,'Structure mapping'!X:AB,5,0)","v":{"$error":"#N/A"}},{"$f":"LEFT(Template!F306,3)","v":""},{"$f":"VLOOKUP(K294,'Structure mapping'!AC:AG,5,0)","v":{"$error":"#N/A"}},{"$f":"LEFT(Template!G306,10)","v":""},{"$f":"VLOOKUP(M294,'Structure mapping'!AH:AL,5,0)","v":{"$error":"#N/A"}},{"$f":"LEFT(Template!H306,6)","v":""},{"$f":"VLOOKUP(O294,'Structure mapping'!AM:AQ,5,0)","v":{"$error":"#N/A"}},null,null,null,null,{"$f":"IF(Template!O306=\"\",\"\",Template!O306)","v":""},"Aug-24 pending entries",{"$f":"TEXT(Template!$B$9,\"mm/dd/yyy\")","v":"08/01/2024"},null,null,null,null,{"$f":"IF(Template!M306>0,Template!M306,-Template!N306)","v":0},null,null,null,{"$f":"VLOOKUP(G294,'Account mapping'!A:D,4,0)","v":{"$error":"#N/A"}}]
[{"$f":"LEFT(Template!A307,4)","v":""},{"$f":"VLOOKUP(A295,'Structure mapping'!K:V,7,0)","v":{"$error":"#N/A"}},{"$f":"LEFT(Template!B307,5)","v":""},{"$f":"VLOOKUP(C295,'Structure mapping'!F:J,5,0)","v":{"$error":"#N/A"}},{"$f":"LEFT(Template!C307,7)","v":""},{"$f":"VLOOKUP(E295,'Structure mapping'!A:E,5,0)","v":{"$error":"#N/A"}},{"$f":"LEFT(Template!D307,6)","v":""},{"$f":"VLOOKUP(G295,'Account mapping'!A:E,5,0)","v":{"$error":"#N/A"}},{"$f":"LEFT(Template!E307,2)","v":""},{"$f":"VLOOKUP(I295,'Structure mapping'!X:AB,5,0)","v":{"$error":"#N/A"}},{"$f":"LEFT(Template!F307,3)","v":""},{"$f":"VLOOKUP(K295,'Structure mapping'!AC:AG,5,0)","v":{"$error":"#N/A"}},{"$f":"LEFT(Template!G307,10)","v":""},{"$f":"VLOOKUP(M295,'Structure mapping'!AH:AL,5,0)","v":{"$error":"#N/A"}},{"$f":"LEFT(Template!H307,6)","v":""},{"$f":"VLOOKUP(O295,'Structure mapping'!AM:AQ,5,0)","v":{"$error":"#N/A"}},null,null,null,null,{"$f":"IF(Template!O307=\"\",\"\",Template!O307)","v":""},"Aug-24 pending entries",{"$f":"TEXT(Template!$B$9,\"mm/dd/yyy\")","v":"08/01/2024"},null,null,null,null,{"$f":"IF(Template!M307>0,Template!M307,-Template!N307)","v":0},null,null,null,{"$f":"VLOOKUP(G295,'Account mapping'!A:D,4,0)","v":{"$error":"#N/A"}}]
[{"$f":"LEFT(Template!A308,4)","v":""},{"$f":"VLOOKUP(A296,'Structure mapping'!K:V,7,0)","v":{"$error":"#N/A"}},{"$f":"LEFT(Template!B308,5)","v":""},{"$f":"VLOOKUP(C296,'Structure mapping'!F:J,5,0)","v":{"$error":"#N/A"}},{"$f":"LEFT(Template!C308,7)","v":""},{"$f":"VLOOKUP(E296,'Structure mapping'!A:E,5,0)","v":{"$error":"#N/A"}},{"$f":"LEFT(Template!D308,6)","v":""},{"$f":"VLOOKUP(G296,'Account mapping'!A:E,5,0)","v":{"$error":"#N/A"}},{"$f":"LEFT(Template!E308,2)","v":""},{"$f":"VLOOKUP(I296,'Structure mapping'!X:AB,5,0)","v":{"$error":"#N/A"}},{"$f":"LEFT(Template!F308,3)","v":""},{"$f":"VLOOKUP(K296,'Structure mapping'!AC:AG,5,0)","v":{"$error":"#N/A"}},{"$f":"LEFT(Template!G308,10)","v":""},{"$f":"VLOOKUP(M296,'Structure mapping'!AH:AL,5,0)","v":{"$error":"#N/A"}},{"$f":"LEFT(Template!H308,6)","v":""},{"$f":"VLOOKUP(O296,'Structure mapping'!AM:AQ,5,0)","v":{"$error":"#N/A"}},null,null,null,null,{"$f":"IF(Template!O308=\"\",\"\",Template!O308)","v":""},"Aug-24 pending entries",{"$f":"TEXT(Template!$B$9,\"mm/dd/yyy\")","v":"08/01/2024"},null,null,null,null,{"$f":"IF(Template!M308>0,Template!M308,-Template!N308)","v":0},null,null,null,{"$f":"VLOOKUP(G296,'Account mapping'!A:D,4,0)","v":{"$error":"#N/A"}}]
[{"$f":"LEFT(Template!A309,4)","v":""},{"$f":"VLOOKUP(A297,'Structure mapping'!K:V,7,0)","v":{"$error":"#N/A"}},{"$f":"LEFT(Template!B309,5)","v":""},{"$f":"VLOOKUP(C297,'Structure mapping'!F:J,5,0)","v":{"$error":"#N/A"}},{"$f":"LEFT(Template!C309,7)","v":""},{"$f":"VLOOKUP(E297,'Structure mapping'!A:E,5,0)","v":{"$error":"#N/A"}},{"$f":"LEFT(Template!D309,6)","v":""},{"$f":"VLOOKUP(G297,'Account mapping'!A:E,5,0)","v":{"$error":"#N/A"}},{"$f":"LEFT(Template!E309,2)","v":""},{"$f":"VLOOKUP(I297,'Structure mapping'!X:AB,5,0)","v":{"$error":"#N/A"}},{"$f":"LEFT(Template!F309,3)","v":""},{"$f":"VLOOKUP(K297,'Structure mapping'!AC:AG,5,0)","v":{"$error":"#N/A"}},{"$f":"LEFT(Template!G309,10)","v":""},{"$f":"VLOOKUP(M297,'Structure mapping'!AH:AL,5,0)","v":{"$error":"#N/A"}},{"$f":"LEFT(Template!H309,6)","v":""},{"$f":"VLOOKUP(O297,'Structure mapping'!AM:AQ,5,0)","v":{"$error":"#N/A"}},null,null,null,null,{"$f":"IF(Template!O309=\"\",\"\",Template!O309)","v":""},"Aug-24 pending entries",{"$f":"TEXT(Template!$B$9,\"mm/dd/yyy\")","v":"08/01/2024"},null,null,null,null,{"$f":"IF(Template!M309>0,Template!M309,-Template!N309)","v":0},null,null,null,{"$f":"VLOOKUP(G297,'Account mapping'!A:D,4,0)","v":{"$error":"#N/A"}}]
[{"$f":"LEFT(Template!A310,4)","v":""},{"$f":"VLOOKUP(A298,'Structure mapping'!K:V,7,0)","v":{"$error":"#N/A"}},{"$f":"LEFT(Template!B310,5)","v":""},{"$f":"VLOOKUP(C298,'Structure mapping'!F:J,5,0)","v":{"$error":"#N/A"}},{"$f":"LEFT(Template!C310,7)","v":""},{"$f":"VLOOKUP(E298,'Structure mapping'!A:E,5,0)","v":{"$error":"#N/A"}},{"$f":"LEFT(Template!D310,6)","v":""},{"$f":"VLOOKUP(G298,'Account mapping'!A:E,5,0)","v":{"$error":"#N/A"}},{"$f":"LEFT(Template!E310,2)","v":""},{"$f":"VLOOKUP(I298,'Structure mapping'!X:AB,5,0)","v":{"$error":"#N/A"}},{"$f":"LEFT(Template!F310,3)","v":""},{"$f":"VLOOKUP(K298,'Structure mapping'!AC:AG,5,0)","v":{"$error":"#N/A"}},{"$f":"LEFT(Template!G310,10)","v":""},{"$f":"VLOOKUP(M298,'Structure mapping'!AH:AL,5,0)","v":{"$error":"#N/A"}},{"$f":"LEFT(Template!H310,6)","v":""},{"$f":"VLOOKUP(O298,'Structure mapping'!AM:AQ,5,0)","v":{"$error":"#N/A"}},null,null,null,null,{"$f":"IF(Template!O310=\"\",\"\",Template!O310)","v":""},"Aug-24 pending entries",{"$f":"TEXT(Template!$B$9,\"mm/dd/yyy\")","v":"08/01/2024"},null,null,null,null,{"$f":"IF(Template!M310>0,Template!M310,-Template!N310)","v":0},null,null,null,{"$f":"VLOOKUP(G298,'Account mapping'!A:D,4,0)","v":{"$error":"#N/A"}}]
[{"$f":"LEFT(Template!A311,4)","v":""},{"$f":"VLOOKUP(A299,'Structure mapping'!K:V,7,0)","v":{"$error":"#N/A"}},{"$f":"LEFT(Template!B311,5)","v":""},{"$f":"VLOOKUP(C299,'Structure mapping'!F:J,5,0)","v":{"$error":"#N/A"}},{"$f":"LEFT(Template!C311,7)","v":""},{"$f":"VLOOKUP(E299,'Structure mapping'!A:E,5,0)","v":{"$error":"#N/A"}},{"$f":"LEFT(Template!D311,6)","v":""},{"$f":"VLOOKUP(G299,'Account mapping'!A:E,5,0)","v":{"$error":"#N/A"}},{"$f":"LEFT(Template!E311,2)","v":""},{"$f":"VLOOKUP(I299,'Structure mapping'!X:AB,5,0)","v":{"$error":"#N/A"}},{"$f":"LEFT(Template!F311,3)","v":""},{"$f":"VLOOKUP(K299,'Structure mapping'!AC:AG,5,0)","v":{"$error":"#N/A"}},{"$f":"LEFT(Template!G311,10)","v":""},{"$f":"VLOOKUP(M299,'Structure mapping'!AH:AL,5,0)","v":{"$error":"#N/A"}},{"$f":"LEFT(Template!H311,6)","v":""},{"$f":"VLOOKUP(O299,'Structure mapping'!AM:AQ,5,0)","v":{"$error":"#N/A"}},null,null,null,null,{"$f":"IF(Template!O311=\"\",\"\",Template!O311)","v":""},"Aug-24 pending entries",{"$f":"TEXT(Template!$B$9,\"mm/dd/yyy\")","v":"08/01/2024"},null,null,null,null,{"$f":"IF(Template!M311>0,Template!M311,-Template!N311)","v":0},null,null,null,{"$f":"VLOOKUP(G299,'Account mapping'!A:D,4,0)","v":{"$error":"#N/A"}}]
[{"$f":"LEFT(Template!A312,4)","v":""},{"$f":"VLOOKUP(A300,'Structure mapping'!K:V,7,0)","v":{"$error":"#N/A"}},{"$f":"LEFT(Template!B312,5)","v":""},{"$f":"VLOOKUP(C300,'Structure mapping'!F:J,5,0)","v":{"$error":"#N/A"}},{"$f":"LEFT(Template!C312,7)","v":""},{"$f":"VLOOKUP(E300,'Structure mapping'!A:E,5,0)","v":{"$error":"#N/A"}},{"$f":"LEFT(Template!D312,6)","v":""},{"$f":"VLOOKUP(G300,'Account mapping'!A:E,5,0)","v":{"$error":"#N/A"}},{"$f":"LEFT(Template!E312,2)","v":""},{"$f":"VLOOKUP(I300,'Structure mapping'!X:AB,5,0)","v":{"$error":"#N/A"}},{"$f":"LEFT(Template!F312,3)","v":""},{"$f":"VLOOKUP(K300,'Structure mapping'!AC:AG,5,0)","v":{"$error":"#N/A"}},{"$f":"LEFT(Template!G312,10)","v":""},{"$f":"VLOOKUP(M300,'Structure mapping'!AH:AL,5,0)","v":{"$error":"#N/A"}},{"$f":"LEFT(Template!H312,6)","v":""},{"$f":"VLOOKUP(O300,'Structure mapping'!AM:AQ,5,0)","v":{"$error":"#N/A"}},null,null,null,null,{"$f":"IF(Template!O312=\"\",\"\",Template!O312)","v":""},"Aug-24 pending entries",{"$f":"TEXT(Template!$B$9,\"mm/dd/yyy\")","v":"08/01/2024"},null,null,null,null,{"$f":"IF(Template!M312>0,Template!M312,-Template!N312)","v":0},null,null,null,{"$f":"VLOOKUP(G300,'Account mapping'!A:D,4,0)","v":{"$error":"#N/A"}}]
[{"$f":"LEFT(Template!A313,4)","v":""},{"$f":"VLOOKUP(A301,'Structure mapping'!K:V,7,0)","v":{"$error":"#N/A"}},{"$f":"LEFT(Template!B313,5)","v":""},{"$f":"VLOOKUP(C301,'Structure mapping'!F:J,5,0)","v":{"$error":"#N/A"}},{"$f":"LEFT(Template!C313,7)","v":""},{"$f":"VLOOKUP(E301,'Structure mapping'!A:E,5,0)","v":{"$error":"#N/A"}},{"$f":"LEFT(Template!D313,6)","v":""},{"$f":"VLOOKUP(G301,'Account mapping'!A:E,5,0)","v":{"$error":"#N/A"}},{"$f":"LEFT(Template!E313,2)","v":""},{"$f":"VLOOKUP(I301,'Structure mapping'!X:AB,5,0)","v":{"$error":"#N/A"}},{"$f":"LEFT(Template!F313,3)","v":""},{"$f":"VLOOKUP(K301,'Structure mapping'!AC:AG,5,0)","v":{"$error":"#N/A"}},{"$f":"LEFT(Template!G313,10)","v":""},{"$f":"VLOOKUP(M301,'Structure mapping'!AH:AL,5,0)","v":{"$error":"#N/A"}},{"$f":"LEFT(Template!H313,6)","v":""},{"$f":"VLOOKUP(O301,'Structure mapping'!AM:AQ,5,0)","v":{"$error":"#N/A"}},null,null,null,null,{"$f":"IF(Template!O313=\"\",\"\",Template!O313)","v":""},"Aug-24 pending entries",{"$f":"TEXT(Template!$B$9,\"mm/dd/yyy\")","v":"08/01/2024"},null,null,null,null,{"$f":"IF(Template!M313>0,Template!M313,-Template!N313)","v":0},null,null,null,{"$f":"VLOOKUP(G301,'Account mapping'!A:D,4,0)","v":{"$error":"#N/A"}}]
[{"$f":"LEFT(Template!A314,4)","v":""},{"$f":"VLOOKUP(A302,'Structure mapping'!K:V,7,0)","v":{"$error":"#N/A"}},{"$f":"LEFT(Template!B314,5)","v":""},{"$f":"VLOOKUP(C302,'Structure mapping'!F:J,5,0)","v":{"$error":"#N/A"}},{"$f":"LEFT(Template!C314,7)","v":""},{"$f":"VLOOKUP(E302,'Structure mapping'!A:E,5,0)","v":{"$error":"#N/A"}},{"$f":"LEFT(Template!D314,6)","v":""},{"$f":"VLOOKUP(G302,'Account mapping'!A:E,5,0)","v":{"$error":"#N/A"}},{"$f":"LEFT(Template!E314,2)","v":""},{"$f":"VLOOKUP(I302,'Structure mapping'!X:AB,5,0)","v":{"$error":"#N/A"}},{"$f":"LEFT(Template!F314,3)","v":""},{"$f":"VLOOKUP(K302,'Structure mapping'!AC:AG,5,0)","v":{"$error":"#N/A"}},{"$f":"LEFT(Template!G314,10)","v":""},{"$f":"VLOOKUP(M302,'Structure mapping'!AH:AL,5,0)","v":{"$error":"#N/A"}},{"$f":"LEFT(Template!H314,6)","v":""},{"$f":"VLOOKUP(O302,'Structure mapping'!AM:AQ,5,0)","v":{"$error":"#N/A"}},null,null,null,null,{"$f":"IF(Template!O314=\"\",\"\",Template!O314)","v":""},"Aug-24 pending entries",{"$f":"TEXT(Template!$B$9,\"mm/dd/yyy\")","v":"08/01/2024"},null,null,null,null,{"$f":"IF(Template!M314>0,Template!M314,-Template!N314)","v":0},null,null,null,{"$f":"VLOOKUP(G302,'Account mapping'!A:D,4,0)","v":{"$error":"#N/A"}}]
[{"$f":"LEFT(Template!A315,4)","v":""},{"$f":"VLOOKUP(A303,'Structure mapping'!K:V,7,0)","v":{"$error":"#N/A"}},{"$f":"LEFT(Template!B315,5)","v":""},{"$f":"VLOOKUP(C303,'Structure mapping'!F:J,5,0)","v":{"$error":"#N/A"}},{"$f":"LEFT(Template!C315,7)","v":""},{"$f":"VLOOKUP(E303,'Structure mapping'!A:E,5,0)","v":{"$error":"#N/A"}},{"$f":"LEFT(Template!D315,6)","v":""},{"$f":"VLOOKUP(G303,'Account mapping'!A:E,5,0)","v":{"$error":"#N/A"}},{"$f":"LEFT(Template!E315,2)","v":""},{"$f":"VLOOKUP(I303,'Structure mapping'!X:AB,5,0)","v":{"$error":"#N/A"}},{"$f":"LEFT(Template!F315,3)","v":""},{"$f":"VLOOKUP(K303,'Structure mapping'!AC:AG,5,0)","v":{"$error":"#N/A"}},{"$f":"LEFT(Template!G315,10)","v":""},{"$f":"VLOOKUP(M303,'Structure mapping'!AH:AL,5,0)","v":{"$error":"#N/A"}},{"$f":"LEFT(Template!H315,6)","v":""},{"$f":"VLOOKUP(O303,'Structure mapping'!AM:AQ,5,0)","v":{"$error":"#N/A"}},null,null,null,null,{"$f":"IF(Template!O315=\"\",\"\",Template!O315)","v":""},"Aug-24 pending entries",{"$f":"TEXT(Template!$B$9,\"mm/dd/yyy\")","v":"08/01/2024"},null,null,null,null,{"$f":"IF(Template!M315>0,Template!M315,-Template!N315)","v":0},null,null,null,{"$f":"VLOOKUP(G303,'Account mapping'!A:D,4,0)","v":{"$error":"#N/A"}}]
[{"$f":"LEFT(Template!A316,4)","v":""},{"$f":"VLOOKUP(A304,'Structure mapping'!K:V,7,0)","v":{"$error":"#N/A"}},{"$f":"LEFT(Template!B316,5)","v":""},{"$f":"VLOOKUP(C304,'Structure mapping'!F:J,5,0)","v":{"$error":"#N/A"}},{"$f":"LEFT(Template!C316,7)","v":""},{"$f":"VLOOKUP(E304,'Structure mapping'!A:E,5,0)","v":{"$error":"#N/A"}},{"$f":"LEFT(Template!D316,6)","v":""},{"$f":"VLOOKUP(G304,'Account mapping'!A:E,5,0)","v":{"$error":"#N/A"}},{"$f":"LEFT(Template!E316,2)","v":""},{"$f":"VLOOKUP(I304,'Structure mapping'!X:AB,5,0)","v":{"$error":"#N/A"}},{"$f":"LEFT(Template!F316,3)","v":""},{"$f":"VLOOKUP(K304,'Structure mapping'!AC:AG,5,0)","v":{"$error":"#N/A"}},{"$f":"LEFT(Template!G316,10)","v":""},{"$f":"VLOOKUP(M304,'Structure mapping'!AH:AL,5,0)","v":{"$error":"#N/A"}},{"$f":"LEFT(Template!H316,6)","v":""},{"$f":"VLOOKUP(O304,'Structure mapping'!AM:AQ,5,0)","v":{"$error":"#N/A"}},null,null,null,null,{"$f":"IF(Template!O316=\"\",\"\",Template!O316)","v":""},"Aug-24 pending entries",{"$f":"TEXT(Template!$B$9,\"mm/dd/yyy\")","v":"08/01/2024"},null,null,null,null,{"$f":"IF(Template!M316>0,Template!M316,-Template!N316)","v":0},null,null,null,{"$f":"VLOOKUP(G304,'Account mapping'!A:D,4,0)","v":{"$error":"#N/A"}}]
[{"$f":"LEFT(Template!A317,4)","v":""},{"$f":"VLOOKUP(A305,'Structure mapping'!K:V,7,0)","v":{"$error":"#N/A"}},{"$f":"LEFT(Template!B317,5)","v":""},{"$f":"VLOOKUP(C305,'Structure mapping'!F:J,5,0)","v":{"$error":"#N/A"}},{"$f":"LEFT(Template!C317,7)","v":""},{"$f":"VLOOKUP(E305,'Structure mapping'!A:E,5,0)","v":{"$error":"#N/A"}},{"$f":"LEFT(Template!D317,6)","v":""},{"$f":"VLOOKUP(G305,'Account mapping'!A:E,5,0)","v":{"$error":"#N/A"}},{"$f":"LEFT(Template!E317,2)","v":""},{"$f":"VLOOKUP(I305,'Structure mapping'!X:AB,5,0)","v":{"$error":"#N/A"}},{"$f":"LEFT(Template!F317,3)","v":""},{"$f":"VLOOKUP(K305,'Structure mapping'!AC:AG,5,0)","v":{"$error":"#N/A"}},{"$f":"LEFT(Template!G317,10)","v":""},{"$f":"VLOOKUP(M305,'Structure mapping'!AH:AL,5,0)","v":{"$error":"#N/A"}},{"$f":"LEFT(Template!H317,6)","v":""},{"$f":"VLOOKUP(O305,'Structure mapping'!AM:AQ,5,0)","v":{"$error":"#N/A"}},null,null,null,null,{"$f":"IF(Template!O317=\"\",\"\",Template!O317)","v":""},"Aug-24 pending entries",{"$f":"TEXT(Template!$B$9,\"mm/dd/yyy\")","v":"08/01/2024"},null,null,null,null,{"$f":"IF(Template!M317>0,Template!M317,-Template!N317)","v":0},null,null,null,{"$f":"VLOOKUP(G305,'Account mapping'!A:D,4,0)","v":{"$error":"#N/A"}}]
[{"$f":"LEFT(Template!A318,4)","v":""},{"$f":"VLOOKUP(A306,'Structure mapping'!K:V,7,0)","v":{"$error":"#N/A"}},{"$f":"LEFT(Template!B318,5)","v":""},{"$f":"VLOOKUP(C306,'Structure mapping'!F:J,5,0)","v":{"$error":"#N/A"}},{"$f":"LEFT(Template!C318,7)","v":""},{"$f":"VLOOKUP(E306,'Structure mapping'!A:E,5,0)","v":{"$error":"#N/A"}},{"$f":"LEFT(Template!D318,6)","v":""},{"$f":"VLOOKUP(G306,'Account mapping'!A:E,5,0)","v":{"$error":"#N/A"}},{"$f":"LEFT(Template!E318,2)","v":""},{"$f":"VLOOKUP(I306,'Structure mapping'!X:AB,5,0)","v":{"$error":"#N/A"}},{"$f":"LEFT(Template!F318,3)","v":""},{"$f":"VLOOKUP(K306,'Structure mapping'!AC:AG,5,0)","v":{"$error":"#N/A"}},{"$f":"LEFT(Template!G318,10)","v":""},{"$f":"VLOOKUP(M306,'Structure mapping'!AH:AL,5,0)","v":{"$error":"#N/A"}},{"$f":"LEFT(Template!H318,6)","v":""},{"$f":"VLOOKUP(O306,'Structure mapping'!AM:AQ,5,0)","v":{"$error":"#N/A"}},null,null,null,null,{"$f":"IF(Template!O318=\"\",\"\",Template!O318)","v":""},"Aug-24 pending entries",{"$f":"TEXT(Template!$B$9,\"mm/dd/yyy\")","v":"08/01/2024"},null,null,null,null,{"$f":"IF(Template!M318>0,Template!M318,-Template!N318)","v":0},null,null,null,{"$f":"VLOOKUP(G306,'Account mapping'!A:D,4,0)","v":{"$error":"#N/A"}}]
[{"$f":"LEFT(Template!A319,4)","v":""},{"$f":"VLOOKUP(A307,'Structure mapping'!K:V,7,0)","v":{"$error":"#N/A"}},{"$f":"LEFT(Template!B319,5)","v":""},{"$f":"VLOOKUP(C307,'Structure mapping'!F:J,5,0)","v":{"$error":"#N/A"}},{"$f":"LEFT(Template!C319,7)","v":""},{"$f":"VLOOKUP(E307,'Structure mapping'!A:E,5,0)","v":{"$error":"#N/A"}},{"$f":"LEFT(Template!D319,6)","v":""},{"$f":"VLOOKUP(G307,'Account mapping'!A:E,5,0)","v":{"$error":"#N/A"}},{"$f":"LEFT(Template!E319,2)","v":""},{"$f":"VLOOKUP(I307,'Structure mapping'!X:AB,5,0)","v":{"$error":"#N/A"}},{"$f":"LEFT(Template!F319,3)","v":""},{"$f":"VLOOKUP(K307,'Structure mapping'!AC:AG,5,0)","v":{"$error":"#N/A"}},{"$f":"LEFT(Template!G319,10)","v":""},{"$f":"VLOOKUP(M307,'Structure mapping'!AH:AL,5,0)","v":{"$error":"#N/A"}},{"$f":"LEFT(Template!H319,6)","v":""},{"$f":"VLOOKUP(O307,'Structure mapping'!AM:AQ,5,0)","v":{"$error":"#N/A"}},null,null,null,null,{"$f":"IF(Template!O319=\"\",\"\",Template!O319)","v":""},"Aug-24 pending entries",{"$f":"TEXT(Template!$B$9,\"mm/dd/yyy\")","v":"08/01/2024"},null,null,null,null,{"$f":"IF(Template!M319>0,Template!M319,-Template!N319)","v":0},null,null,null,{"$f":"VLOOKUP(G307,'Account mapping'!A:D,4,0)","v":{"$error":"#N/A"}}]
[{"$f":"LEFT(Template!A320,4)","v":""},{"$f":"VLOOKUP(A308,'Structure mapping'!K:V,7,0)","v":{"$error":"#N/A"}},{"$f":"LEFT(Template!B320,5)","v":""},{"$f":"VLOOKUP(C308,'Structure mapping'!F:J,5,0)","v":{"$error":"#N/A"}},{"$f":"LEFT(Template!C320,7)","v":""},{"$f":"VLOOKUP(E308,'Structure mapping'!A:E,5,0)","v":{"$error":"#N/A"}},{"$f":"LEFT(Template!D320,6)","v":""},{"$f":"VLOOKUP(G308,'Account mapping'!A:E,5,0)","v":{"$error":"#N/A"}},{"$f":"LEFT(Template!E320,2)","v":""},{"$f":"VLOOKUP(I308,'Structure mapping'!X:AB,5,0)","v":{"$error":"#N/A"}},{"$f":"LEFT(Template!F320,3)","v":""},{"$f":"VLOOKUP(K308,'Structure mapping'!AC:AG,5,0)","v":{"$error":"#N/A"}},{"$f":"LEFT(Template!G320,10)","v":""},{"$f":"VLOOKUP(M308,'Structure mapping'!AH:AL,5,0)","v":{"$error":"#N/A"}},{"$f":"LEFT(Template!H320,6)","v":""},{"$f":"VLOOKUP(O308,'Structure mapping'!AM:AQ,5,0)","v":{"$error":"#N/A"}},null,null,null,null,{"$f":"IF(Template!O320=\"\",\"\",Template!O320)","v":""},"Aug-24 pending entries",{"$f":"TEXT(Template!$B$9,\"mm/dd/yyy\")","v":"08/01/2024"},null,null,null,null,{"$f":"IF(Template!M320>0,Template!M320,-Template!N320)","v":0},null,null,null,{"$f":"VLOOKUP(G308,'Account mapping'!A:D,4,0)","v":{"$error":"#N/A"}}]
[{"$f":"LEFT(Template!A321,4)","v":""},{"$f":"VLOOKUP(A309,'Structure mapping'!K:V,7,0)","v":{"$error":"#N/A"}},{"$f":"LEFT(Template!B321,5)","v":""},{"$f":"VLOOKUP(C309,'Structure mapping'!F:J,5,0)","v":{"$error":"#N/A"}},{"$f":"LEFT(Template!C321,7)","v":""},{"$f":"VLOOKUP(E309,'Structure mapping'!A:E,5,0)","v":{"$error":"#N/A"}},{"$f":"LEFT(Template!D321,6)","v":""},{"$f":"VLOOKUP(G309,'Account mapping'!A:E,5,0)","v":{"$error":"#N/A"}},{"$f":"LEFT(Template!E321,2)","v":""},{"$f":"VLOOKUP(I309,'Structure mapping'!X:AB,5,0)","v":{"$error":"#N/A"}},{"$f":"LEFT(Template!F321,3)","v":""},{"$f":"VLOOKUP(K309,'Structure mapping'!AC:AG,5,0)","v":{"$error":"#N/A"}},{"$f":"LEFT(Template!G321,10)","v":""},{"$f":"VLOOKUP(M309,'Structure mapping'!AH:AL,5,0)","v":{"$error":"#N/A"}},{"$f":"LEFT(Template!H321,6)","v":""},{"$f":"VLOOKUP(O309,'Structure mapping'!AM:AQ,5,0)","v":{"$error":"#N/A"}},null,null,null,null,{"$f":"IF(Template!O321=\"\",\"\",Template!O321)","v":""},"Aug-24 pending entries",{"$f":"TEXT(Template!$B$9,\"mm/dd/yyy\")","v":"08/01/2024"},null,null,null,null,{"$f":"IF(Template!M321>0,Template!M321,-Template!N321)","v":0},null,null,null,{"$f":"VLOOKUP(G309,'Account mapping'!A:D,4,0)","v":{"$error":"#N/A"}}]
[{"$f":"LEFT(Template!A322,4)","v":""},{"$f":"VLOOKUP(A310,'Structure mapping'!K:V,7,0)","v":{"$error":"#N/A"}},{"$f":"LEFT(Template!B322,5)","v":""},{"$f":"VLOOKUP(C310,'Structure mapping'!F:J,5,0)","v":{"$error":"#N/A"}},{"$f":"LEFT(Template!C322,7)","v":""},{"$f":"VLOOKUP(E310,'Structure mapping'!A:E,5,0)","v":{"$error":"#N/A"}},{"$f":"LEFT(Template!D322,6)","v":""},{"$f":"VLOOKUP(G310,'Account mapping'!A:E,5,0)","v":{"$error":"#N/A"}},{"$f":"LEFT(Template!E322,2)","v":""},{"$f":"VLOOKUP(I310,'Structure mapping'!X:AB,5,0)","v":{"$error":"#N/A"}},{"$f":"LEFT(Template!F322,3)","v":""},{"$f":"VLOOKUP(K310,'Structure mapping'!AC:AG,5,0)","v":{"$error":"#N/A"}},{"$f":"LEFT(Template!G322,10)","v":""},{"$f":"VLOOKUP(M310,'Structure mapping'!AH:AL,5,0)","v":{"$error":"#N/A"}},{"$f":"LEFT(Template!H322,6)","v":""},{"$f":"VLOOKUP(O310,'Structure mapping'!AM:AQ,5,0)","v":{"$error":"#N/A"}},null,null,null,null,{"$f":"IF(Template!O322=\"\",\"\",Template!O322)","v":""},"Aug-24 pending entries",{"$f":"TEXT(Template!$B$9,\"mm/dd/yyy\")","v":"08/01/2024"},null,null,null,null,{"$f":"IF(Template!M322>0,Template!M322,-Template!N322)","v":0},null,null,null,{"$f":"VLOOKUP(G310,'Account mapping'!A:D,4,0)","v":{"$error":"#N/A"}}]
[{"$f":"LEFT(Template!A323,4)","v":""},{"$f":"VLOOKUP(A311,'Structure mapping'!K:V,7,0)","v":{"$error":"#N/A"}},{"$f":"LEFT(Template!B323,5)","v":""},{"$f":"VLOOKUP(C311,'Structure mapping'!F:J,5,0)","v":{"$error":"#N/A"}},{"$f":"LEFT(Template!C323,7)","v":""},{"$f":"VLOOKUP(E311,'Structure mapping'!A:E,5,0)","v":{"$error":"#N/A"}},{"$f":"LEFT(Template!D323,6)","v":""},{"$f":"VLOOKUP(G311,'Account mapping'!A:E,5,0)","v":{"$error":"#N/A"}},{"$f":"LEFT(Template!E323,2)","v":""},{"$f":"VLOOKUP(I311,'Structure mapping'!X:AB,5,0)","v":{"$error":"#N/A"}},{"$f":"LEFT(Template!F323,3)","v":""},{"$f":"VLOOKUP(K311,'Structure mapping'!AC:AG,5,0)","v":{"$error":"#N/A"}},{"$f":"LEFT(Template!G323,10)","v":""},{"$f":"VLOOKUP(M311,'Structure mapping'!AH:AL,5,0)","v":{"$error":"#N/A"}},{"$f":"LEFT(Template!H323,6)","v":""},{"$f":"VLOOKUP(O311,'Structure mapping'!AM:AQ,5,0)","v":{"$error":"#N/A"}},null,null,null,null,{"$f":"IF(Template!O323=\"\",\"\",Template!O323)","v":""},"Aug-24 pending entries",{"$f":"TEXT(Template!$B$9,\"mm/dd/yyy\")","v":"08/01/2024"},null,null,null,null,{"$f":"IF(Template!M323>0,Template!M323,-Template!N323)","v":0},null,null,null,{"$f":"VLOOKUP(G311,'Account mapping'!A:D,4,0)","v":{"$error":"#N/A"}}]
[{"$f":"LEFT(Template!A324,4)","v":""},{"$f":"VLOOKUP(A312,'Structure mapping'!K:V,7,0)","v":{"$error":"#N/A"}},{"$f":"LEFT(Template!B324,5)","v":""},{"$f":"VLOOKUP(C312,'Structure mapping'!F:J,5,0)","v":{"$error":"#N/A"}},{"$f":"LEFT(Template!C324,7)","v":""},{"$f":"VLOOKUP(E312,'Structure mapping'!A:E,5,0)","v":{"$error":"#N/A"}},{"$f":"LEFT(Template!D324,6)","v":""},{"$f":"VLOOKUP(G312,'Account mapping'!A:E,5,0)","v":{"$error":"#N/A"}},{"$f":"LEFT(Template!E324,2)","v":""},{"$f":"VLOOKUP(I312,'Structure mapping'!X:AB,5,0)","v":{"$error":"#N/A"}},{"$f":"LEFT(Template!F324,3)","v":""},{"$f":"VLOOKUP(K312,'Structure mapping'!AC:AG,5,0)","v":{"$error":"#N/A"}},{"$f":"LEFT(Template!G324,10)","v":""},{"$f":"VLOOKUP(M312,'Structure mapping'!AH:AL,5,0)","v":{"$error":"#N/A"}},{"$f":"LEFT(Template!H324,6)","v":""},{"$f":"VLOOKUP(O312,'Structure mapping'!AM:AQ,5,0)","v":{"$error":"#N/A"}},null,null,null,null,{"$f":"IF(Template!O324=\"\",\"\",Template!O324)","v":""},"Aug-24 pending entries",{"$f":"TEXT(Template!$B$9,\"mm/dd/yyy\")","v":"08/01/2024"},null,null,null,null,{"$f":"IF(Template!M324>0,Template!M324,-Template!N324)","v":0},null,null,null,{"$f":"VLOOKUP(G312,'Account mapping'!A:D,4,0)","v":{"$error":"#N/A"}}]
[{"$f":"LEFT(Template!A325,4)","v":""},{"$f":"VLOOKUP(A313,'Structure mapping'!K:V,7,0)","v":{"$error":"#N/A"}},{"$f":"LEFT(Template!B325,5)","v":""},{"$f":"VLOOKUP(C313,'Structure mapping'!F:J,5,0)","v":{"$error":"#N/A"}},{"$f":"LEFT(Template!C325,7)","v":""},{"$f":"VLOOKUP(E313,'Structure mapping'!A:E,5,0)","v":{"$error":"#N/A"}},{"$f":"LEFT(Template!D325,6)","v":""},{"$f":"VLOOKUP(G313,'Account mapping'!A:E,5,0)","v":{"$error":"#N/A"}},{"$f":"LEFT(Template!E325,2)","v":""},{"$f":"VLOOKUP(I313,'Structure mapping'!X:AB,5,0)","v":{"$error":"#N/A"}},{"$f":"LEFT(Template!F325,3)","v":""},{"$f":"VLOOKUP(K313,'Structure mapping'!AC:AG,5,0)","v":{"$error":"#N/A"}},{"$f":"LEFT(Template!G325,10)","v":""},{"$f":"VLOOKUP(M313,'Structure mapping'!AH:AL,5,0)","v":{"$error":"#N/A"}},{"$f":"LEFT(Template!H325,6)","v":""},{"$f":"VLOOKUP(O313,'Structure mapping'!AM:AQ,5,0)","v":{"$error":"#N/A"}},null,null,null,null,{"$f":"IF(Template!O325=\"\",\"\",Template!O325)","v":""},"Aug-24 pending entries",{"$f":"TEXT(Template!$B$9,\"mm/dd/yyy\")","v":"08/01/2024"},null,null,null,null,{"$f":"IF(Template!M325>0,Template!M325,-Template!N325)","v":0},null,null,null,{"$f":"VLOOKUP(G313,'Account mapping'!A:D,4,0)","v":{"$error":"#N/A"}}]
[{"$f":"LEFT(Template!A326,4)","v":""},{"$f":"VLOOKUP(A314,'Structure mapping'!K:V,7,0)","v":{"$error":"#N/A"}},{"$f":"LEFT(Template!B326,5)","v":""},{"$f":"VLOOKUP(C314,'Structure mapping'!F:J,5,0)","v":{"$error":"#N/A"}},{"$f":"LEFT(Template!C326,7)","v":""},{"$f":"VLOOKUP(E314,'Structure mapping'!A:E,5,0)","v":{"$error":"#N/A"}},{"$f":"LEFT(Template!D326,6)","v":""},{"$f":"VLOOKUP(G314,'Account mapping'!A:E,5,0)","v":{"$error":"#N/A"}},{"$f":"LEFT(Template!E326,2)","v":""},{"$f":"VLOOKUP(I314,'Structure mapping'!X:AB,5,0)","v":{"$error":"#N/A"}},{"$f":"LEFT(Template!F326,3)","v":""},{"$f":"VLOOKUP(K314,'Structure mapping'!AC:AG,5,0)","v":{"$error":"#N/A"}},{"$f":"LEFT(Template!G326,10)","v":""},{"$f":"VLOOKUP(M314,'Structure mapping'!AH:AL,5,0)","v":{"$error":"#N/A"}},{"$f":"LEFT(Template!H326,6)","v":""},{"$f":"VLOOKUP(O314,'Structure mapping'!AM:AQ,5,0)","v":{"$error":"#N/A"}},null,null,null,null,{"$f":"IF(Template!O326=\"\",\"\",Template!O326)","v":""},"Aug-24 pending entries",{"$f":"TEXT(Template!$B$9,\"mm/dd/yyy\")","v":"08/01/2024"},null,null,null,null,{"$f":"IF(Template!M326>0,Template!M326,-Template!N326)","v":0},null,null,null,{"$f":"VLOOKUP(G314,'Account mapping'!A:D,4,0)","v":{"$error":"#N/A"}}]
[{"$f":"LEFT(Template!A327,4)","v":""},{"$f":"VLOOKUP(A315,'Structure mapping'!K:V,7,0)","v":{"$error":"#N/A"}},{"$f":"LEFT(Template!B327,5)","v":""},{"$f":"VLOOKUP(C315,'Structure mapping'!F:J,5,0)","v":{"$error":"#N/A"}},{"$f":"LEFT(Template!C327,7)","v":""},{"$f":"VLOOKUP(E315,'Structure mapping'!A:E,5,0)","v":{"$error":"#N/A"}},{"$f":"LEFT(Template!D327,6)","v":""},{"$f":"VLOOKUP(G315,'Account mapping'!A:E,5,0)","v":{"$error":"#N/A"}},{"$f":"LEFT(Template!E327,2)","v":""},{"$f":"VLOOKUP(I315,'Structure mapping'!X:AB,5,0)","v":{"$error":"#N/A"}},{"$f":"LEFT(Template!F327,3)","v":""},{"$f":"VLOOKUP(K315,'Structure mapping'!AC:AG,5,0)","v":{"$error":"#N/A"}},{"$f":"LEFT(Template!G327,10)","v":""},{"$f":"VLOOKUP(M315,'Structure mapping'!AH:AL,5,0)","v":{"$error":"#N/A"}},{"$f":"LEFT(Template!H327,6)","v":""},{"$f":"VLOOKUP(O315,'Structure mapping'!AM:AQ,5,0)","v":{"$error":"#N/A"}},null,null,null,null,{"$f":"IF(Template!O327=\"\",\"\",Template!O327)","v":""},"Aug-24 pending entries",{"$f":"TEXT(Template!$B$9,\"mm/dd/yyy\")","v":"08/01/2024"},null,null,null,null,{"$f":"IF(Template!M327>0,Template!M327,-Template!N327)","v":0},null,null,null,{"$f":"VLOOKUP(G315,'Account mapping'!A:D,4,0)","v":{"$error":"#N/A"}}]
[{"$f":"LEFT(Template!A328,4)","v":""},{"$f":"VLOOKUP(A316,'Structure mapping'!K:V,7,0)","v":{"$error":"#N/A"}},{"$f":"LEFT(Template!B328,5)","v":""},{"$f":"VLOOKUP(C316,'Structure mapping'!F:J,5,0)","v":{"$error":"#N/A"}},{"$f":"LEFT(Template!C328,7)","v":""},{"$f":"VLOOKUP(E316,'Structure mapping'!A:E,5,0)","v":{"$error":"#N/A"}},{"$f":"LEFT(Template!D328,6)","v":""},{"$f":"VLOOKUP(G316,'Account mapping'!A:E,5,0)","v":{"$error":"#N/A"}},{"$f":"LEFT(Template!E328,2)","v":""},{"$f":"VLOOKUP(I316,'Structure mapping'!X:AB,5,0)","v":{"$error":"#N/A"}},{"$f":"LEFT(Template!F328,3)","v":""},{"$f":"VLOOKUP(K316,'Structure mapping'!AC:AG,5,0)","v":{"$error":"#N/A"}},{"$f":"LEFT(Template!G328,10)","v":""},{"$f":"VLOOKUP(M316,'Structure mapping'!AH:AL,5,0)","v":{"$error":"#N/A"}},{"$f":"LEFT(Template!H328,6)","v":""},{"$f":"VLOOKUP(O316,'Structure mapping'!AM:AQ,5,0)","v":{"$error":"#N/A"}},null,null,null,null,{"$f":"IF(Template!O328=\"\",\"\",Template!O328)","v":""},"Aug-24 pending entries",{"$f":"TEXT(Template!$B$9,\"mm/dd/yyy\")","v":"08/01/2024"},null,null,null,null,{"$f":"IF(Template!M328>0,Template!M328,-Template!N328)","v":0},null,null,null,{"$f":"VLOOKUP(G316,'Account mapping'!A:D,4,0)","v":{"$error":"#N/A"}}]
[{"$f":"LEFT(Template!A329,4)","v":""},{"$f":"VLOOKUP(A317,'Structure mapping'!K:V,7,0)","v":{"$error":"#N/A"}},{"$f":"LEFT(Template!B329,5)","v":""},{"$f":"VLOOKUP(C317,'Structure mapping'!F:J,5,0)","v":{"$error":"#N/A"}},{"$f":"LEFT(Template!C329,7)","v":""},{"$f":"VLOOKUP(E317,'Structure mapping'!A:E,5,0)","v":{"$error":"#N/A"}},{"$f":"LEFT(Template!D329,6)","v":""},{"$f":"VLOOKUP(G317,'Account mapping'!A:E,5,0)","v":{"$error":"#N/A"}},{"$f":"LEFT(Template!E329,2)","v":""},{"$f":"VLOOKUP(I317,'Structure mapping'!X:AB,5,0)","v":{"$error":"#N/A"}},{"$f":"LEFT(Template!F329,3)","v":""},{"$f":"VLOOKUP(K317,'Structure mapping'!AC:AG,5,0)","v":{"$error":"#N/A"}},{"$f":"LEFT(Template!G329,10)","v":""},{"$f":"VLOOKUP(M317,'Structure mapping'!AH:AL,5,0)","v":{"$error":"#N/A"}},{"$f":"LEFT(Template!H329,6)","v":""},{"$f":"VLOOKUP(O317,'Structure mapping'!AM:AQ,5,0)","v":{"$error":"#N/A"}},null,null,null,null,{"$f":"IF(Template!O329=\"\",\"\",Template!O329)","v":""},"Aug-24 pending entries",{"$f":"TEXT(Template!$B$9,\"mm/dd/yyy\")","v":"08/01/2024"},null,null,null,null,{"$f":"IF(Template!M329>0,Template!M329,-Template!N329)","v":0},null,null,null,{"$f":"VLOOKUP(G317,'Account mapping'!A:D,4,0)","v":{"$error":"#N/A"}}]
[{"$f":"LEFT(Template!A330,4)","v":""},{"$f":"VLOOKUP(A318,'Structure mapping'!K:V,7,0)","v":{"$error":"#N/A"}},{"$f":"LEFT(Template!B330,5)","v":""},{"$f":"VLOOKUP(C318,'Structure mapping'!F:J,5,0)","v":{"$error":"#N/A"}},{"$f":"LEFT(Template!C330,7)","v":""},{"$f":"VLOOKUP(E318,'Structure mapping'!A:E,5,0)","v":{"$error":"#N/A"}},{"$f":"LEFT(Template!D330,6)","v":""},{"$f":"VLOOKUP(G318,'Account mapping'!A:E,5,0)","v":{"$error":"#N/A"}},{"$f":"LEFT(Template!E330,2)","v":""},{"$f":"VLOOKUP(I318,'Structure mapping'!X:AB,5,0)","v":{"$error":"#N/A"}},{"$f":"LEFT(Template!F330,3)","v":""},{"$f":"VLOOKUP(K318,'Structure mapping'!AC:AG,5,0)","v":{"$error":"#N/A"}},{"$f":"LEFT(Template!G330,10)","v":""},{"$f":"VLOOKUP(M318,'Structure mapping'!AH:AL,5,0)","v":{"$error":"#N/A"}},{"$f":"LEFT(Template!H330,6)","v":""},{"$f":"VLOOKUP(O318,'Structure mapping'!AM:AQ,5,0)","v":{"$error":"#N/A"}},null,null,null,null,{"$f":"IF(Template!O330=\"\",\"\",Template!O330)","v":""},"Aug-24 pending entries",{"$f":"TEXT(Template!$B$9,\"mm/dd/yyy\")","v":"08/01/2024"},null,null,null,null,{"$f":"IF(Template!M330>0,Template!M330,-Template!N330)","v":0},null,null,null,{"$f":"VLOOKUP(G318,'Account mapping'!A:D,4,0)","v":{"$error":"#N/A"}}]
[{"$f":"LEFT(Template!A331,4)","v":""},{"$f":"VLOOKUP(A319,'Structure mapping'!K:V,7,0)","v":{"$error":"#N/A"}},{"$f":"LEFT(Template!B331,5)","v":""},{"$f":"VLOOKUP(C319,'Structure mapping'!F:J,5,0)","v":{"$error":"#N/A"}},{"$f":"LEFT(Template!C331,7)","v":""},{"$f":"VLOOKUP(E319,'Structure mapping'!A:E,5,0)","v":{"$error":"#N/A"}},{"$f":"LEFT(Template!D331,6)","v":""},{"$f":"VLOOKUP(G319,'Account mapping'!A:E,5,0)","v":{"$error":"#N/A"}},{"$f":"LEFT(Template!E331,2)","v":""},{"$f":"VLOOKUP(I319,'Structure mapping'!X:AB,5,0)","v":{"$error":"#N/A"}},{"$f":"LEFT(Template!F331,3)","v":""},{"$f":"VLOOKUP(K319,'Structure mapping'!AC:AG,5,0)","v":{"$error":"#N/A"}},{"$f":"LEFT(Template!G331,10)","v":""},{"$f":"VLOOKUP(M319,'Structure mapping'!AH:AL,5,0)","v":{"$error":"#N/A"}},{"$f":"LEFT(Template!H331,6)","v":""},{"$f":"VLOOKUP(O319,'Structure mapping'!AM:AQ,5,0)","v":{"$error":"#N/A"}},null,null,null,null,{"$f":"IF(Template!O331=\"\",\"\",Template!O331)","v":""},"Aug-24 pending entries",{"$f":"TEXT(Template!$B$9,\"mm/dd/yyy\")","v":"08/01/2024"},null,null,null,null,{"$f":"IF(Template!M331>0,Template!M331,-Template!N331)","v":0},null,null,null,{"$f":"VLOOKUP(G319,'Account mapping'!A:D,4,0)","v":{"$error":"#N/A"}}]
[{"$f":"LEFT(Template!A332,4)","v":""},{"$f":"VLOOKUP(A320,'Structure mapping'!K:V,7,0)","v":{"$error":"#N/A"}},{"$f":"LEFT(Template!B332,5)","v":""},{"$f":"VLOOKUP(C320,'Structure mapping'!F:J,5,0)","v":{"$error":"#N/A"}},{"$f":"LEFT(Template!C332,7)","v":""},{"$f":"VLOOKUP(E320,'Structure mapping'!A:E,5,0)","v":{"$error":"#N/A"}},{"$f":"LEFT(Template!D332,6)","v":""},{"$f":"VLOOKUP(G320,'Account mapping'!A:E,5,0)","v":{"$error":"#N/A"}},{"$f":"LEFT(Template!E332,2)","v":""},{"$f":"VLOOKUP(I320,'Structure mapping'!X:AB,5,0)","v":{"$error":"#N/A"}},{"$f":"LEFT(Template!F332,3)","v":""},{"$f":"VLOOKUP(K320,'Structure mapping'!AC:AG,5,0)","v":{"$error":"#N/A"}},{"$f":"LEFT(Template!G332,10)","v":""},{"$f":"VLOOKUP(M320,'Structure mapping'!AH:AL,5,0)","v":{"$error":"#N/A"}},{"$f":"LEFT(Template!H332,6)","v":""},{"$f":"VLOOKUP(O320,'Structure mapping'!AM:AQ,5,0)","v":{"$error":"#N/A"}},null,null,null,null,{"$f":"IF(Template!O332=\"\",\"\",Template!O332)","v":""},"Aug-24 pending entries",{"$f":"TEXT(Template!$B$9,\"mm/dd/yyy\")","v":"08/01/2024"},null,null,null,null,{"$f":"IF(Template!M332>0,Template!M332,-Template!N332)","v":0},null,null,null,{"$f":"VLOOKUP(G320,'Account mapping'!A:D,4,0)","v":{"$error":"#N/A"}}]
[{"$f":"LEFT(Template!A333,4)","v":""},{"$f":"VLOOKUP(A321,'Structure mapping'!K:V,7,0)","v":{"$error":"#N/A"}},{"$f":"LEFT(Template!B333,5)","v":""},{"$f":"VLOOKUP(C321,'Structure mapping'!F:J,5,0)","v":{"$error":"#N/A"}},{"$f":"LEFT(Template!C333,7)","v":""},{"$f":"VLOOKUP(E321,'Structure mapping'!A:E,5,0)","v":{"$error":"#N/A"}},{"$f":"LEFT(Template!D333,6)","v":""},{"$f":"VLOOKUP(G321,'Account mapping'!A:E,5,0)","v":{"$error":"#N/A"}},{"$f":"LEFT(Template!E333,2)","v":""},{"$f":"VLOOKUP(I321,'Structure mapping'!X:AB,5,0)","v":{"$error":"#N/A"}},{"$f":"LEFT(Template!F333,3)","v":""},{"$f":"VLOOKUP(K321,'Structure mapping'!AC:AG,5,0)","v":{"$error":"#N/A"}},{"$f":"LEFT(Template!G333,10)","v":""},{"$f":"VLOOKUP(M321,'Structure mapping'!AH:AL,5,0)","v":{"$error":"#N/A"}},{"$f":"LEFT(Template!H333,6)","v":""},{"$f":"VLOOKUP(O321,'Structure mapping'!AM:AQ,5,0)","v":{"$error":"#N/A"}},null,null,null,null,{"$f":"IF(Template!O333=\"\",\"\",Template!O333)","v":""},"Aug-24 pending entries",{"$f":"TEXT(Template!$B$9,\"mm/dd/yyy\")","v":"08/01/2024"},null,null,null,null,{"$f":"IF(Template!M333>0,Template!M333,-Template!N333)","v":0},null,null,null,{"$f":"VLOOKUP(G321,'Account mapping'!A:D,4,0)","v":{"$error":"#N/A"}}]
[{"$f":"LEFT(Template!A334,4)","v":""},{"$f":"VLOOKUP(A322,'Structure mapping'!K:V,7,0)","v":{"$error":"#N/A"}},{"$f":"LEFT(Template!B334,5)","v":""},{"$f":"VLOOKUP(C322,'Structure mapping'!F:J,5,0)","v":{"$error":"#N/A"}},{"$f":"LEFT(Template!C334,7)","v":""},{"$f":"VLOOKUP(E322,'Structure mapping'!A:E,5,0)","v":{"$error":"#N/A"}},{"$f":"LEFT(Template!D334,6)","v":""},{"$f":"VLOOKUP(G322,'Account mapping'!A:E,5,0)","v":{"$error":"#N/A"}},{"$f":"LEFT(Template!E334,2)","v":""},{"$f":"VLOOKUP(I322,'Structure mapping'!X:AB,5,0)","v":{"$error":"#N/A"}},{"$f":"LEFT(Template!F334,3)","v":""},{"$f":"VLOOKUP(K322,'Structure mapping'!AC:AG,5,0)","v":{"$error":"#N/A"}},{"$f":"LEFT(Template!G334,10)","v":""},{"$f":"VLOOKUP(M322,'Structure mapping'!AH:AL,5,0)","v":{"$error":"#N/A"}},{"$f":"LEFT(Template!H334,6)","v":""},{"$f":"VLOOKUP(O322,'Structure mapping'!AM:AQ,5,0)","v":{"$error":"#N/A"}},null,null,null,null,{"$f":"IF(Template!O334=\"\",\"\",Template!O334)","v":""},"Aug-24 pending entries",{"$f":"TEXT(Template!$B$9,\"mm/dd/yyy\")","v":"08/01/2024"},null,null,null,null,{"$f":"IF(Template!M334>0,Template!M334,-Template!N334)","v":0},null,null,null,{"$f":"VLOOKUP(G322,'Account mapping'!A:D,4,0)","v":{"$error":"#N/A"}}]
[{"$f":"LEFT(Template!A335,4)","v":""},{"$f":"VLOOKUP(A323,'Structure mapping'!K:V,7,0)","v":{"$error":"#N/A"}},{"$f":"LEFT(Template!B335,5)","v":""},{"$f":"VLOOKUP(C323,'Structure mapping'!F:J,5,0)","v":{"$error":"#N/A"}},{"$f":"LEFT(Template!C335,7)","v":""},{"$f":"VLOOKUP(E323,'Structure mapping'!A:E,5,0)","v":{"$error":"#N/A"}},{"$f":"LEFT(Template!D335,6)","v":""},{"$f":"VLOOKUP(G323,'Account mapping'!A:E,5,0)","v":{"$error":"#N/A"}},{"$f":"LEFT(Template!E335,2)","v":""},{"$f":"VLOOKUP(I323,'Structure mapping'!X:AB,5,0)","v":{"$error":"#N/A"}},{"$f":"LEFT(Template!F335,3)","v":""},{"$f":"VLOOKUP(K323,'Structure mapping'!AC:AG,5,0)","v":{"$error":"#N/A"}},{"$f":"LEFT(Template!G335,10)","v":""},{"$f":"VLOOKUP(M323,'Structure mapping'!AH:AL,5,0)","v":{"$error":"#N/A"}},{"$f":"LEFT(Template!H335,6)","v":""},{"$f":"VLOOKUP(O323,'Structure mapping'!AM:AQ,5,0)","v":{"$error":"#N/A"}},null,null,null,null,{"$f":"IF(Template!O335=\"\",\"\",Template!O335)","v":""},{"$f":"TEXT(W323,\"mmm-yy\")&\" pending entries\"","v":"Aug-24 pending entries"},{"$f":"TEXT(Template!$B$9,\"mm/dd/yyy\")","v":"08/01/2024"},null,null,null,null,{"$f":"IF(Template!M335>0,Template!M335,-Template!N335)","v":0},null,null,null,{"$f":"VLOOKUP(G323,'Account mapping'!A:D,4,0)","v":{"$error":"#N/A"}}]
[{"$f":"LEFT(Template!A336,4)","v":""},{"$f":"VLOOKUP(A324,'Structure mapping'!K:V,7,0)","v":{"$error":"#N/A"}},{"$f":"LEFT(Template!B336,5)","v":""},{"$f":"VLOOKUP(C324,'Structure mapping'!F:J,5,0)","v":{"$error":"#N/A"}},{"$f":"LEFT(Template!C336,7)","v":""},{"$f":"VLOOKUP(E324,'Structure mapping'!A:E,5,0)","v":{"$error":"#N/A"}},{"$f":"LEFT(Template!D336,6)","v":""},{"$f":"VLOOKUP(G324,'Account mapping'!A:E,5,0)","v":{"$error":"#N/A"}},{"$f":"LEFT(Template!E336,2)","v":""},{"$f":"VLOOKUP(I324,'Structure mapping'!X:AB,5,0)","v":{"$error":"#N/A"}},{"$f":"LEFT(Template!F336,3)","v":""},{"$f":"VLOOKUP(K324,'Structure mapping'!AC:AG,5,0)","v":{"$error":"#N/A"}},{"$f":"LEFT(Template!G336,10)","v":""},{"$f":"VLOOKUP(M324,'Structure mapping'!AH:AL,5,0)","v":{"$error":"#N/A"}},{"$f":"LEFT(Template!H336,6)","v":""},{"$f":"VLOOKUP(O324,'Structure mapping'!AM:AQ,5,0)","v":{"$error":"#N/A"}},null,null,null,null,{"$f":"IF(Template!O336=\"\",\"\",Template!O336)","v":""},"Aug-24 pending entries",{"$f":"TEXT(Template!$B$9,\"mm/dd/yyy\")","v":"08/01/2024"},null,null,null,null,{"$f":"IF(Template!M336>0,Template!M336,-Template!N336)","v":0},null,null,null,{"$f":"VLOOKUP(G324,'Account mapping'!A:D,4,0)","v":{"$error":"#N/A"}}]
[{"$f":"LEFT(Template!A337,4)","v":""},{"$f":"VLOOKUP(A325,'Structure mapping'!K:V,7,0)","v":{"$error":"#N/A"}},{"$f":"LEFT(Template!B337,5)","v":""},{"$f":"VLOOKUP(C325,'Structure mapping'!F:J,5,0)","v":{"$error":"#N/A"}},{"$f":"LEFT(Template!C337,7)","v":""},{"$f":"VLOOKUP(E325,'Structure mapping'!A:E,5,0)","v":{"$error":"#N/A"}},{"$f":"LEFT(Template!D337,6)","v":""},{"$f":"VLOOKUP(G325,'Account mapping'!A:E,5,0)","v":{"$error":"#N/A"}},{"$f":"LEFT(Template!E337,2)","v":""},{"$f":"VLOOKUP(I325,'Structure mapping'!X:AB,5,0)","v":{"$error":"#N/A"}},{"$f":"LEFT(Template!F337,3)","v":""},{"$f":"VLOOKUP(K325,'Structure mapping'!AC:AG,5,0)","v":{"$error":"#N/A"}},{"$f":"LEFT(Template!G337,10)","v":""},{"$f":"VLOOKUP(M325,'Structure mapping'!AH:AL,5,0)","v":{"$error":"#N/A"}},{"$f":"LEFT(Template!H337,6)","v":""},{"$f":"VLOOKUP(O325,'Structure mapping'!AM:AQ,5,0)","v":{"$error":"#N/A"}},null,null,null,null,{"$f":"IF(Template!O337=\"\",\"\",Template!O337)","v":""},"Aug-24 pending entries",{"$f":"TEXT(Template!$B$9,\"mm/dd/yyy\")","v":"08/01/2024"},null,null,null,null,{"$f":"IF(Template!M337>0,Template!M337,-Template!N337)","v":0},null,null,null,{"$f":"VLOOKUP(G325,'Account mapping'!A:D,4,0)","v":{"$error":"#N/A"}}]
[{"$f":"LEFT(Template!A338,4)","v":""},{"$f":"VLOOKUP(A326,'Structure mapping'!K:V,7,0)","v":{"$error":"#N/A"}},{"$f":"LEFT(Template!B338,5)","v":""},{"$f":"VLOOKUP(C326,'Structure mapping'!F:J,5,0)","v":{"$error":"#N/A"}},{"$f":"LEFT(Template!C338,7)","v":""},{"$f":"VLOOKUP(E326,'Structure mapping'!A:E,5,0)","v":{"$error":"#N/A"}},{"$f":"LEFT(Template!D338,6)","v":""},{"$f":"VLOOKUP(G326,'Account mapping'!A:E,5,0)","v":{"$error":"#N/A"}},{"$f":"LEFT(Template!E338,2)","v":""},{"$f":"VLOOKUP(I326,'Structure mapping'!X:AB,5,0)","v":{"$error":"#N/A"}},{"$f":"LEFT(Template!F338,3)","v":""},{"$f":"VLOOKUP(K326,'Structure mapping'!AC:AG,5,0)","v":{"$error":"#N/A"}},{"$f":"LEFT(Template!G338,10)","v":""},{"$f":"VLOOKUP(M326,'Structure mapping'!AH:AL,5,0)","v":{"$error":"#N/A"}},{"$f":"LEFT(Template!H338,6)","v":""},{"$f":"VLOOKUP(O326,'Structure mapping'!AM:AQ,5,0)","v":{"$error":"#N/A"}},null,null,null,null,{"$f":"IF(Template!O338=\"\",\"\",Template!O338)","v":""},"Aug-24 pending entries",{"$f":"TEXT(Template!$B$9,\"mm/dd/yyy\")","v":"08/01/2024"},null,null,null,null,{"$f":"IF(Template!M338>0,Template!M338,-Template!N338)","v":0},null,null,null,{"$f":"VLOOKUP(G326,'Account mapping'!A:D,4,0)","v":{"$error":"#N/A"}}]
[{"$f":"LEFT(Template!A339,4)","v":""},{"$f":"VLOOKUP(A327,'Structure mapping'!K:V,7,0)","v":{"$error":"#N/A"}},{"$f":"LEFT(Template!B339,5)","v":""},{"$f":"VLOOKUP(C327,'Structure mapping'!F:J,5,0)","v":{"$error":"#N/A"}},{"$f":"LEFT(Template!C339,7)","v":""},{"$f":"VLOOKUP(E327,'Structure mapping'!A:E,5,0)","v":{"$error":"#N/A"}},{"$f":"LEFT(Template!D339,6)","v":""},{"$f":"VLOOKUP(G327,'Account mapping'!A:E,5,0)","v":{"$error":"#N/A"}},{"$f":"LEFT(Template!E339,2)","v":""},{"$f":"VLOOKUP(I327,'Structure mapping'!X:AB,5,0)","v":{"$error":"#N/A"}},{"$f":"LEFT(Template!F339,3)","v":""},{"$f":"VLOOKUP(K327,'Structure mapping'!AC:AG,5,0)","v":{"$error":"#N/A"}},{"$f":"LEFT(Template!G339,10)","v":""},{"$f":"VLOOKUP(M327,'Structure mapping'!AH:AL,5,0)","v":{"$error":"#N/A"}},{"$f":"LEFT(Template!H339,6)","v":""},{"$f":"VLOOKUP(O327,'Structure mapping'!AM:AQ,5,0)","v":{"$error":"#N/A"}},null,null,null,null,{"$f":"IF(Template!O339=\"\",\"\",Template!O339)","v":""},"Aug-24 pending entries",{"$f":"TEXT(Template!$B$9,\"mm/dd/yyy\")","v":"08/01/2024"},null,null,null,null,{"$f":"IF(Template!M339>0,Template!M339,-Template!N339)","v":0},null,null,null,{"$f":"VLOOKUP(G327,'Account mapping'!A:D,4,0)","v":{"$error":"#N/A"}}]
[{"$f":"LEFT(Template!A340,4)","v":""},{"$f":"VLOOKUP(A328,'Structure mapping'!K:V,7,0)","v":{"$error":"#N/A"}},{"$f":"LEFT(Template!B340,5)","v":""},{"$f":"VLOOKUP(C328,'Structure mapping'!F:J,5,0)","v":{"$error":"#N/A"}},{"$f":"LEFT(Template!C340,7)","v":""},{"$f":"VLOOKUP(E328,'Structure mapping'!A:E,5,0)","v":{"$error":"#N/A"}},{"$f":"LEFT(Template!D340,6)","v":""},{"$f":"VLOOKUP(G328,'Account mapping'!A:E,5,0)","v":{"$error":"#N/A"}},{"$f":"LEFT(Template!E340,2)","v":""},{"$f":"VLOOKUP(I328,'Structure mapping'!X:AB,5,0)","v":{"$error":"#N/A"}},{"$f":"LEFT(Template!F340,3)","v":""},{"$f":"VLOOKUP(K328,'Structure mapping'!AC:AG,5,0)","v":{"$error":"#N/A"}},{"$f":"LEFT(Template!G340,10)","v":""},{"$f":"VLOOKUP(M328,'Structure mapping'!AH:AL,5,0)","v":{"$error":"#N/A"}},{"$f":"LEFT(Template!H340,6)","v":""},{"$f":"VLOOKUP(O328,'Structure mapping'!AM:AQ,5,0)","v":{"$error":"#N/A"}},null,null,null,null,{"$f":"IF(Template!O340=\"\",\"\",Template!O340)","v":""},"Aug-24 pending entries",{"$f":"TEXT(Template!$B$9,\"mm/dd/yyy\")","v":"08/01/2024"},null,null,null,null,{"$f":"IF(Template!M340>0,Template!M340,-Template!N340)","v":0},null,null,null,{"$f":"VLOOKUP(G328,'Account mapping'!A:D,4,0)","v":{"$error":"#N/A"}}]
[{"$f":"LEFT(Template!A341,4)","v":""},{"$f":"VLOOKUP(A329,'Structure mapping'!K:V,7,0)","v":{"$error":"#N/A"}},{"$f":"LEFT(Template!B341,5)","v":""},{"$f":"VLOOKUP(C329,'Structure mapping'!F:J,5,0)","v":{"$error":"#N/A"}},{"$f":"LEFT(Template!C341,7)","v":""},{"$f":"VLOOKUP(E329,'Structure mapping'!A:E,5,0)","v":{"$error":"#N/A"}},{"$f":"LEFT(Template!D341,6)","v":""},{"$f":"VLOOKUP(G329,'Account mapping'!A:E,5,0)","v":{"$error":"#N/A"}},{"$f":"LEFT(Template!E341,2)","v":""},{"$f":"VLOOKUP(I329,'Structure mapping'!X:AB,5,0)","v":{"$error":"#N/A"}},{"$f":"LEFT(Template!F341,3)","v":""},{"$f":"VLOOKUP(K329,'Structure mapping'!AC:AG,5,0)","v":{"$error":"#N/A"}},{"$f":"LEFT(Template!G341,10)","v":""},{"$f":"VLOOKUP(M329,'Structure mapping'!AH:AL,5,0)","v":{"$error":"#N/A"}},{"$f":"LEFT(Template!H341,6)","v":""},{"$f":"VLOOKUP(O329,'Structure mapping'!AM:AQ,5,0)","v":{"$error":"#N/A"}},null,null,null,null,{"$f":"IF(Template!O341=\"\",\"\",Template!O341)","v":""},"Aug-24 pending entries",{"$f":"TEXT(Template!$B$9,\"mm/dd/yyy\")","v":"08/01/2024"},null,null,null,null,{"$f":"IF(Template!M341>0,Template!M341,-Template!N341)","v":0},null,null,null,{"$f":"VLOOKUP(G329,'Account mapping'!A:D,4,0)","v":{"$error":"#N/A"}}]
[{"$f":"LEFT(Template!A342,4)","v":""},{"$f":"VLOOKUP(A330,'Structure mapping'!K:V,7,0)","v":{"$error":"#N/A"}},{"$f":"LEFT(Template!B342,5)","v":""},{"$f":"VLOOKUP(C330,'Structure mapping'!F:J,5,0)","v":{"$error":"#N/A"}},{"$f":"LEFT(Template!C342,7)","v":""},{"$f":"VLOOKUP(E330,'Structure mapping'!A:E,5,0)","v":{"$error":"#N/A"}},{"$f":"LEFT(Template!D342,6)","v":""},{"$f":"VLOOKUP(G330,'Account mapping'!A:E,5,0)","v":{"$error":"#N/A"}},{"$f":"LEFT(Template!E342,2)","v":""},{"$f":"VLOOKUP(I330,'Structure mapping'!X:AB,5,0)","v":{"$error":"#N/A"}},{"$f":"LEFT(Template!F342,3)","v":""},{"$f":"VLOOKUP(K330,'Structure mapping'!AC:AG,5,0)","v":{"$error":"#N/A"}},{"$f":"LEFT(Template!G342,10)","v":""},{"$f":"VLOOKUP(M330,'Structure mapping'!AH:AL,5,0)","v":{"$error":"#N/A"}},{"$f":"LEFT(Template!H342,6)","v":""},{"$f":"VLOOKUP(O330,'Structure mapping'!AM:AQ,5,0)","v":{"$error":"#N/A"}},null,null,null,null,{"$f":"IF(Template!O342=\"\",\"\",Template!O342)","v":""},"Aug-24 pending entries",{"$f":"TEXT(Template!$B$9,\"mm/dd/yyy\")","v":"08/01/2024"},null,null,null,null,{"$f":"IF(Template!M342>0,Template!M342,-Template!N342)","v":0},null,null,null,{"$f":"VLOOKUP(G330,'Account mapping'!A:D,4,0)","v":{"$error":"#N/A"}}]
[{"$f":"LEFT(Template!A343,4)","v":""},{"$f":"VLOOKUP(A331,'Structure mapping'!K:V,7,0)","v":{"$error":"#N/A"}},{"$f":"LEFT(Template!B343,5)","v":""},{"$f":"VLOOKUP(C331,'Structure mapping'!F:J,5,0)","v":{"$error":"#N/A"}},{"$f":"LEFT(Template!C343,7)","v":""},{"$f":"VLOOKUP(E331,'Structure mapping'!A:E,5,0)","v":{"$error":"#N/A"}},{"$f":"LEFT(Template!D343,6)","v":""},{"$f":"VLOOKUP(G331,'Account mapping'!A:E,5,0)","v":{"$error":"#N/A"}},{"$f":"LEFT(Template!E343,2)","v":""},{"$f":"VLOOKUP(I331,'Structure mapping'!X:AB,5,0)","v":{"$error":"#N/A"}},{"$f":"LEFT(Template!F343,3)","v":""},{"$f":"VLOOKUP(K331,'Structure mapping'!AC:AG,5,0)","v":{"$error":"#N/A"}},{"$f":"LEFT(Template!G343,10)","v":""},{"$f":"VLOOKUP(M331,'Structure mapping'!AH:AL,5,0)","v":{"$error":"#N/A"}},{"$f":"LEFT(Template!H343,6)","v":""},{"$f":"VLOOKUP(O331,'Structure mapping'!AM:AQ,5,0)","v":{"$error":"#N/A"}},null,null,null,null,{"$f":"IF(Template!O343=\"\",\"\",Template!O343)","v":""},"Aug-24 pending entries",{"$f":"TEXT(Template!$B$9,\"mm/dd/yyy\")","v":"08/01/2024"},null,null,null,null,{"$f":"IF(Template!M343>0,Template!M343,-Template!N343)","v":0},null,null,null,{"$f":"VLOOKUP(G331,'Account mapping'!A:D,4,0)","v":{"$error":"#N/A"}}]
[{"$f":"LEFT(Template!A344,4)","v":""},{"$f":"VLOOKUP(A332,'Structure mapping'!K:V,7,0)","v":{"$error":"#N/A"}},{"$f":"LEFT(Template!B344,5)","v":""},{"$f":"VLOOKUP(C332,'Structure mapping'!F:J,5,0)","v":{"$error":"#N/A"}},{"$f":"LEFT(Template!C344,7)","v":""},{"$f":"VLOOKUP(E332,'Structure mapping'!A:E,5,0)","v":{"$error":"#N/A"}},{"$f":"LEFT(Template!D344,6)","v":""},{"$f":"VLOOKUP(G332,'Account mapping'!A:E,5,0)","v":{"$error":"#N/A"}},{"$f":"LEFT(Template!E344,2)","v":""},{"$f":"VLOOKUP(I332,'Structure mapping'!X:AB,5,0)","v":{"$error":"#N/A"}},{"$f":"LEFT(Template!F344,3)","v":""},{"$f":"VLOOKUP(K332,'Structure mapping'!AC:AG,5,0)","v":{"$error":"#N/A"}},{"$f":"LEFT(Template!G344,10)","v":""},{"$f":"VLOOKUP(M332,'Structure mapping'!AH:AL,5,0)","v":{"$error":"#N/A"}},{"$f":"LEFT(Template!H344,6)","v":""},{"$f":"VLOOKUP(O332,'Structure mapping'!AM:AQ,5,0)","v":{"$error":"#N/A"}},null,null,null,null,{"$f":"IF(Template!O344=\"\",\"\",Template!O344)","v":""},"Aug-24 pending entries",{"$f":"TEXT(Template!$B$9,\"mm/dd/yyy\")","v":"08/01/2024"},null,null,null,null,{"$f":"IF(Template!M344>0,Template!M344,-Template!N344)","v":0},null,null,null,{"$f":"VLOOKUP(G332,'Account mapping'!A:D,4,0)","v":{"$error":"#N/A"}}]
[{"$f":"LEFT(Template!A345,4)","v":""},{"$f":"VLOOKUP(A333,'Structure mapping'!K:V,7,0)","v":{"$error":"#N/A"}},{"$f":"LEFT(Template!B345,5)","v":""},{"$f":"VLOOKUP(C333,'Structure mapping'!F:J,5,0)","v":{"$error":"#N/A"}},{"$f":"LEFT(Template!C345,7)","v":""},{"$f":"VLOOKUP(E333,'Structure mapping'!A:E,5,0)","v":{"$error":"#N/A"}},{"$f":"LEFT(Template!D345,6)","v":""},{"$f":"VLOOKUP(G333,'Account mapping'!A:E,5,0)","v":{"$error":"#N/A"}},{"$f":"LEFT(Template!E345,2)","v":""},{"$f":"VLOOKUP(I333,'Structure mapping'!X:AB,5,0)","v":{"$error":"#N/A"}},{"$f":"LEFT(Template!F345,3)","v":""},{"$f":"VLOOKUP(K333,'Structure mapping'!AC:AG,5,0)","v":{"$error":"#N/A"}},{"$f":"LEFT(Template!G345,10)","v":""},{"$f":"VLOOKUP(M333,'Structure mapping'!AH:AL,5,0)","v":{"$error":"#N/A"}},{"$f":"LEFT(Template!H345,6)","v":""},{"$f":"VLOOKUP(O333,'Structure mapping'!AM:AQ,5,0)","v":{"$error":"#N/A"}},null,null,null,null,{"$f":"IF(Template!O345=\"\",\"\",Template!O345)","v":""},"Aug-24 pending entries",{"$f":"TEXT(Template!$B$9,\"mm/dd/yyy\")","v":"08/01/2024"},null,null,null,null,{"$f":"IF(Template!M345>0,Template!M345,-Template!N345)","v":0},null,null,null,{"$f":"VLOOKUP(G333,'Account mapping'!A:D,4,0)","v":{"$error":"#N/A"}}]
[{"$f":"LEFT(Template!A346,4)","v":""},{"$f":"VLOOKUP(A334,'Structure mapping'!K:V,7,0)","v":{"$error":"#N/A"}},{"$f":"LEFT(Template!B346,5)","v":""},{"$f":"VLOOKUP(C334,'Structure mapping'!F:J,5,0)","v":{"$error":"#N/A"}},{"$f":"LEFT(Template!C346,7)","v":""},{"$f":"VLOOKUP(E334,'Structure mapping'!A:E,5,0)","v":{"$error":"#N/A"}},{"$f":"LEFT(Template!D346,6)","v":""},{"$f":"VLOOKUP(G334,'Account mapping'!A:E,5,0)","v":{"$error":"#N/A"}},{"$f":"LEFT(Template!E346,2)","v":""},{"$f":"VLOOKUP(I334,'Structure mapping'!X:AB,5,0)","v":{"$error":"#N/A"}},{"$f":"LEFT(Template!F346,3)","v":""},{"$f":"VLOOKUP(K334,'Structure mapping'!AC:AG,5,0)","v":{"$error":"#N/A"}},{"$f":"LEFT(Template!G346,10)","v":""},{"$f":"VLOOKUP(M334,'Structure mapping'!AH:AL,5,0)","v":{"$error":"#N/A"}},{"$f":"LEFT(Template!H346,6)","v":""},{"$f":"VLOOKUP(O334,'Structure mapping'!AM:AQ,5,0)","v":{"$error":"#N/A"}},null,null,null,null,{"$f":"IF(Template!O346=\"\",\"\",Template!O346)","v":""},"Aug-24 pending entries",{"$f":"TEXT(Template!$B$9,\"mm/dd/yyy\")","v":"08/01/2024"},null,null,null,null,{"$f":"IF(Template!M346>0,Template!M346,-Template!N346)","v":0},null,null,null,{"$f":"VLOOKUP(G334,'Account mapping'!A:D,4,0)","v":{"$error":"#N/A"}}]
[{"$f":"LEFT(Template!A347,4)","v":""},{"$f":"VLOOKUP(A335,'Structure mapping'!K:V,7,0)","v":{"$error":"#N/A"}},{"$f":"LEFT(Template!B347,5)","v":""},{"$f":"VLOOKUP(C335,'Structure mapping'!F:J,5,0)","v":{"$error":"#N/A"}},{"$f":"LEFT(Template!C347,7)","v":""},{"$f":"VLOOKUP(E335,'Structure mapping'!A:E,5,0)","v":{"$error":"#N/A"}},{"$f":"LEFT(Template!D347,6)","v":""},{"$f":"VLOOKUP(G335,'Account mapping'!A:E,5,0)","v":{"$error":"#N/A"}},{"$f":"LEFT(Template!E347,2)","v":""},{"$f":"VLOOKUP(I335,'Structure mapping'!X:AB,5,0)","v":{"$error":"#N/A"}},{"$f":"LEFT(Template!F347,3)","v":""},{"$f":"VLOOKUP(K335,'Structure mapping'!AC:AG,5,0)","v":{"$error":"#N/A"}},{"$f":"LEFT(Template!G347,10)","v":""},{"$f":"VLOOKUP(M335,'Structure mapping'!AH:AL,5,0)","v":{"$error":"#N/A"}},{"$f":"LEFT(Template!H347,6)","v":""},{"$f":"VLOOKUP(O335,'Structure mapping'!AM:AQ,5,0)","v":{"$error":"#N/A"}},null,null,null,null,{"$f":"IF(Template!O347=\"\",\"\",Template!O347)","v":""},"Aug-24 pending entries",{"$f":"TEXT(Template!$B$9,\"mm/dd/yyy\")","v":"08/01/2024"},null,null,null,null,{"$f":"IF(Template!M347>0,Template!M347,-Template!N347)","v":0},null,null,null,{"$f":"VLOOKUP(G335,'Account mapping'!A:D,4,0)","v":{"$error":"#N/A"}}]
[{"$f":"LEFT(Template!A348,4)","v":""},{"$f":"VLOOKUP(A336,'Structure mapping'!K:V,7,0)","v":{"$error":"#N/A"}},{"$f":"LEFT(Template!B348,5)","v":""},{"$f":"VLOOKUP(C336,'Structure mapping'!F:J,5,0)","v":{"$error":"#N/A"}},{"$f":"LEFT(Template!C348,7)","v":""},{"$f":"VLOOKUP(E336,'Structure mapping'!A:E,5,0)","v":{"$error":"#N/A"}},{"$f":"LEFT(Template!D348,6)","v":""},{"$f":"VLOOKUP(G336,'Account mapping'!A:E,5,0)","v":{"$error":"#N/A"}},{"$f":"LEFT(Template!E348,2)","v":""},{"$f":"VLOOKUP(I336,'Structure mapping'!X:AB,5,0)","v":{"$error":"#N/A"}},{"$f":"LEFT(Template!F348,3)","v":""},{"$f":"VLOOKUP(K336,'Structure mapping'!AC:AG,5,0)","v":{"$error":"#N/A"}},{"$f":"LEFT(Template!G348,10)","v":""},{"$f":"VLOOKUP(M336,'Structure mapping'!AH:AL,5,0)","v":{"$error":"#N/A"}},{"$f":"LEFT(Template!H348,6)","v":""},{"$f":"VLOOKUP(O336,'Structure mapping'!AM:AQ,5,0)","v":{"$error":"#N/A"}},null,null,null,null,{"$f":"IF(Template!O348=\"\",\"\",Template!O348)","v":""},"Aug-24 pending entries",{"$f":"TEXT(Template!$B$9,\"mm/dd/yyy\")","v":"08/01/2024"},null,null,null,null,{"$f":"IF(Template!M348>0,Template!M348,-Template!N348)","v":0},null,null,null,{"$f":"VLOOKUP(G336,'Account mapping'!A:D,4,0)","v":{"$error":"#N/A"}}]
[{"$f":"LEFT(Template!A349,4)","v":""},{"$f":"VLOOKUP(A337,'Structure mapping'!K:V,7,0)","v":{"$error":"#N/A"}},{"$f":"LEFT(Template!B349,5)","v":""},{"$f":"VLOOKUP(C337,'Structure mapping'!F:J,5,0)","v":{"$error":"#N/A"}},{"$f":"LEFT(Template!C349,7)","v":""},{"$f":"VLOOKUP(E337,'Structure mapping'!A:E,5,0)","v":{"$error":"#N/A"}},{"$f":"LEFT(Template!D349,6)","v":""},{"$f":"VLOOKUP(G337,'Account mapping'!A:E,5,0)","v":{"$error":"#N/A"}},{"$f":"LEFT(Template!E349,2)","v":""},{"$f":"VLOOKUP(I337,'Structure mapping'!X:AB,5,0)","v":{"$error":"#N/A"}},{"$f":"LEFT(Template!F349,3)","v":""},{"$f":"VLOOKUP(K337,'Structure mapping'!AC:AG,5,0)","v":{"$error":"#N/A"}},{"$f":"LEFT(Template!G349,10)","v":""},{"$f":"VLOOKUP(M337,'Structure mapping'!AH:AL,5,0)","v":{"$error":"#N/A"}},{"$f":"LEFT(Template!H349,6)","v":""},{"$f":"VLOOKUP(O337,'Structure mapping'!AM:AQ,5,0)","v":{"$error":"#N/A"}},null,null,null,null,{"$f":"IF(Template!O349=\"\",\"\",Template!O349)","v":""},"Aug-24 pending entries",{"$f":"TEXT(Template!$B$9,\"mm/dd/yyy\")","v":"08/01/2024"},null,null,null,null,{"$f":"IF(Template!M349>0,Template!M349,-Template!N349)","v":0},null,null,null,{"$f":"VLOOKUP(G337,'Account mapping'!A:D,4,0)","v":{"$error":"#N/A"}}]
[{"$f":"LEFT(Template!A350,4)","v":""},{"$f":"VLOOKUP(A338,'Structure mapping'!K:V,7,0)","v":{"$error":"#N/A"}},{"$f":"LEFT(Template!B350,5)","v":""},{"$f":"VLOOKUP(C338,'Structure mapping'!F:J,5,0)","v":{"$error":"#N/A"}},{"$f":"LEFT(Template!C350,7)","v":""},{"$f":"VLOOKUP(E338,'Structure mapping'!A:E,5,0)","v":{"$error":"#N/A"}},{"$f":"LEFT(Template!D350,6)","v":""},{"$f":"VLOOKUP(G338,'Account mapping'!A:E,5,0)","v":{"$error":"#N/A"}},{"$f":"LEFT(Template!E350,2)","v":""},{"$f":"VLOOKUP(I338,'Structure mapping'!X:AB,5,0)","v":{"$error":"#N/A"}},{"$f":"LEFT(Template!F350,3)","v":""},{"$f":"VLOOKUP(K338,'Structure mapping'!AC:AG,5,0)","v":{"$error":"#N/A"}},{"$f":"LEFT(Template!G350,10)","v":""},{"$f":"VLOOKUP(M338,'Structure mapping'!AH:AL,5,0)","v":{"$error":"#N/A"}},{"$f":"LEFT(Template!H350,6)","v":""},{"$f":"VLOOKUP(O338,'Structure mapping'!AM:AQ,5,0)","v":{"$error":"#N/A"}},null,null,null,null,{"$f":"IF(Template!O350=\"\",\"\",Template!O350)","v":""},"Aug-24 pending entries",{"$f":"TEXT(Template!$B$9,\"mm/dd/yyy\")","v":"08/01/2024"},null,null,null,null,{"$f":"IF(Template!M350>0,Template!M350,-Template!N350)","v":0},null,null,null,{"$f":"VLOOKUP(G338,'Account mapping'!A:D,4,0)","v":{"$error":"#N/A"}}]
[{"$f":"LEFT(Template!A351,4)","v":""},{"$f":"VLOOKUP(A339,'Structure mapping'!K:V,7,0)","v":{"$error":"#N/A"}},{"$f":"LEFT(Template!B351,5)","v":""},{"$f":"VLOOKUP(C339,'Structure mapping'!F:J,5,0)","v":{"$error":"#N/A"}},{"$f":"LEFT(Template!C351,7)","v":""},{"$f":"VLOOKUP(E339,'Structure mapping'!A:E,5,0)","v":{"$error":"#N/A"}},{"$f":"LEFT(Template!D351,6)","v":""},{"$f":"VLOOKUP(G339,'Account mapping'!A:E,5,0)","v":{"$error":"#N/A"}},{"$f":"LEFT(Template!E351,2)","v":""},{"$f":"VLOOKUP(I339,'Structure mapping'!X:AB,5,0)","v":{"$error":"#N/A"}},{"$f":"LEFT(Template!F351,3)","v":""},{"$f":"VLOOKUP(K339,'Structure mapping'!AC:AG,5,0)","v":{"$error":"#N/A"}},{"$f":"LEFT(Template!G351,10)","v":""},{"$f":"VLOOKUP(M339,'Structure mapping'!AH:AL,5,0)","v":{"$error":"#N/A"}},{"$f":"LEFT(Template!H351,6)","v":""},{"$f":"VLOOKUP(O339,'Structure mapping'!AM:AQ,5,0)","v":{"$error":"#N/A"}},null,null,null,null,{"$f":"IF(Template!O351=\"\",\"\",Template!O351)","v":""},"Aug-24 pending entries",{"$f":"TEXT(Template!$B$9,\"mm/dd/yyy\")","v":"08/01/2024"},null,null,null,null,{"$f":"IF(Template!M351>0,Template!M351,-Template!N351)","v":0},null,null,null,{"$f":"VLOOKUP(G339,'Account mapping'!A:D,4,0)","v":{"$error":"#N/A"}}]
[{"$f":"LEFT(Template!A352,4)","v":""},{"$f":"VLOOKUP(A340,'Structure mapping'!K:V,7,0)","v":{"$error":"#N/A"}},{"$f":"LEFT(Template!B352,5)","v":""},{"$f":"VLOOKUP(C340,'Structure mapping'!F:J,5,0)","v":{"$error":"#N/A"}},{"$f":"LEFT(Template!C352,7)","v":""},{"$f":"VLOOKUP(E340,'Structure mapping'!A:E,5,0)","v":{"$error":"#N/A"}},{"$f":"LEFT(Template!D352,6)","v":""},{"$f":"VLOOKUP(G340,'Account mapping'!A:E,5,0)","v":{"$error":"#N/A"}},{"$f":"LEFT(Template!E352,2)","v":""},{"$f":"VLOOKUP(I340,'Structure mapping'!X:AB,5,0)","v":{"$error":"#N/A"}},{"$f":"LEFT(Template!F352,3)","v":""},{"$f":"VLOOKUP(K340,'Structure mapping'!AC:AG,5,0)","v":{"$error":"#N/A"}},{"$f":"LEFT(Template!G352,10)","v":""},{"$f":"VLOOKUP(M340,'Structure mapping'!AH:AL,5,0)","v":{"$error":"#N/A"}},{"$f":"LEFT(Template!H352,6)","v":""},{"$f":"VLOOKUP(O340,'Structure mapping'!AM:AQ,5,0)","v":{"$error":"#N/A"}},null,null,null,null,{"$f":"IF(Template!O352=\"\",\"\",Template!O352)","v":""},"Aug-24 pending entries",{"$f":"TEXT(Template!$B$9,\"mm/dd/yyy\")","v":"08/01/2024"},null,null,null,null,{"$f":"IF(Template!M352>0,Template!M352,-Template!N352)","v":0},null,null,null,{"$f":"VLOOKUP(G340,'Account mapping'!A:D,4,0)","v":{"$error":"#N/A"}}]
[{"$f":"LEFT(Template!A353,4)","v":""},{"$f":"VLOOKUP(A341,'Structure mapping'!K:V,7,0)","v":{"$error":"#N/A"}},{"$f":"LEFT(Template!B353,5)","v":""},{"$f":"VLOOKUP(C341,'Structure mapping'!F:J,5,0)","v":{"$error":"#N/A"}},{"$f":"LEFT(Template!C353,7)","v":""},{"$f":"VLOOKUP(E341,'Structure mapping'!A:E,5,0)","v":{"$error":"#N/A"}},{"$f":"LEFT(Template!D353,6)","v":""},{"$f":"VLOOKUP(G341,'Account mapping'!A:E,5,0)","v":{"$error":"#N/A"}},{"$f":"LEFT(Template!E353,2)","v":""},{"$f":"VLOOKUP(I341,'Structure mapping'!X:AB,5,0)","v":{"$error":"#N/A"}},{"$f":"LEFT(Template!F353,3)","v":""},{"$f":"VLOOKUP(K341,'Structure mapping'!AC:AG,5,0)","v":{"$error":"#N/A"}},{"$f":"LEFT(Template!G353,10)","v":""},{"$f":"VLOOKUP(M341,'Structure mapping'!AH:AL,5,0)","v":{"$error":"#N/A"}},{"$f":"LEFT(Template!H353,6)","v":""},{"$f":"VLOOKUP(O341,'Structure mapping'!AM:AQ,5,0)","v":{"$error":"#N/A"}},null,null,null,null,{"$f":"IF(Template!O353=\"\",\"\",Template!O353)","v":""},"Aug-24 pending entries",{"$f":"TEXT(Template!$B$9,\"mm/dd/yyy\")","v":"08/01/2024"},null,null,null,null,{"$f":"IF(Template!M353>0,Template!M353,-Template!N353)","v":0},null,null,null,{"$f":"VLOOKUP(G341,'Account mapping'!A:D,4,0)","v":{"$error":"#N/A"}}]
[{"$f":"LEFT(Template!A354,4)","v":""},{"$f":"VLOOKUP(A342,'Structure mapping'!K:V,7,0)","v":{"$error":"#N/A"}},{"$f":"LEFT(Template!B354,5)","v":""},{"$f":"VLOOKUP(C342,'Structure mapping'!F:J,5,0)","v":{"$error":"#N/A"}},{"$f":"LEFT(Template!C354,7)","v":""},{"$f":"VLOOKUP(E342,'Structure mapping'!A:E,5,0)","v":{"$error":"#N/A"}},{"$f":"LEFT(Template!D354,6)","v":""},{"$f":"VLOOKUP(G342,'Account mapping'!A:E,5,0)","v":{"$error":"#N/A"}},{"$f":"LEFT(Template!E354,2)","v":""},{"$f":"VLOOKUP(I342,'Structure mapping'!X:AB,5,0)","v":{"$error":"#N/A"}},{"$f":"LEFT(Template!F354,3)","v":""},{"$f":"VLOOKUP(K342,'Structure mapping'!AC:AG,5,0)","v":{"$error":"#N/A"}},{"$f":"LEFT(Template!G354,10)","v":""},{"$f":"VLOOKUP(M342,'Structure mapping'!AH:AL,5,0)","v":{"$error":"#N/A"}},{"$f":"LEFT(Template!H354,6)","v":""},{"$f":"VLOOKUP(O342,'Structure mapping'!AM:AQ,5,0)","v":{"$error":"#N/A"}},null,null,null,null,{"$f":"IF(Template!O354=\"\",\"\",Template!O354)","v":""},"Aug-24 pending entries",{"$f":"TEXT(Template!$B$9,\"mm/dd/yyy\")","v":"08/01/2024"},null,null,null,null,{"$f":"IF(Template!M354>0,Template!M354,-Template!N354)","v":0},null,null,null,{"$f":"VLOOKUP(G342,'Account mapping'!A:D,4,0)","v":{"$error":"#N/A"}}]
[{"$f":"LEFT(Template!A355,4)","v":""},{"$f":"VLOOKUP(A343,'Structure mapping'!K:V,7,0)","v":{"$error":"#N/A"}},{"$f":"LEFT(Template!B355,5)","v":""},{"$f":"VLOOKUP(C343,'Structure mapping'!F:J,5,0)","v":{"$error":"#N/A"}},{"$f":"LEFT(Template!C355,7)","v":""},{"$f":"VLOOKUP(E343,'Structure mapping'!A:E,5,0)","v":{"$error":"#N/A"}},{"$f":"LEFT(Template!D355,6)","v":""},{"$f":"VLOOKUP(G343,'Account mapping'!A:E,5,0)","v":{"$error":"#N/A"}},{"$f":"LEFT(Template!E355,2)","v":""},{"$f":"VLOOKUP(I343,'Structure mapping'!X:AB,5,0)","v":{"$error":"#N/A"}},{"$f":"LEFT(Template!F355,3)","v":""},{"$f":"VLOOKUP(K343,'Structure mapping'!AC:AG,5,0)","v":{"$error":"#N/A"}},{"$f":"LEFT(Template!G355,10)","v":""},{"$f":"VLOOKUP(M343,'Structure mapping'!AH:AL,5,0)","v":{"$error":"#N/A"}},{"$f":"LEFT(Template!H355,6)","v":""},{"$f":"VLOOKUP(O343,'Structure mapping'!AM:AQ,5,0)","v":{"$error":"#N/A"}},null,null,null,null,{"$f":"IF(Template!O355=\"\",\"\",Template!O355)","v":""},"Aug-24 pending entries",{"$f":"TEXT(Template!$B$9,\"mm/dd/yyy\")","v":"08/01/2024"},null,null,null,null,{"$f":"IF(Template!M355>0,Template!M355,-Template!N355)","v":0},null,null,null,{"$f":"VLOOKUP(G343,'Account mapping'!A:D,4,0)","v":{"$error":"#N/A"}}]
[{"$f":"LEFT(Template!A356,4)","v":""},{"$f":"VLOOKUP(A344,'Structure mapping'!K:V,7,0)","v":{"$error":"#N/A"}},{"$f":"LEFT(Template!B356,5)","v":""},{"$f":"VLOOKUP(C344,'Structure mapping'!F:J,5,0)","v":{"$error":"#N/A"}},{"$f":"LEFT(Template!C356,7)","v":""},{"$f":"VLOOKUP(E344,'Structure mapping'!A:E,5,0)","v":{"$error":"#N/A"}},{"$f":"LEFT(Template!D356,6)","v":""},{"$f":"VLOOKUP(G344,'Account mapping'!A:E,5,0)","v":{"$error":"#N/A"}},{"$f":"LEFT(Template!E356,2)","v":""},{"$f":"VLOOKUP(I344,'Structure mapping'!X:AB,5,0)","v":{"$error":"#N/A"}},{"$f":"LEFT(Template!F356,3)","v":""},{"$f":"VLOOKUP(K344,'Structure mapping'!AC:AG,5,0)","v":{"$error":"#N/A"}},{"$f":"LEFT(Template!G356,10)","v":""},{"$f":"VLOOKUP(M344,'Structure mapping'!AH:AL,5,0)","v":{"$error":"#N/A"}},{"$f":"LEFT(Template!H356,6)","v":""},{"$f":"VLOOKUP(O344,'Structure mapping'!AM:AQ,5,0)","v":{"$error":"#N/A"}},null,null,null,null,{"$f":"IF(Template!O356=\"\",\"\",Template!O356)","v":""},"Aug-24 pending entries",{"$f":"TEXT(Template!$B$9,\"mm/dd/yyy\")","v":"08/01/2024"},null,null,null,null,{"$f":"IF(Template!M356>0,Template!M356,-Template!N356)","v":0},null,null,null,{"$f":"VLOOKUP(G344,'Account mapping'!A:D,4,0)","v":{"$error":"#N/A"}}]
[{"$f":"LEFT(Template!A357,4)","v":""},{"$f":"VLOOKUP(A345,'Structure mapping'!K:V,7,0)","v":{"$error":"#N/A"}},{"$f":"LEFT(Template!B357,5)","v":""},{"$f":"VLOOKUP(C345,'Structure mapping'!F:J,5,0)","v":{"$error":"#N/A"}},{"$f":"LEFT(Template!C357,7)","v":""},{"$f":"VLOOKUP(E345,'Structure mapping'!A:E,5,0)","v":{"$error":"#N/A"}},{"$f":"LEFT(Template!D357,6)","v":""},{"$f":"VLOOKUP(G345,'Account mapping'!A:E,5,0)","v":{"$error":"#N/A"}},{"$f":"LEFT(Template!E357,2)","v":""},{"$f":"VLOOKUP(I345,'Structure mapping'!X:AB,5,0)","v":{"$error":"#N/A"}},{"$f":"LEFT(Template!F357,3)","v":""},{"$f":"VLOOKUP(K345,'Structure mapping'!AC:AG,5,0)","v":{"$error":"#N/A"}},{"$f":"LEFT(Template!G357,10)","v":""},{"$f":"VLOOKUP(M345,'Structure mapping'!AH:AL,5,0)","v":{"$error":"#N/A"}},{"$f":"LEFT(Template!H357,6)","v":""},{"$f":"VLOOKUP(O345,'Structure mapping'!AM:AQ,5,0)","v":{"$error":"#N/A"}},null,null,null,null,{"$f":"IF(Template!O357=\"\",\"\",Template!O357)","v":""},"Aug-24 pending entries",{"$f":"TEXT(Template!$B$9,\"mm/dd/yyy\")","v":"08/01/2024"},null,null,null,null,{"$f":"IF(Template!M357>0,Template!M357,-Template!N357)","v":0},null,null,null,{"$f":"VLOOKUP(G345,'Account mapping'!A:D,4,0)","v":{"$error":"#N/A"}}]
[{"$f":"LEFT(Template!A358,4)","v":""},{"$f":"VLOOKUP(A346,'Structure mapping'!K:V,7,0)","v":{"$error":"#N/A"}},{"$f":"LEFT(Template!B358,5)","v":""},{"$f":"VLOOKUP(C346,'Structure mapping'!F:J,5,0)","v":{"$error":"#N/A"}},{"$f":"LEFT(Template!C358,7)","v":""},{"$f":"VLOOKUP(E346,'Structure mapping'!A:E,5,0)","v":{"$error":"#N/A"}},{"$f":"LEFT(Template!D358,6)","v":""},{"$f":"VLOOKUP(G346,'Account mapping'!A:E,5,0)","v":{"$error":"#N/A"}},{"$f":"LEFT(Template!E358,2)","v":""},{"$f":"VLOOKUP(I346,'Structure mapping'!X:AB,5,0)","v":{"$error":"#N/A"}},{"$f":"LEFT(Template!F358,3)","v":""},{"$f":"VLOOKUP(K346,'Structure mapping'!AC:AG,5,0)","v":{"$error":"#N/A"}},{"$f":"LEFT(Template!G358,10)","v":""},{"$f":"VLOOKUP(M346,'Structure mapping'!AH:AL,5,0)","v":{"$error":"#N/A"}},{"$f":"LEFT(Template!H358,6)","v":""},{"$f":"VLOOKUP(O346,'Structure mapping'!AM:AQ,5,0)","v":{"$error":"#N/A"}},null,null,null,null,{"$f":"IF(Template!O358=\"\",\"\",Template!O358)","v":""},"Aug-24 pending entries",{"$f":"TEXT(Template!$B$9,\"mm/dd/yyy\")","v":"08/01/2024"},null,null,null,null,{"$f":"IF(Template!M358>0,Template!M358,-Template!N358)","v":0},null,null,null,{"$f":"VLOOKUP(G346,'Account mapping'!A:D,4,0)","v":{"$error":"#N/A"}}]
[{"$f":"LEFT(Template!A359,4)","v":""},{"$f":"VLOOKUP(A347,'Structure mapping'!K:V,7,0)","v":{"$error":"#N/A"}},{"$f":"LEFT(Template!B359,5)","v":""},{"$f":"VLOOKUP(C347,'Structure mapping'!F:J,5,0)","v":{"$error":"#N/A"}},{"$f":"LEFT(Template!C359,7)","v":""},{"$f":"VLOOKUP(E347,'Structure mapping'!A:E,5,0)","v":{"$error":"#N/A"}},{"$f":"LEFT(Template!D359,6)","v":""},{"$f":"VLOOKUP(G347,'Account mapping'!A:E,5,0)","v":{"$error":"#N/A"}},{"$f":"LEFT(Template!E359,2)","v":""},{"$f":"VLOOKUP(I347,'Structure mapping'!X:AB,5,0)","v":{"$error":"#N/A"}},{"$f":"LEFT(Template!F359,3)","v":""},{"$f":"VLOOKUP(K347,'Structure mapping'!AC:AG,5,0)","v":{"$error":"#N/A"}},{"$f":"LEFT(Template!G359,10)","v":""},{"$f":"VLOOKUP(M347,'Structure mapping'!AH:AL,5,0)","v":{"$error":"#N/A"}},{"$f":"LEFT(Template!H359,6)","v":""},{"$f":"VLOOKUP(O347,'Structure mapping'!AM:AQ,5,0)","v":{"$error":"#N/A"}},null,null,null,null,{"$f":"IF(Template!O359=\"\",\"\",Template!O359)","v":""},"Aug-24 pending entries",{"$f":"TEXT(Template!$B$9,\"mm/dd/yyy\")","v":"08/01/2024"},null,null,null,null,{"$f":"IF(Template!M359>0,Template!M359,-Template!N359)","v":0},null,null,null,{"$f":"VLOOKUP(G347,'Account mapping'!A:D,4,0)","v":{"$error":"#N/A"}}]
[{"$f":"LEFT(Template!A360,4)","v":""},{"$f":"VLOOKUP(A348,'Structure mapping'!K:V,7,0)","v":{"$error":"#N/A"}},{"$f":"LEFT(Template!B360,5)","v":""},{"$f":"VLOOKUP(C348,'Structure mapping'!F:J,5,0)","v":{"$error":"#N/A"}},{"$f":"LEFT(Template!C360,7)","v":""},{"$f":"VLOOKUP(E348,'Structure mapping'!A:E,5,0)","v":{"$error":"#N/A"}},{"$f":"LEFT(Template!D360,6)","v":""},{"$f":"VLOOKUP(G348,'Account mapping'!A:E,5,0)","v":{"$error":"#N/A"}},{"$f":"LEFT(Template!E360,2)","v":""},{"$f":"VLOOKUP(I348,'Structure mapping'!X:AB,5,0)","v":{"$error":"#N/A"}},{"$f":"LEFT(Template!F360,3)","v":""},{"$f":"VLOOKUP(K348,'Structure mapping'!AC:AG,5,0)","v":{"$error":"#N/A"}},{"$f":"LEFT(Template!G360,10)","v":""},{"$f":"VLOOKUP(M348,'Structure mapping'!AH:AL,5,0)","v":{"$error":"#N/A"}},{"$f":"LEFT(Template!H360,6)","v":""},{"$f":"VLOOKUP(O348,'Structure mapping'!AM:AQ,5,0)","v":{"$error":"#N/A"}},null,null,null,null,{"$f":"IF(Template!O360=\"\",\"\",Template!O360)","v":""},"Aug-24 pending entries",{"$f":"TEXT(Template!$B$9,\"mm/dd/yyy\")","v":"08/01/2024"},null,null,null,null,{"$f":"IF(Template!M360>0,Template!M360,-Template!N360)","v":0},null,null,null,{"$f":"VLOOKUP(G348,'Account mapping'!A:D,4,0)","v":{"$error":"#N/A"}}]
[{"$f":"LEFT(Template!A361,4)","v":""},{"$f":"VLOOKUP(A349,'Structure mapping'!K:V,7,0)","v":{"$error":"#N/A"}},{"$f":"LEFT(Template!B361,5)","v":""},{"$f":"VLOOKUP(C349,'Structure mapping'!F:J,5,0)","v":{"$error":"#N/A"}},{"$f":"LEFT(Template!C361,7)","v":""},{"$f":"VLOOKUP(E349,'Structure mapping'!A:E,5,0)","v":{"$error":"#N/A"}},{"$f":"LEFT(Template!D361,6)","v":""},{"$f":"VLOOKUP(G349,'Account mapping'!A:E,5,0)","v":{"$error":"#N/A"}},{"$f":"LEFT(Template!E361,2)","v":""},{"$f":"VLOOKUP(I349,'Structure mapping'!X:AB,5,0)","v":{"$error":"#N/A"}},{"$f":"LEFT(Template!F361,3)","v":""},{"$f":"VLOOKUP(K349,'Structure mapping'!AC:AG,5,0)","v":{"$error":"#N/A"}},{"$f":"LEFT(Template!G361,10)","v":""},{"$f":"VLOOKUP(M349,'Structure mapping'!AH:AL,5,0)","v":{"$error":"#N/A"}},{"$f":"LEFT(Template!H361,6)","v":""},{"$f":"VLOOKUP(O349,'Structure mapping'!AM:AQ,5,0)","v":{"$error":"#N/A"}},null,null,null,null,{"$f":"IF(Template!O361=\"\",\"\",Template!O361)","v":""},"Aug-24 pending entries",{"$f":"TEXT(Template!$B$9,\"mm/dd/yyy\")","v":"08/01/2024"},null,null,null,null,{"$f":"IF(Template!M361>0,Template!M361,-Template!N361)","v":0},null,null,null,{"$f":"VLOOKUP(G349,'Account mapping'!A:D,4,0)","v":{"$error":"#N/A"}}]
[{"$f":"LEFT(Template!A362,4)","v":""},{"$f":"VLOOKUP(A350,'Structure mapping'!K:V,7,0)","v":{"$error":"#N/A"}},{"$f":"LEFT(Template!B362,5)","v":""},{"$f":"VLOOKUP(C350,'Structure mapping'!F:J,5,0)","v":{"$error":"#N/A"}},{"$f":"LEFT(Template!C362,7)","v":""},{"$f":"VLOOKUP(E350,'Structure mapping'!A:E,5,0)","v":{"$error":"#N/A"}},{"$f":"LEFT(Template!D362,6)","v":""},{"$f":"VLOOKUP(G350,'Account mapping'!A:E,5,0)","v":{"$error":"#N/A"}},{"$f":"LEFT(Template!E362,2)","v":""},{"$f":"VLOOKUP(I350,'Structure mapping'!X:AB,5,0)","v":{"$error":"#N/A"}},{"$f":"LEFT(Template!F362,3)","v":""},{"$f":"VLOOKUP(K350,'Structure mapping'!AC:AG,5,0)","v":{"$error":"#N/A"}},{"$f":"LEFT(Template!G362,10)","v":""},{"$f":"VLOOKUP(M350,'Structure mapping'!AH:AL,5,0)","v":{"$error":"#N/A"}},{"$f":"LEFT(Template!H362,6)","v":""},{"$f":"VLOOKUP(O350,'Structure mapping'!AM:AQ,5,0)","v":{"$error":"#N/A"}},null,null,null,null,{"$f":"IF(Template!O362=\"\",\"\",Template!O362)","v":""},"Aug-24 pending entries",{"$f":"TEXT(Template!$B$9,\"mm/dd/yyy\")","v":"08/01/2024"},null,null,null,null,{"$f":"IF(Template!M362>0,Template!M362,-Template!N362)","v":0},null,null,null,{"$f":"VLOOKUP(G350,'Account mapping'!A:D,4,0)","v":{"$error":"#N/A"}}]
[{"$f":"LEFT(Template!A363,4)","v":""},{"$f":"VLOOKUP(A351,'Structure mapping'!K:V,7,0)","v":{"$error":"#N/A"}},{"$f":"LEFT(Template!B363,5)","v":""},{"$f":"VLOOKUP(C351,'Structure mapping'!F:J,5,0)","v":{"$error":"#N/A"}},{"$f":"LEFT(Template!C363,7)","v":""},{"$f":"VLOOKUP(E351,'Structure mapping'!A:E,5,0)","v":{"$error":"#N/A"}},{"$f":"LEFT(Template!D363,6)","v":""},{"$f":"VLOOKUP(G351,'Account mapping'!A:E,5,0)","v":{"$error":"#N/A"}},{"$f":"LEFT(Template!E363,2)","v":""},{"$f":"VLOOKUP(I351,'Structure mapping'!X:AB,5,0)","v":{"$error":"#N/A"}},{"$f":"LEFT(Template!F363,3)","v":""},{"$f":"VLOOKUP(K351,'Structure mapping'!AC:AG,5,0)","v":{"$error":"#N/A"}},{"$f":"LEFT(Template!G363,10)","v":""},{"$f":"VLOOKUP(M351,'Structure mapping'!AH:AL,5,0)","v":{"$error":"#N/A"}},{"$f":"LEFT(Template!H363,6)","v":""},{"$f":"VLOOKUP(O351,'Structure mapping'!AM:AQ,5,0)","v":{"$error":"#N/A"}},null,null,null,null,{"$f":"IF(Template!O363=\"\",\"\",Template!O363)","v":""},"Aug-24 pending entries",{"$f":"TEXT(Template!$B$9,\"mm/dd/yyy\")","v":"08/01/2024"},null,null,null,null,{"$f":"IF(Template!M363>0,Template!M363,-Template!N363)","v":0},null,null,null,{"$f":"VLOOKUP(G351,'Account mapping'!A:D,4,0)","v":{"$error":"#N/A"}}]
[{"$f":"LEFT(Template!A364,4)","v":""},{"$f":"VLOOKUP(A352,'Structure mapping'!K:V,7,0)","v":{"$error":"#N/A"}},{"$f":"LEFT(Template!B364,5)","v":""},{"$f":"VLOOKUP(C352,'Structure mapping'!F:J,5,0)","v":{"$error":"#N/A"}},{"$f":"LEFT(Template!C364,7)","v":""},{"$f":"VLOOKUP(E352,'Structure mapping'!A:E,5,0)","v":{"$error":"#N/A"}},{"$f":"LEFT(Template!D364,6)","v":""},{"$f":"VLOOKUP(G352,'Account mapping'!A:E,5,0)","v":{"$error":"#N/A"}},{"$f":"LEFT(Template!E364,2)","v":""},{"$f":"VLOOKUP(I352,'Structure mapping'!X:AB,5,0)","v":{"$error":"#N/A"}},{"$f":"LEFT(Template!F364,3)","v":""},{"$f":"VLOOKUP(K352,'Structure mapping'!AC:AG,5,0)","v":{"$error":"#N/A"}},{"$f":"LEFT(Template!G364,10)","v":""},{"$f":"VLOOKUP(M352,'Structure mapping'!AH:AL,5,0)","v":{"$error":"#N/A"}},{"$f":"LEFT(Template!H364,6)","v":""},{"$f":"VLOOKUP(O352,'Structure mapping'!AM:AQ,5,0)","v":{"$error":"#N/A"}},null,null,null,null,{"$f":"IF(Template!O364=\"\",\"\",Template!O364)","v":""},"Aug-24 pending entries",{"$f":"TEXT(Template!$B$9,\"mm/dd/yyy\")","v":"08/01/2024"},null,null,null,null,{"$f":"IF(Template!M364>0,Template!M364,-Template!N364)","v":0},null,null,null,{"$f":"VLOOKUP(G352,'Account mapping'!A:D,4,0)","v":{"$error":"#N/A"}}]
[{"$f":"LEFT(Template!A365,4)","v":""},{"$f":"VLOOKUP(A353,'Structure mapping'!K:V,7,0)","v":{"$error":"#N/A"}},{"$f":"LEFT(Template!B365,5)","v":""},{"$f":"VLOOKUP(C353,'Structure mapping'!F:J,5,0)","v":{"$error":"#N/A"}},{"$f":"LEFT(Template!C365,7)","v":""},{"$f":"VLOOKUP(E353,'Structure mapping'!A:E,5,0)","v":{"$error":"#N/A"}},{"$f":"LEFT(Template!D365,6)","v":""},{"$f":"VLOOKUP(G353,'Account mapping'!A:E,5,0)","v":{"$error":"#N/A"}},{"$f":"LEFT(Template!E365,2)","v":""},{"$f":"VLOOKUP(I353,'Structure mapping'!X:AB,5,0)","v":{"$error":"#N/A"}},{"$f":"LEFT(Template!F365,3)","v":""},{"$f":"VLOOKUP(K353,'Structure mapping'!AC:AG,5,0)","v":{"$error":"#N/A"}},{"$f":"LEFT(Template!G365,10)","v":""},{"$f":"VLOOKUP(M353,'Structure mapping'!AH:AL,5,0)","v":{"$error":"#N/A"}},{"$f":"LEFT(Template!H365,6)","v":""},{"$f":"VLOOKUP(O353,'Structure mapping'!AM:AQ,5,0)","v":{"$error":"#N/A"}},null,null,null,null,{"$f":"IF(Template!O365=\"\",\"\",Template!O365)","v":""},"Aug-24 pending entries",{"$f":"TEXT(Template!$B$9,\"mm/dd/yyy\")","v":"08/01/2024"},null,null,null,null,{"$f":"IF(Template!M365>0,Template!M365,-Template!N365)","v":0},null,null,null,{"$f":"VLOOKUP(G353,'Account mapping'!A:D,4,0)","v":{"$error":"#N/A"}}]
[{"$f":"LEFT(Template!A366,4)","v":""},{"$f":"VLOOKUP(A354,'Structure mapping'!K:V,7,0)","v":{"$error":"#N/A"}},{"$f":"LEFT(Template!B366,5)","v":""},{"$f":"VLOOKUP(C354,'Structure mapping'!F:J,5,0)","v":{"$error":"#N/A"}},{"$f":"LEFT(Template!C366,7)","v":""},{"$f":"VLOOKUP(E354,'Structure mapping'!A:E,5,0)","v":{"$error":"#N/A"}},{"$f":"LEFT(Template!D366,6)","v":""},{"$f":"VLOOKUP(G354,'Account mapping'!A:E,5,0)","v":{"$error":"#N/A"}},{"$f":"LEFT(Template!E366,2)","v":""},{"$f":"VLOOKUP(I354,'Structure mapping'!X:AB,5,0)","v":{"$error":"#N/A"}},{"$f":"LEFT(Template!F366,3)","v":""},{"$f":"VLOOKUP(K354,'Structure mapping'!AC:AG,5,0)","v":{"$error":"#N/A"}},{"$f":"LEFT(Template!G366,10)","v":""},{"$f":"VLOOKUP(M354,'Structure mapping'!AH:AL,5,0)","v":{"$error":"#N/A"}},{"$f":"LEFT(Template!H366,6)","v":""},{"$f":"VLOOKUP(O354,'Structure mapping'!AM:AQ,5,0)","v":{"$error":"#N/A"}},null,null,null,null,{"$f":"IF(Template!O366=\"\",\"\",Template!O366)","v":""},"Aug-24 pending entries",{"$f":"TEXT(Template!$B$9,\"mm/dd/yyy\")","v":"08/01/2024"},null,null,null,null,{"$f":"IF(Template!M366>0,Template!M366,-Template!N366)","v":0},null,null,null,{"$f":"VLOOKUP(G354,'Account mapping'!A:D,4,0)","v":{"$error":"#N/A"}}]
[{"$f":"LEFT(Template!A367,4)","v":""},{"$f":"VLOOKUP(A355,'Structure mapping'!K:V,7,0)","v":{"$error":"#N/A"}},{"$f":"LEFT(Template!B367,5)","v":""},{"$f":"VLOOKUP(C355,'Structure mapping'!F:J,5,0)","v":{"$error":"#N/A"}},{"$f":"LEFT(Template!C367,7)","v":""},{"$f":"VLOOKUP(E355,'Structure mapping'!A:E,5,0)","v":{"$error":"#N/A"}},{"$f":"LEFT(Template!D367,6)","v":""},{"$f":"VLOOKUP(G355,'Account mapping'!A:E,5,0)","v":{"$error":"#N/A"}},{"$f":"LEFT(Template!E367,2)","v":""},{"$f":"VLOOKUP(I355,'Structure mapping'!X:AB,5,0)","v":{"$error":"#N/A"}},{"$f":"LEFT(Template!F367,3)","v":""},{"$f":"VLOOKUP(K355,'Structure mapping'!AC:AG,5,0)","v":{"$error":"#N/A"}},{"$f":"LEFT(Template!G367,10)","v":""},{"$f":"VLOOKUP(M355,'Structure mapping'!AH:AL,5,0)","v":{"$error":"#N/A"}},{"$f":"LEFT(Template!H367,6)","v":""},{"$f":"VLOOKUP(O355,'Structure mapping'!AM:AQ,5,0)","v":{"$error":"#N/A"}},null,null,null,null,{"$f":"IF(Template!O367=\"\",\"\",Template!O367)","v":""},"Aug-24 pending entries",{"$f":"TEXT(Template!$B$9,\"mm/dd/yyy\")","v":"08/01/2024"},null,null,null,null,{"$f":"IF(Template!M367>0,Template!M367,-Template!N367)","v":0},null,null,null,{"$f":"VLOOKUP(G355,'Account mapping'!A:D,4,0)","v":{"$error":"#N/A"}}]
[{"$f":"LEFT(Template!A368,4)","v":""},{"$f":"VLOOKUP(A356,'Structure mapping'!K:V,7,0)","v":{"$error":"#N/A"}},{"$f":"LEFT(Template!B368,5)","v":""},{"$f":"VLOOKUP(C356,'Structure mapping'!F:J,5,0)","v":{"$error":"#N/A"}},{"$f":"LEFT(Template!C368,7)","v":""},{"$f":"VLOOKUP(E356,'Structure mapping'!A:E,5,0)","v":{"$error":"#N/A"}},{"$f":"LEFT(Template!D368,6)","v":""},{"$f":"VLOOKUP(G356,'Account mapping'!A:E,5,0)","v":{"$error":"#N/A"}},{"$f":"LEFT(Template!E368,2)","v":""},{"$f":"VLOOKUP(I356,'Structure mapping'!X:AB,5,0)","v":{"$error":"#N/A"}},{"$f":"LEFT(Template!F368,3)","v":""},{"$f":"VLOOKUP(K356,'Structure mapping'!AC:AG,5,0)","v":{"$error":"#N/A"}},{"$f":"LEFT(Template!G368,10)","v":""},{"$f":"VLOOKUP(M356,'Structure mapping'!AH:AL,5,0)","v":{"$error":"#N/A"}},{"$f":"LEFT(Template!H368,6)","v":""},{"$f":"VLOOKUP(O356,'Structure mapping'!AM:AQ,5,0)","v":{"$error":"#N/A"}},null,null,null,null,{"$f":"IF(Template!O368=\"\",\"\",Template!O368)","v":""},"Aug-24 pending entries",{"$f":"TEXT(Template!$B$9,\"mm/dd/yyy\")","v":"08/01/2024"},null,null,null,null,{"$f":"IF(Template!M368>0,Template!M368,-Template!N368)","v":0},null,null,null,{"$f":"VLOOKUP(G356,'Account mapping'!A:D,4,0)","v":{"$error":"#N/A"}}]
[{"$f":"LEFT(Template!A369,4)","v":""},{"$f":"VLOOKUP(A357,'Structure mapping'!K:V,7,0)","v":{"$error":"#N/A"}},{"$f":"LEFT(Template!B369,5)","v":""},{"$f":"VLOOKUP(C357,'Structure mapping'!F:J,5,0)","v":{"$error":"#N/A"}},{"$f":"LEFT(Template!C369,7)","v":""},{"$f":"VLOOKUP(E357,'Structure mapping'!A:E,5,0)","v":{"$error":"#N/A"}},{"$f":"LEFT(Template!D369,6)","v":""},{"$f":"VLOOKUP(G357,'Account mapping'!A:E,5,0)","v":{"$error":"#N/A"}},{"$f":"LEFT(Template!E369,2)","v":""},{"$f":"VLOOKUP(I357,'Structure mapping'!X:AB,5,0)","v":{"$error":"#N/A"}},{"$f":"LEFT(Template!F369,3)","v":""},{"$f":"VLOOKUP(K357,'Structure mapping'!AC:AG,5,0)","v":{"$error":"#N/A"}},{"$f":"LEFT(Template!G369,10)","v":""},{"$f":"VLOOKUP(M357,'Structure mapping'!AH:AL,5,0)","v":{"$error":"#N/A"}},{"$f":"LEFT(Template!H369,6)","v":""},{"$f":"VLOOKUP(O357,'Structure mapping'!AM:AQ,5,0)","v":{"$error":"#N/A"}},null,null,null,null,{"$f":"IF(Template!O369=\"\",\"\",Template!O369)","v":""},"Aug-24 pending entries",{"$f":"TEXT(Template!$B$9,\"mm/dd/yyy\")","v":"08/01/2024"},null,null,null,null,{"$f":"IF(Template!M369>0,Template!M369,-Template!N369)","v":0},null,null,null,{"$f":"VLOOKUP(G357,'Account mapping'!A:D,4,0)","v":{"$error":"#N/A"}}]
[{"$f":"LEFT(Template!A370,4)","v":""},{"$f":"VLOOKUP(A358,'Structure mapping'!K:V,7,0)","v":{"$error":"#N/A"}},{"$f":"LEFT(Template!B370,5)","v":""},{"$f":"VLOOKUP(C358,'Structure mapping'!F:J,5,0)","v":{"$error":"#N/A"}},{"$f":"LEFT(Template!C370,7)","v":""},{"$f":"VLOOKUP(E358,'Structure mapping'!A:E,5,0)","v":{"$error":"#N/A"}},{"$f":"LEFT(Template!D370,6)","v":""},{"$f":"VLOOKUP(G358,'Account mapping'!A:E,5,0)","v":{"$error":"#N/A"}},{"$f":"LEFT(Template!E370,2)","v":""},{"$f":"VLOOKUP(I358,'Structure mapping'!X:AB,5,0)","v":{"$error":"#N/A"}},{"$f":"LEFT(Template!F370,3)","v":""},{"$f":"VLOOKUP(K358,'Structure mapping'!AC:AG,5,0)","v":{"$error":"#N/A"}},{"$f":"LEFT(Template!G370,10)","v":""},{"$f":"VLOOKUP(M358,'Structure mapping'!AH:AL,5,0)","v":{"$error":"#N/A"}},{"$f":"LEFT(Template!H370,6)","v":""},{"$f":"VLOOKUP(O358,'Structure mapping'!AM:AQ,5,0)","v":{"$error":"#N/A"}},null,null,null,null,{"$f":"IF(Template!O370=\"\",\"\",Template!O370)","v":""},"Aug-24 pending entries",{"$f":"TEXT(Template!$B$9,\"mm/dd/yyy\")","v":"08/01/2024"},null,null,null,null,{"$f":"IF(Template!M370>0,Template!M370,-Template!N370)","v":0},null,null,null,{"$f":"VLOOKUP(G358,'Account mapping'!A:D,4,0)","v":{"$error":"#N/A"}}]
[{"$f":"LEFT(Template!A371,4)","v":""},{"$f":"VLOOKUP(A359,'Structure mapping'!K:V,7,0)","v":{"$error":"#N/A"}},{"$f":"LEFT(Template!B371,5)","v":""},{"$f":"VLOOKUP(C359,'Structure mapping'!F:J,5,0)","v":{"$error":"#N/A"}},{"$f":"LEFT(Template!C371,7)","v":""},{"$f":"VLOOKUP(E359,'Structure mapping'!A:E,5,0)","v":{"$error":"#N/A"}},{"$f":"LEFT(Template!D371,6)","v":""},{"$f":"VLOOKUP(G359,'Account mapping'!A:E,5,0)","v":{"$error":"#N/A"}},{"$f":"LEFT(Template!E371,2)","v":""},{"$f":"VLOOKUP(I359,'Structure mapping'!X:AB,5,0)","v":{"$error":"#N/A"}},{"$f":"LEFT(Template!F371,3)","v":""},{"$f":"VLOOKUP(K359,'Structure mapping'!AC:AG,5,0)","v":{"$error":"#N/A"}},{"$f":"LEFT(Template!G371,10)","v":""},{"$f":"VLOOKUP(M359,'Structure mapping'!AH:AL,5,0)","v":{"$error":"#N/A"}},{"$f":"LEFT(Template!H371,6)","v":""},{"$f":"VLOOKUP(O359,'Structure mapping'!AM:AQ,5,0)","v":{"$error":"#N/A"}},null,null,null,null,{"$f":"IF(Template!O371=\"\",\"\",Template!O371)","v":""},"Aug-24 pending entries",{"$f":"TEXT(Template!$B$9,\"mm/dd/yyy\")","v":"08/01/2024"},null,null,null,null,{"$f":"IF(Template!M371>0,Template!M371,-Template!N371)","v":0},null,null,null,{"$f":"VLOOKUP(G359,'Account mapping'!A:D,4,0)","v":{"$error":"#N/A"}}]
[{"$f":"LEFT(Template!A372,4)","v":""},{"$f":"VLOOKUP(A360,'Structure mapping'!K:V,7,0)","v":{"$error":"#N/A"}},{"$f":"LEFT(Template!B372,5)","v":""},{"$f":"VLOOKUP(C360,'Structure mapping'!F:J,5,0)","v":{"$error":"#N/A"}},{"$f":"LEFT(Template!C372,7)","v":""},{"$f":"VLOOKUP(E360,'Structure mapping'!A:E,5,0)","v":{"$error":"#N/A"}},{"$f":"LEFT(Template!D372,6)","v":""},{"$f":"VLOOKUP(G360,'Account mapping'!A:E,5,0)","v":{"$error":"#N/A"}},{"$f":"LEFT(Template!E372,2)","v":""},{"$f":"VLOOKUP(I360,'Structure mapping'!X:AB,5,0)","v":{"$error":"#N/A"}},{"$f":"LEFT(Template!F372,3)","v":""},{"$f":"VLOOKUP(K360,'Structure mapping'!AC:AG,5,0)","v":{"$error":"#N/A"}},{"$f":"LEFT(Template!G372,10)","v":""},{"$f":"VLOOKUP(M360,'Structure mapping'!AH:AL,5,0)","v":{"$error":"#N/A"}},{"$f":"LEFT(Template!H372,6)","v":""},{"$f":"VLOOKUP(O360,'Structure mapping'!AM:AQ,5,0)","v":{"$error":"#N/A"}},null,null,null,null,{"$f":"IF(Template!O372=\"\",\"\",Template!O372)","v":""},"Aug-24 pending entries",{"$f":"TEXT(Template!$B$9,\"mm/dd/yyy\")","v":"08/01/2024"},null,null,null,null,{"$f":"IF(Template!M372>0,Template!M372,-Template!N372)","v":0},null,null,null,{"$f":"VLOOKUP(G360,'Account mapping'!A:D,4,0)","v":{"$error":"#N/A"}}]
[{"$f":"LEFT(Template!A373,4)","v":""},{"$f":"VLOOKUP(A361,'Structure mapping'!K:V,7,0)","v":{"$error":"#N/A"}},{"$f":"LEFT(Template!B373,5)","v":""},{"$f":"VLOOKUP(C361,'Structure mapping'!F:J,5,0)","v":{"$error":"#N/A"}},{"$f":"LEFT(Template!C373,7)","v":""},{"$f":"VLOOKUP(E361,'Structure mapping'!A:E,5,0)","v":{"$error":"#N/A"}},{"$f":"LEFT(Template!D373,6)","v":""},{"$f":"VLOOKUP(G361,'Account mapping'!A:E,5,0)","v":{"$error":"#N/A"}},{"$f":"LEFT(Template!E373,2)","v":""},{"$f":"VLOOKUP(I361,'Structure mapping'!X:AB,5,0)","v":{"$error":"#N/A"}},{"$f":"LEFT(Template!F373,3)","v":""},{"$f":"VLOOKUP(K361,'Structure mapping'!AC:AG,5,0)","v":{"$error":"#N/A"}},{"$f":"LEFT(Template!G373,10)","v":""},{"$f":"VLOOKUP(M361,'Structure mapping'!AH:AL,5,0)","v":{"$error":"#N/A"}},{"$f":"LEFT(Template!H373,6)","v":""},{"$f":"VLOOKUP(O361,'Structure mapping'!AM:AQ,5,0)","v":{"$error":"#N/A"}},null,null,null,null,{"$f":"IF(Template!O373=\"\",\"\",Template!O373)","v":""},"Aug-24 pending entries",{"$f":"TEXT(Template!$B$9,\"mm/dd/yyy\")","v":"08/01/2024"},null,null,null,null,{"$f":"IF(Template!M373>0,Template!M373,-Template!N373)","v":0},null,null,null,{"$f":"VLOOKUP(G361,'Account mapping'!A:D,4,0)","v":{"$error":"#N/A"}}]
[{"$f":"LEFT(Template!A374,4)","v":""},{"$f":"VLOOKUP(A362,'Structure mapping'!K:V,7,0)","v":{"$error":"#N/A"}},{"$f":"LEFT(Template!B374,5)","v":""},{"$f":"VLOOKUP(C362,'Structure mapping'!F:J,5,0)","v":{"$error":"#N/A"}},{"$f":"LEFT(Template!C374,7)","v":""},{"$f":"VLOOKUP(E362,'Structure mapping'!A:E,5,0)","v":{"$error":"#N/A"}},{"$f":"LEFT(Template!D374,6)","v":""},{"$f":"VLOOKUP(G362,'Account mapping'!A:E,5,0)","v":{"$error":"#N/A"}},{"$f":"LEFT(Template!E374,2)","v":""},{"$f":"VLOOKUP(I362,'Structure mapping'!X:AB,5,0)","v":{"$error":"#N/A"}},{"$f":"LEFT(Template!F374,3)","v":""},{"$f":"VLOOKUP(K362,'Structure mapping'!AC:AG,5,0)","v":{"$error":"#N/A"}},{"$f":"LEFT(Template!G374,10)","v":""},{"$f":"VLOOKUP(M362,'Structure mapping'!AH:AL,5,0)","v":{"$error":"#N/A"}},{"$f":"LEFT(Template!H374,6)","v":""},{"$f":"VLOOKUP(O362,'Structure mapping'!AM:AQ,5,0)","v":{"$error":"#N/A"}},null,null,null,null,{"$f":"IF(Template!O374=\"\",\"\",Template!O374)","v":""},"Aug-24 pending entries",{"$f":"TEXT(Template!$B$9,\"mm/dd/yyy\")","v":"08/01/2024"},null,null,null,null,{"$f":"IF(Template!M374>0,Template!M374,-Template!N374)","v":0},null,null,null,{"$f":"VLOOKUP(G362,'Account mapping'!A:D,4,0)","v":{"$error":"#N/A"}}]
[{"$f":"LEFT(Template!A375,4)","v":""},{"$f":"VLOOKUP(A363,'Structure mapping'!K:V,7,0)","v":{"$error":"#N/A"}},{"$f":"LEFT(Template!B375,5)","v":""},{"$f":"VLOOKUP(C363,'Structure mapping'!F:J,5,0)","v":{"$error":"#N/A"}},{"$f":"LEFT(Template!C375,7)","v":""},{"$f":"VLOOKUP(E363,'Structure mapping'!A:E,5,0)","v":{"$error":"#N/A"}},{"$f":"LEFT(Template!D375,6)","v":""},{"$f":"VLOOKUP(G363,'Account mapping'!A:E,5,0)","v":{"$error":"#N/A"}},{"$f":"LEFT(Template!E375,2)","v":""},{"$f":"VLOOKUP(I363,'Structure mapping'!X:AB,5,0)","v":{"$error":"#N/A"}},{"$f":"LEFT(Template!F375,3)","v":""},{"$f":"VLOOKUP(K363,'Structure mapping'!AC:AG,5,0)","v":{"$error":"#N/A"}},{"$f":"LEFT(Template!G375,10)","v":""},{"$f":"VLOOKUP(M363,'Structure mapping'!AH:AL,5,0)","v":{"$error":"#N/A"}},{"$f":"LEFT(Template!H375,6)","v":""},{"$f":"VLOOKUP(O363,'Structure mapping'!AM:AQ,5,0)","v":{"$error":"#N/A"}},null,null,null,null,{"$f":"IF(Template!O375=\"\",\"\",Template!O375)","v":""},"Aug-24 pending entries",{"$f":"TEXT(Template!$B$9,\"mm/dd/yyy\")","v":"08/01/2024"},null,null,null,null,{"$f":"IF(Template!M375>0,Template!M375,-Template!N375)","v":0},null,null,null,{"$f":"VLOOKUP(G363,'Account mapping'!A:D,4,0)","v":{"$error":"#N/A"}}]
[{"$f":"LEFT(Template!A376,4)","v":""},{"$f":"VLOOKUP(A364,'Structure mapping'!K:V,7,0)","v":{"$error":"#N/A"}},{"$f":"LEFT(Template!B376,5)","v":""},{"$f":"VLOOKUP(C364,'Structure mapping'!F:J,5,0)","v":{"$error":"#N/A"}},{"$f":"LEFT(Template!C376,7)","v":""},{"$f":"VLOOKUP(E364,'Structure mapping'!A:E,5,0)","v":{"$error":"#N/A"}},{"$f":"LEFT(Template!D376,6)","v":""},{"$f":"VLOOKUP(G364,'Account mapping'!A:E,5,0)","v":{"$error":"#N/A"}},{"$f":"LEFT(Template!E376,2)","v":""},{"$f":"VLOOKUP(I364,'Structure mapping'!X:AB,5,0)","v":{"$error":"#N/A"}},{"$f":"LEFT(Template!F376,3)","v":""},{"$f":"VLOOKUP(K364,'Structure mapping'!AC:AG,5,0)","v":{"$error":"#N/A"}},{"$f":"LEFT(Template!G376,10)","v":""},{"$f":"VLOOKUP(M364,'Structure mapping'!AH:AL,5,0)","v":{"$error":"#N/A"}},{"$f":"LEFT(Template!H376,6)","v":""},{"$f":"VLOOKUP(O364,'Structure mapping'!AM:AQ,5,0)","v":{"$error":"#N/A"}},null,null,null,null,{"$f":"IF(Template!O376=\"\",\"\",Template!O376)","v":""},"Aug-24 pending entries",{"$f":"TEXT(Template!$B$9,\"mm/dd/yyy\")","v":"08/01/2024"},null,null,null,null,{"$f":"IF(Template!M376>0,Template!M376,-Template!N376)","v":0},null,null,null,{"$f":"VLOOKUP(G364,'Account mapping'!A:D,4,0)","v":{"$error":"#N/A"}}]
[{"$f":"LEFT(Template!A377,4)","v":""},{"$f":"VLOOKUP(A365,'Structure mapping'!K:V,7,0)","v":{"$error":"#N/A"}},{"$f":"LEFT(Template!B377,5)","v":""},{"$f":"VLOOKUP(C365,'Structure mapping'!F:J,5,0)","v":{"$error":"#N/A"}},{"$f":"LEFT(Template!C377,7)","v":""},{"$f":"VLOOKUP(E365,'Structure mapping'!A:E,5,0)","v":{"$error":"#N/A"}},{"$f":"LEFT(Template!D377,6)","v":""},{"$f":"VLOOKUP(G365,'Account mapping'!A:E,5,0)","v":{"$error":"#N/A"}},{"$f":"LEFT(Template!E377,2)","v":""},{"$f":"VLOOKUP(I365,'Structure mapping'!X:AB,5,0)","v":{"$error":"#N/A"}},{"$f":"LEFT(Template!F377,3)","v":""},{"$f":"VLOOKUP(K365,'Structure mapping'!AC:AG,5,0)","v":{"$error":"#N/A"}},{"$f":"LEFT(Template!G377,10)","v":""},{"$f":"VLOOKUP(M365,'Structure mapping'!AH:AL,5,0)","v":{"$error":"#N/A"}},{"$f":"LEFT(Template!H377,6)","v":""},{"$f":"VLOOKUP(O365,'Structure mapping'!AM:AQ,5,0)","v":{"$error":"#N/A"}},null,null,null,null,{"$f":"IF(Template!O377=\"\",\"\",Template!O377)","v":""},"Aug-24 pending entries",{"$f":"TEXT(Template!$B$9,\"mm/dd/yyy\")","v":"08/01/2024"},null,null,null,null,{"$f":"IF(Template!M377>0,Template!M377,-Template!N377)","v":0},null,null,null,{"$f":"VLOOKUP(G365,'Account mapping'!A:D,4,0)","v":{"$error":"#N/A"}}]
[{"$f":"LEFT(Template!A378,4)","v":""},{"$f":"VLOOKUP(A366,'Structure mapping'!K:V,7,0)","v":{"$error":"#N/A"}},{"$f":"LEFT(Template!B378,5)","v":""},{"$f":"VLOOKUP(C366,'Structure mapping'!F:J,5,0)","v":{"$error":"#N/A"}},{"$f":"LEFT(Template!C378,7)","v":""},{"$f":"VLOOKUP(E366,'Structure mapping'!A:E,5,0)","v":{"$error":"#N/A"}},{"$f":"LEFT(Template!D378,6)","v":""},{"$f":"VLOOKUP(G366,'Account mapping'!A:E,5,0)","v":{"$error":"#N/A"}},{"$f":"LEFT(Template!E378,2)","v":""},{"$f":"VLOOKUP(I366,'Structure mapping'!X:AB,5,0)","v":{"$error":"#N/A"}},{"$f":"LEFT(Template!F378,3)","v":""},{"$f":"VLOOKUP(K366,'Structure mapping'!AC:AG,5,0)","v":{"$error":"#N/A"}},{"$f":"LEFT(Template!G378,10)","v":""},{"$f":"VLOOKUP(M366,'Structure mapping'!AH:AL,5,0)","v":{"$error":"#N/A"}},{"$f":"LEFT(Template!H378,6)","v":""},{"$f":"VLOOKUP(O366,'Structure mapping'!AM:AQ,5,0)","v":{"$error":"#N/A"}},null,null,null,null,{"$f":"IF(Template!O378=\"\",\"\",Template!O378)","v":""},"Aug-24 pending entries",{"$f":"TEXT(Template!$B$9,\"mm/dd/yyy\")","v":"08/01/2024"},null,null,null,null,{"$f":"IF(Template!M378>0,Template!M378,-Template!N378)","v":0},null,null,null,{"$f":"VLOOKUP(G366,'Account mapping'!A:D,4,0)","v":{"$error":"#N/A"}}]
[{"$f":"LEFT(Template!A379,4)","v":""},{"$f":"VLOOKUP(A367,'Structure mapping'!K:V,7,0)","v":{"$error":"#N/A"}},{"$f":"LEFT(Template!B379,5)","v":""},{"$f":"VLOOKUP(C367,'Structure mapping'!F:J,5,0)","v":{"$error":"#N/A"}},{"$f":"LEFT(Template!C379,7)","v":""},{"$f":"VLOOKUP(E367,'Structure mapping'!A:E,5,0)","v":{"$error":"#N/A"}},{"$f":"LEFT(Template!D379,6)","v":""},{"$f":"VLOOKUP(G367,'Account mapping'!A:E,5,0)","v":{"$error":"#N/A"}},{"$f":"LEFT(Template!E379,2)","v":""},{"$f":"VLOOKUP(I367,'Structure mapping'!X:AB,5,0)","v":{"$error":"#N/A"}},{"$f":"LEFT(Template!F379,3)","v":""},{"$f":"VLOOKUP(K367,'Structure mapping'!AC:AG,5,0)","v":{"$error":"#N/A"}},{"$f":"LEFT(Template!G379,10)","v":""},{"$f":"VLOOKUP(M367,'Structure mapping'!AH:AL,5,0)","v":{"$error":"#N/A"}},{"$f":"LEFT(Template!H379,6)","v":""},{"$f":"VLOOKUP(O367,'Structure mapping'!AM:AQ,5,0)","v":{"$error":"#N/A"}},null,null,null,null,{"$f":"IF(Template!O379=\"\",\"\",Template!O379)","v":""},"Aug-24 pending entries",{"$f":"TEXT(Template!$B$9,\"mm/dd/yyy\")","v":"08/01/2024"},null,null,null,null,{"$f":"IF(Template!M379>0,Template!M379,-Template!N379)","v":0},null,null,null,{"$f":"VLOOKUP(G367,'Account mapping'!A:D,4,0)","v":{"$error":"#N/A"}}]
[{"$f":"LEFT(Template!A380,4)","v":""},{"$f":"VLOOKUP(A368,'Structure mapping'!K:V,7,0)","v":{"$error":"#N/A"}},{"$f":"LEFT(Template!B380,5)","v":""},{"$f":"VLOOKUP(C368,'Structure mapping'!F:J,5,0)","v":{"$error":"#N/A"}},{"$f":"LEFT(Template!C380,7)","v":""},{"$f":"VLOOKUP(E368,'Structure mapping'!A:E,5,0)","v":{"$error":"#N/A"}},{"$f":"LEFT(Template!D380,6)","v":""},{"$f":"VLOOKUP(G368,'Account mapping'!A:E,5,0)","v":{"$error":"#N/A"}},{"$f":"LEFT(Template!E380,2)","v":""},{"$f":"VLOOKUP(I368,'Structure mapping'!X:AB,5,0)","v":{"$error":"#N/A"}},{"$f":"LEFT(Template!F380,3)","v":""},{"$f":"VLOOKUP(K368,'Structure mapping'!AC:AG,5,0)","v":{"$error":"#N/A"}},{"$f":"LEFT(Template!G380,10)","v":""},{"$f":"VLOOKUP(M368,'Structure mapping'!AH:AL,5,0)","v":{"$error":"#N/A"}},{"$f":"LEFT(Template!H380,6)","v":""},{"$f":"VLOOKUP(O368,'Structure mapping'!AM:AQ,5,0)","v":{"$error":"#N/A"}},null,null,null,null,{"$f":"IF(Template!O380=\"\",\"\",Template!O380)","v":""},"Aug-24 pending entries",{"$f":"TEXT(Template!$B$9,\"mm/dd/yyy\")","v":"08/01/2024"},null,null,null,null,{"$f":"IF(Template!M380>0,Template!M380,-Template!N380)","v":0},null,null,null,{"$f":"VLOOKUP(G368,'Account mapping'!A:D,4,0)","v":{"$error":"#N/A"}}]
[{"$f":"LEFT(Template!A381,4)","v":""},{"$f":"VLOOKUP(A369,'Structure mapping'!K:V,7,0)","v":{"$error":"#N/A"}},{"$f":"LEFT(Template!B381,5)","v":""},{"$f":"VLOOKUP(C369,'Structure mapping'!F:J,5,0)","v":{"$error":"#N/A"}},{"$f":"LEFT(Template!C381,7)","v":""},{"$f":"VLOOKUP(E369,'Structure mapping'!A:E,5,0)","v":{"$error":"#N/A"}},{"$f":"LEFT(Template!D381,6)","v":""},{"$f":"VLOOKUP(G369,'Account mapping'!A:E,5,0)","v":{"$error":"#N/A"}},{"$f":"LEFT(Template!E381,2)","v":""},{"$f":"VLOOKUP(I369,'Structure mapping'!X:AB,5,0)","v":{"$error":"#N/A"}},{"$f":"LEFT(Template!F381,3)","v":""},{"$f":"VLOOKUP(K369,'Structure mapping'!AC:AG,5,0)","v":{"$error":"#N/A"}},{"$f":"LEFT(Template!G381,10)","v":""},{"$f":"VLOOKUP(M369,'Structure mapping'!AH:AL,5,0)","v":{"$error":"#N/A"}},{"$f":"LEFT(Template!H381,6)","v":""},{"$f":"VLOOKUP(O369,'Structure mapping'!AM:AQ,5,0)","v":{"$error":"#N/A"}},null,null,null,null,{"$f":"IF(Template!O381=\"\",\"\",Template!O381)","v":""},"Aug-24 pending entries",{"$f":"TEXT(Template!$B$9,\"mm/dd/yyy\")","v":"08/01/2024"},null,null,null,null,{"$f":"IF(Template!M381>0,Template!M381,-Template!N381)","v":0},null,null,null,{"$f":"VLOOKUP(G369,'Account mapping'!A:D,4,0)","v":{"$error":"#N/A"}}]
[{"$f":"LEFT(Template!A382,4)","v":""},{"$f":"VLOOKUP(A370,'Structure mapping'!K:V,7,0)","v":{"$error":"#N/A"}},{"$f":"LEFT(Template!B382,5)","v":""},{"$f":"VLOOKUP(C370,'Structure mapping'!F:J,5,0)","v":{"$error":"#N/A"}},{"$f":"LEFT(Template!C382,7)","v":""},{"$f":"VLOOKUP(E370,'Structure mapping'!A:E,5,0)","v":{"$error":"#N/A"}},{"$f":"LEFT(Template!D382,6)","v":""},{"$f":"VLOOKUP(G370,'Account mapping'!A:E,5,0)","v":{"$error":"#N/A"}},{"$f":"LEFT(Template!E382,2)","v":""},{"$f":"VLOOKUP(I370,'Structure mapping'!X:AB,5,0)","v":{"$error":"#N/A"}},{"$f":"LEFT(Template!F382,3)","v":""},{"$f":"VLOOKUP(K370,'Structure mapping'!AC:AG,5,0)","v":{"$error":"#N/A"}},{"$f":"LEFT(Template!G382,10)","v":""},{"$f":"VLOOKUP(M370,'Structure mapping'!AH:AL,5,0)","v":{"$error":"#N/A"}},{"$f":"LEFT(Template!H382,6)","v":""},{"$f":"VLOOKUP(O370,'Structure mapping'!AM:AQ,5,0)","v":{"$error":"#N/A"}},null,null,null,null,{"$f":"IF(Template!O382=\"\",\"\",Template!O382)","v":""},"Aug-24 pending entries",{"$f":"TEXT(Template!$B$9,\"mm/dd/yyy\")","v":"08/01/2024"},null,null,null,null,{"$f":"IF(Template!M382>0,Template!M382,-Template!N382)","v":0},null,null,null,{"$f":"VLOOKUP(G370,'Account mapping'!A:D,4,0)","v":{"$error":"#N/A"}}]
[{"$f":"LEFT(Template!A383,4)","v":""},{"$f":"VLOOKUP(A371,'Structure mapping'!K:V,7,0)","v":{"$error":"#N/A"}},{"$f":"LEFT(Template!B383,5)","v":""},{"$f":"VLOOKUP(C371,'Structure mapping'!F:J,5,0)","v":{"$error":"#N/A"}},{"$f":"LEFT(Template!C383,7)","v":""},{"$f":"VLOOKUP(E371,'Structure mapping'!A:E,5,0)","v":{"$error":"#N/A"}},{"$f":"LEFT(Template!D383,6)","v":""},{"$f":"VLOOKUP(G371,'Account mapping'!A:E,5,0)","v":{"$error":"#N/A"}},{"$f":"LEFT(Template!E383,2)","v":""},{"$f":"VLOOKUP(I371,'Structure mapping'!X:AB,5,0)","v":{"$error":"#N/A"}},{"$f":"LEFT(Template!F383,3)","v":""},{"$f":"VLOOKUP(K371,'Structure mapping'!AC:AG,5,0)","v":{"$error":"#N/A"}},{"$f":"LEFT(Template!G383,10)","v":""},{"$f":"VLOOKUP(M371,'Structure mapping'!AH:AL,5,0)","v":{"$error":"#N/A"}},{"$f":"LEFT(Template!H383,6)","v":""},{"$f":"VLOOKUP(O371,'Structure mapping'!AM:AQ,5,0)","v":{"$error":"#N/A"}},null,null,null,null,{"$f":"IF(Template!O383=\"\",\"\",Template!O383)","v":""},"Aug-24 pending entries",{"$f":"TEXT(Template!$B$9,\"mm/dd/yyy\")","v":"08/01/2024"},null,null,null,null,{"$f":"IF(Template!M383>0,Template!M383,-Template!N383)","v":0},null,null,null,{"$f":"VLOOKUP(G371,'Account mapping'!A:D,4,0)","v":{"$error":"#N/A"}}]
[{"$f":"LEFT(Template!A384,4)","v":""},{"$f":"VLOOKUP(A372,'Structure mapping'!K:V,7,0)","v":{"$error":"#N/A"}},{"$f":"LEFT(Template!B384,5)","v":""},{"$f":"VLOOKUP(C372,'Structure mapping'!F:J,5,0)","v":{"$error":"#N/A"}},{"$f":"LEFT(Template!C384,7)","v":""},{"$f":"VLOOKUP(E372,'Structure mapping'!A:E,5,0)","v":{"$error":"#N/A"}},{"$f":"LEFT(Template!D384,6)","v":""},{"$f":"VLOOKUP(G372,'Account mapping'!A:E,5,0)","v":{"$error":"#N/A"}},{"$f":"LEFT(Template!E384,2)","v":""},{"$f":"VLOOKUP(I372,'Structure mapping'!X:AB,5,0)","v":{"$error":"#N/A"}},{"$f":"LEFT(Template!F384,3)","v":""},{"$f":"VLOOKUP(K372,'Structure mapping'!AC:AG,5,0)","v":{"$error":"#N/A"}},{"$f":"LEFT(Template!G384,10)","v":""},{"$f":"VLOOKUP(M372,'Structure mapping'!AH:AL,5,0)","v":{"$error":"#N/A"}},{"$f":"LEFT(Template!H384,6)","v":""},{"$f":"VLOOKUP(O372,'Structure mapping'!AM:AQ,5,0)","v":{"$error":"#N/A"}},null,null,null,null,{"$f":"IF(Template!O384=\"\",\"\",Template!O384)","v":""},"Aug-24 pending entries",{"$f":"TEXT(Template!$B$9,\"mm/dd/yyy\")","v":"08/01/2024"},null,null,null,null,{"$f":"IF(Template!M384>0,Template!M384,-Template!N384)","v":0},null,null,null,{"$f":"VLOOKUP(G372,'Account mapping'!A:D,4,0)","v":{"$error":"#N/A"}}]
[{"$f":"LEFT(Template!A385,4)","v":""},{"$f":"VLOOKUP(A373,'Structure mapping'!K:V,7,0)","v":{"$error":"#N/A"}},{"$f":"LEFT(Template!B385,5)","v":""},{"$f":"VLOOKUP(C373,'Structure mapping'!F:J,5,0)","v":{"$error":"#N/A"}},{"$f":"LEFT(Template!C385,7)","v":""},{"$f":"VLOOKUP(E373,'Structure mapping'!A:E,5,0)","v":{"$error":"#N/A"}},{"$f":"LEFT(Template!D385,6)","v":""},{"$f":"VLOOKUP(G373,'Account mapping'!A:E,5,0)","v":{"$error":"#N/A"}},{"$f":"LEFT(Template!E385,2)","v":""},{"$f":"VLOOKUP(I373,'Structure mapping'!X:AB,5,0)","v":{"$error":"#N/A"}},{"$f":"LEFT(Template!F385,3)","v":""},{"$f":"VLOOKUP(K373,'Structure mapping'!AC:AG,5,0)","v":{"$error":"#N/A"}},{"$f":"LEFT(Template!G385,10)","v":""},{"$f":"VLOOKUP(M373,'Structure mapping'!AH:AL,5,0)","v":{"$error":"#N/A"}},{"$f":"LEFT(Template!H385,6)","v":""},{"$f":"VLOOKUP(O373,'Structure mapping'!AM:AQ,5,0)","v":{"$error":"#N/A"}},null,null,null,null,{"$f":"IF(Template!O385=\"\",\"\",Template!O385)","v":""},"Aug-24 pending entries",{"$f":"TEXT(Template!$B$9,\"mm/dd/yyy\")","v":"08/01/2024"},null,null,null,null,{"$f":"IF(Template!M385>0,Template!M385,-Template!N385)","v":0},null,null,null,{"$f":"VLOOKUP(G373,'Account mapping'!A:D,4,0)","v":{"$error":"#N/A"}}]
[{"$f":"LEFT(Template!A386,4)","v":""},{"$f":"VLOOKUP(A374,'Structure mapping'!K:V,7,0)","v":{"$error":"#N/A"}},{"$f":"LEFT(Template!B386,5)","v":""},{"$f":"VLOOKUP(C374,'Structure mapping'!F:J,5,0)","v":{"$error":"#N/A"}},{"$f":"LEFT(Template!C386,7)","v":""},{"$f":"VLOOKUP(E374,'Structure mapping'!A:E,5,0)","v":{"$error":"#N/A"}},{"$f":"LEFT(Template!D386,6)","v":""},{"$f":"VLOOKUP(G374,'Account mapping'!A:E,5,0)","v":{"$error":"#N/A"}},{"$f":"LEFT(Template!E386,2)","v":""},{"$f":"VLOOKUP(I374,'Structure mapping'!X:AB,5,0)","v":{"$error":"#N/A"}},{"$f":"LEFT(Template!F386,3)","v":""},{"$f":"VLOOKUP(K374,'Structure mapping'!AC:AG,5,0)","v":{"$error":"#N/A"}},{"$f":"LEFT(Template!G386,10)","v":""},{"$f":"VLOOKUP(M374,'Structure mapping'!AH:AL,5,0)","v":{"$error":"#N/A"}},{"$f":"LEFT(Template!H386,6)","v":""},{"$f":"VLOOKUP(O374,'Structure mapping'!AM:AQ,5,0)","v":{"$error":"#N/A"}},null,null,null,null,{"$f":"IF(Template!O386=\"\",\"\",Template!O386)","v":""},"Aug-24 pending entries",{"$f":"TEXT(Template!$B$9,\"mm/dd/yyy\")","v":"08/01/2024"},null,null,null,null,{"$f":"IF(Template!M386>0,Template!M386,-Template!N386)","v":0},null,null,null,{"$f":"VLOOKUP(G374,'Account mapping'!A:D,4,0)","v":{"$error":"#N/A"}}]
[{"$f":"LEFT(Template!A387,4)","v":""},{"$f":"VLOOKUP(A375,'Structure mapping'!K:V,7,0)","v":{"$error":"#N/A"}},{"$f":"LEFT(Template!B387,5)","v":""},{"$f":"VLOOKUP(C375,'Structure mapping'!F:J,5,0)","v":{"$error":"#N/A"}},{"$f":"LEFT(Template!C387,7)","v":""},{"$f":"VLOOKUP(E375,'Structure mapping'!A:E,5,0)","v":{"$error":"#N/A"}},{"$f":"LEFT(Template!D387,6)","v":""},{"$f":"VLOOKUP(G375,'Account mapping'!A:E,5,0)","v":{"$error":"#N/A"}},{"$f":"LEFT(Template!E387,2)","v":""},{"$f":"VLOOKUP(I375,'Structure mapping'!X:AB,5,0)","v":{"$error":"#N/A"}},{"$f":"LEFT(Template!F387,3)","v":""},{"$f":"VLOOKUP(K375,'Structure mapping'!AC:AG,5,0)","v":{"$error":"#N/A"}},{"$f":"LEFT(Template!G387,10)","v":""},{"$f":"VLOOKUP(M375,'Structure mapping'!AH:AL,5,0)","v":{"$error":"#N/A"}},{"$f":"LEFT(Template!H387,6)","v":""},{"$f":"VLOOKUP(O375,'Structure mapping'!AM:AQ,5,0)","v":{"$error":"#N/A"}},null,null,null,null,{"$f":"IF(Template!O387=\"\",\"\",Template!O387)","v":""},"Aug-24 pending entries",{"$f":"TEXT(Template!$B$9,\"mm/dd/yyy\")","v":"08/01/2024"},null,null,null,null,{"$f":"IF(Template!M387>0,Template!M387,-Template!N387)","v":0},null,null,null,{"$f":"VLOOKUP(G375,'Account mapping'!A:D,4,0)","v":{"$error":"#N/A"}}]
[{"$f":"LEFT(Template!A388,4)","v":""},{"$f":"VLOOKUP(A376,'Structure mapping'!K:V,7,0)","v":{"$error":"#N/A"}},{"$f":"LEFT(Template!B388,5)","v":""},{"$f":"VLOOKUP(C376,'Structure mapping'!F:J,5,0)","v":{"$error":"#N/A"}},{"$f":"LEFT(Template!C388,7)","v":""},{"$f":"VLOOKUP(E376,'Structure mapping'!A:E,5,0)","v":{"$error":"#N/A"}},{"$f":"LEFT(Template!D388,6)","v":""},{"$f":"VLOOKUP(G376,'Account mapping'!A:E,5,0)","v":{"$error":"#N/A"}},{"$f":"LEFT(Template!E388,2)","v":""},{"$f":"VLOOKUP(I376,'Structure mapping'!X:AB,5,0)","v":{"$error":"#N/A"}},{"$f":"LEFT(Template!F388,3)","v":""},{"$f":"VLOOKUP(K376,'Structure mapping'!AC:AG,5,0)","v":{"$error":"#N/A"}},{"$f":"LEFT(Template!G388,10)","v":""},{"$f":"VLOOKUP(M376,'Structure mapping'!AH:AL,5,0)","v":{"$error":"#N/A"}},{"$f":"LEFT(Template!H388,6)","v":""},{"$f":"VLOOKUP(O376,'Structure mapping'!AM:AQ,5,0)","v":{"$error":"#N/A"}},null,null,null,null,{"$f":"IF(Template!O388=\"\",\"\",Template!O388)","v":""},"Aug-24 pending entries",{"$f":"TEXT(Template!$B$9,\"mm/dd/yyy\")","v":"08/01/2024"},null,null,null,null,{"$f":"IF(Template!M388>0,Template!M388,-Template!N388)","v":0},null,null,null,{"$f":"VLOOKUP(G376,'Account mapping'!A:D,4,0)","v":{"$error":"#N/A"}}]
[{"$f":"LEFT(Template!A389,4)","v":""},{"$f":"VLOOKUP(A377,'Structure mapping'!K:V,7,0)","v":{"$error":"#N/A"}},{"$f":"LEFT(Template!B389,5)","v":""},{"$f":"VLOOKUP(C377,'Structure mapping'!F:J,5,0)","v":{"$error":"#N/A"}},{"$f":"LEFT(Template!C389,7)","v":""},{"$f":"VLOOKUP(E377,'Structure mapping'!A:E,5,0)","v":{"$error":"#N/A"}},{"$f":"LEFT(Template!D389,6)","v":""},{"$f":"VLOOKUP(G377,'Account mapping'!A:E,5,0)","v":{"$error":"#N/A"}},{"$f":"LEFT(Template!E389,2)","v":""},{"$f":"VLOOKUP(I377,'Structure mapping'!X:AB,5,0)","v":{"$error":"#N/A"}},{"$f":"LEFT(Template!F389,3)","v":""},{"$f":"VLOOKUP(K377,'Structure mapping'!AC:AG,5,0)","v":{"$error":"#N/A"}},{"$f":"LEFT(Template!G389,10)","v":""},{"$f":"VLOOKUP(M377,'Structure mapping'!AH:AL,5,0)","v":{"$error":"#N/A"}},{"$f":"LEFT(Template!H389,6)","v":""},{"$f":"VLOOKUP(O377,'Structure mapping'!AM:AQ,5,0)","v":{"$error":"#N/A"}},null,null,null,null,{"$f":"IF(Template!O389=\"\",\"\",Template!O389)","v":""},"Aug-24 pending entries",{"$f":"TEXT(Template!$B$9,\"mm/dd/yyy\")","v":"08/01/2024"},null,null,null,null,{"$f":"IF(Template!M389>0,Template!M389,-Template!N389)","v":0},null,null,null,{"$f":"VLOOKUP(G377,'Account mapping'!A:D,4,0)","v":{"$error":"#N/A"}}]
[{"$f":"LEFT(Template!A390,4)","v":""},{"$f":"VLOOKUP(A378,'Structure mapping'!K:V,7,0)","v":{"$error":"#N/A"}},{"$f":"LEFT(Template!B390,5)","v":""},{"$f":"VLOOKUP(C378,'Structure mapping'!F:J,5,0)","v":{"$error":"#N/A"}},{"$f":"LEFT(Template!C390,7)","v":""},{"$f":"VLOOKUP(E378,'Structure mapping'!A:E,5,0)","v":{"$error":"#N/A"}},{"$f":"LEFT(Template!D390,6)","v":""},{"$f":"VLOOKUP(G378,'Account mapping'!A:E,5,0)","v":{"$error":"#N/A"}},{"$f":"LEFT(Template!E390,2)","v":""},{"$f":"VLOOKUP(I378,'Structure mapping'!X:AB,5,0)","v":{"$error":"#N/A"}},{"$f":"LEFT(Template!F390,3)","v":""},{"$f":"VLOOKUP(K378,'Structure mapping'!AC:AG,5,0)","v":{"$error":"#N/A"}},{"$f":"LEFT(Template!G390,10)","v":""},{"$f":"VLOOKUP(M378,'Structure mapping'!AH:AL,5,0)","v":{"$error":"#N/A"}},{"$f":"LEFT(Template!H390,6)","v":""},{"$f":"VLOOKUP(O378,'Structure mapping'!AM:AQ,5,0)","v":{"$error":"#N/A"}},null,null,null,null,{"$f":"IF(Template!O390=\"\",\"\",Template!O390)","v":""},"Aug-24 pending entries",{"$f":"TEXT(Template!$B$9,\"mm/dd/yyy\")","v":"08/01/2024"},null,null,null,null,{"$f":"IF(Template!M390>0,Template!M390,-Template!N390)","v":0},null,null,null,{"$f":"VLOOKUP(G378,'Account mapping'!A:D,4,0)","v":{"$error":"#N/A"}}]
[{"$f":"LEFT(Template!A391,4)","v":""},{"$f":"VLOOKUP(A379,'Structure mapping'!K:V,7,0)","v":{"$error":"#N/A"}},{"$f":"LEFT(Template!B391,5)","v":""},{"$f":"VLOOKUP(C379,'Structure mapping'!F:J,5,0)","v":{"$error":"#N/A"}},{"$f":"LEFT(Template!C391,7)","v":""},{"$f":"VLOOKUP(E379,'Structure mapping'!A:E,5,0)","v":{"$error":"#N/A"}},{"$f":"LEFT(Template!D391,6)","v":""},{"$f":"VLOOKUP(G379,'Account mapping'!A:E,5,0)","v":{"$error":"#N/A"}},{"$f":"LEFT(Template!E391,2)","v":""},{"$f":"VLOOKUP(I379,'Structure mapping'!X:AB,5,0)","v":{"$error":"#N/A"}},{"$f":"LEFT(Template!F391,3)","v":""},{"$f":"VLOOKUP(K379,'Structure mapping'!AC:AG,5,0)","v":{"$error":"#N/A"}},{"$f":"LEFT(Template!G391,10)","v":""},{"$f":"VLOOKUP(M379,'Structure mapping'!AH:AL,5,0)","v":{"$error":"#N/A"}},{"$f":"LEFT(Template!H391,6)","v":""},{"$f":"VLOOKUP(O379,'Structure mapping'!AM:AQ,5,0)","v":{"$error":"#N/A"}},null,null,null,null,{"$f":"IF(Template!O391=\"\",\"\",Template!O391)","v":""},"Aug-24 pending entries",{"$f":"TEXT(Template!$B$9,\"mm/dd/yyy\")","v":"08/01/2024"},null,null,null,null,{"$f":"IF(Template!M391>0,Template!M391,-Template!N391)","v":0},null,null,null,{"$f":"VLOOKUP(G379,'Account mapping'!A:D,4,0)","v":{"$error":"#N/A"}}]
[{"$f":"LEFT(Template!A392,4)","v":""},{"$f":"VLOOKUP(A380,'Structure mapping'!K:V,7,0)","v":{"$error":"#N/A"}},{"$f":"LEFT(Template!B392,5)","v":""},{"$f":"VLOOKUP(C380,'Structure mapping'!F:J,5,0)","v":{"$error":"#N/A"}},{"$f":"LEFT(Template!C392,7)","v":""},{"$f":"VLOOKUP(E380,'Structure mapping'!A:E,5,0)","v":{"$error":"#N/A"}},{"$f":"LEFT(Template!D392,6)","v":""},{"$f":"VLOOKUP(G380,'Account mapping'!A:E,5,0)","v":{"$error":"#N/A"}},{"$f":"LEFT(Template!E392,2)","v":""},{"$f":"VLOOKUP(I380,'Structure mapping'!X:AB,5,0)","v":{"$error":"#N/A"}},{"$f":"LEFT(Template!F392,3)","v":""},{"$f":"VLOOKUP(K380,'Structure mapping'!AC:AG,5,0)","v":{"$error":"#N/A"}},{"$f":"LEFT(Template!G392,10)","v":""},{"$f":"VLOOKUP(M380,'Structure mapping'!AH:AL,5,0)","v":{"$error":"#N/A"}},{"$f":"LEFT(Template!H392,6)","v":""},{"$f":"VLOOKUP(O380,'Structure mapping'!AM:AQ,5,0)","v":{"$error":"#N/A"}},null,null,null,null,{"$f":"IF(Template!O392=\"\",\"\",Template!O392)","v":""},"Aug-24 pending entries",{"$f":"TEXT(Template!$B$9,\"mm/dd/yyy\")","v":"08/01/2024"},null,null,null,null,{"$f":"IF(Template!M392>0,Template!M392,-Template!N392)","v":0},null,null,null,{"$f":"VLOOKUP(G380,'Account mapping'!A:D,4,0)","v":{"$error":"#N/A"}}]
[{"$f":"LEFT(Template!A393,4)","v":""},{"$f":"VLOOKUP(A381,'Structure mapping'!K:V,7,0)","v":{"$error":"#N/A"}},{"$f":"LEFT(Template!B393,5)","v":""},{"$f":"VLOOKUP(C381,'Structure mapping'!F:J,5,0)","v":{"$error":"#N/A"}},{"$f":"LEFT(Template!C393,7)","v":""},{"$f":"VLOOKUP(E381,'Structure mapping'!A:E,5,0)","v":{"$error":"#N/A"}},{"$f":"LEFT(Template!D393,6)","v":""},{"$f":"VLOOKUP(G381,'Account mapping'!A:E,5,0)","v":{"$error":"#N/A"}},{"$f":"LEFT(Template!E393,2)","v":""},{"$f":"VLOOKUP(I381,'Structure mapping'!X:AB,5,0)","v":{"$error":"#N/A"}},{"$f":"LEFT(Template!F393,3)","v":""},{"$f":"VLOOKUP(K381,'Structure mapping'!AC:AG,5,0)","v":{"$error":"#N/A"}},{"$f":"LEFT(Template!G393,10)","v":""},{"$f":"VLOOKUP(M381,'Structure mapping'!AH:AL,5,0)","v":{"$error":"#N/A"}},{"$f":"LEFT(Template!H393,6)","v":""},{"$f":"VLOOKUP(O381,'Structure mapping'!AM:AQ,5,0)","v":{"$error":"#N/A"}},null,null,null,null,{"$f":"IF(Template!O393=\"\",\"\",Template!O393)","v":""},"Aug-24 pending entries",{"$f":"TEXT(Template!$B$9,\"mm/dd/yyy\")","v":"08/01/2024"},null,null,null,null,{"$f":"IF(Template!M393>0,Template!M393,-Template!N393)","v":0},null,null,null,{"$f":"VLOOKUP(G381,'Account mapping'!A:D,4,0)","v":{"$error":"#N/A"}}]
[{"$f":"LEFT(Template!A394,4)","v":""},{"$f":"VLOOKUP(A382,'Structure mapping'!K:V,7,0)","v":{"$error":"#N/A"}},{"$f":"LEFT(Template!B394,5)","v":""},{"$f":"VLOOKUP(C382,'Structure mapping'!F:J,5,0)","v":{"$error":"#N/A"}},{"$f":"LEFT(Template!C394,7)","v":""},{"$f":"VLOOKUP(E382,'Structure mapping'!A:E,5,0)","v":{"$error":"#N/A"}},{"$f":"LEFT(Template!D394,6)","v":""},{"$f":"VLOOKUP(G382,'Account mapping'!A:E,5,0)","v":{"$error":"#N/A"}},{"$f":"LEFT(Template!E394,2)","v":""},{"$f":"VLOOKUP(I382,'Structure mapping'!X:AB,5,0)","v":{"$error":"#N/A"}},{"$f":"LEFT(Template!F394,3)","v":""},{"$f":"VLOOKUP(K382,'Structure mapping'!AC:AG,5,0)","v":{"$error":"#N/A"}},{"$f":"LEFT(Template!G394,10)","v":""},{"$f":"VLOOKUP(M382,'Structure mapping'!AH:AL,5,0)","v":{"$error":"#N/A"}},{"$f":"LEFT(Template!H394,6)","v":""},{"$f":"VLOOKUP(O382,'Structure mapping'!AM:AQ,5,0)","v":{"$error":"#N/A"}},null,null,null,null,{"$f":"IF(Template!O394=\"\",\"\",Template!O394)","v":""},"Aug-24 pending entries",{"$f":"TEXT(Template!$B$9,\"mm/dd/yyy\")","v":"08/01/2024"},null,null,null,null,{"$f":"IF(Template!M394>0,Template!M394,-Template!N394)","v":0},null,null,null,{"$f":"VLOOKUP(G382,'Account mapping'!A:D,4,0)","v":{"$error":"#N/A"}}]
[{"$f":"LEFT(Template!A395,4)","v":""},{"$f":"VLOOKUP(A383,'Structure mapping'!K:V,7,0)","v":{"$error":"#N/A"}},{"$f":"LEFT(Template!B395,5)","v":""},{"$f":"VLOOKUP(C383,'Structure mapping'!F:J,5,0)","v":{"$error":"#N/A"}},{"$f":"LEFT(Template!C395,7)","v":""},{"$f":"VLOOKUP(E383,'Structure mapping'!A:E,5,0)","v":{"$error":"#N/A"}},{"$f":"LEFT(Template!D395,6)","v":""},{"$f":"VLOOKUP(G383,'Account mapping'!A:E,5,0)","v":{"$error":"#N/A"}},{"$f":"LEFT(Template!E395,2)","v":""},{"$f":"VLOOKUP(I383,'Structure mapping'!X:AB,5,0)","v":{"$error":"#N/A"}},{"$f":"LEFT(Template!F395,3)","v":""},{"$f":"VLOOKUP(K383,'Structure mapping'!AC:AG,5,0)","v":{"$error":"#N/A"}},{"$f":"LEFT(Template!G395,10)","v":""},{"$f":"VLOOKUP(M383,'Structure mapping'!AH:AL,5,0)","v":{"$error":"#N/A"}},{"$f":"LEFT(Template!H395,6)","v":""},{"$f":"VLOOKUP(O383,'Structure mapping'!AM:AQ,5,0)","v":{"$error":"#N/A"}},null,null,null,null,{"$f":"IF(Template!O395=\"\",\"\",Template!O395)","v":""},"Aug-24 pending entries",{"$f":"TEXT(Template!$B$9,\"mm/dd/yyy\")","v":"08/01/2024"},null,null,null,null,{"$f":"IF(Template!M395>0,Template!M395,-Template!N395)","v":0},null,null,null,{"$f":"VLOOKUP(G383,'Account mapping'!A:D,4,0)","v":{"$error":"#N/A"}}]
[{"$f":"LEFT(Template!A396,4)","v":""},{"$f":"VLOOKUP(A384,'Structure mapping'!K:V,7,0)","v":{"$error":"#N/A"}},{"$f":"LEFT(Template!B396,5)","v":""},{"$f":"VLOOKUP(C384,'Structure mapping'!F:J,5,0)","v":{"$error":"#N/A"}},{"$f":"LEFT(Template!C396,7)","v":""},{"$f":"VLOOKUP(E384,'Structure mapping'!A:E,5,0)","v":{"$error":"#N/A"}},{"$f":"LEFT(Template!D396,6)","v":""},{"$f":"VLOOKUP(G384,'Account mapping'!A:E,5,0)","v":{"$error":"#N/A"}},{"$f":"LEFT(Template!E396,2)","v":""},{"$f":"VLOOKUP(I384,'Structure mapping'!X:AB,5,0)","v":{"$error":"#N/A"}},{"$f":"LEFT(Template!F396,3)","v":""},{"$f":"VLOOKUP(K384,'Structure mapping'!AC:AG,5,0)","v":{"$error":"#N/A"}},{"$f":"LEFT(Template!G396,10)","v":""},{"$f":"VLOOKUP(M384,'Structure mapping'!AH:AL,5,0)","v":{"$error":"#N/A"}},{"$f":"LEFT(Template!H396,6)","v":""},{"$f":"VLOOKUP(O384,'Structure mapping'!AM:AQ,5,0)","v":{"$error":"#N/A"}},null,null,null,null,{"$f":"IF(Template!O396=\"\",\"\",Template!O396)","v":""},"Aug-24 pending entries",{"$f":"TEXT(Template!$B$9,\"mm/dd/yyy\")","v":"08/01/2024"},null,null,null,null,{"$f":"IF(Template!M396>0,Template!M396,-Template!N396)","v":0},null,null,null,{"$f":"VLOOKUP(G384,'Account mapping'!A:D,4,0)","v":{"$error":"#N/A"}}]
[{"$f":"LEFT(Template!A397,4)","v":""},{"$f":"VLOOKUP(A385,'Structure mapping'!K:V,7,0)","v":{"$error":"#N/A"}},{"$f":"LEFT(Template!B397,5)","v":""},{"$f":"VLOOKUP(C385,'Structure mapping'!F:J,5,0)","v":{"$error":"#N/A"}},{"$f":"LEFT(Template!C397,7)","v":""},{"$f":"VLOOKUP(E385,'Structure mapping'!A:E,5,0)","v":{"$error":"#N/A"}},{"$f":"LEFT(Template!D397,6)","v":""},{"$f":"VLOOKUP(G385,'Account mapping'!A:E,5,0)","v":{"$error":"#N/A"}},{"$f":"LEFT(Template!E397,2)","v":""},{"$f":"VLOOKUP(I385,'Structure mapping'!X:AB,5,0)","v":{"$error":"#N/A"}},{"$f":"LEFT(Template!F397,3)","v":""},{"$f":"VLOOKUP(K385,'Structure mapping'!AC:AG,5,0)","v":{"$error":"#N/A"}},{"$f":"LEFT(Template!G397,10)","v":""},{"$f":"VLOOKUP(M385,'Structure mapping'!AH:AL,5,0)","v":{"$error":"#N/A"}},{"$f":"LEFT(Template!H397,6)","v":""},{"$f":"VLOOKUP(O385,'Structure mapping'!AM:AQ,5,0)","v":{"$error":"#N/A"}},null,null,null,null,{"$f":"IF(Template!O397=\"\",\"\",Template!O397)","v":""},"Aug-24 pending entries",{"$f":"TEXT(Template!$B$9,\"mm/dd/yyy\")","v":"08/01/2024"},null,null,null,null,{"$f":"IF(Template!M397>0,Template!M397,-Template!N397)","v":0},null,null,null,{"$f":"VLOOKUP(G385,'Account mapping'!A:D,4,0)","v":{"$error":"#N/A"}}]
[{"$f":"LEFT(Template!A398,4)","v":""},{"$f":"VLOOKUP(A386,'Structure mapping'!K:V,7,0)","v":{"$error":"#N/A"}},{"$f":"LEFT(Template!B398,5)","v":""},{"$f":"VLOOKUP(C386,'Structure mapping'!F:J,5,0)","v":{"$error":"#N/A"}},{"$f":"LEFT(Template!C398,7)","v":""},{"$f":"VLOOKUP(E386,'Structure mapping'!A:E,5,0)","v":{"$error":"#N/A"}},{"$f":"LEFT(Template!D398,6)","v":""},{"$f":"VLOOKUP(G386,'Account mapping'!A:E,5,0)","v":{"$error":"#N/A"}},{"$f":"LEFT(Template!E398,2)","v":""},{"$f":"VLOOKUP(I386,'Structure mapping'!X:AB,5,0)","v":{"$error":"#N/A"}},{"$f":"LEFT(Template!F398,3)","v":""},{"$f":"VLOOKUP(K386,'Structure mapping'!AC:AG,5,0)","v":{"$error":"#N/A"}},{"$f":"LEFT(Template!G398,10)","v":""},{"$f":"VLOOKUP(M386,'Structure mapping'!AH:AL,5,0)","v":{"$error":"#N/A"}},{"$f":"LEFT(Template!H398,6)","v":""},{"$f":"VLOOKUP(O386,'Structure mapping'!AM:AQ,5,0)","v":{"$error":"#N/A"}},null,null,null,null,{"$f":"IF(Template!O398=\"\",\"\",Template!O398)","v":""},"Aug-24 pending entries",{"$f":"TEXT(Template!$B$9,\"mm/dd/yyy\")","v":"08/01/2024"},null,null,null,null,{"$f":"IF(Template!M398>0,Template!M398,-Template!N398)","v":0},null,null,null,{"$f":"VLOOKUP(G386,'Account mapping'!A:D,4,0)","v":{"$error":"#N/A"}}]
[{"$f":"LEFT(Template!A399,4)","v":""},{"$f":"VLOOKUP(A387,'Structure mapping'!K:V,7,0)","v":{"$error":"#N/A"}},{"$f":"LEFT(Template!B399,5)","v":""},{"$f":"VLOOKUP(C387,'Structure mapping'!F:J,5,0)","v":{"$error":"#N/A"}},{"$f":"LEFT(Template!C399,7)","v":""},{"$f":"VLOOKUP(E387,'Structure mapping'!A:E,5,0)","v":{"$error":"#N/A"}},{"$f":"LEFT(Template!D399,6)","v":""},{"$f":"VLOOKUP(G387,'Account mapping'!A:E,5,0)","v":{"$error":"#N/A"}},{"$f":"LEFT(Template!E399,2)","v":""},{"$f":"VLOOKUP(I387,'Structure mapping'!X:AB,5,0)","v":{"$error":"#N/A"}},{"$f":"LEFT(Template!F399,3)","v":""},{"$f":"VLOOKUP(K387,'Structure mapping'!AC:AG,5,0)","v":{"$error":"#N/A"}},{"$f":"LEFT(Template!G399,10)","v":""},{"$f":"VLOOKUP(M387,'Structure mapping'!AH:AL,5,0)","v":{"$error":"#N/A"}},{"$f":"LEFT(Template!H399,6)","v":""},{"$f":"VLOOKUP(O387,'Structure mapping'!AM:AQ,5,0)","v":{"$error":"#N/A"}},null,null,null,null,{"$f":"IF(Template!O399=\"\",\"\",Template!O399)","v":""},{"$f":"TEXT(W387,\"mmm-yy\")&\" pending entries\"","v":"Aug-24 pending entries"},{"$f":"TEXT(Template!$B$9,\"mm/dd/yyy\")","v":"08/01/2024"},null,null,null,null,{"$f":"IF(Template!M399>0,Template!M399,-Template!N399)","v":0},null,null,null,{"$f":"VLOOKUP(G387,'Account mapping'!A:D,4,0)","v":{"$error":"#N/A"}}]
[{"$f":"LEFT(Template!A400,4)","v":""},{"$f":"VLOOKUP(A388,'Structure mapping'!K:V,7,0)","v":{"$error":"#N/A"}},{"$f":"LEFT(Template!B400,5)","v":""},{"$f":"VLOOKUP(C388,'Structure mapping'!F:J,5,0)","v":{"$error":"#N/A"}},{"$f":"LEFT(Template!C400,7)","v":""},{"$f":"VLOOKUP(E388,'Structure mapping'!A:E,5,0)","v":{"$error":"#N/A"}},{"$f":"LEFT(Template!D400,6)","v":""},{"$f":"VLOOKUP(G388,'Account mapping'!A:E,5,0)","v":{"$error":"#N/A"}},{"$f":"LEFT(Template!E400,2)","v":""},{"$f":"VLOOKUP(I388,'Structure mapping'!X:AB,5,0)","v":{"$error":"#N/A"}},{"$f":"LEFT(Template!F400,3)","v":""},{"$f":"VLOOKUP(K388,'Structure mapping'!AC:AG,5,0)","v":{"$error":"#N/A"}},{"$f":"LEFT(Template!G400,10)","v":""},{"$f":"VLOOKUP(M388,'Structure mapping'!AH:AL,5,0)","v":{"$error":"#N/A"}},{"$f":"LEFT(Template!H400,6)","v":""},{"$f":"VLOOKUP(O388,'Structure mapping'!AM:AQ,5,0)","v":{"$error":"#N/A"}},null,null,null,null,{"$f":"IF(Template!O400=\"\",\"\",Template!O400)","v":""},"Aug-24 pending entries",{"$f":"TEXT(Template!$B$9,\"mm/dd/yyy\")","v":"08/01/2024"},null,null,null,null,{"$f":"IF(Template!M400>0,Template!M400,-Template!N400)","v":0},null,null,null,{"$f":"VLOOKUP(G388,'Account mapping'!A:D,4,0)","v":{"$error":"#N/A"}}]
[{"$f":"LEFT(Template!A401,4)","v":""},{"$f":"VLOOKUP(A389,'Structure mapping'!K:V,7,0)","v":{"$error":"#N/A"}},{"$f":"LEFT(Template!B401,5)","v":""},{"$f":"VLOOKUP(C389,'Structure mapping'!F:J,5,0)","v":{"$error":"#N/A"}},{"$f":"LEFT(Template!C401,7)","v":""},{"$f":"VLOOKUP(E389,'Structure mapping'!A:E,5,0)","v":{"$error":"#N/A"}},{"$f":"LEFT(Template!D401,6)","v":""},{"$f":"VLOOKUP(G389,'Account mapping'!A:E,5,0)","v":{"$error":"#N/A"}},{"$f":"LEFT(Template!E401,2)","v":""},{"$f":"VLOOKUP(I389,'Structure mapping'!X:AB,5,0)","v":{"$error":"#N/A"}},{"$f":"LEFT(Template!F401,3)","v":""},{"$f":"VLOOKUP(K389,'Structure mapping'!AC:AG,5,0)","v":{"$error":"#N/A"}},{"$f":"LEFT(Template!G401,10)","v":""},{"$f":"VLOOKUP(M389,'Structure mapping'!AH:AL,5,0)","v":{"$error":"#N/A"}},{"$f":"LEFT(Template!H401,6)","v":""},{"$f":"VLOOKUP(O389,'Structure mapping'!AM:AQ,5,0)","v":{"$error":"#N/A"}},null,null,null,null,{"$f":"IF(Template!O401=\"\",\"\",Template!O401)","v":""},"Aug-24 pending entries",{"$f":"TEXT(Template!$B$9,\"mm/dd/yyy\")","v":"08/01/2024"},null,null,null,null,{"$f":"IF(Template!M401>0,Template!M401,-Template!N401)","v":0},null,null,null,{"$f":"VLOOKUP(G389,'Account mapping'!A:D,4,0)","v":{"$error":"#N/A"}}]
[{"$f":"LEFT(Template!A402,4)","v":""},{"$f":"VLOOKUP(A390,'Structure mapping'!K:V,7,0)","v":{"$error":"#N/A"}},{"$f":"LEFT(Template!B402,5)","v":""},{"$f":"VLOOKUP(C390,'Structure mapping'!F:J,5,0)","v":{"$error":"#N/A"}},{"$f":"LEFT(Template!C402,7)","v":""},{"$f":"VLOOKUP(E390,'Structure mapping'!A:E,5,0)","v":{"$error":"#N/A"}},{"$f":"LEFT(Template!D402,6)","v":""},{"$f":"VLOOKUP(G390,'Account mapping'!A:E,5,0)","v":{"$error":"#N/A"}},{"$f":"LEFT(Template!E402,2)","v":""},{"$f":"VLOOKUP(I390,'Structure mapping'!X:AB,5,0)","v":{"$error":"#N/A"}},{"$f":"LEFT(Template!F402,3)","v":""},{"$f":"VLOOKUP(K390,'Structure mapping'!AC:AG,5,0)","v":{"$error":"#N/A"}},{"$f":"LEFT(Template!G402,10)","v":""},{"$f":"VLOOKUP(M390,'Structure mapping'!AH:AL,5,0)","v":{"$error":"#N/A"}},{"$f":"LEFT(Template!H402,6)","v":""},{"$f":"VLOOKUP(O390,'Structure mapping'!AM:AQ,5,0)","v":{"$error":"#N/A"}},null,null,null,null,{"$f":"IF(Template!O402=\"\",\"\",Template!O402)","v":""},"Aug-24 pending entries",{"$f":"TEXT(Template!$B$9,\"mm/dd/yyy\")","v":"08/01/2024"},null,null,null,null,{"$f":"IF(Template!M402>0,Template!M402,-Template!N402)","v":0},null,null,null,{"$f":"VLOOKUP(G390,'Account mapping'!A:D,4,0)","v":{"$error":"#N/A"}}]
[{"$f":"LEFT(Template!A403,4)","v":""},{"$f":"VLOOKUP(A391,'Structure mapping'!K:V,7,0)","v":{"$error":"#N/A"}},{"$f":"LEFT(Template!B403,5)","v":""},{"$f":"VLOOKUP(C391,'Structure mapping'!F:J,5,0)","v":{"$error":"#N/A"}},{"$f":"LEFT(Template!C403,7)","v":""},{"$f":"VLOOKUP(E391,'Structure mapping'!A:E,5,0)","v":{"$error":"#N/A"}},{"$f":"LEFT(Template!D403,6)","v":""},{"$f":"VLOOKUP(G391,'Account mapping'!A:E,5,0)","v":{"$error":"#N/A"}},{"$f":"LEFT(Template!E403,2)","v":""},{"$f":"VLOOKUP(I391,'Structure mapping'!X:AB,5,0)","v":{"$error":"#N/A"}},{"$f":"LEFT(Template!F403,3)","v":""},{"$f":"VLOOKUP(K391,'Structure mapping'!AC:AG,5,0)","v":{"$error":"#N/A"}},{"$f":"LEFT(Template!G403,10)","v":""},{"$f":"VLOOKUP(M391,'Structure mapping'!AH:AL,5,0)","v":{"$error":"#N/A"}},{"$f":"LEFT(Template!H403,6)","v":""},{"$f":"VLOOKUP(O391,'Structure mapping'!AM:AQ,5,0)","v":{"$error":"#N/A"}},null,null,null,null,{"$f":"IF(Template!O403=\"\",\"\",Template!O403)","v":""},"Aug-24 pending entries",{"$f":"TEXT(Template!$B$9,\"mm/dd/yyy\")","v":"08/01/2024"},null,null,null,null,{"$f":"IF(Template!M403>0,Template!M403,-Template!N403)","v":0},null,null,null,{"$f":"VLOOKUP(G391,'Account mapping'!A:D,4,0)","v":{"$error":"#N/A"}}]
[{"$f":"LEFT(Template!A404,4)","v":""},{"$f":"VLOOKUP(A392,'Structure mapping'!K:V,7,0)","v":{"$error":"#N/A"}},{"$f":"LEFT(Template!B404,5)","v":""},{"$f":"VLOOKUP(C392,'Structure mapping'!F:J,5,0)","v":{"$error":"#N/A"}},{"$f":"LEFT(Template!C404,7)","v":""},{"$f":"VLOOKUP(E392,'Structure mapping'!A:E,5,0)","v":{"$error":"#N/A"}},{"$f":"LEFT(Template!D404,6)","v":""},{"$f":"VLOOKUP(G392,'Account mapping'!A:E,5,0)","v":{"$error":"#N/A"}},{"$f":"LEFT(Template!E404,2)","v":""},{"$f":"VLOOKUP(I392,'Structure mapping'!X:AB,5,0)","v":{"$error":"#N/A"}},{"$f":"LEFT(Template!F404,3)","v":""},{"$f":"VLOOKUP(K392,'Structure mapping'!AC:AG,5,0)","v":{"$error":"#N/A"}},{"$f":"LEFT(Template!G404,10)","v":""},{"$f":"VLOOKUP(M392,'Structure mapping'!AH:AL,5,0)","v":{"$error":"#N/A"}},{"$f":"LEFT(Template!H404,6)","v":""},{"$f":"VLOOKUP(O392,'Structure mapping'!AM:AQ,5,0)","v":{"$error":"#N/A"}},null,null,null,null,{"$f":"IF(Template!O404=\"\",\"\",Template!O404)","v":""},"Aug-24 pending entries",{"$f":"TEXT(Template!$B$9,\"mm/dd/yyy\")","v":"08/01/2024"},null,null,null,null,{"$f":"IF(Template!M404>0,Template!M404,-Template!N404)","v":0},null,null,null,{"$f":"VLOOKUP(G392,'Account mapping'!A:D,4,0)","v":{"$error":"#N/A"}}]
[{"$f":"LEFT(Template!A405,4)","v":""},{"$f":"VLOOKUP(A393,'Structure mapping'!K:V,7,0)","v":{"$error":"#N/A"}},{"$f":"LEFT(Template!B405,5)","v":""},{"$f":"VLOOKUP(C393,'Structure mapping'!F:J,5,0)","v":{"$error":"#N/A"}},{"$f":"LEFT(Template!C405,7)","v":""},{"$f":"VLOOKUP(E393,'Structure mapping'!A:E,5,0)","v":{"$error":"#N/A"}},{"$f":"LEFT(Template!D405,6)","v":""},{"$f":"VLOOKUP(G393,'Account mapping'!A:E,5,0)","v":{"$error":"#N/A"}},{"$f":"LEFT(Template!E405,2)","v":""},{"$f":"VLOOKUP(I393,'Structure mapping'!X:AB,5,0)","v":{"$error":"#N/A"}},{"$f":"LEFT(Template!F405,3)","v":""},{"$f":"VLOOKUP(K393,'Structure mapping'!AC:AG,5,0)","v":{"$error":"#N/A"}},{"$f":"LEFT(Template!G405,10)","v":""},{"$f":"VLOOKUP(M393,'Structure mapping'!AH:AL,5,0)","v":{"$error":"#N/A"}},{"$f":"LEFT(Template!H405,6)","v":""},{"$f":"VLOOKUP(O393,'Structure mapping'!AM:AQ,5,0)","v":{"$error":"#N/A"}},null,null,null,null,{"$f":"IF(Template!O405=\"\",\"\",Template!O405)","v":""},"Aug-24 pending entries",{"$f":"TEXT(Template!$B$9,\"mm/dd/yyy\")","v":"08/01/2024"},null,null,null,null,{"$f":"IF(Template!M405>0,Template!M405,-Template!N405)","v":0},null,null,null,{"$f":"VLOOKUP(G393,'Account mapping'!A:D,4,0)","v":{"$error":"#N/A"}}]
[{"$f":"LEFT(Template!A406,4)","v":""},{"$f":"VLOOKUP(A394,'Structure mapping'!K:V,7,0)","v":{"$error":"#N/A"}},{"$f":"LEFT(Template!B406,5)","v":""},{"$f":"VLOOKUP(C394,'Structure mapping'!F:J,5,0)","v":{"$error":"#N/A"}},{"$f":"LEFT(Template!C406,7)","v":""},{"$f":"VLOOKUP(E394,'Structure mapping'!A:E,5,0)","v":{"$error":"#N/A"}},{"$f":"LEFT(Template!D406,6)","v":""},{"$f":"VLOOKUP(G394,'Account mapping'!A:E,5,0)","v":{"$error":"#N/A"}},{"$f":"LEFT(Template!E406,2)","v":""},{"$f":"VLOOKUP(I394,'Structure mapping'!X:AB,5,0)","v":{"$error":"#N/A"}},{"$f":"LEFT(Template!F406,3)","v":""},{"$f":"VLOOKUP(K394,'Structure mapping'!AC:AG,5,0)","v":{"$error":"#N/A"}},{"$f":"LEFT(Template!G406,10)","v":""},{"$f":"VLOOKUP(M394,'Structure mapping'!AH:AL,5,0)","v":{"$error":"#N/A"}},{"$f":"LEFT(Template!H406,6)","v":""},{"$f":"VLOOKUP(O394,'Structure mapping'!AM:AQ,5,0)","v":{"$error":"#N/A"}},null,null,null,null,{"$f":"IF(Template!O406=\"\",\"\",Template!O406)","v":""},"Aug-24 pending entries",{"$f":"TEXT(Template!$B$9,\"mm/dd/yyy\")","v":"08/01/2024"},null,null,null,null,{"$f":"IF(Template!M406>0,Template!M406,-Template!N406)","v":0},null,null,null,{"$f":"VLOOKUP(G394,'Account mapping'!A:D,4,0)","v":{"$error":"#N/A"}}]
[{"$f":"LEFT(Template!A407,4)","v":""},{"$f":"VLOOKUP(A395,'Structure mapping'!K:V,7,0)","v":{"$error":"#N/A"}},{"$f":"LEFT(Template!B407,5)","v":""},{"$f":"VLOOKUP(C395,'Structure mapping'!F:J,5,0)","v":{"$error":"#N/A"}},{"$f":"LEFT(Template!C407,7)","v":""},{"$f":"VLOOKUP(E395,'Structure mapping'!A:E,5,0)","v":{"$error":"#N/A"}},{"$f":"LEFT(Template!D407,6)","v":""},{"$f":"VLOOKUP(G395,'Account mapping'!A:E,5,0)","v":{"$error":"#N/A"}},{"$f":"LEFT(Template!E407,2)","v":""},{"$f":"VLOOKUP(I395,'Structure mapping'!X:AB,5,0)","v":{"$error":"#N/A"}},{"$f":"LEFT(Template!F407,3)","v":""},{"$f":"VLOOKUP(K395,'Structure mapping'!AC:AG,5,0)","v":{"$error":"#N/A"}},{"$f":"LEFT(Template!G407,10)","v":""},{"$f":"VLOOKUP(M395,'Structure mapping'!AH:AL,5,0)","v":{"$error":"#N/A"}},{"$f":"LEFT(Template!H407,6)","v":""},{"$f":"VLOOKUP(O395,'Structure mapping'!AM:AQ,5,0)","v":{"$error":"#N/A"}},null,null,null,null,{"$f":"IF(Template!O407=\"\",\"\",Template!O407)","v":""},"Aug-24 pending entries",{"$f":"TEXT(Template!$B$9,\"mm/dd/yyy\")","v":"08/01/2024"},null,null,null,null,{"$f":"IF(Template!M407>0,Template!M407,-Template!N407)","v":0},null,null,null,{"$f":"VLOOKUP(G395,'Account mapping'!A:D,4,0)","v":{"$error":"#N/A"}}]
[{"$f":"LEFT(Template!A408,4)","v":""},{"$f":"VLOOKUP(A396,'Structure mapping'!K:V,7,0)","v":{"$error":"#N/A"}},{"$f":"LEFT(Template!B408,5)","v":""},{"$f":"VLOOKUP(C396,'Structure mapping'!F:J,5,0)","v":{"$error":"#N/A"}},{"$f":"LEFT(Template!C408,7)","v":""},{"$f":"VLOOKUP(E396,'Structure mapping'!A:E,5,0)","v":{"$error":"#N/A"}},{"$f":"LEFT(Template!D408,6)","v":""},{"$f":"VLOOKUP(G396,'Account mapping'!A:E,5,0)","v":{"$error":"#N/A"}},{"$f":"LEFT(Template!E408,2)","v":""},{"$f":"VLOOKUP(I396,'Structure mapping'!X:AB,5,0)","v":{"$error":"#N/A"}},{"$f":"LEFT(Template!F408,3)","v":""},{"$f":"VLOOKUP(K396,'Structure mapping'!AC:AG,5,0)","v":{"$error":"#N/A"}},{"$f":"LEFT(Template!G408,10)","v":""},{"$f":"VLOOKUP(M396,'Structure mapping'!AH:AL,5,0)","v":{"$error":"#N/A"}},{"$f":"LEFT(Template!H408,6)","v":""},{"$f":"VLOOKUP(O396,'Structure mapping'!AM:AQ,5,0)","v":{"$error":"#N/A"}},null,null,null,null,{"$f":"IF(Template!O408=\"\",\"\",Template!O408)","v":""},"Aug-24 pending entries",{"$f":"TEXT(Template!$B$9,\"mm/dd/yyy\")","v":"08/01/2024"},null,null,null,null,{"$f":"IF(Template!M408>0,Template!M408,-Template!N408)","v":0},null,null,null,{"$f":"VLOOKUP(G396,'Account mapping'!A:D,4,0)","v":{"$error":"#N/A"}}]
[{"$f":"LEFT(Template!A409,4)","v":""},{"$f":"VLOOKUP(A397,'Structure mapping'!K:V,7,0)","v":{"$error":"#N/A"}},{"$f":"LEFT(Template!B409,5)","v":""},{"$f":"VLOOKUP(C397,'Structure mapping'!F:J,5,0)","v":{"$error":"#N/A"}},{"$f":"LEFT(Template!C409,7)","v":""},{"$f":"VLOOKUP(E397,'Structure mapping'!A:E,5,0)","v":{"$error":"#N/A"}},{"$f":"LEFT(Template!D409,6)","v":""},{"$f":"VLOOKUP(G397,'Account mapping'!A:E,5,0)","v":{"$error":"#N/A"}},{"$f":"LEFT(Template!E409,2)","v":""},{"$f":"VLOOKUP(I397,'Structure mapping'!X:AB,5,0)","v":{"$error":"#N/A"}},{"$f":"LEFT(Template!F409,3)","v":""},{"$f":"VLOOKUP(K397,'Structure mapping'!AC:AG,5,0)","v":{"$error":"#N/A"}},{"$f":"LEFT(Template!G409,10)","v":""},{"$f":"VLOOKUP(M397,'Structure mapping'!AH:AL,5,0)","v":{"$error":"#N/A"}},{"$f":"LEFT(Template!H409,6)","v":""},{"$f":"VLOOKUP(O397,'Structure mapping'!AM:AQ,5,0)","v":{"$error":"#N/A"}},null,null,null,null,{"$f":"IF(Template!O409=\"\",\"\",Template!O409)","v":""},"Aug-24 pending entries",{"$f":"TEXT(Template!$B$9,\"mm/dd/yyy\")","v":"08/01/2024"},null,null,null,null,{"$f":"IF(Template!M409>0,Template!M409,-Template!N409)","v":0},null,null,null,{"$f":"VLOOKUP(G397,'Account mapping'!A:D,4,0)","v":{"$error":"#N/A"}}]
[{"$f":"LEFT(Template!A410,4)","v":""},{"$f":"VLOOKUP(A398,'Structure mapping'!K:V,7,0)","v":{"$error":"#N/A"}},{"$f":"LEFT(Template!B410,5)","v":""},{"$f":"VLOOKUP(C398,'Structure mapping'!F:J,5,0)","v":{"$error":"#N/A"}},{"$f":"LEFT(Template!C410,7)","v":""},{"$f":"VLOOKUP(E398,'Structure mapping'!A:E,5,0)","v":{"$error":"#N/A"}},{"$f":"LEFT(Template!D410,6)","v":""},{"$f":"VLOOKUP(G398,'Account mapping'!A:E,5,0)","v":{"$error":"#N/A"}},{"$f":"LEFT(Template!E410,2)","v":""},{"$f":"VLOOKUP(I398,'Structure mapping'!X:AB,5,0)","v":{"$error":"#N/A"}},{"$f":"LEFT(Template!F410,3)","v":""},{"$f":"VLOOKUP(K398,'Structure mapping'!AC:AG,5,0)","v":{"$error":"#N/A"}},{"$f":"LEFT(Template!G410,10)","v":""},{"$f":"VLOOKUP(M398,'Structure mapping'!AH:AL,5,0)","v":{"$error":"#N/A"}},{"$f":"LEFT(Template!H410,6)","v":""},{"$f":"VLOOKUP(O398,'Structure mapping'!AM:AQ,5,0)","v":{"$error":"#N/A"}},null,null,null,null,{"$f":"IF(Template!O410=\"\",\"\",Template!O410)","v":""},"Aug-24 pending entries",{"$f":"TEXT(Template!$B$9,\"mm/dd/yyy\")","v":"08/01/2024"},null,null,null,null,{"$f":"IF(Template!M410>0,Template!M410,-Template!N410)","v":0},null,null,null,{"$f":"VLOOKUP(G398,'Account mapping'!A:D,4,0)","v":{"$error":"#N/A"}}]
[{"$f":"LEFT(Template!A411,4)","v":""},{"$f":"VLOOKUP(A399,'Structure mapping'!K:V,7,0)","v":{"$error":"#N/A"}},{"$f":"LEFT(Template!B411,5)","v":""},{"$f":"VLOOKUP(C399,'Structure mapping'!F:J,5,0)","v":{"$error":"#N/A"}},{"$f":"LEFT(Template!C411,7)","v":""},{"$f":"VLOOKUP(E399,'Structure mapping'!A:E,5,0)","v":{"$error":"#N/A"}},{"$f":"LEFT(Template!D411,6)","v":""},{"$f":"VLOOKUP(G399,'Account mapping'!A:E,5,0)","v":{"$error":"#N/A"}},{"$f":"LEFT(Template!E411,2)","v":""},{"$f":"VLOOKUP(I399,'Structure mapping'!X:AB,5,0)","v":{"$error":"#N/A"}},{"$f":"LEFT(Template!F411,3)","v":""},{"$f":"VLOOKUP(K399,'Structure mapping'!AC:AG,5,0)","v":{"$error":"#N/A"}},{"$f":"LEFT(Template!G411,10)","v":""},{"$f":"VLOOKUP(M399,'Structure mapping'!AH:AL,5,0)","v":{"$error":"#N/A"}},{"$f":"LEFT(Template!H411,6)","v":""},{"$f":"VLOOKUP(O399,'Structure mapping'!AM:AQ,5,0)","v":{"$error":"#N/A"}},null,null,null,null,{"$f":"IF(Template!O411=\"\",\"\",Template!O411)","v":""},"Aug-24 pending entries",{"$f":"TEXT(Template!$B$9,\"mm/dd/yyy\")","v":"08/01/2024"},null,null,null,null,{"$f":"IF(Template!M411>0,Template!M411,-Template!N411)","v":0},null,null,null,{"$f":"VLOOKUP(G399,'Account mapping'!A:D,4,0)","v":{"$error":"#N/A"}}]
[{"$f":"LEFT(Template!A412,4)","v":""},{"$f":"VLOOKUP(A400,'Structure mapping'!K:V,7,0)","v":{"$error":"#N/A"}},{"$f":"LEFT(Template!B412,5)","v":""},{"$f":"VLOOKUP(C400,'Structure mapping'!F:J,5,0)","v":{"$error":"#N/A"}},{"$f":"LEFT(Template!C412,7)","v":""},{"$f":"VLOOKUP(E400,'Structure mapping'!A:E,5,0)","v":{"$error":"#N/A"}},{"$f":"LEFT(Template!D412,6)","v":""},{"$f":"VLOOKUP(G400,'Account mapping'!A:E,5,0)","v":{"$error":"#N/A"}},{"$f":"LEFT(Template!E412,2)","v":""},{"$f":"VLOOKUP(I400,'Structure mapping'!X:AB,5,0)","v":{"$error":"#N/A"}},{"$f":"LEFT(Template!F412,3)","v":""},{"$f":"VLOOKUP(K400,'Structure mapping'!AC:AG,5,0)","v":{"$error":"#N/A"}},{"$f":"LEFT(Template!G412,10)","v":""},{"$f":"VLOOKUP(M400,'Structure mapping'!AH:AL,5,0)","v":{"$error":"#N/A"}},{"$f":"LEFT(Template!H412,6)","v":""},{"$f":"VLOOKUP(O400,'Structure mapping'!AM:AQ,5,0)","v":{"$error":"#N/A"}},null,null,null,null,{"$f":"IF(Template!O412=\"\",\"\",Template!O412)","v":""},"Aug-24 pending entries",{"$f":"TEXT(Template!$B$9,\"mm/dd/yyy\")","v":"08/01/2024"},null,null,null,null,{"$f":"IF(Template!M412>0,Template!M412,-Template!N412)","v":0},null,null,null,{"$f":"VLOOKUP(G400,'Account mapping'!A:D,4,0)","v":{"$error":"#N/A"}}]
[{"$f":"LEFT(Template!A413,4)","v":""},{"$f":"VLOOKUP(A401,'Structure mapping'!K:V,7,0)","v":{"$error":"#N/A"}},{"$f":"LEFT(Template!B413,5)","v":""},{"$f":"VLOOKUP(C401,'Structure mapping'!F:J,5,0)","v":{"$error":"#N/A"}},{"$f":"LEFT(Template!C413,7)","v":""},{"$f":"VLOOKUP(E401,'Structure mapping'!A:E,5,0)","v":{"$error":"#N/A"}},{"$f":"LEFT(Template!D413,6)","v":""},{"$f":"VLOOKUP(G401,'Account mapping'!A:E,5,0)","v":{"$error":"#N/A"}},{"$f":"LEFT(Template!E413,2)","v":""},{"$f":"VLOOKUP(I401,'Structure mapping'!X:AB,5,0)","v":{"$error":"#N/A"}},{"$f":"LEFT(Template!F413,3)","v":""},{"$f":"VLOOKUP(K401,'Structure mapping'!AC:AG,5,0)","v":{"$error":"#N/A"}},{"$f":"LEFT(Template!G413,10)","v":""},{"$f":"VLOOKUP(M401,'Structure mapping'!AH:AL,5,0)","v":{"$error":"#N/A"}},{"$f":"LEFT(Template!H413,6)","v":""},{"$f":"VLOOKUP(O401,'Structure mapping'!AM:AQ,5,0)","v":{"$error":"#N/A"}},null,null,null,null,{"$f":"IF(Template!O413=\"\",\"\",Template!O413)","v":""},"Aug-24 pending entries",{"$f":"TEXT(Template!$B$9,\"mm/dd/yyy\")","v":"08/01/2024"},null,null,null,null,{"$f":"IF(Template!M413>0,Template!M413,-Template!N413)","v":0},null,null,null,{"$f":"VLOOKUP(G401,'Account mapping'!A:D,4,0)","v":{"$error":"#N/A"}}]
[{"$f":"LEFT(Template!A414,4)","v":""},{"$f":"VLOOKUP(A402,'Structure mapping'!K:V,7,0)","v":{"$error":"#N/A"}},{"$f":"LEFT(Template!B414,5)","v":""},{"$f":"VLOOKUP(C402,'Structure mapping'!F:J,5,0)","v":{"$error":"#N/A"}},{"$f":"LEFT(Template!C414,7)","v":""},{"$f":"VLOOKUP(E402,'Structure mapping'!A:E,5,0)","v":{"$error":"#N/A"}},{"$f":"LEFT(Template!D414,6)","v":""},{"$f":"VLOOKUP(G402,'Account mapping'!A:E,5,0)","v":{"$error":"#N/A"}},{"$f":"LEFT(Template!E414,2)","v":""},{"$f":"VLOOKUP(I402,'Structure mapping'!X:AB,5,0)","v":{"$error":"#N/A"}},{"$f":"LEFT(Template!F414,3)","v":""},{"$f":"VLOOKUP(K402,'Structure mapping'!AC:AG,5,0)","v":{"$error":"#N/A"}},{"$f":"LEFT(Template!G414,10)","v":""},{"$f":"VLOOKUP(M402,'Structure mapping'!AH:AL,5,0)","v":{"$error":"#N/A"}},{"$f":"LEFT(Template!H414,6)","v":""},{"$f":"VLOOKUP(O402,'Structure mapping'!AM:AQ,5,0)","v":{"$error":"#N/A"}},null,null,null,null,{"$f":"IF(Template!O414=\"\",\"\",Template!O414)","v":""},"Aug-24 pending entries",{"$f":"TEXT(Template!$B$9,\"mm/dd/yyy\")","v":"08/01/2024"},null,null,null,null,{"$f":"IF(Template!M414>0,Template!M414,-Template!N414)","v":0},null,null,null,{"$f":"VLOOKUP(G402,'Account mapping'!A:D,4,0)","v":{"$error":"#N/A"}}]
[{"$f":"LEFT(Template!A415,4)","v":""},{"$f":"VLOOKUP(A403,'Structure mapping'!K:V,7,0)","v":{"$error":"#N/A"}},{"$f":"LEFT(Template!B415,5)","v":""},{"$f":"VLOOKUP(C403,'Structure mapping'!F:J,5,0)","v":{"$error":"#N/A"}},{"$f":"LEFT(Template!C415,7)","v":""},{"$f":"VLOOKUP(E403,'Structure mapping'!A:E,5,0)","v":{"$error":"#N/A"}},{"$f":"LEFT(Template!D415,6)","v":""},{"$f":"VLOOKUP(G403,'Account mapping'!A:E,5,0)","v":{"$error":"#N/A"}},{"$f":"LEFT(Template!E415,2)","v":""},{"$f":"VLOOKUP(I403,'Structure mapping'!X:AB,5,0)","v":{"$error":"#N/A"}},{"$f":"LEFT(Template!F415,3)","v":""},{"$f":"VLOOKUP(K403,'Structure mapping'!AC:AG,5,0)","v":{"$error":"#N/A"}},{"$f":"LEFT(Template!G415,10)","v":""},{"$f":"VLOOKUP(M403,'Structure mapping'!AH:AL,5,0)","v":{"$error":"#N/A"}},{"$f":"LEFT(Template!H415,6)","v":""},{"$f":"VLOOKUP(O403,'Structure mapping'!AM:AQ,5,0)","v":{"$error":"#N/A"}},null,null,null,null,{"$f":"IF(Template!O415=\"\",\"\",Template!O415)","v":""},"Aug-24 pending entries",{"$f":"TEXT(Template!$B$9,\"mm/dd/yyy\")","v":"08/01/2024"},null,null,null,null,{"$f":"IF(Template!M415>0,Template!M415,-Template!N415)","v":0},null,null,null,{"$f":"VLOOKUP(G403,'Account mapping'!A:D,4,0)","v":{"$error":"#N/A"}}]
[{"$f":"LEFT(Template!A416,4)","v":""},{"$f":"VLOOKUP(A404,'Structure mapping'!K:V,7,0)","v":{"$error":"#N/A"}},{"$f":"LEFT(Template!B416,5)","v":""},{"$f":"VLOOKUP(C404,'Structure mapping'!F:J,5,0)","v":{"$error":"#N/A"}},{"$f":"LEFT(Template!C416,7)","v":""},{"$f":"VLOOKUP(E404,'Structure mapping'!A:E,5,0)","v":{"$error":"#N/A"}},{"$f":"LEFT(Template!D416,6)","v":""},{"$f":"VLOOKUP(G404,'Account mapping'!A:E,5,0)","v":{"$error":"#N/A"}},{"$f":"LEFT(Template!E416,2)","v":""},{"$f":"VLOOKUP(I404,'Structure mapping'!X:AB,5,0)","v":{"$error":"#N/A"}},{"$f":"LEFT(Template!F416,3)","v":""},{"$f":"VLOOKUP(K404,'Structure mapping'!AC:AG,5,0)","v":{"$error":"#N/A"}},{"$f":"LEFT(Template!G416,10)","v":""},{"$f":"VLOOKUP(M404,'Structure mapping'!AH:AL,5,0)","v":{"$error":"#N/A"}},{"$f":"LEFT(Template!H416,6)","v":""},{"$f":"VLOOKUP(O404,'Structure mapping'!AM:AQ,5,0)","v":{"$error":"#N/A"}},null,null,null,null,{"$f":"IF(Template!O416=\"\",\"\",Template!O416)","v":""},"Aug-24 pending entries",{"$f":"TEXT(Template!$B$9,\"mm/dd/yyy\")","v":"08/01/2024"},null,null,null,null,{"$f":"IF(Template!M416>0,Template!M416,-Template!N416)","v":0},null,null,null,{"$f":"VLOOKUP(G404,'Account mapping'!A:D,4,0)","v":{"$error":"#N/A"}}]
[{"$f":"LEFT(Template!A417,4)","v":""},{"$f":"VLOOKUP(A405,'Structure mapping'!K:V,7,0)","v":{"$error":"#N/A"}},{"$f":"LEFT(Template!B417,5)","v":""},{"$f":"VLOOKUP(C405,'Structure mapping'!F:J,5,0)","v":{"$error":"#N/A"}},{"$f":"LEFT(Template!C417,7)","v":""},{"$f":"VLOOKUP(E405,'Structure mapping'!A:E,5,0)","v":{"$error":"#N/A"}},{"$f":"LEFT(Template!D417,6)","v":""},{"$f":"VLOOKUP(G405,'Account mapping'!A:E,5,0)","v":{"$error":"#N/A"}},{"$f":"LEFT(Template!E417,2)","v":""},{"$f":"VLOOKUP(I405,'Structure mapping'!X:AB,5,0)","v":{"$error":"#N/A"}},{"$f":"LEFT(Template!F417,3)","v":""},{"$f":"VLOOKUP(K405,'Structure mapping'!AC:AG,5,0)","v":{"$error":"#N/A"}},{"$f":"LEFT(Template!G417,10)","v":""},{"$f":"VLOOKUP(M405,'Structure mapping'!AH:AL,5,0)","v":{"$error":"#N/A"}},{"$f":"LEFT(Template!H417,6)","v":""},{"$f":"VLOOKUP(O405,'Structure mapping'!AM:AQ,5,0)","v":{"$error":"#N/A"}},null,null,null,null,{"$f":"IF(Template!O417=\"\",\"\",Template!O417)","v":""},"Aug-24 pending entries",{"$f":"TEXT(Template!$B$9,\"mm/dd/yyy\")","v":"08/01/2024"},null,null,null,null,{"$f":"IF(Template!M417>0,Template!M417,-Template!N417)","v":0},null,null,null,{"$f":"VLOOKUP(G405,'Account mapping'!A:D,4,0)","v":{"$error":"#N/A"}}]
[{"$f":"LEFT(Template!A418,4)","v":""},{"$f":"VLOOKUP(A406,'Structure mapping'!K:V,7,0)","v":{"$error":"#N/A"}},{"$f":"LEFT(Template!B418,5)","v":""},{"$f":"VLOOKUP(C406,'Structure mapping'!F:J,5,0)","v":{"$error":"#N/A"}},{"$f":"LEFT(Template!C418,7)","v":""},{"$f":"VLOOKUP(E406,'Structure mapping'!A:E,5,0)","v":{"$error":"#N/A"}},{"$f":"LEFT(Template!D418,6)","v":""},{"$f":"VLOOKUP(G406,'Account mapping'!A:E,5,0)","v":{"$error":"#N/A"}},{"$f":"LEFT(Template!E418,2)","v":""},{"$f":"VLOOKUP(I406,'Structure mapping'!X:AB,5,0)","v":{"$error":"#N/A"}},{"$f":"LEFT(Template!F418,3)","v":""},{"$f":"VLOOKUP(K406,'Structure mapping'!AC:AG,5,0)","v":{"$error":"#N/A"}},{"$f":"LEFT(Template!G418,10)","v":""},{"$f":"VLOOKUP(M406,'Structure mapping'!AH:AL,5,0)","v":{"$error":"#N/A"}},{"$f":"LEFT(Template!H418,6)","v":""},{"$f":"VLOOKUP(O406,'Structure mapping'!AM:AQ,5,0)","v":{"$error":"#N/A"}},null,null,null,null,{"$f":"IF(Template!O418=\"\",\"\",Template!O418)","v":""},"Aug-24 pending entries",{"$f":"TEXT(Template!$B$9,\"mm/dd/yyy\")","v":"08/01/2024"},null,null,null,null,{"$f":"IF(Template!M418>0,Template!M418,-Template!N418)","v":0},null,null,null,{"$f":"VLOOKUP(G406,'Account mapping'!A:D,4,0)","v":{"$error":"#N/A"}}]
[{"$f":"LEFT(Template!A419,4)","v":""},{"$f":"VLOOKUP(A407,'Structure mapping'!K:V,7,0)","v":{"$error":"#N/A"}},{"$f":"LEFT(Template!B419,5)","v":""},{"$f":"VLOOKUP(C407,'Structure mapping'!F:J,5,0)","v":{"$error":"#N/A"}},{"$f":"LEFT(Template!C419,7)","v":""},{"$f":"VLOOKUP(E407,'Structure mapping'!A:E,5,0)","v":{"$error":"#N/A"}},{"$f":"LEFT(Template!D419,6)","v":""},{"$f":"VLOOKUP(G407,'Account mapping'!A:E,5,0)","v":{"$error":"#N/A"}},{"$f":"LEFT(Template!E419,2)","v":""},{"$f":"VLOOKUP(I407,'Structure mapping'!X:AB,5,0)","v":{"$error":"#N/A"}},{"$f":"LEFT(Template!F419,3)","v":""},{"$f":"VLOOKUP(K407,'Structure mapping'!AC:AG,5,0)","v":{"$error":"#N/A"}},{"$f":"LEFT(Template!G419,10)","v":""},{"$f":"VLOOKUP(M407,'Structure mapping'!AH:AL,5,0)","v":{"$error":"#N/A"}},{"$f":"LEFT(Template!H419,6)","v":""},{"$f":"VLOOKUP(O407,'Structure mapping'!AM:AQ,5,0)","v":{"$error":"#N/A"}},null,null,null,null,{"$f":"IF(Template!O419=\"\",\"\",Template!O419)","v":""},"Aug-24 pending entries",{"$f":"TEXT(Template!$B$9,\"mm/dd/yyy\")","v":"08/01/2024"},null,null,null,null,{"$f":"IF(Template!M419>0,Template!M419,-Template!N419)","v":0},null,null,null,{"$f":"VLOOKUP(G407,'Account mapping'!A:D,4,0)","v":{"$error":"#N/A"}}]
[{"$f":"LEFT(Template!A420,4)","v":""},{"$f":"VLOOKUP(A408,'Structure mapping'!K:V,7,0)","v":{"$error":"#N/A"}},{"$f":"LEFT(Template!B420,5)","v":""},{"$f":"VLOOKUP(C408,'Structure mapping'!F:J,5,0)","v":{"$error":"#N/A"}},{"$f":"LEFT(Template!C420,7)","v":""},{"$f":"VLOOKUP(E408,'Structure mapping'!A:E,5,0)","v":{"$error":"#N/A"}},{"$f":"LEFT(Template!D420,6)","v":""},{"$f":"VLOOKUP(G408,'Account mapping'!A:E,5,0)","v":{"$error":"#N/A"}},{"$f":"LEFT(Template!E420,2)","v":""},{"$f":"VLOOKUP(I408,'Structure mapping'!X:AB,5,0)","v":{"$error":"#N/A"}},{"$f":"LEFT(Template!F420,3)","v":""},{"$f":"VLOOKUP(K408,'Structure mapping'!AC:AG,5,0)","v":{"$error":"#N/A"}},{"$f":"LEFT(Template!G420,10)","v":""},{"$f":"VLOOKUP(M408,'Structure mapping'!AH:AL,5,0)","v":{"$error":"#N/A"}},{"$f":"LEFT(Template!H420,6)","v":""},{"$f":"VLOOKUP(O408,'Structure mapping'!AM:AQ,5,0)","v":{"$error":"#N/A"}},null,null,null,null,{"$f":"IF(Template!O420=\"\",\"\",Template!O420)","v":""},"Aug-24 pending entries",{"$f":"TEXT(Template!$B$9,\"mm/dd/yyy\")","v":"08/01/2024"},null,null,null,null,{"$f":"IF(Template!M420>0,Template!M420,-Template!N420)","v":0},null,null,null,{"$f":"VLOOKUP(G408,'Account mapping'!A:D,4,0)","v":{"$error":"#N/A"}}]
[{"$f":"LEFT(Template!A421,4)","v":""},{"$f":"VLOOKUP(A409,'Structure mapping'!K:V,7,0)","v":{"$error":"#N/A"}},{"$f":"LEFT(Template!B421,5)","v":""},{"$f":"VLOOKUP(C409,'Structure mapping'!F:J,5,0)","v":{"$error":"#N/A"}},{"$f":"LEFT(Template!C421,7)","v":""},{"$f":"VLOOKUP(E409,'Structure mapping'!A:E,5,0)","v":{"$error":"#N/A"}},{"$f":"LEFT(Template!D421,6)","v":""},{"$f":"VLOOKUP(G409,'Account mapping'!A:E,5,0)","v":{"$error":"#N/A"}},{"$f":"LEFT(Template!E421,2)","v":""},{"$f":"VLOOKUP(I409,'Structure mapping'!X:AB,5,0)","v":{"$error":"#N/A"}},{"$f":"LEFT(Template!F421,3)","v":""},{"$f":"VLOOKUP(K409,'Structure mapping'!AC:AG,5,0)","v":{"$error":"#N/A"}},{"$f":"LEFT(Template!G421,10)","v":""},{"$f":"VLOOKUP(M409,'Structure mapping'!AH:AL,5,0)","v":{"$error":"#N/A"}},{"$f":"LEFT(Template!H421,6)","v":""},{"$f":"VLOOKUP(O409,'Structure mapping'!AM:AQ,5,0)","v":{"$error":"#N/A"}},null,null,null,null,{"$f":"IF(Template!O421=\"\",\"\",Template!O421)","v":""},"Aug-24 pending entries",{"$f":"TEXT(Template!$B$9,\"mm/dd/yyy\")","v":"08/01/2024"},null,null,null,null,{"$f":"IF(Template!M421>0,Template!M421,-Template!N421)","v":0},null,null,null,{"$f":"VLOOKUP(G409,'Account mapping'!A:D,4,0)","v":{"$error":"#N/A"}}]
[{"$f":"LEFT(Template!A422,4)","v":""},{"$f":"VLOOKUP(A410,'Structure mapping'!K:V,7,0)","v":{"$error":"#N/A"}},{"$f":"LEFT(Template!B422,5)","v":""},{"$f":"VLOOKUP(C410,'Structure mapping'!F:J,5,0)","v":{"$error":"#N/A"}},{"$f":"LEFT(Template!C422,7)","v":""},{"$f":"VLOOKUP(E410,'Structure mapping'!A:E,5,0)","v":{"$error":"#N/A"}},{"$f":"LEFT(Template!D422,6)","v":""},{"$f":"VLOOKUP(G410,'Account mapping'!A:E,5,0)","v":{"$error":"#N/A"}},{"$f":"LEFT(Template!E422,2)","v":""},{"$f":"VLOOKUP(I410,'Structure mapping'!X:AB,5,0)","v":{"$error":"#N/A"}},{"$f":"LEFT(Template!F422,3)","v":""},{"$f":"VLOOKUP(K410,'Structure mapping'!AC:AG,5,0)","v":{"$error":"#N/A"}},{"$f":"LEFT(Template!G422,10)","v":""},{"$f":"VLOOKUP(M410,'Structure mapping'!AH:AL,5,0)","v":{"$error":"#N/A"}},{"$f":"LEFT(Template!H422,6)","v":""},{"$f":"VLOOKUP(O410,'Structure mapping'!AM:AQ,5,0)","v":{"$error":"#N/A"}},null,null,null,null,{"$f":"IF(Template!O422=\"\",\"\",Template!O422)","v":""},"Aug-24 pending entries",{"$f":"TEXT(Template!$B$9,\"mm/dd/yyy\")","v":"08/01/2024"},null,null,null,null,{"$f":"IF(Template!M422>0,Template!M422,-Template!N422)","v":0},null,null,null,{"$f":"VLOOKUP(G410,'Account mapping'!A:D,4,0)","v":{"$error":"#N/A"}}]
[{"$f":"LEFT(Template!A423,4)","v":""},{"$f":"VLOOKUP(A411,'Structure mapping'!K:V,7,0)","v":{"$error":"#N/A"}},{"$f":"LEFT(Template!B423,5)","v":""},{"$f":"VLOOKUP(C411,'Structure mapping'!F:J,5,0)","v":{"$error":"#N/A"}},{"$f":"LEFT(Template!C423,7)","v":""},{"$f":"VLOOKUP(E411,'Structure mapping'!A:E,5,0)","v":{"$error":"#N/A"}},{"$f":"LEFT(Template!D423,6)","v":""},{"$f":"VLOOKUP(G411,'Account mapping'!A:E,5,0)","v":{"$error":"#N/A"}},{"$f":"LEFT(Template!E423,2)","v":""},{"$f":"VLOOKUP(I411,'Structure mapping'!X:AB,5,0)","v":{"$error":"#N/A"}},{"$f":"LEFT(Template!F423,3)","v":""},{"$f":"VLOOKUP(K411,'Structure mapping'!AC:AG,5,0)","v":{"$error":"#N/A"}},{"$f":"LEFT(Template!G423,10)","v":""},{"$f":"VLOOKUP(M411,'Structure mapping'!AH:AL,5,0)","v":{"$error":"#N/A"}},{"$f":"LEFT(Template!H423,6)","v":""},{"$f":"VLOOKUP(O411,'Structure mapping'!AM:AQ,5,0)","v":{"$error":"#N/A"}},null,null,null,null,{"$f":"IF(Template!O423=\"\",\"\",Template!O423)","v":""},"Aug-24 pending entries",{"$f":"TEXT(Template!$B$9,\"mm/dd/yyy\")","v":"08/01/2024"},null,null,null,null,{"$f":"IF(Template!M423>0,Template!M423,-Template!N423)","v":0},null,null,null,{"$f":"VLOOKUP(G411,'Account mapping'!A:D,4,0)","v":{"$error":"#N/A"}}]
[{"$f":"LEFT(Template!A424,4)","v":""},{"$f":"VLOOKUP(A412,'Structure mapping'!K:V,7,0)","v":{"$error":"#N/A"}},{"$f":"LEFT(Template!B424,5)","v":""},{"$f":"VLOOKUP(C412,'Structure mapping'!F:J,5,0)","v":{"$error":"#N/A"}},{"$f":"LEFT(Template!C424,7)","v":""},{"$f":"VLOOKUP(E412,'Structure mapping'!A:E,5,0)","v":{"$error":"#N/A"}},{"$f":"LEFT(Template!D424,6)","v":""},{"$f":"VLOOKUP(G412,'Account mapping'!A:E,5,0)","v":{"$error":"#N/A"}},{"$f":"LEFT(Template!E424,2)","v":""},{"$f":"VLOOKUP(I412,'Structure mapping'!X:AB,5,0)","v":{"$error":"#N/A"}},{"$f":"LEFT(Template!F424,3)","v":""},{"$f":"VLOOKUP(K412,'Structure mapping'!AC:AG,5,0)","v":{"$error":"#N/A"}},{"$f":"LEFT(Template!G424,10)","v":""},{"$f":"VLOOKUP(M412,'Structure mapping'!AH:AL,5,0)","v":{"$error":"#N/A"}},{"$f":"LEFT(Template!H424,6)","v":""},{"$f":"VLOOKUP(O412,'Structure mapping'!AM:AQ,5,0)","v":{"$error":"#N/A"}},null,null,null,null,{"$f":"IF(Template!O424=\"\",\"\",Template!O424)","v":""},"Aug-24 pending entries",{"$f":"TEXT(Template!$B$9,\"mm/dd/yyy\")","v":"08/01/2024"},null,null,null,null,{"$f":"IF(Template!M424>0,Template!M424,-Template!N424)","v":0},null,null,null,{"$f":"VLOOKUP(G412,'Account mapping'!A:D,4,0)","v":{"$error":"#N/A"}}]
[{"$f":"LEFT(Template!A425,4)","v":""},{"$f":"VLOOKUP(A413,'Structure mapping'!K:V,7,0)","v":{"$error":"#N/A"}},{"$f":"LEFT(Template!B425,5)","v":""},{"$f":"VLOOKUP(C413,'Structure mapping'!F:J,5,0)","v":{"$error":"#N/A"}},{"$f":"LEFT(Template!C425,7)","v":""},{"$f":"VLOOKUP(E413,'Structure mapping'!A:E,5,0)","v":{"$error":"#N/A"}},{"$f":"LEFT(Template!D425,6)","v":""},{"$f":"VLOOKUP(G413,'Account mapping'!A:E,5,0)","v":{"$error":"#N/A"}},{"$f":"LEFT(Template!E425,2)","v":""},{"$f":"VLOOKUP(I413,'Structure mapping'!X:AB,5,0)","v":{"$error":"#N/A"}},{"$f":"LEFT(Template!F425,3)","v":""},{"$f":"VLOOKUP(K413,'Structure mapping'!AC:AG,5,0)","v":{"$error":"#N/A"}},{"$f":"LEFT(Template!G425,10)","v":""},{"$f":"VLOOKUP(M413,'Structure mapping'!AH:AL,5,0)","v":{"$error":"#N/A"}},{"$f":"LEFT(Template!H425,6)","v":""},{"$f":"VLOOKUP(O413,'Structure mapping'!AM:AQ,5,0)","v":{"$error":"#N/A"}},null,null,null,null,{"$f":"IF(Template!O425=\"\",\"\",Template!O425)","v":""},"Aug-24 pending entries",{"$f":"TEXT(Template!$B$9,\"mm/dd/yyy\")","v":"08/01/2024"},null,null,null,null,{"$f":"IF(Template!M425>0,Template!M425,-Template!N425)","v":0},null,null,null,{"$f":"VLOOKUP(G413,'Account mapping'!A:D,4,0)","v":{"$error":"#N/A"}}]
[{"$f":"LEFT(Template!A426,4)","v":""},{"$f":"VLOOKUP(A414,'Structure mapping'!K:V,7,0)","v":{"$error":"#N/A"}},{"$f":"LEFT(Template!B426,5)","v":""},{"$f":"VLOOKUP(C414,'Structure mapping'!F:J,5,0)","v":{"$error":"#N/A"}},{"$f":"LEFT(Template!C426,7)","v":""},{"$f":"VLOOKUP(E414,'Structure mapping'!A:E,5,0)","v":{"$error":"#N/A"}},{"$f":"LEFT(Template!D426,6)","v":""},{"$f":"VLOOKUP(G414,'Account mapping'!A:E,5,0)","v":{"$error":"#N/A"}},{"$f":"LEFT(Template!E426,2)","v":""},{"$f":"VLOOKUP(I414,'Structure mapping'!X:AB,5,0)","v":{"$error":"#N/A"}},{"$f":"LEFT(Template!F426,3)","v":""},{"$f":"VLOOKUP(K414,'Structure mapping'!AC:AG,5,0)","v":{"$error":"#N/A"}},{"$f":"LEFT(Template!G426,10)","v":""},{"$f":"VLOOKUP(M414,'Structure mapping'!AH:AL,5,0)","v":{"$error":"#N/A"}},{"$f":"LEFT(Template!H426,6)","v":""},{"$f":"VLOOKUP(O414,'Structure mapping'!AM:AQ,5,0)","v":{"$error":"#N/A"}},null,null,null,null,{"$f":"IF(Template!O426=\"\",\"\",Template!O426)","v":""},"Aug-24 pending entries",{"$f":"TEXT(Template!$B$9,\"mm/dd/yyy\")","v":"08/01/2024"},null,null,null,null,{"$f":"IF(Template!M426>0,Template!M426,-Template!N426)","v":0},null,null,null,{"$f":"VLOOKUP(G414,'Account mapping'!A:D,4,0)","v":{"$error":"#N/A"}}]
[{"$f":"LEFT(Template!A427,4)","v":""},{"$f":"VLOOKUP(A415,'Structure mapping'!K:V,7,0)","v":{"$error":"#N/A"}},{"$f":"LEFT(Template!B427,5)","v":""},{"$f":"VLOOKUP(C415,'Structure mapping'!F:J,5,0)","v":{"$error":"#N/A"}},{"$f":"LEFT(Template!C427,7)","v":""},{"$f":"VLOOKUP(E415,'Structure mapping'!A:E,5,0)","v":{"$error":"#N/A"}},{"$f":"LEFT(Template!D427,6)","v":""},{"$f":"VLOOKUP(G415,'Account mapping'!A:E,5,0)","v":{"$error":"#N/A"}},{"$f":"LEFT(Template!E427,2)","v":""},{"$f":"VLOOKUP(I415,'Structure mapping'!X:AB,5,0)","v":{"$error":"#N/A"}},{"$f":"LEFT(Template!F427,3)","v":""},{"$f":"VLOOKUP(K415,'Structure mapping'!AC:AG,5,0)","v":{"$error":"#N/A"}},{"$f":"LEFT(Template!G427,10)","v":""},{"$f":"VLOOKUP(M415,'Structure mapping'!AH:AL,5,0)","v":{"$error":"#N/A"}},{"$f":"LEFT(Template!H427,6)","v":""},{"$f":"VLOOKUP(O415,'Structure mapping'!AM:AQ,5,0)","v":{"$error":"#N/A"}},null,null,null,null,{"$f":"IF(Template!O427=\"\",\"\",Template!O427)","v":""},"Aug-24 pending entries",{"$f":"TEXT(Template!$B$9,\"mm/dd/yyy\")","v":"08/01/2024"},null,null,null,null,{"$f":"IF(Template!M427>0,Template!M427,-Template!N427)","v":0},null,null,null,{"$f":"VLOOKUP(G415,'Account mapping'!A:D,4,0)","v":{"$error":"#N/A"}}]
[{"$f":"LEFT(Template!A428,4)","v":""},{"$f":"VLOOKUP(A416,'Structure mapping'!K:V,7,0)","v":{"$error":"#N/A"}},{"$f":"LEFT(Template!B428,5)","v":""},{"$f":"VLOOKUP(C416,'Structure mapping'!F:J,5,0)","v":{"$error":"#N/A"}},{"$f":"LEFT(Template!C428,7)","v":""},{"$f":"VLOOKUP(E416,'Structure mapping'!A:E,5,0)","v":{"$error":"#N/A"}},{"$f":"LEFT(Template!D428,6)","v":""},{"$f":"VLOOKUP(G416,'Account mapping'!A:E,5,0)","v":{"$error":"#N/A"}},{"$f":"LEFT(Template!E428,2)","v":""},{"$f":"VLOOKUP(I416,'Structure mapping'!X:AB,5,0)","v":{"$error":"#N/A"}},{"$f":"LEFT(Template!F428,3)","v":""},{"$f":"VLOOKUP(K416,'Structure mapping'!AC:AG,5,0)","v":{"$error":"#N/A"}},{"$f":"LEFT(Template!G428,10)","v":""},{"$f":"VLOOKUP(M416,'Structure mapping'!AH:AL,5,0)","v":{"$error":"#N/A"}},{"$f":"LEFT(Template!H428,6)","v":""},{"$f":"VLOOKUP(O416,'Structure mapping'!AM:AQ,5,0)","v":{"$error":"#N/A"}},null,null,null,null,{"$f":"IF(Template!O428=\"\",\"\",Template!O428)","v":""},"Aug-24 pending entries",{"$f":"TEXT(Template!$B$9,\"mm/dd/yyy\")","v":"08/01/2024"},null,null,null,null,{"$f":"IF(Template!M428>0,Template!M428,-Template!N428)","v":0},null,null,null,{"$f":"VLOOKUP(G416,'Account mapping'!A:D,4,0)","v":{"$error":"#N/A"}}]
[{"$f":"LEFT(Template!A429,4)","v":""},{"$f":"VLOOKUP(A417,'Structure mapping'!K:V,7,0)","v":{"$error":"#N/A"}},{"$f":"LEFT(Template!B429,5)","v":""},{"$f":"VLOOKUP(C417,'Structure mapping'!F:J,5,0)","v":{"$error":"#N/A"}},{"$f":"LEFT(Template!C429,7)","v":""},{"$f":"VLOOKUP(E417,'Structure mapping'!A:E,5,0)","v":{"$error":"#N/A"}},{"$f":"LEFT(Template!D429,6)","v":""},{"$f":"VLOOKUP(G417,'Account mapping'!A:E,5,0)","v":{"$error":"#N/A"}},{"$f":"LEFT(Template!E429,2)","v":""},{"$f":"VLOOKUP(I417,'Structure mapping'!X:AB,5,0)","v":{"$error":"#N/A"}},{"$f":"LEFT(Template!F429,3)","v":""},{"$f":"VLOOKUP(K417,'Structure mapping'!AC:AG,5,0)","v":{"$error":"#N/A"}},{"$f":"LEFT(Template!G429,10)","v":""},{"$f":"VLOOKUP(M417,'Structure mapping'!AH:AL,5,0)","v":{"$error":"#N/A"}},{"$f":"LEFT(Template!H429,6)","v":""},{"$f":"VLOOKUP(O417,'Structure mapping'!AM:AQ,5,0)","v":{"$error":"#N/A"}},null,null,null,null,{"$f":"IF(Template!O429=\"\",\"\",Template!O429)","v":""},"Aug-24 pending entries",{"$f":"TEXT(Template!$B$9,\"mm/dd/yyy\")","v":"08/01/2024"},null,null,null,null,{"$f":"IF(Template!M429>0,Template!M429,-Template!N429)","v":0},null,null,null,{"$f":"VLOOKUP(G417,'Account mapping'!A:D,4,0)","v":{"$error":"#N/A"}}]
[{"$f":"LEFT(Template!A430,4)","v":""},{"$f":"VLOOKUP(A418,'Structure mapping'!K:V,7,0)","v":{"$error":"#N/A"}},{"$f":"LEFT(Template!B430,5)","v":""},{"$f":"VLOOKUP(C418,'Structure mapping'!F:J,5,0)","v":{"$error":"#N/A"}},{"$f":"LEFT(Template!C430,7)","v":""},{"$f":"VLOOKUP(E418,'Structure mapping'!A:E,5,0)","v":{"$error":"#N/A"}},{"$f":"LEFT(Template!D430,6)","v":""},{"$f":"VLOOKUP(G418,'Account mapping'!A:E,5,0)","v":{"$error":"#N/A"}},{"$f":"LEFT(Template!E430,2)","v":""},{"$f":"VLOOKUP(I418,'Structure mapping'!X:AB,5,0)","v":{"$error":"#N/A"}},{"$f":"LEFT(Template!F430,3)","v":""},{"$f":"VLOOKUP(K418,'Structure mapping'!AC:AG,5,0)","v":{"$error":"#N/A"}},{"$f":"LEFT(Template!G430,10)","v":""},{"$f":"VLOOKUP(M418,'Structure mapping'!AH:AL,5,0)","v":{"$error":"#N/A"}},{"$f":"LEFT(Template!H430,6)","v":""},{"$f":"VLOOKUP(O418,'Structure mapping'!AM:AQ,5,0)","v":{"$error":"#N/A"}},null,null,null,null,{"$f":"IF(Template!O430=\"\",\"\",Template!O430)","v":""},"Aug-24 pending entries",{"$f":"TEXT(Template!$B$9,\"mm/dd/yyy\")","v":"08/01/2024"},null,null,null,null,{"$f":"IF(Template!M430>0,Template!M430,-Template!N430)","v":0},null,null,null,{"$f":"VLOOKUP(G418,'Account mapping'!A:D,4,0)","v":{"$error":"#N/A"}}]
[{"$f":"LEFT(Template!A431,4)","v":""},{"$f":"VLOOKUP(A419,'Structure mapping'!K:V,7,0)","v":{"$error":"#N/A"}},{"$f":"LEFT(Template!B431,5)","v":""},{"$f":"VLOOKUP(C419,'Structure mapping'!F:J,5,0)","v":{"$error":"#N/A"}},{"$f":"LEFT(Template!C431,7)","v":""},{"$f":"VLOOKUP(E419,'Structure mapping'!A:E,5,0)","v":{"$error":"#N/A"}},{"$f":"LEFT(Template!D431,6)","v":""},{"$f":"VLOOKUP(G419,'Account mapping'!A:E,5,0)","v":{"$error":"#N/A"}},{"$f":"LEFT(Template!E431,2)","v":""},{"$f":"VLOOKUP(I419,'Structure mapping'!X:AB,5,0)","v":{"$error":"#N/A"}},{"$f":"LEFT(Template!F431,3)","v":""},{"$f":"VLOOKUP(K419,'Structure mapping'!AC:AG,5,0)","v":{"$error":"#N/A"}},{"$f":"LEFT(Template!G431,10)","v":""},{"$f":"VLOOKUP(M419,'Structure mapping'!AH:AL,5,0)","v":{"$error":"#N/A"}},{"$f":"LEFT(Template!H431,6)","v":""},{"$f":"VLOOKUP(O419,'Structure mapping'!AM:AQ,5,0)","v":{"$error":"#N/A"}},null,null,null,null,{"$f":"IF(Template!O431=\"\",\"\",Template!O431)","v":""},"Aug-24 pending entries",{"$f":"TEXT(Template!$B$9,\"mm/dd/yyy\")","v":"08/01/2024"},null,null,null,null,{"$f":"IF(Template!M431>0,Template!M431,-Template!N431)","v":0},null,null,null,{"$f":"VLOOKUP(G419,'Account mapping'!A:D,4,0)","v":{"$error":"#N/A"}}]
[{"$f":"LEFT(Template!A432,4)","v":""},{"$f":"VLOOKUP(A420,'Structure mapping'!K:V,7,0)","v":{"$error":"#N/A"}},{"$f":"LEFT(Template!B432,5)","v":""},{"$f":"VLOOKUP(C420,'Structure mapping'!F:J,5,0)","v":{"$error":"#N/A"}},{"$f":"LEFT(Template!C432,7)","v":""},{"$f":"VLOOKUP(E420,'Structure mapping'!A:E,5,0)","v":{"$error":"#N/A"}},{"$f":"LEFT(Template!D432,6)","v":""},{"$f":"VLOOKUP(G420,'Account mapping'!A:E,5,0)","v":{"$error":"#N/A"}},{"$f":"LEFT(Template!E432,2)","v":""},{"$f":"VLOOKUP(I420,'Structure mapping'!X:AB,5,0)","v":{"$error":"#N/A"}},{"$f":"LEFT(Template!F432,3)","v":""},{"$f":"VLOOKUP(K420,'Structure mapping'!AC:AG,5,0)","v":{"$error":"#N/A"}},{"$f":"LEFT(Template!G432,10)","v":""},{"$f":"VLOOKUP(M420,'Structure mapping'!AH:AL,5,0)","v":{"$error":"#N/A"}},{"$f":"LEFT(Template!H432,6)","v":""},{"$f":"VLOOKUP(O420,'Structure mapping'!AM:AQ,5,0)","v":{"$error":"#N/A"}},null,null,null,null,{"$f":"IF(Template!O432=\"\",\"\",Template!O432)","v":""},"Aug-24 pending entries",{"$f":"TEXT(Template!$B$9,\"mm/dd/yyy\")","v":"08/01/2024"},null,null,null,null,{"$f":"IF(Template!M432>0,Template!M432,-Template!N432)","v":0},null,null,null,{"$f":"VLOOKUP(G420,'Account mapping'!A:D,4,0)","v":{"$error":"#N/A"}}]
[{"$f":"LEFT(Template!A433,4)","v":""},{"$f":"VLOOKUP(A421,'Structure mapping'!K:V,7,0)","v":{"$error":"#N/A"}},{"$f":"LEFT(Template!B433,5)","v":""},{"$f":"VLOOKUP(C421,'Structure mapping'!F:J,5,0)","v":{"$error":"#N/A"}},{"$f":"LEFT(Template!C433,7)","v":""},{"$f":"VLOOKUP(E421,'Structure mapping'!A:E,5,0)","v":{"$error":"#N/A"}},{"$f":"LEFT(Template!D433,6)","v":""},{"$f":"VLOOKUP(G421,'Account mapping'!A:E,5,0)","v":{"$error":"#N/A"}},{"$f":"LEFT(Template!E433,2)","v":""},{"$f":"VLOOKUP(I421,'Structure mapping'!X:AB,5,0)","v":{"$error":"#N/A"}},{"$f":"LEFT(Template!F433,3)","v":""},{"$f":"VLOOKUP(K421,'Structure mapping'!AC:AG,5,0)","v":{"$error":"#N/A"}},{"$f":"LEFT(Template!G433,10)","v":""},{"$f":"VLOOKUP(M421,'Structure mapping'!AH:AL,5,0)","v":{"$error":"#N/A"}},{"$f":"LEFT(Template!H433,6)","v":""},{"$f":"VLOOKUP(O421,'Structure mapping'!AM:AQ,5,0)","v":{"$error":"#N/A"}},null,null,null,null,{"$f":"IF(Template!O433=\"\",\"\",Template!O433)","v":""},"Aug-24 pending entries",{"$f":"TEXT(Template!$B$9,\"mm/dd/yyy\")","v":"08/01/2024"},null,null,null,null,{"$f":"IF(Template!M433>0,Template!M433,-Template!N433)","v":0},null,null,null,{"$f":"VLOOKUP(G421,'Account mapping'!A:D,4,0)","v":{"$error":"#N/A"}}]
[{"$f":"LEFT(Template!A434,4)","v":""},{"$f":"VLOOKUP(A422,'Structure mapping'!K:V,7,0)","v":{"$error":"#N/A"}},{"$f":"LEFT(Template!B434,5)","v":""},{"$f":"VLOOKUP(C422,'Structure mapping'!F:J,5,0)","v":{"$error":"#N/A"}},{"$f":"LEFT(Template!C434,7)","v":""},{"$f":"VLOOKUP(E422,'Structure mapping'!A:E,5,0)","v":{"$error":"#N/A"}},{"$f":"LEFT(Template!D434,6)","v":""},{"$f":"VLOOKUP(G422,'Account mapping'!A:E,5,0)","v":{"$error":"#N/A"}},{"$f":"LEFT(Template!E434,2)","v":""},{"$f":"VLOOKUP(I422,'Structure mapping'!X:AB,5,0)","v":{"$error":"#N/A"}},{"$f":"LEFT(Template!F434,3)","v":""},{"$f":"VLOOKUP(K422,'Structure mapping'!AC:AG,5,0)","v":{"$error":"#N/A"}},{"$f":"LEFT(Template!G434,10)","v":""},{"$f":"VLOOKUP(M422,'Structure mapping'!AH:AL,5,0)","v":{"$error":"#N/A"}},{"$f":"LEFT(Template!H434,6)","v":""},{"$f":"VLOOKUP(O422,'Structure mapping'!AM:AQ,5,0)","v":{"$error":"#N/A"}},null,null,null,null,{"$f":"IF(Template!O434=\"\",\"\",Template!O434)","v":""},"Aug-24 pending entries",{"$f":"TEXT(Template!$B$9,\"mm/dd/yyy\")","v":"08/01/2024"},null,null,null,null,{"$f":"IF(Template!M434>0,Template!M434,-Template!N434)","v":0},null,null,null,{"$f":"VLOOKUP(G422,'Account mapping'!A:D,4,0)","v":{"$error":"#N/A"}}]
[{"$f":"LEFT(Template!A435,4)","v":""},{"$f":"VLOOKUP(A423,'Structure mapping'!K:V,7,0)","v":{"$error":"#N/A"}},{"$f":"LEFT(Template!B435,5)","v":""},{"$f":"VLOOKUP(C423,'Structure mapping'!F:J,5,0)","v":{"$error":"#N/A"}},{"$f":"LEFT(Template!C435,7)","v":""},{"$f":"VLOOKUP(E423,'Structure mapping'!A:E,5,0)","v":{"$error":"#N/A"}},{"$f":"LEFT(Template!D435,6)","v":""},{"$f":"VLOOKUP(G423,'Account mapping'!A:E,5,0)","v":{"$error":"#N/A"}},{"$f":"LEFT(Template!E435,2)","v":""},{"$f":"VLOOKUP(I423,'Structure mapping'!X:AB,5,0)","v":{"$error":"#N/A"}},{"$f":"LEFT(Template!F435,3)","v":""},{"$f":"VLOOKUP(K423,'Structure mapping'!AC:AG,5,0)","v":{"$error":"#N/A"}},{"$f":"LEFT(Template!G435,10)","v":""},{"$f":"VLOOKUP(M423,'Structure mapping'!AH:AL,5,0)","v":{"$error":"#N/A"}},{"$f":"LEFT(Template!H435,6)","v":""},{"$f":"VLOOKUP(O423,'Structure mapping'!AM:AQ,5,0)","v":{"$error":"#N/A"}},null,null,null,null,{"$f":"IF(Template!O435=\"\",\"\",Template!O435)","v":""},"Aug-24 pending entries",{"$f":"TEXT(Template!$B$9,\"mm/dd/yyy\")","v":"08/01/2024"},null,null,null,null,{"$f":"IF(Template!M435>0,Template!M435,-Template!N435)","v":0},null,null,null,{"$f":"VLOOKUP(G423,'Account mapping'!A:D,4,0)","v":{"$error":"#N/A"}}]
[{"$f":"LEFT(Template!A436,4)","v":""},{"$f":"VLOOKUP(A424,'Structure mapping'!K:V,7,0)","v":{"$error":"#N/A"}},{"$f":"LEFT(Template!B436,5)","v":""},{"$f":"VLOOKUP(C424,'Structure mapping'!F:J,5,0)","v":{"$error":"#N/A"}},{"$f":"LEFT(Template!C436,7)","v":""},{"$f":"VLOOKUP(E424,'Structure mapping'!A:E,5,0)","v":{"$error":"#N/A"}},{"$f":"LEFT(Template!D436,6)","v":""},{"$f":"VLOOKUP(G424,'Account mapping'!A:E,5,0)","v":{"$error":"#N/A"}},{"$f":"LEFT(Template!E436,2)","v":""},{"$f":"VLOOKUP(I424,'Structure mapping'!X:AB,5,0)","v":{"$error":"#N/A"}},{"$f":"LEFT(Template!F436,3)","v":""},{"$f":"VLOOKUP(K424,'Structure mapping'!AC:AG,5,0)","v":{"$error":"#N/A"}},{"$f":"LEFT(Template!G436,10)","v":""},{"$f":"VLOOKUP(M424,'Structure mapping'!AH:AL,5,0)","v":{"$error":"#N/A"}},{"$f":"LEFT(Template!H436,6)","v":""},{"$f":"VLOOKUP(O424,'Structure mapping'!AM:AQ,5,0)","v":{"$error":"#N/A"}},null,null,null,null,{"$f":"IF(Template!O436=\"\",\"\",Template!O436)","v":""},"Aug-24 pending entries",{"$f":"TEXT(Template!$B$9,\"mm/dd/yyy\")","v":"08/01/2024"},null,null,null,null,{"$f":"IF(Template!M436>0,Template!M436,-Template!N436)","v":0},null,null,null,{"$f":"VLOOKUP(G424,'Account mapping'!A:D,4,0)","v":{"$error":"#N/A"}}]
[{"$f":"LEFT(Template!A437,4)","v":""},{"$f":"VLOOKUP(A425,'Structure mapping'!K:V,7,0)","v":{"$error":"#N/A"}},{"$f":"LEFT(Template!B437,5)","v":""},{"$f":"VLOOKUP(C425,'Structure mapping'!F:J,5,0)","v":{"$error":"#N/A"}},{"$f":"LEFT(Template!C437,7)","v":""},{"$f":"VLOOKUP(E425,'Structure mapping'!A:E,5,0)","v":{"$error":"#N/A"}},{"$f":"LEFT(Template!D437,6)","v":""},{"$f":"VLOOKUP(G425,'Account mapping'!A:E,5,0)","v":{"$error":"#N/A"}},{"$f":"LEFT(Template!E437,2)","v":""},{"$f":"VLOOKUP(I425,'Structure mapping'!X:AB,5,0)","v":{"$error":"#N/A"}},{"$f":"LEFT(Template!F437,3)","v":""},{"$f":"VLOOKUP(K425,'Structure mapping'!AC:AG,5,0)","v":{"$error":"#N/A"}},{"$f":"LEFT(Template!G437,10)","v":""},{"$f":"VLOOKUP(M425,'Structure mapping'!AH:AL,5,0)","v":{"$error":"#N/A"}},{"$f":"LEFT(Template!H437,6)","v":""},{"$f":"VLOOKUP(O425,'Structure mapping'!AM:AQ,5,0)","v":{"$error":"#N/A"}},null,null,null,null,{"$f":"IF(Template!O437=\"\",\"\",Template!O437)","v":""},"Aug-24 pending entries",{"$f":"TEXT(Template!$B$9,\"mm/dd/yyy\")","v":"08/01/2024"},null,null,null,null,{"$f":"IF(Template!M437>0,Template!M437,-Template!N437)","v":0},null,null,null,{"$f":"VLOOKUP(G425,'Account mapping'!A:D,4,0)","v":{"$error":"#N/A"}}]
[{"$f":"LEFT(Template!A438,4)","v":""},{"$f":"VLOOKUP(A426,'Structure mapping'!K:V,7,0)","v":{"$error":"#N/A"}},{"$f":"LEFT(Template!B438,5)","v":""},{"$f":"VLOOKUP(C426,'Structure mapping'!F:J,5,0)","v":{"$error":"#N/A"}},{"$f":"LEFT(Template!C438,7)","v":""},{"$f":"VLOOKUP(E426,'Structure mapping'!A:E,5,0)","v":{"$error":"#N/A"}},{"$f":"LEFT(Template!D438,6)","v":""},{"$f":"VLOOKUP(G426,'Account mapping'!A:E,5,0)","v":{"$error":"#N/A"}},{"$f":"LEFT(Template!E438,2)","v":""},{"$f":"VLOOKUP(I426,'Structure mapping'!X:AB,5,0)","v":{"$error":"#N/A"}},{"$f":"LEFT(Template!F438,3)","v":""},{"$f":"VLOOKUP(K426,'Structure mapping'!AC:AG,5,0)","v":{"$error":"#N/A"}},{"$f":"LEFT(Template!G438,10)","v":""},{"$f":"VLOOKUP(M426,'Structure mapping'!AH:AL,5,0)","v":{"$error":"#N/A"}},{"$f":"LEFT(Template!H438,6)","v":""},{"$f":"VLOOKUP(O426,'Structure mapping'!AM:AQ,5,0)","v":{"$error":"#N/A"}},null,null,null,null,{"$f":"IF(Template!O438=\"\",\"\",Template!O438)","v":""},"Aug-24 pending entries",{"$f":"TEXT(Template!$B$9,\"mm/dd/yyy\")","v":"08/01/2024"},null,null,null,null,{"$f":"IF(Template!M438>0,Template!M438,-Template!N438)","v":0},null,null,null,{"$f":"VLOOKUP(G426,'Account mapping'!A:D,4,0)","v":{"$error":"#N/A"}}]
[{"$f":"LEFT(Template!A439,4)","v":""},{"$f":"VLOOKUP(A427,'Structure mapping'!K:V,7,0)","v":{"$error":"#N/A"}},{"$f":"LEFT(Template!B439,5)","v":""},{"$f":"VLOOKUP(C427,'Structure mapping'!F:J,5,0)","v":{"$error":"#N/A"}},{"$f":"LEFT(Template!C439,7)","v":""},{"$f":"VLOOKUP(E427,'Structure mapping'!A:E,5,0)","v":{"$error":"#N/A"}},{"$f":"LEFT(Template!D439,6)","v":""},{"$f":"VLOOKUP(G427,'Account mapping'!A:E,5,0)","v":{"$error":"#N/A"}},{"$f":"LEFT(Template!E439,2)","v":""},{"$f":"VLOOKUP(I427,'Structure mapping'!X:AB,5,0)","v":{"$error":"#N/A"}},{"$f":"LEFT(Template!F439,3)","v":""},{"$f":"VLOOKUP(K427,'Structure mapping'!AC:AG,5,0)","v":{"$error":"#N/A"}},{"$f":"LEFT(Template!G439,10)","v":""},{"$f":"VLOOKUP(M427,'Structure mapping'!AH:AL,5,0)","v":{"$error":"#N/A"}},{"$f":"LEFT(Template!H439,6)","v":""},{"$f":"VLOOKUP(O427,'Structure mapping'!AM:AQ,5,0)","v":{"$error":"#N/A"}},null,null,null,null,{"$f":"IF(Template!O439=\"\",\"\",Template!O439)","v":""},"Aug-24 pending entries",{"$f":"TEXT(Template!$B$9,\"mm/dd/yyy\")","v":"08/01/2024"},null,null,null,null,{"$f":"IF(Template!M439>0,Template!M439,-Template!N439)","v":0},null,null,null,{"$f":"VLOOKUP(G427,'Account mapping'!A:D,4,0)","v":{"$error":"#N/A"}}]
[{"$f":"LEFT(Template!A440,4)","v":""},{"$f":"VLOOKUP(A428,'Structure mapping'!K:V,7,0)","v":{"$error":"#N/A"}},{"$f":"LEFT(Template!B440,5)","v":""},{"$f":"VLOOKUP(C428,'Structure mapping'!F:J,5,0)","v":{"$error":"#N/A"}},{"$f":"LEFT(Template!C440,7)","v":""},{"$f":"VLOOKUP(E428,'Structure mapping'!A:E,5,0)","v":{"$error":"#N/A"}},{"$f":"LEFT(Template!D440,6)","v":""},{"$f":"VLOOKUP(G428,'Account mapping'!A:E,5,0)","v":{"$error":"#N/A"}},{"$f":"LEFT(Template!E440,2)","v":""},{"$f":"VLOOKUP(I428,'Structure mapping'!X:AB,5,0)","v":{"$error":"#N/A"}},{"$f":"LEFT(Template!F440,3)","v":""},{"$f":"VLOOKUP(K428,'Structure mapping'!AC:AG,5,0)","v":{"$error":"#N/A"}},{"$f":"LEFT(Template!G440,10)","v":""},{"$f":"VLOOKUP(M428,'Structure mapping'!AH:AL,5,0)","v":{"$error":"#N/A"}},{"$f":"LEFT(Template!H440,6)","v":""},{"$f":"VLOOKUP(O428,'Structure mapping'!AM:AQ,5,0)","v":{"$error":"#N/A"}},null,null,null,null,{"$f":"IF(Template!O440=\"\",\"\",Template!O440)","v":""},"Aug-24 pending entries",{"$f":"TEXT(Template!$B$9,\"mm/dd/yyy\")","v":"08/01/2024"},null,null,null,null,{"$f":"IF(Template!M440>0,Template!M440,-Template!N440)","v":0},null,null,null,{"$f":"VLOOKUP(G428,'Account mapping'!A:D,4,0)","v":{"$error":"#N/A"}}]
[{"$f":"LEFT(Template!A441,4)","v":""},{"$f":"VLOOKUP(A429,'Structure mapping'!K:V,7,0)","v":{"$error":"#N/A"}},{"$f":"LEFT(Template!B441,5)","v":""},{"$f":"VLOOKUP(C429,'Structure mapping'!F:J,5,0)","v":{"$error":"#N/A"}},{"$f":"LEFT(Template!C441,7)","v":""},{"$f":"VLOOKUP(E429,'Structure mapping'!A:E,5,0)","v":{"$error":"#N/A"}},{"$f":"LEFT(Template!D441,6)","v":""},{"$f":"VLOOKUP(G429,'Account mapping'!A:E,5,0)","v":{"$error":"#N/A"}},{"$f":"LEFT(Template!E441,2)","v":""},{"$f":"VLOOKUP(I429,'Structure mapping'!X:AB,5,0)","v":{"$error":"#N/A"}},{"$f":"LEFT(Template!F441,3)","v":""},{"$f":"VLOOKUP(K429,'Structure mapping'!AC:AG,5,0)","v":{"$error":"#N/A"}},{"$f":"LEFT(Template!G441,10)","v":""},{"$f":"VLOOKUP(M429,'Structure mapping'!AH:AL,5,0)","v":{"$error":"#N/A"}},{"$f":"LEFT(Template!H441,6)","v":""},{"$f":"VLOOKUP(O429,'Structure mapping'!AM:AQ,5,0)","v":{"$error":"#N/A"}},null,null,null,null,{"$f":"IF(Template!O441=\"\",\"\",Template!O441)","v":""},"Aug-24 pending entries",{"$f":"TEXT(Template!$B$9,\"mm/dd/yyy\")","v":"08/01/2024"},null,null,null,null,{"$f":"IF(Template!M441>0,Template!M441,-Template!N441)","v":0},null,null,null,{"$f":"VLOOKUP(G429,'Account mapping'!A:D,4,0)","v":{"$error":"#N/A"}}]
[{"$f":"LEFT(Template!A442,4)","v":""},{"$f":"VLOOKUP(A430,'Structure mapping'!K:V,7,0)","v":{"$error":"#N/A"}},{"$f":"LEFT(Template!B442,5)","v":""},{"$f":"VLOOKUP(C430,'Structure mapping'!F:J,5,0)","v":{"$error":"#N/A"}},{"$f":"LEFT(Template!C442,7)","v":""},{"$f":"VLOOKUP(E430,'Structure mapping'!A:E,5,0)","v":{"$error":"#N/A"}},{"$f":"LEFT(Template!D442,6)","v":""},{"$f":"VLOOKUP(G430,'Account mapping'!A:E,5,0)","v":{"$error":"#N/A"}},{"$f":"LEFT(Template!E442,2)","v":""},{"$f":"VLOOKUP(I430,'Structure mapping'!X:AB,5,0)","v":{"$error":"#N/A"}},{"$f":"LEFT(Template!F442,3)","v":""},{"$f":"VLOOKUP(K430,'Structure mapping'!AC:AG,5,0)","v":{"$error":"#N/A"}},{"$f":"LEFT(Template!G442,10)","v":""},{"$f":"VLOOKUP(M430,'Structure mapping'!AH:AL,5,0)","v":{"$error":"#N/A"}},{"$f":"LEFT(Template!H442,6)","v":""},{"$f":"VLOOKUP(O430,'Structure mapping'!AM:AQ,5,0)","v":{"$error":"#N/A"}},null,null,null,null,{"$f":"IF(Template!O442=\"\",\"\",Template!O442)","v":""},"Aug-24 pending entries",{"$f":"TEXT(Template!$B$9,\"mm/dd/yyy\")","v":"08/01/2024"},null,null,null,null,{"$f":"IF(Template!M442>0,Template!M442,-Template!N442)","v":0},null,null,null,{"$f":"VLOOKUP(G430,'Account mapping'!A:D,4,0)","v":{"$error":"#N/A"}}]
[{"$f":"LEFT(Template!A443,4)","v":""},{"$f":"VLOOKUP(A431,'Structure mapping'!K:V,7,0)","v":{"$error":"#N/A"}},{"$f":"LEFT(Template!B443,5)","v":""},{"$f":"VLOOKUP(C431,'Structure mapping'!F:J,5,0)","v":{"$error":"#N/A"}},{"$f":"LEFT(Template!C443,7)","v":""},{"$f":"VLOOKUP(E431,'Structure mapping'!A:E,5,0)","v":{"$error":"#N/A"}},{"$f":"LEFT(Template!D443,6)","v":""},{"$f":"VLOOKUP(G431,'Account mapping'!A:E,5,0)","v":{"$error":"#N/A"}},{"$f":"LEFT(Template!E443,2)","v":""},{"$f":"VLOOKUP(I431,'Structure mapping'!X:AB,5,0)","v":{"$error":"#N/A"}},{"$f":"LEFT(Template!F443,3)","v":""},{"$f":"VLOOKUP(K431,'Structure mapping'!AC:AG,5,0)","v":{"$error":"#N/A"}},{"$f":"LEFT(Template!G443,10)","v":""},{"$f":"VLOOKUP(M431,'Structure mapping'!AH:AL,5,0)","v":{"$error":"#N/A"}},{"$f":"LEFT(Template!H443,6)","v":""},{"$f":"VLOOKUP(O431,'Structure mapping'!AM:AQ,5,0)","v":{"$error":"#N/A"}},null,null,null,null,{"$f":"IF(Template!O443=\"\",\"\",Template!O443)","v":""},"Aug-24 pending entries",{"$f":"TEXT(Template!$B$9,\"mm/dd/yyy\")","v":"08/01/2024"},null,null,null,null,{"$f":"IF(Template!M443>0,Template!M443,-Template!N443)","v":0},null,null,null,{"$f":"VLOOKUP(G431,'Account mapping'!A:D,4,0)","v":{"$error":"#N/A"}}]
[{"$f":"LEFT(Template!A444,4)","v":""},{"$f":"VLOOKUP(A432,'Structure mapping'!K:V,7,0)","v":{"$error":"#N/A"}},{"$f":"LEFT(Template!B444,5)","v":""},{"$f":"VLOOKUP(C432,'Structure mapping'!F:J,5,0)","v":{"$error":"#N/A"}},{"$f":"LEFT(Template!C444,7)","v":""},{"$f":"VLOOKUP(E432,'Structure mapping'!A:E,5,0)","v":{"$error":"#N/A"}},{"$f":"LEFT(Template!D444,6)","v":""},{"$f":"VLOOKUP(G432,'Account mapping'!A:E,5,0)","v":{"$error":"#N/A"}},{"$f":"LEFT(Template!E444,2)","v":""},{"$f":"VLOOKUP(I432,'Structure mapping'!X:AB,5,0)","v":{"$error":"#N/A"}},{"$f":"LEFT(Template!F444,3)","v":""},{"$f":"VLOOKUP(K432,'Structure mapping'!AC:AG,5,0)","v":{"$error":"#N/A"}},{"$f":"LEFT(Template!G444,10)","v":""},{"$f":"VLOOKUP(M432,'Structure mapping'!AH:AL,5,0)","v":{"$error":"#N/A"}},{"$f":"LEFT(Template!H444,6)","v":""},{"$f":"VLOOKUP(O432,'Structure mapping'!AM:AQ,5,0)","v":{"$error":"#N/A"}},null,null,null,null,{"$f":"IF(Template!O444=\"\",\"\",Template!O444)","v":""},"Aug-24 pending entries",{"$f":"TEXT(Template!$B$9,\"mm/dd/yyy\")","v":"08/01/2024"},null,null,null,null,{"$f":"IF(Template!M444>0,Template!M444,-Template!N444)","v":0},null,null,null,{"$f":"VLOOKUP(G432,'Account mapping'!A:D,4,0)","v":{"$error":"#N/A"}}]
[{"$f":"LEFT(Template!A445,4)","v":""},{"$f":"VLOOKUP(A433,'Structure mapping'!K:V,7,0)","v":{"$error":"#N/A"}},{"$f":"LEFT(Template!B445,5)","v":""},{"$f":"VLOOKUP(C433,'Structure mapping'!F:J,5,0)","v":{"$error":"#N/A"}},{"$f":"LEFT(Template!C445,7)","v":""},{"$f":"VLOOKUP(E433,'Structure mapping'!A:E,5,0)","v":{"$error":"#N/A"}},{"$f":"LEFT(Template!D445,6)","v":""},{"$f":"VLOOKUP(G433,'Account mapping'!A:E,5,0)","v":{"$error":"#N/A"}},{"$f":"LEFT(Template!E445,2)","v":""},{"$f":"VLOOKUP(I433,'Structure mapping'!X:AB,5,0)","v":{"$error":"#N/A"}},{"$f":"LEFT(Template!F445,3)","v":""},{"$f":"VLOOKUP(K433,'Structure mapping'!AC:AG,5,0)","v":{"$error":"#N/A"}},{"$f":"LEFT(Template!G445,10)","v":""},{"$f":"VLOOKUP(M433,'Structure mapping'!AH:AL,5,0)","v":{"$error":"#N/A"}},{"$f":"LEFT(Template!H445,6)","v":""},{"$f":"VLOOKUP(O433,'Structure mapping'!AM:AQ,5,0)","v":{"$error":"#N/A"}},null,null,null,null,{"$f":"IF(Template!O445=\"\",\"\",Template!O445)","v":""},"Aug-24 pending entries",{"$f":"TEXT(Template!$B$9,\"mm/dd/yyy\")","v":"08/01/2024"},null,null,null,null,{"$f":"IF(Template!M445>0,Template!M445,-Template!N445)","v":0},null,null,null,{"$f":"VLOOKUP(G433,'Account mapping'!A:D,4,0)","v":{"$error":"#N/A"}}]
[{"$f":"LEFT(Template!A446,4)","v":""},{"$f":"VLOOKUP(A434,'Structure mapping'!K:V,7,0)","v":{"$error":"#N/A"}},{"$f":"LEFT(Template!B446,5)","v":""},{"$f":"VLOOKUP(C434,'Structure mapping'!F:J,5,0)","v":{"$error":"#N/A"}},{"$f":"LEFT(Template!C446,7)","v":""},{"$f":"VLOOKUP(E434,'Structure mapping'!A:E,5,0)","v":{"$error":"#N/A"}},{"$f":"LEFT(Template!D446,6)","v":""},{"$f":"VLOOKUP(G434,'Account mapping'!A:E,5,0)","v":{"$error":"#N/A"}},{"$f":"LEFT(Template!E446,2)","v":""},{"$f":"VLOOKUP(I434,'Structure mapping'!X:AB,5,0)","v":{"$error":"#N/A"}},{"$f":"LEFT(Template!F446,3)","v":""},{"$f":"VLOOKUP(K434,'Structure mapping'!AC:AG,5,0)","v":{"$error":"#N/A"}},{"$f":"LEFT(Template!G446,10)","v":""},{"$f":"VLOOKUP(M434,'Structure mapping'!AH:AL,5,0)","v":{"$error":"#N/A"}},{"$f":"LEFT(Template!H446,6)","v":""},{"$f":"VLOOKUP(O434,'Structure mapping'!AM:AQ,5,0)","v":{"$error":"#N/A"}},null,null,null,null,{"$f":"IF(Template!O446=\"\",\"\",Template!O446)","v":""},"Aug-24 pending entries",{"$f":"TEXT(Template!$B$9,\"mm/dd/yyy\")","v":"08/01/2024"},null,null,null,null,{"$f":"IF(Template!M446>0,Template!M446,-Template!N446)","v":0},null,null,null,{"$f":"VLOOKUP(G434,'Account mapping'!A:D,4,0)","v":{"$error":"#N/A"}}]
[{"$f":"LEFT(Template!A447,4)","v":""},{"$f":"VLOOKUP(A435,'Structure mapping'!K:V,7,0)","v":{"$error":"#N/A"}},{"$f":"LEFT(Template!B447,5)","v":""},{"$f":"VLOOKUP(C435,'Structure mapping'!F:J,5,0)","v":{"$error":"#N/A"}},{"$f":"LEFT(Template!C447,7)","v":""},{"$f":"VLOOKUP(E435,'Structure mapping'!A:E,5,0)","v":{"$error":"#N/A"}},{"$f":"LEFT(Template!D447,6)","v":""},{"$f":"VLOOKUP(G435,'Account mapping'!A:E,5,0)","v":{"$error":"#N/A"}},{"$f":"LEFT(Template!E447,2)","v":""},{"$f":"VLOOKUP(I435,'Structure mapping'!X:AB,5,0)","v":{"$error":"#N/A"}},{"$f":"LEFT(Template!F447,3)","v":""},{"$f":"VLOOKUP(K435,'Structure mapping'!AC:AG,5,0)","v":{"$error":"#N/A"}},{"$f":"LEFT(Template!G447,10)","v":""},{"$f":"VLOOKUP(M435,'Structure mapping'!AH:AL,5,0)","v":{"$error":"#N/A"}},{"$f":"LEFT(Template!H447,6)","v":""},{"$f":"VLOOKUP(O435,'Structure mapping'!AM:AQ,5,0)","v":{"$error":"#N/A"}},null,null,null,null,{"$f":"IF(Template!O447=\"\",\"\",Template!O447)","v":""},"Aug-24 pending entries",{"$f":"TEXT(Template!$B$9,\"mm/dd/yyy\")","v":"08/01/2024"},null,null,null,null,{"$f":"IF(Template!M447>0,Template!M447,-Template!N447)","v":0},null,null,null,{"$f":"VLOOKUP(G435,'Account mapping'!A:D,4,0)","v":{"$error":"#N/A"}}]
[{"$f":"LEFT(Template!A448,4)","v":""},{"$f":"VLOOKUP(A436,'Structure mapping'!K:V,7,0)","v":{"$error":"#N/A"}},{"$f":"LEFT(Template!B448,5)","v":""},{"$f":"VLOOKUP(C436,'Structure mapping'!F:J,5,0)","v":{"$error":"#N/A"}},{"$f":"LEFT(Template!C448,7)","v":""},{"$f":"VLOOKUP(E436,'Structure mapping'!A:E,5,0)","v":{"$error":"#N/A"}},{"$f":"LEFT(Template!D448,6)","v":""},{"$f":"VLOOKUP(G436,'Account mapping'!A:E,5,0)","v":{"$error":"#N/A"}},{"$f":"LEFT(Template!E448,2)","v":""},{"$f":"VLOOKUP(I436,'Structure mapping'!X:AB,5,0)","v":{"$error":"#N/A"}},{"$f":"LEFT(Template!F448,3)","v":""},{"$f":"VLOOKUP(K436,'Structure mapping'!AC:AG,5,0)","v":{"$error":"#N/A"}},{"$f":"LEFT(Template!G448,10)","v":""},{"$f":"VLOOKUP(M436,'Structure mapping'!AH:AL,5,0)","v":{"$error":"#N/A"}},{"$f":"LEFT(Template!H448,6)","v":""},{"$f":"VLOOKUP(O436,'Structure mapping'!AM:AQ,5,0)","v":{"$error":"#N/A"}},null,null,null,null,{"$f":"IF(Template!O448=\"\",\"\",Template!O448)","v":""},"Aug-24 pending entries",{"$f":"TEXT(Template!$B$9,\"mm/dd/yyy\")","v":"08/01/2024"},null,null,null,null,{"$f":"IF(Template!M448>0,Template!M448,-Template!N448)","v":0},null,null,null,{"$f":"VLOOKUP(G436,'Account mapping'!A:D,4,0)","v":{"$error":"#N/A"}}]
[{"$f":"LEFT(Template!A449,4)","v":""},{"$f":"VLOOKUP(A437,'Structure mapping'!K:V,7,0)","v":{"$error":"#N/A"}},{"$f":"LEFT(Template!B449,5)","v":""},{"$f":"VLOOKUP(C437,'Structure mapping'!F:J,5,0)","v":{"$error":"#N/A"}},{"$f":"LEFT(Template!C449,7)","v":""},{"$f":"VLOOKUP(E437,'Structure mapping'!A:E,5,0)","v":{"$error":"#N/A"}},{"$f":"LEFT(Template!D449,6)","v":""},{"$f":"VLOOKUP(G437,'Account mapping'!A:E,5,0)","v":{"$error":"#N/A"}},{"$f":"LEFT(Template!E449,2)","v":""},{"$f":"VLOOKUP(I437,'Structure mapping'!X:AB,5,0)","v":{"$error":"#N/A"}},{"$f":"LEFT(Template!F449,3)","v":""},{"$f":"VLOOKUP(K437,'Structure mapping'!AC:AG,5,0)","v":{"$error":"#N/A"}},{"$f":"LEFT(Template!G449,10)","v":""},{"$f":"VLOOKUP(M437,'Structure mapping'!AH:AL,5,0)","v":{"$error":"#N/A"}},{"$f":"LEFT(Template!H449,6)","v":""},{"$f":"VLOOKUP(O437,'Structure mapping'!AM:AQ,5,0)","v":{"$error":"#N/A"}},null,null,null,null,{"$f":"IF(Template!O449=\"\",\"\",Template!O449)","v":""},"Aug-24 pending entries",{"$f":"TEXT(Template!$B$9,\"mm/dd/yyy\")","v":"08/01/2024"},null,null,null,null,{"$f":"IF(Template!M449>0,Template!M449,-Template!N449)","v":0},null,null,null,{"$f":"VLOOKUP(G437,'Account mapping'!A:D,4,0)","v":{"$error":"#N/A"}}]
[{"$f":"LEFT(Template!A450,4)","v":""},{"$f":"VLOOKUP(A438,'Structure mapping'!K:V,7,0)","v":{"$error":"#N/A"}},{"$f":"LEFT(Template!B450,5)","v":""},{"$f":"VLOOKUP(C438,'Structure mapping'!F:J,5,0)","v":{"$error":"#N/A"}},{"$f":"LEFT(Template!C450,7)","v":""},{"$f":"VLOOKUP(E438,'Structure mapping'!A:E,5,0)","v":{"$error":"#N/A"}},{"$f":"LEFT(Template!D450,6)","v":""},{"$f":"VLOOKUP(G438,'Account mapping'!A:E,5,0)","v":{"$error":"#N/A"}},{"$f":"LEFT(Template!E450,2)","v":""},{"$f":"VLOOKUP(I438,'Structure mapping'!X:AB,5,0)","v":{"$error":"#N/A"}},{"$f":"LEFT(Template!F450,3)","v":""},{"$f":"VLOOKUP(K438,'Structure mapping'!AC:AG,5,0)","v":{"$error":"#N/A"}},{"$f":"LEFT(Template!G450,10)","v":""},{"$f":"VLOOKUP(M438,'Structure mapping'!AH:AL,5,0)","v":{"$error":"#N/A"}},{"$f":"LEFT(Template!H450,6)","v":""},{"$f":"VLOOKUP(O438,'Structure mapping'!AM:AQ,5,0)","v":{"$error":"#N/A"}},null,null,null,null,{"$f":"IF(Template!O450=\"\",\"\",Template!O450)","v":""},"Aug-24 pending entries",{"$f":"TEXT(Template!$B$9,\"mm/dd/yyy\")","v":"08/01/2024"},null,null,null,null,{"$f":"IF(Template!M450>0,Template!M450,-Template!N450)","v":0},null,null,null,{"$f":"VLOOKUP(G438,'Account mapping'!A:D,4,0)","v":{"$error":"#N/A"}}]
[{"$f":"LEFT(Template!A451,4)","v":""},{"$f":"VLOOKUP(A439,'Structure mapping'!K:V,7,0)","v":{"$error":"#N/A"}},{"$f":"LEFT(Template!B451,5)","v":""},{"$f":"VLOOKUP(C439,'Structure mapping'!F:J,5,0)","v":{"$error":"#N/A"}},{"$f":"LEFT(Template!C451,7)","v":""},{"$f":"VLOOKUP(E439,'Structure mapping'!A:E,5,0)","v":{"$error":"#N/A"}},{"$f":"LEFT(Template!D451,6)","v":""},{"$f":"VLOOKUP(G439,'Account mapping'!A:E,5,0)","v":{"$error":"#N/A"}},{"$f":"LEFT(Template!E451,2)","v":""},{"$f":"VLOOKUP(I439,'Structure mapping'!X:AB,5,0)","v":{"$error":"#N/A"}},{"$f":"LEFT(Template!F451,3)","v":""},{"$f":"VLOOKUP(K439,'Structure mapping'!AC:AG,5,0)","v":{"$error":"#N/A"}},{"$f":"LEFT(Template!G451,10)","v":""},{"$f":"VLOOKUP(M439,'Structure mapping'!AH:AL,5,0)","v":{"$error":"#N/A"}},{"$f":"LEFT(Template!H451,6)","v":""},{"$f":"VLOOKUP(O439,'Structure mapping'!AM:AQ,5,0)","v":{"$error":"#N/A"}},null,null,null,null,{"$f":"IF(Template!O451=\"\",\"\",Template!O451)","v":""},"Aug-24 pending entries",{"$f":"TEXT(Template!$B$9,\"mm/dd/yyy\")","v":"08/01/2024"},null,null,null,null,{"$f":"IF(Template!M451>0,Template!M451,-Template!N451)","v":0},null,null,null,{"$f":"VLOOKUP(G439,'Account mapping'!A:D,4,0)","v":{"$error":"#N/A"}}]
[{"$f":"LEFT(Template!A452,4)","v":""},{"$f":"VLOOKUP(A440,'Structure mapping'!K:V,7,0)","v":{"$error":"#N/A"}},{"$f":"LEFT(Template!B452,5)","v":""},{"$f":"VLOOKUP(C440,'Structure mapping'!F:J,5,0)","v":{"$error":"#N/A"}},{"$f":"LEFT(Template!C452,7)","v":""},{"$f":"VLOOKUP(E440,'Structure mapping'!A:E,5,0)","v":{"$error":"#N/A"}},{"$f":"LEFT(Template!D452,6)","v":""},{"$f":"VLOOKUP(G440,'Account mapping'!A:E,5,0)","v":{"$error":"#N/A"}},{"$f":"LEFT(Template!E452,2)","v":""},{"$f":"VLOOKUP(I440,'Structure mapping'!X:AB,5,0)","v":{"$error":"#N/A"}},{"$f":"LEFT(Template!F452,3)","v":""},{"$f":"VLOOKUP(K440,'Structure mapping'!AC:AG,5,0)","v":{"$error":"#N/A"}},{"$f":"LEFT(Template!G452,10)","v":""},{"$f":"VLOOKUP(M440,'Structure mapping'!AH:AL,5,0)","v":{"$error":"#N/A"}},{"$f":"LEFT(Template!H452,6)","v":""},{"$f":"VLOOKUP(O440,'Structure mapping'!AM:AQ,5,0)","v":{"$error":"#N/A"}},null,null,null,null,{"$f":"IF(Template!O452=\"\",\"\",Template!O452)","v":""},"Aug-24 pending entries",{"$f":"TEXT(Template!$B$9,\"mm/dd/yyy\")","v":"08/01/2024"},null,null,null,null,{"$f":"IF(Template!M452>0,Template!M452,-Template!N452)","v":0},null,null,null,{"$f":"VLOOKUP(G440,'Account mapping'!A:D,4,0)","v":{"$error":"#N/A"}}]
[{"$f":"LEFT(Template!A453,4)","v":""},{"$f":"VLOOKUP(A441,'Structure mapping'!K:V,7,0)","v":{"$error":"#N/A"}},{"$f":"LEFT(Template!B453,5)","v":""},{"$f":"VLOOKUP(C441,'Structure mapping'!F:J,5,0)","v":{"$error":"#N/A"}},{"$f":"LEFT(Template!C453,7)","v":""},{"$f":"VLOOKUP(E441,'Structure mapping'!A:E,5,0)","v":{"$error":"#N/A"}},{"$f":"LEFT(Template!D453,6)","v":""},{"$f":"VLOOKUP(G441,'Account mapping'!A:E,5,0)","v":{"$error":"#N/A"}},{"$f":"LEFT(Template!E453,2)","v":""},{"$f":"VLOOKUP(I441,'Structure mapping'!X:AB,5,0)","v":{"$error":"#N/A"}},{"$f":"LEFT(Template!F453,3)","v":""},{"$f":"VLOOKUP(K441,'Structure mapping'!AC:AG,5,0)","v":{"$error":"#N/A"}},{"$f":"LEFT(Template!G453,10)","v":""},{"$f":"VLOOKUP(M441,'Structure mapping'!AH:AL,5,0)","v":{"$error":"#N/A"}},{"$f":"LEFT(Template!H453,6)","v":""},{"$f":"VLOOKUP(O441,'Structure mapping'!AM:AQ,5,0)","v":{"$error":"#N/A"}},null,null,null,null,{"$f":"IF(Template!O453=\"\",\"\",Template!O453)","v":""},"Aug-24 pending entries",{"$f":"TEXT(Template!$B$9,\"mm/dd/yyy\")","v":"08/01/2024"},null,null,null,null,{"$f":"IF(Template!M453>0,Template!M453,-Template!N453)","v":0},null,null,null,{"$f":"VLOOKUP(G441,'Account mapping'!A:D,4,0)","v":{"$error":"#N/A"}}]
[{"$f":"LEFT(Template!A454,4)","v":""},{"$f":"VLOOKUP(A442,'Structure mapping'!K:V,7,0)","v":{"$error":"#N/A"}},{"$f":"LEFT(Template!B454,5)","v":""},{"$f":"VLOOKUP(C442,'Structure mapping'!F:J,5,0)","v":{"$error":"#N/A"}},{"$f":"LEFT(Template!C454,7)","v":""},{"$f":"VLOOKUP(E442,'Structure mapping'!A:E,5,0)","v":{"$error":"#N/A"}},{"$f":"LEFT(Template!D454,6)","v":""},{"$f":"VLOOKUP(G442,'Account mapping'!A:E,5,0)","v":{"$error":"#N/A"}},{"$f":"LEFT(Template!E454,2)","v":""},{"$f":"VLOOKUP(I442,'Structure mapping'!X:AB,5,0)","v":{"$error":"#N/A"}},{"$f":"LEFT(Template!F454,3)","v":""},{"$f":"VLOOKUP(K442,'Structure mapping'!AC:AG,5,0)","v":{"$error":"#N/A"}},{"$f":"LEFT(Template!G454,10)","v":""},{"$f":"VLOOKUP(M442,'Structure mapping'!AH:AL,5,0)","v":{"$error":"#N/A"}},{"$f":"LEFT(Template!H454,6)","v":""},{"$f":"VLOOKUP(O442,'Structure mapping'!AM:AQ,5,0)","v":{"$error":"#N/A"}},null,null,null,null,{"$f":"IF(Template!O454=\"\",\"\",Template!O454)","v":""},"Aug-24 pending entries",{"$f":"TEXT(Template!$B$9,\"mm/dd/yyy\")","v":"08/01/2024"},null,null,null,null,{"$f":"IF(Template!M454>0,Template!M454,-Template!N454)","v":0},null,null,null,{"$f":"VLOOKUP(G442,'Account mapping'!A:D,4,0)","v":{"$error":"#N/A"}}]
[{"$f":"LEFT(Template!A455,4)","v":""},{"$f":"VLOOKUP(A443,'Structure mapping'!K:V,7,0)","v":{"$error":"#N/A"}},{"$f":"LEFT(Template!B455,5)","v":""},{"$f":"VLOOKUP(C443,'Structure mapping'!F:J,5,0)","v":{"$error":"#N/A"}},{"$f":"LEFT(Template!C455,7)","v":""},{"$f":"VLOOKUP(E443,'Structure mapping'!A:E,5,0)","v":{"$error":"#N/A"}},{"$f":"LEFT(Template!D455,6)","v":""},{"$f":"VLOOKUP(G443,'Account mapping'!A:E,5,0)","v":{"$error":"#N/A"}},{"$f":"LEFT(Template!E455,2)","v":""},{"$f":"VLOOKUP(I443,'Structure mapping'!X:AB,5,0)","v":{"$error":"#N/A"}},{"$f":"LEFT(Template!F455,3)","v":""},{"$f":"VLOOKUP(K443,'Structure mapping'!AC:AG,5,0)","v":{"$error":"#N/A"}},{"$f":"LEFT(Template!G455,10)","v":""},{"$f":"VLOOKUP(M443,'Structure mapping'!AH:AL,5,0)","v":{"$error":"#N/A"}},{"$f":"LEFT(Template!H455,6)","v":""},{"$f":"VLOOKUP(O443,'Structure mapping'!AM:AQ,5,0)","v":{"$error":"#N/A"}},null,null,null,null,{"$f":"IF(Template!O455=\"\",\"\",Template!O455)","v":""},"Aug-24 pending entries",{"$f":"TEXT(Template!$B$9,\"mm/dd/yyy\")","v":"08/01/2024"},null,null,null,null,{"$f":"IF(Template!M455>0,Template!M455,-Template!N455)","v":0},null,null,null,{"$f":"VLOOKUP(G443,'Account mapping'!A:D,4,0)","v":{"$error":"#N/A"}}]
[{"$f":"LEFT(Template!A456,4)","v":""},{"$f":"VLOOKUP(A444,'Structure mapping'!K:V,7,0)","v":{"$error":"#N/A"}},{"$f":"LEFT(Template!B456,5)","v":""},{"$f":"VLOOKUP(C444,'Structure mapping'!F:J,5,0)","v":{"$error":"#N/A"}},{"$f":"LEFT(Template!C456,7)","v":""},{"$f":"VLOOKUP(E444,'Structure mapping'!A:E,5,0)","v":{"$error":"#N/A"}},{"$f":"LEFT(Template!D456,6)","v":""},{"$f":"VLOOKUP(G444,'Account mapping'!A:E,5,0)","v":{"$error":"#N/A"}},{"$f":"LEFT(Template!E456,2)","v":""},{"$f":"VLOOKUP(I444,'Structure mapping'!X:AB,5,0)","v":{"$error":"#N/A"}},{"$f":"LEFT(Template!F456,3)","v":""},{"$f":"VLOOKUP(K444,'Structure mapping'!AC:AG,5,0)","v":{"$error":"#N/A"}},{"$f":"LEFT(Template!G456,10)","v":""},{"$f":"VLOOKUP(M444,'Structure mapping'!AH:AL,5,0)","v":{"$error":"#N/A"}},{"$f":"LEFT(Template!H456,6)","v":""},{"$f":"VLOOKUP(O444,'Structure mapping'!AM:AQ,5,0)","v":{"$error":"#N/A"}},null,null,null,null,{"$f":"IF(Template!O456=\"\",\"\",Template!O456)","v":""},"Aug-24 pending entries",{"$f":"TEXT(Template!$B$9,\"mm/dd/yyy\")","v":"08/01/2024"},null,null,null,null,{"$f":"IF(Template!M456>0,Template!M456,-Template!N456)","v":0},null,null,null,{"$f":"VLOOKUP(G444,'Account mapping'!A:D,4,0)","v":{"$error":"#N/A"}}]
[{"$f":"LEFT(Template!A457,4)","v":""},{"$f":"VLOOKUP(A445,'Structure mapping'!K:V,7,0)","v":{"$error":"#N/A"}},{"$f":"LEFT(Template!B457,5)","v":""},{"$f":"VLOOKUP(C445,'Structure mapping'!F:J,5,0)","v":{"$error":"#N/A"}},{"$f":"LEFT(Template!C457,7)","v":""},{"$f":"VLOOKUP(E445,'Structure mapping'!A:E,5,0)","v":{"$error":"#N/A"}},{"$f":"LEFT(Template!D457,6)","v":""},{"$f":"VLOOKUP(G445,'Account mapping'!A:E,5,0)","v":{"$error":"#N/A"}},{"$f":"LEFT(Template!E457,2)","v":""},{"$f":"VLOOKUP(I445,'Structure mapping'!X:AB,5,0)","v":{"$error":"#N/A"}},{"$f":"LEFT(Template!F457,3)","v":""},{"$f":"VLOOKUP(K445,'Structure mapping'!AC:AG,5,0)","v":{"$error":"#N/A"}},{"$f":"LEFT(Template!G457,10)","v":""},{"$f":"VLOOKUP(M445,'Structure mapping'!AH:AL,5,0)","v":{"$error":"#N/A"}},{"$f":"LEFT(Template!H457,6)","v":""},{"$f":"VLOOKUP(O445,'Structure mapping'!AM:AQ,5,0)","v":{"$error":"#N/A"}},null,null,null,null,{"$f":"IF(Template!O457=\"\",\"\",Template!O457)","v":""},"Aug-24 pending entries",{"$f":"TEXT(Template!$B$9,\"mm/dd/yyy\")","v":"08/01/2024"},null,null,null,null,{"$f":"IF(Template!M457>0,Template!M457,-Template!N457)","v":0},null,null,null,{"$f":"VLOOKUP(G445,'Account mapping'!A:D,4,0)","v":{"$error":"#N/A"}}]
[{"$f":"LEFT(Template!A458,4)","v":""},{"$f":"VLOOKUP(A446,'Structure mapping'!K:V,7,0)","v":{"$error":"#N/A"}},{"$f":"LEFT(Template!B458,5)","v":""},{"$f":"VLOOKUP(C446,'Structure mapping'!F:J,5,0)","v":{"$error":"#N/A"}},{"$f":"LEFT(Template!C458,7)","v":""},{"$f":"VLOOKUP(E446,'Structure mapping'!A:E,5,0)","v":{"$error":"#N/A"}},{"$f":"LEFT(Template!D458,6)","v":""},{"$f":"VLOOKUP(G446,'Account mapping'!A:E,5,0)","v":{"$error":"#N/A"}},{"$f":"LEFT(Template!E458,2)","v":""},{"$f":"VLOOKUP(I446,'Structure mapping'!X:AB,5,0)","v":{"$error":"#N/A"}},{"$f":"LEFT(Template!F458,3)","v":""},{"$f":"VLOOKUP(K446,'Structure mapping'!AC:AG,5,0)","v":{"$error":"#N/A"}},{"$f":"LEFT(Template!G458,10)","v":""},{"$f":"VLOOKUP(M446,'Structure mapping'!AH:AL,5,0)","v":{"$error":"#N/A"}},{"$f":"LEFT(Template!H458,6)","v":""},{"$f":"VLOOKUP(O446,'Structure mapping'!AM:AQ,5,0)","v":{"$error":"#N/A"}},null,null,null,null,{"$f":"IF(Template!O458=\"\",\"\",Template!O458)","v":""},"Aug-24 pending entries",{"$f":"TEXT(Template!$B$9,\"mm/dd/yyy\")","v":"08/01/2024"},null,null,null,null,{"$f":"IF(Template!M458>0,Template!M458,-Template!N458)","v":0},null,null,null,{"$f":"VLOOKUP(G446,'Account mapping'!A:D,4,0)","v":{"$error":"#N/A"}}]
[{"$f":"LEFT(Template!A459,4)","v":""},{"$f":"VLOOKUP(A447,'Structure mapping'!K:V,7,0)","v":{"$error":"#N/A"}},{"$f":"LEFT(Template!B459,5)","v":""},{"$f":"VLOOKUP(C447,'Structure mapping'!F:J,5,0)","v":{"$error":"#N/A"}},{"$f":"LEFT(Template!C459,7)","v":""},{"$f":"VLOOKUP(E447,'Structure mapping'!A:E,5,0)","v":{"$error":"#N/A"}},{"$f":"LEFT(Template!D459,6)","v":""},{"$f":"VLOOKUP(G447,'Account mapping'!A:E,5,0)","v":{"$error":"#N/A"}},{"$f":"LEFT(Template!E459,2)","v":""},{"$f":"VLOOKUP(I447,'Structure mapping'!X:AB,5,0)","v":{"$error":"#N/A"}},{"$f":"LEFT(Template!F459,3)","v":""},{"$f":"VLOOKUP(K447,'Structure mapping'!AC:AG,5,0)","v":{"$error":"#N/A"}},{"$f":"LEFT(Template!G459,10)","v":""},{"$f":"VLOOKUP(M447,'Structure mapping'!AH:AL,5,0)","v":{"$error":"#N/A"}},{"$f":"LEFT(Template!H459,6)","v":""},{"$f":"VLOOKUP(O447,'Structure mapping'!AM:AQ,5,0)","v":{"$error":"#N/A"}},null,null,null,null,{"$f":"IF(Template!O459=\"\",\"\",Template!O459)","v":""},"Aug-24 pending entries",{"$f":"TEXT(Template!$B$9,\"mm/dd/yyy\")","v":"08/01/2024"},null,null,null,null,{"$f":"IF(Template!M459>0,Template!M459,-Template!N459)","v":0},null,null,null,{"$f":"VLOOKUP(G447,'Account mapping'!A:D,4,0)","v":{"$error":"#N/A"}}]
[{"$f":"LEFT(Template!A460,4)","v":""},{"$f":"VLOOKUP(A448,'Structure mapping'!K:V,7,0)","v":{"$error":"#N/A"}},{"$f":"LEFT(Template!B460,5)","v":""},{"$f":"VLOOKUP(C448,'Structure mapping'!F:J,5,0)","v":{"$error":"#N/A"}},{"$f":"LEFT(Template!C460,7)","v":""},{"$f":"VLOOKUP(E448,'Structure mapping'!A:E,5,0)","v":{"$error":"#N/A"}},{"$f":"LEFT(Template!D460,6)","v":""},{"$f":"VLOOKUP(G448,'Account mapping'!A:E,5,0)","v":{"$error":"#N/A"}},{"$f":"LEFT(Template!E460,2)","v":""},{"$f":"VLOOKUP(I448,'Structure mapping'!X:AB,5,0)","v":{"$error":"#N/A"}},{"$f":"LEFT(Template!F460,3)","v":""},{"$f":"VLOOKUP(K448,'Structure mapping'!AC:AG,5,0)","v":{"$error":"#N/A"}},{"$f":"LEFT(Template!G460,10)","v":""},{"$f":"VLOOKUP(M448,'Structure mapping'!AH:AL,5,0)","v":{"$error":"#N/A"}},{"$f":"LEFT(Template!H460,6)","v":""},{"$f":"VLOOKUP(O448,'Structure mapping'!AM:AQ,5,0)","v":{"$error":"#N/A"}},null,null,null,null,{"$f":"IF(Template!O460=\"\",\"\",Template!O460)","v":""},"Aug-24 pending entries",{"$f":"TEXT(Template!$B$9,\"mm/dd/yyy\")","v":"08/01/2024"},null,null,null,null,{"$f":"IF(Template!M460>0,Template!M460,-Template!N460)","v":0},null,null,null,{"$f":"VLOOKUP(G448,'Account mapping'!A:D,4,0)","v":{"$error":"#N/A"}}]
[{"$f":"LEFT(Template!A461,4)","v":""},{"$f":"VLOOKUP(A449,'Structure mapping'!K:V,7,0)","v":{"$error":"#N/A"}},{"$f":"LEFT(Template!B461,5)","v":""},{"$f":"VLOOKUP(C449,'Structure mapping'!F:J,5,0)","v":{"$error":"#N/A"}},{"$f":"LEFT(Template!C461,7)","v":""},{"$f":"VLOOKUP(E449,'Structure mapping'!A:E,5,0)","v":{"$error":"#N/A"}},{"$f":"LEFT(Template!D461,6)","v":""},{"$f":"VLOOKUP(G449,'Account mapping'!A:E,5,0)","v":{"$error":"#N/A"}},{"$f":"LEFT(Template!E461,2)","v":""},{"$f":"VLOOKUP(I449,'Structure mapping'!X:AB,5,0)","v":{"$error":"#N/A"}},{"$f":"LEFT(Template!F461,3)","v":""},{"$f":"VLOOKUP(K449,'Structure mapping'!AC:AG,5,0)","v":{"$error":"#N/A"}},{"$f":"LEFT(Template!G461,10)","v":""},{"$f":"VLOOKUP(M449,'Structure mapping'!AH:AL,5,0)","v":{"$error":"#N/A"}},{"$f":"LEFT(Template!H461,6)","v":""},{"$f":"VLOOKUP(O449,'Structure mapping'!AM:AQ,5,0)","v":{"$error":"#N/A"}},null,null,null,null,{"$f":"IF(Template!O461=\"\",\"\",Template!O461)","v":""},"Aug-24 pending entries",{"$f":"TEXT(Template!$B$9,\"mm/dd/yyy\")","v":"08/01/2024"},null,null,null,null,{"$f":"IF(Template!M461>0,Template!M461,-Template!N461)","v":0},null,null,null,{"$f":"VLOOKUP(G449,'Account mapping'!A:D,4,0)","v":{"$error":"#N/A"}}]
[{"$f":"LEFT(Template!A462,4)","v":""},{"$f":"VLOOKUP(A450,'Structure mapping'!K:V,7,0)","v":{"$error":"#N/A"}},{"$f":"LEFT(Template!B462,5)","v":""},{"$f":"VLOOKUP(C450,'Structure mapping'!F:J,5,0)","v":{"$error":"#N/A"}},{"$f":"LEFT(Template!C462,7)","v":""},{"$f":"VLOOKUP(E450,'Structure mapping'!A:E,5,0)","v":{"$error":"#N/A"}},{"$f":"LEFT(Template!D462,6)","v":""},{"$f":"VLOOKUP(G450,'Account mapping'!A:E,5,0)","v":{"$error":"#N/A"}},{"$f":"LEFT(Template!E462,2)","v":""},{"$f":"VLOOKUP(I450,'Structure mapping'!X:AB,5,0)","v":{"$error":"#N/A"}},{"$f":"LEFT(Template!F462,3)","v":""},{"$f":"VLOOKUP(K450,'Structure mapping'!AC:AG,5,0)","v":{"$error":"#N/A"}},{"$f":"LEFT(Template!G462,10)","v":""},{"$f":"VLOOKUP(M450,'Structure mapping'!AH:AL,5,0)","v":{"$error":"#N/A"}},{"$f":"LEFT(Template!H462,6)","v":""},{"$f":"VLOOKUP(O450,'Structure mapping'!AM:AQ,5,0)","v":{"$error":"#N/A"}},null,null,null,null,{"$f":"IF(Template!O462=\"\",\"\",Template!O462)","v":""},"Aug-24 pending entries",{"$f":"TEXT(Template!$B$9,\"mm/dd/yyy\")","v":"08/01/2024"},null,null,null,null,{"$f":"IF(Template!M462>0,Template!M462,-Template!N462)","v":0},null,null,null,{"$f":"VLOOKUP(G450,'Account mapping'!A:D,4,0)","v":{"$error":"#N/A"}}]
[{"$f":"LEFT(Template!A463,4)","v":""},{"$f":"VLOOKUP(A451,'Structure mapping'!K:V,7,0)","v":{"$error":"#N/A"}},{"$f":"LEFT(Template!B463,5)","v":""},{"$f":"VLOOKUP(C451,'Structure mapping'!F:J,5,0)","v":{"$error":"#N/A"}},{"$f":"LEFT(Template!C463,7)","v":""},{"$f":"VLOOKUP(E451,'Structure mapping'!A:E,5,0)","v":{"$error":"#N/A"}},{"$f":"LEFT(Template!D463,6)","v":""},{"$f":"VLOOKUP(G451,'Account mapping'!A:E,5,0)","v":{"$error":"#N/A"}},{"$f":"LEFT(Template!E463,2)","v":""},{"$f":"VLOOKUP(I451,'Structure mapping'!X:AB,5,0)","v":{"$error":"#N/A"}},{"$f":"LEFT(Template!F463,3)","v":""},{"$f":"VLOOKUP(K451,'Structure mapping'!AC:AG,5,0)","v":{"$error":"#N/A"}},{"$f":"LEFT(Template!G463,10)","v":""},{"$f":"VLOOKUP(M451,'Structure mapping'!AH:AL,5,0)","v":{"$error":"#N/A"}},{"$f":"LEFT(Template!H463,6)","v":""},{"$f":"VLOOKUP(O451,'Structure mapping'!AM:AQ,5,0)","v":{"$error":"#N/A"}},null,null,null,null,{"$f":"IF(Template!O463=\"\",\"\",Template!O463)","v":""},{"$f":"TEXT(W451,\"mmm-yy\")&\" pending entries\"","v":"Aug-24 pending entries"},{"$f":"TEXT(Template!$B$9,\"mm/dd/yyy\")","v":"08/01/2024"},null,null,null,null,{"$f":"IF(Template!M463>0,Template!M463,-Template!N463)","v":0},null,null,null,{"$f":"VLOOKUP(G451,'Account mapping'!A:D,4,0)","v":{"$error":"#N/A"}}]
[{"$f":"LEFT(Template!A464,4)","v":""},{"$f":"VLOOKUP(A452,'Structure mapping'!K:V,7,0)","v":{"$error":"#N/A"}},{"$f":"LEFT(Template!B464,5)","v":""},{"$f":"VLOOKUP(C452,'Structure mapping'!F:J,5,0)","v":{"$error":"#N/A"}},{"$f":"LEFT(Template!C464,7)","v":""},{"$f":"VLOOKUP(E452,'Structure mapping'!A:E,5,0)","v":{"$error":"#N/A"}},{"$f":"LEFT(Template!D464,6)","v":""},{"$f":"VLOOKUP(G452,'Account mapping'!A:E,5,0)","v":{"$error":"#N/A"}},{"$f":"LEFT(Template!E464,2)","v":""},{"$f":"VLOOKUP(I452,'Structure mapping'!X:AB,5,0)","v":{"$error":"#N/A"}},{"$f":"LEFT(Template!F464,3)","v":""},{"$f":"VLOOKUP(K452,'Structure mapping'!AC:AG,5,0)","v":{"$error":"#N/A"}},{"$f":"LEFT(Template!G464,10)","v":""},{"$f":"VLOOKUP(M452,'Structure mapping'!AH:AL,5,0)","v":{"$error":"#N/A"}},{"$f":"LEFT(Template!H464,6)","v":""},{"$f":"VLOOKUP(O452,'Structure mapping'!AM:AQ,5,0)","v":{"$error":"#N/A"}},null,null,null,null,{"$f":"IF(Template!O464=\"\",\"\",Template!O464)","v":""},"Aug-24 pending entries",{"$f":"TEXT(Template!$B$9,\"mm/dd/yyy\")","v":"08/01/2024"},null,null,null,null,{"$f":"IF(Template!M464>0,Template!M464,-Template!N464)","v":0},null,null,null,{"$f":"VLOOKUP(G452,'Account mapping'!A:D,4,0)","v":{"$error":"#N/A"}}]
[{"$f":"LEFT(Template!A465,4)","v":""},{"$f":"VLOOKUP(A453,'Structure mapping'!K:V,7,0)","v":{"$error":"#N/A"}},{"$f":"LEFT(Template!B465,5)","v":""},{"$f":"VLOOKUP(C453,'Structure mapping'!F:J,5,0)","v":{"$error":"#N/A"}},{"$f":"LEFT(Template!C465,7)","v":""},{"$f":"VLOOKUP(E453,'Structure mapping'!A:E,5,0)","v":{"$error":"#N/A"}},{"$f":"LEFT(Template!D465,6)","v":""},{"$f":"VLOOKUP(G453,'Account mapping'!A:E,5,0)","v":{"$error":"#N/A"}},{"$f":"LEFT(Template!E465,2)","v":""},{"$f":"VLOOKUP(I453,'Structure mapping'!X:AB,5,0)","v":{"$error":"#N/A"}},{"$f":"LEFT(Template!F465,3)","v":""},{"$f":"VLOOKUP(K453,'Structure mapping'!AC:AG,5,0)","v":{"$error":"#N/A"}},{"$f":"LEFT(Template!G465,10)","v":""},{"$f":"VLOOKUP(M453,'Structure mapping'!AH:AL,5,0)","v":{"$error":"#N/A"}},{"$f":"LEFT(Template!H465,6)","v":""},{"$f":"VLOOKUP(O453,'Structure mapping'!AM:AQ,5,0)","v":{"$error":"#N/A"}},null,null,null,null,{"$f":"IF(Template!O465=\"\",\"\",Template!O465)","v":""},"Aug-24 pending entries",{"$f":"TEXT(Template!$B$9,\"mm/dd/yyy\")","v":"08/01/2024"},null,null,null,null,{"$f":"IF(Template!M465>0,Template!M465,-Template!N465)","v":0},null,null,null,{"$f":"VLOOKUP(G453,'Account mapping'!A:D,4,0)","v":{"$error":"#N/A"}}]
[{"$f":"LEFT(Template!A466,4)","v":""},{"$f":"VLOOKUP(A454,'Structure mapping'!K:V,7,0)","v":{"$error":"#N/A"}},{"$f":"LEFT(Template!B466,5)","v":""},{"$f":"VLOOKUP(C454,'Structure mapping'!F:J,5,0)","v":{"$error":"#N/A"}},{"$f":"LEFT(Template!C466,7)","v":""},{"$f":"VLOOKUP(E454,'Structure mapping'!A:E,5,0)","v":{"$error":"#N/A"}},{"$f":"LEFT(Template!D466,6)","v":""},{"$f":"VLOOKUP(G454,'Account mapping'!A:E,5,0)","v":{"$error":"#N/A"}},{"$f":"LEFT(Template!E466,2)","v":""},{"$f":"VLOOKUP(I454,'Structure mapping'!X:AB,5,0)","v":{"$error":"#N/A"}},{"$f":"LEFT(Template!F466,3)","v":""},{"$f":"VLOOKUP(K454,'Structure mapping'!AC:AG,5,0)","v":{"$error":"#N/A"}},{"$f":"LEFT(Template!G466,10)","v":""},{"$f":"VLOOKUP(M454,'Structure mapping'!AH:AL,5,0)","v":{"$error":"#N/A"}},{"$f":"LEFT(Template!H466,6)","v":""},{"$f":"VLOOKUP(O454,'Structure mapping'!AM:AQ,5,0)","v":{"$error":"#N/A"}},null,null,null,null,{"$f":"IF(Template!O466=\"\",\"\",Template!O466)","v":""},"Aug-24 pending entries",{"$f":"TEXT(Template!$B$9,\"mm/dd/yyy\")","v":"08/01/2024"},null,null,null,null,{"$f":"IF(Template!M466>0,Template!M466,-Template!N466)","v":0},null,null,null,{"$f":"VLOOKUP(G454,'Account mapping'!A:D,4,0)","v":{"$error":"#N/A"}}]
[{"$f":"LEFT(Template!A467,4)","v":""},{"$f":"VLOOKUP(A455,'Structure mapping'!K:V,7,0)","v":{"$error":"#N/A"}},{"$f":"LEFT(Template!B467,5)","v":""},{"$f":"VLOOKUP(C455,'Structure mapping'!F:J,5,0)","v":{"$error":"#N/A"}},{"$f":"LEFT(Template!C467,7)","v":""},{"$f":"VLOOKUP(E455,'Structure mapping'!A:E,5,0)","v":{"$error":"#N/A"}},{"$f":"LEFT(Template!D467,6)","v":""},{"$f":"VLOOKUP(G455,'Account mapping'!A:E,5,0)","v":{"$error":"#N/A"}},{"$f":"LEFT(Template!E467,2)","v":""},{"$f":"VLOOKUP(I455,'Structure mapping'!X:AB,5,0)","v":{"$error":"#N/A"}},{"$f":"LEFT(Template!F467,3)","v":""},{"$f":"VLOOKUP(K455,'Structure mapping'!AC:AG,5,0)","v":{"$error":"#N/A"}},{"$f":"LEFT(Template!G467,10)","v":""},{"$f":"VLOOKUP(M455,'Structure mapping'!AH:AL,5,0)","v":{"$error":"#N/A"}},{"$f":"LEFT(Template!H467,6)","v":""},{"$f":"VLOOKUP(O455,'Structure mapping'!AM:AQ,5,0)","v":{"$error":"#N/A"}},null,null,null,null,{"$f":"IF(Template!O467=\"\",\"\",Template!O467)","v":""},"Aug-24 pending entries",{"$f":"TEXT(Template!$B$9,\"mm/dd/yyy\")","v":"08/01/2024"},null,null,null,null,{"$f":"IF(Template!M467>0,Template!M467,-Template!N467)","v":0},null,null,null,{"$f":"VLOOKUP(G455,'Account mapping'!A:D,4,0)","v":{"$error":"#N/A"}}]
[{"$f":"LEFT(Template!A468,4)","v":""},{"$f":"VLOOKUP(A456,'Structure mapping'!K:V,7,0)","v":{"$error":"#N/A"}},{"$f":"LEFT(Template!B468,5)","v":""},{"$f":"VLOOKUP(C456,'Structure mapping'!F:J,5,0)","v":{"$error":"#N/A"}},{"$f":"LEFT(Template!C468,7)","v":""},{"$f":"VLOOKUP(E456,'Structure mapping'!A:E,5,0)","v":{"$error":"#N/A"}},{"$f":"LEFT(Template!D468,6)","v":""},{"$f":"VLOOKUP(G456,'Account mapping'!A:E,5,0)","v":{"$error":"#N/A"}},{"$f":"LEFT(Template!E468,2)","v":""},{"$f":"VLOOKUP(I456,'Structure mapping'!X:AB,5,0)","v":{"$error":"#N/A"}},{"$f":"LEFT(Template!F468,3)","v":""},{"$f":"VLOOKUP(K456,'Structure mapping'!AC:AG,5,0)","v":{"$error":"#N/A"}},{"$f":"LEFT(Template!G468,10)","v":""},{"$f":"VLOOKUP(M456,'Structure mapping'!AH:AL,5,0)","v":{"$error":"#N/A"}},{"$f":"LEFT(Template!H468,6)","v":""},{"$f":"VLOOKUP(O456,'Structure mapping'!AM:AQ,5,0)","v":{"$error":"#N/A"}},null,null,null,null,{"$f":"IF(Template!O468=\"\",\"\",Template!O468)","v":""},"Aug-24 pending entries",{"$f":"TEXT(Template!$B$9,\"mm/dd/yyy\")","v":"08/01/2024"},null,null,null,null,{"$f":"IF(Template!M468>0,Template!M468,-Template!N468)","v":0},null,null,null,{"$f":"VLOOKUP(G456,'Account mapping'!A:D,4,0)","v":{"$error":"#N/A"}}]
[{"$f":"LEFT(Template!A469,4)","v":""},{"$f":"VLOOKUP(A457,'Structure mapping'!K:V,7,0)","v":{"$error":"#N/A"}},{"$f":"LEFT(Template!B469,5)","v":""},{"$f":"VLOOKUP(C457,'Structure mapping'!F:J,5,0)","v":{"$error":"#N/A"}},{"$f":"LEFT(Template!C469,7)","v":""},{"$f":"VLOOKUP(E457,'Structure mapping'!A:E,5,0)","v":{"$error":"#N/A"}},{"$f":"LEFT(Template!D469,6)","v":""},{"$f":"VLOOKUP(G457,'Account mapping'!A:E,5,0)","v":{"$error":"#N/A"}},{"$f":"LEFT(Template!E469,2)","v":""},{"$f":"VLOOKUP(I457,'Structure mapping'!X:AB,5,0)","v":{"$error":"#N/A"}},{"$f":"LEFT(Template!F469,3)","v":""},{"$f":"VLOOKUP(K457,'Structure mapping'!AC:AG,5,0)","v":{"$error":"#N/A"}},{"$f":"LEFT(Template!G469,10)","v":""},{"$f":"VLOOKUP(M457,'Structure mapping'!AH:AL,5,0)","v":{"$error":"#N/A"}},{"$f":"LEFT(Template!H469,6)","v":""},{"$f":"VLOOKUP(O457,'Structure mapping'!AM:AQ,5,0)","v":{"$error":"#N/A"}},null,null,null,null,{"$f":"IF(Template!O469=\"\",\"\",Template!O469)","v":""},"Aug-24 pending entries",{"$f":"TEXT(Template!$B$9,\"mm/dd/yyy\")","v":"08/01/2024"},null,null,null,null,{"$f":"IF(Template!M469>0,Template!M469,-Template!N469)","v":0},null,null,null,{"$f":"VLOOKUP(G457,'Account mapping'!A:D,4,0)","v":{"$error":"#N/A"}}]
[{"$f":"LEFT(Template!A470,4)","v":""},{"$f":"VLOOKUP(A458,'Structure mapping'!K:V,7,0)","v":{"$error":"#N/A"}},{"$f":"LEFT(Template!B470,5)","v":""},{"$f":"VLOOKUP(C458,'Structure mapping'!F:J,5,0)","v":{"$error":"#N/A"}},{"$f":"LEFT(Template!C470,7)","v":""},{"$f":"VLOOKUP(E458,'Structure mapping'!A:E,5,0)","v":{"$error":"#N/A"}},{"$f":"LEFT(Template!D470,6)","v":""},{"$f":"VLOOKUP(G458,'Account mapping'!A:E,5,0)","v":{"$error":"#N/A"}},{"$f":"LEFT(Template!E470,2)","v":""},{"$f":"VLOOKUP(I458,'Structure mapping'!X:AB,5,0)","v":{"$error":"#N/A"}},{"$f":"LEFT(Template!F470,3)","v":""},{"$f":"VLOOKUP(K458,'Structure mapping'!AC:AG,5,0)","v":{"$error":"#N/A"}},{"$f":"LEFT(Template!G470,10)","v":""},{"$f":"VLOOKUP(M458,'Structure mapping'!AH:AL,5,0)","v":{"$error":"#N/A"}},{"$f":"LEFT(Template!H470,6)","v":""},{"$f":"VLOOKUP(O458,'Structure mapping'!AM:AQ,5,0)","v":{"$error":"#N/A"}},null,null,null,null,{"$f":"IF(Template!O470=\"\",\"\",Template!O470)","v":""},"Aug-24 pending entries",{"$f":"TEXT(Template!$B$9,\"mm/dd/yyy\")","v":"08/01/2024"},null,null,null,null,{"$f":"IF(Template!M470>0,Template!M470,-Template!N470)","v":0},null,null,null,{"$f":"VLOOKUP(G458,'Account mapping'!A:D,4,0)","v":{"$error":"#N/A"}}]
[{"$f":"LEFT(Template!A471,4)","v":""},{"$f":"VLOOKUP(A459,'Structure mapping'!K:V,7,0)","v":{"$error":"#N/A"}},{"$f":"LEFT(Template!B471,5)","v":""},{"$f":"VLOOKUP(C459,'Structure mapping'!F:J,5,0)","v":{"$error":"#N/A"}},{"$f":"LEFT(Template!C471,7)","v":""},{"$f":"VLOOKUP(E459,'Structure mapping'!A:E,5,0)","v":{"$error":"#N/A"}},{"$f":"LEFT(Template!D471,6)","v":""},{"$f":"VLOOKUP(G459,'Account mapping'!A:E,5,0)","v":{"$error":"#N/A"}},{"$f":"LEFT(Template!E471,2)","v":""},{"$f":"VLOOKUP(I459,'Structure mapping'!X:AB,5,0)","v":{"$error":"#N/A"}},{"$f":"LEFT(Template!F471,3)","v":""},{"$f":"VLOOKUP(K459,'Structure mapping'!AC:AG,5,0)","v":{"$error":"#N/A"}},{"$f":"LEFT(Template!G471,10)","v":""},{"$f":"VLOOKUP(M459,'Structure mapping'!AH:AL,5,0)","v":{"$error":"#N/A"}},{"$f":"LEFT(Template!H471,6)","v":""},{"$f":"VLOOKUP(O459,'Structure mapping'!AM:AQ,5,0)","v":{"$error":"#N/A"}},null,null,null,null,{"$f":"IF(Template!O471=\"\",\"\",Template!O471)","v":""},"Aug-24 pending entries",{"$f":"TEXT(Template!$B$9,\"mm/dd/yyy\")","v":"08/01/2024"},null,null,null,null,{"$f":"IF(Template!M471>0,Template!M471,-Template!N471)","v":0},null,null,null,{"$f":"VLOOKUP(G459,'Account mapping'!A:D,4,0)","v":{"$error":"#N/A"}}]
[{"$f":"LEFT(Template!A472,4)","v":""},{"$f":"VLOOKUP(A460,'Structure mapping'!K:V,7,0)","v":{"$error":"#N/A"}},{"$f":"LEFT(Template!B472,5)","v":""},{"$f":"VLOOKUP(C460,'Structure mapping'!F:J,5,0)","v":{"$error":"#N/A"}},{"$f":"LEFT(Template!C472,7)","v":""},{"$f":"VLOOKUP(E460,'Structure mapping'!A:E,5,0)","v":{"$error":"#N/A"}},{"$f":"LEFT(Template!D472,6)","v":""},{"$f":"VLOOKUP(G460,'Account mapping'!A:E,5,0)","v":{"$error":"#N/A"}},{"$f":"LEFT(Template!E472,2)","v":""},{"$f":"VLOOKUP(I460,'Structure mapping'!X:AB,5,0)","v":{"$error":"#N/A"}},{"$f":"LEFT(Template!F472,3)","v":""},{"$f":"VLOOKUP(K460,'Structure mapping'!AC:AG,5,0)","v":{"$error":"#N/A"}},{"$f":"LEFT(Template!G472,10)","v":""},{"$f":"VLOOKUP(M460,'Structure mapping'!AH:AL,5,0)","v":{"$error":"#N/A"}},{"$f":"LEFT(Template!H472,6)","v":""},{"$f":"VLOOKUP(O460,'Structure mapping'!AM:AQ,5,0)","v":{"$error":"#N/A"}},null,null,null,null,{"$f":"IF(Template!O472=\"\",\"\",Template!O472)","v":""},"Aug-24 pending entries",{"$f":"TEXT(Template!$B$9,\"mm/dd/yyy\")","v":"08/01/2024"},null,null,null,null,{"$f":"IF(Template!M472>0,Template!M472,-Template!N472)","v":0},null,null,null,{"$f":"VLOOKUP(G460,'Account mapping'!A:D,4,0)","v":{"$error":"#N/A"}}]
[{"$f":"LEFT(Template!A473,4)","v":""},{"$f":"VLOOKUP(A461,'Structure mapping'!K:V,7,0)","v":{"$error":"#N/A"}},{"$f":"LEFT(Template!B473,5)","v":""},{"$f":"VLOOKUP(C461,'Structure mapping'!F:J,5,0)","v":{"$error":"#N/A"}},{"$f":"LEFT(Template!C473,7)","v":""},{"$f":"VLOOKUP(E461,'Structure mapping'!A:E,5,0)","v":{"$error":"#N/A"}},{"$f":"LEFT(Template!D473,6)","v":""},{"$f":"VLOOKUP(G461,'Account mapping'!A:E,5,0)","v":{"$error":"#N/A"}},{"$f":"LEFT(Template!E473,2)","v":""},{"$f":"VLOOKUP(I461,'Structure mapping'!X:AB,5,0)","v":{"$error":"#N/A"}},{"$f":"LEFT(Template!F473,3)","v":""},{"$f":"VLOOKUP(K461,'Structure mapping'!AC:AG,5,0)","v":{"$error":"#N/A"}},{"$f":"LEFT(Template!G473,10)","v":""},{"$f":"VLOOKUP(M461,'Structure mapping'!AH:AL,5,0)","v":{"$error":"#N/A"}},{"$f":"LEFT(Template!H473,6)","v":""},{"$f":"VLOOKUP(O461,'Structure mapping'!AM:AQ,5,0)","v":{"$error":"#N/A"}},null,null,null,null,{"$f":"IF(Template!O473=\"\",\"\",Template!O473)","v":""},"Aug-24 pending entries",{"$f":"TEXT(Template!$B$9,\"mm/dd/yyy\")","v":"08/01/2024"},null,null,null,null,{"$f":"IF(Template!M473>0,Template!M473,-Template!N473)","v":0},null,null,null,{"$f":"VLOOKUP(G461,'Account mapping'!A:D,4,0)","v":{"$error":"#N/A"}}]
[{"$f":"LEFT(Template!A474,4)","v":""},{"$f":"VLOOKUP(A462,'Structure mapping'!K:V,7,0)","v":{"$error":"#N/A"}},{"$f":"LEFT(Template!B474,5)","v":""},{"$f":"VLOOKUP(C462,'Structure mapping'!F:J,5,0)","v":{"$error":"#N/A"}},{"$f":"LEFT(Template!C474,7)","v":""},{"$f":"VLOOKUP(E462,'Structure mapping'!A:E,5,0)","v":{"$error":"#N/A"}},{"$f":"LEFT(Template!D474,6)","v":""},{"$f":"VLOOKUP(G462,'Account mapping'!A:E,5,0)","v":{"$error":"#N/A"}},{"$f":"LEFT(Template!E474,2)","v":""},{"$f":"VLOOKUP(I462,'Structure mapping'!X:AB,5,0)","v":{"$error":"#N/A"}},{"$f":"LEFT(Template!F474,3)","v":""},{"$f":"VLOOKUP(K462,'Structure mapping'!AC:AG,5,0)","v":{"$error":"#N/A"}},{"$f":"LEFT(Template!G474,10)","v":""},{"$f":"VLOOKUP(M462,'Structure mapping'!AH:AL,5,0)","v":{"$error":"#N/A"}},{"$f":"LEFT(Template!H474,6)","v":""},{"$f":"VLOOKUP(O462,'Structure mapping'!AM:AQ,5,0)","v":{"$error":"#N/A"}},null,null,null,null,{"$f":"IF(Template!O474=\"\",\"\",Template!O474)","v":""},"Aug-24 pending entries",{"$f":"TEXT(Template!$B$9,\"mm/dd/yyy\")","v":"08/01/2024"},null,null,null,null,{"$f":"IF(Template!M474>0,Template!M474,-Template!N474)","v":0},null,null,null,{"$f":"VLOOKUP(G462,'Account mapping'!A:D,4,0)","v":{"$error":"#N/A"}}]
[{"$f":"LEFT(Template!A475,4)","v":""},{"$f":"VLOOKUP(A463,'Structure mapping'!K:V,7,0)","v":{"$error":"#N/A"}},{"$f":"LEFT(Template!B475,5)","v":""},{"$f":"VLOOKUP(C463,'Structure mapping'!F:J,5,0)","v":{"$error":"#N/A"}},{"$f":"LEFT(Template!C475,7)","v":""},{"$f":"VLOOKUP(E463,'Structure mapping'!A:E,5,0)","v":{"$error":"#N/A"}},{"$f":"LEFT(Template!D475,6)","v":""},{"$f":"VLOOKUP(G463,'Account mapping'!A:E,5,0)","v":{"$error":"#N/A"}},{"$f":"LEFT(Template!E475,2)","v":""},{"$f":"VLOOKUP(I463,'Structure mapping'!X:AB,5,0)","v":{"$error":"#N/A"}},{"$f":"LEFT(Template!F475,3)","v":""},{"$f":"VLOOKUP(K463,'Structure mapping'!AC:AG,5,0)","v":{"$error":"#N/A"}},{"$f":"LEFT(Template!G475,10)","v":""},{"$f":"VLOOKUP(M463,'Structure mapping'!AH:AL,5,0)","v":{"$error":"#N/A"}},{"$f":"LEFT(Template!H475,6)","v":""},{"$f":"VLOOKUP(O463,'Structure mapping'!AM:AQ,5,0)","v":{"$error":"#N/A"}},null,null,null,null,{"$f":"IF(Template!O475=\"\",\"\",Template!O475)","v":""},"Aug-24 pending entries",{"$f":"TEXT(Template!$B$9,\"mm/dd/yyy\")","v":"08/01/2024"},null,null,null,null,{"$f":"IF(Template!M475>0,Template!M475,-Template!N475)","v":0},null,null,null,{"$f":"VLOOKUP(G463,'Account mapping'!A:D,4,0)","v":{"$error":"#N/A"}}]
[{"$f":"LEFT(Template!A476,4)","v":""},{"$f":"VLOOKUP(A464,'Structure mapping'!K:V,7,0)","v":{"$error":"#N/A"}},{"$f":"LEFT(Template!B476,5)","v":""},{"$f":"VLOOKUP(C464,'Structure mapping'!F:J,5,0)","v":{"$error":"#N/A"}},{"$f":"LEFT(Template!C476,7)","v":""},{"$f":"VLOOKUP(E464,'Structure mapping'!A:E,5,0)","v":{"$error":"#N/A"}},{"$f":"LEFT(Template!D476,6)","v":""},{"$f":"VLOOKUP(G464,'Account mapping'!A:E,5,0)","v":{"$error":"#N/A"}},{"$f":"LEFT(Template!E476,2)","v":""},{"$f":"VLOOKUP(I464,'Structure mapping'!X:AB,5,0)","v":{"$error":"#N/A"}},{"$f":"LEFT(Template!F476,3)","v":""},{"$f":"VLOOKUP(K464,'Structure mapping'!AC:AG,5,0)","v":{"$error":"#N/A"}},{"$f":"LEFT(Template!G476,10)","v":""},{"$f":"VLOOKUP(M464,'Structure mapping'!AH:AL,5,0)","v":{"$error":"#N/A"}},{"$f":"LEFT(Template!H476,6)","v":""},{"$f":"VLOOKUP(O464,'Structure mapping'!AM:AQ,5,0)","v":{"$error":"#N/A"}},null,null,null,null,{"$f":"IF(Template!O476=\"\",\"\",Template!O476)","v":""},"Aug-24 pending entries",{"$f":"TEXT(Template!$B$9,\"mm/dd/yyy\")","v":"08/01/2024"},null,null,null,null,{"$f":"IF(Template!M476>0,Template!M476,-Template!N476)","v":0},null,null,null,{"$f":"VLOOKUP(G464,'Account mapping'!A:D,4,0)","v":{"$error":"#N/A"}}]
[{"$f":"LEFT(Template!A477,4)","v":""},{"$f":"VLOOKUP(A465,'Structure mapping'!K:V,7,0)","v":{"$error":"#N/A"}},{"$f":"LEFT(Template!B477,5)","v":""},{"$f":"VLOOKUP(C465,'Structure mapping'!F:J,5,0)","v":{"$error":"#N/A"}},{"$f":"LEFT(Template!C477,7)","v":""},{"$f":"VLOOKUP(E465,'Structure mapping'!A:E,5,0)","v":{"$error":"#N/A"}},{"$f":"LEFT(Template!D477,6)","v":""},{"$f":"VLOOKUP(G465,'Account mapping'!A:E,5,0)","v":{"$error":"#N/A"}},{"$f":"LEFT(Template!E477,2)","v":""},{"$f":"VLOOKUP(I465,'Structure mapping'!X:AB,5,0)","v":{"$error":"#N/A"}},{"$f":"LEFT(Template!F477,3)","v":""},{"$f":"VLOOKUP(K465,'Structure mapping'!AC:AG,5,0)","v":{"$error":"#N/A"}},{"$f":"LEFT(Template!G477,10)","v":""},{"$f":"VLOOKUP(M465,'Structure mapping'!AH:AL,5,0)","v":{"$error":"#N/A"}},{"$f":"LEFT(Template!H477,6)","v":""},{"$f":"VLOOKUP(O465,'Structure mapping'!AM:AQ,5,0)","v":{"$error":"#N/A"}},null,null,null,null,{"$f":"IF(Template!O477=\"\",\"\",Template!O477)","v":""},"Aug-24 pending entries",{"$f":"TEXT(Template!$B$9,\"mm/dd/yyy\")","v":"08/01/2024"},null,null,null,null,{"$f":"IF(Template!M477>0,Template!M477,-Template!N477)","v":0},null,null,null,{"$f":"VLOOKUP(G465,'Account mapping'!A:D,4,0)","v":{"$error":"#N/A"}}]
[{"$f":"LEFT(Template!A478,4)","v":""},{"$f":"VLOOKUP(A466,'Structure mapping'!K:V,7,0)","v":{"$error":"#N/A"}},{"$f":"LEFT(Template!B478,5)","v":""},{"$f":"VLOOKUP(C466,'Structure mapping'!F:J,5,0)","v":{"$error":"#N/A"}},{"$f":"LEFT(Template!C478,7)","v":""},{"$f":"VLOOKUP(E466,'Structure mapping'!A:E,5,0)","v":{"$error":"#N/A"}},{"$f":"LEFT(Template!D478,6)","v":""},{"$f":"VLOOKUP(G466,'Account mapping'!A:E,5,0)","v":{"$error":"#N/A"}},{"$f":"LEFT(Template!E478,2)","v":""},{"$f":"VLOOKUP(I466,'Structure mapping'!X:AB,5,0)","v":{"$error":"#N/A"}},{"$f":"LEFT(Template!F478,3)","v":""},{"$f":"VLOOKUP(K466,'Structure mapping'!AC:AG,5,0)","v":{"$error":"#N/A"}},{"$f":"LEFT(Template!G478,10)","v":""},{"$f":"VLOOKUP(M466,'Structure mapping'!AH:AL,5,0)","v":{"$error":"#N/A"}},{"$f":"LEFT(Template!H478,6)","v":""},{"$f":"VLOOKUP(O466,'Structure mapping'!AM:AQ,5,0)","v":{"$error":"#N/A"}},null,null,null,null,{"$f":"IF(Template!O478=\"\",\"\",Template!O478)","v":""},"Aug-24 pending entries",{"$f":"TEXT(Template!$B$9,\"mm/dd/yyy\")","v":"08/01/2024"},null,null,null,null,{"$f":"IF(Template!M478>0,Template!M478,-Template!N478)","v":0},null,null,null,{"$f":"VLOOKUP(G466,'Account mapping'!A:D,4,0)","v":{"$error":"#N/A"}}]
[{"$f":"LEFT(Template!A479,4)","v":""},{"$f":"VLOOKUP(A467,'Structure mapping'!K:V,7,0)","v":{"$error":"#N/A"}},{"$f":"LEFT(Template!B479,5)","v":""},{"$f":"VLOOKUP(C467,'Structure mapping'!F:J,5,0)","v":{"$error":"#N/A"}},{"$f":"LEFT(Template!C479,7)","v":""},{"$f":"VLOOKUP(E467,'Structure mapping'!A:E,5,0)","v":{"$error":"#N/A"}},{"$f":"LEFT(Template!D479,6)","v":""},{"$f":"VLOOKUP(G467,'Account mapping'!A:E,5,0)","v":{"$error":"#N/A"}},{"$f":"LEFT(Template!E479,2)","v":""},{"$f":"VLOOKUP(I467,'Structure mapping'!X:AB,5,0)","v":{"$error":"#N/A"}},{"$f":"LEFT(Template!F479,3)","v":""},{"$f":"VLOOKUP(K467,'Structure mapping'!AC:AG,5,0)","v":{"$error":"#N/A"}},{"$f":"LEFT(Template!G479,10)","v":""},{"$f":"VLOOKUP(M467,'Structure mapping'!AH:AL,5,0)","v":{"$error":"#N/A"}},{"$f":"LEFT(Template!H479,6)","v":""},{"$f":"VLOOKUP(O467,'Structure mapping'!AM:AQ,5,0)","v":{"$error":"#N/A"}},null,null,null,null,{"$f":"IF(Template!O479=\"\",\"\",Template!O479)","v":""},"Aug-24 pending entries",{"$f":"TEXT(Template!$B$9,\"mm/dd/yyy\")","v":"08/01/2024"},null,null,null,null,{"$f":"IF(Template!M479>0,Template!M479,-Template!N479)","v":0},null,null,null,{"$f":"VLOOKUP(G467,'Account mapping'!A:D,4,0)","v":{"$error":"#N/A"}}]
[{"$f":"LEFT(Template!A480,4)","v":""},{"$f":"VLOOKUP(A468,'Structure mapping'!K:V,7,0)","v":{"$error":"#N/A"}},{"$f":"LEFT(Template!B480,5)","v":""},{"$f":"VLOOKUP(C468,'Structure mapping'!F:J,5,0)","v":{"$error":"#N/A"}},{"$f":"LEFT(Template!C480,7)","v":""},{"$f":"VLOOKUP(E468,'Structure mapping'!A:E,5,0)","v":{"$error":"#N/A"}},{"$f":"LEFT(Template!D480,6)","v":""},{"$f":"VLOOKUP(G468,'Account mapping'!A:E,5,0)","v":{"$error":"#N/A"}},{"$f":"LEFT(Template!E480,2)","v":""},{"$f":"VLOOKUP(I468,'Structure mapping'!X:AB,5,0)","v":{"$error":"#N/A"}},{"$f":"LEFT(Template!F480,3)","v":""},{"$f":"VLOOKUP(K468,'Structure mapping'!AC:AG,5,0)","v":{"$error":"#N/A"}},{"$f":"LEFT(Template!G480,10)","v":""},{"$f":"VLOOKUP(M468,'Structure mapping'!AH:AL,5,0)","v":{"$error":"#N/A"}},{"$f":"LEFT(Template!H480,6)","v":""},{"$f":"VLOOKUP(O468,'Structure mapping'!AM:AQ,5,0)","v":{"$error":"#N/A"}},null,null,null,null,{"$f":"IF(Template!O480=\"\",\"\",Template!O480)","v":""},"Aug-24 pending entries",{"$f":"TEXT(Template!$B$9,\"mm/dd/yyy\")","v":"08/01/2024"},null,null,null,null,{"$f":"IF(Template!M480>0,Template!M480,-Template!N480)","v":0},null,null,null,{"$f":"VLOOKUP(G468,'Account mapping'!A:D,4,0)","v":{"$error":"#N/A"}}]
[{"$f":"LEFT(Template!A481,4)","v":""},{"$f":"VLOOKUP(A469,'Structure mapping'!K:V,7,0)","v":{"$error":"#N/A"}},{"$f":"LEFT(Template!B481,5)","v":""},{"$f":"VLOOKUP(C469,'Structure mapping'!F:J,5,0)","v":{"$error":"#N/A"}},{"$f":"LEFT(Template!C481,7)","v":""},{"$f":"VLOOKUP(E469,'Structure mapping'!A:E,5,0)","v":{"$error":"#N/A"}},{"$f":"LEFT(Template!D481,6)","v":""},{"$f":"VLOOKUP(G469,'Account mapping'!A:E,5,0)","v":{"$error":"#N/A"}},{"$f":"LEFT(Template!E481,2)","v":""},{"$f":"VLOOKUP(I469,'Structure mapping'!X:AB,5,0)","v":{"$error":"#N/A"}},{"$f":"LEFT(Template!F481,3)","v":""},{"$f":"VLOOKUP(K469,'Structure mapping'!AC:AG,5,0)","v":{"$error":"#N/A"}},{"$f":"LEFT(Template!G481,10)","v":""},{"$f":"VLOOKUP(M469,'Structure mapping'!AH:AL,5,0)","v":{"$error":"#N/A"}},{"$f":"LEFT(Template!H481,6)","v":""},{"$f":"VLOOKUP(O469,'Structure mapping'!AM:AQ,5,0)","v":{"$error":"#N/A"}},null,null,null,null,{"$f":"IF(Template!O481=\"\",\"\",Template!O481)","v":""},"Aug-24 pending entries",{"$f":"TEXT(Template!$B$9,\"mm/dd/yyy\")","v":"08/01/2024"},null,null,null,null,{"$f":"IF(Template!M481>0,Template!M481,-Template!N481)","v":0},null,null,null,{"$f":"VLOOKUP(G469,'Account mapping'!A:D,4,0)","v":{"$error":"#N/A"}}]
[{"$f":"LEFT(Template!A482,4)","v":""},{"$f":"VLOOKUP(A470,'Structure mapping'!K:V,7,0)","v":{"$error":"#N/A"}},{"$f":"LEFT(Template!B482,5)","v":""},{"$f":"VLOOKUP(C470,'Structure mapping'!F:J,5,0)","v":{"$error":"#N/A"}},{"$f":"LEFT(Template!C482,7)","v":""},{"$f":"VLOOKUP(E470,'Structure mapping'!A:E,5,0)","v":{"$error":"#N/A"}},{"$f":"LEFT(Template!D482,6)","v":""},{"$f":"VLOOKUP(G470,'Account mapping'!A:E,5,0)","v":{"$error":"#N/A"}},{"$f":"LEFT(Template!E482,2)","v":""},{"$f":"VLOOKUP(I470,'Structure mapping'!X:AB,5,0)","v":{"$error":"#N/A"}},{"$f":"LEFT(Template!F482,3)","v":""},{"$f":"VLOOKUP(K470,'Structure mapping'!AC:AG,5,0)","v":{"$error":"#N/A"}},{"$f":"LEFT(Template!G482,10)","v":""},{"$f":"VLOOKUP(M470,'Structure mapping'!AH:AL,5,0)","v":{"$error":"#N/A"}},{"$f":"LEFT(Template!H482,6)","v":""},{"$f":"VLOOKUP(O470,'Structure mapping'!AM:AQ,5,0)","v":{"$error":"#N/A"}},null,null,null,null,{"$f":"IF(Template!O482=\"\",\"\",Template!O482)","v":""},"Aug-24 pending entries",{"$f":"TEXT(Template!$B$9,\"mm/dd/yyy\")","v":"08/01/2024"},null,null,null,null,{"$f":"IF(Template!M482>0,Template!M482,-Template!N482)","v":0},null,null,null,{"$f":"VLOOKUP(G470,'Account mapping'!A:D,4,0)","v":{"$error":"#N/A"}}]
[{"$f":"LEFT(Template!A483,4)","v":""},{"$f":"VLOOKUP(A471,'Structure mapping'!K:V,7,0)","v":{"$error":"#N/A"}},{"$f":"LEFT(Template!B483,5)","v":""},{"$f":"VLOOKUP(C471,'Structure mapping'!F:J,5,0)","v":{"$error":"#N/A"}},{"$f":"LEFT(Template!C483,7)","v":""},{"$f":"VLOOKUP(E471,'Structure mapping'!A:E,5,0)","v":{"$error":"#N/A"}},{"$f":"LEFT(Template!D483,6)","v":""},{"$f":"VLOOKUP(G471,'Account mapping'!A:E,5,0)","v":{"$error":"#N/A"}},{"$f":"LEFT(Template!E483,2)","v":""},{"$f":"VLOOKUP(I471,'Structure mapping'!X:AB,5,0)","v":{"$error":"#N/A"}},{"$f":"LEFT(Template!F483,3)","v":""},{"$f":"VLOOKUP(K471,'Structure mapping'!AC:AG,5,0)","v":{"$error":"#N/A"}},{"$f":"LEFT(Template!G483,10)","v":""},{"$f":"VLOOKUP(M471,'Structure mapping'!AH:AL,5,0)","v":{"$error":"#N/A"}},{"$f":"LEFT(Template!H483,6)","v":""},{"$f":"VLOOKUP(O471,'Structure mapping'!AM:AQ,5,0)","v":{"$error":"#N/A"}},null,null,null,null,{"$f":"IF(Template!O483=\"\",\"\",Template!O483)","v":""},"Aug-24 pending entries",{"$f":"TEXT(Template!$B$9,\"mm/dd/yyy\")","v":"08/01/2024"},null,null,null,null,{"$f":"IF(Template!M483>0,Template!M483,-Template!N483)","v":0},null,null,null,{"$f":"VLOOKUP(G471,'Account mapping'!A:D,4,0)","v":{"$error":"#N/A"}}]
[{"$f":"LEFT(Template!A484,4)","v":""},{"$f":"VLOOKUP(A472,'Structure mapping'!K:V,7,0)","v":{"$error":"#N/A"}},{"$f":"LEFT(Template!B484,5)","v":""},{"$f":"VLOOKUP(C472,'Structure mapping'!F:J,5,0)","v":{"$error":"#N/A"}},{"$f":"LEFT(Template!C484,7)","v":""},{"$f":"VLOOKUP(E472,'Structure mapping'!A:E,5,0)","v":{"$error":"#N/A"}},{"$f":"LEFT(Template!D484,6)","v":""},{"$f":"VLOOKUP(G472,'Account mapping'!A:E,5,0)","v":{"$error":"#N/A"}},{"$f":"LEFT(Template!E484,2)","v":""},{"$f":"VLOOKUP(I472,'Structure mapping'!X:AB,5,0)","v":{"$error":"#N/A"}},{"$f":"LEFT(Template!F484,3)","v":""},{"$f":"VLOOKUP(K472,'Structure mapping'!AC:AG,5,0)","v":{"$error":"#N/A"}},{"$f":"LEFT(Template!G484,10)","v":""},{"$f":"VLOOKUP(M472,'Structure mapping'!AH:AL,5,0)","v":{"$error":"#N/A"}},{"$f":"LEFT(Template!H484,6)","v":""},{"$f":"VLOOKUP(O472,'Structure mapping'!AM:AQ,5,0)","v":{"$error":"#N/A"}},null,null,null,null,{"$f":"IF(Template!O484=\"\",\"\",Template!O484)","v":""},"Aug-24 pending entries",{"$f":"TEXT(Template!$B$9,\"mm/dd/yyy\")","v":"08/01/2024"},null,null,null,null,{"$f":"IF(Template!M484>0,Template!M484,-Template!N484)","v":0},null,null,null,{"$f":"VLOOKUP(G472,'Account mapping'!A:D,4,0)","v":{"$error":"#N/A"}}]
[{"$f":"LEFT(Template!A485,4)","v":""},{"$f":"VLOOKUP(A473,'Structure mapping'!K:V,7,0)","v":{"$error":"#N/A"}},{"$f":"LEFT(Template!B485,5)","v":""},{"$f":"VLOOKUP(C473,'Structure mapping'!F:J,5,0)","v":{"$error":"#N/A"}},{"$f":"LEFT(Template!C485,7)","v":""},{"$f":"VLOOKUP(E473,'Structure mapping'!A:E,5,0)","v":{"$error":"#N/A"}},{"$f":"LEFT(Template!D485,6)","v":""},{"$f":"VLOOKUP(G473,'Account mapping'!A:E,5,0)","v":{"$error":"#N/A"}},{"$f":"LEFT(Template!E485,2)","v":""},{"$f":"VLOOKUP(I473,'Structure mapping'!X:AB,5,0)","v":{"$error":"#N/A"}},{"$f":"LEFT(Template!F485,3)","v":""},{"$f":"VLOOKUP(K473,'Structure mapping'!AC:AG,5,0)","v":{"$error":"#N/A"}},{"$f":"LEFT(Template!G485,10)","v":""},{"$f":"VLOOKUP(M473,'Structure mapping'!AH:AL,5,0)","v":{"$error":"#N/A"}},{"$f":"LEFT(Template!H485,6)","v":""},{"$f":"VLOOKUP(O473,'Structure mapping'!AM:AQ,5,0)","v":{"$error":"#N/A"}},null,null,null,null,{"$f":"IF(Template!O485=\"\",\"\",Template!O485)","v":""},"Aug-24 pending entries",{"$f":"TEXT(Template!$B$9,\"mm/dd/yyy\")","v":"08/01/2024"},null,null,null,null,{"$f":"IF(Template!M485>0,Template!M485,-Template!N485)","v":0},null,null,null,{"$f":"VLOOKUP(G473,'Account mapping'!A:D,4,0)","v":{"$error":"#N/A"}}]
[{"$f":"LEFT(Template!A486,4)","v":""},{"$f":"VLOOKUP(A474,'Structure mapping'!K:V,7,0)","v":{"$error":"#N/A"}},{"$f":"LEFT(Template!B486,5)","v":""},{"$f":"VLOOKUP(C474,'Structure mapping'!F:J,5,0)","v":{"$error":"#N/A"}},{"$f":"LEFT(Template!C486,7)","v":""},{"$f":"VLOOKUP(E474,'Structure mapping'!A:E,5,0)","v":{"$error":"#N/A"}},{"$f":"LEFT(Template!D486,6)","v":""},{"$f":"VLOOKUP(G474,'Account mapping'!A:E,5,0)","v":{"$error":"#N/A"}},{"$f":"LEFT(Template!E486,2)","v":""},{"$f":"VLOOKUP(I474,'Structure mapping'!X:AB,5,0)","v":{"$error":"#N/A"}},{"$f":"LEFT(Template!F486,3)","v":""},{"$f":"VLOOKUP(K474,'Structure mapping'!AC:AG,5,0)","v":{"$error":"#N/A"}},{"$f":"LEFT(Template!G486,10)","v":""},{"$f":"VLOOKUP(M474,'Structure mapping'!AH:AL,5,0)","v":{"$error":"#N/A"}},{"$f":"LEFT(Template!H486,6)","v":""},{"$f":"VLOOKUP(O474,'Structure mapping'!AM:AQ,5,0)","v":{"$error":"#N/A"}},null,null,null,null,{"$f":"IF(Template!O486=\"\",\"\",Template!O486)","v":""},"Aug-24 pending entries",{"$f":"TEXT(Template!$B$9,\"mm/dd/yyy\")","v":"08/01/2024"},null,null,null,null,{"$f":"IF(Template!M486>0,Template!M486,-Template!N486)","v":0},null,null,null,{"$f":"VLOOKUP(G474,'Account mapping'!A:D,4,0)","v":{"$error":"#N/A"}}]
[{"$f":"LEFT(Template!A487,4)","v":""},{"$f":"VLOOKUP(A475,'Structure mapping'!K:V,7,0)","v":{"$error":"#N/A"}},{"$f":"LEFT(Template!B487,5)","v":""},{"$f":"VLOOKUP(C475,'Structure mapping'!F:J,5,0)","v":{"$error":"#N/A"}},{"$f":"LEFT(Template!C487,7)","v":""},{"$f":"VLOOKUP(E475,'Structure mapping'!A:E,5,0)","v":{"$error":"#N/A"}},{"$f":"LEFT(Template!D487,6)","v":""},{"$f":"VLOOKUP(G475,'Account mapping'!A:E,5,0)","v":{"$error":"#N/A"}},{"$f":"LEFT(Template!E487,2)","v":""},{"$f":"VLOOKUP(I475,'Structure mapping'!X:AB,5,0)","v":{"$error":"#N/A"}},{"$f":"LEFT(Template!F487,3)","v":""},{"$f":"VLOOKUP(K475,'Structure mapping'!AC:AG,5,0)","v":{"$error":"#N/A"}},{"$f":"LEFT(Template!G487,10)","v":""},{"$f":"VLOOKUP(M475,'Structure mapping'!AH:AL,5,0)","v":{"$error":"#N/A"}},{"$f":"LEFT(Template!H487,6)","v":""},{"$f":"VLOOKUP(O475,'Structure mapping'!AM:AQ,5,0)","v":{"$error":"#N/A"}},null,null,null,null,{"$f":"IF(Template!O487=\"\",\"\",Template!O487)","v":""},"Aug-24 pending entries",{"$f":"TEXT(Template!$B$9,\"mm/dd/yyy\")","v":"08/01/2024"},null,null,null,null,{"$f":"IF(Template!M487>0,Template!M487,-Template!N487)","v":0},null,null,null,{"$f":"VLOOKUP(G475,'Account mapping'!A:D,4,0)","v":{"$error":"#N/A"}}]
[{"$f":"LEFT(Template!A488,4)","v":""},{"$f":"VLOOKUP(A476,'Structure mapping'!K:V,7,0)","v":{"$error":"#N/A"}},{"$f":"LEFT(Template!B488,5)","v":""},{"$f":"VLOOKUP(C476,'Structure mapping'!F:J,5,0)","v":{"$error":"#N/A"}},{"$f":"LEFT(Template!C488,7)","v":""},{"$f":"VLOOKUP(E476,'Structure mapping'!A:E,5,0)","v":{"$error":"#N/A"}},{"$f":"LEFT(Template!D488,6)","v":""},{"$f":"VLOOKUP(G476,'Account mapping'!A:E,5,0)","v":{"$error":"#N/A"}},{"$f":"LEFT(Template!E488,2)","v":""},{"$f":"VLOOKUP(I476,'Structure mapping'!X:AB,5,0)","v":{"$error":"#N/A"}},{"$f":"LEFT(Template!F488,3)","v":""},{"$f":"VLOOKUP(K476,'Structure mapping'!AC:AG,5,0)","v":{"$error":"#N/A"}},{"$f":"LEFT(Template!G488,10)","v":""},{"$f":"VLOOKUP(M476,'Structure mapping'!AH:AL,5,0)","v":{"$error":"#N/A"}},{"$f":"LEFT(Template!H488,6)","v":""},{"$f":"VLOOKUP(O476,'Structure mapping'!AM:AQ,5,0)","v":{"$error":"#N/A"}},null,null,null,null,{"$f":"IF(Template!O488=\"\",\"\",Template!O488)","v":""},"Aug-24 pending entries",{"$f":"TEXT(Template!$B$9,\"mm/dd/yyy\")","v":"08/01/2024"},null,null,null,null,{"$f":"IF(Template!M488>0,Template!M488,-Template!N488)","v":0},null,null,null,{"$f":"VLOOKUP(G476,'Account mapping'!A:D,4,0)","v":{"$error":"#N/A"}}]
[{"$f":"LEFT(Template!A489,4)","v":""},{"$f":"VLOOKUP(A477,'Structure mapping'!K:V,7,0)","v":{"$error":"#N/A"}},{"$f":"LEFT(Template!B489,5)","v":""},{"$f":"VLOOKUP(C477,'Structure mapping'!F:J,5,0)","v":{"$error":"#N/A"}},{"$f":"LEFT(Template!C489,7)","v":""},{"$f":"VLOOKUP(E477,'Structure mapping'!A:E,5,0)","v":{"$error":"#N/A"}},{"$f":"LEFT(Template!D489,6)","v":""},{"$f":"VLOOKUP(G477,'Account mapping'!A:E,5,0)","v":{"$error":"#N/A"}},{"$f":"LEFT(Template!E489,2)","v":""},{"$f":"VLOOKUP(I477,'Structure mapping'!X:AB,5,0)","v":{"$error":"#N/A"}},{"$f":"LEFT(Template!F489,3)","v":""},{"$f":"VLOOKUP(K477,'Structure mapping'!AC:AG,5,0)","v":{"$error":"#N/A"}},{"$f":"LEFT(Template!G489,10)","v":""},{"$f":"VLOOKUP(M477,'Structure mapping'!AH:AL,5,0)","v":{"$error":"#N/A"}},{"$f":"LEFT(Template!H489,6)","v":""},{"$f":"VLOOKUP(O477,'Structure mapping'!AM:AQ,5,0)","v":{"$error":"#N/A"}},null,null,null,null,{"$f":"IF(Template!O489=\"\",\"\",Template!O489)","v":""},"Aug-24 pending entries",{"$f":"TEXT(Template!$B$9,\"mm/dd/yyy\")","v":"08/01/2024"},null,null,null,null,{"$f":"IF(Template!M489>0,Template!M489,-Template!N489)","v":0},null,null,null,{"$f":"VLOOKUP(G477,'Account mapping'!A:D,4,0)","v":{"$error":"#N/A"}}]
[{"$f":"LEFT(Template!A490,4)","v":""},{"$f":"VLOOKUP(A478,'Structure mapping'!K:V,7,0)","v":{"$error":"#N/A"}},{"$f":"LEFT(Template!B490,5)","v":""},{"$f":"VLOOKUP(C478,'Structure mapping'!F:J,5,0)","v":{"$error":"#N/A"}},{"$f":"LEFT(Template!C490,7)","v":""},{"$f":"VLOOKUP(E478,'Structure mapping'!A:E,5,0)","v":{"$error":"#N/A"}},{"$f":"LEFT(Template!D490,6)","v":""},{"$f":"VLOOKUP(G478,'Account mapping'!A:E,5,0)","v":{"$error":"#N/A"}},{"$f":"LEFT(Template!E490,2)","v":""},{"$f":"VLOOKUP(I478,'Structure mapping'!X:AB,5,0)","v":{"$error":"#N/A"}},{"$f":"LEFT(Template!F490,3)","v":""},{"$f":"VLOOKUP(K478,'Structure mapping'!AC:AG,5,0)","v":{"$error":"#N/A"}},{"$f":"LEFT(Template!G490,10)","v":""},{"$f":"VLOOKUP(M478,'Structure mapping'!AH:AL,5,0)","v":{"$error":"#N/A"}},{"$f":"LEFT(Template!H490,6)","v":""},{"$f":"VLOOKUP(O478,'Structure mapping'!AM:AQ,5,0)","v":{"$error":"#N/A"}},null,null,null,null,{"$f":"IF(Template!O490=\"\",\"\",Template!O490)","v":""},"Aug-24 pending entries",{"$f":"TEXT(Template!$B$9,\"mm/dd/yyy\")","v":"08/01/2024"},null,null,null,null,{"$f":"IF(Template!M490>0,Template!M490,-Template!N490)","v":0},null,null,null,{"$f":"VLOOKUP(G478,'Account mapping'!A:D,4,0)","v":{"$error":"#N/A"}}]
[{"$f":"LEFT(Template!A491,4)","v":""},{"$f":"VLOOKUP(A479,'Structure mapping'!K:V,7,0)","v":{"$error":"#N/A"}},{"$f":"LEFT(Template!B491,5)","v":""},{"$f":"VLOOKUP(C479,'Structure mapping'!F:J,5,0)","v":{"$error":"#N/A"}},{"$f":"LEFT(Template!C491,7)","v":""},{"$f":"VLOOKUP(E479,'Structure mapping'!A:E,5,0)","v":{"$error":"#N/A"}},{"$f":"LEFT(Template!D491,6)","v":""},{"$f":"VLOOKUP(G479,'Account mapping'!A:E,5,0)","v":{"$error":"#N/A"}},{"$f":"LEFT(Template!E491,2)","v":""},{"$f":"VLOOKUP(I479,'Structure mapping'!X:AB,5,0)","v":{"$error":"#N/A"}},{"$f":"LEFT(Template!F491,3)","v":""},{"$f":"VLOOKUP(K479,'Structure mapping'!AC:AG,5,0)","v":{"$error":"#N/A"}},{"$f":"LEFT(Template!G491,10)","v":""},{"$f":"VLOOKUP(M479,'Structure mapping'!AH:AL,5,0)","v":{"$error":"#N/A"}},{"$f":"LEFT(Template!H491,6)","v":""},{"$f":"VLOOKUP(O479,'Structure mapping'!AM:AQ,5,0)","v":{"$error":"#N/A"}},null,null,null,null,{"$f":"IF(Template!O491=\"\",\"\",Template!O491)","v":""},"Aug-24 pending entries",{"$f":"TEXT(Template!$B$9,\"mm/dd/yyy\")","v":"08/01/2024"},null,null,null,null,{"$f":"IF(Template!M491>0,Template!M491,-Template!N491)","v":0},null,null,null,{"$f":"VLOOKUP(G479,'Account mapping'!A:D,4,0)","v":{"$error":"#N/A"}}]
[{"$f":"LEFT(Template!A492,4)","v":""},{"$f":"VLOOKUP(A480,'Structure mapping'!K:V,7,0)","v":{"$error":"#N/A"}},{"$f":"LEFT(Template!B492,5)","v":""},{"$f":"VLOOKUP(C480,'Structure mapping'!F:J,5,0)","v":{"$error":"#N/A"}},{"$f":"LEFT(Template!C492,7)","v":""},{"$f":"VLOOKUP(E480,'Structure mapping'!A:E,5,0)","v":{"$error":"#N/A"}},{"$f":"LEFT(Template!D492,6)","v":""},{"$f":"VLOOKUP(G480,'Account mapping'!A:E,5,0)","v":{"$error":"#N/A"}},{"$f":"LEFT(Template!E492,2)","v":""},{"$f":"VLOOKUP(I480,'Structure mapping'!X:AB,5,0)","v":{"$error":"#N/A"}},{"$f":"LEFT(Template!F492,3)","v":""},{"$f":"VLOOKUP(K480,'Structure mapping'!AC:AG,5,0)","v":{"$error":"#N/A"}},{"$f":"LEFT(Template!G492,10)","v":""},{"$f":"VLOOKUP(M480,'Structure mapping'!AH:AL,5,0)","v":{"$error":"#N/A"}},{"$f":"LEFT(Template!H492,6)","v":""},{"$f":"VLOOKUP(O480,'Structure mapping'!AM:AQ,5,0)","v":{"$error":"#N/A"}},null,null,null,null,{"$f":"IF(Template!O492=\"\",\"\",Template!O492)","v":""},"Aug-24 pending entries",{"$f":"TEXT(Template!$B$9,\"mm/dd/yyy\")","v":"08/01/2024"},null,null,null,null,{"$f":"IF(Template!M492>0,Template!M492,-Template!N492)","v":0},null,null,null,{"$f":"VLOOKUP(G480,'Account mapping'!A:D,4,0)","v":{"$error":"#N/A"}}]
[{"$f":"LEFT(Template!A493,4)","v":""},{"$f":"VLOOKUP(A481,'Structure mapping'!K:V,7,0)","v":{"$error":"#N/A"}},{"$f":"LEFT(Template!B493,5)","v":""},{"$f":"VLOOKUP(C481,'Structure mapping'!F:J,5,0)","v":{"$error":"#N/A"}},{"$f":"LEFT(Template!C493,7)","v":""},{"$f":"VLOOKUP(E481,'Structure mapping'!A:E,5,0)","v":{"$error":"#N/A"}},{"$f":"LEFT(Template!D493,6)","v":""},{"$f":"VLOOKUP(G481,'Account mapping'!A:E,5,0)","v":{"$error":"#N/A"}},{"$f":"LEFT(Template!E493,2)","v":""},{"$f":"VLOOKUP(I481,'Structure mapping'!X:AB,5,0)","v":{"$error":"#N/A"}},{"$f":"LEFT(Template!F493,3)","v":""},{"$f":"VLOOKUP(K481,'Structure mapping'!AC:AG,5,0)","v":{"$error":"#N/A"}},{"$f":"LEFT(Template!G493,10)","v":""},{"$f":"VLOOKUP(M481,'Structure mapping'!AH:AL,5,0)","v":{"$error":"#N/A"}},{"$f":"LEFT(Template!H493,6)","v":""},{"$f":"VLOOKUP(O481,'Structure mapping'!AM:AQ,5,0)","v":{"$error":"#N/A"}},null,null,null,null,{"$f":"IF(Template!O493=\"\",\"\",Template!O493)","v":""},"Aug-24 pending entries",{"$f":"TEXT(Template!$B$9,\"mm/dd/yyy\")","v":"08/01/2024"},null,null,null,null,{"$f":"IF(Template!M493>0,Template!M493,-Template!N493)","v":0},null,null,null,{"$f":"VLOOKUP(G481,'Account mapping'!A:D,4,0)","v":{"$error":"#N/A"}}]
[{"$f":"LEFT(Template!A494,4)","v":""},{"$f":"VLOOKUP(A482,'Structure mapping'!K:V,7,0)","v":{"$error":"#N/A"}},{"$f":"LEFT(Template!B494,5)","v":""},{"$f":"VLOOKUP(C482,'Structure mapping'!F:J,5,0)","v":{"$error":"#N/A"}},{"$f":"LEFT(Template!C494,7)","v":""},{"$f":"VLOOKUP(E482,'Structure mapping'!A:E,5,0)","v":{"$error":"#N/A"}},{"$f":"LEFT(Template!D494,6)","v":""},{"$f":"VLOOKUP(G482,'Account mapping'!A:E,5,0)","v":{"$error":"#N/A"}},{"$f":"LEFT(Template!E494,2)","v":""},{"$f":"VLOOKUP(I482,'Structure mapping'!X:AB,5,0)","v":{"$error":"#N/A"}},{"$f":"LEFT(Template!F494,3)","v":""},{"$f":"VLOOKUP(K482,'Structure mapping'!AC:AG,5,0)","v":{"$error":"#N/A"}},{"$f":"LEFT(Template!G494,10)","v":""},{"$f":"VLOOKUP(M482,'Structure mapping'!AH:AL,5,0)","v":{"$error":"#N/A"}},{"$f":"LEFT(Template!H494,6)","v":""},{"$f":"VLOOKUP(O482,'Structure mapping'!AM:AQ,5,0)","v":{"$error":"#N/A"}},null,null,null,null,{"$f":"IF(Template!O494=\"\",\"\",Template!O494)","v":""},"Aug-24 pending entries",{"$f":"TEXT(Template!$B$9,\"mm/dd/yyy\")","v":"08/01/2024"},null,null,null,null,{"$f":"IF(Template!M494>0,Template!M494,-Template!N494)","v":0},null,null,null,{"$f":"VLOOKUP(G482,'Account mapping'!A:D,4,0)","v":{"$error":"#N/A"}}]
[{"$f":"LEFT(Template!A495,4)","v":""},{"$f":"VLOOKUP(A483,'Structure mapping'!K:V,7,0)","v":{"$error":"#N/A"}},{"$f":"LEFT(Template!B495,5)","v":""},{"$f":"VLOOKUP(C483,'Structure mapping'!F:J,5,0)","v":{"$error":"#N/A"}},{"$f":"LEFT(Template!C495,7)","v":""},{"$f":"VLOOKUP(E483,'Structure mapping'!A:E,5,0)","v":{"$error":"#N/A"}},{"$f":"LEFT(Template!D495,6)","v":""},{"$f":"VLOOKUP(G483,'Account mapping'!A:E,5,0)","v":{"$error":"#N/A"}},{"$f":"LEFT(Template!E495,2)","v":""},{"$f":"VLOOKUP(I483,'Structure mapping'!X:AB,5,0)","v":{"$error":"#N/A"}},{"$f":"LEFT(Template!F495,3)","v":""},{"$f":"VLOOKUP(K483,'Structure mapping'!AC:AG,5,0)","v":{"$error":"#N/A"}},{"$f":"LEFT(Template!G495,10)","v":""},{"$f":"VLOOKUP(M483,'Structure mapping'!AH:AL,5,0)","v":{"$error":"#N/A"}},{"$f":"LEFT(Template!H495,6)","v":""},{"$f":"VLOOKUP(O483,'Structure mapping'!AM:AQ,5,0)","v":{"$error":"#N/A"}},null,null,null,null,{"$f":"IF(Template!O495=\"\",\"\",Template!O495)","v":""},"Aug-24 pending entries",{"$f":"TEXT(Template!$B$9,\"mm/dd/yyy\")","v":"08/01/2024"},null,null,null,null,{"$f":"IF(Template!M495>0,Template!M495,-Template!N495)","v":0},null,null,null,{"$f":"VLOOKUP(G483,'Account mapping'!A:D,4,0)","v":{"$error":"#N/A"}}]
[{"$f":"LEFT(Template!A496,4)","v":""},{"$f":"VLOOKUP(A484,'Structure mapping'!K:V,7,0)","v":{"$error":"#N/A"}},{"$f":"LEFT(Template!B496,5)","v":""},{"$f":"VLOOKUP(C484,'Structure mapping'!F:J,5,0)","v":{"$error":"#N/A"}},{"$f":"LEFT(Template!C496,7)","v":""},{"$f":"VLOOKUP(E484,'Structure mapping'!A:E,5,0)","v":{"$error":"#N/A"}},{"$f":"LEFT(Template!D496,6)","v":""},{"$f":"VLOOKUP(G484,'Account mapping'!A:E,5,0)","v":{"$error":"#N/A"}},{"$f":"LEFT(Template!E496,2)","v":""},{"$f":"VLOOKUP(I484,'Structure mapping'!X:AB,5,0)","v":{"$error":"#N/A"}},{"$f":"LEFT(Template!F496,3)","v":""},{"$f":"VLOOKUP(K484,'Structure mapping'!AC:AG,5,0)","v":{"$error":"#N/A"}},{"$f":"LEFT(Template!G496,10)","v":""},{"$f":"VLOOKUP(M484,'Structure mapping'!AH:AL,5,0)","v":{"$error":"#N/A"}},{"$f":"LEFT(Template!H496,6)","v":""},{"$f":"VLOOKUP(O484,'Structure mapping'!AM:AQ,5,0)","v":{"$error":"#N/A"}},null,null,null,null,{"$f":"IF(Template!O496=\"\",\"\",Template!O496)","v":""},"Aug-24 pending entries",{"$f":"TEXT(Template!$B$9,\"mm/dd/yyy\")","v":"08/01/2024"},null,null,null,null,{"$f":"IF(Template!M496>0,Template!M496,-Template!N496)","v":0},null,null,null,{"$f":"VLOOKUP(G484,'Account mapping'!A:D,4,0)","v":{"$error":"#N/A"}}]
[{"$f":"LEFT(Template!A497,4)","v":""},{"$f":"VLOOKUP(A485,'Structure mapping'!K:V,7,0)","v":{"$error":"#N/A"}},{"$f":"LEFT(Template!B497,5)","v":""},{"$f":"VLOOKUP(C485,'Structure mapping'!F:J,5,0)","v":{"$error":"#N/A"}},{"$f":"LEFT(Template!C497,7)","v":""},{"$f":"VLOOKUP(E485,'Structure mapping'!A:E,5,0)","v":{"$error":"#N/A"}},{"$f":"LEFT(Template!D497,6)","v":""},{"$f":"VLOOKUP(G485,'Account mapping'!A:E,5,0)","v":{"$error":"#N/A"}},{"$f":"LEFT(Template!E497,2)","v":""},{"$f":"VLOOKUP(I485,'Structure mapping'!X:AB,5,0)","v":{"$error":"#N/A"}},{"$f":"LEFT(Template!F497,3)","v":""},{"$f":"VLOOKUP(K485,'Structure mapping'!AC:AG,5,0)","v":{"$error":"#N/A"}},{"$f":"LEFT(Template!G497,10)","v":""},{"$f":"VLOOKUP(M485,'Structure mapping'!AH:AL,5,0)","v":{"$error":"#N/A"}},{"$f":"LEFT(Template!H497,6)","v":""},{"$f":"VLOOKUP(O485,'Structure mapping'!AM:AQ,5,0)","v":{"$error":"#N/A"}},null,null,null,null,{"$f":"IF(Template!O497=\"\",\"\",Template!O497)","v":""},"Aug-24 pending entries",{"$f":"TEXT(Template!$B$9,\"mm/dd/yyy\")","v":"08/01/2024"},null,null,null,null,{"$f":"IF(Template!M497>0,Template!M497,-Template!N497)","v":0},null,null,null,{"$f":"VLOOKUP(G485,'Account mapping'!A:D,4,0)","v":{"$error":"#N/A"}}]
[{"$f":"LEFT(Template!A498,4)","v":""},{"$f":"VLOOKUP(A486,'Structure mapping'!K:V,7,0)","v":{"$error":"#N/A"}},{"$f":"LEFT(Template!B498,5)","v":""},{"$f":"VLOOKUP(C486,'Structure mapping'!F:J,5,0)","v":{"$error":"#N/A"}},{"$f":"LEFT(Template!C498,7)","v":""},{"$f":"VLOOKUP(E486,'Structure mapping'!A:E,5,0)","v":{"$error":"#N/A"}},{"$f":"LEFT(Template!D498,6)","v":""},{"$f":"VLOOKUP(G486,'Account mapping'!A:E,5,0)","v":{"$error":"#N/A"}},{"$f":"LEFT(Template!E498,2)","v":""},{"$f":"VLOOKUP(I486,'Structure mapping'!X:AB,5,0)","v":{"$error":"#N/A"}},{"$f":"LEFT(Template!F498,3)","v":""},{"$f":"VLOOKUP(K486,'Structure mapping'!AC:AG,5,0)","v":{"$error":"#N/A"}},{"$f":"LEFT(Template!G498,10)","v":""},{"$f":"VLOOKUP(M486,'Structure mapping'!AH:AL,5,0)","v":{"$error":"#N/A"}},{"$f":"LEFT(Template!H498,6)","v":""},{"$f":"VLOOKUP(O486,'Structure mapping'!AM:AQ,5,0)","v":{"$error":"#N/A"}},null,null,null,null,{"$f":"IF(Template!O498=\"\",\"\",Template!O498)","v":""},"Aug-24 pending entries",{"$f":"TEXT(Template!$B$9,\"mm/dd/yyy\")","v":"08/01/2024"},null,null,null,null,{"$f":"IF(Template!M498>0,Template!M498,-Template!N498)","v":0},null,null,null,{"$f":"VLOOKUP(G486,'Account mapping'!A:D,4,0)","v":{"$error":"#N/A"}}]
[{"$f":"LEFT(Template!A499,4)","v":""},{"$f":"VLOOKUP(A487,'Structure mapping'!K:V,7,0)","v":{"$error":"#N/A"}},{"$f":"LEFT(Template!B499,5)","v":""},{"$f":"VLOOKUP(C487,'Structure mapping'!F:J,5,0)","v":{"$error":"#N/A"}},{"$f":"LEFT(Template!C499,7)","v":""},{"$f":"VLOOKUP(E487,'Structure mapping'!A:E,5,0)","v":{"$error":"#N/A"}},{"$f":"LEFT(Template!D499,6)","v":""},{"$f":"VLOOKUP(G487,'Account mapping'!A:E,5,0)","v":{"$error":"#N/A"}},{"$f":"LEFT(Template!E499,2)","v":""},{"$f":"VLOOKUP(I487,'Structure mapping'!X:AB,5,0)","v":{"$error":"#N/A"}},{"$f":"LEFT(Template!F499,3)","v":""},{"$f":"VLOOKUP(K487,'Structure mapping'!AC:AG,5,0)","v":{"$error":"#N/A"}},{"$f":"LEFT(Template!G499,10)","v":""},{"$f":"VLOOKUP(M487,'Structure mapping'!AH:AL,5,0)","v":{"$error":"#N/A"}},{"$f":"LEFT(Template!H499,6)","v":""},{"$f":"VLOOKUP(O487,'Structure mapping'!AM:AQ,5,0)","v":{"$error":"#N/A"}},null,null,null,null,{"$f":"IF(Template!O499=\"\",\"\",Template!O499)","v":""},"Aug-24 pending entries",{"$f":"TEXT(Template!$B$9,\"mm/dd/yyy\")","v":"08/01/2024"},null,null,null,null,{"$f":"IF(Template!M499>0,Template!M499,-Template!N499)","v":0},null,null,null,{"$f":"VLOOKUP(G487,'Account mapping'!A:D,4,0)","v":{"$error":"#N/A"}}]
[{"$f":"LEFT(Template!A500,4)","v":""},{"$f":"VLOOKUP(A488,'Structure mapping'!K:V,7,0)","v":{"$error":"#N/A"}},{"$f":"LEFT(Template!B500,5)","v":""},{"$f":"VLOOKUP(C488,'Structure mapping'!F:J,5,0)","v":{"$error":"#N/A"}},{"$f":"LEFT(Template!C500,7)","v":""},{"$f":"VLOOKUP(E488,'Structure mapping'!A:E,5,0)","v":{"$error":"#N/A"}},{"$f":"LEFT(Template!D500,6)","v":""},{"$f":"VLOOKUP(G488,'Account mapping'!A:E,5,0)","v":{"$error":"#N/A"}},{"$f":"LEFT(Template!E500,2)","v":""},{"$f":"VLOOKUP(I488,'Structure mapping'!X:AB,5,0)","v":{"$error":"#N/A"}},{"$f":"LEFT(Template!F500,3)","v":""},{"$f":"VLOOKUP(K488,'Structure mapping'!AC:AG,5,0)","v":{"$error":"#N/A"}},{"$f":"LEFT(Template!G500,10)","v":""},{"$f":"VLOOKUP(M488,'Structure mapping'!AH:AL,5,0)","v":{"$error":"#N/A"}},{"$f":"LEFT(Template!H500,6)","v":""},{"$f":"VLOOKUP(O488,'Structure mapping'!AM:AQ,5,0)","v":{"$error":"#N/A"}},null,null,null,null,{"$f":"IF(Template!O500=\"\",\"\",Template!O500)","v":""},"Aug-24 pending entries",{"$f":"TEXT(Template!$B$9,\"mm/dd/yyy\")","v":"08/01/2024"},null,null,null,null,{"$f":"IF(Template!M500>0,Template!M500,-Template!N500)","v":0},null,null,null,{"$f":"VLOOKUP(G488,'Account mapping'!A:D,4,0)","v":{"$error":"#N/A"}}]
[{"$f":"LEFT(Template!A501,4)","v":""},{"$f":"VLOOKUP(A489,'Structure mapping'!K:V,7,0)","v":{"$error":"#N/A"}},{"$f":"LEFT(Template!B501,5)","v":""},{"$f":"VLOOKUP(C489,'Structure mapping'!F:J,5,0)","v":{"$error":"#N/A"}},{"$f":"LEFT(Template!C501,7)","v":""},{"$f":"VLOOKUP(E489,'Structure mapping'!A:E,5,0)","v":{"$error":"#N/A"}},{"$f":"LEFT(Template!D501,6)","v":""},{"$f":"VLOOKUP(G489,'Account mapping'!A:E,5,0)","v":{"$error":"#N/A"}},{"$f":"LEFT(Template!E501,2)","v":""},{"$f":"VLOOKUP(I489,'Structure mapping'!X:AB,5,0)","v":{"$error":"#N/A"}},{"$f":"LEFT(Template!F501,3)","v":""},{"$f":"VLOOKUP(K489,'Structure mapping'!AC:AG,5,0)","v":{"$error":"#N/A"}},{"$f":"LEFT(Template!G501,10)","v":""},{"$f":"VLOOKUP(M489,'Structure mapping'!AH:AL,5,0)","v":{"$error":"#N/A"}},{"$f":"LEFT(Template!H501,6)","v":""},{"$f":"VLOOKUP(O489,'Structure mapping'!AM:AQ,5,0)","v":{"$error":"#N/A"}},null,null,null,null,{"$f":"IF(Template!O501=\"\",\"\",Template!O501)","v":""},"Aug-24 pending entries",{"$f":"TEXT(Template!$B$9,\"mm/dd/yyy\")","v":"08/01/2024"},null,null,null,null,{"$f":"IF(Template!M501>0,Template!M501,-Template!N501)","v":0},null,null,null,{"$f":"VLOOKUP(G489,'Account mapping'!A:D,4,0)","v":{"$error":"#N/A"}}]
[{"$f":"LEFT(Template!A502,4)","v":""},{"$f":"VLOOKUP(A490,'Structure mapping'!K:V,7,0)","v":{"$error":"#N/A"}},{"$f":"LEFT(Template!B502,5)","v":""},{"$f":"VLOOKUP(C490,'Structure mapping'!F:J,5,0)","v":{"$error":"#N/A"}},{"$f":"LEFT(Template!C502,7)","v":""},{"$f":"VLOOKUP(E490,'Structure mapping'!A:E,5,0)","v":{"$error":"#N/A"}},{"$f":"LEFT(Template!D502,6)","v":""},{"$f":"VLOOKUP(G490,'Account mapping'!A:E,5,0)","v":{"$error":"#N/A"}},{"$f":"LEFT(Template!E502,2)","v":""},{"$f":"VLOOKUP(I490,'Structure mapping'!X:AB,5,0)","v":{"$error":"#N/A"}},{"$f":"LEFT(Template!F502,3)","v":""},{"$f":"VLOOKUP(K490,'Structure mapping'!AC:AG,5,0)","v":{"$error":"#N/A"}},{"$f":"LEFT(Template!G502,10)","v":""},{"$f":"VLOOKUP(M490,'Structure mapping'!AH:AL,5,0)","v":{"$error":"#N/A"}},{"$f":"LEFT(Template!H502,6)","v":""},{"$f":"VLOOKUP(O490,'Structure mapping'!AM:AQ,5,0)","v":{"$error":"#N/A"}},null,null,null,null,{"$f":"IF(Template!O502=\"\",\"\",Template!O502)","v":""},"Aug-24 pending entries",{"$f":"TEXT(Template!$B$9,\"mm/dd/yyy\")","v":"08/01/2024"},null,null,null,null,{"$f":"IF(Template!M502>0,Template!M502,-Template!N502)","v":0},null,null,null,{"$f":"VLOOKUP(G490,'Account mapping'!A:D,4,0)","v":{"$error":"#N/A"}}]
[{"$f":"LEFT(Template!A503,4)","v":""},{"$f":"VLOOKUP(A491,'Structure mapping'!K:V,7,0)","v":{"$error":"#N/A"}},{"$f":"LEFT(Template!B503,5)","v":""},{"$f":"VLOOKUP(C491,'Structure mapping'!F:J,5,0)","v":{"$error":"#N/A"}},{"$f":"LEFT(Template!C503,7)","v":""},{"$f":"VLOOKUP(E491,'Structure mapping'!A:E,5,0)","v":{"$error":"#N/A"}},{"$f":"LEFT(Template!D503,6)","v":""},{"$f":"VLOOKUP(G491,'Account mapping'!A:E,5,0)","v":{"$error":"#N/A"}},{"$f":"LEFT(Template!E503,2)","v":""},{"$f":"VLOOKUP(I491,'Structure mapping'!X:AB,5,0)","v":{"$error":"#N/A"}},{"$f":"LEFT(Template!F503,3)","v":""},{"$f":"VLOOKUP(K491,'Structure mapping'!AC:AG,5,0)","v":{"$error":"#N/A"}},{"$f":"LEFT(Template!G503,10)","v":""},{"$f":"VLOOKUP(M491,'Structure mapping'!AH:AL,5,0)","v":{"$error":"#N/A"}},{"$f":"LEFT(Template!H503,6)","v":""},{"$f":"VLOOKUP(O491,'Structure mapping'!AM:AQ,5,0)","v":{"$error":"#N/A"}},null,null,null,null,{"$f":"IF(Template!O503=\"\",\"\",Template!O503)","v":""},"Aug-24 pending entries",{"$f":"TEXT(Template!$B$9,\"mm/dd/yyy\")","v":"08/01/2024"},null,null,null,null,{"$f":"IF(Template!M503>0,Template!M503,-Template!N503)","v":0},null,null,null,{"$f":"VLOOKUP(G491,'Account mapping'!A:D,4,0)","v":{"$error":"#N/A"}}]
[{"$f":"LEFT(Template!A504,4)","v":""},{"$f":"VLOOKUP(A492,'Structure mapping'!K:V,7,0)","v":{"$error":"#N/A"}},{"$f":"LEFT(Template!B504,5)","v":""},{"$f":"VLOOKUP(C492,'Structure mapping'!F:J,5,0)","v":{"$error":"#N/A"}},{"$f":"LEFT(Template!C504,7)","v":""},{"$f":"VLOOKUP(E492,'Structure mapping'!A:E,5,0)","v":{"$error":"#N/A"}},{"$f":"LEFT(Template!D504,6)","v":""},{"$f":"VLOOKUP(G492,'Account mapping'!A:E,5,0)","v":{"$error":"#N/A"}},{"$f":"LEFT(Template!E504,2)","v":""},{"$f":"VLOOKUP(I492,'Structure mapping'!X:AB,5,0)","v":{"$error":"#N/A"}},{"$f":"LEFT(Template!F504,3)","v":""},{"$f":"VLOOKUP(K492,'Structure mapping'!AC:AG,5,0)","v":{"$error":"#N/A"}},{"$f":"LEFT(Template!G504,10)","v":""},{"$f":"VLOOKUP(M492,'Structure mapping'!AH:AL,5,0)","v":{"$error":"#N/A"}},{"$f":"LEFT(Template!H504,6)","v":""},{"$f":"VLOOKUP(O492,'Structure mapping'!AM:AQ,5,0)","v":{"$error":"#N/A"}},null,null,null,null,{"$f":"IF(Template!O504=\"\",\"\",Template!O504)","v":""},"Aug-24 pending entries",{"$f":"TEXT(Template!$B$9,\"mm/dd/yyy\")","v":"08/01/2024"},null,null,null,null,{"$f":"IF(Template!M504>0,Template!M504,-Template!N504)","v":0},null,null,null,{"$f":"VLOOKUP(G492,'Account mapping'!A:D,4,0)","v":{"$error":"#N/A"}}]
[{"$f":"LEFT(Template!A505,4)","v":""},{"$f":"VLOOKUP(A493,'Structure mapping'!K:V,7,0)","v":{"$error":"#N/A"}},{"$f":"LEFT(Template!B505,5)","v":""},{"$f":"VLOOKUP(C493,'Structure mapping'!F:J,5,0)","v":{"$error":"#N/A"}},{"$f":"LEFT(Template!C505,7)","v":""},{"$f":"VLOOKUP(E493,'Structure mapping'!A:E,5,0)","v":{"$error":"#N/A"}},{"$f":"LEFT(Template!D505,6)","v":""},{"$f":"VLOOKUP(G493,'Account mapping'!A:E,5,0)","v":{"$error":"#N/A"}},{"$f":"LEFT(Template!E505,2)","v":""},{"$f":"VLOOKUP(I493,'Structure mapping'!X:AB,5,0)","v":{"$error":"#N/A"}},{"$f":"LEFT(Template!F505,3)","v":""},{"$f":"VLOOKUP(K493,'Structure mapping'!AC:AG,5,0)","v":{"$error":"#N/A"}},{"$f":"LEFT(Template!G505,10)","v":""},{"$f":"VLOOKUP(M493,'Structure mapping'!AH:AL,5,0)","v":{"$error":"#N/A"}},{"$f":"LEFT(Template!H505,6)","v":""},{"$f":"VLOOKUP(O493,'Structure mapping'!AM:AQ,5,0)","v":{"$error":"#N/A"}},null,null,null,null,{"$f":"IF(Template!O505=\"\",\"\",Template!O505)","v":""},"Aug-24 pending entries",{"$f":"TEXT(Template!$B$9,\"mm/dd/yyy\")","v":"08/01/2024"},null,null,null,null,{"$f":"IF(Template!M505>0,Template!M505,-Template!N505)","v":0},null,null,null,{"$f":"VLOOKUP(G493,'Account mapping'!A:D,4,0)","v":{"$error":"#N/A"}}]
[{"$f":"LEFT(Template!A506,4)","v":""},{"$f":"VLOOKUP(A494,'Structure mapping'!K:V,7,0)","v":{"$error":"#N/A"}},{"$f":"LEFT(Template!B506,5)","v":""},{"$f":"VLOOKUP(C494,'Structure mapping'!F:J,5,0)","v":{"$error":"#N/A"}},{"$f":"LEFT(Template!C506,7)","v":""},{"$f":"VLOOKUP(E494,'Structure mapping'!A:E,5,0)","v":{"$error":"#N/A"}},{"$f":"LEFT(Template!D506,6)","v":""},{"$f":"VLOOKUP(G494,'Account mapping'!A:E,5,0)","v":{"$error":"#N/A"}},{"$f":"LEFT(Template!E506,2)","v":""},{"$f":"VLOOKUP(I494,'Structure mapping'!X:AB,5,0)","v":{"$error":"#N/A"}},{"$f":"LEFT(Template!F506,3)","v":""},{"$f":"VLOOKUP(K494,'Structure mapping'!AC:AG,5,0)","v":{"$error":"#N/A"}},{"$f":"LEFT(Template!G506,10)","v":""},{"$f":"VLOOKUP(M494,'Structure mapping'!AH:AL,5,0)","v":{"$error":"#N/A"}},{"$f":"LEFT(Template!H506,6)","v":""},{"$f":"VLOOKUP(O494,'Structure mapping'!AM:AQ,5,0)","v":{"$error":"#N/A"}},null,null,null,null,{"$f":"IF(Template!O506=\"\",\"\",Template!O506)","v":""},"Aug-24 pending entries",{"$f":"TEXT(Template!$B$9,\"mm/dd/yyy\")","v":"08/01/2024"},null,null,null,null,{"$f":"IF(Template!M506>0,Template!M506,-Template!N506)","v":0},null,null,null,{"$f":"VLOOKUP(G494,'Account mapping'!A:D,4,0)","v":{"$error":"#N/A"}}]
[{"$f":"LEFT(Template!A507,4)","v":""},{"$f":"VLOOKUP(A495,'Structure mapping'!K:V,7,0)","v":{"$error":"#N/A"}},{"$f":"LEFT(Template!B507,5)","v":""},{"$f":"VLOOKUP(C495,'Structure mapping'!F:J,5,0)","v":{"$error":"#N/A"}},{"$f":"LEFT(Template!C507,7)","v":""},{"$f":"VLOOKUP(E495,'Structure mapping'!A:E,5,0)","v":{"$error":"#N/A"}},{"$f":"LEFT(Template!D507,6)","v":""},{"$f":"VLOOKUP(G495,'Account mapping'!A:E,5,0)","v":{"$error":"#N/A"}},{"$f":"LEFT(Template!E507,2)","v":""},{"$f":"VLOOKUP(I495,'Structure mapping'!X:AB,5,0)","v":{"$error":"#N/A"}},{"$f":"LEFT(Template!F507,3)","v":""},{"$f":"VLOOKUP(K495,'Structure mapping'!AC:AG,5,0)","v":{"$error":"#N/A"}},{"$f":"LEFT(Template!G507,10)","v":""},{"$f":"VLOOKUP(M495,'Structure mapping'!AH:AL,5,0)","v":{"$error":"#N/A"}},{"$f":"LEFT(Template!H507,6)","v":""},{"$f":"VLOOKUP(O495,'Structure mapping'!AM:AQ,5,0)","v":{"$error":"#N/A"}},null,null,null,null,{"$f":"IF(Template!O507=\"\",\"\",Template!O507)","v":""},"Aug-24 pending entries",{"$f":"TEXT(Template!$B$9,\"mm/dd/yyy\")","v":"08/01/2024"},null,null,null,null,{"$f":"IF(Template!M507>0,Template!M507,-Template!N507)","v":0},null,null,null,{"$f":"VLOOKUP(G495,'Account mapping'!A:D,4,0)","v":{"$error":"#N/A"}}]
[{"$f":"LEFT(Template!A508,4)","v":""},{"$f":"VLOOKUP(A496,'Structure mapping'!K:V,7,0)","v":{"$error":"#N/A"}},{"$f":"LEFT(Template!B508,5)","v":""},{"$f":"VLOOKUP(C496,'Structure mapping'!F:J,5,0)","v":{"$error":"#N/A"}},{"$f":"LEFT(Template!C508,7)","v":""},{"$f":"VLOOKUP(E496,'Structure mapping'!A:E,5,0)","v":{"$error":"#N/A"}},{"$f":"LEFT(Template!D508,6)","v":""},{"$f":"VLOOKUP(G496,'Account mapping'!A:E,5,0)","v":{"$error":"#N/A"}},{"$f":"LEFT(Template!E508,2)","v":""},{"$f":"VLOOKUP(I496,'Structure mapping'!X:AB,5,0)","v":{"$error":"#N/A"}},{"$f":"LEFT(Template!F508,3)","v":""},{"$f":"VLOOKUP(K496,'Structure mapping'!AC:AG,5,0)","v":{"$error":"#N/A"}},{"$f":"LEFT(Template!G508,10)","v":""},{"$f":"VLOOKUP(M496,'Structure mapping'!AH:AL,5,0)","v":{"$error":"#N/A"}},{"$f":"LEFT(Template!H508,6)","v":""},{"$f":"VLOOKUP(O496,'Structure mapping'!AM:AQ,5,0)","v":{"$error":"#N/A"}},null,null,null,null,{"$f":"IF(Template!O508=\"\",\"\",Template!O508)","v":""},"Aug-24 pending entries",{"$f":"TEXT(Template!$B$9,\"mm/dd/yyy\")","v":"08/01/2024"},null,null,null,null,{"$f":"IF(Template!M508>0,Template!M508,-Template!N508)","v":0},null,null,null,{"$f":"VLOOKUP(G496,'Account mapping'!A:D,4,0)","v":{"$error":"#N/A"}}]
[{"$f":"LEFT(Template!A509,4)","v":""},{"$f":"VLOOKUP(A497,'Structure mapping'!K:V,7,0)","v":{"$error":"#N/A"}},{"$f":"LEFT(Template!B509,5)","v":""},{"$f":"VLOOKUP(C497,'Structure mapping'!F:J,5,0)","v":{"$error":"#N/A"}},{"$f":"LEFT(Template!C509,7)","v":""},{"$f":"VLOOKUP(E497,'Structure mapping'!A:E,5,0)","v":{"$error":"#N/A"}},{"$f":"LEFT(Template!D509,6)","v":""},{"$f":"VLOOKUP(G497,'Account mapping'!A:E,5,0)","v":{"$error":"#N/A"}},{"$f":"LEFT(Template!E509,2)","v":""},{"$f":"VLOOKUP(I497,'Structure mapping'!X:AB,5,0)","v":{"$error":"#N/A"}},{"$f":"LEFT(Template!F509,3)","v":""},{"$f":"VLOOKUP(K497,'Structure mapping'!AC:AG,5,0)","v":{"$error":"#N/A"}},{"$f":"LEFT(Template!G509,10)","v":""},{"$f":"VLOOKUP(M497,'Structure mapping'!AH:AL,5,0)","v":{"$error":"#N/A"}},{"$f":"LEFT(Template!H509,6)","v":""},{"$f":"VLOOKUP(O497,'Structure mapping'!AM:AQ,5,0)","v":{"$error":"#N/A"}},null,null,null,null,{"$f":"IF(Template!O509=\"\",\"\",Template!O509)","v":""},"Aug-24 pending entries",{"$f":"TEXT(Template!$B$9,\"mm/dd/yyy\")","v":"08/01/2024"},null,null,null,null,{"$f":"IF(Template!M509>0,Template!M509,-Template!N509)","v":0},null,null,null,{"$f":"VLOOKUP(G497,'Account mapping'!A:D,4,0)","v":{"$error":"#N/A"}}]
[{"$f":"LEFT(Template!A510,4)","v":""},{"$f":"VLOOKUP(A498,'Structure mapping'!K:V,7,0)","v":{"$error":"#N/A"}},{"$f":"LEFT(Template!B510,5)","v":""},{"$f":"VLOOKUP(C498,'Structure mapping'!F:J,5,0)","v":{"$error":"#N/A"}},{"$f":"LEFT(Template!C510,7)","v":""},{"$f":"VLOOKUP(E498,'Structure mapping'!A:E,5,0)","v":{"$error":"#N/A"}},{"$f":"LEFT(Template!D510,6)","v":""},{"$f":"VLOOKUP(G498,'Account mapping'!A:E,5,0)","v":{"$error":"#N/A"}},{"$f":"LEFT(Template!E510,2)","v":""},{"$f":"VLOOKUP(I498,'Structure mapping'!X:AB,5,0)","v":{"$error":"#N/A"}},{"$f":"LEFT(Template!F510,3)","v":""},{"$f":"VLOOKUP(K498,'Structure mapping'!AC:AG,5,0)","v":{"$error":"#N/A"}},{"$f":"LEFT(Template!G510,10)","v":""},{"$f":"VLOOKUP(M498,'Structure mapping'!AH:AL,5,0)","v":{"$error":"#N/A"}},{"$f":"LEFT(Template!H510,6)","v":""},{"$f":"VLOOKUP(O498,'Structure mapping'!AM:AQ,5,0)","v":{"$error":"#N/A"}},null,null,null,null,{"$f":"IF(Template!O510=\"\",\"\",Template!O510)","v":""},"Aug-24 pending entries",{"$f":"TEXT(Template!$B$9,\"mm/dd/yyy\")","v":"08/01/2024"},null,null,null,null,{"$f":"IF(Template!M510>0,Template!M510,-Template!N510)","v":0},null,null,null,{"$f":"VLOOKUP(G498,'Account mapping'!A:D,4,0)","v":{"$error":"#N/A"}}]
[{"$f":"LEFT(Template!A511,4)","v":""},{"$f":"VLOOKUP(A499,'Structure mapping'!K:V,7,0)","v":{"$error":"#N/A"}},{"$f":"LEFT(Template!B511,5)","v":""},{"$f":"VLOOKUP(C499,'Structure mapping'!F:J,5,0)","v":{"$error":"#N/A"}},{"$f":"LEFT(Template!C511,7)","v":""},{"$f":"VLOOKUP(E499,'Structure mapping'!A:E,5,0)","v":{"$error":"#N/A"}},{"$f":"LEFT(Template!D511,6)","v":""},{"$f":"VLOOKUP(G499,'Account mapping'!A:E,5,0)","v":{"$error":"#N/A"}},{"$f":"LEFT(Template!E511,2)","v":""},{"$f":"VLOOKUP(I499,'Structure mapping'!X:AB,5,0)","v":{"$error":"#N/A"}},{"$f":"LEFT(Template!F511,3)","v":""},{"$f":"VLOOKUP(K499,'Structure mapping'!AC:AG,5,0)","v":{"$error":"#N/A"}},{"$f":"LEFT(Template!G511,10)","v":""},{"$f":"VLOOKUP(M499,'Structure mapping'!AH:AL,5,0)","v":{"$error":"#N/A"}},{"$f":"LEFT(Template!H511,6)","v":""},{"$f":"VLOOKUP(O499,'Structure mapping'!AM:AQ,5,0)","v":{"$error":"#N/A"}},null,null,null,null,{"$f":"IF(Template!O511=\"\",\"\",Template!O511)","v":""},"Aug-24 pending entries",{"$f":"TEXT(Template!$B$9,\"mm/dd/yyy\")","v":"08/01/2024"},null,null,null,null,{"$f":"IF(Template!M511>0,Template!M511,-Template!N511)","v":0},null,null,null,{"$f":"VLOOKUP(G499,'Account mapping'!A:D,4,0)","v":{"$error":"#N/A"}}]
[{"$f":"LEFT(Template!A512,4)","v":""},{"$f":"VLOOKUP(A500,'Structure mapping'!K:V,7,0)","v":{"$error":"#N/A"}},{"$f":"LEFT(Template!B512,5)","v":""},{"$f":"VLOOKUP(C500,'Structure mapping'!F:J,5,0)","v":{"$error":"#N/A"}},{"$f":"LEFT(Template!C512,7)","v":""},{"$f":"VLOOKUP(E500,'Structure mapping'!A:E,5,0)","v":{"$error":"#N/A"}},{"$f":"LEFT(Template!D512,6)","v":""},{"$f":"VLOOKUP(G500,'Account mapping'!A:E,5,0)","v":{"$error":"#N/A"}},{"$f":"LEFT(Template!E512,2)","v":""},{"$f":"VLOOKUP(I500,'Structure mapping'!X:AB,5,0)","v":{"$error":"#N/A"}},{"$f":"LEFT(Template!F512,3)","v":""},{"$f":"VLOOKUP(K500,'Structure mapping'!AC:AG,5,0)","v":{"$error":"#N/A"}},{"$f":"LEFT(Template!G512,10)","v":""},{"$f":"VLOOKUP(M500,'Structure mapping'!AH:AL,5,0)","v":{"$error":"#N/A"}},{"$f":"LEFT(Template!H512,6)","v":""},{"$f":"VLOOKUP(O500,'Structure mapping'!AM:AQ,5,0)","v":{"$error":"#N/A"}},null,null,null,null,{"$f":"IF(Template!O512=\"\",\"\",Template!O512)","v":""},"Aug-24 pending entries",{"$f":"TEXT(Template!$B$9,\"mm/dd/yyy\")","v":"08/01/2024"},null,null,null,null,{"$f":"IF(Template!M512>0,Template!M512,-Template!N512)","v":0},null,null,null,{"$f":"VLOOKUP(G500,'Account mapping'!A:D,4,0)","v":{"$error":"#N/A"}}]
[{"$f":"LEFT(Template!A513,4)","v":""},{"$f":"VLOOKUP(A501,'Structure mapping'!K:V,7,0)","v":{"$error":"#N/A"}},{"$f":"LEFT(Template!B513,5)","v":""},{"$f":"VLOOKUP(C501,'Structure mapping'!F:J,5,0)","v":{"$error":"#N/A"}},{"$f":"LEFT(Template!C513,7)","v":""},{"$f":"VLOOKUP(E501,'Structure mapping'!A:E,5,0)","v":{"$error":"#N/A"}},{"$f":"LEFT(Template!D513,6)","v":""},{"$f":"VLOOKUP(G501,'Account mapping'!A:E,5,0)","v":{"$error":"#N/A"}},{"$f":"LEFT(Template!E513,2)","v":""},{"$f":"VLOOKUP(I501,'Structure mapping'!X:AB,5,0)","v":{"$error":"#N/A"}},{"$f":"LEFT(Template!F513,3)","v":""},{"$f":"VLOOKUP(K501,'Structure mapping'!AC:AG,5,0)","v":{"$error":"#N/A"}},{"$f":"LEFT(Template!G513,10)","v":""},{"$f":"VLOOKUP(M501,'Structure mapping'!AH:AL,5,0)","v":{"$error":"#N/A"}},{"$f":"LEFT(Template!H513,6)","v":""},{"$f":"VLOOKUP(O501,'Structure mapping'!AM:AQ,5,0)","v":{"$error":"#N/A"}},null,null,null,null,{"$f":"IF(Template!O513=\"\",\"\",Template!O513)","v":""},"Aug-24 pending entries",{"$f":"TEXT(Template!$B$9,\"mm/dd/yyy\")","v":"08/01/2024"},null,null,null,null,{"$f":"IF(Template!M513>0,Template!M513,-Template!N513)","v":0},null,null,null,{"$f":"VLOOKUP(G501,'Account mapping'!A:D,4,0)","v":{"$error":"#N/A"}}]
[{"$f":"LEFT(Template!A514,4)","v":""},{"$f":"VLOOKUP(A502,'Structure mapping'!K:V,7,0)","v":{"$error":"#N/A"}},{"$f":"LEFT(Template!B514,5)","v":""},{"$f":"VLOOKUP(C502,'Structure mapping'!F:J,5,0)","v":{"$error":"#N/A"}},{"$f":"LEFT(Template!C514,7)","v":""},{"$f":"VLOOKUP(E502,'Structure mapping'!A:E,5,0)","v":{"$error":"#N/A"}},{"$f":"LEFT(Template!D514,6)","v":""},{"$f":"VLOOKUP(G502,'Account mapping'!A:E,5,0)","v":{"$error":"#N/A"}},{"$f":"LEFT(Template!E514,2)","v":""},{"$f":"VLOOKUP(I502,'Structure mapping'!X:AB,5,0)","v":{"$error":"#N/A"}},{"$f":"LEFT(Template!F514,3)","v":""},{"$f":"VLOOKUP(K502,'Structure mapping'!AC:AG,5,0)","v":{"$error":"#N/A"}},{"$f":"LEFT(Template!G514,10)","v":""},{"$f":"VLOOKUP(M502,'Structure mapping'!AH:AL,5,0)","v":{"$error":"#N/A"}},{"$f":"LEFT(Template!H514,6)","v":""},{"$f":"VLOOKUP(O502,'Structure mapping'!AM:AQ,5,0)","v":{"$error":"#N/A"}},null,null,null,null,{"$f":"IF(Template!O514=\"\",\"\",Template!O514)","v":""},"Aug-24 pending entries",{"$f":"TEXT(Template!$B$9,\"mm/dd/yyy\")","v":"08/01/2024"},null,null,null,null,{"$f":"IF(Template!M514>0,Template!M514,-Template!N514)","v":0},null,null,null,{"$f":"VLOOKUP(G502,'Account mapping'!A:D,4,0)","v":{"$error":"#N/A"}}]
[{"$f":"LEFT(Template!A515,4)","v":""},{"$f":"VLOOKUP(A503,'Structure mapping'!K:V,7,0)","v":{"$error":"#N/A"}},{"$f":"LEFT(Template!B515,5)","v":""},{"$f":"VLOOKUP(C503,'Structure mapping'!F:J,5,0)","v":{"$error":"#N/A"}},{"$f":"LEFT(Template!C515,7)","v":""},{"$f":"VLOOKUP(E503,'Structure mapping'!A:E,5,0)","v":{"$error":"#N/A"}},{"$f":"LEFT(Template!D515,6)","v":""},{"$f":"VLOOKUP(G503,'Account mapping'!A:E,5,0)","v":{"$error":"#N/A"}},{"$f":"LEFT(Template!E515,2)","v":""},{"$f":"VLOOKUP(I503,'Structure mapping'!X:AB,5,0)","v":{"$error":"#N/A"}},{"$f":"LEFT(Template!F515,3)","v":""},{"$f":"VLOOKUP(K503,'Structure mapping'!AC:AG,5,0)","v":{"$error":"#N/A"}},{"$f":"LEFT(Template!G515,10)","v":""},{"$f":"VLOOKUP(M503,'Structure mapping'!AH:AL,5,0)","v":{"$error":"#N/A"}},{"$f":"LEFT(Template!H515,6)","v":""},{"$f":"VLOOKUP(O503,'Structure mapping'!AM:AQ,5,0)","v":{"$error":"#N/A"}},null,null,null,null,{"$f":"IF(Template!O515=\"\",\"\",Template!O515)","v":""},"Aug-24 pending entries",{"$f":"TEXT(Template!$B$9,\"mm/dd/yyy\")","v":"08/01/2024"},null,null,null,null,{"$f":"IF(Template!M515>0,Template!M515,-Template!N515)","v":0},null,null,null,{"$f":"VLOOKUP(G503,'Account mapping'!A:D,4,0)","v":{"$error":"#N/A"}}]
[{"$f":"LEFT(Template!A516,4)","v":""},{"$f":"VLOOKUP(A504,'Structure mapping'!K:V,7,0)","v":{"$error":"#N/A"}},{"$f":"LEFT(Template!B516,5)","v":""},{"$f":"VLOOKUP(C504,'Structure mapping'!F:J,5,0)","v":{"$error":"#N/A"}},{"$f":"LEFT(Template!C516,7)","v":""},{"$f":"VLOOKUP(E504,'Structure mapping'!A:E,5,0)","v":{"$error":"#N/A"}},{"$f":"LEFT(Template!D516,6)","v":""},{"$f":"VLOOKUP(G504,'Account mapping'!A:E,5,0)","v":{"$error":"#N/A"}},{"$f":"LEFT(Template!E516,2)","v":""},{"$f":"VLOOKUP(I504,'Structure mapping'!X:AB,5,0)","v":{"$error":"#N/A"}},{"$f":"LEFT(Template!F516,3)","v":""},{"$f":"VLOOKUP(K504,'Structure mapping'!AC:AG,5,0)","v":{"$error":"#N/A"}},{"$f":"LEFT(Template!G516,10)","v":""},{"$f":"VLOOKUP(M504,'Structure mapping'!AH:AL,5,0)","v":{"$error":"#N/A"}},{"$f":"LEFT(Template!H516,6)","v":""},{"$f":"VLOOKUP(O504,'Structure mapping'!AM:AQ,5,0)","v":{"$error":"#N/A"}},null,null,null,null,{"$f":"IF(Template!O516=\"\",\"\",Template!O516)","v":""},"Aug-24 pending entries",{"$f":"TEXT(Template!$B$9,\"mm/dd/yyy\")","v":"08/01/2024"},null,null,null,null,{"$f":"IF(Template!M516>0,Template!M516,-Template!N516)","v":0},null,null,null,{"$f":"VLOOKUP(G504,'Account mapping'!A:D,4,0)","v":{"$error":"#N/A"}}]
[{"$f":"LEFT(Template!A517,4)","v":""},{"$f":"VLOOKUP(A505,'Structure mapping'!K:V,7,0)","v":{"$error":"#N/A"}},{"$f":"LEFT(Template!B517,5)","v":""},{"$f":"VLOOKUP(C505,'Structure mapping'!F:J,5,0)","v":{"$error":"#N/A"}},{"$f":"LEFT(Template!C517,7)","v":""},{"$f":"VLOOKUP(E505,'Structure mapping'!A:E,5,0)","v":{"$error":"#N/A"}},{"$f":"LEFT(Template!D517,6)","v":""},{"$f":"VLOOKUP(G505,'Account mapping'!A:E,5,0)","v":{"$error":"#N/A"}},{"$f":"LEFT(Template!E517,2)","v":""},{"$f":"VLOOKUP(I505,'Structure mapping'!X:AB,5,0)","v":{"$error":"#N/A"}},{"$f":"LEFT(Template!F517,3)","v":""},{"$f":"VLOOKUP(K505,'Structure mapping'!AC:AG,5,0)","v":{"$error":"#N/A"}},{"$f":"LEFT(Template!G517,10)","v":""},{"$f":"VLOOKUP(M505,'Structure mapping'!AH:AL,5,0)","v":{"$error":"#N/A"}},{"$f":"LEFT(Template!H517,6)","v":""},{"$f":"VLOOKUP(O505,'Structure mapping'!AM:AQ,5,0)","v":{"$error":"#N/A"}},null,null,null,null,{"$f":"IF(Template!O517=\"\",\"\",Template!O517)","v":""},"Aug-24 pending entries",{"$f":"TEXT(Template!$B$9,\"mm/dd/yyy\")","v":"08/01/2024"},null,null,null,null,{"$f":"IF(Template!M517>0,Template!M517,-Template!N517)","v":0},null,null,null,{"$f":"VLOOKUP(G505,'Account mapping'!A:D,4,0)","v":{"$error":"#N/A"}}]
[{"$f":"LEFT(Template!A518,4)","v":""},{"$f":"VLOOKUP(A506,'Structure mapping'!K:V,7,0)","v":{"$error":"#N/A"}},{"$f":"LEFT(Template!B518,5)","v":""},{"$f":"VLOOKUP(C506,'Structure mapping'!F:J,5,0)","v":{"$error":"#N/A"}},{"$f":"LEFT(Template!C518,7)","v":""},{"$f":"VLOOKUP(E506,'Structure mapping'!A:E,5,0)","v":{"$error":"#N/A"}},{"$f":"LEFT(Template!D518,6)","v":""},{"$f":"VLOOKUP(G506,'Account mapping'!A:E,5,0)","v":{"$error":"#N/A"}},{"$f":"LEFT(Template!E518,2)","v":""},{"$f":"VLOOKUP(I506,'Structure mapping'!X:AB,5,0)","v":{"$error":"#N/A"}},{"$f":"LEFT(Template!F518,3)","v":""},{"$f":"VLOOKUP(K506,'Structure mapping'!AC:AG,5,0)","v":{"$error":"#N/A"}},{"$f":"LEFT(Template!G518,10)","v":""},{"$f":"VLOOKUP(M506,'Structure mapping'!AH:AL,5,0)","v":{"$error":"#N/A"}},{"$f":"LEFT(Template!H518,6)","v":""},{"$f":"VLOOKUP(O506,'Structure mapping'!AM:AQ,5,0)","v":{"$error":"#N/A"}},null,null,null,null,{"$f":"IF(Template!O518=\"\",\"\",Template!O518)","v":""},"Aug-24 pending entries",{"$f":"TEXT(Template!$B$9,\"mm/dd/yyy\")","v":"08/01/2024"},null,null,null,null,{"$f":"IF(Template!M518>0,Template!M518,-Template!N518)","v":0},null,null,null,{"$f":"VLOOKUP(G506,'Account mapping'!A:D,4,0)","v":{"$error":"#N/A"}}]
[{"$f":"LEFT(Template!A519,4)","v":""},{"$f":"VLOOKUP(A507,'Structure mapping'!K:V,7,0)","v":{"$error":"#N/A"}},{"$f":"LEFT(Template!B519,5)","v":""},{"$f":"VLOOKUP(C507,'Structure mapping'!F:J,5,0)","v":{"$error":"#N/A"}},{"$f":"LEFT(Template!C519,7)","v":""},{"$f":"VLOOKUP(E507,'Structure mapping'!A:E,5,0)","v":{"$error":"#N/A"}},{"$f":"LEFT(Template!D519,6)","v":""},{"$f":"VLOOKUP(G507,'Account mapping'!A:E,5,0)","v":{"$error":"#N/A"}},{"$f":"LEFT(Template!E519,2)","v":""},{"$f":"VLOOKUP(I507,'Structure mapping'!X:AB,5,0)","v":{"$error":"#N/A"}},{"$f":"LEFT(Template!F519,3)","v":""},{"$f":"VLOOKUP(K507,'Structure mapping'!AC:AG,5,0)","v":{"$error":"#N/A"}},{"$f":"LEFT(Template!G519,10)","v":""},{"$f":"VLOOKUP(M507,'Structure mapping'!AH:AL,5,0)","v":{"$error":"#N/A"}},{"$f":"LEFT(Template!H519,6)","v":""},{"$f":"VLOOKUP(O507,'Structure mapping'!AM:AQ,5,0)","v":{"$error":"#N/A"}},null,null,null,null,{"$f":"IF(Template!O519=\"\",\"\",Template!O519)","v":""},"Aug-24 pending entries",{"$f":"TEXT(Template!$B$9,\"mm/dd/yyy\")","v":"08/01/2024"},null,null,null,null,{"$f":"IF(Template!M519>0,Template!M519,-Template!N519)","v":0},null,null,null,{"$f":"VLOOKUP(G507,'Account mapping'!A:D,4,0)","v":{"$error":"#N/A"}}]
[{"$f":"LEFT(Template!A520,4)","v":""},{"$f":"VLOOKUP(A508,'Structure mapping'!K:V,7,0)","v":{"$error":"#N/A"}},{"$f":"LEFT(Template!B520,5)","v":""},{"$f":"VLOOKUP(C508,'Structure mapping'!F:J,5,0)","v":{"$error":"#N/A"}},{"$f":"LEFT(Template!C520,7)","v":""},{"$f":"VLOOKUP(E508,'Structure mapping'!A:E,5,0)","v":{"$error":"#N/A"}},{"$f":"LEFT(Template!D520,6)","v":""},{"$f":"VLOOKUP(G508,'Account mapping'!A:E,5,0)","v":{"$error":"#N/A"}},{"$f":"LEFT(Template!E520,2)","v":""},{"$f":"VLOOKUP(I508,'Structure mapping'!X:AB,5,0)","v":{"$error":"#N/A"}},{"$f":"LEFT(Template!F520,3)","v":""},{"$f":"VLOOKUP(K508,'Structure mapping'!AC:AG,5,0)","v":{"$error":"#N/A"}},{"$f":"LEFT(Template!G520,10)","v":""},{"$f":"VLOOKUP(M508,'Structure mapping'!AH:AL,5,0)","v":{"$error":"#N/A"}},{"$f":"LEFT(Template!H520,6)","v":""},{"$f":"VLOOKUP(O508,'Structure mapping'!AM:AQ,5,0)","v":{"$error":"#N/A"}},null,null,null,null,{"$f":"IF(Template!O520=\"\",\"\",Template!O520)","v":""},"Aug-24 pending entries",{"$f":"TEXT(Template!$B$9,\"mm/dd/yyy\")","v":"08/01/2024"},null,null,null,null,{"$f":"IF(Template!M520>0,Template!M520,-Template!N520)","v":0},null,null,null,{"$f":"VLOOKUP(G508,'Account mapping'!A:D,4,0)","v":{"$error":"#N/A"}}]
[{"$f":"LEFT(Template!A521,4)","v":""},{"$f":"VLOOKUP(A509,'Structure mapping'!K:V,7,0)","v":{"$error":"#N/A"}},{"$f":"LEFT(Template!B521,5)","v":""},{"$f":"VLOOKUP(C509,'Structure mapping'!F:J,5,0)","v":{"$error":"#N/A"}},{"$f":"LEFT(Template!C521,7)","v":""},{"$f":"VLOOKUP(E509,'Structure mapping'!A:E,5,0)","v":{"$error":"#N/A"}},{"$f":"LEFT(Template!D521,6)","v":""},{"$f":"VLOOKUP(G509,'Account mapping'!A:E,5,0)","v":{"$error":"#N/A"}},{"$f":"LEFT(Template!E521,2)","v":""},{"$f":"VLOOKUP(I509,'Structure mapping'!X:AB,5,0)","v":{"$error":"#N/A"}},{"$f":"LEFT(Template!F521,3)","v":""},{"$f":"VLOOKUP(K509,'Structure mapping'!AC:AG,5,0)","v":{"$error":"#N/A"}},{"$f":"LEFT(Template!G521,10)","v":""},{"$f":"VLOOKUP(M509,'Structure mapping'!AH:AL,5,0)","v":{"$error":"#N/A"}},{"$f":"LEFT(Template!H521,6)","v":""},{"$f":"VLOOKUP(O509,'Structure mapping'!AM:AQ,5,0)","v":{"$error":"#N/A"}},null,null,null,null,{"$f":"IF(Template!O521=\"\",\"\",Template!O521)","v":""},"Aug-24 pending entries",{"$f":"TEXT(Template!$B$9,\"mm/dd/yyy\")","v":"08/01/2024"},null,null,null,null,{"$f":"IF(Template!M521>0,Template!M521,-Template!N521)","v":0},null,null,null,{"$f":"VLOOKUP(G509,'Account mapping'!A:D,4,0)","v":{"$error":"#N/A"}}]
[{"$f":"LEFT(Template!A522,4)","v":""},{"$f":"VLOOKUP(A510,'Structure mapping'!K:V,7,0)","v":{"$error":"#N/A"}},{"$f":"LEFT(Template!B522,5)","v":""},{"$f":"VLOOKUP(C510,'Structure mapping'!F:J,5,0)","v":{"$error":"#N/A"}},{"$f":"LEFT(Template!C522,7)","v":""},{"$f":"VLOOKUP(E510,'Structure mapping'!A:E,5,0)","v":{"$error":"#N/A"}},{"$f":"LEFT(Template!D522,6)","v":""},{"$f":"VLOOKUP(G510,'Account mapping'!A:E,5,0)","v":{"$error":"#N/A"}},{"$f":"LEFT(Template!E522,2)","v":""},{"$f":"VLOOKUP(I510,'Structure mapping'!X:AB,5,0)","v":{"$error":"#N/A"}},{"$f":"LEFT(Template!F522,3)","v":""},{"$f":"VLOOKUP(K510,'Structure mapping'!AC:AG,5,0)","v":{"$error":"#N/A"}},{"$f":"LEFT(Template!G522,10)","v":""},{"$f":"VLOOKUP(M510,'Structure mapping'!AH:AL,5,0)","v":{"$error":"#N/A"}},{"$f":"LEFT(Template!H522,6)","v":""},{"$f":"VLOOKUP(O510,'Structure mapping'!AM:AQ,5,0)","v":{"$error":"#N/A"}},null,null,null,null,{"$f":"IF(Template!O522=\"\",\"\",Template!O522)","v":""},"Aug-24 pending entries",{"$f":"TEXT(Template!$B$9,\"mm/dd/yyy\")","v":"08/01/2024"},null,null,null,null,{"$f":"IF(Template!M522>0,Template!M522,-Template!N522)","v":0},null,null,null,{"$f":"VLOOKUP(G510,'Account mapping'!A:D,4,0)","v":{"$error":"#N/A"}}]
[{"$f":"LEFT(Template!A523,4)","v":""},{"$f":"VLOOKUP(A511,'Structure mapping'!K:V,7,0)","v":{"$error":"#N/A"}},{"$f":"LEFT(Template!B523,5)","v":""},{"$f":"VLOOKUP(C511,'Structure mapping'!F:J,5,0)","v":{"$error":"#N/A"}},{"$f":"LEFT(Template!C523,7)","v":""},{"$f":"VLOOKUP(E511,'Structure mapping'!A:E,5,0)","v":{"$error":"#N/A"}},{"$f":"LEFT(Template!D523,6)","v":""},{"$f":"VLOOKUP(G511,'Account mapping'!A:E,5,0)","v":{"$error":"#N/A"}},{"$f":"LEFT(Template!E523,2)","v":""},{"$f":"VLOOKUP(I511,'Structure mapping'!X:AB,5,0)","v":{"$error":"#N/A"}},{"$f":"LEFT(Template!F523,3)","v":""},{"$f":"VLOOKUP(K511,'Structure mapping'!AC:AG,5,0)","v":{"$error":"#N/A"}},{"$f":"LEFT(Template!G523,10)","v":""},{"$f":"VLOOKUP(M511,'Structure mapping'!AH:AL,5,0)","v":{"$error":"#N/A"}},{"$f":"LEFT(Template!H523,6)","v":""},{"$f":"VLOOKUP(O511,'Structure mapping'!AM:AQ,5,0)","v":{"$error":"#N/A"}},null,null,null,null,{"$f":"IF(Template!O523=\"\",\"\",Template!O523)","v":""},"Aug-24 pending entries",{"$f":"TEXT(Template!$B$9,\"mm/dd/yyy\")","v":"08/01/2024"},null,null,null,null,{"$f":"IF(Template!M523>0,Template!M523,-Template!N523)","v":0},null,null,null,{"$f":"VLOOKUP(G511,'Account mapping'!A:D,4,0)","v":{"$error":"#N/A"}}]
[{"$f":"LEFT(Template!A524,4)","v":""},{"$f":"VLOOKUP(A512,'Structure mapping'!K:V,7,0)","v":{"$error":"#N/A"}},{"$f":"LEFT(Template!B524,5)","v":""},{"$f":"VLOOKUP(C512,'Structure mapping'!F:J,5,0)","v":{"$error":"#N/A"}},{"$f":"LEFT(Template!C524,7)","v":""},{"$f":"VLOOKUP(E512,'Structure mapping'!A:E,5,0)","v":{"$error":"#N/A"}},{"$f":"LEFT(Template!D524,6)","v":""},{"$f":"VLOOKUP(G512,'Account mapping'!A:E,5,0)","v":{"$error":"#N/A"}},{"$f":"LEFT(Template!E524,2)","v":""},{"$f":"VLOOKUP(I512,'Structure mapping'!X:AB,5,0)","v":{"$error":"#N/A"}},{"$f":"LEFT(Template!F524,3)","v":""},{"$f":"VLOOKUP(K512,'Structure mapping'!AC:AG,5,0)","v":{"$error":"#N/A"}},{"$f":"LEFT(Template!G524,10)","v":""},{"$f":"VLOOKUP(M512,'Structure mapping'!AH:AL,5,0)","v":{"$error":"#N/A"}},{"$f":"LEFT(Template!H524,6)","v":""},{"$f":"VLOOKUP(O512,'Structure mapping'!AM:AQ,5,0)","v":{"$error":"#N/A"}},null,null,null,null,{"$f":"IF(Template!O524=\"\",\"\",Template!O524)","v":""},"Aug-24 pending entries",{"$f":"TEXT(Template!$B$9,\"mm/dd/yyy\")","v":"08/01/2024"},null,null,null,null,{"$f":"IF(Template!M524>0,Template!M524,-Template!N524)","v":0},null,null,null,{"$f":"VLOOKUP(G512,'Account mapping'!A:D,4,0)","v":{"$error":"#N/A"}}]
[{"$f":"LEFT(Template!A525,4)","v":""},{"$f":"VLOOKUP(A513,'Structure mapping'!K:V,7,0)","v":{"$error":"#N/A"}},{"$f":"LEFT(Template!B525,5)","v":""},{"$f":"VLOOKUP(C513,'Structure mapping'!F:J,5,0)","v":{"$error":"#N/A"}},{"$f":"LEFT(Template!C525,7)","v":""},{"$f":"VLOOKUP(E513,'Structure mapping'!A:E,5,0)","v":{"$error":"#N/A"}},{"$f":"LEFT(Template!D525,6)","v":""},{"$f":"VLOOKUP(G513,'Account mapping'!A:E,5,0)","v":{"$error":"#N/A"}},{"$f":"LEFT(Template!E525,2)","v":""},{"$f":"VLOOKUP(I513,'Structure mapping'!X:AB,5,0)","v":{"$error":"#N/A"}},{"$f":"LEFT(Template!F525,3)","v":""},{"$f":"VLOOKUP(K513,'Structure mapping'!AC:AG,5,0)","v":{"$error":"#N/A"}},{"$f":"LEFT(Template!G525,10)","v":""},{"$f":"VLOOKUP(M513,'Structure mapping'!AH:AL,5,0)","v":{"$error":"#N/A"}},{"$f":"LEFT(Template!H525,6)","v":""},{"$f":"VLOOKUP(O513,'Structure mapping'!AM:AQ,5,0)","v":{"$error":"#N/A"}},null,null,null,null,{"$f":"IF(Template!O525=\"\",\"\",Template!O525)","v":""},"Aug-24 pending entries",{"$f":"TEXT(Template!$B$9,\"mm/dd/yyy\")","v":"08/01/2024"},null,null,null,null,{"$f":"IF(Template!M525>0,Template!M525,-Template!N525)","v":0},null,null,null,{"$f":"VLOOKUP(G513,'Account mapping'!A:D,4,0)","v":{"$error":"#N/A"}}]
[{"$f":"LEFT(Template!A526,4)","v":""},{"$f":"VLOOKUP(A514,'Structure mapping'!K:V,7,0)","v":{"$error":"#N/A"}},{"$f":"LEFT(Template!B526,5)","v":""},{"$f":"VLOOKUP(C514,'Structure mapping'!F:J,5,0)","v":{"$error":"#N/A"}},{"$f":"LEFT(Template!C526,7)","v":""},{"$f":"VLOOKUP(E514,'Structure mapping'!A:E,5,0)","v":{"$error":"#N/A"}},{"$f":"LEFT(Template!D526,6)","v":""},{"$f":"VLOOKUP(G514,'Account mapping'!A:E,5,0)","v":{"$error":"#N/A"}},{"$f":"LEFT(Template!E526,2)","v":""},{"$f":"VLOOKUP(I514,'Structure mapping'!X:AB,5,0)","v":{"$error":"#N/A"}},{"$f":"LEFT(Template!F526,3)","v":""},{"$f":"VLOOKUP(K514,'Structure mapping'!AC:AG,5,0)","v":{"$error":"#N/A"}},{"$f":"LEFT(Template!G526,10)","v":""},{"$f":"VLOOKUP(M514,'Structure mapping'!AH:AL,5,0)","v":{"$error":"#N/A"}},{"$f":"LEFT(Template!H526,6)","v":""},{"$f":"VLOOKUP(O514,'Structure mapping'!AM:AQ,5,0)","v":{"$error":"#N/A"}},null,null,null,null,{"$f":"IF(Template!O526=\"\",\"\",Template!O526)","v":""},"Aug-24 pending entries",{"$f":"TEXT(Template!$B$9,\"mm/dd/yyy\")","v":"08/01/2024"},null,null,null,null,{"$f":"IF(Template!M526>0,Template!M526,-Template!N526)","v":0},null,null,null,{"$f":"VLOOKUP(G514,'Account mapping'!A:D,4,0)","v":{"$error":"#N/A"}}]
[{"$f":"LEFT(Template!A527,4)","v":""},{"$f":"VLOOKUP(A515,'Structure mapping'!K:V,7,0)","v":{"$error":"#N/A"}},{"$f":"LEFT(Template!B527,5)","v":""},{"$f":"VLOOKUP(C515,'Structure mapping'!F:J,5,0)","v":{"$error":"#N/A"}},{"$f":"LEFT(Template!C527,7)","v":""},{"$f":"VLOOKUP(E515,'Structure mapping'!A:E,5,0)","v":{"$error":"#N/A"}},{"$f":"LEFT(Template!D527,6)","v":""},{"$f":"VLOOKUP(G515,'Account mapping'!A:E,5,0)","v":{"$error":"#N/A"}},{"$f":"LEFT(Template!E527,2)","v":""},{"$f":"VLOOKUP(I515,'Structure mapping'!X:AB,5,0)","v":{"$error":"#N/A"}},{"$f":"LEFT(Template!F527,3)","v":""},{"$f":"VLOOKUP(K515,'Structure mapping'!AC:AG,5,0)","v":{"$error":"#N/A"}},{"$f":"LEFT(Template!G527,10)","v":""},{"$f":"VLOOKUP(M515,'Structure mapping'!AH:AL,5,0)","v":{"$error":"#N/A"}},{"$f":"LEFT(Template!H527,6)","v":""},{"$f":"VLOOKUP(O515,'Structure mapping'!AM:AQ,5,0)","v":{"$error":"#N/A"}},null,null,null,null,{"$f":"IF(Template!O527=\"\",\"\",Template!O527)","v":""},{"$f":"TEXT(W515,\"mmm-yy\")&\" pending entries\"","v":"Aug-24 pending entries"},{"$f":"TEXT(Template!$B$9,\"mm/dd/yyy\")","v":"08/01/2024"},null,null,null,null,{"$f":"IF(Template!M527>0,Template!M527,-Template!N527)","v":0},null,null,null,{"$f":"VLOOKUP(G515,'Account mapping'!A:D,4,0)","v":{"$error":"#N/A"}}]
[{"$f":"LEFT(Template!A528,4)","v":""},{"$f":"VLOOKUP(A516,'Structure mapping'!K:V,7,0)","v":{"$error":"#N/A"}},{"$f":"LEFT(Template!B528,5)","v":""},{"$f":"VLOOKUP(C516,'Structure mapping'!F:J,5,0)","v":{"$error":"#N/A"}},{"$f":"LEFT(Template!C528,7)","v":""},{"$f":"VLOOKUP(E516,'Structure mapping'!A:E,5,0)","v":{"$error":"#N/A"}},{"$f":"LEFT(Template!D528,6)","v":""},{"$f":"VLOOKUP(G516,'Account mapping'!A:E,5,0)","v":{"$error":"#N/A"}},{"$f":"LEFT(Template!E528,2)","v":""},{"$f":"VLOOKUP(I516,'Structure mapping'!X:AB,5,0)","v":{"$error":"#N/A"}},{"$f":"LEFT(Template!F528,3)","v":""},{"$f":"VLOOKUP(K516,'Structure mapping'!AC:AG,5,0)","v":{"$error":"#N/A"}},{"$f":"LEFT(Template!G528,10)","v":""},{"$f":"VLOOKUP(M516,'Structure mapping'!AH:AL,5,0)","v":{"$error":"#N/A"}},{"$f":"LEFT(Template!H528,6)","v":""},{"$f":"VLOOKUP(O516,'Structure mapping'!AM:AQ,5,0)","v":{"$error":"#N/A"}},null,null,null,null,{"$f":"IF(Template!O528=\"\",\"\",Template!O528)","v":""},"Aug-24 pending entries",{"$f":"TEXT(Template!$B$9,\"mm/dd/yyy\")","v":"08/01/2024"},null,null,null,null,{"$f":"IF(Template!M528>0,Template!M528,-Template!N528)","v":0},null,null,null,{"$f":"VLOOKUP(G516,'Account mapping'!A:D,4,0)","v":{"$error":"#N/A"}}]
[{"$f":"LEFT(Template!A529,4)","v":""},{"$f":"VLOOKUP(A517,'Structure mapping'!K:V,7,0)","v":{"$error":"#N/A"}},{"$f":"LEFT(Template!B529,5)","v":""},{"$f":"VLOOKUP(C517,'Structure mapping'!F:J,5,0)","v":{"$error":"#N/A"}},{"$f":"LEFT(Template!C529,7)","v":""},{"$f":"VLOOKUP(E517,'Structure mapping'!A:E,5,0)","v":{"$error":"#N/A"}},{"$f":"LEFT(Template!D529,6)","v":""},{"$f":"VLOOKUP(G517,'Account mapping'!A:E,5,0)","v":{"$error":"#N/A"}},{"$f":"LEFT(Template!E529,2)","v":""},{"$f":"VLOOKUP(I517,'Structure mapping'!X:AB,5,0)","v":{"$error":"#N/A"}},{"$f":"LEFT(Template!F529,3)","v":""},{"$f":"VLOOKUP(K517,'Structure mapping'!AC:AG,5,0)","v":{"$error":"#N/A"}},{"$f":"LEFT(Template!G529,10)","v":""},{"$f":"VLOOKUP(M517,'Structure mapping'!AH:AL,5,0)","v":{"$error":"#N/A"}},{"$f":"LEFT(Template!H529,6)","v":""},{"$f":"VLOOKUP(O517,'Structure mapping'!AM:AQ,5,0)","v":{"$error":"#N/A"}},null,null,null,null,{"$f":"IF(Template!O529=\"\",\"\",Template!O529)","v":""},"Aug-24 pending entries",{"$f":"TEXT(Template!$B$9,\"mm/dd/yyy\")","v":"08/01/2024"},null,null,null,null,{"$f":"IF(Template!M529>0,Template!M529,-Template!N529)","v":0},null,null,null,{"$f":"VLOOKUP(G517,'Account mapping'!A:D,4,0)","v":{"$error":"#N/A"}}]
[{"$f":"LEFT(Template!A530,4)","v":""},{"$f":"VLOOKUP(A518,'Structure mapping'!K:V,7,0)","v":{"$error":"#N/A"}},{"$f":"LEFT(Template!B530,5)","v":""},{"$f":"VLOOKUP(C518,'Structure mapping'!F:J,5,0)","v":{"$error":"#N/A"}},{"$f":"LEFT(Template!C530,7)","v":""},{"$f":"VLOOKUP(E518,'Structure mapping'!A:E,5,0)","v":{"$error":"#N/A"}},{"$f":"LEFT(Template!D530,6)","v":""},{"$f":"VLOOKUP(G518,'Account mapping'!A:E,5,0)","v":{"$error":"#N/A"}},{"$f":"LEFT(Template!E530,2)","v":""},{"$f":"VLOOKUP(I518,'Structure mapping'!X:AB,5,0)","v":{"$error":"#N/A"}},{"$f":"LEFT(Template!F530,3)","v":""},{"$f":"VLOOKUP(K518,'Structure mapping'!AC:AG,5,0)","v":{"$error":"#N/A"}},{"$f":"LEFT(Template!G530,10)","v":""},{"$f":"VLOOKUP(M518,'Structure mapping'!AH:AL,5,0)","v":{"$error":"#N/A"}},{"$f":"LEFT(Template!H530,6)","v":""},{"$f":"VLOOKUP(O518,'Structure mapping'!AM:AQ,5,0)","v":{"$error":"#N/A"}},null,null,null,null,{"$f":"IF(Template!O530=\"\",\"\",Template!O530)","v":""},"Aug-24 pending entries",{"$f":"TEXT(Template!$B$9,\"mm/dd/yyy\")","v":"08/01/2024"},null,null,null,null,{"$f":"IF(Template!M530>0,Template!M530,-Template!N530)","v":0},null,null,null,{"$f":"VLOOKUP(G518,'Account mapping'!A:D,4,0)","v":{"$error":"#N/A"}}]
[{"$f":"LEFT(Template!A531,4)","v":""},{"$f":"VLOOKUP(A519,'Structure mapping'!K:V,7,0)","v":{"$error":"#N/A"}},{"$f":"LEFT(Template!B531,5)","v":""},{"$f":"VLOOKUP(C519,'Structure mapping'!F:J,5,0)","v":{"$error":"#N/A"}},{"$f":"LEFT(Template!C531,7)","v":""},{"$f":"VLOOKUP(E519,'Structure mapping'!A:E,5,0)","v":{"$error":"#N/A"}},{"$f":"LEFT(Template!D531,6)","v":""},{"$f":"VLOOKUP(G519,'Account mapping'!A:E,5,0)","v":{"$error":"#N/A"}},{"$f":"LEFT(Template!E531,2)","v":""},{"$f":"VLOOKUP(I519,'Structure mapping'!X:AB,5,0)","v":{"$error":"#N/A"}},{"$f":"LEFT(Template!F531,3)","v":""},{"$f":"VLOOKUP(K519,'Structure mapping'!AC:AG,5,0)","v":{"$error":"#N/A"}},{"$f":"LEFT(Template!G531,10)","v":""},{"$f":"VLOOKUP(M519,'Structure mapping'!AH:AL,5,0)","v":{"$error":"#N/A"}},{"$f":"LEFT(Template!H531,6)","v":""},{"$f":"VLOOKUP(O519,'Structure mapping'!AM:AQ,5,0)","v":{"$error":"#N/A"}},null,null,null,null,{"$f":"IF(Template!O531=\"\",\"\",Template!O531)","v":""},"Aug-24 pending entries",{"$f":"TEXT(Template!$B$9,\"mm/dd/yyy\")","v":"08/01/2024"},null,null,null,null,{"$f":"IF(Template!M531>0,Template!M531,-Template!N531)","v":0},null,null,null,{"$f":"VLOOKUP(G519,'Account mapping'!A:D,4,0)","v":{"$error":"#N/A"}}]
[{"$f":"LEFT(Template!A532,4)","v":""},{"$f":"VLOOKUP(A520,'Structure mapping'!K:V,7,0)","v":{"$error":"#N/A"}},{"$f":"LEFT(Template!B532,5)","v":""},{"$f":"VLOOKUP(C520,'Structure mapping'!F:J,5,0)","v":{"$error":"#N/A"}},{"$f":"LEFT(Template!C532,7)","v":""},{"$f":"VLOOKUP(E520,'Structure mapping'!A:E,5,0)","v":{"$error":"#N/A"}},{"$f":"LEFT(Template!D532,6)","v":""},{"$f":"VLOOKUP(G520,'Account mapping'!A:E,5,0)","v":{"$error":"#N/A"}},{"$f":"LEFT(Template!E532,2)","v":""},{"$f":"VLOOKUP(I520,'Structure mapping'!X:AB,5,0)","v":{"$error":"#N/A"}},{"$f":"LEFT(Template!F532,3)","v":""},{"$f":"VLOOKUP(K520,'Structure mapping'!AC:AG,5,0)","v":{"$error":"#N/A"}},{"$f":"LEFT(Template!G532,10)","v":""},{"$f":"VLOOKUP(M520,'Structure mapping'!AH:AL,5,0)","v":{"$error":"#N/A"}},{"$f":"LEFT(Template!H532,6)","v":""},{"$f":"VLOOKUP(O520,'Structure mapping'!AM:AQ,5,0)","v":{"$error":"#N/A"}},null,null,null,null,{"$f":"IF(Template!O532=\"\",\"\",Template!O532)","v":""},"Aug-24 pending entries",{"$f":"TEXT(Template!$B$9,\"mm/dd/yyy\")","v":"08/01/2024"},null,null,null,null,{"$f":"IF(Template!M532>0,Template!M532,-Template!N532)","v":0},null,null,null,{"$f":"VLOOKUP(G520,'Account mapping'!A:D,4,0)","v":{"$error":"#N/A"}}]
[{"$f":"LEFT(Template!A533,4)","v":""},{"$f":"VLOOKUP(A521,'Structure mapping'!K:V,7,0)","v":{"$error":"#N/A"}},{"$f":"LEFT(Template!B533,5)","v":""},{"$f":"VLOOKUP(C521,'Structure mapping'!F:J,5,0)","v":{"$error":"#N/A"}},{"$f":"LEFT(Template!C533,7)","v":""},{"$f":"VLOOKUP(E521,'Structure mapping'!A:E,5,0)","v":{"$error":"#N/A"}},{"$f":"LEFT(Template!D533,6)","v":""},{"$f":"VLOOKUP(G521,'Account mapping'!A:E,5,0)","v":{"$error":"#N/A"}},{"$f":"LEFT(Template!E533,2)","v":""},{"$f":"VLOOKUP(I521,'Structure mapping'!X:AB,5,0)","v":{"$error":"#N/A"}},{"$f":"LEFT(Template!F533,3)","v":""},{"$f":"VLOOKUP(K521,'Structure mapping'!AC:AG,5,0)","v":{"$error":"#N/A"}},{"$f":"LEFT(Template!G533,10)","v":""},{"$f":"VLOOKUP(M521,'Structure mapping'!AH:AL,5,0)","v":{"$error":"#N/A"}},{"$f":"LEFT(Template!H533,6)","v":""},{"$f":"VLOOKUP(O521,'Structure mapping'!AM:AQ,5,0)","v":{"$error":"#N/A"}},null,null,null,null,{"$f":"IF(Template!O533=\"\",\"\",Template!O533)","v":""},"Aug-24 pending entries",{"$f":"TEXT(Template!$B$9,\"mm/dd/yyy\")","v":"08/01/2024"},null,null,null,null,{"$f":"IF(Template!M533>0,Template!M533,-Template!N533)","v":0},null,null,null,{"$f":"VLOOKUP(G521,'Account mapping'!A:D,4,0)","v":{"$error":"#N/A"}}]
[{"$f":"LEFT(Template!A534,4)","v":""},{"$f":"VLOOKUP(A522,'Structure mapping'!K:V,7,0)","v":{"$error":"#N/A"}},{"$f":"LEFT(Template!B534,5)","v":""},{"$f":"VLOOKUP(C522,'Structure mapping'!F:J,5,0)","v":{"$error":"#N/A"}},{"$f":"LEFT(Template!C534,7)","v":""},{"$f":"VLOOKUP(E522,'Structure mapping'!A:E,5,0)","v":{"$error":"#N/A"}},{"$f":"LEFT(Template!D534,6)","v":""},{"$f":"VLOOKUP(G522,'Account mapping'!A:E,5,0)","v":{"$error":"#N/A"}},{"$f":"LEFT(Template!E534,2)","v":""},{"$f":"VLOOKUP(I522,'Structure mapping'!X:AB,5,0)","v":{"$error":"#N/A"}},{"$f":"LEFT(Template!F534,3)","v":""},{"$f":"VLOOKUP(K522,'Structure mapping'!AC:AG,5,0)","v":{"$error":"#N/A"}},{"$f":"LEFT(Template!G534,10)","v":""},{"$f":"VLOOKUP(M522,'Structure mapping'!AH:AL,5,0)","v":{"$error":"#N/A"}},{"$f":"LEFT(Template!H534,6)","v":""},{"$f":"VLOOKUP(O522,'Structure mapping'!AM:AQ,5,0)","v":{"$error":"#N/A"}},null,null,null,null,{"$f":"IF(Template!O534=\"\",\"\",Template!O534)","v":""},"Aug-24 pending entries",{"$f":"TEXT(Template!$B$9,\"mm/dd/yyy\")","v":"08/01/2024"},null,null,null,null,{"$f":"IF(Template!M534>0,Template!M534,-Template!N534)","v":0},null,null,null,{"$f":"VLOOKUP(G522,'Account mapping'!A:D,4,0)","v":{"$error":"#N/A"}}]
[{"$f":"LEFT(Template!A535,4)","v":""},{"$f":"VLOOKUP(A523,'Structure mapping'!K:V,7,0)","v":{"$error":"#N/A"}},{"$f":"LEFT(Template!B535,5)","v":""},{"$f":"VLOOKUP(C523,'Structure mapping'!F:J,5,0)","v":{"$error":"#N/A"}},{"$f":"LEFT(Template!C535,7)","v":""},{"$f":"VLOOKUP(E523,'Structure mapping'!A:E,5,0)","v":{"$error":"#N/A"}},{"$f":"LEFT(Template!D535,6)","v":""},{"$f":"VLOOKUP(G523,'Account mapping'!A:E,5,0)","v":{"$error":"#N/A"}},{"$f":"LEFT(Template!E535,2)","v":""},{"$f":"VLOOKUP(I523,'Structure mapping'!X:AB,5,0)","v":{"$error":"#N/A"}},{"$f":"LEFT(Template!F535,3)","v":""},{"$f":"VLOOKUP(K523,'Structure mapping'!AC:AG,5,0)","v":{"$error":"#N/A"}},{"$f":"LEFT(Template!G535,10)","v":""},{"$f":"VLOOKUP(M523,'Structure mapping'!AH:AL,5,0)","v":{"$error":"#N/A"}},{"$f":"LEFT(Template!H535,6)","v":""},{"$f":"VLOOKUP(O523,'Structure mapping'!AM:AQ,5,0)","v":{"$error":"#N/A"}},null,null,null,null,{"$f":"IF(Template!O535=\"\",\"\",Template!O535)","v":""},"Aug-24 pending entries",{"$f":"TEXT(Template!$B$9,\"mm/dd/yyy\")","v":"08/01/2024"},null,null,null,null,{"$f":"IF(Template!M535>0,Template!M535,-Template!N535)","v":0},null,null,null,{"$f":"VLOOKUP(G523,'Account mapping'!A:D,4,0)","v":{"$error":"#N/A"}}]
[{"$f":"LEFT(Template!A536,4)","v":""},{"$f":"VLOOKUP(A524,'Structure mapping'!K:V,7,0)","v":{"$error":"#N/A"}},{"$f":"LEFT(Template!B536,5)","v":""},{"$f":"VLOOKUP(C524,'Structure mapping'!F:J,5,0)","v":{"$error":"#N/A"}},{"$f":"LEFT(Template!C536,7)","v":""},{"$f":"VLOOKUP(E524,'Structure mapping'!A:E,5,0)","v":{"$error":"#N/A"}},{"$f":"LEFT(Template!D536,6)","v":""},{"$f":"VLOOKUP(G524,'Account mapping'!A:E,5,0)","v":{"$error":"#N/A"}},{"$f":"LEFT(Template!E536,2)","v":""},{"$f":"VLOOKUP(I524,'Structure mapping'!X:AB,5,0)","v":{"$error":"#N/A"}},{"$f":"LEFT(Template!F536,3)","v":""},{"$f":"VLOOKUP(K524,'Structure mapping'!AC:AG,5,0)","v":{"$error":"#N/A"}},{"$f":"LEFT(Template!G536,10)","v":""},{"$f":"VLOOKUP(M524,'Structure mapping'!AH:AL,5,0)","v":{"$error":"#N/A"}},{"$f":"LEFT(Template!H536,6)","v":""},{"$f":"VLOOKUP(O524,'Structure mapping'!AM:AQ,5,0)","v":{"$error":"#N/A"}},null,null,null,null,{"$f":"IF(Template!O536=\"\",\"\",Template!O536)","v":""},"Aug-24 pending entries",{"$f":"TEXT(Template!$B$9,\"mm/dd/yyy\")","v":"08/01/2024"},null,null,null,null,{"$f":"IF(Template!M536>0,Template!M536,-Template!N536)","v":0},null,null,null,{"$f":"VLOOKUP(G524,'Account mapping'!A:D,4,0)","v":{"$error":"#N/A"}}]
[{"$f":"LEFT(Template!A537,4)","v":""},{"$f":"VLOOKUP(A525,'Structure mapping'!K:V,7,0)","v":{"$error":"#N/A"}},{"$f":"LEFT(Template!B537,5)","v":""},{"$f":"VLOOKUP(C525,'Structure mapping'!F:J,5,0)","v":{"$error":"#N/A"}},{"$f":"LEFT(Template!C537,7)","v":""},{"$f":"VLOOKUP(E525,'Structure mapping'!A:E,5,0)","v":{"$error":"#N/A"}},{"$f":"LEFT(Template!D537,6)","v":""},{"$f":"VLOOKUP(G525,'Account mapping'!A:E,5,0)","v":{"$error":"#N/A"}},{"$f":"LEFT(Template!E537,2)","v":""},{"$f":"VLOOKUP(I525,'Structure mapping'!X:AB,5,0)","v":{"$error":"#N/A"}},{"$f":"LEFT(Template!F537,3)","v":""},{"$f":"VLOOKUP(K525,'Structure mapping'!AC:AG,5,0)","v":{"$error":"#N/A"}},{"$f":"LEFT(Template!G537,10)","v":""},{"$f":"VLOOKUP(M525,'Structure mapping'!AH:AL,5,0)","v":{"$error":"#N/A"}},{"$f":"LEFT(Template!H537,6)","v":""},{"$f":"VLOOKUP(O525,'Structure mapping'!AM:AQ,5,0)","v":{"$error":"#N/A"}},null,null,null,null,{"$f":"IF(Template!O537=\"\",\"\",Template!O537)","v":""},"Aug-24 pending entries",{"$f":"TEXT(Template!$B$9,\"mm/dd/yyy\")","v":"08/01/2024"},null,null,null,null,{"$f":"IF(Template!M537>0,Template!M537,-Template!N537)","v":0},null,null,null,{"$f":"VLOOKUP(G525,'Account mapping'!A:D,4,0)","v":{"$error":"#N/A"}}]
[{"$f":"LEFT(Template!A538,4)","v":""},{"$f":"VLOOKUP(A526,'Structure mapping'!K:V,7,0)","v":{"$error":"#N/A"}},{"$f":"LEFT(Template!B538,5)","v":""},{"$f":"VLOOKUP(C526,'Structure mapping'!F:J,5,0)","v":{"$error":"#N/A"}},{"$f":"LEFT(Template!C538,7)","v":""},{"$f":"VLOOKUP(E526,'Structure mapping'!A:E,5,0)","v":{"$error":"#N/A"}},{"$f":"LEFT(Template!D538,6)","v":""},{"$f":"VLOOKUP(G526,'Account mapping'!A:E,5,0)","v":{"$error":"#N/A"}},{"$f":"LEFT(Template!E538,2)","v":""},{"$f":"VLOOKUP(I526,'Structure mapping'!X:AB,5,0)","v":{"$error":"#N/A"}},{"$f":"LEFT(Template!F538,3)","v":""},{"$f":"VLOOKUP(K526,'Structure mapping'!AC:AG,5,0)","v":{"$error":"#N/A"}},{"$f":"LEFT(Template!G538,10)","v":""},{"$f":"VLOOKUP(M526,'Structure mapping'!AH:AL,5,0)","v":{"$error":"#N/A"}},{"$f":"LEFT(Template!H538,6)","v":""},{"$f":"VLOOKUP(O526,'Structure mapping'!AM:AQ,5,0)","v":{"$error":"#N/A"}},null,null,null,null,{"$f":"IF(Template!O538=\"\",\"\",Template!O538)","v":""},"Aug-24 pending entries",{"$f":"TEXT(Template!$B$9,\"mm/dd/yyy\")","v":"08/01/2024"},null,null,null,null,{"$f":"IF(Template!M538>0,Template!M538,-Template!N538)","v":0},null,null,null,{"$f":"VLOOKUP(G526,'Account mapping'!A:D,4,0)","v":{"$error":"#N/A"}}]
[{"$f":"LEFT(Template!A539,4)","v":""},{"$f":"VLOOKUP(A527,'Structure mapping'!K:V,7,0)","v":{"$error":"#N/A"}},{"$f":"LEFT(Template!B539,5)","v":""},{"$f":"VLOOKUP(C527,'Structure mapping'!F:J,5,0)","v":{"$error":"#N/A"}},{"$f":"LEFT(Template!C539,7)","v":""},{"$f":"VLOOKUP(E527,'Structure mapping'!A:E,5,0)","v":{"$error":"#N/A"}},{"$f":"LEFT(Template!D539,6)","v":""},{"$f":"VLOOKUP(G527,'Account mapping'!A:E,5,0)","v":{"$error":"#N/A"}},{"$f":"LEFT(Template!E539,2)","v":""},{"$f":"VLOOKUP(I527,'Structure mapping'!X:AB,5,0)","v":{"$error":"#N/A"}},{"$f":"LEFT(Template!F539,3)","v":""},{"$f":"VLOOKUP(K527,'Structure mapping'!AC:AG,5,0)","v":{"$error":"#N/A"}},{"$f":"LEFT(Template!G539,10)","v":""},{"$f":"VLOOKUP(M527,'Structure mapping'!AH:AL,5,0)","v":{"$error":"#N/A"}},{"$f":"LEFT(Template!H539,6)","v":""},{"$f":"VLOOKUP(O527,'Structure mapping'!AM:AQ,5,0)","v":{"$error":"#N/A"}},null,null,null,null,{"$f":"IF(Template!O539=\"\",\"\",Template!O539)","v":""},"Aug-24 pending entries",{"$f":"TEXT(Template!$B$9,\"mm/dd/yyy\")","v":"08/01/2024"},null,null,null,null,{"$f":"IF(Template!M539>0,Template!M539,-Template!N539)","v":0},null,null,null,{"$f":"VLOOKUP(G527,'Account mapping'!A:D,4,0)","v":{"$error":"#N/A"}}]
[{"$f":"LEFT(Template!A540,4)","v":""},{"$f":"VLOOKUP(A528,'Structure mapping'!K:V,7,0)","v":{"$error":"#N/A"}},{"$f":"LEFT(Template!B540,5)","v":""},{"$f":"VLOOKUP(C528,'Structure mapping'!F:J,5,0)","v":{"$error":"#N/A"}},{"$f":"LEFT(Template!C540,7)","v":""},{"$f":"VLOOKUP(E528,'Structure mapping'!A:E,5,0)","v":{"$error":"#N/A"}},{"$f":"LEFT(Template!D540,6)","v":""},{"$f":"VLOOKUP(G528,'Account mapping'!A:E,5,0)","v":{"$error":"#N/A"}},{"$f":"LEFT(Template!E540,2)","v":""},{"$f":"VLOOKUP(I528,'Structure mapping'!X:AB,5,0)","v":{"$error":"#N/A"}},{"$f":"LEFT(Template!F540,3)","v":""},{"$f":"VLOOKUP(K528,'Structure mapping'!AC:AG,5,0)","v":{"$error":"#N/A"}},{"$f":"LEFT(Template!G540,10)","v":""},{"$f":"VLOOKUP(M528,'Structure mapping'!AH:AL,5,0)","v":{"$error":"#N/A"}},{"$f":"LEFT(Template!H540,6)","v":""},{"$f":"VLOOKUP(O528,'Structure mapping'!AM:AQ,5,0)","v":{"$error":"#N/A"}},null,null,null,null,{"$f":"IF(Template!O540=\"\",\"\",Template!O540)","v":""},"Aug-24 pending entries",{"$f":"TEXT(Template!$B$9,\"mm/dd/yyy\")","v":"08/01/2024"},null,null,null,null,{"$f":"IF(Template!M540>0,Template!M540,-Template!N540)","v":0},null,null,null,{"$f":"VLOOKUP(G528,'Account mapping'!A:D,4,0)","v":{"$error":"#N/A"}}]
[{"$f":"LEFT(Template!A541,4)","v":""},{"$f":"VLOOKUP(A529,'Structure mapping'!K:V,7,0)","v":{"$error":"#N/A"}},{"$f":"LEFT(Template!B541,5)","v":""},{"$f":"VLOOKUP(C529,'Structure mapping'!F:J,5,0)","v":{"$error":"#N/A"}},{"$f":"LEFT(Template!C541,7)","v":""},{"$f":"VLOOKUP(E529,'Structure mapping'!A:E,5,0)","v":{"$error":"#N/A"}},{"$f":"LEFT(Template!D541,6)","v":""},{"$f":"VLOOKUP(G529,'Account mapping'!A:E,5,0)","v":{"$error":"#N/A"}},{"$f":"LEFT(Template!E541,2)","v":""},{"$f":"VLOOKUP(I529,'Structure mapping'!X:AB,5,0)","v":{"$error":"#N/A"}},{"$f":"LEFT(Template!F541,3)","v":""},{"$f":"VLOOKUP(K529,'Structure mapping'!AC:AG,5,0)","v":{"$error":"#N/A"}},{"$f":"LEFT(Template!G541,10)","v":""},{"$f":"VLOOKUP(M529,'Structure mapping'!AH:AL,5,0)","v":{"$error":"#N/A"}},{"$f":"LEFT(Template!H541,6)","v":""},{"$f":"VLOOKUP(O529,'Structure mapping'!AM:AQ,5,0)","v":{"$error":"#N/A"}},null,null,null,null,{"$f":"IF(Template!O541=\"\",\"\",Template!O541)","v":""},"Aug-24 pending entries",{"$f":"TEXT(Template!$B$9,\"mm/dd/yyy\")","v":"08/01/2024"},null,null,null,null,{"$f":"IF(Template!M541>0,Template!M541,-Template!N541)","v":0},null,null,null,{"$f":"VLOOKUP(G529,'Account mapping'!A:D,4,0)","v":{"$error":"#N/A"}}]
[{"$f":"LEFT(Template!A542,4)","v":""},{"$f":"VLOOKUP(A530,'Structure mapping'!K:V,7,0)","v":{"$error":"#N/A"}},{"$f":"LEFT(Template!B542,5)","v":""},{"$f":"VLOOKUP(C530,'Structure mapping'!F:J,5,0)","v":{"$error":"#N/A"}},{"$f":"LEFT(Template!C542,7)","v":""},{"$f":"VLOOKUP(E530,'Structure mapping'!A:E,5,0)","v":{"$error":"#N/A"}},{"$f":"LEFT(Template!D542,6)","v":""},{"$f":"VLOOKUP(G530,'Account mapping'!A:E,5,0)","v":{"$error":"#N/A"}},{"$f":"LEFT(Template!E542,2)","v":""},{"$f":"VLOOKUP(I530,'Structure mapping'!X:AB,5,0)","v":{"$error":"#N/A"}},{"$f":"LEFT(Template!F542,3)","v":""},{"$f":"VLOOKUP(K530,'Structure mapping'!AC:AG,5,0)","v":{"$error":"#N/A"}},{"$f":"LEFT(Template!G542,10)","v":""},{"$f":"VLOOKUP(M530,'Structure mapping'!AH:AL,5,0)","v":{"$error":"#N/A"}},{"$f":"LEFT(Template!H542,6)","v":""},{"$f":"VLOOKUP(O530,'Structure mapping'!AM:AQ,5,0)","v":{"$error":"#N/A"}},null,null,null,null,{"$f":"IF(Template!O542=\"\",\"\",Template!O542)","v":""},"Aug-24 pending entries",{"$f":"TEXT(Template!$B$9,\"mm/dd/yyy\")","v":"08/01/2024"},null,null,null,null,{"$f":"IF(Template!M542>0,Template!M542,-Template!N542)","v":0},null,null,null,{"$f":"VLOOKUP(G530,'Account mapping'!A:D,4,0)","v":{"$error":"#N/A"}}]
[{"$f":"LEFT(Template!A543,4)","v":""},{"$f":"VLOOKUP(A531,'Structure mapping'!K:V,7,0)","v":{"$error":"#N/A"}},{"$f":"LEFT(Template!B543,5)","v":""},{"$f":"VLOOKUP(C531,'Structure mapping'!F:J,5,0)","v":{"$error":"#N/A"}},{"$f":"LEFT(Template!C543,7)","v":""},{"$f":"VLOOKUP(E531,'Structure mapping'!A:E,5,0)","v":{"$error":"#N/A"}},{"$f":"LEFT(Template!D543,6)","v":""},{"$f":"VLOOKUP(G531,'Account mapping'!A:E,5,0)","v":{"$error":"#N/A"}},{"$f":"LEFT(Template!E543,2)","v":""},{"$f":"VLOOKUP(I531,'Structure mapping'!X:AB,5,0)","v":{"$error":"#N/A"}},{"$f":"LEFT(Template!F543,3)","v":""},{"$f":"VLOOKUP(K531,'Structure mapping'!AC:AG,5,0)","v":{"$error":"#N/A"}},{"$f":"LEFT(Template!G543,10)","v":""},{"$f":"VLOOKUP(M531,'Structure mapping'!AH:AL,5,0)","v":{"$error":"#N/A"}},{"$f":"LEFT(Template!H543,6)","v":""},{"$f":"VLOOKUP(O531,'Structure mapping'!AM:AQ,5,0)","v":{"$error":"#N/A"}},null,null,null,null,{"$f":"IF(Template!O543=\"\",\"\",Template!O543)","v":""},"Aug-24 pending entries",{"$f":"TEXT(Template!$B$9,\"mm/dd/yyy\")","v":"08/01/2024"},null,null,null,null,{"$f":"IF(Template!M543>0,Template!M543,-Template!N543)","v":0},null,null,null,{"$f":"VLOOKUP(G531,'Account mapping'!A:D,4,0)","v":{"$error":"#N/A"}}]
[{"$f":"LEFT(Template!A544,4)","v":""},{"$f":"VLOOKUP(A532,'Structure mapping'!K:V,7,0)","v":{"$error":"#N/A"}},{"$f":"LEFT(Template!B544,5)","v":""},{"$f":"VLOOKUP(C532,'Structure mapping'!F:J,5,0)","v":{"$error":"#N/A"}},{"$f":"LEFT(Template!C544,7)","v":""},{"$f":"VLOOKUP(E532,'Structure mapping'!A:E,5,0)","v":{"$error":"#N/A"}},{"$f":"LEFT(Template!D544,6)","v":""},{"$f":"VLOOKUP(G532,'Account mapping'!A:E,5,0)","v":{"$error":"#N/A"}},{"$f":"LEFT(Template!E544,2)","v":""},{"$f":"VLOOKUP(I532,'Structure mapping'!X:AB,5,0)","v":{"$error":"#N/A"}},{"$f":"LEFT(Template!F544,3)","v":""},{"$f":"VLOOKUP(K532,'Structure mapping'!AC:AG,5,0)","v":{"$error":"#N/A"}},{"$f":"LEFT(Template!G544,10)","v":""},{"$f":"VLOOKUP(M532,'Structure mapping'!AH:AL,5,0)","v":{"$error":"#N/A"}},{"$f":"LEFT(Template!H544,6)","v":""},{"$f":"VLOOKUP(O532,'Structure mapping'!AM:AQ,5,0)","v":{"$error":"#N/A"}},null,null,null,null,{"$f":"IF(Template!O544=\"\",\"\",Template!O544)","v":""},"Aug-24 pending entries",{"$f":"TEXT(Template!$B$9,\"mm/dd/yyy\")","v":"08/01/2024"},null,null,null,null,{"$f":"IF(Template!M544>0,Template!M544,-Template!N544)","v":0},null,null,null,{"$f":"VLOOKUP(G532,'Account mapping'!A:D,4,0)","v":{"$error":"#N/A"}}]
[{"$f":"LEFT(Template!A545,4)","v":""},{"$f":"VLOOKUP(A533,'Structure mapping'!K:V,7,0)","v":{"$error":"#N/A"}},{"$f":"LEFT(Template!B545,5)","v":""},{"$f":"VLOOKUP(C533,'Structure mapping'!F:J,5,0)","v":{"$error":"#N/A"}},{"$f":"LEFT(Template!C545,7)","v":""},{"$f":"VLOOKUP(E533,'Structure mapping'!A:E,5,0)","v":{"$error":"#N/A"}},{"$f":"LEFT(Template!D545,6)","v":""},{"$f":"VLOOKUP(G533,'Account mapping'!A:E,5,0)","v":{"$error":"#N/A"}},{"$f":"LEFT(Template!E545,2)","v":""},{"$f":"VLOOKUP(I533,'Structure mapping'!X:AB,5,0)","v":{"$error":"#N/A"}},{"$f":"LEFT(Template!F545,3)","v":""},{"$f":"VLOOKUP(K533,'Structure mapping'!AC:AG,5,0)","v":{"$error":"#N/A"}},{"$f":"LEFT(Template!G545,10)","v":""},{"$f":"VLOOKUP(M533,'Structure mapping'!AH:AL,5,0)","v":{"$error":"#N/A"}},{"$f":"LEFT(Template!H545,6)","v":""},{"$f":"VLOOKUP(O533,'Structure mapping'!AM:AQ,5,0)","v":{"$error":"#N/A"}},null,null,null,null,{"$f":"IF(Template!O545=\"\",\"\",Template!O545)","v":""},"Aug-24 pending entries",{"$f":"TEXT(Template!$B$9,\"mm/dd/yyy\")","v":"08/01/2024"},null,null,null,null,{"$f":"IF(Template!M545>0,Template!M545,-Template!N545)","v":0},null,null,null,{"$f":"VLOOKUP(G533,'Account mapping'!A:D,4,0)","v":{"$error":"#N/A"}}]
[{"$f":"LEFT(Template!A546,4)","v":""},{"$f":"VLOOKUP(A534,'Structure mapping'!K:V,7,0)","v":{"$error":"#N/A"}},{"$f":"LEFT(Template!B546,5)","v":""},{"$f":"VLOOKUP(C534,'Structure mapping'!F:J,5,0)","v":{"$error":"#N/A"}},{"$f":"LEFT(Template!C546,7)","v":""},{"$f":"VLOOKUP(E534,'Structure mapping'!A:E,5,0)","v":{"$error":"#N/A"}},{"$f":"LEFT(Template!D546,6)","v":""},{"$f":"VLOOKUP(G534,'Account mapping'!A:E,5,0)","v":{"$error":"#N/A"}},{"$f":"LEFT(Template!E546,2)","v":""},{"$f":"VLOOKUP(I534,'Structure mapping'!X:AB,5,0)","v":{"$error":"#N/A"}},{"$f":"LEFT(Template!F546,3)","v":""},{"$f":"VLOOKUP(K534,'Structure mapping'!AC:AG,5,0)","v":{"$error":"#N/A"}},{"$f":"LEFT(Template!G546,10)","v":""},{"$f":"VLOOKUP(M534,'Structure mapping'!AH:AL,5,0)","v":{"$error":"#N/A"}},{"$f":"LEFT(Template!H546,6)","v":""},{"$f":"VLOOKUP(O534,'Structure mapping'!AM:AQ,5,0)","v":{"$error":"#N/A"}},null,null,null,null,{"$f":"IF(Template!O546=\"\",\"\",Template!O546)","v":""},"Aug-24 pending entries",{"$f":"TEXT(Template!$B$9,\"mm/dd/yyy\")","v":"08/01/2024"},null,null,null,null,{"$f":"IF(Template!M546>0,Template!M546,-Template!N546)","v":0},null,null,null,{"$f":"VLOOKUP(G534,'Account mapping'!A:D,4,0)","v":{"$error":"#N/A"}}]
[{"$f":"LEFT(Template!A547,4)","v":""},{"$f":"VLOOKUP(A535,'Structure mapping'!K:V,7,0)","v":{"$error":"#N/A"}},{"$f":"LEFT(Template!B547,5)","v":""},{"$f":"VLOOKUP(C535,'Structure mapping'!F:J,5,0)","v":{"$error":"#N/A"}},{"$f":"LEFT(Template!C547,7)","v":""},{"$f":"VLOOKUP(E535,'Structure mapping'!A:E,5,0)","v":{"$error":"#N/A"}},{"$f":"LEFT(Template!D547,6)","v":""},{"$f":"VLOOKUP(G535,'Account mapping'!A:E,5,0)","v":{"$error":"#N/A"}},{"$f":"LEFT(Template!E547,2)","v":""},{"$f":"VLOOKUP(I535,'Structure mapping'!X:AB,5,0)","v":{"$error":"#N/A"}},{"$f":"LEFT(Template!F547,3)","v":""},{"$f":"VLOOKUP(K535,'Structure mapping'!AC:AG,5,0)","v":{"$error":"#N/A"}},{"$f":"LEFT(Template!G547,10)","v":""},{"$f":"VLOOKUP(M535,'Structure mapping'!AH:AL,5,0)","v":{"$error":"#N/A"}},{"$f":"LEFT(Template!H547,6)","v":""},{"$f":"VLOOKUP(O535,'Structure mapping'!AM:AQ,5,0)","v":{"$error":"#N/A"}},null,null,null,null,{"$f":"IF(Template!O547=\"\",\"\",Template!O547)","v":""},"Aug-24 pending entries",{"$f":"TEXT(Template!$B$9,\"mm/dd/yyy\")","v":"08/01/2024"},null,null,null,null,{"$f":"IF(Template!M547>0,Template!M547,-Template!N547)","v":0},null,null,null,{"$f":"VLOOKUP(G535,'Account mapping'!A:D,4,0)","v":{"$error":"#N/A"}}]
[{"$f":"LEFT(Template!A548,4)","v":""},{"$f":"VLOOKUP(A536,'Structure mapping'!K:V,7,0)","v":{"$error":"#N/A"}},{"$f":"LEFT(Template!B548,5)","v":""},{"$f":"VLOOKUP(C536,'Structure mapping'!F:J,5,0)","v":{"$error":"#N/A"}},{"$f":"LEFT(Template!C548,7)","v":""},{"$f":"VLOOKUP(E536,'Structure mapping'!A:E,5,0)","v":{"$error":"#N/A"}},{"$f":"LEFT(Template!D548,6)","v":""},{"$f":"VLOOKUP(G536,'Account mapping'!A:E,5,0)","v":{"$error":"#N/A"}},{"$f":"LEFT(Template!E548,2)","v":""},{"$f":"VLOOKUP(I536,'Structure mapping'!X:AB,5,0)","v":{"$error":"#N/A"}},{"$f":"LEFT(Template!F548,3)","v":""},{"$f":"VLOOKUP(K536,'Structure mapping'!AC:AG,5,0)","v":{"$error":"#N/A"}},{"$f":"LEFT(Template!G548,10)","v":""},{"$f":"VLOOKUP(M536,'Structure mapping'!AH:AL,5,0)","v":{"$error":"#N/A"}},{"$f":"LEFT(Template!H548,6)","v":""},{"$f":"VLOOKUP(O536,'Structure mapping'!AM:AQ,5,0)","v":{"$error":"#N/A"}},null,null,null,null,{"$f":"IF(Template!O548=\"\",\"\",Template!O548)","v":""},"Aug-24 pending entries",{"$f":"TEXT(Template!$B$9,\"mm/dd/yyy\")","v":"08/01/2024"},null,null,null,null,{"$f":"IF(Template!M548>0,Template!M548,-Template!N548)","v":0},null,null,null,{"$f":"VLOOKUP(G536,'Account mapping'!A:D,4,0)","v":{"$error":"#N/A"}}]
[{"$f":"LEFT(Template!A549,4)","v":""},{"$f":"VLOOKUP(A537,'Structure mapping'!K:V,7,0)","v":{"$error":"#N/A"}},{"$f":"LEFT(Template!B549,5)","v":""},{"$f":"VLOOKUP(C537,'Structure mapping'!F:J,5,0)","v":{"$error":"#N/A"}},{"$f":"LEFT(Template!C549,7)","v":""},{"$f":"VLOOKUP(E537,'Structure mapping'!A:E,5,0)","v":{"$error":"#N/A"}},{"$f":"LEFT(Template!D549,6)","v":""},{"$f":"VLOOKUP(G537,'Account mapping'!A:E,5,0)","v":{"$error":"#N/A"}},{"$f":"LEFT(Template!E549,2)","v":""},{"$f":"VLOOKUP(I537,'Structure mapping'!X:AB,5,0)","v":{"$error":"#N/A"}},{"$f":"LEFT(Template!F549,3)","v":""},{"$f":"VLOOKUP(K537,'Structure mapping'!AC:AG,5,0)","v":{"$error":"#N/A"}},{"$f":"LEFT(Template!G549,10)","v":""},{"$f":"VLOOKUP(M537,'Structure mapping'!AH:AL,5,0)","v":{"$error":"#N/A"}},{"$f":"LEFT(Template!H549,6)","v":""},{"$f":"VLOOKUP(O537,'Structure mapping'!AM:AQ,5,0)","v":{"$error":"#N/A"}},null,null,null,null,{"$f":"IF(Template!O549=\"\",\"\",Template!O549)","v":""},"Aug-24 pending entries",{"$f":"TEXT(Template!$B$9,\"mm/dd/yyy\")","v":"08/01/2024"},null,null,null,null,{"$f":"IF(Template!M549>0,Template!M549,-Template!N549)","v":0},null,null,null,{"$f":"VLOOKUP(G537,'Account mapping'!A:D,4,0)","v":{"$error":"#N/A"}}]
[{"$f":"LEFT(Template!A550,4)","v":""},{"$f":"VLOOKUP(A538,'Structure mapping'!K:V,7,0)","v":{"$error":"#N/A"}},{"$f":"LEFT(Template!B550,5)","v":""},{"$f":"VLOOKUP(C538,'Structure mapping'!F:J,5,0)","v":{"$error":"#N/A"}},{"$f":"LEFT(Template!C550,7)","v":""},{"$f":"VLOOKUP(E538,'Structure mapping'!A:E,5,0)","v":{"$error":"#N/A"}},{"$f":"LEFT(Template!D550,6)","v":""},{"$f":"VLOOKUP(G538,'Account mapping'!A:E,5,0)","v":{"$error":"#N/A"}},{"$f":"LEFT(Template!E550,2)","v":""},{"$f":"VLOOKUP(I538,'Structure mapping'!X:AB,5,0)","v":{"$error":"#N/A"}},{"$f":"LEFT(Template!F550,3)","v":""},{"$f":"VLOOKUP(K538,'Structure mapping'!AC:AG,5,0)","v":{"$error":"#N/A"}},{"$f":"LEFT(Template!G550,10)","v":""},{"$f":"VLOOKUP(M538,'Structure mapping'!AH:AL,5,0)","v":{"$error":"#N/A"}},{"$f":"LEFT(Template!H550,6)","v":""},{"$f":"VLOOKUP(O538,'Structure mapping'!AM:AQ,5,0)","v":{"$error":"#N/A"}},null,null,null,null,{"$f":"IF(Template!O550=\"\",\"\",Template!O550)","v":""},"Aug-24 pending entries",{"$f":"TEXT(Template!$B$9,\"mm/dd/yyy\")","v":"08/01/2024"},null,null,null,null,{"$f":"IF(Template!M550>0,Template!M550,-Template!N550)","v":0},null,null,null,{"$f":"VLOOKUP(G538,'Account mapping'!A:D,4,0)","v":{"$error":"#N/A"}}]
[{"$f":"LEFT(Template!A551,4)","v":""},{"$f":"VLOOKUP(A539,'Structure mapping'!K:V,7,0)","v":{"$error":"#N/A"}},{"$f":"LEFT(Template!B551,5)","v":""},{"$f":"VLOOKUP(C539,'Structure mapping'!F:J,5,0)","v":{"$error":"#N/A"}},{"$f":"LEFT(Template!C551,7)","v":""},{"$f":"VLOOKUP(E539,'Structure mapping'!A:E,5,0)","v":{"$error":"#N/A"}},{"$f":"LEFT(Template!D551,6)","v":""},{"$f":"VLOOKUP(G539,'Account mapping'!A:E,5,0)","v":{"$error":"#N/A"}},{"$f":"LEFT(Template!E551,2)","v":""},{"$f":"VLOOKUP(I539,'Structure mapping'!X:AB,5,0)","v":{"$error":"#N/A"}},{"$f":"LEFT(Template!F551,3)","v":""},{"$f":"VLOOKUP(K539,'Structure mapping'!AC:AG,5,0)","v":{"$error":"#N/A"}},{"$f":"LEFT(Template!G551,10)","v":""},{"$f":"VLOOKUP(M539,'Structure mapping'!AH:AL,5,0)","v":{"$error":"#N/A"}},{"$f":"LEFT(Template!H551,6)","v":""},{"$f":"VLOOKUP(O539,'Structure mapping'!AM:AQ,5,0)","v":{"$error":"#N/A"}},null,null,null,null,{"$f":"IF(Template!O551=\"\",\"\",Template!O551)","v":""},"Aug-24 pending entries",{"$f":"TEXT(Template!$B$9,\"mm/dd/yyy\")","v":"08/01/2024"},null,null,null,null,{"$f":"IF(Template!M551>0,Template!M551,-Template!N551)","v":0},null,null,null,{"$f":"VLOOKUP(G539,'Account mapping'!A:D,4,0)","v":{"$error":"#N/A"}}]
[{"$f":"LEFT(Template!A552,4)","v":""},{"$f":"VLOOKUP(A540,'Structure mapping'!K:V,7,0)","v":{"$error":"#N/A"}},{"$f":"LEFT(Template!B552,5)","v":""},{"$f":"VLOOKUP(C540,'Structure mapping'!F:J,5,0)","v":{"$error":"#N/A"}},{"$f":"LEFT(Template!C552,7)","v":""},{"$f":"VLOOKUP(E540,'Structure mapping'!A:E,5,0)","v":{"$error":"#N/A"}},{"$f":"LEFT(Template!D552,6)","v":""},{"$f":"VLOOKUP(G540,'Account mapping'!A:E,5,0)","v":{"$error":"#N/A"}},{"$f":"LEFT(Template!E552,2)","v":""},{"$f":"VLOOKUP(I540,'Structure mapping'!X:AB,5,0)","v":{"$error":"#N/A"}},{"$f":"LEFT(Template!F552,3)","v":""},{"$f":"VLOOKUP(K540,'Structure mapping'!AC:AG,5,0)","v":{"$error":"#N/A"}},{"$f":"LEFT(Template!G552,10)","v":""},{"$f":"VLOOKUP(M540,'Structure mapping'!AH:AL,5,0)","v":{"$error":"#N/A"}},{"$f":"LEFT(Template!H552,6)","v":""},{"$f":"VLOOKUP(O540,'Structure mapping'!AM:AQ,5,0)","v":{"$error":"#N/A"}},null,null,null,null,{"$f":"IF(Template!O552=\"\",\"\",Template!O552)","v":""},"Aug-24 pending entries",{"$f":"TEXT(Template!$B$9,\"mm/dd/yyy\")","v":"08/01/2024"},null,null,null,null,{"$f":"IF(Template!M552>0,Template!M552,-Template!N552)","v":0},null,null,null,{"$f":"VLOOKUP(G540,'Account mapping'!A:D,4,0)","v":{"$error":"#N/A"}}]
[{"$f":"LEFT(Template!A553,4)","v":""},{"$f":"VLOOKUP(A541,'Structure mapping'!K:V,7,0)","v":{"$error":"#N/A"}},{"$f":"LEFT(Template!B553,5)","v":""},{"$f":"VLOOKUP(C541,'Structure mapping'!F:J,5,0)","v":{"$error":"#N/A"}},{"$f":"LEFT(Template!C553,7)","v":""},{"$f":"VLOOKUP(E541,'Structure mapping'!A:E,5,0)","v":{"$error":"#N/A"}},{"$f":"LEFT(Template!D553,6)","v":""},{"$f":"VLOOKUP(G541,'Account mapping'!A:E,5,0)","v":{"$error":"#N/A"}},{"$f":"LEFT(Template!E553,2)","v":""},{"$f":"VLOOKUP(I541,'Structure mapping'!X:AB,5,0)","v":{"$error":"#N/A"}},{"$f":"LEFT(Template!F553,3)","v":""},{"$f":"VLOOKUP(K541,'Structure mapping'!AC:AG,5,0)","v":{"$error":"#N/A"}},{"$f":"LEFT(Template!G553,10)","v":""},{"$f":"VLOOKUP(M541,'Structure mapping'!AH:AL,5,0)","v":{"$error":"#N/A"}},{"$f":"LEFT(Template!H553,6)","v":""},{"$f":"VLOOKUP(O541,'Structure mapping'!AM:AQ,5,0)","v":{"$error":"#N/A"}},null,null,null,null,{"$f":"IF(Template!O553=\"\",\"\",Template!O553)","v":""},"Aug-24 pending entries",{"$f":"TEXT(Template!$B$9,\"mm/dd/yyy\")","v":"08/01/2024"},null,null,null,null,{"$f":"IF(Template!M553>0,Template!M553,-Template!N553)","v":0},null,null,null,{"$f":"VLOOKUP(G541,'Account mapping'!A:D,4,0)","v":{"$error":"#N/A"}}]
[{"$f":"LEFT(Template!A554,4)","v":""},{"$f":"VLOOKUP(A542,'Structure mapping'!K:V,7,0)","v":{"$error":"#N/A"}},{"$f":"LEFT(Template!B554,5)","v":""},{"$f":"VLOOKUP(C542,'Structure mapping'!F:J,5,0)","v":{"$error":"#N/A"}},{"$f":"LEFT(Template!C554,7)","v":""},{"$f":"VLOOKUP(E542,'Structure mapping'!A:E,5,0)","v":{"$error":"#N/A"}},{"$f":"LEFT(Template!D554,6)","v":""},{"$f":"VLOOKUP(G542,'Account mapping'!A:E,5,0)","v":{"$error":"#N/A"}},{"$f":"LEFT(Template!E554,2)","v":""},{"$f":"VLOOKUP(I542,'Structure mapping'!X:AB,5,0)","v":{"$error":"#N/A"}},{"$f":"LEFT(Template!F554,3)","v":""},{"$f":"VLOOKUP(K542,'Structure mapping'!AC:AG,5,0)","v":{"$error":"#N/A"}},{"$f":"LEFT(Template!G554,10)","v":""},{"$f":"VLOOKUP(M542,'Structure mapping'!AH:AL,5,0)","v":{"$error":"#N/A"}},{"$f":"LEFT(Template!H554,6)","v":""},{"$f":"VLOOKUP(O542,'Structure mapping'!AM:AQ,5,0)","v":{"$error":"#N/A"}},null,null,null,null,{"$f":"IF(Template!O554=\"\",\"\",Template!O554)","v":""},"Aug-24 pending entries",{"$f":"TEXT(Template!$B$9,\"mm/dd/yyy\")","v":"08/01/2024"},null,null,null,null,{"$f":"IF(Template!M554>0,Template!M554,-Template!N554)","v":0},null,null,null,{"$f":"VLOOKUP(G542,'Account mapping'!A:D,4,0)","v":{"$error":"#N/A"}}]
[{"$f":"LEFT(Template!A555,4)","v":""},{"$f":"VLOOKUP(A543,'Structure mapping'!K:V,7,0)","v":{"$error":"#N/A"}},{"$f":"LEFT(Template!B555,5)","v":""},{"$f":"VLOOKUP(C543,'Structure mapping'!F:J,5,0)","v":{"$error":"#N/A"}},{"$f":"LEFT(Template!C555,7)","v":""},{"$f":"VLOOKUP(E543,'Structure mapping'!A:E,5,0)","v":{"$error":"#N/A"}},{"$f":"LEFT(Template!D555,6)","v":""},{"$f":"VLOOKUP(G543,'Account mapping'!A:E,5,0)","v":{"$error":"#N/A"}},{"$f":"LEFT(Template!E555,2)","v":""},{"$f":"VLOOKUP(I543,'Structure mapping'!X:AB,5,0)","v":{"$error":"#N/A"}},{"$f":"LEFT(Template!F555,3)","v":""},{"$f":"VLOOKUP(K543,'Structure mapping'!AC:AG,5,0)","v":{"$error":"#N/A"}},{"$f":"LEFT(Template!G555,10)","v":""},{"$f":"VLOOKUP(M543,'Structure mapping'!AH:AL,5,0)","v":{"$error":"#N/A"}},{"$f":"LEFT(Template!H555,6)","v":""},{"$f":"VLOOKUP(O543,'Structure mapping'!AM:AQ,5,0)","v":{"$error":"#N/A"}},null,null,null,null,{"$f":"IF(Template!O555=\"\",\"\",Template!O555)","v":""},"Aug-24 pending entries",{"$f":"TEXT(Template!$B$9,\"mm/dd/yyy\")","v":"08/01/2024"},null,null,null,null,{"$f":"IF(Template!M555>0,Template!M555,-Template!N555)","v":0},null,null,null,{"$f":"VLOOKUP(G543,'Account mapping'!A:D,4,0)","v":{"$error":"#N/A"}}]
[{"$f":"LEFT(Template!A556,4)","v":""},{"$f":"VLOOKUP(A544,'Structure mapping'!K:V,7,0)","v":{"$error":"#N/A"}},{"$f":"LEFT(Template!B556,5)","v":""},{"$f":"VLOOKUP(C544,'Structure mapping'!F:J,5,0)","v":{"$error":"#N/A"}},{"$f":"LEFT(Template!C556,7)","v":""},{"$f":"VLOOKUP(E544,'Structure mapping'!A:E,5,0)","v":{"$error":"#N/A"}},{"$f":"LEFT(Template!D556,6)","v":""},{"$f":"VLOOKUP(G544,'Account mapping'!A:E,5,0)","v":{"$error":"#N/A"}},{"$f":"LEFT(Template!E556,2)","v":""},{"$f":"VLOOKUP(I544,'Structure mapping'!X:AB,5,0)","v":{"$error":"#N/A"}},{"$f":"LEFT(Template!F556,3)","v":""},{"$f":"VLOOKUP(K544,'Structure mapping'!AC:AG,5,0)","v":{"$error":"#N/A"}},{"$f":"LEFT(Template!G556,10)","v":""},{"$f":"VLOOKUP(M544,'Structure mapping'!AH:AL,5,0)","v":{"$error":"#N/A"}},{"$f":"LEFT(Template!H556,6)","v":""},{"$f":"VLOOKUP(O544,'Structure mapping'!AM:AQ,5,0)","v":{"$error":"#N/A"}},null,null,null,null,{"$f":"IF(Template!O556=\"\",\"\",Template!O556)","v":""},"Aug-24 pending entries",{"$f":"TEXT(Template!$B$9,\"mm/dd/yyy\")","v":"08/01/2024"},null,null,null,null,{"$f":"IF(Template!M556>0,Template!M556,-Template!N556)","v":0},null,null,null,{"$f":"VLOOKUP(G544,'Account mapping'!A:D,4,0)","v":{"$error":"#N/A"}}]
[{"$f":"LEFT(Template!A557,4)","v":""},{"$f":"VLOOKUP(A545,'Structure mapping'!K:V,7,0)","v":{"$error":"#N/A"}},{"$f":"LEFT(Template!B557,5)","v":""},{"$f":"VLOOKUP(C545,'Structure mapping'!F:J,5,0)","v":{"$error":"#N/A"}},{"$f":"LEFT(Template!C557,7)","v":""},{"$f":"VLOOKUP(E545,'Structure mapping'!A:E,5,0)","v":{"$error":"#N/A"}},{"$f":"LEFT(Template!D557,6)","v":""},{"$f":"VLOOKUP(G545,'Account mapping'!A:E,5,0)","v":{"$error":"#N/A"}},{"$f":"LEFT(Template!E557,2)","v":""},{"$f":"VLOOKUP(I545,'Structure mapping'!X:AB,5,0)","v":{"$error":"#N/A"}},{"$f":"LEFT(Template!F557,3)","v":""},{"$f":"VLOOKUP(K545,'Structure mapping'!AC:AG,5,0)","v":{"$error":"#N/A"}},{"$f":"LEFT(Template!G557,10)","v":""},{"$f":"VLOOKUP(M545,'Structure mapping'!AH:AL,5,0)","v":{"$error":"#N/A"}},{"$f":"LEFT(Template!H557,6)","v":""},{"$f":"VLOOKUP(O545,'Structure mapping'!AM:AQ,5,0)","v":{"$error":"#N/A"}},null,null,null,null,{"$f":"IF(Template!O557=\"\",\"\",Template!O557)","v":""},"Aug-24 pending entries",{"$f":"TEXT(Template!$B$9,\"mm/dd/yyy\")","v":"08/01/2024"},null,null,null,null,{"$f":"IF(Template!M557>0,Template!M557,-Template!N557)","v":0},null,null,null,{"$f":"VLOOKUP(G545,'Account mapping'!A:D,4,0)","v":{"$error":"#N/A"}}]
[{"$f":"LEFT(Template!A558,4)","v":""},{"$f":"VLOOKUP(A546,'Structure mapping'!K:V,7,0)","v":{"$error":"#N/A"}},{"$f":"LEFT(Template!B558,5)","v":""},{"$f":"VLOOKUP(C546,'Structure mapping'!F:J,5,0)","v":{"$error":"#N/A"}},{"$f":"LEFT(Template!C558,7)","v":""},{"$f":"VLOOKUP(E546,'Structure mapping'!A:E,5,0)","v":{"$error":"#N/A"}},{"$f":"LEFT(Template!D558,6)","v":""},{"$f":"VLOOKUP(G546,'Account mapping'!A:E,5,0)","v":{"$error":"#N/A"}},{"$f":"LEFT(Template!E558,2)","v":""},{"$f":"VLOOKUP(I546,'Structure mapping'!X:AB,5,0)","v":{"$error":"#N/A"}},{"$f":"LEFT(Template!F558,3)","v":""},{"$f":"VLOOKUP(K546,'Structure mapping'!AC:AG,5,0)","v":{"$error":"#N/A"}},{"$f":"LEFT(Template!G558,10)","v":""},{"$f":"VLOOKUP(M546,'Structure mapping'!AH:AL,5,0)","v":{"$error":"#N/A"}},{"$f":"LEFT(Template!H558,6)","v":""},{"$f":"VLOOKUP(O546,'Structure mapping'!AM:AQ,5,0)","v":{"$error":"#N/A"}},null,null,null,null,{"$f":"IF(Template!O558=\"\",\"\",Template!O558)","v":""},"Aug-24 pending entries",{"$f":"TEXT(Template!$B$9,\"mm/dd/yyy\")","v":"08/01/2024"},null,null,null,null,{"$f":"IF(Template!M558>0,Template!M558,-Template!N558)","v":0},null,null,null,{"$f":"VLOOKUP(G546,'Account mapping'!A:D,4,0)","v":{"$error":"#N/A"}}]
[{"$f":"LEFT(Template!A559,4)","v":""},{"$f":"VLOOKUP(A547,'Structure mapping'!K:V,7,0)","v":{"$error":"#N/A"}},{"$f":"LEFT(Template!B559,5)","v":""},{"$f":"VLOOKUP(C547,'Structure mapping'!F:J,5,0)","v":{"$error":"#N/A"}},{"$f":"LEFT(Template!C559,7)","v":""},{"$f":"VLOOKUP(E547,'Structure mapping'!A:E,5,0)","v":{"$error":"#N/A"}},{"$f":"LEFT(Template!D559,6)","v":""},{"$f":"VLOOKUP(G547,'Account mapping'!A:E,5,0)","v":{"$error":"#N/A"}},{"$f":"LEFT(Template!E559,2)","v":""},{"$f":"VLOOKUP(I547,'Structure mapping'!X:AB,5,0)","v":{"$error":"#N/A"}},{"$f":"LEFT(Template!F559,3)","v":""},{"$f":"VLOOKUP(K547,'Structure mapping'!AC:AG,5,0)","v":{"$error":"#N/A"}},{"$f":"LEFT(Template!G559,10)","v":""},{"$f":"VLOOKUP(M547,'Structure mapping'!AH:AL,5,0)","v":{"$error":"#N/A"}},{"$f":"LEFT(Template!H559,6)","v":""},{"$f":"VLOOKUP(O547,'Structure mapping'!AM:AQ,5,0)","v":{"$error":"#N/A"}},null,null,null,null,{"$f":"IF(Template!O559=\"\",\"\",Template!O559)","v":""},"Aug-24 pending entries",{"$f":"TEXT(Template!$B$9,\"mm/dd/yyy\")","v":"08/01/2024"},null,null,null,null,{"$f":"IF(Template!M559>0,Template!M559,-Template!N559)","v":0},null,null,null,{"$f":"VLOOKUP(G547,'Account mapping'!A:D,4,0)","v":{"$error":"#N/A"}}]
[{"$f":"LEFT(Template!A560,4)","v":""},{"$f":"VLOOKUP(A548,'Structure mapping'!K:V,7,0)","v":{"$error":"#N/A"}},{"$f":"LEFT(Template!B560,5)","v":""},{"$f":"VLOOKUP(C548,'Structure mapping'!F:J,5,0)","v":{"$error":"#N/A"}},{"$f":"LEFT(Template!C560,7)","v":""},{"$f":"VLOOKUP(E548,'Structure mapping'!A:E,5,0)","v":{"$error":"#N/A"}},{"$f":"LEFT(Template!D560,6)","v":""},{"$f":"VLOOKUP(G548,'Account mapping'!A:E,5,0)","v":{"$error":"#N/A"}},{"$f":"LEFT(Template!E560,2)","v":""},{"$f":"VLOOKUP(I548,'Structure mapping'!X:AB,5,0)","v":{"$error":"#N/A"}},{"$f":"LEFT(Template!F560,3)","v":""},{"$f":"VLOOKUP(K548,'Structure mapping'!AC:AG,5,0)","v":{"$error":"#N/A"}},{"$f":"LEFT(Template!G560,10)","v":""},{"$f":"VLOOKUP(M548,'Structure mapping'!AH:AL,5,0)","v":{"$error":"#N/A"}},{"$f":"LEFT(Template!H560,6)","v":""},{"$f":"VLOOKUP(O548,'Structure mapping'!AM:AQ,5,0)","v":{"$error":"#N/A"}},null,null,null,null,{"$f":"IF(Template!O560=\"\",\"\",Template!O560)","v":""},"Aug-24 pending entries",{"$f":"TEXT(Template!$B$9,\"mm/dd/yyy\")","v":"08/01/2024"},null,null,null,null,{"$f":"IF(Template!M560>0,Template!M560,-Template!N560)","v":0},null,null,null,{"$f":"VLOOKUP(G548,'Account mapping'!A:D,4,0)","v":{"$error":"#N/A"}}]
[{"$f":"LEFT(Template!A561,4)","v":""},{"$f":"VLOOKUP(A549,'Structure mapping'!K:V,7,0)","v":{"$error":"#N/A"}},{"$f":"LEFT(Template!B561,5)","v":""},{"$f":"VLOOKUP(C549,'Structure mapping'!F:J,5,0)","v":{"$error":"#N/A"}},{"$f":"LEFT(Template!C561,7)","v":""},{"$f":"VLOOKUP(E549,'Structure mapping'!A:E,5,0)","v":{"$error":"#N/A"}},{"$f":"LEFT(Template!D561,6)","v":""},{"$f":"VLOOKUP(G549,'Account mapping'!A:E,5,0)","v":{"$error":"#N/A"}},{"$f":"LEFT(Template!E561,2)","v":""},{"$f":"VLOOKUP(I549,'Structure mapping'!X:AB,5,0)","v":{"$error":"#N/A"}},{"$f":"LEFT(Template!F561,3)","v":""},{"$f":"VLOOKUP(K549,'Structure mapping'!AC:AG,5,0)","v":{"$error":"#N/A"}},{"$f":"LEFT(Template!G561,10)","v":""},{"$f":"VLOOKUP(M549,'Structure mapping'!AH:AL,5,0)","v":{"$error":"#N/A"}},{"$f":"LEFT(Template!H561,6)","v":""},{"$f":"VLOOKUP(O549,'Structure mapping'!AM:AQ,5,0)","v":{"$error":"#N/A"}},null,null,null,null,{"$f":"IF(Template!O561=\"\",\"\",Template!O561)","v":""},"Aug-24 pending entries",{"$f":"TEXT(Template!$B$9,\"mm/dd/yyy\")","v":"08/01/2024"},null,null,null,null,{"$f":"IF(Template!M561>0,Template!M561,-Template!N561)","v":0},null,null,null,{"$f":"VLOOKUP(G549,'Account mapping'!A:D,4,0)","v":{"$error":"#N/A"}}]
[{"$f":"LEFT(Template!A562,4)","v":""},{"$f":"VLOOKUP(A550,'Structure mapping'!K:V,7,0)","v":{"$error":"#N/A"}},{"$f":"LEFT(Template!B562,5)","v":""},{"$f":"VLOOKUP(C550,'Structure mapping'!F:J,5,0)","v":{"$error":"#N/A"}},{"$f":"LEFT(Template!C562,7)","v":""},{"$f":"VLOOKUP(E550,'Structure mapping'!A:E,5,0)","v":{"$error":"#N/A"}},{"$f":"LEFT(Template!D562,6)","v":""},{"$f":"VLOOKUP(G550,'Account mapping'!A:E,5,0)","v":{"$error":"#N/A"}},{"$f":"LEFT(Template!E562,2)","v":""},{"$f":"VLOOKUP(I550,'Structure mapping'!X:AB,5,0)","v":{"$error":"#N/A"}},{"$f":"LEFT(Template!F562,3)","v":""},{"$f":"VLOOKUP(K550,'Structure mapping'!AC:AG,5,0)","v":{"$error":"#N/A"}},{"$f":"LEFT(Template!G562,10)","v":""},{"$f":"VLOOKUP(M550,'Structure mapping'!AH:AL,5,0)","v":{"$error":"#N/A"}},{"$f":"LEFT(Template!H562,6)","v":""},{"$f":"VLOOKUP(O550,'Structure mapping'!AM:AQ,5,0)","v":{"$error":"#N/A"}},null,null,null,null,{"$f":"IF(Template!O562=\"\",\"\",Template!O562)","v":""},"Aug-24 pending entries",{"$f":"TEXT(Template!$B$9,\"mm/dd/yyy\")","v":"08/01/2024"},null,null,null,null,{"$f":"IF(Template!M562>0,Template!M562,-Template!N562)","v":0},null,null,null,{"$f":"VLOOKUP(G550,'Account mapping'!A:D,4,0)","v":{"$error":"#N/A"}}]
[{"$f":"LEFT(Template!A563,4)","v":""},{"$f":"VLOOKUP(A551,'Structure mapping'!K:V,7,0)","v":{"$error":"#N/A"}},{"$f":"LEFT(Template!B563,5)","v":""},{"$f":"VLOOKUP(C551,'Structure mapping'!F:J,5,0)","v":{"$error":"#N/A"}},{"$f":"LEFT(Template!C563,7)","v":""},{"$f":"VLOOKUP(E551,'Structure mapping'!A:E,5,0)","v":{"$error":"#N/A"}},{"$f":"LEFT(Template!D563,6)","v":""},{"$f":"VLOOKUP(G551,'Account mapping'!A:E,5,0)","v":{"$error":"#N/A"}},{"$f":"LEFT(Template!E563,2)","v":""},{"$f":"VLOOKUP(I551,'Structure mapping'!X:AB,5,0)","v":{"$error":"#N/A"}},{"$f":"LEFT(Template!F563,3)","v":""},{"$f":"VLOOKUP(K551,'Structure mapping'!AC:AG,5,0)","v":{"$error":"#N/A"}},{"$f":"LEFT(Template!G563,10)","v":""},{"$f":"VLOOKUP(M551,'Structure mapping'!AH:AL,5,0)","v":{"$error":"#N/A"}},{"$f":"LEFT(Template!H563,6)","v":""},{"$f":"VLOOKUP(O551,'Structure mapping'!AM:AQ,5,0)","v":{"$error":"#N/A"}},null,null,null,null,{"$f":"IF(Template!O563=\"\",\"\",Template!O563)","v":""},"Aug-24 pending entries",{"$f":"TEXT(Template!$B$9,\"mm/dd/yyy\")","v":"08/01/2024"},null,null,null,null,{"$f":"IF(Template!M563>0,Template!M563,-Template!N563)","v":0},null,null,null,{"$f":"VLOOKUP(G551,'Account mapping'!A:D,4,0)","v":{"$error":"#N/A"}}]
[{"$f":"LEFT(Template!A564,4)","v":""},{"$f":"VLOOKUP(A552,'Structure mapping'!K:V,7,0)","v":{"$error":"#N/A"}},{"$f":"LEFT(Template!B564,5)","v":""},{"$f":"VLOOKUP(C552,'Structure mapping'!F:J,5,0)","v":{"$error":"#N/A"}},{"$f":"LEFT(Template!C564,7)","v":""},{"$f":"VLOOKUP(E552,'Structure mapping'!A:E,5,0)","v":{"$error":"#N/A"}},{"$f":"LEFT(Template!D564,6)","v":""},{"$f":"VLOOKUP(G552,'Account mapping'!A:E,5,0)","v":{"$error":"#N/A"}},{"$f":"LEFT(Template!E564,2)","v":""},{"$f":"VLOOKUP(I552,'Structure mapping'!X:AB,5,0)","v":{"$error":"#N/A"}},{"$f":"LEFT(Template!F564,3)","v":""},{"$f":"VLOOKUP(K552,'Structure mapping'!AC:AG,5,0)","v":{"$error":"#N/A"}},{"$f":"LEFT(Template!G564,10)","v":""},{"$f":"VLOOKUP(M552,'Structure mapping'!AH:AL,5,0)","v":{"$error":"#N/A"}},{"$f":"LEFT(Template!H564,6)","v":""},{"$f":"VLOOKUP(O552,'Structure mapping'!AM:AQ,5,0)","v":{"$error":"#N/A"}},null,null,null,null,{"$f":"IF(Template!O564=\"\",\"\",Template!O564)","v":""},"Aug-24 pending entries",{"$f":"TEXT(Template!$B$9,\"mm/dd/yyy\")","v":"08/01/2024"},null,null,null,null,{"$f":"IF(Template!M564>0,Template!M564,-Template!N564)","v":0},null,null,null,{"$f":"VLOOKUP(G552,'Account mapping'!A:D,4,0)","v":{"$error":"#N/A"}}]
[{"$f":"LEFT(Template!A565,4)","v":""},{"$f":"VLOOKUP(A553,'Structure mapping'!K:V,7,0)","v":{"$error":"#N/A"}},{"$f":"LEFT(Template!B565,5)","v":""},{"$f":"VLOOKUP(C553,'Structure mapping'!F:J,5,0)","v":{"$error":"#N/A"}},{"$f":"LEFT(Template!C565,7)","v":""},{"$f":"VLOOKUP(E553,'Structure mapping'!A:E,5,0)","v":{"$error":"#N/A"}},{"$f":"LEFT(Template!D565,6)","v":""},{"$f":"VLOOKUP(G553,'Account mapping'!A:E,5,0)","v":{"$error":"#N/A"}},{"$f":"LEFT(Template!E565,2)","v":""},{"$f":"VLOOKUP(I553,'Structure mapping'!X:AB,5,0)","v":{"$error":"#N/A"}},{"$f":"LEFT(Template!F565,3)","v":""},{"$f":"VLOOKUP(K553,'Structure mapping'!AC:AG,5,0)","v":{"$error":"#N/A"}},{"$f":"LEFT(Template!G565,10)","v":""},{"$f":"VLOOKUP(M553,'Structure mapping'!AH:AL,5,0)","v":{"$error":"#N/A"}},{"$f":"LEFT(Template!H565,6)","v":""},{"$f":"VLOOKUP(O553,'Structure mapping'!AM:AQ,5,0)","v":{"$error":"#N/A"}},null,null,null,null,{"$f":"IF(Template!O565=\"\",\"\",Template!O565)","v":""},"Aug-24 pending entries",{"$f":"TEXT(Template!$B$9,\"mm/dd/yyy\")","v":"08/01/2024"},null,null,null,null,{"$f":"IF(Template!M565>0,Template!M565,-Template!N565)","v":0},null,null,null,{"$f":"VLOOKUP(G553,'Account mapping'!A:D,4,0)","v":{"$error":"#N/A"}}]
[{"$f":"LEFT(Template!A566,4)","v":""},{"$f":"VLOOKUP(A554,'Structure mapping'!K:V,7,0)","v":{"$error":"#N/A"}},{"$f":"LEFT(Template!B566,5)","v":""},{"$f":"VLOOKUP(C554,'Structure mapping'!F:J,5,0)","v":{"$error":"#N/A"}},{"$f":"LEFT(Template!C566,7)","v":""},{"$f":"VLOOKUP(E554,'Structure mapping'!A:E,5,0)","v":{"$error":"#N/A"}},{"$f":"LEFT(Template!D566,6)","v":""},{"$f":"VLOOKUP(G554,'Account mapping'!A:E,5,0)","v":{"$error":"#N/A"}},{"$f":"LEFT(Template!E566,2)","v":""},{"$f":"VLOOKUP(I554,'Structure mapping'!X:AB,5,0)","v":{"$error":"#N/A"}},{"$f":"LEFT(Template!F566,3)","v":""},{"$f":"VLOOKUP(K554,'Structure mapping'!AC:AG,5,0)","v":{"$error":"#N/A"}},{"$f":"LEFT(Template!G566,10)","v":""},{"$f":"VLOOKUP(M554,'Structure mapping'!AH:AL,5,0)","v":{"$error":"#N/A"}},{"$f":"LEFT(Template!H566,6)","v":""},{"$f":"VLOOKUP(O554,'Structure mapping'!AM:AQ,5,0)","v":{"$error":"#N/A"}},null,null,null,null,{"$f":"IF(Template!O566=\"\",\"\",Template!O566)","v":""},"Aug-24 pending entries",{"$f":"TEXT(Template!$B$9,\"mm/dd/yyy\")","v":"08/01/2024"},null,null,null,null,{"$f":"IF(Template!M566>0,Template!M566,-Template!N566)","v":0},null,null,null,{"$f":"VLOOKUP(G554,'Account mapping'!A:D,4,0)","v":{"$error":"#N/A"}}]
[{"$f":"LEFT(Template!A567,4)","v":""},{"$f":"VLOOKUP(A555,'Structure mapping'!K:V,7,0)","v":{"$error":"#N/A"}},{"$f":"LEFT(Template!B567,5)","v":""},{"$f":"VLOOKUP(C555,'Structure mapping'!F:J,5,0)","v":{"$error":"#N/A"}},{"$f":"LEFT(Template!C567,7)","v":""},{"$f":"VLOOKUP(E555,'Structure mapping'!A:E,5,0)","v":{"$error":"#N/A"}},{"$f":"LEFT(Template!D567,6)","v":""},{"$f":"VLOOKUP(G555,'Account mapping'!A:E,5,0)","v":{"$error":"#N/A"}},{"$f":"LEFT(Template!E567,2)","v":""},{"$f":"VLOOKUP(I555,'Structure mapping'!X:AB,5,0)","v":{"$error":"#N/A"}},{"$f":"LEFT(Template!F567,3)","v":""},{"$f":"VLOOKUP(K555,'Structure mapping'!AC:AG,5,0)","v":{"$error":"#N/A"}},{"$f":"LEFT(Template!G567,10)","v":""},{"$f":"VLOOKUP(M555,'Structure mapping'!AH:AL,5,0)","v":{"$error":"#N/A"}},{"$f":"LEFT(Template!H567,6)","v":""},{"$f":"VLOOKUP(O555,'Structure mapping'!AM:AQ,5,0)","v":{"$error":"#N/A"}},null,null,null,null,{"$f":"IF(Template!O567=\"\",\"\",Template!O567)","v":""},"Aug-24 pending entries",{"$f":"TEXT(Template!$B$9,\"mm/dd/yyy\")","v":"08/01/2024"},null,null,null,null,{"$f":"IF(Template!M567>0,Template!M567,-Template!N567)","v":0},null,null,null,{"$f":"VLOOKUP(G555,'Account mapping'!A:D,4,0)","v":{"$error":"#N/A"}}]
[{"$f":"LEFT(Template!A568,4)","v":""},{"$f":"VLOOKUP(A556,'Structure mapping'!K:V,7,0)","v":{"$error":"#N/A"}},{"$f":"LEFT(Template!B568,5)","v":""},{"$f":"VLOOKUP(C556,'Structure mapping'!F:J,5,0)","v":{"$error":"#N/A"}},{"$f":"LEFT(Template!C568,7)","v":""},{"$f":"VLOOKUP(E556,'Structure mapping'!A:E,5,0)","v":{"$error":"#N/A"}},{"$f":"LEFT(Template!D568,6)","v":""},{"$f":"VLOOKUP(G556,'Account mapping'!A:E,5,0)","v":{"$error":"#N/A"}},{"$f":"LEFT(Template!E568,2)","v":""},{"$f":"VLOOKUP(I556,'Structure mapping'!X:AB,5,0)","v":{"$error":"#N/A"}},{"$f":"LEFT(Template!F568,3)","v":""},{"$f":"VLOOKUP(K556,'Structure mapping'!AC:AG,5,0)","v":{"$error":"#N/A"}},{"$f":"LEFT(Template!G568,10)","v":""},{"$f":"VLOOKUP(M556,'Structure mapping'!AH:AL,5,0)","v":{"$error":"#N/A"}},{"$f":"LEFT(Template!H568,6)","v":""},{"$f":"VLOOKUP(O556,'Structure mapping'!AM:AQ,5,0)","v":{"$error":"#N/A"}},null,null,null,null,{"$f":"IF(Template!O568=\"\",\"\",Template!O568)","v":""},"Aug-24 pending entries",{"$f":"TEXT(Template!$B$9,\"mm/dd/yyy\")","v":"08/01/2024"},null,null,null,null,{"$f":"IF(Template!M568>0,Template!M568,-Template!N568)","v":0},null,null,null,{"$f":"VLOOKUP(G556,'Account mapping'!A:D,4,0)","v":{"$error":"#N/A"}}]
[{"$f":"LEFT(Template!A569,4)","v":""},{"$f":"VLOOKUP(A557,'Structure mapping'!K:V,7,0)","v":{"$error":"#N/A"}},{"$f":"LEFT(Template!B569,5)","v":""},{"$f":"VLOOKUP(C557,'Structure mapping'!F:J,5,0)","v":{"$error":"#N/A"}},{"$f":"LEFT(Template!C569,7)","v":""},{"$f":"VLOOKUP(E557,'Structure mapping'!A:E,5,0)","v":{"$error":"#N/A"}},{"$f":"LEFT(Template!D569,6)","v":""},{"$f":"VLOOKUP(G557,'Account mapping'!A:E,5,0)","v":{"$error":"#N/A"}},{"$f":"LEFT(Template!E569,2)","v":""},{"$f":"VLOOKUP(I557,'Structure mapping'!X:AB,5,0)","v":{"$error":"#N/A"}},{"$f":"LEFT(Template!F569,3)","v":""},{"$f":"VLOOKUP(K557,'Structure mapping'!AC:AG,5,0)","v":{"$error":"#N/A"}},{"$f":"LEFT(Template!G569,10)","v":""},{"$f":"VLOOKUP(M557,'Structure mapping'!AH:AL,5,0)","v":{"$error":"#N/A"}},{"$f":"LEFT(Template!H569,6)","v":""},{"$f":"VLOOKUP(O557,'Structure mapping'!AM:AQ,5,0)","v":{"$error":"#N/A"}},null,null,null,null,{"$f":"IF(Template!O569=\"\",\"\",Template!O569)","v":""},"Aug-24 pending entries",{"$f":"TEXT(Template!$B$9,\"mm/dd/yyy\")","v":"08/01/2024"},null,null,null,null,{"$f":"IF(Template!M569>0,Template!M569,-Template!N569)","v":0},null,null,null,{"$f":"VLOOKUP(G557,'Account mapping'!A:D,4,0)","v":{"$error":"#N/A"}}]
[{"$f":"LEFT(Template!A570,4)","v":""},{"$f":"VLOOKUP(A558,'Structure mapping'!K:V,7,0)","v":{"$error":"#N/A"}},{"$f":"LEFT(Template!B570,5)","v":""},{"$f":"VLOOKUP(C558,'Structure mapping'!F:J,5,0)","v":{"$error":"#N/A"}},{"$f":"LEFT(Template!C570,7)","v":""},{"$f":"VLOOKUP(E558,'Structure mapping'!A:E,5,0)","v":{"$error":"#N/A"}},{"$f":"LEFT(Template!D570,6)","v":""},{"$f":"VLOOKUP(G558,'Account mapping'!A:E,5,0)","v":{"$error":"#N/A"}},{"$f":"LEFT(Template!E570,2)","v":""},{"$f":"VLOOKUP(I558,'Structure mapping'!X:AB,5,0)","v":{"$error":"#N/A"}},{"$f":"LEFT(Template!F570,3)","v":""},{"$f":"VLOOKUP(K558,'Structure mapping'!AC:AG,5,0)","v":{"$error":"#N/A"}},{"$f":"LEFT(Template!G570,10)","v":""},{"$f":"VLOOKUP(M558,'Structure mapping'!AH:AL,5,0)","v":{"$error":"#N/A"}},{"$f":"LEFT(Template!H570,6)","v":""},{"$f":"VLOOKUP(O558,'Structure mapping'!AM:AQ,5,0)","v":{"$error":"#N/A"}},null,null,null,null,{"$f":"IF(Template!O570=\"\",\"\",Template!O570)","v":""},"Aug-24 pending entries",{"$f":"TEXT(Template!$B$9,\"mm/dd/yyy\")","v":"08/01/2024"},null,null,null,null,{"$f":"IF(Template!M570>0,Template!M570,-Template!N570)","v":0},null,null,null,{"$f":"VLOOKUP(G558,'Account mapping'!A:D,4,0)","v":{"$error":"#N/A"}}]
[{"$f":"LEFT(Template!A571,4)","v":""},{"$f":"VLOOKUP(A559,'Structure mapping'!K:V,7,0)","v":{"$error":"#N/A"}},{"$f":"LEFT(Template!B571,5)","v":""},{"$f":"VLOOKUP(C559,'Structure mapping'!F:J,5,0)","v":{"$error":"#N/A"}},{"$f":"LEFT(Template!C571,7)","v":""},{"$f":"VLOOKUP(E559,'Structure mapping'!A:E,5,0)","v":{"$error":"#N/A"}},{"$f":"LEFT(Template!D571,6)","v":""},{"$f":"VLOOKUP(G559,'Account mapping'!A:E,5,0)","v":{"$error":"#N/A"}},{"$f":"LEFT(Template!E571,2)","v":""},{"$f":"VLOOKUP(I559,'Structure mapping'!X:AB,5,0)","v":{"$error":"#N/A"}},{"$f":"LEFT(Template!F571,3)","v":""},{"$f":"VLOOKUP(K559,'Structure mapping'!AC:AG,5,0)","v":{"$error":"#N/A"}},{"$f":"LEFT(Template!G571,10)","v":""},{"$f":"VLOOKUP(M559,'Structure mapping'!AH:AL,5,0)","v":{"$error":"#N/A"}},{"$f":"LEFT(Template!H571,6)","v":""},{"$f":"VLOOKUP(O559,'Structure mapping'!AM:AQ,5,0)","v":{"$error":"#N/A"}},null,null,null,null,{"$f":"IF(Template!O571=\"\",\"\",Template!O571)","v":""},"Aug-24 pending entries",{"$f":"TEXT(Template!$B$9,\"mm/dd/yyy\")","v":"08/01/2024"},null,null,null,null,{"$f":"IF(Template!M571>0,Template!M571,-Template!N571)","v":0},null,null,null,{"$f":"VLOOKUP(G559,'Account mapping'!A:D,4,0)","v":{"$error":"#N/A"}}]
[{"$f":"LEFT(Template!A572,4)","v":""},{"$f":"VLOOKUP(A560,'Structure mapping'!K:V,7,0)","v":{"$error":"#N/A"}},{"$f":"LEFT(Template!B572,5)","v":""},{"$f":"VLOOKUP(C560,'Structure mapping'!F:J,5,0)","v":{"$error":"#N/A"}},{"$f":"LEFT(Template!C572,7)","v":""},{"$f":"VLOOKUP(E560,'Structure mapping'!A:E,5,0)","v":{"$error":"#N/A"}},{"$f":"LEFT(Template!D572,6)","v":""},{"$f":"VLOOKUP(G560,'Account mapping'!A:E,5,0)","v":{"$error":"#N/A"}},{"$f":"LEFT(Template!E572,2)","v":""},{"$f":"VLOOKUP(I560,'Structure mapping'!X:AB,5,0)","v":{"$error":"#N/A"}},{"$f":"LEFT(Template!F572,3)","v":""},{"$f":"VLOOKUP(K560,'Structure mapping'!AC:AG,5,0)","v":{"$error":"#N/A"}},{"$f":"LEFT(Template!G572,10)","v":""},{"$f":"VLOOKUP(M560,'Structure mapping'!AH:AL,5,0)","v":{"$error":"#N/A"}},{"$f":"LEFT(Template!H572,6)","v":""},{"$f":"VLOOKUP(O560,'Structure mapping'!AM:AQ,5,0)","v":{"$error":"#N/A"}},null,null,null,null,{"$f":"IF(Template!O572=\"\",\"\",Template!O572)","v":""},"Aug-24 pending entries",{"$f":"TEXT(Template!$B$9,\"mm/dd/yyy\")","v":"08/01/2024"},null,null,null,null,{"$f":"IF(Template!M572>0,Template!M572,-Template!N572)","v":0},null,null,null,{"$f":"VLOOKUP(G560,'Account mapping'!A:D,4,0)","v":{"$error":"#N/A"}}]
[{"$f":"LEFT(Template!A573,4)","v":""},{"$f":"VLOOKUP(A561,'Structure mapping'!K:V,7,0)","v":{"$error":"#N/A"}},{"$f":"LEFT(Template!B573,5)","v":""},{"$f":"VLOOKUP(C561,'Structure mapping'!F:J,5,0)","v":{"$error":"#N/A"}},{"$f":"LEFT(Template!C573,7)","v":""},{"$f":"VLOOKUP(E561,'Structure mapping'!A:E,5,0)","v":{"$error":"#N/A"}},{"$f":"LEFT(Template!D573,6)","v":""},{"$f":"VLOOKUP(G561,'Account mapping'!A:E,5,0)","v":{"$error":"#N/A"}},{"$f":"LEFT(Template!E573,2)","v":""},{"$f":"VLOOKUP(I561,'Structure mapping'!X:AB,5,0)","v":{"$error":"#N/A"}},{"$f":"LEFT(Template!F573,3)","v":""},{"$f":"VLOOKUP(K561,'Structure mapping'!AC:AG,5,0)","v":{"$error":"#N/A"}},{"$f":"LEFT(Template!G573,10)","v":""},{"$f":"VLOOKUP(M561,'Structure mapping'!AH:AL,5,0)","v":{"$error":"#N/A"}},{"$f":"LEFT(Template!H573,6)","v":""},{"$f":"VLOOKUP(O561,'Structure mapping'!AM:AQ,5,0)","v":{"$error":"#N/A"}},null,null,null,null,{"$f":"IF(Template!O573=\"\",\"\",Template!O573)","v":""},"Aug-24 pending entries",{"$f":"TEXT(Template!$B$9,\"mm/dd/yyy\")","v":"08/01/2024"},null,null,null,null,{"$f":"IF(Template!M573>0,Template!M573,-Template!N573)","v":0},null,null,null,{"$f":"VLOOKUP(G561,'Account mapping'!A:D,4,0)","v":{"$error":"#N/A"}}]
[{"$f":"LEFT(Template!A574,4)","v":""},{"$f":"VLOOKUP(A562,'Structure mapping'!K:V,7,0)","v":{"$error":"#N/A"}},{"$f":"LEFT(Template!B574,5)","v":""},{"$f":"VLOOKUP(C562,'Structure mapping'!F:J,5,0)","v":{"$error":"#N/A"}},{"$f":"LEFT(Template!C574,7)","v":""},{"$f":"VLOOKUP(E562,'Structure mapping'!A:E,5,0)","v":{"$error":"#N/A"}},{"$f":"LEFT(Template!D574,6)","v":""},{"$f":"VLOOKUP(G562,'Account mapping'!A:E,5,0)","v":{"$error":"#N/A"}},{"$f":"LEFT(Template!E574,2)","v":""},{"$f":"VLOOKUP(I562,'Structure mapping'!X:AB,5,0)","v":{"$error":"#N/A"}},{"$f":"LEFT(Template!F574,3)","v":""},{"$f":"VLOOKUP(K562,'Structure mapping'!AC:AG,5,0)","v":{"$error":"#N/A"}},{"$f":"LEFT(Template!G574,10)","v":""},{"$f":"VLOOKUP(M562,'Structure mapping'!AH:AL,5,0)","v":{"$error":"#N/A"}},{"$f":"LEFT(Template!H574,6)","v":""},{"$f":"VLOOKUP(O562,'Structure mapping'!AM:AQ,5,0)","v":{"$error":"#N/A"}},null,null,null,null,{"$f":"IF(Template!O574=\"\",\"\",Template!O574)","v":""},"Aug-24 pending entries",{"$f":"TEXT(Template!$B$9,\"mm/dd/yyy\")","v":"08/01/2024"},null,null,null,null,{"$f":"IF(Template!M574>0,Template!M574,-Template!N574)","v":0},null,null,null,{"$f":"VLOOKUP(G562,'Account mapping'!A:D,4,0)","v":{"$error":"#N/A"}}]
[{"$f":"LEFT(Template!A575,4)","v":""},{"$f":"VLOOKUP(A563,'Structure mapping'!K:V,7,0)","v":{"$error":"#N/A"}},{"$f":"LEFT(Template!B575,5)","v":""},{"$f":"VLOOKUP(C563,'Structure mapping'!F:J,5,0)","v":{"$error":"#N/A"}},{"$f":"LEFT(Template!C575,7)","v":""},{"$f":"VLOOKUP(E563,'Structure mapping'!A:E,5,0)","v":{"$error":"#N/A"}},{"$f":"LEFT(Template!D575,6)","v":""},{"$f":"VLOOKUP(G563,'Account mapping'!A:E,5,0)","v":{"$error":"#N/A"}},{"$f":"LEFT(Template!E575,2)","v":""},{"$f":"VLOOKUP(I563,'Structure mapping'!X:AB,5,0)","v":{"$error":"#N/A"}},{"$f":"LEFT(Template!F575,3)","v":""},{"$f":"VLOOKUP(K563,'Structure mapping'!AC:AG,5,0)","v":{"$error":"#N/A"}},{"$f":"LEFT(Template!G575,10)","v":""},{"$f":"VLOOKUP(M563,'Structure mapping'!AH:AL,5,0)","v":{"$error":"#N/A"}},{"$f":"LEFT(Template!H575,6)","v":""},{"$f":"VLOOKUP(O563,'Structure mapping'!AM:AQ,5,0)","v":{"$error":"#N/A"}},null,null,null,null,{"$f":"IF(Template!O575=\"\",\"\",Template!O575)","v":""},"Aug-24 pending entries",{"$f":"TEXT(Template!$B$9,\"mm/dd/yyy\")","v":"08/01/2024"},null,null,null,null,{"$f":"IF(Template!M575>0,Template!M575,-Template!N575)","v":0},null,null,null,{"$f":"VLOOKUP(G563,'Account mapping'!A:D,4,0)","v":{"$error":"#N/A"}}]
[{"$f":"LEFT(Template!A576,4)","v":""},{"$f":"VLOOKUP(A564,'Structure mapping'!K:V,7,0)","v":{"$error":"#N/A"}},{"$f":"LEFT(Template!B576,5)","v":""},{"$f":"VLOOKUP(C564,'Structure mapping'!F:J,5,0)","v":{"$error":"#N/A"}},{"$f":"LEFT(Template!C576,7)","v":""},{"$f":"VLOOKUP(E564,'Structure mapping'!A:E,5,0)","v":{"$error":"#N/A"}},{"$f":"LEFT(Template!D576,6)","v":""},{"$f":"VLOOKUP(G564,'Account mapping'!A:E,5,0)","v":{"$error":"#N/A"}},{"$f":"LEFT(Template!E576,2)","v":""},{"$f":"VLOOKUP(I564,'Structure mapping'!X:AB,5,0)","v":{"$error":"#N/A"}},{"$f":"LEFT(Template!F576,3)","v":""},{"$f":"VLOOKUP(K564,'Structure mapping'!AC:AG,5,0)","v":{"$error":"#N/A"}},{"$f":"LEFT(Template!G576,10)","v":""},{"$f":"VLOOKUP(M564,'Structure mapping'!AH:AL,5,0)","v":{"$error":"#N/A"}},{"$f":"LEFT(Template!H576,6)","v":""},{"$f":"VLOOKUP(O564,'Structure mapping'!AM:AQ,5,0)","v":{"$error":"#N/A"}},null,null,null,null,{"$f":"IF(Template!O576=\"\",\"\",Template!O576)","v":""},"Aug-24 pending entries",{"$f":"TEXT(Template!$B$9,\"mm/dd/yyy\")","v":"08/01/2024"},null,null,null,null,{"$f":"IF(Template!M576>0,Template!M576,-Template!N576)","v":0},null,null,null,{"$f":"VLOOKUP(G564,'Account mapping'!A:D,4,0)","v":{"$error":"#N/A"}}]
[{"$f":"LEFT(Template!A577,4)","v":""},{"$f":"VLOOKUP(A565,'Structure mapping'!K:V,7,0)","v":{"$error":"#N/A"}},{"$f":"LEFT(Template!B577,5)","v":""},{"$f":"VLOOKUP(C565,'Structure mapping'!F:J,5,0)","v":{"$error":"#N/A"}},{"$f":"LEFT(Template!C577,7)","v":""},{"$f":"VLOOKUP(E565,'Structure mapping'!A:E,5,0)","v":{"$error":"#N/A"}},{"$f":"LEFT(Template!D577,6)","v":""},{"$f":"VLOOKUP(G565,'Account mapping'!A:E,5,0)","v":{"$error":"#N/A"}},{"$f":"LEFT(Template!E577,2)","v":""},{"$f":"VLOOKUP(I565,'Structure mapping'!X:AB,5,0)","v":{"$error":"#N/A"}},{"$f":"LEFT(Template!F577,3)","v":""},{"$f":"VLOOKUP(K565,'Structure mapping'!AC:AG,5,0)","v":{"$error":"#N/A"}},{"$f":"LEFT(Template!G577,10)","v":""},{"$f":"VLOOKUP(M565,'Structure mapping'!AH:AL,5,0)","v":{"$error":"#N/A"}},{"$f":"LEFT(Template!H577,6)","v":""},{"$f":"VLOOKUP(O565,'Structure mapping'!AM:AQ,5,0)","v":{"$error":"#N/A"}},null,null,null,null,{"$f":"IF(Template!O577=\"\",\"\",Template!O577)","v":""},"Aug-24 pending entries",{"$f":"TEXT(Template!$B$9,\"mm/dd/yyy\")","v":"08/01/2024"},null,null,null,null,{"$f":"IF(Template!M577>0,Template!M577,-Template!N577)","v":0},null,null,null,{"$f":"VLOOKUP(G565,'Account mapping'!A:D,4,0)","v":{"$error":"#N/A"}}]
[{"$f":"LEFT(Template!A578,4)","v":""},{"$f":"VLOOKUP(A566,'Structure mapping'!K:V,7,0)","v":{"$error":"#N/A"}},{"$f":"LEFT(Template!B578,5)","v":""},{"$f":"VLOOKUP(C566,'Structure mapping'!F:J,5,0)","v":{"$error":"#N/A"}},{"$f":"LEFT(Template!C578,7)","v":""},{"$f":"VLOOKUP(E566,'Structure mapping'!A:E,5,0)","v":{"$error":"#N/A"}},{"$f":"LEFT(Template!D578,6)","v":""},{"$f":"VLOOKUP(G566,'Account mapping'!A:E,5,0)","v":{"$error":"#N/A"}},{"$f":"LEFT(Template!E578,2)","v":""},{"$f":"VLOOKUP(I566,'Structure mapping'!X:AB,5,0)","v":{"$error":"#N/A"}},{"$f":"LEFT(Template!F578,3)","v":""},{"$f":"VLOOKUP(K566,'Structure mapping'!AC:AG,5,0)","v":{"$error":"#N/A"}},{"$f":"LEFT(Template!G578,10)","v":""},{"$f":"VLOOKUP(M566,'Structure mapping'!AH:AL,5,0)","v":{"$error":"#N/A"}},{"$f":"LEFT(Template!H578,6)","v":""},{"$f":"VLOOKUP(O566,'Structure mapping'!AM:AQ,5,0)","v":{"$error":"#N/A"}},null,null,null,null,{"$f":"IF(Template!O578=\"\",\"\",Template!O578)","v":""},"Aug-24 pending entries",{"$f":"TEXT(Template!$B$9,\"mm/dd/yyy\")","v":"08/01/2024"},null,null,null,null,{"$f":"IF(Template!M578>0,Template!M578,-Template!N578)","v":0},null,null,null,{"$f":"VLOOKUP(G566,'Account mapping'!A:D,4,0)","v":{"$error":"#N/A"}}]
[{"$f":"LEFT(Template!A579,4)","v":""},{"$f":"VLOOKUP(A567,'Structure mapping'!K:V,7,0)","v":{"$error":"#N/A"}},{"$f":"LEFT(Template!B579,5)","v":""},{"$f":"VLOOKUP(C567,'Structure mapping'!F:J,5,0)","v":{"$error":"#N/A"}},{"$f":"LEFT(Template!C579,7)","v":""},{"$f":"VLOOKUP(E567,'Structure mapping'!A:E,5,0)","v":{"$error":"#N/A"}},{"$f":"LEFT(Template!D579,6)","v":""},{"$f":"VLOOKUP(G567,'Account mapping'!A:E,5,0)","v":{"$error":"#N/A"}},{"$f":"LEFT(Template!E579,2)","v":""},{"$f":"VLOOKUP(I567,'Structure mapping'!X:AB,5,0)","v":{"$error":"#N/A"}},{"$f":"LEFT(Template!F579,3)","v":""},{"$f":"VLOOKUP(K567,'Structure mapping'!AC:AG,5,0)","v":{"$error":"#N/A"}},{"$f":"LEFT(Template!G579,10)","v":""},{"$f":"VLOOKUP(M567,'Structure mapping'!AH:AL,5,0)","v":{"$error":"#N/A"}},{"$f":"LEFT(Template!H579,6)","v":""},{"$f":"VLOOKUP(O567,'Structure mapping'!AM:AQ,5,0)","v":{"$error":"#N/A"}},null,null,null,null,{"$f":"IF(Template!O579=\"\",\"\",Template!O579)","v":""},"Aug-24 pending entries",{"$f":"TEXT(Template!$B$9,\"mm/dd/yyy\")","v":"08/01/2024"},null,null,null,null,{"$f":"IF(Template!M579>0,Template!M579,-Template!N579)","v":0},null,null,null,{"$f":"VLOOKUP(G567,'Account mapping'!A:D,4,0)","v":{"$error":"#N/A"}}]
[{"$f":"LEFT(Template!A580,4)","v":""},{"$f":"VLOOKUP(A568,'Structure mapping'!K:V,7,0)","v":{"$error":"#N/A"}},{"$f":"LEFT(Template!B580,5)","v":""},{"$f":"VLOOKUP(C568,'Structure mapping'!F:J,5,0)","v":{"$error":"#N/A"}},{"$f":"LEFT(Template!C580,7)","v":""},{"$f":"VLOOKUP(E568,'Structure mapping'!A:E,5,0)","v":{"$error":"#N/A"}},{"$f":"LEFT(Template!D580,6)","v":""},{"$f":"VLOOKUP(G568,'Account mapping'!A:E,5,0)","v":{"$error":"#N/A"}},{"$f":"LEFT(Template!E580,2)","v":""},{"$f":"VLOOKUP(I568,'Structure mapping'!X:AB,5,0)","v":{"$error":"#N/A"}},{"$f":"LEFT(Template!F580,3)","v":""},{"$f":"VLOOKUP(K568,'Structure mapping'!AC:AG,5,0)","v":{"$error":"#N/A"}},{"$f":"LEFT(Template!G580,10)","v":""},{"$f":"VLOOKUP(M568,'Structure mapping'!AH:AL,5,0)","v":{"$error":"#N/A"}},{"$f":"LEFT(Template!H580,6)","v":""},{"$f":"VLOOKUP(O568,'Structure mapping'!AM:AQ,5,0)","v":{"$error":"#N/A"}},null,null,null,null,{"$f":"IF(Template!O580=\"\",\"\",Template!O580)","v":""},"Aug-24 pending entries",{"$f":"TEXT(Template!$B$9,\"mm/dd/yyy\")","v":"08/01/2024"},null,null,null,null,{"$f":"IF(Template!M580>0,Template!M580,-Template!N580)","v":0},null,null,null,{"$f":"VLOOKUP(G568,'Account mapping'!A:D,4,0)","v":{"$error":"#N/A"}}]
[{"$f":"LEFT(Template!A581,4)","v":""},{"$f":"VLOOKUP(A569,'Structure mapping'!K:V,7,0)","v":{"$error":"#N/A"}},{"$f":"LEFT(Template!B581,5)","v":""},{"$f":"VLOOKUP(C569,'Structure mapping'!F:J,5,0)","v":{"$error":"#N/A"}},{"$f":"LEFT(Template!C581,7)","v":""},{"$f":"VLOOKUP(E569,'Structure mapping'!A:E,5,0)","v":{"$error":"#N/A"}},{"$f":"LEFT(Template!D581,6)","v":""},{"$f":"VLOOKUP(G569,'Account mapping'!A:E,5,0)","v":{"$error":"#N/A"}},{"$f":"LEFT(Template!E581,2)","v":""},{"$f":"VLOOKUP(I569,'Structure mapping'!X:AB,5,0)","v":{"$error":"#N/A"}},{"$f":"LEFT(Template!F581,3)","v":""},{"$f":"VLOOKUP(K569,'Structure mapping'!AC:AG,5,0)","v":{"$error":"#N/A"}},{"$f":"LEFT(Template!G581,10)","v":""},{"$f":"VLOOKUP(M569,'Structure mapping'!AH:AL,5,0)","v":{"$error":"#N/A"}},{"$f":"LEFT(Template!H581,6)","v":""},{"$f":"VLOOKUP(O569,'Structure mapping'!AM:AQ,5,0)","v":{"$error":"#N/A"}},null,null,null,null,{"$f":"IF(Template!O581=\"\",\"\",Template!O581)","v":""},"Aug-24 pending entries",{"$f":"TEXT(Template!$B$9,\"mm/dd/yyy\")","v":"08/01/2024"},null,null,null,null,{"$f":"IF(Template!M581>0,Template!M581,-Template!N581)","v":0},null,null,null,{"$f":"VLOOKUP(G569,'Account mapping'!A:D,4,0)","v":{"$error":"#N/A"}}]
[{"$f":"LEFT(Template!A582,4)","v":""},{"$f":"VLOOKUP(A570,'Structure mapping'!K:V,7,0)","v":{"$error":"#N/A"}},{"$f":"LEFT(Template!B582,5)","v":""},{"$f":"VLOOKUP(C570,'Structure mapping'!F:J,5,0)","v":{"$error":"#N/A"}},{"$f":"LEFT(Template!C582,7)","v":""},{"$f":"VLOOKUP(E570,'Structure mapping'!A:E,5,0)","v":{"$error":"#N/A"}},{"$f":"LEFT(Template!D582,6)","v":""},{"$f":"VLOOKUP(G570,'Account mapping'!A:E,5,0)","v":{"$error":"#N/A"}},{"$f":"LEFT(Template!E582,2)","v":""},{"$f":"VLOOKUP(I570,'Structure mapping'!X:AB,5,0)","v":{"$error":"#N/A"}},{"$f":"LEFT(Template!F582,3)","v":""},{"$f":"VLOOKUP(K570,'Structure mapping'!AC:AG,5,0)","v":{"$error":"#N/A"}},{"$f":"LEFT(Template!G582,10)","v":""},{"$f":"VLOOKUP(M570,'Structure mapping'!AH:AL,5,0)","v":{"$error":"#N/A"}},{"$f":"LEFT(Template!H582,6)","v":""},{"$f":"VLOOKUP(O570,'Structure mapping'!AM:AQ,5,0)","v":{"$error":"#N/A"}},null,null,null,null,{"$f":"IF(Template!O582=\"\",\"\",Template!O582)","v":""},"Aug-24 pending entries",{"$f":"TEXT(Template!$B$9,\"mm/dd/yyy\")","v":"08/01/2024"},null,null,null,null,{"$f":"IF(Template!M582>0,Template!M582,-Template!N582)","v":0},null,null,null,{"$f":"VLOOKUP(G570,'Account mapping'!A:D,4,0)","v":{"$error":"#N/A"}}]
[{"$f":"LEFT(Template!A583,4)","v":""},{"$f":"VLOOKUP(A571,'Structure mapping'!K:V,7,0)","v":{"$error":"#N/A"}},{"$f":"LEFT(Template!B583,5)","v":""},{"$f":"VLOOKUP(C571,'Structure mapping'!F:J,5,0)","v":{"$error":"#N/A"}},{"$f":"LEFT(Template!C583,7)","v":""},{"$f":"VLOOKUP(E571,'Structure mapping'!A:E,5,0)","v":{"$error":"#N/A"}},{"$f":"LEFT(Template!D583,6)","v":""},{"$f":"VLOOKUP(G571,'Account mapping'!A:E,5,0)","v":{"$error":"#N/A"}},{"$f":"LEFT(Template!E583,2)","v":""},{"$f":"VLOOKUP(I571,'Structure mapping'!X:AB,5,0)","v":{"$error":"#N/A"}},{"$f":"LEFT(Template!F583,3)","v":""},{"$f":"VLOOKUP(K571,'Structure mapping'!AC:AG,5,0)","v":{"$error":"#N/A"}},{"$f":"LEFT(Template!G583,10)","v":""},{"$f":"VLOOKUP(M571,'Structure mapping'!AH:AL,5,0)","v":{"$error":"#N/A"}},{"$f":"LEFT(Template!H583,6)","v":""},{"$f":"VLOOKUP(O571,'Structure mapping'!AM:AQ,5,0)","v":{"$error":"#N/A"}},null,null,null,null,{"$f":"IF(Template!O583=\"\",\"\",Template!O583)","v":""},"Aug-24 pending entries",{"$f":"TEXT(Template!$B$9,\"mm/dd/yyy\")","v":"08/01/2024"},null,null,null,null,{"$f":"IF(Template!M583>0,Template!M583,-Template!N583)","v":0},null,null,null,{"$f":"VLOOKUP(G571,'Account mapping'!A:D,4,0)","v":{"$error":"#N/A"}}]
[{"$f":"LEFT(Template!A584,4)","v":""},{"$f":"VLOOKUP(A572,'Structure mapping'!K:V,7,0)","v":{"$error":"#N/A"}},{"$f":"LEFT(Template!B584,5)","v":""},{"$f":"VLOOKUP(C572,'Structure mapping'!F:J,5,0)","v":{"$error":"#N/A"}},{"$f":"LEFT(Template!C584,7)","v":""},{"$f":"VLOOKUP(E572,'Structure mapping'!A:E,5,0)","v":{"$error":"#N/A"}},{"$f":"LEFT(Template!D584,6)","v":""},{"$f":"VLOOKUP(G572,'Account mapping'!A:E,5,0)","v":{"$error":"#N/A"}},{"$f":"LEFT(Template!E584,2)","v":""},{"$f":"VLOOKUP(I572,'Structure mapping'!X:AB,5,0)","v":{"$error":"#N/A"}},{"$f":"LEFT(Template!F584,3)","v":""},{"$f":"VLOOKUP(K572,'Structure mapping'!AC:AG,5,0)","v":{"$error":"#N/A"}},{"$f":"LEFT(Template!G584,10)","v":""},{"$f":"VLOOKUP(M572,'Structure mapping'!AH:AL,5,0)","v":{"$error":"#N/A"}},{"$f":"LEFT(Template!H584,6)","v":""},{"$f":"VLOOKUP(O572,'Structure mapping'!AM:AQ,5,0)","v":{"$error":"#N/A"}},null,null,null,null,{"$f":"IF(Template!O584=\"\",\"\",Template!O584)","v":""},"Aug-24 pending entries",{"$f":"TEXT(Template!$B$9,\"mm/dd/yyy\")","v":"08/01/2024"},null,null,null,null,{"$f":"IF(Template!M584>0,Template!M584,-Template!N584)","v":0},null,null,null,{"$f":"VLOOKUP(G572,'Account mapping'!A:D,4,0)","v":{"$error":"#N/A"}}]
[{"$f":"LEFT(Template!A585,4)","v":""},{"$f":"VLOOKUP(A573,'Structure mapping'!K:V,7,0)","v":{"$error":"#N/A"}},{"$f":"LEFT(Template!B585,5)","v":""},{"$f":"VLOOKUP(C573,'Structure mapping'!F:J,5,0)","v":{"$error":"#N/A"}},{"$f":"LEFT(Template!C585,7)","v":""},{"$f":"VLOOKUP(E573,'Structure mapping'!A:E,5,0)","v":{"$error":"#N/A"}},{"$f":"LEFT(Template!D585,6)","v":""},{"$f":"VLOOKUP(G573,'Account mapping'!A:E,5,0)","v":{"$error":"#N/A"}},{"$f":"LEFT(Template!E585,2)","v":""},{"$f":"VLOOKUP(I573,'Structure mapping'!X:AB,5,0)","v":{"$error":"#N/A"}},{"$f":"LEFT(Template!F585,3)","v":""},{"$f":"VLOOKUP(K573,'Structure mapping'!AC:AG,5,0)","v":{"$error":"#N/A"}},{"$f":"LEFT(Template!G585,10)","v":""},{"$f":"VLOOKUP(M573,'Structure mapping'!AH:AL,5,0)","v":{"$error":"#N/A"}},{"$f":"LEFT(Template!H585,6)","v":""},{"$f":"VLOOKUP(O573,'Structure mapping'!AM:AQ,5,0)","v":{"$error":"#N/A"}},null,null,null,null,{"$f":"IF(Template!O585=\"\",\"\",Template!O585)","v":""},"Aug-24 pending entries",{"$f":"TEXT(Template!$B$9,\"mm/dd/yyy\")","v":"08/01/2024"},null,null,null,null,{"$f":"IF(Template!M585>0,Template!M585,-Template!N585)","v":0},null,null,null,{"$f":"VLOOKUP(G573,'Account mapping'!A:D,4,0)","v":{"$error":"#N/A"}}]
[{"$f":"LEFT(Template!A586,4)","v":""},{"$f":"VLOOKUP(A574,'Structure mapping'!K:V,7,0)","v":{"$error":"#N/A"}},{"$f":"LEFT(Template!B586,5)","v":""},{"$f":"VLOOKUP(C574,'Structure mapping'!F:J,5,0)","v":{"$error":"#N/A"}},{"$f":"LEFT(Template!C586,7)","v":""},{"$f":"VLOOKUP(E574,'Structure mapping'!A:E,5,0)","v":{"$error":"#N/A"}},{"$f":"LEFT(Template!D586,6)","v":""},{"$f":"VLOOKUP(G574,'Account mapping'!A:E,5,0)","v":{"$error":"#N/A"}},{"$f":"LEFT(Template!E586,2)","v":""},{"$f":"VLOOKUP(I574,'Structure mapping'!X:AB,5,0)","v":{"$error":"#N/A"}},{"$f":"LEFT(Template!F586,3)","v":""},{"$f":"VLOOKUP(K574,'Structure mapping'!AC:AG,5,0)","v":{"$error":"#N/A"}},{"$f":"LEFT(Template!G586,10)","v":""},{"$f":"VLOOKUP(M574,'Structure mapping'!AH:AL,5,0)","v":{"$error":"#N/A"}},{"$f":"LEFT(Template!H586,6)","v":""},{"$f":"VLOOKUP(O574,'Structure mapping'!AM:AQ,5,0)","v":{"$error":"#N/A"}},null,null,null,null,{"$f":"IF(Template!O586=\"\",\"\",Template!O586)","v":""},"Aug-24 pending entries",{"$f":"TEXT(Template!$B$9,\"mm/dd/yyy\")","v":"08/01/2024"},null,null,null,null,{"$f":"IF(Template!M586>0,Template!M586,-Template!N586)","v":0},null,null,null,{"$f":"VLOOKUP(G574,'Account mapping'!A:D,4,0)","v":{"$error":"#N/A"}}]
[{"$f":"LEFT(Template!A587,4)","v":""},{"$f":"VLOOKUP(A575,'Structure mapping'!K:V,7,0)","v":{"$error":"#N/A"}},{"$f":"LEFT(Template!B587,5)","v":""},{"$f":"VLOOKUP(C575,'Structure mapping'!F:J,5,0)","v":{"$error":"#N/A"}},{"$f":"LEFT(Template!C587,7)","v":""},{"$f":"VLOOKUP(E575,'Structure mapping'!A:E,5,0)","v":{"$error":"#N/A"}},{"$f":"LEFT(Template!D587,6)","v":""},{"$f":"VLOOKUP(G575,'Account mapping'!A:E,5,0)","v":{"$error":"#N/A"}},{"$f":"LEFT(Template!E587,2)","v":""},{"$f":"VLOOKUP(I575,'Structure mapping'!X:AB,5,0)","v":{"$error":"#N/A"}},{"$f":"LEFT(Template!F587,3)","v":""},{"$f":"VLOOKUP(K575,'Structure mapping'!AC:AG,5,0)","v":{"$error":"#N/A"}},{"$f":"LEFT(Template!G587,10)","v":""},{"$f":"VLOOKUP(M575,'Structure mapping'!AH:AL,5,0)","v":{"$error":"#N/A"}},{"$f":"LEFT(Template!H587,6)","v":""},{"$f":"VLOOKUP(O575,'Structure mapping'!AM:AQ,5,0)","v":{"$error":"#N/A"}},null,null,null,null,{"$f":"IF(Template!O587=\"\",\"\",Template!O587)","v":""},"Aug-24 pending entries",{"$f":"TEXT(Template!$B$9,\"mm/dd/yyy\")","v":"08/01/2024"},null,null,null,null,{"$f":"IF(Template!M587>0,Template!M587,-Template!N587)","v":0},null,null,null,{"$f":"VLOOKUP(G575,'Account mapping'!A:D,4,0)","v":{"$error":"#N/A"}}]
[{"$f":"LEFT(Template!A588,4)","v":""},{"$f":"VLOOKUP(A576,'Structure mapping'!K:V,7,0)","v":{"$error":"#N/A"}},{"$f":"LEFT(Template!B588,5)","v":""},{"$f":"VLOOKUP(C576,'Structure mapping'!F:J,5,0)","v":{"$error":"#N/A"}},{"$f":"LEFT(Template!C588,7)","v":""},{"$f":"VLOOKUP(E576,'Structure mapping'!A:E,5,0)","v":{"$error":"#N/A"}},{"$f":"LEFT(Template!D588,6)","v":""},{"$f":"VLOOKUP(G576,'Account mapping'!A:E,5,0)","v":{"$error":"#N/A"}},{"$f":"LEFT(Template!E588,2)","v":""},{"$f":"VLOOKUP(I576,'Structure mapping'!X:AB,5,0)","v":{"$error":"#N/A"}},{"$f":"LEFT(Template!F588,3)","v":""},{"$f":"VLOOKUP(K576,'Structure mapping'!AC:AG,5,0)","v":{"$error":"#N/A"}},{"$f":"LEFT(Template!G588,10)","v":""},{"$f":"VLOOKUP(M576,'Structure mapping'!AH:AL,5,0)","v":{"$error":"#N/A"}},{"$f":"LEFT(Template!H588,6)","v":""},{"$f":"VLOOKUP(O576,'Structure mapping'!AM:AQ,5,0)","v":{"$error":"#N/A"}},null,null,null,null,{"$f":"IF(Template!O588=\"\",\"\",Template!O588)","v":""},"Aug-24 pending entries",{"$f":"TEXT(Template!$B$9,\"mm/dd/yyy\")","v":"08/01/2024"},null,null,null,null,{"$f":"IF(Template!M588>0,Template!M588,-Template!N588)","v":0},null,null,null,{"$f":"VLOOKUP(G576,'Account mapping'!A:D,4,0)","v":{"$error":"#N/A"}}]
[{"$f":"LEFT(Template!A589,4)","v":""},{"$f":"VLOOKUP(A577,'Structure mapping'!K:V,7,0)","v":{"$error":"#N/A"}},{"$f":"LEFT(Template!B589,5)","v":""},{"$f":"VLOOKUP(C577,'Structure mapping'!F:J,5,0)","v":{"$error":"#N/A"}},{"$f":"LEFT(Template!C589,7)","v":""},{"$f":"VLOOKUP(E577,'Structure mapping'!A:E,5,0)","v":{"$error":"#N/A"}},{"$f":"LEFT(Template!D589,6)","v":""},{"$f":"VLOOKUP(G577,'Account mapping'!A:E,5,0)","v":{"$error":"#N/A"}},{"$f":"LEFT(Template!E589,2)","v":""},{"$f":"VLOOKUP(I577,'Structure mapping'!X:AB,5,0)","v":{"$error":"#N/A"}},{"$f":"LEFT(Template!F589,3)","v":""},{"$f":"VLOOKUP(K577,'Structure mapping'!AC:AG,5,0)","v":{"$error":"#N/A"}},{"$f":"LEFT(Template!G589,10)","v":""},{"$f":"VLOOKUP(M577,'Structure mapping'!AH:AL,5,0)","v":{"$error":"#N/A"}},{"$f":"LEFT(Template!H589,6)","v":""},{"$f":"VLOOKUP(O577,'Structure mapping'!AM:AQ,5,0)","v":{"$error":"#N/A"}},null,null,null,null,{"$f":"IF(Template!O589=\"\",\"\",Template!O589)","v":""},"Aug-24 pending entries",{"$f":"TEXT(Template!$B$9,\"mm/dd/yyy\")","v":"08/01/2024"},null,null,null,null,{"$f":"IF(Template!M589>0,Template!M589,-Template!N589)","v":0},null,null,null,{"$f":"VLOOKUP(G577,'Account mapping'!A:D,4,0)","v":{"$error":"#N/A"}}]
[{"$f":"LEFT(Template!A590,4)","v":""},{"$f":"VLOOKUP(A578,'Structure mapping'!K:V,7,0)","v":{"$error":"#N/A"}},{"$f":"LEFT(Template!B590,5)","v":""},{"$f":"VLOOKUP(C578,'Structure mapping'!F:J,5,0)","v":{"$error":"#N/A"}},{"$f":"LEFT(Template!C590,7)","v":""},{"$f":"VLOOKUP(E578,'Structure mapping'!A:E,5,0)","v":{"$error":"#N/A"}},{"$f":"LEFT(Template!D590,6)","v":""},{"$f":"VLOOKUP(G578,'Account mapping'!A:E,5,0)","v":{"$error":"#N/A"}},{"$f":"LEFT(Template!E590,2)","v":""},{"$f":"VLOOKUP(I578,'Structure mapping'!X:AB,5,0)","v":{"$error":"#N/A"}},{"$f":"LEFT(Template!F590,3)","v":""},{"$f":"VLOOKUP(K578,'Structure mapping'!AC:AG,5,0)","v":{"$error":"#N/A"}},{"$f":"LEFT(Template!G590,10)","v":""},{"$f":"VLOOKUP(M578,'Structure mapping'!AH:AL,5,0)","v":{"$error":"#N/A"}},{"$f":"LEFT(Template!H590,6)","v":""},{"$f":"VLOOKUP(O578,'Structure mapping'!AM:AQ,5,0)","v":{"$error":"#N/A"}},null,null,null,null,{"$f":"IF(Template!O590=\"\",\"\",Template!O590)","v":""},"Aug-24 pending entries",{"$f":"TEXT(Template!$B$9,\"mm/dd/yyy\")","v":"08/01/2024"},null,null,null,null,{"$f":"IF(Template!M590>0,Template!M590,-Template!N590)","v":0},null,null,null,{"$f":"VLOOKUP(G578,'Account mapping'!A:D,4,0)","v":{"$error":"#N/A"}}]
[{"$f":"LEFT(Template!A591,4)","v":""},{"$f":"VLOOKUP(A579,'Structure mapping'!K:V,7,0)","v":{"$error":"#N/A"}},{"$f":"LEFT(Template!B591,5)","v":""},{"$f":"VLOOKUP(C579,'Structure mapping'!F:J,5,0)","v":{"$error":"#N/A"}},{"$f":"LEFT(Template!C591,7)","v":""},{"$f":"VLOOKUP(E579,'Structure mapping'!A:E,5,0)","v":{"$error":"#N/A"}},{"$f":"LEFT(Template!D591,6)","v":""},{"$f":"VLOOKUP(G579,'Account mapping'!A:E,5,0)","v":{"$error":"#N/A"}},{"$f":"LEFT(Template!E591,2)","v":""},{"$f":"VLOOKUP(I579,'Structure mapping'!X:AB,5,0)","v":{"$error":"#N/A"}},{"$f":"LEFT(Template!F591,3)","v":""},{"$f":"VLOOKUP(K579,'Structure mapping'!AC:AG,5,0)","v":{"$error":"#N/A"}},{"$f":"LEFT(Template!G591,10)","v":""},{"$f":"VLOOKUP(M579,'Structure mapping'!AH:AL,5,0)","v":{"$error":"#N/A"}},{"$f":"LEFT(Template!H591,6)","v":""},{"$f":"VLOOKUP(O579,'Structure mapping'!AM:AQ,5,0)","v":{"$error":"#N/A"}},null,null,null,null,{"$f":"IF(Template!O591=\"\",\"\",Template!O591)","v":""},{"$f":"TEXT(W579,\"mmm-yy\")&\" pending entries\"","v":"Aug-24 pending entries"},{"$f":"TEXT(Template!$B$9,\"mm/dd/yyy\")","v":"08/01/2024"},null,null,null,null,{"$f":"IF(Template!M591>0,Template!M591,-Template!N591)","v":0},null,null,null,{"$f":"VLOOKUP(G579,'Account mapping'!A:D,4,0)","v":{"$error":"#N/A"}}]
[{"$f":"LEFT(Template!A592,4)","v":""},{"$f":"VLOOKUP(A580,'Structure mapping'!K:V,7,0)","v":{"$error":"#N/A"}},{"$f":"LEFT(Template!B592,5)","v":""},{"$f":"VLOOKUP(C580,'Structure mapping'!F:J,5,0)","v":{"$error":"#N/A"}},{"$f":"LEFT(Template!C592,7)","v":""},{"$f":"VLOOKUP(E580,'Structure mapping'!A:E,5,0)","v":{"$error":"#N/A"}},{"$f":"LEFT(Template!D592,6)","v":""},{"$f":"VLOOKUP(G580,'Account mapping'!A:E,5,0)","v":{"$error":"#N/A"}},{"$f":"LEFT(Template!E592,2)","v":""},{"$f":"VLOOKUP(I580,'Structure mapping'!X:AB,5,0)","v":{"$error":"#N/A"}},{"$f":"LEFT(Template!F592,3)","v":""},{"$f":"VLOOKUP(K580,'Structure mapping'!AC:AG,5,0)","v":{"$error":"#N/A"}},{"$f":"LEFT(Template!G592,10)","v":""},{"$f":"VLOOKUP(M580,'Structure mapping'!AH:AL,5,0)","v":{"$error":"#N/A"}},{"$f":"LEFT(Template!H592,6)","v":""},{"$f":"VLOOKUP(O580,'Structure mapping'!AM:AQ,5,0)","v":{"$error":"#N/A"}},null,null,null,null,{"$f":"IF(Template!O592=\"\",\"\",Template!O592)","v":""},"Aug-24 pending entries",{"$f":"TEXT(Template!$B$9,\"mm/dd/yyy\")","v":"08/01/2024"},null,null,null,null,{"$f":"IF(Template!M592>0,Template!M592,-Template!N592)","v":0},null,null,null,{"$f":"VLOOKUP(G580,'Account mapping'!A:D,4,0)","v":{"$error":"#N/A"}}]
[{"$f":"LEFT(Template!A593,4)","v":""},{"$f":"VLOOKUP(A581,'Structure mapping'!K:V,7,0)","v":{"$error":"#N/A"}},{"$f":"LEFT(Template!B593,5)","v":""},{"$f":"VLOOKUP(C581,'Structure mapping'!F:J,5,0)","v":{"$error":"#N/A"}},{"$f":"LEFT(Template!C593,7)","v":""},{"$f":"VLOOKUP(E581,'Structure mapping'!A:E,5,0)","v":{"$error":"#N/A"}},{"$f":"LEFT(Template!D593,6)","v":""},{"$f":"VLOOKUP(G581,'Account mapping'!A:E,5,0)","v":{"$error":"#N/A"}},{"$f":"LEFT(Template!E593,2)","v":""},{"$f":"VLOOKUP(I581,'Structure mapping'!X:AB,5,0)","v":{"$error":"#N/A"}},{"$f":"LEFT(Template!F593,3)","v":""},{"$f":"VLOOKUP(K581,'Structure mapping'!AC:AG,5,0)","v":{"$error":"#N/A"}},{"$f":"LEFT(Template!G593,10)","v":""},{"$f":"VLOOKUP(M581,'Structure mapping'!AH:AL,5,0)","v":{"$error":"#N/A"}},{"$f":"LEFT(Template!H593,6)","v":""},{"$f":"VLOOKUP(O581,'Structure mapping'!AM:AQ,5,0)","v":{"$error":"#N/A"}},null,null,null,null,{"$f":"IF(Template!O593=\"\",\"\",Template!O593)","v":""},"Aug-24 pending entries",{"$f":"TEXT(Template!$B$9,\"mm/dd/yyy\")","v":"08/01/2024"},null,null,null,null,{"$f":"IF(Template!M593>0,Template!M593,-Template!N593)","v":0},null,null,null,{"$f":"VLOOKUP(G581,'Account mapping'!A:D,4,0)","v":{"$error":"#N/A"}}]
[{"$f":"LEFT(Template!A594,4)","v":""},{"$f":"VLOOKUP(A582,'Structure mapping'!K:V,7,0)","v":{"$error":"#N/A"}},{"$f":"LEFT(Template!B594,5)","v":""},{"$f":"VLOOKUP(C582,'Structure mapping'!F:J,5,0)","v":{"$error":"#N/A"}},{"$f":"LEFT(Template!C594,7)","v":""},{"$f":"VLOOKUP(E582,'Structure mapping'!A:E,5,0)","v":{"$error":"#N/A"}},{"$f":"LEFT(Template!D594,6)","v":""},{"$f":"VLOOKUP(G582,'Account mapping'!A:E,5,0)","v":{"$error":"#N/A"}},{"$f":"LEFT(Template!E594,2)","v":""},{"$f":"VLOOKUP(I582,'Structure mapping'!X:AB,5,0)","v":{"$error":"#N/A"}},{"$f":"LEFT(Template!F594,3)","v":""},{"$f":"VLOOKUP(K582,'Structure mapping'!AC:AG,5,0)","v":{"$error":"#N/A"}},{"$f":"LEFT(Template!G594,10)","v":""},{"$f":"VLOOKUP(M582,'Structure mapping'!AH:AL,5,0)","v":{"$error":"#N/A"}},{"$f":"LEFT(Template!H594,6)","v":""},{"$f":"VLOOKUP(O582,'Structure mapping'!AM:AQ,5,0)","v":{"$error":"#N/A"}},null,null,null,null,{"$f":"IF(Template!O594=\"\",\"\",Template!O594)","v":""},"Aug-24 pending entries",{"$f":"TEXT(Template!$B$9,\"mm/dd/yyy\")","v":"08/01/2024"},null,null,null,null,{"$f":"IF(Template!M594>0,Template!M594,-Template!N594)","v":0},null,null,null,{"$f":"VLOOKUP(G582,'Account mapping'!A:D,4,0)","v":{"$error":"#N/A"}}]
[{"$f":"LEFT(Template!A595,4)","v":""},{"$f":"VLOOKUP(A583,'Structure mapping'!K:V,7,0)","v":{"$error":"#N/A"}},{"$f":"LEFT(Template!B595,5)","v":""},{"$f":"VLOOKUP(C583,'Structure mapping'!F:J,5,0)","v":{"$error":"#N/A"}},{"$f":"LEFT(Template!C595,7)","v":""},{"$f":"VLOOKUP(E583,'Structure mapping'!A:E,5,0)","v":{"$error":"#N/A"}},{"$f":"LEFT(Template!D595,6)","v":""},{"$f":"VLOOKUP(G583,'Account mapping'!A:E,5,0)","v":{"$error":"#N/A"}},{"$f":"LEFT(Template!E595,2)","v":""},{"$f":"VLOOKUP(I583,'Structure mapping'!X:AB,5,0)","v":{"$error":"#N/A"}},{"$f":"LEFT(Template!F595,3)","v":""},{"$f":"VLOOKUP(K583,'Structure mapping'!AC:AG,5,0)","v":{"$error":"#N/A"}},{"$f":"LEFT(Template!G595,10)","v":""},{"$f":"VLOOKUP(M583,'Structure mapping'!AH:AL,5,0)","v":{"$error":"#N/A"}},{"$f":"LEFT(Template!H595,6)","v":""},{"$f":"VLOOKUP(O583,'Structure mapping'!AM:AQ,5,0)","v":{"$error":"#N/A"}},null,null,null,null,{"$f":"IF(Template!O595=\"\",\"\",Template!O595)","v":""},"Aug-24 pending entries",{"$f":"TEXT(Template!$B$9,\"mm/dd/yyy\")","v":"08/01/2024"},null,null,null,null,{"$f":"IF(Template!M595>0,Template!M595,-Template!N595)","v":0},null,null,null,{"$f":"VLOOKUP(G583,'Account mapping'!A:D,4,0)","v":{"$error":"#N/A"}}]
[{"$f":"LEFT(Template!A596,4)","v":""},{"$f":"VLOOKUP(A584,'Structure mapping'!K:V,7,0)","v":{"$error":"#N/A"}},{"$f":"LEFT(Template!B596,5)","v":""},{"$f":"VLOOKUP(C584,'Structure mapping'!F:J,5,0)","v":{"$error":"#N/A"}},{"$f":"LEFT(Template!C596,7)","v":""},{"$f":"VLOOKUP(E584,'Structure mapping'!A:E,5,0)","v":{"$error":"#N/A"}},{"$f":"LEFT(Template!D596,6)","v":""},{"$f":"VLOOKUP(G584,'Account mapping'!A:E,5,0)","v":{"$error":"#N/A"}},{"$f":"LEFT(Template!E596,2)","v":""},{"$f":"VLOOKUP(I584,'Structure mapping'!X:AB,5,0)","v":{"$error":"#N/A"}},{"$f":"LEFT(Template!F596,3)","v":""},{"$f":"VLOOKUP(K584,'Structure mapping'!AC:AG,5,0)","v":{"$error":"#N/A"}},{"$f":"LEFT(Template!G596,10)","v":""},{"$f":"VLOOKUP(M584,'Structure mapping'!AH:AL,5,0)","v":{"$error":"#N/A"}},{"$f":"LEFT(Template!H596,6)","v":""},{"$f":"VLOOKUP(O584,'Structure mapping'!AM:AQ,5,0)","v":{"$error":"#N/A"}},null,null,null,null,{"$f":"IF(Template!O596=\"\",\"\",Template!O596)","v":""},"Aug-24 pending entries",{"$f":"TEXT(Template!$B$9,\"mm/dd/yyy\")","v":"08/01/2024"},null,null,null,null,{"$f":"IF(Template!M596>0,Template!M596,-Template!N596)","v":0},null,null,null,{"$f":"VLOOKUP(G584,'Account mapping'!A:D,4,0)","v":{"$error":"#N/A"}}]
[{"$f":"LEFT(Template!A597,4)","v":""},{"$f":"VLOOKUP(A585,'Structure mapping'!K:V,7,0)","v":{"$error":"#N/A"}},{"$f":"LEFT(Template!B597,5)","v":""},{"$f":"VLOOKUP(C585,'Structure mapping'!F:J,5,0)","v":{"$error":"#N/A"}},{"$f":"LEFT(Template!C597,7)","v":""},{"$f":"VLOOKUP(E585,'Structure mapping'!A:E,5,0)","v":{"$error":"#N/A"}},{"$f":"LEFT(Template!D597,6)","v":""},{"$f":"VLOOKUP(G585,'Account mapping'!A:E,5,0)","v":{"$error":"#N/A"}},{"$f":"LEFT(Template!E597,2)","v":""},{"$f":"VLOOKUP(I585,'Structure mapping'!X:AB,5,0)","v":{"$error":"#N/A"}},{"$f":"LEFT(Template!F597,3)","v":""},{"$f":"VLOOKUP(K585,'Structure mapping'!AC:AG,5,0)","v":{"$error":"#N/A"}},{"$f":"LEFT(Template!G597,10)","v":""},{"$f":"VLOOKUP(M585,'Structure mapping'!AH:AL,5,0)","v":{"$error":"#N/A"}},{"$f":"LEFT(Template!H597,6)","v":""},{"$f":"VLOOKUP(O585,'Structure mapping'!AM:AQ,5,0)","v":{"$error":"#N/A"}},null,null,null,null,{"$f":"IF(Template!O597=\"\",\"\",Template!O597)","v":""},"Aug-24 pending entries",{"$f":"TEXT(Template!$B$9,\"mm/dd/yyy\")","v":"08/01/2024"},null,null,null,null,{"$f":"IF(Template!M597>0,Template!M597,-Template!N597)","v":0},null,null,null,{"$f":"VLOOKUP(G585,'Account mapping'!A:D,4,0)","v":{"$error":"#N/A"}}]
[{"$f":"LEFT(Template!A598,4)","v":""},{"$f":"VLOOKUP(A586,'Structure mapping'!K:V,7,0)","v":{"$error":"#N/A"}},{"$f":"LEFT(Template!B598,5)","v":""},{"$f":"VLOOKUP(C586,'Structure mapping'!F:J,5,0)","v":{"$error":"#N/A"}},{"$f":"LEFT(Template!C598,7)","v":""},{"$f":"VLOOKUP(E586,'Structure mapping'!A:E,5,0)","v":{"$error":"#N/A"}},{"$f":"LEFT(Template!D598,6)","v":""},{"$f":"VLOOKUP(G586,'Account mapping'!A:E,5,0)","v":{"$error":"#N/A"}},{"$f":"LEFT(Template!E598,2)","v":""},{"$f":"VLOOKUP(I586,'Structure mapping'!X:AB,5,0)","v":{"$error":"#N/A"}},{"$f":"LEFT(Template!F598,3)","v":""},{"$f":"VLOOKUP(K586,'Structure mapping'!AC:AG,5,0)","v":{"$error":"#N/A"}},{"$f":"LEFT(Template!G598,10)","v":""},{"$f":"VLOOKUP(M586,'Structure mapping'!AH:AL,5,0)","v":{"$error":"#N/A"}},{"$f":"LEFT(Template!H598,6)","v":""},{"$f":"VLOOKUP(O586,'Structure mapping'!AM:AQ,5,0)","v":{"$error":"#N/A"}},null,null,null,null,{"$f":"IF(Template!O598=\"\",\"\",Template!O598)","v":""},"Aug-24 pending entries",{"$f":"TEXT(Template!$B$9,\"mm/dd/yyy\")","v":"08/01/2024"},null,null,null,null,{"$f":"IF(Template!M598>0,Template!M598,-Template!N598)","v":0},null,null,null,{"$f":"VLOOKUP(G586,'Account mapping'!A:D,4,0)","v":{"$error":"#N/A"}}]
[{"$f":"LEFT(Template!A599,4)","v":""},{"$f":"VLOOKUP(A587,'Structure mapping'!K:V,7,0)","v":{"$error":"#N/A"}},{"$f":"LEFT(Template!B599,5)","v":""},{"$f":"VLOOKUP(C587,'Structure mapping'!F:J,5,0)","v":{"$error":"#N/A"}},{"$f":"LEFT(Template!C599,7)","v":""},{"$f":"VLOOKUP(E587,'Structure mapping'!A:E,5,0)","v":{"$error":"#N/A"}},{"$f":"LEFT(Template!D599,6)","v":""},{"$f":"VLOOKUP(G587,'Account mapping'!A:E,5,0)","v":{"$error":"#N/A"}},{"$f":"LEFT(Template!E599,2)","v":""},{"$f":"VLOOKUP(I587,'Structure mapping'!X:AB,5,0)","v":{"$error":"#N/A"}},{"$f":"LEFT(Template!F599,3)","v":""},{"$f":"VLOOKUP(K587,'Structure mapping'!AC:AG,5,0)","v":{"$error":"#N/A"}},{"$f":"LEFT(Template!G599,10)","v":""},{"$f":"VLOOKUP(M587,'Structure mapping'!AH:AL,5,0)","v":{"$error":"#N/A"}},{"$f":"LEFT(Template!H599,6)","v":""},{"$f":"VLOOKUP(O587,'Structure mapping'!AM:AQ,5,0)","v":{"$error":"#N/A"}},null,null,null,null,{"$f":"IF(Template!O599=\"\",\"\",Template!O599)","v":""},"Aug-24 pending entries",{"$f":"TEXT(Template!$B$9,\"mm/dd/yyy\")","v":"08/01/2024"},null,null,null,null,{"$f":"IF(Template!M599>0,Template!M599,-Template!N599)","v":0},null,null,null,{"$f":"VLOOKUP(G587,'Account mapping'!A:D,4,0)","v":{"$error":"#N/A"}}]
[{"$f":"LEFT(Template!A600,4)","v":""},{"$f":"VLOOKUP(A588,'Structure mapping'!K:V,7,0)","v":{"$error":"#N/A"}},{"$f":"LEFT(Template!B600,5)","v":""},{"$f":"VLOOKUP(C588,'Structure mapping'!F:J,5,0)","v":{"$error":"#N/A"}},{"$f":"LEFT(Template!C600,7)","v":""},{"$f":"VLOOKUP(E588,'Structure mapping'!A:E,5,0)","v":{"$error":"#N/A"}},{"$f":"LEFT(Template!D600,6)","v":""},{"$f":"VLOOKUP(G588,'Account mapping'!A:E,5,0)","v":{"$error":"#N/A"}},{"$f":"LEFT(Template!E600,2)","v":""},{"$f":"VLOOKUP(I588,'Structure mapping'!X:AB,5,0)","v":{"$error":"#N/A"}},{"$f":"LEFT(Template!F600,3)","v":""},{"$f":"VLOOKUP(K588,'Structure mapping'!AC:AG,5,0)","v":{"$error":"#N/A"}},{"$f":"LEFT(Template!G600,10)","v":""},{"$f":"VLOOKUP(M588,'Structure mapping'!AH:AL,5,0)","v":{"$error":"#N/A"}},{"$f":"LEFT(Template!H600,6)","v":""},{"$f":"VLOOKUP(O588,'Structure mapping'!AM:AQ,5,0)","v":{"$error":"#N/A"}},null,null,null,null,{"$f":"IF(Template!O600=\"\",\"\",Template!O600)","v":""},"Aug-24 pending entries",{"$f":"TEXT(Template!$B$9,\"mm/dd/yyy\")","v":"08/01/2024"},null,null,null,null,{"$f":"IF(Template!M600>0,Template!M600,-Template!N600)","v":0},null,null,null,{"$f":"VLOOKUP(G588,'Account mapping'!A:D,4,0)","v":{"$error":"#N/A"}}]
[{"$f":"LEFT(Template!A601,4)","v":""},{"$f":"VLOOKUP(A589,'Structure mapping'!K:V,7,0)","v":{"$error":"#N/A"}},{"$f":"LEFT(Template!B601,5)","v":""},{"$f":"VLOOKUP(C589,'Structure mapping'!F:J,5,0)","v":{"$error":"#N/A"}},{"$f":"LEFT(Template!C601,7)","v":""},{"$f":"VLOOKUP(E589,'Structure mapping'!A:E,5,0)","v":{"$error":"#N/A"}},{"$f":"LEFT(Template!D601,6)","v":""},{"$f":"VLOOKUP(G589,'Account mapping'!A:E,5,0)","v":{"$error":"#N/A"}},{"$f":"LEFT(Template!E601,2)","v":""},{"$f":"VLOOKUP(I589,'Structure mapping'!X:AB,5,0)","v":{"$error":"#N/A"}},{"$f":"LEFT(Template!F601,3)","v":""},{"$f":"VLOOKUP(K589,'Structure mapping'!AC:AG,5,0)","v":{"$error":"#N/A"}},{"$f":"LEFT(Template!G601,10)","v":""},{"$f":"VLOOKUP(M589,'Structure mapping'!AH:AL,5,0)","v":{"$error":"#N/A"}},{"$f":"LEFT(Template!H601,6)","v":""},{"$f":"VLOOKUP(O589,'Structure mapping'!AM:AQ,5,0)","v":{"$error":"#N/A"}},null,null,null,null,{"$f":"IF(Template!O601=\"\",\"\",Template!O601)","v":""},"Aug-24 pending entries",{"$f":"TEXT(Template!$B$9,\"mm/dd/yyy\")","v":"08/01/2024"},null,null,null,null,{"$f":"IF(Template!M601>0,Template!M601,-Template!N601)","v":0},null,null,null,{"$f":"VLOOKUP(G589,'Account mapping'!A:D,4,0)","v":{"$error":"#N/A"}}]
[{"$f":"LEFT(Template!A602,4)","v":""},{"$f":"VLOOKUP(A590,'Structure mapping'!K:V,7,0)","v":{"$error":"#N/A"}},{"$f":"LEFT(Template!B602,5)","v":""},{"$f":"VLOOKUP(C590,'Structure mapping'!F:J,5,0)","v":{"$error":"#N/A"}},{"$f":"LEFT(Template!C602,7)","v":""},{"$f":"VLOOKUP(E590,'Structure mapping'!A:E,5,0)","v":{"$error":"#N/A"}},{"$f":"LEFT(Template!D602,6)","v":""},{"$f":"VLOOKUP(G590,'Account mapping'!A:E,5,0)","v":{"$error":"#N/A"}},{"$f":"LEFT(Template!E602,2)","v":""},{"$f":"VLOOKUP(I590,'Structure mapping'!X:AB,5,0)","v":{"$error":"#N/A"}},{"$f":"LEFT(Template!F602,3)","v":""},{"$f":"VLOOKUP(K590,'Structure mapping'!AC:AG,5,0)","v":{"$error":"#N/A"}},{"$f":"LEFT(Template!G602,10)","v":""},{"$f":"VLOOKUP(M590,'Structure mapping'!AH:AL,5,0)","v":{"$error":"#N/A"}},{"$f":"LEFT(Template!H602,6)","v":""},{"$f":"VLOOKUP(O590,'Structure mapping'!AM:AQ,5,0)","v":{"$error":"#N/A"}},null,null,null,null,{"$f":"IF(Template!O602=\"\",\"\",Template!O602)","v":""},"Aug-24 pending entries",{"$f":"TEXT(Template!$B$9,\"mm/dd/yyy\")","v":"08/01/2024"},null,null,null,null,{"$f":"IF(Template!M602>0,Template!M602,-Template!N602)","v":0},null,null,null,{"$f":"VLOOKUP(G590,'Account mapping'!A:D,4,0)","v":{"$error":"#N/A"}}]
[{"$f":"LEFT(Template!A603,4)","v":""},{"$f":"VLOOKUP(A591,'Structure mapping'!K:V,7,0)","v":{"$error":"#N/A"}},{"$f":"LEFT(Template!B603,5)","v":""},{"$f":"VLOOKUP(C591,'Structure mapping'!F:J,5,0)","v":{"$error":"#N/A"}},{"$f":"LEFT(Template!C603,7)","v":""},{"$f":"VLOOKUP(E591,'Structure mapping'!A:E,5,0)","v":{"$error":"#N/A"}},{"$f":"LEFT(Template!D603,6)","v":""},{"$f":"VLOOKUP(G591,'Account mapping'!A:E,5,0)","v":{"$error":"#N/A"}},{"$f":"LEFT(Template!E603,2)","v":""},{"$f":"VLOOKUP(I591,'Structure mapping'!X:AB,5,0)","v":{"$error":"#N/A"}},{"$f":"LEFT(Template!F603,3)","v":""},{"$f":"VLOOKUP(K591,'Structure mapping'!AC:AG,5,0)","v":{"$error":"#N/A"}},{"$f":"LEFT(Template!G603,10)","v":""},{"$f":"VLOOKUP(M591,'Structure mapping'!AH:AL,5,0)","v":{"$error":"#N/A"}},{"$f":"LEFT(Template!H603,6)","v":""},{"$f":"VLOOKUP(O591,'Structure mapping'!AM:AQ,5,0)","v":{"$error":"#N/A"}},null,null,null,null,{"$f":"IF(Template!O603=\"\",\"\",Template!O603)","v":""},"Aug-24 pending entries",{"$f":"TEXT(Template!$B$9,\"mm/dd/yyy\")","v":"08/01/2024"},null,null,null,null,{"$f":"IF(Template!M603>0,Template!M603,-Template!N603)","v":0},null,null,null,{"$f":"VLOOKUP(G591,'Account mapping'!A:D,4,0)","v":{"$error":"#N/A"}}]
[{"$f":"LEFT(Template!A604,4)","v":""},{"$f":"VLOOKUP(A592,'Structure mapping'!K:V,7,0)","v":{"$error":"#N/A"}},{"$f":"LEFT(Template!B604,5)","v":""},{"$f":"VLOOKUP(C592,'Structure mapping'!F:J,5,0)","v":{"$error":"#N/A"}},{"$f":"LEFT(Template!C604,7)","v":""},{"$f":"VLOOKUP(E592,'Structure mapping'!A:E,5,0)","v":{"$error":"#N/A"}},{"$f":"LEFT(Template!D604,6)","v":""},{"$f":"VLOOKUP(G592,'Account mapping'!A:E,5,0)","v":{"$error":"#N/A"}},{"$f":"LEFT(Template!E604,2)","v":""},{"$f":"VLOOKUP(I592,'Structure mapping'!X:AB,5,0)","v":{"$error":"#N/A"}},{"$f":"LEFT(Template!F604,3)","v":""},{"$f":"VLOOKUP(K592,'Structure mapping'!AC:AG,5,0)","v":{"$error":"#N/A"}},{"$f":"LEFT(Template!G604,10)","v":""},{"$f":"VLOOKUP(M592,'Structure mapping'!AH:AL,5,0)","v":{"$error":"#N/A"}},{"$f":"LEFT(Template!H604,6)","v":""},{"$f":"VLOOKUP(O592,'Structure mapping'!AM:AQ,5,0)","v":{"$error":"#N/A"}},null,null,null,null,{"$f":"IF(Template!O604=\"\",\"\",Template!O604)","v":""},"Aug-24 pending entries",{"$f":"TEXT(Template!$B$9,\"mm/dd/yyy\")","v":"08/01/2024"},null,null,null,null,{"$f":"IF(Template!M604>0,Template!M604,-Template!N604)","v":0},null,null,null,{"$f":"VLOOKUP(G592,'Account mapping'!A:D,4,0)","v":{"$error":"#N/A"}}]
[{"$f":"LEFT(Template!A605,4)","v":""},{"$f":"VLOOKUP(A593,'Structure mapping'!K:V,7,0)","v":{"$error":"#N/A"}},{"$f":"LEFT(Template!B605,5)","v":""},{"$f":"VLOOKUP(C593,'Structure mapping'!F:J,5,0)","v":{"$error":"#N/A"}},{"$f":"LEFT(Template!C605,7)","v":""},{"$f":"VLOOKUP(E593,'Structure mapping'!A:E,5,0)","v":{"$error":"#N/A"}},{"$f":"LEFT(Template!D605,6)","v":""},{"$f":"VLOOKUP(G593,'Account mapping'!A:E,5,0)","v":{"$error":"#N/A"}},{"$f":"LEFT(Template!E605,2)","v":""},{"$f":"VLOOKUP(I593,'Structure mapping'!X:AB,5,0)","v":{"$error":"#N/A"}},{"$f":"LEFT(Template!F605,3)","v":""},{"$f":"VLOOKUP(K593,'Structure mapping'!AC:AG,5,0)","v":{"$error":"#N/A"}},{"$f":"LEFT(Template!G605,10)","v":""},{"$f":"VLOOKUP(M593,'Structure mapping'!AH:AL,5,0)","v":{"$error":"#N/A"}},{"$f":"LEFT(Template!H605,6)","v":""},{"$f":"VLOOKUP(O593,'Structure mapping'!AM:AQ,5,0)","v":{"$error":"#N/A"}},null,null,null,null,{"$f":"IF(Template!O605=\"\",\"\",Template!O605)","v":""},"Aug-24 pending entries",{"$f":"TEXT(Template!$B$9,\"mm/dd/yyy\")","v":"08/01/2024"},null,null,null,null,{"$f":"IF(Template!M605>0,Template!M605,-Template!N605)","v":0},null,null,null,{"$f":"VLOOKUP(G593,'Account mapping'!A:D,4,0)","v":{"$error":"#N/A"}}]
[{"$f":"LEFT(Template!A606,4)","v":""},{"$f":"VLOOKUP(A594,'Structure mapping'!K:V,7,0)","v":{"$error":"#N/A"}},{"$f":"LEFT(Template!B606,5)","v":""},{"$f":"VLOOKUP(C594,'Structure mapping'!F:J,5,0)","v":{"$error":"#N/A"}},{"$f":"LEFT(Template!C606,7)","v":""},{"$f":"VLOOKUP(E594,'Structure mapping'!A:E,5,0)","v":{"$error":"#N/A"}},{"$f":"LEFT(Template!D606,6)","v":""},{"$f":"VLOOKUP(G594,'Account mapping'!A:E,5,0)","v":{"$error":"#N/A"}},{"$f":"LEFT(Template!E606,2)","v":""},{"$f":"VLOOKUP(I594,'Structure mapping'!X:AB,5,0)","v":{"$error":"#N/A"}},{"$f":"LEFT(Template!F606,3)","v":""},{"$f":"VLOOKUP(K594,'Structure mapping'!AC:AG,5,0)","v":{"$error":"#N/A"}},{"$f":"LEFT(Template!G606,10)","v":""},{"$f":"VLOOKUP(M594,'Structure mapping'!AH:AL,5,0)","v":{"$error":"#N/A"}},{"$f":"LEFT(Template!H606,6)","v":""},{"$f":"VLOOKUP(O594,'Structure mapping'!AM:AQ,5,0)","v":{"$error":"#N/A"}},null,null,null,null,{"$f":"IF(Template!O606=\"\",\"\",Template!O606)","v":""},"Aug-24 pending entries",{"$f":"TEXT(Template!$B$9,\"mm/dd/yyy\")","v":"08/01/2024"},null,null,null,null,{"$f":"IF(Template!M606>0,Template!M606,-Template!N606)","v":0},null,null,null,{"$f":"VLOOKUP(G594,'Account mapping'!A:D,4,0)","v":{"$error":"#N/A"}}]
[{"$f":"LEFT(Template!A607,4)","v":""},{"$f":"VLOOKUP(A595,'Structure mapping'!K:V,7,0)","v":{"$error":"#N/A"}},{"$f":"LEFT(Template!B607,5)","v":""},{"$f":"VLOOKUP(C595,'Structure mapping'!F:J,5,0)","v":{"$error":"#N/A"}},{"$f":"LEFT(Template!C607,7)","v":""},{"$f":"VLOOKUP(E595,'Structure mapping'!A:E,5,0)","v":{"$error":"#N/A"}},{"$f":"LEFT(Template!D607,6)","v":""},{"$f":"VLOOKUP(G595,'Account mapping'!A:E,5,0)","v":{"$error":"#N/A"}},{"$f":"LEFT(Template!E607,2)","v":""},{"$f":"VLOOKUP(I595,'Structure mapping'!X:AB,5,0)","v":{"$error":"#N/A"}},{"$f":"LEFT(Template!F607,3)","v":""},{"$f":"VLOOKUP(K595,'Structure mapping'!AC:AG,5,0)","v":{"$error":"#N/A"}},{"$f":"LEFT(Template!G607,10)","v":""},{"$f":"VLOOKUP(M595,'Structure mapping'!AH:AL,5,0)","v":{"$error":"#N/A"}},{"$f":"LEFT(Template!H607,6)","v":""},{"$f":"VLOOKUP(O595,'Structure mapping'!AM:AQ,5,0)","v":{"$error":"#N/A"}},null,null,null,null,{"$f":"IF(Template!O607=\"\",\"\",Template!O607)","v":""},"Aug-24 pending entries",{"$f":"TEXT(Template!$B$9,\"mm/dd/yyy\")","v":"08/01/2024"},null,null,null,null,{"$f":"IF(Template!M607>0,Template!M607,-Template!N607)","v":0},null,null,null,{"$f":"VLOOKUP(G595,'Account mapping'!A:D,4,0)","v":{"$error":"#N/A"}}]
[{"$f":"LEFT(Template!A608,4)","v":""},{"$f":"VLOOKUP(A596,'Structure mapping'!K:V,7,0)","v":{"$error":"#N/A"}},{"$f":"LEFT(Template!B608,5)","v":""},{"$f":"VLOOKUP(C596,'Structure mapping'!F:J,5,0)","v":{"$error":"#N/A"}},{"$f":"LEFT(Template!C608,7)","v":""},{"$f":"VLOOKUP(E596,'Structure mapping'!A:E,5,0)","v":{"$error":"#N/A"}},{"$f":"LEFT(Template!D608,6)","v":""},{"$f":"VLOOKUP(G596,'Account mapping'!A:E,5,0)","v":{"$error":"#N/A"}},{"$f":"LEFT(Template!E608,2)","v":""},{"$f":"VLOOKUP(I596,'Structure mapping'!X:AB,5,0)","v":{"$error":"#N/A"}},{"$f":"LEFT(Template!F608,3)","v":""},{"$f":"VLOOKUP(K596,'Structure mapping'!AC:AG,5,0)","v":{"$error":"#N/A"}},{"$f":"LEFT(Template!G608,10)","v":""},{"$f":"VLOOKUP(M596,'Structure mapping'!AH:AL,5,0)","v":{"$error":"#N/A"}},{"$f":"LEFT(Template!H608,6)","v":""},{"$f":"VLOOKUP(O596,'Structure mapping'!AM:AQ,5,0)","v":{"$error":"#N/A"}},null,null,null,null,{"$f":"IF(Template!O608=\"\",\"\",Template!O608)","v":""},"Aug-24 pending entries",{"$f":"TEXT(Template!$B$9,\"mm/dd/yyy\")","v":"08/01/2024"},null,null,null,null,{"$f":"IF(Template!M608>0,Template!M608,-Template!N608)","v":0},null,null,null,{"$f":"VLOOKUP(G596,'Account mapping'!A:D,4,0)","v":{"$error":"#N/A"}}]
[{"$f":"LEFT(Template!A609,4)","v":""},{"$f":"VLOOKUP(A597,'Structure mapping'!K:V,7,0)","v":{"$error":"#N/A"}},{"$f":"LEFT(Template!B609,5)","v":""},{"$f":"VLOOKUP(C597,'Structure mapping'!F:J,5,0)","v":{"$error":"#N/A"}},{"$f":"LEFT(Template!C609,7)","v":""},{"$f":"VLOOKUP(E597,'Structure mapping'!A:E,5,0)","v":{"$error":"#N/A"}},{"$f":"LEFT(Template!D609,6)","v":""},{"$f":"VLOOKUP(G597,'Account mapping'!A:E,5,0)","v":{"$error":"#N/A"}},{"$f":"LEFT(Template!E609,2)","v":""},{"$f":"VLOOKUP(I597,'Structure mapping'!X:AB,5,0)","v":{"$error":"#N/A"}},{"$f":"LEFT(Template!F609,3)","v":""},{"$f":"VLOOKUP(K597,'Structure mapping'!AC:AG,5,0)","v":{"$error":"#N/A"}},{"$f":"LEFT(Template!G609,10)","v":""},{"$f":"VLOOKUP(M597,'Structure mapping'!AH:AL,5,0)","v":{"$error":"#N/A"}},{"$f":"LEFT(Template!H609,6)","v":""},{"$f":"VLOOKUP(O597,'Structure mapping'!AM:AQ,5,0)","v":{"$error":"#N/A"}},null,null,null,null,{"$f":"IF(Template!O609=\"\",\"\",Template!O609)","v":""},"Aug-24 pending entries",{"$f":"TEXT(Template!$B$9,\"mm/dd/yyy\")","v":"08/01/2024"},null,null,null,null,{"$f":"IF(Template!M609>0,Template!M609,-Template!N609)","v":0},null,null,null,{"$f":"VLOOKUP(G597,'Account mapping'!A:D,4,0)","v":{"$error":"#N/A"}}]
[{"$f":"LEFT(Template!A610,4)","v":""},{"$f":"VLOOKUP(A598,'Structure mapping'!K:V,7,0)","v":{"$error":"#N/A"}},{"$f":"LEFT(Template!B610,5)","v":""},{"$f":"VLOOKUP(C598,'Structure mapping'!F:J,5,0)","v":{"$error":"#N/A"}},{"$f":"LEFT(Template!C610,7)","v":""},{"$f":"VLOOKUP(E598,'Structure mapping'!A:E,5,0)","v":{"$error":"#N/A"}},{"$f":"LEFT(Template!D610,6)","v":""},{"$f":"VLOOKUP(G598,'Account mapping'!A:E,5,0)","v":{"$error":"#N/A"}},{"$f":"LEFT(Template!E610,2)","v":""},{"$f":"VLOOKUP(I598,'Structure mapping'!X:AB,5,0)","v":{"$error":"#N/A"}},{"$f":"LEFT(Template!F610,3)","v":""},{"$f":"VLOOKUP(K598,'Structure mapping'!AC:AG,5,0)","v":{"$error":"#N/A"}},{"$f":"LEFT(Template!G610,10)","v":""},{"$f":"VLOOKUP(M598,'Structure mapping'!AH:AL,5,0)","v":{"$error":"#N/A"}},{"$f":"LEFT(Template!H610,6)","v":""},{"$f":"VLOOKUP(O598,'Structure mapping'!AM:AQ,5,0)","v":{"$error":"#N/A"}},null,null,null,null,{"$f":"IF(Template!O610=\"\",\"\",Template!O610)","v":""},"Aug-24 pending entries",{"$f":"TEXT(Template!$B$9,\"mm/dd/yyy\")","v":"08/01/2024"},null,null,null,null,{"$f":"IF(Template!M610>0,Template!M610,-Template!N610)","v":0},null,null,null,{"$f":"VLOOKUP(G598,'Account mapping'!A:D,4,0)","v":{"$error":"#N/A"}}]
[{"$f":"LEFT(Template!A611,4)","v":""},{"$f":"VLOOKUP(A599,'Structure mapping'!K:V,7,0)","v":{"$error":"#N/A"}},{"$f":"LEFT(Template!B611,5)","v":""},{"$f":"VLOOKUP(C599,'Structure mapping'!F:J,5,0)","v":{"$error":"#N/A"}},{"$f":"LEFT(Template!C611,7)","v":""},{"$f":"VLOOKUP(E599,'Structure mapping'!A:E,5,0)","v":{"$error":"#N/A"}},{"$f":"LEFT(Template!D611,6)","v":""},{"$f":"VLOOKUP(G599,'Account mapping'!A:E,5,0)","v":{"$error":"#N/A"}},{"$f":"LEFT(Template!E611,2)","v":""},{"$f":"VLOOKUP(I599,'Structure mapping'!X:AB,5,0)","v":{"$error":"#N/A"}},{"$f":"LEFT(Template!F611,3)","v":""},{"$f":"VLOOKUP(K599,'Structure mapping'!AC:AG,5,0)","v":{"$error":"#N/A"}},{"$f":"LEFT(Template!G611,10)","v":""},{"$f":"VLOOKUP(M599,'Structure mapping'!AH:AL,5,0)","v":{"$error":"#N/A"}},{"$f":"LEFT(Template!H611,6)","v":""},{"$f":"VLOOKUP(O599,'Structure mapping'!AM:AQ,5,0)","v":{"$error":"#N/A"}},null,null,null,null,{"$f":"IF(Template!O611=\"\",\"\",Template!O611)","v":""},"Aug-24 pending entries",{"$f":"TEXT(Template!$B$9,\"mm/dd/yyy\")","v":"08/01/2024"},null,null,null,null,{"$f":"IF(Template!M611>0,Template!M611,-Template!N611)","v":0},null,null,null,{"$f":"VLOOKUP(G599,'Account mapping'!A:D,4,0)","v":{"$error":"#N/A"}}]
[{"$f":"LEFT(Template!A612,4)","v":""},{"$f":"VLOOKUP(A600,'Structure mapping'!K:V,7,0)","v":{"$error":"#N/A"}},{"$f":"LEFT(Template!B612,5)","v":""},{"$f":"VLOOKUP(C600,'Structure mapping'!F:J,5,0)","v":{"$error":"#N/A"}},{"$f":"LEFT(Template!C612,7)","v":""},{"$f":"VLOOKUP(E600,'Structure mapping'!A:E,5,0)","v":{"$error":"#N/A"}},{"$f":"LEFT(Template!D612,6)","v":""},{"$f":"VLOOKUP(G600,'Account mapping'!A:E,5,0)","v":{"$error":"#N/A"}},{"$f":"LEFT(Template!E612,2)","v":""},{"$f":"VLOOKUP(I600,'Structure mapping'!X:AB,5,0)","v":{"$error":"#N/A"}},{"$f":"LEFT(Template!F612,3)","v":""},{"$f":"VLOOKUP(K600,'Structure mapping'!AC:AG,5,0)","v":{"$error":"#N/A"}},{"$f":"LEFT(Template!G612,10)","v":""},{"$f":"VLOOKUP(M600,'Structure mapping'!AH:AL,5,0)","v":{"$error":"#N/A"}},{"$f":"LEFT(Template!H612,6)","v":""},{"$f":"VLOOKUP(O600,'Structure mapping'!AM:AQ,5,0)","v":{"$error":"#N/A"}},null,null,null,null,{"$f":"IF(Template!O612=\"\",\"\",Template!O612)","v":""},"Aug-24 pending entries",{"$f":"TEXT(Template!$B$9,\"mm/dd/yyy\")","v":"08/01/2024"},null,null,null,null,{"$f":"IF(Template!M612>0,Template!M612,-Template!N612)","v":0},null,null,null,{"$f":"VLOOKUP(G600,'Account mapping'!A:D,4,0)","v":{"$error":"#N/A"}}]
[{"$f":"LEFT(Template!A613,4)","v":""},{"$f":"VLOOKUP(A601,'Structure mapping'!K:V,7,0)","v":{"$error":"#N/A"}},{"$f":"LEFT(Template!B613,5)","v":""},{"$f":"VLOOKUP(C601,'Structure mapping'!F:J,5,0)","v":{"$error":"#N/A"}},{"$f":"LEFT(Template!C613,7)","v":""},{"$f":"VLOOKUP(E601,'Structure mapping'!A:E,5,0)","v":{"$error":"#N/A"}},{"$f":"LEFT(Template!D613,6)","v":""},{"$f":"VLOOKUP(G601,'Account mapping'!A:E,5,0)","v":{"$error":"#N/A"}},{"$f":"LEFT(Template!E613,2)","v":""},{"$f":"VLOOKUP(I601,'Structure mapping'!X:AB,5,0)","v":{"$error":"#N/A"}},{"$f":"LEFT(Template!F613,3)","v":""},{"$f":"VLOOKUP(K601,'Structure mapping'!AC:AG,5,0)","v":{"$error":"#N/A"}},{"$f":"LEFT(Template!G613,10)","v":""},{"$f":"VLOOKUP(M601,'Structure mapping'!AH:AL,5,0)","v":{"$error":"#N/A"}},{"$f":"LEFT(Template!H613,6)","v":""},{"$f":"VLOOKUP(O601,'Structure mapping'!AM:AQ,5,0)","v":{"$error":"#N/A"}},null,null,null,null,{"$f":"IF(Template!O613=\"\",\"\",Template!O613)","v":""},"Aug-24 pending entries",{"$f":"TEXT(Template!$B$9,\"mm/dd/yyy\")","v":"08/01/2024"},null,null,null,null,{"$f":"IF(Template!M613>0,Template!M613,-Template!N613)","v":0},null,null,null,{"$f":"VLOOKUP(G601,'Account mapping'!A:D,4,0)","v":{"$error":"#N/A"}}]
[{"$f":"LEFT(Template!A614,4)","v":""},{"$f":"VLOOKUP(A602,'Structure mapping'!K:V,7,0)","v":{"$error":"#N/A"}},{"$f":"LEFT(Template!B614,5)","v":""},{"$f":"VLOOKUP(C602,'Structure mapping'!F:J,5,0)","v":{"$error":"#N/A"}},{"$f":"LEFT(Template!C614,7)","v":""},{"$f":"VLOOKUP(E602,'Structure mapping'!A:E,5,0)","v":{"$error":"#N/A"}},{"$f":"LEFT(Template!D614,6)","v":""},{"$f":"VLOOKUP(G602,'Account mapping'!A:E,5,0)","v":{"$error":"#N/A"}},{"$f":"LEFT(Template!E614,2)","v":""},{"$f":"VLOOKUP(I602,'Structure mapping'!X:AB,5,0)","v":{"$error":"#N/A"}},{"$f":"LEFT(Template!F614,3)","v":""},{"$f":"VLOOKUP(K602,'Structure mapping'!AC:AG,5,0)","v":{"$error":"#N/A"}},{"$f":"LEFT(Template!G614,10)","v":""},{"$f":"VLOOKUP(M602,'Structure mapping'!AH:AL,5,0)","v":{"$error":"#N/A"}},{"$f":"LEFT(Template!H614,6)","v":""},{"$f":"VLOOKUP(O602,'Structure mapping'!AM:AQ,5,0)","v":{"$error":"#N/A"}},null,null,null,null,{"$f":"IF(Template!O614=\"\",\"\",Template!O614)","v":""},"Aug-24 pending entries",{"$f":"TEXT(Template!$B$9,\"mm/dd/yyy\")","v":"08/01/2024"},null,null,null,null,{"$f":"IF(Template!M614>0,Template!M614,-Template!N614)","v":0},null,null,null,{"$f":"VLOOKUP(G602,'Account mapping'!A:D,4,0)","v":{"$error":"#N/A"}}]
[{"$f":"LEFT(Template!A615,4)","v":""},{"$f":"VLOOKUP(A603,'Structure mapping'!K:V,7,0)","v":{"$error":"#N/A"}},{"$f":"LEFT(Template!B615,5)","v":""},{"$f":"VLOOKUP(C603,'Structure mapping'!F:J,5,0)","v":{"$error":"#N/A"}},{"$f":"LEFT(Template!C615,7)","v":""},{"$f":"VLOOKUP(E603,'Structure mapping'!A:E,5,0)","v":{"$error":"#N/A"}},{"$f":"LEFT(Template!D615,6)","v":""},{"$f":"VLOOKUP(G603,'Account mapping'!A:E,5,0)","v":{"$error":"#N/A"}},{"$f":"LEFT(Template!E615,2)","v":""},{"$f":"VLOOKUP(I603,'Structure mapping'!X:AB,5,0)","v":{"$error":"#N/A"}},{"$f":"LEFT(Template!F615,3)","v":""},{"$f":"VLOOKUP(K603,'Structure mapping'!AC:AG,5,0)","v":{"$error":"#N/A"}},{"$f":"LEFT(Template!G615,10)","v":""},{"$f":"VLOOKUP(M603,'Structure mapping'!AH:AL,5,0)","v":{"$error":"#N/A"}},{"$f":"LEFT(Template!H615,6)","v":""},{"$f":"VLOOKUP(O603,'Structure mapping'!AM:AQ,5,0)","v":{"$error":"#N/A"}},null,null,null,null,{"$f":"IF(Template!O615=\"\",\"\",Template!O615)","v":""},"Aug-24 pending entries",{"$f":"TEXT(Template!$B$9,\"mm/dd/yyy\")","v":"08/01/2024"},null,null,null,null,{"$f":"IF(Template!M615>0,Template!M615,-Template!N615)","v":0},null,null,null,{"$f":"VLOOKUP(G603,'Account mapping'!A:D,4,0)","v":{"$error":"#N/A"}}]
[{"$f":"LEFT(Template!A616,4)","v":""},{"$f":"VLOOKUP(A604,'Structure mapping'!K:V,7,0)","v":{"$error":"#N/A"}},{"$f":"LEFT(Template!B616,5)","v":""},{"$f":"VLOOKUP(C604,'Structure mapping'!F:J,5,0)","v":{"$error":"#N/A"}},{"$f":"LEFT(Template!C616,7)","v":""},{"$f":"VLOOKUP(E604,'Structure mapping'!A:E,5,0)","v":{"$error":"#N/A"}},{"$f":"LEFT(Template!D616,6)","v":""},{"$f":"VLOOKUP(G604,'Account mapping'!A:E,5,0)","v":{"$error":"#N/A"}},{"$f":"LEFT(Template!E616,2)","v":""},{"$f":"VLOOKUP(I604,'Structure mapping'!X:AB,5,0)","v":{"$error":"#N/A"}},{"$f":"LEFT(Template!F616,3)","v":""},{"$f":"VLOOKUP(K604,'Structure mapping'!AC:AG,5,0)","v":{"$error":"#N/A"}},{"$f":"LEFT(Template!G616,10)","v":""},{"$f":"VLOOKUP(M604,'Structure mapping'!AH:AL,5,0)","v":{"$error":"#N/A"}},{"$f":"LEFT(Template!H616,6)","v":""},{"$f":"VLOOKUP(O604,'Structure mapping'!AM:AQ,5,0)","v":{"$error":"#N/A"}},null,null,null,null,{"$f":"IF(Template!O616=\"\",\"\",Template!O616)","v":""},"Aug-24 pending entries",{"$f":"TEXT(Template!$B$9,\"mm/dd/yyy\")","v":"08/01/2024"},null,null,null,null,{"$f":"IF(Template!M616>0,Template!M616,-Template!N616)","v":0},null,null,null,{"$f":"VLOOKUP(G604,'Account mapping'!A:D,4,0)","v":{"$error":"#N/A"}}]
[{"$f":"LEFT(Template!A617,4)","v":""},{"$f":"VLOOKUP(A605,'Structure mapping'!K:V,7,0)","v":{"$error":"#N/A"}},{"$f":"LEFT(Template!B617,5)","v":""},{"$f":"VLOOKUP(C605,'Structure mapping'!F:J,5,0)","v":{"$error":"#N/A"}},{"$f":"LEFT(Template!C617,7)","v":""},{"$f":"VLOOKUP(E605,'Structure mapping'!A:E,5,0)","v":{"$error":"#N/A"}},{"$f":"LEFT(Template!D617,6)","v":""},{"$f":"VLOOKUP(G605,'Account mapping'!A:E,5,0)","v":{"$error":"#N/A"}},{"$f":"LEFT(Template!E617,2)","v":""},{"$f":"VLOOKUP(I605,'Structure mapping'!X:AB,5,0)","v":{"$error":"#N/A"}},{"$f":"LEFT(Template!F617,3)","v":""},{"$f":"VLOOKUP(K605,'Structure mapping'!AC:AG,5,0)","v":{"$error":"#N/A"}},{"$f":"LEFT(Template!G617,10)","v":""},{"$f":"VLOOKUP(M605,'Structure mapping'!AH:AL,5,0)","v":{"$error":"#N/A"}},{"$f":"LEFT(Template!H617,6)","v":""},{"$f":"VLOOKUP(O605,'Structure mapping'!AM:AQ,5,0)","v":{"$error":"#N/A"}},null,null,null,null,{"$f":"IF(Template!O617=\"\",\"\",Template!O617)","v":""},"Aug-24 pending entries",{"$f":"TEXT(Template!$B$9,\"mm/dd/yyy\")","v":"08/01/2024"},null,null,null,null,{"$f":"IF(Template!M617>0,Template!M617,-Template!N617)","v":0},null,null,null,{"$f":"VLOOKUP(G605,'Account mapping'!A:D,4,0)","v":{"$error":"#N/A"}}]
[{"$f":"LEFT(Template!A618,4)","v":""},{"$f":"VLOOKUP(A606,'Structure mapping'!K:V,7,0)","v":{"$error":"#N/A"}},{"$f":"LEFT(Template!B618,5)","v":""},{"$f":"VLOOKUP(C606,'Structure mapping'!F:J,5,0)","v":{"$error":"#N/A"}},{"$f":"LEFT(Template!C618,7)","v":""},{"$f":"VLOOKUP(E606,'Structure mapping'!A:E,5,0)","v":{"$error":"#N/A"}},{"$f":"LEFT(Template!D618,6)","v":""},{"$f":"VLOOKUP(G606,'Account mapping'!A:E,5,0)","v":{"$error":"#N/A"}},{"$f":"LEFT(Template!E618,2)","v":""},{"$f":"VLOOKUP(I606,'Structure mapping'!X:AB,5,0)","v":{"$error":"#N/A"}},{"$f":"LEFT(Template!F618,3)","v":""},{"$f":"VLOOKUP(K606,'Structure mapping'!AC:AG,5,0)","v":{"$error":"#N/A"}},{"$f":"LEFT(Template!G618,10)","v":""},{"$f":"VLOOKUP(M606,'Structure mapping'!AH:AL,5,0)","v":{"$error":"#N/A"}},{"$f":"LEFT(Template!H618,6)","v":""},{"$f":"VLOOKUP(O606,'Structure mapping'!AM:AQ,5,0)","v":{"$error":"#N/A"}},null,null,null,null,{"$f":"IF(Template!O618=\"\",\"\",Template!O618)","v":""},"Aug-24 pending entries",{"$f":"TEXT(Template!$B$9,\"mm/dd/yyy\")","v":"08/01/2024"},null,null,null,null,{"$f":"IF(Template!M618>0,Template!M618,-Template!N618)","v":0},null,null,null,{"$f":"VLOOKUP(G606,'Account mapping'!A:D,4,0)","v":{"$error":"#N/A"}}]
[{"$f":"LEFT(Template!A619,4)","v":""},{"$f":"VLOOKUP(A607,'Structure mapping'!K:V,7,0)","v":{"$error":"#N/A"}},{"$f":"LEFT(Template!B619,5)","v":""},{"$f":"VLOOKUP(C607,'Structure mapping'!F:J,5,0)","v":{"$error":"#N/A"}},{"$f":"LEFT(Template!C619,7)","v":""},{"$f":"VLOOKUP(E607,'Structure mapping'!A:E,5,0)","v":{"$error":"#N/A"}},{"$f":"LEFT(Template!D619,6)","v":""},{"$f":"VLOOKUP(G607,'Account mapping'!A:E,5,0)","v":{"$error":"#N/A"}},{"$f":"LEFT(Template!E619,2)","v":""},{"$f":"VLOOKUP(I607,'Structure mapping'!X:AB,5,0)","v":{"$error":"#N/A"}},{"$f":"LEFT(Template!F619,3)","v":""},{"$f":"VLOOKUP(K607,'Structure mapping'!AC:AG,5,0)","v":{"$error":"#N/A"}},{"$f":"LEFT(Template!G619,10)","v":""},{"$f":"VLOOKUP(M607,'Structure mapping'!AH:AL,5,0)","v":{"$error":"#N/A"}},{"$f":"LEFT(Template!H619,6)","v":""},{"$f":"VLOOKUP(O607,'Structure mapping'!AM:AQ,5,0)","v":{"$error":"#N/A"}},null,null,null,null,{"$f":"IF(Template!O619=\"\",\"\",Template!O619)","v":""},"Aug-24 pending entries",{"$f":"TEXT(Template!$B$9,\"mm/dd/yyy\")","v":"08/01/2024"},null,null,null,null,{"$f":"IF(Template!M619>0,Template!M619,-Template!N619)","v":0},null,null,null,{"$f":"VLOOKUP(G607,'Account mapping'!A:D,4,0)","v":{"$error":"#N/A"}}]
[{"$f":"LEFT(Template!A620,4)","v":""},{"$f":"VLOOKUP(A608,'Structure mapping'!K:V,7,0)","v":{"$error":"#N/A"}},{"$f":"LEFT(Template!B620,5)","v":""},{"$f":"VLOOKUP(C608,'Structure mapping'!F:J,5,0)","v":{"$error":"#N/A"}},{"$f":"LEFT(Template!C620,7)","v":""},{"$f":"VLOOKUP(E608,'Structure mapping'!A:E,5,0)","v":{"$error":"#N/A"}},{"$f":"LEFT(Template!D620,6)","v":""},{"$f":"VLOOKUP(G608,'Account mapping'!A:E,5,0)","v":{"$error":"#N/A"}},{"$f":"LEFT(Template!E620,2)","v":""},{"$f":"VLOOKUP(I608,'Structure mapping'!X:AB,5,0)","v":{"$error":"#N/A"}},{"$f":"LEFT(Template!F620,3)","v":""},{"$f":"VLOOKUP(K608,'Structure mapping'!AC:AG,5,0)","v":{"$error":"#N/A"}},{"$f":"LEFT(Template!G620,10)","v":""},{"$f":"VLOOKUP(M608,'Structure mapping'!AH:AL,5,0)","v":{"$error":"#N/A"}},{"$f":"LEFT(Template!H620,6)","v":""},{"$f":"VLOOKUP(O608,'Structure mapping'!AM:AQ,5,0)","v":{"$error":"#N/A"}},null,null,null,null,{"$f":"IF(Template!O620=\"\",\"\",Template!O620)","v":""},"Aug-24 pending entries",{"$f":"TEXT(Template!$B$9,\"mm/dd/yyy\")","v":"08/01/2024"},null,null,null,null,{"$f":"IF(Template!M620>0,Template!M620,-Template!N620)","v":0},null,null,null,{"$f":"VLOOKUP(G608,'Account mapping'!A:D,4,0)","v":{"$error":"#N/A"}}]
[{"$f":"LEFT(Template!A621,4)","v":""},{"$f":"VLOOKUP(A609,'Structure mapping'!K:V,7,0)","v":{"$error":"#N/A"}},{"$f":"LEFT(Template!B621,5)","v":""},{"$f":"VLOOKUP(C609,'Structure mapping'!F:J,5,0)","v":{"$error":"#N/A"}},{"$f":"LEFT(Template!C621,7)","v":""},{"$f":"VLOOKUP(E609,'Structure mapping'!A:E,5,0)","v":{"$error":"#N/A"}},{"$f":"LEFT(Template!D621,6)","v":""},{"$f":"VLOOKUP(G609,'Account mapping'!A:E,5,0)","v":{"$error":"#N/A"}},{"$f":"LEFT(Template!E621,2)","v":""},{"$f":"VLOOKUP(I609,'Structure mapping'!X:AB,5,0)","v":{"$error":"#N/A"}},{"$f":"LEFT(Template!F621,3)","v":""},{"$f":"VLOOKUP(K609,'Structure mapping'!AC:AG,5,0)","v":{"$error":"#N/A"}},{"$f":"LEFT(Template!G621,10)","v":""},{"$f":"VLOOKUP(M609,'Structure mapping'!AH:AL,5,0)","v":{"$error":"#N/A"}},{"$f":"LEFT(Template!H621,6)","v":""},{"$f":"VLOOKUP(O609,'Structure mapping'!AM:AQ,5,0)","v":{"$error":"#N/A"}},null,null,null,null,{"$f":"IF(Template!O621=\"\",\"\",Template!O621)","v":""},"Aug-24 pending entries",{"$f":"TEXT(Template!$B$9,\"mm/dd/yyy\")","v":"08/01/2024"},null,null,null,null,{"$f":"IF(Template!M621>0,Template!M621,-Template!N621)","v":0},null,null,null,{"$f":"VLOOKUP(G609,'Account mapping'!A:D,4,0)","v":{"$error":"#N/A"}}]
[{"$f":"LEFT(Template!A622,4)","v":""},{"$f":"VLOOKUP(A610,'Structure mapping'!K:V,7,0)","v":{"$error":"#N/A"}},{"$f":"LEFT(Template!B622,5)","v":""},{"$f":"VLOOKUP(C610,'Structure mapping'!F:J,5,0)","v":{"$error":"#N/A"}},{"$f":"LEFT(Template!C622,7)","v":""},{"$f":"VLOOKUP(E610,'Structure mapping'!A:E,5,0)","v":{"$error":"#N/A"}},{"$f":"LEFT(Template!D622,6)","v":""},{"$f":"VLOOKUP(G610,'Account mapping'!A:E,5,0)","v":{"$error":"#N/A"}},{"$f":"LEFT(Template!E622,2)","v":""},{"$f":"VLOOKUP(I610,'Structure mapping'!X:AB,5,0)","v":{"$error":"#N/A"}},{"$f":"LEFT(Template!F622,3)","v":""},{"$f":"VLOOKUP(K610,'Structure mapping'!AC:AG,5,0)","v":{"$error":"#N/A"}},{"$f":"LEFT(Template!G622,10)","v":""},{"$f":"VLOOKUP(M610,'Structure mapping'!AH:AL,5,0)","v":{"$error":"#N/A"}},{"$f":"LEFT(Template!H622,6)","v":""},{"$f":"VLOOKUP(O610,'Structure mapping'!AM:AQ,5,0)","v":{"$error":"#N/A"}},null,null,null,null,{"$f":"IF(Template!O622=\"\",\"\",Template!O622)","v":""},"Aug-24 pending entries",{"$f":"TEXT(Template!$B$9,\"mm/dd/yyy\")","v":"08/01/2024"},null,null,null,null,{"$f":"IF(Template!M622>0,Template!M622,-Template!N622)","v":0},null,null,null,{"$f":"VLOOKUP(G610,'Account mapping'!A:D,4,0)","v":{"$error":"#N/A"}}]
[{"$f":"LEFT(Template!A623,4)","v":""},{"$f":"VLOOKUP(A611,'Structure mapping'!K:V,7,0)","v":{"$error":"#N/A"}},{"$f":"LEFT(Template!B623,5)","v":""},{"$f":"VLOOKUP(C611,'Structure mapping'!F:J,5,0)","v":{"$error":"#N/A"}},{"$f":"LEFT(Template!C623,7)","v":""},{"$f":"VLOOKUP(E611,'Structure mapping'!A:E,5,0)","v":{"$error":"#N/A"}},{"$f":"LEFT(Template!D623,6)","v":""},{"$f":"VLOOKUP(G611,'Account mapping'!A:E,5,0)","v":{"$error":"#N/A"}},{"$f":"LEFT(Template!E623,2)","v":""},{"$f":"VLOOKUP(I611,'Structure mapping'!X:AB,5,0)","v":{"$error":"#N/A"}},{"$f":"LEFT(Template!F623,3)","v":""},{"$f":"VLOOKUP(K611,'Structure mapping'!AC:AG,5,0)","v":{"$error":"#N/A"}},{"$f":"LEFT(Template!G623,10)","v":""},{"$f":"VLOOKUP(M611,'Structure mapping'!AH:AL,5,0)","v":{"$error":"#N/A"}},{"$f":"LEFT(Template!H623,6)","v":""},{"$f":"VLOOKUP(O611,'Structure mapping'!AM:AQ,5,0)","v":{"$error":"#N/A"}},null,null,null,null,{"$f":"IF(Template!O623=\"\",\"\",Template!O623)","v":""},"Aug-24 pending entries",{"$f":"TEXT(Template!$B$9,\"mm/dd/yyy\")","v":"08/01/2024"},null,null,null,null,{"$f":"IF(Template!M623>0,Template!M623,-Template!N623)","v":0},null,null,null,{"$f":"VLOOKUP(G611,'Account mapping'!A:D,4,0)","v":{"$error":"#N/A"}}]
[{"$f":"LEFT(Template!A624,4)","v":""},{"$f":"VLOOKUP(A612,'Structure mapping'!K:V,7,0)","v":{"$error":"#N/A"}},{"$f":"LEFT(Template!B624,5)","v":""},{"$f":"VLOOKUP(C612,'Structure mapping'!F:J,5,0)","v":{"$error":"#N/A"}},{"$f":"LEFT(Template!C624,7)","v":""},{"$f":"VLOOKUP(E612,'Structure mapping'!A:E,5,0)","v":{"$error":"#N/A"}},{"$f":"LEFT(Template!D624,6)","v":""},{"$f":"VLOOKUP(G612,'Account mapping'!A:E,5,0)","v":{"$error":"#N/A"}},{"$f":"LEFT(Template!E624,2)","v":""},{"$f":"VLOOKUP(I612,'Structure mapping'!X:AB,5,0)","v":{"$error":"#N/A"}},{"$f":"LEFT(Template!F624,3)","v":""},{"$f":"VLOOKUP(K612,'Structure mapping'!AC:AG,5,0)","v":{"$error":"#N/A"}},{"$f":"LEFT(Template!G624,10)","v":""},{"$f":"VLOOKUP(M612,'Structure mapping'!AH:AL,5,0)","v":{"$error":"#N/A"}},{"$f":"LEFT(Template!H624,6)","v":""},{"$f":"VLOOKUP(O612,'Structure mapping'!AM:AQ,5,0)","v":{"$error":"#N/A"}},null,null,null,null,{"$f":"IF(Template!O624=\"\",\"\",Template!O624)","v":""},"Aug-24 pending entries",{"$f":"TEXT(Template!$B$9,\"mm/dd/yyy\")","v":"08/01/2024"},null,null,null,null,{"$f":"IF(Template!M624>0,Template!M624,-Template!N624)","v":0},null,null,null,{"$f":"VLOOKUP(G612,'Account mapping'!A:D,4,0)","v":{"$error":"#N/A"}}]
[{"$f":"LEFT(Template!A625,4)","v":""},{"$f":"VLOOKUP(A613,'Structure mapping'!K:V,7,0)","v":{"$error":"#N/A"}},{"$f":"LEFT(Template!B625,5)","v":""},{"$f":"VLOOKUP(C613,'Structure mapping'!F:J,5,0)","v":{"$error":"#N/A"}},{"$f":"LEFT(Template!C625,7)","v":""},{"$f":"VLOOKUP(E613,'Structure mapping'!A:E,5,0)","v":{"$error":"#N/A"}},{"$f":"LEFT(Template!D625,6)","v":""},{"$f":"VLOOKUP(G613,'Account mapping'!A:E,5,0)","v":{"$error":"#N/A"}},{"$f":"LEFT(Template!E625,2)","v":""},{"$f":"VLOOKUP(I613,'Structure mapping'!X:AB,5,0)","v":{"$error":"#N/A"}},{"$f":"LEFT(Template!F625,3)","v":""},{"$f":"VLOOKUP(K613,'Structure mapping'!AC:AG,5,0)","v":{"$error":"#N/A"}},{"$f":"LEFT(Template!G625,10)","v":""},{"$f":"VLOOKUP(M613,'Structure mapping'!AH:AL,5,0)","v":{"$error":"#N/A"}},{"$f":"LEFT(Template!H625,6)","v":""},{"$f":"VLOOKUP(O613,'Structure mapping'!AM:AQ,5,0)","v":{"$error":"#N/A"}},null,null,null,null,{"$f":"IF(Template!O625=\"\",\"\",Template!O625)","v":""},"Aug-24 pending entries",{"$f":"TEXT(Template!$B$9,\"mm/dd/yyy\")","v":"08/01/2024"},null,null,null,null,{"$f":"IF(Template!M625>0,Template!M625,-Template!N625)","v":0},null,null,null,{"$f":"VLOOKUP(G613,'Account mapping'!A:D,4,0)","v":{"$error":"#N/A"}}]
[{"$f":"LEFT(Template!A626,4)","v":""},{"$f":"VLOOKUP(A614,'Structure mapping'!K:V,7,0)","v":{"$error":"#N/A"}},{"$f":"LEFT(Template!B626,5)","v":""},{"$f":"VLOOKUP(C614,'Structure mapping'!F:J,5,0)","v":{"$error":"#N/A"}},{"$f":"LEFT(Template!C626,7)","v":""},{"$f":"VLOOKUP(E614,'Structure mapping'!A:E,5,0)","v":{"$error":"#N/A"}},{"$f":"LEFT(Template!D626,6)","v":""},{"$f":"VLOOKUP(G614,'Account mapping'!A:E,5,0)","v":{"$error":"#N/A"}},{"$f":"LEFT(Template!E626,2)","v":""},{"$f":"VLOOKUP(I614,'Structure mapping'!X:AB,5,0)","v":{"$error":"#N/A"}},{"$f":"LEFT(Template!F626,3)","v":""},{"$f":"VLOOKUP(K614,'Structure mapping'!AC:AG,5,0)","v":{"$error":"#N/A"}},{"$f":"LEFT(Template!G626,10)","v":""},{"$f":"VLOOKUP(M614,'Structure mapping'!AH:AL,5,0)","v":{"$error":"#N/A"}},{"$f":"LEFT(Template!H626,6)","v":""},{"$f":"VLOOKUP(O614,'Structure mapping'!AM:AQ,5,0)","v":{"$error":"#N/A"}},null,null,null,null,{"$f":"IF(Template!O626=\"\",\"\",Template!O626)","v":""},"Aug-24 pending entries",{"$f":"TEXT(Template!$B$9,\"mm/dd/yyy\")","v":"08/01/2024"},null,null,null,null,{"$f":"IF(Template!M626>0,Template!M626,-Template!N626)","v":0},null,null,null,{"$f":"VLOOKUP(G614,'Account mapping'!A:D,4,0)","v":{"$error":"#N/A"}}]
[{"$f":"LEFT(Template!A627,4)","v":""},{"$f":"VLOOKUP(A615,'Structure mapping'!K:V,7,0)","v":{"$error":"#N/A"}},{"$f":"LEFT(Template!B627,5)","v":""},{"$f":"VLOOKUP(C615,'Structure mapping'!F:J,5,0)","v":{"$error":"#N/A"}},{"$f":"LEFT(Template!C627,7)","v":""},{"$f":"VLOOKUP(E615,'Structure mapping'!A:E,5,0)","v":{"$error":"#N/A"}},{"$f":"LEFT(Template!D627,6)","v":""},{"$f":"VLOOKUP(G615,'Account mapping'!A:E,5,0)","v":{"$error":"#N/A"}},{"$f":"LEFT(Template!E627,2)","v":""},{"$f":"VLOOKUP(I615,'Structure mapping'!X:AB,5,0)","v":{"$error":"#N/A"}},{"$f":"LEFT(Template!F627,3)","v":""},{"$f":"VLOOKUP(K615,'Structure mapping'!AC:AG,5,0)","v":{"$error":"#N/A"}},{"$f":"LEFT(Template!G627,10)","v":""},{"$f":"VLOOKUP(M615,'Structure mapping'!AH:AL,5,0)","v":{"$error":"#N/A"}},{"$f":"LEFT(Template!H627,6)","v":""},{"$f":"VLOOKUP(O615,'Structure mapping'!AM:AQ,5,0)","v":{"$error":"#N/A"}},null,null,null,null,{"$f":"IF(Template!O627=\"\",\"\",Template!O627)","v":""},"Aug-24 pending entries",{"$f":"TEXT(Template!$B$9,\"mm/dd/yyy\")","v":"08/01/2024"},null,null,null,null,{"$f":"IF(Template!M627>0,Template!M627,-Template!N627)","v":0},null,null,null,{"$f":"VLOOKUP(G615,'Account mapping'!A:D,4,0)","v":{"$error":"#N/A"}}]
[{"$f":"LEFT(Template!A628,4)","v":""},{"$f":"VLOOKUP(A616,'Structure mapping'!K:V,7,0)","v":{"$error":"#N/A"}},{"$f":"LEFT(Template!B628,5)","v":""},{"$f":"VLOOKUP(C616,'Structure mapping'!F:J,5,0)","v":{"$error":"#N/A"}},{"$f":"LEFT(Template!C628,7)","v":""},{"$f":"VLOOKUP(E616,'Structure mapping'!A:E,5,0)","v":{"$error":"#N/A"}},{"$f":"LEFT(Template!D628,6)","v":""},{"$f":"VLOOKUP(G616,'Account mapping'!A:E,5,0)","v":{"$error":"#N/A"}},{"$f":"LEFT(Template!E628,2)","v":""},{"$f":"VLOOKUP(I616,'Structure mapping'!X:AB,5,0)","v":{"$error":"#N/A"}},{"$f":"LEFT(Template!F628,3)","v":""},{"$f":"VLOOKUP(K616,'Structure mapping'!AC:AG,5,0)","v":{"$error":"#N/A"}},{"$f":"LEFT(Template!G628,10)","v":""},{"$f":"VLOOKUP(M616,'Structure mapping'!AH:AL,5,0)","v":{"$error":"#N/A"}},{"$f":"LEFT(Template!H628,6)","v":""},{"$f":"VLOOKUP(O616,'Structure mapping'!AM:AQ,5,0)","v":{"$error":"#N/A"}},null,null,null,null,{"$f":"IF(Template!O628=\"\",\"\",Template!O628)","v":""},"Aug-24 pending entries",{"$f":"TEXT(Template!$B$9,\"mm/dd/yyy\")","v":"08/01/2024"},null,null,null,null,{"$f":"IF(Template!M628>0,Template!M628,-Template!N628)","v":0},null,null,null,{"$f":"VLOOKUP(G616,'Account mapping'!A:D,4,0)","v":{"$error":"#N/A"}}]
[{"$f":"LEFT(Template!A629,4)","v":""},{"$f":"VLOOKUP(A617,'Structure mapping'!K:V,7,0)","v":{"$error":"#N/A"}},{"$f":"LEFT(Template!B629,5)","v":""},{"$f":"VLOOKUP(C617,'Structure mapping'!F:J,5,0)","v":{"$error":"#N/A"}},{"$f":"LEFT(Template!C629,7)","v":""},{"$f":"VLOOKUP(E617,'Structure mapping'!A:E,5,0)","v":{"$error":"#N/A"}},{"$f":"LEFT(Template!D629,6)","v":""},{"$f":"VLOOKUP(G617,'Account mapping'!A:E,5,0)","v":{"$error":"#N/A"}},{"$f":"LEFT(Template!E629,2)","v":""},{"$f":"VLOOKUP(I617,'Structure mapping'!X:AB,5,0)","v":{"$error":"#N/A"}},{"$f":"LEFT(Template!F629,3)","v":""},{"$f":"VLOOKUP(K617,'Structure mapping'!AC:AG,5,0)","v":{"$error":"#N/A"}},{"$f":"LEFT(Template!G629,10)","v":""},{"$f":"VLOOKUP(M617,'Structure mapping'!AH:AL,5,0)","v":{"$error":"#N/A"}},{"$f":"LEFT(Template!H629,6)","v":""},{"$f":"VLOOKUP(O617,'Structure mapping'!AM:AQ,5,0)","v":{"$error":"#N/A"}},null,null,null,null,{"$f":"IF(Template!O629=\"\",\"\",Template!O629)","v":""},"Aug-24 pending entries",{"$f":"TEXT(Template!$B$9,\"mm/dd/yyy\")","v":"08/01/2024"},null,null,null,null,{"$f":"IF(Template!M629>0,Template!M629,-Template!N629)","v":0},null,null,null,{"$f":"VLOOKUP(G617,'Account mapping'!A:D,4,0)","v":{"$error":"#N/A"}}]
[{"$f":"LEFT(Template!A630,4)","v":""},{"$f":"VLOOKUP(A618,'Structure mapping'!K:V,7,0)","v":{"$error":"#N/A"}},{"$f":"LEFT(Template!B630,5)","v":""},{"$f":"VLOOKUP(C618,'Structure mapping'!F:J,5,0)","v":{"$error":"#N/A"}},{"$f":"LEFT(Template!C630,7)","v":""},{"$f":"VLOOKUP(E618,'Structure mapping'!A:E,5,0)","v":{"$error":"#N/A"}},{"$f":"LEFT(Template!D630,6)","v":""},{"$f":"VLOOKUP(G618,'Account mapping'!A:E,5,0)","v":{"$error":"#N/A"}},{"$f":"LEFT(Template!E630,2)","v":""},{"$f":"VLOOKUP(I618,'Structure mapping'!X:AB,5,0)","v":{"$error":"#N/A"}},{"$f":"LEFT(Template!F630,3)","v":""},{"$f":"VLOOKUP(K618,'Structure mapping'!AC:AG,5,0)","v":{"$error":"#N/A"}},{"$f":"LEFT(Template!G630,10)","v":""},{"$f":"VLOOKUP(M618,'Structure mapping'!AH:AL,5,0)","v":{"$error":"#N/A"}},{"$f":"LEFT(Template!H630,6)","v":""},{"$f":"VLOOKUP(O618,'Structure mapping'!AM:AQ,5,0)","v":{"$error":"#N/A"}},null,null,null,null,{"$f":"IF(Template!O630=\"\",\"\",Template!O630)","v":""},"Aug-24 pending entries",{"$f":"TEXT(Template!$B$9,\"mm/dd/yyy\")","v":"08/01/2024"},null,null,null,null,{"$f":"IF(Template!M630>0,Template!M630,-Template!N630)","v":0},null,null,null,{"$f":"VLOOKUP(G618,'Account mapping'!A:D,4,0)","v":{"$error":"#N/A"}}]
[{"$f":"LEFT(Template!A631,4)","v":""},{"$f":"VLOOKUP(A619,'Structure mapping'!K:V,7,0)","v":{"$error":"#N/A"}},{"$f":"LEFT(Template!B631,5)","v":""},{"$f":"VLOOKUP(C619,'Structure mapping'!F:J,5,0)","v":{"$error":"#N/A"}},{"$f":"LEFT(Template!C631,7)","v":""},{"$f":"VLOOKUP(E619,'Structure mapping'!A:E,5,0)","v":{"$error":"#N/A"}},{"$f":"LEFT(Template!D631,6)","v":""},{"$f":"VLOOKUP(G619,'Account mapping'!A:E,5,0)","v":{"$error":"#N/A"}},{"$f":"LEFT(Template!E631,2)","v":""},{"$f":"VLOOKUP(I619,'Structure mapping'!X:AB,5,0)","v":{"$error":"#N/A"}},{"$f":"LEFT(Template!F631,3)","v":""},{"$f":"VLOOKUP(K619,'Structure mapping'!AC:AG,5,0)","v":{"$error":"#N/A"}},{"$f":"LEFT(Template!G631,10)","v":""},{"$f":"VLOOKUP(M619,'Structure mapping'!AH:AL,5,0)","v":{"$error":"#N/A"}},{"$f":"LEFT(Template!H631,6)","v":""},{"$f":"VLOOKUP(O619,'Structure mapping'!AM:AQ,5,0)","v":{"$error":"#N/A"}},null,null,null,null,{"$f":"IF(Template!O631=\"\",\"\",Template!O631)","v":""},"Aug-24 pending entries",{"$f":"TEXT(Template!$B$9,\"mm/dd/yyy\")","v":"08/01/2024"},null,null,null,null,{"$f":"IF(Template!M631>0,Template!M631,-Template!N631)","v":0},null,null,null,{"$f":"VLOOKUP(G619,'Account mapping'!A:D,4,0)","v":{"$error":"#N/A"}}]
[{"$f":"LEFT(Template!A632,4)","v":""},{"$f":"VLOOKUP(A620,'Structure mapping'!K:V,7,0)","v":{"$error":"#N/A"}},{"$f":"LEFT(Template!B632,5)","v":""},{"$f":"VLOOKUP(C620,'Structure mapping'!F:J,5,0)","v":{"$error":"#N/A"}},{"$f":"LEFT(Template!C632,7)","v":""},{"$f":"VLOOKUP(E620,'Structure mapping'!A:E,5,0)","v":{"$error":"#N/A"}},{"$f":"LEFT(Template!D632,6)","v":""},{"$f":"VLOOKUP(G620,'Account mapping'!A:E,5,0)","v":{"$error":"#N/A"}},{"$f":"LEFT(Template!E632,2)","v":""},{"$f":"VLOOKUP(I620,'Structure mapping'!X:AB,5,0)","v":{"$error":"#N/A"}},{"$f":"LEFT(Template!F632,3)","v":""},{"$f":"VLOOKUP(K620,'Structure mapping'!AC:AG,5,0)","v":{"$error":"#N/A"}},{"$f":"LEFT(Template!G632,10)","v":""},{"$f":"VLOOKUP(M620,'Structure mapping'!AH:AL,5,0)","v":{"$error":"#N/A"}},{"$f":"LEFT(Template!H632,6)","v":""},{"$f":"VLOOKUP(O620,'Structure mapping'!AM:AQ,5,0)","v":{"$error":"#N/A"}},null,null,null,null,{"$f":"IF(Template!O632=\"\",\"\",Template!O632)","v":""},"Aug-24 pending entries",{"$f":"TEXT(Template!$B$9,\"mm/dd/yyy\")","v":"08/01/2024"},null,null,null,null,{"$f":"IF(Template!M632>0,Template!M632,-Template!N632)","v":0},null,null,null,{"$f":"VLOOKUP(G620,'Account mapping'!A:D,4,0)","v":{"$error":"#N/A"}}]
[{"$f":"LEFT(Template!A633,4)","v":""},{"$f":"VLOOKUP(A621,'Structure mapping'!K:V,7,0)","v":{"$error":"#N/A"}},{"$f":"LEFT(Template!B633,5)","v":""},{"$f":"VLOOKUP(C621,'Structure mapping'!F:J,5,0)","v":{"$error":"#N/A"}},{"$f":"LEFT(Template!C633,7)","v":""},{"$f":"VLOOKUP(E621,'Structure mapping'!A:E,5,0)","v":{"$error":"#N/A"}},{"$f":"LEFT(Template!D633,6)","v":""},{"$f":"VLOOKUP(G621,'Account mapping'!A:E,5,0)","v":{"$error":"#N/A"}},{"$f":"LEFT(Template!E633,2)","v":""},{"$f":"VLOOKUP(I621,'Structure mapping'!X:AB,5,0)","v":{"$error":"#N/A"}},{"$f":"LEFT(Template!F633,3)","v":""},{"$f":"VLOOKUP(K621,'Structure mapping'!AC:AG,5,0)","v":{"$error":"#N/A"}},{"$f":"LEFT(Template!G633,10)","v":""},{"$f":"VLOOKUP(M621,'Structure mapping'!AH:AL,5,0)","v":{"$error":"#N/A"}},{"$f":"LEFT(Template!H633,6)","v":""},{"$f":"VLOOKUP(O621,'Structure mapping'!AM:AQ,5,0)","v":{"$error":"#N/A"}},null,null,null,null,{"$f":"IF(Template!O633=\"\",\"\",Template!O633)","v":""},"Aug-24 pending entries",{"$f":"TEXT(Template!$B$9,\"mm/dd/yyy\")","v":"08/01/2024"},null,null,null,null,{"$f":"IF(Template!M633>0,Template!M633,-Template!N633)","v":0},null,null,null,{"$f":"VLOOKUP(G621,'Account mapping'!A:D,4,0)","v":{"$error":"#N/A"}}]
[{"$f":"LEFT(Template!A634,4)","v":""},{"$f":"VLOOKUP(A622,'Structure mapping'!K:V,7,0)","v":{"$error":"#N/A"}},{"$f":"LEFT(Template!B634,5)","v":""},{"$f":"VLOOKUP(C622,'Structure mapping'!F:J,5,0)","v":{"$error":"#N/A"}},{"$f":"LEFT(Template!C634,7)","v":""},{"$f":"VLOOKUP(E622,'Structure mapping'!A:E,5,0)","v":{"$error":"#N/A"}},{"$f":"LEFT(Template!D634,6)","v":""},{"$f":"VLOOKUP(G622,'Account mapping'!A:E,5,0)","v":{"$error":"#N/A"}},{"$f":"LEFT(Template!E634,2)","v":""},{"$f":"VLOOKUP(I622,'Structure mapping'!X:AB,5,0)","v":{"$error":"#N/A"}},{"$f":"LEFT(Template!F634,3)","v":""},{"$f":"VLOOKUP(K622,'Structure mapping'!AC:AG,5,0)","v":{"$error":"#N/A"}},{"$f":"LEFT(Template!G634,10)","v":""},{"$f":"VLOOKUP(M622,'Structure mapping'!AH:AL,5,0)","v":{"$error":"#N/A"}},{"$f":"LEFT(Template!H634,6)","v":""},{"$f":"VLOOKUP(O622,'Structure mapping'!AM:AQ,5,0)","v":{"$error":"#N/A"}},null,null,null,null,{"$f":"IF(Template!O634=\"\",\"\",Template!O634)","v":""},"Aug-24 pending entries",{"$f":"TEXT(Template!$B$9,\"mm/dd/yyy\")","v":"08/01/2024"},null,null,null,null,{"$f":"IF(Template!M634>0,Template!M634,-Template!N634)","v":0},null,null,null,{"$f":"VLOOKUP(G622,'Account mapping'!A:D,4,0)","v":{"$error":"#N/A"}}]
[{"$f":"LEFT(Template!A635,4)","v":""},{"$f":"VLOOKUP(A623,'Structure mapping'!K:V,7,0)","v":{"$error":"#N/A"}},{"$f":"LEFT(Template!B635,5)","v":""},{"$f":"VLOOKUP(C623,'Structure mapping'!F:J,5,0)","v":{"$error":"#N/A"}},{"$f":"LEFT(Template!C635,7)","v":""},{"$f":"VLOOKUP(E623,'Structure mapping'!A:E,5,0)","v":{"$error":"#N/A"}},{"$f":"LEFT(Template!D635,6)","v":""},{"$f":"VLOOKUP(G623,'Account mapping'!A:E,5,0)","v":{"$error":"#N/A"}},{"$f":"LEFT(Template!E635,2)","v":""},{"$f":"VLOOKUP(I623,'Structure mapping'!X:AB,5,0)","v":{"$error":"#N/A"}},{"$f":"LEFT(Template!F635,3)","v":""},{"$f":"VLOOKUP(K623,'Structure mapping'!AC:AG,5,0)","v":{"$error":"#N/A"}},{"$f":"LEFT(Template!G635,10)","v":""},{"$f":"VLOOKUP(M623,'Structure mapping'!AH:AL,5,0)","v":{"$error":"#N/A"}},{"$f":"LEFT(Template!H635,6)","v":""},{"$f":"VLOOKUP(O623,'Structure mapping'!AM:AQ,5,0)","v":{"$error":"#N/A"}},null,null,null,null,{"$f":"IF(Template!O635=\"\",\"\",Template!O635)","v":""},"Aug-24 pending entries",{"$f":"TEXT(Template!$B$9,\"mm/dd/yyy\")","v":"08/01/2024"},null,null,null,null,{"$f":"IF(Template!M635>0,Template!M635,-Template!N635)","v":0},null,null,null,{"$f":"VLOOKUP(G623,'Account mapping'!A:D,4,0)","v":{"$error":"#N/A"}}]
[{"$f":"LEFT(Template!A636,4)","v":""},{"$f":"VLOOKUP(A624,'Structure mapping'!K:V,7,0)","v":{"$error":"#N/A"}},{"$f":"LEFT(Template!B636,5)","v":""},{"$f":"VLOOKUP(C624,'Structure mapping'!F:J,5,0)","v":{"$error":"#N/A"}},{"$f":"LEFT(Template!C636,7)","v":""},{"$f":"VLOOKUP(E624,'Structure mapping'!A:E,5,0)","v":{"$error":"#N/A"}},{"$f":"LEFT(Template!D636,6)","v":""},{"$f":"VLOOKUP(G624,'Account mapping'!A:E,5,0)","v":{"$error":"#N/A"}},{"$f":"LEFT(Template!E636,2)","v":""},{"$f":"VLOOKUP(I624,'Structure mapping'!X:AB,5,0)","v":{"$error":"#N/A"}},{"$f":"LEFT(Template!F636,3)","v":""},{"$f":"VLOOKUP(K624,'Structure mapping'!AC:AG,5,0)","v":{"$error":"#N/A"}},{"$f":"LEFT(Template!G636,10)","v":""},{"$f":"VLOOKUP(M624,'Structure mapping'!AH:AL,5,0)","v":{"$error":"#N/A"}},{"$f":"LEFT(Template!H636,6)","v":""},{"$f":"VLOOKUP(O624,'Structure mapping'!AM:AQ,5,0)","v":{"$error":"#N/A"}},null,null,null,null,{"$f":"IF(Template!O636=\"\",\"\",Template!O636)","v":""},"Aug-24 pending entries",{"$f":"TEXT(Template!$B$9,\"mm/dd/yyy\")","v":"08/01/2024"},null,null,null,null,{"$f":"IF(Template!M636>0,Template!M636,-Template!N636)","v":0},null,null,null,{"$f":"VLOOKUP(G624,'Account mapping'!A:D,4,0)","v":{"$error":"#N/A"}}]
[{"$f":"LEFT(Template!A637,4)","v":""},{"$f":"VLOOKUP(A625,'Structure mapping'!K:V,7,0)","v":{"$error":"#N/A"}},{"$f":"LEFT(Template!B637,5)","v":""},{"$f":"VLOOKUP(C625,'Structure mapping'!F:J,5,0)","v":{"$error":"#N/A"}},{"$f":"LEFT(Template!C637,7)","v":""},{"$f":"VLOOKUP(E625,'Structure mapping'!A:E,5,0)","v":{"$error":"#N/A"}},{"$f":"LEFT(Template!D637,6)","v":""},{"$f":"VLOOKUP(G625,'Account mapping'!A:E,5,0)","v":{"$error":"#N/A"}},{"$f":"LEFT(Template!E637,2)","v":""},{"$f":"VLOOKUP(I625,'Structure mapping'!X:AB,5,0)","v":{"$error":"#N/A"}},{"$f":"LEFT(Template!F637,3)","v":""},{"$f":"VLOOKUP(K625,'Structure mapping'!AC:AG,5,0)","v":{"$error":"#N/A"}},{"$f":"LEFT(Template!G637,10)","v":""},{"$f":"VLOOKUP(M625,'Structure mapping'!AH:AL,5,0)","v":{"$error":"#N/A"}},{"$f":"LEFT(Template!H637,6)","v":""},{"$f":"VLOOKUP(O625,'Structure mapping'!AM:AQ,5,0)","v":{"$error":"#N/A"}},null,null,null,null,{"$f":"IF(Template!O637=\"\",\"\",Template!O637)","v":""},"Aug-24 pending entries",{"$f":"TEXT(Template!$B$9,\"mm/dd/yyy\")","v":"08/01/2024"},null,null,null,null,{"$f":"IF(Template!M637>0,Template!M637,-Template!N637)","v":0},null,null,null,{"$f":"VLOOKUP(G625,'Account mapping'!A:D,4,0)","v":{"$error":"#N/A"}}]
[{"$f":"LEFT(Template!A638,4)","v":""},{"$f":"VLOOKUP(A626,'Structure mapping'!K:V,7,0)","v":{"$error":"#N/A"}},{"$f":"LEFT(Template!B638,5)","v":""},{"$f":"VLOOKUP(C626,'Structure mapping'!F:J,5,0)","v":{"$error":"#N/A"}},{"$f":"LEFT(Template!C638,7)","v":""},{"$f":"VLOOKUP(E626,'Structure mapping'!A:E,5,0)","v":{"$error":"#N/A"}},{"$f":"LEFT(Template!D638,6)","v":""},{"$f":"VLOOKUP(G626,'Account mapping'!A:E,5,0)","v":{"$error":"#N/A"}},{"$f":"LEFT(Template!E638,2)","v":""},{"$f":"VLOOKUP(I626,'Structure mapping'!X:AB,5,0)","v":{"$error":"#N/A"}},{"$f":"LEFT(Template!F638,3)","v":""},{"$f":"VLOOKUP(K626,'Structure mapping'!AC:AG,5,0)","v":{"$error":"#N/A"}},{"$f":"LEFT(Template!G638,10)","v":""},{"$f":"VLOOKUP(M626,'Structure mapping'!AH:AL,5,0)","v":{"$error":"#N/A"}},{"$f":"LEFT(Template!H638,6)","v":""},{"$f":"VLOOKUP(O626,'Structure mapping'!AM:AQ,5,0)","v":{"$error":"#N/A"}},null,null,null,null,{"$f":"IF(Template!O638=\"\",\"\",Template!O638)","v":""},"Aug-24 pending entries",{"$f":"TEXT(Template!$B$9,\"mm/dd/yyy\")","v":"08/01/2024"},null,null,null,null,{"$f":"IF(Template!M638>0,Template!M638,-Template!N638)","v":0},null,null,null,{"$f":"VLOOKUP(G626,'Account mapping'!A:D,4,0)","v":{"$error":"#N/A"}}]
[{"$f":"LEFT(Template!A639,4)","v":""},{"$f":"VLOOKUP(A627,'Structure mapping'!K:V,7,0)","v":{"$error":"#N/A"}},{"$f":"LEFT(Template!B639,5)","v":""},{"$f":"VLOOKUP(C627,'Structure mapping'!F:J,5,0)","v":{"$error":"#N/A"}},{"$f":"LEFT(Template!C639,7)","v":""},{"$f":"VLOOKUP(E627,'Structure mapping'!A:E,5,0)","v":{"$error":"#N/A"}},{"$f":"LEFT(Template!D639,6)","v":""},{"$f":"VLOOKUP(G627,'Account mapping'!A:E,5,0)","v":{"$error":"#N/A"}},{"$f":"LEFT(Template!E639,2)","v":""},{"$f":"VLOOKUP(I627,'Structure mapping'!X:AB,5,0)","v":{"$error":"#N/A"}},{"$f":"LEFT(Template!F639,3)","v":""},{"$f":"VLOOKUP(K627,'Structure mapping'!AC:AG,5,0)","v":{"$error":"#N/A"}},{"$f":"LEFT(Template!G639,10)","v":""},{"$f":"VLOOKUP(M627,'Structure mapping'!AH:AL,5,0)","v":{"$error":"#N/A"}},{"$f":"LEFT(Template!H639,6)","v":""},{"$f":"VLOOKUP(O627,'Structure mapping'!AM:AQ,5,0)","v":{"$error":"#N/A"}},null,null,null,null,{"$f":"IF(Template!O639=\"\",\"\",Template!O639)","v":""},"Aug-24 pending entries",{"$f":"TEXT(Template!$B$9,\"mm/dd/yyy\")","v":"08/01/2024"},null,null,null,null,{"$f":"IF(Template!M639>0,Template!M639,-Template!N639)","v":0},null,null,null,{"$f":"VLOOKUP(G627,'Account mapping'!A:D,4,0)","v":{"$error":"#N/A"}}]
[{"$f":"LEFT(Template!A640,4)","v":""},{"$f":"VLOOKUP(A628,'Structure mapping'!K:V,7,0)","v":{"$error":"#N/A"}},{"$f":"LEFT(Template!B640,5)","v":""},{"$f":"VLOOKUP(C628,'Structure mapping'!F:J,5,0)","v":{"$error":"#N/A"}},{"$f":"LEFT(Template!C640,7)","v":""},{"$f":"VLOOKUP(E628,'Structure mapping'!A:E,5,0)","v":{"$error":"#N/A"}},{"$f":"LEFT(Template!D640,6)","v":""},{"$f":"VLOOKUP(G628,'Account mapping'!A:E,5,0)","v":{"$error":"#N/A"}},{"$f":"LEFT(Template!E640,2)","v":""},{"$f":"VLOOKUP(I628,'Structure mapping'!X:AB,5,0)","v":{"$error":"#N/A"}},{"$f":"LEFT(Template!F640,3)","v":""},{"$f":"VLOOKUP(K628,'Structure mapping'!AC:AG,5,0)","v":{"$error":"#N/A"}},{"$f":"LEFT(Template!G640,10)","v":""},{"$f":"VLOOKUP(M628,'Structure mapping'!AH:AL,5,0)","v":{"$error":"#N/A"}},{"$f":"LEFT(Template!H640,6)","v":""},{"$f":"VLOOKUP(O628,'Structure mapping'!AM:AQ,5,0)","v":{"$error":"#N/A"}},null,null,null,null,{"$f":"IF(Template!O640=\"\",\"\",Template!O640)","v":""},"Aug-24 pending entries",{"$f":"TEXT(Template!$B$9,\"mm/dd/yyy\")","v":"08/01/2024"},null,null,null,null,{"$f":"IF(Template!M640>0,Template!M640,-Template!N640)","v":0},null,null,null,{"$f":"VLOOKUP(G628,'Account mapping'!A:D,4,0)","v":{"$error":"#N/A"}}]
[{"$f":"LEFT(Template!A641,4)","v":""},{"$f":"VLOOKUP(A629,'Structure mapping'!K:V,7,0)","v":{"$error":"#N/A"}},{"$f":"LEFT(Template!B641,5)","v":""},{"$f":"VLOOKUP(C629,'Structure mapping'!F:J,5,0)","v":{"$error":"#N/A"}},{"$f":"LEFT(Template!C641,7)","v":""},{"$f":"VLOOKUP(E629,'Structure mapping'!A:E,5,0)","v":{"$error":"#N/A"}},{"$f":"LEFT(Template!D641,6)","v":""},{"$f":"VLOOKUP(G629,'Account mapping'!A:E,5,0)","v":{"$error":"#N/A"}},{"$f":"LEFT(Template!E641,2)","v":""},{"$f":"VLOOKUP(I629,'Structure mapping'!X:AB,5,0)","v":{"$error":"#N/A"}},{"$f":"LEFT(Template!F641,3)","v":""},{"$f":"VLOOKUP(K629,'Structure mapping'!AC:AG,5,0)","v":{"$error":"#N/A"}},{"$f":"LEFT(Template!G641,10)","v":""},{"$f":"VLOOKUP(M629,'Structure mapping'!AH:AL,5,0)","v":{"$error":"#N/A"}},{"$f":"LEFT(Template!H641,6)","v":""},{"$f":"VLOOKUP(O629,'Structure mapping'!AM:AQ,5,0)","v":{"$error":"#N/A"}},null,null,null,null,{"$f":"IF(Template!O641=\"\",\"\",Template!O641)","v":""},"Aug-24 pending entries",{"$f":"TEXT(Template!$B$9,\"mm/dd/yyy\")","v":"08/01/2024"},null,null,null,null,{"$f":"IF(Template!M641>0,Template!M641,-Template!N641)","v":0},null,null,null,{"$f":"VLOOKUP(G629,'Account mapping'!A:D,4,0)","v":{"$error":"#N/A"}}]
[{"$f":"LEFT(Template!A642,4)","v":""},{"$f":"VLOOKUP(A630,'Structure mapping'!K:V,7,0)","v":{"$error":"#N/A"}},{"$f":"LEFT(Template!B642,5)","v":""},{"$f":"VLOOKUP(C630,'Structure mapping'!F:J,5,0)","v":{"$error":"#N/A"}},{"$f":"LEFT(Template!C642,7)","v":""},{"$f":"VLOOKUP(E630,'Structure mapping'!A:E,5,0)","v":{"$error":"#N/A"}},{"$f":"LEFT(Template!D642,6)","v":""},{"$f":"VLOOKUP(G630,'Account mapping'!A:E,5,0)","v":{"$error":"#N/A"}},{"$f":"LEFT(Template!E642,2)","v":""},{"$f":"VLOOKUP(I630,'Structure mapping'!X:AB,5,0)","v":{"$error":"#N/A"}},{"$f":"LEFT(Template!F642,3)","v":""},{"$f":"VLOOKUP(K630,'Structure mapping'!AC:AG,5,0)","v":{"$error":"#N/A"}},{"$f":"LEFT(Template!G642,10)","v":""},{"$f":"VLOOKUP(M630,'Structure mapping'!AH:AL,5,0)","v":{"$error":"#N/A"}},{"$f":"LEFT(Template!H642,6)","v":""},{"$f":"VLOOKUP(O630,'Structure mapping'!AM:AQ,5,0)","v":{"$error":"#N/A"}},null,null,null,null,{"$f":"IF(Template!O642=\"\",\"\",Template!O642)","v":""},"Aug-24 pending entries",{"$f":"TEXT(Template!$B$9,\"mm/dd/yyy\")","v":"08/01/2024"},null,null,null,null,{"$f":"IF(Template!M642>0,Template!M642,-Template!N642)","v":0},null,null,null,{"$f":"VLOOKUP(G630,'Account mapping'!A:D,4,0)","v":{"$error":"#N/A"}}]
[{"$f":"LEFT(Template!A643,4)","v":""},{"$f":"VLOOKUP(A631,'Structure mapping'!K:V,7,0)","v":{"$error":"#N/A"}},{"$f":"LEFT(Template!B643,5)","v":""},{"$f":"VLOOKUP(C631,'Structure mapping'!F:J,5,0)","v":{"$error":"#N/A"}},{"$f":"LEFT(Template!C643,7)","v":""},{"$f":"VLOOKUP(E631,'Structure mapping'!A:E,5,0)","v":{"$error":"#N/A"}},{"$f":"LEFT(Template!D643,6)","v":""},{"$f":"VLOOKUP(G631,'Account mapping'!A:E,5,0)","v":{"$error":"#N/A"}},{"$f":"LEFT(Template!E643,2)","v":""},{"$f":"VLOOKUP(I631,'Structure mapping'!X:AB,5,0)","v":{"$error":"#N/A"}},{"$f":"LEFT(Template!F643,3)","v":""},{"$f":"VLOOKUP(K631,'Structure mapping'!AC:AG,5,0)","v":{"$error":"#N/A"}},{"$f":"LEFT(Template!G643,10)","v":""},{"$f":"VLOOKUP(M631,'Structure mapping'!AH:AL,5,0)","v":{"$error":"#N/A"}},{"$f":"LEFT(Template!H643,6)","v":""},{"$f":"VLOOKUP(O631,'Structure mapping'!AM:AQ,5,0)","v":{"$error":"#N/A"}},null,null,null,null,{"$f":"IF(Template!O643=\"\",\"\",Template!O643)","v":""},"Aug-24 pending entries",{"$f":"TEXT(Template!$B$9,\"mm/dd/yyy\")","v":"08/01/2024"},null,null,null,null,{"$f":"IF(Template!M643>0,Template!M643,-Template!N643)","v":0},null,null,null,{"$f":"VLOOKUP(G631,'Account mapping'!A:D,4,0)","v":{"$error":"#N/A"}}]
[{"$f":"LEFT(Template!A644,4)","v":""},{"$f":"VLOOKUP(A632,'Structure mapping'!K:V,7,0)","v":{"$error":"#N/A"}},{"$f":"LEFT(Template!B644,5)","v":""},{"$f":"VLOOKUP(C632,'Structure mapping'!F:J,5,0)","v":{"$error":"#N/A"}},{"$f":"LEFT(Template!C644,7)","v":""},{"$f":"VLOOKUP(E632,'Structure mapping'!A:E,5,0)","v":{"$error":"#N/A"}},{"$f":"LEFT(Template!D644,6)","v":""},{"$f":"VLOOKUP(G632,'Account mapping'!A:E,5,0)","v":{"$error":"#N/A"}},{"$f":"LEFT(Template!E644,2)","v":""},{"$f":"VLOOKUP(I632,'Structure mapping'!X:AB,5,0)","v":{"$error":"#N/A"}},{"$f":"LEFT(Template!F644,3)","v":""},{"$f":"VLOOKUP(K632,'Structure mapping'!AC:AG,5,0)","v":{"$error":"#N/A"}},{"$f":"LEFT(Template!G644,10)","v":""},{"$f":"VLOOKUP(M632,'Structure mapping'!AH:AL,5,0)","v":{"$error":"#N/A"}},{"$f":"LEFT(Template!H644,6)","v":""},{"$f":"VLOOKUP(O632,'Structure mapping'!AM:AQ,5,0)","v":{"$error":"#N/A"}},null,null,null,null,{"$f":"IF(Template!O644=\"\",\"\",Template!O644)","v":""},"Aug-24 pending entries",{"$f":"TEXT(Template!$B$9,\"mm/dd/yyy\")","v":"08/01/2024"},null,null,null,null,{"$f":"IF(Template!M644>0,Template!M644,-Template!N644)","v":0},null,null,null,{"$f":"VLOOKUP(G632,'Account mapping'!A:D,4,0)","v":{"$error":"#N/A"}}]
[{"$f":"LEFT(Template!A645,4)","v":""},{"$f":"VLOOKUP(A633,'Structure mapping'!K:V,7,0)","v":{"$error":"#N/A"}},{"$f":"LEFT(Template!B645,5)","v":""},{"$f":"VLOOKUP(C633,'Structure mapping'!F:J,5,0)","v":{"$error":"#N/A"}},{"$f":"LEFT(Template!C645,7)","v":""},{"$f":"VLOOKUP(E633,'Structure mapping'!A:E,5,0)","v":{"$error":"#N/A"}},{"$f":"LEFT(Template!D645,6)","v":""},{"$f":"VLOOKUP(G633,'Account mapping'!A:E,5,0)","v":{"$error":"#N/A"}},{"$f":"LEFT(Template!E645,2)","v":""},{"$f":"VLOOKUP(I633,'Structure mapping'!X:AB,5,0)","v":{"$error":"#N/A"}},{"$f":"LEFT(Template!F645,3)","v":""},{"$f":"VLOOKUP(K633,'Structure mapping'!AC:AG,5,0)","v":{"$error":"#N/A"}},{"$f":"LEFT(Template!G645,10)","v":""},{"$f":"VLOOKUP(M633,'Structure mapping'!AH:AL,5,0)","v":{"$error":"#N/A"}},{"$f":"LEFT(Template!H645,6)","v":""},{"$f":"VLOOKUP(O633,'Structure mapping'!AM:AQ,5,0)","v":{"$error":"#N/A"}},null,null,null,null,{"$f":"IF(Template!O645=\"\",\"\",Template!O645)","v":""},"Aug-24 pending entries",{"$f":"TEXT(Template!$B$9,\"mm/dd/yyy\")","v":"08/01/2024"},null,null,null,null,{"$f":"IF(Template!M645>0,Template!M645,-Template!N645)","v":0},null,null,null,{"$f":"VLOOKUP(G633,'Account mapping'!A:D,4,0)","v":{"$error":"#N/A"}}]
[{"$f":"LEFT(Template!A646,4)","v":""},{"$f":"VLOOKUP(A634,'Structure mapping'!K:V,7,0)","v":{"$error":"#N/A"}},{"$f":"LEFT(Template!B646,5)","v":""},{"$f":"VLOOKUP(C634,'Structure mapping'!F:J,5,0)","v":{"$error":"#N/A"}},{"$f":"LEFT(Template!C646,7)","v":""},{"$f":"VLOOKUP(E634,'Structure mapping'!A:E,5,0)","v":{"$error":"#N/A"}},{"$f":"LEFT(Template!D646,6)","v":""},{"$f":"VLOOKUP(G634,'Account mapping'!A:E,5,0)","v":{"$error":"#N/A"}},{"$f":"LEFT(Template!E646,2)","v":""},{"$f":"VLOOKUP(I634,'Structure mapping'!X:AB,5,0)","v":{"$error":"#N/A"}},{"$f":"LEFT(Template!F646,3)","v":""},{"$f":"VLOOKUP(K634,'Structure mapping'!AC:AG,5,0)","v":{"$error":"#N/A"}},{"$f":"LEFT(Template!G646,10)","v":""},{"$f":"VLOOKUP(M634,'Structure mapping'!AH:AL,5,0)","v":{"$error":"#N/A"}},{"$f":"LEFT(Template!H646,6)","v":""},{"$f":"VLOOKUP(O634,'Structure mapping'!AM:AQ,5,0)","v":{"$error":"#N/A"}},null,null,null,null,{"$f":"IF(Template!O646=\"\",\"\",Template!O646)","v":""},"Aug-24 pending entries",{"$f":"TEXT(Template!$B$9,\"mm/dd/yyy\")","v":"08/01/2024"},null,null,null,null,{"$f":"IF(Template!M646>0,Template!M646,-Template!N646)","v":0},null,null,null,{"$f":"VLOOKUP(G634,'Account mapping'!A:D,4,0)","v":{"$error":"#N/A"}}]
[{"$f":"LEFT(Template!A647,4)","v":""},{"$f":"VLOOKUP(A635,'Structure mapping'!K:V,7,0)","v":{"$error":"#N/A"}},{"$f":"LEFT(Template!B647,5)","v":""},{"$f":"VLOOKUP(C635,'Structure mapping'!F:J,5,0)","v":{"$error":"#N/A"}},{"$f":"LEFT(Template!C647,7)","v":""},{"$f":"VLOOKUP(E635,'Structure mapping'!A:E,5,0)","v":{"$error":"#N/A"}},{"$f":"LEFT(Template!D647,6)","v":""},{"$f":"VLOOKUP(G635,'Account mapping'!A:E,5,0)","v":{"$error":"#N/A"}},{"$f":"LEFT(Template!E647,2)","v":""},{"$f":"VLOOKUP(I635,'Structure mapping'!X:AB,5,0)","v":{"$error":"#N/A"}},{"$f":"LEFT(Template!F647,3)","v":""},{"$f":"VLOOKUP(K635,'Structure mapping'!AC:AG,5,0)","v":{"$error":"#N/A"}},{"$f":"LEFT(Template!G647,10)","v":""},{"$f":"VLOOKUP(M635,'Structure mapping'!AH:AL,5,0)","v":{"$error":"#N/A"}},{"$f":"LEFT(Template!H647,6)","v":""},{"$f":"VLOOKUP(O635,'Structure mapping'!AM:AQ,5,0)","v":{"$error":"#N/A"}},null,null,null,null,{"$f":"IF(Template!O647=\"\",\"\",Template!O647)","v":""},"Aug-24 pending entries",{"$f":"TEXT(Template!$B$9,\"mm/dd/yyy\")","v":"08/01/2024"},null,null,null,null,{"$f":"IF(Template!M647>0,Template!M647,-Template!N647)","v":0},null,null,null,{"$f":"VLOOKUP(G635,'Account mapping'!A:D,4,0)","v":{"$error":"#N/A"}}]
[{"$f":"LEFT(Template!A648,4)","v":""},{"$f":"VLOOKUP(A636,'Structure mapping'!K:V,7,0)","v":{"$error":"#N/A"}},{"$f":"LEFT(Template!B648,5)","v":""},{"$f":"VLOOKUP(C636,'Structure mapping'!F:J,5,0)","v":{"$error":"#N/A"}},{"$f":"LEFT(Template!C648,7)","v":""},{"$f":"VLOOKUP(E636,'Structure mapping'!A:E,5,0)","v":{"$error":"#N/A"}},{"$f":"LEFT(Template!D648,6)","v":""},{"$f":"VLOOKUP(G636,'Account mapping'!A:E,5,0)","v":{"$error":"#N/A"}},{"$f":"LEFT(Template!E648,2)","v":""},{"$f":"VLOOKUP(I636,'Structure mapping'!X:AB,5,0)","v":{"$error":"#N/A"}},{"$f":"LEFT(Template!F648,3)","v":""},{"$f":"VLOOKUP(K636,'Structure mapping'!AC:AG,5,0)","v":{"$error":"#N/A"}},{"$f":"LEFT(Template!G648,10)","v":""},{"$f":"VLOOKUP(M636,'Structure mapping'!AH:AL,5,0)","v":{"$error":"#N/A"}},{"$f":"LEFT(Template!H648,6)","v":""},{"$f":"VLOOKUP(O636,'Structure mapping'!AM:AQ,5,0)","v":{"$error":"#N/A"}},null,null,null,null,{"$f":"IF(Template!O648=\"\",\"\",Template!O648)","v":""},"Aug-24 pending entries",{"$f":"TEXT(Template!$B$9,\"mm/dd/yyy\")","v":"08/01/2024"},null,null,null,null,{"$f":"IF(Template!M648>0,Template!M648,-Template!N648)","v":0},null,null,null,{"$f":"VLOOKUP(G636,'Account mapping'!A:D,4,0)","v":{"$error":"#N/A"}}]
[{"$f":"LEFT(Template!A649,4)","v":""},{"$f":"VLOOKUP(A637,'Structure mapping'!K:V,7,0)","v":{"$error":"#N/A"}},{"$f":"LEFT(Template!B649,5)","v":""},{"$f":"VLOOKUP(C637,'Structure mapping'!F:J,5,0)","v":{"$error":"#N/A"}},{"$f":"LEFT(Template!C649,7)","v":""},{"$f":"VLOOKUP(E637,'Structure mapping'!A:E,5,0)","v":{"$error":"#N/A"}},{"$f":"LEFT(Template!D649,6)","v":""},{"$f":"VLOOKUP(G637,'Account mapping'!A:E,5,0)","v":{"$error":"#N/A"}},{"$f":"LEFT(Template!E649,2)","v":""},{"$f":"VLOOKUP(I637,'Structure mapping'!X:AB,5,0)","v":{"$error":"#N/A"}},{"$f":"LEFT(Template!F649,3)","v":""},{"$f":"VLOOKUP(K637,'Structure mapping'!AC:AG,5,0)","v":{"$error":"#N/A"}},{"$f":"LEFT(Template!G649,10)","v":""},{"$f":"VLOOKUP(M637,'Structure mapping'!AH:AL,5,0)","v":{"$error":"#N/A"}},{"$f":"LEFT(Template!H649,6)","v":""},{"$f":"VLOOKUP(O637,'Structure mapping'!AM:AQ,5,0)","v":{"$error":"#N/A"}},null,null,null,null,{"$f":"IF(Template!O649=\"\",\"\",Template!O649)","v":""},"Aug-24 pending entries",{"$f":"TEXT(Template!$B$9,\"mm/dd/yyy\")","v":"08/01/2024"},null,null,null,null,{"$f":"IF(Template!M649>0,Template!M649,-Template!N649)","v":0},null,null,null,{"$f":"VLOOKUP(G637,'Account mapping'!A:D,4,0)","v":{"$error":"#N/A"}}]
[{"$f":"LEFT(Template!A650,4)","v":""},{"$f":"VLOOKUP(A638,'Structure mapping'!K:V,7,0)","v":{"$error":"#N/A"}},{"$f":"LEFT(Template!B650,5)","v":""},{"$f":"VLOOKUP(C638,'Structure mapping'!F:J,5,0)","v":{"$error":"#N/A"}},{"$f":"LEFT(Template!C650,7)","v":""},{"$f":"VLOOKUP(E638,'Structure mapping'!A:E,5,0)","v":{"$error":"#N/A"}},{"$f":"LEFT(Template!D650,6)","v":""},{"$f":"VLOOKUP(G638,'Account mapping'!A:E,5,0)","v":{"$error":"#N/A"}},{"$f":"LEFT(Template!E650,2)","v":""},{"$f":"VLOOKUP(I638,'Structure mapping'!X:AB,5,0)","v":{"$error":"#N/A"}},{"$f":"LEFT(Template!F650,3)","v":""},{"$f":"VLOOKUP(K638,'Structure mapping'!AC:AG,5,0)","v":{"$error":"#N/A"}},{"$f":"LEFT(Template!G650,10)","v":""},{"$f":"VLOOKUP(M638,'Structure mapping'!AH:AL,5,0)","v":{"$error":"#N/A"}},{"$f":"LEFT(Template!H650,6)","v":""},{"$f":"VLOOKUP(O638,'Structure mapping'!AM:AQ,5,0)","v":{"$error":"#N/A"}},null,null,null,null,{"$f":"IF(Template!O650=\"\",\"\",Template!O650)","v":""},"Aug-24 pending entries",{"$f":"TEXT(Template!$B$9,\"mm/dd/yyy\")","v":"08/01/2024"},null,null,null,null,{"$f":"IF(Template!M650>0,Template!M650,-Template!N650)","v":0},null,null,null,{"$f":"VLOOKUP(G638,'Account mapping'!A:D,4,0)","v":{"$error":"#N/A"}}]
[{"$f":"LEFT(Template!A651,4)","v":""},{"$f":"VLOOKUP(A639,'Structure mapping'!K:V,7,0)","v":{"$error":"#N/A"}},{"$f":"LEFT(Template!B651,5)","v":""},{"$f":"VLOOKUP(C639,'Structure mapping'!F:J,5,0)","v":{"$error":"#N/A"}},{"$f":"LEFT(Template!C651,7)","v":""},{"$f":"VLOOKUP(E639,'Structure mapping'!A:E,5,0)","v":{"$error":"#N/A"}},{"$f":"LEFT(Template!D651,6)","v":""},{"$f":"VLOOKUP(G639,'Account mapping'!A:E,5,0)","v":{"$error":"#N/A"}},{"$f":"LEFT(Template!E651,2)","v":""},{"$f":"VLOOKUP(I639,'Structure mapping'!X:AB,5,0)","v":{"$error":"#N/A"}},{"$f":"LEFT(Template!F651,3)","v":""},{"$f":"VLOOKUP(K639,'Structure mapping'!AC:AG,5,0)","v":{"$error":"#N/A"}},{"$f":"LEFT(Template!G651,10)","v":""},{"$f":"VLOOKUP(M639,'Structure mapping'!AH:AL,5,0)","v":{"$error":"#N/A"}},{"$f":"LEFT(Template!H651,6)","v":""},{"$f":"VLOOKUP(O639,'Structure mapping'!AM:AQ,5,0)","v":{"$error":"#N/A"}},null,null,null,null,{"$f":"IF(Template!O651=\"\",\"\",Template!O651)","v":""},"Aug-24 pending entries",{"$f":"TEXT(Template!$B$9,\"mm/dd/yyy\")","v":"08/01/2024"},null,null,null,null,{"$f":"IF(Template!M651>0,Template!M651,-Template!N651)","v":0},null,null,null,{"$f":"VLOOKUP(G639,'Account mapping'!A:D,4,0)","v":{"$error":"#N/A"}}]
[{"$f":"LEFT(Template!A652,4)","v":""},{"$f":"VLOOKUP(A640,'Structure mapping'!K:V,7,0)","v":{"$error":"#N/A"}},{"$f":"LEFT(Template!B652,5)","v":""},{"$f":"VLOOKUP(C640,'Structure mapping'!F:J,5,0)","v":{"$error":"#N/A"}},{"$f":"LEFT(Template!C652,7)","v":""},{"$f":"VLOOKUP(E640,'Structure mapping'!A:E,5,0)","v":{"$error":"#N/A"}},{"$f":"LEFT(Template!D652,6)","v":""},{"$f":"VLOOKUP(G640,'Account mapping'!A:E,5,0)","v":{"$error":"#N/A"}},{"$f":"LEFT(Template!E652,2)","v":""},{"$f":"VLOOKUP(I640,'Structure mapping'!X:AB,5,0)","v":{"$error":"#N/A"}},{"$f":"LEFT(Template!F652,3)","v":""},{"$f":"VLOOKUP(K640,'Structure mapping'!AC:AG,5,0)","v":{"$error":"#N/A"}},{"$f":"LEFT(Template!G652,10)","v":""},{"$f":"VLOOKUP(M640,'Structure mapping'!AH:AL,5,0)","v":{"$error":"#N/A"}},{"$f":"LEFT(Template!H652,6)","v":""},{"$f":"VLOOKUP(O640,'Structure mapping'!AM:AQ,5,0)","v":{"$error":"#N/A"}},null,null,null,null,{"$f":"IF(Template!O652=\"\",\"\",Template!O652)","v":""},"Aug-24 pending entries",{"$f":"TEXT(Template!$B$9,\"mm/dd/yyy\")","v":"08/01/2024"},null,null,null,null,{"$f":"IF(Template!M652>0,Template!M652,-Template!N652)","v":0},null,null,null,{"$f":"VLOOKUP(G640,'Account mapping'!A:D,4,0)","v":{"$error":"#N/A"}}]
[{"$f":"LEFT(Template!A653,4)","v":""},{"$f":"VLOOKUP(A641,'Structure mapping'!K:V,7,0)","v":{"$error":"#N/A"}},{"$f":"LEFT(Template!B653,5)","v":""},{"$f":"VLOOKUP(C641,'Structure mapping'!F:J,5,0)","v":{"$error":"#N/A"}},{"$f":"LEFT(Template!C653,7)","v":""},{"$f":"VLOOKUP(E641,'Structure mapping'!A:E,5,0)","v":{"$error":"#N/A"}},{"$f":"LEFT(Template!D653,6)","v":""},{"$f":"VLOOKUP(G641,'Account mapping'!A:E,5,0)","v":{"$error":"#N/A"}},{"$f":"LEFT(Template!E653,2)","v":""},{"$f":"VLOOKUP(I641,'Structure mapping'!X:AB,5,0)","v":{"$error":"#N/A"}},{"$f":"LEFT(Template!F653,3)","v":""},{"$f":"VLOOKUP(K641,'Structure mapping'!AC:AG,5,0)","v":{"$error":"#N/A"}},{"$f":"LEFT(Template!G653,10)","v":""},{"$f":"VLOOKUP(M641,'Structure mapping'!AH:AL,5,0)","v":{"$error":"#N/A"}},{"$f":"LEFT(Template!H653,6)","v":""},{"$f":"VLOOKUP(O641,'Structure mapping'!AM:AQ,5,0)","v":{"$error":"#N/A"}},null,null,null,null,{"$f":"IF(Template!O653=\"\",\"\",Template!O653)","v":""},"Aug-24 pending entries",{"$f":"TEXT(Template!$B$9,\"mm/dd/yyy\")","v":"08/01/2024"},null,null,null,null,{"$f":"IF(Template!M653>0,Template!M653,-Template!N653)","v":0},null,null,null,{"$f":"VLOOKUP(G641,'Account mapping'!A:D,4,0)","v":{"$error":"#N/A"}}]
[{"$f":"LEFT(Template!A654,4)","v":""},{"$f":"VLOOKUP(A642,'Structure mapping'!K:V,7,0)","v":{"$error":"#N/A"}},{"$f":"LEFT(Template!B654,5)","v":""},{"$f":"VLOOKUP(C642,'Structure mapping'!F:J,5,0)","v":{"$error":"#N/A"}},{"$f":"LEFT(Template!C654,7)","v":""},{"$f":"VLOOKUP(E642,'Structure mapping'!A:E,5,0)","v":{"$error":"#N/A"}},{"$f":"LEFT(Template!D654,6)","v":""},{"$f":"VLOOKUP(G642,'Account mapping'!A:E,5,0)","v":{"$error":"#N/A"}},{"$f":"LEFT(Template!E654,2)","v":""},{"$f":"VLOOKUP(I642,'Structure mapping'!X:AB,5,0)","v":{"$error":"#N/A"}},{"$f":"LEFT(Template!F654,3)","v":""},{"$f":"VLOOKUP(K642,'Structure mapping'!AC:AG,5,0)","v":{"$error":"#N/A"}},{"$f":"LEFT(Template!G654,10)","v":""},{"$f":"VLOOKUP(M642,'Structure mapping'!AH:AL,5,0)","v":{"$error":"#N/A"}},{"$f":"LEFT(Template!H654,6)","v":""},{"$f":"VLOOKUP(O642,'Structure mapping'!AM:AQ,5,0)","v":{"$error":"#N/A"}},null,null,null,null,{"$f":"IF(Template!O654=\"\",\"\",Template!O654)","v":""},"Aug-24 pending entries",{"$f":"TEXT(Template!$B$9,\"mm/dd/yyy\")","v":"08/01/2024"},null,null,null,null,{"$f":"IF(Template!M654>0,Template!M654,-Template!N654)","v":0},null,null,null,{"$f":"VLOOKUP(G642,'Account mapping'!A:D,4,0)","v":{"$error":"#N/A"}}]
[{"$f":"LEFT(Template!A655,4)","v":""},{"$f":"VLOOKUP(A643,'Structure mapping'!K:V,7,0)","v":{"$error":"#N/A"}},{"$f":"LEFT(Template!B655,5)","v":""},{"$f":"VLOOKUP(C643,'Structure mapping'!F:J,5,0)","v":{"$error":"#N/A"}},{"$f":"LEFT(Template!C655,7)","v":""},{"$f":"VLOOKUP(E643,'Structure mapping'!A:E,5,0)","v":{"$error":"#N/A"}},{"$f":"LEFT(Template!D655,6)","v":""},{"$f":"VLOOKUP(G643,'Account mapping'!A:E,5,0)","v":{"$error":"#N/A"}},{"$f":"LEFT(Template!E655,2)","v":""},{"$f":"VLOOKUP(I643,'Structure mapping'!X:AB,5,0)","v":{"$error":"#N/A"}},{"$f":"LEFT(Template!F655,3)","v":""},{"$f":"VLOOKUP(K643,'Structure mapping'!AC:AG,5,0)","v":{"$error":"#N/A"}},{"$f":"LEFT(Template!G655,10)","v":""},{"$f":"VLOOKUP(M643,'Structure mapping'!AH:AL,5,0)","v":{"$error":"#N/A"}},{"$f":"LEFT(Template!H655,6)","v":""},{"$f":"VLOOKUP(O643,'Structure mapping'!AM:AQ,5,0)","v":{"$error":"#N/A"}},null,null,null,null,{"$f":"IF(Template!O655=\"\",\"\",Template!O655)","v":""},{"$f":"TEXT(W643,\"mmm-yy\")&\" pending entries\"","v":"Aug-24 pending entries"},{"$f":"TEXT(Template!$B$9,\"mm/dd/yyy\")","v":"08/01/2024"},null,null,null,null,{"$f":"IF(Template!M655>0,Template!M655,-Template!N655)","v":0},null,null,null,{"$f":"VLOOKUP(G643,'Account mapping'!A:D,4,0)","v":{"$error":"#N/A"}}]
[{"$f":"LEFT(Template!A656,4)","v":""},{"$f":"VLOOKUP(A644,'Structure mapping'!K:V,7,0)","v":{"$error":"#N/A"}},{"$f":"LEFT(Template!B656,5)","v":""},{"$f":"VLOOKUP(C644,'Structure mapping'!F:J,5,0)","v":{"$error":"#N/A"}},{"$f":"LEFT(Template!C656,7)","v":""},{"$f":"VLOOKUP(E644,'Structure mapping'!A:E,5,0)","v":{"$error":"#N/A"}},{"$f":"LEFT(Template!D656,6)","v":""},{"$f":"VLOOKUP(G644,'Account mapping'!A:E,5,0)","v":{"$error":"#N/A"}},{"$f":"LEFT(Template!E656,2)","v":""},{"$f":"VLOOKUP(I644,'Structure mapping'!X:AB,5,0)","v":{"$error":"#N/A"}},{"$f":"LEFT(Template!F656,3)","v":""},{"$f":"VLOOKUP(K644,'Structure mapping'!AC:AG,5,0)","v":{"$error":"#N/A"}},{"$f":"LEFT(Template!G656,10)","v":""},{"$f":"VLOOKUP(M644,'Structure mapping'!AH:AL,5,0)","v":{"$error":"#N/A"}},{"$f":"LEFT(Template!H656,6)","v":""},{"$f":"VLOOKUP(O644,'Structure mapping'!AM:AQ,5,0)","v":{"$error":"#N/A"}},null,null,null,null,{"$f":"IF(Template!O656=\"\",\"\",Template!O656)","v":""},"Aug-24 pending entries",{"$f":"TEXT(Template!$B$9,\"mm/dd/yyy\")","v":"08/01/2024"},null,null,null,null,{"$f":"IF(Template!M656>0,Template!M656,-Template!N656)","v":0},null,null,null,{"$f":"VLOOKUP(G644,'Account mapping'!A:D,4,0)","v":{"$error":"#N/A"}}]
[{"$f":"LEFT(Template!A657,4)","v":""},{"$f":"VLOOKUP(A645,'Structure mapping'!K:V,7,0)","v":{"$error":"#N/A"}},{"$f":"LEFT(Template!B657,5)","v":""},{"$f":"VLOOKUP(C645,'Structure mapping'!F:J,5,0)","v":{"$error":"#N/A"}},{"$f":"LEFT(Template!C657,7)","v":""},{"$f":"VLOOKUP(E645,'Structure mapping'!A:E,5,0)","v":{"$error":"#N/A"}},{"$f":"LEFT(Template!D657,6)","v":""},{"$f":"VLOOKUP(G645,'Account mapping'!A:E,5,0)","v":{"$error":"#N/A"}},{"$f":"LEFT(Template!E657,2)","v":""},{"$f":"VLOOKUP(I645,'Structure mapping'!X:AB,5,0)","v":{"$error":"#N/A"}},{"$f":"LEFT(Template!F657,3)","v":""},{"$f":"VLOOKUP(K645,'Structure mapping'!AC:AG,5,0)","v":{"$error":"#N/A"}},{"$f":"LEFT(Template!G657,10)","v":""},{"$f":"VLOOKUP(M645,'Structure mapping'!AH:AL,5,0)","v":{"$error":"#N/A"}},{"$f":"LEFT(Template!H657,6)","v":""},{"$f":"VLOOKUP(O645,'Structure mapping'!AM:AQ,5,0)","v":{"$error":"#N/A"}},null,null,null,null,{"$f":"IF(Template!O657=\"\",\"\",Template!O657)","v":""},"Aug-24 pending entries",{"$f":"TEXT(Template!$B$9,\"mm/dd/yyy\")","v":"08/01/2024"},null,null,null,null,{"$f":"IF(Template!M657>0,Template!M657,-Template!N657)","v":0},null,null,null,{"$f":"VLOOKUP(G645,'Account mapping'!A:D,4,0)","v":{"$error":"#N/A"}}]
[{"$f":"LEFT(Template!A658,4)","v":""},{"$f":"VLOOKUP(A646,'Structure mapping'!K:V,7,0)","v":{"$error":"#N/A"}},{"$f":"LEFT(Template!B658,5)","v":""},{"$f":"VLOOKUP(C646,'Structure mapping'!F:J,5,0)","v":{"$error":"#N/A"}},{"$f":"LEFT(Template!C658,7)","v":""},{"$f":"VLOOKUP(E646,'Structure mapping'!A:E,5,0)","v":{"$error":"#N/A"}},{"$f":"LEFT(Template!D658,6)","v":""},{"$f":"VLOOKUP(G646,'Account mapping'!A:E,5,0)","v":{"$error":"#N/A"}},{"$f":"LEFT(Template!E658,2)","v":""},{"$f":"VLOOKUP(I646,'Structure mapping'!X:AB,5,0)","v":{"$error":"#N/A"}},{"$f":"LEFT(Template!F658,3)","v":""},{"$f":"VLOOKUP(K646,'Structure mapping'!AC:AG,5,0)","v":{"$error":"#N/A"}},{"$f":"LEFT(Template!G658,10)","v":""},{"$f":"VLOOKUP(M646,'Structure mapping'!AH:AL,5,0)","v":{"$error":"#N/A"}},{"$f":"LEFT(Template!H658,6)","v":""},{"$f":"VLOOKUP(O646,'Structure mapping'!AM:AQ,5,0)","v":{"$error":"#N/A"}},null,null,null,null,{"$f":"IF(Template!O658=\"\",\"\",Template!O658)","v":""},"Aug-24 pending entries",{"$f":"TEXT(Template!$B$9,\"mm/dd/yyy\")","v":"08/01/2024"},null,null,null,null,{"$f":"IF(Template!M658>0,Template!M658,-Template!N658)","v":0},null,null,null,{"$f":"VLOOKUP(G646,'Account mapping'!A:D,4,0)","v":{"$error":"#N/A"}}]
[{"$f":"LEFT(Template!A659,4)","v":""},{"$f":"VLOOKUP(A647,'Structure mapping'!K:V,7,0)","v":{"$error":"#N/A"}},{"$f":"LEFT(Template!B659,5)","v":""},{"$f":"VLOOKUP(C647,'Structure mapping'!F:J,5,0)","v":{"$error":"#N/A"}},{"$f":"LEFT(Template!C659,7)","v":""},{"$f":"VLOOKUP(E647,'Structure mapping'!A:E,5,0)","v":{"$error":"#N/A"}},{"$f":"LEFT(Template!D659,6)","v":""},{"$f":"VLOOKUP(G647,'Account mapping'!A:E,5,0)","v":{"$error":"#N/A"}},{"$f":"LEFT(Template!E659,2)","v":""},{"$f":"VLOOKUP(I647,'Structure mapping'!X:AB,5,0)","v":{"$error":"#N/A"}},{"$f":"LEFT(Template!F659,3)","v":""},{"$f":"VLOOKUP(K647,'Structure mapping'!AC:AG,5,0)","v":{"$error":"#N/A"}},{"$f":"LEFT(Template!G659,10)","v":""},{"$f":"VLOOKUP(M647,'Structure mapping'!AH:AL,5,0)","v":{"$error":"#N/A"}},{"$f":"LEFT(Template!H659,6)","v":""},{"$f":"VLOOKUP(O647,'Structure mapping'!AM:AQ,5,0)","v":{"$error":"#N/A"}},null,null,null,null,{"$f":"IF(Template!O659=\"\",\"\",Template!O659)","v":""},"Aug-24 pending entries",{"$f":"TEXT(Template!$B$9,\"mm/dd/yyy\")","v":"08/01/2024"},null,null,null,null,{"$f":"IF(Template!M659>0,Template!M659,-Template!N659)","v":0},null,null,null,{"$f":"VLOOKUP(G647,'Account mapping'!A:D,4,0)","v":{"$error":"#N/A"}}]
[{"$f":"LEFT(Template!A660,4)","v":""},{"$f":"VLOOKUP(A648,'Structure mapping'!K:V,7,0)","v":{"$error":"#N/A"}},{"$f":"LEFT(Template!B660,5)","v":""},{"$f":"VLOOKUP(C648,'Structure mapping'!F:J,5,0)","v":{"$error":"#N/A"}},{"$f":"LEFT(Template!C660,7)","v":""},{"$f":"VLOOKUP(E648,'Structure mapping'!A:E,5,0)","v":{"$error":"#N/A"}},{"$f":"LEFT(Template!D660,6)","v":""},{"$f":"VLOOKUP(G648,'Account mapping'!A:E,5,0)","v":{"$error":"#N/A"}},{"$f":"LEFT(Template!E660,2)","v":""},{"$f":"VLOOKUP(I648,'Structure mapping'!X:AB,5,0)","v":{"$error":"#N/A"}},{"$f":"LEFT(Template!F660,3)","v":""},{"$f":"VLOOKUP(K648,'Structure mapping'!AC:AG,5,0)","v":{"$error":"#N/A"}},{"$f":"LEFT(Template!G660,10)","v":""},{"$f":"VLOOKUP(M648,'Structure mapping'!AH:AL,5,0)","v":{"$error":"#N/A"}},{"$f":"LEFT(Template!H660,6)","v":""},{"$f":"VLOOKUP(O648,'Structure mapping'!AM:AQ,5,0)","v":{"$error":"#N/A"}},null,null,null,null,{"$f":"IF(Template!O660=\"\",\"\",Template!O660)","v":""},"Aug-24 pending entries",{"$f":"TEXT(Template!$B$9,\"mm/dd/yyy\")","v":"08/01/2024"},null,null,null,null,{"$f":"IF(Template!M660>0,Template!M660,-Template!N660)","v":0},null,null,null,{"$f":"VLOOKUP(G648,'Account mapping'!A:D,4,0)","v":{"$error":"#N/A"}}]
[{"$f":"LEFT(Template!A661,4)","v":""},{"$f":"VLOOKUP(A649,'Structure mapping'!K:V,7,0)","v":{"$error":"#N/A"}},{"$f":"LEFT(Template!B661,5)","v":""},{"$f":"VLOOKUP(C649,'Structure mapping'!F:J,5,0)","v":{"$error":"#N/A"}},{"$f":"LEFT(Template!C661,7)","v":""},{"$f":"VLOOKUP(E649,'Structure mapping'!A:E,5,0)","v":{"$error":"#N/A"}},{"$f":"LEFT(Template!D661,6)","v":""},{"$f":"VLOOKUP(G649,'Account mapping'!A:E,5,0)","v":{"$error":"#N/A"}},{"$f":"LEFT(Template!E661,2)","v":""},{"$f":"VLOOKUP(I649,'Structure mapping'!X:AB,5,0)","v":{"$error":"#N/A"}},{"$f":"LEFT(Template!F661,3)","v":""},{"$f":"VLOOKUP(K649,'Structure mapping'!AC:AG,5,0)","v":{"$error":"#N/A"}},{"$f":"LEFT(Template!G661,10)","v":""},{"$f":"VLOOKUP(M649,'Structure mapping'!AH:AL,5,0)","v":{"$error":"#N/A"}},{"$f":"LEFT(Template!H661,6)","v":""},{"$f":"VLOOKUP(O649,'Structure mapping'!AM:AQ,5,0)","v":{"$error":"#N/A"}},null,null,null,null,{"$f":"IF(Template!O661=\"\",\"\",Template!O661)","v":""},"Aug-24 pending entries",{"$f":"TEXT(Template!$B$9,\"mm/dd/yyy\")","v":"08/01/2024"},null,null,null,null,{"$f":"IF(Template!M661>0,Template!M661,-Template!N661)","v":0},null,null,null,{"$f":"VLOOKUP(G649,'Account mapping'!A:D,4,0)","v":{"$error":"#N/A"}}]
[{"$f":"LEFT(Template!A662,4)","v":""},{"$f":"VLOOKUP(A650,'Structure mapping'!K:V,7,0)","v":{"$error":"#N/A"}},{"$f":"LEFT(Template!B662,5)","v":""},{"$f":"VLOOKUP(C650,'Structure mapping'!F:J,5,0)","v":{"$error":"#N/A"}},{"$f":"LEFT(Template!C662,7)","v":""},{"$f":"VLOOKUP(E650,'Structure mapping'!A:E,5,0)","v":{"$error":"#N/A"}},{"$f":"LEFT(Template!D662,6)","v":""},{"$f":"VLOOKUP(G650,'Account mapping'!A:E,5,0)","v":{"$error":"#N/A"}},{"$f":"LEFT(Template!E662,2)","v":""},{"$f":"VLOOKUP(I650,'Structure mapping'!X:AB,5,0)","v":{"$error":"#N/A"}},{"$f":"LEFT(Template!F662,3)","v":""},{"$f":"VLOOKUP(K650,'Structure mapping'!AC:AG,5,0)","v":{"$error":"#N/A"}},{"$f":"LEFT(Template!G662,10)","v":""},{"$f":"VLOOKUP(M650,'Structure mapping'!AH:AL,5,0)","v":{"$error":"#N/A"}},{"$f":"LEFT(Template!H662,6)","v":""},{"$f":"VLOOKUP(O650,'Structure mapping'!AM:AQ,5,0)","v":{"$error":"#N/A"}},null,null,null,null,{"$f":"IF(Template!O662=\"\",\"\",Template!O662)","v":""},"Aug-24 pending entries",{"$f":"TEXT(Template!$B$9,\"mm/dd/yyy\")","v":"08/01/2024"},null,null,null,null,{"$f":"IF(Template!M662>0,Template!M662,-Template!N662)","v":0},null,null,null,{"$f":"VLOOKUP(G650,'Account mapping'!A:D,4,0)","v":{"$error":"#N/A"}}]
[{"$f":"LEFT(Template!A663,4)","v":""},{"$f":"VLOOKUP(A651,'Structure mapping'!K:V,7,0)","v":{"$error":"#N/A"}},{"$f":"LEFT(Template!B663,5)","v":""},{"$f":"VLOOKUP(C651,'Structure mapping'!F:J,5,0)","v":{"$error":"#N/A"}},{"$f":"LEFT(Template!C663,7)","v":""},{"$f":"VLOOKUP(E651,'Structure mapping'!A:E,5,0)","v":{"$error":"#N/A"}},{"$f":"LEFT(Template!D663,6)","v":""},{"$f":"VLOOKUP(G651,'Account mapping'!A:E,5,0)","v":{"$error":"#N/A"}},{"$f":"LEFT(Template!E663,2)","v":""},{"$f":"VLOOKUP(I651,'Structure mapping'!X:AB,5,0)","v":{"$error":"#N/A"}},{"$f":"LEFT(Template!F663,3)","v":""},{"$f":"VLOOKUP(K651,'Structure mapping'!AC:AG,5,0)","v":{"$error":"#N/A"}},{"$f":"LEFT(Template!G663,10)","v":""},{"$f":"VLOOKUP(M651,'Structure mapping'!AH:AL,5,0)","v":{"$error":"#N/A"}},{"$f":"LEFT(Template!H663,6)","v":""},{"$f":"VLOOKUP(O651,'Structure mapping'!AM:AQ,5,0)","v":{"$error":"#N/A"}},null,null,null,null,{"$f":"IF(Template!O663=\"\",\"\",Template!O663)","v":""},"Aug-24 pending entries",{"$f":"TEXT(Template!$B$9,\"mm/dd/yyy\")","v":"08/01/2024"},null,null,null,null,{"$f":"IF(Template!M663>0,Template!M663,-Template!N663)","v":0},null,null,null,{"$f":"VLOOKUP(G651,'Account mapping'!A:D,4,0)","v":{"$error":"#N/A"}}]
[{"$f":"LEFT(Template!A664,4)","v":""},{"$f":"VLOOKUP(A652,'Structure mapping'!K:V,7,0)","v":{"$error":"#N/A"}},{"$f":"LEFT(Template!B664,5)","v":""},{"$f":"VLOOKUP(C652,'Structure mapping'!F:J,5,0)","v":{"$error":"#N/A"}},{"$f":"LEFT(Template!C664,7)","v":""},{"$f":"VLOOKUP(E652,'Structure mapping'!A:E,5,0)","v":{"$error":"#N/A"}},{"$f":"LEFT(Template!D664,6)","v":""},{"$f":"VLOOKUP(G652,'Account mapping'!A:E,5,0)","v":{"$error":"#N/A"}},{"$f":"LEFT(Template!E664,2)","v":""},{"$f":"VLOOKUP(I652,'Structure mapping'!X:AB,5,0)","v":{"$error":"#N/A"}},{"$f":"LEFT(Template!F664,3)","v":""},{"$f":"VLOOKUP(K652,'Structure mapping'!AC:AG,5,0)","v":{"$error":"#N/A"}},{"$f":"LEFT(Template!G664,10)","v":""},{"$f":"VLOOKUP(M652,'Structure mapping'!AH:AL,5,0)","v":{"$error":"#N/A"}},{"$f":"LEFT(Template!H664,6)","v":""},{"$f":"VLOOKUP(O652,'Structure mapping'!AM:AQ,5,0)","v":{"$error":"#N/A"}},null,null,null,null,{"$f":"IF(Template!O664=\"\",\"\",Template!O664)","v":""},"Aug-24 pending entries",{"$f":"TEXT(Template!$B$9,\"mm/dd/yyy\")","v":"08/01/2024"},null,null,null,null,{"$f":"IF(Template!M664>0,Template!M664,-Template!N664)","v":0},null,null,null,{"$f":"VLOOKUP(G652,'Account mapping'!A:D,4,0)","v":{"$error":"#N/A"}}]
[{"$f":"LEFT(Template!A665,4)","v":""},{"$f":"VLOOKUP(A653,'Structure mapping'!K:V,7,0)","v":{"$error":"#N/A"}},{"$f":"LEFT(Template!B665,5)","v":""},{"$f":"VLOOKUP(C653,'Structure mapping'!F:J,5,0)","v":{"$error":"#N/A"}},{"$f":"LEFT(Template!C665,7)","v":""},{"$f":"VLOOKUP(E653,'Structure mapping'!A:E,5,0)","v":{"$error":"#N/A"}},{"$f":"LEFT(Template!D665,6)","v":""},{"$f":"VLOOKUP(G653,'Account mapping'!A:E,5,0)","v":{"$error":"#N/A"}},{"$f":"LEFT(Template!E665,2)","v":""},{"$f":"VLOOKUP(I653,'Structure mapping'!X:AB,5,0)","v":{"$error":"#N/A"}},{"$f":"LEFT(Template!F665,3)","v":""},{"$f":"VLOOKUP(K653,'Structure mapping'!AC:AG,5,0)","v":{"$error":"#N/A"}},{"$f":"LEFT(Template!G665,10)","v":""},{"$f":"VLOOKUP(M653,'Structure mapping'!AH:AL,5,0)","v":{"$error":"#N/A"}},{"$f":"LEFT(Template!H665,6)","v":""},{"$f":"VLOOKUP(O653,'Structure mapping'!AM:AQ,5,0)","v":{"$error":"#N/A"}},null,null,null,null,{"$f":"IF(Template!O665=\"\",\"\",Template!O665)","v":""},"Aug-24 pending entries",{"$f":"TEXT(Template!$B$9,\"mm/dd/yyy\")","v":"08/01/2024"},null,null,null,null,{"$f":"IF(Template!M665>0,Template!M665,-Template!N665)","v":0},null,null,null,{"$f":"VLOOKUP(G653,'Account mapping'!A:D,4,0)","v":{"$error":"#N/A"}}]
[{"$f":"LEFT(Template!A666,4)","v":""},{"$f":"VLOOKUP(A654,'Structure mapping'!K:V,7,0)","v":{"$error":"#N/A"}},{"$f":"LEFT(Template!B666,5)","v":""},{"$f":"VLOOKUP(C654,'Structure mapping'!F:J,5,0)","v":{"$error":"#N/A"}},{"$f":"LEFT(Template!C666,7)","v":""},{"$f":"VLOOKUP(E654,'Structure mapping'!A:E,5,0)","v":{"$error":"#N/A"}},{"$f":"LEFT(Template!D666,6)","v":""},{"$f":"VLOOKUP(G654,'Account mapping'!A:E,5,0)","v":{"$error":"#N/A"}},{"$f":"LEFT(Template!E666,2)","v":""},{"$f":"VLOOKUP(I654,'Structure mapping'!X:AB,5,0)","v":{"$error":"#N/A"}},{"$f":"LEFT(Template!F666,3)","v":""},{"$f":"VLOOKUP(K654,'Structure mapping'!AC:AG,5,0)","v":{"$error":"#N/A"}},{"$f":"LEFT(Template!G666,10)","v":""},{"$f":"VLOOKUP(M654,'Structure mapping'!AH:AL,5,0)","v":{"$error":"#N/A"}},{"$f":"LEFT(Template!H666,6)","v":""},{"$f":"VLOOKUP(O654,'Structure mapping'!AM:AQ,5,0)","v":{"$error":"#N/A"}},null,null,null,null,{"$f":"IF(Template!O666=\"\",\"\",Template!O666)","v":""},"Aug-24 pending entries",{"$f":"TEXT(Template!$B$9,\"mm/dd/yyy\")","v":"08/01/2024"},null,null,null,null,{"$f":"IF(Template!M666>0,Template!M666,-Template!N666)","v":0},null,null,null,{"$f":"VLOOKUP(G654,'Account mapping'!A:D,4,0)","v":{"$error":"#N/A"}}]
[{"$f":"LEFT(Template!A667,4)","v":""},{"$f":"VLOOKUP(A655,'Structure mapping'!K:V,7,0)","v":{"$error":"#N/A"}},{"$f":"LEFT(Template!B667,5)","v":""},{"$f":"VLOOKUP(C655,'Structure mapping'!F:J,5,0)","v":{"$error":"#N/A"}},{"$f":"LEFT(Template!C667,7)","v":""},{"$f":"VLOOKUP(E655,'Structure mapping'!A:E,5,0)","v":{"$error":"#N/A"}},{"$f":"LEFT(Template!D667,6)","v":""},{"$f":"VLOOKUP(G655,'Account mapping'!A:E,5,0)","v":{"$error":"#N/A"}},{"$f":"LEFT(Template!E667,2)","v":""},{"$f":"VLOOKUP(I655,'Structure mapping'!X:AB,5,0)","v":{"$error":"#N/A"}},{"$f":"LEFT(Template!F667,3)","v":""},{"$f":"VLOOKUP(K655,'Structure mapping'!AC:AG,5,0)","v":{"$error":"#N/A"}},{"$f":"LEFT(Template!G667,10)","v":""},{"$f":"VLOOKUP(M655,'Structure mapping'!AH:AL,5,0)","v":{"$error":"#N/A"}},{"$f":"LEFT(Template!H667,6)","v":""},{"$f":"VLOOKUP(O655,'Structure mapping'!AM:AQ,5,0)","v":{"$error":"#N/A"}},null,null,null,null,{"$f":"IF(Template!O667=\"\",\"\",Template!O667)","v":""},"Aug-24 pending entries",{"$f":"TEXT(Template!$B$9,\"mm/dd/yyy\")","v":"08/01/2024"},null,null,null,null,{"$f":"IF(Template!M667>0,Template!M667,-Template!N667)","v":0},null,null,null,{"$f":"VLOOKUP(G655,'Account mapping'!A:D,4,0)","v":{"$error":"#N/A"}}]
[{"$f":"LEFT(Template!A668,4)","v":""},{"$f":"VLOOKUP(A656,'Structure mapping'!K:V,7,0)","v":{"$error":"#N/A"}},{"$f":"LEFT(Template!B668,5)","v":""},{"$f":"VLOOKUP(C656,'Structure mapping'!F:J,5,0)","v":{"$error":"#N/A"}},{"$f":"LEFT(Template!C668,7)","v":""},{"$f":"VLOOKUP(E656,'Structure mapping'!A:E,5,0)","v":{"$error":"#N/A"}},{"$f":"LEFT(Template!D668,6)","v":""},{"$f":"VLOOKUP(G656,'Account mapping'!A:E,5,0)","v":{"$error":"#N/A"}},{"$f":"LEFT(Template!E668,2)","v":""},{"$f":"VLOOKUP(I656,'Structure mapping'!X:AB,5,0)","v":{"$error":"#N/A"}},{"$f":"LEFT(Template!F668,3)","v":""},{"$f":"VLOOKUP(K656,'Structure mapping'!AC:AG,5,0)","v":{"$error":"#N/A"}},{"$f":"LEFT(Template!G668,10)","v":""},{"$f":"VLOOKUP(M656,'Structure mapping'!AH:AL,5,0)","v":{"$error":"#N/A"}},{"$f":"LEFT(Template!H668,6)","v":""},{"$f":"VLOOKUP(O656,'Structure mapping'!AM:AQ,5,0)","v":{"$error":"#N/A"}},null,null,null,null,{"$f":"IF(Template!O668=\"\",\"\",Template!O668)","v":""},"Aug-24 pending entries",{"$f":"TEXT(Template!$B$9,\"mm/dd/yyy\")","v":"08/01/2024"},null,null,null,null,{"$f":"IF(Template!M668>0,Template!M668,-Template!N668)","v":0},null,null,null,{"$f":"VLOOKUP(G656,'Account mapping'!A:D,4,0)","v":{"$error":"#N/A"}}]
[{"$f":"LEFT(Template!A669,4)","v":""},{"$f":"VLOOKUP(A657,'Structure mapping'!K:V,7,0)","v":{"$error":"#N/A"}},{"$f":"LEFT(Template!B669,5)","v":""},{"$f":"VLOOKUP(C657,'Structure mapping'!F:J,5,0)","v":{"$error":"#N/A"}},{"$f":"LEFT(Template!C669,7)","v":""},{"$f":"VLOOKUP(E657,'Structure mapping'!A:E,5,0)","v":{"$error":"#N/A"}},{"$f":"LEFT(Template!D669,6)","v":""},{"$f":"VLOOKUP(G657,'Account mapping'!A:E,5,0)","v":{"$error":"#N/A"}},{"$f":"LEFT(Template!E669,2)","v":""},{"$f":"VLOOKUP(I657,'Structure mapping'!X:AB,5,0)","v":{"$error":"#N/A"}},{"$f":"LEFT(Template!F669,3)","v":""},{"$f":"VLOOKUP(K657,'Structure mapping'!AC:AG,5,0)","v":{"$error":"#N/A"}},{"$f":"LEFT(Template!G669,10)","v":""},{"$f":"VLOOKUP(M657,'Structure mapping'!AH:AL,5,0)","v":{"$error":"#N/A"}},{"$f":"LEFT(Template!H669,6)","v":""},{"$f":"VLOOKUP(O657,'Structure mapping'!AM:AQ,5,0)","v":{"$error":"#N/A"}},null,null,null,null,{"$f":"IF(Template!O669=\"\",\"\",Template!O669)","v":""},"Aug-24 pending entries",{"$f":"TEXT(Template!$B$9,\"mm/dd/yyy\")","v":"08/01/2024"},null,null,null,null,{"$f":"IF(Template!M669>0,Template!M669,-Template!N669)","v":0},null,null,null,{"$f":"VLOOKUP(G657,'Account mapping'!A:D,4,0)","v":{"$error":"#N/A"}}]
[{"$f":"LEFT(Template!A670,4)","v":""},{"$f":"VLOOKUP(A658,'Structure mapping'!K:V,7,0)","v":{"$error":"#N/A"}},{"$f":"LEFT(Template!B670,5)","v":""},{"$f":"VLOOKUP(C658,'Structure mapping'!F:J,5,0)","v":{"$error":"#N/A"}},{"$f":"LEFT(Template!C670,7)","v":""},{"$f":"VLOOKUP(E658,'Structure mapping'!A:E,5,0)","v":{"$error":"#N/A"}},{"$f":"LEFT(Template!D670,6)","v":""},{"$f":"VLOOKUP(G658,'Account mapping'!A:E,5,0)","v":{"$error":"#N/A"}},{"$f":"LEFT(Template!E670,2)","v":""},{"$f":"VLOOKUP(I658,'Structure mapping'!X:AB,5,0)","v":{"$error":"#N/A"}},{"$f":"LEFT(Template!F670,3)","v":""},{"$f":"VLOOKUP(K658,'Structure mapping'!AC:AG,5,0)","v":{"$error":"#N/A"}},{"$f":"LEFT(Template!G670,10)","v":""},{"$f":"VLOOKUP(M658,'Structure mapping'!AH:AL,5,0)","v":{"$error":"#N/A"}},{"$f":"LEFT(Template!H670,6)","v":""},{"$f":"VLOOKUP(O658,'Structure mapping'!AM:AQ,5,0)","v":{"$error":"#N/A"}},null,null,null,null,{"$f":"IF(Template!O670=\"\",\"\",Template!O670)","v":""},"Aug-24 pending entries",{"$f":"TEXT(Template!$B$9,\"mm/dd/yyy\")","v":"08/01/2024"},null,null,null,null,{"$f":"IF(Template!M670>0,Template!M670,-Template!N670)","v":0},null,null,null,{"$f":"VLOOKUP(G658,'Account mapping'!A:D,4,0)","v":{"$error":"#N/A"}}]
[{"$f":"LEFT(Template!A671,4)","v":""},{"$f":"VLOOKUP(A659,'Structure mapping'!K:V,7,0)","v":{"$error":"#N/A"}},{"$f":"LEFT(Template!B671,5)","v":""},{"$f":"VLOOKUP(C659,'Structure mapping'!F:J,5,0)","v":{"$error":"#N/A"}},{"$f":"LEFT(Template!C671,7)","v":""},{"$f":"VLOOKUP(E659,'Structure mapping'!A:E,5,0)","v":{"$error":"#N/A"}},{"$f":"LEFT(Template!D671,6)","v":""},{"$f":"VLOOKUP(G659,'Account mapping'!A:E,5,0)","v":{"$error":"#N/A"}},{"$f":"LEFT(Template!E671,2)","v":""},{"$f":"VLOOKUP(I659,'Structure mapping'!X:AB,5,0)","v":{"$error":"#N/A"}},{"$f":"LEFT(Template!F671,3)","v":""},{"$f":"VLOOKUP(K659,'Structure mapping'!AC:AG,5,0)","v":{"$error":"#N/A"}},{"$f":"LEFT(Template!G671,10)","v":""},{"$f":"VLOOKUP(M659,'Structure mapping'!AH:AL,5,0)","v":{"$error":"#N/A"}},{"$f":"LEFT(Template!H671,6)","v":""},{"$f":"VLOOKUP(O659,'Structure mapping'!AM:AQ,5,0)","v":{"$error":"#N/A"}},null,null,null,null,{"$f":"IF(Template!O671=\"\",\"\",Template!O671)","v":""},"Aug-24 pending entries",{"$f":"TEXT(Template!$B$9,\"mm/dd/yyy\")","v":"08/01/2024"},null,null,null,null,{"$f":"IF(Template!M671>0,Template!M671,-Template!N671)","v":0},null,null,null,{"$f":"VLOOKUP(G659,'Account mapping'!A:D,4,0)","v":{"$error":"#N/A"}}]
[{"$f":"LEFT(Template!A672,4)","v":""},{"$f":"VLOOKUP(A660,'Structure mapping'!K:V,7,0)","v":{"$error":"#N/A"}},{"$f":"LEFT(Template!B672,5)","v":""},{"$f":"VLOOKUP(C660,'Structure mapping'!F:J,5,0)","v":{"$error":"#N/A"}},{"$f":"LEFT(Template!C672,7)","v":""},{"$f":"VLOOKUP(E660,'Structure mapping'!A:E,5,0)","v":{"$error":"#N/A"}},{"$f":"LEFT(Template!D672,6)","v":""},{"$f":"VLOOKUP(G660,'Account mapping'!A:E,5,0)","v":{"$error":"#N/A"}},{"$f":"LEFT(Template!E672,2)","v":""},{"$f":"VLOOKUP(I660,'Structure mapping'!X:AB,5,0)","v":{"$error":"#N/A"}},{"$f":"LEFT(Template!F672,3)","v":""},{"$f":"VLOOKUP(K660,'Structure mapping'!AC:AG,5,0)","v":{"$error":"#N/A"}},{"$f":"LEFT(Template!G672,10)","v":""},{"$f":"VLOOKUP(M660,'Structure mapping'!AH:AL,5,0)","v":{"$error":"#N/A"}},{"$f":"LEFT(Template!H672,6)","v":""},{"$f":"VLOOKUP(O660,'Structure mapping'!AM:AQ,5,0)","v":{"$error":"#N/A"}},null,null,null,null,{"$f":"IF(Template!O672=\"\",\"\",Template!O672)","v":""},"Aug-24 pending entries",{"$f":"TEXT(Template!$B$9,\"mm/dd/yyy\")","v":"08/01/2024"},null,null,null,null,{"$f":"IF(Template!M672>0,Template!M672,-Template!N672)","v":0},null,null,null,{"$f":"VLOOKUP(G660,'Account mapping'!A:D,4,0)","v":{"$error":"#N/A"}}]
[{"$f":"LEFT(Template!A673,4)","v":""},{"$f":"VLOOKUP(A661,'Structure mapping'!K:V,7,0)","v":{"$error":"#N/A"}},{"$f":"LEFT(Template!B673,5)","v":""},{"$f":"VLOOKUP(C661,'Structure mapping'!F:J,5,0)","v":{"$error":"#N/A"}},{"$f":"LEFT(Template!C673,7)","v":""},{"$f":"VLOOKUP(E661,'Structure mapping'!A:E,5,0)","v":{"$error":"#N/A"}},{"$f":"LEFT(Template!D673,6)","v":""},{"$f":"VLOOKUP(G661,'Account mapping'!A:E,5,0)","v":{"$error":"#N/A"}},{"$f":"LEFT(Template!E673,2)","v":""},{"$f":"VLOOKUP(I661,'Structure mapping'!X:AB,5,0)","v":{"$error":"#N/A"}},{"$f":"LEFT(Template!F673,3)","v":""},{"$f":"VLOOKUP(K661,'Structure mapping'!AC:AG,5,0)","v":{"$error":"#N/A"}},{"$f":"LEFT(Template!G673,10)","v":""},{"$f":"VLOOKUP(M661,'Structure mapping'!AH:AL,5,0)","v":{"$error":"#N/A"}},{"$f":"LEFT(Template!H673,6)","v":""},{"$f":"VLOOKUP(O661,'Structure mapping'!AM:AQ,5,0)","v":{"$error":"#N/A"}},null,null,null,null,{"$f":"IF(Template!O673=\"\",\"\",Template!O673)","v":""},"Aug-24 pending entries",{"$f":"TEXT(Template!$B$9,\"mm/dd/yyy\")","v":"08/01/2024"},null,null,null,null,{"$f":"IF(Template!M673>0,Template!M673,-Template!N673)","v":0},null,null,null,{"$f":"VLOOKUP(G661,'Account mapping'!A:D,4,0)","v":{"$error":"#N/A"}}]
[{"$f":"LEFT(Template!A674,4)","v":""},{"$f":"VLOOKUP(A662,'Structure mapping'!K:V,7,0)","v":{"$error":"#N/A"}},{"$f":"LEFT(Template!B674,5)","v":""},{"$f":"VLOOKUP(C662,'Structure mapping'!F:J,5,0)","v":{"$error":"#N/A"}},{"$f":"LEFT(Template!C674,7)","v":""},{"$f":"VLOOKUP(E662,'Structure mapping'!A:E,5,0)","v":{"$error":"#N/A"}},{"$f":"LEFT(Template!D674,6)","v":""},{"$f":"VLOOKUP(G662,'Account mapping'!A:E,5,0)","v":{"$error":"#N/A"}},{"$f":"LEFT(Template!E674,2)","v":""},{"$f":"VLOOKUP(I662,'Structure mapping'!X:AB,5,0)","v":{"$error":"#N/A"}},{"$f":"LEFT(Template!F674,3)","v":""},{"$f":"VLOOKUP(K662,'Structure mapping'!AC:AG,5,0)","v":{"$error":"#N/A"}},{"$f":"LEFT(Template!G674,10)","v":""},{"$f":"VLOOKUP(M662,'Structure mapping'!AH:AL,5,0)","v":{"$error":"#N/A"}},{"$f":"LEFT(Template!H674,6)","v":""},{"$f":"VLOOKUP(O662,'Structure mapping'!AM:AQ,5,0)","v":{"$error":"#N/A"}},null,null,null,null,{"$f":"IF(Template!O674=\"\",\"\",Template!O674)","v":""},"Aug-24 pending entries",{"$f":"TEXT(Template!$B$9,\"mm/dd/yyy\")","v":"08/01/2024"},null,null,null,null,{"$f":"IF(Template!M674>0,Template!M674,-Template!N674)","v":0},null,null,null,{"$f":"VLOOKUP(G662,'Account mapping'!A:D,4,0)","v":{"$error":"#N/A"}}]
[{"$f":"LEFT(Template!A675,4)","v":""},{"$f":"VLOOKUP(A663,'Structure mapping'!K:V,7,0)","v":{"$error":"#N/A"}},{"$f":"LEFT(Template!B675,5)","v":""},{"$f":"VLOOKUP(C663,'Structure mapping'!F:J,5,0)","v":{"$error":"#N/A"}},{"$f":"LEFT(Template!C675,7)","v":""},{"$f":"VLOOKUP(E663,'Structure mapping'!A:E,5,0)","v":{"$error":"#N/A"}},{"$f":"LEFT(Template!D675,6)","v":""},{"$f":"VLOOKUP(G663,'Account mapping'!A:E,5,0)","v":{"$error":"#N/A"}},{"$f":"LEFT(Template!E675,2)","v":""},{"$f":"VLOOKUP(I663,'Structure mapping'!X:AB,5,0)","v":{"$error":"#N/A"}},{"$f":"LEFT(Template!F675,3)","v":""},{"$f":"VLOOKUP(K663,'Structure mapping'!AC:AG,5,0)","v":{"$error":"#N/A"}},{"$f":"LEFT(Template!G675,10)","v":""},{"$f":"VLOOKUP(M663,'Structure mapping'!AH:AL,5,0)","v":{"$error":"#N/A"}},{"$f":"LEFT(Template!H675,6)","v":""},{"$f":"VLOOKUP(O663,'Structure mapping'!AM:AQ,5,0)","v":{"$error":"#N/A"}},null,null,null,null,{"$f":"IF(Template!O675=\"\",\"\",Template!O675)","v":""},"Aug-24 pending entries",{"$f":"TEXT(Template!$B$9,\"mm/dd/yyy\")","v":"08/01/2024"},null,null,null,null,{"$f":"IF(Template!M675>0,Template!M675,-Template!N675)","v":0},null,null,null,{"$f":"VLOOKUP(G663,'Account mapping'!A:D,4,0)","v":{"$error":"#N/A"}}]
[{"$f":"LEFT(Template!A676,4)","v":""},{"$f":"VLOOKUP(A664,'Structure mapping'!K:V,7,0)","v":{"$error":"#N/A"}},{"$f":"LEFT(Template!B676,5)","v":""},{"$f":"VLOOKUP(C664,'Structure mapping'!F:J,5,0)","v":{"$error":"#N/A"}},{"$f":"LEFT(Template!C676,7)","v":""},{"$f":"VLOOKUP(E664,'Structure mapping'!A:E,5,0)","v":{"$error":"#N/A"}},{"$f":"LEFT(Template!D676,6)","v":""},{"$f":"VLOOKUP(G664,'Account mapping'!A:E,5,0)","v":{"$error":"#N/A"}},{"$f":"LEFT(Template!E676,2)","v":""},{"$f":"VLOOKUP(I664,'Structure mapping'!X:AB,5,0)","v":{"$error":"#N/A"}},{"$f":"LEFT(Template!F676,3)","v":""},{"$f":"VLOOKUP(K664,'Structure mapping'!AC:AG,5,0)","v":{"$error":"#N/A"}},{"$f":"LEFT(Template!G676,10)","v":""},{"$f":"VLOOKUP(M664,'Structure mapping'!AH:AL,5,0)","v":{"$error":"#N/A"}},{"$f":"LEFT(Template!H676,6)","v":""},{"$f":"VLOOKUP(O664,'Structure mapping'!AM:AQ,5,0)","v":{"$error":"#N/A"}},null,null,null,null,{"$f":"IF(Template!O676=\"\",\"\",Template!O676)","v":""},"Aug-24 pending entries",{"$f":"TEXT(Template!$B$9,\"mm/dd/yyy\")","v":"08/01/2024"},null,null,null,null,{"$f":"IF(Template!M676>0,Template!M676,-Template!N676)","v":0},null,null,null,{"$f":"VLOOKUP(G664,'Account mapping'!A:D,4,0)","v":{"$error":"#N/A"}}]
[{"$f":"LEFT(Template!A677,4)","v":""},{"$f":"VLOOKUP(A665,'Structure mapping'!K:V,7,0)","v":{"$error":"#N/A"}},{"$f":"LEFT(Template!B677,5)","v":""},{"$f":"VLOOKUP(C665,'Structure mapping'!F:J,5,0)","v":{"$error":"#N/A"}},{"$f":"LEFT(Template!C677,7)","v":""},{"$f":"VLOOKUP(E665,'Structure mapping'!A:E,5,0)","v":{"$error":"#N/A"}},{"$f":"LEFT(Template!D677,6)","v":""},{"$f":"VLOOKUP(G665,'Account mapping'!A:E,5,0)","v":{"$error":"#N/A"}},{"$f":"LEFT(Template!E677,2)","v":""},{"$f":"VLOOKUP(I665,'Structure mapping'!X:AB,5,0)","v":{"$error":"#N/A"}},{"$f":"LEFT(Template!F677,3)","v":""},{"$f":"VLOOKUP(K665,'Structure mapping'!AC:AG,5,0)","v":{"$error":"#N/A"}},{"$f":"LEFT(Template!G677,10)","v":""},{"$f":"VLOOKUP(M665,'Structure mapping'!AH:AL,5,0)","v":{"$error":"#N/A"}},{"$f":"LEFT(Template!H677,6)","v":""},{"$f":"VLOOKUP(O665,'Structure mapping'!AM:AQ,5,0)","v":{"$error":"#N/A"}},null,null,null,null,{"$f":"IF(Template!O677=\"\",\"\",Template!O677)","v":""},"Aug-24 pending entries",{"$f":"TEXT(Template!$B$9,\"mm/dd/yyy\")","v":"08/01/2024"},null,null,null,null,{"$f":"IF(Template!M677>0,Template!M677,-Template!N677)","v":0},null,null,null,{"$f":"VLOOKUP(G665,'Account mapping'!A:D,4,0)","v":{"$error":"#N/A"}}]
[{"$f":"LEFT(Template!A678,4)","v":""},{"$f":"VLOOKUP(A666,'Structure mapping'!K:V,7,0)","v":{"$error":"#N/A"}},{"$f":"LEFT(Template!B678,5)","v":""},{"$f":"VLOOKUP(C666,'Structure mapping'!F:J,5,0)","v":{"$error":"#N/A"}},{"$f":"LEFT(Template!C678,7)","v":""},{"$f":"VLOOKUP(E666,'Structure mapping'!A:E,5,0)","v":{"$error":"#N/A"}},{"$f":"LEFT(Template!D678,6)","v":""},{"$f":"VLOOKUP(G666,'Account mapping'!A:E,5,0)","v":{"$error":"#N/A"}},{"$f":"LEFT(Template!E678,2)","v":""},{"$f":"VLOOKUP(I666,'Structure mapping'!X:AB,5,0)","v":{"$error":"#N/A"}},{"$f":"LEFT(Template!F678,3)","v":""},{"$f":"VLOOKUP(K666,'Structure mapping'!AC:AG,5,0)","v":{"$error":"#N/A"}},{"$f":"LEFT(Template!G678,10)","v":""},{"$f":"VLOOKUP(M666,'Structure mapping'!AH:AL,5,0)","v":{"$error":"#N/A"}},{"$f":"LEFT(Template!H678,6)","v":""},{"$f":"VLOOKUP(O666,'Structure mapping'!AM:AQ,5,0)","v":{"$error":"#N/A"}},null,null,null,null,{"$f":"IF(Template!O678=\"\",\"\",Template!O678)","v":""},"Aug-24 pending entries",{"$f":"TEXT(Template!$B$9,\"mm/dd/yyy\")","v":"08/01/2024"},null,null,null,null,{"$f":"IF(Template!M678>0,Template!M678,-Template!N678)","v":0},null,null,null,{"$f":"VLOOKUP(G666,'Account mapping'!A:D,4,0)","v":{"$error":"#N/A"}}]
[{"$f":"LEFT(Template!A679,4)","v":""},{"$f":"VLOOKUP(A667,'Structure mapping'!K:V,7,0)","v":{"$error":"#N/A"}},{"$f":"LEFT(Template!B679,5)","v":""},{"$f":"VLOOKUP(C667,'Structure mapping'!F:J,5,0)","v":{"$error":"#N/A"}},{"$f":"LEFT(Template!C679,7)","v":""},{"$f":"VLOOKUP(E667,'Structure mapping'!A:E,5,0)","v":{"$error":"#N/A"}},{"$f":"LEFT(Template!D679,6)","v":""},{"$f":"VLOOKUP(G667,'Account mapping'!A:E,5,0)","v":{"$error":"#N/A"}},{"$f":"LEFT(Template!E679,2)","v":""},{"$f":"VLOOKUP(I667,'Structure mapping'!X:AB,5,0)","v":{"$error":"#N/A"}},{"$f":"LEFT(Template!F679,3)","v":""},{"$f":"VLOOKUP(K667,'Structure mapping'!AC:AG,5,0)","v":{"$error":"#N/A"}},{"$f":"LEFT(Template!G679,10)","v":""},{"$f":"VLOOKUP(M667,'Structure mapping'!AH:AL,5,0)","v":{"$error":"#N/A"}},{"$f":"LEFT(Template!H679,6)","v":""},{"$f":"VLOOKUP(O667,'Structure mapping'!AM:AQ,5,0)","v":{"$error":"#N/A"}},null,null,null,null,{"$f":"IF(Template!O679=\"\",\"\",Template!O679)","v":""},"Aug-24 pending entries",{"$f":"TEXT(Template!$B$9,\"mm/dd/yyy\")","v":"08/01/2024"},null,null,null,null,{"$f":"IF(Template!M679>0,Template!M679,-Template!N679)","v":0},null,null,null,{"$f":"VLOOKUP(G667,'Account mapping'!A:D,4,0)","v":{"$error":"#N/A"}}]
[{"$f":"LEFT(Template!A680,4)","v":""},{"$f":"VLOOKUP(A668,'Structure mapping'!K:V,7,0)","v":{"$error":"#N/A"}},{"$f":"LEFT(Template!B680,5)","v":""},{"$f":"VLOOKUP(C668,'Structure mapping'!F:J,5,0)","v":{"$error":"#N/A"}},{"$f":"LEFT(Template!C680,7)","v":""},{"$f":"VLOOKUP(E668,'Structure mapping'!A:E,5,0)","v":{"$error":"#N/A"}},{"$f":"LEFT(Template!D680,6)","v":""},{"$f":"VLOOKUP(G668,'Account mapping'!A:E,5,0)","v":{"$error":"#N/A"}},{"$f":"LEFT(Template!E680,2)","v":""},{"$f":"VLOOKUP(I668,'Structure mapping'!X:AB,5,0)","v":{"$error":"#N/A"}},{"$f":"LEFT(Template!F680,3)","v":""},{"$f":"VLOOKUP(K668,'Structure mapping'!AC:AG,5,0)","v":{"$error":"#N/A"}},{"$f":"LEFT(Template!G680,10)","v":""},{"$f":"VLOOKUP(M668,'Structure mapping'!AH:AL,5,0)","v":{"$error":"#N/A"}},{"$f":"LEFT(Template!H680,6)","v":""},{"$f":"VLOOKUP(O668,'Structure mapping'!AM:AQ,5,0)","v":{"$error":"#N/A"}},null,null,null,null,{"$f":"IF(Template!O680=\"\",\"\",Template!O680)","v":""},"Aug-24 pending entries",{"$f":"TEXT(Template!$B$9,\"mm/dd/yyy\")","v":"08/01/2024"},null,null,null,null,{"$f":"IF(Template!M680>0,Template!M680,-Template!N680)","v":0},null,null,null,{"$f":"VLOOKUP(G668,'Account mapping'!A:D,4,0)","v":{"$error":"#N/A"}}]
[{"$f":"LEFT(Template!A681,4)","v":""},{"$f":"VLOOKUP(A669,'Structure mapping'!K:V,7,0)","v":{"$error":"#N/A"}},{"$f":"LEFT(Template!B681,5)","v":""},{"$f":"VLOOKUP(C669,'Structure mapping'!F:J,5,0)","v":{"$error":"#N/A"}},{"$f":"LEFT(Template!C681,7)","v":""},{"$f":"VLOOKUP(E669,'Structure mapping'!A:E,5,0)","v":{"$error":"#N/A"}},{"$f":"LEFT(Template!D681,6)","v":""},{"$f":"VLOOKUP(G669,'Account mapping'!A:E,5,0)","v":{"$error":"#N/A"}},{"$f":"LEFT(Template!E681,2)","v":""},{"$f":"VLOOKUP(I669,'Structure mapping'!X:AB,5,0)","v":{"$error":"#N/A"}},{"$f":"LEFT(Template!F681,3)","v":""},{"$f":"VLOOKUP(K669,'Structure mapping'!AC:AG,5,0)","v":{"$error":"#N/A"}},{"$f":"LEFT(Template!G681,10)","v":""},{"$f":"VLOOKUP(M669,'Structure mapping'!AH:AL,5,0)","v":{"$error":"#N/A"}},{"$f":"LEFT(Template!H681,6)","v":""},{"$f":"VLOOKUP(O669,'Structure mapping'!AM:AQ,5,0)","v":{"$error":"#N/A"}},null,null,null,null,{"$f":"IF(Template!O681=\"\",\"\",Template!O681)","v":""},"Aug-24 pending entries",{"$f":"TEXT(Template!$B$9,\"mm/dd/yyy\")","v":"08/01/2024"},null,null,null,null,{"$f":"IF(Template!M681>0,Template!M681,-Template!N681)","v":0},null,null,null,{"$f":"VLOOKUP(G669,'Account mapping'!A:D,4,0)","v":{"$error":"#N/A"}}]
[{"$f":"LEFT(Template!A682,4)","v":""},{"$f":"VLOOKUP(A670,'Structure mapping'!K:V,7,0)","v":{"$error":"#N/A"}},{"$f":"LEFT(Template!B682,5)","v":""},{"$f":"VLOOKUP(C670,'Structure mapping'!F:J,5,0)","v":{"$error":"#N/A"}},{"$f":"LEFT(Template!C682,7)","v":""},{"$f":"VLOOKUP(E670,'Structure mapping'!A:E,5,0)","v":{"$error":"#N/A"}},{"$f":"LEFT(Template!D682,6)","v":""},{"$f":"VLOOKUP(G670,'Account mapping'!A:E,5,0)","v":{"$error":"#N/A"}},{"$f":"LEFT(Template!E682,2)","v":""},{"$f":"VLOOKUP(I670,'Structure mapping'!X:AB,5,0)","v":{"$error":"#N/A"}},{"$f":"LEFT(Template!F682,3)","v":""},{"$f":"VLOOKUP(K670,'Structure mapping'!AC:AG,5,0)","v":{"$error":"#N/A"}},{"$f":"LEFT(Template!G682,10)","v":""},{"$f":"VLOOKUP(M670,'Structure mapping'!AH:AL,5,0)","v":{"$error":"#N/A"}},{"$f":"LEFT(Template!H682,6)","v":""},{"$f":"VLOOKUP(O670,'Structure mapping'!AM:AQ,5,0)","v":{"$error":"#N/A"}},null,null,null,null,{"$f":"IF(Template!O682=\"\",\"\",Template!O682)","v":""},"Aug-24 pending entries",{"$f":"TEXT(Template!$B$9,\"mm/dd/yyy\")","v":"08/01/2024"},null,null,null,null,{"$f":"IF(Template!M682>0,Template!M682,-Template!N682)","v":0},null,null,null,{"$f":"VLOOKUP(G670,'Account mapping'!A:D,4,0)","v":{"$error":"#N/A"}}]
[{"$f":"LEFT(Template!A683,4)","v":""},{"$f":"VLOOKUP(A671,'Structure mapping'!K:V,7,0)","v":{"$error":"#N/A"}},{"$f":"LEFT(Template!B683,5)","v":""},{"$f":"VLOOKUP(C671,'Structure mapping'!F:J,5,0)","v":{"$error":"#N/A"}},{"$f":"LEFT(Template!C683,7)","v":""},{"$f":"VLOOKUP(E671,'Structure mapping'!A:E,5,0)","v":{"$error":"#N/A"}},{"$f":"LEFT(Template!D683,6)","v":""},{"$f":"VLOOKUP(G671,'Account mapping'!A:E,5,0)","v":{"$error":"#N/A"}},{"$f":"LEFT(Template!E683,2)","v":""},{"$f":"VLOOKUP(I671,'Structure mapping'!X:AB,5,0)","v":{"$error":"#N/A"}},{"$f":"LEFT(Template!F683,3)","v":""},{"$f":"VLOOKUP(K671,'Structure mapping'!AC:AG,5,0)","v":{"$error":"#N/A"}},{"$f":"LEFT(Template!G683,10)","v":""},{"$f":"VLOOKUP(M671,'Structure mapping'!AH:AL,5,0)","v":{"$error":"#N/A"}},{"$f":"LEFT(Template!H683,6)","v":""},{"$f":"VLOOKUP(O671,'Structure mapping'!AM:AQ,5,0)","v":{"$error":"#N/A"}},null,null,null,null,{"$f":"IF(Template!O683=\"\",\"\",Template!O683)","v":""},"Aug-24 pending entries",{"$f":"TEXT(Template!$B$9,\"mm/dd/yyy\")","v":"08/01/2024"},null,null,null,null,{"$f":"IF(Template!M683>0,Template!M683,-Template!N683)","v":0},null,null,null,{"$f":"VLOOKUP(G671,'Account mapping'!A:D,4,0)","v":{"$error":"#N/A"}}]
[{"$f":"LEFT(Template!A684,4)","v":""},{"$f":"VLOOKUP(A672,'Structure mapping'!K:V,7,0)","v":{"$error":"#N/A"}},{"$f":"LEFT(Template!B684,5)","v":""},{"$f":"VLOOKUP(C672,'Structure mapping'!F:J,5,0)","v":{"$error":"#N/A"}},{"$f":"LEFT(Template!C684,7)","v":""},{"$f":"VLOOKUP(E672,'Structure mapping'!A:E,5,0)","v":{"$error":"#N/A"}},{"$f":"LEFT(Template!D684,6)","v":""},{"$f":"VLOOKUP(G672,'Account mapping'!A:E,5,0)","v":{"$error":"#N/A"}},{"$f":"LEFT(Template!E684,2)","v":""},{"$f":"VLOOKUP(I672,'Structure mapping'!X:AB,5,0)","v":{"$error":"#N/A"}},{"$f":"LEFT(Template!F684,3)","v":""},{"$f":"VLOOKUP(K672,'Structure mapping'!AC:AG,5,0)","v":{"$error":"#N/A"}},{"$f":"LEFT(Template!G684,10)","v":""},{"$f":"VLOOKUP(M672,'Structure mapping'!AH:AL,5,0)","v":{"$error":"#N/A"}},{"$f":"LEFT(Template!H684,6)","v":""},{"$f":"VLOOKUP(O672,'Structure mapping'!AM:AQ,5,0)","v":{"$error":"#N/A"}},null,null,null,null,{"$f":"IF(Template!O684=\"\",\"\",Template!O684)","v":""},"Aug-24 pending entries",{"$f":"TEXT(Template!$B$9,\"mm/dd/yyy\")","v":"08/01/2024"},null,null,null,null,{"$f":"IF(Template!M684>0,Template!M684,-Template!N684)","v":0},null,null,null,{"$f":"VLOOKUP(G672,'Account mapping'!A:D,4,0)","v":{"$error":"#N/A"}}]
[{"$f":"LEFT(Template!A685,4)","v":""},{"$f":"VLOOKUP(A673,'Structure mapping'!K:V,7,0)","v":{"$error":"#N/A"}},{"$f":"LEFT(Template!B685,5)","v":""},{"$f":"VLOOKUP(C673,'Structure mapping'!F:J,5,0)","v":{"$error":"#N/A"}},{"$f":"LEFT(Template!C685,7)","v":""},{"$f":"VLOOKUP(E673,'Structure mapping'!A:E,5,0)","v":{"$error":"#N/A"}},{"$f":"LEFT(Template!D685,6)","v":""},{"$f":"VLOOKUP(G673,'Account mapping'!A:E,5,0)","v":{"$error":"#N/A"}},{"$f":"LEFT(Template!E685,2)","v":""},{"$f":"VLOOKUP(I673,'Structure mapping'!X:AB,5,0)","v":{"$error":"#N/A"}},{"$f":"LEFT(Template!F685,3)","v":""},{"$f":"VLOOKUP(K673,'Structure mapping'!AC:AG,5,0)","v":{"$error":"#N/A"}},{"$f":"LEFT(Template!G685,10)","v":""},{"$f":"VLOOKUP(M673,'Structure mapping'!AH:AL,5,0)","v":{"$error":"#N/A"}},{"$f":"LEFT(Template!H685,6)","v":""},{"$f":"VLOOKUP(O673,'Structure mapping'!AM:AQ,5,0)","v":{"$error":"#N/A"}},null,null,null,null,{"$f":"IF(Template!O685=\"\",\"\",Template!O685)","v":""},"Aug-24 pending entries",{"$f":"TEXT(Template!$B$9,\"mm/dd/yyy\")","v":"08/01/2024"},null,null,null,null,{"$f":"IF(Template!M685>0,Template!M685,-Template!N685)","v":0},null,null,null,{"$f":"VLOOKUP(G673,'Account mapping'!A:D,4,0)","v":{"$error":"#N/A"}}]
[{"$f":"LEFT(Template!A686,4)","v":""},{"$f":"VLOOKUP(A674,'Structure mapping'!K:V,7,0)","v":{"$error":"#N/A"}},{"$f":"LEFT(Template!B686,5)","v":""},{"$f":"VLOOKUP(C674,'Structure mapping'!F:J,5,0)","v":{"$error":"#N/A"}},{"$f":"LEFT(Template!C686,7)","v":""},{"$f":"VLOOKUP(E674,'Structure mapping'!A:E,5,0)","v":{"$error":"#N/A"}},{"$f":"LEFT(Template!D686,6)","v":""},{"$f":"VLOOKUP(G674,'Account mapping'!A:E,5,0)","v":{"$error":"#N/A"}},{"$f":"LEFT(Template!E686,2)","v":""},{"$f":"VLOOKUP(I674,'Structure mapping'!X:AB,5,0)","v":{"$error":"#N/A"}},{"$f":"LEFT(Template!F686,3)","v":""},{"$f":"VLOOKUP(K674,'Structure mapping'!AC:AG,5,0)","v":{"$error":"#N/A"}},{"$f":"LEFT(Template!G686,10)","v":""},{"$f":"VLOOKUP(M674,'Structure mapping'!AH:AL,5,0)","v":{"$error":"#N/A"}},{"$f":"LEFT(Template!H686,6)","v":""},{"$f":"VLOOKUP(O674,'Structure mapping'!AM:AQ,5,0)","v":{"$error":"#N/A"}},null,null,null,null,{"$f":"IF(Template!O686=\"\",\"\",Template!O686)","v":""},"Aug-24 pending entries",{"$f":"TEXT(Template!$B$9,\"mm/dd/yyy\")","v":"08/01/2024"},null,null,null,null,{"$f":"IF(Template!M686>0,Template!M686,-Template!N686)","v":0},null,null,null,{"$f":"VLOOKUP(G674,'Account mapping'!A:D,4,0)","v":{"$error":"#N/A"}}]
[{"$f":"LEFT(Template!A687,4)","v":""},{"$f":"VLOOKUP(A675,'Structure mapping'!K:V,7,0)","v":{"$error":"#N/A"}},{"$f":"LEFT(Template!B687,5)","v":""},{"$f":"VLOOKUP(C675,'Structure mapping'!F:J,5,0)","v":{"$error":"#N/A"}},{"$f":"LEFT(Template!C687,7)","v":""},{"$f":"VLOOKUP(E675,'Structure mapping'!A:E,5,0)","v":{"$error":"#N/A"}},{"$f":"LEFT(Template!D687,6)","v":""},{"$f":"VLOOKUP(G675,'Account mapping'!A:E,5,0)","v":{"$error":"#N/A"}},{"$f":"LEFT(Template!E687,2)","v":""},{"$f":"VLOOKUP(I675,'Structure mapping'!X:AB,5,0)","v":{"$error":"#N/A"}},{"$f":"LEFT(Template!F687,3)","v":""},{"$f":"VLOOKUP(K675,'Structure mapping'!AC:AG,5,0)","v":{"$error":"#N/A"}},{"$f":"LEFT(Template!G687,10)","v":""},{"$f":"VLOOKUP(M675,'Structure mapping'!AH:AL,5,0)","v":{"$error":"#N/A"}},{"$f":"LEFT(Template!H687,6)","v":""},{"$f":"VLOOKUP(O675,'Structure mapping'!AM:AQ,5,0)","v":{"$error":"#N/A"}},null,null,null,null,{"$f":"IF(Template!O687=\"\",\"\",Template!O687)","v":""},"Aug-24 pending entries",{"$f":"TEXT(Template!$B$9,\"mm/dd/yyy\")","v":"08/01/2024"},null,null,null,null,{"$f":"IF(Template!M687>0,Template!M687,-Template!N687)","v":0},null,null,null,{"$f":"VLOOKUP(G675,'Account mapping'!A:D,4,0)","v":{"$error":"#N/A"}}]
[{"$f":"LEFT(Template!A688,4)","v":""},{"$f":"VLOOKUP(A676,'Structure mapping'!K:V,7,0)","v":{"$error":"#N/A"}},{"$f":"LEFT(Template!B688,5)","v":""},{"$f":"VLOOKUP(C676,'Structure mapping'!F:J,5,0)","v":{"$error":"#N/A"}},{"$f":"LEFT(Template!C688,7)","v":""},{"$f":"VLOOKUP(E676,'Structure mapping'!A:E,5,0)","v":{"$error":"#N/A"}},{"$f":"LEFT(Template!D688,6)","v":""},{"$f":"VLOOKUP(G676,'Account mapping'!A:E,5,0)","v":{"$error":"#N/A"}},{"$f":"LEFT(Template!E688,2)","v":""},{"$f":"VLOOKUP(I676,'Structure mapping'!X:AB,5,0)","v":{"$error":"#N/A"}},{"$f":"LEFT(Template!F688,3)","v":""},{"$f":"VLOOKUP(K676,'Structure mapping'!AC:AG,5,0)","v":{"$error":"#N/A"}},{"$f":"LEFT(Template!G688,10)","v":""},{"$f":"VLOOKUP(M676,'Structure mapping'!AH:AL,5,0)","v":{"$error":"#N/A"}},{"$f":"LEFT(Template!H688,6)","v":""},{"$f":"VLOOKUP(O676,'Structure mapping'!AM:AQ,5,0)","v":{"$error":"#N/A"}},null,null,null,null,{"$f":"IF(Template!O688=\"\",\"\",Template!O688)","v":""},"Aug-24 pending entries",{"$f":"TEXT(Template!$B$9,\"mm/dd/yyy\")","v":"08/01/2024"},null,null,null,null,{"$f":"IF(Template!M688>0,Template!M688,-Template!N688)","v":0},null,null,null,{"$f":"VLOOKUP(G676,'Account mapping'!A:D,4,0)","v":{"$error":"#N/A"}}]
[{"$f":"LEFT(Template!A689,4)","v":""},{"$f":"VLOOKUP(A677,'Structure mapping'!K:V,7,0)","v":{"$error":"#N/A"}},{"$f":"LEFT(Template!B689,5)","v":""},{"$f":"VLOOKUP(C677,'Structure mapping'!F:J,5,0)","v":{"$error":"#N/A"}},{"$f":"LEFT(Template!C689,7)","v":""},{"$f":"VLOOKUP(E677,'Structure mapping'!A:E,5,0)","v":{"$error":"#N/A"}},{"$f":"LEFT(Template!D689,6)","v":""},{"$f":"VLOOKUP(G677,'Account mapping'!A:E,5,0)","v":{"$error":"#N/A"}},{"$f":"LEFT(Template!E689,2)","v":""},{"$f":"VLOOKUP(I677,'Structure mapping'!X:AB,5,0)","v":{"$error":"#N/A"}},{"$f":"LEFT(Template!F689,3)","v":""},{"$f":"VLOOKUP(K677,'Structure mapping'!AC:AG,5,0)","v":{"$error":"#N/A"}},{"$f":"LEFT(Template!G689,10)","v":""},{"$f":"VLOOKUP(M677,'Structure mapping'!AH:AL,5,0)","v":{"$error":"#N/A"}},{"$f":"LEFT(Template!H689,6)","v":""},{"$f":"VLOOKUP(O677,'Structure mapping'!AM:AQ,5,0)","v":{"$error":"#N/A"}},null,null,null,null,{"$f":"IF(Template!O689=\"\",\"\",Template!O689)","v":""},"Aug-24 pending entries",{"$f":"TEXT(Template!$B$9,\"mm/dd/yyy\")","v":"08/01/2024"},null,null,null,null,{"$f":"IF(Template!M689>0,Template!M689,-Template!N689)","v":0},null,null,null,{"$f":"VLOOKUP(G677,'Account mapping'!A:D,4,0)","v":{"$error":"#N/A"}}]
[{"$f":"LEFT(Template!A690,4)","v":""},{"$f":"VLOOKUP(A678,'Structure mapping'!K:V,7,0)","v":{"$error":"#N/A"}},{"$f":"LEFT(Template!B690,5)","v":""},{"$f":"VLOOKUP(C678,'Structure mapping'!F:J,5,0)","v":{"$error":"#N/A"}},{"$f":"LEFT(Template!C690,7)","v":""},{"$f":"VLOOKUP(E678,'Structure mapping'!A:E,5,0)","v":{"$error":"#N/A"}},{"$f":"LEFT(Template!D690,6)","v":""},{"$f":"VLOOKUP(G678,'Account mapping'!A:E,5,0)","v":{"$error":"#N/A"}},{"$f":"LEFT(Template!E690,2)","v":""},{"$f":"VLOOKUP(I678,'Structure mapping'!X:AB,5,0)","v":{"$error":"#N/A"}},{"$f":"LEFT(Template!F690,3)","v":""},{"$f":"VLOOKUP(K678,'Structure mapping'!AC:AG,5,0)","v":{"$error":"#N/A"}},{"$f":"LEFT(Template!G690,10)","v":""},{"$f":"VLOOKUP(M678,'Structure mapping'!AH:AL,5,0)","v":{"$error":"#N/A"}},{"$f":"LEFT(Template!H690,6)","v":""},{"$f":"VLOOKUP(O678,'Structure mapping'!AM:AQ,5,0)","v":{"$error":"#N/A"}},null,null,null,null,{"$f":"IF(Template!O690=\"\",\"\",Template!O690)","v":""},"Aug-24 pending entries",{"$f":"TEXT(Template!$B$9,\"mm/dd/yyy\")","v":"08/01/2024"},null,null,null,null,{"$f":"IF(Template!M690>0,Template!M690,-Template!N690)","v":0},null,null,null,{"$f":"VLOOKUP(G678,'Account mapping'!A:D,4,0)","v":{"$error":"#N/A"}}]
[{"$f":"LEFT(Template!A691,4)","v":""},{"$f":"VLOOKUP(A679,'Structure mapping'!K:V,7,0)","v":{"$error":"#N/A"}},{"$f":"LEFT(Template!B691,5)","v":""},{"$f":"VLOOKUP(C679,'Structure mapping'!F:J,5,0)","v":{"$error":"#N/A"}},{"$f":"LEFT(Template!C691,7)","v":""},{"$f":"VLOOKUP(E679,'Structure mapping'!A:E,5,0)","v":{"$error":"#N/A"}},{"$f":"LEFT(Template!D691,6)","v":""},{"$f":"VLOOKUP(G679,'Account mapping'!A:E,5,0)","v":{"$error":"#N/A"}},{"$f":"LEFT(Template!E691,2)","v":""},{"$f":"VLOOKUP(I679,'Structure mapping'!X:AB,5,0)","v":{"$error":"#N/A"}},{"$f":"LEFT(Template!F691,3)","v":""},{"$f":"VLOOKUP(K679,'Structure mapping'!AC:AG,5,0)","v":{"$error":"#N/A"}},{"$f":"LEFT(Template!G691,10)","v":""},{"$f":"VLOOKUP(M679,'Structure mapping'!AH:AL,5,0)","v":{"$error":"#N/A"}},{"$f":"LEFT(Template!H691,6)","v":""},{"$f":"VLOOKUP(O679,'Structure mapping'!AM:AQ,5,0)","v":{"$error":"#N/A"}},null,null,null,null,{"$f":"IF(Template!O691=\"\",\"\",Template!O691)","v":""},"Aug-24 pending entries",{"$f":"TEXT(Template!$B$9,\"mm/dd/yyy\")","v":"08/01/2024"},null,null,null,null,{"$f":"IF(Template!M691>0,Template!M691,-Template!N691)","v":0},null,null,null,{"$f":"VLOOKUP(G679,'Account mapping'!A:D,4,0)","v":{"$error":"#N/A"}}]
[{"$f":"LEFT(Template!A692,4)","v":""},{"$f":"VLOOKUP(A680,'Structure mapping'!K:V,7,0)","v":{"$error":"#N/A"}},{"$f":"LEFT(Template!B692,5)","v":""},{"$f":"VLOOKUP(C680,'Structure mapping'!F:J,5,0)","v":{"$error":"#N/A"}},{"$f":"LEFT(Template!C692,7)","v":""},{"$f":"VLOOKUP(E680,'Structure mapping'!A:E,5,0)","v":{"$error":"#N/A"}},{"$f":"LEFT(Template!D692,6)","v":""},{"$f":"VLOOKUP(G680,'Account mapping'!A:E,5,0)","v":{"$error":"#N/A"}},{"$f":"LEFT(Template!E692,2)","v":""},{"$f":"VLOOKUP(I680,'Structure mapping'!X:AB,5,0)","v":{"$error":"#N/A"}},{"$f":"LEFT(Template!F692,3)","v":""},{"$f":"VLOOKUP(K680,'Structure mapping'!AC:AG,5,0)","v":{"$error":"#N/A"}},{"$f":"LEFT(Template!G692,10)","v":""},{"$f":"VLOOKUP(M680,'Structure mapping'!AH:AL,5,0)","v":{"$error":"#N/A"}},{"$f":"LEFT(Template!H692,6)","v":""},{"$f":"VLOOKUP(O680,'Structure mapping'!AM:AQ,5,0)","v":{"$error":"#N/A"}},null,null,null,null,{"$f":"IF(Template!O692=\"\",\"\",Template!O692)","v":""},"Aug-24 pending entries",{"$f":"TEXT(Template!$B$9,\"mm/dd/yyy\")","v":"08/01/2024"},null,null,null,null,{"$f":"IF(Template!M692>0,Template!M692,-Template!N692)","v":0},null,null,null,{"$f":"VLOOKUP(G680,'Account mapping'!A:D,4,0)","v":{"$error":"#N/A"}}]
[{"$f":"LEFT(Template!A693,4)","v":""},{"$f":"VLOOKUP(A681,'Structure mapping'!K:V,7,0)","v":{"$error":"#N/A"}},{"$f":"LEFT(Template!B693,5)","v":""},{"$f":"VLOOKUP(C681,'Structure mapping'!F:J,5,0)","v":{"$error":"#N/A"}},{"$f":"LEFT(Template!C693,7)","v":""},{"$f":"VLOOKUP(E681,'Structure mapping'!A:E,5,0)","v":{"$error":"#N/A"}},{"$f":"LEFT(Template!D693,6)","v":""},{"$f":"VLOOKUP(G681,'Account mapping'!A:E,5,0)","v":{"$error":"#N/A"}},{"$f":"LEFT(Template!E693,2)","v":""},{"$f":"VLOOKUP(I681,'Structure mapping'!X:AB,5,0)","v":{"$error":"#N/A"}},{"$f":"LEFT(Template!F693,3)","v":""},{"$f":"VLOOKUP(K681,'Structure mapping'!AC:AG,5,0)","v":{"$error":"#N/A"}},{"$f":"LEFT(Template!G693,10)","v":""},{"$f":"VLOOKUP(M681,'Structure mapping'!AH:AL,5,0)","v":{"$error":"#N/A"}},{"$f":"LEFT(Template!H693,6)","v":""},{"$f":"VLOOKUP(O681,'Structure mapping'!AM:AQ,5,0)","v":{"$error":"#N/A"}},null,null,null,null,{"$f":"IF(Template!O693=\"\",\"\",Template!O693)","v":""},"Aug-24 pending entries",{"$f":"TEXT(Template!$B$9,\"mm/dd/yyy\")","v":"08/01/2024"},null,null,null,null,{"$f":"IF(Template!M693>0,Template!M693,-Template!N693)","v":0},null,null,null,{"$f":"VLOOKUP(G681,'Account mapping'!A:D,4,0)","v":{"$error":"#N/A"}}]
[{"$f":"LEFT(Template!A694,4)","v":""},{"$f":"VLOOKUP(A682,'Structure mapping'!K:V,7,0)","v":{"$error":"#N/A"}},{"$f":"LEFT(Template!B694,5)","v":""},{"$f":"VLOOKUP(C682,'Structure mapping'!F:J,5,0)","v":{"$error":"#N/A"}},{"$f":"LEFT(Template!C694,7)","v":""},{"$f":"VLOOKUP(E682,'Structure mapping'!A:E,5,0)","v":{"$error":"#N/A"}},{"$f":"LEFT(Template!D694,6)","v":""},{"$f":"VLOOKUP(G682,'Account mapping'!A:E,5,0)","v":{"$error":"#N/A"}},{"$f":"LEFT(Template!E694,2)","v":""},{"$f":"VLOOKUP(I682,'Structure mapping'!X:AB,5,0)","v":{"$error":"#N/A"}},{"$f":"LEFT(Template!F694,3)","v":""},{"$f":"VLOOKUP(K682,'Structure mapping'!AC:AG,5,0)","v":{"$error":"#N/A"}},{"$f":"LEFT(Template!G694,10)","v":""},{"$f":"VLOOKUP(M682,'Structure mapping'!AH:AL,5,0)","v":{"$error":"#N/A"}},{"$f":"LEFT(Template!H694,6)","v":""},{"$f":"VLOOKUP(O682,'Structure mapping'!AM:AQ,5,0)","v":{"$error":"#N/A"}},null,null,null,null,{"$f":"IF(Template!O694=\"\",\"\",Template!O694)","v":""},"Aug-24 pending entries",{"$f":"TEXT(Template!$B$9,\"mm/dd/yyy\")","v":"08/01/2024"},null,null,null,null,{"$f":"IF(Template!M694>0,Template!M694,-Template!N694)","v":0},null,null,null,{"$f":"VLOOKUP(G682,'Account mapping'!A:D,4,0)","v":{"$error":"#N/A"}}]
[{"$f":"LEFT(Template!A695,4)","v":""},{"$f":"VLOOKUP(A683,'Structure mapping'!K:V,7,0)","v":{"$error":"#N/A"}},{"$f":"LEFT(Template!B695,5)","v":""},{"$f":"VLOOKUP(C683,'Structure mapping'!F:J,5,0)","v":{"$error":"#N/A"}},{"$f":"LEFT(Template!C695,7)","v":""},{"$f":"VLOOKUP(E683,'Structure mapping'!A:E,5,0)","v":{"$error":"#N/A"}},{"$f":"LEFT(Template!D695,6)","v":""},{"$f":"VLOOKUP(G683,'Account mapping'!A:E,5,0)","v":{"$error":"#N/A"}},{"$f":"LEFT(Template!E695,2)","v":""},{"$f":"VLOOKUP(I683,'Structure mapping'!X:AB,5,0)","v":{"$error":"#N/A"}},{"$f":"LEFT(Template!F695,3)","v":""},{"$f":"VLOOKUP(K683,'Structure mapping'!AC:AG,5,0)","v":{"$error":"#N/A"}},{"$f":"LEFT(Template!G695,10)","v":""},{"$f":"VLOOKUP(M683,'Structure mapping'!AH:AL,5,0)","v":{"$error":"#N/A"}},{"$f":"LEFT(Template!H695,6)","v":""},{"$f":"VLOOKUP(O683,'Structure mapping'!AM:AQ,5,0)","v":{"$error":"#N/A"}},null,null,null,null,{"$f":"IF(Template!O695=\"\",\"\",Template!O695)","v":""},"Aug-24 pending entries",{"$f":"TEXT(Template!$B$9,\"mm/dd/yyy\")","v":"08/01/2024"},null,null,null,null,{"$f":"IF(Template!M695>0,Template!M695,-Template!N695)","v":0},null,null,null,{"$f":"VLOOKUP(G683,'Account mapping'!A:D,4,0)","v":{"$error":"#N/A"}}]
[{"$f":"LEFT(Template!A696,4)","v":""},{"$f":"VLOOKUP(A684,'Structure mapping'!K:V,7,0)","v":{"$error":"#N/A"}},{"$f":"LEFT(Template!B696,5)","v":""},{"$f":"VLOOKUP(C684,'Structure mapping'!F:J,5,0)","v":{"$error":"#N/A"}},{"$f":"LEFT(Template!C696,7)","v":""},{"$f":"VLOOKUP(E684,'Structure mapping'!A:E,5,0)","v":{"$error":"#N/A"}},{"$f":"LEFT(Template!D696,6)","v":""},{"$f":"VLOOKUP(G684,'Account mapping'!A:E,5,0)","v":{"$error":"#N/A"}},{"$f":"LEFT(Template!E696,2)","v":""},{"$f":"VLOOKUP(I684,'Structure mapping'!X:AB,5,0)","v":{"$error":"#N/A"}},{"$f":"LEFT(Template!F696,3)","v":""},{"$f":"VLOOKUP(K684,'Structure mapping'!AC:AG,5,0)","v":{"$error":"#N/A"}},{"$f":"LEFT(Template!G696,10)","v":""},{"$f":"VLOOKUP(M684,'Structure mapping'!AH:AL,5,0)","v":{"$error":"#N/A"}},{"$f":"LEFT(Template!H696,6)","v":""},{"$f":"VLOOKUP(O684,'Structure mapping'!AM:AQ,5,0)","v":{"$error":"#N/A"}},null,null,null,null,{"$f":"IF(Template!O696=\"\",\"\",Template!O696)","v":""},"Aug-24 pending entries",{"$f":"TEXT(Template!$B$9,\"mm/dd/yyy\")","v":"08/01/2024"},null,null,null,null,{"$f":"IF(Template!M696>0,Template!M696,-Template!N696)","v":0},null,null,null,{"$f":"VLOOKUP(G684,'Account mapping'!A:D,4,0)","v":{"$error":"#N/A"}}]
[{"$f":"LEFT(Template!A697,4)","v":""},{"$f":"VLOOKUP(A685,'Structure mapping'!K:V,7,0)","v":{"$error":"#N/A"}},{"$f":"LEFT(Template!B697,5)","v":""},{"$f":"VLOOKUP(C685,'Structure mapping'!F:J,5,0)","v":{"$error":"#N/A"}},{"$f":"LEFT(Template!C697,7)","v":""},{"$f":"VLOOKUP(E685,'Structure mapping'!A:E,5,0)","v":{"$error":"#N/A"}},{"$f":"LEFT(Template!D697,6)","v":""},{"$f":"VLOOKUP(G685,'Account mapping'!A:E,5,0)","v":{"$error":"#N/A"}},{"$f":"LEFT(Template!E697,2)","v":""},{"$f":"VLOOKUP(I685,'Structure mapping'!X:AB,5,0)","v":{"$error":"#N/A"}},{"$f":"LEFT(Template!F697,3)","v":""},{"$f":"VLOOKUP(K685,'Structure mapping'!AC:AG,5,0)","v":{"$error":"#N/A"}},{"$f":"LEFT(Template!G697,10)","v":""},{"$f":"VLOOKUP(M685,'Structure mapping'!AH:AL,5,0)","v":{"$error":"#N/A"}},{"$f":"LEFT(Template!H697,6)","v":""},{"$f":"VLOOKUP(O685,'Structure mapping'!AM:AQ,5,0)","v":{"$error":"#N/A"}},null,null,null,null,{"$f":"IF(Template!O697=\"\",\"\",Template!O697)","v":""},"Aug-24 pending entries",{"$f":"TEXT(Template!$B$9,\"mm/dd/yyy\")","v":"08/01/2024"},null,null,null,null,{"$f":"IF(Template!M697>0,Template!M697,-Template!N697)","v":0},null,null,null,{"$f":"VLOOKUP(G685,'Account mapping'!A:D,4,0)","v":{"$error":"#N/A"}}]
[{"$f":"LEFT(Template!A698,4)","v":""},{"$f":"VLOOKUP(A686,'Structure mapping'!K:V,7,0)","v":{"$error":"#N/A"}},{"$f":"LEFT(Template!B698,5)","v":""},{"$f":"VLOOKUP(C686,'Structure mapping'!F:J,5,0)","v":{"$error":"#N/A"}},{"$f":"LEFT(Template!C698,7)","v":""},{"$f":"VLOOKUP(E686,'Structure mapping'!A:E,5,0)","v":{"$error":"#N/A"}},{"$f":"LEFT(Template!D698,6)","v":""},{"$f":"VLOOKUP(G686,'Account mapping'!A:E,5,0)","v":{"$error":"#N/A"}},{"$f":"LEFT(Template!E698,2)","v":""},{"$f":"VLOOKUP(I686,'Structure mapping'!X:AB,5,0)","v":{"$error":"#N/A"}},{"$f":"LEFT(Template!F698,3)","v":""},{"$f":"VLOOKUP(K686,'Structure mapping'!AC:AG,5,0)","v":{"$error":"#N/A"}},{"$f":"LEFT(Template!G698,10)","v":""},{"$f":"VLOOKUP(M686,'Structure mapping'!AH:AL,5,0)","v":{"$error":"#N/A"}},{"$f":"LEFT(Template!H698,6)","v":""},{"$f":"VLOOKUP(O686,'Structure mapping'!AM:AQ,5,0)","v":{"$error":"#N/A"}},null,null,null,null,{"$f":"IF(Template!O698=\"\",\"\",Template!O698)","v":""},"Aug-24 pending entries",{"$f":"TEXT(Template!$B$9,\"mm/dd/yyy\")","v":"08/01/2024"},null,null,null,null,{"$f":"IF(Template!M698>0,Template!M698,-Template!N698)","v":0},null,null,null,{"$f":"VLOOKUP(G686,'Account mapping'!A:D,4,0)","v":{"$error":"#N/A"}}]
[{"$f":"LEFT(Template!A699,4)","v":""},{"$f":"VLOOKUP(A687,'Structure mapping'!K:V,7,0)","v":{"$error":"#N/A"}},{"$f":"LEFT(Template!B699,5)","v":""},{"$f":"VLOOKUP(C687,'Structure mapping'!F:J,5,0)","v":{"$error":"#N/A"}},{"$f":"LEFT(Template!C699,7)","v":""},{"$f":"VLOOKUP(E687,'Structure mapping'!A:E,5,0)","v":{"$error":"#N/A"}},{"$f":"LEFT(Template!D699,6)","v":""},{"$f":"VLOOKUP(G687,'Account mapping'!A:E,5,0)","v":{"$error":"#N/A"}},{"$f":"LEFT(Template!E699,2)","v":""},{"$f":"VLOOKUP(I687,'Structure mapping'!X:AB,5,0)","v":{"$error":"#N/A"}},{"$f":"LEFT(Template!F699,3)","v":""},{"$f":"VLOOKUP(K687,'Structure mapping'!AC:AG,5,0)","v":{"$error":"#N/A"}},{"$f":"LEFT(Template!G699,10)","v":""},{"$f":"VLOOKUP(M687,'Structure mapping'!AH:AL,5,0)","v":{"$error":"#N/A"}},{"$f":"LEFT(Template!H699,6)","v":""},{"$f":"VLOOKUP(O687,'Structure mapping'!AM:AQ,5,0)","v":{"$error":"#N/A"}},null,null,null,null,{"$f":"IF(Template!O699=\"\",\"\",Template!O699)","v":""},"Aug-24 pending entries",{"$f":"TEXT(Template!$B$9,\"mm/dd/yyy\")","v":"08/01/2024"},null,null,null,null,{"$f":"IF(Template!M699>0,Template!M699,-Template!N699)","v":0},null,null,null,{"$f":"VLOOKUP(G687,'Account mapping'!A:D,4,0)","v":{"$error":"#N/A"}}]
[{"$f":"LEFT(Template!A700,4)","v":""},{"$f":"VLOOKUP(A688,'Structure mapping'!K:V,7,0)","v":{"$error":"#N/A"}},{"$f":"LEFT(Template!B700,5)","v":""},{"$f":"VLOOKUP(C688,'Structure mapping'!F:J,5,0)","v":{"$error":"#N/A"}},{"$f":"LEFT(Template!C700,7)","v":""},{"$f":"VLOOKUP(E688,'Structure mapping'!A:E,5,0)","v":{"$error":"#N/A"}},{"$f":"LEFT(Template!D700,6)","v":""},{"$f":"VLOOKUP(G688,'Account mapping'!A:E,5,0)","v":{"$error":"#N/A"}},{"$f":"LEFT(Template!E700,2)","v":""},{"$f":"VLOOKUP(I688,'Structure mapping'!X:AB,5,0)","v":{"$error":"#N/A"}},{"$f":"LEFT(Template!F700,3)","v":""},{"$f":"VLOOKUP(K688,'Structure mapping'!AC:AG,5,0)","v":{"$error":"#N/A"}},{"$f":"LEFT(Template!G700,10)","v":""},{"$f":"VLOOKUP(M688,'Structure mapping'!AH:AL,5,0)","v":{"$error":"#N/A"}},{"$f":"LEFT(Template!H700,6)","v":""},{"$f":"VLOOKUP(O688,'Structure mapping'!AM:AQ,5,0)","v":{"$error":"#N/A"}},null,null,null,null,{"$f":"IF(Template!O700=\"\",\"\",Template!O700)","v":""},"Aug-24 pending entries",{"$f":"TEXT(Template!$B$9,\"mm/dd/yyy\")","v":"08/01/2024"},null,null,null,null,{"$f":"IF(Template!M700>0,Template!M700,-Template!N700)","v":0},null,null,null,{"$f":"VLOOKUP(G688,'Account mapping'!A:D,4,0)","v":{"$error":"#N/A"}}]
[{"$f":"LEFT(Template!A701,4)","v":""},{"$f":"VLOOKUP(A689,'Structure mapping'!K:V,7,0)","v":{"$error":"#N/A"}},{"$f":"LEFT(Template!B701,5)","v":""},{"$f":"VLOOKUP(C689,'Structure mapping'!F:J,5,0)","v":{"$error":"#N/A"}},{"$f":"LEFT(Template!C701,7)","v":""},{"$f":"VLOOKUP(E689,'Structure mapping'!A:E,5,0)","v":{"$error":"#N/A"}},{"$f":"LEFT(Template!D701,6)","v":""},{"$f":"VLOOKUP(G689,'Account mapping'!A:E,5,0)","v":{"$error":"#N/A"}},{"$f":"LEFT(Template!E701,2)","v":""},{"$f":"VLOOKUP(I689,'Structure mapping'!X:AB,5,0)","v":{"$error":"#N/A"}},{"$f":"LEFT(Template!F701,3)","v":""},{"$f":"VLOOKUP(K689,'Structure mapping'!AC:AG,5,0)","v":{"$error":"#N/A"}},{"$f":"LEFT(Template!G701,10)","v":""},{"$f":"VLOOKUP(M689,'Structure mapping'!AH:AL,5,0)","v":{"$error":"#N/A"}},{"$f":"LEFT(Template!H701,6)","v":""},{"$f":"VLOOKUP(O689,'Structure mapping'!AM:AQ,5,0)","v":{"$error":"#N/A"}},null,null,null,null,{"$f":"IF(Template!O701=\"\",\"\",Template!O701)","v":""},"Aug-24 pending entries",{"$f":"TEXT(Template!$B$9,\"mm/dd/yyy\")","v":"08/01/2024"},null,null,null,null,{"$f":"IF(Template!M701>0,Template!M701,-Template!N701)","v":0},null,null,null,{"$f":"VLOOKUP(G689,'Account mapping'!A:D,4,0)","v":{"$error":"#N/A"}}]
[{"$f":"LEFT(Template!A702,4)","v":""},{"$f":"VLOOKUP(A690,'Structure mapping'!K:V,7,0)","v":{"$error":"#N/A"}},{"$f":"LEFT(Template!B702,5)","v":""},{"$f":"VLOOKUP(C690,'Structure mapping'!F:J,5,0)","v":{"$error":"#N/A"}},{"$f":"LEFT(Template!C702,7)","v":""},{"$f":"VLOOKUP(E690,'Structure mapping'!A:E,5,0)","v":{"$error":"#N/A"}},{"$f":"LEFT(Template!D702,6)","v":""},{"$f":"VLOOKUP(G690,'Account mapping'!A:E,5,0)","v":{"$error":"#N/A"}},{"$f":"LEFT(Template!E702,2)","v":""},{"$f":"VLOOKUP(I690,'Structure mapping'!X:AB,5,0)","v":{"$error":"#N/A"}},{"$f":"LEFT(Template!F702,3)","v":""},{"$f":"VLOOKUP(K690,'Structure mapping'!AC:AG,5,0)","v":{"$error":"#N/A"}},{"$f":"LEFT(Template!G702,10)","v":""},{"$f":"VLOOKUP(M690,'Structure mapping'!AH:AL,5,0)","v":{"$error":"#N/A"}},{"$f":"LEFT(Template!H702,6)","v":""},{"$f":"VLOOKUP(O690,'Structure mapping'!AM:AQ,5,0)","v":{"$error":"#N/A"}},null,null,null,null,{"$f":"IF(Template!O702=\"\",\"\",Template!O702)","v":""},"Aug-24 pending entries",{"$f":"TEXT(Template!$B$9,\"mm/dd/yyy\")","v":"08/01/2024"},null,null,null,null,{"$f":"IF(Template!M702>0,Template!M702,-Template!N702)","v":0},null,null,null,{"$f":"VLOOKUP(G690,'Account mapping'!A:D,4,0)","v":{"$error":"#N/A"}}]
[{"$f":"LEFT(Template!A703,4)","v":""},{"$f":"VLOOKUP(A691,'Structure mapping'!K:V,7,0)","v":{"$error":"#N/A"}},{"$f":"LEFT(Template!B703,5)","v":""},{"$f":"VLOOKUP(C691,'Structure mapping'!F:J,5,0)","v":{"$error":"#N/A"}},{"$f":"LEFT(Template!C703,7)","v":""},{"$f":"VLOOKUP(E691,'Structure mapping'!A:E,5,0)","v":{"$error":"#N/A"}},{"$f":"LEFT(Template!D703,6)","v":""},{"$f":"VLOOKUP(G691,'Account mapping'!A:E,5,0)","v":{"$error":"#N/A"}},{"$f":"LEFT(Template!E703,2)","v":""},{"$f":"VLOOKUP(I691,'Structure mapping'!X:AB,5,0)","v":{"$error":"#N/A"}},{"$f":"LEFT(Template!F703,3)","v":""},{"$f":"VLOOKUP(K691,'Structure mapping'!AC:AG,5,0)","v":{"$error":"#N/A"}},{"$f":"LEFT(Template!G703,10)","v":""},{"$f":"VLOOKUP(M691,'Structure mapping'!AH:AL,5,0)","v":{"$error":"#N/A"}},{"$f":"LEFT(Template!H703,6)","v":""},{"$f":"VLOOKUP(O691,'Structure mapping'!AM:AQ,5,0)","v":{"$error":"#N/A"}},null,null,null,null,{"$f":"IF(Template!O703=\"\",\"\",Template!O703)","v":""},"Aug-24 pending entries",{"$f":"TEXT(Template!$B$9,\"mm/dd/yyy\")","v":"08/01/2024"},null,null,null,null,{"$f":"IF(Template!M703>0,Template!M703,-Template!N703)","v":0},null,null,null,{"$f":"VLOOKUP(G691,'Account mapping'!A:D,4,0)","v":{"$error":"#N/A"}}]
[{"$f":"LEFT(Template!A704,4)","v":""},{"$f":"VLOOKUP(A692,'Structure mapping'!K:V,7,0)","v":{"$error":"#N/A"}},{"$f":"LEFT(Template!B704,5)","v":""},{"$f":"VLOOKUP(C692,'Structure mapping'!F:J,5,0)","v":{"$error":"#N/A"}},{"$f":"LEFT(Template!C704,7)","v":""},{"$f":"VLOOKUP(E692,'Structure mapping'!A:E,5,0)","v":{"$error":"#N/A"}},{"$f":"LEFT(Template!D704,6)","v":""},{"$f":"VLOOKUP(G692,'Account mapping'!A:E,5,0)","v":{"$error":"#N/A"}},{"$f":"LEFT(Template!E704,2)","v":""},{"$f":"VLOOKUP(I692,'Structure mapping'!X:AB,5,0)","v":{"$error":"#N/A"}},{"$f":"LEFT(Template!F704,3)","v":""},{"$f":"VLOOKUP(K692,'Structure mapping'!AC:AG,5,0)","v":{"$error":"#N/A"}},{"$f":"LEFT(Template!G704,10)","v":""},{"$f":"VLOOKUP(M692,'Structure mapping'!AH:AL,5,0)","v":{"$error":"#N/A"}},{"$f":"LEFT(Template!H704,6)","v":""},{"$f":"VLOOKUP(O692,'Structure mapping'!AM:AQ,5,0)","v":{"$error":"#N/A"}},null,null,null,null,{"$f":"IF(Template!O704=\"\",\"\",Template!O704)","v":""},"Aug-24 pending entries",{"$f":"TEXT(Template!$B$9,\"mm/dd/yyy\")","v":"08/01/2024"},null,null,null,null,{"$f":"IF(Template!M704>0,Template!M704,-Template!N704)","v":0},null,null,null,{"$f":"VLOOKUP(G692,'Account mapping'!A:D,4,0)","v":{"$error":"#N/A"}}]
[{"$f":"LEFT(Template!A705,4)","v":""},{"$f":"VLOOKUP(A693,'Structure mapping'!K:V,7,0)","v":{"$error":"#N/A"}},{"$f":"LEFT(Template!B705,5)","v":""},{"$f":"VLOOKUP(C693,'Structure mapping'!F:J,5,0)","v":{"$error":"#N/A"}},{"$f":"LEFT(Template!C705,7)","v":""},{"$f":"VLOOKUP(E693,'Structure mapping'!A:E,5,0)","v":{"$error":"#N/A"}},{"$f":"LEFT(Template!D705,6)","v":""},{"$f":"VLOOKUP(G693,'Account mapping'!A:E,5,0)","v":{"$error":"#N/A"}},{"$f":"LEFT(Template!E705,2)","v":""},{"$f":"VLOOKUP(I693,'Structure mapping'!X:AB,5,0)","v":{"$error":"#N/A"}},{"$f":"LEFT(Template!F705,3)","v":""},{"$f":"VLOOKUP(K693,'Structure mapping'!AC:AG,5,0)","v":{"$error":"#N/A"}},{"$f":"LEFT(Template!G705,10)","v":""},{"$f":"VLOOKUP(M693,'Structure mapping'!AH:AL,5,0)","v":{"$error":"#N/A"}},{"$f":"LEFT(Template!H705,6)","v":""},{"$f":"VLOOKUP(O693,'Structure mapping'!AM:AQ,5,0)","v":{"$error":"#N/A"}},null,null,null,null,{"$f":"IF(Template!O705=\"\",\"\",Template!O705)","v":""},"Aug-24 pending entries",{"$f":"TEXT(Template!$B$9,\"mm/dd/yyy\")","v":"08/01/2024"},null,null,null,null,{"$f":"IF(Template!M705>0,Template!M705,-Template!N705)","v":0},null,null,null,{"$f":"VLOOKUP(G693,'Account mapping'!A:D,4,0)","v":{"$error":"#N/A"}}]
[{"$f":"LEFT(Template!A706,4)","v":""},{"$f":"VLOOKUP(A694,'Structure mapping'!K:V,7,0)","v":{"$error":"#N/A"}},{"$f":"LEFT(Template!B706,5)","v":""},{"$f":"VLOOKUP(C694,'Structure mapping'!F:J,5,0)","v":{"$error":"#N/A"}},{"$f":"LEFT(Template!C706,7)","v":""},{"$f":"VLOOKUP(E694,'Structure mapping'!A:E,5,0)","v":{"$error":"#N/A"}},{"$f":"LEFT(Template!D706,6)","v":""},{"$f":"VLOOKUP(G694,'Account mapping'!A:E,5,0)","v":{"$error":"#N/A"}},{"$f":"LEFT(Template!E706,2)","v":""},{"$f":"VLOOKUP(I694,'Structure mapping'!X:AB,5,0)","v":{"$error":"#N/A"}},{"$f":"LEFT(Template!F706,3)","v":""},{"$f":"VLOOKUP(K694,'Structure mapping'!AC:AG,5,0)","v":{"$error":"#N/A"}},{"$f":"LEFT(Template!G706,10)","v":""},{"$f":"VLOOKUP(M694,'Structure mapping'!AH:AL,5,0)","v":{"$error":"#N/A"}},{"$f":"LEFT(Template!H706,6)","v":""},{"$f":"VLOOKUP(O694,'Structure mapping'!AM:AQ,5,0)","v":{"$error":"#N/A"}},null,null,null,null,{"$f":"IF(Template!O706=\"\",\"\",Template!O706)","v":""},"Aug-24 pending entries",{"$f":"TEXT(Template!$B$9,\"mm/dd/yyy\")","v":"08/01/2024"},null,null,null,null,{"$f":"IF(Template!M706>0,Template!M706,-Template!N706)","v":0},null,null,null,{"$f":"VLOOKUP(G694,'Account mapping'!A:D,4,0)","v":{"$error":"#N/A"}}]
[{"$f":"LEFT(Template!A707,4)","v":""},{"$f":"VLOOKUP(A695,'Structure mapping'!K:V,7,0)","v":{"$error":"#N/A"}},{"$f":"LEFT(Template!B707,5)","v":""},{"$f":"VLOOKUP(C695,'Structure mapping'!F:J,5,0)","v":{"$error":"#N/A"}},{"$f":"LEFT(Template!C707,7)","v":""},{"$f":"VLOOKUP(E695,'Structure mapping'!A:E,5,0)","v":{"$error":"#N/A"}},{"$f":"LEFT(Template!D707,6)","v":""},{"$f":"VLOOKUP(G695,'Account mapping'!A:E,5,0)","v":{"$error":"#N/A"}},{"$f":"LEFT(Template!E707,2)","v":""},{"$f":"VLOOKUP(I695,'Structure mapping'!X:AB,5,0)","v":{"$error":"#N/A"}},{"$f":"LEFT(Template!F707,3)","v":""},{"$f":"VLOOKUP(K695,'Structure mapping'!AC:AG,5,0)","v":{"$error":"#N/A"}},{"$f":"LEFT(Template!G707,10)","v":""},{"$f":"VLOOKUP(M695,'Structure mapping'!AH:AL,5,0)","v":{"$error":"#N/A"}},{"$f":"LEFT(Template!H707,6)","v":""},{"$f":"VLOOKUP(O695,'Structure mapping'!AM:AQ,5,0)","v":{"$error":"#N/A"}},null,null,null,null,{"$f":"IF(Template!O707=\"\",\"\",Template!O707)","v":""},"Aug-24 pending entries",{"$f":"TEXT(Template!$B$9,\"mm/dd/yyy\")","v":"08/01/2024"},null,null,null,null,{"$f":"IF(Template!M707>0,Template!M707,-Template!N707)","v":0},null,null,null,{"$f":"VLOOKUP(G695,'Account mapping'!A:D,4,0)","v":{"$error":"#N/A"}}]
[{"$f":"LEFT(Template!A708,4)","v":""},{"$f":"VLOOKUP(A696,'Structure mapping'!K:V,7,0)","v":{"$error":"#N/A"}},{"$f":"LEFT(Template!B708,5)","v":""},{"$f":"VLOOKUP(C696,'Structure mapping'!F:J,5,0)","v":{"$error":"#N/A"}},{"$f":"LEFT(Template!C708,7)","v":""},{"$f":"VLOOKUP(E696,'Structure mapping'!A:E,5,0)","v":{"$error":"#N/A"}},{"$f":"LEFT(Template!D708,6)","v":""},{"$f":"VLOOKUP(G696,'Account mapping'!A:E,5,0)","v":{"$error":"#N/A"}},{"$f":"LEFT(Template!E708,2)","v":""},{"$f":"VLOOKUP(I696,'Structure mapping'!X:AB,5,0)","v":{"$error":"#N/A"}},{"$f":"LEFT(Template!F708,3)","v":""},{"$f":"VLOOKUP(K696,'Structure mapping'!AC:AG,5,0)","v":{"$error":"#N/A"}},{"$f":"LEFT(Template!G708,10)","v":""},{"$f":"VLOOKUP(M696,'Structure mapping'!AH:AL,5,0)","v":{"$error":"#N/A"}},{"$f":"LEFT(Template!H708,6)","v":""},{"$f":"VLOOKUP(O696,'Structure mapping'!AM:AQ,5,0)","v":{"$error":"#N/A"}},null,null,null,null,{"$f":"IF(Template!O708=\"\",\"\",Template!O708)","v":""},"Aug-24 pending entries",{"$f":"TEXT(Template!$B$9,\"mm/dd/yyy\")","v":"08/01/2024"},null,null,null,null,{"$f":"IF(Template!M708>0,Template!M708,-Template!N708)","v":0},null,null,null,{"$f":"VLOOKUP(G696,'Account mapping'!A:D,4,0)","v":{"$error":"#N/A"}}]
[{"$f":"LEFT(Template!A709,4)","v":""},{"$f":"VLOOKUP(A697,'Structure mapping'!K:V,7,0)","v":{"$error":"#N/A"}},{"$f":"LEFT(Template!B709,5)","v":""},{"$f":"VLOOKUP(C697,'Structure mapping'!F:J,5,0)","v":{"$error":"#N/A"}},{"$f":"LEFT(Template!C709,7)","v":""},{"$f":"VLOOKUP(E697,'Structure mapping'!A:E,5,0)","v":{"$error":"#N/A"}},{"$f":"LEFT(Template!D709,6)","v":""},{"$f":"VLOOKUP(G697,'Account mapping'!A:E,5,0)","v":{"$error":"#N/A"}},{"$f":"LEFT(Template!E709,2)","v":""},{"$f":"VLOOKUP(I697,'Structure mapping'!X:AB,5,0)","v":{"$error":"#N/A"}},{"$f":"LEFT(Template!F709,3)","v":""},{"$f":"VLOOKUP(K697,'Structure mapping'!AC:AG,5,0)","v":{"$error":"#N/A"}},{"$f":"LEFT(Template!G709,10)","v":""},{"$f":"VLOOKUP(M697,'Structure mapping'!AH:AL,5,0)","v":{"$error":"#N/A"}},{"$f":"LEFT(Template!H709,6)","v":""},{"$f":"VLOOKUP(O697,'Structure mapping'!AM:AQ,5,0)","v":{"$error":"#N/A"}},null,null,null,null,{"$f":"IF(Template!O709=\"\",\"\",Template!O709)","v":""},"Aug-24 pending entries",{"$f":"TEXT(Template!$B$9,\"mm/dd/yyy\")","v":"08/01/2024"},null,null,null,null,{"$f":"IF(Template!M709>0,Template!M709,-Template!N709)","v":0},null,null,null,{"$f":"VLOOKUP(G697,'Account mapping'!A:D,4,0)","v":{"$error":"#N/A"}}]
[{"$f":"LEFT(Template!A710,4)","v":""},{"$f":"VLOOKUP(A698,'Structure mapping'!K:V,7,0)","v":{"$error":"#N/A"}},{"$f":"LEFT(Template!B710,5)","v":""},{"$f":"VLOOKUP(C698,'Structure mapping'!F:J,5,0)","v":{"$error":"#N/A"}},{"$f":"LEFT(Template!C710,7)","v":""},{"$f":"VLOOKUP(E698,'Structure mapping'!A:E,5,0)","v":{"$error":"#N/A"}},{"$f":"LEFT(Template!D710,6)","v":""},{"$f":"VLOOKUP(G698,'Account mapping'!A:E,5,0)","v":{"$error":"#N/A"}},{"$f":"LEFT(Template!E710,2)","v":""},{"$f":"VLOOKUP(I698,'Structure mapping'!X:AB,5,0)","v":{"$error":"#N/A"}},{"$f":"LEFT(Template!F710,3)","v":""},{"$f":"VLOOKUP(K698,'Structure mapping'!AC:AG,5,0)","v":{"$error":"#N/A"}},{"$f":"LEFT(Template!G710,10)","v":""},{"$f":"VLOOKUP(M698,'Structure mapping'!AH:AL,5,0)","v":{"$error":"#N/A"}},{"$f":"LEFT(Template!H710,6)","v":""},{"$f":"VLOOKUP(O698,'Structure mapping'!AM:AQ,5,0)","v":{"$error":"#N/A"}},null,null,null,null,{"$f":"IF(Template!O710=\"\",\"\",Template!O710)","v":""},"Aug-24 pending entries",{"$f":"TEXT(Template!$B$9,\"mm/dd/yyy\")","v":"08/01/2024"},null,null,null,null,{"$f":"IF(Template!M710>0,Template!M710,-Template!N710)","v":0},null,null,null,{"$f":"VLOOKUP(G698,'Account mapping'!A:D,4,0)","v":{"$error":"#N/A"}}]
[{"$f":"LEFT(Template!A711,4)","v":""},{"$f":"VLOOKUP(A699,'Structure mapping'!K:V,7,0)","v":{"$error":"#N/A"}},{"$f":"LEFT(Template!B711,5)","v":""},{"$f":"VLOOKUP(C699,'Structure mapping'!F:J,5,0)","v":{"$error":"#N/A"}},{"$f":"LEFT(Template!C711,7)","v":""},{"$f":"VLOOKUP(E699,'Structure mapping'!A:E,5,0)","v":{"$error":"#N/A"}},{"$f":"LEFT(Template!D711,6)","v":""},{"$f":"VLOOKUP(G699,'Account mapping'!A:E,5,0)","v":{"$error":"#N/A"}},{"$f":"LEFT(Template!E711,2)","v":""},{"$f":"VLOOKUP(I699,'Structure mapping'!X:AB,5,0)","v":{"$error":"#N/A"}},{"$f":"LEFT(Template!F711,3)","v":""},{"$f":"VLOOKUP(K699,'Structure mapping'!AC:AG,5,0)","v":{"$error":"#N/A"}},{"$f":"LEFT(Template!G711,10)","v":""},{"$f":"VLOOKUP(M699,'Structure mapping'!AH:AL,5,0)","v":{"$error":"#N/A"}},{"$f":"LEFT(Template!H711,6)","v":""},{"$f":"VLOOKUP(O699,'Structure mapping'!AM:AQ,5,0)","v":{"$error":"#N/A"}},null,null,null,null,{"$f":"IF(Template!O711=\"\",\"\",Template!O711)","v":""},"Aug-24 pending entries",{"$f":"TEXT(Template!$B$9,\"mm/dd/yyy\")","v":"08/01/2024"},null,null,null,null,{"$f":"IF(Template!M711>0,Template!M711,-Template!N711)","v":0},null,null,null,{"$f":"VLOOKUP(G699,'Account mapping'!A:D,4,0)","v":{"$error":"#N/A"}}]
[{"$f":"LEFT(Template!A712,4)","v":""},{"$f":"VLOOKUP(A700,'Structure mapping'!K:V,7,0)","v":{"$error":"#N/A"}},{"$f":"LEFT(Template!B712,5)","v":""},{"$f":"VLOOKUP(C700,'Structure mapping'!F:J,5,0)","v":{"$error":"#N/A"}},{"$f":"LEFT(Template!C712,7)","v":""},{"$f":"VLOOKUP(E700,'Structure mapping'!A:E,5,0)","v":{"$error":"#N/A"}},{"$f":"LEFT(Template!D712,6)","v":""},{"$f":"VLOOKUP(G700,'Account mapping'!A:E,5,0)","v":{"$error":"#N/A"}},{"$f":"LEFT(Template!E712,2)","v":""},{"$f":"VLOOKUP(I700,'Structure mapping'!X:AB,5,0)","v":{"$error":"#N/A"}},{"$f":"LEFT(Template!F712,3)","v":""},{"$f":"VLOOKUP(K700,'Structure mapping'!AC:AG,5,0)","v":{"$error":"#N/A"}},{"$f":"LEFT(Template!G712,10)","v":""},{"$f":"VLOOKUP(M700,'Structure mapping'!AH:AL,5,0)","v":{"$error":"#N/A"}},{"$f":"LEFT(Template!H712,6)","v":""},{"$f":"VLOOKUP(O700,'Structure mapping'!AM:AQ,5,0)","v":{"$error":"#N/A"}},null,null,null,null,{"$f":"IF(Template!O712=\"\",\"\",Template!O712)","v":""},"Aug-24 pending entries",{"$f":"TEXT(Template!$B$9,\"mm/dd/yyy\")","v":"08/01/2024"},null,null,null,null,{"$f":"IF(Template!M712>0,Template!M712,-Template!N712)","v":0},null,null,null,{"$f":"VLOOKUP(G700,'Account mapping'!A:D,4,0)","v":{"$error":"#N/A"}}]
[{"$f":"LEFT(Template!A713,4)","v":""},{"$f":"VLOOKUP(A701,'Structure mapping'!K:V,7,0)","v":{"$error":"#N/A"}},{"$f":"LEFT(Template!B713,5)","v":""},{"$f":"VLOOKUP(C701,'Structure mapping'!F:J,5,0)","v":{"$error":"#N/A"}},{"$f":"LEFT(Template!C713,7)","v":""},{"$f":"VLOOKUP(E701,'Structure mapping'!A:E,5,0)","v":{"$error":"#N/A"}},{"$f":"LEFT(Template!D713,6)","v":""},{"$f":"VLOOKUP(G701,'Account mapping'!A:E,5,0)","v":{"$error":"#N/A"}},{"$f":"LEFT(Template!E713,2)","v":""},{"$f":"VLOOKUP(I701,'Structure mapping'!X:AB,5,0)","v":{"$error":"#N/A"}},{"$f":"LEFT(Template!F713,3)","v":""},{"$f":"VLOOKUP(K701,'Structure mapping'!AC:AG,5,0)","v":{"$error":"#N/A"}},{"$f":"LEFT(Template!G713,10)","v":""},{"$f":"VLOOKUP(M701,'Structure mapping'!AH:AL,5,0)","v":{"$error":"#N/A"}},{"$f":"LEFT(Template!H713,6)","v":""},{"$f":"VLOOKUP(O701,'Structure mapping'!AM:AQ,5,0)","v":{"$error":"#N/A"}},null,null,null,null,{"$f":"IF(Template!O713=\"\",\"\",Template!O713)","v":""},"Aug-24 pending entries",{"$f":"TEXT(Template!$B$9,\"mm/dd/yyy\")","v":"08/01/2024"},null,null,null,null,{"$f":"IF(Template!M713>0,Template!M713,-Template!N713)","v":0},null,null,null,{"$f":"VLOOKUP(G701,'Account mapping'!A:D,4,0)","v":{"$error":"#N/A"}}]
[{"$f":"LEFT(Template!A714,4)","v":""},{"$f":"VLOOKUP(A702,'Structure mapping'!K:V,7,0)","v":{"$error":"#N/A"}},{"$f":"LEFT(Template!B714,5)","v":""},{"$f":"VLOOKUP(C702,'Structure mapping'!F:J,5,0)","v":{"$error":"#N/A"}},{"$f":"LEFT(Template!C714,7)","v":""},{"$f":"VLOOKUP(E702,'Structure mapping'!A:E,5,0)","v":{"$error":"#N/A"}},{"$f":"LEFT(Template!D714,6)","v":""},{"$f":"VLOOKUP(G702,'Account mapping'!A:E,5,0)","v":{"$error":"#N/A"}},{"$f":"LEFT(Template!E714,2)","v":""},{"$f":"VLOOKUP(I702,'Structure mapping'!X:AB,5,0)","v":{"$error":"#N/A"}},{"$f":"LEFT(Template!F714,3)","v":""},{"$f":"VLOOKUP(K702,'Structure mapping'!AC:AG,5,0)","v":{"$error":"#N/A"}},{"$f":"LEFT(Template!G714,10)","v":""},{"$f":"VLOOKUP(M702,'Structure mapping'!AH:AL,5,0)","v":{"$error":"#N/A"}},{"$f":"LEFT(Template!H714,6)","v":""},{"$f":"VLOOKUP(O702,'Structure mapping'!AM:AQ,5,0)","v":{"$error":"#N/A"}},null,null,null,null,{"$f":"IF(Template!O714=\"\",\"\",Template!O714)","v":""},"Aug-24 pending entries",{"$f":"TEXT(Template!$B$9,\"mm/dd/yyy\")","v":"08/01/2024"},null,null,null,null,{"$f":"IF(Template!M714>0,Template!M714,-Template!N714)","v":0},null,null,null,{"$f":"VLOOKUP(G702,'Account mapping'!A:D,4,0)","v":{"$error":"#N/A"}}]
[{"$f":"LEFT(Template!A715,4)","v":""},{"$f":"VLOOKUP(A703,'Structure mapping'!K:V,7,0)","v":{"$error":"#N/A"}},{"$f":"LEFT(Template!B715,5)","v":""},{"$f":"VLOOKUP(C703,'Structure mapping'!F:J,5,0)","v":{"$error":"#N/A"}},{"$f":"LEFT(Template!C715,7)","v":""},{"$f":"VLOOKUP(E703,'Structure mapping'!A:E,5,0)","v":{"$error":"#N/A"}},{"$f":"LEFT(Template!D715,6)","v":""},{"$f":"VLOOKUP(G703,'Account mapping'!A:E,5,0)","v":{"$error":"#N/A"}},{"$f":"LEFT(Template!E715,2)","v":""},{"$f":"VLOOKUP(I703,'Structure mapping'!X:AB,5,0)","v":{"$error":"#N/A"}},{"$f":"LEFT(Template!F715,3)","v":""},{"$f":"VLOOKUP(K703,'Structure mapping'!AC:AG,5,0)","v":{"$error":"#N/A"}},{"$f":"LEFT(Template!G715,10)","v":""},{"$f":"VLOOKUP(M703,'Structure mapping'!AH:AL,5,0)","v":{"$error":"#N/A"}},{"$f":"LEFT(Template!H715,6)","v":""},{"$f":"VLOOKUP(O703,'Structure mapping'!AM:AQ,5,0)","v":{"$error":"#N/A"}},null,null,null,null,{"$f":"IF(Template!O715=\"\",\"\",Template!O715)","v":""},"Aug-24 pending entries",{"$f":"TEXT(Template!$B$9,\"mm/dd/yyy\")","v":"08/01/2024"},null,null,null,null,{"$f":"IF(Template!M715>0,Template!M715,-Template!N715)","v":0},null,null,null,{"$f":"VLOOKUP(G703,'Account mapping'!A:D,4,0)","v":{"$error":"#N/A"}}]
[{"$f":"LEFT(Template!A716,4)","v":""},{"$f":"VLOOKUP(A704,'Structure mapping'!K:V,7,0)","v":{"$error":"#N/A"}},{"$f":"LEFT(Template!B716,5)","v":""},{"$f":"VLOOKUP(C704,'Structure mapping'!F:J,5,0)","v":{"$error":"#N/A"}},{"$f":"LEFT(Template!C716,7)","v":""},{"$f":"VLOOKUP(E704,'Structure mapping'!A:E,5,0)","v":{"$error":"#N/A"}},{"$f":"LEFT(Template!D716,6)","v":""},{"$f":"VLOOKUP(G704,'Account mapping'!A:E,5,0)","v":{"$error":"#N/A"}},{"$f":"LEFT(Template!E716,2)","v":""},{"$f":"VLOOKUP(I704,'Structure mapping'!X:AB,5,0)","v":{"$error":"#N/A"}},{"$f":"LEFT(Template!F716,3)","v":""},{"$f":"VLOOKUP(K704,'Structure mapping'!AC:AG,5,0)","v":{"$error":"#N/A"}},{"$f":"LEFT(Template!G716,10)","v":""},{"$f":"VLOOKUP(M704,'Structure mapping'!AH:AL,5,0)","v":{"$error":"#N/A"}},{"$f":"LEFT(Template!H716,6)","v":""},{"$f":"VLOOKUP(O704,'Structure mapping'!AM:AQ,5,0)","v":{"$error":"#N/A"}},null,null,null,null,{"$f":"IF(Template!O716=\"\",\"\",Template!O716)","v":""},"Aug-24 pending entries",{"$f":"TEXT(Template!$B$9,\"mm/dd/yyy\")","v":"08/01/2024"},null,null,null,null,{"$f":"IF(Template!M716>0,Template!M716,-Template!N716)","v":0},null,null,null,{"$f":"VLOOKUP(G704,'Account mapping'!A:D,4,0)","v":{"$error":"#N/A"}}]
[{"$f":"LEFT(Template!A717,4)","v":""},{"$f":"VLOOKUP(A705,'Structure mapping'!K:V,7,0)","v":{"$error":"#N/A"}},{"$f":"LEFT(Template!B717,5)","v":""},{"$f":"VLOOKUP(C705,'Structure mapping'!F:J,5,0)","v":{"$error":"#N/A"}},{"$f":"LEFT(Template!C717,7)","v":""},{"$f":"VLOOKUP(E705,'Structure mapping'!A:E,5,0)","v":{"$error":"#N/A"}},{"$f":"LEFT(Template!D717,6)","v":""},{"$f":"VLOOKUP(G705,'Account mapping'!A:E,5,0)","v":{"$error":"#N/A"}},{"$f":"LEFT(Template!E717,2)","v":""},{"$f":"VLOOKUP(I705,'Structure mapping'!X:AB,5,0)","v":{"$error":"#N/A"}},{"$f":"LEFT(Template!F717,3)","v":""},{"$f":"VLOOKUP(K705,'Structure mapping'!AC:AG,5,0)","v":{"$error":"#N/A"}},{"$f":"LEFT(Template!G717,10)","v":""},{"$f":"VLOOKUP(M705,'Structure mapping'!AH:AL,5,0)","v":{"$error":"#N/A"}},{"$f":"LEFT(Template!H717,6)","v":""},{"$f":"VLOOKUP(O705,'Structure mapping'!AM:AQ,5,0)","v":{"$error":"#N/A"}},null,null,null,null,{"$f":"IF(Template!O717=\"\",\"\",Template!O717)","v":""},"Aug-24 pending entries",{"$f":"TEXT(Template!$B$9,\"mm/dd/yyy\")","v":"08/01/2024"},null,null,null,null,{"$f":"IF(Template!M717>0,Template!M717,-Template!N717)","v":0},null,null,null,{"$f":"VLOOKUP(G705,'Account mapping'!A:D,4,0)","v":{"$error":"#N/A"}}]
[{"$f":"LEFT(Template!A718,4)","v":""},{"$f":"VLOOKUP(A706,'Structure mapping'!K:V,7,0)","v":{"$error":"#N/A"}},{"$f":"LEFT(Template!B718,5)","v":""},{"$f":"VLOOKUP(C706,'Structure mapping'!F:J,5,0)","v":{"$error":"#N/A"}},{"$f":"LEFT(Template!C718,7)","v":""},{"$f":"VLOOKUP(E706,'Structure mapping'!A:E,5,0)","v":{"$error":"#N/A"}},{"$f":"LEFT(Template!D718,6)","v":""},{"$f":"VLOOKUP(G706,'Account mapping'!A:E,5,0)","v":{"$error":"#N/A"}},{"$f":"LEFT(Template!E718,2)","v":""},{"$f":"VLOOKUP(I706,'Structure mapping'!X:AB,5,0)","v":{"$error":"#N/A"}},{"$f":"LEFT(Template!F718,3)","v":""},{"$f":"VLOOKUP(K706,'Structure mapping'!AC:AG,5,0)","v":{"$error":"#N/A"}},{"$f":"LEFT(Template!G718,10)","v":""},{"$f":"VLOOKUP(M706,'Structure mapping'!AH:AL,5,0)","v":{"$error":"#N/A"}},{"$f":"LEFT(Template!H718,6)","v":""},{"$f":"VLOOKUP(O706,'Structure mapping'!AM:AQ,5,0)","v":{"$error":"#N/A"}},null,null,null,null,{"$f":"IF(Template!O718=\"\",\"\",Template!O718)","v":""},"Aug-24 pending entries",{"$f":"TEXT(Template!$B$9,\"mm/dd/yyy\")","v":"08/01/2024"},null,null,null,null,{"$f":"IF(Template!M718>0,Template!M718,-Template!N718)","v":0},null,null,null,{"$f":"VLOOKUP(G706,'Account mapping'!A:D,4,0)","v":{"$error":"#N/A"}}]
[{"$f":"LEFT(Template!A719,4)","v":""},{"$f":"VLOOKUP(A707,'Structure mapping'!K:V,7,0)","v":{"$error":"#N/A"}},{"$f":"LEFT(Template!B719,5)","v":""},{"$f":"VLOOKUP(C707,'Structure mapping'!F:J,5,0)","v":{"$error":"#N/A"}},{"$f":"LEFT(Template!C719,7)","v":""},{"$f":"VLOOKUP(E707,'Structure mapping'!A:E,5,0)","v":{"$error":"#N/A"}},{"$f":"LEFT(Template!D719,6)","v":""},{"$f":"VLOOKUP(G707,'Account mapping'!A:E,5,0)","v":{"$error":"#N/A"}},{"$f":"LEFT(Template!E719,2)","v":""},{"$f":"VLOOKUP(I707,'Structure mapping'!X:AB,5,0)","v":{"$error":"#N/A"}},{"$f":"LEFT(Template!F719,3)","v":""},{"$f":"VLOOKUP(K707,'Structure mapping'!AC:AG,5,0)","v":{"$error":"#N/A"}},{"$f":"LEFT(Template!G719,10)","v":""},{"$f":"VLOOKUP(M707,'Structure mapping'!AH:AL,5,0)","v":{"$error":"#N/A"}},{"$f":"LEFT(Template!H719,6)","v":""},{"$f":"VLOOKUP(O707,'Structure mapping'!AM:AQ,5,0)","v":{"$error":"#N/A"}},null,null,null,null,{"$f":"IF(Template!O719=\"\",\"\",Template!O719)","v":""},{"$f":"TEXT(W707,\"mmm-yy\")&\" pending entries\"","v":"Aug-24 pending entries"},{"$f":"TEXT(Template!$B$9,\"mm/dd/yyy\")","v":"08/01/2024"},null,null,null,null,{"$f":"IF(Template!M719>0,Template!M719,-Template!N719)","v":0},null,null,null,{"$f":"VLOOKUP(G707,'Account mapping'!A:D,4,0)","v":{"$error":"#N/A"}}]
[{"$f":"LEFT(Template!A720,4)","v":""},{"$f":"VLOOKUP(A708,'Structure mapping'!K:V,7,0)","v":{"$error":"#N/A"}},{"$f":"LEFT(Template!B720,5)","v":""},{"$f":"VLOOKUP(C708,'Structure mapping'!F:J,5,0)","v":{"$error":"#N/A"}},{"$f":"LEFT(Template!C720,7)","v":""},{"$f":"VLOOKUP(E708,'Structure mapping'!A:E,5,0)","v":{"$error":"#N/A"}},{"$f":"LEFT(Template!D720,6)","v":""},{"$f":"VLOOKUP(G708,'Account mapping'!A:E,5,0)","v":{"$error":"#N/A"}},{"$f":"LEFT(Template!E720,2)","v":""},{"$f":"VLOOKUP(I708,'Structure mapping'!X:AB,5,0)","v":{"$error":"#N/A"}},{"$f":"LEFT(Template!F720,3)","v":""},{"$f":"VLOOKUP(K708,'Structure mapping'!AC:AG,5,0)","v":{"$error":"#N/A"}},{"$f":"LEFT(Template!G720,10)","v":""},{"$f":"VLOOKUP(M708,'Structure mapping'!AH:AL,5,0)","v":{"$error":"#N/A"}},{"$f":"LEFT(Template!H720,6)","v":""},{"$f":"VLOOKUP(O708,'Structure mapping'!AM:AQ,5,0)","v":{"$error":"#N/A"}},null,null,null,null,{"$f":"IF(Template!O720=\"\",\"\",Template!O720)","v":""},"Aug-24 pending entries",{"$f":"TEXT(Template!$B$9,\"mm/dd/yyy\")","v":"08/01/2024"},null,null,null,null,{"$f":"IF(Template!M720>0,Template!M720,-Template!N720)","v":0},null,null,null,{"$f":"VLOOKUP(G708,'Account mapping'!A:D,4,0)","v":{"$error":"#N/A"}}]
[{"$f":"LEFT(Template!A721,4)","v":""},{"$f":"VLOOKUP(A709,'Structure mapping'!K:V,7,0)","v":{"$error":"#N/A"}},{"$f":"LEFT(Template!B721,5)","v":""},{"$f":"VLOOKUP(C709,'Structure mapping'!F:J,5,0)","v":{"$error":"#N/A"}},{"$f":"LEFT(Template!C721,7)","v":""},{"$f":"VLOOKUP(E709,'Structure mapping'!A:E,5,0)","v":{"$error":"#N/A"}},{"$f":"LEFT(Template!D721,6)","v":""},{"$f":"VLOOKUP(G709,'Account mapping'!A:E,5,0)","v":{"$error":"#N/A"}},{"$f":"LEFT(Template!E721,2)","v":""},{"$f":"VLOOKUP(I709,'Structure mapping'!X:AB,5,0)","v":{"$error":"#N/A"}},{"$f":"LEFT(Template!F721,3)","v":""},{"$f":"VLOOKUP(K709,'Structure mapping'!AC:AG,5,0)","v":{"$error":"#N/A"}},{"$f":"LEFT(Template!G721,10)","v":""},{"$f":"VLOOKUP(M709,'Structure mapping'!AH:AL,5,0)","v":{"$error":"#N/A"}},{"$f":"LEFT(Template!H721,6)","v":""},{"$f":"VLOOKUP(O709,'Structure mapping'!AM:AQ,5,0)","v":{"$error":"#N/A"}},null,null,null,null,{"$f":"IF(Template!O721=\"\",\"\",Template!O721)","v":""},"Aug-24 pending entries",{"$f":"TEXT(Template!$B$9,\"mm/dd/yyy\")","v":"08/01/2024"},null,null,null,null,{"$f":"IF(Template!M721>0,Template!M721,-Template!N721)","v":0},null,null,null,{"$f":"VLOOKUP(G709,'Account mapping'!A:D,4,0)","v":{"$error":"#N/A"}}]
[{"$f":"LEFT(Template!A722,4)","v":""},{"$f":"VLOOKUP(A710,'Structure mapping'!K:V,7,0)","v":{"$error":"#N/A"}},{"$f":"LEFT(Template!B722,5)","v":""},{"$f":"VLOOKUP(C710,'Structure mapping'!F:J,5,0)","v":{"$error":"#N/A"}},{"$f":"LEFT(Template!C722,7)","v":""},{"$f":"VLOOKUP(E710,'Structure mapping'!A:E,5,0)","v":{"$error":"#N/A"}},{"$f":"LEFT(Template!D722,6)","v":""},{"$f":"VLOOKUP(G710,'Account mapping'!A:E,5,0)","v":{"$error":"#N/A"}},{"$f":"LEFT(Template!E722,2)","v":""},{"$f":"VLOOKUP(I710,'Structure mapping'!X:AB,5,0)","v":{"$error":"#N/A"}},{"$f":"LEFT(Template!F722,3)","v":""},{"$f":"VLOOKUP(K710,'Structure mapping'!AC:AG,5,0)","v":{"$error":"#N/A"}},{"$f":"LEFT(Template!G722,10)","v":""},{"$f":"VLOOKUP(M710,'Structure mapping'!AH:AL,5,0)","v":{"$error":"#N/A"}},{"$f":"LEFT(Template!H722,6)","v":""},{"$f":"VLOOKUP(O710,'Structure mapping'!AM:AQ,5,0)","v":{"$error":"#N/A"}},null,null,null,null,{"$f":"IF(Template!O722=\"\",\"\",Template!O722)","v":""},"Aug-24 pending entries",{"$f":"TEXT(Template!$B$9,\"mm/dd/yyy\")","v":"08/01/2024"},null,null,null,null,{"$f":"IF(Template!M722>0,Template!M722,-Template!N722)","v":0},null,null,null,{"$f":"VLOOKUP(G710,'Account mapping'!A:D,4,0)","v":{"$error":"#N/A"}}]
[{"$f":"LEFT(Template!A723,4)","v":""},{"$f":"VLOOKUP(A711,'Structure mapping'!K:V,7,0)","v":{"$error":"#N/A"}},{"$f":"LEFT(Template!B723,5)","v":""},{"$f":"VLOOKUP(C711,'Structure mapping'!F:J,5,0)","v":{"$error":"#N/A"}},{"$f":"LEFT(Template!C723,7)","v":""},{"$f":"VLOOKUP(E711,'Structure mapping'!A:E,5,0)","v":{"$error":"#N/A"}},{"$f":"LEFT(Template!D723,6)","v":""},{"$f":"VLOOKUP(G711,'Account mapping'!A:E,5,0)","v":{"$error":"#N/A"}},{"$f":"LEFT(Template!E723,2)","v":""},{"$f":"VLOOKUP(I711,'Structure mapping'!X:AB,5,0)","v":{"$error":"#N/A"}},{"$f":"LEFT(Template!F723,3)","v":""},{"$f":"VLOOKUP(K711,'Structure mapping'!AC:AG,5,0)","v":{"$error":"#N/A"}},{"$f":"LEFT(Template!G723,10)","v":""},{"$f":"VLOOKUP(M711,'Structure mapping'!AH:AL,5,0)","v":{"$error":"#N/A"}},{"$f":"LEFT(Template!H723,6)","v":""},{"$f":"VLOOKUP(O711,'Structure mapping'!AM:AQ,5,0)","v":{"$error":"#N/A"}},null,null,null,null,{"$f":"IF(Template!O723=\"\",\"\",Template!O723)","v":""},"Aug-24 pending entries",{"$f":"TEXT(Template!$B$9,\"mm/dd/yyy\")","v":"08/01/2024"},null,null,null,null,{"$f":"IF(Template!M723>0,Template!M723,-Template!N723)","v":0},null,null,null,{"$f":"VLOOKUP(G711,'Account mapping'!A:D,4,0)","v":{"$error":"#N/A"}}]
[{"$f":"LEFT(Template!A724,4)","v":""},{"$f":"VLOOKUP(A712,'Structure mapping'!K:V,7,0)","v":{"$error":"#N/A"}},{"$f":"LEFT(Template!B724,5)","v":""},{"$f":"VLOOKUP(C712,'Structure mapping'!F:J,5,0)","v":{"$error":"#N/A"}},{"$f":"LEFT(Template!C724,7)","v":""},{"$f":"VLOOKUP(E712,'Structure mapping'!A:E,5,0)","v":{"$error":"#N/A"}},{"$f":"LEFT(Template!D724,6)","v":""},{"$f":"VLOOKUP(G712,'Account mapping'!A:E,5,0)","v":{"$error":"#N/A"}},{"$f":"LEFT(Template!E724,2)","v":""},{"$f":"VLOOKUP(I712,'Structure mapping'!X:AB,5,0)","v":{"$error":"#N/A"}},{"$f":"LEFT(Template!F724,3)","v":""},{"$f":"VLOOKUP(K712,'Structure mapping'!AC:AG,5,0)","v":{"$error":"#N/A"}},{"$f":"LEFT(Template!G724,10)","v":""},{"$f":"VLOOKUP(M712,'Structure mapping'!AH:AL,5,0)","v":{"$error":"#N/A"}},{"$f":"LEFT(Template!H724,6)","v":""},{"$f":"VLOOKUP(O712,'Structure mapping'!AM:AQ,5,0)","v":{"$error":"#N/A"}},null,null,null,null,{"$f":"IF(Template!O724=\"\",\"\",Template!O724)","v":""},"Aug-24 pending entries",{"$f":"TEXT(Template!$B$9,\"mm/dd/yyy\")","v":"08/01/2024"},null,null,null,null,{"$f":"IF(Template!M724>0,Template!M724,-Template!N724)","v":0},null,null,null,{"$f":"VLOOKUP(G712,'Account mapping'!A:D,4,0)","v":{"$error":"#N/A"}}]
[{"$f":"LEFT(Template!A725,4)","v":""},{"$f":"VLOOKUP(A713,'Structure mapping'!K:V,7,0)","v":{"$error":"#N/A"}},{"$f":"LEFT(Template!B725,5)","v":""},{"$f":"VLOOKUP(C713,'Structure mapping'!F:J,5,0)","v":{"$error":"#N/A"}},{"$f":"LEFT(Template!C725,7)","v":""},{"$f":"VLOOKUP(E713,'Structure mapping'!A:E,5,0)","v":{"$error":"#N/A"}},{"$f":"LEFT(Template!D725,6)","v":""},{"$f":"VLOOKUP(G713,'Account mapping'!A:E,5,0)","v":{"$error":"#N/A"}},{"$f":"LEFT(Template!E725,2)","v":""},{"$f":"VLOOKUP(I713,'Structure mapping'!X:AB,5,0)","v":{"$error":"#N/A"}},{"$f":"LEFT(Template!F725,3)","v":""},{"$f":"VLOOKUP(K713,'Structure mapping'!AC:AG,5,0)","v":{"$error":"#N/A"}},{"$f":"LEFT(Template!G725,10)","v":""},{"$f":"VLOOKUP(M713,'Structure mapping'!AH:AL,5,0)","v":{"$error":"#N/A"}},{"$f":"LEFT(Template!H725,6)","v":""},{"$f":"VLOOKUP(O713,'Structure mapping'!AM:AQ,5,0)","v":{"$error":"#N/A"}},null,null,null,null,{"$f":"IF(Template!O725=\"\",\"\",Template!O725)","v":""},"Aug-24 pending entries",{"$f":"TEXT(Template!$B$9,\"mm/dd/yyy\")","v":"08/01/2024"},null,null,null,null,{"$f":"IF(Template!M725>0,Template!M725,-Template!N725)","v":0},null,null,null,{"$f":"VLOOKUP(G713,'Account mapping'!A:D,4,0)","v":{"$error":"#N/A"}}]
[{"$f":"LEFT(Template!A726,4)","v":""},{"$f":"VLOOKUP(A714,'Structure mapping'!K:V,7,0)","v":{"$error":"#N/A"}},{"$f":"LEFT(Template!B726,5)","v":""},{"$f":"VLOOKUP(C714,'Structure mapping'!F:J,5,0)","v":{"$error":"#N/A"}},{"$f":"LEFT(Template!C726,7)","v":""},{"$f":"VLOOKUP(E714,'Structure mapping'!A:E,5,0)","v":{"$error":"#N/A"}},{"$f":"LEFT(Template!D726,6)","v":""},{"$f":"VLOOKUP(G714,'Account mapping'!A:E,5,0)","v":{"$error":"#N/A"}},{"$f":"LEFT(Template!E726,2)","v":""},{"$f":"VLOOKUP(I714,'Structure mapping'!X:AB,5,0)","v":{"$error":"#N/A"}},{"$f":"LEFT(Template!F726,3)","v":""},{"$f":"VLOOKUP(K714,'Structure mapping'!AC:AG,5,0)","v":{"$error":"#N/A"}},{"$f":"LEFT(Template!G726,10)","v":""},{"$f":"VLOOKUP(M714,'Structure mapping'!AH:AL,5,0)","v":{"$error":"#N/A"}},{"$f":"LEFT(Template!H726,6)","v":""},{"$f":"VLOOKUP(O714,'Structure mapping'!AM:AQ,5,0)","v":{"$error":"#N/A"}},null,null,null,null,{"$f":"IF(Template!O726=\"\",\"\",Template!O726)","v":""},"Aug-24 pending entries",{"$f":"TEXT(Template!$B$9,\"mm/dd/yyy\")","v":"08/01/2024"},null,null,null,null,{"$f":"IF(Template!M726>0,Template!M726,-Template!N726)","v":0},null,null,null,{"$f":"VLOOKUP(G714,'Account mapping'!A:D,4,0)","v":{"$error":"#N/A"}}]
[{"$f":"LEFT(Template!A727,4)","v":""},{"$f":"VLOOKUP(A715,'Structure mapping'!K:V,7,0)","v":{"$error":"#N/A"}},{"$f":"LEFT(Template!B727,5)","v":""},{"$f":"VLOOKUP(C715,'Structure mapping'!F:J,5,0)","v":{"$error":"#N/A"}},{"$f":"LEFT(Template!C727,7)","v":""},{"$f":"VLOOKUP(E715,'Structure mapping'!A:E,5,0)","v":{"$error":"#N/A"}},{"$f":"LEFT(Template!D727,6)","v":""},{"$f":"VLOOKUP(G715,'Account mapping'!A:E,5,0)","v":{"$error":"#N/A"}},{"$f":"LEFT(Template!E727,2)","v":""},{"$f":"VLOOKUP(I715,'Structure mapping'!X:AB,5,0)","v":{"$error":"#N/A"}},{"$f":"LEFT(Template!F727,3)","v":""},{"$f":"VLOOKUP(K715,'Structure mapping'!AC:AG,5,0)","v":{"$error":"#N/A"}},{"$f":"LEFT(Template!G727,10)","v":""},{"$f":"VLOOKUP(M715,'Structure mapping'!AH:AL,5,0)","v":{"$error":"#N/A"}},{"$f":"LEFT(Template!H727,6)","v":""},{"$f":"VLOOKUP(O715,'Structure mapping'!AM:AQ,5,0)","v":{"$error":"#N/A"}},null,null,null,null,{"$f":"IF(Template!O727=\"\",\"\",Template!O727)","v":""},"Aug-24 pending entries",{"$f":"TEXT(Template!$B$9,\"mm/dd/yyy\")","v":"08/01/2024"},null,null,null,null,{"$f":"IF(Template!M727>0,Template!M727,-Template!N727)","v":0},null,null,null,{"$f":"VLOOKUP(G715,'Account mapping'!A:D,4,0)","v":{"$error":"#N/A"}}]
[{"$f":"LEFT(Template!A728,4)","v":""},{"$f":"VLOOKUP(A716,'Structure mapping'!K:V,7,0)","v":{"$error":"#N/A"}},{"$f":"LEFT(Template!B728,5)","v":""},{"$f":"VLOOKUP(C716,'Structure mapping'!F:J,5,0)","v":{"$error":"#N/A"}},{"$f":"LEFT(Template!C728,7)","v":""},{"$f":"VLOOKUP(E716,'Structure mapping'!A:E,5,0)","v":{"$error":"#N/A"}},{"$f":"LEFT(Template!D728,6)","v":""},{"$f":"VLOOKUP(G716,'Account mapping'!A:E,5,0)","v":{"$error":"#N/A"}},{"$f":"LEFT(Template!E728,2)","v":""},{"$f":"VLOOKUP(I716,'Structure mapping'!X:AB,5,0)","v":{"$error":"#N/A"}},{"$f":"LEFT(Template!F728,3)","v":""},{"$f":"VLOOKUP(K716,'Structure mapping'!AC:AG,5,0)","v":{"$error":"#N/A"}},{"$f":"LEFT(Template!G728,10)","v":""},{"$f":"VLOOKUP(M716,'Structure mapping'!AH:AL,5,0)","v":{"$error":"#N/A"}},{"$f":"LEFT(Template!H728,6)","v":""},{"$f":"VLOOKUP(O716,'Structure mapping'!AM:AQ,5,0)","v":{"$error":"#N/A"}},null,null,null,null,{"$f":"IF(Template!O728=\"\",\"\",Template!O728)","v":""},"Aug-24 pending entries",{"$f":"TEXT(Template!$B$9,\"mm/dd/yyy\")","v":"08/01/2024"},null,null,null,null,{"$f":"IF(Template!M728>0,Template!M728,-Template!N728)","v":0},null,null,null,{"$f":"VLOOKUP(G716,'Account mapping'!A:D,4,0)","v":{"$error":"#N/A"}}]
[{"$f":"LEFT(Template!A729,4)","v":""},{"$f":"VLOOKUP(A717,'Structure mapping'!K:V,7,0)","v":{"$error":"#N/A"}},{"$f":"LEFT(Template!B729,5)","v":""},{"$f":"VLOOKUP(C717,'Structure mapping'!F:J,5,0)","v":{"$error":"#N/A"}},{"$f":"LEFT(Template!C729,7)","v":""},{"$f":"VLOOKUP(E717,'Structure mapping'!A:E,5,0)","v":{"$error":"#N/A"}},{"$f":"LEFT(Template!D729,6)","v":""},{"$f":"VLOOKUP(G717,'Account mapping'!A:E,5,0)","v":{"$error":"#N/A"}},{"$f":"LEFT(Template!E729,2)","v":""},{"$f":"VLOOKUP(I717,'Structure mapping'!X:AB,5,0)","v":{"$error":"#N/A"}},{"$f":"LEFT(Template!F729,3)","v":""},{"$f":"VLOOKUP(K717,'Structure mapping'!AC:AG,5,0)","v":{"$error":"#N/A"}},{"$f":"LEFT(Template!G729,10)","v":""},{"$f":"VLOOKUP(M717,'Structure mapping'!AH:AL,5,0)","v":{"$error":"#N/A"}},{"$f":"LEFT(Template!H729,6)","v":""},{"$f":"VLOOKUP(O717,'Structure mapping'!AM:AQ,5,0)","v":{"$error":"#N/A"}},null,null,null,null,{"$f":"IF(Template!O729=\"\",\"\",Template!O729)","v":""},"Aug-24 pending entries",{"$f":"TEXT(Template!$B$9,\"mm/dd/yyy\")","v":"08/01/2024"},null,null,null,null,{"$f":"IF(Template!M729>0,Template!M729,-Template!N729)","v":0},null,null,null,{"$f":"VLOOKUP(G717,'Account mapping'!A:D,4,0)","v":{"$error":"#N/A"}}]
[{"$f":"LEFT(Template!A730,4)","v":""},{"$f":"VLOOKUP(A718,'Structure mapping'!K:V,7,0)","v":{"$error":"#N/A"}},{"$f":"LEFT(Template!B730,5)","v":""},{"$f":"VLOOKUP(C718,'Structure mapping'!F:J,5,0)","v":{"$error":"#N/A"}},{"$f":"LEFT(Template!C730,7)","v":""},{"$f":"VLOOKUP(E718,'Structure mapping'!A:E,5,0)","v":{"$error":"#N/A"}},{"$f":"LEFT(Template!D730,6)","v":""},{"$f":"VLOOKUP(G718,'Account mapping'!A:E,5,0)","v":{"$error":"#N/A"}},{"$f":"LEFT(Template!E730,2)","v":""},{"$f":"VLOOKUP(I718,'Structure mapping'!X:AB,5,0)","v":{"$error":"#N/A"}},{"$f":"LEFT(Template!F730,3)","v":""},{"$f":"VLOOKUP(K718,'Structure mapping'!AC:AG,5,0)","v":{"$error":"#N/A"}},{"$f":"LEFT(Template!G730,10)","v":""},{"$f":"VLOOKUP(M718,'Structure mapping'!AH:AL,5,0)","v":{"$error":"#N/A"}},{"$f":"LEFT(Template!H730,6)","v":""},{"$f":"VLOOKUP(O718,'Structure mapping'!AM:AQ,5,0)","v":{"$error":"#N/A"}},null,null,null,null,{"$f":"IF(Template!O730=\"\",\"\",Template!O730)","v":""},"Aug-24 pending entries",{"$f":"TEXT(Template!$B$9,\"mm/dd/yyy\")","v":"08/01/2024"},null,null,null,null,{"$f":"IF(Template!M730>0,Template!M730,-Template!N730)","v":0},null,null,null,{"$f":"VLOOKUP(G718,'Account mapping'!A:D,4,0)","v":{"$error":"#N/A"}}]
[{"$f":"LEFT(Template!A731,4)","v":""},{"$f":"VLOOKUP(A719,'Structure mapping'!K:V,7,0)","v":{"$error":"#N/A"}},{"$f":"LEFT(Template!B731,5)","v":""},{"$f":"VLOOKUP(C719,'Structure mapping'!F:J,5,0)","v":{"$error":"#N/A"}},{"$f":"LEFT(Template!C731,7)","v":""},{"$f":"VLOOKUP(E719,'Structure mapping'!A:E,5,0)","v":{"$error":"#N/A"}},{"$f":"LEFT(Template!D731,6)","v":""},{"$f":"VLOOKUP(G719,'Account mapping'!A:E,5,0)","v":{"$error":"#N/A"}},{"$f":"LEFT(Template!E731,2)","v":""},{"$f":"VLOOKUP(I719,'Structure mapping'!X:AB,5,0)","v":{"$error":"#N/A"}},{"$f":"LEFT(Template!F731,3)","v":""},{"$f":"VLOOKUP(K719,'Structure mapping'!AC:AG,5,0)","v":{"$error":"#N/A"}},{"$f":"LEFT(Template!G731,10)","v":""},{"$f":"VLOOKUP(M719,'Structure mapping'!AH:AL,5,0)","v":{"$error":"#N/A"}},{"$f":"LEFT(Template!H731,6)","v":""},{"$f":"VLOOKUP(O719,'Structure mapping'!AM:AQ,5,0)","v":{"$error":"#N/A"}},null,null,null,null,{"$f":"IF(Template!O731=\"\",\"\",Template!O731)","v":""},"Aug-24 pending entries",{"$f":"TEXT(Template!$B$9,\"mm/dd/yyy\")","v":"08/01/2024"},null,null,null,null,{"$f":"IF(Template!M731>0,Template!M731,-Template!N731)","v":0},null,null,null,{"$f":"VLOOKUP(G719,'Account mapping'!A:D,4,0)","v":{"$error":"#N/A"}}]
[{"$f":"LEFT(Template!A732,4)","v":""},{"$f":"VLOOKUP(A720,'Structure mapping'!K:V,7,0)","v":{"$error":"#N/A"}},{"$f":"LEFT(Template!B732,5)","v":""},{"$f":"VLOOKUP(C720,'Structure mapping'!F:J,5,0)","v":{"$error":"#N/A"}},{"$f":"LEFT(Template!C732,7)","v":""},{"$f":"VLOOKUP(E720,'Structure mapping'!A:E,5,0)","v":{"$error":"#N/A"}},{"$f":"LEFT(Template!D732,6)","v":""},{"$f":"VLOOKUP(G720,'Account mapping'!A:E,5,0)","v":{"$error":"#N/A"}},{"$f":"LEFT(Template!E732,2)","v":""},{"$f":"VLOOKUP(I720,'Structure mapping'!X:AB,5,0)","v":{"$error":"#N/A"}},{"$f":"LEFT(Template!F732,3)","v":""},{"$f":"VLOOKUP(K720,'Structure mapping'!AC:AG,5,0)","v":{"$error":"#N/A"}},{"$f":"LEFT(Template!G732,10)","v":""},{"$f":"VLOOKUP(M720,'Structure mapping'!AH:AL,5,0)","v":{"$error":"#N/A"}},{"$f":"LEFT(Template!H732,6)","v":""},{"$f":"VLOOKUP(O720,'Structure mapping'!AM:AQ,5,0)","v":{"$error":"#N/A"}},null,null,null,null,{"$f":"IF(Template!O732=\"\",\"\",Template!O732)","v":""},"Aug-24 pending entries",{"$f":"TEXT(Template!$B$9,\"mm/dd/yyy\")","v":"08/01/2024"},null,null,null,null,{"$f":"IF(Template!M732>0,Template!M732,-Template!N732)","v":0},null,null,null,{"$f":"VLOOKUP(G720,'Account mapping'!A:D,4,0)","v":{"$error":"#N/A"}}]
[{"$f":"LEFT(Template!A733,4)","v":""},{"$f":"VLOOKUP(A721,'Structure mapping'!K:V,7,0)","v":{"$error":"#N/A"}},{"$f":"LEFT(Template!B733,5)","v":""},{"$f":"VLOOKUP(C721,'Structure mapping'!F:J,5,0)","v":{"$error":"#N/A"}},{"$f":"LEFT(Template!C733,7)","v":""},{"$f":"VLOOKUP(E721,'Structure mapping'!A:E,5,0)","v":{"$error":"#N/A"}},{"$f":"LEFT(Template!D733,6)","v":""},{"$f":"VLOOKUP(G721,'Account mapping'!A:E,5,0)","v":{"$error":"#N/A"}},{"$f":"LEFT(Template!E733,2)","v":""},{"$f":"VLOOKUP(I721,'Structure mapping'!X:AB,5,0)","v":{"$error":"#N/A"}},{"$f":"LEFT(Template!F733,3)","v":""},{"$f":"VLOOKUP(K721,'Structure mapping'!AC:AG,5,0)","v":{"$error":"#N/A"}},{"$f":"LEFT(Template!G733,10)","v":""},{"$f":"VLOOKUP(M721,'Structure mapping'!AH:AL,5,0)","v":{"$error":"#N/A"}},{"$f":"LEFT(Template!H733,6)","v":""},{"$f":"VLOOKUP(O721,'Structure mapping'!AM:AQ,5,0)","v":{"$error":"#N/A"}},null,null,null,null,{"$f":"IF(Template!O733=\"\",\"\",Template!O733)","v":""},"Aug-24 pending entries",{"$f":"TEXT(Template!$B$9,\"mm/dd/yyy\")","v":"08/01/2024"},null,null,null,null,{"$f":"IF(Template!M733>0,Template!M733,-Template!N733)","v":0},null,null,null,{"$f":"VLOOKUP(G721,'Account mapping'!A:D,4,0)","v":{"$error":"#N/A"}}]
[{"$f":"LEFT(Template!A734,4)","v":""},{"$f":"VLOOKUP(A722,'Structure mapping'!K:V,7,0)","v":{"$error":"#N/A"}},{"$f":"LEFT(Template!B734,5)","v":""},{"$f":"VLOOKUP(C722,'Structure mapping'!F:J,5,0)","v":{"$error":"#N/A"}},{"$f":"LEFT(Template!C734,7)","v":""},{"$f":"VLOOKUP(E722,'Structure mapping'!A:E,5,0)","v":{"$error":"#N/A"}},{"$f":"LEFT(Template!D734,6)","v":""},{"$f":"VLOOKUP(G722,'Account mapping'!A:E,5,0)","v":{"$error":"#N/A"}},{"$f":"LEFT(Template!E734,2)","v":""},{"$f":"VLOOKUP(I722,'Structure mapping'!X:AB,5,0)","v":{"$error":"#N/A"}},{"$f":"LEFT(Template!F734,3)","v":""},{"$f":"VLOOKUP(K722,'Structure mapping'!AC:AG,5,0)","v":{"$error":"#N/A"}},{"$f":"LEFT(Template!G734,10)","v":""},{"$f":"VLOOKUP(M722,'Structure mapping'!AH:AL,5,0)","v":{"$error":"#N/A"}},{"$f":"LEFT(Template!H734,6)","v":""},{"$f":"VLOOKUP(O722,'Structure mapping'!AM:AQ,5,0)","v":{"$error":"#N/A"}},null,null,null,null,{"$f":"IF(Template!O734=\"\",\"\",Template!O734)","v":""},"Aug-24 pending entries",{"$f":"TEXT(Template!$B$9,\"mm/dd/yyy\")","v":"08/01/2024"},null,null,null,null,{"$f":"IF(Template!M734>0,Template!M734,-Template!N734)","v":0},null,null,null,{"$f":"VLOOKUP(G722,'Account mapping'!A:D,4,0)","v":{"$error":"#N/A"}}]
[{"$f":"LEFT(Template!A735,4)","v":""},{"$f":"VLOOKUP(A723,'Structure mapping'!K:V,7,0)","v":{"$error":"#N/A"}},{"$f":"LEFT(Template!B735,5)","v":""},{"$f":"VLOOKUP(C723,'Structure mapping'!F:J,5,0)","v":{"$error":"#N/A"}},{"$f":"LEFT(Template!C735,7)","v":""},{"$f":"VLOOKUP(E723,'Structure mapping'!A:E,5,0)","v":{"$error":"#N/A"}},{"$f":"LEFT(Template!D735,6)","v":""},{"$f":"VLOOKUP(G723,'Account mapping'!A:E,5,0)","v":{"$error":"#N/A"}},{"$f":"LEFT(Template!E735,2)","v":""},{"$f":"VLOOKUP(I723,'Structure mapping'!X:AB,5,0)","v":{"$error":"#N/A"}},{"$f":"LEFT(Template!F735,3)","v":""},{"$f":"VLOOKUP(K723,'Structure mapping'!AC:AG,5,0)","v":{"$error":"#N/A"}},{"$f":"LEFT(Template!G735,10)","v":""},{"$f":"VLOOKUP(M723,'Structure mapping'!AH:AL,5,0)","v":{"$error":"#N/A"}},{"$f":"LEFT(Template!H735,6)","v":""},{"$f":"VLOOKUP(O723,'Structure mapping'!AM:AQ,5,0)","v":{"$error":"#N/A"}},null,null,null,null,{"$f":"IF(Template!O735=\"\",\"\",Template!O735)","v":""},"Aug-24 pending entries",{"$f":"TEXT(Template!$B$9,\"mm/dd/yyy\")","v":"08/01/2024"},null,null,null,null,{"$f":"IF(Template!M735>0,Template!M735,-Template!N735)","v":0},null,null,null,{"$f":"VLOOKUP(G723,'Account mapping'!A:D,4,0)","v":{"$error":"#N/A"}}]
[{"$f":"LEFT(Template!A736,4)","v":""},{"$f":"VLOOKUP(A724,'Structure mapping'!K:V,7,0)","v":{"$error":"#N/A"}},{"$f":"LEFT(Template!B736,5)","v":""},{"$f":"VLOOKUP(C724,'Structure mapping'!F:J,5,0)","v":{"$error":"#N/A"}},{"$f":"LEFT(Template!C736,7)","v":""},{"$f":"VLOOKUP(E724,'Structure mapping'!A:E,5,0)","v":{"$error":"#N/A"}},{"$f":"LEFT(Template!D736,6)","v":""},{"$f":"VLOOKUP(G724,'Account mapping'!A:E,5,0)","v":{"$error":"#N/A"}},{"$f":"LEFT(Template!E736,2)","v":""},{"$f":"VLOOKUP(I724,'Structure mapping'!X:AB,5,0)","v":{"$error":"#N/A"}},{"$f":"LEFT(Template!F736,3)","v":""},{"$f":"VLOOKUP(K724,'Structure mapping'!AC:AG,5,0)","v":{"$error":"#N/A"}},{"$f":"LEFT(Template!G736,10)","v":""},{"$f":"VLOOKUP(M724,'Structure mapping'!AH:AL,5,0)","v":{"$error":"#N/A"}},{"$f":"LEFT(Template!H736,6)","v":""},{"$f":"VLOOKUP(O724,'Structure mapping'!AM:AQ,5,0)","v":{"$error":"#N/A"}},null,null,null,null,{"$f":"IF(Template!O736=\"\",\"\",Template!O736)","v":""},"Aug-24 pending entries",{"$f":"TEXT(Template!$B$9,\"mm/dd/yyy\")","v":"08/01/2024"},null,null,null,null,{"$f":"IF(Template!M736>0,Template!M736,-Template!N736)","v":0},null,null,null,{"$f":"VLOOKUP(G724,'Account mapping'!A:D,4,0)","v":{"$error":"#N/A"}}]
[{"$f":"LEFT(Template!A737,4)","v":""},{"$f":"VLOOKUP(A725,'Structure mapping'!K:V,7,0)","v":{"$error":"#N/A"}},{"$f":"LEFT(Template!B737,5)","v":""},{"$f":"VLOOKUP(C725,'Structure mapping'!F:J,5,0)","v":{"$error":"#N/A"}},{"$f":"LEFT(Template!C737,7)","v":""},{"$f":"VLOOKUP(E725,'Structure mapping'!A:E,5,0)","v":{"$error":"#N/A"}},{"$f":"LEFT(Template!D737,6)","v":""},{"$f":"VLOOKUP(G725,'Account mapping'!A:E,5,0)","v":{"$error":"#N/A"}},{"$f":"LEFT(Template!E737,2)","v":""},{"$f":"VLOOKUP(I725,'Structure mapping'!X:AB,5,0)","v":{"$error":"#N/A"}},{"$f":"LEFT(Template!F737,3)","v":""},{"$f":"VLOOKUP(K725,'Structure mapping'!AC:AG,5,0)","v":{"$error":"#N/A"}},{"$f":"LEFT(Template!G737,10)","v":""},{"$f":"VLOOKUP(M725,'Structure mapping'!AH:AL,5,0)","v":{"$error":"#N/A"}},{"$f":"LEFT(Template!H737,6)","v":""},{"$f":"VLOOKUP(O725,'Structure mapping'!AM:AQ,5,0)","v":{"$error":"#N/A"}},null,null,null,null,{"$f":"IF(Template!O737=\"\",\"\",Template!O737)","v":""},"Aug-24 pending entries",{"$f":"TEXT(Template!$B$9,\"mm/dd/yyy\")","v":"08/01/2024"},null,null,null,null,{"$f":"IF(Template!M737>0,Template!M737,-Template!N737)","v":0},null,null,null,{"$f":"VLOOKUP(G725,'Account mapping'!A:D,4,0)","v":{"$error":"#N/A"}}]
[{"$f":"LEFT(Template!A738,4)","v":""},{"$f":"VLOOKUP(A726,'Structure mapping'!K:V,7,0)","v":{"$error":"#N/A"}},{"$f":"LEFT(Template!B738,5)","v":""},{"$f":"VLOOKUP(C726,'Structure mapping'!F:J,5,0)","v":{"$error":"#N/A"}},{"$f":"LEFT(Template!C738,7)","v":""},{"$f":"VLOOKUP(E726,'Structure mapping'!A:E,5,0)","v":{"$error":"#N/A"}},{"$f":"LEFT(Template!D738,6)","v":""},{"$f":"VLOOKUP(G726,'Account mapping'!A:E,5,0)","v":{"$error":"#N/A"}},{"$f":"LEFT(Template!E738,2)","v":""},{"$f":"VLOOKUP(I726,'Structure mapping'!X:AB,5,0)","v":{"$error":"#N/A"}},{"$f":"LEFT(Template!F738,3)","v":""},{"$f":"VLOOKUP(K726,'Structure mapping'!AC:AG,5,0)","v":{"$error":"#N/A"}},{"$f":"LEFT(Template!G738,10)","v":""},{"$f":"VLOOKUP(M726,'Structure mapping'!AH:AL,5,0)","v":{"$error":"#N/A"}},{"$f":"LEFT(Template!H738,6)","v":""},{"$f":"VLOOKUP(O726,'Structure mapping'!AM:AQ,5,0)","v":{"$error":"#N/A"}},null,null,null,null,{"$f":"IF(Template!O738=\"\",\"\",Template!O738)","v":""},"Aug-24 pending entries",{"$f":"TEXT(Template!$B$9,\"mm/dd/yyy\")","v":"08/01/2024"},null,null,null,null,{"$f":"IF(Template!M738>0,Template!M738,-Template!N738)","v":0},null,null,null,{"$f":"VLOOKUP(G726,'Account mapping'!A:D,4,0)","v":{"$error":"#N/A"}}]
[{"$f":"LEFT(Template!A739,4)","v":""},{"$f":"VLOOKUP(A727,'Structure mapping'!K:V,7,0)","v":{"$error":"#N/A"}},{"$f":"LEFT(Template!B739,5)","v":""},{"$f":"VLOOKUP(C727,'Structure mapping'!F:J,5,0)","v":{"$error":"#N/A"}},{"$f":"LEFT(Template!C739,7)","v":""},{"$f":"VLOOKUP(E727,'Structure mapping'!A:E,5,0)","v":{"$error":"#N/A"}},{"$f":"LEFT(Template!D739,6)","v":""},{"$f":"VLOOKUP(G727,'Account mapping'!A:E,5,0)","v":{"$error":"#N/A"}},{"$f":"LEFT(Template!E739,2)","v":""},{"$f":"VLOOKUP(I727,'Structure mapping'!X:AB,5,0)","v":{"$error":"#N/A"}},{"$f":"LEFT(Template!F739,3)","v":""},{"$f":"VLOOKUP(K727,'Structure mapping'!AC:AG,5,0)","v":{"$error":"#N/A"}},{"$f":"LEFT(Template!G739,10)","v":""},{"$f":"VLOOKUP(M727,'Structure mapping'!AH:AL,5,0)","v":{"$error":"#N/A"}},{"$f":"LEFT(Template!H739,6)","v":""},{"$f":"VLOOKUP(O727,'Structure mapping'!AM:AQ,5,0)","v":{"$error":"#N/A"}},null,null,null,null,{"$f":"IF(Template!O739=\"\",\"\",Template!O739)","v":""},"Aug-24 pending entries",{"$f":"TEXT(Template!$B$9,\"mm/dd/yyy\")","v":"08/01/2024"},null,null,null,null,{"$f":"IF(Template!M739>0,Template!M739,-Template!N739)","v":0},null,null,null,{"$f":"VLOOKUP(G727,'Account mapping'!A:D,4,0)","v":{"$error":"#N/A"}}]
[{"$f":"LEFT(Template!A740,4)","v":""},{"$f":"VLOOKUP(A728,'Structure mapping'!K:V,7,0)","v":{"$error":"#N/A"}},{"$f":"LEFT(Template!B740,5)","v":""},{"$f":"VLOOKUP(C728,'Structure mapping'!F:J,5,0)","v":{"$error":"#N/A"}},{"$f":"LEFT(Template!C740,7)","v":""},{"$f":"VLOOKUP(E728,'Structure mapping'!A:E,5,0)","v":{"$error":"#N/A"}},{"$f":"LEFT(Template!D740,6)","v":""},{"$f":"VLOOKUP(G728,'Account mapping'!A:E,5,0)","v":{"$error":"#N/A"}},{"$f":"LEFT(Template!E740,2)","v":""},{"$f":"VLOOKUP(I728,'Structure mapping'!X:AB,5,0)","v":{"$error":"#N/A"}},{"$f":"LEFT(Template!F740,3)","v":""},{"$f":"VLOOKUP(K728,'Structure mapping'!AC:AG,5,0)","v":{"$error":"#N/A"}},{"$f":"LEFT(Template!G740,10)","v":""},{"$f":"VLOOKUP(M728,'Structure mapping'!AH:AL,5,0)","v":{"$error":"#N/A"}},{"$f":"LEFT(Template!H740,6)","v":""},{"$f":"VLOOKUP(O728,'Structure mapping'!AM:AQ,5,0)","v":{"$error":"#N/A"}},null,null,null,null,{"$f":"IF(Template!O740=\"\",\"\",Template!O740)","v":""},"Aug-24 pending entries",{"$f":"TEXT(Template!$B$9,\"mm/dd/yyy\")","v":"08/01/2024"},null,null,null,null,{"$f":"IF(Template!M740>0,Template!M740,-Template!N740)","v":0},null,null,null,{"$f":"VLOOKUP(G728,'Account mapping'!A:D,4,0)","v":{"$error":"#N/A"}}]
[{"$f":"LEFT(Template!A741,4)","v":""},{"$f":"VLOOKUP(A729,'Structure mapping'!K:V,7,0)","v":{"$error":"#N/A"}},{"$f":"LEFT(Template!B741,5)","v":""},{"$f":"VLOOKUP(C729,'Structure mapping'!F:J,5,0)","v":{"$error":"#N/A"}},{"$f":"LEFT(Template!C741,7)","v":""},{"$f":"VLOOKUP(E729,'Structure mapping'!A:E,5,0)","v":{"$error":"#N/A"}},{"$f":"LEFT(Template!D741,6)","v":""},{"$f":"VLOOKUP(G729,'Account mapping'!A:E,5,0)","v":{"$error":"#N/A"}},{"$f":"LEFT(Template!E741,2)","v":""},{"$f":"VLOOKUP(I729,'Structure mapping'!X:AB,5,0)","v":{"$error":"#N/A"}},{"$f":"LEFT(Template!F741,3)","v":""},{"$f":"VLOOKUP(K729,'Structure mapping'!AC:AG,5,0)","v":{"$error":"#N/A"}},{"$f":"LEFT(Template!G741,10)","v":""},{"$f":"VLOOKUP(M729,'Structure mapping'!AH:AL,5,0)","v":{"$error":"#N/A"}},{"$f":"LEFT(Template!H741,6)","v":""},{"$f":"VLOOKUP(O729,'Structure mapping'!AM:AQ,5,0)","v":{"$error":"#N/A"}},null,null,null,null,{"$f":"IF(Template!O741=\"\",\"\",Template!O741)","v":""},"Aug-24 pending entries",{"$f":"TEXT(Template!$B$9,\"mm/dd/yyy\")","v":"08/01/2024"},null,null,null,null,{"$f":"IF(Template!M741>0,Template!M741,-Template!N741)","v":0},null,null,null,{"$f":"VLOOKUP(G729,'Account mapping'!A:D,4,0)","v":{"$error":"#N/A"}}]
[{"$f":"LEFT(Template!A742,4)","v":""},{"$f":"VLOOKUP(A730,'Structure mapping'!K:V,7,0)","v":{"$error":"#N/A"}},{"$f":"LEFT(Template!B742,5)","v":""},{"$f":"VLOOKUP(C730,'Structure mapping'!F:J,5,0)","v":{"$error":"#N/A"}},{"$f":"LEFT(Template!C742,7)","v":""},{"$f":"VLOOKUP(E730,'Structure mapping'!A:E,5,0)","v":{"$error":"#N/A"}},{"$f":"LEFT(Template!D742,6)","v":""},{"$f":"VLOOKUP(G730,'Account mapping'!A:E,5,0)","v":{"$error":"#N/A"}},{"$f":"LEFT(Template!E742,2)","v":""},{"$f":"VLOOKUP(I730,'Structure mapping'!X:AB,5,0)","v":{"$error":"#N/A"}},{"$f":"LEFT(Template!F742,3)","v":""},{"$f":"VLOOKUP(K730,'Structure mapping'!AC:AG,5,0)","v":{"$error":"#N/A"}},{"$f":"LEFT(Template!G742,10)","v":""},{"$f":"VLOOKUP(M730,'Structure mapping'!AH:AL,5,0)","v":{"$error":"#N/A"}},{"$f":"LEFT(Template!H742,6)","v":""},{"$f":"VLOOKUP(O730,'Structure mapping'!AM:AQ,5,0)","v":{"$error":"#N/A"}},null,null,null,null,{"$f":"IF(Template!O742=\"\",\"\",Template!O742)","v":""},"Aug-24 pending entries",{"$f":"TEXT(Template!$B$9,\"mm/dd/yyy\")","v":"08/01/2024"},null,null,null,null,{"$f":"IF(Template!M742>0,Template!M742,-Template!N742)","v":0},null,null,null,{"$f":"VLOOKUP(G730,'Account mapping'!A:D,4,0)","v":{"$error":"#N/A"}}]
[{"$f":"LEFT(Template!A743,4)","v":""},{"$f":"VLOOKUP(A731,'Structure mapping'!K:V,7,0)","v":{"$error":"#N/A"}},{"$f":"LEFT(Template!B743,5)","v":""},{"$f":"VLOOKUP(C731,'Structure mapping'!F:J,5,0)","v":{"$error":"#N/A"}},{"$f":"LEFT(Template!C743,7)","v":""},{"$f":"VLOOKUP(E731,'Structure mapping'!A:E,5,0)","v":{"$error":"#N/A"}},{"$f":"LEFT(Template!D743,6)","v":""},{"$f":"VLOOKUP(G731,'Account mapping'!A:E,5,0)","v":{"$error":"#N/A"}},{"$f":"LEFT(Template!E743,2)","v":""},{"$f":"VLOOKUP(I731,'Structure mapping'!X:AB,5,0)","v":{"$error":"#N/A"}},{"$f":"LEFT(Template!F743,3)","v":""},{"$f":"VLOOKUP(K731,'Structure mapping'!AC:AG,5,0)","v":{"$error":"#N/A"}},{"$f":"LEFT(Template!G743,10)","v":""},{"$f":"VLOOKUP(M731,'Structure mapping'!AH:AL,5,0)","v":{"$error":"#N/A"}},{"$f":"LEFT(Template!H743,6)","v":""},{"$f":"VLOOKUP(O731,'Structure mapping'!AM:AQ,5,0)","v":{"$error":"#N/A"}},null,null,null,null,{"$f":"IF(Template!O743=\"\",\"\",Template!O743)","v":""},"Aug-24 pending entries",{"$f":"TEXT(Template!$B$9,\"mm/dd/yyy\")","v":"08/01/2024"},null,null,null,null,{"$f":"IF(Template!M743>0,Template!M743,-Template!N743)","v":0},null,null,null,{"$f":"VLOOKUP(G731,'Account mapping'!A:D,4,0)","v":{"$error":"#N/A"}}]
[{"$f":"LEFT(Template!A744,4)","v":""},{"$f":"VLOOKUP(A732,'Structure mapping'!K:V,7,0)","v":{"$error":"#N/A"}},{"$f":"LEFT(Template!B744,5)","v":""},{"$f":"VLOOKUP(C732,'Structure mapping'!F:J,5,0)","v":{"$error":"#N/A"}},{"$f":"LEFT(Template!C744,7)","v":""},{"$f":"VLOOKUP(E732,'Structure mapping'!A:E,5,0)","v":{"$error":"#N/A"}},{"$f":"LEFT(Template!D744,6)","v":""},{"$f":"VLOOKUP(G732,'Account mapping'!A:E,5,0)","v":{"$error":"#N/A"}},{"$f":"LEFT(Template!E744,2)","v":""},{"$f":"VLOOKUP(I732,'Structure mapping'!X:AB,5,0)","v":{"$error":"#N/A"}},{"$f":"LEFT(Template!F744,3)","v":""},{"$f":"VLOOKUP(K732,'Structure mapping'!AC:AG,5,0)","v":{"$error":"#N/A"}},{"$f":"LEFT(Template!G744,10)","v":""},{"$f":"VLOOKUP(M732,'Structure mapping'!AH:AL,5,0)","v":{"$error":"#N/A"}},{"$f":"LEFT(Template!H744,6)","v":""},{"$f":"VLOOKUP(O732,'Structure mapping'!AM:AQ,5,0)","v":{"$error":"#N/A"}},null,null,null,null,{"$f":"IF(Template!O744=\"\",\"\",Template!O744)","v":""},"Aug-24 pending entries",{"$f":"TEXT(Template!$B$9,\"mm/dd/yyy\")","v":"08/01/2024"},null,null,null,null,{"$f":"IF(Template!M744>0,Template!M744,-Template!N744)","v":0},null,null,null,{"$f":"VLOOKUP(G732,'Account mapping'!A:D,4,0)","v":{"$error":"#N/A"}}]
[{"$f":"LEFT(Template!A745,4)","v":""},{"$f":"VLOOKUP(A733,'Structure mapping'!K:V,7,0)","v":{"$error":"#N/A"}},{"$f":"LEFT(Template!B745,5)","v":""},{"$f":"VLOOKUP(C733,'Structure mapping'!F:J,5,0)","v":{"$error":"#N/A"}},{"$f":"LEFT(Template!C745,7)","v":""},{"$f":"VLOOKUP(E733,'Structure mapping'!A:E,5,0)","v":{"$error":"#N/A"}},{"$f":"LEFT(Template!D745,6)","v":""},{"$f":"VLOOKUP(G733,'Account mapping'!A:E,5,0)","v":{"$error":"#N/A"}},{"$f":"LEFT(Template!E745,2)","v":""},{"$f":"VLOOKUP(I733,'Structure mapping'!X:AB,5,0)","v":{"$error":"#N/A"}},{"$f":"LEFT(Template!F745,3)","v":""},{"$f":"VLOOKUP(K733,'Structure mapping'!AC:AG,5,0)","v":{"$error":"#N/A"}},{"$f":"LEFT(Template!G745,10)","v":""},{"$f":"VLOOKUP(M733,'Structure mapping'!AH:AL,5,0)","v":{"$error":"#N/A"}},{"$f":"LEFT(Template!H745,6)","v":""},{"$f":"VLOOKUP(O733,'Structure mapping'!AM:AQ,5,0)","v":{"$error":"#N/A"}},null,null,null,null,{"$f":"IF(Template!O745=\"\",\"\",Template!O745)","v":""},"Aug-24 pending entries",{"$f":"TEXT(Template!$B$9,\"mm/dd/yyy\")","v":"08/01/2024"},null,null,null,null,{"$f":"IF(Template!M745>0,Template!M745,-Template!N745)","v":0},null,null,null,{"$f":"VLOOKUP(G733,'Account mapping'!A:D,4,0)","v":{"$error":"#N/A"}}]
[{"$f":"LEFT(Template!A746,4)","v":""},{"$f":"VLOOKUP(A734,'Structure mapping'!K:V,7,0)","v":{"$error":"#N/A"}},{"$f":"LEFT(Template!B746,5)","v":""},{"$f":"VLOOKUP(C734,'Structure mapping'!F:J,5,0)","v":{"$error":"#N/A"}},{"$f":"LEFT(Template!C746,7)","v":""},{"$f":"VLOOKUP(E734,'Structure mapping'!A:E,5,0)","v":{"$error":"#N/A"}},{"$f":"LEFT(Template!D746,6)","v":""},{"$f":"VLOOKUP(G734,'Account mapping'!A:E,5,0)","v":{"$error":"#N/A"}},{"$f":"LEFT(Template!E746,2)","v":""},{"$f":"VLOOKUP(I734,'Structure mapping'!X:AB,5,0)","v":{"$error":"#N/A"}},{"$f":"LEFT(Template!F746,3)","v":""},{"$f":"VLOOKUP(K734,'Structure mapping'!AC:AG,5,0)","v":{"$error":"#N/A"}},{"$f":"LEFT(Template!G746,10)","v":""},{"$f":"VLOOKUP(M734,'Structure mapping'!AH:AL,5,0)","v":{"$error":"#N/A"}},{"$f":"LEFT(Template!H746,6)","v":""},{"$f":"VLOOKUP(O734,'Structure mapping'!AM:AQ,5,0)","v":{"$error":"#N/A"}},null,null,null,null,{"$f":"IF(Template!O746=\"\",\"\",Template!O746)","v":""},"Aug-24 pending entries",{"$f":"TEXT(Template!$B$9,\"mm/dd/yyy\")","v":"08/01/2024"},null,null,null,null,{"$f":"IF(Template!M746>0,Template!M746,-Template!N746)","v":0},null,null,null,{"$f":"VLOOKUP(G734,'Account mapping'!A:D,4,0)","v":{"$error":"#N/A"}}]
[{"$f":"LEFT(Template!A747,4)","v":""},{"$f":"VLOOKUP(A735,'Structure mapping'!K:V,7,0)","v":{"$error":"#N/A"}},{"$f":"LEFT(Template!B747,5)","v":""},{"$f":"VLOOKUP(C735,'Structure mapping'!F:J,5,0)","v":{"$error":"#N/A"}},{"$f":"LEFT(Template!C747,7)","v":""},{"$f":"VLOOKUP(E735,'Structure mapping'!A:E,5,0)","v":{"$error":"#N/A"}},{"$f":"LEFT(Template!D747,6)","v":""},{"$f":"VLOOKUP(G735,'Account mapping'!A:E,5,0)","v":{"$error":"#N/A"}},{"$f":"LEFT(Template!E747,2)","v":""},{"$f":"VLOOKUP(I735,'Structure mapping'!X:AB,5,0)","v":{"$error":"#N/A"}},{"$f":"LEFT(Template!F747,3)","v":""},{"$f":"VLOOKUP(K735,'Structure mapping'!AC:AG,5,0)","v":{"$error":"#N/A"}},{"$f":"LEFT(Template!G747,10)","v":""},{"$f":"VLOOKUP(M735,'Structure mapping'!AH:AL,5,0)","v":{"$error":"#N/A"}},{"$f":"LEFT(Template!H747,6)","v":""},{"$f":"VLOOKUP(O735,'Structure mapping'!AM:AQ,5,0)","v":{"$error":"#N/A"}},null,null,null,null,{"$f":"IF(Template!O747=\"\",\"\",Template!O747)","v":""},"Aug-24 pending entries",{"$f":"TEXT(Template!$B$9,\"mm/dd/yyy\")","v":"08/01/2024"},null,null,null,null,{"$f":"IF(Template!M747>0,Template!M747,-Template!N747)","v":0},null,null,null,{"$f":"VLOOKUP(G735,'Account mapping'!A:D,4,0)","v":{"$error":"#N/A"}}]
[{"$f":"LEFT(Template!A748,4)","v":""},{"$f":"VLOOKUP(A736,'Structure mapping'!K:V,7,0)","v":{"$error":"#N/A"}},{"$f":"LEFT(Template!B748,5)","v":""},{"$f":"VLOOKUP(C736,'Structure mapping'!F:J,5,0)","v":{"$error":"#N/A"}},{"$f":"LEFT(Template!C748,7)","v":""},{"$f":"VLOOKUP(E736,'Structure mapping'!A:E,5,0)","v":{"$error":"#N/A"}},{"$f":"LEFT(Template!D748,6)","v":""},{"$f":"VLOOKUP(G736,'Account mapping'!A:E,5,0)","v":{"$error":"#N/A"}},{"$f":"LEFT(Template!E748,2)","v":""},{"$f":"VLOOKUP(I736,'Structure mapping'!X:AB,5,0)","v":{"$error":"#N/A"}},{"$f":"LEFT(Template!F748,3)","v":""},{"$f":"VLOOKUP(K736,'Structure mapping'!AC:AG,5,0)","v":{"$error":"#N/A"}},{"$f":"LEFT(Template!G748,10)","v":""},{"$f":"VLOOKUP(M736,'Structure mapping'!AH:AL,5,0)","v":{"$error":"#N/A"}},{"$f":"LEFT(Template!H748,6)","v":""},{"$f":"VLOOKUP(O736,'Structure mapping'!AM:AQ,5,0)","v":{"$error":"#N/A"}},null,null,null,null,{"$f":"IF(Template!O748=\"\",\"\",Template!O748)","v":""},"Aug-24 pending entries",{"$f":"TEXT(Template!$B$9,\"mm/dd/yyy\")","v":"08/01/2024"},null,null,null,null,{"$f":"IF(Template!M748>0,Template!M748,-Template!N748)","v":0},null,null,null,{"$f":"VLOOKUP(G736,'Account mapping'!A:D,4,0)","v":{"$error":"#N/A"}}]
[{"$f":"LEFT(Template!A749,4)","v":""},{"$f":"VLOOKUP(A737,'Structure mapping'!K:V,7,0)","v":{"$error":"#N/A"}},{"$f":"LEFT(Template!B749,5)","v":""},{"$f":"VLOOKUP(C737,'Structure mapping'!F:J,5,0)","v":{"$error":"#N/A"}},{"$f":"LEFT(Template!C749,7)","v":""},{"$f":"VLOOKUP(E737,'Structure mapping'!A:E,5,0)","v":{"$error":"#N/A"}},{"$f":"LEFT(Template!D749,6)","v":""},{"$f":"VLOOKUP(G737,'Account mapping'!A:E,5,0)","v":{"$error":"#N/A"}},{"$f":"LEFT(Template!E749,2)","v":""},{"$f":"VLOOKUP(I737,'Structure mapping'!X:AB,5,0)","v":{"$error":"#N/A"}},{"$f":"LEFT(Template!F749,3)","v":""},{"$f":"VLOOKUP(K737,'Structure mapping'!AC:AG,5,0)","v":{"$error":"#N/A"}},{"$f":"LEFT(Template!G749,10)","v":""},{"$f":"VLOOKUP(M737,'Structure mapping'!AH:AL,5,0)","v":{"$error":"#N/A"}},{"$f":"LEFT(Template!H749,6)","v":""},{"$f":"VLOOKUP(O737,'Structure mapping'!AM:AQ,5,0)","v":{"$error":"#N/A"}},null,null,null,null,{"$f":"IF(Template!O749=\"\",\"\",Template!O749)","v":""},"Aug-24 pending entries",{"$f":"TEXT(Template!$B$9,\"mm/dd/yyy\")","v":"08/01/2024"},null,null,null,null,{"$f":"IF(Template!M749>0,Template!M749,-Template!N749)","v":0},null,null,null,{"$f":"VLOOKUP(G737,'Account mapping'!A:D,4,0)","v":{"$error":"#N/A"}}]
[{"$f":"LEFT(Template!A750,4)","v":""},{"$f":"VLOOKUP(A738,'Structure mapping'!K:V,7,0)","v":{"$error":"#N/A"}},{"$f":"LEFT(Template!B750,5)","v":""},{"$f":"VLOOKUP(C738,'Structure mapping'!F:J,5,0)","v":{"$error":"#N/A"}},{"$f":"LEFT(Template!C750,7)","v":""},{"$f":"VLOOKUP(E738,'Structure mapping'!A:E,5,0)","v":{"$error":"#N/A"}},{"$f":"LEFT(Template!D750,6)","v":""},{"$f":"VLOOKUP(G738,'Account mapping'!A:E,5,0)","v":{"$error":"#N/A"}},{"$f":"LEFT(Template!E750,2)","v":""},{"$f":"VLOOKUP(I738,'Structure mapping'!X:AB,5,0)","v":{"$error":"#N/A"}},{"$f":"LEFT(Template!F750,3)","v":""},{"$f":"VLOOKUP(K738,'Structure mapping'!AC:AG,5,0)","v":{"$error":"#N/A"}},{"$f":"LEFT(Template!G750,10)","v":""},{"$f":"VLOOKUP(M738,'Structure mapping'!AH:AL,5,0)","v":{"$error":"#N/A"}},{"$f":"LEFT(Template!H750,6)","v":""},{"$f":"VLOOKUP(O738,'Structure mapping'!AM:AQ,5,0)","v":{"$error":"#N/A"}},null,null,null,null,{"$f":"IF(Template!O750=\"\",\"\",Template!O750)","v":""},"Aug-24 pending entries",{"$f":"TEXT(Template!$B$9,\"mm/dd/yyy\")","v":"08/01/2024"},null,null,null,null,{"$f":"IF(Template!M750>0,Template!M750,-Template!N750)","v":0},null,null,null,{"$f":"VLOOKUP(G738,'Account mapping'!A:D,4,0)","v":{"$error":"#N/A"}}]
[{"$f":"LEFT(Template!A751,4)","v":""},{"$f":"VLOOKUP(A739,'Structure mapping'!K:V,7,0)","v":{"$error":"#N/A"}},{"$f":"LEFT(Template!B751,5)","v":""},{"$f":"VLOOKUP(C739,'Structure mapping'!F:J,5,0)","v":{"$error":"#N/A"}},{"$f":"LEFT(Template!C751,7)","v":""},{"$f":"VLOOKUP(E739,'Structure mapping'!A:E,5,0)","v":{"$error":"#N/A"}},{"$f":"LEFT(Template!D751,6)","v":""},{"$f":"VLOOKUP(G739,'Account mapping'!A:E,5,0)","v":{"$error":"#N/A"}},{"$f":"LEFT(Template!E751,2)","v":""},{"$f":"VLOOKUP(I739,'Structure mapping'!X:AB,5,0)","v":{"$error":"#N/A"}},{"$f":"LEFT(Template!F751,3)","v":""},{"$f":"VLOOKUP(K739,'Structure mapping'!AC:AG,5,0)","v":{"$error":"#N/A"}},{"$f":"LEFT(Template!G751,10)","v":""},{"$f":"VLOOKUP(M739,'Structure mapping'!AH:AL,5,0)","v":{"$error":"#N/A"}},{"$f":"LEFT(Template!H751,6)","v":""},{"$f":"VLOOKUP(O739,'Structure mapping'!AM:AQ,5,0)","v":{"$error":"#N/A"}},null,null,null,null,{"$f":"IF(Template!O751=\"\",\"\",Template!O751)","v":""},"Aug-24 pending entries",{"$f":"TEXT(Template!$B$9,\"mm/dd/yyy\")","v":"08/01/2024"},null,null,null,null,{"$f":"IF(Template!M751>0,Template!M751,-Template!N751)","v":0},null,null,null,{"$f":"VLOOKUP(G739,'Account mapping'!A:D,4,0)","v":{"$error":"#N/A"}}]
[{"$f":"LEFT(Template!A752,4)","v":""},{"$f":"VLOOKUP(A740,'Structure mapping'!K:V,7,0)","v":{"$error":"#N/A"}},{"$f":"LEFT(Template!B752,5)","v":""},{"$f":"VLOOKUP(C740,'Structure mapping'!F:J,5,0)","v":{"$error":"#N/A"}},{"$f":"LEFT(Template!C752,7)","v":""},{"$f":"VLOOKUP(E740,'Structure mapping'!A:E,5,0)","v":{"$error":"#N/A"}},{"$f":"LEFT(Template!D752,6)","v":""},{"$f":"VLOOKUP(G740,'Account mapping'!A:E,5,0)","v":{"$error":"#N/A"}},{"$f":"LEFT(Template!E752,2)","v":""},{"$f":"VLOOKUP(I740,'Structure mapping'!X:AB,5,0)","v":{"$error":"#N/A"}},{"$f":"LEFT(Template!F752,3)","v":""},{"$f":"VLOOKUP(K740,'Structure mapping'!AC:AG,5,0)","v":{"$error":"#N/A"}},{"$f":"LEFT(Template!G752,10)","v":""},{"$f":"VLOOKUP(M740,'Structure mapping'!AH:AL,5,0)","v":{"$error":"#N/A"}},{"$f":"LEFT(Template!H752,6)","v":""},{"$f":"VLOOKUP(O740,'Structure mapping'!AM:AQ,5,0)","v":{"$error":"#N/A"}},null,null,null,null,{"$f":"IF(Template!O752=\"\",\"\",Template!O752)","v":""},"Aug-24 pending entries",{"$f":"TEXT(Template!$B$9,\"mm/dd/yyy\")","v":"08/01/2024"},null,null,null,null,{"$f":"IF(Template!M752>0,Template!M752,-Template!N752)","v":0},null,null,null,{"$f":"VLOOKUP(G740,'Account mapping'!A:D,4,0)","v":{"$error":"#N/A"}}]
[{"$f":"LEFT(Template!A753,4)","v":""},{"$f":"VLOOKUP(A741,'Structure mapping'!K:V,7,0)","v":{"$error":"#N/A"}},{"$f":"LEFT(Template!B753,5)","v":""},{"$f":"VLOOKUP(C741,'Structure mapping'!F:J,5,0)","v":{"$error":"#N/A"}},{"$f":"LEFT(Template!C753,7)","v":""},{"$f":"VLOOKUP(E741,'Structure mapping'!A:E,5,0)","v":{"$error":"#N/A"}},{"$f":"LEFT(Template!D753,6)","v":""},{"$f":"VLOOKUP(G741,'Account mapping'!A:E,5,0)","v":{"$error":"#N/A"}},{"$f":"LEFT(Template!E753,2)","v":""},{"$f":"VLOOKUP(I741,'Structure mapping'!X:AB,5,0)","v":{"$error":"#N/A"}},{"$f":"LEFT(Template!F753,3)","v":""},{"$f":"VLOOKUP(K741,'Structure mapping'!AC:AG,5,0)","v":{"$error":"#N/A"}},{"$f":"LEFT(Template!G753,10)","v":""},{"$f":"VLOOKUP(M741,'Structure mapping'!AH:AL,5,0)","v":{"$error":"#N/A"}},{"$f":"LEFT(Template!H753,6)","v":""},{"$f":"VLOOKUP(O741,'Structure mapping'!AM:AQ,5,0)","v":{"$error":"#N/A"}},null,null,null,null,{"$f":"IF(Template!O753=\"\",\"\",Template!O753)","v":""},"Aug-24 pending entries",{"$f":"TEXT(Template!$B$9,\"mm/dd/yyy\")","v":"08/01/2024"},null,null,null,null,{"$f":"IF(Template!M753>0,Template!M753,-Template!N753)","v":0},null,null,null,{"$f":"VLOOKUP(G741,'Account mapping'!A:D,4,0)","v":{"$error":"#N/A"}}]
[{"$f":"LEFT(Template!A754,4)","v":""},{"$f":"VLOOKUP(A742,'Structure mapping'!K:V,7,0)","v":{"$error":"#N/A"}},{"$f":"LEFT(Template!B754,5)","v":""},{"$f":"VLOOKUP(C742,'Structure mapping'!F:J,5,0)","v":{"$error":"#N/A"}},{"$f":"LEFT(Template!C754,7)","v":""},{"$f":"VLOOKUP(E742,'Structure mapping'!A:E,5,0)","v":{"$error":"#N/A"}},{"$f":"LEFT(Template!D754,6)","v":""},{"$f":"VLOOKUP(G742,'Account mapping'!A:E,5,0)","v":{"$error":"#N/A"}},{"$f":"LEFT(Template!E754,2)","v":""},{"$f":"VLOOKUP(I742,'Structure mapping'!X:AB,5,0)","v":{"$error":"#N/A"}},{"$f":"LEFT(Template!F754,3)","v":""},{"$f":"VLOOKUP(K742,'Structure mapping'!AC:AG,5,0)","v":{"$error":"#N/A"}},{"$f":"LEFT(Template!G754,10)","v":""},{"$f":"VLOOKUP(M742,'Structure mapping'!AH:AL,5,0)","v":{"$error":"#N/A"}},{"$f":"LEFT(Template!H754,6)","v":""},{"$f":"VLOOKUP(O742,'Structure mapping'!AM:AQ,5,0)","v":{"$error":"#N/A"}},null,null,null,null,{"$f":"IF(Template!O754=\"\",\"\",Template!O754)","v":""},"Aug-24 pending entries",{"$f":"TEXT(Template!$B$9,\"mm/dd/yyy\")","v":"08/01/2024"},null,null,null,null,{"$f":"IF(Template!M754>0,Template!M754,-Template!N754)","v":0},null,null,null,{"$f":"VLOOKUP(G742,'Account mapping'!A:D,4,0)","v":{"$error":"#N/A"}}]
[{"$f":"LEFT(Template!A755,4)","v":""},{"$f":"VLOOKUP(A743,'Structure mapping'!K:V,7,0)","v":{"$error":"#N/A"}},{"$f":"LEFT(Template!B755,5)","v":""},{"$f":"VLOOKUP(C743,'Structure mapping'!F:J,5,0)","v":{"$error":"#N/A"}},{"$f":"LEFT(Template!C755,7)","v":""},{"$f":"VLOOKUP(E743,'Structure mapping'!A:E,5,0)","v":{"$error":"#N/A"}},{"$f":"LEFT(Template!D755,6)","v":""},{"$f":"VLOOKUP(G743,'Account mapping'!A:E,5,0)","v":{"$error":"#N/A"}},{"$f":"LEFT(Template!E755,2)","v":""},{"$f":"VLOOKUP(I743,'Structure mapping'!X:AB,5,0)","v":{"$error":"#N/A"}},{"$f":"LEFT(Template!F755,3)","v":""},{"$f":"VLOOKUP(K743,'Structure mapping'!AC:AG,5,0)","v":{"$error":"#N/A"}},{"$f":"LEFT(Template!G755,10)","v":""},{"$f":"VLOOKUP(M743,'Structure mapping'!AH:AL,5,0)","v":{"$error":"#N/A"}},{"$f":"LEFT(Template!H755,6)","v":""},{"$f":"VLOOKUP(O743,'Structure mapping'!AM:AQ,5,0)","v":{"$error":"#N/A"}},null,null,null,null,{"$f":"IF(Template!O755=\"\",\"\",Template!O755)","v":""},"Aug-24 pending entries",{"$f":"TEXT(Template!$B$9,\"mm/dd/yyy\")","v":"08/01/2024"},null,null,null,null,{"$f":"IF(Template!M755>0,Template!M755,-Template!N755)","v":0},null,null,null,{"$f":"VLOOKUP(G743,'Account mapping'!A:D,4,0)","v":{"$error":"#N/A"}}]
[{"$f":"LEFT(Template!A756,4)","v":""},{"$f":"VLOOKUP(A744,'Structure mapping'!K:V,7,0)","v":{"$error":"#N/A"}},{"$f":"LEFT(Template!B756,5)","v":""},{"$f":"VLOOKUP(C744,'Structure mapping'!F:J,5,0)","v":{"$error":"#N/A"}},{"$f":"LEFT(Template!C756,7)","v":""},{"$f":"VLOOKUP(E744,'Structure mapping'!A:E,5,0)","v":{"$error":"#N/A"}},{"$f":"LEFT(Template!D756,6)","v":""},{"$f":"VLOOKUP(G744,'Account mapping'!A:E,5,0)","v":{"$error":"#N/A"}},{"$f":"LEFT(Template!E756,2)","v":""},{"$f":"VLOOKUP(I744,'Structure mapping'!X:AB,5,0)","v":{"$error":"#N/A"}},{"$f":"LEFT(Template!F756,3)","v":""},{"$f":"VLOOKUP(K744,'Structure mapping'!AC:AG,5,0)","v":{"$error":"#N/A"}},{"$f":"LEFT(Template!G756,10)","v":""},{"$f":"VLOOKUP(M744,'Structure mapping'!AH:AL,5,0)","v":{"$error":"#N/A"}},{"$f":"LEFT(Template!H756,6)","v":""},{"$f":"VLOOKUP(O744,'Structure mapping'!AM:AQ,5,0)","v":{"$error":"#N/A"}},null,null,null,null,{"$f":"IF(Template!O756=\"\",\"\",Template!O756)","v":""},"Aug-24 pending entries",{"$f":"TEXT(Template!$B$9,\"mm/dd/yyy\")","v":"08/01/2024"},null,null,null,null,{"$f":"IF(Template!M756>0,Template!M756,-Template!N756)","v":0},null,null,null,{"$f":"VLOOKUP(G744,'Account mapping'!A:D,4,0)","v":{"$error":"#N/A"}}]
[{"$f":"LEFT(Template!A757,4)","v":""},{"$f":"VLOOKUP(A745,'Structure mapping'!K:V,7,0)","v":{"$error":"#N/A"}},{"$f":"LEFT(Template!B757,5)","v":""},{"$f":"VLOOKUP(C745,'Structure mapping'!F:J,5,0)","v":{"$error":"#N/A"}},{"$f":"LEFT(Template!C757,7)","v":""},{"$f":"VLOOKUP(E745,'Structure mapping'!A:E,5,0)","v":{"$error":"#N/A"}},{"$f":"LEFT(Template!D757,6)","v":""},{"$f":"VLOOKUP(G745,'Account mapping'!A:E,5,0)","v":{"$error":"#N/A"}},{"$f":"LEFT(Template!E757,2)","v":""},{"$f":"VLOOKUP(I745,'Structure mapping'!X:AB,5,0)","v":{"$error":"#N/A"}},{"$f":"LEFT(Template!F757,3)","v":""},{"$f":"VLOOKUP(K745,'Structure mapping'!AC:AG,5,0)","v":{"$error":"#N/A"}},{"$f":"LEFT(Template!G757,10)","v":""},{"$f":"VLOOKUP(M745,'Structure mapping'!AH:AL,5,0)","v":{"$error":"#N/A"}},{"$f":"LEFT(Template!H757,6)","v":""},{"$f":"VLOOKUP(O745,'Structure mapping'!AM:AQ,5,0)","v":{"$error":"#N/A"}},null,null,null,null,{"$f":"IF(Template!O757=\"\",\"\",Template!O757)","v":""},"Aug-24 pending entries",{"$f":"TEXT(Template!$B$9,\"mm/dd/yyy\")","v":"08/01/2024"},null,null,null,null,{"$f":"IF(Template!M757>0,Template!M757,-Template!N757)","v":0},null,null,null,{"$f":"VLOOKUP(G745,'Account mapping'!A:D,4,0)","v":{"$error":"#N/A"}}]
[{"$f":"LEFT(Template!A758,4)","v":""},{"$f":"VLOOKUP(A746,'Structure mapping'!K:V,7,0)","v":{"$error":"#N/A"}},{"$f":"LEFT(Template!B758,5)","v":""},{"$f":"VLOOKUP(C746,'Structure mapping'!F:J,5,0)","v":{"$error":"#N/A"}},{"$f":"LEFT(Template!C758,7)","v":""},{"$f":"VLOOKUP(E746,'Structure mapping'!A:E,5,0)","v":{"$error":"#N/A"}},{"$f":"LEFT(Template!D758,6)","v":""},{"$f":"VLOOKUP(G746,'Account mapping'!A:E,5,0)","v":{"$error":"#N/A"}},{"$f":"LEFT(Template!E758,2)","v":""},{"$f":"VLOOKUP(I746,'Structure mapping'!X:AB,5,0)","v":{"$error":"#N/A"}},{"$f":"LEFT(Template!F758,3)","v":""},{"$f":"VLOOKUP(K746,'Structure mapping'!AC:AG,5,0)","v":{"$error":"#N/A"}},{"$f":"LEFT(Template!G758,10)","v":""},{"$f":"VLOOKUP(M746,'Structure mapping'!AH:AL,5,0)","v":{"$error":"#N/A"}},{"$f":"LEFT(Template!H758,6)","v":""},{"$f":"VLOOKUP(O746,'Structure mapping'!AM:AQ,5,0)","v":{"$error":"#N/A"}},null,null,null,null,{"$f":"IF(Template!O758=\"\",\"\",Template!O758)","v":""},"Aug-24 pending entries",{"$f":"TEXT(Template!$B$9,\"mm/dd/yyy\")","v":"08/01/2024"},null,null,null,null,{"$f":"IF(Template!M758>0,Template!M758,-Template!N758)","v":0},null,null,null,{"$f":"VLOOKUP(G746,'Account mapping'!A:D,4,0)","v":{"$error":"#N/A"}}]
[{"$f":"LEFT(Template!A759,4)","v":""},{"$f":"VLOOKUP(A747,'Structure mapping'!K:V,7,0)","v":{"$error":"#N/A"}},{"$f":"LEFT(Template!B759,5)","v":""},{"$f":"VLOOKUP(C747,'Structure mapping'!F:J,5,0)","v":{"$error":"#N/A"}},{"$f":"LEFT(Template!C759,7)","v":""},{"$f":"VLOOKUP(E747,'Structure mapping'!A:E,5,0)","v":{"$error":"#N/A"}},{"$f":"LEFT(Template!D759,6)","v":""},{"$f":"VLOOKUP(G747,'Account mapping'!A:E,5,0)","v":{"$error":"#N/A"}},{"$f":"LEFT(Template!E759,2)","v":""},{"$f":"VLOOKUP(I747,'Structure mapping'!X:AB,5,0)","v":{"$error":"#N/A"}},{"$f":"LEFT(Template!F759,3)","v":""},{"$f":"VLOOKUP(K747,'Structure mapping'!AC:AG,5,0)","v":{"$error":"#N/A"}},{"$f":"LEFT(Template!G759,10)","v":""},{"$f":"VLOOKUP(M747,'Structure mapping'!AH:AL,5,0)","v":{"$error":"#N/A"}},{"$f":"LEFT(Template!H759,6)","v":""},{"$f":"VLOOKUP(O747,'Structure mapping'!AM:AQ,5,0)","v":{"$error":"#N/A"}},null,null,null,null,{"$f":"IF(Template!O759=\"\",\"\",Template!O759)","v":""},"Aug-24 pending entries",{"$f":"TEXT(Template!$B$9,\"mm/dd/yyy\")","v":"08/01/2024"},null,null,null,null,{"$f":"IF(Template!M759>0,Template!M759,-Template!N759)","v":0},null,null,null,{"$f":"VLOOKUP(G747,'Account mapping'!A:D,4,0)","v":{"$error":"#N/A"}}]
[{"$f":"LEFT(Template!A760,4)","v":""},{"$f":"VLOOKUP(A748,'Structure mapping'!K:V,7,0)","v":{"$error":"#N/A"}},{"$f":"LEFT(Template!B760,5)","v":""},{"$f":"VLOOKUP(C748,'Structure mapping'!F:J,5,0)","v":{"$error":"#N/A"}},{"$f":"LEFT(Template!C760,7)","v":""},{"$f":"VLOOKUP(E748,'Structure mapping'!A:E,5,0)","v":{"$error":"#N/A"}},{"$f":"LEFT(Template!D760,6)","v":""},{"$f":"VLOOKUP(G748,'Account mapping'!A:E,5,0)","v":{"$error":"#N/A"}},{"$f":"LEFT(Template!E760,2)","v":""},{"$f":"VLOOKUP(I748,'Structure mapping'!X:AB,5,0)","v":{"$error":"#N/A"}},{"$f":"LEFT(Template!F760,3)","v":""},{"$f":"VLOOKUP(K748,'Structure mapping'!AC:AG,5,0)","v":{"$error":"#N/A"}},{"$f":"LEFT(Template!G760,10)","v":""},{"$f":"VLOOKUP(M748,'Structure mapping'!AH:AL,5,0)","v":{"$error":"#N/A"}},{"$f":"LEFT(Template!H760,6)","v":""},{"$f":"VLOOKUP(O748,'Structure mapping'!AM:AQ,5,0)","v":{"$error":"#N/A"}},null,null,null,null,{"$f":"IF(Template!O760=\"\",\"\",Template!O760)","v":""},"Aug-24 pending entries",{"$f":"TEXT(Template!$B$9,\"mm/dd/yyy\")","v":"08/01/2024"},null,null,null,null,{"$f":"IF(Template!M760>0,Template!M760,-Template!N760)","v":0},null,null,null,{"$f":"VLOOKUP(G748,'Account mapping'!A:D,4,0)","v":{"$error":"#N/A"}}]
[{"$f":"LEFT(Template!A761,4)","v":""},{"$f":"VLOOKUP(A749,'Structure mapping'!K:V,7,0)","v":{"$error":"#N/A"}},{"$f":"LEFT(Template!B761,5)","v":""},{"$f":"VLOOKUP(C749,'Structure mapping'!F:J,5,0)","v":{"$error":"#N/A"}},{"$f":"LEFT(Template!C761,7)","v":""},{"$f":"VLOOKUP(E749,'Structure mapping'!A:E,5,0)","v":{"$error":"#N/A"}},{"$f":"LEFT(Template!D761,6)","v":""},{"$f":"VLOOKUP(G749,'Account mapping'!A:E,5,0)","v":{"$error":"#N/A"}},{"$f":"LEFT(Template!E761,2)","v":""},{"$f":"VLOOKUP(I749,'Structure mapping'!X:AB,5,0)","v":{"$error":"#N/A"}},{"$f":"LEFT(Template!F761,3)","v":""},{"$f":"VLOOKUP(K749,'Structure mapping'!AC:AG,5,0)","v":{"$error":"#N/A"}},{"$f":"LEFT(Template!G761,10)","v":""},{"$f":"VLOOKUP(M749,'Structure mapping'!AH:AL,5,0)","v":{"$error":"#N/A"}},{"$f":"LEFT(Template!H761,6)","v":""},{"$f":"VLOOKUP(O749,'Structure mapping'!AM:AQ,5,0)","v":{"$error":"#N/A"}},null,null,null,null,{"$f":"IF(Template!O761=\"\",\"\",Template!O761)","v":""},"Aug-24 pending entries",{"$f":"TEXT(Template!$B$9,\"mm/dd/yyy\")","v":"08/01/2024"},null,null,null,null,{"$f":"IF(Template!M761>0,Template!M761,-Template!N761)","v":0},null,null,null,{"$f":"VLOOKUP(G749,'Account mapping'!A:D,4,0)","v":{"$error":"#N/A"}}]
[{"$f":"LEFT(Template!A762,4)","v":""},{"$f":"VLOOKUP(A750,'Structure mapping'!K:V,7,0)","v":{"$error":"#N/A"}},{"$f":"LEFT(Template!B762,5)","v":""},{"$f":"VLOOKUP(C750,'Structure mapping'!F:J,5,0)","v":{"$error":"#N/A"}},{"$f":"LEFT(Template!C762,7)","v":""},{"$f":"VLOOKUP(E750,'Structure mapping'!A:E,5,0)","v":{"$error":"#N/A"}},{"$f":"LEFT(Template!D762,6)","v":""},{"$f":"VLOOKUP(G750,'Account mapping'!A:E,5,0)","v":{"$error":"#N/A"}},{"$f":"LEFT(Template!E762,2)","v":""},{"$f":"VLOOKUP(I750,'Structure mapping'!X:AB,5,0)","v":{"$error":"#N/A"}},{"$f":"LEFT(Template!F762,3)","v":""},{"$f":"VLOOKUP(K750,'Structure mapping'!AC:AG,5,0)","v":{"$error":"#N/A"}},{"$f":"LEFT(Template!G762,10)","v":""},{"$f":"VLOOKUP(M750,'Structure mapping'!AH:AL,5,0)","v":{"$error":"#N/A"}},{"$f":"LEFT(Template!H762,6)","v":""},{"$f":"VLOOKUP(O750,'Structure mapping'!AM:AQ,5,0)","v":{"$error":"#N/A"}},null,null,null,null,{"$f":"IF(Template!O762=\"\",\"\",Template!O762)","v":""},"Aug-24 pending entries",{"$f":"TEXT(Template!$B$9,\"mm/dd/yyy\")","v":"08/01/2024"},null,null,null,null,{"$f":"IF(Template!M762>0,Template!M762,-Template!N762)","v":0},null,null,null,{"$f":"VLOOKUP(G750,'Account mapping'!A:D,4,0)","v":{"$error":"#N/A"}}]
[{"$f":"LEFT(Template!A763,4)","v":""},{"$f":"VLOOKUP(A751,'Structure mapping'!K:V,7,0)","v":{"$error":"#N/A"}},{"$f":"LEFT(Template!B763,5)","v":""},{"$f":"VLOOKUP(C751,'Structure mapping'!F:J,5,0)","v":{"$error":"#N/A"}},{"$f":"LEFT(Template!C763,7)","v":""},{"$f":"VLOOKUP(E751,'Structure mapping'!A:E,5,0)","v":{"$error":"#N/A"}},{"$f":"LEFT(Template!D763,6)","v":""},{"$f":"VLOOKUP(G751,'Account mapping'!A:E,5,0)","v":{"$error":"#N/A"}},{"$f":"LEFT(Template!E763,2)","v":""},{"$f":"VLOOKUP(I751,'Structure mapping'!X:AB,5,0)","v":{"$error":"#N/A"}},{"$f":"LEFT(Template!F763,3)","v":""},{"$f":"VLOOKUP(K751,'Structure mapping'!AC:AG,5,0)","v":{"$error":"#N/A"}},{"$f":"LEFT(Template!G763,10)","v":""},{"$f":"VLOOKUP(M751,'Structure mapping'!AH:AL,5,0)","v":{"$error":"#N/A"}},{"$f":"LEFT(Template!H763,6)","v":""},{"$f":"VLOOKUP(O751,'Structure mapping'!AM:AQ,5,0)","v":{"$error":"#N/A"}},null,null,null,null,{"$f":"IF(Template!O763=\"\",\"\",Template!O763)","v":""},"Aug-24 pending entries",{"$f":"TEXT(Template!$B$9,\"mm/dd/yyy\")","v":"08/01/2024"},null,null,null,null,{"$f":"IF(Template!M763>0,Template!M763,-Template!N763)","v":0},null,null,null,{"$f":"VLOOKUP(G751,'Account mapping'!A:D,4,0)","v":{"$error":"#N/A"}}]
[{"$f":"LEFT(Template!A764,4)","v":""},{"$f":"VLOOKUP(A752,'Structure mapping'!K:V,7,0)","v":{"$error":"#N/A"}},{"$f":"LEFT(Template!B764,5)","v":""},{"$f":"VLOOKUP(C752,'Structure mapping'!F:J,5,0)","v":{"$error":"#N/A"}},{"$f":"LEFT(Template!C764,7)","v":""},{"$f":"VLOOKUP(E752,'Structure mapping'!A:E,5,0)","v":{"$error":"#N/A"}},{"$f":"LEFT(Template!D764,6)","v":""},{"$f":"VLOOKUP(G752,'Account mapping'!A:E,5,0)","v":{"$error":"#N/A"}},{"$f":"LEFT(Template!E764,2)","v":""},{"$f":"VLOOKUP(I752,'Structure mapping'!X:AB,5,0)","v":{"$error":"#N/A"}},{"$f":"LEFT(Template!F764,3)","v":""},{"$f":"VLOOKUP(K752,'Structure mapping'!AC:AG,5,0)","v":{"$error":"#N/A"}},{"$f":"LEFT(Template!G764,10)","v":""},{"$f":"VLOOKUP(M752,'Structure mapping'!AH:AL,5,0)","v":{"$error":"#N/A"}},{"$f":"LEFT(Template!H764,6)","v":""},{"$f":"VLOOKUP(O752,'Structure mapping'!AM:AQ,5,0)","v":{"$error":"#N/A"}},null,null,null,null,{"$f":"IF(Template!O764=\"\",\"\",Template!O764)","v":""},"Aug-24 pending entries",{"$f":"TEXT(Template!$B$9,\"mm/dd/yyy\")","v":"08/01/2024"},null,null,null,null,{"$f":"IF(Template!M764>0,Template!M764,-Template!N764)","v":0},null,null,null,{"$f":"VLOOKUP(G752,'Account mapping'!A:D,4,0)","v":{"$error":"#N/A"}}]
[{"$f":"LEFT(Template!A765,4)","v":""},{"$f":"VLOOKUP(A753,'Structure mapping'!K:V,7,0)","v":{"$error":"#N/A"}},{"$f":"LEFT(Template!B765,5)","v":""},{"$f":"VLOOKUP(C753,'Structure mapping'!F:J,5,0)","v":{"$error":"#N/A"}},{"$f":"LEFT(Template!C765,7)","v":""},{"$f":"VLOOKUP(E753,'Structure mapping'!A:E,5,0)","v":{"$error":"#N/A"}},{"$f":"LEFT(Template!D765,6)","v":""},{"$f":"VLOOKUP(G753,'Account mapping'!A:E,5,0)","v":{"$error":"#N/A"}},{"$f":"LEFT(Template!E765,2)","v":""},{"$f":"VLOOKUP(I753,'Structure mapping'!X:AB,5,0)","v":{"$error":"#N/A"}},{"$f":"LEFT(Template!F765,3)","v":""},{"$f":"VLOOKUP(K753,'Structure mapping'!AC:AG,5,0)","v":{"$error":"#N/A"}},{"$f":"LEFT(Template!G765,10)","v":""},{"$f":"VLOOKUP(M753,'Structure mapping'!AH:AL,5,0)","v":{"$error":"#N/A"}},{"$f":"LEFT(Template!H765,6)","v":""},{"$f":"VLOOKUP(O753,'Structure mapping'!AM:AQ,5,0)","v":{"$error":"#N/A"}},null,null,null,null,{"$f":"IF(Template!O765=\"\",\"\",Template!O765)","v":""},"Aug-24 pending entries",{"$f":"TEXT(Template!$B$9,\"mm/dd/yyy\")","v":"08/01/2024"},null,null,null,null,{"$f":"IF(Template!M765>0,Template!M765,-Template!N765)","v":0},null,null,null,{"$f":"VLOOKUP(G753,'Account mapping'!A:D,4,0)","v":{"$error":"#N/A"}}]
[{"$f":"LEFT(Template!A766,4)","v":""},{"$f":"VLOOKUP(A754,'Structure mapping'!K:V,7,0)","v":{"$error":"#N/A"}},{"$f":"LEFT(Template!B766,5)","v":""},{"$f":"VLOOKUP(C754,'Structure mapping'!F:J,5,0)","v":{"$error":"#N/A"}},{"$f":"LEFT(Template!C766,7)","v":""},{"$f":"VLOOKUP(E754,'Structure mapping'!A:E,5,0)","v":{"$error":"#N/A"}},{"$f":"LEFT(Template!D766,6)","v":""},{"$f":"VLOOKUP(G754,'Account mapping'!A:E,5,0)","v":{"$error":"#N/A"}},{"$f":"LEFT(Template!E766,2)","v":""},{"$f":"VLOOKUP(I754,'Structure mapping'!X:AB,5,0)","v":{"$error":"#N/A"}},{"$f":"LEFT(Template!F766,3)","v":""},{"$f":"VLOOKUP(K754,'Structure mapping'!AC:AG,5,0)","v":{"$error":"#N/A"}},{"$f":"LEFT(Template!G766,10)","v":""},{"$f":"VLOOKUP(M754,'Structure mapping'!AH:AL,5,0)","v":{"$error":"#N/A"}},{"$f":"LEFT(Template!H766,6)","v":""},{"$f":"VLOOKUP(O754,'Structure mapping'!AM:AQ,5,0)","v":{"$error":"#N/A"}},null,null,null,null,{"$f":"IF(Template!O766=\"\",\"\",Template!O766)","v":""},"Aug-24 pending entries",{"$f":"TEXT(Template!$B$9,\"mm/dd/yyy\")","v":"08/01/2024"},null,null,null,null,{"$f":"IF(Template!M766>0,Template!M766,-Template!N766)","v":0},null,null,null,{"$f":"VLOOKUP(G754,'Account mapping'!A:D,4,0)","v":{"$error":"#N/A"}}]
[{"$f":"LEFT(Template!A767,4)","v":""},{"$f":"VLOOKUP(A755,'Structure mapping'!K:V,7,0)","v":{"$error":"#N/A"}},{"$f":"LEFT(Template!B767,5)","v":""},{"$f":"VLOOKUP(C755,'Structure mapping'!F:J,5,0)","v":{"$error":"#N/A"}},{"$f":"LEFT(Template!C767,7)","v":""},{"$f":"VLOOKUP(E755,'Structure mapping'!A:E,5,0)","v":{"$error":"#N/A"}},{"$f":"LEFT(Template!D767,6)","v":""},{"$f":"VLOOKUP(G755,'Account mapping'!A:E,5,0)","v":{"$error":"#N/A"}},{"$f":"LEFT(Template!E767,2)","v":""},{"$f":"VLOOKUP(I755,'Structure mapping'!X:AB,5,0)","v":{"$error":"#N/A"}},{"$f":"LEFT(Template!F767,3)","v":""},{"$f":"VLOOKUP(K755,'Structure mapping'!AC:AG,5,0)","v":{"$error":"#N/A"}},{"$f":"LEFT(Template!G767,10)","v":""},{"$f":"VLOOKUP(M755,'Structure mapping'!AH:AL,5,0)","v":{"$error":"#N/A"}},{"$f":"LEFT(Template!H767,6)","v":""},{"$f":"VLOOKUP(O755,'Structure mapping'!AM:AQ,5,0)","v":{"$error":"#N/A"}},null,null,null,null,{"$f":"IF(Template!O767=\"\",\"\",Template!O767)","v":""},"Aug-24 pending entries",{"$f":"TEXT(Template!$B$9,\"mm/dd/yyy\")","v":"08/01/2024"},null,null,null,null,{"$f":"IF(Template!M767>0,Template!M767,-Template!N767)","v":0},null,null,null,{"$f":"VLOOKUP(G755,'Account mapping'!A:D,4,0)","v":{"$error":"#N/A"}}]
[{"$f":"LEFT(Template!A768,4)","v":""},{"$f":"VLOOKUP(A756,'Structure mapping'!K:V,7,0)","v":{"$error":"#N/A"}},{"$f":"LEFT(Template!B768,5)","v":""},{"$f":"VLOOKUP(C756,'Structure mapping'!F:J,5,0)","v":{"$error":"#N/A"}},{"$f":"LEFT(Template!C768,7)","v":""},{"$f":"VLOOKUP(E756,'Structure mapping'!A:E,5,0)","v":{"$error":"#N/A"}},{"$f":"LEFT(Template!D768,6)","v":""},{"$f":"VLOOKUP(G756,'Account mapping'!A:E,5,0)","v":{"$error":"#N/A"}},{"$f":"LEFT(Template!E768,2)","v":""},{"$f":"VLOOKUP(I756,'Structure mapping'!X:AB,5,0)","v":{"$error":"#N/A"}},{"$f":"LEFT(Template!F768,3)","v":""},{"$f":"VLOOKUP(K756,'Structure mapping'!AC:AG,5,0)","v":{"$error":"#N/A"}},{"$f":"LEFT(Template!G768,10)","v":""},{"$f":"VLOOKUP(M756,'Structure mapping'!AH:AL,5,0)","v":{"$error":"#N/A"}},{"$f":"LEFT(Template!H768,6)","v":""},{"$f":"VLOOKUP(O756,'Structure mapping'!AM:AQ,5,0)","v":{"$error":"#N/A"}},null,null,null,null,{"$f":"IF(Template!O768=\"\",\"\",Template!O768)","v":""},"Aug-24 pending entries",{"$f":"TEXT(Template!$B$9,\"mm/dd/yyy\")","v":"08/01/2024"},null,null,null,null,{"$f":"IF(Template!M768>0,Template!M768,-Template!N768)","v":0},null,null,null,{"$f":"VLOOKUP(G756,'Account mapping'!A:D,4,0)","v":{"$error":"#N/A"}}]
[{"$f":"LEFT(Template!A769,4)","v":""},{"$f":"VLOOKUP(A757,'Structure mapping'!K:V,7,0)","v":{"$error":"#N/A"}},{"$f":"LEFT(Template!B769,5)","v":""},{"$f":"VLOOKUP(C757,'Structure mapping'!F:J,5,0)","v":{"$error":"#N/A"}},{"$f":"LEFT(Template!C769,7)","v":""},{"$f":"VLOOKUP(E757,'Structure mapping'!A:E,5,0)","v":{"$error":"#N/A"}},{"$f":"LEFT(Template!D769,6)","v":""},{"$f":"VLOOKUP(G757,'Account mapping'!A:E,5,0)","v":{"$error":"#N/A"}},{"$f":"LEFT(Template!E769,2)","v":""},{"$f":"VLOOKUP(I757,'Structure mapping'!X:AB,5,0)","v":{"$error":"#N/A"}},{"$f":"LEFT(Template!F769,3)","v":""},{"$f":"VLOOKUP(K757,'Structure mapping'!AC:AG,5,0)","v":{"$error":"#N/A"}},{"$f":"LEFT(Template!G769,10)","v":""},{"$f":"VLOOKUP(M757,'Structure mapping'!AH:AL,5,0)","v":{"$error":"#N/A"}},{"$f":"LEFT(Template!H769,6)","v":""},{"$f":"VLOOKUP(O757,'Structure mapping'!AM:AQ,5,0)","v":{"$error":"#N/A"}},null,null,null,null,{"$f":"IF(Template!O769=\"\",\"\",Template!O769)","v":""},"Aug-24 pending entries",{"$f":"TEXT(Template!$B$9,\"mm/dd/yyy\")","v":"08/01/2024"},null,null,null,null,{"$f":"IF(Template!M769>0,Template!M769,-Template!N769)","v":0},null,null,null,{"$f":"VLOOKUP(G757,'Account mapping'!A:D,4,0)","v":{"$error":"#N/A"}}]
[{"$f":"LEFT(Template!A770,4)","v":""},{"$f":"VLOOKUP(A758,'Structure mapping'!K:V,7,0)","v":{"$error":"#N/A"}},{"$f":"LEFT(Template!B770,5)","v":""},{"$f":"VLOOKUP(C758,'Structure mapping'!F:J,5,0)","v":{"$error":"#N/A"}},{"$f":"LEFT(Template!C770,7)","v":""},{"$f":"VLOOKUP(E758,'Structure mapping'!A:E,5,0)","v":{"$error":"#N/A"}},{"$f":"LEFT(Template!D770,6)","v":""},{"$f":"VLOOKUP(G758,'Account mapping'!A:E,5,0)","v":{"$error":"#N/A"}},{"$f":"LEFT(Template!E770,2)","v":""},{"$f":"VLOOKUP(I758,'Structure mapping'!X:AB,5,0)","v":{"$error":"#N/A"}},{"$f":"LEFT(Template!F770,3)","v":""},{"$f":"VLOOKUP(K758,'Structure mapping'!AC:AG,5,0)","v":{"$error":"#N/A"}},{"$f":"LEFT(Template!G770,10)","v":""},{"$f":"VLOOKUP(M758,'Structure mapping'!AH:AL,5,0)","v":{"$error":"#N/A"}},{"$f":"LEFT(Template!H770,6)","v":""},{"$f":"VLOOKUP(O758,'Structure mapping'!AM:AQ,5,0)","v":{"$error":"#N/A"}},null,null,null,null,{"$f":"IF(Template!O770=\"\",\"\",Template!O770)","v":""},"Aug-24 pending entries",{"$f":"TEXT(Template!$B$9,\"mm/dd/yyy\")","v":"08/01/2024"},null,null,null,null,{"$f":"IF(Template!M770>0,Template!M770,-Template!N770)","v":0},null,null,null,{"$f":"VLOOKUP(G758,'Account mapping'!A:D,4,0)","v":{"$error":"#N/A"}}]
[{"$f":"LEFT(Template!A771,4)","v":""},{"$f":"VLOOKUP(A759,'Structure mapping'!K:V,7,0)","v":{"$error":"#N/A"}},{"$f":"LEFT(Template!B771,5)","v":""},{"$f":"VLOOKUP(C759,'Structure mapping'!F:J,5,0)","v":{"$error":"#N/A"}},{"$f":"LEFT(Template!C771,7)","v":""},{"$f":"VLOOKUP(E759,'Structure mapping'!A:E,5,0)","v":{"$error":"#N/A"}},{"$f":"LEFT(Template!D771,6)","v":""},{"$f":"VLOOKUP(G759,'Account mapping'!A:E,5,0)","v":{"$error":"#N/A"}},{"$f":"LEFT(Template!E771,2)","v":""},{"$f":"VLOOKUP(I759,'Structure mapping'!X:AB,5,0)","v":{"$error":"#N/A"}},{"$f":"LEFT(Template!F771,3)","v":""},{"$f":"VLOOKUP(K759,'Structure mapping'!AC:AG,5,0)","v":{"$error":"#N/A"}},{"$f":"LEFT(Template!G771,10)","v":""},{"$f":"VLOOKUP(M759,'Structure mapping'!AH:AL,5,0)","v":{"$error":"#N/A"}},{"$f":"LEFT(Template!H771,6)","v":""},{"$f":"VLOOKUP(O759,'Structure mapping'!AM:AQ,5,0)","v":{"$error":"#N/A"}},null,null,null,null,{"$f":"IF(Template!O771=\"\",\"\",Template!O771)","v":""},"Aug-24 pending entries",{"$f":"TEXT(Template!$B$9,\"mm/dd/yyy\")","v":"08/01/2024"},null,null,null,null,{"$f":"IF(Template!M771>0,Template!M771,-Template!N771)","v":0},null,null,null,{"$f":"VLOOKUP(G759,'Account mapping'!A:D,4,0)","v":{"$error":"#N/A"}}]
[{"$f":"LEFT(Template!A772,4)","v":""},{"$f":"VLOOKUP(A760,'Structure mapping'!K:V,7,0)","v":{"$error":"#N/A"}},{"$f":"LEFT(Template!B772,5)","v":""},{"$f":"VLOOKUP(C760,'Structure mapping'!F:J,5,0)","v":{"$error":"#N/A"}},{"$f":"LEFT(Template!C772,7)","v":""},{"$f":"VLOOKUP(E760,'Structure mapping'!A:E,5,0)","v":{"$error":"#N/A"}},{"$f":"LEFT(Template!D772,6)","v":""},{"$f":"VLOOKUP(G760,'Account mapping'!A:E,5,0)","v":{"$error":"#N/A"}},{"$f":"LEFT(Template!E772,2)","v":""},{"$f":"VLOOKUP(I760,'Structure mapping'!X:AB,5,0)","v":{"$error":"#N/A"}},{"$f":"LEFT(Template!F772,3)","v":""},{"$f":"VLOOKUP(K760,'Structure mapping'!AC:AG,5,0)","v":{"$error":"#N/A"}},{"$f":"LEFT(Template!G772,10)","v":""},{"$f":"VLOOKUP(M760,'Structure mapping'!AH:AL,5,0)","v":{"$error":"#N/A"}},{"$f":"LEFT(Template!H772,6)","v":""},{"$f":"VLOOKUP(O760,'Structure mapping'!AM:AQ,5,0)","v":{"$error":"#N/A"}},null,null,null,null,{"$f":"IF(Template!O772=\"\",\"\",Template!O772)","v":""},"Aug-24 pending entries",{"$f":"TEXT(Template!$B$9,\"mm/dd/yyy\")","v":"08/01/2024"},null,null,null,null,{"$f":"IF(Template!M772>0,Template!M772,-Template!N772)","v":0},null,null,null,{"$f":"VLOOKUP(G760,'Account mapping'!A:D,4,0)","v":{"$error":"#N/A"}}]
[{"$f":"LEFT(Template!A773,4)","v":""},{"$f":"VLOOKUP(A761,'Structure mapping'!K:V,7,0)","v":{"$error":"#N/A"}},{"$f":"LEFT(Template!B773,5)","v":""},{"$f":"VLOOKUP(C761,'Structure mapping'!F:J,5,0)","v":{"$error":"#N/A"}},{"$f":"LEFT(Template!C773,7)","v":""},{"$f":"VLOOKUP(E761,'Structure mapping'!A:E,5,0)","v":{"$error":"#N/A"}},{"$f":"LEFT(Template!D773,6)","v":""},{"$f":"VLOOKUP(G761,'Account mapping'!A:E,5,0)","v":{"$error":"#N/A"}},{"$f":"LEFT(Template!E773,2)","v":""},{"$f":"VLOOKUP(I761,'Structure mapping'!X:AB,5,0)","v":{"$error":"#N/A"}},{"$f":"LEFT(Template!F773,3)","v":""},{"$f":"VLOOKUP(K761,'Structure mapping'!AC:AG,5,0)","v":{"$error":"#N/A"}},{"$f":"LEFT(Template!G773,10)","v":""},{"$f":"VLOOKUP(M761,'Structure mapping'!AH:AL,5,0)","v":{"$error":"#N/A"}},{"$f":"LEFT(Template!H773,6)","v":""},{"$f":"VLOOKUP(O761,'Structure mapping'!AM:AQ,5,0)","v":{"$error":"#N/A"}},null,null,null,null,{"$f":"IF(Template!O773=\"\",\"\",Template!O773)","v":""},"Aug-24 pending entries",{"$f":"TEXT(Template!$B$9,\"mm/dd/yyy\")","v":"08/01/2024"},null,null,null,null,{"$f":"IF(Template!M773>0,Template!M773,-Template!N773)","v":0},null,null,null,{"$f":"VLOOKUP(G761,'Account mapping'!A:D,4,0)","v":{"$error":"#N/A"}}]
[{"$f":"LEFT(Template!A774,4)","v":""},{"$f":"VLOOKUP(A762,'Structure mapping'!K:V,7,0)","v":{"$error":"#N/A"}},{"$f":"LEFT(Template!B774,5)","v":""},{"$f":"VLOOKUP(C762,'Structure mapping'!F:J,5,0)","v":{"$error":"#N/A"}},{"$f":"LEFT(Template!C774,7)","v":""},{"$f":"VLOOKUP(E762,'Structure mapping'!A:E,5,0)","v":{"$error":"#N/A"}},{"$f":"LEFT(Template!D774,6)","v":""},{"$f":"VLOOKUP(G762,'Account mapping'!A:E,5,0)","v":{"$error":"#N/A"}},{"$f":"LEFT(Template!E774,2)","v":""},{"$f":"VLOOKUP(I762,'Structure mapping'!X:AB,5,0)","v":{"$error":"#N/A"}},{"$f":"LEFT(Template!F774,3)","v":""},{"$f":"VLOOKUP(K762,'Structure mapping'!AC:AG,5,0)","v":{"$error":"#N/A"}},{"$f":"LEFT(Template!G774,10)","v":""},{"$f":"VLOOKUP(M762,'Structure mapping'!AH:AL,5,0)","v":{"$error":"#N/A"}},{"$f":"LEFT(Template!H774,6)","v":""},{"$f":"VLOOKUP(O762,'Structure mapping'!AM:AQ,5,0)","v":{"$error":"#N/A"}},null,null,null,null,{"$f":"IF(Template!O774=\"\",\"\",Template!O774)","v":""},"Aug-24 pending entries",{"$f":"TEXT(Template!$B$9,\"mm/dd/yyy\")","v":"08/01/2024"},null,null,null,null,{"$f":"IF(Template!M774>0,Template!M774,-Template!N774)","v":0},null,null,null,{"$f":"VLOOKUP(G762,'Account mapping'!A:D,4,0)","v":{"$error":"#N/A"}}]
[{"$f":"LEFT(Template!A775,4)","v":""},{"$f":"VLOOKUP(A763,'Structure mapping'!K:V,7,0)","v":{"$error":"#N/A"}},{"$f":"LEFT(Template!B775,5)","v":""},{"$f":"VLOOKUP(C763,'Structure mapping'!F:J,5,0)","v":{"$error":"#N/A"}},{"$f":"LEFT(Template!C775,7)","v":""},{"$f":"VLOOKUP(E763,'Structure mapping'!A:E,5,0)","v":{"$error":"#N/A"}},{"$f":"LEFT(Template!D775,6)","v":""},{"$f":"VLOOKUP(G763,'Account mapping'!A:E,5,0)","v":{"$error":"#N/A"}},{"$f":"LEFT(Template!E775,2)","v":""},{"$f":"VLOOKUP(I763,'Structure mapping'!X:AB,5,0)","v":{"$error":"#N/A"}},{"$f":"LEFT(Template!F775,3)","v":""},{"$f":"VLOOKUP(K763,'Structure mapping'!AC:AG,5,0)","v":{"$error":"#N/A"}},{"$f":"LEFT(Template!G775,10)","v":""},{"$f":"VLOOKUP(M763,'Structure mapping'!AH:AL,5,0)","v":{"$error":"#N/A"}},{"$f":"LEFT(Template!H775,6)","v":""},{"$f":"VLOOKUP(O763,'Structure mapping'!AM:AQ,5,0)","v":{"$error":"#N/A"}},null,null,null,null,{"$f":"IF(Template!O775=\"\",\"\",Template!O775)","v":""},"Aug-24 pending entries",{"$f":"TEXT(Template!$B$9,\"mm/dd/yyy\")","v":"08/01/2024"},null,null,null,null,{"$f":"IF(Template!M775>0,Template!M775,-Template!N775)","v":0},null,null,null,{"$f":"VLOOKUP(G763,'Account mapping'!A:D,4,0)","v":{"$error":"#N/A"}}]
[{"$f":"LEFT(Template!A776,4)","v":""},{"$f":"VLOOKUP(A764,'Structure mapping'!K:V,7,0)","v":{"$error":"#N/A"}},{"$f":"LEFT(Template!B776,5)","v":""},{"$f":"VLOOKUP(C764,'Structure mapping'!F:J,5,0)","v":{"$error":"#N/A"}},{"$f":"LEFT(Template!C776,7)","v":""},{"$f":"VLOOKUP(E764,'Structure mapping'!A:E,5,0)","v":{"$error":"#N/A"}},{"$f":"LEFT(Template!D776,6)","v":""},{"$f":"VLOOKUP(G764,'Account mapping'!A:E,5,0)","v":{"$error":"#N/A"}},{"$f":"LEFT(Template!E776,2)","v":""},{"$f":"VLOOKUP(I764,'Structure mapping'!X:AB,5,0)","v":{"$error":"#N/A"}},{"$f":"LEFT(Template!F776,3)","v":""},{"$f":"VLOOKUP(K764,'Structure mapping'!AC:AG,5,0)","v":{"$error":"#N/A"}},{"$f":"LEFT(Template!G776,10)","v":""},{"$f":"VLOOKUP(M764,'Structure mapping'!AH:AL,5,0)","v":{"$error":"#N/A"}},{"$f":"LEFT(Template!H776,6)","v":""},{"$f":"VLOOKUP(O764,'Structure mapping'!AM:AQ,5,0)","v":{"$error":"#N/A"}},null,null,null,null,{"$f":"IF(Template!O776=\"\",\"\",Template!O776)","v":""},"Aug-24 pending entries",{"$f":"TEXT(Template!$B$9,\"mm/dd/yyy\")","v":"08/01/2024"},null,null,null,null,{"$f":"IF(Template!M776>0,Template!M776,-Template!N776)","v":0},null,null,null,{"$f":"VLOOKUP(G764,'Account mapping'!A:D,4,0)","v":{"$error":"#N/A"}}]
[{"$f":"LEFT(Template!A777,4)","v":""},{"$f":"VLOOKUP(A765,'Structure mapping'!K:V,7,0)","v":{"$error":"#N/A"}},{"$f":"LEFT(Template!B777,5)","v":""},{"$f":"VLOOKUP(C765,'Structure mapping'!F:J,5,0)","v":{"$error":"#N/A"}},{"$f":"LEFT(Template!C777,7)","v":""},{"$f":"VLOOKUP(E765,'Structure mapping'!A:E,5,0)","v":{"$error":"#N/A"}},{"$f":"LEFT(Template!D777,6)","v":""},{"$f":"VLOOKUP(G765,'Account mapping'!A:E,5,0)","v":{"$error":"#N/A"}},{"$f":"LEFT(Template!E777,2)","v":""},{"$f":"VLOOKUP(I765,'Structure mapping'!X:AB,5,0)","v":{"$error":"#N/A"}},{"$f":"LEFT(Template!F777,3)","v":""},{"$f":"VLOOKUP(K765,'Structure mapping'!AC:AG,5,0)","v":{"$error":"#N/A"}},{"$f":"LEFT(Template!G777,10)","v":""},{"$f":"VLOOKUP(M765,'Structure mapping'!AH:AL,5,0)","v":{"$error":"#N/A"}},{"$f":"LEFT(Template!H777,6)","v":""},{"$f":"VLOOKUP(O765,'Structure mapping'!AM:AQ,5,0)","v":{"$error":"#N/A"}},null,null,null,null,{"$f":"IF(Template!O777=\"\",\"\",Template!O777)","v":""},"Aug-24 pending entries",{"$f":"TEXT(Template!$B$9,\"mm/dd/yyy\")","v":"08/01/2024"},null,null,null,null,{"$f":"IF(Template!M777>0,Template!M777,-Template!N777)","v":0},null,null,null,{"$f":"VLOOKUP(G765,'Account mapping'!A:D,4,0)","v":{"$error":"#N/A"}}]
[{"$f":"LEFT(Template!A778,4)","v":""},{"$f":"VLOOKUP(A766,'Structure mapping'!K:V,7,0)","v":{"$error":"#N/A"}},{"$f":"LEFT(Template!B778,5)","v":""},{"$f":"VLOOKUP(C766,'Structure mapping'!F:J,5,0)","v":{"$error":"#N/A"}},{"$f":"LEFT(Template!C778,7)","v":""},{"$f":"VLOOKUP(E766,'Structure mapping'!A:E,5,0)","v":{"$error":"#N/A"}},{"$f":"LEFT(Template!D778,6)","v":""},{"$f":"VLOOKUP(G766,'Account mapping'!A:E,5,0)","v":{"$error":"#N/A"}},{"$f":"LEFT(Template!E778,2)","v":""},{"$f":"VLOOKUP(I766,'Structure mapping'!X:AB,5,0)","v":{"$error":"#N/A"}},{"$f":"LEFT(Template!F778,3)","v":""},{"$f":"VLOOKUP(K766,'Structure mapping'!AC:AG,5,0)","v":{"$error":"#N/A"}},{"$f":"LEFT(Template!G778,10)","v":""},{"$f":"VLOOKUP(M766,'Structure mapping'!AH:AL,5,0)","v":{"$error":"#N/A"}},{"$f":"LEFT(Template!H778,6)","v":""},{"$f":"VLOOKUP(O766,'Structure mapping'!AM:AQ,5,0)","v":{"$error":"#N/A"}},null,null,null,null,{"$f":"IF(Template!O778=\"\",\"\",Template!O778)","v":""},"Aug-24 pending entries",{"$f":"TEXT(Template!$B$9,\"mm/dd/yyy\")","v":"08/01/2024"},null,null,null,null,{"$f":"IF(Template!M778>0,Template!M778,-Template!N778)","v":0},null,null,null,{"$f":"VLOOKUP(G766,'Account mapping'!A:D,4,0)","v":{"$error":"#N/A"}}]
[{"$f":"LEFT(Template!A779,4)","v":""},{"$f":"VLOOKUP(A767,'Structure mapping'!K:V,7,0)","v":{"$error":"#N/A"}},{"$f":"LEFT(Template!B779,5)","v":""},{"$f":"VLOOKUP(C767,'Structure mapping'!F:J,5,0)","v":{"$error":"#N/A"}},{"$f":"LEFT(Template!C779,7)","v":""},{"$f":"VLOOKUP(E767,'Structure mapping'!A:E,5,0)","v":{"$error":"#N/A"}},{"$f":"LEFT(Template!D779,6)","v":""},{"$f":"VLOOKUP(G767,'Account mapping'!A:E,5,0)","v":{"$error":"#N/A"}},{"$f":"LEFT(Template!E779,2)","v":""},{"$f":"VLOOKUP(I767,'Structure mapping'!X:AB,5,0)","v":{"$error":"#N/A"}},{"$f":"LEFT(Template!F779,3)","v":""},{"$f":"VLOOKUP(K767,'Structure mapping'!AC:AG,5,0)","v":{"$error":"#N/A"}},{"$f":"LEFT(Template!G779,10)","v":""},{"$f":"VLOOKUP(M767,'Structure mapping'!AH:AL,5,0)","v":{"$error":"#N/A"}},{"$f":"LEFT(Template!H779,6)","v":""},{"$f":"VLOOKUP(O767,'Structure mapping'!AM:AQ,5,0)","v":{"$error":"#N/A"}},null,null,null,null,{"$f":"IF(Template!O779=\"\",\"\",Template!O779)","v":""},"Aug-24 pending entries",{"$f":"TEXT(Template!$B$9,\"mm/dd/yyy\")","v":"08/01/2024"},null,null,null,null,{"$f":"IF(Template!M779>0,Template!M779,-Template!N779)","v":0},null,null,null,{"$f":"VLOOKUP(G767,'Account mapping'!A:D,4,0)","v":{"$error":"#N/A"}}]
[{"$f":"LEFT(Template!A780,4)","v":""},{"$f":"VLOOKUP(A768,'Structure mapping'!K:V,7,0)","v":{"$error":"#N/A"}},{"$f":"LEFT(Template!B780,5)","v":""},{"$f":"VLOOKUP(C768,'Structure mapping'!F:J,5,0)","v":{"$error":"#N/A"}},{"$f":"LEFT(Template!C780,7)","v":""},{"$f":"VLOOKUP(E768,'Structure mapping'!A:E,5,0)","v":{"$error":"#N/A"}},{"$f":"LEFT(Template!D780,6)","v":""},{"$f":"VLOOKUP(G768,'Account mapping'!A:E,5,0)","v":{"$error":"#N/A"}},{"$f":"LEFT(Template!E780,2)","v":""},{"$f":"VLOOKUP(I768,'Structure mapping'!X:AB,5,0)","v":{"$error":"#N/A"}},{"$f":"LEFT(Template!F780,3)","v":""},{"$f":"VLOOKUP(K768,'Structure mapping'!AC:AG,5,0)","v":{"$error":"#N/A"}},{"$f":"LEFT(Template!G780,10)","v":""},{"$f":"VLOOKUP(M768,'Structure mapping'!AH:AL,5,0)","v":{"$error":"#N/A"}},{"$f":"LEFT(Template!H780,6)","v":""},{"$f":"VLOOKUP(O768,'Structure mapping'!AM:AQ,5,0)","v":{"$error":"#N/A"}},null,null,null,null,{"$f":"IF(Template!O780=\"\",\"\",Template!O780)","v":""},"Aug-24 pending entries",{"$f":"TEXT(Template!$B$9,\"mm/dd/yyy\")","v":"08/01/2024"},null,null,null,null,{"$f":"IF(Template!M780>0,Template!M780,-Template!N780)","v":0},null,null,null,{"$f":"VLOOKUP(G768,'Account mapping'!A:D,4,0)","v":{"$error":"#N/A"}}]
[{"$f":"LEFT(Template!A781,4)","v":""},{"$f":"VLOOKUP(A769,'Structure mapping'!K:V,7,0)","v":{"$error":"#N/A"}},{"$f":"LEFT(Template!B781,5)","v":""},{"$f":"VLOOKUP(C769,'Structure mapping'!F:J,5,0)","v":{"$error":"#N/A"}},{"$f":"LEFT(Template!C781,7)","v":""},{"$f":"VLOOKUP(E769,'Structure mapping'!A:E,5,0)","v":{"$error":"#N/A"}},{"$f":"LEFT(Template!D781,6)","v":""},{"$f":"VLOOKUP(G769,'Account mapping'!A:E,5,0)","v":{"$error":"#N/A"}},{"$f":"LEFT(Template!E781,2)","v":""},{"$f":"VLOOKUP(I769,'Structure mapping'!X:AB,5,0)","v":{"$error":"#N/A"}},{"$f":"LEFT(Template!F781,3)","v":""},{"$f":"VLOOKUP(K769,'Structure mapping'!AC:AG,5,0)","v":{"$error":"#N/A"}},{"$f":"LEFT(Template!G781,10)","v":""},{"$f":"VLOOKUP(M769,'Structure mapping'!AH:AL,5,0)","v":{"$error":"#N/A"}},{"$f":"LEFT(Template!H781,6)","v":""},{"$f":"VLOOKUP(O769,'Structure mapping'!AM:AQ,5,0)","v":{"$error":"#N/A"}},null,null,null,null,{"$f":"IF(Template!O781=\"\",\"\",Template!O781)","v":""},"Aug-24 pending entries",{"$f":"TEXT(Template!$B$9,\"mm/dd/yyy\")","v":"08/01/2024"},null,null,null,null,{"$f":"IF(Template!M781>0,Template!M781,-Template!N781)","v":0},null,null,null,{"$f":"VLOOKUP(G769,'Account mapping'!A:D,4,0)","v":{"$error":"#N/A"}}]
[{"$f":"LEFT(Template!A782,4)","v":""},{"$f":"VLOOKUP(A770,'Structure mapping'!K:V,7,0)","v":{"$error":"#N/A"}},{"$f":"LEFT(Template!B782,5)","v":""},{"$f":"VLOOKUP(C770,'Structure mapping'!F:J,5,0)","v":{"$error":"#N/A"}},{"$f":"LEFT(Template!C782,7)","v":""},{"$f":"VLOOKUP(E770,'Structure mapping'!A:E,5,0)","v":{"$error":"#N/A"}},{"$f":"LEFT(Template!D782,6)","v":""},{"$f":"VLOOKUP(G770,'Account mapping'!A:E,5,0)","v":{"$error":"#N/A"}},{"$f":"LEFT(Template!E782,2)","v":""},{"$f":"VLOOKUP(I770,'Structure mapping'!X:AB,5,0)","v":{"$error":"#N/A"}},{"$f":"LEFT(Template!F782,3)","v":""},{"$f":"VLOOKUP(K770,'Structure mapping'!AC:AG,5,0)","v":{"$error":"#N/A"}},{"$f":"LEFT(Template!G782,10)","v":""},{"$f":"VLOOKUP(M770,'Structure mapping'!AH:AL,5,0)","v":{"$error":"#N/A"}},{"$f":"LEFT(Template!H782,6)","v":""},{"$f":"VLOOKUP(O770,'Structure mapping'!AM:AQ,5,0)","v":{"$error":"#N/A"}},null,null,null,null,{"$f":"IF(Template!O782=\"\",\"\",Template!O782)","v":""},"Aug-24 pending entries",{"$f":"TEXT(Template!$B$9,\"mm/dd/yyy\")","v":"08/01/2024"},null,null,null,null,{"$f":"IF(Template!M782>0,Template!M782,-Template!N782)","v":0},null,null,null,{"$f":"VLOOKUP(G770,'Account mapping'!A:D,4,0)","v":{"$error":"#N/A"}}]
[{"$f":"LEFT(Template!A783,4)","v":""},{"$f":"VLOOKUP(A771,'Structure mapping'!K:V,7,0)","v":{"$error":"#N/A"}},{"$f":"LEFT(Template!B783,5)","v":""},{"$f":"VLOOKUP(C771,'Structure mapping'!F:J,5,0)","v":{"$error":"#N/A"}},{"$f":"LEFT(Template!C783,7)","v":""},{"$f":"VLOOKUP(E771,'Structure mapping'!A:E,5,0)","v":{"$error":"#N/A"}},{"$f":"LEFT(Template!D783,6)","v":""},{"$f":"VLOOKUP(G771,'Account mapping'!A:E,5,0)","v":{"$error":"#N/A"}},{"$f":"LEFT(Template!E783,2)","v":""},{"$f":"VLOOKUP(I771,'Structure mapping'!X:AB,5,0)","v":{"$error":"#N/A"}},{"$f":"LEFT(Template!F783,3)","v":""},{"$f":"VLOOKUP(K771,'Structure mapping'!AC:AG,5,0)","v":{"$error":"#N/A"}},{"$f":"LEFT(Template!G783,10)","v":""},{"$f":"VLOOKUP(M771,'Structure mapping'!AH:AL,5,0)","v":{"$error":"#N/A"}},{"$f":"LEFT(Template!H783,6)","v":""},{"$f":"VLOOKUP(O771,'Structure mapping'!AM:AQ,5,0)","v":{"$error":"#N/A"}},null,null,null,null,{"$f":"IF(Template!O783=\"\",\"\",Template!O783)","v":""},{"$f":"TEXT(W771,\"mmm-yy\")&\" pending entries\"","v":"Aug-24 pending entries"},{"$f":"TEXT(Template!$B$9,\"mm/dd/yyy\")","v":"08/01/2024"},null,null,null,null,{"$f":"IF(Template!M783>0,Template!M783,-Template!N783)","v":0},null,null,null,{"$f":"VLOOKUP(G771,'Account mapping'!A:D,4,0)","v":{"$error":"#N/A"}}]
[{"$f":"LEFT(Template!A784,4)","v":""},{"$f":"VLOOKUP(A772,'Structure mapping'!K:V,7,0)","v":{"$error":"#N/A"}},{"$f":"LEFT(Template!B784,5)","v":""},{"$f":"VLOOKUP(C772,'Structure mapping'!F:J,5,0)","v":{"$error":"#N/A"}},{"$f":"LEFT(Template!C784,7)","v":""},{"$f":"VLOOKUP(E772,'Structure mapping'!A:E,5,0)","v":{"$error":"#N/A"}},{"$f":"LEFT(Template!D784,6)","v":""},{"$f":"VLOOKUP(G772,'Account mapping'!A:E,5,0)","v":{"$error":"#N/A"}},{"$f":"LEFT(Template!E784,2)","v":""},{"$f":"VLOOKUP(I772,'Structure mapping'!X:AB,5,0)","v":{"$error":"#N/A"}},{"$f":"LEFT(Template!F784,3)","v":""},{"$f":"VLOOKUP(K772,'Structure mapping'!AC:AG,5,0)","v":{"$error":"#N/A"}},{"$f":"LEFT(Template!G784,10)","v":""},{"$f":"VLOOKUP(M772,'Structure mapping'!AH:AL,5,0)","v":{"$error":"#N/A"}},{"$f":"LEFT(Template!H784,6)","v":""},{"$f":"VLOOKUP(O772,'Structure mapping'!AM:AQ,5,0)","v":{"$error":"#N/A"}},null,null,null,null,{"$f":"IF(Template!O784=\"\",\"\",Template!O784)","v":""},"Aug-24 pending entries",{"$f":"TEXT(Template!$B$9,\"mm/dd/yyy\")","v":"08/01/2024"},null,null,null,null,{"$f":"IF(Template!M784>0,Template!M784,-Template!N784)","v":0},null,null,null,{"$f":"VLOOKUP(G772,'Account mapping'!A:D,4,0)","v":{"$error":"#N/A"}}]
[{"$f":"LEFT(Template!A785,4)","v":""},{"$f":"VLOOKUP(A773,'Structure mapping'!K:V,7,0)","v":{"$error":"#N/A"}},{"$f":"LEFT(Template!B785,5)","v":""},{"$f":"VLOOKUP(C773,'Structure mapping'!F:J,5,0)","v":{"$error":"#N/A"}},{"$f":"LEFT(Template!C785,7)","v":""},{"$f":"VLOOKUP(E773,'Structure mapping'!A:E,5,0)","v":{"$error":"#N/A"}},{"$f":"LEFT(Template!D785,6)","v":""},{"$f":"VLOOKUP(G773,'Account mapping'!A:E,5,0)","v":{"$error":"#N/A"}},{"$f":"LEFT(Template!E785,2)","v":""},{"$f":"VLOOKUP(I773,'Structure mapping'!X:AB,5,0)","v":{"$error":"#N/A"}},{"$f":"LEFT(Template!F785,3)","v":""},{"$f":"VLOOKUP(K773,'Structure mapping'!AC:AG,5,0)","v":{"$error":"#N/A"}},{"$f":"LEFT(Template!G785,10)","v":""},{"$f":"VLOOKUP(M773,'Structure mapping'!AH:AL,5,0)","v":{"$error":"#N/A"}},{"$f":"LEFT(Template!H785,6)","v":""},{"$f":"VLOOKUP(O773,'Structure mapping'!AM:AQ,5,0)","v":{"$error":"#N/A"}},null,null,null,null,{"$f":"IF(Template!O785=\"\",\"\",Template!O785)","v":""},"Aug-24 pending entries",{"$f":"TEXT(Template!$B$9,\"mm/dd/yyy\")","v":"08/01/2024"},null,null,null,null,{"$f":"IF(Template!M785>0,Template!M785,-Template!N785)","v":0},null,null,null,{"$f":"VLOOKUP(G773,'Account mapping'!A:D,4,0)","v":{"$error":"#N/A"}}]
[{"$f":"LEFT(Template!A786,4)","v":""},{"$f":"VLOOKUP(A774,'Structure mapping'!K:V,7,0)","v":{"$error":"#N/A"}},{"$f":"LEFT(Template!B786,5)","v":""},{"$f":"VLOOKUP(C774,'Structure mapping'!F:J,5,0)","v":{"$error":"#N/A"}},{"$f":"LEFT(Template!C786,7)","v":""},{"$f":"VLOOKUP(E774,'Structure mapping'!A:E,5,0)","v":{"$error":"#N/A"}},{"$f":"LEFT(Template!D786,6)","v":""},{"$f":"VLOOKUP(G774,'Account mapping'!A:E,5,0)","v":{"$error":"#N/A"}},{"$f":"LEFT(Template!E786,2)","v":""},{"$f":"VLOOKUP(I774,'Structure mapping'!X:AB,5,0)","v":{"$error":"#N/A"}},{"$f":"LEFT(Template!F786,3)","v":""},{"$f":"VLOOKUP(K774,'Structure mapping'!AC:AG,5,0)","v":{"$error":"#N/A"}},{"$f":"LEFT(Template!G786,10)","v":""},{"$f":"VLOOKUP(M774,'Structure mapping'!AH:AL,5,0)","v":{"$error":"#N/A"}},{"$f":"LEFT(Template!H786,6)","v":""},{"$f":"VLOOKUP(O774,'Structure mapping'!AM:AQ,5,0)","v":{"$error":"#N/A"}},null,null,null,null,{"$f":"IF(Template!O786=\"\",\"\",Template!O786)","v":""},"Aug-24 pending entries",{"$f":"TEXT(Template!$B$9,\"mm/dd/yyy\")","v":"08/01/2024"},null,null,null,null,{"$f":"IF(Template!M786>0,Template!M786,-Template!N786)","v":0},null,null,null,{"$f":"VLOOKUP(G774,'Account mapping'!A:D,4,0)","v":{"$error":"#N/A"}}]
[{"$f":"LEFT(Template!A787,4)","v":""},{"$f":"VLOOKUP(A775,'Structure mapping'!K:V,7,0)","v":{"$error":"#N/A"}},{"$f":"LEFT(Template!B787,5)","v":""},{"$f":"VLOOKUP(C775,'Structure mapping'!F:J,5,0)","v":{"$error":"#N/A"}},{"$f":"LEFT(Template!C787,7)","v":""},{"$f":"VLOOKUP(E775,'Structure mapping'!A:E,5,0)","v":{"$error":"#N/A"}},{"$f":"LEFT(Template!D787,6)","v":""},{"$f":"VLOOKUP(G775,'Account mapping'!A:E,5,0)","v":{"$error":"#N/A"}},{"$f":"LEFT(Template!E787,2)","v":""},{"$f":"VLOOKUP(I775,'Structure mapping'!X:AB,5,0)","v":{"$error":"#N/A"}},{"$f":"LEFT(Template!F787,3)","v":""},{"$f":"VLOOKUP(K775,'Structure mapping'!AC:AG,5,0)","v":{"$error":"#N/A"}},{"$f":"LEFT(Template!G787,10)","v":""},{"$f":"VLOOKUP(M775,'Structure mapping'!AH:AL,5,0)","v":{"$error":"#N/A"}},{"$f":"LEFT(Template!H787,6)","v":""},{"$f":"VLOOKUP(O775,'Structure mapping'!AM:AQ,5,0)","v":{"$error":"#N/A"}},null,null,null,null,{"$f":"IF(Template!O787=\"\",\"\",Template!O787)","v":""},"Aug-24 pending entries",{"$f":"TEXT(Template!$B$9,\"mm/dd/yyy\")","v":"08/01/2024"},null,null,null,null,{"$f":"IF(Template!M787>0,Template!M787,-Template!N787)","v":0},null,null,null,{"$f":"VLOOKUP(G775,'Account mapping'!A:D,4,0)","v":{"$error":"#N/A"}}]
[{"$f":"LEFT(Template!A788,4)","v":""},{"$f":"VLOOKUP(A776,'Structure mapping'!K:V,7,0)","v":{"$error":"#N/A"}},{"$f":"LEFT(Template!B788,5)","v":""},{"$f":"VLOOKUP(C776,'Structure mapping'!F:J,5,0)","v":{"$error":"#N/A"}},{"$f":"LEFT(Template!C788,7)","v":""},{"$f":"VLOOKUP(E776,'Structure mapping'!A:E,5,0)","v":{"$error":"#N/A"}},{"$f":"LEFT(Template!D788,6)","v":""},{"$f":"VLOOKUP(G776,'Account mapping'!A:E,5,0)","v":{"$error":"#N/A"}},{"$f":"LEFT(Template!E788,2)","v":""},{"$f":"VLOOKUP(I776,'Structure mapping'!X:AB,5,0)","v":{"$error":"#N/A"}},{"$f":"LEFT(Template!F788,3)","v":""},{"$f":"VLOOKUP(K776,'Structure mapping'!AC:AG,5,0)","v":{"$error":"#N/A"}},{"$f":"LEFT(Template!G788,10)","v":""},{"$f":"VLOOKUP(M776,'Structure mapping'!AH:AL,5,0)","v":{"$error":"#N/A"}},{"$f":"LEFT(Template!H788,6)","v":""},{"$f":"VLOOKUP(O776,'Structure mapping'!AM:AQ,5,0)","v":{"$error":"#N/A"}},null,null,null,null,{"$f":"IF(Template!O788=\"\",\"\",Template!O788)","v":""},"Aug-24 pending entries",{"$f":"TEXT(Template!$B$9,\"mm/dd/yyy\")","v":"08/01/2024"},null,null,null,null,{"$f":"IF(Template!M788>0,Template!M788,-Template!N788)","v":0},null,null,null,{"$f":"VLOOKUP(G776,'Account mapping'!A:D,4,0)","v":{"$error":"#N/A"}}]
[{"$f":"LEFT(Template!A789,4)","v":""},{"$f":"VLOOKUP(A777,'Structure mapping'!K:V,7,0)","v":{"$error":"#N/A"}},{"$f":"LEFT(Template!B789,5)","v":""},{"$f":"VLOOKUP(C777,'Structure mapping'!F:J,5,0)","v":{"$error":"#N/A"}},{"$f":"LEFT(Template!C789,7)","v":""},{"$f":"VLOOKUP(E777,'Structure mapping'!A:E,5,0)","v":{"$error":"#N/A"}},{"$f":"LEFT(Template!D789,6)","v":""},{"$f":"VLOOKUP(G777,'Account mapping'!A:E,5,0)","v":{"$error":"#N/A"}},{"$f":"LEFT(Template!E789,2)","v":""},{"$f":"VLOOKUP(I777,'Structure mapping'!X:AB,5,0)","v":{"$error":"#N/A"}},{"$f":"LEFT(Template!F789,3)","v":""},{"$f":"VLOOKUP(K777,'Structure mapping'!AC:AG,5,0)","v":{"$error":"#N/A"}},{"$f":"LEFT(Template!G789,10)","v":""},{"$f":"VLOOKUP(M777,'Structure mapping'!AH:AL,5,0)","v":{"$error":"#N/A"}},{"$f":"LEFT(Template!H789,6)","v":""},{"$f":"VLOOKUP(O777,'Structure mapping'!AM:AQ,5,0)","v":{"$error":"#N/A"}},null,null,null,null,{"$f":"IF(Template!O789=\"\",\"\",Template!O789)","v":""},"Aug-24 pending entries",{"$f":"TEXT(Template!$B$9,\"mm/dd/yyy\")","v":"08/01/2024"},null,null,null,null,{"$f":"IF(Template!M789>0,Template!M789,-Template!N789)","v":0},null,null,null,{"$f":"VLOOKUP(G777,'Account mapping'!A:D,4,0)","v":{"$error":"#N/A"}}]
[{"$f":"LEFT(Template!A790,4)","v":""},{"$f":"VLOOKUP(A778,'Structure mapping'!K:V,7,0)","v":{"$error":"#N/A"}},{"$f":"LEFT(Template!B790,5)","v":""},{"$f":"VLOOKUP(C778,'Structure mapping'!F:J,5,0)","v":{"$error":"#N/A"}},{"$f":"LEFT(Template!C790,7)","v":""},{"$f":"VLOOKUP(E778,'Structure mapping'!A:E,5,0)","v":{"$error":"#N/A"}},{"$f":"LEFT(Template!D790,6)","v":""},{"$f":"VLOOKUP(G778,'Account mapping'!A:E,5,0)","v":{"$error":"#N/A"}},{"$f":"LEFT(Template!E790,2)","v":""},{"$f":"VLOOKUP(I778,'Structure mapping'!X:AB,5,0)","v":{"$error":"#N/A"}},{"$f":"LEFT(Template!F790,3)","v":""},{"$f":"VLOOKUP(K778,'Structure mapping'!AC:AG,5,0)","v":{"$error":"#N/A"}},{"$f":"LEFT(Template!G790,10)","v":""},{"$f":"VLOOKUP(M778,'Structure mapping'!AH:AL,5,0)","v":{"$error":"#N/A"}},{"$f":"LEFT(Template!H790,6)","v":""},{"$f":"VLOOKUP(O778,'Structure mapping'!AM:AQ,5,0)","v":{"$error":"#N/A"}},null,null,null,null,{"$f":"IF(Template!O790=\"\",\"\",Template!O790)","v":""},"Aug-24 pending entries",{"$f":"TEXT(Template!$B$9,\"mm/dd/yyy\")","v":"08/01/2024"},null,null,null,null,{"$f":"IF(Template!M790>0,Template!M790,-Template!N790)","v":0},null,null,null,{"$f":"VLOOKUP(G778,'Account mapping'!A:D,4,0)","v":{"$error":"#N/A"}}]
[{"$f":"LEFT(Template!A791,4)","v":""},{"$f":"VLOOKUP(A779,'Structure mapping'!K:V,7,0)","v":{"$error":"#N/A"}},{"$f":"LEFT(Template!B791,5)","v":""},{"$f":"VLOOKUP(C779,'Structure mapping'!F:J,5,0)","v":{"$error":"#N/A"}},{"$f":"LEFT(Template!C791,7)","v":""},{"$f":"VLOOKUP(E779,'Structure mapping'!A:E,5,0)","v":{"$error":"#N/A"}},{"$f":"LEFT(Template!D791,6)","v":""},{"$f":"VLOOKUP(G779,'Account mapping'!A:E,5,0)","v":{"$error":"#N/A"}},{"$f":"LEFT(Template!E791,2)","v":""},{"$f":"VLOOKUP(I779,'Structure mapping'!X:AB,5,0)","v":{"$error":"#N/A"}},{"$f":"LEFT(Template!F791,3)","v":""},{"$f":"VLOOKUP(K779,'Structure mapping'!AC:AG,5,0)","v":{"$error":"#N/A"}},{"$f":"LEFT(Template!G791,10)","v":""},{"$f":"VLOOKUP(M779,'Structure mapping'!AH:AL,5,0)","v":{"$error":"#N/A"}},{"$f":"LEFT(Template!H791,6)","v":""},{"$f":"VLOOKUP(O779,'Structure mapping'!AM:AQ,5,0)","v":{"$error":"#N/A"}},null,null,null,null,{"$f":"IF(Template!O791=\"\",\"\",Template!O791)","v":""},"Aug-24 pending entries",{"$f":"TEXT(Template!$B$9,\"mm/dd/yyy\")","v":"08/01/2024"},null,null,null,null,{"$f":"IF(Template!M791>0,Template!M791,-Template!N791)","v":0},null,null,null,{"$f":"VLOOKUP(G779,'Account mapping'!A:D,4,0)","v":{"$error":"#N/A"}}]
[{"$f":"LEFT(Template!A792,4)","v":""},{"$f":"VLOOKUP(A780,'Structure mapping'!K:V,7,0)","v":{"$error":"#N/A"}},{"$f":"LEFT(Template!B792,5)","v":""},{"$f":"VLOOKUP(C780,'Structure mapping'!F:J,5,0)","v":{"$error":"#N/A"}},{"$f":"LEFT(Template!C792,7)","v":""},{"$f":"VLOOKUP(E780,'Structure mapping'!A:E,5,0)","v":{"$error":"#N/A"}},{"$f":"LEFT(Template!D792,6)","v":""},{"$f":"VLOOKUP(G780,'Account mapping'!A:E,5,0)","v":{"$error":"#N/A"}},{"$f":"LEFT(Template!E792,2)","v":""},{"$f":"VLOOKUP(I780,'Structure mapping'!X:AB,5,0)","v":{"$error":"#N/A"}},{"$f":"LEFT(Template!F792,3)","v":""},{"$f":"VLOOKUP(K780,'Structure mapping'!AC:AG,5,0)","v":{"$error":"#N/A"}},{"$f":"LEFT(Template!G792,10)","v":""},{"$f":"VLOOKUP(M780,'Structure mapping'!AH:AL,5,0)","v":{"$error":"#N/A"}},{"$f":"LEFT(Template!H792,6)","v":""},{"$f":"VLOOKUP(O780,'Structure mapping'!AM:AQ,5,0)","v":{"$error":"#N/A"}},null,null,null,null,{"$f":"IF(Template!O792=\"\",\"\",Template!O792)","v":""},"Aug-24 pending entries",{"$f":"TEXT(Template!$B$9,\"mm/dd/yyy\")","v":"08/01/2024"},null,null,null,null,{"$f":"IF(Template!M792>0,Template!M792,-Template!N792)","v":0},null,null,null,{"$f":"VLOOKUP(G780,'Account mapping'!A:D,4,0)","v":{"$error":"#N/A"}}]
[{"$f":"LEFT(Template!A793,4)","v":""},{"$f":"VLOOKUP(A781,'Structure mapping'!K:V,7,0)","v":{"$error":"#N/A"}},{"$f":"LEFT(Template!B793,5)","v":""},{"$f":"VLOOKUP(C781,'Structure mapping'!F:J,5,0)","v":{"$error":"#N/A"}},{"$f":"LEFT(Template!C793,7)","v":""},{"$f":"VLOOKUP(E781,'Structure mapping'!A:E,5,0)","v":{"$error":"#N/A"}},{"$f":"LEFT(Template!D793,6)","v":""},{"$f":"VLOOKUP(G781,'Account mapping'!A:E,5,0)","v":{"$error":"#N/A"}},{"$f":"LEFT(Template!E793,2)","v":""},{"$f":"VLOOKUP(I781,'Structure mapping'!X:AB,5,0)","v":{"$error":"#N/A"}},{"$f":"LEFT(Template!F793,3)","v":""},{"$f":"VLOOKUP(K781,'Structure mapping'!AC:AG,5,0)","v":{"$error":"#N/A"}},{"$f":"LEFT(Template!G793,10)","v":""},{"$f":"VLOOKUP(M781,'Structure mapping'!AH:AL,5,0)","v":{"$error":"#N/A"}},{"$f":"LEFT(Template!H793,6)","v":""},{"$f":"VLOOKUP(O781,'Structure mapping'!AM:AQ,5,0)","v":{"$error":"#N/A"}},null,null,null,null,{"$f":"IF(Template!O793=\"\",\"\",Template!O793)","v":""},"Aug-24 pending entries",{"$f":"TEXT(Template!$B$9,\"mm/dd/yyy\")","v":"08/01/2024"},null,null,null,null,{"$f":"IF(Template!M793>0,Template!M793,-Template!N793)","v":0},null,null,null,{"$f":"VLOOKUP(G781,'Account mapping'!A:D,4,0)","v":{"$error":"#N/A"}}]
[{"$f":"LEFT(Template!A794,4)","v":""},{"$f":"VLOOKUP(A782,'Structure mapping'!K:V,7,0)","v":{"$error":"#N/A"}},{"$f":"LEFT(Template!B794,5)","v":""},{"$f":"VLOOKUP(C782,'Structure mapping'!F:J,5,0)","v":{"$error":"#N/A"}},{"$f":"LEFT(Template!C794,7)","v":""},{"$f":"VLOOKUP(E782,'Structure mapping'!A:E,5,0)","v":{"$error":"#N/A"}},{"$f":"LEFT(Template!D794,6)","v":""},{"$f":"VLOOKUP(G782,'Account mapping'!A:E,5,0)","v":{"$error":"#N/A"}},{"$f":"LEFT(Template!E794,2)","v":""},{"$f":"VLOOKUP(I782,'Structure mapping'!X:AB,5,0)","v":{"$error":"#N/A"}},{"$f":"LEFT(Template!F794,3)","v":""},{"$f":"VLOOKUP(K782,'Structure mapping'!AC:AG,5,0)","v":{"$error":"#N/A"}},{"$f":"LEFT(Template!G794,10)","v":""},{"$f":"VLOOKUP(M782,'Structure mapping'!AH:AL,5,0)","v":{"$error":"#N/A"}},{"$f":"LEFT(Template!H794,6)","v":""},{"$f":"VLOOKUP(O782,'Structure mapping'!AM:AQ,5,0)","v":{"$error":"#N/A"}},null,null,null,null,{"$f":"IF(Template!O794=\"\",\"\",Template!O794)","v":""},"Aug-24 pending entries",{"$f":"TEXT(Template!$B$9,\"mm/dd/yyy\")","v":"08/01/2024"},null,null,null,null,{"$f":"IF(Template!M794>0,Template!M794,-Template!N794)","v":0},null,null,null,{"$f":"VLOOKUP(G782,'Account mapping'!A:D,4,0)","v":{"$error":"#N/A"}}]
[{"$f":"LEFT(Template!A795,4)","v":""},{"$f":"VLOOKUP(A783,'Structure mapping'!K:V,7,0)","v":{"$error":"#N/A"}},{"$f":"LEFT(Template!B795,5)","v":""},{"$f":"VLOOKUP(C783,'Structure mapping'!F:J,5,0)","v":{"$error":"#N/A"}},{"$f":"LEFT(Template!C795,7)","v":""},{"$f":"VLOOKUP(E783,'Structure mapping'!A:E,5,0)","v":{"$error":"#N/A"}},{"$f":"LEFT(Template!D795,6)","v":""},{"$f":"VLOOKUP(G783,'Account mapping'!A:E,5,0)","v":{"$error":"#N/A"}},{"$f":"LEFT(Template!E795,2)","v":""},{"$f":"VLOOKUP(I783,'Structure mapping'!X:AB,5,0)","v":{"$error":"#N/A"}},{"$f":"LEFT(Template!F795,3)","v":""},{"$f":"VLOOKUP(K783,'Structure mapping'!AC:AG,5,0)","v":{"$error":"#N/A"}},{"$f":"LEFT(Template!G795,10)","v":""},{"$f":"VLOOKUP(M783,'Structure mapping'!AH:AL,5,0)","v":{"$error":"#N/A"}},{"$f":"LEFT(Template!H795,6)","v":""},{"$f":"VLOOKUP(O783,'Structure mapping'!AM:AQ,5,0)","v":{"$error":"#N/A"}},null,null,null,null,{"$f":"IF(Template!O795=\"\",\"\",Template!O795)","v":""},"Aug-24 pending entries",{"$f":"TEXT(Template!$B$9,\"mm/dd/yyy\")","v":"08/01/2024"},null,null,null,null,{"$f":"IF(Template!M795>0,Template!M795,-Template!N795)","v":0},null,null,null,{"$f":"VLOOKUP(G783,'Account mapping'!A:D,4,0)","v":{"$error":"#N/A"}}]
[{"$f":"LEFT(Template!A796,4)","v":""},{"$f":"VLOOKUP(A784,'Structure mapping'!K:V,7,0)","v":{"$error":"#N/A"}},{"$f":"LEFT(Template!B796,5)","v":""},{"$f":"VLOOKUP(C784,'Structure mapping'!F:J,5,0)","v":{"$error":"#N/A"}},{"$f":"LEFT(Template!C796,7)","v":""},{"$f":"VLOOKUP(E784,'Structure mapping'!A:E,5,0)","v":{"$error":"#N/A"}},{"$f":"LEFT(Template!D796,6)","v":""},{"$f":"VLOOKUP(G784,'Account mapping'!A:E,5,0)","v":{"$error":"#N/A"}},{"$f":"LEFT(Template!E796,2)","v":""},{"$f":"VLOOKUP(I784,'Structure mapping'!X:AB,5,0)","v":{"$error":"#N/A"}},{"$f":"LEFT(Template!F796,3)","v":""},{"$f":"VLOOKUP(K784,'Structure mapping'!AC:AG,5,0)","v":{"$error":"#N/A"}},{"$f":"LEFT(Template!G796,10)","v":""},{"$f":"VLOOKUP(M784,'Structure mapping'!AH:AL,5,0)","v":{"$error":"#N/A"}},{"$f":"LEFT(Template!H796,6)","v":""},{"$f":"VLOOKUP(O784,'Structure mapping'!AM:AQ,5,0)","v":{"$error":"#N/A"}},null,null,null,null,{"$f":"IF(Template!O796=\"\",\"\",Template!O796)","v":""},"Aug-24 pending entries",{"$f":"TEXT(Template!$B$9,\"mm/dd/yyy\")","v":"08/01/2024"},null,null,null,null,{"$f":"IF(Template!M796>0,Template!M796,-Template!N796)","v":0},null,null,null,{"$f":"VLOOKUP(G784,'Account mapping'!A:D,4,0)","v":{"$error":"#N/A"}}]
[{"$f":"LEFT(Template!A797,4)","v":""},{"$f":"VLOOKUP(A785,'Structure mapping'!K:V,7,0)","v":{"$error":"#N/A"}},{"$f":"LEFT(Template!B797,5)","v":""},{"$f":"VLOOKUP(C785,'Structure mapping'!F:J,5,0)","v":{"$error":"#N/A"}},{"$f":"LEFT(Template!C797,7)","v":""},{"$f":"VLOOKUP(E785,'Structure mapping'!A:E,5,0)","v":{"$error":"#N/A"}},{"$f":"LEFT(Template!D797,6)","v":""},{"$f":"VLOOKUP(G785,'Account mapping'!A:E,5,0)","v":{"$error":"#N/A"}},{"$f":"LEFT(Template!E797,2)","v":""},{"$f":"VLOOKUP(I785,'Structure mapping'!X:AB,5,0)","v":{"$error":"#N/A"}},{"$f":"LEFT(Template!F797,3)","v":""},{"$f":"VLOOKUP(K785,'Structure mapping'!AC:AG,5,0)","v":{"$error":"#N/A"}},{"$f":"LEFT(Template!G797,10)","v":""},{"$f":"VLOOKUP(M785,'Structure mapping'!AH:AL,5,0)","v":{"$error":"#N/A"}},{"$f":"LEFT(Template!H797,6)","v":""},{"$f":"VLOOKUP(O785,'Structure mapping'!AM:AQ,5,0)","v":{"$error":"#N/A"}},null,null,null,null,{"$f":"IF(Template!O797=\"\",\"\",Template!O797)","v":""},"Aug-24 pending entries",{"$f":"TEXT(Template!$B$9,\"mm/dd/yyy\")","v":"08/01/2024"},null,null,null,null,{"$f":"IF(Template!M797>0,Template!M797,-Template!N797)","v":0},null,null,null,{"$f":"VLOOKUP(G785,'Account mapping'!A:D,4,0)","v":{"$error":"#N/A"}}]
[{"$f":"LEFT(Template!A798,4)","v":""},{"$f":"VLOOKUP(A786,'Structure mapping'!K:V,7,0)","v":{"$error":"#N/A"}},{"$f":"LEFT(Template!B798,5)","v":""},{"$f":"VLOOKUP(C786,'Structure mapping'!F:J,5,0)","v":{"$error":"#N/A"}},{"$f":"LEFT(Template!C798,7)","v":""},{"$f":"VLOOKUP(E786,'Structure mapping'!A:E,5,0)","v":{"$error":"#N/A"}},{"$f":"LEFT(Template!D798,6)","v":""},{"$f":"VLOOKUP(G786,'Account mapping'!A:E,5,0)","v":{"$error":"#N/A"}},{"$f":"LEFT(Template!E798,2)","v":""},{"$f":"VLOOKUP(I786,'Structure mapping'!X:AB,5,0)","v":{"$error":"#N/A"}},{"$f":"LEFT(Template!F798,3)","v":""},{"$f":"VLOOKUP(K786,'Structure mapping'!AC:AG,5,0)","v":{"$error":"#N/A"}},{"$f":"LEFT(Template!G798,10)","v":""},{"$f":"VLOOKUP(M786,'Structure mapping'!AH:AL,5,0)","v":{"$error":"#N/A"}},{"$f":"LEFT(Template!H798,6)","v":""},{"$f":"VLOOKUP(O786,'Structure mapping'!AM:AQ,5,0)","v":{"$error":"#N/A"}},null,null,null,null,{"$f":"IF(Template!O798=\"\",\"\",Template!O798)","v":""},"Aug-24 pending entries",{"$f":"TEXT(Template!$B$9,\"mm/dd/yyy\")","v":"08/01/2024"},null,null,null,null,{"$f":"IF(Template!M798>0,Template!M798,-Template!N798)","v":0},null,null,null,{"$f":"VLOOKUP(G786,'Account mapping'!A:D,4,0)","v":{"$error":"#N/A"}}]
[{"$f":"LEFT(Template!A799,4)","v":""},{"$f":"VLOOKUP(A787,'Structure mapping'!K:V,7,0)","v":{"$error":"#N/A"}},{"$f":"LEFT(Template!B799,5)","v":""},{"$f":"VLOOKUP(C787,'Structure mapping'!F:J,5,0)","v":{"$error":"#N/A"}},{"$f":"LEFT(Template!C799,7)","v":""},{"$f":"VLOOKUP(E787,'Structure mapping'!A:E,5,0)","v":{"$error":"#N/A"}},{"$f":"LEFT(Template!D799,6)","v":""},{"$f":"VLOOKUP(G787,'Account mapping'!A:E,5,0)","v":{"$error":"#N/A"}},{"$f":"LEFT(Template!E799,2)","v":""},{"$f":"VLOOKUP(I787,'Structure mapping'!X:AB,5,0)","v":{"$error":"#N/A"}},{"$f":"LEFT(Template!F799,3)","v":""},{"$f":"VLOOKUP(K787,'Structure mapping'!AC:AG,5,0)","v":{"$error":"#N/A"}},{"$f":"LEFT(Template!G799,10)","v":""},{"$f":"VLOOKUP(M787,'Structure mapping'!AH:AL,5,0)","v":{"$error":"#N/A"}},{"$f":"LEFT(Template!H799,6)","v":""},{"$f":"VLOOKUP(O787,'Structure mapping'!AM:AQ,5,0)","v":{"$error":"#N/A"}},null,null,null,null,{"$f":"IF(Template!O799=\"\",\"\",Template!O799)","v":""},"Aug-24 pending entries",{"$f":"TEXT(Template!$B$9,\"mm/dd/yyy\")","v":"08/01/2024"},null,null,null,null,{"$f":"IF(Template!M799>0,Template!M799,-Template!N799)","v":0},null,null,null,{"$f":"VLOOKUP(G787,'Account mapping'!A:D,4,0)","v":{"$error":"#N/A"}}]
[{"$f":"LEFT(Template!A800,4)","v":""},{"$f":"VLOOKUP(A788,'Structure mapping'!K:V,7,0)","v":{"$error":"#N/A"}},{"$f":"LEFT(Template!B800,5)","v":""},{"$f":"VLOOKUP(C788,'Structure mapping'!F:J,5,0)","v":{"$error":"#N/A"}},{"$f":"LEFT(Template!C800,7)","v":""},{"$f":"VLOOKUP(E788,'Structure mapping'!A:E,5,0)","v":{"$error":"#N/A"}},{"$f":"LEFT(Template!D800,6)","v":""},{"$f":"VLOOKUP(G788,'Account mapping'!A:E,5,0)","v":{"$error":"#N/A"}},{"$f":"LEFT(Template!E800,2)","v":""},{"$f":"VLOOKUP(I788,'Structure mapping'!X:AB,5,0)","v":{"$error":"#N/A"}},{"$f":"LEFT(Template!F800,3)","v":""},{"$f":"VLOOKUP(K788,'Structure mapping'!AC:AG,5,0)","v":{"$error":"#N/A"}},{"$f":"LEFT(Template!G800,10)","v":""},{"$f":"VLOOKUP(M788,'Structure mapping'!AH:AL,5,0)","v":{"$error":"#N/A"}},{"$f":"LEFT(Template!H800,6)","v":""},{"$f":"VLOOKUP(O788,'Structure mapping'!AM:AQ,5,0)","v":{"$error":"#N/A"}},null,null,null,null,{"$f":"IF(Template!O800=\"\",\"\",Template!O800)","v":""},"Aug-24 pending entries",{"$f":"TEXT(Template!$B$9,\"mm/dd/yyy\")","v":"08/01/2024"},null,null,null,null,{"$f":"IF(Template!M800>0,Template!M800,-Template!N800)","v":0},null,null,null,{"$f":"VLOOKUP(G788,'Account mapping'!A:D,4,0)","v":{"$error":"#N/A"}}]
[{"$f":"LEFT(Template!A801,4)","v":""},{"$f":"VLOOKUP(A789,'Structure mapping'!K:V,7,0)","v":{"$error":"#N/A"}},{"$f":"LEFT(Template!B801,5)","v":""},{"$f":"VLOOKUP(C789,'Structure mapping'!F:J,5,0)","v":{"$error":"#N/A"}},{"$f":"LEFT(Template!C801,7)","v":""},{"$f":"VLOOKUP(E789,'Structure mapping'!A:E,5,0)","v":{"$error":"#N/A"}},{"$f":"LEFT(Template!D801,6)","v":""},{"$f":"VLOOKUP(G789,'Account mapping'!A:E,5,0)","v":{"$error":"#N/A"}},{"$f":"LEFT(Template!E801,2)","v":""},{"$f":"VLOOKUP(I789,'Structure mapping'!X:AB,5,0)","v":{"$error":"#N/A"}},{"$f":"LEFT(Template!F801,3)","v":""},{"$f":"VLOOKUP(K789,'Structure mapping'!AC:AG,5,0)","v":{"$error":"#N/A"}},{"$f":"LEFT(Template!G801,10)","v":""},{"$f":"VLOOKUP(M789,'Structure mapping'!AH:AL,5,0)","v":{"$error":"#N/A"}},{"$f":"LEFT(Template!H801,6)","v":""},{"$f":"VLOOKUP(O789,'Structure mapping'!AM:AQ,5,0)","v":{"$error":"#N/A"}},null,null,null,null,{"$f":"IF(Template!O801=\"\",\"\",Template!O801)","v":""},"Aug-24 pending entries",{"$f":"TEXT(Template!$B$9,\"mm/dd/yyy\")","v":"08/01/2024"},null,null,null,null,{"$f":"IF(Template!M801>0,Template!M801,-Template!N801)","v":0},null,null,null,{"$f":"VLOOKUP(G789,'Account mapping'!A:D,4,0)","v":{"$error":"#N/A"}}]
[{"$f":"LEFT(Template!A802,4)","v":""},{"$f":"VLOOKUP(A790,'Structure mapping'!K:V,7,0)","v":{"$error":"#N/A"}},{"$f":"LEFT(Template!B802,5)","v":""},{"$f":"VLOOKUP(C790,'Structure mapping'!F:J,5,0)","v":{"$error":"#N/A"}},{"$f":"LEFT(Template!C802,7)","v":""},{"$f":"VLOOKUP(E790,'Structure mapping'!A:E,5,0)","v":{"$error":"#N/A"}},{"$f":"LEFT(Template!D802,6)","v":""},{"$f":"VLOOKUP(G790,'Account mapping'!A:E,5,0)","v":{"$error":"#N/A"}},{"$f":"LEFT(Template!E802,2)","v":""},{"$f":"VLOOKUP(I790,'Structure mapping'!X:AB,5,0)","v":{"$error":"#N/A"}},{"$f":"LEFT(Template!F802,3)","v":""},{"$f":"VLOOKUP(K790,'Structure mapping'!AC:AG,5,0)","v":{"$error":"#N/A"}},{"$f":"LEFT(Template!G802,10)","v":""},{"$f":"VLOOKUP(M790,'Structure mapping'!AH:AL,5,0)","v":{"$error":"#N/A"}},{"$f":"LEFT(Template!H802,6)","v":""},{"$f":"VLOOKUP(O790,'Structure mapping'!AM:AQ,5,0)","v":{"$error":"#N/A"}},null,null,null,null,{"$f":"IF(Template!O802=\"\",\"\",Template!O802)","v":""},"Aug-24 pending entries",{"$f":"TEXT(Template!$B$9,\"mm/dd/yyy\")","v":"08/01/2024"},null,null,null,null,{"$f":"IF(Template!M802>0,Template!M802,-Template!N802)","v":0},null,null,null,{"$f":"VLOOKUP(G790,'Account mapping'!A:D,4,0)","v":{"$error":"#N/A"}}]
[{"$f":"LEFT(Template!A803,4)","v":""},{"$f":"VLOOKUP(A791,'Structure mapping'!K:V,7,0)","v":{"$error":"#N/A"}},{"$f":"LEFT(Template!B803,5)","v":""},{"$f":"VLOOKUP(C791,'Structure mapping'!F:J,5,0)","v":{"$error":"#N/A"}},{"$f":"LEFT(Template!C803,7)","v":""},{"$f":"VLOOKUP(E791,'Structure mapping'!A:E,5,0)","v":{"$error":"#N/A"}},{"$f":"LEFT(Template!D803,6)","v":""},{"$f":"VLOOKUP(G791,'Account mapping'!A:E,5,0)","v":{"$error":"#N/A"}},{"$f":"LEFT(Template!E803,2)","v":""},{"$f":"VLOOKUP(I791,'Structure mapping'!X:AB,5,0)","v":{"$error":"#N/A"}},{"$f":"LEFT(Template!F803,3)","v":""},{"$f":"VLOOKUP(K791,'Structure mapping'!AC:AG,5,0)","v":{"$error":"#N/A"}},{"$f":"LEFT(Template!G803,10)","v":""},{"$f":"VLOOKUP(M791,'Structure mapping'!AH:AL,5,0)","v":{"$error":"#N/A"}},{"$f":"LEFT(Template!H803,6)","v":""},{"$f":"VLOOKUP(O791,'Structure mapping'!AM:AQ,5,0)","v":{"$error":"#N/A"}},null,null,null,null,{"$f":"IF(Template!O803=\"\",\"\",Template!O803)","v":""},"Aug-24 pending entries",{"$f":"TEXT(Template!$B$9,\"mm/dd/yyy\")","v":"08/01/2024"},null,null,null,null,{"$f":"IF(Template!M803>0,Template!M803,-Template!N803)","v":0},null,null,null,{"$f":"VLOOKUP(G791,'Account mapping'!A:D,4,0)","v":{"$error":"#N/A"}}]
[{"$f":"LEFT(Template!A804,4)","v":""},{"$f":"VLOOKUP(A792,'Structure mapping'!K:V,7,0)","v":{"$error":"#N/A"}},{"$f":"LEFT(Template!B804,5)","v":""},{"$f":"VLOOKUP(C792,'Structure mapping'!F:J,5,0)","v":{"$error":"#N/A"}},{"$f":"LEFT(Template!C804,7)","v":""},{"$f":"VLOOKUP(E792,'Structure mapping'!A:E,5,0)","v":{"$error":"#N/A"}},{"$f":"LEFT(Template!D804,6)","v":""},{"$f":"VLOOKUP(G792,'Account mapping'!A:E,5,0)","v":{"$error":"#N/A"}},{"$f":"LEFT(Template!E804,2)","v":""},{"$f":"VLOOKUP(I792,'Structure mapping'!X:AB,5,0)","v":{"$error":"#N/A"}},{"$f":"LEFT(Template!F804,3)","v":""},{"$f":"VLOOKUP(K792,'Structure mapping'!AC:AG,5,0)","v":{"$error":"#N/A"}},{"$f":"LEFT(Template!G804,10)","v":""},{"$f":"VLOOKUP(M792,'Structure mapping'!AH:AL,5,0)","v":{"$error":"#N/A"}},{"$f":"LEFT(Template!H804,6)","v":""},{"$f":"VLOOKUP(O792,'Structure mapping'!AM:AQ,5,0)","v":{"$error":"#N/A"}},null,null,null,null,{"$f":"IF(Template!O804=\"\",\"\",Template!O804)","v":""},"Aug-24 pending entries",{"$f":"TEXT(Template!$B$9,\"mm/dd/yyy\")","v":"08/01/2024"},null,null,null,null,{"$f":"IF(Template!M804>0,Template!M804,-Template!N804)","v":0},null,null,null,{"$f":"VLOOKUP(G792,'Account mapping'!A:D,4,0)","v":{"$error":"#N/A"}}]
[{"$f":"LEFT(Template!A805,4)","v":""},{"$f":"VLOOKUP(A793,'Structure mapping'!K:V,7,0)","v":{"$error":"#N/A"}},{"$f":"LEFT(Template!B805,5)","v":""},{"$f":"VLOOKUP(C793,'Structure mapping'!F:J,5,0)","v":{"$error":"#N/A"}},{"$f":"LEFT(Template!C805,7)","v":""},{"$f":"VLOOKUP(E793,'Structure mapping'!A:E,5,0)","v":{"$error":"#N/A"}},{"$f":"LEFT(Template!D805,6)","v":""},{"$f":"VLOOKUP(G793,'Account mapping'!A:E,5,0)","v":{"$error":"#N/A"}},{"$f":"LEFT(Template!E805,2)","v":""},{"$f":"VLOOKUP(I793,'Structure mapping'!X:AB,5,0)","v":{"$error":"#N/A"}},{"$f":"LEFT(Template!F805,3)","v":""},{"$f":"VLOOKUP(K793,'Structure mapping'!AC:AG,5,0)","v":{"$error":"#N/A"}},{"$f":"LEFT(Template!G805,10)","v":""},{"$f":"VLOOKUP(M793,'Structure mapping'!AH:AL,5,0)","v":{"$error":"#N/A"}},{"$f":"LEFT(Template!H805,6)","v":""},{"$f":"VLOOKUP(O793,'Structure mapping'!AM:AQ,5,0)","v":{"$error":"#N/A"}},null,null,null,null,{"$f":"IF(Template!O805=\"\",\"\",Template!O805)","v":""},"Aug-24 pending entries",{"$f":"TEXT(Template!$B$9,\"mm/dd/yyy\")","v":"08/01/2024"},null,null,null,null,{"$f":"IF(Template!M805>0,Template!M805,-Template!N805)","v":0},null,null,null,{"$f":"VLOOKUP(G793,'Account mapping'!A:D,4,0)","v":{"$error":"#N/A"}}]
[{"$f":"LEFT(Template!A806,4)","v":""},{"$f":"VLOOKUP(A794,'Structure mapping'!K:V,7,0)","v":{"$error":"#N/A"}},{"$f":"LEFT(Template!B806,5)","v":""},{"$f":"VLOOKUP(C794,'Structure mapping'!F:J,5,0)","v":{"$error":"#N/A"}},{"$f":"LEFT(Template!C806,7)","v":""},{"$f":"VLOOKUP(E794,'Structure mapping'!A:E,5,0)","v":{"$error":"#N/A"}},{"$f":"LEFT(Template!D806,6)","v":""},{"$f":"VLOOKUP(G794,'Account mapping'!A:E,5,0)","v":{"$error":"#N/A"}},{"$f":"LEFT(Template!E806,2)","v":""},{"$f":"VLOOKUP(I794,'Structure mapping'!X:AB,5,0)","v":{"$error":"#N/A"}},{"$f":"LEFT(Template!F806,3)","v":""},{"$f":"VLOOKUP(K794,'Structure mapping'!AC:AG,5,0)","v":{"$error":"#N/A"}},{"$f":"LEFT(Template!G806,10)","v":""},{"$f":"VLOOKUP(M794,'Structure mapping'!AH:AL,5,0)","v":{"$error":"#N/A"}},{"$f":"LEFT(Template!H806,6)","v":""},{"$f":"VLOOKUP(O794,'Structure mapping'!AM:AQ,5,0)","v":{"$error":"#N/A"}},null,null,null,null,{"$f":"IF(Template!O806=\"\",\"\",Template!O806)","v":""},"Aug-24 pending entries",{"$f":"TEXT(Template!$B$9,\"mm/dd/yyy\")","v":"08/01/2024"},null,null,null,null,{"$f":"IF(Template!M806>0,Template!M806,-Template!N806)","v":0},null,null,null,{"$f":"VLOOKUP(G794,'Account mapping'!A:D,4,0)","v":{"$error":"#N/A"}}]
[{"$f":"LEFT(Template!A807,4)","v":""},{"$f":"VLOOKUP(A795,'Structure mapping'!K:V,7,0)","v":{"$error":"#N/A"}},{"$f":"LEFT(Template!B807,5)","v":""},{"$f":"VLOOKUP(C795,'Structure mapping'!F:J,5,0)","v":{"$error":"#N/A"}},{"$f":"LEFT(Template!C807,7)","v":""},{"$f":"VLOOKUP(E795,'Structure mapping'!A:E,5,0)","v":{"$error":"#N/A"}},{"$f":"LEFT(Template!D807,6)","v":""},{"$f":"VLOOKUP(G795,'Account mapping'!A:E,5,0)","v":{"$error":"#N/A"}},{"$f":"LEFT(Template!E807,2)","v":""},{"$f":"VLOOKUP(I795,'Structure mapping'!X:AB,5,0)","v":{"$error":"#N/A"}},{"$f":"LEFT(Template!F807,3)","v":""},{"$f":"VLOOKUP(K795,'Structure mapping'!AC:AG,5,0)","v":{"$error":"#N/A"}},{"$f":"LEFT(Template!G807,10)","v":""},{"$f":"VLOOKUP(M795,'Structure mapping'!AH:AL,5,0)","v":{"$error":"#N/A"}},{"$f":"LEFT(Template!H807,6)","v":""},{"$f":"VLOOKUP(O795,'Structure mapping'!AM:AQ,5,0)","v":{"$error":"#N/A"}},null,null,null,null,{"$f":"IF(Template!O807=\"\",\"\",Template!O807)","v":""},"Aug-24 pending entries",{"$f":"TEXT(Template!$B$9,\"mm/dd/yyy\")","v":"08/01/2024"},null,null,null,null,{"$f":"IF(Template!M807>0,Template!M807,-Template!N807)","v":0},null,null,null,{"$f":"VLOOKUP(G795,'Account mapping'!A:D,4,0)","v":{"$error":"#N/A"}}]
[{"$f":"LEFT(Template!A808,4)","v":""},{"$f":"VLOOKUP(A796,'Structure mapping'!K:V,7,0)","v":{"$error":"#N/A"}},{"$f":"LEFT(Template!B808,5)","v":""},{"$f":"VLOOKUP(C796,'Structure mapping'!F:J,5,0)","v":{"$error":"#N/A"}},{"$f":"LEFT(Template!C808,7)","v":""},{"$f":"VLOOKUP(E796,'Structure mapping'!A:E,5,0)","v":{"$error":"#N/A"}},{"$f":"LEFT(Template!D808,6)","v":""},{"$f":"VLOOKUP(G796,'Account mapping'!A:E,5,0)","v":{"$error":"#N/A"}},{"$f":"LEFT(Template!E808,2)","v":""},{"$f":"VLOOKUP(I796,'Structure mapping'!X:AB,5,0)","v":{"$error":"#N/A"}},{"$f":"LEFT(Template!F808,3)","v":""},{"$f":"VLOOKUP(K796,'Structure mapping'!AC:AG,5,0)","v":{"$error":"#N/A"}},{"$f":"LEFT(Template!G808,10)","v":""},{"$f":"VLOOKUP(M796,'Structure mapping'!AH:AL,5,0)","v":{"$error":"#N/A"}},{"$f":"LEFT(Template!H808,6)","v":""},{"$f":"VLOOKUP(O796,'Structure mapping'!AM:AQ,5,0)","v":{"$error":"#N/A"}},null,null,null,null,{"$f":"IF(Template!O808=\"\",\"\",Template!O808)","v":""},"Aug-24 pending entries",{"$f":"TEXT(Template!$B$9,\"mm/dd/yyy\")","v":"08/01/2024"},null,null,null,null,{"$f":"IF(Template!M808>0,Template!M808,-Template!N808)","v":0},null,null,null,{"$f":"VLOOKUP(G796,'Account mapping'!A:D,4,0)","v":{"$error":"#N/A"}}]
[{"$f":"LEFT(Template!A809,4)","v":""},{"$f":"VLOOKUP(A797,'Structure mapping'!K:V,7,0)","v":{"$error":"#N/A"}},{"$f":"LEFT(Template!B809,5)","v":""},{"$f":"VLOOKUP(C797,'Structure mapping'!F:J,5,0)","v":{"$error":"#N/A"}},{"$f":"LEFT(Template!C809,7)","v":""},{"$f":"VLOOKUP(E797,'Structure mapping'!A:E,5,0)","v":{"$error":"#N/A"}},{"$f":"LEFT(Template!D809,6)","v":""},{"$f":"VLOOKUP(G797,'Account mapping'!A:E,5,0)","v":{"$error":"#N/A"}},{"$f":"LEFT(Template!E809,2)","v":""},{"$f":"VLOOKUP(I797,'Structure mapping'!X:AB,5,0)","v":{"$error":"#N/A"}},{"$f":"LEFT(Template!F809,3)","v":""},{"$f":"VLOOKUP(K797,'Structure mapping'!AC:AG,5,0)","v":{"$error":"#N/A"}},{"$f":"LEFT(Template!G809,10)","v":""},{"$f":"VLOOKUP(M797,'Structure mapping'!AH:AL,5,0)","v":{"$error":"#N/A"}},{"$f":"LEFT(Template!H809,6)","v":""},{"$f":"VLOOKUP(O797,'Structure mapping'!AM:AQ,5,0)","v":{"$error":"#N/A"}},null,null,null,null,{"$f":"IF(Template!O809=\"\",\"\",Template!O809)","v":""},"Aug-24 pending entries",{"$f":"TEXT(Template!$B$9,\"mm/dd/yyy\")","v":"08/01/2024"},null,null,null,null,{"$f":"IF(Template!M809>0,Template!M809,-Template!N809)","v":0},null,null,null,{"$f":"VLOOKUP(G797,'Account mapping'!A:D,4,0)","v":{"$error":"#N/A"}}]
[{"$f":"LEFT(Template!A810,4)","v":""},{"$f":"VLOOKUP(A798,'Structure mapping'!K:V,7,0)","v":{"$error":"#N/A"}},{"$f":"LEFT(Template!B810,5)","v":""},{"$f":"VLOOKUP(C798,'Structure mapping'!F:J,5,0)","v":{"$error":"#N/A"}},{"$f":"LEFT(Template!C810,7)","v":""},{"$f":"VLOOKUP(E798,'Structure mapping'!A:E,5,0)","v":{"$error":"#N/A"}},{"$f":"LEFT(Template!D810,6)","v":""},{"$f":"VLOOKUP(G798,'Account mapping'!A:E,5,0)","v":{"$error":"#N/A"}},{"$f":"LEFT(Template!E810,2)","v":""},{"$f":"VLOOKUP(I798,'Structure mapping'!X:AB,5,0)","v":{"$error":"#N/A"}},{"$f":"LEFT(Template!F810,3)","v":""},{"$f":"VLOOKUP(K798,'Structure mapping'!AC:AG,5,0)","v":{"$error":"#N/A"}},{"$f":"LEFT(Template!G810,10)","v":""},{"$f":"VLOOKUP(M798,'Structure mapping'!AH:AL,5,0)","v":{"$error":"#N/A"}},{"$f":"LEFT(Template!H810,6)","v":""},{"$f":"VLOOKUP(O798,'Structure mapping'!AM:AQ,5,0)","v":{"$error":"#N/A"}},null,null,null,null,{"$f":"IF(Template!O810=\"\",\"\",Template!O810)","v":""},"Aug-24 pending entries",{"$f":"TEXT(Template!$B$9,\"mm/dd/yyy\")","v":"08/01/2024"},null,null,null,null,{"$f":"IF(Template!M810>0,Template!M810,-Template!N810)","v":0},null,null,null,{"$f":"VLOOKUP(G798,'Account mapping'!A:D,4,0)","v":{"$error":"#N/A"}}]
[{"$f":"LEFT(Template!A811,4)","v":""},{"$f":"VLOOKUP(A799,'Structure mapping'!K:V,7,0)","v":{"$error":"#N/A"}},{"$f":"LEFT(Template!B811,5)","v":""},{"$f":"VLOOKUP(C799,'Structure mapping'!F:J,5,0)","v":{"$error":"#N/A"}},{"$f":"LEFT(Template!C811,7)","v":""},{"$f":"VLOOKUP(E799,'Structure mapping'!A:E,5,0)","v":{"$error":"#N/A"}},{"$f":"LEFT(Template!D811,6)","v":""},{"$f":"VLOOKUP(G799,'Account mapping'!A:E,5,0)","v":{"$error":"#N/A"}},{"$f":"LEFT(Template!E811,2)","v":""},{"$f":"VLOOKUP(I799,'Structure mapping'!X:AB,5,0)","v":{"$error":"#N/A"}},{"$f":"LEFT(Template!F811,3)","v":""},{"$f":"VLOOKUP(K799,'Structure mapping'!AC:AG,5,0)","v":{"$error":"#N/A"}},{"$f":"LEFT(Template!G811,10)","v":""},{"$f":"VLOOKUP(M799,'Structure mapping'!AH:AL,5,0)","v":{"$error":"#N/A"}},{"$f":"LEFT(Template!H811,6)","v":""},{"$f":"VLOOKUP(O799,'Structure mapping'!AM:AQ,5,0)","v":{"$error":"#N/A"}},null,null,null,null,{"$f":"IF(Template!O811=\"\",\"\",Template!O811)","v":""},"Aug-24 pending entries",{"$f":"TEXT(Template!$B$9,\"mm/dd/yyy\")","v":"08/01/2024"},null,null,null,null,{"$f":"IF(Template!M811>0,Template!M811,-Template!N811)","v":0},null,null,null,{"$f":"VLOOKUP(G799,'Account mapping'!A:D,4,0)","v":{"$error":"#N/A"}}]
[{"$f":"LEFT(Template!A812,4)","v":""},{"$f":"VLOOKUP(A800,'Structure mapping'!K:V,7,0)","v":{"$error":"#N/A"}},{"$f":"LEFT(Template!B812,5)","v":""},{"$f":"VLOOKUP(C800,'Structure mapping'!F:J,5,0)","v":{"$error":"#N/A"}},{"$f":"LEFT(Template!C812,7)","v":""},{"$f":"VLOOKUP(E800,'Structure mapping'!A:E,5,0)","v":{"$error":"#N/A"}},{"$f":"LEFT(Template!D812,6)","v":""},{"$f":"VLOOKUP(G800,'Account mapping'!A:E,5,0)","v":{"$error":"#N/A"}},{"$f":"LEFT(Template!E812,2)","v":""},{"$f":"VLOOKUP(I800,'Structure mapping'!X:AB,5,0)","v":{"$error":"#N/A"}},{"$f":"LEFT(Template!F812,3)","v":""},{"$f":"VLOOKUP(K800,'Structure mapping'!AC:AG,5,0)","v":{"$error":"#N/A"}},{"$f":"LEFT(Template!G812,10)","v":""},{"$f":"VLOOKUP(M800,'Structure mapping'!AH:AL,5,0)","v":{"$error":"#N/A"}},{"$f":"LEFT(Template!H812,6)","v":""},{"$f":"VLOOKUP(O800,'Structure mapping'!AM:AQ,5,0)","v":{"$error":"#N/A"}},null,null,null,null,{"$f":"IF(Template!O812=\"\",\"\",Template!O812)","v":""},"Aug-24 pending entries",{"$f":"TEXT(Template!$B$9,\"mm/dd/yyy\")","v":"08/01/2024"},null,null,null,null,{"$f":"IF(Template!M812>0,Template!M812,-Template!N812)","v":0},null,null,null,{"$f":"VLOOKUP(G800,'Account mapping'!A:D,4,0)","v":{"$error":"#N/A"}}]
[{"$f":"LEFT(Template!A813,4)","v":""},{"$f":"VLOOKUP(A801,'Structure mapping'!K:V,7,0)","v":{"$error":"#N/A"}},{"$f":"LEFT(Template!B813,5)","v":""},{"$f":"VLOOKUP(C801,'Structure mapping'!F:J,5,0)","v":{"$error":"#N/A"}},{"$f":"LEFT(Template!C813,7)","v":""},{"$f":"VLOOKUP(E801,'Structure mapping'!A:E,5,0)","v":{"$error":"#N/A"}},{"$f":"LEFT(Template!D813,6)","v":""},{"$f":"VLOOKUP(G801,'Account mapping'!A:E,5,0)","v":{"$error":"#N/A"}},{"$f":"LEFT(Template!E813,2)","v":""},{"$f":"VLOOKUP(I801,'Structure mapping'!X:AB,5,0)","v":{"$error":"#N/A"}},{"$f":"LEFT(Template!F813,3)","v":""},{"$f":"VLOOKUP(K801,'Structure mapping'!AC:AG,5,0)","v":{"$error":"#N/A"}},{"$f":"LEFT(Template!G813,10)","v":""},{"$f":"VLOOKUP(M801,'Structure mapping'!AH:AL,5,0)","v":{"$error":"#N/A"}},{"$f":"LEFT(Template!H813,6)","v":""},{"$f":"VLOOKUP(O801,'Structure mapping'!AM:AQ,5,0)","v":{"$error":"#N/A"}},null,null,null,null,{"$f":"IF(Template!O813=\"\",\"\",Template!O813)","v":""},"Aug-24 pending entries",{"$f":"TEXT(Template!$B$9,\"mm/dd/yyy\")","v":"08/01/2024"},null,null,null,null,{"$f":"IF(Template!M813>0,Template!M813,-Template!N813)","v":0},null,null,null,{"$f":"VLOOKUP(G801,'Account mapping'!A:D,4,0)","v":{"$error":"#N/A"}}]
[{"$f":"LEFT(Template!A814,4)","v":""},{"$f":"VLOOKUP(A802,'Structure mapping'!K:V,7,0)","v":{"$error":"#N/A"}},{"$f":"LEFT(Template!B814,5)","v":""},{"$f":"VLOOKUP(C802,'Structure mapping'!F:J,5,0)","v":{"$error":"#N/A"}},{"$f":"LEFT(Template!C814,7)","v":""},{"$f":"VLOOKUP(E802,'Structure mapping'!A:E,5,0)","v":{"$error":"#N/A"}},{"$f":"LEFT(Template!D814,6)","v":""},{"$f":"VLOOKUP(G802,'Account mapping'!A:E,5,0)","v":{"$error":"#N/A"}},{"$f":"LEFT(Template!E814,2)","v":""},{"$f":"VLOOKUP(I802,'Structure mapping'!X:AB,5,0)","v":{"$error":"#N/A"}},{"$f":"LEFT(Template!F814,3)","v":""},{"$f":"VLOOKUP(K802,'Structure mapping'!AC:AG,5,0)","v":{"$error":"#N/A"}},{"$f":"LEFT(Template!G814,10)","v":""},{"$f":"VLOOKUP(M802,'Structure mapping'!AH:AL,5,0)","v":{"$error":"#N/A"}},{"$f":"LEFT(Template!H814,6)","v":""},{"$f":"VLOOKUP(O802,'Structure mapping'!AM:AQ,5,0)","v":{"$error":"#N/A"}},null,null,null,null,{"$f":"IF(Template!O814=\"\",\"\",Template!O814)","v":""},"Aug-24 pending entries",{"$f":"TEXT(Template!$B$9,\"mm/dd/yyy\")","v":"08/01/2024"},null,null,null,null,{"$f":"IF(Template!M814>0,Template!M814,-Template!N814)","v":0},null,null,null,{"$f":"VLOOKUP(G802,'Account mapping'!A:D,4,0)","v":{"$error":"#N/A"}}]
[{"$f":"LEFT(Template!A815,4)","v":""},{"$f":"VLOOKUP(A803,'Structure mapping'!K:V,7,0)","v":{"$error":"#N/A"}},{"$f":"LEFT(Template!B815,5)","v":""},{"$f":"VLOOKUP(C803,'Structure mapping'!F:J,5,0)","v":{"$error":"#N/A"}},{"$f":"LEFT(Template!C815,7)","v":""},{"$f":"VLOOKUP(E803,'Structure mapping'!A:E,5,0)","v":{"$error":"#N/A"}},{"$f":"LEFT(Template!D815,6)","v":""},{"$f":"VLOOKUP(G803,'Account mapping'!A:E,5,0)","v":{"$error":"#N/A"}},{"$f":"LEFT(Template!E815,2)","v":""},{"$f":"VLOOKUP(I803,'Structure mapping'!X:AB,5,0)","v":{"$error":"#N/A"}},{"$f":"LEFT(Template!F815,3)","v":""},{"$f":"VLOOKUP(K803,'Structure mapping'!AC:AG,5,0)","v":{"$error":"#N/A"}},{"$f":"LEFT(Template!G815,10)","v":""},{"$f":"VLOOKUP(M803,'Structure mapping'!AH:AL,5,0)","v":{"$error":"#N/A"}},{"$f":"LEFT(Template!H815,6)","v":""},{"$f":"VLOOKUP(O803,'Structure mapping'!AM:AQ,5,0)","v":{"$error":"#N/A"}},null,null,null,null,{"$f":"IF(Template!O815=\"\",\"\",Template!O815)","v":""},"Aug-24 pending entries",{"$f":"TEXT(Template!$B$9,\"mm/dd/yyy\")","v":"08/01/2024"},null,null,null,null,{"$f":"IF(Template!M815>0,Template!M815,-Template!N815)","v":0},null,null,null,{"$f":"VLOOKUP(G803,'Account mapping'!A:D,4,0)","v":{"$error":"#N/A"}}]
[{"$f":"LEFT(Template!A816,4)","v":""},{"$f":"VLOOKUP(A804,'Structure mapping'!K:V,7,0)","v":{"$error":"#N/A"}},{"$f":"LEFT(Template!B816,5)","v":""},{"$f":"VLOOKUP(C804,'Structure mapping'!F:J,5,0)","v":{"$error":"#N/A"}},{"$f":"LEFT(Template!C816,7)","v":""},{"$f":"VLOOKUP(E804,'Structure mapping'!A:E,5,0)","v":{"$error":"#N/A"}},{"$f":"LEFT(Template!D816,6)","v":""},{"$f":"VLOOKUP(G804,'Account mapping'!A:E,5,0)","v":{"$error":"#N/A"}},{"$f":"LEFT(Template!E816,2)","v":""},{"$f":"VLOOKUP(I804,'Structure mapping'!X:AB,5,0)","v":{"$error":"#N/A"}},{"$f":"LEFT(Template!F816,3)","v":""},{"$f":"VLOOKUP(K804,'Structure mapping'!AC:AG,5,0)","v":{"$error":"#N/A"}},{"$f":"LEFT(Template!G816,10)","v":""},{"$f":"VLOOKUP(M804,'Structure mapping'!AH:AL,5,0)","v":{"$error":"#N/A"}},{"$f":"LEFT(Template!H816,6)","v":""},{"$f":"VLOOKUP(O804,'Structure mapping'!AM:AQ,5,0)","v":{"$error":"#N/A"}},null,null,null,null,{"$f":"IF(Template!O816=\"\",\"\",Template!O816)","v":""},"Aug-24 pending entries",{"$f":"TEXT(Template!$B$9,\"mm/dd/yyy\")","v":"08/01/2024"},null,null,null,null,{"$f":"IF(Template!M816>0,Template!M816,-Template!N816)","v":0},null,null,null,{"$f":"VLOOKUP(G804,'Account mapping'!A:D,4,0)","v":{"$error":"#N/A"}}]
[{"$f":"LEFT(Template!A817,4)","v":""},{"$f":"VLOOKUP(A805,'Structure mapping'!K:V,7,0)","v":{"$error":"#N/A"}},{"$f":"LEFT(Template!B817,5)","v":""},{"$f":"VLOOKUP(C805,'Structure mapping'!F:J,5,0)","v":{"$error":"#N/A"}},{"$f":"LEFT(Template!C817,7)","v":""},{"$f":"VLOOKUP(E805,'Structure mapping'!A:E,5,0)","v":{"$error":"#N/A"}},{"$f":"LEFT(Template!D817,6)","v":""},{"$f":"VLOOKUP(G805,'Account mapping'!A:E,5,0)","v":{"$error":"#N/A"}},{"$f":"LEFT(Template!E817,2)","v":""},{"$f":"VLOOKUP(I805,'Structure mapping'!X:AB,5,0)","v":{"$error":"#N/A"}},{"$f":"LEFT(Template!F817,3)","v":""},{"$f":"VLOOKUP(K805,'Structure mapping'!AC:AG,5,0)","v":{"$error":"#N/A"}},{"$f":"LEFT(Template!G817,10)","v":""},{"$f":"VLOOKUP(M805,'Structure mapping'!AH:AL,5,0)","v":{"$error":"#N/A"}},{"$f":"LEFT(Template!H817,6)","v":""},{"$f":"VLOOKUP(O805,'Structure mapping'!AM:AQ,5,0)","v":{"$error":"#N/A"}},null,null,null,null,{"$f":"IF(Template!O817=\"\",\"\",Template!O817)","v":""},"Aug-24 pending entries",{"$f":"TEXT(Template!$B$9,\"mm/dd/yyy\")","v":"08/01/2024"},null,null,null,null,{"$f":"IF(Template!M817>0,Template!M817,-Template!N817)","v":0},null,null,null,{"$f":"VLOOKUP(G805,'Account mapping'!A:D,4,0)","v":{"$error":"#N/A"}}]
[{"$f":"LEFT(Template!A818,4)","v":""},{"$f":"VLOOKUP(A806,'Structure mapping'!K:V,7,0)","v":{"$error":"#N/A"}},{"$f":"LEFT(Template!B818,5)","v":""},{"$f":"VLOOKUP(C806,'Structure mapping'!F:J,5,0)","v":{"$error":"#N/A"}},{"$f":"LEFT(Template!C818,7)","v":""},{"$f":"VLOOKUP(E806,'Structure mapping'!A:E,5,0)","v":{"$error":"#N/A"}},{"$f":"LEFT(Template!D818,6)","v":""},{"$f":"VLOOKUP(G806,'Account mapping'!A:E,5,0)","v":{"$error":"#N/A"}},{"$f":"LEFT(Template!E818,2)","v":""},{"$f":"VLOOKUP(I806,'Structure mapping'!X:AB,5,0)","v":{"$error":"#N/A"}},{"$f":"LEFT(Template!F818,3)","v":""},{"$f":"VLOOKUP(K806,'Structure mapping'!AC:AG,5,0)","v":{"$error":"#N/A"}},{"$f":"LEFT(Template!G818,10)","v":""},{"$f":"VLOOKUP(M806,'Structure mapping'!AH:AL,5,0)","v":{"$error":"#N/A"}},{"$f":"LEFT(Template!H818,6)","v":""},{"$f":"VLOOKUP(O806,'Structure mapping'!AM:AQ,5,0)","v":{"$error":"#N/A"}},null,null,null,null,{"$f":"IF(Template!O818=\"\",\"\",Template!O818)","v":""},"Aug-24 pending entries",{"$f":"TEXT(Template!$B$9,\"mm/dd/yyy\")","v":"08/01/2024"},null,null,null,null,{"$f":"IF(Template!M818>0,Template!M818,-Template!N818)","v":0},null,null,null,{"$f":"VLOOKUP(G806,'Account mapping'!A:D,4,0)","v":{"$error":"#N/A"}}]
[{"$f":"LEFT(Template!A819,4)","v":""},{"$f":"VLOOKUP(A807,'Structure mapping'!K:V,7,0)","v":{"$error":"#N/A"}},{"$f":"LEFT(Template!B819,5)","v":""},{"$f":"VLOOKUP(C807,'Structure mapping'!F:J,5,0)","v":{"$error":"#N/A"}},{"$f":"LEFT(Template!C819,7)","v":""},{"$f":"VLOOKUP(E807,'Structure mapping'!A:E,5,0)","v":{"$error":"#N/A"}},{"$f":"LEFT(Template!D819,6)","v":""},{"$f":"VLOOKUP(G807,'Account mapping'!A:E,5,0)","v":{"$error":"#N/A"}},{"$f":"LEFT(Template!E819,2)","v":""},{"$f":"VLOOKUP(I807,'Structure mapping'!X:AB,5,0)","v":{"$error":"#N/A"}},{"$f":"LEFT(Template!F819,3)","v":""},{"$f":"VLOOKUP(K807,'Structure mapping'!AC:AG,5,0)","v":{"$error":"#N/A"}},{"$f":"LEFT(Template!G819,10)","v":""},{"$f":"VLOOKUP(M807,'Structure mapping'!AH:AL,5,0)","v":{"$error":"#N/A"}},{"$f":"LEFT(Template!H819,6)","v":""},{"$f":"VLOOKUP(O807,'Structure mapping'!AM:AQ,5,0)","v":{"$error":"#N/A"}},null,null,null,null,{"$f":"IF(Template!O819=\"\",\"\",Template!O819)","v":""},"Aug-24 pending entries",{"$f":"TEXT(Template!$B$9,\"mm/dd/yyy\")","v":"08/01/2024"},null,null,null,null,{"$f":"IF(Template!M819>0,Template!M819,-Template!N819)","v":0},null,null,null,{"$f":"VLOOKUP(G807,'Account mapping'!A:D,4,0)","v":{"$error":"#N/A"}}]
[{"$f":"LEFT(Template!A820,4)","v":""},{"$f":"VLOOKUP(A808,'Structure mapping'!K:V,7,0)","v":{"$error":"#N/A"}},{"$f":"LEFT(Template!B820,5)","v":""},{"$f":"VLOOKUP(C808,'Structure mapping'!F:J,5,0)","v":{"$error":"#N/A"}},{"$f":"LEFT(Template!C820,7)","v":""},{"$f":"VLOOKUP(E808,'Structure mapping'!A:E,5,0)","v":{"$error":"#N/A"}},{"$f":"LEFT(Template!D820,6)","v":""},{"$f":"VLOOKUP(G808,'Account mapping'!A:E,5,0)","v":{"$error":"#N/A"}},{"$f":"LEFT(Template!E820,2)","v":""},{"$f":"VLOOKUP(I808,'Structure mapping'!X:AB,5,0)","v":{"$error":"#N/A"}},{"$f":"LEFT(Template!F820,3)","v":""},{"$f":"VLOOKUP(K808,'Structure mapping'!AC:AG,5,0)","v":{"$error":"#N/A"}},{"$f":"LEFT(Template!G820,10)","v":""},{"$f":"VLOOKUP(M808,'Structure mapping'!AH:AL,5,0)","v":{"$error":"#N/A"}},{"$f":"LEFT(Template!H820,6)","v":""},{"$f":"VLOOKUP(O808,'Structure mapping'!AM:AQ,5,0)","v":{"$error":"#N/A"}},null,null,null,null,{"$f":"IF(Template!O820=\"\",\"\",Template!O820)","v":""},"Aug-24 pending entries",{"$f":"TEXT(Template!$B$9,\"mm/dd/yyy\")","v":"08/01/2024"},null,null,null,null,{"$f":"IF(Template!M820>0,Template!M820,-Template!N820)","v":0},null,null,null,{"$f":"VLOOKUP(G808,'Account mapping'!A:D,4,0)","v":{"$error":"#N/A"}}]
[{"$f":"LEFT(Template!A821,4)","v":""},{"$f":"VLOOKUP(A809,'Structure mapping'!K:V,7,0)","v":{"$error":"#N/A"}},{"$f":"LEFT(Template!B821,5)","v":""},{"$f":"VLOOKUP(C809,'Structure mapping'!F:J,5,0)","v":{"$error":"#N/A"}},{"$f":"LEFT(Template!C821,7)","v":""},{"$f":"VLOOKUP(E809,'Structure mapping'!A:E,5,0)","v":{"$error":"#N/A"}},{"$f":"LEFT(Template!D821,6)","v":""},{"$f":"VLOOKUP(G809,'Account mapping'!A:E,5,0)","v":{"$error":"#N/A"}},{"$f":"LEFT(Template!E821,2)","v":""},{"$f":"VLOOKUP(I809,'Structure mapping'!X:AB,5,0)","v":{"$error":"#N/A"}},{"$f":"LEFT(Template!F821,3)","v":""},{"$f":"VLOOKUP(K809,'Structure mapping'!AC:AG,5,0)","v":{"$error":"#N/A"}},{"$f":"LEFT(Template!G821,10)","v":""},{"$f":"VLOOKUP(M809,'Structure mapping'!AH:AL,5,0)","v":{"$error":"#N/A"}},{"$f":"LEFT(Template!H821,6)","v":""},{"$f":"VLOOKUP(O809,'Structure mapping'!AM:AQ,5,0)","v":{"$error":"#N/A"}},null,null,null,null,{"$f":"IF(Template!O821=\"\",\"\",Template!O821)","v":""},"Aug-24 pending entries",{"$f":"TEXT(Template!$B$9,\"mm/dd/yyy\")","v":"08/01/2024"},null,null,null,null,{"$f":"IF(Template!M821>0,Template!M821,-Template!N821)","v":0},null,null,null,{"$f":"VLOOKUP(G809,'Account mapping'!A:D,4,0)","v":{"$error":"#N/A"}}]
[{"$f":"LEFT(Template!A822,4)","v":""},{"$f":"VLOOKUP(A810,'Structure mapping'!K:V,7,0)","v":{"$error":"#N/A"}},{"$f":"LEFT(Template!B822,5)","v":""},{"$f":"VLOOKUP(C810,'Structure mapping'!F:J,5,0)","v":{"$error":"#N/A"}},{"$f":"LEFT(Template!C822,7)","v":""},{"$f":"VLOOKUP(E810,'Structure mapping'!A:E,5,0)","v":{"$error":"#N/A"}},{"$f":"LEFT(Template!D822,6)","v":""},{"$f":"VLOOKUP(G810,'Account mapping'!A:E,5,0)","v":{"$error":"#N/A"}},{"$f":"LEFT(Template!E822,2)","v":""},{"$f":"VLOOKUP(I810,'Structure mapping'!X:AB,5,0)","v":{"$error":"#N/A"}},{"$f":"LEFT(Template!F822,3)","v":""},{"$f":"VLOOKUP(K810,'Structure mapping'!AC:AG,5,0)","v":{"$error":"#N/A"}},{"$f":"LEFT(Template!G822,10)","v":""},{"$f":"VLOOKUP(M810,'Structure mapping'!AH:AL,5,0)","v":{"$error":"#N/A"}},{"$f":"LEFT(Template!H822,6)","v":""},{"$f":"VLOOKUP(O810,'Structure mapping'!AM:AQ,5,0)","v":{"$error":"#N/A"}},null,null,null,null,{"$f":"IF(Template!O822=\"\",\"\",Template!O822)","v":""},"Aug-24 pending entries",{"$f":"TEXT(Template!$B$9,\"mm/dd/yyy\")","v":"08/01/2024"},null,null,null,null,{"$f":"IF(Template!M822>0,Template!M822,-Template!N822)","v":0},null,null,null,{"$f":"VLOOKUP(G810,'Account mapping'!A:D,4,0)","v":{"$error":"#N/A"}}]
[{"$f":"LEFT(Template!A823,4)","v":""},{"$f":"VLOOKUP(A811,'Structure mapping'!K:V,7,0)","v":{"$error":"#N/A"}},{"$f":"LEFT(Template!B823,5)","v":""},{"$f":"VLOOKUP(C811,'Structure mapping'!F:J,5,0)","v":{"$error":"#N/A"}},{"$f":"LEFT(Template!C823,7)","v":""},{"$f":"VLOOKUP(E811,'Structure mapping'!A:E,5,0)","v":{"$error":"#N/A"}},{"$f":"LEFT(Template!D823,6)","v":""},{"$f":"VLOOKUP(G811,'Account mapping'!A:E,5,0)","v":{"$error":"#N/A"}},{"$f":"LEFT(Template!E823,2)","v":""},{"$f":"VLOOKUP(I811,'Structure mapping'!X:AB,5,0)","v":{"$error":"#N/A"}},{"$f":"LEFT(Template!F823,3)","v":""},{"$f":"VLOOKUP(K811,'Structure mapping'!AC:AG,5,0)","v":{"$error":"#N/A"}},{"$f":"LEFT(Template!G823,10)","v":""},{"$f":"VLOOKUP(M811,'Structure mapping'!AH:AL,5,0)","v":{"$error":"#N/A"}},{"$f":"LEFT(Template!H823,6)","v":""},{"$f":"VLOOKUP(O811,'Structure mapping'!AM:AQ,5,0)","v":{"$error":"#N/A"}},null,null,null,null,{"$f":"IF(Template!O823=\"\",\"\",Template!O823)","v":""},"Aug-24 pending entries",{"$f":"TEXT(Template!$B$9,\"mm/dd/yyy\")","v":"08/01/2024"},null,null,null,null,{"$f":"IF(Template!M823>0,Template!M823,-Template!N823)","v":0},null,null,null,{"$f":"VLOOKUP(G811,'Account mapping'!A:D,4,0)","v":{"$error":"#N/A"}}]
[{"$f":"LEFT(Template!A824,4)","v":""},{"$f":"VLOOKUP(A812,'Structure mapping'!K:V,7,0)","v":{"$error":"#N/A"}},{"$f":"LEFT(Template!B824,5)","v":""},{"$f":"VLOOKUP(C812,'Structure mapping'!F:J,5,0)","v":{"$error":"#N/A"}},{"$f":"LEFT(Template!C824,7)","v":""},{"$f":"VLOOKUP(E812,'Structure mapping'!A:E,5,0)","v":{"$error":"#N/A"}},{"$f":"LEFT(Template!D824,6)","v":""},{"$f":"VLOOKUP(G812,'Account mapping'!A:E,5,0)","v":{"$error":"#N/A"}},{"$f":"LEFT(Template!E824,2)","v":""},{"$f":"VLOOKUP(I812,'Structure mapping'!X:AB,5,0)","v":{"$error":"#N/A"}},{"$f":"LEFT(Template!F824,3)","v":""},{"$f":"VLOOKUP(K812,'Structure mapping'!AC:AG,5,0)","v":{"$error":"#N/A"}},{"$f":"LEFT(Template!G824,10)","v":""},{"$f":"VLOOKUP(M812,'Structure mapping'!AH:AL,5,0)","v":{"$error":"#N/A"}},{"$f":"LEFT(Template!H824,6)","v":""},{"$f":"VLOOKUP(O812,'Structure mapping'!AM:AQ,5,0)","v":{"$error":"#N/A"}},null,null,null,null,{"$f":"IF(Template!O824=\"\",\"\",Template!O824)","v":""},"Aug-24 pending entries",{"$f":"TEXT(Template!$B$9,\"mm/dd/yyy\")","v":"08/01/2024"},null,null,null,null,{"$f":"IF(Template!M824>0,Template!M824,-Template!N824)","v":0},null,null,null,{"$f":"VLOOKUP(G812,'Account mapping'!A:D,4,0)","v":{"$error":"#N/A"}}]
[{"$f":"LEFT(Template!A825,4)","v":""},{"$f":"VLOOKUP(A813,'Structure mapping'!K:V,7,0)","v":{"$error":"#N/A"}},{"$f":"LEFT(Template!B825,5)","v":""},{"$f":"VLOOKUP(C813,'Structure mapping'!F:J,5,0)","v":{"$error":"#N/A"}},{"$f":"LEFT(Template!C825,7)","v":""},{"$f":"VLOOKUP(E813,'Structure mapping'!A:E,5,0)","v":{"$error":"#N/A"}},{"$f":"LEFT(Template!D825,6)","v":""},{"$f":"VLOOKUP(G813,'Account mapping'!A:E,5,0)","v":{"$error":"#N/A"}},{"$f":"LEFT(Template!E825,2)","v":""},{"$f":"VLOOKUP(I813,'Structure mapping'!X:AB,5,0)","v":{"$error":"#N/A"}},{"$f":"LEFT(Template!F825,3)","v":""},{"$f":"VLOOKUP(K813,'Structure mapping'!AC:AG,5,0)","v":{"$error":"#N/A"}},{"$f":"LEFT(Template!G825,10)","v":""},{"$f":"VLOOKUP(M813,'Structure mapping'!AH:AL,5,0)","v":{"$error":"#N/A"}},{"$f":"LEFT(Template!H825,6)","v":""},{"$f":"VLOOKUP(O813,'Structure mapping'!AM:AQ,5,0)","v":{"$error":"#N/A"}},null,null,null,null,{"$f":"IF(Template!O825=\"\",\"\",Template!O825)","v":""},"Aug-24 pending entries",{"$f":"TEXT(Template!$B$9,\"mm/dd/yyy\")","v":"08/01/2024"},null,null,null,null,{"$f":"IF(Template!M825>0,Template!M825,-Template!N825)","v":0},null,null,null,{"$f":"VLOOKUP(G813,'Account mapping'!A:D,4,0)","v":{"$error":"#N/A"}}]
[{"$f":"LEFT(Template!A826,4)","v":""},{"$f":"VLOOKUP(A814,'Structure mapping'!K:V,7,0)","v":{"$error":"#N/A"}},{"$f":"LEFT(Template!B826,5)","v":""},{"$f":"VLOOKUP(C814,'Structure mapping'!F:J,5,0)","v":{"$error":"#N/A"}},{"$f":"LEFT(Template!C826,7)","v":""},{"$f":"VLOOKUP(E814,'Structure mapping'!A:E,5,0)","v":{"$error":"#N/A"}},{"$f":"LEFT(Template!D826,6)","v":""},{"$f":"VLOOKUP(G814,'Account mapping'!A:E,5,0)","v":{"$error":"#N/A"}},{"$f":"LEFT(Template!E826,2)","v":""},{"$f":"VLOOKUP(I814,'Structure mapping'!X:AB,5,0)","v":{"$error":"#N/A"}},{"$f":"LEFT(Template!F826,3)","v":""},{"$f":"VLOOKUP(K814,'Structure mapping'!AC:AG,5,0)","v":{"$error":"#N/A"}},{"$f":"LEFT(Template!G826,10)","v":""},{"$f":"VLOOKUP(M814,'Structure mapping'!AH:AL,5,0)","v":{"$error":"#N/A"}},{"$f":"LEFT(Template!H826,6)","v":""},{"$f":"VLOOKUP(O814,'Structure mapping'!AM:AQ,5,0)","v":{"$error":"#N/A"}},null,null,null,null,{"$f":"IF(Template!O826=\"\",\"\",Template!O826)","v":""},"Aug-24 pending entries",{"$f":"TEXT(Template!$B$9,\"mm/dd/yyy\")","v":"08/01/2024"},null,null,null,null,{"$f":"IF(Template!M826>0,Template!M826,-Template!N826)","v":0},null,null,null,{"$f":"VLOOKUP(G814,'Account mapping'!A:D,4,0)","v":{"$error":"#N/A"}}]
[{"$f":"LEFT(Template!A827,4)","v":""},{"$f":"VLOOKUP(A815,'Structure mapping'!K:V,7,0)","v":{"$error":"#N/A"}},{"$f":"LEFT(Template!B827,5)","v":""},{"$f":"VLOOKUP(C815,'Structure mapping'!F:J,5,0)","v":{"$error":"#N/A"}},{"$f":"LEFT(Template!C827,7)","v":""},{"$f":"VLOOKUP(E815,'Structure mapping'!A:E,5,0)","v":{"$error":"#N/A"}},{"$f":"LEFT(Template!D827,6)","v":""},{"$f":"VLOOKUP(G815,'Account mapping'!A:E,5,0)","v":{"$error":"#N/A"}},{"$f":"LEFT(Template!E827,2)","v":""},{"$f":"VLOOKUP(I815,'Structure mapping'!X:AB,5,0)","v":{"$error":"#N/A"}},{"$f":"LEFT(Template!F827,3)","v":""},{"$f":"VLOOKUP(K815,'Structure mapping'!AC:AG,5,0)","v":{"$error":"#N/A"}},{"$f":"LEFT(Template!G827,10)","v":""},{"$f":"VLOOKUP(M815,'Structure mapping'!AH:AL,5,0)","v":{"$error":"#N/A"}},{"$f":"LEFT(Template!H827,6)","v":""},{"$f":"VLOOKUP(O815,'Structure mapping'!AM:AQ,5,0)","v":{"$error":"#N/A"}},null,null,null,null,{"$f":"IF(Template!O827=\"\",\"\",Template!O827)","v":""},"Aug-24 pending entries",{"$f":"TEXT(Template!$B$9,\"mm/dd/yyy\")","v":"08/01/2024"},null,null,null,null,{"$f":"IF(Template!M827>0,Template!M827,-Template!N827)","v":0},null,null,null,{"$f":"VLOOKUP(G815,'Account mapping'!A:D,4,0)","v":{"$error":"#N/A"}}]
[{"$f":"LEFT(Template!A828,4)","v":""},{"$f":"VLOOKUP(A816,'Structure mapping'!K:V,7,0)","v":{"$error":"#N/A"}},{"$f":"LEFT(Template!B828,5)","v":""},{"$f":"VLOOKUP(C816,'Structure mapping'!F:J,5,0)","v":{"$error":"#N/A"}},{"$f":"LEFT(Template!C828,7)","v":""},{"$f":"VLOOKUP(E816,'Structure mapping'!A:E,5,0)","v":{"$error":"#N/A"}},{"$f":"LEFT(Template!D828,6)","v":""},{"$f":"VLOOKUP(G816,'Account mapping'!A:E,5,0)","v":{"$error":"#N/A"}},{"$f":"LEFT(Template!E828,2)","v":""},{"$f":"VLOOKUP(I816,'Structure mapping'!X:AB,5,0)","v":{"$error":"#N/A"}},{"$f":"LEFT(Template!F828,3)","v":""},{"$f":"VLOOKUP(K816,'Structure mapping'!AC:AG,5,0)","v":{"$error":"#N/A"}},{"$f":"LEFT(Template!G828,10)","v":""},{"$f":"VLOOKUP(M816,'Structure mapping'!AH:AL,5,0)","v":{"$error":"#N/A"}},{"$f":"LEFT(Template!H828,6)","v":""},{"$f":"VLOOKUP(O816,'Structure mapping'!AM:AQ,5,0)","v":{"$error":"#N/A"}},null,null,null,null,{"$f":"IF(Template!O828=\"\",\"\",Template!O828)","v":""},"Aug-24 pending entries",{"$f":"TEXT(Template!$B$9,\"mm/dd/yyy\")","v":"08/01/2024"},null,null,null,null,{"$f":"IF(Template!M828>0,Template!M828,-Template!N828)","v":0},null,null,null,{"$f":"VLOOKUP(G816,'Account mapping'!A:D,4,0)","v":{"$error":"#N/A"}}]
[{"$f":"LEFT(Template!A829,4)","v":""},{"$f":"VLOOKUP(A817,'Structure mapping'!K:V,7,0)","v":{"$error":"#N/A"}},{"$f":"LEFT(Template!B829,5)","v":""},{"$f":"VLOOKUP(C817,'Structure mapping'!F:J,5,0)","v":{"$error":"#N/A"}},{"$f":"LEFT(Template!C829,7)","v":""},{"$f":"VLOOKUP(E817,'Structure mapping'!A:E,5,0)","v":{"$error":"#N/A"}},{"$f":"LEFT(Template!D829,6)","v":""},{"$f":"VLOOKUP(G817,'Account mapping'!A:E,5,0)","v":{"$error":"#N/A"}},{"$f":"LEFT(Template!E829,2)","v":""},{"$f":"VLOOKUP(I817,'Structure mapping'!X:AB,5,0)","v":{"$error":"#N/A"}},{"$f":"LEFT(Template!F829,3)","v":""},{"$f":"VLOOKUP(K817,'Structure mapping'!AC:AG,5,0)","v":{"$error":"#N/A"}},{"$f":"LEFT(Template!G829,10)","v":""},{"$f":"VLOOKUP(M817,'Structure mapping'!AH:AL,5,0)","v":{"$error":"#N/A"}},{"$f":"LEFT(Template!H829,6)","v":""},{"$f":"VLOOKUP(O817,'Structure mapping'!AM:AQ,5,0)","v":{"$error":"#N/A"}},null,null,null,null,{"$f":"IF(Template!O829=\"\",\"\",Template!O829)","v":""},"Aug-24 pending entries",{"$f":"TEXT(Template!$B$9,\"mm/dd/yyy\")","v":"08/01/2024"},null,null,null,null,{"$f":"IF(Template!M829>0,Template!M829,-Template!N829)","v":0},null,null,null,{"$f":"VLOOKUP(G817,'Account mapping'!A:D,4,0)","v":{"$error":"#N/A"}}]
[{"$f":"LEFT(Template!A830,4)","v":""},{"$f":"VLOOKUP(A818,'Structure mapping'!K:V,7,0)","v":{"$error":"#N/A"}},{"$f":"LEFT(Template!B830,5)","v":""},{"$f":"VLOOKUP(C818,'Structure mapping'!F:J,5,0)","v":{"$error":"#N/A"}},{"$f":"LEFT(Template!C830,7)","v":""},{"$f":"VLOOKUP(E818,'Structure mapping'!A:E,5,0)","v":{"$error":"#N/A"}},{"$f":"LEFT(Template!D830,6)","v":""},{"$f":"VLOOKUP(G818,'Account mapping'!A:E,5,0)","v":{"$error":"#N/A"}},{"$f":"LEFT(Template!E830,2)","v":""},{"$f":"VLOOKUP(I818,'Structure mapping'!X:AB,5,0)","v":{"$error":"#N/A"}},{"$f":"LEFT(Template!F830,3)","v":""},{"$f":"VLOOKUP(K818,'Structure mapping'!AC:AG,5,0)","v":{"$error":"#N/A"}},{"$f":"LEFT(Template!G830,10)","v":""},{"$f":"VLOOKUP(M818,'Structure mapping'!AH:AL,5,0)","v":{"$error":"#N/A"}},{"$f":"LEFT(Template!H830,6)","v":""},{"$f":"VLOOKUP(O818,'Structure mapping'!AM:AQ,5,0)","v":{"$error":"#N/A"}},null,null,null,null,{"$f":"IF(Template!O830=\"\",\"\",Template!O830)","v":""},"Aug-24 pending entries",{"$f":"TEXT(Template!$B$9,\"mm/dd/yyy\")","v":"08/01/2024"},null,null,null,null,{"$f":"IF(Template!M830>0,Template!M830,-Template!N830)","v":0},null,null,null,{"$f":"VLOOKUP(G818,'Account mapping'!A:D,4,0)","v":{"$error":"#N/A"}}]
[{"$f":"LEFT(Template!A831,4)","v":""},{"$f":"VLOOKUP(A819,'Structure mapping'!K:V,7,0)","v":{"$error":"#N/A"}},{"$f":"LEFT(Template!B831,5)","v":""},{"$f":"VLOOKUP(C819,'Structure mapping'!F:J,5,0)","v":{"$error":"#N/A"}},{"$f":"LEFT(Template!C831,7)","v":""},{"$f":"VLOOKUP(E819,'Structure mapping'!A:E,5,0)","v":{"$error":"#N/A"}},{"$f":"LEFT(Template!D831,6)","v":""},{"$f":"VLOOKUP(G819,'Account mapping'!A:E,5,0)","v":{"$error":"#N/A"}},{"$f":"LEFT(Template!E831,2)","v":""},{"$f":"VLOOKUP(I819,'Structure mapping'!X:AB,5,0)","v":{"$error":"#N/A"}},{"$f":"LEFT(Template!F831,3)","v":""},{"$f":"VLOOKUP(K819,'Structure mapping'!AC:AG,5,0)","v":{"$error":"#N/A"}},{"$f":"LEFT(Template!G831,10)","v":""},{"$f":"VLOOKUP(M819,'Structure mapping'!AH:AL,5,0)","v":{"$error":"#N/A"}},{"$f":"LEFT(Template!H831,6)","v":""},{"$f":"VLOOKUP(O819,'Structure mapping'!AM:AQ,5,0)","v":{"$error":"#N/A"}},null,null,null,null,{"$f":"IF(Template!O831=\"\",\"\",Template!O831)","v":""},"Aug-24 pending entries",{"$f":"TEXT(Template!$B$9,\"mm/dd/yyy\")","v":"08/01/2024"},null,null,null,null,{"$f":"IF(Template!M831>0,Template!M831,-Template!N831)","v":0},null,null,null,{"$f":"VLOOKUP(G819,'Account mapping'!A:D,4,0)","v":{"$error":"#N/A"}}]
[{"$f":"LEFT(Template!A832,4)","v":""},{"$f":"VLOOKUP(A820,'Structure mapping'!K:V,7,0)","v":{"$error":"#N/A"}},{"$f":"LEFT(Template!B832,5)","v":""},{"$f":"VLOOKUP(C820,'Structure mapping'!F:J,5,0)","v":{"$error":"#N/A"}},{"$f":"LEFT(Template!C832,7)","v":""},{"$f":"VLOOKUP(E820,'Structure mapping'!A:E,5,0)","v":{"$error":"#N/A"}},{"$f":"LEFT(Template!D832,6)","v":""},{"$f":"VLOOKUP(G820,'Account mapping'!A:E,5,0)","v":{"$error":"#N/A"}},{"$f":"LEFT(Template!E832,2)","v":""},{"$f":"VLOOKUP(I820,'Structure mapping'!X:AB,5,0)","v":{"$error":"#N/A"}},{"$f":"LEFT(Template!F832,3)","v":""},{"$f":"VLOOKUP(K820,'Structure mapping'!AC:AG,5,0)","v":{"$error":"#N/A"}},{"$f":"LEFT(Template!G832,10)","v":""},{"$f":"VLOOKUP(M820,'Structure mapping'!AH:AL,5,0)","v":{"$error":"#N/A"}},{"$f":"LEFT(Template!H832,6)","v":""},{"$f":"VLOOKUP(O820,'Structure mapping'!AM:AQ,5,0)","v":{"$error":"#N/A"}},null,null,null,null,{"$f":"IF(Template!O832=\"\",\"\",Template!O832)","v":""},"Aug-24 pending entries",{"$f":"TEXT(Template!$B$9,\"mm/dd/yyy\")","v":"08/01/2024"},null,null,null,null,{"$f":"IF(Template!M832>0,Template!M832,-Template!N832)","v":0},null,null,null,{"$f":"VLOOKUP(G820,'Account mapping'!A:D,4,0)","v":{"$error":"#N/A"}}]
[{"$f":"LEFT(Template!A833,4)","v":""},{"$f":"VLOOKUP(A821,'Structure mapping'!K:V,7,0)","v":{"$error":"#N/A"}},{"$f":"LEFT(Template!B833,5)","v":""},{"$f":"VLOOKUP(C821,'Structure mapping'!F:J,5,0)","v":{"$error":"#N/A"}},{"$f":"LEFT(Template!C833,7)","v":""},{"$f":"VLOOKUP(E821,'Structure mapping'!A:E,5,0)","v":{"$error":"#N/A"}},{"$f":"LEFT(Template!D833,6)","v":""},{"$f":"VLOOKUP(G821,'Account mapping'!A:E,5,0)","v":{"$error":"#N/A"}},{"$f":"LEFT(Template!E833,2)","v":""},{"$f":"VLOOKUP(I821,'Structure mapping'!X:AB,5,0)","v":{"$error":"#N/A"}},{"$f":"LEFT(Template!F833,3)","v":""},{"$f":"VLOOKUP(K821,'Structure mapping'!AC:AG,5,0)","v":{"$error":"#N/A"}},{"$f":"LEFT(Template!G833,10)","v":""},{"$f":"VLOOKUP(M821,'Structure mapping'!AH:AL,5,0)","v":{"$error":"#N/A"}},{"$f":"LEFT(Template!H833,6)","v":""},{"$f":"VLOOKUP(O821,'Structure mapping'!AM:AQ,5,0)","v":{"$error":"#N/A"}},null,null,null,null,{"$f":"IF(Template!O833=\"\",\"\",Template!O833)","v":""},"Aug-24 pending entries",{"$f":"TEXT(Template!$B$9,\"mm/dd/yyy\")","v":"08/01/2024"},null,null,null,null,{"$f":"IF(Template!M833>0,Template!M833,-Template!N833)","v":0},null,null,null,{"$f":"VLOOKUP(G821,'Account mapping'!A:D,4,0)","v":{"$error":"#N/A"}}]
[{"$f":"LEFT(Template!A834,4)","v":""},{"$f":"VLOOKUP(A822,'Structure mapping'!K:V,7,0)","v":{"$error":"#N/A"}},{"$f":"LEFT(Template!B834,5)","v":""},{"$f":"VLOOKUP(C822,'Structure mapping'!F:J,5,0)","v":{"$error":"#N/A"}},{"$f":"LEFT(Template!C834,7)","v":""},{"$f":"VLOOKUP(E822,'Structure mapping'!A:E,5,0)","v":{"$error":"#N/A"}},{"$f":"LEFT(Template!D834,6)","v":""},{"$f":"VLOOKUP(G822,'Account mapping'!A:E,5,0)","v":{"$error":"#N/A"}},{"$f":"LEFT(Template!E834,2)","v":""},{"$f":"VLOOKUP(I822,'Structure mapping'!X:AB,5,0)","v":{"$error":"#N/A"}},{"$f":"LEFT(Template!F834,3)","v":""},{"$f":"VLOOKUP(K822,'Structure mapping'!AC:AG,5,0)","v":{"$error":"#N/A"}},{"$f":"LEFT(Template!G834,10)","v":""},{"$f":"VLOOKUP(M822,'Structure mapping'!AH:AL,5,0)","v":{"$error":"#N/A"}},{"$f":"LEFT(Template!H834,6)","v":""},{"$f":"VLOOKUP(O822,'Structure mapping'!AM:AQ,5,0)","v":{"$error":"#N/A"}},null,null,null,null,{"$f":"IF(Template!O834=\"\",\"\",Template!O834)","v":""},"Aug-24 pending entries",{"$f":"TEXT(Template!$B$9,\"mm/dd/yyy\")","v":"08/01/2024"},null,null,null,null,{"$f":"IF(Template!M834>0,Template!M834,-Template!N834)","v":0},null,null,null,{"$f":"VLOOKUP(G822,'Account mapping'!A:D,4,0)","v":{"$error":"#N/A"}}]
[{"$f":"LEFT(Template!A835,4)","v":""},{"$f":"VLOOKUP(A823,'Structure mapping'!K:V,7,0)","v":{"$error":"#N/A"}},{"$f":"LEFT(Template!B835,5)","v":""},{"$f":"VLOOKUP(C823,'Structure mapping'!F:J,5,0)","v":{"$error":"#N/A"}},{"$f":"LEFT(Template!C835,7)","v":""},{"$f":"VLOOKUP(E823,'Structure mapping'!A:E,5,0)","v":{"$error":"#N/A"}},{"$f":"LEFT(Template!D835,6)","v":""},{"$f":"VLOOKUP(G823,'Account mapping'!A:E,5,0)","v":{"$error":"#N/A"}},{"$f":"LEFT(Template!E835,2)","v":""},{"$f":"VLOOKUP(I823,'Structure mapping'!X:AB,5,0)","v":{"$error":"#N/A"}},{"$f":"LEFT(Template!F835,3)","v":""},{"$f":"VLOOKUP(K823,'Structure mapping'!AC:AG,5,0)","v":{"$error":"#N/A"}},{"$f":"LEFT(Template!G835,10)","v":""},{"$f":"VLOOKUP(M823,'Structure mapping'!AH:AL,5,0)","v":{"$error":"#N/A"}},{"$f":"LEFT(Template!H835,6)","v":""},{"$f":"VLOOKUP(O823,'Structure mapping'!AM:AQ,5,0)","v":{"$error":"#N/A"}},null,null,null,null,{"$f":"IF(Template!O835=\"\",\"\",Template!O835)","v":""},"Aug-24 pending entries",{"$f":"TEXT(Template!$B$9,\"mm/dd/yyy\")","v":"08/01/2024"},null,null,null,null,{"$f":"IF(Template!M835>0,Template!M835,-Template!N835)","v":0},null,null,null,{"$f":"VLOOKUP(G823,'Account mapping'!A:D,4,0)","v":{"$error":"#N/A"}}]
[{"$f":"LEFT(Template!A836,4)","v":""},{"$f":"VLOOKUP(A824,'Structure mapping'!K:V,7,0)","v":{"$error":"#N/A"}},{"$f":"LEFT(Template!B836,5)","v":""},{"$f":"VLOOKUP(C824,'Structure mapping'!F:J,5,0)","v":{"$error":"#N/A"}},{"$f":"LEFT(Template!C836,7)","v":""},{"$f":"VLOOKUP(E824,'Structure mapping'!A:E,5,0)","v":{"$error":"#N/A"}},{"$f":"LEFT(Template!D836,6)","v":""},{"$f":"VLOOKUP(G824,'Account mapping'!A:E,5,0)","v":{"$error":"#N/A"}},{"$f":"LEFT(Template!E836,2)","v":""},{"$f":"VLOOKUP(I824,'Structure mapping'!X:AB,5,0)","v":{"$error":"#N/A"}},{"$f":"LEFT(Template!F836,3)","v":""},{"$f":"VLOOKUP(K824,'Structure mapping'!AC:AG,5,0)","v":{"$error":"#N/A"}},{"$f":"LEFT(Template!G836,10)","v":""},{"$f":"VLOOKUP(M824,'Structure mapping'!AH:AL,5,0)","v":{"$error":"#N/A"}},{"$f":"LEFT(Template!H836,6)","v":""},{"$f":"VLOOKUP(O824,'Structure mapping'!AM:AQ,5,0)","v":{"$error":"#N/A"}},null,null,null,null,{"$f":"IF(Template!O836=\"\",\"\",Template!O836)","v":""},"Aug-24 pending entries",{"$f":"TEXT(Template!$B$9,\"mm/dd/yyy\")","v":"08/01/2024"},null,null,null,null,{"$f":"IF(Template!M836>0,Template!M836,-Template!N836)","v":0},null,null,null,{"$f":"VLOOKUP(G824,'Account mapping'!A:D,4,0)","v":{"$error":"#N/A"}}]
[{"$f":"LEFT(Template!A837,4)","v":""},{"$f":"VLOOKUP(A825,'Structure mapping'!K:V,7,0)","v":{"$error":"#N/A"}},{"$f":"LEFT(Template!B837,5)","v":""},{"$f":"VLOOKUP(C825,'Structure mapping'!F:J,5,0)","v":{"$error":"#N/A"}},{"$f":"LEFT(Template!C837,7)","v":""},{"$f":"VLOOKUP(E825,'Structure mapping'!A:E,5,0)","v":{"$error":"#N/A"}},{"$f":"LEFT(Template!D837,6)","v":""},{"$f":"VLOOKUP(G825,'Account mapping'!A:E,5,0)","v":{"$error":"#N/A"}},{"$f":"LEFT(Template!E837,2)","v":""},{"$f":"VLOOKUP(I825,'Structure mapping'!X:AB,5,0)","v":{"$error":"#N/A"}},{"$f":"LEFT(Template!F837,3)","v":""},{"$f":"VLOOKUP(K825,'Structure mapping'!AC:AG,5,0)","v":{"$error":"#N/A"}},{"$f":"LEFT(Template!G837,10)","v":""},{"$f":"VLOOKUP(M825,'Structure mapping'!AH:AL,5,0)","v":{"$error":"#N/A"}},{"$f":"LEFT(Template!H837,6)","v":""},{"$f":"VLOOKUP(O825,'Structure mapping'!AM:AQ,5,0)","v":{"$error":"#N/A"}},null,null,null,null,{"$f":"IF(Template!O837=\"\",\"\",Template!O837)","v":""},"Aug-24 pending entries",{"$f":"TEXT(Template!$B$9,\"mm/dd/yyy\")","v":"08/01/2024"},null,null,null,null,{"$f":"IF(Template!M837>0,Template!M837,-Template!N837)","v":0},null,null,null,{"$f":"VLOOKUP(G825,'Account mapping'!A:D,4,0)","v":{"$error":"#N/A"}}]
[{"$f":"LEFT(Template!A838,4)","v":""},{"$f":"VLOOKUP(A826,'Structure mapping'!K:V,7,0)","v":{"$error":"#N/A"}},{"$f":"LEFT(Template!B838,5)","v":""},{"$f":"VLOOKUP(C826,'Structure mapping'!F:J,5,0)","v":{"$error":"#N/A"}},{"$f":"LEFT(Template!C838,7)","v":""},{"$f":"VLOOKUP(E826,'Structure mapping'!A:E,5,0)","v":{"$error":"#N/A"}},{"$f":"LEFT(Template!D838,6)","v":""},{"$f":"VLOOKUP(G826,'Account mapping'!A:E,5,0)","v":{"$error":"#N/A"}},{"$f":"LEFT(Template!E838,2)","v":""},{"$f":"VLOOKUP(I826,'Structure mapping'!X:AB,5,0)","v":{"$error":"#N/A"}},{"$f":"LEFT(Template!F838,3)","v":""},{"$f":"VLOOKUP(K826,'Structure mapping'!AC:AG,5,0)","v":{"$error":"#N/A"}},{"$f":"LEFT(Template!G838,10)","v":""},{"$f":"VLOOKUP(M826,'Structure mapping'!AH:AL,5,0)","v":{"$error":"#N/A"}},{"$f":"LEFT(Template!H838,6)","v":""},{"$f":"VLOOKUP(O826,'Structure mapping'!AM:AQ,5,0)","v":{"$error":"#N/A"}},null,null,null,null,{"$f":"IF(Template!O838=\"\",\"\",Template!O838)","v":""},"Aug-24 pending entries",{"$f":"TEXT(Template!$B$9,\"mm/dd/yyy\")","v":"08/01/2024"},null,null,null,null,{"$f":"IF(Template!M838>0,Template!M838,-Template!N838)","v":0},null,null,null,{"$f":"VLOOKUP(G826,'Account mapping'!A:D,4,0)","v":{"$error":"#N/A"}}]
[{"$f":"LEFT(Template!A839,4)","v":""},{"$f":"VLOOKUP(A827,'Structure mapping'!K:V,7,0)","v":{"$error":"#N/A"}},{"$f":"LEFT(Template!B839,5)","v":""},{"$f":"VLOOKUP(C827,'Structure mapping'!F:J,5,0)","v":{"$error":"#N/A"}},{"$f":"LEFT(Template!C839,7)","v":""},{"$f":"VLOOKUP(E827,'Structure mapping'!A:E,5,0)","v":{"$error":"#N/A"}},{"$f":"LEFT(Template!D839,6)","v":""},{"$f":"VLOOKUP(G827,'Account mapping'!A:E,5,0)","v":{"$error":"#N/A"}},{"$f":"LEFT(Template!E839,2)","v":""},{"$f":"VLOOKUP(I827,'Structure mapping'!X:AB,5,0)","v":{"$error":"#N/A"}},{"$f":"LEFT(Template!F839,3)","v":""},{"$f":"VLOOKUP(K827,'Structure mapping'!AC:AG,5,0)","v":{"$error":"#N/A"}},{"$f":"LEFT(Template!G839,10)","v":""},{"$f":"VLOOKUP(M827,'Structure mapping'!AH:AL,5,0)","v":{"$error":"#N/A"}},{"$f":"LEFT(Template!H839,6)","v":""},{"$f":"VLOOKUP(O827,'Structure mapping'!AM:AQ,5,0)","v":{"$error":"#N/A"}},null,null,null,null,{"$f":"IF(Template!O839=\"\",\"\",Template!O839)","v":""},"Aug-24 pending entries",{"$f":"TEXT(Template!$B$9,\"mm/dd/yyy\")","v":"08/01/2024"},null,null,null,null,{"$f":"IF(Template!M839>0,Template!M839,-Template!N839)","v":0},null,null,null,{"$f":"VLOOKUP(G827,'Account mapping'!A:D,4,0)","v":{"$error":"#N/A"}}]
[{"$f":"LEFT(Template!A840,4)","v":""},{"$f":"VLOOKUP(A828,'Structure mapping'!K:V,7,0)","v":{"$error":"#N/A"}},{"$f":"LEFT(Template!B840,5)","v":""},{"$f":"VLOOKUP(C828,'Structure mapping'!F:J,5,0)","v":{"$error":"#N/A"}},{"$f":"LEFT(Template!C840,7)","v":""},{"$f":"VLOOKUP(E828,'Structure mapping'!A:E,5,0)","v":{"$error":"#N/A"}},{"$f":"LEFT(Template!D840,6)","v":""},{"$f":"VLOOKUP(G828,'Account mapping'!A:E,5,0)","v":{"$error":"#N/A"}},{"$f":"LEFT(Template!E840,2)","v":""},{"$f":"VLOOKUP(I828,'Structure mapping'!X:AB,5,0)","v":{"$error":"#N/A"}},{"$f":"LEFT(Template!F840,3)","v":""},{"$f":"VLOOKUP(K828,'Structure mapping'!AC:AG,5,0)","v":{"$error":"#N/A"}},{"$f":"LEFT(Template!G840,10)","v":""},{"$f":"VLOOKUP(M828,'Structure mapping'!AH:AL,5,0)","v":{"$error":"#N/A"}},{"$f":"LEFT(Template!H840,6)","v":""},{"$f":"VLOOKUP(O828,'Structure mapping'!AM:AQ,5,0)","v":{"$error":"#N/A"}},null,null,null,null,{"$f":"IF(Template!O840=\"\",\"\",Template!O840)","v":""},"Aug-24 pending entries",{"$f":"TEXT(Template!$B$9,\"mm/dd/yyy\")","v":"08/01/2024"},null,null,null,null,{"$f":"IF(Template!M840>0,Template!M840,-Template!N840)","v":0},null,null,null,{"$f":"VLOOKUP(G828,'Account mapping'!A:D,4,0)","v":{"$error":"#N/A"}}]
[{"$f":"LEFT(Template!A841,4)","v":""},{"$f":"VLOOKUP(A829,'Structure mapping'!K:V,7,0)","v":{"$error":"#N/A"}},{"$f":"LEFT(Template!B841,5)","v":""},{"$f":"VLOOKUP(C829,'Structure mapping'!F:J,5,0)","v":{"$error":"#N/A"}},{"$f":"LEFT(Template!C841,7)","v":""},{"$f":"VLOOKUP(E829,'Structure mapping'!A:E,5,0)","v":{"$error":"#N/A"}},{"$f":"LEFT(Template!D841,6)","v":""},{"$f":"VLOOKUP(G829,'Account mapping'!A:E,5,0)","v":{"$error":"#N/A"}},{"$f":"LEFT(Template!E841,2)","v":""},{"$f":"VLOOKUP(I829,'Structure mapping'!X:AB,5,0)","v":{"$error":"#N/A"}},{"$f":"LEFT(Template!F841,3)","v":""},{"$f":"VLOOKUP(K829,'Structure mapping'!AC:AG,5,0)","v":{"$error":"#N/A"}},{"$f":"LEFT(Template!G841,10)","v":""},{"$f":"VLOOKUP(M829,'Structure mapping'!AH:AL,5,0)","v":{"$error":"#N/A"}},{"$f":"LEFT(Template!H841,6)","v":""},{"$f":"VLOOKUP(O829,'Structure mapping'!AM:AQ,5,0)","v":{"$error":"#N/A"}},null,null,null,null,{"$f":"IF(Template!O841=\"\",\"\",Template!O841)","v":""},"Aug-24 pending entries",{"$f":"TEXT(Template!$B$9,\"mm/dd/yyy\")","v":"08/01/2024"},null,null,null,null,{"$f":"IF(Template!M841>0,Template!M841,-Template!N841)","v":0},null,null,null,{"$f":"VLOOKUP(G829,'Account mapping'!A:D,4,0)","v":{"$error":"#N/A"}}]
[{"$f":"LEFT(Template!A842,4)","v":""},{"$f":"VLOOKUP(A830,'Structure mapping'!K:V,7,0)","v":{"$error":"#N/A"}},{"$f":"LEFT(Template!B842,5)","v":""},{"$f":"VLOOKUP(C830,'Structure mapping'!F:J,5,0)","v":{"$error":"#N/A"}},{"$f":"LEFT(Template!C842,7)","v":""},{"$f":"VLOOKUP(E830,'Structure mapping'!A:E,5,0)","v":{"$error":"#N/A"}},{"$f":"LEFT(Template!D842,6)","v":""},{"$f":"VLOOKUP(G830,'Account mapping'!A:E,5,0)","v":{"$error":"#N/A"}},{"$f":"LEFT(Template!E842,2)","v":""},{"$f":"VLOOKUP(I830,'Structure mapping'!X:AB,5,0)","v":{"$error":"#N/A"}},{"$f":"LEFT(Template!F842,3)","v":""},{"$f":"VLOOKUP(K830,'Structure mapping'!AC:AG,5,0)","v":{"$error":"#N/A"}},{"$f":"LEFT(Template!G842,10)","v":""},{"$f":"VLOOKUP(M830,'Structure mapping'!AH:AL,5,0)","v":{"$error":"#N/A"}},{"$f":"LEFT(Template!H842,6)","v":""},{"$f":"VLOOKUP(O830,'Structure mapping'!AM:AQ,5,0)","v":{"$error":"#N/A"}},null,null,null,null,{"$f":"IF(Template!O842=\"\",\"\",Template!O842)","v":""},"Aug-24 pending entries",{"$f":"TEXT(Template!$B$9,\"mm/dd/yyy\")","v":"08/01/2024"},null,null,null,null,{"$f":"IF(Template!M842>0,Template!M842,-Template!N842)","v":0},null,null,null,{"$f":"VLOOKUP(G830,'Account mapping'!A:D,4,0)","v":{"$error":"#N/A"}}]
[{"$f":"LEFT(Template!A843,4)","v":""},{"$f":"VLOOKUP(A831,'Structure mapping'!K:V,7,0)","v":{"$error":"#N/A"}},{"$f":"LEFT(Template!B843,5)","v":""},{"$f":"VLOOKUP(C831,'Structure mapping'!F:J,5,0)","v":{"$error":"#N/A"}},{"$f":"LEFT(Template!C843,7)","v":""},{"$f":"VLOOKUP(E831,'Structure mapping'!A:E,5,0)","v":{"$error":"#N/A"}},{"$f":"LEFT(Template!D843,6)","v":""},{"$f":"VLOOKUP(G831,'Account mapping'!A:E,5,0)","v":{"$error":"#N/A"}},{"$f":"LEFT(Template!E843,2)","v":""},{"$f":"VLOOKUP(I831,'Structure mapping'!X:AB,5,0)","v":{"$error":"#N/A"}},{"$f":"LEFT(Template!F843,3)","v":""},{"$f":"VLOOKUP(K831,'Structure mapping'!AC:AG,5,0)","v":{"$error":"#N/A"}},{"$f":"LEFT(Template!G843,10)","v":""},{"$f":"VLOOKUP(M831,'Structure mapping'!AH:AL,5,0)","v":{"$error":"#N/A"}},{"$f":"LEFT(Template!H843,6)","v":""},{"$f":"VLOOKUP(O831,'Structure mapping'!AM:AQ,5,0)","v":{"$error":"#N/A"}},null,null,null,null,{"$f":"IF(Template!O843=\"\",\"\",Template!O843)","v":""},"Aug-24 pending entries",{"$f":"TEXT(Template!$B$9,\"mm/dd/yyy\")","v":"08/01/2024"},null,null,null,null,{"$f":"IF(Template!M843>0,Template!M843,-Template!N843)","v":0},null,null,null,{"$f":"VLOOKUP(G831,'Account mapping'!A:D,4,0)","v":{"$error":"#N/A"}}]
[{"$f":"LEFT(Template!A844,4)","v":""},{"$f":"VLOOKUP(A832,'Structure mapping'!K:V,7,0)","v":{"$error":"#N/A"}},{"$f":"LEFT(Template!B844,5)","v":""},{"$f":"VLOOKUP(C832,'Structure mapping'!F:J,5,0)","v":{"$error":"#N/A"}},{"$f":"LEFT(Template!C844,7)","v":""},{"$f":"VLOOKUP(E832,'Structure mapping'!A:E,5,0)","v":{"$error":"#N/A"}},{"$f":"LEFT(Template!D844,6)","v":""},{"$f":"VLOOKUP(G832,'Account mapping'!A:E,5,0)","v":{"$error":"#N/A"}},{"$f":"LEFT(Template!E844,2)","v":""},{"$f":"VLOOKUP(I832,'Structure mapping'!X:AB,5,0)","v":{"$error":"#N/A"}},{"$f":"LEFT(Template!F844,3)","v":""},{"$f":"VLOOKUP(K832,'Structure mapping'!AC:AG,5,0)","v":{"$error":"#N/A"}},{"$f":"LEFT(Template!G844,10)","v":""},{"$f":"VLOOKUP(M832,'Structure mapping'!AH:AL,5,0)","v":{"$error":"#N/A"}},{"$f":"LEFT(Template!H844,6)","v":""},{"$f":"VLOOKUP(O832,'Structure mapping'!AM:AQ,5,0)","v":{"$error":"#N/A"}},null,null,null,null,{"$f":"IF(Template!O844=\"\",\"\",Template!O844)","v":""},"Aug-24 pending entries",{"$f":"TEXT(Template!$B$9,\"mm/dd/yyy\")","v":"08/01/2024"},null,null,null,null,{"$f":"IF(Template!M844>0,Template!M844,-Template!N844)","v":0},null,null,null,{"$f":"VLOOKUP(G832,'Account mapping'!A:D,4,0)","v":{"$error":"#N/A"}}]
[{"$f":"LEFT(Template!A845,4)","v":""},{"$f":"VLOOKUP(A833,'Structure mapping'!K:V,7,0)","v":{"$error":"#N/A"}},{"$f":"LEFT(Template!B845,5)","v":""},{"$f":"VLOOKUP(C833,'Structure mapping'!F:J,5,0)","v":{"$error":"#N/A"}},{"$f":"LEFT(Template!C845,7)","v":""},{"$f":"VLOOKUP(E833,'Structure mapping'!A:E,5,0)","v":{"$error":"#N/A"}},{"$f":"LEFT(Template!D845,6)","v":""},{"$f":"VLOOKUP(G833,'Account mapping'!A:E,5,0)","v":{"$error":"#N/A"}},{"$f":"LEFT(Template!E845,2)","v":""},{"$f":"VLOOKUP(I833,'Structure mapping'!X:AB,5,0)","v":{"$error":"#N/A"}},{"$f":"LEFT(Template!F845,3)","v":""},{"$f":"VLOOKUP(K833,'Structure mapping'!AC:AG,5,0)","v":{"$error":"#N/A"}},{"$f":"LEFT(Template!G845,10)","v":""},{"$f":"VLOOKUP(M833,'Structure mapping'!AH:AL,5,0)","v":{"$error":"#N/A"}},{"$f":"LEFT(Template!H845,6)","v":""},{"$f":"VLOOKUP(O833,'Structure mapping'!AM:AQ,5,0)","v":{"$error":"#N/A"}},null,null,null,null,{"$f":"IF(Template!O845=\"\",\"\",Template!O845)","v":""},"Aug-24 pending entries",{"$f":"TEXT(Template!$B$9,\"mm/dd/yyy\")","v":"08/01/2024"},null,null,null,null,{"$f":"IF(Template!M845>0,Template!M845,-Template!N845)","v":0},null,null,null,{"$f":"VLOOKUP(G833,'Account mapping'!A:D,4,0)","v":{"$error":"#N/A"}}]
[{"$f":"LEFT(Template!A846,4)","v":""},{"$f":"VLOOKUP(A834,'Structure mapping'!K:V,7,0)","v":{"$error":"#N/A"}},{"$f":"LEFT(Template!B846,5)","v":""},{"$f":"VLOOKUP(C834,'Structure mapping'!F:J,5,0)","v":{"$error":"#N/A"}},{"$f":"LEFT(Template!C846,7)","v":""},{"$f":"VLOOKUP(E834,'Structure mapping'!A:E,5,0)","v":{"$error":"#N/A"}},{"$f":"LEFT(Template!D846,6)","v":""},{"$f":"VLOOKUP(G834,'Account mapping'!A:E,5,0)","v":{"$error":"#N/A"}},{"$f":"LEFT(Template!E846,2)","v":""},{"$f":"VLOOKUP(I834,'Structure mapping'!X:AB,5,0)","v":{"$error":"#N/A"}},{"$f":"LEFT(Template!F846,3)","v":""},{"$f":"VLOOKUP(K834,'Structure mapping'!AC:AG,5,0)","v":{"$error":"#N/A"}},{"$f":"LEFT(Template!G846,10)","v":""},{"$f":"VLOOKUP(M834,'Structure mapping'!AH:AL,5,0)","v":{"$error":"#N/A"}},{"$f":"LEFT(Template!H846,6)","v":""},{"$f":"VLOOKUP(O834,'Structure mapping'!AM:AQ,5,0)","v":{"$error":"#N/A"}},null,null,null,null,{"$f":"IF(Template!O846=\"\",\"\",Template!O846)","v":""},"Aug-24 pending entries",{"$f":"TEXT(Template!$B$9,\"mm/dd/yyy\")","v":"08/01/2024"},null,null,null,null,{"$f":"IF(Template!M846>0,Template!M846,-Template!N846)","v":0},null,null,null,{"$f":"VLOOKUP(G834,'Account mapping'!A:D,4,0)","v":{"$error":"#N/A"}}]
[{"$f":"LEFT(Template!A847,4)","v":""},{"$f":"VLOOKUP(A835,'Structure mapping'!K:V,7,0)","v":{"$error":"#N/A"}},{"$f":"LEFT(Template!B847,5)","v":""},{"$f":"VLOOKUP(C835,'Structure mapping'!F:J,5,0)","v":{"$error":"#N/A"}},{"$f":"LEFT(Template!C847,7)","v":""},{"$f":"VLOOKUP(E835,'Structure mapping'!A:E,5,0)","v":{"$error":"#N/A"}},{"$f":"LEFT(Template!D847,6)","v":""},{"$f":"VLOOKUP(G835,'Account mapping'!A:E,5,0)","v":{"$error":"#N/A"}},{"$f":"LEFT(Template!E847,2)","v":""},{"$f":"VLOOKUP(I835,'Structure mapping'!X:AB,5,0)","v":{"$error":"#N/A"}},{"$f":"LEFT(Template!F847,3)","v":""},{"$f":"VLOOKUP(K835,'Structure mapping'!AC:AG,5,0)","v":{"$error":"#N/A"}},{"$f":"LEFT(Template!G847,10)","v":""},{"$f":"VLOOKUP(M835,'Structure mapping'!AH:AL,5,0)","v":{"$error":"#N/A"}},{"$f":"LEFT(Template!H847,6)","v":""},{"$f":"VLOOKUP(O835,'Structure mapping'!AM:AQ,5,0)","v":{"$error":"#N/A"}},null,null,null,null,{"$f":"IF(Template!O847=\"\",\"\",Template!O847)","v":""},{"$f":"TEXT(W835,\"mmm-yy\")&\" pending entries\"","v":"Aug-24 pending entries"},{"$f":"TEXT(Template!$B$9,\"mm/dd/yyy\")","v":"08/01/2024"},null,null,null,null,{"$f":"IF(Template!M847>0,Template!M847,-Template!N847)","v":0},null,null,null,{"$f":"VLOOKUP(G835,'Account mapping'!A:D,4,0)","v":{"$error":"#N/A"}}]
[{"$f":"LEFT(Template!A848,4)","v":""},{"$f":"VLOOKUP(A836,'Structure mapping'!K:V,7,0)","v":{"$error":"#N/A"}},{"$f":"LEFT(Template!B848,5)","v":""},{"$f":"VLOOKUP(C836,'Structure mapping'!F:J,5,0)","v":{"$error":"#N/A"}},{"$f":"LEFT(Template!C848,7)","v":""},{"$f":"VLOOKUP(E836,'Structure mapping'!A:E,5,0)","v":{"$error":"#N/A"}},{"$f":"LEFT(Template!D848,6)","v":""},{"$f":"VLOOKUP(G836,'Account mapping'!A:E,5,0)","v":{"$error":"#N/A"}},{"$f":"LEFT(Template!E848,2)","v":""},{"$f":"VLOOKUP(I836,'Structure mapping'!X:AB,5,0)","v":{"$error":"#N/A"}},{"$f":"LEFT(Template!F848,3)","v":""},{"$f":"VLOOKUP(K836,'Structure mapping'!AC:AG,5,0)","v":{"$error":"#N/A"}},{"$f":"LEFT(Template!G848,10)","v":""},{"$f":"VLOOKUP(M836,'Structure mapping'!AH:AL,5,0)","v":{"$error":"#N/A"}},{"$f":"LEFT(Template!H848,6)","v":""},{"$f":"VLOOKUP(O836,'Structure mapping'!AM:AQ,5,0)","v":{"$error":"#N/A"}},null,null,null,null,{"$f":"IF(Template!O848=\"\",\"\",Template!O848)","v":""},"Aug-24 pending entries",{"$f":"TEXT(Template!$B$9,\"mm/dd/yyy\")","v":"08/01/2024"},null,null,null,null,{"$f":"IF(Template!M848>0,Template!M848,-Template!N848)","v":0},null,null,null,{"$f":"VLOOKUP(G836,'Account mapping'!A:D,4,0)","v":{"$error":"#N/A"}}]
[{"$f":"LEFT(Template!A849,4)","v":""},{"$f":"VLOOKUP(A837,'Structure mapping'!K:V,7,0)","v":{"$error":"#N/A"}},{"$f":"LEFT(Template!B849,5)","v":""},{"$f":"VLOOKUP(C837,'Structure mapping'!F:J,5,0)","v":{"$error":"#N/A"}},{"$f":"LEFT(Template!C849,7)","v":""},{"$f":"VLOOKUP(E837,'Structure mapping'!A:E,5,0)","v":{"$error":"#N/A"}},{"$f":"LEFT(Template!D849,6)","v":""},{"$f":"VLOOKUP(G837,'Account mapping'!A:E,5,0)","v":{"$error":"#N/A"}},{"$f":"LEFT(Template!E849,2)","v":""},{"$f":"VLOOKUP(I837,'Structure mapping'!X:AB,5,0)","v":{"$error":"#N/A"}},{"$f":"LEFT(Template!F849,3)","v":""},{"$f":"VLOOKUP(K837,'Structure mapping'!AC:AG,5,0)","v":{"$error":"#N/A"}},{"$f":"LEFT(Template!G849,10)","v":""},{"$f":"VLOOKUP(M837,'Structure mapping'!AH:AL,5,0)","v":{"$error":"#N/A"}},{"$f":"LEFT(Template!H849,6)","v":""},{"$f":"VLOOKUP(O837,'Structure mapping'!AM:AQ,5,0)","v":{"$error":"#N/A"}},null,null,null,null,{"$f":"IF(Template!O849=\"\",\"\",Template!O849)","v":""},"Aug-24 pending entries",{"$f":"TEXT(Template!$B$9,\"mm/dd/yyy\")","v":"08/01/2024"},null,null,null,null,{"$f":"IF(Template!M849>0,Template!M849,-Template!N849)","v":0},null,null,null,{"$f":"VLOOKUP(G837,'Account mapping'!A:D,4,0)","v":{"$error":"#N/A"}}]
[{"$f":"LEFT(Template!A850,4)","v":""},{"$f":"VLOOKUP(A838,'Structure mapping'!K:V,7,0)","v":{"$error":"#N/A"}},{"$f":"LEFT(Template!B850,5)","v":""},{"$f":"VLOOKUP(C838,'Structure mapping'!F:J,5,0)","v":{"$error":"#N/A"}},{"$f":"LEFT(Template!C850,7)","v":""},{"$f":"VLOOKUP(E838,'Structure mapping'!A:E,5,0)","v":{"$error":"#N/A"}},{"$f":"LEFT(Template!D850,6)","v":""},{"$f":"VLOOKUP(G838,'Account mapping'!A:E,5,0)","v":{"$error":"#N/A"}},{"$f":"LEFT(Template!E850,2)","v":""},{"$f":"VLOOKUP(I838,'Structure mapping'!X:AB,5,0)","v":{"$error":"#N/A"}},{"$f":"LEFT(Template!F850,3)","v":""},{"$f":"VLOOKUP(K838,'Structure mapping'!AC:AG,5,0)","v":{"$error":"#N/A"}},{"$f":"LEFT(Template!G850,10)","v":""},{"$f":"VLOOKUP(M838,'Structure mapping'!AH:AL,5,0)","v":{"$error":"#N/A"}},{"$f":"LEFT(Template!H850,6)","v":""},{"$f":"VLOOKUP(O838,'Structure mapping'!AM:AQ,5,0)","v":{"$error":"#N/A"}},null,null,null,null,{"$f":"IF(Template!O850=\"\",\"\",Template!O850)","v":""},"Aug-24 pending entries",{"$f":"TEXT(Template!$B$9,\"mm/dd/yyy\")","v":"08/01/2024"},null,null,null,null,{"$f":"IF(Template!M850>0,Template!M850,-Template!N850)","v":0},null,null,null,{"$f":"VLOOKUP(G838,'Account mapping'!A:D,4,0)","v":{"$error":"#N/A"}}]
[{"$f":"LEFT(Template!A851,4)","v":""},{"$f":"VLOOKUP(A839,'Structure mapping'!K:V,7,0)","v":{"$error":"#N/A"}},{"$f":"LEFT(Template!B851,5)","v":""},{"$f":"VLOOKUP(C839,'Structure mapping'!F:J,5,0)","v":{"$error":"#N/A"}},{"$f":"LEFT(Template!C851,7)","v":""},{"$f":"VLOOKUP(E839,'Structure mapping'!A:E,5,0)","v":{"$error":"#N/A"}},{"$f":"LEFT(Template!D851,6)","v":""},{"$f":"VLOOKUP(G839,'Account mapping'!A:E,5,0)","v":{"$error":"#N/A"}},{"$f":"LEFT(Template!E851,2)","v":""},{"$f":"VLOOKUP(I839,'Structure mapping'!X:AB,5,0)","v":{"$error":"#N/A"}},{"$f":"LEFT(Template!F851,3)","v":""},{"$f":"VLOOKUP(K839,'Structure mapping'!AC:AG,5,0)","v":{"$error":"#N/A"}},{"$f":"LEFT(Template!G851,10)","v":""},{"$f":"VLOOKUP(M839,'Structure mapping'!AH:AL,5,0)","v":{"$error":"#N/A"}},{"$f":"LEFT(Template!H851,6)","v":""},{"$f":"VLOOKUP(O839,'Structure mapping'!AM:AQ,5,0)","v":{"$error":"#N/A"}},null,null,null,null,{"$f":"IF(Template!O851=\"\",\"\",Template!O851)","v":""},"Aug-24 pending entries",{"$f":"TEXT(Template!$B$9,\"mm/dd/yyy\")","v":"08/01/2024"},null,null,null,null,{"$f":"IF(Template!M851>0,Template!M851,-Template!N851)","v":0},null,null,null,{"$f":"VLOOKUP(G839,'Account mapping'!A:D,4,0)","v":{"$error":"#N/A"}}]
[{"$f":"LEFT(Template!A852,4)","v":""},{"$f":"VLOOKUP(A840,'Structure mapping'!K:V,7,0)","v":{"$error":"#N/A"}},{"$f":"LEFT(Template!B852,5)","v":""},{"$f":"VLOOKUP(C840,'Structure mapping'!F:J,5,0)","v":{"$error":"#N/A"}},{"$f":"LEFT(Template!C852,7)","v":""},{"$f":"VLOOKUP(E840,'Structure mapping'!A:E,5,0)","v":{"$error":"#N/A"}},{"$f":"LEFT(Template!D852,6)","v":""},{"$f":"VLOOKUP(G840,'Account mapping'!A:E,5,0)","v":{"$error":"#N/A"}},{"$f":"LEFT(Template!E852,2)","v":""},{"$f":"VLOOKUP(I840,'Structure mapping'!X:AB,5,0)","v":{"$error":"#N/A"}},{"$f":"LEFT(Template!F852,3)","v":""},{"$f":"VLOOKUP(K840,'Structure mapping'!AC:AG,5,0)","v":{"$error":"#N/A"}},{"$f":"LEFT(Template!G852,10)","v":""},{"$f":"VLOOKUP(M840,'Structure mapping'!AH:AL,5,0)","v":{"$error":"#N/A"}},{"$f":"LEFT(Template!H852,6)","v":""},{"$f":"VLOOKUP(O840,'Structure mapping'!AM:AQ,5,0)","v":{"$error":"#N/A"}},null,null,null,null,{"$f":"IF(Template!O852=\"\",\"\",Template!O852)","v":""},"Aug-24 pending entries",{"$f":"TEXT(Template!$B$9,\"mm/dd/yyy\")","v":"08/01/2024"},null,null,null,null,{"$f":"IF(Template!M852>0,Template!M852,-Template!N852)","v":0},null,null,null,{"$f":"VLOOKUP(G840,'Account mapping'!A:D,4,0)","v":{"$error":"#N/A"}}]
[{"$f":"LEFT(Template!A853,4)","v":""},{"$f":"VLOOKUP(A841,'Structure mapping'!K:V,7,0)","v":{"$error":"#N/A"}},{"$f":"LEFT(Template!B853,5)","v":""},{"$f":"VLOOKUP(C841,'Structure mapping'!F:J,5,0)","v":{"$error":"#N/A"}},{"$f":"LEFT(Template!C853,7)","v":""},{"$f":"VLOOKUP(E841,'Structure mapping'!A:E,5,0)","v":{"$error":"#N/A"}},{"$f":"LEFT(Template!D853,6)","v":""},{"$f":"VLOOKUP(G841,'Account mapping'!A:E,5,0)","v":{"$error":"#N/A"}},{"$f":"LEFT(Template!E853,2)","v":""},{"$f":"VLOOKUP(I841,'Structure mapping'!X:AB,5,0)","v":{"$error":"#N/A"}},{"$f":"LEFT(Template!F853,3)","v":""},{"$f":"VLOOKUP(K841,'Structure mapping'!AC:AG,5,0)","v":{"$error":"#N/A"}},{"$f":"LEFT(Template!G853,10)","v":""},{"$f":"VLOOKUP(M841,'Structure mapping'!AH:AL,5,0)","v":{"$error":"#N/A"}},{"$f":"LEFT(Template!H853,6)","v":""},{"$f":"VLOOKUP(O841,'Structure mapping'!AM:AQ,5,0)","v":{"$error":"#N/A"}},null,null,null,null,{"$f":"IF(Template!O853=\"\",\"\",Template!O853)","v":""},"Aug-24 pending entries",{"$f":"TEXT(Template!$B$9,\"mm/dd/yyy\")","v":"08/01/2024"},null,null,null,null,{"$f":"IF(Template!M853>0,Template!M853,-Template!N853)","v":0},null,null,null,{"$f":"VLOOKUP(G841,'Account mapping'!A:D,4,0)","v":{"$error":"#N/A"}}]
[{"$f":"LEFT(Template!A854,4)","v":""},{"$f":"VLOOKUP(A842,'Structure mapping'!K:V,7,0)","v":{"$error":"#N/A"}},{"$f":"LEFT(Template!B854,5)","v":""},{"$f":"VLOOKUP(C842,'Structure mapping'!F:J,5,0)","v":{"$error":"#N/A"}},{"$f":"LEFT(Template!C854,7)","v":""},{"$f":"VLOOKUP(E842,'Structure mapping'!A:E,5,0)","v":{"$error":"#N/A"}},{"$f":"LEFT(Template!D854,6)","v":""},{"$f":"VLOOKUP(G842,'Account mapping'!A:E,5,0)","v":{"$error":"#N/A"}},{"$f":"LEFT(Template!E854,2)","v":""},{"$f":"VLOOKUP(I842,'Structure mapping'!X:AB,5,0)","v":{"$error":"#N/A"}},{"$f":"LEFT(Template!F854,3)","v":""},{"$f":"VLOOKUP(K842,'Structure mapping'!AC:AG,5,0)","v":{"$error":"#N/A"}},{"$f":"LEFT(Template!G854,10)","v":""},{"$f":"VLOOKUP(M842,'Structure mapping'!AH:AL,5,0)","v":{"$error":"#N/A"}},{"$f":"LEFT(Template!H854,6)","v":""},{"$f":"VLOOKUP(O842,'Structure mapping'!AM:AQ,5,0)","v":{"$error":"#N/A"}},null,null,null,null,{"$f":"IF(Template!O854=\"\",\"\",Template!O854)","v":""},"Aug-24 pending entries",{"$f":"TEXT(Template!$B$9,\"mm/dd/yyy\")","v":"08/01/2024"},null,null,null,null,{"$f":"IF(Template!M854>0,Template!M854,-Template!N854)","v":0},null,null,null,{"$f":"VLOOKUP(G842,'Account mapping'!A:D,4,0)","v":{"$error":"#N/A"}}]
[{"$f":"LEFT(Template!A855,4)","v":""},{"$f":"VLOOKUP(A843,'Structure mapping'!K:V,7,0)","v":{"$error":"#N/A"}},{"$f":"LEFT(Template!B855,5)","v":""},{"$f":"VLOOKUP(C843,'Structure mapping'!F:J,5,0)","v":{"$error":"#N/A"}},{"$f":"LEFT(Template!C855,7)","v":""},{"$f":"VLOOKUP(E843,'Structure mapping'!A:E,5,0)","v":{"$error":"#N/A"}},{"$f":"LEFT(Template!D855,6)","v":""},{"$f":"VLOOKUP(G843,'Account mapping'!A:E,5,0)","v":{"$error":"#N/A"}},{"$f":"LEFT(Template!E855,2)","v":""},{"$f":"VLOOKUP(I843,'Structure mapping'!X:AB,5,0)","v":{"$error":"#N/A"}},{"$f":"LEFT(Template!F855,3)","v":""},{"$f":"VLOOKUP(K843,'Structure mapping'!AC:AG,5,0)","v":{"$error":"#N/A"}},{"$f":"LEFT(Template!G855,10)","v":""},{"$f":"VLOOKUP(M843,'Structure mapping'!AH:AL,5,0)","v":{"$error":"#N/A"}},{"$f":"LEFT(Template!H855,6)","v":""},{"$f":"VLOOKUP(O843,'Structure mapping'!AM:AQ,5,0)","v":{"$error":"#N/A"}},null,null,null,null,{"$f":"IF(Template!O855=\"\",\"\",Template!O855)","v":""},"Aug-24 pending entries",{"$f":"TEXT(Template!$B$9,\"mm/dd/yyy\")","v":"08/01/2024"},null,null,null,null,{"$f":"IF(Template!M855>0,Template!M855,-Template!N855)","v":0},null,null,null,{"$f":"VLOOKUP(G843,'Account mapping'!A:D,4,0)","v":{"$error":"#N/A"}}]
[{"$f":"LEFT(Template!A856,4)","v":""},{"$f":"VLOOKUP(A844,'Structure mapping'!K:V,7,0)","v":{"$error":"#N/A"}},{"$f":"LEFT(Template!B856,5)","v":""},{"$f":"VLOOKUP(C844,'Structure mapping'!F:J,5,0)","v":{"$error":"#N/A"}},{"$f":"LEFT(Template!C856,7)","v":""},{"$f":"VLOOKUP(E844,'Structure mapping'!A:E,5,0)","v":{"$error":"#N/A"}},{"$f":"LEFT(Template!D856,6)","v":""},{"$f":"VLOOKUP(G844,'Account mapping'!A:E,5,0)","v":{"$error":"#N/A"}},{"$f":"LEFT(Template!E856,2)","v":""},{"$f":"VLOOKUP(I844,'Structure mapping'!X:AB,5,0)","v":{"$error":"#N/A"}},{"$f":"LEFT(Template!F856,3)","v":""},{"$f":"VLOOKUP(K844,'Structure mapping'!AC:AG,5,0)","v":{"$error":"#N/A"}},{"$f":"LEFT(Template!G856,10)","v":""},{"$f":"VLOOKUP(M844,'Structure mapping'!AH:AL,5,0)","v":{"$error":"#N/A"}},{"$f":"LEFT(Template!H856,6)","v":""},{"$f":"VLOOKUP(O844,'Structure mapping'!AM:AQ,5,0)","v":{"$error":"#N/A"}},null,null,null,null,{"$f":"IF(Template!O856=\"\",\"\",Template!O856)","v":""},"Aug-24 pending entries",{"$f":"TEXT(Template!$B$9,\"mm/dd/yyy\")","v":"08/01/2024"},null,null,null,null,{"$f":"IF(Template!M856>0,Template!M856,-Template!N856)","v":0},null,null,null,{"$f":"VLOOKUP(G844,'Account mapping'!A:D,4,0)","v":{"$error":"#N/A"}}]
[{"$f":"LEFT(Template!A857,4)","v":""},{"$f":"VLOOKUP(A845,'Structure mapping'!K:V,7,0)","v":{"$error":"#N/A"}},{"$f":"LEFT(Template!B857,5)","v":""},{"$f":"VLOOKUP(C845,'Structure mapping'!F:J,5,0)","v":{"$error":"#N/A"}},{"$f":"LEFT(Template!C857,7)","v":""},{"$f":"VLOOKUP(E845,'Structure mapping'!A:E,5,0)","v":{"$error":"#N/A"}},{"$f":"LEFT(Template!D857,6)","v":""},{"$f":"VLOOKUP(G845,'Account mapping'!A:E,5,0)","v":{"$error":"#N/A"}},{"$f":"LEFT(Template!E857,2)","v":""},{"$f":"VLOOKUP(I845,'Structure mapping'!X:AB,5,0)","v":{"$error":"#N/A"}},{"$f":"LEFT(Template!F857,3)","v":""},{"$f":"VLOOKUP(K845,'Structure mapping'!AC:AG,5,0)","v":{"$error":"#N/A"}},{"$f":"LEFT(Template!G857,10)","v":""},{"$f":"VLOOKUP(M845,'Structure mapping'!AH:AL,5,0)","v":{"$error":"#N/A"}},{"$f":"LEFT(Template!H857,6)","v":""},{"$f":"VLOOKUP(O845,'Structure mapping'!AM:AQ,5,0)","v":{"$error":"#N/A"}},null,null,null,null,{"$f":"IF(Template!O857=\"\",\"\",Template!O857)","v":""},"Aug-24 pending entries",{"$f":"TEXT(Template!$B$9,\"mm/dd/yyy\")","v":"08/01/2024"},null,null,null,null,{"$f":"IF(Template!M857>0,Template!M857,-Template!N857)","v":0},null,null,null,{"$f":"VLOOKUP(G845,'Account mapping'!A:D,4,0)","v":{"$error":"#N/A"}}]
[{"$f":"LEFT(Template!A858,4)","v":""},{"$f":"VLOOKUP(A846,'Structure mapping'!K:V,7,0)","v":{"$error":"#N/A"}},{"$f":"LEFT(Template!B858,5)","v":""},{"$f":"VLOOKUP(C846,'Structure mapping'!F:J,5,0)","v":{"$error":"#N/A"}},{"$f":"LEFT(Template!C858,7)","v":""},{"$f":"VLOOKUP(E846,'Structure mapping'!A:E,5,0)","v":{"$error":"#N/A"}},{"$f":"LEFT(Template!D858,6)","v":""},{"$f":"VLOOKUP(G846,'Account mapping'!A:E,5,0)","v":{"$error":"#N/A"}},{"$f":"LEFT(Template!E858,2)","v":""},{"$f":"VLOOKUP(I846,'Structure mapping'!X:AB,5,0)","v":{"$error":"#N/A"}},{"$f":"LEFT(Template!F858,3)","v":""},{"$f":"VLOOKUP(K846,'Structure mapping'!AC:AG,5,0)","v":{"$error":"#N/A"}},{"$f":"LEFT(Template!G858,10)","v":""},{"$f":"VLOOKUP(M846,'Structure mapping'!AH:AL,5,0)","v":{"$error":"#N/A"}},{"$f":"LEFT(Template!H858,6)","v":""},{"$f":"VLOOKUP(O846,'Structure mapping'!AM:AQ,5,0)","v":{"$error":"#N/A"}},null,null,null,null,{"$f":"IF(Template!O858=\"\",\"\",Template!O858)","v":""},"Aug-24 pending entries",{"$f":"TEXT(Template!$B$9,\"mm/dd/yyy\")","v":"08/01/2024"},null,null,null,null,{"$f":"IF(Template!M858>0,Template!M858,-Template!N858)","v":0},null,null,null,{"$f":"VLOOKUP(G846,'Account mapping'!A:D,4,0)","v":{"$error":"#N/A"}}]
[{"$f":"LEFT(Template!A859,4)","v":""},{"$f":"VLOOKUP(A847,'Structure mapping'!K:V,7,0)","v":{"$error":"#N/A"}},{"$f":"LEFT(Template!B859,5)","v":""},{"$f":"VLOOKUP(C847,'Structure mapping'!F:J,5,0)","v":{"$error":"#N/A"}},{"$f":"LEFT(Template!C859,7)","v":""},{"$f":"VLOOKUP(E847,'Structure mapping'!A:E,5,0)","v":{"$error":"#N/A"}},{"$f":"LEFT(Template!D859,6)","v":""},{"$f":"VLOOKUP(G847,'Account mapping'!A:E,5,0)","v":{"$error":"#N/A"}},{"$f":"LEFT(Template!E859,2)","v":""},{"$f":"VLOOKUP(I847,'Structure mapping'!X:AB,5,0)","v":{"$error":"#N/A"}},{"$f":"LEFT(Template!F859,3)","v":""},{"$f":"VLOOKUP(K847,'Structure mapping'!AC:AG,5,0)","v":{"$error":"#N/A"}},{"$f":"LEFT(Template!G859,10)","v":""},{"$f":"VLOOKUP(M847,'Structure mapping'!AH:AL,5,0)","v":{"$error":"#N/A"}},{"$f":"LEFT(Template!H859,6)","v":""},{"$f":"VLOOKUP(O847,'Structure mapping'!AM:AQ,5,0)","v":{"$error":"#N/A"}},null,null,null,null,{"$f":"IF(Template!O859=\"\",\"\",Template!O859)","v":""},"Aug-24 pending entries",{"$f":"TEXT(Template!$B$9,\"mm/dd/yyy\")","v":"08/01/2024"},null,null,null,null,{"$f":"IF(Template!M859>0,Template!M859,-Template!N859)","v":0},null,null,null,{"$f":"VLOOKUP(G847,'Account mapping'!A:D,4,0)","v":{"$error":"#N/A"}}]
[{"$f":"LEFT(Template!A860,4)","v":""},{"$f":"VLOOKUP(A848,'Structure mapping'!K:V,7,0)","v":{"$error":"#N/A"}},{"$f":"LEFT(Template!B860,5)","v":""},{"$f":"VLOOKUP(C848,'Structure mapping'!F:J,5,0)","v":{"$error":"#N/A"}},{"$f":"LEFT(Template!C860,7)","v":""},{"$f":"VLOOKUP(E848,'Structure mapping'!A:E,5,0)","v":{"$error":"#N/A"}},{"$f":"LEFT(Template!D860,6)","v":""},{"$f":"VLOOKUP(G848,'Account mapping'!A:E,5,0)","v":{"$error":"#N/A"}},{"$f":"LEFT(Template!E860,2)","v":""},{"$f":"VLOOKUP(I848,'Structure mapping'!X:AB,5,0)","v":{"$error":"#N/A"}},{"$f":"LEFT(Template!F860,3)","v":""},{"$f":"VLOOKUP(K848,'Structure mapping'!AC:AG,5,0)","v":{"$error":"#N/A"}},{"$f":"LEFT(Template!G860,10)","v":""},{"$f":"VLOOKUP(M848,'Structure mapping'!AH:AL,5,0)","v":{"$error":"#N/A"}},{"$f":"LEFT(Template!H860,6)","v":""},{"$f":"VLOOKUP(O848,'Structure mapping'!AM:AQ,5,0)","v":{"$error":"#N/A"}},null,null,null,null,{"$f":"IF(Template!O860=\"\",\"\",Template!O860)","v":""},"Aug-24 pending entries",{"$f":"TEXT(Template!$B$9,\"mm/dd/yyy\")","v":"08/01/2024"},null,null,null,null,{"$f":"IF(Template!M860>0,Template!M860,-Template!N860)","v":0},null,null,null,{"$f":"VLOOKUP(G848,'Account mapping'!A:D,4,0)","v":{"$error":"#N/A"}}]
[{"$f":"LEFT(Template!A861,4)","v":""},{"$f":"VLOOKUP(A849,'Structure mapping'!K:V,7,0)","v":{"$error":"#N/A"}},{"$f":"LEFT(Template!B861,5)","v":""},{"$f":"VLOOKUP(C849,'Structure mapping'!F:J,5,0)","v":{"$error":"#N/A"}},{"$f":"LEFT(Template!C861,7)","v":""},{"$f":"VLOOKUP(E849,'Structure mapping'!A:E,5,0)","v":{"$error":"#N/A"}},{"$f":"LEFT(Template!D861,6)","v":""},{"$f":"VLOOKUP(G849,'Account mapping'!A:E,5,0)","v":{"$error":"#N/A"}},{"$f":"LEFT(Template!E861,2)","v":""},{"$f":"VLOOKUP(I849,'Structure mapping'!X:AB,5,0)","v":{"$error":"#N/A"}},{"$f":"LEFT(Template!F861,3)","v":""},{"$f":"VLOOKUP(K849,'Structure mapping'!AC:AG,5,0)","v":{"$error":"#N/A"}},{"$f":"LEFT(Template!G861,10)","v":""},{"$f":"VLOOKUP(M849,'Structure mapping'!AH:AL,5,0)","v":{"$error":"#N/A"}},{"$f":"LEFT(Template!H861,6)","v":""},{"$f":"VLOOKUP(O849,'Structure mapping'!AM:AQ,5,0)","v":{"$error":"#N/A"}},null,null,null,null,{"$f":"IF(Template!O861=\"\",\"\",Template!O861)","v":""},"Aug-24 pending entries",{"$f":"TEXT(Template!$B$9,\"mm/dd/yyy\")","v":"08/01/2024"},null,null,null,null,{"$f":"IF(Template!M861>0,Template!M861,-Template!N861)","v":0},null,null,null,{"$f":"VLOOKUP(G849,'Account mapping'!A:D,4,0)","v":{"$error":"#N/A"}}]
[{"$f":"LEFT(Template!A862,4)","v":""},{"$f":"VLOOKUP(A850,'Structure mapping'!K:V,7,0)","v":{"$error":"#N/A"}},{"$f":"LEFT(Template!B862,5)","v":""},{"$f":"VLOOKUP(C850,'Structure mapping'!F:J,5,0)","v":{"$error":"#N/A"}},{"$f":"LEFT(Template!C862,7)","v":""},{"$f":"VLOOKUP(E850,'Structure mapping'!A:E,5,0)","v":{"$error":"#N/A"}},{"$f":"LEFT(Template!D862,6)","v":""},{"$f":"VLOOKUP(G850,'Account mapping'!A:E,5,0)","v":{"$error":"#N/A"}},{"$f":"LEFT(Template!E862,2)","v":""},{"$f":"VLOOKUP(I850,'Structure mapping'!X:AB,5,0)","v":{"$error":"#N/A"}},{"$f":"LEFT(Template!F862,3)","v":""},{"$f":"VLOOKUP(K850,'Structure mapping'!AC:AG,5,0)","v":{"$error":"#N/A"}},{"$f":"LEFT(Template!G862,10)","v":""},{"$f":"VLOOKUP(M850,'Structure mapping'!AH:AL,5,0)","v":{"$error":"#N/A"}},{"$f":"LEFT(Template!H862,6)","v":""},{"$f":"VLOOKUP(O850,'Structure mapping'!AM:AQ,5,0)","v":{"$error":"#N/A"}},null,null,null,null,{"$f":"IF(Template!O862=\"\",\"\",Template!O862)","v":""},"Aug-24 pending entries",{"$f":"TEXT(Template!$B$9,\"mm/dd/yyy\")","v":"08/01/2024"},null,null,null,null,{"$f":"IF(Template!M862>0,Template!M862,-Template!N862)","v":0},null,null,null,{"$f":"VLOOKUP(G850,'Account mapping'!A:D,4,0)","v":{"$error":"#N/A"}}]
[{"$f":"LEFT(Template!A863,4)","v":""},{"$f":"VLOOKUP(A851,'Structure mapping'!K:V,7,0)","v":{"$error":"#N/A"}},{"$f":"LEFT(Template!B863,5)","v":""},{"$f":"VLOOKUP(C851,'Structure mapping'!F:J,5,0)","v":{"$error":"#N/A"}},{"$f":"LEFT(Template!C863,7)","v":""},{"$f":"VLOOKUP(E851,'Structure mapping'!A:E,5,0)","v":{"$error":"#N/A"}},{"$f":"LEFT(Template!D863,6)","v":""},{"$f":"VLOOKUP(G851,'Account mapping'!A:E,5,0)","v":{"$error":"#N/A"}},{"$f":"LEFT(Template!E863,2)","v":""},{"$f":"VLOOKUP(I851,'Structure mapping'!X:AB,5,0)","v":{"$error":"#N/A"}},{"$f":"LEFT(Template!F863,3)","v":""},{"$f":"VLOOKUP(K851,'Structure mapping'!AC:AG,5,0)","v":{"$error":"#N/A"}},{"$f":"LEFT(Template!G863,10)","v":""},{"$f":"VLOOKUP(M851,'Structure mapping'!AH:AL,5,0)","v":{"$error":"#N/A"}},{"$f":"LEFT(Template!H863,6)","v":""},{"$f":"VLOOKUP(O851,'Structure mapping'!AM:AQ,5,0)","v":{"$error":"#N/A"}},null,null,null,null,{"$f":"IF(Template!O863=\"\",\"\",Template!O863)","v":""},"Aug-24 pending entries",{"$f":"TEXT(Template!$B$9,\"mm/dd/yyy\")","v":"08/01/2024"},null,null,null,null,{"$f":"IF(Template!M863>0,Template!M863,-Template!N863)","v":0},null,null,null,{"$f":"VLOOKUP(G851,'Account mapping'!A:D,4,0)","v":{"$error":"#N/A"}}]
[{"$f":"LEFT(Template!A864,4)","v":""},{"$f":"VLOOKUP(A852,'Structure mapping'!K:V,7,0)","v":{"$error":"#N/A"}},{"$f":"LEFT(Template!B864,5)","v":""},{"$f":"VLOOKUP(C852,'Structure mapping'!F:J,5,0)","v":{"$error":"#N/A"}},{"$f":"LEFT(Template!C864,7)","v":""},{"$f":"VLOOKUP(E852,'Structure mapping'!A:E,5,0)","v":{"$error":"#N/A"}},{"$f":"LEFT(Template!D864,6)","v":""},{"$f":"VLOOKUP(G852,'Account mapping'!A:E,5,0)","v":{"$error":"#N/A"}},{"$f":"LEFT(Template!E864,2)","v":""},{"$f":"VLOOKUP(I852,'Structure mapping'!X:AB,5,0)","v":{"$error":"#N/A"}},{"$f":"LEFT(Template!F864,3)","v":""},{"$f":"VLOOKUP(K852,'Structure mapping'!AC:AG,5,0)","v":{"$error":"#N/A"}},{"$f":"LEFT(Template!G864,10)","v":""},{"$f":"VLOOKUP(M852,'Structure mapping'!AH:AL,5,0)","v":{"$error":"#N/A"}},{"$f":"LEFT(Template!H864,6)","v":""},{"$f":"VLOOKUP(O852,'Structure mapping'!AM:AQ,5,0)","v":{"$error":"#N/A"}},null,null,null,null,{"$f":"IF(Template!O864=\"\",\"\",Template!O864)","v":""},"Aug-24 pending entries",{"$f":"TEXT(Template!$B$9,\"mm/dd/yyy\")","v":"08/01/2024"},null,null,null,null,{"$f":"IF(Template!M864>0,Template!M864,-Template!N864)","v":0},null,null,null,{"$f":"VLOOKUP(G852,'Account mapping'!A:D,4,0)","v":{"$error":"#N/A"}}]
[{"$f":"LEFT(Template!A865,4)","v":""},{"$f":"VLOOKUP(A853,'Structure mapping'!K:V,7,0)","v":{"$error":"#N/A"}},{"$f":"LEFT(Template!B865,5)","v":""},{"$f":"VLOOKUP(C853,'Structure mapping'!F:J,5,0)","v":{"$error":"#N/A"}},{"$f":"LEFT(Template!C865,7)","v":""},{"$f":"VLOOKUP(E853,'Structure mapping'!A:E,5,0)","v":{"$error":"#N/A"}},{"$f":"LEFT(Template!D865,6)","v":""},{"$f":"VLOOKUP(G853,'Account mapping'!A:E,5,0)","v":{"$error":"#N/A"}},{"$f":"LEFT(Template!E865,2)","v":""},{"$f":"VLOOKUP(I853,'Structure mapping'!X:AB,5,0)","v":{"$error":"#N/A"}},{"$f":"LEFT(Template!F865,3)","v":""},{"$f":"VLOOKUP(K853,'Structure mapping'!AC:AG,5,0)","v":{"$error":"#N/A"}},{"$f":"LEFT(Template!G865,10)","v":""},{"$f":"VLOOKUP(M853,'Structure mapping'!AH:AL,5,0)","v":{"$error":"#N/A"}},{"$f":"LEFT(Template!H865,6)","v":""},{"$f":"VLOOKUP(O853,'Structure mapping'!AM:AQ,5,0)","v":{"$error":"#N/A"}},null,null,null,null,{"$f":"IF(Template!O865=\"\",\"\",Template!O865)","v":""},"Aug-24 pending entries",{"$f":"TEXT(Template!$B$9,\"mm/dd/yyy\")","v":"08/01/2024"},null,null,null,null,{"$f":"IF(Template!M865>0,Template!M865,-Template!N865)","v":0},null,null,null,{"$f":"VLOOKUP(G853,'Account mapping'!A:D,4,0)","v":{"$error":"#N/A"}}]
[{"$f":"LEFT(Template!A866,4)","v":""},{"$f":"VLOOKUP(A854,'Structure mapping'!K:V,7,0)","v":{"$error":"#N/A"}},{"$f":"LEFT(Template!B866,5)","v":""},{"$f":"VLOOKUP(C854,'Structure mapping'!F:J,5,0)","v":{"$error":"#N/A"}},{"$f":"LEFT(Template!C866,7)","v":""},{"$f":"VLOOKUP(E854,'Structure mapping'!A:E,5,0)","v":{"$error":"#N/A"}},{"$f":"LEFT(Template!D866,6)","v":""},{"$f":"VLOOKUP(G854,'Account mapping'!A:E,5,0)","v":{"$error":"#N/A"}},{"$f":"LEFT(Template!E866,2)","v":""},{"$f":"VLOOKUP(I854,'Structure mapping'!X:AB,5,0)","v":{"$error":"#N/A"}},{"$f":"LEFT(Template!F866,3)","v":""},{"$f":"VLOOKUP(K854,'Structure mapping'!AC:AG,5,0)","v":{"$error":"#N/A"}},{"$f":"LEFT(Template!G866,10)","v":""},{"$f":"VLOOKUP(M854,'Structure mapping'!AH:AL,5,0)","v":{"$error":"#N/A"}},{"$f":"LEFT(Template!H866,6)","v":""},{"$f":"VLOOKUP(O854,'Structure mapping'!AM:AQ,5,0)","v":{"$error":"#N/A"}},null,null,null,null,{"$f":"IF(Template!O866=\"\",\"\",Template!O866)","v":""},"Aug-24 pending entries",{"$f":"TEXT(Template!$B$9,\"mm/dd/yyy\")","v":"08/01/2024"},null,null,null,null,{"$f":"IF(Template!M866>0,Template!M866,-Template!N866)","v":0},null,null,null,{"$f":"VLOOKUP(G854,'Account mapping'!A:D,4,0)","v":{"$error":"#N/A"}}]
[{"$f":"LEFT(Template!A867,4)","v":""},{"$f":"VLOOKUP(A855,'Structure mapping'!K:V,7,0)","v":{"$error":"#N/A"}},{"$f":"LEFT(Template!B867,5)","v":""},{"$f":"VLOOKUP(C855,'Structure mapping'!F:J,5,0)","v":{"$error":"#N/A"}},{"$f":"LEFT(Template!C867,7)","v":""},{"$f":"VLOOKUP(E855,'Structure mapping'!A:E,5,0)","v":{"$error":"#N/A"}},{"$f":"LEFT(Template!D867,6)","v":""},{"$f":"VLOOKUP(G855,'Account mapping'!A:E,5,0)","v":{"$error":"#N/A"}},{"$f":"LEFT(Template!E867,2)","v":""},{"$f":"VLOOKUP(I855,'Structure mapping'!X:AB,5,0)","v":{"$error":"#N/A"}},{"$f":"LEFT(Template!F867,3)","v":""},{"$f":"VLOOKUP(K855,'Structure mapping'!AC:AG,5,0)","v":{"$error":"#N/A"}},{"$f":"LEFT(Template!G867,10)","v":""},{"$f":"VLOOKUP(M855,'Structure mapping'!AH:AL,5,0)","v":{"$error":"#N/A"}},{"$f":"LEFT(Template!H867,6)","v":""},{"$f":"VLOOKUP(O855,'Structure mapping'!AM:AQ,5,0)","v":{"$error":"#N/A"}},null,null,null,null,{"$f":"IF(Template!O867=\"\",\"\",Template!O867)","v":""},"Aug-24 pending entries",{"$f":"TEXT(Template!$B$9,\"mm/dd/yyy\")","v":"08/01/2024"},null,null,null,null,{"$f":"IF(Template!M867>0,Template!M867,-Template!N867)","v":0},null,null,null,{"$f":"VLOOKUP(G855,'Account mapping'!A:D,4,0)","v":{"$error":"#N/A"}}]
[{"$f":"LEFT(Template!A868,4)","v":""},{"$f":"VLOOKUP(A856,'Structure mapping'!K:V,7,0)","v":{"$error":"#N/A"}},{"$f":"LEFT(Template!B868,5)","v":""},{"$f":"VLOOKUP(C856,'Structure mapping'!F:J,5,0)","v":{"$error":"#N/A"}},{"$f":"LEFT(Template!C868,7)","v":""},{"$f":"VLOOKUP(E856,'Structure mapping'!A:E,5,0)","v":{"$error":"#N/A"}},{"$f":"LEFT(Template!D868,6)","v":""},{"$f":"VLOOKUP(G856,'Account mapping'!A:E,5,0)","v":{"$error":"#N/A"}},{"$f":"LEFT(Template!E868,2)","v":""},{"$f":"VLOOKUP(I856,'Structure mapping'!X:AB,5,0)","v":{"$error":"#N/A"}},{"$f":"LEFT(Template!F868,3)","v":""},{"$f":"VLOOKUP(K856,'Structure mapping'!AC:AG,5,0)","v":{"$error":"#N/A"}},{"$f":"LEFT(Template!G868,10)","v":""},{"$f":"VLOOKUP(M856,'Structure mapping'!AH:AL,5,0)","v":{"$error":"#N/A"}},{"$f":"LEFT(Template!H868,6)","v":""},{"$f":"VLOOKUP(O856,'Structure mapping'!AM:AQ,5,0)","v":{"$error":"#N/A"}},null,null,null,null,{"$f":"IF(Template!O868=\"\",\"\",Template!O868)","v":""},"Aug-24 pending entries",{"$f":"TEXT(Template!$B$9,\"mm/dd/yyy\")","v":"08/01/2024"},null,null,null,null,{"$f":"IF(Template!M868>0,Template!M868,-Template!N868)","v":0},null,null,null,{"$f":"VLOOKUP(G856,'Account mapping'!A:D,4,0)","v":{"$error":"#N/A"}}]
[{"$f":"LEFT(Template!A869,4)","v":""},{"$f":"VLOOKUP(A857,'Structure mapping'!K:V,7,0)","v":{"$error":"#N/A"}},{"$f":"LEFT(Template!B869,5)","v":""},{"$f":"VLOOKUP(C857,'Structure mapping'!F:J,5,0)","v":{"$error":"#N/A"}},{"$f":"LEFT(Template!C869,7)","v":""},{"$f":"VLOOKUP(E857,'Structure mapping'!A:E,5,0)","v":{"$error":"#N/A"}},{"$f":"LEFT(Template!D869,6)","v":""},{"$f":"VLOOKUP(G857,'Account mapping'!A:E,5,0)","v":{"$error":"#N/A"}},{"$f":"LEFT(Template!E869,2)","v":""},{"$f":"VLOOKUP(I857,'Structure mapping'!X:AB,5,0)","v":{"$error":"#N/A"}},{"$f":"LEFT(Template!F869,3)","v":""},{"$f":"VLOOKUP(K857,'Structure mapping'!AC:AG,5,0)","v":{"$error":"#N/A"}},{"$f":"LEFT(Template!G869,10)","v":""},{"$f":"VLOOKUP(M857,'Structure mapping'!AH:AL,5,0)","v":{"$error":"#N/A"}},{"$f":"LEFT(Template!H869,6)","v":""},{"$f":"VLOOKUP(O857,'Structure mapping'!AM:AQ,5,0)","v":{"$error":"#N/A"}},null,null,null,null,{"$f":"IF(Template!O869=\"\",\"\",Template!O869)","v":""},"Aug-24 pending entries",{"$f":"TEXT(Template!$B$9,\"mm/dd/yyy\")","v":"08/01/2024"},null,null,null,null,{"$f":"IF(Template!M869>0,Template!M869,-Template!N869)","v":0},null,null,null,{"$f":"VLOOKUP(G857,'Account mapping'!A:D,4,0)","v":{"$error":"#N/A"}}]
[{"$f":"LEFT(Template!A870,4)","v":""},{"$f":"VLOOKUP(A858,'Structure mapping'!K:V,7,0)","v":{"$error":"#N/A"}},{"$f":"LEFT(Template!B870,5)","v":""},{"$f":"VLOOKUP(C858,'Structure mapping'!F:J,5,0)","v":{"$error":"#N/A"}},{"$f":"LEFT(Template!C870,7)","v":""},{"$f":"VLOOKUP(E858,'Structure mapping'!A:E,5,0)","v":{"$error":"#N/A"}},{"$f":"LEFT(Template!D870,6)","v":""},{"$f":"VLOOKUP(G858,'Account mapping'!A:E,5,0)","v":{"$error":"#N/A"}},{"$f":"LEFT(Template!E870,2)","v":""},{"$f":"VLOOKUP(I858,'Structure mapping'!X:AB,5,0)","v":{"$error":"#N/A"}},{"$f":"LEFT(Template!F870,3)","v":""},{"$f":"VLOOKUP(K858,'Structure mapping'!AC:AG,5,0)","v":{"$error":"#N/A"}},{"$f":"LEFT(Template!G870,10)","v":""},{"$f":"VLOOKUP(M858,'Structure mapping'!AH:AL,5,0)","v":{"$error":"#N/A"}},{"$f":"LEFT(Template!H870,6)","v":""},{"$f":"VLOOKUP(O858,'Structure mapping'!AM:AQ,5,0)","v":{"$error":"#N/A"}},null,null,null,null,{"$f":"IF(Template!O870=\"\",\"\",Template!O870)","v":""},"Aug-24 pending entries",{"$f":"TEXT(Template!$B$9,\"mm/dd/yyy\")","v":"08/01/2024"},null,null,null,null,{"$f":"IF(Template!M870>0,Template!M870,-Template!N870)","v":0},null,null,null,{"$f":"VLOOKUP(G858,'Account mapping'!A:D,4,0)","v":{"$error":"#N/A"}}]
[{"$f":"LEFT(Template!A871,4)","v":""},{"$f":"VLOOKUP(A859,'Structure mapping'!K:V,7,0)","v":{"$error":"#N/A"}},{"$f":"LEFT(Template!B871,5)","v":""},{"$f":"VLOOKUP(C859,'Structure mapping'!F:J,5,0)","v":{"$error":"#N/A"}},{"$f":"LEFT(Template!C871,7)","v":""},{"$f":"VLOOKUP(E859,'Structure mapping'!A:E,5,0)","v":{"$error":"#N/A"}},{"$f":"LEFT(Template!D871,6)","v":""},{"$f":"VLOOKUP(G859,'Account mapping'!A:E,5,0)","v":{"$error":"#N/A"}},{"$f":"LEFT(Template!E871,2)","v":""},{"$f":"VLOOKUP(I859,'Structure mapping'!X:AB,5,0)","v":{"$error":"#N/A"}},{"$f":"LEFT(Template!F871,3)","v":""},{"$f":"VLOOKUP(K859,'Structure mapping'!AC:AG,5,0)","v":{"$error":"#N/A"}},{"$f":"LEFT(Template!G871,10)","v":""},{"$f":"VLOOKUP(M859,'Structure mapping'!AH:AL,5,0)","v":{"$error":"#N/A"}},{"$f":"LEFT(Template!H871,6)","v":""},{"$f":"VLOOKUP(O859,'Structure mapping'!AM:AQ,5,0)","v":{"$error":"#N/A"}},null,null,null,null,{"$f":"IF(Template!O871=\"\",\"\",Template!O871)","v":""},"Aug-24 pending entries",{"$f":"TEXT(Template!$B$9,\"mm/dd/yyy\")","v":"08/01/2024"},null,null,null,null,{"$f":"IF(Template!M871>0,Template!M871,-Template!N871)","v":0},null,null,null,{"$f":"VLOOKUP(G859,'Account mapping'!A:D,4,0)","v":{"$error":"#N/A"}}]
[{"$f":"LEFT(Template!A872,4)","v":""},{"$f":"VLOOKUP(A860,'Structure mapping'!K:V,7,0)","v":{"$error":"#N/A"}},{"$f":"LEFT(Template!B872,5)","v":""},{"$f":"VLOOKUP(C860,'Structure mapping'!F:J,5,0)","v":{"$error":"#N/A"}},{"$f":"LEFT(Template!C872,7)","v":""},{"$f":"VLOOKUP(E860,'Structure mapping'!A:E,5,0)","v":{"$error":"#N/A"}},{"$f":"LEFT(Template!D872,6)","v":""},{"$f":"VLOOKUP(G860,'Account mapping'!A:E,5,0)","v":{"$error":"#N/A"}},{"$f":"LEFT(Template!E872,2)","v":""},{"$f":"VLOOKUP(I860,'Structure mapping'!X:AB,5,0)","v":{"$error":"#N/A"}},{"$f":"LEFT(Template!F872,3)","v":""},{"$f":"VLOOKUP(K860,'Structure mapping'!AC:AG,5,0)","v":{"$error":"#N/A"}},{"$f":"LEFT(Template!G872,10)","v":""},{"$f":"VLOOKUP(M860,'Structure mapping'!AH:AL,5,0)","v":{"$error":"#N/A"}},{"$f":"LEFT(Template!H872,6)","v":""},{"$f":"VLOOKUP(O860,'Structure mapping'!AM:AQ,5,0)","v":{"$error":"#N/A"}},null,null,null,null,{"$f":"IF(Template!O872=\"\",\"\",Template!O872)","v":""},"Aug-24 pending entries",{"$f":"TEXT(Template!$B$9,\"mm/dd/yyy\")","v":"08/01/2024"},null,null,null,null,{"$f":"IF(Template!M872>0,Template!M872,-Template!N872)","v":0},null,null,null,{"$f":"VLOOKUP(G860,'Account mapping'!A:D,4,0)","v":{"$error":"#N/A"}}]
[{"$f":"LEFT(Template!A873,4)","v":""},{"$f":"VLOOKUP(A861,'Structure mapping'!K:V,7,0)","v":{"$error":"#N/A"}},{"$f":"LEFT(Template!B873,5)","v":""},{"$f":"VLOOKUP(C861,'Structure mapping'!F:J,5,0)","v":{"$error":"#N/A"}},{"$f":"LEFT(Template!C873,7)","v":""},{"$f":"VLOOKUP(E861,'Structure mapping'!A:E,5,0)","v":{"$error":"#N/A"}},{"$f":"LEFT(Template!D873,6)","v":""},{"$f":"VLOOKUP(G861,'Account mapping'!A:E,5,0)","v":{"$error":"#N/A"}},{"$f":"LEFT(Template!E873,2)","v":""},{"$f":"VLOOKUP(I861,'Structure mapping'!X:AB,5,0)","v":{"$error":"#N/A"}},{"$f":"LEFT(Template!F873,3)","v":""},{"$f":"VLOOKUP(K861,'Structure mapping'!AC:AG,5,0)","v":{"$error":"#N/A"}},{"$f":"LEFT(Template!G873,10)","v":""},{"$f":"VLOOKUP(M861,'Structure mapping'!AH:AL,5,0)","v":{"$error":"#N/A"}},{"$f":"LEFT(Template!H873,6)","v":""},{"$f":"VLOOKUP(O861,'Structure mapping'!AM:AQ,5,0)","v":{"$error":"#N/A"}},null,null,null,null,{"$f":"IF(Template!O873=\"\",\"\",Template!O873)","v":""},"Aug-24 pending entries",{"$f":"TEXT(Template!$B$9,\"mm/dd/yyy\")","v":"08/01/2024"},null,null,null,null,{"$f":"IF(Template!M873>0,Template!M873,-Template!N873)","v":0},null,null,null,{"$f":"VLOOKUP(G861,'Account mapping'!A:D,4,0)","v":{"$error":"#N/A"}}]
[{"$f":"LEFT(Template!A874,4)","v":""},{"$f":"VLOOKUP(A862,'Structure mapping'!K:V,7,0)","v":{"$error":"#N/A"}},{"$f":"LEFT(Template!B874,5)","v":""},{"$f":"VLOOKUP(C862,'Structure mapping'!F:J,5,0)","v":{"$error":"#N/A"}},{"$f":"LEFT(Template!C874,7)","v":""},{"$f":"VLOOKUP(E862,'Structure mapping'!A:E,5,0)","v":{"$error":"#N/A"}},{"$f":"LEFT(Template!D874,6)","v":""},{"$f":"VLOOKUP(G862,'Account mapping'!A:E,5,0)","v":{"$error":"#N/A"}},{"$f":"LEFT(Template!E874,2)","v":""},{"$f":"VLOOKUP(I862,'Structure mapping'!X:AB,5,0)","v":{"$error":"#N/A"}},{"$f":"LEFT(Template!F874,3)","v":""},{"$f":"VLOOKUP(K862,'Structure mapping'!AC:AG,5,0)","v":{"$error":"#N/A"}},{"$f":"LEFT(Template!G874,10)","v":""},{"$f":"VLOOKUP(M862,'Structure mapping'!AH:AL,5,0)","v":{"$error":"#N/A"}},{"$f":"LEFT(Template!H874,6)","v":""},{"$f":"VLOOKUP(O862,'Structure mapping'!AM:AQ,5,0)","v":{"$error":"#N/A"}},null,null,null,null,{"$f":"IF(Template!O874=\"\",\"\",Template!O874)","v":""},"Aug-24 pending entries",{"$f":"TEXT(Template!$B$9,\"mm/dd/yyy\")","v":"08/01/2024"},null,null,null,null,{"$f":"IF(Template!M874>0,Template!M874,-Template!N874)","v":0},null,null,null,{"$f":"VLOOKUP(G862,'Account mapping'!A:D,4,0)","v":{"$error":"#N/A"}}]
[{"$f":"LEFT(Template!A875,4)","v":""},{"$f":"VLOOKUP(A863,'Structure mapping'!K:V,7,0)","v":{"$error":"#N/A"}},{"$f":"LEFT(Template!B875,5)","v":""},{"$f":"VLOOKUP(C863,'Structure mapping'!F:J,5,0)","v":{"$error":"#N/A"}},{"$f":"LEFT(Template!C875,7)","v":""},{"$f":"VLOOKUP(E863,'Structure mapping'!A:E,5,0)","v":{"$error":"#N/A"}},{"$f":"LEFT(Template!D875,6)","v":""},{"$f":"VLOOKUP(G863,'Account mapping'!A:E,5,0)","v":{"$error":"#N/A"}},{"$f":"LEFT(Template!E875,2)","v":""},{"$f":"VLOOKUP(I863,'Structure mapping'!X:AB,5,0)","v":{"$error":"#N/A"}},{"$f":"LEFT(Template!F875,3)","v":""},{"$f":"VLOOKUP(K863,'Structure mapping'!AC:AG,5,0)","v":{"$error":"#N/A"}},{"$f":"LEFT(Template!G875,10)","v":""},{"$f":"VLOOKUP(M863,'Structure mapping'!AH:AL,5,0)","v":{"$error":"#N/A"}},{"$f":"LEFT(Template!H875,6)","v":""},{"$f":"VLOOKUP(O863,'Structure mapping'!AM:AQ,5,0)","v":{"$error":"#N/A"}},null,null,null,null,{"$f":"IF(Template!O875=\"\",\"\",Template!O875)","v":""},"Aug-24 pending entries",{"$f":"TEXT(Template!$B$9,\"mm/dd/yyy\")","v":"08/01/2024"},null,null,null,null,{"$f":"IF(Template!M875>0,Template!M875,-Template!N875)","v":0},null,null,null,{"$f":"VLOOKUP(G863,'Account mapping'!A:D,4,0)","v":{"$error":"#N/A"}}]
[{"$f":"LEFT(Template!A876,4)","v":""},{"$f":"VLOOKUP(A864,'Structure mapping'!K:V,7,0)","v":{"$error":"#N/A"}},{"$f":"LEFT(Template!B876,5)","v":""},{"$f":"VLOOKUP(C864,'Structure mapping'!F:J,5,0)","v":{"$error":"#N/A"}},{"$f":"LEFT(Template!C876,7)","v":""},{"$f":"VLOOKUP(E864,'Structure mapping'!A:E,5,0)","v":{"$error":"#N/A"}},{"$f":"LEFT(Template!D876,6)","v":""},{"$f":"VLOOKUP(G864,'Account mapping'!A:E,5,0)","v":{"$error":"#N/A"}},{"$f":"LEFT(Template!E876,2)","v":""},{"$f":"VLOOKUP(I864,'Structure mapping'!X:AB,5,0)","v":{"$error":"#N/A"}},{"$f":"LEFT(Template!F876,3)","v":""},{"$f":"VLOOKUP(K864,'Structure mapping'!AC:AG,5,0)","v":{"$error":"#N/A"}},{"$f":"LEFT(Template!G876,10)","v":""},{"$f":"VLOOKUP(M864,'Structure mapping'!AH:AL,5,0)","v":{"$error":"#N/A"}},{"$f":"LEFT(Template!H876,6)","v":""},{"$f":"VLOOKUP(O864,'Structure mapping'!AM:AQ,5,0)","v":{"$error":"#N/A"}},null,null,null,null,{"$f":"IF(Template!O876=\"\",\"\",Template!O876)","v":""},"Aug-24 pending entries",{"$f":"TEXT(Template!$B$9,\"mm/dd/yyy\")","v":"08/01/2024"},null,null,null,null,{"$f":"IF(Template!M876>0,Template!M876,-Template!N876)","v":0},null,null,null,{"$f":"VLOOKUP(G864,'Account mapping'!A:D,4,0)","v":{"$error":"#N/A"}}]
[{"$f":"LEFT(Template!A877,4)","v":""},{"$f":"VLOOKUP(A865,'Structure mapping'!K:V,7,0)","v":{"$error":"#N/A"}},{"$f":"LEFT(Template!B877,5)","v":""},{"$f":"VLOOKUP(C865,'Structure mapping'!F:J,5,0)","v":{"$error":"#N/A"}},{"$f":"LEFT(Template!C877,7)","v":""},{"$f":"VLOOKUP(E865,'Structure mapping'!A:E,5,0)","v":{"$error":"#N/A"}},{"$f":"LEFT(Template!D877,6)","v":""},{"$f":"VLOOKUP(G865,'Account mapping'!A:E,5,0)","v":{"$error":"#N/A"}},{"$f":"LEFT(Template!E877,2)","v":""},{"$f":"VLOOKUP(I865,'Structure mapping'!X:AB,5,0)","v":{"$error":"#N/A"}},{"$f":"LEFT(Template!F877,3)","v":""},{"$f":"VLOOKUP(K865,'Structure mapping'!AC:AG,5,0)","v":{"$error":"#N/A"}},{"$f":"LEFT(Template!G877,10)","v":""},{"$f":"VLOOKUP(M865,'Structure mapping'!AH:AL,5,0)","v":{"$error":"#N/A"}},{"$f":"LEFT(Template!H877,6)","v":""},{"$f":"VLOOKUP(O865,'Structure mapping'!AM:AQ,5,0)","v":{"$error":"#N/A"}},null,null,null,null,{"$f":"IF(Template!O877=\"\",\"\",Template!O877)","v":""},"Aug-24 pending entries",{"$f":"TEXT(Template!$B$9,\"mm/dd/yyy\")","v":"08/01/2024"},null,null,null,null,{"$f":"IF(Template!M877>0,Template!M877,-Template!N877)","v":0},null,null,null,{"$f":"VLOOKUP(G865,'Account mapping'!A:D,4,0)","v":{"$error":"#N/A"}}]
[{"$f":"LEFT(Template!A878,4)","v":""},{"$f":"VLOOKUP(A866,'Structure mapping'!K:V,7,0)","v":{"$error":"#N/A"}},{"$f":"LEFT(Template!B878,5)","v":""},{"$f":"VLOOKUP(C866,'Structure mapping'!F:J,5,0)","v":{"$error":"#N/A"}},{"$f":"LEFT(Template!C878,7)","v":""},{"$f":"VLOOKUP(E866,'Structure mapping'!A:E,5,0)","v":{"$error":"#N/A"}},{"$f":"LEFT(Template!D878,6)","v":""},{"$f":"VLOOKUP(G866,'Account mapping'!A:E,5,0)","v":{"$error":"#N/A"}},{"$f":"LEFT(Template!E878,2)","v":""},{"$f":"VLOOKUP(I866,'Structure mapping'!X:AB,5,0)","v":{"$error":"#N/A"}},{"$f":"LEFT(Template!F878,3)","v":""},{"$f":"VLOOKUP(K866,'Structure mapping'!AC:AG,5,0)","v":{"$error":"#N/A"}},{"$f":"LEFT(Template!G878,10)","v":""},{"$f":"VLOOKUP(M866,'Structure mapping'!AH:AL,5,0)","v":{"$error":"#N/A"}},{"$f":"LEFT(Template!H878,6)","v":""},{"$f":"VLOOKUP(O866,'Structure mapping'!AM:AQ,5,0)","v":{"$error":"#N/A"}},null,null,null,null,{"$f":"IF(Template!O878=\"\",\"\",Template!O878)","v":""},"Aug-24 pending entries",{"$f":"TEXT(Template!$B$9,\"mm/dd/yyy\")","v":"08/01/2024"},null,null,null,null,{"$f":"IF(Template!M878>0,Template!M878,-Template!N878)","v":0},null,null,null,{"$f":"VLOOKUP(G866,'Account mapping'!A:D,4,0)","v":{"$error":"#N/A"}}]
[{"$f":"LEFT(Template!A879,4)","v":""},{"$f":"VLOOKUP(A867,'Structure mapping'!K:V,7,0)","v":{"$error":"#N/A"}},{"$f":"LEFT(Template!B879,5)","v":""},{"$f":"VLOOKUP(C867,'Structure mapping'!F:J,5,0)","v":{"$error":"#N/A"}},{"$f":"LEFT(Template!C879,7)","v":""},{"$f":"VLOOKUP(E867,'Structure mapping'!A:E,5,0)","v":{"$error":"#N/A"}},{"$f":"LEFT(Template!D879,6)","v":""},{"$f":"VLOOKUP(G867,'Account mapping'!A:E,5,0)","v":{"$error":"#N/A"}},{"$f":"LEFT(Template!E879,2)","v":""},{"$f":"VLOOKUP(I867,'Structure mapping'!X:AB,5,0)","v":{"$error":"#N/A"}},{"$f":"LEFT(Template!F879,3)","v":""},{"$f":"VLOOKUP(K867,'Structure mapping'!AC:AG,5,0)","v":{"$error":"#N/A"}},{"$f":"LEFT(Template!G879,10)","v":""},{"$f":"VLOOKUP(M867,'Structure mapping'!AH:AL,5,0)","v":{"$error":"#N/A"}},{"$f":"LEFT(Template!H879,6)","v":""},{"$f":"VLOOKUP(O867,'Structure mapping'!AM:AQ,5,0)","v":{"$error":"#N/A"}},null,null,null,null,{"$f":"IF(Template!O879=\"\",\"\",Template!O879)","v":""},"Aug-24 pending entries",{"$f":"TEXT(Template!$B$9,\"mm/dd/yyy\")","v":"08/01/2024"},null,null,null,null,{"$f":"IF(Template!M879>0,Template!M879,-Template!N879)","v":0},null,null,null,{"$f":"VLOOKUP(G867,'Account mapping'!A:D,4,0)","v":{"$error":"#N/A"}}]
[{"$f":"LEFT(Template!A880,4)","v":""},{"$f":"VLOOKUP(A868,'Structure mapping'!K:V,7,0)","v":{"$error":"#N/A"}},{"$f":"LEFT(Template!B880,5)","v":""},{"$f":"VLOOKUP(C868,'Structure mapping'!F:J,5,0)","v":{"$error":"#N/A"}},{"$f":"LEFT(Template!C880,7)","v":""},{"$f":"VLOOKUP(E868,'Structure mapping'!A:E,5,0)","v":{"$error":"#N/A"}},{"$f":"LEFT(Template!D880,6)","v":""},{"$f":"VLOOKUP(G868,'Account mapping'!A:E,5,0)","v":{"$error":"#N/A"}},{"$f":"LEFT(Template!E880,2)","v":""},{"$f":"VLOOKUP(I868,'Structure mapping'!X:AB,5,0)","v":{"$error":"#N/A"}},{"$f":"LEFT(Template!F880,3)","v":""},{"$f":"VLOOKUP(K868,'Structure mapping'!AC:AG,5,0)","v":{"$error":"#N/A"}},{"$f":"LEFT(Template!G880,10)","v":""},{"$f":"VLOOKUP(M868,'Structure mapping'!AH:AL,5,0)","v":{"$error":"#N/A"}},{"$f":"LEFT(Template!H880,6)","v":""},{"$f":"VLOOKUP(O868,'Structure mapping'!AM:AQ,5,0)","v":{"$error":"#N/A"}},null,null,null,null,{"$f":"IF(Template!O880=\"\",\"\",Template!O880)","v":""},"Aug-24 pending entries",{"$f":"TEXT(Template!$B$9,\"mm/dd/yyy\")","v":"08/01/2024"},null,null,null,null,{"$f":"IF(Template!M880>0,Template!M880,-Template!N880)","v":0},null,null,null,{"$f":"VLOOKUP(G868,'Account mapping'!A:D,4,0)","v":{"$error":"#N/A"}}]
[{"$f":"LEFT(Template!A881,4)","v":""},{"$f":"VLOOKUP(A869,'Structure mapping'!K:V,7,0)","v":{"$error":"#N/A"}},{"$f":"LEFT(Template!B881,5)","v":""},{"$f":"VLOOKUP(C869,'Structure mapping'!F:J,5,0)","v":{"$error":"#N/A"}},{"$f":"LEFT(Template!C881,7)","v":""},{"$f":"VLOOKUP(E869,'Structure mapping'!A:E,5,0)","v":{"$error":"#N/A"}},{"$f":"LEFT(Template!D881,6)","v":""},{"$f":"VLOOKUP(G869,'Account mapping'!A:E,5,0)","v":{"$error":"#N/A"}},{"$f":"LEFT(Template!E881,2)","v":""},{"$f":"VLOOKUP(I869,'Structure mapping'!X:AB,5,0)","v":{"$error":"#N/A"}},{"$f":"LEFT(Template!F881,3)","v":""},{"$f":"VLOOKUP(K869,'Structure mapping'!AC:AG,5,0)","v":{"$error":"#N/A"}},{"$f":"LEFT(Template!G881,10)","v":""},{"$f":"VLOOKUP(M869,'Structure mapping'!AH:AL,5,0)","v":{"$error":"#N/A"}},{"$f":"LEFT(Template!H881,6)","v":""},{"$f":"VLOOKUP(O869,'Structure mapping'!AM:AQ,5,0)","v":{"$error":"#N/A"}},null,null,null,null,{"$f":"IF(Template!O881=\"\",\"\",Template!O881)","v":""},"Aug-24 pending entries",{"$f":"TEXT(Template!$B$9,\"mm/dd/yyy\")","v":"08/01/2024"},null,null,null,null,{"$f":"IF(Template!M881>0,Template!M881,-Template!N881)","v":0},null,null,null,{"$f":"VLOOKUP(G869,'Account mapping'!A:D,4,0)","v":{"$error":"#N/A"}}]
[{"$f":"LEFT(Template!A882,4)","v":""},{"$f":"VLOOKUP(A870,'Structure mapping'!K:V,7,0)","v":{"$error":"#N/A"}},{"$f":"LEFT(Template!B882,5)","v":""},{"$f":"VLOOKUP(C870,'Structure mapping'!F:J,5,0)","v":{"$error":"#N/A"}},{"$f":"LEFT(Template!C882,7)","v":""},{"$f":"VLOOKUP(E870,'Structure mapping'!A:E,5,0)","v":{"$error":"#N/A"}},{"$f":"LEFT(Template!D882,6)","v":""},{"$f":"VLOOKUP(G870,'Account mapping'!A:E,5,0)","v":{"$error":"#N/A"}},{"$f":"LEFT(Template!E882,2)","v":""},{"$f":"VLOOKUP(I870,'Structure mapping'!X:AB,5,0)","v":{"$error":"#N/A"}},{"$f":"LEFT(Template!F882,3)","v":""},{"$f":"VLOOKUP(K870,'Structure mapping'!AC:AG,5,0)","v":{"$error":"#N/A"}},{"$f":"LEFT(Template!G882,10)","v":""},{"$f":"VLOOKUP(M870,'Structure mapping'!AH:AL,5,0)","v":{"$error":"#N/A"}},{"$f":"LEFT(Template!H882,6)","v":""},{"$f":"VLOOKUP(O870,'Structure mapping'!AM:AQ,5,0)","v":{"$error":"#N/A"}},null,null,null,null,{"$f":"IF(Template!O882=\"\",\"\",Template!O882)","v":""},"Aug-24 pending entries",{"$f":"TEXT(Template!$B$9,\"mm/dd/yyy\")","v":"08/01/2024"},null,null,null,null,{"$f":"IF(Template!M882>0,Template!M882,-Template!N882)","v":0},null,null,null,{"$f":"VLOOKUP(G870,'Account mapping'!A:D,4,0)","v":{"$error":"#N/A"}}]
[{"$f":"LEFT(Template!A883,4)","v":""},{"$f":"VLOOKUP(A871,'Structure mapping'!K:V,7,0)","v":{"$error":"#N/A"}},{"$f":"LEFT(Template!B883,5)","v":""},{"$f":"VLOOKUP(C871,'Structure mapping'!F:J,5,0)","v":{"$error":"#N/A"}},{"$f":"LEFT(Template!C883,7)","v":""},{"$f":"VLOOKUP(E871,'Structure mapping'!A:E,5,0)","v":{"$error":"#N/A"}},{"$f":"LEFT(Template!D883,6)","v":""},{"$f":"VLOOKUP(G871,'Account mapping'!A:E,5,0)","v":{"$error":"#N/A"}},{"$f":"LEFT(Template!E883,2)","v":""},{"$f":"VLOOKUP(I871,'Structure mapping'!X:AB,5,0)","v":{"$error":"#N/A"}},{"$f":"LEFT(Template!F883,3)","v":""},{"$f":"VLOOKUP(K871,'Structure mapping'!AC:AG,5,0)","v":{"$error":"#N/A"}},{"$f":"LEFT(Template!G883,10)","v":""},{"$f":"VLOOKUP(M871,'Structure mapping'!AH:AL,5,0)","v":{"$error":"#N/A"}},{"$f":"LEFT(Template!H883,6)","v":""},{"$f":"VLOOKUP(O871,'Structure mapping'!AM:AQ,5,0)","v":{"$error":"#N/A"}},null,null,null,null,{"$f":"IF(Template!O883=\"\",\"\",Template!O883)","v":""},"Aug-24 pending entries",{"$f":"TEXT(Template!$B$9,\"mm/dd/yyy\")","v":"08/01/2024"},null,null,null,null,{"$f":"IF(Template!M883>0,Template!M883,-Template!N883)","v":0},null,null,null,{"$f":"VLOOKUP(G871,'Account mapping'!A:D,4,0)","v":{"$error":"#N/A"}}]
[{"$f":"LEFT(Template!A884,4)","v":""},{"$f":"VLOOKUP(A872,'Structure mapping'!K:V,7,0)","v":{"$error":"#N/A"}},{"$f":"LEFT(Template!B884,5)","v":""},{"$f":"VLOOKUP(C872,'Structure mapping'!F:J,5,0)","v":{"$error":"#N/A"}},{"$f":"LEFT(Template!C884,7)","v":""},{"$f":"VLOOKUP(E872,'Structure mapping'!A:E,5,0)","v":{"$error":"#N/A"}},{"$f":"LEFT(Template!D884,6)","v":""},{"$f":"VLOOKUP(G872,'Account mapping'!A:E,5,0)","v":{"$error":"#N/A"}},{"$f":"LEFT(Template!E884,2)","v":""},{"$f":"VLOOKUP(I872,'Structure mapping'!X:AB,5,0)","v":{"$error":"#N/A"}},{"$f":"LEFT(Template!F884,3)","v":""},{"$f":"VLOOKUP(K872,'Structure mapping'!AC:AG,5,0)","v":{"$error":"#N/A"}},{"$f":"LEFT(Template!G884,10)","v":""},{"$f":"VLOOKUP(M872,'Structure mapping'!AH:AL,5,0)","v":{"$error":"#N/A"}},{"$f":"LEFT(Template!H884,6)","v":""},{"$f":"VLOOKUP(O872,'Structure mapping'!AM:AQ,5,0)","v":{"$error":"#N/A"}},null,null,null,null,{"$f":"IF(Template!O884=\"\",\"\",Template!O884)","v":""},"Aug-24 pending entries",{"$f":"TEXT(Template!$B$9,\"mm/dd/yyy\")","v":"08/01/2024"},null,null,null,null,{"$f":"IF(Template!M884>0,Template!M884,-Template!N884)","v":0},null,null,null,{"$f":"VLOOKUP(G872,'Account mapping'!A:D,4,0)","v":{"$error":"#N/A"}}]
[{"$f":"LEFT(Template!A885,4)","v":""},{"$f":"VLOOKUP(A873,'Structure mapping'!K:V,7,0)","v":{"$error":"#N/A"}},{"$f":"LEFT(Template!B885,5)","v":""},{"$f":"VLOOKUP(C873,'Structure mapping'!F:J,5,0)","v":{"$error":"#N/A"}},{"$f":"LEFT(Template!C885,7)","v":""},{"$f":"VLOOKUP(E873,'Structure mapping'!A:E,5,0)","v":{"$error":"#N/A"}},{"$f":"LEFT(Template!D885,6)","v":""},{"$f":"VLOOKUP(G873,'Account mapping'!A:E,5,0)","v":{"$error":"#N/A"}},{"$f":"LEFT(Template!E885,2)","v":""},{"$f":"VLOOKUP(I873,'Structure mapping'!X:AB,5,0)","v":{"$error":"#N/A"}},{"$f":"LEFT(Template!F885,3)","v":""},{"$f":"VLOOKUP(K873,'Structure mapping'!AC:AG,5,0)","v":{"$error":"#N/A"}},{"$f":"LEFT(Template!G885,10)","v":""},{"$f":"VLOOKUP(M873,'Structure mapping'!AH:AL,5,0)","v":{"$error":"#N/A"}},{"$f":"LEFT(Template!H885,6)","v":""},{"$f":"VLOOKUP(O873,'Structure mapping'!AM:AQ,5,0)","v":{"$error":"#N/A"}},null,null,null,null,{"$f":"IF(Template!O885=\"\",\"\",Template!O885)","v":""},"Aug-24 pending entries",{"$f":"TEXT(Template!$B$9,\"mm/dd/yyy\")","v":"08/01/2024"},null,null,null,null,{"$f":"IF(Template!M885>0,Template!M885,-Template!N885)","v":0},null,null,null,{"$f":"VLOOKUP(G873,'Account mapping'!A:D,4,0)","v":{"$error":"#N/A"}}]
[{"$f":"LEFT(Template!A886,4)","v":""},{"$f":"VLOOKUP(A874,'Structure mapping'!K:V,7,0)","v":{"$error":"#N/A"}},{"$f":"LEFT(Template!B886,5)","v":""},{"$f":"VLOOKUP(C874,'Structure mapping'!F:J,5,0)","v":{"$error":"#N/A"}},{"$f":"LEFT(Template!C886,7)","v":""},{"$f":"VLOOKUP(E874,'Structure mapping'!A:E,5,0)","v":{"$error":"#N/A"}},{"$f":"LEFT(Template!D886,6)","v":""},{"$f":"VLOOKUP(G874,'Account mapping'!A:E,5,0)","v":{"$error":"#N/A"}},{"$f":"LEFT(Template!E886,2)","v":""},{"$f":"VLOOKUP(I874,'Structure mapping'!X:AB,5,0)","v":{"$error":"#N/A"}},{"$f":"LEFT(Template!F886,3)","v":""},{"$f":"VLOOKUP(K874,'Structure mapping'!AC:AG,5,0)","v":{"$error":"#N/A"}},{"$f":"LEFT(Template!G886,10)","v":""},{"$f":"VLOOKUP(M874,'Structure mapping'!AH:AL,5,0)","v":{"$error":"#N/A"}},{"$f":"LEFT(Template!H886,6)","v":""},{"$f":"VLOOKUP(O874,'Structure mapping'!AM:AQ,5,0)","v":{"$error":"#N/A"}},null,null,null,null,{"$f":"IF(Template!O886=\"\",\"\",Template!O886)","v":""},"Aug-24 pending entries",{"$f":"TEXT(Template!$B$9,\"mm/dd/yyy\")","v":"08/01/2024"},null,null,null,null,{"$f":"IF(Template!M886>0,Template!M886,-Template!N886)","v":0},null,null,null,{"$f":"VLOOKUP(G874,'Account mapping'!A:D,4,0)","v":{"$error":"#N/A"}}]
[{"$f":"LEFT(Template!A887,4)","v":""},{"$f":"VLOOKUP(A875,'Structure mapping'!K:V,7,0)","v":{"$error":"#N/A"}},{"$f":"LEFT(Template!B887,5)","v":""},{"$f":"VLOOKUP(C875,'Structure mapping'!F:J,5,0)","v":{"$error":"#N/A"}},{"$f":"LEFT(Template!C887,7)","v":""},{"$f":"VLOOKUP(E875,'Structure mapping'!A:E,5,0)","v":{"$error":"#N/A"}},{"$f":"LEFT(Template!D887,6)","v":""},{"$f":"VLOOKUP(G875,'Account mapping'!A:E,5,0)","v":{"$error":"#N/A"}},{"$f":"LEFT(Template!E887,2)","v":""},{"$f":"VLOOKUP(I875,'Structure mapping'!X:AB,5,0)","v":{"$error":"#N/A"}},{"$f":"LEFT(Template!F887,3)","v":""},{"$f":"VLOOKUP(K875,'Structure mapping'!AC:AG,5,0)","v":{"$error":"#N/A"}},{"$f":"LEFT(Template!G887,10)","v":""},{"$f":"VLOOKUP(M875,'Structure mapping'!AH:AL,5,0)","v":{"$error":"#N/A"}},{"$f":"LEFT(Template!H887,6)","v":""},{"$f":"VLOOKUP(O875,'Structure mapping'!AM:AQ,5,0)","v":{"$error":"#N/A"}},null,null,null,null,{"$f":"IF(Template!O887=\"\",\"\",Template!O887)","v":""},"Aug-24 pending entries",{"$f":"TEXT(Template!$B$9,\"mm/dd/yyy\")","v":"08/01/2024"},null,null,null,null,{"$f":"IF(Template!M887>0,Template!M887,-Template!N887)","v":0},null,null,null,{"$f":"VLOOKUP(G875,'Account mapping'!A:D,4,0)","v":{"$error":"#N/A"}}]
[{"$f":"LEFT(Template!A888,4)","v":""},{"$f":"VLOOKUP(A876,'Structure mapping'!K:V,7,0)","v":{"$error":"#N/A"}},{"$f":"LEFT(Template!B888,5)","v":""},{"$f":"VLOOKUP(C876,'Structure mapping'!F:J,5,0)","v":{"$error":"#N/A"}},{"$f":"LEFT(Template!C888,7)","v":""},{"$f":"VLOOKUP(E876,'Structure mapping'!A:E,5,0)","v":{"$error":"#N/A"}},{"$f":"LEFT(Template!D888,6)","v":""},{"$f":"VLOOKUP(G876,'Account mapping'!A:E,5,0)","v":{"$error":"#N/A"}},{"$f":"LEFT(Template!E888,2)","v":""},{"$f":"VLOOKUP(I876,'Structure mapping'!X:AB,5,0)","v":{"$error":"#N/A"}},{"$f":"LEFT(Template!F888,3)","v":""},{"$f":"VLOOKUP(K876,'Structure mapping'!AC:AG,5,0)","v":{"$error":"#N/A"}},{"$f":"LEFT(Template!G888,10)","v":""},{"$f":"VLOOKUP(M876,'Structure mapping'!AH:AL,5,0)","v":{"$error":"#N/A"}},{"$f":"LEFT(Template!H888,6)","v":""},{"$f":"VLOOKUP(O876,'Structure mapping'!AM:AQ,5,0)","v":{"$error":"#N/A"}},null,null,null,null,{"$f":"IF(Template!O888=\"\",\"\",Template!O888)","v":""},"Aug-24 pending entries",{"$f":"TEXT(Template!$B$9,\"mm/dd/yyy\")","v":"08/01/2024"},null,null,null,null,{"$f":"IF(Template!M888>0,Template!M888,-Template!N888)","v":0},null,null,null,{"$f":"VLOOKUP(G876,'Account mapping'!A:D,4,0)","v":{"$error":"#N/A"}}]
[{"$f":"LEFT(Template!A889,4)","v":""},{"$f":"VLOOKUP(A877,'Structure mapping'!K:V,7,0)","v":{"$error":"#N/A"}},{"$f":"LEFT(Template!B889,5)","v":""},{"$f":"VLOOKUP(C877,'Structure mapping'!F:J,5,0)","v":{"$error":"#N/A"}},{"$f":"LEFT(Template!C889,7)","v":""},{"$f":"VLOOKUP(E877,'Structure mapping'!A:E,5,0)","v":{"$error":"#N/A"}},{"$f":"LEFT(Template!D889,6)","v":""},{"$f":"VLOOKUP(G877,'Account mapping'!A:E,5,0)","v":{"$error":"#N/A"}},{"$f":"LEFT(Template!E889,2)","v":""},{"$f":"VLOOKUP(I877,'Structure mapping'!X:AB,5,0)","v":{"$error":"#N/A"}},{"$f":"LEFT(Template!F889,3)","v":""},{"$f":"VLOOKUP(K877,'Structure mapping'!AC:AG,5,0)","v":{"$error":"#N/A"}},{"$f":"LEFT(Template!G889,10)","v":""},{"$f":"VLOOKUP(M877,'Structure mapping'!AH:AL,5,0)","v":{"$error":"#N/A"}},{"$f":"LEFT(Template!H889,6)","v":""},{"$f":"VLOOKUP(O877,'Structure mapping'!AM:AQ,5,0)","v":{"$error":"#N/A"}},null,null,null,null,{"$f":"IF(Template!O889=\"\",\"\",Template!O889)","v":""},"Aug-24 pending entries",{"$f":"TEXT(Template!$B$9,\"mm/dd/yyy\")","v":"08/01/2024"},null,null,null,null,{"$f":"IF(Template!M889>0,Template!M889,-Template!N889)","v":0},null,null,null,{"$f":"VLOOKUP(G877,'Account mapping'!A:D,4,0)","v":{"$error":"#N/A"}}]
[{"$f":"LEFT(Template!A890,4)","v":""},{"$f":"VLOOKUP(A878,'Structure mapping'!K:V,7,0)","v":{"$error":"#N/A"}},{"$f":"LEFT(Template!B890,5)","v":""},{"$f":"VLOOKUP(C878,'Structure mapping'!F:J,5,0)","v":{"$error":"#N/A"}},{"$f":"LEFT(Template!C890,7)","v":""},{"$f":"VLOOKUP(E878,'Structure mapping'!A:E,5,0)","v":{"$error":"#N/A"}},{"$f":"LEFT(Template!D890,6)","v":""},{"$f":"VLOOKUP(G878,'Account mapping'!A:E,5,0)","v":{"$error":"#N/A"}},{"$f":"LEFT(Template!E890,2)","v":""},{"$f":"VLOOKUP(I878,'Structure mapping'!X:AB,5,0)","v":{"$error":"#N/A"}},{"$f":"LEFT(Template!F890,3)","v":""},{"$f":"VLOOKUP(K878,'Structure mapping'!AC:AG,5,0)","v":{"$error":"#N/A"}},{"$f":"LEFT(Template!G890,10)","v":""},{"$f":"VLOOKUP(M878,'Structure mapping'!AH:AL,5,0)","v":{"$error":"#N/A"}},{"$f":"LEFT(Template!H890,6)","v":""},{"$f":"VLOOKUP(O878,'Structure mapping'!AM:AQ,5,0)","v":{"$error":"#N/A"}},null,null,null,null,{"$f":"IF(Template!O890=\"\",\"\",Template!O890)","v":""},"Aug-24 pending entries",{"$f":"TEXT(Template!$B$9,\"mm/dd/yyy\")","v":"08/01/2024"},null,null,null,null,{"$f":"IF(Template!M890>0,Template!M890,-Template!N890)","v":0},null,null,null,{"$f":"VLOOKUP(G878,'Account mapping'!A:D,4,0)","v":{"$error":"#N/A"}}]
[{"$f":"LEFT(Template!A891,4)","v":""},{"$f":"VLOOKUP(A879,'Structure mapping'!K:V,7,0)","v":{"$error":"#N/A"}},{"$f":"LEFT(Template!B891,5)","v":""},{"$f":"VLOOKUP(C879,'Structure mapping'!F:J,5,0)","v":{"$error":"#N/A"}},{"$f":"LEFT(Template!C891,7)","v":""},{"$f":"VLOOKUP(E879,'Structure mapping'!A:E,5,0)","v":{"$error":"#N/A"}},{"$f":"LEFT(Template!D891,6)","v":""},{"$f":"VLOOKUP(G879,'Account mapping'!A:E,5,0)","v":{"$error":"#N/A"}},{"$f":"LEFT(Template!E891,2)","v":""},{"$f":"VLOOKUP(I879,'Structure mapping'!X:AB,5,0)","v":{"$error":"#N/A"}},{"$f":"LEFT(Template!F891,3)","v":""},{"$f":"VLOOKUP(K879,'Structure mapping'!AC:AG,5,0)","v":{"$error":"#N/A"}},{"$f":"LEFT(Template!G891,10)","v":""},{"$f":"VLOOKUP(M879,'Structure mapping'!AH:AL,5,0)","v":{"$error":"#N/A"}},{"$f":"LEFT(Template!H891,6)","v":""},{"$f":"VLOOKUP(O879,'Structure mapping'!AM:AQ,5,0)","v":{"$error":"#N/A"}},null,null,null,null,{"$f":"IF(Template!O891=\"\",\"\",Template!O891)","v":""},"Aug-24 pending entries",{"$f":"TEXT(Template!$B$9,\"mm/dd/yyy\")","v":"08/01/2024"},null,null,null,null,{"$f":"IF(Template!M891>0,Template!M891,-Template!N891)","v":0},null,null,null,{"$f":"VLOOKUP(G879,'Account mapping'!A:D,4,0)","v":{"$error":"#N/A"}}]
[{"$f":"LEFT(Template!A892,4)","v":""},{"$f":"VLOOKUP(A880,'Structure mapping'!K:V,7,0)","v":{"$error":"#N/A"}},{"$f":"LEFT(Template!B892,5)","v":""},{"$f":"VLOOKUP(C880,'Structure mapping'!F:J,5,0)","v":{"$error":"#N/A"}},{"$f":"LEFT(Template!C892,7)","v":""},{"$f":"VLOOKUP(E880,'Structure mapping'!A:E,5,0)","v":{"$error":"#N/A"}},{"$f":"LEFT(Template!D892,6)","v":""},{"$f":"VLOOKUP(G880,'Account mapping'!A:E,5,0)","v":{"$error":"#N/A"}},{"$f":"LEFT(Template!E892,2)","v":""},{"$f":"VLOOKUP(I880,'Structure mapping'!X:AB,5,0)","v":{"$error":"#N/A"}},{"$f":"LEFT(Template!F892,3)","v":""},{"$f":"VLOOKUP(K880,'Structure mapping'!AC:AG,5,0)","v":{"$error":"#N/A"}},{"$f":"LEFT(Template!G892,10)","v":""},{"$f":"VLOOKUP(M880,'Structure mapping'!AH:AL,5,0)","v":{"$error":"#N/A"}},{"$f":"LEFT(Template!H892,6)","v":""},{"$f":"VLOOKUP(O880,'Structure mapping'!AM:AQ,5,0)","v":{"$error":"#N/A"}},null,null,null,null,{"$f":"IF(Template!O892=\"\",\"\",Template!O892)","v":""},"Aug-24 pending entries",{"$f":"TEXT(Template!$B$9,\"mm/dd/yyy\")","v":"08/01/2024"},null,null,null,null,{"$f":"IF(Template!M892>0,Template!M892,-Template!N892)","v":0},null,null,null,{"$f":"VLOOKUP(G880,'Account mapping'!A:D,4,0)","v":{"$error":"#N/A"}}]
[{"$f":"LEFT(Template!A893,4)","v":""},{"$f":"VLOOKUP(A881,'Structure mapping'!K:V,7,0)","v":{"$error":"#N/A"}},{"$f":"LEFT(Template!B893,5)","v":""},{"$f":"VLOOKUP(C881,'Structure mapping'!F:J,5,0)","v":{"$error":"#N/A"}},{"$f":"LEFT(Template!C893,7)","v":""},{"$f":"VLOOKUP(E881,'Structure mapping'!A:E,5,0)","v":{"$error":"#N/A"}},{"$f":"LEFT(Template!D893,6)","v":""},{"$f":"VLOOKUP(G881,'Account mapping'!A:E,5,0)","v":{"$error":"#N/A"}},{"$f":"LEFT(Template!E893,2)","v":""},{"$f":"VLOOKUP(I881,'Structure mapping'!X:AB,5,0)","v":{"$error":"#N/A"}},{"$f":"LEFT(Template!F893,3)","v":""},{"$f":"VLOOKUP(K881,'Structure mapping'!AC:AG,5,0)","v":{"$error":"#N/A"}},{"$f":"LEFT(Template!G893,10)","v":""},{"$f":"VLOOKUP(M881,'Structure mapping'!AH:AL,5,0)","v":{"$error":"#N/A"}},{"$f":"LEFT(Template!H893,6)","v":""},{"$f":"VLOOKUP(O881,'Structure mapping'!AM:AQ,5,0)","v":{"$error":"#N/A"}},null,null,null,null,{"$f":"IF(Template!O893=\"\",\"\",Template!O893)","v":""},"Aug-24 pending entries",{"$f":"TEXT(Template!$B$9,\"mm/dd/yyy\")","v":"08/01/2024"},null,null,null,null,{"$f":"IF(Template!M893>0,Template!M893,-Template!N893)","v":0},null,null,null,{"$f":"VLOOKUP(G881,'Account mapping'!A:D,4,0)","v":{"$error":"#N/A"}}]
[{"$f":"LEFT(Template!A894,4)","v":""},{"$f":"VLOOKUP(A882,'Structure mapping'!K:V,7,0)","v":{"$error":"#N/A"}},{"$f":"LEFT(Template!B894,5)","v":""},{"$f":"VLOOKUP(C882,'Structure mapping'!F:J,5,0)","v":{"$error":"#N/A"}},{"$f":"LEFT(Template!C894,7)","v":""},{"$f":"VLOOKUP(E882,'Structure mapping'!A:E,5,0)","v":{"$error":"#N/A"}},{"$f":"LEFT(Template!D894,6)","v":""},{"$f":"VLOOKUP(G882,'Account mapping'!A:E,5,0)","v":{"$error":"#N/A"}},{"$f":"LEFT(Template!E894,2)","v":""},{"$f":"VLOOKUP(I882,'Structure mapping'!X:AB,5,0)","v":{"$error":"#N/A"}},{"$f":"LEFT(Template!F894,3)","v":""},{"$f":"VLOOKUP(K882,'Structure mapping'!AC:AG,5,0)","v":{"$error":"#N/A"}},{"$f":"LEFT(Template!G894,10)","v":""},{"$f":"VLOOKUP(M882,'Structure mapping'!AH:AL,5,0)","v":{"$error":"#N/A"}},{"$f":"LEFT(Template!H894,6)","v":""},{"$f":"VLOOKUP(O882,'Structure mapping'!AM:AQ,5,0)","v":{"$error":"#N/A"}},null,null,null,null,{"$f":"IF(Template!O894=\"\",\"\",Template!O894)","v":""},"Aug-24 pending entries",{"$f":"TEXT(Template!$B$9,\"mm/dd/yyy\")","v":"08/01/2024"},null,null,null,null,{"$f":"IF(Template!M894>0,Template!M894,-Template!N894)","v":0},null,null,null,{"$f":"VLOOKUP(G882,'Account mapping'!A:D,4,0)","v":{"$error":"#N/A"}}]
[{"$f":"LEFT(Template!A895,4)","v":""},{"$f":"VLOOKUP(A883,'Structure mapping'!K:V,7,0)","v":{"$error":"#N/A"}},{"$f":"LEFT(Template!B895,5)","v":""},{"$f":"VLOOKUP(C883,'Structure mapping'!F:J,5,0)","v":{"$error":"#N/A"}},{"$f":"LEFT(Template!C895,7)","v":""},{"$f":"VLOOKUP(E883,'Structure mapping'!A:E,5,0)","v":{"$error":"#N/A"}},{"$f":"LEFT(Template!D895,6)","v":""},{"$f":"VLOOKUP(G883,'Account mapping'!A:E,5,0)","v":{"$error":"#N/A"}},{"$f":"LEFT(Template!E895,2)","v":""},{"$f":"VLOOKUP(I883,'Structure mapping'!X:AB,5,0)","v":{"$error":"#N/A"}},{"$f":"LEFT(Template!F895,3)","v":""},{"$f":"VLOOKUP(K883,'Structure mapping'!AC:AG,5,0)","v":{"$error":"#N/A"}},{"$f":"LEFT(Template!G895,10)","v":""},{"$f":"VLOOKUP(M883,'Structure mapping'!AH:AL,5,0)","v":{"$error":"#N/A"}},{"$f":"LEFT(Template!H895,6)","v":""},{"$f":"VLOOKUP(O883,'Structure mapping'!AM:AQ,5,0)","v":{"$error":"#N/A"}},null,null,null,null,{"$f":"IF(Template!O895=\"\",\"\",Template!O895)","v":""},"Aug-24 pending entries",{"$f":"TEXT(Template!$B$9,\"mm/dd/yyy\")","v":"08/01/2024"},null,null,null,null,{"$f":"IF(Template!M895>0,Template!M895,-Template!N895)","v":0},null,null,null,{"$f":"VLOOKUP(G883,'Account mapping'!A:D,4,0)","v":{"$error":"#N/A"}}]
[{"$f":"LEFT(Template!A896,4)","v":""},{"$f":"VLOOKUP(A884,'Structure mapping'!K:V,7,0)","v":{"$error":"#N/A"}},{"$f":"LEFT(Template!B896,5)","v":""},{"$f":"VLOOKUP(C884,'Structure mapping'!F:J,5,0)","v":{"$error":"#N/A"}},{"$f":"LEFT(Template!C896,7)","v":""},{"$f":"VLOOKUP(E884,'Structure mapping'!A:E,5,0)","v":{"$error":"#N/A"}},{"$f":"LEFT(Template!D896,6)","v":""},{"$f":"VLOOKUP(G884,'Account mapping'!A:E,5,0)","v":{"$error":"#N/A"}},{"$f":"LEFT(Template!E896,2)","v":""},{"$f":"VLOOKUP(I884,'Structure mapping'!X:AB,5,0)","v":{"$error":"#N/A"}},{"$f":"LEFT(Template!F896,3)","v":""},{"$f":"VLOOKUP(K884,'Structure mapping'!AC:AG,5,0)","v":{"$error":"#N/A"}},{"$f":"LEFT(Template!G896,10)","v":""},{"$f":"VLOOKUP(M884,'Structure mapping'!AH:AL,5,0)","v":{"$error":"#N/A"}},{"$f":"LEFT(Template!H896,6)","v":""},{"$f":"VLOOKUP(O884,'Structure mapping'!AM:AQ,5,0)","v":{"$error":"#N/A"}},null,null,null,null,{"$f":"IF(Template!O896=\"\",\"\",Template!O896)","v":""},"Aug-24 pending entries",{"$f":"TEXT(Template!$B$9,\"mm/dd/yyy\")","v":"08/01/2024"},null,null,null,null,{"$f":"IF(Template!M896>0,Template!M896,-Template!N896)","v":0},null,null,null,{"$f":"VLOOKUP(G884,'Account mapping'!A:D,4,0)","v":{"$error":"#N/A"}}]
[{"$f":"LEFT(Template!A897,4)","v":""},{"$f":"VLOOKUP(A885,'Structure mapping'!K:V,7,0)","v":{"$error":"#N/A"}},{"$f":"LEFT(Template!B897,5)","v":""},{"$f":"VLOOKUP(C885,'Structure mapping'!F:J,5,0)","v":{"$error":"#N/A"}},{"$f":"LEFT(Template!C897,7)","v":""},{"$f":"VLOOKUP(E885,'Structure mapping'!A:E,5,0)","v":{"$error":"#N/A"}},{"$f":"LEFT(Template!D897,6)","v":""},{"$f":"VLOOKUP(G885,'Account mapping'!A:E,5,0)","v":{"$error":"#N/A"}},{"$f":"LEFT(Template!E897,2)","v":""},{"$f":"VLOOKUP(I885,'Structure mapping'!X:AB,5,0)","v":{"$error":"#N/A"}},{"$f":"LEFT(Template!F897,3)","v":""},{"$f":"VLOOKUP(K885,'Structure mapping'!AC:AG,5,0)","v":{"$error":"#N/A"}},{"$f":"LEFT(Template!G897,10)","v":""},{"$f":"VLOOKUP(M885,'Structure mapping'!AH:AL,5,0)","v":{"$error":"#N/A"}},{"$f":"LEFT(Template!H897,6)","v":""},{"$f":"VLOOKUP(O885,'Structure mapping'!AM:AQ,5,0)","v":{"$error":"#N/A"}},null,null,null,null,{"$f":"IF(Template!O897=\"\",\"\",Template!O897)","v":""},"Aug-24 pending entries",{"$f":"TEXT(Template!$B$9,\"mm/dd/yyy\")","v":"08/01/2024"},null,null,null,null,{"$f":"IF(Template!M897>0,Template!M897,-Template!N897)","v":0},null,null,null,{"$f":"VLOOKUP(G885,'Account mapping'!A:D,4,0)","v":{"$error":"#N/A"}}]
[{"$f":"LEFT(Template!A898,4)","v":""},{"$f":"VLOOKUP(A886,'Structure mapping'!K:V,7,0)","v":{"$error":"#N/A"}},{"$f":"LEFT(Template!B898,5)","v":""},{"$f":"VLOOKUP(C886,'Structure mapping'!F:J,5,0)","v":{"$error":"#N/A"}},{"$f":"LEFT(Template!C898,7)","v":""},{"$f":"VLOOKUP(E886,'Structure mapping'!A:E,5,0)","v":{"$error":"#N/A"}},{"$f":"LEFT(Template!D898,6)","v":""},{"$f":"VLOOKUP(G886,'Account mapping'!A:E,5,0)","v":{"$error":"#N/A"}},{"$f":"LEFT(Template!E898,2)","v":""},{"$f":"VLOOKUP(I886,'Structure mapping'!X:AB,5,0)","v":{"$error":"#N/A"}},{"$f":"LEFT(Template!F898,3)","v":""},{"$f":"VLOOKUP(K886,'Structure mapping'!AC:AG,5,0)","v":{"$error":"#N/A"}},{"$f":"LEFT(Template!G898,10)","v":""},{"$f":"VLOOKUP(M886,'Structure mapping'!AH:AL,5,0)","v":{"$error":"#N/A"}},{"$f":"LEFT(Template!H898,6)","v":""},{"$f":"VLOOKUP(O886,'Structure mapping'!AM:AQ,5,0)","v":{"$error":"#N/A"}},null,null,null,null,{"$f":"IF(Template!O898=\"\",\"\",Template!O898)","v":""},"Aug-24 pending entries",{"$f":"TEXT(Template!$B$9,\"mm/dd/yyy\")","v":"08/01/2024"},null,null,null,null,{"$f":"IF(Template!M898>0,Template!M898,-Template!N898)","v":0},null,null,null,{"$f":"VLOOKUP(G886,'Account mapping'!A:D,4,0)","v":{"$error":"#N/A"}}]
[{"$f":"LEFT(Template!A899,4)","v":""},{"$f":"VLOOKUP(A887,'Structure mapping'!K:V,7,0)","v":{"$error":"#N/A"}},{"$f":"LEFT(Template!B899,5)","v":""},{"$f":"VLOOKUP(C887,'Structure mapping'!F:J,5,0)","v":{"$error":"#N/A"}},{"$f":"LEFT(Template!C899,7)","v":""},{"$f":"VLOOKUP(E887,'Structure mapping'!A:E,5,0)","v":{"$error":"#N/A"}},{"$f":"LEFT(Template!D899,6)","v":""},{"$f":"VLOOKUP(G887,'Account mapping'!A:E,5,0)","v":{"$error":"#N/A"}},{"$f":"LEFT(Template!E899,2)","v":""},{"$f":"VLOOKUP(I887,'Structure mapping'!X:AB,5,0)","v":{"$error":"#N/A"}},{"$f":"LEFT(Template!F899,3)","v":""},{"$f":"VLOOKUP(K887,'Structure mapping'!AC:AG,5,0)","v":{"$error":"#N/A"}},{"$f":"LEFT(Template!G899,10)","v":""},{"$f":"VLOOKUP(M887,'Structure mapping'!AH:AL,5,0)","v":{"$error":"#N/A"}},{"$f":"LEFT(Template!H899,6)","v":""},{"$f":"VLOOKUP(O887,'Structure mapping'!AM:AQ,5,0)","v":{"$error":"#N/A"}},null,null,null,null,{"$f":"IF(Template!O899=\"\",\"\",Template!O899)","v":""},"Aug-24 pending entries",{"$f":"TEXT(Template!$B$9,\"mm/dd/yyy\")","v":"08/01/2024"},null,null,null,null,{"$f":"IF(Template!M899>0,Template!M899,-Template!N899)","v":0},null,null,null,{"$f":"VLOOKUP(G887,'Account mapping'!A:D,4,0)","v":{"$error":"#N/A"}}]
[{"$f":"LEFT(Template!A900,4)","v":""},{"$f":"VLOOKUP(A888,'Structure mapping'!K:V,7,0)","v":{"$error":"#N/A"}},{"$f":"LEFT(Template!B900,5)","v":""},{"$f":"VLOOKUP(C888,'Structure mapping'!F:J,5,0)","v":{"$error":"#N/A"}},{"$f":"LEFT(Template!C900,7)","v":""},{"$f":"VLOOKUP(E888,'Structure mapping'!A:E,5,0)","v":{"$error":"#N/A"}},{"$f":"LEFT(Template!D900,6)","v":""},{"$f":"VLOOKUP(G888,'Account mapping'!A:E,5,0)","v":{"$error":"#N/A"}},{"$f":"LEFT(Template!E900,2)","v":""},{"$f":"VLOOKUP(I888,'Structure mapping'!X:AB,5,0)","v":{"$error":"#N/A"}},{"$f":"LEFT(Template!F900,3)","v":""},{"$f":"VLOOKUP(K888,'Structure mapping'!AC:AG,5,0)","v":{"$error":"#N/A"}},{"$f":"LEFT(Template!G900,10)","v":""},{"$f":"VLOOKUP(M888,'Structure mapping'!AH:AL,5,0)","v":{"$error":"#N/A"}},{"$f":"LEFT(Template!H900,6)","v":""},{"$f":"VLOOKUP(O888,'Structure mapping'!AM:AQ,5,0)","v":{"$error":"#N/A"}},null,null,null,null,{"$f":"IF(Template!O900=\"\",\"\",Template!O900)","v":""},"Aug-24 pending entries",{"$f":"TEXT(Template!$B$9,\"mm/dd/yyy\")","v":"08/01/2024"},null,null,null,null,{"$f":"IF(Template!M900>0,Template!M900,-Template!N900)","v":0},null,null,null,{"$f":"VLOOKUP(G888,'Account mapping'!A:D,4,0)","v":{"$error":"#N/A"}}]
[{"$f":"LEFT(Template!A901,4)","v":""},{"$f":"VLOOKUP(A889,'Structure mapping'!K:V,7,0)","v":{"$error":"#N/A"}},{"$f":"LEFT(Template!B901,5)","v":""},{"$f":"VLOOKUP(C889,'Structure mapping'!F:J,5,0)","v":{"$error":"#N/A"}},{"$f":"LEFT(Template!C901,7)","v":""},{"$f":"VLOOKUP(E889,'Structure mapping'!A:E,5,0)","v":{"$error":"#N/A"}},{"$f":"LEFT(Template!D901,6)","v":""},{"$f":"VLOOKUP(G889,'Account mapping'!A:E,5,0)","v":{"$error":"#N/A"}},{"$f":"LEFT(Template!E901,2)","v":""},{"$f":"VLOOKUP(I889,'Structure mapping'!X:AB,5,0)","v":{"$error":"#N/A"}},{"$f":"LEFT(Template!F901,3)","v":""},{"$f":"VLOOKUP(K889,'Structure mapping'!AC:AG,5,0)","v":{"$error":"#N/A"}},{"$f":"LEFT(Template!G901,10)","v":""},{"$f":"VLOOKUP(M889,'Structure mapping'!AH:AL,5,0)","v":{"$error":"#N/A"}},{"$f":"LEFT(Template!H901,6)","v":""},{"$f":"VLOOKUP(O889,'Structure mapping'!AM:AQ,5,0)","v":{"$error":"#N/A"}},null,null,null,null,{"$f":"IF(Template!O901=\"\",\"\",Template!O901)","v":""},"Aug-24 pending entries",{"$f":"TEXT(Template!$B$9,\"mm/dd/yyy\")","v":"08/01/2024"},null,null,null,null,{"$f":"IF(Template!M901>0,Template!M901,-Template!N901)","v":0},null,null,null,{"$f":"VLOOKUP(G889,'Account mapping'!A:D,4,0)","v":{"$error":"#N/A"}}]
[{"$f":"LEFT(Template!A902,4)","v":""},{"$f":"VLOOKUP(A890,'Structure mapping'!K:V,7,0)","v":{"$error":"#N/A"}},{"$f":"LEFT(Template!B902,5)","v":""},{"$f":"VLOOKUP(C890,'Structure mapping'!F:J,5,0)","v":{"$error":"#N/A"}},{"$f":"LEFT(Template!C902,7)","v":""},{"$f":"VLOOKUP(E890,'Structure mapping'!A:E,5,0)","v":{"$error":"#N/A"}},{"$f":"LEFT(Template!D902,6)","v":""},{"$f":"VLOOKUP(G890,'Account mapping'!A:E,5,0)","v":{"$error":"#N/A"}},{"$f":"LEFT(Template!E902,2)","v":""},{"$f":"VLOOKUP(I890,'Structure mapping'!X:AB,5,0)","v":{"$error":"#N/A"}},{"$f":"LEFT(Template!F902,3)","v":""},{"$f":"VLOOKUP(K890,'Structure mapping'!AC:AG,5,0)","v":{"$error":"#N/A"}},{"$f":"LEFT(Template!G902,10)","v":""},{"$f":"VLOOKUP(M890,'Structure mapping'!AH:AL,5,0)","v":{"$error":"#N/A"}},{"$f":"LEFT(Template!H902,6)","v":""},{"$f":"VLOOKUP(O890,'Structure mapping'!AM:AQ,5,0)","v":{"$error":"#N/A"}},null,null,null,null,{"$f":"IF(Template!O902=\"\",\"\",Template!O902)","v":""},"Aug-24 pending entries",{"$f":"TEXT(Template!$B$9,\"mm/dd/yyy\")","v":"08/01/2024"},null,null,null,null,{"$f":"IF(Template!M902>0,Template!M902,-Template!N902)","v":0},null,null,null,{"$f":"VLOOKUP(G890,'Account mapping'!A:D,4,0)","v":{"$error":"#N/A"}}]
[{"$f":"LEFT(Template!A903,4)","v":""},{"$f":"VLOOKUP(A891,'Structure mapping'!K:V,7,0)","v":{"$error":"#N/A"}},{"$f":"LEFT(Template!B903,5)","v":""},{"$f":"VLOOKUP(C891,'Structure mapping'!F:J,5,0)","v":{"$error":"#N/A"}},{"$f":"LEFT(Template!C903,7)","v":""},{"$f":"VLOOKUP(E891,'Structure mapping'!A:E,5,0)","v":{"$error":"#N/A"}},{"$f":"LEFT(Template!D903,6)","v":""},{"$f":"VLOOKUP(G891,'Account mapping'!A:E,5,0)","v":{"$error":"#N/A"}},{"$f":"LEFT(Template!E903,2)","v":""},{"$f":"VLOOKUP(I891,'Structure mapping'!X:AB,5,0)","v":{"$error":"#N/A"}},{"$f":"LEFT(Template!F903,3)","v":""},{"$f":"VLOOKUP(K891,'Structure mapping'!AC:AG,5,0)","v":{"$error":"#N/A"}},{"$f":"LEFT(Template!G903,10)","v":""},{"$f":"VLOOKUP(M891,'Structure mapping'!AH:AL,5,0)","v":{"$error":"#N/A"}},{"$f":"LEFT(Template!H903,6)","v":""},{"$f":"VLOOKUP(O891,'Structure mapping'!AM:AQ,5,0)","v":{"$error":"#N/A"}},null,null,null,null,{"$f":"IF(Template!O903=\"\",\"\",Template!O903)","v":""},"Aug-24 pending entries",{"$f":"TEXT(Template!$B$9,\"mm/dd/yyy\")","v":"08/01/2024"},null,null,null,null,{"$f":"IF(Template!M903>0,Template!M903,-Template!N903)","v":0},null,null,null,{"$f":"VLOOKUP(G891,'Account mapping'!A:D,4,0)","v":{"$error":"#N/A"}}]
[{"$f":"LEFT(Template!A904,4)","v":""},{"$f":"VLOOKUP(A892,'Structure mapping'!K:V,7,0)","v":{"$error":"#N/A"}},{"$f":"LEFT(Template!B904,5)","v":""},{"$f":"VLOOKUP(C892,'Structure mapping'!F:J,5,0)","v":{"$error":"#N/A"}},{"$f":"LEFT(Template!C904,7)","v":""},{"$f":"VLOOKUP(E892,'Structure mapping'!A:E,5,0)","v":{"$error":"#N/A"}},{"$f":"LEFT(Template!D904,6)","v":""},{"$f":"VLOOKUP(G892,'Account mapping'!A:E,5,0)","v":{"$error":"#N/A"}},{"$f":"LEFT(Template!E904,2)","v":""},{"$f":"VLOOKUP(I892,'Structure mapping'!X:AB,5,0)","v":{"$error":"#N/A"}},{"$f":"LEFT(Template!F904,3)","v":""},{"$f":"VLOOKUP(K892,'Structure mapping'!AC:AG,5,0)","v":{"$error":"#N/A"}},{"$f":"LEFT(Template!G904,10)","v":""},{"$f":"VLOOKUP(M892,'Structure mapping'!AH:AL,5,0)","v":{"$error":"#N/A"}},{"$f":"LEFT(Template!H904,6)","v":""},{"$f":"VLOOKUP(O892,'Structure mapping'!AM:AQ,5,0)","v":{"$error":"#N/A"}},null,null,null,null,{"$f":"IF(Template!O904=\"\",\"\",Template!O904)","v":""},"Aug-24 pending entries",{"$f":"TEXT(Template!$B$9,\"mm/dd/yyy\")","v":"08/01/2024"},null,null,null,null,{"$f":"IF(Template!M904>0,Template!M904,-Template!N904)","v":0},null,null,null,{"$f":"VLOOKUP(G892,'Account mapping'!A:D,4,0)","v":{"$error":"#N/A"}}]
[{"$f":"LEFT(Template!A905,4)","v":""},{"$f":"VLOOKUP(A893,'Structure mapping'!K:V,7,0)","v":{"$error":"#N/A"}},{"$f":"LEFT(Template!B905,5)","v":""},{"$f":"VLOOKUP(C893,'Structure mapping'!F:J,5,0)","v":{"$error":"#N/A"}},{"$f":"LEFT(Template!C905,7)","v":""},{"$f":"VLOOKUP(E893,'Structure mapping'!A:E,5,0)","v":{"$error":"#N/A"}},{"$f":"LEFT(Template!D905,6)","v":""},{"$f":"VLOOKUP(G893,'Account mapping'!A:E,5,0)","v":{"$error":"#N/A"}},{"$f":"LEFT(Template!E905,2)","v":""},{"$f":"VLOOKUP(I893,'Structure mapping'!X:AB,5,0)","v":{"$error":"#N/A"}},{"$f":"LEFT(Template!F905,3)","v":""},{"$f":"VLOOKUP(K893,'Structure mapping'!AC:AG,5,0)","v":{"$error":"#N/A"}},{"$f":"LEFT(Template!G905,10)","v":""},{"$f":"VLOOKUP(M893,'Structure mapping'!AH:AL,5,0)","v":{"$error":"#N/A"}},{"$f":"LEFT(Template!H905,6)","v":""},{"$f":"VLOOKUP(O893,'Structure mapping'!AM:AQ,5,0)","v":{"$error":"#N/A"}},null,null,null,null,{"$f":"IF(Template!O905=\"\",\"\",Template!O905)","v":""},"Aug-24 pending entries",{"$f":"TEXT(Template!$B$9,\"mm/dd/yyy\")","v":"08/01/2024"},null,null,null,null,{"$f":"IF(Template!M905>0,Template!M905,-Template!N905)","v":0},null,null,null,{"$f":"VLOOKUP(G893,'Account mapping'!A:D,4,0)","v":{"$error":"#N/A"}}]
[{"$f":"LEFT(Template!A906,4)","v":""},{"$f":"VLOOKUP(A894,'Structure mapping'!K:V,7,0)","v":{"$error":"#N/A"}},{"$f":"LEFT(Template!B906,5)","v":""},{"$f":"VLOOKUP(C894,'Structure mapping'!F:J,5,0)","v":{"$error":"#N/A"}},{"$f":"LEFT(Template!C906,7)","v":""},{"$f":"VLOOKUP(E894,'Structure mapping'!A:E,5,0)","v":{"$error":"#N/A"}},{"$f":"LEFT(Template!D906,6)","v":""},{"$f":"VLOOKUP(G894,'Account mapping'!A:E,5,0)","v":{"$error":"#N/A"}},{"$f":"LEFT(Template!E906,2)","v":""},{"$f":"VLOOKUP(I894,'Structure mapping'!X:AB,5,0)","v":{"$error":"#N/A"}},{"$f":"LEFT(Template!F906,3)","v":""},{"$f":"VLOOKUP(K894,'Structure mapping'!AC:AG,5,0)","v":{"$error":"#N/A"}},{"$f":"LEFT(Template!G906,10)","v":""},{"$f":"VLOOKUP(M894,'Structure mapping'!AH:AL,5,0)","v":{"$error":"#N/A"}},{"$f":"LEFT(Template!H906,6)","v":""},{"$f":"VLOOKUP(O894,'Structure mapping'!AM:AQ,5,0)","v":{"$error":"#N/A"}},null,null,null,null,{"$f":"IF(Template!O906=\"\",\"\",Template!O906)","v":""},"Aug-24 pending entries",{"$f":"TEXT(Template!$B$9,\"mm/dd/yyy\")","v":"08/01/2024"},null,null,null,null,{"$f":"IF(Template!M906>0,Template!M906,-Template!N906)","v":0},null,null,null,{"$f":"VLOOKUP(G894,'Account mapping'!A:D,4,0)","v":{"$error":"#N/A"}}]
[{"$f":"LEFT(Template!A907,4)","v":""},{"$f":"VLOOKUP(A895,'Structure mapping'!K:V,7,0)","v":{"$error":"#N/A"}},{"$f":"LEFT(Template!B907,5)","v":""},{"$f":"VLOOKUP(C895,'Structure mapping'!F:J,5,0)","v":{"$error":"#N/A"}},{"$f":"LEFT(Template!C907,7)","v":""},{"$f":"VLOOKUP(E895,'Structure mapping'!A:E,5,0)","v":{"$error":"#N/A"}},{"$f":"LEFT(Template!D907,6)","v":""},{"$f":"VLOOKUP(G895,'Account mapping'!A:E,5,0)","v":{"$error":"#N/A"}},{"$f":"LEFT(Template!E907,2)","v":""},{"$f":"VLOOKUP(I895,'Structure mapping'!X:AB,5,0)","v":{"$error":"#N/A"}},{"$f":"LEFT(Template!F907,3)","v":""},{"$f":"VLOOKUP(K895,'Structure mapping'!AC:AG,5,0)","v":{"$error":"#N/A"}},{"$f":"LEFT(Template!G907,10)","v":""},{"$f":"VLOOKUP(M895,'Structure mapping'!AH:AL,5,0)","v":{"$error":"#N/A"}},{"$f":"LEFT(Template!H907,6)","v":""},{"$f":"VLOOKUP(O895,'Structure mapping'!AM:AQ,5,0)","v":{"$error":"#N/A"}},null,null,null,null,{"$f":"IF(Template!O907=\"\",\"\",Template!O907)","v":""},"Aug-24 pending entries",{"$f":"TEXT(Template!$B$9,\"mm/dd/yyy\")","v":"08/01/2024"},null,null,null,null,{"$f":"IF(Template!M907>0,Template!M907,-Template!N907)","v":0},null,null,null,{"$f":"VLOOKUP(G895,'Account mapping'!A:D,4,0)","v":{"$error":"#N/A"}}]
[{"$f":"LEFT(Template!A908,4)","v":""},{"$f":"VLOOKUP(A896,'Structure mapping'!K:V,7,0)","v":{"$error":"#N/A"}},{"$f":"LEFT(Template!B908,5)","v":""},{"$f":"VLOOKUP(C896,'Structure mapping'!F:J,5,0)","v":{"$error":"#N/A"}},{"$f":"LEFT(Template!C908,7)","v":""},{"$f":"VLOOKUP(E896,'Structure mapping'!A:E,5,0)","v":{"$error":"#N/A"}},{"$f":"LEFT(Template!D908,6)","v":""},{"$f":"VLOOKUP(G896,'Account mapping'!A:E,5,0)","v":{"$error":"#N/A"}},{"$f":"LEFT(Template!E908,2)","v":""},{"$f":"VLOOKUP(I896,'Structure mapping'!X:AB,5,0)","v":{"$error":"#N/A"}},{"$f":"LEFT(Template!F908,3)","v":""},{"$f":"VLOOKUP(K896,'Structure mapping'!AC:AG,5,0)","v":{"$error":"#N/A"}},{"$f":"LEFT(Template!G908,10)","v":""},{"$f":"VLOOKUP(M896,'Structure mapping'!AH:AL,5,0)","v":{"$error":"#N/A"}},{"$f":"LEFT(Template!H908,6)","v":""},{"$f":"VLOOKUP(O896,'Structure mapping'!AM:AQ,5,0)","v":{"$error":"#N/A"}},null,null,null,null,{"$f":"IF(Template!O908=\"\",\"\",Template!O908)","v":""},"Aug-24 pending entries",{"$f":"TEXT(Template!$B$9,\"mm/dd/yyy\")","v":"08/01/2024"},null,null,null,null,{"$f":"IF(Template!M908>0,Template!M908,-Template!N908)","v":0},null,null,null,{"$f":"VLOOKUP(G896,'Account mapping'!A:D,4,0)","v":{"$error":"#N/A"}}]
[{"$f":"LEFT(Template!A909,4)","v":""},{"$f":"VLOOKUP(A897,'Structure mapping'!K:V,7,0)","v":{"$error":"#N/A"}},{"$f":"LEFT(Template!B909,5)","v":""},{"$f":"VLOOKUP(C897,'Structure mapping'!F:J,5,0)","v":{"$error":"#N/A"}},{"$f":"LEFT(Template!C909,7)","v":""},{"$f":"VLOOKUP(E897,'Structure mapping'!A:E,5,0)","v":{"$error":"#N/A"}},{"$f":"LEFT(Template!D909,6)","v":""},{"$f":"VLOOKUP(G897,'Account mapping'!A:E,5,0)","v":{"$error":"#N/A"}},{"$f":"LEFT(Template!E909,2)","v":""},{"$f":"VLOOKUP(I897,'Structure mapping'!X:AB,5,0)","v":{"$error":"#N/A"}},{"$f":"LEFT(Template!F909,3)","v":""},{"$f":"VLOOKUP(K897,'Structure mapping'!AC:AG,5,0)","v":{"$error":"#N/A"}},{"$f":"LEFT(Template!G909,10)","v":""},{"$f":"VLOOKUP(M897,'Structure mapping'!AH:AL,5,0)","v":{"$error":"#N/A"}},{"$f":"LEFT(Template!H909,6)","v":""},{"$f":"VLOOKUP(O897,'Structure mapping'!AM:AQ,5,0)","v":{"$error":"#N/A"}},null,null,null,null,{"$f":"IF(Template!O909=\"\",\"\",Template!O909)","v":""},"Aug-24 pending entries",{"$f":"TEXT(Template!$B$9,\"mm/dd/yyy\")","v":"08/01/2024"},null,null,null,null,{"$f":"IF(Template!M909>0,Template!M909,-Template!N909)","v":0},null,null,null,{"$f":"VLOOKUP(G897,'Account mapping'!A:D,4,0)","v":{"$error":"#N/A"}}]
[{"$f":"LEFT(Template!A910,4)","v":""},{"$f":"VLOOKUP(A898,'Structure mapping'!K:V,7,0)","v":{"$error":"#N/A"}},{"$f":"LEFT(Template!B910,5)","v":""},{"$f":"VLOOKUP(C898,'Structure mapping'!F:J,5,0)","v":{"$error":"#N/A"}},{"$f":"LEFT(Template!C910,7)","v":""},{"$f":"VLOOKUP(E898,'Structure mapping'!A:E,5,0)","v":{"$error":"#N/A"}},{"$f":"LEFT(Template!D910,6)","v":""},{"$f":"VLOOKUP(G898,'Account mapping'!A:E,5,0)","v":{"$error":"#N/A"}},{"$f":"LEFT(Template!E910,2)","v":""},{"$f":"VLOOKUP(I898,'Structure mapping'!X:AB,5,0)","v":{"$error":"#N/A"}},{"$f":"LEFT(Template!F910,3)","v":""},{"$f":"VLOOKUP(K898,'Structure mapping'!AC:AG,5,0)","v":{"$error":"#N/A"}},{"$f":"LEFT(Template!G910,10)","v":""},{"$f":"VLOOKUP(M898,'Structure mapping'!AH:AL,5,0)","v":{"$error":"#N/A"}},{"$f":"LEFT(Template!H910,6)","v":""},{"$f":"VLOOKUP(O898,'Structure mapping'!AM:AQ,5,0)","v":{"$error":"#N/A"}},null,null,null,null,{"$f":"IF(Template!O910=\"\",\"\",Template!O910)","v":""},"Aug-24 pending entries",{"$f":"TEXT(Template!$B$9,\"mm/dd/yyy\")","v":"08/01/2024"},null,null,null,null,{"$f":"IF(Template!M910>0,Template!M910,-Template!N910)","v":0},null,null,null,{"$f":"VLOOKUP(G898,'Account mapping'!A:D,4,0)","v":{"$error":"#N/A"}}]
[{"$f":"LEFT(Template!A911,4)","v":""},{"$f":"VLOOKUP(A899,'Structure mapping'!K:V,7,0)","v":{"$error":"#N/A"}},{"$f":"LEFT(Template!B911,5)","v":""},{"$f":"VLOOKUP(C899,'Structure mapping'!F:J,5,0)","v":{"$error":"#N/A"}},{"$f":"LEFT(Template!C911,7)","v":""},{"$f":"VLOOKUP(E899,'Structure mapping'!A:E,5,0)","v":{"$error":"#N/A"}},{"$f":"LEFT(Template!D911,6)","v":""},{"$f":"VLOOKUP(G899,'Account mapping'!A:E,5,0)","v":{"$error":"#N/A"}},{"$f":"LEFT(Template!E911,2)","v":""},{"$f":"VLOOKUP(I899,'Structure mapping'!X:AB,5,0)","v":{"$error":"#N/A"}},{"$f":"LEFT(Template!F911,3)","v":""},{"$f":"VLOOKUP(K899,'Structure mapping'!AC:AG,5,0)","v":{"$error":"#N/A"}},{"$f":"LEFT(Template!G911,10)","v":""},{"$f":"VLOOKUP(M899,'Structure mapping'!AH:AL,5,0)","v":{"$error":"#N/A"}},{"$f":"LEFT(Template!H911,6)","v":""},{"$f":"VLOOKUP(O899,'Structure mapping'!AM:AQ,5,0)","v":{"$error":"#N/A"}},null,null,null,null,{"$f":"IF(Template!O911=\"\",\"\",Template!O911)","v":""},{"$f":"TEXT(W899,\"mmm-yy\")&\" pending entries\"","v":"Aug-24 pending entries"},{"$f":"TEXT(Template!$B$9,\"mm/dd/yyy\")","v":"08/01/2024"},null,null,null,null,{"$f":"IF(Template!M911>0,Template!M911,-Template!N911)","v":0},null,null,null,{"$f":"VLOOKUP(G899,'Account mapping'!A:D,4,0)","v":{"$error":"#N/A"}}]
[{"$f":"LEFT(Template!A912,4)","v":""},{"$f":"VLOOKUP(A900,'Structure mapping'!K:V,7,0)","v":{"$error":"#N/A"}},{"$f":"LEFT(Template!B912,5)","v":""},{"$f":"VLOOKUP(C900,'Structure mapping'!F:J,5,0)","v":{"$error":"#N/A"}},{"$f":"LEFT(Template!C912,7)","v":""},{"$f":"VLOOKUP(E900,'Structure mapping'!A:E,5,0)","v":{"$error":"#N/A"}},{"$f":"LEFT(Template!D912,6)","v":""},{"$f":"VLOOKUP(G900,'Account mapping'!A:E,5,0)","v":{"$error":"#N/A"}},{"$f":"LEFT(Template!E912,2)","v":""},{"$f":"VLOOKUP(I900,'Structure mapping'!X:AB,5,0)","v":{"$error":"#N/A"}},{"$f":"LEFT(Template!F912,3)","v":""},{"$f":"VLOOKUP(K900,'Structure mapping'!AC:AG,5,0)","v":{"$error":"#N/A"}},{"$f":"LEFT(Template!G912,10)","v":""},{"$f":"VLOOKUP(M900,'Structure mapping'!AH:AL,5,0)","v":{"$error":"#N/A"}},{"$f":"LEFT(Template!H912,6)","v":""},{"$f":"VLOOKUP(O900,'Structure mapping'!AM:AQ,5,0)","v":{"$error":"#N/A"}},null,null,null,null,{"$f":"IF(Template!O912=\"\",\"\",Template!O912)","v":""},"Aug-24 pending entries",{"$f":"TEXT(Template!$B$9,\"mm/dd/yyy\")","v":"08/01/2024"},null,null,null,null,{"$f":"IF(Template!M912>0,Template!M912,-Template!N912)","v":0},null,null,null,{"$f":"VLOOKUP(G900,'Account mapping'!A:D,4,0)","v":{"$error":"#N/A"}}]
[{"$f":"LEFT(Template!A913,4)","v":""},{"$f":"VLOOKUP(A901,'Structure mapping'!K:V,7,0)","v":{"$error":"#N/A"}},{"$f":"LEFT(Template!B913,5)","v":""},{"$f":"VLOOKUP(C901,'Structure mapping'!F:J,5,0)","v":{"$error":"#N/A"}},{"$f":"LEFT(Template!C913,7)","v":""},{"$f":"VLOOKUP(E901,'Structure mapping'!A:E,5,0)","v":{"$error":"#N/A"}},{"$f":"LEFT(Template!D913,6)","v":""},{"$f":"VLOOKUP(G901,'Account mapping'!A:E,5,0)","v":{"$error":"#N/A"}},{"$f":"LEFT(Template!E913,2)","v":""},{"$f":"VLOOKUP(I901,'Structure mapping'!X:AB,5,0)","v":{"$error":"#N/A"}},{"$f":"LEFT(Template!F913,3)","v":""},{"$f":"VLOOKUP(K901,'Structure mapping'!AC:AG,5,0)","v":{"$error":"#N/A"}},{"$f":"LEFT(Template!G913,10)","v":""},{"$f":"VLOOKUP(M901,'Structure mapping'!AH:AL,5,0)","v":{"$error":"#N/A"}},{"$f":"LEFT(Template!H913,6)","v":""},{"$f":"VLOOKUP(O901,'Structure mapping'!AM:AQ,5,0)","v":{"$error":"#N/A"}},null,null,null,null,{"$f":"IF(Template!O913=\"\",\"\",Template!O913)","v":""},"Aug-24 pending entries",{"$f":"TEXT(Template!$B$9,\"mm/dd/yyy\")","v":"08/01/2024"},null,null,null,null,{"$f":"IF(Template!M913>0,Template!M913,-Template!N913)","v":0},null,null,null,{"$f":"VLOOKUP(G901,'Account mapping'!A:D,4,0)","v":{"$error":"#N/A"}}]
[{"$f":"LEFT(Template!A914,4)","v":""},{"$f":"VLOOKUP(A902,'Structure mapping'!K:V,7,0)","v":{"$error":"#N/A"}},{"$f":"LEFT(Template!B914,5)","v":""},{"$f":"VLOOKUP(C902,'Structure mapping'!F:J,5,0)","v":{"$error":"#N/A"}},{"$f":"LEFT(Template!C914,7)","v":""},{"$f":"VLOOKUP(E902,'Structure mapping'!A:E,5,0)","v":{"$error":"#N/A"}},{"$f":"LEFT(Template!D914,6)","v":""},{"$f":"VLOOKUP(G902,'Account mapping'!A:E,5,0)","v":{"$error":"#N/A"}},{"$f":"LEFT(Template!E914,2)","v":""},{"$f":"VLOOKUP(I902,'Structure mapping'!X:AB,5,0)","v":{"$error":"#N/A"}},{"$f":"LEFT(Template!F914,3)","v":""},{"$f":"VLOOKUP(K902,'Structure mapping'!AC:AG,5,0)","v":{"$error":"#N/A"}},{"$f":"LEFT(Template!G914,10)","v":""},{"$f":"VLOOKUP(M902,'Structure mapping'!AH:AL,5,0)","v":{"$error":"#N/A"}},{"$f":"LEFT(Template!H914,6)","v":""},{"$f":"VLOOKUP(O902,'Structure mapping'!AM:AQ,5,0)","v":{"$error":"#N/A"}},null,null,null,null,{"$f":"IF(Template!O914=\"\",\"\",Template!O914)","v":""},"Aug-24 pending entries",{"$f":"TEXT(Template!$B$9,\"mm/dd/yyy\")","v":"08/01/2024"},null,null,null,null,{"$f":"IF(Template!M914>0,Template!M914,-Template!N914)","v":0},null,null,null,{"$f":"VLOOKUP(G902,'Account mapping'!A:D,4,0)","v":{"$error":"#N/A"}}]
[{"$f":"LEFT(Template!A915,4)","v":""},{"$f":"VLOOKUP(A903,'Structure mapping'!K:V,7,0)","v":{"$error":"#N/A"}},{"$f":"LEFT(Template!B915,5)","v":""},{"$f":"VLOOKUP(C903,'Structure mapping'!F:J,5,0)","v":{"$error":"#N/A"}},{"$f":"LEFT(Template!C915,7)","v":""},{"$f":"VLOOKUP(E903,'Structure mapping'!A:E,5,0)","v":{"$error":"#N/A"}},{"$f":"LEFT(Template!D915,6)","v":""},{"$f":"VLOOKUP(G903,'Account mapping'!A:E,5,0)","v":{"$error":"#N/A"}},{"$f":"LEFT(Template!E915,2)","v":""},{"$f":"VLOOKUP(I903,'Structure mapping'!X:AB,5,0)","v":{"$error":"#N/A"}},{"$f":"LEFT(Template!F915,3)","v":""},{"$f":"VLOOKUP(K903,'Structure mapping'!AC:AG,5,0)","v":{"$error":"#N/A"}},{"$f":"LEFT(Template!G915,10)","v":""},{"$f":"VLOOKUP(M903,'Structure mapping'!AH:AL,5,0)","v":{"$error":"#N/A"}},{"$f":"LEFT(Template!H915,6)","v":""},{"$f":"VLOOKUP(O903,'Structure mapping'!AM:AQ,5,0)","v":{"$error":"#N/A"}},null,null,null,null,{"$f":"IF(Template!O915=\"\",\"\",Template!O915)","v":""},"Aug-24 pending entries",{"$f":"TEXT(Template!$B$9,\"mm/dd/yyy\")","v":"08/01/2024"},null,null,null,null,{"$f":"IF(Template!M915>0,Template!M915,-Template!N915)","v":0},null,null,null,{"$f":"VLOOKUP(G903,'Account mapping'!A:D,4,0)","v":{"$error":"#N/A"}}]
[{"$f":"LEFT(Template!A916,4)","v":""},{"$f":"VLOOKUP(A904,'Structure mapping'!K:V,7,0)","v":{"$error":"#N/A"}},{"$f":"LEFT(Template!B916,5)","v":""},{"$f":"VLOOKUP(C904,'Structure mapping'!F:J,5,0)","v":{"$error":"#N/A"}},{"$f":"LEFT(Template!C916,7)","v":""},{"$f":"VLOOKUP(E904,'Structure mapping'!A:E,5,0)","v":{"$error":"#N/A"}},{"$f":"LEFT(Template!D916,6)","v":""},{"$f":"VLOOKUP(G904,'Account mapping'!A:E,5,0)","v":{"$error":"#N/A"}},{"$f":"LEFT(Template!E916,2)","v":""},{"$f":"VLOOKUP(I904,'Structure mapping'!X:AB,5,0)","v":{"$error":"#N/A"}},{"$f":"LEFT(Template!F916,3)","v":""},{"$f":"VLOOKUP(K904,'Structure mapping'!AC:AG,5,0)","v":{"$error":"#N/A"}},{"$f":"LEFT(Template!G916,10)","v":""},{"$f":"VLOOKUP(M904,'Structure mapping'!AH:AL,5,0)","v":{"$error":"#N/A"}},{"$f":"LEFT(Template!H916,6)","v":""},{"$f":"VLOOKUP(O904,'Structure mapping'!AM:AQ,5,0)","v":{"$error":"#N/A"}},null,null,null,null,{"$f":"IF(Template!O916=\"\",\"\",Template!O916)","v":""},"Aug-24 pending entries",{"$f":"TEXT(Template!$B$9,\"mm/dd/yyy\")","v":"08/01/2024"},null,null,null,null,{"$f":"IF(Template!M916>0,Template!M916,-Template!N916)","v":0},null,null,null,{"$f":"VLOOKUP(G904,'Account mapping'!A:D,4,0)","v":{"$error":"#N/A"}}]
[{"$f":"LEFT(Template!A917,4)","v":""},{"$f":"VLOOKUP(A905,'Structure mapping'!K:V,7,0)","v":{"$error":"#N/A"}},{"$f":"LEFT(Template!B917,5)","v":""},{"$f":"VLOOKUP(C905,'Structure mapping'!F:J,5,0)","v":{"$error":"#N/A"}},{"$f":"LEFT(Template!C917,7)","v":""},{"$f":"VLOOKUP(E905,'Structure mapping'!A:E,5,0)","v":{"$error":"#N/A"}},{"$f":"LEFT(Template!D917,6)","v":""},{"$f":"VLOOKUP(G905,'Account mapping'!A:E,5,0)","v":{"$error":"#N/A"}},{"$f":"LEFT(Template!E917,2)","v":""},{"$f":"VLOOKUP(I905,'Structure mapping'!X:AB,5,0)","v":{"$error":"#N/A"}},{"$f":"LEFT(Template!F917,3)","v":""},{"$f":"VLOOKUP(K905,'Structure mapping'!AC:AG,5,0)","v":{"$error":"#N/A"}},{"$f":"LEFT(Template!G917,10)","v":""},{"$f":"VLOOKUP(M905,'Structure mapping'!AH:AL,5,0)","v":{"$error":"#N/A"}},{"$f":"LEFT(Template!H917,6)","v":""},{"$f":"VLOOKUP(O905,'Structure mapping'!AM:AQ,5,0)","v":{"$error":"#N/A"}},null,null,null,null,{"$f":"IF(Template!O917=\"\",\"\",Template!O917)","v":""},"Aug-24 pending entries",{"$f":"TEXT(Template!$B$9,\"mm/dd/yyy\")","v":"08/01/2024"},null,null,null,null,{"$f":"IF(Template!M917>0,Template!M917,-Template!N917)","v":0},null,null,null,{"$f":"VLOOKUP(G905,'Account mapping'!A:D,4,0)","v":{"$error":"#N/A"}}]
[{"$f":"LEFT(Template!A918,4)","v":""},{"$f":"VLOOKUP(A906,'Structure mapping'!K:V,7,0)","v":{"$error":"#N/A"}},{"$f":"LEFT(Template!B918,5)","v":""},{"$f":"VLOOKUP(C906,'Structure mapping'!F:J,5,0)","v":{"$error":"#N/A"}},{"$f":"LEFT(Template!C918,7)","v":""},{"$f":"VLOOKUP(E906,'Structure mapping'!A:E,5,0)","v":{"$error":"#N/A"}},{"$f":"LEFT(Template!D918,6)","v":""},{"$f":"VLOOKUP(G906,'Account mapping'!A:E,5,0)","v":{"$error":"#N/A"}},{"$f":"LEFT(Template!E918,2)","v":""},{"$f":"VLOOKUP(I906,'Structure mapping'!X:AB,5,0)","v":{"$error":"#N/A"}},{"$f":"LEFT(Template!F918,3)","v":""},{"$f":"VLOOKUP(K906,'Structure mapping'!AC:AG,5,0)","v":{"$error":"#N/A"}},{"$f":"LEFT(Template!G918,10)","v":""},{"$f":"VLOOKUP(M906,'Structure mapping'!AH:AL,5,0)","v":{"$error":"#N/A"}},{"$f":"LEFT(Template!H918,6)","v":""},{"$f":"VLOOKUP(O906,'Structure mapping'!AM:AQ,5,0)","v":{"$error":"#N/A"}},null,null,null,null,{"$f":"IF(Template!O918=\"\",\"\",Template!O918)","v":""},"Aug-24 pending entries",{"$f":"TEXT(Template!$B$9,\"mm/dd/yyy\")","v":"08/01/2024"},null,null,null,null,{"$f":"IF(Template!M918>0,Template!M918,-Template!N918)","v":0},null,null,null,{"$f":"VLOOKUP(G906,'Account mapping'!A:D,4,0)","v":{"$error":"#N/A"}}]
[{"$f":"LEFT(Template!A919,4)","v":""},{"$f":"VLOOKUP(A907,'Structure mapping'!K:V,7,0)","v":{"$error":"#N/A"}},{"$f":"LEFT(Template!B919,5)","v":""},{"$f":"VLOOKUP(C907,'Structure mapping'!F:J,5,0)","v":{"$error":"#N/A"}},{"$f":"LEFT(Template!C919,7)","v":""},{"$f":"VLOOKUP(E907,'Structure mapping'!A:E,5,0)","v":{"$error":"#N/A"}},{"$f":"LEFT(Template!D919,6)","v":""},{"$f":"VLOOKUP(G907,'Account mapping'!A:E,5,0)","v":{"$error":"#N/A"}},{"$f":"LEFT(Template!E919,2)","v":""},{"$f":"VLOOKUP(I907,'Structure mapping'!X:AB,5,0)","v":{"$error":"#N/A"}},{"$f":"LEFT(Template!F919,3)","v":""},{"$f":"VLOOKUP(K907,'Structure mapping'!AC:AG,5,0)","v":{"$error":"#N/A"}},{"$f":"LEFT(Template!G919,10)","v":""},{"$f":"VLOOKUP(M907,'Structure mapping'!AH:AL,5,0)","v":{"$error":"#N/A"}},{"$f":"LEFT(Template!H919,6)","v":""},{"$f":"VLOOKUP(O907,'Structure mapping'!AM:AQ,5,0)","v":{"$error":"#N/A"}},null,null,null,null,{"$f":"IF(Template!O919=\"\",\"\",Template!O919)","v":""},"Aug-24 pending entries",{"$f":"TEXT(Template!$B$9,\"mm/dd/yyy\")","v":"08/01/2024"},null,null,null,null,{"$f":"IF(Template!M919>0,Template!M919,-Template!N919)","v":0},null,null,null,{"$f":"VLOOKUP(G907,'Account mapping'!A:D,4,0)","v":{"$error":"#N/A"}}]
[{"$f":"LEFT(Template!A920,4)","v":""},{"$f":"VLOOKUP(A908,'Structure mapping'!K:V,7,0)","v":{"$error":"#N/A"}},{"$f":"LEFT(Template!B920,5)","v":""},{"$f":"VLOOKUP(C908,'Structure mapping'!F:J,5,0)","v":{"$error":"#N/A"}},{"$f":"LEFT(Template!C920,7)","v":""},{"$f":"VLOOKUP(E908,'Structure mapping'!A:E,5,0)","v":{"$error":"#N/A"}},{"$f":"LEFT(Template!D920,6)","v":""},{"$f":"VLOOKUP(G908,'Account mapping'!A:E,5,0)","v":{"$error":"#N/A"}},{"$f":"LEFT(Template!E920,2)","v":""},{"$f":"VLOOKUP(I908,'Structure mapping'!X:AB,5,0)","v":{"$error":"#N/A"}},{"$f":"LEFT(Template!F920,3)","v":""},{"$f":"VLOOKUP(K908,'Structure mapping'!AC:AG,5,0)","v":{"$error":"#N/A"}},{"$f":"LEFT(Template!G920,10)","v":""},{"$f":"VLOOKUP(M908,'Structure mapping'!AH:AL,5,0)","v":{"$error":"#N/A"}},{"$f":"LEFT(Template!H920,6)","v":""},{"$f":"VLOOKUP(O908,'Structure mapping'!AM:AQ,5,0)","v":{"$error":"#N/A"}},null,null,null,null,{"$f":"IF(Template!O920=\"\",\"\",Template!O920)","v":""},"Aug-24 pending entries",{"$f":"TEXT(Template!$B$9,\"mm/dd/yyy\")","v":"08/01/2024"},null,null,null,null,{"$f":"IF(Template!M920>0,Template!M920,-Template!N920)","v":0},null,null,null,{"$f":"VLOOKUP(G908,'Account mapping'!A:D,4,0)","v":{"$error":"#N/A"}}]
[{"$f":"LEFT(Template!A921,4)","v":""},{"$f":"VLOOKUP(A909,'Structure mapping'!K:V,7,0)","v":{"$error":"#N/A"}},{"$f":"LEFT(Template!B921,5)","v":""},{"$f":"VLOOKUP(C909,'Structure mapping'!F:J,5,0)","v":{"$error":"#N/A"}},{"$f":"LEFT(Template!C921,7)","v":""},{"$f":"VLOOKUP(E909,'Structure mapping'!A:E,5,0)","v":{"$error":"#N/A"}},{"$f":"LEFT(Template!D921,6)","v":""},{"$f":"VLOOKUP(G909,'Account mapping'!A:E,5,0)","v":{"$error":"#N/A"}},{"$f":"LEFT(Template!E921,2)","v":""},{"$f":"VLOOKUP(I909,'Structure mapping'!X:AB,5,0)","v":{"$error":"#N/A"}},{"$f":"LEFT(Template!F921,3)","v":""},{"$f":"VLOOKUP(K909,'Structure mapping'!AC:AG,5,0)","v":{"$error":"#N/A"}},{"$f":"LEFT(Template!G921,10)","v":""},{"$f":"VLOOKUP(M909,'Structure mapping'!AH:AL,5,0)","v":{"$error":"#N/A"}},{"$f":"LEFT(Template!H921,6)","v":""},{"$f":"VLOOKUP(O909,'Structure mapping'!AM:AQ,5,0)","v":{"$error":"#N/A"}},null,null,null,null,{"$f":"IF(Template!O921=\"\",\"\",Template!O921)","v":""},"Aug-24 pending entries",{"$f":"TEXT(Template!$B$9,\"mm/dd/yyy\")","v":"08/01/2024"},null,null,null,null,{"$f":"IF(Template!M921>0,Template!M921,-Template!N921)","v":0},null,null,null,{"$f":"VLOOKUP(G909,'Account mapping'!A:D,4,0)","v":{"$error":"#N/A"}}]
[{"$f":"LEFT(Template!A922,4)","v":""},{"$f":"VLOOKUP(A910,'Structure mapping'!K:V,7,0)","v":{"$error":"#N/A"}},{"$f":"LEFT(Template!B922,5)","v":""},{"$f":"VLOOKUP(C910,'Structure mapping'!F:J,5,0)","v":{"$error":"#N/A"}},{"$f":"LEFT(Template!C922,7)","v":""},{"$f":"VLOOKUP(E910,'Structure mapping'!A:E,5,0)","v":{"$error":"#N/A"}},{"$f":"LEFT(Template!D922,6)","v":""},{"$f":"VLOOKUP(G910,'Account mapping'!A:E,5,0)","v":{"$error":"#N/A"}},{"$f":"LEFT(Template!E922,2)","v":""},{"$f":"VLOOKUP(I910,'Structure mapping'!X:AB,5,0)","v":{"$error":"#N/A"}},{"$f":"LEFT(Template!F922,3)","v":""},{"$f":"VLOOKUP(K910,'Structure mapping'!AC:AG,5,0)","v":{"$error":"#N/A"}},{"$f":"LEFT(Template!G922,10)","v":""},{"$f":"VLOOKUP(M910,'Structure mapping'!AH:AL,5,0)","v":{"$error":"#N/A"}},{"$f":"LEFT(Template!H922,6)","v":""},{"$f":"VLOOKUP(O910,'Structure mapping'!AM:AQ,5,0)","v":{"$error":"#N/A"}},null,null,null,null,{"$f":"IF(Template!O922=\"\",\"\",Template!O922)","v":""},"Aug-24 pending entries",{"$f":"TEXT(Template!$B$9,\"mm/dd/yyy\")","v":"08/01/2024"},null,null,null,null,{"$f":"IF(Template!M922>0,Template!M922,-Template!N922)","v":0},null,null,null,{"$f":"VLOOKUP(G910,'Account mapping'!A:D,4,0)","v":{"$error":"#N/A"}}]
[{"$f":"LEFT(Template!A923,4)","v":""},{"$f":"VLOOKUP(A911,'Structure mapping'!K:V,7,0)","v":{"$error":"#N/A"}},{"$f":"LEFT(Template!B923,5)","v":""},{"$f":"VLOOKUP(C911,'Structure mapping'!F:J,5,0)","v":{"$error":"#N/A"}},{"$f":"LEFT(Template!C923,7)","v":""},{"$f":"VLOOKUP(E911,'Structure mapping'!A:E,5,0)","v":{"$error":"#N/A"}},{"$f":"LEFT(Template!D923,6)","v":""},{"$f":"VLOOKUP(G911,'Account mapping'!A:E,5,0)","v":{"$error":"#N/A"}},{"$f":"LEFT(Template!E923,2)","v":""},{"$f":"VLOOKUP(I911,'Structure mapping'!X:AB,5,0)","v":{"$error":"#N/A"}},{"$f":"LEFT(Template!F923,3)","v":""},{"$f":"VLOOKUP(K911,'Structure mapping'!AC:AG,5,0)","v":{"$error":"#N/A"}},{"$f":"LEFT(Template!G923,10)","v":""},{"$f":"VLOOKUP(M911,'Structure mapping'!AH:AL,5,0)","v":{"$error":"#N/A"}},{"$f":"LEFT(Template!H923,6)","v":""},{"$f":"VLOOKUP(O911,'Structure mapping'!AM:AQ,5,0)","v":{"$error":"#N/A"}},null,null,null,null,{"$f":"IF(Template!O923=\"\",\"\",Template!O923)","v":""},"Aug-24 pending entries",{"$f":"TEXT(Template!$B$9,\"mm/dd/yyy\")","v":"08/01/2024"},null,null,null,null,{"$f":"IF(Template!M923>0,Template!M923,-Template!N923)","v":0},null,null,null,{"$f":"VLOOKUP(G911,'Account mapping'!A:D,4,0)","v":{"$error":"#N/A"}}]
[{"$f":"LEFT(Template!A924,4)","v":""},{"$f":"VLOOKUP(A912,'Structure mapping'!K:V,7,0)","v":{"$error":"#N/A"}},{"$f":"LEFT(Template!B924,5)","v":""},{"$f":"VLOOKUP(C912,'Structure mapping'!F:J,5,0)","v":{"$error":"#N/A"}},{"$f":"LEFT(Template!C924,7)","v":""},{"$f":"VLOOKUP(E912,'Structure mapping'!A:E,5,0)","v":{"$error":"#N/A"}},{"$f":"LEFT(Template!D924,6)","v":""},{"$f":"VLOOKUP(G912,'Account mapping'!A:E,5,0)","v":{"$error":"#N/A"}},{"$f":"LEFT(Template!E924,2)","v":""},{"$f":"VLOOKUP(I912,'Structure mapping'!X:AB,5,0)","v":{"$error":"#N/A"}},{"$f":"LEFT(Template!F924,3)","v":""},{"$f":"VLOOKUP(K912,'Structure mapping'!AC:AG,5,0)","v":{"$error":"#N/A"}},{"$f":"LEFT(Template!G924,10)","v":""},{"$f":"VLOOKUP(M912,'Structure mapping'!AH:AL,5,0)","v":{"$error":"#N/A"}},{"$f":"LEFT(Template!H924,6)","v":""},{"$f":"VLOOKUP(O912,'Structure mapping'!AM:AQ,5,0)","v":{"$error":"#N/A"}},null,null,null,null,{"$f":"IF(Template!O924=\"\",\"\",Template!O924)","v":""},"Aug-24 pending entries",{"$f":"TEXT(Template!$B$9,\"mm/dd/yyy\")","v":"08/01/2024"},null,null,null,null,{"$f":"IF(Template!M924>0,Template!M924,-Template!N924)","v":0},null,null,null,{"$f":"VLOOKUP(G912,'Account mapping'!A:D,4,0)","v":{"$error":"#N/A"}}]
[{"$f":"LEFT(Template!A925,4)","v":""},{"$f":"VLOOKUP(A913,'Structure mapping'!K:V,7,0)","v":{"$error":"#N/A"}},{"$f":"LEFT(Template!B925,5)","v":""},{"$f":"VLOOKUP(C913,'Structure mapping'!F:J,5,0)","v":{"$error":"#N/A"}},{"$f":"LEFT(Template!C925,7)","v":""},{"$f":"VLOOKUP(E913,'Structure mapping'!A:E,5,0)","v":{"$error":"#N/A"}},{"$f":"LEFT(Template!D925,6)","v":""},{"$f":"VLOOKUP(G913,'Account mapping'!A:E,5,0)","v":{"$error":"#N/A"}},{"$f":"LEFT(Template!E925,2)","v":""},{"$f":"VLOOKUP(I913,'Structure mapping'!X:AB,5,0)","v":{"$error":"#N/A"}},{"$f":"LEFT(Template!F925,3)","v":""},{"$f":"VLOOKUP(K913,'Structure mapping'!AC:AG,5,0)","v":{"$error":"#N/A"}},{"$f":"LEFT(Template!G925,10)","v":""},{"$f":"VLOOKUP(M913,'Structure mapping'!AH:AL,5,0)","v":{"$error":"#N/A"}},{"$f":"LEFT(Template!H925,6)","v":""},{"$f":"VLOOKUP(O913,'Structure mapping'!AM:AQ,5,0)","v":{"$error":"#N/A"}},null,null,null,null,{"$f":"IF(Template!O925=\"\",\"\",Template!O925)","v":""},"Aug-24 pending entries",{"$f":"TEXT(Template!$B$9,\"mm/dd/yyy\")","v":"08/01/2024"},null,null,null,null,{"$f":"IF(Template!M925>0,Template!M925,-Template!N925)","v":0},null,null,null,{"$f":"VLOOKUP(G913,'Account mapping'!A:D,4,0)","v":{"$error":"#N/A"}}]
[{"$f":"LEFT(Template!A926,4)","v":""},{"$f":"VLOOKUP(A914,'Structure mapping'!K:V,7,0)","v":{"$error":"#N/A"}},{"$f":"LEFT(Template!B926,5)","v":""},{"$f":"VLOOKUP(C914,'Structure mapping'!F:J,5,0)","v":{"$error":"#N/A"}},{"$f":"LEFT(Template!C926,7)","v":""},{"$f":"VLOOKUP(E914,'Structure mapping'!A:E,5,0)","v":{"$error":"#N/A"}},{"$f":"LEFT(Template!D926,6)","v":""},{"$f":"VLOOKUP(G914,'Account mapping'!A:E,5,0)","v":{"$error":"#N/A"}},{"$f":"LEFT(Template!E926,2)","v":""},{"$f":"VLOOKUP(I914,'Structure mapping'!X:AB,5,0)","v":{"$error":"#N/A"}},{"$f":"LEFT(Template!F926,3)","v":""},{"$f":"VLOOKUP(K914,'Structure mapping'!AC:AG,5,0)","v":{"$error":"#N/A"}},{"$f":"LEFT(Template!G926,10)","v":""},{"$f":"VLOOKUP(M914,'Structure mapping'!AH:AL,5,0)","v":{"$error":"#N/A"}},{"$f":"LEFT(Template!H926,6)","v":""},{"$f":"VLOOKUP(O914,'Structure mapping'!AM:AQ,5,0)","v":{"$error":"#N/A"}},null,null,null,null,{"$f":"IF(Template!O926=\"\",\"\",Template!O926)","v":""},"Aug-24 pending entries",{"$f":"TEXT(Template!$B$9,\"mm/dd/yyy\")","v":"08/01/2024"},null,null,null,null,{"$f":"IF(Template!M926>0,Template!M926,-Template!N926)","v":0},null,null,null,{"$f":"VLOOKUP(G914,'Account mapping'!A:D,4,0)","v":{"$error":"#N/A"}}]
[{"$f":"LEFT(Template!A927,4)","v":""},{"$f":"VLOOKUP(A915,'Structure mapping'!K:V,7,0)","v":{"$error":"#N/A"}},{"$f":"LEFT(Template!B927,5)","v":""},{"$f":"VLOOKUP(C915,'Structure mapping'!F:J,5,0)","v":{"$error":"#N/A"}},{"$f":"LEFT(Template!C927,7)","v":""},{"$f":"VLOOKUP(E915,'Structure mapping'!A:E,5,0)","v":{"$error":"#N/A"}},{"$f":"LEFT(Template!D927,6)","v":""},{"$f":"VLOOKUP(G915,'Account mapping'!A:E,5,0)","v":{"$error":"#N/A"}},{"$f":"LEFT(Template!E927,2)","v":""},{"$f":"VLOOKUP(I915,'Structure mapping'!X:AB,5,0)","v":{"$error":"#N/A"}},{"$f":"LEFT(Template!F927,3)","v":""},{"$f":"VLOOKUP(K915,'Structure mapping'!AC:AG,5,0)","v":{"$error":"#N/A"}},{"$f":"LEFT(Template!G927,10)","v":""},{"$f":"VLOOKUP(M915,'Structure mapping'!AH:AL,5,0)","v":{"$error":"#N/A"}},{"$f":"LEFT(Template!H927,6)","v":""},{"$f":"VLOOKUP(O915,'Structure mapping'!AM:AQ,5,0)","v":{"$error":"#N/A"}},null,null,null,null,{"$f":"IF(Template!O927=\"\",\"\",Template!O927)","v":""},"Aug-24 pending entries",{"$f":"TEXT(Template!$B$9,\"mm/dd/yyy\")","v":"08/01/2024"},null,null,null,null,{"$f":"IF(Template!M927>0,Template!M927,-Template!N927)","v":0},null,null,null,{"$f":"VLOOKUP(G915,'Account mapping'!A:D,4,0)","v":{"$error":"#N/A"}}]
[{"$f":"LEFT(Template!A928,4)","v":""},{"$f":"VLOOKUP(A916,'Structure mapping'!K:V,7,0)","v":{"$error":"#N/A"}},{"$f":"LEFT(Template!B928,5)","v":""},{"$f":"VLOOKUP(C916,'Structure mapping'!F:J,5,0)","v":{"$error":"#N/A"}},{"$f":"LEFT(Template!C928,7)","v":""},{"$f":"VLOOKUP(E916,'Structure mapping'!A:E,5,0)","v":{"$error":"#N/A"}},{"$f":"LEFT(Template!D928,6)","v":""},{"$f":"VLOOKUP(G916,'Account mapping'!A:E,5,0)","v":{"$error":"#N/A"}},{"$f":"LEFT(Template!E928,2)","v":""},{"$f":"VLOOKUP(I916,'Structure mapping'!X:AB,5,0)","v":{"$error":"#N/A"}},{"$f":"LEFT(Template!F928,3)","v":""},{"$f":"VLOOKUP(K916,'Structure mapping'!AC:AG,5,0)","v":{"$error":"#N/A"}},{"$f":"LEFT(Template!G928,10)","v":""},{"$f":"VLOOKUP(M916,'Structure mapping'!AH:AL,5,0)","v":{"$error":"#N/A"}},{"$f":"LEFT(Template!H928,6)","v":""},{"$f":"VLOOKUP(O916,'Structure mapping'!AM:AQ,5,0)","v":{"$error":"#N/A"}},null,null,null,null,{"$f":"IF(Template!O928=\"\",\"\",Template!O928)","v":""},"Aug-24 pending entries",{"$f":"TEXT(Template!$B$9,\"mm/dd/yyy\")","v":"08/01/2024"},null,null,null,null,{"$f":"IF(Template!M928>0,Template!M928,-Template!N928)","v":0},null,null,null,{"$f":"VLOOKUP(G916,'Account mapping'!A:D,4,0)","v":{"$error":"#N/A"}}]
[{"$f":"LEFT(Template!A929,4)","v":""},{"$f":"VLOOKUP(A917,'Structure mapping'!K:V,7,0)","v":{"$error":"#N/A"}},{"$f":"LEFT(Template!B929,5)","v":""},{"$f":"VLOOKUP(C917,'Structure mapping'!F:J,5,0)","v":{"$error":"#N/A"}},{"$f":"LEFT(Template!C929,7)","v":""},{"$f":"VLOOKUP(E917,'Structure mapping'!A:E,5,0)","v":{"$error":"#N/A"}},{"$f":"LEFT(Template!D929,6)","v":""},{"$f":"VLOOKUP(G917,'Account mapping'!A:E,5,0)","v":{"$error":"#N/A"}},{"$f":"LEFT(Template!E929,2)","v":""},{"$f":"VLOOKUP(I917,'Structure mapping'!X:AB,5,0)","v":{"$error":"#N/A"}},{"$f":"LEFT(Template!F929,3)","v":""},{"$f":"VLOOKUP(K917,'Structure mapping'!AC:AG,5,0)","v":{"$error":"#N/A"}},{"$f":"LEFT(Template!G929,10)","v":""},{"$f":"VLOOKUP(M917,'Structure mapping'!AH:AL,5,0)","v":{"$error":"#N/A"}},{"$f":"LEFT(Template!H929,6)","v":""},{"$f":"VLOOKUP(O917,'Structure mapping'!AM:AQ,5,0)","v":{"$error":"#N/A"}},null,null,null,null,{"$f":"IF(Template!O929=\"\",\"\",Template!O929)","v":""},"Aug-24 pending entries",{"$f":"TEXT(Template!$B$9,\"mm/dd/yyy\")","v":"08/01/2024"},null,null,null,null,{"$f":"IF(Template!M929>0,Template!M929,-Template!N929)","v":0},null,null,null,{"$f":"VLOOKUP(G917,'Account mapping'!A:D,4,0)","v":{"$error":"#N/A"}}]
[{"$f":"LEFT(Template!A930,4)","v":""},{"$f":"VLOOKUP(A918,'Structure mapping'!K:V,7,0)","v":{"$error":"#N/A"}},{"$f":"LEFT(Template!B930,5)","v":""},{"$f":"VLOOKUP(C918,'Structure mapping'!F:J,5,0)","v":{"$error":"#N/A"}},{"$f":"LEFT(Template!C930,7)","v":""},{"$f":"VLOOKUP(E918,'Structure mapping'!A:E,5,0)","v":{"$error":"#N/A"}},{"$f":"LEFT(Template!D930,6)","v":""},{"$f":"VLOOKUP(G918,'Account mapping'!A:E,5,0)","v":{"$error":"#N/A"}},{"$f":"LEFT(Template!E930,2)","v":""},{"$f":"VLOOKUP(I918,'Structure mapping'!X:AB,5,0)","v":{"$error":"#N/A"}},{"$f":"LEFT(Template!F930,3)","v":""},{"$f":"VLOOKUP(K918,'Structure mapping'!AC:AG,5,0)","v":{"$error":"#N/A"}},{"$f":"LEFT(Template!G930,10)","v":""},{"$f":"VLOOKUP(M918,'Structure mapping'!AH:AL,5,0)","v":{"$error":"#N/A"}},{"$f":"LEFT(Template!H930,6)","v":""},{"$f":"VLOOKUP(O918,'Structure mapping'!AM:AQ,5,0)","v":{"$error":"#N/A"}},null,null,null,null,{"$f":"IF(Template!O930=\"\",\"\",Template!O930)","v":""},"Aug-24 pending entries",{"$f":"TEXT(Template!$B$9,\"mm/dd/yyy\")","v":"08/01/2024"},null,null,null,null,{"$f":"IF(Template!M930>0,Template!M930,-Template!N930)","v":0},null,null,null,{"$f":"VLOOKUP(G918,'Account mapping'!A:D,4,0)","v":{"$error":"#N/A"}}]
[{"$f":"LEFT(Template!A931,4)","v":""},{"$f":"VLOOKUP(A919,'Structure mapping'!K:V,7,0)","v":{"$error":"#N/A"}},{"$f":"LEFT(Template!B931,5)","v":""},{"$f":"VLOOKUP(C919,'Structure mapping'!F:J,5,0)","v":{"$error":"#N/A"}},{"$f":"LEFT(Template!C931,7)","v":""},{"$f":"VLOOKUP(E919,'Structure mapping'!A:E,5,0)","v":{"$error":"#N/A"}},{"$f":"LEFT(Template!D931,6)","v":""},{"$f":"VLOOKUP(G919,'Account mapping'!A:E,5,0)","v":{"$error":"#N/A"}},{"$f":"LEFT(Template!E931,2)","v":""},{"$f":"VLOOKUP(I919,'Structure mapping'!X:AB,5,0)","v":{"$error":"#N/A"}},{"$f":"LEFT(Template!F931,3)","v":""},{"$f":"VLOOKUP(K919,'Structure mapping'!AC:AG,5,0)","v":{"$error":"#N/A"}},{"$f":"LEFT(Template!G931,10)","v":""},{"$f":"VLOOKUP(M919,'Structure mapping'!AH:AL,5,0)","v":{"$error":"#N/A"}},{"$f":"LEFT(Template!H931,6)","v":""},{"$f":"VLOOKUP(O919,'Structure mapping'!AM:AQ,5,0)","v":{"$error":"#N/A"}},null,null,null,null,{"$f":"IF(Template!O931=\"\",\"\",Template!O931)","v":""},"Aug-24 pending entries",{"$f":"TEXT(Template!$B$9,\"mm/dd/yyy\")","v":"08/01/2024"},null,null,null,null,{"$f":"IF(Template!M931>0,Template!M931,-Template!N931)","v":0},null,null,null,{"$f":"VLOOKUP(G919,'Account mapping'!A:D,4,0)","v":{"$error":"#N/A"}}]
[{"$f":"LEFT(Template!A932,4)","v":""},{"$f":"VLOOKUP(A920,'Structure mapping'!K:V,7,0)","v":{"$error":"#N/A"}},{"$f":"LEFT(Template!B932,5)","v":""},{"$f":"VLOOKUP(C920,'Structure mapping'!F:J,5,0)","v":{"$error":"#N/A"}},{"$f":"LEFT(Template!C932,7)","v":""},{"$f":"VLOOKUP(E920,'Structure mapping'!A:E,5,0)","v":{"$error":"#N/A"}},{"$f":"LEFT(Template!D932,6)","v":""},{"$f":"VLOOKUP(G920,'Account mapping'!A:E,5,0)","v":{"$error":"#N/A"}},{"$f":"LEFT(Template!E932,2)","v":""},{"$f":"VLOOKUP(I920,'Structure mapping'!X:AB,5,0)","v":{"$error":"#N/A"}},{"$f":"LEFT(Template!F932,3)","v":""},{"$f":"VLOOKUP(K920,'Structure mapping'!AC:AG,5,0)","v":{"$error":"#N/A"}},{"$f":"LEFT(Template!G932,10)","v":""},{"$f":"VLOOKUP(M920,'Structure mapping'!AH:AL,5,0)","v":{"$error":"#N/A"}},{"$f":"LEFT(Template!H932,6)","v":""},{"$f":"VLOOKUP(O920,'Structure mapping'!AM:AQ,5,0)","v":{"$error":"#N/A"}},null,null,null,null,{"$f":"IF(Template!O932=\"\",\"\",Template!O932)","v":""},"Aug-24 pending entries",{"$f":"TEXT(Template!$B$9,\"mm/dd/yyy\")","v":"08/01/2024"},null,null,null,null,{"$f":"IF(Template!M932>0,Template!M932,-Template!N932)","v":0},null,null,null,{"$f":"VLOOKUP(G920,'Account mapping'!A:D,4,0)","v":{"$error":"#N/A"}}]
[{"$f":"LEFT(Template!A933,4)","v":""},{"$f":"VLOOKUP(A921,'Structure mapping'!K:V,7,0)","v":{"$error":"#N/A"}},{"$f":"LEFT(Template!B933,5)","v":""},{"$f":"VLOOKUP(C921,'Structure mapping'!F:J,5,0)","v":{"$error":"#N/A"}},{"$f":"LEFT(Template!C933,7)","v":""},{"$f":"VLOOKUP(E921,'Structure mapping'!A:E,5,0)","v":{"$error":"#N/A"}},{"$f":"LEFT(Template!D933,6)","v":""},{"$f":"VLOOKUP(G921,'Account mapping'!A:E,5,0)","v":{"$error":"#N/A"}},{"$f":"LEFT(Template!E933,2)","v":""},{"$f":"VLOOKUP(I921,'Structure mapping'!X:AB,5,0)","v":{"$error":"#N/A"}},{"$f":"LEFT(Template!F933,3)","v":""},{"$f":"VLOOKUP(K921,'Structure mapping'!AC:AG,5,0)","v":{"$error":"#N/A"}},{"$f":"LEFT(Template!G933,10)","v":""},{"$f":"VLOOKUP(M921,'Structure mapping'!AH:AL,5,0)","v":{"$error":"#N/A"}},{"$f":"LEFT(Template!H933,6)","v":""},{"$f":"VLOOKUP(O921,'Structure mapping'!AM:AQ,5,0)","v":{"$error":"#N/A"}},null,null,null,null,{"$f":"IF(Template!O933=\"\",\"\",Template!O933)","v":""},"Aug-24 pending entries",{"$f":"TEXT(Template!$B$9,\"mm/dd/yyy\")","v":"08/01/2024"},null,null,null,null,{"$f":"IF(Template!M933>0,Template!M933,-Template!N933)","v":0},null,null,null,{"$f":"VLOOKUP(G921,'Account mapping'!A:D,4,0)","v":{"$error":"#N/A"}}]
[{"$f":"LEFT(Template!A934,4)","v":""},{"$f":"VLOOKUP(A922,'Structure mapping'!K:V,7,0)","v":{"$error":"#N/A"}},{"$f":"LEFT(Template!B934,5)","v":""},{"$f":"VLOOKUP(C922,'Structure mapping'!F:J,5,0)","v":{"$error":"#N/A"}},{"$f":"LEFT(Template!C934,7)","v":""},{"$f":"VLOOKUP(E922,'Structure mapping'!A:E,5,0)","v":{"$error":"#N/A"}},{"$f":"LEFT(Template!D934,6)","v":""},{"$f":"VLOOKUP(G922,'Account mapping'!A:E,5,0)","v":{"$error":"#N/A"}},{"$f":"LEFT(Template!E934,2)","v":""},{"$f":"VLOOKUP(I922,'Structure mapping'!X:AB,5,0)","v":{"$error":"#N/A"}},{"$f":"LEFT(Template!F934,3)","v":""},{"$f":"VLOOKUP(K922,'Structure mapping'!AC:AG,5,0)","v":{"$error":"#N/A"}},{"$f":"LEFT(Template!G934,10)","v":""},{"$f":"VLOOKUP(M922,'Structure mapping'!AH:AL,5,0)","v":{"$error":"#N/A"}},{"$f":"LEFT(Template!H934,6)","v":""},{"$f":"VLOOKUP(O922,'Structure mapping'!AM:AQ,5,0)","v":{"$error":"#N/A"}},null,null,null,null,{"$f":"IF(Template!O934=\"\",\"\",Template!O934)","v":""},"Aug-24 pending entries",{"$f":"TEXT(Template!$B$9,\"mm/dd/yyy\")","v":"08/01/2024"},null,null,null,null,{"$f":"IF(Template!M934>0,Template!M934,-Template!N934)","v":0},null,null,null,{"$f":"VLOOKUP(G922,'Account mapping'!A:D,4,0)","v":{"$error":"#N/A"}}]
[{"$f":"LEFT(Template!A935,4)","v":""},{"$f":"VLOOKUP(A923,'Structure mapping'!K:V,7,0)","v":{"$error":"#N/A"}},{"$f":"LEFT(Template!B935,5)","v":""},{"$f":"VLOOKUP(C923,'Structure mapping'!F:J,5,0)","v":{"$error":"#N/A"}},{"$f":"LEFT(Template!C935,7)","v":""},{"$f":"VLOOKUP(E923,'Structure mapping'!A:E,5,0)","v":{"$error":"#N/A"}},{"$f":"LEFT(Template!D935,6)","v":""},{"$f":"VLOOKUP(G923,'Account mapping'!A:E,5,0)","v":{"$error":"#N/A"}},{"$f":"LEFT(Template!E935,2)","v":""},{"$f":"VLOOKUP(I923,'Structure mapping'!X:AB,5,0)","v":{"$error":"#N/A"}},{"$f":"LEFT(Template!F935,3)","v":""},{"$f":"VLOOKUP(K923,'Structure mapping'!AC:AG,5,0)","v":{"$error":"#N/A"}},{"$f":"LEFT(Template!G935,10)","v":""},{"$f":"VLOOKUP(M923,'Structure mapping'!AH:AL,5,0)","v":{"$error":"#N/A"}},{"$f":"LEFT(Template!H935,6)","v":""},{"$f":"VLOOKUP(O923,'Structure mapping'!AM:AQ,5,0)","v":{"$error":"#N/A"}},null,null,null,null,{"$f":"IF(Template!O935=\"\",\"\",Template!O935)","v":""},"Aug-24 pending entries",{"$f":"TEXT(Template!$B$9,\"mm/dd/yyy\")","v":"08/01/2024"},null,null,null,null,{"$f":"IF(Template!M935>0,Template!M935,-Template!N935)","v":0},null,null,null,{"$f":"VLOOKUP(G923,'Account mapping'!A:D,4,0)","v":{"$error":"#N/A"}}]
[{"$f":"LEFT(Template!A936,4)","v":""},{"$f":"VLOOKUP(A924,'Structure mapping'!K:V,7,0)","v":{"$error":"#N/A"}},{"$f":"LEFT(Template!B936,5)","v":""},{"$f":"VLOOKUP(C924,'Structure mapping'!F:J,5,0)","v":{"$error":"#N/A"}},{"$f":"LEFT(Template!C936,7)","v":""},{"$f":"VLOOKUP(E924,'Structure mapping'!A:E,5,0)","v":{"$error":"#N/A"}},{"$f":"LEFT(Template!D936,6)","v":""},{"$f":"VLOOKUP(G924,'Account mapping'!A:E,5,0)","v":{"$error":"#N/A"}},{"$f":"LEFT(Template!E936,2)","v":""},{"$f":"VLOOKUP(I924,'Structure mapping'!X:AB,5,0)","v":{"$error":"#N/A"}},{"$f":"LEFT(Template!F936,3)","v":""},{"$f":"VLOOKUP(K924,'Structure mapping'!AC:AG,5,0)","v":{"$error":"#N/A"}},{"$f":"LEFT(Template!G936,10)","v":""},{"$f":"VLOOKUP(M924,'Structure mapping'!AH:AL,5,0)","v":{"$error":"#N/A"}},{"$f":"LEFT(Template!H936,6)","v":""},{"$f":"VLOOKUP(O924,'Structure mapping'!AM:AQ,5,0)","v":{"$error":"#N/A"}},null,null,null,null,{"$f":"IF(Template!O936=\"\",\"\",Template!O936)","v":""},"Aug-24 pending entries",{"$f":"TEXT(Template!$B$9,\"mm/dd/yyy\")","v":"08/01/2024"},null,null,null,null,{"$f":"IF(Template!M936>0,Template!M936,-Template!N936)","v":0},null,null,null,{"$f":"VLOOKUP(G924,'Account mapping'!A:D,4,0)","v":{"$error":"#N/A"}}]
[{"$f":"LEFT(Template!A937,4)","v":""},{"$f":"VLOOKUP(A925,'Structure mapping'!K:V,7,0)","v":{"$error":"#N/A"}},{"$f":"LEFT(Template!B937,5)","v":""},{"$f":"VLOOKUP(C925,'Structure mapping'!F:J,5,0)","v":{"$error":"#N/A"}},{"$f":"LEFT(Template!C937,7)","v":""},{"$f":"VLOOKUP(E925,'Structure mapping'!A:E,5,0)","v":{"$error":"#N/A"}},{"$f":"LEFT(Template!D937,6)","v":""},{"$f":"VLOOKUP(G925,'Account mapping'!A:E,5,0)","v":{"$error":"#N/A"}},{"$f":"LEFT(Template!E937,2)","v":""},{"$f":"VLOOKUP(I925,'Structure mapping'!X:AB,5,0)","v":{"$error":"#N/A"}},{"$f":"LEFT(Template!F937,3)","v":""},{"$f":"VLOOKUP(K925,'Structure mapping'!AC:AG,5,0)","v":{"$error":"#N/A"}},{"$f":"LEFT(Template!G937,10)","v":""},{"$f":"VLOOKUP(M925,'Structure mapping'!AH:AL,5,0)","v":{"$error":"#N/A"}},{"$f":"LEFT(Template!H937,6)","v":""},{"$f":"VLOOKUP(O925,'Structure mapping'!AM:AQ,5,0)","v":{"$error":"#N/A"}},null,null,null,null,{"$f":"IF(Template!O937=\"\",\"\",Template!O937)","v":""},"Aug-24 pending entries",{"$f":"TEXT(Template!$B$9,\"mm/dd/yyy\")","v":"08/01/2024"},null,null,null,null,{"$f":"IF(Template!M937>0,Template!M937,-Template!N937)","v":0},null,null,null,{"$f":"VLOOKUP(G925,'Account mapping'!A:D,4,0)","v":{"$error":"#N/A"}}]
[{"$f":"LEFT(Template!A938,4)","v":""},{"$f":"VLOOKUP(A926,'Structure mapping'!K:V,7,0)","v":{"$error":"#N/A"}},{"$f":"LEFT(Template!B938,5)","v":""},{"$f":"VLOOKUP(C926,'Structure mapping'!F:J,5,0)","v":{"$error":"#N/A"}},{"$f":"LEFT(Template!C938,7)","v":""},{"$f":"VLOOKUP(E926,'Structure mapping'!A:E,5,0)","v":{"$error":"#N/A"}},{"$f":"LEFT(Template!D938,6)","v":""},{"$f":"VLOOKUP(G926,'Account mapping'!A:E,5,0)","v":{"$error":"#N/A"}},{"$f":"LEFT(Template!E938,2)","v":""},{"$f":"VLOOKUP(I926,'Structure mapping'!X:AB,5,0)","v":{"$error":"#N/A"}},{"$f":"LEFT(Template!F938,3)","v":""},{"$f":"VLOOKUP(K926,'Structure mapping'!AC:AG,5,0)","v":{"$error":"#N/A"}},{"$f":"LEFT(Template!G938,10)","v":""},{"$f":"VLOOKUP(M926,'Structure mapping'!AH:AL,5,0)","v":{"$error":"#N/A"}},{"$f":"LEFT(Template!H938,6)","v":""},{"$f":"VLOOKUP(O926,'Structure mapping'!AM:AQ,5,0)","v":{"$error":"#N/A"}},null,null,null,null,{"$f":"IF(Template!O938=\"\",\"\",Template!O938)","v":""},"Aug-24 pending entries",{"$f":"TEXT(Template!$B$9,\"mm/dd/yyy\")","v":"08/01/2024"},null,null,null,null,{"$f":"IF(Template!M938>0,Template!M938,-Template!N938)","v":0},null,null,null,{"$f":"VLOOKUP(G926,'Account mapping'!A:D,4,0)","v":{"$error":"#N/A"}}]
[{"$f":"LEFT(Template!A939,4)","v":""},{"$f":"VLOOKUP(A927,'Structure mapping'!K:V,7,0)","v":{"$error":"#N/A"}},{"$f":"LEFT(Template!B939,5)","v":""},{"$f":"VLOOKUP(C927,'Structure mapping'!F:J,5,0)","v":{"$error":"#N/A"}},{"$f":"LEFT(Template!C939,7)","v":""},{"$f":"VLOOKUP(E927,'Structure mapping'!A:E,5,0)","v":{"$error":"#N/A"}},{"$f":"LEFT(Template!D939,6)","v":""},{"$f":"VLOOKUP(G927,'Account mapping'!A:E,5,0)","v":{"$error":"#N/A"}},{"$f":"LEFT(Template!E939,2)","v":""},{"$f":"VLOOKUP(I927,'Structure mapping'!X:AB,5,0)","v":{"$error":"#N/A"}},{"$f":"LEFT(Template!F939,3)","v":""},{"$f":"VLOOKUP(K927,'Structure mapping'!AC:AG,5,0)","v":{"$error":"#N/A"}},{"$f":"LEFT(Template!G939,10)","v":""},{"$f":"VLOOKUP(M927,'Structure mapping'!AH:AL,5,0)","v":{"$error":"#N/A"}},{"$f":"LEFT(Template!H939,6)","v":""},{"$f":"VLOOKUP(O927,'Structure mapping'!AM:AQ,5,0)","v":{"$error":"#N/A"}},null,null,null,null,{"$f":"IF(Template!O939=\"\",\"\",Template!O939)","v":""},"Aug-24 pending entries",{"$f":"TEXT(Template!$B$9,\"mm/dd/yyy\")","v":"08/01/2024"},null,null,null,null,{"$f":"IF(Template!M939>0,Template!M939,-Template!N939)","v":0},null,null,null,{"$f":"VLOOKUP(G927,'Account mapping'!A:D,4,0)","v":{"$error":"#N/A"}}]
[{"$f":"LEFT(Template!A940,4)","v":""},{"$f":"VLOOKUP(A928,'Structure mapping'!K:V,7,0)","v":{"$error":"#N/A"}},{"$f":"LEFT(Template!B940,5)","v":""},{"$f":"VLOOKUP(C928,'Structure mapping'!F:J,5,0)","v":{"$error":"#N/A"}},{"$f":"LEFT(Template!C940,7)","v":""},{"$f":"VLOOKUP(E928,'Structure mapping'!A:E,5,0)","v":{"$error":"#N/A"}},{"$f":"LEFT(Template!D940,6)","v":""},{"$f":"VLOOKUP(G928,'Account mapping'!A:E,5,0)","v":{"$error":"#N/A"}},{"$f":"LEFT(Template!E940,2)","v":""},{"$f":"VLOOKUP(I928,'Structure mapping'!X:AB,5,0)","v":{"$error":"#N/A"}},{"$f":"LEFT(Template!F940,3)","v":""},{"$f":"VLOOKUP(K928,'Structure mapping'!AC:AG,5,0)","v":{"$error":"#N/A"}},{"$f":"LEFT(Template!G940,10)","v":""},{"$f":"VLOOKUP(M928,'Structure mapping'!AH:AL,5,0)","v":{"$error":"#N/A"}},{"$f":"LEFT(Template!H940,6)","v":""},{"$f":"VLOOKUP(O928,'Structure mapping'!AM:AQ,5,0)","v":{"$error":"#N/A"}},null,null,null,null,{"$f":"IF(Template!O940=\"\",\"\",Template!O940)","v":""},"Aug-24 pending entries",{"$f":"TEXT(Template!$B$9,\"mm/dd/yyy\")","v":"08/01/2024"},null,null,null,null,{"$f":"IF(Template!M940>0,Template!M940,-Template!N940)","v":0},null,null,null,{"$f":"VLOOKUP(G928,'Account mapping'!A:D,4,0)","v":{"$error":"#N/A"}}]
[{"$f":"LEFT(Template!A941,4)","v":""},{"$f":"VLOOKUP(A929,'Structure mapping'!K:V,7,0)","v":{"$error":"#N/A"}},{"$f":"LEFT(Template!B941,5)","v":""},{"$f":"VLOOKUP(C929,'Structure mapping'!F:J,5,0)","v":{"$error":"#N/A"}},{"$f":"LEFT(Template!C941,7)","v":""},{"$f":"VLOOKUP(E929,'Structure mapping'!A:E,5,0)","v":{"$error":"#N/A"}},{"$f":"LEFT(Template!D941,6)","v":""},{"$f":"VLOOKUP(G929,'Account mapping'!A:E,5,0)","v":{"$error":"#N/A"}},{"$f":"LEFT(Template!E941,2)","v":""},{"$f":"VLOOKUP(I929,'Structure mapping'!X:AB,5,0)","v":{"$error":"#N/A"}},{"$f":"LEFT(Template!F941,3)","v":""},{"$f":"VLOOKUP(K929,'Structure mapping'!AC:AG,5,0)","v":{"$error":"#N/A"}},{"$f":"LEFT(Template!G941,10)","v":""},{"$f":"VLOOKUP(M929,'Structure mapping'!AH:AL,5,0)","v":{"$error":"#N/A"}},{"$f":"LEFT(Template!H941,6)","v":""},{"$f":"VLOOKUP(O929,'Structure mapping'!AM:AQ,5,0)","v":{"$error":"#N/A"}},null,null,null,null,{"$f":"IF(Template!O941=\"\",\"\",Template!O941)","v":""},"Aug-24 pending entries",{"$f":"TEXT(Template!$B$9,\"mm/dd/yyy\")","v":"08/01/2024"},null,null,null,null,{"$f":"IF(Template!M941>0,Template!M941,-Template!N941)","v":0},null,null,null,{"$f":"VLOOKUP(G929,'Account mapping'!A:D,4,0)","v":{"$error":"#N/A"}}]
[{"$f":"LEFT(Template!A942,4)","v":""},{"$f":"VLOOKUP(A930,'Structure mapping'!K:V,7,0)","v":{"$error":"#N/A"}},{"$f":"LEFT(Template!B942,5)","v":""},{"$f":"VLOOKUP(C930,'Structure mapping'!F:J,5,0)","v":{"$error":"#N/A"}},{"$f":"LEFT(Template!C942,7)","v":""},{"$f":"VLOOKUP(E930,'Structure mapping'!A:E,5,0)","v":{"$error":"#N/A"}},{"$f":"LEFT(Template!D942,6)","v":""},{"$f":"VLOOKUP(G930,'Account mapping'!A:E,5,0)","v":{"$error":"#N/A"}},{"$f":"LEFT(Template!E942,2)","v":""},{"$f":"VLOOKUP(I930,'Structure mapping'!X:AB,5,0)","v":{"$error":"#N/A"}},{"$f":"LEFT(Template!F942,3)","v":""},{"$f":"VLOOKUP(K930,'Structure mapping'!AC:AG,5,0)","v":{"$error":"#N/A"}},{"$f":"LEFT(Template!G942,10)","v":""},{"$f":"VLOOKUP(M930,'Structure mapping'!AH:AL,5,0)","v":{"$error":"#N/A"}},{"$f":"LEFT(Template!H942,6)","v":""},{"$f":"VLOOKUP(O930,'Structure mapping'!AM:AQ,5,0)","v":{"$error":"#N/A"}},null,null,null,null,{"$f":"IF(Template!O942=\"\",\"\",Template!O942)","v":""},"Aug-24 pending entries",{"$f":"TEXT(Template!$B$9,\"mm/dd/yyy\")","v":"08/01/2024"},null,null,null,null,{"$f":"IF(Template!M942>0,Template!M942,-Template!N942)","v":0},null,null,null,{"$f":"VLOOKUP(G930,'Account mapping'!A:D,4,0)","v":{"$error":"#N/A"}}]
[{"$f":"LEFT(Template!A943,4)","v":""},{"$f":"VLOOKUP(A931,'Structure mapping'!K:V,7,0)","v":{"$error":"#N/A"}},{"$f":"LEFT(Template!B943,5)","v":""},{"$f":"VLOOKUP(C931,'Structure mapping'!F:J,5,0)","v":{"$error":"#N/A"}},{"$f":"LEFT(Template!C943,7)","v":""},{"$f":"VLOOKUP(E931,'Structure mapping'!A:E,5,0)","v":{"$error":"#N/A"}},{"$f":"LEFT(Template!D943,6)","v":""},{"$f":"VLOOKUP(G931,'Account mapping'!A:E,5,0)","v":{"$error":"#N/A"}},{"$f":"LEFT(Template!E943,2)","v":""},{"$f":"VLOOKUP(I931,'Structure mapping'!X:AB,5,0)","v":{"$error":"#N/A"}},{"$f":"LEFT(Template!F943,3)","v":""},{"$f":"VLOOKUP(K931,'Structure mapping'!AC:AG,5,0)","v":{"$error":"#N/A"}},{"$f":"LEFT(Template!G943,10)","v":""},{"$f":"VLOOKUP(M931,'Structure mapping'!AH:AL,5,0)","v":{"$error":"#N/A"}},{"$f":"LEFT(Template!H943,6)","v":""},{"$f":"VLOOKUP(O931,'Structure mapping'!AM:AQ,5,0)","v":{"$error":"#N/A"}},null,null,null,null,{"$f":"IF(Template!O943=\"\",\"\",Template!O943)","v":""},"Aug-24 pending entries",{"$f":"TEXT(Template!$B$9,\"mm/dd/yyy\")","v":"08/01/2024"},null,null,null,null,{"$f":"IF(Template!M943>0,Template!M943,-Template!N943)","v":0},null,null,null,{"$f":"VLOOKUP(G931,'Account mapping'!A:D,4,0)","v":{"$error":"#N/A"}}]
[{"$f":"LEFT(Template!A944,4)","v":""},{"$f":"VLOOKUP(A932,'Structure mapping'!K:V,7,0)","v":{"$error":"#N/A"}},{"$f":"LEFT(Template!B944,5)","v":""},{"$f":"VLOOKUP(C932,'Structure mapping'!F:J,5,0)","v":{"$error":"#N/A"}},{"$f":"LEFT(Template!C944,7)","v":""},{"$f":"VLOOKUP(E932,'Structure mapping'!A:E,5,0)","v":{"$error":"#N/A"}},{"$f":"LEFT(Template!D944,6)","v":""},{"$f":"VLOOKUP(G932,'Account mapping'!A:E,5,0)","v":{"$error":"#N/A"}},{"$f":"LEFT(Template!E944,2)","v":""},{"$f":"VLOOKUP(I932,'Structure mapping'!X:AB,5,0)","v":{"$error":"#N/A"}},{"$f":"LEFT(Template!F944,3)","v":""},{"$f":"VLOOKUP(K932,'Structure mapping'!AC:AG,5,0)","v":{"$error":"#N/A"}},{"$f":"LEFT(Template!G944,10)","v":""},{"$f":"VLOOKUP(M932,'Structure mapping'!AH:AL,5,0)","v":{"$error":"#N/A"}},{"$f":"LEFT(Template!H944,6)","v":""},{"$f":"VLOOKUP(O932,'Structure mapping'!AM:AQ,5,0)","v":{"$error":"#N/A"}},null,null,null,null,{"$f":"IF(Template!O944=\"\",\"\",Template!O944)","v":""},"Aug-24 pending entries",{"$f":"TEXT(Template!$B$9,\"mm/dd/yyy\")","v":"08/01/2024"},null,null,null,null,{"$f":"IF(Template!M944>0,Template!M944,-Template!N944)","v":0},null,null,null,{"$f":"VLOOKUP(G932,'Account mapping'!A:D,4,0)","v":{"$error":"#N/A"}}]
[{"$f":"LEFT(Template!A945,4)","v":""},{"$f":"VLOOKUP(A933,'Structure mapping'!K:V,7,0)","v":{"$error":"#N/A"}},{"$f":"LEFT(Template!B945,5)","v":""},{"$f":"VLOOKUP(C933,'Structure mapping'!F:J,5,0)","v":{"$error":"#N/A"}},{"$f":"LEFT(Template!C945,7)","v":""},{"$f":"VLOOKUP(E933,'Structure mapping'!A:E,5,0)","v":{"$error":"#N/A"}},{"$f":"LEFT(Template!D945,6)","v":""},{"$f":"VLOOKUP(G933,'Account mapping'!A:E,5,0)","v":{"$error":"#N/A"}},{"$f":"LEFT(Template!E945,2)","v":""},{"$f":"VLOOKUP(I933,'Structure mapping'!X:AB,5,0)","v":{"$error":"#N/A"}},{"$f":"LEFT(Template!F945,3)","v":""},{"$f":"VLOOKUP(K933,'Structure mapping'!AC:AG,5,0)","v":{"$error":"#N/A"}},{"$f":"LEFT(Template!G945,10)","v":""},{"$f":"VLOOKUP(M933,'Structure mapping'!AH:AL,5,0)","v":{"$error":"#N/A"}},{"$f":"LEFT(Template!H945,6)","v":""},{"$f":"VLOOKUP(O933,'Structure mapping'!AM:AQ,5,0)","v":{"$error":"#N/A"}},null,null,null,null,{"$f":"IF(Template!O945=\"\",\"\",Template!O945)","v":""},"Aug-24 pending entries",{"$f":"TEXT(Template!$B$9,\"mm/dd/yyy\")","v":"08/01/2024"},null,null,null,null,{"$f":"IF(Template!M945>0,Template!M945,-Template!N945)","v":0},null,null,null,{"$f":"VLOOKUP(G933,'Account mapping'!A:D,4,0)","v":{"$error":"#N/A"}}]
[{"$f":"LEFT(Template!A946,4)","v":""},{"$f":"VLOOKUP(A934,'Structure mapping'!K:V,7,0)","v":{"$error":"#N/A"}},{"$f":"LEFT(Template!B946,5)","v":""},{"$f":"VLOOKUP(C934,'Structure mapping'!F:J,5,0)","v":{"$error":"#N/A"}},{"$f":"LEFT(Template!C946,7)","v":""},{"$f":"VLOOKUP(E934,'Structure mapping'!A:E,5,0)","v":{"$error":"#N/A"}},{"$f":"LEFT(Template!D946,6)","v":""},{"$f":"VLOOKUP(G934,'Account mapping'!A:E,5,0)","v":{"$error":"#N/A"}},{"$f":"LEFT(Template!E946,2)","v":""},{"$f":"VLOOKUP(I934,'Structure mapping'!X:AB,5,0)","v":{"$error":"#N/A"}},{"$f":"LEFT(Template!F946,3)","v":""},{"$f":"VLOOKUP(K934,'Structure mapping'!AC:AG,5,0)","v":{"$error":"#N/A"}},{"$f":"LEFT(Template!G946,10)","v":""},{"$f":"VLOOKUP(M934,'Structure mapping'!AH:AL,5,0)","v":{"$error":"#N/A"}},{"$f":"LEFT(Template!H946,6)","v":""},{"$f":"VLOOKUP(O934,'Structure mapping'!AM:AQ,5,0)","v":{"$error":"#N/A"}},null,null,null,null,{"$f":"IF(Template!O946=\"\",\"\",Template!O946)","v":""},"Aug-24 pending entries",{"$f":"TEXT(Template!$B$9,\"mm/dd/yyy\")","v":"08/01/2024"},null,null,null,null,{"$f":"IF(Template!M946>0,Template!M946,-Template!N946)","v":0},null,null,null,{"$f":"VLOOKUP(G934,'Account mapping'!A:D,4,0)","v":{"$error":"#N/A"}}]
[{"$f":"LEFT(Template!A947,4)","v":""},{"$f":"VLOOKUP(A935,'Structure mapping'!K:V,7,0)","v":{"$error":"#N/A"}},{"$f":"LEFT(Template!B947,5)","v":""},{"$f":"VLOOKUP(C935,'Structure mapping'!F:J,5,0)","v":{"$error":"#N/A"}},{"$f":"LEFT(Template!C947,7)","v":""},{"$f":"VLOOKUP(E935,'Structure mapping'!A:E,5,0)","v":{"$error":"#N/A"}},{"$f":"LEFT(Template!D947,6)","v":""},{"$f":"VLOOKUP(G935,'Account mapping'!A:E,5,0)","v":{"$error":"#N/A"}},{"$f":"LEFT(Template!E947,2)","v":""},{"$f":"VLOOKUP(I935,'Structure mapping'!X:AB,5,0)","v":{"$error":"#N/A"}},{"$f":"LEFT(Template!F947,3)","v":""},{"$f":"VLOOKUP(K935,'Structure mapping'!AC:AG,5,0)","v":{"$error":"#N/A"}},{"$f":"LEFT(Template!G947,10)","v":""},{"$f":"VLOOKUP(M935,'Structure mapping'!AH:AL,5,0)","v":{"$error":"#N/A"}},{"$f":"LEFT(Template!H947,6)","v":""},{"$f":"VLOOKUP(O935,'Structure mapping'!AM:AQ,5,0)","v":{"$error":"#N/A"}},null,null,null,null,{"$f":"IF(Template!O947=\"\",\"\",Template!O947)","v":""},"Aug-24 pending entries",{"$f":"TEXT(Template!$B$9,\"mm/dd/yyy\")","v":"08/01/2024"},null,null,null,null,{"$f":"IF(Template!M947>0,Template!M947,-Template!N947)","v":0},null,null,null,{"$f":"VLOOKUP(G935,'Account mapping'!A:D,4,0)","v":{"$error":"#N/A"}}]
[{"$f":"LEFT(Template!A948,4)","v":""},{"$f":"VLOOKUP(A936,'Structure mapping'!K:V,7,0)","v":{"$error":"#N/A"}},{"$f":"LEFT(Template!B948,5)","v":""},{"$f":"VLOOKUP(C936,'Structure mapping'!F:J,5,0)","v":{"$error":"#N/A"}},{"$f":"LEFT(Template!C948,7)","v":""},{"$f":"VLOOKUP(E936,'Structure mapping'!A:E,5,0)","v":{"$error":"#N/A"}},{"$f":"LEFT(Template!D948,6)","v":""},{"$f":"VLOOKUP(G936,'Account mapping'!A:E,5,0)","v":{"$error":"#N/A"}},{"$f":"LEFT(Template!E948,2)","v":""},{"$f":"VLOOKUP(I936,'Structure mapping'!X:AB,5,0)","v":{"$error":"#N/A"}},{"$f":"LEFT(Template!F948,3)","v":""},{"$f":"VLOOKUP(K936,'Structure mapping'!AC:AG,5,0)","v":{"$error":"#N/A"}},{"$f":"LEFT(Template!G948,10)","v":""},{"$f":"VLOOKUP(M936,'Structure mapping'!AH:AL,5,0)","v":{"$error":"#N/A"}},{"$f":"LEFT(Template!H948,6)","v":""},{"$f":"VLOOKUP(O936,'Structure mapping'!AM:AQ,5,0)","v":{"$error":"#N/A"}},null,null,null,null,{"$f":"IF(Template!O948=\"\",\"\",Template!O948)","v":""},"Aug-24 pending entries",{"$f":"TEXT(Template!$B$9,\"mm/dd/yyy\")","v":"08/01/2024"},null,null,null,null,{"$f":"IF(Template!M948>0,Template!M948,-Template!N948)","v":0},null,null,null,{"$f":"VLOOKUP(G936,'Account mapping'!A:D,4,0)","v":{"$error":"#N/A"}}]
[{"$f":"LEFT(Template!A949,4)","v":""},{"$f":"VLOOKUP(A937,'Structure mapping'!K:V,7,0)","v":{"$error":"#N/A"}},{"$f":"LEFT(Template!B949,5)","v":""},{"$f":"VLOOKUP(C937,'Structure mapping'!F:J,5,0)","v":{"$error":"#N/A"}},{"$f":"LEFT(Template!C949,7)","v":""},{"$f":"VLOOKUP(E937,'Structure mapping'!A:E,5,0)","v":{"$error":"#N/A"}},{"$f":"LEFT(Template!D949,6)","v":""},{"$f":"VLOOKUP(G937,'Account mapping'!A:E,5,0)","v":{"$error":"#N/A"}},{"$f":"LEFT(Template!E949,2)","v":""},{"$f":"VLOOKUP(I937,'Structure mapping'!X:AB,5,0)","v":{"$error":"#N/A"}},{"$f":"LEFT(Template!F949,3)","v":""},{"$f":"VLOOKUP(K937,'Structure mapping'!AC:AG,5,0)","v":{"$error":"#N/A"}},{"$f":"LEFT(Template!G949,10)","v":""},{"$f":"VLOOKUP(M937,'Structure mapping'!AH:AL,5,0)","v":{"$error":"#N/A"}},{"$f":"LEFT(Template!H949,6)","v":""},{"$f":"VLOOKUP(O937,'Structure mapping'!AM:AQ,5,0)","v":{"$error":"#N/A"}},null,null,null,null,{"$f":"IF(Template!O949=\"\",\"\",Template!O949)","v":""},"Aug-24 pending entries",{"$f":"TEXT(Template!$B$9,\"mm/dd/yyy\")","v":"08/01/2024"},null,null,null,null,{"$f":"IF(Template!M949>0,Template!M949,-Template!N949)","v":0},null,null,null,{"$f":"VLOOKUP(G937,'Account mapping'!A:D,4,0)","v":{"$error":"#N/A"}}]
[{"$f":"LEFT(Template!A950,4)","v":""},{"$f":"VLOOKUP(A938,'Structure mapping'!K:V,7,0)","v":{"$error":"#N/A"}},{"$f":"LEFT(Template!B950,5)","v":""},{"$f":"VLOOKUP(C938,'Structure mapping'!F:J,5,0)","v":{"$error":"#N/A"}},{"$f":"LEFT(Template!C950,7)","v":""},{"$f":"VLOOKUP(E938,'Structure mapping'!A:E,5,0)","v":{"$error":"#N/A"}},{"$f":"LEFT(Template!D950,6)","v":""},{"$f":"VLOOKUP(G938,'Account mapping'!A:E,5,0)","v":{"$error":"#N/A"}},{"$f":"LEFT(Template!E950,2)","v":""},{"$f":"VLOOKUP(I938,'Structure mapping'!X:AB,5,0)","v":{"$error":"#N/A"}},{"$f":"LEFT(Template!F950,3)","v":""},{"$f":"VLOOKUP(K938,'Structure mapping'!AC:AG,5,0)","v":{"$error":"#N/A"}},{"$f":"LEFT(Template!G950,10)","v":""},{"$f":"VLOOKUP(M938,'Structure mapping'!AH:AL,5,0)","v":{"$error":"#N/A"}},{"$f":"LEFT(Template!H950,6)","v":""},{"$f":"VLOOKUP(O938,'Structure mapping'!AM:AQ,5,0)","v":{"$error":"#N/A"}},null,null,null,null,{"$f":"IF(Template!O950=\"\",\"\",Template!O950)","v":""},"Aug-24 pending entries",{"$f":"TEXT(Template!$B$9,\"mm/dd/yyy\")","v":"08/01/2024"},null,null,null,null,{"$f":"IF(Template!M950>0,Template!M950,-Template!N950)","v":0},null,null,null,{"$f":"VLOOKUP(G938,'Account mapping'!A:D,4,0)","v":{"$error":"#N/A"}}]
[{"$f":"LEFT(Template!A951,4)","v":""},{"$f":"VLOOKUP(A939,'Structure mapping'!K:V,7,0)","v":{"$error":"#N/A"}},{"$f":"LEFT(Template!B951,5)","v":""},{"$f":"VLOOKUP(C939,'Structure mapping'!F:J,5,0)","v":{"$error":"#N/A"}},{"$f":"LEFT(Template!C951,7)","v":""},{"$f":"VLOOKUP(E939,'Structure mapping'!A:E,5,0)","v":{"$error":"#N/A"}},{"$f":"LEFT(Template!D951,6)","v":""},{"$f":"VLOOKUP(G939,'Account mapping'!A:E,5,0)","v":{"$error":"#N/A"}},{"$f":"LEFT(Template!E951,2)","v":""},{"$f":"VLOOKUP(I939,'Structure mapping'!X:AB,5,0)","v":{"$error":"#N/A"}},{"$f":"LEFT(Template!F951,3)","v":""},{"$f":"VLOOKUP(K939,'Structure mapping'!AC:AG,5,0)","v":{"$error":"#N/A"}},{"$f":"LEFT(Template!G951,10)","v":""},{"$f":"VLOOKUP(M939,'Structure mapping'!AH:AL,5,0)","v":{"$error":"#N/A"}},{"$f":"LEFT(Template!H951,6)","v":""},{"$f":"VLOOKUP(O939,'Structure mapping'!AM:AQ,5,0)","v":{"$error":"#N/A"}},null,null,null,null,{"$f":"IF(Template!O951=\"\",\"\",Template!O951)","v":""},"Aug-24 pending entries",{"$f":"TEXT(Template!$B$9,\"mm/dd/yyy\")","v":"08/01/2024"},null,null,null,null,{"$f":"IF(Template!M951>0,Template!M951,-Template!N951)","v":0},null,null,null,{"$f":"VLOOKUP(G939,'Account mapping'!A:D,4,0)","v":{"$error":"#N/A"}}]
[{"$f":"LEFT(Template!A952,4)","v":""},{"$f":"VLOOKUP(A940,'Structure mapping'!K:V,7,0)","v":{"$error":"#N/A"}},{"$f":"LEFT(Template!B952,5)","v":""},{"$f":"VLOOKUP(C940,'Structure mapping'!F:J,5,0)","v":{"$error":"#N/A"}},{"$f":"LEFT(Template!C952,7)","v":""},{"$f":"VLOOKUP(E940,'Structure mapping'!A:E,5,0)","v":{"$error":"#N/A"}},{"$f":"LEFT(Template!D952,6)","v":""},{"$f":"VLOOKUP(G940,'Account mapping'!A:E,5,0)","v":{"$error":"#N/A"}},{"$f":"LEFT(Template!E952,2)","v":""},{"$f":"VLOOKUP(I940,'Structure mapping'!X:AB,5,0)","v":{"$error":"#N/A"}},{"$f":"LEFT(Template!F952,3)","v":""},{"$f":"VLOOKUP(K940,'Structure mapping'!AC:AG,5,0)","v":{"$error":"#N/A"}},{"$f":"LEFT(Template!G952,10)","v":""},{"$f":"VLOOKUP(M940,'Structure mapping'!AH:AL,5,0)","v":{"$error":"#N/A"}},{"$f":"LEFT(Template!H952,6)","v":""},{"$f":"VLOOKUP(O940,'Structure mapping'!AM:AQ,5,0)","v":{"$error":"#N/A"}},null,null,null,null,{"$f":"IF(Template!O952=\"\",\"\",Template!O952)","v":""},"Aug-24 pending entries",{"$f":"TEXT(Template!$B$9,\"mm/dd/yyy\")","v":"08/01/2024"},null,null,null,null,{"$f":"IF(Template!M952>0,Template!M952,-Template!N952)","v":0},null,null,null,{"$f":"VLOOKUP(G940,'Account mapping'!A:D,4,0)","v":{"$error":"#N/A"}}]
[{"$f":"LEFT(Template!A953,4)","v":""},{"$f":"VLOOKUP(A941,'Structure mapping'!K:V,7,0)","v":{"$error":"#N/A"}},{"$f":"LEFT(Template!B953,5)","v":""},{"$f":"VLOOKUP(C941,'Structure mapping'!F:J,5,0)","v":{"$error":"#N/A"}},{"$f":"LEFT(Template!C953,7)","v":""},{"$f":"VLOOKUP(E941,'Structure mapping'!A:E,5,0)","v":{"$error":"#N/A"}},{"$f":"LEFT(Template!D953,6)","v":""},{"$f":"VLOOKUP(G941,'Account mapping'!A:E,5,0)","v":{"$error":"#N/A"}},{"$f":"LEFT(Template!E953,2)","v":""},{"$f":"VLOOKUP(I941,'Structure mapping'!X:AB,5,0)","v":{"$error":"#N/A"}},{"$f":"LEFT(Template!F953,3)","v":""},{"$f":"VLOOKUP(K941,'Structure mapping'!AC:AG,5,0)","v":{"$error":"#N/A"}},{"$f":"LEFT(Template!G953,10)","v":""},{"$f":"VLOOKUP(M941,'Structure mapping'!AH:AL,5,0)","v":{"$error":"#N/A"}},{"$f":"LEFT(Template!H953,6)","v":""},{"$f":"VLOOKUP(O941,'Structure mapping'!AM:AQ,5,0)","v":{"$error":"#N/A"}},null,null,null,null,{"$f":"IF(Template!O953=\"\",\"\",Template!O953)","v":""},"Aug-24 pending entries",{"$f":"TEXT(Template!$B$9,\"mm/dd/yyy\")","v":"08/01/2024"},null,null,null,null,{"$f":"IF(Template!M953>0,Template!M953,-Template!N953)","v":0},null,null,null,{"$f":"VLOOKUP(G941,'Account mapping'!A:D,4,0)","v":{"$error":"#N/A"}}]
[{"$f":"LEFT(Template!A954,4)","v":""},{"$f":"VLOOKUP(A942,'Structure mapping'!K:V,7,0)","v":{"$error":"#N/A"}},{"$f":"LEFT(Template!B954,5)","v":""},{"$f":"VLOOKUP(C942,'Structure mapping'!F:J,5,0)","v":{"$error":"#N/A"}},{"$f":"LEFT(Template!C954,7)","v":""},{"$f":"VLOOKUP(E942,'Structure mapping'!A:E,5,0)","v":{"$error":"#N/A"}},{"$f":"LEFT(Template!D954,6)","v":""},{"$f":"VLOOKUP(G942,'Account mapping'!A:E,5,0)","v":{"$error":"#N/A"}},{"$f":"LEFT(Template!E954,2)","v":""},{"$f":"VLOOKUP(I942,'Structure mapping'!X:AB,5,0)","v":{"$error":"#N/A"}},{"$f":"LEFT(Template!F954,3)","v":""},{"$f":"VLOOKUP(K942,'Structure mapping'!AC:AG,5,0)","v":{"$error":"#N/A"}},{"$f":"LEFT(Template!G954,10)","v":""},{"$f":"VLOOKUP(M942,'Structure mapping'!AH:AL,5,0)","v":{"$error":"#N/A"}},{"$f":"LEFT(Template!H954,6)","v":""},{"$f":"VLOOKUP(O942,'Structure mapping'!AM:AQ,5,0)","v":{"$error":"#N/A"}},null,null,null,null,{"$f":"IF(Template!O954=\"\",\"\",Template!O954)","v":""},"Aug-24 pending entries",{"$f":"TEXT(Template!$B$9,\"mm/dd/yyy\")","v":"08/01/2024"},null,null,null,null,{"$f":"IF(Template!M954>0,Template!M954,-Template!N954)","v":0},null,null,null,{"$f":"VLOOKUP(G942,'Account mapping'!A:D,4,0)","v":{"$error":"#N/A"}}]
[{"$f":"LEFT(Template!A955,4)","v":""},{"$f":"VLOOKUP(A943,'Structure mapping'!K:V,7,0)","v":{"$error":"#N/A"}},{"$f":"LEFT(Template!B955,5)","v":""},{"$f":"VLOOKUP(C943,'Structure mapping'!F:J,5,0)","v":{"$error":"#N/A"}},{"$f":"LEFT(Template!C955,7)","v":""},{"$f":"VLOOKUP(E943,'Structure mapping'!A:E,5,0)","v":{"$error":"#N/A"}},{"$f":"LEFT(Template!D955,6)","v":""},{"$f":"VLOOKUP(G943,'Account mapping'!A:E,5,0)","v":{"$error":"#N/A"}},{"$f":"LEFT(Template!E955,2)","v":""},{"$f":"VLOOKUP(I943,'Structure mapping'!X:AB,5,0)","v":{"$error":"#N/A"}},{"$f":"LEFT(Template!F955,3)","v":""},{"$f":"VLOOKUP(K943,'Structure mapping'!AC:AG,5,0)","v":{"$error":"#N/A"}},{"$f":"LEFT(Template!G955,10)","v":""},{"$f":"VLOOKUP(M943,'Structure mapping'!AH:AL,5,0)","v":{"$error":"#N/A"}},{"$f":"LEFT(Template!H955,6)","v":""},{"$f":"VLOOKUP(O943,'Structure mapping'!AM:AQ,5,0)","v":{"$error":"#N/A"}},null,null,null,null,{"$f":"IF(Template!O955=\"\",\"\",Template!O955)","v":""},"Aug-24 pending entries",{"$f":"TEXT(Template!$B$9,\"mm/dd/yyy\")","v":"08/01/2024"},null,null,null,null,{"$f":"IF(Template!M955>0,Template!M955,-Template!N955)","v":0},null,null,null,{"$f":"VLOOKUP(G943,'Account mapping'!A:D,4,0)","v":{"$error":"#N/A"}}]
[{"$f":"LEFT(Template!A956,4)","v":""},{"$f":"VLOOKUP(A944,'Structure mapping'!K:V,7,0)","v":{"$error":"#N/A"}},{"$f":"LEFT(Template!B956,5)","v":""},{"$f":"VLOOKUP(C944,'Structure mapping'!F:J,5,0)","v":{"$error":"#N/A"}},{"$f":"LEFT(Template!C956,7)","v":""},{"$f":"VLOOKUP(E944,'Structure mapping'!A:E,5,0)","v":{"$error":"#N/A"}},{"$f":"LEFT(Template!D956,6)","v":""},{"$f":"VLOOKUP(G944,'Account mapping'!A:E,5,0)","v":{"$error":"#N/A"}},{"$f":"LEFT(Template!E956,2)","v":""},{"$f":"VLOOKUP(I944,'Structure mapping'!X:AB,5,0)","v":{"$error":"#N/A"}},{"$f":"LEFT(Template!F956,3)","v":""},{"$f":"VLOOKUP(K944,'Structure mapping'!AC:AG,5,0)","v":{"$error":"#N/A"}},{"$f":"LEFT(Template!G956,10)","v":""},{"$f":"VLOOKUP(M944,'Structure mapping'!AH:AL,5,0)","v":{"$error":"#N/A"}},{"$f":"LEFT(Template!H956,6)","v":""},{"$f":"VLOOKUP(O944,'Structure mapping'!AM:AQ,5,0)","v":{"$error":"#N/A"}},null,null,null,null,{"$f":"IF(Template!O956=\"\",\"\",Template!O956)","v":""},"Aug-24 pending entries",{"$f":"TEXT(Template!$B$9,\"mm/dd/yyy\")","v":"08/01/2024"},null,null,null,null,{"$f":"IF(Template!M956>0,Template!M956,-Template!N956)","v":0},null,null,null,{"$f":"VLOOKUP(G944,'Account mapping'!A:D,4,0)","v":{"$error":"#N/A"}}]
[{"$f":"LEFT(Template!A957,4)","v":""},{"$f":"VLOOKUP(A945,'Structure mapping'!K:V,7,0)","v":{"$error":"#N/A"}},{"$f":"LEFT(Template!B957,5)","v":""},{"$f":"VLOOKUP(C945,'Structure mapping'!F:J,5,0)","v":{"$error":"#N/A"}},{"$f":"LEFT(Template!C957,7)","v":""},{"$f":"VLOOKUP(E945,'Structure mapping'!A:E,5,0)","v":{"$error":"#N/A"}},{"$f":"LEFT(Template!D957,6)","v":""},{"$f":"VLOOKUP(G945,'Account mapping'!A:E,5,0)","v":{"$error":"#N/A"}},{"$f":"LEFT(Template!E957,2)","v":""},{"$f":"VLOOKUP(I945,'Structure mapping'!X:AB,5,0)","v":{"$error":"#N/A"}},{"$f":"LEFT(Template!F957,3)","v":""},{"$f":"VLOOKUP(K945,'Structure mapping'!AC:AG,5,0)","v":{"$error":"#N/A"}},{"$f":"LEFT(Template!G957,10)","v":""},{"$f":"VLOOKUP(M945,'Structure mapping'!AH:AL,5,0)","v":{"$error":"#N/A"}},{"$f":"LEFT(Template!H957,6)","v":""},{"$f":"VLOOKUP(O945,'Structure mapping'!AM:AQ,5,0)","v":{"$error":"#N/A"}},null,null,null,null,{"$f":"IF(Template!O957=\"\",\"\",Template!O957)","v":""},"Aug-24 pending entries",{"$f":"TEXT(Template!$B$9,\"mm/dd/yyy\")","v":"08/01/2024"},null,null,null,null,{"$f":"IF(Template!M957>0,Template!M957,-Template!N957)","v":0},null,null,null,{"$f":"VLOOKUP(G945,'Account mapping'!A:D,4,0)","v":{"$error":"#N/A"}}]
[{"$f":"LEFT(Template!A958,4)","v":""},{"$f":"VLOOKUP(A946,'Structure mapping'!K:V,7,0)","v":{"$error":"#N/A"}},{"$f":"LEFT(Template!B958,5)","v":""},{"$f":"VLOOKUP(C946,'Structure mapping'!F:J,5,0)","v":{"$error":"#N/A"}},{"$f":"LEFT(Template!C958,7)","v":""},{"$f":"VLOOKUP(E946,'Structure mapping'!A:E,5,0)","v":{"$error":"#N/A"}},{"$f":"LEFT(Template!D958,6)","v":""},{"$f":"VLOOKUP(G946,'Account mapping'!A:E,5,0)","v":{"$error":"#N/A"}},{"$f":"LEFT(Template!E958,2)","v":""},{"$f":"VLOOKUP(I946,'Structure mapping'!X:AB,5,0)","v":{"$error":"#N/A"}},{"$f":"LEFT(Template!F958,3)","v":""},{"$f":"VLOOKUP(K946,'Structure mapping'!AC:AG,5,0)","v":{"$error":"#N/A"}},{"$f":"LEFT(Template!G958,10)","v":""},{"$f":"VLOOKUP(M946,'Structure mapping'!AH:AL,5,0)","v":{"$error":"#N/A"}},{"$f":"LEFT(Template!H958,6)","v":""},{"$f":"VLOOKUP(O946,'Structure mapping'!AM:AQ,5,0)","v":{"$error":"#N/A"}},null,null,null,null,{"$f":"IF(Template!O958=\"\",\"\",Template!O958)","v":""},"Aug-24 pending entries",{"$f":"TEXT(Template!$B$9,\"mm/dd/yyy\")","v":"08/01/2024"},null,null,null,null,{"$f":"IF(Template!M958>0,Template!M958,-Template!N958)","v":0},null,null,null,{"$f":"VLOOKUP(G946,'Account mapping'!A:D,4,0)","v":{"$error":"#N/A"}}]
[{"$f":"LEFT(Template!A959,4)","v":""},{"$f":"VLOOKUP(A947,'Structure mapping'!K:V,7,0)","v":{"$error":"#N/A"}},{"$f":"LEFT(Template!B959,5)","v":""},{"$f":"VLOOKUP(C947,'Structure mapping'!F:J,5,0)","v":{"$error":"#N/A"}},{"$f":"LEFT(Template!C959,7)","v":""},{"$f":"VLOOKUP(E947,'Structure mapping'!A:E,5,0)","v":{"$error":"#N/A"}},{"$f":"LEFT(Template!D959,6)","v":""},{"$f":"VLOOKUP(G947,'Account mapping'!A:E,5,0)","v":{"$error":"#N/A"}},{"$f":"LEFT(Template!E959,2)","v":""},{"$f":"VLOOKUP(I947,'Structure mapping'!X:AB,5,0)","v":{"$error":"#N/A"}},{"$f":"LEFT(Template!F959,3)","v":""},{"$f":"VLOOKUP(K947,'Structure mapping'!AC:AG,5,0)","v":{"$error":"#N/A"}},{"$f":"LEFT(Template!G959,10)","v":""},{"$f":"VLOOKUP(M947,'Structure mapping'!AH:AL,5,0)","v":{"$error":"#N/A"}},{"$f":"LEFT(Template!H959,6)","v":""},{"$f":"VLOOKUP(O947,'Structure mapping'!AM:AQ,5,0)","v":{"$error":"#N/A"}},null,null,null,null,{"$f":"IF(Template!O959=\"\",\"\",Template!O959)","v":""},"Aug-24 pending entries",{"$f":"TEXT(Template!$B$9,\"mm/dd/yyy\")","v":"08/01/2024"},null,null,null,null,{"$f":"IF(Template!M959>0,Template!M959,-Template!N959)","v":0},null,null,null,{"$f":"VLOOKUP(G947,'Account mapping'!A:D,4,0)","v":{"$error":"#N/A"}}]
[{"$f":"LEFT(Template!A960,4)","v":""},{"$f":"VLOOKUP(A948,'Structure mapping'!K:V,7,0)","v":{"$error":"#N/A"}},{"$f":"LEFT(Template!B960,5)","v":""},{"$f":"VLOOKUP(C948,'Structure mapping'!F:J,5,0)","v":{"$error":"#N/A"}},{"$f":"LEFT(Template!C960,7)","v":""},{"$f":"VLOOKUP(E948,'Structure mapping'!A:E,5,0)","v":{"$error":"#N/A"}},{"$f":"LEFT(Template!D960,6)","v":""},{"$f":"VLOOKUP(G948,'Account mapping'!A:E,5,0)","v":{"$error":"#N/A"}},{"$f":"LEFT(Template!E960,2)","v":""},{"$f":"VLOOKUP(I948,'Structure mapping'!X:AB,5,0)","v":{"$error":"#N/A"}},{"$f":"LEFT(Template!F960,3)","v":""},{"$f":"VLOOKUP(K948,'Structure mapping'!AC:AG,5,0)","v":{"$error":"#N/A"}},{"$f":"LEFT(Template!G960,10)","v":""},{"$f":"VLOOKUP(M948,'Structure mapping'!AH:AL,5,0)","v":{"$error":"#N/A"}},{"$f":"LEFT(Template!H960,6)","v":""},{"$f":"VLOOKUP(O948,'Structure mapping'!AM:AQ,5,0)","v":{"$error":"#N/A"}},null,null,null,null,{"$f":"IF(Template!O960=\"\",\"\",Template!O960)","v":""},"Aug-24 pending entries",{"$f":"TEXT(Template!$B$9,\"mm/dd/yyy\")","v":"08/01/2024"},null,null,null,null,{"$f":"IF(Template!M960>0,Template!M960,-Template!N960)","v":0},null,null,null,{"$f":"VLOOKUP(G948,'Account mapping'!A:D,4,0)","v":{"$error":"#N/A"}}]
[{"$f":"LEFT(Template!A961,4)","v":""},{"$f":"VLOOKUP(A949,'Structure mapping'!K:V,7,0)","v":{"$error":"#N/A"}},{"$f":"LEFT(Template!B961,5)","v":""},{"$f":"VLOOKUP(C949,'Structure mapping'!F:J,5,0)","v":{"$error":"#N/A"}},{"$f":"LEFT(Template!C961,7)","v":""},{"$f":"VLOOKUP(E949,'Structure mapping'!A:E,5,0)","v":{"$error":"#N/A"}},{"$f":"LEFT(Template!D961,6)","v":""},{"$f":"VLOOKUP(G949,'Account mapping'!A:E,5,0)","v":{"$error":"#N/A"}},{"$f":"LEFT(Template!E961,2)","v":""},{"$f":"VLOOKUP(I949,'Structure mapping'!X:AB,5,0)","v":{"$error":"#N/A"}},{"$f":"LEFT(Template!F961,3)","v":""},{"$f":"VLOOKUP(K949,'Structure mapping'!AC:AG,5,0)","v":{"$error":"#N/A"}},{"$f":"LEFT(Template!G961,10)","v":""},{"$f":"VLOOKUP(M949,'Structure mapping'!AH:AL,5,0)","v":{"$error":"#N/A"}},{"$f":"LEFT(Template!H961,6)","v":""},{"$f":"VLOOKUP(O949,'Structure mapping'!AM:AQ,5,0)","v":{"$error":"#N/A"}},null,null,null,null,{"$f":"IF(Template!O961=\"\",\"\",Template!O961)","v":""},"Aug-24 pending entries",{"$f":"TEXT(Template!$B$9,\"mm/dd/yyy\")","v":"08/01/2024"},null,null,null,null,{"$f":"IF(Template!M961>0,Template!M961,-Template!N961)","v":0},null,null,null,{"$f":"VLOOKUP(G949,'Account mapping'!A:D,4,0)","v":{"$error":"#N/A"}}]
[{"$f":"LEFT(Template!A962,4)","v":""},{"$f":"VLOOKUP(A950,'Structure mapping'!K:V,7,0)","v":{"$error":"#N/A"}},{"$f":"LEFT(Template!B962,5)","v":""},{"$f":"VLOOKUP(C950,'Structure mapping'!F:J,5,0)","v":{"$error":"#N/A"}},{"$f":"LEFT(Template!C962,7)","v":""},{"$f":"VLOOKUP(E950,'Structure mapping'!A:E,5,0)","v":{"$error":"#N/A"}},{"$f":"LEFT(Template!D962,6)","v":""},{"$f":"VLOOKUP(G950,'Account mapping'!A:E,5,0)","v":{"$error":"#N/A"}},{"$f":"LEFT(Template!E962,2)","v":""},{"$f":"VLOOKUP(I950,'Structure mapping'!X:AB,5,0)","v":{"$error":"#N/A"}},{"$f":"LEFT(Template!F962,3)","v":""},{"$f":"VLOOKUP(K950,'Structure mapping'!AC:AG,5,0)","v":{"$error":"#N/A"}},{"$f":"LEFT(Template!G962,10)","v":""},{"$f":"VLOOKUP(M950,'Structure mapping'!AH:AL,5,0)","v":{"$error":"#N/A"}},{"$f":"LEFT(Template!H962,6)","v":""},{"$f":"VLOOKUP(O950,'Structure mapping'!AM:AQ,5,0)","v":{"$error":"#N/A"}},null,null,null,null,{"$f":"IF(Template!O962=\"\",\"\",Template!O962)","v":""},"Aug-24 pending entries",{"$f":"TEXT(Template!$B$9,\"mm/dd/yyy\")","v":"08/01/2024"},null,null,null,null,{"$f":"IF(Template!M962>0,Template!M962,-Template!N962)","v":0},null,null,null,{"$f":"VLOOKUP(G950,'Account mapping'!A:D,4,0)","v":{"$error":"#N/A"}}]
[{"$f":"LEFT(Template!A963,4)","v":""},{"$f":"VLOOKUP(A951,'Structure mapping'!K:V,7,0)","v":{"$error":"#N/A"}},{"$f":"LEFT(Template!B963,5)","v":""},{"$f":"VLOOKUP(C951,'Structure mapping'!F:J,5,0)","v":{"$error":"#N/A"}},{"$f":"LEFT(Template!C963,7)","v":""},{"$f":"VLOOKUP(E951,'Structure mapping'!A:E,5,0)","v":{"$error":"#N/A"}},{"$f":"LEFT(Template!D963,6)","v":""},{"$f":"VLOOKUP(G951,'Account mapping'!A:E,5,0)","v":{"$error":"#N/A"}},{"$f":"LEFT(Template!E963,2)","v":""},{"$f":"VLOOKUP(I951,'Structure mapping'!X:AB,5,0)","v":{"$error":"#N/A"}},{"$f":"LEFT(Template!F963,3)","v":""},{"$f":"VLOOKUP(K951,'Structure mapping'!AC:AG,5,0)","v":{"$error":"#N/A"}},{"$f":"LEFT(Template!G963,10)","v":""},{"$f":"VLOOKUP(M951,'Structure mapping'!AH:AL,5,0)","v":{"$error":"#N/A"}},{"$f":"LEFT(Template!H963,6)","v":""},{"$f":"VLOOKUP(O951,'Structure mapping'!AM:AQ,5,0)","v":{"$error":"#N/A"}},null,null,null,null,{"$f":"IF(Template!O963=\"\",\"\",Template!O963)","v":""},"Aug-24 pending entries",{"$f":"TEXT(Template!$B$9,\"mm/dd/yyy\")","v":"08/01/2024"},null,null,null,null,{"$f":"IF(Template!M963>0,Template!M963,-Template!N963)","v":0},null,null,null,{"$f":"VLOOKUP(G951,'Account mapping'!A:D,4,0)","v":{"$error":"#N/A"}}]
[{"$f":"LEFT(Template!A964,4)","v":""},{"$f":"VLOOKUP(A952,'Structure mapping'!K:V,7,0)","v":{"$error":"#N/A"}},{"$f":"LEFT(Template!B964,5)","v":""},{"$f":"VLOOKUP(C952,'Structure mapping'!F:J,5,0)","v":{"$error":"#N/A"}},{"$f":"LEFT(Template!C964,7)","v":""},{"$f":"VLOOKUP(E952,'Structure mapping'!A:E,5,0)","v":{"$error":"#N/A"}},{"$f":"LEFT(Template!D964,6)","v":""},{"$f":"VLOOKUP(G952,'Account mapping'!A:E,5,0)","v":{"$error":"#N/A"}},{"$f":"LEFT(Template!E964,2)","v":""},{"$f":"VLOOKUP(I952,'Structure mapping'!X:AB,5,0)","v":{"$error":"#N/A"}},{"$f":"LEFT(Template!F964,3)","v":""},{"$f":"VLOOKUP(K952,'Structure mapping'!AC:AG,5,0)","v":{"$error":"#N/A"}},{"$f":"LEFT(Template!G964,10)","v":""},{"$f":"VLOOKUP(M952,'Structure mapping'!AH:AL,5,0)","v":{"$error":"#N/A"}},{"$f":"LEFT(Template!H964,6)","v":""},{"$f":"VLOOKUP(O952,'Structure mapping'!AM:AQ,5,0)","v":{"$error":"#N/A"}},null,null,null,null,{"$f":"IF(Template!O964=\"\",\"\",Template!O964)","v":""},"Aug-24 pending entries",{"$f":"TEXT(Template!$B$9,\"mm/dd/yyy\")","v":"08/01/2024"},null,null,null,null,{"$f":"IF(Template!M964>0,Template!M964,-Template!N964)","v":0},null,null,null,{"$f":"VLOOKUP(G952,'Account mapping'!A:D,4,0)","v":{"$error":"#N/A"}}]
[{"$f":"LEFT(Template!A965,4)","v":""},{"$f":"VLOOKUP(A953,'Structure mapping'!K:V,7,0)","v":{"$error":"#N/A"}},{"$f":"LEFT(Template!B965,5)","v":""},{"$f":"VLOOKUP(C953,'Structure mapping'!F:J,5,0)","v":{"$error":"#N/A"}},{"$f":"LEFT(Template!C965,7)","v":""},{"$f":"VLOOKUP(E953,'Structure mapping'!A:E,5,0)","v":{"$error":"#N/A"}},{"$f":"LEFT(Template!D965,6)","v":""},{"$f":"VLOOKUP(G953,'Account mapping'!A:E,5,0)","v":{"$error":"#N/A"}},{"$f":"LEFT(Template!E965,2)","v":""},{"$f":"VLOOKUP(I953,'Structure mapping'!X:AB,5,0)","v":{"$error":"#N/A"}},{"$f":"LEFT(Template!F965,3)","v":""},{"$f":"VLOOKUP(K953,'Structure mapping'!AC:AG,5,0)","v":{"$error":"#N/A"}},{"$f":"LEFT(Template!G965,10)","v":""},{"$f":"VLOOKUP(M953,'Structure mapping'!AH:AL,5,0)","v":{"$error":"#N/A"}},{"$f":"LEFT(Template!H965,6)","v":""},{"$f":"VLOOKUP(O953,'Structure mapping'!AM:AQ,5,0)","v":{"$error":"#N/A"}},null,null,null,null,{"$f":"IF(Template!O965=\"\",\"\",Template!O965)","v":""},"Aug-24 pending entries",{"$f":"TEXT(Template!$B$9,\"mm/dd/yyy\")","v":"08/01/2024"},null,null,null,null,{"$f":"IF(Template!M965>0,Template!M965,-Template!N965)","v":0},null,null,null,{"$f":"VLOOKUP(G953,'Account mapping'!A:D,4,0)","v":{"$error":"#N/A"}}]
[{"$f":"LEFT(Template!A966,4)","v":""},{"$f":"VLOOKUP(A954,'Structure mapping'!K:V,7,0)","v":{"$error":"#N/A"}},{"$f":"LEFT(Template!B966,5)","v":""},{"$f":"VLOOKUP(C954,'Structure mapping'!F:J,5,0)","v":{"$error":"#N/A"}},{"$f":"LEFT(Template!C966,7)","v":""},{"$f":"VLOOKUP(E954,'Structure mapping'!A:E,5,0)","v":{"$error":"#N/A"}},{"$f":"LEFT(Template!D966,6)","v":""},{"$f":"VLOOKUP(G954,'Account mapping'!A:E,5,0)","v":{"$error":"#N/A"}},{"$f":"LEFT(Template!E966,2)","v":""},{"$f":"VLOOKUP(I954,'Structure mapping'!X:AB,5,0)","v":{"$error":"#N/A"}},{"$f":"LEFT(Template!F966,3)","v":""},{"$f":"VLOOKUP(K954,'Structure mapping'!AC:AG,5,0)","v":{"$error":"#N/A"}},{"$f":"LEFT(Template!G966,10)","v":""},{"$f":"VLOOKUP(M954,'Structure mapping'!AH:AL,5,0)","v":{"$error":"#N/A"}},{"$f":"LEFT(Template!H966,6)","v":""},{"$f":"VLOOKUP(O954,'Structure mapping'!AM:AQ,5,0)","v":{"$error":"#N/A"}},null,null,null,null,{"$f":"IF(Template!O966=\"\",\"\",Template!O966)","v":""},"Aug-24 pending entries",{"$f":"TEXT(Template!$B$9,\"mm/dd/yyy\")","v":"08/01/2024"},null,null,null,null,{"$f":"IF(Template!M966>0,Template!M966,-Template!N966)","v":0},null,null,null,{"$f":"VLOOKUP(G954,'Account mapping'!A:D,4,0)","v":{"$error":"#N/A"}}]
[{"$f":"LEFT(Template!A967,4)","v":""},{"$f":"VLOOKUP(A955,'Structure mapping'!K:V,7,0)","v":{"$error":"#N/A"}},{"$f":"LEFT(Template!B967,5)","v":""},{"$f":"VLOOKUP(C955,'Structure mapping'!F:J,5,0)","v":{"$error":"#N/A"}},{"$f":"LEFT(Template!C967,7)","v":""},{"$f":"VLOOKUP(E955,'Structure mapping'!A:E,5,0)","v":{"$error":"#N/A"}},{"$f":"LEFT(Template!D967,6)","v":""},{"$f":"VLOOKUP(G955,'Account mapping'!A:E,5,0)","v":{"$error":"#N/A"}},{"$f":"LEFT(Template!E967,2)","v":""},{"$f":"VLOOKUP(I955,'Structure mapping'!X:AB,5,0)","v":{"$error":"#N/A"}},{"$f":"LEFT(Template!F967,3)","v":""},{"$f":"VLOOKUP(K955,'Structure mapping'!AC:AG,5,0)","v":{"$error":"#N/A"}},{"$f":"LEFT(Template!G967,10)","v":""},{"$f":"VLOOKUP(M955,'Structure mapping'!AH:AL,5,0)","v":{"$error":"#N/A"}},{"$f":"LEFT(Template!H967,6)","v":""},{"$f":"VLOOKUP(O955,'Structure mapping'!AM:AQ,5,0)","v":{"$error":"#N/A"}},null,null,null,null,{"$f":"IF(Template!O967=\"\",\"\",Template!O967)","v":""},"Aug-24 pending entries",{"$f":"TEXT(Template!$B$9,\"mm/dd/yyy\")","v":"08/01/2024"},null,null,null,null,{"$f":"IF(Template!M967>0,Template!M967,-Template!N967)","v":0},null,null,null,{"$f":"VLOOKUP(G955,'Account mapping'!A:D,4,0)","v":{"$error":"#N/A"}}]
[{"$f":"LEFT(Template!A968,4)","v":""},{"$f":"VLOOKUP(A956,'Structure mapping'!K:V,7,0)","v":{"$error":"#N/A"}},{"$f":"LEFT(Template!B968,5)","v":""},{"$f":"VLOOKUP(C956,'Structure mapping'!F:J,5,0)","v":{"$error":"#N/A"}},{"$f":"LEFT(Template!C968,7)","v":""},{"$f":"VLOOKUP(E956,'Structure mapping'!A:E,5,0)","v":{"$error":"#N/A"}},{"$f":"LEFT(Template!D968,6)","v":""},{"$f":"VLOOKUP(G956,'Account mapping'!A:E,5,0)","v":{"$error":"#N/A"}},{"$f":"LEFT(Template!E968,2)","v":""},{"$f":"VLOOKUP(I956,'Structure mapping'!X:AB,5,0)","v":{"$error":"#N/A"}},{"$f":"LEFT(Template!F968,3)","v":""},{"$f":"VLOOKUP(K956,'Structure mapping'!AC:AG,5,0)","v":{"$error":"#N/A"}},{"$f":"LEFT(Template!G968,10)","v":""},{"$f":"VLOOKUP(M956,'Structure mapping'!AH:AL,5,0)","v":{"$error":"#N/A"}},{"$f":"LEFT(Template!H968,6)","v":""},{"$f":"VLOOKUP(O956,'Structure mapping'!AM:AQ,5,0)","v":{"$error":"#N/A"}},null,null,null,null,{"$f":"IF(Template!O968=\"\",\"\",Template!O968)","v":""},"Aug-24 pending entries",{"$f":"TEXT(Template!$B$9,\"mm/dd/yyy\")","v":"08/01/2024"},null,null,null,null,{"$f":"IF(Template!M968>0,Template!M968,-Template!N968)","v":0},null,null,null,{"$f":"VLOOKUP(G956,'Account mapping'!A:D,4,0)","v":{"$error":"#N/A"}}]
[{"$f":"LEFT(Template!A969,4)","v":""},{"$f":"VLOOKUP(A957,'Structure mapping'!K:V,7,0)","v":{"$error":"#N/A"}},{"$f":"LEFT(Template!B969,5)","v":""},{"$f":"VLOOKUP(C957,'Structure mapping'!F:J,5,0)","v":{"$error":"#N/A"}},{"$f":"LEFT(Template!C969,7)","v":""},{"$f":"VLOOKUP(E957,'Structure mapping'!A:E,5,0)","v":{"$error":"#N/A"}},{"$f":"LEFT(Template!D969,6)","v":""},{"$f":"VLOOKUP(G957,'Account mapping'!A:E,5,0)","v":{"$error":"#N/A"}},{"$f":"LEFT(Template!E969,2)","v":""},{"$f":"VLOOKUP(I957,'Structure mapping'!X:AB,5,0)","v":{"$error":"#N/A"}},{"$f":"LEFT(Template!F969,3)","v":""},{"$f":"VLOOKUP(K957,'Structure mapping'!AC:AG,5,0)","v":{"$error":"#N/A"}},{"$f":"LEFT(Template!G969,10)","v":""},{"$f":"VLOOKUP(M957,'Structure mapping'!AH:AL,5,0)","v":{"$error":"#N/A"}},{"$f":"LEFT(Template!H969,6)","v":""},{"$f":"VLOOKUP(O957,'Structure mapping'!AM:AQ,5,0)","v":{"$error":"#N/A"}},null,null,null,null,{"$f":"IF(Template!O969=\"\",\"\",Template!O969)","v":""},"Aug-24 pending entries",{"$f":"TEXT(Template!$B$9,\"mm/dd/yyy\")","v":"08/01/2024"},null,null,null,null,{"$f":"IF(Template!M969>0,Template!M969,-Template!N969)","v":0},null,null,null,{"$f":"VLOOKUP(G957,'Account mapping'!A:D,4,0)","v":{"$error":"#N/A"}}]
[{"$f":"LEFT(Template!A970,4)","v":""},{"$f":"VLOOKUP(A958,'Structure mapping'!K:V,7,0)","v":{"$error":"#N/A"}},{"$f":"LEFT(Template!B970,5)","v":""},{"$f":"VLOOKUP(C958,'Structure mapping'!F:J,5,0)","v":{"$error":"#N/A"}},{"$f":"LEFT(Template!C970,7)","v":""},{"$f":"VLOOKUP(E958,'Structure mapping'!A:E,5,0)","v":{"$error":"#N/A"}},{"$f":"LEFT(Template!D970,6)","v":""},{"$f":"VLOOKUP(G958,'Account mapping'!A:E,5,0)","v":{"$error":"#N/A"}},{"$f":"LEFT(Template!E970,2)","v":""},{"$f":"VLOOKUP(I958,'Structure mapping'!X:AB,5,0)","v":{"$error":"#N/A"}},{"$f":"LEFT(Template!F970,3)","v":""},{"$f":"VLOOKUP(K958,'Structure mapping'!AC:AG,5,0)","v":{"$error":"#N/A"}},{"$f":"LEFT(Template!G970,10)","v":""},{"$f":"VLOOKUP(M958,'Structure mapping'!AH:AL,5,0)","v":{"$error":"#N/A"}},{"$f":"LEFT(Template!H970,6)","v":""},{"$f":"VLOOKUP(O958,'Structure mapping'!AM:AQ,5,0)","v":{"$error":"#N/A"}},null,null,null,null,{"$f":"IF(Template!O970=\"\",\"\",Template!O970)","v":""},"Aug-24 pending entries",{"$f":"TEXT(Template!$B$9,\"mm/dd/yyy\")","v":"08/01/2024"},null,null,null,null,{"$f":"IF(Template!M970>0,Template!M970,-Template!N970)","v":0},null,null,null,{"$f":"VLOOKUP(G958,'Account mapping'!A:D,4,0)","v":{"$error":"#N/A"}}]
[{"$f":"LEFT(Template!A971,4)","v":""},{"$f":"VLOOKUP(A959,'Structure mapping'!K:V,7,0)","v":{"$error":"#N/A"}},{"$f":"LEFT(Template!B971,5)","v":""},{"$f":"VLOOKUP(C959,'Structure mapping'!F:J,5,0)","v":{"$error":"#N/A"}},{"$f":"LEFT(Template!C971,7)","v":""},{"$f":"VLOOKUP(E959,'Structure mapping'!A:E,5,0)","v":{"$error":"#N/A"}},{"$f":"LEFT(Template!D971,6)","v":""},{"$f":"VLOOKUP(G959,'Account mapping'!A:E,5,0)","v":{"$error":"#N/A"}},{"$f":"LEFT(Template!E971,2)","v":""},{"$f":"VLOOKUP(I959,'Structure mapping'!X:AB,5,0)","v":{"$error":"#N/A"}},{"$f":"LEFT(Template!F971,3)","v":""},{"$f":"VLOOKUP(K959,'Structure mapping'!AC:AG,5,0)","v":{"$error":"#N/A"}},{"$f":"LEFT(Template!G971,10)","v":""},{"$f":"VLOOKUP(M959,'Structure mapping'!AH:AL,5,0)","v":{"$error":"#N/A"}},{"$f":"LEFT(Template!H971,6)","v":""},{"$f":"VLOOKUP(O959,'Structure mapping'!AM:AQ,5,0)","v":{"$error":"#N/A"}},null,null,null,null,{"$f":"IF(Template!O971=\"\",\"\",Template!O971)","v":""},"Aug-24 pending entries",{"$f":"TEXT(Template!$B$9,\"mm/dd/yyy\")","v":"08/01/2024"},null,null,null,null,{"$f":"IF(Template!M971>0,Template!M971,-Template!N971)","v":0},null,null,null,{"$f":"VLOOKUP(G959,'Account mapping'!A:D,4,0)","v":{"$error":"#N/A"}}]
[{"$f":"LEFT(Template!A972,4)","v":""},{"$f":"VLOOKUP(A960,'Structure mapping'!K:V,7,0)","v":{"$error":"#N/A"}},{"$f":"LEFT(Template!B972,5)","v":""},{"$f":"VLOOKUP(C960,'Structure mapping'!F:J,5,0)","v":{"$error":"#N/A"}},{"$f":"LEFT(Template!C972,7)","v":""},{"$f":"VLOOKUP(E960,'Structure mapping'!A:E,5,0)","v":{"$error":"#N/A"}},{"$f":"LEFT(Template!D972,6)","v":""},{"$f":"VLOOKUP(G960,'Account mapping'!A:E,5,0)","v":{"$error":"#N/A"}},{"$f":"LEFT(Template!E972,2)","v":""},{"$f":"VLOOKUP(I960,'Structure mapping'!X:AB,5,0)","v":{"$error":"#N/A"}},{"$f":"LEFT(Template!F972,3)","v":""},{"$f":"VLOOKUP(K960,'Structure mapping'!AC:AG,5,0)","v":{"$error":"#N/A"}},{"$f":"LEFT(Template!G972,10)","v":""},{"$f":"VLOOKUP(M960,'Structure mapping'!AH:AL,5,0)","v":{"$error":"#N/A"}},{"$f":"LEFT(Template!H972,6)","v":""},{"$f":"VLOOKUP(O960,'Structure mapping'!AM:AQ,5,0)","v":{"$error":"#N/A"}},null,null,null,null,{"$f":"IF(Template!O972=\"\",\"\",Template!O972)","v":""},"Aug-24 pending entries",{"$f":"TEXT(Template!$B$9,\"mm/dd/yyy\")","v":"08/01/2024"},null,null,null,null,{"$f":"IF(Template!M972>0,Template!M972,-Template!N972)","v":0},null,null,null,{"$f":"VLOOKUP(G960,'Account mapping'!A:D,4,0)","v":{"$error":"#N/A"}}]
[{"$f":"LEFT(Template!A973,4)","v":""},{"$f":"VLOOKUP(A961,'Structure mapping'!K:V,7,0)","v":{"$error":"#N/A"}},{"$f":"LEFT(Template!B973,5)","v":""},{"$f":"VLOOKUP(C961,'Structure mapping'!F:J,5,0)","v":{"$error":"#N/A"}},{"$f":"LEFT(Template!C973,7)","v":""},{"$f":"VLOOKUP(E961,'Structure mapping'!A:E,5,0)","v":{"$error":"#N/A"}},{"$f":"LEFT(Template!D973,6)","v":""},{"$f":"VLOOKUP(G961,'Account mapping'!A:E,5,0)","v":{"$error":"#N/A"}},{"$f":"LEFT(Template!E973,2)","v":""},{"$f":"VLOOKUP(I961,'Structure mapping'!X:AB,5,0)","v":{"$error":"#N/A"}},{"$f":"LEFT(Template!F973,3)","v":""},{"$f":"VLOOKUP(K961,'Structure mapping'!AC:AG,5,0)","v":{"$error":"#N/A"}},{"$f":"LEFT(Template!G973,10)","v":""},{"$f":"VLOOKUP(M961,'Structure mapping'!AH:AL,5,0)","v":{"$error":"#N/A"}},{"$f":"LEFT(Template!H973,6)","v":""},{"$f":"VLOOKUP(O961,'Structure mapping'!AM:AQ,5,0)","v":{"$error":"#N/A"}},null,null,null,null,{"$f":"IF(Template!O973=\"\",\"\",Template!O973)","v":""},"Aug-24 pending entries",{"$f":"TEXT(Template!$B$9,\"mm/dd/yyy\")","v":"08/01/2024"},null,null,null,null,{"$f":"IF(Template!M973>0,Template!M973,-Template!N973)","v":0},null,null,null,{"$f":"VLOOKUP(G961,'Account mapping'!A:D,4,0)","v":{"$error":"#N/A"}}]
[{"$f":"LEFT(Template!A974,4)","v":""},{"$f":"VLOOKUP(A962,'Structure mapping'!K:V,7,0)","v":{"$error":"#N/A"}},{"$f":"LEFT(Template!B974,5)","v":""},{"$f":"VLOOKUP(C962,'Structure mapping'!F:J,5,0)","v":{"$error":"#N/A"}},{"$f":"LEFT(Template!C974,7)","v":""},{"$f":"VLOOKUP(E962,'Structure mapping'!A:E,5,0)","v":{"$error":"#N/A"}},{"$f":"LEFT(Template!D974,6)","v":""},{"$f":"VLOOKUP(G962,'Account mapping'!A:E,5,0)","v":{"$error":"#N/A"}},{"$f":"LEFT(Template!E974,2)","v":""},{"$f":"VLOOKUP(I962,'Structure mapping'!X:AB,5,0)","v":{"$error":"#N/A"}},{"$f":"LEFT(Template!F974,3)","v":""},{"$f":"VLOOKUP(K962,'Structure mapping'!AC:AG,5,0)","v":{"$error":"#N/A"}},{"$f":"LEFT(Template!G974,10)","v":""},{"$f":"VLOOKUP(M962,'Structure mapping'!AH:AL,5,0)","v":{"$error":"#N/A"}},{"$f":"LEFT(Template!H974,6)","v":""},{"$f":"VLOOKUP(O962,'Structure mapping'!AM:AQ,5,0)","v":{"$error":"#N/A"}},null,null,null,null,{"$f":"IF(Template!O974=\"\",\"\",Template!O974)","v":""},"Aug-24 pending entries",{"$f":"TEXT(Template!$B$9,\"mm/dd/yyy\")","v":"08/01/2024"},null,null,null,null,{"$f":"IF(Template!M974>0,Template!M974,-Template!N974)","v":0},null,null,null,{"$f":"VLOOKUP(G962,'Account mapping'!A:D,4,0)","v":{"$error":"#N/A"}}]
[{"$f":"LEFT(Template!A975,4)","v":""},{"$f":"VLOOKUP(A963,'Structure mapping'!K:V,7,0)","v":{"$error":"#N/A"}},{"$f":"LEFT(Template!B975,5)","v":""},{"$f":"VLOOKUP(C963,'Structure mapping'!F:J,5,0)","v":{"$error":"#N/A"}},{"$f":"LEFT(Template!C975,7)","v":""},{"$f":"VLOOKUP(E963,'Structure mapping'!A:E,5,0)","v":{"$error":"#N/A"}},{"$f":"LEFT(Template!D975,6)","v":""},{"$f":"VLOOKUP(G963,'Account mapping'!A:E,5,0)","v":{"$error":"#N/A"}},{"$f":"LEFT(Template!E975,2)","v":""},{"$f":"VLOOKUP(I963,'Structure mapping'!X:AB,5,0)","v":{"$error":"#N/A"}},{"$f":"LEFT(Template!F975,3)","v":""},{"$f":"VLOOKUP(K963,'Structure mapping'!AC:AG,5,0)","v":{"$error":"#N/A"}},{"$f":"LEFT(Template!G975,10)","v":""},{"$f":"VLOOKUP(M963,'Structure mapping'!AH:AL,5,0)","v":{"$error":"#N/A"}},{"$f":"LEFT(Template!H975,6)","v":""},{"$f":"VLOOKUP(O963,'Structure mapping'!AM:AQ,5,0)","v":{"$error":"#N/A"}},null,null,null,null,{"$f":"IF(Template!O975=\"\",\"\",Template!O975)","v":""},{"$f":"TEXT(W963,\"mmm-yy\")&\" pending entries\"","v":"Aug-24 pending entries"},{"$f":"TEXT(Template!$B$9,\"mm/dd/yyy\")","v":"08/01/2024"},null,null,null,null,{"$f":"IF(Template!M975>0,Template!M975,-Template!N975)","v":0},null,null,null,{"$f":"VLOOKUP(G963,'Account mapping'!A:D,4,0)","v":{"$error":"#N/A"}}]
[{"$f":"LEFT(Template!A976,4)","v":""},{"$f":"VLOOKUP(A964,'Structure mapping'!K:V,7,0)","v":{"$error":"#N/A"}},{"$f":"LEFT(Template!B976,5)","v":""},{"$f":"VLOOKUP(C964,'Structure mapping'!F:J,5,0)","v":{"$error":"#N/A"}},{"$f":"LEFT(Template!C976,7)","v":""},{"$f":"VLOOKUP(E964,'Structure mapping'!A:E,5,0)","v":{"$error":"#N/A"}},{"$f":"LEFT(Template!D976,6)","v":""},{"$f":"VLOOKUP(G964,'Account mapping'!A:E,5,0)","v":{"$error":"#N/A"}},{"$f":"LEFT(Template!E976,2)","v":""},{"$f":"VLOOKUP(I964,'Structure mapping'!X:AB,5,0)","v":{"$error":"#N/A"}},{"$f":"LEFT(Template!F976,3)","v":""},{"$f":"VLOOKUP(K964,'Structure mapping'!AC:AG,5,0)","v":{"$error":"#N/A"}},{"$f":"LEFT(Template!G976,10)","v":""},{"$f":"VLOOKUP(M964,'Structure mapping'!AH:AL,5,0)","v":{"$error":"#N/A"}},{"$f":"LEFT(Template!H976,6)","v":""},{"$f":"VLOOKUP(O964,'Structure mapping'!AM:AQ,5,0)","v":{"$error":"#N/A"}},null,null,null,null,{"$f":"IF(Template!O976=\"\",\"\",Template!O976)","v":""},"Aug-24 pending entries",{"$f":"TEXT(Template!$B$9,\"mm/dd/yyy\")","v":"08/01/2024"},null,null,null,null,{"$f":"IF(Template!M976>0,Template!M976,-Template!N976)","v":0},null,null,null,{"$f":"VLOOKUP(G964,'Account mapping'!A:D,4,0)","v":{"$error":"#N/A"}}]
[{"$f":"LEFT(Template!A977,4)","v":""},{"$f":"VLOOKUP(A965,'Structure mapping'!K:V,7,0)","v":{"$error":"#N/A"}},{"$f":"LEFT(Template!B977,5)","v":""},{"$f":"VLOOKUP(C965,'Structure mapping'!F:J,5,0)","v":{"$error":"#N/A"}},{"$f":"LEFT(Template!C977,7)","v":""},{"$f":"VLOOKUP(E965,'Structure mapping'!A:E,5,0)","v":{"$error":"#N/A"}},{"$f":"LEFT(Template!D977,6)","v":""},{"$f":"VLOOKUP(G965,'Account mapping'!A:E,5,0)","v":{"$error":"#N/A"}},{"$f":"LEFT(Template!E977,2)","v":""},{"$f":"VLOOKUP(I965,'Structure mapping'!X:AB,5,0)","v":{"$error":"#N/A"}},{"$f":"LEFT(Template!F977,3)","v":""},{"$f":"VLOOKUP(K965,'Structure mapping'!AC:AG,5,0)","v":{"$error":"#N/A"}},{"$f":"LEFT(Template!G977,10)","v":""},{"$f":"VLOOKUP(M965,'Structure mapping'!AH:AL,5,0)","v":{"$error":"#N/A"}},{"$f":"LEFT(Template!H977,6)","v":""},{"$f":"VLOOKUP(O965,'Structure mapping'!AM:AQ,5,0)","v":{"$error":"#N/A"}},null,null,null,null,{"$f":"IF(Template!O977=\"\",\"\",Template!O977)","v":""},"Aug-24 pending entries",{"$f":"TEXT(Template!$B$9,\"mm/dd/yyy\")","v":"08/01/2024"},null,null,null,null,{"$f":"IF(Template!M977>0,Template!M977,-Template!N977)","v":0},null,null,null,{"$f":"VLOOKUP(G965,'Account mapping'!A:D,4,0)","v":{"$error":"#N/A"}}]
[{"$f":"LEFT(Template!A978,4)","v":""},{"$f":"VLOOKUP(A966,'Structure mapping'!K:V,7,0)","v":{"$error":"#N/A"}},{"$f":"LEFT(Template!B978,5)","v":""},{"$f":"VLOOKUP(C966,'Structure mapping'!F:J,5,0)","v":{"$error":"#N/A"}},{"$f":"LEFT(Template!C978,7)","v":""},{"$f":"VLOOKUP(E966,'Structure mapping'!A:E,5,0)","v":{"$error":"#N/A"}},{"$f":"LEFT(Template!D978,6)","v":""},{"$f":"VLOOKUP(G966,'Account mapping'!A:E,5,0)","v":{"$error":"#N/A"}},{"$f":"LEFT(Template!E978,2)","v":""},{"$f":"VLOOKUP(I966,'Structure mapping'!X:AB,5,0)","v":{"$error":"#N/A"}},{"$f":"LEFT(Template!F978,3)","v":""},{"$f":"VLOOKUP(K966,'Structure mapping'!AC:AG,5,0)","v":{"$error":"#N/A"}},{"$f":"LEFT(Template!G978,10)","v":""},{"$f":"VLOOKUP(M966,'Structure mapping'!AH:AL,5,0)","v":{"$error":"#N/A"}},{"$f":"LEFT(Template!H978,6)","v":""},{"$f":"VLOOKUP(O966,'Structure mapping'!AM:AQ,5,0)","v":{"$error":"#N/A"}},null,null,null,null,{"$f":"IF(Template!O978=\"\",\"\",Template!O978)","v":""},"Aug-24 pending entries",{"$f":"TEXT(Template!$B$9,\"mm/dd/yyy\")","v":"08/01/2024"},null,null,null,null,{"$f":"IF(Template!M978>0,Template!M978,-Template!N978)","v":0},null,null,null,{"$f":"VLOOKUP(G966,'Account mapping'!A:D,4,0)","v":{"$error":"#N/A"}}]
[{"$f":"LEFT(Template!A979,4)","v":""},{"$f":"VLOOKUP(A967,'Structure mapping'!K:V,7,0)","v":{"$error":"#N/A"}},{"$f":"LEFT(Template!B979,5)","v":""},{"$f":"VLOOKUP(C967,'Structure mapping'!F:J,5,0)","v":{"$error":"#N/A"}},{"$f":"LEFT(Template!C979,7)","v":""},{"$f":"VLOOKUP(E967,'Structure mapping'!A:E,5,0)","v":{"$error":"#N/A"}},{"$f":"LEFT(Template!D979,6)","v":""},{"$f":"VLOOKUP(G967,'Account mapping'!A:E,5,0)","v":{"$error":"#N/A"}},{"$f":"LEFT(Template!E979,2)","v":""},{"$f":"VLOOKUP(I967,'Structure mapping'!X:AB,5,0)","v":{"$error":"#N/A"}},{"$f":"LEFT(Template!F979,3)","v":""},{"$f":"VLOOKUP(K967,'Structure mapping'!AC:AG,5,0)","v":{"$error":"#N/A"}},{"$f":"LEFT(Template!G979,10)","v":""},{"$f":"VLOOKUP(M967,'Structure mapping'!AH:AL,5,0)","v":{"$error":"#N/A"}},{"$f":"LEFT(Template!H979,6)","v":""},{"$f":"VLOOKUP(O967,'Structure mapping'!AM:AQ,5,0)","v":{"$error":"#N/A"}},null,null,null,null,{"$f":"IF(Template!O979=\"\",\"\",Template!O979)","v":""},"Aug-24 pending entries",{"$f":"TEXT(Template!$B$9,\"mm/dd/yyy\")","v":"08/01/2024"},null,null,null,null,{"$f":"IF(Template!M979>0,Template!M979,-Template!N979)","v":0},null,null,null,{"$f":"VLOOKUP(G967,'Account mapping'!A:D,4,0)","v":{"$error":"#N/A"}}]
[{"$f":"LEFT(Template!A980,4)","v":""},{"$f":"VLOOKUP(A968,'Structure mapping'!K:V,7,0)","v":{"$error":"#N/A"}},{"$f":"LEFT(Template!B980,5)","v":""},{"$f":"VLOOKUP(C968,'Structure mapping'!F:J,5,0)","v":{"$error":"#N/A"}},{"$f":"LEFT(Template!C980,7)","v":""},{"$f":"VLOOKUP(E968,'Structure mapping'!A:E,5,0)","v":{"$error":"#N/A"}},{"$f":"LEFT(Template!D980,6)","v":""},{"$f":"VLOOKUP(G968,'Account mapping'!A:E,5,0)","v":{"$error":"#N/A"}},{"$f":"LEFT(Template!E980,2)","v":""},{"$f":"VLOOKUP(I968,'Structure mapping'!X:AB,5,0)","v":{"$error":"#N/A"}},{"$f":"LEFT(Template!F980,3)","v":""},{"$f":"VLOOKUP(K968,'Structure mapping'!AC:AG,5,0)","v":{"$error":"#N/A"}},{"$f":"LEFT(Template!G980,10)","v":""},{"$f":"VLOOKUP(M968,'Structure mapping'!AH:AL,5,0)","v":{"$error":"#N/A"}},{"$f":"LEFT(Template!H980,6)","v":""},{"$f":"VLOOKUP(O968,'Structure mapping'!AM:AQ,5,0)","v":{"$error":"#N/A"}},null,null,null,null,{"$f":"IF(Template!O980=\"\",\"\",Template!O980)","v":""},"Aug-24 pending entries",{"$f":"TEXT(Template!$B$9,\"mm/dd/yyy\")","v":"08/01/2024"},null,null,null,null,{"$f":"IF(Template!M980>0,Template!M980,-Template!N980)","v":0},null,null,null,{"$f":"VLOOKUP(G968,'Account mapping'!A:D,4,0)","v":{"$error":"#N/A"}}]
[{"$f":"LEFT(Template!A981,4)","v":""},{"$f":"VLOOKUP(A969,'Structure mapping'!K:V,7,0)","v":{"$error":"#N/A"}},{"$f":"LEFT(Template!B981,5)","v":""},{"$f":"VLOOKUP(C969,'Structure mapping'!F:J,5,0)","v":{"$error":"#N/A"}},{"$f":"LEFT(Template!C981,7)","v":""},{"$f":"VLOOKUP(E969,'Structure mapping'!A:E,5,0)","v":{"$error":"#N/A"}},{"$f":"LEFT(Template!D981,6)","v":""},{"$f":"VLOOKUP(G969,'Account mapping'!A:E,5,0)","v":{"$error":"#N/A"}},{"$f":"LEFT(Template!E981,2)","v":""},{"$f":"VLOOKUP(I969,'Structure mapping'!X:AB,5,0)","v":{"$error":"#N/A"}},{"$f":"LEFT(Template!F981,3)","v":""},{"$f":"VLOOKUP(K969,'Structure mapping'!AC:AG,5,0)","v":{"$error":"#N/A"}},{"$f":"LEFT(Template!G981,10)","v":""},{"$f":"VLOOKUP(M969,'Structure mapping'!AH:AL,5,0)","v":{"$error":"#N/A"}},{"$f":"LEFT(Template!H981,6)","v":""},{"$f":"VLOOKUP(O969,'Structure mapping'!AM:AQ,5,0)","v":{"$error":"#N/A"}},null,null,null,null,{"$f":"IF(Template!O981=\"\",\"\",Template!O981)","v":""},"Aug-24 pending entries",{"$f":"TEXT(Template!$B$9,\"mm/dd/yyy\")","v":"08/01/2024"},null,null,null,null,{"$f":"IF(Template!M981>0,Template!M981,-Template!N981)","v":0},null,null,null,{"$f":"VLOOKUP(G969,'Account mapping'!A:D,4,0)","v":{"$error":"#N/A"}}]
[{"$f":"LEFT(Template!A982,4)","v":""},{"$f":"VLOOKUP(A970,'Structure mapping'!K:V,7,0)","v":{"$error":"#N/A"}},{"$f":"LEFT(Template!B982,5)","v":""},{"$f":"VLOOKUP(C970,'Structure mapping'!F:J,5,0)","v":{"$error":"#N/A"}},{"$f":"LEFT(Template!C982,7)","v":""},{"$f":"VLOOKUP(E970,'Structure mapping'!A:E,5,0)","v":{"$error":"#N/A"}},{"$f":"LEFT(Template!D982,6)","v":""},{"$f":"VLOOKUP(G970,'Account mapping'!A:E,5,0)","v":{"$error":"#N/A"}},{"$f":"LEFT(Template!E982,2)","v":""},{"$f":"VLOOKUP(I970,'Structure mapping'!X:AB,5,0)","v":{"$error":"#N/A"}},{"$f":"LEFT(Template!F982,3)","v":""},{"$f":"VLOOKUP(K970,'Structure mapping'!AC:AG,5,0)","v":{"$error":"#N/A"}},{"$f":"LEFT(Template!G982,10)","v":""},{"$f":"VLOOKUP(M970,'Structure mapping'!AH:AL,5,0)","v":{"$error":"#N/A"}},{"$f":"LEFT(Template!H982,6)","v":""},{"$f":"VLOOKUP(O970,'Structure mapping'!AM:AQ,5,0)","v":{"$error":"#N/A"}},null,null,null,null,{"$f":"IF(Template!O982=\"\",\"\",Template!O982)","v":""},"Aug-24 pending entries",{"$f":"TEXT(Template!$B$9,\"mm/dd/yyy\")","v":"08/01/2024"},null,null,null,null,{"$f":"IF(Template!M982>0,Template!M982,-Template!N982)","v":0},null,null,null,{"$f":"VLOOKUP(G970,'Account mapping'!A:D,4,0)","v":{"$error":"#N/A"}}]
[{"$f":"LEFT(Template!A983,4)","v":""},{"$f":"VLOOKUP(A971,'Structure mapping'!K:V,7,0)","v":{"$error":"#N/A"}},{"$f":"LEFT(Template!B983,5)","v":""},{"$f":"VLOOKUP(C971,'Structure mapping'!F:J,5,0)","v":{"$error":"#N/A"}},{"$f":"LEFT(Template!C983,7)","v":""},{"$f":"VLOOKUP(E971,'Structure mapping'!A:E,5,0)","v":{"$error":"#N/A"}},{"$f":"LEFT(Template!D983,6)","v":""},{"$f":"VLOOKUP(G971,'Account mapping'!A:E,5,0)","v":{"$error":"#N/A"}},{"$f":"LEFT(Template!E983,2)","v":""},{"$f":"VLOOKUP(I971,'Structure mapping'!X:AB,5,0)","v":{"$error":"#N/A"}},{"$f":"LEFT(Template!F983,3)","v":""},{"$f":"VLOOKUP(K971,'Structure mapping'!AC:AG,5,0)","v":{"$error":"#N/A"}},{"$f":"LEFT(Template!G983,10)","v":""},{"$f":"VLOOKUP(M971,'Structure mapping'!AH:AL,5,0)","v":{"$error":"#N/A"}},{"$f":"LEFT(Template!H983,6)","v":""},{"$f":"VLOOKUP(O971,'Structure mapping'!AM:AQ,5,0)","v":{"$error":"#N/A"}},null,null,null,null,{"$f":"IF(Template!O983=\"\",\"\",Template!O983)","v":""},"Aug-24 pending entries",{"$f":"TEXT(Template!$B$9,\"mm/dd/yyy\")","v":"08/01/2024"},null,null,null,null,{"$f":"IF(Template!M983>0,Template!M983,-Template!N983)","v":0},null,null,null,{"$f":"VLOOKUP(G971,'Account mapping'!A:D,4,0)","v":{"$error":"#N/A"}}]
[{"$f":"LEFT(Template!A984,4)","v":""},{"$f":"VLOOKUP(A972,'Structure mapping'!K:V,7,0)","v":{"$error":"#N/A"}},{"$f":"LEFT(Template!B984,5)","v":""},{"$f":"VLOOKUP(C972,'Structure mapping'!F:J,5,0)","v":{"$error":"#N/A"}},{"$f":"LEFT(Template!C984,7)","v":""},{"$f":"VLOOKUP(E972,'Structure mapping'!A:E,5,0)","v":{"$error":"#N/A"}},{"$f":"LEFT(Template!D984,6)","v":""},{"$f":"VLOOKUP(G972,'Account mapping'!A:E,5,0)","v":{"$error":"#N/A"}},{"$f":"LEFT(Template!E984,2)","v":""},{"$f":"VLOOKUP(I972,'Structure mapping'!X:AB,5,0)","v":{"$error":"#N/A"}},{"$f":"LEFT(Template!F984,3)","v":""},{"$f":"VLOOKUP(K972,'Structure mapping'!AC:AG,5,0)","v":{"$error":"#N/A"}},{"$f":"LEFT(Template!G984,10)","v":""},{"$f":"VLOOKUP(M972,'Structure mapping'!AH:AL,5,0)","v":{"$error":"#N/A"}},{"$f":"LEFT(Template!H984,6)","v":""},{"$f":"VLOOKUP(O972,'Structure mapping'!AM:AQ,5,0)","v":{"$error":"#N/A"}},null,null,null,null,{"$f":"IF(Template!O984=\"\",\"\",Template!O984)","v":""},"Aug-24 pending entries",{"$f":"TEXT(Template!$B$9,\"mm/dd/yyy\")","v":"08/01/2024"},null,null,null,null,{"$f":"IF(Template!M984>0,Template!M984,-Template!N984)","v":0},null,null,null,{"$f":"VLOOKUP(G972,'Account mapping'!A:D,4,0)","v":{"$error":"#N/A"}}]
[{"$f":"LEFT(Template!A985,4)","v":""},{"$f":"VLOOKUP(A973,'Structure mapping'!K:V,7,0)","v":{"$error":"#N/A"}},{"$f":"LEFT(Template!B985,5)","v":""},{"$f":"VLOOKUP(C973,'Structure mapping'!F:J,5,0)","v":{"$error":"#N/A"}},{"$f":"LEFT(Template!C985,7)","v":""},{"$f":"VLOOKUP(E973,'Structure mapping'!A:E,5,0)","v":{"$error":"#N/A"}},{"$f":"LEFT(Template!D985,6)","v":""},{"$f":"VLOOKUP(G973,'Account mapping'!A:E,5,0)","v":{"$error":"#N/A"}},{"$f":"LEFT(Template!E985,2)","v":""},{"$f":"VLOOKUP(I973,'Structure mapping'!X:AB,5,0)","v":{"$error":"#N/A"}},{"$f":"LEFT(Template!F985,3)","v":""},{"$f":"VLOOKUP(K973,'Structure mapping'!AC:AG,5,0)","v":{"$error":"#N/A"}},{"$f":"LEFT(Template!G985,10)","v":""},{"$f":"VLOOKUP(M973,'Structure mapping'!AH:AL,5,0)","v":{"$error":"#N/A"}},{"$f":"LEFT(Template!H985,6)","v":""},{"$f":"VLOOKUP(O973,'Structure mapping'!AM:AQ,5,0)","v":{"$error":"#N/A"}},null,null,null,null,{"$f":"IF(Template!O985=\"\",\"\",Template!O985)","v":""},"Aug-24 pending entries",{"$f":"TEXT(Template!$B$9,\"mm/dd/yyy\")","v":"08/01/2024"},null,null,null,null,{"$f":"IF(Template!M985>0,Template!M985,-Template!N985)","v":0},null,null,null,{"$f":"VLOOKUP(G973,'Account mapping'!A:D,4,0)","v":{"$error":"#N/A"}}]
[{"$f":"LEFT(Template!A986,4)","v":""},{"$f":"VLOOKUP(A974,'Structure mapping'!K:V,7,0)","v":{"$error":"#N/A"}},{"$f":"LEFT(Template!B986,5)","v":""},{"$f":"VLOOKUP(C974,'Structure mapping'!F:J,5,0)","v":{"$error":"#N/A"}},{"$f":"LEFT(Template!C986,7)","v":""},{"$f":"VLOOKUP(E974,'Structure mapping'!A:E,5,0)","v":{"$error":"#N/A"}},{"$f":"LEFT(Template!D986,6)","v":""},{"$f":"VLOOKUP(G974,'Account mapping'!A:E,5,0)","v":{"$error":"#N/A"}},{"$f":"LEFT(Template!E986,2)","v":""},{"$f":"VLOOKUP(I974,'Structure mapping'!X:AB,5,0)","v":{"$error":"#N/A"}},{"$f":"LEFT(Template!F986,3)","v":""},{"$f":"VLOOKUP(K974,'Structure mapping'!AC:AG,5,0)","v":{"$error":"#N/A"}},{"$f":"LEFT(Template!G986,10)","v":""},{"$f":"VLOOKUP(M974,'Structure mapping'!AH:AL,5,0)","v":{"$error":"#N/A"}},{"$f":"LEFT(Template!H986,6)","v":""},{"$f":"VLOOKUP(O974,'Structure mapping'!AM:AQ,5,0)","v":{"$error":"#N/A"}},null,null,null,null,{"$f":"IF(Template!O986=\"\",\"\",Template!O986)","v":""},"Aug-24 pending entries",{"$f":"TEXT(Template!$B$9,\"mm/dd/yyy\")","v":"08/01/2024"},null,null,null,null,{"$f":"IF(Template!M986>0,Template!M986,-Template!N986)","v":0},null,null,null,{"$f":"VLOOKUP(G974,'Account mapping'!A:D,4,0)","v":{"$error":"#N/A"}}]
[{"$f":"LEFT(Template!A987,4)","v":""},{"$f":"VLOOKUP(A975,'Structure mapping'!K:V,7,0)","v":{"$error":"#N/A"}},{"$f":"LEFT(Template!B987,5)","v":""},{"$f":"VLOOKUP(C975,'Structure mapping'!F:J,5,0)","v":{"$error":"#N/A"}},{"$f":"LEFT(Template!C987,7)","v":""},{"$f":"VLOOKUP(E975,'Structure mapping'!A:E,5,0)","v":{"$error":"#N/A"}},{"$f":"LEFT(Template!D987,6)","v":""},{"$f":"VLOOKUP(G975,'Account mapping'!A:E,5,0)","v":{"$error":"#N/A"}},{"$f":"LEFT(Template!E987,2)","v":""},{"$f":"VLOOKUP(I975,'Structure mapping'!X:AB,5,0)","v":{"$error":"#N/A"}},{"$f":"LEFT(Template!F987,3)","v":""},{"$f":"VLOOKUP(K975,'Structure mapping'!AC:AG,5,0)","v":{"$error":"#N/A"}},{"$f":"LEFT(Template!G987,10)","v":""},{"$f":"VLOOKUP(M975,'Structure mapping'!AH:AL,5,0)","v":{"$error":"#N/A"}},{"$f":"LEFT(Template!H987,6)","v":""},{"$f":"VLOOKUP(O975,'Structure mapping'!AM:AQ,5,0)","v":{"$error":"#N/A"}},null,null,null,null,{"$f":"IF(Template!O987=\"\",\"\",Template!O987)","v":""},"Aug-24 pending entries",{"$f":"TEXT(Template!$B$9,\"mm/dd/yyy\")","v":"08/01/2024"},null,null,null,null,{"$f":"IF(Template!M987>0,Template!M987,-Template!N987)","v":0},null,null,null,{"$f":"VLOOKUP(G975,'Account mapping'!A:D,4,0)","v":{"$error":"#N/A"}}]
[{"$f":"LEFT(Template!A988,4)","v":""},{"$f":"VLOOKUP(A976,'Structure mapping'!K:V,7,0)","v":{"$error":"#N/A"}},{"$f":"LEFT(Template!B988,5)","v":""},{"$f":"VLOOKUP(C976,'Structure mapping'!F:J,5,0)","v":{"$error":"#N/A"}},{"$f":"LEFT(Template!C988,7)","v":""},{"$f":"VLOOKUP(E976,'Structure mapping'!A:E,5,0)","v":{"$error":"#N/A"}},{"$f":"LEFT(Template!D988,6)","v":""},{"$f":"VLOOKUP(G976,'Account mapping'!A:E,5,0)","v":{"$error":"#N/A"}},{"$f":"LEFT(Template!E988,2)","v":""},{"$f":"VLOOKUP(I976,'Structure mapping'!X:AB,5,0)","v":{"$error":"#N/A"}},{"$f":"LEFT(Template!F988,3)","v":""},{"$f":"VLOOKUP(K976,'Structure mapping'!AC:AG,5,0)","v":{"$error":"#N/A"}},{"$f":"LEFT(Template!G988,10)","v":""},{"$f":"VLOOKUP(M976,'Structure mapping'!AH:AL,5,0)","v":{"$error":"#N/A"}},{"$f":"LEFT(Template!H988,6)","v":""},{"$f":"VLOOKUP(O976,'Structure mapping'!AM:AQ,5,0)","v":{"$error":"#N/A"}},null,null,null,null,{"$f":"IF(Template!O988=\"\",\"\",Template!O988)","v":""},"Aug-24 pending entries",{"$f":"TEXT(Template!$B$9,\"mm/dd/yyy\")","v":"08/01/2024"},null,null,null,null,{"$f":"IF(Template!M988>0,Template!M988,-Template!N988)","v":0},null,null,null,{"$f":"VLOOKUP(G976,'Account mapping'!A:D,4,0)","v":{"$error":"#N/A"}}]
[{"$f":"LEFT(Template!A989,4)","v":""},{"$f":"VLOOKUP(A977,'Structure mapping'!K:V,7,0)","v":{"$error":"#N/A"}},{"$f":"LEFT(Template!B989,5)","v":""},{"$f":"VLOOKUP(C977,'Structure mapping'!F:J,5,0)","v":{"$error":"#N/A"}},{"$f":"LEFT(Template!C989,7)","v":""},{"$f":"VLOOKUP(E977,'Structure mapping'!A:E,5,0)","v":{"$error":"#N/A"}},{"$f":"LEFT(Template!D989,6)","v":""},{"$f":"VLOOKUP(G977,'Account mapping'!A:E,5,0)","v":{"$error":"#N/A"}},{"$f":"LEFT(Template!E989,2)","v":""},{"$f":"VLOOKUP(I977,'Structure mapping'!X:AB,5,0)","v":{"$error":"#N/A"}},{"$f":"LEFT(Template!F989,3)","v":""},{"$f":"VLOOKUP(K977,'Structure mapping'!AC:AG,5,0)","v":{"$error":"#N/A"}},{"$f":"LEFT(Template!G989,10)","v":""},{"$f":"VLOOKUP(M977,'Structure mapping'!AH:AL,5,0)","v":{"$error":"#N/A"}},{"$f":"LEFT(Template!H989,6)","v":""},{"$f":"VLOOKUP(O977,'Structure mapping'!AM:AQ,5,0)","v":{"$error":"#N/A"}},null,null,null,null,{"$f":"IF(Template!O989=\"\",\"\",Template!O989)","v":""},"Aug-24 pending entries",{"$f":"TEXT(Template!$B$9,\"mm/dd/yyy\")","v":"08/01/2024"},null,null,null,null,{"$f":"IF(Template!M989>0,Template!M989,-Template!N989)","v":0},null,null,null,{"$f":"VLOOKUP(G977,'Account mapping'!A:D,4,0)","v":{"$error":"#N/A"}}]
[{"$f":"LEFT(Template!A990,4)","v":""},{"$f":"VLOOKUP(A978,'Structure mapping'!K:V,7,0)","v":{"$error":"#N/A"}},{"$f":"LEFT(Template!B990,5)","v":""},{"$f":"VLOOKUP(C978,'Structure mapping'!F:J,5,0)","v":{"$error":"#N/A"}},{"$f":"LEFT(Template!C990,7)","v":""},{"$f":"VLOOKUP(E978,'Structure mapping'!A:E,5,0)","v":{"$error":"#N/A"}},{"$f":"LEFT(Template!D990,6)","v":""},{"$f":"VLOOKUP(G978,'Account mapping'!A:E,5,0)","v":{"$error":"#N/A"}},{"$f":"LEFT(Template!E990,2)","v":""},{"$f":"VLOOKUP(I978,'Structure mapping'!X:AB,5,0)","v":{"$error":"#N/A"}},{"$f":"LEFT(Template!F990,3)","v":""},{"$f":"VLOOKUP(K978,'Structure mapping'!AC:AG,5,0)","v":{"$error":"#N/A"}},{"$f":"LEFT(Template!G990,10)","v":""},{"$f":"VLOOKUP(M978,'Structure mapping'!AH:AL,5,0)","v":{"$error":"#N/A"}},{"$f":"LEFT(Template!H990,6)","v":""},{"$f":"VLOOKUP(O978,'Structure mapping'!AM:AQ,5,0)","v":{"$error":"#N/A"}},null,null,null,null,{"$f":"IF(Template!O990=\"\",\"\",Template!O990)","v":""},"Aug-24 pending entries",{"$f":"TEXT(Template!$B$9,\"mm/dd/yyy\")","v":"08/01/2024"},null,null,null,null,{"$f":"IF(Template!M990>0,Template!M990,-Template!N990)","v":0},null,null,null,{"$f":"VLOOKUP(G978,'Account mapping'!A:D,4,0)","v":{"$error":"#N/A"}}]
[{"$f":"LEFT(Template!A991,4)","v":""},{"$f":"VLOOKUP(A979,'Structure mapping'!K:V,7,0)","v":{"$error":"#N/A"}},{"$f":"LEFT(Template!B991,5)","v":""},{"$f":"VLOOKUP(C979,'Structure mapping'!F:J,5,0)","v":{"$error":"#N/A"}},{"$f":"LEFT(Template!C991,7)","v":""},{"$f":"VLOOKUP(E979,'Structure mapping'!A:E,5,0)","v":{"$error":"#N/A"}},{"$f":"LEFT(Template!D991,6)","v":""},{"$f":"VLOOKUP(G979,'Account mapping'!A:E,5,0)","v":{"$error":"#N/A"}},{"$f":"LEFT(Template!E991,2)","v":""},{"$f":"VLOOKUP(I979,'Structure mapping'!X:AB,5,0)","v":{"$error":"#N/A"}},{"$f":"LEFT(Template!F991,3)","v":""},{"$f":"VLOOKUP(K979,'Structure mapping'!AC:AG,5,0)","v":{"$error":"#N/A"}},{"$f":"LEFT(Template!G991,10)","v":""},{"$f":"VLOOKUP(M979,'Structure mapping'!AH:AL,5,0)","v":{"$error":"#N/A"}},{"$f":"LEFT(Template!H991,6)","v":""},{"$f":"VLOOKUP(O979,'Structure mapping'!AM:AQ,5,0)","v":{"$error":"#N/A"}},null,null,null,null,{"$f":"IF(Template!O991=\"\",\"\",Template!O991)","v":""},"Aug-24 pending entries",{"$f":"TEXT(Template!$B$9,\"mm/dd/yyy\")","v":"08/01/2024"},null,null,null,null,{"$f":"IF(Template!M991>0,Template!M991,-Template!N991)","v":0},null,null,null,{"$f":"VLOOKUP(G979,'Account mapping'!A:D,4,0)","v":{"$error":"#N/A"}}]
[{"$f":"LEFT(Template!A992,4)","v":""},{"$f":"VLOOKUP(A980,'Structure mapping'!K:V,7,0)","v":{"$error":"#N/A"}},{"$f":"LEFT(Template!B992,5)","v":""},{"$f":"VLOOKUP(C980,'Structure mapping'!F:J,5,0)","v":{"$error":"#N/A"}},{"$f":"LEFT(Template!C992,7)","v":""},{"$f":"VLOOKUP(E980,'Structure mapping'!A:E,5,0)","v":{"$error":"#N/A"}},{"$f":"LEFT(Template!D992,6)","v":""},{"$f":"VLOOKUP(G980,'Account mapping'!A:E,5,0)","v":{"$error":"#N/A"}},{"$f":"LEFT(Template!E992,2)","v":""},{"$f":"VLOOKUP(I980,'Structure mapping'!X:AB,5,0)","v":{"$error":"#N/A"}},{"$f":"LEFT(Template!F992,3)","v":""},{"$f":"VLOOKUP(K980,'Structure mapping'!AC:AG,5,0)","v":{"$error":"#N/A"}},{"$f":"LEFT(Template!G992,10)","v":""},{"$f":"VLOOKUP(M980,'Structure mapping'!AH:AL,5,0)","v":{"$error":"#N/A"}},{"$f":"LEFT(Template!H992,6)","v":""},{"$f":"VLOOKUP(O980,'Structure mapping'!AM:AQ,5,0)","v":{"$error":"#N/A"}},null,null,null,null,{"$f":"IF(Template!O992=\"\",\"\",Template!O992)","v":""},"Aug-24 pending entries",{"$f":"TEXT(Template!$B$9,\"mm/dd/yyy\")","v":"08/01/2024"},null,null,null,null,{"$f":"IF(Template!M992>0,Template!M992,-Template!N992)","v":0},null,null,null,{"$f":"VLOOKUP(G980,'Account mapping'!A:D,4,0)","v":{"$error":"#N/A"}}]
[{"$f":"LEFT(Template!A993,4)","v":""},{"$f":"VLOOKUP(A981,'Structure mapping'!K:V,7,0)","v":{"$error":"#N/A"}},{"$f":"LEFT(Template!B993,5)","v":""},{"$f":"VLOOKUP(C981,'Structure mapping'!F:J,5,0)","v":{"$error":"#N/A"}},{"$f":"LEFT(Template!C993,7)","v":""},{"$f":"VLOOKUP(E981,'Structure mapping'!A:E,5,0)","v":{"$error":"#N/A"}},{"$f":"LEFT(Template!D993,6)","v":""},{"$f":"VLOOKUP(G981,'Account mapping'!A:E,5,0)","v":{"$error":"#N/A"}},{"$f":"LEFT(Template!E993,2)","v":""},{"$f":"VLOOKUP(I981,'Structure mapping'!X:AB,5,0)","v":{"$error":"#N/A"}},{"$f":"LEFT(Template!F993,3)","v":""},{"$f":"VLOOKUP(K981,'Structure mapping'!AC:AG,5,0)","v":{"$error":"#N/A"}},{"$f":"LEFT(Template!G993,10)","v":""},{"$f":"VLOOKUP(M981,'Structure mapping'!AH:AL,5,0)","v":{"$error":"#N/A"}},{"$f":"LEFT(Template!H993,6)","v":""},{"$f":"VLOOKUP(O981,'Structure mapping'!AM:AQ,5,0)","v":{"$error":"#N/A"}},null,null,null,null,{"$f":"IF(Template!O993=\"\",\"\",Template!O993)","v":""},"Aug-24 pending entries",{"$f":"TEXT(Template!$B$9,\"mm/dd/yyy\")","v":"08/01/2024"},null,null,null,null,{"$f":"IF(Template!M993>0,Template!M993,-Template!N993)","v":0},null,null,null,{"$f":"VLOOKUP(G981,'Account mapping'!A:D,4,0)","v":{"$error":"#N/A"}}]
[{"$f":"LEFT(Template!A994,4)","v":""},{"$f":"VLOOKUP(A982,'Structure mapping'!K:V,7,0)","v":{"$error":"#N/A"}},{"$f":"LEFT(Template!B994,5)","v":""},{"$f":"VLOOKUP(C982,'Structure mapping'!F:J,5,0)","v":{"$error":"#N/A"}},{"$f":"LEFT(Template!C994,7)","v":""},{"$f":"VLOOKUP(E982,'Structure mapping'!A:E,5,0)","v":{"$error":"#N/A"}},{"$f":"LEFT(Template!D994,6)","v":""},{"$f":"VLOOKUP(G982,'Account mapping'!A:E,5,0)","v":{"$error":"#N/A"}},{"$f":"LEFT(Template!E994,2)","v":""},{"$f":"VLOOKUP(I982,'Structure mapping'!X:AB,5,0)","v":{"$error":"#N/A"}},{"$f":"LEFT(Template!F994,3)","v":""},{"$f":"VLOOKUP(K982,'Structure mapping'!AC:AG,5,0)","v":{"$error":"#N/A"}},{"$f":"LEFT(Template!G994,10)","v":""},{"$f":"VLOOKUP(M982,'Structure mapping'!AH:AL,5,0)","v":{"$error":"#N/A"}},{"$f":"LEFT(Template!H994,6)","v":""},{"$f":"VLOOKUP(O982,'Structure mapping'!AM:AQ,5,0)","v":{"$error":"#N/A"}},null,null,null,null,{"$f":"IF(Template!O994=\"\",\"\",Template!O994)","v":""},"Aug-24 pending entries",{"$f":"TEXT(Template!$B$9,\"mm/dd/yyy\")","v":"08/01/2024"},null,null,null,null,{"$f":"IF(Template!M994>0,Template!M994,-Template!N994)","v":0},null,null,null,{"$f":"VLOOKUP(G982,'Account mapping'!A:D,4,0)","v":{"$error":"#N/A"}}]
[{"$f":"LEFT(Template!A995,4)","v":""},{"$f":"VLOOKUP(A983,'Structure mapping'!K:V,7,0)","v":{"$error":"#N/A"}},{"$f":"LEFT(Template!B995,5)","v":""},{"$f":"VLOOKUP(C983,'Structure mapping'!F:J,5,0)","v":{"$error":"#N/A"}},{"$f":"LEFT(Template!C995,7)","v":""},{"$f":"VLOOKUP(E983,'Structure mapping'!A:E,5,0)","v":{"$error":"#N/A"}},{"$f":"LEFT(Template!D995,6)","v":""},{"$f":"VLOOKUP(G983,'Account mapping'!A:E,5,0)","v":{"$error":"#N/A"}},{"$f":"LEFT(Template!E995,2)","v":""},{"$f":"VLOOKUP(I983,'Structure mapping'!X:AB,5,0)","v":{"$error":"#N/A"}},{"$f":"LEFT(Template!F995,3)","v":""},{"$f":"VLOOKUP(K983,'Structure mapping'!AC:AG,5,0)","v":{"$error":"#N/A"}},{"$f":"LEFT(Template!G995,10)","v":""},{"$f":"VLOOKUP(M983,'Structure mapping'!AH:AL,5,0)","v":{"$error":"#N/A"}},{"$f":"LEFT(Template!H995,6)","v":""},{"$f":"VLOOKUP(O983,'Structure mapping'!AM:AQ,5,0)","v":{"$error":"#N/A"}},null,null,null,null,{"$f":"IF(Template!O995=\"\",\"\",Template!O995)","v":""},"Aug-24 pending entries",{"$f":"TEXT(Template!$B$9,\"mm/dd/yyy\")","v":"08/01/2024"},null,null,null,null,{"$f":"IF(Template!M995>0,Template!M995,-Template!N995)","v":0},null,null,null,{"$f":"VLOOKUP(G983,'Account mapping'!A:D,4,0)","v":{"$error":"#N/A"}}]
[{"$f":"LEFT(Template!A996,4)","v":""},{"$f":"VLOOKUP(A984,'Structure mapping'!K:V,7,0)","v":{"$error":"#N/A"}},{"$f":"LEFT(Template!B996,5)","v":""},{"$f":"VLOOKUP(C984,'Structure mapping'!F:J,5,0)","v":{"$error":"#N/A"}},{"$f":"LEFT(Template!C996,7)","v":""},{"$f":"VLOOKUP(E984,'Structure mapping'!A:E,5,0)","v":{"$error":"#N/A"}},{"$f":"LEFT(Template!D996,6)","v":""},{"$f":"VLOOKUP(G984,'Account mapping'!A:E,5,0)","v":{"$error":"#N/A"}},{"$f":"LEFT(Template!E996,2)","v":""},{"$f":"VLOOKUP(I984,'Structure mapping'!X:AB,5,0)","v":{"$error":"#N/A"}},{"$f":"LEFT(Template!F996,3)","v":""},{"$f":"VLOOKUP(K984,'Structure mapping'!AC:AG,5,0)","v":{"$error":"#N/A"}},{"$f":"LEFT(Template!G996,10)","v":""},{"$f":"VLOOKUP(M984,'Structure mapping'!AH:AL,5,0)","v":{"$error":"#N/A"}},{"$f":"LEFT(Template!H996,6)","v":""},{"$f":"VLOOKUP(O984,'Structure mapping'!AM:AQ,5,0)","v":{"$error":"#N/A"}},null,null,null,null,{"$f":"IF(Template!O996=\"\",\"\",Template!O996)","v":""},"Aug-24 pending entries",{"$f":"TEXT(Template!$B$9,\"mm/dd/yyy\")","v":"08/01/2024"},null,null,null,null,{"$f":"IF(Template!M996>0,Template!M996,-Template!N996)","v":0},null,null,null,{"$f":"VLOOKUP(G984,'Account mapping'!A:D,4,0)","v":{"$error":"#N/A"}}]
[{"$f":"LEFT(Template!A997,4)","v":""},{"$f":"VLOOKUP(A985,'Structure mapping'!K:V,7,0)","v":{"$error":"#N/A"}},{"$f":"LEFT(Template!B997,5)","v":""},{"$f":"VLOOKUP(C985,'Structure mapping'!F:J,5,0)","v":{"$error":"#N/A"}},{"$f":"LEFT(Template!C997,7)","v":""},{"$f":"VLOOKUP(E985,'Structure mapping'!A:E,5,0)","v":{"$error":"#N/A"}},{"$f":"LEFT(Template!D997,6)","v":""},{"$f":"VLOOKUP(G985,'Account mapping'!A:E,5,0)","v":{"$error":"#N/A"}},{"$f":"LEFT(Template!E997,2)","v":""},{"$f":"VLOOKUP(I985,'Structure mapping'!X:AB,5,0)","v":{"$error":"#N/A"}},{"$f":"LEFT(Template!F997,3)","v":""},{"$f":"VLOOKUP(K985,'Structure mapping'!AC:AG,5,0)","v":{"$error":"#N/A"}},{"$f":"LEFT(Template!G997,10)","v":""},{"$f":"VLOOKUP(M985,'Structure mapping'!AH:AL,5,0)","v":{"$error":"#N/A"}},{"$f":"LEFT(Template!H997,6)","v":""},{"$f":"VLOOKUP(O985,'Structure mapping'!AM:AQ,5,0)","v":{"$error":"#N/A"}},null,null,null,null,{"$f":"IF(Template!O997=\"\",\"\",Template!O997)","v":""},"Aug-24 pending entries",{"$f":"TEXT(Template!$B$9,\"mm/dd/yyy\")","v":"08/01/2024"},null,null,null,null,{"$f":"IF(Template!M997>0,Template!M997,-Template!N997)","v":0},null,null,null,{"$f":"VLOOKUP(G985,'Account mapping'!A:D,4,0)","v":{"$error":"#N/A"}}]
[{"$f":"LEFT(Template!A998,4)","v":""},{"$f":"VLOOKUP(A986,'Structure mapping'!K:V,7,0)","v":{"$error":"#N/A"}},{"$f":"LEFT(Template!B998,5)","v":""},{"$f":"VLOOKUP(C986,'Structure mapping'!F:J,5,0)","v":{"$error":"#N/A"}},{"$f":"LEFT(Template!C998,7)","v":""},{"$f":"VLOOKUP(E986,'Structure mapping'!A:E,5,0)","v":{"$error":"#N/A"}},{"$f":"LEFT(Template!D998,6)","v":""},{"$f":"VLOOKUP(G986,'Account mapping'!A:E,5,0)","v":{"$error":"#N/A"}},{"$f":"LEFT(Template!E998,2)","v":""},{"$f":"VLOOKUP(I986,'Structure mapping'!X:AB,5,0)","v":{"$error":"#N/A"}},{"$f":"LEFT(Template!F998,3)","v":""},{"$f":"VLOOKUP(K986,'Structure mapping'!AC:AG,5,0)","v":{"$error":"#N/A"}},{"$f":"LEFT(Template!G998,10)","v":""},{"$f":"VLOOKUP(M986,'Structure mapping'!AH:AL,5,0)","v":{"$error":"#N/A"}},{"$f":"LEFT(Template!H998,6)","v":""},{"$f":"VLOOKUP(O986,'Structure mapping'!AM:AQ,5,0)","v":{"$error":"#N/A"}},null,null,null,null,{"$f":"IF(Template!O998=\"\",\"\",Template!O998)","v":""},"Aug-24 pending entries",{"$f":"TEXT(Template!$B$9,\"mm/dd/yyy\")","v":"08/01/2024"},null,null,null,null,{"$f":"IF(Template!M998>0,Template!M998,-Template!N998)","v":0},null,null,null,{"$f":"VLOOKUP(G986,'Account mapping'!A:D,4,0)","v":{"$error":"#N/A"}}]
[{"$f":"LEFT(Template!A999,4)","v":""},{"$f":"VLOOKUP(A987,'Structure mapping'!K:V,7,0)","v":{"$error":"#N/A"}},{"$f":"LEFT(Template!B999,5)","v":""},{"$f":"VLOOKUP(C987,'Structure mapping'!F:J,5,0)","v":{"$error":"#N/A"}},{"$f":"LEFT(Template!C999,7)","v":""},{"$f":"VLOOKUP(E987,'Structure mapping'!A:E,5,0)","v":{"$error":"#N/A"}},{"$f":"LEFT(Template!D999,6)","v":""},{"$f":"VLOOKUP(G987,'Account mapping'!A:E,5,0)","v":{"$error":"#N/A"}},{"$f":"LEFT(Template!E999,2)","v":""},{"$f":"VLOOKUP(I987,'Structure mapping'!X:AB,5,0)","v":{"$error":"#N/A"}},{"$f":"LEFT(Template!F999,3)","v":""},{"$f":"VLOOKUP(K987,'Structure mapping'!AC:AG,5,0)","v":{"$error":"#N/A"}},{"$f":"LEFT(Template!G999,10)","v":""},{"$f":"VLOOKUP(M987,'Structure mapping'!AH:AL,5,0)","v":{"$error":"#N/A"}},{"$f":"LEFT(Template!H999,6)","v":""},{"$f":"VLOOKUP(O987,'Structure mapping'!AM:AQ,5,0)","v":{"$error":"#N/A"}},null,null,null,null,{"$f":"IF(Template!O999=\"\",\"\",Template!O999)","v":""},"Aug-24 pending entries",{"$f":"TEXT(Template!$B$9,\"mm/dd/yyy\")","v":"08/01/2024"},null,null,null,null,{"$f":"IF(Template!M999>0,Template!M999,-Template!N999)","v":0},null,null,null,{"$f":"VLOOKUP(G987,'Account mapping'!A:D,4,0)","v":{"$error":"#N/A"}}]
[{"$f":"LEFT(Template!A1000,4)","v":""},{"$f":"VLOOKUP(A988,'Structure mapping'!K:V,7,0)","v":{"$error":"#N/A"}},{"$f":"LEFT(Template!B1000,5)","v":""},{"$f":"VLOOKUP(C988,'Structure mapping'!F:J,5,0)","v":{"$error":"#N/A"}},{"$f":"LEFT(Template!C1000,7)","v":""},{"$f":"VLOOKUP(E988,'Structure mapping'!A:E,5,0)","v":{"$error":"#N/A"}},{"$f":"LEFT(Template!D1000,6)","v":""},{"$f":"VLOOKUP(G988,'Account mapping'!A:E,5,0)","v":{"$error":"#N/A"}},{"$f":"LEFT(Template!E1000,2)","v":""},{"$f":"VLOOKUP(I988,'Structure mapping'!X:AB,5,0)","v":{"$error":"#N/A"}},{"$f":"LEFT(Template!F1000,3)","v":""},{"$f":"VLOOKUP(K988,'Structure mapping'!AC:AG,5,0)","v":{"$error":"#N/A"}},{"$f":"LEFT(Template!G1000,10)","v":""},{"$f":"VLOOKUP(M988,'Structure mapping'!AH:AL,5,0)","v":{"$error":"#N/A"}},{"$f":"LEFT(Template!H1000,6)","v":""},{"$f":"VLOOKUP(O988,'Structure mapping'!AM:AQ,5,0)","v":{"$error":"#N/A"}},null,null,null,null,{"$f":"IF(Template!O1000=\"\",\"\",Template!O1000)","v":""},"Aug-24 pending entries",{"$f":"TEXT(Template!$B$9,\"mm/dd/yyy\")","v":"08/01/2024"},null,null,null,null,{"$f":"IF(Template!M1000>0,Template!M1000,-Template!N1000)","v":0},null,null,null,{"$f":"VLOOKUP(G988,'Account mapping'!A:D,4,0)","v":{"$error":"#N/A"}}]
[{"$f":"LEFT(Template!A1001,4)","v":""},{"$f":"VLOOKUP(A989,'Structure mapping'!K:V,7,0)","v":{"$error":"#N/A"}},{"$f":"LEFT(Template!B1001,5)","v":""},{"$f":"VLOOKUP(C989,'Structure mapping'!F:J,5,0)","v":{"$error":"#N/A"}},{"$f":"LEFT(Template!C1001,7)","v":""},{"$f":"VLOOKUP(E989,'Structure mapping'!A:E,5,0)","v":{"$error":"#N/A"}},{"$f":"LEFT(Template!D1001,6)","v":""},{"$f":"VLOOKUP(G989,'Account mapping'!A:E,5,0)","v":{"$error":"#N/A"}},{"$f":"LEFT(Template!E1001,2)","v":""},{"$f":"VLOOKUP(I989,'Structure mapping'!X:AB,5,0)","v":{"$error":"#N/A"}},{"$f":"LEFT(Template!F1001,3)","v":""},{"$f":"VLOOKUP(K989,'Structure mapping'!AC:AG,5,0)","v":{"$error":"#N/A"}},{"$f":"LEFT(Template!G1001,10)","v":""},{"$f":"VLOOKUP(M989,'Structure mapping'!AH:AL,5,0)","v":{"$error":"#N/A"}},{"$f":"LEFT(Template!H1001,6)","v":""},{"$f":"VLOOKUP(O989,'Structure mapping'!AM:AQ,5,0)","v":{"$error":"#N/A"}},null,null,null,null,{"$f":"IF(Template!O1001=\"\",\"\",Template!O1001)","v":""},"Aug-24 pending entries",{"$f":"TEXT(Template!$B$9,\"mm/dd/yyy\")","v":"08/01/2024"},null,null,null,null,{"$f":"IF(Template!M1001>0,Template!M1001,-Template!N1001)","v":0},null,null,null,{"$f":"VLOOKUP(G989,'Account mapping'!A:D,4,0)","v":{"$error":"#N/A"}}]
[{"$f":"LEFT(Template!A1002,4)","v":""},{"$f":"VLOOKUP(A990,'Structure mapping'!K:V,7,0)","v":{"$error":"#N/A"}},{"$f":"LEFT(Template!B1002,5)","v":""},{"$f":"VLOOKUP(C990,'Structure mapping'!F:J,5,0)","v":{"$error":"#N/A"}},{"$f":"LEFT(Template!C1002,7)","v":""},{"$f":"VLOOKUP(E990,'Structure mapping'!A:E,5,0)","v":{"$error":"#N/A"}},{"$f":"LEFT(Template!D1002,6)","v":""},{"$f":"VLOOKUP(G990,'Account mapping'!A:E,5,0)","v":{"$error":"#N/A"}},{"$f":"LEFT(Template!E1002,2)","v":""},{"$f":"VLOOKUP(I990,'Structure mapping'!X:AB,5,0)","v":{"$error":"#N/A"}},{"$f":"LEFT(Template!F1002,3)","v":""},{"$f":"VLOOKUP(K990,'Structure mapping'!AC:AG,5,0)","v":{"$error":"#N/A"}},{"$f":"LEFT(Template!G1002,10)","v":""},{"$f":"VLOOKUP(M990,'Structure mapping'!AH:AL,5,0)","v":{"$error":"#N/A"}},{"$f":"LEFT(Template!H1002,6)","v":""},{"$f":"VLOOKUP(O990,'Structure mapping'!AM:AQ,5,0)","v":{"$error":"#N/A"}},null,null,null,null,{"$f":"IF(Template!O1002=\"\",\"\",Template!O1002)","v":""},"Aug-24 pending entries",{"$f":"TEXT(Template!$B$9,\"mm/dd/yyy\")","v":"08/01/2024"},null,null,null,null,{"$f":"IF(Template!M1002>0,Template!M1002,-Template!N1002)","v":0},null,null,null,{"$f":"VLOOKUP(G990,'Account mapping'!A:D,4,0)","v":{"$error":"#N/A"}}]
[{"$f":"LEFT(Template!A1003,4)","v":""},{"$f":"VLOOKUP(A991,'Structure mapping'!K:V,7,0)","v":{"$error":"#N/A"}},{"$f":"LEFT(Template!B1003,5)","v":""},{"$f":"VLOOKUP(C991,'Structure mapping'!F:J,5,0)","v":{"$error":"#N/A"}},{"$f":"LEFT(Template!C1003,7)","v":""},{"$f":"VLOOKUP(E991,'Structure mapping'!A:E,5,0)","v":{"$error":"#N/A"}},{"$f":"LEFT(Template!D1003,6)","v":""},{"$f":"VLOOKUP(G991,'Account mapping'!A:E,5,0)","v":{"$error":"#N/A"}},{"$f":"LEFT(Template!E1003,2)","v":""},{"$f":"VLOOKUP(I991,'Structure mapping'!X:AB,5,0)","v":{"$error":"#N/A"}},{"$f":"LEFT(Template!F1003,3)","v":""},{"$f":"VLOOKUP(K991,'Structure mapping'!AC:AG,5,0)","v":{"$error":"#N/A"}},{"$f":"LEFT(Template!G1003,10)","v":""},{"$f":"VLOOKUP(M991,'Structure mapping'!AH:AL,5,0)","v":{"$error":"#N/A"}},{"$f":"LEFT(Template!H1003,6)","v":""},{"$f":"VLOOKUP(O991,'Structure mapping'!AM:AQ,5,0)","v":{"$error":"#N/A"}},null,null,null,null,{"$f":"IF(Template!O1003=\"\",\"\",Template!O1003)","v":""},"Aug-24 pending entries",{"$f":"TEXT(Template!$B$9,\"mm/dd/yyy\")","v":"08/01/2024"},null,null,null,null,{"$f":"IF(Template!M1003>0,Template!M1003,-Template!N1003)","v":0},null,null,null,{"$f":"VLOOKUP(G991,'Account mapping'!A:D,4,0)","v":{"$error":"#N/A"}}]
[{"$f":"LEFT(Template!A1004,4)","v":""},{"$f":"VLOOKUP(A992,'Structure mapping'!K:V,7,0)","v":{"$error":"#N/A"}},{"$f":"LEFT(Template!B1004,5)","v":""},{"$f":"VLOOKUP(C992,'Structure mapping'!F:J,5,0)","v":{"$error":"#N/A"}},{"$f":"LEFT(Template!C1004,7)","v":""},{"$f":"VLOOKUP(E992,'Structure mapping'!A:E,5,0)","v":{"$error":"#N/A"}},{"$f":"LEFT(Template!D1004,6)","v":""},{"$f":"VLOOKUP(G992,'Account mapping'!A:E,5,0)","v":{"$error":"#N/A"}},{"$f":"LEFT(Template!E1004,2)","v":""},{"$f":"VLOOKUP(I992,'Structure mapping'!X:AB,5,0)","v":{"$error":"#N/A"}},{"$f":"LEFT(Template!F1004,3)","v":""},{"$f":"VLOOKUP(K992,'Structure mapping'!AC:AG,5,0)","v":{"$error":"#N/A"}},{"$f":"LEFT(Template!G1004,10)","v":""},{"$f":"VLOOKUP(M992,'Structure mapping'!AH:AL,5,0)","v":{"$error":"#N/A"}},{"$f":"LEFT(Template!H1004,6)","v":""},{"$f":"VLOOKUP(O992,'Structure mapping'!AM:AQ,5,0)","v":{"$error":"#N/A"}},null,null,null,null,{"$f":"IF(Template!O1004=\"\",\"\",Template!O1004)","v":""},"Aug-24 pending entries",{"$f":"TEXT(Template!$B$9,\"mm/dd/yyy\")","v":"08/01/2024"},null,null,null,null,{"$f":"IF(Template!M1004>0,Template!M1004,-Template!N1004)","v":0},null,null,null,{"$f":"VLOOKUP(G992,'Account mapping'!A:D,4,0)","v":{"$error":"#N/A"}}]
[{"$f":"LEFT(Template!A1005,4)","v":""},{"$f":"VLOOKUP(A993,'Structure mapping'!K:V,7,0)","v":{"$error":"#N/A"}},{"$f":"LEFT(Template!B1005,5)","v":""},{"$f":"VLOOKUP(C993,'Structure mapping'!F:J,5,0)","v":{"$error":"#N/A"}},{"$f":"LEFT(Template!C1005,7)","v":""},{"$f":"VLOOKUP(E993,'Structure mapping'!A:E,5,0)","v":{"$error":"#N/A"}},{"$f":"LEFT(Template!D1005,6)","v":""},{"$f":"VLOOKUP(G993,'Account mapping'!A:E,5,0)","v":{"$error":"#N/A"}},{"$f":"LEFT(Template!E1005,2)","v":""},{"$f":"VLOOKUP(I993,'Structure mapping'!X:AB,5,0)","v":{"$error":"#N/A"}},{"$f":"LEFT(Template!F1005,3)","v":""},{"$f":"VLOOKUP(K993,'Structure mapping'!AC:AG,5,0)","v":{"$error":"#N/A"}},{"$f":"LEFT(Template!G1005,10)","v":""},{"$f":"VLOOKUP(M993,'Structure mapping'!AH:AL,5,0)","v":{"$error":"#N/A"}},{"$f":"LEFT(Template!H1005,6)","v":""},{"$f":"VLOOKUP(O993,'Structure mapping'!AM:AQ,5,0)","v":{"$error":"#N/A"}},null,null,null,null,{"$f":"IF(Template!O1005=\"\",\"\",Template!O1005)","v":""},"Aug-24 pending entries",{"$f":"TEXT(Template!$B$9,\"mm/dd/yyy\")","v":"08/01/2024"},null,null,null,null,{"$f":"IF(Template!M1005>0,Template!M1005,-Template!N1005)","v":0},null,null,null,{"$f":"VLOOKUP(G993,'Account mapping'!A:D,4,0)","v":{"$error":"#N/A"}}]
[{"$f":"LEFT(Template!A1006,4)","v":""},{"$f":"VLOOKUP(A994,'Structure mapping'!K:V,7,0)","v":{"$error":"#N/A"}},{"$f":"LEFT(Template!B1006,5)","v":""},{"$f":"VLOOKUP(C994,'Structure mapping'!F:J,5,0)","v":{"$error":"#N/A"}},{"$f":"LEFT(Template!C1006,7)","v":""},{"$f":"VLOOKUP(E994,'Structure mapping'!A:E,5,0)","v":{"$error":"#N/A"}},{"$f":"LEFT(Template!D1006,6)","v":""},{"$f":"VLOOKUP(G994,'Account mapping'!A:E,5,0)","v":{"$error":"#N/A"}},{"$f":"LEFT(Template!E1006,2)","v":""},{"$f":"VLOOKUP(I994,'Structure mapping'!X:AB,5,0)","v":{"$error":"#N/A"}},{"$f":"LEFT(Template!F1006,3)","v":""},{"$f":"VLOOKUP(K994,'Structure mapping'!AC:AG,5,0)","v":{"$error":"#N/A"}},{"$f":"LEFT(Template!G1006,10)","v":""},{"$f":"VLOOKUP(M994,'Structure mapping'!AH:AL,5,0)","v":{"$error":"#N/A"}},{"$f":"LEFT(Template!H1006,6)","v":""},{"$f":"VLOOKUP(O994,'Structure mapping'!AM:AQ,5,0)","v":{"$error":"#N/A"}},null,null,null,null,{"$f":"IF(Template!O1006=\"\",\"\",Template!O1006)","v":""},"Aug-24 pending entries",{"$f":"TEXT(Template!$B$9,\"mm/dd/yyy\")","v":"08/01/2024"},null,null,null,null,{"$f":"IF(Template!M1006>0,Template!M1006,-Template!N1006)","v":0},null,null,null,{"$f":"VLOOKUP(G994,'Account mapping'!A:D,4,0)","v":{"$error":"#N/A"}}]
[{"$f":"LEFT(Template!A1007,4)","v":""},{"$f":"VLOOKUP(A995,'Structure mapping'!K:V,7,0)","v":{"$error":"#N/A"}},{"$f":"LEFT(Template!B1007,5)","v":""},{"$f":"VLOOKUP(C995,'Structure mapping'!F:J,5,0)","v":{"$error":"#N/A"}},{"$f":"LEFT(Template!C1007,7)","v":""},{"$f":"VLOOKUP(E995,'Structure mapping'!A:E,5,0)","v":{"$error":"#N/A"}},{"$f":"LEFT(Template!D1007,6)","v":""},{"$f":"VLOOKUP(G995,'Account mapping'!A:E,5,0)","v":{"$error":"#N/A"}},{"$f":"LEFT(Template!E1007,2)","v":""},{"$f":"VLOOKUP(I995,'Structure mapping'!X:AB,5,0)","v":{"$error":"#N/A"}},{"$f":"LEFT(Template!F1007,3)","v":""},{"$f":"VLOOKUP(K995,'Structure mapping'!AC:AG,5,0)","v":{"$error":"#N/A"}},{"$f":"LEFT(Template!G1007,10)","v":""},{"$f":"VLOOKUP(M995,'Structure mapping'!AH:AL,5,0)","v":{"$error":"#N/A"}},{"$f":"LEFT(Template!H1007,6)","v":""},{"$f":"VLOOKUP(O995,'Structure mapping'!AM:AQ,5,0)","v":{"$error":"#N/A"}},null,null,null,null,{"$f":"IF(Template!O1007=\"\",\"\",Template!O1007)","v":""},"Aug-24 pending entries",{"$f":"TEXT(Template!$B$9,\"mm/dd/yyy\")","v":"08/01/2024"},null,null,null,null,{"$f":"IF(Template!M1007>0,Template!M1007,-Template!N1007)","v":0},null,null,null,{"$f":"VLOOKUP(G995,'Account mapping'!A:D,4,0)","v":{"$error":"#N/A"}}]
[{"$f":"LEFT(Template!A1008,4)","v":""},{"$f":"VLOOKUP(A996,'Structure mapping'!K:V,7,0)","v":{"$error":"#N/A"}},{"$f":"LEFT(Template!B1008,5)","v":""},{"$f":"VLOOKUP(C996,'Structure mapping'!F:J,5,0)","v":{"$error":"#N/A"}},{"$f":"LEFT(Template!C1008,7)","v":""},{"$f":"VLOOKUP(E996,'Structure mapping'!A:E,5,0)","v":{"$error":"#N/A"}},{"$f":"LEFT(Template!D1008,6)","v":""},{"$f":"VLOOKUP(G996,'Account mapping'!A:E,5,0)","v":{"$error":"#N/A"}},{"$f":"LEFT(Template!E1008,2)","v":""},{"$f":"VLOOKUP(I996,'Structure mapping'!X:AB,5,0)","v":{"$error":"#N/A"}},{"$f":"LEFT(Template!F1008,3)","v":""},{"$f":"VLOOKUP(K996,'Structure mapping'!AC:AG,5,0)","v":{"$error":"#N/A"}},{"$f":"LEFT(Template!G1008,10)","v":""},{"$f":"VLOOKUP(M996,'Structure mapping'!AH:AL,5,0)","v":{"$error":"#N/A"}},{"$f":"LEFT(Template!H1008,6)","v":""},{"$f":"VLOOKUP(O996,'Structure mapping'!AM:AQ,5,0)","v":{"$error":"#N/A"}},null,null,null,null,{"$f":"IF(Template!O1008=\"\",\"\",Template!O1008)","v":""},"Aug-24 pending entries",{"$f":"TEXT(Template!$B$9,\"mm/dd/yyy\")","v":"08/01/2024"},null,null,null,null,{"$f":"IF(Template!M1008>0,Template!M1008,-Template!N1008)","v":0},null,null,null,{"$f":"VLOOKUP(G996,'Account mapping'!A:D,4,0)","v":{"$error":"#N/A"}}]
[{"$f":"LEFT(Template!A1009,4)","v":""},{"$f":"VLOOKUP(A997,'Structure mapping'!K:V,7,0)","v":{"$error":"#N/A"}},{"$f":"LEFT(Template!B1009,5)","v":""},{"$f":"VLOOKUP(C997,'Structure mapping'!F:J,5,0)","v":{"$error":"#N/A"}},{"$f":"LEFT(Template!C1009,7)","v":""},{"$f":"VLOOKUP(E997,'Structure mapping'!A:E,5,0)","v":{"$error":"#N/A"}},{"$f":"LEFT(Template!D1009,6)","v":""},{"$f":"VLOOKUP(G997,'Account mapping'!A:E,5,0)","v":{"$error":"#N/A"}},{"$f":"LEFT(Template!E1009,2)","v":""},{"$f":"VLOOKUP(I997,'Structure mapping'!X:AB,5,0)","v":{"$error":"#N/A"}},{"$f":"LEFT(Template!F1009,3)","v":""},{"$f":"VLOOKUP(K997,'Structure mapping'!AC:AG,5,0)","v":{"$error":"#N/A"}},{"$f":"LEFT(Template!G1009,10)","v":""},{"$f":"VLOOKUP(M997,'Structure mapping'!AH:AL,5,0)","v":{"$error":"#N/A"}},{"$f":"LEFT(Template!H1009,6)","v":""},{"$f":"VLOOKUP(O997,'Structure mapping'!AM:AQ,5,0)","v":{"$error":"#N/A"}},null,null,null,null,{"$f":"IF(Template!O1009=\"\",\"\",Template!O1009)","v":""},"Aug-24 pending entries",{"$f":"TEXT(Template!$B$9,\"mm/dd/yyy\")","v":"08/01/2024"},null,null,null,null,{"$f":"IF(Template!M1009>0,Template!M1009,-Template!N1009)","v":0},null,null,null,{"$f":"VLOOKUP(G997,'Account mapping'!A:D,4,0)","v":{"$error":"#N/A"}}]
[{"$f":"LEFT(Template!A1010,4)","v":""},{"$f":"VLOOKUP(A998,'Structure mapping'!K:V,7,0)","v":{"$error":"#N/A"}},{"$f":"LEFT(Template!B1010,5)","v":""},{"$f":"VLOOKUP(C998,'Structure mapping'!F:J,5,0)","v":{"$error":"#N/A"}},{"$f":"LEFT(Template!C1010,7)","v":""},{"$f":"VLOOKUP(E998,'Structure mapping'!A:E,5,0)","v":{"$error":"#N/A"}},{"$f":"LEFT(Template!D1010,6)","v":""},{"$f":"VLOOKUP(G998,'Account mapping'!A:E,5,0)","v":{"$error":"#N/A"}},{"$f":"LEFT(Template!E1010,2)","v":""},{"$f":"VLOOKUP(I998,'Structure mapping'!X:AB,5,0)","v":{"$error":"#N/A"}},{"$f":"LEFT(Template!F1010,3)","v":""},{"$f":"VLOOKUP(K998,'Structure mapping'!AC:AG,5,0)","v":{"$error":"#N/A"}},{"$f":"LEFT(Template!G1010,10)","v":""},{"$f":"VLOOKUP(M998,'Structure mapping'!AH:AL,5,0)","v":{"$error":"#N/A"}},{"$f":"LEFT(Template!H1010,6)","v":""},{"$f":"VLOOKUP(O998,'Structure mapping'!AM:AQ,5,0)","v":{"$error":"#N/A"}},null,null,null,null,{"$f":"IF(Template!O1010=\"\",\"\",Template!O1010)","v":""},"Aug-24 pending entries",{"$f":"TEXT(Template!$B$9,\"mm/dd/yyy\")","v":"08/01/2024"},null,null,null,null,{"$f":"IF(Template!M1010>0,Template!M1010,-Template!N1010)","v":0},null,null,null,{"$f":"VLOOKUP(G998,'Account mapping'!A:D,4,0)","v":{"$error":"#N/A"}}]
[{"$f":"LEFT(Template!A1011,4)","v":""},{"$f":"VLOOKUP(A999,'Structure mapping'!K:V,7,0)","v":{"$error":"#N/A"}},{"$f":"LEFT(Template!B1011,5)","v":""},{"$f":"VLOOKUP(C999,'Structure mapping'!F:J,5,0)","v":{"$error":"#N/A"}},{"$f":"LEFT(Template!C1011,7)","v":""},{"$f":"VLOOKUP(E999,'Structure mapping'!A:E,5,0)","v":{"$error":"#N/A"}},{"$f":"LEFT(Template!D1011,6)","v":""},{"$f":"VLOOKUP(G999,'Account mapping'!A:E,5,0)","v":{"$error":"#N/A"}},{"$f":"LEFT(Template!E1011,2)","v":""},{"$f":"VLOOKUP(I999,'Structure mapping'!X:AB,5,0)","v":{"$error":"#N/A"}},{"$f":"LEFT(Template!F1011,3)","v":""},{"$f":"VLOOKUP(K999,'Structure mapping'!AC:AG,5,0)","v":{"$error":"#N/A"}},{"$f":"LEFT(Template!G1011,10)","v":""},{"$f":"VLOOKUP(M999,'Structure mapping'!AH:AL,5,0)","v":{"$error":"#N/A"}},{"$f":"LEFT(Template!H1011,6)","v":""},{"$f":"VLOOKUP(O999,'Structure mapping'!AM:AQ,5,0)","v":{"$error":"#N/A"}},null,null,null,null,{"$f":"IF(Template!O1011=\"\",\"\",Template!O1011)","v":""},"Aug-24 pending entries",{"$f":"TEXT(Template!$B$9,\"mm/dd/yyy\")","v":"08/01/2024"},null,null,null,null,{"$f":"IF(Template!M1011>0,Template!M1011,-Template!N1011)","v":0},null,null,null,{"$f":"VLOOKUP(G999,'Account mapping'!A:D,4,0)","v":{"$error":"#N/A"}}]
[{"$f":"LEFT(Template!A1012,4)","v":""},{"$f":"VLOOKUP(A1000,'Structure mapping'!K:V,7,0)","v":{"$error":"#N/A"}},{"$f":"LEFT(Template!B1012,5)","v":""},{"$f":"VLOOKUP(C1000,'Structure mapping'!F:J,5,0)","v":{"$error":"#N/A"}},{"$f":"LEFT(Template!C1012,7)","v":""},{"$f":"VLOOKUP(E1000,'Structure mapping'!A:E,5,0)","v":{"$error":"#N/A"}},{"$f":"LEFT(Template!D1012,6)","v":""},{"$f":"VLOOKUP(G1000,'Account mapping'!A:E,5,0)","v":{"$error":"#N/A"}},{"$f":"LEFT(Template!E1012,2)","v":""},{"$f":"VLOOKUP(I1000,'Structure mapping'!X:AB,5,0)","v":{"$error":"#N/A"}},{"$f":"LEFT(Template!F1012,3)","v":""},{"$f":"VLOOKUP(K1000,'Structure mapping'!AC:AG,5,0)","v":{"$error":"#N/A"}},{"$f":"LEFT(Template!G1012,10)","v":""},{"$f":"VLOOKUP(M1000,'Structure mapping'!AH:AL,5,0)","v":{"$error":"#N/A"}},{"$f":"LEFT(Template!H1012,6)","v":""},{"$f":"VLOOKUP(O1000,'Structure mapping'!AM:AQ,5,0)","v":{"$error":"#N/A"}},null,null,null,null,{"$f":"IF(Template!O1012=\"\",\"\",Template!O1012)","v":""},"Aug-24 pending entries",{"$f":"TEXT(Template!$B$9,\"mm/dd/yyy\")","v":"08/01/2024"},null,null,null,null,{"$f":"IF(Template!M1012>0,Template!M1012,-Template!N1012)","v":0},null,null,null,{"$f":"VLOOKUP(G1000,'Account mapping'!A:D,4,0)","v":{"$error":"#N/A"}}]
[{"$f":"LEFT(Template!A1013,4)","v":""},{"$f":"VLOOKUP(A1001,'Structure mapping'!K:V,7,0)","v":{"$error":"#N/A"}},{"$f":"LEFT(Template!B1013,5)","v":""},{"$f":"VLOOKUP(C1001,'Structure mapping'!F:J,5,0)","v":{"$error":"#N/A"}},{"$f":"LEFT(Template!C1013,7)","v":""},{"$f":"VLOOKUP(E1001,'Structure mapping'!A:E,5,0)","v":{"$error":"#N/A"}},{"$f":"LEFT(Template!D1013,6)","v":""},{"$f":"VLOOKUP(G1001,'Account mapping'!A:E,5,0)","v":{"$error":"#N/A"}},{"$f":"LEFT(Template!E1013,2)","v":""},{"$f":"VLOOKUP(I1001,'Structure mapping'!X:AB,5,0)","v":{"$error":"#N/A"}},{"$f":"LEFT(Template!F1013,3)","v":""},{"$f":"VLOOKUP(K1001,'Structure mapping'!AC:AG,5,0)","v":{"$error":"#N/A"}},{"$f":"LEFT(Template!G1013,10)","v":""},{"$f":"VLOOKUP(M1001,'Structure mapping'!AH:AL,5,0)","v":{"$error":"#N/A"}},{"$f":"LEFT(Template!H1013,6)","v":""},{"$f":"VLOOKUP(O1001,'Structure mapping'!AM:AQ,5,0)","v":{"$error":"#N/A"}},null,null,null,null,{"$f":"IF(Template!O1013=\"\",\"\",Template!O1013)","v":""},"Aug-24 pending entries",{"$f":"TEXT(Template!$B$9,\"mm/dd/yyy\")","v":"08/01/2024"},null,null,null,null,{"$f":"IF(Template!M1013>0,Template!M1013,-Template!N1013)","v":0},null,null,null,{"$f":"VLOOKUP(G1001,'Account mapping'!A:D,4,0)","v":{"$error":"#N/A"}}]
[{"$f":"LEFT(Template!A1014,4)","v":""},{"$f":"VLOOKUP(A1002,'Structure mapping'!K:V,7,0)","v":{"$error":"#N/A"}},{"$f":"LEFT(Template!B1014,5)","v":""},{"$f":"VLOOKUP(C1002,'Structure mapping'!F:J,5,0)","v":{"$error":"#N/A"}},{"$f":"LEFT(Template!C1014,7)","v":""},{"$f":"VLOOKUP(E1002,'Structure mapping'!A:E,5,0)","v":{"$error":"#N/A"}},{"$f":"LEFT(Template!D1014,6)","v":""},{"$f":"VLOOKUP(G1002,'Account mapping'!A:E,5,0)","v":{"$error":"#N/A"}},{"$f":"LEFT(Template!E1014,2)","v":""},{"$f":"VLOOKUP(I1002,'Structure mapping'!X:AB,5,0)","v":{"$error":"#N/A"}},{"$f":"LEFT(Template!F1014,3)","v":""},{"$f":"VLOOKUP(K1002,'Structure mapping'!AC:AG,5,0)","v":{"$error":"#N/A"}},{"$f":"LEFT(Template!G1014,10)","v":""},{"$f":"VLOOKUP(M1002,'Structure mapping'!AH:AL,5,0)","v":{"$error":"#N/A"}},{"$f":"LEFT(Template!H1014,6)","v":""},{"$f":"VLOOKUP(O1002,'Structure mapping'!AM:AQ,5,0)","v":{"$error":"#N/A"}},null,null,null,null,{"$f":"IF(Template!O1014=\"\",\"\",Template!O1014)","v":""},"Aug-24 pending entries",{"$f":"TEXT(Template!$B$9,\"mm/dd/yyy\")","v":"08/01/2024"},null,null,null,null,{"$f":"IF(Template!M1014>0,Template!M1014,-Template!N1014)","v":0},null,null,null,{"$f":"VLOOKUP(G1002,'Account mapping'!A:D,4,0)","v":{"$error":"#N/A"}}]
[{"$f":"LEFT(Template!A1015,4)","v":""},{"$f":"VLOOKUP(A1003,'Structure mapping'!K:V,7,0)","v":{"$error":"#N/A"}},{"$f":"LEFT(Template!B1015,5)","v":""},{"$f":"VLOOKUP(C1003,'Structure mapping'!F:J,5,0)","v":{"$error":"#N/A"}},{"$f":"LEFT(Template!C1015,7)","v":""},{"$f":"VLOOKUP(E1003,'Structure mapping'!A:E,5,0)","v":{"$error":"#N/A"}},{"$f":"LEFT(Template!D1015,6)","v":""},{"$f":"VLOOKUP(G1003,'Account mapping'!A:E,5,0)","v":{"$error":"#N/A"}},{"$f":"LEFT(Template!E1015,2)","v":""},{"$f":"VLOOKUP(I1003,'Structure mapping'!X:AB,5,0)","v":{"$error":"#N/A"}},{"$f":"LEFT(Template!F1015,3)","v":""},{"$f":"VLOOKUP(K1003,'Structure mapping'!AC:AG,5,0)","v":{"$error":"#N/A"}},{"$f":"LEFT(Template!G1015,10)","v":""},{"$f":"VLOOKUP(M1003,'Structure mapping'!AH:AL,5,0)","v":{"$error":"#N/A"}},{"$f":"LEFT(Template!H1015,6)","v":""},{"$f":"VLOOKUP(O1003,'Structure mapping'!AM:AQ,5,0)","v":{"$error":"#N/A"}},null,null,null,null,{"$f":"IF(Template!O1015=\"\",\"\",Template!O1015)","v":""},"Aug-24 pending entries",{"$f":"TEXT(Template!$B$9,\"mm/dd/yyy\")","v":"08/01/2024"},null,null,null,null,{"$f":"IF(Template!M1015>0,Template!M1015,-Template!N1015)","v":0},null,null,null,{"$f":"VLOOKUP(G1003,'Account mapping'!A:D,4,0)","v":{"$error":"#N/A"}}]
[{"$f":"LEFT(Template!A1016,4)","v":""},{"$f":"VLOOKUP(A1004,'Structure mapping'!K:V,7,0)","v":{"$error":"#N/A"}},{"$f":"LEFT(Template!B1016,5)","v":""},{"$f":"VLOOKUP(C1004,'Structure mapping'!F:J,5,0)","v":{"$error":"#N/A"}},{"$f":"LEFT(Template!C1016,7)","v":""},{"$f":"VLOOKUP(E1004,'Structure mapping'!A:E,5,0)","v":{"$error":"#N/A"}},{"$f":"LEFT(Template!D1016,6)","v":""},{"$f":"VLOOKUP(G1004,'Account mapping'!A:E,5,0)","v":{"$error":"#N/A"}},{"$f":"LEFT(Template!E1016,2)","v":""},{"$f":"VLOOKUP(I1004,'Structure mapping'!X:AB,5,0)","v":{"$error":"#N/A"}},{"$f":"LEFT(Template!F1016,3)","v":""},{"$f":"VLOOKUP(K1004,'Structure mapping'!AC:AG,5,0)","v":{"$error":"#N/A"}},{"$f":"LEFT(Template!G1016,10)","v":""},{"$f":"VLOOKUP(M1004,'Structure mapping'!AH:AL,5,0)","v":{"$error":"#N/A"}},{"$f":"LEFT(Template!H1016,6)","v":""},{"$f":"VLOOKUP(O1004,'Structure mapping'!AM:AQ,5,0)","v":{"$error":"#N/A"}},null,null,null,null,{"$f":"IF(Template!O1016=\"\",\"\",Template!O1016)","v":""},"Aug-24 pending entries",{"$f":"TEXT(Template!$B$9,\"mm/dd/yyy\")","v":"08/01/2024"},null,null,null,null,{"$f":"IF(Template!M1016>0,Template!M1016,-Template!N1016)","v":0},null,null,null,{"$f":"VLOOKUP(G1004,'Account mapping'!A:D,4,0)","v":{"$error":"#N/A"}}]
[{"$f":"LEFT(Template!A1017,4)","v":""},{"$f":"VLOOKUP(A1005,'Structure mapping'!K:V,7,0)","v":{"$error":"#N/A"}},{"$f":"LEFT(Template!B1017,5)","v":""},{"$f":"VLOOKUP(C1005,'Structure mapping'!F:J,5,0)","v":{"$error":"#N/A"}},{"$f":"LEFT(Template!C1017,7)","v":""},{"$f":"VLOOKUP(E1005,'Structure mapping'!A:E,5,0)","v":{"$error":"#N/A"}},{"$f":"LEFT(Template!D1017,6)","v":""},{"$f":"VLOOKUP(G1005,'Account mapping'!A:E,5,0)","v":{"$error":"#N/A"}},{"$f":"LEFT(Template!E1017,2)","v":""},{"$f":"VLOOKUP(I1005,'Structure mapping'!X:AB,5,0)","v":{"$error":"#N/A"}},{"$f":"LEFT(Template!F1017,3)","v":""},{"$f":"VLOOKUP(K1005,'Structure mapping'!AC:AG,5,0)","v":{"$error":"#N/A"}},{"$f":"LEFT(Template!G1017,10)","v":""},{"$f":"VLOOKUP(M1005,'Structure mapping'!AH:AL,5,0)","v":{"$error":"#N/A"}},{"$f":"LEFT(Template!H1017,6)","v":""},{"$f":"VLOOKUP(O1005,'Structure mapping'!AM:AQ,5,0)","v":{"$error":"#N/A"}},null,null,null,null,{"$f":"IF(Template!O1017=\"\",\"\",Template!O1017)","v":""},"Aug-24 pending entries",{"$f":"TEXT(Template!$B$9,\"mm/dd/yyy\")","v":"08/01/2024"},null,null,null,null,{"$f":"IF(Template!M1017>0,Template!M1017,-Template!N1017)","v":0},null,null,null,{"$f":"VLOOKUP(G1005,'Account mapping'!A:D,4,0)","v":{"$error":"#N/A"}}]
[{"$f":"LEFT(Template!A1018,4)","v":""},{"$f":"VLOOKUP(A1006,'Structure mapping'!K:V,7,0)","v":{"$error":"#N/A"}},{"$f":"LEFT(Template!B1018,5)","v":""},{"$f":"VLOOKUP(C1006,'Structure mapping'!F:J,5,0)","v":{"$error":"#N/A"}},{"$f":"LEFT(Template!C1018,7)","v":""},{"$f":"VLOOKUP(E1006,'Structure mapping'!A:E,5,0)","v":{"$error":"#N/A"}},{"$f":"LEFT(Template!D1018,6)","v":""},{"$f":"VLOOKUP(G1006,'Account mapping'!A:E,5,0)","v":{"$error":"#N/A"}},{"$f":"LEFT(Template!E1018,2)","v":""},{"$f":"VLOOKUP(I1006,'Structure mapping'!X:AB,5,0)","v":{"$error":"#N/A"}},{"$f":"LEFT(Template!F1018,3)","v":""},{"$f":"VLOOKUP(K1006,'Structure mapping'!AC:AG,5,0)","v":{"$error":"#N/A"}},{"$f":"LEFT(Template!G1018,10)","v":""},{"$f":"VLOOKUP(M1006,'Structure mapping'!AH:AL,5,0)","v":{"$error":"#N/A"}},{"$f":"LEFT(Template!H1018,6)","v":""},{"$f":"VLOOKUP(O1006,'Structure mapping'!AM:AQ,5,0)","v":{"$error":"#N/A"}},null,null,null,null,{"$f":"IF(Template!O1018=\"\",\"\",Template!O1018)","v":""},"Aug-24 pending entries",{"$f":"TEXT(Template!$B$9,\"mm/dd/yyy\")","v":"08/01/2024"},null,null,null,null,{"$f":"IF(Template!M1018>0,Template!M1018,-Template!N1018)","v":0},null,null,null,{"$f":"VLOOKUP(G1006,'Account mapping'!A:D,4,0)","v":{"$error":"#N/A"}}]
[{"$f":"LEFT(Template!A1019,4)","v":""},{"$f":"VLOOKUP(A1007,'Structure mapping'!K:V,7,0)","v":{"$error":"#N/A"}},{"$f":"LEFT(Template!B1019,5)","v":""},{"$f":"VLOOKUP(C1007,'Structure mapping'!F:J,5,0)","v":{"$error":"#N/A"}},{"$f":"LEFT(Template!C1019,7)","v":""},{"$f":"VLOOKUP(E1007,'Structure mapping'!A:E,5,0)","v":{"$error":"#N/A"}},{"$f":"LEFT(Template!D1019,6)","v":""},{"$f":"VLOOKUP(G1007,'Account mapping'!A:E,5,0)","v":{"$error":"#N/A"}},{"$f":"LEFT(Template!E1019,2)","v":""},{"$f":"VLOOKUP(I1007,'Structure mapping'!X:AB,5,0)","v":{"$error":"#N/A"}},{"$f":"LEFT(Template!F1019,3)","v":""},{"$f":"VLOOKUP(K1007,'Structure mapping'!AC:AG,5,0)","v":{"$error":"#N/A"}},{"$f":"LEFT(Template!G1019,10)","v":""},{"$f":"VLOOKUP(M1007,'Structure mapping'!AH:AL,5,0)","v":{"$error":"#N/A"}},{"$f":"LEFT(Template!H1019,6)","v":""},{"$f":"VLOOKUP(O1007,'Structure mapping'!AM:AQ,5,0)","v":{"$error":"#N/A"}},null,null,null,null,{"$f":"IF(Template!O1019=\"\",\"\",Template!O1019)","v":""},"Aug-24 pending entries",{"$f":"TEXT(Template!$B$9,\"mm/dd/yyy\")","v":"08/01/2024"},null,null,null,null,{"$f":"IF(Template!M1019>0,Template!M1019,-Template!N1019)","v":0},null,null,null,{"$f":"VLOOKUP(G1007,'Account mapping'!A:D,4,0)","v":{"$error":"#N/A"}}]
[{"$f":"LEFT(Template!A1020,4)","v":""},{"$f":"VLOOKUP(A1008,'Structure mapping'!K:V,7,0)","v":{"$error":"#N/A"}},{"$f":"LEFT(Template!B1020,5)","v":""},{"$f":"VLOOKUP(C1008,'Structure mapping'!F:J,5,0)","v":{"$error":"#N/A"}},{"$f":"LEFT(Template!C1020,7)","v":""},{"$f":"VLOOKUP(E1008,'Structure mapping'!A:E,5,0)","v":{"$error":"#N/A"}},{"$f":"LEFT(Template!D1020,6)","v":""},{"$f":"VLOOKUP(G1008,'Account mapping'!A:E,5,0)","v":{"$error":"#N/A"}},{"$f":"LEFT(Template!E1020,2)","v":""},{"$f":"VLOOKUP(I1008,'Structure mapping'!X:AB,5,0)","v":{"$error":"#N/A"}},{"$f":"LEFT(Template!F1020,3)","v":""},{"$f":"VLOOKUP(K1008,'Structure mapping'!AC:AG,5,0)","v":{"$error":"#N/A"}},{"$f":"LEFT(Template!G1020,10)","v":""},{"$f":"VLOOKUP(M1008,'Structure mapping'!AH:AL,5,0)","v":{"$error":"#N/A"}},{"$f":"LEFT(Template!H1020,6)","v":""},{"$f":"VLOOKUP(O1008,'Structure mapping'!AM:AQ,5,0)","v":{"$error":"#N/A"}},null,null,null,null,{"$f":"IF(Template!O1020=\"\",\"\",Template!O1020)","v":""},"Aug-24 pending entries",{"$f":"TEXT(Template!$B$9,\"mm/dd/yyy\")","v":"08/01/2024"},null,null,null,null,{"$f":"IF(Template!M1020>0,Template!M1020,-Template!N1020)","v":0},null,null,null,{"$f":"VLOOKUP(G1008,'Account mapping'!A:D,4,0)","v":{"$error":"#N/A"}}]
[{"$f":"LEFT(Template!A1021,4)","v":""},{"$f":"VLOOKUP(A1009,'Structure mapping'!K:V,7,0)","v":{"$error":"#N/A"}},{"$f":"LEFT(Template!B1021,5)","v":""},{"$f":"VLOOKUP(C1009,'Structure mapping'!F:J,5,0)","v":{"$error":"#N/A"}},{"$f":"LEFT(Template!C1021,7)","v":""},{"$f":"VLOOKUP(E1009,'Structure mapping'!A:E,5,0)","v":{"$error":"#N/A"}},{"$f":"LEFT(Template!D1021,6)","v":""},{"$f":"VLOOKUP(G1009,'Account mapping'!A:E,5,0)","v":{"$error":"#N/A"}},{"$f":"LEFT(Template!E1021,2)","v":""},{"$f":"VLOOKUP(I1009,'Structure mapping'!X:AB,5,0)","v":{"$error":"#N/A"}},{"$f":"LEFT(Template!F1021,3)","v":""},{"$f":"VLOOKUP(K1009,'Structure mapping'!AC:AG,5,0)","v":{"$error":"#N/A"}},{"$f":"LEFT(Template!G1021,10)","v":""},{"$f":"VLOOKUP(M1009,'Structure mapping'!AH:AL,5,0)","v":{"$error":"#N/A"}},{"$f":"LEFT(Template!H1021,6)","v":""},{"$f":"VLOOKUP(O1009,'Structure mapping'!AM:AQ,5,0)","v":{"$error":"#N/A"}},null,null,null,null,{"$f":"IF(Template!O1021=\"\",\"\",Template!O1021)","v":""},"Aug-24 pending entries",{"$f":"TEXT(Template!$B$9,\"mm/dd/yyy\")","v":"08/01/2024"},null,null,null,null,{"$f":"IF(Template!M1021>0,Template!M1021,-Template!N1021)","v":0},null,null,null,{"$f":"VLOOKUP(G1009,'Account mapping'!A:D,4,0)","v":{"$error":"#N/A"}}]
[{"$f":"LEFT(Template!A1022,4)","v":""},{"$f":"VLOOKUP(A1010,'Structure mapping'!K:V,7,0)","v":{"$error":"#N/A"}},{"$f":"LEFT(Template!B1022,5)","v":""},{"$f":"VLOOKUP(C1010,'Structure mapping'!F:J,5,0)","v":{"$error":"#N/A"}},{"$f":"LEFT(Template!C1022,7)","v":""},{"$f":"VLOOKUP(E1010,'Structure mapping'!A:E,5,0)","v":{"$error":"#N/A"}},{"$f":"LEFT(Template!D1022,6)","v":""},{"$f":"VLOOKUP(G1010,'Account mapping'!A:E,5,0)","v":{"$error":"#N/A"}},{"$f":"LEFT(Template!E1022,2)","v":""},{"$f":"VLOOKUP(I1010,'Structure mapping'!X:AB,5,0)","v":{"$error":"#N/A"}},{"$f":"LEFT(Template!F1022,3)","v":""},{"$f":"VLOOKUP(K1010,'Structure mapping'!AC:AG,5,0)","v":{"$error":"#N/A"}},{"$f":"LEFT(Template!G1022,10)","v":""},{"$f":"VLOOKUP(M1010,'Structure mapping'!AH:AL,5,0)","v":{"$error":"#N/A"}},{"$f":"LEFT(Template!H1022,6)","v":""},{"$f":"VLOOKUP(O1010,'Structure mapping'!AM:AQ,5,0)","v":{"$error":"#N/A"}},null,null,null,null,{"$f":"IF(Template!O1022=\"\",\"\",Template!O1022)","v":""},"Aug-24 pending entries",{"$f":"TEXT(Template!$B$9,\"mm/dd/yyy\")","v":"08/01/2024"},null,null,null,null,{"$f":"IF(Template!M1022>0,Template!M1022,-Template!N1022)","v":0},null,null,null,{"$f":"VLOOKUP(G1010,'Account mapping'!A:D,4,0)","v":{"$error":"#N/A"}}]

{"sheet":"Account mapping","index":4,"n_rows":7800,"n_cols":5,"rows_kept":7800,"cut":false,"hidden":true,"merged":[[14,0,15,0],[14,1,15,2],[16,0,17,0],[16,1,17,2],[18,0,19,0],[18,1,19,2],[7,1,7,2],[8,0,9,0],[8,1,9,2],[10,0,11,0],[10,1,11,2],[12,0,13,0],[12,1,13,2],[32,0,33,0],[32,1,33,2],[34,0,35,0],[34,1,35,2],[36,0,37,0],[36,1,37,2],[26,0,27,0],[26,1,27,2],[28,0,29,0],[28,1,29,2],[30,0,31,0],[30,1,31,2],[20,0,21,0],[20,1,21,2],[22,0,23,0],[22,1,23,2],[24,0,25,0],[24,1,25,2],[50,0,51,0],[50,1,51,2],[52,0,53,0],[52,1,53,2],[54,0,55,0],[54,1,55,2],[44,0,45,0],[44,1,45,2],[46,0,47,0],[46,1,47,2],[48,0,49,0],[48,1,49,2],[38,0,39,0],[38,1,39,2],[40,0,41,0],[40,1,41,2],[42,0,43,0],[42,1,43,2],[68,0,69,0],[68,1,69,2],[70,0,71,0],[70,1,71,2],[72,0,73,0],[72,1,73,2],[62,0,63,0],[62,1,63,2],[64,0,65,0],[64,1,65,2],[66,0,67,0],[66,1,67,2],[56,0,57,0],[56,1,57,2],[58,0,59,0],[58,1,59,2],[60,0,61,0],[60,1,61,2],[86,0,87,0],[86,1,87,2],[88,0,89,0],[88,1,89,2],[90,0,91,0],[90,1,91,2],[80,0,81,0],[80,1,81,2],[82,0,83,0],[82,1,83,2],[84,0,85,0],[84,1,85,2],[74,0,75,0],[74,1,75,2],[76,0,77,0],[76,1,77,2],[78,0,79,0],[78,1,79,2],[104,0,105,0],[104,1,105,2],[106,0,107,0],[106,1,107,2],[108,0,109,0],[108,1,109,2],[98,0,99,0],[98,1,99,2],[100,0,101,0],[100,1,101,2],[102,0,103,0],[102,1,103,2],[92,0,93,0],[92,1,93,2],[94,0,95,0],[94,1,95,2],[96,0,97,0],[96,1,97,2],[122,0,123,0],[122,1,123,2],[124,0,125,0],[124,1,125,2],[126,0,127,0],[126,1,127,2],[116,0,117,0],[116,1,117,2],[118,0,119,0],[118,1,119,2],[120,0,121,0],[120,1,121,2],[110,0,111,0],[110,1,111,2],[112,0,113,0],[112,1,113,2],[114,0,115,0],[114,1,115,2],[140,0,141,0],[140,1,141,2],[142,0,143,0],[142,1,143,2],[144,0,145,0],[144,1,145,2],[134,0,135,0],[134,1,135,2],[136,0,137,0],[136,1,137,2],[138,0,139,0],[138,1,139,2],[128,0,129,0],[128,1,129,2],[130,0,131,0],[130,1,131,2],[132,0,133,0],[132,1,133,2],[158,0,159,0],[158,1,159,2],[160,0,161,0],[160,1,161,2],[162,0,163,0],[162,1,163,2],[152,0,153,0],[152,1,153,2],[154,0,155,0],[154,1,155,2],[156,0,157,0],[156,1,157,2],[146,0,147,0],[146,1,147,2],[148,0,149,0],[148,1,149,2],[150,0,151,0],[150,1,151,2],[176,0,177,0],[176,1,177,2],[178,0,179,0],[178,1,179,2],[180,0,181,0],[180,1,181,2],[170,0,171,0],[170,1,171,2],[172,0,173,0],[172,1,173,2],[174,0,175,0],[174,1,175,2],[164,0,165,0],[164,1,165,2],[166,0,167,0],[166,1,167,2],[168,0,169,0],[168,1,169,2],[194,0,195,0],[194,1,195,2],[196,0,197,0],[196,1,197,2],[198,0,199,0],[198,1,199,2],[188,0,189,0],[188,1,189,2],[190,0,191,0],[190,1,191,2],[192,0,193,0],[192,1,193,2],[182,0,183,0],[182,1,183,2],[184,0,185,0],[184,1,185,2],[186,0,187,0],[186,1,187,2],[212,0,213,0],[212,1,213,2],[214,0,215,0],[214,1,215,2],[216,0,217,0],[216,1,217,2],[206,0,207,0],[206,1,207,2],[208,0,209,0],[208,1,209,2],[210,0,211,0],[210,1,211,2],[200,0,201,0],[200,1,201,2],[202,0,203,0],[202,1,203,2],[204,0,205,0],[204,1,205,2],[230,0,231,0],[230,1,231,2],[232,0,233,0],[232,1,233,2],[234,0,235,0],[234,1,235,2],[224,0,225,0],[224,1,225,2],[226,0,227,0],[226,1,227,2],[228,0,229,0],[228,1,229,2],[218,0,219,0],[218,1,219,2],[220,0,221,0],[220,1,221,2],[222,0,223,0],[222,1,223,2],[248,0,249,0],[248,1,249,2],[250,0,251,0],[250,1,251,2],[252,0,253,0],[252,1,253,2],[242,0,243,0],[242,1,243,2],[244,0,245,0],[244,1,245,2],[246,0,247,0],[246,1,247,2],[236,0,237,0],[236,1,237,2],[238,0,239,0],[238,1,239,2],[240,0,241,0],[240,1,241,2],[266,0,267,0],[266,1,267,2],[268,0,269,0],[268,1,269,2],[270,0,271,0],[270,1,271,2],[260,0,261,0],[260,1,261,2],[262,0,263,0],[262,1,263,2],[264,0,265,0],[264,1,265,2],[254,0,255,0],[254,1,255,2],[256,0,257,0],[256,1,257,2],[258,0,259,0],[258,1,259,2],[284,0,285,0],[284,1,285,2],[286,0,287,0],[286,1,287,2],[288,0,289,0],[288,1,289,2],[278,0,279,0],[278,1,279,2],[280,0,281,0],[280,1,281,2],[282,0,283,0],[282,1,283,2],[272,0,273,0],[272,1,273,2],[274,0,275,0],[274,1,275,2],[276,0,277,0],[276,1,277,2],[302,0,303,0],[302,1,303,2],[304,0,305,0],[304,1,305,2],[306,0,307,0],[306,1,307,2],[296,0,297,0],[296,1,297,2],[298,0,299,0],[298,1,299,2],[300,0,301,0],[300,1,301,2],[290,0,291,0],[290,1,291,2],[292,0,293,0],[292,1,293,2],[294,0,295,0],[294,1,295,2],[320,0,321,0],[320,1,321,2],[322,0,323,0],[322,1,323,2],[324,0,325,0],[324,1,325,2],[314,0,315,0],[314,1,315,2],[316,0,317,0],[316,1,317,2],[318,0,319,0],[318,1,319,2],[308,0,309,0],[308,1,309,2],[310,0,311,0],[310,1,311,2],[312,0,313,0],[312,1,313,2],[338,0,339,0],[338,1,339,2],[340,0,341,0],[340,1,341,2],[342,0,343,0],[342,1,343,2],[332,0,333,0],[332,1,333,2],[334,0,335,0],[334,1,335,2],[336,0,337,0],[336,1,337,2],[326,0,327,0],[326,1,327,2],[328,0,329,0],[328,1,329,2],[330,0,331,0],[330,1,331,2],[356,0,357,0],[356,1,357,2],[358,0,359,0],[358,1,359,2],[360,0,361,0],[360,1,361,2],[350,0,351,0],[350,1,351,2],[352,0,353,0],[352,1,353,2],[354,0,355,0],[354,1,355,2],[344,0,345,0],[344,1,345,2],[346,0,347,0],[346,1,347,2],[348,0,349,0],[348,1,349,2],[374,0,375,0],[374,1,375,2],[376,0,377,0],[376,1,377,2],[378,0,379,0],[378,1,379,2],[368,0,369,0],[368,1,369,2],[370,0,371,0],[370,1,371,2],[372,0,373,0],[372,1,373,2],[362,0,363,0],[362,1,363,2],[364,0,365,0],[364,1,365,2],[366,0,367,0],[366,1,367,2],[392,0,393,0],[392,1,393,2],[394,0,395,0],[394,1,395,2],[396,0,397,0],[396,1,397,2],[386,0,387,0],[386,1,387,2],[388,0,389,0],[388,1,389,2],[390,0,391,0],[390,1,391,2],[380,0,381,0],[380,1,381,2],[382,0,383,0],[382,1,383,2],[384,0,385,0],[384,1,385,2],[410,0,411,0],[410,1,411,2],[412,0,413,0],[412,1,413,2],[414,0,415,0],[414,1,415,2],[404,0,405,0],[404,1,405,2],[406,0,407,0],[406,1,407,2],[408,0,409,0],[408,1,409,2],[398,0,399,0],[398,1,399,2],[400,0,401,0],[400,1,401,2],[402,0,403,0],[402,1,403,2],[428,0,429,0],[428,1,429,2],[430,0,431,0],[430,1,431,2],[432,0,433,0],[432,1,433,2],[422,0,423,0],[422,1,423,2],[424,0,425,0],[424,1,425,2],[426,0,427,0],[426,1,427,2],[416,0,417,0],[416,1,417,2],[418,0,419,0],[418,1,419,2],[420,0,421,0],[420,1,421,2],[446,0,447,0],[446,1,447,2],[448,0,449,0],[448,1,449,2],[450,0,451,0],[450,1,451,2],[440,0,441,0],[440,1,441,2],[442,0,443,0],[442,1,443,2],[444,0,445,0],[444,1,445,2],[434,0,435,0],[434,1,435,2],[436,0,437,0],[436,1,437,2],[438,0,439,0],[438,1,439,2],[464,0,465,0],[464,1,465,2],[466,0,467,0],[466,1,467,2],[468,0,469,0],[468,1,469,2],[458,0,459,0],[458,1,459,2],[460,0,461,0],[460,1,461,2],[462,0,463,0],[462,1,463,2],[452,0,453,0],[452,1,453,2],[454,0,455,0],[454,1,455,2],[456,0,457,0],[456,1,457,2],[482,0,483,0],[482,1,483,2],[484,0,485,0],[484,1,485,2],[486,0,487,0],[486,1,487,2],[476,0,477,0],[476,1,477,2],[478,0,479,0],[478,1,479,2],[480,0,481,0],[480,1,481,2],[470,0,471,0],[470,1,471,2],[472,0,473,0],[472,1,473,2],[474,0,475,0],[474,1,475,2],[500,0,501,0],[500,1,501,2],[502,0,503,0],[502,1,503,2],[504,0,505,0],[504,1,505,2],[494,0,495,0],[494,1,495,2],[496,0,497,0],[496,1,497,2],[498,0,499,0],[498,1,499,2],[488,0,489,0],[488,1,489,2],[490,0,491,0],[490,1,491,2],[492,0,493,0],[492,1,493,2],[518,0,519,0],[518,1,519,2],[520,0,521,0],[520,1,521,2],[522,0,523,0],[522,1,523,2],[512,0,513,0],[512,1,513,2],[514,0,515,0],[514,1,515,2],[516,0,517,0],[516,1,517,2],[506,0,507,0],[506,1,507,2],[508,0,509,0],[508,1,509,2],[510,0,511,0],[510,1,511,2],[536,0,537,0],[536,1,537,2],[538,0,539,0],[538,1,539,2],[540,0,541,0],[540,1,541,2],[530,0,531,0],[530,1,531,2],[532,0,533,0],[532,1,533,2],[534,0,535,0],[534,1,535,2],[524,0,525,0],[524,1,525,2],[526,0,527,0],[526,1,527,2],[528,0,529,0],[528,1,529,2],[554,0,555,0],[554,1,555,2],[556,0,557,0],[556,1,557,2],[558,0,559,0],[558,1,559,2],[548,0,549,0],[548,1,549,2],[550,0,551,0],[550,1,551,2],[552,0,553,0],[552,1,553,2],[542,0,543,0],[542,1,543,2],[544,0,545,0],[544,1,545,2],[546,0,547,0],[546,1,547,2],[572,0,573,0],[572,1,573,2],[574,0,575,0],[574,1,575,2],[576,0,577,0],[576,1,577,2],[566,0,567,0],[566,1,567,2],[568,0,569,0],[568,1,569,2],[570,0,571,0],[570,1,571,2],[560,0,561,0],[560,1,561,2],[562,0,563,0],[562,1,563,2],[564,0,565,0],[564,1,565,2],[590,0,591,0],[590,1,591,2],[592,0,593,0],[592,1,593,2],[594,0,595,0],[594,1,595,2],[584,0,585,0],[584,1,585,2],[586,0,587,0],[586,1,587,2],[588,0,589,0],[588,1,589,2],[578,0,579,0],[578,1,579,2],[580,0,581,0],[580,1,581,2],[582,0,583,0],[582,1,583,2],[608,0,609,0],[608,1,609,2],[610,0,611,0],[610,1,611,2],[612,0,613,0],[612,1,613,2],[602,0,603,0],[602,1,603,2],[604,0,605,0],[604,1,605,2],[606,0,607,0],[606,1,607,2],[596,0,597,0],[596,1,597,2],[598,0,599,0],[598,1,599,2],[600,0,601,0],[600,1,601,2],[626,0,627,0],[626,1,627,2],[628,0,629,0],[628,1,629,2],[630,0,631,0],[630,1,631,2],[620,0,621,0],[620,1,621,2],[622,0,623,0],[622,1,623,2],[624,0,625,0],[624,1,625,2],[614,0,615,0],[614,1,615,2],[616,0,617,0],[616,1,617,2],[618,0,619,0],[618,1,619,2],[644,0,645,0],[644,1,645,2],[646,0,647,0],[646,1,647,2],[648,0,649,0],[648,1,649,2],[638,0,639,0],[638,1,639,2],[640,0,641,0],[640,1,641,2],[642,0,643,0],[642,1,643,2],[632,0,633,0],[632,1,633,2],[634,0,635,0],[634,1,635,2],[636,0,637,0],[636,1,637,2],[662,0,663,0],[662,1,663,2],[664,0,665,0],[664,1,665,2],[666,0,667,0],[666,1,667,2],[656,0,657,0],[656,1,657,2],[658,0,659,0],[658,1,659,2],[660,0,661,0],[660,1,661,2],[650,0,651,0],[650,1,651,2],[652,0,653,0],[652,1,653,2],[654,0,655,0],[654,1,655,2],[680,0,681,0],[680,1,681,2],[682,0,683,0],[682,1,683,2],[684,0,685,0],[684,1,685,2],[674,0,675,0],[674,1,675,2],[676,0,677,0],[676,1,677,2],[678,0,679,0],[678,1,679,2],[668,0,669,0],[668,1,669,2],[670,0,671,0],[670,1,671,2],[672,0,673,0],[672,1,673,2],[698,0,699,0],[698,1,699,2],[700,0,701,0],[700,1,701,2],[702,0,703,0],[702,1,703,2],[692,0,693,0],[692,1,693,2],[694,0,695,0],[694,1,695,2],[696,0,697,0],[696,1,697,2],[686,0,687,0],[686,1,687,2],[688,0,689,0],[688,1,689,2],[690,0,691,0],[690,1,691,2],[716,0,717,0],[716,1,717,2],[718,0,719,0],[718,1,719,2],[720,0,721,0],[720,1,721,2],[710,0,711,0],[710,1,711,2],[712,0,713,0],[712,1,713,2],[714,0,715,0],[714,1,715,2],[704,0,705,0],[704,1,705,2],[706,0,707,0],[706,1,707,2],[708,0,709,0],[708,1,709,2],[734,0,735,0],[734,1,735,2],[736,0,737,0],[736,1,737,2],[738,0,739,0],[738,1,739,2],[728,0,729,0],[728,1,729,2],[730,0,731,0],[730,1,731,2],[732,0,733,0],[732,1,733,2],[722,0,723,0],[722,1,723,2],[724,0,725,0],[724,1,725,2],[726,0,727,0],[726,1,727,2],[752,0,753,0],[752,1,753,2],[754,0,755,0],[754,1,755,2],[756,0,757,0],[756,1,757,2],[746,0,747,0],[746,1,747,2],[748,0,749,0],[748,1,749,2],[750,0,751,0],[750,1,751,2],[740,0,741,0],[740,1,741,2],[742,0,743,0],[742,1,743,2],[744,0,745,0],[744,1,745,2],[770,0,771,0],[770,1,771,2],[772,0,773,0],[772,1,773,2],[774,0,775,0],[774,1,775,2],[764,0,765,0],[764,1,765,2],[766,0,767,0],[766,1,767,2],[768,0,769,0],[768,1,769,2],[758,0,759,0],[758,1,759,2],[760,0,761,0],[760,1,761,2],[762,0,763,0],[762,1,763,2],[788,0,789,0],[788,1,789,2],[790,0,791,0],[790,1,791,2],[792,0,793,0],[792,1,793,2],[782,0,783,0],[782,1,783,2],[784,0,785,0],[784,1,785,2],[786,0,787,0],[786,1,787,2],[776,0,777,0],[776,1,777,2],[778,0,779,0],[778,1,779,2],[780,0,781,0],[780,1,781,2],[806,0,807,0],[806,1,807,2],[808,0,809,0],[808,1,809,2],[810,0,811,0],[810,1,811,2],[800,0,801,0],[800,1,801,2],[802,0,803,0],[802,1,803,2],[804,0,805,0],[804,1,805,2],[794,0,795,0],[794,1,795,2],[796,0,797,0],[796,1,797,2],[798,0,799,0],[798,1,799,2],[824,0,825,0],[824,1,825,2],[826,0,827,0],[826,1,827,2],[828,0,829,0],[828,1,829,2],[818,0,819,0],[818,1,819,2],[820,0,821,0],[820,1,821,2],[822,0,823,0],[822,1,823,2],[812,0,813,0],[812,1,813,2],[814,0,815,0],[814,1,815,2],[816,0,817,0],[816,1,817,2],[842,0,843,0],[842,1,843,2],[844,0,845,0],[844,1,845,2],[846,0,847,0],[846,1,847,2],[836,0,837,0],[836,1,837,2],[838,0,839,0],[838,1,839,2],[840,0,841,0],[840,1,841,2],[830,0,831,0],[830,1,831,2],[832,0,833,0],[832,1,833,2],[834,0,835,0],[834,1,835,2],[860,0,861,0],[860,1,861,2],[862,0,863,0],[862,1,863,2],[864,0,865,0],[864,1,865,2],[854,0,855,0],[854,1,855,2],[856,0,857,0],[856,1,857,2],[858,0,859,0],[858,1,859,2],[848,0,849,0],[848,1,849,2],[850,0,851,0],[850,1,851,2],[852,0,853,0],[852,1,853,2],[878,0,879,0],[878,1,879,2],[880,0,881,0],[880,1,881,2],[882,0,883,0],[882,1,883,2],[872,0,873,0],[872,1,873,2],[874,0,875,0],[874,1,875,2],[876,0,877,0],[876,1,877,2],[866,0,867,0],[866,1,867,2],[868,0,869,0],[868,1,869,2],[870,0,871,0],[870,1,871,2],[896,0,897,0],[896,1,897,2],[898,0,899,0],[898,1,899,2],[900,0,901,0],[900,1,901,2],[890,0,891,0],[890,1,891,2],[892,0,893,0],[892,1,893,2],[894,0,895,0],[894,1,895,2],[884,0,885,0],[884,1,885,2],[886,0,887,0],[886,1,887,2],[888,0,889,0],[888,1,889,2],[914,0,915,0],[914,1,915,2],[916,0,917,0],[916,1,917,2],[918,0,919,0],[918,1,919,2],[908,0,909,0],[908,1,909,2],[910,0,911,0],[910,1,911,2],[912,0,913,0],[912,1,913,2],[902,0,903,0],[902,1,903,2],[904,0,905,0],[904,1,905,2],[906,0,907,0],[906,1,907,2],[932,0,933,0],[932,1,933,2],[934,0,935,0],[934,1,935,2],[936,0,937,0],[936,1,937,2],[926,0,927,0],[926,1,927,2],[928,0,929,0],[928,1,929,2],[930,0,931,0],[930,1,931,2],[920,0,921,0],[920,1,921,2],[922,0,923,0],[922,1,923,2],[924,0,925,0],[924,1,925,2],[950,0,951,0],[950,1,951,2],[952,0,953,0],[952,1,953,2],[954,0,955,0],[954,1,955,2],[944,0,945,0],[944,1,945,2],[946,0,947,0],[946,1,947,2],[948,0,949,0],[948,1,949,2],[938,0,939,0],[938,1,939,2],[940,0,941,0],[940,1,941,2],[942,0,943,0],[942,1,943,2],[968,0,969,0],[968,1,969,2],[970,0,971,0],[970,1,971,2],[972,0,973,0],[972,1,973,2],[962,0,963,0],[962,1,963,2],[964,0,965,0],[964,1,965,2],[966,0,967,0],[966,1,967,2],[956,0,957,0],[956,1,957,2],[958,0,959,0],[958,1,959,2],[960,0,961,0],[960,1,961,2],[986,0,987,0],[986,1,987,2],[988,0,989,0],[988,1,989,2],[990,0,991,0],[990,1,991,2],[980,0,981,0],[980,1,981,2],[982,0,983,0],[982,1,983,2],[984,0,985,0],[984,1,985,2],[974,0,975,0],[974,1,975,2],[976,0,977,0],[976,1,977,2],[978,0,979,0],[978,1,979,2],[1004,0,1005,0],[1004,1,1005,2],[1006,0,1007,0],[1006,1,1007,2],[1008,0,1009,0],[1008,1,1009,2],[998,0,999,0],[998,1,999,2],[1000,0,1001,0],[1000,1,1001,2],[1002,0,1003,0],[1002,1,1003,2],[992,0,993,0],[992,1,993,2],[994,0,995,0]],"merged_total":7793,"flags":["merged_cut"]}
[]
[]
[]
[]
[]
[]
[]
["Child","Description",null,"Account Type"]
[null,"All Assets ",null,"Asset","All Assets"]
[null,null,null,null,""]
[null,"Current Assets ",null,"Asset","Current Assets"]
[null,null,null,null,""]
[null,"Cash and Cash Equivalent ",null,"Asset","Cash and Cash Equivalent"]
[null,null,null,null,""]
[null,"Bank Accounts ",null,"Asset","Bank Accounts"]
[null,null,null,null,""]
[null,"Bank Accounts including Bank Clearing Accts ",null,"Asset","Bank Accounts including Bank Clearing Accts"]
[null,null,null,null,""]
["100000","Bank of America Deposits X4115 ",null,"Asset","Bank of America Deposits X4115"]
[null,null,null,null,""]
["100001","Bank of America Returned Checks X4114 ",null,"Asset","Bank of America Returned Checks X4114"]
[null,null,null,null,""]
["100002","BNY Mellon ACH Deposits X2884 ",null,"Asset","BNY Mellon ACH Deposits X2884"]
[null,null,null,null,""]
["100003","Bank of America Credit Card X0068 ",null,"Asset","Bank of America Credit Card X0068"]
[null,null,null,null,""]
["100004","BNY Mellon MC AP ",null,"Asset","BNY Mellon MC AP"]
[null,null,null,null,""]
["100020","Wells Fargo Law School Client Trust X0279 ",null,"Asset","Wells Fargo Law School Client Trust X0279"]
[null,null,null,null,""]
["100021","Bodega Bay Marine Disbursements BOA X9073 ",null,"Asset","Bodega Bay Marine Disbursements BOA X9073"]
[null,null,null,null,""]
["100022","ASUCD Checking X2274 ",null,"Asset","ASUCD Checking X2274"]
[null,null,null,null,""]
["100023","Tahoe Research and Education Facility Capital Trust X3849 ",null,"Asset","Tahoe Research and Education Facility Capital Trust X3849"]
[null,null,null,null,""]
["100030","Wells Fargo AP X6791 ",null,"Asset","Wells Fargo AP X6791"]
[null,null,null,null,""]
["100031","Bank of America EFT X3496 ",null,"Asset","Bank of America EFT X3496"]
[null,null,null,null,""]
["100032","BNY Mellon Vendor EFT X9964 ",null,"Asset","BNY Mellon Vendor EFT X9964"]
[null,null,null,null,""]
["100033","Wells Fargo Payroll Checks X6791 ",null,"Asset","Wells Fargo Payroll Checks X6791"]
[null,null,null,null,""]
["100034","Wells Fargo Sure pay ",null,"Asset","Wells Fargo Sure pay"]
[null,null,null,null,""]
["100035","Medical Center Disbursement Account ",null,"Asset","Medical Center Disbursement Account"]
[null,null,null,null,""]
["100050","CAAA Wells Fargo ",null,"Asset","CAAA Wells Fargo"]
[null,null,null,null,""]
["100051","Wells Fargo Iranian Chapter ",null,"Asset","Wells Fargo Iranian Chapter"]
[null,null,null,null,""]
["100052","Wells Fargo Animal Science Chapter ",null,"Asset","Wells Fargo Animal Science Chapter"]
[null,null,null,null,""]
["100054","Wells Fargo X4569 5A Chapter ",null,"Asset","Wells Fargo X4569 5A Chapter"]
[null,null,null,null,""]
["100056","Wells Fargo Savings ",null,"Asset","Wells Fargo Savings"]
[null,null,null,null,""]
["100057","Life Member Reserve GEP STIP ",null,"Asset","Life Member Reserve GEP STIP"]
[null,null,null,null,""]
["100058","Board Reserve Fund GEP STIP ",null,"Asset","Board Reserve Fund GEP STIP"]
[null,null,null,null,""]
["100070","Wells Fargo Bank X1538 ",null,"Asset","Wells Fargo Bank X1538"]
[null,null,null,null,""]
["100071","Cash Development Fund ",null,"Asset","Cash Development Fund"]
[null,null,null,null,""]
["100072","Cash UCD Ledgers ",null,"Asset","Cash UCD Ledgers"]
[null,null,null,null,""]
["100073","Cash TPG UCD Ledgers ",null,"Asset","Cash TPG UCD Ledgers"]
[null,null,null,null,""]
["100074","Cash UCOP Regents STIP ",null,"Asset","Cash UCOP Regents STIP"]
[null,null,null,null,""]
["100075","Cash Accumulated Earnings ",null,"Asset","Cash Accumulated Earnings"]
[null,null,null,null,""]
["100076","Cash Earnings at OP ",null,"Asset","Cash Earnings at OP"]
[null,null,null,null,""]
["100077","UCDF Wells Fargo ",null,"Asset","UCDF Wells Fargo"]
[null,null,null,null,""]
["100100","Clearing Cash Deposits ",null,"Asset","Clearing Cash Deposits"]
[null,null,null,null,""]
["100101","Bank of America Transfers X990 ",null,"Asset","Bank of America Transfers X990"]
[null,null,null,null,""]
["100102","Deposit In Transit ",null,"Asset","Deposit In Transit"]
[null,null,null,null,""]
["100103","Cash Adjustments Stale Dated Checks ",null,"Asset","Cash Adjustments Stale Dated Checks"]
[null,null,null,null,""]
["100104","Cash Controlled Disbursements AP ",null,"Asset","Cash Controlled Disbursements AP"]
[null,null,null,null,""]
["100105","Merchant Account Clearing ",null,"Asset","Merchant Account Clearing"]
[null,null,null,null,""]
["100300","MC BNY MELLON BANK ",null,"Asset","MC BNY MELLON BANK"]
[null,null,null,null,""]
["100301","MC WELLS FARGO BANK ",null,"Asset","MC WELLS FARGO BANK"]
[null,null,null,null,""]
["100302","MC STALE DATED AP CHECKS ",null,"Asset","MC STALE DATED AP CHECKS"]
[null,null,null,null,""]
["100303","MC BANK OF AMERICA Depository ",null,"Asset","MC BANK OF AMERICA Depository"]
[null,null,null,null,""]
["100304","MC CREDIT CARD MERCHANT SERVICES ",null,"Asset","MC CREDIT CARD MERCHANT SERVICES"]
[null,null,null,null,""]
["100400","Intercompany Cash Clearing ",null,"Asset","Intercompany Cash Clearing"]
[null,null,null,null,""]
["14X000","Intercompany Due from Due to Account ",null,"Asset","Intercompany Due from Due to Account"]
[null,null,null,null,""]
[null,"Petty Cash and Other ",null,"Asset","Petty Cash and Other"]
[null,null,null,null,""]
[null,"Petty Cash and Other Cash ",null,"Asset","Petty Cash and Other Cash"]
[null,null,null,null,""]
["101000","Petty Cash ",null,"Asset","Petty Cash"]
[null,null,null,null,""]
["101001","Change Funds ",null,"Asset","Change Funds"]
[null,null,null,null,""]
["101002","Other Cash ",null,"Asset","Other Cash"]
[null,null,null,null,""]
["101700","Medical Center Cash Clearing ",null,"Asset","Medical Center Cash Clearing"]
[null,null,null,null,""]
["101701","Medical Center OP Cash Clearing ",null,"Asset","Medical Center OP Cash Clearing"]
[null,null,null,null,""]
["101702","MC Cash Clearing from Deposits at Campus ",null,"Asset","MC Cash Clearing from Deposits at Campus"]
[null,null,null,null,""]
["101703","SOM Patient Cash Clearing from Deposit at Campus ",null,"Asset","SOM Patient Cash Clearing from Deposit at Campus"]
[null,null,null,null,""]
["101704","Campus Cash Transfer to SOH from Deposit at MC ",null,"Asset","Campus Cash Transfer to SOH from Deposit at MC"]
[null,null,null,null,""]
["101705","Cash Transfer to Campus from Deposit at MC ",null,"Asset","Cash Transfer to Campus from Deposit at MC"]
[null,null,null,null,""]
["101706","Campus Cash from SOH Deposit at MC ",null,"Asset","Campus Cash from SOH Deposit at MC"]
[null,null,null,null,""]
["101707","MISCELLANEOUS AR CASH CLEARLING ",null,"Asset","MISCELLANEOUS AR CASH CLEARLING"]
[null,null,null,null,""]
["101708","MC Gift Cash Clearing ",null,"Asset","MC Gift Cash Clearing"]
[null,null,null,null,""]
[null,"Financial Control ",null,"Asset","Financial Control"]
[null,null,null,null,""]
[null,"Financial Control UCB ",null,"Asset","Financial Control UCB"]
[null,null,null,null,""]
["102010","Financial Control UC Berkeley ",null,"Asset","Financial Control UC Berkeley"]
[null,null,null,null,""]
[null,"Financial Control UCSF ",null,"Asset","Financial Control UCSF"]
[null,null,null,null,""]
["102020","Financial Control UC San Francisco ",null,"Asset","Financial Control UC San Francisco"]
[null,null,null,null,""]
[null,"Financial Control UCD ",null,"Asset","Financial Control UCD"]
[null,null,null,null,""]
["102030","Financial Control UC Davis ",null,"Asset","Financial Control UC Davis"]
[null,null,null,null,""]
["102031","Financial Control UC Davis Over 100K ",null,"Asset","Financial Control UC Davis Over 100K"]
[null,null,null,null,""]
["1020A1","IRR Accounts Receivable ",null,"Asset","IRR Accounts Receivable"]
[null,null,null,null,""]
[null,"Financial Control UCLA ",null,"Asset","Financial Control UCLA"]
[null,null,null,null,""]
["102040","Financial Control UC Los Angeles ",null,"Asset","Financial Control UC Los Angeles"]
[null,null,null,null,""]
[null,"Financial Control UCR ",null,"Asset","Financial Control UCR"]
[null,null,null,null,""]
["102050","Financial Control UC Riverside ",null,"Asset","Financial Control UC Riverside"]
[null,null,null,null,""]
[null,"Financial Control UCSD ",null,"Asset","Financial Control UCSD"]
[null,null,null,null,""]
["102060","Financial Control UC San Diego ",null,"Asset","Financial Control UC San Diego"]
[null,null,null,null,""]
[null,"Financial Control UCSC ",null,"Asset","Financial Control UCSC"]
[null,null,null,null,""]
["102070","Financial Control UC Santa Cruz ",null,"Asset","Financial Control UC Santa Cruz"]
[null,null,null,null,""]
[null,"Financial Control UCSB ",null,"Asset","Financial Control UCSB"]
[null,null,null,null,""]
["102080","Financial Control UC Santa Barbara ",null,"Asset","Financial Control UC Santa Barbara"]
[null,null,null,null,""]
[null,"Financial Control UCI ",null,"Asset","Financial Control UCI"]
[null,null,null,null,""]
["102090","Financial Control UC Irvine ",null,"Asset","Financial Control UC Irvine"]
[null,null,null,null,""]
[null,"Financial Control UCM ",null,"Asset","Financial Control UCM"]
[null,null,null,null,""]
["102100","Financial Control UC Merced ",null,"Asset","Financial Control UC Merced"]
[null,null,null,null,""]
[null,"Financial Control UCOP ",null,"Asset","Financial Control UCOP"]
[null,null,null,null,""]
["102110","Financial Control UC Office of the President ",null,"Asset","Financial Control UC Office of the President"]
[null,null,null,null,""]
["102111","Financial Control UCOP M Under 100K ",null,"Liability","Financial Control UCOP M Under 100K"]
[null,null,null,null,""]
[null,"Financial Control ANR ",null,"Asset","Financial Control ANR"]
[null,null,null,null,""]
["102120","Financial Control UC ANR ",null,"Asset","Financial Control UC ANR"]
[null,null,null,null,""]
["102121","Financial Control UC ANR Over 100K ",null,"Liability","Financial Control UC ANR Over 100K"]
[null,null,null,null,""]
[null,"Short Term Investments ",null,"Asset","Short Term Investments"]
[null,null,null,null,""]
[null,"Short Term Investments Current Portion ",null,"Asset","Short Term Investments Current Portion"]
[null,null,null,null,""]
[null,"Short Term Investments Current Portions ",null,"Asset","Short Term Investments Current Portions"]
[null,null,null,null,""]
["105000","TRIP Investment ",null,"Asset","TRIP Investment"]
[null,null,null,null,""]
["105020","ASUCD Temporary Investments ",null,"Asset","ASUCD Temporary Investments"]
[null,null,null,null,""]
["105080","UCD Foundation General Account ",null,"Asset","UCD Foundation General Account"]
[null,null,null,null,""]
["105081","UCD Foundation Cash Undistributed ",null,"Asset","UCD Foundation Cash Undistributed"]
[null,null,null,null,""]
["105082","UCD Foundation Payroll Deductions ",null,"Asset","UCD Foundation Payroll Deductions"]
[null,null,null,null,""]
[null,"Investment of Cash Collateral ",null,"Asset","Investment of Cash Collateral"]
[null,null,null,null,""]
[null,"Securities Lending Current Portion ",null,"Asset","Securities Lending Current Portion"]
[null,null,null,null,""]
[null,"Securities Lending Current Portions ",null,"Asset","Securities Lending Current Portions"]
[null,null,null,null,""]
["106000","Securities Lending Current ",null,"Asset","Securities Lending Current"]
[null,null,null,null,""]
[null,"Investments Held by Trustees ",null,"Asset","Investments Held by Trustees"]
[null,null,null,null,""]
[null,"Self Insurance Current Portion ",null,"Asset","Self Insurance Current Portion"]
[null,null,null,null,""]
[null,"Self Insurance Current Portions ",null,"Asset","Self Insurance Current Portions"]
[null,null,null,null,""]
["107000","Self Insurance Current ",null,"Asset","Self Insurance Current"]
[null,null,null,null,""]
[null,"Long Term Debt Current Portion C ",null,"Asset","Long Term Debt Current Portion C"]
[null,null,null,null,""]
[null,"Long Term Debt Current Portion D ",null,"Asset","Long Term Debt Current Portion D"]
[null,null,null,null,""]
["107100","Long Term Debt Current ",null,"Asset","Long Term Debt Current"]
[null,null,null,null,""]
[null,"Capital Current Portion ",null,"Asset","Capital Current Portion"]
[null,null,null,null,""]
[null,"Capital Current Portions ",null,"Asset","Capital Current Portions"]
[null,null,null,null,""]
["107200","Capital Current ",null,"Asset","Capital Current"]
[null,null,null,null,""]
[null,"Other Investments Held by Trustees Current Portion ",null,"Asset","Other Investments Held by Trustees Current Portion"]
[null,null,null,null,""]
[null,"Other Investments Held By Trustees Unspent Current Portion ",null,"Asset","Other Investments Held By Trustees Unspent Current Portion"]
[null,null,null,null,""]
["107300","Investments Unspent Current ",null,"Asset","Investments Unspent Current"]
[null,null,null,null,""]
[null,"Other Investments Held By Trustees Spent Current Portion ",null,"Asset","Other Investments Held By Trustees Spent Current Portion"]
[null,null,null,null,""]
["107310","Investments Spent Current ",null,"Asset","Investments Spent Current"]
[null,null,null,null,""]
[null,"Accounts Receivable ",null,"Asset","Accounts Receivable"]
[null,null,null,null,""]
[null,"AR Tuition and Fees ",null,"Asset","AR Tuition and Fees"]
[null,null,null,null,""]
[null,"Tuition and Fees Accounts Receivable ",null,"Asset","Tuition and Fees Accounts Receivable"]
[null,null,null,null,""]
["120000","Accounts Receivable Deferred Student Fees ",null,"Asset","Accounts Receivable Deferred Student Fees"]
[null,null,null,null,""]
["120001","Accounts Receivable Course Material Fees ",null,"Asset","Accounts Receivable Course Material Fees"]
[null,null,null,null,""]
["120002","Accounts Receivable Other Tuition and Fees ",null,"Asset","Accounts Receivable Other Tuition and Fees"]
[null,null,null,null,""]
["120003","Accounts Receivable Registration Fees Fall Quarter ",null,"Asset","Accounts Receivable Registration Fees Fall Quarter"]
[null,null,null,null,""]
["120004","Accounts Receivable Registration Fees Winter Quarter ",null,"Asset","Accounts Receivable Registration Fees Winter Quarter"]
[null,null,null,null,""]
["120005","Accounts Receivable Registration Fees Spring Quarter ",null,"Asset","Accounts Receivable Registration Fees Spring Quarter"]
[null,null,null,null,""]
["120006","Accounts Receivable Registration Fees Summer Quarter ",null,"Asset","Accounts Receivable Registration Fees Summer Quarter"]
[null,null,null,null,""]
["120007","Accounts Receivable Registration Fees Fall Semester ",null,"Asset","Accounts Receivable Registration Fees Fall Semester"]
[null,null,null,null,""]
["120008","Accounts Receivable Registration Fees Spring Semester ",null,"Asset","Accounts Receivable Registration Fees Spring Semester"]
[null,null,null,null,""]
[null,"Student Tuition and Fees Allowance for Uncollectible ",null,"Asset","Student Tuition and Fees Allowance for Uncollectible"]
[null,null,null,null,""]
["120800","Allowance for Uncollectible Student Tuition and Fees ",null,"Asset","Allowance for Uncollectible Student Tuition and Fees"]
[null,null,null,null,""]
[null,"AR Federal CGA ",null,"Asset","AR Federal CGA"]
[null,null,null,null,""]
[null,"AR Federal Appropriations ",null,"Asset","AR Federal Appropriations"]
[null,null,null,null,""]
["121000","Accounts Receivable Federal Appropriations ",null,"Asset","Accounts Receivable Federal Appropriations"]
[null,null,null,null,""]
[null,"Federal Appropriations Allowance for Uncollectible ",null,"Asset","Federal Appropriations Allowance for Uncollectible"]
[null,null,null,null,""]
["121100","Allowance for Uncollectible Federal Appropriations ",null,"Asset","Allowance for Uncollectible Federal Appropriations"]
[null,null,null,null,""]
[null,"Federal Contracts and Grants ",null,"Asset","Federal Contracts and Grants"]
[null,null,null,null,""]
["121200","Accounts Receivable Federal Contracts and Grants ",null,"Asset","Accounts Receivable Federal Contracts and Grants"]
[null,null,null,null,""]
[null,"Federal Contracts and Grants Allowance for Uncollectible ",null,"Asset","Federal Contracts and Grants Allowance for Uncollectible"]
[null,null,null,null,""]
["121600","Allowance For Uncollectible Federal Contracts and Grants ",null,"Asset","Allowance For Uncollectible Federal Contracts and Grants"]
[null,null,null,null,""]
[null,"Pell Grants ",null,"Asset","Pell Grants"]
[null,null,null,null,""]
["121700","Accounts Receivable Pell Grants ",null,"Asset","Accounts Receivable Pell Grants"]
[null,null,null,null,""]
[null,"Build America Bond Interest Subsidies ",null,"Asset","Build America Bond Interest Subsidies"]
[null,null,null,null,""]
["121800","Accounts Receivable Build America Bond Interest Subsidies ",null,"Asset","Accounts Receivable Build America Bond Interest Subsidies"]
[null,null,null,null,""]
[null,"AR State CGA ",null,"Asset","AR State CGA"]
[null,null,null,null,""]
[null,"State Appropriations Educational and Operating Activities ",null,"Asset","State Appropriations Educational and Operating Activities"]
[null,null,null,null,""]
["122000","Accounts Receivable State Appropriations Educ and UCOP Operating ",null,"Asset","Accounts Receivable State Appropriations Educ and UCOP Operating"]
[null,null,null,null,""]
[null,"State Appropriations Educ Allowance for Uncollectible Operate ",null,"Asset","State Appropriations Educ Allowance for Uncollectible Operate"]
[null,null,null,null,""]
["122100","Allowance for Uncollectible State Appropriations Educ Operating ",null,"Asset","Allowance for Uncollectible State Appropriations Educ Operating"]
[null,null,null,null,""]
[null,"State Appropriation Capital ",null,"Asset","State Appropriation Capital"]
[null,null,null,null,""]
["122200","Accounts Receivable State Appropriations Capital ",null,"Asset","Accounts Receivable State Appropriations Capital"]
[null,null,null,null,""]
[null,"State Contracts and Grants ",null,"Asset","State Contracts and Grants"]
[null,null,null,null,""]
["122400","Accounts Receivable State Contracts and Grants ",null,"Asset","Accounts Receivable State Contracts and Grants"]
[null,null,null,null,""]
["122401","PPM Contracts and Grants Receivables ",null,"Asset","PPM Contracts and Grants Receivables"]
[null,null,null,null,""]
["122402","PPM Contracts and Grants Unbilled Receivables ",null,"Asset","PPM Contracts and Grants Unbilled Receivables"]
[null,null,null,null,""]
[null,"State Contracts and Grants Allowance for Uncollectible ",null,"Asset","State Contracts and Grants Allowance for Uncollectible"]
[null,null,null,null,""]
["122800","Allowance for Uncollectible State Contracts and Grants ",null,"Asset","Allowance for Uncollectible State Contracts and Grants"]
[null,null,null,null,""]
[null,"AR Local CGA ",null,"Asset","AR Local CGA"]
[null,null,null,null,""]
[null,"Local Contracts and Grants ",null,"Asset","Local Contracts and Grants"]
[null,null,null,null,""]
["124000","Accounts Receivable Local Contracts and Grants ",null,"Asset","Accounts Receivable Local Contracts and Grants"]
[null,null,null,null,""]
[null,"Local Contracts and Grants Allowance for Uncollectible ",null,"Asset","Local Contracts and Grants Allowance for Uncollectible"]
[null,null,null,null,""]
["124300","Allowance for Uncollectible Local Contracts and Grants ",null,"Asset","Allowance for Uncollectible Local Contracts and Grants"]
[null,null,null,null,""]
[null,"AR Private CGA ",null,"Asset","AR Private CGA"]
[null,null,null,null,""]
[null,"Private Contracts and Grants ",null,"Asset","Private Contracts and Grants"]
[null,null,null,null,""]
["124500","Accounts Receivable Private Contracts and Grants ",null,"Asset","Accounts Receivable Private Contracts and Grants"]
[null,null,null,null,""]
[null,"Private Contracts and Grants Allowance for Uncollectible ",null,"Asset","Private Contracts and Grants Allowance for Uncollectible"]
[null,null,null,null,""]
["124800","Allowance for Uncollectible Private Contracts and Grants ",null,"Asset","Allowance for Uncollectible Private Contracts and Grants"]
[null,null,null,null,""]
[null,"Medical Centers Patient Accounts ",null,"Asset","Medical Centers Patient Accounts"]
[null,null,null,null,""]
[null,"Patient Account Receivables Net of Contractual Allowance ",null,"Asset","Patient Account Receivables Net of Contractual Allowance"]
[null,null,null,null,""]
["125000","Patient Accounts Receivable CPG ",null,"Asset","Patient Accounts Receivable CPG"]
[null,null,null,null,""]
["125001","Patient Accounts Receivable Clearing CPG ",null,"Asset","Patient Accounts Receivable Clearing CPG"]
[null,null,null,null,""]
["125002","Patient Cash Clearing CPG ",null,"Asset","Patient Cash Clearing CPG"]
[null,null,null,null,""]
["125003","Patient Accounts Receivable Midlevel ",null,"Asset","Patient Accounts Receivable Midlevel"]
[null,null,null,null,""]
["125004","Patient Accounts Receivable HB ",null,"Asset","Patient Accounts Receivable HB"]
[null,null,null,null,""]
["125005","Patient Accounts Receivable Clearing HB ",null,"Asset","Patient Accounts Receivable Clearing HB"]
[null,null,null,null,""]
["125006","Patient Cash Clearing HB ",null,"Asset","Patient Cash Clearing HB"]
[null,null,null,null,""]
["125007","Accounts Receivable Pharmacy ",null,"Asset","Accounts Receivable Pharmacy"]
[null,null,null,null,""]
["125008","Accounts Receivable Dental Patient ",null,"Asset","Accounts Receivable Dental Patient"]
[null,null,null,null,""]
["125009","Patient Refund Cash Clearing CPG ",null,"Asset","Patient Refund Cash Clearing CPG"]
[null,null,null,null,""]
[null,"Patient Account Receivables Allowance for Uncollectible ",null,"Asset","Patient Account Receivables Allowance for Uncollectible"]
[null,null,null,null,""]
["125600","Accounts Receivable Bad Debt CPG ",null,"Asset","Accounts Receivable Bad Debt CPG"]
[null,null,null,null,""]
["125601","Allowance for Contractuals CPG ",null,"Asset","Allowance for Contractuals CPG"]
[null,null,null,null,""]
["125602","Allowance for Uncollectible CPG ",null,"Asset","Allowance for Uncollectible CPG"]
[null,null,null,null,""]
["125603","Accounts Receivable Bad Debt Midlevel ",null,"Asset","Accounts Receivable Bad Debt Midlevel"]
[null,null,null,null,""]
["125604","Allowance for Uncollectible Midlevel ",null,"Asset","Allowance for Uncollectible Midlevel"]
[null,null,null,null,""]
["125605","Allowance for Contractuals Midlevel ",null,"Asset","Allowance for Contractuals Midlevel"]
[null,null,null,null,""]
["125606","Accounts Receivable Bad Debt HB ",null,"Asset","Accounts Receivable Bad Debt HB"]
[null,null,null,null,""]
["125607","Allowance for Contractuals HB ",null,"Asset","Allowance for Contractuals HB"]
[null,null,null,null,""]
["125608","Allowance for Uncollectible HB ",null,"Asset","Allowance for Uncollectible HB"]
[null,null,null,null,""]
["125609","Allowance for Bad Debt Adjustments ",null,"Asset","Allowance for Bad Debt Adjustments"]
[null,null,null,null,""]
["125610","Allowance for Contractual Home infusion ",null,"Asset","Allowance for Contractual Home infusion"]
[null,null,null,null,""]
["125611","Allowance for Uncollectible Home Infusion ",null,"Asset","Allowance for Uncollectible Home Infusion"]
[null,null,null,null,""]
[null,"Medical Centers Third Party Payor Settlements ",null,"Asset","Medical Centers Third Party Payor Settlements"]
[null,null,null,null,""]
[null,"Third Party Reimbursements Medi Cal ",null,"Asset","Third Party Reimbursements Medi Cal"]
[null,null,null,null,""]
["126000","Medi Cal Waiver Receivables ",null,"Asset","Medi Cal Waiver Receivables"]
[null,null,null,null,""]
[null,"Third Party Reimbursements Medicare ",null,"Asset","Third Party Reimbursements Medicare"]
[null,null,null,null,""]
["126200","Third Party Reimbursement Medicare ",null,"Asset","Third Party Reimbursement Medicare"]
[null,null,null,null,""]
["126201","Medicare PIP Clearing ",null,"Asset","Medicare PIP Clearing"]
[null,null,null,null,""]
[null,"Third Party Reimbursement Tricare and Other D ",null,"Asset","Third Party Reimbursement Tricare and Other D"]
[null,null,null,null,""]
["126400","Third Party Reimbursement Tricare and Other ",null,"Asset","Third Party Reimbursement Tricare and Other"]
[null,null,null,null,""]
[null,"Educational Activities Medical or Other Clinical ",null,"Asset","Educational Activities Medical or Other Clinical"]
[null,null,null,null,""]
[null,"Educational Activity Medical or Other Clinical ",null,"Asset","Educational Activity Medical or Other Clinical"]
[null,null,null,null,""]
["126500","Accounts Receivable Patient Care Clinical ",null,"Asset","Accounts Receivable Patient Care Clinical"]
[null,null,null,null,""]
["126501","Accounts Receivable EPIC MG ",null,"Asset","Accounts Receivable EPIC MG"]
[null,null,null,null,""]
["126502","Cash Clearing EPIC MG ",null,"Asset","Cash Clearing EPIC MG"]
[null,null,null,null,""]
["126503","Accounts Receivable Medical Professional Group ",null,"Asset","Accounts Receivable Medical Professional Group"]
[null,null,null,null,""]
["126504","Cash Clearing SOM ",null,"Asset","Cash Clearing SOM"]
[null,null,null,null,""]
["126505","System Clearing EPIC ",null,"Asset","System Clearing EPIC"]
[null,null,null,null,""]
["126506","Default Clearing EPIC ",null,"Asset","Default Clearing EPIC"]
[null,null,null,null,""]
["126507","Receivable Accruals Medcomp Plan ",null,"Asset","Receivable Accruals Medcomp Plan"]
[null,null,null,null,""]
["126508","Other Receivables Medical Nonpatient Care ",null,"Asset","Other Receivables Medical Nonpatient Care"]
[null,null,null,null,""]
[null,"Medical and Clinical Professional Fees Contractual Allowances ",null,"Asset","Medical and Clinical Professional Fees Contractual Allowances"]
[null,null,null,null,""]
["126700","Contractual Allowance MG EPIC ",null,"Asset","Contractual Allowance MG EPIC"]
[null,null,null,null,""]
["126701","Contractual Allowance Medical Professional ",null,"Asset","Contractual Allowance Medical Professional"]
[null,null,null,null,""]
[null,"Medical and Other Clinical Professional Fees Allowance For Uncollectible ",null,"Asset","Medical and Other Clinical Professional Fees Allowance For Uncollectible"]
[null,null,null,null,""]
["126900","Accounts Receivable Bad Debt EPIC MG ",null,"Asset","Accounts Receivable Bad Debt EPIC MG"]
[null,null,null,null,""]
["126901","Allowance for Bad Debt EPIC MG ",null,"Asset","Allowance for Bad Debt EPIC MG"]
[null,null,null,null,""]
["126902","Accounts Receivable Bad Debt SOM EPIC ",null,"Asset","Accounts Receivable Bad Debt SOM EPIC"]
[null,null,null,null,""]
["126920","Allowance For Uncollectible Hospital and Clinics ",null,"Asset","Allowance For Uncollectible Hospital and Clinics"]
[null,null,null,null,""]
[null,"Educational Activities Non Medical ",null,"Asset","Educational Activities Non Medical"]
[null,null,null,null,""]
[null,"Educational Professional Fees ",null,"Asset","Educational Professional Fees"]
[null,null,null,null,""]
["127000","Accounts Receivable Professional Fees Non Medical ",null,"Asset","Accounts Receivable Professional Fees Non Medical"]
[null,null,null,null,""]
[null,"Educational Professional Fees Allowances for Uncollectible ",null,"Asset","Educational Professional Fees Allowances for Uncollectible"]
[null,null,null,null,""]
["127200","Allowance for Uncollectible Educational Professional Fees ",null,"Asset","Allowance for Uncollectible Educational Professional Fees"]
[null,null,null,null,""]
[null,"Accounts Receivable Educational Activity ",null,"Asset","Accounts Receivable Educational Activity"]
[null,null,null,null,""]
["127300","Accounts Receivable Educational Activities ",null,"Asset","Accounts Receivable Educational Activities"]
[null,null,null,null,""]
["127301","Interorganizational Receivables ",null,"Asset","Interorganizational Receivables"]
[null,null,null,null,""]
["127302","Accounts Receivable Boundary System ",null,"Asset","Accounts Receivable Boundary System"]
[null,null,null,null,""]
[null,"Accounts Receivable Auxiliary Activity ",null,"Asset","Accounts Receivable Auxiliary Activity"]
[null,null,null,null,""]
[null,"Accounts Receivable Auxiliary Fees ",null,"Asset","Accounts Receivable Auxiliary Fees"]
[null,null,null,null,""]
["127500","Accounts Receivable Auxiliary Fee ",null,"Asset","Accounts Receivable Auxiliary Fee"]
[null,null,null,null,""]
["127501","Accounts Receivable Retail ",null,"Asset","Accounts Receivable Retail"]
[null,null,null,null,""]
["127502","Accounts Receivable Student Charges ",null,"Asset","Accounts Receivable Student Charges"]
[null,null,null,null,""]
["127503","Accounts Receivable Ticket Sales ",null,"Asset","Accounts Receivable Ticket Sales"]
[null,null,null,null,""]
[null,"Auxiliary Fees Allowance for Uncollectible ",null,"Asset","Auxiliary Fees Allowance for Uncollectible"]
[null,null,null,null,""]
["127800","Allowance for Uncollectible Auxiliary Fees ",null,"Asset","Allowance for Uncollectible Auxiliary Fees"]
[null,null,null,null,""]
[null,"Investments C ",null,"Asset","Investments C"]
[null,null,null,null,""]
[null,"Interest and Dividends ",null,"Asset","Interest and Dividends"]
[null,null,null,null,""]
["128000","Investment Interest Receivable ",null,"Asset","Investment Interest Receivable"]
[null,null,null,null,""]
[null,"Commercial Paper Receivables ",null,"Asset","Commercial Paper Receivables"]
[null,null,null,null,""]
["128200","Commercial Paper Receivable ",null,"Asset","Commercial Paper Receivable"]
[null,null,null,null,""]
[null,"Securities Sold Sales ",null,"Asset","Securities Sold Sales"]
[null,null,null,null,""]
["128300","Securities Sold Sales Receivables ",null,"Asset","Securities Sold Sales Receivables"]
[null,null,null,null,""]
[null,"Securities Sold Settlements ",null,"Asset","Securities Sold Settlements"]
[null,null,null,null,""]
["128400","Securities Sold Settlements Receivables ",null,"Asset","Securities Sold Settlements Receivables"]
[null,null,null,null,""]
[null,"Other Accounts Receivables ",null,"Asset","Other Accounts Receivables"]
[null,null,null,null,""]
[null,"Other Receivables Current Portion ",null,"Asset","Other Receivables Current Portion"]
[null,null,null,null,""]
["129000","Employee Receivables ",null,"Asset","Employee Receivables"]
[null,null,null,null,""]
["129001","Payroll Advances ",null,"Asset","Payroll Advances"]
[null,null,null,null,""]
["129002","Other Receivables ",null,"Asset","Other Receivables"]
[null,null,null,null,""]
["129003","SPA Receivable SOM ",null,"Asset","SPA Receivable SOM"]
[null,null,null,null,""]
["129005","Lawson Default ",null,"Asset","Lawson Default"]
[null,null,null,null,""]
["129006","Interest Receivable Student Loans ",null,"Asset","Interest Receivable Student Loans"]
[null,null,null,null,""]
["129007","Principal Receivable Student Loans ",null,"Asset","Principal Receivable Student Loans"]
[null,null,null,null,""]
["129008","Accounts Receivable Sponsored Students ",null,"Asset","Accounts Receivable Sponsored Students"]
[null,null,null,null,""]
["129009","Accounts Receivable Leases ",null,"Asset","Accounts Receivable Leases"]
[null,null,null,null,""]
["129010","Taxes Receivable ",null,"Asset","Taxes Receivable"]
[null,null,null,null,""]
["129011","Allowance for Sales Discount ",null,"Asset","Allowance for Sales Discount"]
[null,null,null,null,""]
["129012","Davis Faculty Association Receivable ",null,"Asset","Davis Faculty Association Receivable"]
[null,null,null,null,""]
["129013","Payroll United Way Receivable ",null,"Asset","Payroll United Way Receivable"]
[null,null,null,null,""]
["129014","KFS Invoice Conversion ",null,"Asset","KFS Invoice Conversion"]
[null,null,null,null,""]
["129015","Cal Grants AR ",null,"Asset","Cal Grants AR"]
[null,null,null,null,""]
["129016","MCS AR ",null,"Asset","MCS AR"]
[null,null,null,null,""]
["129017","CHAFEE Grant AR ",null,"Asset","CHAFEE Grant AR"]
[null,null,null,null,""]
["129018","Outside Scholarship AR ",null,"Asset","Outside Scholarship AR"]
[null,null,null,null,""]
["129019","Receivables Current ",null,"Asset","Receivables Current"]
[null,null,null,null,""]
["129020","Funds Flow Agreement Receivable ",null,"Asset","Funds Flow Agreement Receivable"]
[null,null,null,null,""]
["129021","Golden State Teacher Grant Program ",null,"Asset","Golden State Teacher Grant Program"]
[null,null,null,null,""]
["129022","Foundation Receivable ",null,"Asset","Foundation Receivable"]
[null,null,null,null,""]
[null,"Other Receivables Leases Current Portion ",null,"Asset","Other Receivables Leases Current Portion"]
[null,null,null,null,""]
["129100","Other Receivables Leases Current ",null,"Asset","Other Receivables Leases Current"]
[null,null,null,null,""]
[null,"Accrued Interest Leases ",null,"Asset","Accrued Interest Leases"]
[null,null,null,null,""]
["129110","Accrued Interest Lease ",null,"Asset","Accrued Interest Lease"]
[null,null,null,null,""]
[null,"Other Receivables Allowance for Uncollectible ",null,"Asset","Other Receivables Allowance for Uncollectible"]
[null,null,null,null,""]
["129501","Allowance for Uncollectible Other Receivables ",null,"Asset","Allowance for Uncollectible Other Receivables"]
[null,null,null,null,""]
[null,"Other Receivables Commercial Paper Discount ",null,"Asset","Other Receivables Commercial Paper Discount"]
[null,null,null,null,""]
["129550","Accounts Receivable Commercial Paper Discount ",null,"Asset","Accounts Receivable Commercial Paper Discount"]
[null,null,null,null,""]
[null,"Other Receivables Commercial Paper Trades ",null,"Asset","Other Receivables Commercial Paper Trades"]
[null,null,null,null,""]
["129600","Accounts Receivable Commercial Paper Trades ",null,"Asset","Accounts Receivable Commercial Paper Trades"]
[null,null,null,null,""]
[null,"Other Receivables Commercial Paper Settlement ",null,"Asset","Other Receivables Commercial Paper Settlement"]
[null,null,null,null,""]
["129650","Accounts Receivable Commercial Paper Settlement ",null,"Asset","Accounts Receivable Commercial Paper Settlement"]
[null,null,null,null,""]
[null,"Other Receivables Rebates ",null,"Asset","Other Receivables Rebates"]
[null,null,null,null,""]
["129700","Accounts Receivable Rebates ",null,"Asset","Accounts Receivable Rebates"]
[null,null,null,null,""]
[null,"Pledges Receivable Current Portion ",null,"Asset","Pledges Receivable Current Portion"]
[null,null,null,null,""]
[null,"Pledges Receivable ",null,"Asset","Pledges Receivable"]
[null,null,null,null,""]
[null,"Gifts and Pledges Operating Current Portion ",null,"Asset","Gifts and Pledges Operating Current Portion"]
[null,null,null,null,""]
["131000","Accounts Receivable Gifts and Pledges Noncapital ",null,"Asset","Accounts Receivable Gifts and Pledges Noncapital"]
[null,null,null,null,""]
[null,"Gifts and Pledges Capital Current Portion ",null,"Asset","Gifts and Pledges Capital Current Portion"]
[null,null,null,null,""]
["131100","Accounts Receivable Gifts and Pledges Capital ",null,"Asset","Accounts Receivable Gifts and Pledges Capital"]
[null,null,null,null,""]
[null,"Pledges Allowance for Uncollectible C ",null,"Asset","Pledges Allowance for Uncollectible C"]
[null,null,null,null,""]
[null,"Gifts and Pledges Allowance for Uncollectible ",null,"Asset","Gifts and Pledges Allowance for Uncollectible"]
[null,null,null,null,""]
["131200","Allowance For Uncollectible Gifts and Pledges ",null,"Asset","Allowance For Uncollectible Gifts and Pledges"]
[null,null,null,null,""]
[null,"Notes and Mortgages Receivable Current Portion ",null,"Asset","Notes and Mortgages Receivable Current Portion"]
[null,null,null,null,""]
[null,"Mortgages Receivable Current Portion ",null,"Asset","Mortgages Receivable Current Portion"]
[null,null,null,null,""]
[null,"Mortgages Receivable Current Portions ",null,"Asset","Mortgages Receivable Current Portions"]
[null,null,null,null,""]
["133000","Mortgages Receivable Current ",null,"Asset","Mortgages Receivable Current"]
[null,null,null,null,""]
[null,"Mortgages Receivable Allowance for Uncollectible Current ",null,"Asset","Mortgages Receivable Allowance for Uncollectible Current"]
[null,null,null,null,""]
[null,"Mortgages Receivable Allowance for Uncollectible Current Portion ",null,"Asset","Mortgages Receivable Allowance for Uncollectible Current Portion"]
[null,null,null,null,""]
["133300","Allowance For Uncollectible Mortgages Receivable Current ",null,"Asset","Allowance For Uncollectible Mortgages Receivable Current"]
[null,null,null,null,""]
[null,"Notes Receivable Current Portion ",null,"Asset","Notes Receivable Current Portion"]
[null,null,null,null,""]
[null,"Notes Receivable Current Portions ",null,"Asset","Notes Receivable Current Portions"]
[null,null,null,null,""]
["133400","Notes Receivable Current ",null,"Asset","Notes Receivable Current"]
[null,null,null,null,""]
[null,"Notes receivable Allowance for Uncollectible Current Portion ",null,"Asset","Notes receivable Allowance for Uncollectible Current Portion"]
[null,null,null,null,""]
[null,"Notes Receivable Allowance for Uncollectible Current ",null,"Asset","Notes Receivable Allowance for Uncollectible Current"]
[null,null,null,null,""]
["133500","Allowance For Uncollectible Note Receivable Current Portion ",null,"Asset","Allowance For Uncollectible Note Receivable Current Portion"]
[null,null,null,null,""]
[null,"Inventory ",null,"Asset","Inventory"]
[null,null,null,null,""]
[null,"Inventory Auxiliaries ",null,"Asset","Inventory Auxiliaries"]
[null,null,null,null,""]
[null,"Inventory Auxiliary D ",null,"Asset","Inventory Auxiliary D"]
[null,null,null,null,""]
["135000","Inventory Auxiliary ",null,"Asset","Inventory Auxiliary"]
[null,null,null,null,""]
[null,"Inventory Other C ",null,"Asset","Inventory Other C"]
[null,null,null,null,""]
[null,"Inventory Other ",null,"Asset","Inventory Other"]
[null,null,null,null,""]
["136000","Inventory Storehouse ",null,"Asset","Inventory Storehouse"]
[null,null,null,null,""]
["136001","Inventory General Stores ",null,"Asset","Inventory General Stores"]
[null,null,null,null,""]
["136002","Inventory Pharmacy ",null,"Asset","Inventory Pharmacy"]
[null,null,null,null,""]
["136003","Inventory Central Supply ",null,"Asset","Inventory Central Supply"]
[null,null,null,null,""]
["136004","Inventory Plant Operations and Maintenance ",null,"Asset","Inventory Plant Operations and Maintenance"]
[null,null,null,null,""]
["136005","Other Inventory ",null,"Asset","Other Inventory"]
[null,null,null,null,""]
["136006","Inventory Suspense ",null,"Asset","Inventory Suspense"]
[null,null,null,null,""]
[null,"Other Current Assets ",null,"Asset","Other Current Assets"]
[null,null,null,null,""]
[null,"Prepaid Expenses ",null,"Asset","Prepaid Expenses"]
[null,null,null,null,""]
[null,"Prepaid Expense ",null,"Asset","Prepaid Expense"]
[null,null,null,null,""]
["140000","Prepaid Expenses Financial Aid ",null,"Asset","Prepaid Expenses Financial Aid"]
[null,null,null,null,""]
["140001","Prepaid Expenses Leases and Rents ",null,"Asset","Prepaid Expenses Leases and Rents"]
[null,null,null,null,""]
["140002","Prepaid Expenses Travel ",null,"Asset","Prepaid Expenses Travel"]
[null,null,null,null,""]
["140003","Prepaid Maintenance and Svc Contracts ",null,"Asset","Prepaid Maintenance and Svc Contracts"]
[null,null,null,null,""]
["140004","Other Prepaid Expenses ",null,"Asset","Other Prepaid Expenses"]
[null,null,null,null,""]
[null,"Deferred Cost of Issuance Current Portion C ",null,"Asset","Deferred Cost of Issuance Current Portion C"]
[null,null,null,null,""]
[null,"Deferred Cost of Issuance Current Portion D ",null,"Asset","Deferred Cost of Issuance Current Portion D"]
[null,null,null,null,""]
["140100","Deferred Cost of Issuance Current Portion ",null,"Asset","Deferred Cost of Issuance Current Portion"]
[null,null,null,null,""]
[null,"Other Assets Current ",null,"Asset","Other Assets Current"]
[null,null,null,null,""]
[null,"Other Asset Current ",null,"Asset","Other Asset Current"]
[null,null,null,null,""]
["140200","Cash Advances Contracts and Grants ",null,"Asset","Cash Advances Contracts and Grants"]
[null,null,null,null,""]
["140201","Cash Advances Other ",null,"Asset","Cash Advances Other"]
[null,null,null,null,""]
["140202","Other Miscellaneous Current Assets ",null,"Asset","Other Miscellaneous Current Assets"]
[null,null,null,null,""]
["140203","Asset Clearing ",null,"Asset","Asset Clearing"]
[null,null,null,null,""]
["140204","Accounts Receivable Clearing ",null,"Asset","Accounts Receivable Clearing"]
[null,null,null,null,""]
["140205","Trade Clearing ",null,"Asset","Trade Clearing"]
[null,null,null,null,""]
["140206","Trade In transit Valuation ",null,"Asset","Trade In transit Valuation"]
[null,null,null,null,""]
["140207","Receiving Inspection ",null,"Asset","Receiving Inspection"]
[null,null,null,null,""]
[null,"Cost of Issuance Holding Account ",null,"Asset","Cost of Issuance Holding Account"]
[null,null,null,null,""]
[null,"Cost of Issuance Holding Account Current ",null,"Asset","Cost of Issuance Holding Account Current"]
[null,null,null,null,""]
["140500","Holding Acct Cost of Issuance ",null,"Asset","Holding Acct Cost of Issuance"]
[null,null,null,null,""]
[null,"Noncurrent Assets ",null,"Asset","Noncurrent Assets"]
[null,null,null,null,""]
[null,"Restricted Assets ",null,"Asset","Restricted Assets"]
[null,null,null,null,""]
[null,"Deposits Held for Hospital Construction ",null,"Asset","Deposits Held for Hospital Construction"]
[null,null,null,null,""]
[null,"Deposits Held for Hospital Construction Noncurrent ",null,"Asset","Deposits Held for Hospital Construction Noncurrent"]
[null,null,null,null,""]
["150000","Restricted Assets Deposits Held For Hospital Construction ",null,"Asset","Restricted Assets Deposits Held For Hospital Construction"]
[null,null,null,null,""]
["150001","Trustee Cash ",null,"Asset","Trustee Cash"]
[null,null,null,null,""]
[null,"Donor Funds ",null,"Asset","Donor Funds"]
[null,null,null,null,""]
[null,"Restricted Assets Donor Funds ",null,"Asset","Restricted Assets Donor Funds"]
[null,null,null,null,""]
["150100","Restricted Assets Donor and Gift Funds ",null,"Asset","Restricted Assets Donor and Gift Funds"]
[null,null,null,null,""]
[null,"Investments B ",null,"Asset","Investments B"]
[null,null,null,null,""]
[null,"Investment Pools ",null,"Asset","Investment Pools"]
[null,null,null,null,""]
[null,"STIP ",null,"Asset","STIP"]
[null,null,null,null,""]
["151000","Long Term Investments Short Term Investment Pool STIP ",null,"Asset","Long Term Investments Short Term Investment Pool STIP"]
[null,null,null,null,""]
[null,"TRIP ",null,"Asset","TRIP"]
[null,null,null,null,""]
["151100","Long Term Investments Total Return Investment Pool TRIP ",null,"Asset","Long Term Investments Total Return Investment Pool TRIP"]
[null,null,null,null,""]
[null,"BGP ",null,"Asset","BGP"]
[null,null,null,null,""]
["151200","Long Term Invests Total Blue and Gold Pool BGP ",null,"Asset","Long Term Invests Total Blue and Gold Pool BGP"]
[null,null,null,null,""]
[null,"GEP ",null,"Asset","GEP"]
[null,null,null,null,""]
["151300","Long Term Invests General Endowment Pool GEP ",null,"Asset","Long Term Invests General Endowment Pool GEP"]
[null,null,null,null,""]
[null,"EIP ",null,"Asset","EIP"]
[null,null,null,null,""]
["151400","Long Term Investments EIP ",null,"Asset","Long Term Investments EIP"]
[null,null,null,null,""]
[null,"Investment Securities Noncurrent Portion C ",null,"Asset","Investment Securities Noncurrent Portion C"]
[null,null,null,null,""]
[null,"Investment Securities Noncurrent Portion ",null,"Asset","Investment Securities Noncurrent Portion"]
[null,null,null,null,""]
["151500","Investment Securities Non Current Portion ",null,"Asset","Investment Securities Non Current Portion"]
[null,null,null,null,""]
[null,"Investment Securities Fair Value Adjustment UC OPEBUCRS only ",null,"Asset","Investment Securities Fair Value Adjustment UC OPEBUCRS only"]
[null,null,null,null,""]
["151510","Fair Value Adjustments Security Adjustments UC OPEB and UCRS only ",null,"Asset","Fair Value Adjustments Security Adjustments UC OPEB and UCRS only"]
[null,null,null,null,""]
[null,"Mortgage Loans Noncurrent Portion ",null,"Asset","Mortgage Loans Noncurrent Portion"]
[null,null,null,null,""]
[null,"Mortgage Loans Noncurrent Portions ",null,"Asset","Mortgage Loans Noncurrent Portions"]
[null,null,null,null,""]
["151600","Investments Mortgage Loans Noncurrent Portion ",null,"Asset","Investments Mortgage Loans Noncurrent Portion"]
[null,null,null,null,""]
[null,"Derivatives Noncurrent Portion ",null,"Asset","Derivatives Noncurrent Portion"]
[null,null,null,null,""]
[null,"Derivatives Noncurrent Portios ",null,"Asset","Derivatives Noncurrent Portios"]
[null,null,null,null,""]
["151700","Investments Derivatives Noncurrent Portion ",null,"Asset","Investments Derivatives Noncurrent Portion"]
[null,null,null,null,""]
[null,"Other Investments Noncurrent Portion ",null,"Asset","Other Investments Noncurrent Portion"]
[null,null,null,null,""]
[null,"Other Investments Noncurrent Portions ",null,"Asset","Other Investments Noncurrent Portions"]
[null,null,null,null,""]
["151800","Investments Noncurrent Portion Other ",null,"Asset","Investments Noncurrent Portion Other"]
[null,null,null,null,""]
[null,"UC Davis Foundation Endowment Fund ",null,"Asset","UC Davis Foundation Endowment Fund"]
[null,null,null,null,""]
[null,"UCDFEF Investments ",null,"Asset","UCDFEF Investments"]
[null,null,null,null,""]
["152000","UCDFEF Historical Cost ",null,"Asset","UCDFEF Historical Cost"]
[null,null,null,null,""]
["152001","UCDFEF Investment Contra Account ",null,"Asset","UCDFEF Investment Contra Account"]
[null,null,null,null,""]
["152002","UCDFEF Investment G L on sale ",null,"Asset","UCDFEF Investment G L on sale"]
[null,null,null,null,""]
["152003","UCDFEF Investment Earnings Reinvested ",null,"Asset","UCDFEF Investment Earnings Reinvested"]
[null,null,null,null,""]
["152004","UCDFEF Changes in FV of Investment ",null,"Asset","UCDFEF Changes in FV of Investment"]
[null,null,null,null,""]
[null,"UCDF GIK ",null,"Asset","UCDF GIK"]
[null,null,null,null,""]
["153001","UCDF GIK Securities ",null,"Asset","UCDF GIK Securities"]
[null,null,null,null,""]
["153002","UCDF GIK Real Estate ",null,"Asset","UCDF GIK Real Estate"]
[null,null,null,null,""]
["153003","UCDF GIK Other ",null,"Asset","UCDF GIK Other"]
[null,null,null,null,""]
[null,"Investments of Cash Collateral ",null,"Asset","Investments of Cash Collateral"]
[null,null,null,null,""]
[null,"Investment of Cash Collateral Noncurrent Portion ",null,"Asset","Investment of Cash Collateral Noncurrent Portion"]
[null,null,null,null,""]
[null,"Investment of Cash Collateral Non Current Portions ",null,"Asset","Investment of Cash Collateral Non Current Portions"]
[null,null,null,null,""]
["154000","Investments of Cash Collateral Non Current Portion ",null,"Asset","Investments of Cash Collateral Non Current Portion"]
[null,null,null,null,""]
[null,"Contra Investment of Cash Collateral Foundations ",null,"Asset","Contra Investment of Cash Collateral Foundations"]
[null,null,null,null,""]
[null,"Contra Investment of Cash Collateral Campus Foundations ",null,"Asset","Contra Investment of Cash Collateral Campus Foundations"]
[null,null,null,null,""]
["154100","Contra Investments of Cash Collateral Campus Foundation ",null,"Asset","Contra Investments of Cash Collateral Campus Foundation"]
[null,null,null,null,""]
[null,"Investments Held by Trustees Noncurrent ",null,"Asset","Investments Held by Trustees Noncurrent"]
[null,null,null,null,""]
[null,"Self Insurance Non Current Portion ",null,"Asset","Self Insurance Non Current Portion"]
[null,null,null,null,""]
[null,"Self Insurance Noncurrent ",null,"Asset","Self Insurance Noncurrent"]
[null,null,null,null,""]
["155000","Investments Held By Trustees Noncurrent Portion Self Insurance ",null,"Asset","Investments Held By Trustees Noncurrent Portion Self Insurance"]
[null,null,null,null,""]
[null,"Long Term Debt Noncurrent Portion ",null,"Asset","Long Term Debt Noncurrent Portion"]
[null,null,null,null,""]
[null,"Long Term Debt Noncurrent Portions ",null,"Asset","Long Term Debt Noncurrent Portions"]
[null,null,null,null,""]
["155100","Investments Held By Trustees Long Term Debt Noncurrent ",null,"Asset","Investments Held By Trustees Long Term Debt Noncurrent"]
[null,null,null,null,""]
[null,"Capital Projects Noncurrent Portion ",null,"Asset","Capital Projects Noncurrent Portion"]
[null,null,null,null,""]
[null,"Capital Projects Noncurrent Portions ",null,"Asset","Capital Projects Noncurrent Portions"]
[null,null,null,null,""]
["155200","Non Current Capital Project Trustees ",null,"Asset","Non Current Capital Project Trustees"]
[null,null,null,null,""]
[null,"Pledges Receivable Noncurrent ",null,"Asset","Pledges Receivable Noncurrent"]
[null,null,null,null,""]
[null,"Pledges Receivable UC Operating Non Current Portion ",null,"Asset","Pledges Receivable UC Operating Non Current Portion"]
[null,null,null,null,""]
[null,"Pledges Receivable UC Operating Noncurrent Portion ",null,"Asset","Pledges Receivable UC Operating Noncurrent Portion"]
[null,null,null,null,""]
["156000","Gift and Pledges Receivable UC Operating Noncurrent Portion ",null,"Asset","Gift and Pledges Receivable UC Operating Noncurrent Portion"]
[null,null,null,null,""]
[null,"Pledges Receivable Capital Non Current Portion ",null,"Asset","Pledges Receivable Capital Non Current Portion"]
[null,null,null,null,""]
[null,"Pledges Receivable Capital Noncurrent ",null,"Asset","Pledges Receivable Capital Noncurrent"]
[null,null,null,null,""]
["156100","Gift and Pledges Receivable Capital Noncurrent Portion ",null,"Asset","Gift and Pledges Receivable Capital Noncurrent Portion"]
[null,null,null,null,""]
[null,"Pledges Discount ",null,"Asset","Pledges Discount"]
[null,null,null,null,""]
[null,"Pledges Discount Noncurrent ",null,"Asset","Pledges Discount Noncurrent"]
[null,null,null,null,""]
["156200","Pledges Receivable Discount ",null,"Asset","Pledges Receivable Discount"]
[null,null,null,null,""]
[null,"Pledges Allowances for Uncollectible ",null,"Asset","Pledges Allowances for Uncollectible"]
[null,null,null,null,""]
[null,"Pledges Allowance for Uncollectible D ",null,"Asset","Pledges Allowance for Uncollectible D"]
[null,null,null,null,""]
["156300","Allowance For Uncollectible Gifts and Pledges Receivable Noncurrent ",null,"Asset","Allowance For Uncollectible Gifts and Pledges Receivable Noncurrent"]
[null,null,null,null,""]
[null,"Notes and Mortgages Receivable ",null,"Asset","Notes and Mortgages Receivable"]
[null,null,null,null,""]
[null,"Mortgages Receivable Mortgages Issued Noncurrent ",null,"Asset","Mortgages Receivable Mortgages Issued Noncurrent"]
[null,null,null,null,""]
[null,"Mortgages Receivable Mortgages Issued Noncurrent Portion ",null,"Asset","Mortgages Receivable Mortgages Issued Noncurrent Portion"]
[null,null,null,null,""]
["157000","Mortgages Receivable Issued Mortgage Noncurrent Portion ",null,"Asset","Mortgages Receivable Issued Mortgage Noncurrent Portion"]
[null,null,null,null,""]
[null,"Mortgages Receivable Collections Noncurrent ",null,"Asset","Mortgages Receivable Collections Noncurrent"]
[null,null,null,null,""]
[null,"Mortgages Receivable Collections Noncurrent Portion ",null,"Asset","Mortgages Receivable Collections Noncurrent Portion"]
[null,null,null,null,""]
["157100","Mortgages Receivable Collection Non Current ",null,"Asset","Mortgages Receivable Collection Non Current"]
[null,null,null,null,""]
[null,"Mortgages Receivable Allowance for Uncollectible Noncurrent Portion ",null,"Asset","Mortgages Receivable Allowance for Uncollectible Noncurrent Portion"]
[null,null,null,null,""]
[null,"Mortgages Receivable Allowance for Uncollectible Noncurrent ",null,"Asset","Mortgages Receivable Allowance for Uncollectible Noncurrent"]
[null,null,null,null,""]
["157200","Allowance For Uncollectible Mortgages Receivable Noncurrent Portion ",null,"Asset","Allowance For Uncollectible Mortgages Receivable Noncurrent Portion"]
[null,null,null,null,""]
[null,"Notes Receivable Notes Issued Noncurrent Portion ",null,"Asset","Notes Receivable Notes Issued Noncurrent Portion"]
[null,null,null,null,""]
[null,"Notes Receivable Notes Issued Noncurrent Portions ",null,"Asset","Notes Receivable Notes Issued Noncurrent Portions"]
[null,null,null,null,""]
["157300","Student Loans Receivable Noncurrent ",null,"Asset","Student Loans Receivable Noncurrent"]
[null,null,null,null,""]
["157301","Employee Loans Receivable Noncurrent ",null,"Asset","Employee Loans Receivable Noncurrent"]
[null,null,null,null,""]
["157302","Student Loan Receivable Clearing ",null,"Asset","Student Loan Receivable Clearing"]
[null,null,null,null,""]
[null,"Notes Receivable Collections Noncurrent Portion C ",null,"Asset","Notes Receivable Collections Noncurrent Portion C"]
[null,null,null,null,""]
[null,"Notes Receivable Collections Noncurrent Portion D ",null,"Asset","Notes Receivable Collections Noncurrent Portion D"]
[null,null,null,null,""]
["157400","Notes Receivable Collections Noncurrent Portion ",null,"Asset","Notes Receivable Collections Noncurrent Portion"]
[null,null,null,null,""]
[null,"Notes Receivable Allowance for Uncollectible Noncurrent Portion ",null,"Asset","Notes Receivable Allowance for Uncollectible Noncurrent Portion"]
[null,null,null,null,""]
[null,"Notes Receivable Allowance for Uncollectible Noncurrent ",null,"Asset","Notes Receivable Allowance for Uncollectible Noncurrent"]
[null,null,null,null,""]
["157500","Allowance For Uncollectible Student Loans Noncurrent Portion ",null,"Asset","Allowance For Uncollectible Student Loans Noncurrent Portion"]
[null,null,null,null,""]
[null,"Intangibles Subscription Asset SBITA B ",null,"Asset","Intangibles Subscription Asset SBITA B"]
[null,null,null,null,""]
[null,"Intangibles Subscription Asset SBITA C ",null,"Asset","Intangibles Subscription Asset SBITA C"]
[null,null,null,null,""]
[null,"Intangibles Subscription Asset SBITA D ",null,"Asset","Intangibles Subscription Asset SBITA D"]
[null,null,null,null,""]
["158100","Intangibles Subscription Asset SBITA ",null,"Asset","Intangibles Subscription Asset SBITA"]
[null,null,null,null,""]
[null,"Accumulated amortization intangibles subscription asset SBITA C ",null,"Asset","Accumulated amortization intangibles subscription asset SBITA C"]
[null,null,null,null,""]
[null,"Accumulated amortization intangibles subscription asset SBITA D ",null,"Asset","Accumulated amortization intangibles subscription asset SBITA D"]
[null,null,null,null,""]
["158200","Accumulated amortization intangibles subscription asset SBITA ",null,"Asset","Accumulated amortization intangibles subscription asset SBITA"]
[null,null,null,null,""]
[null,"Intangible Finance Lease ROU ",null,"Asset","Intangible Finance Lease ROU"]
[null,null,null,null,""]
[null,"Intangible Finance Lease ROU C ",null,"Asset","Intangible Finance Lease ROU C"]
[null,null,null,null,""]
[null,"Intangible Finance Lease ROU Land ",null,"Asset","Intangible Finance Lease ROU Land"]
[null,null,null,null,""]
["159100","Intangible Finance Leases ROU Land ",null,"Asset","Intangible Finance Leases ROU Land"]
[null,null,null,null,""]
[null,"Intangible Finance Lease ROU Building and Improvements ",null,"Asset","Intangible Finance Lease ROU Building and Improvements"]
[null,null,null,null,""]
["159110","Intangible Finance Lease ROU Building and Improv ",null,"Asset","Intangible Finance Lease ROU Building and Improv"]
[null,null,null,null,""]
[null,"Intangible Finance Lease ROU Equipment ",null,"Asset","Intangible Finance Lease ROU Equipment"]
[null,null,null,null,""]
["159120","Intangible Fin Lease ROU Equipment ",null,"Asset","Intangible Fin Lease ROU Equipment"]
[null,null,null,null,""]
[null,"Accumulated Amortization Finance Lease Land C ",null,"Asset","Accumulated Amortization Finance Lease Land C"]
[null,null,null,null,""]
[null,"Accumulated Amortization Finance Lease Land D ",null,"Asset","Accumulated Amortization Finance Lease Land D"]
[null,null,null,null,""]
["159200","Accumulated Amortization Fin Lease Land ",null,"Asset","Accumulated Amortization Fin Lease Land"]
[null,null,null,null,""]
[null,"Accumulated Amortization Fin Lease Building and Improvements ",null,"Asset","Accumulated Amortization Fin Lease Building and Improvements"]
[null,null,null,null,""]
["159210","Accumulated Amortization Financed Lease Building and Improvement ",null,"Asset","Accumulated Amortization Financed Lease Building and Improvement"]
[null,null,null,null,""]
[null,"Accumulated Amortization Fin Lease Equipment ",null,"Asset","Accumulated Amortization Fin Lease Equipment"]
[null,null,null,null,""]
["159220","Accumulated Amortization Finance Lease Equipment ",null,"Asset","Accumulated Amortization Finance Lease Equipment"]
[null,null,null,null,""]
[null,"Capital Assets ",null,"Asset","Capital Assets"]
[null,null,null,null,""]
[null,"Land ",null,"Asset","Land"]
[null,null,null,null,""]
[null,"Land and Real Estate ",null,"Asset","Land and Real Estate"]
[null,null,null,null,""]
["160000","Capital Assets Land ",null,"Asset","Capital Assets Land"]
[null,null,null,null,""]
[null,"Land Improvements ",null,"Asset","Land Improvements"]
[null,null,null,null,""]
[null,"Parking Lot Improvements ",null,"Asset","Parking Lot Improvements"]
[null,null,null,null,""]
["161000","Capital Assets Parking Lot Improvements ",null,"Asset","Capital Assets Parking Lot Improvements"]
[null,null,null,null,""]
[null,"Other Land Improvements ",null,"Asset","Other Land Improvements"]
[null,null,null,null,""]
["161100","Capital Assets Other Land Improvements ",null,"Asset","Capital Assets Other Land Improvements"]
[null,null,null,null,""]
[null,"Infrastructure ",null,"Asset","Infrastructure"]
[null,null,null,null,""]
[null,"Infrastructure Capital ",null,"Asset","Infrastructure Capital"]
[null,null,null,null,""]
["161400","Capital Assets Infrastructure ",null,"Asset","Capital Assets Infrastructure"]
[null,null,null,null,""]
[null,"Buildings and Improvements ",null,"Asset","Buildings and Improvements"]
[null,null,null,null,""]
[null,"Buildings and Improvements Service Concession Arrangements ",null,"Asset","Buildings and Improvements Service Concession Arrangements"]
[null,null,null,null,""]
["162000","Capital Assets Build and Improvements Service Concession ",null,"Asset","Capital Assets Build and Improvements Service Concession"]
[null,null,null,null,""]
[null,"Student Housing Facilities ",null,"Asset","Student Housing Facilities"]
[null,null,null,null,""]
["162100","Capital Assets Student Housing Facilities ",null,"Asset","Capital Assets Student Housing Facilities"]
[null,null,null,null,""]
[null,"Parking Structures ",null,"Asset","Parking Structures"]
[null,null,null,null,""]
["162200","Capital Assets Parking Structures ",null,"Asset","Capital Assets Parking Structures"]
[null,null,null,null,""]
[null,"Leasehold Improvements ",null,"Asset","Leasehold Improvements"]
[null,null,null,null,""]
["162300","Capital Assets Leasehold Improvements ",null,"Asset","Capital Assets Leasehold Improvements"]
[null,null,null,null,""]
[null,"Buildings and Improvements Other ",null,"Asset","Buildings and Improvements Other"]
[null,null,null,null,""]
["162400","Capital Assets Buildings and Improvements Other ",null,"Asset","Capital Assets Buildings and Improvements Other"]
[null,null,null,null,""]
[null,"General Improvements ",null,"Asset","General Improvements"]
[null,null,null,null,""]
["162900","Capital Assets General Improvements ",null,"Asset","Capital Assets General Improvements"]
[null,null,null,null,""]
[null,"Equipment ",null,"Asset","Equipment"]
[null,null,null,null,""]
[null,"Capital Equipment ",null,"Asset","Capital Equipment"]
[null,null,null,null,""]
["163000","Capital Assets Equipment ",null,"Asset","Capital Assets Equipment"]
[null,null,null,null,""]
["163002","UCDMC Only Furniture and Minor Equipment ",null,"Asset","UCDMC Only Furniture and Minor Equipment"]
[null,null,null,null,""]
[null,"Software ",null,"Asset","Software"]
[null,null,null,null,""]
[null,"Software greater than 5M ",null,"Asset","Software greater than 5M"]
[null,null,null,null,""]
["163100","Capital Asset Software greater than 5M ",null,"Asset","Capital Asset Software greater than 5M"]
[null,null,null,null,""]
[null,"Software Less than or equal to 5M ",null,"Asset","Software Less than or equal to 5M"]
[null,null,null,null,""]
["163150","Capital Asset Software Less Than or Equal to 5M ",null,"Asset","Capital Asset Software Less Than or Equal to 5M"]
[null,null,null,null,""]
[null,"Intangibles ",null,"Asset","Intangibles"]
[null,null,null,null,""]
[null,"Intangible Assets ",null,"Asset","Intangible Assets"]
[null,null,null,null,""]
["163200","Capital Assets Intangibles ",null,"Asset","Capital Assets Intangibles"]
[null,null,null,null,""]
[null,"Intangibles Cap and Trade Credits ",null,"Asset","Intangibles Cap and Trade Credits"]
[null,null,null,null,""]
["163210","Intangibles Cap and Trade ",null,"Asset","Intangibles Cap and Trade"]
[null,null,null,null,""]
[null,"Libraries and Collections ",null,"Asset","Libraries and Collections"]
[null,null,null,null,""]
[null,"Capital Libraries and Collections ",null,"Asset","Capital Libraries and Collections"]
[null,null,null,null,""]
["163300","Capital Assets Libraries and Collections ",null,"Asset","Capital Assets Libraries and Collections"]
[null,null,null,null,""]
[null,"Special Collections ",null,"Asset","Special Collections"]
[null,null,null,null,""]
[null,"Capital Special collections ",null,"Asset","Capital Special collections"]
[null,null,null,null,""]
["163400","Capital Assets Special Collections ",null,"Asset","Capital Assets Special Collections"]
[null,null,null,null,""]
[null,"Construction in Progress ",null,"Asset","Construction in Progress"]
[null,null,null,null,""]
[null,"Construction In Progress CIP ",null,"Asset","Construction In Progress CIP"]
[null,null,null,null,""]
["163500","Capital Assets Construction In Progress ",null,"Asset","Capital Assets Construction In Progress"]
[null,null,null,null,""]
[null,"Accumulated Depreciation ",null,"Asset","Accumulated Depreciation"]
[null,null,null,null,""]
[null,"Accumulated Depreciation Expense Land Improvements ",null,"Asset","Accumulated Depreciation Expense Land Improvements"]
[null,null,null,null,""]
[null,"Accumulated Depreciation Parking Lot Improvements D ",null,"Asset","Accumulated Depreciation Parking Lot Improvements D"]
[null,null,null,null,""]
["165000","Accumulated Depreciation Parking Lot Improvements ",null,"Asset","Accumulated Depreciation Parking Lot Improvements"]
[null,null,null,null,""]
[null,"Accumulated Depreciation Other Land Improv ",null,"Asset","Accumulated Depreciation Other Land Improv"]
[null,null,null,null,""]
["165100","Accumulated Depreciation Other Land Improvements ",null,"Asset","Accumulated Depreciation Other Land Improvements"]
[null,null,null,null,""]
[null,"Accumulated Depreciation Exp Infrastructure ",null,"Asset","Accumulated Depreciation Exp Infrastructure"]
[null,null,null,null,""]
[null,"Accumulated Depreciation Infrastructure D ",null,"Asset","Accumulated Depreciation Infrastructure D"]
[null,null,null,null,""]
["165500","Accumulated Depreciation Infrastructure ",null,"Asset","Accumulated Depreciation Infrastructure"]
[null,null,null,null,""]
[null,"Accumulated Depreciation Buildings and Improvements ",null,"Asset","Accumulated Depreciation Buildings and Improvements"]
[null,null,null,null,""]
[null,"Accumulated Depreciation Buildings and Improvements Svc Concession ",null,"Asset","Accumulated Depreciation Buildings and Improvements Svc Concession"]
[null,null,null,null,""]
["166000","Accumulated Depreciation Buildings and Improvements Svc Concession Arrangements ",null,"Asset","Accumulated Depreciation Buildings and Improvements Svc Concession Arrangements"]
[null,null,null,null,""]
[null,"Accumulated Depreciation Student Housing Facility ",null,"Asset","Accumulated Depreciation Student Housing Facility"]
[null,null,null,null,""]
["166100","Accumulated Depreciation Student Housing Facilities ",null,"Asset","Accumulated Depreciation Student Housing Facilities"]
[null,null,null,null,""]
[null,"Accumulated Depreciation Parking Structures D ",null,"Asset","Accumulated Depreciation Parking Structures D"]
[null,null,null,null,""]
["166200","Accumulated Depreciation Parking Structures ",null,"Asset","Accumulated Depreciation Parking Structures"]
[null,null,null,null,""]
[null,"Accumulated Depreciation Leasehold Improvements ",null,"Asset","Accumulated Depreciation Leasehold Improvements"]
[null,null,null,null,""]
["166300","Accumulated Depreciation Leasehold Improvement ",null,"Asset","Accumulated Depreciation Leasehold Improvement"]
[null,null,null,null,""]
[null,"Accumulated Depreciation Other Buildings and Improvements ",null,"Asset","Accumulated Depreciation Other Buildings and Improvements"]
[null,null,null,null,""]
["166400","Accumulated Depreciation Other Buildings and Improvement ",null,"Asset","Accumulated Depreciation Other Buildings and Improvement"]
[null,null,null,null,""]
[null,"Accumulated Depreciation General Improvements D ",null,"Asset","Accumulated Depreciation General Improvements D"]
[null,null,null,null,""]
["166900","Accumulated Depreciation General Improvements ",null,"Asset","Accumulated Depreciation General Improvements"]
[null,null,null,null,""]
[null,"Accumulated Depreciation Equipment C ",null,"Asset","Accumulated Depreciation Equipment C"]
[null,null,null,null,""]
[null,"Accumulated Depreciation Equipment D ",null,"Asset","Accumulated Depreciation Equipment D"]
[null,null,null,null,""]
["167000","Accumulated Depreciation Equipment ",null,"Asset","Accumulated Depreciation Equipment"]
[null,null,null,null,""]
["167002","Accumulated Depreciation UCDMC Only Furniture and Minor Equip ",null,"Asset","Accumulated Depreciation UCDMC Only Furniture and Minor Equip"]
[null,null,null,null,""]
[null,"Accumulated Depreciation Software ",null,"Asset","Accumulated Depreciation Software"]
[null,null,null,null,""]
[null,"Accumulated Depreciation Software Greater than 5M D ",null,"Asset","Accumulated Depreciation Software Greater than 5M D"]
[null,null,null,null,""]
["167100","Accumulated Depreciation Software Greater than 5M ",null,"Asset","Accumulated Depreciation Software Greater than 5M"]
[null,null,null,null,""]
[null,"Accumulated Depreciation Software Less than 5M D ",null,"Asset","Accumulated Depreciation Software Less than 5M D"]
[null,null,null,null,""]
["167150","Accumulated Depreciation Software Less Than 5M ",null,"Asset","Accumulated Depreciation Software Less Than 5M"]
[null,null,null,null,""]
[null,"Accumulated Depreciation Intangibles C ",null,"Asset","Accumulated Depreciation Intangibles C"]
[null,null,null,null,""]
[null,"Accumulated Depreciation Intangibles D ",null,"Asset","Accumulated Depreciation Intangibles D"]
[null,null,null,null,""]
["167200","Accumulated Depreciation Intangibles ",null,"Asset","Accumulated Depreciation Intangibles"]
[null,null,null,null,""]
[null,"Accumulated Depreciation Libraries and Collections C ",null,"Asset","Accumulated Depreciation Libraries and Collections C"]
[null,null,null,null,""]
[null,"Accumulated Depreciation Library Collections ",null,"Asset","Accumulated Depreciation Library Collections"]
[null,null,null,null,""]
["167300","Accumulated Depreciation Libraries and Collections ",null,"Asset","Accumulated Depreciation Libraries and Collections"]
[null,null,null,null,""]
[null,"Noncurrent Accounts Receivable ",null,"Asset","Noncurrent Accounts Receivable"]
[null,null,null,null,""]
[null,"Other Noncurrent Receivables ",null,"Asset","Other Noncurrent Receivables"]
[null,null,null,null,""]
[null,"Other Long Term Receivables ",null,"Asset","Other Long Term Receivables"]
[null,null,null,null,""]
["170000","Other Receivables Noncurrent Portion ",null,"Asset","Other Receivables Noncurrent Portion"]
[null,null,null,null,""]
[null,"Lease Receivable Non Current ",null,"Asset","Lease Receivable Non Current"]
[null,null,null,null,""]
["170250","Lease Receivables Non Current ",null,"Asset","Lease Receivables Non Current"]
[null,null,null,null,""]
[null,"Non Current Assets ",null,"Asset","Non Current Assets"]
[null,null,null,null,""]
[null,"Investment in Joint Venture ",null,"Asset","Investment in Joint Venture"]
[null,null,null,null,""]
[null,"LLNS ",null,"Asset","LLNS"]
[null,null,null,null,""]
["171000","Investments In Joint Ventures LLNS ",null,"Asset","Investments In Joint Ventures LLNS"]
[null,null,null,null,""]
[null,"LANS ",null,"Asset","LANS"]
[null,null,null,null,""]
["171100","Investment In Joint Ventures LANS ",null,"Asset","Investment In Joint Ventures LANS"]
[null,null,null,null,""]
[null,"Other Joint Ventures ",null,"Asset","Other Joint Ventures"]
[null,null,null,null,""]
["171200","Investment In Joint Ventures ",null,"Asset","Investment In Joint Ventures"]
[null,null,null,null,""]
[null,"Pollution Remediation Obligation Recovery Receivable Noncurrent ",null,"Asset","Pollution Remediation Obligation Recovery Receivable Noncurrent"]
[null,null,null,null,""]
[null,"Pollution Remediation Obligation Recovery Receivables Non Current Portion D ",null,"Asset","Pollution Remediation Obligation Recovery Receivables Non Current Portion D"]
[null,null,null,null,""]
["171300","Pollution Remediation Obligation Recovery Receivables Noncurrent Portion ",null,"Asset","Pollution Remediation Obligation Recovery Receivables Noncurrent Portion"]
[null,null,null,null,""]
[null,"Beneficial Interest In Split Interest Agreements ",null,"Asset","Beneficial Interest In Split Interest Agreements"]
[null,null,null,null,""]
[null,"Beneficial Interest Split Interest Agreements ",null,"Asset","Beneficial Interest Split Interest Agreements"]
[null,null,null,null,""]
["171400","Beneficial Interest Receivable Split Interest Agreements ",null,"Asset","Beneficial Interest Receivable Split Interest Agreements"]
[null,null,null,null,""]
["171401","Split Interest Agreement Changes in FV of Investment ",null,"Asset","Split Interest Agreement Changes in FV of Investment"]
[null,null,null,null,""]
["171402","Split Interest Agreement Funds held in Trust by Others ",null,"Asset","Split Interest Agreement Funds held in Trust by Others"]
[null,null,null,null,""]
[null,"Deferred Cost of Issuance Noncurrent ",null,"Asset","Deferred Cost of Issuance Noncurrent"]
[null,null,null,null,""]
[null,"Deferred Cost of Issuance Noncurrent Portion ",null,"Asset","Deferred Cost of Issuance Noncurrent Portion"]
[null,null,null,null,""]
["171500","Deferred Cost of Bond Issuance Noncurrent ",null,"Asset","Deferred Cost of Bond Issuance Noncurrent"]
[null,null,null,null,""]
[null,"Other Noncurrent Assets ",null,"Asset","Other Noncurrent Assets"]
[null,null,null,null,""]
[null,"Other Noncurrent and Long Term Assets ",null,"Asset","Other Noncurrent and Long Term Assets"]
[null,null,null,null,""]
["171600","Othe Noncurrent and Long Term Assets ",null,"Asset","Othe Noncurrent and Long Term Assets"]
[null,null,null,null,""]
[null,"Deferred Outflows A ",null,"Asset","Deferred Outflows A"]
[null,null,null,null,""]
[null,"Deferred Outflows B ",null,"Asset","Deferred Outflows B"]
[null,null,null,null,""]
[null,"Debt Refunding C ",null,"Asset","Debt Refunding C"]
[null,null,null,null,""]
[null,"Def Outflows Debt Refunding ",null,"Asset","Def Outflows Debt Refunding"]
[null,null,null,null,""]
["190000","Deferred Outflow Debt Refunding ",null,"Asset","Deferred Outflow Debt Refunding"]
[null,null,null,null,""]
[null,"Deferred Outflow Net Pension Liability C ",null,"Asset","Deferred Outflow Net Pension Liability C"]
[null,null,null,null,""]
[null,"Def Outflows Net Pension Liability ",null,"Asset","Def Outflows Net Pension Liability"]
[null,null,null,null,""]
["190100","Deferred Outflow Net Pension Liability ",null,"Asset","Deferred Outflow Net Pension Liability"]
[null,null,null,null,""]
[null,"Deferred Outflow Net Retiree Health Benefits Liability ",null,"Asset","Deferred Outflow Net Retiree Health Benefits Liability"]
[null,null,null,null,""]
[null,"Def Outflows Net Retiree Health Benefits Liability ",null,"Asset","Def Outflows Net Retiree Health Benefits Liability"]
[null,null,null,null,""]
["190200","Deferred Outflows Net Retiree Health Benefits Liability ",null,"Asset","Deferred Outflows Net Retiree Health Benefits Liability"]
[null,null,null,null,""]
[null,"Deferred Outflow Interest Rate Swap Agreements ",null,"Asset","Deferred Outflow Interest Rate Swap Agreements"]
[null,null,null,null,""]
[null,"Def Outflows Interest Rate Swap Agreements ",null,"Asset","Def Outflows Interest Rate Swap Agreements"]
[null,null,null,null,""]
["190300","Deferred Outflows Interest Rate Swap Agreements ",null,"Asset","Deferred Outflows Interest Rate Swap Agreements"]
[null,null,null,null,""]
[null,"Deferred Outflow Asset Retirement Obligation ",null,"Asset","Deferred Outflow Asset Retirement Obligation"]
[null,null,null,null,""]
[null,"Def Outflows Asset Retirement Obligation ",null,"Asset","Def Outflows Asset Retirement Obligation"]
[null,null,null,null,""]
["190400","Deferred Outflows Asset Retirement Obligation ",null,"Asset","Deferred Outflows Asset Retirement Obligation"]
[null,null,null,null,""]
[null,"Sale Leaseback Agreements ",null,"Asset","Sale Leaseback Agreements"]
[null,null,null,null,""]
[null,"Def Outflows Sale Leaseback Agreements ",null,"Asset","Def Outflows Sale Leaseback Agreements"]
[null,null,null,null,""]
["190500","Deferred Outflows Sale Leaseback Agreements ",null,"Asset","Deferred Outflows Sale Leaseback Agreements"]
[null,null,null,null,""]
[null,"Other Deferred Outflows ",null,"Asset","Other Deferred Outflows"]
[null,null,null,null,""]
[null,"Def Outflows Other ",null,"Asset","Def Outflows Other"]
[null,null,null,null,""]
["190900","Deferred Outflows Other ",null,"Asset","Deferred Outflows Other"]
[null,null,null,null,""]
[null,"All Liabilities ",null,"Liability","All Liabilities"]
[null,null,null,null,""]
[null,"Current Liabilities ",null,"Liability","Current Liabilities"]
[null,null,null,null,""]
[null,"Accounts Payable B ",null,"Liability","Accounts Payable B"]
[null,null,null,null,""]
[null,"Accounts Payables Operating ",null,"Liability","Accounts Payables Operating"]
[null,null,null,null,""]
[null,"Accounts Payable Operating ",null,"Liability","Accounts Payable Operating"]
[null,null,null,null,""]
["200000","Accounts Payable ",null,"Liability","Accounts Payable"]
[null,null,null,null,""]
["200001","Other Accounts Payable Med Center ",null,"Liability","Other Accounts Payable Med Center"]
[null,null,null,null,""]
["200002","Sales Tax Payable State ",null,"Liability","Sales Tax Payable State"]
[null,null,null,null,""]
["200003","Sales Tax Payable Yolo County ",null,"Liability","Sales Tax Payable Yolo County"]
[null,null,null,null,""]
["200004","Sales Tax Payable Sacramento County ",null,"Liability","Sales Tax Payable Sacramento County"]
[null,null,null,null,""]
["200005","Sales Tax Payable ANR Sales ",null,"Liability","Sales Tax Payable ANR Sales"]
[null,null,null,null,""]
["200006","Use Tax Payable County California ",null,"Liability","Use Tax Payable County California"]
[null,null,null,null,""]
["200007","Use Tax Payable State California ",null,"Liability","Use Tax Payable State California"]
[null,null,null,null,""]
["200008","Use Tax Payable City California ",null,"Liability","Use Tax Payable City California"]
[null,null,null,null,""]
["200009","Use Tax Payable District California ",null,"Liability","Use Tax Payable District California"]
[null,null,null,null,""]
["200010","Use Tax Payable Washington State ",null,"Liability","Use Tax Payable Washington State"]
[null,null,null,null,""]
["200011","Sales Use Tax Refunds ",null,"Liability","Sales Use Tax Refunds"]
[null,null,null,null,""]
["200012","Withholding Tax Federal Non Resident Aliens ",null,"Liability","Withholding Tax Federal Non Resident Aliens"]
[null,null,null,null,""]
["200013","Withholding Tax California Vendors ",null,"Liability","Withholding Tax California Vendors"]
[null,null,null,null,""]
["200014","Withholding 1099 Taxes ",null,"Liability","Withholding 1099 Taxes"]
[null,null,null,null,""]
["200015","Withholding Levy Taxes ",null,"Liability","Withholding Levy Taxes"]
[null,null,null,null,""]
[null,"AP Capital ",null,"Liability","AP Capital"]
[null,null,null,null,""]
[null,"Accounts Payable Capital ",null,"Liability","Accounts Payable Capital"]
[null,null,null,null,""]
["201000","Accounts Payable Capital CIP ",null,"Liability","Accounts Payable Capital CIP"]
[null,null,null,null,""]
[null,"Fees Payable Due to Medical Specialists ",null,"Liability","Fees Payable Due to Medical Specialists"]
[null,null,null,null,""]
[null,"Fees Payable due to Medical Specialist ",null,"Liability","Fees Payable due to Medical Specialist"]
[null,null,null,null,""]
["202000","Medical Specialists Fees Payable ",null,"Liability","Medical Specialists Fees Payable"]
[null,null,null,null,""]
[null,"Fees Payable Medical Center Other ",null,"Liability","Fees Payable Medical Center Other"]
[null,null,null,null,""]
[null,"Fees Payables Medical Center Other ",null,"Liability","Fees Payables Medical Center Other"]
[null,null,null,null,""]
["202220","Accrued AP Related Taxes Payable ",null,"Liability","Accrued AP Related Taxes Payable"]
[null,null,null,null,""]
[null,"Investments Accounts Payable ",null,"Liability","Investments Accounts Payable"]
[null,null,null,null,""]
[null,"Investment Purchases ",null,"Liability","Investment Purchases"]
[null,null,null,null,""]
["204000","Investment Payables Investment Purchases ",null,"Liability","Investment Payables Investment Purchases"]
[null,null,null,null,""]
[null,"Investment Settlements ",null,"Liability","Investment Settlements"]
[null,null,null,null,""]
["204100","Investment Payables Settlements ",null,"Liability","Investment Payables Settlements"]
[null,null,null,null,""]
[null,"Commercial Paper Payable ",null,"Liability","Commercial Paper Payable"]
[null,null,null,null,""]
[null,"Commercial Paper Purchase Payable ",null,"Liability","Commercial Paper Purchase Payable"]
[null,null,null,null,""]
["205000","Payables Commercial Paper Purchase ",null,"Liability","Payables Commercial Paper Purchase"]
[null,null,null,null,""]
[null,"Commercial Paper Settlement ",null,"Liability","Commercial Paper Settlement"]
[null,null,null,null,""]
["205100","Commercial Paper Settlement Payable ",null,"Liability","Commercial Paper Settlement Payable"]
[null,null,null,null,""]
[null,"Accrued Salaries and Wages Payable ",null,"Liability","Accrued Salaries and Wages Payable"]
[null,null,null,null,""]
[null,"Accrued Salaries and Wages Expenses ",null,"Liability","Accrued Salaries and Wages Expenses"]
[null,null,null,null,""]
[null,"Accrued Salaries and Wages Expense ",null,"Liability","Accrued Salaries and Wages Expense"]
[null,null,null,null,""]
["210000","Salaries and Wages Payable ",null,"Liability","Salaries and Wages Payable"]
[null,null,null,null,""]
["210001","Accrued Salaries and Wages ",null,"Liability","Accrued Salaries and Wages"]
[null,null,null,null,""]
["210015","Accrued NRST Scholarship Withholding ",null,"Liability","Accrued NRST Scholarship Withholding"]
[null,null,null,null,""]
["210016","Accrued NRA Scholarship Withholding ",null,"Liability","Accrued NRA Scholarship Withholding"]
[null,null,null,null,""]
[null,"Accrued Incentive Plan Liability ",null,"Liability","Accrued Incentive Plan Liability"]
[null,null,null,null,""]
[null,"Accrued Incentive Plan Liabilities ",null,"Liability","Accrued Incentive Plan Liabilities"]
[null,null,null,null,""]
["210500","Accrued Incentive Plans Liability ",null,"Liability","Accrued Incentive Plans Liability"]
[null,null,null,null,""]
[null,"Employee Benefits ",null,"Liability","Employee Benefits"]
[null,null,null,null,""]
[null,"Retirement Plan ",null,"Liability","Retirement Plan"]
[null,null,null,null,""]
[null,"Employee Retirement Plan Liability UCRP ",null,"Liability","Employee Retirement Plan Liability UCRP"]
[null,null,null,null,""]
["211000","UCRP Employee Retirement Plan Liability ",null,"Liability","UCRP Employee Retirement Plan Liability"]
[null,null,null,null,""]
[null,"Employer Retirement Plan Liability UCRP ",null,"Liability","Employer Retirement Plan Liability UCRP"]
[null,null,null,null,""]
["211100","UCRP Employer Retirement Plan Liability ",null,"Liability","UCRP Employer Retirement Plan Liability"]
[null,null,null,null,""]
[null,"Employee Retirement Plan Contributions UCRP ",null,"Liability","Employee Retirement Plan Contributions UCRP"]
[null,null,null,null,""]
["211200","UCRP Employee Retirement Plan Contributions ",null,"Liability","UCRP Employee Retirement Plan Contributions"]
[null,null,null,null,""]
[null,"Employer Retirement Plan Contributions UCRP ",null,"Liability","Employer Retirement Plan Contributions UCRP"]
[null,null,null,null,""]
["211300","UCRP Employer Retirement Plan Contributions ",null,"Liability","UCRP Employer Retirement Plan Contributions"]
[null,null,null,null,""]
[null,"Employee Retirement Plan Liability UCRP Supplement Choice ",null,"Liability","Employee Retirement Plan Liability UCRP Supplement Choice"]
[null,null,null,null,""]
["211400","UCRP Supplement Choice Employee Retirement Plan Liability ",null,"Liability","UCRP Supplement Choice Employee Retirement Plan Liability"]
[null,null,null,null,""]
[null,"Employer Retirement Plan Liability UCRP Supplement Choice ",null,"Liability","Employer Retirement Plan Liability UCRP Supplement Choice"]
[null,null,null,null,""]
["211500","UCRP Supplement Choice Employer Retirement Plan Liability ",null,"Liability","UCRP Supplement Choice Employer Retirement Plan Liability"]
[null,null,null,null,""]
[null,"Retiree Health Benefit Plan ",null,"Liability","Retiree Health Benefit Plan"]
[null,null,null,null,""]
[null,"Employee Retirement Health Benefit Plan Liability ",null,"Liability","Employee Retirement Health Benefit Plan Liability"]
[null,null,null,null,""]
["212000","Employee Retirement Health Benefit Plan Liability OPEB ",null,"Liability","Employee Retirement Health Benefit Plan Liability OPEB"]
[null,null,null,null,""]
[null,"Employer Retirement Health Benefit Plan Liability ",null,"Liability","Employer Retirement Health Benefit Plan Liability"]
[null,null,null,null,""]
["212100","Employer Retirement Health Benefit Plan Liability OPEB ",null,"Liability","Employer Retirement Health Benefit Plan Liability OPEB"]
[null,null,null,null,""]
[null,"Employee Retirement Health Benefit Plan Contributions ",null,"Liability","Employee Retirement Health Benefit Plan Contributions"]
[null,null,null,null,""]
["212200","Employee Retirement Health Benefit Plan Contributions OPEB ",null,"Liability","Employee Retirement Health Benefit Plan Contributions OPEB"]
[null,null,null,null,""]
[null,"Employer Retirement Health Benefit Plan Contributions ",null,"Liability","Employer Retirement Health Benefit Plan Contributions"]
[null,null,null,null,""]
["212300","Employer Retirement Health Benefit Plan Contribution ",null,"Liability","Employer Retirement Health Benefit Plan Contribution"]
[null,null,null,null,""]
[null,"UCRP Contribution to UC Retiree Health Benefit Plan ",null,"Liability","UCRP Contribution to UC Retiree Health Benefit Plan"]
[null,null,null,null,""]
["212310","UCRP Contributions to UC Retiree Health Benefit Plan ",null,"Liability","UCRP Contributions to UC Retiree Health Benefit Plan"]
[null,null,null,null,""]
[null,"Accrued Payroll Tax ",null,"Liability","Accrued Payroll Tax"]
[null,null,null,null,""]
[null,"Federal Income Taxes Withheld ",null,"Liability","Federal Income Taxes Withheld"]
[null,null,null,null,""]
["213000","Fed Income Tax Withheld ",null,"Liability","Fed Income Tax Withheld"]
[null,null,null,null,""]
["213001","Accrued Income Tax Withholding Federal Resident ",null,"Liability","Accrued Income Tax Withholding Federal Resident"]
[null,null,null,null,""]
["213002","Accrued Income Tax Withholdings Federal Nonresident ",null,"Liability","Accrued Income Tax Withholdings Federal Nonresident"]
[null,null,null,null,""]
[null,"Social Security Taxes Withheld and Accrued ",null,"Liability","Social Security Taxes Withheld and Accrued"]
[null,null,null,null,""]
["213100","Accrued Income Tax Withholdings Social Security ",null,"Liability","Accrued Income Tax Withholdings Social Security"]
[null,null,null,null,""]
[null,"State Income Taxes Withheld ",null,"Liability","State Income Taxes Withheld"]
[null,null,null,null,""]
["213200","Accrued Income Tax Withholdings State ",null,"Liability","Accrued Income Tax Withholdings State"]
[null,null,null,null,""]
[null,"Unemployment Taxes Payable ",null,"Liability","Unemployment Taxes Payable"]
[null,null,null,null,""]
["213300","Accrued Income Tax Withholdings Unemployment ",null,"Liability","Accrued Income Tax Withholdings Unemployment"]
[null,null,null,null,""]
[null,"Other Payroll Taxes and Deductions Payable ",null,"Liability","Other Payroll Taxes and Deductions Payable"]
[null,null,null,null,""]
["213400","Accrued Income Tax Withholdings and Deductions Other ",null,"Liability","Accrued Income Tax Withholdings and Deductions Other"]
[null,null,null,null,""]
[null,"Accrued Vacation or PTO ",null,"Liability","Accrued Vacation or PTO"]
[null,null,null,null,""]
[null,"Accrued Vacations or PTO ",null,"Liability","Accrued Vacations or PTO"]
[null,null,null,null,""]
["213700","Accrued Vacation ",null,"Liability","Accrued Vacation"]
[null,null,null,null,""]
["213701","Accrued Holiday ",null,"Liability","Accrued Holiday"]
[null,null,null,null,""]
["213702","Accrued CTO ",null,"Liability","Accrued CTO"]
[null,null,null,null,""]
["213703","Accrued EX Vac Over Max ",null,"Liability","Accrued EX Vac Over Max"]
[null,null,null,null,""]
[null,"Termination Benefits Payable ",null,"Liability","Termination Benefits Payable"]
[null,null,null,null,""]
[null,"Termination Benefit Payable ",null,"Liability","Termination Benefit Payable"]
[null,null,null,null,""]
["213800","Termination Benefits Payables ",null,"Liability","Termination Benefits Payables"]
[null,null,null,null,""]
[null,"Other Employee Benefits C ",null,"Liability","Other Employee Benefits C"]
[null,null,null,null,""]
[null,"Other Employee Benefits Accruals ",null,"Liability","Other Employee Benefits Accruals"]
[null,null,null,null,""]
["213920","Accrued GSR Health Remission Payable ",null,"Liability","Accrued GSR Health Remission Payable"]
[null,null,null,null,""]
["213921","Accrued Grad Student NRST Remission Payable ",null,"Liability","Accrued Grad Student NRST Remission Payable"]
[null,null,null,null,""]
["213922","Accrued Tuition Remission ",null,"Liability","Accrued Tuition Remission"]
[null,null,null,null,""]
["213923","Accrued Fee Remission ",null,"Liability","Accrued Fee Remission"]
[null,null,null,null,""]
["213924","Accrued CBR Rate ",null,"Liability","Accrued CBR Rate"]
[null,null,null,null,""]
["213925","UCRS Supplemental Interest ",null,"Liability","UCRS Supplemental Interest"]
[null,null,null,null,""]
["213926","Accrued Other Employee Benefits ",null,"Liability","Accrued Other Employee Benefits"]
[null,null,null,null,""]
["213930","Accrued 415M ",null,"Liability","Accrued 415M"]
[null,null,null,null,""]
[null,"Unearned Revenues ",null,"Liability","Unearned Revenues"]
[null,null,null,null,""]
[null,"Government ",null,"Liability","Government"]
[null,null,null,null,""]
[null,"Federal Contracts and Grants D ",null,"Liability","Federal Contracts and Grants D"]
[null,null,null,null,""]
["220000","Unearned Contracts and Grants Revenue Federal Grants ",null,"Liability","Unearned Contracts and Grants Revenue Federal Grants"]
[null,null,null,null,""]
[null,"State and Local Contracts and Grants ",null,"Liability","State and Local Contracts and Grants"]
[null,null,null,null,""]
["220100","Unearned Contracts and Grants Revenue State and Local ",null,"Liability","Unearned Contracts and Grants Revenue State and Local"]
[null,null,null,null,""]
[null,"State Hospital Fee Grants For Medical Centers ",null,"Liability","State Hospital Fee Grants For Medical Centers"]
[null,null,null,null,""]
["220200","Unearned Revenue State Hospital Fee Grants For Medical Centers ",null,"Liability","Unearned Revenue State Hospital Fee Grants For Medical Centers"]
[null,null,null,null,""]
[null,"Tuition and Fees Unearned Revenue ",null,"Liability","Tuition and Fees Unearned Revenue"]
[null,null,null,null,""]
[null,"Tuition and Fees Unearned ",null,"Liability","Tuition and Fees Unearned"]
[null,null,null,null,""]
["221000","Deferred Revenue Tuition and Fees ",null,"Liability","Deferred Revenue Tuition and Fees"]
[null,null,null,null,""]
[null,"Auxiliary ",null,"Liability","Auxiliary"]
[null,null,null,null,""]
[null,"Auxiliaries Deferred Revenue ",null,"Liability","Auxiliaries Deferred Revenue"]
[null,null,null,null,""]
["222000","Deferred Revenue Auxiliaries ",null,"Liability","Deferred Revenue Auxiliaries"]
[null,null,null,null,""]
[null,"Other Unearned Revenue C ",null,"Liability","Other Unearned Revenue C"]
[null,null,null,null,""]
[null,"Other Unearned Revenue D ",null,"Liability","Other Unearned Revenue D"]
[null,null,null,null,""]
["223000","Other Unearned Revenue ",null,"Liability","Other Unearned Revenue"]
[null,null,null,null,""]
["223001","EPP Enhances Payment Program ",null,"Liability","EPP Enhances Payment Program"]
[null,null,null,null,""]
["223002","Unearned Patient Prepay ",null,"Liability","Unearned Patient Prepay"]
[null,null,null,null,""]
["223003","QIP Quality Improvement Program ",null,"Liability","QIP Quality Improvement Program"]
[null,null,null,null,""]
[null,"Collateral Held for Security Lending B ",null,"Liability","Collateral Held for Security Lending B"]
[null,null,null,null,""]
[null,"Collateral Held for Security Lending C ",null,"Liability","Collateral Held for Security Lending C"]
[null,null,null,null,""]
[null,"Collateral Held for Security Lending D ",null,"Liability","Collateral Held for Security Lending D"]
[null,null,null,null,""]
["224000","Collateral Held For Security Lending ",null,"Liability","Collateral Held For Security Lending"]
[null,null,null,null,""]
[null,"Contra For Collateral Held For Security Lending Foundations C ",null,"Liability","Contra For Collateral Held For Security Lending Foundations C"]
[null,null,null,null,""]
[null,"Contra For Collateral Held For Security Lending Foundations D ",null,"Liability","Contra For Collateral Held For Security Lending Foundations D"]
[null,null,null,null,""]
["224200","Contra For Collateral Held For Security Lending Foundations ",null,"Liability","Contra For Collateral Held For Security Lending Foundations"]
[null,null,null,null,""]
[null,"Commercial Paper B ",null,"Liability","Commercial Paper B"]
[null,null,null,null,""]
[null,"Commercial Paper Capital C ",null,"Liability","Commercial Paper Capital C"]
[null,null,null,null,""]
[null,"Commercial Paper Capital D ",null,"Liability","Commercial Paper Capital D"]
[null,null,null,null,""]
["225000","Commercial Paper Capital ",null,"Liability","Commercial Paper Capital"]
[null,null,null,null,""]
[null,"Commercial Paper Noncapital ",null,"Liability","Commercial Paper Noncapital"]
[null,null,null,null,""]
[null,"Commercial Paper Noncapital D ",null,"Liability","Commercial Paper Noncapital D"]
[null,null,null,null,""]
["225100","Commercial Pape Noncapital ",null,"Liability","Commercial Pape Noncapital"]
[null,null,null,null,""]
[null,"Long Term Debt Current Portion ",null,"Liability","Long Term Debt Current Portion"]
[null,null,null,null,""]
[null,"General Revenue Bonds Current Portion ",null,"Liability","General Revenue Bonds Current Portion"]
[null,null,null,null,""]
[null,"General Revenue Bonds Capital Current Portion D ",null,"Liability","General Revenue Bonds Capital Current Portion D"]
[null,null,null,null,""]
["226000","General Revenue Bonds Capital Current Portion ",null,"Liability","General Revenue Bonds Capital Current Portion"]
[null,null,null,null,""]
[null,"General Revenue Bonds Noncapital Current Portion ",null,"Liability","General Revenue Bonds Noncapital Current Portion"]
[null,null,null,null,""]
["226050","General Revenue Bonds Non Capital Current ",null,"Liability","General Revenue Bonds Non Capital Current"]
[null,null,null,null,""]
[null,"Limited Project Revenue Bond Current Portion C ",null,"Liability","Limited Project Revenue Bond Current Portion C"]
[null,null,null,null,""]
[null,"Limited Project Revenue Bonds Current Portion ",null,"Liability","Limited Project Revenue Bonds Current Portion"]
[null,null,null,null,""]
["226100","Limited Project Revenue Bond Current Portion ",null,"Liability","Limited Project Revenue Bond Current Portion"]
[null,null,null,null,""]
[null,"Medical Center Pooled Revenue Bonds Current Portion ",null,"Liability","Medical Center Pooled Revenue Bonds Current Portion"]
[null,null,null,null,""]
[null,"Medical Center Pooled Revenue Bonds Capital Current Portion ",null,"Liability","Medical Center Pooled Revenue Bonds Capital Current Portion"]
[null,null,null,null,""]
["226200","MED Center Pooled Revenue Bonds Capital Current ",null,"Liability","MED Center Pooled Revenue Bonds Capital Current"]
[null,null,null,null,""]
["226201","POOLED REVENUE BONDS 2013 J SERIES ",null,"Liability","POOLED REVENUE BONDS 2013 J SERIES"]
[null,null,null,null,""]
["226202","POOLED REVENUE BONDS 2016 L SERIES ",null,"Liability","POOLED REVENUE BONDS 2016 L SERIES"]
[null,null,null,null,""]
["226203","POOLED REVENUE BONDS 2016 M SERIES ",null,"Liability","POOLED REVENUE BONDS 2016 M SERIES"]
[null,null,null,null,""]
["226204","POOLED REVENUE BONDS 2017 AY SERIES ",null,"Liability","POOLED REVENUE BONDS 2017 AY SERIES"]
[null,null,null,null,""]
["226205","POOLED REVENUE BONDS 2020 N SERIES ",null,"Liability","POOLED REVENUE BONDS 2020 N SERIES"]
[null,null,null,null,""]
["226206","2013 J DEFERRED PREMIUM ",null,"Liability","2013 J DEFERRED PREMIUM"]
[null,null,null,null,""]
["226207","2016 L DEFERRED PREMIUM ",null,"Liability","2016 L DEFERRED PREMIUM"]
[null,null,null,null,""]
["226208","2017 AY DEFERRED PREMIUM ",null,"Liability","2017 AY DEFERRED PREMIUM"]
[null,null,null,null,""]
["226209","POOLED REVENUE BONDS 2022 P ",null,"Liability","POOLED REVENUE BONDS 2022 P"]
[null,null,null,null,""]
["226210","POOLED REVENUE BONDS 2022 Q ",null,"Liability","POOLED REVENUE BONDS 2022 Q"]
[null,null,null,null,""]
["226211","2022 P DEFERRED PREMIUM CURRENT PORTION ",null,"Liability","2022 P DEFERRED PREMIUM CURRENT PORTION"]
[null,null,null,null,""]
[null,"Blended Component Unit 3rd Party Revenue Bond Current ",null,"Liability","Blended Component Unit 3rd Party Revenue Bond Current"]
[null,null,null,null,""]
[null,"Blended Component Unit 3rd Party Revenue Bonds Current ",null,"Liability","Blended Component Unit 3rd Party Revenue Bonds Current"]
[null,null,null,null,""]
["226300","Blended Component Unit Bonds Third Party Revenue Bond Current ",null,"Liability","Blended Component Unit Bonds Third Party Revenue Bond Current"]
[null,null,null,null,""]
[null,"Financing Obligations Current Portion ",null,"Liability","Financing Obligations Current Portion"]
[null,null,null,null,""]
[null,"Financing Obligation Current Portion ",null,"Liability","Financing Obligation Current Portion"]
[null,null,null,null,""]
["226400","Capital Financing Lease Obligations ",null,"Liability","Capital Financing Lease Obligations"]
[null,null,null,null,""]
[null,"Finance Lease ROU Obligation Current ",null,"Liability","Finance Lease ROU Obligation Current"]
[null,null,null,null,""]
["226410","Finance Lease Obligation Current Portion ",null,"Liability","Finance Lease Obligation Current Portion"]
[null,null,null,null,""]
[null,"Purchase Option Liability Current Portion ",null,"Liability","Purchase Option Liability Current Portion"]
[null,null,null,null,""]
["226420","Lease Purchase Option Liability Current Portion ",null,"Liability","Lease Purchase Option Liability Current Portion"]
[null,null,null,null,""]
[null,"Subscription Liability SBITA Current Portion D ",null,"Liability","Subscription Liability SBITA Current Portion D"]
[null,null,null,null,""]
["226430","Subscription Liability SBITA Current Portion ",null,"Liability","Subscription Liability SBITA Current Portion"]
[null,null,null,null,""]
[null,"Other Borrowings Current Portion ",null,"Liability","Other Borrowings Current Portion"]
[null,null,null,null,""]
[null,"Other Borrowings Current Portions ",null,"Liability","Other Borrowings Current Portions"]
[null,null,null,null,""]
["226500","Other Borrowings Current Portion of Long Term Debt ",null,"Liability","Other Borrowings Current Portion of Long Term Debt"]
[null,null,null,null,""]
[null,"Unamortized Bond Premiums Current Portion ",null,"Liability","Unamortized Bond Premiums Current Portion"]
[null,null,null,null,""]
[null,"GRB Unamortized Bond Prem Current Portion ",null,"Liability","GRB Unamortized Bond Prem Current Portion"]
[null,null,null,null,""]
["226600","GRB Unamortized Bond Prem Current Portion of Long Term Debt ",null,"Liability","GRB Unamortized Bond Prem Current Portion of Long Term Debt"]
[null,null,null,null,""]
[null,"LPRB Unamortized Bond Premiums Current Portion ",null,"Liability","LPRB Unamortized Bond Premiums Current Portion"]
[null,null,null,null,""]
["226630","LRPB Unamortized Bond Premiums Current Portion of Long Term Debt ",null,"Liability","LRPB Unamortized Bond Premiums Current Portion of Long Term Debt"]
[null,null,null,null,""]
[null,"MCPRB Unamortized Bond Premiums Current Portion ",null,"Liability","MCPRB Unamortized Bond Premiums Current Portion"]
[null,null,null,null,""]
["226650","MCPRB Unamortized Bond Premiums Current Portion of Long Term Debt ",null,"Liability","MCPRB Unamortized Bond Premiums Current Portion of Long Term Debt"]
[null,null,null,null,""]
["226651","Deferred Prem 22P Current Portion ",null,"Liability","Deferred Prem 22P Current Portion"]
[null,null,null,null,""]
[null,"3rd Party Unamortized Bond Premiums Current Portion ",null,"Liability","3rd Party Unamortized Bond Premiums Current Portion"]
[null,null,null,null,""]
["226670","3rd Party Unamortized Bond Premiums Current Portion of Long Term Debt ",null,"Liability","3rd Party Unamortized Bond Premiums Current Portion of Long Term Debt"]
[null,null,null,null,""]
[null,"Bank Lines of Credit Current Portion ",null,"Liability","Bank Lines of Credit Current Portion"]
[null,null,null,null,""]
[null,"Bank Lines of Credit Current Portion Debt ",null,"Liability","Bank Lines of Credit Current Portion Debt"]
[null,null,null,null,""]
["226700","Bank Lines of Credit Current Portion of Debt ",null,"Liability","Bank Lines of Credit Current Portion of Debt"]
[null,null,null,null,""]
[null,"Direct Borrowings and Direct Placements C ",null,"Liability","Direct Borrowings and Direct Placements C"]
[null,null,null,null,""]
[null,"Direct Borrowings and Direct Placements LTD ",null,"Liability","Direct Borrowings and Direct Placements LTD"]
[null,null,null,null,""]
["226800","Direct Borrowings and Direct Placements Long Term Debt ",null,"Liability","Direct Borrowings and Direct Placements Long Term Debt"]
[null,null,null,null,""]
[null,"Funds Held for Others ",null,"Liability","Funds Held for Others"]
[null,null,null,null,""]
[null,"Funds Held for Others Agency Account ",null,"Liability","Funds Held for Others Agency Account"]
[null,null,null,null,""]
[null,"Funds Held for Others Agency Accounts ",null,"Liability","Funds Held for Others Agency Accounts"]
[null,null,null,null,""]
["227000","Agency Funds Held for Others ",null,"Liability","Agency Funds Held for Others"]
[null,null,null,null,""]
["227001","Agency Funds Chargebacks ",null,"Liability","Agency Funds Chargebacks"]
[null,null,null,null,""]
[null,"Department of Energy Laboratories Liabilities ",null,"Liability","Department of Energy Laboratories Liabilities"]
[null,null,null,null,""]
[null,"Department of Energy Laboratory Liabilities ",null,"Liability","Department of Energy Laboratory Liabilities"]
[null,null,null,null,""]
[null,"Department of Energy Labs Liabilities ",null,"Liability","Department of Energy Labs Liabilities"]
[null,null,null,null,""]
["227200","Department of Energy Laboratory Liability ",null,"Liability","Department of Energy Laboratory Liability"]
[null,null,null,null,""]
[null,"Other Current Liabilities ",null,"Liability","Other Current Liabilities"]
[null,null,null,null,""]
[null,"Compensated Absences Liabilities C ",null,"Liability","Compensated Absences Liabilities C"]
[null,null,null,null,""]
[null,"Compensated Absences Current Liabilities ",null,"Liability","Compensated Absences Current Liabilities"]
[null,null,null,null,""]
["230000","Compensated Absences Liabilities ",null,"Liability","Compensated Absences Liabilities"]
[null,null,null,null,""]
[null,"Self Insurance Current Liability ",null,"Liability","Self Insurance Current Liability"]
[null,null,null,null,""]
[null,"Medical Malpractice Professional Liability Current ",null,"Liability","Medical Malpractice Professional Liability Current"]
[null,null,null,null,""]
["231000","Medical Malpractice and Professional Current ",null,"Liability","Medical Malpractice and Professional Current"]
[null,null,null,null,""]
[null,"General Auto and Employment Liability Current Portion D ",null,"Liability","General Auto and Employment Liability Current Portion D"]
[null,null,null,null,""]
["231100","General Auto and Employment Liability Current Portion ",null,"Liability","General Auto and Employment Liability Current Portion"]
[null,null,null,null,""]
[null,"Worker Compensation Current Portion ",null,"Liability","Worker Compensation Current Portion"]
[null,null,null,null,""]
["231200","Workers Compensation Current Portion ",null,"Liability","Workers Compensation Current Portion"]
[null,null,null,null,""]
[null,"Employee Health Current Portion ",null,"Liability","Employee Health Current Portion"]
[null,null,null,null,""]
["231300","Employee Health Insurance Current Portion ",null,"Liability","Employee Health Insurance Current Portion"]
[null,null,null,null,""]
[null,"Graduate Student Health Insurance Current Portion ",null,"Liability","Graduate Student Health Insurance Current Portion"]
[null,null,null,null,""]
["231400","Graduate Student Health Insurance Current Portions ",null,"Liability","Graduate Student Health Insurance Current Portions"]
[null,null,null,null,""]
[null,"Undergrad Student Health Insurance Current Portion ",null,"Liability","Undergrad Student Health Insurance Current Portion"]
[null,null,null,null,""]
["231500","Undergrad Student Health Insurance Current ",null,"Liability","Undergrad Student Health Insurance Current"]
[null,null,null,null,""]
[null,"Other Programs Current Portion ",null,"Liability","Other Programs Current Portion"]
[null,null,null,null,""]
["231600","Other Programs Current Portions ",null,"Liability","Other Programs Current Portions"]
[null,null,null,null,""]
[null,"Medical Center Payable to Third Party Payors ",null,"Liability","Medical Center Payable to Third Party Payors"]
[null,null,null,null,""]
[null,"Reimbursement Settlement Due Medicare ",null,"Liability","Reimbursement Settlement Due Medicare"]
[null,null,null,null,""]
["232000","Medicare Specific Reserves ",null,"Liability","Medicare Specific Reserves"]
[null,null,null,null,""]
["232001","Medicare Cost Report Settlement ",null,"Liability","Medicare Cost Report Settlement"]
[null,null,null,null,""]
["232002","Medicare Direct Grants ",null,"Liability","Medicare Direct Grants"]
[null,null,null,null,""]
[null,"Reimbursement Settlement Due MediCal ",null,"Liability","Reimbursement Settlement Due MediCal"]
[null,null,null,null,""]
["232100","Reimbursement Settlement Due to MediCal ",null,"Liability","Reimbursement Settlement Due to MediCal"]
[null,null,null,null,""]
["232101","MediCal Fee for Service Reserve ",null,"Liability","MediCal Fee for Service Reserve"]
[null,null,null,null,""]
["232102","MediCal Waiver Reserve ",null,"Liability","MediCal Waiver Reserve"]
[null,null,null,null,""]
[null,"Reimbursement Settlement Due Other 3rd Payors ",null,"Liability","Reimbursement Settlement Due Other 3rd Payors"]
[null,null,null,null,""]
["232200","Reimbursement Settlements Due to Other 3rd Party Payors ",null,"Liability","Reimbursement Settlements Due to Other 3rd Party Payors"]
[null,null,null,null,""]
[null,"Interest Payable ",null,"Liability","Interest Payable"]
[null,null,null,null,""]
[null,"Commercial Paper Interest Payable ",null,"Liability","Commercial Paper Interest Payable"]
[null,null,null,null,""]
["233000","Commercial Paper Interest Payable Current ",null,"Liability","Commercial Paper Interest Payable Current"]
[null,null,null,null,""]
[null,"Long Term Debt Interest Payable Current D ",null,"Liability","Long Term Debt Interest Payable Current D"]
[null,null,null,null,""]
["233100","Long Term Debt Interest Payable Current ",null,"Liability","Long Term Debt Interest Payable Current"]
[null,null,null,null,""]
[null,"Capital Leases ",null,"Liability","Capital Leases"]
[null,null,null,null,""]
["233200","Interest Payable Capital Leases Current ",null,"Liability","Interest Payable Capital Leases Current"]
[null,null,null,null,""]
[null,"Interest Accrued GASB 87 ",null,"Liability","Interest Accrued GASB 87"]
[null,null,null,null,""]
["233250","Accrued Interest Expense Finance Lease ",null,"Liability","Accrued Interest Expense Finance Lease"]
[null,null,null,null,""]
[null,"Interest Accrued GASB 96 D ",null,"Liability","Interest Accrued GASB 96 D"]
[null,null,null,null,""]
["233260","Interest Accrued GASB 96 ",null,"Liability","Interest Accrued GASB 96"]
[null,null,null,null,""]
[null,"Interest Payable Other ",null,"Liability","Interest Payable Other"]
[null,null,null,null,""]
["233300","Interest Payable Other Current ",null,"Liability","Interest Payable Other Current"]
[null,null,null,null,""]
[null,"Deposits ",null,"Liability","Deposits"]
[null,null,null,null,""]
[null,"Deposits Other Liabilities ",null,"Liability","Deposits Other Liabilities"]
[null,null,null,null,""]
["234000","Cash Received Undistributed ",null,"Liability","Cash Received Undistributed"]
[null,null,null,null,""]
["234010","Unclaimed Refunds ",null,"Liability","Unclaimed Refunds"]
[null,null,null,null,""]
["234011","Stale Dated Checks ",null,"Liability","Stale Dated Checks"]
[null,null,null,null,""]
["234020","Clearing Sales Activities ",null,"Liability","Clearing Sales Activities"]
[null,null,null,null,""]
["234030","Clearing Tuition and Fees ",null,"Liability","Clearing Tuition and Fees"]
[null,null,null,null,""]
["234050","Security Deposits ",null,"Liability","Security Deposits"]
[null,null,null,null,""]
["234090","Other Deposits ",null,"Liability","Other Deposits"]
[null,null,null,null,""]
["234099","Other Deposits Clearing ",null,"Liability","Other Deposits Clearing"]
[null,null,null,null,""]
[null,"Obligations Under Life Income Agreement ",null,"Liability","Obligations Under Life Income Agreement"]
[null,null,null,null,""]
[null,"Obligations Under Life Income Agreements Liability D ",null,"Liability","Obligations Under Life Income Agreements Liability D"]
[null,null,null,null,""]
["235000","Obligations Under Life Income Agreements Liability ",null,"Liability","Obligations Under Life Income Agreements Liability"]
[null,null,null,null,""]
[null,"UCRP State Deferral Contribution ",null,"Liability","UCRP State Deferral Contribution"]
[null,null,null,null,""]
[null,"UCRP State Deferral Contributions Liabilities D ",null,"Liability","UCRP State Deferral Contributions Liabilities D"]
[null,null,null,null,""]
["235100","UCRP State Deferral Contributions Liabilities ",null,"Liability","UCRP State Deferral Contributions Liabilities"]
[null,null,null,null,""]
[null,"Other Current Liabilities and Accrued Expenses ",null,"Liability","Other Current Liabilities and Accrued Expenses"]
[null,null,null,null,""]
[null,"Bank Overdrafts ",null,"Liability","Bank Overdrafts"]
[null,null,null,null,""]
["237000","Bank Overdraft ",null,"Liability","Bank Overdraft"]
[null,null,null,null,""]
[null,"Patient Credit Balances ",null,"Liability","Patient Credit Balances"]
[null,null,null,null,""]
["237100","Patient Credit Balance ",null,"Liability","Patient Credit Balance"]
[null,null,null,null,""]
[null,"Construction Retention Payable ",null,"Liability","Construction Retention Payable"]
[null,null,null,null,""]
["237200","Construction Retention Payables ",null,"Liability","Construction Retention Payables"]
[null,null,null,null,""]
[null,"Other Current and Miscellaneous Liabilities ",null,"Liability","Other Current and Miscellaneous Liabilities"]
[null,null,null,null,""]
["237310","Other Current and Misc Liabilities ",null,"Liability","Other Current and Misc Liabilities"]
[null,null,null,null,""]
[null,"Rent Payable ",null,"Liability","Rent Payable"]
[null,null,null,null,""]
["237400","Rent Payables ",null,"Liability","Rent Payables"]
[null,null,null,null,""]
["237401","DEFERRED RENT GASB 87 ",null,"Liability","DEFERRED RENT GASB 87"]
[null,null,null,null,""]
[null,"Property Taxes Payable ",null,"Liability","Property Taxes Payable"]
[null,null,null,null,""]
["237500","Property Tax Payable ",null,"Liability","Property Tax Payable"]
[null,null,null,null,""]
[null,"Other Accrued Expenses Payable ",null,"Liability","Other Accrued Expenses Payable"]
[null,null,null,null,""]
["237600","Other Accrued Expenses Payables ",null,"Liability","Other Accrued Expenses Payables"]
[null,null,null,null,""]
[null,"Pollution Remediation Obligation Current Portion ",null,"Liability","Pollution Remediation Obligation Current Portion"]
[null,null,null,null,""]
["237700","Pollution Remediation Obligation Current Portions ",null,"Liability","Pollution Remediation Obligation Current Portions"]
[null,null,null,null,""]
[null,"Asset Retirement Obligation Current Portion ",null,"Liability","Asset Retirement Obligation Current Portion"]
[null,null,null,null,""]
["237800","Asset Retirement Obligation Current ",null,"Liability","Asset Retirement Obligation Current"]
[null,null,null,null,""]
[null,"Clearing Accounts and Internal Loans ",null,"Liability","Clearing Accounts and Internal Loans"]
[null,null,null,null,""]
[null,"Intercampus Receivables Payables Within a Location ",null,"Liability","Intercampus Receivables Payables Within a Location"]
[null,null,null,null,""]
["129004","Intercompany Receivables ",null,"Liability","Intercompany Receivables"]
[null,null,null,null,""]
["163501","MC LAWSON PPE Clearing ",null,"Liability","MC LAWSON PPE Clearing"]
[null,null,null,null,""]
["200050","Intercompany Payables ",null,"Liability","Intercompany Payables"]
[null,null,null,null,""]
["238004","Intercompany Receivables UCDH ",null,"Liability","Intercompany Receivables UCDH"]
[null,null,null,null,""]
["238005","Intercompany Payable UCDH ",null,"Liability","Intercompany Payable UCDH"]
[null,null,null,null,""]
["238006","Interfund Balancing ",null,"Liability","Interfund Balancing"]
[null,null,null,null,""]
["238X00","Clearing PPM ",null,"Liability","Clearing PPM"]
[null,null,null,null,""]
[null,"Other Clearing ",null,"Liability","Other Clearing"]
[null,null,null,null,""]
["238500","Proceeds of Sale Clearing ",null,"Liability","Proceeds of Sale Clearing"]
[null,null,null,null,""]
["238501","ICR Clearing ",null,"Liability","ICR Clearing"]
[null,null,null,null,""]
["238530","Clearing Student Services Fees ",null,"Liability","Clearing Student Services Fees"]
[null,null,null,null,""]
["238532","Clearing Banner Transfers ",null,"Liability","Clearing Banner Transfers"]
[null,null,null,null,""]
["238533","Clearing Credit Card ",null,"Liability","Clearing Credit Card"]
[null,null,null,null,""]
["238534","Clearing Short Term Loans and Installment Plan ",null,"Liability","Clearing Short Term Loans and Installment Plan"]
[null,null,null,null,""]
["238535","Clearing Cash and Cash Equivalents ",null,"Liability","Clearing Cash and Cash Equivalents"]
[null,null,null,null,""]
["238536","Clearing Waivers ",null,"Liability","Clearing Waivers"]
[null,null,null,null,""]
["238537","Clearing Application Fees ",null,"Liability","Clearing Application Fees"]
[null,null,null,null,""]
["238538","Clearing Payment Application ",null,"Liability","Clearing Payment Application"]
[null,null,null,null,""]
["238539","Clearing Education Abroad ",null,"Liability","Clearing Education Abroad"]
[null,null,null,null,""]
["238540","TouchNet CC Clearing ",null,"Liability","TouchNet CC Clearing"]
[null,null,null,null,""]
["238541","Loans Noncash Clearing ",null,"Liability","Loans Noncash Clearing"]
[null,null,null,null,""]
["238542","Sponsored Students Clearing ",null,"Liability","Sponsored Students Clearing"]
[null,null,null,null,""]
["238543","Student Accounting Credit Card Clearing ",null,"Liability","Student Accounting Credit Card Clearing"]
[null,null,null,null,""]
["238550","Clearing Housing and Dining ",null,"Liability","Clearing Housing and Dining"]
[null,null,null,null,""]
["238560","Clearing Vet Med Teaching Hospital ",null,"Liability","Clearing Vet Med Teaching Hospital"]
[null,null,null,null,""]
["238561","Clearing Vet Med Bankruptcy Cancellation ",null,"Liability","Clearing Vet Med Bankruptcy Cancellation"]
[null,null,null,null,""]
["238562","Clearing Banner Deposits ",null,"Liability","Clearing Banner Deposits"]
[null,null,null,null,""]
["238570","Clearing Student Payments ",null,"Liability","Clearing Student Payments"]
[null,null,null,null,""]
["238590","Clearing Travel Card ",null,"Liability","Clearing Travel Card"]
[null,null,null,null,""]
["238591","Clearing PCard ",null,"Liability","Clearing PCard"]
[null,null,null,null,""]
["238592","Clearing Payroll Deduction Parking ",null,"Liability","Clearing Payroll Deduction Parking"]
[null,null,null,null,""]
["238599","Clearing Account Other ",null,"Liability","Clearing Account Other"]
[null,null,null,null,""]
["238600","Reserve for Encumbrances ",null,"Liability","Reserve for Encumbrances"]
[null,null,null,null,""]
["238610","Clearing Miscellaneous AR ",null,"Liability","Clearing Miscellaneous AR"]
[null,null,null,null,""]
["238611","Payment Plus Liability ",null,"Liability","Payment Plus Liability"]
[null,null,null,null,""]
["238612","Card on File Liability ",null,"Liability","Card on File Liability"]
[null,null,null,null,""]
["238613","PBP Clearing ",null,"Liability","PBP Clearing"]
[null,null,null,null,""]
["238700","MC Lawson Error Suspense ",null,"Liability","MC Lawson Error Suspense"]
[null,null,null,null,""]
["238701","Lawson SOH Clearing to Campus ",null,"Liability","Lawson SOH Clearing to Campus"]
[null,null,null,null,""]
["238702","LAWSON TO ORACLE AP CLEARING ",null,"Liability","LAWSON TO ORACLE AP CLEARING"]
[null,null,null,null,""]
["238703","LAWSON TO ORACLE GL CLEARING ",null,"Liability","LAWSON TO ORACLE GL CLEARING"]
[null,null,null,null,""]
["238704","LAWSON TO ORACLE MISC AR CLEARING ",null,"Liability","LAWSON TO ORACLE MISC AR CLEARING"]
[null,null,null,null,""]
["238XXX","UCPath Other Campus Deduction Clearing ",null,"Liability","UCPath Other Campus Deduction Clearing"]
[null,null,null,null,""]
[null,"Internal Loans ",null,"Liability","Internal Loans"]
[null,null,null,null,""]
["238900","Internal Loan Payables ",null,"Liability","Internal Loan Payables"]
[null,null,null,null,""]
["238901","Student Loan Clearing ",null,"Liability","Student Loan Clearing"]
[null,null,null,null,""]
[null,"Accounts Payable Clearing ",null,"Liability","Accounts Payable Clearing"]
[null,null,null,null,""]
["238970","Accounts Payable Clearing Account ",null,"Liability","Accounts Payable Clearing Account"]
[null,null,null,null,""]
[null,"Non Current Liabilities ",null,"Liability","Non Current Liabilities"]
[null,null,null,null,""]
[null,"Federal Refundable Loan ",null,"Liability","Federal Refundable Loan"]
[null,null,null,null,""]
[null,"Federal Refundable Loans C ",null,"Liability","Federal Refundable Loans C"]
[null,null,null,null,""]
[null,"Federal Refundable Loans ",null,"Liability","Federal Refundable Loans"]
[null,null,null,null,""]
["250000","Federal Capital Contributions ",null,"Liability","Federal Capital Contributions"]
[null,null,null,null,""]
["250001","Federal Capital Contributions Repaid ",null,"Liability","Federal Capital Contributions Repaid"]
[null,null,null,null,""]
["250002","Loan Overpayment ",null,"Liability","Loan Overpayment"]
[null,null,null,null,""]
["250003","Repayable Scholarship ",null,"Liability","Repayable Scholarship"]
[null,null,null,null,""]
[null,"Self Insurance ",null,"Liability","Self Insurance"]
[null,null,null,null,""]
[null,"Employee Healthcare C ",null,"Liability","Employee Healthcare C"]
[null,null,null,null,""]
[null,"Employee Healthcare D ",null,"Liability","Employee Healthcare D"]
[null,null,null,null,""]
["251000","Self Insurance Liability Employee Healthcare Noncurrent Portion ",null,"Liability","Self Insurance Liability Employee Healthcare Noncurrent Portion"]
[null,null,null,null,""]
[null,"Student Health ",null,"Liability","Student Health"]
[null,null,null,null,""]
[null,"Graduate Student Health Insurance Program ",null,"Liability","Graduate Student Health Insurance Program"]
[null,null,null,null,""]
["251100","Graduate Insurance Program Liability Noncurrent Portion ",null,"Liability","Graduate Insurance Program Liability Noncurrent Portion"]
[null,null,null,null,""]
[null,"Undergrad Student Health Insurance Program ",null,"Liability","Undergrad Student Health Insurance Program"]
[null,null,null,null,""]
["251200","Undergrad Student Health Insurance Program SHIP Liability Noncurrent Portion ",null,"Liability","Undergrad Student Health Insurance Program SHIP Liability Noncurrent Portion"]
[null,null,null,null,""]
[null,"Medical Malpractice Professional Liability ",null,"Liability","Medical Malpractice Professional Liability"]
[null,null,null,null,""]
[null,"Medical Malpractice and Professional Liability ",null,"Liability","Medical Malpractice and Professional Liability"]
[null,null,null,null,""]
["251300","Medical Malpractice and Professional Liability Noncurrent Portion ",null,"Liability","Medical Malpractice and Professional Liability Noncurrent Portion"]
[null,null,null,null,""]
[null,"General Auto and Employment Liabilities ",null,"Liability","General Auto and Employment Liabilities"]
[null,null,null,null,""]
[null,"General Auto and Employment Liabilities GAEL ",null,"Liability","General Auto and Employment Liabilities GAEL"]
[null,null,null,null,""]
["251400","General Auto and Employment Liabilities GAEL Noncurrent Portion ",null,"Liability","General Auto and Employment Liabilities GAEL Noncurrent Portion"]
[null,null,null,null,""]
[null,"Workers Compensation ",null,"Liability","Workers Compensation"]
[null,null,null,null,""]
[null,"Workers Compensation Liability ",null,"Liability","Workers Compensation Liability"]
[null,null,null,null,""]
["251500","Workers Compensation Liability Noncurrent Portion ",null,"Liability","Workers Compensation Liability Noncurrent Portion"]
[null,null,null,null,""]
[null,"Other ",null,"Liability","Other"]
[null,null,null,null,""]
[null,"Other Self Insurance Liability ",null,"Liability","Other Self Insurance Liability"]
[null,null,null,null,""]
["251600","Other Self Insurance Liability Noncurrent Portion ",null,"Liability","Other Self Insurance Liability Noncurrent Portion"]
[null,null,null,null,""]
[null,"Obligations Under Life Income Agreements ",null,"Liability","Obligations Under Life Income Agreements"]
[null,null,null,null,""]
[null,"Annuities Payable ",null,"Liability","Annuities Payable"]
[null,null,null,null,""]
[null,"Annuities Payable Life Income Agreements ",null,"Liability","Annuities Payable Life Income Agreements"]
[null,null,null,null,""]
["257000","Annuities Payable Life Income Agreements Noncurrent Portion ",null,"Liability","Annuities Payable Life Income Agreements Noncurrent Portion"]
[null,null,null,null,""]
[null,"Liabilities to Life Beneficiaries ",null,"Liability","Liabilities to Life Beneficiaries"]
[null,null,null,null,""]
[null,"Liabilities to Life Beneficiaries Life Income Agreements ",null,"Liability","Liabilities to Life Beneficiaries Life Income Agreements"]
[null,null,null,null,""]
["257100","Liabilities to Life Beneficiaries Life Income Agreements Noncurrent Portion ",null,"Liability","Liabilities to Life Beneficiaries Life Income Agreements Noncurrent Portion"]
[null,null,null,null,""]
[null,"Equity in Assets of CRTs Held for Others ",null,"Liability","Equity in Assets of CRTs Held for Others"]
[null,null,null,null,""]
[null,"Equity in Assets of CRTs held for others Life Income Agreements ",null,"Liability","Equity in Assets of CRTs held for others Life Income Agreements"]
[null,null,null,null,""]
["257200","Equity in Assets of CRTs held for others Life Income Agreements Noncurrent Portion ",null,"Liability","Equity in Assets of CRTs held for others Life Income Agreements Noncurrent Portion"]
[null,null,null,null,""]
[null,"Long Term Debt ",null,"Liability","Long Term Debt"]
[null,null,null,null,""]
[null,"General Revenue Bonds ",null,"Liability","General Revenue Bonds"]
[null,null,null,null,""]
[null,"GRB Capital Related Principal Outstanding ",null,"Liability","GRB Capital Related Principal Outstanding"]
[null,null,null,null,""]
["260000","GRB Related Principal Outstanding Capital ",null,"Liability","GRB Related Principal Outstanding Capital"]
[null,null,null,null,""]
[null,"GRB Noncapital Related Principal Outstanding ",null,"Liability","GRB Noncapital Related Principal Outstanding"]
[null,null,null,null,""]
["260100","GRB Related Principal Outstanding Noncapital ",null,"Liability","GRB Related Principal Outstanding Noncapital"]
[null,null,null,null,""]
[null,"GRB Bond Premium or Discount ",null,"Liability","GRB Bond Premium or Discount"]
[null,null,null,null,""]
["260200","GRB Bond Premium ",null,"Liability","GRB Bond Premium"]
[null,null,null,null,""]
["260201","GRB Bond Discount ",null,"Liability","GRB Bond Discount"]
[null,null,null,null,""]
[null,"Limited Project Revenue Bonds ",null,"Liability","Limited Project Revenue Bonds"]
[null,null,null,null,""]
[null,"LPRB Bonds Payable Principal Outstanding ",null,"Liability","LPRB Bonds Payable Principal Outstanding"]
[null,null,null,null,""]
["261000","LPRB Bonds Payables Principal Outstanding ",null,"Liability","LPRB Bonds Payables Principal Outstanding"]
[null,null,null,null,""]
[null,"LPRB Bond Premium and Discount ",null,"Liability","LPRB Bond Premium and Discount"]
[null,null,null,null,""]
["261002","LPRB Bond Premium ",null,"Liability","LPRB Bond Premium"]
[null,null,null,null,""]
["261003","LPRB Bond Discount ",null,"Liability","LPRB Bond Discount"]
[null,null,null,null,""]
[null,"Medical Center Revenue Bonds ",null,"Liability","Medical Center Revenue Bonds"]
[null,null,null,null,""]
[null,"MCPRB Capital Related Principal Outstanding ",null,"Liability","MCPRB Capital Related Principal Outstanding"]
[null,null,null,null,""]
["262000","MCPRB Related Principal Outstanding Capital ",null,"Liability","MCPRB Related Principal Outstanding Capital"]
[null,null,null,null,""]
["262001","Non Current REVENUE BONDS 2016 L SERIES ",null,"Liability","Non Current REVENUE BONDS 2016 L SERIES"]
[null,null,null,null,""]
["262002","Non Current REVENUE BONDS 2016 M SERIES ",null,"Liability","Non Current REVENUE BONDS 2016 M SERIES"]
[null,null,null,null,""]
["262003","Non Current REVENUE BONDS 2017 AY SERIES ",null,"Liability","Non Current REVENUE BONDS 2017 AY SERIES"]
[null,null,null,null,""]
["262004","Non Current REVENUE BONDS 2020 N SERIES ",null,"Liability","Non Current REVENUE BONDS 2020 N SERIES"]
[null,null,null,null,""]
["262005","Non Current REVENUE BONDS 2013 J SERIES ",null,"Liability","Non Current REVENUE BONDS 2013 J SERIES"]
[null,null,null,null,""]
["262006","Non Current REVENUE BONDS 2020 P SERIES ",null,"Liability","Non Current REVENUE BONDS 2020 P SERIES"]
[null,null,null,null,""]
["262007","Non Current REVENUE BONDS 2020 Q SERIES ",null,"Liability","Non Current REVENUE BONDS 2020 Q SERIES"]
[null,null,null,null,""]
["262008","LONG TERM DEBT AND FINANCING OBLIGATIONS NET OF CURRENT ",null,"Liability","LONG TERM DEBT AND FINANCING OBLIGATIONS NET OF CURRENT"]
[null,null,null,null,""]
[null,"MCPRB Bond Premium or Discount ",null,"Liability","MCPRB Bond Premium or Discount"]
[null,null,null,null,""]
["262200","MCPRB Bond Premium ",null,"Liability","MCPRB Bond Premium"]
[null,null,null,null,""]
["262201","MCPRB Bond Discount ",null,"Liability","MCPRB Bond Discount"]
[null,null,null,null,""]
["262202","Non Current 2013 J DEFERRED PREMIUM ",null,"Liability","Non Current 2013 J DEFERRED PREMIUM"]
[null,null,null,null,""]
["262203","Non Current 2016 L DEFERRED PREMIUM ",null,"Liability","Non Current 2016 L DEFERRED PREMIUM"]
[null,null,null,null,""]
["262204","Non Current 2017 AY DEFERRED PREMIUM ",null,"Liability","Non Current 2017 AY DEFERRED PREMIUM"]
[null,null,null,null,""]
["262205","Deferred Prem 22P Long term ",null,"Liability","Deferred Prem 22P Long term"]
[null,null,null,null,""]
[null,"Blended Component Unit Third Party Revenue Bonds ",null,"Liability","Blended Component Unit Third Party Revenue Bonds"]
[null,null,null,null,""]
[null,"Third Party Revenue Bonds Payable Principal Outstanding ",null,"Liability","Third Party Revenue Bonds Payable Principal Outstanding"]
[null,null,null,null,""]
["263000","Third Party Bonds Payable Principal Outstanding ",null,"Liability","Third Party Bonds Payable Principal Outstanding"]
[null,null,null,null,""]
[null,"Bond Premium or Discount ",null,"Liability","Bond Premium or Discount"]
[null,null,null,null,""]
["263100","3rd Party Bonds Premium ",null,"Liability","3rd Party Bonds Premium"]
[null,null,null,null,""]
["263101","3rd Party Bonds Discount ",null,"Liability","3rd Party Bonds Discount"]
[null,null,null,null,""]
[null,"Cap Lease Financing Obligations ",null,"Liability","Cap Lease Financing Obligations"]
[null,null,null,null,""]
[null,"Financing Obligations incl Capital Lease ",null,"Liability","Financing Obligations incl Capital Lease"]
[null,null,null,null,""]
["264000","Capital Lease Finance Obligation ",null,"Liability","Capital Lease Finance Obligation"]
[null,null,null,null,""]
[null,"Finance Lease ROU Obligation Non Current Portion ",null,"Liability","Finance Lease ROU Obligation Non Current Portion"]
[null,null,null,null,""]
["264010","Finance Lease ROU Obligation Non Current ",null,"Liability","Finance Lease ROU Obligation Non Current"]
[null,null,null,null,""]
[null,"Purchase Option Liability Non Current Portion ",null,"Liability","Purchase Option Liability Non Current Portion"]
[null,null,null,null,""]
["264020","Purchase Option Liability Non Current ",null,"Liability","Purchase Option Liability Non Current"]
[null,null,null,null,""]
[null,"Subscription Liability SBITA Non Current Portion D ",null,"Liability","Subscription Liability SBITA Non Current Portion D"]
[null,null,null,null,""]
["264030","Subscription Liability SBITA Non Current Portion ",null,"Liability","Subscription Liability SBITA Non Current Portion"]
[null,null,null,null,""]
[null,"Other Borrowings ",null,"Liability","Other Borrowings"]
[null,null,null,null,""]
[null,"Bank Lines of Credit ",null,"Liability","Bank Lines of Credit"]
[null,null,null,null,""]
["265000","Bank Line of Credit ",null,"Liability","Bank Line of Credit"]
[null,null,null,null,""]
[null,"Hybrid Interest Rate Swaps ",null,"Liability","Hybrid Interest Rate Swaps"]
[null,null,null,null,""]
["265100","Hybrid Interest Rate Swap ",null,"Liability","Hybrid Interest Rate Swap"]
[null,null,null,null,""]
[null,"Direct Borrowings and Direct Placements D ",null,"Liability","Direct Borrowings and Direct Placements D"]
[null,null,null,null,""]
["265200","Direct Borrowings and Direct Placement ",null,"Liability","Direct Borrowings and Direct Placement"]
[null,null,null,null,""]
[null,"Other Borrowing D ",null,"Liability","Other Borrowing D"]
[null,null,null,null,""]
["265300","Other Borrowing ",null,"Liability","Other Borrowing"]
[null,null,null,null,""]
[null,"Related Party Liability ",null,"Liability","Related Party Liability"]
[null,null,null,null,""]
[null,"Commercial Paper Liability ",null,"Liability","Commercial Paper Liability"]
[null,null,null,null,""]
["266000","Long Term Debt Commercial Paper ",null,"Liability","Long Term Debt Commercial Paper"]
[null,null,null,null,""]
[null,"Century Bond Proceeds ",null,"Liability","Century Bond Proceeds"]
[null,null,null,null,""]
["266100","Long Term Debt Century Bond Proceeds ",null,"Liability","Long Term Debt Century Bond Proceeds"]
[null,null,null,null,""]
[null,"Pension Payable to University ",null,"Liability","Pension Payable to University"]
[null,null,null,null,""]
["266200","Pension Payable to University From Campus and Medical Centers ",null,"Liability","Pension Payable to University From Campus and Medical Centers"]
[null,null,null,null,""]
[null,"Net Pension Liability B ",null,"Liability","Net Pension Liability B"]
[null,null,null,null,""]
[null,"Net Pension Liability ",null,"Liability","Net Pension Liability"]
[null,null,null,null,""]
[null,"Net Pension Liability UC ",null,"Liability","Net Pension Liability UC"]
[null,null,null,null,""]
["267000","Net Pension Liabilities ",null,"Liability","Net Pension Liabilities"]
[null,null,null,null,""]
[null,"Net Pension Liability DOE Labs ",null,"Liability","Net Pension Liability DOE Labs"]
[null,null,null,null,""]
["267010","Net Pension Liability DOE Lab ",null,"Liability","Net Pension Liability DOE Lab"]
[null,null,null,null,""]
[null,"Net Pension Liability BCHO ",null,"Liability","Net Pension Liability BCHO"]
[null,null,null,null,""]
["267020","Net Pension Liabilities BCHO ",null,"Liability","Net Pension Liabilities BCHO"]
[null,null,null,null,""]
[null,"Net Pension Liability OCERs ",null,"Liability","Net Pension Liability OCERs"]
[null,null,null,null,""]
["267030","Net Pension Liabilities OCERS ",null,"Liability","Net Pension Liabilities OCERS"]
[null,null,null,null,""]
[null,"Net Retiree Health Benefit Liability ",null,"Liability","Net Retiree Health Benefit Liability"]
[null,null,null,null,""]
[null,"Net Retiree Health Benefits Liability ",null,"Liability","Net Retiree Health Benefits Liability"]
[null,null,null,null,""]
[null,"Net Retiree Health Benefits Liability UC ",null,"Liability","Net Retiree Health Benefits Liability UC"]
[null,null,null,null,""]
["268000","Net Retiree Health Benefit Liabilities ",null,"Liability","Net Retiree Health Benefit Liabilities"]
[null,null,null,null,""]
[null,"Noncurrent Liabilities ",null,"Liability","Noncurrent Liabilities"]
[null,null,null,null,""]
[null,"Compensated Absences ",null,"Liability","Compensated Absences"]
[null,null,null,null,""]
[null,"Compensated Absences Liability ",null,"Liability","Compensated Absences Liability"]
[null,null,null,null,""]
["270000","Compensated Absences Noncurrent Liability ",null,"Liability","Compensated Absences Noncurrent Liability"]
[null,null,null,null,""]
[null,"Fair Value of Interest Rate Swaps ",null,"Liability","Fair Value of Interest Rate Swaps"]
[null,null,null,null,""]
[null,"Fair Value of Interest Rate Swaps Liability ",null,"Liability","Fair Value of Interest Rate Swaps Liability"]
[null,null,null,null,""]
["270100","Fair Value of Interest Rate Swaps Noncurrent ",null,"Liability","Fair Value of Interest Rate Swaps Noncurrent"]
[null,null,null,null,""]
[null,"Noncurrent Termination Benefits ",null,"Liability","Noncurrent Termination Benefits"]
[null,null,null,null,""]
[null,"Termination Benefits Liability ",null,"Liability","Termination Benefits Liability"]
[null,null,null,null,""]
["270200","Termination Benefits Noncurrent Liability ",null,"Liability","Termination Benefits Noncurrent Liability"]
[null,null,null,null,""]
[null,"Unearned Revenue ",null,"Liability","Unearned Revenue"]
[null,null,null,null,""]
[null,"Unearned Revenue Liability ",null,"Liability","Unearned Revenue Liability"]
[null,null,null,null,""]
["270300","Unearned Revenue Noncurrent Liability ",null,"Liability","Unearned Revenue Noncurrent Liability"]
[null,null,null,null,""]
[null,"Deferred Rent ",null,"Liability","Deferred Rent"]
[null,null,null,null,""]
[null,"Deferred Rent Liability ",null,"Liability","Deferred Rent Liability"]
[null,null,null,null,""]
["270400","Deferred Rent Noncurrent Liability ",null,"Liability","Deferred Rent Noncurrent Liability"]
[null,null,null,null,""]
[null,"Pollution Remediation Obligation ",null,"Liability","Pollution Remediation Obligation"]
[null,null,null,null,""]
[null,"Pollution Remediation Obligation Liability ",null,"Liability","Pollution Remediation Obligation Liability"]
[null,null,null,null,""]
["270500","Pollution Remediation Obligation Noncurrent Liability ",null,"Liability","Pollution Remediation Obligation Noncurrent Liability"]
[null,null,null,null,""]
[null,"Asset Retirement Obligation ",null,"Liability","Asset Retirement Obligation"]
[null,null,null,null,""]
[null,"Asset Retirement Obligation Liability ",null,"Liability","Asset Retirement Obligation Liability"]
[null,null,null,null,""]
["270600","Asset Retirement Obligation Liability Noncurrent Liability ",null,"Liability","Asset Retirement Obligation Liability Noncurrent Liability"]
[null,null,null,null,""]
[null,"Other Noncurrent Liability ",null,"Liability","Other Noncurrent Liability"]
[null,null,null,null,""]
[null,"Other Noncurrent Liabilities ",null,"Liability","Other Noncurrent Liabilities"]
[null,null,null,null,""]
["270700","Other Noncurrent and Miscellaneous Liabilities ",null,"Liability","Other Noncurrent and Miscellaneous Liabilities"]
[null,null,null,null,""]
[null,"UCRP State Deferral Contributions ",null,"Liability","UCRP State Deferral Contributions"]
[null,null,null,null,""]
[null,"UCRP State Deferral Contributions Noncurrent ",null,"Liability","UCRP State Deferral Contributions Noncurrent"]
[null,null,null,null,""]
["270800","UCRP State Deferral Contributions Noncurrent Liabilities ",null,"Liability","UCRP State Deferral Contributions Noncurrent Liabilities"]
[null,null,null,null,""]
[null,"Deferred Inflow ",null,"Liability","Deferred Inflow"]
[null,null,null,null,""]
[null,"Deferred Inflows ",null,"Liability","Deferred Inflows"]
[null,null,null,null,""]
[null,"Service Concession Arrangements ",null,"Liability","Service Concession Arrangements"]
[null,null,null,null,""]
[null,"Deferred Inflows Service Concession Arrangements ",null,"Liability","Deferred Inflows Service Concession Arrangements"]
[null,null,null,null,""]
["290000","Deferred Inflows Service Concession Agreements ",null,"Liability","Deferred Inflows Service Concession Agreements"]
[null,null,null,null,""]
[null,"Debt Refunding ",null,"Liability","Debt Refunding"]
[null,null,null,null,""]
[null,"Deferred Inflows Debt Refunding ",null,"Liability","Deferred Inflows Debt Refunding"]
[null,null,null,null,""]
["291000","Deferred Inflows Debt Refund ",null,"Liability","Deferred Inflows Debt Refund"]
[null,null,null,null,""]
[null,"Pension ",null,"Liability","Pension"]
[null,null,null,null,""]
[null,"Deferred Inflows Pension ",null,"Liability","Deferred Inflows Pension"]
[null,null,null,null,""]
["292000","Deferred Inflows Pension Obligations ",null,"Liability","Deferred Inflows Pension Obligations"]
[null,null,null,null,""]
[null,"Retiree Health ",null,"Liability","Retiree Health"]
[null,null,null,null,""]
[null,"Deferred Inflows Retiree Health ",null,"Liability","Deferred Inflows Retiree Health"]
[null,null,null,null,""]
["293000","Deferred Inflows Retiree Health OPEB ",null,"Liability","Deferred Inflows Retiree Health OPEB"]
[null,null,null,null,""]
[null,"Royalty Sales ",null,"Liability","Royalty Sales"]
[null,null,null,null,""]
[null,"Deferred Inflows Royalty Sales ",null,"Liability","Deferred Inflows Royalty Sales"]
[null,null,null,null,""]
["294000","Deferred Inflows Royalty Sale ",null,"Liability","Deferred Inflows Royalty Sale"]
[null,null,null,null,""]
[null,"Irrevocable Split Interest Agreements ",null,"Liability","Irrevocable Split Interest Agreements"]
[null,null,null,null,""]
[null,"Changes In Obligation ",null,"Liability","Changes In Obligation"]
[null,null,null,null,""]
["295000","Deferred Inflows Changes In Obligation of Split Interest Agreements ",null,"Liability","Deferred Inflows Changes In Obligation of Split Interest Agreements"]
[null,null,null,null,""]
[null,"Changes In Fair Value ",null,"Liability","Changes In Fair Value"]
[null,null,null,null,""]
["295100","Deferred Inflows Changes In Fair Value of Split Interest Agreements ",null,"Liability","Deferred Inflows Changes In Fair Value of Split Interest Agreements"]
[null,null,null,null,""]
[null,"New Gifts ",null,"Liability","New Gifts"]
[null,null,null,null,""]
["295200","Deferred Inflows Split Interest Agreements New Gifts ",null,"Liability","Deferred Inflows Split Interest Agreements New Gifts"]
[null,null,null,null,""]
[null,"Outside Held ",null,"Liability","Outside Held"]
[null,null,null,null,""]
["295300","Deferred Inflows Outside Held Split Interest Agreements ",null,"Liability","Deferred Inflows Outside Held Split Interest Agreements"]
[null,null,null,null,""]
[null,"Noncurrent Split Interest Agreements ",null,"Liability","Noncurrent Split Interest Agreements"]
[null,null,null,null,""]
["295401","Deferred Inflow Split Interest Agreements Noncurrent ",null,"Liability","Deferred Inflow Split Interest Agreements Noncurrent"]
[null,null,null,null,""]
[null,"Equity in Assets held for Others ",null,"Liability","Equity in Assets held for Others"]
[null,null,null,null,""]
["295501","Equity held for Others ",null,"Liability","Equity held for Others"]
[null,null,null,null,""]
[null,"Interest Rate Swap Agreements ",null,"Liability","Interest Rate Swap Agreements"]
[null,null,null,null,""]
[null,"Deferred Inflows Interest Rate Swap Agreement ",null,"Liability","Deferred Inflows Interest Rate Swap Agreement"]
[null,null,null,null,""]
["296000","Deferred Inflows Interest Rate Swap Agreements ",null,"Liability","Deferred Inflows Interest Rate Swap Agreements"]
[null,null,null,null,""]
[null,"Leases ",null,"Liability","Leases"]
[null,null,null,null,""]
[null,"Deferred Inflows Leases ",null,"Liability","Deferred Inflows Leases"]
[null,null,null,null,""]
["297000","Deferred Inflows Lease ",null,"Liability","Deferred Inflows Lease"]
[null,null,null,null,""]
[null,"Deferred Revenue ",null,"Liability","Deferred Revenue"]
[null,null,null,null,""]
[null,"Deferred Inflows Revenue ",null,"Liability","Deferred Inflows Revenue"]
[null,null,null,null,""]
["298000","Deferred Grant Revenue ",null,"Liability","Deferred Grant Revenue"]
[null,null,null,null,""]
[null,"Capitalized Leases ",null,"Liability","Capitalized Leases"]
[null,null,null,null,""]
[null,"Deferred Inflows Capitalized Lease ",null,"Liability","Deferred Inflows Capitalized Lease"]
[null,null,null,null,""]
["299000","Deferred Inflows Capitalized Leases ",null,"Liability","Deferred Inflows Capitalized Leases"]
[null,null,null,null,""]
[null,"Net Position ",null,"Owner's Equity","Net Position"]
[null,null,null,null,""]
[null,"Net Position Ending A ",null,"Owner's Equity","Net Position Ending A"]
[null,null,null,null,""]
[null,"Net Position Ending B ",null,"Owner's Equity","Net Position Ending B"]
[null,null,null,null,""]
[null,"Net Position Ending C ",null,"Owner's Equity","Net Position Ending C"]
[null,null,null,null,""]
[null,"Net Position Ending D ",null,"Owner's Equity","Net Position Ending D"]
[null,null,null,null,""]
["300000","Net Position End of Period ",null,"Owner's Equity","Net Position End of Period"]
[null,null,null,null,""]
["300001","Net Position Department Share ",null,"Owner's Equity","Net Position Department Share"]
[null,null,null,null,""]
[null,"Hand Postings ",null,"Owner's Equity","Hand Postings"]
[null,null,null,null,""]
["300050","Hand Postings to Net Position ",null,"Owner's Equity","Hand Postings to Net Position"]
[null,null,null,null,""]
[null,"Cumulative Effect of Accounting Changes A ",null,"Owner's Equity","Cumulative Effect of Accounting Changes A"]
[null,null,null,null,""]
[null,"Cumulative Effect of Total Accounting Changes ",null,"Owner's Equity","Cumulative Effect of Total Accounting Changes"]
[null,null,null,null,""]
[null,"Cumulative Effect of Tot Accounting Changes ",null,"Owner's Equity","Cumulative Effect of Tot Accounting Changes"]
[null,null,null,null,""]
[null,"Cumulative Effect of All Accounting Changes ",null,"Owner's Equity","Cumulative Effect of All Accounting Changes"]
[null,null,null,null,""]
["301000","Cumulative Effect of Accounting Changes ",null,"Owner's Equity","Cumulative Effect of Accounting Changes"]
[null,null,null,null,""]
[null,"All Revenue ",null,"Revenue","All Revenue"]
[null,null,null,null,""]
[null,"Student Tuition and Fees Net ",null,"Revenue","Student Tuition and Fees Net"]
[null,null,null,null,""]
[null,"Tuition gross ",null,"Revenue","Tuition gross"]
[null,null,null,null,""]
[null,"Tuition Undergraduate Gross ",null,"Revenue","Tuition Undergraduate Gross"]
[null,null,null,null,""]
[null,"Tuition Revenue Undergraduate Gross ",null,"Revenue","Tuition Revenue Undergraduate Gross"]
[null,null,null,null,""]
["400000","Tuition Revenue Undergraduate ",null,"Revenue","Tuition Revenue Undergraduate"]
[null,null,null,null,""]
["400001","Tuition Waivers Undergraduate ",null,"Revenue","Tuition Waivers Undergraduate"]
[null,null,null,null,""]
["400002","Tuition Write Off Undergraduate ",null,"Revenue","Tuition Write Off Undergraduate"]
[null,null,null,null,""]
[null,"Tuition Graduate Academic Gross ",null,"Revenue","Tuition Graduate Academic Gross"]
[null,null,null,null,""]
[null,"Tuition Revenue Graduate Academic Gross ",null,"Revenue","Tuition Revenue Graduate Academic Gross"]
[null,null,null,null,""]
["400100","Tuition Revenue Graduate Academic ",null,"Revenue","Tuition Revenue Graduate Academic"]
[null,null,null,null,""]
["400101","Tuition Waivers Graduate Academic ",null,"Revenue","Tuition Waivers Graduate Academic"]
[null,null,null,null,""]
["400102","Tuition Write Off Graduate Academic ",null,"Revenue","Tuition Write Off Graduate Academic"]
[null,null,null,null,""]
[null,"Tuition Graduate Professional Gross ",null,"Revenue","Tuition Graduate Professional Gross"]
[null,null,null,null,""]
[null,"Tuition Revenue Graduate Professional Gross ",null,"Revenue","Tuition Revenue Graduate Professional Gross"]
[null,null,null,null,""]
["400200","Tuition Graduate Professional ",null,"Revenue","Tuition Graduate Professional"]
[null,null,null,null,""]
["400201","Tuition Waivers Graduate Professional ",null,"Revenue","Tuition Waivers Graduate Professional"]
[null,null,null,null,""]
["400202","Tuition Write Off Graduate Professional ",null,"Revenue","Tuition Write Off Graduate Professional"]
[null,null,null,null,""]
[null,"Tuition Post Baccalaureate Gross ",null,"Revenue","Tuition Post Baccalaureate Gross"]
[null,null,null,null,""]
[null,"Tuition Revenue Post Baccalaureate Gross ",null,"Revenue","Tuition Revenue Post Baccalaureate Gross"]
[null,null,null,null,""]
["400300","Tuition Post Baccalaureate ",null,"Revenue","Tuition Post Baccalaureate"]
[null,null,null,null,""]
["400301","Tuition Waivers Post Baccalaureate ",null,"Revenue","Tuition Waivers Post Baccalaureate"]
[null,null,null,null,""]
[null,"Tuition Undergraduate Summer Matriculated Gross ",null,"Revenue","Tuition Undergraduate Summer Matriculated Gross"]
[null,null,null,null,""]
[null,"Tuition Revenue Undergraduate Summer Matriculated Gross ",null,"Revenue","Tuition Revenue Undergraduate Summer Matriculated Gross"]
[null,null,null,null,""]
["400400","Tuition Undergraduate Summer Matriculated ",null,"Revenue","Tuition Undergraduate Summer Matriculated"]
[null,null,null,null,""]
["400401","Special Summer Field Session Fee Revenue ",null,"Revenue","Special Summer Field Session Fee Revenue"]
[null,null,null,null,""]
[null,"Tuition Graduate Summer Matriculated Gross ",null,"Revenue","Tuition Graduate Summer Matriculated Gross"]
[null,null,null,null,""]
[null,"Tuition Revenue Graduate Summer Matriculated Gross ",null,"Revenue","Tuition Revenue Graduate Summer Matriculated Gross"]
[null,null,null,null,""]
["400500","Tuition Graduate Summer Matriculated ",null,"Revenue","Tuition Graduate Summer Matriculated"]
[null,null,null,null,""]
["400510","Summer Abroad Course Fees Graduates ",null,"Revenue","Summer Abroad Course Fees Graduates"]
[null,null,null,null,""]
[null,"Non Resident Supplemental Tuition Revenue Undergrad Gross ",null,"Revenue","Non Resident Supplemental Tuition Revenue Undergrad Gross"]
[null,null,null,null,""]
[null,"Nonresident Supplemental Tuition Revenue Undergrad Gross ",null,"Revenue","Nonresident Supplemental Tuition Revenue Undergrad Gross"]
[null,null,null,null,""]
["400600","Nonresident Suppl Tuition Revenue Undergrad Gross ",null,"Revenue","Nonresident Suppl Tuition Revenue Undergrad Gross"]
[null,null,null,null,""]
[null,"Nonresident Supplemental Tuition Graduate Academic Gross C ",null,"Revenue","Nonresident Supplemental Tuition Graduate Academic Gross C"]
[null,null,null,null,""]
[null,"Nonresident Supplemental Tuition Graduate Academic Gross D ",null,"Revenue","Nonresident Supplemental Tuition Graduate Academic Gross D"]
[null,null,null,null,""]
["400700","Nonresident Supplemental Tuition Graduate Academic ",null,"Revenue","Nonresident Supplemental Tuition Graduate Academic"]
[null,null,null,null,""]
[null,"Nonresident Supplemental Tuition Graduate Professional Gross ",null,"Revenue","Nonresident Supplemental Tuition Graduate Professional Gross"]
[null,null,null,null,""]
[null,"Nonresident Supplemental Tuition Revenue Graduate Professional Gross ",null,"Revenue","Nonresident Supplemental Tuition Revenue Graduate Professional Gross"]
[null,null,null,null,""]
["400800","NonResident Supplemental Tuition GradProfessional ",null,"Revenue","NonResident Supplemental Tuition GradProfessional"]
[null,null,null,null,""]
[null,"Self Supporting Degree Fee ",null,"Revenue","Self Supporting Degree Fee"]
[null,null,null,null,""]
[null,"Self Supporting Degree Fee Revenue ",null,"Revenue","Self Supporting Degree Fee Revenue"]
[null,null,null,null,""]
["400900","Self Supporting Degree Program Fees ",null,"Revenue","Self Supporting Degree Program Fees"]
[null,null,null,null,""]
[null,"Professional Degree Supplemental Tuitions ",null,"Revenue","Professional Degree Supplemental Tuitions"]
[null,null,null,null,""]
[null,"Professional Degree Supplemental Tuition ",null,"Revenue","Professional Degree Supplemental Tuition"]
[null,null,null,null,""]
["401000","Professional Degree Supplement Tuition ",null,"Revenue","Professional Degree Supplement Tuition"]
[null,null,null,null,""]
["401002","Professional Degree Supplemental Tuition Waiver ",null,"Revenue","Professional Degree Supplemental Tuition Waiver"]
[null,null,null,null,""]
[null,"Fees Gross ",null,"Revenue","Fees Gross"]
[null,null,null,null,""]
[null,"University Extension Program Fee ",null,"Revenue","University Extension Program Fee"]
[null,null,null,null,""]
[null,"University Extension Program Fee Revenue ",null,"Revenue","University Extension Program Fee Revenue"]
[null,null,null,null,""]
["402000","CPE Course Income ",null,"Revenue","CPE Course Income"]
[null,null,null,null,""]
["402001","CPE Business To Business Income ",null,"Revenue","CPE Business To Business Income"]
[null,null,null,null,""]
["402002","CPE Massive Online Course Fee Income ",null,"Revenue","CPE Massive Online Course Fee Income"]
[null,null,null,null,""]
["402003","CPE Open Campus Fee ",null,"Revenue","CPE Open Campus Fee"]
[null,null,null,null,""]
["402010","CPE Certificate Fee ",null,"Revenue","CPE Certificate Fee"]
[null,null,null,null,""]
["402011","CPE Transcript Fee ",null,"Revenue","CPE Transcript Fee"]
[null,null,null,null,""]
["402012","CPE Application Fee ",null,"Revenue","CPE Application Fee"]
[null,null,null,null,""]
["402013","CPE Drop Fee ",null,"Revenue","CPE Drop Fee"]
[null,null,null,null,""]
["402018","CPE Health Insurance Fees ",null,"Revenue","CPE Health Insurance Fees"]
[null,null,null,null,""]
["402019","CPE Miscellaneous Fees ",null,"Revenue","CPE Miscellaneous Fees"]
[null,null,null,null,""]
["402020","CPE Campus Housing ",null,"Revenue","CPE Campus Housing"]
[null,null,null,null,""]
["402021","Home Stay Services Income ",null,"Revenue","Home Stay Services Income"]
[null,null,null,null,""]
["402090","University Extension Facility Rental Income ",null,"Revenue","University Extension Facility Rental Income"]
[null,null,null,null,""]
[null,"Student Services Fee ",null,"Revenue","Student Services Fee"]
[null,null,null,null,""]
[null,"Student Services Fee Revenue ",null,"Revenue","Student Services Fee Revenue"]
[null,null,null,null,""]
["402100","University Student Services Fee Revenue ",null,"Revenue","University Student Services Fee Revenue"]
[null,null,null,null,""]
["402101","Student Mental Health Services Fee Revenue ",null,"Revenue","Student Mental Health Services Fee Revenue"]
[null,null,null,null,""]
["402103","University Registration Fee Waivers ",null,"Revenue","University Registration Fee Waivers"]
[null,null,null,null,""]
[null,"Summer Session Program Fee ",null,"Revenue","Summer Session Program Fee"]
[null,null,null,null,""]
[null,"Summer Session Program Fee Revenue ",null,"Revenue","Summer Session Program Fee Revenue"]
[null,null,null,null,""]
["400410","Summer Internship Course Fees Undergraduates ",null,"Revenue","Summer Internship Course Fees Undergraduates"]
[null,null,null,null,""]
["400411","Summer Abroad Course Fees Undergraduates ",null,"Revenue","Summer Abroad Course Fees Undergraduates"]
[null,null,null,null,""]
["400412","Summer Domestic Course Fees Undergraduates ",null,"Revenue","Summer Domestic Course Fees Undergraduates"]
[null,null,null,null,""]
["402200","Summer Sessions Unmatriculated Fee Revenue ",null,"Revenue","Summer Sessions Unmatriculated Fee Revenue"]
[null,null,null,null,""]
["402210","Summer Session Unmatriculated Domestic Course Fee ",null,"Revenue","Summer Session Unmatriculated Domestic Course Fee"]
[null,null,null,null,""]
[null,"Campus Based Fees Compulsory ",null,"Revenue","Campus Based Fees Compulsory"]
[null,null,null,null,""]
[null,"Campus Based Fees Revenue Compulsory ",null,"Revenue","Campus Based Fees Revenue Compulsory"]
[null,null,null,null,""]
["402300","Campus Fees Compulsory Revenue ",null,"Revenue","Campus Fees Compulsory Revenue"]
[null,null,null,null,""]
[null,"Campus Based Fees CBF Voluntary ",null,"Revenue","Campus Based Fees CBF Voluntary"]
[null,null,null,null,""]
[null,"Campus Based Fees CBF Voluntary Revenue ",null,"Revenue","Campus Based Fees CBF Voluntary Revenue"]
[null,null,null,null,""]
["402409","Campus Based Fees CBF Voluntary Rev ",null,"Revenue","Campus Based Fees CBF Voluntary Rev"]
[null,null,null,null,""]
[null,"Admission Application Fee ",null,"Revenue","Admission Application Fee"]
[null,null,null,null,""]
[null,"Admission Application Fee Revenue ",null,"Revenue","Admission Application Fee Revenue"]
[null,null,null,null,""]
["402500","Application Fee Undergraduate ",null,"Revenue","Application Fee Undergraduate"]
[null,null,null,null,""]
["402510","Application Fee Graduate ",null,"Revenue","Application Fee Graduate"]
[null,null,null,null,""]
["402520","Application Fee Graduate Professional ",null,"Revenue","Application Fee Graduate Professional"]
[null,null,null,null,""]
["402530","Application Fee Self Supporting Degree Programs ",null,"Revenue","Application Fee Self Supporting Degree Programs"]
[null,null,null,null,""]
["402590","Application Fee Planned Educational Leave Program ",null,"Revenue","Application Fee Planned Educational Leave Program"]
[null,null,null,null,""]
["402591","Application Fee Planned Educational Leave Program PELP Readmission ",null,"Revenue","Application Fee Planned Educational Leave Program PELP Readmission"]
[null,null,null,null,""]
[null,"Course materials and service fees CMSF ",null,"Revenue","Course materials and service fees CMSF"]
[null,null,null,null,""]
[null,"Course materials and service fees ",null,"Revenue","Course materials and service fees"]
[null,null,null,null,""]
["402600","Course Material and Service Fees Undergraduate ",null,"Revenue","Course Material and Service Fees Undergraduate"]
[null,null,null,null,""]
["402601","Course Material and Service Fees Graduate Professional ",null,"Revenue","Course Material and Service Fees Graduate Professional"]
[null,null,null,null,""]
["402603","Course Material and Service Fees Self Supporting Degree Programs ",null,"Revenue","Course Material and Service Fees Self Supporting Degree Programs"]
[null,null,null,null,""]
["402609","Course Material and Service Fees Waivers ",null,"Revenue","Course Material and Service Fees Waivers"]
[null,null,null,null,""]
[null,"User Fees Admin Service Charges and Health Insurance ",null,"Revenue","User Fees Admin Service Charges and Health Insurance"]
[null,null,null,null,""]
[null,"User Fees Admin Service Charges and Health Insurance Revenue ",null,"Revenue","User Fees Admin Service Charges and Health Insurance Revenue"]
[null,null,null,null,""]
["402700","Student Administration Fees ",null,"Revenue","Student Administration Fees"]
[null,null,null,null,""]
["402701","Student Fines and Fees ",null,"Revenue","Student Fines and Fees"]
[null,null,null,null,""]
["402702","Student Finance and Other Fees ",null,"Revenue","Student Finance and Other Fees"]
[null,null,null,null,""]
["402703","Study Abroad Programs Admin Fees ",null,"Revenue","Study Abroad Programs Admin Fees"]
[null,null,null,null,""]
["402704","New Student Orientation Fees ",null,"Revenue","New Student Orientation Fees"]
[null,null,null,null,""]
["402705","Study Abroad Accommodation and Services Fees ASA ",null,"Revenue","Study Abroad Accommodation and Services Fees ASA"]
[null,null,null,null,""]
["402706","Other Program Fees ",null,"Revenue","Other Program Fees"]
[null,null,null,null,""]
["402707","Health Insurance Fees Undergraduate ",null,"Revenue","Health Insurance Fees Undergraduate"]
[null,null,null,null,""]
["402708","Health Insurance Fees Grad Professional and Self Supp ",null,"Revenue","Health Insurance Fees Grad Professional and Self Supp"]
[null,null,null,null,""]
[null,"Systemwide Opt Out Fee for Revenue Transfer C ",null,"Revenue","Systemwide Opt Out Fee for Revenue Transfer C"]
[null,null,null,null,""]
[null,"Systemwide Opt Out Fee for Revenue Transfer D ",null,"Revenue","Systemwide Opt Out Fee for Revenue Transfer D"]
[null,null,null,null,""]
["746010","Systemwide Opt Out Fee for Revenue Transfer ",null,"Revenue","Systemwide Opt Out Fee for Revenue Transfer"]
[null,null,null,null,""]
[null,"Application Fees Revenue Transfer C ",null,"Revenue","Application Fees Revenue Transfer C"]
[null,null,null,null,""]
[null,"Application Fees Revenue Transfer D ",null,"Revenue","Application Fees Revenue Transfer D"]
[null,null,null,null,""]
["746020","Application Fees Revenue Transfer ",null,"Revenue","Application Fees Revenue Transfer"]
[null,null,null,null,""]
[null,"Financial Aid Scholarships and Student Tuition and Fees Bad Debt ",null,"Revenue","Financial Aid Scholarships and Student Tuition and Fees Bad Debt"]
[null,null,null,null,""]
[null,"Financial Aid and Scholarships Allowance Undergrad ",null,"Revenue","Financial Aid and Scholarships Allowance Undergrad"]
[null,null,null,null,""]
[null,"Financial Aid and Scholarship Allowance Undergrad ",null,"Revenue","Financial Aid and Scholarship Allowance Undergrad"]
[null,null,null,null,""]
["404000","Financial Aid and Scholarships Allowance Undergrad Tuition and Fees ",null,"Revenue","Financial Aid and Scholarships Allowance Undergrad Tuition and Fees"]
[null,null,null,null,""]
[null,"Financial Aid and Scholarships Allowance Graduate ",null,"Revenue","Financial Aid and Scholarships Allowance Graduate"]
[null,null,null,null,""]
[null,"Financial Aid and Scholarships Graduate ",null,"Revenue","Financial Aid and Scholarships Graduate"]
[null,null,null,null,""]
["404100","Financial Aid and Scholarships Allowance Graduate all programs ",null,"Revenue","Financial Aid and Scholarships Allowance Graduate all programs"]
[null,null,null,null,""]
[null,"Bad Debt Student Tuition and Fees Undergraduate and Graduate ",null,"Revenue","Bad Debt Student Tuition and Fees Undergraduate and Graduate"]
[null,null,null,null,""]
[null,"Bad Debt Student Tuition and Fees ",null,"Revenue","Bad Debt Student Tuition and Fees"]
[null,null,null,null,""]
["404200","Bad Debt Student Tuition and Fees Revenues ",null,"Revenue","Bad Debt Student Tuition and Fees Revenues"]
[null,null,null,null,""]
["404201","Credit Card Chargeback Tuition and Fees ",null,"Revenue","Credit Card Chargeback Tuition and Fees"]
[null,null,null,null,""]
[null,"Contracts and Grants Noncapital ",null,"Revenue","Contracts and Grants Noncapital"]
[null,null,null,null,""]
[null,"Federal Contracts and Grants excl Financial Aid ",null,"Revenue","Federal Contracts and Grants excl Financial Aid"]
[null,null,null,null,""]
[null,"Federal Appropriation Revenue ",null,"Revenue","Federal Appropriation Revenue"]
[null,null,null,null,""]
[null,"Federal Appropriations Revenues ",null,"Revenue","Federal Appropriations Revenues"]
[null,null,null,null,""]
["405000","Federal Appropriations Revenue ",null,"Revenue","Federal Appropriations Revenue"]
[null,null,null,null,""]
[null,"Federal Appropriations Bad Debt ",null,"Revenue","Federal Appropriations Bad Debt"]
[null,null,null,null,""]
[null,"Federal Appropriations Bad Debt D ",null,"Revenue","Federal Appropriations Bad Debt D"]
[null,null,null,null,""]
["405100","Federal Appropriation Bad Debt ",null,"Revenue","Federal Appropriation Bad Debt"]
[null,null,null,null,""]
[null,"Federal Contracts ",null,"Revenue","Federal Contracts"]
[null,null,null,null,""]
[null,"Federal Contract Revenues ",null,"Revenue","Federal Contract Revenues"]
[null,null,null,null,""]
["405200","Federal Contracts Revenue ",null,"Revenue","Federal Contracts Revenue"]
[null,null,null,null,""]
[null,"Federal Contracts Bad Debt C ",null,"Revenue","Federal Contracts Bad Debt C"]
[null,null,null,null,""]
[null,"Federal Contracts Bad Debt D ",null,"Revenue","Federal Contracts Bad Debt D"]
[null,null,null,null,""]
["405300","Federal Contracts Bad Debt ",null,"Revenue","Federal Contracts Bad Debt"]
[null,null,null,null,""]
[null,"Federal Grants ",null,"Revenue","Federal Grants"]
[null,null,null,null,""]
[null,"Federal Grants Revenues ",null,"Revenue","Federal Grants Revenues"]
[null,null,null,null,""]
["405400","Federal Grants Revenue ",null,"Revenue","Federal Grants Revenue"]
[null,null,null,null,""]
[null,"Federal Grants Bad Debts ",null,"Revenue","Federal Grants Bad Debts"]
[null,null,null,null,""]
[null,"Federal Grants Bad Debt D ",null,"Revenue","Federal Grants Bad Debt D"]
[null,null,null,null,""]
["405500","Federal Grants Bad Debt ",null,"Revenue","Federal Grants Bad Debt"]
[null,null,null,null,""]
[null,"Federal Student Aid Grants ",null,"Revenue","Federal Student Aid Grants"]
[null,null,null,null,""]
[null,"Federal Student Aid Grants Excluding Pell Grants ",null,"Revenue","Federal Student Aid Grants Excluding Pell Grants"]
[null,null,null,null,""]
[null,"Federal Student Aid Grants Excl Pell Grants ",null,"Revenue","Federal Student Aid Grants Excl Pell Grants"]
[null,null,null,null,""]
["405600","Federal Student Aid Grants Revenue Excluding Pell ",null,"Revenue","Federal Student Aid Grants Revenue Excluding Pell"]
[null,null,null,null,""]
[null,"State Contracts and Grants Revenue ",null,"Revenue","State Contracts and Grants Revenue"]
[null,null,null,null,""]
[null,"Special State Appropriations ",null,"Revenue","Special State Appropriations"]
[null,null,null,null,""]
[null,"Special State Appropriations Revenues ",null,"Revenue","Special State Appropriations Revenues"]
[null,null,null,null,""]
["406000","Special State Appropriations Revenue ",null,"Revenue","Special State Appropriations Revenue"]
[null,null,null,null,""]
[null,"Special State Appropriations Bad Debts ",null,"Revenue","Special State Appropriations Bad Debts"]
[null,null,null,null,""]
[null,"Special State Appropriations Bad Debt D ",null,"Revenue","Special State Appropriations Bad Debt D"]
[null,null,null,null,""]
["406050","Special State Appropriations Bad Debt ",null,"Revenue","Special State Appropriations Bad Debt"]
[null,null,null,null,""]
[null,"State Contracts ",null,"Revenue","State Contracts"]
[null,null,null,null,""]
[null,"State Contracts Revenues ",null,"Revenue","State Contracts Revenues"]
[null,null,null,null,""]
["406100","State Contracts Revenue ",null,"Revenue","State Contracts Revenue"]
[null,null,null,null,""]
[null,"State Contracts Bad Debts ",null,"Revenue","State Contracts Bad Debts"]
[null,null,null,null,""]
[null,"State Contracts Bad Debt ",null,"Revenue","State Contracts Bad Debt"]
[null,null,null,null,""]
["406200","State Contracts Bad Debts Contra Revenue ",null,"Revenue","State Contracts Bad Debts Contra Revenue"]
[null,null,null,null,""]
[null,"State Grants ",null,"Revenue","State Grants"]
[null,null,null,null,""]
[null,"State Grants Revenues ",null,"Revenue","State Grants Revenues"]
[null,null,null,null,""]
["406300","State Grants Revenue ",null,"Revenue","State Grants Revenue"]
[null,null,null,null,""]
[null,"State Grants Bad Debts ",null,"Revenue","State Grants Bad Debts"]
[null,null,null,null,""]
[null,"State Grants Bad Debt ",null,"Revenue","State Grants Bad Debt"]
[null,null,null,null,""]
["406400","State Grants Bad Debts Contra Revenue ",null,"Revenue","State Grants Bad Debts Contra Revenue"]
[null,null,null,null,""]
[null,"Local Contracts and Grants Revenue ",null,"Revenue","Local Contracts and Grants Revenue"]
[null,null,null,null,""]
[null,"Local Contracts ",null,"Revenue","Local Contracts"]
[null,null,null,null,""]
[null,"Local Contracts Revenues ",null,"Revenue","Local Contracts Revenues"]
[null,null,null,null,""]
["407000","Local Contracts Revenue ",null,"Revenue","Local Contracts Revenue"]
[null,null,null,null,""]
[null,"Local Contracts Bad Debts ",null,"Revenue","Local Contracts Bad Debts"]
[null,null,null,null,""]
[null,"Local Contracts Bad Debt ",null,"Revenue","Local Contracts Bad Debt"]
[null,null,null,null,""]
["407100","Local Contracts Bad Debts Contra Revenue ",null,"Revenue","Local Contracts Bad Debts Contra Revenue"]
[null,null,null,null,""]
[null,"Local Grants ",null,"Revenue","Local Grants"]
[null,null,null,null,""]
[null,"Local Grants Revenues ",null,"Revenue","Local Grants Revenues"]
[null,null,null,null,""]
["407200","Local Grants Revenue ",null,"Revenue","Local Grants Revenue"]
[null,null,null,null,""]
[null,"Local Grants Bad Debts ",null,"Revenue","Local Grants Bad Debts"]
[null,null,null,null,""]
[null,"Local Grants Bad Debt ",null,"Revenue","Local Grants Bad Debt"]
[null,null,null,null,""]
["407300","Local Grants Bad Debts Contra Revenue ",null,"Revenue","Local Grants Bad Debts Contra Revenue"]
[null,null,null,null,""]
[null,"Private Contracts and Grants Revenue ",null,"Revenue","Private Contracts and Grants Revenue"]
[null,null,null,null,""]
[null,"Private Contracts ",null,"Revenue","Private Contracts"]
[null,null,null,null,""]
[null,"Private Contracts Revenues ",null,"Revenue","Private Contracts Revenues"]
[null,null,null,null,""]
["408000","Private Contracts Revenue ",null,"Revenue","Private Contracts Revenue"]
[null,null,null,null,""]
[null,"Private Contracts Bad Debts ",null,"Revenue","Private Contracts Bad Debts"]
[null,null,null,null,""]
[null,"Private Contracts Bad Debt ",null,"Revenue","Private Contracts Bad Debt"]
[null,null,null,null,""]
["408100","Private Contracts Bad Debts Contra Revenue ",null,"Revenue","Private Contracts Bad Debts Contra Revenue"]
[null,null,null,null,""]
[null,"Private Grants ",null,"Revenue","Private Grants"]
[null,null,null,null,""]
[null,"Private Grants Revenues ",null,"Revenue","Private Grants Revenues"]
[null,null,null,null,""]
["408200","Private Grants Revenue ",null,"Revenue","Private Grants Revenue"]
[null,null,null,null,""]
[null,"Private Grants Bad Debts ",null,"Revenue","Private Grants Bad Debts"]
[null,null,null,null,""]
[null,"Private Grants Bad Debt ",null,"Revenue","Private Grants Bad Debt"]
[null,null,null,null,""]
["408300","Private Grants Bad Debts Contra Revenue ",null,"Revenue","Private Grants Bad Debts Contra Revenue"]
[null,null,null,null,""]
[null,"Intercampus Subcontract Revenue ",null,"Revenue","Intercampus Subcontract Revenue"]
[null,null,null,null,""]
[null,"Intercampus Subcontract Revenues ",null,"Revenue","Intercampus Subcontract Revenues"]
[null,null,null,null,""]
[null,"Subcontract Revenue Awarded from UCB ",null,"Revenue","Subcontract Revenue Awarded from UCB"]
[null,null,null,null,""]
["724010","Subcontract Revenue Awarded from UC Berkeley ",null,"Revenue","Subcontract Revenue Awarded from UC Berkeley"]
[null,null,null,null,""]
[null,"Subcontract Revenue Awarded from UCSF ",null,"Revenue","Subcontract Revenue Awarded from UCSF"]
[null,null,null,null,""]
["724020","Subcontract Revenue Awarded from UC San Francisco ",null,"Revenue","Subcontract Revenue Awarded from UC San Francisco"]
[null,null,null,null,""]
[null,"Subcontract Revenue Awarded from UCD ",null,"Revenue","Subcontract Revenue Awarded from UCD"]
[null,null,null,null,""]
["724030","Subcontract Revenue Awarded from UC Davis ",null,"Revenue","Subcontract Revenue Awarded from UC Davis"]
[null,null,null,null,""]
[null,"Subcontract Revenue Awarded from UCLA ",null,"Revenue","Subcontract Revenue Awarded from UCLA"]
[null,null,null,null,""]
["724040","Subcontract Revenue Awarded from UC Los Angeles ",null,"Revenue","Subcontract Revenue Awarded from UC Los Angeles"]
[null,null,null,null,""]
[null,"Subcontract Revenue Awarded from UCR ",null,"Revenue","Subcontract Revenue Awarded from UCR"]
[null,null,null,null,""]
["724050","Subcontract Revenue Awarded from UC Riverside ",null,"Revenue","Subcontract Revenue Awarded from UC Riverside"]
[null,null,null,null,""]
[null,"Subcontract Revenue Awarded from UCSD ",null,"Revenue","Subcontract Revenue Awarded from UCSD"]
[null,null,null,null,""]
["724060","Subcontract Revenue Awarded from UC San Diego ",null,"Revenue","Subcontract Revenue Awarded from UC San Diego"]
[null,null,null,null,""]
[null,"Subcontract Revenue Awarded from UCSC ",null,"Revenue","Subcontract Revenue Awarded from UCSC"]
[null,null,null,null,""]
["724070","Subcontract Revenue Awarded from UC Santa Cruz ",null,"Revenue","Subcontract Revenue Awarded from UC Santa Cruz"]
[null,null,null,null,""]
[null,"Subcontract Revenue Awarded from UCSB ",null,"Revenue","Subcontract Revenue Awarded from UCSB"]
[null,null,null,null,""]
["724080","Subcontract Revenue Awarded from UC Santa Barbara ",null,"Revenue","Subcontract Revenue Awarded from UC Santa Barbara"]
[null,null,null,null,""]
[null,"Subcontract Revenue Awarded from UCI ",null,"Revenue","Subcontract Revenue Awarded from UCI"]
[null,null,null,null,""]
["724090","Subcontract Revenue Awarded from UC Irvine ",null,"Revenue","Subcontract Revenue Awarded from UC Irvine"]
[null,null,null,null,""]
[null,"Subcontract Revenue Awarded from UCM ",null,"Revenue","Subcontract Revenue Awarded from UCM"]
[null,null,null,null,""]
["724100","Subcontract Revenue Awarded from UC Merced ",null,"Revenue","Subcontract Revenue Awarded from UC Merced"]
[null,null,null,null,""]
[null,"Subcontract Revenue Awarded from UCOP ",null,"Revenue","Subcontract Revenue Awarded from UCOP"]
[null,null,null,null,""]
["724110","Subcontract Revenue Awarded from UC Office of the President ",null,"Revenue","Subcontract Revenue Awarded from UC Office of the President"]
[null,null,null,null,""]
[null,"Subcontract Revenue Awarded from ANR ",null,"Revenue","Subcontract Revenue Awarded from ANR"]
[null,null,null,null,""]
["724120","Subcontract Revenue Awarded from Ag and Natural Resources ",null,"Revenue","Subcontract Revenue Awarded from Ag and Natural Resources"]
[null,null,null,null,""]
[null,"Subcontract Expense Awarded to UCB ",null,"Revenue","Subcontract Expense Awarded to UCB"]
[null,null,null,null,""]
["725010","Subcontract Expense Awarded to UC Berkeley ",null,"Revenue","Subcontract Expense Awarded to UC Berkeley"]
[null,null,null,null,""]
[null,"Subcontract Expense Awarded to UCSF ",null,"Revenue","Subcontract Expense Awarded to UCSF"]
[null,null,null,null,""]
["725020","Subcontract Expense Awarded to UC San Francisco ",null,"Revenue","Subcontract Expense Awarded to UC San Francisco"]
[null,null,null,null,""]
[null,"Subcontract Expense Awarded to UCD ",null,"Revenue","Subcontract Expense Awarded to UCD"]
[null,null,null,null,""]
["725030","Subcontract Expense Awarded to UC Davis ",null,"Revenue","Subcontract Expense Awarded to UC Davis"]
[null,null,null,null,""]
[null,"Subcontract Expense Awarded to UCLA ",null,"Revenue","Subcontract Expense Awarded to UCLA"]
[null,null,null,null,""]
["725040","Subcontract Expense Awarded to UC Los Angeles ",null,"Revenue","Subcontract Expense Awarded to UC Los Angeles"]
[null,null,null,null,""]
[null,"Subcontract Expense Awarded to UCR ",null,"Revenue","Subcontract Expense Awarded to UCR"]
[null,null,null,null,""]
["725050","Subcontract Expense Awarded to UC Riverside ",null,"Revenue","Subcontract Expense Awarded to UC Riverside"]
[null,null,null,null,""]
[null,"Subcontract Expense Awarded to UCSD ",null,"Revenue","Subcontract Expense Awarded to UCSD"]
[null,null,null,null,""]
["725060","Subcontract Expense Awarded to UC San Diego ",null,"Revenue","Subcontract Expense Awarded to UC San Diego"]
[null,null,null,null,""]
[null,"Subcontract Expense Awarded to UCSC ",null,"Revenue","Subcontract Expense Awarded to UCSC"]
[null,null,null,null,""]
["725070","Subcontract Expense Awarded to UC Santa Cruz ",null,"Revenue","Subcontract Expense Awarded to UC Santa Cruz"]
[null,null,null,null,""]
[null,"Subcontract Expense Awarded to UCSB ",null,"Revenue","Subcontract Expense Awarded to UCSB"]
[null,null,null,null,""]
["725080","Subcontract Expense Awarded to UC Santa Barbara ",null,"Revenue","Subcontract Expense Awarded to UC Santa Barbara"]
[null,null,null,null,""]
[null,"Subcontract Expense Awarded to UCI ",null,"Revenue","Subcontract Expense Awarded to UCI"]
[null,null,null,null,""]
["725090","Subcontract Expense Awarded to UC Irvine ",null,"Revenue","Subcontract Expense Awarded to UC Irvine"]
[null,null,null,null,""]
[null,"Subcontract Expense Awarded to UCM ",null,"Revenue","Subcontract Expense Awarded to UCM"]
[null,null,null,null,""]
["725100","Subcontract Expense Awarded to UC Merced ",null,"Revenue","Subcontract Expense Awarded to UC Merced"]
[null,null,null,null,""]
[null,"Subcontract Expenses Awarded to UCOP ",null,"Revenue","Subcontract Expenses Awarded to UCOP"]
[null,null,null,null,""]
["725110","Subcontract Expense Awarded to UCOP ",null,"Revenue","Subcontract Expense Awarded to UCOP"]
[null,null,null,null,""]
[null,"Subcontract Expense Awarded to ANR ",null,"Revenue","Subcontract Expense Awarded to ANR"]
[null,null,null,null,""]
["725120","Subcontract Expenses Awarded to ANR ",null,"Revenue","Subcontract Expenses Awarded to ANR"]
[null,null,null,null,""]
[null,"Sales and Services Educational ",null,"Revenue","Sales and Services Educational"]
[null,null,null,null,""]
[null,"Sales and Services of Educational Activities Net ",null,"Revenue","Sales and Services of Educational Activities Net"]
[null,null,null,null,""]
[null,"Sales and Services of Educational Activities Revenues ",null,"Revenue","Sales and Services of Educational Activities Revenues"]
[null,null,null,null,""]
[null,"Sales and Services of Educational Activities Revenue ",null,"Revenue","Sales and Services of Educational Activities Revenue"]
[null,null,null,null,""]
["410000","External Sales and Services Revenues ",null,"Revenue","External Sales and Services Revenues"]
[null,null,null,null,""]
["410001","Materials Pass Thru Revenue ",null,"Revenue","Materials Pass Thru Revenue"]
[null,null,null,null,""]
["410003","Farm and Agricultural Sales and Services Revenue ",null,"Revenue","Farm and Agricultural Sales and Services Revenue"]
[null,null,null,null,""]
["410004","Conferences Workshop Symposium and Seminars Revenue ",null,"Revenue","Conferences Workshop Symposium and Seminars Revenue"]
[null,null,null,null,""]
["410005","Continuing Education Courses and Programs ",null,"Revenue","Continuing Education Courses and Programs"]
[null,null,null,null,""]
["410006","Performing Arts and Museum Revenue ",null,"Revenue","Performing Arts and Museum Revenue"]
[null,null,null,null,""]
["410007","Sponsorship Revenue Educ Activities ",null,"Revenue","Sponsorship Revenue Educ Activities"]
[null,null,null,null,""]
[null,"Sales and Services of Educational Activity Contra Allowance ",null,"Revenue","Sales and Services of Educational Activity Contra Allowance"]
[null,null,null,null,""]
[null,"Sales and Services Of Educational Activities Contra Allowance ",null,"Revenue","Sales and Services Of Educational Activities Contra Allowance"]
[null,null,null,null,""]
["418100","Sales and Services of Educational Activities Non Clinical Contra Allowance ",null,"Revenue","Sales and Services of Educational Activities Non Clinical Contra Allowance"]
[null,null,null,null,""]
["418101","Credit Card Chargeback Sales and Services ",null,"Revenue","Credit Card Chargeback Sales and Services"]
[null,null,null,null,""]
[null,"Sales and Services Of Educational Activities Contra Bad Debt ",null,"Revenue","Sales and Services Of Educational Activities Contra Bad Debt"]
[null,null,null,null,""]
[null,"Sales and Services of Educational Activity Non Clinical Contra Bad Debt ",null,"Revenue","Sales and Services of Educational Activity Non Clinical Contra Bad Debt"]
[null,null,null,null,""]
["418110","Sales and Services of Educational Activities Non Clinical Contra Bad Debt ",null,"Revenue","Sales and Services of Educational Activities Non Clinical Contra Bad Debt"]
[null,null,null,null,""]
[null,"Sales and Services of Educational Activities Medical ",null,"Revenue","Sales and Services of Educational Activities Medical"]
[null,null,null,null,""]
[null,"Patient Care ",null,"Revenue","Patient Care"]
[null,null,null,null,""]
[null,"Patient Care Revenue ",null,"Revenue","Patient Care Revenue"]
[null,null,null,null,""]
["420000","Contract Inc Exempt MedCompliance Fees ",null,"Revenue","Contract Inc Exempt MedCompliance Fees"]
[null,null,null,null,""]
["420002","Miscellaneous MedCompliance Income A ",null,"Revenue","Miscellaneous MedCompliance Income A"]
[null,null,null,null,""]
["420003","Miscellaneous MedCompliance Income B ",null,"Revenue","Miscellaneous MedCompliance Income B"]
[null,null,null,null,""]
["420014","State Plan Amendment SPA Revenue ",null,"Revenue","State Plan Amendment SPA Revenue"]
[null,null,null,null,""]
["420050","Prop 56 Incentive Revenue ",null,"Revenue","Prop 56 Incentive Revenue"]
[null,null,null,null,""]
["420051","EHR Incentive Revenue ",null,"Revenue","EHR Incentive Revenue"]
[null,null,null,null,""]
["420052","Misc Incentive Revenue ",null,"Revenue","Misc Incentive Revenue"]
[null,null,null,null,""]
["420053","Late Charge Adjustment ",null,"Revenue","Late Charge Adjustment"]
[null,null,null,null,""]
["420054","Rate Range IGT Revenue ",null,"Revenue","Rate Range IGT Revenue"]
[null,null,null,null,""]
["420055","Enhanced Payment Program Funds ",null,"Revenue","Enhanced Payment Program Funds"]
[null,null,null,null,""]
["420056","Quality Improvement Program Funds ",null,"Revenue","Quality Improvement Program Funds"]
[null,null,null,null,""]
["420057","Other Third Party Revenue ",null,"Revenue","Other Third Party Revenue"]
[null,null,null,null,""]
["420100","VMTH Professional Fees ",null,"Revenue","VMTH Professional Fees"]
[null,null,null,null,""]
["420109","VMTH Other Revenue ",null,"Revenue","VMTH Other Revenue"]
[null,null,null,null,""]
["420110","VMTH Fee Discounts ",null,"Revenue","VMTH Fee Discounts"]
[null,null,null,null,""]
["420115","VMTH Credit Card Chargebacks ",null,"Revenue","VMTH Credit Card Chargebacks"]
[null,null,null,null,""]
["420200","SON Professional Contract ",null,"Revenue","SON Professional Contract"]
[null,null,null,null,""]
["420201","SON HRSA NP Residency Contracts ",null,"Revenue","SON HRSA NP Residency Contracts"]
[null,null,null,null,""]
[null,"Nonpatient Care ",null,"Revenue","Nonpatient Care"]
[null,null,null,null,""]
[null,"Nonpatient Care Revenue ",null,"Revenue","Nonpatient Care Revenue"]
[null,null,null,null,""]
["423000","Contract Income Subject Med Comp Plan ",null,"Revenue","Contract Income Subject Med Comp Plan"]
[null,null,null,null,""]
["423001","Contract Income Subject Med Comp Plan with Overhead ",null,"Revenue","Contract Income Subject Med Comp Plan with Overhead"]
[null,null,null,null,""]
["423002","Expert Witness and Legal Fees ",null,"Revenue","Expert Witness and Legal Fees"]
[null,null,null,null,""]
["423003","MCP Tobacco Tax ",null,"Revenue","MCP Tobacco Tax"]
[null,null,null,null,""]
["423004","MCP Billing ",null,"Revenue","MCP Billing"]
[null,null,null,null,""]
["423005","MCP Academic ",null,"Revenue","MCP Academic"]
[null,null,null,null,""]
["423006","MCP Facility ",null,"Revenue","MCP Facility"]
[null,null,null,null,""]
["423007","MCP Department ",null,"Revenue","MCP Department"]
[null,null,null,null,""]
["423008","MCP SOM Agreements ",null,"Revenue","MCP SOM Agreements"]
[null,null,null,null,""]
["423010","MCP Graduated Plan Fees ",null,"Revenue","MCP Graduated Plan Fees"]
[null,null,null,null,""]
["423011","MCP PMB Fees ",null,"Revenue","MCP PMB Fees"]
[null,null,null,null,""]
["423012","SOM Department Agreements ",null,"Revenue","SOM Department Agreements"]
[null,null,null,null,""]
["423043","Charity Care Allowance ",null,"Revenue","Charity Care Allowance"]
[null,null,null,null,""]
["423084","SOM Miscellaneous Income ",null,"Revenue","SOM Miscellaneous Income"]
[null,null,null,null,""]
["423086","Faculty Outside Activity OATS ",null,"Revenue","Faculty Outside Activity OATS"]
[null,null,null,null,""]
[null,"Sales and Services of Educ Act Medical Contra Allowance ",null,"Revenue","Sales and Services of Educ Act Medical Contra Allowance"]
[null,null,null,null,""]
[null,"Sales and Services of Educ Activities Medical Contra Allowance ",null,"Revenue","Sales and Services of Educ Activities Medical Contra Allowance"]
[null,null,null,null,""]
["426000","Educational Activities Medical and Veterinary Clinical Services Contra Allowance ",null,"Revenue","Educational Activities Medical and Veterinary Clinical Services Contra Allowance"]
[null,null,null,null,""]
[null,"Sales and Services of Educational Activities Medical and Vet Med Bad Debt ",null,"Revenue","Sales and Services of Educational Activities Medical and Vet Med Bad Debt"]
[null,null,null,null,""]
[null,"Sales and Services of Educational Activities MED and VET Bad Debt ",null,"Revenue","Sales and Services of Educational Activities MED and VET Bad Debt"]
[null,null,null,null,""]
["426100","Educational MED and VET Clinical Services Bad Debt ",null,"Revenue","Educational MED and VET Clinical Services Bad Debt"]
[null,null,null,null,""]
[null,"Sales and Services Auxiliary ",null,"Revenue","Sales and Services Auxiliary"]
[null,null,null,null,""]
[null,"Auxiliaries ",null,"Revenue","Auxiliaries"]
[null,null,null,null,""]
[null,"Housing and Dining ",null,"Revenue","Housing and Dining"]
[null,null,null,null,""]
[null,"Housing and Dining Revenue ",null,"Revenue","Housing and Dining Revenue"]
[null,null,null,null,""]
["430000","Regular Session Resident Hall Income ",null,"Revenue","Regular Session Resident Hall Income"]
[null,null,null,null,""]
["430001","Student Housing Apartment Income ",null,"Revenue","Student Housing Apartment Income"]
[null,null,null,null,""]
["430002","Housing Marketing Flex Fund Income ",null,"Revenue","Housing Marketing Flex Fund Income"]
[null,null,null,null,""]
["430003","Privatized Housing Income ",null,"Revenue","Privatized Housing Income"]
[null,null,null,null,""]
["430004","P3 Lease Income ",null,"Revenue","P3 Lease Income"]
[null,null,null,null,""]
["430005","Green Housing Income ",null,"Revenue","Green Housing Income"]
[null,null,null,null,""]
["430009","Housing Sales and Services Income ",null,"Revenue","Housing Sales and Services Income"]
[null,null,null,null,""]
["430030","Mandatory Aggie Cash Revenue ",null,"Revenue","Mandatory Aggie Cash Revenue"]
[null,null,null,null,""]
["430031","Mandatory Board Revenue ",null,"Revenue","Mandatory Board Revenue"]
[null,null,null,null,""]
["430032","Voluntary Aggie Cash Revenue ",null,"Revenue","Voluntary Aggie Cash Revenue"]
[null,null,null,null,""]
["430033","Voluntary Board Revenue ",null,"Revenue","Voluntary Board Revenue"]
[null,null,null,null,""]
["430034","Dining Commission Revenue ",null,"Revenue","Dining Commission Revenue"]
[null,null,null,null,""]
["430035","Get Mobile Revenue ",null,"Revenue","Get Mobile Revenue"]
[null,null,null,null,""]
["430036","Banquet and Catering Income ",null,"Revenue","Banquet and Catering Income"]
[null,null,null,null,""]
["430037","SHA Board Revenue ",null,"Revenue","SHA Board Revenue"]
[null,null,null,null,""]
["430038","Dining Cash Sales ",null,"Revenue","Dining Cash Sales"]
[null,null,null,null,""]
["430039","Dining Credit Card Sales ",null,"Revenue","Dining Credit Card Sales"]
[null,null,null,null,""]
["430040","Green Board Income ",null,"Revenue","Green Board Income"]
[null,null,null,null,""]
["430041","Snap Income ",null,"Revenue","Snap Income"]
[null,null,null,null,""]
["430049","Other Dining and Retail Income ",null,"Revenue","Other Dining and Retail Income"]
[null,null,null,null,""]
["430050","Conference Housing Income ",null,"Revenue","Conference Housing Income"]
[null,null,null,null,""]
["430051","Interim Housing Income ",null,"Revenue","Interim Housing Income"]
[null,null,null,null,""]
["430055","Conference Dining ",null,"Revenue","Conference Dining"]
[null,null,null,null,""]
["430063","Orientation Sponsorships ",null,"Revenue","Orientation Sponsorships"]
[null,null,null,null,""]
["430070","Food Security Donations Non Restricted ",null,"Revenue","Food Security Donations Non Restricted"]
[null,null,null,null,""]
["430071","Food Security Donations Restricted ",null,"Revenue","Food Security Donations Restricted"]
[null,null,null,null,""]
["430080","Commissions ",null,"Revenue","Commissions"]
[null,null,null,null,""]
["430081","Gift Card Sales ",null,"Revenue","Gift Card Sales"]
[null,null,null,null,""]
["430082","Vending Sales ",null,"Revenue","Vending Sales"]
[null,null,null,null,""]
["430083","Housing and Dining Sponsorship Revenue ",null,"Revenue","Housing and Dining Sponsorship Revenue"]
[null,null,null,null,""]
["430084","Franchise and Promotional Income ",null,"Revenue","Franchise and Promotional Income"]
[null,null,null,null,""]
["430085","UP3 Income ",null,"Revenue","UP3 Income"]
[null,null,null,null,""]
["430090","Dining and Retail Sales Tax ",null,"Revenue","Dining and Retail Sales Tax"]
[null,null,null,null,""]
["430091","Cash Over Under Dining and Housing ",null,"Revenue","Cash Over Under Dining and Housing"]
[null,null,null,null,""]
["430092","Dining Retail and Housing Auxiliary Refunds ",null,"Revenue","Dining Retail and Housing Auxiliary Refunds"]
[null,null,null,null,""]
[null,"Transportation ",null,"Revenue","Transportation"]
[null,null,null,null,""]
[null,"Transportation Revenue ",null,"Revenue","Transportation Revenue"]
[null,null,null,null,""]
["431000","Parking Revenue ",null,"Revenue","Parking Revenue"]
[null,null,null,null,""]
["431001","Other Transportation Revenue ",null,"Revenue","Other Transportation Revenue"]
[null,null,null,null,""]
[null,"Athletics ",null,"Revenue","Athletics"]
[null,null,null,null,""]
[null,"Athletic Revenue ",null,"Revenue","Athletic Revenue"]
[null,null,null,null,""]
["432010","Athletics Ticket Sales Revenue ",null,"Revenue","Athletics Ticket Sales Revenue"]
[null,null,null,null,""]
["432011","Athletics Ticket Sales Clearing Account ",null,"Revenue","Athletics Ticket Sales Clearing Account"]
[null,null,null,null,""]
["432012","Athletics Box Office Sales ",null,"Revenue","Athletics Box Office Sales"]
[null,null,null,null,""]
["432019","NCAA Student Opportunity and Assistance ",null,"Revenue","NCAA Student Opportunity and Assistance"]
[null,null,null,null,""]
["432020","Athletic Invitation Tournament Revenue ",null,"Revenue","Athletic Invitation Tournament Revenue"]
[null,null,null,null,""]
["432030","Athletic Facility Fee Income ",null,"Revenue","Athletic Facility Fee Income"]
[null,null,null,null,""]
["432040","Conference Non Media and Non Bowl Revenue ",null,"Revenue","Conference Non Media and Non Bowl Revenue"]
[null,null,null,null,""]
["432041","Conference Bowl Generated Revenue ",null,"Revenue","Conference Bowl Generated Revenue"]
[null,null,null,null,""]
["432080","Athletic Sports Camps Revenues ",null,"Revenue","Athletic Sports Camps Revenues"]
[null,null,null,null,""]
["432090","Athletic Banquet and Fundraising Event Revenue ",null,"Revenue","Athletic Banquet and Fundraising Event Revenue"]
[null,null,null,null,""]
["432091","Athletics Royalties Licensing Advertisement and Sponsorships ",null,"Revenue","Athletics Royalties Licensing Advertisement and Sponsorships"]
[null,null,null,null,""]
["432092","Athletic Licensing Revenue ",null,"Revenue","Athletic Licensing Revenue"]
[null,null,null,null,""]
["432093","Athletic Consignment Pass Through ",null,"Revenue","Athletic Consignment Pass Through"]
[null,null,null,null,""]
["432094","Athletic Program Novelty Parking and Concession Sales ",null,"Revenue","Athletic Program Novelty Parking and Concession Sales"]
[null,null,null,null,""]
["432095","Athletics Concession Revenue ",null,"Revenue","Athletics Concession Revenue"]
[null,null,null,null,""]
["432099","Other Athletic Revenue ",null,"Revenue","Other Athletic Revenue"]
[null,null,null,null,""]
["433200","NCAA Revenue Distributions ",null,"Revenue","NCAA Revenue Distributions"]
[null,null,null,null,""]
["433201","Athletics Game Guarantee Income ",null,"Revenue","Athletics Game Guarantee Income"]
[null,null,null,null,""]
["433202","Athletics Big West Conference Fees ",null,"Revenue","Athletics Big West Conference Fees"]
[null,null,null,null,""]
["433203","Athletics Contributions Revenue ",null,"Revenue","Athletics Contributions Revenue"]
[null,null,null,null,""]
[null,"K12 Services and Child Care ",null,"Revenue","K12 Services and Child Care"]
[null,null,null,null,""]
[null,"K12 Services Child Care ",null,"Revenue","K12 Services Child Care"]
[null,null,null,null,""]
["433000","Child Care Revenue ",null,"Revenue","Child Care Revenue"]
[null,null,null,null,""]
[null,"Student Government ",null,"Revenue","Student Government"]
[null,null,null,null,""]
[null,"Student Government Revenue ",null,"Revenue","Student Government Revenue"]
[null,null,null,null,""]
["434000","Student Government Sales Rentals Services ",null,"Revenue","Student Government Sales Rentals Services"]
[null,null,null,null,""]
["434001","Student Government Dining ",null,"Revenue","Student Government Dining"]
[null,null,null,null,""]
["434002","Student Government Catering Revenue ",null,"Revenue","Student Government Catering Revenue"]
[null,null,null,null,""]
["434060","Unitrans Local Operating Grants ",null,"Revenue","Unitrans Local Operating Grants"]
[null,null,null,null,""]
["434070","Unitrans Fares Cash ",null,"Revenue","Unitrans Fares Cash"]
[null,null,null,null,""]
["434071","Unitrans Fares CBO Pass Sales ",null,"Revenue","Unitrans Fares CBO Pass Sales"]
[null,null,null,null,""]
["434072","Unitrans Outside Pass Sales ",null,"Revenue","Unitrans Outside Pass Sales"]
[null,null,null,null,""]
["434073","Unitrans Annual Pass Sales ",null,"Revenue","Unitrans Annual Pass Sales"]
[null,null,null,null,""]
["434080","Student Government Advertising Sales ",null,"Revenue","Student Government Advertising Sales"]
[null,null,null,null,""]
["434081","Student Government Sponsorship Sales ",null,"Revenue","Student Government Sponsorship Sales"]
[null,null,null,null,""]
["434099","Other Student Government Revenue ",null,"Revenue","Other Student Government Revenue"]
[null,null,null,null,""]
[null,"Recreational Sports ",null,"Revenue","Recreational Sports"]
[null,null,null,null,""]
[null,"Recreational Sports Revenue ",null,"Revenue","Recreational Sports Revenue"]
[null,null,null,null,""]
["434500","Campus Recreational Sports ",null,"Revenue","Campus Recreational Sports"]
[null,null,null,null,""]
[null,"Health Services ",null,"Revenue","Health Services"]
[null,null,null,null,""]
[null,"Health Services Revenue ",null,"Revenue","Health Services Revenue"]
[null,null,null,null,""]
["435000","Student Outpatient Services ",null,"Revenue","Student Outpatient Services"]
[null,null,null,null,""]
[null,"Student Centers and Union ",null,"Revenue","Student Centers and Union"]
[null,null,null,null,""]
[null,"Student Centers and Union Revenue ",null,"Revenue","Student Centers and Union Revenue"]
[null,null,null,null,""]
["435500","Memorial Union Revenue ",null,"Revenue","Memorial Union Revenue"]
[null,null,null,null,""]
["435501","Student Passport and Visas ",null,"Revenue","Student Passport and Visas"]
[null,null,null,null,""]
[null,"Book Store ",null,"Revenue","Book Store"]
[null,null,null,null,""]
[null,"Book Store Revenue ",null,"Revenue","Book Store Revenue"]
[null,null,null,null,""]
["436000","UC Davis Bookstore Sales ",null,"Revenue","UC Davis Bookstore Sales"]
[null,null,null,null,""]
["436001","UC Davis Bookstore Rental ",null,"Revenue","UC Davis Bookstore Rental"]
[null,null,null,null,""]
["436002","UC Davis Bookstore Waivers ",null,"Revenue","UC Davis Bookstore Waivers"]
[null,null,null,null,""]
["436003","UC Davis Bookstore Refunds ",null,"Revenue","UC Davis Bookstore Refunds"]
[null,null,null,null,""]
["436009","Other Bookstore Revenue ",null,"Revenue","Other Bookstore Revenue"]
[null,null,null,null,""]
[null,"Events Space ",null,"Revenue","Events Space"]
[null,null,null,null,""]
[null,"Events Space Revenue ",null,"Revenue","Events Space Revenue"]
[null,null,null,null,""]
["437000","Event Space Rental Revenue ",null,"Revenue","Event Space Rental Revenue"]
[null,null,null,null,""]
[null,"Faculty Owned Housing ",null,"Revenue","Faculty Owned Housing"]
[null,null,null,null,""]
[null,"Faculty Owned Housing Revenue ",null,"Revenue","Faculty Owned Housing Revenue"]
[null,null,null,null,""]
["437500","Faculty Owned Housing Revenue and Income ",null,"Revenue","Faculty Owned Housing Revenue and Income"]
[null,null,null,null,""]
[null,"Mailing and Postal Services ",null,"Revenue","Mailing and Postal Services"]
[null,null,null,null,""]
[null,"Mailing and Postal Services Revenue ",null,"Revenue","Mailing and Postal Services Revenue"]
[null,null,null,null,""]
["438000","Mailing and Postage Service ",null,"Revenue","Mailing and Postage Service"]
[null,null,null,null,""]
[null,"Sales and Services of Auxiliary Contra Accounts ",null,"Revenue","Sales and Services of Auxiliary Contra Accounts"]
[null,null,null,null,""]
[null,"Sales and Services of Auxiliaries Contra Accounts ",null,"Revenue","Sales and Services of Auxiliaries Contra Accounts"]
[null,null,null,null,""]
["438500","Sales and Services of Auxiliaries Contra ",null,"Revenue","Sales and Services of Auxiliaries Contra"]
[null,null,null,null,""]
["438501","Credit Card Chargeback Auxiliaries ",null,"Revenue","Credit Card Chargeback Auxiliaries"]
[null,null,null,null,""]
[null,"Sales and Services of Auxiliary Bad Debt ",null,"Revenue","Sales and Services of Auxiliary Bad Debt"]
[null,null,null,null,""]
[null,"Sales and Services of Auxiliaries Bad Debt ",null,"Revenue","Sales and Services of Auxiliaries Bad Debt"]
[null,null,null,null,""]
["438600","Sales and Services Auxiliaries Rev Bad Debt ",null,"Revenue","Sales and Services Auxiliaries Rev Bad Debt"]
[null,null,null,null,""]
[null,"Sales and Service of Auxiliary Student Financial Aid ",null,"Revenue","Sales and Service of Auxiliary Student Financial Aid"]
[null,null,null,null,""]
[null,"Sales and Service Auxiliaries Student F ",null,"Revenue","Sales and Service Auxiliaries Student F"]
[null,null,null,null,""]
["438700","Sales and Serv of Auxiliary Undergrad Student Fin Aid Allow ",null,"Revenue","Sales and Serv of Auxiliary Undergrad Student Fin Aid Allow"]
[null,null,null,null,""]
["438701","Sales and Serv of Auxiliary Grad Student Fin Aid Allow ",null,"Revenue","Sales and Serv of Auxiliary Grad Student Fin Aid Allow"]
[null,null,null,null,""]
[null,"Other Operating Revenue Net ",null,"Revenue","Other Operating Revenue Net"]
[null,null,null,null,""]
[null,"Other Operating Revenues Net ",null,"Revenue","Other Operating Revenues Net"]
[null,null,null,null,""]
[null,"Other Operating Revenue ",null,"Revenue","Other Operating Revenue"]
[null,null,null,null,""]
[null,"Other Operating Revenues ",null,"Revenue","Other Operating Revenues"]
[null,null,null,null,""]
["440000","Nonauxiliary Student Services ",null,"Revenue","Nonauxiliary Student Services"]
[null,null,null,null,""]
["440001","Agency Fund Revenue ",null,"Revenue","Agency Fund Revenue"]
[null,null,null,null,""]
["440002","Library Income ",null,"Revenue","Library Income"]
[null,null,null,null,""]
["440003","Miscellaneous Fees ",null,"Revenue","Miscellaneous Fees"]
[null,null,null,null,""]
["440004","Fines Forfeiture Revenue ",null,"Revenue","Fines Forfeiture Revenue"]
[null,null,null,null,""]
["440005","Student Loan and Financing Plan Revenue ",null,"Revenue","Student Loan and Financing Plan Revenue"]
[null,null,null,null,""]
["440006","Incentive and Rebate Income ",null,"Revenue","Incentive and Rebate Income"]
[null,null,null,null,""]
["440007","Other Property and Lease Incomes ",null,"Revenue","Other Property and Lease Incomes"]
[null,null,null,null,""]
["440008","Utilities Commodity Revenue ",null,"Revenue","Utilities Commodity Revenue"]
[null,null,null,null,""]
["440009","Other Miscellaneous Income ",null,"Revenue","Other Miscellaneous Income"]
[null,null,null,null,""]
["440010","Discounts ",null,"Revenue","Discounts"]
[null,null,null,null,""]
["440011","Earned Discounts ",null,"Revenue","Earned Discounts"]
[null,null,null,null,""]
["440012","Unearned Discounts ",null,"Revenue","Unearned Discounts"]
[null,null,null,null,""]
["440013","Loan Interest Income ",null,"Revenue","Loan Interest Income"]
[null,null,null,null,""]
["440014","Loan Writen Off Uncollectable ",null,"Revenue","Loan Writen Off Uncollectable"]
[null,null,null,null,""]
["440015","Loan Late Fees ",null,"Revenue","Loan Late Fees"]
[null,null,null,null,""]
["440900","Unapplied Receipts and Unidentified Cash ",null,"Revenue","Unapplied Receipts and Unidentified Cash"]
[null,null,null,null,""]
["440901","Invoice Adjustments ",null,"Revenue","Invoice Adjustments"]
[null,null,null,null,""]
["440902","Invoice Overpayment ",null,"Revenue","Invoice Overpayment"]
[null,null,null,null,""]
[null,"Other Operating Revenue Contra Other Allowances ",null,"Revenue","Other Operating Revenue Contra Other Allowances"]
[null,null,null,null,""]
[null,"Other Operating Revenue Contra Other Allow ",null,"Revenue","Other Operating Revenue Contra Other Allow"]
[null,null,null,null,""]
["445000","Other Operating Revenues Contra Other Allowances ",null,"Revenue","Other Operating Revenues Contra Other Allowances"]
[null,null,null,null,""]
[null,"Other Operating Revenue Bad Debt ",null,"Revenue","Other Operating Revenue Bad Debt"]
[null,null,null,null,""]
[null,"Other Operating Revenues Contra Bad Debt ",null,"Revenue","Other Operating Revenues Contra Bad Debt"]
[null,null,null,null,""]
["445100","Other Operating Revenues Contra Bad Debts ",null,"Revenue","Other Operating Revenues Contra Bad Debts"]
[null,null,null,null,""]
[null,"Other Operating Revenue Contra Student Financial Aid ",null,"Revenue","Other Operating Revenue Contra Student Financial Aid"]
[null,null,null,null,""]
[null,"Other Operating Revenues Contra Student Financial Aid ",null,"Revenue","Other Operating Revenues Contra Student Financial Aid"]
[null,null,null,null,""]
["445200","Other Operating Revenues Contra Student Financial Aid Allowance ",null,"Revenue","Other Operating Revenues Contra Student Financial Aid Allowance"]
[null,null,null,null,""]
[null,"Other Intercampus Revenue Transfers ",null,"Revenue","Other Intercampus Revenue Transfers"]
[null,null,null,null,""]
[null,"Other Intercampus Revenues Transfers ",null,"Revenue","Other Intercampus Revenues Transfers"]
[null,null,null,null,""]
["740000","Other Intercampus Revenue Transfer ",null,"Revenue","Other Intercampus Revenue Transfer"]
[null,null,null,null,""]
[null,"Medical Center Service Revenue ",null,"Revenue","Medical Center Service Revenue"]
[null,null,null,null,""]
[null,"Medical Center Service Revenue Inpatient ",null,"Revenue","Medical Center Service Revenue Inpatient"]
[null,null,null,null,""]
[null,"Inpatient Self Pay ",null,"Revenue","Inpatient Self Pay"]
[null,null,null,null,""]
[null,"Inpatient Self Pay Revenue ",null,"Revenue","Inpatient Self Pay Revenue"]
[null,null,null,null,""]
["450000","Inpatient Self Pay NonPharmacy ",null,"Revenue","Inpatient Self Pay NonPharmacy"]
[null,null,null,null,""]
["450001","Inpatient Pharmacy Self Pay ",null,"Revenue","Inpatient Pharmacy Self Pay"]
[null,null,null,null,""]
[null,"Inpatient Commercial Contracts ",null,"Revenue","Inpatient Commercial Contracts"]
[null,null,null,null,""]
[null,"Inpatient Commercial Contracts Revenue ",null,"Revenue","Inpatient Commercial Contracts Revenue"]
[null,null,null,null,""]
["450100","Inpatient HMO ",null,"Revenue","Inpatient HMO"]
[null,null,null,null,""]
["450101","Inpatient PPO ",null,"Revenue","Inpatient PPO"]
[null,null,null,null,""]
["450102","Inpatient Private Contracts ",null,"Revenue","Inpatient Private Contracts"]
[null,null,null,null,""]
["450109","Inpatient Other Commercial Contracts ",null,"Revenue","Inpatient Other Commercial Contracts"]
[null,null,null,null,""]
["450110","Inpatient Pharmacy HMO ",null,"Revenue","Inpatient Pharmacy HMO"]
[null,null,null,null,""]
["450111","Inpatient Pharmacy PPO ",null,"Revenue","Inpatient Pharmacy PPO"]
[null,null,null,null,""]
["450112","Inpatient Pharmacy Private Contracts ",null,"Revenue","Inpatient Pharmacy Private Contracts"]
[null,null,null,null,""]
["450119","Inpatient Pharmacy Other Commercial Contracts ",null,"Revenue","Inpatient Pharmacy Other Commercial Contracts"]
[null,null,null,null,""]
[null,"Inpatient Workers Compensation ",null,"Revenue","Inpatient Workers Compensation"]
[null,null,null,null,""]
[null,"Inpatient Workers Compensation Revenue ",null,"Revenue","Inpatient Workers Compensation Revenue"]
[null,null,null,null,""]
["450200","Inpatient Workers Compensation NonPharmacy ",null,"Revenue","Inpatient Workers Compensation NonPharmacy"]
[null,null,null,null,""]
["450201","Inpatient Pharmacy Workers Compensation ",null,"Revenue","Inpatient Pharmacy Workers Compensation"]
[null,null,null,null,""]
[null,"Inpatient Medicare ",null,"Revenue","Inpatient Medicare"]
[null,null,null,null,""]
[null,"Inpatient Medicare Revenue ",null,"Revenue","Inpatient Medicare Revenue"]
[null,null,null,null,""]
["450300","Inpatient Medicare Incl Pharmacy ",null,"Revenue","Inpatient Medicare Incl Pharmacy"]
[null,null,null,null,""]
[null,"Inpatient MediCal ",null,"Revenue","Inpatient MediCal"]
[null,null,null,null,""]
[null,"Inpatient MediCal Revenue ",null,"Revenue","Inpatient MediCal Revenue"]
[null,null,null,null,""]
["450400","Inpatient MediCal incl Pharmacy ",null,"Revenue","Inpatient MediCal incl Pharmacy"]
[null,null,null,null,""]
[null,"Inpatient MediCal incl Pharmacy C ",null,"Revenue","Inpatient MediCal incl Pharmacy C"]
[null,null,null,null,""]
[null,"Inpatient Other Government Revenue ",null,"Revenue","Inpatient Other Government Revenue"]
[null,null,null,null,""]
["450500","Inpatient Other Government incl Pharmacy ",null,"Revenue","Inpatient Other Government incl Pharmacy"]
[null,null,null,null,""]
[null,"Inpatient County Indigent Programs ",null,"Revenue","Inpatient County Indigent Programs"]
[null,null,null,null,""]
[null,"Inpatient County Indigent Program Revenue ",null,"Revenue","Inpatient County Indigent Program Revenue"]
[null,null,null,null,""]
["450600","Inpatient County Indigent Programs incl Pharmacy ",null,"Revenue","Inpatient County Indigent Programs incl Pharmacy"]
[null,null,null,null,""]
[null,"Inpatient Other ",null,"Revenue","Inpatient Other"]
[null,null,null,null,""]
[null,"Inpatient Other Revenue ",null,"Revenue","Inpatient Other Revenue"]
[null,null,null,null,""]
["450700","Other Inpatient Revenue ",null,"Revenue","Other Inpatient Revenue"]
[null,null,null,null,""]
[null,"Medical Center Service Revenue Outpatient ",null,"Revenue","Medical Center Service Revenue Outpatient"]
[null,null,null,null,""]
[null,"Outpatient Self Pay Rev ",null,"Revenue","Outpatient Self Pay Rev"]
[null,null,null,null,""]
[null,"Outpatient Self Pay Revenue ",null,"Revenue","Outpatient Self Pay Revenue"]
[null,null,null,null,""]
["451000","Outpatient Self Pay Revenues ",null,"Revenue","Outpatient Self Pay Revenues"]
[null,null,null,null,""]
[null,"Outpatient Commercial Contracts ",null,"Revenue","Outpatient Commercial Contracts"]
[null,null,null,null,""]
[null,"Outpatient Commercial Contracts Revenue ",null,"Revenue","Outpatient Commercial Contracts Revenue"]
[null,null,null,null,""]
["451100","Outpatient Commercial and Contracts Revenues ",null,"Revenue","Outpatient Commercial and Contracts Revenues"]
[null,null,null,null,""]
[null,"Outpatient Workers Compensation ",null,"Revenue","Outpatient Workers Compensation"]
[null,null,null,null,""]
[null,"Outpatient Workers Compensation Revenue ",null,"Revenue","Outpatient Workers Compensation Revenue"]
[null,null,null,null,""]
["451200","Outpatient Worker Comp ",null,"Revenue","Outpatient Worker Comp"]
[null,null,null,null,""]
[null,"Outpatient Medicare ",null,"Revenue","Outpatient Medicare"]
[null,null,null,null,""]
[null,"Outpatient Medicare Revenue ",null,"Revenue","Outpatient Medicare Revenue"]
[null,null,null,null,""]
["451300","Outpatient Medicare Revenues ",null,"Revenue","Outpatient Medicare Revenues"]
[null,null,null,null,""]
[null,"Outpatient MediCal ",null,"Revenue","Outpatient MediCal"]
[null,null,null,null,""]
[null,"Outpatient MediCal Revenue ",null,"Revenue","Outpatient MediCal Revenue"]
[null,null,null,null,""]
["451400","Outpatient MediCal Revenues ",null,"Revenue","Outpatient MediCal Revenues"]
[null,null,null,null,""]
[null,"Outpatient Other Government ",null,"Revenue","Outpatient Other Government"]
[null,null,null,null,""]
[null,"Outpatient Other Government Revenue ",null,"Revenue","Outpatient Other Government Revenue"]
[null,null,null,null,""]
["451500","Outpatient Other Government Revenues ",null,"Revenue","Outpatient Other Government Revenues"]
[null,null,null,null,""]
[null,"Outpatient County Indigent Programs ",null,"Revenue","Outpatient County Indigent Programs"]
[null,null,null,null,""]
[null,"Outpatient County Indigent Programs Revenue ",null,"Revenue","Outpatient County Indigent Programs Revenue"]
[null,null,null,null,""]
["451600","Outpatient County Indigent Programs Revenues ",null,"Revenue","Outpatient County Indigent Programs Revenues"]
[null,null,null,null,""]
[null,"Outpatient Other ",null,"Revenue","Outpatient Other"]
[null,null,null,null,""]
[null,"Outpatient Other Revenue ",null,"Revenue","Outpatient Other Revenue"]
[null,null,null,null,""]
["451700","Other Outpatient Revenues ",null,"Revenue","Other Outpatient Revenues"]
[null,null,null,null,""]
[null,"Medical Center Service Revenue NonPatient ",null,"Revenue","Medical Center Service Revenue NonPatient"]
[null,null,null,null,""]
[null,"Nonpatient Other Revenue ",null,"Revenue","Nonpatient Other Revenue"]
[null,null,null,null,""]
[null,"Nonpatient Operating Rev ",null,"Revenue","Nonpatient Operating Rev"]
[null,null,null,null,""]
["451801","UCDMC Refunds Rebates Recoveries ",null,"Revenue","UCDMC Refunds Rebates Recoveries"]
[null,null,null,null,""]
["451802","UCDMC Income ",null,"Revenue","UCDMC Income"]
[null,null,null,null,""]
["451803","UCDMC CARES Revenue ",null,"Revenue","UCDMC CARES Revenue"]
[null,null,null,null,""]
["451804","UCDMC Income Default ",null,"Revenue","UCDMC Income Default"]
[null,null,null,null,""]
["451805","UCDMC Credit Card Chage Backs Contra ",null,"Revenue","UCDMC Credit Card Chage Backs Contra"]
[null,null,null,null,""]
["451806","UCDMC Contract Inc Subject Medcompla ",null,"Revenue","UCDMC Contract Inc Subject Medcompla"]
[null,null,null,null,""]
["451808","UCDMC Miscellaneous Medcomp Plan Income ",null,"Revenue","UCDMC Miscellaneous Medcomp Plan Income"]
[null,null,null,null,""]
["451809","UCDMC Mcp Returned Checks ",null,"Revenue","UCDMC Mcp Returned Checks"]
[null,null,null,null,""]
["451810","UCDMC NonPatient Revenue ",null,"Revenue","UCDMC NonPatient Revenue"]
[null,null,null,null,""]
["451811","UCDMC Lodi Hospitalist Revenue ",null,"Revenue","UCDMC Lodi Hospitalist Revenue"]
[null,null,null,null,""]
["451812","UCDMC Affiliate Billing Revenue ",null,"Revenue","UCDMC Affiliate Billing Revenue"]
[null,null,null,null,""]
["451813","UCDMC Hi Tech StimMeaningful Use ",null,"Revenue","UCDMC Hi Tech StimMeaningful Use"]
[null,null,null,null,""]
[null,"Medical Center Service Revenue Contractual Adjustments ",null,"Revenue","Medical Center Service Revenue Contractual Adjustments"]
[null,null,null,null,""]
[null,"Contractual Adjustment Inpatient Medicare ",null,"Revenue","Contractual Adjustment Inpatient Medicare"]
[null,null,null,null,""]
[null,"Contractual Adjustments Inpatient Medicare ",null,"Revenue","Contractual Adjustments Inpatient Medicare"]
[null,null,null,null,""]
["452000","Contractual Adjustment In Patient Medicare ",null,"Revenue","Contractual Adjustment In Patient Medicare"]
[null,null,null,null,""]
[null,"Contractual Adjust Inpatient MediCal ",null,"Revenue","Contractual Adjust Inpatient MediCal"]
[null,null,null,null,""]
[null,"Contractual Adjustments Inpatient MediCal ",null,"Revenue","Contractual Adjustments Inpatient MediCal"]
[null,null,null,null,""]
["452100","Contractual Adj Inpatient MediCal ",null,"Revenue","Contractual Adj Inpatient MediCal"]
[null,null,null,null,""]
[null,"Contractual Adjust Inpatient County Indigent Programs ",null,"Revenue","Contractual Adjust Inpatient County Indigent Programs"]
[null,null,null,null,""]
[null,"Contractual Adjustments Inpatient County Indigent Programs ",null,"Revenue","Contractual Adjustments Inpatient County Indigent Programs"]
[null,null,null,null,""]
["452200","Contractual Adj Inpatient County Indigent Programs ",null,"Revenue","Contractual Adj Inpatient County Indigent Programs"]
[null,null,null,null,""]
[null,"Contractual Adjustment Outpatient Medicare ",null,"Revenue","Contractual Adjustment Outpatient Medicare"]
[null,null,null,null,""]
[null,"Contractual Adjustments Outpatient Medicare ",null,"Revenue","Contractual Adjustments Outpatient Medicare"]
[null,null,null,null,""]
["452300","Contractual Adj Outpatient Medicare ",null,"Revenue","Contractual Adj Outpatient Medicare"]
[null,null,null,null,""]
[null,"Contractual Adjustment Outpatient MediCal ",null,"Revenue","Contractual Adjustment Outpatient MediCal"]
[null,null,null,null,""]
[null,"Contractual Adjustments Outpatient MediCal ",null,"Revenue","Contractual Adjustments Outpatient MediCal"]
[null,null,null,null,""]
["452400","Contractual Adj Outpatient MediCal ",null,"Revenue","Contractual Adj Outpatient MediCal"]
[null,null,null,null,""]
[null,"Contractual Adjustments Outpatient County Indigent ",null,"Revenue","Contractual Adjustments Outpatient County Indigent"]
[null,null,null,null,""]
[null,"Contractual Adjustment Outpatient County Indigent Programs ",null,"Revenue","Contractual Adjustment Outpatient County Indigent Programs"]
[null,null,null,null,""]
["452500","Contractual Adj Outpatient County Indigent Program ",null,"Revenue","Contractual Adj Outpatient County Indigent Program"]
[null,null,null,null,""]
[null,"Contractual Adjustments Contracts Commercial Inpatient ",null,"Revenue","Contractual Adjustments Contracts Commercial Inpatient"]
[null,null,null,null,""]
[null,"Contractual Adjustments Inpatient Contracts Commercial ",null,"Revenue","Contractual Adjustments Inpatient Contracts Commercial"]
[null,null,null,null,""]
["452600","Contractual Adj Inpatient Contracts Commercial ",null,"Revenue","Contractual Adj Inpatient Contracts Commercial"]
[null,null,null,null,""]
[null,"Contractual Adjustments Contracts Commercial Outpatient ",null,"Revenue","Contractual Adjustments Contracts Commercial Outpatient"]
[null,null,null,null,""]
[null,"Contractual Adjustments Outpatient Contracts Commercial ",null,"Revenue","Contractual Adjustments Outpatient Contracts Commercial"]
[null,null,null,null,""]
["452700","Contractual Adj Outpatient Contracts Commercial ",null,"Revenue","Contractual Adj Outpatient Contracts Commercial"]
[null,null,null,null,""]
[null,"Charity Discount Other Adjustments ",null,"Revenue","Charity Discount Other Adjustments"]
[null,null,null,null,""]
[null,"Charity Discounts Other ",null,"Revenue","Charity Discounts Other"]
[null,null,null,null,""]
["452800","Charity Discount Other Adjustment ",null,"Revenue","Charity Discount Other Adjustment"]
[null,null,null,null,""]
[null,"Restricted Donations and Subsidies for Indigent Care Credit Balance ",null,"Revenue","Restricted Donations and Subsidies for Indigent Care Credit Balance"]
[null,null,null,null,""]
[null,"Restricted Donations and Subsidies for Indigent Care Credits ",null,"Revenue","Restricted Donations and Subsidies for Indigent Care Credits"]
[null,null,null,null,""]
["452900","Restricted Donations and Subsidies Indigent Care Credits ",null,"Revenue","Restricted Donations and Subsidies Indigent Care Credits"]
[null,null,null,null,""]
[null,"Teaching Allowances ",null,"Revenue","Teaching Allowances"]
[null,null,null,null,""]
[null,"Teaching Allowance Revenue Adjustments ",null,"Revenue","Teaching Allowance Revenue Adjustments"]
[null,null,null,null,""]
["453000","Teaching Revenue Allowances ",null,"Revenue","Teaching Revenue Allowances"]
[null,null,null,null,""]
[null,"Support For Clinical Teaching Credit Balance ",null,"Revenue","Support For Clinical Teaching Credit Balance"]
[null,null,null,null,""]
[null,"Support For Clinical Teaching Credit Balances ",null,"Revenue","Support For Clinical Teaching Credit Balances"]
[null,null,null,null,""]
["453100","Support For Clinical Teachings Credit Balance ",null,"Revenue","Support For Clinical Teachings Credit Balance"]
[null,null,null,null,""]
[null,"Administrative Adjustments ",null,"Revenue","Administrative Adjustments"]
[null,null,null,null,""]
[null,"Administrative Revenue Adjustments ",null,"Revenue","Administrative Revenue Adjustments"]
[null,null,null,null,""]
["453200","Administrative Adjustments to Revenue ",null,"Revenue","Administrative Adjustments to Revenue"]
[null,null,null,null,""]
[null,"Other Deductions from Revenue ",null,"Revenue","Other Deductions from Revenue"]
[null,null,null,null,""]
[null,"Other Revenue Deductions ",null,"Revenue","Other Revenue Deductions"]
[null,null,null,null,""]
["453300","Deductions from Revenues Other ",null,"Revenue","Deductions from Revenues Other"]
[null,null,null,null,""]
[null,"Contractual Adjustment Inpatient Self Pay ",null,"Revenue","Contractual Adjustment Inpatient Self Pay"]
[null,null,null,null,""]
[null,"Contractual Adjustments Inpatient Self Pay ",null,"Revenue","Contractual Adjustments Inpatient Self Pay"]
[null,null,null,null,""]
["453400","Contractual Adj Inpatient Self Pay ",null,"Revenue","Contractual Adj Inpatient Self Pay"]
[null,null,null,null,""]
[null,"Contractual Adjustments Intpatient Workers Comp ",null,"Revenue","Contractual Adjustments Intpatient Workers Comp"]
[null,null,null,null,""]
[null,"Contractual Adjustments Intpatient Workers Compensation ",null,"Revenue","Contractual Adjustments Intpatient Workers Compensation"]
[null,null,null,null,""]
["453500","Contractual Adj Inpatient Workers Compensation ",null,"Revenue","Contractual Adj Inpatient Workers Compensation"]
[null,null,null,null,""]
[null,"Contractual Adjustment Outpatient Self Pay ",null,"Revenue","Contractual Adjustment Outpatient Self Pay"]
[null,null,null,null,""]
[null,"Contractual Adjustments Outpatient Self Pay ",null,"Revenue","Contractual Adjustments Outpatient Self Pay"]
[null,null,null,null,""]
["453600","Contractual Adj Outpatient Self Pay ",null,"Revenue","Contractual Adj Outpatient Self Pay"]
[null,null,null,null,""]
[null,"Contractual Adjustments Outpatient Workers Comp ",null,"Revenue","Contractual Adjustments Outpatient Workers Comp"]
[null,null,null,null,""]
[null,"Contractual Adjustments Outpatient Workers Compensation ",null,"Revenue","Contractual Adjustments Outpatient Workers Compensation"]
[null,null,null,null,""]
["453700","Contractual Adj Outpatient Workers Compensation ",null,"Revenue","Contractual Adj Outpatient Workers Compensation"]
[null,null,null,null,""]
[null,"ContraDeductions from Revenue ",null,"Revenue","ContraDeductions from Revenue"]
[null,null,null,null,""]
[null,"Contra Hospital Fee Program ",null,"Revenue","Contra Hospital Fee Program"]
[null,null,null,null,""]
["453800","Contra Hospital Fee Programs ",null,"Revenue","Contra Hospital Fee Programs"]
[null,null,null,null,""]
[null,"Contra Medicare Disproportionate Share ",null,"Revenue","Contra Medicare Disproportionate Share"]
[null,null,null,null,""]
["453900","Contra Medicare Disproportion Share ",null,"Revenue","Contra Medicare Disproportion Share"]
[null,null,null,null,""]
[null,"Contra Supplemental Funds MediCal ",null,"Revenue","Contra Supplemental Funds MediCal"]
[null,null,null,null,""]
["454000","Contra Supplemntl Funds MediCal ",null,"Revenue","Contra Supplemntl Funds MediCal"]
[null,null,null,null,""]
[null,"Contra MediCal DSRIP ",null,"Revenue","Contra MediCal DSRIP"]
[null,null,null,null,""]
["454100","ContraMediCal DSRIP ",null,"Revenue","ContraMediCal DSRIP"]
[null,null,null,null,""]
[null,"Contra Indigent Care Tobacco Tax Funds and Other Funds ",null,"Revenue","Contra Indigent Care Tobacco Tax Funds and Other Funds"]
[null,null,null,null,""]
["454200","Contra Indigent Care Tobacco Tax and Other Funds ",null,"Revenue","Contra Indigent Care Tobacco Tax and Other Funds"]
[null,null,null,null,""]
[null,"Medical Center Bad Debts ",null,"Revenue","Medical Center Bad Debts"]
[null,null,null,null,""]
[null,"Bad Debt Inpatient Medicare ",null,"Revenue","Bad Debt Inpatient Medicare"]
[null,null,null,null,""]
[null,"Bad Debts Inpatient Medicare ",null,"Revenue","Bad Debts Inpatient Medicare"]
[null,null,null,null,""]
["454600","Bad Debts In Patient Medicare ",null,"Revenue","Bad Debts In Patient Medicare"]
[null,null,null,null,""]
["454661","Provision for Bad Debt EPIC ",null,"Revenue","Provision for Bad Debt EPIC"]
[null,null,null,null,""]
["454662","Medi Medi Bad Debt Expense ",null,"Revenue","Medi Medi Bad Debt Expense"]
[null,null,null,null,""]
["454663","Bad Debt Recovery ",null,"Revenue","Bad Debt Recovery"]
[null,null,null,null,""]
["454664","MC Bad Debt Expense ",null,"Revenue","MC Bad Debt Expense"]
[null,null,null,null,""]
[null,"Bad Debt Inpatient MediCal ",null,"Revenue","Bad Debt Inpatient MediCal"]
[null,null,null,null,""]
[null,"Bad Debts Inpatient MediCal ",null,"Revenue","Bad Debts Inpatient MediCal"]
[null,null,null,null,""]
["454620","Bad Debts In Patient MediCal ",null,"Revenue","Bad Debts In Patient MediCal"]
[null,null,null,null,""]
[null,"Bad Debt Inpatient County Indigent Program ",null,"Revenue","Bad Debt Inpatient County Indigent Program"]
[null,null,null,null,""]
[null,"Bad Debt Inpatient County Indigent Programs ",null,"Revenue","Bad Debt Inpatient County Indigent Programs"]
[null,null,null,null,""]
["454640","Bad Debts Inpatient County Indigent Programs ",null,"Revenue","Bad Debts Inpatient County Indigent Programs"]
[null,null,null,null,""]
[null,"Bad Debt Outpatient Medicare ",null,"Revenue","Bad Debt Outpatient Medicare"]
[null,null,null,null,""]
[null,"Bad Debts Outpatient Medicare ",null,"Revenue","Bad Debts Outpatient Medicare"]
[null,null,null,null,""]
["454660","Bad Debts Out Patient Medicare ",null,"Revenue","Bad Debts Out Patient Medicare"]
[null,null,null,null,""]
[null,"Bad Debt Outpatient MediCal ",null,"Revenue","Bad Debt Outpatient MediCal"]
[null,null,null,null,""]
[null,"Bad Debt Out Patient MediCal ",null,"Revenue","Bad Debt Out Patient MediCal"]
[null,null,null,null,""]
["454680","Bad Debts Outpatient MediCal ",null,"Revenue","Bad Debts Outpatient MediCal"]
[null,null,null,null,""]
[null,"Bad Debt Outpatient County Indigent Program ",null,"Revenue","Bad Debt Outpatient County Indigent Program"]
[null,null,null,null,""]
[null,"Bad Debt Outpatient County Indigent Programs ",null,"Revenue","Bad Debt Outpatient County Indigent Programs"]
[null,null,null,null,""]
["454700","Bad Debts Outpatient County Indigent Programs ",null,"Revenue","Bad Debts Outpatient County Indigent Programs"]
[null,null,null,null,""]
[null,"Bad Debt Contracts Commercial Inpatient ",null,"Revenue","Bad Debt Contracts Commercial Inpatient"]
[null,null,null,null,""]
[null,"Bad Debts Contracts Commercial Inpatient ",null,"Revenue","Bad Debts Contracts Commercial Inpatient"]
[null,null,null,null,""]
["454720","Bad Debts Contracts Commercial In Patient ",null,"Revenue","Bad Debts Contracts Commercial In Patient"]
[null,null,null,null,""]
[null,"Bad debt contracts commercial outpatient ",null,"Revenue","Bad debt contracts commercial outpatient"]
[null,null,null,null,""]
[null,"Bad Debt Contract Commercial Outpatient ",null,"Revenue","Bad Debt Contract Commercial Outpatient"]
[null,null,null,null,""]
["454740","Bad Debts Contracts Commercial Outpatient ",null,"Revenue","Bad Debts Contracts Commercial Outpatient"]
[null,null,null,null,""]
[null,"Bad Debt Administrative ",null,"Revenue","Bad Debt Administrative"]
[null,null,null,null,""]
[null,"Bad Debt Administrative Revenue ",null,"Revenue","Bad Debt Administrative Revenue"]
[null,null,null,null,""]
["454760","Bad Debt Administrative Rev ",null,"Revenue","Bad Debt Administrative Rev"]
[null,null,null,null,""]
[null,"Bad Debt Inpatient Self Pay ",null,"Revenue","Bad Debt Inpatient Self Pay"]
[null,null,null,null,""]
[null,"Bad Debt Inpatient Self Pays ",null,"Revenue","Bad Debt Inpatient Self Pays"]
[null,null,null,null,""]
["454780","Bad Debts Inpatient Self Pay ",null,"Revenue","Bad Debts Inpatient Self Pay"]
[null,null,null,null,""]
[null,"Bad Debt Inpatient Workers Compensation ",null,"Revenue","Bad Debt Inpatient Workers Compensation"]
[null,null,null,null,""]
[null,"Bad Debts Inpatient Workers Compensation ",null,"Revenue","Bad Debts Inpatient Workers Compensation"]
[null,null,null,null,""]
["454800","Bad Debts Inpatient Workers Comp ",null,"Revenue","Bad Debts Inpatient Workers Comp"]
[null,null,null,null,""]
[null,"Bad Debt Outpatient Self Pay ",null,"Revenue","Bad Debt Outpatient Self Pay"]
[null,null,null,null,""]
[null,"Bad Debts Outpatient Self Pay ",null,"Revenue","Bad Debts Outpatient Self Pay"]
[null,null,null,null,""]
["454820","Bad Debt Outpatient SelfPay ",null,"Revenue","Bad Debt Outpatient SelfPay"]
[null,null,null,null,""]
[null,"Bad Debt Outpatient Workers Compensation ",null,"Revenue","Bad Debt Outpatient Workers Compensation"]
[null,null,null,null,""]
[null,"Bad Debts Outpatient Workers Compensation ",null,"Revenue","Bad Debts Outpatient Workers Compensation"]
[null,null,null,null,""]
["454840","Bad Debts Outpatient Workers Comp ",null,"Revenue","Bad Debts Outpatient Workers Comp"]
[null,null,null,null,""]
[null,"Capitation Premium Revenue ",null,"Revenue","Capitation Premium Revenue"]
[null,null,null,null,""]
[null,"Capitation Premium Revenue Medicare ",null,"Revenue","Capitation Premium Revenue Medicare"]
[null,null,null,null,""]
[null,"Capitation Premium Medicare ",null,"Revenue","Capitation Premium Medicare"]
[null,null,null,null,""]
["455100","Capitation Premium Revenues Medicare ",null,"Revenue","Capitation Premium Revenues Medicare"]
[null,null,null,null,""]
[null,"Capitation Premium Revenue MediCal ",null,"Revenue","Capitation Premium Revenue MediCal"]
[null,null,null,null,""]
[null,"Capitation Premium MediCal ",null,"Revenue","Capitation Premium MediCal"]
[null,null,null,null,""]
["455200","Capitation Premium Revenues MediCal ",null,"Revenue","Capitation Premium Revenues MediCal"]
[null,null,null,null,""]
[null,"Capitation Premium Revenue County Indigent Program ",null,"Revenue","Capitation Premium Revenue County Indigent Program"]
[null,null,null,null,""]
[null,"Capitation Premium County Indigent Program ",null,"Revenue","Capitation Premium County Indigent Program"]
[null,null,null,null,""]
["455300","Capitation Premium Revenues County Indigent Program ",null,"Revenue","Capitation Premium Revenues County Indigent Program"]
[null,null,null,null,""]
[null,"Capitation Premium Revenue Other Third Party ",null,"Revenue","Capitation Premium Revenue Other Third Party"]
[null,null,null,null,""]
[null,"Capitation Premium Other Third Party ",null,"Revenue","Capitation Premium Other Third Party"]
[null,null,null,null,""]
["455400","Capitation Premium Revenues Other Third Party ",null,"Revenue","Capitation Premium Revenues Other Third Party"]
[null,null,null,null,""]
[null,"NonPatient Operating Revenue ",null,"Revenue","NonPatient Operating Revenue"]
[null,null,null,null,""]
[null,"NonPatient Operating Revenues ",null,"Revenue","NonPatient Operating Revenues"]
[null,null,null,null,""]
[null,"MC Parking Revenue ",null,"Revenue","MC Parking Revenue"]
[null,null,null,null,""]
["456000","UCDMC Parking Revenues ",null,"Revenue","UCDMC Parking Revenues"]
[null,null,null,null,""]
[null,"MC Cash Discounts and Refunds ",null,"Revenue","MC Cash Discounts and Refunds"]
[null,null,null,null,""]
["456100","UCDMC Cash Discounts and Refunds ",null,"Revenue","UCDMC Cash Discounts and Refunds"]
[null,null,null,null,""]
[null,"MC Drugs and Supplies Sold to NonPatients ",null,"Revenue","MC Drugs and Supplies Sold to NonPatients"]
[null,null,null,null,""]
["456200","UCDMC Drugs and Supplies Sold to NonPatients ",null,"Revenue","UCDMC Drugs and Supplies Sold to NonPatients"]
[null,null,null,null,""]
[null,"MC Laundry and Linen Revenue ",null,"Revenue","MC Laundry and Linen Revenue"]
[null,null,null,null,""]
["456300","UCDMC Laundry and Linen Revenues ",null,"Revenue","UCDMC Laundry and Linen Revenues"]
[null,null,null,null,""]
[null,"MC Donated Commodities and Materials ",null,"Revenue","MC Donated Commodities and Materials"]
[null,null,null,null,""]
["456400","UCDMC Donated Commodities and Materials ",null,"Revenue","UCDMC Donated Commodities and Materials"]
[null,null,null,null,""]
[null,"MC Cafeteria ",null,"Revenue","MC Cafeteria"]
[null,null,null,null,""]
["456500","UCDMC Cafeteria Revenues ",null,"Revenue","UCDMC Cafeteria Revenues"]
[null,null,null,null,""]
[null,"MC NonPatient Room Rentals ",null,"Revenue","MC NonPatient Room Rentals"]
[null,null,null,null,""]
["456600","UCDMC NonPatient Room Rentals Revenue ",null,"Revenue","UCDMC NonPatient Room Rentals Revenue"]
[null,null,null,null,""]
[null,"MC Data Management Medical Records and Other Business Services Revenue ",null,"Revenue","MC Data Management Medical Records and Other Business Services Revenue"]
[null,null,null,null,""]
["456700","UCDMC Data Management Medical Records and Other Business Services Revenues ",null,"Revenue","UCDMC Data Management Medical Records and Other Business Services Revenues"]
[null,null,null,null,""]
[null,"MC Insurance Recoveries and Refunds ",null,"Revenue","MC Insurance Recoveries and Refunds"]
[null,null,null,null,""]
["456800","UCDMC Insurance Recoveries and Refunds ",null,"Revenue","UCDMC Insurance Recoveries and Refunds"]
[null,null,null,null,""]
[null,"MC Cost Recovery ",null,"Revenue","MC Cost Recovery"]
[null,null,null,null,""]
["456900","UCDMC Cost Recoveries ",null,"Revenue","UCDMC Cost Recoveries"]
[null,null,null,null,""]
[null,"MC Federal Stimulus and Health Reform Funding ",null,"Revenue","MC Federal Stimulus and Health Reform Funding"]
[null,null,null,null,""]
["457000","UCDMC Federal Stimulus and Health Reform Funding ",null,"Revenue","UCDMC Federal Stimulus and Health Reform Funding"]
[null,null,null,null,""]
[null,"MC Social and Community Service Revenue ",null,"Revenue","MC Social and Community Service Revenue"]
[null,null,null,null,""]
["457100","UCDMC Social and Community Service Revenue ",null,"Revenue","UCDMC Social and Community Service Revenue"]
[null,null,null,null,""]
[null,"MC Joint Venture Income Operating ",null,"Revenue","MC Joint Venture Income Operating"]
[null,null,null,null,""]
["457200","UCDMC Joint Venture Income Operating ",null,"Revenue","UCDMC Joint Venture Income Operating"]
[null,null,null,null,""]
[null,"MC Other Operating Revenue ",null,"Revenue","MC Other Operating Revenue"]
[null,null,null,null,""]
["457300","UCDMC Other Operating Revenues ",null,"Revenue","UCDMC Other Operating Revenues"]
[null,null,null,null,""]
[null,"MC Rebates ",null,"Revenue","MC Rebates"]
[null,null,null,null,""]
["457400","UCDMC Rebates ",null,"Revenue","UCDMC Rebates"]
[null,null,null,null,""]
[null,"MC Pharmacy Programs ",null,"Revenue","MC Pharmacy Programs"]
[null,null,null,null,""]
["457500","UCDMC Pharmacy Programs Revenue ",null,"Revenue","UCDMC Pharmacy Programs Revenue"]
[null,null,null,null,""]
[null,"MC Organ Recovery Fees ",null,"Revenue","MC Organ Recovery Fees"]
[null,null,null,null,""]
["457600","UCDMC Organ Recovery Fees ",null,"Revenue","UCDMC Organ Recovery Fees"]
[null,null,null,null,""]
[null,"Supplemental Fund Revenue ",null,"Revenue","Supplemental Fund Revenue"]
[null,null,null,null,""]
[null,"UCDMC Medicare Teaching DME and IME ",null,"Revenue","UCDMC Medicare Teaching DME and IME"]
[null,null,null,null,""]
["458000","Medicare Teaching DME and IME ",null,"Revenue","Medicare Teaching DME and IME"]
[null,null,null,null,""]
[null,"UCDMC Clinical Teaching Support ",null,"Revenue","UCDMC Clinical Teaching Support"]
[null,null,null,null,""]
["458100","UCDMC Clinical Teaching Support Revenues ",null,"Revenue","UCDMC Clinical Teaching Support Revenues"]
[null,null,null,null,""]
[null,"MC Other Revenue Source Funds ",null,"Revenue","MC Other Revenue Source Funds"]
[null,null,null,null,""]
[null,"UCDMC Other Revenue Sources Funds ",null,"Revenue","UCDMC Other Revenue Sources Funds"]
[null,null,null,null,""]
["458200","UCDMC Other Revenues Source Funds ",null,"Revenue","UCDMC Other Revenues Source Funds"]
[null,null,null,null,""]
[null,"Foundation Operating Revenue Foundation Use Only ",null,"Revenue","Foundation Operating Revenue Foundation Use Only"]
[null,null,null,null,""]
[null,"Foundation Operating Revenue UCD Foundation Only ",null,"Revenue","Foundation Operating Revenue UCD Foundation Only"]
[null,null,null,null,""]
[null,"Foundation Operating Revenues UCD Foundation Only ",null,"Revenue","Foundation Operating Revenues UCD Foundation Only"]
[null,null,null,null,""]
[null,"UCD Foundation Operating Revenues ",null,"Revenue","UCD Foundation Operating Revenues"]
[null,null,null,null,""]
["469000","UCDF Gift Revenue Cash ",null,"Revenue","UCDF Gift Revenue Cash"]
[null,null,null,null,""]
["469001","UCDF Gift Revenue Pledges ",null,"Revenue","UCDF Gift Revenue Pledges"]
[null,null,null,null,""]
["469002","UCDF Endowment Revenue Cash ",null,"Revenue","UCDF Endowment Revenue Cash"]
[null,null,null,null,""]
["469010","UCDF Gift Revenue GIK SecuritiesBonds ",null,"Revenue","UCDF Gift Revenue GIK SecuritiesBonds"]
[null,null,null,null,""]
["469011","UCDF Gift Revenue GIK Real Estate ",null,"Revenue","UCDF Gift Revenue GIK Real Estate"]
[null,null,null,null,""]
["469012","UCDF Gift Revenue GIK Other ",null,"Revenue","UCDF Gift Revenue GIK Other"]
[null,null,null,null,""]
["469500","Other IncomeSpecial Events ",null,"Revenue","Other IncomeSpecial Events"]
[null,null,null,null,""]
["469501","Endowment Assets Maintenance Cost ",null,"Revenue","Endowment Assets Maintenance Cost"]
[null,null,null,null,""]
["469502","NonGift Receipts GIK SecuritiesBonds ",null,"Revenue","NonGift Receipts GIK SecuritiesBonds"]
[null,null,null,null,""]
["469503","Payouts Returned to Principal ",null,"Revenue","Payouts Returned to Principal"]
[null,null,null,null,""]
["469504","Transfer of Funds from OP and Other Foundations ",null,"Revenue","Transfer of Funds from OP and Other Foundations"]
[null,null,null,null,""]
["469505","NonGift Cash Receipts ",null,"Revenue","NonGift Cash Receipts"]
[null,null,null,null,""]
[null,"CAAA Operating Revenue CAAA Use Only ",null,"Revenue","CAAA Operating Revenue CAAA Use Only"]
[null,null,null,null,""]
[null,"CAAA Operating Revenue CAAA Only ",null,"Revenue","CAAA Operating Revenue CAAA Only"]
[null,null,null,null,""]
[null,"CAAA Operating Revenues ",null,"Revenue","CAAA Operating Revenues"]
[null,null,null,null,""]
[null,"CAAA Operating Revenue ",null,"Revenue","CAAA Operating Revenue"]
[null,null,null,null,""]
["469100","University Support for Salaries ",null,"Revenue","University Support for Salaries"]
[null,null,null,null,""]
["469101","University Support for Programs ",null,"Revenue","University Support for Programs"]
[null,null,null,null,""]
[null,"CAAA Membership Revenue ",null,"Revenue","CAAA Membership Revenue"]
[null,null,null,null,""]
["469110","CAAA Annual Membership ",null,"Revenue","CAAA Annual Membership"]
[null,null,null,null,""]
["469111","CAAA Life and Emeriti Membership ",null,"Revenue","CAAA Life and Emeriti Membership"]
[null,null,null,null,""]
["469112","CAAA Student Life Membership ",null,"Revenue","CAAA Student Life Membership"]
[null,null,null,null,""]
["469113","CAAA Student Life Direct Membership ",null,"Revenue","CAAA Student Life Direct Membership"]
[null,null,null,null,""]
["469114","CAAA Parent Membership ",null,"Revenue","CAAA Parent Membership"]
[null,null,null,null,""]
[null,"Net Unrealized Gain on Income ",null,"Revenue","Net Unrealized Gain on Income"]
[null,null,null,null,""]
["469120","Unrealized Gain Loss BOARD GEP ",null,"Revenue","Unrealized Gain Loss BOARD GEP"]
[null,null,null,null,""]
["469121","Realized Gain Loss BOARD GEP ",null,"Revenue","Realized Gain Loss BOARD GEP"]
[null,null,null,null,""]
["469122","Unrealized Gain Loss LMRF GEP ",null,"Revenue","Unrealized Gain Loss LMRF GEP"]
[null,null,null,null,""]
["469123","Realized Gain Loss LMRF GEP ",null,"Revenue","Realized Gain Loss LMRF GEP"]
[null,null,null,null,""]
[null,"NonDues Revenue ",null,"Revenue","NonDues Revenue"]
[null,null,null,null,""]
["469130","Business Partnerships ",null,"Revenue","Business Partnerships"]
[null,null,null,null,""]
["469131","Wine Revenue ",null,"Revenue","Wine Revenue"]
[null,null,null,null,""]
["469132","Beer Revenue ",null,"Revenue","Beer Revenue"]
[null,null,null,null,""]
["469134","Directory Fee Revenue ",null,"Revenue","Directory Fee Revenue"]
[null,null,null,null,""]
["469135","Other Marketing Revenue ",null,"Revenue","Other Marketing Revenue"]
[null,null,null,null,""]
["469139","iModules Pass Through Revenues ",null,"Revenue","iModules Pass Through Revenues"]
[null,null,null,null,""]
[null,"Rental Revenue ",null,"Revenue","Rental Revenue"]
[null,null,null,null,""]
["469140","Building and Facility Rental Revenue ",null,"Revenue","Building and Facility Rental Revenue"]
[null,null,null,null,""]
[null,"Program Revenue ",null,"Revenue","Program Revenue"]
[null,null,null,null,""]
["469150","Program Receipts ",null,"Revenue","Program Receipts"]
[null,null,null,null,""]
[null,"Scholarship Fund Revenue ",null,"Revenue","Scholarship Fund Revenue"]
[null,null,null,null,""]
["469160","Scholarship Revenue ",null,"Revenue","Scholarship Revenue"]
[null,null,null,null,""]
[null,"Building and Facilities Revenue ",null,"Revenue","Building and Facilities Revenue"]
[null,null,null,null,""]
["469170","Building and Facility Revenue ",null,"Revenue","Building and Facility Revenue"]
[null,null,null,null,""]
[null,"Interest Income ",null,"Revenue","Interest Income"]
[null,null,null,null,""]
["469180","Interest Incomes ",null,"Revenue","Interest Incomes"]
[null,null,null,null,""]
[null,"Private Gift Revenue ",null,"Revenue","Private Gift Revenue"]
[null,null,null,null,""]
["469190","Gifts Grants and Sponsorships Revenue ",null,"Revenue","Gifts Grants and Sponsorships Revenue"]
[null,null,null,null,""]
["469191","Gifts in Kind ",null,"Revenue","Gifts in Kind"]
[null,null,null,null,""]
[null,"CAAA Other Operating Revenue ",null,"Revenue","CAAA Other Operating Revenue"]
[null,null,null,null,""]
["469200","Other CAAA Operating Revenue ",null,"Revenue","Other CAAA Operating Revenue"]
[null,null,null,null,""]
[null,"Private Gifts NonCapital ",null,"Revenue","Private Gifts NonCapital"]
[null,null,null,null,""]
[null,"Private Gifts ",null,"Revenue","Private Gifts"]
[null,null,null,null,""]
[null,"Private Gift Revenue NonCapital ",null,"Revenue","Private Gift Revenue NonCapital"]
[null,null,null,null,""]
[null,"Private Gift Revenues ",null,"Revenue","Private Gift Revenues"]
[null,null,null,null,""]
["480000","Current Use Gift Revenue ",null,"Revenue","Current Use Gift Revenue"]
[null,null,null,null,""]
["480001","FFE Gifts ",null,"Revenue","FFE Gifts"]
[null,null,null,null,""]
["480007","Gift Fees ",null,"Revenue","Gift Fees"]
[null,null,null,null,""]
["480008","Expected Pledge Revenue ",null,"Revenue","Expected Pledge Revenue"]
[null,null,null,null,""]
["480009","Other Cash Gifts ",null,"Revenue","Other Cash Gifts"]
[null,null,null,null,""]
["480022","Endowment Income ",null,"Revenue","Endowment Income"]
[null,null,null,null,""]
["480023","Foundation Gift Fees ",null,"Revenue","Foundation Gift Fees"]
[null,null,null,null,""]
["480024","Transfer Gifts to Foundation ",null,"Revenue","Transfer Gifts to Foundation"]
[null,null,null,null,""]
["480025","Endowment Infrastructure fee ",null,"Revenue","Endowment Infrastructure fee"]
[null,null,null,null,""]
[null,"Private gifts noncash ",null,"Revenue","Private gifts noncash"]
[null,null,null,null,""]
["480010","GiftsinKind ",null,"Revenue","GiftsinKind"]
[null,null,null,null,""]
[null,"Private Gifts Uncollectible ",null,"Revenue","Private Gifts Uncollectible"]
[null,null,null,null,""]
[null,"Private Gifts Uncollectibles ",null,"Revenue","Private Gifts Uncollectibles"]
[null,null,null,null,""]
["480100","Private Gifts Revenues Uncollectible ",null,"Revenue","Private Gifts Revenues Uncollectible"]
[null,null,null,null,""]
[null,"Private Gifts Discounts on Pledges ",null,"Revenue","Private Gifts Discounts on Pledges"]
[null,null,null,null,""]
[null,"Private Gifts Discount on Pledges ",null,"Revenue","Private Gifts Discount on Pledges"]
[null,null,null,null,""]
["480200","Private Gift Discount on Pledges ",null,"Revenue","Private Gift Discount on Pledges"]
[null,null,null,null,""]
[null,"Appropriations ",null,"Revenue","Appropriations"]
[null,null,null,null,""]
[null,"State Appropriations ",null,"Revenue","State Appropriations"]
[null,null,null,null,""]
[null,"State Appropriations General C ",null,"Revenue","State Appropriations General C"]
[null,null,null,null,""]
[null,"State Appropriations General D ",null,"Revenue","State Appropriations General D"]
[null,null,null,null,""]
["481000","State Appropriations General Support ",null,"Revenue","State Appropriations General Support"]
[null,null,null,null,""]
[null,"State Hospital Fee Grants ",null,"Revenue","State Hospital Fee Grants"]
[null,null,null,null,""]
[null,"State Hospital Fee Grant ",null,"Revenue","State Hospital Fee Grant"]
[null,null,null,null,""]
["481100","UCDMC State Hospital Fee Grants ",null,"Revenue","UCDMC State Hospital Fee Grants"]
[null,null,null,null,""]
[null,"State Financing ",null,"Revenue","State Financing"]
[null,null,null,null,""]
[null,"State Financing Appropriations D ",null,"Revenue","State Financing Appropriations D"]
[null,null,null,null,""]
["481200","State Financing Appropriations ",null,"Revenue","State Financing Appropriations"]
[null,null,null,null,""]
[null,"Federal Appropriations ",null,"Revenue","Federal Appropriations"]
[null,null,null,null,""]
[null,"Federal Financing Appropriations Build America Bonds Subsidy ",null,"Revenue","Federal Financing Appropriations Build America Bonds Subsidy"]
[null,null,null,null,""]
[null,"Federal Financing Appropriations Build America Bonds Subsidies ",null,"Revenue","Federal Financing Appropriations Build America Bonds Subsidies"]
[null,null,null,null,""]
["481300","Federal Financing Appropriation Build America Bonds Subsidies BABS ",null,"Revenue","Federal Financing Appropriation Build America Bonds Subsidies BABS"]
[null,null,null,null,""]
[null,"Direct Government Grants ",null,"Revenue","Direct Government Grants"]
[null,null,null,null,""]
[null,"Direct Government Grants Non Sponsored Research ",null,"Revenue","Direct Government Grants Non Sponsored Research"]
[null,null,null,null,""]
["481350","Direct Government Grants Federal ",null,"Revenue","Direct Government Grants Federal"]
[null,null,null,null,""]
[null,"Federal Student Aid Pell Grants ",null,"Revenue","Federal Student Aid Pell Grants"]
[null,null,null,null,""]
[null,"Federal Pell Grants Revenue ",null,"Revenue","Federal Pell Grants Revenue"]
[null,null,null,null,""]
[null,"Federal Pell Grant Revenue ",null,"Revenue","Federal Pell Grant Revenue"]
[null,null,null,null,""]
["481400","Federal Pell Grants Financial Aid Revenue ",null,"Revenue","Federal Pell Grants Financial Aid Revenue"]
[null,null,null,null,""]
[null,"Income on Investments ",null,"Revenue","Income on Investments"]
[null,null,null,null,""]
[null,"Short Term Investment Pool STIP ",null,"Revenue","Short Term Investment Pool STIP"]
[null,null,null,null,""]
[null,"Net Realized Unrealized Gain Loss on STIP ",null,"Revenue","Net Realized Unrealized Gain Loss on STIP"]
[null,null,null,null,""]
[null,"Realized Unrealized Gain Loss on STIP Net ",null,"Revenue","Realized Unrealized Gain Loss on STIP Net"]
[null,null,null,null,""]
["482000","STIP Realized Gain Loss ",null,"Revenue","STIP Realized Gain Loss"]
[null,null,null,null,""]
["482001","Foreign Exchange Rate Realized Gain Loss Currency Rounding ",null,"Revenue","Foreign Exchange Rate Realized Gain Loss Currency Rounding"]
[null,null,null,null,""]
[null,"STIP Income ",null,"Revenue","STIP Income"]
[null,null,null,null,""]
[null,"STIP Inv Income ",null,"Revenue","STIP Inv Income"]
[null,null,null,null,""]
["482010","STIP Investment Income ",null,"Revenue","STIP Investment Income"]
[null,null,null,null,""]
[null,"STIP Distribution ",null,"Revenue","STIP Distribution"]
[null,null,null,null,""]
[null,"STIP Investment Distribution D ",null,"Revenue","STIP Investment Distribution D"]
[null,null,null,null,""]
["741000","STIP Investment Distribution ",null,"Revenue","STIP Investment Distribution"]
[null,null,null,null,""]
["741010","STIP Transfer to TRIP ",null,"Revenue","STIP Transfer to TRIP"]
[null,null,null,null,""]
["741011","STIP Transfer from TRIP ",null,"Revenue","STIP Transfer from TRIP"]
[null,null,null,null,""]
["741015","STIP Transfer to GEP ",null,"Revenue","STIP Transfer to GEP"]
[null,null,null,null,""]
["741016","STIP Transfer from GEP ",null,"Revenue","STIP Transfer from GEP"]
[null,null,null,null,""]
[null,"Total Return Investment Pool TRIP ",null,"Revenue","Total Return Investment Pool TRIP"]
[null,null,null,null,""]
[null,"Net Realized Unrealized Gain Loss on TRIP ",null,"Revenue","Net Realized Unrealized Gain Loss on TRIP"]
[null,null,null,null,""]
[null,"Realized Unrealized Gain Loss on TRIP Net ",null,"Revenue","Realized Unrealized Gain Loss on TRIP Net"]
[null,null,null,null,""]
["482100","TRIP Realized Gain or Loss ",null,"Revenue","TRIP Realized Gain or Loss"]
[null,null,null,null,""]
["482120","TRIP Unrealized Gain or Loss ",null,"Revenue","TRIP Unrealized Gain or Loss"]
[null,null,null,null,""]
[null,"TRIP Income ",null,"Revenue","TRIP Income"]
[null,null,null,null,""]
[null,"TRIP Inv Income ",null,"Revenue","TRIP Inv Income"]
[null,null,null,null,""]
["482110","TRIP Invest Income ",null,"Revenue","TRIP Invest Income"]
[null,null,null,null,""]
[null,"TRIP Distribution ",null,"Revenue","TRIP Distribution"]
[null,null,null,null,""]
[null,"TRIP Inv Distribution ",null,"Revenue","TRIP Inv Distribution"]
[null,null,null,null,""]
["742000","TRIP Investment Distribution ",null,"Revenue","TRIP Investment Distribution"]
[null,null,null,null,""]
["742001","TRIP Transfer to STIP ",null,"Revenue","TRIP Transfer to STIP"]
[null,null,null,null,""]
["742002","TRIP Transfer from STIP ",null,"Revenue","TRIP Transfer from STIP"]
[null,null,null,null,""]
["742003","TRIP Transfers to GEP ",null,"Revenue","TRIP Transfers to GEP"]
[null,null,null,null,""]
["742004","TRIP Transfer from GEP ",null,"Revenue","TRIP Transfer from GEP"]
[null,null,null,null,""]
[null,"Bluegold Pool BGP ",null,"Revenue","Bluegold Pool BGP"]
[null,null,null,null,""]
[null,"Net Realized Unrealized Gain Loss on BGP ",null,"Revenue","Net Realized Unrealized Gain Loss on BGP"]
[null,null,null,null,""]
[null,"Realized Unrealized Gain Loss on BGP Net ",null,"Revenue","Realized Unrealized Gain Loss on BGP Net"]
[null,null,null,null,""]
["482200","BGP Realized Gain or Loss ",null,"Revenue","BGP Realized Gain or Loss"]
[null,null,null,null,""]
["482220","BGP Unrealized Gain or Loss ",null,"Revenue","BGP Unrealized Gain or Loss"]
[null,null,null,null,""]
[null,"BGP Income ",null,"Revenue","BGP Income"]
[null,null,null,null,""]
[null,"BGP Inv Income ",null,"Revenue","BGP Inv Income"]
[null,null,null,null,""]
["482210","BGP Investment Income ",null,"Revenue","BGP Investment Income"]
[null,null,null,null,""]
[null,"BGP Distribution ",null,"Revenue","BGP Distribution"]
[null,null,null,null,""]
[null,"BGP Inv Distribution ",null,"Revenue","BGP Inv Distribution"]
[null,null,null,null,""]
["743000","BGP Investment Distribution ",null,"Revenue","BGP Investment Distribution"]
[null,null,null,null,""]
[null,"General Endowment Pool GEP ",null,"Revenue","General Endowment Pool GEP"]
[null,null,null,null,""]
[null,"Net Realized Unrealized Gain Loss on GEP ",null,"Revenue","Net Realized Unrealized Gain Loss on GEP"]
[null,null,null,null,""]
[null,"Realized Unrealized Gain Loss on GEP Net ",null,"Revenue","Realized Unrealized Gain Loss on GEP Net"]
[null,null,null,null,""]
["482300","GEP Realized Gain or Loss ",null,"Revenue","GEP Realized Gain or Loss"]
[null,null,null,null,""]
["482320","GEP Unrealized Gain or Loss ",null,"Revenue","GEP Unrealized Gain or Loss"]
[null,null,null,null,""]
[null,"GEP Income ",null,"Revenue","GEP Income"]
[null,null,null,null,""]
[null,"GEP Inv Income ",null,"Revenue","GEP Inv Income"]
[null,null,null,null,""]
["482310","GEP Investment Income ",null,"Revenue","GEP Investment Income"]
[null,null,null,null,""]
[null,"GEP Payout ",null,"Revenue","GEP Payout"]
[null,null,null,null,""]
[null,"GEP Payout Income ",null,"Revenue","GEP Payout Income"]
[null,null,null,null,""]
["744000","GEP Annual Payout Income ",null,"Revenue","GEP Annual Payout Income"]
[null,null,null,null,""]
[null,"GEP Cost Recovery ",null,"Revenue","GEP Cost Recovery"]
[null,null,null,null,""]
[null,"GEP Cost Recovery Fee ",null,"Revenue","GEP Cost Recovery Fee"]
[null,null,null,null,""]
["744100","UCOP GEP Cost Recovery Fee ",null,"Revenue","UCOP GEP Cost Recovery Fee"]
[null,null,null,null,""]
[null,"Securities Lending ",null,"Revenue","Securities Lending"]
[null,null,null,null,""]
[null,"Net Realized Unrealized Gain Loss on Securities Lending ",null,"Revenue","Net Realized Unrealized Gain Loss on Securities Lending"]
[null,null,null,null,""]
[null,"Realized Unrealized Gain Loss on Securities Lending Net ",null,"Revenue","Realized Unrealized Gain Loss on Securities Lending Net"]
[null,null,null,null,""]
["483000","Securities Lending Realized Gain or Loss ",null,"Revenue","Securities Lending Realized Gain or Loss"]
[null,null,null,null,""]
["483001","Securities Lending Unrealized Gain or Loss ",null,"Revenue","Securities Lending Unrealized Gain or Loss"]
[null,null,null,null,""]
[null,"Securities Lending Income ",null,"Revenue","Securities Lending Income"]
[null,null,null,null,""]
[null,"Securities Lending Inv Income ",null,"Revenue","Securities Lending Inv Income"]
[null,null,null,null,""]
["483010","Securities Lending Investment Income ",null,"Revenue","Securities Lending Investment Income"]
[null,null,null,null,""]
[null,"Securities Lending Fees Rebates C ",null,"Revenue","Securities Lending Fees Rebates C"]
[null,null,null,null,""]
[null,"Securities Lending Fees Rebates ",null,"Revenue","Securities Lending Fees Rebates"]
[null,null,null,null,""]
["483020","Securities Lending Fees ",null,"Revenue","Securities Lending Fees"]
[null,null,null,null,""]
["483021","Securities Lending Rebates ",null,"Revenue","Securities Lending Rebates"]
[null,null,null,null,""]
[null,"Other Investments ",null,"Revenue","Other Investments"]
[null,null,null,null,""]
[null,"Net Realized Unrealized Gain Loss on Other Investments ",null,"Revenue","Net Realized Unrealized Gain Loss on Other Investments"]
[null,null,null,null,""]
[null,"Realized Unrealized Gain Loss on Other Investments Net ",null,"Revenue","Realized Unrealized Gain Loss on Other Investments Net"]
[null,null,null,null,""]
["483100","Other Investments Realized Gain or Loss ",null,"Revenue","Other Investments Realized Gain or Loss"]
[null,null,null,null,""]
["483101","Other Investments Unrealized Gain or Loss ",null,"Revenue","Other Investments Unrealized Gain or Loss"]
[null,null,null,null,""]
[null,"Other Investment Income ",null,"Revenue","Other Investment Income"]
[null,null,null,null,""]
[null,"Other Investments Inv Income ",null,"Revenue","Other Investments Inv Income"]
[null,null,null,null,""]
["483110","Other Investments Investment Income ",null,"Revenue","Other Investments Investment Income"]
[null,null,null,null,""]
[null,"Interest from Contributions Receivable UCRSOPEB Only ",null,"Revenue","Interest from Contributions Receivable UCRSOPEB Only"]
[null,null,null,null,""]
[null,"Interest from Contributions Receivable UCRSOPEB Use Only ",null,"Revenue","Interest from Contributions Receivable UCRSOPEB Use Only"]
[null,null,null,null,""]
["483120","Interest from contributions receivable UCRSOPEB ",null,"Revenue","Interest from contributions receivable UCRSOPEB"]
[null,null,null,null,""]
[null,"Other Loan Repayments UCRSOPEB Use Only ",null,"Revenue","Other Loan Repayments UCRSOPEB Use Only"]
[null,null,null,null,""]
[null,"Other Loan Repayments UCRSOPEB Only ",null,"Revenue","Other Loan Repayments UCRSOPEB Only"]
[null,null,null,null,""]
["483130","Other Loan Repayments UCRSOPEB ",null,"Revenue","Other Loan Repayments UCRSOPEB"]
[null,null,null,null,""]
[null,"UCD Foundation Investment Income ",null,"Revenue","UCD Foundation Investment Income"]
[null,null,null,null,""]
[null,"UCDF Investment Interest Dividend Income ",null,"Revenue","UCDF Investment Interest Dividend Income"]
[null,null,null,null,""]
[null,"UCDF Investment Income ",null,"Revenue","UCDF Investment Income"]
[null,null,null,null,""]
["483F00","Interest Dividends UCDFEF ",null,"Revenue","Interest Dividends UCDFEF"]
[null,null,null,null,""]
["483F01","Interest Income STIP ",null,"Revenue","Interest Income STIP"]
[null,null,null,null,""]
["483F02","Interest Income STIP Non Pooled Investments ",null,"Revenue","Interest Income STIP Non Pooled Investments"]
[null,null,null,null,""]
["483F03","Interest Income HIP ",null,"Revenue","Interest Income HIP"]
[null,null,null,null,""]
["483F04","Investment Income Non Pooled Investments ",null,"Revenue","Investment Income Non Pooled Investments"]
[null,null,null,null,""]
["483F05","Interest Income Smith Barney Money Funds ",null,"Revenue","Interest Income Smith Barney Money Funds"]
[null,null,null,null,""]
["483F06","Interest Income Smith Barney Bond Funds ",null,"Revenue","Interest Income Smith Barney Bond Funds"]
[null,null,null,null,""]
["483F07","Interest Income Wells Fargo Bank ",null,"Revenue","Interest Income Wells Fargo Bank"]
[null,null,null,null,""]
["483F08","STIP Income UCD Account ",null,"Revenue","STIP Income UCD Account"]
[null,null,null,null,""]
["483F09","Interest Dividend Income Other ",null,"Revenue","Interest Dividend Income Other"]
[null,null,null,null,""]
["483F10","Security Lending Income ",null,"Revenue","Security Lending Income"]
[null,null,null,null,""]
["483F11","Security Lending Fees ",null,"Revenue","Security Lending Fees"]
[null,null,null,null,""]
[null,"UCDF Realized Gain Loss on Investments ",null,"Revenue","UCDF Realized Gain Loss on Investments"]
[null,null,null,null,""]
[null,"UCDF Investment Realized Gain Loss ",null,"Revenue","UCDF Investment Realized Gain Loss"]
[null,null,null,null,""]
["484F00","Realized Gain Loss Sale of UCDFEF ",null,"Revenue","Realized Gain Loss Sale of UCDFEF"]
[null,null,null,null,""]
["484F01","Realized Gain Loss GIK Securities Bonds ",null,"Revenue","Realized Gain Loss GIK Securities Bonds"]
[null,null,null,null,""]
["484F02","Realized Gain Loss GIK Real Estate ",null,"Revenue","Realized Gain Loss GIK Real Estate"]
[null,null,null,null,""]
["484F03","Realized Gain Loss GIK Other ",null,"Revenue","Realized Gain Loss GIK Other"]
[null,null,null,null,""]
["484F04","Realized Gain Loss HIP ",null,"Revenue","Realized Gain Loss HIP"]
[null,null,null,null,""]
["484F05","Realized Gain Loss OP Non pooled investments ",null,"Revenue","Realized Gain Loss OP Non pooled investments"]
[null,null,null,null,""]
["484F06","Realized Gain Loss Smith Barney ",null,"Revenue","Realized Gain Loss Smith Barney"]
[null,null,null,null,""]
["484F07","Realized Gain Loss SSGA Trusts ",null,"Revenue","Realized Gain Loss SSGA Trusts"]
[null,null,null,null,""]
[null,"Unrealized Appreciation Depr on Investments ",null,"Revenue","Unrealized Appreciation Depr on Investments"]
[null,null,null,null,""]
[null,"Unrealized Appreciation Depr on Investment ",null,"Revenue","Unrealized Appreciation Depr on Investment"]
[null,null,null,null,""]
["485F00","UCDFEF Unrealized Increase Decrease in Fair Value ",null,"Revenue","UCDFEF Unrealized Increase Decrease in Fair Value"]
[null,null,null,null,""]
["485F01","HIP Unrealized Net Increase Decrease in Fair Value ",null,"Revenue","HIP Unrealized Net Increase Decrease in Fair Value"]
[null,null,null,null,""]
["485F02","SSGA Unrealized Net Increase Decrease in Fair Value ",null,"Revenue","SSGA Unrealized Net Increase Decrease in Fair Value"]
[null,null,null,null,""]
["485F03","Other Non pooled Unrealized Increase Decrease in Fair Value ",null,"Revenue","Other Non pooled Unrealized Increase Decrease in Fair Value"]
[null,null,null,null,""]
["485F04","3rd Party Trusts Unrealized increase Decrease in Fair Value ",null,"Revenue","3rd Party Trusts Unrealized increase Decrease in Fair Value"]
[null,null,null,null,""]
["485F05","Insure Policies Unrealized Net Increase Decrease in Fair Value ",null,"Revenue","Insure Policies Unrealized Net Increase Decrease in Fair Value"]
[null,null,null,null,""]
["485F06","Real Estate Unrealized Net Increase Decrease in Fair Value ",null,"Revenue","Real Estate Unrealized Net Increase Decrease in Fair Value"]
[null,null,null,null,""]
[null,"Change in Value of Annuity Life Income Liabilities C ",null,"Revenue","Change in Value of Annuity Life Income Liabilities C"]
[null,null,null,null,""]
[null,"Change in Value of Annuity Life Income Liability ",null,"Revenue","Change in Value of Annuity Life Income Liability"]
[null,null,null,null,""]
["486F00","Change in Value of Annuity Life Income Liabilities ",null,"Revenue","Change in Value of Annuity Life Income Liabilities"]
[null,null,null,null,""]
["486F01","Clearing Acct for Trust Liabilities ",null,"Revenue","Clearing Acct for Trust Liabilities"]
[null,null,null,null,""]
["486F02","Trust Payments Taxes ",null,"Revenue","Trust Payments Taxes"]
[null,null,null,null,""]
["486F03","Trust Fees ",null,"Revenue","Trust Fees"]
[null,null,null,null,""]
["486F04","Trust Income Earned ",null,"Revenue","Trust Income Earned"]
[null,null,null,null,""]
["486F05","Trust Gifts ",null,"Revenue","Trust Gifts"]
[null,null,null,null,""]
[null,"Gain Loss on Disposal of Capital Asset ",null,"Revenue","Gain Loss on Disposal of Capital Asset"]
[null,null,null,null,""]
[null,"Gain or Loss on Disposal of Capital Asset ",null,"Revenue","Gain or Loss on Disposal of Capital Asset"]
[null,null,null,null,""]
[null,"Gains Losses on Disposal of Capital Asset ",null,"Revenue","Gains Losses on Disposal of Capital Asset"]
[null,null,null,null,""]
[null,"Proceeds from Sale of Capital Assets CF ",null,"Revenue","Proceeds from Sale of Capital Assets CF"]
[null,null,null,null,""]
["484000","Proceeds from Sales of Capital Assets ",null,"Revenue","Proceeds from Sales of Capital Assets"]
[null,null,null,null,""]
["484001","Fix Asset Trade In ",null,"Revenue","Fix Asset Trade In"]
[null,null,null,null,""]
[null,"Disposal of Original Cost Land ",null,"Revenue","Disposal of Original Cost Land"]
[null,null,null,null,""]
["484010","Disposals of Original Cost Land ",null,"Revenue","Disposals of Original Cost Land"]
[null,null,null,null,""]
[null,"Disposal of Original Cost Land Improvements Parking Lot Improvements ",null,"Revenue","Disposal of Original Cost Land Improvements Parking Lot Improvements"]
[null,null,null,null,""]
["484020","Disposals of Original Cost Land Improvements Parking Lot Improvements ",null,"Revenue","Disposals of Original Cost Land Improvements Parking Lot Improvements"]
[null,null,null,null,""]
[null,"Disposal of Original Cost Land Improvements Other Land Improvements ",null,"Revenue","Disposal of Original Cost Land Improvements Other Land Improvements"]
[null,null,null,null,""]
["484030","Disposals of Original Cost Land Improvements Other Land Improvements ",null,"Revenue","Disposals of Original Cost Land Improvements Other Land Improvements"]
[null,null,null,null,""]
[null,"Disposal of Original Cost Infrastructure D ",null,"Revenue","Disposal of Original Cost Infrastructure D"]
[null,null,null,null,""]
["484040","Disposal of Original Cost Infrastructure ",null,"Revenue","Disposal of Original Cost Infrastructure"]
[null,null,null,null,""]
[null,"Disposal of Original Cost Building Improvements Service Concession Arrangements D ",null,"Revenue","Disposal of Original Cost Building Improvements Service Concession Arrangements D"]
[null,null,null,null,""]
["484050","Disposal of Original Cost Building Improvements Service Concession Arrangements ",null,"Revenue","Disposal of Original Cost Building Improvements Service Concession Arrangements"]
[null,null,null,null,""]
[null,"Disposal of Original Cost Building Improvements Student Housing Facilities ",null,"Revenue","Disposal of Original Cost Building Improvements Student Housing Facilities"]
[null,null,null,null,""]
["484060","Disposals of Original Cost Building Improvements Student Housing Facilities ",null,"Revenue","Disposals of Original Cost Building Improvements Student Housing Facilities"]
[null,null,null,null,""]
[null,"Disposal of Original Cost Building Improvements Parking Structures D ",null,"Revenue","Disposal of Original Cost Building Improvements Parking Structures D"]
[null,null,null,null,""]
["484070","Disposal of Original Cost Building Improvements Parking Structures ",null,"Revenue","Disposal of Original Cost Building Improvements Parking Structures"]
[null,null,null,null,""]
[null,"Disposal of Original Cost Building Improvements Leasehold Improvements ",null,"Revenue","Disposal of Original Cost Building Improvements Leasehold Improvements"]
[null,null,null,null,""]
["484080","Disposals of Original Cost Buildings Improvements Leasehold Improvements ",null,"Revenue","Disposals of Original Cost Buildings Improvements Leasehold Improvements"]
[null,null,null,null,""]
[null,"Disposal of Original Cost Building Improvements Other ",null,"Revenue","Disposal of Original Cost Building Improvements Other"]
[null,null,null,null,""]
["484090","Disposals of Original Cost Buildings Improvements Other ",null,"Revenue","Disposals of Original Cost Buildings Improvements Other"]
[null,null,null,null,""]
[null,"Disposal of Original Cost Equipment ",null,"Revenue","Disposal of Original Cost Equipment"]
[null,null,null,null,""]
["484100","Disposals of Original Cost Equipment ",null,"Revenue","Disposals of Original Cost Equipment"]
[null,null,null,null,""]
["484101","Disposal of Original Cost UCDMC Only Furniture and Equipment ",null,"Revenue","Disposal of Original Cost UCDMC Only Furniture and Equipment"]
[null,null,null,null,""]
[null,"Disposal of Original Cost Software Greater Than 5M ",null,"Revenue","Disposal of Original Cost Software Greater Than 5M"]
[null,null,null,null,""]
["484110","Disposals of Original Cost Software Greater Than 5M ",null,"Revenue","Disposals of Original Cost Software Greater Than 5M"]
[null,null,null,null,""]
[null,"Disposal of Original Cost Software Less Than or Equal5M ",null,"Revenue","Disposal of Original Cost Software Less Than or Equal5M"]
[null,null,null,null,""]
["484120","Disposals of Original Cost Software Less Than or Equal to 5M ",null,"Revenue","Disposals of Original Cost Software Less Than or Equal to 5M"]
[null,null,null,null,""]
[null,"Disposal of Original Cost Intangibles ",null,"Revenue","Disposal of Original Cost Intangibles"]
[null,null,null,null,""]
["484130","Disposals of Original Cost Intangibles ",null,"Revenue","Disposals of Original Cost Intangibles"]
[null,null,null,null,""]
[null,"Disposal of Original Cost Libraries Collections ",null,"Revenue","Disposal of Original Cost Libraries Collections"]
[null,null,null,null,""]
["484140","Disposals of Original Cost Libraries Collections ",null,"Revenue","Disposals of Original Cost Libraries Collections"]
[null,null,null,null,""]
[null,"Disposal of Original Cost Special Collections ",null,"Revenue","Disposal of Original Cost Special Collections"]
[null,null,null,null,""]
["484150","Disposals of Original Cost Special Collections ",null,"Revenue","Disposals of Original Cost Special Collections"]
[null,null,null,null,""]
[null,"Disposal of Original Cost Construction in Progress ",null,"Revenue","Disposal of Original Cost Construction in Progress"]
[null,null,null,null,""]
["484160","Disposals of Original Cost Construction in Progress CIP ",null,"Revenue","Disposals of Original Cost Construction in Progress CIP"]
[null,null,null,null,""]
[null,"Disposal of Original Cost General Improvements ",null,"Revenue","Disposal of Original Cost General Improvements"]
[null,null,null,null,""]
["484170","Disposals of Original Cost General Improvements ",null,"Revenue","Disposals of Original Cost General Improvements"]
[null,null,null,null,""]
[null,"Disposal of Accum Depr Land Improvements Parking Lot Improvements ",null,"Revenue","Disposal of Accum Depr Land Improvements Parking Lot Improvements"]
[null,null,null,null,""]
["484200","Disposal of Accum Depr Parking Lot Improvements ",null,"Revenue","Disposal of Accum Depr Parking Lot Improvements"]
[null,null,null,null,""]
[null,"Disposal of Accum Depr Land Improvements Other Land Improvements ",null,"Revenue","Disposal of Accum Depr Land Improvements Other Land Improvements"]
[null,null,null,null,""]
["484210","Disposal of Accum Depreciation Other Land Improvements ",null,"Revenue","Disposal of Accum Depreciation Other Land Improvements"]
[null,null,null,null,""]
[null,"Disposal of Accum Depreciation Infrastructure ",null,"Revenue","Disposal of Accum Depreciation Infrastructure"]
[null,null,null,null,""]
["484220","Disposal of Accum Depr Infrastructure ",null,"Revenue","Disposal of Accum Depr Infrastructure"]
[null,null,null,null,""]
[null,"Disposal of Accum Depr Building Improvements Service Concession Arrangements ",null,"Revenue","Disposal of Accum Depr Building Improvements Service Concession Arrangements"]
[null,null,null,null,""]
["484230","Disposal of Accum Depreciation Building Improvements Service Concession Arrangements ",null,"Revenue","Disposal of Accum Depreciation Building Improvements Service Concession Arrangements"]
[null,null,null,null,""]
[null,"Disposal of Accum Depr Bulding and Improvements Student House ",null,"Revenue","Disposal of Accum Depr Bulding and Improvements Student House"]
[null,null,null,null,""]
["484240","Disposal of Accum Depr Building Improvements Student Housing ",null,"Revenue","Disposal of Accum Depr Building Improvements Student Housing"]
[null,null,null,null,""]
[null,"Disposal of Accum Depr Building Improvements Parking Structure ",null,"Revenue","Disposal of Accum Depr Building Improvements Parking Structure"]
[null,null,null,null,""]
["484250","Disposal of Accum Depr Building Improvements Parking ",null,"Revenue","Disposal of Accum Depr Building Improvements Parking"]
[null,null,null,null,""]
[null,"Disposal of Accum Depr Building Improvements Leasehold Improvements ",null,"Revenue","Disposal of Accum Depr Building Improvements Leasehold Improvements"]
[null,null,null,null,""]
["484260","Disposal of Accum Depr Leasehold Improvements ",null,"Revenue","Disposal of Accum Depr Leasehold Improvements"]
[null,null,null,null,""]
[null,"Disposal of Accum Depr Building Improvements Other D ",null,"Revenue","Disposal of Accum Depr Building Improvements Other D"]
[null,null,null,null,""]
["484270","Disposal of Accum Depr Building Improvements Other ",null,"Revenue","Disposal of Accum Depr Building Improvements Other"]
[null,null,null,null,""]
[null,"Disposal of Accum Depreciation Equipment ",null,"Revenue","Disposal of Accum Depreciation Equipment"]
[null,null,null,null,""]
["484280","Disposal of Accum Depr Equipment ",null,"Revenue","Disposal of Accum Depr Equipment"]
[null,null,null,null,""]
["484281","Disposal of Accum Depr UCDMC Only Furniture and Equipment ",null,"Revenue","Disposal of Accum Depr UCDMC Only Furniture and Equipment"]
[null,null,null,null,""]
[null,"Disposal of Accum Depr Software Greater Than 5M D ",null,"Revenue","Disposal of Accum Depr Software Greater Than 5M D"]
[null,null,null,null,""]
["484290","Disposal of Accum Depr Software Greater Than 5M ",null,"Revenue","Disposal of Accum Depr Software Greater Than 5M"]
[null,null,null,null,""]
[null,"Disposal of Accum Depr Software GreaterThan 5M ",null,"Revenue","Disposal of Accum Depr Software GreaterThan 5M"]
[null,null,null,null,""]
["484300","Disposal of Accum Depr Software Less Than or Equal5M ",null,"Revenue","Disposal of Accum Depr Software Less Than or Equal5M"]
[null,null,null,null,""]
[null,"Disposal of Accum Depreciation Intangibles ",null,"Revenue","Disposal of Accum Depreciation Intangibles"]
[null,null,null,null,""]
["484310","Disposal of Accum Depr Intangibles ",null,"Revenue","Disposal of Accum Depr Intangibles"]
[null,null,null,null,""]
[null,"Disposal of Accum Depr Library Collections D ",null,"Revenue","Disposal of Accum Depr Library Collections D"]
[null,null,null,null,""]
["484320","Disposal of Accum Depr Library Collections ",null,"Revenue","Disposal of Accum Depr Library Collections"]
[null,null,null,null,""]
[null,"Disposal of Accum Depr General Improvements ",null,"Revenue","Disposal of Accum Depr General Improvements"]
[null,null,null,null,""]
["484330","Disposal of Accum Depr General Improvement ",null,"Revenue","Disposal of Accum Depr General Improvement"]
[null,null,null,null,""]
[null,"Disp of original cost intangibles subscription asset SBITA on modification return term D ",null,"Revenue","Disp of original cost intangibles subscription asset SBITA on modification return term D"]
[null,null,null,null,""]
["484400","Disp of original cost intangibles subscription asset SBITA on modification return term ",null,"Revenue","Disp of original cost intangibles subscription asset SBITA on modification return term"]
[null,null,null,null,""]
[null,"Disposal of accum amort intangibles subscription asset SBITA on modification return term D ",null,"Revenue","Disposal of accum amort intangibles subscription asset SBITA on modification return term D"]
[null,null,null,null,""]
["484410","Disposal of accum amort intangibles subscription asset SBITA on modification return term ",null,"Revenue","Disposal of accum amort intangibles subscription asset SBITA on modification return term"]
[null,null,null,null,""]
[null,"Disposal of Original Cost Intangibles Finance Lease ROU on Buyout Land ",null,"Revenue","Disposal of Original Cost Intangibles Finance Lease ROU on Buyout Land"]
[null,null,null,null,""]
["484600","Disposal Original Cost Intangibles Finance Lease ROU on Buyout Land ",null,"Revenue","Disposal Original Cost Intangibles Finance Lease ROU on Buyout Land"]
[null,null,null,null,""]
[null,"Disposal Original Cost Intangibles Finance Lease ROU on Buyout Building Improvements D ",null,"Revenue","Disposal Original Cost Intangibles Finance Lease ROU on Buyout Building Improvements D"]
[null,null,null,null,""]
["484610","Disposal Original Cost Intangibles Finance Lease ROU on Buyout Building Improvements ",null,"Revenue","Disposal Original Cost Intangibles Finance Lease ROU on Buyout Building Improvements"]
[null,null,null,null,""]
[null,"Disposal of Original Cost Intangibles Finance Lease ROU on Buyout Equipment ",null,"Revenue","Disposal of Original Cost Intangibles Finance Lease ROU on Buyout Equipment"]
[null,null,null,null,""]
["484620","Disposal Original Cost Intangibles Finance Lease ROU on Buyout Equipment ",null,"Revenue","Disposal Original Cost Intangibles Finance Lease ROU on Buyout Equipment"]
[null,null,null,null,""]
[null,"Disposal of Accum Amortization Intangibles Finance Lease ROU on Buyout Land D ",null,"Revenue","Disposal of Accum Amortization Intangibles Finance Lease ROU on Buyout Land D"]
[null,null,null,null,""]
["484650","Disposal of Accum Amortization Intangibles Finance Lease ROU on Buyout Land ",null,"Revenue","Disposal of Accum Amortization Intangibles Finance Lease ROU on Buyout Land"]
[null,null,null,null,""]
[null,"Disposal Accum Amortization Intangibles Finance Lease ROU Buyout Bldgs Improvments D ",null,"Revenue","Disposal Accum Amortization Intangibles Finance Lease ROU Buyout Bldgs Improvments D"]
[null,null,null,null,""]
["484660","Disposal Accum Amortization Intangibles Finance Lease ROU Buyout Bldgs Improvements ",null,"Revenue","Disposal Accum Amortization Intangibles Finance Lease ROU Buyout Bldgs Improvements"]
[null,null,null,null,""]
[null,"Disposal of Accum Amort Intangibles Finance Lease ROU on Buyout Equipment ",null,"Revenue","Disposal of Accum Amort Intangibles Finance Lease ROU on Buyout Equipment"]
[null,null,null,null,""]
["484670","Disposal Accum Amort Intangibles Finance Lease ROU on Buyout Equipment ",null,"Revenue","Disposal Accum Amort Intangibles Finance Lease ROU on Buyout Equipment"]
[null,null,null,null,""]
[null,"Disposal of Original Cost Intangibles Finance Lease ROU on Return Land ",null,"Revenue","Disposal of Original Cost Intangibles Finance Lease ROU on Return Land"]
[null,null,null,null,""]
["484700","Disposal Original Cost Intangibles Finance Lease ROU on Return Land ",null,"Revenue","Disposal Original Cost Intangibles Finance Lease ROU on Return Land"]
[null,null,null,null,""]
[null,"Disposal Original Cost Intangibles Finance Lease ROU Return Building Improvements D ",null,"Revenue","Disposal Original Cost Intangibles Finance Lease ROU Return Building Improvements D"]
[null,null,null,null,""]
["484710","Disposal Original Cost Intangibles Finance Lease ROU Return Building Improvements ",null,"Revenue","Disposal Original Cost Intangibles Finance Lease ROU Return Building Improvements"]
[null,null,null,null,""]
[null,"Disposal of Original Cost Intangibles Finance Lease ROU on Return Equipment D ",null,"Revenue","Disposal of Original Cost Intangibles Finance Lease ROU on Return Equipment D"]
[null,null,null,null,""]
["484720","Disposal of Original Cost Intangibles Finance Lease ROU on Return Equipment ",null,"Revenue","Disposal of Original Cost Intangibles Finance Lease ROU on Return Equipment"]
[null,null,null,null,""]
[null,"Disposal of Accum Amort ntangibles Finance Lease ROU on Return Land ",null,"Revenue","Disposal of Accum Amort ntangibles Finance Lease ROU on Return Land"]
[null,null,null,null,""]
["484750","Disposal Accum Amort Intangibles Finance Lease ROU on Return Land ",null,"Revenue","Disposal Accum Amort Intangibles Finance Lease ROU on Return Land"]
[null,null,null,null,""]
[null,"Disposal of Accum Amort Intangibles Finance Lease Return Building Improvemnts D ",null,"Revenue","Disposal of Accum Amort Intangibles Finance Lease Return Building Improvemnts D"]
[null,null,null,null,""]
["484760","Disposal of Accum Amort Intangibles Finance Lease Return Building Improvements ",null,"Revenue","Disposal of Accum Amort Intangibles Finance Lease Return Building Improvements"]
[null,null,null,null,""]
[null,"Disposal of Accum Amort Intangibles Finance Lease ROU on Return Equipment D ",null,"Revenue","Disposal of Accum Amort Intangibles Finance Lease ROU on Return Equipment D"]
[null,null,null,null,""]
["484770","Disposal of Accum Amort Intangibles Finance Lease ROU on Return Equipment ",null,"Revenue","Disposal of Accum Amort Intangibles Finance Lease ROU on Return Equipment"]
[null,null,null,null,""]
[null,"Disposal of Original Cost Intangibles Finance Lease ROU on Modification Land D ",null,"Revenue","Disposal of Original Cost Intangibles Finance Lease ROU on Modification Land D"]
[null,null,null,null,""]
["484800","Disposal of Original Cost Intangibles Finance Lease ROU on Modification Land ",null,"Revenue","Disposal of Original Cost Intangibles Finance Lease ROU on Modification Land"]
[null,null,null,null,""]
[null,"Disposal of Original Cost Intangibles Finance Lease Modification Building Improvments D ",null,"Revenue","Disposal of Original Cost Intangibles Finance Lease Modification Building Improvments D"]
[null,null,null,null,""]
["484810","Disposal of Original Cost Intangibles Finance Lease Modification Building Improvments ",null,"Revenue","Disposal of Original Cost Intangibles Finance Lease Modification Building Improvments"]
[null,null,null,null,""]
[null,"Disposal of Original Cost Intangibles Finance Lease ROU on Modification Equipment D ",null,"Revenue","Disposal of Original Cost Intangibles Finance Lease ROU on Modification Equipment D"]
[null,null,null,null,""]
["484820","Disposal of Original Cost Intangibles Finance Lease ROU on Modification Equipment ",null,"Revenue","Disposal of Original Cost Intangibles Finance Lease ROU on Modification Equipment"]
[null,null,null,null,""]
[null,"Disposal of Accum Amort Intangibles Finance Lease ROU on Modification Land D ",null,"Revenue","Disposal of Accum Amort Intangibles Finance Lease ROU on Modification Land D"]
[null,null,null,null,""]
["484850","Disposal of Accum Amort Intangibles Finance Lease ROU on Modification Land ",null,"Revenue","Disposal of Accum Amort Intangibles Finance Lease ROU on Modification Land"]
[null,null,null,null,""]
[null,"Disposal Accum Amort Intangibles Finance Lease Modification Building Improvements D ",null,"Revenue","Disposal Accum Amort Intangibles Finance Lease Modification Building Improvements D"]
[null,null,null,null,""]
["484860","Disposal Accum Amort Intangibles Finance Lease Modification Building Improvements ",null,"Revenue","Disposal Accum Amort Intangibles Finance Lease Modification Building Improvements"]
[null,null,null,null,""]
[null,"Disposal of Accum Amort Intangibles Finance Lease ROU on Modification Equipment D ",null,"Revenue","Disposal of Accum Amort Intangibles Finance Lease ROU on Modification Equipment D"]
[null,null,null,null,""]
["484870","Disposal of Accum Amort Intangibles Finance Lease ROU on Modification Equipment ",null,"Revenue","Disposal of Accum Amort Intangibles Finance Lease ROU on Modification Equipment"]
[null,null,null,null,""]
[null,"Disposal of Original Cost Intangibles Finance Lease ROU on Termination Land D ",null,"Revenue","Disposal of Original Cost Intangibles Finance Lease ROU on Termination Land D"]
[null,null,null,null,""]
["484900","Disposal of Original Cost Intangibles Finance Lease ROU on Termination Land ",null,"Revenue","Disposal of Original Cost Intangibles Finance Lease ROU on Termination Land"]
[null,null,null,null,""]
[null,"Disposal of Original Cost Intangibles Finance Lease Termination Building Improvements D ",null,"Revenue","Disposal of Original Cost Intangibles Finance Lease Termination Building Improvements D"]
[null,null,null,null,""]
["484910","Disposal of Original Cost Intangibles Finance Lease Termination Building Improvements ",null,"Revenue","Disposal of Original Cost Intangibles Finance Lease Termination Building Improvements"]
[null,null,null,null,""]
[null,"Disposal of Original Cost Intangibles Finance Lease on Termination Equipment D ",null,"Revenue","Disposal of Original Cost Intangibles Finance Lease on Termination Equipment D"]
[null,null,null,null,""]
["484920","Disposal of Original Cost Intangibles Finance Lease on Termination Equipment ",null,"Revenue","Disposal of Original Cost Intangibles Finance Lease on Termination Equipment"]
[null,null,null,null,""]
[null,"Disposal of Accum Amort Intangibles Finance Lease ROU on Termination Land D ",null,"Revenue","Disposal of Accum Amort Intangibles Finance Lease ROU on Termination Land D"]
[null,null,null,null,""]
["484950","Disposal of Accum Amort Intangibles Finance Lease ROU on Termination Land ",null,"Revenue","Disposal of Accum Amort Intangibles Finance Lease ROU on Termination Land"]
[null,null,null,null,""]
[null,"Disposal Accum Amort Intangibles Finance Lease Termination Building Improvements D ",null,"Revenue","Disposal Accum Amort Intangibles Finance Lease Termination Building Improvements D"]
[null,null,null,null,""]
["484960","Disposal Accum Amort Intangibles Finance Lease Termination Building Improvements ",null,"Revenue","Disposal Accum Amort Intangibles Finance Lease Termination Building Improvements"]
[null,null,null,null,""]
[null,"Disposal of Accum Amort Intangibles Finance Lease on Termination Equipment D ",null,"Revenue","Disposal of Accum Amort Intangibles Finance Lease on Termination Equipment D"]
[null,null,null,null,""]
["484970","Disposal of Accum Amort Intangibles Finance Lease on Termination Equipment ",null,"Revenue","Disposal of Accum Amort Intangibles Finance Lease on Termination Equipment"]
[null,null,null,null,""]
[null,"Debt Extinguishment Cost D ",null,"Revenue","Debt Extinguishment Cost D"]
[null,null,null,null,""]
["484980","Debt Extinguishment Cost ",null,"Revenue","Debt Extinguishment Cost"]
[null,null,null,null,""]
[null,"Return or Early Termination Fee D ",null,"Revenue","Return or Early Termination Fee D"]
[null,null,null,null,""]
["484990","Return or Early Termination Fee ",null,"Revenue","Return or Early Termination Fee"]
[null,null,null,null,""]
[null,"Impairment of Asset Recovery ",null,"Revenue","Impairment of Asset Recovery"]
[null,null,null,null,""]
[null,"Impairment of Assets Recovery ",null,"Revenue","Impairment of Assets Recovery"]
[null,null,null,null,""]
[null,"Impairment of Assets Recovery C ",null,"Revenue","Impairment of Assets Recovery C"]
[null,null,null,null,""]
[null,"Impairment of Asset Recovery D ",null,"Revenue","Impairment of Asset Recovery D"]
[null,null,null,null,""]
["484500","Recovery from Impairment of Assets ",null,"Revenue","Recovery from Impairment of Assets"]
[null,null,null,null,""]
[null,"Additional Non Operating Revenue Sources A ",null,"Revenue","Additional Non Operating Revenue Sources A"]
[null,null,null,null,""]
[null,"Additional Non Operating Revenue Sources ",null,"Revenue","Additional Non Operating Revenue Sources"]
[null,null,null,null,""]
[null,"Additional Nonoperating Revenue C ",null,"Revenue","Additional Nonoperating Revenue C"]
[null,null,null,null,""]
[null,"Additional Nonoperating Revenue ",null,"Revenue","Additional Nonoperating Revenue"]
[null,null,null,null,""]
["485000","Unclaimed Property Transfer Revenue ",null,"Revenue","Unclaimed Property Transfer Revenue"]
[null,null,null,null,""]
["485001","Sale of Used Excess Inventory ",null,"Revenue","Sale of Used Excess Inventory"]
[null,null,null,null,""]
["485002","Other Misc Additions ",null,"Revenue","Other Misc Additions"]
[null,null,null,null,""]
["485003","Other Misc Deductions ",null,"Revenue","Other Misc Deductions"]
[null,null,null,null,""]
["485009","Additional Nonoperating Revenue Source ",null,"Revenue","Additional Nonoperating Revenue Source"]
[null,null,null,null,""]
[null,"Federal Loans Received ",null,"Revenue","Federal Loans Received"]
[null,null,null,null,""]
["485010","Federal Loan Received ",null,"Revenue","Federal Loan Received"]
[null,null,null,null,""]
["485011","Fed Direct Loan Funds ",null,"Revenue","Fed Direct Loan Funds"]
[null,null,null,null,""]
[null,"Federal Loans Disbursed ",null,"Revenue","Federal Loans Disbursed"]
[null,null,null,null,""]
["485020","Federal Loan Disbursed ",null,"Revenue","Federal Loan Disbursed"]
[null,null,null,null,""]
[null,"Joint Venture Income Non Operating C ",null,"Revenue","Joint Venture Income Non Operating C"]
[null,null,null,null,""]
[null,"Joint Venture Income Non Operating D ",null,"Revenue","Joint Venture Income Non Operating D"]
[null,null,null,null,""]
["485100","Joint Venture Non Operating Income ",null,"Revenue","Joint Venture Non Operating Income"]
[null,null,null,null,""]
[null,"Changes in Split Interest Agreements ",null,"Revenue","Changes in Split Interest Agreements"]
[null,null,null,null,""]
[null,"Changes in Split Interest Agreements Contract D ",null,"Revenue","Changes in Split Interest Agreements Contract D"]
[null,null,null,null,""]
["485200","Changes in Split Interest Agreements Contract ",null,"Revenue","Changes in Split Interest Agreements Contract"]
[null,null,null,null,""]
[null,"Insurance Recoveries C ",null,"Revenue","Insurance Recoveries C"]
[null,null,null,null,""]
[null,"Insurance Recoveries incl GAELBSAS ",null,"Revenue","Insurance Recoveries incl GAELBSAS"]
[null,null,null,null,""]
["485300","Insurance Recoveries ",null,"Revenue","Insurance Recoveries"]
[null,null,null,null,""]
[null,"Royalty Trademark Income ",null,"Revenue","Royalty Trademark Income"]
[null,null,null,null,""]
[null,"Royalty Trademark Income Revenue ",null,"Revenue","Royalty Trademark Income Revenue"]
[null,null,null,null,""]
["485400","Royalty Revenue Income ",null,"Revenue","Royalty Revenue Income"]
[null,null,null,null,""]
["485410","Trademark Revenue Income ",null,"Revenue","Trademark Revenue Income"]
[null,null,null,null,""]
[null,"Patent Income ",null,"Revenue","Patent Income"]
[null,null,null,null,""]
[null,"Patent Income Revenue ",null,"Revenue","Patent Income Revenue"]
[null,null,null,null,""]
["485500","Patent Revenue Income ",null,"Revenue","Patent Revenue Income"]
[null,null,null,null,""]
[null,"Lease Revenue ",null,"Revenue","Lease Revenue"]
[null,null,null,null,""]
[null,"Rental Income Fixed Included in Present Value ",null,"Revenue","Rental Income Fixed Included in Present Value"]
[null,null,null,null,""]
["486100","Rental Income Fixed Included in PV ",null,"Revenue","Rental Income Fixed Included in PV"]
[null,null,null,null,""]
[null,"Rental Income Variable Excluded from PV ",null,"Revenue","Rental Income Variable Excluded from PV"]
[null,null,null,null,""]
["486110","Rental Income Variable Exclude from PV ",null,"Revenue","Rental Income Variable Exclude from PV"]
[null,null,null,null,""]
[null,"Rental Income Short Term Leases Not GASB 87 ",null,"Revenue","Rental Income Short Term Leases Not GASB 87"]
[null,null,null,null,""]
["486120","Rental Income Short Term Leases GASB 87 ",null,"Revenue","Rental Income Short Term Leases GASB 87"]
[null,null,null,null,""]
[null,"Rental Income Fixed Clearing Reversal D ",null,"Revenue","Rental Income Fixed Clearing Reversal D"]
[null,null,null,null,""]
["486200","Rental Income Fixed Clearing Reversal ",null,"Revenue","Rental Income Fixed Clearing Reversal"]
[null,null,null,null,""]
[null,"Lease Revenue Income ",null,"Revenue","Lease Revenue Income"]
[null,null,null,null,""]
["486300","Lease Revenues and Income ",null,"Revenue","Lease Revenues and Income"]
[null,null,null,null,""]
[null,"Interest Income GASB 87 ",null,"Revenue","Interest Income GASB 87"]
[null,null,null,null,""]
["486400","GASB 87 Interest Income ",null,"Revenue","GASB 87 Interest Income"]
[null,null,null,null,""]
[null,"Residual Value Guarantee Revenue ",null,"Revenue","Residual Value Guarantee Revenue"]
[null,null,null,null,""]
["486910","Residual Value Guaranteed Revenue ",null,"Revenue","Residual Value Guaranteed Revenue"]
[null,null,null,null,""]
[null,"Lease Termination Revenue ",null,"Revenue","Lease Termination Revenue"]
[null,null,null,null,""]
["486920","Lease Termination Revenues ",null,"Revenue","Lease Termination Revenues"]
[null,null,null,null,""]
[null,"Patent Royalty Income Distribution ",null,"Revenue","Patent Royalty Income Distribution"]
[null,null,null,null,""]
[null,"PatentRoyalty Income Distribution ",null,"Revenue","PatentRoyalty Income Distribution"]
[null,null,null,null,""]
["745000","Patent Income Distributions ",null,"Revenue","Patent Income Distributions"]
[null,null,null,null,""]
["745010","Royalty Income Distributions ",null,"Revenue","Royalty Income Distributions"]
[null,null,null,null,""]
[null,"Other Changes In Net Position Disclosure Purposes No Systemwide NP Change ",null,"Revenue","Other Changes In Net Position Disclosure Purposes No Systemwide NP Change"]
[null,null,null,null,""]
[null,"Debt Service ",null,"Revenue","Debt Service"]
[null,null,null,null,""]
[null,"General Revenue Bonds GRB ",null,"Revenue","General Revenue Bonds GRB"]
[null,null,null,null,""]
[null,"GRB Debt Principal Received Cap Financing ",null,"Revenue","GRB Debt Principal Received Cap Financing"]
[null,null,null,null,""]
["810000","Gen Rev Bond Debt Principal Received Cap Financing ",null,"Revenue","Gen Rev Bond Debt Principal Received Cap Financing"]
[null,null,null,null,""]
[null,"GRB Debt Principal Received NonCap Financing ",null,"Revenue","GRB Debt Principal Received NonCap Financing"]
[null,null,null,null,""]
["810010","Gen Rev Bond Debt Principal Received NonCap Financing ",null,"Revenue","Gen Rev Bond Debt Principal Received NonCap Financing"]
[null,null,null,null,""]
[null,"GRB Bond PremiumDiscount ",null,"Revenue","GRB Bond PremiumDiscount"]
[null,null,null,null,""]
["810050","Gen Rev Bond Premium or Discount ",null,"Revenue","Gen Rev Bond Premium or Discount"]
[null,null,null,null,""]
[null,"GRB Debt Svc Payments Principal Scheduled Cap Financing ",null,"Revenue","GRB Debt Svc Payments Principal Scheduled Cap Financing"]
[null,null,null,null,""]
["810100","Gen Rev Bond Debt Svc Payments Principal Scheduled Cap Financing ",null,"Revenue","Gen Rev Bond Debt Svc Payments Principal Scheduled Cap Financing"]
[null,null,null,null,""]
[null,"GRB Debt Svc Payments Principal Scheduled NonCap Financing ",null,"Revenue","GRB Debt Svc Payments Principal Scheduled NonCap Financing"]
[null,null,null,null,""]
["810110","Gen Rev Bond Debt Svc Payments Principal Scheduled NonCap Financing ",null,"Revenue","Gen Rev Bond Debt Svc Payments Principal Scheduled NonCap Financing"]
[null,null,null,null,""]
[null,"GRB Debt Svc Payments Principal Refinancing Or Prepayment ",null,"Revenue","GRB Debt Svc Payments Principal Refinancing Or Prepayment"]
[null,null,null,null,""]
["810200","Gen Rev Bond Debt Svc Payments Principal Refinancing or Prepayment ",null,"Revenue","Gen Rev Bond Debt Svc Payments Principal Refinancing or Prepayment"]
[null,null,null,null,""]
[null,"Net Change In GRBs ",null,"Revenue","Net Change In GRBs"]
[null,null,null,null,""]
["810300","Net Change In General Revenue Bonds GRBs ",null,"Revenue","Net Change In General Revenue Bonds GRBs"]
[null,null,null,null,""]
[null,"Limited Project Revenue Bonds LPRB ",null,"Revenue","Limited Project Revenue Bonds LPRB"]
[null,null,null,null,""]
[null,"LPRB Debt Principal Received ",null,"Revenue","LPRB Debt Principal Received"]
[null,null,null,null,""]
["811000","Lmtd Proj Rev Bonds Debt Principal Received ",null,"Revenue","Lmtd Proj Rev Bonds Debt Principal Received"]
[null,null,null,null,""]
[null,"LPRB Bond PremiumDiscount ",null,"Revenue","LPRB Bond PremiumDiscount"]
[null,null,null,null,""]
["811050","Lmtd Proj Rev Bonds Premium or Discount ",null,"Revenue","Lmtd Proj Rev Bonds Premium or Discount"]
[null,null,null,null,""]
[null,"LPRB Debt Service Payments Principal Scheduled ",null,"Revenue","LPRB Debt Service Payments Principal Scheduled"]
[null,null,null,null,""]
["811100","Lmtd Proj Rev Bonds Debt service payments principal scheduled ",null,"Revenue","Lmtd Proj Rev Bonds Debt service payments principal scheduled"]
[null,null,null,null,""]
[null,"LPRB Debt Service Payments Principal Refinancing or Prepayment ",null,"Revenue","LPRB Debt Service Payments Principal Refinancing or Prepayment"]
[null,null,null,null,""]
["811200","Lmtd Proj Rev Bonds Debt Service Payments Principal Refinancing or Prepayment ",null,"Revenue","Lmtd Proj Rev Bonds Debt Service Payments Principal Refinancing or Prepayment"]
[null,null,null,null,""]
[null,"Net Change in LPRBs ",null,"Revenue","Net Change in LPRBs"]
[null,null,null,null,""]
["811300","Net Change in Lmtd Project Revenue Bonds ",null,"Revenue","Net Change in Lmtd Project Revenue Bonds"]
[null,null,null,null,""]
[null,"Med Center Pooled Revenue Bonds MCPRB ",null,"Revenue","Med Center Pooled Revenue Bonds MCPRB"]
[null,null,null,null,""]
[null,"MCPRB Debt Principal Received ",null,"Revenue","MCPRB Debt Principal Received"]
[null,null,null,null,""]
["812000","MC Pooled Rev Bonds Debt Principal Received ",null,"Revenue","MC Pooled Rev Bonds Debt Principal Received"]
[null,null,null,null,""]
[null,"MCPRB Bond PremiumDiscount ",null,"Revenue","MCPRB Bond PremiumDiscount"]
[null,null,null,null,""]
["812050","MC Pooled Rev Bond Premium or Discount ",null,"Revenue","MC Pooled Rev Bond Premium or Discount"]
[null,null,null,null,""]
[null,"MCPRB Debt Service Payments Principal Scheduled ",null,"Revenue","MCPRB Debt Service Payments Principal Scheduled"]
[null,null,null,null,""]
["812100","MCPRB Debt Service Payment Principal Scheduled ",null,"Revenue","MCPRB Debt Service Payment Principal Scheduled"]
[null,null,null,null,""]
[null,"MCPRB Debt Service Payments Principal Refinancing or Prepayment ",null,"Revenue","MCPRB Debt Service Payments Principal Refinancing or Prepayment"]
[null,null,null,null,""]
["812200","MCPRB Debt Service Payment Principal Refinancing or Prepayment ",null,"Revenue","MCPRB Debt Service Payment Principal Refinancing or Prepayment"]
[null,null,null,null,""]
[null,"Net change in MCPRBs ",null,"Revenue","Net change in MCPRBs"]
[null,null,null,null,""]
["812300","Net Change in MC Pooled Revenue Bonds ",null,"Revenue","Net Change in MC Pooled Revenue Bonds"]
[null,null,null,null,""]
[null,"Blended Component Revenue Bonds ",null,"Revenue","Blended Component Revenue Bonds"]
[null,null,null,null,""]
[null,"ThirdParty Debt Debt Principal Received ",null,"Revenue","ThirdParty Debt Debt Principal Received"]
[null,null,null,null,""]
["813000","ThirdParty Debt Principal Received ",null,"Revenue","ThirdParty Debt Principal Received"]
[null,null,null,null,""]
[null,"ThirdParty Debt Bond PremiumDiscount ",null,"Revenue","ThirdParty Debt Bond PremiumDiscount"]
[null,null,null,null,""]
["813050","ThirdParty Debt Bond Premium or Discount ",null,"Revenue","ThirdParty Debt Bond Premium or Discount"]
[null,null,null,null,""]
[null,"ThirdParty Debt Debt Service Payments Principal Scheduled ",null,"Revenue","ThirdParty Debt Debt Service Payments Principal Scheduled"]
[null,null,null,null,""]
["813100","ThirdParty Debt Service Payments Principal Scheduled ",null,"Revenue","ThirdParty Debt Service Payments Principal Scheduled"]
[null,null,null,null,""]
[null,"ThirdParty Debt Debt Service Payments Principal Refinancing or Prepayment ",null,"Revenue","ThirdParty Debt Debt Service Payments Principal Refinancing or Prepayment"]
[null,null,null,null,""]
["813200","Third Party Debt Service Payments Principal Refinancing or Prepayment ",null,"Revenue","Third Party Debt Service Payments Principal Refinancing or Prepayment"]
[null,null,null,null,""]
[null,"Net Change In ThirdParty Debt ",null,"Revenue","Net Change In ThirdParty Debt"]
[null,null,null,null,""]
["813300","Net Change In Third Party Debt Blended Component Bonds ",null,"Revenue","Net Change In Third Party Debt Blended Component Bonds"]
[null,null,null,null,""]
[null,"Financing Obligations ",null,"Revenue","Financing Obligations"]
[null,null,null,null,""]
[null,"Financing Obligations Debt Proceeds Received ",null,"Revenue","Financing Obligations Debt Proceeds Received"]
[null,null,null,null,""]
["814000","Financing Obligation Debt Proceeds Received ",null,"Revenue","Financing Obligation Debt Proceeds Received"]
[null,null,null,null,""]
[null,"Financing Obligations Debt Service Payments Principal Scheduled ",null,"Revenue","Financing Obligations Debt Service Payments Principal Scheduled"]
[null,null,null,null,""]
["814100","Financing Obligation Debt Service Payments Principal Scheduled ",null,"Revenue","Financing Obligation Debt Service Payments Principal Scheduled"]
[null,null,null,null,""]
[null,"Financing Obligations Debt Svc Payments Principal Refinancing or Prepayment ",null,"Revenue","Financing Obligations Debt Svc Payments Principal Refinancing or Prepayment"]
[null,null,null,null,""]
["814200","Financing Obligations Debt Service Payments Principal Refinancing or Prepayment ",null,"Revenue","Financing Obligations Debt Service Payments Principal Refinancing or Prepayment"]
[null,null,null,null,""]
[null,"Net Change In Financing Obligation ",null,"Revenue","Net Change In Financing Obligation"]
[null,null,null,null,""]
["814300","Net Change In Financing Obligations ",null,"Revenue","Net Change In Financing Obligations"]
[null,null,null,null,""]
[null,"Other University Borrowings ",null,"Revenue","Other University Borrowings"]
[null,null,null,null,""]
[null,"Other University Borrowings Debt Principal Received ",null,"Revenue","Other University Borrowings Debt Principal Received"]
[null,null,null,null,""]
["814500","Other University Borrowing Debt Principal Received ",null,"Revenue","Other University Borrowing Debt Principal Received"]
[null,null,null,null,""]
[null,"Other University Borrowings Debt Service Payments Principal Scheduled ",null,"Revenue","Other University Borrowings Debt Service Payments Principal Scheduled"]
[null,null,null,null,""]
["814510","Other University Borrowings Debt Service Payments Principal Sched ",null,"Revenue","Other University Borrowings Debt Service Payments Principal Sched"]
[null,null,null,null,""]
[null,"Other University Borrowings Debt Svc Paymnts Princpl Refinancing or Prepayment ",null,"Revenue","Other University Borrowings Debt Svc Paymnts Princpl Refinancing or Prepayment"]
[null,null,null,null,""]
["814520","Other University Borrowings Debt Service Payments Principal Refinancing or Prepayment ",null,"Revenue","Other University Borrowings Debt Service Payments Principal Refinancing or Prepayment"]
[null,null,null,null,""]
[null,"Net Change in Other Univeristy Borrowings ",null,"Revenue","Net Change in Other Univeristy Borrowings"]
[null,null,null,null,""]
["814530","Net Change in Othr Univeristy Borrowings ",null,"Revenue","Net Change in Othr Univeristy Borrowings"]
[null,null,null,null,""]
[null,"Finance Lease Obligations ",null,"Revenue","Finance Lease Obligations"]
[null,null,null,null,""]
[null,"Finance Lease ROU Debt Proceeds Received ",null,"Revenue","Finance Lease ROU Debt Proceeds Received"]
[null,null,null,null,""]
["814600","Finance Lease ROU Debt Proceed Received ",null,"Revenue","Finance Lease ROU Debt Proceed Received"]
[null,null,null,null,""]
[null,"Finance Lease ROU Debt Service Pymnts Principal Sched ",null,"Revenue","Finance Lease ROU Debt Service Pymnts Principal Sched"]
[null,null,null,null,""]
["814610","Finance Lease ROU Debt Service PaymentsPrincipal Scheduled ",null,"Revenue","Finance Lease ROU Debt Service PaymentsPrincipal Scheduled"]
[null,null,null,null,""]
[null,"Finance Lease ROU Debt Service PaymentsPrincipal RefiorPrepayment ",null,"Revenue","Finance Lease ROU Debt Service PaymentsPrincipal RefiorPrepayment"]
[null,null,null,null,""]
["814620","Finance Lease ROU Debt Serv PaymentsPrincipal RefiorPrepayment ",null,"Revenue","Finance Lease ROU Debt Serv PaymentsPrincipal RefiorPrepayment"]
[null,null,null,null,""]
[null,"Net Change in Finance Leases ",null,"Revenue","Net Change in Finance Leases"]
[null,null,null,null,""]
["814630","Net Changes in Finance Leases ",null,"Revenue","Net Changes in Finance Leases"]
[null,null,null,null,""]
[null,"SBITA ",null,"Revenue","SBITA"]
[null,null,null,null,""]
[null,"SBITA Debt proceeds received D ",null,"Revenue","SBITA Debt proceeds received D"]
[null,null,null,null,""]
["814700","SBITA Debt proceeds received ",null,"Revenue","SBITA Debt proceeds received"]
[null,null,null,null,""]
[null,"SBITA Debt Service Payments principal scheduled D ",null,"Revenue","SBITA Debt Service Payments principal scheduled D"]
[null,null,null,null,""]
["814710","SBITA Debt Service Payments principal scheduled ",null,"Revenue","SBITA Debt Service Payments principal scheduled"]
[null,null,null,null,""]
[null,"SBITA DSP Principal Refinancing or Prepayment D ",null,"Revenue","SBITA DSP Principal Refinancing or Prepayment D"]
[null,null,null,null,""]
["814720","SBITA DSP Principal Refinancing or Prepayment ",null,"Revenue","SBITA DSP Principal Refinancing or Prepayment"]
[null,null,null,null,""]
[null,"Net Change in SBITA D ",null,"Revenue","Net Change in SBITA D"]
[null,null,null,null,""]
["814730","Net Change in SBITA ",null,"Revenue","Net Change in SBITA"]
[null,null,null,null,""]
[null,"Commercial Paper ",null,"Revenue","Commercial Paper"]
[null,null,null,null,""]
[null,"Commercial Paper Debt Proceeds Received Capital ",null,"Revenue","Commercial Paper Debt Proceeds Received Capital"]
[null,null,null,null,""]
["815000","Commercial Paper Debt Proceed Received Capital ",null,"Revenue","Commercial Paper Debt Proceed Received Capital"]
[null,null,null,null,""]
[null,"Commercial Paper Debt Service Payments Principal Scheduled Capital ",null,"Revenue","Commercial Paper Debt Service Payments Principal Scheduled Capital"]
[null,null,null,null,""]
["815100","Commercial Paper Debt Service Payment Principal Scheduled Capital ",null,"Revenue","Commercial Paper Debt Service Payment Principal Scheduled Capital"]
[null,null,null,null,""]
[null,"Commercial Paper Debt Proceeds Received Noncapital ",null,"Revenue","Commercial Paper Debt Proceeds Received Noncapital"]
[null,null,null,null,""]
["815200","Commercial Paper Debt Proceed Received Noncapital ",null,"Revenue","Commercial Paper Debt Proceed Received Noncapital"]
[null,null,null,null,""]
[null,"Commercial Paper Debt Service Payments Principal Scheduled Noncapital ",null,"Revenue","Commercial Paper Debt Service Payments Principal Scheduled Noncapital"]
[null,null,null,null,""]
["815300","Commercial Paper Debt Service Payment Principal Scheduled Noncapital ",null,"Revenue","Commercial Paper Debt Service Payment Principal Scheduled Noncapital"]
[null,null,null,null,""]
[null,"Net Change In Commercial Paper Capital ",null,"Revenue","Net Change In Commercial Paper Capital"]
[null,null,null,null,""]
["815400","Net Change In Commercial Paper Borrowings Capital ",null,"Revenue","Net Change In Commercial Paper Borrowings Capital"]
[null,null,null,null,""]
[null,"Net Change In Commercial Paper Noncapital ",null,"Revenue","Net Change In Commercial Paper Noncapital"]
[null,null,null,null,""]
["815500","Net Change In Commercial Paper Borrowings Noncapital ",null,"Revenue","Net Change In Commercial Paper Borrowings Noncapital"]
[null,null,null,null,""]
[null,"Transfer Debt Service ",null,"Revenue","Transfer Debt Service"]
[null,null,null,null,""]
[null,"Transfer of Debt Service ",null,"Revenue","Transfer of Debt Service"]
[null,null,null,null,""]
[null,"Transfers of Debt Service ",null,"Revenue","Transfers of Debt Service"]
[null,null,null,null,""]
["816000","Transfer of Debt Services ",null,"Revenue","Transfer of Debt Services"]
[null,null,null,null,""]
["816001","Capital Outlay Transfer ",null,"Revenue","Capital Outlay Transfer"]
[null,null,null,null,""]
["816002","Debt Service Payments ",null,"Revenue","Debt Service Payments"]
[null,null,null,null,""]
["816009","Other Misc Transfer of Debt ",null,"Revenue","Other Misc Transfer of Debt"]
[null,null,null,null,""]
[null,"Repayment of Principal ",null,"Revenue","Repayment of Principal"]
[null,null,null,null,""]
[null,"Repayment of Principal from UCB ",null,"Revenue","Repayment of Principal from UCB"]
[null,null,null,null,""]
["816010","Repayment of Debt Svc Principal from UCB ",null,"Revenue","Repayment of Debt Svc Principal from UCB"]
[null,null,null,null,""]
[null,"Repayment of Principal from UCSF ",null,"Revenue","Repayment of Principal from UCSF"]
[null,null,null,null,""]
["816020","Repayment of Debt Svc Principal from UCSF ",null,"Revenue","Repayment of Debt Svc Principal from UCSF"]
[null,null,null,null,""]
[null,"Repayment of Principal from UCD ",null,"Revenue","Repayment of Principal from UCD"]
[null,null,null,null,""]
["816030","Repayment of Debt Svc Principal from UCD ",null,"Revenue","Repayment of Debt Svc Principal from UCD"]
[null,null,null,null,""]
[null,"Repayment of Principal from UCLA ",null,"Revenue","Repayment of Principal from UCLA"]
[null,null,null,null,""]
["816040","Repayment of Debt Svc Principal from UCLA ",null,"Revenue","Repayment of Debt Svc Principal from UCLA"]
[null,null,null,null,""]
[null,"Repayment of Principal from UCR ",null,"Revenue","Repayment of Principal from UCR"]
[null,null,null,null,""]
["816050","Repayment of Debt Svc Principal from UCR ",null,"Revenue","Repayment of Debt Svc Principal from UCR"]
[null,null,null,null,""]
[null,"Repayment of Principal from UCSD ",null,"Revenue","Repayment of Principal from UCSD"]
[null,null,null,null,""]
["816060","Repayment of Debt Svc Principal from UCSD ",null,"Revenue","Repayment of Debt Svc Principal from UCSD"]
[null,null,null,null,""]
[null,"Repayment of Principal from UCSC ",null,"Revenue","Repayment of Principal from UCSC"]
[null,null,null,null,""]
["816070","Repayment of Debt Svc Principal from UCSC ",null,"Revenue","Repayment of Debt Svc Principal from UCSC"]
[null,null,null,null,""]
[null,"Repayment of Principal from UCSB ",null,"Revenue","Repayment of Principal from UCSB"]
[null,null,null,null,""]
["816080","Repayment of Debt Svc Principal from UCSB ",null,"Revenue","Repayment of Debt Svc Principal from UCSB"]
[null,null,null,null,""]
[null,"Repayment of Principal from UCI ",null,"Revenue","Repayment of Principal from UCI"]
[null,null,null,null,""]
["816090","Repayment of Debt Svc Principal from UCI ",null,"Revenue","Repayment of Debt Svc Principal from UCI"]
[null,null,null,null,""]
[null,"Repayment of Principal from UCM ",null,"Revenue","Repayment of Principal from UCM"]
[null,null,null,null,""]
["816100","Repayment of Debt Svc Principal from UCM ",null,"Revenue","Repayment of Debt Svc Principal from UCM"]
[null,null,null,null,""]
[null,"Repayment of Principal to UCOP ",null,"Revenue","Repayment of Principal to UCOP"]
[null,null,null,null,""]
["816110","Repayment of Debt Svc Principal to UCOP ",null,"Revenue","Repayment of Debt Svc Principal to UCOP"]
[null,null,null,null,""]
[null,"Repayment of Principal from ANR ",null,"Revenue","Repayment of Principal from ANR"]
[null,null,null,null,""]
["816120","Repayment of Debt Svc Principal from ANR ",null,"Revenue","Repayment of Debt Svc Principal from ANR"]
[null,null,null,null,""]
[null,"Transfer for Revenue Bonds and Commercial Paper ",null,"Revenue","Transfer for Revenue Bonds and Commercial Paper"]
[null,null,null,null,""]
[null,"Transfers to from UCB for Revenue Bonds and Commercial Paper ",null,"Revenue","Transfers to from UCB for Revenue Bonds and Commercial Paper"]
[null,null,null,null,""]
["816210","Transfers to UCB for Revenue Bonds and Commercial Paper ",null,"Revenue","Transfers to UCB for Revenue Bonds and Commercial Paper"]
[null,null,null,null,""]
[null,"Transfers to from UCSF for Revenue Bonds and Commercial Paper ",null,"Revenue","Transfers to from UCSF for Revenue Bonds and Commercial Paper"]
[null,null,null,null,""]
["816220","Transfers to UCSF for Revenue Bonds and Commercial Paper ",null,"Revenue","Transfers to UCSF for Revenue Bonds and Commercial Paper"]
[null,null,null,null,""]
[null,"Transfers to from UCD for Revenue Bonds and Commercial Paper ",null,"Revenue","Transfers to from UCD for Revenue Bonds and Commercial Paper"]
[null,null,null,null,""]
["816230","Transfers to and from UCD for Revenue Bonds and Commercial Paper ",null,"Revenue","Transfers to and from UCD for Revenue Bonds and Commercial Paper"]
[null,null,null,null,""]
[null,"Transfers to from UCLA for Revenue Bonds and Commercial Paper ",null,"Revenue","Transfers to from UCLA for Revenue Bonds and Commercial Paper"]
[null,null,null,null,""]
["816240","Transfers to UCLA for Revenue Bonds and Commercial Paper ",null,"Revenue","Transfers to UCLA for Revenue Bonds and Commercial Paper"]
[null,null,null,null,""]
[null,"Transfers to from UCR for Revenue Bonds and Commercial Paper ",null,"Revenue","Transfers to from UCR for Revenue Bonds and Commercial Paper"]
[null,null,null,null,""]
["816250","Transfers to UCR for Revenue Bonds and Commercial Paper ",null,"Revenue","Transfers to UCR for Revenue Bonds and Commercial Paper"]
[null,null,null,null,""]
[null,"Transfers to from UCSD for Revenue Bonds and Commercial Paper ",null,"Revenue","Transfers to from UCSD for Revenue Bonds and Commercial Paper"]
[null,null,null,null,""]
["816260","Transfers to UCSD for Revenue Bonds and Commercial Paper ",null,"Revenue","Transfers to UCSD for Revenue Bonds and Commercial Paper"]
[null,null,null,null,""]
[null,"Transfers to from UCSC for Revenue Bonds and Commercial Paper ",null,"Revenue","Transfers to from UCSC for Revenue Bonds and Commercial Paper"]
[null,null,null,null,""]
["816270","Transfers to UCSC for Revenue Bonds and Commercial Paper ",null,"Revenue","Transfers to UCSC for Revenue Bonds and Commercial Paper"]
[null,null,null,null,""]
[null,"Transfers to from UCSB for Revenue Bonds and Commercial Paper ",null,"Revenue","Transfers to from UCSB for Revenue Bonds and Commercial Paper"]
[null,null,null,null,""]
["816280","Transfers to UCSB for Revenue Bonds and Commercial Paper ",null,"Revenue","Transfers to UCSB for Revenue Bonds and Commercial Paper"]
[null,null,null,null,""]
[null,"Transfers to from UCI for Revenue Bonds and Commercial Paper ",null,"Revenue","Transfers to from UCI for Revenue Bonds and Commercial Paper"]
[null,null,null,null,""]
["816290","Transfers to UCI for Revenue Bonds and Commercial Paper ",null,"Revenue","Transfers to UCI for Revenue Bonds and Commercial Paper"]
[null,null,null,null,""]
[null,"Transfers to from UCM for Revenue Bonds and Commercial Paper ",null,"Revenue","Transfers to from UCM for Revenue Bonds and Commercial Paper"]
[null,null,null,null,""]
["816300","Transfers to UCM for Revenue Bonds and Commercial Paper ",null,"Revenue","Transfers to UCM for Revenue Bonds and Commercial Paper"]
[null,null,null,null,""]
[null,"Transfers to from UCOP for Revenue Bonds and Commercial Paper ",null,"Revenue","Transfers to from UCOP for Revenue Bonds and Commercial Paper"]
[null,null,null,null,""]
["816310","Transfers to UCOP for Revenue Bonds and Commercial Paper ",null,"Revenue","Transfers to UCOP for Revenue Bonds and Commercial Paper"]
[null,null,null,null,""]
[null,"Transfers to from ANR for Revenue Bonds and Commercial Paper ",null,"Revenue","Transfers to from ANR for Revenue Bonds and Commercial Paper"]
[null,null,null,null,""]
["816320","Transfers to and from ANR for Revenue Bonds and Commercial Paper ",null,"Revenue","Transfers to and from ANR for Revenue Bonds and Commercial Paper"]
[null,null,null,null,""]
[null,"Transfer For Construction Draws and COI ",null,"Revenue","Transfer For Construction Draws and COI"]
[null,null,null,null,""]
[null,"Transfers to from UCB for Construction Draws and COI ",null,"Revenue","Transfers to from UCB for Construction Draws and COI"]
[null,null,null,null,""]
["816410","Transfers to UCB for Construction Draws and COI ",null,"Revenue","Transfers to UCB for Construction Draws and COI"]
[null,null,null,null,""]
[null,"Transfers to from UCSF for Construction Draws and COI ",null,"Revenue","Transfers to from UCSF for Construction Draws and COI"]
[null,null,null,null,""]
["816420","Transfers to UCSF for Construction Draws and COI ",null,"Revenue","Transfers to UCSF for Construction Draws and COI"]
[null,null,null,null,""]
[null,"Transfers to from UCD for Construction Draws and COI ",null,"Revenue","Transfers to from UCD for Construction Draws and COI"]
[null,null,null,null,""]
["816430","Transfers to and from UCD for Construction Draws and COI ",null,"Revenue","Transfers to and from UCD for Construction Draws and COI"]
[null,null,null,null,""]
[null,"Transfers to from UCLA for Construction Draws and COI ",null,"Revenue","Transfers to from UCLA for Construction Draws and COI"]
[null,null,null,null,""]
["816440","Transfers to UCLA for Construction Draws and COI ",null,"Revenue","Transfers to UCLA for Construction Draws and COI"]
[null,null,null,null,""]
[null,"Transfers to from UCR for Construction Draws and COI ",null,"Revenue","Transfers to from UCR for Construction Draws and COI"]
[null,null,null,null,""]
["816450","Transfers to UCR for Construction Draws and COI ",null,"Revenue","Transfers to UCR for Construction Draws and COI"]
[null,null,null,null,""]
[null,"Transfers to from UCSD for Construction Draws and COI ",null,"Revenue","Transfers to from UCSD for Construction Draws and COI"]
[null,null,null,null,""]
["816460","Transfers to UCSD for Construction Draws and COI ",null,"Revenue","Transfers to UCSD for Construction Draws and COI"]
[null,null,null,null,""]
[null,"Transfers to from UCSC for Construction Draws and COI ",null,"Revenue","Transfers to from UCSC for Construction Draws and COI"]
[null,null,null,null,""]
["816470","Transfers to UCSC for Construction Draws and COI ",null,"Revenue","Transfers to UCSC for Construction Draws and COI"]
[null,null,null,null,""]
[null,"Transfers to from UCSB for Construction Draws and COI ",null,"Revenue","Transfers to from UCSB for Construction Draws and COI"]
[null,null,null,null,""]
["816480","Transfers to UCSB for Construction Draws and COI ",null,"Revenue","Transfers to UCSB for Construction Draws and COI"]
[null,null,null,null,""]
[null,"Transfers to from UCI for Construction Draws and COI ",null,"Revenue","Transfers to from UCI for Construction Draws and COI"]
[null,null,null,null,""]
["816490","Transfers to UCI for Construction Draws and COI ",null,"Revenue","Transfers to UCI for Construction Draws and COI"]
[null,null,null,null,""]
[null,"Transfers to from UCM for Construction Draws and COI ",null,"Revenue","Transfers to from UCM for Construction Draws and COI"]
[null,null,null,null,""]
["816500","Transfers to UCM for Construction Draws and COI ",null,"Revenue","Transfers to UCM for Construction Draws and COI"]
[null,null,null,null,""]
[null,"Transfers to from UCOP for Construction Draws and COI ",null,"Revenue","Transfers to from UCOP for Construction Draws and COI"]
[null,null,null,null,""]
["816510","Transfers to UCOP for Construction Draws and COI ",null,"Revenue","Transfers to UCOP for Construction Draws and COI"]
[null,null,null,null,""]
[null,"Transfers to from ANR for Construction Draws and COI ",null,"Revenue","Transfers to from ANR for Construction Draws and COI"]
[null,null,null,null,""]
["816520","Transfers to and from ANR for Construction Draws and COI ",null,"Revenue","Transfers to and from ANR for Construction Draws and COI"]
[null,null,null,null,""]
[null,"Internal Loans Net Changes ",null,"Revenue","Internal Loans Net Changes"]
[null,null,null,null,""]
[null,"Internal Loans net Changes with UCB ",null,"Revenue","Internal Loans net Changes with UCB"]
[null,null,null,null,""]
["816610","Internal Loans net Changes UCB ",null,"Revenue","Internal Loans net Changes UCB"]
[null,null,null,null,""]
[null,"Internal Loans net Changes with UCSF ",null,"Revenue","Internal Loans net Changes with UCSF"]
[null,null,null,null,""]
["816620","Internal Loans net Changes UCSF ",null,"Revenue","Internal Loans net Changes UCSF"]
[null,null,null,null,""]
[null,"Internal Loans net Changes with UCD ",null,"Revenue","Internal Loans net Changes with UCD"]
[null,null,null,null,""]
["816630","Internal Loans net Changes UCD ",null,"Revenue","Internal Loans net Changes UCD"]
[null,null,null,null,""]
[null,"Internal Loans net Changes with UCLA ",null,"Revenue","Internal Loans net Changes with UCLA"]
[null,null,null,null,""]
["816640","Internal Loans net Changes UCLA ",null,"Revenue","Internal Loans net Changes UCLA"]
[null,null,null,null,""]
[null,"Internal Loans net Changes with UCR ",null,"Revenue","Internal Loans net Changes with UCR"]
[null,null,null,null,""]
["816650","Internal Loans net Changes UCR ",null,"Revenue","Internal Loans net Changes UCR"]
[null,null,null,null,""]
[null,"Internal Loans net Changes with UCSD ",null,"Revenue","Internal Loans net Changes with UCSD"]
[null,null,null,null,""]
["816660","Internal Loans net Changes UCSD ",null,"Revenue","Internal Loans net Changes UCSD"]
[null,null,null,null,""]
[null,"Internal Loans net Changes with UCSC ",null,"Revenue","Internal Loans net Changes with UCSC"]
[null,null,null,null,""]
["816670","Internal Loans net Changes with UCSB ",null,"Revenue","Internal Loans net Changes with UCSB"]
[null,null,null,null,""]
[null,"Internal Loans net Changes with UCSB ",null,"Revenue","Internal Loans net Changes with UCSB"]
[null,null,null,null,""]
["816680","Internal Loans net Changes UCSB ",null,"Revenue","Internal Loans net Changes UCSB"]
[null,null,null,null,""]
[null,"Internal Loans net Changes with UCI ",null,"Revenue","Internal Loans net Changes with UCI"]
[null,null,null,null,""]
["816690","Internal Loans net Changes UCI ",null,"Revenue","Internal Loans net Changes UCI"]
[null,null,null,null,""]
[null,"Internal Loans net Changes with UCM ",null,"Revenue","Internal Loans net Changes with UCM"]
[null,null,null,null,""]
["816700","Internal Loans net Changes UCM ",null,"Revenue","Internal Loans net Changes UCM"]
[null,null,null,null,""]
[null,"Internal Loans net Changes with UCOP ",null,"Revenue","Internal Loans net Changes with UCOP"]
[null,null,null,null,""]
["816710","Internal Loans net Changes UCOP ",null,"Revenue","Internal Loans net Changes UCOP"]
[null,null,null,null,""]
[null,"Internal Loans net Changes with ANR ",null,"Revenue","Internal Loans net Changes with ANR"]
[null,null,null,null,""]
["816720","Internal Loans net Changes ANR ",null,"Revenue","Internal Loans net Changes ANR"]
[null,null,null,null,""]
[null,"Capital Asset Transfers ",null,"Revenue","Capital Asset Transfers"]
[null,null,null,null,""]
[null,"Transfer Land and Improvements between Locations ",null,"Revenue","Transfer Land and Improvements between Locations"]
[null,null,null,null,""]
[null,"Transfer Land between Locations ",null,"Revenue","Transfer Land between Locations"]
[null,null,null,null,""]
["820000","Intercampus transfer of Land with another UC ",null,"Revenue","Intercampus transfer of Land with another UC"]
[null,null,null,null,""]
[null,"Transfer Parking Lot Improvements etwbeen Locations ",null,"Revenue","Transfer Parking Lot Improvements etwbeen Locations"]
[null,null,null,null,""]
["820010","Intercampus transfer of Parking Lot Improvements with another UC ",null,"Revenue","Intercampus transfer of Parking Lot Improvements with another UC"]
[null,null,null,null,""]
[null,"Transfer Other Land Improvements between Locations ",null,"Revenue","Transfer Other Land Improvements between Locations"]
[null,null,null,null,""]
["820020","Intercampus transfer of Other Land Improvements with another UC ",null,"Revenue","Intercampus transfer of Other Land Improvements with another UC"]
[null,null,null,null,""]
[null,"Transfer Infrastructure Between Locations ",null,"Revenue","Transfer Infrastructure Between Locations"]
[null,null,null,null,""]
[null,"Transfer Infrastructure between UC Locations ",null,"Revenue","Transfer Infrastructure between UC Locations"]
[null,null,null,null,""]
["820030","Intercampus transfer of Infrastructure with another UC ",null,"Revenue","Intercampus transfer of Infrastructure with another UC"]
[null,null,null,null,""]
[null,"Transfer Buildings and Improvements between Locations ",null,"Revenue","Transfer Buildings and Improvements between Locations"]
[null,null,null,null,""]
[null,"Transfer Bldgs and Imprvmnts Service Concession Arrangements Btwn Locations ",null,"Revenue","Transfer Bldgs and Imprvmnts Service Concession Arrangements Btwn Locations"]
[null,null,null,null,""]
["820040","Intercampus Transfer of Bldgs Imprvmts Service Concession Arrangements with another UC ",null,"Revenue","Intercampus Transfer of Bldgs Imprvmts Service Concession Arrangements with another UC"]
[null,null,null,null,""]
[null,"Transfer Buildings and Improvements Housing Facilities between Locations ",null,"Revenue","Transfer Buildings and Improvements Housing Facilities between Locations"]
[null,null,null,null,""]
["820050","Intercampus transfer of Buildings and Improvements Housing Facilities with another UC ",null,"Revenue","Intercampus transfer of Buildings and Improvements Housing Facilities with another UC"]
[null,null,null,null,""]
[null,"Transfer Parking Structures between Locations ",null,"Revenue","Transfer Parking Structures between Locations"]
[null,null,null,null,""]
["820060","Intercampus transfer of Parking Structures with another UC ",null,"Revenue","Intercampus transfer of Parking Structures with another UC"]
[null,null,null,null,""]
[null,"Transfer Leasehold Improvements between Locations ",null,"Revenue","Transfer Leasehold Improvements between Locations"]
[null,null,null,null,""]
["820070","Intercampus transfer of Leasehold Improvements with another UC ",null,"Revenue","Intercampus transfer of Leasehold Improvements with another UC"]
[null,null,null,null,""]
[null,"Transfer Building and Improvements Other between Locations ",null,"Revenue","Transfer Building and Improvements Other between Locations"]
[null,null,null,null,""]
["820080","Intercampus transfer of Building and Improvements Other with another UC ",null,"Revenue","Intercampus transfer of Building and Improvements Other with another UC"]
[null,null,null,null,""]
[null,"Transfer General Improvements Between Locations ",null,"Revenue","Transfer General Improvements Between Locations"]
[null,null,null,null,""]
["820090","Transfer General Improvements to Another Location ",null,"Revenue","Transfer General Improvements to Another Location"]
[null,null,null,null,""]
[null,"Transfer Equipment between Locations ",null,"Revenue","Transfer Equipment between Locations"]
[null,null,null,null,""]
[null,"Transfer Equipment from to UCB ",null,"Revenue","Transfer Equipment from to UCB"]
[null,null,null,null,""]
["821010","Intercampus transfer of Equipment with UCB ",null,"Revenue","Intercampus transfer of Equipment with UCB"]
[null,null,null,null,""]
[null,"Transfer Equipment from to UCSF ",null,"Revenue","Transfer Equipment from to UCSF"]
[null,null,null,null,""]
["821020","Intercampus transfer of Equipment with UCSF ",null,"Revenue","Intercampus transfer of Equipment with UCSF"]
[null,null,null,null,""]
[null,"Transfer Equipment from to UCD ",null,"Revenue","Transfer Equipment from to UCD"]
[null,null,null,null,""]
["821030","Intercampus transfer of Equipment with UCD ",null,"Revenue","Intercampus transfer of Equipment with UCD"]
[null,null,null,null,""]
[null,"Transfer Equipment from to UCLA ",null,"Revenue","Transfer Equipment from to UCLA"]
[null,null,null,null,""]
["821040","Intercampus transfer of Equipment with UCLA ",null,"Revenue","Intercampus transfer of Equipment with UCLA"]
[null,null,null,null,""]
[null,"Transfer Equipment from to UCR ",null,"Revenue","Transfer Equipment from to UCR"]
[null,null,null,null,""]
["821050","Intercampus transfer of Equipment with UCR ",null,"Revenue","Intercampus transfer of Equipment with UCR"]
[null,null,null,null,""]
[null,"Transfer Equipment from to UCSD ",null,"Revenue","Transfer Equipment from to UCSD"]
[null,null,null,null,""]
["821060","Intercampus transfer of Equipment with UCSD ",null,"Revenue","Intercampus transfer of Equipment with UCSD"]
[null,null,null,null,""]
[null,"Transfer Equipment from to UCSC ",null,"Revenue","Transfer Equipment from to UCSC"]
[null,null,null,null,""]
["821070","Intercampus transfer of Equipment with UCSC ",null,"Revenue","Intercampus transfer of Equipment with UCSC"]
[null,null,null,null,""]
[null,"Transfer Equipment from to UCSB ",null,"Revenue","Transfer Equipment from to UCSB"]
[null,null,null,null,""]
["821080","Intercampus transfer of Equipment with UCSB ",null,"Revenue","Intercampus transfer of Equipment with UCSB"]
[null,null,null,null,""]
[null,"Transfer Equipment from to UCI ",null,"Revenue","Transfer Equipment from to UCI"]
[null,null,null,null,""]
["821090","Intercampus transfer of Equipment with UCI ",null,"Revenue","Intercampus transfer of Equipment with UCI"]
[null,null,null,null,""]
[null,"Transfer Equipment from to UCM ",null,"Revenue","Transfer Equipment from to UCM"]
[null,null,null,null,""]
["821100","Intercampus transfer of Equipment with UCM ",null,"Revenue","Intercampus transfer of Equipment with UCM"]
[null,null,null,null,""]
[null,"Transfer Equipment from to UCOP ",null,"Revenue","Transfer Equipment from to UCOP"]
[null,null,null,null,""]
["821110","Intercampus transfer of Equipment with UCOP ",null,"Revenue","Intercampus transfer of Equipment with UCOP"]
[null,null,null,null,""]
[null,"Transfer Equipment from to ANR ",null,"Revenue","Transfer Equipment from to ANR"]
[null,null,null,null,""]
["821120","Transfer Equipment to ANR ",null,"Revenue","Transfer Equipment to ANR"]
[null,null,null,null,""]
[null,"Transfer Software between Locations ",null,"Revenue","Transfer Software between Locations"]
[null,null,null,null,""]
[null,"Transfer Software greater than 5M between Locations ",null,"Revenue","Transfer Software greater than 5M between Locations"]
[null,null,null,null,""]
["822000","Intercampus transfer of Software greater than 5M with another UC ",null,"Revenue","Intercampus transfer of Software greater than 5M with another UC"]
[null,null,null,null,""]
[null,"Transfer Software less than 5M between Locations ",null,"Revenue","Transfer Software less than 5M between Locations"]
[null,null,null,null,""]
["822010","Intercampus transfer of Software less than 5M with another UC ",null,"Revenue","Intercampus transfer of Software less than 5M with another UC"]
[null,null,null,null,""]
[null,"Transfer Intangibles between Locations ",null,"Revenue","Transfer Intangibles between Locations"]
[null,null,null,null,""]
[null,"Transfer Intangibles btwn Locations ",null,"Revenue","Transfer Intangibles btwn Locations"]
[null,null,null,null,""]
["822050","Intercampus transfer of Intangibles with another UC ",null,"Revenue","Intercampus transfer of Intangibles with another UC"]
[null,null,null,null,""]
[null,"Transfer Libraries Collections between Locations ",null,"Revenue","Transfer Libraries Collections between Locations"]
[null,null,null,null,""]
[null,"Transfer Libraries Collections btwn Locations ",null,"Revenue","Transfer Libraries Collections btwn Locations"]
[null,null,null,null,""]
["822100","Intercampus transfer of Libraries Collections with another UC ",null,"Revenue","Intercampus transfer of Libraries Collections with another UC"]
[null,null,null,null,""]
[null,"Transfer Special Collections between Locations ",null,"Revenue","Transfer Special Collections between Locations"]
[null,null,null,null,""]
[null,"Transfer Special Collections btwn Locations ",null,"Revenue","Transfer Special Collections btwn Locations"]
[null,null,null,null,""]
["822150","Intercampus transfer of Special Collections with another UC ",null,"Revenue","Intercampus transfer of Special Collections with another UC"]
[null,null,null,null,""]
[null,"Transfer Accumulated Depreciation Land Improvements between Locations ",null,"Revenue","Transfer Accumulated Depreciation Land Improvements between Locations"]
[null,null,null,null,""]
[null,"Transfer Accumulated Depreciation Land Improvements btwn Locations ",null,"Revenue","Transfer Accumulated Depreciation Land Improvements btwn Locations"]
[null,null,null,null,""]
["824000","Intercampus transfer of Accumulated Depreciation Land Improvements with another UC ",null,"Revenue","Intercampus transfer of Accumulated Depreciation Land Improvements with another UC"]
[null,null,null,null,""]
[null,"Transfer Accumulated Depreciation Other Land Improvements btwn Locations ",null,"Revenue","Transfer Accumulated Depreciation Other Land Improvements btwn Locations"]
[null,null,null,null,""]
["824010","Intercampus transfer of Accum Depreciation Other Land Improvements with another UC ",null,"Revenue","Intercampus transfer of Accum Depreciation Other Land Improvements with another UC"]
[null,null,null,null,""]
[null,"Transfer Accumulated Depreciation Infrastructure between Locations ",null,"Revenue","Transfer Accumulated Depreciation Infrastructure between Locations"]
[null,null,null,null,""]
[null,"Transfer Accumulated Depreciation Infrastructure btwn Locations ",null,"Revenue","Transfer Accumulated Depreciation Infrastructure btwn Locations"]
[null,null,null,null,""]
["824020","Intercampus transfer of Accumulated Depreciation Infrastructure with another UC ",null,"Revenue","Intercampus transfer of Accumulated Depreciation Infrastructure with another UC"]
[null,null,null,null,""]
[null,"Transfer Accumulated Depreciation Buildings and Improvements between Locations ",null,"Revenue","Transfer Accumulated Depreciation Buildings and Improvements between Locations"]
[null,null,null,null,""]
[null,"Transfer Accumulated Depreciation Bldgs and Improvements btwn Locations ",null,"Revenue","Transfer Accumulated Depreciation Bldgs and Improvements btwn Locations"]
[null,null,null,null,""]
["824050","Intercampus transfer of Accumulated Depreciation Bldgs and Improvements with another UC ",null,"Revenue","Intercampus transfer of Accumulated Depreciation Bldgs and Improvements with another UC"]
[null,null,null,null,""]
[null,"Transfer Accumul Depr Bldgs and Imprvments Housing Facilities btwn Locations ",null,"Revenue","Transfer Accumul Depr Bldgs and Imprvments Housing Facilities btwn Locations"]
[null,null,null,null,""]
["824060","Intercampus transfer of Accum Depr Bldgs Imprvments Housing Facilities with another UC ",null,"Revenue","Intercampus transfer of Accum Depr Bldgs Imprvments Housing Facilities with another UC"]
[null,null,null,null,""]
[null,"Transfer Accumulated Depreciation Parking Structures btwn Locations ",null,"Revenue","Transfer Accumulated Depreciation Parking Structures btwn Locations"]
[null,null,null,null,""]
["824070","Intercampus transfer of Accumulated Depreciation Parking Structures with another UC ",null,"Revenue","Intercampus transfer of Accumulated Depreciation Parking Structures with another UC"]
[null,null,null,null,""]
[null,"Transfer Accumulated Depreciation Leasehold Improvements btwn Locations ",null,"Revenue","Transfer Accumulated Depreciation Leasehold Improvements btwn Locations"]
[null,null,null,null,""]
["824080","Transfer Accumulated Depreciation Leasehold Improvements to Another Location ",null,"Revenue","Transfer Accumulated Depreciation Leasehold Improvements to Another Location"]
[null,null,null,null,""]
[null,"Transfer Accumulated Depreciation Bldgs and Improvements Other btwn Locations ",null,"Revenue","Transfer Accumulated Depreciation Bldgs and Improvements Other btwn Locations"]
[null,null,null,null,""]
["824090","Intercampus transfer of Accum Depreciation Bldgs and Improvements Other with another UC ",null,"Revenue","Intercampus transfer of Accum Depreciation Bldgs and Improvements Other with another UC"]
[null,null,null,null,""]
[null,"Transfer Accumulated Depreciation General Improvements between Locations ",null,"Revenue","Transfer Accumulated Depreciation General Improvements between Locations"]
[null,null,null,null,""]
["824100","Intercampus transfer of Accumulated Depreciation General Improvements with another UC ",null,"Revenue","Intercampus transfer of Accumulated Depreciation General Improvements with another UC"]
[null,null,null,null,""]
[null,"Transfer Accumulated Depreciation Equipment Between Locations ",null,"Revenue","Transfer Accumulated Depreciation Equipment Between Locations"]
[null,null,null,null,""]
[null,"Transfer Accumulated Depreciation Equipment from to UCB ",null,"Revenue","Transfer Accumulated Depreciation Equipment from to UCB"]
[null,null,null,null,""]
["825010","Intercampus transfer of Accumulated Depreciation Equipment with UCB ",null,"Revenue","Intercampus transfer of Accumulated Depreciation Equipment with UCB"]
[null,null,null,null,""]
[null,"Transfer Accumulated Depreciation Equipment from to UCSF ",null,"Revenue","Transfer Accumulated Depreciation Equipment from to UCSF"]
[null,null,null,null,""]
["825020","Intercampus transfer of Accum Depr Equipment with UCSF ",null,"Revenue","Intercampus transfer of Accum Depr Equipment with UCSF"]
[null,null,null,null,""]
[null,"Transfer Accumulated Depreciation Equipment from to UCD ",null,"Revenue","Transfer Accumulated Depreciation Equipment from to UCD"]
[null,null,null,null,""]
["825030","Intercampus transfer of Accumulated Depreciation Equipment with UCD ",null,"Revenue","Intercampus transfer of Accumulated Depreciation Equipment with UCD"]
[null,null,null,null,""]
[null,"Transfer Accumulated Depreciation Equipment from to UCLA ",null,"Revenue","Transfer Accumulated Depreciation Equipment from to UCLA"]
[null,null,null,null,""]
["825040","Intercampus transfer of Accumulated Depreciation Equipment with UCLA ",null,"Revenue","Intercampus transfer of Accumulated Depreciation Equipment with UCLA"]
[null,null,null,null,""]
[null,"Transfer Accumulated Depreciation Equipment from to UCR ",null,"Revenue","Transfer Accumulated Depreciation Equipment from to UCR"]
[null,null,null,null,""]
["825050","Transfer Accumulated Depreciation Equipment to UCR ",null,"Revenue","Transfer Accumulated Depreciation Equipment to UCR"]
[null,null,null,null,""]
[null,"Transfer Accumulated Depreciation Equipment from to UCSD ",null,"Revenue","Transfer Accumulated Depreciation Equipment from to UCSD"]
[null,null,null,null,""]
["825060","Intercampus transfer of Accumulated Depreciation Equipment with UCSD ",null,"Revenue","Intercampus transfer of Accumulated Depreciation Equipment with UCSD"]
[null,null,null,null,""]
[null,"Transfer Accumulated Depreciation Equipment from to UCSC ",null,"Revenue","Transfer Accumulated Depreciation Equipment from to UCSC"]
[null,null,null,null,""]
["825070","Intercampus transfer of Accumulated Depreciation Equipment with UCSC ",null,"Revenue","Intercampus transfer of Accumulated Depreciation Equipment with UCSC"]
[null,null,null,null,""]
[null,"Transfer Accumulated Depreciation Equipment from to UCSB ",null,"Revenue","Transfer Accumulated Depreciation Equipment from to UCSB"]
[null,null,null,null,""]
["825080","Intercampus transfer of Accumulated Depreciation Equipment with UCSB ",null,"Revenue","Intercampus transfer of Accumulated Depreciation Equipment with UCSB"]
[null,null,null,null,""]
[null,"Transfer Accumulated Depreciation Equipment from to UCI ",null,"Revenue","Transfer Accumulated Depreciation Equipment from to UCI"]
[null,null,null,null,""]
["825090","Intercampus transfer of Accumulated Depreciation Equipment with UCI ",null,"Revenue","Intercampus transfer of Accumulated Depreciation Equipment with UCI"]
[null,null,null,null,""]
[null,"Transfer Accumulated Depreciation Equipment from to UCM ",null,"Revenue","Transfer Accumulated Depreciation Equipment from to UCM"]
[null,null,null,null,""]
["825100","Intercampus transfer of Accumulated Depreciation Equipment with UCM ",null,"Revenue","Intercampus transfer of Accumulated Depreciation Equipment with UCM"]
[null,null,null,null,""]
[null,"Transfer Accumulated Depreciation Equipment from to UCOP ",null,"Revenue","Transfer Accumulated Depreciation Equipment from to UCOP"]
[null,null,null,null,""]
["825110","Intercampus transfer of Accumulated Depreciation Equipment with UCOP ",null,"Revenue","Intercampus transfer of Accumulated Depreciation Equipment with UCOP"]
[null,null,null,null,""]
[null,"Transfer Accumulated Depreciation Equipment from to ANR ",null,"Revenue","Transfer Accumulated Depreciation Equipment from to ANR"]
[null,null,null,null,""]
["825120","Intercampus transfer of Accumulated Depreciation Equipment with ANR ",null,"Revenue","Intercampus transfer of Accumulated Depreciation Equipment with ANR"]
[null,null,null,null,""]
[null,"Transfer Accumulated Amortization Software between Locations ",null,"Revenue","Transfer Accumulated Amortization Software between Locations"]
[null,null,null,null,""]
[null,"Transfer Accumulated Amortization Software greater than 5M between Locations ",null,"Revenue","Transfer Accumulated Amortization Software greater than 5M between Locations"]
[null,null,null,null,""]
["826000","Intercampus transfer of Accumulated Amortization Software greater than 5M with another UC ",null,"Revenue","Intercampus transfer of Accumulated Amortization Software greater than 5M with another UC"]
[null,null,null,null,""]
[null,"Transfer Accumulated Amortization Software less than 5M between Locations ",null,"Revenue","Transfer Accumulated Amortization Software less than 5M between Locations"]
[null,null,null,null,""]
["826010","Intercampus transfer of Accumulated Amortization Software less than 5M with another UC ",null,"Revenue","Intercampus transfer of Accumulated Amortization Software less than 5M with another UC"]
[null,null,null,null,""]
[null,"Transfer Accumulated Amortization Intangibles between Locations ",null,"Revenue","Transfer Accumulated Amortization Intangibles between Locations"]
[null,null,null,null,""]
[null,"Transfer Accumulated Amortization Intangibles btwn Locations ",null,"Revenue","Transfer Accumulated Amortization Intangibles btwn Locations"]
[null,null,null,null,""]
["826050","Intercampus transfer of Accumulated Amortization Intangibles with another UC ",null,"Revenue","Intercampus transfer of Accumulated Amortization Intangibles with another UC"]
[null,null,null,null,""]
[null,"Transfer Accumulated Depreciation Libraries and Collections between Locations ",null,"Revenue","Transfer Accumulated Depreciation Libraries and Collections between Locations"]
[null,null,null,null,""]
[null,"Transfer Accumulated Depreciation Libraries and Collections btwn Locations ",null,"Revenue","Transfer Accumulated Depreciation Libraries and Collections btwn Locations"]
[null,null,null,null,""]
["826100","Intercampus transfer of Accum Depreciation Libraries and Collections with another UC ",null,"Revenue","Intercampus transfer of Accum Depreciation Libraries and Collections with another UC"]
[null,null,null,null,""]
[null,"Capitalization Transfer ",null,"Revenue","Capitalization Transfer"]
[null,null,null,null,""]
[null,"Capitalization Transfers ",null,"Revenue","Capitalization Transfers"]
[null,null,null,null,""]
["829000","Capitalization Transfers to and from Invstmnt in Plant ",null,"Revenue","Capitalization Transfers to and from Invstmnt in Plant"]
[null,null,null,null,""]
[null,"Capitalization Transfer Land ",null,"Revenue","Capitalization Transfer Land"]
[null,null,null,null,""]
["829010","Capitalization Transfer Land to and from Investment in Plant ",null,"Revenue","Capitalization Transfer Land to and from Investment in Plant"]
[null,null,null,null,""]
[null,"Capitalization Transfer Infrastructure ",null,"Revenue","Capitalization Transfer Infrastructure"]
[null,null,null,null,""]
["829020","Capitalization Transfer Infrastructure to and from Investment in Plant ",null,"Revenue","Capitalization Transfer Infrastructure to and from Investment in Plant"]
[null,null,null,null,""]
[null,"Capitalization Transfer Buildings and Improvements ",null,"Revenue","Capitalization Transfer Buildings and Improvements"]
[null,null,null,null,""]
["829030","Capitalization Transfer Buildings and Improvements to and from Investment in Plant ",null,"Revenue","Capitalization Transfer Buildings and Improvements to and from Investment in Plant"]
[null,null,null,null,""]
[null,"Capitalization Transfer Equipment ",null,"Revenue","Capitalization Transfer Equipment"]
[null,null,null,null,""]
["829040","Capitalization Transfer Equipment to and from Investment in Plant ",null,"Revenue","Capitalization Transfer Equipment to and from Investment in Plant"]
[null,null,null,null,""]
[null,"Capitalization Transfer Software Greater than 5M ",null,"Revenue","Capitalization Transfer Software Greater than 5M"]
[null,null,null,null,""]
["829050","Capitalization Transfer Software Greater than 5M to and from Investment in Plant ",null,"Revenue","Capitalization Transfer Software Greater than 5M to and from Investment in Plant"]
[null,null,null,null,""]
[null,"Capitalization Transfer Software Less than or equal to 5M ",null,"Revenue","Capitalization Transfer Software Less than or equal to 5M"]
[null,null,null,null,""]
["829060","Capitalization Transfer Software Less than or equal to 5M to and from Investment for Plant ",null,"Revenue","Capitalization Transfer Software Less than or equal to 5M to and from Investment for Plant"]
[null,null,null,null,""]
[null,"Capitalization Transfer Intangible Assets ",null,"Revenue","Capitalization Transfer Intangible Assets"]
[null,null,null,null,""]
["829070","Capitalization Transfer Intangible Assets to and from Investment for Plant ",null,"Revenue","Capitalization Transfer Intangible Assets to and from Investment for Plant"]
[null,null,null,null,""]
[null,"Capitalization Transfer Libraries and Collections ",null,"Revenue","Capitalization Transfer Libraries and Collections"]
[null,null,null,null,""]
["829080","Capitalization Transfer Libraries and Collections to and from Investment in Plant ",null,"Revenue","Capitalization Transfer Libraries and Collections to and from Investment in Plant"]
[null,null,null,null,""]
[null,"Capitalization Transfer Special Collections ",null,"Revenue","Capitalization Transfer Special Collections"]
[null,null,null,null,""]
["829090","Capitalization Transfer Special Collections to and from Investment in Plant ",null,"Revenue","Capitalization Transfer Special Collections to and from Investment in Plant"]
[null,null,null,null,""]
[null,"Capitalization Transfer Construction In Progress ",null,"Revenue","Capitalization Transfer Construction In Progress"]
[null,null,null,null,""]
["829100","Capitalization Transfer Construction In Progress to and from Investment in Plant ",null,"Revenue","Capitalization Transfer Construction In Progress to and from Investment in Plant"]
[null,null,null,null,""]
[null,"Capitalization Transfer Intangibles Finance Lease Land ",null,"Revenue","Capitalization Transfer Intangibles Finance Lease Land"]
[null,null,null,null,""]
["829170","Capitalization Transfer Intangibles Finance Lease ROU Land ",null,"Revenue","Capitalization Transfer Intangibles Finance Lease ROU Land"]
[null,null,null,null,""]
[null,"Capitalization Transfer Intangibles Finance Lease Buildings and Improvements ",null,"Revenue","Capitalization Transfer Intangibles Finance Lease Buildings and Improvements"]
[null,null,null,null,""]
["829180","Cap Transfer Intangibles Finance Lease Buildings and Improvements ",null,"Revenue","Cap Transfer Intangibles Finance Lease Buildings and Improvements"]
[null,null,null,null,""]
[null,"Capitalization Transfer Intangibles Finance lease ROU Equipment ",null,"Revenue","Capitalization Transfer Intangibles Finance lease ROU Equipment"]
[null,null,null,null,""]
["829190","Cap Transfer Intangibles Finance lease ROU Equipment ",null,"Revenue","Cap Transfer Intangibles Finance lease ROU Equipment"]
[null,null,null,null,""]
[null,"Capitalization Transfer Intangible Asset SBITA D ",null,"Revenue","Capitalization Transfer Intangible Asset SBITA D"]
[null,null,null,null,""]
["829200","Caplitalization Transfer Intangible Asset SBITA ",null,"Revenue","Caplitalization Transfer Intangible Asset SBITA"]
[null,null,null,null,""]
[null,"Investment Transfers B ",null,"Revenue","Investment Transfers B"]
[null,null,null,null,""]
[null,"Investment Transfers C ",null,"Revenue","Investment Transfers C"]
[null,null,null,null,""]
[null,"Investment Transfers to from UCB D ",null,"Revenue","Investment Transfers to from UCB D"]
[null,null,null,null,""]
["830010","Investment Transfers to from UCB ",null,"Revenue","Investment Transfers to from UCB"]
[null,null,null,null,""]
[null,"Investment Transfers to from UCSF D ",null,"Revenue","Investment Transfers to from UCSF D"]
[null,null,null,null,""]
["830020","Investment Transfers to from UCSF ",null,"Revenue","Investment Transfers to from UCSF"]
[null,null,null,null,""]
[null,"Investment Transfers to from UCD D ",null,"Revenue","Investment Transfers to from UCD D"]
[null,null,null,null,""]
["830030","Investment Transfers to from UCD ",null,"Revenue","Investment Transfers to from UCD"]
[null,null,null,null,""]
[null,"Investment Transfers to from UCLA D ",null,"Revenue","Investment Transfers to from UCLA D"]
[null,null,null,null,""]
["830040","Investment Transfers to from UCLA ",null,"Revenue","Investment Transfers to from UCLA"]
[null,null,null,null,""]
[null,"Investment Transfers to from UCR D ",null,"Revenue","Investment Transfers to from UCR D"]
[null,null,null,null,""]
["830050","Investment Transfers to from UCR ",null,"Revenue","Investment Transfers to from UCR"]
[null,null,null,null,""]
[null,"Investment Transfers to from UCSD D ",null,"Revenue","Investment Transfers to from UCSD D"]
[null,null,null,null,""]
["830060","Investment Transfers to from UCSD ",null,"Revenue","Investment Transfers to from UCSD"]
[null,null,null,null,""]
[null,"Investment Transfers to from UCSC D ",null,"Revenue","Investment Transfers to from UCSC D"]
[null,null,null,null,""]
["830070","Investment Transfers to from UCSC ",null,"Revenue","Investment Transfers to from UCSC"]
[null,null,null,null,""]
[null,"Investment Transfers to from UCSB D ",null,"Revenue","Investment Transfers to from UCSB D"]
[null,null,null,null,""]
["830080","Investment Transfers to from UCSB ",null,"Revenue","Investment Transfers to from UCSB"]
[null,null,null,null,""]
[null,"Investment Transfers to from UCI D ",null,"Revenue","Investment Transfers to from UCI D"]
[null,null,null,null,""]
["830090","Investment Transfers to from UCI ",null,"Revenue","Investment Transfers to from UCI"]
[null,null,null,null,""]
[null,"Investment Transfers to from UCM D ",null,"Revenue","Investment Transfers to from UCM D"]
[null,null,null,null,""]
["830100","Investment Transfers to from UCM ",null,"Revenue","Investment Transfers to from UCM"]
[null,null,null,null,""]
[null,"Investment Transfers to from UCOP D ",null,"Revenue","Investment Transfers to from UCOP D"]
[null,null,null,null,""]
["830110","Investment Transfers to from UCOP ",null,"Revenue","Investment Transfers to from UCOP"]
[null,null,null,null,""]
[null,"Investment Transfers to from ANR D ",null,"Revenue","Investment Transfers to from ANR D"]
[null,null,null,null,""]
["830120","Investment Transfers to from ANR ",null,"Revenue","Investment Transfers to from ANR"]
[null,null,null,null,""]
[null,"Medical Center Other Changes in Net Position ",null,"Revenue","Medical Center Other Changes in Net Position"]
[null,null,null,null,""]
[null,"MC Donated Assets ",null,"Revenue","MC Donated Assets"]
[null,null,null,null,""]
[null,"Med Ctr Donated Assets ",null,"Revenue","Med Ctr Donated Assets"]
[null,null,null,null,""]
["850000","UCDMC Donated Assets ",null,"Revenue","UCDMC Donated Assets"]
[null,null,null,null,""]
[null,"MC Contributions Distribution for Building Programs ",null,"Revenue","MC Contributions Distribution for Building Programs"]
[null,null,null,null,""]
[null,"Med Ctr Contributions Distribution for Building Programs ",null,"Revenue","Med Ctr Contributions Distribution for Building Programs"]
[null,null,null,null,""]
["850050","UCDMC Contributions Distribution for Building Programs ",null,"Revenue","UCDMC Contributions Distribution for Building Programs"]
[null,null,null,null,""]
[null,"MC Transfers to from University Net ",null,"Revenue","MC Transfers to from University Net"]
[null,null,null,null,""]
[null,"Med Ctr Transfers to from University Net ",null,"Revenue","Med Ctr Transfers to from University Net"]
[null,null,null,null,""]
["850100","UCDMC Transfers to University Net ",null,"Revenue","UCDMC Transfers to University Net"]
[null,null,null,null,""]
["850101","UCDMC Transfers from University Net ",null,"Revenue","UCDMC Transfers from University Net"]
[null,null,null,null,""]
[null,"MC Changes in Allocation for Pension Payable to University ",null,"Revenue","MC Changes in Allocation for Pension Payable to University"]
[null,null,null,null,""]
[null,"Med Ctr Changes in Allocation for Pension Payable to University ",null,"Revenue","Med Ctr Changes in Allocation for Pension Payable to University"]
[null,null,null,null,""]
["850150","UCDMC Changes in Allocation for Pension Payable to University OP ",null,"Revenue","UCDMC Changes in Allocation for Pension Payable to University OP"]
[null,null,null,null,""]
[null,"MC Health System Support ",null,"Revenue","MC Health System Support"]
[null,null,null,null,""]
[null,"Med Ctr Health System Support ",null,"Revenue","Med Ctr Health System Support"]
[null,null,null,null,""]
["850200","UCDMC Health Systems Support ",null,"Revenue","UCDMC Health Systems Support"]
[null,null,null,null,""]
["850201","Health Systems Support from Campus ",null,"Revenue","Health Systems Support from Campus"]
[null,null,null,null,""]
[null,"Other Changes in Net Position for Financial Reporting ",null,"Revenue","Other Changes in Net Position for Financial Reporting"]
[null,null,null,null,""]
[null,"Capital Gifts and Grants ",null,"Revenue","Capital Gifts and Grants"]
[null,null,null,null,""]
[null,"Capital Gifts and Grants Others Non Cash ",null,"Revenue","Capital Gifts and Grants Others Non Cash"]
[null,null,null,null,""]
[null,"Capital Gifts and Grants from Other Non Cash ",null,"Revenue","Capital Gifts and Grants from Other Non Cash"]
[null,null,null,null,""]
["870000","Capital Gifts and Grants Non Cash ",null,"Revenue","Capital Gifts and Grants Non Cash"]
[null,null,null,null,""]
[null,"Capital Gifts and Grants from Other Non Cash for Land ",null,"Revenue","Capital Gifts and Grants from Other Non Cash for Land"]
[null,null,null,null,""]
["870010","Capital Gifts and Grants from Others Non Cash Land ",null,"Revenue","Capital Gifts and Grants from Others Non Cash Land"]
[null,null,null,null,""]
[null,"Capital Gifts and Grants from Other Non Cash Infrastructure ",null,"Revenue","Capital Gifts and Grants from Other Non Cash Infrastructure"]
[null,null,null,null,""]
["870020","Capital Gifts and Grants Non Cash Infrastructure ",null,"Revenue","Capital Gifts and Grants Non Cash Infrastructure"]
[null,null,null,null,""]
[null,"Capital Gifts and Grants from Other Non Cash for Buildings and Improvements ",null,"Revenue","Capital Gifts and Grants from Other Non Cash for Buildings and Improvements"]
[null,null,null,null,""]
["870030","Capital Gifts and Grants Non Cash for Buildings and Improvements ",null,"Revenue","Capital Gifts and Grants Non Cash for Buildings and Improvements"]
[null,null,null,null,""]
[null,"Capital Gifts and Grants from Other Non Cash for Equipment ",null,"Revenue","Capital Gifts and Grants from Other Non Cash for Equipment"]
[null,null,null,null,""]
["870040","Capital Gifts and Grants Non Cash for Equipment ",null,"Revenue","Capital Gifts and Grants Non Cash for Equipment"]
[null,null,null,null,""]
[null,"Capital Gifts and Grants from Other Non Cash for Software greater than 5M ",null,"Revenue","Capital Gifts and Grants from Other Non Cash for Software greater than 5M"]
[null,null,null,null,""]
["870050","Capital Gifts and Grants Non Cash for Software greater than 5M ",null,"Revenue","Capital Gifts and Grants Non Cash for Software greater than 5M"]
[null,null,null,null,""]
[null,"Capital Gifts and Grants from Other Non Cash for Software Less than or equal to 5M ",null,"Revenue","Capital Gifts and Grants from Other Non Cash for Software Less than or equal to 5M"]
[null,null,null,null,""]
["870060","Capital Gifts and Grants Non Cash for Software Less than or equal to 5M ",null,"Revenue","Capital Gifts and Grants Non Cash for Software Less than or equal to 5M"]
[null,null,null,null,""]
[null,"Capital Gifts and Grants from Other Non Cash for Intangible Assets ",null,"Revenue","Capital Gifts and Grants from Other Non Cash for Intangible Assets"]
[null,null,null,null,""]
["870070","Capital Gifts and Grants Non Cash for Intangible Assets ",null,"Revenue","Capital Gifts and Grants Non Cash for Intangible Assets"]
[null,null,null,null,""]
[null,"Capital Gifts and Grants from Other Non Cash for Libraries and Collections ",null,"Revenue","Capital Gifts and Grants from Other Non Cash for Libraries and Collections"]
[null,null,null,null,""]
["870080","Capital Gifts and Grants Non Cash for Libraries and Collections ",null,"Revenue","Capital Gifts and Grants Non Cash for Libraries and Collections"]
[null,null,null,null,""]
[null,"Capital Gifts and Grants from Other Non Cash for Special Collections ",null,"Revenue","Capital Gifts and Grants from Other Non Cash for Special Collections"]
[null,null,null,null,""]
["870090","Capital Gifts and Grants Non Cash for Special Collections ",null,"Revenue","Capital Gifts and Grants Non Cash for Special Collections"]
[null,null,null,null,""]
[null,"Capital Gifts and Grants Foundations Non Cash ",null,"Revenue","Capital Gifts and Grants Foundations Non Cash"]
[null,null,null,null,""]
[null,"Capital Gifts and Grants from Campus Foundation Non Cash ",null,"Revenue","Capital Gifts and Grants from Campus Foundation Non Cash"]
[null,null,null,null,""]
["870100","Capital Gifts and Grants from UCDF Non Cash ",null,"Revenue","Capital Gifts and Grants from UCDF Non Cash"]
[null,null,null,null,""]
[null,"Capital Gifts and Grants from Campus Foundations Non Cash for Land ",null,"Revenue","Capital Gifts and Grants from Campus Foundations Non Cash for Land"]
[null,null,null,null,""]
["870110","Capital Gifts and Grants from UCDF Non Cash Land ",null,"Revenue","Capital Gifts and Grants from UCDF Non Cash Land"]
[null,null,null,null,""]
[null,"Capital Gifts and Grants from Campus Foundations Non Cash for Infrastructure ",null,"Revenue","Capital Gifts and Grants from Campus Foundations Non Cash for Infrastructure"]
[null,null,null,null,""]
["870120","Capital Gifts and Grants from UCDF Non Cash Infrastructure ",null,"Revenue","Capital Gifts and Grants from UCDF Non Cash Infrastructure"]
[null,null,null,null,""]
[null,"Capital Gifts and Grants from Campus Foundations Non Cash for Bldgs and Imprvmnts ",null,"Revenue","Capital Gifts and Grants from Campus Foundations Non Cash for Bldgs and Imprvmnts"]
[null,null,null,null,""]
["870130","Capital Gifts and Grants from UCDF Non Cash Bldgs and Imprvmnts ",null,"Revenue","Capital Gifts and Grants from UCDF Non Cash Bldgs and Imprvmnts"]
[null,null,null,null,""]
[null,"Capital Gifts and Grants from Campus Foundations Non Cash for Equipment ",null,"Revenue","Capital Gifts and Grants from Campus Foundations Non Cash for Equipment"]
[null,null,null,null,""]
["870140","Capital Gifts and Grants from UCDF Non Cash Equipment ",null,"Revenue","Capital Gifts and Grants from UCDF Non Cash Equipment"]
[null,null,null,null,""]
[null,"Capital Gifts and Grants from Campus Foundations Non Cash for Software greater than 5M ",null,"Revenue","Capital Gifts and Grants from Campus Foundations Non Cash for Software greater than 5M"]
[null,null,null,null,""]
["870150","Capital Gifts and Grants from UCDF Non Cash Software greater than 5M ",null,"Revenue","Capital Gifts and Grants from UCDF Non Cash Software greater than 5M"]
[null,null,null,null,""]
[null,"Capital Gifts and Grants from Campus Foundations Non Cash for Software less than 5M ",null,"Revenue","Capital Gifts and Grants from Campus Foundations Non Cash for Software less than 5M"]
[null,null,null,null,""]
["870160","Capital Gifts and Grants from UCDF Non Cash Software less than 5M ",null,"Revenue","Capital Gifts and Grants from UCDF Non Cash Software less than 5M"]
[null,null,null,null,""]
[null,"Capital Gifts and Grants from Campus Foundations Non Cash for Intangibles ",null,"Revenue","Capital Gifts and Grants from Campus Foundations Non Cash for Intangibles"]
[null,null,null,null,""]
["870170","Capital Gifts and Grants from UCDF Non Cash Intangible Assets ",null,"Revenue","Capital Gifts and Grants from UCDF Non Cash Intangible Assets"]
[null,null,null,null,""]
[null,"Capital Gifts and Grants from Campus Foundtns Non Cash Libraries Collections ",null,"Revenue","Capital Gifts and Grants from Campus Foundtns Non Cash Libraries Collections"]
[null,null,null,null,""]
["870180","Capital Gifts and Grants from UCDF Non Cash Libraries Collections ",null,"Revenue","Capital Gifts and Grants from UCDF Non Cash Libraries Collections"]
[null,null,null,null,""]
[null,"Capital Gifts and Grants from Campus Foundations Non Cash for Special Collections ",null,"Revenue","Capital Gifts and Grants from Campus Foundations Non Cash for Special Collections"]
[null,null,null,null,""]
["870190","Capital Gifts and Grants from UCDF Non Cash Special Collections ",null,"Revenue","Capital Gifts and Grants from UCDF Non Cash Special Collections"]
[null,null,null,null,""]
[null,"Capital Gifts and Grants Cash ",null,"Revenue","Capital Gifts and Grants Cash"]
[null,null,null,null,""]
[null,"Capital Gifts and Grants from Others Cash ",null,"Revenue","Capital Gifts and Grants from Others Cash"]
[null,null,null,null,""]
["870200","Capital Gifts and Grants NonFoundation Cash ",null,"Revenue","Capital Gifts and Grants NonFoundation Cash"]
[null,null,null,null,""]
[null,"Capital Gifts and Grants from Campus Foundations Cash ",null,"Revenue","Capital Gifts and Grants from Campus Foundations Cash"]
[null,null,null,null,""]
["870300","Capital Gifts and Grants from UCD Foundation Cash ",null,"Revenue","Capital Gifts and Grants from UCD Foundation Cash"]
[null,null,null,null,""]
[null,"State Capital Appropriations ",null,"Revenue","State Capital Appropriations"]
[null,null,null,null,""]
[null,"State Appropriations Capital ",null,"Revenue","State Appropriations Capital"]
[null,null,null,null,""]
[null,"State Appropriations for Capital ",null,"Revenue","State Appropriations for Capital"]
[null,null,null,null,""]
["871000","State Capital Appropriation ",null,"Revenue","State Capital Appropriation"]
[null,null,null,null,""]
[null,"Permanent Endowments ",null,"Revenue","Permanent Endowments"]
[null,null,null,null,""]
[null,"Gifts and Bequests Cash Endowments ",null,"Revenue","Gifts and Bequests Cash Endowments"]
[null,null,null,null,""]
[null,"Gifts and Bequests Cash Endowment ",null,"Revenue","Gifts and Bequests Cash Endowment"]
[null,null,null,null,""]
["872000","Gifts and Bequests Endowment Cash ",null,"Revenue","Gifts and Bequests Endowment Cash"]
[null,null,null,null,""]
[null,"Gifts and Bequests NonCash Endowments ",null,"Revenue","Gifts and Bequests NonCash Endowments"]
[null,null,null,null,""]
[null,"Gifts and Bequests NonCash Endowment ",null,"Revenue","Gifts and Bequests NonCash Endowment"]
[null,null,null,null,""]
["872100","Gifts and Bequests Endowment NonCash ",null,"Revenue","Gifts and Bequests Endowment NonCash"]
[null,null,null,null,""]
["872101","GIK Endowment Securities ",null,"Revenue","GIK Endowment Securities"]
[null,null,null,null,""]
["872102","GIK Permanent Endowments Real Estate ",null,"Revenue","GIK Permanent Endowments Real Estate"]
[null,null,null,null,""]
["872103","Cash Gifts Life Income ",null,"Revenue","Cash Gifts Life Income"]
[null,null,null,null,""]
["872104","GIK Life Income Trusts ",null,"Revenue","GIK Life Income Trusts"]
[null,null,null,null,""]
["872105","GIK Real Estate Life Income Trusts ",null,"Revenue","GIK Real Estate Life Income Trusts"]
[null,null,null,null,""]
["872106","Gifts GIK Other Life Income Trusts ",null,"Revenue","Gifts GIK Other Life Income Trusts"]
[null,null,null,null,""]
[null,"Revaluation of Investments Endowment ",null,"Revenue","Revaluation of Investments Endowment"]
[null,null,null,null,""]
[null,"Revaluation of Investments Endowments ",null,"Revenue","Revaluation of Investments Endowments"]
[null,null,null,null,""]
["872200","Revaluation of Endowment Investments ",null,"Revenue","Revaluation of Endowment Investments"]
[null,null,null,null,""]
[null,"All Expenses ",null,"Expense","All Expenses"]
[null,null,null,null,""]
[null,"Salaries and Wages ",null,"Expense","Salaries and Wages"]
[null,null,null,null,""]
[null,"Academic Salaries and Wages ",null,"Expense","Academic Salaries and Wages"]
[null,null,null,null,""]
[null,"Academic Salaries and Wages Expense ",null,"Expense","Academic Salaries and Wages Expense"]
[null,null,null,null,""]
[null,"Academic Salaries and Wages Expenses ",null,"Expense","Academic Salaries and Wages Expenses"]
[null,null,null,null,""]
["500000","Faculty Salaries Ladder Rank and Equivalent ",null,"Expense","Faculty Salaries Ladder Rank and Equivalent"]
[null,null,null,null,""]
["500001","Faculty Salaries Lecturers Continuing ",null,"Expense","Faculty Salaries Lecturers Continuing"]
[null,null,null,null,""]
["500002","Faculty Salaries Lecturers Temporary ",null,"Expense","Faculty Salaries Lecturers Temporary"]
[null,null,null,null,""]
["500003","Faculty Salaries Clinical InResident Adjunct ",null,"Expense","Faculty Salaries Clinical InResident Adjunct"]
[null,null,null,null,""]
["500008","Other Faculty Salaries ",null,"Expense","Other Faculty Salaries"]
[null,null,null,null,""]
["500010","Teaching Assistant Salaries and Wages ",null,"Expense","Teaching Assistant Salaries and Wages"]
[null,null,null,null,""]
["500011","Associate Instructors Salaries and Wages ",null,"Expense","Associate Instructors Salaries and Wages"]
[null,null,null,null,""]
["500030","Academic Deans Assoc Deans and Provosts incl Interim ",null,"Expense","Academic Deans Assoc Deans and Provosts incl Interim"]
[null,null,null,null,""]
["500035","Academic Coordinators and Admin Salaries and Wages ",null,"Expense","Academic Coordinators and Admin Salaries and Wages"]
[null,null,null,null,""]
["500040","Vet Med Residents and Interns ",null,"Expense","Vet Med Residents and Interns"]
[null,null,null,null,""]
["500090","Agronomists and Other NonFaculty Scientists Ladder Rank ",null,"Expense","Agronomists and Other NonFaculty Scientists Ladder Rank"]
[null,null,null,null,""]
["500091","NonFaculty Instructors ",null,"Expense","NonFaculty Instructors"]
[null,null,null,null,""]
["500092","Graduate Student Researchers Salaries and Wages ",null,"Expense","Graduate Student Researchers Salaries and Wages"]
[null,null,null,null,""]
["500093","PostDoctorates and Assistant Researchers ",null,"Expense","PostDoctorates and Assistant Researchers"]
[null,null,null,null,""]
["500094","Readers ",null,"Expense","Readers"]
[null,null,null,null,""]
["500098","Other Academic Salaries and Wages Expense ",null,"Expense","Other Academic Salaries and Wages Expense"]
[null,null,null,null,""]
["500099","Academic Salaries Reimbursement ",null,"Expense","Academic Salaries Reimbursement"]
[null,null,null,null,""]
[null,"NonAcademic Salaries and Wages ",null,"Expense","NonAcademic Salaries and Wages"]
[null,null,null,null,""]
[null,"NonAcademic Salaries and Wages Expense ",null,"Expense","NonAcademic Salaries and Wages Expense"]
[null,null,null,null,""]
[null,"Staff Salaries and Wages Expenses ",null,"Expense","Staff Salaries and Wages Expenses"]
[null,null,null,null,""]
["501000","Staff Salaries and Wages ",null,"Expense","Staff Salaries and Wages"]
[null,null,null,null,""]
["501001","Contract Limited Floater and Per Diem Salaries and Wages ",null,"Expense","Contract Limited Floater and Per Diem Salaries and Wages"]
[null,null,null,null,""]
["501002","Student Employee Salaries and Wages ",null,"Expense","Student Employee Salaries and Wages"]
[null,null,null,null,""]
["501003","Campus Overtime Pay ",null,"Expense","Campus Overtime Pay"]
[null,null,null,null,""]
["501004","Campus Shift Differential ",null,"Expense","Campus Shift Differential"]
[null,null,null,null,""]
["501090","Salary and Wages Default ",null,"Expense","Salary and Wages Default"]
[null,null,null,null,""]
["501091","VoluntaryTermination ",null,"Expense","VoluntaryTermination"]
[null,null,null,null,""]
["501092","Involuntary Termination ",null,"Expense","Involuntary Termination"]
[null,null,null,null,""]
["501093","Staff Recognition and Development ",null,"Expense","Staff Recognition and Development"]
[null,null,null,null,""]
["501099","Staff Salaries and Wages Reimbursement ",null,"Expense","Staff Salaries and Wages Reimbursement"]
[null,null,null,null,""]
[null,"Medical Salaries and Wages ",null,"Expense","Medical Salaries and Wages"]
[null,null,null,null,""]
[null,"Medical SW Management and Supervision ",null,"Expense","Medical SW Management and Supervision"]
[null,null,null,null,""]
[null,"Medical Salaries and Wages Management and Supervision ",null,"Expense","Medical Salaries and Wages Management and Supervision"]
[null,null,null,null,""]
["502000","UCDMC Management and Supervision Salaries and Wages ",null,"Expense","UCDMC Management and Supervision Salaries and Wages"]
[null,null,null,null,""]
[null,"Medical SW Technicians and Specialists ",null,"Expense","Medical SW Technicians and Specialists"]
[null,null,null,null,""]
[null,"Medical Salaries and Wages Technicians and Specialists ",null,"Expense","Medical Salaries and Wages Technicians and Specialists"]
[null,null,null,null,""]
["502100","UCDMC Technicians and Specialists Salaries and Wages ",null,"Expense","UCDMC Technicians and Specialists Salaries and Wages"]
[null,null,null,null,""]
[null,"Medical SW Registered Nurses ",null,"Expense","Medical SW Registered Nurses"]
[null,null,null,null,""]
[null,"Medical Registered Nurses Salaries and Wages ",null,"Expense","Medical Registered Nurses Salaries and Wages"]
[null,null,null,null,""]
["502200","UCDMC Registered Nurses Salaries and Wages ",null,"Expense","UCDMC Registered Nurses Salaries and Wages"]
[null,null,null,null,""]
[null,"Medical SW Licensed Vocational Nurses ",null,"Expense","Medical SW Licensed Vocational Nurses"]
[null,null,null,null,""]
[null,"Medical Salaries and Wages Licensed Vocational Nurses ",null,"Expense","Medical Salaries and Wages Licensed Vocational Nurses"]
[null,null,null,null,""]
["502300","UCDMC Licensed Vocational Nurses Salaries and Wages ",null,"Expense","UCDMC Licensed Vocational Nurses Salaries and Wages"]
[null,null,null,null,""]
[null,"Medical SW Aides and Orderlies ",null,"Expense","Medical SW Aides and Orderlies"]
[null,null,null,null,""]
[null,"Medical Salaries and Wages Aides and Orderlies ",null,"Expense","Medical Salaries and Wages Aides and Orderlies"]
[null,null,null,null,""]
["502400","UCDMC Salaries and Wages Aides and Orderlies ",null,"Expense","UCDMC Salaries and Wages Aides and Orderlies"]
[null,null,null,null,""]
[null,"Medical SW Clerical and Other Administrative ",null,"Expense","Medical SW Clerical and Other Administrative"]
[null,null,null,null,""]
[null,"Medical Salaries and Wages Clerical and Other Administrative ",null,"Expense","Medical Salaries and Wages Clerical and Other Administrative"]
[null,null,null,null,""]
["502500","UCDMC Clerical and Other Administrative Salaries and Wages ",null,"Expense","UCDMC Clerical and Other Administrative Salaries and Wages"]
[null,null,null,null,""]
[null,"Medical SW Environmental and Food Service ",null,"Expense","Medical SW Environmental and Food Service"]
[null,null,null,null,""]
[null,"Medical Salaries and Wages Environmental and Food Service ",null,"Expense","Medical Salaries and Wages Environmental and Food Service"]
[null,null,null,null,""]
["502600","UCDMC Environmental and Food Service Salaries and Wages ",null,"Expense","UCDMC Environmental and Food Service Salaries and Wages"]
[null,null,null,null,""]
[null,"Medical SW Physicians ",null,"Expense","Medical SW Physicians"]
[null,null,null,null,""]
[null,"Medical Salaries and Wages Physicians ",null,"Expense","Medical Salaries and Wages Physicians"]
[null,null,null,null,""]
["502700","UCDMC Physicians Salaries and Wages ",null,"Expense","UCDMC Physicians Salaries and Wages"]
[null,null,null,null,""]
[null,"Medical SW NonPhysician Medical Practitioners ",null,"Expense","Medical SW NonPhysician Medical Practitioners"]
[null,null,null,null,""]
[null,"Medical Salaries and Wages NonPhysician Medical Practitioners ",null,"Expense","Medical Salaries and Wages NonPhysician Medical Practitioners"]
[null,null,null,null,""]
["502800","UCDMC NonPhysician Medical Practitioners Salaries and Wages ",null,"Expense","UCDMC NonPhysician Medical Practitioners Salaries and Wages"]
[null,null,null,null,""]
[null,"Medical SW Other Salaries and Wages ",null,"Expense","Medical SW Other Salaries and Wages"]
[null,null,null,null,""]
[null,"Medical Salaries and Wages Other Salaries and Wages ",null,"Expense","Medical Salaries and Wages Other Salaries and Wages"]
[null,null,null,null,""]
["502900","Prod Sal Other Salaries and Wages ",null,"Expense","Prod Sal Other Salaries and Wages"]
[null,null,null,null,""]
["502901","NonProd Salaries and Wages ",null,"Expense","NonProd Salaries and Wages"]
[null,null,null,null,""]
[null,"Medical SW NonProductive Vacation Leave ",null,"Expense","Medical SW NonProductive Vacation Leave"]
[null,null,null,null,""]
[null,"Medical SW NonProductive Vacation and Leave ",null,"Expense","Medical SW NonProductive Vacation and Leave"]
[null,null,null,null,""]
["503000","Medical SW Leave Accrual Assessment ",null,"Expense","Medical SW Leave Accrual Assessment"]
[null,null,null,null,""]
["503001","Medical SW Leave Usage Employee ",null,"Expense","Medical SW Leave Usage Employee"]
[null,null,null,null,""]
["503002","Medical SW Leave Benefit Accrual ",null,"Expense","Medical SW Leave Benefit Accrual"]
[null,null,null,null,""]
["503003","Medical SW Accrued Benefits Compensated Absences ",null,"Expense","Medical SW Accrued Benefits Compensated Absences"]
[null,null,null,null,""]
[null,"Medical SW Therapists and Others ",null,"Expense","Medical SW Therapists and Others"]
[null,null,null,null,""]
[null,"Medical Salaries and Wages Therapists and Others ",null,"Expense","Medical Salaries and Wages Therapists and Others"]
[null,null,null,null,""]
["503100","UCDMC Therapists and Others Salaries and Wages ",null,"Expense","UCDMC Therapists and Others Salaries and Wages"]
[null,null,null,null,""]
[null,"Medical SW Residents and Interns ",null,"Expense","Medical SW Residents and Interns"]
[null,null,null,null,""]
[null,"Medical Salaries and Wages Residents and Interns ",null,"Expense","Medical Salaries and Wages Residents and Interns"]
[null,null,null,null,""]
["503200","UCDMC Residents and Interns Salaries and Wages ",null,"Expense","UCDMC Residents and Interns Salaries and Wages"]
[null,null,null,null,""]
[null,"Medical SW Registry Nursing Personnel ",null,"Expense","Medical SW Registry Nursing Personnel"]
[null,null,null,null,""]
[null,"Medical SW Registry Nursing Personnel Expense ",null,"Expense","Medical SW Registry Nursing Personnel Expense"]
[null,null,null,null,""]
["503300","MC Registry Nursing Personnel Salaries and Wages ",null,"Expense","MC Registry Nursing Personnel Salaries and Wages"]
[null,null,null,null,""]
[null,"Medical Salaries Wages Temp Personnel ",null,"Expense","Medical Salaries Wages Temp Personnel"]
[null,null,null,null,""]
[null,"Medical SW Temp Personnel ",null,"Expense","Medical SW Temp Personnel"]
[null,null,null,null,""]
["502001","Temp Employment Services Management and Supervision ",null,"Expense","Temp Employment Services Management and Supervision"]
[null,null,null,null,""]
["502101","Temp Employment Services Technicians and Specialists ",null,"Expense","Temp Employment Services Technicians and Specialists"]
[null,null,null,null,""]
["502201","Temp Employment Services Registered Nurses ",null,"Expense","Temp Employment Services Registered Nurses"]
[null,null,null,null,""]
["502301","Temp Employment Services Licensed Vocational Nurses ",null,"Expense","Temp Employment Services Licensed Vocational Nurses"]
[null,null,null,null,""]
["502401","Temp Employment Services Aides and Orderlies ",null,"Expense","Temp Employment Services Aides and Orderlies"]
[null,null,null,null,""]
["502501","Temp Employment Services Clerical and Other Administrative ",null,"Expense","Temp Employment Services Clerical and Other Administrative"]
[null,null,null,null,""]
["502601","Temp Employment Services Environmental and Food Service ",null,"Expense","Temp Employment Services Environmental and Food Service"]
[null,null,null,null,""]
["502701","Temp Employment Services Physicians ",null,"Expense","Temp Employment Services Physicians"]
[null,null,null,null,""]
["502801","Temp Employment Services NonPhysician Medical Practitioners ",null,"Expense","Temp Employment Services NonPhysician Medical Practitioners"]
[null,null,null,null,""]
["502911","Temporary Employ Services Other ",null,"Expense","Temporary Employ Services Other"]
[null,null,null,null,""]
["503301","Temp Employment Services Registry Nursing Personnel ",null,"Expense","Temp Employment Services Registry Nursing Personnel"]
[null,null,null,null,""]
[null,"Medical SW Salary Payroll Clearing ",null,"Expense","Medical SW Salary Payroll Clearing"]
[null,null,null,null,""]
[null,"Medical Salaries and Wages Salary Payroll Clearing ",null,"Expense","Medical Salaries and Wages Salary Payroll Clearing"]
[null,null,null,null,""]
["503500","UCDMC Salaries and Wages Salary Payroll Clearing ",null,"Expense","UCDMC Salaries and Wages Salary Payroll Clearing"]
[null,null,null,null,""]
[null,"Salary Wages Accrual ",null,"Expense","Salary Wages Accrual"]
[null,null,null,null,""]
[null,"Salary and Wages Accrual ",null,"Expense","Salary and Wages Accrual"]
[null,null,null,null,""]
[null,"Salary and Wages Expense Accrual ",null,"Expense","Salary and Wages Expense Accrual"]
[null,null,null,null,""]
["504000","Bi Weekly Salary and Wages Accruals ",null,"Expense","Bi Weekly Salary and Wages Accruals"]
[null,null,null,null,""]
["504002","Compensatory Time Accrual ",null,"Expense","Compensatory Time Accrual"]
[null,null,null,null,""]
["504003","Holiday Time Accrual ",null,"Expense","Holiday Time Accrual"]
[null,null,null,null,""]
["504004","SMSPP Accrual ",null,"Expense","SMSPP Accrual"]
[null,null,null,null,""]
["504005","EX Vacation Over Max ",null,"Expense","EX Vacation Over Max"]
[null,null,null,null,""]
[null,"Elimination of Capitalized Salary and Wages B ",null,"Expense","Elimination of Capitalized Salary and Wages B"]
[null,null,null,null,""]
[null,"Elimination of Capitalized Salary Wages ",null,"Expense","Elimination of Capitalized Salary Wages"]
[null,null,null,null,""]
[null,"Elimination of Capitalized Salary and Wages Expenditures ",null,"Expense","Elimination of Capitalized Salary and Wages Expenditures"]
[null,null,null,null,""]
["504500","Elimination of Capitalized Salary and Wages ",null,"Expense","Elimination of Capitalized Salary and Wages"]
[null,null,null,null,""]
[null,"Pension Benefits ",null,"Expense","Pension Benefits"]
[null,null,null,null,""]
[null,"UCRP ",null,"Expense","UCRP"]
[null,null,null,null,""]
[null,"UCRP Cash Contributions ",null,"Expense","UCRP Cash Contributions"]
[null,null,null,null,""]
[null,"UCRP Cash Contribution Expense ",null,"Expense","UCRP Cash Contribution Expense"]
[null,null,null,null,""]
["505000","UCRP Cash Contributions Expense ",null,"Expense","UCRP Cash Contributions Expense"]
[null,null,null,null,""]
[null,"UCRP Principal Supplemental Assessment ",null,"Expense","UCRP Principal Supplemental Assessment"]
[null,null,null,null,""]
[null,"UCRP Principal Supplemental Assessments Expense ",null,"Expense","UCRP Principal Supplemental Assessments Expense"]
[null,null,null,null,""]
["505100","UCRP Principal Supplemental Assessment Expense ",null,"Expense","UCRP Principal Supplemental Assessment Expense"]
[null,null,null,null,""]
[null,"GASB 68 Actuarial Adjustments ",null,"Expense","GASB 68 Actuarial Adjustments"]
[null,null,null,null,""]
[null,"GASB 68 Actuarial Expense Adjustments ",null,"Expense","GASB 68 Actuarial Expense Adjustments"]
[null,null,null,null,""]
["505200","Pension Actuarial Adjustments ",null,"Expense","Pension Actuarial Adjustments"]
[null,null,null,null,""]
[null,"DBSupplemental Plan Employer Contribution ",null,"Expense","DBSupplemental Plan Employer Contribution"]
[null,null,null,null,""]
[null,"DB Supplemental Plan Employer Contribution ",null,"Expense","DB Supplemental Plan Employer Contribution"]
[null,null,null,null,""]
["505300","Defined Benefit DB Supplemental Plan Employer Contribution ",null,"Expense","Defined Benefit DB Supplemental Plan Employer Contribution"]
[null,null,null,null,""]
[null,"DC Choice Plan Employer Contributions C ",null,"Expense","DC Choice Plan Employer Contributions C"]
[null,null,null,null,""]
[null,"DC Choice Plan Employer Contributions ",null,"Expense","DC Choice Plan Employer Contributions"]
[null,null,null,null,""]
["505400","Defined Contribution DC Choice Plan Employer Contribution ",null,"Expense","Defined Contribution DC Choice Plan Employer Contribution"]
[null,null,null,null,""]
[null,"UCRP Supplemental Assessment Interest Exp ",null,"Expense","UCRP Supplemental Assessment Interest Exp"]
[null,null,null,null,""]
[null,"UCRP Supplemental Assessment Interest ",null,"Expense","UCRP Supplemental Assessment Interest"]
[null,null,null,null,""]
["505500","UCRP Supplemental Assessment Benefits Expense Interest ",null,"Expense","UCRP Supplemental Assessment Benefits Expense Interest"]
[null,null,null,null,""]
[null,"PERS ",null,"Expense","PERS"]
[null,null,null,null,""]
[null,"PERS Regents Contribution ",null,"Expense","PERS Regents Contribution"]
[null,null,null,null,""]
[null,"PERS Regents Contributions ",null,"Expense","PERS Regents Contributions"]
[null,null,null,null,""]
["505600","PERS Regents Contribution Benefits Expense ",null,"Expense","PERS Regents Contribution Benefits Expense"]
[null,null,null,null,""]
[null,"Defined Contribution Plans ",null,"Expense","Defined Contribution Plans"]
[null,null,null,null,""]
[null,"Summer Salaries Contribution ",null,"Expense","Summer Salaries Contribution"]
[null,null,null,null,""]
[null,"DC Summer Salaries Contribution ",null,"Expense","DC Summer Salaries Contribution"]
[null,null,null,null,""]
["505700","DC Plan Summer Salaries Contributions ",null,"Expense","DC Plan Summer Salaries Contributions"]
[null,null,null,null,""]
[null,"Senior Management Supplement ",null,"Expense","Senior Management Supplement"]
[null,null,null,null,""]
[null,"DC Senior Management Supplement ",null,"Expense","DC Senior Management Supplement"]
[null,null,null,null,""]
["505800","DC Plan Senior Management Contributions ",null,"Expense","DC Plan Senior Management Contributions"]
[null,null,null,null,""]
[null,"Campus or Oher Retirement Plans ",null,"Expense","Campus or Oher Retirement Plans"]
[null,null,null,null,""]
[null,"CHRCO OCERS etc ",null,"Expense","CHRCO OCERS etc"]
[null,null,null,null,""]
[null,"CHRCO OCERS and Other Plans ",null,"Expense","CHRCO OCERS and Other Plans"]
[null,null,null,null,""]
["505900","Other Retirement Plans CHRCO OCERS etc ",null,"Expense","Other Retirement Plans CHRCO OCERS etc"]
[null,null,null,null,""]
[null,"Retiree Health Benefits ",null,"Expense","Retiree Health Benefits"]
[null,null,null,null,""]
[null,"OPEB Cash Contribution ",null,"Expense","OPEB Cash Contribution"]
[null,null,null,null,""]
[null,"OPEB Cash Contribution Expense ",null,"Expense","OPEB Cash Contribution Expense"]
[null,null,null,null,""]
[null,"OPEB Cash Contribution Benefits Expense ",null,"Expense","OPEB Cash Contribution Benefits Expense"]
[null,null,null,null,""]
["506000","Retiree Health OPEB Cash Contribution ",null,"Expense","Retiree Health OPEB Cash Contribution"]
[null,null,null,null,""]
[null,"GASB 75 Actuarial Adjustments ",null,"Expense","GASB 75 Actuarial Adjustments"]
[null,null,null,null,""]
[null,"GASB 75 Actuarial OPEB Adjustments ",null,"Expense","GASB 75 Actuarial OPEB Adjustments"]
[null,null,null,null,""]
[null,"GASB 75 OPEB Actuarial Adjustments ",null,"Expense","GASB 75 OPEB Actuarial Adjustments"]
[null,null,null,null,""]
["506100","OPEB Actuarial Adjustments GASB 75 ",null,"Expense","OPEB Actuarial Adjustments GASB 75"]
[null,null,null,null,""]
[null,"Other Employee Benefits ",null,"Expense","Other Employee Benefits"]
[null,null,null,null,""]
[null,"Health and Welfare Benefits ",null,"Expense","Health and Welfare Benefits"]
[null,null,null,null,""]
[null,"Group Health Insurance ",null,"Expense","Group Health Insurance"]
[null,null,null,null,""]
[null,"Group Health Insurance Plans ",null,"Expense","Group Health Insurance Plans"]
[null,null,null,null,""]
["507000","Graduate Student Health Remission ",null,"Expense","Graduate Student Health Remission"]
[null,null,null,null,""]
["507002","Health Insurance ",null,"Expense","Health Insurance"]
[null,null,null,null,""]
["507003","Dental Insurance ",null,"Expense","Dental Insurance"]
[null,null,null,null,""]
["507004","Vision Insurance ",null,"Expense","Vision Insurance"]
[null,null,null,null,""]
[null,"Implicit Subsidy Expense ",null,"Expense","Implicit Subsidy Expense"]
[null,null,null,null,""]
["507020","Implicit Subsidy ",null,"Expense","Implicit Subsidy"]
[null,null,null,null,""]
[null,"Group life insurance ",null,"Expense","Group life insurance"]
[null,null,null,null,""]
[null,"Group Life Insurance Benefits ",null,"Expense","Group Life Insurance Benefits"]
[null,null,null,null,""]
["507100","Life Insurance ",null,"Expense","Life Insurance"]
[null,null,null,null,""]
[null,"Workers Compensation Insu ",null,"Expense","Workers Compensation Insu"]
[null,null,null,null,""]
[null,"Workers Compensation Insurance ",null,"Expense","Workers Compensation Insurance"]
[null,null,null,null,""]
["507200","Workers Compensation Insurance Benefits Expense ",null,"Expense","Workers Compensation Insurance Benefits Expense"]
[null,null,null,null,""]
[null,"Disability Insurance ",null,"Expense","Disability Insurance"]
[null,null,null,null,""]
[null,"Disability Insurance Expense ",null,"Expense","Disability Insurance Expense"]
[null,null,null,null,""]
["507300","Disability Insurance Benefits Expense ",null,"Expense","Disability Insurance Benefits Expense"]
[null,null,null,null,""]
[null,"Other Employee Benefit Expenses ",null,"Expense","Other Employee Benefit Expenses"]
[null,null,null,null,""]
[null,"Other Employee Benefit Expense ",null,"Expense","Other Employee Benefit Expense"]
[null,null,null,null,""]
["507400","Accrued Benefits Expense Compensated Absences ",null,"Expense","Accrued Benefits Expense Compensated Absences"]
[null,null,null,null,""]
["507410","Incentive Award Programs Expense ",null,"Expense","Incentive Award Programs Expense"]
[null,null,null,null,""]
["507411","Incentive Award Programs Reimbursement ",null,"Expense","Incentive Award Programs Reimbursement"]
[null,null,null,null,""]
["507420","Benefits Assessment Administration Expense ",null,"Expense","Benefits Assessment Administration Expense"]
[null,null,null,null,""]
["507430","415M Restoration Plan Contribution ",null,"Expense","415M Restoration Plan Contribution"]
[null,null,null,null,""]
["507499","Other Miscellaneous Employee Benefits ",null,"Expense","Other Miscellaneous Employee Benefits"]
[null,null,null,null,""]
[null,"Payroll Tax Expense ",null,"Expense","Payroll Tax Expense"]
[null,null,null,null,""]
[null,"FICA Medicare ",null,"Expense","FICA Medicare"]
[null,null,null,null,""]
[null,"FICA Medicare Tax ",null,"Expense","FICA Medicare Tax"]
[null,null,null,null,""]
["507500","FICA Medicare Tax Expense ",null,"Expense","FICA Medicare Tax Expense"]
[null,null,null,null,""]
[null,"FICA OASDI ",null,"Expense","FICA OASDI"]
[null,null,null,null,""]
[null,"FICA OASDI Tax ",null,"Expense","FICA OASDI Tax"]
[null,null,null,null,""]
["507600","FICA OASDI Tax Expense ",null,"Expense","FICA OASDI Tax Expense"]
[null,null,null,null,""]
[null,"State and Federal Unemployment Insurance ",null,"Expense","State and Federal Unemployment Insurance"]
[null,null,null,null,""]
[null,"State and Federal Unemployment Insurance Expense ",null,"Expense","State and Federal Unemployment Insurance Expense"]
[null,null,null,null,""]
["507700","State and Federal Unemployment Insurance Benefits Expense ",null,"Expense","State and Federal Unemployment Insurance Benefits Expense"]
[null,null,null,null,""]
[null,"Composite Benefit Rate Campus Payment ",null,"Expense","Composite Benefit Rate Campus Payment"]
[null,null,null,null,""]
[null,"Composite Benefit Rate Campus Payments ",null,"Expense","Composite Benefit Rate Campus Payments"]
[null,null,null,null,""]
[null,"Composite Benefit Rate Campus Payment Expense ",null,"Expense","Composite Benefit Rate Campus Payment Expense"]
[null,null,null,null,""]
["508000","Composite Benefit Rate Campus Payment CBR Expense ",null,"Expense","Composite Benefit Rate Campus Payment CBR Expense"]
[null,null,null,null,""]
["508001","Un reimbursable Benefits Costs ",null,"Expense","Un reimbursable Benefits Costs"]
[null,null,null,null,""]
[null,"Local Campus Specific Benefit Programs ",null,"Expense","Local Campus Specific Benefit Programs"]
[null,null,null,null,""]
[null,"Campus Specific Local Benefit Programs ",null,"Expense","Campus Specific Local Benefit Programs"]
[null,null,null,null,""]
[null,"Local Campus Specific Benefit programs D ",null,"Expense","Local Campus Specific Benefit programs D"]
[null,null,null,null,""]
["505001","CBR Addon Prop 2 ",null,"Expense","CBR Addon Prop 2"]
[null,null,null,null,""]
["508100","Relocation Benefits Expense ",null,"Expense","Relocation Benefits Expense"]
[null,null,null,null,""]
["508101","Transit Benefit Assessment Match ",null,"Expense","Transit Benefit Assessment Match"]
[null,null,null,null,""]
["508110","Voluntary and Involuntary Termination Benefits Expense ",null,"Expense","Voluntary and Involuntary Termination Benefits Expense"]
[null,null,null,null,""]
["508120","Graduate Student Fee Remission ",null,"Expense","Graduate Student Fee Remission"]
[null,null,null,null,""]
["508121","Graduate Student Fee Remission Rebate ",null,"Expense","Graduate Student Fee Remission Rebate"]
[null,null,null,null,""]
["508125","TA Graduate Remission ",null,"Expense","TA Graduate Remission"]
[null,null,null,null,""]
["508130","Nonresident Fee Remission ",null,"Expense","Nonresident Fee Remission"]
[null,null,null,null,""]
["508132","2nd3r Year NRST Remission ",null,"Expense","2nd3r Year NRST Remission"]
[null,null,null,null,""]
["508139","Graduate Student Campus Rebate ",null,"Expense","Graduate Student Campus Rebate"]
[null,null,null,null,""]
["508140","Employee Benefit Cost Transfers Expense ",null,"Expense","Employee Benefit Cost Transfers Expense"]
[null,null,null,null,""]
["508190","Equivalent of Month Earnings Paid to Dependent ",null,"Expense","Equivalent of Month Earnings Paid to Dependent"]
[null,null,null,null,""]
["508191","Employee Support Programs ",null,"Expense","Employee Support Programs"]
[null,null,null,null,""]
["508199","Other Local and Campus Specific Benefit Programs ",null,"Expense","Other Local and Campus Specific Benefit Programs"]
[null,null,null,null,""]
[null,"Benefits Accrual ",null,"Expense","Benefits Accrual"]
[null,null,null,null,""]
[null,"Benefits Accruals ",null,"Expense","Benefits Accruals"]
[null,null,null,null,""]
[null,"Benefits Accrued Expense ",null,"Expense","Benefits Accrued Expense"]
[null,null,null,null,""]
["508210","Biweekly Benefit Accrual ",null,"Expense","Biweekly Benefit Accrual"]
[null,null,null,null,""]
[null,"Vacation Accrual Expense ",null,"Expense","Vacation Accrual Expense"]
[null,null,null,null,""]
[null,"Vacation Accruals ",null,"Expense","Vacation Accruals"]
[null,null,null,null,""]
["508300","Vacation Accrued Expenses ",null,"Expense","Vacation Accrued Expenses"]
[null,null,null,null,""]
["508301","Vacation and Leave Usage Salaries and Wages ",null,"Expense","Vacation and Leave Usage Salaries and Wages"]
[null,null,null,null,""]
[null,"Elimination of Capitalized Benefit Expenses ",null,"Expense","Elimination of Capitalized Benefit Expenses"]
[null,null,null,null,""]
[null,"Elimination of Capitalized Benefits Expense ",null,"Expense","Elimination of Capitalized Benefits Expense"]
[null,null,null,null,""]
[null,"Elimination of Capitalized Benefits Expenses ",null,"Expense","Elimination of Capitalized Benefits Expenses"]
[null,null,null,null,""]
["508500","Elimination of Capitalized Benefits ",null,"Expense","Elimination of Capitalized Benefits"]
[null,null,null,null,""]
[null,"Financial Aid and Scholarships ",null,"Expense","Financial Aid and Scholarships"]
[null,null,null,null,""]
[null,"Undergraduate Aid and Scholarships Expense ",null,"Expense","Undergraduate Aid and Scholarships Expense"]
[null,null,null,null,""]
[null,"Undergraduate Financial Aid and Scholarships Expense ",null,"Expense","Undergraduate Financial Aid and Scholarships Expense"]
[null,null,null,null,""]
[null,"Undergraduate Financial Aid and Scholarship Expense ",null,"Expense","Undergraduate Financial Aid and Scholarship Expense"]
[null,null,null,null,""]
["510000","Federal Pell Grant Program ",null,"Expense","Federal Pell Grant Program"]
[null,null,null,null,""]
["510001","Other Federal Grant Program ",null,"Expense","Other Federal Grant Program"]
[null,null,null,null,""]
["510002","University Student Aid Program ",null,"Expense","University Student Aid Program"]
[null,null,null,null,""]
["510003","Campus Based Fees Grant Program ",null,"Expense","Campus Based Fees Grant Program"]
[null,null,null,null,""]
["510004","Other State or Institutional Grant Program ",null,"Expense","Other State or Institutional Grant Program"]
[null,null,null,null,""]
["510005","Undergraduate Financial Aid and Scholarships Excluding Grants ",null,"Expense","Undergraduate Financial Aid and Scholarships Excluding Grants"]
[null,null,null,null,""]
["510006","Scholarship Allowance Undergrad RTA ",null,"Expense","Scholarship Allowance Undergrad RTA"]
[null,null,null,null,""]
["510007","Undergrad Scholarship and Fellowship Expense ",null,"Expense","Undergrad Scholarship and Fellowship Expense"]
[null,null,null,null,""]
[null,"Graduate and Professional Aid and Fellowship ",null,"Expense","Graduate and Professional Aid and Fellowship"]
[null,null,null,null,""]
[null,"Graduate Financial Aid and Fellowship Expenses ",null,"Expense","Graduate Financial Aid and Fellowship Expenses"]
[null,null,null,null,""]
[null,"Graduate Academic and Professional Aid and Fellowship Expense ",null,"Expense","Graduate Academic and Professional Aid and Fellowship Expense"]
[null,null,null,null,""]
["511000","Graduate Fellowship Tuition and Fees ",null,"Expense","Graduate Fellowship Tuition and Fees"]
[null,null,null,null,""]
["511001","Graduate Fellowship Nonresident ",null,"Expense","Graduate Fellowship Nonresident"]
[null,null,null,null,""]
["511002","Graduate Fellowship Stipend ",null,"Expense","Graduate Fellowship Stipend"]
[null,null,null,null,""]
["511003","Post Doctorate Fellowship Expense ",null,"Expense","Post Doctorate Fellowship Expense"]
[null,null,null,null,""]
["511004","Graduate Scholarship Allowance ",null,"Expense","Graduate Scholarship Allowance"]
[null,null,null,null,""]
["511007","Graduate Fellowship Traineeship Unrestricted ",null,"Expense","Graduate Fellowship Traineeship Unrestricted"]
[null,null,null,null,""]
["511009","Graduate Grant Program ",null,"Expense","Graduate Grant Program"]
[null,null,null,null,""]
[null,"Supplies and Services ",null,"Expense","Supplies and Services"]
[null,null,null,null,""]
[null,"Health Supplies and Pharmaceuticals ",null,"Expense","Health Supplies and Pharmaceuticals"]
[null,null,null,null,""]
[null,"Prosthesis ",null,"Expense","Prosthesis"]
[null,null,null,null,""]
[null,"Prosthesis Supplies ",null,"Expense","Prosthesis Supplies"]
[null,null,null,null,""]
["520000","Prosthesis Tissues ",null,"Expense","Prosthesis Tissues"]
[null,null,null,null,""]
["520001","Prosthesis Grafts Stents ",null,"Expense","Prosthesis Grafts Stents"]
[null,null,null,null,""]
["520002","Prosthesis Bones ",null,"Expense","Prosthesis Bones"]
[null,null,null,null,""]
["520003","Prosthesis Knee ",null,"Expense","Prosthesis Knee"]
[null,null,null,null,""]
["520004","Prosthesis Hip ",null,"Expense","Prosthesis Hip"]
[null,null,null,null,""]
["520005","Prosthesis Spine ",null,"Expense","Prosthesis Spine"]
[null,null,null,null,""]
["520006","Prosthesis Screws and Pins ",null,"Expense","Prosthesis Screws and Pins"]
[null,null,null,null,""]
["520007","Prosthesis Pacemaker ",null,"Expense","Prosthesis Pacemaker"]
[null,null,null,null,""]
["520008","Prosthesis Ankle ",null,"Expense","Prosthesis Ankle"]
[null,null,null,null,""]
["520009","Prosthesis Shoulder ",null,"Expense","Prosthesis Shoulder"]
[null,null,null,null,""]
["520010","Prosthesis Ocular ",null,"Expense","Prosthesis Ocular"]
[null,null,null,null,""]
["520011","Prosthesis Hearing ",null,"Expense","Prosthesis Hearing"]
[null,null,null,null,""]
["520012","Prosthesis Other ",null,"Expense","Prosthesis Other"]
[null,null,null,null,""]
[null,"Sutures and Surgical Needles ",null,"Expense","Sutures and Surgical Needles"]
[null,null,null,null,""]
[null,"Sutures and Surgical Needles Supplies ",null,"Expense","Sutures and Surgical Needles Supplies"]
[null,null,null,null,""]
["520050","Sutures and Surgical Needles Expense ",null,"Expense","Sutures and Surgical Needles Expense"]
[null,null,null,null,""]
[null,"Surgical Packs and Sheets ",null,"Expense","Surgical Packs and Sheets"]
[null,null,null,null,""]
[null,"Surgical Packs and Sheets Supplies ",null,"Expense","Surgical Packs and Sheets Supplies"]
[null,null,null,null,""]
["520100","Surgical Packs and Sheets Expense ",null,"Expense","Surgical Packs and Sheets Expense"]
[null,null,null,null,""]
[null,"Surgical Supplies General ",null,"Expense","Surgical Supplies General"]
[null,null,null,null,""]
[null,"Surgical Supplies Expense General ",null,"Expense","Surgical Supplies Expense General"]
[null,null,null,null,""]
["520150","Surgical Supplies General Expense ",null,"Expense","Surgical Supplies General Expense"]
[null,null,null,null,""]
[null,"Anesthetic Materials ",null,"Expense","Anesthetic Materials"]
[null,null,null,null,""]
[null,"Anesthetic Materials and Supplies ",null,"Expense","Anesthetic Materials and Supplies"]
[null,null,null,null,""]
["520200","Anesthetic Materials Expense ",null,"Expense","Anesthetic Materials Expense"]
[null,null,null,null,""]
[null,"Oxygen and Other Medical Gases ",null,"Expense","Oxygen and Other Medical Gases"]
[null,null,null,null,""]
[null,"Oxygen and Other Medical Gases Supplies ",null,"Expense","Oxygen and Other Medical Gases Supplies"]
[null,null,null,null,""]
["520250","Oxygen and Other Medical Gases Expense ",null,"Expense","Oxygen and Other Medical Gases Expense"]
[null,null,null,null,""]
[null,"IV Solutions ",null,"Expense","IV Solutions"]
[null,null,null,null,""]
[null,"IV Solutions Supplies ",null,"Expense","IV Solutions Supplies"]
[null,null,null,null,""]
["520300","Intravenous IV Solutions ",null,"Expense","Intravenous IV Solutions"]
[null,null,null,null,""]
[null,"Pharmaceuticals ",null,"Expense","Pharmaceuticals"]
[null,null,null,null,""]
[null,"Pharmaceutical Drugs ",null,"Expense","Pharmaceutical Drugs"]
[null,null,null,null,""]
["520350","Pharmaceuticals Drugs Expense ",null,"Expense","Pharmaceuticals Drugs Expense"]
[null,null,null,null,""]
[null,"Radioactive Materials ",null,"Expense","Radioactive Materials"]
[null,null,null,null,""]
[null,"Radioactive Materials and Supplies ",null,"Expense","Radioactive Materials and Supplies"]
[null,null,null,null,""]
["520400","Radioactive Materials Expense ",null,"Expense","Radioactive Materials Expense"]
[null,null,null,null,""]
[null,"Radiology Films ",null,"Expense","Radiology Films"]
[null,null,null,null,""]
[null,"Radiology Films and Supplies ",null,"Expense","Radiology Films and Supplies"]
[null,null,null,null,""]
["520450","Radiology Films Expenses ",null,"Expense","Radiology Films Expenses"]
[null,null,null,null,""]
[null,"Other Medical Care Materials and Supplies ",null,"Expense","Other Medical Care Materials and Supplies"]
[null,null,null,null,""]
[null,"Other Medical Care Materials and Supplies Expense ",null,"Expense","Other Medical Care Materials and Supplies Expense"]
[null,null,null,null,""]
["520500","Blood Factors ",null,"Expense","Blood Factors"]
[null,null,null,null,""]
["520502","Test Kits ",null,"Expense","Test Kits"]
[null,null,null,null,""]
["520503","Dietary Tube Feeding ",null,"Expense","Dietary Tube Feeding"]
[null,null,null,null,""]
["520504","Organ Acquisition Fees ",null,"Expense","Organ Acquisition Fees"]
[null,null,null,null,""]
["520505","Catheters and Catheter Accessories ",null,"Expense","Catheters and Catheter Accessories"]
[null,null,null,null,""]
["520506","Bandages and Supports ",null,"Expense","Bandages and Supports"]
[null,null,null,null,""]
["520507","Tubes Cannulas and Accessories ",null,"Expense","Tubes Cannulas and Accessories"]
[null,null,null,null,""]
["520508","Compressed Gas Cryogenics ",null,"Expense","Compressed Gas Cryogenics"]
[null,null,null,null,""]
["520529","Other Medical Supplies ",null,"Expense","Other Medical Supplies"]
[null,null,null,null,""]
[null,"Blood and Blood Products ",null,"Expense","Blood and Blood Products"]
[null,null,null,null,""]
[null,"Blood and Blood Products Supplies ",null,"Expense","Blood and Blood Products Supplies"]
[null,null,null,null,""]
["520550","Blood and Plasma ",null,"Expense","Blood and Plasma"]
[null,null,null,null,""]
[null,"Instruments and Minor Medical Equipment ",null,"Expense","Instruments and Minor Medical Equipment"]
[null,null,null,null,""]
[null,"Instruments and Minor Medical Equipment Expense ",null,"Expense","Instruments and Minor Medical Equipment Expense"]
[null,null,null,null,""]
["520600","Instruments and Minor Medical Equipment Expenses ",null,"Expense","Instruments and Minor Medical Equipment Expenses"]
[null,null,null,null,""]
[null,"Supplies Non Health ",null,"Expense","Supplies Non Health"]
[null,null,null,null,""]
[null,"Food and Beverage Supplies ",null,"Expense","Food and Beverage Supplies"]
[null,null,null,null,""]
[null,"Food and Beverage Dining Services Supplies ",null,"Expense","Food and Beverage Dining Services Supplies"]
[null,null,null,null,""]
["522000","Food Beverage ",null,"Expense","Food Beverage"]
[null,null,null,null,""]
["522001","Food Equipment and Supplies ",null,"Expense","Food Equipment and Supplies"]
[null,null,null,null,""]
["522010","MC Fruits Vegtables ",null,"Expense","MC Fruits Vegtables"]
[null,null,null,null,""]
["522011","MC Dairy Products ",null,"Expense","MC Dairy Products"]
[null,null,null,null,""]
["522012","MC Baked Goods ",null,"Expense","MC Baked Goods"]
[null,null,null,null,""]
["522013","MC Meats Fish Poultry ",null,"Expense","MC Meats Fish Poultry"]
[null,null,null,null,""]
["522014","MC Beverages ",null,"Expense","MC Beverages"]
[null,null,null,null,""]
["522015","MC Other Food ",null,"Expense","MC Other Food"]
[null,null,null,null,""]
[null,"Bookstore Items for Resale ",null,"Expense","Bookstore Items for Resale"]
[null,null,null,null,""]
[null,"Bookstore Items for Resale Expenses ",null,"Expense","Bookstore Items for Resale Expenses"]
[null,null,null,null,""]
["522100","Course Books for Resale ",null,"Expense","Course Books for Resale"]
[null,null,null,null,""]
["522101","School and Office Supplies for Resale ",null,"Expense","School and Office Supplies for Resale"]
[null,null,null,null,""]
["522102","Sundries and Clinique Items for Resale ",null,"Expense","Sundries and Clinique Items for Resale"]
[null,null,null,null,""]
["522103","Gifts for Resale ",null,"Expense","Gifts for Resale"]
[null,null,null,null,""]
["522104","Gift Cards for Resale ",null,"Expense","Gift Cards for Resale"]
[null,null,null,null,""]
["522105","General Books for Resale ",null,"Expense","General Books for Resale"]
[null,null,null,null,""]
["522106","Specialty Products for Resale ",null,"Expense","Specialty Products for Resale"]
[null,null,null,null,""]
["522107","Food and Beverage for Resale ",null,"Expense","Food and Beverage for Resale"]
[null,null,null,null,""]
["522108","Consumer Electronics for Resale ",null,"Expense","Consumer Electronics for Resale"]
[null,null,null,null,""]
["522109","Computer Hardware for Resale ",null,"Expense","Computer Hardware for Resale"]
[null,null,null,null,""]
["522110","Clothing and Apparel Items for Resale ",null,"Expense","Clothing and Apparel Items for Resale"]
[null,null,null,null,""]
["522111","Art and Engineering Supplies for Resale ",null,"Expense","Art and Engineering Supplies for Resale"]
[null,null,null,null,""]
["522112","Cap and Gowns Rental Supplies ",null,"Expense","Cap and Gowns Rental Supplies"]
[null,null,null,null,""]
[null,"Office and Administrative Supplies ",null,"Expense","Office and Administrative Supplies"]
[null,null,null,null,""]
[null,"Office and Administrative Supplies Expense ",null,"Expense","Office and Administrative Supplies Expense"]
[null,null,null,null,""]
["522200","Postage and Mail Supplies ",null,"Expense","Postage and Mail Supplies"]
[null,null,null,null,""]
["522201","General Office Supplies ",null,"Expense","General Office Supplies"]
[null,null,null,null,""]
[null,"Physical Plant Manufacturing and Furnishing Materials C ",null,"Expense","Physical Plant Manufacturing and Furnishing Materials C"]
[null,null,null,null,""]
[null,"Physical Plant Manufacturing and Furnishing Materials D ",null,"Expense","Physical Plant Manufacturing and Furnishing Materials D"]
[null,null,null,null,""]
["522300","Furniture PPM Expense ",null,"Expense","Furniture PPM Expense"]
[null,null,null,null,""]
["522301","Construction and Equipment Non CIP Expense ",null,"Expense","Construction and Equipment Non CIP Expense"]
[null,null,null,null,""]
["522302","Fabrication Non CIP Expense ",null,"Expense","Fabrication Non CIP Expense"]
[null,null,null,null,""]
[null,"Laboratory Supplies ",null,"Expense","Laboratory Supplies"]
[null,null,null,null,""]
[null,"Laboratory Supplies and Equipment Noncapital ",null,"Expense","Laboratory Supplies and Equipment Noncapital"]
[null,null,null,null,""]
["522400","Lab Supplies and Accessories ",null,"Expense","Lab Supplies and Accessories"]
[null,null,null,null,""]
["522401","Lab Chemicals and Gases ",null,"Expense","Lab Chemicals and Gases"]
[null,null,null,null,""]
["522402","Lab Animal Purchases ",null,"Expense","Lab Animal Purchases"]
[null,null,null,null,""]
["522403","Lab Animal Supplies ",null,"Expense","Lab Animal Supplies"]
[null,null,null,null,""]
["522404","Lab Animal Bedding ",null,"Expense","Lab Animal Bedding"]
[null,null,null,null,""]
["522405","Lab Animal Cages Habitat Supplies ",null,"Expense","Lab Animal Cages Habitat Supplies"]
[null,null,null,null,""]
["522406","Lab Animal Feed ",null,"Expense","Lab Animal Feed"]
[null,null,null,null,""]
["522407","Live Plant Accessories and Supplies ",null,"Expense","Live Plant Accessories and Supplies"]
[null,null,null,null,""]
[null,"Printed Items and Other Classroom Teaching Aides ",null,"Expense","Printed Items and Other Classroom Teaching Aides"]
[null,null,null,null,""]
[null,"Printed Items Course Materials and Other Classroom Teaching Aides ",null,"Expense","Printed Items Course Materials and Other Classroom Teaching Aides"]
[null,null,null,null,""]
["522511","Books and Publications ",null,"Expense","Books and Publications"]
[null,null,null,null,""]
["522513","Library Materials ",null,"Expense","Library Materials"]
[null,null,null,null,""]
["522514","Book Binding ",null,"Expense","Book Binding"]
[null,null,null,null,""]
[null,"Subscriptions and Memberships Federally Chargeable ",null,"Expense","Subscriptions and Memberships Federally Chargeable"]
[null,null,null,null,""]
[null,"Subscriptions and Memberships Federally Chargeable Expense ",null,"Expense","Subscriptions and Memberships Federally Chargeable Expense"]
[null,null,null,null,""]
["522600","Subscriptions and Memberships Fed Allowable ",null,"Expense","Subscriptions and Memberships Fed Allowable"]
[null,null,null,null,""]
[null,"Subscriptions and Memberships Federally Un chargeable ",null,"Expense","Subscriptions and Memberships Federally Un chargeable"]
[null,null,null,null,""]
[null,"Subscriptions and Memberships Federally Un chargeable Expense ",null,"Expense","Subscriptions and Memberships Federally Un chargeable Expense"]
[null,null,null,null,""]
["522700","Subscriptions and Memberships Fed Unallowable ",null,"Expense","Subscriptions and Memberships Fed Unallowable"]
[null,null,null,null,""]
[null,"Employee Wearing Apparel Exp ",null,"Expense","Employee Wearing Apparel Exp"]
[null,null,null,null,""]
[null,"Employee Wearing Apparel Expense ",null,"Expense","Employee Wearing Apparel Expense"]
[null,null,null,null,""]
["522800","Employee Wearing Apparel ",null,"Expense","Employee Wearing Apparel"]
[null,null,null,null,""]
[null,"Cleaning Supplies ",null,"Expense","Cleaning Supplies"]
[null,null,null,null,""]
[null,"Cleaning Supplies Medical Center ",null,"Expense","Cleaning Supplies Medical Center"]
[null,null,null,null,""]
["522900","Cleaning Supplies Expense ",null,"Expense","Cleaning Supplies Expense"]
[null,null,null,null,""]
[null,"Linen and Bedding ",null,"Expense","Linen and Bedding"]
[null,null,null,null,""]
[null,"Linen and Bedding Expense ",null,"Expense","Linen and Bedding Expense"]
[null,null,null,null,""]
["523000","MC Linen and Bedding Supplies Expense ",null,"Expense","MC Linen and Bedding Supplies Expense"]
[null,null,null,null,""]
[null,"Other Minor Equipment ",null,"Expense","Other Minor Equipment"]
[null,null,null,null,""]
[null,"Other Minor Equipment Expense ",null,"Expense","Other Minor Equipment Expense"]
[null,null,null,null,""]
["523100","Medical Center Nonmedical Equipment ",null,"Expense","Medical Center Nonmedical Equipment"]
[null,null,null,null,""]
[null,"MC Other Supplies ",null,"Expense","MC Other Supplies"]
[null,null,null,null,""]
[null,"Other Non Medical Supplies Expense ",null,"Expense","Other Non Medical Supplies Expense"]
[null,null,null,null,""]
["523210","BUILDING and GROUNDS MAINTENANCE ",null,"Expense","BUILDING and GROUNDS MAINTENANCE"]
[null,null,null,null,""]
["523211","REPAIR and MAINTENANCE PARTS ",null,"Expense","REPAIR and MAINTENANCE PARTS"]
[null,null,null,null,""]
["523212","COMPUTERS IT SUPPLIES ACCES ",null,"Expense","COMPUTERS IT SUPPLIES ACCES"]
[null,null,null,null,""]
["523213","NONCAPITALIZED SOFTWARE and LI ",null,"Expense","NONCAPITALIZED SOFTWARE and LI"]
[null,null,null,null,""]
["523214","ARTWORK UNDER 5K ",null,"Expense","ARTWORK UNDER 5K"]
[null,null,null,null,""]
["523215","FUELS FUEL ADDITIVES ",null,"Expense","FUELS FUEL ADDITIVES"]
[null,null,null,null,""]
["523216","DIETARY PAPER and PLASTIC ",null,"Expense","DIETARY PAPER and PLASTIC"]
[null,null,null,null,""]
["523217","BOOKS PUBLICATIONS ",null,"Expense","BOOKS PUBLICATIONS"]
[null,null,null,null,""]
["523218","Non Medical Chemicals ",null,"Expense","Non Medical Chemicals"]
[null,null,null,null,""]
["523219","INVENTORY WRITE OFF ",null,"Expense","INVENTORY WRITE OFF"]
[null,null,null,null,""]
["523220","MC Laboratory Supplies ",null,"Expense","MC Laboratory Supplies"]
[null,null,null,null,""]
["523221","Other Non Medical Supplies ",null,"Expense","Other Non Medical Supplies"]
[null,null,null,null,""]
["523222","Law Enforcement Supplies and Explosives ",null,"Expense","Law Enforcement Supplies and Explosives"]
[null,null,null,null,""]
["523223","Reimbursement of Supplies and Materials ",null,"Expense","Reimbursement of Supplies and Materials"]
[null,null,null,null,""]
[null,"Elimination of Capitalized Suppl Materials Equip B ",null,"Expense","Elimination of Capitalized Suppl Materials Equip B"]
[null,null,null,null,""]
[null,"Elimination of Capitalized Suppl Materials Equip C ",null,"Expense","Elimination of Capitalized Suppl Materials Equip C"]
[null,null,null,null,""]
[null,"Elimination of Capitalized Suppl Materials Equip D ",null,"Expense","Elimination of Capitalized Suppl Materials Equip D"]
[null,null,null,null,""]
["524000","Elimination of Capitalized Suppl Materials Equip ",null,"Expense","Elimination of Capitalized Suppl Materials Equip"]
[null,null,null,null,""]
[null,"Elimination of Non Cap Suppl Materials Equip D ",null,"Expense","Elimination of Non Cap Suppl Materials Equip D"]
[null,null,null,null,""]
["524010","Elimination of Non Cap Suppl Materials Equip ",null,"Expense","Elimination of Non Cap Suppl Materials Equip"]
[null,null,null,null,""]
[null,"Purchases to be Capitalized ",null,"Expense","Purchases to be Capitalized"]
[null,null,null,null,""]
[null,"Capital Expense Land ",null,"Expense","Capital Expense Land"]
[null,null,null,null,""]
[null,"Capital Expenditure Land ",null,"Expense","Capital Expenditure Land"]
[null,null,null,null,""]
["525000","Capital Expense Land Purchases ",null,"Expense","Capital Expense Land Purchases"]
[null,null,null,null,""]
[null,"Capital Expense Land Improvements ",null,"Expense","Capital Expense Land Improvements"]
[null,null,null,null,""]
[null,"Capital Expenditure Parking Lot Improvements ",null,"Expense","Capital Expenditure Parking Lot Improvements"]
[null,null,null,null,""]
["525100","Capital Expense Land Impr Parking Lot Improvements ",null,"Expense","Capital Expense Land Impr Parking Lot Improvements"]
[null,null,null,null,""]
[null,"Capital Expenditure Other Land Improvements ",null,"Expense","Capital Expenditure Other Land Improvements"]
[null,null,null,null,""]
["525200","Capital Expense Land Impr Other Land Improvements ",null,"Expense","Capital Expense Land Impr Other Land Improvements"]
[null,null,null,null,""]
[null,"Capital Expense Infrastructure ",null,"Expense","Capital Expense Infrastructure"]
[null,null,null,null,""]
[null,"Capital Expenditure Infrastructure ",null,"Expense","Capital Expenditure Infrastructure"]
[null,null,null,null,""]
["525300","Expense to be Capitalized Infrastructure ",null,"Expense","Expense to be Capitalized Infrastructure"]
[null,null,null,null,""]
[null,"Capital Expense Buildings Improvements ",null,"Expense","Capital Expense Buildings Improvements"]
[null,null,null,null,""]
[null,"Capital Expenditure Building Improvements Service concession arrangements ",null,"Expense","Capital Expenditure Building Improvements Service concession arrangements"]
[null,null,null,null,""]
["525400","Capital Expense Building and Improvements Service Concession Arrangements ",null,"Expense","Capital Expense Building and Improvements Service Concession Arrangements"]
[null,null,null,null,""]
[null,"Capital Expenditure Building Improvements Student Housing Facilities ",null,"Expense","Capital Expenditure Building Improvements Student Housing Facilities"]
[null,null,null,null,""]
["525500","Capital Expenses Building and Improvements Student Housing Facilities ",null,"Expense","Capital Expenses Building and Improvements Student Housing Facilities"]
[null,null,null,null,""]
[null,"Capital Expenditure Building and Improvements Parking structures ",null,"Expense","Capital Expenditure Building and Improvements Parking structures"]
[null,null,null,null,""]
["525600","Capital Expenses Building and Improvements Parking Structures ",null,"Expense","Capital Expenses Building and Improvements Parking Structures"]
[null,null,null,null,""]
[null,"Capital Expenditure Building and Improvements Leasehold improvements ",null,"Expense","Capital Expenditure Building and Improvements Leasehold improvements"]
[null,null,null,null,""]
["525700","Capital Expenses Building and Improvements Leasehold Improvements ",null,"Expense","Capital Expenses Building and Improvements Leasehold Improvements"]
[null,null,null,null,""]
[null,"Capital Expenditure Building Improvements Other ",null,"Expense","Capital Expenditure Building Improvements Other"]
[null,null,null,null,""]
["525800","Capital Expense Building and Improvements Other ",null,"Expense","Capital Expense Building and Improvements Other"]
[null,null,null,null,""]
[null,"Capital Expenditure General Improvements ",null,"Expense","Capital Expenditure General Improvements"]
[null,null,null,null,""]
["525850","Capital Expense Building and Improvements General Improvements ",null,"Expense","Capital Expense Building and Improvements General Improvements"]
[null,null,null,null,""]
[null,"Capital Expense Equipment C ",null,"Expense","Capital Expense Equipment C"]
[null,null,null,null,""]
[null,"Capital Expenditure Equipment ",null,"Expense","Capital Expenditure Equipment"]
[null,null,null,null,""]
["525900","Capital Expense Equipment ",null,"Expense","Capital Expense Equipment"]
[null,null,null,null,""]
["525901","Capital Expense Fabrication ",null,"Expense","Capital Expense Fabrication"]
[null,null,null,null,""]
["525904","Capital Expense UCDMC Only Furniture and Minor Equipment ",null,"Expense","Capital Expense UCDMC Only Furniture and Minor Equipment"]
[null,null,null,null,""]
[null,"Capital Expense Software ",null,"Expense","Capital Expense Software"]
[null,null,null,null,""]
[null,"Capital Expenditure Software ",null,"Expense","Capital Expenditure Software"]
[null,null,null,null,""]
["526000","Capital Software Greater than 5M ",null,"Expense","Capital Software Greater than 5M"]
[null,null,null,null,""]
[null,"Capital Expenditure Software Less Than Or Equal To 5M ",null,"Expense","Capital Expenditure Software Less Than Or Equal To 5M"]
[null,null,null,null,""]
["526100","Capital Software Less than 5M ",null,"Expense","Capital Software Less than 5M"]
[null,null,null,null,""]
[null,"Capital Expense Intangibles ",null,"Expense","Capital Expense Intangibles"]
[null,null,null,null,""]
[null,"Capital Expenditure Intangibles ",null,"Expense","Capital Expenditure Intangibles"]
[null,null,null,null,""]
["526200","Capital Expense Intangible Assets ",null,"Expense","Capital Expense Intangible Assets"]
[null,null,null,null,""]
[null,"Capital Expense Libraries and Collections ",null,"Expense","Capital Expense Libraries and Collections"]
[null,null,null,null,""]
[null,"Capital Expenditure Libraries and Collections ",null,"Expense","Capital Expenditure Libraries and Collections"]
[null,null,null,null,""]
["526300","Capital Expense Libraries and Collections Excluding Special ",null,"Expense","Capital Expense Libraries and Collections Excluding Special"]
[null,null,null,null,""]
[null,"Capital Expense Special Collections ",null,"Expense","Capital Expense Special Collections"]
[null,null,null,null,""]
[null,"Capital Expenditure Special Collections ",null,"Expense","Capital Expenditure Special Collections"]
[null,null,null,null,""]
["526400","Capital Expenses Special Collections ",null,"Expense","Capital Expenses Special Collections"]
[null,null,null,null,""]
[null,"Capital Expense Construction In Progress C ",null,"Expense","Capital Expense Construction In Progress C"]
[null,null,null,null,""]
[null,"Capital Expenditure Construction In Progress ",null,"Expense","Capital Expenditure Construction In Progress"]
[null,null,null,null,""]
["526500","Capital Expense Construction In Progress ",null,"Expense","Capital Expense Construction In Progress"]
[null,null,null,null,""]
[null,"Other Operating Expense ",null,"Expense","Other Operating Expense"]
[null,null,null,null,""]
[null,"Business Legal and Insurance Services ",null,"Expense","Business Legal and Insurance Services"]
[null,null,null,null,""]
[null,"Collection Agency Fees ",null,"Expense","Collection Agency Fees"]
[null,null,null,null,""]
[null,"Collection Agency Fee Expense ",null,"Expense","Collection Agency Fee Expense"]
[null,null,null,null,""]
["530000","Collection Agency Fee Expenses ",null,"Expense","Collection Agency Fee Expenses"]
[null,null,null,null,""]
[null,"Consultants and Other Temporarily Contracted Staff ",null,"Expense","Consultants and Other Temporarily Contracted Staff"]
[null,null,null,null,""]
[null,"Consultants and Other Temporarily Contract Staff ",null,"Expense","Consultants and Other Temporarily Contract Staff"]
[null,null,null,null,""]
["530101","Consulting Services Expense ",null,"Expense","Consulting Services Expense"]
[null,null,null,null,""]
["530102","Outside Purchased Services ",null,"Expense","Outside Purchased Services"]
[null,null,null,null,""]
["530103","Research Subject Payments ",null,"Expense","Research Subject Payments"]
[null,null,null,null,""]
["530104","Reimbursement of Services ",null,"Expense","Reimbursement of Services"]
[null,null,null,null,""]
[null,"Property Management Services ",null,"Expense","Property Management Services"]
[null,null,null,null,""]
[null,"Property Management Services D ",null,"Expense","Property Management Services D"]
[null,null,null,null,""]
["530200","Property Management Service Expense ",null,"Expense","Property Management Service Expense"]
[null,null,null,null,""]
[null,"Audit Services ",null,"Expense","Audit Services"]
[null,null,null,null,""]
[null,"Audit Services D ",null,"Expense","Audit Services D"]
[null,null,null,null,""]
["530300","Audit Services Expense ",null,"Expense","Audit Services Expense"]
[null,null,null,null,""]
[null,"Advertising Federally Unchargeable ",null,"Expense","Advertising Federally Unchargeable"]
[null,null,null,null,""]
[null,"Advertising Federally Unchargeable D ",null,"Expense","Advertising Federally Unchargeable D"]
[null,null,null,null,""]
["530400","Promotional Advertising ",null,"Expense","Promotional Advertising"]
[null,null,null,null,""]
["530401","Marketing Sponsorships Expense ",null,"Expense","Marketing Sponsorships Expense"]
[null,null,null,null,""]
[null,"Advertising Federally Chargeable ",null,"Expense","Advertising Federally Chargeable"]
[null,null,null,null,""]
[null,"Advertising Federally Chargeable D ",null,"Expense","Advertising Federally Chargeable D"]
[null,null,null,null,""]
["530500","Non Promotional Advertising ",null,"Expense","Non Promotional Advertising"]
[null,null,null,null,""]
[null,"Banking Investment Manager Fees ",null,"Expense","Banking Investment Manager Fees"]
[null,null,null,null,""]
[null,"Banking and Investment Manager Fees ",null,"Expense","Banking and Investment Manager Fees"]
[null,null,null,null,""]
["530600","Bank Service Fees ",null,"Expense","Bank Service Fees"]
[null,null,null,null,""]
["530601","Credit Card Fees ",null,"Expense","Credit Card Fees"]
[null,null,null,null,""]
["530602","Investment Management and Broker Fees ",null,"Expense","Investment Management and Broker Fees"]
[null,null,null,null,""]
[null,"Legal Services ",null,"Expense","Legal Services"]
[null,null,null,null,""]
[null,"Legal Services D ",null,"Expense","Legal Services D"]
[null,null,null,null,""]
["530701","Regulatory Fees Permits and Licenses ",null,"Expense","Regulatory Fees Permits and Licenses"]
[null,null,null,null,""]
["530702","Legal Service Fees ",null,"Expense","Legal Service Fees"]
[null,null,null,null,""]
["530703","Legal Settlements ",null,"Expense","Legal Settlements"]
[null,null,null,null,""]
[null,"Recruiting Services ",null,"Expense","Recruiting Services"]
[null,null,null,null,""]
[null,"Recruiting Services Expense ",null,"Expense","Recruiting Services Expense"]
[null,null,null,null,""]
["530800","Employee Recruiting Services ",null,"Expense","Employee Recruiting Services"]
[null,null,null,null,""]
[null,"Insurance and Licenses ",null,"Expense","Insurance and Licenses"]
[null,null,null,null,""]
[null,"Insurance Hospital and Professional Malpractice ",null,"Expense","Insurance Hospital and Professional Malpractice"]
[null,null,null,null,""]
["530900","Medical Malpractice Insurance ",null,"Expense","Medical Malpractice Insurance"]
[null,null,null,null,""]
["530909","Hospital and Professional Malpractice Insurance ",null,"Expense","Hospital and Professional Malpractice Insurance"]
[null,null,null,null,""]
[null,"Insurance Other ",null,"Expense","Insurance Other"]
[null,null,null,null,""]
["531010","General Liability Insurance ",null,"Expense","General Liability Insurance"]
[null,null,null,null,""]
["531011","Third Party Auto Insurance ",null,"Expense","Third Party Auto Insurance"]
[null,null,null,null,""]
["531012","Property Insurance ",null,"Expense","Property Insurance"]
[null,null,null,null,""]
["531019","Other Insurance ",null,"Expense","Other Insurance"]
[null,null,null,null,""]
[null,"Licenses and Taxes Other than on Income ",null,"Expense","Licenses and Taxes Other than on Income"]
[null,null,null,null,""]
["531100","License and Taxes Expense excluding Income ",null,"Expense","License and Taxes Expense excluding Income"]
[null,null,null,null,""]
[null,"UCOP Insurance Appropriations BSASGAEL ",null,"Expense","UCOP Insurance Appropriations BSASGAEL"]
[null,null,null,null,""]
["750200","UCOP Insurance Appropriations BSASGAEL Expense ",null,"Expense","UCOP Insurance Appropriations BSASGAEL Expense"]
[null,null,null,null,""]
[null,"Student Self Insurance Program ",null,"Expense","Student Self Insurance Program"]
[null,null,null,null,""]
[null,"GSHIP Self Insurance ",null,"Expense","GSHIP Self Insurance"]
[null,null,null,null,""]
["531200","GSHIP Self insurance Program ",null,"Expense","GSHIP Self insurance Program"]
[null,null,null,null,""]
[null,"USHIP Self Insurance ",null,"Expense","USHIP Self Insurance"]
[null,null,null,null,""]
["531300","USHIP Self Insurance Program ",null,"Expense","USHIP Self Insurance Program"]
[null,null,null,null,""]
[null,"Legal Support OGC Recharge from UCOP ",null,"Expense","Legal Support OGC Recharge from UCOP"]
[null,null,null,null,""]
[null,"Legal Support OGC Recharge from UCOP D ",null,"Expense","Legal Support OGC Recharge from UCOP D"]
[null,null,null,null,""]
["750000","Legal Support Recharge from UCOP OGC ",null,"Expense","Legal Support Recharge from UCOP OGC"]
[null,null,null,null,""]
[null,"Legal External Fees and Settlements Specific Allocated from OGC from UCOP ",null,"Expense","Legal External Fees and Settlements Specific Allocated from OGC from UCOP"]
[null,null,null,null,""]
[null,"Legal Specific External Fees and Settlements Allocated from OGC from UCOP ",null,"Expense","Legal Specific External Fees and Settlements Allocated from OGC from UCOP"]
[null,null,null,null,""]
["750100","Legal External Fees and Settlements Allocated Specific from UCOP OGC ",null,"Expense","Legal External Fees and Settlements Allocated Specific from UCOP OGC"]
[null,null,null,null,""]
[null,"Facilities Construction Leasing and Maintenance ",null,"Expense","Facilities Construction Leasing and Maintenance"]
[null,null,null,null,""]
[null,"Facilities Construction ",null,"Expense","Facilities Construction"]
[null,null,null,null,""]
[null,"Facilities Construction Expense ",null,"Expense","Facilities Construction Expense"]
[null,null,null,null,""]
["532000","Facilities Construction Expenses ",null,"Expense","Facilities Construction Expenses"]
[null,null,null,null,""]
[null,"Leases and Rentals Building ",null,"Expense","Leases and Rentals Building"]
[null,null,null,null,""]
[null,"Leases and Rentals Expense Building ",null,"Expense","Leases and Rentals Expense Building"]
[null,null,null,null,""]
["532100","Building Lease and Rental ",null,"Expense","Building Lease and Rental"]
[null,null,null,null,""]
[null,"Building Lease Rental Expense Variable ",null,"Expense","Building Lease Rental Expense Variable"]
[null,null,null,null,""]
["532110","Leases and Rentals Expense Variable Land Building Improvement ",null,"Expense","Leases and Rentals Expense Variable Land Building Improvement"]
[null,null,null,null,""]
[null,"Building Lease Expense Fixed ",null,"Expense","Building Lease Expense Fixed"]
[null,null,null,null,""]
["532120","Leases and Rentals Expense Fixed Land Building Improvements ",null,"Expense","Leases and Rentals Expense Fixed Land Building Improvements"]
[null,null,null,null,""]
[null,"Building Lease Rental Expense Clearing ",null,"Expense","Building Lease Rental Expense Clearing"]
[null,null,null,null,""]
["532130","Leases and Rentals Expense Clearing Land Building Improvements ",null,"Expense","Leases and Rentals Expense Clearing Land Building Improvements"]
[null,null,null,null,""]
[null,"Leases and Rentals Equipment ",null,"Expense","Leases and Rentals Equipment"]
[null,null,null,null,""]
[null,"Leases and Rentals Expense Equipment ",null,"Expense","Leases and Rentals Expense Equipment"]
[null,null,null,null,""]
["532200","Equipment Leases or Rentals ",null,"Expense","Equipment Leases or Rentals"]
[null,null,null,null,""]
["532201","Vehicle Rentals or Leases ",null,"Expense","Vehicle Rentals or Leases"]
[null,null,null,null,""]
["532202","Capital Lease Principal ",null,"Expense","Capital Lease Principal"]
[null,null,null,null,""]
["532203","Capital Lease Other Interest ",null,"Expense","Capital Lease Other Interest"]
[null,null,null,null,""]
["532204","Installment Payment Other Principal ",null,"Expense","Installment Payment Other Principal"]
[null,null,null,null,""]
["532205","Installment Payment Other Interest ",null,"Expense","Installment Payment Other Interest"]
[null,null,null,null,""]
[null,"Equipment Lease and Rental Variable ",null,"Expense","Equipment Lease and Rental Variable"]
[null,null,null,null,""]
["532210","Leases and Rentals Expense variable equipment ",null,"Expense","Leases and Rentals Expense variable equipment"]
[null,null,null,null,""]
[null,"Equipment Lease and Rental Fixed ",null,"Expense","Equipment Lease and Rental Fixed"]
[null,null,null,null,""]
["532220","Leases and Rentals Expense fixed equipment ",null,"Expense","Leases and Rentals Expense fixed equipment"]
[null,null,null,null,""]
[null,"Equipment Lease and Rentals Clearing ",null,"Expense","Equipment Lease and Rentals Clearing"]
[null,null,null,null,""]
["532230","Leases and Rentals Expense Clearing Equipment ",null,"Expense","Leases and Rentals Expense Clearing Equipment"]
[null,null,null,null,""]
[null,"Repairs Maintenance ",null,"Expense","Repairs Maintenance"]
[null,null,null,null,""]
[null,"Repairs and Maintenance Expense ",null,"Expense","Repairs and Maintenance Expense"]
[null,null,null,null,""]
["532300","Fuel and Lubricants ",null,"Expense","Fuel and Lubricants"]
[null,null,null,null,""]
["532301","Vehicle and Fleet Supplies and Equipment ",null,"Expense","Vehicle and Fleet Supplies and Equipment"]
[null,null,null,null,""]
["532302","Repairs and Maintenance Expenses ",null,"Expense","Repairs and Maintenance Expenses"]
[null,null,null,null,""]
["532303","Construction Supplies and Services ",null,"Expense","Construction Supplies and Services"]
[null,null,null,null,""]
["532304","Other Materials or Supplies ",null,"Expense","Other Materials or Supplies"]
[null,null,null,null,""]
["532305","Furniture Maintenance and Repairs ",null,"Expense","Furniture Maintenance and Repairs"]
[null,null,null,null,""]
["532306","Furniture Services and Rentals ",null,"Expense","Furniture Services and Rentals"]
[null,null,null,null,""]
["532307","Other Facility Equipment Maintenance and Repairs ",null,"Expense","Other Facility Equipment Maintenance and Repairs"]
[null,null,null,null,""]
["532308","Landscaping and Grounds Maintenance Services ",null,"Expense","Landscaping and Grounds Maintenance Services"]
[null,null,null,null,""]
["532309","Landscaping Supplies ",null,"Expense","Landscaping Supplies"]
[null,null,null,null,""]
["532310","Cleaning Supplies and Minor Equipment ",null,"Expense","Cleaning Supplies and Minor Equipment"]
[null,null,null,null,""]
["532311","Custodial Services ",null,"Expense","Custodial Services"]
[null,null,null,null,""]
["532312","Waste Removal ",null,"Expense","Waste Removal"]
[null,null,null,null,""]
["532313","Laundry Service ",null,"Expense","Laundry Service"]
[null,null,null,null,""]
["532314","Linen Rental ",null,"Expense","Linen Rental"]
[null,null,null,null,""]
["532315","Facility Moving Storage Expenses ",null,"Expense","Facility Moving Storage Expenses"]
[null,null,null,null,""]
["532316","Facilities and Maintenance Tools and Equipment ",null,"Expense","Facilities and Maintenance Tools and Equipment"]
[null,null,null,null,""]
[null,"Pollution Remediation Costs Net ",null,"Expense","Pollution Remediation Costs Net"]
[null,null,null,null,""]
[null,"Pollution Remediation Cost Expense ",null,"Expense","Pollution Remediation Cost Expense"]
[null,null,null,null,""]
["532400","Pollution Remediation Cost Expenses ",null,"Expense","Pollution Remediation Cost Expenses"]
[null,null,null,null,""]
[null,"Pollution Remediation Cost Recovery Current Year ",null,"Expense","Pollution Remediation Cost Recovery Current Year"]
[null,null,null,null,""]
["532500","Pollution Remediation Cost Recovery Current Year Expense ",null,"Expense","Pollution Remediation Cost Recovery Current Year Expense"]
[null,null,null,null,""]
[null,"Greenhouse Gas Cap and Trade Cost ",null,"Expense","Greenhouse Gas Cap and Trade Cost"]
[null,null,null,null,""]
["532600","Greenhouse Gas Cap and Trade Costs ",null,"Expense","Greenhouse Gas Cap and Trade Costs"]
[null,null,null,null,""]
[null,"Subcontract Services ",null,"Expense","Subcontract Services"]
[null,null,null,null,""]
[null,"First 25K of Subcontract Services C ",null,"Expense","First 25K of Subcontract Services C"]
[null,null,null,null,""]
[null,"First 25K of Subcontract Svc Expense ",null,"Expense","First 25K of Subcontract Svc Expense"]
[null,null,null,null,""]
["533000","First 25K of Subcontract Services ",null,"Expense","First 25K of Subcontract Services"]
[null,null,null,null,""]
[null,"Expense In Excess of 25K On Subcontract Services C ",null,"Expense","Expense In Excess of 25K On Subcontract Services C"]
[null,null,null,null,""]
[null,"Expense In Excess of 25K On Subcontract Svc ",null,"Expense","Expense In Excess of 25K On Subcontract Svc"]
[null,null,null,null,""]
["533100","Expense In Excess of 25K On Subcontract Services ",null,"Expense","Expense In Excess of 25K On Subcontract Services"]
[null,null,null,null,""]
[null,"IT and Communications Services ",null,"Expense","IT and Communications Services"]
[null,null,null,null,""]
[null,"Software Maintenance and Licenses ",null,"Expense","Software Maintenance and Licenses"]
[null,null,null,null,""]
[null,"Software Maintenance and Licenses Expense ",null,"Expense","Software Maintenance and Licenses Expense"]
[null,null,null,null,""]
["534001","Software License Maintenance ",null,"Expense","Software License Maintenance"]
[null,null,null,null,""]
[null,"SBITA expense fixed and variable if included in PV calc D ",null,"Expense","SBITA expense fixed and variable if included in PV calc D"]
[null,null,null,null,""]
["534010","SBITA expense fixed and variable if included in PV calc ",null,"Expense","SBITA expense fixed and variable if included in PV calc"]
[null,null,null,null,""]
[null,"SBITA expense variable not included in PV D ",null,"Expense","SBITA expense variable not included in PV D"]
[null,null,null,null,""]
["534030","SBITA expense variable not included in PV ",null,"Expense","SBITA expense variable not included in PV"]
[null,null,null,null,""]
[null,"Accounts payable Clearing SBITA D ",null,"Expense","Accounts payable Clearing SBITA D"]
[null,null,null,null,""]
["534040","Accounts payable Clearing SBITA ",null,"Expense","Accounts payable Clearing SBITA"]
[null,null,null,null,""]
[null,"Computers and Network Infrastructure ",null,"Expense","Computers and Network Infrastructure"]
[null,null,null,null,""]
[null,"Computers and Network Infrastructure Expense ",null,"Expense","Computers and Network Infrastructure Expense"]
[null,null,null,null,""]
["534100","Computer Network Equipment and Supplies ",null,"Expense","Computer Network Equipment and Supplies"]
[null,null,null,null,""]
["534101","Software Purchases ",null,"Expense","Software Purchases"]
[null,null,null,null,""]
[null,"Telecommunications ",null,"Expense","Telecommunications"]
[null,null,null,null,""]
[null,"Telecommunications Expense ",null,"Expense","Telecommunications Expense"]
[null,null,null,null,""]
["534200","Telecommunications Expense and Accessories ",null,"Expense","Telecommunications Expense and Accessories"]
[null,null,null,null,""]
[null,"IT Accessories and Peripherals ",null,"Expense","IT Accessories and Peripherals"]
[null,null,null,null,""]
[null,"IT Accessories and Peripherals Expense ",null,"Expense","IT Accessories and Peripherals Expense"]
[null,null,null,null,""]
["534300","Printers and Scanners ",null,"Expense","Printers and Scanners"]
[null,null,null,null,""]
["534301","Audio and Visual Equipment ",null,"Expense","Audio and Visual Equipment"]
[null,null,null,null,""]
["534309","Other IT Accessories and Peripherals ",null,"Expense","Other IT Accessories and Peripherals"]
[null,null,null,null,""]
[null,"Medical Professional Fees ",null,"Expense","Medical Professional Fees"]
[null,null,null,null,""]
[null,"Medical Professional Fees Physician ",null,"Expense","Medical Professional Fees Physician"]
[null,null,null,null,""]
[null,"Medical Professional Fees Expense Physicians ",null,"Expense","Medical Professional Fees Expense Physicians"]
[null,null,null,null,""]
["535000","Medical Professional Fees Physicians ",null,"Expense","Medical Professional Fees Physicians"]
[null,null,null,null,""]
["535001","Medical Professional Fees Therapists and Others ",null,"Expense","Medical Professional Fees Therapists and Others"]
[null,null,null,null,""]
["535002","Miscellaneous Patient Care ",null,"Expense","Miscellaneous Patient Care"]
[null,null,null,null,""]
["535003","Cap External Expense Distributed ",null,"Expense","Cap External Expense Distributed"]
[null,null,null,null,""]
["535004","Cap PPD Adj Incent Refunds ",null,"Expense","Cap PPD Adj Incent Refunds"]
[null,null,null,null,""]
["535005","Cap IBNR Expense ",null,"Expense","Cap IBNR Expense"]
[null,null,null,null,""]
["535006","Cap Future Lost Contracts ",null,"Expense","Cap Future Lost Contracts"]
[null,null,null,null,""]
["535009","Patient Care Reimbursement ",null,"Expense","Patient Care Reimbursement"]
[null,null,null,null,""]
["535010","Patient Care Expenses ",null,"Expense","Patient Care Expenses"]
[null,null,null,null,""]
[null,"Purchased Medical Services C ",null,"Expense","Purchased Medical Services C"]
[null,null,null,null,""]
[null,"Purchased Medical Services ",null,"Expense","Purchased Medical Services"]
[null,null,null,null,""]
["535100","External Laboratory Services ",null,"Expense","External Laboratory Services"]
[null,null,null,null,""]
["535101","Transcription Services ",null,"Expense","Transcription Services"]
[null,null,null,null,""]
["535109","Other Purchased Medical Services ",null,"Expense","Other Purchased Medical Services"]
[null,null,null,null,""]
[null,"Travel and Transit ",null,"Expense","Travel and Transit"]
[null,null,null,null,""]
[null,"Travel and Transit Expense ",null,"Expense","Travel and Transit Expense"]
[null,null,null,null,""]
[null,"Travel and Transit Expenses ",null,"Expense","Travel and Transit Expenses"]
[null,null,null,null,""]
["536001","In State Airfare ",null,"Expense","In State Airfare"]
[null,null,null,null,""]
["536002","In State Lodging ",null,"Expense","In State Lodging"]
[null,null,null,null,""]
["536003","In State Transportation ",null,"Expense","In State Transportation"]
[null,null,null,null,""]
["536004","In State Meals Incidentals ",null,"Expense","In State Meals Incidentals"]
[null,null,null,null,""]
["536005","In State Travel Expense ",null,"Expense","In State Travel Expense"]
[null,null,null,null,""]
["536011","Out of State Airfare ",null,"Expense","Out of State Airfare"]
[null,null,null,null,""]
["536012","Out of State Lodging ",null,"Expense","Out of State Lodging"]
[null,null,null,null,""]
["536013","Out of State Transportation ",null,"Expense","Out of State Transportation"]
[null,null,null,null,""]
["536014","Out of State Meals Incidentals ",null,"Expense","Out of State Meals Incidentals"]
[null,null,null,null,""]
["536015","Out of State Travel Expense ",null,"Expense","Out of State Travel Expense"]
[null,null,null,null,""]
["536021","International Airfare ",null,"Expense","International Airfare"]
[null,null,null,null,""]
["536022","International Lodging ",null,"Expense","International Lodging"]
[null,null,null,null,""]
["536023","International Transportation ",null,"Expense","International Transportation"]
[null,null,null,null,""]
["536024","International Meals Incidentals ",null,"Expense","International Meals Incidentals"]
[null,null,null,null,""]
["536025","International Travel Expense ",null,"Expense","International Travel Expense"]
[null,null,null,null,""]
["536093","Travel Reimbursement ",null,"Expense","Travel Reimbursement"]
[null,null,null,null,""]
[null,"Entertainment and Gifts ",null,"Expense","Entertainment and Gifts"]
[null,null,null,null,""]
[null,"Employee Noncash Awards and Other Gifts B ",null,"Expense","Employee Noncash Awards and Other Gifts B"]
[null,null,null,null,""]
[null,"Employee Noncash Awards and Other Gifts C ",null,"Expense","Employee Noncash Awards and Other Gifts C"]
[null,null,null,null,""]
["536200","Employee Noncash Awards and Other Gifts ",null,"Expense","Employee Noncash Awards and Other Gifts"]
[null,null,null,null,""]
[null,"NonEmployee Gifts C ",null,"Expense","NonEmployee Gifts C"]
[null,null,null,null,""]
[null,"NonEmployee Gifts D ",null,"Expense","NonEmployee Gifts D"]
[null,null,null,null,""]
["536300","NonEmployee Gifts ",null,"Expense","NonEmployee Gifts"]
[null,null,null,null,""]
[null,"Social and Entertainment Expenses ",null,"Expense","Social and Entertainment Expenses"]
[null,null,null,null,""]
[null,"Social and Entertainment Expense ",null,"Expense","Social and Entertainment Expense"]
[null,null,null,null,""]
["536400","Entertainment Expenses ",null,"Expense","Entertainment Expenses"]
[null,null,null,null,""]
["536401","Entertainment Alcoholic Beverages ",null,"Expense","Entertainment Alcoholic Beverages"]
[null,null,null,null,""]
[null,"Meetings and Training ",null,"Expense","Meetings and Training"]
[null,null,null,null,""]
[null,"Business Meetings Expense ",null,"Expense","Business Meetings Expense"]
[null,null,null,null,""]
[null,"Business Meeting Expenses ",null,"Expense","Business Meeting Expenses"]
[null,null,null,null,""]
["536500","Business Meeting Expense ",null,"Expense","Business Meeting Expense"]
[null,null,null,null,""]
[null,"Honorarium Payments ",null,"Expense","Honorarium Payments"]
[null,null,null,null,""]
[null,"Honorariums Expense ",null,"Expense","Honorariums Expense"]
[null,null,null,null,""]
["536600","Honorarium Payments and Expense ",null,"Expense","Honorarium Payments and Expense"]
[null,null,null,null,""]
["536601","Stipends Non Student ",null,"Expense","Stipends Non Student"]
[null,null,null,null,""]
[null,"Conference Training ",null,"Expense","Conference Training"]
[null,null,null,null,""]
[null,"Conference and Training Expense ",null,"Expense","Conference and Training Expense"]
[null,null,null,null,""]
["536700","Conference and Registration Fees ",null,"Expense","Conference and Registration Fees"]
[null,null,null,null,""]
[null,"Impairment of Capital Assets ",null,"Expense","Impairment of Capital Assets"]
[null,null,null,null,""]
[null,"Impairment of L and ",null,"Expense","Impairment of L and"]
[null,null,null,null,""]
[null,"Impairments of Capital Assets L and ",null,"Expense","Impairments of Capital Assets L and"]
[null,null,null,null,""]
["537000","Impairments L and ",null,"Expense","Impairments L and"]
[null,null,null,null,""]
[null,"Impairment of Parking Lot Improvements ",null,"Expense","Impairment of Parking Lot Improvements"]
[null,null,null,null,""]
[null,"Impairments of Capital Assets Parking Lot Improvements ",null,"Expense","Impairments of Capital Assets Parking Lot Improvements"]
[null,null,null,null,""]
["537050","Impairments Parking Lot Improvements ",null,"Expense","Impairments Parking Lot Improvements"]
[null,null,null,null,""]
[null,"Impairment of Other Land Improvements ",null,"Expense","Impairment of Other Land Improvements"]
[null,null,null,null,""]
[null,"Impairments of Capital Assets Other Land Improvements ",null,"Expense","Impairments of Capital Assets Other Land Improvements"]
[null,null,null,null,""]
["537100","Impairments Other Land Improvements ",null,"Expense","Impairments Other Land Improvements"]
[null,null,null,null,""]
[null,"Impairment of Infrastructure ",null,"Expense","Impairment of Infrastructure"]
[null,null,null,null,""]
[null,"Impairments of Capital Assets Infrastructure ",null,"Expense","Impairments of Capital Assets Infrastructure"]
[null,null,null,null,""]
["537150","Impairments Infrastructure ",null,"Expense","Impairments Infrastructure"]
[null,null,null,null,""]
[null,"Impairment of Buildings Improvements ",null,"Expense","Impairment of Buildings Improvements"]
[null,null,null,null,""]
[null,"Impairment of Building and Improvements Service concession arrangements ",null,"Expense","Impairment of Building and Improvements Service concession arrangements"]
[null,null,null,null,""]
["537200","Impairments Building and Improvements Service Concession ",null,"Expense","Impairments Building and Improvements Service Concession"]
[null,null,null,null,""]
[null,"Impairment of Building and Improvements Student Housing Facilities ",null,"Expense","Impairment of Building and Improvements Student Housing Facilities"]
[null,null,null,null,""]
["537250","Impairments Building and Improvements Student Housing ",null,"Expense","Impairments Building and Improvements Student Housing"]
[null,null,null,null,""]
[null,"Impairment of Building and Improvements Parking Structures D ",null,"Expense","Impairment of Building and Improvements Parking Structures D"]
[null,null,null,null,""]
["537300","Impairment of Building and Improvements Parking Structures ",null,"Expense","Impairment of Building and Improvements Parking Structures"]
[null,null,null,null,""]
[null,"Impairments Building and Imprv Leasehold Improvements D ",null,"Expense","Impairments Building and Imprv Leasehold Improvements D"]
[null,null,null,null,""]
["537350","Impairments Building and Improv Leasehold Improvements ",null,"Expense","Impairments Building and Improv Leasehold Improvements"]
[null,null,null,null,""]
[null,"Impairment of Building and Improvements Other ",null,"Expense","Impairment of Building and Improvements Other"]
[null,null,null,null,""]
["537400","Impairments Building and Improvements Other ",null,"Expense","Impairments Building and Improvements Other"]
[null,null,null,null,""]
[null,"Impairment of Building and Improvements General Improvements ",null,"Expense","Impairment of Building and Improvements General Improvements"]
[null,null,null,null,""]
["537440","Impairments Building and Improvements General Improvements ",null,"Expense","Impairments Building and Improvements General Improvements"]
[null,null,null,null,""]
[null,"Impairment of Equipment ",null,"Expense","Impairment of Equipment"]
[null,null,null,null,""]
[null,"Impairments of Capital Assets Equipment ",null,"Expense","Impairments of Capital Assets Equipment"]
[null,null,null,null,""]
["537450","Impairments Equipment ",null,"Expense","Impairments Equipment"]
[null,null,null,null,""]
[null,"Impairment of Software ",null,"Expense","Impairment of Software"]
[null,null,null,null,""]
[null,"Impairments of Capital Assets Software Less than 5M ",null,"Expense","Impairments of Capital Assets Software Less than 5M"]
[null,null,null,null,""]
["537500","Impairments Software Less than 5M ",null,"Expense","Impairments Software Less than 5M"]
[null,null,null,null,""]
[null,"Impairments of Capital Assets Greater than or Equal to 5M ",null,"Expense","Impairments of Capital Assets Greater than or Equal to 5M"]
[null,null,null,null,""]
["537550","Impairments Greater than or Equal to 5M ",null,"Expense","Impairments Greater than or Equal to 5M"]
[null,null,null,null,""]
[null,"Impairment of Intangibles ",null,"Expense","Impairment of Intangibles"]
[null,null,null,null,""]
[null,"Impairments of Capital Assets Intangibles ",null,"Expense","Impairments of Capital Assets Intangibles"]
[null,null,null,null,""]
["537600","Impairments Intangibles ",null,"Expense","Impairments Intangibles"]
[null,null,null,null,""]
[null,"Impairment of Libraries and Collections ",null,"Expense","Impairment of Libraries and Collections"]
[null,null,null,null,""]
[null,"Impairments of Capital Assets Libraries and Collections ",null,"Expense","Impairments of Capital Assets Libraries and Collections"]
[null,null,null,null,""]
["537650","Impairments Libraries and Collections ",null,"Expense","Impairments Libraries and Collections"]
[null,null,null,null,""]
[null,"Asset impairment expense Intangibles subscription asset SBITA C ",null,"Expense","Asset impairment expense Intangibles subscription asset SBITA C"]
[null,null,null,null,""]
[null,"Asset impairment expense Intangibles subscription asset SBITA D ",null,"Expense","Asset impairment expense Intangibles subscription asset SBITA D"]
[null,null,null,null,""]
["537660","Asset impairment expense Intangibles subscription asset SBITA ",null,"Expense","Asset impairment expense Intangibles subscription asset SBITA"]
[null,null,null,null,""]
[null,"Impairment of Special Collections ",null,"Expense","Impairment of Special Collections"]
[null,null,null,null,""]
[null,"Impairments of Capital Assets Special Collections ",null,"Expense","Impairments of Capital Assets Special Collections"]
[null,null,null,null,""]
["537700","Impairments Special Collections ",null,"Expense","Impairments Special Collections"]
[null,null,null,null,""]
[null,"Facilities and Administration Cost B ",null,"Expense","Facilities and Administration Cost B"]
[null,null,null,null,""]
[null,"Facilities and Administration Cost C ",null,"Expense","Facilities and Administration Cost C"]
[null,null,null,null,""]
[null,"FA Expense ",null,"Expense","FA Expense"]
[null,null,null,null,""]
["538000","Facilities and Administration Costs FA ",null,"Expense","Facilities and Administration Costs FA"]
[null,null,null,null,""]
[null,"FA Offset Recovery C ",null,"Expense","FA Offset Recovery C"]
[null,null,null,null,""]
[null,"FA Offset Recovery ",null,"Expense","FA Offset Recovery"]
[null,null,null,null,""]
["538100","Facilities and Administration FA Offset Recovery ",null,"Expense","Facilities and Administration FA Offset Recovery"]
[null,null,null,null,""]
[null,"Other Operating Expenses B ",null,"Expense","Other Operating Expenses B"]
[null,null,null,null,""]
[null,"Printing and Reproduction Services C ",null,"Expense","Printing and Reproduction Services C"]
[null,null,null,null,""]
[null,"Printing and Reproduction Services ",null,"Expense","Printing and Reproduction Services"]
[null,null,null,null,""]
["539000","Printing of Forms ",null,"Expense","Printing of Forms"]
[null,null,null,null,""]
["539001","Printing of Books and Publications ",null,"Expense","Printing of Books and Publications"]
[null,null,null,null,""]
["539002","Printing Photography and Other Materials ",null,"Expense","Printing Photography and Other Materials"]
[null,null,null,null,""]
[null,"Freight ",null,"Expense","Freight"]
[null,null,null,null,""]
[null,"Freight Expense ",null,"Expense","Freight Expense"]
[null,null,null,null,""]
["539100","Freight and Shipping Services ",null,"Expense","Freight and Shipping Services"]
[null,null,null,null,""]
[null,"Royalties ",null,"Expense","Royalties"]
[null,null,null,null,""]
[null,"Royalties Expense ",null,"Expense","Royalties Expense"]
[null,null,null,null,""]
["539200","Royalty and Patent Expenses ",null,"Expense","Royalty and Patent Expenses"]
[null,null,null,null,""]
[null,"Bad Debt Other ",null,"Expense","Bad Debt Other"]
[null,null,null,null,""]
[null,"Bad Debt Expense Other ",null,"Expense","Bad Debt Expense Other"]
[null,null,null,null,""]
["539300","Bad Debt Expense ",null,"Expense","Bad Debt Expense"]
[null,null,null,null,""]
[null,"Grant Payments under BCRP and Similar Programs ",null,"Expense","Grant Payments under BCRP and Similar Programs"]
[null,null,null,null,""]
[null,"Grant Payments under Breast Cancer Research Program BCRP and Similar Programs ",null,"Expense","Grant Payments under Breast Cancer Research Program BCRP and Similar Programs"]
[null,null,null,null,""]
["539400","n ",null,"Expense","n"]
[null,null,null,null,""]
[null,"Other Operating Exp ",null,"Expense","Other Operating Exp"]
[null,null,null,null,""]
[null,"Other Operating Expenses ",null,"Expense","Other Operating Expenses"]
[null,null,null,null,""]
["539500","Nonpayroll Federal Tax Expense ",null,"Expense","Nonpayroll Federal Tax Expense"]
[null,null,null,null,""]
["539501","Nonpayroll State Tax Expense ",null,"Expense","Nonpayroll State Tax Expense"]
[null,null,null,null,""]
["539502","Fines and Penalties ",null,"Expense","Fines and Penalties"]
[null,null,null,null,""]
["539503","Cancellation Expense ",null,"Expense","Cancellation Expense"]
[null,null,null,null,""]
["539504","Loan Write Off Uncollectable ",null,"Expense","Loan Write Off Uncollectable"]
[null,null,null,null,""]
["539505","Collection Expense ",null,"Expense","Collection Expense"]
[null,null,null,null,""]
["539506","Cancellation Interest Loan Exp ",null,"Expense","Cancellation Interest Loan Exp"]
[null,null,null,null,""]
["539507","Cancellation Principal Loan Exp ",null,"Expense","Cancellation Principal Loan Exp"]
[null,null,null,null,""]
["539508","Loan Interest Write Off ",null,"Expense","Loan Interest Write Off"]
[null,null,null,null,""]
["539509","Loan Prinicipal Write Off ",null,"Expense","Loan Prinicipal Write Off"]
[null,null,null,null,""]
["539510","Loan Interest Assignments ",null,"Expense","Loan Interest Assignments"]
[null,null,null,null,""]
["539511","Loan Prinicipal Assignments ",null,"Expense","Loan Prinicipal Assignments"]
[null,null,null,null,""]
["539530","Donations ",null,"Expense","Donations"]
[null,null,null,null,""]
["539531","Employee Disaster Payments ",null,"Expense","Employee Disaster Payments"]
[null,null,null,null,""]
["539590","Cash Over and Short ",null,"Expense","Cash Over and Short"]
[null,null,null,null,""]
["539591","Inventory Offset ",null,"Expense","Inventory Offset"]
[null,null,null,null,""]
["539999","Other Miscellaneous and Other Operating Expense ",null,"Expense","Other Miscellaneous and Other Operating Expense"]
[null,null,null,null,""]
[null,"UCOP Assessment Fee ",null,"Expense","UCOP Assessment Fee"]
[null,null,null,null,""]
[null,"UCOP Assessment Fees ",null,"Expense","UCOP Assessment Fees"]
[null,null,null,null,""]
["750300","UCOP Assessment Fees Expense ",null,"Expense","UCOP Assessment Fees Expense"]
[null,null,null,null,""]
[null,"UC Path Appropriations ",null,"Expense","UC Path Appropriations"]
[null,null,null,null,""]
[null,"UC Path Appropriations D ",null,"Expense","UC Path Appropriations D"]
[null,null,null,null,""]
["750400","UC Path Appropriations Fees from UCOP ",null,"Expense","UC Path Appropriations Fees from UCOP"]
[null,null,null,null,""]
[null,"Other UCOP Expense Appropriations Operating ",null,"Expense","Other UCOP Expense Appropriations Operating"]
[null,null,null,null,""]
[null,"Other Operating UCOP Expense Appropriations ",null,"Expense","Other Operating UCOP Expense Appropriations"]
[null,null,null,null,""]
["750500","Other UCOP Expense Appropriations Operating Expense ",null,"Expense","Other UCOP Expense Appropriations Operating Expense"]
[null,null,null,null,""]
[null,"Depreciation and Amortization Expense ",null,"Expense","Depreciation and Amortization Expense"]
[null,null,null,null,""]
[null,"Depreciation Expense Land Improvements ",null,"Expense","Depreciation Expense Land Improvements"]
[null,null,null,null,""]
[null,"Depreciation Parking Lot Improvements C ",null,"Expense","Depreciation Parking Lot Improvements C"]
[null,null,null,null,""]
[null,"Depreciation Parking Lot Improvements D ",null,"Expense","Depreciation Parking Lot Improvements D"]
[null,null,null,null,""]
["540000","Depreciation Parking Lot Improvements ",null,"Expense","Depreciation Parking Lot Improvements"]
[null,null,null,null,""]
[null,"Depreciation Expense Other Land Improvements C ",null,"Expense","Depreciation Expense Other Land Improvements C"]
[null,null,null,null,""]
[null,"Depreciation Expense Other Land Improvements D ",null,"Expense","Depreciation Expense Other Land Improvements D"]
[null,null,null,null,""]
["540100","Depreciation Other Land Improvements ",null,"Expense","Depreciation Other Land Improvements"]
[null,null,null,null,""]
[null,"Depreciation Expense Infrastructure B ",null,"Expense","Depreciation Expense Infrastructure B"]
[null,null,null,null,""]
[null,"Depreciation Expense Infrastructure C ",null,"Expense","Depreciation Expense Infrastructure C"]
[null,null,null,null,""]
[null,"Depreciation Expense Infrastructure D ",null,"Expense","Depreciation Expense Infrastructure D"]
[null,null,null,null,""]
["541000","Depreciation Infrastructure Expenses ",null,"Expense","Depreciation Infrastructure Expenses"]
[null,null,null,null,""]
[null,"Depreciation Expense Buildings and Improvements ",null,"Expense","Depreciation Expense Buildings and Improvements"]
[null,null,null,null,""]
[null,"Depreciation Expense Buildings and Improvements Svc Concession Arrangements ",null,"Expense","Depreciation Expense Buildings and Improvements Svc Concession Arrangements"]
[null,null,null,null,""]
[null,"Depreciation Expense Building and Improvements Service Concession Arrangements ",null,"Expense","Depreciation Expense Building and Improvements Service Concession Arrangements"]
[null,null,null,null,""]
["542000","Depreciation Building and Improvements Service Concession Arrangements ",null,"Expense","Depreciation Building and Improvements Service Concession Arrangements"]
[null,null,null,null,""]
[null,"Depreciation Expense Buildings Improvements Student Housing Facilities ",null,"Expense","Depreciation Expense Buildings Improvements Student Housing Facilities"]
[null,null,null,null,""]
[null,"Depreciation Expense Building and Improvements Student housing facilities ",null,"Expense","Depreciation Expense Building and Improvements Student housing facilities"]
[null,null,null,null,""]
["542100","Depreciation Building and Improvements Student housing facilities ",null,"Expense","Depreciation Building and Improvements Student housing facilities"]
[null,null,null,null,""]
[null,"Depreciation Expense Buildings Improvements Parking Structures ",null,"Expense","Depreciation Expense Buildings Improvements Parking Structures"]
[null,null,null,null,""]
[null,"Depreciation Expense Building and Improvements Parking structures ",null,"Expense","Depreciation Expense Building and Improvements Parking structures"]
[null,null,null,null,""]
["542200","Depreciation Building and Improvements Parking structures ",null,"Expense","Depreciation Building and Improvements Parking structures"]
[null,null,null,null,""]
[null,"Depreciation Expense Buildings Improvements Leasehold Improvements ",null,"Expense","Depreciation Expense Buildings Improvements Leasehold Improvements"]
[null,null,null,null,""]
[null,"Depreciation Expense Building and Imrpvmnts Leasehold improvements ",null,"Expense","Depreciation Expense Building and Imrpvmnts Leasehold improvements"]
[null,null,null,null,""]
["542300","Depreciation Building and Improvements Leasehold improvements ",null,"Expense","Depreciation Building and Improvements Leasehold improvements"]
[null,null,null,null,""]
[null,"Depreciation Expense Buildings and Improvements Other ",null,"Expense","Depreciation Expense Buildings and Improvements Other"]
[null,null,null,null,""]
[null,"Depreciation Expense Building and Improvements Other ",null,"Expense","Depreciation Expense Building and Improvements Other"]
[null,null,null,null,""]
["542400","Depreciation Building and Improvements Other ",null,"Expense","Depreciation Building and Improvements Other"]
[null,null,null,null,""]
[null,"Depreciation Expense Buildings and Improvements General Improvements ",null,"Expense","Depreciation Expense Buildings and Improvements General Improvements"]
[null,null,null,null,""]
[null,"Depreciation Expense Building and Improvements General Improvements ",null,"Expense","Depreciation Expense Building and Improvements General Improvements"]
[null,null,null,null,""]
["542900","Depreciation Building and Improvements General Improvements ",null,"Expense","Depreciation Building and Improvements General Improvements"]
[null,null,null,null,""]
[null,"Depreciation Expense Equipment ",null,"Expense","Depreciation Expense Equipment"]
[null,null,null,null,""]
[null,"Depreciation Expenses Equipment ",null,"Expense","Depreciation Expenses Equipment"]
[null,null,null,null,""]
[null,"Depreciation Expense Capitalized Equipment ",null,"Expense","Depreciation Expense Capitalized Equipment"]
[null,null,null,null,""]
["543000","Depreciation Capitalized Equipment ",null,"Expense","Depreciation Capitalized Equipment"]
[null,null,null,null,""]
["543001","Depreciation Capitalized Equip UCDMC Only Furniture and Equip ",null,"Expense","Depreciation Capitalized Equip UCDMC Only Furniture and Equip"]
[null,null,null,null,""]
[null,"Amortization Expense Software ",null,"Expense","Amortization Expense Software"]
[null,null,null,null,""]
[null,"Amortization Expense Software Greater than 5M ",null,"Expense","Amortization Expense Software Greater than 5M"]
[null,null,null,null,""]
[null,"Amortization Expense Software Greater Than 5M D ",null,"Expense","Amortization Expense Software Greater Than 5M D"]
[null,null,null,null,""]
["544000","Amortization Software Greater than 5M ",null,"Expense","Amortization Software Greater than 5M"]
[null,null,null,null,""]
[null,"Amortization Expense Software Less than or equal to 5M ",null,"Expense","Amortization Expense Software Less than or equal to 5M"]
[null,null,null,null,""]
[null,"Amortization Expense Software less than 5M ",null,"Expense","Amortization Expense Software less than 5M"]
[null,null,null,null,""]
["544100","Amortization Software less than 5M ",null,"Expense","Amortization Software less than 5M"]
[null,null,null,null,""]
[null,"Amortization Expenses Intangibles ",null,"Expense","Amortization Expenses Intangibles"]
[null,null,null,null,""]
[null,"Amortization Expense Intangible ",null,"Expense","Amortization Expense Intangible"]
[null,null,null,null,""]
[null,"Amortization Expense Intangibles ",null,"Expense","Amortization Expense Intangibles"]
[null,null,null,null,""]
["545000","Amortization Intangibles ",null,"Expense","Amortization Intangibles"]
[null,null,null,null,""]
["545100","Amortization Expenses for Intangible Asset ROU ",null,"Expense","Amortization Expenses for Intangible Asset ROU"]
[null,null,null,null,""]
[null,"Depreciation Expense Library and Collections ",null,"Expense","Depreciation Expense Library and Collections"]
[null,null,null,null,""]
[null,"Depreciation Expense Libraries and Collections ",null,"Expense","Depreciation Expense Libraries and Collections"]
[null,null,null,null,""]
[null,"Depreciation Expense Library and Collections D ",null,"Expense","Depreciation Expense Library and Collections D"]
[null,null,null,null,""]
["546000","Depreciation Exp Library and Collection ",null,"Expense","Depreciation Exp Library and Collection"]
[null,null,null,null,""]
[null,"Amotization Expense Intangibles ROU Finance Lease Expense B ",null,"Expense","Amotization Expense Intangibles ROU Finance Lease Expense B"]
[null,null,null,null,""]
[null,"Amotization Expense Intangibles ROU Finance Lease Expense C ",null,"Expense","Amotization Expense Intangibles ROU Finance Lease Expense C"]
[null,null,null,null,""]
[null,"Amotization Expense ROU Finance Lease LAND ",null,"Expense","Amotization Expense ROU Finance Lease LAND"]
[null,null,null,null,""]
["547000","Amortization Expense ROU Finance Lease for LAND ",null,"Expense","Amortization Expense ROU Finance Lease for LAND"]
[null,null,null,null,""]
[null,"Amortization Expense ROU Finance Lease for Buildings D ",null,"Expense","Amortization Expense ROU Finance Lease for Buildings D"]
[null,null,null,null,""]
["547010","Amortization Expense ROU Finance Lease for Buildings ",null,"Expense","Amortization Expense ROU Finance Lease for Buildings"]
[null,null,null,null,""]
[null,"Amortization Expense ROU Finance Lease for Equipment D ",null,"Expense","Amortization Expense ROU Finance Lease for Equipment D"]
[null,null,null,null,""]
["547020","Amortization Expense ROU Finance Lease for Equipment ",null,"Expense","Amortization Expense ROU Finance Lease for Equipment"]
[null,null,null,null,""]
[null,"Amortization expense intangibles subscription asset SBITA B ",null,"Expense","Amortization expense intangibles subscription asset SBITA B"]
[null,null,null,null,""]
[null,"Amortization expense intangibles subscription asset SBITA C ",null,"Expense","Amortization expense intangibles subscription asset SBITA C"]
[null,null,null,null,""]
[null,"Amortization expense intangibles subscription asset SBITA D ",null,"Expense","Amortization expense intangibles subscription asset SBITA D"]
[null,null,null,null,""]
["548000","Amortization expense intangibles subscription asset SBITA ",null,"Expense","Amortization expense intangibles subscription asset SBITA"]
[null,null,null,null,""]
[null,"Utilities ",null,"Expense","Utilities"]
[null,null,null,null,""]
[null,"Utilities Maintenance and Repair ",null,"Expense","Utilities Maintenance and Repair"]
[null,null,null,null,""]
[null,"Utilities Maintenance and Repairs ",null,"Expense","Utilities Maintenance and Repairs"]
[null,null,null,null,""]
[null,"Utilities Maintenance and Repairs Expense ",null,"Expense","Utilities Maintenance and Repairs Expense"]
[null,null,null,null,""]
["550000","Utilities Maintenance and Repairs Expenses ",null,"Expense","Utilities Maintenance and Repairs Expenses"]
[null,null,null,null,""]
["550001","Utilities Maintenance and Repairs Supplies and Minor Equipment ",null,"Expense","Utilities Maintenance and Repairs Supplies and Minor Equipment"]
[null,null,null,null,""]
[null,"Natural Gas ",null,"Expense","Natural Gas"]
[null,null,null,null,""]
[null,"Utilities Natural Gas ",null,"Expense","Utilities Natural Gas"]
[null,null,null,null,""]
[null,"Utilities Expense Natural Gas ",null,"Expense","Utilities Expense Natural Gas"]
[null,null,null,null,""]
["550100","Utilities Natural Gas Delivery and Usage ",null,"Expense","Utilities Natural Gas Delivery and Usage"]
[null,null,null,null,""]
[null,"Electricity ",null,"Expense","Electricity"]
[null,null,null,null,""]
[null,"Utilities Electricity ",null,"Expense","Utilities Electricity"]
[null,null,null,null,""]
[null,"Utilities Expense Electricity ",null,"Expense","Utilities Expense Electricity"]
[null,null,null,null,""]
["550200","Utilities Electricity Delivery and Usage ",null,"Expense","Utilities Electricity Delivery and Usage"]
[null,null,null,null,""]
[null,"Water and Sewer ",null,"Expense","Water and Sewer"]
[null,null,null,null,""]
[null,"Utilities Water and Sewer ",null,"Expense","Utilities Water and Sewer"]
[null,null,null,null,""]
[null,"Utilities Expense Water and Sewer ",null,"Expense","Utilities Expense Water and Sewer"]
[null,null,null,null,""]
["550300","Utilities Water and Sewer Expense ",null,"Expense","Utilities Water and Sewer Expense"]
[null,null,null,null,""]
[null,"Utilities Other ",null,"Expense","Utilities Other"]
[null,null,null,null,""]
[null,"Utilities Other Utilities Expense ",null,"Expense","Utilities Other Utilities Expense"]
[null,null,null,null,""]
[null,"Utilities Other Expense ",null,"Expense","Utilities Other Expense"]
[null,null,null,null,""]
["550400","Residential Garbage and Waste Services ",null,"Expense","Residential Garbage and Waste Services"]
[null,null,null,null,""]
["550401","Utilities Oil ",null,"Expense","Utilities Oil"]
[null,null,null,null,""]
["550402","Utilities Propane and Butane Gas ",null,"Expense","Utilities Propane and Butane Gas"]
[null,null,null,null,""]
["550409","Other Utilities ",null,"Expense","Other Utilities"]
[null,null,null,null,""]
[null,"Campus Foundation Grants Foundation Use Only ",null,"Expense","Campus Foundation Grants Foundation Use Only"]
[null,null,null,null,""]
[null,"Campus Foundation Grants UCD Foundation Only ",null,"Expense","Campus Foundation Grants UCD Foundation Only"]
[null,null,null,null,""]
[null,"Campus Foundation Grants ",null,"Expense","Campus Foundation Grants"]
[null,null,null,null,""]
[null,"Campus Foundation Grants Expense ",null,"Expense","Campus Foundation Grants Expense"]
[null,null,null,null,""]
["560000","Transfer Fund to Grants ",null,"Expense","Transfer Fund to Grants"]
[null,null,null,null,""]
["560001","Gift Fee Transfer to Regents ",null,"Expense","Gift Fee Transfer to Regents"]
[null,null,null,null,""]
["560002","Infrastructure Fee ",null,"Expense","Infrastructure Fee"]
[null,null,null,null,""]
["560003","Transfer Endowment Payout to Regents ",null,"Expense","Transfer Endowment Payout to Regents"]
[null,null,null,null,""]
[null,"Cal Aggie Alumni Association CAAA Specific Expenses ",null,"Expense","Cal Aggie Alumni Association CAAA Specific Expenses"]
[null,null,null,null,""]
[null,"Cal Aggie Alumni Association Specific Expenses CAAA Use Only ",null,"Expense","Cal Aggie Alumni Association Specific Expenses CAAA Use Only"]
[null,null,null,null,""]
[null,"Cal Aggie Alumni Association Specific Expenses CAAA Use ",null,"Expense","Cal Aggie Alumni Association Specific Expenses CAAA Use"]
[null,null,null,null,""]
[null,"Cal Aggie Admin and General Operating Expenses ",null,"Expense","Cal Aggie Admin and General Operating Expenses"]
[null,null,null,null,""]
["560010","General Operations Fees and Assessments ",null,"Expense","General Operations Fees and Assessments"]
[null,null,null,null,""]
["560011","Board Expense ",null,"Expense","Board Expense"]
[null,null,null,null,""]
["560012","Dues and Subscriptions ",null,"Expense","Dues and Subscriptions"]
[null,null,null,null,""]
["560013","Facility Fees ",null,"Expense","Facility Fees"]
[null,null,null,null,""]
[null,"Cal Aggie Marketing and Member Expenses ",null,"Expense","Cal Aggie Marketing and Member Expenses"]
[null,null,null,null,""]
["560020","Member Acquisition ",null,"Expense","Member Acquisition"]
[null,null,null,null,""]
["560021","Member Stewardship ",null,"Expense","Member Stewardship"]
[null,null,null,null,""]
["560022","Program Supplies ",null,"Expense","Program Supplies"]
[null,null,null,null,""]
["560023","Sponsorships ",null,"Expense","Sponsorships"]
[null,null,null,null,""]
[null,"Cal Aggie Other Expenses ",null,"Expense","Cal Aggie Other Expenses"]
[null,null,null,null,""]
["560030","Volunteer Stewardship ",null,"Expense","Volunteer Stewardship"]
[null,null,null,null,""]
["560031","Nonoperating Expense ",null,"Expense","Nonoperating Expense"]
[null,null,null,null,""]
[null,"UC Davis Foundation Specific Expenses ",null,"Expense","UC Davis Foundation Specific Expenses"]
[null,null,null,null,""]
[null,"UCDF Specific Expenses Use Only ",null,"Expense","UCDF Specific Expenses Use Only"]
[null,null,null,null,""]
[null,"UCDF Specific Expenses Use ",null,"Expense","UCDF Specific Expenses Use"]
[null,null,null,null,""]
[null,"UCDF Operating Expenses ",null,"Expense","UCDF Operating Expenses"]
[null,null,null,null,""]
["560201","Chair Discretionary Fund ",null,"Expense","Chair Discretionary Fund"]
[null,null,null,null,""]
["560202","Board Projects ",null,"Expense","Board Projects"]
[null,null,null,null,""]
["560203","Investment Reporting ",null,"Expense","Investment Reporting"]
[null,null,null,null,""]
["560204","Tax Preperation ",null,"Expense","Tax Preperation"]
[null,null,null,null,""]
["560205","Account Expense Teaching Prize Award ",null,"Expense","Account Expense Teaching Prize Award"]
[null,null,null,null,""]
["560206","Account Expense Teaching Prize Ceremony ",null,"Expense","Account Expense Teaching Prize Ceremony"]
[null,null,null,null,""]
[null,"Interest Expense A ",null,"Expense","Interest Expense A"]
[null,null,null,null,""]
[null,"Interest Expense B ",null,"Expense","Interest Expense B"]
[null,null,null,null,""]
[null,"Interest Expense Commercial Paper ",null,"Expense","Interest Expense Commercial Paper"]
[null,null,null,null,""]
[null,"Interest Expense Capital Financing Commercial Paper Taxable D ",null,"Expense","Interest Expense Capital Financing Commercial Paper Taxable D"]
[null,null,null,null,""]
["580000","Interest Expense Capital Financing Commercial Paper Taxable ",null,"Expense","Interest Expense Capital Financing Commercial Paper Taxable"]
[null,null,null,null,""]
[null,"Interest Expense Noncapital Financing Commercial Paper Taxable D ",null,"Expense","Interest Expense Noncapital Financing Commercial Paper Taxable D"]
[null,null,null,null,""]
["580010","Interest Expense Noncapital Financing Commercial Paper Taxable ",null,"Expense","Interest Expense Noncapital Financing Commercial Paper Taxable"]
[null,null,null,null,""]
[null,"Interest Expense Commercial Paper Tax Exempt D ",null,"Expense","Interest Expense Commercial Paper Tax Exempt D"]
[null,null,null,null,""]
["580100","Interest Expense Commercial Paper Tax Exempt ",null,"Expense","Interest Expense Commercial Paper Tax Exempt"]
[null,null,null,null,""]
[null,"Interest Expense Long Term Debt ",null,"Expense","Interest Expense Long Term Debt"]
[null,null,null,null,""]
[null,"Interest Expense Long Term Debt LTD Capital Financing ",null,"Expense","Interest Expense Long Term Debt LTD Capital Financing"]
[null,null,null,null,""]
["580200","Interest Expense Long Term Debt LTD Capital Finance ",null,"Expense","Interest Expense Long Term Debt LTD Capital Finance"]
[null,null,null,null,""]
[null,"Interest Expense Long Term Debt LTD Noncapital Financing ",null,"Expense","Interest Expense Long Term Debt LTD Noncapital Financing"]
[null,null,null,null,""]
["580210","Interest Expense Long Term Debt LTD Noncapital Finance ",null,"Expense","Interest Expense Long Term Debt LTD Noncapital Finance"]
[null,null,null,null,""]
[null,"Interest Expense Payment of Interest Between Locations ",null,"Expense","Interest Expense Payment of Interest Between Locations"]
[null,null,null,null,""]
["580220","Interest Expense Payment of Interest Between UC Locations ",null,"Expense","Interest Expense Payment of Interest Between UC Locations"]
[null,null,null,null,""]
[null,"Interest Expense Capital Leases ",null,"Expense","Interest Expense Capital Leases"]
[null,null,null,null,""]
[null,"Interest Expense Capital Lease ",null,"Expense","Interest Expense Capital Lease"]
[null,null,null,null,""]
["580300","Interest Expense Paid on Capital Leases ",null,"Expense","Interest Expense Paid on Capital Leases"]
[null,null,null,null,""]
[null,"Interest Expense GASB 87 ",null,"Expense","Interest Expense GASB 87"]
[null,null,null,null,""]
["580310","GASB 87 Interest Expense ",null,"Expense","GASB 87 Interest Expense"]
[null,null,null,null,""]
[null,"Interest Expense GASB 96 D ",null,"Expense","Interest Expense GASB 96 D"]
[null,null,null,null,""]
["580320","Interest Expense GASB 96 ",null,"Expense","Interest Expense GASB 96"]
[null,null,null,null,""]
[null,"Interest Expense Bank Loans ",null,"Expense","Interest Expense Bank Loans"]
[null,null,null,null,""]
[null,"Interest Expense Bank Loan ",null,"Expense","Interest Expense Bank Loan"]
[null,null,null,null,""]
["580400","Interest Expense Paid on Bank Loans ",null,"Expense","Interest Expense Paid on Bank Loans"]
[null,null,null,null,""]
[null,"Interest Expense Interest Rate Swaps ",null,"Expense","Interest Expense Interest Rate Swaps"]
[null,null,null,null,""]
[null,"Interest Expense Interest Rate Swap ",null,"Expense","Interest Expense Interest Rate Swap"]
[null,null,null,null,""]
["580500","Interest Expense Paid on Interest Rate Swaps ",null,"Expense","Interest Expense Paid on Interest Rate Swaps"]
[null,null,null,null,""]
[null,"Interest Expense Other Borrowings ",null,"Expense","Interest Expense Other Borrowings"]
[null,null,null,null,""]
[null,"Interest Expense Other Borrowing ",null,"Expense","Interest Expense Other Borrowing"]
[null,null,null,null,""]
["580600","Interest Expense Paid on Other Borrowings ",null,"Expense","Interest Expense Paid on Other Borrowings"]
[null,null,null,null,""]
[null,"Interest Expense Amort of Off the Market Hybrid Derivative D ",null,"Expense","Interest Expense Amort of Off the Market Hybrid Derivative D"]
[null,null,null,null,""]
["580610","Interest Expense Amort of Off the Market Hybrid Derivative ",null,"Expense","Interest Expense Amort of Off the Market Hybrid Derivative"]
[null,null,null,null,""]
[null,"Interest Expense Internal Loans C ",null,"Expense","Interest Expense Internal Loans C"]
[null,null,null,null,""]
[null,"UCOP Interest Expense Internal Loans ",null,"Expense","UCOP Interest Expense Internal Loans"]
[null,null,null,null,""]
["580700","Interest Expense Paid on Internal Loans ",null,"Expense","Interest Expense Paid on Internal Loans"]
[null,null,null,null,""]
[null,"Interest Expense Amortization ",null,"Expense","Interest Expense Amortization"]
[null,null,null,null,""]
[null,"Amortization of Revenue Bond Premium ",null,"Expense","Amortization of Revenue Bond Premium"]
[null,null,null,null,""]
["580800","Interest Expense Amortization of Revenue Bond Premium ",null,"Expense","Interest Expense Amortization of Revenue Bond Premium"]
[null,null,null,null,""]
[null,"Amortization of 3rd Party Bond Premium ",null,"Expense","Amortization of 3rd Party Bond Premium"]
[null,null,null,null,""]
["580900","Interest Expense Amortization of 3rd Party Bond Premium ",null,"Expense","Interest Expense Amortization of 3rd Party Bond Premium"]
[null,null,null,null,""]
[null,"Amortization of Deferred Financing Costs ",null,"Expense","Amortization of Deferred Financing Costs"]
[null,null,null,null,""]
["581000","Interest Expense Amortization of Deferred Financing Costs ",null,"Expense","Interest Expense Amortization of Deferred Financing Costs"]
[null,null,null,null,""]
[null,"Interest on Internal Loans ",null,"Expense","Interest on Internal Loans"]
[null,null,null,null,""]
[null,"Interest Expense on Internal Loans D ",null,"Expense","Interest Expense on Internal Loans D"]
[null,null,null,null,""]
["750600","Interest Expense Internal Loans ",null,"Expense","Interest Expense Internal Loans"]
[null,null,null,null,""]
[null,"Other Nonoperating Expense ",null,"Expense","Other Nonoperating Expense"]
[null,null,null,null,""]
[null,"Other Nonoperating Expenses ",null,"Expense","Other Nonoperating Expenses"]
[null,null,null,null,""]
[null,"Other Nonoperating Expense D ",null,"Expense","Other Nonoperating Expense D"]
[null,null,null,null,""]
["583000","Other Nonoperating Exp ",null,"Expense","Other Nonoperating Exp"]
[null,null,null,null,""]
["583001","Asset Retirement Obligation ARO Expense ",null,"Expense","Asset Retirement Obligation ARO Expense"]
[null,null,null,null,""]
[null,"Termination Gain Loss ",null,"Expense","Termination Gain Loss"]
[null,null,null,null,""]
["583010","Gain loss on Termination ",null,"Expense","Gain loss on Termination"]
[null,null,null,null,""]
[null,"Return and Early Termination Fees ",null,"Expense","Return and Early Termination Fees"]
[null,null,null,null,""]
["583510","Early Termination and Return Fees ",null,"Expense","Early Termination and Return Fees"]
[null,null,null,null,""]
[null,"Residual Value of Guaranteed Expense Noncapitalized ",null,"Expense","Residual Value of Guaranteed Expense Noncapitalized"]
[null,null,null,null,""]
["583520","Guaranteed Noncapitalized Expense of residual Value ",null,"Expense","Guaranteed Noncapitalized Expense of residual Value"]
[null,null,null,null,""]
[null,"UCDF Nonoperating Income Expense ",null,"Expense","UCDF Nonoperating Income Expense"]
[null,null,null,null,""]
["583F00","Interfund Transfer among funds ",null,"Expense","Interfund Transfer among funds"]
[null,null,null,null,""]
["583F01","Interfund Transfer Soderquist Award ",null,"Expense","Interfund Transfer Soderquist Award"]
[null,null,null,null,""]
["583F02","Intrafund Transfer Correct GASB Code ",null,"Expense","Intrafund Transfer Correct GASB Code"]
[null,null,null,null,""]
["583F03","Interfund Transfer from Life Income Fund ",null,"Expense","Interfund Transfer from Life Income Fund"]
[null,null,null,null,""]
["583F04","Interfund Transfer between fund types ",null,"Expense","Interfund Transfer between fund types"]
[null,null,null,null,""]
["583F05","Interfund GEP Admin Fee ",null,"Expense","Interfund GEP Admin Fee"]
[null,null,null,null,""]
["583F06","Interfund Ops Payout ",null,"Expense","Interfund Ops Payout"]
[null,null,null,null,""]
["583F07","Interfund Gift Fee ",null,"Expense","Interfund Gift Fee"]
[null,null,null,null,""]
[null,"Medical Center Nonoperating Expense ",null,"Expense","Medical Center Nonoperating Expense"]
[null,null,null,null,""]
[null,"MC Maintenance of Restricted Funds ",null,"Expense","MC Maintenance of Restricted Funds"]
[null,null,null,null,""]
[null,"Med Ctr Maintenance of Restricted Funds ",null,"Expense","Med Ctr Maintenance of Restricted Funds"]
[null,null,null,null,""]
["587000","UCDMC Maintenance of Restricted Funds Nonoperating Expense ",null,"Expense","UCDMC Maintenance of Restricted Funds Nonoperating Expense"]
[null,null,null,null,""]
[null,"MC Physicians Offices and Other Rentals Expense ",null,"Expense","MC Physicians Offices and Other Rentals Expense"]
[null,null,null,null,""]
[null,"Med Ctr Physicians Offices and Other Rentals Expense ",null,"Expense","Med Ctr Physicians Offices and Other Rentals Expense"]
[null,null,null,null,""]
["587400","UCDMC Physicians Offices and Other Rentals Expense ",null,"Expense","UCDMC Physicians Offices and Other Rentals Expense"]
[null,null,null,null,""]
[null,"MC Medical Office Building Expense ",null,"Expense","MC Medical Office Building Expense"]
[null,null,null,null,""]
[null,"Med Ctr Medical Office Building Expense ",null,"Expense","Med Ctr Medical Office Building Expense"]
[null,null,null,null,""]
["587500","UCDMC Medical Office Building Expenses ",null,"Expense","UCDMC Medical Office Building Expenses"]
[null,null,null,null,""]
[null,"MC Child Care Services Expense Nonemployees ",null,"Expense","MC Child Care Services Expense Nonemployees"]
[null,null,null,null,""]
[null,"Med Ctr Child Care Services Expense Nonemployees ",null,"Expense","Med Ctr Child Care Services Expense Nonemployees"]
[null,null,null,null,""]
["587600","UCDMC Child Care Services Expense Nonemployees ",null,"Expense","UCDMC Child Care Services Expense Nonemployees"]
[null,null,null,null,""]
[null,"MC Family Housing Expense ",null,"Expense","MC Family Housing Expense"]
[null,null,null,null,""]
[null,"Med Ctr Family Housing Expense ",null,"Expense","Med Ctr Family Housing Expense"]
[null,null,null,null,""]
["587700","UCDMC Family Housing Expenses ",null,"Expense","UCDMC Family Housing Expenses"]
[null,null,null,null,""]
[null,"MC Retail Operations Expense ",null,"Expense","MC Retail Operations Expense"]
[null,null,null,null,""]
[null,"Med Ctr Retail Operations Expense ",null,"Expense","Med Ctr Retail Operations Expense"]
[null,null,null,null,""]
["587800","UCDMC Retail Operations Expenses ",null,"Expense","UCDMC Retail Operations Expenses"]
[null,null,null,null,""]
[null,"MC Losses on Bond Retirement ",null,"Expense","MC Losses on Bond Retirement"]
[null,null,null,null,""]
[null,"Med Ctr Losses on Bond Retirement ",null,"Expense","Med Ctr Losses on Bond Retirement"]
[null,null,null,null,""]
["587900","UCDMC Losses on Bond Retirements ",null,"Expense","UCDMC Losses on Bond Retirements"]
[null,null,null,null,""]
[null,"MC Termination of Hedge Fund Agreements ",null,"Expense","MC Termination of Hedge Fund Agreements"]
[null,null,null,null,""]
[null,"Med Ctr Termination of Hedge Fund Agreements D ",null,"Expense","Med Ctr Termination of Hedge Fund Agreements D"]
[null,null,null,null,""]
["588000","UCDMC Termination of Hedge Fund Agreements ",null,"Expense","UCDMC Termination of Hedge Fund Agreements"]
[null,null,null,null,""]
[null,"MC Hospital Grants Portion ",null,"Expense","MC Hospital Grants Portion"]
[null,null,null,null,""]
[null,"Med Ctr Hospital Grants Portion ",null,"Expense","Med Ctr Hospital Grants Portion"]
[null,null,null,null,""]
["588100","UCDMC Hospital Grants Portion Nonoperating Expense ",null,"Expense","UCDMC Hospital Grants Portion Nonoperating Expense"]
[null,null,null,null,""]
[null,"MC Other Nonoperating Expenses ",null,"Expense","MC Other Nonoperating Expenses"]
[null,null,null,null,""]
[null,"Med Ctr Other Nonoperating Expenses ",null,"Expense","Med Ctr Other Nonoperating Expenses"]
[null,null,null,null,""]
["588200","UCDMC Other Nonoperating Expenses ",null,"Expense","UCDMC Other Nonoperating Expenses"]
[null,null,null,null,""]
[null,"Suspense Accounts A ",null,"Expense","Suspense Accounts A"]
[null,null,null,null,""]
[null,"Suspense Accounts B ",null,"Expense","Suspense Accounts B"]
[null,null,null,null,""]
[null,"Suspense Accounts C ",null,"Expense","Suspense Accounts C"]
[null,null,null,null,""]
[null,"Suspense Accounts D ",null,"Expense","Suspense Accounts D"]
[null,null,null,null,""]
["590000","System Default Errors ",null,"Expense","System Default Errors"]
[null,null,null,null,""]
[null,"Recharge Sales and Services ",null,"Expense","Recharge Sales and Services"]
[null,null,null,null,""]
[null,"Medical Center Recharges B ",null,"Expense","Medical Center Recharges B"]
[null,null,null,null,""]
[null,"MC Salary and Wage ",null,"Expense","MC Salary and Wage"]
[null,null,null,null,""]
[null,"Medical Center Salary and Wage Recharges ",null,"Expense","Medical Center Salary and Wage Recharges"]
[null,null,null,null,""]
["730000","Medical Center Salary and Wage Recharge ",null,"Expense","Medical Center Salary and Wage Recharge"]
[null,null,null,null,""]
[null,"Medical Center Other Employee Benefits D ",null,"Expense","Medical Center Other Employee Benefits D"]
[null,null,null,null,""]
[null,"Medical Center Other Employee Benefits ",null,"Expense","Medical Center Other Employee Benefits"]
[null,null,null,null,""]
["731000","MC Other Employee Benefits ",null,"Expense","MC Other Employee Benefits"]
[null,null,null,null,""]
[null,"MC Other Employee Benefits C ",null,"Expense","MC Other Employee Benefits C"]
[null,null,null,null,""]
[null,"Medical Center Professional Services ",null,"Expense","Medical Center Professional Services"]
[null,null,null,null,""]
["732000","MC Provessional Services ",null,"Expense","MC Provessional Services"]
[null,null,null,null,""]
[null,"Medical Center Medical Supplies C ",null,"Expense","Medical Center Medical Supplies C"]
[null,null,null,null,""]
[null,"Medical Center Medical Supplies D ",null,"Expense","Medical Center Medical Supplies D"]
[null,null,null,null,""]
["733000","MC Medical Supplies ",null,"Expense","MC Medical Supplies"]
[null,null,null,null,""]
[null,"UCDMC Other Supplies and Purchased Services C ",null,"Expense","UCDMC Other Supplies and Purchased Services C"]
[null,null,null,null,""]
[null,"UCDMC Other Supplies and Purchased Services D ",null,"Expense","UCDMC Other Supplies and Purchased Services D"]
[null,null,null,null,""]
["734000","UCDMC Recharges Other Supplies and Purchased Services ",null,"Expense","UCDMC Recharges Other Supplies and Purchased Services"]
[null,null,null,null,""]
[null,"MC Recharge Insurance and Other Services ",null,"Expense","MC Recharge Insurance and Other Services"]
[null,null,null,null,""]
[null,"MC Recharge Insurance and Other Services D ",null,"Expense","MC Recharge Insurance and Other Services D"]
[null,null,null,null,""]
["735000","UCDMC Recharges Insurance and Other Services ",null,"Expense","UCDMC Recharges Insurance and Other Services"]
[null,null,null,null,""]
[null,"Internal Recharge ",null,"Expense","Internal Recharge"]
[null,null,null,null,""]
[null,"Internal Recharge Expense Intraentity C ",null,"Expense","Internal Recharge Expense Intraentity C"]
[null,null,null,null,""]
[null,"Internal Recharge Expense D ",null,"Expense","Internal Recharge Expense D"]
[null,null,null,null,""]
["770000","Facilities and Equipment Maintenance Services ",null,"Expense","Facilities and Equipment Maintenance Services"]
[null,null,null,null,""]
["770001","Space and Event Services ",null,"Expense","Space and Event Services"]
[null,null,null,null,""]
["770002","Materials and Supplies Recharges ",null,"Expense","Materials and Supplies Recharges"]
[null,null,null,null,""]
["770003","Research or Lab Support Services ",null,"Expense","Research or Lab Support Services"]
[null,null,null,null,""]
["770004","Transportation Recharges ",null,"Expense","Transportation Recharges"]
[null,null,null,null,""]
["770005","IT Services ",null,"Expense","IT Services"]
[null,null,null,null,""]
["770006","Other Support Services ",null,"Expense","Other Support Services"]
[null,null,null,null,""]
["770007","DCA Recharge Expense ",null,"Expense","DCA Recharge Expense"]
[null,null,null,null,""]
["770008","Central Campus Assessment Expense ",null,"Expense","Central Campus Assessment Expense"]
[null,null,null,null,""]
["770009","Central Campus Income Assessment Expense ",null,"Expense","Central Campus Income Assessment Expense"]
[null,null,null,null,""]
["770010","Departmental Assessment Expense ",null,"Expense","Departmental Assessment Expense"]
[null,null,null,null,""]
["770011","CPE Course and Special Fees ",null,"Expense","CPE Course and Special Fees"]
[null,null,null,null,""]
[null,"Fund Transfer Expense D ",null,"Expense","Fund Transfer Expense D"]
[null,null,null,null,""]
["770100","Admin Cost of Student Aid Expense ",null,"Expense","Admin Cost of Student Aid Expense"]
[null,null,null,null,""]
["770101","Balances to Reserve Expense ",null,"Expense","Balances to Reserve Expense"]
[null,null,null,null,""]
["770102","Loan Transfer Expense ",null,"Expense","Loan Transfer Expense"]
[null,null,null,null,""]
["770103","Fund Transfer Expnese ",null,"Expense","Fund Transfer Expnese"]
[null,null,null,null,""]
["770104","Rate Depreciation Expense ",null,"Expense","Rate Depreciation Expense"]
[null,null,null,null,""]
[null,"Funds Flow Element Expenses ",null,"Expense","Funds Flow Element Expenses"]
[null,null,null,null,""]
["770501","CS EXP Funds Flow wRVU Payments ",null,"Expense","CS EXP Funds Flow wRVU Payments"]
[null,null,null,null,""]
["770502","CS EXP Funds Flow cFTE Clinical Coverage Payments ",null,"Expense","CS EXP Funds Flow cFTE Clinical Coverage Payments"]
[null,null,null,null,""]
["770503","CS EXP Other Funds Flow Faculty Benefits Payments ",null,"Expense","CS EXP Other Funds Flow Faculty Benefits Payments"]
[null,null,null,null,""]
["770504","EF EXP Clinical Faculty Paid Leave FMLA ",null,"Expense","EF EXP Clinical Faculty Paid Leave FMLA"]
[null,null,null,null,""]
["770505","CS EXP Other Funds Flow Admin Allowance ",null,"Expense","CS EXP Other Funds Flow Admin Allowance"]
[null,null,null,null,""]
["770506","CS EXP Other Funds Flow Collection Based Pmts CPT Codes ",null,"Expense","CS EXP Other Funds Flow Collection Based Pmts CPT Codes"]
[null,null,null,null,""]
["770507","CS EXP Other Funds Flow Collection Based Pmts Cash Baseed Services ",null,"Expense","CS EXP Other Funds Flow Collection Based Pmts Cash Baseed Services"]
[null,null,null,null,""]
["770508","CS EXP Funds Flow Advanced Practice Provider Support ",null,"Expense","CS EXP Funds Flow Advanced Practice Provider Support"]
[null,null,null,null,""]
["770509","EF EXP Clinical Faculty Administrative Leadership ",null,"Expense","EF EXP Clinical Faculty Administrative Leadership"]
[null,null,null,null,""]
["770510","EF EXP Research Over the Cap Support ",null,"Expense","EF EXP Research Over the Cap Support"]
[null,null,null,null,""]
["770511","EF EXP Research Grant Matching ",null,"Expense","EF EXP Research Grant Matching"]
[null,null,null,null,""]
["770512","EF EXP Research IRB Member Support ",null,"Expense","EF EXP Research IRB Member Support"]
[null,null,null,null,""]
["770513","EF EXP Research Clinical Trials Incentives ",null,"Expense","EF EXP Research Clinical Trials Incentives"]
[null,null,null,null,""]
["770514","Taxes Assesesment Fees Funds Flow EXP ",null,"Expense","Taxes Assesesment Fees Funds Flow EXP"]
[null,null,null,null,""]
["770515","PET EXP Funds Flow PET Explorer Cash Payments ",null,"Expense","PET EXP Funds Flow PET Explorer Cash Payments"]
[null,null,null,null,""]
["770516","PET EXP Funds Flow PET Explorer Faculty Benefit PMTS ",null,"Expense","PET EXP Funds Flow PET Explorer Faculty Benefit PMTS"]
[null,null,null,null,""]
[null,"Funds FLow Agreement Expenses ",null,"Expense","Funds FLow Agreement Expenses"]
[null,null,null,null,""]
["770601","EF EXP Clinical Chair Support ",null,"Expense","EF EXP Clinical Chair Support"]
[null,null,null,null,""]
["770602","EF EXP Clinical Clinic Leadership ",null,"Expense","EF EXP Clinical Clinic Leadership"]
[null,null,null,null,""]
["770603","EF EXP Educational Grad Medical Education ",null,"Expense","EF EXP Educational Grad Medical Education"]
[null,null,null,null,""]
["770604","EF EXP Clinical Medical Leadership ",null,"Expense","EF EXP Clinical Medical Leadership"]
[null,null,null,null,""]
["770605","EF EXP Clinical Other Purchased Services MOUS ",null,"Expense","EF EXP Clinical Other Purchased Services MOUS"]
[null,null,null,null,""]
["770606","EF EXP Clinical Pager Call and Coverage Support ",null,"Expense","EF EXP Clinical Pager Call and Coverage Support"]
[null,null,null,null,""]
["770607","EF EXP Clinical Time Limited Faculty Support ",null,"Expense","EF EXP Clinical Time Limited Faculty Support"]
[null,null,null,null,""]
["770608","EF EXP Educational Undergrad Medical Education ",null,"Expense","EF EXP Educational Undergrad Medical Education"]
[null,null,null,null,""]
["770609","MCP EXP UCDS Program Support ",null,"Expense","MCP EXP UCDS Program Support"]
[null,null,null,null,""]
["770610","MC CLINICAL SOM AGREEMENTS EXP ",null,"Expense","MC CLINICAL SOM AGREEMENTS EXP"]
[null,null,null,null,""]
[null,"Internal Recharge Credit Interdepartmental within an Entity ",null,"Expense","Internal Recharge Credit Interdepartmental within an Entity"]
[null,null,null,null,""]
[null,"Internal Recharge Credit Interdepartmental within Entity ",null,"Expense","Internal Recharge Credit Interdepartmental within Entity"]
[null,null,null,null,""]
["775000","UCD Recharge Revenue ",null,"Expense","UCD Recharge Revenue"]
[null,null,null,null,""]
["775001","UCD Recharge Material Pass thru Revenue ",null,"Expense","UCD Recharge Material Pass thru Revenue"]
[null,null,null,null,""]
["775002","DCA Recharge Revenue ",null,"Expense","DCA Recharge Revenue"]
[null,null,null,null,""]
["775003","Central Campus Assessment Revenue ",null,"Expense","Central Campus Assessment Revenue"]
[null,null,null,null,""]
["775004","Central Campus Income Assessment Revenue ",null,"Expense","Central Campus Income Assessment Revenue"]
[null,null,null,null,""]
["775005","Departmental Assessment Revenue ",null,"Expense","Departmental Assessment Revenue"]
[null,null,null,null,""]
[null,"Central Campus Appropriations ",null,"Expense","Central Campus Appropriations"]
[null,null,null,null,""]
["775B00","Central Campus Appropriations Ongoing ",null,"Revenue","Central Campus Appropriations Ongoing"]
[null,null,null,null,""]
["775B01","OP Appropriations Ongoing ",null,"Revenue","OP Appropriations Ongoing"]
[null,null,null,null,""]
["775B10","Central Campus Appropriations One Time ",null,"Revenue","Central Campus Appropriations One Time"]
[null,null,null,null,""]
["775B11","OP Appropriations One Time ",null,"Revenue","OP Appropriations One Time"]
[null,null,null,null,""]
[null,"Unit Level Appropriation Transfers ",null,"Expense","Unit Level Appropriation Transfers"]
[null,null,null,null,""]
["775B05","VC Dean Office Appropriations Ongoing ",null,"Revenue","VC Dean Office Appropriations Ongoing"]
[null,null,null,null,""]
["775B06","Appropriations Transfer Between Units Ongoing ",null,"Revenue","Appropriations Transfer Between Units Ongoing"]
[null,null,null,null,""]
["775B14","VC Dean Office Appropriations One Time ",null,"Revenue","VC Dean Office Appropriations One Time"]
[null,null,null,null,""]
["775B15","Appropriations Transfer Btwn Units One Time ",null,"Revenue","Appropriations Transfer Btwn Units One Time"]
[null,null,null,null,""]
[null,"Fund Transfers Revenue D ",null,"Expense","Fund Transfers Revenue D"]
[null,null,null,null,""]
["775100","Admin Cost Recovery Federal Aid ",null,"Expense","Admin Cost Recovery Federal Aid"]
[null,null,null,null,""]
["775101","Balances to Reserve Revenue ",null,"Expense","Balances to Reserve Revenue"]
[null,null,null,null,""]
["775102","Loan Transfer Revenue ",null,"Expense","Loan Transfer Revenue"]
[null,null,null,null,""]
["775103","Fund Transfer Revenue ",null,"Expense","Fund Transfer Revenue"]
[null,null,null,null,""]
["775104","Rate Depreciation Revenue ",null,"Expense","Rate Depreciation Revenue"]
[null,null,null,null,""]
[null,"Funds Flow Element ",null,"Expense","Funds Flow Element"]
[null,null,null,null,""]
["775501","CS REV Funds Flow wRVU Payments ",null,"Expense","CS REV Funds Flow wRVU Payments"]
[null,null,null,null,""]
["775502","CS REV Funds Flow cFTE Clinical Coverage Payments ",null,"Expense","CS REV Funds Flow cFTE Clinical Coverage Payments"]
[null,null,null,null,""]
["775503","CS REV Other Funds Flow Faculty Benefits Payments ",null,"Expense","CS REV Other Funds Flow Faculty Benefits Payments"]
[null,null,null,null,""]
["775504","EF REV Clinical Faculty Paid Leave FMLA ",null,"Expense","EF REV Clinical Faculty Paid Leave FMLA"]
[null,null,null,null,""]
["775505","CS REV Other Funds Flow Admin Allowance ",null,"Expense","CS REV Other Funds Flow Admin Allowance"]
[null,null,null,null,""]
["775506","CS REV Other Funds Flow Collection Based Pmts CPT Codes ",null,"Expense","CS REV Other Funds Flow Collection Based Pmts CPT Codes"]
[null,null,null,null,""]
["775507","CS REV Other Funds Flow Collection Based Pmts Cash Baseed Services ",null,"Expense","CS REV Other Funds Flow Collection Based Pmts Cash Baseed Services"]
[null,null,null,null,""]
["775508","CS REV Funds Flow Advanced Practice Provider Support ",null,"Expense","CS REV Funds Flow Advanced Practice Provider Support"]
[null,null,null,null,""]
["775509","EF REV Clinical Faculty Administrative Leadership ",null,"Expense","EF REV Clinical Faculty Administrative Leadership"]
[null,null,null,null,""]
["775510","EF REV Research Over the Cap Support ",null,"Expense","EF REV Research Over the Cap Support"]
[null,null,null,null,""]
["775511","EF REV Research Grant Matching ",null,"Expense","EF REV Research Grant Matching"]
[null,null,null,null,""]
["775512","EF REV Research IRB Member Support ",null,"Expense","EF REV Research IRB Member Support"]
[null,null,null,null,""]
["775513","EF REV Research Clinical Trials Incentives ",null,"Expense","EF REV Research Clinical Trials Incentives"]
[null,null,null,null,""]
["775514","Taxes Assesesment Fees Funds Flow Rev ",null,"Expense","Taxes Assesesment Fees Funds Flow Rev"]
[null,null,null,null,""]
["775515","PET REV Funds Flow PET Explorer Cash Payments ",null,"Expense","PET REV Funds Flow PET Explorer Cash Payments"]
[null,null,null,null,""]
["775516","PET REV Funds Flow PET Explorer Faculty Benefit PMTS ",null,"Expense","PET REV Funds Flow PET Explorer Faculty Benefit PMTS"]
[null,null,null,null,""]
[null,"Funds FLow Agreements ",null,"Expense","Funds FLow Agreements"]
[null,null,null,null,""]
["775601","EF Rev Clinical Chair Support ",null,"Expense","EF Rev Clinical Chair Support"]
[null,null,null,null,""]
["775602","EF REV Clinical Clinic Leadership ",null,"Expense","EF REV Clinical Clinic Leadership"]
[null,null,null,null,""]
["775603","EF REV Educational Grad Medical Education ",null,"Expense","EF REV Educational Grad Medical Education"]
[null,null,null,null,""]
["775604","EF Rev Clinical Medical Leadership ",null,"Expense","EF Rev Clinical Medical Leadership"]
[null,null,null,null,""]
["775605","EF Rev Clinical Other Purchased Services MOUS ",null,"Expense","EF Rev Clinical Other Purchased Services MOUS"]
[null,null,null,null,""]
["775606","EF Rev Clinical Pager Call and Coverage Support ",null,"Expense","EF Rev Clinical Pager Call and Coverage Support"]
[null,null,null,null,""]
["775607","EF Rev Clinical Time Limited Faculty Support ",null,"Expense","EF Rev Clinical Time Limited Faculty Support"]
[null,null,null,null,""]
["775608","EF REV Educational Undergrad Medical Education ",null,"Expense","EF REV Educational Undergrad Medical Education"]
[null,null,null,null,""]
["775609","CPG Agreements Recharge Revenue ",null,"Expense","CPG Agreements Recharge Revenue"]
[null,null,null,null,""]
["775610","MC SUPPLIES RECHARGE REV ",null,"Expense","MC SUPPLIES RECHARGE REV"]
[null,null,null,null,""]
["775611","MC PROFESSIONAL SERVICES RECHARGE REV ",null,"Expense","MC PROFESSIONAL SERVICES RECHARGE REV"]
[null,null,null,null,""]
["775612","MC PURCHASED SERVICES RECHARGE REV ",null,"Expense","MC PURCHASED SERVICES RECHARGE REV"]
[null,null,null,null,""]
["775613","MC OTHER RECHARGE REV ",null,"Expense","MC OTHER RECHARGE REV"]
[null,null,null,null,""]
[null,"Intercampus Recharge ",null,"Expense","Intercampus Recharge"]
[null,null,null,null,""]
[null,"Intercampus Recharge Expense with UCB ",null,"Expense","Intercampus Recharge Expense with UCB"]
[null,null,null,null,""]
[null,"Intercampus Recharge Expense UCB ",null,"Expense","Intercampus Recharge Expense UCB"]
[null,null,null,null,""]
["780010","Intercampus Recharges Expense UCB ",null,"Expense","Intercampus Recharges Expense UCB"]
[null,null,null,null,""]
["780015","Interlocation Transfer of Funds Debit UCB ",null,"Expense","Interlocation Transfer of Funds Debit UCB"]
[null,null,null,null,""]
[null,"Intercampus Recharge Expense with UCSF ",null,"Expense","Intercampus Recharge Expense with UCSF"]
[null,null,null,null,""]
[null,"Intercampus Recharge Expense UCSF ",null,"Expense","Intercampus Recharge Expense UCSF"]
[null,null,null,null,""]
["780020","Intercampus Recharges Expense UCSF ",null,"Expense","Intercampus Recharges Expense UCSF"]
[null,null,null,null,""]
["780025","Interlocation Transfer of Funds Debit UCSF ",null,"Expense","Interlocation Transfer of Funds Debit UCSF"]
[null,null,null,null,""]
[null,"Intercampus Recharge Expense with UCD ",null,"Expense","Intercampus Recharge Expense with UCD"]
[null,null,null,null,""]
[null,"Intercampus Recharge Expense UCD ",null,"Expense","Intercampus Recharge Expense UCD"]
[null,null,null,null,""]
["780030","Intercampus Recharges Expense UCD ",null,"Expense","Intercampus Recharges Expense UCD"]
[null,null,null,null,""]
["780035","Interlocation Transfer of Funds Debit UCD ",null,"Expense","Interlocation Transfer of Funds Debit UCD"]
[null,null,null,null,""]
[null,"Intercampus Recharge Expense with UCLA ",null,"Expense","Intercampus Recharge Expense with UCLA"]
[null,null,null,null,""]
[null,"Intercampus Recharge Expense UCLA ",null,"Expense","Intercampus Recharge Expense UCLA"]
[null,null,null,null,""]
["780040","Intercampus Recharges Expense UCLA ",null,"Expense","Intercampus Recharges Expense UCLA"]
[null,null,null,null,""]
["780045","Interlocation Transfer of Funds Debit UCLA ",null,"Expense","Interlocation Transfer of Funds Debit UCLA"]
[null,null,null,null,""]
[null,"Intercampus Recharge Expense with UCR ",null,"Expense","Intercampus Recharge Expense with UCR"]
[null,null,null,null,""]
[null,"Intercampus Recharge Expense UCR ",null,"Expense","Intercampus Recharge Expense UCR"]
[null,null,null,null,""]
["780050","Intercampus Recharges Expense UCR ",null,"Expense","Intercampus Recharges Expense UCR"]
[null,null,null,null,""]
["780055","Interlocation Transfer of Funds Debit UCR ",null,"Expense","Interlocation Transfer of Funds Debit UCR"]
[null,null,null,null,""]
[null,"Intercampus Recharge Expense with UCSD ",null,"Expense","Intercampus Recharge Expense with UCSD"]
[null,null,null,null,""]
[null,"Intercampus Recharge Expense UCSD ",null,"Expense","Intercampus Recharge Expense UCSD"]
[null,null,null,null,""]
["780060","Intercampus Recharges Expense UCSD ",null,"Expense","Intercampus Recharges Expense UCSD"]
[null,null,null,null,""]
["780065","Interlocation Transfer of Funds Debit UCSD ",null,"Expense","Interlocation Transfer of Funds Debit UCSD"]
[null,null,null,null,""]
[null,"Intercampus Recharge Expense with UCSC ",null,"Expense","Intercampus Recharge Expense with UCSC"]
[null,null,null,null,""]
[null,"Intercampus Recharge Expense UCSC ",null,"Expense","Intercampus Recharge Expense UCSC"]
[null,null,null,null,""]
["780070","Intercampus Recharges Expense UCSC ",null,"Expense","Intercampus Recharges Expense UCSC"]
[null,null,null,null,""]
["780075","Interlocation Transfer of Funds Debit UCSC ",null,"Expense","Interlocation Transfer of Funds Debit UCSC"]
[null,null,null,null,""]
[null,"Intercampus Recharge Expense with UCSB ",null,"Expense","Intercampus Recharge Expense with UCSB"]
[null,null,null,null,""]
[null,"Intercampus Recharge Expense UCSB ",null,"Expense","Intercampus Recharge Expense UCSB"]
[null,null,null,null,""]
["780080","Intercampus Recharges Expense UCSB ",null,"Expense","Intercampus Recharges Expense UCSB"]
[null,null,null,null,""]
["780085","Interlocation Transfer of Funds Debit UCSB ",null,"Expense","Interlocation Transfer of Funds Debit UCSB"]
[null,null,null,null,""]
[null,"Intercampus Recharge Expense with UCI ",null,"Expense","Intercampus Recharge Expense with UCI"]
[null,null,null,null,""]
[null,"Intercampus Recharge Expense UCI ",null,"Expense","Intercampus Recharge Expense UCI"]
[null,null,null,null,""]
["780090","Intercampus Recharges Expense UCI ",null,"Expense","Intercampus Recharges Expense UCI"]
[null,null,null,null,""]
["780095","Interlocation Transfer of Funds Debit UCI ",null,"Expense","Interlocation Transfer of Funds Debit UCI"]
[null,null,null,null,""]
[null,"Intercampus Recharge Expense with UCM ",null,"Expense","Intercampus Recharge Expense with UCM"]
[null,null,null,null,""]
[null,"Intercampus Recharge Expense UCM ",null,"Expense","Intercampus Recharge Expense UCM"]
[null,null,null,null,""]
["780100","Intercampus Recharges Expense UCM ",null,"Expense","Intercampus Recharges Expense UCM"]
[null,null,null,null,""]
["780105","Interlocation Transfer of Funds Debit UCM ",null,"Expense","Interlocation Transfer of Funds Debit UCM"]
[null,null,null,null,""]
[null,"Intercampus Recharge Expense with UCOP ",null,"Expense","Intercampus Recharge Expense with UCOP"]
[null,null,null,null,""]
[null,"Intercampus Recharge Expense UCOP ",null,"Expense","Intercampus Recharge Expense UCOP"]
[null,null,null,null,""]
["780110","Intercampus Recharges Expense UCOP ",null,"Expense","Intercampus Recharges Expense UCOP"]
[null,null,null,null,""]
["780115","Interlocation Transfer of Funds Debit UCOP ",null,"Expense","Interlocation Transfer of Funds Debit UCOP"]
[null,null,null,null,""]
[null,"Intercampus Recharge Expense with ANR ",null,"Expense","Intercampus Recharge Expense with ANR"]
[null,null,null,null,""]
[null,"Intercampus Recharge Expense ANR ",null,"Expense","Intercampus Recharge Expense ANR"]
[null,null,null,null,""]
["780120","Intercampus Recharges Expense ANR ",null,"Expense","Intercampus Recharges Expense ANR"]
[null,null,null,null,""]
["780125","Interlocation Transfer of Funds Debit ANR ",null,"Expense","Interlocation Transfer of Funds Debit ANR"]
[null,null,null,null,""]
[null,"Intercampus Recharge Credit with UCB ",null,"Expense","Intercampus Recharge Credit with UCB"]
[null,null,null,null,""]
[null,"Intercampus Recharge Credit UCB ",null,"Expense","Intercampus Recharge Credit UCB"]
[null,null,null,null,""]
["785010","Intercampus Recharges Credit UCB ",null,"Expense","Intercampus Recharges Credit UCB"]
[null,null,null,null,""]
["785015","Interlocation Transfer of Funds Credit UCB ",null,"Expense","Interlocation Transfer of Funds Credit UCB"]
[null,null,null,null,""]
[null,"Intercampus Recharge Credit with UCSF ",null,"Expense","Intercampus Recharge Credit with UCSF"]
[null,null,null,null,""]
[null,"Intercampus Recharge Credit UCSF ",null,"Expense","Intercampus Recharge Credit UCSF"]
[null,null,null,null,""]
["785020","Intercampus Recharges Credit UCSF ",null,"Expense","Intercampus Recharges Credit UCSF"]
[null,null,null,null,""]
["785025","Interlocation Transfer of Funds Credit UCSF ",null,"Expense","Interlocation Transfer of Funds Credit UCSF"]
[null,null,null,null,""]
[null,"Intercampus Recharge Credit with UCD ",null,"Expense","Intercampus Recharge Credit with UCD"]
[null,null,null,null,""]
[null,"Intercampus Recharge Credit UCD ",null,"Expense","Intercampus Recharge Credit UCD"]
[null,null,null,null,""]
["785030","Intercampus Recharges Credit UCD ",null,"Expense","Intercampus Recharges Credit UCD"]
[null,null,null,null,""]
["785035","Interlocation Transfer of Funds Credit UCD ",null,"Expense","Interlocation Transfer of Funds Credit UCD"]
[null,null,null,null,""]
[null,"Intercampus Recharge Credit with UCLA ",null,"Expense","Intercampus Recharge Credit with UCLA"]
[null,null,null,null,""]
[null,"Intercampus Recharge Credit UCLA ",null,"Expense","Intercampus Recharge Credit UCLA"]
[null,null,null,null,""]
["785040","Intercampus Recharges Credit UCLA ",null,"Expense","Intercampus Recharges Credit UCLA"]
[null,null,null,null,""]
["785045","Interlocation Transfer of Funds Credit UCLA ",null,"Expense","Interlocation Transfer of Funds Credit UCLA"]
[null,null,null,null,""]
[null,"Intercampus Recharge Credit with UCR ",null,"Expense","Intercampus Recharge Credit with UCR"]
[null,null,null,null,""]
[null,"Intercampus Recharge Credit UCR ",null,"Expense","Intercampus Recharge Credit UCR"]
[null,null,null,null,""]
["785050","Intercampus Recharges Credit UCR ",null,"Expense","Intercampus Recharges Credit UCR"]
[null,null,null,null,""]
["785055","Interlocation Transfer of Funds Credit UCR ",null,"Expense","Interlocation Transfer of Funds Credit UCR"]
[null,null,null,null,""]
[null,"Intercampus Recharge Credit with UCSD ",null,"Expense","Intercampus Recharge Credit with UCSD"]
[null,null,null,null,""]
[null,"Intercampus Recharge Credit UCSD ",null,"Expense","Intercampus Recharge Credit UCSD"]
[null,null,null,null,""]
["785060","Intercampus Recharges Credit UCSD ",null,"Expense","Intercampus Recharges Credit UCSD"]
[null,null,null,null,""]
["785065","Interlocation Transfer of Funds Credit UCSD ",null,"Expense","Interlocation Transfer of Funds Credit UCSD"]
[null,null,null,null,""]
[null,"Intercampus Recharge Credit with UCSC ",null,"Expense","Intercampus Recharge Credit with UCSC"]
[null,null,null,null,""]
[null,"Intercampus Recharge Credit UCSC ",null,"Expense","Intercampus Recharge Credit UCSC"]
[null,null,null,null,""]
["785070","Intercampus Recharges Credit UCSC ",null,"Expense","Intercampus Recharges Credit UCSC"]
[null,null,null,null,""]
["785075","Interlocation Transfer of Funds Credit UCSC ",null,"Expense","Interlocation Transfer of Funds Credit UCSC"]
[null,null,null,null,""]
[null,"Intercampus Recharge Credit with UCSB ",null,"Expense","Intercampus Recharge Credit with UCSB"]
[null,null,null,null,""]
[null,"Intercampus Recharge Credit UCSB ",null,"Expense","Intercampus Recharge Credit UCSB"]
[null,null,null,null,""]
["785080","Intercampus Recharges Credit UCSB ",null,"Expense","Intercampus Recharges Credit UCSB"]
[null,null,null,null,""]
["785085","Interlocation Transfer of Funds Credit UCSB ",null,"Expense","Interlocation Transfer of Funds Credit UCSB"]
[null,null,null,null,""]
[null,"Intercampus Recharge Credit with UCI ",null,"Expense","Intercampus Recharge Credit with UCI"]
[null,null,null,null,""]
[null,"Intercampus Recharge Credit UCI ",null,"Expense","Intercampus Recharge Credit UCI"]
[null,null,null,null,""]
["785090","Intercampus Recharges Credit UCI ",null,"Expense","Intercampus Recharges Credit UCI"]
[null,null,null,null,""]
["785095","Interlocation Transfer of Funds Credit UCI ",null,"Expense","Interlocation Transfer of Funds Credit UCI"]
[null,null,null,null,""]
[null,"Intercampus Recharge Credit with UCM ",null,"Expense","Intercampus Recharge Credit with UCM"]
[null,null,null,null,""]
[null,"Intercampus Recharge Credit UCM ",null,"Expense","Intercampus Recharge Credit UCM"]
[null,null,null,null,""]
["785100","Intercampus Recharges Credit UCM ",null,"Expense","Intercampus Recharges Credit UCM"]
[null,null,null,null,""]
["785105","Interlocation Transfer of Funds Credit UCM ",null,"Expense","Interlocation Transfer of Funds Credit UCM"]
[null,null,null,null,""]
[null,"Intercampus Recharge Credit with UCOP ",null,"Expense","Intercampus Recharge Credit with UCOP"]
[null,null,null,null,""]
[null,"Intercampus Recharge Credit UCOP ",null,"Expense","Intercampus Recharge Credit UCOP"]
[null,null,null,null,""]
["785110","Intercampus Recharges Credit UCOP ",null,"Expense","Intercampus Recharges Credit UCOP"]
[null,null,null,null,""]
["785115","Interlocation Transfer of Funds Credit UCOP ",null,"Expense","Interlocation Transfer of Funds Credit UCOP"]
[null,null,null,null,""]
[null,"Intercampus Recharge Credit with ANR ",null,"Expense","Intercampus Recharge Credit with ANR"]
[null,null,null,null,""]
[null,"Intercampus Recharge Credit ANR ",null,"Expense","Intercampus Recharge Credit ANR"]
[null,null,null,null,""]
["785120","Intercampus Recharges Credit ANR ",null,"Expense","Intercampus Recharges Credit ANR"]
[null,null,null,null,""]
["785125","Interlocation Transfer of Funds Credit ANR ",null,"Expense","Interlocation Transfer of Funds Credit ANR"]
[null,null,null,null,""]

{"sheet":"Structure mapping","index":5,"n_rows":38765,"n_cols":43,"rows_kept":2250,"cut":true,"hidden":true,"merged":[[1,0,1,1],[1,2,1,3],[2,0,2,1],[2,2,2,3],[3,0,3,1],[3,2,3,3],[19,0,19,1],[19,2,19,3],[20,0,20,1],[20,2,20,3],[21,0,21,1],[21,2,21,3],[16,0,16,1],[16,2,16,3],[17,0,17,1],[17,2,17,3],[18,0,18,1],[18,2,18,3],[13,0,13,1],[13,2,13,3],[14,0,14,1],[14,2,14,3],[15,0,15,1],[15,2,15,3],[10,0,10,1],[10,2,10,3],[11,0,11,1],[11,2,11,3],[12,0,12,1],[12,2,12,3],[7,0,7,1],[7,2,7,3],[8,0,8,1],[8,2,8,3],[9,0,9,1],[9,2,9,3],[4,0,4,1],[4,2,4,3],[5,0,5,1],[5,2,5,3],[6,0,6,1],[6,2,6,3],[37,0,37,1],[37,2,37,3],[38,0,38,1],[38,2,38,3],[39,0,39,1],[39,2,39,3],[34,0,34,1],[34,2,34,3],[35,0,35,1],[35,2,35,3],[36,0,36,1],[36,2,36,3],[31,0,31,1],[31,2,31,3],[32,0,32,1],[32,2,32,3],[33,0,33,1],[33,2,33,3],[28,0,28,1],[28,2,28,3],[29,0,29,1],[29,2,29,3],[30,0,30,1],[30,2,30,3],[25,0,25,1],[25,2,25,3],[26,0,26,1],[26,2,26,3],[27,0,27,1],[27,2,27,3],[22,0,22,1],[22,2,22,3],[23,0,23,1],[23,2,23,3],[24,0,24,1],[24,2,24,3],[55,0,55,1],[55,2,55,3],[56,0,56,1],[56,2,56,3],[57,0,57,1],[57,2,57,3],[52,0,52,1],[52,2,52,3],[53,0,53,1],[53,2,53,3],[54,0,54,1],[54,2,54,3],[49,0,49,1],[49,2,49,3],[50,0,50,1],[50,2,50,3],[51,0,51,1],[51,2,51,3],[46,0,46,1],[46,2,46,3],[47,0,47,1],[47,2,47,3],[48,0,48,1],[48,2,48,3],[43,0,43,1],[43,2,43,3],[44,0,44,1],[44,2,44,3],[45,0,45,1],[45,2,45,3],[40,0,40,1],[40,2,40,3],[41,0,41,1],[41,2,41,3],[42,0,42,1],[42,2,42,3],[73,0,73,1],[73,2,73,3],[74,0,74,1],[74,2,74,3],[75,0,75,1],[75,2,75,3],[70,0,70,1],[70,2,70,3],[71,0,71,1],[71,2,71,3],[72,0,72,1],[72,2,72,3],[67,0,67,1],[67,2,67,3],[68,0,68,1],[68,2,68,3],[69,0,69,1],[69,2,69,3],[64,0,64,1],[64,2,64,3],[65,0,65,1],[65,2,65,3],[66,0,66,1],[66,2,66,3],[61,0,61,1],[61,2,61,3],[62,0,62,1],[62,2,62,3],[63,0,63,1],[63,2,63,3],[58,0,58,1],[58,2,58,3],[59,0,59,1],[59,2,59,3],[60,0,60,1],[60,2,60,3],[91,0,91,1],[91,2,91,3],[92,0,92,1],[92,2,92,3],[93,0,93,1],[93,2,93,3],[88,0,88,1],[88,2,88,3],[89,0,89,1],[89,2,89,3],[90,0,90,1],[90,2,90,3],[85,0,85,1],[85,2,85,3],[86,0,86,1],[86,2,86,3],[87,0,87,1],[87,2,87,3],[82,0,82,1],[82,2,82,3],[83,0,83,1],[83,2,83,3],[84,0,84,1],[84,2,84,3],[79,0,79,1],[79,2,79,3],[80,0,80,1],[80,2,80,3],[81,0,81,1],[81,2,81,3],[76,0,76,1],[76,2,76,3],[77,0,77,1],[77,2,77,3],[78,0,78,1],[78,2,78,3],[109,0,109,1],[109,2,109,3],[110,0,110,1],[110,2,110,3],[111,0,111,1],[111,2,111,3],[106,0,106,1],[106,2,106,3],[107,0,107,1],[107,2,107,3],[108,0,108,1],[108,2,108,3],[103,0,103,1],[103,2,103,3],[104,0,104,1],[104,2,104,3],[105,0,105,1],[105,2,105,3],[100,0,100,1],[100,2,100,3],[101,0,101,1],[101,2,101,3],[102,0,102,1],[102,2,102,3],[97,0,97,1],[97,2,97,3],[98,0,98,1],[98,2,98,3],[99,0,99,1],[99,2,99,3],[94,0,94,1],[94,2,94,3],[95,0,95,1],[95,2,95,3],[96,0,96,1],[96,2,96,3],[127,0,127,1],[127,2,127,3],[128,0,128,1],[128,2,128,3],[129,0,129,1],[129,2,129,3],[124,0,124,1],[124,2,124,3],[125,0,125,1],[125,2,125,3],[126,0,126,1],[126,2,126,3],[121,0,121,1],[121,2,121,3],[122,0,122,1],[122,2,122,3],[123,0,123,1],[123,2,123,3],[118,0,118,1],[118,2,118,3],[119,0,119,1],[119,2,119,3],[120,0,120,1],[120,2,120,3],[115,0,115,1],[115,2,115,3],[116,0,116,1],[116,2,116,3],[117,0,117,1],[117,2,117,3],[112,0,112,1],[112,2,112,3],[113,0,113,1],[113,2,113,3],[114,0,114,1],[114,2,114,3],[145,0,145,1],[145,2,145,3],[146,0,146,1],[146,2,146,3],[147,0,147,1],[147,2,147,3],[142,0,142,1],[142,2,142,3],[143,0,143,1],[143,2,143,3],[144,0,144,1],[144,2,144,3],[139,0,139,1],[139,2,139,3],[140,0,140,1],[140,2,140,3],[141,0,141,1],[141,2,141,3],[136,0,136,1],[136,2,136,3],[137,0,137,1],[137,2,137,3],[138,0,138,1],[138,2,138,3],[133,0,133,1],[133,2,133,3],[134,0,134,1],[134,2,134,3],[135,0,135,1],[135,2,135,3],[130,0,130,1],[130,2,130,3],[131,0,131,1],[131,2,131,3],[132,0,132,1],[132,2,132,3],[163,0,163,1],[163,2,163,3],[164,0,164,1],[164,2,164,3],[165,0,165,1],[165,2,165,3],[160,0,160,1],[160,2,160,3],[161,0,161,1],[161,2,161,3],[162,0,162,1],[162,2,162,3],[157,0,157,1],[157,2,157,3],[158,0,158,1],[158,2,158,3],[159,0,159,1],[159,2,159,3],[154,0,154,1],[154,2,154,3],[155,0,155,1],[155,2,155,3],[156,0,156,1],[156,2,156,3],[151,0,151,1],[151,2,151,3],[152,0,152,1],[152,2,152,3],[153,0,153,1],[153,2,153,3],[148,0,148,1],[148,2,148,3],[149,0,149,1],[149,2,149,3],[150,0,150,1],[150,2,150,3],[181,0,181,1],[181,2,181,3],[182,0,182,1],[182,2,182,3],[183,0,183,1],[183,2,183,3],[178,0,178,1],[178,2,178,3],[179,0,179,1],[179,2,179,3],[180,0,180,1],[180,2,180,3],[175,0,175,1],[175,2,175,3],[176,0,176,1],[176,2,176,3],[177,0,177,1],[177,2,177,3],[172,0,172,1],[172,2,172,3],[173,0,173,1],[173,2,173,3],[174,0,174,1],[174,2,174,3],[169,0,169,1],[169,2,169,3],[170,0,170,1],[170,2,170,3],[171,0,171,1],[171,2,171,3],[166,0,166,1],[166,2,166,3],[167,0,167,1],[167,2,167,3],[168,0,168,1],[168,2,168,3],[199,0,199,1],[199,2,199,3],[200,0,200,1],[200,2,200,3],[201,0,201,1],[201,2,201,3],[196,0,196,1],[196,2,196,3],[197,0,197,1],[197,2,197,3],[198,0,198,1],[198,2,198,3],[193,0,193,1],[193,2,193,3],[194,0,194,1],[194,2,194,3],[195,0,195,1],[195,2,195,3],[190,0,190,1],[190,2,190,3],[191,0,191,1],[191,2,191,3],[192,0,192,1],[192,2,192,3],[187,0,187,1],[187,2,187,3],[188,0,188,1],[188,2,188,3],[189,0,189,1],[189,2,189,3],[184,0,184,1],[184,2,184,3],[185,0,185,1],[185,2,185,3],[186,0,186,1],[186,2,186,3],[217,0,217,1],[217,2,217,3],[218,0,218,1],[218,2,218,3],[219,0,219,1],[219,2,219,3],[214,0,214,1],[214,2,214,3],[215,0,215,1],[215,2,215,3],[216,0,216,1],[216,2,216,3],[211,0,211,1],[211,2,211,3],[212,0,212,1],[212,2,212,3],[213,0,213,1],[213,2,213,3],[208,0,208,1],[208,2,208,3],[209,0,209,1],[209,2,209,3],[210,0,210,1],[210,2,210,3],[205,0,205,1],[205,2,205,3],[206,0,206,1],[206,2,206,3],[207,0,207,1],[207,2,207,3],[202,0,202,1],[202,2,202,3],[203,0,203,1],[203,2,203,3],[204,0,204,1],[204,2,204,3],[235,0,235,1],[235,2,235,3],[236,0,236,1],[236,2,236,3],[237,0,237,1],[237,2,237,3],[232,0,232,1],[232,2,232,3],[233,0,233,1],[233,2,233,3],[234,0,234,1],[234,2,234,3],[229,0,229,1],[229,2,229,3],[230,0,230,1],[230,2,230,3],[231,0,231,1],[231,2,231,3],[226,0,226,1],[226,2,226,3],[227,0,227,1],[227,2,227,3],[228,0,228,1],[228,2,228,3],[223,0,223,1],[223,2,223,3],[224,0,224,1],[224,2,224,3],[225,0,225,1],[225,2,225,3],[220,0,220,1],[220,2,220,3],[221,0,221,1],[221,2,221,3],[222,0,222,1],[222,2,222,3],[253,0,253,1],[253,2,253,3],[254,0,254,1],[254,2,254,3],[255,0,255,1],[255,2,255,3],[250,0,250,1],[250,2,250,3],[251,0,251,1],[251,2,251,3],[252,0,252,1],[252,2,252,3],[247,0,247,1],[247,2,247,3],[248,0,248,1],[248,2,248,3],[249,0,249,1],[249,2,249,3],[244,0,244,1],[244,2,244,3],[245,0,245,1],[245,2,245,3],[246,0,246,1],[246,2,246,3],[241,0,241,1],[241,2,241,3],[242,0,242,1],[242,2,242,3],[243,0,243,1],[243,2,243,3],[238,0,238,1],[238,2,238,3],[239,0,239,1],[239,2,239,3],[240,0,240,1],[240,2,240,3],[271,0,271,1],[271,2,271,3],[272,0,272,1],[272,2,272,3],[273,0,273,1],[273,2,273,3],[268,0,268,1],[268,2,268,3],[269,0,269,1],[269,2,269,3],[270,0,270,1],[270,2,270,3],[265,0,265,1],[265,2,265,3],[266,0,266,1],[266,2,266,3],[267,0,267,1],[267,2,267,3],[262,0,262,1],[262,2,262,3],[263,0,263,1],[263,2,263,3],[264,0,264,1],[264,2,264,3],[259,0,259,1],[259,2,259,3],[260,0,260,1],[260,2,260,3],[261,0,261,1],[261,2,261,3],[256,0,256,1],[256,2,256,3],[257,0,257,1],[257,2,257,3],[258,0,258,1],[258,2,258,3],[289,0,289,1],[289,2,289,3],[290,0,290,1],[290,2,290,3],[291,0,291,1],[291,2,291,3],[286,0,286,1],[286,2,286,3],[287,0,287,1],[287,2,287,3],[288,0,288,1],[288,2,288,3],[283,0,283,1],[283,2,283,3],[284,0,284,1],[284,2,284,3],[285,0,285,1],[285,2,285,3],[280,0,280,1],[280,2,280,3],[281,0,281,1],[281,2,281,3],[282,0,282,1],[282,2,282,3],[277,0,277,1],[277,2,277,3],[278,0,278,1],[278,2,278,3],[279,0,279,1],[279,2,279,3],[274,0,274,1],[274,2,274,3],[275,0,275,1],[275,2,275,3],[276,0,276,1],[276,2,276,3],[307,0,307,1],[307,2,307,3],[308,0,308,1],[308,2,308,3],[309,0,309,1],[309,2,309,3],[304,0,304,1],[304,2,304,3],[305,0,305,1],[305,2,305,3],[306,0,306,1],[306,2,306,3],[301,0,301,1],[301,2,301,3],[302,0,302,1],[302,2,302,3],[303,0,303,1],[303,2,303,3],[298,0,298,1],[298,2,298,3],[299,0,299,1],[299,2,299,3],[300,0,300,1],[300,2,300,3],[295,0,295,1],[295,2,295,3],[296,0,296,1],[296,2,296,3],[297,0,297,1],[297,2,297,3],[292,0,292,1],[292,2,292,3],[293,0,293,1],[293,2,293,3],[294,0,294,1],[294,2,294,3],[325,0,325,1],[325,2,325,3],[326,0,326,1],[326,2,326,3],[327,0,327,1],[327,2,327,3],[322,0,322,1],[322,2,322,3],[323,0,323,1],[323,2,323,3],[324,0,324,1],[324,2,324,3],[319,0,319,1],[319,2,319,3],[320,0,320,1],[320,2,320,3],[321,0,321,1],[321,2,321,3],[316,0,316,1],[316,2,316,3],[317,0,317,1],[317,2,317,3],[318,0,318,1],[318,2,318,3],[313,0,313,1],[313,2,313,3],[314,0,314,1],[314,2,314,3],[315,0,315,1],[315,2,315,3],[310,0,310,1],[310,2,310,3],[311,0,311,1],[311,2,311,3],[312,0,312,1],[312,2,312,3],[343,0,343,1],[343,2,343,3],[344,0,344,1],[344,2,344,3],[345,0,345,1],[345,2,345,3],[340,0,340,1],[340,2,340,3],[341,0,341,1],[341,2,341,3],[342,0,342,1],[342,2,342,3],[337,0,337,1],[337,2,337,3],[338,0,338,1],[338,2,338,3],[339,0,339,1],[339,2,339,3],[334,0,334,1],[334,2,334,3],[335,0,335,1],[335,2,335,3],[336,0,336,1],[336,2,336,3],[331,0,331,1],[331,2,331,3],[332,0,332,1],[332,2,332,3],[333,0,333,1],[333,2,333,3],[328,0,328,1],[328,2,328,3],[329,0,329,1],[329,2,329,3],[330,0,330,1],[330,2,330,3],[361,0,361,1],[361,2,361,3],[362,0,362,1],[362,2,362,3],[363,0,363,1],[363,2,363,3],[358,0,358,1],[358,2,358,3],[359,0,359,1],[359,2,359,3],[360,0,360,1],[360,2,360,3],[355,0,355,1],[355,2,355,3],[356,0,356,1],[356,2,356,3],[357,0,357,1],[357,2,357,3],[352,0,352,1],[352,2,352,3],[353,0,353,1],[353,2,353,3],[354,0,354,1],[354,2,354,3],[349,0,349,1],[349,2,349,3],[350,0,350,1],[350,2,350,3],[351,0,351,1],[351,2,351,3],[346,0,346,1],[346,2,346,3],[347,0,347,1],[347,2,347,3],[348,0,348,1],[348,2,348,3],[379,0,379,1],[379,2,379,3],[380,0,380,1],[380,2,380,3],[381,0,381,1],[381,2,381,3],[376,0,376,1],[376,2,376,3],[377,0,377,1],[377,2,377,3],[378,0,378,1],[378,2,378,3],[373,0,373,1],[373,2,373,3],[374,0,374,1],[374,2,374,3],[375,0,375,1],[375,2,375,3],[370,0,370,1],[370,2,370,3],[371,0,371,1],[371,2,371,3],[372,0,372,1],[372,2,372,3],[367,0,367,1],[367,2,367,3],[368,0,368,1],[368,2,368,3],[369,0,369,1],[369,2,369,3],[364,0,364,1],[364,2,364,3],[365,0,365,1],[365,2,365,3],[366,0,366,1],[366,2,366,3],[397,0,397,1],[397,2,397,3],[398,0,398,1],[398,2,398,3],[399,0,399,1],[399,2,399,3],[394,0,394,1],[394,2,394,3],[395,0,395,1],[395,2,395,3],[396,0,396,1],[396,2,396,3],[391,0,391,1],[391,2,391,3],[392,0,392,1],[392,2,392,3],[393,0,393,1],[393,2,393,3],[388,0,388,1],[388,2,388,3],[389,0,389,1],[389,2,389,3],[390,0,390,1],[390,2,390,3],[385,0,385,1],[385,2,385,3],[386,0,386,1],[386,2,386,3],[387,0,387,1],[387,2,387,3],[382,0,382,1],[382,2,382,3],[383,0,383,1],[383,2,383,3],[384,0,384,1],[384,2,384,3],[416,0,416,1],[416,2,416,3],[417,0,417,1],[417,2,417,3],[412,0,412,1],[412,2,412,3],[413,0,413,1],[413,2,413,3],[414,0,414,1],[414,2,414,3],[409,0,409,1],[409,2,409,3],[410,0,410,1],[410,2,410,3],[411,0,411,1],[411,2,411,3],[406,0,406,1],[406,2,406,3],[407,0,407,1],[407,2,407,3],[408,0,408,1],[408,2,408,3],[403,0,403,1],[403,2,403,3],[404,0,404,1],[404,2,404,3],[405,0,405,1],[405,2,405,3],[400,0,400,1],[400,2,400,3],[401,0,401,1],[401,2,401,3],[402,0,402,1],[402,2,402,3],[12,5,12,6],[12,7,12,8],[13,5,13,6],[13,7,13,8],[14,5,14,6],[14,7,14,8],[9,5,9,6],[9,7,9,8],[10,5,10,6],[10,7,10,8],[11,5,11,6],[11,7,11,8],[6,5,6,6],[6,7,6,8],[7,5,7,6],[7,7,7,8],[8,5,8,6],[8,7,8,8],[3,5,3,6],[3,7,3,8],[4,5,4,6],[4,7,4,8],[5,5,5,6],[5,7,5,8],[433,0,433,1],[433,2,433,3],[0,0,0,1],[0,2,0,3],[1,5,1,6],[1,7,1,8],[2,5,2,6],[2,7,2,8],[430,0,430,1],[430,2,430,3],[431,0,431,1],[431,2,431,3],[432,0,432,1],[432,2,432,3],[427,0,427,1],[427,2,427,3],[428,0,428,1],[428,2,428,3],[429,0,429,1],[429,2,429,3],[424,0,424,1],[424,2,424,3],[425,0,425,1],[425,2,425,3],[426,0,426,1],[426,2,426,3],[421,0,421,1],[421,2,421,3],[422,0,422,1],[422,2,422,3],[423,0,423,1],[423,2,423,3],[418,0,418,1],[418,2,418,3],[419,0,419,1],[419,2,419,3],[420,0,420,1],[420,2,420,3],[415,0,415,1],[415,2,415,3],[30,5,30,6],[30,7,30,8],[31,5,31,6],[31,7,31,8],[32,5,32,6],[32,7,32,8],[27,5,27,6],[27,7,27,8],[28,5,28,6],[28,7,28,8],[29,5,29,6],[29,7,29,8],[24,5,24,6],[24,7,24,8],[25,5,25,6],[25,7,25,8],[26,5,26,6],[26,7,26,8],[21,5,21,6],[21,7,21,8],[22,5,22,6],[22,7,22,8],[23,5,23,6],[23,7,23,8],[18,5,18,6],[18,7,18,8],[19,5,19,6],[19,7,19,8],[20,5,20,6],[20,7,20,8],[15,5,15,6],[15,7,15,8],[16,5,16,6],[16,7,16,8],[17,5,17,6],[17,7,17,8],[48,5,48,6],[48,7,48,8],[49,5,49,6],[49,7,49,8],[50,5,50,6],[50,7,50,8],[45,5,45,6],[45,7,45,8],[46,5,46,6],[46,7,46,8],[47,5,47,6],[47,7,47,8],[42,5,42,6],[42,7,42,8],[43,5,43,6],[43,7,43,8],[44,5,44,6],[44,7,44,8],[39,5,39,6],[39,7,39,8],[40,5,40,6],[40,7,40,8],[41,5,41,6],[41,7,41,8],[36,5,36,6],[36,7,36,8],[37,5,37,6],[37,7,37,8],[38,5,38,6],[38,7,38,8],[33,5,33,6],[33,7,33,8],[34,5,34,6],[34,7,34,8],[35,5,35,6],[35,7,35,8],[66,5,66,6],[66,7,66,8],[67,5,67,6],[67,7,67,8],[68,5,68,6],[68,7,68,8],[63,5,63,6],[63,7,63,8],[64,5,64,6],[64,7,64,8],[65,5,65,6],[65,7,65,8],[60,5,60,6],[60,7,60,8],[61,5,61,6],[61,7,61,8],[62,5,62,6],[62,7,62,8],[57,5,57,6],[57,7,57,8],[58,5,58,6],[58,7,58,8],[59,5,59,6],[59,7,59,8],[54,5,54,6],[54,7,54,8],[55,5,55,6],[55,7,55,8],[56,5,56,6],[56,7,56,8],[51,5,51,6],[51,7,51,8]],"bounds":{"rows_first":1000,"rows_last":250,"rows_between":1000,"halvings":1},"merged_total":127978,"flags":["merged_cut"]}
["Child",null,"Description",null,null,"Child",null,"Description",null,null,"Child",null,null,null,null,null,"Description",null,null,null,null,null,null,"Child",null,"Description",null,null,"Child",null,"Description",null,null,"Child",null,"Description",null,null,"Child",null,"Description"]
[null,null,"ANR ",null,"ANR",null,null,"Unrestricted A ",null,"Unrestricted A",null,null,null,null,null,null,"Davis ",null,null,null,null,null,null,null,null,"Purpose Categories ",null,"Purpose Categories",null,null,"All Programs ",null,"All Programs",null,null,"All Projects ",null,"All Projects",null,null,"All Activities ",null,"All Activities"]
[null,null,"Vice President Office ",null,"Vice President Office",null,null,"Unrestricted B ",null,"Unrestricted B",null,null,null,null,null,null,"UC Davis Campus B ",null,null,null,null,null,null,null,null,"Academic Support B ",null,"Academic Support B",null,null,"Default Program ",null,"Default Program",null,null,"General Ledger Only Projects ",null,"General Ledger Only Projects",null,null,"Default Activity ",null,"Default Activity"]
[null,null,"Vice President Immediate Office D ",null,"Vice President Immediate Office D",null,null,"Unrestricted Gifts ",null,"Unrestricted Gifts",null,null,null,null,null,null,"UC Davis Campus Rollup ",null,null,null,null,null,null,"43",null,"Academic Support ",null,"Academic Support",null,null,"Default Program Value C ",null,"Default Program Value C",null,null,"Default GL Only Project ",null,"Default GL Only Project","000000",null,"Default Activity Value ",null,"Default Activity Value"]
[null,null,"Vice President Immediate Office E ",null,"Vice President Immediate Office E",null,null,"Unrestricted Expendable Gifts Foundation ",null,"Unrestricted Expendable Gifts Foundation","3310",null,null,null,null,null,"UC ANR at UCD",null,null,null,null,null,null,"60",null,"Libraries ",null,"Libraries","000",null,"Default Program Value ",null,"Default Program Value","0000000000",null,"Default Project ",null,"Default Project",null,null,"Campus Events ",null,"Campus Events"]
[null,null,"Vice President Immediate Office F ",null,"Vice President Immediate Office F","A0001",null,"PRN Foundation Operations 011011 ",null,"PRN Foundation Operations 011011",null,null,null,null,null,null,null,null,null,null,null,null,null,null,null,"Instruction C ",null,"Instruction C",null,null,"Natural Reserve System ",null,"Natural Reserve System",null,null,"Scientific Recharges ",null,"Scientific Recharges","100000",null,"Fall Welcome ",null,"Fall Welcome"]
["9911111",null,"Vice President Immediate Office ",null,"Vice President Immediate Office","A0002",null,"PRN Chancellor Unrestricted Fund 322803 49503 ",null,"PRN Chancellor Unrestricted Fund 322803 49503",null,null,null,null,null,null,null,null,null,null,null,null,null,"40",null,"Instruction Dept Research ",null,"Instruction Dept Research",null,null,"Natural Reserve System NRS ",null,"Natural Reserve System NRS","AR00000001",null,"GENOME COVID Testing ",null,"GENOME COVID Testing","100001",null,"Homecoming ",null,"Homecoming"]
["9911112",null,"Program Support Unit ",null,"Program Support Unit","A0003",null,"PRN UCDF Matching Fund for Student Support 322818 ",null,"PRN UCDF Matching Fund for Student Support 322818",null,null,null,null,null,null,null,null,null,null,null,null,null,"41",null,"Summer Session ",null,"Summer Session","001",null,"Bodega Marine Reserve ",null,"Bodega Marine Reserve","AR00000002",null,"TERC Personnel Hourly Rates ",null,"TERC Personnel Hourly Rates","100002",null,"Commencement ",null,"Commencement"]
["9911113",null,"VP Contingency Funds ",null,"VP Contingency Funds","A0004",null,"PRN Suspense Intent Unclear 901001 ",null,"PRN Suspense Intent Unclear 901001",null,null,null,null,null,null,null,null,null,null,null,null,null,"61",null,"University Extension ",null,"University Extension","002",null,"Jepson Prairier Reserve ",null,"Jepson Prairier Reserve","AR00000003",null,"Wheelhouse Center Project Rates ",null,"Wheelhouse Center Project Rates","100003",null,"Picnic Day ",null,"Picnic Day"]
[null,null,"Chief Innovation Office D ",null,"Chief Innovation Office D","A0005",null,"PRN UCDF Endowment Clearing Fund 199999 ",null,"PRN UCDF Endowment Clearing Fund 199999",null,null,null,null,null,null,null,null,null,null,null,null,null,null,null,"Organized Research D ",null,"Organized Research D","003",null,"Lassen Field Station ",null,"Lassen Field Station","AR00000004",null,"BETA Lab Rate ",null,"BETA Lab Rate","100004",null,"Thank Goodness for Staff ",null,"Thank Goodness for Staff"]
[null,null,"Chief Innovation Office E ",null,"Chief Innovation Office E","A0006",null,"PRN GEP Administration Fee 011112 ",null,"PRN GEP Administration Fee 011112",null,null,null,null,null,null,null,null,null,null,null,null,null,"44",null,"Research ",null,"Research","004",null,"McLaughlin Natural Reserve ",null,"McLaughlin Natural Reserve","AR00000005",null,"Transformative Justice in Education Rate ",null,"Transformative Justice in Education Rate","100005",null,"Retreats ",null,"Retreats"]
[null,null,"Chief Innovation Office F ",null,"Chief Innovation Office F",null,null,"Unrestricted Expendable Gifts Income  Foundation ",null,"Unrestricted Expendable Gifts Income Foundation",null,null,null,null,null,null,null,null,null,null,null,null,null,"45",null,"AES Research ",null,"AES Research","005",null,"Quail Ridge Reserve ",null,"Quail Ridge Reserve","AR00000006",null,"Center for Community Sciences Youth Projects Rate ",null,"Center for Community Sciences Youth Projects Rate","100006",null,"Cultural Events ",null,"Cultural Events"]
["9912111",null,"Chief Innovation Office ",null,"Chief Innovation Office","L0001",null,"IN Foundation Operations 011011 ",null,"IN Foundation Operations 011011",null,null,null,null,null,null,null,null,null,null,null,null,null,null,null,"Teaching Hospitals B ",null,"Teaching Hospitals B","006",null,"Stebbins Cold Canyon Reserve ",null,"Stebbins Cold Canyon Reserve","AR00000007",null,"Model Based Biology Membership ",null,"Model Based Biology Membership","100007",null,"Student Events ",null,"Student Events"]
[null,null,"Development Services D ",null,"Development Services D","L0002",null,"IN Chancellor Unrestricted Fund 322803 49503 ",null,"IN Chancellor Unrestricted Fund 322803 49503",null,null,null,null,null,null,null,null,null,null,null,null,null,"42",null,"Teaching Hospitals ",null,"Teaching Hospitals","007",null,"Other Natural Reserve System ",null,"Other Natural Reserve System","AR00000008",null,"SASP Sacramento Area Science Project Book Rate ",null,"SASP Sacramento Area Science Project Book Rate","100008",null,"Deans Events ",null,"Deans Events"]
[null,null,"Development Services E ",null,"Development Services E","L0003",null,"IN UCDF Matching Fund for Student Support 322818 ",null,"IN UCDF Matching Fund for Student Support 322818",null,null,null,null,null,null,null,null,null,null,null,null,null,null,null,"Public Service B ",null,"Public Service B",null,null,"California Institute for Science and Innovation Cal ISI B ",null,"California Institute for Science and Innovation Cal ISI B","AR00000009",null,"SASP Sacramento Area Science Project Service Rate ",null,"SASP Sacramento Area Science Project Service Rate","100009",null,"College Wide Events ",null,"College Wide Events"]
[null,null,"Development Services F ",null,"Development Services F","L0004",null,"IN Suspense Intent Unclear 901001 ",null,"IN Suspense Intent Unclear 901001",null,null,null,null,null,null,null,null,null,null,null,null,null,"62",null,"Public Service ",null,"Public Service",null,null,"California Institute for Science and Innovation Cal ISI C ",null,"California Institute for Science and Innovation Cal ISI C","AR00000010",null,"Resourcing Excellence in Education REEd Center ",null,"Resourcing Excellence in Education REEd Center","100010",null,"Orientation ",null,"Orientation"]
["9913111",null,"Development Services ",null,"Development Services","L0005",null,"IN GEP Administration Fee 011112 ",null,"IN GEP Administration Fee 011112",null,null,null,null,null,null,null,null,null,null,null,null,null,null,null,"Operations Maintenance of Plant B ",null,"Operations Maintenance of Plant B","111",null,"California Inst for Quantitative Biosciences Cal ISI QB3 ",null,"California Inst for Quantitative Biosciences Cal ISI QB3","AR00000011",null,"CISI California Institute for School Improvement Membership Rate ",null,"CISI California Institute for School Improvement Membership Rate","100011",null,"Whole Earth Festival ",null,"Whole Earth Festival"]
["9913112",null,"4 H Foundation ",null,"4 H Foundation","L0006",null,"IN UCDF Endowment Clearing Fund 199999 ",null,"IN UCDF Endowment Clearing Fund 199999",null,null,null,null,null,null,null,null,null,null,null,null,null,"64",null,"Operations Maintenance of Plant ",null,"Operations Maintenance of Plant","112",null,"California Inst for Telecommun and Info Techn CALIT2 ",null,"California Inst for Telecommun and Info Techn CALIT2","AR00000012",null,"California Collaborative for Educational ",null,"California Collaborative for Educational","100012",null,"Colloquium Expenses ",null,"Colloquium Expenses"]
[null,null,"Government and Community Services D ",null,"Government and Community Services D",null,null,"Unrestricted Regents Gifts ",null,"Unrestricted Regents Gifts",null,null,null,null,null,null,null,null,null,null,null,null,null,null,null,"Depreciation B ",null,"Depreciation B","113",null,"California Nanosystems Institute CNSI ",null,"California Nanosystems Institute CNSI","AR00000013",null,"Attendance Works ",null,"Attendance Works","100013",null,"Visiting Artists ",null,"Visiting Artists"]
[null,null,"Government and Community Services E ",null,"Government and Community Services E","M0001",null,"Annual Giving Program Allocations 39800 ",null,"Annual Giving Program Allocations 39800",null,null,null,null,null,null,null,null,null,null,null,null,null,"65",null,"Depreciation ",null,"Depreciation","114",null,"Center for Info Tech Research in the Interest of Society CITRIS ",null,"Center for Info Tech Research in the Interest of Society CITRIS","AR00000014",null,"BME EV Core ",null,"BME EV Core","100014",null,"Sacramento Area Youth Speaks Equity Summit ",null,"Sacramento Area Youth Speaks Equity Summit"]
[null,null,"Government and Community Services F ",null,"Government and Community Services F",null,null,"Unrestricted Endowment Income ",null,"Unrestricted Endowment Income",null,null,null,null,null,null,null,null,null,null,null,null,null,null,null,"Impairment B ",null,"Impairment B",null,null,"Postdoctoral Fellowship Program B ",null,"Postdoctoral Fellowship Program B","AR06001000",null,"CLAS APPLIED MUSIC PROGRAM INCOME ",null,"CLAS APPLIED MUSIC PROGRAM INCOME","100015",null,"Aggie Day First Years Event Expenses ",null,"Aggie Day First Years Event Expenses"]
["9914111",null,"Government and Community Services ",null,"Government and Community Services",null,null,"Unrestricted Endowment Income Regents ",null,"Unrestricted Endowment Income Regents",null,null,null,null,null,null,null,null,null,null,null,null,null,"66",null,"Impairment ",null,"Impairment",null,null,"Postdoctoral Fellowship Programs C ",null,"Postdoctoral Fellowship Programs C","AR06001101",null,"FOUNDATION SEED PROGRAM ",null,"FOUNDATION SEED PROGRAM","100016",null,"Aggie Transfer Student Day ",null,"Aggie Transfer Student Day"]
[null,null,"Assoc VPresident and Office of Provost ",null,"Assoc VPresident and Office of Provost","16851",null,"UC Davis Campus Enhancement Fund ",null,"UC Davis Campus Enhancement Fund",null,null,null,null,null,null,null,null,null,null,null,null,null,null,null,"Student Services B ",null,"Student Services B","120",null,"UC President Postdoctoral Fellowship Program PPFP ",null,"UC President Postdoctoral Fellowship Program PPFP","AR06001301",null,"ENGR OFFCAMPUS INST INCITV PROGRAM ",null,"ENGR OFFCAMPUS INST INCITV PROGRAM","100017",null,"Experience UC Davis First Year Students ",null,"Experience UC Davis First Year Students"]
[null,null,"Assoc VP and Office of Provost D ",null,"Assoc VP and Office of Provost D","34257",null,"Schp Com ChasandCora Ash Fd ",null,"Schp Com ChasandCora Ash Fd",null,null,null,null,null,null,null,null,null,null,null,null,null,"68",null,"Student Services ",null,"Student Services",null,null,"Multi Campus Research Units MRU B ",null,"Multi Campus Research Units MRU B","AR06001601",null,"AVIAN SCIENCE RES SURPLUS PRODUCTS ",null,"AVIAN SCIENCE RES SURPLUS PRODUCTS","100018",null,"Experience UC Davis Transfer Students ",null,"Experience UC Davis Transfer Students"]
[null,null,"Assoc VP and Office of Provost Imm Off E ",null,"Assoc VP and Office of Provost Imm Off E","34363",null,"James Samuel Bock Fund ",null,"James Samuel Bock Fund",null,null,null,null,null,null,null,null,null,null,null,null,null,null,null,"Student Financial Aid B ",null,"Student Financial Aid B",null,null,"Multi Campus Research Units MRU C ",null,"Multi Campus Research Units MRU C","AR06001701",null,"CAES PLANT TESTINGTHERAPYMAINTENANCE ",null,"CAES PLANT TESTINGTHERAPYMAINTENANCE","100019",null,"UC for You ",null,"UC for You"]
[null,null,"Assoc VP and Office of Provost Imm Off F ",null,"Assoc VP and Office of Provost Imm Off F","34447",null,"Ray S E Button Endowment ",null,"Ray S E Button Endowment",null,null,null,null,null,null,null,null,null,null,null,null,null,"78",null,"Student Financial Aid ",null,"Student Financial Aid","171",null,"White Mountain Research Center ",null,"White Mountain Research Center","AR06002101",null,"HUMAN ANATOMY DONATED BODY PROG INC ",null,"HUMAN ANATOMY DONATED BODY PROG INC","100021",null,"DANZ CCC DANZANTES DE ALMA ",null,"DANZ CCC DANZANTES DE ALMA"]
["9921111",null,"Assoc VP and Office of Provost Imm Off ",null,"Assoc VP and Office of Provost Imm Off","35196",null,"Davis Summer Sessions Endowment Fd ",null,"Davis Summer Sessions Endowment Fd",null,null,null,null,null,null,null,null,null,null,null,null,null,null,null,"Institutional Support General Administration B ",null,"Institutional Support General Administration B","173",null,"Institute of Transportation Studies ",null,"Institute of Transportation Studies","AR06002201",null,"CAES VIT OAKVILLE EXPERIMENTAL VINEYARD ",null,"CAES VIT OAKVILLE EXPERIMENTAL VINEYARD","100022",null,"BFWP CCC BLACK FAMILY DAY ",null,"BFWP CCC BLACK FAMILY DAY"]
["9921112",null,"AVP Contingency Fund ",null,"AVP Contingency Fund","35726",null,"Lutie D Goldstein Fd ",null,"Lutie D Goldstein Fd",null,null,null,null,null,null,null,null,null,null,null,null,null,"72",null,"Institutional Support General Administration ",null,"Institutional Support General Administration","175",null,"California Advanced Solar Tech Institute UC Solar ",null,"California Advanced Solar Tech Institute UC Solar","AR06002301",null,"DESTAHOE RESEARCH GROUP WATER CHEM ",null,"DESTAHOE RESEARCH GROUP WATER CHEM","100023",null,"APCW CCC LIGHTS FESTIVAL ",null,"APCW CCC LIGHTS FESTIVAL"]
[null,null,"Academic Personnel and Development E ",null,"Academic Personnel and Development E","36319",null,"Lee L Jacks Fund ",null,"Lee L Jacks Fund",null,null,null,null,null,null,null,null,null,null,null,null,null,null,null,"Auxiliary Enterprises B ",null,"Auxiliary Enterprises B","176",null,"UC Observatories UCO ",null,"UC Observatories UCO","AR06002801",null,"MECH ENGR WIND TUNNEL TESTING INC ",null,"MECH ENGR WIND TUNNEL TESTING INC","100024",null,"LRCD CCC LA GRAN TARDEADA ",null,"LRCD CCC LA GRAN TARDEADA"]
[null,null,"Academic Personnel and Development F ",null,"Academic Personnel and Development F","37061",null,"Miller Ellen W Fund ",null,"Miller Ellen W Fund",null,null,null,null,null,null,null,null,null,null,null,null,null,"76",null,"Auxiliary Enterprises ",null,"Auxiliary Enterprises",null,null,"UCHRI B ",null,"UCHRI B","AR06002901",null,"CENTER FOR AQUATIC BIOLOGY ",null,"CENTER FOR AQUATIC BIOLOGY","100025",null,"POWW CCC POWWOW ",null,"POWW CCC POWWOW"]
["9921211",null,"Vice Provost Academic Personnel and Development ",null,"Vice Provost Academic Personnel and Development","37242",null,"UCDMC Francis W Noel Fund ",null,"UCDMC Francis W Noel Fund",null,null,null,null,null,null,null,null,null,null,null,null,null,null,null,"Department of Energy Laboratories B ",null,"Department of Energy Laboratories B",null,null,"UCHRI C ",null,"UCHRI C","AR06003101",null,"LAWR SOIL SAMPLES DRILLS ",null,"LAWR SOIL SAMPLES DRILLS","100026",null,"Chancellor Achieve Awards for Diversity and Community ",null,"Chancellor Achieve Awards for Diversity and Community"]
["9921212",null,"Academic Assembly Council ",null,"Academic Assembly Council","37658",null,"Presidential Initiatives Fund PIF ",null,"Presidential Initiatives Fund PIF",null,null,null,null,null,null,null,null,null,null,null,null,null,"79",null,"Department of Energy Laboratories ",null,"Department of Energy Laboratories","187",null,"UC Humanities Research Institute UCHRI ",null,"UC Humanities Research Institute UCHRI","AR06003401",null,"CAES CONTAINED RESEARCH FACILITY ",null,"CAES CONTAINED RESEARCH FACILITY","100027",null,"Soaring to New Heights ",null,"Soaring to New Heights"]
[null,null,"UCCE Specialists Non AES Campus based F ",null,"UCCE Specialists Non AES Campus based F","37814",null,"Robinson Fund ",null,"Robinson Fund",null,null,null,null,null,null,null,null,null,null,null,null,null,null,null,"Provisions for Allocations B ",null,"Provisions for Allocations B",null,null,"Global Health Sciences ",null,"Global Health Sciences","AR06003501",null,"FS T PILOT PROCESSING PLANT INCOM ",null,"FS T PILOT PROCESSING PLANT INCOM","100028",null,"HPA High School Program ",null,"HPA High School Program"]
["9921221",null,"UCCE Kearney Ag Center Academics ",null,"UCCE Kearney Ag Center Academics","37966",null,"Academic Senate MID Career Award ",null,"Academic Senate MID Career Award",null,null,null,null,null,null,null,null,null,null,null,null,null,"80",null,"Provisions for Allocations ",null,"Provisions for Allocations",null,null,"Global Health Institute ",null,"Global Health Institute","AR06003601",null,"FPMSMOLECULAR DIAGNOSTIC TECHNOLOGY SVC ",null,"FPMSMOLECULAR DIAGNOSTIC TECHNOLOGY SVC",null,null,"Ticket Sales ",null,"Ticket Sales"]
["9921222",null,"UCCE UC Merced ",null,"UCCE UC Merced","38557",null,"UCDMC Health System End Res Fd ",null,"UCDMC Health System End Res Fd",null,null,null,null,null,null,null,null,null,null,null,null,null,null,null,"Purpose Value Default ",null,"Purpose Value Default","010",null,"UCGHI Education ",null,"UCGHI Education","AR06003801",null,"VEG CROPS STABLE ISOTOPE FACILITY ",null,"VEG CROPS STABLE ISOTOPE FACILITY","100020",null,"HPA PHC Reserve ",null,"HPA PHC Reserve"]
["9921223",null,"UCCE UC Santa Barbara ",null,"UCCE UC Santa Barbara","38558",null,"Uc Davis ChancellorS Endowment ",null,"Uc Davis ChancellorS Endowment",null,null,null,null,null,null,null,null,null,null,null,null,null,"00",null,"Purpose Default ",null,"Purpose Default","011",null,"Global Health Group ",null,"Global Health Group","AR06003901",null,"AG CAMPUS GRAPES BYPRODUCTS ",null,"AG CAMPUS GRAPES BYPRODUCTS","120000",null,"Ticketing Office ",null,"Ticketing Office"]
["9921224",null,"UCCE UC Santa Cruz ",null,"UCCE UC Santa Cruz","38780",null,"Wetmore Trust Fund ",null,"Wetmore Trust Fund",null,null,null,null,null,null,null,null,null,null,null,null,null,null,null,null,null,"","012",null,"Global Health Delivery and Diplomacy ",null,"Global Health Delivery and Diplomacy","AR06004001",null,"VEG CROPS WEED SCHOOL CONFERENCE ",null,"VEG CROPS WEED SCHOOL CONFERENCE","120001",null,"Front of House ",null,"Front of House"]
["9921225",null,"UCCE UC San Francisco ",null,"UCCE UC San Francisco",null,null,"Unrestricted Endowment Income Foundation ",null,"Unrestricted Endowment Income Foundation",null,null,null,null,null,null,null,null,null,null,null,null,null,null,null,null,null,"","013",null,"Global Strategic Information ",null,"Global Strategic Information","AR06004501",null,"POMOLOGYWOLFSKILL ORCHARD SALE OF CROPS ",null,"POMOLOGYWOLFSKILL ORCHARD SALE OF CROPS","120002",null,"Mondavi Subscription Fee ",null,"Mondavi Subscription Fee"]
["9921226",null,"UCCE UC Irvine ",null,"UCCE UC Irvine","B0001",null,"IN Foundation Investments for Operations 011013 ",null,"IN Foundation Investments for Operations 011013",null,null,null,null,null,null,null,null,null,null,null,null,null,null,null,null,null,"","014",null,"Maternal and Newborn Health ",null,"Maternal and Newborn Health","AR06004901",null,"BODEGA RV MUSSEL POINT BOAT RENTAL ",null,"BODEGA RV MUSSEL POINT BOAT RENTAL","120003",null,"Mondavi Single Ticket Fee ",null,"Mondavi Single Ticket Fee"]
["9921227",null,"UCCE UC Los Angeles ",null,"UCCE UC Los Angeles","B0002",null,"IN Development Fund Board Designated 011423 ",null,"IN Development Fund Board Designated 011423",null,null,null,null,null,null,null,null,null,null,null,null,null,null,null,null,null,"","015",null,"AIDS Research Institute ",null,"AIDS Research Institute","AR06005001",null,"RESHBML AQUATIC RESOURCES GROUP SVCS ",null,"RESHBML AQUATIC RESOURCES GROUP SVCS",null,null,"Recruiting ",null,"Recruiting"]
["9921228",null,"UCCE UC San Diego ",null,"UCCE UC San Diego",null,null,"Unrestricted Funds Functioning as Endowment for UCOPandFoundationC ",null,"Unrestricted Funds Functioning as Endowment for UCOPandFoundationC",null,null,null,null,null,null,null,null,null,null,null,null,null,null,null,null,null,"","016",null,"Bixby Center ",null,"Bixby Center","AR06005301",null,"MCB ELECTRONICS SHOP ",null,"MCB ELECTRONICS SHOP","200100",null,"Faculty Recruiting ",null,"Faculty Recruiting"]
[null,null,"Strategic Communication E ",null,"Strategic Communication E",null,null,"Unrestricted FFE Regents Principal ",null,"Unrestricted FFE Regents Principal",null,null,null,null,null,null,null,null,null,null,null,null,null,null,null,null,null,"","017",null,"GHECon ",null,"GHECon","AR06005401",null,"MCB IMAGING FACILITY ",null,"MCB IMAGING FACILITY","200101",null,"Resident Graduate Student Recruiting and Outreach ",null,"Resident Graduate Student Recruiting and Outreach"]
[null,null,"Strategic Communication F ",null,"Strategic Communication F","04184",null,"Earle C Anthony Income Fund ",null,"Earle C Anthony Income Fund",null,null,null,null,null,null,null,null,null,null,null,null,null,null,null,null,null,"",null,null,"Safety Programs ",null,"Safety Programs","AR06005701",null,"EVOL ECOL DNA SEQUENCER INCOME ",null,"EVOL ECOL DNA SEQUENCER INCOME","200102",null,"Executive Recruiting ",null,"Executive Recruiting"]
["9921311",null,"Strategic Communications ",null,"Strategic Communications","04239",null,"A and ES Bowley Plt Sci Cntr End 04239 ",null,"A and ES Bowley Plt Sci Cntr End 04239",null,null,null,null,null,null,null,null,null,null,null,null,null,null,null,null,null,"",null,null,"UCOP Safety Programs ",null,"UCOP Safety Programs","AR06006201",null,"CAES OLIVE OIL TASTE PANEL RATE ",null,"CAES OLIVE OIL TASTE PANEL RATE","200103",null,"Nonresident Graduate Student Recruiting and Outreach ",null,"Nonresident Graduate Student Recruiting and Outreach"]
["9921312",null,"News Info and Outreach ",null,"News Info and Outreach","04544",null,"Thomas Casady Jr Memorial Fund Prin ",null,"Thomas Casady Jr Memorial Fund Prin",null,null,null,null,null,null,null,null,null,null,null,null,null,null,null,null,null,"","050",null,"Be Smart About Safety ",null,"Be Smart About Safety","AR06006401",null,"INTERNATIONAL VISITORS OFFICE ",null,"INTERNATIONAL VISITORS OFFICE","200104",null,"International Graduate Student Recruiting and Outreach ",null,"International Graduate Student Recruiting and Outreach"]
[null,null,"Publications E ",null,"Publications E","04600",null,"Howard W Clark Fund ",null,"Howard W Clark Fund",null,null,null,null,null,null,null,null,null,null,null,null,null,null,null,null,null,"","060",null,"Workers Comp Trust ",null,"Workers Comp Trust","AR06006701",null,"PLANT SCI HERBARIUM ",null,"PLANT SCI HERBARIUM","200105",null,"Graduate Program Travel Recruiting ",null,"Graduate Program Travel Recruiting"]
[null,null,"Publications F ",null,"Publications F","04618",null,"Chia Professional Support 04618 ",null,"Chia Professional Support 04618",null,null,null,null,null,null,null,null,null,null,null,null,null,null,null,null,null,"","070",null,"Wellness Program ",null,"Wellness Program","AR06006801",null,"CAES COMPUTING RESOURCES ",null,"CAES COMPUTING RESOURCES","200350",null,"Student Resident Recruiting ",null,"Student Resident Recruiting"]
["9921411",null,"Publications ",null,"Publications","04624",null,"Center For Animal Alternatives 04624 ",null,"Center For Animal Alternatives 04624",null,null,null,null,null,null,null,null,null,null,null,null,null,null,null,null,null,"",null,null,"Education Abroad ",null,"Education Abroad","AR06007301",null,"NUTR MEYER HALLANIMAL FACILITY SERVICE ",null,"NUTR MEYER HALLANIMAL FACILITY SERVICE","200351",null,"Student Nonresident and International Recruit ",null,"Student Nonresident and International Recruit"]
[null,null,"Program Planning and Evaluation E ",null,"Program Planning and Evaluation E","04746",null,"Cosmos Nobel Centennial Fund 04746 ",null,"Cosmos Nobel Centennial Fund 04746",null,null,null,null,null,null,null,null,null,null,null,null,null,null,null,null,null,"",null,null,"Education Abroad C ",null,"Education Abroad C","AR06008201",null,"ANTHRO MUSEUM CURATION ACCESS INC ",null,"ANTHRO MUSEUM CURATION ACCESS INC","200352",null,"Staff Recruiting ",null,"Staff Recruiting"]
[null,null,"Program Planning and Evaluation F ",null,"Program Planning and Evaluation F","04990",null,"Nuclear Science Fund 04990 ",null,"Nuclear Science Fund 04990",null,null,null,null,null,null,null,null,null,null,null,null,null,null,null,null,null,"","231",null,"UC Education Abroad Program UCEAP ",null,"UC Education Abroad Program UCEAP","AR06008601",null,"SOE CRESS RATEBASED SERVICES ",null,"SOE CRESS RATEBASED SERVICES","200353",null,"Academic Staff Recruiting ",null,"Academic Staff Recruiting"]
["9921511",null,"Program Planning and Evaluation ",null,"Program Planning and Evaluation","04991",null,"Nuclear Science Fund 04991 ",null,"Nuclear Science Fund 04991",null,null,null,null,null,null,null,null,null,null,null,null,null,null,null,null,null,"",null,null,"UC Washington Center ",null,"UC Washington Center","AR06008701",null,"SOE RATEBASED SERVICES ",null,"SOE RATEBASED SERVICES",null,null,"Academic Terms ",null,"Academic Terms"]
[null,null,"Statewide Prog and REC Operations E ",null,"Statewide Prog and REC Operations E","05004",null,"Imrh Artz Family Endowment 05004 ",null,"Imrh Artz Family Endowment 05004",null,null,null,null,null,null,null,null,null,null,null,null,null,null,null,null,null,"",null,null,"UC Washington Center C ",null,"UC Washington Center C","AR06008901",null,"EECS MICRO FABRICATION LAB INCOME ",null,"EECS MICRO FABRICATION LAB INCOME","202209",null,"Fall Semester 2022 ",null,"Fall Semester 2022"]
[null,null,"Statewide Prog and REC Operations F ",null,"Statewide Prog and REC Operations F","05099",null,"Wm H Cowger Inc ",null,"Wm H Cowger Inc",null,null,null,null,null,null,null,null,null,null,null,null,null,null,null,null,null,"","241",null,"UC Washington Center UCDC ",null,"UC Washington Center UCDC","AR06009201",null,"CAMPUS WRITING CENTERJOURNAL INCOM ",null,"CAMPUS WRITING CENTERJOURNAL INCOM","202210",null,"Fall Quarter 2022 ",null,"Fall Quarter 2022"]
["9921611",null,"Statewide Prog and REC Operations ",null,"Statewide Prog and REC Operations","05277",null,"Med Ophth Eye Center Endowed Fund ",null,"Med Ophth Eye Center Endowed Fund",null,null,null,null,null,null,null,null,null,null,null,null,null,null,null,null,null,"",null,null,"UC Center Sacramento ",null,"UC Center Sacramento","AR06009701",null,"CLAS PROG INC SUBJECT MATTER AWARDS ",null,"CLAS PROG INC SUBJECT MATTER AWARDS","202301",null,"Winter Quarter 2023 ",null,"Winter Quarter 2023"]
[null,null,"Vice Provost SPSI E ",null,"Vice Provost SPSI E","05317",null,"General Medicine Division Support ",null,"General Medicine Division Support",null,null,null,null,null,null,null,null,null,null,null,null,null,null,null,null,null,"",null,null,"UC Center Sacramento C ",null,"UC Center Sacramento C","AR06009801",null,"MIND INSTITUTE SERVICES ",null,"MIND INSTITUTE SERVICES","202302",null,"Spring Semester 2023 ",null,"Spring Semester 2023"]
[null,null,"Vice Provost SPSI F ",null,"Vice Provost SPSI F","05329",null,"Natalie Fosse Fund ",null,"Natalie Fosse Fund",null,null,null,null,null,null,null,null,null,null,null,null,null,null,null,null,null,"","251",null,"UC Center Sacramento UCCS ",null,"UC Center Sacramento UCCS","AR06012001",null,"VM SFT SAL PLAN INCOME ",null,"VM SFT SAL PLAN INCOME","202303",null,"Spring Quarter 2023 ",null,"Spring Quarter 2023"]
["9921711",null,"Vice Provost SPSI ",null,"Vice Provost SPSI","05397",null,"Educational Fund ",null,"Educational Fund",null,null,null,null,null,null,null,null,null,null,null,null,null,null,null,null,null,"",null,null,"Agricultural Experimental Station ",null,"Agricultural Experimental Station","AR06013201",null,"CBS GREENHOUSE RECHARGE ",null,"CBS GREENHOUSE RECHARGE","202304",null,"Summer Semester 2023 ",null,"Summer Semester 2023"]
[null,null,"Statewide Operations E ",null,"Statewide Operations E","05412",null,"Endowment For Cooperatives 05412 ",null,"Endowment For Cooperatives 05412",null,null,null,null,null,null,null,null,null,null,null,null,null,null,null,null,null,"",null,null,"Agricultural Experimental Station AES ",null,"Agricultural Experimental Station AES","AR06013501",null,"CBS EVE DROSOPHILA MEDIUM FACILITY ",null,"CBS EVE DROSOPHILA MEDIUM FACILITY","202305",null,"Summer Session 1 2023 ",null,"Summer Session 1 2023"]
[null,null,"Statewide Operations F ",null,"Statewide Operations F","05416",null,"Equine Research Lab Endowment ",null,"Equine Research Lab Endowment",null,null,null,null,null,null,null,null,null,null,null,null,null,null,null,null,null,"","261",null,"AES Agricultural Experimental Station ",null,"AES Agricultural Experimental Station","AR06013601",null,"CBS GENOME DNA ANALYSIS ",null,"CBS GENOME DNA ANALYSIS","202306",null,"Summer Quarter Special Summer Session 2023 ",null,"Summer Quarter Special Summer Session 2023"]
["9921811",null,"Statewide Operations ",null,"Statewide Operations","05545",null,"Inst Internatl Studies Ford Nw ",null,"Inst Internatl Studies Ford Nw",null,null,null,null,null,null,null,null,null,null,null,null,null,null,null,null,null,"",null,null,"COSMOS UCOP ",null,"COSMOS UCOP","AR06013901",null,"CBS CONSERVATORY TOUR FEES ",null,"CBS CONSERVATORY TOUR FEES","202307",null,"Summer Session 2 2023 ",null,"Summer Session 2 2023"]
[null,null,"Research and Extension Centers D ",null,"Research and Extension Centers D","05548",null,"The Farm Endowment ",null,"The Farm Endowment",null,null,null,null,null,null,null,null,null,null,null,null,null,null,null,null,null,"",null,null,"COSMOS C ",null,"COSMOS C","AR06014301",null,"ENG CIVIL ENVIRON ENG TECH SERV ",null,"ENG CIVIL ENVIRON ENG TECH SERV","202308",null,"Summer Quarter 2023 ",null,"Summer Quarter 2023"]
[null,null,"Research and Extension Centers E ",null,"Research and Extension Centers E","05612",null,"Endowment For Cooperatives 05612 ",null,"Endowment For Cooperatives 05612",null,null,null,null,null,null,null,null,null,null,null,null,null,null,null,null,null,"","281",null,"COSMOS ",null,"COSMOS","AR06014801",null,"CE MS SERVO MATLS TEST SYSTEM ",null,"CE MS SERVO MATLS TEST SYSTEM","202309",null,"Fall Semester 2023 ",null,"Fall Semester 2023"]
[null,null,"REC Admin Office F ",null,"REC Admin Office F","05640",null,"German Seed and Plant Flshp Fdn ",null,"German Seed and Plant Flshp Fdn",null,null,null,null,null,null,null,null,null,null,null,null,null,null,null,null,null,"",null,null,"CalTeach ",null,"CalTeach","AR06015001",null,"ENGR CEE NEES RECHARGE ",null,"ENGR CEE NEES RECHARGE","202310",null,"Fall Quarter 2023 ",null,"Fall Quarter 2023"]
["9922111",null,"REC Admin Office ",null,"REC Admin Office","05695",null,"General Research Fund ",null,"General Research Fund",null,null,null,null,null,null,null,null,null,null,null,null,null,null,null,null,null,"",null,null,"CalTeach C ",null,"CalTeach C","AR06015201",null,"RMI WINE MICROBE COLLECTION RATE ",null,"RMI WINE MICROBE COLLECTION RATE","202401",null,"Winter Quarter 2024 ",null,"Winter Quarter 2024"]
[null,null,"Desert REC F ",null,"Desert REC F","05696",null,"General Universitywide Scholarship ",null,"General Universitywide Scholarship",null,null,null,null,null,null,null,null,null,null,null,null,null,null,null,null,null,"","291",null,"CalTeach SMI and STEM ",null,"CalTeach SMI and STEM","AR06015301",null,"ENGR BIOMEDICAL ENGR MACHINE SHOP ",null,"ENGR BIOMEDICAL ENGR MACHINE SHOP","202402",null,"Spring Semester 2024 ",null,"Spring Semester 2024"]
["9922121",null,"Desert REC ",null,"Desert REC","05737",null,"Eddy Gordon Memorial Scholarship ",null,"Eddy Gordon Memorial Scholarship",null,null,null,null,null,null,null,null,null,null,null,null,null,null,null,null,null,"",null,null,"UC Online ",null,"UC Online","AR06015801",null,"ENGR DAVIS MILLIMETER WAVE RESEARCH CTR ",null,"ENGR DAVIS MILLIMETER WAVE RESEARCH CTR","202403",null,"Spring Quarter 2024 ",null,"Spring Quarter 2024"]
[null,null,"Hansen REC F ",null,"Hansen REC F","05842",null,"Hansen Helen F Nursing Scholarship ",null,"Hansen Helen F Nursing Scholarship",null,null,null,null,null,null,null,null,null,null,null,null,null,null,null,null,null,"",null,null,"UC Online C ",null,"UC Online C","AR06015901",null,"ENGR CALIBRATION RECHARGE ",null,"ENGR CALIBRATION RECHARGE","202404",null,"Summer Semester 2024 ",null,"Summer Semester 2024"]
["9922131",null,"Hansen REC ",null,"Hansen REC","05915",null,"Thelma Hansen Fund ",null,"Thelma Hansen Fund",null,null,null,null,null,null,null,null,null,null,null,null,null,null,null,null,null,"","301",null,"UC Online Program ",null,"UC Online Program","AR06016201",null,"BAE MECHANICAL SHOP ",null,"BAE MECHANICAL SHOP","202405",null,"Summer Session 1 2024 ",null,"Summer Session 1 2024"]
[null,null,"Hopland REC F ",null,"Hopland REC F","05926",null,"Med Surg Hause Endowment Principal ",null,"Med Surg Hause Endowment Principal",null,null,null,null,null,null,null,null,null,null,null,null,null,null,null,null,null,"",null,null,"Presidential Initiatives ",null,"Presidential Initiatives","AR06018101",null,"CBS PLANT BIOLOGY CONFOCAL MICROSCOPE ",null,"CBS PLANT BIOLOGY CONFOCAL MICROSCOPE","202406",null,"Summer Quarter Special Summer Session 2024 ",null,"Summer Quarter Special Summer Session 2024"]
["9922141",null,"Hopland REC ",null,"Hopland REC","06223",null,"Som Pediatric Urology Fund 06223 ",null,"Som Pediatric Urology Fund 06223",null,null,null,null,null,null,null,null,null,null,null,null,null,null,null,null,null,"",null,null,"Undocumented Students Initiative ",null,"Undocumented Students Initiative","AR06018901",null,"CBS CNS ANNEX SURGERY ROOM SVCS ",null,"CBS CNS ANNEX SURGERY ROOM SVCS","202407",null,"Summer Session 2 2024 ",null,"Summer Session 2 2024"]
[null,null,"Intermountain REC F ",null,"Intermountain REC F","06272",null,"Nutrition Kosuna Endowment 06272 ",null,"Nutrition Kosuna Endowment 06272",null,null,null,null,null,null,null,null,null,null,null,null,null,null,null,null,null,"","416",null,"UC Berkley Undocumented Student Initiative ",null,"UC Berkley Undocumented Student Initiative","AR06020501",null,"BETTER FOOD PROCESS ",null,"BETTER FOOD PROCESS","202408",null,"Summer Quarter 2024 ",null,"Summer Quarter 2024"]
["9922151",null,"Intermountain REC ",null,"Intermountain REC","06305",null,"WS and E Insur Res Fund ",null,"WS and E Insur Res Fund",null,null,null,null,null,null,null,null,null,null,null,null,null,null,null,null,null,"","426",null,"UCSF Undocumented Student Initiative ",null,"UCSF Undocumented Student Initiative","AR06021001",null,"AGRONOMY RANGE SCI ROTATION CROP ",null,"AGRONOMY RANGE SCI ROTATION CROP","202409",null,"Fall Semester 2024 ",null,"Fall Semester 2024"]
[null,null,"Kearney REC F ",null,"Kearney REC F","06307",null,"Princ Approp Insur Res Fund ",null,"Princ Approp Insur Res Fund",null,null,null,null,null,null,null,null,null,null,null,null,null,null,null,null,null,"","436",null,"UC Davis Undocumented Student Initiative ",null,"UC Davis Undocumented Student Initiative","AR06022201",null,"CAES CENTRALIZED GREENHOUSE ",null,"CAES CENTRALIZED GREENHOUSE","202410",null,"Fall Quarter 2024 ",null,"Fall Quarter 2024"]
["9922161",null,"Kearney REC ",null,"Kearney REC","06309",null,"Insurance Reserve ",null,"Insurance Reserve",null,null,null,null,null,null,null,null,null,null,null,null,null,null,null,null,null,"","446",null,"UCLA Undocumented Student Initiative ",null,"UCLA Undocumented Student Initiative","AR06022401",null,"IACUC PROTOCOL ASSISTANCE ",null,"IACUC PROTOCOL ASSISTANCE","202501",null,"Winter Quarter 2025 ",null,"Winter Quarter 2025"]
[null,null,"Lindcove REC F ",null,"Lindcove REC F","06417",null,"Konishi Endowed Fd Functioning 06417 ",null,"Konishi Endowed Fd Functioning 06417",null,null,null,null,null,null,null,null,null,null,null,null,null,null,null,null,null,"","456",null,"Riverside Undocumented Student Initiative ",null,"Riverside Undocumented Student Initiative","AR06022901",null,"CAES Russell Ranch ",null,"CAES Russell Ranch","202502",null,"Spring Semester 2025 ",null,"Spring Semester 2025"]
["9922171",null,"Lindcove REC ",null,"Lindcove REC","06453",null,"Konishi Research Fund ",null,"Konishi Research Fund",null,null,null,null,null,null,null,null,null,null,null,null,null,null,null,null,null,"","466",null,"San Diego Undocumented Student Initiative ",null,"San Diego Undocumented Student Initiative","AR06023201",null,"UC Davis Analytical Lab ",null,"UC Davis Analytical Lab","202503",null,"Spring Quarter 2025 ",null,"Spring Quarter 2025"]
[null,null,"Sierra Foothill F ",null,"Sierra Foothill F","06484",null,"Max Kleiber Grad Rsch Prize ",null,"Max Kleiber Grad Rsch Prize",null,null,null,null,null,null,null,null,null,null,null,null,null,null,null,null,null,"","476",null,"San Cruz Undocumented Student Initiative ",null,"San Cruz Undocumented Student Initiative","AR06023301",null,"CAES GREENHOUSE GAS SOLUTIONS ",null,"CAES GREENHOUSE GAS SOLUTIONS","202504",null,"Summer Semester 2025 ",null,"Summer Semester 2025"]
["9922181",null,"Sierra Foothill ",null,"Sierra Foothill","06725",null,"MM CW Law Professor Of Med FFE ",null,"MM CW Law Professor Of Med FFE",null,null,null,null,null,null,null,null,null,null,null,null,null,null,null,null,null,"","486",null,"Santa Barbara Undocumented Student Initiative ",null,"Santa Barbara Undocumented Student Initiative","AR06023401",null,"CAES INFORMATICS FACILITY ",null,"CAES INFORMATICS FACILITY","202505",null,"Summer Session 1 2025 ",null,"Summer Session 1 2025"]
[null,null,"South Coast F ",null,"South Coast F","06726",null,"MM CW Law Biofilm Research Center ",null,"MM CW Law Biofilm Research Center",null,null,null,null,null,null,null,null,null,null,null,null,null,null,null,null,null,"","496",null,"Irvine Undocumented Student Initiative ",null,"Irvine Undocumented Student Initiative","AR06023501",null,"CAMI RATE ",null,"CAMI RATE","202506",null,"Summer Quarter Special Summer Session 2025 ",null,"Summer Quarter Special Summer Session 2025"]
["9922191",null,"South Coast ",null,"South Coast","06727",null,"MM CW Law Gi Fellowship ",null,"MM CW Law Gi Fellowship",null,null,null,null,null,null,null,null,null,null,null,null,null,null,null,null,null,"","500",null,"Merced Undocumented Student Initiative ",null,"Merced Undocumented Student Initiative","AR06023601",null,"CAES BIOANALYSIS ENVIRONMENTAL EXTRACTS ",null,"CAES BIOANALYSIS ENVIRONMENTAL EXTRACTS","202507",null,"Summer Session 2 2025 ",null,"Summer Session 2 2025"]
[null,null,"Westside F ",null,"Westside F","07164",null,"Pediatric Critical Care Transport Fund 07164 ",null,"Pediatric Critical Care Transport Fund 07164",null,null,null,null,null,null,null,null,null,null,null,null,null,null,null,null,null,"",null,null,"Presidential Initiatives C ",null,"Presidential Initiatives C","AR06023801",null,"CAES ANHEUSERBUSCH BREWERY ",null,"CAES ANHEUSERBUSCH BREWERY","202508",null,"Summer Quarter 2025 ",null,"Summer Quarter 2025"]
["9922201",null,"Westside ",null,"Westside","07226",null,"IMHO Lau Cancer Research Endow 07226 ",null,"IMHO Lau Cancer Research Endow 07226",null,null,null,null,null,null,null,null,null,null,null,null,null,null,null,null,null,"","401",null,"Carbon Neutrality Initiative ",null,"Carbon Neutrality Initiative","AR06024101",null,"CAES BEE GARDEN TOURS ",null,"CAES BEE GARDEN TOURS","202509",null,"Fall Semester 2025 ",null,"Fall Semester 2025"]
[null,null,"Vice Provost UCCE D ",null,"Vice Provost UCCE D","07336",null,"Noel Goat Dairy Fund ",null,"Noel Goat Dairy Fund",null,null,null,null,null,null,null,null,null,null,null,null,null,null,null,null,null,"","402",null,"Public Services Law Fellowship ",null,"Public Services Law Fellowship","AR06024601",null,"CAES LONNERDAL LABORATORY SERVICES ",null,"CAES LONNERDAL LABORATORY SERVICES","202510",null,"Fall Quarter 2025 ",null,"Fall Quarter 2025"]
[null,null,"UCCE Immediate Office E ",null,"UCCE Immediate Office E","07382",null,"Paula Winn Oates Cancer Res Fund ",null,"Paula Winn Oates Cancer Res Fund",null,null,null,null,null,null,null,null,null,null,null,null,null,null,null,null,null,"","403",null,"Global Food Initiative ",null,"Global Food Initiative","AR06024801",null,"CAES HONEYandPOLLINATION CTR SALES ",null,"CAES HONEYandPOLLINATION CTR SALES","202601",null,"Winter Quarter 2026 ",null,"Winter Quarter 2026"]
[null,null,"UCCE Immediate Office F ",null,"UCCE Immediate Office F","07427",null,"University Opportunity Fund ",null,"University Opportunity Fund",null,null,null,null,null,null,null,null,null,null,null,null,null,null,null,null,null,"","404",null,"Presidential Public Service Fellowship ",null,"Presidential Public Service Fellowship","AR06024901",null,"CAES THORP INSECT IDENTIFICATION SVC ",null,"CAES THORP INSECT IDENTIFICATION SVC","202602",null,"Spring Semester 2026 ",null,"Spring Semester 2026"]
["9923111",null,"Vice Provost County Cooperative Extension ",null,"Vice Provost County Cooperative Extension","07439",null,"Rola Ortlieb Scholarship ",null,"Rola Ortlieb Scholarship",null,null,null,null,null,null,null,null,null,null,null,null,null,null,null,null,null,"","405",null,"UC National Center for Free Speech and Civic Engagement ",null,"UC National Center for Free Speech and Civic Engagement","AR06025001",null,"BODEGA BAY SHOP LABOR ",null,"BODEGA BAY SHOP LABOR","202603",null,"Spring Quarter 2026 ",null,"Spring Quarter 2026"]
[null,null,"UCCE County Offices E ",null,"UCCE County Offices E","07509",null,"Veg Crop Charles Rick Tomato Genetics ",null,"Veg Crop Charles Rick Tomato Genetics",null,null,null,null,null,null,null,null,null,null,null,null,null,null,null,null,null,"","407",null,"Native American Opportunity Program ",null,"Native American Opportunity Program","AR06025101",null,"BODEGA BAY SMALL BOAT ",null,"BODEGA BAY SMALL BOAT","202604",null,"Summer Semester 2026 ",null,"Summer Semester 2026"]
[null,null,"UCCE County Offices F ",null,"UCCE County Offices F","07527",null,"Patterson Seward and Clara Endow 07527 ",null,"Patterson Seward and Clara Endow 07527",null,null,null,null,null,null,null,null,null,null,null,null,null,null,null,null,null,"",null,null,"Student Academic Preparation and Education Partnership SAPEP ",null,"Student Academic Preparation and Education Partnership SAPEP","AR06025201",null,"CDFW BML BUISNESS CONTRACT LEASES REVENUE ",null,"CDFW BML BUISNESS CONTRACT LEASES REVENUE","202605",null,"Summer Session 1 2026 ",null,"Summer Session 1 2026"]
["9923211",null,"UCCE Alameda County ",null,"UCCE Alameda County","07609",null,"Clemens Von Pirquet Fund ",null,"Clemens Von Pirquet Fund",null,null,null,null,null,null,null,null,null,null,null,null,null,null,null,null,null,"",null,null,"Community College Transfer Programs ",null,"Community College Transfer Programs","AR06025501",null,"NEAT CCOAFM SERVICES ",null,"NEAT CCOAFM SERVICES","202606",null,"Summer Quarter Special Summer Session 2026 ",null,"Summer Quarter Special Summer Session 2026"]
["9923212",null,"UCCE Amador County ",null,"UCCE Amador County","07639",null,"Purcell Endow Fund Princ ",null,"Purcell Endow Fund Princ",null,null,null,null,null,null,null,null,null,null,null,null,null,null,null,null,null,"","A69",null,"Transfer Prep Campaign for Transfer Excellence ",null,"Transfer Prep Campaign for Transfer Excellence","AR06025701",null,"NRS OVERNIGHT ACCOMMMODATIONS ",null,"NRS OVERNIGHT ACCOMMMODATIONS","202607",null,"Summer Session 2 2026 ",null,"Summer Session 2 2026"]
["9923213",null,"UCCE Butte County ",null,"UCCE Butte County","07658",null,"Presidents Discretionary Fund ",null,"Presidents Discretionary Fund",null,null,null,null,null,null,null,null,null,null,null,null,null,null,null,null,null,"","A70",null,"Community College Programs ",null,"Community College Programs","AR06025801",null,"COOL WESTERN COOLING EFFICIENCY CENTER ",null,"COOL WESTERN COOLING EFFICIENCY CENTER","202608",null,"Summer Quarter 2026 ",null,"Summer Quarter 2026"]
["9923214",null,"UCCE Calaveras County ",null,"UCCE Calaveras County","07707",null,"Ragle Florence Endowment Principal ",null,"Ragle Florence Endowment Principal",null,null,null,null,null,null,null,null,null,null,null,null,null,null,null,null,null,"","A71",null,"Transfer Prep ",null,"Transfer Prep","AR06026501",null,"LAWR WEB DESIGN SUPPORT ",null,"LAWR WEB DESIGN SUPPORT","202609",null,"Fall Semester 2026 ",null,"Fall Semester 2026"]
["9923215",null,"UCCE Colusa County ",null,"UCCE Colusa County","07791",null,"Marcia Mcdonald Rivas Endowment ",null,"Marcia Mcdonald Rivas Endowment",null,null,null,null,null,null,null,null,null,null,null,null,null,null,null,null,null,"","A72",null,"Sacramento Area Youth Speaks SAYS ",null,"Sacramento Area Youth Speaks SAYS","AR06026701",null,"LAWR SERVICES ",null,"LAWR SERVICES","202610",null,"Fall Quarter 2026 ",null,"Fall Quarter 2026"]
["9923216",null,"UCCE Contra Costa County ",null,"UCCE Contra Costa County","07859",null,"Albert Rowe Endowed Chair ",null,"Albert Rowe Endowed Chair",null,null,null,null,null,null,null,null,null,null,null,null,null,null,null,null,null,"","A73",null,"Transfer Opportunity Program TOP ",null,"Transfer Opportunity Program TOP","AR06027001",null,"PSYCH ANIMAL QTRS PER DIEM RATE ",null,"PSYCH ANIMAL QTRS PER DIEM RATE","202701",null,"Winter Quarter 2027 ",null,"Winter Quarter 2027"]
["9923217",null,"UCCE El Dorado County ",null,"UCCE El Dorado County","08392",null,"Michael Schermer Family Fund 08392 ",null,"Michael Schermer Family Fund 08392",null,null,null,null,null,null,null,null,null,null,null,null,null,null,null,null,null,"","A74",null,"Other Community College Transfer Programs ",null,"Other Community College Transfer Programs","AR06027601",null,"STEM CELL PROGRAM GMP TEST LAB ",null,"STEM CELL PROGRAM GMP TEST LAB","202702",null,"Spring Semester 2027 ",null,"Spring Semester 2027"]
["9923218",null,"UCCE Fresno County ",null,"UCCE Fresno County","08447",null,"Thoracic Oncology Fund ",null,"Thoracic Oncology Fund",null,null,null,null,null,null,null,null,null,null,null,null,null,null,null,null,null,"",null,null,"ASSIST ",null,"ASSIST","AR06027701",null,"STEM CELL PRGM GMP ",null,"STEM CELL PRGM GMP","202703",null,"Spring Quarter 2027 ",null,"Spring Quarter 2027"]
["9923219",null,"UCCE Glenn County ",null,"UCCE Glenn County","08613",null,"University Patent Fund ",null,"University Patent Fund",null,null,null,null,null,null,null,null,null,null,null,null,null,null,null,null,null,"","A75",null,"ASSIST SAPEP ",null,"ASSIST SAPEP","AR06027801",null,"STEM CELL PRGM VECTOR ",null,"STEM CELL PRGM VECTOR","202704",null,"Summer Semester 2027 ",null,"Summer Semester 2027"]
["9923220",null,"UCCE Humboldt and Del Norte County ",null,"UCCE Humboldt and Del Norte County","08621",null,"Unrestricted Gifts and Endowment ",null,"Unrestricted Gifts and Endowment",null,null,null,null,null,null,null,null,null,null,null,null,null,null,null,null,null,"",null,null,"Community College Articulation ",null,"Community College Articulation","AR06027901",null,"STEM CELL PRGM TEREATOME ",null,"STEM CELL PRGM TEREATOME","202705",null,"Summer Session 1 2027 ",null,"Summer Session 1 2027"]
["9923221",null,"UCCE Imperial County ",null,"UCCE Imperial County","09498",null,"University Fund Permanent ",null,"University Fund Permanent",null,null,null,null,null,null,null,null,null,null,null,null,null,null,null,null,null,"","A76",null,"Community College Articulation SAPEP ",null,"Community College Articulation SAPEP","AR06028001",null,"GENOMICSandEXPRESS RESOURCE RATE ",null,"GENOMICSandEXPRESS RESOURCE RATE","202706",null,"Summer Quarter Special Summer Session 2027 ",null,"Summer Quarter Special Summer Session 2027"]
["9923222",null,"UCCE Inyo and Mono County ",null,"UCCE Inyo and Mono County","09499",null,"University Fund ",null,"University Fund",null,null,null,null,null,null,null,null,null,null,null,null,null,null,null,null,null,"",null,null,"EAOP ",null,"EAOP","AR06028101",null,"MED PATH PROTEOMICS LAB ",null,"MED PATH PROTEOMICS LAB","202707",null,"Summer Session 2 2027 ",null,"Summer Session 2 2027"]
["9923223",null,"UCCE Kern County ",null,"UCCE Kern County","09500",null,"Univ Opportunity Fd Affirm Action ",null,"Univ Opportunity Fd Affirm Action",null,null,null,null,null,null,null,null,null,null,null,null,null,null,null,null,null,"","A78",null,"EAOP Campaign for Transfer Excellence ",null,"EAOP Campaign for Transfer Excellence","AR06028201",null,"IMAGING RESEARCH CENTER ",null,"IMAGING RESEARCH CENTER","202708",null,"Summer Quarter 2027 ",null,"Summer Quarter 2027"]
["9923224",null,"UCCE Kings County ",null,"UCCE Kings County","09501",null,"Management Fellowship Program ",null,"Management Fellowship Program",null,null,null,null,null,null,null,null,null,null,null,null,null,null,null,null,null,"","A79",null,"EAOP Programs Revolving ",null,"EAOP Programs Revolving","AR06028601",null,"CANCER CENTER SPECIMEN ",null,"CANCER CENTER SPECIMEN","21EXPS",null,"2021 Expense Activity ",null,"2021 Expense Activity"]
["9923225",null,"UCCE Lake County ",null,"UCCE Lake County","09502",null,"Ucan Program ",null,"Ucan Program",null,null,null,null,null,null,null,null,null,null,null,null,null,null,null,null,null,"","A80",null,"Early Academic Outreach Program ",null,"Early Academic Outreach Program","AR06028801",null,"PUBLIC HEALTH BIOSTATICS ",null,"PUBLIC HEALTH BIOSTATICS","22EXPS",null,"2022 Expense Activity ",null,"2022 Expense Activity"]
["9923226",null,"UCCE Lassen County ",null,"UCCE Lassen County","09503",null,"Univ Opport Fund Faculty EAA Prog ",null,"Univ Opport Fund Faculty EAA Prog",null,null,null,null,null,null,null,null,null,null,null,null,null,null,null,null,null,"","A85",null,"Other EAOP Programs ",null,"Other EAOP Programs","AR06029301",null,"MED MICRO MICROARRAY CORE FACILITY ",null,"MED MICRO MICROARRAY CORE FACILITY","23EXPS",null,"2023 Expense Activity ",null,"2023 Expense Activity"]
["9923227",null,"UCCE Los Angeles County ",null,"UCCE Los Angeles County","09504",null,"Univ Opport Fund Staff EAA Prog ",null,"Univ Opport Fund Staff EAA Prog",null,null,null,null,null,null,null,null,null,null,null,null,null,null,null,null,null,"",null,null,"Graduate and Professional School Programs ",null,"Graduate and Professional School Programs","AR06029501",null,"SOM OPTICAL BIOLOGY SHARED RESOURCE ",null,"SOM OPTICAL BIOLOGY SHARED RESOURCE","24EXPS",null,"2024 Expense Activity ",null,"2024 Expense Activity"]
["9923228",null,"UCCE Madera County ",null,"UCCE Madera County","09505",null,"Univ Opport Fund Campuswide EAA Pro ",null,"Univ Opport Fund Campuswide EAA Pro",null,null,null,null,null,null,null,null,null,null,null,null,null,null,null,null,null,"","A55",null,"Law Matching ",null,"Law Matching","AR06029601",null,"PHYS MEMBRANE BIOL MICROSCOPY RATE ",null,"PHYS MEMBRANE BIOL MICROSCOPY RATE","25EXPS",null,"2025 Expense Activity ",null,"2025 Expense Activity"]
["9923229",null,"UCCE Marin County ",null,"UCCE Marin County","09506",null,"UOP EAA Administrative Costs ",null,"UOP EAA Administrative Costs",null,null,null,null,null,null,null,null,null,null,null,null,null,null,null,null,null,"","A56",null,"Law Other ",null,"Law Other","AR06029701",null,"SOM STEM CELL PROGRAM VIVARIUM RATE ",null,"SOM STEM CELL PROGRAM VIVARIUM RATE","26EXPS",null,"2026 Expense Activity ",null,"2026 Expense Activity"]
["9923230",null,"UCCE Mariposa County ",null,"UCCE Mariposa County","09507",null,"Eaa Faculty Admin Costs ",null,"Eaa Faculty Admin Costs",null,null,null,null,null,null,null,null,null,null,null,null,null,null,null,null,null,"","A57",null,"Law Revolving ",null,"Law Revolving","AR06029801",null,"SOM STEM CELL PROG IPSC LINES RATE ",null,"SOM STEM CELL PROG IPSC LINES RATE","EVENYR",null,"Even Years ",null,"Even Years"]
["9923231",null,"UCCE Mendocino County ",null,"UCCE Mendocino County","09508",null,"Univ Opport Fund Deferred Main ",null,"Univ Opport Fund Deferred Main",null,null,null,null,null,null,null,null,null,null,null,null,null,null,null,null,null,"","A58",null,"UC Leads Matching ",null,"UC Leads Matching","AR06029901",null,"SOM STEM CELL PROGRAM KARYOTYPING ",null,"SOM STEM CELL PROGRAM KARYOTYPING","FALQTR",null,"Fall Quarter ",null,"Fall Quarter"]
["9923232",null,"UCCE Merced County ",null,"UCCE Merced County","09509",null,"Eaa Other Admin Costs ",null,"Eaa Other Admin Costs",null,null,null,null,null,null,null,null,null,null,null,null,null,null,null,null,null,"","A59",null,"UC Leads Other ",null,"UC Leads Other","AR06030101",null,"SOM UMBILICAL CORD BLOOD COLLECT PROG ",null,"SOM UMBILICAL CORD BLOOD COLLECT PROG","FALSEM",null,"Fall Semester ",null,"Fall Semester"]
["9923233",null,"UCCE Modoc County ",null,"UCCE Modoc County","09510",null,"PreTenure Program ",null,"PreTenure Program",null,null,null,null,null,null,null,null,null,null,null,null,null,null,null,null,null,"","A60",null,"UC Lead Revolving ",null,"UC Lead Revolving","AR06030201",null,"SOM COMBIOCHEM SHARED RESOURCE ",null,"SOM COMBIOCHEM SHARED RESOURCE","ODDYR1",null,"Odd Years ",null,"Odd Years"]
["9923234",null,"UCCE Monterey County ",null,"UCCE Monterey County","09520",null,"Instructional Improvement ",null,"Instructional Improvement",null,null,null,null,null,null,null,null,null,null,null,null,null,null,null,null,null,"","A61",null,"Medical School Matching ",null,"Medical School Matching","AR06030401",null,"SOM SOH EDUCATION OUTCOMES EVALUATION ",null,"SOM SOH EDUCATION OUTCOMES EVALUATION","SPRQTR",null,"Spring Quarter ",null,"Spring Quarter"]
["9923235",null,"UCCE Napa County ",null,"UCCE Napa County","09525",null,"Institue For Research In The Arts ",null,"Institue For Research In The Arts",null,null,null,null,null,null,null,null,null,null,null,null,null,null,null,null,null,"","A62",null,"Medical School Other ",null,"Medical School Other","AR06030501",null,"SOM CCR DATA DISCLOSURE ",null,"SOM CCR DATA DISCLOSURE","SPRSMR",null,"Spring Semester ",null,"Spring Semester"]
["9923236",null,"UCCE Nevada County ",null,"UCCE Nevada County","09530",null,"Univ PreGraduate Mentorship Prog ",null,"Univ PreGraduate Mentorship Prog",null,null,null,null,null,null,null,null,null,null,null,null,null,null,null,null,null,"","A63",null,"Medical School Revolving ",null,"Medical School Revolving","AR06030601",null,"SOM BIOCHEM PKPD CORE FACILITY ",null,"SOM BIOCHEM PKPD CORE FACILITY","SUM001",null,"Summer Session 1 ",null,"Summer Session 1"]
["9923237",null,"UCCE Orange County ",null,"UCCE Orange County","09531",null,"Uof UG Minority Scholars Program ",null,"Uof UG Minority Scholars Program",null,null,null,null,null,null,null,null,null,null,null,null,null,null,null,null,null,"","A64",null,"Undergraduate Scholars Other ",null,"Undergraduate Scholars Other","AR06030701",null,"MEDICTSCCLINICAL RESEARCH SUPPORT SVCS ",null,"MEDICTSCCLINICAL RESEARCH SUPPORT SVCS","SUM002",null,"Summer Session 2 ",null,"Summer Session 2"]
["9923238",null,"UCCE Placer County ",null,"UCCE Placer County","09532",null,"UofGrad Mentorship Program ",null,"UofGrad Mentorship Program",null,null,null,null,null,null,null,null,null,null,null,null,null,null,null,null,null,"","A65",null,"Undergraduate Scholars Revolving ",null,"Undergraduate Scholars Revolving","AR06030801",null,"MEDIMINDIDDRC CORE SERVICES ",null,"MEDIMINDIDDRC CORE SERVICES","SUM003",null,"Summer ",null,"Summer"]
["9923239",null,"UCCE Plumas and Sierra County ",null,"UCCE Plumas and Sierra County","09533",null,"SaaTransfer Program ",null,"SaaTransfer Program",null,null,null,null,null,null,null,null,null,null,null,null,null,null,null,null,null,"","A66",null,"Growing Our Own ",null,"Growing Our Own","AR06030901",null,"MEDIMICROSURGERY SUPPORT CORE SVCS ",null,"MEDIMICROSURGERY SUPPORT CORE SVCS","SUMQTR",null,"Summer Quarter ",null,"Summer Quarter"]
["9923240",null,"UCCE Riverside County ",null,"UCCE Riverside County","09534",null,"Professors For The Future ",null,"Professors For The Future",null,null,null,null,null,null,null,null,null,null,null,null,null,null,null,null,null,"","A86",null,"The King Hall Outreach Program KHOP ",null,"The King Hall Outreach Program KHOP","AR06031501",null,"CBS GENOME CENTER PROTEOMICS ",null,"CBS GENOME CENTER PROTEOMICS","SUMSEM",null,"Summer Semester ",null,"Summer Semester"]
["9923241",null,"UCCE Sacramento County ",null,"UCCE Sacramento County","09539",null,"SaaGeneral ",null,"SaaGeneral",null,null,null,null,null,null,null,null,null,null,null,null,null,null,null,null,null,"","A87",null,"UC Leads ",null,"UC Leads","AR06031601",null,"CBS GENOME CENTER YEAST 1 HYBRID ",null,"CBS GENOME CENTER YEAST 1 HYBRID","WINQTR",null,"Winter Quarter ",null,"Winter Quarter"]
["9923242",null,"UCCE San Benito County ",null,"UCCE San Benito County","09551",null,"Univ Opportunity FundResearch Matc ",null,"Univ Opportunity FundResearch Matc",null,null,null,null,null,null,null,null,null,null,null,null,null,null,null,null,null,"","A88",null,"Medical School SAPEP ",null,"Medical School SAPEP","AR06032001",null,"CBSGENOMEBIOINFORMATICSDATA ANALYSIS ",null,"CBSGENOMEBIOINFORMATICSDATA ANALYSIS",null,null,"Departmental Operations ",null,"Departmental Operations"]
["9923243",null,"UCCE San Bernardino County ",null,"UCCE San Bernardino County","09552",null,"Uof Indirect Cost Recovery ",null,"Uof Indirect Cost Recovery",null,null,null,null,null,null,null,null,null,null,null,null,null,null,null,null,null,"","A89",null,"PreGraduate Mentorship ",null,"PreGraduate Mentorship","AR06032101",null,"CBSGENOMEBIOINFORMATICS HPC SVCS ",null,"CBSGENOMEBIOINFORMATICS HPC SVCS","200500",null,"Executive ",null,"Executive"]
["9923244",null,"UCCE San Diego County ",null,"UCCE San Diego County","09553",null,"Univ Opport FundBridge Program ",null,"Univ Opport FundBridge Program",null,null,null,null,null,null,null,null,null,null,null,null,null,null,null,null,null,"","A90",null,"Undergraduate Scholars ",null,"Undergraduate Scholars","AR06032201",null,"CBS GENOME CENTER METABOLOMICS ",null,"CBS GENOME CENTER METABOLOMICS","200501",null,"Board of Directors ",null,"Board of Directors"]
["9923245",null,"UCCE San Francisco County ",null,"UCCE San Francisco County","09554",null,"Faculty Research Grants ",null,"Faculty Research Grants",null,null,null,null,null,null,null,null,null,null,null,null,null,null,null,null,null,"","A95",null,"Other Graduate and Professional School Programs ",null,"Other Graduate and Professional School Programs","AR06032401",null,"CBS GENOME CENTER TILLING CORE ",null,"CBS GENOME CENTER TILLING CORE","200502",null,"Business and Finance ",null,"Business and Finance"]
["9923246",null,"UCCE San Joaquin County ",null,"UCCE San Joaquin County","09560",null,"Presidents Fellowship Program ",null,"Presidents Fellowship Program",null,null,null,null,null,null,null,null,null,null,null,null,null,null,null,null,null,"",null,null,"MESA ",null,"MESA","AR06033101",null,"CBS MCB Electron Microscope Facility Briggs Hall ",null,"CBS MCB Electron Microscope Facility Briggs Hall","200503",null,"Facilities and Maintenance Operations ",null,"Facilities and Maintenance Operations"]
["9923247",null,"UCCE San Luis Obispo County ",null,"UCCE San Luis Obispo County","09592",null,"Life Science Informatics Program ",null,"Life Science Informatics Program",null,null,null,null,null,null,null,null,null,null,null,null,null,null,null,null,null,"","A96",null,"MESA Program ",null,"MESA Program","AR06033102",null,"CBS MCB ELECTRON MICROSCOPE FACILITY Tupper Hall ",null,"CBS MCB ELECTRON MICROSCOPE FACILITY Tupper Hall","200504",null,"General Administration ",null,"General Administration"]
["9923248",null,"UCCE San Mateo County ",null,"UCCE San Mateo County","09594",null,"Dimi Program ",null,"Dimi Program",null,null,null,null,null,null,null,null,null,null,null,null,null,null,null,null,null,"",null,null,"Puente ",null,"Puente","AR06033201",null,"SOM ANTIBODIES SALES ",null,"SOM ANTIBODIES SALES","200505",null,"Marketing and Communications ",null,"Marketing and Communications"]
["9923249",null,"UCCE Santa Barbara County ",null,"UCCE Santa Barbara County","09596",null,"UCB Smart ProgEndow Prin Ed Funds ",null,"UCB Smart ProgEndow Prin Ed Funds",null,null,null,null,null,null,null,null,null,null,null,null,null,null,null,null,null,"","A97",null,"Puente Program ",null,"Puente Program","AR06034201",null,"MEDISTEM CELL RESEARCH ANIMAL SURGERY ",null,"MEDISTEM CELL RESEARCH ANIMAL SURGERY","200507",null,"Computer Replacement ",null,"Computer Replacement"]
["9923250",null,"UCCE Santa Clara County ",null,"UCCE Santa Clara County","09598",null,"Endow Funds Summary Unrestricted ",null,"Endow Funds Summary Unrestricted",null,null,null,null,null,null,null,null,null,null,null,null,null,null,null,null,null,"",null,null,"Student Initiated Programs ",null,"Student Initiated Programs","AR06034301",null,"MEDIELECTROPHYSIOLOGY SVCS CORE ",null,"MEDIELECTROPHYSIOLOGY SVCS CORE","200508",null,"Procurement ",null,"Procurement"]
["9923251",null,"UCCE Santa Cruz County ",null,"UCCE Santa Cruz County","14210",null,"Theater and Dance Dept Enhancement ",null,"Theater and Dance Dept Enhancement",null,null,null,null,null,null,null,null,null,null,null,null,null,null,null,null,null,"","A67",null,"Student Initiated Programs SAPEP Other ",null,"Student Initiated Programs SAPEP Other","AR06034501",null,"MEDIDERM IMMUNE MONITORING CORE SVCS ",null,"MEDIDERM IMMUNE MONITORING CORE SVCS","200509",null,"Professional Development and Training ",null,"Professional Development and Training"]
["9923252",null,"UCCE Shasta County ",null,"UCCE Shasta County","14228",null,"Meg Stallard Leadership Fund ",null,"Meg Stallard Leadership Fund",null,null,null,null,null,null,null,null,null,null,null,null,null,null,null,null,null,"","A68",null,"Student Initiated Programs SAPEP Revolving ",null,"Student Initiated Programs SAPEP Revolving","AR06034601",null,"MEDISTEM CELL EXOSOME CORE SVCS ",null,"MEDISTEM CELL EXOSOME CORE SVCS","200510",null,"Staff Appreciation ",null,"Staff Appreciation"]
["9923253",null,"UCCE Sierra County ",null,"UCCE Sierra County","14364",null,"Ophthalmology Program Support Fund 14364 ",null,"Ophthalmology Program Support Fund 14364",null,null,null,null,null,null,null,null,null,null,null,null,null,null,null,null,null,"","A98",null,"Student Initiated Programs SAPEP ",null,"Student Initiated Programs SAPEP","AR06034901",null,"MEDIMINDBIOLOGICAL ANALYSIS CORE SVCS ",null,"MEDIMINDBIOLOGICAL ANALYSIS CORE SVCS","200512",null,"Human Resource Activities ",null,"Human Resource Activities"]
["9923254",null,"UCCE Siskiyou County ",null,"UCCE Siskiyou County","14434",null,"Vision Science and Advanced Retinal Imaging Lab Sup ",null,"Vision Science and Advanced Retinal Imaging Lab Sup",null,null,null,null,null,null,null,null,null,null,null,null,null,null,null,null,null,"",null,null,"K20 Intersegmental Alliances ",null,"K20 Intersegmental Alliances","AR06035001",null,"MEDILEICA FLIM IMAGING SVCS ",null,"MEDILEICA FLIM IMAGING SVCS","200513",null,"Diversity Equity Inclusion ",null,"Diversity Equity Inclusion"]
["9923255",null,"UCCE Solano County ",null,"UCCE Solano County","14440",null,"Richard J Elkus Fund ",null,"Richard J Elkus Fund",null,null,null,null,null,null,null,null,null,null,null,null,null,null,null,null,null,"","B01",null,"K20 Regional Intersegmental Alliance ",null,"K20 Regional Intersegmental Alliance","AR06039201",null,"RESH TAHOE RESEARCH VESSEL SVC ",null,"RESH TAHOE RESEARCH VESSEL SVC","200514",null,"Departmental Support Activities ",null,"Departmental Support Activities"]
["9923256",null,"UCCE Sonoma County ",null,"UCCE Sonoma County","14788",null,"Holdsworth and Vandling Memorial Research 14788 ",null,"Holdsworth and Vandling Memorial Research 14788",null,null,null,null,null,null,null,null,null,null,null,null,null,null,null,null,null,"","B02",null,"Other K20 Intersegmental Alliances ",null,"Other K20 Intersegmental Alliances","AR06039301",null,"RESH SINGLE IRB SERVICES ",null,"RESH SINGLE IRB SERVICES","200516",null,"Engagement and Outreach ",null,"Engagement and Outreach"]
["9923257",null,"UCCE Stanislaus County ",null,"UCCE Stanislaus County","14820",null,"Frances Mara Botanical Conservatory End 14820 ",null,"Frances Mara Botanical Conservatory End 14820",null,null,null,null,null,null,null,null,null,null,null,null,null,null,null,null,null,"","B03",null,"K20 Intersegmental Alliances Revolving ",null,"K20 Intersegmental Alliances Revolving","AR06039401",null,"RESHCNLSSRLMASS OPTICS SVC ",null,"RESHCNLSSRLMASS OPTICS SVC","200517",null,"Affiliate Memberships ",null,"Affiliate Memberships"]
["9923258",null,"UCCE Sutter and Yuba County ",null,"UCCE Sutter and Yuba County","14844",null,"Roberta J Schneider Memorial Fund A ",null,"Roberta J Schneider Memorial Fund A",null,null,null,null,null,null,null,null,null,null,null,null,null,null,null,null,null,"",null,null,"Evaluation ",null,"Evaluation","AR06039501",null,"RESHCNL FTIR SVC ",null,"RESHCNL FTIR SVC","200518",null,"Marketing ",null,"Marketing"]
["9923259",null,"UCCE Tehama County ",null,"UCCE Tehama County","14862",null,"Kootenay Veterinary Medical Ctr Constr ",null,"Kootenay Veterinary Medical Ctr Constr",null,null,null,null,null,null,null,null,null,null,null,null,null,null,null,null,null,"","B05",null,"Evaluations SAPEP Program ",null,"Evaluations SAPEP Program","AR06039601",null,"RESHENDOCRINE CORE SERVICES ",null,"RESHENDOCRINE CORE SERVICES","200519",null,"Sales and Services ",null,"Sales and Services"]
["9923260",null,"UCCE Trinity County ",null,"UCCE Trinity County","17039",null,"Beavers Charitable Trust 17039 ",null,"Beavers Charitable Trust 17039",null,null,null,null,null,null,null,null,null,null,null,null,null,null,null,null,null,"",null,null,"GEAR UP ",null,"GEAR UP","AR06039701",null,"SELF SUPPORTING UNIT REVENUE ACCOUNT FOR FUND 60397 ",null,"SELF SUPPORTING UNIT REVENUE ACCOUNT FOR FUND 60397","200520",null,"Business Partnerships ",null,"Business Partnerships"]
["9923261",null,"UCCE Tulare County ",null,"UCCE Tulare County","17049",null,"Waldrop Walker Veterinary Hospital Fund ",null,"Waldrop Walker Veterinary Hospital Fund",null,null,null,null,null,null,null,null,null,null,null,null,null,null,null,null,null,"","B08",null,"GEAR UP Program ",null,"GEAR UP Program","AR06039801",null,"RESHAQRCHIPS ANALYSIS SVCS ",null,"RESHAQRCHIPS ANALYSIS SVCS","200521",null,"Print Media ",null,"Print Media"]
["9923262",null,"UCCE Tuolumne County ",null,"UCCE Tuolumne County","17260",null,"Calm Winds Trust Grief Counselor 17260 ",null,"Calm Winds Trust Grief Counselor 17260",null,null,null,null,null,null,null,null,null,null,null,null,null,null,null,null,null,"",null,null,"Other SAPEP Programs ",null,"Other SAPEP Programs","AR06040001",null,"RESHTERC MALYJ MANOR ",null,"RESHTERC MALYJ MANOR","200522",null,"Digital Media ",null,"Digital Media"]
["9923263",null,"UCCE Ventura County ",null,"UCCE Ventura County","17262",null,"Calm Winds Vet Med Ctr Construction Fd 17262 ",null,"Calm Winds Vet Med Ctr Construction Fd 17262",null,null,null,null,null,null,null,null,null,null,null,null,null,null,null,null,null,"","B10",null,"UC Transfer Admission Planner ",null,"UC Transfer Admission Planner","AR06040201",null,"LS IT SVC CTR PRINTING SVC ",null,"LS IT SVC CTR PRINTING SVC","200523",null,"Accreditation ",null,"Accreditation"]
["9923264",null,"UCCE Yolo County ",null,"UCCE Yolo County","17878",null,"Schaal Aquatics Team Center Project 17878 ",null,"Schaal Aquatics Team Center Project 17878",null,null,null,null,null,null,null,null,null,null,null,null,null,null,null,null,null,"","B11",null,"Umoja ",null,"Umoja","AR06040301",null,"CLAS DSS IT SVC CTR DATA STORAGE RATE ",null,"CLAS DSS IT SVC CTR DATA STORAGE RATE","200524",null,"Graphic Design ",null,"Graphic Design"]
["9923265",null,"UCCE Capitol Corridor MCP ",null,"UCCE Capitol Corridor MCP","17942",null,"Foundation Plant Services Endowment 17942 ",null,"Foundation Plant Services Endowment 17942",null,null,null,null,null,null,null,null,null,null,null,null,null,null,null,null,null,"","B12",null,"University Community Engagement ",null,"University Community Engagement","AR06040401",null,"CLAS IT SUPPLIESandSERVICES RATE ",null,"CLAS IT SUPPLIESandSERVICES RATE","200525",null,"Photography ",null,"Photography"]
["9923266",null,"UCCE Central Sierra Nevada MCP ",null,"UCCE Central Sierra Nevada MCP","94248",null,"James Wolpert Endowed Internship FFE 94248 ",null,"James Wolpert Endowed Internship FFE 94248",null,null,null,null,null,null,null,null,null,null,null,null,null,null,null,null,null,"","B13",null,"Entry Level Writing Program ",null,"Entry Level Writing Program","AR06040501",null,"CLAS SSHP CURRICULUM ENRICHMENT SVCS ",null,"CLAS SSHP CURRICULUM ENRICHMENT SVCS","200526",null,"Social Media ",null,"Social Media"]
["9923267",null,"UCCE Fresno Madera MCP ",null,"UCCE Fresno Madera MCP",null,null,"Unrestricted FFE Principal FoundationD ",null,"Unrestricted FFE Principal FoundationD",null,null,null,null,null,null,null,null,null,null,null,null,null,null,null,null,null,"","B14",null,"History Project ",null,"History Project","AR06040601",null,"CLAS UCDMP PROFESSIONAL DEVELOPMENT SVC ",null,"CLAS UCDMP PROFESSIONAL DEVELOPMENT SVC","200527",null,"Video Production ",null,"Video Production"]
[null,null,"UCCE Academic Compensation F ",null,"UCCE Academic Compensation F","C0001",null,"PRN UCDF Unrestricted Fund Functioning as an Endw 222222 ",null,"PRN UCDF Unrestricted Fund Functioning as an Endw 222222",null,null,null,null,null,null,null,null,null,null,null,null,null,null,null,null,null,"","B15",null,"California History Project ",null,"California History Project","AR06040701",null,"CLASCHSSP PROFESSIONAL DEVELOPMENT SVCS ",null,"CLASCHSSP PROFESSIONAL DEVELOPMENT SVCS","200528",null,"Writing ",null,"Writing"]
["9923281",null,"UCCE Academic Compensation ",null,"UCCE Academic Compensation","C0002",null,"PRN George and Lena Valente Fund to support UCDF 222213 ",null,"PRN George and Lena Valente Fund to support UCDF 222213",null,null,null,null,null,null,null,null,null,null,null,null,null,null,null,null,null,"","B19",null,"Other SAPEP Program ",null,"Other SAPEP Program","AR06040801",null,"CLAS CHEM GLYCAN ANALYSIS SVCS ",null,"CLAS CHEM GLYCAN ANALYSIS SVCS","200529",null,"Websites ",null,"Websites"]
[null,null,"Statewide Programs and Institutes D ",null,"Statewide Programs and Institutes D",null,null,"Unrestricted FFE Principal CAAA through Foundation ",null,"Unrestricted FFE Principal CAAA through Foundation",null,null,null,null,null,null,null,null,null,null,null,null,null,null,null,null,null,"",null,null,"ArtsBridge ",null,"ArtsBridge","AR06040901",null,"CLAS PHYSICS FIT SVCS ",null,"CLAS PHYSICS FIT SVCS","200530",null,"Lawrence Berkeley National Laboratory ",null,"Lawrence Berkeley National Laboratory"]
[null,null,"California Naturalist Program E ",null,"California Naturalist Program E","CC001",null,"CAAA Board Designated Reserve Fund GEP with UCOP 09676 ",null,"CAAA Board Designated Reserve Fund GEP with UCOP 09676",null,null,null,null,null,null,null,null,null,null,null,null,null,null,null,null,null,"","B20",null,"ArtsBridge Program ",null,"ArtsBridge Program","AR06045401",null,"CAES COMPUTING RESOURCES FARM SVCS ",null,"CAES COMPUTING RESOURCES FARM SVCS","200531",null,"Space Renovation ",null,"Space Renovation"]
[null,null,"California Naturalist Program F ",null,"California Naturalist Program F",null,null,"Unrestricted FFE Income Foundation ",null,"Unrestricted FFE Income Foundation",null,null,null,null,null,null,null,null,null,null,null,null,null,null,null,null,null,"","B21",null,"ArtsBridge Other ",null,"ArtsBridge Other","AR06045501",null,"CAES PLANT SCIENCES STRAIN ID SVCS ",null,"CAES PLANT SCIENCES STRAIN ID SVCS","200532",null,"Warehouse ",null,"Warehouse"]
["9924111",null,"UC Environmental Stewards ",null,"UC Environmental Stewards","D0001",null,"IN UCDF Unrestricted Fund Functioning as an Endw 222222 ",null,"IN UCDF Unrestricted Fund Functioning as an Endw 222222",null,null,null,null,null,null,null,null,null,null,null,null,null,null,null,null,null,"","B22",null,"ArtsBridge Revolving ",null,"ArtsBridge Revolving","AR06045601",null,"CAES CTR FOR REGIONAL CHANGE CDC SVCS ",null,"CAES CTR FOR REGIONAL CHANGE CDC SVCS","200533",null,"Student Mentors ",null,"Student Mentors"]
[null,null,"Agricultural Issue Center E ",null,"Agricultural Issue Center E","D0002",null,"IN George and Lena Valente Fund to support UCDF 222213 ",null,"IN George and Lena Valente Fund to support UCDF 222213",null,null,null,null,null,null,null,null,null,null,null,null,null,null,null,null,null,"",null,null,"Other State Programs ",null,"Other State Programs","AR06045701",null,"CAES PLANT SCI LIGHTBAR SERVICES ",null,"CAES PLANT SCI LIGHTBAR SERVICES","200534",null,"Merchandise ",null,"Merchandise"]
[null,null,"Agricultural Issue Center F ",null,"Agricultural Issue Center F",null,null,"Unrestricted FFE Income CAAA through Foundation ",null,"Unrestricted FFE Income CAAA through Foundation",null,null,null,null,null,null,null,null,null,null,null,null,null,null,null,null,null,"",null,null,"State Educational Programs NonSAPEP ",null,"State Educational Programs NonSAPEP","AR06045901",null,"CAES PLANT SCIENCES DRY CARD SALES ",null,"CAES PLANT SCIENCES DRY CARD SALES","200535",null,"Analysis ",null,"Analysis"]
["9924161",null,"Agricultural Issue Center ",null,"Agricultural Issue Center","DC001",null,"CAAA Board Designated Reserve Fund STIP with UCOP 09676 ",null,"CAAA Board Designated Reserve Fund STIP with UCOP 09676",null,null,null,null,null,null,null,null,null,null,null,null,null,null,null,null,null,"","CMP",null,"California Mathematics Project ",null,"California Mathematics Project","AR06046201",null,"CAES PLANT SCI SEED CONDITIONING SVCS ",null,"CAES PLANT SCI SEED CONDITIONING SVCS","200536",null,"Student Research ",null,"Student Research"]
[null,null,"Informatics and GIS Program E ",null,"Informatics and GIS Program E",null,null,"Summer Session Fees C ",null,"Summer Session Fees C",null,null,null,null,null,null,null,null,null,null,null,null,null,null,null,null,null,"",null,null,"UCANR Local Programs ",null,"UCANR Local Programs","AR06046301",null,"CAESFOOD SCIMICRO ANAEROBIC ASSAY SVCS ",null,"CAESFOOD SCIMICRO ANAEROBIC ASSAY SVCS","200537",null,"Allocated Benefits ",null,"Allocated Benefits"]
[null,null,"Informatics and GIS Program F ",null,"Informatics and GIS Program F",null,null,"Summer Session Fees D ",null,"Summer Session Fees D",null,null,null,null,null,null,null,null,null,null,null,null,null,null,null,null,null,"",null,null,"Water Resources C ",null,"Water Resources C","AR06046401",null,"CAESCOMMUNICATIONS UNIT ",null,"CAESCOMMUNICATIONS UNIT","200538",null,"Faculty Support ",null,"Faculty Support"]
["9924211",null,"Informatics and GIS Program ",null,"Informatics and GIS Program","10500",null,"Summer Sessions Income 20290 ",null,"Summer Sessions Income 20290",null,null,null,null,null,null,null,null,null,null,null,null,null,null,null,null,null,"","WTR",null,"Water Resources ",null,"Water Resources","AR06046501",null,"VETMVETERINARY CTR FOR CLINICAL TRIALS ",null,"VETMVETERINARY CTR FOR CLINICAL TRIALS","200539",null,"Postage ",null,"Postage"]
[null,null,"Community Nutrition and Health E ",null,"Community Nutrition and Health E","10501",null,"Summer Sessions Abroad 20291 ",null,"Summer Sessions Abroad 20291",null,null,null,null,null,null,null,null,null,null,null,null,null,null,null,null,null,"",null,null,"EIPD B ",null,"EIPD B","AR06046701",null,"SOM CVRI RECHARGE INSTITUTE SVCS ",null,"SOM CVRI RECHARGE INSTITUTE SVCS","200540",null,"Freight Management ",null,"Freight Management"]
[null,null,"Community Nutrition and Health F ",null,"Community Nutrition and Health F",null,null,"University Extension Fees C ",null,"University Extension Fees C",null,null,null,null,null,null,null,null,null,null,null,null,null,null,null,null,null,"","IPM",null,"Endemic and Invasive Pest Management ",null,"Endemic and Invasive Pest Management","AR06046801",null,"CAES FARM MANAGEMENT SERVICES ",null,"CAES FARM MANAGEMENT SERVICES","200541",null,"Accident Claims and Reimbursements ",null,"Accident Claims and Reimbursements"]
["9924261",null,"Community Nutrition and Health ",null,"Community Nutrition and Health",null,null,"University Extension Fees D ",null,"University Extension Fees D",null,null,null,null,null,null,null,null,null,null,null,null,null,null,null,null,null,"",null,null,"Sustainable Food Systems C ",null,"Sustainable Food Systems C","AR06047101",null,"CAES FOOD ANALYSIS EXTRACTION SVCS ",null,"CAES FOOD ANALYSIS EXTRACTION SVCS","200542",null,"Bindery Services ",null,"Bindery Services"]
["9924262",null,"Master Food Preserver Program ",null,"Master Food Preserver Program","10700",null,"University Ext Activity Campuswide 20087 ",null,"University Ext Activity Campuswide 20087",null,null,null,null,null,null,null,null,null,null,null,null,null,null,null,null,null,"","APS",null,"Animal Production Systems ",null,"Animal Production Systems","AR06047301",null,"CAES ARMSTRONG FIELD RATE ",null,"CAES ARMSTRONG FIELD RATE","200543",null,"Equipment Rentals ",null,"Equipment Rentals"]
[null,null,"Nutrition Policy Institute E ",null,"Nutrition Policy Institute E","10701",null,"UCDE Operational Fund 20300 ",null,"UCDE Operational Fund 20300",null,null,null,null,null,null,null,null,null,null,null,null,null,null,null,null,null,"","PPS",null,"Plant Production Systems ",null,"Plant Production Systems","AR060ATAHA",null,"ATAHA SUB ACCOUNT METABOL ",null,"ATAHA SUB ACCOUNT METABOL","200544",null,"Dept Owned Vehicles ",null,"Dept Owned Vehicles"]
[null,null,"Nutrition Policy Institute F ",null,"Nutrition Policy Institute F","10703",null,"UCDE Special Purpose Fund 20306 ",null,"UCDE Special Purpose Fund 20306",null,null,null,null,null,null,null,null,null,null,null,null,null,null,null,null,null,"",null,null,"Sustainable Natural Ecosystems C ",null,"Sustainable Natural Ecosystems C","AR06120101",null,"CAES PLANT SCIENCES IT SVCS ",null,"CAES PLANT SCIENCES IT SVCS","200545",null,"Design Services ",null,"Design Services"]
["9924301",null,"Nutrition Policy Institute ",null,"Nutrition Policy Institute","10704",null,"UCDE Statewide Development Fund 20307 ",null,"UCDE Statewide Development Fund 20307",null,null,null,null,null,null,null,null,null,null,null,null,null,null,null,null,null,"","FAF",null,"Forestry and Fire ",null,"Forestry and Fire","AR06120501",null,"CAES ETHYLENE SHOT SERVICES ",null,"CAES ETHYLENE SHOT SERVICES","200546",null,"Production Services ",null,"Production Services"]
[null,null,"4H Youth Development Program E ",null,"4H Youth Development Program E","10705",null,"UNEX Special Program 20308 ",null,"UNEX Special Program 20308",null,null,null,null,null,null,null,null,null,null,null,null,null,null,null,null,null,"","WLS",null,"Working Landscapes ",null,"Working Landscapes","AR06120801",null,"CAESFOOD SAFETY MEASUREMNT FAC FSMF ",null,"CAESFOOD SAFETY MEASUREMNT FAC FSMF","200547",null,"Equipment Repair and Maintenance ",null,"Equipment Repair and Maintenance"]
[null,null,"4H Youth Development Program F ",null,"4H Youth Development Program F","10706",null,"Univ Wide UNEX Reserves 20310 ",null,"Univ Wide UNEX Reserves 20310",null,null,null,null,null,null,null,null,null,null,null,null,null,null,null,null,null,"",null,null,"Healthy families and Communities C ",null,"Healthy families and Communities C","AR06210101",null,"UWP AREA 3 WRITING INSTRUCTION SERVICES ",null,"UWP AREA 3 WRITING INSTRUCTION SERVICES","200548",null,"Event Mangagment and Services ",null,"Event Mangagment and Services"]
["9924361",null,"4H Youth Development Program ",null,"4H Youth Development Program","10707",null,"UCDE Rates 20329 20325 ",null,"UCDE Rates 20329 20325",null,null,null,null,null,null,null,null,null,null,null,null,null,null,null,null,null,"","NUT",null,"Nutrition ",null,"Nutrition","AR06225001",null,"VET MED VIDEOTAPE DISTR INCOME ",null,"VET MED VIDEOTAPE DISTR INCOME","200549",null,"Fundraising ",null,"Fundraising"]
[null,null,"California Inst for Water Resources E ",null,"California Inst for Water Resources E","10708",null,"UNEX Campus ICR Transfers 20397 ",null,"UNEX Campus ICR Transfers 20397",null,null,null,null,null,null,null,null,null,null,null,null,null,null,null,null,null,"","YCD",null,"Youth and Community Development ",null,"Youth and Community Development","AR06225101",null,"VET MED CCAH VET SVCS VARIOUS COUNTIES ",null,"VET MED CCAH VET SVCS VARIOUS COUNTIES","200550",null,"Formatting Services ",null,"Formatting Services"]
[null,null,"California Inst for Water Resources F ",null,"California Inst for Water Resources F","10709",null,"VM Extension ",null,"VM Extension",null,null,null,null,null,null,null,null,null,null,null,null,null,null,null,null,null,"",null,null,"Administrative Programs ",null,"Administrative Programs","AR06243201",null,"VM POULTRYMED LABORATORY SERVICES ",null,"VM POULTRYMED LABORATORY SERVICES","200551",null,"Outside Vendor Services ",null,"Outside Vendor Services"]
["9924401",null,"California Inst for Water Resources ",null,"California Inst for Water Resources",null,null,"Federal ContractandGrant ICR C ",null,"Federal ContractandGrant ICR C",null,null,null,null,null,null,null,null,null,null,null,null,null,null,null,null,null,"",null,null,"FOA Programs ",null,"FOA Programs","AR06243301",null,"VM PMI ISOLATION DETECTION SVCS ",null,"VM PMI ISOLATION DETECTION SVCS","200552",null,"Copy Services ",null,"Copy Services"]
[null,null,"UC Master Gardener Program E ",null,"UC Master Gardener Program E",null,null,"Federal ContractandGrant ICR D ",null,"Federal ContractandGrant ICR D",null,null,null,null,null,null,null,null,null,null,null,null,null,null,null,null,null,"","MSC",null,"Mission Continuity ",null,"Mission Continuity","AR06243401",null,"VM BIOANALYTICAL RESEARCH CORE SVCS ",null,"VM BIOANALYTICAL RESEARCH CORE SVCS","200553",null,"Disposal Services ",null,"Disposal Services"]
[null,null,"UC Master Gardener Program F ",null,"UC Master Gardener Program F","10950",null,"Fed ContractandGrant OH 69750 ",null,"Fed ContractandGrant OH 69750",null,null,null,null,null,null,null,null,null,null,null,null,null,null,null,null,null,"",null,null,"Undergraduate Admissions ",null,"Undergraduate Admissions","AR06243501",null,"VM AQUATIC TOXICOLOGY LAB ",null,"VM AQUATIC TOXICOLOGY LAB","200554",null,"Document Retention ",null,"Document Retention"]
["9924461",null,"UC Master Gardener Program ",null,"UC Master Gardener Program","10951",null,"PreOffTheTop Garamendi ICR 69753 ",null,"PreOffTheTop Garamendi ICR 69753",null,null,null,null,null,null,null,null,null,null,null,null,null,null,null,null,null,"","HOR",null,"Holistic Readers ",null,"Holistic Readers","AR06243601",null,"VM LECTURE HALL MEETING ROOM RATES ",null,"VM LECTURE HALL MEETING ROOM RATES","200556",null,"Flow Through Expenses ",null,"Flow Through Expenses"]
[null,null,"UC Organic Agriculture Institute E ",null,"UC Organic Agriculture Institute E",null,null,"Auxiliary Enterprises ",null,"Auxiliary Enterprises",null,null,null,null,null,null,null,null,null,null,null,null,null,null,null,null,null,"","WEC",null,"Welcome Center ",null,"Welcome Center","AR06243701",null,"VM VET GENETICS LAB RESEARCH SERVICES ",null,"VM VET GENETICS LAB RESEARCH SERVICES","200557",null,"Student Services ",null,"Student Services"]
[null,null,"UC Organic Agriculture Institute F ",null,"UC Organic Agriculture Institute F",null,null,"HousingandDining ",null,"HousingandDining",null,null,null,null,null,null,null,null,null,null,null,null,null,null,null,null,null,"",null,null,"Undergraduate Recruitment ",null,"Undergraduate Recruitment","AR06243901",null,"VM MOL BIOSCI FORTE BIO OCTET SERVICES ",null,"VM MOL BIOSCI FORTE BIO OCTET SERVICES","200558",null,"Grad Student Support ",null,"Grad Student Support"]
["9924501",null,"UC Organic Agriculture Institute ",null,"UC Organic Agriculture Institute","11000",null,"HousingandDining 70000 ",null,"HousingandDining 70000",null,null,null,null,null,null,null,null,null,null,null,null,null,null,null,null,null,"","C01",null,"African American Recruitment ",null,"African American Recruitment","AR06244001",null,"VM MOLECULAR BIOSCIENCES SPF PET CA ",null,"VM MOLECULAR BIOSCIENCES SPF PET CA","200559",null,"Grad Group Support ",null,"Grad Group Support"]
[null,null,"UC Integrated Pest Management Program E ",null,"UC Integrated Pest Management Program E","11001",null,"VCSA Housing P3 74161 ",null,"VCSA Housing P3 74161",null,null,null,null,null,null,null,null,null,null,null,null,null,null,null,null,null,"","C02",null,"HSI Recruitment ",null,"HSI Recruitment","AR06244301",null,"VM CADMS PROGRAMMINGandDATA ANALYSIS ",null,"VM CADMS PROGRAMMINGandDATA ANALYSIS","200560",null,"Resident Research ",null,"Resident Research"]
[null,null,"UC Integrated Pest Management Program F ",null,"UC Integrated Pest Management Program F","11002",null,"UC Housing System Reserves 70300 ",null,"UC Housing System Reserves 70300",null,null,null,null,null,null,null,null,null,null,null,null,null,null,null,null,null,"","C03",null,"Native American Recruitment ",null,"Native American Recruitment","AR06246001",null,"VETERINARY GENETICS LABORATORY INC ",null,"VETERINARY GENETICS LABORATORY INC","200561",null,"Lab Support ",null,"Lab Support"]
["9924561",null,"UC Integrated Pest Management Program ",null,"UC Integrated Pest Management Program","11003",null,"UCOP Campus Housing Assistance 70301 ",null,"UCOP Campus Housing Assistance 70301",null,null,null,null,null,null,null,null,null,null,null,null,null,null,null,null,null,"","C04",null,"Recruitment Yield ",null,"Recruitment Yield","AR06246701",null,"VM PMIMARINE MAMMAL IMMUNOLOGY INC ",null,"VM PMIMARINE MAMMAL IMMUNOLOGY INC","200562",null,"Safety Expenses ",null,"Safety Expenses"]
["9924562",null,"Western IPM Center ",null,"Western IPM Center","11004",null,"Bodega Residence Hall 70160 ",null,"Bodega Residence Hall 70160",null,null,null,null,null,null,null,null,null,null,null,null,null,null,null,null,null,"",null,null,"Auxiliary Programs ",null,"Auxiliary Programs","AR06247601",null,"VM VECTORBORNE DISEASE RESEARCH ",null,"VM VECTORBORNE DISEASE RESEARCH","200563",null,"Equipment ",null,"Equipment"]
[null,null,"UC Sustainable Ag Research and Ed Prog E ",null,"UC Sustainable Ag Research and Ed Prog E","11005",null,"VM TeachingandResearch Center Housing Income 73240 ",null,"VM TeachingandResearch Center Housing Income 73240",null,null,null,null,null,null,null,null,null,null,null,null,null,null,null,null,null,"",null,null,"Building Complexes ",null,"Building Complexes","AR06248101",null,"VM OXIDATIVE STRESS DIAGNOSTIC LAB ",null,"VM OXIDATIVE STRESS DIAGNOSTIC LAB","200564",null,"Cloud Computing ",null,"Cloud Computing"]
[null,null,"UC Sustainable Ag Research and Ed Prog F ",null,"UC Sustainable Ag Research and Ed Prog F","11006",null,"Commissary Services 73171 ",null,"Commissary Services 73171",null,null,null,null,null,null,null,null,null,null,null,null,null,null,null,null,null,"","3AS",null,"3rd and A st ",null,"3rd and A st","AR06248501",null,"OWCN OIL SPILL RESPONSE COST RECOVERY ",null,"OWCN OIL SPILL RESPONSE COST RECOVERY","200565",null,"Infrastructure ",null,"Infrastructure"]
["9924611",null,"UC Sustainable Ag Research and Ed Prog ",null,"UC Sustainable Ag Research and Ed Prog",null,null,"University Airport ",null,"University Airport",null,null,null,null,null,null,null,null,null,null,null,null,null,null,null,null,null,"","8WK",null,"8th and Wake ",null,"8th and Wake","AR06252501",null,"VM EQUINE RES LAB INCOME ",null,"VM EQUINE RES LAB INCOME","200566",null,"Telecommunications ",null,"Telecommunications"]
[null,null,"Elkus Ranch Youth and Deve Center E ",null,"Elkus Ranch Youth and Deve Center E","11010",null,"University Airport 73300 ",null,"University Airport 73300",null,null,null,null,null,null,null,null,null,null,null,null,null,null,null,null,null,"","AGV",null,"Aggie Village ",null,"Aggie Village","AR06252601",null,"VM CEH CARE OF ANIMAL AGREEMENT ",null,"VM CEH CARE OF ANIMAL AGREEMENT","200567",null,"Cell Phones ",null,"Cell Phones"]
[null,null,"Elkus Ranch Youth and Dev Center F ",null,"Elkus Ranch Youth and Dev Center F",null,null,"ASUCD ",null,"ASUCD",null,null,null,null,null,null,null,null,null,null,null,null,null,null,null,null,null,"","ASQ",null,"Aggie Square ",null,"Aggie Square","AR06252901",null,"VM MEDICINE EPIDEMIOLOGY ",null,"VM MEDICINE EPIDEMIOLOGY","200568",null,"NAMS ",null,"NAMS"]
["9924711",null,"Elkus Ranch Youth and Developmet Center ",null,"Elkus Ranch Youth and Developmet Center","11020",null,"ASUCD Aux Enterprises 74008 ",null,"ASUCD Aux Enterprises 74008",null,null,null,null,null,null,null,null,null,null,null,null,null,null,null,null,null,"","BAG",null,"Baggins ",null,"Baggins","AR06253001",null,"VET MED MEDIA ROOM INCOME ",null,"VET MED MEDIA ROOM INCOME","200569",null,"Assessments ",null,"Assessments"]
[null,null,"ANR Fire Network E ",null,"ANR Fire Network E","11021",null,"ASUCD Unitrans Operations 74009 ",null,"ASUCD Unitrans Operations 74009",null,null,null,null,null,null,null,null,null,null,null,null,null,null,null,null,null,"","CUR",null,"Cuarto ",null,"Cuarto","AR06253701",null,"VET MED EQUINE INFECTIOUS DISEASE LAB ",null,"VET MED EQUINE INFECTIOUS DISEASE LAB","200570",null,"Printing ",null,"Printing"]
[null,null,"ANR Fire Network F ",null,"ANR Fire Network F",null,null,"TransportationandParking ",null,"TransportationandParking",null,null,null,null,null,null,null,null,null,null,null,null,null,null,null,null,null,"","DBR",null,"Dubach Ranch ",null,"Dubach Ranch","AR06253801",null,"VM MARINE ECOSYSTEM HEALTH LAB ",null,"VM MARINE ECOSYSTEM HEALTH LAB","200571",null,"Cloud Services ",null,"Cloud Services"]
["9924811",null,"ANR Fire Network ",null,"ANR Fire Network","11030",null,"Parking Operations 72160 ",null,"Parking Operations 72160",null,null,null,null,null,null,null,null,null,null,null,null,null,null,null,null,null,"","HMR",null,"Hamel Ranch ",null,"Hamel Ranch","AR06420001",null,"DRAMATIC ART PRODUCTION INC ",null,"DRAMATIC ART PRODUCTION INC","200572",null,"Building ",null,"Building"]
[null,null,"Assoc Vice President and Bus Op Office ",null,"Assoc Vice President and Bus Op Office","11031",null,"Bicycle Operations 72100 ",null,"Bicycle Operations 72100",null,null,null,null,null,null,null,null,null,null,null,null,null,null,null,null,null,"","HYP",null,"Hyatt Place ",null,"Hyatt Place","AR06425001",null,"SVM SPECIAL CLINICAL PROCEDURES LAB ",null,"SVM SPECIAL CLINICAL PROCEDURES LAB","200573",null,"Indirect Cost Emerg Med Svcs ",null,"Indirect Cost Emerg Med Svcs"]
[null,null,"AVP and Bus Ops Immediate Office D ",null,"AVP and Bus Ops Immediate Office D",null,null,"University Stores ",null,"University Stores",null,null,null,null,null,null,null,null,null,null,null,null,null,null,null,null,null,"","MAR",null,"Mars Greenhouses ",null,"Mars Greenhouses","AR06425004",null,"VM Urinary Stone Analysis Lab ",null,"VM Urinary Stone Analysis Lab","200574",null,"Indirect Cost General Admin ",null,"Indirect Cost General Admin"]
[null,null,"AVP and Bus Ops Immediate Office E ",null,"AVP and Bus Ops Immediate Office E","11040",null,"Retail Major Maintenance 70522 ",null,"Retail Major Maintenance 70522",null,null,null,null,null,null,null,null,null,null,null,null,null,null,null,null,null,"","MCS",null,"Miscellaneous Location ",null,"Miscellaneous Location","AR06425005",null,"VM PCR LAB ",null,"VM PCR LAB","200575",null,"Indirect Cost Information Tech ",null,"Indirect Cost Information Tech"]
[null,null,"AVP and Bus Ops Immediate Office F ",null,"AVP and Bus Ops Immediate Office F","11041",null,"UCD Bookstore Equitable Access Fund 73200 ",null,"UCD Bookstore Equitable Access Fund 73200",null,null,null,null,null,null,null,null,null,null,null,null,null,null,null,null,null,"","MRC",null,"Mars Corporate ",null,"Mars Corporate","AR06425301",null,"VM CBRCS SEAHORSE RECHARGE SERVICES ",null,"VM CBRCS SEAHORSE RECHARGE SERVICES","200576",null,"Indirect Cost Logistics ",null,"Indirect Cost Logistics"]
["9931111",null,"AVPBO Immediate Office ",null,"AVPBO Immediate Office","11042",null,"Retail Services 73160 ",null,"Retail Services 73160",null,null,null,null,null,null,null,null,null,null,null,null,null,null,null,null,null,"","PGV",null,"Primero Grove ",null,"Primero Grove","AR06425401",null,"VM AMINO ACID ANALYSIS LAB ",null,"VM AMINO ACID ANALYSIS LAB","200577",null,"Indirect Cost Public Info Office ",null,"Indirect Cost Public Info Office"]
["9931112",null,"AVPBO Contingency Fund ",null,"AVPBO Contingency Fund","11043",null,"UC Davis Stores 72130 ",null,"UC Davis Stores 72130",null,null,null,null,null,null,null,null,null,null,null,null,null,null,null,null,null,"","RUS",null,"Russell Ranch ",null,"Russell Ranch","AR06425501",null,"VM CENT FOR COMPANION ANIM HLTH GEN PROC ",null,"VM CENT FOR COMPANION ANIM HLTH GEN PROC","200578",null,"Indirect Cost Telecom ",null,"Indirect Cost Telecom"]
["9931113",null,"Real Estate and Facilities Development ",null,"Real Estate and Facilities Development",null,null,"Athletics ",null,"Athletics",null,null,null,null,null,null,null,null,null,null,null,null,null,null,null,null,null,"","SEG",null,"Segundo ",null,"Segundo","AR06425601",null,"VMCCAH SHELTER MED PROF CLINICAL PROG ",null,"VMCCAH SHELTER MED PROF CLINICAL PROG","200579",null,"Direct Cost Community Educ ",null,"Direct Cost Community Educ"]
[null,null,"Controllers Office D ",null,"Controllers Office D","11050",null,"Intercollegiate Athletics 64400 ",null,"Intercollegiate Athletics 64400",null,null,null,null,null,null,null,null,null,null,null,null,null,null,null,null,null,"","SLN",null,"Solano ",null,"Solano","AR06425801",null,"VETERINARY GENETICS HYPP TESTING ",null,"VETERINARY GENETICS HYPP TESTING","200580",null,"Direct Cost Emerg Med Svcs ",null,"Direct Cost Emerg Med Svcs"]
[null,null,"Controllers Imm Office E ",null,"Controllers Imm Office E","11051",null,"ICA Sports Camp 64404 ",null,"ICA Sports Camp 64404",null,null,null,null,null,null,null,null,null,null,null,null,null,null,null,null,null,"","SNC",null,"Sierra Nevada College ",null,"Sierra Nevada College","AR06426801",null,"CBS CNS VIRAL FACILITY SERVICES ",null,"CBS CNS VIRAL FACILITY SERVICES","200581",null,"Direct Cost Facilities ",null,"Direct Cost Facilities"]
[null,null,"Controllers Imm Office F ",null,"Controllers Imm Office F",null,null,"SalesandServices Other ",null,"SalesandServices Other",null,null,null,null,null,null,null,null,null,null,null,null,null,null,null,null,null,"","TCN",null,"Tercero North ",null,"Tercero North","AR06428001",null,"VM ME MASTITIS QC TESTING SERVICES ",null,"VM ME MASTITIS QC TESTING SERVICES","200582",null,"Direct Cost Control ",null,"Direct Cost Control"]
["9932111",null,"Controllers Imm Office ",null,"Controllers Imm Office",null,null,"Medical Center Funds ",null,"Medical Center Funds",null,null,null,null,null,null,null,null,null,null,null,null,null,null,null,null,null,"","TCP",null,"Tri Coops ",null,"Tri Coops","AR06428101",null,"VM VIRC INDUSTRY SERVICES ",null,"VM VIRC INDUSTRY SERVICES","200583",null,"Direct Cost Fleet ",null,"Direct Cost Fleet"]
[null,null,"Financial Services E ",null,"Financial Services E","12000",null,"UCDMC Hospital Income 63000 ",null,"UCDMC Hospital Income 63000",null,null,null,null,null,null,null,null,null,null,null,null,null,null,null,null,null,"","TCS",null,"Tercero South ",null,"Tercero South","AR06428201",null,"CADMS Training and Tech Services ",null,"CADMS Training and Tech Services","200584",null,"Direct Cost Hazmat Response ",null,"Direct Cost Hazmat Response"]
[null,null,"Financial Services F ",null,"Financial Services F","12001",null,"UCDMC 63001 ",null,"UCDMC 63001",null,null,null,null,null,null,null,null,null,null,null,null,null,null,null,null,null,"","WVG",null,"West Village ",null,"West Village","AR06428202",null,"Research Park Vivarium ",null,"Research Park Vivarium","200585",null,"Direct Cost Training ",null,"Direct Cost Training"]
["9932211",null,"Financial Services ",null,"Financial Services","12002",null,"UCDMC Volunteers Income Fund 63040 ",null,"UCDMC Volunteers Income Fund 63040",null,null,null,null,null,null,null,null,null,null,null,null,null,null,null,null,null,"",null,null,"College Specific Programs ",null,"College Specific Programs","AR06428401",null,"VM Urinary Stone Nanosight EQ Use Service ",null,"VM Urinary Stone Nanosight EQ Use Service","200586",null,"FM Asset Management ICAMP DM ",null,"FM Asset Management ICAMP DM"]
[null,null,"Policies Compl and Prog Agreements E ",null,"Policies Compl and Prog Agreements E","12003",null,"SMC UCD Clinical Teaching Support 63990 ",null,"SMC UCD Clinical Teaching Support 63990",null,null,null,null,null,null,null,null,null,null,null,null,null,null,null,null,null,"",null,null,"Athletic Programs ",null,"Athletic Programs","AR06428601",null,"CADMS Bioportal ",null,"CADMS Bioportal","200587",null,"FM UTIL ICAMP DM ",null,"FM UTIL ICAMP DM"]
[null,null,"Policies Compl and Prog Agreements F ",null,"Policies Compl and Prog Agreements F","12004",null,"SalesandServices Hospitals Summary 63999 ",null,"SalesandServices Hospitals Summary 63999",null,null,null,null,null,null,null,null,null,null,null,null,null,null,null,null,null,"","SDD",null,"Development Discretionary ",null,"Development Discretionary","AR06428901",null,"VSR Pharmacology Research Core ",null,"VSR Pharmacology Research Core","200588",null,"FM DM FY21 AB94 ",null,"FM DM FY21 AB94"]
["9932311",null,"Policies Compl and Prog Agreements ",null,"Policies Compl and Prog Agreements","12005",null,"UCDMC Vocational Rehabilitation Income 66107 ",null,"UCDMC Vocational Rehabilitation Income 66107",null,null,null,null,null,null,null,null,null,null,null,null,null,null,null,null,null,"","SDG",null,"Devlopment Goals ",null,"Devlopment Goals","AR06430301",null,"CNL XRAY FLUORESCENCE SERVICES ",null,"CNL XRAY FLUORESCENCE SERVICES","200589",null,"Museum Curation ",null,"Museum Curation"]
[null,null,"Risk and Safety Services E ",null,"Risk and Safety Services E",null,null,"VMTH Clinical Funds ",null,"VMTH Clinical Funds",null,null,null,null,null,null,null,null,null,null,null,null,null,null,null,null,null,"",null,null,"College of Biological Sciences Programs ",null,"College of Biological Sciences Programs","AR06430501",null,"CNL CYCLOTRON OPERATIONS INCOME ",null,"CNL CYCLOTRON OPERATIONS INCOME","200590",null,"Base Staff ",null,"Base Staff"]
[null,null,"Risk and Safety Services F ",null,"Risk and Safety Services F","12010",null,"VMTH Income 64100 ",null,"VMTH Income 64100",null,null,null,null,null,null,null,null,null,null,null,null,null,null,null,null,null,"","BEO",null,"Educational Enrichment Outreach EEOP ",null,"Educational Enrichment Outreach EEOP","AR06430701",null,"CNL ELECTRICAL MECHANICAL SHOP SERVICE ",null,"CNL ELECTRICAL MECHANICAL SHOP SERVICE","200591",null,"Nursing Expenses ",null,"Nursing Expenses"]
["9932411",null,"Risk and Safety Services ",null,"Risk and Safety Services","12011",null,"VMTH San Diego 64101 ",null,"VMTH San Diego 64101",null,null,null,null,null,null,null,null,null,null,null,null,null,null,null,null,null,"",null,null,"Continuing and Professional Education Programs ",null,"Continuing and Professional Education Programs","AR06430702",null,"CNL MECHANICAL SHOP SERVICE ",null,"CNL MECHANICAL SHOP SERVICE","200592",null,"Call Agreement ",null,"Call Agreement"]
[null,null,"Business Operations Center D ",null,"Business Operations Center D","12012",null,"Vet Med Equine Clinical Income ",null,"Vet Med Equine Clinical Income",null,null,null,null,null,null,null,null,null,null,null,null,null,null,null,null,null,"","ACC",null,"CPE Accounting Program ",null,"CPE Accounting Program","AR06430703",null,"VM PHR Intracytoplasmic Injection Lab ",null,"VM PHR Intracytoplasmic Injection Lab","200593",null,"CFTE Agreement ",null,"CFTE Agreement"]
[null,null,"Business Operations Center E ",null,"Business Operations Center E",null,null,"SalesandServices D ",null,"SalesandServices D",null,null,null,null,null,null,null,null,null,null,null,null,null,null,null,null,null,"","ADS",null,"CPE Autism Program ",null,"CPE Autism Program","AR06430801",null,"CTR FOR PLASMA MASS SPECTROMETRY ",null,"CTR FOR PLASMA MASS SPECTROMETRY","200594",null,"Agreements ",null,"Agreements"]
[null,null,"Business Operations Center F ",null,"Business Operations Center F","12100",null,"Sales and Services Rate Based ",null,"Sales and Services Rate Based",null,null,null,null,null,null,null,null,null,null,null,null,null,null,null,null,null,"","AES",null,"CPE Advanced Estimating Progam ",null,"CPE Advanced Estimating Progam","AR06433301",null,"ENGR MAT PERM LAB TALYSCAN 250 ",null,"ENGR MAT PERM LAB TALYSCAN 250","200595",null,"Cost Recovery ",null,"Cost Recovery"]
["9933111",null,"Business Operations Center ",null,"Business Operations Center","12101",null,"Sales and Services NonRate Activities ",null,"Sales and Services NonRate Activities",null,null,null,null,null,null,null,null,null,null,null,null,null,null,null,null,null,"","AET",null,"CPE Academic Engagement Track Program ",null,"CPE Academic Engagement Track Program","AR06433401",null,"ENGR WATERENERGY EFFICIENCY CTR SVC ",null,"ENGR WATERENERGY EFFICIENCY CTR SVC","200596",null,"Academic Senate Operations ",null,"Academic Senate Operations"]
[null,null,"Facilities Mgmt D ",null,"Facilities Mgmt D","12102",null,"California SW 4H Clubs 66102 ",null,"California SW 4H Clubs 66102",null,null,null,null,null,null,null,null,null,null,null,null,null,null,null,null,null,"","AKW",null,"CPE AI for Knowledge Workers ",null,"CPE AI for Knowledge Workers","AR06433501",null,"ENGR CSTEM PROFESSIONAL DEVELOPMENT ",null,"ENGR CSTEM PROFESSIONAL DEVELOPMENT","200597",null,"Academic Federation Operations ",null,"Academic Federation Operations"]
[null,null,"Facilities Management E ",null,"Facilities Management E","12104",null,"Summer Orientation 66520 ",null,"Summer Orientation 66520",null,null,null,null,null,null,null,null,null,null,null,null,null,null,null,null,null,"","BBA",null,"CPE Business Analysis Program ",null,"CPE Business Analysis Program","AR06433801",null,"ENGR COE IT STAFFING ",null,"ENGR COE IT STAFFING","200598",null,"On Campus Meeting Expenses ",null,"On Campus Meeting Expenses"]
[null,null,"Facilities Management F ",null,"Facilities Management F","12105",null,"Cosmos Program 66525 ",null,"Cosmos Program 66525",null,null,null,null,null,null,null,null,null,null,null,null,null,null,null,null,null,"","BQY",null,"CPE Beer Quality Program ",null,"CPE Beer Quality Program","AR06433901",null,"ENGR DISTANCE LEARNING PROGRAM ",null,"ENGR DISTANCE LEARNING PROGRAM","200599",null,"Off Campus Meeting Expenses ",null,"Off Campus Meeting Expenses"]
["9934111",null,"Facilities Management ",null,"Facilities Management","12106",null,"Inventory Clearing Rate Based ",null,"Inventory Clearing Rate Based",null,null,null,null,null,null,null,null,null,null,null,null,null,null,null,null,null,"","BRD",null,"CPE Online Masters Brewers Program ",null,"CPE Online Masters Brewers Program","AR06435001",null,"NUCLEAR MAG RESONANCE FAC INC ",null,"NUCLEAR MAG RESONANCE FAC INC","200600",null,"Grad Studies Graduate Group Administrative Support ",null,"Grad Studies Graduate Group Administrative Support"]
[null,null,"ANR Human Resources D ",null,"ANR Human Resources D","12107",null,"CAHFS Diagnostic Testing ",null,"CAHFS Diagnostic Testing",null,null,null,null,null,null,null,null,null,null,null,null,null,null,null,null,null,"","BRP",null,"CPE Masters Brewers Program ",null,"CPE Masters Brewers Program","AR06436001",null,"CONTROLLED ENVIRON FACILITY INCOME ",null,"CONTROLLED ENVIRON FACILITY INCOME","200602",null,"Grad Studies Graduate Program Travel Recruit Funding ",null,"Grad Studies Graduate Program Travel Recruit Funding"]
[null,null,"ANR Human Resources E ",null,"ANR Human Resources E",null,null,"Program Income ",null,"Program Income",null,null,null,null,null,null,null,null,null,null,null,null,null,null,null,null,null,"","BRS",null,"CPE Brewing Short Courses ",null,"CPE Brewing Short Courses","AR06437001",null,"LAW ATTORNEY FEES ",null,"LAW ATTORNEY FEES","200603",null,"DVAR Gift Processing Long Term Holding ",null,"DVAR Gift Processing Long Term Holding"]
[null,null,"ANR Human Resources F ",null,"ANR Human Resources F","12110",null,"PRIMATE CENTER PERDIEM INCOME ",null,"PRIMATE CENTER PERDIEM INCOME",null,null,null,null,null,null,null,null,null,null,null,null,null,null,null,null,null,"","CCH",null,"CPE Coaching Program ",null,"CPE Coaching Program","AR06437101",null,"LAW MISCELLANEOUS JOURNAL ",null,"LAW MISCELLANEOUS JOURNAL","200604",null,"DVAR Gift Processing Neutral ",null,"DVAR Gift Processing Neutral"]
["9935111",null,"ANR Human Resources ",null,"ANR Human Resources","12111",null,"PRIMATE CENTER CORE SERVICES ",null,"PRIMATE CENTER CORE SERVICES",null,null,null,null,null,null,null,null,null,null,null,null,null,null,null,null,null,"","CCP",null,"CPE Communication and Culture Program ",null,"CPE Communication and Culture Program","AR06437501",null,"LAW REVIEW INCOME ",null,"LAW REVIEW INCOME","200605",null,"DVAR Gift Processing Cashier Depository ",null,"DVAR Gift Processing Cashier Depository"]
["9935112",null,"ANR Learning and Development ",null,"ANR Learning and Development","12112",null,"PRIMATE CENTER PRIMATE SERVICES ",null,"PRIMATE CENTER PRIMATE SERVICES",null,null,null,null,null,null,null,null,null,null,null,null,null,null,null,null,null,"","CEA",null,"CPE Controlled Environment Agriculture Program ",null,"CPE Controlled Environment Agriculture Program","AR06438201",null,"CHMS ELECTRON MICROSCOPY ",null,"CHMS ELECTRON MICROSCOPY","200606",null,"DVAR Gift Processing Matching Gifts ",null,"DVAR Gift Processing Matching Gifts"]
["9951144",null,"Provision 44 ",null,"Provision 44","12113",null,"PRIMATE CENTER ANIMAL SALES ",null,"PRIMATE CENTER ANIMAL SALES",null,null,null,null,null,null,null,null,null,null,null,null,null,null,null,null,null,"","CGT",null,"CPE Cell and Gene Therapy Program ",null,"CPE Cell and Gene Therapy Program","AR06438501",null,"GEOLOGY EXP PETROLOGY MATR LAB ",null,"GEOLOGY EXP PETROLOGY MATR LAB","200607",null,"DVAR Gift Processing Online Giving Website ",null,"DVAR Gift Processing Online Giving Website"]
["9951162",null,"Provision 62 ",null,"Provision 62","12114",null,"PRIMATE CENTER INDIRECT COST RETURN ",null,"PRIMATE CENTER INDIRECT COST RETURN",null,null,null,null,null,null,null,null,null,null,null,null,null,null,null,null,null,"","CMK",null,"CPE Content Marketing Program ",null,"CPE Content Marketing Program","AR06438601",null,"GEOLOGY ISOTOPE LAB INCOME ",null,"GEOLOGY ISOTOPE LAB INCOME","200608",null,"DVAR Gift Processing Give Day ",null,"DVAR Gift Processing Give Day"]
["9951164",null,"Provision 64 ",null,"Provision 64","12115",null,"PRIMATE CENTER NUD ",null,"PRIMATE CENTER NUD",null,null,null,null,null,null,null,null,null,null,null,null,null,null,null,null,null,"","CML",null,"CPE Critical Medial Literacy for Global Competencies ",null,"CPE Critical Medial Literacy for Global Competencies","AR06438701",null,"GEOLOGY DEPARTMENTAL SERVICES ",null,"GEOLOGY DEPARTMENTAL SERVICES","200609",null,"DVAR Gift Processing Credit Card Gifts ",null,"DVAR Gift Processing Credit Card Gifts"]
[null,null,"Workplace Inclusion and Belonging D ",null,"Workplace Inclusion and Belonging D","12120",null,"Program Income Rates ",null,"Program Income Rates",null,null,null,null,null,null,null,null,null,null,null,null,null,null,null,null,null,"","CNE",null,"CPE Construction Estimating Program ",null,"CPE Construction Estimating Program","AR06438801",null,"GEOLOGY MICROPROBE SEM XRAY FAC ",null,"GEOLOGY MICROPROBE SEM XRAY FAC","200610",null,"EAOP Region 1 ",null,"EAOP Region 1"]
[null,null,"Workplace Inclusion and Belonging E ",null,"Workplace Inclusion and Belonging E",null,null,"Other Unrestricted C ",null,"Other Unrestricted C",null,null,null,null,null,null,null,null,null,null,null,null,null,null,null,null,null,"","CNM",null,"CPE Construction Management Program ",null,"CPE Construction Management Program","AR06439001",null,"HLTH SCI RESEARCH LABS INCOME ",null,"HLTH SCI RESEARCH LABS INCOME","200611",null,"EAOP Region 3 ",null,"EAOP Region 3"]
[null,null,"Workplace Inclusion and Belonging F ",null,"Workplace Inclusion and Belonging F",null,null,"Other Unrestricted CAAA ",null,"Other Unrestricted CAAA",null,null,null,null,null,null,null,null,null,null,null,null,null,null,null,null,null,"","CNT",null,"CPE Open Campus Concurrent Program ",null,"CPE Open Campus Concurrent Program","AR06439101",null,"MED HLTH SCI INSTRMT FAC INC ",null,"MED HLTH SCI INSTRMT FAC INC","200612",null,"EAOP Region 4 ",null,"EAOP Region 4"]
["9935121",null,"Workplace Inclusion and Belonging ",null,"Workplace Inclusion and Belonging","13C00",null,"CAAA Operations ",null,"CAAA Operations",null,null,null,null,null,null,null,null,null,null,null,null,null,null,null,null,null,"","CPU",null,"CPE Central Sterile Processing Program ",null,"CPE Central Sterile Processing Program","AR06439301",null,"PHYSICS TECHNICAL SUPPORT CENTER ",null,"PHYSICS TECHNICAL SUPPORT CENTER","200613",null,"EAOP Region 5 ",null,"EAOP Region 5"]
[null,null,"Resource Planning and Management D ",null,"Resource Planning and Management D",null,null,"Other Unrestricted Foundation ",null,"Other Unrestricted Foundation",null,null,null,null,null,null,null,null,null,null,null,null,null,null,null,null,null,"","CRP",null,"CPE Conflict Resolution Program ",null,"CPE Conflict Resolution Program","AR06449901",null,"POISON CONTROL INCOME ",null,"POISON CONTROL INCOME","200614",null,"EAOP Region 6 ",null,"EAOP Region 6"]
[null,null,"Resource Planning and Management E ",null,"Resource Planning and Management E","13F00",null,"Foundation Operations ",null,"Foundation Operations",null,null,null,null,null,null,null,null,null,null,null,null,null,null,null,null,null,"","CRT",null,"CPE Credit Services Program ",null,"CPE Credit Services Program","AR06457501",null,"STATISTICAL LAB INCOME ",null,"STATISTICAL LAB INCOME","200615",null,"EAOP Region 7 ",null,"EAOP Region 7"]
[null,null,"Resource Planning and Management F ",null,"Resource Planning and Management F",null,null,"Common Operating Fund Initiative COFI ",null,"Common Operating Fund Initiative COFI",null,null,null,null,null,null,null,null,null,null,null,null,null,null,null,null,null,"","CSA",null,"CPE CSA SIP CalOARS Program ",null,"CPE CSA SIP CalOARS Program","AR06463101",null,"VM COMPARATIVE PATHOLOGY LAB RATES ",null,"VM COMPARATIVE PATHOLOGY LAB RATES","200616",null,"Notary Authorization ",null,"Notary Authorization"]
["9936111",null,"Resource Planning and Management ",null,"Resource Planning and Management","13U00",null,"COFI University Common Funds 99100 ",null,"COFI University Common Funds 99100",null,null,null,null,null,null,null,null,null,null,null,null,null,null,null,null,null,"","CSM",null,"CPE APPP Customized Group Program ",null,"CPE APPP Customized Group Program","AR06463201",null,"VM ADVANCED IMAGING FACILITY SVCS ",null,"VM ADVANCED IMAGING FACILITY SVCS","200617",null,"EAOP Region 2 ",null,"EAOP Region 2"]
[null,null,"Contract and Grants D ",null,"Contract and Grants D","13U01",null,"COFI University Common Funds Development 99200 ",null,"COFI University Common Funds Development 99200",null,null,null,null,null,null,null,null,null,null,null,null,null,null,null,null,null,"","CSP",null,"CPE Computational Social Science Program ",null,"CPE Computational Social Science Program","AR06463301",null,"VM VIRTUAL MICROSCOPY SVCS ",null,"VM VIRTUAL MICROSCOPY SVCS","200618",null,"Grad Studies Graduate Group Chair AEF Support ",null,"Grad Studies Graduate Group Chair AEF Support"]
[null,null,"Contracts and Grants E ",null,"Contracts and Grants E","13U02",null,"COFI University Common Funds AES19900 99300 ",null,"COFI University Common Funds AES19900 99300",null,null,null,null,null,null,null,null,null,null,null,null,null,null,null,null,null,"","CTS",null,"CPE Customized Training Program ",null,"CPE Customized Training Program","AR06463501",null,"VM ANATOMY VET ORTHOPEDIC RES LAB ",null,"VM ANATOMY VET ORTHOPEDIC RES LAB","200619",null,"Middle School Outreach ",null,"Middle School Outreach"]
[null,null,"Contracts and Grants F ",null,"Contracts and Grants F",null,null,"Unrestricted Control Other ",null,"Unrestricted Control Other",null,null,null,null,null,null,null,null,null,null,null,null,null,null,null,null,null,"","DBG",null,"CPE Digital Badging Program ",null,"CPE Digital Badging Program","AR06465001",null,"VET MED TRC INCOME ",null,"VET MED TRC INCOME","200620",null,"Autoclave Maintenance ",null,"Autoclave Maintenance"]
["9937111",null,"Contracts and Grants ",null,"Contracts and Grants","13U10",null,"Unrestricted Campus Control Fund 00200 ",null,"Unrestricted Campus Control Fund 00200",null,null,null,null,null,null,null,null,null,null,null,null,null,null,null,null,null,"","DDP",null,"CPE Destination Davis Program Tokyo ",null,"CPE Destination Davis Program Tokyo","AR06470001",null,"CAES AN SCI LIVESTOCK MGMT INCOME ",null,"CAES AN SCI LIVESTOCK MGMT INCOME","200621",null,"Support Personnel ",null,"Support Personnel"]
[null,null,"Chief Information Office D ",null,"Chief Information Office D","99U99",null,"Error Clearing Fund ",null,"Error Clearing Fund",null,null,null,null,null,null,null,null,null,null,null,null,null,null,null,null,null,"","DEG",null,"CPE Degree Completion Program ",null,"CPE Degree Completion Program","AR06480001",null,"UNI LAB NURSERY SCHOOL INCOME ",null,"UNI LAB NURSERY SCHOOL INCOME","200622",null,"Subscriptions ",null,"Subscriptions"]
[null,null,"Chief Information Office E ",null,"Chief Information Office E",null,null,"Unrestricted General ",null,"Unrestricted General",null,null,null,null,null,null,null,null,null,null,null,null,null,null,null,null,null,"","DEN",null,"CPE Early Start Denver Model Program ",null,"CPE Early Start Denver Model Program","AR06482401",null,"MNRC Self Supporting Rate Radiation ",null,"MNRC Self Supporting Rate Radiation","200623",null,"Business Travel ",null,"Business Travel"]
[null,null,"Chief Information Office IT F ",null,"Chief Information Office IT F","13U20",null,"Unrestricted Campus Funds ",null,"Unrestricted Campus Funds",null,null,null,null,null,null,null,null,null,null,null,null,null,null,null,null,null,"","DEV",null,"CPE Educational Development Program ",null,"CPE Educational Development Program","AR06482402",null,"MNRC Self Supporting Rate Irradiation ",null,"MNRC Self Supporting Rate Irradiation","200624",null,"Staffing Agency ",null,"Staffing Agency"]
["9938111",null,"CIO IT Office ",null,"CIO IT Office","13U21",null,"Howard Hughes Medical Institute HHMI ",null,"Howard Hughes Medical Institute HHMI",null,null,null,null,null,null,null,null,null,null,null,null,null,null,null,null,null,"","DMS",null,"CPE Digital Marketing Strategies Program ",null,"CPE Digital Marketing Strategies Program","AR06490101",null,"SS TRACS HUSBANDRY ANIMAL PURCHASES ",null,"SS TRACS HUSBANDRY ANIMAL PURCHASES","200625",null,"General Supplies ",null,"General Supplies"]
["9938112",null,"CIO Web Group ",null,"CIO Web Group","13U22",null,"University Patent Income Fund 68800 ",null,"University Patent Income Fund 68800",null,null,null,null,null,null,null,null,null,null,null,null,null,null,null,null,null,"","DOP",null,"CPE DevOps Program ",null,"CPE DevOps Program","AR06491001",null,"ANIMAL HEALTH CARE PER DIEM ",null,"ANIMAL HEALTH CARE PER DIEM","200626",null,"Department Restructuring ",null,"Department Restructuring"]
["9938113",null,"CIO IT Services ",null,"CIO IT Services","13U23",null,"User FeesLandfill Closure Costs 66059 ",null,"User FeesLandfill Closure Costs 66059",null,null,null,null,null,null,null,null,null,null,null,null,null,null,null,null,null,"","DSV",null,"CPE Data Science Program ",null,"CPE Data Science Program","AR06491501",null,"SOM MUTANT MOUSE PATHOLOGY LAB SVCS ",null,"SOM MUTANT MOUSE PATHOLOGY LAB SVCS","200627",null,"Internships ",null,"Internships"]
[null,null,"Chief Information Security Office D ",null,"Chief Information Security Office D","13U24",null,"Chan Office Trademark Income 66100 ",null,"Chan Office Trademark Income 66100",null,null,null,null,null,null,null,null,null,null,null,null,null,null,null,null,null,"","DTC",null,"CPE Digital Technology and Social Change Program ",null,"CPE Digital Technology and Social Change Program","AR06491601",null,"SOM STEM CELL REGULATORY ASSISTANCE SVC ",null,"SOM STEM CELL REGULATORY ASSISTANCE SVC","200628",null,"Strategic Planning ",null,"Strategic Planning"]
[null,null,"Chief Information Security Office E ",null,"Chief Information Security Office E","13U25",null,"Settlements ",null,"Settlements",null,null,null,null,null,null,null,null,null,null,null,null,null,null,null,null,null,"","DVZ",null,"CPE Data Visualization Program ",null,"CPE Data Visualization Program","AR06491801",null,"SOM STEM CELL ALPHA CLINIC SVCS ",null,"SOM STEM CELL ALPHA CLINIC SVCS","200629",null,"Staff Current ",null,"Staff Current"]
[null,null,"Chief Information Security Office F ",null,"Chief Information Security Office F","13U26",null,"Endowment Admin Cost Recovery Fee 66110 ",null,"Endowment Admin Cost Recovery Fee 66110",null,null,null,null,null,null,null,null,null,null,null,null,null,null,null,null,null,"","EGB",null,"CPE Entrepreneurship and International Business ",null,"CPE Entrepreneurship and International Business","AR06491901",null,"SOM PROTEIN STRUCTURE CORE SVCS ",null,"SOM PROTEIN STRUCTURE CORE SVCS","200630",null,"NFXF Biobank ",null,"NFXF Biobank"]
["9939111",null,"Chief Information Security Office ",null,"Chief Information Security Office","13U27",null,"Wiche Student Exchange Income 66120 ",null,"Wiche Student Exchange Income 66120",null,null,null,null,null,null,null,null,null,null,null,null,null,null,null,null,null,"","EID",null,"CPE DEI Program ",null,"CPE DEI Program","AR06492001",null,"VM MUTANT MOUSE BIOLOGY PROGRAM SVCS ",null,"VM MUTANT MOUSE BIOLOGY PROGRAM SVCS","200631",null,"Classroom Pivital Response Training ",null,"Classroom Pivital Response Training"]
[null,null,"AES Campuses ",null,"AES Campuses","13U28",null,"Aggie Square Revenue 66124 ",null,"Aggie Square Revenue 66124",null,null,null,null,null,null,null,null,null,null,null,null,null,null,null,null,null,"","EML",null,"CPE Emerging Leaders Program ",null,"CPE Emerging Leaders Program","AR06492201",null,"CAES PLANT TRANSFORMATION FACILITY ",null,"CAES PLANT TRANSFORMATION FACILITY","200632",null,"Autism ECHO ",null,"Autism ECHO"]
[null,null,"UC Berkeley RCNR D ",null,"UC Berkeley RCNR D","13U29",null,"Departmental Assessments ",null,"Departmental Assessments",null,null,null,null,null,null,null,null,null,null,null,null,null,null,null,null,null,"","EMP",null,"CPE EMS Program ",null,"CPE EMS Program","AR06495101",null,"CHE TPHRLSMOKE CHAMBER ",null,"CHE TPHRLSMOKE CHAMBER","200633",null,"ADHD Parent Workshop ",null,"ADHD Parent Workshop"]
[null,null,"UC Berkeley RCNR E ",null,"UC Berkeley RCNR E","13U30",null,"Departmental STIP ",null,"Departmental STIP",null,null,null,null,null,null,null,null,null,null,null,null,null,null,null,null,null,"","ENG",null,"CPE Materials Science Program ",null,"CPE Materials Science Program","AR06495201",null,"CHE ANIMAL CARE ",null,"CHE ANIMAL CARE","200635",null,"CEDD Summer Workshops ",null,"CEDD Summer Workshops"]
[null,null,"UC Berkeley RCNR F ",null,"UC Berkeley RCNR F","13U31",null,"UCRS Funds 69700 ",null,"UCRS Funds 69700",null,null,null,null,null,null,null,null,null,null,null,null,null,null,null,null,null,"","EQN",null,"CPE Equine Programs ",null,"CPE Equine Programs","AR06495401",null,"ENGR CHE ENGINEERING RECHARGE ",null,"ENGR CHE ENGINEERING RECHARGE","200636",null,"ESDM Summer Workshops ",null,"ESDM Summer Workshops"]
["9941110",null,"UCB Rausser College of Natural Resources RCNR ",null,"UCB Rausser College of Natural Resources RCNR","13U32",null,"Endowment Stip Income Fund 67700 ",null,"Endowment Stip Income Fund 67700",null,null,null,null,null,null,null,null,null,null,null,null,null,null,null,null,null,"","ESP",null,"CPE English for Special Purposes Program ",null,"CPE English for Special Purposes Program","AR06500501",null,"EPS GEOCHEMISTRYandGEOCHRON LAB SVCS ",null,"EPS GEOCHEMISTRYandGEOCHRON LAB SVCS","200637",null,"Instructional Catering ",null,"Instructional Catering"]
["9941111",null,"UCB CNR Ag and Resource Econ Policy ",null,"UCB CNR Ag and Resource Econ Policy","13U33",null,"Student Aff Law Student Health Center Fe 67719 ",null,"Student Aff Law Student Health Center Fe 67719",null,null,null,null,null,null,null,null,null,null,null,null,null,null,null,null,null,"","EST",null,"CPE English for Science and Technology Program ",null,"CPE English for Science and Technology Program","AR06502001",null,"SOM COMPREHENSIVE CANCER LAB SVCS ",null,"SOM COMPREHENSIVE CANCER LAB SVCS","200638",null,"Teaching Assistants ",null,"Teaching Assistants"]
["9941112",null,"UCB CNR Env Science Policy Management ",null,"UCB CNR Env Science Policy Management","13U34",null,"UC Path Default 67721 ",null,"UC Path Default 67721",null,null,null,null,null,null,null,null,null,null,null,null,null,null,null,null,null,"","EXE",null,"CPE Executive Program ",null,"CPE Executive Program","AR06502901",null,"SOM EXPLORER MOLECULAR IMAGING CTR SVCS ",null,"SOM EXPLORER MOLECULAR IMAGING CTR SVCS","200639",null,"Readers ",null,"Readers"]
["9941113",null,"UCB ESPM Ecosystem Science Division ",null,"UCB ESPM Ecosystem Science Division","13U35",null,"General Obligation Bond Income 67923 ",null,"General Obligation Bond Income 67923",null,null,null,null,null,null,null,null,null,null,null,null,null,null,null,null,null,"","FDC",null,"CPE Fire Department Courses ",null,"CPE Fire Department Courses","AR06503001",null,"SOM BIOANALYSIS PHARMACOKINETICS CORE ",null,"SOM BIOANALYSIS PHARMACOKINETICS CORE","200640",null,"Faculty Workshop ",null,"Faculty Workshop"]
["9941114",null,"UCB ESPM Insect Biology ",null,"UCB ESPM Insect Biology","13U36",null,"Master Food Preserver 68023 ",null,"Master Food Preserver 68023",null,null,null,null,null,null,null,null,null,null,null,null,null,null,null,null,null,"","FED",null,"CPE Front End Development Program ",null,"CPE Front End Development Program","AR06603901",null,"STUDENT EXPERIMENTAL FARM HARVEST INCOME ",null,"STUDENT EXPERIMENTAL FARM HARVEST INCOME","200641",null,"RACA SRRC SIAP ",null,"RACA SRRC SIAP"]
["9941115",null,"UCB ESPM Society and Environ Division ",null,"UCB ESPM Society and Environ Division","13U37",null,"4H Program Fees 68052 ",null,"4H Program Fees 68052",null,null,null,null,null,null,null,null,null,null,null,null,null,null,null,null,null,"","FUN",null,"CPE Fundraising Program ",null,"CPE Fundraising Program","AR06605500",null,"CLAS CHEMISTRY SERVICE CENTER ",null,"CLAS CHEMISTRY SERVICE CENTER","200642",null,"RACE SRRC AFRICAN DIASPORA CULTIVATING EDUCATION ",null,"RACE SRRC AFRICAN DIASPORA CULTIVATING EDUCATION"]
["9941116",null,"UCB ESPM Central Office ",null,"UCB ESPM Central Office","13U38",null,"Master Gardener 68059 ",null,"Master Gardener 68059",null,null,null,null,null,null,null,null,null,null,null,null,null,null,null,null,null,"","GIS",null,"CPE Geographic Information Systems Program ",null,"CPE Geographic Information Systems Program","AR06606501",null,"PROTEIN STRUCTURE LABORATORY INCOME ",null,"PROTEIN STRUCTURE LABORATORY INCOME","200643",null,"RBRI SRRC BRIDGE PHILIPINX OUTREACH AND RETENTION ",null,"RBRI SRRC BRIDGE PHILIPINX OUTREACH AND RETENTION"]
["9941117",null,"UCB CNR Nutr Sci and Toxicology ",null,"UCB CNR Nutr Sci and Toxicology","13U39",null,"4H Non Program Fees 68082 ",null,"4H Non Program Fees 68082",null,null,null,null,null,null,null,null,null,null,null,null,null,null,null,null,null,"","GRT",null,"CPE Global Research Exp in Adv Tech Program ",null,"CPE Global Research Exp in Adv Tech Program","AR06606601",null,"CAMPUS MASS SPECTROMETRY FACILITIES ",null,"CAMPUS MASS SPECTROMETRY FACILITIES","200644",null,"RCOL SRRC COLLECTIVE TRANSFER AND NON TRADITIONAL STUDENT EMPOWERMENT ",null,"RCOL SRRC COLLECTIVE TRANSFER AND NON TRADITIONAL STUDENT EMPOWERMENT"]
["9941118",null,"UCB CNR Plant and Microbiology ",null,"UCB CNR Plant and Microbiology","13U40",null,"DANR North Butte County Income 68104 ",null,"DANR North Butte County Income 68104",null,null,null,null,null,null,null,null,null,null,null,null,null,null,null,null,null,"","GSP",null,"CPE Global Study Program ",null,"CPE Global Study Program","AR06607301",null,"VET MED CENTRAL SERV INC 66073 ",null,"VET MED CENTRAL SERV INC 66073","200645",null,"RGSC SRRC GRADUATE ACADEMIC ACHIEVEMENT AND ADVOCACY PROGRAM ",null,"RGSC SRRC GRADUATE ACADEMIC ACHIEVEMENT AND ADVOCACY PROGRAM"]
[null,null,"UC Berkley SPH D ",null,"UC Berkley SPH D","13U41",null,"Ca Light Tech Ctr Cltc Membership Fee 68140 ",null,"Ca Light Tech Ctr Cltc Membership Fee 68140",null,null,null,null,null,null,null,null,null,null,null,null,null,null,null,null,null,"","HCA",null,"CPE Healthcare Analytics Program ",null,"CPE Healthcare Analytics Program","AR06607401",null,"VM ANATOMY EMCL INCOME ",null,"VM ANATOMY EMCL INCOME","200646",null,"RNAS SRRC AMERICAN INDIAN RECRUITMENT AND RETENTION ",null,"RNAS SRRC AMERICAN INDIAN RECRUITMENT AND RETENTION"]
[null,null,"UC Berkley SPH E ",null,"UC Berkley SPH E","13U42",null,"Short Term Program Abroad Income 68180 ",null,"Short Term Program Abroad Income 68180",null,null,null,null,null,null,null,null,null,null,null,null,null,null,null,null,null,"","HCF",null,"CPE Health Information Literacy Program ",null,"CPE Health Information Literacy Program","AR06627001",null,"OM OLIVE SALES ",null,"OM OLIVE SALES","200647",null,"RSAF SRRC SOUTHEAST ASIANS FURTHERING EDUCATION ",null,"RSAF SRRC SOUTHEAST ASIANS FURTHERING EDUCATION"]
[null,null,"UC Berkley SPH F ",null,"UC Berkley SPH F","13U43",null,"Sale Surplus Property Income 68310 ",null,"Sale Surplus Property Income 68310",null,null,null,null,null,null,null,null,null,null,null,null,null,null,null,null,null,"","HGS",null,"CPE General Health Science Program ",null,"CPE General Health Science Program","AR06654101",null,"CAES Plant Materials and Seed Sales ",null,"CAES Plant Materials and Seed Sales","200648",null,"RYIK SRRC STUDENTS OBTAINING LEADERSHIP AND LATINXS UNITED IN NAVIGATING ACADEMIA ",null,"RYIK SRRC STUDENTS OBTAINING LEADERSHIP AND LATINXS UNITED IN NAVIGATING ACADEMIA"]
["9941120",null,"UCB School of Public Health ",null,"UCB School of Public Health","13U44",null,"Sale Of Surplus PropertyVdls Inc 68314 ",null,"Sale Of Surplus PropertyVdls Inc 68314",null,null,null,null,null,null,null,null,null,null,null,null,null,null,null,null,null,"","HRM",null,"CPE Human Resources Program ",null,"CPE Human Resources Program","AR06654102",null,"MED OCR PAYROLL RECHARGE ",null,"MED OCR PAYROLL RECHARGE","200649",null,"Lecturer Support ",null,"Lecturer Support"]
["9941121",null,"UCB SPH Ag Extension Program ",null,"UCB SPH Ag Extension Program","13U45",null,"Sales Of Surplus Library Materials 68315 ",null,"Sales Of Surplus Library Materials 68315",null,null,null,null,null,null,null,null,null,null,null,null,null,null,null,null,null,"","HSD",null,"CPE Health and Safety Program ",null,"CPE Health and Safety Program","AR06654501",null,"CAES PLANT SCIENCE FIELD ACREAGE SVCS ",null,"CAES PLANT SCIENCE FIELD ACREAGE SVCS","200650",null,"T32 Support ",null,"T32 Support"]
[null,null,"UC Riverside CNAS D ",null,"UC Riverside CNAS D","13U46",null,"Its Nextsteps Membership 68610 ",null,"Its Nextsteps Membership 68610",null,null,null,null,null,null,null,null,null,null,null,null,null,null,null,null,null,"","HZD",null,"CPE Hazardous Materials Program ",null,"CPE Hazardous Materials Program","AR06654601",null,"CAES PLANT SCIENCE TILLING SVCS ",null,"CAES PLANT SCIENCE TILLING SVCS","200651",null,"Staff Development ",null,"Staff Development"]
[null,null,"UC Riverside CNAS E ",null,"UC Riverside CNAS E","13U47",null,"Campus Royalty and Copyright Income 68700 ",null,"Campus Royalty and Copyright Income 68700",null,null,null,null,null,null,null,null,null,null,null,null,null,null,null,null,null,"","IAG",null,"International Agriculture Program ",null,"International Agriculture Program","AR06654801",null,"CAES WINERY SVCS ",null,"CAES WINERY SVCS","200652",null,"Staff Retention ",null,"Staff Retention"]
[null,null,"UC Riverside CNAS F ",null,"UC Riverside CNAS F","13U48",null,"Capital Equipment Financing Loans 68900 ",null,"Capital Equipment Financing Loans 68900",null,null,null,null,null,null,null,null,null,null,null,null,null,null,null,null,null,"","IAP",null,"CPE International Agriculture Program ",null,"CPE International Agriculture Program","AR06654901",null,"CAES PLANT SCI SMALL GRAINS TRIAL SVC ",null,"CAES PLANT SCI SMALL GRAINS TRIAL SVC","200653",null,"Safety Officer ",null,"Safety Officer"]
["9942110",null,"UCR College of Natural and Agricultural Sciences CNAS ",null,"UCR College of Natural and Agricultural Sciences CNAS","13U49",null,"Consol Benefit Central Accts 69001 ",null,"Consol Benefit Central Accts 69001",null,null,null,null,null,null,null,null,null,null,null,null,null,null,null,null,null,"","ITH",null,"CPE IET Help Desk Program ",null,"CPE IET Help Desk Program","AR06656001",null,"CAESPLANT SCIGENOMIC LIBRARY PREP SVCS ",null,"CAESPLANT SCIGENOMIC LIBRARY PREP SVCS","200654",null,"GBSF Shared Costs ",null,"GBSF Shared Costs"]
["9942111",null,"UCR CNAS Campus CE Specs ",null,"UCR CNAS Campus CE Specs","13U50",null,"UC Path Assessment Fee 69080 ",null,"UC Path Assessment Fee 69080",null,null,null,null,null,null,null,null,null,null,null,null,null,null,null,null,null,"","JSP",null,"CPE Java Script Program ",null,"CPE Java Script Program","AR06656501",null,"CAESANIM SCILABELFREE MOL PHENOTYPING ",null,"CAESANIM SCILABELFREE MOL PHENOTYPING","200656",null,"TEAM at Aggie Square ",null,"TEAM at Aggie Square"]
["9942112",null,"UCR CE Botany And Plant Sciences ",null,"UCR CE Botany And Plant Sciences","13U51",null,"UCOP Systemwide Assessment 69085 ",null,"UCOP Systemwide Assessment 69085",null,null,null,null,null,null,null,null,null,null,null,null,null,null,null,null,null,"","KID",null,"CPE Youth Program ",null,"CPE Youth Program","AR06656901",null,"CAESPLANT SCI GENOME MAPPING ",null,"CAESPLANT SCI GENOME MAPPING","200657",null,"BME MENG Program ",null,"BME MENG Program"]
["9942113",null,"UCR CE Entomology ",null,"UCR CE Entomology","13U52",null,"Cws OffCampus Emplyr Admin Fees 69200 ",null,"Cws OffCampus Emplyr Admin Fees 69200",null,null,null,null,null,null,null,null,null,null,null,null,null,null,null,null,null,"","LAN",null,"CPE Land Use Program ",null,"CPE Land Use Program","AR06657101",null,"CAES RMI SERVICES ",null,"CAES RMI SERVICES","200658",null,"Quarter at Aggie Square ",null,"Quarter at Aggie Square"]
["9942114",null,"UCR CE Environmental Sciences ",null,"UCR CE Environmental Sciences","13U53",null,"Environmental Impact Reports Income 69235 ",null,"Environmental Impact Reports Income 69235",null,null,null,null,null,null,null,null,null,null,null,null,null,null,null,null,null,"","LCM",null,"CPE Leadership in Construction Management Program ",null,"CPE Leadership in Construction Management Program","AR06657301",null,"CAESWFCB TODD LAB SERVICES ",null,"CAESWFCB TODD LAB SERVICES","200659",null,"Lecturer at Aggie Square ",null,"Lecturer at Aggie Square"]
["9942115",null,"UCR CE Nematology ",null,"UCR CE Nematology","13U54",null,"Ctr For Health QualityandInnov Chqi 69322 ",null,"Ctr For Health QualityandInnov Chqi 69322",null,null,null,null,null,null,null,null,null,null,null,null,null,null,null,null,null,"","LEP",null,"CPE Land Use and Environmental Planning Certificate Program ",null,"CPE Land Use and Environmental Planning Certificate Program","AR06657501",null,"CAESPLANT PATH RICE MUTANT SVCS ",null,"CAESPLANT PATH RICE MUTANT SVCS","200660",null,"UG outreach at Aggie Square ",null,"UG outreach at Aggie Square"]
["9942116",null,"UCR CE Plant Pathology ",null,"UCR CE Plant Pathology","13U55",null,"Non Univ Differential Income 69500 ",null,"Non Univ Differential Income 69500",null,null,null,null,null,null,null,null,null,null,null,null,null,null,null,null,null,"","MGD",null,"CPE Management Development Program ",null,"CPE Management Development Program","AR06657901",null,"CAES OXYLIPINandPLASMALOGEN ANALYSIS ",null,"CAES OXYLIPINandPLASMALOGEN ANALYSIS","200661",null,"BME Support to CMGI ",null,"BME Support to CMGI"]
["9942117",null,"UCR Entomology ",null,"UCR Entomology","13U56",null,"Campus Gift Fee Income 69510 ",null,"Campus Gift Fee Income 69510",null,null,null,null,null,null,null,null,null,null,null,null,null,null,null,null,null,"","MKR",null,"CPE Market Research Program ",null,"CPE Market Research Program","AR06658101",null,"Translational Shared Rsrch Fac TSRF ",null,"Translational Shared Rsrch Fac TSRF","200662",null,"BME Support to TEAM ",null,"BME Support to TEAM"]
["9942118",null,"UCR Nematology ",null,"UCR Nematology","13U57",null,"ORMP Support 69550 ",null,"ORMP Support 69550",null,null,null,null,null,null,null,null,null,null,null,null,null,null,null,null,null,"","MLP",null,"CPE Management and Leadership Program ",null,"CPE Management and Leadership Program","AR06660001",null,"VET Diagnostic Lab System Rate ",null,"VET Diagnostic Lab System Rate","200663",null,"Alumni Activities ",null,"Alumni Activities"]
["9942119",null,"UCR Plant Path And Microbiology ",null,"UCR Plant Path And Microbiology","13U58",null,"UCD Education and Research Fund 69640 ",null,"UCD Education and Research Fund 69640",null,null,null,null,null,null,null,null,null,null,null,null,null,null,null,null,null,"","MML",null,"CPE Math for Machine Learning ",null,"CPE Math for Machine Learning","AR06660201",null,"CAHFS CAMPUS RECHARGES ",null,"CAHFS CAMPUS RECHARGES","200664",null,"Accumulated Interest on Internal Loans ",null,"Accumulated Interest on Internal Loans"]
["9942120",null,"UCR SPP Deans Office ",null,"UCR SPP Deans Office","13U59",null,"UCOP Alloc Of Prior Yr Balances 69666 ",null,"UCOP Alloc Of Prior Yr Balances 69666",null,null,null,null,null,null,null,null,null,null,null,null,null,null,null,null,null,"","MNC",null,"CPE Management of Multinational and Cross Cultural Teams Program ",null,"CPE Management of Multinational and Cross Cultural Teams Program","AR06661601",null,"Equine Analytical Chemistry Rate EACP ",null,"Equine Analytical Chemistry Rate EACP","200665",null,"Addressing Bias And Bigotry OP funding ",null,"Addressing Bias And Bigotry OP funding"]
[null,null,"UC Davis College of Ag and Env Sciences ",null,"UC Davis College of Ag and Env Sciences","13U60",null,"Employee Benefits Admin Fund 69740 ",null,"Employee Benefits Admin Fund 69740",null,null,null,null,null,null,null,null,null,null,null,null,null,null,null,null,null,"","NAT",null,"CPE Natural Resources Program ",null,"CPE Natural Resources Program","AR06996501",null,"BIOMEDICAL ENGR MICRPET SCANNER ",null,"BIOMEDICAL ENGR MICRPET SCANNER","200666",null,"Quality Assurance ",null,"Quality Assurance"]
[null,null,"UCD ACBS AES E ",null,"UCD ACBS AES E","13U61",null,"UC Lab Fee Research Prog UCHRI 69763 ",null,"UC Lab Fee Research Prog UCHRI 69763",null,null,null,null,null,null,null,null,null,null,null,null,null,null,null,null,null,"","NCW",null,"CPE Northern Child Welfare Program ",null,"CPE Northern Child Welfare Program","AR07016001",null,"BML HOUSING DINING ADMIN ACTIVITIES ",null,"BML HOUSING DINING ADMIN ACTIVITIES","200667",null,"Industry Immersions ",null,"Industry Immersions"]
[null,null,"UCD ACBS AES F ",null,"UCD ACBS AES F","13U62",null,"UCOP Be Smart About Safety 69790 ",null,"UCOP Be Smart About Safety 69790",null,null,null,null,null,null,null,null,null,null,null,null,null,null,null,null,null,"","PBC",null,"CPE Post Bacc Degree Program ",null,"CPE Post Bacc Degree Program","AR60380001",null,"Intermountain REC Research Acre ",null,"Intermountain REC Research Acre","200668",null,"Social Skills Group ",null,"Social Skills Group"]
["9ACBS01",null,"UCD ACBS AES ",null,"UCD ACBS AES","13U63",null,"UCOP Workers Comp BSAS Retrospec Prem 69791 ",null,"UCOP Workers Comp BSAS Retrospec Prem 69791",null,null,null,null,null,null,null,null,null,null,null,null,null,null,null,null,null,"","PCP",null,"CPE Pre College Program ",null,"CPE Pre College Program","AR60380002",null,"Intermountain REC Research Hourly Rate ",null,"Intermountain REC Research Hourly Rate","200669",null,"First Year Seminar ",null,"First Year Seminar"]
["9AEVE01",null,"UCD AEVE Evolution and Ecology ",null,"UCD AEVE Evolution and Ecology","13U64",null,"UCOP Gen Liability BSAS 69793 ",null,"UCOP Gen Liability BSAS 69793",null,null,null,null,null,null,null,null,null,null,null,null,null,null,null,null,null,"","PHC",null,"CPE Public Health Certificate Development Program ",null,"CPE Public Health Certificate Development Program","AR60380003",null,"Intermountain REC Research Water ",null,"Intermountain REC Research Water","200670",null,"Rat Subcore ",null,"Rat Subcore"]
["9AEVE02",null,"UCD AEVE Faculty Compensation ",null,"UCD AEVE Faculty Compensation","13U65",null,"UCOP Emp Liability BSAS 69794 ",null,"UCOP Emp Liability BSAS 69794",null,null,null,null,null,null,null,null,null,null,null,null,null,null,null,null,null,"","PLG",null,"CPE Paralegal Program ",null,"CPE Paralegal Program","AR60380004",null,"Kerney REC Research Acre ",null,"Kerney REC Research Acre","200671",null,"Mouse Subcore ",null,"Mouse Subcore"]
["9AMCB01",null,"UCD AMCB Molecular and Cellular Biology ",null,"UCD AMCB Molecular and Cellular Biology","13U66",null,"UCOP Auto BSAS 69795 ",null,"UCOP Auto BSAS 69795",null,null,null,null,null,null,null,null,null,null,null,null,null,null,null,null,null,"","PMG",null,"CPE Project Management Program ",null,"CPE Project Management Program","AR60380005",null,"Kerney REC Research Hourly Rate ",null,"Kerney REC Research Hourly Rate","200672",null,"Imaging Subcore ",null,"Imaging Subcore"]
["9AMCB02",null,"UCD AMCB Faculty Compensation ",null,"UCD AMCB Faculty Compensation","13U67",null,"UCOP Prop SelfIns BSAS 69796 ",null,"UCOP Prop SelfIns BSAS 69796",null,null,null,null,null,null,null,null,null,null,null,null,null,null,null,null,null,"","PRC",null,"CPE Permitting Regulatory and Conservation Program ",null,"CPE Permitting Regulatory and Conservation Program","AR60380006",null,"Lindcove REC Research Acre ",null,"Lindcove REC Research Acre","200673",null,"Immunology Subcore ",null,"Immunology Subcore"]
["9AMMG01",null,"UCD AMMG Microbiology and Molecular Genetics ",null,"UCD AMMG Microbiology and Molecular Genetics","13U68",null,"Incentive PaymentsandVendor Rebates 69820 69926 69927 ",null,"Incentive PaymentsandVendor Rebates 69820 69926 69927",null,null,null,null,null,null,null,null,null,null,null,null,null,null,null,null,null,"","PYR",null,"CPE Python Basics for Online Research Program ",null,"CPE Python Basics for Online Research Program","AR60380007",null,"Lindcove REC Research Hourly Rate ",null,"Lindcove REC Research Hourly Rate","200674",null,"Blood Draws ",null,"Blood Draws"]
["9AMMG02",null,"UCD AMMG Faculty Compensation ",null,"UCD AMMG Faculty Compensation","13U69",null,"Internal Borrowing 69233 69821 69822 ",null,"Internal Borrowing 69233 69821 69822",null,null,null,null,null,null,null,null,null,null,null,null,null,null,null,null,null,"","PYT",null,"CPE Python Data Science Program ",null,"CPE Python Data Science Program","AR60380008",null,"Lindcove REC Packline User Fee ",null,"Lindcove REC Packline User Fee","200675",null,"ABN Director Budget and Histology Core ",null,"ABN Director Budget and Histology Core"]
["9ANPB01",null,"UCD ANPB Neurobiology Physiology and Behavior ",null,"UCD ANPB Neurobiology Physiology and Behavior","13U71",null,"MNRC Decommission 69824 ",null,"MNRC Decommission 69824",null,null,null,null,null,null,null,null,null,null,null,null,null,null,null,null,null,"","RCF",null,"CPE RCFFP Program ",null,"CPE RCFFP Program","AR60380009",null,"South Coast REC Research Acre ",null,"South Coast REC Research Acre","200676",null,"Schumann ABN Node ",null,"Schumann ABN Node"]
["9ANPB02",null,"UCD ANPB Faculty Compensation ",null,"UCD ANPB Faculty Compensation","13U72",null,"Campus Overhead Funds 69825 ",null,"Campus Overhead Funds 69825",null,null,null,null,null,null,null,null,null,null,null,null,null,null,null,null,null,"","RDP",null,"CPE Research Discovery Program ",null,"CPE Research Discovery Program","AR60380010",null,"South Coast REC Research Hourly Rate ",null,"South Coast REC Research Hourly Rate","200677",null,"Emergency Operations ",null,"Emergency Operations"]
["9APLB01",null,"UCD APLB Plant Biology ",null,"UCD APLB Plant Biology","13U73",null,"GenandEmp Prac Liab Rechg 69826 ",null,"GenandEmp Prac Liab Rechg 69826",null,null,null,null,null,null,null,null,null,null,null,null,null,null,null,null,null,"","RSP",null,"CPE Resiliency Planning Program ",null,"CPE Resiliency Planning Program","AR60380011",null,"Sierra Foothill REC Research Rate ",null,"Sierra Foothill REC Research Rate","200678",null,"Ergonomics ",null,"Ergonomics"]
["9APLB02",null,"UCD APLB Faculty Compensation ",null,"UCD APLB Faculty Compensation","13U74",null,"University Preferred Partnership Program 69828 ",null,"University Preferred Partnership Program 69828",null,null,null,null,null,null,null,null,null,null,null,null,null,null,null,null,null,"","SCP",null,"CPE Secure Coding Practices Program ",null,"CPE Secure Coding Practices Program","AR60380012",null,"Sierra Foothill REC Research Hourly Rate ",null,"Sierra Foothill REC Research Hourly Rate","200679",null,"Shared Services ",null,"Shared Services"]
[null,null,"UCD ACL1 Food Chain Cluster E ",null,"UCD ACL1 Food Chain Cluster E","13U75",null,"Campus Investment Rebalancing 69830 ",null,"Campus Investment Rebalancing 69830",null,null,null,null,null,null,null,null,null,null,null,null,null,null,null,null,null,"","SDA",null,"CPE Spatial Data Analysis Visualization Program ",null,"CPE Spatial Data Analysis Visualization Program","AR60380013",null,"Sierra Foothill REC Reaserch Animal Care ",null,"Sierra Foothill REC Reaserch Animal Care","200680",null,"Kent Leach T32 Matching Funds ",null,"Kent Leach T32 Matching Funds"]
[null,null,"UCD AANS Animal Science F ",null,"UCD AANS Animal Science F","13U76",null,"Endowment Infrastructure Fee 69831 ",null,"Endowment Infrastructure Fee 69831",null,null,null,null,null,null,null,null,null,null,null,null,null,null,null,null,null,"","SED",null,"CPE SEED Supported Education to Elevate Diversity Program ",null,"CPE SEED Supported Education to Elevate Diversity Program","AR60380014",null,"South Coast REC Greenhouse Rate ",null,"South Coast REC Greenhouse Rate","200681",null,"Leadership Education in NDD and Related Disorders Training Program ",null,"Leadership Education in NDD and Related Disorders Training Program"]
["9AANS01",null,"UCD AANS Animal Science ",null,"UCD AANS Animal Science","13U77",null,"BSAS Reallocation 69906 ",null,"BSAS Reallocation 69906",null,null,null,null,null,null,null,null,null,null,null,null,null,null,null,null,null,"","SEO",null,"CPE SEO Program ",null,"CPE SEO Program","AR60380015",null,"Westside REC Research Acre Rate ",null,"Westside REC Research Acre Rate","200682",null,"Drew Avenue Facilities ",null,"Drew Avenue Facilities"]
["9AANS02",null,"UCD AANS Faculty Resources ",null,"UCD AANS Faculty Resources","13U78",null,"UC Path Implementation 69909 ",null,"UC Path Implementation 69909",null,null,null,null,null,null,null,null,null,null,null,null,null,null,null,null,null,"","SIX",null,"CPE Lean Six Sigma Operating Program ",null,"CPE Lean Six Sigma Operating Program","AR60380016",null,"Westside REC Research Hourly Rate ",null,"Westside REC Research Hourly Rate","200683",null,"College Opportunity Program Facilities ",null,"College Opportunity Program Facilities"]
["9AANS03",null,"UCD AANS Faculty Compensation ",null,"UCD AANS Faculty Compensation","13U79",null,"Debt Service Recharge 69910 ",null,"Debt Service Recharge 69910",null,null,null,null,null,null,null,null,null,null,null,null,null,null,null,null,null,"","SKL",null,"CPE Professional Skills for the Workplace Program ",null,"CPE Professional Skills for the Workplace Program","AR60380017",null,"Westside REC Research Water ",null,"Westside REC Research Water","200684",null,"Custodial Services ",null,"Custodial Services"]
[null,null,"UCD ACL1 Food Chain Cluster F ",null,"UCD ACL1 Food Chain Cluster F","13U80",null,"Pollution Remediation 69987 ",null,"Pollution Remediation 69987",null,null,null,null,null,null,null,null,null,null,null,null,null,null,null,null,null,"","SNF",null,"CPE Sensory and Food Science Program ",null,"CPE Sensory and Food Science Program","AR60380018",null,"CPE Course Management Rate ",null,"CPE Course Management Rate","200685",null,"Confidental Shredding ",null,"Confidental Shredding"]
["9ACL101",null,"UCD ACL1 Food Chain Cluster ",null,"UCD ACL1 Food Chain Cluster","13U81",null,"UCDMC Trauma Program Grant 69988 ",null,"UCDMC Trauma Program Grant 69988",null,null,null,null,null,null,null,null,null,null,null,null,null,null,null,null,null,"","SNR",null,"CPE OLLI ",null,"CPE OLLI","AR60380019",null,"CAES Seed Sales ",null,"CAES Seed Sales","200686",null,"General Housekeeping Supplies ",null,"General Housekeeping Supplies"]
[null,null,"UCD ANUT Nutrition F ",null,"UCD ANUT Nutrition F","13U82",null,"UCDMC Admin Recharges 69990 12101 ",null,"UCDMC Admin Recharges 69990 12101",null,null,null,null,null,null,null,null,null,null,null,null,null,null,null,null,null,"","SQL",null,"CPE SQL Program ",null,"CPE SQL Program","AR60380020",null,"Project CAES LAWR Freeze Drier ",null,"Project CAES LAWR Freeze Drier","200687",null,"Bike Barn ",null,"Bike Barn"]
["9ANUT01",null,"UCD ANUT Nutrition ",null,"UCD ANUT Nutrition","13U83",null,"Campus Assessment Fund 69993 ",null,"Campus Assessment Fund 69993",null,null,null,null,null,null,null,null,null,null,null,null,null,null,null,null,null,"","SRT",null,"CPE Summer Start Program ",null,"CPE Summer Start Program","AR60380021",null,"CAES LAWR Particle Size Analyzer Service ",null,"CAES LAWR Particle Size Analyzer Service","200688",null,"STAR Award ",null,"STAR Award"]
["9ANUT02",null,"UCD ANUT Faculty Resources ",null,"UCD ANUT Faculty Resources","13U84",null,"Pepsi Beverages Sponsorship Agreement 73210 ",null,"Pepsi Beverages Sponsorship Agreement 73210",null,null,null,null,null,null,null,null,null,null,null,null,null,null,null,null,null,"","SUP",null,"CPE Supervisory Skills Program ",null,"CPE Supervisory Skills Program","AR60380022",null,"CAES Vineyard Labor Support Services ",null,"CAES Vineyard Labor Support Services","200689",null,"Clinic Supplies ",null,"Clinic Supplies"]
["9ANUT03",null,"UCD ANUT Faculty Compensation ",null,"UCD ANUT Faculty Compensation","13U85",null,"Vending Concession Fund 73305 ",null,"Vending Concession Fund 73305",null,null,null,null,null,null,null,null,null,null,null,null,null,null,null,null,null,"","SUR",null,"CPE Surgical Tech Program ",null,"CPE Surgical Tech Program","AR60380023",null,"Center for Urban Horticulture Services ",null,"Center for Urban Horticulture Services","200690",null,"Maintenance and Support Agreement ",null,"Maintenance and Support Agreement"]
[null,null,"UCD ACL3 BFTV Cluster E ",null,"UCD ACL3 BFTV Cluster E","13U86",null,"Property Management 74226 74227 74228 74229 ",null,"Property Management 74226 74227 74228 74229",null,null,null,null,null,null,null,null,null,null,null,null,null,null,null,null,null,"","SUS",null,"CPE Sustainability and Energy Program ",null,"CPE Sustainability and Energy Program",null,null,"Annual Special Giving Projects ",null,"Annual Special Giving Projects","200691",null,"Staff Support ",null,"Staff Support"]
[null,null,"UCD ABAE Bio and Ag Engineering F ",null,"UCD ABAE Bio and Ag Engineering F","15000",null,"SOM University Related Events 60102 ",null,"SOM University Related Events 60102",null,null,null,null,null,null,null,null,null,null,null,null,null,null,null,null,null,"","SWW",null,"CPE Spanish Program ",null,"CPE Spanish Program","GLATHL0001",null,"Athletics Crowdfunding DM series ",null,"Athletics Crowdfunding DM series","200692",null,"Staff Events ",null,"Staff Events"]
["9ABAE01",null,"UCD ABAE Bio and Ag Engineering ",null,"UCD ABAE Bio and Ag Engineering",null,null,"Tuition B ",null,"Tuition B",null,null,null,null,null,null,null,null,null,null,null,null,null,null,null,null,null,"","TEL",null,"CPE telehealth best practices uses Program ",null,"CPE telehealth best practices uses Program","GLATHL0002",null,"Athletics Feb DM series ",null,"Athletics Feb DM series","200693",null,"Student Activities ",null,"Student Activities"]
["9ABAE02",null,"UCD ABAE Faculty Resources ",null,"UCD ABAE Faculty Resources",null,null,"Tuition C ",null,"Tuition C",null,null,null,null,null,null,null,null,null,null,null,null,null,null,null,null,null,"","TEM",null,"CPE Teams Coaching Program ",null,"CPE Teams Coaching Program","GLCHAN0001",null,"Chancellor State of Campus DM ",null,"Chancellor State of Campus DM","200694",null,"Psychology Fellows Clinic ",null,"Psychology Fellows Clinic"]
["9ABAE03",null,"UCD ABAE Faculty Compensation ",null,"UCD ABAE Faculty Compensation",null,null,"Tuition D ",null,"Tuition D",null,null,null,null,null,null,null,null,null,null,null,null,null,null,null,null,null,"","TES",null,"CPE Trilogy Bootcamps ",null,"CPE Trilogy Bootcamps","GLCHAN0002",null,"DCC upgrade buckslip W/Chan State of the campus DM ",null,"DCC upgrade buckslip W/Chan State of the campus DM","200695",null,"Academic Retention Initiative ",null,"Academic Retention Initiative"]
[null,null,"UCD ACL3 BFTV Cluster F ",null,"UCD ACL3 BFTV Cluster F","14000",null,"Grad Studies Tuition Income 20094 ",null,"Grad Studies Tuition Income 20094",null,null,null,null,null,null,null,null,null,null,null,null,null,null,null,null,null,"","UPC",null,"CPE University Programs Custom Program ",null,"CPE University Programs Custom Program","GLCHAN0003",null,"DCC Annual Fund renewal DM from Chancellor May ",null,"DCC Annual Fund renewal DM from Chancellor May","200696",null,"Team Equipment at Aggie Square ",null,"Team Equipment at Aggie Square"]
["9ACL301",null,"UCD ACL3 BFTV Cluster ",null,"UCD ACL3 BFTV Cluster","14001",null,"University Tuition Income 20095 ",null,"University Tuition Income 20095",null,null,null,null,null,null,null,null,null,null,null,null,null,null,null,null,null,"","VIT",null,"CPE Vit/Wine Short Courses ",null,"CPE Vit/Wine Short Courses","GLCHAN0004",null,"Chancellor State of Campus DM School of Medicine Audience  drops Dec 1 ",null,"Chancellor State of Campus DM School of Medicine Audience drops Dec 1","200697",null,"Redwood SEED Scholars Program ",null,"Redwood SEED Scholars Program"]
[null,null,"UCD AFST Food Science and Technology F ",null,"UCD AFST Food Science and Technology F","14002",null,"Ed FeeGeneral Fund Fee OffsetSaa 20096 ",null,"Ed FeeGeneral Fund Fee OffsetSaa 20096",null,null,null,null,null,null,null,null,null,null,null,null,null,null,null,null,null,"","VTC",null,"VTC CPE Viticulture Specialization Program ",null,"VTC CPE Viticulture Specialization Program","GLCHAN0005",null,"DCC Annual Fund renewal DM from DCC Chair ",null,"DCC Annual Fund renewal DM from DCC Chair","200698",null,"Stores Art Engineering Supplies Sales ",null,"Stores Art Engineering Supplies Sales"]
["9AFST01",null,"UCD FST Food Science and Technology ",null,"UCD FST Food Science and Technology","14003",null,"Educational Fee GF Offset 20097 ",null,"Educational Fee GF Offset 20097",null,null,null,null,null,null,null,null,null,null,null,null,null,null,null,null,null,"","WAT",null,"CPE Water Program ",null,"CPE Water Program","GLDEAN0001",null,"COE  Deans Circle DM ",null,"COE Deans Circle DM","200699",null,"Stores Clothing Sales ",null,"Stores Clothing Sales"]
["9AFST02",null,"UCD AFST Faculty Resources ",null,"UCD AFST Faculty Resources",null,null,"University Funded Work Study ",null,"University Funded Work Study",null,null,null,null,null,null,null,null,null,null,null,null,null,null,null,null,null,"","WEB",null,"CPE Web Dev Program ",null,"CPE Web Dev Program","GLDEAN0002",null,"CBS Deans DM ",null,"CBS Deans DM","200750",null,"Stores Computer Hardware Sales ",null,"Stores Computer Hardware Sales"]
["9AFST03",null,"UCD AFST Faculty Compensation ",null,"UCD AFST Faculty Compensation",null,null,"Designated ",null,"Designated",null,null,null,null,null,null,null,null,null,null,null,null,null,null,null,null,null,"","WMC",null,"CPE Winemaking Certificate Program ",null,"CPE Winemaking Certificate Program","GLDEAN0003",null,"CAES Deans Circle DM ",null,"CAES Deans Circle DM","200751",null,"Stores Consumer Electronics Sales ",null,"Stores Consumer Electronics Sales"]
[null,null,"UCD AVIT Viticulture and Enology F ",null,"UCD AVIT Viticulture and Enology F",null,null,"Professional Degree Supplemental Tuition ",null,"Professional Degree Supplemental Tuition",null,null,null,null,null,null,null,null,null,null,null,null,null,null,null,null,null,"","WPE",null,"CPE Water Policy and Economics Certificate Program ",null,"CPE Water Policy and Economics Certificate Program","GLEOCY0001",null,"End of Calendar Year EOCY Drop 1 ",null,"End of Calendar Year EOCY Drop 1","200752",null,"Stores Food and Beverage Sales ",null,"Stores Food and Beverage Sales"]
["9AVIT01",null,"UCD AVIT Viticulture and Enology ",null,"UCD AVIT Viticulture and Enology",null,null,"Professional School Fees ",null,"Professional School Fees",null,null,null,null,null,null,null,null,null,null,null,null,null,null,null,null,null,"",null,null,"Campaign Funding ",null,"Campaign Funding","GLEOCY0002",null,"EOCY Parents Fund Buckslip with CAAA audience ",null,"EOCY Parents Fund Buckslip with CAAA audience","200753",null,"Stores General Books Sales ",null,"Stores General Books Sales"]
["9AVIT02",null,"UCD AVIT Faculty Resources ",null,"UCD AVIT Faculty Resources","14100",null,"School Of Medicine Special Student 20026 ",null,"School Of Medicine Special Student 20026",null,null,null,null,null,null,null,null,null,null,null,null,null,null,null,null,null,"","CAM",null,"Campaign ",null,"Campaign","GLEOCY0003",null,"EOCY  SOL BML OLLI Drop 2 ",null,"EOCY SOL BML OLLI Drop 2","200754",null,"Stores Gifts Sales ",null,"Stores Gifts Sales"]
["9AVIT03",null,"UCD AVIT Faculty Compensation ",null,"UCD AVIT Faculty Compensation","14102",null,"LawMedicine Special Fee 20221 ",null,"LawMedicine Special Fee 20221",null,null,null,null,null,null,null,null,null,null,null,null,null,null,null,null,null,"",null,null,"College Partnerships ",null,"College Partnerships","GLEOCY0004",null,"EOCY Shrem Drop 3 ",null,"EOCY Shrem Drop 3","200755",null,"Stores New Textbook Rental ",null,"Stores New Textbook Rental"]
[null,null,"UCD ACL4 Phoenix Cluster E ",null,"UCD ACL4 Phoenix Cluster E","14104",null,"Professional Fee Som Public Health 20223 ",null,"Professional Fee Som Public Health 20223",null,null,null,null,null,null,null,null,null,null,null,null,null,null,null,null,null,"","CPC",null,"CPE Campus Partnership ",null,"CPE Campus Partnership","GLFALL0001",null,"Fall DM series drop 1 ",null,"Fall DM series drop 1","200756",null,"Stores New Textbook Sales ",null,"Stores New Textbook Sales"]
[null,null,"UCD ACL4 Phoenix Cluster F ",null,"UCD ACL4 Phoenix Cluster F","14105",null,"Professional Fee School Of Law Special 20225 ",null,"Professional Fee School Of Law Special 20225",null,null,null,null,null,null,null,null,null,null,null,null,null,null,null,null,null,"",null,null,"Graduate School of Management Programs ",null,"Graduate School of Management Programs","GLFALL0002",null,"Fall DM series SHREM Drop 2 ",null,"Fall DM series SHREM Drop 2","200757",null,"Stores Used Textbook Rental ",null,"Stores Used Textbook Rental"]
["9ACL401",null,"UCD ACL4 Phoenix Cluster ",null,"UCD ACL4 Phoenix Cluster","14106",null,"Professional FeeSchool Of Medicine 20226 ",null,"Professional FeeSchool Of Medicine 20226",null,null,null,null,null,null,null,null,null,null,null,null,null,null,null,null,null,"","ACT",null,"GSM Accounting Minor Program ",null,"GSM Accounting Minor Program","GLFALL0003",null,"Fall DM Athletics Envelopes ",null,"Fall DM Athletics Envelopes","200758",null,"Stores Used Textbook Sales ",null,"Stores Used Textbook Sales"]
[null,null,"UCD AENM Entomology and Nematology F ",null,"UCD AENM Entomology and Nematology F","14107",null,"Professional Fee School Of Vet Med 20229 ",null,"Professional Fee School Of Vet Med 20229",null,null,null,null,null,null,null,null,null,null,null,null,null,null,null,null,null,"","TCM",null,"GSM Tech Minor Program ",null,"GSM Tech Minor Program","GLOTHR0001",null,"COSMOS DM ",null,"COSMOS DM","200759",null,"Stores School and Office Supplies Sales ",null,"Stores School and Office Supplies Sales"]
["9AENM01",null,"UCD AENM Entomology and Nematology ",null,"UCD AENM Entomology and Nematology","14108",null,"Professional Fee School Of Vet Med DVM 20230 ",null,"Professional Fee School Of Vet Med DVM 20230",null,null,null,null,null,null,null,null,null,null,null,null,null,null,null,null,null,"","UGM",null,"GSM Undergraduate Major Program ",null,"GSM Undergraduate Major Program","GLOTHR0002",null,"First Time Donor DM ",null,"First Time Donor DM","200760",null,"Stores Specialty Procuts Sales ",null,"Stores Specialty Procuts Sales"]
["9AENM02",null,"UCD AENM Faculty Resources ",null,"UCD AENM Faculty Resources","14109",null,"Professional FeeGrad Sch Of Management 20231 ",null,"Professional FeeGrad Sch Of Management 20231",null,null,null,null,null,null,null,null,null,null,null,null,null,null,null,null,null,"",null,null,"Library Programs ",null,"Library Programs","GLOTHR0003",null,"TERC DM ",null,"TERC DM","200761",null,"Stores Sundries Sales ",null,"Stores Sundries Sales"]
["9AENM03",null,"UCD AENM Faculty Compensation ",null,"UCD AENM Faculty Compensation","14111",null,"Professional Fee School Of Nursing 20233 ",null,"Professional Fee School Of Nursing 20233",null,null,null,null,null,null,null,null,null,null,null,null,null,null,null,null,null,"","AOP",null,"Library AggieOpen program ",null,"Library AggieOpen program","GLOTHR0004",null,"Student Emergency Relief Aid DM for Crowdfunding ",null,"Student Emergency Relief Aid DM for Crowdfunding","200762",null,"Stores ArtEngineering Supplies Purchase ",null,"Stores ArtEngineering Supplies Purchase"]
[null,null,"UCD APPA Plant Pathology F ",null,"UCD APPA Plant Pathology F","14112",null,"Professional Fee Education Leadership 20240 ",null,"Professional Fee Education Leadership 20240",null,null,null,null,null,null,null,null,null,null,null,null,null,null,null,null,null,"","AXP",null,"Library Aggie Experts Program ",null,"Library Aggie Experts Program","GLOTHR0005",null,"Arboretum DM ",null,"Arboretum DM","200763",null,"Stores Clothing Purchase ",null,"Stores Clothing Purchase"]
["9APPA01",null,"UCD APPA Plant Pathology ",null,"UCD APPA Plant Pathology","14113",null,"Professional FeeSom Health Informatics 20242 ",null,"Professional FeeSom Health Informatics 20242",null,null,null,null,null,null,null,null,null,null,null,null,null,null,null,null,null,"","CDL",null,"Library Collections CDL ",null,"Library Collections CDL","GLOTHR0006",null,"Parents Welcome DM ",null,"Parents Welcome DM","200764",null,"Stores Computer Hardware Purchase ",null,"Stores Computer Hardware Purchase"]
["9APPA02",null,"UCD APPA Faculty Resources ",null,"UCD APPA Faculty Resources","14117",null,"Professional Fee MS Physician Assistant Study ",null,"Professional Fee MS Physician Assistant Study",null,null,null,null,null,null,null,null,null,null,null,null,null,null,null,null,null,"","DCI",null,"DataLab Community Initiatives Program ",null,"DataLab Community Initiatives Program","GLOTHR0007",null,"#9 Regular Envelopes ",null,"#9 Regular Envelopes","200765",null,"Stores Consumer Electronics Purchase ",null,"Stores Consumer Electronics Purchase"]
["9APPA03",null,"UCD APPA Faculty Compensation ",null,"UCD APPA Faculty Compensation","14118",null,"Psychiatric Mental Hlth Nurse PMHNP 20238 ",null,"Psychiatric Mental Hlth Nurse PMHNP 20238",null,null,null,null,null,null,null,null,null,null,null,null,null,null,null,null,null,"","DIG",null,"Library Digitization Program ",null,"Library Digitization Program","GLOTHR0008",null,"Giving Tuesday BML INS for Env ",null,"Giving Tuesday BML INS for Env","200766",null,"Stores Food and Beverage Purchase ",null,"Stores Food and Beverage Purchase"]
[null,null,"UCD ACL5 Cluster 5 E ",null,"UCD ACL5 Cluster 5 E",null,null,"Self Supporting Degree Program Fee C ",null,"Self Supporting Degree Program Fee C",null,null,null,null,null,null,null,null,null,null,null,null,null,null,null,null,null,"","EXD",null,"Library Exceptional Deposits to NRLF ",null,"Library Exceptional Deposits to NRLF","GLOTHR0009",null,"Annual Fund Lapsed DM ",null,"Annual Fund Lapsed DM","200767",null,"Stores General Books Purchase ",null,"Stores General Books Purchase"]
[null,null,"UCD AARE Ag and Resource Economics F ",null,"UCD AARE Ag and Resource Economics F",null,null,"Self Supporting Degree Program Fee D ",null,"Self Supporting Degree Program Fee D",null,null,null,null,null,null,null,null,null,null,null,null,null,null,null,null,null,"","FDW",null,"Library Food and Wine program ",null,"Library Food and Wine program","GLOTHR0010",null,"AF impact postcard ",null,"AF impact postcard","200768",null,"Stores Gifts Purchase ",null,"Stores Gifts Purchase"]
["9AARE01",null,"UCD AARE Ag and Resource Economics ",null,"UCD AARE Ag and Resource Economics","14300",null,"SSDP Nursing Masters Program Mepn 20222 ",null,"SSDP Nursing Masters Program Mepn 20222",null,null,null,null,null,null,null,null,null,null,null,null,null,null,null,null,null,"","GBK",null,"Library Google Books Program ",null,"Library Google Books Program","GLOTHR0011",null,"Give Day DM series ",null,"Give Day DM series","200769",null,"Stores New Textbook Purchase ",null,"Stores New Textbook Purchase"]
["9AARE02",null,"UCD AARE Faculty Resources ",null,"UCD AARE Faculty Resources","14301",null,"SSDP GSM Working Professional MBA Bay Area 20235 ",null,"SSDP GSM Working Professional MBA Bay Area 20235",null,null,null,null,null,null,null,null,null,null,null,null,null,null,null,null,null,"","GFB",null,"Library Collections gift funds ",null,"Library Collections gift funds","GLOTHR0012",null,"Give Day DM Envelopes ",null,"Give Day DM Envelopes","200770",null,"Stores Used Textbook Purchase ",null,"Stores Used Textbook Purchase"]
["9AARE03",null,"UCD AARE Faculty Compensation ",null,"UCD AARE Faculty Compensation","14302",null,"SSDP GSM Working Professional MBA Inc 20236 ",null,"SSDP GSM Working Professional MBA Inc 20236",null,null,null,null,null,null,null,null,null,null,null,null,null,null,null,null,null,"","HSB",null,"Library Collections health science ",null,"Library Collections health science","GLOTHR0013",null,"End of Fiscal Year EOFY GIVE DAY SWEEP DM series ",null,"End of Fiscal Year EOFY GIVE DAY SWEEP DM series","200771",null,"Stores School and Office Supplies Purchase ",null,"Stores School and Office Supplies Purchase"]
["9AARE04",null,"UCD AARE Giannini Foundation of Ag Econo ",null,"UCD AARE Giannini Foundation of Ag Econo","14303",null,"SSDP Master Of Business Analytics 20248 ",null,"SSDP Master Of Business Analytics 20248",null,null,null,null,null,null,null,null,null,null,null,null,null,null,null,null,null,"","ILL",null,"Inter Library Loan Program ",null,"Inter Library Loan Program","GLSTEW0001",null,"EOFY Stewardship mailer ",null,"EOFY Stewardship mailer","200772",null,"Stores Specialty Procuts Purchase ",null,"Stores Specialty Procuts Purchase"]
[null,null,"UCD ACL5 Cluster 5 F ",null,"UCD ACL5 Cluster 5 F","14304",null,"SSDP Online Mba Program 20249 ",null,"SSDP Online Mba Program 20249",null,null,null,null,null,null,null,null,null,null,null,null,null,null,null,null,null,"","LAU",null,"Librarians Association of Univ of CA LAUC and LAUCD ",null,"Librarians Association of Univ of CA LAUC and LAUCD","GLSTEW0002",null,"Milestone Stewardship DM ",null,"Milestone Stewardship DM","200773",null,"Stores Sundries Purchase ",null,"Stores Sundries Purchase"]
["9ACL501",null,"UCD ACL5 Cluster 5 ",null,"UCD ACL5 Cluster 5","14305",null,"SSDP MotherandChild Nutrition 20246 ",null,"SSDP MotherandChild Nutrition 20246",null,null,null,null,null,null,null,null,null,null,null,null,null,null,null,null,null,"","MEM",null,"Library Collections memberships ",null,"Library Collections memberships","GLSVMX0001",null,"Vet Med Envelopes ",null,"Vet Med Envelopes","200774",null,"BML Shellfish Health Lab ",null,"BML Shellfish Health Lab"]
[null,null,"UCD ADES Env Science and Policy F ",null,"UCD ADES Env Science and Policy F","14306",null,"SSDP Forensics 20247 ",null,"SSDP Forensics 20247",null,null,null,null,null,null,null,null,null,null,null,null,null,null,null,null,null,"","MNB",null,"Library Collections main ",null,"Library Collections main","GLSVMX0002",null,"Q1 SVM  Grateful Client Multidesignation Version 1 ",null,"Q1 SVM Grateful Client Multidesignation Version 1","900131",null,"Commodity Sales ",null,"Commodity Sales"]
["9ADES01",null,"UCD ADES Env Science and Policy ",null,"UCD ADES Env Science and Policy","14307",null,"SSDP Physicians Asst Masters Masters Fee 20219 ",null,"SSDP Physicians Asst Masters Masters Fee 20219",null,null,null,null,null,null,null,null,null,null,null,null,null,null,null,null,null,"","OAM",null,"Library Collections open access monographs ",null,"Library Collections open access monographs","GLSVMX0003",null,"SVM  Grateful Client large animal Q1 ",null,"SVM Grateful Client large animal Q1","900143",null,"Physical Plant Direct Hours ",null,"Physical Plant Direct Hours"]
["9ADES02",null,"UCD ADES Faculty Resources ",null,"UCD ADES Faculty Resources","14308",null,"SSDP School Of Medicine Mas Stdt Fee 20027 ",null,"SSDP School Of Medicine Mas Stdt Fee 20027",null,null,null,null,null,null,null,null,null,null,null,null,null,null,null,null,null,"","OPN",null,"Library Collections open access fund ",null,"Library Collections open access fund","GLSVMX0004",null,"SVM Grateful Client small animal Q1 ",null,"SVM Grateful Client small animal Q1","900149",null,"Reimbursements ",null,"Reimbursements"]
["9ADES03",null,"UCD ADES Faculty Compensation ",null,"UCD ADES Faculty Compensation","14309",null,"SSDP GSM Master Of Professional Accountancy 20232 ",null,"SSDP GSM Master Of Professional Accountancy 20232",null,null,null,null,null,null,null,null,null,null,null,null,null,null,null,null,null,"",null,null,"Library Collections CDL for health ",null,"Library Collections CDL for health","GLSVMX0005",null,"SVM San Diego Q1 ",null,"SVM San Diego Q1","900150",null,"Field Research and Maintenance ",null,"Field Research and Maintenance"]
[null,null,"UCD AHCE Human Ecology F ",null,"UCD AHCE Human Ecology F","14310",null,"SSDP Professional Fee School Of Law Icl 20243 ",null,"SSDP Professional Fee School Of Law Icl 20243",null,null,null,null,null,null,null,null,null,null,null,null,null,null,null,null,null,"",null,null,"SAVOR program ",null,"SAVOR program","GLSVMX0006",null,"SVM  Grateful Client Nondonor Q1 ",null,"SVM Grateful Client Nondonor Q1","900153",null,"Leased Facilities ",null,"Leased Facilities"]
["9AHCE01",null,"UCD AHCE Human Ecology ",null,"UCD AHCE Human Ecology","14311",null,"SSDP Professional Fee School Of Law Llm 20244 ",null,"SSDP Professional Fee School Of Law Llm 20244",null,null,null,null,null,null,null,null,null,null,null,null,null,null,null,null,null,"",null,null,"College of Letters and Science Programs ",null,"College of Letters and Science Programs","GLSVMX0007",null,"SVM Veterinary Emergency Response Team ",null,"SVM Veterinary Emergency Response Team",null,null,"Public Service Sub Functions ",null,"Public Service Sub Functions"]
["9AHCE02",null,"UCD AHCE Faculty Resources ",null,"UCD AHCE Faculty Resources","14312",null,"SSDP Doctor of Nursing Practice Program 20245 ",null,"SSDP Doctor of Nursing Practice Program 20245",null,null,null,null,null,null,null,null,null,null,null,null,null,null,null,null,null,"","EEH",null,"All UC Group in Economic History ",null,"All UC Group in Economic History","GLSVMX0008",null,"SVM Deans Club Rose Circle renewal and lapsed  no nondonors ",null,"SVM Deans Club Rose Circle renewal and lapsed no nondonors","200700",null,"Public Information ",null,"Public Information"]
["9AHCE03",null,"UCD AHCE Faculty Compensation ",null,"UCD AHCE Faculty Compensation","14313",null,"SSDP GSM Masters of Management ",null,"SSDP GSM Masters of Management",null,null,null,null,null,null,null,null,null,null,null,null,null,null,null,null,null,"","GTI",null,"Global Tea Institute GTI ",null,"Global Tea Institute GTI","GLSVMX0009",null,"SVM Deans Discretionary Fund ",null,"SVM Deans Discretionary Fund","200701",null,"Community Education ",null,"Community Education"]
[null,null,"UCD ADNO Deans Office E ",null,"UCD ADNO Deans Office E",null,null,"Course Materials and Services Fees ",null,"Course Materials and Services Fees",null,null,null,null,null,null,null,null,null,null,null,null,null,null,null,null,null,"","ROI",null,"Religions of India ",null,"Religions of India","GLSVMX0010",null,"SVM Multidesignation Version 2 ",null,"SVM Multidesignation Version 2","200702",null,"Education Outreach ",null,"Education Outreach"]
[null,null,"UCD ADNO Deans Office F ",null,"UCD ADNO Deans Office F",null,null,"Course Materials and Services Fees Undergraduate D ",null,"Course Materials and Services Fees Undergraduate D",null,null,null,null,null,null,null,null,null,null,null,null,null,null,null,null,null,"","VSI",null,"Vietnam Studies Initiative ",null,"Vietnam Studies Initiative","GLSVMX0011",null,"SVM  Grateful Client large animal Q2 ",null,"SVM Grateful Client large animal Q2","200703",null,"Aggie Ambassadors ",null,"Aggie Ambassadors"]
["9ADNO01",null,"UCD ADNO Deans Office ",null,"UCD ADNO Deans Office","14400",null,"Course Materials and Services Fees Undergraduate ",null,"Course Materials and Services Fees Undergraduate",null,null,null,null,null,null,null,null,null,null,null,null,null,null,null,null,null,"",null,null,"School of Health Programs ",null,"School of Health Programs","GLSVMX0012",null,"SVM Grateful Client small animal Q2 ",null,"SVM Grateful Client small animal Q2","200704",null,"Aggie Jumpstart ",null,"Aggie Jumpstart"]
["9ADNO03",null,"UCD ADNO Faculty Compensation ",null,"UCD ADNO Faculty Compensation",null,null,"Course Materials and Services Fees Graduate ",null,"Course Materials and Services Fees Graduate",null,null,null,null,null,null,null,null,null,null,null,null,null,null,null,null,null,"","CFW",null,"Prior Year Spend ",null,"Prior Year Spend","GLSVMX0013",null,"SVM  Grateful Client Nondonor Q2 ",null,"SVM Grateful Client Nondonor Q2","200705",null,"Faculty Orientation ",null,"Faculty Orientation"]
["9ADNO99",null,"UCD ADNO Deans Provisions ",null,"UCD ADNO Deans Provisions","14410",null,"Course Materials and Services Fees Graduate School Of Vet Med ",null,"Course Materials and Services Fees Graduate School Of Vet Med",null,null,null,null,null,null,null,null,null,null,null,null,null,null,null,null,null,"","CHT",null,"Office of Wellness ",null,"Office of Wellness","GLSVMX0014",null,"SVM San Diego Q2 ",null,"SVM San Diego Q2","200706",null,"Gel Imaging ",null,"Gel Imaging"]
[null,null,"UCD ACL2 Metro Cluster E ",null,"UCD ACL2 Metro Cluster E","14411",null,"Course Materials and Services Fees Graduate School Of Med ",null,"Course Materials and Services Fees Graduate School Of Med",null,null,null,null,null,null,null,null,null,null,null,null,null,null,null,null,null,"","CLF",null,"Cleft Program ",null,"Cleft Program","GLSVMX0015",null,"SVM Center for Equine Health CEH Version 1 ",null,"SVM Center for Equine Health CEH Version 1","200707",null,"Histology ",null,"Histology"]
[null,null,"UCD ACL2 Metro Cluster F ",null,"UCD ACL2 Metro Cluster F","14412",null,"Course Materials and Services Fees Graduate Grad School Of Management ",null,"Course Materials and Services Fees Graduate Grad School Of Management",null,null,null,null,null,null,null,null,null,null,null,null,null,null,null,null,null,"","CLP",null,"Clinical Programs ",null,"Clinical Programs","GLSVMX0016",null,"SVM Raptor Center ",null,"SVM Raptor Center","200708",null,"Student Yield ",null,"Student Yield"]
["9ACL201",null,"UCD ACL2 Metro Cluster ",null,"UCD ACL2 Metro Cluster",null,null,"Student Services Fee C ",null,"Student Services Fee C",null,null,null,null,null,null,null,null,null,null,null,null,null,null,null,null,null,"","UEP",null,"Undergraduate Education Program ",null,"Undergraduate Education Program","GLSVMX0017",null,"SVM  Grateful Client Multidesignation Version 3 ",null,"SVM Grateful Client Multidesignation Version 3","200709",null,"Undergraduate Outreach ",null,"Undergraduate Outreach"]
[null,null,"UCD AETX Environmental Toxicology F ",null,"UCD AETX Environmental Toxicology F",null,null,"Student Services Fee D ",null,"Student Services Fee D",null,null,null,null,null,null,null,null,null,null,null,null,null,null,null,null,null,"",null,null,"Grad Programs ",null,"Grad Programs","GLSVMX0018",null,"SVM  Grateful Client Nondonor Q3 ",null,"SVM Grateful Client Nondonor Q3","200710",null,"Learning by Leading ",null,"Learning by Leading"]
["9AETX01",null,"UCD AETX Environmental Toxicology ",null,"UCD AETX Environmental Toxicology","14500",null,"Student Services Fee 20000 ",null,"Student Services Fee 20000",null,null,null,null,null,null,null,null,null,null,null,null,null,null,null,null,null,"",null,null,"Academic Degrees ",null,"Academic Degrees","GLSVMX0019",null,"SVM  Grateful Client large animal Q3 ",null,"SVM Grateful Client large animal Q3","200711",null,"Plant Conservation ",null,"Plant Conservation"]
["9AETX02",null,"UCD AETX Faculty Resources ",null,"UCD AETX Faculty Resources","14501",null,"Student Mental Health Fee 20021 ",null,"Student Mental Health Fee 20021",null,null,null,null,null,null,null,null,null,null,null,null,null,null,null,null,null,"","ABG",null,"Animal Biology ",null,"Animal Biology","GLSVMX0020",null,"SVM Grateful Client small animal Q3 ",null,"SVM Grateful Client small animal Q3",null,null,"IT Activities ",null,"IT Activities"]
["9AETX03",null,"UCD AETX Faculty Compensation ",null,"UCD AETX Faculty Compensation",null,null,"Campus Based Fees C ",null,"Campus Based Fees C",null,null,null,null,null,null,null,null,null,null,null,null,null,null,null,null,null,"","ACH",null,"Agricultural and Environmental Chemistry ",null,"Agricultural and Environmental Chemistry","GLSVMX0021",null,"SVM San Diego Q3 ",null,"SVM San Diego Q3","200506",null,"Information Technology Activities ",null,"Information Technology Activities"]
[null,null,"UCD ALAW Land Air and Water Resources F ",null,"UCD ALAW Land Air and Water Resources F",null,null,"Campus Based Fees D ",null,"Campus Based Fees D",null,null,null,null,null,null,null,null,null,null,null,null,null,null,null,null,null,"","AHI",null,"Art History ",null,"Art History","GLSVMX0022",null,"SVM Nondonor Q4 ",null,"SVM Nondonor Q4","200800",null,"Web Development ",null,"Web Development"]
["9ALAW01",null,"UCD ALAW Land Air and Water Resources ",null,"UCD ALAW Land Air and Water Resources","14600",null,"Student Services Maintenance Fee 20010 ",null,"Student Services Maintenance Fee 20010",null,null,null,null,null,null,null,null,null,null,null,null,null,null,null,null,null,"","ANB",null,"Animal Behavior ",null,"Animal Behavior","GLSVMX0023",null,"SVM  Grateful Client large animal Q4 ",null,"SVM Grateful Client large animal Q4","200801",null,"Storage ",null,"Storage"]
["9ALAW02",null,"UCD ALAW Faculty Resources ",null,"UCD ALAW Faculty Resources","14601",null,"Student Health Services Fee 20011 ",null,"Student Health Services Fee 20011",null,null,null,null,null,null,null,null,null,null,null,null,null,null,null,null,null,"","ANT",null,"Anthropology ",null,"Anthropology","GLSVMX0024",null,"SVM San Diego Q4 ",null,"SVM San Diego Q4","200802",null,"Fire Walls ",null,"Fire Walls"]
["9ALAW03",null,"UCD ALAW Faculty Compensation ",null,"UCD ALAW Faculty Compensation","14602",null,"Student Facilities Safety Fee 20012 ",null,"Student Facilities Safety Fee 20012",null,null,null,null,null,null,null,null,null,null,null,null,null,null,null,null,null,"","APM",null,"Applied Mathematics ",null,"Applied Mathematics","GLSVMX0025",null,"SVM Grateful Client small animal Q4 ",null,"SVM Grateful Client small animal Q4","200803",null,"Service Desk ",null,"Service Desk"]
[null,null,"UCD AWFC Wildlife Fish and Conser Bio F ",null,"UCD AWFC Wildlife Fish and Conser Bio F","14603",null,"Face FacilitiesandCampus Enhancement Fee 20013 ",null,"Face FacilitiesandCampus Enhancement Fee 20013",null,null,null,null,null,null,null,null,null,null,null,null,null,null,null,null,null,"","ARE",null,"Agricultural and Resource Economics ",null,"Agricultural and Resource Economics",null,null,"GL CES Events GL Only Projects ",null,"GL CES Events GL Only Projects","200804",null,"Tier 1 Support ",null,"Tier 1 Support"]
["9AWFC01",null,"UCD AWFC Wildlife Fish and Conser Bio ",null,"UCD AWFC Wildlife Fish and Conser Bio","14604",null,"Lleap Legal Educ EnhanceandAccess Fee 20014 ",null,"Lleap Legal Educ EnhanceandAccess Fee 20014",null,null,null,null,null,null,null,null,null,null,null,null,null,null,null,null,null,"","ART",null,"Art ",null,"Art","GLACCDCS01",null,"ACC Cost Share ",null,"ACC Cost Share","200805",null,"Tier 2 Support ",null,"Tier 2 Support"]
["9AWFC02",null,"UCD AWFC Faculty Resources ",null,"UCD AWFC Faculty Resources","14605",null,"Davis Campus Host Admin Fee 20015 ",null,"Davis Campus Host Admin Fee 20015",null,null,null,null,null,null,null,null,null,null,null,null,null,null,null,null,null,"","ATM",null,"Atmospheric Science ",null,"Atmospheric Science","GLBACCD01",null,"ACCD Cost Share GL Only ",null,"ACCD Cost Share GL Only","200807",null,"IT Quality Assurance ",null,"IT Quality Assurance"]
["9AWFC03",null,"UCD AWFC Faculty Compensation ",null,"UCD AWFC Faculty Compensation","14606",null,"Grad Cei Campus Expansion Initiative 20016 ",null,"Grad Cei Campus Expansion Initiative 20016",null,null,null,null,null,null,null,null,null,null,null,null,null,null,null,null,null,"","AVS",null,"Avian Sciences ",null,"Avian Sciences","GLCBSPSS01",null,"Dean's Office CW Pass Through ",null,"Dean's Office CW Pass Through","200808",null,"Software Development ",null,"Software Development"]
[null,null,"UCD APLS Plant Sciences E ",null,"UCD APLS Plant Sciences E","14607",null,"Ungrad Cei Campus Expansion Initiative 20017 ",null,"Ungrad Cei Campus Expansion Initiative 20017",null,null,null,null,null,null,null,null,null,null,null,null,null,null,null,null,null,"","BCB",null,"Biochem Molecular Cellular and Developmental Biology ",null,"Biochem Molecular Cellular and Developmental Biology","GLCES00001",null,"CES SWORD AND SANDALS ",null,"CES SWORD AND SANDALS","200809",null,"Computer Labs ",null,"Computer Labs"]
[null,null,"UCD APLS Plant Sciences F ",null,"UCD APLS Plant Sciences F","14608",null,"MedVM Cei Campus Expansion Initiative 20018 ",null,"MedVM Cei Campus Expansion Initiative 20018",null,null,null,null,null,null,null,null,null,null,null,null,null,null,null,null,null,"","BIM",null,"Biomedical Engineering ",null,"Biomedical Engineering","GLCES00002",null,"CES 11TH INTL SYMPOSIUM ON LEAF SURFACE ",null,"CES 11TH INTL SYMPOSIUM ON LEAF SURFACE","200810",null,"Incident Response Services ",null,"Incident Response Services"]
["9APLS01",null,"UCD APLS Plant Sciences ",null,"UCD APLS Plant Sciences","14609",null,"Law Student Health Ctr Fee 20019 ",null,"Law Student Health Ctr Fee 20019",null,null,null,null,null,null,null,null,null,null,null,null,null,null,null,null,null,"","BPH",null,"Biophysics ",null,"Biophysics","GLCES00003",null,"CES FOUNDATIONS OF PROCESS ANALYTICS ",null,"CES FOUNDATIONS OF PROCESS ANALYTICS","200811",null,"Application or Cloud Sec Serv ",null,"Application or Cloud Sec Serv"]
["9APLS02",null,"UCD APLS Faculty Resources ",null,"UCD APLS Faculty Resources","14610",null,"The Green Initiative Fund TGIF 20023 ",null,"The Green Initiative Fund TGIF 20023",null,null,null,null,null,null,null,null,null,null,null,null,null,null,null,null,null,"","BSE",null,"Biological Systems Engineering ",null,"Biological Systems Engineering","GLCES00004",null,"CES BLOOD DRIVE VITALANT ",null,"CES BLOOD DRIVE VITALANT","200812",null,"Risk and Compliance Sec Serv ",null,"Risk and Compliance Sec Serv"]
["9APLS03",null,"UCD APLS Faculty Compensation ",null,"UCD APLS Faculty Compensation","14611",null,"The California Aggie Initiative 20024 ",null,"The California Aggie Initiative 20024",null,null,null,null,null,null,null,null,null,null,null,null,null,null,null,null,null,"","BST",null,"Biostatistics ",null,"Biostatistics","GLCES00005",null,"CES LACOMMARE PIPA TOUR OF GAZEBO PCL ",null,"CES LACOMMARE PIPA TOUR OF GAZEBO PCL","200813",null,"Research Supp Sec Serv ",null,"Research Supp Sec Serv"]
["9APLS09",null,"UCD APLS California Crop Improvement Association ",null,"UCD APLS California Crop Improvement Association","14612",null,"International Students Addl Fees 20035 ",null,"International Students Addl Fees 20035",null,null,null,null,null,null,null,null,null,null,null,null,null,null,null,null,null,"","CCB",null,"Chemistry and Chemical Biology ",null,"Chemistry and Chemical Biology","GLCES00006",null,"CES LILAHS BAT MITZVAH ",null,"CES LILAHS BAT MITZVAH","200814",null,"Threat Management Sec Serv ",null,"Threat Management Sec Serv"]
[null,null,"UCD APLS Centers F ",null,"UCD APLS Centers F","14613",null,"Study Abroad Admin Fees 20036 ",null,"Study Abroad Admin Fees 20036",null,null,null,null,null,null,null,null,null,null,null,null,null,null,null,null,null,"","CHD",null,"Child Development ",null,"Child Development","GLCES00007",null,"CES TRANSLATIONAL ESI CONFERENCE ",null,"CES TRANSLATIONAL ESI CONFERENCE","200815",null,"Software ",null,"Software"]
["9APLS10",null,"UCD APLS Fruit and Nut Center ",null,"UCD APLS Fruit and Nut Center","14614",null,"Candidacy Fee Income 20078 ",null,"Candidacy Fee Income 20078",null,null,null,null,null,null,null,null,null,null,null,null,null,null,null,null,null,"","CHE",null,"Chemistry ",null,"Chemistry","GLCES00008",null,"CES FPSAC 2023 ",null,"CES FPSAC 2023","200816",null,"Help Desk andTraining ",null,"Help Desk andTraining"]
["9APLS11",null,"UCD APLS Postharvest Outreach ",null,"UCD APLS Postharvest Outreach","14615",null,"ASUCD Unitrans Student Fees 20079 ",null,"ASUCD Unitrans Student Fees 20079",null,null,null,null,null,null,null,null,null,null,null,null,null,null,null,null,null,"","CLR",null,"Clinical Research ",null,"Clinical Research","GLCES00009",null,"CES CITY OF DAVIS CAMP PUTAH DAY CAMP ",null,"CES CITY OF DAVIS CAMP PUTAH DAY CAMP","200817",null,"Data Integrity ",null,"Data Integrity"]
["9APLS12",null,"UCD APLS Weed Research Center ",null,"UCD APLS Weed Research Center","14616",null,"ASUCD Fee Eop Program Fund 20081 ",null,"ASUCD Fee Eop Program Fund 20081",null,null,null,null,null,null,null,null,null,null,null,null,null,null,null,null,null,"","CLT",null,"Cultural Studies ",null,"Cultural Studies","GLCES00010",null,"CES MATT AND LIZS WEDDING ",null,"CES MATT AND LIZS WEDDING","200818",null,"IET Backups ",null,"IET Backups"]
[null,null,"UC Davis School of Veterinary Medicine ",null,"UC Davis School of Veterinary Medicine","14617",null,"Student Union Fee Income 20083 ",null,"Student Union Fee Income 20083",null,null,null,null,null,null,null,null,null,null,null,null,null,null,null,null,null,"","CMD",null,"Community Development ",null,"Community Development","GLCES00011",null,"CES BURNETT DUTTON WEDDING ",null,"CES BURNETT DUTTON WEDDING","200819",null,"IET Housing ",null,"IET Housing"]
[null,null,"UCD VM CAHFS CA Ani Hea Food Saf Lab E ",null,"UCD VM CAHFS CA Ani Hea Food Saf Lab E","14618",null,"Graduate Student Association 20085 ",null,"Graduate Student Association 20085",null,null,null,null,null,null,null,null,null,null,null,null,null,null,null,null,null,"","CMN",null,"Communication ",null,"Communication","GLCES00012",null,"CES KOINONIA CAMPUS INTEREST GROUP ",null,"CES KOINONIA CAMPUS INTEREST GROUP","200821",null,"IET Virtualization ",null,"IET Virtualization"]
[null,null,"UCD VM CAHFS CA Ani Hea Food Saf Lab F ",null,"UCD VM CAHFS CA Ani Hea Food Saf Lab F","14619",null,"Law Student Association 20086 ",null,"Law Student Association 20086",null,null,null,null,null,null,null,null,null,null,null,null,null,null,null,null,null,"","COM",null,"Comparative Literature ",null,"Comparative Literature","GLCES00013",null,"CES Emergency Medicine Hot Topics ",null,"CES Emergency Medicine Hot Topics","200822",null,"IET Multimedia Equipment Rental ",null,"IET Multimedia Equipment Rental"]
["9VHFS01",null,"UCD VM CAHFS CA Ani Hea Food Saf Lab ",null,"UCD VM CAHFS CA Ani Hea Food Saf Lab","14620",null,"Student Fees Summary 20398 ",null,"Student Fees Summary 20398",null,null,null,null,null,null,null,null,null,null,null,null,null,null,null,null,null,"","CSI",null,"Computer Science ",null,"Computer Science","GLCES00014",null,"6TH ANNUAL STAFF BREWING COMPETITIO ",null,"6TH ANNUAL STAFF BREWING COMPETITIO","200823",null,"IET Multimedia Services ",null,"IET Multimedia Services"]
[null,null,"UCD VM DO Deans Office E ",null,"UCD VM DO Deans Office E","14621",null,"Ship Admin Services 66420 ",null,"Ship Admin Services 66420",null,null,null,null,null,null,null,null,null,null,null,null,null,null,null,null,null,"","DES",null,"Design ",null,"Design","GLCES00015",null,"INFECTIOUS DISEASES CONFERENCE ",null,"INFECTIOUS DISEASES CONFERENCE",null,null,"Other Specialty Sub Functions ",null,"Other Specialty Sub Functions"]
[null,null,"UCD VM DO VORG Research Graduate Edu F ",null,"UCD VM DO VORG Research Graduate Edu F","14622",null,"Graduate Health Insurance 66421 ",null,"Graduate Health Insurance 66421",null,null,null,null,null,null,null,null,null,null,null,null,null,null,null,null,null,"","DRA",null,"Dramatic Art ",null,"Dramatic Art","GLCES00016",null,"5TH INTERNATIONAL CONF OF FMR1 ",null,"5TH INTERNATIONAL CONF OF FMR1","200900",null,"Arson Investigation ",null,"Arson Investigation"]
["9VMD219",null,"UCD VM DO VORG CFAH Cen Food Animal Heal ",null,"UCD VM DO VORG CFAH Cen Food Animal Heal","14623",null,"Undergrad Health Insurance Fee 66423 ",null,"Undergrad Health Insurance Fee 66423",null,null,null,null,null,null,null,null,null,null,null,null,null,null,null,null,null,"","ECE",null,"Civil and Environmental Engineering ",null,"Civil and Environmental Engineering","GLCES00017",null,"XVI ICSP ",null,"XVI ICSP","200901",null,"Dispatch and Control Center ",null,"Dispatch and Control Center"]
[null,null,"UCD VM EX Cooperative Extension E ",null,"UCD VM EX Cooperative Extension E","14624",null,"Fee Installment Plan Processing Fee 67250 ",null,"Fee Installment Plan Processing Fee 67250",null,null,null,null,null,null,null,null,null,null,null,null,null,null,null,null,null,"","ECH",null,"Chemical Engineering ",null,"Chemical Engineering","GLCES00018",null,"VARSITY SPIRIT CHEER DANCE CAMP ",null,"VARSITY SPIRIT CHEER DANCE CAMP","200902",null,"Fleet Services and Rentals ",null,"Fleet Services and Rentals"]
[null,null,"UCD VM EX Cooperative Extension F ",null,"UCD VM EX Cooperative Extension F",null,null,"Other Student Fees C ",null,"Other Student Fees C",null,null,null,null,null,null,null,null,null,null,null,null,null,null,null,null,null,"","ECL",null,"Ecology ",null,"Ecology","GLCES00019",null,"USTA FALL JR TEAM TENNIS SECTIONALS ",null,"USTA FALL JR TEAM TENNIS SECTIONALS","200903",null,"Hazardous Materials Response ",null,"Hazardous Materials Response"]
["9VMEX01",null,"UCD VM EX Cooperative Extension ",null,"UCD VM EX Cooperative Extension",null,null,"Other Student Fees D ",null,"Other Student Fees D",null,null,null,null,null,null,null,null,null,null,null,null,null,null,null,null,null,"","ECN",null,"Economics ",null,"Economics","GLCES00020",null,"A GRAND AFFAIR RENTALS ",null,"A GRAND AFFAIR RENTALS","200904",null,"Mapping ",null,"Mapping"]
["9VMEX02",null,"UCD VM EX Faculty Resources ",null,"UCD VM EX Faculty Resources","14800",null,"School Of Law Special Student Fee 20025 ",null,"School Of Law Special Student Fee 20025",null,null,null,null,null,null,null,null,null,null,null,null,null,null,null,null,null,"","ECW",null,"Creative Writing ",null,"Creative Writing","GLCES00021",null,"TERPNET 2023 ",null,"TERPNET 2023","200905",null,"Prevention ",null,"Prevention"]
[null,null,"UCD VM PHR Population Health Reprod E ",null,"UCD VM PHR Population Health Reprod E","14801",null,"School Of Law Seat Deposit Fee 20028 ",null,"School Of Law Seat Deposit Fee 20028",null,null,null,null,null,null,null,null,null,null,null,null,null,null,null,null,null,"","EDA",null,"Education MA ",null,"Education MA","GLCES00022",null,"BITS AND BITES ",null,"BITS AND BITES","200906",null,"Urban Search and Rescue ",null,"Urban Search and Rescue"]
[null,null,"UCD VM PHR Population Health Reprod F ",null,"UCD VM PHR Population Health Reprod F","14802",null,"Vet Med Special Student Fee 20029 ",null,"Vet Med Special Student Fee 20029",null,null,null,null,null,null,null,null,null,null,null,null,null,null,null,null,null,"","EDP",null,"Education PhD ",null,"Education PhD","GLCES00023",null,"PSYCHOTIC DISORDERS 2023 ",null,"PSYCHOTIC DISORDERS 2023","200907",null,"Pass Through Costs ",null,"Pass Through Costs"]
["9VPHR01",null,"UCD VM PHR Population Health Reprod ",null,"UCD VM PHR Population Health Reprod","14803",null,"Grad Sch Of Management Spec Stdt Fe 20031 ",null,"Grad Sch Of Management Spec Stdt Fe 20031",null,null,null,null,null,null,null,null,null,null,null,null,null,null,null,null,null,"","EEC",null,"Electrical and Computer Engineering ",null,"Electrical and Computer Engineering","GLCES00024",null,"EMERGENCY MEDICINE UPDATE HOT ",null,"EMERGENCY MEDICINE UPDATE HOT","200908",null,"Promotional Giveaway ",null,"Promotional Giveaway"]
["9VPHR02",null,"UCD VM PHR Faculty Compensation ",null,"UCD VM PHR Faculty Compensation","14804",null,"Grad Schl Of Mgmt SSDP Application Fees 20032 ",null,"Grad Schl Of Mgmt SSDP Application Fees 20032",null,null,null,null,null,null,null,null,null,null,null,null,null,null,null,null,null,"","EGG",null,"Energy Systems ",null,"Energy Systems","GLCES00025",null,"40TH ANNUAL NPRC SYMPOSIUM ",null,"40TH ANNUAL NPRC SYMPOSIUM","200909",null,"K9 Dogs ",null,"K9 Dogs"]
["9VPHR03",null,"UCD VM PHR Faculty Resources ",null,"UCD VM PHR Faculty Resources","14805",null,"Tuition Scholarship Allow Contra Revn 20099 ",null,"Tuition Scholarship Allow Contra Revn 20099",null,null,null,null,null,null,null,null,null,null,null,null,null,null,null,null,null,"","EMC",null,"Education CredentialMA ",null,"Education CredentialMA","GLCES00026",null,"2023 SUMMER TAX INSTITUTE ",null,"2023 SUMMER TAX INSTITUTE","200910",null,"Core Officer ",null,"Core Officer"]
[null,null,"UCD VM PMI Pathology Micro Immun E ",null,"UCD VM PMI Pathology Micro Immun E","14806",null,"Grad Stud Supplemental Application Fee 20201 ",null,"Grad Stud Supplemental Application Fee 20201",null,null,null,null,null,null,null,null,null,null,null,null,null,null,null,null,null,"","EMS",null,"Materials Science and Engineering ",null,"Materials Science and Engineering","GLCES00027",null,"EPA PREP OCTOBER 2023 ",null,"EPA PREP OCTOBER 2023","200911",null,"Cadet ",null,"Cadet"]
[null,null,"UCD VM PMI Pathology Micro Immun F ",null,"UCD VM PMI Pathology Micro Immun F","14807",null,"School Of Medicine Supplemental App Fee 20202 ",null,"School Of Medicine Supplemental App Fee 20202",null,null,null,null,null,null,null,null,null,null,null,null,null,null,null,null,null,"","ENL",null,"English ",null,"English","GLCES00028",null,"IBD PROFESSIONAL EDUCATION CON ",null,"IBD PROFESSIONAL EDUCATION CON","200912",null,"Special Services ",null,"Special Services"]
["9VPMI01",null,"UCD VM PMI Pathology Micro Immun ",null,"UCD VM PMI Pathology Micro Immun","14808",null,"Mba Supplemental Application Fee 20203 ",null,"Mba Supplemental Application Fee 20203",null,null,null,null,null,null,null,null,null,null,null,null,null,null,null,null,null,"","ENT",null,"Entomology ",null,"Entomology","GLCES00029",null,"GRADUATE AND LAW SCHOOL FAIR ",null,"GRADUATE AND LAW SCHOOL FAIR","200913",null,"Campus Copier Program ",null,"Campus Copier Program"]
["9VPMI02",null,"UCD VM PMI Faculty Compensation ",null,"UCD VM PMI Faculty Compensation","14809",null,"Vet Med Supplemental Application Fee 20234 ",null,"Vet Med Supplemental Application Fee 20234",null,null,null,null,null,null,null,null,null,null,null,null,null,null,null,null,null,"","EPD",null,"Epidemiology ",null,"Epidemiology","GLCES00030",null,"HORSE DAY 2023 ",null,"HORSE DAY 2023","200914",null,"Electrical Commodities and Services ",null,"Electrical Commodities and Services"]
["9VPMI03",null,"UCD VM PMI Faculty Resources ",null,"UCD VM PMI Faculty Resources","14810",null,"Summer Field Courses Program Fees 20296 ",null,"Summer Field Courses Program Fees 20296",null,null,null,null,null,null,null,null,null,null,null,null,null,null,null,null,null,"","EPM",null,"Environmental Policy and Management ",null,"Environmental Policy and Management","GLCES00031",null,"ANESTHESIOLOGY UPDATE ",null,"ANESTHESIOLOGY UPDATE","200915",null,"Fleet Rentals ",null,"Fleet Rentals"]
[null,null,"UCD VM TRC Teaching Research Ct Tulare E ",null,"UCD VM TRC Teaching Research Ct Tulare E",null,null,"Med Comp Plan C ",null,"Med Comp Plan C",null,null,null,null,null,null,null,null,null,null,null,null,null,null,null,null,null,"","EPS",null,"Earth and Planetary Sciences ",null,"Earth and Planetary Sciences","GLCES00032",null,"GERMAN AM VERTICAL SOLAR AG CONF ",null,"GERMAN AM VERTICAL SOLAR AG CONF","200916",null,"Courier Services ",null,"Courier Services"]
[null,null,"UCD VM TRC Fac Res Teach Res Ct Tulare F ",null,"UCD VM TRC Fac Res Teach Res Ct Tulare F",null,null,"Clinical Operations ",null,"Clinical Operations",null,null,null,null,null,null,null,null,null,null,null,null,null,null,null,null,null,"","ESD",null,"Ecology Joint Program with San Diego State Uni ",null,"Ecology Joint Program with San Diego State Uni","GLCES00033",null,"UC SYSTEMWIDE MARKETING MEET ",null,"UC SYSTEMWIDE MARKETING MEET","200917",null,"Fuel Services ",null,"Fuel Services"]
["9VTRC11",null,"UCD VM TRC Faculty Resources ",null,"UCD VM TRC Faculty Resources","15001",null,"Med Comp Plan Current Yr Inc 60103 ",null,"Med Comp Plan Current Yr Inc 60103",null,null,null,null,null,null,null,null,null,null,null,null,null,null,null,null,null,"","FFS",null,"French and Francophone Studies ",null,"French and Francophone Studies","GLCES00034",null,"VITALANT BLOOD DRIVE OCT23 MAY24 ",null,"VITALANT BLOOD DRIVE OCT23 MAY24","200918",null,"Gas Commodities and Services ",null,"Gas Commodities and Services"]
[null,null,"UCD VM VMB Molecular Bio Sciences E ",null,"UCD VM VMB Molecular Bio Sciences E",null,null,"Med Comp Reserves ",null,"Med Comp Reserves",null,null,null,null,null,null,null,null,null,null,null,null,null,null,null,null,null,"","FSC",null,"Food Science ",null,"Food Science","GLCES00035",null,"2023 INFORMATION SECURITY SYM ",null,"2023 INFORMATION SECURITY SYM","200919",null,"Light Duty ",null,"Light Duty"]
[null,null,"UCD VM VMB Molecular Bio Sciences F ",null,"UCD VM VMB Molecular Bio Sciences F","15021",null,"Medcomplan Academic Enhancement Fd 60105 ",null,"Medcomplan Academic Enhancement Fd 60105",null,null,null,null,null,null,null,null,null,null,null,null,null,null,null,null,null,"","GEL",null,"Geology ",null,"Geology","GLCES00036",null,"PRE HEALTH CONFERENCE 2023 ",null,"PRE HEALTH CONFERENCE 2023","200920",null,"Mail Sorting Services ",null,"Mail Sorting Services"]
["9VVMB01",null,"UCD VM VMB Molecular Bio Sciences ",null,"UCD VM VMB Molecular Bio Sciences","15022",null,"MS Clin Sal Pl Uncollected Inc 60107 ",null,"MS Clin Sal Pl Uncollected Inc 60107",null,null,null,null,null,null,null,null,null,null,null,null,null,null,null,null,null,"","GEO",null,"Geography ",null,"Geography","GLCES00037",null,"PRE HEALTH CONFERENCE 2023 GRP ",null,"PRE HEALTH CONFERENCE 2023 GRP","200921",null,"Mobility Assistance Shuttles ",null,"Mobility Assistance Shuttles"]
["9VVMB02",null,"UCD VM VMB Faculty Compensation ",null,"UCD VM VMB Faculty Compensation","15023",null,"School Of Medicine Comp Plan Income 60108 ",null,"School Of Medicine Comp Plan Income 60108",null,null,null,null,null,null,null,null,null,null,null,null,null,null,null,null,null,"","GER",null,"German ",null,"German","GLCES00038",null,"PRE HEALTH CONF 2023 VENDORS ",null,"PRE HEALTH CONF 2023 VENDORS","200922",null,"Central Heating Commodities and Services ",null,"Central Heating Commodities and Services"]
["9VVMB03",null,"UCD VM VMB Faculty Resources ",null,"UCD VM VMB Faculty Resources","15024",null,"Med Comp Plan Deans Fund 60109 ",null,"Med Comp Plan Deans Fund 60109",null,null,null,null,null,null,null,null,null,null,null,null,null,null,null,null,null,"","HAG",null,"Horticulture and Agronomy ",null,"Horticulture and Agronomy","GLCES00039",null,"CAL DAIRY SUSTAINABILITY SUMMIT ",null,"CAL DAIRY SUSTAINABILITY SUMMIT","200923",null,"Water Commodities and Services ",null,"Water Commodities and Services"]
[null,null,"UCD VM VME Medicine Epidemiology E ",null,"UCD VM VME Medicine Epidemiology E",null,null,"Loans C ",null,"Loans C",null,null,null,null,null,null,null,null,null,null,null,null,null,null,null,null,null,"","HDE",null,"Human Development ",null,"Human Development","GLCES00040",null,"USTA NORCAL JUNIOR TRAINING CAMP ",null,"USTA NORCAL JUNIOR TRAINING CAMP","200929",null,"Uniforms ",null,"Uniforms"]
[null,null,"UCD VM VME Medicine Epidemiology F ",null,"UCD VM VME Medicine Epidemiology F",null,null,"Loans D ",null,"Loans D",null,null,null,null,null,null,null,null,null,null,null,null,null,null,null,null,null,"","HIS",null,"History ",null,"History","GLCES00041",null,"HUMAN GENOMICS SYMPOSIUM ",null,"HUMAN GENOMICS SYMPOSIUM","200930",null,"Foods for Health Institute ",null,"Foods for Health Institute"]
["9VVME01",null,"UCD VM VME Medicine Epidemiology ",null,"UCD VM VME Medicine Epidemiology","15400",null,"Loan Funds Reserve For Bad Debts 02299 ",null,"Loan Funds Reserve For Bad Debts 02299",null,null,null,null,null,null,null,null,null,null,null,null,null,null,null,null,null,"","HYS",null,"Hydrologic Sciences ",null,"Hydrologic Sciences","GLCES00042",null,"BIOINFORMATICS MAY DEC 2023 ",null,"BIOINFORMATICS MAY DEC 2023","200931",null,"Boarding ",null,"Boarding"]
["9VVME02",null,"UCD VM VME Faculty Compensation ",null,"UCD VM VME Faculty Compensation","15401",null,"Aggi Alumni Loan Fund 02205 ",null,"Aggi Alumni Loan Fund 02205",null,null,null,null,null,null,null,null,null,null,null,null,null,null,null,null,null,"","IAD",null,"International Agricultural Development ",null,"International Agricultural Development","GLCES00043",null,"ULTRASOUND UPDATE VIRTUAL CONF ",null,"ULTRASOUND UPDATE VIRTUAL CONF","200932",null,"Artist Fees ",null,"Artist Fees"]
["9VVME03",null,"UCD VM VME Faculty Resources ",null,"UCD VM VME Faculty Resources","15402",null,"Alumni Student Loan Fund 02206 ",null,"Alumni Student Loan Fund 02206",null,null,null,null,null,null,null,null,null,null,null,null,null,null,null,null,null,"","IGG",null,"Integrative Genetics and Genomics ",null,"Integrative Genetics and Genomics","GLCES00044",null,"GURU GOBIND SINGH FIELD HOCKEY TOUR ",null,"GURU GOBIND SINGH FIELD HOCKEY TOUR","200933",null,"Artist Lodging ",null,"Artist Lodging"]
[null,null,"Entity Wide Activities ",null,"Entity Wide Activities","15403",null,"American Electronics Assn Loan 02208 ",null,"American Electronics Assn Loan 02208",null,null,null,null,null,null,null,null,null,null,null,null,null,null,null,null,null,"","IMM",null,"Immunology ",null,"Immunology","GLCES00045",null,"GLOBAL LEARNING FAIR ",null,"GLOBAL LEARNING FAIR","200934",null,"Artist Hospitality ",null,"Artist Hospitality"]
[null,null,"Entity Wide Provisions D ",null,"Entity Wide Provisions D","15404",null,"Ama Erf Student Loan Fd 02209 ",null,"Ama Erf Student Loan Fd 02209",null,null,null,null,null,null,null,null,null,null,null,null,null,null,null,null,null,"","IPB",null,"Integrative Pathobiology ",null,"Integrative Pathobiology","GLCES00046",null,"PSYMCA 2023 ",null,"PSYMCA 2023","200935",null,"Art Models ",null,"Art Models"]
[null,null,"Entity Wide Provisions E ",null,"Entity Wide Provisions E","15405",null,"Anchordoguy Ford Motor Ln Fd 02210 ",null,"Anchordoguy Ford Motor Ln Fd 02210",null,null,null,null,null,null,null,null,null,null,null,null,null,null,null,null,null,"","LIN",null,"Linguistics ",null,"Linguistics","GLCES00047",null,"WELLS YAMAMOTO WEDDING ",null,"WELLS YAMAMOTO WEDDING","200936",null,"Print Paint and Draw Shop ",null,"Print Paint and Draw Shop"]
[null,null,"Entity Wide Provisions F ",null,"Entity Wide Provisions F","15406",null,"Appel Marvin M Loan Fund 02215 ",null,"Appel Marvin M Loan Fund 02215",null,null,null,null,null,null,null,null,null,null,null,null,null,null,null,null,null,"","MAE",null,"Mechanical and Aerospace Engineering ",null,"Mechanical and Aerospace Engineering","GLCES00048",null,"WHEELHOUSE 2024 ",null,"WHEELHOUSE 2024","200937",null,"Ceramics Shop ",null,"Ceramics Shop"]
["9951111",null,"Provisions ",null,"Provisions","15407",null,"Avian Science Loan Fund 02216 ",null,"Avian Science Loan Fund 02216",null,null,null,null,null,null,null,null,null,null,null,null,null,null,null,null,null,"","MAS",null,"Masters and Advanced Studies Degree Prg ",null,"Masters and Advanced Studies Degree Prg","GLCES00049",null,"WHEELHOUSE ADVANCING LEADERS ",null,"WHEELHOUSE ADVANCING LEADERS","200938",null,"Photo Video Shop ",null,"Photo Video Shop"]
[null,null,"Misc Overdrafts E ",null,"Misc Overdrafts E","15408",null,"RobertAndEa Stowell Endow Loan 02235 ",null,"RobertAndEa Stowell Endow Loan 02235",null,null,null,null,null,null,null,null,null,null,null,null,null,null,null,null,null,"","MAT",null,"Mathematics ",null,"Mathematics","GLCES00050",null,"LONDON FARB WEDDING ",null,"LONDON FARB WEDDING","200939",null,"Sculpture Shop ",null,"Sculpture Shop"]
[null,null,"Misc Overdrafts F ",null,"Misc Overdrafts F","15409",null,"Stanley F Bailey Mem Loan Fd 02217 ",null,"Stanley F Bailey Mem Loan Fd 02217",null,null,null,null,null,null,null,null,null,null,null,null,null,null,null,null,null,"","MCP",null,"Molecular Cellular and Integrative Physiology ",null,"Molecular Cellular and Integrative Physiology","GLCES00051",null,"AVEVA SELECT CALIFORNIA WORKSHOP ",null,"AVEVA SELECT CALIFORNIA WORKSHOP","200940",null,"Wood and Metal Shops ",null,"Wood and Metal Shops"]
["9951211",null,"Misc Overdrafts ",null,"Misc Overdrafts","15410",null,"Barlow R B Dick Mem Loan Rd 02220 ",null,"Barlow R B Dick Mem Loan Rd 02220",null,null,null,null,null,null,null,null,null,null,null,null,null,null,null,null,null,"","MIC",null,"Microbiology ",null,"Microbiology","GLCES00052",null,"W COLORECTAL CANCER CONSORTIUM CONF ",null,"W COLORECTAL CANCER CONSORTIUM CONF","200941",null,"Computer Lab ",null,"Computer Lab"]
[null,null,"Capital Project Funding E ",null,"Capital Project Funding E","15411",null,"M Brouette Memorial Loan Fund 02226 ",null,"M Brouette Memorial Loan Fund 02226",null,null,null,null,null,null,null,null,null,null,null,null,null,null,null,null,null,"","MUS",null,"Music ",null,"Music","GLCES00053",null,"GRACEPOINT SUNDAY WORSHIP SERVICE ",null,"GRACEPOINT SUNDAY WORSHIP SERVICE","200942",null,"Tool Room ",null,"Tool Room"]
[null,null,"Capital Project Funding F ",null,"Capital Project Funding F","15412",null,"James Blood Mem Loan Fd 02227 ",null,"James Blood Mem Loan Fd 02227",null,null,null,null,null,null,null,null,null,null,null,null,null,null,null,null,null,"","NAS",null,"Native American Studies ",null,"Native American Studies","GLCES00054",null,"AQM FALL PRACTICES 2023 ",null,"AQM FALL PRACTICES 2023","200943",null,"Learning Management Systems ",null,"Learning Management Systems"]
["9951311",null,"Capital Project Funding ",null,"Capital Project Funding","15413",null,"Jeffrey L Chin Mem Loan Fund 2250 ",null,"Jeffrey L Chin Mem Loan Fund 2250",null,null,null,null,null,null,null,null,null,null,null,null,null,null,null,null,null,"","NES",null,"Neuroscience ",null,"Neuroscience","GLCES00055",null,"DARTS FALL PRACTICES 2023 ",null,"DARTS FALL PRACTICES 2023","200944",null,"Instructional Design Services ",null,"Instructional Design Services"]
[null,null,"Accounting D ",null,"Accounting D","15414",null,"Dr Robert Bolt House Staff Ln Fd 02228 ",null,"Dr Robert Bolt House Staff Ln Fd 02228",null,null,null,null,null,null,null,null,null,null,null,null,null,null,null,null,null,"","NNP",null,"Nursing Science and HealthCare LeadershipFamily NP ",null,"Nursing Science and HealthCare LeadershipFamily NP","GLCES00056",null,"DWPC FALL PRACTICES 2023 ",null,"DWPC FALL PRACTICES 2023","200945",null,"Lecture Capture ",null,"Lecture Capture"]
[null,null,"Accounting E ",null,"Accounting E","15415",null,"Robert KandMary M Brinton Chem Lo 02230 ",null,"Robert KandMary M Brinton Chem Lo 02230",null,null,null,null,null,null,null,null,null,null,null,null,null,null,null,null,null,"","NRS",null,"Nursing Science and HealthCare Leadership MS ",null,"Nursing Science and HealthCare Leadership MS","GLCES00057",null,"DAVIS DIVERS FALL PRACTICES 23 ",null,"DAVIS DIVERS FALL PRACTICES 23","200946",null,"Plagiarism Checker ",null,"Plagiarism Checker"]
[null,null,"Accounting F ",null,"Accounting F","15416",null,"DR Tien Hsin Cheng Emergenct Loan 02236 ",null,"DR Tien Hsin Cheng Emergenct Loan 02236",null,null,null,null,null,null,null,null,null,null,null,null,null,null,null,null,null,"","NSL",null,"Nursing Science and HealthCare Leadership PhD ",null,"Nursing Science and HealthCare Leadership PhD","GLCES00058",null,"HEALTH OF WOMEN CONF 2024 ",null,"HEALTH OF WOMEN CONF 2024","200947",null,"Proctoring System ",null,"Proctoring System"]
["9952111",null,"UCANR General Accounting ",null,"UCANR General Accounting","15417",null,"Cruden Student Loan Fund 02254 ",null,"Cruden Student Loan Fund 02254",null,null,null,null,null,null,null,null,null,null,null,null,null,null,null,null,null,"","NUB",null,"Nutritional Biology ",null,"Nutritional Biology","GLCES00059",null,"EMERGENCY MEDICINE WINTER CONF ",null,"EMERGENCY MEDICINE WINTER CONF","200948",null,"STINO Student Information System ",null,"STINO Student Information System"]
["9952112",null,"UCANR AP ",null,"UCANR AP","15418",null,"ASUCD Emercenty Loan Fund 02280 ",null,"ASUCD Emercenty Loan Fund 02280",null,null,null,null,null,null,null,null,null,null,null,null,null,null,null,null,null,"","PBI",null,"Plant Biology ",null,"Plant Biology","GLCES00060",null,"WELSH WEDDING ",null,"WELSH WEDDING","200949",null,"Video Services Tracking ",null,"Video Services Tracking"]
["9952113",null,"UCANR Payroll ",null,"UCANR Payroll","15419",null,"UCD Employee Emergency Loan Fund 02428 ",null,"UCD Employee Emergency Loan Fund 02428",null,null,null,null,null,null,null,null,null,null,null,null,null,null,null,null,null,"","PCH",null,"Pharmaceutical Chemistry ",null,"Pharmaceutical Chemistry","GLCES00061",null,"WHEELHOUSE INST ON LEADERSHIP ",null,"WHEELHOUSE INST ON LEADERSHIP","200950",null,"ESA Operations Overhead ",null,"ESA Operations Overhead"]
["9952114",null,"UCANR Tax Reporting and Compliance ",null,"UCANR Tax Reporting and Compliance","15420",null,"UCDMC Employee Emergency Loan Fund 02429 ",null,"UCDMC Employee Emergency Loan Fund 02429",null,null,null,null,null,null,null,null,null,null,null,null,null,null,null,null,null,"","PFS",null,"Performance Studies ",null,"Performance Studies","GLCES00062",null,"UC DAVIS HEART FAILURE SUMMIT 2023 ",null,"UC DAVIS HEART FAILURE SUMMIT 2023","200951",null,"Gradescope ",null,"Gradescope"]
["9952115",null,"UCANR Contracts and Grants Accounting ",null,"UCANR Contracts and Grants Accounting","15421",null,"Ora B Butler Mem Loan Fung 02450 ",null,"Ora B Butler Mem Loan Fung 02450",null,null,null,null,null,null,null,null,null,null,null,null,null,null,null,null,null,"","PHI",null,"Philosophy ",null,"Philosophy","GLCES00063",null,"UC DAVIS 2023 SUPPLIER SHOW ",null,"UC DAVIS 2023 SUPPLIER SHOW","200952",null,"ESA Advising ",null,"ESA Advising"]
["9952116",null,"UCANR Cashiers office ",null,"UCANR Cashiers office","15422",null,"Ca Assn Of Resource Conservatio 02475 ",null,"Ca Assn Of Resource Conservatio 02475",null,null,null,null,null,null,null,null,null,null,null,null,null,null,null,null,null,"","PHY",null,"Physics ",null,"Physics","GLCES00064",null,"DAVIS FOREST SCHOOL PROGRAM ",null,"DAVIS FOREST SCHOOL PROGRAM","200953",null,"ESA Graduate Studies ",null,"ESA Graduate Studies"]
[null,null,"Loans D ",null,"Loans D","15423",null,"Calif Federation Womens Club Ln 02482 ",null,"Calif Federation Womens Club Ln 02482",null,null,null,null,null,null,null,null,null,null,null,null,null,null,null,null,null,"","PLP",null,"Plant Pathology ",null,"Plant Pathology","GLCES00065",null,"KAISER PERMANENTE BIOETHICS CONF ",null,"KAISER PERMANENTE BIOETHICS CONF","200954",null,"Childcare ",null,"Childcare"]
[null,null,"Loans E ",null,"Loans E","15424",null,"Calif Shorthorn Breeders Assn 02485 ",null,"Calif Shorthorn Breeders Assn 02485",null,null,null,null,null,null,null,null,null,null,null,null,null,null,null,null,null,"","POL",null,"Political Science ",null,"Political Science","GLCES00066",null,"FALL WINTER SPRING PROGRAM ",null,"FALL WINTER SPRING PROGRAM","200955",null,"Biological Safety ",null,"Biological Safety"]
[null,null,"Loans F ",null,"Loans F","15425",null,"Dr Frances Carter Mem Loan Fd 02495 ",null,"Dr Frances Carter Mem Loan Fd 02495",null,null,null,null,null,null,null,null,null,null,null,null,null,null,null,null,null,"","POP",null,"Population Biology ",null,"Population Biology","GLCES00067",null,"UCD WOMEN IN TECHNOLOGY ",null,"UCD WOMEN IN TECHNOLOGY","200956",null,"Hazardous Waste ",null,"Hazardous Waste"]
["9953111",null,"Loans ",null,"Loans","15426",null,"Cmerf Medical Student Loan Fd 02496 ",null,"Cmerf Medical Student Loan Fd 02496",null,null,null,null,null,null,null,null,null,null,null,null,null,null,null,null,null,"","PSC",null,"Psychology ",null,"Psychology","GLCES00068",null,"CA EXTREME PRECIPITATION SYMPOSIUM ",null,"CA EXTREME PRECIPITATION SYMPOSIUM","200957",null,"Environmental Compliance ",null,"Environmental Compliance"]
[null,null,null,null,"","15427",null,"WingAndLou Chin Emergency Ln Fd 02499 ",null,"WingAndLou Chin Emergency Ln Fd 02499",null,null,null,null,null,null,null,null,null,null,null,null,null,null,null,null,null,"","PTX",null,"Pharmacology and Toxicology ",null,"Pharmacology and Toxicology","GLCES00069",null,"CIF SAC JOAQUIN SECTION BASKETBALL ",null,"CIF SAC JOAQUIN SECTION BASKETBALL","200959",null,"Lab Safety ",null,"Lab Safety"]
[null,null,null,null,"","15428",null,"Cow Belles Loan Fund 02545 ",null,"Cow Belles Loan Fund 02545",null,null,null,null,null,null,null,null,null,null,null,null,null,null,null,null,null,"","REL",null,"Study of Religion ",null,"Study of Religion","GLCES00070",null,"CITY OF DAVIS CAMPUS PUTAH DAY CAMP ",null,"CITY OF DAVIS CAMPUS PUTAH DAY CAMP","200960",null,"Research Safety ",null,"Research Safety"]
[null,null,null,null,"","15429",null,"CVMa Registration Loan Fd 02560 ",null,"CVMa Registration Loan Fd 02560",null,null,null,null,null,null,null,null,null,null,null,null,null,null,null,null,null,"","SBG",null,"Soils and Biogeochemistry ",null,"Soils and Biogeochemistry","GLCES00071",null,"INFECTIOUS DISEASES ",null,"INFECTIOUS DISEASES","200961",null,"Industrial Hygiene Safety ",null,"Industrial Hygiene Safety"]
[null,null,null,null,"","15430",null,"Davis Homemakers Stdt Loan Fd 02570 ",null,"Davis Homemakers Stdt Loan Fd 02570",null,null,null,null,null,null,null,null,null,null,null,null,null,null,null,null,null,"","SOC",null,"Sociology ",null,"Sociology","GLCES00072",null,"KAISER EARLY START RETREAT ",null,"KAISER EARLY START RETREAT","200962",null,"Industrial Safety ",null,"Industrial Safety"]
[null,null,null,null,"","15431",null,"Dohrmann Mem Loan Fund 02590 ",null,"Dohrmann Mem Loan Fund 02590",null,null,null,null,null,null,null,null,null,null,null,null,null,null,null,null,null,"","SPA",null,"Spanish ",null,"Spanish","GLCES00073",null,"WORD OF LIFE WEDNESDAYS ",null,"WORD OF LIFE WEDNESDAYS","200963",null,"Pest Management ",null,"Pest Management"]
[null,null,null,null,"","15432",null,"Virginia W Eckert Mem Loan Fd 02605 ",null,"Virginia W Eckert Mem Loan Fd 02605",null,null,null,null,null,null,null,null,null,null,null,null,null,null,null,null,null,"","SPH",null,"Public Health Sciences PhD ",null,"Public Health Sciences PhD","GLCES00074",null,"SOM RESEARCH CELEBRATION EVENT ",null,"SOM RESEARCH CELEBRATION EVENT","200964",null,"Indirect Cost Logistics INDLOG ",null,"Indirect Cost Logistics INDLOG"]
[null,null,null,null,"","15433",null,"Notes RecEducational Fee Defer 02612 ",null,"Notes RecEducational Fee Defer 02612",null,null,null,null,null,null,null,null,null,null,null,null,null,null,null,null,null,"","STA",null,"Statistics ",null,"Statistics","GLCES00075",null,"HEART RESEARCH DAY 2023 ",null,"HEART RESEARCH DAY 2023","200976",null,"Strike Team ",null,"Strike Team"]
[null,null,null,null,"","15434",null,"Faculty Short Term Housing Loan Fnd 02705 ",null,"Faculty Short Term Housing Loan Fnd 02705",null,null,null,null,null,null,null,null,null,null,null,null,null,null,null,null,null,"","TEX",null,"Textiles ",null,"Textiles","GLCES00076",null,"NEXT LEVEL FLAG FOOTBALL ",null,"NEXT LEVEL FLAG FOOTBALL","200977",null,"Patrol ",null,"Patrol"]
[null,null,null,null,"","15435",null,"RAFreedland Grad Stdt Emergency L 02707 ",null,"RAFreedland Grad Stdt Emergency L 02707",null,null,null,null,null,null,null,null,null,null,null,null,null,null,null,null,null,"","TTP",null,"Transportation Technology and Policy ",null,"Transportation Technology and Policy","GLCES00077",null,"GLOBAL LEARNING CONFERENCE EVENT ",null,"GLOBAL LEARNING CONFERENCE EVENT","200978",null,"Safe Ride Services ",null,"Safe Ride Services"]
[null,null,null,null,"","15436",null,"Kate Fizell Farm Circle Loan Fd 02710 ",null,"Kate Fizell Farm Circle Loan Fd 02710",null,null,null,null,null,null,null,null,null,null,null,null,null,null,null,null,null,"","VEN",null,"Viticulture and Enology ",null,"Viticulture and Enology","GLCES00078",null,"EARLY PSYCHOSIS CONFERENCE ",null,"EARLY PSYCHOSIS CONFERENCE","200979",null,"Internal Assessment ",null,"Internal Assessment"]
[null,null,null,null,"","15437",null,"Jerry F Fogerty Mem Ln Fd 02715 ",null,"Jerry F Fogerty Mem Ln Fd 02715",null,null,null,null,null,null,null,null,null,null,null,null,null,null,null,null,null,"",null,null,"Professional Degree Supplemental Tuition Programs ",null,"Professional Degree Supplemental Tuition Programs","GLCES00079",null,"CHEERSPORT DAVIS CLASSIC ",null,"CHEERSPORT DAVIS CLASSIC","200980",null,"Pool Services ",null,"Pool Services"]
[null,null,null,null,"","15438",null,"General Student Loan Fund 02765 ",null,"General Student Loan Fund 02765",null,null,null,null,null,null,null,null,null,null,null,null,null,null,null,null,null,"","DVM",null,"Doctor of Veterinary Medicine ",null,"Doctor of Veterinary Medicine","GLCES00080",null,"VARSITY SPIRIT CHEER CAMP 2024 1 ",null,"VARSITY SPIRIT CHEER CAMP 2024 1","200981",null,"Hyatt ",null,"Hyatt"]
[null,null,null,null,"","15439",null,"Graduate Student Transition Loan Fund 02766 ",null,"Graduate Student Transition Loan Fund 02766",null,null,null,null,null,null,null,null,null,null,null,null,null,null,null,null,null,"","ELC",null,"Educational Leadership CANDEL ",null,"Educational Leadership CANDEL","GLCES00081",null,"VARSITY SPIRIT CHEER CAMP 2024 2 ",null,"VARSITY SPIRIT CHEER CAMP 2024 2","200982",null,"West Village ",null,"West Village"]
[null,null,null,null,"","15440",null,"Alice Glist Loan Fd Vet Student 02770 ",null,"Alice Glist Loan Fd Vet Student 02770",null,null,null,null,null,null,null,null,null,null,null,null,null,null,null,null,null,"","LJD",null,"Juris Doctor JD ",null,"Juris Doctor JD","GLCES00082",null,"SOM RESEARCH CELEBRATION ",null,"SOM RESEARCH CELEBRATION","200983",null,"Decentralized Campus Control Account ",null,"Decentralized Campus Control Account"]
[null,null,null,null,"","15441",null,"Grad Student Emergency Ln Fund 02771 ",null,"Grad Student Emergency Ln Fund 02771",null,null,null,null,null,null,null,null,null,null,null,null,null,null,null,null,null,"","MBA",null,"Business Administration MBA ",null,"Business Administration MBA","GLCES00083",null,"13TH ANNUAL UCD EQUITY SUMMIT ",null,"13TH ANNUAL UCD EQUITY SUMMIT","200984",null,"LUPE SOCIAL JUSTICE SCHOLARSHIP ",null,"LUPE SOCIAL JUSTICE SCHOLARSHIP"]
[null,null,null,null,"","15442",null,"Joe Green Mem Stdt Loan Res Fd 02775 ",null,"Joe Green Mem Stdt Loan Res Fd 02775",null,null,null,null,null,null,null,null,null,null,null,null,null,null,null,null,null,"","MHI",null,"Health Informatics ",null,"Health Informatics","GLCES00084",null,"DAVIS SR HIGH SCHOOL GRAD 2024 ",null,"DAVIS SR HIGH SCHOOL GRAD 2024","200985",null,"UCD ANNUAL FUND SCHOLARSHIP ",null,"UCD ANNUAL FUND SCHOLARSHIP"]
[null,null,null,null,"","15443",null,"Geo H Hart Loan Fd 02855 ",null,"Geo H Hart Loan Fd 02855",null,null,null,null,null,null,null,null,null,null,null,null,null,null,null,null,null,"","MMD",null,"Doctor of Medicine ",null,"Doctor of Medicine","GLCES00085",null,"AAUW CA TECH TREK ",null,"AAUW CA TECH TREK","200986",null,"HIGH ACHIEVING UNREPRESENTED AWARDS ",null,"HIGH ACHIEVING UNREPRESENTED AWARDS"]
[null,null,null,null,"","15444",null,"Janeway Elizabeth Bixby Loan 03007 ",null,"Janeway Elizabeth Bixby Loan 03007",null,null,null,null,null,null,null,null,null,null,null,null,null,null,null,null,null,"","MPH",null,"Public Health MPH ",null,"Public Health MPH","GLCES00086",null,"GLOBAL LEARNING CONFERENCE ",null,"GLOBAL LEARNING CONFERENCE","200987",null,"FLOSSFEDER SCHOLARSHIP FOR GRAD STUDENTS ",null,"FLOSSFEDER SCHOLARSHIP FOR GRAD STUDENTS"]
[null,null,null,null,"","15445",null,"Kenneth E Jessen Mem Loan Fd 03015 ",null,"Kenneth E Jessen Mem Loan Fd 03015",null,null,null,null,null,null,null,null,null,null,null,null,null,null,null,null,null,"","PRM",null,"Preventive Veterinary Medicine ",null,"Preventive Veterinary Medicine","GLCES00087",null,"GRIDIRON YOUTH FLAG FOOTBALL ",null,"GRIDIRON YOUTH FLAG FOOTBALL","200988",null,"EDWARD F KRAFT PRIZE ",null,"EDWARD F KRAFT PRIZE"]
[null,null,null,null,"","15446",null,"Clinton A Jewett Mem Loan Fdn 03021 ",null,"Clinton A Jewett Mem Loan Fdn 03021",null,null,null,null,null,null,null,null,null,null,null,null,null,null,null,null,null,"",null,null,"SelfSupporting Degree Programs ",null,"SelfSupporting Degree Programs","GLCES00088",null,"SINGLE CELL RNASEQ SPAT TRANS ",null,"SINGLE CELL RNASEQ SPAT TRANS","200989",null,"Private Tours ",null,"Private Tours"]
[null,null,null,null,"","15447",null,"Jones EhAndEb Foreign Stdt Emer 03025 ",null,"Jones EhAndEb Foreign Stdt Emer 03025",null,null,null,null,null,null,null,null,null,null,null,null,null,null,null,null,null,"","FOR",null,"Master of Science in Forensic Science ",null,"Master of Science in Forensic Science","GLCES00089",null,"2023 DONKEY WELFARE SYMPOSIUM ",null,"2023 DONKEY WELFARE SYMPOSIUM","200990",null,"Provost Award ",null,"Provost Award"]
[null,null,null,null,"","15448",null,"Kappa Alpha Psi Loan Fund 03035 ",null,"Kappa Alpha Psi Loan Fund 03035",null,null,null,null,null,null,null,null,null,null,null,null,null,null,null,null,null,"","LLM",null,"Masters of Law LLM ",null,"Masters of Law LLM","GLCES00090",null,"DYNAMICS DAYS 2024 ",null,"DYNAMICS DAYS 2024","200991",null,"Cleft and Craniofacial Program ",null,"Cleft and Craniofacial Program"]
[null,null,null,null,"","15449",null,"WandM Kendall Schp Loan Fund 03045 ",null,"WandM Kendall Schp Loan Fund 03045",null,null,null,null,null,null,null,null,null,null,null,null,null,null,null,null,null,"","MAX",null,"Master of Science in Business Analytics ",null,"Master of Science in Business Analytics","GLCES00091",null,"CELEBRATION OF LIFE JOHANNES STARK ",null,"CELEBRATION OF LIFE JOHANNES STARK","200992",null,"Central Cooling Commodities and Services ",null,"Central Cooling Commodities and Services"]
[null,null,null,null,"","15450",null,"Burton A King Mem Loan Fd 03100 ",null,"Burton A King Mem Loan Fd 03100",null,null,null,null,null,null,null,null,null,null,null,null,null,null,null,null,null,"","MBB",null,"Bay Area PartTime MBA ",null,"Bay Area PartTime MBA","GLCES00092",null,"ICDDPS 5 ",null,"ICDDPS 5","200993",null,"BME TEAM 3DMATER ",null,"BME TEAM 3DMATER"]
[null,null,null,null,"","15451",null,"King Hall Loan Repay Assist Prog 03102 ",null,"King Hall Loan Repay Assist Prog 03102",null,null,null,null,null,null,null,null,null,null,null,null,null,null,null,null,null,"","MBC",null,"Business Administration Stackable ",null,"Business Administration Stackable","GLCES00093",null,"NAPA EYE 2024 ",null,"NAPA EYE 2024","200994",null,"BME TEAM 3DPROTO ",null,"BME TEAM 3DPROTO"]
[null,null,null,null,"","15452",null,"Matt Kovacevich Mem Loan Fd 03105 ",null,"Matt Kovacevich Mem Loan Fd 03105",null,null,null,null,null,null,null,null,null,null,null,null,null,null,null,null,null,"","MBE",null,"Sacramento PartTime MBA ",null,"Sacramento PartTime MBA","GLCES00094",null,"COMP COURSE FLOW CYTOMETRY ",null,"COMP COURSE FLOW CYTOMETRY","200995",null,"BME TEAM RAWMATE ",null,"BME TEAM RAWMATE"]
[null,null,null,null,"","15453",null,"LA County 4H Alumni Assn Loan F 03110 ",null,"LA County 4H Alumni Assn Loan F 03110",null,null,null,null,null,null,null,null,null,null,null,null,null,null,null,null,null,"","MBO",null,"Online Masters of Business Administration ",null,"Online Masters of Business Administration","GLCES00095",null,"THE INST FOR ADVANCED STUDIES ",null,"THE INST FOR ADVANCED STUDIES","200996",null,"BME TEAM PREMMAC ",null,"BME TEAM PREMMAC"]
[null,null,null,null,"","15454",null,"Law Iris Mitgang Emergency Loan Fun 03120 ",null,"Law Iris Mitgang Emergency Loan Fun 03120",null,null,null,null,null,null,null,null,null,null,null,null,null,null,null,null,null,"","MCN",null,"Master of Advanced Study Maternal and Child Nutrition ",null,"Master of Advanced Study Maternal and Child Nutrition","GLCES00096",null,"JOANN LARKEY CELEBRATION OF LIFE ",null,"JOANN LARKEY CELEBRATION OF LIFE","200997",null,"BME TEAM PREMLAS ",null,"BME TEAM PREMLAS"]
[null,null,null,null,"","15455",null,"Levinson Medical Student Loan 03125 ",null,"Levinson Medical Student Loan 03125",null,null,null,null,null,null,null,null,null,null,null,null,null,null,null,null,null,"","MMM",null,"Masters of Management ",null,"Masters of Management","GLCES00097",null,"SEMINAR SERIES I4CI THOUGHT CONS ",null,"SEMINAR SERIES I4CI THOUGHT CONS","200998",null,"BME TEAM PREMPCB ",null,"BME TEAM PREMPCB"]
[null,null,null,null,"","15456",null,"Jack Liter Loan Fund 03135 ",null,"Jack Liter Loan Fund 03135",null,null,null,null,null,null,null,null,null,null,null,null,null,null,null,null,null,"","MMO",null,"Masters of Management Online ",null,"Masters of Management Online","GLCES00098",null,"DAVIS YOUTH SOFTBALL ASSOC BATTING ",null,"DAVIS YOUTH SOFTBALL ASSOC BATTING","200999",null,"BME TEAM PRLABOR ",null,"BME TEAM PRLABOR"]
[null,null,null,null,"","15457",null,"RobertAndEdith Lockhart Mem 03150 ",null,"RobertAndEdith Lockhart Mem 03150",null,null,null,null,null,null,null,null,null,null,null,null,null,null,null,null,null,"","NDP",null,"Doctor of Nursing Practice ",null,"Doctor of Nursing Practice","GLCES00099",null,"SF KOREAN YOUTH CAMP ",null,"SF KOREAN YOUTH CAMP","203000",null,"BME TEAM STLABOR ",null,"BME TEAM STLABOR"]
[null,null,null,null,"","15458",null,"Rudy Lucero Memorial Ln Fd 03152 ",null,"Rudy Lucero Memorial Ln Fd 03152",null,null,null,null,null,null,null,null,null,null,null,null,null,null,null,null,null,"","NME",null,"Masters of Entry Program Nursing MSN ",null,"Masters of Entry Program Nursing MSN","GLCES00100",null,"2024 Summer Tax Institute ",null,"2024 Summer Tax Institute","203001",null,"BME TEAM UALABOR ",null,"BME TEAM UALABOR"]
[null,null,null,null,"","15459",null,"Merck Co Fdn Loan Fd 03155 ",null,"Merck Co Fdn Loan Fd 03155",null,null,null,null,null,null,null,null,null,null,null,null,null,null,null,null,null,"","NNA",null,"Doctor of Nursing Practice Nurse Anesthesia ",null,"Doctor of Nursing Practice Nurse Anesthesia","GLCES00101",null,"Parkinsons Disease Update 2024 ",null,"Parkinsons Disease Update 2024","203002",null,"BME TEAM PREMC3D ",null,"BME TEAM PREMC3D"]
[null,null,null,null,"","15460",null,"Emil Mrak Student Ln Ed 03157 ",null,"Emil Mrak Student Ln Ed 03157",null,null,null,null,null,null,null,null,null,null,null,null,null,null,null,null,null,"","NPA",null,"Physician Assistant Studies MHS ",null,"Physician Assistant Studies MHS","GLCES00102",null,"National Forest Health Monitoring Work Conference ",null,"National Forest Health Monitoring Work Conference","203003",null,"Credit Card Mercant Fees ",null,"Credit Card Mercant Fees"]
[null,null,null,null,"","15461",null,"JeFFErson Mcgrew Mem Loan Fd 03200 ",null,"JeFFErson Mcgrew Mem Loan Fd 03200",null,null,null,null,null,null,null,null,null,null,null,null,null,null,null,null,null,"","NPM",null,"Public Mental Health Nurse Practitioner ",null,"Public Mental Health Nurse Practitioner","GLCES00103",null,"Davis Divers Winter Practices 2024 ",null,"Davis Divers Winter Practices 2024","203004",null,"Bioinformatics ",null,"Bioinformatics"]
[null,null,null,null,"","15462",null,"Med School Housestaff Loan Fund 03250 ",null,"Med School Housestaff Loan Fund 03250",null,null,null,null,null,null,null,null,null,null,null,null,null,null,null,null,null,"","PAC",null,"Master of Professional Accountancy MPAC ",null,"Master of Professional Accountancy MPAC","GLCES00104",null,"GGSS Round Table 2024 ",null,"GGSS Round Table 2024","203005",null,"ES Cell ",null,"ES Cell"]
[null,null,null,null,"","15463",null,"Midcoast Veterinary Medical Mem L 03278 ",null,"Midcoast Veterinary Medical Mem L 03278",null,null,null,null,null,null,null,null,null,null,null,null,null,null,null,null,null,"",null,null,"Student Health and Counseling Services B ",null,"Student Health and Counseling Services B","GLCES00105",null,"Association of International Education Administrators Thematic Forum ",null,"Association of International Education Administrators Thematic Forum","203006",null,"Genetics ",null,"Genetics"]
[null,null,null,null,"","15464",null,"NAFV Emergency Loan Vet Stdts 03300 ",null,"NAFV Emergency Loan Vet Stdts 03300",null,null,null,null,null,null,null,null,null,null,null,null,null,null,null,null,null,"",null,null,"Student Health and Counseling Services C ",null,"Student Health and Counseling Services C","GLCES00106",null,"Emergency Medicine Summer Conference ",null,"Emergency Medicine Summer Conference","203007",null,"Injection ",null,"Injection"]
[null,null,null,null,"","15465",null,"Lawrence Newsome Loan Fund 03312 ",null,"Lawrence Newsome Loan Fund 03312",null,null,null,null,null,null,null,null,null,null,null,null,null,null,null,null,null,"","ATD",null,"HEP Alcohol Tobacco and Drugs ",null,"HEP Alcohol Tobacco and Drugs","GLCES00107",null,"GEM5 Bootcamp ",null,"GEM5 Bootcamp","203008",null,"IVF and Cryo ",null,"IVF and Cryo"]
[null,null,null,null,"","15466",null,"No Ca Vet Med Assoc Loan Fd 03313 ",null,"No Ca Vet Med Assoc Loan Fd 03313",null,null,null,null,null,null,null,null,null,null,null,null,null,null,null,null,null,"","AWB",null,"HEP Academic Well Being ",null,"HEP Academic Well Being","GLCES00108",null,"Emergency Medicine Hot Topics ",null,"Emergency Medicine Hot Topics","203009",null,"MMRRC ",null,"MMRRC"]
[null,null,null,null,"","15467",null,"Daniel Lee Mem Ln Fd 03315 ",null,"Daniel Lee Mem Ln Fd 03315",null,null,null,null,null,null,null,null,null,null,null,null,null,null,null,null,null,"","CAN",null,"CAPS Community Advising Network ",null,"CAPS Community Advising Network","GLCES00109",null,"Ag and Applied Econ Assoc Early Career Workshop ",null,"Ag and Applied Econ Assoc Early Career Workshop","203010",null,"Phenotyping ",null,"Phenotyping"]
[null,null,null,null,"","15468",null,"WmAndE E Onion Loan Med 03320 ",null,"WmAndE E Onion Loan Med 03320",null,null,null,null,null,null,null,null,null,null,null,null,null,null,null,null,null,"","CAS",null,"CAPS Academic Satallites ",null,"CAPS Academic Satallites","GLCES00110",null,"The American Red Cross Blood Drive ",null,"The American Red Cross Blood Drive","203011",null,"Project Management ",null,"Project Management"]
[null,null,null,null,"","15469",null,"Governors Teachers Scholars Repay Schol 03330 ",null,"Governors Teachers Scholars Repay Schol 03330",null,null,null,null,null,null,null,null,null,null,null,null,null,null,null,null,null,"","CCA",null,"CAPS College of Ag Envr Sciences ",null,"CAPS College of Ag Envr Sciences","GLCES00111",null,"Prep Network Compliance and Enforcement Mgmt ",null,"Prep Network Compliance and Enforcement Mgmt","203012",null,"Vivarium ",null,"Vivarium"]
[null,null,null,null,"","15470",null,"Peo SisterhoodEMcdonald Loan 03424 ",null,"Peo SisterhoodEMcdonald Loan 03424",null,null,null,null,null,null,null,null,null,null,null,null,null,null,null,null,null,"","CCS",null,"CAPS Clinical Staff ",null,"CAPS Clinical Staff","GLCES00112",null,"In Vino Analytica Scientia ",null,"In Vino Analytica Scientia","203013",null,"Visual Resource Facility ",null,"Visual Resource Facility"]
[null,null,null,null,"","15471",null,"Patterson Seward and Clara Loan 03426 ",null,"Patterson Seward and Clara Loan 03426",null,null,null,null,null,null,null,null,null,null,null,null,null,null,null,null,null,"","CLS",null,"CAPS Law School Program ",null,"CAPS Law School Program","GLCES00113",null,"D City Field Hockey Club Spring Training ",null,"D City Field Hockey Club Spring Training","203014",null,"NACHA NCHA Survey ",null,"NACHA NCHA Survey"]
[null,null,null,null,"","15472",null,"Regents Law Loan Fund 03431 ",null,"Regents Law Loan Fund 03431",null,null,null,null,null,null,null,null,null,null,null,null,null,null,null,null,null,"","CMS",null,"CAPS Management Staff ",null,"CAPS Management Staff","GLCES00114",null,"USA Field Hockey Nexus ",null,"USA Field Hockey Nexus","203015",null,"Consultation Services ",null,"Consultation Services"]
[null,null,null,null,"","15473",null,"Regents Emergency Stdt Loan Fund 03432 ",null,"Regents Emergency Stdt Loan Fund 03432",null,null,null,null,null,null,null,null,null,null,null,null,null,null,null,null,null,"","CSS",null,"CAPS Support Staff ",null,"CAPS Support Staff","GLCES00115",null,"California Extreme Precipitation Symposium ",null,"California Extreme Precipitation Symposium","203016",null,"Wellness Activities ",null,"Wellness Activities"]
[null,null,null,null,"","15474",null,"Regents Short Term Law Loans 03433 ",null,"Regents Short Term Law Loans 03433",null,null,null,null,null,null,null,null,null,null,null,null,null,null,null,null,null,"","CTP",null,"CAPS Training Program ",null,"CAPS Training Program","GLCES00116",null,"UC Asthma Network UCAN ",null,"UC Asthma Network UCAN","203018",null,"Occupational Health Svcs ",null,"Occupational Health Svcs"]
[null,null,null,null,"","15475",null,"Redwood Empire VM Asso Loan Fd 03434 ",null,"Redwood Empire VM Asso Loan Fd 03434",null,null,null,null,null,null,null,null,null,null,null,null,null,null,null,null,null,"","HDC",null,"Helmet Hair Dont Care ",null,"Helmet Hair Dont Care","GLCES00117",null,"TGFS Picnic 2024 ",null,"TGFS Picnic 2024","203019",null,"Repographics Services ",null,"Repographics Services"]
[null,null,null,null,"","15476",null,"Regents Short Term Medicine Loans 03435 ",null,"Regents Short Term Medicine Loans 03435",null,null,null,null,null,null,null,null,null,null,null,null,null,null,null,null,null,"","HIV",null,"SHCS HIV Testing ",null,"SHCS HIV Testing","GLCES00118",null,"Pre Health Conference ",null,"Pre Health Conference","203020",null,"Temporary Employment Pool ",null,"Temporary Employment Pool"]
[null,null,null,null,"","15477",null,"Sir Francis Drake Club Ln 03451 ",null,"Sir Francis Drake Club Ln 03451",null,null,null,null,null,null,null,null,null,null,null,null,null,null,null,null,null,"","HSA",null,"HEP Student Ambassadors ",null,"HEP Student Ambassadors","GLCES00119",null,"Pre Health High School Symposium ",null,"Pre Health High School Symposium","203021",null,"Fire Department Services ",null,"Fire Department Services"]
[null,null,null,null,"","15478",null,"Univ Stdt Loan ProgLong Term 03455 ",null,"Univ Stdt Loan ProgLong Term 03455",null,null,null,null,null,null,null,null,null,null,null,null,null,null,null,null,null,"","HSM",null,"HLF School of Medicine ",null,"HLF School of Medicine","GLCES00120",null,"American Delirium Society Pre Conference ",null,"American Delirium Society Pre Conference","203022",null,"Police False Alarm Response ",null,"Police False Alarm Response"]
[null,null,null,null,"","15479",null,"Univ Stdt Loan ProgShort Term 03456 ",null,"Univ Stdt Loan ProgShort Term 03456",null,null,null,null,null,null,null,null,null,null,null,null,null,null,null,null,null,"","LSP",null,"CAPS Letters and Science Prog ",null,"CAPS Letters and Science Prog","GLCES00121",null,"California Association of Child Life Professionals ",null,"California Association of Child Life Professionals","203023",null,"AggieSurplus ",null,"AggieSurplus"]
[null,null,null,null,"","15480",null,"Sacto County Student Loan Fund 03457 ",null,"Sacto County Student Loan Fund 03457",null,null,null,null,null,null,null,null,null,null,null,null,null,null,null,null,null,"","MSP",null,"CAPS Med School Program ",null,"CAPS Med School Program","GLCES00122",null,"Wagner Spine Endowed Lectureship ",null,"Wagner Spine Endowed Lectureship","203024",null,"AggieShip ",null,"AggieShip"]
[null,null,null,null,"","15481",null,"Dr Pual Toste Loan Fund 03462 ",null,"Dr Pual Toste Loan Fund 03462",null,null,null,null,null,null,null,null,null,null,null,null,null,null,null,null,null,"","MWB",null,"HEP Mental Well Being ",null,"HEP Mental Well Being","GLCES00123",null,"Western Consortium Conference ",null,"Western Consortium Conference","203025",null,"Student Accounting Recharge ",null,"Student Accounting Recharge"]
[null,null,null,null,"","15482",null,"San Gabriel Valley Ln Ed 03500 ",null,"San Gabriel Valley Ln Ed 03500",null,null,null,null,null,null,null,null,null,null,null,null,null,null,null,null,null,"","NSP",null,"CPAS School of Nursing ",null,"CPAS School of Nursing","GLCES00124",null,"Neurological Surgery Research Conference ",null,"Neurological Surgery Research Conference","203026",null,"ASUCD Advertising ",null,"ASUCD Advertising"]
[null,null,null,null,"","15483",null,"San Gabriel Valley Ken Club Ln 03501 ",null,"San Gabriel Valley Ken Club Ln 03501",null,null,null,null,null,null,null,null,null,null,null,null,null,null,null,null,null,"","PWB",null,"HEP Physical Well Being ",null,"HEP Physical Well Being","GLCES00125",null,"Ultrasound Update ",null,"Ultrasound Update","203028",null,"Debt Service Assessment ",null,"Debt Service Assessment"]
[null,null,null,null,"","15484",null,"Santa Ana Val Kennel Club Ln Fd 03525 ",null,"Santa Ana Val Kennel Club Ln Fd 03525",null,null,null,null,null,null,null,null,null,null,null,null,null,null,null,null,null,"","SH1",null,"SHIP Graduate ",null,"SHIP Graduate","GLCES00126",null,"Journal of Mathematical Economics Anniversary Conference ",null,"Journal of Mathematical Economics Anniversary Conference","203029",null,"Recreational Program Services ",null,"Recreational Program Services"]
[null,null,null,null,"","15485",null,"M S Schmulowitz Loan Fd 03550 ",null,"M S Schmulowitz Loan Fd 03550",null,null,null,null,null,null,null,null,null,null,null,null,null,null,null,null,null,"","SH2",null,"SHIP Undergraduate ",null,"SHIP Undergraduate","GLCES00127",null,"Camp Tech Revolution ",null,"Camp Tech Revolution","203030",null,"Traffic Ambassadors ",null,"Traffic Ambassadors"]
[null,null,null,null,"","15486",null,"Laura E Settle Crta Loan Fd 03600 ",null,"Laura E Settle Crta Loan Fd 03600",null,null,null,null,null,null,null,null,null,null,null,null,null,null,null,null,null,"","SLL",null,"SHCS Love Lab ",null,"SHCS Love Lab","GLCES00128",null,"GPI US St Margarets SHS Summer Program ",null,"GPI US St Margarets SHS Summer Program","203031",null,"LIGHTING SYSTEMS AND DEVICES ",null,"LIGHTING SYSTEMS AND DEVICES"]
[null,null,null,null,"","15487",null,"C E Smith R W Huntington Jr 03620 ",null,"C E Smith R W Huntington Jr 03620",null,null,null,null,null,null,null,null,null,null,null,null,null,null,null,null,null,"","SSC",null,"SHCS Social Committee ",null,"SHCS Social Committee","GLCES00129",null,"SOM Impact Symposium Sleep and Cognition ",null,"SOM Impact Symposium Sleep and Cognition","203032",null,"HIGH VOLTAGE SYSTEMS ",null,"HIGH VOLTAGE SYSTEMS"]
[null,null,null,null,"","15488",null,"Leslie M Smith Loan Fd 03626 ",null,"Leslie M Smith Loan Fd 03626",null,null,null,null,null,null,null,null,null,null,null,null,null,null,null,null,null,"","STK",null,"SHCS Teaching Kitchen ",null,"SHCS Teaching Kitchen","GLCES00130",null,"Introduction to Command Line R or Python for Bioinformatics ",null,"Introduction to Command Line R or Python for Bioinformatics","203033",null,"GENERATOR ",null,"GENERATOR"]
[null,null,null,null,"","15489",null,"Solano Napa Cow Belles Loan Fd 03650 ",null,"Solano Napa Cow Belles Loan Fd 03650",null,null,null,null,null,null,null,null,null,null,null,null,null,null,null,null,null,"","SWB",null,"HEP Sexual Well Being ",null,"HEP Sexual Well Being","GLCES00131",null,"Fortune School of Education Summer Symposium ",null,"Fortune School of Education Summer Symposium","203034",null,"ELECRIC BUILDING METERS ",null,"ELECRIC BUILDING METERS"]
[null,null,null,null,"","15490",null,"Earl Henry Swain Mem Loan Fd 03651 ",null,"Earl Henry Swain Mem Loan Fd 03651",null,null,null,null,null,null,null,null,null,null,null,null,null,null,null,null,null,"","VSP",null,"CAPS Vet School Prog SOM ",null,"CAPS Vet School Prog SOM","GLCES00132",null,"SAME SFO Sac Posts Dams and Levees Resilience Conference ",null,"SAME SFO Sac Posts Dams and Levees Resilience Conference","203035",null,"EV Bicinchronic Accid Assay ",null,"EV Bicinchronic Accid Assay"]
[null,null,null,null,"","15491",null,"Boris Tarassuk Memorial Ln Fd 03655 ",null,"Boris Tarassuk Memorial Ln Fd 03655",null,null,null,null,null,null,null,null,null,null,null,null,null,null,null,null,null,"",null,null,"UCD Campus Wide Programs ",null,"UCD Campus Wide Programs","GLCES00133",null,"Muslim Youth Leadership Program ",null,"Muslim Youth Leadership Program","203036",null,"Cell Imaging ",null,"Cell Imaging"]
[null,null,null,null,"","15492",null,"Teaching Assistant Loan Fund 03700 ",null,"Teaching Assistant Loan Fund 03700",null,null,null,null,null,null,null,null,null,null,null,null,null,null,null,null,null,"",null,null,"Diversity Equity and Inclusion DEI ",null,"Diversity Equity and Inclusion DEI","GLCES00134",null,"Davis Forest School Summer and Fall Program ",null,"Davis Forest School Summer and Fall Program","203037",null,"Consulting ",null,"Consulting"]
[null,null,null,null,"","15493",null,"Edward DTurner Emergency LnFd 03753 ",null,"Edward DTurner Emergency LnFd 03753",null,null,null,null,null,null,null,null,null,null,null,null,null,null,null,null,null,"","ABB",null,"Addressing Bias And Bigotry OP Program funding ",null,"Addressing Bias And Bigotry OP Program funding","GLCES00135",null,"College Application Intensive ",null,"College Application Intensive","203038",null,"Generation ",null,"Generation"]
[null,null,null,null,"","15494",null,"Tulare Cnty Med Soc Loan Fnd 03755 ",null,"Tulare Cnty Med Soc Loan Fnd 03755",null,null,null,null,null,null,null,null,null,null,null,null,null,null,null,null,null,"","D00",null,"Diversity Awareness ",null,"Diversity Awareness","GLCES00136",null,"UC Davis Eye Center Resident Fellow and Alumni Research Symposium ",null,"UC Davis Eye Center Resident Fellow and Alumni Research Symposium","203039",null,"Single EV flow Cytometry ",null,"Single EV flow Cytometry"]
[null,null,null,null,"","15495",null,"UCD Health Ins Stdt Loan 03758 ",null,"UCD Health Ins Stdt Loan 03758",null,null,null,null,null,null,null,null,null,null,null,null,null,null,null,null,null,"",null,null,"Healthy Davis Together ",null,"Healthy Davis Together","GLCES00137",null,"Calif Germany Agrivoltaics Conference ",null,"Calif Germany Agrivoltaics Conference","203040",null,"Fluorescent Labeling ",null,"Fluorescent Labeling"]
[null,null,null,null,"","15496",null,"UCD Medical Student Loan Fd 03760 ",null,"UCD Medical Student Loan Fd 03760",null,null,null,null,null,null,null,null,null,null,null,null,null,null,null,null,null,"","CVD",null,"COVID19 ",null,"COVID19","GLCES00138",null,"International Summer Sessions in Metabolomics 2024 ",null,"International Summer Sessions in Metabolomics 2024","203041",null,"SO IRIS ",null,"SO IRIS"]
[null,null,null,null,"","15497",null,"Fradkin Neurology Loan 03761 ",null,"Fradkin Neurology Loan 03761",null,null,null,null,null,null,null,null,null,null,null,null,null,null,null,null,null,"","ISO",null,"Isolation Services ",null,"Isolation Services","GLCES00139",null,"RNASeq data analysis UCD Bioinformatics Core June 2024 ",null,"RNASeq data analysis UCD Bioinformatics Core June 2024","203042",null,"SEC isolation of Evs ",null,"SEC isolation of Evs"]
[null,null,null,null,"","15498",null,"Fradkin Oncology Loan 03762 ",null,"Fradkin Oncology Loan 03762",null,null,null,null,null,null,null,null,null,null,null,null,null,null,null,null,null,"",null,null,"Provost Initiatives ",null,"Provost Initiatives","GLCES00140",null,"Single Cell Workshops UCD Bioinformatics Core June 2024 ",null,"Single Cell Workshops UCD Bioinformatics Core June 2024","203043",null,"Mass Spectometry ",null,"Mass Spectometry"]
[null,null,null,null,"","15499",null,"Dr Willis Van Sell Mem Loan Fd 03799 ",null,"Dr Willis Van Sell Mem Loan Fd 03799",null,null,null,null,null,null,null,null,null,null,null,null,null,null,null,null,null,"","OPM",null,"UCOP Miscellaneous ",null,"UCOP Miscellaneous","GLCES00141",null,"California Ag Lenders Society Meeting ",null,"California Ag Lenders Society Meeting","203044",null,"Nonaoparticle tracking analysis ",null,"Nonaoparticle tracking analysis"]
[null,null,null,null,"","15500",null,"VM Emergency Student Loan 03800 ",null,"VM Emergency Student Loan 03800",null,null,null,null,null,null,null,null,null,null,null,null,null,null,null,null,null,"","SSI",null,"Student Success Initiative Funds ",null,"Student Success Initiative Funds","GLCES00142",null,"AFOSR Bi Annual Review of the Program on UQHMM ",null,"AFOSR Bi Annual Review of the Program on UQHMM","203045",null,"Resistive puls sensing ",null,"Resistive puls sensing"]
[null,null,null,null,"","15501",null,"VMTH House Officers Emergency Ln F 03801 ",null,"VMTH House Officers Emergency Ln F 03801",null,null,null,null,null,null,null,null,null,null,null,null,null,null,null,null,null,"",null,null,"Work Study Programs ",null,"Work Study Programs","GLCES00143",null,"Celebration of Life for Dr Ronald C Jensen DVM ",null,"Celebration of Life for Dr Ronald C Jensen DVM","203046",null,"Transmission electron microscopy ",null,"Transmission electron microscopy"]
[null,null,null,null,"","15502",null,"VM Emerg LT Stdt Loan 03802 ",null,"VM Emerg LT Stdt Loan 03802",null,null,null,null,null,null,null,null,null,null,null,null,null,null,null,null,null,"",null,null,"Work Study Programs On Campus ",null,"Work Study Programs On Campus","GLCES00144",null,"Kimia and Chris Post Wedding Party ",null,"Kimia and Chris Post Wedding Party","203047",null,"Training ",null,"Training"]
[null,null,null,null,"","15503",null,"MayAndOtto Zender Mem Fd 03880 ",null,"MayAndOtto Zender Mem Fd 03880",null,null,null,null,null,null,null,null,null,null,null,null,null,null,null,null,null,"","WS1",null,"WS Undergrad Federal ",null,"WS Undergrad Federal","GLCES00145",null,"FAHC 31st Health Conference ",null,"FAHC 31st Health Conference","203048",null,"Ultra Centrifuge ",null,"Ultra Centrifuge"]
[null,null,null,null,"","15504",null,"State Dream Loan Prog UC Match 03894 ",null,"State Dream Loan Prog UC Match 03894",null,null,null,null,null,null,null,null,null,null,null,null,null,null,null,null,null,"","WS2",null,"WS Undergrad Federal 2nd job ",null,"WS Undergrad Federal 2nd job","GLCES00146",null,"ERP Boot Camp ",null,"ERP Boot Camp","203049",null,"Litigation Settlements ",null,"Litigation Settlements"]
[null,null,null,null,"","15505",null,"State Dream Loan Prog State Approp 03895 ",null,"State Dream Loan Prog State Approp 03895",null,null,null,null,null,null,null,null,null,null,null,null,null,null,null,null,null,"","WS3",null,"WS Graduate Federal ",null,"WS Graduate Federal","GLCES00147",null,"NCIBT Symposium and Summer School ",null,"NCIBT Symposium and Summer School","203050",null,"Internal Borrowing for Projects ",null,"Internal Borrowing for Projects"]
[null,null,null,null,"","15506",null,"Loan Fund Reserve Pool 03930 ",null,"Loan Fund Reserve Pool 03930",null,null,null,null,null,null,null,null,null,null,null,null,null,null,null,null,null,"","WS4",null,"WS On Campus Community Service ",null,"WS On Campus Community Service","GLCES00148",null,"NorCal Federal Highway Admin Career Fair ",null,"NorCal Federal Highway Admin Career Fair","203051",null,"ADA Funding ",null,"ADA Funding"]
[null,null,null,null,"",null,null,"Campus Designated Reserves C ",null,"Campus Designated Reserves C",null,null,null,null,null,null,null,null,null,null,null,null,null,null,null,null,null,"","WS5",null,"WS Undergrad University ",null,"WS Undergrad University","GLCES00149",null,"Lindsey and Zoies Wedding ",null,"Lindsey and Zoies Wedding","203052",null,"Capital Planning Funding ",null,"Capital Planning Funding"]
[null,null,null,null,"",null,null,"Campus Reserves ",null,"Campus Reserves",null,null,null,null,null,null,null,null,null,null,null,null,null,null,null,null,null,"","WS6",null,"WS Undergrad University 2nd Job ",null,"WS Undergrad University 2nd Job","GLCES00150",null,"Celebration of Life of Meco Bernoco ",null,"Celebration of Life of Meco Bernoco","203053",null,"Conferences ",null,"Conferences"]
[null,null,null,null,"","16200",null,"Sales and Service Reserves ",null,"Sales and Service Reserves",null,null,null,null,null,null,null,null,null,null,null,null,null,null,null,null,null,"","WS7",null,"WS Undergrad International ",null,"WS Undergrad International","GLCES00151",null,"Cal Bridge Summer Institute ",null,"Cal Bridge Summer Institute","203054",null,"Bus Replacement ",null,"Bus Replacement"]
[null,null,null,null,"","16201",null,"Educational Reserves ",null,"Educational Reserves",null,null,null,null,null,null,null,null,null,null,null,null,null,null,null,null,null,"","WS8",null,"WS State LAEP On Campus ",null,"WS State LAEP On Campus","GLCES00152",null,"Davis Aquamonsters Spring Practices 2024 ",null,"Davis Aquamonsters Spring Practices 2024","203055",null,"Bus Expansion ",null,"Bus Expansion"]
[null,null,null,null,"","16296",null,"ASUCD Volunteer Award ",null,"ASUCD Volunteer Award",null,null,null,null,null,null,null,null,null,null,null,null,null,null,null,null,null,"",null,null,"Work Study Programs Off Campus ",null,"Work Study Programs Off Campus","GLCES00153",null,"Davis Aqua Darts Spring Practices 2024 ",null,"Davis Aqua Darts Spring Practices 2024","203056",null,"Operating ",null,"Operating"]
[null,null,null,null,"","16297",null,"Basic Needs Aggie Aid ",null,"Basic Needs Aggie Aid",null,null,null,null,null,null,null,null,null,null,null,null,null,null,null,null,null,"","WSC",null,"WS Reaching Tutoring and Family Literacy ",null,"WS Reaching Tutoring and Family Literacy","GLCES00154",null,"Davis Water Polo Club Spring Practices 2024 ",null,"Davis Water Polo Club Spring Practices 2024","203057",null,"Non Operating ",null,"Non Operating"]
[null,null,null,null,"","16298",null,"Athletic Grant ",null,"Athletic Grant",null,null,null,null,null,null,null,null,null,null,null,null,null,null,null,null,null,"","WSD",null,"WS Off Campus Community Service ",null,"WS Off Campus Community Service","GLCES00155",null,"Davis Divers Spring Practices 2024 ",null,"Davis Divers Spring Practices 2024","203058",null,"Tires and Tubes ",null,"Tires and Tubes"]
[null,null,null,null,"","16299",null,"Basic Needs Grant ",null,"Basic Needs Grant",null,null,null,null,null,null,null,null,null,null,null,null,null,null,null,null,null,"","WSE",null,"WS Off Campus For Profit Agency ",null,"WS Off Campus For Profit Agency","GLCES00156",null,"Psychiatry Research Symposium ",null,"Psychiatry Research Symposium","203059",null,"Spanish Language Conference ",null,"Spanish Language Conference"]
[null,null,null,null,"","16300",null,"Summer Session Reserve 75025 ",null,"Summer Session Reserve 75025",null,null,null,null,null,null,null,null,null,null,null,null,null,null,null,null,null,"","WSF",null,"WS Math Tutoring ",null,"WS Math Tutoring","GLCES00157",null,"EPI CAL TTA Spring Conference 2024 ",null,"EPI CAL TTA Spring Conference 2024","203060",null,"Gene and Stem Cell Conference ",null,"Gene and Stem Cell Conference"]
[null,null,null,null,"","16301",null,"Train and Develop Assessment Reserve 75030 ",null,"Train and Develop Assessment Reserve 75030",null,null,null,null,null,null,null,null,null,null,null,null,null,null,null,null,null,"","WSG",null,"WS Federal Experimental Sites Initiative ",null,"WS Federal Experimental Sites Initiative","GLCES00158",null,"GDS ",null,"GDS","203061",null,"International Training Prg for Neuro Disabilities ",null,"International Training Prg for Neuro Disabilities"]
[null,null,null,null,"","16302",null,"Federal Fin Aid Admin Allowance 75040 ",null,"Federal Fin Aid Admin Allowance 75040",null,null,null,null,null,null,null,null,null,null,null,null,null,null,null,null,null,"","WSH",null,"WS State LAEP Off Campus ",null,"WS State LAEP Off Campus","GLCES00159",null,"Davis Diving Region Invite ",null,"Davis Diving Region Invite","203062",null,"Summer Camp ",null,"Summer Camp"]
[null,null,null,null,"","16303",null,"Employee Support Program Reserve 75041 ",null,"Employee Support Program Reserve 75041",null,null,null,null,null,null,null,null,null,null,null,null,null,null,null,null,null,null,null,null,null,null,"","GLCES00160",null,"UC Treasury Conference 2024 ",null,"UC Treasury Conference 2024","203063",null,"Thank You Party ",null,"Thank You Party"]
[null,null,null,null,"","16304",null,"UCDMC Workers Compensation Admin 75043 ",null,"UCDMC Workers Compensation Admin 75043",null,null,null,null,null,null,null,null,null,null,null,null,null,null,null,null,null,null,null,null,null,null,"","GLCES00161",null,"Tech Trek 2024 ",null,"Tech Trek 2024","203064",null,"22Q at the Zoo ",null,"22Q at the Zoo"]
[null,null,null,null,"","16305",null,"Landfill Construction Reserve 75046 ",null,"Landfill Construction Reserve 75046",null,null,null,null,null,null,null,null,null,null,null,null,null,null,null,null,null,null,null,null,null,null,"","GLCES00162",null,"2024 Regional Anesthesia and POCUS Workshop ",null,"2024 Regional Anesthesia and POCUS Workshop","203065",null,"Psychology Fellows Clinic ",null,"Psychology Fellows Clinic"]
[null,null,null,null,"","16306",null,"UCDMC Equity In Current Assets 75480 ",null,"UCDMC Equity In Current Assets 75480",null,null,null,null,null,null,null,null,null,null,null,null,null,null,null,null,null,null,null,null,null,null,"","GLCES00163",null,"Trauma Conference ",null,"Trauma Conference","203936",null,"Waterway Stewardship ",null,"Waterway Stewardship"]
[null,null,null,null,"","16307",null,"UC Ready Business Continuity Program 75552 ",null,"UC Ready Business Continuity Program 75552",null,null,null,null,null,null,null,null,null,null,null,null,null,null,null,null,null,null,null,null,null,null,"","GLCES00164",null,"SHHA ",null,"SHHA",null,null,"Campus Committees and Organizations ",null,"Campus Committees and Organizations"]
[null,null,null,null,"","16308",null,"CPE CAMPUS PARTNERS RESERVE FUND ",null,"CPE CAMPUS PARTNERS RESERVE FUND",null,null,null,null,null,null,null,null,null,null,null,null,null,null,null,null,null,null,null,null,null,null,"","GLCES00165",null,"TGFS Golf Day 2024 ",null,"TGFS Golf Day 2024","201000",null,"ADMAN ",null,"ADMAN"]
[null,null,null,null,"","16309",null,"Equitable Access Grant ",null,"Equitable Access Grant",null,null,null,null,null,null,null,null,null,null,null,null,null,null,null,null,null,null,null,null,null,null,"","GLCES00166",null,"Flow Cytometry Course ",null,"Flow Cytometry Course","201001",null,"Davis Faculty Association ",null,"Davis Faculty Association"]
[null,null,null,null,"",null,null,"Capital Reserves ",null,"Capital Reserves",null,null,null,null,null,null,null,null,null,null,null,null,null,null,null,null,null,null,null,null,null,null,"","GLCES00167",null,"Phi Sigma New Member Registration ",null,"Phi Sigma New Member Registration","201002",null,"Staff Diversity Admin Advisory Committee ",null,"Staff Diversity Admin Advisory Committee"]
[null,null,null,null,"",null,null,"Unrestricted Gift Funds for Capital D ",null,"Unrestricted Gift Funds for Capital D",null,null,null,null,null,null,null,null,null,null,null,null,null,null,null,null,null,null,null,null,null,null,"","GLCES00168",null,"CSMP Summer Workshop ",null,"CSMP Summer Workshop","201003",null,"Staff Assembly ",null,"Staff Assembly"]
[null,null,null,null,"","17000",null,"Unrestricted Gift Funds for Capital ",null,"Unrestricted Gift Funds for Capital",null,null,null,null,null,null,null,null,null,null,null,null,null,null,null,null,null,null,null,null,null,null,"","GLCES00169",null,"Agricultural Water Systems Preventing and Managing Food Safety Risks ",null,"Agricultural Water Systems Preventing and Managing Food Safety Risks","201004",null,"African American Faculty and Staff Assoc ",null,"African American Faculty and Staff Assoc"]
[null,null,null,null,"",null,null,"University Funds for Capital D ",null,"University Funds for Capital D",null,null,null,null,null,null,null,null,null,null,null,null,null,null,null,null,null,null,null,null,null,null,"","GLCES00170",null,"Data Science Focused R Programming Beginner Short Course ",null,"Data Science Focused R Programming Beginner Short Course","201005",null,"Chancellor Committee on LGBTQIA ",null,"Chancellor Committee on LGBTQIA"]
[null,null,null,null,"","17100",null,"University Funds for Capital ",null,"University Funds for Capital",null,null,null,null,null,null,null,null,null,null,null,null,null,null,null,null,null,null,null,null,null,null,"","GLCES00171",null,"35th Annual UC Davis Anesthesiology Update ",null,"35th Annual UC Davis Anesthesiology Update","201006",null,"Disabilities Issues Administrative Advisory ",null,"Disabilities Issues Administrative Advisory"]
[null,null,null,null,"",null,null,"University Funds for Renewal and Replacement D ",null,"University Funds for Renewal and Replacement D",null,null,null,null,null,null,null,null,null,null,null,null,null,null,null,null,null,null,null,null,null,null,"","GLCES00172",null,"Memorial Event for Steve Kao ",null,"Memorial Event for Steve Kao","201007",null,"Asian Pacific American Systemwide Alliance ",null,"Asian Pacific American Systemwide Alliance"]
[null,null,null,null,"","17200",null,"University Funds for Renewal and Replacement ",null,"University Funds for Renewal and Replacement",null,null,null,null,null,null,null,null,null,null,null,null,null,null,null,null,null,null,null,null,null,null,"","GLCES00173",null,"USTA Northern Calif Junior Training Camp ",null,"USTA Northern Calif Junior Training Camp","201008",null,"Latinx Staff and Faculty Association ",null,"Latinx Staff and Faculty Association"]
[null,null,null,null,"",null,null,"Other Designated ",null,"Other Designated",null,null,null,null,null,null,null,null,null,null,null,null,null,null,null,null,null,null,null,null,null,null,"","GLCES00174",null,"CA Nutrition and Dietetic Educators Conference ",null,"CA Nutrition and Dietetic Educators Conference","201009",null,"Native American Faculty and Staff Association ",null,"Native American Faculty and Staff Association"]
[null,null,null,null,"",null,null,"Deferred Maintenance ",null,"Deferred Maintenance",null,null,null,null,null,null,null,null,null,null,null,null,null,null,null,null,null,null,null,null,null,null,"","GLCES00175",null,"Sand Devils Beach Volleyball Tryouts ",null,"Sand Devils Beach Volleyball Tryouts","201010",null,"Status of Women at Davis Admin Adry ",null,"Status of Women at Davis Admin Adry"]
[null,null,null,null,"","17900",null,"Deferred Maintenance Projects ",null,"Deferred Maintenance Projects",null,null,null,null,null,null,null,null,null,null,null,null,null,null,null,null,null,null,null,null,null,null,"","GLCES00176",null,"Graduate and Law School Fair ",null,"Graduate and Law School Fair","201011",null,"Veteran Constituency Group ",null,"Veteran Constituency Group"]
[null,null,null,null,"",null,null,"Federal Off the Top ",null,"Federal Off the Top",null,null,null,null,null,null,null,null,null,null,null,null,null,null,null,null,null,null,null,null,null,null,"","GLCES00177",null,"Afghan and Ukranian Refugee Student Wellness Conference ",null,"Afghan and Ukranian Refugee Student Wellness Conference","201012",null,"Entertainment Council ",null,"Entertainment Council"]
[null,null,null,null,"","17910",null,"Federal Contract and Grant Overhead ",null,"Federal Contract and Grant Overhead",null,null,null,null,null,null,null,null,null,null,null,null,null,null,null,null,null,null,null,null,null,null,"","GLCES00178",null,"Sutter Davis Hospital Longevity Awards ",null,"Sutter Davis Hospital Longevity Awards","201013",null,"Institutional Review Board ",null,"Institutional Review Board"]
[null,null,null,null,"",null,null,"Short Term Investment Pool STIP ",null,"Short Term Investment Pool STIP",null,null,null,null,null,null,null,null,null,null,null,null,null,null,null,null,null,null,null,null,null,null,"","GLCES00179",null,"2024 Donkey Welfare Symposium ",null,"2024 Donkey Welfare Symposium","201015",null,"Asian Pacific American Systemwide Alliance APASA ",null,"Asian Pacific American Systemwide Alliance APASA"]
[null,null,null,null,"","17920",null,"Private Gift or Grant STIP 69240 ",null,"Private Gift or Grant STIP 69240",null,null,null,null,null,null,null,null,null,null,null,null,null,null,null,null,null,null,null,null,null,null,"","GLCES00180",null,"Cheersport Davis Classic 2025 ",null,"Cheersport Davis Classic 2025","201016",null,"LatinX Staff and Faculty Association LSFA ",null,"LatinX Staff and Faculty Association LSFA"]
[null,null,null,null,"","17921",null,"CUF Short Term Investment Pool STIP 69250 ",null,"CUF Short Term Investment Pool STIP 69250",null,null,null,null,null,null,null,null,null,null,null,null,null,null,null,null,null,null,null,null,null,null,"","GLCES00181",null,"School of Medicine Alumni Weekend ",null,"School of Medicine Alumni Weekend","201017",null,"PRIDE LGBTQ ",null,"PRIDE LGBTQ"]
[null,null,null,null,"",null,null,"UC General Funds B ",null,"UC General Funds B",null,null,null,null,null,null,null,null,null,null,null,null,null,null,null,null,null,null,null,null,null,null,"","GLCES00182",null,"Special Olympics Northern California Fall Games ",null,"Special Olympics Northern California Fall Games","201018",null,"Veterans Employee Association VEA ",null,"Veterans Employee Association VEA"]
[null,null,null,null,"",null,null,"UC General Funds C ",null,"UC General Funds C",null,null,null,null,null,null,null,null,null,null,null,null,null,null,null,null,null,null,null,null,null,null,"","GLCES00183",null,"Funshine 80th Birthday ",null,"Funshine 80th Birthday","201019",null,"DiversABILITIES ",null,"DiversABILITIES"]
[null,null,null,null,"",null,null,"UC General Funds D ",null,"UC General Funds D",null,null,null,null,null,null,null,null,null,null,null,null,null,null,null,null,null,null,null,null,null,null,"","GLCES00184",null,"Proteomics Course ",null,"Proteomics Course","201020",null,"CGPSA Chancellors Grad and Prof Student Advisory Board ",null,"CGPSA Chancellors Grad and Prof Student Advisory Board"]
[null,null,null,null,"","19931",null,"Application Fees ",null,"Application Fees",null,null,null,null,null,null,null,null,null,null,null,null,null,null,null,null,null,null,null,null,null,null,"","GLCES00185",null,"Walter J Hicks Celebration of Life ",null,"Walter J Hicks Celebration of Life","201021",null,"Graduate Studies Advisory Committee GSAC ",null,"Graduate Studies Advisory Committee GSAC"]
[null,null,null,null,"","19933",null,"Federal ICR General Fund Portion ",null,"Federal ICR General Fund Portion",null,null,null,null,null,null,null,null,null,null,null,null,null,null,null,null,null,null,null,null,null,null,"","GLCES00186",null,"Taft College MESA Leadership Retreat ",null,"Taft College MESA Leadership Retreat","201022",null,"Grad Student Advisor Dean of Grad Studies Chancellor GSADC ",null,"Grad Student Advisor Dean of Grad Studies Chancellor GSADC"]
[null,null,null,null,"","19934",null,"State ICR General Fund Portion ",null,"State ICR General Fund Portion",null,null,null,null,null,null,null,null,null,null,null,null,null,null,null,null,null,null,null,null,null,null,"","GLCES00187",null,"Cork Supply Cork Harvesting Event ",null,"Cork Supply Cork Harvesting Event","201023",null,"Grad Studies Graduate Students of Color GSOC ",null,"Grad Studies Graduate Students of Color GSOC"]
[null,null,null,null,"","19940",null,"Interest on General Fund Balances ",null,"Interest on General Fund Balances",null,null,null,null,null,null,null,null,null,null,null,null,null,null,null,null,null,null,null,null,null,null,"","GLCES00188",null,"1st Annual Murray Gardner Symposium in Virology ",null,"1st Annual Murray Gardner Symposium in Virology","201024",null,"Grad Studies Postdoctoral Scholars Association PSA ",null,"Grad Studies Postdoctoral Scholars Association PSA"]
[null,null,null,null,"","19941",null,"CIRM ICR ",null,"CIRM ICR",null,null,null,null,null,null,null,null,null,null,null,null,null,null,null,null,null,null,null,null,null,null,"",null,null,"GL Only Projects Course Materials Fees ",null,"GL Only Projects Course Materials Fees","201025",null,"Grad Studies Graduate Center at Walker Hall ",null,"Grad Studies Graduate Center at Walker Hall"]
[null,null,null,null,"","19942",null,"Nonresident Supplemental Tuition ",null,"Nonresident Supplemental Tuition",null,null,null,null,null,null,null,null,null,null,null,null,null,null,null,null,null,null,null,null,null,null,"","GLCBUYTTS1",null,"Temp Teaching Course Buy outs and Sabbaticals GL Only ",null,"Temp Teaching Course Buy outs and Sabbaticals GL Only","201026",null,"African Continuum ",null,"African Continuum"]
[null,null,null,null,"","19943",null,"Other UC General Fund ",null,"Other UC General Fund",null,null,null,null,null,null,null,null,null,null,null,null,null,null,null,null,null,null,null,null,null,null,"","GLCMF00000",null,"ARE 293 Analysis of California Agriculture Resources ",null,"ARE 293 Analysis of California Agriculture Resources","201027",null,"Advising for Equity Administrative Advisory Committee ",null,"Advising for Equity Administrative Advisory Committee"]
[null,null,null,null,"","19990",null,"Vacation Accruals SGF UCI ",null,"Vacation Accruals SGF UCI",null,null,null,null,null,null,null,null,null,null,null,null,null,null,null,null,null,null,null,null,null,null,"","GLCMF00002",null,"ANG 111 Molecular Biology Laboratory Techniques ",null,"ANG 111 Molecular Biology Laboratory Techniques","201028",null,"Muslim Faculty Staff Association ",null,"Muslim Faculty Staff Association"]
[null,null,null,null,"","19991",null,"Vacation Accruals UCGF UCI ",null,"Vacation Accruals UCGF UCI",null,null,null,null,null,null,null,null,null,null,null,null,null,null,null,null,null,null,null,null,null,null,"","GLCMF00003",null,"ANS 1 Domestic Animals People ",null,"ANS 1 Domestic Animals People","201029",null,"Women in Technology ",null,"Women in Technology"]
[null,null,null,null,"",null,null,"Restricted Expendable ",null,"Restricted Expendable",null,null,null,null,null,null,null,null,null,null,null,null,null,null,null,null,null,null,null,null,null,null,"","GLCMF00004",null,"ANS 2 Introductory Animal Science ",null,"ANS 2 Introductory Animal Science",null,null,"Development Activities B ",null,"Development Activities B"]
[null,null,null,null,"",null,null,"Special State Appropriations B ",null,"Special State Appropriations B",null,null,null,null,null,null,null,null,null,null,null,null,null,null,null,null,null,null,null,null,null,null,"","GLCMF00005",null,"ANS 21 Livestock Dairy Cattle Judging ",null,"ANS 21 Livestock Dairy Cattle Judging","201500",null,"Development ",null,"Development"]
[null,null,null,null,"",null,null,"Special State Appropriations C ",null,"Special State Appropriations C",null,null,null,null,null,null,null,null,null,null,null,null,null,null,null,null,null,null,null,null,null,null,"","GLCMF00006",null,"ANS 041L Domestic Animal Production Laboratory ",null,"ANS 041L Domestic Animal Production Laboratory","201501",null,"Davis Chancellors Club ",null,"Davis Chancellors Club"]
[null,null,null,null,"",null,null,"Special State Appropriations D ",null,"Special State Appropriations D",null,null,null,null,null,null,null,null,null,null,null,null,null,null,null,null,null,null,null,null,null,null,"","GLCMF00007",null,"ANS 049F Animal Management Practices ",null,"ANS 049F Animal Management Practices","201502",null,"Direct Mail ",null,"Direct Mail"]
[null,null,null,null,"","18072",null,"California Cancer Research ",null,"California Cancer Research",null,null,null,null,null,null,null,null,null,null,null,null,null,null,null,null,null,null,null,null,null,null,"","GLCMF00008",null,"ANS 106 Domestic Animal Behavior Laboratory ",null,"ANS 106 Domestic Animal Behavior Laboratory","201503",null,"Telephone Outreach ",null,"Telephone Outreach"]
[null,null,null,null,"","18073",null,"Institute of Transportation Studies ",null,"Institute of Transportation Studies",null,null,null,null,null,null,null,null,null,null,null,null,null,null,null,null,null,null,null,null,null,null,"","GLCMF00009",null,"ANS 107 Zoo Biology Research ",null,"ANS 107 Zoo Biology Research","201504",null,"Employee Giving ",null,"Employee Giving"]
[null,null,null,null,"","18081",null,"Center for Earthquake Engineering Research 2014 through 2017 ",null,"Center for Earthquake Engineering Research 2014 through 2017",null,null,null,null,null,null,null,null,null,null,null,null,null,null,null,null,null,null,null,null,null,null,"","GLCMF00010",null,"ANS 115 Advanced Horse Production ",null,"ANS 115 Advanced Horse Production","201505",null,"Give Day ",null,"Give Day"]
[null,null,null,null,"","18082",null,"Permanent New Equip Instr Support General ArtsandHumanities Lottery Funds ",null,"Permanent New Equip Instr Support General ArtsandHumanities Lottery Funds",null,null,null,null,null,null,null,null,null,null,null,null,null,null,null,null,null,null,null,null,null,null,"","GLCMF00011",null,"ANS 120L Meat Science Laboratory ",null,"ANS 120L Meat Science Laboratory","201506",null,"Parent Giving ",null,"Parent Giving"]
[null,null,null,null,"","18083",null,"Instructional Computing Lottery Funds ",null,"Instructional Computing Lottery Funds",null,null,null,null,null,null,null,null,null,null,null,null,null,null,null,null,null,null,null,null,null,null,"","GLCMF00012",null,"ANS 124 Lactation ",null,"ANS 124 Lactation","201507",null,"Student Foundation ",null,"Student Foundation"]
[null,null,null,null,"","18084",null,"Obsolete Equipment Lottery Funds ",null,"Obsolete Equipment Lottery Funds",null,null,null,null,null,null,null,null,null,null,null,null,null,null,null,null,null,null,null,null,null,null,"","GLCMF00013",null,"ANS 129 Environmental Stewardship in Animal Production Systems ",null,"ANS 129 Environmental Stewardship in Animal Production Systems","201508",null,"Gift Processing ",null,"Gift Processing"]
[null,null,null,null,"","18085",null,"One Time Inst Support Excess Lottery Funds ",null,"One Time Inst Support Excess Lottery Funds",null,null,null,null,null,null,null,null,null,null,null,null,null,null,null,null,null,null,null,null,null,null,"","GLCMF00014",null,"ANS 130 Endocrinology Laboratory ",null,"ANS 130 Endocrinology Laboratory","201509",null,"Patent ",null,"Patent"]
[null,null,null,null,"","18086",null,"Reserved for Supplemental Allocations ",null,"Reserved for Supplemental Allocations",null,null,null,null,null,null,null,null,null,null,null,null,null,null,null,null,null,null,null,null,null,null,"","GLCMF00015",null,"ANS 132 Microbiology of Animal Systems Laboratory ",null,"ANS 132 Microbiology of Animal Systems Laboratory","201510",null,"Donor Gifts ",null,"Donor Gifts"]
[null,null,null,null,"","18087",null,"Lottery Fund Financial Control ",null,"Lottery Fund Financial Control",null,null,null,null,null,null,null,null,null,null,null,null,null,null,null,null,null,null,null,null,null,null,"","GLCMF00016",null,"ANS 133 Animal Cell Culture Laboratory ",null,"ANS 133 Animal Cell Culture Laboratory","201511",null,"Donor Travel ",null,"Donor Travel"]
[null,null,null,null,"","18091",null,"Oiled Wildlife Care Network ",null,"Oiled Wildlife Care Network",null,null,null,null,null,null,null,null,null,null,null,null,null,null,null,null,null,null,null,null,null,null,"","GLCMF00017",null,"ANS 134 Animal Cell Culture Laboratory ",null,"ANS 134 Animal Cell Culture Laboratory","201512",null,"Recognition and Stewardship Projects ",null,"Recognition and Stewardship Projects"]
[null,null,null,null,"","18093",null,"Health Care Benefit Fund ",null,"Health Care Benefit Fund",null,null,null,null,null,null,null,null,null,null,null,null,null,null,null,null,null,null,null,null,null,null,"","GLCMF00018",null,"ANS 135 Production Animal Laboratory ",null,"ANS 135 Production Animal Laboratory","201513",null,"Faculty/Staff Stewardship Award ",null,"Faculty/Staff Stewardship Award"]
[null,null,null,null,"","18098",null,"Mental Health Services 2014 through 2017 ",null,"Mental Health Services 2014 through 2017",null,null,null,null,null,null,null,null,null,null,null,null,null,null,null,null,null,null,null,null,null,null,"","GLCMF00019",null,"ANS 136 Techniques Practices of Fish Cultures ",null,"ANS 136 Techniques Practices of Fish Cultures","201514",null,"Student Thank-a-Thon ",null,"Student Thank-a-Thon"]
[null,null,null,null,"","18102",null,"Breast Cancer Research ",null,"Breast Cancer Research",null,null,null,null,null,null,null,null,null,null,null,null,null,null,null,null,null,null,null,null,null,null,"","GLCMF00020",null,"ANS 137 Techniques and Practices of Avian Culture ",null,"ANS 137 Techniques and Practices of Avian Culture","201515",null,"Endowment Reporting ",null,"Endowment Reporting"]
[null,null,null,null,"","18110",null,"Tobacco Related Disease Research ",null,"Tobacco Related Disease Research",null,null,null,null,null,null,null,null,null,null,null,null,null,null,null,null,null,null,null,null,null,null,"","GLCMF00021",null,"ANS 138 Advanced Animal Biochemical Techniques ",null,"ANS 138 Advanced Animal Biochemical Techniques","201516",null,"Regional Events ",null,"Regional Events"]
[null,null,null,null,"","18113",null,"Umbilical Cord Blood Collection Program ",null,"Umbilical Cord Blood Collection Program",null,null,null,null,null,null,null,null,null,null,null,null,null,null,null,null,null,null,null,null,null,null,"","GLCMF00022",null,"ANS 139 Experimental Animal Physiology ",null,"ANS 139 Experimental Animal Physiology","201517",null,"California Events ",null,"California Events"]
[null,null,null,null,"","18116",null,"Type 1 Diabetes Research Fund 6440 001 8103 ",null,"Type 1 Diabetes Research Fund 6440 001 8103",null,null,null,null,null,null,null,null,null,null,null,null,null,null,null,null,null,null,null,null,null,null,"","GLCMF00023",null,"ANS 140 Management of Laboratory Animals ",null,"ANS 140 Management of Laboratory Animals","201518",null,"Campus Stewardship Events ",null,"Campus Stewardship Events"]
[null,null,null,null,"","18119",null,"Graduate Medical Education Ca Healthcare Prop 56 ",null,"Graduate Medical Education Ca Healthcare Prop 56",null,null,null,null,null,null,null,null,null,null,null,null,null,null,null,null,null,null,null,null,null,null,"","GLCMF00024",null,"ANS 143 Pig Poultry Care Management ",null,"ANS 143 Pig Poultry Care Management","201519",null,"Personalized Stewardship ",null,"Personalized Stewardship"]
[null,null,null,null,"","18121",null,"Medical Research Program CA Healthcare Prop 56 ",null,"Medical Research Program CA Healthcare Prop 56",null,null,null,null,null,null,null,null,null,null,null,null,null,null,null,null,null,null,null,null,null,null,"","GLCMF00025",null,"ANS 144 Beef Cattle Sheep Production ",null,"ANS 144 Beef Cattle Sheep Production","201520",null,"Stewardship Communications Program ",null,"Stewardship Communications Program"]
[null,null,null,null,"","18125",null,"Road MaintenanceandRehabilitation ",null,"Road MaintenanceandRehabilitation",null,null,null,null,null,null,null,null,null,null,null,null,null,null,null,null,null,null,null,null,null,null,"","GLCMF00026",null,"ANS 146 Dairy Cattle Production ",null,"ANS 146 Dairy Cattle Production","201521",null,"Principal Giving Stewardship Events ",null,"Principal Giving Stewardship Events"]
[null,null,null,null,"","18198",null,"Yearend Accruals ",null,"Yearend Accruals",null,null,null,null,null,null,null,null,null,null,null,null,null,null,null,null,null,null,null,null,null,null,"","GLCMF00027",null,"ANS 160A Stress and Reproduction I ",null,"ANS 160A Stress and Reproduction I","201522",null,"Endowed Chair Celebrations ",null,"Endowed Chair Celebrations"]
[null,null,null,null,"","18199",null,"Yearend Adjustments ",null,"Yearend Adjustments",null,null,null,null,null,null,null,null,null,null,null,null,null,null,null,null,null,null,null,null,null,null,"","GLCMF00028",null,"ANS 160B Stress and Reproduction II ",null,"ANS 160B Stress and Reproduction II","201523",null,"Philanthropic Building Project Events ",null,"Philanthropic Building Project Events"]
[null,null,null,null,"","18298",null,"Senate Bill 518 Equine Drug Testing 18298 ",null,"Senate Bill 518 Equine Drug Testing 18298",null,null,null,null,null,null,null,null,null,null,null,null,null,null,null,null,null,null,null,null,null,null,"","GLCMF00029",null,"AVS 13 Birds Humans the Environment ",null,"AVS 13 Birds Humans the Environment","201524",null,"Teaching Prize ",null,"Teaching Prize"]
[null,null,null,null,"","18299",null,"Senate Bill 518 Equine Drug Testing 18299 ",null,"Senate Bill 518 Equine Drug Testing 18299",null,null,null,null,null,null,null,null,null,null,null,null,null,null,null,null,null,null,null,null,null,null,"","GLCMF00030",null,"AVS 016LC Raptor Migration Population Fluctuations ",null,"AVS 016LC Raptor Migration Population Fluctuations","201525",null,"International Development Events ",null,"International Development Events"]
[null,null,null,null,"","18997",null,"Inactive Special State Programs ",null,"Inactive Special State Programs",null,null,null,null,null,null,null,null,null,null,null,null,null,null,null,null,null,null,null,null,null,null,"","GLCMF00031",null,"MCP 200L Animal Cell Culture Laboratory ",null,"MCP 200L Animal Cell Culture Laboratory","201526",null,"Development Marketing Outsourcing ",null,"Development Marketing Outsourcing"]
[null,null,null,null,"","18998",null,"Other Adjustments ",null,"Other Adjustments",null,null,null,null,null,null,null,null,null,null,null,null,null,null,null,null,null,null,null,null,null,null,"","GLCMF00032",null,"NPB 121L Physiology of Reproduction Laboratory ",null,"NPB 121L Physiology of Reproduction Laboratory","201527",null,"Development Marketing Advertising ",null,"Development Marketing Advertising"]
[null,null,null,null,"",null,null,"State General Fund B ",null,"State General Fund B",null,null,null,null,null,null,null,null,null,null,null,null,null,null,null,null,null,null,null,null,null,null,"","GLCMF00033",null,"NUT 115 Animal Foods and Nutrition ",null,"NUT 115 Animal Foods and Nutrition","201528",null,"CRM Campaign ",null,"CRM Campaign"]
[null,null,null,null,"",null,null,"State General Fund C ",null,"State General Fund C",null,null,null,null,null,null,null,null,null,null,null,null,null,null,null,null,null,null,null,null,null,null,"","GLCMF00034",null,"ABT 16 Metal Properties Fabrication ",null,"ABT 16 Metal Properties Fabrication","201529",null,"Collateral ",null,"Collateral"]
[null,null,null,null,"",null,null,"State General Fund D ",null,"State General Fund D",null,null,null,null,null,null,null,null,null,null,null,null,null,null,null,null,null,null,null,null,null,null,"","GLCMF00035",null,"ABT 49 Field Equipment Operation ",null,"ABT 49 Field Equipment Operation","201530",null,"Development Marketing Internal Philanthropy Initiatives ",null,"Development Marketing Internal Philanthropy Initiatives"]
[null,null,null,null,"","19900",null,"State General Fund ",null,"State General Fund",null,null,null,null,null,null,null,null,null,null,null,null,null,null,null,null,null,null,null,null,null,null,"","GLCMF00036",null,"ABT 52 Field Equipment Welding ",null,"ABT 52 Field Equipment Welding","201531",null,"Prospect Research Resources ",null,"Prospect Research Resources"]
[null,null,null,null,"","19905",null,"SA Instructional Equip Replacement ",null,"SA Instructional Equip Replacement",null,null,null,null,null,null,null,null,null,null,null,null,null,null,null,null,null,null,null,null,null,null,"","GLCMF00037",null,"ABT 233 Pest Control Practices ",null,"ABT 233 Pest Control Practices","201532",null,"Planned Giving Mailings - Buckslips ",null,"Planned Giving Mailings - Buckslips"]
[null,null,null,null,"","19980",null,"Indirect Costs Return General ",null,"Indirect Costs Return General",null,null,null,null,null,null,null,null,null,null,null,null,null,null,null,null,null,null,null,null,null,null,"","GLCMF00038",null,"ABI 050A Animal Biology Laboratory ",null,"ABI 050A Animal Biology Laboratory","201533",null,"Planned Giving Mailings - Retiree One Pager ",null,"Planned Giving Mailings - Retiree One Pager"]
[null,null,null,null,"",null,null,"Specific State Appropriations B ",null,"Specific State Appropriations B",null,null,null,null,null,null,null,null,null,null,null,null,null,null,null,null,null,null,null,null,null,null,"","GLCMF00039",null,"ENT 1 Arts Science the World of Insects ",null,"ENT 1 Arts Science the World of Insects","201534",null,"Planned Giving Stelter Program ",null,"Planned Giving Stelter Program"]
[null,null,null,null,"",null,null,"Specific State Appropriations C ",null,"Specific State Appropriations C",null,null,null,null,null,null,null,null,null,null,null,null,null,null,null,null,null,null,null,null,null,null,"","GLCMF00040",null,"ENT 100L General Entomology ",null,"ENT 100L General Entomology","201535",null,"Donor Stewardship and Recognition ",null,"Donor Stewardship and Recognition"]
[null,null,null,null,"",null,null,"Specific State Appropriations D ",null,"Specific State Appropriations D",null,null,null,null,null,null,null,null,null,null,null,null,null,null,null,null,null,null,null,null,null,null,"","GLCMF00041",null,"ENT 107 California Insect Diversity ",null,"ENT 107 California Insect Diversity","201536",null,"Student Support Fundraising ",null,"Student Support Fundraising"]
[null,null,null,null,"","19902",null,"Budget Act Onetime appropriation in 19900 UCLA ",null,"Budget Act Onetime appropriation in 19900 UCLA",null,null,null,null,null,null,null,null,null,null,null,null,null,null,null,null,null,null,null,null,null,null,"","GLCMF00042",null,"ENT 116 Freshwater Macroinvertebrates ",null,"ENT 116 Freshwater Macroinvertebrates","201537",null,"Centralized Gift Processing ",null,"Centralized Gift Processing"]
[null,null,null,null,"","19903",null,"Purchase Utilities UCSB UCD ",null,"Purchase Utilities UCSB UCD",null,null,null,null,null,null,null,null,null,null,null,null,null,null,null,null,null,null,null,null,null,null,"","GLCMF00043",null,"ENT 156L Biology of Parasitism Laboratory ",null,"ENT 156L Biology of Parasitism Laboratory","201538",null,"Text Based Giving ",null,"Text Based Giving"]
[null,null,null,null,"","19904",null,"UG Teaching Excellence UCLA UCSB ",null,"UG Teaching Excellence UCLA UCSB",null,null,null,null,null,null,null,null,null,null,null,null,null,null,null,null,null,null,null,null,null,null,"","GLCMF00044",null,"ENT 158 Forensic Entomology ",null,"ENT 158 Forensic Entomology","201539",null,"Credit Card Merchant Fees Campaign ",null,"Credit Card Merchant Fees Campaign"]
[null,null,null,null,"","19906",null,"Instructional Use of Computers UCSB ",null,"Instructional Use of Computers UCSB",null,null,null,null,null,null,null,null,null,null,null,null,null,null,null,null,null,null,null,null,null,null,"","GLCMF00045",null,"ECL 214 Marine Ecology Concepts Practice ",null,"ECL 214 Marine Ecology Concepts Practice","201540",null,"Dedications ",null,"Dedications"]
[null,null,null,null,"","19911",null,"MultiCampus Research ProgsandInitiatives UCI UCSC ",null,"MultiCampus Research ProgsandInitiatives UCI UCSC",null,null,null,null,null,null,null,null,null,null,null,null,null,null,null,null,null,null,null,null,null,null,"","GLCMF00046",null,"ESP 123 Introduction to Field Laboratory Methods in Ecology ",null,"ESP 123 Introduction to Field Laboratory Methods in Ecology","201541",null,"Employee Recognition ",null,"Employee Recognition"]
[null,null,null,null,"","19912",null,"Improve Grad Rates for Disadvantaged Students UCM UCR UCSBandUCSC ",null,"Improve Grad Rates for Disadvantaged Students UCM UCR UCSBandUCSC",null,null,null,null,null,null,null,null,null,null,null,null,null,null,null,null,null,null,null,null,null,null,"","GLCMF00047",null,"ESP 127 Plant Conservation Biology ",null,"ESP 127 Plant Conservation Biology","201542",null,"CASE Scholarships ",null,"CASE Scholarships"]
[null,null,null,null,"","19914",null,"Academic Senate Grants UCLA ",null,"Academic Senate Grants UCLA",null,null,null,null,null,null,null,null,null,null,null,null,null,null,null,null,null,null,null,null,null,null,"","GLCMF00049",null,"ESP 151L Limnology Laboratory ",null,"ESP 151L Limnology Laboratory","201543",null,"Supervisor Training ",null,"Supervisor Training"]
[null,null,null,null,"","19915",null,"UC Climate Initiatives UCOP ",null,"UC Climate Initiatives UCOP",null,null,null,null,null,null,null,null,null,null,null,null,null,null,null,null,null,null,null,null,null,null,"","GLCMF00050",null,"ETX 102B Quantitative Analysis of Environmental Toxicants ",null,"ETX 102B Quantitative Analysis of Environmental Toxicants","201544",null,"Women In Philanthropy Sponsorship ",null,"Women In Philanthropy Sponsorship"]
[null,null,null,null,"","19916",null,"UC Climate Initiatives ",null,"UC Climate Initiatives",null,null,null,null,null,null,null,null,null,null,null,null,null,null,null,null,null,null,null,null,null,null,"","GLCMF00051",null,"ETX 103B Biological Effects of Toxicants Experimental Approaches ",null,"ETX 103B Biological Effects of Toxicants Experimental Approaches","201545",null,"Chancellor Office Development ",null,"Chancellor Office Development"]
[null,null,null,null,"","19917",null,"InstructionalandInformation Technology UCSC ",null,"InstructionalandInformation Technology UCSC",null,null,null,null,null,null,null,null,null,null,null,null,null,null,null,null,null,null,null,null,null,null,"","GLCMF00052",null,"ETX 131 Environmental Toxicology of Air Pollutants ",null,"ETX 131 Environmental Toxicology of Air Pollutants",null,null,"Funding Allocations ",null,"Funding Allocations"]
[null,null,null,null,"","19921",null,"Online Education ",null,"Online Education",null,null,null,null,null,null,null,null,null,null,null,null,null,null,null,null,null,null,null,null,null,null,"","GLCMF00053",null,"ETX 220L Analysis of Toxicants Laboratory ",null,"ETX 220L Analysis of Toxicants Laboratory","202010",null,"Faculty Research ",null,"Faculty Research"]
[null,null,null,null,"","19922",null,"MRU General Funds UCSC ",null,"MRU General Funds UCSC",null,null,null,null,null,null,null,null,null,null,null,null,null,null,null,null,null,null,null,null,null,null,"","GLCMF00054",null,"ETX 228 Gas ChromatographyMass Spectrometry of Toxic Chemicals ",null,"ETX 228 Gas ChromatographyMass Spectrometry of Toxic Chemicals","202011",null,"Faculty Academic Enrichment Prof Develop ",null,"Faculty Academic Enrichment Prof Develop"]
[null,null,null,null,"","19924",null,"Student Academic Preparation Programs ",null,"Student Academic Preparation Programs",null,null,null,null,null,null,null,null,null,null,null,null,null,null,null,null,null,null,null,null,null,null,"","GLCMF00055",null,"ETX FOR 281 Principles and Practice of Forensic DNA Analysis ",null,"ETX FOR 281 Principles and Practice of Forensic DNA Analysis","202012",null,"Faculty Start Up ",null,"Faculty Start Up"]
[null,null,null,null,"","19935",null,"State GF Enrollment Growth UCLA ",null,"State GF Enrollment Growth UCLA",null,null,null,null,null,null,null,null,null,null,null,null,null,null,null,null,null,null,null,null,null,null,"","GLCMF00056",null,"FST 50 Introduction to Food Preservation ",null,"FST 50 Introduction to Food Preservation","202013",null,"Leadership Support eg Dept Chair ",null,"Leadership Support eg Dept Chair"]
[null,null,null,null,"","19936",null,"Campus Designated GF UCB ",null,"Campus Designated GF UCB",null,null,null,null,null,null,null,null,null,null,null,null,null,null,null,null,null,null,null,null,null,null,"","GLCMF00057",null,"FST 101A Food Chemistry Laboratory ",null,"FST 101A Food Chemistry Laboratory","202014",null,"Faculty Bridge Funding ",null,"Faculty Bridge Funding"]
[null,null,null,null,"","19938",null,"Aggie Square Satellite Campus Project ",null,"Aggie Square Satellite Campus Project",null,null,null,null,null,null,null,null,null,null,null,null,null,null,null,null,null,null,null,null,null,null,"","GLCMF00058",null,"FST 101B Food Properties Laboratory ",null,"FST 101B Food Properties Laboratory","202015",null,"Students Support Provisions ",null,"Students Support Provisions"]
[null,null,null,null,"","19939",null,"Temp Allocs from ITFs for 19900 UCLA ",null,"Temp Allocs from ITFs for 19900 UCLA",null,null,null,null,null,null,null,null,null,null,null,null,null,null,null,null,null,null,null,null,null,null,"","GLCMF00059",null,"FST 102B Practical Malting Brewing Laboratory ",null,"FST 102B Practical Malting Brewing Laboratory","202016",null,"Commitments ",null,"Commitments"]
[null,null,null,null,"","19944",null,"Antibias Training Program 3 ",null,"Antibias Training Program 3",null,null,null,null,null,null,null,null,null,null,null,null,null,null,null,null,null,null,null,null,null,null,"","GLCMF00060",null,"FST 103 Food Analysis Laboratory ",null,"FST 103 Food Analysis Laboratory","202017",null,"ICR Return ",null,"ICR Return"]
[null,null,null,null,"","19945",null,"Jordans Syndrome ",null,"Jordans Syndrome",null,null,null,null,null,null,null,null,null,null,null,null,null,null,null,null,null,null,null,null,null,null,"","GLCMF00061",null,"FST 104L Microbiology Laboratory ",null,"FST 104L Microbiology Laboratory","202018",null,"Faculty Summer Sessions ",null,"Faculty Summer Sessions"]
[null,null,null,null,"","19946",null,"Lease Purchase Debt Service ",null,"Lease Purchase Debt Service",null,null,null,null,null,null,null,null,null,null,null,null,null,null,null,null,null,null,null,null,null,null,"","GLCMF00062",null,"FST NUT 106 Food Chemistry for Clinical Nutrition ",null,"FST NUT 106 Food Chemistry for Clinical Nutrition","202019",null,"Academic Senate Grants ",null,"Academic Senate Grants"]
[null,null,null,null,"","19947",null,"Go Bond Debt Service ",null,"Go Bond Debt Service",null,null,null,null,null,null,null,null,null,null,null,null,null,null,null,null,null,null,null,null,null,null,"","GLCMF00063",null,"FST 110L Food Processing Laboratory ",null,"FST 110L Food Processing Laboratory","202020",null,"Provost Funds ",null,"Provost Funds"]
[null,null,null,null,"","19948",null,"Lease Purchase Debt Service Savings ",null,"Lease Purchase Debt Service Savings",null,null,null,null,null,null,null,null,null,null,null,null,null,null,null,null,null,null,null,null,null,null,"","GLCMF00064",null,"FST 123L Enzymology Laboratory ",null,"FST 123L Enzymology Laboratory","202021",null,"Speaker Funds ",null,"Speaker Funds"]
[null,null,null,null,"","19949",null,"Legal Services UndocumentedImmigrant ",null,"Legal Services UndocumentedImmigrant",null,null,null,null,null,null,null,null,null,null,null,null,null,null,null,null,null,null,null,null,null,null,"","GLCMF00065",null,"FST 127 Sensory Evaluation of Foods ",null,"FST 127 Sensory Evaluation of Foods","202022",null,"University Honors ",null,"University Honors"]
[null,null,null,null,"","19953",null,"VectorBorne Disease Surveilance Gateway 3 UCD ",null,"VectorBorne Disease Surveilance Gateway 3 UCD",null,null,null,null,null,null,null,null,null,null,null,null,null,null,null,null,null,null,null,null,null,null,"","GLCMF00066",null,"FST 160 Food Product Development ",null,"FST 160 Food Product Development","202023",null,"Seed Grant ",null,"Seed Grant"]
[null,null,null,null,"","19954",null,"InnovationandEntrepreneurship Grants ",null,"InnovationandEntrepreneurship Grants",null,null,null,null,null,null,null,null,null,null,null,null,null,null,null,null,null,null,null,null,null,null,"","GLCMF00067",null,"FST 219 Biochemistry Microbiology Technology of Cheeses ",null,"FST 219 Biochemistry Microbiology Technology of Cheeses","202024",null,"Other Faculty Awards ",null,"Other Faculty Awards"]
[null,null,null,null,"","19955",null,"Support for Low Income URM LCFF plusStudents ",null,"Support for Low Income URM LCFF plusStudents",null,null,null,null,null,null,null,null,null,null,null,null,null,null,null,null,null,null,null,null,null,null,"","GLCMF00068",null,"CRD 20 Food Systems ",null,"CRD 20 Food Systems","202025",null,"MOU Memorandum of Understanding ",null,"MOU Memorandum of Understanding"]
[null,null,null,null,"","19956",null,"Firearms Violence Research ",null,"Firearms Violence Research",null,null,null,null,null,null,null,null,null,null,null,null,null,null,null,null,null,null,null,null,null,null,"","GLCMF00069",null,"CRD 250 Professional Skills for Community Development ",null,"CRD 250 Professional Skills for Community Development","202026",null,"Additional Compensation ",null,"Additional Compensation"]
[null,null,null,null,"","19957",null,"UC Scout ",null,"UC Scout",null,null,null,null,null,null,null,null,null,null,null,null,null,null,null,null,null,null,null,null,null,null,"","GLCMF00070",null,"LDA 21 Landscape Drafting Visualization ",null,"LDA 21 Landscape Drafting Visualization","202027",null,"POP Funding ",null,"POP Funding"]
[null,null,null,null,"","19958",null,"Faculty Best Practices ",null,"Faculty Best Practices",null,null,null,null,null,null,null,null,null,null,null,null,null,null,null,null,null,null,null,null,null,null,"","GLCMF00071",null,"LDA 23 Computer Graphics for Landscape Architecture ",null,"LDA 23 Computer Graphics for Landscape Architecture","202028",null,"Faculty Retention ",null,"Faculty Retention"]
[null,null,null,null,"","19959",null,"Underground Scholars Initiative ",null,"Underground Scholars Initiative",null,null,null,null,null,null,null,null,null,null,null,null,null,null,null,null,null,null,null,null,null,null,"","GLCMF00072",null,"LDA 50 Site Ecology ",null,"LDA 50 Site Ecology","202029",null,"Faculty New Hires ",null,"Faculty New Hires"]
[null,null,null,null,"","19960",null,"Marine Mammal Stranding NetworksandWhale Disentanglement UCD ",null,"Marine Mammal Stranding NetworksandWhale Disentanglement UCD",null,null,null,null,null,null,null,null,null,null,null,null,null,null,null,null,null,null,null,null,null,null,"","GLCMF00073",null,"LDA 60 Technology 1 Grading Drainage ",null,"LDA 60 Technology 1 Grading Drainage","202030",null,"Faculty Separations ",null,"Faculty Separations"]
[null,null,null,null,"","19962",null,"UCOP General Fund ",null,"UCOP General Fund",null,null,null,null,null,null,null,null,null,null,null,null,null,null,null,null,null,null,null,null,null,null,"","GLCMF00074",null,"LDA 70 Introduction to Spacemaking ",null,"LDA 70 Introduction to Spacemaking","202031",null,"Instructional Equipment ",null,"Instructional Equipment"]
[null,null,null,null,"","19963",null,"Systemwide UC Path General Fund ",null,"Systemwide UC Path General Fund",null,null,null,null,null,null,null,null,null,null,null,null,null,null,null,null,null,null,null,null,null,null,"","GLCMF00075",null,"LDA 102 Methods in Design Landscape Research ",null,"LDA 102 Methods in Design Landscape Research","202032",null,"Publication Assistance ",null,"Publication Assistance"]
[null,null,null,null,"","19964",null,"Telemedicine Psychiatry Residency 3 ",null,"Telemedicine Psychiatry Residency 3",null,null,null,null,null,null,null,null,null,null,null,null,null,null,null,null,null,null,null,null,null,null,"","GLCMF00076",null,"LDA 120 Advanced Computer Applications ",null,"LDA 120 Advanced Computer Applications","202033",null,"Summer Session Incentive ",null,"Summer Session Incentive"]
[null,null,null,null,"","19965",null,"Ralph J Bunche Center for African American Studies 3 UCLA ",null,"Ralph J Bunche Center for African American Studies 3 UCLA",null,null,null,null,null,null,null,null,null,null,null,null,null,null,null,null,null,null,null,null,null,null,"","GLCMF00077",null,"LDA 140 Green Building Design and Materials ",null,"LDA 140 Green Building Design and Materials","202034",null,"Mini Grants ",null,"Mini Grants"]
[null,null,null,null,"","19967",null,"Charles R Drew Postgraduate Medical School ",null,"Charles R Drew Postgraduate Medical School",null,null,null,null,null,null,null,null,null,null,null,null,null,null,null,null,null,null,null,null,null,null,"","GLCMF00078",null,"LDA 141 Community Design Planning ",null,"LDA 141 Community Design Planning","202035",null,"Peer Advisors ",null,"Peer Advisors"]
[null,null,null,null,"","19968",null,"AIDS Research ",null,"AIDS Research",null,null,null,null,null,null,null,null,null,null,null,null,null,null,null,null,null,null,null,null,null,null,"","GLCMF00079",null,"LDA 142 Applying Sustainable Strategies ",null,"LDA 142 Applying Sustainable Strategies","202036",null,"Renovations ",null,"Renovations"]
[null,null,null,null,"","19969",null,"Student Financial Aid ",null,"Student Financial Aid",null,null,null,null,null,null,null,null,null,null,null,null,null,null,null,null,null,null,null,null,null,null,"","GLCMF00080",null,"LDA ABT 150 Introduction to Geographic Information Systems ",null,"LDA ABT 150 Introduction to Geographic Information Systems","202037",null,"Base Funded Staff ",null,"Base Funded Staff"]
[null,null,null,null,"","19970",null,"Subject Matter Projects ",null,"Subject Matter Projects",null,null,null,null,null,null,null,null,null,null,null,null,null,null,null,null,null,null,null,null,null,null,"","GLCMF00081",null,"LDA 160 Technology 2 Construction Materials Detailing ",null,"LDA 160 Technology 2 Construction Materials Detailing","202038",null,"Student Awards ",null,"Student Awards"]
[null,null,null,null,"","19971",null,"Presidents Workstudy ",null,"Presidents Workstudy",null,null,null,null,null,null,null,null,null,null,null,null,null,null,null,null,null,null,null,null,null,null,"","GLCMF00082",null,"LDA 161 Technology 3 Professional Practice Construction Documents ",null,"LDA 161 Technology 3 Professional Practice Construction Documents","202039",null,"Seminars ",null,"Seminars"]
[null,null,null,null,"","19972",null,"San Joaquin Valley PRIME ",null,"San Joaquin Valley PRIME",null,null,null,null,null,null,null,null,null,null,null,null,null,null,null,null,null,null,null,null,null,null,"","GLCMF00083",null,"LDA 170 Field Studio in Landscape Architecture ",null,"LDA 170 Field Studio in Landscape Architecture","202040",null,"ACCD Funding ",null,"ACCD Funding"]
[null,null,null,null,"","19973",null,"Dream Loan Program ",null,"Dream Loan Program",null,null,null,null,null,null,null,null,null,null,null,null,null,null,null,null,null,null,null,null,null,null,"","GLCMF00084",null,"LDA 171 Urban Design and Planning Studio ",null,"LDA 171 Urban Design and Planning Studio","202041",null,"Emergency Funds ",null,"Emergency Funds"]
[null,null,null,null,"","19974",null,"UCOP ANR General Fund ",null,"UCOP ANR General Fund",null,null,null,null,null,null,null,null,null,null,null,null,null,null,null,null,null,null,null,null,null,null,"","GLCMF00085",null,"LDA 182 Advanced Landscape Architecture Studio I ",null,"LDA 182 Advanced Landscape Architecture Studio I","202042",null,"France Berkeley ",null,"France Berkeley"]
[null,null,null,null,"","19975",null,"Presidents Workstudy UCSB ",null,"Presidents Workstudy UCSB",null,null,null,null,null,null,null,null,null,null,null,null,null,null,null,null,null,null,null,null,null,null,"","GLCMF00086",null,"LDA 183 Advanced Landscape Architecture Studio II ",null,"LDA 183 Advanced Landscape Architecture Studio II","202043",null,"Instructional Support ",null,"Instructional Support"]
[null,null,null,null,"","19976",null,"ANR Temporary Funding ",null,"ANR Temporary Funding",null,null,null,null,null,null,null,null,null,null,null,null,null,null,null,null,null,null,null,null,null,null,"","GLCMF00087",null,"LDA 184 Capstone Studio in Landscape Architecture ",null,"LDA 184 Capstone Studio in Landscape Architecture","202044",null,"Salary Savings ",null,"Salary Savings"]
[null,null,null,null,"","19977",null,"ANR CE Specialist Support ",null,"ANR CE Specialist Support",null,null,null,null,null,null,null,null,null,null,null,null,null,null,null,null,null,null,null,null,null,null,"","GLCMF00088",null,"ATM 10 Severe and Unusual Weather ",null,"ATM 10 Severe and Unusual Weather","202045",null,"Innovative Learning Technology Initiative ILTI ",null,"Innovative Learning Technology Initiative ILTI"]
[null,null,null,null,"","19978",null,"ANR Startup Salary Recovery ",null,"ANR Startup Salary Recovery",null,null,null,null,null,null,null,null,null,null,null,null,null,null,null,null,null,null,null,null,null,null,"","GLCMF00089",null,"ATM 124 Meteorological Instruments and Observations ",null,"ATM 124 Meteorological Instruments and Observations","202046",null,"Programmatic Initiative ",null,"Programmatic Initiative"]
[null,null,null,null,"","19979",null,"ANR Competitive Grants ",null,"ANR Competitive Grants",null,null,null,null,null,null,null,null,null,null,null,null,null,null,null,null,null,null,null,null,null,null,"","GLCMF00090",null,"ESM 108 Environmental Monitoring ",null,"ESM 108 Environmental Monitoring","202047",null,"First year Student Support ",null,"First year Student Support"]
[null,null,null,null,"","19981",null,"Valley Fever Research 3 ",null,"Valley Fever Research 3",null,null,null,null,null,null,null,null,null,null,null,null,null,null,null,null,null,null,null,null,null,null,"","GLCMF00091",null,"ESM 121 Water Science and Management ",null,"ESM 121 Water Science and Management","202048",null,"Summer Fellowship ",null,"Summer Fellowship"]
[null,null,null,null,"","19982",null,"UC Berkeleys Operating Deficit 3 ",null,"UC Berkeleys Operating Deficit 3",null,null,null,null,null,null,null,null,null,null,null,null,null,null,null,null,null,null,null,null,null,null,"","GLCMF00092",null,"HYD 110 Irrigation Principles and Practices ",null,"HYD 110 Irrigation Principles and Practices","202049",null,"Faculty Crash Plan ",null,"Faculty Crash Plan"]
[null,null,null,null,"","19983",null,"Conservation Genomics 3 ",null,"Conservation Genomics 3",null,null,null,null,null,null,null,null,null,null,null,null,null,null,null,null,null,null,null,null,null,null,"","GLCMF00093",null,"HYD 134 Aqueous Geochemistry ",null,"HYD 134 Aqueous Geochemistry","202050",null,"Faculty Reserves ",null,"Faculty Reserves"]
[null,null,null,null,"","19984",null,"Student Basic Needs 2 3 ",null,"Student Basic Needs 2 3",null,null,null,null,null,null,null,null,null,null,null,null,null,null,null,null,null,null,null,null,null,null,"","GLCMF00094",null,"HYD 151 Field Methods in Hydrology ",null,"HYD 151 Field Methods in Hydrology","202051",null,"Discretionary Funds ",null,"Discretionary Funds"]
[null,null,null,null,"","19985",null,"Student Rapid Rehousing 2 3 ",null,"Student Rapid Rehousing 2 3",null,null,null,null,null,null,null,null,null,null,null,null,null,null,null,null,null,null,null,null,null,null,"","GLCMF00095",null,"HYD 252 Hillslope Geomorphology ",null,"HYD 252 Hillslope Geomorphology","202052",null,"Matching Funds ",null,"Matching Funds"]
[null,null,null,null,"","19986",null,"Student Mental Health Programs 2 3 ",null,"Student Mental Health Programs 2 3",null,null,null,null,null,null,null,null,null,null,null,null,null,null,null,null,null,null,null,null,null,null,"","GLCMF00096",null,"SSC 100 Principles of Soil Science ",null,"SSC 100 Principles of Soil Science","202053",null,"Patent Funds ",null,"Patent Funds"]
[null,null,null,null,"","19987",null,"Degree Completion Programs at UC Extension ",null,"Degree Completion Programs at UC Extension",null,null,null,null,null,null,null,null,null,null,null,null,null,null,null,null,null,null,null,null,null,null,"","GLCMF00097",null,"SSC 107 Soil Physics ",null,"SSC 107 Soil Physics","202054",null,"Relocations and Removals ",null,"Relocations and Removals"]
[null,null,null,null,"","19988",null,"Disaster Relief Emergency Student Financial Aid ",null,"Disaster Relief Emergency Student Financial Aid",null,null,null,null,null,null,null,null,null,null,null,null,null,null,null,null,null,null,null,null,null,null,"","GLCMF00098",null,"SSC 111 Soil Microbiology ",null,"SSC 111 Soil Microbiology","202055",null,"Academic Federation Grants ",null,"Academic Federation Grants"]
[null,null,null,null,"","19989",null,"Animal Shelter Grant Program ",null,"Animal Shelter Grant Program",null,null,null,null,null,null,null,null,null,null,null,null,null,null,null,null,null,null,null,null,null,null,"","GLCMF00099",null,"SSC 120 Soil Genesis Morphology Classification ",null,"SSC 120 Soil Genesis Morphology Classification","202056",null,"Grad Student Researcher ",null,"Grad Student Researcher"]
[null,null,null,null,"","25020",null,"SAPEP ",null,"SAPEP",null,null,null,null,null,null,null,null,null,null,null,null,null,null,null,null,null,null,null,null,null,null,"","GLCMF00100",null,"FSM 120L Quantity Food Production Laboratory ",null,"FSM 120L Quantity Food Production Laboratory","202057",null,"VM Salary Admin APM 675 ",null,"VM Salary Admin APM 675"]
[null,null,null,null,"",null,null,"ContractsandGrants ",null,"ContractsandGrants",null,null,null,null,null,null,null,null,null,null,null,null,null,null,null,null,null,null,null,null,null,null,"","GLCMF00101",null,"NUT 112 Nutritional Assessment ",null,"NUT 112 Nutritional Assessment","202058",null,"Travel Grants ",null,"Travel Grants"]
[null,null,null,null,"",null,null,"Federal ContractsandGrants C ",null,"Federal ContractsandGrants C",null,null,null,null,null,null,null,null,null,null,null,null,null,null,null,null,null,null,null,null,null,null,"","GLCMF00102",null,"NUT 116AL Clinical Nutrition Practicum ",null,"NUT 116AL Clinical Nutrition Practicum","202059",null,"First Year Seminars ",null,"First Year Seminars"]
[null,null,null,null,"",null,null,"Federal ContractsandGrants D ",null,"Federal ContractsandGrants D",null,null,null,null,null,null,null,null,null,null,null,null,null,null,null,null,null,null,null,null,null,null,"","GLCMF00103",null,"NUT 117 Experimental Nutrition ",null,"NUT 117 Experimental Nutrition","202060",null,"UNEX ",null,"UNEX"]
[null,null,null,null,"","20000",null,"Federal Grants ",null,"Federal Grants",null,null,null,null,null,null,null,null,null,null,null,null,null,null,null,null,null,null,null,null,null,null,"","GLCMF00104",null,"PLP 120 Introduction to Plant Pathology ",null,"PLP 120 Introduction to Plant Pathology","202061",null,"Joint Personnel Committe Funding ",null,"Joint Personnel Committe Funding"]
[null,null,null,null,"","20001",null,"Pell Grants ",null,"Pell Grants",null,null,null,null,null,null,null,null,null,null,null,null,null,null,null,null,null,null,null,null,null,null,"","GLCMF00105",null,"PLP PLB 148 Introduction to Mycology ",null,"PLP PLB 148 Introduction to Mycology","202062",null,"Research and Education Funding ",null,"Research and Education Funding"]
[null,null,null,null,"","20002",null,"Work Study ",null,"Work Study",null,null,null,null,null,null,null,null,null,null,null,null,null,null,null,null,null,null,null,null,null,null,"","GLCMF00106",null,"BIT 161A Genetics and Biotechnology Laboratory ",null,"BIT 161A Genetics and Biotechnology Laboratory","202063",null,"Student Fellowships ",null,"Student Fellowships"]
[null,null,null,null,"","20003",null,"Federal Contracts ",null,"Federal Contracts",null,null,null,null,null,null,null,null,null,null,null,null,null,null,null,null,null,null,null,null,null,null,"","GLCMF00107",null,"BIT 161B Plant Genetics and Biotechnology Laboratory ",null,"BIT 161B Plant Genetics and Biotechnology Laboratory","202064",null,"Budget Reductions ",null,"Budget Reductions"]
[null,null,null,null,"",null,null,"Federal Funds for Capital D ",null,"Federal Funds for Capital D",null,null,null,null,null,null,null,null,null,null,null,null,null,null,null,null,null,null,null,null,null,null,"","GLCMF00108",null,"ENH 125 Greenhouse Nursery Crop Production ",null,"ENH 125 Greenhouse Nursery Crop Production","202065",null,"Restricted Use Funds ",null,"Restricted Use Funds"]
[null,null,null,null,"","20010",null,"Federal Funds for Capital ",null,"Federal Funds for Capital",null,null,null,null,null,null,null,null,null,null,null,null,null,null,null,null,null,null,null,null,null,null,"","GLCMF00109",null,"ENH 160L Restoration Ecology Laboratory ",null,"ENH 160L Restoration Ecology Laboratory","202066",null,"Building Funds ",null,"Building Funds"]
[null,null,null,null,"",null,null,"State and Local Contracts and Grants C ",null,"State and Local Contracts and Grants C",null,null,null,null,null,null,null,null,null,null,null,null,null,null,null,null,null,null,null,null,null,null,"","GLCMF00110",null,"IAD 202N Analysis Determinants of Farming Systems ",null,"IAD 202N Analysis Determinants of Farming Systems","202067",null,"Recruitment Allowance ",null,"Recruitment Allowance"]
[null,null,null,null,"",null,null,"State and Local Contracts and Grants D ",null,"State and Local Contracts and Grants D",null,null,null,null,null,null,null,null,null,null,null,null,null,null,null,null,null,null,null,null,null,null,"","GLCMF00111",null,"PLB PLS 102 California Floristics ",null,"PLB PLS 102 California Floristics","202068",null,"Innovative Development Award ",null,"Innovative Development Award"]
[null,null,null,null,"","20400",null,"State Contracts and Grants ",null,"State Contracts and Grants",null,null,null,null,null,null,null,null,null,null,null,null,null,null,null,null,null,null,null,null,null,null,"","GLCMF00112",null,"PLB PLS 116 Plant Morphology and Evolution ",null,"PLB PLS 116 Plant Morphology and Evolution","202069",null,"Chancellor Fellow Award ",null,"Chancellor Fellow Award"]
[null,null,null,null,"","20401",null,"Local Contracts and Grants ",null,"Local Contracts and Grants",null,null,null,null,null,null,null,null,null,null,null,null,null,null,null,null,null,null,null,null,null,null,"","GLCMF00113",null,"PLS 1 Agriculture Nature Society ",null,"PLS 1 Agriculture Nature Society","202070",null,"Teaching Award ",null,"Teaching Award"]
[null,null,null,null,"","20402",null,"State and Local Contract Flowthrough ",null,"State and Local Contract Flowthrough",null,null,null,null,null,null,null,null,null,null,null,null,null,null,null,null,null,null,null,null,null,null,"","GLCMF00114",null,"PLS 2 Botany Physiology of Cultivated Plants ",null,"PLS 2 Botany Physiology of Cultivated Plants","202071",null,"Specialist Support ",null,"Specialist Support"]
[null,null,null,null,"","20403",null,"State and Local Grant Flowthrough ",null,"State and Local Grant Flowthrough",null,null,null,null,null,null,null,null,null,null,null,null,null,null,null,null,null,null,null,null,null,null,"","GLCMF00115",null,"PLS 15 Introduction to Sustainable Agriculture ",null,"PLS 15 Introduction to Sustainable Agriculture","202072",null,"Participant Support ",null,"Participant Support"]
[null,null,null,null,"","20404",null,"State LEAP Workstudy ",null,"State LEAP Workstudy",null,null,null,null,null,null,null,null,null,null,null,null,null,null,null,null,null,null,null,null,null,null,"","GLCMF00116",null,"PLS 100AL Metabolic Processes of Cultivated Plants Laboratory ",null,"PLS 100AL Metabolic Processes of Cultivated Plants Laboratory","202073",null,"Salary Cap or Over the Cap Salary ",null,"Salary Cap or Over the Cap Salary"]
[null,null,null,null,"",null,null,"StateandLocal ContractsandGrants for Capital D ",null,"StateandLocal ContractsandGrants for Capital D",null,null,null,null,null,null,null,null,null,null,null,null,null,null,null,null,null,null,null,null,null,null,"","GLCMF00117",null,"PLS 100BL Growth and Yield of Cultivated Plants Laboratory ",null,"PLS 100BL Growth and Yield of Cultivated Plants Laboratory","202074",null,"Wellness Grant ",null,"Wellness Grant"]
[null,null,null,null,"","20410",null,"State and Local Contracts and Grants for Capital ",null,"State and Local Contracts and Grants for Capital",null,null,null,null,null,null,null,null,null,null,null,null,null,null,null,null,null,null,null,null,null,null,"","GLCMF00118",null,"PLS1 110 Crop Management Systems for Vegetable Production ",null,"PLS1 110 Crop Management Systems for Vegetable Production","202075",null,"Library Open Access ",null,"Library Open Access"]
[null,null,null,null,"",null,null,"Private ContactsandGrants C ",null,"Private ContactsandGrants C",null,null,null,null,null,null,null,null,null,null,null,null,null,null,null,null,null,null,null,null,null,null,"","GLCMF00119",null,"PLS 111 Principles of Agronomic Crop Production Systems ",null,"PLS 111 Principles of Agronomic Crop Production Systems","202076",null,"Financial Aid ",null,"Financial Aid"]
[null,null,null,null,"",null,null,"Private ContactsandGrants D ",null,"Private ContactsandGrants D",null,null,null,null,null,null,null,null,null,null,null,null,null,null,null,null,null,null,null,null,null,null,"","GLCMF00120",null,"PLS 131 Identification and Ecology of Grasses ",null,"PLS 131 Identification and Ecology of Grasses","202077",null,"State Fair ",null,"State Fair"]
[null,null,null,null,"","20700",null,"Private Contracts and Grants ",null,"Private Contracts and Grants",null,null,null,null,null,null,null,null,null,null,null,null,null,null,null,null,null,null,null,null,null,null,"","GLCMF00121",null,"PLS 141 Introduction to Current Topics in Plant Biology ",null,"PLS 141 Introduction to Current Topics in Plant Biology","202079",null,"Human Development Grad Students ",null,"Human Development Grad Students"]
[null,null,null,null,"","20701",null,"Private Contract Flowthrough ",null,"Private Contract Flowthrough",null,null,null,null,null,null,null,null,null,null,null,null,null,null,null,null,null,null,null,null,null,null,"","GLCMF00122",null,"PLS 147L California Plant Communities Field Study ",null,"PLS 147L California Plant Communities Field Study","202080",null,"Child Development Grad Students ",null,"Child Development Grad Students"]
[null,null,null,null,"","20702",null,"Private Grant Flowthrough ",null,"Private Grant Flowthrough",null,null,null,null,null,null,null,null,null,null,null,null,null,null,null,null,null,null,null,null,null,null,"","GLCMF00123",null,"PLS 152 Plant Genetics ",null,"PLS 152 Plant Genetics","202081",null,"Bench Fees ",null,"Bench Fees"]
[null,null,null,null,"",null,null,"Private Contacts and Grants for Capital D ",null,"Private Contacts and Grants for Capital D",null,null,null,null,null,null,null,null,null,null,null,null,null,null,null,null,null,null,null,null,null,null,"","GLCMF00124",null,"PLS 158 Mineral Nutrition of Plants ",null,"PLS 158 Mineral Nutrition of Plants","202082",null,"Faculty Recruitment ",null,"Faculty Recruitment"]
[null,null,null,null,"","20710",null,"Private Contacts and Grants for Capital ",null,"Private Contacts and Grants for Capital",null,null,null,null,null,null,null,null,null,null,null,null,null,null,null,null,null,null,null,null,null,null,"","GLCMF00125",null,"PLS 164 Practicum in Ecological Restoration ",null,"PLS 164 Practicum in Ecological Restoration","202083",null,"Research Fellowship ",null,"Research Fellowship"]
[null,null,null,null,"",null,null,"Federal Appropriations ",null,"Federal Appropriations",null,null,null,null,null,null,null,null,null,null,null,null,null,null,null,null,null,null,null,null,null,null,"","GLCMF00126",null,"PLS 170A Fruit Nut Cropping Systems ",null,"PLS 170A Fruit Nut Cropping Systems","202084",null,"Dean Office Research Grant ",null,"Dean Office Research Grant"]
[null,null,null,null,"",null,null,"Federal Appropriations Hatch C ",null,"Federal Appropriations Hatch C",null,null,null,null,null,null,null,null,null,null,null,null,null,null,null,null,null,null,null,null,null,null,"","GLCMF00127",null,"SAS 006B Career Discovery Seminar ",null,"SAS 006B Career Discovery Seminar","202086",null,"Travel Awards ",null,"Travel Awards"]
[null,null,null,null,"",null,null,"Federal Appropriations Hatch D ",null,"Federal Appropriations Hatch D",null,null,null,null,null,null,null,null,null,null,null,null,null,null,null,null,null,null,null,null,null,null,"","GLCMF00128",null,"SAS 006C Career Discovery in the Field ",null,"SAS 006C Career Discovery in the Field","202087",null,"Leadership Support Assistant Dean ",null,"Leadership Support Assistant Dean"]
[null,null,null,null,"","21005",null,"Hatch Non Integrated Odd Year ",null,"Hatch Non Integrated Odd Year",null,null,null,null,null,null,null,null,null,null,null,null,null,null,null,null,null,null,null,null,null,null,"","GLCMF00129",null,"SAS 40 Photography Bridging Art Science ",null,"SAS 40 Photography Bridging Art Science","202088",null,"Leadership Support Associate Dean 1 ",null,"Leadership Support Associate Dean 1"]
[null,null,null,null,"","21006",null,"Hatch Non Integrated Even Year ",null,"Hatch Non Integrated Even Year",null,null,null,null,null,null,null,null,null,null,null,null,null,null,null,null,null,null,null,null,null,null,"","GLCMF00130",null,"VEN 101A Viticultural Practices ",null,"VEN 101A Viticultural Practices","202089",null,"Leadership Support Associate Dean 2 ",null,"Leadership Support Associate Dean 2"]
[null,null,null,null,"","21009",null,"Hatch Integrated Odd Year ",null,"Hatch Integrated Odd Year",null,null,null,null,null,null,null,null,null,null,null,null,null,null,null,null,null,null,null,null,null,null,"","GLCMF00131",null,"VEN 101B Viticultural Practices ",null,"VEN 101B Viticultural Practices","202090",null,"Leadership Support Associate Dean 3 ",null,"Leadership Support Associate Dean 3"]
[null,null,null,null,"","21010",null,"Hatch Integrated Even Year ",null,"Hatch Integrated Even Year",null,null,null,null,null,null,null,null,null,null,null,null,null,null,null,null,null,null,null,null,null,null,"","GLCMF00132",null,"VEN 101C Viticultural Practices ",null,"VEN 101C Viticultural Practices","202091",null,"Leadership Support Associate Dean 4 ",null,"Leadership Support Associate Dean 4"]
[null,null,null,null,"",null,null,"Federal Appropriations MultiState C ",null,"Federal Appropriations MultiState C",null,null,null,null,null,null,null,null,null,null,null,null,null,null,null,null,null,null,null,null,null,null,"","GLCMF00133",null,"VEN 111 World Viticulture ",null,"VEN 111 World Viticulture","202092",null,"Leadership Support Dean ",null,"Leadership Support Dean"]
[null,null,null,null,"",null,null,"Federal Appropriations MultiState D ",null,"Federal Appropriations MultiState D",null,null,null,null,null,null,null,null,null,null,null,null,null,null,null,null,null,null,null,null,null,null,"","GLCMF00134",null,"VEN 123L Analysis of Musts and Wines ",null,"VEN 123L Analysis of Musts and Wines","202093",null,"Leadership Support Executive Associate Dean ",null,"Leadership Support Executive Associate Dean"]
[null,null,null,null,"","20860",null,"Federal Appropriations MultiState ",null,"Federal Appropriations MultiState",null,null,null,null,null,null,null,null,null,null,null,null,null,null,null,null,null,null,null,null,null,null,"","GLCMF00135",null,"VEN 124L Wine Processing ",null,"VEN 124L Wine Processing","202094",null,"Academic Senate Faculty Awards ",null,"Academic Senate Faculty Awards"]
[null,null,null,null,"","21013",null,"Hatch Multi State Integrated Odd Yr ",null,"Hatch Multi State Integrated Odd Yr",null,null,null,null,null,null,null,null,null,null,null,null,null,null,null,null,null,null,null,null,null,null,"","GLCMF00136",null,"VEN 125L Wine Sensory Analysis ",null,"VEN 125L Wine Sensory Analysis","202095",null,"Academic Federation Faculty Awards ",null,"Academic Federation Faculty Awards"]
[null,null,null,null,"","21014",null,"Hatch Multi State Integrated Even Yr ",null,"Hatch Multi State Integrated Even Yr",null,null,null,null,null,null,null,null,null,null,null,null,null,null,null,null,null,null,null,null,null,null,"","GLCMF00137",null,"VEN 126L Wine Stability ",null,"VEN 126L Wine Stability","202100",null,"Academic Senate Service Compensation ",null,"Academic Senate Service Compensation"]
[null,null,null,null,"","21015",null,"Hatch Multi State Non Integrated Odd Yr ",null,"Hatch Multi State Non Integrated Odd Yr",null,null,null,null,null,null,null,null,null,null,null,null,null,null,null,null,null,null,null,null,null,null,"","GLCMF00138",null,"VEN 128L Wine Microbiology ",null,"VEN 128L Wine Microbiology","202101",null,"Student Ambassadors ",null,"Student Ambassadors"]
[null,null,null,null,"","21016",null,"Hatch Multi State Non Integrated Even Yr ",null,"Hatch Multi State Non Integrated Even Yr",null,null,null,null,null,null,null,null,null,null,null,null,null,null,null,null,null,null,null,null,null,null,"","GLCMF00139",null,"VEN 140 Distilled Beverage Technology ",null,"VEN 140 Distilled Beverage Technology","202102",null,"Classroom Instruction ",null,"Classroom Instruction"]
[null,null,null,null,"",null,null,"Federal Appropriations Mcintire Stennis C ",null,"Federal Appropriations Mcintire Stennis C",null,null,null,null,null,null,null,null,null,null,null,null,null,null,null,null,null,null,null,null,null,null,"","GLCMF00140",null,"VEN 216 Vineyard Establishment Development ",null,"VEN 216 Vineyard Establishment Development","202103",null,"SAYS San Juan Contract ",null,"SAYS San Juan Contract"]
[null,null,null,null,"",null,null,"Federal Appropriations Mcintire Stennis D ",null,"Federal Appropriations Mcintire Stennis D",null,null,null,null,null,null,null,null,null,null,null,null,null,null,null,null,null,null,null,null,null,null,"","GLCMF00141",null,"VEN 235 Winery Design ",null,"VEN 235 Winery Design","202104",null,"Pepsi Funding ",null,"Pepsi Funding"]
[null,null,null,null,"","21007",null,"Mcintire Stennis Odd Year Income ",null,"Mcintire Stennis Odd Year Income",null,null,null,null,null,null,null,null,null,null,null,null,null,null,null,null,null,null,null,null,null,null,"","GLCMF00142",null,"WFC 101L Wildlife Ecology ",null,"WFC 101L Wildlife Ecology","202105",null,"Pre College Scholars ",null,"Pre College Scholars"]
[null,null,null,null,"","21008",null,"Mcintire Stennis Act Even Year ",null,"Mcintire Stennis Act Even Year",null,null,null,null,null,null,null,null,null,null,null,null,null,null,null,null,null,null,null,null,null,null,"","GLCMF00143",null,"WFC 102L Field Studies in Fish Biology ",null,"WFC 102L Field Studies in Fish Biology","202106",null,"ACHIEVE ",null,"ACHIEVE"]
[null,null,null,null,"",null,null,"Federal Appropriations Animal Health AES C ",null,"Federal Appropriations Animal Health AES C",null,null,null,null,null,null,null,null,null,null,null,null,null,null,null,null,null,null,null,null,null,null,"","GLCMF00144",null,"WFC 111L Ecology and Conservation of Wild Birds ",null,"WFC 111L Ecology and Conservation of Wild Birds","202107",null,"Public Advisor Students ",null,"Public Advisor Students"]
[null,null,null,null,"",null,null,"Federal Appropriations Animal Health AES D ",null,"Federal Appropriations Animal Health AES D",null,null,null,null,null,null,null,null,null,null,null,null,null,null,null,null,null,null,null,null,null,null,"","GLCMF00145",null,"WFC 120L Biology Conservation of Fishes ",null,"WFC 120L Biology Conservation of Fishes","202108",null,"Tour Guide Students ",null,"Tour Guide Students"]
[null,null,null,null,"","21003",null,"Hatch Regular Animal Health Odd Year ",null,"Hatch Regular Animal Health Odd Year",null,null,null,null,null,null,null,null,null,null,null,null,null,null,null,null,null,null,null,null,null,null,"","GLCMF00146",null,"WFC 134L Herpetology Laboratory ",null,"WFC 134L Herpetology Laboratory","202109",null,"Family College Advisors ",null,"Family College Advisors"]
[null,null,null,null,"","21004",null,"Hatch Regular Animal Health Even Year ",null,"Hatch Regular Animal Health Even Year",null,null,null,null,null,null,null,null,null,null,null,null,null,null,null,null,null,null,null,null,null,null,"","GLCMF00147",null,"WFC 136 Ecology of Waterfowl and Game Birds ",null,"WFC 136 Ecology of Waterfowl and Game Birds","202110",null,"Leadership Support Associate Dean 5 ",null,"Leadership Support Associate Dean 5"]
[null,null,null,null,"","21011",null,"Animal Health Research Odd Year ",null,"Animal Health Research Odd Year",null,null,null,null,null,null,null,null,null,null,null,null,null,null,null,null,null,null,null,null,null,null,"","GLCMF00148",null,"WFC EBS 155L 001 Habitat Conservation and Restoration Foundations of Biological Systems Engineering ",null,"WFC EBS 155L 001 Habitat Conservation and Restoration Foundations of Biological Systems Engineering","202111",null,"Represented Staff ",null,"Represented Staff"]
[null,null,null,null,"","21012",null,"Animal Health Research Even Year ",null,"Animal Health Research Even Year",null,null,null,null,null,null,null,null,null,null,null,null,null,null,null,null,null,null,null,null,null,null,"","GLCMF00149",null,"EBS 75 Properties of Materials in Biological Systems ",null,"EBS 75 Properties of Materials in Biological Systems","202112",null,"Unrepresented Staff ",null,"Unrepresented Staff"]
[null,null,null,null,"",null,null,"Federal Appropriations Smith Lever C ",null,"Federal Appropriations Smith Lever C",null,null,null,null,null,null,null,null,null,null,null,null,null,null,null,null,null,null,null,null,null,null,"","GLCMF00150",null,"EBS 127 Mass Transfer and Kinetics in Biological Systems ",null,"EBS 127 Mass Transfer and Kinetics in Biological Systems","202113",null,"UCOP SAPEP22 Funding ",null,"UCOP SAPEP22 Funding"]
[null,null,null,null,"",null,null,"Federal Appropriations Smith Lever D ",null,"Federal Appropriations Smith Lever D",null,null,null,null,null,null,null,null,null,null,null,null,null,null,null,null,null,null,null,null,null,null,"","GLCMF00151",null,"EBS 165 Bioinstrumentation and Control ",null,"EBS 165 Bioinstrumentation and Control","202114",null,"UCOP SAPEP23 Funding ",null,"UCOP SAPEP23 Funding"]
[null,null,null,null,"","21050",null,"Smith Lever 3 BandC Funds ",null,"Smith Lever 3 BandC Funds",null,null,null,null,null,null,null,null,null,null,null,null,null,null,null,null,null,null,null,null,null,null,"","GLCMF00152",null,"EBS 170CL Engineering Projects Design Evaluation 2 ",null,"EBS 170CL Engineering Projects Design Evaluation 2","202115",null,"Health Fee Oversight Committee ",null,"Health Fee Oversight Committee"]
[null,null,null,null,"","21056",null,"Smith Lever Integrated ",null,"Smith Lever Integrated",null,null,null,null,null,null,null,null,null,null,null,null,null,null,null,null,null,null,null,null,null,null,"","GLCMF00153",null,"ENG 3 Introduction to Engineering Design ",null,"ENG 3 Introduction to Engineering Design","202116",null,"SHAB Student Health Advisory Board ",null,"SHAB Student Health Advisory Board"]
[null,null,null,null,"","21057",null,"Smith Lever Multi State ",null,"Smith Lever Multi State",null,null,null,null,null,null,null,null,null,null,null,null,null,null,null,null,null,null,null,null,null,null,"","GLCMF00154",null,"BIM 107 Mathematical Methods for Biological Systems ",null,"BIM 107 Mathematical Methods for Biological Systems","202117",null,"Joint Seminars ",null,"Joint Seminars"]
[null,null,null,null,"","21058",null,"Smith Lever IntegratedandMulti State ",null,"Smith Lever IntegratedandMulti State",null,null,null,null,null,null,null,null,null,null,null,null,null,null,null,null,null,null,null,null,null,null,"","GLCMF00155",null,"BIM 110B Biomedical Engineering Senior Design Experience ",null,"BIM 110B Biomedical Engineering Senior Design Experience","202118",null,"GS3 Storer Lecture ",null,"GS3 Storer Lecture"]
[null,null,null,null,"",null,null,"Federal Appropriations Expanded FoodandNutrition Program EFNEP C ",null,"Federal Appropriations Expanded FoodandNutrition Program EFNEP C",null,null,null,null,null,null,null,null,null,null,null,null,null,null,null,null,null,null,null,null,null,null,"","GLCMF00156",null,"BIM 110C Biomedical Engineering Senior Design Experience ",null,"BIM 110C Biomedical Engineering Senior Design Experience","202119",null,"Graduate Student awards ",null,"Graduate Student awards"]
[null,null,null,null,"",null,null,"Federal Appropriations Expanded FoodandNutrition Program EFNEP D ",null,"Federal Appropriations Expanded FoodandNutrition Program EFNEP D",null,null,null,null,null,null,null,null,null,null,null,null,null,null,null,null,null,null,null,null,null,null,"","GLCMF00157",null,"BIM 111 Biomedical Instrumentation Laboratory ",null,"BIM 111 Biomedical Instrumentation Laboratory","202120",null,"Undergraduate Student awards ",null,"Undergraduate Student awards"]
[null,null,null,null,"","21064",null,"Expanded FoodandNutrition Ed Program ",null,"Expanded FoodandNutrition Ed Program",null,null,null,null,null,null,null,null,null,null,null,null,null,null,null,null,null,null,null,null,null,null,"","GLCMF00158",null,"BIM 161L Biomolecular Engineering Laboratory ",null,"BIM 161L Biomolecular Engineering Laboratory","202121",null,"Equipment Restricted ",null,"Equipment Restricted"]
[null,null,null,null,"",null,null,"Federal Appropriations Smith Lever Renewable Resources RREA C ",null,"Federal Appropriations Smith Lever Renewable Resources RREA C",null,null,null,null,null,null,null,null,null,null,null,null,null,null,null,null,null,null,null,null,null,null,"","GLCMF00159",null,"ECH 145A Course Material Fee ",null,"ECH 145A Course Material Fee","202122",null,"UAW Mitigation ",null,"UAW Mitigation"]
[null,null,null,null,"",null,null,"Federal Appropriations Smith Lever Renewable Resources RREA D ",null,"Federal Appropriations Smith Lever Renewable Resources RREA D",null,null,null,null,null,null,null,null,null,null,null,null,null,null,null,null,null,null,null,null,null,null,"","GLCMF00160",null,"ECH 145B Course Material Fee ",null,"ECH 145B Course Material Fee","202123",null,"Faculty Merits ",null,"Faculty Merits"]
[null,null,null,null,"","21067",null,"Smith Lever Renewable Resources ",null,"Smith Lever Renewable Resources",null,null,null,null,null,null,null,null,null,null,null,null,null,null,null,null,null,null,null,null,null,null,"","GLCMF00161",null,"ECH 155 Course Material Fee ",null,"ECH 155 Course Material Fee","202124",null,"Faculty Range ",null,"Faculty Range"]
[null,null,null,null,"",null,null,"Federal Appropriations Other C ",null,"Federal Appropriations Other C",null,null,null,null,null,null,null,null,null,null,null,null,null,null,null,null,null,null,null,null,null,null,"","GLCMF00162",null,"ECH 161L Course Material Fee ",null,"ECH 161L Course Material Fee","202125",null,"Faculty Equity ",null,"Faculty Equity"]
[null,null,null,null,"",null,null,"Federal Appropriations Other D ",null,"Federal Appropriations Other D",null,null,null,null,null,null,null,null,null,null,null,null,null,null,null,null,null,null,null,null,null,null,"","GLCMF00163",null,"ECH 001 Course Material Fee ",null,"ECH 001 Course Material Fee","202126",null,"Represented Academics ",null,"Represented Academics"]
[null,null,null,null,"","20950",null,"Accts Rec Federal Approp 21000 ",null,"Accts Rec Federal Approp 21000",null,null,null,null,null,null,null,null,null,null,null,null,null,null,null,null,null,null,null,null,null,null,"","GLCMF00164",null,"ECH 005 Course Material Fee ",null,"ECH 005 Course Material Fee","202127",null,"Work Life Balance ",null,"Work Life Balance"]
[null,null,null,null,"","20951",null,"United States Appropriation Summary 21099 ",null,"United States Appropriation Summary 21099",null,null,null,null,null,null,null,null,null,null,null,null,null,null,null,null,null,null,null,null,null,null,"","GLCMF00165",null,"EMS 162L Course Material Fee ",null,"EMS 162L Course Material Fee","202128",null,"CAMPOS CAMPSSAH Incentives ",null,"CAMPOS CAMPSSAH Incentives"]
[null,null,null,null,"","21063",null,"Rural Development ",null,"Rural Development",null,null,null,null,null,null,null,null,null,null,null,null,null,null,null,null,null,null,null,null,null,null,"","GLCMF00166",null,"EMS 170L Course Material Fee ",null,"EMS 170L Course Material Fee","202129",null,"Faculty Hiring Incentives ",null,"Faculty Hiring Incentives"]
[null,null,null,null,"","21095",null,"Fed App Build America Bond Subsidy ",null,"Fed App Build America Bond Subsidy",null,null,null,null,null,null,null,null,null,null,null,null,null,null,null,null,null,null,null,null,null,null,"","GLCMF00167",null,"EMS 172L Course Material Fee ",null,"EMS 172L Course Material Fee","202130",null,"CE Specialist Start up ",null,"CE Specialist Start up"]
[null,null,null,null,"",null,null,"Federal Appropriations for Capital D ",null,"Federal Appropriations for Capital D",null,null,null,null,null,null,null,null,null,null,null,null,null,null,null,null,null,null,null,null,null,null,"","GLCMF00168",null,"EMS 174L Course Material Fee ",null,"EMS 174L Course Material Fee","202131",null,"CAMPOS ",null,"CAMPOS"]
[null,null,null,null,"","20960",null,"Federal Appropriations for Capital ",null,"Federal Appropriations for Capital",null,null,null,null,null,null,null,null,null,null,null,null,null,null,null,null,null,null,null,null,null,null,"","GLCMF00169",null,"EMS 188A Course Material Fee ",null,"EMS 188A Course Material Fee","202132",null,"Hispanic Serving Institute initative ",null,"Hispanic Serving Institute initative"]
[null,null,null,null,"",null,null,"State Appropriations Other B ",null,"State Appropriations Other B",null,null,null,null,null,null,null,null,null,null,null,null,null,null,null,null,null,null,null,null,null,null,"","GLCMF00170",null,"EMS 188B Course Material Fee ",null,"EMS 188B Course Material Fee","202133",null,"The Police Accountability Board ",null,"The Police Accountability Board"]
[null,null,null,null,"",null,null,"State Appropriations Other C ",null,"State Appropriations Other C",null,null,null,null,null,null,null,null,null,null,null,null,null,null,null,null,null,null,null,null,null,null,"","GLCMF00171",null,"EMS 045 Course Material Fee ",null,"EMS 045 Course Material Fee","202134",null,"Campus Community Book Project ",null,"Campus Community Book Project"]
[null,null,null,null,"",null,null,"Other State Appropriations D ",null,"Other State Appropriations D",null,null,null,null,null,null,null,null,null,null,null,null,null,null,null,null,null,null,null,null,null,null,"","GLCMF00172",null,"ECI 135 Structural Design Concrete Elements ",null,"ECI 135 Structural Design Concrete Elements","202135",null,"CAMPUS COMMUNITY ENGAGEMENT ",null,"CAMPUS COMMUNITY ENGAGEMENT"]
[null,null,null,null,"","21000",null,"State Appropriations for Capital 21049 ",null,"State Appropriations for Capital 21049",null,null,null,null,null,null,null,null,null,null,null,null,null,null,null,null,null,null,null,null,null,null,"","GLCMF00173",null,"ECI 140A Environmental Analysis of Aqueous Systems ",null,"ECI 140A Environmental Analysis of Aqueous Systems","202136",null,"THE IDEA ",null,"THE IDEA"]
[null,null,null,null,"","21001",null,"CDFA 6601 CAHFS 18652 ",null,"CDFA 6601 CAHFS 18652",null,null,null,null,null,null,null,null,null,null,null,null,null,null,null,null,null,null,null,null,null,null,"","GLCMF00174",null,"ECI 171L Soil Mechanics Laboratory ",null,"ECI 171L Soil Mechanics Laboratory","202137",null,"Funding for Distribution ",null,"Funding for Distribution"]
[null,null,null,null,"",null,null,"Restricted Gifts B ",null,"Restricted Gifts B",null,null,null,null,null,null,null,null,null,null,null,null,null,null,null,null,null,null,null,null,null,null,"","GLCMF00175",null,"ECI 235 Cement Composites ",null,"ECI 235 Cement Composites","202138",null,"Campus Funded Academic Positions ",null,"Campus Funded Academic Positions"]
[null,null,null,null,"",null,null,"Restricted Expendable Gifts ",null,"Restricted Expendable Gifts",null,null,null,null,null,null,null,null,null,null,null,null,null,null,null,null,null,null,null,null,null,null,"","GLCMF00176",null,"ECI 236 Design of Fiber Reinforced Polymer Composite Structures ",null,"ECI 236 Design of Fiber Reinforced Polymer Composite Structures","202139",null,"Chancellors Post Doc Fellowships ",null,"Chancellors Post Doc Fellowships"]
[null,null,null,null,"",null,null,"Restricted Gift Funds for Capital D ",null,"Restricted Gift Funds for Capital D",null,null,null,null,null,null,null,null,null,null,null,null,null,null,null,null,null,null,null,null,null,null,"","GLCMF00177",null,"ECI4 243L Pilot Plant Laboratory ",null,"ECI4 243L Pilot Plant Laboratory","202140",null,"Executive Start Up ",null,"Executive Start Up"]
[null,null,null,null,"","60100",null,"Restricted Gift Funds for Capital ",null,"Restricted Gift Funds for Capital",null,null,null,null,null,null,null,null,null,null,null,null,null,null,null,null,null,null,null,null,null,null,"","GLCMF00178",null,"ENG 104L Mechanics of Materials Laboratory ",null,"ENG 104L Mechanics of Materials Laboratory","202141",null,"Faculty Hiring Incentive Program ",null,"Faculty Hiring Incentive Program"]
[null,null,null,null,"",null,null,"Restricted Gift Funds UC Davis ",null,"Restricted Gift Funds UC Davis",null,null,null,null,null,null,null,null,null,null,null,null,null,null,null,null,null,null,null,null,null,null,"","GLCMF00179",null,"EEC 1 Introduction to Electrical and Computer Engineering ",null,"EEC 1 Introduction to Electrical and Computer Engineering","202142",null,"23 24 Hatch 1 ",null,"23 24 Hatch 1"]
[null,null,null,null,"","63000",null,"CS IT Reasearch OptICAl Network Arcite 40000 ",null,"CS IT Reasearch OptICAl Network Arcite 40000",null,null,null,null,null,null,null,null,null,null,null,null,null,null,null,null,null,null,null,null,null,null,"","GLCMF00180",null,"EEC 10 Introduction to Digital and Analog Systems ",null,"EEC 10 Introduction to Digital and Analog Systems","202143",null,"23 24 Hatch 2 ",null,"23 24 Hatch 2"]
[null,null,null,null,"","63001",null,"DANR San Joaquin Entom Res 40000 ",null,"DANR San Joaquin Entom Res 40000",null,null,null,null,null,null,null,null,null,null,null,null,null,null,null,null,null,null,null,null,null,null,"","GLCMF00181",null,"EEC 100 Circuits II ",null,"EEC 100 Circuits II","202144",null,"24 25 Hatch 1 ",null,"24 25 Hatch 1"]
[null,null,null,null,"","63002",null,"DANR Santa Clara Mushroom Res 40001 ",null,"DANR Santa Clara Mushroom Res 40001",null,null,null,null,null,null,null,null,null,null,null,null,null,null,null,null,null,null,null,null,null,null,"","GLCMF00182",null,"EEC 112 Communication Electronics ",null,"EEC 112 Communication Electronics","202145",null,"24 25 Hatch 2 ",null,"24 25 Hatch 2"]
[null,null,null,null,"","63003",null,"DANR Sf Marine Programs 40002 ",null,"DANR Sf Marine Programs 40002",null,null,null,null,null,null,null,null,null,null,null,null,null,null,null,null,null,null,null,null,null,null,"","GLCMF00183",null,"EEC 132A RF and Microwaves in Wireless Communication ",null,"EEC 132A RF and Microwaves in Wireless Communication","202146",null,"25 26 Hatch 1 ",null,"25 26 Hatch 1"]
[null,null,null,null,"","63005",null,"Orthopaedics Grateful Patient Fund 40004 ",null,"Orthopaedics Grateful Patient Fund 40004",null,null,null,null,null,null,null,null,null,null,null,null,null,null,null,null,null,null,null,null,null,null,"","GLCMF00184",null,"EEC 132B RF and Microwaves in Wireless Communication ",null,"EEC 132B RF and Microwaves in Wireless Communication","202147",null,"25 26 Hatch 2 ",null,"25 26 Hatch 2"]
[null,null,null,null,"","63006",null,"ITS: EV POWER SYSTEMS LAB ",null,"ITS: EV POWER SYSTEMS LAB",null,null,null,null,null,null,null,null,null,null,null,null,null,null,null,null,null,null,null,null,null,null,"","GLCMF00185",null,"EEC 132C RF and Microwaves in Wireless Communication ",null,"EEC 132C RF and Microwaves in Wireless Communication","202148",null,"23 24 Animal Health 1 ",null,"23 24 Animal Health 1"]
[null,null,null,null,"","63008",null,"Mae Sme Student Chapter 40007 ",null,"Mae Sme Student Chapter 40007",null,null,null,null,null,null,null,null,null,null,null,null,null,null,null,null,null,null,null,null,null,null,"","GLCMF00186",null,"EEC 134A RFMicrowave Systems Design ",null,"EEC 134A RFMicrowave Systems Design","202149",null,"23 24 Animal Health 2 ",null,"23 24 Animal Health 2"]
[null,null,null,null,"","63009",null,"CAES Science and Society Program 40008 ",null,"CAES Science and Society Program 40008",null,null,null,null,null,null,null,null,null,null,null,null,null,null,null,null,null,null,null,null,null,null,"","GLCMF00187",null,"EEC 134B RFMicrowave Systems Design ",null,"EEC 134B RFMicrowave Systems Design","202150",null,"24 25 Animal Health 1 ",null,"24 25 Animal Health 1"]
[null,null,null,null,"","63010",null,"AFRICAN AMERICAN STUDIES DEPT SUPPORT ",null,"AFRICAN AMERICAN STUDIES DEPT SUPPORT",null,null,null,null,null,null,null,null,null,null,null,null,null,null,null,null,null,null,null,null,null,null,"","GLCMF00188",null,"EEC 136A Electronic Design Project ",null,"EEC 136A Electronic Design Project","202151",null,"24 25 Animal Health 2 ",null,"24 25 Animal Health 2"]
[null,null,null,null,"","63011",null,"AAES College Fund 40010 ",null,"AAES College Fund 40010",null,null,null,null,null,null,null,null,null,null,null,null,null,null,null,null,null,null,null,null,null,null,"","GLCMF00189",null,"EEC 136B Electronic Design Project ",null,"EEC 136B Electronic Design Project","202152",null,"25 26 Animal Health 1 ",null,"25 26 Animal Health 1"]
[null,null,null,null,"","63012",null,"Colleges Grad Education Program 40011 ",null,"Colleges Grad Education Program 40011",null,null,null,null,null,null,null,null,null,null,null,null,null,null,null,null,null,null,null,null,null,null,"","GLCMF00190",null,"EEC 146A Integrated Circuits Fabrication ",null,"EEC 146A Integrated Circuits Fabrication","202153",null,"25 26 Animal Health 2 ",null,"25 26 Animal Health 2"]
[null,null,null,null,"","63013",null,"BAE CREA Energy Research 40012 ",null,"BAE CREA Energy Research 40012",null,null,null,null,null,null,null,null,null,null,null,null,null,null,null,null,null,null,null,null,null,null,"","GLCMF00191",null,"EEC 146B Advanced Integrated Circuits Fabrication ",null,"EEC 146B Advanced Integrated Circuits Fabrication","202154",null,"23 24 Multistate 1 ",null,"23 24 Multistate 1"]
[null,null,null,null,"","63014",null,"Tiny Scholarship 40013 ",null,"Tiny Scholarship 40013",null,null,null,null,null,null,null,null,null,null,null,null,null,null,null,null,null,null,null,null,null,null,"","GLCMF00192",null,"EEC 157A Control Systems ",null,"EEC 157A Control Systems","202155",null,"23 24 Multistate 2 ",null,"23 24 Multistate 2"]
[null,null,null,null,"","63015",null,"KFS Conversion Gift Fund ",null,"KFS Conversion Gift Fund",null,null,null,null,null,null,null,null,null,null,null,null,null,null,null,null,null,null,null,null,null,null,"","GLCMF00193",null,"EEC 172 Embedded Systems ",null,"EEC 172 Embedded Systems","202156",null,"24 25 Multistate 1 ",null,"24 25 Multistate 1"]
[null,null,null,null,"","63016",null,"Dr Barbara Sawyer Memorial Schlsp 40015 ",null,"Dr Barbara Sawyer Memorial Schlsp 40015",null,null,null,null,null,null,null,null,null,null,null,null,null,null,null,null,null,null,null,null,null,null,"","GLCMF00194",null,"EEC 195A Autonomous Vehicle Design Project ",null,"EEC 195A Autonomous Vehicle Design Project","202157",null,"24 25 Multistate 2 ",null,"24 25 Multistate 2"]
[null,null,null,null,"","63017",null,"VM Surg Blue Ridge Pharmaceuticals 40016 ",null,"VM Surg Blue Ridge Pharmaceuticals 40016",null,null,null,null,null,null,null,null,null,null,null,null,null,null,null,null,null,null,null,null,null,null,"","GLCMF00195",null,"EEC 195B Autonomous Vehicle Design Project ",null,"EEC 195B Autonomous Vehicle Design Project","202158",null,"25 26 Multistate 1 ",null,"25 26 Multistate 1"]
[null,null,null,null,"","63019",null,"Marin Co Vet Med Assn Schlsp 40018 ",null,"Marin Co Vet Med Assn Schlsp 40018",null,null,null,null,null,null,null,null,null,null,null,null,null,null,null,null,null,null,null,null,null,null,"","GLCMF00196",null,"EEC 210 MOS Analog Circuit Design ",null,"EEC 210 MOS Analog Circuit Design","202159",null,"25 26 Multistate 2 ",null,"25 26 Multistate 2"]
[null,null,null,null,"","63020",null,"VMapc Aquatic Toxicology Research 40019 ",null,"VMapc Aquatic Toxicology Research 40019",null,null,null,null,null,null,null,null,null,null,null,null,null,null,null,null,null,null,null,null,null,null,"","GLCMF00197",null,"EEC 281 VLSI Digital Signal Processing ",null,"EEC 281 VLSI Digital Signal Processing","900151",null,"Research Funding ",null,"Research Funding"]
[null,null,null,null,"","63021",null,"Krec Research and Operations 40020 ",null,"Krec Research and Operations 40020",null,null,null,null,null,null,null,null,null,null,null,null,null,null,null,null,null,null,null,null,null,null,"","GLCMF00198",null,"EEC 284 Design and Optimization of Embedded Computing Systems ",null,"EEC 284 Design and Optimization of Embedded Computing Systems",null,null,"Species ",null,"Species"]
[null,null,null,null,"","63024",null,"CabParrott Projects 40022 ",null,"CabParrott Projects 40022",null,null,null,null,null,null,null,null,null,null,null,null,null,null,null,null,null,null,null,null,null,null,"","GLCMF00199",null,"ENG 100 Electronic Circuits and Systems ",null,"ENG 100 Electronic Circuits and Systems","220000",null,"Cancer ",null,"Cancer"]
[null,null,null,null,"","63026",null,"Commnity Development Research Fujimoto 40024 ",null,"Commnity Development Research Fujimoto 40024",null,null,null,null,null,null,null,null,null,null,null,null,null,null,null,null,null,null,null,null,null,null,"","GLCMF00200",null,"EME 50 Manufacturing Processes ",null,"EME 50 Manufacturing Processes","220001",null,"Dog ",null,"Dog"]
[null,null,null,null,"","63028",null,"Agmen Grad Fellowship 40026 ",null,"Agmen Grad Fellowship 40026",null,null,null,null,null,null,null,null,null,null,null,null,null,null,null,null,null,null,null,null,null,null,"","GLCMF00201",null,"BIS 002B Introductory Biology ",null,"BIS 002B Introductory Biology","220002",null,"Dog Restricted ",null,"Dog Restricted"]
[null,null,null,null,"","63029",null,"Acs Fellowship 40027 ",null,"Acs Fellowship 40027",null,null,null,null,null,null,null,null,null,null,null,null,null,null,null,null,null,null,null,null,null,null,"","GLCMF00202",null,"EVE 16 Wild Davis A California Naturalist Certification Course ",null,"EVE 16 Wild Davis A California Naturalist Certification Course","220003",null,"Dog Cancer ",null,"Dog Cancer"]
[null,null,null,null,"","63030",null,"Biol Sci Life Sci Addition 40028 ",null,"Biol Sci Life Sci Addition 40028",null,null,null,null,null,null,null,null,null,null,null,null,null,null,null,null,null,null,null,null,null,null,"","GLCMF00203",null,"EVE 105 Phylogenetic Analysis of Vertebrate Structure ",null,"EVE 105 Phylogenetic Analysis of Vertebrate Structure","220004",null,"Cat ",null,"Cat"]
[null,null,null,null,"","63031",null,"Arcs Fdn SchpMental Health 40029 ",null,"Arcs Fdn SchpMental Health 40029",null,null,null,null,null,null,null,null,null,null,null,null,null,null,null,null,null,null,null,null,null,null,"","GLCMF00204",null,"EVE PLB 108 Systematics and Evolution of Angiosperms ",null,"EVE PLB 108 Systematics and Evolution of Angiosperms","220005",null,"Cat Restricted ",null,"Cat Restricted"]
[null,null,null,null,"","63032",null,"Arcs Foundation Scholarship 40030 ",null,"Arcs Foundation Scholarship 40030",null,null,null,null,null,null,null,null,null,null,null,null,null,null,null,null,null,null,null,null,null,null,"","GLCMF00205",null,"EVE 112L Laboratory for Invertebrate Zoology ",null,"EVE 112L Laboratory for Invertebrate Zoology","220006",null,"Cat Cancer ",null,"Cat Cancer"]
[null,null,null,null,"","63033",null,"Arcs Fdn Schp Nutrition 40031 ",null,"Arcs Fdn Schp Nutrition 40031",null,null,null,null,null,null,null,null,null,null,null,null,null,null,null,null,null,null,null,null,null,null,"","GLCMF00206",null,"EVE 115 Marine Ecology ",null,"EVE 115 Marine Ecology","220007",null,"Mare ",null,"Mare"]
[null,null,null,null,"","63034",null,"Ctr NeuroscienceArcs Fdn 40032 ",null,"Ctr NeuroscienceArcs Fdn 40032",null,null,null,null,null,null,null,null,null,null,null,null,null,null,null,null,null,null,null,null,null,null,"","GLCMF00207",null,"EVE PLB 117 Plant Ecology ",null,"EVE PLB 117 Plant Ecology","220008",null,"Foal ",null,"Foal"]
[null,null,null,null,"","63035",null,"Ctr For Population BiolArcs Fdn 40033 ",null,"Ctr For Population BiolArcs Fdn 40033",null,null,null,null,null,null,null,null,null,null,null,null,null,null,null,null,null,null,null,null,null,null,"","GLCMF00208",null,"EVE PLB 119 Population Biology of Weeds ",null,"EVE PLB 119 Population Biology of Weeds","220009",null,"Stallion ",null,"Stallion"]
[null,null,null,null,"","63036",null,"Arcs FoundationEnv Studies 40034 ",null,"Arcs FoundationEnv Studies 40034",null,null,null,null,null,null,null,null,null,null,null,null,null,null,null,null,null,null,null,null,null,null,"","GLCMF00209",null,"EVE 140 Paleobotany ",null,"EVE 140 Paleobotany","220010",null,"Rabbit ",null,"Rabbit"]
[null,null,null,null,"","63037",null,"Arcs Fnd SchlspAn Physiology 40035 ",null,"Arcs Fnd SchlspAn Physiology 40035",null,null,null,null,null,null,null,null,null,null,null,null,null,null,null,null,null,null,null,null,null,null,"","GLCMF00210",null,"EVE ENT 180A Experimental Ecology Evolution ",null,"EVE ENT 180A Experimental Ecology Evolution","220011",null,"Rodent ",null,"Rodent"]
[null,null,null,null,"","63039",null,"Ellison Gerhardy Memorial Fd 40037 ",null,"Ellison Gerhardy Memorial Fd 40037",null,null,null,null,null,null,null,null,null,null,null,null,null,null,null,null,null,null,null,null,null,null,"","GLCMF00211",null,"EVE ENT 180B Experimental Ecology Evolution ",null,"EVE ENT 180B Experimental Ecology Evolution","220012",null,"Hamster ",null,"Hamster"]
[null,null,null,null,"","63040",null,"Richard Sinopoli Memorial Fd 40038 ",null,"Richard Sinopoli Memorial Fd 40038",null,null,null,null,null,null,null,null,null,null,null,null,null,null,null,null,null,null,null,null,null,null,"","GLCMF00212",null,"MIC5 103L Introductory Microbiology ",null,"MIC5 103L Introductory Microbiology","220013",null,"Frogs ",null,"Frogs"]
[null,null,null,null,"","63041",null,"Chem Research Dr R Bryan Miller 40039 ",null,"Chem Research Dr R Bryan Miller 40039",null,null,null,null,null,null,null,null,null,null,null,null,null,null,null,null,null,null,null,null,null,null,"","GLCMF00213",null,"MIC 104L General Bacteriology Laboratory ",null,"MIC 104L General Bacteriology Laboratory","220014",null,"Pigs ",null,"Pigs"]
[null,null,null,null,"","63042",null,"Cab Avian Bio Res 40040 ",null,"Cab Avian Bio Res 40040",null,null,null,null,null,null,null,null,null,null,null,null,null,null,null,null,null,null,null,null,null,null,"","GLCMF00214",null,"MIC105L Molecular Biology and Biochemistry Laboratory ",null,"MIC105L Molecular Biology and Biochemistry Laboratory","220015",null,"Bees ",null,"Bees"]
[null,null,null,null,"","63043",null,"Engineering Students Support 40041 ",null,"Engineering Students Support 40041",null,null,null,null,null,null,null,null,null,null,null,null,null,null,null,null,null,null,null,null,null,null,"","GLCMF00215",null,"MCB 140L Cell Biology Laboratory ",null,"MCB 140L Cell Biology Laboratory","220016",null,"Avian ",null,"Avian"]
[null,null,null,null,"","63047",null,"Amer Vet Med Medical Fdn Schlsp 40045 ",null,"Amer Vet Med Medical Fdn Schlsp 40045",null,null,null,null,null,null,null,null,null,null,null,null,null,null,null,null,null,null,null,null,null,null,"","GLCMF00216",null,"MCB 160L Principles of Genetics Laboratory ",null,"MCB 160L Principles of Genetics Laboratory","220017",null,"Mice ",null,"Mice"]
[null,null,null,null,"","63050",null,"Annual GivingMed Rstricted 40048 ",null,"Annual GivingMed Rstricted 40048",null,null,null,null,null,null,null,null,null,null,null,null,null,null,null,null,null,null,null,null,null,null,"","GLCMF00217",null,"BIS 023A Genome Hunters ",null,"BIS 023A Genome Hunters","220018",null,"Owl ",null,"Owl"]
[null,null,null,null,"","63051",null,"Annual Giving Restricted Gifts 40049 ",null,"Annual Giving Restricted Gifts 40049",null,null,null,null,null,null,null,null,null,null,null,null,null,null,null,null,null,null,null,null,null,null,"","GLCMF00218",null,"NPB 100L Neurobiology Laboratory ",null,"NPB 100L Neurobiology Laboratory","220019",null,"Bird ",null,"Bird"]
[null,null,null,null,"","63052",null,"UCD Annual Giving Prog Allocations 40050 ",null,"UCD Annual Giving Prog Allocations 40050",null,null,null,null,null,null,null,null,null,null,null,null,null,null,null,null,null,null,null,null,null,null,"","GLCMF00219",null,"NPB 101L Systemic Physiology Laboratory ",null,"NPB 101L Systemic Physiology Laboratory","220020",null,"Guinea Pig ",null,"Guinea Pig"]
[null,null,null,null,"","63053",null,"Environ Design and Landscape Arch Prgrm 40052 ",null,"Environ Design and Landscape Arch Prgrm 40052",null,null,null,null,null,null,null,null,null,null,null,null,null,null,null,null,null,null,null,null,null,null,"","GLCMF00220",null,"BIS 002C Introduction to Plant Biology ",null,"BIS 002C Introduction to Plant Biology","220021",null,"Iguana ",null,"Iguana"]
[null,null,null,null,"","63054",null,"Engr DiscretionaryIndividuals 40053 ",null,"Engr DiscretionaryIndividuals 40053",null,null,null,null,null,null,null,null,null,null,null,null,null,null,null,null,null,null,null,null,null,null,"","GLCMF00221",null,"BIS 185L Systems and Synthetic Biology Laboratory ",null,"BIS 185L Systems and Synthetic Biology Laboratory","220022",null,"NHP ",null,"NHP"]
[null,null,null,null,"","63055",null,"Engr RestrictedIndividuals 40054 ",null,"Engr RestrictedIndividuals 40054",null,null,null,null,null,null,null,null,null,null,null,null,null,null,null,null,null,null,null,null,null,null,"","GLCMF00222",null,"ART 2 Beginning Drawing ",null,"ART 2 Beginning Drawing","220023",null,"Rat ",null,"Rat"]
[null,null,null,null,"","63056",null,"Food Sci Research and Edu Activities Fund 40055 ",null,"Food Sci Research and Edu Activities Fund 40055",null,null,null,null,null,null,null,null,null,null,null,null,null,null,null,null,null,null,null,null,null,null,"","GLCMF00223",null,"ART 5 Beginning Sculpture ",null,"ART 5 Beginning Sculpture","220024",null,"Large Animal ",null,"Large Animal"]
[null,null,null,null,"","63059",null,"UCDAA African Diaspora House 40058 ",null,"UCDAA African Diaspora House 40058",null,null,null,null,null,null,null,null,null,null,null,null,null,null,null,null,null,null,null,null,null,null,"","GLCMF00224",null,"ART 7 Beginning Painting ",null,"ART 7 Beginning Painting","220025",null,"Cancer Restricted ",null,"Cancer Restricted"]
[null,null,null,null,"","63060",null,"UCDMC Cmnt Events 40059 ",null,"UCDMC Cmnt Events 40059",null,null,null,null,null,null,null,null,null,null,null,null,null,null,null,null,null,null,null,null,null,null,"","GLCMF00225",null,"ART 8 Beginning Ceramic Sculpture ",null,"ART 8 Beginning Ceramic Sculpture","900116",null,"Small Animal ",null,"Small Animal"]
[null,null,null,null,"","63062",null,"93 Childrens Miracle Network Tele 40061 ",null,"93 Childrens Miracle Network Tele 40061",null,null,null,null,null,null,null,null,null,null,null,null,null,null,null,null,null,null,null,null,null,null,"","GLCMF00226",null,"ART 9 Beginning Photography ",null,"ART 9 Beginning Photography","900122",null,"Horse Foals ",null,"Horse Foals"]
[null,null,null,null,"","63063",null,"94 ChildrenS Miracle Network 40062 ",null,"94 ChildrenS Miracle Network 40062",null,null,null,null,null,null,null,null,null,null,null,null,null,null,null,null,null,null,null,null,null,null,"","GLCMF00227",null,"ART 11 Beginning Printmaking ",null,"ART 11 Beginning Printmaking","900123",null,"Goats ",null,"Goats"]
[null,null,null,null,"","63064",null,"89 ChildrenS Miracle Network 40063 ",null,"89 ChildrenS Miracle Network 40063",null,null,null,null,null,null,null,null,null,null,null,null,null,null,null,null,null,null,null,null,null,null,"","GLCMF00228",null,"ART 12 Beginning Video ",null,"ART 12 Beginning Video","900124",null,"Horses ",null,"Horses"]
[null,null,null,null,"","63065",null,"95 ChildrenS Miracle Network Tele 40064 ",null,"95 ChildrenS Miracle Network Tele 40064",null,null,null,null,null,null,null,null,null,null,null,null,null,null,null,null,null,null,null,null,null,null,"","GLCMF00229",null,"ART 101A Intermediate Painting ",null,"ART 101A Intermediate Painting","900125",null,"Desert ",null,"Desert"]
[null,null,null,null,"","63066",null,"90 ChildrenS Miracle Network 40065 ",null,"90 ChildrenS Miracle Network 40065",null,null,null,null,null,null,null,null,null,null,null,null,null,null,null,null,null,null,null,null,null,null,"","GLCMF00230",null,"ART 101E Intermediate Painting Reinterpreting Landscape ",null,"ART 101E Intermediate Painting Reinterpreting Landscape","900126",null,"Sheep ",null,"Sheep"]
[null,null,null,null,"","63067",null,"91 ChildrenS Miracle Network Tele 40066 ",null,"91 ChildrenS Miracle Network Tele 40066",null,null,null,null,null,null,null,null,null,null,null,null,null,null,null,null,null,null,null,null,null,null,"","GLCMF00231",null,"ART 102A Advanced Painting Studio Projects ",null,"ART 102A Advanced Painting Studio Projects","900127",null,"Sheep Day ",null,"Sheep Day"]
[null,null,null,null,"","63068",null,"92 ChildrenS Miracle Network Tele 40067 ",null,"92 ChildrenS Miracle Network Tele 40067",null,null,null,null,null,null,null,null,null,null,null,null,null,null,null,null,null,null,null,null,null,null,"","GLCMF00232",null,"ART 102B Advanced Painting Figure ",null,"ART 102B Advanced Painting Figure","900128",null,"Sierra ",null,"Sierra"]
[null,null,null,null,"","63069",null,"CHILDREN'S MIRACLE TELETHON ",null,"CHILDREN'S MIRACLE TELETHON",null,null,null,null,null,null,null,null,null,null,null,null,null,null,null,null,null,null,null,null,null,null,"","GLCMF00233",null,"ART 102C Advanced Painting Special Topics ",null,"ART 102C Advanced Painting Special Topics","900129",null,"Swine ",null,"Swine"]
[null,null,null,null,"","63070",null,"96 ChildrenS TelethonUnrestricted 40069 ",null,"96 ChildrenS TelethonUnrestricted 40069",null,null,null,null,null,null,null,null,null,null,null,null,null,null,null,null,null,null,null,null,null,null,"","GLCMF00234",null,"ART 103A Intermediate Drawing Black and White ",null,"ART 103A Intermediate Drawing Black and White",null,null,"Graduate Student Associations and Grad Groups ",null,"Graduate Student Associations and Grad Groups"]
[null,null,null,null,"","63072",null,"UCDMC Annual Giving 40071 ",null,"UCDMC Annual Giving 40071",null,null,null,null,null,null,null,null,null,null,null,null,null,null,null,null,null,null,null,null,null,null,"","GLCMF00235",null,"ART 103B Intermediate Drawing Color ",null,"ART 103B Intermediate Drawing Color","211000",null,"ANS Animal Biology GSA ",null,"ANS Animal Biology GSA"]
[null,null,null,null,"","63075",null,"Med DevCmn Fye Odd 40074 ",null,"Med DevCmn Fye Odd 40074",null,null,null,null,null,null,null,null,null,null,null,null,null,null,null,null,null,null,null,null,null,null,"","GLCMF00236",null,"ART 103C Intermediate Drawing 3 Dimensions ",null,"ART 103C Intermediate Drawing 3 Dimensions","211001",null,"AND Grad Group GSA Agency ",null,"AND Grad Group GSA Agency"]
[null,null,null,null,"","63076",null,"Engr DiscretionaryCorporations 40075 ",null,"Engr DiscretionaryCorporations 40075",null,null,null,null,null,null,null,null,null,null,null,null,null,null,null,null,null,null,null,null,null,null,"","GLCMF00237",null,"ART 105A Advanced Drawing Studio Projects ",null,"ART 105A Advanced Drawing Studio Projects","211002",null,"BAE Graduate Student Association ",null,"BAE Graduate Student Association"]
[null,null,null,null,"","63078",null,"Dr Abildgaard Fellowship Program 40077 ",null,"Dr Abildgaard Fellowship Program 40077",null,null,null,null,null,null,null,null,null,null,null,null,null,null,null,null,null,null,null,null,null,null,"","GLCMF00238",null,"ART 105B Advanced Drawing Figure ",null,"ART 105B Advanced Drawing Figure","211003",null,"LDA Geography Graduate Group ",null,"LDA Geography Graduate Group"]
[null,null,null,null,"","63079",null,"Advising Services Fund 40078 ",null,"Advising Services Fund 40078",null,null,null,null,null,null,null,null,null,null,null,null,null,null,null,null,null,null,null,null,null,null,"","GLCMF00239",null,"ART 110A Intermediate Wet Photography ",null,"ART 110A Intermediate Wet Photography","211004",null,"HD Grad Group Student Organization ",null,"HD Grad Group Student Organization"]
[null,null,null,null,"","63080",null,"Rae S Axelson Memorial Fund 40079 ",null,"Rae S Axelson Memorial Fund 40079",null,null,null,null,null,null,null,null,null,null,null,null,null,null,null,null,null,null,null,null,null,null,"","GLCMF00240",null,"ART 110B Intermediate Digital Photography ",null,"ART 110B Intermediate Digital Photography","211005",null,"ARE Graduate Group GSA ",null,"ARE Graduate Group GSA"]
[null,null,null,null,"","63081",null,"Xerox Matching Nsf 94 40080 ",null,"Xerox Matching Nsf 94 40080",null,null,null,null,null,null,null,null,null,null,null,null,null,null,null,null,null,null,null,null,null,null,"","GLCMF00241",null,"ART 110C Intermediate Photography Photographic Lighting ",null,"ART 110C Intermediate Photography Photographic Lighting","211006",null,"BMCDB Graduate Group GSA ",null,"BMCDB Graduate Group GSA"]
[null,null,null,null,"","63082",null,"Agr EconOak Tree 40081 ",null,"Agr EconOak Tree 40081",null,null,null,null,null,null,null,null,null,null,null,null,null,null,null,null,null,null,null,null,null,null,"","GLCMF00242",null,"ART 110DA The Photobook ",null,"ART 110DA The Photobook","211007",null,"BPH Graduate Group GSA ",null,"BPH Graduate Group GSA"]
[null,null,null,null,"","63083",null,"Agr Engr Food Engineering 40082 ",null,"Agr Engr Food Engineering 40082",null,null,null,null,null,null,null,null,null,null,null,null,null,null,null,null,null,null,null,null,null,null,"","GLCMF00243",null,"ART 110DB The Photobook ",null,"ART 110DB The Photobook","211008",null,"AETX Agchem Graduate Student Org ",null,"AETX Agchem Graduate Student Org"]
[null,null,null,null,"","63084",null,"A and RS Water Quality Study Kaffka 40083 ",null,"A and RS Water Quality Study Kaffka 40083",null,null,null,null,null,null,null,null,null,null,null,null,null,null,null,null,null,null,null,null,null,null,"","GLCMF00244",null,"ART 111A Advanced Wet Photography ",null,"ART 111A Advanced Wet Photography","211009",null,"CHEM Graduate Student Association ",null,"CHEM Graduate Student Association"]
[null,null,null,null,"","63085",null,"Arco Products Co Schlsp 40084 ",null,"Arco Products Co Schlsp 40084",null,null,null,null,null,null,null,null,null,null,null,null,null,null,null,null,null,null,null,null,null,null,"","GLCMF00245",null,"ART 111B Advanced Digital Photography ",null,"ART 111B Advanced Digital Photography","211010",null,"CHMS Graduate Student Organization ",null,"CHMS Graduate Student Organization"]
[null,null,null,null,"","63086",null,"Arco Seed Veg Crops 40085 ",null,"Arco Seed Veg Crops 40085",null,null,null,null,null,null,null,null,null,null,null,null,null,null,null,null,null,null,null,null,null,null,"","GLCMF00246",null,"ART 112 Sound for Vision ",null,"ART 112 Sound for Vision","211011",null,"Comparative Literature Grad Stdnt Assoc ",null,"Comparative Literature Grad Stdnt Assoc"]
[null,null,null,null,"","63087",null,"Arco Seed Agronomy and Range Sci 40086 ",null,"Arco Seed Agronomy and Range Sci 40086",null,null,null,null,null,null,null,null,null,null,null,null,null,null,null,null,null,null,null,null,null,null,"","GLCMF00247",null,"ART 114A Intermediate Video Animation ",null,"ART 114A Intermediate Video Animation","211012",null,"COM GSA Grad Students ",null,"COM GSA Grad Students"]
[null,null,null,null,"","63088",null,"AAES Deans N W Stice 40087 ",null,"AAES Deans N W Stice 40087",null,null,null,null,null,null,null,null,null,null,null,null,null,null,null,null,null,null,null,null,null,null,"","GLCMF00248",null,"ART 114B Intermediate Video Experimental Documentary ",null,"ART 114B Intermediate Video Experimental Documentary","211013",null,"LAWR ATM Grad Student Organization ",null,"LAWR ATM Grad Student Organization"]
[null,null,null,null,"","63089",null,"A and RS Research Cotton Cassman 40088 ",null,"A and RS Research Cotton Cassman 40088",null,null,null,null,null,null,null,null,null,null,null,null,null,null,null,null,null,null,null,null,null,null,"","GLCMF00249",null,"ART 114C Intermediate Video Performance Strategies ",null,"ART 114C Intermediate Video Performance Strategies","211014",null,"Cultural Studies Graduate Student Assoc ",null,"Cultural Studies Graduate Student Assoc"]
[null,null,null,null,"","63090",null,"Agron Ext Ca Beet Growers 40089 ",null,"Agron Ext Ca Beet Growers 40089",null,null,null,null,null,null,null,null,null,null,null,null,null,null,null,null,null,null,null,null,null,null,"","GLCMF00250",null,"ART 117 Advanced Video and Electronic Arts ",null,"ART 117 Advanced Video and Electronic Arts","211015",null,"Economic Graduate Student Association ",null,"Economic Graduate Student Association"]
[null,null,null,null,"","63091",null,"ANR Sugarbeet Res BaliKaffka 40089 ",null,"ANR Sugarbeet Res BaliKaffka 40089",null,null,null,null,null,null,null,null,null,null,null,null,null,null,null,null,null,null,null,null,null,null,"","GLCMF00251",null,"ART 125A Intermediate Printmaking Relief ",null,"ART 125A Intermediate Printmaking Relief","211016",null,"French Graduate Student Association ",null,"French Graduate Student Association"]
[null,null,null,null,"","63092",null,"Agr EconVrsDnrs 40090 ",null,"Agr EconVrsDnrs 40090",null,null,null,null,null,null,null,null,null,null,null,null,null,null,null,null,null,null,null,null,null,null,"","GLCMF00252",null,"ART 125B Intermediate Printmaking Intaglio ",null,"ART 125B Intermediate Printmaking Intaglio","211017",null,"German Graduate Student Association ",null,"German Graduate Student Association"]
[null,null,null,null,"","63093",null,"AAES DO Cotton Genetics Prog 40091 ",null,"AAES DO Cotton Genetics Prog 40091",null,null,null,null,null,null,null,null,null,null,null,null,null,null,null,null,null,null,null,null,null,null,"","GLCMF00253",null,"ART 125C Intermediate Printmaking Lithography ",null,"ART 125C Intermediate Printmaking Lithography","211018",null,"Ecology Graduate Student Association ",null,"Ecology Graduate Student Association"]
[null,null,null,null,"","63094",null,"Agr Engr Plant Genetics 40092 ",null,"Agr Engr Plant Genetics 40092",null,null,null,null,null,null,null,null,null,null,null,null,null,null,null,null,null,null,null,null,null,null,"","GLCMF00254",null,"ART 125D Intermediate Printmaking Serigraphy ",null,"ART 125D Intermediate Printmaking Serigraphy","211019",null,"Sociology Graduate Student Association ",null,"Sociology Graduate Student Association"]
[null,null,null,null,"","63095",null,"A and RS Research Suppport 40093 ",null,"A and RS Research Suppport 40093",null,null,null,null,null,null,null,null,null,null,null,null,null,null,null,null,null,null,null,null,null,null,"","GLCMF00255",null,"ART 125E Intermediate Printmaking PostDigital Print Media ",null,"ART 125E Intermediate Printmaking PostDigital Print Media","211020",null,"History Graduate Student Association ",null,"History Graduate Student Association"]
[null,null,null,null,"","63096",null,"Agr Botany Du Pont Ed Aid 40094 ",null,"Agr Botany Du Pont Ed Aid 40094",null,null,null,null,null,null,null,null,null,null,null,null,null,null,null,null,null,null,null,null,null,null,"","GLCMF00256",null,"ART 142A Intermediate Ceramic Sculpture Mold Work ",null,"ART 142A Intermediate Ceramic Sculpture Mold Work","211021",null,"Geology Graduate Student Association ",null,"Geology Graduate Student Association"]
[null,null,null,null,"","63097",null,"Agr Engr Frioalimentos DArago 40095 ",null,"Agr Engr Frioalimentos DArago 40095",null,null,null,null,null,null,null,null,null,null,null,null,null,null,null,null,null,null,null,null,null,null,"","GLCMF00257",null,"ART 142B Intermediate Ceramic Sculpture Clay Glaze and Kiln ",null,"ART 142B Intermediate Ceramic Sculpture Clay Glaze and Kiln","211022",null,"Linguistics Graduate Student Association ",null,"Linguistics Graduate Student Association"]
[null,null,null,null,"","63099",null,"A and ES Deparment Of Managerial Economics 40097 ",null,"A and ES Deparment Of Managerial Economics 40097",null,null,null,null,null,null,null,null,null,null,null,null,null,null,null,null,null,null,null,null,null,null,"","GLCMF00258",null,"ART 142C Intermediate Ceramic Sculpture Ceramics the Painted Surface ",null,"ART 142C Intermediate Ceramic Sculpture Ceramics the Painted Surface","211023",null,"Native American Graduate Student Assoc ",null,"Native American Graduate Student Assoc"]
[null,null,null,null,"","63102",null,"A and ES Ca Community Fdn 40100 ",null,"A and ES Ca Community Fdn 40100",null,null,null,null,null,null,null,null,null,null,null,null,null,null,null,null,null,null,null,null,null,null,"","GLCMF00259",null,"ART 142D Intermediate Ceramic Sculpture Special Topics ",null,"ART 142D Intermediate Ceramic Sculpture Special Topics","211024",null,"Physics Graduate Student Association ",null,"Physics Graduate Student Association"]
[null,null,null,null,"","63103",null,"Agr Engr Forest Resource Prod 40101 ",null,"Agr Engr Forest Resource Prod 40101",null,null,null,null,null,null,null,null,null,null,null,null,null,null,null,null,null,null,null,null,null,null,"","GLCMF00260",null,"ART 143 Advanced Ceramics Sculpture Studio Projects ",null,"ART 143 Advanced Ceramics Sculpture Studio Projects","211025",null,"Religion Graduate Student Association ",null,"Religion Graduate Student Association"]
[null,null,null,null,"","63105",null,"Agr Engr Discretionary Fd 40103 ",null,"Agr Engr Discretionary Fd 40103",null,null,null,null,null,null,null,null,null,null,null,null,null,null,null,null,null,null,null,null,null,null,"","GLCMF00261",null,"ART 151 Intermediate Sculpture ",null,"ART 151 Intermediate Sculpture","211026",null,"Spanish Graduate Student Association ",null,"Spanish Graduate Student Association"]
[null,null,null,null,"","63106",null,"Agr Engr Cotton Res 40104 ",null,"Agr Engr Cotton Res 40104",null,null,null,null,null,null,null,null,null,null,null,null,null,null,null,null,null,null,null,null,null,null,"","GLCMF00262",null,"ART 152A Advanced Sculpture Studio Projects ",null,"ART 152A Advanced Sculpture Studio Projects","211028",null,"Global Disease Biology ",null,"Global Disease Biology"]
[null,null,null,null,"","63107",null,"Ag Alternative Development Program 40105 ",null,"Ag Alternative Development Program 40105",null,null,null,null,null,null,null,null,null,null,null,null,null,null,null,null,null,null,null,null,null,null,"","GLCMF00263",null,"ART 152B Advanced Sculpture Material Explorations ",null,"ART 152B Advanced Sculpture Material Explorations","211030",null,"EPM Graduate Student Association ",null,"EPM Graduate Student Association"]
[null,null,null,null,"","63108",null,"A and ES Summer Internships Scope 40106 ",null,"A and ES Summer Internships Scope 40106",null,null,null,null,null,null,null,null,null,null,null,null,null,null,null,null,null,null,null,null,null,null,"","GLCMF00264",null,"ART 152C Advanced Sculpture Concepts ",null,"ART 152C Advanced Sculpture Concepts","211031",null,"DOPPS Graduate Student Association ",null,"DOPPS Graduate Student Association"]
[null,null,null,null,"","63110",null,"AARC Aquatic Center Support 40108 ",null,"AARC Aquatic Center Support 40108",null,null,null,null,null,null,null,null,null,null,null,null,null,null,null,null,null,null,null,null,null,null,"","GLCMF00265",null,"ART 152D Advanced Sculpture Metals ",null,"ART 152D Advanced Sculpture Metals","211032",null,"ALAW SBG Graduate Student Association ",null,"ALAW SBG Graduate Student Association"]
[null,null,null,null,"","63111",null,"A and RS Grad Student Support 40109 ",null,"A and RS Grad Student Support 40109",null,null,null,null,null,null,null,null,null,null,null,null,null,null,null,null,null,null,null,null,null,null,"","GLCMF00266",null,"ART 152E Advanced Sculpture Site Specific Public Sculpture ",null,"ART 152E Advanced Sculpture Site Specific Public Sculpture","211033",null,"NUT Nutritional Biology GSA ",null,"NUT Nutritional Biology GSA"]
[null,null,null,null,"","63113",null,"Agron Ext Scales Maintenance 40111 ",null,"Agron Ext Scales Maintenance 40111",null,null,null,null,null,null,null,null,null,null,null,null,null,null,null,null,null,null,null,null,null,null,"","GLCMF00267",null,"ART 190 Seminar in Art Practice ",null,"ART 190 Seminar in Art Practice","211034",null,"MAE Graduate Student Association ",null,"MAE Graduate Student Association"]
[null,null,null,null,"","63114",null,"A and RS CCIA 40112 ",null,"A and RS CCIA 40112",null,null,null,null,null,null,null,null,null,null,null,null,null,null,null,null,null,null,null,null,null,null,"","GLCMF00268",null,"CDM 20 Filmmaking Foundations ",null,"CDM 20 Filmmaking Foundations",null,null,"Academic and Instruction ",null,"Academic and Instruction"]
[null,null,null,null,"","63115",null,"A and RS American Cyanamid 40113 ",null,"A and RS American Cyanamid 40113",null,null,null,null,null,null,null,null,null,null,null,null,null,null,null,null,null,null,null,null,null,null,"","GLCMF00269",null,"CDM 107 Acting for Camera ",null,"CDM 107 Acting for Camera","300002",null,"Academic Enrichment ",null,"Academic Enrichment"]
[null,null,null,null,"","63116",null,"A and RS CCIA Cotton Rsch 40114 ",null,"A and RS CCIA Cotton Rsch 40114",null,null,null,null,null,null,null,null,null,null,null,null,null,null,null,null,null,null,null,null,null,null,"","GLCMF00270",null,"CDM 100 Experimental Digital Cinema I ",null,"CDM 100 Experimental Digital Cinema I","300003",null,"Student Success ",null,"Student Success"]
[null,null,null,null,"","63117",null,"A and RS Res CCIA 40115 ",null,"A and RS Res CCIA 40115",null,null,null,null,null,null,null,null,null,null,null,null,null,null,null,null,null,null,null,null,null,null,"","GLCMF00271",null,"CDM 101 Experimental Digital Cinema I ",null,"CDM 101 Experimental Digital Cinema I","300004",null,"Curriculum Development ",null,"Curriculum Development"]
[null,null,null,null,"","63120",null,"A and RS Rockefeller 40118 ",null,"A and RS Rockefeller 40118",null,null,null,null,null,null,null,null,null,null,null,null,null,null,null,null,null,null,null,null,null,null,"","GLCMF00272",null,"DES 70 Introduction to Textile Design Structures ",null,"DES 70 Introduction to Textile Design Structures","300005",null,"Class Instructors ",null,"Class Instructors"]
[null,null,null,null,"","63122",null,"Agr and Env Sci Deans Discretionary 40120 ",null,"Agr and Env Sci Deans Discretionary 40120",null,null,null,null,null,null,null,null,null,null,null,null,null,null,null,null,null,null,null,null,null,null,"","GLCMF00273",null,"DES 77 Introduction to Structural Design for Fashion ",null,"DES 77 Introduction to Structural Design for Fashion","300006",null,"Faculty Student Mentoring ",null,"Faculty Student Mentoring"]
[null,null,null,null,"","63124",null,"Agr Engr Irrigation Mgmt Research 40122 ",null,"Agr Engr Irrigation Mgmt Research 40122",null,null,null,null,null,null,null,null,null,null,null,null,null,null,null,null,null,null,null,null,null,null,"","GLCMF00274",null,"DES 113 Photography and Digital Imaging ",null,"DES 113 Photography and Digital Imaging","300007",null,"Student Advising ",null,"Student Advising"]
[null,null,null,null,"","63125",null,"A and RS Ccia 40123 ",null,"A and RS Ccia 40123",null,null,null,null,null,null,null,null,null,null,null,null,null,null,null,null,null,null,null,null,null,null,"","GLCMF00275",null,"DES 115 Letterforms and Typography ",null,"DES 115 Letterforms and Typography","300100",null,"Supplemental Instruction ",null,"Supplemental Instruction"]
[null,null,null,null,"","63126",null,"Agr Engr Fruit Res 40124 ",null,"Agr Engr Fruit Res 40124",null,null,null,null,null,null,null,null,null,null,null,null,null,null,null,null,null,null,null,null,null,null,"","GLCMF00276",null,"DES 127B Studio Practice in Sustainable Design ",null,"DES 127B Studio Practice in Sustainable Design","300101",null,"Temp Teaching ",null,"Temp Teaching"]
[null,null,null,null,"","63127",null,"A and RS Bean Research 40125 ",null,"A and RS Bean Research 40125",null,null,null,null,null,null,null,null,null,null,null,null,null,null,null,null,null,null,null,null,null,null,"","GLCMF00277",null,"DES 128 BioDesign Theory and Practice ",null,"DES 128 BioDesign Theory and Practice","300102",null,"ACCD Instruction ",null,"ACCD Instruction"]
[null,null,null,null,"","63128",null,"A and Rs Alfalfa Research Tueber 40126 ",null,"A and Rs Alfalfa Research Tueber 40126",null,null,null,null,null,null,null,null,null,null,null,null,null,null,null,null,null,null,null,null,null,null,"","GLCMF00278",null,"DES 132A Textile Design Woven Structures ",null,"DES 132A Textile Design Woven Structures","300103",null,"General Exam Costs ",null,"General Exam Costs"]
[null,null,null,null,"","63129",null,"A and RS CciaSalinity 40127 ",null,"A and RS CciaSalinity 40127",null,null,null,null,null,null,null,null,null,null,null,null,null,null,null,null,null,null,null,null,null,null,"","GLCMF00279",null,"DES 134A Introduction to Interior Design Residential ",null,"DES 134A Introduction to Interior Design Residential","300104",null,"Graduation ",null,"Graduation"]
[null,null,null,null,"","63130",null,"A and RS Alfalfa Research Tueber 40128 ",null,"A and RS Alfalfa Research Tueber 40128",null,null,null,null,null,null,null,null,null,null,null,null,null,null,null,null,null,null,null,null,null,null,"","GLCMF00280",null,"DES 134B Introduction to Interior Design Commercial and Technical Spaces ",null,"DES 134B Introduction to Interior Design Commercial and Technical Spaces","300105",null,"Career Development and Placement ",null,"Career Development and Placement"]
[null,null,null,null,"","63131",null,"DANR A and RS TueberMueller 40128 ",null,"DANR A and RS TueberMueller 40128",null,null,null,null,null,null,null,null,null,null,null,null,null,null,null,null,null,null,null,null,null,null,"","GLCMF00281",null,"DES 135A Furniture Design and Detailing ",null,"DES 135A Furniture Design and Detailing","300106",null,"Undergraduate Advising ",null,"Undergraduate Advising"]
[null,null,null,null,"","63132",null,"A and ES DO Bowley Center 40129 ",null,"A and ES DO Bowley Center 40129",null,null,null,null,null,null,null,null,null,null,null,null,null,null,null,null,null,null,null,null,null,null,"","GLCMF00282",null,"DES 135B Furniture Design and Prototyping ",null,"DES 135B Furniture Design and Prototyping","300107",null,"Undergraduate Program Review ",null,"Undergraduate Program Review"]
[null,null,null,null,"","63133",null,"Agric Engr Spray Analyzer System 40130 ",null,"Agric Engr Spray Analyzer System 40130",null,null,null,null,null,null,null,null,null,null,null,null,null,null,null,null,null,null,null,null,null,null,"","GLCMF00283",null,"DES 137A Daylighting and Interior Design ",null,"DES 137A Daylighting and Interior Design","300108",null,"Graduate Program Review ",null,"Graduate Program Review"]
[null,null,null,null,"","63134",null,"Agr Engr Serv Recognition Fd 40131 ",null,"Agr Engr Serv Recognition Fd 40131",null,null,null,null,null,null,null,null,null,null,null,null,null,null,null,null,null,null,null,null,null,null,"","GLCMF00284",null,"DES 150 ComputerAssisted Presentation for Interior Architecture ",null,"DES 150 ComputerAssisted Presentation for Interior Architecture","300109",null,"Transcript Preparation ",null,"Transcript Preparation"]
[null,null,null,null,"","63135",null,"A and Rs Alfalfa Rsrch 40132 ",null,"A and Rs Alfalfa Rsrch 40132",null,null,null,null,null,null,null,null,null,null,null,null,null,null,null,null,null,null,null,null,null,null,"","GLCMF00285",null,"DES 155A Pattern Form and Surface ",null,"DES 155A Pattern Form and Surface","300110",null,"Diploma Generation ",null,"Diploma Generation"]
[null,null,null,null,"","63136",null,"A and RsCcia 40133 ",null,"A and RsCcia 40133",null,null,null,null,null,null,null,null,null,null,null,null,null,null,null,null,null,null,null,null,null,null,"","GLCMF00286",null,"DES 159 Design for Understanding ",null,"DES 159 Design for Understanding","300111",null,"Student Photo ID ",null,"Student Photo ID"]
[null,null,null,null,"","63137",null,"Agr Engr BAE General Support 40134 ",null,"Agr Engr BAE General Support 40134",null,null,null,null,null,null,null,null,null,null,null,null,null,null,null,null,null,null,null,null,null,null,"","GLCMF00287",null,"DES 160 Textile Surface Design Patterns and Resists ",null,"DES 160 Textile Surface Design Patterns and Resists","300112",null,"BIS2 series ",null,"BIS2 series"]
[null,null,null,null,"","63138",null,"A and Rs Grad Stdt Support DoudWhite 40135 ",null,"A and Rs Grad Stdt Support DoudWhite 40135",null,null,null,null,null,null,null,null,null,null,null,null,null,null,null,null,null,null,null,null,null,null,"","GLCMF00288",null,"DES 161 Textile Surface Design Screen and Digital Printing ",null,"DES 161 Textile Surface Design Screen and Digital Printing","300113",null,"Speaker Gifts ",null,"Speaker Gifts"]
[null,null,null,null,"","63139",null,"A and Rs Ccia Cotton Jernstedt 40136 ",null,"A and Rs Ccia Cotton Jernstedt 40136",null,null,null,null,null,null,null,null,null,null,null,null,null,null,null,null,null,null,null,null,null,null,"","GLCMF00289",null,"DES 165 Studio Practices in Industrial Design ",null,"DES 165 Studio Practices in Industrial Design","300114",null,"IMPACT Integrated Management Projects ",null,"IMPACT Integrated Management Projects"]
[null,null,null,null,"","63141",null,"Ag Ed Fellowship 40138 ",null,"Ag Ed Fellowship 40138",null,null,null,null,null,null,null,null,null,null,null,null,null,null,null,null,null,null,null,null,null,null,"","GLCMF00290",null,"DES 166 HumanCentered Design ",null,"DES 166 HumanCentered Design","300115",null,"MSBA Practicum ",null,"MSBA Practicum"]
[null,null,null,null,"","63143",null,"Agr and Env Sci Boswell Discretionar 40140 ",null,"Agr and Env Sci Boswell Discretionar 40140",null,null,null,null,null,null,null,null,null,null,null,null,null,null,null,null,null,null,null,null,null,null,"","GLCMF00291",null,"DES 167 Prototyping ",null,"DES 167 Prototyping",null,null,"Education ",null,"Education"]
[null,null,null,null,"","63144",null,"A and RsGrain Research 40141 ",null,"A and RsGrain Research 40141",null,null,null,null,null,null,null,null,null,null,null,null,null,null,null,null,null,null,null,null,null,null,"","GLCMF00292",null,"DES 168 Interactive Objects ",null,"DES 168 Interactive Objects","310100",null,"Master Classes ",null,"Master Classes"]
[null,null,null,null,"","63145",null,"ABS Agr Education 40142 ",null,"ABS Agr Education 40142",null,null,null,null,null,null,null,null,null,null,null,null,null,null,null,null,null,null,null,null,null,null,"","GLCMF00293",null,"DES 169 Adv Explorations in Textile Design ",null,"DES 169 Adv Explorations in Textile Design","310101",null,"School Matinee Companion Activities ",null,"School Matinee Companion Activities"]
[null,null,null,null,"","63147",null,"A and Rs Vrs Dnrs 40144 ",null,"A and Rs Vrs Dnrs 40144",null,null,null,null,null,null,null,null,null,null,null,null,null,null,null,null,null,null,null,null,null,null,"","GLCMF00294",null,"DES 170 Experimental Fashion Textile Design ",null,"DES 170 Experimental Fashion Textile Design",null,null,"Faculty External Activities ",null,"Faculty External Activities"]
[null,null,null,null,"","63149",null,"A and RsCcia Research Putnam 40146 ",null,"A and RsCcia Research Putnam 40146",null,null,null,null,null,null,null,null,null,null,null,null,null,null,null,null,null,null,null,null,null,null,"","GLCMF00295",null,"DES 177 Computer Assisted Fashion Design ",null,"DES 177 Computer Assisted Fashion Design","330000",null,"Editorialship ",null,"Editorialship"]
[null,null,null,null,"","63151",null,"A and Rs Boswell Ranch Goyal 40148 ",null,"A and Rs Boswell Ranch Goyal 40148",null,null,null,null,null,null,null,null,null,null,null,null,null,null,null,null,null,null,null,null,null,null,"","GLCMF00296",null,"DES 178 Design and Wearable Technology ",null,"DES 178 Design and Wearable Technology","330100",null,"Teaching Fellowships ",null,"Teaching Fellowships"]
[null,null,null,null,"","63153",null,"Allergan PharmaceutICAls 40150 ",null,"Allergan PharmaceutICAls 40150",null,null,null,null,null,null,null,null,null,null,null,null,null,null,null,null,null,null,null,null,null,null,"","GLCMF00297",null,"DES 179 Fashion Design Signature Collection ",null,"DES 179 Fashion Design Signature Collection","330101",null,"Faculty Fellowship ",null,"Faculty Fellowship"]
[null,null,null,null,"","63154",null,"VM Marjorie S Albert Estate 40151 ",null,"VM Marjorie S Albert Estate 40151",null,null,null,null,null,null,null,null,null,null,null,null,null,null,null,null,null,null,null,null,null,null,"","GLCMF00298",null,"DES 180B Advanced Interior Architecture ",null,"DES 180B Advanced Interior Architecture",null,null,"Student Health Activities ",null,"Student Health Activities"]
[null,null,null,null,"","63155",null,"A and Rs Research Phillips 40152 ",null,"A and Rs Research Phillips 40152",null,null,null,null,null,null,null,null,null,null,null,null,null,null,null,null,null,null,null,null,null,null,"","GLCMF00299",null,"DES 186 Environmental Graphic Design ",null,"DES 186 Environmental Graphic Design","340001",null,"SHCS STAR Week ",null,"SHCS STAR Week"]
[null,null,null,null,"","63156",null,"A and Rs Research George 40153 ",null,"A and Rs Research George 40153",null,null,null,null,null,null,null,null,null,null,null,null,null,null,null,null,null,null,null,null,null,null,"","GLCMF00300",null,"CHE 002A General Chemistry ",null,"CHE 002A General Chemistry","340002",null,"SHIP Committee ",null,"SHIP Committee"]
[null,null,null,null,"","63157",null,"A and Rs Research Clawson 40154 ",null,"A and Rs Research Clawson 40154",null,null,null,null,null,null,null,null,null,null,null,null,null,null,null,null,null,null,null,null,null,null,"","GLCMF00302",null,"CHE 002B General Chemistry ",null,"CHE 002B General Chemistry","340003",null,"SHIP Students ",null,"SHIP Students"]
[null,null,null,null,"","63159",null,"Agr Engr Slaughter 40156 ",null,"Agr Engr Slaughter 40156",null,null,null,null,null,null,null,null,null,null,null,null,null,null,null,null,null,null,null,null,null,null,"","GLCMF00304",null,"CHE 002C General Chemistry ",null,"CHE 002C General Chemistry","340004",null,"NonSHIP Students ",null,"NonSHIP Students"]
[null,null,null,null,"","63160",null,"Agr Ext CibaGeigy 40157 ",null,"Agr Ext CibaGeigy 40157",null,null,null,null,null,null,null,null,null,null,null,null,null,null,null,null,null,null,null,null,null,null,"","GLCMF00306",null,"CHE 004A General Chemistry for the Physical Sciences Engineering ",null,"CHE 004A General Chemistry for the Physical Sciences Engineering","340005",null,"CAPS No Show Income ",null,"CAPS No Show Income"]
[null,null,null,null,"","63161",null,"Biol Agric Engr Research Jenkins 40158 ",null,"Biol Agric Engr Research Jenkins 40158",null,null,null,null,null,null,null,null,null,null,null,null,null,null,null,null,null,null,null,null,null,null,"","GLCMF00307",null,"CHE 004B General Chemistry for the Physical Sciences Engineering ",null,"CHE 004B General Chemistry for the Physical Sciences Engineering","340006",null,"HLTH No Show Income ",null,"HLTH No Show Income"]
[null,null,null,null,"","63163",null,"Agron Ext Weed Mgt 40160 ",null,"Agron Ext Weed Mgt 40160",null,null,null,null,null,null,null,null,null,null,null,null,null,null,null,null,null,null,null,null,null,null,"","GLCMF00308",null,"CHE 004C General Chemistry for the Physical Sciences Engineering ",null,"CHE 004C General Chemistry for the Physical Sciences Engineering","340007",null,"SHCS Injectables ",null,"SHCS Injectables"]
[null,null,null,null,"","63164",null,"A and Rs Vrs DnrsLtras ProgramKaffka 40161 ",null,"A and Rs Vrs DnrsLtras ProgramKaffka 40161",null,null,null,null,null,null,null,null,null,null,null,null,null,null,null,null,null,null,null,null,null,null,"","GLCMF00309",null,"CHE 008B Organic Chemistry ",null,"CHE 008B Organic Chemistry","340008",null,"SHCS LARC Services ",null,"SHCS LARC Services"]
[null,null,null,null,"","63166",null,"An Sci Research May 40163 ",null,"An Sci Research May 40163",null,null,null,null,null,null,null,null,null,null,null,null,null,null,null,null,null,null,null,null,null,null,"","GLCMF00310",null,"CHE 104 Forensic Applications of Analytical Chemistry ",null,"CHE 104 Forensic Applications of Analytical Chemistry","340009",null,"SHCS Over the Counter Sales ",null,"SHCS Over the Counter Sales"]
[null,null,null,null,"","63167",null,"A and RsVarious Donors 40164 ",null,"A and RsVarious Donors 40164",null,null,null,null,null,null,null,null,null,null,null,null,null,null,null,null,null,null,null,null,null,null,"","GLCMF00311",null,"CHE 105 Analytical Physical Chemistry Methods ",null,"CHE 105 Analytical Physical Chemistry Methods","340010",null,"SHCS Resale ",null,"SHCS Resale"]
[null,null,null,null,"","63168",null,"A and RsRice Expert Systems 40165 ",null,"A and RsRice Expert Systems 40165",null,null,null,null,null,null,null,null,null,null,null,null,null,null,null,null,null,null,null,null,null,null,"","GLCMF00312",null,"CHE 115 Instrumental Analysis ",null,"CHE 115 Instrumental Analysis","340011",null,"SHCS Rx Prescriptions ",null,"SHCS Rx Prescriptions"]
[null,null,null,null,"","63170",null,"Agron Ext Hill 40167 ",null,"Agron Ext Hill 40167",null,null,null,null,null,null,null,null,null,null,null,null,null,null,null,null,null,null,null,null,null,null,"","GLCMF00313",null,"CHE 118B Organic Chemistry ",null,"CHE 118B Organic Chemistry","340012",null,"SHCS Vaccinations ",null,"SHCS Vaccinations"]
[null,null,null,null,"","63171",null,"A and RsAlfalfa Management 40168 ",null,"A and RsAlfalfa Management 40168",null,null,null,null,null,null,null,null,null,null,null,null,null,null,null,null,null,null,null,null,null,null,"","GLCMF00314",null,"CHE 118C Organic Chemistry ",null,"CHE 118C Organic Chemistry",null,null,"Courses ",null,"Courses"]
[null,null,null,null,"","63172",null,"A and RsCa Hay Testing Consortium 40169 ",null,"A and RsCa Hay Testing Consortium 40169",null,null,null,null,null,null,null,null,null,null,null,null,null,null,null,null,null,null,null,null,null,null,"","GLCMF00315",null,"CHE 124L Laboratory Methods in Inorganic Chemistry ",null,"CHE 124L Laboratory Methods in Inorganic Chemistry","380000",null,"CPR Courses ",null,"CPR Courses"]
[null,null,null,null,"","63173",null,"Sch Of Vet Med General Schlsp 40170 ",null,"Sch Of Vet Med General Schlsp 40170",null,null,null,null,null,null,null,null,null,null,null,null,null,null,null,null,null,null,null,null,null,null,"","GLCMF00316",null,"CHE 125 Advanced Methods in Physical Chemistry ",null,"CHE 125 Advanced Methods in Physical Chemistry","380001",null,"EMS Courses ",null,"EMS Courses"]
[null,null,null,null,"","63174",null,"A and Rs Research Goyal 40171 ",null,"A and Rs Research Goyal 40171",null,null,null,null,null,null,null,null,null,null,null,null,null,null,null,null,null,null,null,null,null,null,"","GLCMF00317",null,"CHE 129A Organic Chemistry ",null,"CHE 129A Organic Chemistry","380002",null,"EMT Courses ",null,"EMT Courses"]
[null,null,null,null,"","63175",null,"A and RsWeed Resis 40172 ",null,"A and RsWeed Resis 40172",null,null,null,null,null,null,null,null,null,null,null,null,null,null,null,null,null,null,null,null,null,null,"","GLCMF00318",null,"CHE 129B Organic Chemistry ",null,"CHE 129B Organic Chemistry","380003",null,"Student Fire Fighter Courses ",null,"Student Fire Fighter Courses"]
[null,null,null,null,"","63176",null,"A and RsCcia Wilkins 40173 ",null,"A and RsCcia Wilkins 40173",null,null,null,null,null,null,null,null,null,null,null,null,null,null,null,null,null,null,null,null,null,null,"","GLCMF00319",null,"CHE 129C Organic Chemistry ",null,"CHE 129C Organic Chemistry","380004",null,"West Valley Consortium Courses ",null,"West Valley Consortium Courses"]
[null,null,null,null,"","63177",null,"A and Rs Dry Bean Research Temple 40174 ",null,"A and Rs Dry Bean Research Temple 40174",null,null,null,null,null,null,null,null,null,null,null,null,null,null,null,null,null,null,null,null,null,null,"","GLCMF00320",null,"CHE 135 Advanced BioOrganic Chemistry Laboratory ",null,"CHE 135 Advanced BioOrganic Chemistry Laboratory","380005",null,"Paramedic Courses ",null,"Paramedic Courses"]
[null,null,null,null,"","63178",null,"Agr Ext StatictICAl Research 40175 ",null,"Agr Ext StatictICAl Research 40175",null,null,null,null,null,null,null,null,null,null,null,null,null,null,null,null,null,null,null,null,null,null,"","GLCMF00321",null,"CHE 145 Good Quality Practices ",null,"CHE 145 Good Quality Practices","380006",null,"Short Term Courses ",null,"Short Term Courses"]
[null,null,null,null,"","63180",null,"A and RsCcia Gepts 40177 ",null,"A and RsCcia Gepts 40177",null,null,null,null,null,null,null,null,null,null,null,null,null,null,null,null,null,null,null,null,null,null,"","GLCMF00322",null,"GEL 35 Rivers ",null,"GEL 35 Rivers","380007",null,"BML Boating and Dive Safety Courses MOTC1 ",null,"BML Boating and Dive Safety Courses MOTC1"]
[null,null,null,null,"","63181",null,"A and Rs Research Gepts 40178 ",null,"A and Rs Research Gepts 40178",null,null,null,null,null,null,null,null,null,null,null,null,null,null,null,null,null,null,null,null,null,null,"","GLCMF00323",null,"GEL 050L Physical Geology Laboratory ",null,"GEL 050L Physical Geology Laboratory","380008",null,"BML RH Classes ",null,"BML RH Classes"]
[null,null,null,null,"","63182",null,"A and Rs Research Kevin Rice 40179 ",null,"A and Rs Research Kevin Rice 40179",null,null,null,null,null,null,null,null,null,null,null,null,null,null,null,null,null,null,null,null,null,null,"","GLCMF00324",null,"GEL 60 Earth Materials Introduction ",null,"GEL 60 Earth Materials Introduction","381001",null,"Business Portfolio ",null,"Business Portfolio"]
[null,null,null,null,"","63183",null,"Dr Anthony Stannard Memorial Fd 40180 ",null,"Dr Anthony Stannard Memorial Fd 40180",null,null,null,null,null,null,null,null,null,null,null,null,null,null,null,null,null,null,null,null,null,null,"","GLCMF00325",null,"GEL 101L Earth Dynamics II StructureTectonics Laboratory ",null,"GEL 101L Earth Dynamics II StructureTectonics Laboratory","381002",null,"InfraTransportation Development Certificate ",null,"InfraTransportation Development Certificate"]
[null,null,null,null,"","63184",null,"BAE Precision Farming Enterprises 40181 ",null,"BAE Precision Farming Enterprises 40181",null,null,null,null,null,null,null,null,null,null,null,null,null,null,null,null,null,null,null,null,null,null,"","GLCMF00326",null,"GEL 103 Field Geology ",null,"GEL 103 Field Geology","381003",null,"Credit Services ",null,"Credit Services"]
[null,null,null,null,"","63185",null,"Env Tox Big BeansShibamoto 40182 ",null,"Env Tox Big BeansShibamoto 40182",null,null,null,null,null,null,null,null,null,null,null,null,null,null,null,null,null,null,null,null,null,null,"","GLCMF00327",null,"GEL 105 Earth Materials Igneous Rocks ",null,"GEL 105 Earth Materials Igneous Rocks","381004",null,"3D Printing ",null,"3D Printing"]
[null,null,null,null,"","63186",null,"Env Tox YH Products Shibamoto 40183 ",null,"Env Tox YH Products Shibamoto 40183",null,null,null,null,null,null,null,null,null,null,null,null,null,null,null,null,null,null,null,null,null,null,"","GLCMF00328",null,"GEL 106 Earth Materials Metamorphic Rocks ",null,"GEL 106 Earth Materials Metamorphic Rocks","381005",null,"Biomanufacturing Courses ",null,"Biomanufacturing Courses"]
[null,null,null,null,"","63187",null,"WFCB Kelt 40184 ",null,"WFCB Kelt 40184",null,null,null,null,null,null,null,null,null,null,null,null,null,null,null,null,null,null,null,null,null,null,"","GLCMF00329",null,"GEL 109L Earth History Sediments and Strata Laboratory ",null,"GEL 109L Earth History Sediments and Strata Laboratory","381006",null,"Cell Gene Therapy ",null,"Cell Gene Therapy"]
[null,null,null,null,"","63188",null,"IM Cardiology Symons 40185 ",null,"IM Cardiology Symons 40185",null,null,null,null,null,null,null,null,null,null,null,null,null,null,null,null,null,null,null,null,null,null,"","GLCMF00330",null,"GEL ESP 116N Oceanography ",null,"GEL ESP 116N Oceanography","381007",null,"Regulatory Science Certificate ",null,"Regulatory Science Certificate"]
[null,null,null,null,"","63190",null,"VMCAA Workshops Alternatives to Animal Research 40187 ",null,"VMCAA Workshops Alternatives to Animal Research 40187",null,null,null,null,null,null,null,null,null,null,null,null,null,null,null,null,null,null,null,null,null,null,"","GLCMF00331",null,"GEL 136 Ecogeomorphology of Rivers and Streams ",null,"GEL 136 Ecogeomorphology of Rivers and Streams","381008",null,"Engineering Material Science ",null,"Engineering Material Science"]
[null,null,null,null,"","63191",null,"Chao L Hsia Memorial Fd 40188 ",null,"Chao L Hsia Memorial Fd 40188",null,null,null,null,null,null,null,null,null,null,null,null,null,null,null,null,null,null,null,null,null,null,"","GLCMF00332",null,"GEL 140 Intro to Process Geomorphology ",null,"GEL 140 Intro to Process Geomorphology","381009",null,"Front End Development ",null,"Front End Development"]
[null,null,null,null,"","63193",null,"Downey Brand Seymour and Rohwer Award 40190 ",null,"Downey Brand Seymour and Rohwer Award 40190",null,null,null,null,null,null,null,null,null,null,null,null,null,null,null,null,null,null,null,null,null,null,"","GLCMF00333",null,"NAS 34 Native American Art Studio ",null,"NAS 34 Native American Art Studio","381010",null,"Machine Learning ",null,"Machine Learning"]
[null,null,null,null,"","63195",null,"Sci and Tech Competition Nutrition 40192 ",null,"Sci and Tech Competition Nutrition 40192",null,null,null,null,null,null,null,null,null,null,null,null,null,null,null,null,null,null,null,null,null,null,"","GLCMF00334",null,"PHE 1 Golf ",null,"PHE 1 Golf","381011",null,"Trilogy Educational Services ",null,"Trilogy Educational Services"]
[null,null,null,null,"","63196",null,"WM Keck Center Structural Biology 40193 ",null,"WM Keck Center Structural Biology 40193",null,null,null,null,null,null,null,null,null,null,null,null,null,null,null,null,null,null,null,null,null,null,"","GLCMF00335",null,"PSC 124L Comparative Neuroanatomy Laboratory ",null,"PSC 124L Comparative Neuroanatomy Laboratory","900144",null,"Cal Naturalist ",null,"Cal Naturalist"]
[null,null,null,null,"","63197",null,"Physics NA49 Research Cern Lab Brady 40194 ",null,"Physics NA49 Research Cern Lab Brady 40194",null,null,null,null,null,null,null,null,null,null,null,null,null,null,null,null,null,null,null,null,null,null,"","GLCMF00336",null,"PHY 007A General Physics ",null,"PHY 007A General Physics","900145",null,"Fire Restoration ",null,"Fire Restoration"]
[null,null,null,null,"","63198",null,"VMTH PhysICAl Facility 40195 ",null,"VMTH PhysICAl Facility 40195",null,null,null,null,null,null,null,null,null,null,null,null,null,null,null,null,null,null,null,null,null,null,"","GLCMF00337",null,"PHY 007B General Physics ",null,"PHY 007B General Physics",null,null,"Athletics ",null,"Athletics"]
[null,null,null,null,"","63199",null,"DANR San Diego Rsrch and Ed Prgms 40196 ",null,"DANR San Diego Rsrch and Ed Prgms 40196",null,null,null,null,null,null,null,null,null,null,null,null,null,null,null,null,null,null,null,null,null,null,"","GLCMF00338",null,"PHY 007C General Physics ",null,"PHY 007C General Physics","400000",null,"ICA Team Equipment ",null,"ICA Team Equipment"]
[null,null,null,null,"","63200",null,"Im Child Edu and Outreach Laird 40197 ",null,"Im Child Edu and Outreach Laird 40197",null,null,null,null,null,null,null,null,null,null,null,null,null,null,null,null,null,null,null,null,null,null,"","GLCMF00339",null,"PHY 009A Classical Physics ",null,"PHY 009A Classical Physics","400001",null,"ICA Fundraising ",null,"ICA Fundraising"]
[null,null,null,null,"","63205",null,"MedOphth Ophthalmology Advancement Fun 40202 ",null,"MedOphth Ophthalmology Advancement Fun 40202",null,null,null,null,null,null,null,null,null,null,null,null,null,null,null,null,null,null,null,null,null,null,"","GLCMF00340",null,"PHY 009B Classical Physics ",null,"PHY 009B Classical Physics","400002",null,"ICA Game Guarantees ",null,"ICA Game Guarantees"]
[null,null,null,null,"","63207",null,"CommunICAtion General Support 40204 ",null,"CommunICAtion General Support 40204",null,null,null,null,null,null,null,null,null,null,null,null,null,null,null,null,null,null,null,null,null,null,"","GLCMF00341",null,"PHY 009C Classical Physics ",null,"PHY 009C Classical Physics","400003",null,"ICA Game Expenses ",null,"ICA Game Expenses"]
[null,null,null,null,"","63208",null,"VMCCM Support Barthold 40205 ",null,"VMCCM Support Barthold 40205",null,null,null,null,null,null,null,null,null,null,null,null,null,null,null,null,null,null,null,null,null,null,"","GLCMF00342",null,"PHY 009D Classical Physics ",null,"PHY 009D Classical Physics","400004",null,"ICA Team Meals ",null,"ICA Team Meals"]
[null,null,null,null,"","63209",null,"ChemLarock Gift 40206 ",null,"ChemLarock Gift 40206",null,null,null,null,null,null,null,null,null,null,null,null,null,null,null,null,null,null,null,null,null,null,"","GLCMF00343",null,"MGV13 490A Topics in Management ",null,"MGV13 490A Topics in Management","400005",null,"ICA Office Supplies ",null,"ICA Office Supplies"]
[null,null,null,null,"","63210",null,"VMphrEquine Reproduction ResearchBall 40207 ",null,"VMphrEquine Reproduction ResearchBall 40207",null,null,null,null,null,null,null,null,null,null,null,null,null,null,null,null,null,null,null,null,null,null,"","GLCMF00344",null,"ABT 015 Wood Properties and Fabrication ",null,"ABT 015 Wood Properties and Fabrication","400006",null,"ICA Memberships ",null,"ICA Memberships"]
[null,null,null,null,"","63215",null,"Ryan Couch Memorial Award 40212 ",null,"Ryan Couch Memorial Award 40212",null,null,null,null,null,null,null,null,null,null,null,null,null,null,null,null,null,null,null,null,null,null,"","GLCMF00345",null,"TXC 162L Textile Fabrics Laboratory ",null,"TXC 162L Textile Fabrics Laboratory","400007",null,"ICA Miscellaneous ",null,"ICA Miscellaneous"]
[null,null,null,null,"","63216",null,"VMdo 50Th Annv Campaign 40213 ",null,"VMdo 50Th Annv Campaign 40213",null,null,null,null,null,null,null,null,null,null,null,null,null,null,null,null,null,null,null,null,null,null,"","GLCMF00346",null,"ANT 181 Archaeological Field Methods ",null,"ANT 181 Archaeological Field Methods","400008",null,"ICA Postage ",null,"ICA Postage"]
[null,null,null,null,"","63217",null,"Med Ortho Bay 40214 ",null,"Med Ortho Bay 40214",null,null,null,null,null,null,null,null,null,null,null,null,null,null,null,null,null,null,null,null,null,null,"","GLCMF00347",null,"ART 101B Intermediate Painting Figure ",null,"ART 101B Intermediate Painting Figure","400009",null,"ICA Printing ",null,"ICA Printing"]
[null,null,null,null,"","63218",null,"VMpmiMosquito Surveillance 40215 ",null,"VMpmiMosquito Surveillance 40215",null,null,null,null,null,null,null,null,null,null,null,null,null,null,null,null,null,null,null,null,null,null,"","GLCMF00348",null,"ART 101C Intermediate Painting Watercolor ",null,"ART 101C Intermediate Painting Watercolor","400010",null,"ICA Professional Travel ",null,"ICA Professional Travel"]
[null,null,null,null,"","63220",null,"Center For The Arts Construction 40217 ",null,"Center For The Arts Construction 40217",null,null,null,null,null,null,null,null,null,null,null,null,null,null,null,null,null,null,null,null,null,null,"","GLCMF00349",null,"ART 101D Intermediate Painting Installation ",null,"ART 101D Intermediate Painting Installation","400011",null,"ICA Recruiting ",null,"ICA Recruiting"]
[null,null,null,null,"","63227",null,"A and RS Rustici Tate 40224 ",null,"A and RS Rustici Tate 40224",null,null,null,null,null,null,null,null,null,null,null,null,null,null,null,null,null,null,null,null,null,null,"","GLCMF00350",null,"ART 103AN Intermediate Drawing ",null,"ART 103AN Intermediate Drawing","400012",null,"ICA Team Travel ",null,"ICA Team Travel"]
[null,null,null,null,"","63228",null,"UCD RetireeS Association 40225 ",null,"UCD RetireeS Association 40225",null,null,null,null,null,null,null,null,null,null,null,null,null,null,null,null,null,null,null,null,null,null,"","GLCMF00351",null,"ART 103BN Intermediate Drawing Figure ",null,"ART 103BN Intermediate Drawing Figure","400013",null,"ICA Awards ",null,"ICA Awards"]
[null,null,null,null,"","63229",null,"Avian Sci Rundel Gift Delany 40226 ",null,"Avian Sci Rundel Gift Delany 40226",null,null,null,null,null,null,null,null,null,null,null,null,null,null,null,null,null,null,null,null,null,null,"","GLCMF00352",null,"ART 113 Interdisciplinary Art ",null,"ART 113 Interdisciplinary Art","400014",null,"ICA Medical ",null,"ICA Medical"]
[null,null,null,null,"","63230",null,"Frank and Pinkie Matthews Award 40227 ",null,"Frank and Pinkie Matthews Award 40227",null,null,null,null,null,null,null,null,null,null,null,null,null,null,null,null,null,null,null,null,null,null,"","GLCMF00353",null,"ART 129 Advanced Printmaking ",null,"ART 129 Advanced Printmaking","400015",null,"ICA Payroll ",null,"ICA Payroll"]
[null,null,null,null,"","63231",null,"Law Deborah J Frick Current Gift 40228 ",null,"Law Deborah J Frick Current Gift 40228",null,null,null,null,null,null,null,null,null,null,null,null,null,null,null,null,null,null,null,null,null,null,"","GLCMF00354",null,"ART 138 The Artists Book ",null,"ART 138 The Artists Book","400016",null,"ICA Phones ",null,"ICA Phones"]
[null,null,null,null,"","63232",null,"Rural SociologICAl SocietyKyle 40229 ",null,"Rural SociologICAl SocietyKyle 40229",null,null,null,null,null,null,null,null,null,null,null,null,null,null,null,null,null,null,null,null,null,null,"","GLCMF00355",null,"CDM 104 Documentary Production ",null,"CDM 104 Documentary Production","400017",null,"ICA Banquet ",null,"ICA Banquet"]
[null,null,null,null,"","63233",null,"MusicBuchla Resurrection 40230 ",null,"MusicBuchla Resurrection 40230",null,null,null,null,null,null,null,null,null,null,null,null,null,null,null,null,null,null,null,null,null,null,"","GLCMF00356",null,"DES 16 Graphic Design and Computer Technology ",null,"DES 16 Graphic Design and Computer Technology","400018",null,"Athletics Game Officials ",null,"Athletics Game Officials"]
[null,null,null,null,"","63234",null,"Im Housestaff Education Program 40231 ",null,"Im Housestaff Education Program 40231",null,null,null,null,null,null,null,null,null,null,null,null,null,null,null,null,null,null,null,null,null,null,"","GLCMF00357",null,"DES 50 Introduction to Three Dimensional Design ",null,"DES 50 Introduction to Three Dimensional Design",null,null,"Housing Activities ",null,"Housing Activities"]
[null,null,null,null,"","63236",null,"Chem Engr Research Stroeve 40233 ",null,"Chem Engr Research Stroeve 40233",null,null,null,null,null,null,null,null,null,null,null,null,null,null,null,null,null,null,null,null,null,null,"","GLCMF00358",null,"GEL 116N Oceanography ",null,"GEL 116N Oceanography","402000",null,"Housing Activity ",null,"Housing Activity"]
[null,null,null,null,"","63237",null,"DBS Sacramento Area Commerce and Trade Org 40234 ",null,"DBS Sacramento Area Commerce and Trade Org 40234",null,null,null,null,null,null,null,null,null,null,null,null,null,null,null,null,null,null,null,null,null,null,"","GLCMF00359",null,"DRA 028 Entertainment Engineering and Management Stagecraft to Stage Management ",null,"DRA 028 Entertainment Engineering and Management Stagecraft to Stage Management","402100",null,"Staff Events Catering Supplies ",null,"Staff Events Catering Supplies"]
[null,null,null,null,"","63240",null,"WFCB Inland Fishes Moyle 40237 ",null,"WFCB Inland Fishes Moyle 40237",null,null,null,null,null,null,null,null,null,null,null,null,null,null,null,null,null,null,null,null,null,null,"","GLCMF00360",null,"VEN135 Wine Technology and Winery Systems ",null,"VEN135 Wine Technology and Winery Systems","402101",null,"Staff Meal Product Distribution ",null,"Staff Meal Product Distribution"]
[null,null,null,null,"","63242",null,"Entom Mite Resistance 40239 ",null,"Entom Mite Resistance 40239",null,null,null,null,null,null,null,null,null,null,null,null,null,null,null,null,null,null,null,null,null,null,"","GLCMF00361",null,"CRD 156 Community Economic Development ",null,"CRD 156 Community Economic Development","402102",null,"Staff Meal Controllable Distribution ",null,"Staff Meal Controllable Distribution"]
[null,null,null,null,"","63243",null,"English Ca Literature Project 40240 ",null,"English Ca Literature Project 40240",null,null,null,null,null,null,null,null,null,null,null,null,null,null,null,null,null,null,null,null,null,null,"","GLCMF00362",null,"CRD 164 Theories of Organizations and Their Role in Comm Change ",null,"CRD 164 Theories of Organizations and Their Role in Comm Change","402103",null,"Controllable Distributions ",null,"Controllable Distributions"]
[null,null,null,null,"","63244",null,"VMTH Hodag Neurology Fd 40241 ",null,"VMTH Hodag Neurology Fd 40241",null,null,null,null,null,null,null,null,null,null,null,null,null,null,null,null,null,null,null,null,null,null,"","GLCMF00363",null,"PLB 105 Plant Anatomy ",null,"PLB 105 Plant Anatomy","402104",null,"Marketing Program ",null,"Marketing Program"]
[null,null,null,null,"","63245",null,"Ia Pete Gibson Memeorial Fd 40242 ",null,"Ia Pete Gibson Memeorial Fd 40242",null,null,null,null,null,null,null,null,null,null,null,null,null,null,null,null,null,null,null,null,null,null,"","GLCMF00364",null,"ETX 020 Introduction to Forensic Science ",null,"ETX 020 Introduction to Forensic Science",null,null,"Auxiliary Tax ",null,"Auxiliary Tax"]
[null,null,null,null,"","63248",null,"Nurti Research Dueker 40246 ",null,"Nurti Research Dueker 40246",null,null,null,null,null,null,null,null,null,null,null,null,null,null,null,null,null,null,null,null,null,null,"","GLCMF00365",null,"LDA 191 Landscape Architecture Planning and Design Studio ",null,"LDA 191 Landscape Architecture Planning and Design Studio","402110",null,"Taxable ",null,"Taxable"]
[null,null,null,null,"","63250",null,"Nutri Hoffman La Roche LevuongMurphy 40248 ",null,"Nutri Hoffman La Roche LevuongMurphy 40248",null,null,null,null,null,null,null,null,null,null,null,null,null,null,null,null,null,null,null,null,null,null,"","GLCMF00366",null,"LDA 202 Methods in Design and Landscape Research ",null,"LDA 202 Methods in Design and Landscape Research","402111",null,"Nontaxable ",null,"Nontaxable"]
[null,null,null,null,"","63251",null,"Im Research Flynn 40249 ",null,"Im Research Flynn 40249",null,null,null,null,null,null,null,null,null,null,null,null,null,null,null,null,null,null,null,null,null,null,"","GLCMF00367",null,"LDA 205 Urban Planning and Design ",null,"LDA 205 Urban Planning and Design","402112",null,"Product Purchases ",null,"Product Purchases"]
[null,null,null,null,"","63252",null,"Med Orth Research Sharkey 40250 ",null,"Med Orth Research Sharkey 40250",null,null,null,null,null,null,null,null,null,null,null,null,null,null,null,null,null,null,null,null,null,null,"","GLCMF00368",null,"LDA 215 What is Infrastructure Critical Infrastructure Studies ",null,"LDA 215 What is Infrastructure Critical Infrastructure Studies","402113",null,"Taxable Controllables ",null,"Taxable Controllables"]
[null,null,null,null,"","63253",null,"Exercise Sci Am Petroleum InstAdams 40251 ",null,"Exercise Sci Am Petroleum InstAdams 40251",null,null,null,null,null,null,null,null,null,null,null,null,null,null,null,null,null,null,null,null,null,null,"","GLCMF00369",null,"LDA 280 Landscape Conservation ",null,"LDA 280 Landscape Conservation","402114",null,"NonTaxable Products ",null,"NonTaxable Products"]
[null,null,null,null,"","63255",null,"UCDF T Jackson Chair In The History 40253 ",null,"UCDF T Jackson Chair In The History 40253",null,null,null,null,null,null,null,null,null,null,null,null,null,null,null,null,null,null,null,null,null,null,"","GLCMF00370",null,"WFC 155 Wildlife Habitat Ecology and Conservation ",null,"WFC 155 Wildlife Habitat Ecology and Conservation","402115",null,"NonTaxable Controllables ",null,"NonTaxable Controllables"]
[null,null,null,null,"","63257",null,"Provosts Davis Honors Challng Director 40255 ",null,"Provosts Davis Honors Challng Director 40255",null,null,null,null,null,null,null,null,null,null,null,null,null,null,null,null,null,null,null,null,null,null,"","GLCMF00371",null,"WFC 156 Plant Geography ",null,"WFC 156 Plant Geography","402116",null,"Taxable Products ",null,"Taxable Products"]
[null,null,null,null,"","63258",null,"VM Westminster Kennel Fdn Schlsp 40256 ",null,"VM Westminster Kennel Fdn Schlsp 40256",null,null,null,null,null,null,null,null,null,null,null,null,null,null,null,null,null,null,null,null,null,null,"","GLCMF00372",null,"WFC 157 Coastal Ecosystems ",null,"WFC 157 Coastal Ecosystems",null,null,"Housing and Dining Minor Services ",null,"Housing and Dining Minor Services"]
[null,null,null,null,"","63259",null,"VM Academic Programs 40257 ",null,"VM Academic Programs 40257",null,null,null,null,null,null,null,null,null,null,null,null,null,null,null,null,null,null,null,null,null,null,"","GLCMF00373",null,"ANS 018 Introductory Aquaculture ",null,"ANS 018 Introductory Aquaculture","402300",null,"Miscellaneous Commission ",null,"Miscellaneous Commission"]
[null,null,null,null,"","63263",null,"BmlDocent Program 40261 ",null,"BmlDocent Program 40261",null,null,null,null,null,null,null,null,null,null,null,null,null,null,null,null,null,null,null,null,null,null,"","GLCMF00374",null,"PLS 150 Sustainability and Agroecosystem Mgmt ",null,"PLS 150 Sustainability and Agroecosystem Mgmt","402301",null,"Key Services ",null,"Key Services"]
[null,null,null,null,"","63264",null,"Bml Research Chang 40262 ",null,"Bml Research Chang 40262",null,null,null,null,null,null,null,null,null,null,null,null,null,null,null,null,null,null,null,null,null,null,"","GLCMF00375",null,"SSC 109 Sustainable Nutrition Mgmt ",null,"SSC 109 Sustainable Nutrition Mgmt","402302",null,"Cancellation Fee ",null,"Cancellation Fee"]
[null,null,null,null,"","63266",null,"Lawr Research Ustin 40264 ",null,"Lawr Research Ustin 40264",null,null,null,null,null,null,null,null,null,null,null,null,null,null,null,null,null,null,null,null,null,null,"","GLCMF00376",null,"WFC 100 Field Methods in Wildlife Fish and Cons Bio ",null,"WFC 100 Field Methods in Wildlife Fish and Cons Bio","402303",null,"Parking Fee ",null,"Parking Fee"]
[null,null,null,null,"","63269",null,"VM MolMitochondrial Disorders 40267 ",null,"VM MolMitochondrial Disorders 40267",null,null,null,null,null,null,null,null,null,null,null,null,null,null,null,null,null,null,null,null,null,null,"","GLCMF00377",null,"DES 145 Visual Communications ",null,"DES 145 Visual Communications","402304",null,"Late Fee ",null,"Late Fee"]
[null,null,null,null,"","63270",null,"UG Holman Schlsp 40268 ",null,"UG Holman Schlsp 40268",null,null,null,null,null,null,null,null,null,null,null,null,null,null,null,null,null,null,null,null,null,null,"","GLCMF00378",null,"WFC 120 Biology Conservation of Fishes ",null,"WFC 120 Biology Conservation of Fishes","402305",null,"Mail Box ",null,"Mail Box"]
[null,null,null,null,"","63271",null,"UG Lawn and Garden Marketing Assoc Schp 40269 ",null,"UG Lawn and Garden Marketing Assoc Schp 40269",null,null,null,null,null,null,null,null,null,null,null,null,null,null,null,null,null,null,null,null,null,null,"","GLCMF00379",null,"GLCMF Project for WFC 120 Biology and Conservation of Fishes ",null,"GLCMF Project for WFC 120 Biology and Conservation of Fishes","402306",null,"Housekeeping Chemicals ",null,"Housekeeping Chemicals"]
[null,null,null,null,"","63272",null,"VM CCAH Animal Memorial 40270 ",null,"VM CCAH Animal Memorial 40270",null,null,null,null,null,null,null,null,null,null,null,null,null,null,null,null,null,null,null,null,null,null,"","GLCMF00380",null,"EMS 182 Course Material Fee ",null,"EMS 182 Course Material Fee","402307",null,"Housekeeping Paper ",null,"Housekeeping Paper"]
[null,null,null,null,"","63273",null,"Equine Med Director Support 40271 ",null,"Equine Med Director Support 40271",null,null,null,null,null,null,null,null,null,null,null,null,null,null,null,null,null,null,null,null,null,null,"","GLCMF00381",null,"EME50 Mechanical Design ",null,"EME50 Mechanical Design","402308",null,"Housekeeping Disposables ",null,"Housekeeping Disposables"]
[null,null,null,null,"","63275",null,"FS and T Mcbeth Foundation Harris 40273 ",null,"FS and T Mcbeth Foundation Harris 40273",null,null,null,null,null,null,null,null,null,null,null,null,null,null,null,null,null,null,null,null,null,null,"","GLCMF00382",null,"VEN 127 Course Material Fee ",null,"VEN 127 Course Material Fee","402309",null,"Kitchen Equipment ",null,"Kitchen Equipment"]
[null,null,null,null,"","63276",null,"DANR Lassen Extension Support Lile 40274 ",null,"DANR Lassen Extension Support Lile 40274",null,null,null,null,null,null,null,null,null,null,null,null,null,null,null,null,null,null,null,null,null,null,"","GLCMF00383",null,"BIM 177 Introduction to Rapid Prototyping for BME ",null,"BIM 177 Introduction to Rapid Prototyping for BME","402310",null,"Raw Food Expenses ",null,"Raw Food Expenses"]
[null,null,null,null,"","63277",null,"VM CVDLS Polyoma Res St Leger 40275 ",null,"VM CVDLS Polyoma Res St Leger 40275",null,null,null,null,null,null,null,null,null,null,null,null,null,null,null,null,null,null,null,null,null,null,"","GLCMF00384",null,"BIM 110 BME Senior Design ",null,"BIM 110 BME Senior Design","402311",null,"Master Lease Grounds ",null,"Master Lease Grounds"]
[null,null,null,null,"","63278",null,"Natural Reserve System 40276 ",null,"Natural Reserve System 40276",null,null,null,null,null,null,null,null,null,null,null,null,null,null,null,null,null,null,null,null,null,null,"","GLCMF00385",null,"BIM 118 Microelectromechanical Systems ",null,"BIM 118 Microelectromechanical Systems","402312",null,"Master Lease Custodial ",null,"Master Lease Custodial"]
[null,null,null,null,"","63279",null,"CahPeterson Trust Brain Cancer 40278 ",null,"CahPeterson Trust Brain Cancer 40278",null,null,null,null,null,null,null,null,null,null,null,null,null,null,null,null,null,null,null,null,null,null,"","GLCMF00386",null,"BIM 161 Biomolecular Engineering ",null,"BIM 161 Biomolecular Engineering","402313",null,"Contingency ",null,"Contingency"]
[null,null,null,null,"","63282",null,"MAE Undergraduate Stdt Program 40281 ",null,"MAE Undergraduate Stdt Program 40281",null,null,null,null,null,null,null,null,null,null,null,null,null,null,null,null,null,null,null,null,null,null,"","GLCMF00387",null,"CBS Temp Teaching ",null,"CBS Temp Teaching","402314",null,"COMMISSARY PRODUCT PURCHASES ",null,"COMMISSARY PRODUCT PURCHASES"]
[null,null,null,null,"","63284",null,"Med Derm Research Lawry 40283 ",null,"Med Derm Research Lawry 40283",null,null,null,null,null,null,null,null,null,null,null,null,null,null,null,null,null,null,null,null,null,null,"","GLCMF00388",null,"LDA 216 Food and the City ",null,"LDA 216 Food and the City","402315",null,"CREDIT CARD FEES ",null,"CREDIT CARD FEES"]
[null,null,null,null,"","63285",null,"Chem Metal Chelating Res Mears 40284 ",null,"Chem Metal Chelating Res Mears 40284",null,null,null,null,null,null,null,null,null,null,null,null,null,null,null,null,null,null,null,null,null,null,"","GLCMF00389",null,"PLS 49 Organic Crop Production Practices ",null,"PLS 49 Organic Crop Production Practices","402316",null,"CARE PACKAGES ",null,"CARE PACKAGES"]
[null,null,null,null,"","63286",null,"Plant Path Dept Support 40285 ",null,"Plant Path Dept Support 40285",null,null,null,null,null,null,null,null,null,null,null,null,null,null,null,null,null,null,null,null,null,null,"","GLCMF00390",null,"PLS 148 Field Course Flora of Northern Californias Mountains ",null,"PLS 148 Field Course Flora of Northern Californias Mountains","402317",null,"HOUSING TELEPHONE ",null,"HOUSING TELEPHONE"]
[null,null,null,null,"","63287",null,"Im Cardiology Res Bonham 40286 ",null,"Im Cardiology Res Bonham 40286",null,null,null,null,null,null,null,null,null,null,null,null,null,null,null,null,null,null,null,null,null,null,"","GLCMF00391",null,"MCB 120L Molec Biol and Biochem Lab ",null,"MCB 120L Molec Biol and Biochem Lab","402318",null,"FOOD REBATES AND CREDITS ",null,"FOOD REBATES AND CREDITS"]
[null,null,null,null,"","63288",null,"Im Endocrinology Res Prescott 40287 ",null,"Im Endocrinology Res Prescott 40287",null,null,null,null,null,null,null,null,null,null,null,null,null,null,null,null,null,null,null,null,null,null,"","GLCMFCBS01",null,"CBS teaching Support ",null,"CBS teaching Support","402319",null,"EXTERMINATING ",null,"EXTERMINATING"]
[null,null,null,null,"","63289",null,"Inter Med Glaxo Educ and Res Meyers 40288 ",null,"Inter Med Glaxo Educ and Res Meyers 40288",null,null,null,null,null,null,null,null,null,null,null,null,null,null,null,null,null,null,null,null,null,null,"","GLCMFEB125",null,"EBS 125 Heat Transfer in Biological Systems ",null,"EBS 125 Heat Transfer in Biological Systems","402320",null,"GROUND AGREEMENTS ",null,"GROUND AGREEMENTS"]
[null,null,null,null,"","63290",null,"UCDMCAdult Infusion Ctr General Sup 40289 ",null,"UCDMCAdult Infusion Ctr General Sup 40289",null,null,null,null,null,null,null,null,null,null,null,null,null,null,null,null,null,null,null,null,null,null,"","GLCMFEB128",null,"EBS 128 Biomechanics and Ergonomics ",null,"EBS 128 Biomechanics and Ergonomics","402321",null,"LINEN RENTAL ",null,"LINEN RENTAL"]
[null,null,null,null,"","63291",null,"NematologyVrs DnrsDept Support 40290 ",null,"NematologyVrs DnrsDept Support 40290",null,null,null,null,null,null,null,null,null,null,null,null,null,null,null,null,null,null,null,null,null,null,"","GLCMFEB130",null,"EBS 130 Modeling of Dynamic Processes in Biological Systems ",null,"EBS 130 Modeling of Dynamic Processes in Biological Systems","402322",null,"STUDENT MEALS ",null,"STUDENT MEALS"]
[null,null,null,null,"","63292",null,"VMbPulmonary Fibrosis ResGiri 40291 ",null,"VMbPulmonary Fibrosis ResGiri 40291",null,null,null,null,null,null,null,null,null,null,null,null,null,null,null,null,null,null,null,null,null,null,"","GLCMFEB161",null,"EBS 161 Kinetics and Bioreactor Design ",null,"EBS 161 Kinetics and Bioreactor Design","402323",null,"DINING FOOD DONATIONS ",null,"DINING FOOD DONATIONS"]
[null,null,null,null,"","63294",null,"George Antonio Bowman Schlsp 40293 ",null,"George Antonio Bowman Schlsp 40293",null,null,null,null,null,null,null,null,null,null,null,null,null,null,null,null,null,null,null,null,null,null,"","GLCMFEB170",null,"EBS 170 Engineering Design and Professional Responsibilities ",null,"EBS 170 Engineering Design and Professional Responsibilities","402324",null,"DINING HOSTED AND SUPPORTED EVENTS ",null,"DINING HOSTED AND SUPPORTED EVENTS"]
[null,null,null,null,"","63295",null,"MM Bruce A Bailey Schlsp 40294 ",null,"MM Bruce A Bailey Schlsp 40294",null,null,null,null,null,null,null,null,null,null,null,null,null,null,null,null,null,null,null,null,null,null,"","GLCMFEB265",null,"EBS 265 Design and Analysis of Engineering ",null,"EBS 265 Design and Analysis of Engineering","402325",null,"HOSPITALITY SUPPLIES ",null,"HOSPITALITY SUPPLIES"]
[null,null,null,null,"","63296",null,"MM W Brian Crews Schlsp 40295 ",null,"MM W Brian Crews Schlsp 40295",null,null,null,null,null,null,null,null,null,null,null,null,null,null,null,null,null,null,null,null,null,null,"","GLCMFEBS01",null,"EBS 01 Foundations of Biological Systems Engineering ",null,"EBS 01 Foundations of Biological Systems Engineering","402326",null,"BEREAVEMENT ",null,"BEREAVEMENT"]
[null,null,null,null,"","63297",null,"Entom Research Summers 40296 ",null,"Entom Research Summers 40296",null,null,null,null,null,null,null,null,null,null,null,null,null,null,null,null,null,null,null,null,null,null,"","GLCMFEN106",null,"EN 106 Engineering Problem Solving ",null,"EN 106 Engineering Problem Solving","402327",null,"NON HAZARDOUS WASTE REMOVAL ",null,"NON HAZARDOUS WASTE REMOVAL"]
[null,null,null,null,"","63298",null,"LibKipling Collection 40297 ",null,"LibKipling Collection 40297",null,null,null,null,null,null,null,null,null,null,null,null,null,null,null,null,null,null,null,null,null,null,"","GLSUMMERTE",null,"CBS SUMMER TEACHING ",null,"CBS SUMMER TEACHING",null,null,"Medical Activities ",null,"Medical Activities"]
[null,null,null,null,"","63299",null,"NeurologyHoYe Lin Gift 40298 ",null,"NeurologyHoYe Lin Gift 40298",null,null,null,null,null,null,null,null,null,null,null,null,null,null,null,null,null,null,null,null,null,null,"",null,null,"Donor Relations Development Projects ",null,"Donor Relations Development Projects","403001",null,"Grand Rounds ",null,"Grand Rounds"]
[null,null,null,null,"","63300",null,"Dennis and Olga Raveling Mem Lectureship 40299 ",null,"Dennis and Olga Raveling Mem Lectureship 40299",null,null,null,null,null,null,null,null,null,null,null,null,null,null,null,null,null,null,null,null,null,null,"","GLOEPC0001",null,"Davis Chancellors Club Events DCC ",null,"Davis Chancellors Club Events DCC","403002",null,"Fellows ",null,"Fellows"]
[null,null,null,null,"","63301",null,"VMsrsJapan Racing AssocJones 40300 ",null,"VMsrsJapan Racing AssocJones 40300",null,null,null,null,null,null,null,null,null,null,null,null,null,null,null,null,null,null,null,null,null,null,"","GLOEPC0002",null,"Virtual Parent Event ASGP ",null,"Virtual Parent Event ASGP","403003",null,"Residents ",null,"Residents"]
[null,null,null,null,"","63302",null,"WrcCa Biodiversity Council 40301 ",null,"WrcCa Biodiversity Council 40301",null,null,null,null,null,null,null,null,null,null,null,null,null,null,null,null,null,null,null,null,null,null,"","GLOEPC0003",null,"Shields Society Luncheon Planned Giving ",null,"Shields Society Luncheon Planned Giving","403004",null,"Women in Med Health Sciences ",null,"Women in Med Health Sciences"]
[null,null,null,null,"","63304",null,"Van Gillis Memorial Fd Goodnight 40303 ",null,"Van Gillis Memorial Fd Goodnight 40303",null,null,null,null,null,null,null,null,null,null,null,null,null,null,null,null,null,null,null,null,null,null,"","GLPSPC0001",null,"Principal Gifts Impact Reports ",null,"Principal Gifts Impact Reports","403005",null,"Forensics ",null,"Forensics"]
[null,null,null,null,"","63305",null,"RM Cello Distinguished Lecture Series 40304 ",null,"RM Cello Distinguished Lecture Series 40304",null,null,null,null,null,null,null,null,null,null,null,null,null,null,null,null,null,null,null,null,null,null,"","GLPSPC0002",null,"Annual Giving Stewardship Mailer ASGP ",null,"Annual Giving Stewardship Mailer ASGP",null,null,"Perkins Loan ",null,"Perkins Loan"]
[null,null,null,null,"","63306",null,"FS and T Various Donors Harris 40305 ",null,"FS and T Various Donors Harris 40305",null,null,null,null,null,null,null,null,null,null,null,null,null,null,null,null,null,null,null,null,null,null,"","GLPSPC0003",null,"Donor Relations Program Printed Materials ",null,"Donor Relations Program Printed Materials","450000",null,"PERK Collections Commissions ",null,"PERK Collections Commissions"]
[null,null,null,null,"","63307",null,"Med Path Res and Edu Morris 40306 ",null,"Med Path Res and Edu Morris 40306",null,null,null,null,null,null,null,null,null,null,null,null,null,null,null,null,null,null,null,null,null,null,"","GLPSPC0004",null,"DCC Postage ",null,"DCC Postage","450001",null,"PERK Administrative Expense ",null,"PERK Administrative Expense"]
[null,null,null,null,"","63310",null,"ASUCDKdvsEngineering Equipment 40309 ",null,"ASUCDKdvsEngineering Equipment 40309",null,null,null,null,null,null,null,null,null,null,null,null,null,null,null,null,null,null,null,null,null,null,"","GLPSPP0001",null,"Personalized Photo Books Chair Events ",null,"Personalized Photo Books Chair Events","450002",null,"PERK Costs and Losses ",null,"PERK Costs and Losses"]
[null,null,null,null,"","63311",null,"Cs HpMa Research 40310 ",null,"Cs HpMa Research 40310",null,null,null,null,null,null,null,null,null,null,null,null,null,null,null,null,null,null,null,null,null,null,"","GLPSPP0002",null,"Chancellors Laureates Reception ",null,"Chancellors Laureates Reception","450003",null,"PERK Teachers SVC Cancelation ",null,"PERK Teachers SVC Cancelation"]
[null,null,null,null,"","63313",null,"VMBilJac Foods Inc Schlsp 40312 ",null,"VMBilJac Foods Inc Schlsp 40312",null,null,null,null,null,null,null,null,null,null,null,null,null,null,null,null,null,null,null,null,null,null,"","GLPSPP0003",null,"Chancellor Notecard Design Print ",null,"Chancellor Notecard Design Print","450004",null,"PERK D and D Cancelation ",null,"PERK D and D Cancelation"]
[null,null,null,null,"","63314",null,"VMElsa Fenner Memorial Schlsp 40313 ",null,"VMElsa Fenner Memorial Schlsp 40313",null,null,null,null,null,null,null,null,null,null,null,null,null,null,null,null,null,null,null,null,null,null,"","GLPSPP0004",null,"Custom Personalized UC Davis Experience ",null,"Custom Personalized UC Davis Experience","450005",null,"PERK Fed Gov Assigned Cancelation ",null,"PERK Fed Gov Assigned Cancelation"]
[null,null,null,null,"","63315",null,"VM Yolanda Hurley Schlsp 40314 ",null,"VM Yolanda Hurley Schlsp 40314",null,null,null,null,null,null,null,null,null,null,null,null,null,null,null,null,null,null,null,null,null,null,"","GLR0000093",null,"PD PSS CSS Program ",null,"PD PSS CSS Program","450006",null,"PERK Law Enforcement Cancelation ",null,"PERK Law Enforcement Cancelation"]
[null,null,null,null,"","63316",null,"Wrrc Educational Activities 40315 ",null,"Wrrc Educational Activities 40315",null,null,null,null,null,null,null,null,null,null,null,null,null,null,null,null,null,null,null,null,null,null,"","GLRBLD2801",null,"ANR BUILDING RATE ",null,"ANR BUILDING RATE","450007",null,"PERK Military Service Cancellation ",null,"PERK Military Service Cancellation"]
[null,null,null,null,"","63318",null,"Roland Marchand Memorial 40317 ",null,"Roland Marchand Memorial 40317",null,null,null,null,null,null,null,null,null,null,null,null,null,null,null,null,null,null,null,null,null,null,"","GLRCWEB001",null,"ANR WEB RATE ",null,"ANR WEB RATE","450008",null,"PERK Other Cancelations ",null,"PERK Other Cancelations"]
[null,null,null,null,"","63320",null,"LAWR Zeneca Ag Products Zhang 40319 ",null,"LAWR Zeneca Ag Products Zhang 40319",null,null,null,null,null,null,null,null,null,null,null,null,null,null,null,null,null,null,null,null,null,null,"","GLRFPMADMN",null,"ANR CONTRACT ADMINISTRATION RATE ",null,"ANR CONTRACT ADMINISTRATION RATE","450009",null,"PERK Fed Reimbursed Cancelations ",null,"PERK Fed Reimbursed Cancelations"]
[null,null,null,null,"","63321",null,"LAWR ZenecaZhang Wallender 40320 ",null,"LAWR ZenecaZhang Wallender 40320",null,null,null,null,null,null,null,null,null,null,null,null,null,null,null,null,null,null,null,null,null,null,"","GLRFPMMGMT",null,"ANR PROJECT MANAGEMENT RATE ",null,"ANR PROJECT MANAGEMENT RATE","450010",null,"PERK Bankruptcy Cancelations ",null,"PERK Bankruptcy Cancelations"]
[null,null,null,null,"","63322",null,"Pomology RS Livermore Fd 40321 ",null,"Pomology RS Livermore Fd 40321",null,null,null,null,null,null,null,null,null,null,null,null,null,null,null,null,null,null,null,null,null,null,"","GLRSPP0001",null,"Letterhead Envelopes Invitation Design Postage Supplies ",null,"Letterhead Envelopes Invitation Design Postage Supplies","450011",null,"PERK Volunteer Service Cancelations ",null,"PERK Volunteer Service Cancelations"]
[null,null,null,null,"","63323",null,"An Sci Boyce Jr Gift Feed Mill 40322 ",null,"An Sci Boyce Jr Gift Feed Mill 40322",null,null,null,null,null,null,null,null,null,null,null,null,null,null,null,null,null,null,null,null,null,null,"","GLRSPP0002",null,"Parking Passes ",null,"Parking Passes","450012",null,"PERK C F EI Cancelations ",null,"PERK C F EI Cancelations"]
[null,null,null,null,"","63324",null,"ExssAdams Amer Petro Inst 40323 ",null,"ExssAdams Amer Petro Inst 40323",null,null,null,null,null,null,null,null,null,null,null,null,null,null,null,null,null,null,null,null,null,null,"","GLRSPP0003",null,"Donor Relations Coop ",null,"Donor Relations Coop","450013",null,"PERK Nurse or Medical Tech Cancelations ",null,"PERK Nurse or Medical Tech Cancelations"]
[null,null,null,null,"","63325",null,"DANR Sonoma CoWater QualityBennett 40324 ",null,"DANR Sonoma CoWater QualityBennett 40324",null,null,null,null,null,null,null,null,null,null,null,null,null,null,null,null,null,null,null,null,null,null,"","GLRSPP0004",null,"Custom UCD Experience ",null,"Custom UCD Experience","450014",null,"PERK Public Defender ",null,"PERK Public Defender"]
[null,null,null,null,"","63326",null,"VM Ca Veterinary Medicine Fdn Schp 40325 ",null,"VM Ca Veterinary Medicine Fdn Schp 40325",null,null,null,null,null,null,null,null,null,null,null,null,null,null,null,null,null,null,null,null,null,null,"","GLRSPP0005",null,"Estate Planning Session LGS ",null,"Estate Planning Session LGS","450015",null,"PERK PreK Child Care Cancelations ",null,"PERK PreK Child Care Cancelations"]
[null,null,null,null,"","63327",null,"CAES The Farm 40326 ",null,"CAES The Farm 40326",null,null,null,null,null,null,null,null,null,null,null,null,null,null,null,null,null,null,null,null,null,null,"","GLRSPP0006",null,"Chancellors Choice Academic Publication ",null,"Chancellors Choice Academic Publication","450016",null,"PERK Firefighter Cancelations ",null,"PERK Firefighter Cancelations"]
[null,null,null,null,"","63328",null,"MAE Department Support 40327 ",null,"MAE Department Support 40327",null,null,null,null,null,null,null,null,null,null,null,null,null,null,null,null,null,null,null,null,null,null,"","GLRSPP0007",null,"Flex membership increases ",null,"Flex membership increases","450017",null,"PERK Speech Pathology Cancelations ",null,"PERK Speech Pathology Cancelations"]
[null,null,null,null,"","63329",null,"Med Orth Research Trauner 40328 ",null,"Med Orth Research Trauner 40328",null,null,null,null,null,null,null,null,null,null,null,null,null,null,null,null,null,null,null,null,null,null,"","GLRSPP0008",null,"Milestone Giving Piece ASGP ",null,"Milestone Giving Piece ASGP","450018",null,"PERK Librarian Services Cancelations ",null,"PERK Librarian Services Cancelations"]
[null,null,null,null,"","63330",null,"Med Orth Smith and Nephew Reddi 40329 ",null,"Med Orth Smith and Nephew Reddi 40329",null,null,null,null,null,null,null,null,null,null,null,null,null,null,null,null,null,null,null,null,null,null,"","GLRSPP0009",null,"Stewardship Reporting Project ",null,"Stewardship Reporting Project","450019",null,"PERK VA Disability Cancelations ",null,"PERK VA Disability Cancelations"]
[null,null,null,null,"","63331",null,"EntomMosquito ControlLawler 40330 ",null,"EntomMosquito ControlLawler 40330",null,null,null,null,null,null,null,null,null,null,null,null,null,null,null,null,null,null,null,null,null,null,"","GLRSPP0010",null,"AFSG FY End Stewardship of Giving Piece ",null,"AFSG FY End Stewardship of Giving Piece","450020",null,"PERK Institutional Share Buyback ",null,"PERK Institutional Share Buyback"]
[null,null,null,null,"","63332",null,"Veg CropsNebraska FdnRick 40331 ",null,"Veg CropsNebraska FdnRick 40331",null,null,null,null,null,null,null,null,null,null,null,null,null,null,null,null,null,null,null,null,null,null,"",null,null,"GL Only Projects Debt Service ",null,"GL Only Projects Debt Service","450021",null,"PERK University Contribution ",null,"PERK University Contribution"]
[null,null,null,null,"","63335",null,"FST Cheese Production Rosenberg 40334 ",null,"FST Cheese Production Rosenberg 40334",null,null,null,null,null,null,null,null,null,null,null,null,null,null,null,null,null,null,null,null,null,null,"","GLD00cb007",null,"Century Bond Project 2012AD DV ",null,"Century Bond Project 2012AD DV","450022",null,"Federal Loan Cost Control ",null,"Federal Loan Cost Control"]
[null,null,null,null,"","63336",null,"A and RS Chicory Research Kaffka 40335 ",null,"A and RS Chicory Research Kaffka 40335",null,null,null,null,null,null,null,null,null,null,null,null,null,null,null,null,null,null,null,null,null,null,"","GLD00cb008",null,"Century Bond Project 2015AQ DV ",null,"Century Bond Project 2015AQ DV",null,null,"CAAA Membership and Support ",null,"CAAA Membership and Support"]
[null,null,null,null,"","63337",null,"VMSRS Research Pascoe 40336 ",null,"VMSRS Research Pascoe 40336",null,null,null,null,null,null,null,null,null,null,null,null,null,null,null,null,null,null,null,null,null,null,"","GLD011SE01",null,"SEP 2009 2011 DV Auxillaries ",null,"SEP 2009 2011 DV Auxillaries","800000",null,"CAAA Membership Services ",null,"CAAA Membership Services"]
[null,null,null,null,"","63338",null,"VME Fish Health Lab Hendirck 40337 ",null,"VME Fish Health Lab Hendirck 40337",null,null,null,null,null,null,null,null,null,null,null,null,null,null,null,null,null,null,null,null,null,null,"","GLD011SE02",null,"SEP 2009 2011 DV Garamendi ",null,"SEP 2009 2011 DV Garamendi","800001",null,"Alumni Network Support ",null,"Alumni Network Support"]
[null,null,null,null,"","63339",null,"Veg Crops Weed Sci Publications Intnl 40338 ",null,"Veg Crops Weed Sci Publications Intnl 40338",null,null,null,null,null,null,null,null,null,null,null,null,null,null,null,null,null,null,null,null,null,null,"","GLD011SE03",null,"SEP 2009 2011 DV Housing ",null,"SEP 2009 2011 DV Housing","800002",null,"Chapter Support ",null,"Chapter Support"]
[null,null,null,null,"","63340",null,"VMSunflower Farms Schlsp 40339 ",null,"VMSunflower Farms Schlsp 40339",null,null,null,null,null,null,null,null,null,null,null,null,null,null,null,null,null,null,null,null,null,null,"","GLD011SE04",null,"SEP 2009 2011 DV Parking ",null,"SEP 2009 2011 DV Parking","800003",null,"Athletic Support ",null,"Athletic Support"]
[null,null,null,null,"","63342",null,"Alumni Relations Mooney Blue and Gold 40341 ",null,"Alumni Relations Mooney Blue and Gold 40341",null,null,null,null,null,null,null,null,null,null,null,null,null,null,null,null,null,null,null,null,null,null,"","GLD011SE05",null,"SEP 2009 2011 DV State Operating ",null,"SEP 2009 2011 DV State Operating",null,null,"CAAA Programs ",null,"CAAA Programs"]
[null,null,null,null,"","63344",null,"LandS Develp Nagel Gift 40343 ",null,"LandS Develp Nagel Gift 40343",null,null,null,null,null,null,null,null,null,null,null,null,null,null,null,null,null,null,null,null,null,null,"","GLD011SE06",null,"SEP 2009 2011 DV Student Fees ",null,"SEP 2009 2011 DV Student Fees","800050",null,"Wine Program ",null,"Wine Program"]
[null,null,null,null,"","63345",null,"CCAH Leptospirosis Charles 40344 ",null,"CCAH Leptospirosis Charles 40344",null,null,null,null,null,null,null,null,null,null,null,null,null,null,null,null,null,null,null,null,null,null,"","GLD01314DV",null,"SEP 2013 14 DV State Operating ",null,"SEP 2013 14 DV State Operating","800051",null,"Beer Program ",null,"Beer Program"]
[null,null,null,null,"","63346",null,"DANR Shasta Forero 40345 ",null,"DANR Shasta Forero 40345",null,null,null,null,null,null,null,null,null,null,null,null,null,null,null,null,null,null,null,null,null,null,"","GLD0930020",null,"Aquatics Center and Aquatic Equip Leases ",null,"Aquatics Center and Aquatic Equip Leases","800052",null,"Special Interest Chapters ",null,"Special Interest Chapters"]
[null,null,null,null,"","63347",null,"Wendy Brown King Memorial 40346 ",null,"Wendy Brown King Memorial 40346",null,null,null,null,null,null,null,null,null,null,null,null,null,null,null,null,null,null,null,null,null,null,"","GLD0931930",null,"Student Affairs Quad District Building East Hall ",null,"Student Affairs Quad District Building East Hall","800053",null,"Parent and Family Programs ",null,"Parent and Family Programs"]
[null,null,null,null,"","63348",null,"Barbara Sommer Schlsp 40347 ",null,"Barbara Sommer Schlsp 40347",null,null,null,null,null,null,null,null,null,null,null,null,null,null,null,null,null,null,null,null,null,null,"","GLD0931980",null,"Tahoe Environ l Rsch Center Sierra Nevada College ",null,"Tahoe Environ l Rsch Center Sierra Nevada College","800054",null,"Retiree Center ",null,"Retiree Center"]
[null,null,null,null,"","63349",null,"VM PmiPkd Trust 40348 ",null,"VM PmiPkd Trust 40348",null,null,null,null,null,null,null,null,null,null,null,null,null,null,null,null,null,null,null,null,null,null,"","GLD0932120",null,"Center for Arts Performance Hall ",null,"Center for Arts Performance Hall","800055",null,"International Programs ",null,"International Programs"]
[null,null,null,null,"","63351",null,"Rprc Univ Of Fla GiftTarantal 40350 ",null,"Rprc Univ Of Fla GiftTarantal 40350",null,null,null,null,null,null,null,null,null,null,null,null,null,null,null,null,null,null,null,null,null,null,"","GLD0932180",null,"Physical Sciences Expansion Project ",null,"Physical Sciences Expansion Project","800056",null,"General Program ",null,"General Program"]
[null,null,null,null,"","63353",null,"Anthropology Research and Edu 40352 ",null,"Anthropology Research and Edu 40352",null,null,null,null,null,null,null,null,null,null,null,null,null,null,null,null,null,null,null,null,null,null,"","GLD0935030",null,"MC School of Medical Research Bldg 3 ",null,"MC School of Medical Research Bldg 3","800057",null,"Careers Program ",null,"Careers Program"]
[null,null,null,null,"","63355",null,"Agr and Res EconomicsFarm Fdn 40354 ",null,"Agr and Res EconomicsFarm Fdn 40354",null,null,null,null,null,null,null,null,null,null,null,null,null,null,null,null,null,null,null,null,null,null,"","GLD0935070",null,"MC Center for Comparative Medicine ",null,"MC Center for Comparative Medicine","800058",null,"Scholarship Program ",null,"Scholarship Program"]
[null,null,null,null,"","63357",null,"Veg CropsRice Weed Research 40356 ",null,"Veg CropsRice Weed Research 40356",null,null,null,null,null,null,null,null,null,null,null,null,null,null,null,null,null,null,null,null,null,null,"","GLD0935320",null,"Equine Analytical Chemistry Lab ",null,"Equine Analytical Chemistry Lab",null,null,"CAAA Events ",null,"CAAA Events"]
[null,null,null,null,"","63358",null,"Pomology Research Romani 40357 ",null,"Pomology Research Romani 40357",null,null,null,null,null,null,null,null,null,null,null,null,null,null,null,null,null,null,null,null,null,null,"","GLD0936077",null,"Campus Wastewater Trtmnt Plant Expan Ph1 Ag Relo ",null,"Campus Wastewater Trtmnt Plant Expan Ph1 Ag Relo","800100",null,"Camp and Crystal Lake ",null,"Camp and Crystal Lake"]
[null,null,null,null,"","63359",null,"Food SciCoFFEe Flavor TestingOMahony 40358 ",null,"Food SciCoFFEe Flavor TestingOMahony 40358",null,null,null,null,null,null,null,null,null,null,null,null,null,null,null,null,null,null,null,null,null,null,"","GLD0936313",null,"Solano and Orchard Park Student Housing Renovation ",null,"Solano and Orchard Park Student Housing Renovation","800101",null,"Aggie Adventures Travel ",null,"Aggie Adventures Travel"]
[null,null,null,null,"","63393",null,"Dr John Hughes Memorial Research Fd 40392 ",null,"Dr John Hughes Memorial Research Fd 40392",null,null,null,null,null,null,null,null,null,null,null,null,null,null,null,null,null,null,null,null,null,null,"","GLD0951290",null,"Student Community Center ",null,"Student Community Center","810014",null,"Aggie Barbell Club ",null,"Aggie Barbell Club"]
[null,null,null,null,"","63433",null,"LawState Capitol Reception 40431 ",null,"LawState Capitol Reception 40431",null,null,null,null,null,null,null,null,null,null,null,null,null,null,null,null,null,null,null,null,null,null,"","GLD0952970",null,"Tercero Dining Common 2 90percentTE and 10percentTX ",null,"Tercero Dining Common 2 90percentTE and 10percentTX","810049",null,"Asian American Association AAA ",null,"Asian American Association AAA"]
[null,null,null,null,"","63489",null,"CaesNorman Risdon Endowment 40487 ",null,"CaesNorman Risdon Endowment 40487",null,null,null,null,null,null,null,null,null,null,null,null,null,null,null,null,null,null,null,null,null,null,"","GL04871073",null,"ITS Corporate Affiliates QPQ Account ",null,"ITS Corporate Affiliates QPQ Account","810088",null,"Black Student Union ",null,"Black Student Union"]
[null,null,null,null,"","63551",null,"Fdn Plt Material ServGrapes 40547 ",null,"Fdn Plt Material ServGrapes 40547",null,null,null,null,null,null,null,null,null,null,null,null,null,null,null,null,null,null,null,null,null,null,"","GLAANS0960",null,"Richard Zinn ANIMAL SCIENCE GL Only ",null,"Richard Zinn ANIMAL SCIENCE GL Only","810131",null,"Chinese Student Association ",null,"Chinese Student Association"]
[null,null,null,null,"","63593",null,"FsandTAm Frozen Food 40587 ",null,"FsandTAm Frozen Food 40587",null,null,null,null,null,null,null,null,null,null,null,null,null,null,null,null,null,null,null,null,null,null,"","GLAANS3648",null,"Hao Cheng ANIMAL SCIENCE GL Only ",null,"Hao Cheng ANIMAL SCIENCE GL Only","810163",null,"Cyber Security Club ",null,"Cyber Security Club"]
[null,null,null,null,"","63655",null,"VMDO Ardel Azeltine Schlsp 40646 ",null,"VMDO Ardel Azeltine Schlsp 40646",null,null,null,null,null,null,null,null,null,null,null,null,null,null,null,null,null,null,null,null,null,null,"","GLAARE2018",null,"James Chalfant AG And RESOURCE ECONOMICS GL Only ",null,"James Chalfant AG And RESOURCE ECONOMICS GL Only","810208",null,"Davis Wushu ",null,"Davis Wushu"]
[null,null,null,null,"","63694",null,"DeanS Bldg Funds VM3A 40684 ",null,"DeanS Bldg Funds VM3A 40684",null,null,null,null,null,null,null,null,null,null,null,null,null,null,null,null,null,null,null,null,null,null,"","GLAARE4495",null,"Travis James Lybbert AG And RESOURCE ECONOMICS GL Only ",null,"Travis James Lybbert AG And RESOURCE ECONOMICS GL Only","810237",null,"Equity In Science Technology Engineering Math and Ent ",null,"Equity In Science Technology Engineering Math and Ent"]
[null,null,null,null,"","63761",null,"MicrobiologyResearch Heyer 40752 ",null,"MicrobiologyResearch Heyer 40752",null,null,null,null,null,null,null,null,null,null,null,null,null,null,null,null,null,null,null,null,null,null,"","GLABAE6292",null,"Bruno Augusto Carciofi BIOLOGICAL And AG ENGINEERING GL Only ",null,"Bruno Augusto Carciofi BIOLOGICAL And AG ENGINEERING GL Only","810291",null,"Hermanos Macehual ",null,"Hermanos Macehual"]
[null,null,null,null,"","63786",null,"VM Ceh Harriet E Pfleger Fdn 40775 ",null,"VM Ceh Harriet E Pfleger Fdn 40775",null,null,null,null,null,null,null,null,null,null,null,null,null,null,null,null,null,null,null,null,null,null,"","GLACHE0893",null,"R Thayer HUMAN ECOLOGY GL Only ",null,"R Thayer HUMAN ECOLOGY GL Only","810309",null,"Hyphen Apostolic Fellowship ",null,"Hyphen Apostolic Fellowship"]
[null,null,null,null,"","63828",null,"Med OphthResearch Choo 40814 ",null,"Med OphthResearch Choo 40814",null,null,null,null,null,null,null,null,null,null,null,null,null,null,null,null,null,null,null,null,null,null,"","GLACHE2526",null,"Miriam Wells HUMAN ECOLOGY GL Only ",null,"Miriam Wells HUMAN ECOLOGY GL Only","810334",null,"King Hall Softball League ",null,"King Hall Softball League"]
[null,null,null,null,"","63882",null,"AES Sci Zeneca Miller 40867 ",null,"AES Sci Zeneca Miller 40867",null,null,null,null,null,null,null,null,null,null,null,null,null,null,null,null,null,null,null,null,null,null,"","GLADES1375",null,"Alan Jassby ENVIRONMENTAL SCIENCE And POLICY GL Only ",null,"Alan Jassby ENVIRONMENTAL SCIENCE And POLICY GL Only","810374",null,"Jack Black Pack ",null,"Jack Black Pack"]
[null,null,null,null,"","63950",null,"SomNeurology Bowes 40931 ",null,"SomNeurology Bowes 40931",null,null,null,null,null,null,null,null,null,null,null,null,null,null,null,null,null,null,null,null,null,null,"","GLADNO3844",null,"Nicelma King AGR And ENV SCI DEANS OFFICE GL Only ",null,"Nicelma King AGR And ENV SCI DEANS OFFICE GL Only","810415",null,"3D ENTHUSIASTS OF DAVIS ",null,"3D ENTHUSIASTS OF DAVIS"]
[null,null,null,null,"","64036",null,"DANR Ucce Res Fresno Hembree 41016 ",null,"DANR Ucce Res Fresno Hembree 41016",null,null,null,null,null,null,null,null,null,null,null,null,null,null,null,null,null,null,null,null,null,null,"","GLAETX4790",null,"Robert Rice ENVIRONMENTAL TOXICOLOGY GL Only ",null,"Robert Rice ENVIRONMENTAL TOXICOLOGY GL Only","810483",null,"CLUSTER ON LANGUAGE RESEARCH ",null,"CLUSTER ON LANGUAGE RESEARCH"]
[null,null,null,null,"","64048",null,"Animal Sci Research Hung 41028 ",null,"Animal Sci Research Hung 41028",null,null,null,null,null,null,null,null,null,null,null,null,null,null,null,null,null,null,null,null,null,null,"","GLAETX5347",null,"Christina Pasparakis ENVIRONMENTAL TOXICOLOGY GL Only ",null,"Christina Pasparakis ENVIRONMENTAL TOXICOLOGY GL Only","810490",null,"CONSTRUCTION MANAGEMENT CLUB ",null,"CONSTRUCTION MANAGEMENT CLUB"]
[null,null,null,null,"","64125",null,"AbsIntL Agr Development Prog 41104 ",null,"AbsIntL Agr Development Prog 41104",null,null,null,null,null,null,null,null,null,null,null,null,null,null,null,null,null,null,null,null,null,null,"","GLAHCE1232",null,"Steven Greco HUMAN ECOLOGY GL Only ",null,"Steven Greco HUMAN ECOLOGY GL Only","810557",null,"GIRLS WHO CODE AT UC DAVIS ",null,"GIRLS WHO CODE AT UC DAVIS"]
[null,null,null,null,"","64147",null,"Grad Studies Elaine Russell Memorial Fd 41125 ",null,"Grad Studies Elaine Russell Memorial Fd 41125",null,null,null,null,null,null,null,null,null,null,null,null,null,null,null,null,null,null,null,null,null,null,"","GLAHCE2284",null,"Vikram Swaroop Chandra Koundinya HUMAN ECOLOGY GL Only ",null,"Vikram Swaroop Chandra Koundinya HUMAN ECOLOGY GL Only","810573",null,"HINDI URDU CLUB ",null,"HINDI URDU CLUB"]
[null,null,null,null,"","64234",null,"EceEngMicro AwardBen Yoo 41205 ",null,"EceEngMicro AwardBen Yoo 41205",null,null,null,null,null,null,null,null,null,null,null,null,null,null,null,null,null,null,null,null,null,null,"","GLALAW1112",null,"Louise Jackson LAND AIR And WATER RESOURCES GL Only ",null,"Louise Jackson LAND AIR And WATER RESOURCES GL Only","810630",null,"PLANT FUTURES INITIATIVE AT UC DAVIS ",null,"PLANT FUTURES INITIATIVE AT UC DAVIS"]
[null,null,null,null,"","64275",null,"DANR Kings County Support 41231 ",null,"DANR Kings County Support 41231",null,null,null,null,null,null,null,null,null,null,null,null,null,null,null,null,null,null,null,null,null,null,"","GLALAW2910",null,"Cort Anastasio LAND AIR And WATER RESOURCES GL Only ",null,"Cort Anastasio LAND AIR And WATER RESOURCES GL Only","810655",null,"SLAVIC ASSOCIATION ",null,"SLAVIC ASSOCIATION"]
[null,null,null,null,"","64338",null,"AeandSPomology Research Holtz 41291 ",null,"AeandSPomology Research Holtz 41291",null,null,null,null,null,null,null,null,null,null,null,null,null,null,null,null,null,null,null,null,null,null,"","GLAMCB4956",null,"John Crowe AG MOLECULAR And CELLULAR BIO GL Only ",null,"John Crowe AG MOLECULAR And CELLULAR BIO GL Only","810695",null,"WOMEN IN MEDICINE ",null,"WOMEN IN MEDICINE"]
[null,null,null,null,"","64400",null,"AES Env Tox Ag Chem 41352 ",null,"AES Env Tox Ag Chem 41352",null,null,null,null,null,null,null,null,null,null,null,null,null,null,null,null,null,null,null,null,null,null,"","GLANUT5039",null,"Carolyn Slupsky NUTRITION GL Only ",null,"Carolyn Slupsky NUTRITION GL Only","820001",null,"International Ag Development Graduate ",null,"International Ag Development Graduate"]
[null,null,null,null,"","64449",null,"LandSArtArts Bridge Braitmayer 41400 ",null,"LandSArtArts Bridge Braitmayer 41400",null,null,null,null,null,null,null,null,null,null,null,null,null,null,null,null,null,null,null,null,null,null,"","GLAPLS0892",null,"Ronald Voss PLANT SCIENCES GL Only ",null,"Ronald Voss PLANT SCIENCES GL Only","820032",null,"Korean Graduate Student Association ",null,"Korean Graduate Student Association"]
[null,null,null,null,"","64524",null,"Ece HurstMicro MatchTdk Semiconductor 41474 ",null,"Ece HurstMicro MatchTdk Semiconductor 41474",null,null,null,null,null,null,null,null,null,null,null,null,null,null,null,null,null,null,null,null,null,null,"","GLAPLS2754",null,"Warren Micke PLANT SCIENCES GL Only ",null,"Warren Micke PLANT SCIENCES GL Only","820082",null,"Muslims of the West at UC Davis ",null,"Muslims of the West at UC Davis"]
[null,null,null,null,"","64560",null,"UgaEaop Family Programs 41510 ",null,"UgaEaop Family Programs 41510",null,null,null,null,null,null,null,null,null,null,null,null,null,null,null,null,null,null,null,null,null,null,"","GLAPLS3872",null,"Bruce Lampinen PLANT SCIENCES GL Only ",null,"Bruce Lampinen PLANT SCIENCES GL Only","820104",null,"Nursing Club ",null,"Nursing Club"]
[null,null,null,null,"","64628",null,"VMVMthDentistry Resident ReshandTeach 41578 ",null,"VMVMthDentistry Resident ReshandTeach 41578",null,null,null,null,null,null,null,null,null,null,null,null,null,null,null,null,null,null,null,null,null,null,"","GLAPPA1139",null,"Florent Trouillas PLANT PATHOLOGY GL Only ",null,"Florent Trouillas PLANT PATHOLOGY GL Only","820158",null,"Queer Student Union ",null,"Queer Student Union"]
[null,null,null,null,"","64654",null,"SomMedSurg Res Troppmann 41604 ",null,"SomMedSurg Res Troppmann 41604",null,null,null,null,null,null,null,null,null,null,null,null,null,null,null,null,null,null,null,null,null,null,"","GLAPPA3879",null,"Robert Webster PLANT PATHOLOGY GL Only ",null,"Robert Webster PLANT PATHOLOGY GL Only","820177",null,"SedadIranian Students Association ",null,"SedadIranian Students Association"]
[null,null,null,null,"","64744",null,"VMTH Behavior Programs Buddys Pals 41693 ",null,"VMTH Behavior Programs Buddys Pals 41693",null,null,null,null,null,null,null,null,null,null,null,null,null,null,null,null,null,null,null,null,null,null,"","GLAWFC5241",null,"Mikaela Provost WILDLIFE And FISHERIES BIOLOGY GL Only ",null,"Mikaela Provost WILDLIFE And FISHERIES BIOLOGY GL Only","820239",null,"Sunrise Davis ",null,"Sunrise Davis"]
[null,null,null,null,"","64749",null,"AAES FST Research Mccarthy 41698 ",null,"AAES FST Research Mccarthy 41698",null,null,null,null,null,null,null,null,null,null,null,null,null,null,null,null,null,null,null,null,null,null,"","GLBEAR6069",null,"Alexandra Estvan Hill UCB CNR AG AND RESOURCE ECON ",null,"Alexandra Estvan Hill UCB CNR AG AND RESOURCE ECON","820242",null,"Surf Club at UC Davis ",null,"Surf Club at UC Davis"]
[null,null,null,null,"","64820",null,"Student Affaire Uc Couns Conference 41770 ",null,"Student Affaire Uc Couns Conference 41770",null,null,null,null,null,null,null,null,null,null,null,null,null,null,null,null,null,null,null,null,null,null,"","GLBEVE2881",null,"Johanna Schmitt EVOLUTION And ECOLOGY GL Only ",null,"Johanna Schmitt EVOLUTION And ECOLOGY GL Only","820282",null,"Ultimate Frisbee ",null,"Ultimate Frisbee"]
[null,null,null,null,"","64927",null,"Art Tracy Kantor Memorial 41876 ",null,"Art Tracy Kantor Memorial 41876",null,null,null,null,null,null,null,null,null,null,null,null,null,null,null,null,null,null,null,null,null,null,"","GLBMCB4669",null,"Kenneth Kaplan MOLECULAR And CELLULAR BIO GL Only ",null,"Kenneth Kaplan MOLECULAR And CELLULAR BIO GL Only","823020",null,"Delta Gamma Sorority ",null,"Delta Gamma Sorority"]
[null,null,null,null,"","64944",null,"Kidney Transplant RschandInstrgandhi 41893 ",null,"Kidney Transplant RschandInstrgandhi 41893",null,null,null,null,null,null,null,null,null,null,null,null,null,null,null,null,null,null,null,null,null,null,"","GLBMMG0592",null,"David Pratt MICROBIOLOGY And MOLEC GENETICS GL Only ",null,"David Pratt MICROBIOLOGY And MOLEC GENETICS GL Only","823032",null,"Lambda Sigma Gamma Sorority Inc ",null,"Lambda Sigma Gamma Sorority Inc"]
[null,null,null,null,"","65035",null,"VMth Ophthalmology Office Remodel 41985 ",null,"VMth Ophthalmology Office Remodel 41985",null,null,null,null,null,null,null,null,null,null,null,null,null,null,null,null,null,null,null,null,null,null,"","GLBNPB2827",null,"W Weidner NEURO PHYSIO And BEHAVIOR GL Only ",null,"W Weidner NEURO PHYSIO And BEHAVIOR GL Only","823092",null,"King Hall Intellectual Property Law Association ",null,"King Hall Intellectual Property Law Association"]
[null,null,null,null,"","65070",null,"Patientcare Serv EntInter Medicine 42020 ",null,"Patientcare Serv EntInter Medicine 42020",null,null,null,null,null,null,null,null,null,null,null,null,null,null,null,null,null,null,null,null,null,null,"","GLBNPB3851",null,"Leo Chalupa NEURO PHYSIO And BEHAVIOR GL Only ",null,"Leo Chalupa NEURO PHYSIO And BEHAVIOR GL Only","823107",null,"Womens Law Association ",null,"Womens Law Association"]
[null,null,null,null,"","65172",null,"Avian Sci Research Weathers 42122 ",null,"Avian Sci Research Weathers 42122",null,null,null,null,null,null,null,null,null,null,null,null,null,null,null,null,null,null,null,null,null,null,"","GLBSPH6070",null,"Carly Hyland UCB PUBLIC HEALTH ADMIN ",null,"Carly Hyland UCB PUBLIC HEALTH ADMIN","900002",null,"STEM Program ",null,"STEM Program"]
[null,null,null,null,"","65205",null,"UCD FoundationExxonMobil Foundation 42155 ",null,"UCD FoundationExxonMobil Foundation 42155",null,null,null,null,null,null,null,null,null,null,null,null,null,null,null,null,null,null,null,null,null,null,"","GLCCMP6091",null,"Katherine JarvisShean UCCE CAPITOL CORRIDOR MCP ",null,"Katherine JarvisShean UCCE CAPITOL CORRIDOR MCP","900026",null,"Membership Agreements ",null,"Membership Agreements"]
[null,null,null,null,"","65303",null,"UCDF LandS FerrisSwig Foundation 42253 ",null,"UCDF LandS FerrisSwig Foundation 42253",null,null,null,null,null,null,null,null,null,null,null,null,null,null,null,null,null,null,null,null,null,null,"","GLDEDU1958",null,"Douglas Minnis EDUCATION GL Only ",null,"Douglas Minnis EDUCATION GL Only","900093",null,"Beans ",null,"Beans"]
[null,null,null,null,"","65348",null,"Vet Med Gilbert Godin 42298 ",null,"Vet Med Gilbert Godin 42298",null,null,null,null,null,null,null,null,null,null,null,null,null,null,null,null,null,null,null,null,null,null,"","GLDEDU3624",null,"Cassandra Hart EDUCATION GL Only ",null,"Cassandra Hart EDUCATION GL Only","900118",null,"Creamery ",null,"Creamery"]
[null,null,null,null,"","65386",null,"LandS Amini Foundation Shaver 42336 ",null,"LandS Amini Foundation Shaver 42336",null,null,null,null,null,null,null,null,null,null,null,null,null,null,null,null,null,null,null,null,null,null,"","GLDEDU4735",null,"Julius M Sassenrath EDUCATION GL Only ",null,"Julius M Sassenrath EDUCATION GL Only","900163",null,"SMALL EQ COMPUTER under 5K PARAPROF ",null,"SMALL EQ COMPUTER under 5K PARAPROF"]
[null,null,null,null,"","65478",null,"EVELYN SILVIA FUND ",null,"EVELYN SILVIA FUND",null,null,null,null,null,null,null,null,null,null,null,null,null,null,null,null,null,null,null,null,null,null,"","GLEBME3099",null,"Simon Cherry BIOMEDICAL ENGINEERING GL Only ",null,"Simon Cherry BIOMEDICAL ENGINEERING GL Only","920028",null,"Mendocino ",null,"Mendocino"]
[null,null,null,null,"","65533",null,"VM Mccormick Scholarship 42483 ",null,"VM Mccormick Scholarship 42483",null,null,null,null,null,null,null,null,null,null,null,null,null,null,null,null,null,null,null,null,null,null,"","GLEBMELEWJ",null,"Lewis Jamal BME Faculty Payroll ",null,"Lewis Jamal BME Faculty Payroll",null,null,"UC Path Errors ",null,"UC Path Errors"]
[null,null,null,null,"","65602",null,"Bio Sci Deans Office Unresticted 42554 ",null,"Bio Sci Deans Office Unresticted 42554",null,null,null,null,null,null,null,null,null,null,null,null,null,null,null,null,null,null,null,null,null,null,"","GLECEE1598",null,"Holly Oldroyd CIVIL And ENVIRONMENTAL ENGR GL Only ",null,"Holly Oldroyd CIVIL And ENVIRONMENTAL ENGR GL Only",null,null,null,null,""]
[null,null,null,null,"","65668",null,"Baas Src Gift 42620 ",null,"Baas Src Gift 42620",null,null,null,null,null,null,null,null,null,null,null,null,null,null,null,null,null,null,null,null,null,null,"","GLECEE5094",null,"George Tchobanoglous CIVIL And ENVIRONMENTAL ENGR GL Only ",null,"George Tchobanoglous CIVIL And ENVIRONMENTAL ENGR GL Only",null,null,null,null,""]
[null,null,null,null,"","65707",null,"EABoyd Foundation Scholarship 42658 ",null,"EABoyd Foundation Scholarship 42658",null,null,null,null,null,null,null,null,null,null,null,null,null,null,null,null,null,null,null,null,null,null,"","GLECHE2880",null,"Jason White CHEMICAL ENGINEERING GL Only ",null,"Jason White CHEMICAL ENGINEERING GL Only",null,null,null,null,""]
[null,null,null,null,"","65777",null,"Vet Med Murphy Estate Funds For VMth 42727 ",null,"Vet Med Murphy Estate Funds For VMth 42727",null,null,null,null,null,null,null,null,null,null,null,null,null,null,null,null,null,null,null,null,null,null,"","GLECOE4866",null,"William Hoover ENGINEERING DEANS OFFICE GL Only ",null,"William Hoover ENGINEERING DEANS OFFICE GL Only",null,null,null,null,""]
[null,null,null,null,"","65802",null,"Cs NecMukherjee 42752 ",null,"Cs NecMukherjee 42752",null,null,null,null,null,null,null,null,null,null,null,null,null,null,null,null,null,null,null,null,null,null,"","GLECSE1954",null,"Yelena Frid ENGR COMPUTER SCIENCE GL Only ",null,"Yelena Frid ENGR COMPUTER SCIENCE GL Only",null,null,null,null,""]
[null,null,null,null,"","65883",null,"Mcb Research Kimbrell 42834 ",null,"Mcb Research Kimbrell 42834",null,null,null,null,null,null,null,null,null,null,null,null,null,null,null,null,null,null,null,null,null,null,"","GLEECE1002",null,"Robert Redinbo ELECT And COMP ENGR GL Only ",null,"Robert Redinbo ELECT And COMP ENGR GL Only",null,null,null,null,""]
[null,null,null,null,"","65962",null,"Entom Van Den Bosch Trvl Award HThomas 42913 ",null,"Entom Van Den Bosch Trvl Award HThomas 42913",null,null,null,null,null,null,null,null,null,null,null,null,null,null,null,null,null,null,null,null,null,null,"","GLEECE4076",null,"Charles Hunt ELECT And COMP ENGR GL Only ",null,"Charles Hunt ELECT And COMP ENGR GL Only",null,null,null,null,""]
[null,null,null,null,"","66003",null,"VMCcah PhysICAl Therapy 42954 ",null,"VMCcah PhysICAl Therapy 42954",null,null,null,null,null,null,null,null,null,null,null,null,null,null,null,null,null,null,null,null,null,null,"","GLEMAE1176",null,"Harry Cheng MECHANICAL And AEROSPACE ENGR GL Only ",null,"Harry Cheng MECHANICAL And AEROSPACE ENGR GL Only",null,null,null,null,""]
[null,null,null,null,"","66052",null,"VM VMtTHDirector Discrectionary Fund 43004 ",null,"VM VMtTHDirector Discrectionary Fund 43004",null,null,null,null,null,null,null,null,null,null,null,null,null,null,null,null,null,null,null,null,null,null,"","GLEMAE5495",null,"Edward Haug MECHANICAL And AEROSPACE ENGR GL Only ",null,"Edward Haug MECHANICAL And AEROSPACE ENGR GL Only",null,null,null,null,""]
[null,null,null,null,"","66116",null,"Fire Department Support 43069 ",null,"Fire Department Support 43069",null,null,null,null,null,null,null,null,null,null,null,null,null,null,null,null,null,null,null,null,null,null,"","GLGSM11482",null,"Justin Virrey GRADUATE SCHOOL OF MANAGEMENT GL Only ",null,"Justin Virrey GRADUATE SCHOOL OF MANAGEMENT GL Only",null,null,null,null,""]
[null,null,null,null,"","66157",null,"Marmor Surg Schlsp 43111 ",null,"Marmor Surg Schlsp 43111",null,null,null,null,null,null,null,null,null,null,null,null,null,null,null,null,null,null,null,null,null,null,"","GLGSM13253",null,"Colleen Zern GRADUATE SCHOOL OF MANAGEMENT GL Only ",null,"Colleen Zern GRADUATE SCHOOL OF MANAGEMENT GL Only",null,null,null,null,""]
[null,null,null,null,"","66176",null,"Lawr Soil Research Pettygrove 43130 ",null,"Lawr Soil Research Pettygrove 43130",null,null,null,null,null,null,null,null,null,null,null,null,null,null,null,null,null,null,null,null,null,null,"","GLGSM14195",null,"Kelly Wilson GRADUATE SCHOOL OF MANAGEMENT GL Only ",null,"Kelly Wilson GRADUATE SCHOOL OF MANAGEMENT GL Only",null,null,null,null,""]
[null,null,null,null,"","66281",null,"ArchaeologICAl Research 43236 ",null,"ArchaeologICAl Research 43236",null,null,null,null,null,null,null,null,null,null,null,null,null,null,null,null,null,null,null,null,null,null,"","GLIMADX082",null,"Tahir Mahmood MED Int Med Administration GL only ",null,"Tahir Mahmood MED Int Med Administration GL only",null,null,null,null,""]
[null,null,null,null,"","66311",null,"Bird Derived Mosquito Attractants 43266 ",null,"Bird Derived Mosquito Attractants 43266",null,null,null,null,null,null,null,null,null,null,null,null,null,null,null,null,null,null,null,null,null,null,"","GLIMCA1432",null,"Saul Schaefer MED INT MED CARDIOLOGY GL Only ",null,"Saul Schaefer MED INT MED CARDIOLOGY GL Only",null,null,null,null,""]
[null,null,null,null,"","66374",null,"ICA Spirit Squad Stunt Team 43329 ",null,"ICA Spirit Squad Stunt Team 43329",null,null,null,null,null,null,null,null,null,null,null,null,null,null,null,null,null,null,null,null,null,null,"","GLIMCT0863",null,"Rasmus Hoeg Med Int Med HMCTBMT GL Only ",null,"Rasmus Hoeg Med Int Med HMCTBMT GL Only",null,null,null,null,""]
[null,null,null,null,"","66404",null,"MindChargeAutism Spectral Disorders 43359 ",null,"MindChargeAutism Spectral Disorders 43359",null,null,null,null,null,null,null,null,null,null,null,null,null,null,null,null,null,null,null,null,null,null,"","GLIMCTX059",null,"Kate OBrien NP MED Int Med HMCTBMT GL Only ",null,"Kate OBrien NP MED Int Med HMCTBMT GL Only",null,null,null,null,""]
[null,null,null,null,"","66456",null,"Campus Rec LacrosseWomen 43411 ",null,"Campus Rec LacrosseWomen 43411",null,null,null,null,null,null,null,null,null,null,null,null,null,null,null,null,null,null,null,null,null,null,"","GLIMENX036",null,"Ryan Woodman MED Int Med Endocrinology GL Only ",null,"Ryan Woodman MED Int Med Endocrinology GL Only",null,null,null,null,""]
[null,null,null,null,"","66494",null,"Ilc Flores Vs Sessions 43449 ",null,"Ilc Flores Vs Sessions 43449",null,null,null,null,null,null,null,null,null,null,null,null,null,null,null,null,null,null,null,null,null,null,"","GLIMGI4412",null,"Christopher Bowlus MED Int Med Gastroenterology GL Only ",null,"Christopher Bowlus MED Int Med Gastroenterology GL Only",null,null,null,null,""]
[null,null,null,null,"","66567",null,"Cnprc Ucsd Fdn Funds CapitanioTuszynski 43522 ",null,"Cnprc Ucsd Fdn Funds CapitanioTuszynski 43522",null,null,null,null,null,null,null,null,null,null,null,null,null,null,null,null,null,null,null,null,null,null,"","GLIMGM0727",null,"Jennifer Chen MED Int Med Genl Medicine GL Only ",null,"Jennifer Chen MED Int Med Genl Medicine GL Only",null,null,null,null,""]
[null,null,null,null,"","66669",null,"Integrated Vit Web Site 43629 ",null,"Integrated Vit Web Site 43629",null,null,null,null,null,null,null,null,null,null,null,null,null,null,null,null,null,null,null,null,null,null,"","GLIMGMX088",null,"SANTIAGO LOMBO LUQUE ",null,"SANTIAGO LOMBO LUQUE",null,null,null,null,""]
[null,null,null,null,"","66698",null,"San Diego Ucce Program Support Lobo 43657 ",null,"San Diego Ucce Program Support Lobo 43657",null,null,null,null,null,null,null,null,null,null,null,null,null,null,null,null,null,null,null,null,null,null,"","GLIMHO2006",null,"Sidney Scudder MED Int Med HEMONC GL Only ",null,"Sidney Scudder MED Int Med HEMONC GL Only",null,null,null,null,""]
[null,null,null,null,"","66771",null,"VMth Behavior Service 43728 ",null,"VMth Behavior Service 43728",null,null,null,null,null,null,null,null,null,null,null,null,null,null,null,null,null,null,null,null,null,null,"","GLIMHOX095",null,"Ryan Leinbrandt MED Int Med HemOnc GL Only ",null,"Ryan Leinbrandt MED Int Med HemOnc GL Only",null,null,null,null,""]
[null,null,null,null,"","66866",null,"ItsPlug In Electric Vehicle Phev Cntr 43817 ",null,"ItsPlug In Electric Vehicle Phev Cntr 43817",null,null,null,null,null,null,null,null,null,null,null,null,null,null,null,null,null,null,null,null,null,null,"","GLIMHP4188",null,"Adrienne Atencio MED Int Med Hospitalist GL Only ",null,"Adrienne Atencio MED Int Med Hospitalist GL Only",null,null,null,null,""]
[null,null,null,null,"","66911",null,"VM MollyDiva Memorial Scholarship 43862 ",null,"VM MollyDiva Memorial Scholarship 43862",null,null,null,null,null,null,null,null,null,null,null,null,null,null,null,null,null,null,null,null,null,null,"","GLIMHP6344",null,"Conan Liu MED Int Med Hospitalist GL Only ",null,"Conan Liu MED Int Med Hospitalist GL Only",null,null,null,null,""]
[null,null,null,null,"","66985",null,"Substance Abuse Deaths Researchq 43936 ",null,"Substance Abuse Deaths Researchq 43936",null,null,null,null,null,null,null,null,null,null,null,null,null,null,null,null,null,null,null,null,null,null,"","GLIMID5644",null,"Michelle Touw MED Int Med Infectious Diseases GL Only ",null,"Michelle Touw MED Int Med Infectious Diseases GL Only",null,null,null,null,""]
[null,null,null,null,"","67033",null,"AlbertBuzzBizzini Jr Memorial Schp 43984 ",null,"AlbertBuzzBizzini Jr Memorial Schp 43984",null,null,null,null,null,null,null,null,null,null,null,null,null,null,null,null,null,null,null,null,null,null,"","GLIMPA3799",null,"Stephanie Y Lee MED Palliative Care GL Only ",null,"Stephanie Y Lee MED Palliative Care GL Only",null,null,null,null,""]
[null,null,null,null,"","67072",null,"Engineering Translational Tech Cntr 44024 ",null,"Engineering Translational Tech Cntr 44024",null,null,null,null,null,null,null,null,null,null,null,null,null,null,null,null,null,null,null,null,null,null,"","GLIMPM2222",null,"Florence Chau Etchepare MED Int Med Pulmonary GL Only ",null,"Florence Chau Etchepare MED Int Med Pulmonary GL Only",null,null,null,null,""]
[null,null,null,null,"","67166",null,"Are Scholarship 44118 ",null,"Are Scholarship 44118",null,null,null,null,null,null,null,null,null,null,null,null,null,null,null,null,null,null,null,null,null,null,"","GLIMRH1261",null,"Marc Ikeda MED Int Med Rheumatology GL Only ",null,"Marc Ikeda MED Int Med Rheumatology GL Only",null,null,null,null,""]
[null,null,null,null,"","67190",null,"Rodgers University Fellowship In Ece 44142 ",null,"Rodgers University Fellowship In Ece 44142",null,null,null,null,null,null,null,null,null,null,null,null,null,null,null,null,null,null,null,null,null,null,"","GLIMRH4670",null,"Sean Deane MED Int Med Rheumatology GL Only ",null,"Sean Deane MED Int Med Rheumatology GL Only",null,null,null,null,""]
[null,null,null,null,"","67236",null,"ChemStudentandFaculty Relations 44188 ",null,"ChemStudentandFaculty Relations 44188",null,null,null,null,null,null,null,null,null,null,null,null,null,null,null,null,null,null,null,null,null,null,"","GLKERN0127",null,"Margaret Johns UCCE KERN COUNTY GL Only ",null,"Margaret Johns UCCE KERN COUNTY GL Only",null,null,null,null,""]
[null,null,null,null,"","67310",null,"Environmental ScienceandPolicy Dept Supp 44263 ",null,"Environmental ScienceandPolicy Dept Supp 44263",null,null,null,null,null,null,null,null,null,null,null,null,null,null,null,null,null,null,null,null,null,null,"","GLLAHI2736",null,"Lucy Puls ART And ART HISTORY GL Only ",null,"Lucy Puls ART And ART HISTORY GL Only",null,null,null,null,""]
[null,null,null,null,"","67340",null,"Chevron Dept SupportSchlsp 44293 ",null,"Chevron Dept SupportSchlsp 44293",null,null,null,null,null,null,null,null,null,null,null,null,null,null,null,null,null,null,null,null,null,null,"","GLLAMS2038",null,"Eric Smoodin AMERICAN STUDIES GL Only ",null,"Eric Smoodin AMERICAN STUDIES GL Only",null,null,null,null,""]
[null,null,null,null,"","67410",null,"Forbes Memorial Native American Studies 44363 ",null,"Forbes Memorial Native American Studies 44363",null,null,null,null,null,null,null,null,null,null,null,null,null,null,null,null,null,null,null,null,null,null,"","GLLASA0033",null,"Kent Wong ASIAN AMERICAN GL Only ",null,"Kent Wong ASIAN AMERICAN GL Only",null,null,null,null,""]
[null,null,null,null,"","67430",null,"Cee General Department Support 44383 ",null,"Cee General Department Support 44383",null,null,null,null,null,null,null,null,null,null,null,null,null,null,null,null,null,null,null,null,null,null,"","GLLAST2402",null,"Robin Hill ART And ART HISTORY GL Only ",null,"Robin Hill ART And ART HISTORY GL Only",null,null,null,null,""]
[null,null,null,null,"","67504",null,"Ccuh Educational Workshops 44457 ",null,"Ccuh Educational Workshops 44457",null,null,null,null,null,null,null,null,null,null,null,null,null,null,null,null,null,null,null,null,null,null,"","GLLCHE1939",null,"Mark Mascal CHEMISTRY GL Only ",null,"Mark Mascal CHEMISTRY GL Only",null,null,null,null,""]
[null,null,null,null,"","67522",null,"FOOD RESEARCH VIDEO FUND ",null,"FOOD RESEARCH VIDEO FUND",null,null,null,null,null,null,null,null,null,null,null,null,null,null,null,null,null,null,null,null,null,null,"","GLLCHE3314",null,"David Goodin CHEMISTRY GL Only ",null,"David Goodin CHEMISTRY GL Only",null,null,null,null,""]
[null,null,null,null,"","67620",null,"Canine OrthopedicsandGait Analysis Rsch 44574 ",null,"Canine OrthopedicsandGait Analysis Rsch 44574",null,null,null,null,null,null,null,null,null,null,null,null,null,null,null,null,null,null,null,null,null,null,"","GLLCMB4231",null,"Clifford Saron CENTER FOR MIND And BRAIN GL Only ",null,"Clifford Saron CENTER FOR MIND And BRAIN GL Only",null,null,null,null,""]
[null,null,null,null,"","67627",null,"Master Gardener Demo Garden 44581 ",null,"Master Gardener Demo Garden 44581",null,null,null,null,null,null,null,null,null,null,null,null,null,null,null,null,null,null,null,null,null,null,"","GLLCMN1130",null,"Maximo Torreblanca COMMUNICATION GL Only ",null,"Maximo Torreblanca COMMUNICATION GL Only",null,null,null,null,""]
[null,null,null,null,"","67683",null,"Counseling CtrHouse Reunion 44637 ",null,"Counseling CtrHouse Reunion 44637",null,null,null,null,null,null,null,null,null,null,null,null,null,null,null,null,null,null,null,null,null,null,"","GLLCOM1817",null,"Brenda Schildgen COMPARATIVE LITERATURE GL Only ",null,"Brenda Schildgen COMPARATIVE LITERATURE GL Only",null,null,null,null,""]
[null,null,null,null,"","67766",null,"Boxing Sport Club 44720 ",null,"Boxing Sport Club 44720",null,null,null,null,null,null,null,null,null,null,null,null,null,null,null,null,null,null,null,null,null,null,"","GLLDRA3231",null,"Michele Leavy THEATRE And DANCE GL Only ",null,"Michele Leavy THEATRE And DANCE GL Only",null,null,null,null,""]
[null,null,null,null,"","67789",null,"Urology General Support 44743 ",null,"Urology General Support 44743",null,null,null,null,null,null,null,null,null,null,null,null,null,null,null,null,null,null,null,null,null,null,"","GLLEAL1308",null,"Yutian Tan EAST ASIAN LANG And CULTURES GL Only ",null,"Yutian Tan EAST ASIAN LANG And CULTURES GL Only",null,null,null,null,""]
[null,null,null,null,"","67861",null,"Ucce San Joaquin County Fund 44815 ",null,"Ucce San Joaquin County Fund 44815",null,null,null,null,null,null,null,null,null,null,null,null,null,null,null,null,null,null,null,null,null,null,"","GLLECN3440",null,"James Cloyne ECONOMICS GL Only ",null,"James Cloyne ECONOMICS GL Only",null,null,null,null,""]
[null,null,null,null,"","67884",null,"Wound Care Program 44838 ",null,"Wound Care Program 44838",null,null,null,null,null,null,null,null,null,null,null,null,null,null,null,null,null,null,null,null,null,null,"","GLLECN4908",null,"Santiago Perez ECONOMICS GL Only ",null,"Santiago Perez ECONOMICS GL Only",null,null,null,null,""]
[null,null,null,null,"","67947",null,"Human Rights Lecture Series 44901 ",null,"Human Rights Lecture Series 44901",null,null,null,null,null,null,null,null,null,null,null,null,null,null,null,null,null,null,null,null,null,null,"","GLLENL3296",null,"Rae Gouirand ENGLISH GL Only ",null,"Rae Gouirand ENGLISH GL Only",null,null,null,null,""]
[null,null,null,null,"","67997",null,"Skin RepairandWound Research 44951 ",null,"Skin RepairandWound Research 44951",null,null,null,null,null,null,null,null,null,null,null,null,null,null,null,null,null,null,null,null,null,null,"","GLLENL6909",null,"Cindy Ok ENGLISH GL Only ",null,"Cindy Ok ENGLISH GL Only",null,null,null,null,""]
[null,null,null,null,"","68075",null,"Solanki Memorial Fund For Ovarian Cancer 45029 ",null,"Solanki Memorial Fund For Ovarian Cancer 45029",null,null,null,null,null,null,null,null,null,null,null,null,null,null,null,null,null,null,null,null,null,null,"","GLLEPS5658",null,"Eliot Atekwana EARTH And PLANETARY SCIENCES GL Only ",null,"Eliot Atekwana EARTH And PLANETARY SCIENCES GL Only",null,null,null,null,""]
[null,null,null,null,"","68125",null,"Mohini Jain Family Foundation Award 45079 ",null,"Mohini Jain Family Foundation Award 45079",null,null,null,null,null,null,null,null,null,null,null,null,null,null,null,null,null,null,null,null,null,null,"","GLLGAR5012",null,"Jaimey Fisher GERMAN And RUSSIAN GL Only ",null,"Jaimey Fisher GERMAN And RUSSIAN GL Only",null,null,null,null,""]
[null,null,null,null,"","68160",null,"Mae Undergraduate Scholar Awards 45114 ",null,"Mae Undergraduate Scholar Awards 45114",null,null,null,null,null,null,null,null,null,null,null,null,null,null,null,null,null,null,null,null,null,null,"","GLLHIS0496",null,"Hsueh Chiang HISTORY GL Only ",null,"Hsueh Chiang HISTORY GL Only",null,null,null,null,""]
[null,null,null,null,"","68238",null,"EntomBiol Insecticide Res 45192 ",null,"EntomBiol Insecticide Res 45192",null,null,null,null,null,null,null,null,null,null,null,null,null,null,null,null,null,null,null,null,null,null,"","GLLIBR0568",null,"Juri Stratford UCDLIBRARY GL Only ",null,"Juri Stratford UCDLIBRARY GL Only",null,null,null,null,""]
[null,null,null,null,"","68257",null,"EntomOrnamental Insect Pests Res 45211 ",null,"EntomOrnamental Insect Pests Res 45211",null,null,null,null,null,null,null,null,null,null,null,null,null,null,null,null,null,null,null,null,null,null,"","GLLIBR4126",null,"Sandra Vella UCDLIBRARY GL Only ",null,"Sandra Vella UCDLIBRARY GL Only",null,null,null,null,""]
[null,null,null,null,"","68325",null,"EceIbm Fellowship 45277 ",null,"EceIbm Fellowship 45277",null,null,null,null,null,null,null,null,null,null,null,null,null,null,null,null,null,null,null,null,null,null,"","GLLLAW2609",null,"J Poulos SCHOOL OF LAW GL Only ",null,"J Poulos SCHOOL OF LAW GL Only",null,null,null,null,""]
[null,null,null,null,"","68340",null,"Env Hort Research Leiser 45292 ",null,"Env Hort Research Leiser 45292",null,null,null,null,null,null,null,null,null,null,null,null,null,null,null,null,null,null,null,null,null,null,"","GLLLAW3325",null,"Christopher Gong Ide Don SCHOOL OF LAW GL Only ",null,"Christopher Gong Ide Don SCHOOL OF LAW GL Only",null,null,null,null,""]
[null,null,null,null,"","68417",null,"Proteomics Research 45369 ",null,"Proteomics Research 45369",null,null,null,null,null,null,null,null,null,null,null,null,null,null,null,null,null,null,null,null,null,null,"","GLLLIN3251",null,"Santiago Barreda Castanon LINGUISTICS GL Only ",null,"Santiago Barreda Castanon LINGUISTICS GL Only",null,null,null,null,""]
[null,null,null,null,"","68422",null,"Dr Patricia Gilbert Scholarship 45374 ",null,"Dr Patricia Gilbert Scholarship 45374",null,null,null,null,null,null,null,null,null,null,null,null,null,null,null,null,null,null,null,null,null,null,"","GLLLIN3942",null,"Wilbur Benware LINGUISTICS GL Only ",null,"Wilbur Benware LINGUISTICS GL Only",null,null,null,null,""]
[null,null,null,null,"","68465",null,"Fec Theory CommunICAtionandData Storage 45417 ",null,"Fec Theory CommunICAtionandData Storage 45417",null,null,null,null,null,null,null,null,null,null,null,null,null,null,null,null,null,null,null,null,null,null,"","GLLMAT1947",null,"Janko Gravner MATHEMATICS GL Only ",null,"Janko Gravner MATHEMATICS GL Only",null,null,null,null,""]
[null,null,null,null,"","68557",null,"Surgery Grateful Patient Fund 45508 ",null,"Surgery Grateful Patient Fund 45508",null,null,null,null,null,null,null,null,null,null,null,null,null,null,null,null,null,null,null,null,null,null,"","GLLMAT5788",null,"Edward Goldsmith MATHEMATICS GL Only ",null,"Edward Goldsmith MATHEMATICS GL Only",null,null,null,null,""]
[null,null,null,null,"","68587",null,"LEVINE FOUNDATION INNOVATION FUND ",null,"LEVINE FOUNDATION INNOVATION FUND",null,null,null,null,null,null,null,null,null,null,null,null,null,null,null,null,null,null,null,null,null,null,"","GLLMSA1651",null,"Navid Saberi Najafi MIDDLE EAST SOUTH ASIA PROGRAM GL Only ",null,"Navid Saberi Najafi MIDDLE EAST SOUTH ASIA PROGRAM GL Only",null,null,null,null,""]
[null,null,null,null,"","68656",null,"Ofc Of Provost UCD History Project 45607 ",null,"Ofc Of Provost UCD History Project 45607",null,null,null,null,null,null,null,null,null,null,null,null,null,null,null,null,null,null,null,null,null,null,"","GLLMUS5244",null,"Kerstin Allvin MUSIC GL Only ",null,"Kerstin Allvin MUSIC GL Only",null,null,null,null,""]
[null,null,null,null,"","68684",null,"Dar State Honey Bee Research Project 45635 ",null,"Dar State Honey Bee Research Project 45635",null,null,null,null,null,null,null,null,null,null,null,null,null,null,null,null,null,null,null,null,null,null,"","GLLNAS5144",null,"Juan Avila Hernandez NATIVE AMERICAN STUDIES GL Only ",null,"Juan Avila Hernandez NATIVE AMERICAN STUDIES GL Only",null,null,null,null,""]
[null,null,null,null,"","68769",null,"Multiple Myeloma Research 45722 ",null,"Multiple Myeloma Research 45722",null,null,null,null,null,null,null,null,null,null,null,null,null,null,null,null,null,null,null,null,null,null,"","GLLPHI6284",null,"Elvira Basevich PHILOSOPHY GL Only ",null,"Elvira Basevich PHILOSOPHY GL Only",null,null,null,null,""]
[null,null,null,null,"","68812",null,"Ca Linking Through 2020 Symposium 45765 ",null,"Ca Linking Through 2020 Symposium 45765",null,null,null,null,null,null,null,null,null,null,null,null,null,null,null,null,null,null,null,null,null,null,"","GLLPHY1892",null,"Veronika Hubeny PHYSICS GL Only ",null,"Veronika Hubeny PHYSICS GL Only",null,null,null,null,""]
[null,null,null,null,"","68838",null,"Earl HenryChopSwain Memorial Schp 45791 ",null,"Earl HenryChopSwain Memorial Schp 45791",null,null,null,null,null,null,null,null,null,null,null,null,null,null,null,null,null,null,null,null,null,null,"","GLLPHY3525",null,"Shirley Chiang PHYSICS GL Only ",null,"Shirley Chiang PHYSICS GL Only",null,null,null,null,""]
[null,null,null,null,"","68905",null,"StanleyandJacqueline Schilling Fund 45858 ",null,"StanleyandJacqueline Schilling Fund 45858",null,null,null,null,null,null,null,null,null,null,null,null,null,null,null,null,null,null,null,null,null,null,"","GLLPOL2537",null,"Joyce Kallgren POLITICAL SCIENCE GL Only ",null,"Joyce Kallgren POLITICAL SCIENCE GL Only",null,null,null,null,""]
[null,null,null,null,"","68935",null,"Canine Infectious Disease Research 45888 ",null,"Canine Infectious Disease Research 45888",null,null,null,null,null,null,null,null,null,null,null,null,null,null,null,null,null,null,null,null,null,null,"","GLLPOL6915",null,"Bianca Vicuna POLITICAL SCIENCE GL Only ",null,"Bianca Vicuna POLITICAL SCIENCE GL Only",null,null,null,null,""]
[null,null,null,null,"","68988",null,"FsandT Research Guinard 45943 ",null,"FsandT Research Guinard 45943",null,null,null,null,null,null,null,null,null,null,null,null,null,null,null,null,null,null,null,null,null,null,"","GLLPSC4022",null,"George Mangun PSYCHOLOGY GL Only ",null,"George Mangun PSYCHOLOGY GL Only",null,null,null,null,""]
[null,null,null,null,"","69030",null,"Eye Center ResearchandEd Moshiri 46407 ",null,"Eye Center ResearchandEd Moshiri 46407",null,null,null,null,null,null,null,null,null,null,null,null,null,null,null,null,null,null,null,null,null,null,"","GLLREL2004",null,"Keith Watenpaugh RELIGIOUS STUDIES GL Only ",null,"Keith Watenpaugh RELIGIOUS STUDIES GL Only",null,null,null,null,""]
[null,null,null,null,"","69087",null,"Med Diagnostic Research Badawi 46464 ",null,"Med Diagnostic Research Badawi 46464",null,null,null,null,null,null,null,null,null,null,null,null,null,null,null,null,null,null,null,null,null,null,"","GLLSDA0625",null,"K Thompson LS DEAN GL Only ",null,"K Thompson LS DEAN GL Only",null,null,null,null,""]
[null,null,null,null,"","69154",null,"Sports Medicine ResearchandEducation 46531 ",null,"Sports Medicine ResearchandEducation 46531",null,null,null,null,null,null,null,null,null,null,null,null,null,null,null,null,null,null,null,null,null,null,"","GLLSOC4773",null,"Courtney Caviness SOCIOLOGY GL Only ",null,"Courtney Caviness SOCIOLOGY GL Only",null,null,null,null,""]
[null,null,null,null,"","69231",null,"Richard Harris Urban Horticulture Schp 46607 ",null,"Richard Harris Urban Horticulture Schp 46607",null,null,null,null,null,null,null,null,null,null,null,null,null,null,null,null,null,null,null,null,null,null,"","GLLSTS5471",null,"Finn Brunton SCIENCE And TECHNOLOGY STUDIES GL Only ",null,"Finn Brunton SCIENCE And TECHNOLOGY STUDIES GL Only",null,null,null,null,""]
[null,null,null,null,"","69259",null,"Physician Education Program 46635 ",null,"Physician Education Program 46635",null,null,null,null,null,null,null,null,null,null,null,null,null,null,null,null,null,null,null,null,null,null,"","GLLUWP0882",null,"David Masiel UNIVERSITY WRITING PROGRAM GL Only ",null,"David Masiel UNIVERSITY WRITING PROGRAM GL Only",null,null,null,null,""]
[null,null,null,null,"","69333",null,"Equine Resident Support 46709 ",null,"Equine Resident Support 46709",null,null,null,null,null,null,null,null,null,null,null,null,null,null,null,null,null,null,null,null,null,null,"","GLLUWP3576",null,"Gregory Miller UNIVERSITY WRITING PROGRAM GL Only ",null,"Gregory Miller UNIVERSITY WRITING PROGRAM GL Only",null,null,null,null,""]
[null,null,null,null,"","69371",null,"Poultry Carcass Composting Research Pp 46747 ",null,"Poultry Carcass Composting Research Pp 46747",null,null,null,null,null,null,null,null,null,null,null,null,null,null,null,null,null,null,null,null,null,null,"","GLLUWP5447",null,"Russ Carpenter UNIVERSITY WRITING PROGRAM GL Only ",null,"Russ Carpenter UNIVERSITY WRITING PROGRAM GL Only",null,null,null,null,""]
[null,null,null,null,"","69417",null,"California Rodeo Salinas Scholarship 46793 ",null,"California Rodeo Salinas Scholarship 46793",null,null,null,null,null,null,null,null,null,null,null,null,null,null,null,null,null,null,null,null,null,null,"","GLMANS0709",null,"Zheng Yuan Xia MED Anesth And Pain Medicine GL Only ",null,"Zheng Yuan Xia MED Anesth And Pain Medicine GL Only",null,null,null,null,""]
[null,null,null,null,"","69462",null,"Academic Program Development Fund 46838 ",null,"Academic Program Development Fund 46838",null,null,null,null,null,null,null,null,null,null,null,null,null,null,null,null,null,null,null,null,null,null,"","GLMANS2392",null,"Marissa Vadi MED Anesth And Pain Medicine GL Only ",null,"Marissa Vadi MED Anesth And Pain Medicine GL Only",null,null,null,null,""]
[null,null,null,null,"","69510",null,"Son Nppa Student Conference 46886 ",null,"Son Nppa Student Conference 46886",null,null,null,null,null,null,null,null,null,null,null,null,null,null,null,null,null,null,null,null,null,null,"","GLMANS4678",null,"Leland Hanowell MED Anesth And Pain Medicine GL Only ",null,"Leland Hanowell MED Anesth And Pain Medicine GL Only",null,null,null,null,""]
[null,null,null,null,"","69558",null,"Mg Master Food Preserver Program 46935 ",null,"Mg Master Food Preserver Program 46935",null,null,null,null,null,null,null,null,null,null,null,null,null,null,null,null,null,null,null,null,null,null,"","GLMARN6113",null,"David Lewis UCCE MARIN COUNTY ",null,"David Lewis UCCE MARIN COUNTY",null,null,null,null,""]
[null,null,null,null,"","69587",null,"VM Molecular Biosciences Rsch Moore 46964 ",null,"VM Molecular Biosciences Rsch Moore 46964",null,null,null,null,null,null,null,null,null,null,null,null,null,null,null,null,null,null,null,null,null,null,"","GLMARO5573",null,"Jason Matney MED Radiation Oncology GL Only ",null,"Jason Matney MED Radiation Oncology GL Only",null,null,null,null,""]
[null,null,null,null,"","69683",null,"Hiv ResearchandInstruction Asmuth 47061 ",null,"Hiv ResearchandInstruction Asmuth 47061",null,null,null,null,null,null,null,null,null,null,null,null,null,null,null,null,null,null,null,null,null,null,"","GLMDER0618",null,"Ern Loh MED Dermatology GL Only ",null,"Ern Loh MED Dermatology GL Only",null,null,null,null,""]
[null,null,null,null,"","69701",null,"Student Etiquette Dinner Program 47079 ",null,"Student Etiquette Dinner Program 47079",null,null,null,null,null,null,null,null,null,null,null,null,null,null,null,null,null,null,null,null,null,null,"","GLMDER1959",null,"An Yen MED Dermatology GL Only ",null,"An Yen MED Dermatology GL Only",null,null,null,null,""]
[null,null,null,null,"","69737",null,"Audiology Services 47115 ",null,"Audiology Services 47115",null,null,null,null,null,null,null,null,null,null,null,null,null,null,null,null,null,null,null,null,null,null,"","GLMDER5409",null,"Theresa Canavan MED Dermatology GL Only ",null,"Theresa Canavan MED Dermatology GL Only",null,null,null,null,""]
[null,null,null,null,"","69789",null,"Westall Mental HealthandFamilies Fund 47167 ",null,"Westall Mental HealthandFamilies Fund 47167",null,null,null,null,null,null,null,null,null,null,null,null,null,null,null,null,null,null,null,null,null,null,"","GLMEPM1089",null,"Patrick Koga MED Public Health Sciences GL Only ",null,"Patrick Koga MED Public Health Sciences GL Only",null,null,null,null,""]
[null,null,null,null,"","69831",null,"Beat Heart Disease Research 47209 ",null,"Beat Heart Disease Research 47209",null,null,null,null,null,null,null,null,null,null,null,null,null,null,null,null,null,null,null,null,null,null,"","GLMEPM3599",null,"Marcella Gonsalves MED Public Health Sciences GL Only ",null,"Marcella Gonsalves MED Public Health Sciences GL Only",null,null,null,null,""]
[null,null,null,null,"","69881",null,"Fst Research Mccarthy 47259 ",null,"Fst Research Mccarthy 47259",null,null,null,null,null,null,null,null,null,null,null,null,null,null,null,null,null,null,null,null,null,null,"","GLMEPM5823",null,"Hong Li MED Public Health Sciences GL Only ",null,"Hong Li MED Public Health Sciences GL Only",null,null,null,null,""]
[null,null,null,null,"","69925",null,"Kittybiome Study Eisen Lab 47303 ",null,"Kittybiome Study Eisen Lab 47303",null,null,null,null,null,null,null,null,null,null,null,null,null,null,null,null,null,null,null,null,null,null,"","GLMERM1332",null,"Kenneth Kelley MED Emergency Medicine GL Only ",null,"Kenneth Kelley MED Emergency Medicine GL Only",null,null,null,null,""]
[null,null,null,null,"","69997",null,"Diabetes A1C Masters Program 47375 ",null,"Diabetes A1C Masters Program 47375",null,null,null,null,null,null,null,null,null,null,null,null,null,null,null,null,null,null,null,null,null,null,"","GLMERM3671",null,"Samuel Clarke MED Emergency Medicine GL Only ",null,"Samuel Clarke MED Emergency Medicine GL Only",null,null,null,null,""]
[null,null,null,null,"","70017",null,"Riverside SubtropICAl Horticulture Fund 47395 ",null,"Riverside SubtropICAl Horticulture Fund 47395",null,null,null,null,null,null,null,null,null,null,null,null,null,null,null,null,null,null,null,null,null,null,"","GLMERM4512",null,"Douglas Gibson MED Emergency Medicine GL Only ",null,"Douglas Gibson MED Emergency Medicine GL Only",null,null,null,null,""]
[null,null,null,null,"","70070",null,"Linda Frances Alexander Scholars Program 47448 ",null,"Linda Frances Alexander Scholars Program 47448",null,null,null,null,null,null,null,null,null,null,null,null,null,null,null,null,null,null,null,null,null,null,"","GLMFCM0859",null,"Lauren Carpenter MED Family And Community Med GL Only ",null,"Lauren Carpenter MED Family And Community Med GL Only",null,null,null,null,""]
[null,null,null,null,"","70105",null,"Muslim Alumni Association Fund 47483 ",null,"Muslim Alumni Association Fund 47483",null,null,null,null,null,null,null,null,null,null,null,null,null,null,null,null,null,null,null,null,null,null,"","GLMFCM2273",null,"Sadiah Iqbal MED Family And Community Med GL Only ",null,"Sadiah Iqbal MED Family And Community Med GL Only",null,null,null,null,""]
[null,null,null,null,"","70149",null,"HoneyandPollination Center Springcreek 47527 ",null,"HoneyandPollination Center Springcreek 47527",null,null,null,null,null,null,null,null,null,null,null,null,null,null,null,null,null,null,null,null,null,null,"","GLMFCM3677",null,"Daniel Parker MED Family And Community Med GL Only ",null,"Daniel Parker MED Family And Community Med GL Only",null,null,null,null,""]
[null,null,null,null,"","70182",null,"ORANGE COUNTY REGIONAL SCHOLARSHIP ",null,"ORANGE COUNTY REGIONAL SCHOLARSHIP",null,null,null,null,null,null,null,null,null,null,null,null,null,null,null,null,null,null,null,null,null,null,"","GLMFCM4659",null,"Apurva Parmar MED Family And Community Med GL Only ",null,"Apurva Parmar MED Family And Community Med GL Only",null,null,null,null,""]
[null,null,null,null,"","70247",null,"SIERRA ENERGY BIG BANG! SYNGAS CHALLENGE ",null,"SIERRA ENERGY BIG BANG! SYNGAS CHALLENGE",null,null,null,null,null,null,null,null,null,null,null,null,null,null,null,null,null,null,null,null,null,null,"","GLMFCM5865",null,"Antoinette Martinez MED Family And Community Med GL Only ",null,"Antoinette Martinez MED Family And Community Med GL Only",null,null,null,null,""]
[null,null,null,null,"","70293",null,"Pushing Past Cancer Conference 47675 ",null,"Pushing Past Cancer Conference 47675",null,null,null,null,null,null,null,null,null,null,null,null,null,null,null,null,null,null,null,null,null,null,"","GLMHPH2734",null,"John Payne MED Physiology And Membrane Biol GL Only ",null,"John Payne MED Physiology And Membrane Biol GL Only",null,null,null,null,""]
[null,null,null,null,"","70325",null,"Chemistry Honors Program 47707 ",null,"Chemistry Honors Program 47707",null,null,null,null,null,null,null,null,null,null,null,null,null,null,null,null,null,null,null,null,null,null,"","GLMINT1523",null,"Moudy Youssef MED Int Med Admin GL Only ",null,"Moudy Youssef MED Int Med Admin GL Only",null,null,null,null,""]
[null,null,null,null,"","70390",null,"Schneidel Post Radiation Quality Of Life 47769 ",null,"Schneidel Post Radiation Quality Of Life 47769",null,null,null,null,null,null,null,null,null,null,null,null,null,null,null,null,null,null,null,null,null,null,"","GLMINT5716",null,"Francis Essien MED Int Med Admin GL Only ",null,"Francis Essien MED Int Med Admin GL Only",null,null,null,null,""]
[null,null,null,null,"","70409",null,"Animals In Fires Care 47788 ",null,"Animals In Fires Care 47788",null,null,null,null,null,null,null,null,null,null,null,null,null,null,null,null,null,null,null,null,null,null,"","GLMINT5924",null,"Alexander Becka MED Int Med Admin GL Only ",null,"Alexander Becka MED Int Med Admin GL Only",null,null,null,null,""]
[null,null,null,null,"","70451",null,"Che General Support Fund 47832 ",null,"Che General Support Fund 47832",null,null,null,null,null,null,null,null,null,null,null,null,null,null,null,null,null,null,null,null,null,null,"","GLMNEU0340",null,"Ricardo Maselli MED Neurology GL Only ",null,"Ricardo Maselli MED Neurology GL Only",null,null,null,null,""]
[null,null,null,null,"","70502",null,"MechanICAl Design Project Course 47883 ",null,"MechanICAl Design Project Course 47883",null,null,null,null,null,null,null,null,null,null,null,null,null,null,null,null,null,null,null,null,null,null,"","GLMNEU3408",null,"Erin Bigler MED Neurology GL Only ",null,"Erin Bigler MED Neurology GL Only",null,null,null,null,""]
[null,null,null,null,"","70523",null,"Cws Ecogeomorphology Fund 47904 ",null,"Cws Ecogeomorphology Fund 47904",null,null,null,null,null,null,null,null,null,null,null,null,null,null,null,null,null,null,null,null,null,null,"","GLMNEU4988",null,"Kwan Ng MED Neurology GL Only ",null,"Kwan Ng MED Neurology GL Only",null,null,null,null,""]
[null,null,null,null,"","70594",null,"MasterS Entry Program In Nursing Schp 48072 ",null,"MasterS Entry Program In Nursing Schp 48072",null,null,null,null,null,null,null,null,null,null,null,null,null,null,null,null,null,null,null,null,null,null,"","GLMNSG5755",null,"Jonghoon Kim MED Neurological Surgery GL Only ",null,"Jonghoon Kim MED Neurological Surgery GL Only",null,null,null,null,""]
[null,null,null,null,"","70606",null,"GSM'S ROY & EDITH KANOFF OPPORTUNITY FD ",null,"GSM'S ROY & EDITH KANOFF OPPORTUNITY FD",null,null,null,null,null,null,null,null,null,null,null,null,null,null,null,null,null,null,null,null,null,null,"","GLMOBG0701",null,"Nancy Field MED Obstetrics And Gynecology GL Only ",null,"Nancy Field MED Obstetrics And Gynecology GL Only",null,null,null,null,""]
[null,null,null,null,"","70696",null,"Nvidia Graduate Fellowship AwdAshkiani 48174 ",null,"Nvidia Graduate Fellowship AwdAshkiani 48174",null,null,null,null,null,null,null,null,null,null,null,null,null,null,null,null,null,null,null,null,null,null,"","GLMOBG5596",null,"Anne Flynn MED Obstetrics And Gynecology GL Only ",null,"Anne Flynn MED Obstetrics And Gynecology GL Only",null,null,null,null,""]
[null,null,null,null,"","70741",null,"Inter MedAm Heart 48219 ",null,"Inter MedAm Heart 48219",null,null,null,null,null,null,null,null,null,null,null,null,null,null,null,null,null,null,null,null,null,null,"","GLMOPH1095",null,"David Kira MED Eye Center GL Only ",null,"David Kira MED Eye Center GL Only",null,null,null,null,""]
[null,null,null,null,"","70783",null,"Med UrologyCancer Research 48261 ",null,"Med UrologyCancer Research 48261",null,null,null,null,null,null,null,null,null,null,null,null,null,null,null,null,null,null,null,null,null,null,"","GLMOPH4447",null,"Lawrence Morse MED Eye Center GL Only ",null,"Lawrence Morse MED Eye Center GL Only",null,null,null,null,""]
[null,null,null,null,"","70824",null,"KENTARO INOUE MEMORIAL BENCH FUND ",null,"KENTARO INOUE MEMORIAL BENCH FUND",null,null,null,null,null,null,null,null,null,null,null,null,null,null,null,null,null,null,null,null,null,null,"","GLMORT1551",null,"Amir Jamali MED Orthopaedic Surgery GL Only ",null,"Amir Jamali MED Orthopaedic Surgery GL Only",null,null,null,null,""]
[null,null,null,null,"","70832",null,"Inter MedEquitable 48310 ",null,"Inter MedEquitable 48310",null,null,null,null,null,null,null,null,null,null,null,null,null,null,null,null,null,null,null,null,null,null,"","GLMORT1986",null,"Robert Randall MED Orthopaedic Surgery GL Only ",null,"Robert Randall MED Orthopaedic Surgery GL Only",null,null,null,null,""]
[null,null,null,null,"","70904",null,"Med OrthoOrthopaedic Res 48382 ",null,"Med OrthoOrthopaedic Res 48382",null,null,null,null,null,null,null,null,null,null,null,null,null,null,null,null,null,null,null,null,null,null,"","GLMOTO2909",null,"Edward Strong MED Otolaryngology GL Only ",null,"Edward Strong MED Otolaryngology GL Only",null,null,null,null,""]
[null,null,null,null,"","70927",null,"Med Surg Research Blaisdell 48405 ",null,"Med Surg Research Blaisdell 48405",null,null,null,null,null,null,null,null,null,null,null,null,null,null,null,null,null,null,null,null,null,null,"","GLMOTO4774",null,"Scott Fuller MED Otolaryngology GL Only ",null,"Scott Fuller MED Otolaryngology GL Only",null,null,null,null,""]
[null,null,null,null,"","70987",null,"Med Path Diagnostic Lab 48465 ",null,"Med Path Diagnostic Lab 48465",null,null,null,null,null,null,null,null,null,null,null,null,null,null,null,null,null,null,null,null,null,null,"","GLMPAT2387",null,"Christian Hansen MED Pathology And Lab Medicine GL Only ",null,"Christian Hansen MED Pathology And Lab Medicine GL Only",null,null,null,null,""]
[null,null,null,null,"","71028",null,"Med PharmToxCocensys 48506 ",null,"Med PharmToxCocensys 48506",null,null,null,null,null,null,null,null,null,null,null,null,null,null,null,null,null,null,null,null,null,null,"","GLMPAT4757",null,"Raymond Teplitz MED Pathology And Lab Medicine GL Only ",null,"Raymond Teplitz MED Pathology And Lab Medicine GL Only",null,null,null,null,""]
[null,null,null,null,"","71071",null,"Pulmonary Services Support 48549 ",null,"Pulmonary Services Support 48549",null,null,null,null,null,null,null,null,null,null,null,null,null,null,null,null,null,null,null,null,null,null,"","GLMPED0788",null,"Kristin Hoffman MED Pediatrics GL Only ",null,"Kristin Hoffman MED Pediatrics GL Only",null,null,null,null,""]
[null,null,null,null,"","71126",null,"Med Micro Baxter Funded Reseach 48605 ",null,"Med Micro Baxter Funded Reseach 48605",null,null,null,null,null,null,null,null,null,null,null,null,null,null,null,null,null,null,null,null,null,null,"","GLMPED1638",null,"Maria Norma Banez MED Pediatrics GL Only ",null,"Maria Norma Banez MED Pediatrics GL Only",null,null,null,null,""]
[null,null,null,null,"","71173",null,"Inter Med Research Laslett 48652 ",null,"Inter Med Research Laslett 48652",null,null,null,null,null,null,null,null,null,null,null,null,null,null,null,null,null,null,null,null,null,null,"","GLMPED2676",null,"James Marcin MED Pediatrics GL Only ",null,"James Marcin MED Pediatrics GL Only",null,null,null,null,""]
[null,null,null,null,"","71228",null,"Med OrthopResident Res Projects 48707 ",null,"Med OrthopResident Res Projects 48707",null,null,null,null,null,null,null,null,null,null,null,null,null,null,null,null,null,null,null,null,null,null,"","GLMPED3795",null,"Jonathan Thygeson MED Pediatrics GL Only ",null,"Jonathan Thygeson MED Pediatrics GL Only",null,null,null,null,""]
[null,null,null,null,"","71263",null,"ImEducation Programs 48742 ",null,"ImEducation Programs 48742",null,null,null,null,null,null,null,null,null,null,null,null,null,null,null,null,null,null,null,null,null,null,"","GLMPED4274",null,"Noriko Satake MED Pediatrics GL Only ",null,"Noriko Satake MED Pediatrics GL Only",null,null,null,null,""]
[null,null,null,null,"","71322",null,"Imagining AmerICA 48801 ",null,"Imagining AmerICA 48801",null,null,null,null,null,null,null,null,null,null,null,null,null,null,null,null,null,null,null,null,null,null,"","GLMPED5506",null,"Shantha Parameswaran MED Pediatrics GL Only ",null,"Shantha Parameswaran MED Pediatrics GL Only",null,null,null,null,""]
[null,null,null,null,"","71339",null,"3P PARTNERSHIPS STUDENT AWARD ",null,"3P PARTNERSHIPS STUDENT AWARD",null,null,null,null,null,null,null,null,null,null,null,null,null,null,null,null,null,null,null,null,null,null,"","GLMPED5792",null,"Altangerel Manal MED Pediatrics GL Only ",null,"Altangerel Manal MED Pediatrics GL Only",null,null,null,null,""]
[null,null,null,null,"","71416",null,"Ucce Kern IntL Carrot Conference 48896 ",null,"Ucce Kern IntL Carrot Conference 48896",null,null,null,null,null,null,null,null,null,null,null,null,null,null,null,null,null,null,null,null,null,null,"","GLMPMR1544",null,"Julie Ingwerson MED Physical Medicine And Rehab GL Only ",null,"Julie Ingwerson MED Physical Medicine And Rehab GL Only",null,null,null,null,""]
[null,null,null,null,"","71456",null,"PlugIn HybridandElectric Vehicle Center 48936 ",null,"PlugIn HybridandElectric Vehicle Center 48936",null,null,null,null,null,null,null,null,null,null,null,null,null,null,null,null,null,null,null,null,null,null,"","GLMPSY0686",null,"Suzanne Shimoyama MED Psychiatry And Behav Sci GL Only ",null,"Suzanne Shimoyama MED Psychiatry And Behav Sci GL Only",null,null,null,null,""]
[null,null,null,null,"","71500",null,"White Wine ShelfLife Research 48980 ",null,"White Wine ShelfLife Research 48980",null,null,null,null,null,null,null,null,null,null,null,null,null,null,null,null,null,null,null,null,null,null,"","GLMPSY1735",null,"James Bourgeois MED Psychiatry And Behav Sci GL Only ",null,"James Bourgeois MED Psychiatry And Behav Sci GL Only",null,null,null,null,""]
[null,null,null,null,"","71543",null,"Feline Herpes Virus Research 49023 ",null,"Feline Herpes Virus Research 49023",null,null,null,null,null,null,null,null,null,null,null,null,null,null,null,null,null,null,null,null,null,null,"","GLMPSY2867",null,"Sarah Jackson MED Psychiatry And Behav Sci GL Only ",null,"Sarah Jackson MED Psychiatry And Behav Sci GL Only",null,null,null,null,""]
[null,null,null,null,"","71549",null,"Dietetic Food Nutrition Steinberg 49029 ",null,"Dietetic Food Nutrition Steinberg 49029",null,null,null,null,null,null,null,null,null,null,null,null,null,null,null,null,null,null,null,null,null,null,"","GLMPSY2997",null,"Andres Sciolla MED Psychiatry And Behav Sci GL Only ",null,"Andres Sciolla MED Psychiatry And Behav Sci GL Only",null,null,null,null,""]
[null,null,null,null,"","71634",null,"Nas Department Support 49114 ",null,"Nas Department Support 49114",null,null,null,null,null,null,null,null,null,null,null,null,null,null,null,null,null,null,null,null,null,null,"","GLMPSY4783",null,"Sally Ozonoff MED Psychiatry And Behav Sci GL Only ",null,"Sally Ozonoff MED Psychiatry And Behav Sci GL Only",null,null,null,null,""]
[null,null,null,null,"","71654",null,"Neuro Myasthenia Gravis 49134 ",null,"Neuro Myasthenia Gravis 49134",null,null,null,null,null,null,null,null,null,null,null,null,null,null,null,null,null,null,null,null,null,null,"","GLMPSY5028",null,"Zachary Shindorf MED Psychiatry And Behav Sci GL Only ",null,"Zachary Shindorf MED Psychiatry And Behav Sci GL Only",null,null,null,null,""]
[null,null,null,null,"","71706",null,"ChancellorS Mondavi Discretionary Fund 49187 ",null,"ChancellorS Mondavi Discretionary Fund 49187",null,null,null,null,null,null,null,null,null,null,null,null,null,null,null,null,null,null,null,null,null,null,"","GLMRAD0841",null,"Shannon Navarro MED Radiology GL Only ",null,"Shannon Navarro MED Radiology GL Only",null,null,null,null,""]
[null,null,null,null,"","71743",null,"Wcfs Support 49224 ",null,"Wcfs Support 49224",null,null,null,null,null,null,null,null,null,null,null,null,null,null,null,null,null,null,null,null,null,null,"","GLMRAD2698",null,"Sima Naderi MED Radiology GL Only ",null,"Sima Naderi MED Radiology GL Only",null,null,null,null,""]
[null,null,null,null,"","71824",null,"UCD Care Program Support 49305 ",null,"UCD Care Program Support 49305",null,null,null,null,null,null,null,null,null,null,null,null,null,null,null,null,null,null,null,null,null,null,"","GLMRAD5403",null,"Benjamin Carney MED Radiology GL Only ",null,"Benjamin Carney MED Radiology GL Only",null,null,null,null,""]
[null,null,null,null,"","71871",null,"NutriVarious Donors 49352 ",null,"NutriVarious Donors 49352",null,null,null,null,null,null,null,null,null,null,null,null,null,null,null,null,null,null,null,null,null,null,"","GLMSUR1550",null,"Michael Wong MED Surgery GL Only ",null,"Michael Wong MED Surgery GL Only",null,null,null,null,""]
[null,null,null,null,"","71939",null,"Uc Immigrant Legal Service Ctr Attorney 49419 ",null,"Uc Immigrant Legal Service Ctr Attorney 49419",null,null,null,null,null,null,null,null,null,null,null,null,null,null,null,null,null,null,null,null,null,null,"","GLMSUR4458",null,"Robert Canter MED Surgery GL Only ",null,"Robert Canter MED Surgery GL Only",null,null,null,null,""]
[null,null,null,null,"","71950",null,"Highly Frustrated Magnetism Conference 49430 ",null,"Highly Frustrated Magnetism Conference 49430",null,null,null,null,null,null,null,null,null,null,null,null,null,null,null,null,null,null,null,null,null,null,"","GLMSUR4731",null,"David Cooke MED Surgery GL Only ",null,"David Cooke MED Surgery GL Only",null,null,null,null,""]
[null,null,null,null,"","71988",null,"Viet Nam Studies Initiative Program 49469 ",null,"Viet Nam Studies Initiative Program 49469",null,null,null,null,null,null,null,null,null,null,null,null,null,null,null,null,null,null,null,null,null,null,"","GLMSUR5904",null,"Ravi Sood MED Surgery GL Only ",null,"Ravi Sood MED Surgery GL Only",null,null,null,null,""]
[null,null,null,null,"","72028",null,"Phyllis J Heppe Wildlife Residency Prgm 49510 ",null,"Phyllis J Heppe Wildlife Residency Prgm 49510",null,null,null,null,null,null,null,null,null,null,null,null,null,null,null,null,null,null,null,null,null,null,"","GLMUROCLUC",null,"Christopher Lucchesi Urologic Surgery GL ONLY ",null,"Christopher Lucchesi Urologic Surgery GL ONLY",null,null,null,null,""]
[null,null,null,null,"","72069",null,"Ucce Fresno LivestockandNatural Rsrcs 49552 ",null,"Ucce Fresno LivestockandNatural Rsrcs 49552",null,null,null,null,null,null,null,null,null,null,null,null,null,null,null,null,null,null,null,null,null,null,"","GLNURS0663",null,"Felix Emond School of Nursing GL Only ",null,"Felix Emond School of Nursing GL Only",null,null,null,null,""]
[null,null,null,null,"","72113",null,"All Species Imaging Center Fund 49596 ",null,"All Species Imaging Center Fund 49596",null,null,null,null,null,null,null,null,null,null,null,null,null,null,null,null,null,null,null,null,null,null,"","GLNURS5200",null,"Robyn Huey Lao School of Nursing GL Only ",null,"Robyn Huey Lao School of Nursing GL Only",null,null,null,null,""]
[null,null,null,null,"","72166",null,"Poultry Health and Red Mite Infestations 49649 ",null,"Poultry Health and Red Mite Infestations 49649",null,null,null,null,null,null,null,null,null,null,null,null,null,null,null,null,null,null,null,null,null,null,"","GLPROG5136",null,"Linda Manton STATEWIDE PROGRAM OPERATIONS GL Only ",null,"Linda Manton STATEWIDE PROGRAM OPERATIONS GL Only",null,null,null,null,""]
[null,null,null,null,"","72236",null,"UCD Grad Slam Competition Fund 49719 ",null,"UCD Grad Slam Competition Fund 49719",null,null,null,null,null,null,null,null,null,null,null,null,null,null,null,null,null,null,null,null,null,null,"","GLSONM6103",null,"Cindy Kron UCCE SONOMA COUNTY ",null,"Cindy Kron UCCE SONOMA COUNTY",null,null,null,null,""]
[null,null,null,null,"","72262",null,"5A Alumni Scholarship 49745 ",null,"5A Alumni Scholarship 49745",null,null,null,null,null,null,null,null,null,null,null,null,null,null,null,null,null,null,null,null,null,null,"","GLSUTY0133",null,"Janine Hasey UCCE SUTTERYUBA COUNTIES GL Only ",null,"Janine Hasey UCCE SUTTERYUBA COUNTIES GL Only",null,null,null,null,""]
[null,null,null,null,"","72310",null,"Pediatric Aids Patient Assistance 49793 ",null,"Pediatric Aids Patient Assistance 49793",null,null,null,null,null,null,null,null,null,null,null,null,null,null,null,null,null,null,null,null,null,null,"","GLUGED1799",null,"Gail Martinez UNDERGRADUATE EDUCATION GL Only ",null,"Gail Martinez UNDERGRADUATE EDUCATION GL Only",null,null,null,null,""]
[null,null,null,null,"","72361",null,"Cntr For Adv Pain Relief Excellence Fund 49844 ",null,"Cntr For Adv Pain Relief Excellence Fund 49844",null,null,null,null,null,null,null,null,null,null,null,null,null,null,null,null,null,null,null,null,null,null,"","GLVENT0199",null,"Julie Newman UCCE VENTURA COUNTY GL Only ",null,"Julie Newman UCCE VENTURA COUNTY GL Only",null,null,null,null,""]
[null,null,null,null,"","72404",null,"PhysicsMinority Program 49887 ",null,"PhysicsMinority Program 49887",null,null,null,null,null,null,null,null,null,null,null,null,null,null,null,null,null,null,null,null,null,null,"","GLVMEX0833",null,"Martin Smith VM EX Cooperative Extension ",null,"Martin Smith VM EX Cooperative Extension",null,null,null,null,""]
[null,null,null,null,"","72450",null,"Pancreatic Cancer clinical Trial Fund 49932 ",null,"Pancreatic Cancer clinical Trial Fund 49932",null,null,null,null,null,null,null,null,null,null,null,null,null,null,null,null,null,null,null,null,null,null,"","GLVPHR3149",null,"Danika Bannasch VM POPULATION HLTH And REPROD GL Only ",null,"Danika Bannasch VM POPULATION HLTH And REPROD GL Only",null,null,null,null,""]
[null,null,null,null,"","72491",null,"Plt PathPierce Disease Research 49973 ",null,"Plt PathPierce Disease Research 49973",null,null,null,null,null,null,null,null,null,null,null,null,null,null,null,null,null,null,null,null,null,null,"","GLVPMI0703",null,"Dennis Wilson VM PATHOLOGY MICRO And IMMUN GL Only ",null,"Dennis Wilson VM PATHOLOGY MICRO And IMMUN GL Only",null,null,null,null,""]
[null,null,null,null,"","72548",null,"PrimateLidak PharmaceutICAls 50030 ",null,"PrimateLidak PharmaceutICAls 50030",null,null,null,null,null,null,null,null,null,null,null,null,null,null,null,null,null,null,null,null,null,null,"","GLVPMI4724",null,"Kevin Woolard VM PATHOLOGY MICRO And IMMUN GL Only ",null,"Kevin Woolard VM PATHOLOGY MICRO And IMMUN GL Only",null,null,null,null,""]
[null,null,null,null,"","72583",null,"Rockwell Memorial 50977 ",null,"Rockwell Memorial 50977",null,null,null,null,null,null,null,null,null,null,null,null,null,null,null,null,null,null,null,null,null,null,"","GLVVMB2649",null,"Fredric Gorin VM MOLECULAR BIO SCIENCES GL Only ",null,"Fredric Gorin VM MOLECULAR BIO SCIENCES GL Only",null,null,null,null,""]
[null,null,null,null,"","72659",null,"SpanishandCl Dept Support 52596 ",null,"SpanishandCl Dept Support 52596",null,null,null,null,null,null,null,null,null,null,null,null,null,null,null,null,null,null,null,null,null,null,"","GLVVME3373",null,"Ian Gardner VM MEDICINE And EPIDEMIOLOGY GL Only ",null,"Ian Gardner VM MEDICINE And EPIDEMIOLOGY GL Only",null,null,null,null,""]
[null,null,null,null,"","72675",null,"Ernest HStanford Memorial Fd 52810 ",null,"Ernest HStanford Memorial Fd 52810",null,null,null,null,null,null,null,null,null,null,null,null,null,null,null,null,null,null,null,null,null,null,"","GLVVME3815",null,"Esteban Soto Martinez VM MEDICINE And EPIDEMIOLOGY GL Only ",null,"Esteban Soto Martinez VM MEDICINE And EPIDEMIOLOGY GL Only",null,null,null,null,""]
[null,null,null,null,"","72718",null,"John RTruscott Jr Memorial 53076 ",null,"John RTruscott Jr Memorial 53076",null,null,null,null,null,null,null,null,null,null,null,null,null,null,null,null,null,null,null,null,null,null,"","GLVVME5754",null,"Grace VanHoy VM MEDICINE And EPIDEMIOLOGY GL Only ",null,"Grace VanHoy VM MEDICINE And EPIDEMIOLOGY GL Only",null,null,null,null,""]
[null,null,null,null,"","72765",null,"Cost Grain Cptr Model Vrs Dnrs 53375 ",null,"Cost Grain Cptr Model Vrs Dnrs 53375",null,null,null,null,null,null,null,null,null,null,null,null,null,null,null,null,null,null,null,null,null,null,"","GLVVSR2079",null,"Xinbin Chen VM SURGRAD SCIENCE GL Only ",null,"Xinbin Chen VM SURGRAD SCIENCE GL Only",null,null,null,null,""]
[null,null,null,null,"","72810",null,"Rice Insect Research Gigarick 53453 ",null,"Rice Insect Research Gigarick 53453",null,null,null,null,null,null,null,null,null,null,null,null,null,null,null,null,null,null,null,null,null,null,"","GLVVSR4629",null,"William Culp VM SURGRAD SCIENCE GL Only ",null,"William Culp VM SURGRAD SCIENCE GL Only",null,null,null,null,""]
[null,null,null,null,"","72841",null,"Environmental Law Society Support 53521 ",null,"Environmental Law Society Support 53521",null,null,null,null,null,null,null,null,null,null,null,null,null,null,null,null,null,null,null,null,null,null,"","GLG0000003",null,"2020 21 Grad Prog Fellowship Allocation ",null,"2020 21 Grad Prog Fellowship Allocation",null,null,null,null,""]
[null,null,null,null,"","72898",null,"Plt PathPitch Canker Res 53650 ",null,"Plt PathPitch Canker Res 53650",null,null,null,null,null,null,null,null,null,null,null,null,null,null,null,null,null,null,null,null,null,null,"","GLG0000049",null,"Susan M Kauzlarich Inorganic Chem Felshp ",null,"Susan M Kauzlarich Inorganic Chem Felshp",null,null,null,null,""]
[null,null,null,null,"","72979",null,"DANR Yolo Pest Mang Research Long 54116 ",null,"DANR Yolo Pest Mang Research Long 54116",null,null,null,null,null,null,null,null,null,null,null,null,null,null,null,null,null,null,null,null,null,null,"","GLG0000112",null,"UC HBCU Initiative Funding 2016 17 ",null,"UC HBCU Initiative Funding 2016 17",null,null,null,null,""]
[null,null,null,null,"","73001",null,"VMapc Research Tablin 54214 ",null,"VMapc Research Tablin 54214",null,null,null,null,null,null,null,null,null,null,null,null,null,null,null,null,null,null,null,null,null,null,"","GLG0000130",null,"GS MEIP 2024 25 ",null,"GS MEIP 2024 25",null,null,null,null,""]
[null,null,null,null,"","73060",null,"Calaveras Cty Res 54561 ",null,"Calaveras Cty Res 54561",null,null,null,null,null,null,null,null,null,null,null,null,null,null,null,null,null,null,null,null,null,null,"","GLMEDCON16",null,"SEED Scholars Regional Center ",null,"SEED Scholars Regional Center",null,null,null,null,""]
[null,null,null,null,"","73107",null,"DANR Stanislaus Tomato Research 54709 ",null,"DANR Stanislaus Tomato Research 54709",null,null,null,null,null,null,null,null,null,null,null,null,null,null,null,null,null,null,null,null,null,null,"","GLOAN00001",null,"LAW SCHOOL CONSOLIDATION 69250 ",null,"LAW SCHOOL CONSOLIDATION 69250",null,null,null,null,""]
[null,null,null,null,"","73153",null,"Pediatric Cardiovascular Research 54854 ",null,"Pediatric Cardiovascular Research 54854",null,null,null,null,null,null,null,null,null,null,null,null,null,null,null,null,null,null,null,null,null,null,"","GLOAN00039",null,"GBSF Debt Repayment ",null,"GBSF Debt Repayment",null,null,null,null,""]
[null,null,null,null,"","73212",null,"Veg Crops Dept Support 54912 ",null,"Veg Crops Dept Support 54912",null,null,null,null,null,null,null,null,null,null,null,null,null,null,null,null,null,null,null,null,null,null,"","GL16871002",null,"Policy Inst Conf  and  Event Account Energy Foundation ",null,"Policy Inst Conf and Event Account Energy Foundation",null,null,null,null,""]
[null,null,null,null,"","73252",null,"VMepmEpidemiology Research Kass 55019 ",null,"VMepmEpidemiology Research Kass 55019",null,null,null,null,null,null,null,null,null,null,null,null,null,null,null,null,null,null,null,null,null,null,"","GL4AQRCCNF",null,"AIR QUALITY RESEARCH CENTER CONFERENCES IAMA 2nd Conference ",null,"AIR QUALITY RESEARCH CENTER CONFERENCES IAMA 2nd Conference",null,null,null,null,""]
[null,null,null,null,"","73311",null,"HematologyOncology General Div Sppt 55077 ",null,"HematologyOncology General Div Sppt 55077",null,null,null,null,null,null,null,null,null,null,null,null,null,null,null,null,null,null,null,null,null,null,"","GLBACCD001",null,"ACCD Cost Share GL Only ",null,"ACCD Cost Share GL Only",null,null,null,null,""]
[null,null,null,null,"","73339",null,"Cosmos TransamerICA Fellowship 55105 ",null,"Cosmos TransamerICA Fellowship 55105",null,null,null,null,null,null,null,null,null,null,null,null,null,null,null,null,null,null,null,null,null,null,"","GLCMFHAI01",null,"Healthy Aging Initiative ",null,"Healthy Aging Initiative",null,null,null,null,""]
[null,null,null,null,"","73406",null,"DANR San Diego Fruit Program 55171 ",null,"DANR San Diego Fruit Program 55171",null,null,null,null,null,null,null,null,null,null,null,null,null,null,null,null,null,null,null,null,null,null,"","GLH4871035",null,"ITS Conferences Fraser Temp Gift Account ",null,"ITS Conferences Fraser Temp Gift Account",null,null,null,null,""]
[null,null,null,null,"","73432",null,"Jmie Fellows Program 55197 ",null,"Jmie Fellows Program 55197",null,null,null,null,null,null,null,null,null,null,null,null,null,null,null,null,null,null,null,null,null,null,"","GLMPED0005",null,"Peds Clinical Trial Research Support ",null,"Peds Clinical Trial Research Support",null,null,null,null,""]
[null,null,null,null,"","73458",null,"Terc Video System Enhancement 55223 ",null,"Terc Video System Enhancement 55223",null,null,null,null,null,null,null,null,null,null,null,null,null,null,null,null,null,null,null,null,null,null,"","GLP0000017",null,"UCOP Grow Your Own Program ",null,"UCOP Grow Your Own Program",null,null,null,null,""]
[null,null,null,null,"","73518",null,"Steps Seminar FoodBeverage 55280 ",null,"Steps Seminar FoodBeverage 55280",null,null,null,null,null,null,null,null,null,null,null,null,null,null,null,null,null,null,null,null,null,null,"","GLPEV00092",null,"LENGth Of Service Awards College Hraward ",null,"LENGth Of Service Awards College Hraward",null,null,null,null,""]
[null,null,null,null,"","73540",null,"Ca Urethanes Settlement Fund 55303 ",null,"Ca Urethanes Settlement Fund 55303",null,null,null,null,null,null,null,null,null,null,null,null,null,null,null,null,null,null,null,null,null,null,"","GLPEV00130",null,"University RelatedEvent Ssc105 Reunion Ssc148H ",null,"University RelatedEvent Ssc105 Reunion Ssc148H",null,null,null,null,""]
[null,null,null,null,"","73613",null,"Virodome Sculpture Project 55373 ",null,"Virodome Sculpture Project 55373",null,null,null,null,null,null,null,null,null,null,null,null,null,null,null,null,null,null,null,null,null,null,"","GLPEV00249",null,"GSM Exec Education Expenses Ee68540 ",null,"GSM Exec Education Expenses Ee68540",null,null,null,null,""]
[null,null,null,null,"","73658",null,"JavierandLeticia Avitia Award Support 55418 ",null,"JavierandLeticia Avitia Award Support 55418",null,null,null,null,null,null,null,null,null,null,null,null,null,null,null,null,null,null,null,null,null,null,"","GLPEV00292",null,"Steps Sponsorship Account For QPQ 4871070 ",null,"Steps Sponsorship Account For QPQ 4871070",null,null,null,null,""]
[null,null,null,null,"","73700",null,"Lowering SelectivityandPolarization 55460 ",null,"Lowering SelectivityandPolarization 55460",null,null,null,null,null,null,null,null,null,null,null,null,null,null,null,null,null,null,null,null,null,null,"","GLPEV00331",null,"UC Davis Marching BandStudENT 68525 6800799 ",null,"UC Davis Marching BandStudENT 68525 6800799",null,null,null,null,""]
[null,null,null,null,"","73753",null,"Horse Facility Pack Team Support 55513 ",null,"Horse Facility Pack Team Support 55513",null,null,null,null,null,null,null,null,null,null,null,null,null,null,null,null,null,null,null,null,null,null,"","GLPEV00373",null,"Equine Reproduction Seminar V9th900 ",null,"Equine Reproduction Seminar V9th900",null,null,null,null,""]
[null,null,null,null,"","73764",null,"Modoc 4H Program Support 55524 ",null,"Modoc 4H Program Support 55524",null,null,null,null,null,null,null,null,null,null,null,null,null,null,null,null,null,null,null,null,null,null,"","GLPEV00382",null,"Camp 8 ",null,"Camp 8",null,null,null,null,""]
[null,null,null,null,"","73838",null,"ChildrenS Hummingbird Book Fund 55597 ",null,"ChildrenS Hummingbird Book Fund 55597",null,null,null,null,null,null,null,null,null,null,null,null,null,null,null,null,null,null,null,null,null,null,"","GLPEV00503",null,"Grad Studies Resource Fair ",null,"Grad Studies Resource Fair",null,null,null,null,""]
[null,null,null,null,"","73853",null,"DANR Monterey Fertilizer Res Schulbach 55612 ",null,"DANR Monterey Fertilizer Res Schulbach 55612",null,null,null,null,null,null,null,null,null,null,null,null,null,null,null,null,null,null,null,null,null,null,"","GLPEV00515",null,"Incentivized Enrollment Growth ",null,"Incentivized Enrollment Growth",null,null,null,null,""]
[null,null,null,null,"","73921",null,"Tulare County Ucce Viticulture Research 55679 ",null,"Tulare County Ucce Viticulture Research 55679",null,null,null,null,null,null,null,null,null,null,null,null,null,null,null,null,null,null,null,null,null,null,"","GLPEVMERM2",null,"Emergency Medicine CME Events ",null,"Emergency Medicine CME Events",null,null,null,null,""]
[null,null,null,null,"","73942",null,"Mousebelt Blockchain Innovation Fund 55700 ",null,"Mousebelt Blockchain Innovation Fund 55700",null,null,null,null,null,null,null,null,null,null,null,null,null,null,null,null,null,null,null,null,null,null,"","GLS4871035",null,"ITS Conferences SEMPRA StepsFall 2014 workshop sponsor ",null,"ITS Conferences SEMPRA StepsFall 2014 workshop sponsor",null,null,null,null,""]
[null,null,null,null,"","73991",null,"DANR Tulare OConnell 55749 ",null,"DANR Tulare OConnell 55749",null,null,null,null,null,null,null,null,null,null,null,null,null,null,null,null,null,null,null,null,null,null,"","GLVETDEV02",null,"VM Companion Animal Memorial Fund Support ",null,"VM Companion Animal Memorial Fund Support",null,null,null,null,""]
[null,null,null,null,"","74033",null,"Coalition For UrbANRural Environmental 55791 ",null,"Coalition For UrbANRural Environmental 55791",null,null,null,null,null,null,null,null,null,null,null,null,null,null,null,null,null,null,null,null,null,null,"","GLPMC00002",null,"MondaviEvents Alexander String Quartet 1 ",null,"MondaviEvents Alexander String Quartet 1",null,null,null,null,""]
[null,null,null,null,"","74074",null,"Lab On Lang Devlpmnt In Neurodevelopment 55832 ",null,"Lab On Lang Devlpmnt In Neurodevelopment 55832",null,null,null,null,null,null,null,null,null,null,null,null,null,null,null,null,null,null,null,null,null,null,"","GLPMC00037",null,"Curtis on Tour ",null,"Curtis on Tour",null,null,null,null,""]
[null,null,null,null,"","74131",null,"Malinda J Brown Memorial Scholarship 55889 ",null,"Malinda J Brown Memorial Scholarship 55889",null,null,null,null,null,null,null,null,null,null,null,null,null,null,null,null,null,null,null,null,null,null,"","GLPMC00084",null,"Mariza ",null,"Mariza",null,null,null,null,""]
[null,null,null,null,"","74166",null,"Gigahertz Bandwidth Mill Channel Rf Spec 55924 ",null,"Gigahertz Bandwidth Mill Channel Rf Spec 55924",null,null,null,null,null,null,null,null,null,null,null,null,null,null,null,null,null,null,null,null,null,null,"","GLPMC00110",null,"Barbara K Jackson Rising Stars of Opera ",null,"Barbara K Jackson Rising Stars of Opera",null,null,null,null,""]
[null,null,null,null,"","74221",null,"StudentAthlete Emergency Relief Fund 55979 ",null,"StudentAthlete Emergency Relief Fund 55979",null,null,null,null,null,null,null,null,null,null,null,null,null,null,null,null,null,null,null,null,null,null,"","GLR0000032",null,"SCM Mail ",null,"SCM Mail",null,null,null,null,""]
[null,null,null,null,"","74246",null,"Plt PathField Crops Res 56004 ",null,"Plt PathField Crops Res 56004",null,null,null,null,null,null,null,null,null,null,null,null,null,null,null,null,null,null,null,null,null,null,"","GLR0000055",null,"FM Custodial Labor ",null,"FM Custodial Labor",null,null,null,null,""]
[null,null,null,null,"","74328",null,"VMdoStdt ServHill Revocable Trust 56078 ",null,"VMdoStdt ServHill Revocable Trust 56078",null,null,null,null,null,null,null,null,null,null,null,null,null,null,null,null,null,null,null,null,null,null,"","GLR6622301",null,"DANR 4H CITIZENSHIP ",null,"DANR 4H CITIZENSHIP",null,null,null,null,""]
[null,null,null,null,"","74342",null,"VM Surg Research Holliday 56092 ",null,"VM Surg Research Holliday 56092",null,null,null,null,null,null,null,null,null,null,null,null,null,null,null,null,null,null,null,null,null,null,"","GLR6650301",null,"HUMAN RESOURCES ANR SERVICES ",null,"HUMAN RESOURCES ANR SERVICES",null,null,null,null,""]
[null,null,null,null,"","74418",null,"VM Research Support 56164 ",null,"VM Research Support 56164",null,null,null,null,null,null,null,null,null,null,null,null,null,null,null,null,null,null,null,null,null,null,"","GLSAFE0029",null,"Sacramento Consortium Fire Training Programs ",null,"Sacramento Consortium Fire Training Programs",null,null,null,null,""]
[null,null,null,null,"","74464",null,"ANR Ucce Fres SoilandNutrient Mgt Res Fd 56210 ",null,"ANR Ucce Fres SoilandNutrient Mgt Res Fd 56210",null,null,null,null,null,null,null,null,null,null,null,null,null,null,null,null,null,null,null,null,null,null,"","GSLH000017",null,"BML Ashley Saley GL Student Fellowship ",null,"BML Ashley Saley GL Student Fellowship",null,null,null,null,""]
[null,null,null,null,"","74517",null,"Vit and Enol Phenolics AstringencyTanin Rsrch 56272 ",null,"Vit and Enol Phenolics AstringencyTanin Rsrch 56272",null,null,null,null,null,null,null,null,null,null,null,null,null,null,null,null,null,null,null,null,null,null,"","GLCMN176V0",null,"LS Summer Backstop CMN176V ",null,"LS Summer Backstop CMN176V",null,null,null,null,""]
[null,null,null,null,"","74548",null,"Veg Crops Tomato Genetic Resource Center 56302 ",null,"Veg Crops Tomato Genetic Resource Center 56302",null,null,null,null,null,null,null,null,null,null,null,null,null,null,null,null,null,null,null,null,null,null,"","GLECN001BV",null,"LS Summer Backstop ECN001BV ",null,"LS Summer Backstop ECN001BV",null,null,null,null,""]
[null,null,null,null,"","74612",null,"Uc Davis Staff Emergency Fund 56365 ",null,"Uc Davis Staff Emergency Fund 56365",null,null,null,null,null,null,null,null,null,null,null,null,null,null,null,null,null,null,null,null,null,null,"","GLMAT16A00",null,"LS Summer Backstop MAT16A ",null,"LS Summer Backstop MAT16A",null,null,null,null,""]
[null,null,null,null,"","74640",null,"Ucce InyoMono 4H Grows Fund 56393 ",null,"Ucce InyoMono 4H Grows Fund 56393",null,null,null,null,null,null,null,null,null,null,null,null,null,null,null,null,null,null,null,null,null,null,"","GLPHY007B0",null,"LS Summer Backstop PHY007B ",null,"LS Summer Backstop PHY007B",null,null,null,null,""]
[null,null,null,null,"","74665",null,"Indy Student Award 56418 ",null,"Indy Student Award 56418",null,null,null,null,null,null,null,null,null,null,null,null,null,null,null,null,null,null,null,null,null,null,"","GLSOC00100",null,"LS Summer Backstop SOC001 ",null,"LS Summer Backstop SOC001",null,null,null,null,""]
[null,null,null,null,"","74726",null,"ANR Ucce Impe Water Conservation Rsrch 56479 ",null,"ANR Ucce Impe Water Conservation Rsrch 56479",null,null,null,null,null,null,null,null,null,null,null,null,null,null,null,null,null,null,null,null,null,null,"","CP0957939U",null,"CP0957939U - Eye Institute Wayfinding and ID Signage ",null,"CP0957939U - Eye Institute Wayfinding and ID Signage",null,null,null,null,""]
[null,null,null,null,"","74758",null,"Infant Sibling Study Lab Support Fund 56511 ",null,"Infant Sibling Study Lab Support Fund 56511",null,null,null,null,null,null,null,null,null,null,null,null,null,null,null,null,null,null,null,null,null,null,"","KM0933600U",null,"UMC FY20 DIR CONTINGENCY EQUIPMENT KM0933600U ",null,"UMC FY20 DIR CONTINGENCY EQUIPMENT KM0933600U",null,null,null,null,""]
[null,null,null,null,"","74800",null,"Wildlife Health Center Training Fund 56553 ",null,"Wildlife Health Center Training Fund 56553",null,null,null,null,null,null,null,null,null,null,null,null,null,null,null,null,null,null,null,null,null,null,"","KM0934033U",null,"UCDH Furniture W002414 SOM KM0934033U ",null,"UCDH Furniture W002414 SOM KM0934033U",null,null,null,null,""]
[null,null,null,null,"","74851",null,"DANR Tulare Sibett 56604 ",null,"DANR Tulare Sibett 56604",null,null,null,null,null,null,null,null,null,null,null,null,null,null,null,null,null,null,null,null,null,null,"","KM0955732U",null,"East 3 Phase 2 Reactivation KM0955732U ",null,"East 3 Phase 2 Reactivation KM0955732U",null,null,null,null,""]
[null,null,null,null,"","74886",null,"Skywalker Gibbon Conservation Project 56638 ",null,"Skywalker Gibbon Conservation Project 56638",null,null,null,null,null,null,null,null,null,null,null,null,null,null,null,null,null,null,null,null,null,null,"","KM0955766U",null,"Central Utility Plant Expansion KM0955766U ",null,"Central Utility Plant Expansion KM0955766U",null,null,null,null,""]
[null,null,null,null,"","74938",null,"Ophthalmology RsrchandEduc Sppt Ma 56690 ",null,"Ophthalmology RsrchandEduc Sppt Ma 56690",null,null,null,null,null,null,null,null,null,null,null,null,null,null,null,null,null,null,null,null,null,null,"","KM0955953U",null,"CANN ORTH CLIN Foot Ankle Clinic Expand KM0955953U ",null,"CANN ORTH CLIN Foot Ankle Clinic Expand KM0955953U",null,null,null,null,""]
[null,null,null,null,"","74968",null,"Todd Schmidt Fund For Cancer Research 56720 ",null,"Todd Schmidt Fund For Cancer Research 56720",null,null,null,null,null,null,null,null,null,null,null,null,null,null,null,null,null,null,null,null,null,null,"","KM0955990U",null,"UMC ALHAMBRA CANNERY FURNITURE PEQT KM0955990U ",null,"UMC ALHAMBRA CANNERY FURNITURE PEQT KM0955990U",null,null,null,null,""]
[null,null,null,null,"","75049",null,"Global Learning Innovation Fund 56801 ",null,"Global Learning Innovation Fund 56801",null,null,null,null,null,null,null,null,null,null,null,null,null,null,null,null,null,null,null,null,null,null,"","KM0957840U",null,"UT7 7614 FD C IT SYST INFRA UPGRDS KM0957840U ",null,"UT7 7614 FD C IT SYST INFRA UPGRDS KM0957840U",null,null,null,null,""]
[null,null,null,null,"","75062",null,"Coop Ext San Joaquin CntySeries Pr 56852 ",null,"Coop Ext San Joaquin CntySeries Pr 56852",null,null,null,null,null,null,null,null,null,null,null,null,null,null,null,null,null,null,null,null,null,null,"","KM0957855U",null,"SESP 2P340 TRANS SVCS IRRADIATOR PEQT KM0957855U ",null,"SESP 2P340 TRANS SVCS IRRADIATOR PEQT KM0957855U",null,null,null,null,""]
[null,null,null,null,"","75125",null,"Substance Abuse Navigator SUN Program 46023 ",null,"Substance Abuse Navigator SUN Program 46023",null,null,null,null,null,null,null,null,null,null,null,null,null,null,null,null,null,null,null,null,null,null,"","KM0957928U",null,"DT 8782E ONC Add 4 Workstations KM0957928U ",null,"DT 8782E ONC Add 4 Workstations KM0957928U",null,null,null,null,""]
[null,null,null,null,"","75142",null,"Hwang Family Psoriasis RsrchandProf Educ 46046 ",null,"Hwang Family Psoriasis RsrchandProf Educ 46046",null,null,null,null,null,null,null,null,null,null,null,null,null,null,null,null,null,null,null,null,null,null,"","KN0959210U",null,"0624 SFREC CULVERT REPAIR KN0959210U ",null,"0624 SFREC CULVERT REPAIR KN0959210U",null,null,null,null,""]
[null,null,null,null,"","75202",null,"Grape Day Support Fund 46138 ",null,"Grape Day Support Fund 46138",null,null,null,null,null,null,null,null,null,null,null,null,null,null,null,null,null,null,null,null,null,null,"","KP0952920U",null,"MAJOR 0619 MEMORIAL UNION NORTH COURTYARD 283 KP0952920U ",null,"MAJOR 0619 MEMORIAL UNION NORTH COURTYARD 283 KP0952920U",null,null,null,null,""]
[null,null,null,null,"","75226",null,"VMC Surgery Center Equipment Fund 46190 ",null,"VMC Surgery Center Equipment Fund 46190",null,null,null,null,null,null,null,null,null,null,null,null,null,null,null,null,null,null,null,null,null,null,"","KP0953440U",null,"MAJOR 0826 University Airport Runway and Ligh KP0953440U ",null,"MAJOR 0826 University Airport Runway and Ligh KP0953440U",null,null,null,null,""]
[null,null,null,null,"","75274",null,"Vietnamese American Law Std Assoc Sppt 56842 ",null,"Vietnamese American Law Std Assoc Sppt 56842",null,null,null,null,null,null,null,null,null,null,null,null,null,null,null,null,null,null,null,null,null,null,"","KP0955894U",null,"SH MIND IT Network Modernization KP0955894U ",null,"SH MIND IT Network Modernization KP0955894U",null,null,null,null,""]
[null,null,null,null,"","75308",null,"Housing Innovation Initiative 56905 ",null,"Housing Innovation Initiative 56905",null,null,null,null,null,null,null,null,null,null,null,null,null,null,null,null,null,null,null,null,null,null,"","KP0959110U",null,"MAJOR 0622 WASTE WATER TREATMENT PLANT UV SYS KP0959110U ",null,"MAJOR 0622 WASTE WATER TREATMENT PLANT UV SYS KP0959110U",null,null,null,null,""]
[null,null,null,null,"","75342",null,"Materials ScienceandEngineering Rsrch Sp 56940 ",null,"Materials ScienceandEngineering Rsrch Sp 56940",null,null,null,null,null,null,null,null,null,null,null,null,null,null,null,null,null,null,null,null,null,null,"","KP0959186U",null,"FM 0624 STUDENT AFFAIRS ANNEX RENOVATION KP0959186U ",null,"FM 0624 STUDENT AFFAIRS ANNEX RENOVATION KP0959186U",null,null,null,null,""]
[null,null,null,null,"","75397",null,"Eschscholzia Learning Award 56872 ",null,"Eschscholzia Learning Award 56872",null,null,null,null,null,null,null,null,null,null,null,null,null,null,null,null,null,null,null,null,null,null,"","KP0959265U",null,"CLOSED UNITRANS ADMIN RENOVATION KP0959265U ",null,"CLOSED UNITRANS ADMIN RENOVATION KP0959265U",null,null,null,null,""]
[null,null,null,null,"","75456",null,"Cultivated Meat Research Consortium Sppt 46124 ",null,"Cultivated Meat Research Consortium Sppt 46124",null,null,null,null,null,null,null,null,null,null,null,null,null,null,null,null,null,null,null,null,null,null,"","KP0959293U",null,"FM Briggs Hall Room 222 Remodel Snail Room KP0959293U ",null,"FM Briggs Hall Room 222 Remodel Snail Room KP0959293U",null,null,null,null,""]
[null,null,null,null,"","75545",null,"Energy and Transportation Career Dvlpmt Aw 46277 ",null,"Energy and Transportation Career Dvlpmt Aw 46277",null,null,null,null,null,null,null,null,null,null,null,null,null,null,null,null,null,null,null,null,null,null,"","KP959125F1",null,"MINOR 0622 EMERGENCY CALL BOXES KP959125F1 ",null,"MINOR 0622 EMERGENCY CALL BOXES KP959125F1",null,null,null,null,""]
[null,null,null,null,"","75572",null,"UCCE SLO Youth Families Comm 46305 ",null,"UCCE SLO Youth Families Comm 46305",null,null,null,null,null,null,null,null,null,null,null,null,null,null,null,null,null,null,null,null,null,null,"","CS0A241055",null,"A241055 CS0A241055 Can the Sacramento Deep-Water Shipping Channel be a source of nutrients to Delta Smelt and their prey or will contaminants spoil the party? A contaminant prospective ",null,"A241055 CS0A241055 Can the Sacramento Deep-Water Shipping Channel be a source of nutrients to Delta Smelt and their prey or will contaminants spoil the party? A contaminant prospective",null,null,null,null,""]
[null,null,null,null,"","75645",null,"J and R Seiber Agri and Env Chem Sppt Fnd 46386 ",null,"J and R Seiber Agri and Env Chem Sppt Fnd 46386",null,null,null,null,null,null,null,null,null,null,null,null,null,null,null,null,null,null,null,null,null,null,"","D30VPC9093",null,"CNPRC Entertainment Discretionary ",null,"CNPRC Entertainment Discretionary",null,null,null,null,""]
[null,null,null,null,"","75658",null,"Green Program Experiential Learning Fund 47053 ",null,"Green Program Experiential Learning Fund 47053",null,null,null,null,null,null,null,null,null,null,null,null,null,null,null,null,null,null,null,null,null,null,"","D9APPA0102",null,"APPA ANR CE Recruitments ",null,"APPA ANR CE Recruitments",null,null,null,null,""]
[null,null,null,null,"","75697",null,"Brown Environmental Toxicology Dept Fund 47947 ",null,"Brown Environmental Toxicology Dept Fund 47947",null,null,null,null,null,null,null,null,null,null,null,null,null,null,null,null,null,null,null,null,null,null,"","DAENM00103",null,"AENM Student Awards ",null,"AENM Student Awards",null,null,null,null,""]
[null,null,null,null,"","75778",null,"Improving Climate Data Communications 50050 ",null,"Improving Climate Data Communications 50050",null,null,null,null,null,null,null,null,null,null,null,null,null,null,null,null,null,null,null,null,null,null,"","DCHECSPROJ",null,"CHE Christopher Simmons Non-Sponsored Projects ",null,"CHE Christopher Simmons Non-Sponsored Projects",null,null,null,null,""]
[null,null,null,null,"","75796",null,"AIFS Research Fund 50068 ",null,"AIFS Research Fund 50068",null,null,null,null,null,null,null,null,null,null,null,null,null,null,null,null,null,null,null,null,null,null,"","DCLINOPERA",null,"COCCIDIOIDES SERLOGY LAB ",null,"COCCIDIOIDES SERLOGY LAB",null,null,null,null,""]
[null,null,null,null,"","75875",null,"Burrowing Owl Exhibit Fund 50148 ",null,"Burrowing Owl Exhibit Fund 50148",null,null,null,null,null,null,null,null,null,null,null,null,null,null,null,null,null,null,null,null,null,null,"","DCM2509220",null,"VM2 Room 111 Fluoroscopy Design Support ",null,"VM2 Room 111 Fluoroscopy Design Support",null,null,null,null,""]
[null,null,null,null,"","75926",null,"Comparative Vision Sciences Research Lab 56966 ",null,"Comparative Vision Sciences Research Lab 56966",null,null,null,null,null,null,null,null,null,null,null,null,null,null,null,null,null,null,null,null,null,null,"","DCM2700200",null,"Building Energy Controls Negotiations ",null,"Building Energy Controls Negotiations",null,null,null,null,""]
[null,null,null,null,"","76117",null,"UCCE TULA Master Food Preserver Fund 50235 ",null,"UCCE TULA Master Food Preserver Fund 50235",null,null,null,null,null,null,null,null,null,null,null,null,null,null,null,null,null,null,null,null,null,null,"","DCM2831980",null,"CAHFS Tulare Lab 2023 Flood Damage Special Repair ",null,"CAHFS Tulare Lab 2023 Flood Damage Special Repair",null,null,null,null,""]
[null,null,null,null,"","76140",null,"Biostimulant Research Fund 50274 ",null,"Biostimulant Research Fund 50274",null,null,null,null,null,null,null,null,null,null,null,null,null,null,null,null,null,null,null,null,null,null,"","DCM2901290",null,"2270 Stockton Boulevard Tenant Improvements ",null,"2270 Stockton Boulevard Tenant Improvements",null,null,null,null,""]
[null,null,null,null,"","76190",null,"Guardian Scholars Program Opptnty Fund 50324 ",null,"Guardian Scholars Program Opptnty Fund 50324",null,null,null,null,null,null,null,null,null,null,null,null,null,null,null,null,null,null,null,null,null,null,"","DCM2904190",null,"Russell Field Lighting Installation ",null,"Russell Field Lighting Installation",null,null,null,null,""]
[null,null,null,null,"","76229",null,"UCDQuadramNutritionConfSppt Fund 50363 ",null,"UCDQuadramNutritionConfSppt Fund 50363",null,null,null,null,null,null,null,null,null,null,null,null,null,null,null,null,null,null,null,null,null,null,"","DCM2905860",null,"Chemistry and PSEL Landscaping ",null,"Chemistry and PSEL Landscaping",null,null,null,null,""]
[null,null,null,null,"","76270",null,"Chile Life Center Excellence Fund 50207 ",null,"Chile Life Center Excellence Fund 50207",null,null,null,null,null,null,null,null,null,null,null,null,null,null,null,null,null,null,null,null,null,null,"","DEP1MDRIMI",null,"MOLLIE D'AGOSTINO RIMI PPM ONLY ",null,"MOLLIE D'AGOSTINO RIMI PPM ONLY",null,null,null,null,""]
[null,null,null,null,"","76322",null,"MasterGardenersPalmDesertGrowLabFund 50446 ",null,"MasterGardenersPalmDesertGrowLabFund 50446",null,null,null,null,null,null,null,null,null,null,null,null,null,null,null,null,null,null,null,null,null,null,"","DEP4871049",null,"STS Biciculture Roadshow Sponsorship ",null,"STS Biciculture Roadshow Sponsorship",null,null,null,null,""]
[null,null,null,null,"","76346",null,"Hyperspectral Imagery ResearchFund 50501 ",null,"Hyperspectral Imagery ResearchFund 50501",null,null,null,null,null,null,null,null,null,null,null,null,null,null,null,null,null,null,null,null,null,null,"","DEP4871096",null,"Handy - ITS Directorship ",null,"Handy - ITS Directorship",null,null,null,null,""]
[null,null,null,null,"","76403",null,"DANR NC MR CALAVERASHOMEEC SMITH 41528 ",null,"DANR NC MR CALAVERASHOMEEC SMITH 41528",null,null,null,null,null,null,null,null,null,null,null,null,null,null,null,null,null,null,null,null,null,null,"","DEP4874045",null,"AAA Northern CA NV and UT Fellowship ",null,"AAA Northern CA NV and UT Fellowship",null,null,null,null,""]
[null,null,null,null,"","76418",null,"ELMO M GIAMPAOLI REV TRUST 42215 ",null,"ELMO M GIAMPAOLI REV TRUST 42215",null,null,null,null,null,null,null,null,null,null,null,null,null,null,null,null,null,null,null,null,null,null,"","DEP4874063",null,"Mokhtarian Fund for Travel Behavior ",null,"Mokhtarian Fund for Travel Behavior",null,null,null,null,""]
[null,null,null,null,"","76478",null,"RANGE PASTURE MGMT MELVIN 54942 ",null,"RANGE PASTURE MGMT MELVIN 54942",null,null,null,null,null,null,null,null,null,null,null,null,null,null,null,null,null,null,null,null,null,null,"","DEP4874136",null,"3REVs 2020 Seed Grant  Pike ",null,"3REVs 2020 Seed Grant Pike",null,null,null,null,""]
[null,null,null,null,"","76491",null,"UNASSIGNED 53359 ",null,"UNASSIGNED 53359",null,null,null,null,null,null,null,null,null,null,null,null,null,null,null,null,null,null,null,null,null,null,"","DEP4874158",null,"Murphy - Fuels Research Support Fund ",null,"Murphy - Fuels Research Support Fund",null,null,null,null,""]
[null,null,null,null,"","76560",null,"Machine Learning in Computational Bio Conf Sppt Fund 50599 ",null,"Machine Learning in Computational Bio Conf Sppt Fund 50599",null,null,null,null,null,null,null,null,null,null,null,null,null,null,null,null,null,null,null,null,null,null,"","DEP5874001",null,"EEC  PG&E CORE GIFT FUNDING ",null,"EEC PG&E CORE GIFT FUNDING",null,null,null,null,""]
[null,null,null,null,"","76579",null,"The Relationship Based Care Fund ",null,"The Relationship Based Care Fund",null,null,null,null,null,null,null,null,null,null,null,null,null,null,null,null,null,null,null,null,null,null,"","DEP5874023",null,"Daikin Gift Funding ",null,"Daikin Gift Funding",null,null,null,null,""]
[null,null,null,null,"","76633",null,"Urban Tree Stewardship Program Support Fund ",null,"Urban Tree Stewardship Program Support Fund",null,null,null,null,null,null,null,null,null,null,null,null,null,null,null,null,null,null,null,null,null,null,"","DEP6874012",null,"Biofuel Tracking NatlBiodiesel Board ",null,"Biofuel Tracking NatlBiodiesel Board",null,null,null,null,""]
[null,null,null,null,"","76660",null,"RESURG and Fostering the Future ",null,"RESURG and Fostering the Future",null,null,null,null,null,null,null,null,null,null,null,null,null,null,null,null,null,null,null,null,null,null,"","DEP9871032",null,"MRPI  Year 3 Fan ",null,"MRPI Year 3 Fan",null,null,null,null,""]
[null,null,null,null,"","E0038",null,"PRN Shinkoskey Series of Noon Concerts 322594 42987 ",null,"PRN Shinkoskey Series of Noon Concerts 322594 42987",null,null,null,null,null,null,null,null,null,null,null,null,null,null,null,null,null,null,null,null,null,null,"","DEPAGRIVOS",null,"Agrivoltaics Support Fund ",null,"Agrivoltaics Support Fund",null,null,null,null,""]
[null,null,null,null,"","E0074",null,"PRN Dermatology General Support 322901 48224 ",null,"PRN Dermatology General Support 322901 48224",null,null,null,null,null,null,null,null,null,null,null,null,null,null,null,null,null,null,null,null,null,null,"","DEPAQRYTRA",null,"Holding act for Transportation Services ",null,"Holding act for Transportation Services",null,null,null,null,""]
[null,null,null,null,"","E0103",null,"PRN Katie Fund 323009 45619 ",null,"PRN Katie Fund 323009 45619",null,null,null,null,null,null,null,null,null,null,null,null,null,null,null,null,null,null,null,null,null,null,"","DEPCRCEXPE",null,"CTSC Clinical Research Center ",null,"CTSC Clinical Research Center",null,null,null,null,""]
[null,null,null,null,"","E0155",null,"PRN Julie Bryant Memorial Scholarship Suppor 323324 46813 ",null,"PRN Julie Bryant Memorial Scholarship Suppor 323324 46813",null,null,null,null,null,null,null,null,null,null,null,null,null,null,null,null,null,null,null,null,null,null,"","DEPIEGIFTS",null,"IE Gifts ",null,"IE Gifts",null,null,null,null,""]
[null,null,null,null,"","E0175",null,"PRN Guardian Scholars Program 323413 45788 ",null,"PRN Guardian Scholars Program 323413 45788",null,null,null,null,null,null,null,null,null,null,null,null,null,null,null,null,null,null,null,null,null,null,"","DEPMARSFLW",null,"IIFH Fellowship - MARS Funded ",null,"IIFH Fellowship - MARS Funded",null,null,null,null,""]
[null,null,null,null,"","E0198",null,"PRN CA Env Law Policy Center Speaker Ser 323487 47295 ",null,"PRN CA Env Law Policy Center Speaker Ser 323487 47295",null,null,null,null,null,null,null,null,null,null,null,null,null,null,null,null,null,null,null,null,null,null,"","DEPMPMR003",null,"Sports Medicine Fellowship ",null,"Sports Medicine Fellowship",null,null,null,null,""]
[null,null,null,null,"","E0247",null,"PRN ShorLine Shelter Medicine Support Fund 323687 55132 ",null,"PRN ShorLine Shelter Medicine Support Fund 323687 55132",null,null,null,null,null,null,null,null,null,null,null,null,null,null,null,null,null,null,null,null,null,null,"","DEPSCRC001",null,"SOUTH COAST RESEARCH AND EXTENSION CENTER ",null,"SOUTH COAST RESEARCH AND EXTENSION CENTER",null,null,null,null,""]
[null,null,null,null,"","E0273",null,"PRN Sharon Gray Memorial Award Support Fund 323825 48773 ",null,"PRN Sharon Gray Memorial Award Support Fund 323825 48773",null,null,null,null,null,null,null,null,null,null,null,null,null,null,null,null,null,null,null,null,null,null,"","DEPTCLINCX",null,"Department Clinical Expenses ",null,"Department Clinical Expenses",null,null,null,null,""]
[null,null,null,null,"","E0319",null,"PRN Donald and Sylvia McLaughlin Reserve Fnd 323992 41429 ",null,"PRN Donald and Sylvia McLaughlin Reserve Fnd 323992 41429",null,null,null,null,null,null,null,null,null,null,null,null,null,null,null,null,null,null,null,null,null,null,"","DEPTIMID0C",null,"IMID Division Commitments ",null,"IMID Division Commitments",null,null,null,null,""]
[null,null,null,null,"","E0354",null,"PRN Van Ligten Scholarship in Social Science 324103 49481 ",null,"PRN Van Ligten Scholarship in Social Science 324103 49481",null,null,null,null,null,null,null,null,null,null,null,null,null,null,null,null,null,null,null,null,null,null,"","DEPTMANS14",null,"ANES Indirect Cost Recovery - DEPTMANS14 ",null,"ANES Indirect Cost Recovery - DEPTMANS14",null,null,null,null,""]
[null,null,null,null,"","E0384",null,"PRN Stylianos V Spyridakis PhD Schlsp 324184 49697 ",null,"PRN Stylianos V Spyridakis PhD Schlsp 324184 49697",null,null,null,null,null,null,null,null,null,null,null,null,null,null,null,null,null,null,null,null,null,null,"","DEPTMNSG01",null,"MNSG Operating ",null,"MNSG Operating",null,null,null,null,""]
[null,null,null,null,"","E0435",null,"PRN Nancy Mettler Award in Veterinary Medici 324376 55312 ",null,"PRN Nancy Mettler Award in Veterinary Medici 324376 55312",null,null,null,null,null,null,null,null,null,null,null,null,null,null,null,null,null,null,null,null,null,null,"","DFMDM00056",null,"FM DM FY19 Non State ",null,"FM DM FY19 Non State",null,null,null,null,""]
[null,null,null,null,"","E0493",null,"PRN Wildlife Teaching Center Building 324545 55763 ",null,"PRN Wildlife Teaching Center Building 324545 55763",null,null,null,null,null,null,null,null,null,null,null,null,null,null,null,null,null,null,null,null,null,null,"","DMPMRRESPM",null,"RESIDENTS PMR ",null,"RESIDENTS PMR",null,null,null,null,""]
[null,null,null,null,"","E0516",null,"PRN Basketball Facility Enhancement Fund 324600 56232 ",null,"PRN Basketball Facility Enhancement Fund 324600 56232",null,null,null,null,null,null,null,null,null,null,null,null,null,null,null,null,null,null,null,null,null,null,"","DP0CJSPCRK",null,"JEFFRES FALL RIVER RESEARCH SUPPORT FUND ",null,"JEFFRES FALL RIVER RESEARCH SUPPORT FUND",null,null,null,null,""]
[null,null,null,null,"","E0565",null,"PRN Alamo Pintado Equine Health Foundation 324709 56518 ",null,"PRN Alamo Pintado Equine Health Foundation 324709 56518",null,null,null,null,null,null,null,null,null,null,null,null,null,null,null,null,null,null,null,null,null,null,"","DPEMND0007",null,"MIND Research Fund Mirror ",null,"MIND Research Fund Mirror",null,null,null,null,""]
[null,null,null,null,"","E0591",null,"PRN Medicine Grand Rounds Conference Fund 324786 44047 ",null,"PRN Medicine Grand Rounds Conference Fund 324786 44047",null,null,null,null,null,null,null,null,null,null,null,null,null,null,null,null,null,null,null,null,null,null,"","DPK21OR001",null,"OSRD K-12 OUTREACH ",null,"OSRD K-12 OUTREACH",null,null,null,null,""]
[null,null,null,null,"","E0637",null,"PRN Professor Weylin Eng Support Fund 324895 45992 ",null,"PRN Professor Weylin Eng Support Fund 324895 45992",null,null,null,null,null,null,null,null,null,null,null,null,null,null,null,null,null,null,null,null,null,null,"","DPMOBG1124",null,"OBGYN Reserves Faculty Recruitment Dept Project ",null,"OBGYN Reserves Faculty Recruitment Dept Project",null,null,null,null,""]
[null,null,null,null,"","E0672",null,"PRN Innovator Fellow Gift Fund 324960 46080 ",null,"PRN Innovator Fellow Gift Fund 324960 46080",null,null,null,null,null,null,null,null,null,null,null,null,null,null,null,null,null,null,null,null,null,null,"","DPMSURAW09",null,"A WANG ACADEMIC ENRICHMENT/SEMINARS ",null,"A WANG ACADEMIC ENRICHMENT/SEMINARS",null,null,null,null,""]
[null,null,null,null,"","E0709",null,"PRN BTC Political Science 325072 46339 ",null,"PRN BTC Political Science 325072 46339",null,null,null,null,null,null,null,null,null,null,null,null,null,null,null,null,null,null,null,null,null,null,"","DPMSURRC01",null,"R CALLCUT RESEARCH STARTUP FUNDS ",null,"R CALLCUT RESEARCH STARTUP FUNDS",null,null,null,null,""]
[null,null,null,null,"","E0753",null,"PRN Graduate Seminar Series Refreshment Fund 325170 47968 ",null,"PRN Graduate Seminar Series Refreshment Fund 325170 47968",null,null,null,null,null,null,null,null,null,null,null,null,null,null,null,null,null,null,null,null,null,null,"","DPSAMETLAB",null,"S ADAMS METABOLIC RESEARCH ",null,"S ADAMS METABOLIC RESEARCH",null,null,null,null,""]
[null,null,null,null,"","E0774",null,"PRN Graduate Studies Annual Fund 342160 43596 ",null,"PRN Graduate Studies Annual Fund 342160 43596",null,null,null,null,null,null,null,null,null,null,null,null,null,null,null,null,null,null,null,null,null,null,"","DVOHIDEI03",null,"OHI DEI Grant 2022-24 Johnson ",null,"OHI DEI Grant 2022-24 Johnson",null,null,null,null,""]
[null,null,null,null,"","E0796",null,"PRN Field Hockey Complex 323128 46400 ",null,"PRN Field Hockey Complex 323128 46400",null,null,null,null,null,null,null,null,null,null,null,null,null,null,null,null,null,null,null,null,null,null,"","LS000CHIAS",null,"CHI Academic Staff Project ",null,"CHI Academic Staff Project",null,null,null,null,""]
[null,null,null,null,"","E0846",null,"PRN One Climate Initiative Excellence Fund 324526 49631 ",null,"PRN One Climate Initiative Excellence Fund 324526 49631",null,null,null,null,null,null,null,null,null,null,null,null,null,null,null,null,null,null,null,null,null,null,"","LSPSCDP000",null,"PSC Department Project ",null,"PSC Department Project",null,null,null,null,""]
[null,null,null,null,"","E0871",null,"PRN Hersh Shalu Saluja Cardiovascular Resh 324780 56795 ",null,"PRN Hersh Shalu Saluja Cardiovascular Resh 324780 56795",null,null,null,null,null,null,null,null,null,null,null,null,null,null,null,null,null,null,null,null,null,null,"","DKO1000005",null,"DKO1000005 - Central Office Contracts and Grants Accounting ",null,"DKO1000005 - Central Office Contracts and Grants Accounting",null,null,null,null,""]
[null,null,null,null,"","E0918",null,"PRN Lesley McAllister Scholarship 324091 BTE ",null,"PRN Lesley McAllister Scholarship 324091 BTE",null,null,null,null,null,null,null,null,null,null,null,null,null,null,null,null,null,null,null,null,null,null,"","DKO1009383",null,"DKO1009383 - CARDIOVASCULAR SUPPORT UNIT ",null,"DKO1009383 - CARDIOVASCULAR SUPPORT UNIT",null,null,null,null,""]
[null,null,null,null,"","E0952",null,"PRN Craig A Tracys Research Prize 325094 BTE ",null,"PRN Craig A Tracys Research Prize 325094 BTE",null,null,null,null,null,null,null,null,null,null,null,null,null,null,null,null,null,null,null,null,null,null,"","DKO1009640",null,"DKO1009640 - T5 MEDICAL ICU ",null,"DKO1009640 - T5 MEDICAL ICU",null,null,null,null,""]
[null,null,null,null,"","E0990",null,"PRN Carla Vincent Bereavement Services Fund 324343 PG ",null,"PRN Carla Vincent Bereavement Services Fund 324343 PG",null,null,null,null,null,null,null,null,null,null,null,null,null,null,null,null,null,null,null,null,null,null,"","DKO1009691",null,"DKO1009691 - CLINICAL NURSE SPECIALISTS ",null,"DKO1009691 - CLINICAL NURSE SPECIALISTS",null,null,null,null,""]
[null,null,null,null,"","E1033",null,"PRN Resnick Center for Ag Innovation 325188 47977 ",null,"PRN Resnick Center for Ag Innovation 325188 47977",null,null,null,null,null,null,null,null,null,null,null,null,null,null,null,null,null,null,null,null,null,null,"","DKO1009737",null,"DKO1009737 - DISTRIBUTION ",null,"DKO1009737 - DISTRIBUTION",null,null,null,null,""]
[null,null,null,null,"","E1092",null,"PRN AmericaChina Talk ACT 325216 50118 ",null,"PRN AmericaChina Talk ACT 325216 50118",null,null,null,null,null,null,null,null,null,null,null,null,null,null,null,null,null,null,null,null,null,null,"","DKO1009811",null,"DKO1009811 - FOOD AND NUTRITION SERVICES ",null,"DKO1009811 - FOOD AND NUTRITION SERVICES",null,null,null,null,""]
[null,null,null,null,"","E1114",null,"PRN Mars Veterinary Health House Officer 325251 50160 ",null,"PRN Mars Veterinary Health House Officer 325251 50160",null,null,null,null,null,null,null,null,null,null,null,null,null,null,null,null,null,null,null,null,null,null,"","DKO1009834",null,"DKO1009834 - PATIENT BILLING ",null,"DKO1009834 - PATIENT BILLING",null,null,null,null,""]
[null,null,null,null,"","E1133",null,"PRN Sher Family Planning Repro Hlth Sppt 325281 50213 ",null,"PRN Sher Family Planning Repro Hlth Sppt 325281 50213",null,null,null,null,null,null,null,null,null,null,null,null,null,null,null,null,null,null,null,null,null,null,"","DKO1009856",null,"DKO1009856 - EMPLOYEE HEALTH SERVICES ",null,"DKO1009856 - EMPLOYEE HEALTH SERVICES",null,null,null,null,""]
[null,null,null,null,"","E1197",null,"PRN Strategic Vision Investment Fund 325389 50464 ",null,"PRN Strategic Vision Investment Fund 325389 50464",null,null,null,null,null,null,null,null,null,null,null,null,null,null,null,null,null,null,null,null,null,null,"","DKO1009954",null,"DKO1009954 - MED PRAC INTERNAL MEDICINE AUBURN ",null,"DKO1009954 - MED PRAC INTERNAL MEDICINE AUBURN",null,null,null,null,""]
[null,null,null,null,"","E1214",null,"PRN Reddi Seminar in Dev Bio & Reg Med 325410 50546 ",null,"PRN Reddi Seminar in Dev Bio & Reg Med 325410 50546",null,null,null,null,null,null,null,null,null,null,null,null,null,null,null,null,null,null,null,null,null,null,"","DKO1009977",null,"DKO1009977 - HBC GI LAB ROCKLIN ",null,"DKO1009977 - HBC GI LAB ROCKLIN",null,null,null,null,""]
[null,null,null,null,"","E1269",null,"PRN Chancellors Mondavi Discretionary Fund 324006 49187 ",null,"PRN Chancellors Mondavi Discretionary Fund 324006 49187",null,null,null,null,null,null,null,null,null,null,null,null,null,null,null,null,null,null,null,null,null,null,"","DKO1718020",null,"DKO1718020 - MED PRAC ADDICTIONS CLINIC TICON ",null,"DKO1718020 - MED PRAC ADDICTIONS CLINIC TICON",null,null,null,null,""]
[null,null,null,null,"","E1295",null,"PRN Amado FdnFnd Kidney TransplantPatient Care and Eq325448 ",null,"PRN Amado FdnFnd Kidney TransplantPatient Care and Eq325448",null,null,null,null,null,null,null,null,null,null,null,null,null,null,null,null,null,null,null,null,null,null,"","DKO1839005",null,"DKO1839005 - CANCER CTR INFUSION PHARMACY ",null,"DKO1839005 - CANCER CTR INFUSION PHARMACY",null,null,null,null,""]
[null,null,null,null,"","E1341",null,"PRN Nitzberg Scholarship Award 323163 46587 ",null,"PRN Nitzberg Scholarship Award 323163 46587",null,null,null,null,null,null,null,null,null,null,null,null,null,null,null,null,null,null,null,null,null,null,"","DKO2578004",null,"DKO2578004 - CSOM ASSESSMENTS AND FEES ",null,"DKO2578004 - CSOM ASSESSMENTS AND FEES",null,null,null,null,""]
[null,null,null,null,"","O0011",null,"IN Susan Schnitzer Support Fund 322247 56548 ",null,"IN Susan Schnitzer Support Fund 322247 56548",null,null,null,null,null,null,null,null,null,null,null,null,null,null,null,null,null,null,null,null,null,null,"","DKO2745000",null,"DKO2745000 - CSOM ANESTHESIOLOGY ",null,"DKO2745000 - CSOM ANESTHESIOLOGY",null,null,null,null,""]
[null,null,null,null,"","O0054",null,"IN Faculty Research and Teaching Fund 322716 44348 ",null,"IN Faculty Research and Teaching Fund 322716 44348",null,null,null,null,null,null,null,null,null,null,null,null,null,null,null,null,null,null,null,null,null,null,"","DKO2900100",null,"DKO2900100 - GSM Non Academic Programs ",null,"DKO2900100 - GSM Non Academic Programs",null,null,null,null,""]
[null,null,null,null,"","O0092",null,"IN Andrew Barkett Business Plan Competition 322968 40864 ",null,"IN Andrew Barkett Business Plan Competition 322968 40864",null,null,null,null,null,null,null,null,null,null,null,null,null,null,null,null,null,null,null,null,null,null,"","DKO3600200",null,"DKO3600200 - Law Research ",null,"DKO3600200 - Law Research",null,null,null,null,""]
[null,null,null,null,"","O0126",null,"IN Michael Fitzsimons Wine Executive Award 323104 45861 ",null,"IN Michael Fitzsimons Wine Executive Award 323104 45861",null,null,null,null,null,null,null,null,null,null,null,null,null,null,null,null,null,null,null,null,null,null,"","DKO4303101",null,"DKO4303101 - MCAN Cancer Center Administration ",null,"DKO4303101 - MCAN Cancer Center Administration",null,null,null,null,""]
[null,null,null,null,"","O0173",null,"IN Inn Clinical Laboratory Award 323399 47070 ",null,"IN Inn Clinical Laboratory Award 323399 47070",null,null,null,null,null,null,null,null,null,null,null,null,null,null,null,null,null,null,null,null,null,null,"","DKO4305601",null,"DKO4305601 - MNEU Neurology ",null,"DKO4305601 - MNEU Neurology",null,null,null,null,""]
[null,null,null,null,"","O0191",null,"IN Phil Wells Memorial Award Current Use 323475 49798 ",null,"IN Phil Wells Memorial Award Current Use 323475 49798",null,null,null,null,null,null,null,null,null,null,null,null,null,null,null,null,null,null,null,null,null,null,"","DKO4306206",null,"DKO4306206 - MPED Cardiology ",null,"DKO4306206 - MPED Cardiology",null,null,null,null,""]
[null,null,null,null,"","O0254",null,"IN Veterinary Student International Resch 323718 48061 ",null,"IN Veterinary Student International Resch 323718 48061",null,null,null,null,null,null,null,null,null,null,null,null,null,null,null,null,null,null,null,null,null,null,"","DKO4842103",null,"DKO4842103 - CSOM ADMIN CSOM MARKETING ",null,"DKO4842103 - CSOM ADMIN CSOM MARKETING",null,null,null,null,""]
[null,null,null,null,"","O0263",null,"IN CareyBlanchard CAHFS Support Fund 323770 48134 ",null,"IN CareyBlanchard CAHFS Support Fund 323770 48134",null,null,null,null,null,null,null,null,null,null,null,null,null,null,null,null,null,null,null,null,null,null,"","DKO5700004",null,"DKO5700004 - GS Analysis and Policy ",null,"DKO5700004 - GS Analysis and Policy",null,null,null,null,""]
[null,null,null,null,"","O0329",null,"IN The Gregory R Schmidt Scholarship Fund 324020 49185 ",null,"IN The Gregory R Schmidt Scholarship Fund 324020 49185",null,null,null,null,null,null,null,null,null,null,null,null,null,null,null,null,null,null,null,null,null,null,"","DKO6015007",null,"DKO6015007 - Policy Inst for Energy Environmental and Economy ",null,"DKO6015007 - Policy Inst for Energy Environmental and Economy",null,null,null,null,""]
[null,null,null,null,"","O0372",null,"IN Jeanne L Newman Fund 324145 49577 ",null,"IN Jeanne L Newman Fund 324145 49577",null,null,null,null,null,null,null,null,null,null,null,null,null,null,null,null,null,null,null,null,null,null,"","DKO7300501",null,"DKO7300501 - DEVAR VC Office Social Committee ",null,"DKO7300501 - DEVAR VC Office Social Committee",null,null,null,null,""]
[null,null,null,null,"","O0410",null,"IN Silver Oak Student Research Fund 324278 55139 ",null,"IN Silver Oak Student Research Fund 324278 55139",null,null,null,null,null,null,null,null,null,null,null,null,null,null,null,null,null,null,null,null,null,null,"","DKO7303008",null,"DKO7303008 - DEVAR Central Operations Retiree Center ",null,"DKO7303008 - DEVAR Central Operations Retiree Center",null,null,null,null,""]
[null,null,null,null,"","O0444",null,"IN International Wine Food Soc Fellowship 324401 55338 ",null,"IN International Wine Food Soc Fellowship 324401 55338",null,null,null,null,null,null,null,null,null,null,null,null,null,null,null,null,null,null,null,null,null,null,"","DKO8000202",null,"DKO8000202 - CPE HS Northern California Training Academy ",null,"DKO8000202 - CPE HS Northern California Training Academy",null,null,null,null,""]
[null,null,null,null,"","O0453",null,"IN Louise Kellogg Memorial Fund 324448 55519 ",null,"IN Louise Kellogg Memorial Fund 324448 55519",null,null,null,null,null,null,null,null,null,null,null,null,null,null,null,null,null,null,null,null,null,null,"","DKO8000306",null,"DKO8000306 - CPE Life Sciences ",null,"DKO8000306 - CPE Life Sciences",null,null,null,null,""]
[null,null,null,null,"","O0509",null,"IN C B Petersen StudentAthlete Perf Ctr 324589 55863 ",null,"IN C B Petersen StudentAthlete Perf Ctr 324589 55863",null,null,null,null,null,null,null,null,null,null,null,null,null,null,null,null,null,null,null,null,null,null,"","DKO8000618",null,"DKO8000618 - QUALITY IMPROVEMENT PROGRAM ",null,"DKO8000618 - QUALITY IMPROVEMENT PROGRAM",null,null,null,null,""]
[null,null,null,null,"","O0534",null,"IN Super Fritz Friends Fund 324631 56230 ",null,"IN Super Fritz Friends Fund 324631 56230",null,null,null,null,null,null,null,null,null,null,null,null,null,null,null,null,null,null,null,null,null,null,"","DKO8000724",null,"DKO8000724 - SMIL IP SAC CO MI LAST RESORT ",null,"DKO8000724 - SMIL IP SAC CO MI LAST RESORT",null,null,null,null,""]
[null,null,null,null,"","O0581",null,"IN Mike and Stephanie Bruno Fellowship 324745 56575 ",null,"IN Mike and Stephanie Bruno Fellowship 324745 56575",null,null,null,null,null,null,null,null,null,null,null,null,null,null,null,null,null,null,null,null,null,null,"","DKO8100105",null,"DKO8100105 - SOE Student Services ",null,"DKO8100105 - SOE Student Services",null,null,null,null,""]
[null,null,null,null,"","O0609",null,"IN Paris and Tickers Healthy Hounds Fund 324826 56778 ",null,"IN Paris and Tickers Healthy Hounds Fund 324826 56778",null,null,null,null,null,null,null,null,null,null,null,null,null,null,null,null,null,null,null,null,null,null,"","DKO8500011",null,"DKO8500011 - UC Center Sacramento ",null,"DKO8500011 - UC Center Sacramento",null,null,null,null,""]
[null,null,null,null,"","O0653",null,"IN Karen D Horobin Graduate Research Suppt 324930 46226 ",null,"IN Karen D Horobin Graduate Research Suppt 324930 46226",null,null,null,null,null,null,null,null,null,null,null,null,null,null,null,null,null,null,null,null,null,null,"","DKO8700052",null,"DKO8700052 - Library IT Infrastructure ",null,"DKO8700052 - Library IT Infrastructure",null,null,null,null,""]
[null,null,null,null,"","O0690",null,"IN Ragan and Riley Compassionate Care Fund 325013 46177 ",null,"IN Ragan and Riley Compassionate Care Fund 325013 46177",null,null,null,null,null,null,null,null,null,null,null,null,null,null,null,null,null,null,null,null,null,null,"","DKO9921211",null,"DKO9921211 - Academic Personnel and Development ",null,"DKO9921211 - Academic Personnel and Development",null,null,null,null,""]
[null,null,null,null,"","O0725",null,"IN BTC Human Rights 325111 47924 ",null,"IN BTC Human Rights 325111 47924",null,null,null,null,null,null,null,null,null,null,null,null,null,null,null,null,null,null,null,null,null,null,"","DKO9923218",null,"DKO9923218 - UCCE Fresno County ",null,"DKO9923218 - UCCE Fresno County",null,null,null,null,""]
[null,null,null,null,"","O0771",null,"IN Library Annual Fund 342120 39813 ",null,"IN Library Annual Fund 342120 39813",null,null,null,null,null,null,null,null,null,null,null,null,null,null,null,null,null,null,null,null,null,null,"","DKO9923264",null,"DKO9923264 - UCCE Yolo County ",null,"DKO9923264 - UCCE Yolo County",null,null,null,null,""]
[null,null,null,null,"","O0790",null,"IN Alfred G Gail E Montna Family Fund 322914 45436 ",null,"IN Alfred G Gail E Montna Family Fund 322914 45436",null,null,null,null,null,null,null,null,null,null,null,null,null,null,null,null,null,null,null,null,null,null,"","DKO9924811",null,"DKO9924811 - ANR Fire Network ",null,"DKO9924811 - ANR Fire Network",null,null,null,null,""]
[null,null,null,null,"","O0852",null,"IN Gonz lez PreLaw Academy Support Fund 324579 55872 ",null,"IN Gonz lez PreLaw Academy Support Fund 324579 55872",null,null,null,null,null,null,null,null,null,null,null,null,null,null,null,null,null,null,null,null,null,null,"","DKO9ACL501",null,"DKO9ACL501 - UCD ACL5 Cluster 5 ",null,"DKO9ACL501 - UCD ACL5 Cluster 5",null,null,null,null,""]
[null,null,null,null,"","O0862",null,"IN Jessup Free Ranging Wildlife Residency 324722 56536 ",null,"IN Jessup Free Ranging Wildlife Residency 324722 56536",null,null,null,null,null,null,null,null,null,null,null,null,null,null,null,null,null,null,null,null,null,null,"","DKO9AETX01",null,"DKO9AETX01 - UCD AETX Environmental Toxicology ",null,"DKO9AETX01 - UCD AETX Environmental Toxicology",null,null,null,null,""]
[null,null,null,null,"","O0933",null,"IN Class of 1989 Student Scholarship Fund 324535 BTE ",null,"IN Class of 1989 Student Scholarship Fund 324535 BTE",null,null,null,null,null,null,null,null,null,null,null,null,null,null,null,null,null,null,null,null,null,null,"","DKOABAE001",null,"DKOABAE001 - ABAE Bio and Ag Engineering ",null,"DKOABAE001 - ABAE Bio and Ag Engineering",null,null,null,null,""]
[null,null,null,null,"","O0971",null,"IN Orthopaedic Surgery Resident Edu Fund 323361 PG ",null,"IN Orthopaedic Surgery Resident Edu Fund 323361 PG",null,null,null,null,null,null,null,null,null,null,null,null,null,null,null,null,null,null,null,null,null,null,"","DKOADNO034",null,"DKOADNO034 - ADNO Farm Management ",null,"DKOADNO034 - ADNO Farm Management",null,null,null,null,""]
[null,null,null,null,"","O1008",null,"IN Phyllis Alex McCalla Arboretum Fund 324843 PG ",null,"IN Phyllis Alex McCalla Arboretum Fund 324843 PG",null,null,null,null,null,null,null,null,null,null,null,null,null,null,null,null,null,null,null,null,null,null,"","DKOAHCE002",null,"DKOAHCE002 - AHCE Faculty Resources ",null,"DKOAHCE002 - AHCE Faculty Resources",null,null,null,null,""]
[null,null,null,null,"","O1033",null,"IN Resnick Center for Ag Innovation 325188 47977 ",null,"IN Resnick Center for Ag Innovation 325188 47977",null,null,null,null,null,null,null,null,null,null,null,null,null,null,null,null,null,null,null,null,null,null,"","DKOANUT001",null,"DKOANUT001 - ANUT Nutrition ",null,"DKOANUT001 - ANUT Nutrition",null,null,null,null,""]
[null,null,null,null,"","O1076",null,"IN Jack Hicks Fund for Student Exploration 325192 50117 ",null,"IN Jack Hicks Fund for Student Exploration 325192 50117",null,null,null,null,null,null,null,null,null,null,null,null,null,null,null,null,null,null,null,null,null,null,"","DKOASU0054",null,"DKOASU0054 - ASUCD Aggie Reuse Store ",null,"DKOASU0054 - ASUCD Aggie Reuse Store",null,null,null,null,""]
[null,null,null,null,"","O1108",null,"IN Presky Saltman Bio Sci Schlp Support 325244 50136 ",null,"IN Presky Saltman Bio Sci Schlp Support 325244 50136",null,null,null,null,null,null,null,null,null,null,null,null,null,null,null,null,null,null,null,null,null,null,"","DKOATHL025",null,"DKOATHL025 - Mens Soccer ",null,"DKOATHL025 - Mens Soccer",null,null,null,null,""]
[null,null,null,null,"","O1148",null,"IN Tom Kenny Memorial Fund 325307 50277 ",null,"IN Tom Kenny Memorial Fund 325307 50277",null,null,null,null,null,null,null,null,null,null,null,null,null,null,null,null,null,null,null,null,null,null,"","DKOBCBS008",null,"DKOBCBS008 - CBS Neuroscience Graduate Group ",null,"DKOBCBS008 - CBS Neuroscience Graduate Group",null,null,null,null,""]
[null,null,null,null,"","O1189",null,"IN BABG Diversity Scholarship Support Fund 325366 ",null,"IN BABG Diversity Scholarship Support Fund 325366",null,null,null,null,null,null,null,null,null,null,null,null,null,null,null,null,null,null,null,null,null,null,"","DKOBSDF007",null,"DKOBSDF007 - CBS Deans Educational Enrichment Outreach ",null,"DKOBSDF007 - CBS Deans Educational Enrichment Outreach",null,null,null,null,""]
[null,null,null,null,"","O1220",null,"IN L.A.W. Support for Food Sci Student Exp 325419 ",null,"IN L.A.W. Support for Food Sci Student Exp 325419",null,null,null,null,null,null,null,null,null,null,null,null,null,null,null,null,null,null,null,null,null,null,"","DKOCR00050",null,"DKOCR00050 - CR Program Administration ",null,"DKOCR00050 - CR Program Administration",null,null,null,null,""]
[null,null,null,null,"","O1270",null,"IN UC DEEP Davis Entrepreneurial Eye 324012 49157 ",null,"IN UC DEEP Davis Entrepreneurial Eye 324012 49157",null,null,null,null,null,null,null,null,null,null,null,null,null,null,null,null,null,null,null,null,null,null,"","DKODCRS001",null,"DKODCRS001 - DCM Real Estate Property Management ",null,"DKODCRS001 - DCM Real Estate Property Management",null,null,null,null,""]
[null,null,null,null,"","O1285",null,"IN Lindfors and Moore MD Endowed Scholarship Sppt Fnd 325438 ",null,"IN Lindfors and Moore MD Endowed Scholarship Sppt Fnd 325438",null,null,null,null,null,null,null,null,null,null,null,null,null,null,null,null,null,null,null,null,null,null,"","DKOECEE182",null,"DKOECEE182 - CEE Faculty Resources ",null,"DKOECEE182 - CEE Faculty Resources",null,null,null,null,""]
[null,null,null,null,"","O1313",null,"IN Thrive Pet Healthcare Residency Fund 325476 ",null,"IN Thrive Pet Healthcare Residency Fund 325476",null,null,null,null,null,null,null,null,null,null,null,null,null,null,null,null,null,null,null,null,null,null,"","DKOECOE025",null,"DKOECOE025 - COE DO LEADR ",null,"DKOECOE025 - COE DO LEADR",null,null,null,null,""]
[null,null,null,null,"","O1357",null,"IN Dechra Excellence in Internal Med Student Award 325530 ",null,"IN Dechra Excellence in Internal Med Student Award 325530",null,null,null,null,null,null,null,null,null,null,null,null,null,null,null,null,null,null,null,null,null,null,"","DKOFDFD000",null,"DKOFDFD000 - FD Executive Admin ",null,"DKOFDFD000 - FD Executive Admin",null,null,null,null,""]
[null,null,null,null,"","P0035",null,"Brad Atwood Scholarship 111590 41891 ",null,"Brad Atwood Scholarship 111590 41891",null,null,null,null,null,null,null,null,null,null,null,null,null,null,null,null,null,null,null,null,null,null,"","DKOFMUS005",null,"DKOFMUS005 - FM Util Power and Lights ",null,"DKOFMUS005 - FM Util Power and Lights",null,null,null,null,""]
[null,null,null,null,"","P0070",null,"Del and Lily J Young Endowed Fund 111741 46299 ",null,"Del and Lily J Young Endowed Fund 111741 46299",null,null,null,null,null,null,null,null,null,null,null,null,null,null,null,null,null,null,null,null,null,null,"","DKOIETAP02",null,"DKOIETAP02 - IET Application Delivery ",null,"DKOIETAP02 - IET Application Delivery",null,null,null,null,""]
[null,null,null,null,"","P0110",null,"AnheuserBusch Malting Brewing Prof 111907 40254 ",null,"AnheuserBusch Malting Brewing Prof 111907 40254",null,null,null,null,null,null,null,null,null,null,null,null,null,null,null,null,null,null,null,null,null,null,"","DKOLAHI002",null,"DKOLAHI002 - AHI Faculty Compensation ",null,"DKOLAHI002 - AHI Faculty Compensation",null,null,null,null,""]
[null,null,null,null,"","P0142",null,"Robert Murdoch Memorial Scholarship 122006 40656 ",null,"Robert Murdoch Memorial Scholarship 122006 40656",null,null,null,null,null,null,null,null,null,null,null,null,null,null,null,null,null,null,null,null,null,null,"","DKOLCHE003",null,"DKOLCHE003 - CHE Faculty Resources ",null,"DKOLCHE003 - CHE Faculty Resources",null,null,null,null,""]
[null,null,null,null,"","P0191",null,"Bruno W Audrey M Bracka Scholarship 122109 41262 ",null,"Bruno W Audrey M Bracka Scholarship 122109 41262",null,null,null,null,null,null,null,null,null,null,null,null,null,null,null,null,null,null,null,null,null,null,"","DKOLDLC002",null,"DKOLDLC002 - DLC Faculty Compensation ",null,"DKOLDLC002 - DLC Faculty Compensation",null,null,null,null,""]
[null,null,null,null,"","P0244",null,"Castelfranco History Christianity Chair 122208 41750 ",null,"Castelfranco History Christianity Chair 122208 41750",null,null,null,null,null,null,null,null,null,null,null,null,null,null,null,null,null,null,null,null,null,null,"","DKOLHIA003",null,"DKOLHIA003 - HIA Faculty Resources ",null,"DKOLHIA003 - HIA Faculty Resources",null,null,null,null,""]
[null,null,null,null,"","P0272",null,"Novozymes Chair in Genomics 122261 42163 ",null,"Novozymes Chair in Genomics 122261 42163",null,null,null,null,null,null,null,null,null,null,null,null,null,null,null,null,null,null,null,null,null,null,"","DKOLLIN004",null,"DKOLLIN004 - LIN Grad Program ",null,"DKOLLIN004 - LIN Grad Program",null,null,null,null,""]
[null,null,null,null,"","P0316",null,"John and Jeanne Pryor Fund 122350 42324 ",null,"John and Jeanne Pryor Fund 122350 42324",null,null,null,null,null,null,null,null,null,null,null,null,null,null,null,null,null,null,null,null,null,null,"","DKOLPOL001",null,"DKOLPOL001 - POL Political Science ",null,"DKOLPOL001 - POL Political Science",null,null,null,null,""]
[null,null,null,null,"","P0353",null,"Richard Snavely Memorial Award 122415 43465 ",null,"Richard Snavely Memorial Award 122415 43465",null,null,null,null,null,null,null,null,null,null,null,null,null,null,null,null,null,null,null,null,null,null,"","DKOLSTA001",null,"DKOLSTA001 - STA Statistics ",null,"DKOLSTA001 - STA Statistics",null,null,null,null,""]
[null,null,null,null,"","P0388",null,"Charles P Nash Prize 122498 43715 ",null,"Charles P Nash Prize 122498 43715",null,null,null,null,null,null,null,null,null,null,null,null,null,null,null,null,null,null,null,null,null,null,"","DKOSA00001",null,"DKOSA00001 - SA Office of Vice Chancellor ",null,"DKOSA00001 - SA Office of Vice Chancellor",null,null,null,null,""]
[null,null,null,null,"","P0428",null,"Rustici Ext Spec Rangeland Watershed Sci 122571 43816 ",null,"Rustici Ext Spec Rangeland Watershed Sci 122571 43816",null,null,null,null,null,null,null,null,null,null,null,null,null,null,null,null,null,null,null,null,null,null,"","DKOSHCS003",null,"DKOSHCS003 - SHCS Human Resources ",null,"DKOSHCS003 - SHCS Human Resources",null,null,null,null,""]
[null,null,null,null,"","P0460",null,"March Family Internship Award 122637 43147 ",null,"March Family Internship Award 122637 43147",null,null,null,null,null,null,null,null,null,null,null,null,null,null,null,null,null,null,null,null,null,null,"","DKOSHCS122",null,"DKOSHCS122 - SHCS Public Health Response ",null,"DKOSHCS122 - SHCS Public Health Response",null,null,null,null,""]
[null,null,null,null,"","P0509",null,"Osburn Graduate Fellowship 122744 44518 ",null,"Osburn Graduate Fellowship 122744 44518",null,null,null,null,null,null,null,null,null,null,null,null,null,null,null,null,null,null,null,null,null,null,"","DKOSHDS222",null,"DKOSHDS222 - SHDS California Coffee Cali ",null,"DKOSHDS222 - SHDS California Coffee Cali",null,null,null,null,""]
[null,null,null,null,"","P0525",null,"Kay Lehr Endowment 122771 56903 ",null,"Kay Lehr Endowment 122771 56903",null,null,null,null,null,null,null,null,null,null,null,null,null,null,null,null,null,null,null,null,null,null,"","DKOSL00104",null,"DKOSL00104 - Native American Academic Student Success Center ",null,"DKOSL00104 - Native American Academic Student Success Center",null,null,null,null,""]
[null,null,null,null,"","P0552",null,"Murray Family Scholarship Fund 122824 44985 ",null,"Murray Family Scholarship Fund 122824 44985",null,null,null,null,null,null,null,null,null,null,null,null,null,null,null,null,null,null,null,null,null,null,"","DKOVAPC003",null,"DKOVAPC003 - VM APC Faculty Resources ",null,"DKOVAPC003 - VM APC Faculty Resources",null,null,null,null,""]
[null,null,null,null,"","P0597",null,"Heather Marie Award for Guardian Teacher 122978 45519 ",null,"Heather Marie Award for Guardian Teacher 122978 45519",null,null,null,null,null,null,null,null,null,null,null,null,null,null,null,null,null,null,null,null,null,null,"","DKOVHFS112",null,"DKOVHFS112 - VM CAHFS Davis BSL3 ",null,"DKOVHFS112 - VM CAHFS Davis BSL3",null,null,null,null,""]
[null,null,null,null,"","P0633",null,"Andrew M Siverson Scholarship 123097 46521 ",null,"Andrew M Siverson Scholarship 123097 46521",null,null,null,null,null,null,null,null,null,null,null,null,null,null,null,null,null,null,null,null,null,null,"","DKOVHFS410",null,"DKOVHFS410 - VM CAHFS Tulare Storeroom ",null,"DKOVHFS410 - VM CAHFS Tulare Storeroom",null,null,null,null,""]
[null,null,null,null,"","P0669",null,"William Sr and Jewel Sims Award 123198 47042 ",null,"William Sr and Jewel Sims Award 123198 47042",null,null,null,null,null,null,null,null,null,null,null,null,null,null,null,null,null,null,null,null,null,null,"","DKOVHO2270",null,"DKOVHO2270 - VM VMTH VLAC Equine Medicine FS ",null,"DKOVHO2270 - VM VMTH VLAC Equine Medicine FS",null,null,null,null,""]
[null,null,null,null,"","P0708",null,"GSM Alumni Association Board of Director 123333 46839 ",null,"GSM Alumni Association Board of Director 123333 46839",null,null,null,null,null,null,null,null,null,null,null,null,null,null,null,null,null,null,null,null,null,null,"","DKOVHO4850",null,"DKOVHO4850 - VM VMTH VRAD SA Ultrasound ",null,"DKOVHO4850 - VM VMTH VRAD SA Ultrasound",null,null,null,null,""]
[null,null,null,null,"","P0741",null,"Summer Research Endowment Fund 123443 47589 ",null,"Summer Research Endowment Fund 123443 47589",null,null,null,null,null,null,null,null,null,null,null,null,null,null,null,null,null,null,null,null,null,null,"","DKOVMDO161",null,"DKOVMDO161 - VM DO Development Office ",null,"DKOVMDO161 - VM DO Development Office",null,null,null,null,""]
[null,null,null,null,"","P0789",null,"Verna M FournessLeMaitre Programming 123667 48820 ",null,"Verna M FournessLeMaitre Programming 123667 48820",null,null,null,null,null,null,null,null,null,null,null,null,null,null,null,null,null,null,null,null,null,null,"","DKOVOHI003",null,"DKOVOHI003 - VM OHI CVET California Veterinary Emergency Team ",null,"DKOVOHI003 - VM OHI CVET California Veterinary Emergency Team",null,null,null,null,""]
[null,null,null,null,"","P0850",null,"Ken Grossman and Kathryn Gonser Fund 123859 49030 ",null,"Ken Grossman and Kathryn Gonser Fund 123859 49030",null,null,null,null,null,null,null,null,null,null,null,null,null,null,null,null,null,null,null,null,null,null,"","CS0K321003",null,"CS0K321003 HATCH REGULAR ANIMAL HEALTH ODD YEAR K321003 ",null,"CS0K321003 HATCH REGULAR ANIMAL HEALTH ODD YEAR K321003",null,null,null,null,""]
[null,null,null,null,"","P0870",null,"Student Rainy Day Award Fund 123934 49847 ",null,"Student Rainy Day Award Fund 123934 49847",null,null,null,null,null,null,null,null,null,null,null,null,null,null,null,null,null,null,null,null,null,null,"","CS0K324F13",null,"CS0K324F13 ACLS Emerging Voices Fellow 2022 24 Kai Wen Yang K324F13 ",null,"CS0K324F13 ACLS Emerging Voices Fellow 2022 24 Kai Wen Yang K324F13",null,null,null,null,""]
[null,null,null,null,"","P0927",null,"Richard C Larock Outstanding Graduating 124247 55545 ",null,"Richard C Larock Outstanding Graduating 124247 55545",null,null,null,null,null,null,null,null,null,null,null,null,null,null,null,null,null,null,null,null,null,null,"","CS0K330F68",null,"CS0K330F68 Heavy Duty Vehicle Electrification and its Potential as a Clean Energy Alternative for Critical Operations K330F68 ",null,"CS0K330F68 Heavy Duty Vehicle Electrification and its Potential as a Clean Energy Alternative for Critical Operations K330F68",null,null,null,null,""]
[null,null,null,null,"","P0955",null,"Summer Field Geology Fund 124338 55264 ",null,"Summer Field Geology Fund 124338 55264",null,null,null,null,null,null,null,null,null,null,null,null,null,null,null,null,null,null,null,null,null,null,"","CS0K333D38",null,"Do not use - CS0K333D38 Techniques to minimize nitrate loss from the root zone during managed aquifer recharge K333D38 ",null,"Do not use - CS0K333D38 Techniques to minimize nitrate loss from the root zone during managed aquifer recharge K333D38",null,null,null,null,""]
[null,null,null,null,"","P0970",null,"Genetics Research Fellowship Endowment 124379 55372 ",null,"Genetics Research Fellowship Endowment 124379 55372",null,null,null,null,null,null,null,null,null,null,null,null,null,null,null,null,null,null,null,null,null,null,"","CS0K335D76",null,"CS0K335D76 Improved self propagating hybrid technology for cereals K335D76 ",null,"CS0K335D76 Improved self propagating hybrid technology for cereals K335D76",null,null,null,null,""]
[null,null,null,null,"","P1020",null,"Phyllis Steckel Student Farm Fund 124550 55782 ",null,"Phyllis Steckel Student Farm Fund 124550 55782",null,null,null,null,null,null,null,null,null,null,null,null,null,null,null,null,null,null,null,null,null,null,"","CS0K372C51",null,"K372C51 CS0K372C51 Characterization of microbial RaxX a molecular mimic that facilitates rice infection Fellowship to postdoctoral scholar Dr Maria F Ercoli ",null,"K372C51 CS0K372C51 Characterization of microbial RaxX a molecular mimic that facilitates rice infection Fellowship to postdoctoral scholar Dr Maria F Ercoli",null,null,null,null,""]
[null,null,null,null,"","P1051",null,"Innovation Institute for Food Health 124667 56366 ",null,"Innovation Institute for Food Health 124667 56366",null,null,null,null,null,null,null,null,null,null,null,null,null,null,null,null,null,null,null,null,null,null,"","CS0K375C55",null,"CS0K375C55 Seed Transfer in a changing climate K375C55 ",null,"CS0K375C55 Seed Transfer in a changing climate K375C55",null,null,null,null,""]
[null,null,null,null,"","P1092",null,"GreenwoodJohnson Family Fund 124813 ",null,"GreenwoodJohnson Family Fund 124813",null,null,null,null,null,null,null,null,null,null,null,null,null,null,null,null,null,null,null,null,null,null,"","CS0K377F38",null,"CS0K377F38 Inventory of White Pine Blister Rust Cronartium ribicola and Drought Impacts in Sugar Pine Pinus lamlambertiana to Inform Restoration at Yosemite P23AC00538 K377F38 ",null,"CS0K377F38 Inventory of White Pine Blister Rust Cronartium ribicola and Drought Impacts in Sugar Pine Pinus lamlambertiana to Inform Restoration at Yosemite P23AC00538 K377F38",null,null,null,null,""]
[null,null,null,null,"","P1132",null,"Karen Sigvardt PhD Neuroscience Fello 124958 46273 ",null,"Karen Sigvardt PhD Neuroscience Fello 124958 46273",null,null,null,null,null,null,null,null,null,null,null,null,null,null,null,null,null,null,null,null,null,null,"","CS0K380A82",null,"CS0K380A82 Solving EPHX2 and PUFA interactions in anorexia nervosa K380A82 ",null,"CS0K380A82 Solving EPHX2 and PUFA interactions in anorexia nervosa K380A82",null,null,null,null,""]
[null,null,null,null,"","P1164",null,"Schaal Prose Poetry Psychothrpy Progrm 125028 46262 ",null,"Schaal Prose Poetry Psychothrpy Progrm 125028 46262",null,null,null,null,null,null,null,null,null,null,null,null,null,null,null,null,null,null,null,null,null,null,"","CS0K381F81",null,"CS0K381F81 Eligibility Training K381F81 ",null,"CS0K381F81 Eligibility Training K381F81",null,null,null,null,""]
[null,null,null,null,"","P1207",null,"African Agricultural Development Fund 141003 43092 ",null,"African Agricultural Development Fund 141003 43092",null,null,null,null,null,null,null,null,null,null,null,null,null,null,null,null,null,null,null,null,null,null,"","CS0K384F41",null,"CS0K384F41 Eligibility Training K384F41 ",null,"CS0K384F41 Eligibility Training K384F41",null,null,null,null,""]
[null,null,null,null,"","P1236",null,"Pomeroy Robertson Fam Scholarship 150015 44987 ",null,"Pomeroy Robertson Fam Scholarship 150015 44987",null,null,null,null,null,null,null,null,null,null,null,null,null,null,null,null,null,null,null,null,null,null,"","CS0K387D89",null,"CS0K387D89 Feasibility of a stem cell gene therapy approach for the treatment of SYNGAP1 related NSID K387D89 ",null,"CS0K387D89 Feasibility of a stem cell gene therapy approach for the treatment of SYNGAP1 related NSID K387D89",null,null,null,null,""]
[null,null,null,null,"","P1288",null,"Loury Foundation Fellowship Fund 150211 BTE ",null,"Loury Foundation Fellowship Fund 150211 BTE",null,null,null,null,null,null,null,null,null,null,null,null,null,null,null,null,null,null,null,null,null,null,"","CS0KL38F18",null,"CS0KL38F18 Collaborative Training and Mentorship Pathways for Beginning Foothill Farmers and Ranchers KL38F18 ",null,"CS0KL38F18 Collaborative Training and Mentorship Pathways for Beginning Foothill Farmers and Ranchers KL38F18",null,null,null,null,""]
[null,null,null,null,"","P1308",null,"Ernest E Hill Memorial Graduate Fellows 150231 ATP ",null,"Ernest E Hill Memorial Graduate Fellows 150231 ATP",null,null,null,null,null,null,null,null,null,null,null,null,null,null,null,null,null,null,null,null,null,null,"","CS0KL82D88",null,"CS0KL82D88 Education and Outreach Support Programming Southern California Forest Woodlands WildfireRecovery and Management of Post Fire Invasive Pests KL82D88 ",null,"CS0KL82D88 Education and Outreach Support Programming Southern California Forest Woodlands WildfireRecovery and Management of Post Fire Invasive Pests KL82D88",null,null,null,null,""]
[null,null,null,null,"","P1369",null,"Betty Liu Student Tickets End Fund 123020 PG ",null,"Betty Liu Student Tickets End Fund 123020 PG",null,null,null,null,null,null,null,null,null,null,null,null,null,null,null,null,null,null,null,null,null,null,"","K302300058",null,"CS PSU Models Enabling Yr 5 6 Chen K302300058 ",null,"CS PSU Models Enabling Yr 5 6 Chen K302300058",null,null,null,null,""]
[null,null,null,null,"","P1410",null,"Peters Endowed Chair in Canine Cancer R 123285 PG ",null,"Peters Endowed Chair in Canine Cancer R 123285 PG",null,null,null,null,null,null,null,null,null,null,null,null,null,null,null,null,null,null,null,null,null,null,"","K302370F23",null,"NSF Correctness in Scientific Computing K302370F23 ",null,"NSF Correctness in Scientific Computing K302370F23",null,null,null,null,""]
[null,null,null,null,"","P1450",null,"Bruce and Marie West Chair I 123707 PG ",null,"Bruce and Marie West Chair I 123707 PG",null,null,null,null,null,null,null,null,null,null,null,null,null,null,null,null,null,null,null,null,null,null,"","K302386D26",null,"CS NSF CAREER Hdware Sftware Co Design K302386D26 ",null,"CS NSF CAREER Hdware Sftware Co Design K302386D26",null,null,null,null,""]
[null,null,null,null,"","P1482",null,"Joanne R Bethlahmy Student Scholarship 123997 50267 ",null,"Joanne R Bethlahmy Student Scholarship 123997 50267",null,null,null,null,null,null,null,null,null,null,null,null,null,null,null,null,null,null,null,null,null,null,"","K3028F97NE",null,"CNRA CITIZEN SCIENCE CLEAR LAKE K3028F97NE ",null,"CNRA CITIZEN SCIENCE CLEAR LAKE K3028F97NE",null,null,null,null,""]
[null,null,null,null,"","P1525",null,"W Harry Lange Jr Memorial Endow Schlsp 124230 PG ",null,"W Harry Lange Jr Memorial Endow Schlsp 124230 PG",null,null,null,null,null,null,null,null,null,null,null,null,null,null,null,null,null,null,null,null,null,null,"","K303879020",null,"Small Building Controls Monitoring EEC K303879020 ",null,"Small Building Controls Monitoring EEC K303879020",null,null,null,null,""]
[null,null,null,null,"","P1554",null,"Teresa Y Morishita DVM MPVM P 124409 PG ",null,"Teresa Y Morishita DVM MPVM P 124409 PG",null,null,null,null,null,null,null,null,null,null,null,null,null,null,null,null,null,null,null,null,null,null,"","K303DOPS02",null,"3D Organic Polymer Silk Stage 2 K303DOPS02 ",null,"3D Organic Polymer Silk Stage 2 K303DOPS02",null,null,null,null,""]
[null,null,null,null,"","P1568",null,"Leks Cancer Research Endowment Fund 124512 PG ",null,"Leks Cancer Research Endowment Fund 124512 PG",null,null,null,null,null,null,null,null,null,null,null,null,null,null,null,null,null,null,null,null,null,null,"","K304324999",null,"ACAD SUPP VACA ACCRUALS K304324999 ",null,"ACAD SUPP VACA ACCRUALS K304324999",null,null,null,null,""]
[null,null,null,null,"","P1626",null,"Easter Family Fund for Endocrinology 124856 PG ",null,"Easter Family Fund for Endocrinology 124856 PG",null,null,null,null,null,null,null,null,null,null,null,null,null,null,null,null,null,null,null,null,null,null,"","K304873281",null,"Handy Caltrans VMT measures K304873281 ",null,"Handy Caltrans VMT measures K304873281",null,null,null,null,""]
[null,null,null,null,"","P1649",null,"Fingerut End Chair in Comp Ophthalmology 125145 PG ",null,"Fingerut End Chair in Comp Ophthalmology 125145 PG",null,null,null,null,null,null,null,null,null,null,null,null,null,null,null,null,null,null,null,null,null,null,"","K304875113",null,"28D18 Heising Simons Gas Tax Replacement K304875113 ",null,"28D18 Heising Simons Gas Tax Replacement K304875113",null,null,null,null,""]
[null,null,null,null,"","P1691",null,"Presky Saltman Bio Sci Scholarship 125244 50135 ",null,"Presky Saltman Bio Sci Scholarship 125244 50135",null,null,null,null,null,null,null,null,null,null,null,null,null,null,null,null,null,null,null,null,null,null,"","K304877106",null,"2021 22 Climate Works Circella K304877106 ",null,"2021 22 Climate Works Circella K304877106",null,null,null,null,""]
[null,null,null,null,"","P1730",null,"Susie Ramsay Endowed Scholarship 125309 50373 ",null,"Susie Ramsay Endowed Scholarship 125309 50373",null,null,null,null,null,null,null,null,null,null,null,null,null,null,null,null,null,null,null,null,null,null,"","K306220969",null,"PUBLIC SERVICE VACATION ACCRUALS K306220969 ",null,"PUBLIC SERVICE VACATION ACCRUALS K306220969",null,null,null,null,""]
[null,null,null,null,"","P1763",null,"Alberini Grad Fellowshp in Design Endow 125359 50471 ",null,"Alberini Grad Fellowshp in Design Endow 125359 50471",null,null,null,null,null,null,null,null,null,null,null,null,null,null,null,null,null,null,null,null,null,null,"","K307773F01",null,"FEDERAL SEOG 2023 24 K307773F01 ",null,"FEDERAL SEOG 2023 24 K307773F01",null,null,null,null,""]
[null,null,null,null,"","P1805",null,"E. Davis Endowment for Access to Care 125416 PG ",null,"E. Davis Endowment for Access to Care 125416 PG",null,null,null,null,null,null,null,null,null,null,null,null,null,null,null,null,null,null,null,null,null,null,"","K3085F29TM",null,"CALIFORNIA SCHOOL BOARDS ASSOC K3085F29TM ",null,"CALIFORNIA SCHOOL BOARDS ASSOC K3085F29TM",null,null,null,null,""]
[null,null,null,null,"","P1835",null,"Chunat Family Scholarship Endowment 125463 ",null,"Chunat Family Scholarship Endowment 125463",null,null,null,null,null,null,null,null,null,null,null,null,null,null,null,null,null,null,null,null,null,null,"","K309534401",null,"Univ Airport CalTrans YOL 1 20 1 K309534401 ",null,"Univ Airport CalTrans YOL 1 20 1 K309534401",null,null,null,null,""]
[null,null,null,null,"","P9976",null,"Drake Endowment Fund 111515 44564 3 7744564 ",null,"Drake Endowment Fund 111515 44564 3 7744564",null,null,null,null,null,null,null,null,null,null,null,null,null,null,null,null,null,null,null,null,null,null,"","K309872534",null,"NCST Alemi TNC Disruptive Role K309872534 ",null,"NCST Alemi TNC Disruptive Role K309872534",null,null,null,null,""]
[null,null,null,null,"","P9997",null,"Jennings Graduate Student Fellowship 150001 43788 3 AGRJENN ",null,"Jennings Graduate Student Fellowship 150001 43788 3 AGRJENN",null,null,null,null,null,null,null,null,null,null,null,null,null,null,null,null,null,null,null,null,null,null,"","K309872576",null,"Muehlegger NCST Fuel Taxes K309872576 ",null,"Muehlegger NCST Fuel Taxes K309872576",null,null,null,null,""]
[null,null,null,null,"","PG050",null,"Lynch Tanner VM Scholarship Fund 222735 44294 ",null,"Lynch Tanner VM Scholarship Fund 222735 44294",null,null,null,null,null,null,null,null,null,null,null,null,null,null,null,null,null,null,null,null,null,null,"","K309873426",null,"Caltrans TO 26 Sabbie Miller K309873426 ",null,"Caltrans TO 26 Sabbie Miller K309873426",null,null,null,null,""]
[null,null,null,null,"","PG092",null,"Women Philanthropy Impact Award 224571 ",null,"Women Philanthropy Impact Award 224571",null,null,null,null,null,null,null,null,null,null,null,null,null,null,null,null,null,null,null,null,null,null,"","K309873471",null,"Caltrans TO 71 Boarnet USC K309873471 ",null,"Caltrans TO 71 Boarnet USC K309873471",null,null,null,null,""]
[null,null,null,null,"","PKC10",null,"Schwarze Scholarship 122047 40797 ",null,"Schwarze Scholarship 122047 40797",null,null,null,null,null,null,null,null,null,null,null,null,null,null,null,null,null,null,null,null,null,null,"","K30AAS2J13",null,"MENCH AES ODD YR 2034 RR K30AAS2J13 ",null,"MENCH AES ODD YR 2034 RR K30AAS2J13",null,null,null,null,""]
[null,null,null,null,"","PKC43",null,"BergGonsalves Family CAAA Endowed Schsp 124514 55715 ",null,"BergGonsalves Family CAAA Endowed Schsp 124514 55715",null,null,null,null,null,null,null,null,null,null,null,null,null,null,null,null,null,null,null,null,null,null,"","K30ABA2R05",null,"CLOSED TECH PRIN FOR ASSESSING RETA K30ABA2R05 ",null,"CLOSED TECH PRIN FOR ASSESSING RETA K30ABA2R05",null,null,null,null,""]
[null,null,null,null,"","7506I",null,"Lassen County CAAA Scholarship 122039I ",null,"Lassen County CAAA Scholarship 122039I",null,null,null,null,null,null,null,null,null,null,null,null,null,null,null,null,null,null,null,null,null,null,"","K30ABBOILS",null,"PLB Britt Sustainable Oils K30ABBOILS ",null,"PLB Britt Sustainable Oils K30ABBOILS",null,null,null,null,""]
[null,null,null,null,"","13055",null,"Mind Research Support Fund ",null,"Mind Research Support Fund",null,null,null,null,null,null,null,null,null,null,null,null,null,null,null,null,null,null,null,null,null,null,"","K30AEX1C14",null,"Epidemiological Dynamics FusariumDieback K30AEX1C14 ",null,"Epidemiological Dynamics FusariumDieback K30AEX1C14",null,null,null,null,""]
[null,null,null,null,"","13285",null,"RussellandMargarita Robinson Mem Awd ",null,"RussellandMargarita Robinson Mem Awd",null,null,null,null,null,null,null,null,null,null,null,null,null,null,null,null,null,null,null,null,null,null,"","K30AG2CS23",null,"WCAHS Project 2 YR 2 K30AG2CS23 ",null,"WCAHS Project 2 YR 2 K30AG2CS23",null,null,null,null,""]
[null,null,null,null,"","13527",null,"James Delfino Family Memorial Award ",null,"James Delfino Family Memorial Award",null,null,null,null,null,null,null,null,null,null,null,null,null,null,null,null,null,null,null,null,null,null,"","K30AIFSIUC",null,"AIFS UIUC Subaward K30AIFSIUC ",null,"AIFS UIUC Subaward K30AIFSIUC",null,null,null,null,""]
[null,null,null,null,"","13638",null,"Jan and Beta Popper Support Fund ",null,"Jan and Beta Popper Support Fund",null,null,null,null,null,null,null,null,null,null,null,null,null,null,null,null,null,null,null,null,null,null,"","K30AJFFINA",null,"Grace Auringer FINA ACCOUNT K30AJFFINA ",null,"Grace Auringer FINA ACCOUNT K30AJFFINA",null,null,null,null,""]
[null,null,null,null,"","13788",null,"Holdsworth and Vandling Memorial Research ",null,"Holdsworth and Vandling Memorial Research",null,null,null,null,null,null,null,null,null,null,null,null,null,null,null,null,null,null,null,null,null,null,"","K30ALIANZA",null,"Chem Britt Alianza UCMX K30ALIANZA ",null,"Chem Britt Alianza UCMX K30ALIANZA",null,null,null,null,""]
[null,null,null,null,"","13885",null,"Leland A Hahn Memorial Scholarship ",null,"Leland A Hahn Memorial Scholarship",null,null,null,null,null,null,null,null,null,null,null,null,null,null,null,null,null,null,null,null,null,null,"","K30ALWTAN2",null,"06 30 24 WSWC Adv Cond Tannin Understan K30ALWTAN2 ",null,"06 30 24 WSWC Adv Cond Tannin Understan K30ALWTAN2",null,null,null,null,""]
[null,null,null,null,"","16083",null,"Gordon A Mccoy Endowment Fund ",null,"Gordon A Mccoy Endowment Fund",null,null,null,null,null,null,null,null,null,null,null,null,null,null,null,null,null,null,null,null,null,null,"","K30AMZJHU3",null,"NUTR ZIVKOVIC JOHN HOPKINS UNIVERSITY K30AMZJHU3 ",null,"NUTR ZIVKOVIC JOHN HOPKINS UNIVERSITY K30AMZJHU3",null,null,null,null,""]
[null,null,null,null,"","16146",null,"Dean Donaldson Endowment ",null,"Dean Donaldson Endowment",null,null,null,null,null,null,null,null,null,null,null,null,null,null,null,null,null,null,null,null,null,null,"","K30ANPLLNL",null,"BME LLNL sub 6 10 22 9 30 23 K30ANPLLNL ",null,"BME LLNL sub 6 10 22 9 30 23 K30ANPLLNL",null,null,null,null,""]
[null,null,null,null,"","16320",null,"Gastroenterology Division Chief Support ",null,"Gastroenterology Division Chief Support",null,null,null,null,null,null,null,null,null,null,null,null,null,null,null,null,null,null,null,null,null,null,"","K30APOWA08",null,"WA State High Resolution Vineyard Nutrie K30APOWA08 ",null,"WA State High Resolution Vineyard Nutrie K30APOWA08",null,null,null,null,""]
[null,null,null,null,"","16559",null,"Pmcf UCD Hurlston Pres Chair Match ",null,"Pmcf UCD Hurlston Pres Chair Match",null,null,null,null,null,null,null,null,null,null,null,null,null,null,null,null,null,null,null,null,null,null,"","K30APSD219",null,"PS DANDEKAR 2020 CDFA FIELD PERMIT MNGMT K30APSD219 ",null,"PS DANDEKAR 2020 CDFA FIELD PERMIT MNGMT K30APSD219",null,null,null,null,""]
[null,null,null,null,"","34021",null,"Not In Use 34021 ",null,"Not In Use 34021",null,null,null,null,null,null,null,null,null,null,null,null,null,null,null,null,null,null,null,null,null,null,"","K30APSF750",null,"PS LUO 2018 SCRI VIA UC RIVERSIDE K30APSF750 ",null,"PS LUO 2018 SCRI VIA UC RIVERSIDE K30APSF750",null,null,null,null,""]
[null,null,null,null,"","34398",null,"Boynton Wm H Vet Sci Res Fd ",null,"Boynton Wm H Vet Sci Res Fd",null,null,null,null,null,null,null,null,null,null,null,null,null,null,null,null,null,null,null,null,null,null,"","K30APSFA57",null,"PS USDA OREI OREGON DUBCOVSKY KRILL K30APSFA57 ",null,"PS USDA OREI OREGON DUBCOVSKY KRILL K30APSFA57",null,null,null,null,""]
[null,null,null,null,"","34441",null,"BuehlerWalter D Schlsp ",null,"BuehlerWalter D Schlsp",null,null,null,null,null,null,null,null,null,null,null,null,null,null,null,null,null,null,null,null,null,null,"","K30APSFA67",null,"PS MAGNEY USDA IMPROV REMOTE SEN LAWR K30APSFA67 ",null,"PS MAGNEY USDA IMPROV REMOTE SEN LAWR K30APSFA67",null,null,null,null,""]
[null,null,null,null,"","34912",null,"Cancer Res Coordinating Committee End ",null,"Cancer Res Coordinating Committee End",null,null,null,null,null,null,null,null,null,null,null,null,null,null,null,null,null,null,null,null,null,null,"","K30APSFB45",null,"PS OKI 2022 CDFA SCBG POLYPLOIDY K30APSFB45 ",null,"PS OKI 2022 CDFA SCBG POLYPLOIDY K30APSFB45",null,null,null,null,""]
[null,null,null,null,"","35047",null,"ColemanGladys WEstate ",null,"ColemanGladys WEstate",null,null,null,null,null,null,null,null,null,null,null,null,null,null,null,null,null,null,null,null,null,null,"","K30APSFB62",null,"PS USDA SCRI 22 26 CAL POLY KNAPP K30APSFB62 ",null,"PS USDA SCRI 22 26 CAL POLY KNAPP K30APSFB62",null,null,null,null,""]
[null,null,null,null,"","35322",null,"UG MarjorieandCharles Elliot Schlsp ",null,"UG MarjorieandCharles Elliot Schlsp",null,null,null,null,null,null,null,null,null,null,null,null,null,null,null,null,null,null,null,null,null,null,"","K30APSFC15",null,"PS USDA NIFA WHEAT CAP OK DUBCOVSKY K30APSFC15 ",null,"PS USDA NIFA WHEAT CAP OK DUBCOVSKY K30APSFC15",null,null,null,null,""]
[null,null,null,null,"","35427",null,"Bon EskeBeverly EndScholarship ",null,"Bon EskeBeverly EndScholarship",null,null,null,null,null,null,null,null,null,null,null,null,null,null,null,null,null,null,null,null,null,null,"","K30APSFC42",null,"PS BRUMMER USDA SAC HEMP SUBAWARD K30APSFC42 ",null,"PS BRUMMER USDA SAC HEMP SUBAWARD K30APSFC42",null,null,null,null,""]
[null,null,null,null,"","35642",null,"Golden 1 End Prfshp For PhysicianS Trng ",null,"Golden 1 End Prfshp For PhysicianS Trng",null,null,null,null,null,null,null,null,null,null,null,null,null,null,null,null,null,null,null,null,null,null,"","K30APSM596",null,"PS FFAR DUBCOVSKY K30APSM596 ",null,"PS FFAR DUBCOVSKY K30APSM596",null,null,null,null,""]
[null,null,null,null,"","35907",null,"Harrison Margaret Library End ",null,"Harrison Margaret Library End",null,null,null,null,null,null,null,null,null,null,null,null,null,null,null,null,null,null,null,null,null,null,"","K30APSM682",null,"PS OSSOLA FFAR A BIG DATA TOOL FOR URBAN K30APSM682 ",null,"PS OSSOLA FFAR A BIG DATA TOOL FOR URBAN K30APSM682",null,null,null,null,""]
[null,null,null,null,"","36086",null,"Caesar LucyandGabbie Fund ",null,"Caesar LucyandGabbie Fund",null,null,null,null,null,null,null,null,null,null,null,null,null,null,null,null,null,null,null,null,null,null,"","K30APSM793",null,"PS Oya International Human Frontier K30APSM793 ",null,"PS Oya International Human Frontier K30APSM793",null,null,null,null,""]
[null,null,null,null,"","36304",null,"International House Endowment ",null,"International House Endowment",null,null,null,null,null,null,null,null,null,null,null,null,null,null,null,null,null,null,null,null,null,null,"","K30APSPQ68",null,"PS AFNC CAPB PEAR 2 29 2024 K30APSPQ68 ",null,"PS AFNC CAPB PEAR 2 29 2024 K30APSPQ68",null,null,null,null,""]
[null,null,null,null,"","36407",null,"Koret Fdn End Basic Science Lectureship ",null,"Koret Fdn End Basic Science Lectureship",null,null,null,null,null,null,null,null,null,null,null,null,null,null,null,null,null,null,null,null,null,null,"","K30APSPRA6",null,"PS PJ BROWN 2023 CPRB PIP K30APSPRA6 ",null,"PS PJ BROWN 2023 CPRB PIP K30APSPRA6",null,null,null,null,""]
[null,null,null,null,"","36725",null,"MM CWLaw Professor Of MedFFE ",null,"MM CWLaw Professor Of MedFFE",null,null,null,null,null,null,null,null,null,null,null,null,null,null,null,null,null,null,null,null,null,null,"","K30APSTT72",null,"PS CHETELAT CTRI C M RICK TOMATO 123123 K30APSTT72 ",null,"PS CHETELAT CTRI C M RICK TOMATO 123123 K30APSTT72",null,null,null,null,""]
[null,null,null,null,"","36786",null,"Pomology Jack Lowe Walnut Research End ",null,"Pomology Jack Lowe Walnut Research End",null,null,null,null,null,null,null,null,null,null,null,null,null,null,null,null,null,null,null,null,null,null,"","K30APSXS15",null,"PS HortInnLab Kajobe Muni S015 Mitcham K30APSXS15 ",null,"PS HortInnLab Kajobe Muni S015 Mitcham K30APSXS15",null,null,null,null,""]
[null,null,null,null,"","37176",null,"Steven Mendivil Memorial Endowed Schlsp ",null,"Steven Mendivil Memorial Endowed Schlsp",null,null,null,null,null,null,null,null,null,null,null,null,null,null,null,null,null,null,null,null,null,null,"","K30AQNP027",null,"Raffuse IMPROVE 08 1 2022 1 31 2023 K30AQNP027 ",null,"Raffuse IMPROVE 08 1 2022 1 31 2023 K30AQNP027",null,null,null,null,""]
[null,null,null,null,"","37189",null,"Murphy Howard RSchlsp ",null,"Murphy Howard RSchlsp",null,null,null,null,null,null,null,null,null,null,null,null,null,null,null,null,null,null,null,null,null,null,"","K30AQNP029",null,"Hyslop IMPROVE 7 29 23 01 28 24 K30AQNP029 ",null,"Hyslop IMPROVE 7 29 23 01 28 24 K30AQNP029",null,null,null,null,""]
[null,null,null,null,"","37413",null,"VMdo Chocolate Chip Oliver End Schlsp ",null,"VMdo Chocolate Chip Oliver End Schlsp",null,null,null,null,null,null,null,null,null,null,null,null,null,null,null,null,null,null,null,null,null,null,"","K30ASIOREI",null,"ASI Undergrad Organic Ag Ed UC UCANR Res K30ASIOREI ",null,"ASI Undergrad Organic Ag Ed UC UCANR Res K30ASIOREI",null,null,null,null,""]
[null,null,null,null,"","37675",null,"Charles M Rick Endowed Scholarship ",null,"Charles M Rick Endowed Scholarship",null,null,null,null,null,null,null,null,null,null,null,null,null,null,null,null,null,null,null,null,null,null,"","K30AYTNIFA",null,"3 14 24 Lipids for Human Health Taha K30AYTNIFA ",null,"3 14 24 Lipids for Human Health Taha K30AYTNIFA",null,null,null,null,""]
[null,null,null,null,"","37724",null,"WFCB Dennis Raveling End Professorship ",null,"WFCB Dennis Raveling End Professorship",null,null,null,null,null,null,null,null,null,null,null,null,null,null,null,null,null,null,null,null,null,null,"","K30BAY22DT",null,"CHEM Tantillo Baylor Uni 2022 K30BAY22DT ",null,"CHEM Tantillo Baylor Uni 2022 K30BAY22DT",null,null,null,null,""]
[null,null,null,null,"","38036",null,"Turner BandLesly Starr Shelton End Schl ",null,"Turner BandLesly Starr Shelton End Schl",null,null,null,null,null,null,null,null,null,null,null,null,null,null,null,null,null,null,null,null,null,null,"","K30BKG5USD",null,"ARE GOODRICH USDA CITRUS GREENING K30BKG5USD ",null,"ARE GOODRICH USDA CITRUS GREENING K30BKG5USD",null,null,null,null,""]
[null,null,null,null,"","38122",null,"Harry Scott Smith Memorial Fd ",null,"Harry Scott Smith Memorial Fd",null,null,null,null,null,null,null,null,null,null,null,null,null,null,null,null,null,null,null,null,null,null,"","K30BLANEP3",null,"CHEM BERBEN ONR N00014 22 1 2088 0 K30BLANEP3 ",null,"CHEM BERBEN ONR N00014 22 1 2088 0 K30BLANEP3",null,null,null,null,""]
[null,null,null,null,"","38392",null,"Michael Schermer Family Fund ",null,"Michael Schermer Family Fund",null,null,null,null,null,null,null,null,null,null,null,null,null,null,null,null,null,null,null,null,null,null,"","K30BPCCZ39",null,"CNPRC Tarantal NIH U42OD027094 K30BPCCZ39 ",null,"CNPRC Tarantal NIH U42OD027094 K30BPCCZ39",null,null,null,null,""]
[null,null,null,null,"","38489",null,"Tomato Genetic Stock Center ",null,"Tomato Genetic Stock Center",null,null,null,null,null,null,null,null,null,null,null,null,null,null,null,null,null,null,null,null,null,null,"","K30BPCDZ03",null,"CNPRC Roberts NIH SPF U42OD010990 20 K30BPCDZ03 ",null,"CNPRC Roberts NIH SPF U42OD010990 20 K30BPCDZ03",null,null,null,null,""]
[null,null,null,null,"","38703",null,"Luke E Walker Trust Fund ",null,"Luke E Walker Trust Fund",null,null,null,null,null,null,null,null,null,null,null,null,null,null,null,null,null,null,null,null,null,null,"","K30BPCDZ97",null,"CNPRC Baylor U24 Thomasy NewSupplement K30BPCDZ97 ",null,"CNPRC Baylor U24 Thomasy NewSupplement K30BPCDZ97",null,null,null,null,""]
[null,null,null,null,"","38910",null,"Frank MYeatman Mem Schlsp ",null,"Frank MYeatman Mem Schlsp",null,null,null,null,null,null,null,null,null,null,null,null,null,null,null,null,null,null,null,null,null,null,"","K30BPCEZ58",null,"CNPRC ROYER ELDEC PHARMACEUTICALS K30BPCEZ58 ",null,"CNPRC ROYER ELDEC PHARMACEUTICALS K30BPCEZ58",null,null,null,null,""]
[null,null,null,null,"","39110",null,"Marriott Alice M Schlp Fd ",null,"Marriott Alice M Schlp Fd",null,null,null,null,null,null,null,null,null,null,null,null,null,null,null,null,null,null,null,null,null,null,"","K30BREAKLB",null,"CHEM BERBEN BREAKTHROUGH ENERGY LLC K30BREAKLB ",null,"CHEM BERBEN BREAKTHROUGH ENERGY LLC K30BREAKLB",null,null,null,null,""]
[null,null,null,null,"","93398",null,"Forever 4H Merced County Endowment ",null,"Forever 4H Merced County Endowment",null,null,null,null,null,null,null,null,null,null,null,null,null,null,null,null,null,null,null,null,null,null,"","K30CAGNIFA",null,"K374F92 K30cAGniFA Tracing the emergence of the bovine germline ",null,"K374F92 K30cAGniFA Tracing the emergence of the bovine germline",null,null,null,null,""]
[null,null,null,null,"","93714",null,"Plant Sciences Strawberry Breeding Prog ",null,"Plant Sciences Strawberry Breeding Prog",null,null,null,null,null,null,null,null,null,null,null,null,null,null,null,null,null,null,null,null,null,null,"","K30CALJH16",null,"Implementation of Recycled Fibers K30CALJH16 ",null,"Implementation of Recycled Fibers K30CALJH16",null,null,null,null,""]
[null,null,null,null,"","F0014",null,"IN Milton D and Mary M Miller Fund 111412 40121 ",null,"IN Milton D and Mary M Miller Fund 111412 40121",null,null,null,null,null,null,null,null,null,null,null,null,null,null,null,null,null,null,null,null,null,null,"","K30CCCPD4S",null,"ANTS UNI TEXAS AUSTIN P CRUZ 23D41 K30CCCPD4S ",null,"ANTS UNI TEXAS AUSTIN P CRUZ 23D41 K30CCCPD4S",null,null,null,null,""]
[null,null,null,null,"","F0059",null,"IN Norm and Joyce Weil Award 111713 56329 ",null,"IN Norm and Joyce Weil Award 111713 56329",null,null,null,null,null,null,null,null,null,null,null,null,null,null,null,null,null,null,null,null,null,null,"","K30CDMLOTD",null,"CDM: Lottery Funds K30CDMLOTD ",null,"CDM: Lottery Funds K30CDMLOTD",null,null,null,null,""]
[null,null,null,null,"","F0086",null,"IN Chemical Engineering Alumni Fellowship 111819 41551 ",null,"IN Chemical Engineering Alumni Fellowship 111819 41551",null,null,null,null,null,null,null,null,null,null,null,null,null,null,null,null,null,null,null,null,null,null,"","K30CHE21AQ",null,"LAWR CHEN ARS 2022 24 K30CHE21AQ ",null,"LAWR CHEN ARS 2022 24 K30CHE21AQ",null,null,null,null,""]
[null,null,null,null,"","F0140",null,"IN Doris Ellison Linn Chair in Bone Biology 122004 40631 ",null,"IN Doris Ellison Linn Chair in Bone Biology 122004 40631",null,null,null,null,null,null,null,null,null,null,null,null,null,null,null,null,null,null,null,null,null,null,"","K30CJCVPIF",null,"JMIE CAJ1 USFWS CVPIA YEAR 4 FINA ACCT K30CJCVPIF ",null,"JMIE CAJ1 USFWS CVPIA YEAR 4 FINA ACCT K30CJCVPIF",null,null,null,null,""]
[null,null,null,null,"","F0158",null,"IN Edward Teller Chair Fund 122042 40889 ",null,"IN Edward Teller Chair Fund 122042 40889",null,null,null,null,null,null,null,null,null,null,null,null,null,null,null,null,null,null,null,null,null,null,"","K30CKB6EH2",null,"CLSD Brinkley EHSCC Pilot Proj Cor YR2 K30CKB6EH2 ",null,"CLSD Brinkley EHSCC Pilot Proj Cor YR2 K30CKB6EH2",null,null,null,null,""]
[null,null,null,null,"","F0215",null,"IN Williams Family Fund in Cancer Research 122152 41286 ",null,"IN Williams Family Fund in Cancer Research 122152 41286",null,null,null,null,null,null,null,null,null,null,null,null,null,null,null,null,null,null,null,null,null,null,"","K30CLS6D61",null,"Monsanto Service Order No 23 K30CLS6D61 ",null,"Monsanto Service Order No 23 K30CLS6D61",null,null,null,null,""]
[null,null,null,null,"","F0267",null,"IN Evelyn K Peterson Fund 122249 42006 ",null,"IN Evelyn K Peterson Fund 122249 42006",null,null,null,null,null,null,null,null,null,null,null,null,null,null,null,null,null,null,null,null,null,null,"","K30CMSNRTP",null,"CMSI NSF NRT 1734999 PARTICIPANTS K30CMSNRTP ",null,"CMSI NSF NRT 1734999 PARTICIPANTS K30CMSNRTP",null,null,null,null,""]
[null,null,null,null,"","F0296",null,"IN Risken Environmental Fund 122307 42227 ",null,"IN Risken Environmental Fund 122307 42227",null,null,null,null,null,null,null,null,null,null,null,null,null,null,null,null,null,null,null,null,null,null,"","K30CNSADY5",null,"CNS Carter Conte P50MH106438 YR5 ADMIN K30CNSADY5 ",null,"CNS Carter Conte P50MH106438 YR5 ADMIN K30CNSADY5",null,null,null,null,""]
[null,null,null,null,"","F0332",null,"IN Martha West Social Justice Law Schol 122377 43521 ",null,"IN Martha West Social Justice Law Schol 122377 43521",null,null,null,null,null,null,null,null,null,null,null,null,null,null,null,null,null,null,null,null,null,null,"","K30CNSCC21",null,"CNS Carter Conte Award P50MH106438 YR 2 K30CNSCC21 ",null,"CNS Carter Conte Award P50MH106438 YR 2 K30CNSCC21",null,null,null,null,""]
[null,null,null,null,"","F0377",null,"IN John C Bruhn Dairy Foods Scholarship 122475 43619 ",null,"IN John C Bruhn Dairy Foods Scholarship 122475 43619",null,null,null,null,null,null,null,null,null,null,null,null,null,null,null,null,null,null,null,null,null,null,"","K30CNSKPF2",null,"CNS K Prendergast F31MH123106 Stipend Y2 K30CNSKPF2 ",null,"CNS K Prendergast F31MH123106 Stipend Y2 K30CNSKPF2",null,null,null,null,""]
[null,null,null,null,"","F0404",null,"IN Mark Cary Reflective Learner Award 122518 42710 ",null,"IN Mark Cary Reflective Learner Award 122518 42710",null,null,null,null,null,null,null,null,null,null,null,null,null,null,null,null,null,null,null,null,null,null,"","K30CNSLK35",null,"CNS PINEDA F31 EY034400 YR1 FINA K30CNSLK35 ",null,"CNS PINEDA F31 EY034400 YR1 FINA K30CNSLK35",null,null,null,null,""]
[null,null,null,null,"","F0420",null,"IN Mary Baer Arboretum Endowment 122551 43169 ",null,"IN Mary Baer Arboretum Endowment 122551 43169",null,null,null,null,null,null,null,null,null,null,null,null,null,null,null,null,null,null,null,null,null,null,"","K30CNSMG40",null,"SUB CORNELL R01NS104926 YR3 CLOSED K30CNSMG40 ",null,"SUB CORNELL R01NS104926 YR3 CLOSED K30CNSMG40",null,null,null,null,""]
[null,null,null,null,"","F0476",null,"IN Moores Distinguished Visiting Scholars 122673 44770 ",null,"IN Moores Distinguished Visiting Scholars 122673 44770",null,null,null,null,null,null,null,null,null,null,null,null,null,null,null,null,null,null,null,null,null,null,"","K30CNSTKE5",null,"CNS McALLISTER T32MH112507 EXPENSE YR5 K30CNSTKE5 ",null,"CNS McALLISTER T32MH112507 EXPENSE YR5 K30CNSTKE5",null,null,null,null,""]
[null,null,null,null,"","F0495",null,"IN Loren Eslinger Shelter Med Fellowship 122714 44111 ",null,"IN Loren Eslinger Shelter Med Fellowship 122714 44111",null,null,null,null,null,null,null,null,null,null,null,null,null,null,null,null,null,null,null,null,null,null,"","K30CNSTMF2",null,"BURNS T32EY015387 STIPEND YR17 CLOSED K30CNSTMF2 ",null,"BURNS T32EY015387 STIPEND YR17 CLOSED K30CNSTMF2",null,null,null,null,""]
[null,null,null,null,"","F0548",null,"IN Anthony Barcellos Education Award 122814 47797 ",null,"IN Anthony Barcellos Education Award 122814 47797",null,null,null,null,null,null,null,null,null,null,null,null,null,null,null,null,null,null,null,null,null,null,"","K30CPCEZ79",null,"CNPRC Van Rompay A24 1582 K30CPCEZ79 ",null,"CNPRC Van Rompay A24 1582 K30CPCEZ79",null,null,null,null,""]
[null,null,null,null,"","F0576",null,"IN Ciocca Visiting Professorship 122907 45536 ",null,"IN Ciocca Visiting Professorship 122907 45536",null,null,null,null,null,null,null,null,null,null,null,null,null,null,null,null,null,null,null,null,null,null,"","K30CRCYOB3",null,"CRC YR 3 YOLO COUNTY BASIC INCOME STUDY K30CRCYOB3 ",null,"CRC YR 3 YOLO COUNTY BASIC INCOME STUDY K30CRCYOB3",null,null,null,null,""]
[null,null,null,null,"","F0620",null,"IN Class of 1993 Scholarship Fund 123061 47009 ",null,"IN Class of 1993 Scholarship Fund 123061 47009",null,null,null,null,null,null,null,null,null,null,null,null,null,null,null,null,null,null,null,null,null,null,"","K30CTANNER",null,"BME TAN Tanner Henson NDSEG Fellowship K30CTANNER ",null,"BME TAN Tanner Henson NDSEG Fellowship K30CTANNER",null,null,null,null,""]
[null,null,null,null,"","F0657",null,"IN Earl and Linda Ault Endowed Fund 123159 46582 ",null,"IN Earl and Linda Ault Endowed Fund 123159 46582",null,null,null,null,null,null,null,null,null,null,null,null,null,null,null,null,null,null,null,null,null,null,"","K30CWHDOE2",null,"CHEM Solution NMR from single atom quan K30CWHDOE2 ",null,"CHEM Solution NMR from single atom quan K30CWHDOE2",null,null,null,null,""]
[null,null,null,null,"","F0685",null,"IN Blue Planet Prize Chair 123246 47215 ",null,"IN Blue Planet Prize Chair 123246 47215",null,null,null,null,null,null,null,null,null,null,null,null,null,null,null,null,null,null,null,null,null,null,"","K30CXN4F11",null,"USDA New Biotics Stress K30CXN4F11 ",null,"USDA New Biotics Stress K30CXN4F11",null,null,null,null,""]
[null,null,null,null,"","F0738",null,"IN CCAH Equipment Endowment Fund 123440 47343 ",null,"IN CCAH Equipment Endowment Fund 123440 47343",null,null,null,null,null,null,null,null,null,null,null,null,null,null,null,null,null,null,null,null,null,null,"","K30DBW2020",null,"DEPT OF BOATING WATERWAYS GRANT 29D47 K30DBW2020 ",null,"DEPT OF BOATING WATERWAYS GRANT 29D47 K30DBW2020",null,null,null,null,""]
[null,null,null,null,"","F0757",null,"IN HinoMisawa Companion Animal Award 123529 49768 ",null,"IN HinoMisawa Companion Animal Award 123529 49768",null,null,null,null,null,null,null,null,null,null,null,null,null,null,null,null,null,null,null,null,null,null,"","K30DCROSEG",null,"MAE DAVIS C Ross Egg A22 3918 K30DCROSEG ",null,"MAE DAVIS C Ross Egg A22 3918 K30DCROSEG",null,null,null,null,""]
[null,null,null,null,"","F0813",null,"IN Steve Tammy Conston Scholarship 123736 48137 ",null,"IN Steve Tammy Conston Scholarship 123736 48137",null,null,null,null,null,null,null,null,null,null,null,null,null,null,null,null,null,null,null,null,null,null,"","K30DKBARD1",null,"Dinesh Kumar BARD IS 5386 21 R K30DKBARD1 ",null,"Dinesh Kumar BARD IS 5386 21 R K30DKBARD1",null,null,null,null,""]
[null,null,null,null,"","F0866",null,"IN Nancy and Don Crosby Learning by Leading 123913 48989 ",null,"IN Nancy and Don Crosby Learning by Leading 123913 48989",null,null,null,null,null,null,null,null,null,null,null,null,null,null,null,null,null,null,null,null,null,null,"","K30DNM1F1G",null,"USDA NIFA 2022 2026 WPDN Nevada K30DNM1F1G ",null,"USDA NIFA 2022 2026 WPDN Nevada K30DNM1F1G",null,null,null,null,""]
[null,null,null,null,"","F0894",null,"IN Susan L Adams Leadership in Health 124071 49426 ",null,"IN Susan L Adams Leadership in Health 124071 49426",null,null,null,null,null,null,null,null,null,null,null,null,null,null,null,null,null,null,null,null,null,null,"","K30DNM8D8R",null,"APHIS Riverside Subaward K30DNM8D8R ",null,"APHIS Riverside Subaward K30DNM8D8R",null,null,null,null,""]
[null,null,null,null,"","F0938",null,"IN The California Raptor Center Endowment 124281 55062 ",null,"IN The California Raptor Center Endowment 124281 55062",null,null,null,null,null,null,null,null,null,null,null,null,null,null,null,null,null,null,null,null,null,null,"","K30DUARTE1",null,"CMB Duarte NIMH F31MH133270 K30DUARTE1 ",null,"CMB Duarte NIMH F31MH133270 K30DUARTE1",null,null,null,null,""]
[null,null,null,null,"","F0975",null,"IN Joncarlo and Jami Mark Scholarship 124398 55331 ",null,"IN Joncarlo and Jami Mark Scholarship 124398 55331",null,null,null,null,null,null,null,null,null,null,null,null,null,null,null,null,null,null,null,null,null,null,"","K30EAD1146",null,"WFCB J EADIE DWR UCD SUISUN MARSH STUDY K30EAD1146 ",null,"WFCB J EADIE DWR UCD SUISUN MARSH STUDY K30EAD1146",null,null,null,null,""]
[null,null,null,null,"","F1003",null,"IN Mondavi Center Piano Performance Fund 124480 55604 ",null,"IN Mondavi Center Piano Performance Fund 124480 55604",null,null,null,null,null,null,null,null,null,null,null,null,null,null,null,null,null,null,null,null,null,null,"","K30EECUSFS",null,"EVE Crone USDA FS 23 CR 11132726 504 0 K30EECUSFS ",null,"EVE Crone USDA FS 23 CR 11132726 504 0 K30EECUSFS",null,null,null,null,""]
[null,null,null,null,"","F1056",null,"IN Christina E Bullock Endowment 124685 56438 ",null,"IN Christina E Bullock Endowment 124685 56438",null,null,null,null,null,null,null,null,null,null,null,null,null,null,null,null,null,null,null,null,null,null,"","K30ENG0071",null,"YR 13 SCWA LPCCC BIOMONITORING K30ENG0071 ",null,"YR 13 SCWA LPCCC BIOMONITORING K30ENG0071",null,null,null,null,""]
[null,null,null,null,"","F1075",null,"IN Alys Hay Travel Award 124770 56596 ",null,"IN Alys Hay Travel Award 124770 56596",null,null,null,null,null,null,null,null,null,null,null,null,null,null,null,null,null,null,null,null,null,null,"","K30EPEEVSE",null,"CLTC CALEPE Electric Vehicle Service K30EPEEVSE ",null,"CLTC CALEPE Electric Vehicle Service K30EPEEVSE",null,null,null,null,""]
[null,null,null,null,"","F1131",null,"IN Karen Sigvardt PhD Neuroscience Award 124957 ",null,"IN Karen Sigvardt PhD Neuroscience Award 124957",null,null,null,null,null,null,null,null,null,null,null,null,null,null,null,null,null,null,null,null,null,null,"","K30ERCCBM5",null,"CEE DeJong ERC MICP YR 5 K30ERCCBM5 ",null,"CEE DeJong ERC MICP YR 5 K30ERCCBM5",null,null,null,null,""]
[null,null,null,null,"","F1156",null,"IN Berry Endowed Scholarship in Vet Med 125014 46185 ",null,"IN Berry Endowed Scholarship in Vet Med 125014 46185",null,null,null,null,null,null,null,null,null,null,null,null,null,null,null,null,null,null,null,null,null,null,"","K30ERCKZ84",null,"CEE Ziotopou Engineering Res Ctr Yr 4 K30ERCKZ84 ",null,"CEE Ziotopou Engineering Res Ctr Yr 4 K30ERCKZ84",null,null,null,null,""]
[null,null,null,null,"","F1180",null,"IN Norma Jacobs Fund for Global Medicine 125101 46294 ",null,"IN Norma Jacobs Fund for Global Medicine 125101 46294",null,null,null,null,null,null,null,null,null,null,null,null,null,null,null,null,null,null,null,null,null,null,"","K30ERCPC2C",null,"CEE DeJong ERC C2C Yr 7 K30ERCPC2C ",null,"CEE DeJong ERC C2C Yr 7 K30ERCPC2C",null,null,null,null,""]
[null,null,null,null,"","F1237",null,"IN Ellen B Gold Epidemiology Award 150016 44221 ",null,"IN Ellen B Gold Epidemiology Award 150016 44221",null,null,null,null,null,null,null,null,null,null,null,null,null,null,null,null,null,null,null,null,null,null,"","K30F4AKAPX",null,"CEE Kendall DOE APEX K30F4AKAPX ",null,"CEE Kendall DOE APEX K30F4AKAPX",null,null,null,null,""]
[null,null,null,null,"","F1252",null,"IN WernerJacobsen FellowshipUCDF 150104 45730 ",null,"IN WernerJacobsen FellowshipUCDF 150104 45730",null,null,null,null,null,null,null,null,null,null,null,null,null,null,null,null,null,null,null,null,null,null,"","K30F4CC001",null,"CEE Cappa NSF Phase IIb CCI K30F4CC001 ",null,"CEE Cappa NSF Phase IIb CCI K30F4CC001",null,null,null,null,""]
[null,null,null,null,"","F1312",null,"IN GoldmanSchladow Limnology Fellowship 150236 ",null,"IN GoldmanSchladow Limnology Fellowship 150236",null,null,null,null,null,null,null,null,null,null,null,null,null,null,null,null,null,null,null,null,null,null,"","K30F4VMCAR",null,"CEE Morales NSF Career K30F4VMCAR ",null,"CEE Morales NSF Career K30F4VMCAR",null,null,null,null,""]
[null,null,null,null,"","F1324",null,"IN Prem C Jain Family Presidential Chair 150310 55147 ",null,"IN Prem C Jain Family Presidential Chair 150310 55147",null,null,null,null,null,null,null,null,null,null,null,null,null,null,null,null,null,null,null,null,null,null,"","K30F7PRIMZ",null,"FINA CORNELL DOT AWARD CTECH K30F7PRIMZ ",null,"FINA CORNELL DOT AWARD CTECH K30F7PRIMZ",null,null,null,null,""]
[null,null,null,null,"","F1393",null,"IN Winneker Solid Tumor Research Fund 123170 PG ",null,"IN Winneker Solid Tumor Research Fund 123170 PG",null,null,null,null,null,null,null,null,null,null,null,null,null,null,null,null,null,null,null,null,null,null,"","K30FGHGRAC",null,"NUTR Sugar Assoc INC LeBleu Grace A K30FGHGRAC ",null,"NUTR Sugar Assoc INC LeBleu Grace A K30FGHGRAC",null,null,null,null,""]
[null,null,null,null,"","F1396",null,"IN Corbin Endowed Fund for Equine Research 123189 PG ",null,"IN Corbin Endowed Fund for Equine Research 123189 PG",null,null,null,null,null,null,null,null,null,null,null,null,null,null,null,null,null,null,null,null,null,null,"","K30FGHSUP5",null,"NUTR SUPERFUND PROJECT YR 4 K30FGHSUP5 ",null,"NUTR SUPERFUND PROJECT YR 4 K30FGHSUP5",null,null,null,null,""]
[null,null,null,null,"","F1436",null,"IN Katie Dunlap Endowment Fund 123606 PG ",null,"IN Katie Dunlap Endowment Fund 123606 PG",null,null,null,null,null,null,null,null,null,null,null,null,null,null,null,null,null,null,null,null,null,null,"","K30FMBREED",null,"AN SCI MITLOEHNER CARGILL BREED EFFECT K30FMBREED ",null,"AN SCI MITLOEHNER CARGILL BREED EFFECT K30FMBREED",null,null,null,null,""]
[null,null,null,null,"","F1498",null,"IN Donn and Marlene Deal Scholarship Fund 124077 PG ",null,"IN Donn and Marlene Deal Scholarship Fund 124077 PG",null,null,null,null,null,null,null,null,null,null,null,null,null,null,null,null,null,null,null,null,null,null,"","K30FRNSFER",null,"FRI NSF Award 78D53 K30FRNSFER ",null,"FRI NSF Award 78D53 K30FRNSFER",null,null,null,null,""]
[null,null,null,null,"","F1517",null,"IN Jean P Katow MD Scholarship Fund 124171 PG ",null,"IN Jean P Katow MD Scholarship Fund 124171 PG",null,null,null,null,null,null,null,null,null,null,null,null,null,null,null,null,null,null,null,null,null,null,"","K30FXMIES2",null,"Martorell IES Evaluating Incentives K30FXMIES2 ",null,"Martorell IES Evaluating Incentives K30FXMIES2",null,null,null,null,""]
[null,null,null,null,"","F1570",null,"IN Berger Family Equine Research Endowment 124516 PG ",null,"IN Berger Family Equine Research Endowment 124516 PG",null,null,null,null,null,null,null,null,null,null,null,null,null,null,null,null,null,null,null,null,null,null,"","K30GEKVNFX",null,"USDA Vietnam VetScience Faculty Exchange K30GEKVNFX ",null,"USDA Vietnam VetScience Faculty Exchange K30GEKVNFX",null,null,null,null,""]
[null,null,null,null,"","F1592",null,"IN Endowed Chair in Controlled Environment 124652 PG ",null,"IN Endowed Chair in Controlled Environment 124652 PG",null,null,null,null,null,null,null,null,null,null,null,null,null,null,null,null,null,null,null,null,null,null,"","K30GESADRY",null,"GEL ATEKWANA ELIOT DRIAR UGANDA K30GESADRY ",null,"GEL ATEKWANA ELIOT DRIAR UGANDA K30GESADRY",null,null,null,null,""]
[null,null,null,null,"","F1642",null,"IN Leo Earl Firth Family Zoological Equipmt 124999 PG ",null,"IN Leo Earl Firth Family Zoological Equipmt 124999 PG",null,null,null,null,null,null,null,null,null,null,null,null,null,null,null,null,null,null,null,null,null,null,"","K30GLKCGP3",null,"GEL HWANG NSF COMP INFRAS GEODYN 3P K30GLKCGP3 ",null,"GEL HWANG NSF COMP INFRAS GEODYN 3P K30GLKCGP3",null,null,null,null,""]
[null,null,null,null,"","F1673",null,"IN Gardner Awd for Cntr for Population Bio 125217 PG ",null,"IN Gardner Awd for Cntr for Population Bio 125217 PG",null,null,null,null,null,null,null,null,null,null,null,null,null,null,null,null,null,null,null,null,null,null,"","K30GMOEQRI",null,"Testing earthquake recurrence models with paleoseismic time series K30GMOEQRI ",null,"Testing earthquake recurrence models with paleoseismic time series K30GMOEQRI",null,null,null,null,""]
[null,null,null,null,"","F1714",null,"IN Barbara J Hansen Guardian Teacher Award 125290 50232 ",null,"IN Barbara J Hansen Guardian Teacher Award 125290 50232",null,null,null,null,null,null,null,null,null,null,null,null,null,null,null,null,null,null,null,null,null,null,"","K30GSRDENA",null,"GEL ROESKE ARC PLUTONISM DENALI FAULT K30GSRDENA ",null,"GEL ROESKE ARC PLUTONISM DENALI FAULT K30GSRDENA",null,null,null,null,""]
[null,null,null,null,"","F1754",null,"IN Wang Family Endowed Scholarship 125344 50414 ",null,"IN Wang Family Endowed Scholarship 125344 50414",null,null,null,null,null,null,null,null,null,null,null,null,null,null,null,null,null,null,null,null,null,null,"","K30HAM1900",null,"ENT NIEHS R35ES030443 RIVER 2019 2027 K30HAM1900 ",null,"ENT NIEHS R35ES030443 RIVER 2019 2027 K30HAM1900",null,null,null,null,""]
[null,null,null,null,"","F1779",null,"IN Carol A Howle Endowed Scholarship 125373 PG ",null,"IN Carol A Howle Endowed Scholarship 125373 PG",null,null,null,null,null,null,null,null,null,null,null,null,null,null,null,null,null,null,null,null,null,null,"","K30HAR245A",null,"ATHH USDA Central Valley CEAP 2458 K30HAR245A ",null,"ATHH USDA Central Valley CEAP 2458 K30HAR245A",null,null,null,null,""]
[null,null,null,null,"","F1835",null,"IN Chunat Family Scholarship Endowment 125463 ",null,"IN Chunat Family Scholarship Endowment 125463",null,null,null,null,null,null,null,null,null,null,null,null,null,null,null,null,null,null,null,null,null,null,"","K30HER1333",null,"LAWR HERNANDEZ NORIA ENERGY K30HER1333 ",null,"LAWR HERNANDEZ NORIA ENERGY K30HER1333",null,null,null,null,""]
[null,null,null,null,"","F1851",null,"IN Endowed Justice Family Memorial School of Medicine Scholarship 125491 ",null,"IN Endowed Justice Family Memorial School of Medicine Scholarship 125491",null,null,null,null,null,null,null,null,null,null,null,null,null,null,null,null,null,null,null,null,null,null,"","K30HHCNS24",null,"ECE HOMAYOUN NSF CHEST K30HHCNS24 ",null,"ECE HOMAYOUN NSF CHEST K30HHCNS24",null,null,null,null,""]
[null,null,null,null,"","FC021",null,"IN Russell H Wilder Fund 122409 43506 ",null,"IN Russell H Wilder Fund 122409 43506",null,null,null,null,null,null,null,null,null,null,null,null,null,null,null,null,null,null,null,null,null,null,"","K30HR34D83",null,"COMS NCA A21 3321 R HUSKEY 34D83 K30HR34D83 ",null,"COMS NCA A21 3321 R HUSKEY 34D83 K30HR34D83",null,null,null,null,""]
[null,null,null,null,"","FC028",null,"IN Brandon Julie Smith Scholarship 122466 49588 ",null,"IN Brandon Julie Smith Scholarship 122466 49588",null,null,null,null,null,null,null,null,null,null,null,null,null,null,null,null,null,null,null,null,null,null,"","K30HUM23T1",null,"HUM Humboldt Co GENT 2023 10 C000114400 K30HUM23T1 ",null,"HUM Humboldt Co GENT 2023 10 C000114400 K30HUM23T1",null,null,null,null,""]
[null,null,null,null,"","G0049",null,"PRN Osborne Endowed Chair 222733 44243 ",null,"PRN Osborne Endowed Chair 222733 44243",null,null,null,null,null,null,null,null,null,null,null,null,null,null,null,null,null,null,null,null,null,null,"","K30IKICSC1",null,"Korf NIH 2U42OD010983 11 MMRRC ICSC K30IKICSC1 ",null,"Korf NIH 2U42OD010983 11 MMRRC ICSC K30IKICSC1",null,null,null,null,""]
[null,null,null,null,"","G0053",null,"PRN Friends of Picnic Day Fund 222764 44967 ",null,"PRN Friends of Picnic Day Fund 222764 44967",null,null,null,null,null,null,null,null,null,null,null,null,null,null,null,null,null,null,null,null,null,null,"","K30IKPAIZA",null,"IGN Adams UCSF A23 1421 K30IKPAIZA ",null,"IGN Adams UCSF A23 1421 K30IKPAIZA",null,null,null,null,""]
[null,null,null,null,"","G0092",null,"PRN Women Philanthropy Impact Award 224571 ",null,"PRN Women Philanthropy Impact Award 224571",null,null,null,null,null,null,null,null,null,null,null,null,null,null,null,null,null,null,null,null,null,null,"","K30IMG9C05",null,"CMRB Cucumber Beetle in Melon Production K30IMG9C05 ",null,"CMRB Cucumber Beetle in Melon Production K30IMG9C05",null,null,null,null,""]
[null,null,null,null,"","H0031",null,"IN Ray Rossi His Sister Louise Rossi 222540 42814 ",null,"IN Ray Rossi His Sister Louise Rossi 222540 42814",null,null,null,null,null,null,null,null,null,null,null,null,null,null,null,null,null,null,null,null,null,null,"","K30IRE1893",null,"IGN Engle Stone A23 1893 UCSF K30IRE1893 ",null,"IGN Engle Stone A23 1893 UCSF K30IRE1893",null,null,null,null,""]
[null,null,null,null,"","H0049",null,"IN Osborne Endowed Chair 222733 44243 ",null,"IN Osborne Endowed Chair 222733 44243",null,null,null,null,null,null,null,null,null,null,null,null,null,null,null,null,null,null,null,null,null,null,"","K30IXS7F29",null,"2023 American Vineyard FDN K30IXS7F29 ",null,"2023 American Vineyard FDN K30IXS7F29",null,null,null,null,""]
[null,null,null,null,"","H0103",null,"IN Esther Linda Knox Healthy Brain Aging 224437 ",null,"IN Esther Linda Knox Healthy Brain Aging 224437",null,null,null,null,null,null,null,null,null,null,null,null,null,null,null,null,null,null,null,null,null,null,"","K30JDM2022",null,"2022 IR4 Project USDA NIFA K30JDM2022 ",null,"2022 IR4 Project USDA NIFA K30JDM2022",null,null,null,null,""]
[null,null,null,null,"","I0004",null,"PRN Stanley Barbara FPRNgerut CRUT 811847 ",null,"PRN Stanley Barbara FPRNgerut CRUT 811847",null,null,null,null,null,null,null,null,null,null,null,null,null,null,null,null,null,null,null,null,null,null,"","K30JDSMT64",null,"JMIE JRD1 SUISUN MARSH STUDY YR 4 TSK 6 K30JDSMT64 ",null,"JMIE JRD1 SUISUN MARSH STUDY YR 4 TSK 6 K30JDSMT64",null,null,null,null,""]
[null,null,null,null,"","J0007",null,"IN The Montfort CRUT 811993 ",null,"IN The Montfort CRUT 811993",null,null,null,null,null,null,null,null,null,null,null,null,null,null,null,null,null,null,null,null,null,null,"","K30JHT7BIO",null,"ESP Thorne Forest Invasive Pests K30JHT7BIO ",null,"ESP Thorne Forest Invasive Pests K30JHT7BIO",null,null,null,null,""]
[null,null,null,null,"","J0037",null,"IN Peggy Tun and Ronald Yin Medical Stdnt End Schip CRUT 825223 ",null,"IN Peggy Tun and Ronald Yin Medical Stdnt End Schip CRUT 825223",null,null,null,null,null,null,null,null,null,null,null,null,null,null,null,null,null,null,null,null,null,null,"","K30JKL5YR9",null,"London NIEHS P30 Core Grant 87C49 K30JKL5YR9 ",null,"London NIEHS P30 Core Grant 87C49 K30JKL5YR9",null,null,null,null,""]
[null,null,null,null,"","24034",null,"Restricted Debt Service GRB 2018 Series AZ ",null,"Restricted Debt Service GRB 2018 Series AZ",null,null,null,null,null,null,null,null,null,null,null,null,null,null,null,null,null,null,null,null,null,null,"","K30JLSHR3F",null,"CeNCOOS SHORE FY23REG023 T 002 001 SSOM K30JLSHR3F ",null,"CeNCOOS SHORE FY23REG023 T 002 001 SSOM K30JLSHR3F",null,null,null,null,""]
[null,null,null,null,"","24201",null,"Restricted Debt Service MCPRB 2007 Series C2 V ",null,"Restricted Debt Service MCPRB 2007 Series C2 V",null,null,null,null,null,null,null,null,null,null,null,null,null,null,null,null,null,null,null,null,null,null,"","K30JNS5SAF",null,"ESP Sanchirico Sust Alaska Fisheries K30JNS5SAF ",null,"ESP Sanchirico Sust Alaska Fisheries K30JNS5SAF",null,null,null,null,""]
[null,null,null,null,"","24306",null,"Restricted Debt Service CSCDA 2017 UCI ",null,"Restricted Debt Service CSCDA 2017 UCI",null,null,null,null,null,null,null,null,null,null,null,null,null,null,null,null,null,null,null,null,null,null,"","K30JONRION",null,"Jones STScI HST GO 16697 001 K30JONRION ",null,"Jones STScI HST GO 16697 001 K30JONRION",null,null,null,null,""]
[null,null,null,null,"",null,null,"Endowment Principal ",null,"Endowment Principal",null,null,null,null,null,null,null,null,null,null,null,null,null,null,null,null,null,null,null,null,null,null,"","K30JSHOME2",null,"MAE Sanjay Joshi CO PI Home award YEAR2 K30JSHOME2 ",null,"MAE Sanjay Joshi CO PI Home award YEAR2 K30JSHOME2",null,null,null,null,""]
[null,null,null,null,"","K0032",null,"PRN Julita A Fong Scholarship 111545 45897 ",null,"PRN Julita A Fong Scholarship 111545 45897",null,null,null,null,null,null,null,null,null,null,null,null,null,null,null,null,null,null,null,null,null,null,"","K30JZFBIOF",null,"06 30 2025 Conversion of almond walnuts K30JZFBIOF ",null,"06 30 2025 Conversion of almond walnuts K30JZFBIOF",null,null,null,null,""]
[null,null,null,null,"","K0070",null,"PRN Del and Lily J Young Endowed Fund 111741 46299 ",null,"PRN Del and Lily J Young Endowed Fund 111741 46299",null,null,null,null,null,null,null,null,null,null,null,null,null,null,null,null,null,null,null,null,null,null,"","K30KCLC026",null,"OR MBP MMRRC YR 20 CF K30KCLC026 ",null,"OR MBP MMRRC YR 20 CF K30KCLC026",null,null,null,null,""]
[null,null,null,null,"","K0113",null,"PRN Theodore M Pritikin Memorial Fund 111915 40221 ",null,"PRN Theodore M Pritikin Memorial Fund 111915 40221",null,null,null,null,null,null,null,null,null,null,null,null,null,null,null,null,null,null,null,null,null,null,"","K30KECKDEO",null,"OLSON KECK FOUNDATION K30KECKDEO ",null,"OLSON KECK FOUNDATION K30KECKDEO",null,null,null,null,""]
[null,null,null,null,"","K0172",null,"PRN ChildWhitaker Professorship 122079 40925 ",null,"PRN ChildWhitaker Professorship 122079 40925",null,null,null,null,null,null,null,null,null,null,null,null,null,null,null,null,null,null,null,null,null,null,"","K30KLSTAPH",null,"BME K Leach mPI R01 Staph Inf 06 23 K30KLSTAPH ",null,"BME K Leach mPI R01 Staph Inf 06 23 K30KLSTAPH",null,null,null,null,""]
[null,null,null,null,"","K0194",null,"PRN Eric C Ruliffson Scholarship in Math 122114 41264 ",null,"PRN Eric C Ruliffson Scholarship in Math 122114 41264",null,null,null,null,null,null,null,null,null,null,null,null,null,null,null,null,null,null,null,null,null,null,"","K30KMDRP1P",null,"BME Moxon DARPA Primate Phase 1 Task3 K30KMDRP1P ",null,"BME Moxon DARPA Primate Phase 1 Task3 K30KMDRP1P",null,null,null,null,""]
[null,null,null,null,"","K0244",null,"PRN Castelfranco History Christianity Chair 122208 41750 ",null,"PRN Castelfranco History Christianity Chair 122208 41750",null,null,null,null,null,null,null,null,null,null,null,null,null,null,null,null,null,null,null,null,null,null,"","K30KPNHIR5",null,"Respiratory Ocular Tox of Inaled Nano K30KPNHIR5 ",null,"Respiratory Ocular Tox of Inaled Nano K30KPNHIR5",null,null,null,null,""]
[null,null,null,null,"","K0275",null,"PRN Kepner Endowment Fund 122272 42220 ",null,"PRN Kepner Endowment Fund 122272 42220",null,null,null,null,null,null,null,null,null,null,null,null,null,null,null,null,null,null,null,null,null,null,"","K30KXFUSDA",null,"K386D24 K30KXFUSDA EVE K FISHER USDA NIFA PSTDC FLWSP K30KXFUSDA ",null,"K386D24 K30KXFUSDA EVE K FISHER USDA NIFA PSTDC FLWSP K30KXFUSDA",null,null,null,null,""]
[null,null,null,null,"","K0316",null,"PRN John and Jeanne Pryor Fund 122350 42324 ",null,"PRN John and Jeanne Pryor Fund 122350 42324",null,null,null,null,null,null,null,null,null,null,null,null,null,null,null,null,null,null,null,null,null,null,"","K30LBGENOM",null,"JMIE USGS BOWEN GENOME NATL PARKS K30LBGENOM ",null,"JMIE USGS BOWEN GENOME NATL PARKS K30LBGENOM",null,null,null,null,""]
[null,null,null,null,"","K0350",null,"PRN Integrated Studies Honors Program 122408 43519 ",null,"PRN Integrated Studies Honors Program 122408 43519",null,null,null,null,null,null,null,null,null,null,null,null,null,null,null,null,null,null,null,null,null,null,"","K30LEWIF12",null,"WFCB LEWIS COSJ eff 5 17 23 K30LEWIF12 ",null,"WFCB LEWIS COSJ eff 5 17 23 K30LEWIF12",null,null,null,null,""]
[null,null,null,null,"","K0388",null,"PRN Charles P Nash Prize 122498 43715 ",null,"PRN Charles P Nash Prize 122498 43715",null,null,null,null,null,null,null,null,null,null,null,null,null,null,null,null,null,null,null,null,null,null,"","K30LLCIF24",null,"ECE LAI CIF SMALL kNN K30LLCIF24 ",null,"ECE LAI CIF SMALL kNN K30LLCIF24",null,null,null,null,""]
[null,null,null,null,"","K0431",null,"PRN John C Gist Jr Award 122575 43203 ",null,"PRN John C Gist Jr Award 122575 43203",null,null,null,null,null,null,null,null,null,null,null,null,null,null,null,null,null,null,null,null,null,null,"","K30LTCCTVE",null,"MAE AHMCT CT 65A0749 TASK ID 3873 K30LTCCTVE ",null,"MAE AHMCT CT 65A0749 TASK ID 3873 K30LTCCTVE",null,null,null,null,""]
[null,null,null,null,"","K0453",null,"PRN Thompson Softball Scholar Award 122623 43850 ",null,"PRN Thompson Softball Scholar Award 122623 43850",null,null,null,null,null,null,null,null,null,null,null,null,null,null,null,null,null,null,null,null,null,null,"","K30LUB6684",null,"K389d99 K30LUB6684 HST GO 16684 Peak Eff Supercluster form ",null,"K389d99 K30LUB6684 HST GO 16684 Peak Eff Supercluster form",null,null,null,null,""]
[null,null,null,null,"","K0512",null,"PRN UC Davis Nurses Donors Scholarship 122752 44920 ",null,"PRN UC Davis Nurses Donors Scholarship 122752 44920",null,null,null,null,null,null,null,null,null,null,null,null,null,null,null,null,null,null,null,null,null,null,"","K30MARC23G",null,"MARC SCHOLAR PROGRAM GOMES PI YR 2 K30MARC23G ",null,"MARC SCHOLAR PROGRAM GOMES PI YR 2 K30MARC23G",null,null,null,null,""]
[null,null,null,null,"","K0525",null,"PRN Kay Lehr Endowment 122771 56903 ",null,"PRN Kay Lehr Endowment 122771 56903",null,null,null,null,null,null,null,null,null,null,null,null,null,null,null,null,null,null,null,null,null,null,"","K30MATAW03",null,"A Waldron SIMONS FDN 2020 25 K30MATAW03 ",null,"A Waldron SIMONS FDN 2020 25 K30MATAW03",null,null,null,null,""]
[null,null,null,null,"","K0555",null,"PRN Brunner Family Endowed Scholarship 122838 47346 ",null,"PRN Brunner Family Endowed Scholarship 122838 47346",null,null,null,null,null,null,null,null,null,null,null,null,null,null,null,null,null,null,null,null,null,null,"","K30MATKL02",null,"K Luli NSF CAREER 2016 21 x22 K30MATKL02 ",null,"K Luli NSF CAREER 2016 21 x22 K30MATKL02",null,null,null,null,""]
[null,null,null,null,"","K0597",null,"PRN Heather Marie Award for Guardian Teacher 122978 45519 ",null,"PRN Heather Marie Award for Guardian Teacher 122978 45519",null,null,null,null,null,null,null,null,null,null,null,null,null,null,null,null,null,null,null,null,null,null,"","K30MAV6NSF",null,"HECD Visser NATL SCI FDN NSF 35B77 K30MAV6NSF ",null,"HECD Visser NATL SCI FDN NSF 35B77 K30MAV6NSF",null,null,null,null,""]
[null,null,null,null,"","K0630",null,"PRN Patricia Mokhtarian Fnd for Travel Behav 123091 55530 ",null,"PRN Patricia Mokhtarian Fnd for Travel Behav 123091 55530",null,null,null,null,null,null,null,null,null,null,null,null,null,null,null,null,null,null,null,null,null,null,"","K30MBJALEC",null,"MCB JAL AHA AWARD E CASTELLANO 36F26 K30MBJALEC ",null,"MCB JAL AHA AWARD E CASTELLANO 36F26 K30MBJALEC",null,null,null,null,""]
[null,null,null,null,"","K0669",null,"PRN William Sr and Jewel Sims Award 123198 47042 ",null,"PRN William Sr and Jewel Sims Award 123198 47042",null,null,null,null,null,null,null,null,null,null,null,null,null,null,null,null,null,null,null,null,null,null,"","K30MBTG22A",null,"MCB MCBTG 2022 23 ALLOWANCE K30MBTG22A ",null,"MCB MCBTG 2022 23 ALLOWANCE K30MBTG22A",null,null,null,null,""]
[null,null,null,null,"","K0711",null,"PRN Rosemary Dinelli Endowed Fund 123340 48290 ",null,"PRN Rosemary Dinelli Endowed Fund 123340 48290",null,null,null,null,null,null,null,null,null,null,null,null,null,null,null,null,null,null,null,null,null,null,"","K30MEN22E1",null,"MEN Mendocino Co EW 2022 46 C000114319 K30MEN22E1 ",null,"MEN Mendocino Co EW 2022 46 C000114319 K30MEN22E1",null,null,null,null,""]
[null,null,null,null,"","K0741",null,"PRN Summer Research Endowment Fund 123443 47589 ",null,"PRN Summer Research Endowment Fund 123443 47589",null,null,null,null,null,null,null,null,null,null,null,null,null,null,null,null,null,null,null,null,null,null,"","K30MH73C31",null,"POLS NSF COLLABORATIVE McKIBBEN 73C31 K30MH73C31 ",null,"POLS NSF COLLABORATIVE McKIBBEN 73C31 K30MH73C31",null,null,null,null,""]
[null,null,null,null,"","K0792",null,"PRN Naval Roberts EndowmentCuratorial Prg 123674 49237 ",null,"PRN Naval Roberts EndowmentCuratorial Prg 123674 49237",null,null,null,null,null,null,null,null,null,null,null,null,null,null,null,null,null,null,null,null,null,null,"","K30MLALA01",null,"Alameda County Leadership Training Prgm K30MLALA01 ",null,"Alameda County Leadership Training Prgm K30MLALA01",null,null,null,null,""]
[null,null,null,null,"","K0843",null,"PRN Sharon Gray Memorial Award 123825 48853 ",null,"PRN Sharon Gray Memorial Award 123825 48853",null,null,null,null,null,null,null,null,null,null,null,null,null,null,null,null,null,null,null,null,null,null,"","K30MLTSC08",null,"Dept Toxic Substances Control Leadership K30MLTSC08 ",null,"Dept Toxic Substances Control Leadership K30MLTSC08",null,null,null,null,""]
[null,null,null,null,"","K0873",null,"PRN Sullivan Family Interdisciplinary Schola 123969 49087 ",null,"PRN Sullivan Family Interdisciplinary Schola 123969 49087",null,null,null,null,null,null,null,null,null,null,null,null,null,null,null,null,null,null,null,null,null,null,"","K30MON22E1",null,"MON Mono Co EW 2022 21 UCDE C000114275 K30MON22E1 ",null,"MON Mono Co EW 2022 21 UCDE C000114275 K30MON22E1",null,null,null,null,""]
[null,null,null,null,"","K0915",null,"PRN Mark Margaret Garibaldi STEMArts Awd 124198 49706 ",null,"PRN Mark Margaret Garibaldi STEMArts Awd 124198 49706",null,null,null,null,null,null,null,null,null,null,null,null,null,null,null,null,null,null,null,null,null,null,"","K30MSARPVS",null,"Climate smart solution with RPVS K30MSARPVS ",null,"Climate smart solution with RPVS K30MSARPVS",null,null,null,null,""]
[null,null,null,null,"","K0948",null,"PRN David Dana Loury Industry Career Dev 124310 55176 ",null,"PRN David Dana Loury Industry Career Dev 124310 55176",null,null,null,null,null,null,null,null,null,null,null,null,null,null,null,null,null,null,null,null,null,null,"","K30MWF4F20",null,"4 30 24 Nutrient Requirement Table Grape K30MWF4F20 ",null,"4 30 24 Nutrient Requirement Table Grape K30MWF4F20",null,null,null,null,""]
[null,null,null,null,"","K0987",null,"PRN Dr F William Blaisdell Scholarship 124433 55454 ",null,"PRN Dr F William Blaisdell Scholarship 124433 55454",null,null,null,null,null,null,null,null,null,null,null,null,null,null,null,null,null,null,null,null,null,null,"","K30NAEMRLF",null,"NAS E MIDDLETON RESOURCES LEGACY FUND K30NAEMRLF ",null,"NAS E MIDDLETON RESOURCES LEGACY FUND K30NAEMRLF",null,null,null,null,""]
[null,null,null,null,"","K1029",null,"PRN Jeffrey Anne Tatum King Hall Scholarship 124570 55836 ",null,"PRN Jeffrey Anne Tatum King Hall Scholarship 124570 55836",null,null,null,null,null,null,null,null,null,null,null,null,null,null,null,null,null,null,null,null,null,null,"","K30NCAACHO",null,"SHCS NCAA CHOICES Grant for Alcohol Edu K30NCAACHO ",null,"SHCS NCAA CHOICES Grant for Alcohol Edu K30NCAACHO",null,null,null,null,""]
[null,null,null,null,"","K1059",null,"PRN Mondavi Center Global Programming Fund 124693 56453 ",null,"PRN Mondavi Center Global Programming Fund 124693 56453",null,null,null,null,null,null,null,null,null,null,null,null,null,null,null,null,null,null,null,null,null,null,"","K30NCNCE11",null,"NCW Nevada County FY 23 24 K30NCNCE11 ",null,"NCW Nevada County FY 23 24 K30NCNCE11",null,null,null,null,""]
[null,null,null,null,"","K1110",null,"PRN LaChapelle Family Endowed Fund 124894 46009 ",null,"PRN LaChapelle Family Endowed Fund 124894 46009",null,null,null,null,null,null,null,null,null,null,null,null,null,null,null,null,null,null,null,null,null,null,"","K30NI2GMOD",null,"CHEM NIHR01GM128997 Olson K30NI2GMOD ",null,"CHEM NIHR01GM128997 Olson K30NI2GMOD",null,null,null,null,""]
[null,null,null,null,"","K1124",null,"PRN Dept of Dermatology Endowed Chair Sppt 124932 ATP ",null,"PRN Dept of Dermatology Endowed Chair Sppt 124932 ATP",null,null,null,null,null,null,null,null,null,null,null,null,null,null,null,null,null,null,null,null,null,null,"","K30NIH23JS",null,"CHEM Shaw NIH R35 2023 K30NIH23JS ",null,"CHEM Shaw NIH R35 2023 K30NIH23JS",null,null,null,null,""]
[null,null,null,null,"","K1153",null,"PRN Fernandes Guardian Teacher Scholarship 125009 46175 ",null,"PRN Fernandes Guardian Teacher Scholarship 125009 46175",null,null,null,null,null,null,null,null,null,null,null,null,null,null,null,null,null,null,null,null,null,null,"","K30NNNCPS2",null,"06 30 23 Center for Produce Safety K30NNNCPS2 ",null,"06 30 23 Center for Produce Safety K30NNNCPS2",null,null,null,null,""]
[null,null,null,null,"","K1210",null,"PRN J Price Gittinger Memorial Award 141029 53264 ",null,"PRN J Price Gittinger Memorial Award 141029 53264",null,null,null,null,null,null,null,null,null,null,null,null,null,null,null,null,null,null,null,null,null,null,"","K30NSF3D23",null,"NSF 3D Nanoprinting 2304986 2023 K30NSF3D23 ",null,"NSF 3D Nanoprinting 2304986 2023 K30NSF3D23",null,null,null,null,""]
[null,null,null,null,"","K1229",null,"PRN Paul Brady Award 150008 44571 ",null,"PRN Paul Brady Award 150008 44571",null,null,null,null,null,null,null,null,null,null,null,null,null,null,null,null,null,null,null,null,null,null,"","K30NVPRABU",null,"MAE Narayanan Prabhu EngyLabs A23 3964 K30NVPRABU ",null,"MAE Narayanan Prabhu EngyLabs A23 3964 K30NVPRABU",null,null,null,null,""]
[null,null,null,null,"","K1291",null,"PRN Zaiss Ventures Fellowship 150214 ATP ",null,"PRN Zaiss Ventures Fellowship 150214 ATP",null,null,null,null,null,null,null,null,null,null,null,null,null,null,null,null,null,null,null,null,null,null,"","K30OGEE834",null,"LAWR OGEEN MOORE FND GROUNDWATER RECHARG K30OGEE834 ",null,"LAWR OGEEN MOORE FND GROUNDWATER RECHARG K30OGEE834",null,null,null,null,""]
[null,null,null,null,"","K1301",null,"PRN Ellen B Gold Epidemiology Award 150224 ATP ",null,"PRN Ellen B Gold Epidemiology Award 150224 ATP",null,null,null,null,null,null,null,null,null,null,null,null,null,null,null,null,null,null,null,null,null,null,"","K30ORA21T1",null,"ORA Orange GENT 2021 47 C000114175 K30ORA21T1 ",null,"ORA Orange GENT 2021 47 C000114175 K30ORA21T1",null,null,null,null,""]
[null,null,null,null,"","K1372",null,"PRN Thomas Florentia Armstrong Endowed 123029 PG ",null,"PRN Thomas Florentia Armstrong Endowed 123029 PG",null,null,null,null,null,null,null,null,null,null,null,null,null,null,null,null,null,null,null,null,null,null,"","K30PDCEM19",null,"CALIFORNIA EMERGENCY MANAGEMEN 2018 005 K30PDCEM19 ",null,"CALIFORNIA EMERGENCY MANAGEMEN 2018 005 K30PDCEM19",null,null,null,null,""]
[null,null,null,null,"","K1410",null,"PRN Peters Endowed Chair in Canine Cancer R 123285 PG ",null,"PRN Peters Endowed Chair in Canine Cancer R 123285 PG",null,null,null,null,null,null,null,null,null,null,null,null,null,null,null,null,null,null,null,null,null,null,"","K30PLA23C1",null,"PLA Placer County CW 2023 25 C114457 K30PLA23C1 ",null,"PLA Placer County CW 2023 25 C114457 K30PLA23C1",null,null,null,null,""]
[null,null,null,null,"","K1447",null,"PRN BeckleyHerzog Endowed Chair 123693 PG ",null,"PRN BeckleyHerzog Endowed Chair 123693 PG",null,null,null,null,null,null,null,null,null,null,null,null,null,null,null,null,null,null,null,null,null,null,"","K30PREDOE3",null,"677918 FERMI Extinction in the Mu2e K30PREDOE3 ",null,"677918 FERMI Extinction in the Mu2e K30PREDOE3",null,null,null,null,""]
[null,null,null,null,"","K1482",null,"PRN Joanne R Bethlahmy Student Scholarship 123997 50267 ",null,"PRN Joanne R Bethlahmy Student Scholarship 123997 50267",null,null,null,null,null,null,null,null,null,null,null,null,null,null,null,null,null,null,null,null,null,null,"","K30PSNIH03",null,"MMG SHAH NIH R03NS130489 K30PSNIH03 ",null,"MMG SHAH NIH R03NS130489 K30PSNIH03",null,null,null,null,""]
[null,null,null,null,"","K1490",null,"PRN Whittaker Family Endowed Fund 124048 PG ",null,"PRN Whittaker Family Endowed Fund 124048 PG",null,null,null,null,null,null,null,null,null,null,null,null,null,null,null,null,null,null,null,null,null,null,"","K30PSPME03",null,"PME EPA Pesticide Education for Med Prof K30PSPME03 ",null,"PME EPA Pesticide Education for Med Prof K30PSPME03",null,null,null,null,""]
[null,null,null,null,"","K1554",null,"PRN Teresa Y Morishita DVM MPVM P 124409 PG ",null,"PRN Teresa Y Morishita DVM MPVM P 124409 PG",null,null,null,null,null,null,null,null,null,null,null,null,null,null,null,null,null,null,null,null,null,null,"","K30PXZMYCO",null,"PLB Zerbe Mycorrhizal Applications 2020 K30PXZMYCO ",null,"PLB Zerbe Mycorrhizal Applications 2020 K30PXZMYCO",null,null,null,null,""]
[null,null,null,null,"","K1571",null,"PRN Berger Family Canine Research Endowment 124517 PG ",null,"PRN Berger Family Canine Research Endowment 124517 PG",null,null,null,null,null,null,null,null,null,null,null,null,null,null,null,null,null,null,null,null,null,null,"","K30RA2SUBS",null,"ECNS CEPR PEDL SUBS A REZAEE 24C88 K30RA2SUBS ",null,"ECNS CEPR PEDL SUBS A REZAEE 24C88 K30RA2SUBS",null,null,null,null,""]
[null,null,null,null,"","K1619",null,"PRN McCalla International House Fund 124842 PG ",null,"PRN McCalla International House Fund 124842 PG",null,null,null,null,null,null,null,null,null,null,null,null,null,null,null,null,null,null,null,null,null,null,"","K30RCCA26S",null,"CDSS FY 25 26 CAPTA 0 S B K30RCCA26S ",null,"CDSS FY 25 26 CAPTA 0 S B K30RCCA26S",null,null,null,null,""]
[null,null,null,null,"","K1652",null,"PRN Mary Stuart Hall Fund 125163 PG ",null,"PRN Mary Stuart Hall Fund 125163 PG",null,null,null,null,null,null,null,null,null,null,null,null,null,null,null,null,null,null,null,null,null,null,"","K30RCE726S",null,"CDSS FY 25 26 IV E 75 S B K30RCE726S ",null,"CDSS FY 25 26 IV E 75 S B K30RCE726S",null,null,null,null,""]
[null,null,null,null,"","K1691",null,"PRN Presky Saltman Bio Sci Scholarship 125244 50135 ",null,"PRN Presky Saltman Bio Sci Scholarship 125244 50135",null,null,null,null,null,null,null,null,null,null,null,null,null,null,null,null,null,null,null,null,null,null,"","K30RCRCBET",null,"11 30 24 NSF CBET CO2 K30RCRCBET ",null,"11 30 24 NSF CBET CO2 K30RCRCBET",null,null,null,null,""]
[null,null,null,null,"","K1727",null,"PRN Zaninovich Fam End Chair in Viticulture 125301 50299 ",null,"PRN Zaninovich Fam End Chair in Viticulture 125301 50299",null,null,null,null,null,null,null,null,null,null,null,null,null,null,null,null,null,null,null,null,null,null,"","K30REG6CDF",null,"HE Galt CDFA Award 32D47 K30REG6CDF ",null,"HE Galt CDFA Award 32D47 K30REG6CDF",null,null,null,null,""]
[null,null,null,null,"","K1763",null,"PRN Alberini Grad Fellowshp in Design Endow 125359 50471 ",null,"PRN Alberini Grad Fellowshp in Design Endow 125359 50471",null,null,null,null,null,null,null,null,null,null,null,null,null,null,null,null,null,null,null,null,null,null,"","K30RICTOWN",null,"Townsend USRA SOFIA 09 0233 K30RICTOWN ",null,"Townsend USRA SOFIA 09 0233 K30RICTOWN",null,null,null,null,""]
[null,null,null,null,"","K1808",null,"PRN DVM Student Financial Support Fund 123387 50476 ",null,"PRN DVM Student Financial Support Fund 123387 50476",null,null,null,null,null,null,null,null,null,null,null,null,null,null,null,null,null,null,null,null,null,null,"","K30RLG1F48",null,"CA Pepper Commission Monitoring of SRB K30RLG1F48 ",null,"CA Pepper Commission Monitoring of SRB K30RLG1F48",null,null,null,null,""]
[null,null,null,null,"","K1835",null,"PRN Chunat Family Scholarship Endowment 125463 ",null,"PRN Chunat Family Scholarship Endowment 125463",null,null,null,null,null,null,null,null,null,null,null,null,null,null,null,null,null,null,null,null,null,null,"","K30RLV6D18",null,"USDA ARS Bee Microbe 36 006 K30RLV6D18 ",null,"USDA ARS Bee Microbe 36 006 K30RLV6D18",null,null,null,null,""]
[null,null,null,null,"","K9989",null,"PRN Sullivan Environmental Sci Scholarship 122736 44297 ",null,"PRN Sullivan Environmental Sci Scholarship 122736 44297",null,null,null,null,null,null,null,null,null,null,null,null,null,null,null,null,null,null,null,null,null,null,"","K30RPAHQI1",null,"Mathematica AHRQ QIs Sub ROMANO K30RPAHQI1 ",null,"Mathematica AHRQ QIs Sub ROMANO K30RPAHQI1",null,null,null,null,""]
[null,null,null,null,"","KC042",null,"PRN Cheryl Mehlhaff CAAA Scholarship 124249 55003 ",null,"PRN Cheryl Mehlhaff CAAA Scholarship 124249 55003",null,null,null,null,null,null,null,null,null,null,null,null,null,null,null,null,null,null,null,null,null,null,"","K30RSMON01",null,"Mono County CSA K30RSMON01 ",null,"Mono County CSA K30RSMON01",null,null,null,null,""]
[null,null,null,null,"","51501",null,"Lloyd W Swift Student Support Endowment ",null,"Lloyd W Swift Student Support Endowment",null,null,null,null,null,null,null,null,null,null,null,null,null,null,null,null,null,null,null,null,null,null,"","K30S4HB002",null,"CEE BISCHEL DEPT OF PESTICIDE REG YR1 K30S4HB002 ",null,"CEE BISCHEL DEPT OF PESTICIDE REG YR1 K30S4HB002",null,null,null,null,""]
[null,null,null,null,null,null,null,null,null,null,null,null,null,null,null,null,null,null,null,null,null,null,null,null,null,null,null,null,null,null,null,null,"","K30SAND552",null,"LAWR Sandoval Rio Grande Basin K30SAND552 ",null,"LAWR Sandoval Rio Grande Basin K30SAND552",null,null,null,null,""]
[null,null,null,null,null,null,null,null,null,null,null,null,null,null,null,null,null,null,null,null,null,null,null,null,null,null,null,null,null,null,null,null,"","K30SBHFSP1",null,"Brady HFSP RGP0067 2021 K30SBHFSP1 ",null,"Brady HFSP RGP0067 2021 K30SBHFSP1",null,null,null,null,""]
[null,null,null,null,null,null,null,null,null,null,null,null,null,null,null,null,null,null,null,null,null,null,null,null,null,null,null,null,null,null,null,null,"","K30SCOC82A",null,"LAWR SCOW NIH SUSTAINABLE DEVELOPMENT K30SCOC82A ",null,"LAWR SCOW NIH SUSTAINABLE DEVELOPMENT K30SCOC82A",null,null,null,null,""]
[null,null,null,null,null,null,null,null,null,null,null,null,null,null,null,null,null,null,null,null,null,null,null,null,null,null,null,null,null,null,null,null,"","K30SCPDUIH",null,"BME Cherry postdoc support from Badawi K30SCPDUIH ",null,"BME Cherry postdoc support from Badawi K30SCPDUIH",null,null,null,null,""]
[null,null,null,null,null,null,null,null,null,null,null,null,null,null,null,null,null,null,null,null,null,null,null,null,null,null,null,null,null,null,null,null,"","K30SGR21NB",null,"George R21 AI161041 2 1 21 1 31 23 K30SGR21NB ",null,"George R21 AI161041 2 1 21 1 31 23 K30SGR21NB",null,null,null,null,""]
[null,null,null,null,null,null,null,null,null,null,null,null,null,null,null,null,null,null,null,null,null,null,null,null,null,null,null,null,null,null,null,null,"","K30SGVBERR",null,"Optimization Precision Strawberry Yield K30SGVBERR ",null,"Optimization Precision Strawberry Yield K30SGVBERR",null,null,null,null,""]
[null,null,null,null,null,null,null,null,null,null,null,null,null,null,null,null,null,null,null,null,null,null,null,null,null,null,null,null,null,null,null,null,"","K30SITWMSG",null,"MAE AHMCT CT 65A0749 TASK ID 3919 K30SITWMSG ",null,"MAE AHMCT CT 65A0749 TASK ID 3919 K30SITWMSG",null,null,null,null,""]
[null,null,null,null,null,null,null,null,null,null,null,null,null,null,null,null,null,null,null,null,null,null,null,null,null,null,null,null,null,null,null,null,"","K30SJQ22E1",null,"SJQ San Joaquin Co EW 2022 28 C000114310 K30SJQ22E1 ",null,"SJQ San Joaquin Co EW 2022 28 C000114310 K30SJQ22E1",null,null,null,null,""]
[null,null,null,null,null,null,null,null,null,null,null,null,null,null,null,null,null,null,null,null,null,null,null,null,null,null,null,null,null,null,null,null,"","K30SLJRNL6",null,"MIE LUOM MAINT DIRECTION OF EJOURNAL K30SLJRNL6 ",null,"MIE LUOM MAINT DIRECTION OF EJOURNAL K30SLJRNL6",null,null,null,null,""]
[null,null,null,null,null,null,null,null,null,null,null,null,null,null,null,null,null,null,null,null,null,null,null,null,null,null,null,null,null,null,null,null,"","K30SNOCFMH",null,"MMG HU OPENCOLLECTIVE OVCR A23 3140 K30SNOCFMH ",null,"MMG HU OPENCOLLECTIVE OVCR A23 3140 K30SNOCFMH",null,null,null,null,""]
[null,null,null,null,null,null,null,null,null,null,null,null,null,null,null,null,null,null,null,null,null,null,null,null,null,null,null,null,null,null,null,null,"","K30SRRNSF2",null,"EVE RAMIREZ NSF DIMENSIONS 1737771 K30SRRNSF2 ",null,"EVE RAMIREZ NSF DIMENSIONS 1737771 K30SRRNSF2",null,null,null,null,""]
[null,null,null,null,null,null,null,null,null,null,null,null,null,null,null,null,null,null,null,null,null,null,null,null,null,null,null,null,null,null,null,null,"","K30SU2DSC4",null,"JMIE USTI DSC Remote Sensing YR 4 K30SU2DSC4 ",null,"JMIE USTI DSC Remote Sensing YR 4 K30SU2DSC4",null,null,null,null,""]
[null,null,null,null,null,null,null,null,null,null,null,null,null,null,null,null,null,null,null,null,null,null,null,null,null,null,null,null,null,null,null,null,"","K30SUPFABD",null,"NCL INNOVATIVE Supplemental Fab K30SUPFABD ",null,"NCL INNOVATIVE Supplemental Fab K30SUPFABD",null,null,null,null,""]
[null,null,null,null,null,null,null,null,null,null,null,null,null,null,null,null,null,null,null,null,null,null,null,null,null,null,null,null,null,null,null,null,"","K30SVCCSAL",null,"Sac Valley CAforAll Cons Staff SFRF K30SVCCSAL ",null,"Sac Valley CAforAll Cons Staff SFRF K30SVCCSAL",null,null,null,null,""]
[null,null,null,null,null,null,null,null,null,null,null,null,null,null,null,null,null,null,null,null,null,null,null,null,null,null,null,null,null,null,null,null,"","K30T3221PB",null,"CHEM Beal NIH T32 Training 2021 K30T3221PB ",null,"CHEM Beal NIH T32 Training 2021 K30T3221PB",null,null,null,null,""]
[null,null,null,null,null,null,null,null,null,null,null,null,null,null,null,null,null,null,null,null,null,null,null,null,null,null,null,null,null,null,null,null,"","K30TENSTCC",null,"Ten Strands Current Context Environm K30TENSTCC ",null,"Ten Strands Current Context Environm K30TENSTCC",null,null,null,null,""]
[null,null,null,null,null,null,null,null,null,null,null,null,null,null,null,null,null,null,null,null,null,null,null,null,null,null,null,null,null,null,null,null,"","K30TERC279",null,"TENV FORREST NSF LID K30TERC279 ",null,"TENV FORREST NSF LID K30TERC279",null,null,null,null,""]
[null,null,null,null,null,null,null,null,null,null,null,null,null,null,null,null,null,null,null,null,null,null,null,null,null,null,null,null,null,null,null,null,"","K30TLR22T1",null,"TLR Tulare Co GENT 2022 38 C000114314 K30TLR22T1 ",null,"TLR Tulare Co GENT 2022 38 C000114314 K30TLR22T1",null,null,null,null,""]
[null,null,null,null,null,null,null,null,null,null,null,null,null,null,null,null,null,null,null,null,null,null,null,null,null,null,null,null,null,null,null,null,"","K30TPSUPR4",null,"BME SUPERFUND YR 4 PAN K30TPSUPR4 ",null,"BME SUPERFUND YR 4 PAN K30TPSUPR4",null,null,null,null,""]
[null,null,null,null,null,null,null,null,null,null,null,null,null,null,null,null,null,null,null,null,null,null,null,null,null,null,null,null,null,null,null,null,"","K30TYSDOED",null,"DOE HEP Task D2 K30TYSDOED ",null,"DOE HEP Task D2 K30TYSDOED",null,null,null,null,""]
[null,null,null,null,null,null,null,null,null,null,null,null,null,null,null,null,null,null,null,null,null,null,null,null,null,null,null,null,null,null,null,null,"","K30UH3COVD",null,"BME George UH3 Supplement 9 1 20 8 31 21 K30UH3COVD ",null,"BME George UH3 Supplement 9 1 20 8 31 21 K30UH3COVD",null,null,null,null,""]
[null,null,null,null,null,null,null,null,null,null,null,null,null,null,null,null,null,null,null,null,null,null,null,null,null,null,null,null,null,null,null,null,"","K30V073MY5",null,"VM OHI OHW NG USAID Malaysia Y5 K30V073MY5 ",null,"VM OHI OHW NG USAID Malaysia Y5 K30V073MY5",null,null,null,null,""]
[null,null,null,null,null,null,null,null,null,null,null,null,null,null,null,null,null,null,null,null,null,null,null,null,null,null,null,null,null,null,null,null,"","K30V419TWO",null,"Pitesky USDA Integrative Farmers K30V419TWO ",null,"Pitesky USDA Integrative Farmers K30V419TWO",null,null,null,null,""]
[null,null,null,null,null,null,null,null,null,null,null,null,null,null,null,null,null,null,null,null,null,null,null,null,null,null,null,null,null,null,null,null,"","K30V431HJG",null,"VM APC HONG EHSC SEED AWARD 2022 K30V431HJG ",null,"VM APC HONG EHSC SEED AWARD 2022 K30V431HJG",null,null,null,null,""]
[null,null,null,null,null,null,null,null,null,null,null,null,null,null,null,null,null,null,null,null,null,null,null,null,null,null,null,null,null,null,null,null,"","K30V435CD2",null,"PacVec Foley Vector Borne Diseases K30V435CD2 ",null,"PacVec Foley Vector Borne Diseases K30V435CD2",null,null,null,null,""]
[null,null,null,null,null,null,null,null,null,null,null,null,null,null,null,null,null,null,null,null,null,null,null,null,null,null,null,null,null,null,null,null,"","K30V435DDD",null,"Track D Data Driven Disease Prevention K30V435DDD ",null,"Track D Data Driven Disease Prevention K30V435DDD",null,null,null,null,""]
[null,null,null,null,null,null,null,null,null,null,null,null,null,null,null,null,null,null,null,null,null,null,null,null,null,null,null,null,null,null,null,null,"","K30V440AN4",null,"VMB CORTOPASSI RAMSEY ANIMAL CORE C Y4 K30V440AN4 ",null,"VMB CORTOPASSI RAMSEY ANIMAL CORE C Y4 K30V440AN4",null,null,null,null,""]
[null,null,null,null,null,null,null,null,null,null,null,null,null,null,null,null,null,null,null,null,null,null,null,null,null,null,null,null,null,null,null,null,"","K30V440C85",null,"VMB CORTO NIA PPG DIV SUPPL J A SANDOVAL K30V440C85 ",null,"VMB CORTO NIA PPG DIV SUPPL J A SANDOVAL K30V440C85",null,null,null,null,""]
[null,null,null,null,null,null,null,null,null,null,null,null,null,null,null,null,null,null,null,null,null,null,null,null,null,null,null,null,null,null,null,null,"","K30V440J31",null,"VMB RAMSEY MMPC CORE D U2CDK092993 YR09 K30V440J31 ",null,"VMB RAMSEY MMPC CORE D U2CDK092993 YR09 K30V440J31",null,null,null,null,""]
[null,null,null,null,null,null,null,null,null,null,null,null,null,null,null,null,null,null,null,null,null,null,null,null,null,null,null,null,null,null,null,null,"","K30V440MM1",null,"VMB Lein Counteract M Munoz Div Supp K30V440MM1 ",null,"VMB Lein Counteract M Munoz Div Supp K30V440MM1",null,null,null,null,""]
[null,null,null,null,null,null,null,null,null,null,null,null,null,null,null,null,null,null,null,null,null,null,null,null,null,null,null,null,null,null,null,null,"","K30V451CFR",null,"WCFS All Yrs Carryforward Atwill K30V451CFR ",null,"WCFS All Yrs Carryforward Atwill K30V451CFR",null,null,null,null,""]
[null,null,null,null,null,null,null,null,null,null,null,null,null,null,null,null,null,null,null,null,null,null,null,null,null,null,null,null,null,null,null,null,"","K30V465Y61",null,"WCFS Atwill Year 6 Project 1 K30V465Y61 ",null,"WCFS Atwill Year 6 Project 1 K30V465Y61",null,null,null,null,""]
[null,null,null,null,null,null,null,null,null,null,null,null,null,null,null,null,null,null,null,null,null,null,null,null,null,null,null,null,null,null,null,null,"","K30V465Y7C",null,"Western Center for Food Safety Core K30V465Y7C ",null,"Western Center for Food Safety Core K30V465Y7C",null,null,null,null,""]
[null,null,null,null,null,null,null,null,null,null,null,null,null,null,null,null,null,null,null,null,null,null,null,null,null,null,null,null,null,null,null,null,"","K30V473U04",null,"NIH EpiCenter Year 4 Funding K30V473U04 ",null,"NIH EpiCenter Year 4 Funding K30V473U04",null,null,null,null,""]
[null,null,null,null,null,null,null,null,null,null,null,null,null,null,null,null,null,null,null,null,null,null,null,null,null,null,null,null,null,null,null,null,"","K30V4ASCMP",null,"Pires CDFA SCMP Cover Crop Grazing Rsch K30V4ASCMP ",null,"Pires CDFA SCMP Cover Crop Grazing Rsch K30V4ASCMP",null,null,null,null,""]
[null,null,null,null,null,null,null,null,null,null,null,null,null,null,null,null,null,null,null,null,null,null,null,null,null,null,null,null,null,null,null,null,"","K30V4B3219",null,"R01 Leukocyte Mediated Toxoplasma Rsch K30V4B3219 ",null,"R01 Leukocyte Mediated Toxoplasma Rsch K30V4B3219",null,null,null,null,""]
[null,null,null,null,null,null,null,null,null,null,null,null,null,null,null,null,null,null,null,null,null,null,null,null,null,null,null,null,null,null,null,null,"","K30V4C2ML3",null,"VM CCM MILLER DANA FARBER R01 CORE ACCT K30V4C2ML3 ",null,"VM CCM MILLER DANA FARBER R01 CORE ACCT K30V4C2ML3",null,null,null,null,""]
[null,null,null,null,null,null,null,null,null,null,null,null,null,null,null,null,null,null,null,null,null,null,null,null,null,null,null,null,null,null,null,null,"","K30V4D2404",null,"STAT 3 to enhance anti tumor immunity K30V4D2404 ",null,"STAT 3 to enhance anti tumor immunity K30V4D2404",null,null,null,null,""]
[null,null,null,null,null,null,null,null,null,null,null,null,null,null,null,null,null,null,null,null,null,null,null,null,null,null,null,null,null,null,null,null,"","K30V4S6852",null,"Toedebusch K12 Scholar K30V4S6852 ",null,"Toedebusch K12 Scholar K30V4S6852",null,null,null,null,""]
[null,null,null,null,null,null,null,null,null,null,null,null,null,null,null,null,null,null,null,null,null,null,null,null,null,null,null,null,null,null,null,null,"","K30V4S7088",null,"Prolonging tear film stability in dogs using a novel rabbit nonpolar lipid (rNPL593) K30V4S7088 ",null,"Prolonging tear film stability in dogs using a novel rabbit nonpolar lipid (rNPL593) K30V4S7088",null,null,null,null,""]
[null,null,null,null,null,null,null,null,null,null,null,null,null,null,null,null,null,null,null,null,null,null,null,null,null,null,null,null,null,null,null,null,"","K30V625176",null,"Real-Time, Semi-Targeted, Recombinase-Polymerase-Amplification-Based Genotyping of Poultry and Swine Viruses  K30V625176 ",null,"Real-Time, Semi-Targeted, Recombinase-Polymerase-Amplification-Based Genotyping of Poultry and Swine Viruses K30V625176",null,null,null,null,""]
[null,null,null,null,null,null,null,null,null,null,null,null,null,null,null,null,null,null,null,null,null,null,null,null,null,null,null,null,null,null,null,null,"","K30V625372",null,"CAHFS SAN BERNARDINO CUSTODIAL MAINT K30V625372 ",null,"CAHFS SAN BERNARDINO CUSTODIAL MAINT K30V625372",null,null,null,null,""]
[null,null,null,null,null,null,null,null,null,null,null,null,null,null,null,null,null,null,null,null,null,null,null,null,null,null,null,null,null,null,null,null,"","K30V7DF474",null,"VMDO 2022 NIH STAR Stipend Funds K30V7DF474 ",null,"VMDO 2022 NIH STAR Stipend Funds K30V7DF474",null,null,null,null,""]
[null,null,null,null,null,null,null,null,null,null,null,null,null,null,null,null,null,null,null,null,null,null,null,null,null,null,null,null,null,null,null,null,"","K30VAL7132",null,"HST GO 17132 First Observation Supernova K30VAL7132 ",null,"HST GO 17132 First Observation Supernova K30VAL7132",null,null,null,null,""]
[null,null,null,null,null,null,null,null,null,null,null,null,null,null,null,null,null,null,null,null,null,null,null,null,null,null,null,null,null,null,null,null,"","K30VP70262",null,"CNPRC ANIMAL CARE AND RESEARCH SRV K30VP70262 ",null,"CNPRC ANIMAL CARE AND RESEARCH SRV K30VP70262",null,null,null,null,""]
[null,null,null,null,null,null,null,null,null,null,null,null,null,null,null,null,null,null,null,null,null,null,null,null,null,null,null,null,null,null,null,null,"","K30VP74661",null,"CNPRC YR60 SUP1 Colony Exp Alterations K30VP74661 ",null,"CNPRC YR60 SUP1 Colony Exp Alterations K30VP74661",null,null,null,null,""]
[null,null,null,null,null,null,null,null,null,null,null,null,null,null,null,null,null,null,null,null,null,null,null,null,null,null,null,null,null,null,null,null,"","K30VP75559",null,"CNPRC RESPIRATORY DISEASE RESEARCH UNIT K30VP75559 ",null,"CNPRC RESPIRATORY DISEASE RESEARCH UNIT K30VP75559",null,null,null,null,""]
[null,null,null,null,null,null,null,null,null,null,null,null,null,null,null,null,null,null,null,null,null,null,null,null,null,null,null,null,null,null,null,null,"","K30VP78859",null,"CNPRC YR59 SUP5 Corral Covers K30VP78859 ",null,"CNPRC YR59 SUP5 Corral Covers K30VP78859",null,null,null,null,""]
[null,null,null,null,null,null,null,null,null,null,null,null,null,null,null,null,null,null,null,null,null,null,null,null,null,null,null,null,null,null,null,null,"","K30VPCDZ14",null,"CNPRC Beckman Morrison Alzheimers YR3 K30VPCDZ14 ",null,"CNPRC Beckman Morrison Alzheimers YR3 K30VPCDZ14",null,null,null,null,""]
[null,null,null,null,null,null,null,null,null,null,null,null,null,null,null,null,null,null,null,null,null,null,null,null,null,null,null,null,null,null,null,null,"","K30VSTAN25",null,"BME STANFORD UNIVERSITY NIH SRINIV K30VSTAN25 ",null,"BME STANFORD UNIVERSITY NIH SRINIV K30VSTAN25",null,null,null,null,""]
[null,null,null,null,null,null,null,null,null,null,null,null,null,null,null,null,null,null,null,null,null,null,null,null,null,null,null,null,null,null,null,null,"","K30WETPENN",null,"AWET UPENN 578892 NASA A21 0042 K30WETPENN ",null,"AWET UPENN 578892 NASA A21 0042 K30WETPENN",null,null,null,null,""]
[null,null,null,null,null,null,null,null,null,null,null,null,null,null,null,null,null,null,null,null,null,null,null,null,null,null,null,null,null,null,null,null,"","K30WHIT363",null,"ETOX HEAD USGS Prince William Sound herr K30WHIT363 ",null,"ETOX HEAD USGS Prince William Sound herr K30WHIT363",null,null,null,null,""]
[null,null,null,null,null,null,null,null,null,null,null,null,null,null,null,null,null,null,null,null,null,null,null,null,null,null,null,null,null,null,null,null,"","K30Y5MJCOR",null,"CEE CTECH Yr 5 Jaller K30Y5MJCOR ",null,"CEE CTECH Yr 5 Jaller K30Y5MJCOR",null,null,null,null,""]
[null,null,null,null,null,null,null,null,null,null,null,null,null,null,null,null,null,null,null,null,null,null,null,null,null,null,null,null,null,null,null,null,"","K30YNVCONS",null,"Testbed Construction Task 4 K30YNVCONS ",null,"Testbed Construction Task 4 K30YNVCONS",null,null,null,null,""]
[null,null,null,null,null,null,null,null,null,null,null,null,null,null,null,null,null,null,null,null,null,null,null,null,null,null,null,null,null,null,null,null,"","K30ZHAN256",null,"ETOX ZHANG DOE DE SC0020182 Cappa Proj K30ZHAN256 ",null,"ETOX ZHANG DOE DE SC0020182 Cappa Proj K30ZHAN256",null,null,null,null,""]
[null,null,null,null,null,null,null,null,null,null,null,null,null,null,null,null,null,null,null,null,null,null,null,null,null,null,null,null,null,null,null,null,"","K31AQCV010",null,"Vogel UCH Lymphoma Ah Receptor K31AQCV010 ",null,"Vogel UCH Lymphoma Ah Receptor K31AQCV010",null,null,null,null,""]
[null,null,null,null,null,null,null,null,null,null,null,null,null,null,null,null,null,null,null,null,null,null,null,null,null,null,null,null,null,null,null,null,"","KL0104ASVV",null,"Advisor Support Veronica VanCleave Hunt KL0104ASVV ",null,"Advisor Support Veronica VanCleave Hunt KL0104ASVV",null,null,null,null,""]
[null,null,null,null,null,null,null,null,null,null,null,null,null,null,null,null,null,null,null,null,null,null,null,null,null,null,null,null,null,null,null,null,"","KL0104TIW1",null,"18 22 UCR USDA NIFA Tools Imprv Walnut R KL0104TIW1 ",null,"18 22 UCR USDA NIFA Tools Imprv Walnut R KL0104TIW1",null,null,null,null,""]
[null,null,null,null,null,null,null,null,null,null,null,null,null,null,null,null,null,null,null,null,null,null,null,null,null,null,null,null,null,null,null,null,"","KL0114PDSL",null,"UCCE INYO MONO PROGRAM SUPPORT KL0114PDSL ",null,"UCCE INYO MONO PROGRAM SUPPORT KL0114PDSL",null,null,null,null,""]
[null,null,null,null,null,null,null,null,null,null,null,null,null,null,null,null,null,null,null,null,null,null,null,null,null,null,null,null,null,null,null,null,"","KL0151SMD1",null,"19 23 CDFA Soil Moisture Dynamics Sac Va KL0151SMD1 ",null,"19 23 CDFA Soil Moisture Dynamics Sac Va KL0151SMD1",null,null,null,null,""]
[null,null,null,null,null,null,null,null,null,null,null,null,null,null,null,null,null,null,null,null,null,null,null,null,null,null,null,null,null,null,null,null,"","KL0228PDSL",null,"UCCE NAPA PROGRAM SUPPORT KL0228PDSL ",null,"UCCE NAPA PROGRAM SUPPORT KL0228PDSL",null,null,null,null,""]
[null,null,null,null,null,null,null,null,null,null,null,null,null,null,null,null,null,null,null,null,null,null,null,null,null,null,null,null,null,null,null,null,"","KL0239SRO1",null,"19 23 WSU USDA NIFA Stop the Rot Onion KL0239SRO1 ",null,"19 23 WSU USDA NIFA Stop the Rot Onion KL0239SRO1",null,null,null,null,""]
[null,null,null,null,null,null,null,null,null,null,null,null,null,null,null,null,null,null,null,null,null,null,null,null,null,null,null,null,null,null,null,null,"","KL0257FRR0",null,"21 23 DPR Fostering Reduced Risk Pest Ma KL0257FRR0 ",null,"21 23 DPR Fostering Reduced Risk Pest Ma KL0257FRR0",null,null,null,null,""]
[null,null,null,null,null,null,null,null,null,null,null,null,null,null,null,null,null,null,null,null,null,null,null,null,null,null,null,null,null,null,null,null,"","KL0312CAF1",null,"22 26 CAL FIRE SCIENCE CONSORTIUM KL0312CAF1 ",null,"22 26 CAL FIRE SCIENCE CONSORTIUM KL0312CAF1",null,null,null,null,""]
[null,null,null,null,null,null,null,null,null,null,null,null,null,null,null,null,null,null,null,null,null,null,null,null,null,null,null,null,null,null,null,null,"","KL0321ASZH",null,"Advisor Support Htoo Zaw Wai KL0321ASZH ",null,"Advisor Support Htoo Zaw Wai KL0321ASZH",null,null,null,null,""]
[null,null,null,null,null,null,null,null,null,null,null,null,null,null,null,null,null,null,null,null,null,null,null,null,null,null,null,null,null,null,null,null,"","KL0325ASLW",null,"Advisor Support Laurie Wayne KL0325ASLW ",null,"Advisor Support Laurie Wayne KL0325ASLW",null,null,null,null,""]
[null,null,null,null,null,null,null,null,null,null,null,null,null,null,null,null,null,null,null,null,null,null,null,null,null,null,null,null,null,null,null,null,"","KL0331CF21",null,"20 21 Carry forward PLAC NEVA UCCE CalFr KL0331CF21 ",null,"20 21 Carry forward PLAC NEVA UCCE CalFr KL0331CF21",null,null,null,null,""]
[null,null,null,null,null,null,null,null,null,null,null,null,null,null,null,null,null,null,null,null,null,null,null,null,null,null,null,null,null,null,null,null,"","KL0349DRF1",null,"23 25 Decay Rates and Fire Behavior KL0349DRF1 ",null,"23 25 Decay Rates and Fire Behavior KL0349DRF1",null,null,null,null,""]
[null,null,null,null,null,null,null,null,null,null,null,null,null,null,null,null,null,null,null,null,null,null,null,null,null,null,null,null,null,null,null,null,"","KL0410ASCC",null,"Advisor Support Catherine M Culumber KL0410ASCC ",null,"Advisor Support Catherine M Culumber KL0410ASCC",null,null,null,null,""]
[null,null,null,null,null,null,null,null,null,null,null,null,null,null,null,null,null,null,null,null,null,null,null,null,null,null,null,null,null,null,null,null,"","KL0410PRB1",null,"20 21 CPRB Regional Research Support KL0410PRB1 ",null,"20 21 CPRB Regional Research Support KL0410PRB1",null,null,null,null,""]
[null,null,null,null,null,null,null,null,null,null,null,null,null,null,null,null,null,null,null,null,null,null,null,null,null,null,null,null,null,null,null,null,"","KL0415ASMR",null,"Advisor Support Mandeep Riar KL0415ASMR ",null,"Advisor Support Mandeep Riar KL0415ASMR",null,null,null,null,""]
[null,null,null,null,null,null,null,null,null,null,null,null,null,null,null,null,null,null,null,null,null,null,null,null,null,null,null,null,null,null,null,null,"","KL0415EBS1",null,"21 24 UCD Eval Bud Stimulants Grape KL0415EBS1 ",null,"21 24 UCD Eval Bud Stimulants Grape KL0415EBS1",null,null,null,null,""]
[null,null,null,null,null,null,null,null,null,null,null,null,null,null,null,null,null,null,null,null,null,null,null,null,null,null,null,null,null,null,null,null,"","KL0416ANP1",null,"22 23 CPRB Asses Nitrogen Uptake Pistach KL0416ANP1 ",null,"22 23 CPRB Asses Nitrogen Uptake Pistach KL0416ANP1",null,null,null,null,""]
[null,null,null,null,null,null,null,null,null,null,null,null,null,null,null,null,null,null,null,null,null,null,null,null,null,null,null,null,null,null,null,null,"","KL0420ENR0",null,"20 22 Evaluation New Root Knot Nematode KL0420ENR0 ",null,"20 22 Evaluation New Root Knot Nematode KL0420ENR0",null,null,null,null,""]
[null,null,null,null,null,null,null,null,null,null,null,null,null,null,null,null,null,null,null,null,null,null,null,null,null,null,null,null,null,null,null,null,"","KL04459996",null,"ORG RESEARCH SUMMARY KL04459996 ",null,"ORG RESEARCH SUMMARY KL04459996",null,null,null,null,""]
[null,null,null,null,null,null,null,null,null,null,null,null,null,null,null,null,null,null,null,null,null,null,null,null,null,null,null,null,null,null,null,null,"","KL0450ITOW",null,"22 23 Improv Treatment Orangeworm Walnu KL0450ITOW ",null,"22 23 Improv Treatment Orangeworm Walnu KL0450ITOW",null,null,null,null,""]
[null,null,null,null,null,null,null,null,null,null,null,null,null,null,null,null,null,null,null,null,null,null,null,null,null,null,null,null,null,null,null,null,"","KL0454ASJA",null,"ANR New CE Advisor Acct Jorge Angeles KL0454ASJA ",null,"ANR New CE Advisor Acct Jorge Angeles KL0454ASJA",null,null,null,null,""]
[null,null,null,null,null,null,null,null,null,null,null,null,null,null,null,null,null,null,null,null,null,null,null,null,null,null,null,null,null,null,null,null,"","KL05P34F53",null,"IPM Greer Celery Breeding Year 2 KL05P34F53 ",null,"IPM Greer Celery Breeding Year 2 KL05P34F53",null,null,null,null,""]
[null,null,null,null,null,null,null,null,null,null,null,null,null,null,null,null,null,null,null,null,null,null,null,null,null,null,null,null,null,null,null,null,"","KL05P85F49",null,"IPM Greer Celery Breeding Year 3 KL05P85F49 ",null,"IPM Greer Celery Breeding Year 3 KL05P85F49",null,null,null,null,""]
[null,null,null,null,null,null,null,null,null,null,null,null,null,null,null,null,null,null,null,null,null,null,null,null,null,null,null,null,null,null,null,null,"","KL06KK4281",null,"USDA BACTERIAL ENRICHMENT PATTERNS ROOTS KL06KK4281 ",null,"USDA BACTERIAL ENRICHMENT PATTERNS ROOTS KL06KK4281",null,null,null,null,""]
[null,null,null,null,null,null,null,null,null,null,null,null,null,null,null,null,null,null,null,null,null,null,null,null,null,null,null,null,null,null,null,null,"","KL0701ACS1",null,"22 23 CSA Alameda County Support ofUCCE KL0701ACS1 ",null,"22 23 CSA Alameda County Support ofUCCE KL0701ACS1",null,null,null,null,""]
[null,null,null,null,null,null,null,null,null,null,null,null,null,null,null,null,null,null,null,null,null,null,null,null,null,null,null,null,null,null,null,null,"","KL0713DTIC",null,"22 25 Dev tools Info on Crop Water Use KL0713DTIC ",null,"22 25 Dev tools Info on Crop Water Use KL0713DTIC",null,null,null,null,""]
[null,null,null,null,null,null,null,null,null,null,null,null,null,null,null,null,null,null,null,null,null,null,null,null,null,null,null,null,null,null,null,null,"","KL0713IMGP",null,"21 22 UCCE Imperial MG Program KL0713IMGP ",null,"21 22 UCCE Imperial MG Program KL0713IMGP",null,null,null,null,""]
[null,null,null,null,null,null,null,null,null,null,null,null,null,null,null,null,null,null,null,null,null,null,null,null,null,null,null,null,null,null,null,null,"","KL0727IMB1",null,"23 25 Irrigation Mngmnt for Broccoli CPU KL0727IMB1 ",null,"23 25 Irrigation Mngmnt for Broccoli CPU KL0727IMB1",null,null,null,null,""]
[null,null,null,null,null,null,null,null,null,null,null,null,null,null,null,null,null,null,null,null,null,null,null,null,null,null,null,null,null,null,null,null,"","KL0727WTT1",null,"21 22 CA LEAFY GREENS Water Treatment Te KL0727WTT1 ",null,"21 22 CA LEAFY GREENS Water Treatment Te KL0727WTT1",null,null,null,null,""]
[null,null,null,null,null,null,null,null,null,null,null,null,null,null,null,null,null,null,null,null,null,null,null,null,null,null,null,null,null,null,null,null,"","KL0733COP1",null,"22 26 CARROT OUTREACH PROGRAM KL0733COP1 ",null,"22 26 CARROT OUTREACH PROGRAM KL0733COP1",null,null,null,null,""]
[null,null,null,null,null,null,null,null,null,null,null,null,null,null,null,null,null,null,null,null,null,null,null,null,null,null,null,null,null,null,null,null,"","KL0735ECC1",null,"KL85d15 KL0735ECC1 21-24 Expanding Capacity of the Central ",null,"KL85d15 KL0735ECC1 21-24 Expanding Capacity of the Central",null,null,null,null,""]
[null,null,null,null,null,null,null,null,null,null,null,null,null,null,null,null,null,null,null,null,null,null,null,null,null,null,null,null,null,null,null,null,"","KL0737ECP1",null,"23 26 Evaluating Cntrlled Envmt Prodctn KL0737ECP1 ",null,"23 26 Evaluating Cntrlled Envmt Prodctn KL0737ECP1",null,null,null,null,""]
[null,null,null,null,null,null,null,null,null,null,null,null,null,null,null,null,null,null,null,null,null,null,null,null,null,null,null,null,null,null,null,null,"","KL0741PUF0",null,"22 23 USDA Post fire Urban Forestry KL0741PUF0 ",null,"22 23 USDA Post fire Urban Forestry KL0741PUF0",null,null,null,null,""]
[null,null,null,null,null,null,null,null,null,null,null,null,null,null,null,null,null,null,null,null,null,null,null,null,null,null,null,null,null,null,null,null,"","KL0742OFT1",null,"21 27 Outdoor Equity Field Trips KL0742OFT1 ",null,"21 27 Outdoor Equity Field Trips KL0742OFT1",null,null,null,null,""]
[null,null,null,null,null,null,null,null,null,null,null,null,null,null,null,null,null,null,null,null,null,null,null,null,null,null,null,null,null,null,null,null,"","KL0744PDSL",null,"UCCE SANTA CRUZ PROGRAM SUPPORT KL0744PDSL ",null,"UCCE SANTA CRUZ PROGRAM SUPPORT KL0744PDSL",null,null,null,null,""]
[null,null,null,null,null,null,null,null,null,null,null,null,null,null,null,null,null,null,null,null,null,null,null,null,null,null,null,null,null,null,null,null,"","KL0756DTS1",null,"22 26 Disease Threats in Strawberries KL0756DTS1 ",null,"22 26 Disease Threats in Strawberries KL0756DTS1",null,null,null,null,""]
[null,null,null,null,null,null,null,null,null,null,null,null,null,null,null,null,null,null,null,null,null,null,null,null,null,null,null,null,null,null,null,null,"","KL0AECMA01",null,"FFF AGERTON ODD 2538 H KL0AECMA01 ",null,"FFF AGERTON ODD 2538 H KL0AECMA01",null,null,null,null,""]
[null,null,null,null,null,null,null,null,null,null,null,null,null,null,null,null,null,null,null,null,null,null,null,null,null,null,null,null,null,null,null,null,"","KL0AENGA01",null,"FFF ATTARDO ODD 2477 H KL0AENGA01 ",null,"FFF ATTARDO ODD 2477 H KL0AENGA01",null,null,null,null,""]
[null,null,null,null,null,null,null,null,null,null,null,null,null,null,null,null,null,null,null,null,null,null,null,null,null,null,null,null,null,null,null,null,"","KL0AFSJL00",null,"FFF LIETE NOBREGA DE MOURA EVN 2348 RR KL0AFSJL00 ",null,"FFF LIETE NOBREGA DE MOURA EVN 2348 RR KL0AFSJL00",null,null,null,null,""]
[null,null,null,null,null,null,null,null,null,null,null,null,null,null,null,null,null,null,null,null,null,null,null,null,null,null,null,null,null,null,null,null,"","KL0APSCSAB",null,"SMITH LEVER MULTISTATE INTEGRATED KL0APSCSAB ",null,"SMITH LEVER MULTISTATE INTEGRATED KL0APSCSAB",null,null,null,null,""]
[null,null,null,null,null,null,null,null,null,null,null,null,null,null,null,null,null,null,null,null,null,null,null,null,null,null,null,null,null,null,null,null,"","KL0APSY137",null,"FFF EVINER ODD 2410 H KL0APSY137 ",null,"FFF EVINER ODD 2410 H KL0APSY137",null,null,null,null,""]
[null,null,null,null,null,null,null,null,null,null,null,null,null,null,null,null,null,null,null,null,null,null,null,null,null,null,null,null,null,null,null,null,"","KL0CEGSFN0",null,"21 22 CDFA SFN STAFF ACTIVITY KL0CEGSFN0 ",null,"21 22 CDFA SFN STAFF ACTIVITY KL0CEGSFN0",null,null,null,null,""]
[null,null,null,null,null,null,null,null,null,null,null,null,null,null,null,null,null,null,null,null,null,null,null,null,null,null,null,null,null,null,null,null,"","KL0CNECTRC",null,"ANR CONNECTIVITY PROJECT KL0CNECTRC ",null,"ANR CONNECTIVITY PROJECT KL0CNECTRC",null,null,null,null,""]
[null,null,null,null,null,null,null,null,null,null,null,null,null,null,null,null,null,null,null,null,null,null,null,null,null,null,null,null,null,null,null,null,"","KL0CWRN137",null,"PI Sedlak PFAs 104g UCB KL0CWRN137 ",null,"PI Sedlak PFAs 104g UCB KL0CWRN137",null,null,null,null,""]
[null,null,null,null,null,null,null,null,null,null,null,null,null,null,null,null,null,null,null,null,null,null,null,null,null,null,null,null,null,null,null,null,"","KL0DIVIDIP",null,"YFC INTERCULTURAL DEVELOPMENT KL0DIVIDIP ",null,"YFC INTERCULTURAL DEVELOPMENT KL0DIVIDIP",null,null,null,null,""]
[null,null,null,null,null,null,null,null,null,null,null,null,null,null,null,null,null,null,null,null,null,null,null,null,null,null,null,null,null,null,null,null,"","KL0INOAFIF",null,"ANR GY UCDAVIS AFIS NON STUDENT FELLOWSH KL0INOAFIF ",null,"ANR GY UCDAVIS AFIS NON STUDENT FELLOWSH KL0INOAFIF",null,null,null,null,""]
[null,null,null,null,null,null,null,null,null,null,null,null,null,null,null,null,null,null,null,null,null,null,null,null,null,null,null,null,null,null,null,null,"","KL0LIP5086",null,"Gautam CA DPR Baiting Systems KL0LIP5086 ",null,"Gautam CA DPR Baiting Systems KL0LIP5086",null,null,null,null,""]
[null,null,null,null,null,null,null,null,null,null,null,null,null,null,null,null,null,null,null,null,null,null,null,null,null,null,null,null,null,null,null,null,"","KL0MTP6392",null,"AGROCLIMATE RESEARCH VENTURA CO PATHAK KL0MTP6392 ",null,"AGROCLIMATE RESEARCH VENTURA CO PATHAK KL0MTP6392",null,null,null,null,""]
[null,null,null,null,null,null,null,null,null,null,null,null,null,null,null,null,null,null,null,null,null,null,null,null,null,null,null,null,null,null,null,null,"","KL0NPINH01",null,"NPI RITCHIE NIH STNFRD PATEL WATER FIRST KL0NPINH01 ",null,"NPI RITCHIE NIH STNFRD PATEL WATER FIRST KL0NPINH01",null,null,null,null,""]
[null,null,null,null,null,null,null,null,null,null,null,null,null,null,null,null,null,null,null,null,null,null,null,null,null,null,null,null,null,null,null,null,"","KL0NPISF03",null,"NPI WOODWARD LOPEZ UCSF CDPH TOBACCO POL KL0NPISF03 ",null,"NPI WOODWARD LOPEZ UCSF CDPH TOBACCO POL KL0NPISF03",null,null,null,null,""]
[null,null,null,null,null,null,null,null,null,null,null,null,null,null,null,null,null,null,null,null,null,null,null,null,null,null,null,null,null,null,null,null,"","KL0SWP6488",null,"UMinn SAI P Developing Long Term Socio T KL0SWP6488 ",null,"UMinn SAI P Developing Long Term Socio T KL0SWP6488",null,null,null,null,""]
[null,null,null,null,null,null,null,null,null,null,null,null,null,null,null,null,null,null,null,null,null,null,null,null,null,null,null,null,null,null,null,null,"","KL0UCMSORG",null,"UCM United Sorghum Checkoff Program KL0UCMSORG ",null,"UCM United Sorghum Checkoff Program KL0UCMSORG",null,null,null,null,""]
[null,null,null,null,null,null,null,null,null,null,null,null,null,null,null,null,null,null,null,null,null,null,null,null,null,null,null,null,null,null,null,null,"","KL0V619SLF",null,"VMEX SMITH LEVER FUNDS COMBINED KL0V619SLF ",null,"VMEX SMITH LEVER FUNDS COMBINED KL0V619SLF",null,null,null,null,""]
[null,null,null,null,null,null,null,null,null,null,null,null,null,null,null,null,null,null,null,null,null,null,null,null,null,null,null,null,null,null,null,null,"","KL0VGYAFIS",null,"ANR GY UCDAVIS AFIS NIFA SUBAWARD KL0VGYAFIS ",null,"ANR GY UCDAVIS AFIS NIFA SUBAWARD KL0VGYAFIS",null,null,null,null,""]
[null,null,null,null,null,null,null,null,null,null,null,null,null,null,null,null,null,null,null,null,null,null,null,null,null,null,null,null,null,null,null,null,"","KL0WPWA064",null,"KL32F52 KL0WPWA064 MCA to Justin Valliere ",null,"KL32F52 KL0WPWA064 MCA to Justin Valliere",null,null,null,null,""]
[null,null,null,null,null,null,null,null,null,null,null,null,null,null,null,null,null,null,null,null,null,null,null,null,null,null,null,null,null,null,null,null,"","KL0YFCCOMM",null,"ANR YFC Community Programs KL0YFCCOMM ",null,"ANR YFC Community Programs KL0YFCCOMM",null,null,null,null,""]
[null,null,null,null,null,null,null,null,null,null,null,null,null,null,null,null,null,null,null,null,null,null,null,null,null,null,null,null,null,null,null,null,"","KP959190F2",null,"0423 NORTH COLONY CAGE RENOVATION KP959190F2 ",null,"0423 NORTH COLONY CAGE RENOVATION KP959190F2",null,null,null,null,""]
[null,null,null,null,null,null,null,null,null,null,null,null,null,null,null,null,null,null,null,null,null,null,null,null,null,null,null,null,null,null,null,null,"","KS0ABRVIRU",null,"Renewal Virulence Factors of Salmonella KS0ABRVIRU ",null,"Renewal Virulence Factors of Salmonella KS0ABRVIRU",null,null,null,null,""]
[null,null,null,null,null,null,null,null,null,null,null,null,null,null,null,null,null,null,null,null,null,null,null,null,null,null,null,null,null,null,null,null,"","KS0AHT32XX",null,"Med Surg R Canter T32 Abdul Hassan KS0AHT32XX ",null,"Med Surg R Canter T32 Abdul Hassan KS0AHT32XX",null,null,null,null,""]
[null,null,null,null,null,null,null,null,null,null,null,null,null,null,null,null,null,null,null,null,null,null,null,null,null,null,null,null,null,null,null,null,"","KS0APFBCG1",null,"MED PHS POPEJOY BAYLOR CLINGEN KS0APFBCG1 ",null,"MED PHS POPEJOY BAYLOR CLINGEN KS0APFBCG1",null,null,null,null,""]
[null,null,null,null,null,null,null,null,null,null,null,null,null,null,null,null,null,null,null,null,null,null,null,null,null,null,null,null,null,null,null,null,"","KS0ASAIRB3",null,"MED PSYCH STAHMER HRSA 0915 0816 KS0ASAIRB3 ",null,"MED PSYCH STAHMER HRSA 0915 0816 KS0ASAIRB3",null,null,null,null,""]
[null,null,null,null,null,null,null,null,null,null,null,null,null,null,null,null,null,null,null,null,null,null,null,null,null,null,null,null,null,null,null,null,"","KS0AWNSFSX",null,"Med Surg Aijun Wang NSF Storx Tech KS0AWNSFSX ",null,"Med Surg Aijun Wang NSF Storx Tech KS0AWNSFSX",null,null,null,null,""]
[null,null,null,null,null,null,null,null,null,null,null,null,null,null,null,null,null,null,null,null,null,null,null,null,null,null,null,null,null,null,null,null,"","KS0BARRY51",null,"MED CIID IYER DARPA PROJECT CORE ACCT KS0BARRY51 ",null,"MED CIID IYER DARPA PROJECT CORE ACCT KS0BARRY51",null,null,null,null,""]
[null,null,null,null,null,null,null,null,null,null,null,null,null,null,null,null,null,null,null,null,null,null,null,null,null,null,null,null,null,null,null,null,"","KS0BIMMSTR",null,"NURS MASTERS STUDENT SUPPORT KS0BIMMSTR ",null,"NURS MASTERS STUDENT SUPPORT KS0BIMMSTR",null,null,null,null,""]
[null,null,null,null,null,null,null,null,null,null,null,null,null,null,null,null,null,null,null,null,null,null,null,null,null,null,null,null,null,null,null,null,"","KS0CACM300",null,"MED IMCA CADEIRAS UNIV OF PENNSYLVANIA KS0CACM300 ",null,"MED IMCA CADEIRAS UNIV OF PENNSYLVANIA KS0CACM300",null,null,null,null,""]
[null,null,null,null,null,null,null,null,null,null,null,null,null,null,null,null,null,null,null,null,null,null,null,null,null,null,null,null,null,null,null,null,"","KS0CACN268",null,"MED IMCA CHIAMVIMONVAT NIH U01 DIV SUPPL KS0CACN268 ",null,"MED IMCA CHIAMVIMONVAT NIH U01 DIV SUPPL KS0CACN268",null,null,null,null,""]
[null,null,null,null,null,null,null,null,null,null,null,null,null,null,null,null,null,null,null,null,null,null,null,null,null,null,null,null,null,null,null,null,"","KS0CALR826",null,"MED IMCA LOW EDWARDS LIFESCIENCE PARTNER KS0CALR826 ",null,"MED IMCA LOW EDWARDS LIFESCIENCE PARTNER KS0CALR826",null,null,null,null,""]
[null,null,null,null,null,null,null,null,null,null,null,null,null,null,null,null,null,null,null,null,null,null,null,null,null,null,null,null,null,null,null,null,"","KS0CASS505",null,"MED IMCA SCHAEFER AHA AWARD YR 2 KS0CASS505 ",null,"MED IMCA SCHAEFER AHA AWARD YR 2 KS0CASS505",null,null,null,null,""]
[null,null,null,null,null,null,null,null,null,null,null,null,null,null,null,null,null,null,null,null,null,null,null,null,null,null,null,null,null,null,null,null,"","KS0CC39F51",null,"SWOG NCTN FIXED PRICE AGRMT OHSU KS0CC39F51 ",null,"SWOG NCTN FIXED PRICE AGRMT OHSU KS0CC39F51",null,null,null,null,""]
[null,null,null,null,null,null,null,null,null,null,null,null,null,null,null,null,null,null,null,null,null,null,null,null,null,null,null,null,null,null,null,null,"","KS0CCTJ806",null,"MED IMCT TUSCANO CELGENE RVNHL PI0163 KS0CCTJ806 ",null,"MED IMCT TUSCANO CELGENE RVNHL PI0163 KS0CCTJ806",null,null,null,null,""]
[null,null,null,null,null,null,null,null,null,null,null,null,null,null,null,null,null,null,null,null,null,null,null,null,null,null,null,null,null,null,null,null,"","KS0CEDOD04",null,"Triple AKR1C3/COX2/sEH inhibition for the treatment of lethal prostate cancer KS0CEDOD04 ",null,"Triple AKR1C3/COX2/sEH inhibition for the treatment of lethal prostate cancer KS0CEDOD04",null,null,null,null,""]
[null,null,null,null,null,null,null,null,null,null,null,null,null,null,null,null,null,null,null,null,null,null,null,null,null,null,null,null,null,null,null,null,"","KS0CMVBP15",null,"MCDONALD REVERAGEN VBP15 EAP 12 23 KS0CMVBP15 ",null,"MCDONALD REVERAGEN VBP15 EAP 12 23 KS0CMVBP15",null,null,null,null,""]
[null,null,null,null,null,null,null,null,null,null,null,null,null,null,null,null,null,null,null,null,null,null,null,null,null,null,null,null,null,null,null,null,"","KS0CSR21GA",null,"MED PSYCH Schumann 1R21MH129806 KS0CSR21GA ",null,"MED PSYCH Schumann 1R21MH129806 KS0CSR21GA",null,null,null,null,""]
[null,null,null,null,null,null,null,null,null,null,null,null,null,null,null,null,null,null,null,null,null,null,null,null,null,null,null,null,null,null,null,null,"","KS0CURFNCF",null,"MED CC CCSG 21 22 CURE SUPP FINA CF KS0CURFNCF ",null,"MED CC CCSG 21 22 CURE SUPP FINA CF KS0CURFNCF",null,null,null,null,""]
[null,null,null,null,null,null,null,null,null,null,null,null,null,null,null,null,null,null,null,null,null,null,null,null,null,null,null,null,null,null,null,null,"","KS0DBIDEAS",null,"BISSIG AMERICAN COLLEGE RADIOLOGY 12 26 KS0DBIDEAS ",null,"BISSIG AMERICAN COLLEGE RADIOLOGY 12 26 KS0DBIDEAS",null,null,null,null,""]
[null,null,null,null,null,null,null,null,null,null,null,null,null,null,null,null,null,null,null,null,null,null,null,null,null,null,null,null,null,null,null,null,"","KS0DHCOGN1",null,"MED PSYCH HESSL NIH R01 9 30 20 9 29 25 KS0DHCOGN1 ",null,"MED PSYCH HESSL NIH R01 9 30 20 9 29 25 KS0DHCOGN1",null,null,null,null,""]
[null,null,null,null,null,null,null,null,null,null,null,null,null,null,null,null,null,null,null,null,null,null,null,null,null,null,null,null,null,null,null,null,"","KS0DHP01SC",null,"Role of Reservoir Composition Science KS0DHP01SC ",null,"Role of Reservoir Composition Science KS0DHP01SC",null,null,null,null,""]
[null,null,null,null,null,null,null,null,null,null,null,null,null,null,null,null,null,null,null,null,null,null,null,null,null,null,null,null,null,null,null,null,"","KS0DRFSP34",null,"MED PHS SUPERFUND CORE B YEAR 33 KS0DRFSP34 ",null,"MED PHS SUPERFUND CORE B YEAR 33 KS0DRFSP34",null,null,null,null,""]
[null,null,null,null,null,null,null,null,null,null,null,null,null,null,null,null,null,null,null,null,null,null,null,null,null,null,null,null,null,null,null,null,"","KS0DTCACT9",null,"TANCREDI CORE C COUNTERACT PROJECT YR 9 KS0DTCACT9 ",null,"TANCREDI CORE C COUNTERACT PROJECT YR 9 KS0DTCACT9",null,null,null,null,""]
[null,null,null,null,null,null,null,null,null,null,null,null,null,null,null,null,null,null,null,null,null,null,null,null,null,null,null,null,null,null,null,null,"","KS0ED76F26",null,"E Dickson R35 A23 1447 KS0ED76F26 ",null,"E Dickson R35 A23 1447 KS0ED76F26",null,null,null,null,""]
[null,null,null,null,null,null,null,null,null,null,null,null,null,null,null,null,null,null,null,null,null,null,null,null,null,null,null,null,null,null,null,null,"","KS0EMKYMB1",null,"MAVERAKIS KYMAB LIMITED A23 2984 0 KS0EMKYMB1 ",null,"MAVERAKIS KYMAB LIMITED A23 2984 0 KS0EMKYMB1",null,null,null,null,""]
[null,null,null,null,null,null,null,null,null,null,null,null,null,null,null,null,null,null,null,null,null,null,null,null,null,null,null,null,null,null,null,null,"","KS0ENYJ503",null,"MED IMEN CYSTIC FIBROSIS FDN KS0ENYJ503 ",null,"MED IMEN CYSTIC FIBROSIS FDN KS0ENYJ503",null,null,null,null,""]
[null,null,null,null,null,null,null,null,null,null,null,null,null,null,null,null,null,null,null,null,null,null,null,null,null,null,null,null,null,null,null,null,"","KS0ERJT512",null,"MERM CHOP WILLIAMSON SLEEP JOHNSON KS0ERJT512 ",null,"MERM CHOP WILLIAMSON SLEEP JOHNSON KS0ERJT512",null,null,null,null,""]
[null,null,null,null,null,null,null,null,null,null,null,null,null,null,null,null,null,null,null,null,null,null,null,null,null,null,null,null,null,null,null,null,"","KS0ERLM655",null,"MERM BIOMERIEUZ SA MAY KS0ERLM655 ",null,"MERM BIOMERIEUZ SA MAY KS0ERLM655",null,null,null,null,""]
[null,null,null,null,null,null,null,null,null,null,null,null,null,null,null,null,null,null,null,null,null,null,null,null,null,null,null,null,null,null,null,null,"","KS0ERWG649",null,"MERM CA WELLNESS FDN WINTEMUTE KS0ERWG649 ",null,"MERM CA WELLNESS FDN WINTEMUTE KS0ERWG649",null,null,null,null,""]
[null,null,null,null,null,null,null,null,null,null,null,null,null,null,null,null,null,null,null,null,null,null,null,null,null,null,null,null,null,null,null,null,"","KS0FITPCI1",null,"INGS PDA CLOSURE STUDY KS0FITPCI1 ",null,"INGS PDA CLOSURE STUDY KS0FITPCI1",null,null,null,null,""]
[null,null,null,null,null,null,null,null,null,null,null,null,null,null,null,null,null,null,null,null,null,null,null,null,null,null,null,null,null,null,null,null,"","KS0GIBC831",null,"MED IMGI CYMABAY CB8025 21838 BOWLUS KS0GIBC831 ",null,"MED IMGI CYMABAY CB8025 21838 BOWLUS KS0GIBC831",null,null,null,null,""]
[null,null,null,null,null,null,null,null,null,null,null,null,null,null,null,null,null,null,null,null,null,null,null,null,null,null,null,null,null,null,null,null,"","KS0GICE604",null,"MED IMGI CHAK TARGET PHARM TARGET HBV2 KS0GICE604 ",null,"MED IMGI CHAK TARGET PHARM TARGET HBV2 KS0GICE604",null,null,null,null,""]
[null,null,null,null,null,null,null,null,null,null,null,null,null,null,null,null,null,null,null,null,null,null,null,null,null,null,null,null,null,null,null,null,"","KS0GMACT01",null,"MPHA Gelli ACT NIH 2022 KS0GMACT01 ",null,"MPHA Gelli ACT NIH 2022 KS0GMACT01",null,null,null,null,""]
[null,null,null,null,null,null,null,null,null,null,null,null,null,null,null,null,null,null,null,null,null,null,null,null,null,null,null,null,null,null,null,null,"","KS0GMTS201",null,"MED IMGM TU NATL CANCER INS 1R01CA273058 KS0GMTS201 ",null,"MED IMGM TU NATL CANCER INS 1R01CA273058 KS0GMTS201",null,null,null,null,""]
[null,null,null,null,null,null,null,null,null,null,null,null,null,null,null,null,null,null,null,null,null,null,null,null,null,null,null,null,null,null,null,null,"","KS0GXCAT02",null,"Xiong 1R01HS025395 01 8 17 5 22 KS0GXCAT02 ",null,"Xiong 1R01HS025395 01 8 17 5 22 KS0GXCAT02",null,null,null,null,""]
[null,null,null,null,null,null,null,null,null,null,null,null,null,null,null,null,null,null,null,null,null,null,null,null,null,null,null,null,null,null,null,null,"","KS0HOAM819",null,"MED IMCT ABEDI POSEIDA P BCMA 101 002 KS0HOAM819 ",null,"MED IMCT ABEDI POSEIDA P BCMA 101 002 KS0HOAM819",null,null,null,null,""]
[null,null,null,null,null,null,null,null,null,null,null,null,null,null,null,null,null,null,null,null,null,null,null,null,null,null,null,null,null,null,null,null,"","KS0HOCM202",null,"MED IMHO CHEN DHHS MINORITY HEALTH Y2 KS0HOCM202 ",null,"MED IMHO CHEN DHHS MINORITY HEALTH Y2 KS0HOCM202",null,null,null,null,""]
[null,null,null,null,null,null,null,null,null,null,null,null,null,null,null,null,null,null,null,null,null,null,null,null,null,null,null,null,null,null,null,null,"","KS0HOGD851",null,"MED IMHO GANDARA GENENTECH G040241 KS0HOGD851 ",null,"MED IMHO GANDARA GENENTECH G040241 KS0HOGD851",null,null,null,null,""]
[null,null,null,null,null,null,null,null,null,null,null,null,null,null,null,null,null,null,null,null,null,null,null,null,null,null,null,null,null,null,null,null,"","KS0HOJB826",null,"MED IMCT JONAS LOXO ONCOLOGY KS0HOJB826 ",null,"MED IMCT JONAS LOXO ONCOLOGY KS0HOJB826",null,null,null,null,""]
[null,null,null,null,null,null,null,null,null,null,null,null,null,null,null,null,null,null,null,null,null,null,null,null,null,null,null,null,null,null,null,null,"","KS0HOKK833",null,"MED IMHO KELLY ABBVIE INC M16 438 KS0HOKK833 ",null,"MED IMHO KELLY ABBVIE INC M16 438 KS0HOKK833",null,null,null,null,""]
[null,null,null,null,null,null,null,null,null,null,null,null,null,null,null,null,null,null,null,null,null,null,null,null,null,null,null,null,null,null,null,null,"","KS0HOLP854",null,"MED IMHO LARA TAIHO TO TAS3681 101 KS0HOLP854 ",null,"MED IMHO LARA TAIHO TO TAS3681 101 KS0HOLP854",null,null,null,null,""]
[null,null,null,null,null,null,null,null,null,null,null,null,null,null,null,null,null,null,null,null,null,null,null,null,null,null,null,null,null,null,null,null,"","KS0HOPC304",null,"MED IMHO PAN PANDOMEDX KS0HOPC304 ",null,"MED IMHO PAN PANDOMEDX KS0HOPC304",null,null,null,null,""]
[null,null,null,null,null,null,null,null,null,null,null,null,null,null,null,null,null,null,null,null,null,null,null,null,null,null,null,null,null,null,null,null,"","KS0HORJ829",null,"MED IMHO RIESS VITRAC VIC 1911 01 KS0HORJ829 ",null,"MED IMHO RIESS VITRAC VIC 1911 01 KS0HORJ829",null,null,null,null,""]
[null,null,null,null,null,null,null,null,null,null,null,null,null,null,null,null,null,null,null,null,null,null,null,null,null,null,null,null,null,null,null,null,"","KS0HOSJ2C2",null,"MED IMHO SUTCLIFFE NCI U01CA217665 2CF KS0HOSJ2C2 ",null,"MED IMHO SUTCLIFFE NCI U01CA217665 2CF KS0HOSJ2C2",null,null,null,null,""]
[null,null,null,null,null,null,null,null,null,null,null,null,null,null,null,null,null,null,null,null,null,null,null,null,null,null,null,null,null,null,null,null,"","KS0HWACT09",null,"MPHA WULFF ACT NIH KS0HWACT09 ",null,"MPHA WULFF ACT NIH KS0HWACT09",null,null,null,null,""]
[null,null,null,null,null,null,null,null,null,null,null,null,null,null,null,null,null,null,null,null,null,null,null,null,null,null,null,null,null,null,null,null,"","KS0HWCRA07",null,"MPHA WULFF ACT NIH CORE A KS0HWCRA07 ",null,"MPHA WULFF ACT NIH CORE A KS0HWCRA07",null,null,null,null,""]
[null,null,null,null,null,null,null,null,null,null,null,null,null,null,null,null,null,null,null,null,null,null,null,null,null,null,null,null,null,null,null,null,"","KS0IDPB201",null,"MED IMID PENN NIAID R01 UBIQUITIN KS0IDPB201 ",null,"MED IMID PENN NIAID R01 UBIQUITIN KS0IDPB201",null,null,null,null,""]
[null,null,null,null,null,null,null,null,null,null,null,null,null,null,null,null,null,null,null,null,null,null,null,null,null,null,null,null,null,null,null,null,"","KS0IDVJ304",null,"MED IMID VANG UCSF AETC CORE FY19 20 KS0IDVJ304 ",null,"MED IMID VANG UCSF AETC CORE FY19 20 KS0IDVJ304",null,null,null,null,""]
[null,null,null,null,null,null,null,null,null,null,null,null,null,null,null,null,null,null,null,null,null,null,null,null,null,null,null,null,null,null,null,null,"","KS0IHFOR3A",null,"MED PHS HERTZ ORALE COVID 19 KS0IHFOR3A ",null,"MED PHS HERTZ ORALE COVID 19 KS0IHFOR3A",null,null,null,null,""]
[null,null,null,null,null,null,null,null,null,null,null,null,null,null,null,null,null,null,null,null,null,null,null,null,null,null,null,null,null,null,null,null,"","KS0IPKK11S",null,"MED IPHI CAL CANCER REGISTRY STATE YR 5 KS0IPKK11S ",null,"MED IPHI CAL CANCER REGISTRY STATE YR 5 KS0IPKK11S",null,null,null,null,""]
[null,null,null,null,null,null,null,null,null,null,null,null,null,null,null,null,null,null,null,null,null,null,null,null,null,null,null,null,null,null,null,null,"","KS0ITALFA2",null,"MCDONALD ITALFARMACO GIVI 6 30 2028 KS0ITALFA2 ",null,"MCDONALD ITALFARMACO GIVI 6 30 2028 KS0ITALFA2",null,null,null,null,""]
[null,null,null,null,null,null,null,null,null,null,null,null,null,null,null,null,null,null,null,null,null,null,null,null,null,null,null,null,null,null,null,null,"","KS0JDUCSFB",null,"UCSF Bay Area Center for AIDS Deere KS0JDUCSFB ",null,"UCSF Bay Area Center for AIDS Deere KS0JDUCSFB",null,null,null,null,""]
[null,null,null,null,null,null,null,null,null,null,null,null,null,null,null,null,null,null,null,null,null,null,null,null,null,null,null,null,null,null,null,null,"","KS0JLFRCH7",null,"MMI LASALLE HERTZ PICCIOTTO ECHO RECHARG KS0JLFRCH7 ",null,"MMI LASALLE HERTZ PICCIOTTO ECHO RECHARG KS0JLFRCH7",null,null,null,null,""]
[null,null,null,null,null,null,null,null,null,null,null,null,null,null,null,null,null,null,null,null,null,null,null,null,null,null,null,null,null,null,null,null,"","KS0JOA4CT3",null,"OLICHNEY A4 STUDY UCSD MCA 12 16 KS0JOA4CT3 ",null,"OLICHNEY A4 STUDY UCSD MCA 12 16 KS0JOA4CT3",null,null,null,null,""]
[null,null,null,null,null,null,null,null,null,null,null,null,null,null,null,null,null,null,null,null,null,null,null,null,null,null,null,null,null,null,null,null,"","KS0JSABVIE",null,"SNIDER ABBVIE INC 6 30 2024 KS0JSABVIE ",null,"SNIDER ABBVIE INC 6 30 2024 KS0JSABVIE",null,null,null,null,""]
[null,null,null,null,null,null,null,null,null,null,null,null,null,null,null,null,null,null,null,null,null,null,null,null,null,null,null,null,null,null,null,null,"","KS0JT24C71",null,"MPHA TRIMMER NIH U24 AWARD YR4 KS0JT24C71 ",null,"MPHA TRIMMER NIH U24 AWARD YR4 KS0JT24C71",null,null,null,null,""]
[null,null,null,null,null,null,null,null,null,null,null,null,null,null,null,null,null,null,null,null,null,null,null,null,null,null,null,null,null,null,null,null,"","KS0KC22D57",null,"Carraway NCI Cayuse project A21 0091 KS0KC22D57 ",null,"Carraway NCI Cayuse project A21 0091 KS0KC22D57",null,null,null,null,""]
[null,null,null,null,null,null,null,null,null,null,null,null,null,null,null,null,null,null,null,null,null,null,null,null,null,null,null,null,null,null,null,null,"","KS0KKFTKF1",null,"MED PHS KIM COTOPASSI NIA PPG P01 KS0KKFTKF1 ",null,"MED PHS KIM COTOPASSI NIA PPG P01 KS0KKFTKF1",null,null,null,null,""]
[null,null,null,null,null,null,null,null,null,null,null,null,null,null,null,null,null,null,null,null,null,null,null,null,null,null,null,null,null,null,null,null,"","KS0KTCL800",null,"MED IMKT L X CHEN VELOXIS HRP 503 KS0KTCL800 ",null,"MED IMKT L X CHEN VELOXIS HRP 503 KS0KTCL800",null,null,null,null,""]
[null,null,null,null,null,null,null,null,null,null,null,null,null,null,null,null,null,null,null,null,null,null,null,null,null,null,null,null,null,null,null,null,"","KS0L430B46",null,"Zimmermann Yr4 NIHUSCEpibios 11 30 20 KS0L430B46 ",null,"Zimmermann Yr4 NIHUSCEpibios 11 30 20 KS0L430B46",null,null,null,null,""]
[null,null,null,null,null,null,null,null,null,null,null,null,null,null,null,null,null,null,null,null,null,null,null,null,null,null,null,null,null,null,null,null,"","KS0LHNIH20",null,"K371c94 MED PSYCH Hinton R01 Vietnam 8 19 3 24 KS0LHNIH20 ",null,"K371c94 MED PSYCH Hinton R01 Vietnam 8 19 3 24 KS0LHNIH20",null,null,null,null,""]
[null,null,null,null,null,null,null,null,null,null,null,null,null,null,null,null,null,null,null,null,null,null,null,null,null,null,null,null,null,null,null,null,"","KS0LHNTNSC",null,"NIENDMAN SOLANO COUNTY LHCN FUNDS KS0LHNTNSC ",null,"NIENDMAN SOLANO COUNTY LHCN FUNDS KS0LHNTNSC",null,null,null,null,""]
[null,null,null,null,null,null,null,null,null,null,null,null,null,null,null,null,null,null,null,null,null,null,null,null,null,null,null,null,null,null,null,null,"","KS0LWJC101",null,"06 30 21 CDPH Alzheimers YR2 Lead Wan KS0LWJC101 ",null,"06 30 21 CDPH Alzheimers YR2 Lead Wan KS0LWJC101",null,null,null,null,""]
[null,null,null,null,null,null,null,null,null,null,null,null,null,null,null,null,null,null,null,null,null,null,null,null,null,null,null,null,null,null,null,null,"","KS0MAGEN01",null,"APPERSON GENENTECH VERISMO 11 29 KS0MAGEN01 ",null,"APPERSON GENENTECH VERISMO 11 29 KS0MAGEN01",null,null,null,null,""]
[null,null,null,null,null,null,null,null,null,null,null,null,null,null,null,null,null,null,null,null,null,null,null,null,null,null,null,null,null,null,null,null,"","KS0MCMYOVA",null,"MED OBGYN MYOVANT MVT 601 050 KS0MCMYOVA ",null,"MED OBGYN MYOVANT MVT 601 050 KS0MCMYOVA",null,null,null,null,""]
[null,null,null,null,null,null,null,null,null,null,null,null,null,null,null,null,null,null,null,null,null,null,null,null,null,null,null,null,null,null,null,null,"","KS0MEHMOHS",null,"OME Hendereson OHSU KS0MEHMOHS ",null,"OME Hendereson OHSU KS0MEHMOHS",null,null,null,null,""]
[null,null,null,null,null,null,null,null,null,null,null,null,null,null,null,null,null,null,null,null,null,null,null,null,null,null,null,null,null,null,null,null,"","KS0MESMCO4",null,"MED OME SERVIS COMPADRE Y4 KS0MESMCO4 ",null,"MED OME SERVIS COMPADRE Y4 KS0MESMCO4",null,null,null,null,""]
[null,null,null,null,null,null,null,null,null,null,null,null,null,null,null,null,null,null,null,null,null,null,null,null,null,null,null,null,null,null,null,null,"","KS0MMPHISW",null,"MALOGOLOWKIN PHI GRANT SPRINGWORKS KS0MMPHISW ",null,"MALOGOLOWKIN PHI GRANT SPRINGWORKS KS0MMPHISW",null,null,null,null,""]
[null,null,null,null,null,null,null,null,null,null,null,null,null,null,null,null,null,null,null,null,null,null,null,null,null,null,null,null,null,null,null,null,"","KS0MPLJ265",null,"01 31 24 NIH R01 Potassium A19 1897 KS0MPLJ265 ",null,"01 31 24 NIH R01 Potassium A19 1897 KS0MPLJ265",null,null,null,null,""]
[null,null,null,null,null,null,null,null,null,null,null,null,null,null,null,null,null,null,null,null,null,null,null,null,null,null,null,null,null,null,null,null,"","KS0MRU0103",null,"ROGAWSKI IM Form Nerve Agent Szrs 05 23 KS0MRU0103 ",null,"ROGAWSKI IM Form Nerve Agent Szrs 05 23 KS0MRU0103",null,null,null,null,""]
[null,null,null,null,null,null,null,null,null,null,null,null,null,null,null,null,null,null,null,null,null,null,null,null,null,null,null,null,null,null,null,null,"","KS0MUMINVI",null,"Umbilical Cord Milking in Non Vigorous Infants (the MINVI Trial)  KS0MUMINVI ",null,"Umbilical Cord Milking in Non Vigorous Infants (the MINVI Trial) KS0MUMINVI",null,null,null,null,""]
[null,null,null,null,null,null,null,null,null,null,null,null,null,null,null,null,null,null,null,null,null,null,null,null,null,null,null,null,null,null,null,null,"","KS0NRAK201",null,"FINA HRSA SCHOLORSHIPS YR2 KS0NRAK201 ",null,"FINA HRSA SCHOLORSHIPS YR2 KS0NRAK201",null,null,null,null,""]
[null,null,null,null,null,null,null,null,null,null,null,null,null,null,null,null,null,null,null,null,null,null,null,null,null,null,null,null,null,null,null,null,"","KS0NRBD215",null,"PHS FINA HOUSING STIPEND PA PROMISE KS0NRBD215 ",null,"PHS FINA HOUSING STIPEND PA PROMISE KS0NRBD215",null,null,null,null,""]
[null,null,null,null,null,null,null,null,null,null,null,null,null,null,null,null,null,null,null,null,null,null,null,null,null,null,null,null,null,null,null,null,"","KS0NRHTSTD",null,"PRE DOCTORAL FELLOWSHIP FAMILY CARE KS0NRHTSTD ",null,"PRE DOCTORAL FELLOWSHIP FAMILY CARE KS0NRHTSTD",null,null,null,null,""]
[null,null,null,null,null,null,null,null,null,null,null,null,null,null,null,null,null,null,null,null,null,null,null,null,null,null,null,null,null,null,null,null,"","KS0NT36F51",null,"QIAGEN SCIENCES LLC A23 3103 SOW3 0 KS0NT36F51 ",null,"QIAGEN SCIENCES LLC A23 3103 SOW3 0 KS0NT36F51",null,null,null,null,""]
[null,null,null,null,null,null,null,null,null,null,null,null,null,null,null,null,null,null,null,null,null,null,null,null,null,null,null,null,null,null,null,null,"","KS0OSFAEB6",null,"MED PHS SATTAYAPIWAT BREAST CANCER F31 KS0OSFAEB6 ",null,"MED PHS SATTAYAPIWAT BREAST CANCER F31 KS0OSFAEB6",null,null,null,null,""]
[null,null,null,null,null,null,null,null,null,null,null,null,null,null,null,null,null,null,null,null,null,null,null,null,null,null,null,null,null,null,null,null,"","KS0PMAJ300",null,"MED IMPM ADAMS DoD MHRF EPACC SC 17 01 KS0PMAJ300 ",null,"MED IMPM ADAMS DoD MHRF EPACC SC 17 01 KS0PMAJ300",null,null,null,null,""]
[null,null,null,null,null,null,null,null,null,null,null,null,null,null,null,null,null,null,null,null,null,null,null,null,null,null,null,null,null,null,null,null,"","KS0PMAT842",null,"MED IMPM ALBERTSON BRISTOLMYERSIM027040 KS0PMAT842 ",null,"MED IMPM ALBERTSON BRISTOLMYERSIM027040 KS0PMAT842",null,null,null,null,""]
[null,null,null,null,null,null,null,null,null,null,null,null,null,null,null,null,null,null,null,null,null,null,null,null,null,null,null,null,null,null,null,null,"","KS0PMKN213",null,"MED IMPM KENYON NIH T32 FINA YR 42 KS0PMKN213 ",null,"MED IMPM KENYON NIH T32 FINA YR 42 KS0PMKN213",null,null,null,null,""]
[null,null,null,null,null,null,null,null,null,null,null,null,null,null,null,null,null,null,null,null,null,null,null,null,null,null,null,null,null,null,null,null,"","KS0PMMB839",null,"MED IMPM MORRISSEY INSMED INC INS1007 30 KS0PMMB839 ",null,"MED IMPM MORRISSEY INSMED INC INS1007 30 KS0PMMB839",null,null,null,null,""]
[null,null,null,null,null,null,null,null,null,null,null,null,null,null,null,null,null,null,null,null,null,null,null,null,null,null,null,null,null,null,null,null,"","KS0PMUTSA1",null,"MAILLARD U of Texas San Antonio 8 31 26 KS0PMUTSA1 ",null,"MAILLARD U of Texas San Antonio 8 31 26 KS0PMUTSA1",null,null,null,null,""]
[null,null,null,null,null,null,null,null,null,null,null,null,null,null,null,null,null,null,null,null,null,null,null,null,null,null,null,null,null,null,null,null,"","KS0RACNIH2",null,"Med Surg Rachael Callcut NIH R01 SUP KS0RACNIH2 ",null,"Med Surg Rachael Callcut NIH R01 SUP KS0RACNIH2",null,null,null,null,""]
[null,null,null,null,null,null,null,null,null,null,null,null,null,null,null,null,null,null,null,null,null,null,null,null,null,null,null,null,null,null,null,null,"","KS0REDDCF1",null,"Roncali DDCF SEED Grant KS0REDDCF1 ",null,"Roncali DDCF SEED Grant KS0REDDCF1",null,null,null,null,""]
[null,null,null,null,null,null,null,null,null,null,null,null,null,null,null,null,null,null,null,null,null,null,null,null,null,null,null,null,null,null,null,null,"","KS0RHRW302",null,"MED IMRH RIDGWAY MEDICAL COLLEGE WIS YR3 KS0RHRW302 ",null,"MED IMRH RIDGWAY MEDICAL COLLEGE WIS YR3 KS0RHRW302",null,null,null,null,""]
[null,null,null,null,null,null,null,null,null,null,null,null,null,null,null,null,null,null,null,null,null,null,null,null,null,null,null,null,null,null,null,null,"","KS0RONRG02",null,"NRG RadOnc Grant KS0RONRG02 ",null,"NRG RadOnc Grant KS0RONRG02",null,null,null,null,""]
[null,null,null,null,null,null,null,null,null,null,null,null,null,null,null,null,null,null,null,null,null,null,null,null,null,null,null,null,null,null,null,null,"","KS0RSFSWE5",null,"MED PHS SCHMIDT EHSCC PPP KS0RSFSWE5 ",null,"MED PHS SCHMIDT EHSCC PPP KS0RSFSWE5",null,null,null,null,""]
[null,null,null,null,null,null,null,null,null,null,null,null,null,null,null,null,null,null,null,null,null,null,null,null,null,null,null,null,null,null,null,null,"","KS0RWFORR3",null,"MED PHS WHITMER UCSF OBSERVATIONAL KS0RWFORR3 ",null,"MED PHS WHITMER UCSF OBSERVATIONAL KS0RWFORR3",null,null,null,null,""]
[null,null,null,null,null,null,null,null,null,null,null,null,null,null,null,null,null,null,null,null,null,null,null,null,null,null,null,null,null,null,null,null,"","KS0SCK2320",null,"CROSSEN NIDDK K23 GRANT KS0SCK2320 ",null,"CROSSEN NIDDK K23 GRANT KS0SCK2320",null,null,null,null,""]
[null,null,null,null,null,null,null,null,null,null,null,null,null,null,null,null,null,null,null,null,null,null,null,null,null,null,null,null,null,null,null,null,"","KS0SFUG301",null,"FARIAS BRAIN HLTH ASMNT UCSF 08 18 KS0SFUG301 ",null,"FARIAS BRAIN HLTH ASMNT UCSF 08 18 KS0SFUG301",null,null,null,null,""]
[null,null,null,null,null,null,null,null,null,null,null,null,null,null,null,null,null,null,null,null,null,null,null,null,null,null,null,null,null,null,null,null,"","KS0SJCRS10",null,"San Joaquin Eval HBI PH Full 10 TC KS0SJCRS10 ",null,"San Joaquin Eval HBI PH Full 10 TC KS0SJCRS10",null,null,null,null,""]
[null,null,null,null,null,null,null,null,null,null,null,null,null,null,null,null,null,null,null,null,null,null,null,null,null,null,null,null,null,null,null,null,"","KS0SMFPMR9",null,"MED PHS MCCURDY CDPH PREV MED RES PGRM KS0SMFPMR9 ",null,"MED PHS MCCURDY CDPH PREV MED RES PGRM KS0SMFPMR9",null,null,null,null,""]
[null,null,null,null,null,null,null,null,null,null,null,null,null,null,null,null,null,null,null,null,null,null,null,null,null,null,null,null,null,null,null,null,"","KS0SPTRUS5",null,"MED OPH PI PARK NEI UG1 RESTRICTED FUNDS KS0SPTRUS5 ",null,"MED OPH PI PARK NEI UG1 RESTRICTED FUNDS KS0SPTRUS5",null,null,null,null,""]
[null,null,null,null,null,null,null,null,null,null,null,null,null,null,null,null,null,null,null,null,null,null,null,null,null,null,null,null,null,null,null,null,"","KS0SSSTATP",null,"K328d84 KS0SSSTATP Med Surg Soman Sen STAT Per patient ",null,"K328d84 KS0SSSTATP Med Surg Soman Sen STAT Per patient",null,null,null,null,""]
[null,null,null,null,null,null,null,null,null,null,null,null,null,null,null,null,null,null,null,null,null,null,null,null,null,null,null,null,null,null,null,null,"","KS0TASK121",null,"NICHD TASK 1 CORE FUNCTIONS KS0TASK121 ",null,"NICHD TASK 1 CORE FUNCTIONS KS0TASK121",null,null,null,null,""]
[null,null,null,null,null,null,null,null,null,null,null,null,null,null,null,null,null,null,null,null,null,null,null,null,null,null,null,null,null,null,null,null,"","KS0TOSKLIF",null,"OYEGBILE CHIDI SK LIFE SCIENCE YKP3089 KS0TOSKLIF ",null,"OYEGBILE CHIDI SK LIFE SCIENCE YKP3089 KS0TOSKLIF",null,null,null,null,""]
[null,null,null,null,null,null,null,null,null,null,null,null,null,null,null,null,null,null,null,null,null,null,null,null,null,null,null,null,null,null,null,null,"","KS0VLWHR02",null,"MED SURG VICTORIA LYO BIRCWH KS0VLWHR02 ",null,"MED SURG VICTORIA LYO BIRCWH KS0VLWHR02",null,null,null,null,""]
[null,null,null,null,null,null,null,null,null,null,null,null,null,null,null,null,null,null,null,null,null,null,null,null,null,null,null,null,null,null,null,null,"","KS0YTASTRD",null,"MED DERM DR TAKADA ASTRID 3 2018 2 2020 KS0YTASTRD ",null,"MED DERM DR TAKADA ASTRID 3 2018 2 2020 KS0YTASTRD",null,null,null,null,""]
[null,null,null,null,null,null,null,null,null,null,null,null,null,null,null,null,null,null,null,null,null,null,null,null,null,null,null,null,null,null,null,null,"","SP0A191430",null,"A191430 SP0A191430 Novel model systems for the study of cone disorders and other heritable retinal diseases ",null,"A191430 SP0A191430 Novel model systems for the study of cone disorders and other heritable retinal diseases",null,null,null,null,""]
[null,null,null,null,null,null,null,null,null,null,null,null,null,null,null,null,null,null,null,null,null,null,null,null,null,null,null,null,null,null,null,null,"","SP0A230798",null,"SP0A230798 CNPRC DIRECTORS OFFICE ",null,"SP0A230798 CNPRC DIRECTORS OFFICE",null,null,null,null,""]
[null,null,null,null,null,null,null,null,null,null,null,null,null,null,null,null,null,null,null,null,null,null,null,null,null,null,null,null,null,null,null,null,"","SP0A232508",null,"A232508 SP0A232508 Discovery of Macromolecular Biomarkers in Exhaled Breath Condensate ",null,"A232508 SP0A232508 Discovery of Macromolecular Biomarkers in Exhaled Breath Condensate",null,null,null,null,""]
[null,null,null,null,null,null,null,null,null,null,null,null,null,null,null,null,null,null,null,null,null,null,null,null,null,null,null,null,null,null,null,null,"","SP0A233396",null,"A233396 SP0A233396 Collaborative Research Agreement ",null,"A233396 SP0A233396 Collaborative Research Agreement",null,null,null,null,""]
[null,null,null,null,null,null,null,null,null,null,null,null,null,null,null,null,null,null,null,null,null,null,null,null,null,null,null,null,null,null,null,null,"","SP0A240186",null,"A240186 SP0A240186 Development of a new integrated drying and aeration method for off-ground harvested almonds ",null,"A240186 SP0A240186 Development of a new integrated drying and aeration method for off-ground harvested almonds",null,null,null,null,""]
[null,null,null,null,null,null,null,null,null,null,null,null,null,null,null,null,null,null,null,null,null,null,null,null,null,null,null,null,null,null,null,null,"","SP0A240755",null,"A240755 SP0A240755 Role of epoxy fatty acids - soluble epoxide hydrolase axis in intestinal mucosal barrier defense. ",null,"A240755 SP0A240755 Role of epoxy fatty acids - soluble epoxide hydrolase axis in intestinal mucosal barrier defense.",null,null,null,null,""]
[null,null,null,null,null,null,null,null,null,null,null,null,null,null,null,null,null,null,null,null,null,null,null,null,null,null,null,null,null,null,null,null,"","SP0A241292",null,"A241292 SP0A241292 UC Davis Renewable Energy Anaerobic Digester Upgrades ",null,"A241292 SP0A241292 UC Davis Renewable Energy Anaerobic Digester Upgrades",null,null,null,null,""]
[null,null,null,null,null,null,null,null,null,null,null,null,null,null,null,null,null,null,null,null,null,null,null,null,null,null,null,null,null,null,null,null,"","SP0A241786",null,"Pilot Proposal: Remote Targeting to Enhance Emergency Preparedness in Urban Haiti ",null,"Pilot Proposal: Remote Targeting to Enhance Emergency Preparedness in Urban Haiti",null,null,null,null,""]
[null,null,null,null,null,null,null,null,null,null,null,null,null,null,null,null,null,null,null,null,null,null,null,null,null,null,null,null,null,null,null,null,"","SP0A242058",null,"A242058 SP0A242058 Evaluation of the antimicrobial efficacy of PulseForge against Salmonella on chicken ",null,"A242058 SP0A242058 Evaluation of the antimicrobial efficacy of PulseForge against Salmonella on chicken",null,null,null,null,""]
[null,null,null,null,null,null,null,null,null,null,null,null,null,null,null,null,null,null,null,null,null,null,null,null,null,null,null,null,null,null,null,null,"","SP0A242342",null,"A242342 SP0A242342 Role of 14-3-3zeta in the regulation of ?-cell endocrine profile ",null,"A242342 SP0A242342 Role of 14-3-3zeta in the regulation of ?-cell endocrine profile",null,null,null,null,""]
[null,null,null,null,null,null,null,null,null,null,null,null,null,null,null,null,null,null,null,null,null,null,null,null,null,null,null,null,null,null,null,null,"","SP0A242523",null,"A242523 SP0A242523 PARTICIPATION IN SMATCH BENCHMARK FOR SEISMIC BASE ISOLATED NUCLEAR POWER PLANT WITH REAL EARTHQUAKE EXPERIENCE ",null,"A242523 SP0A242523 PARTICIPATION IN SMATCH BENCHMARK FOR SEISMIC BASE ISOLATED NUCLEAR POWER PLANT WITH REAL EARTHQUAKE EXPERIENCE",null,null,null,null,""]
[null,null,null,null,null,null,null,null,null,null,null,null,null,null,null,null,null,null,null,null,null,null,null,null,null,null,null,null,null,null,null,null,"","SP0A242808",null,"A242808 SP0A242808 Development of Environmental DNA (eDNA) techniques to monitor entrainment of larval smelt ",null,"A242808 SP0A242808 Development of Environmental DNA (eDNA) techniques to monitor entrainment of larval smelt",null,null,null,null,""]
[null,null,null,null,null,null,null,null,null,null,null,null,null,null,null,null,null,null,null,null,null,null,null,null,null,null,null,null,null,null,null,null,"","SP0A242911",null,"A242911 SP0A242911 TO15: Advanced Image Analysis of Automated Pavement Condition Survey (APCS) Data ",null,"A242911 SP0A242911 TO15: Advanced Image Analysis of Automated Pavement Condition Survey (APCS) Data",null,null,null,null,""]
[null,null,null,null,null,null,null,null,null,null,null,null,null,null,null,null,null,null,null,null,null,null,null,null,null,null,null,null,null,null,null,null,"","SP0A243109",null,"A243109 SP0A243109 IM027068: A Multicenter, Randomized, Double-blind, Placebo-controlled, Phase 3 Study to Evaluate the Efficacy, Safety, and Tolerability of BMS-986278 in Participants with Idiopathic Pulmonary Fibrosis ",null,"A243109 SP0A243109 IM027068: A Multicenter, Randomized, Double-blind, Placebo-controlled, Phase 3 Study to Evaluate the Efficacy, Safety, and Tolerability of BMS-986278 in Participants with Idiopathic Pulmonary Fibrosis",null,null,null,null,""]
[null,null,null,null,null,null,null,null,null,null,null,null,null,null,null,null,null,null,null,null,null,null,null,null,null,null,null,null,null,null,null,null,"","SP0A243226",null,"A243226 SP0A243226 Emulated trial evaluating the effect of mammography screening interval on breast cancer mortality and advanced breast cancer diagnosis by race ethnicity and by menopausal status ",null,"A243226 SP0A243226 Emulated trial evaluating the effect of mammography screening interval on breast cancer mortality and advanced breast cancer diagnosis by race ethnicity and by menopausal status",null,null,null,null,""]
[null,null,null,null,null,null,null,null,null,null,null,null,null,null,null,null,null,null,null,null,null,null,null,null,null,null,null,null,null,null,null,null,"","SP0A243372",null,"A243372 SP0A243372 Increasing publicly available tools for climate-smart seed sourcing and forest restoration ",null,"A243372 SP0A243372 Increasing publicly available tools for climate-smart seed sourcing and forest restoration",null,null,null,null,""]
[null,null,null,null,null,null,null,null,null,null,null,null,null,null,null,null,null,null,null,null,null,null,null,null,null,null,null,null,null,null,null,null,"","SP0A243512",null,"A243512 SP0A243512 COVALENT-103: A Phase 1, open-label, dose-escalation, and dose-expansion study of BMF-500, an oral covalent FLT3 inhibitor, in adults with acute leukemia ",null,"A243512 SP0A243512 COVALENT-103: A Phase 1, open-label, dose-escalation, and dose-expansion study of BMF-500, an oral covalent FLT3 inhibitor, in adults with acute leukemia",null,null,null,null,""]
[null,null,null,null,null,null,null,null,null,null,null,null,null,null,null,null,null,null,null,null,null,null,null,null,null,null,null,null,null,null,null,null,"","SP0A243671",null,"A243671 SP0A243671 Comparing efficacy of two registered atoxigenic strains biocontrol products to reduce aflatoxin contamination and expanding Area-wide Long-term Mycotoxin Management Programs. 3rd year. ",null,"A243671 SP0A243671 Comparing efficacy of two registered atoxigenic strains biocontrol products to reduce aflatoxin contamination and expanding Area-wide Long-term Mycotoxin Management Programs. 3rd year.",null,null,null,null,""]
[null,null,null,null,null,null,null,null,null,null,null,null,null,null,null,null,null,null,null,null,null,null,null,null,null,null,null,null,null,null,null,null,"","SP0A250060",null,"A250060 SP0A250060 CAREER: Quantum Information Theory of Many-body Physics ",null,"A250060 SP0A250060 CAREER: Quantum Information Theory of Many-body Physics",null,null,null,null,""]
[null,null,null,null,null,null,null,null,null,null,null,null,null,null,null,null,null,null,null,null,null,null,null,null,null,null,null,null,null,null,null,null,"","SP0A251182",null,"A251182 SP0A251182 Evaluating the Relationship Between Pistachio Hull Degradation and NOW Egg Deposition ",null,"A251182 SP0A251182 Evaluating the Relationship Between Pistachio Hull Degradation and NOW Egg Deposition",null,null,null,null,""]
[null,null,null,null,null,null,null,null,null,null,null,null,null,null,null,null,null,null,null,null,null,null,null,null,null,null,null,null,null,null,null,null,"","SP0K336F17",null,"University of California Launching Future Leaders in Global Health Research Training Program ",null,"University of California Launching Future Leaders in Global Health Research Training Program",null,null,null,null,""]
[null,null,null,null,null,null,null,null,null,null,null,null,null,null,null,null,null,null,null,null,null,null,null,null,null,null,null,null,null,null,null,null,"","SP0K378F62",null,"SP0K378F62 SUPP TENV NV TOURISM MARKETING SCIENCE CTR ",null,"SP0K378F62 SUPP TENV NV TOURISM MARKETING SCIENCE CTR",null,null,null,null,""]
[null,null,null,null,null,null,null,null,null,null,null,null,null,null,null,null,null,null,null,null,null,null,null,null,null,null,null,null,null,null,null,null,"","SP0X236881",null,"The Imperial Valley College USDA Summer Learning Program with DREC Farm Smart ",null,"The Imperial Valley College USDA Summer Learning Program with DREC Farm Smart",null,null,null,null,""]
[null,null,null,null,null,null,null,null,null,null,null,null,null,null,null,null,null,null,null,null,null,null,null,null,null,null,null,null,null,null,null,null,"","SP0Y236837",null,"SP0Y236837 Climate Change Impact Assessment and Adaption and Mitigation Measures for Major Crops in the Feed the Future Countries ",null,"SP0Y236837 Climate Change Impact Assessment and Adaption and Mitigation Measures for Major Crops in the Feed the Future Countries",null,null,null,null,""]
[null,null,null,null,null,null,null,null,null,null,null,null,null,null,null,null,null,null,null,null,null,null,null,null,null,null,null,null,null,null,null,null,"","SP0Y246991",null,"Y246991 Evaluating new training systems for pistachio ",null,"Y246991 Evaluating new training systems for pistachio",null,null,null,null,""]
[null,null,null,null,null,null,null,null,null,null,null,null,null,null,null,null,null,null,null,null,null,null,null,null,null,null,null,null,null,null,null,null,"","SP1A243102",null,"Determining the Effect of A Novel Topical Lipid Therapy on Tear Film Inflammatory Cytokine Profiles in Dogs with Evaporative Dry Eye Disease ",null,"Determining the Effect of A Novel Topical Lipid Therapy on Tear Film Inflammatory Cytokine Profiles in Dogs with Evaporative Dry Eye Disease",null,null,null,null,""]
[null,null,null,null,null,null,null,null,null,null,null,null,null,null,null,null,null,null,null,null,null,null,null,null,null,null,null,null,null,null,null,null,"","SP1KL84F60",null,"SP1KL84F60 TASK3 WIC FMNP Outreach Innovation and Modernization Evaluation ",null,"SP1KL84F60 TASK3 WIC FMNP Outreach Innovation and Modernization Evaluation",null,null,null,null,""]
[null,null,null,null,null,null,null,null,null,null,null,null,null,null,null,null,null,null,null,null,null,null,null,null,null,null,null,null,null,null,null,null,"","SP4A221463",null,"SP4A221463 - PS HortInnLab Shibia NCSU S028 McGuire ",null,"SP4A221463 - PS HortInnLab Shibia NCSU S028 McGuire",null,null,null,null,""]
[null,null,null,null,null,null,null,null,null,null,null,null,null,null,null,null,null,null,null,null,null,null,null,null,null,null,null,null,null,null,null,null,"","SP5K374D20",null,"SP5K374D20 OREC1 DECARLI ADC P30 CENTER GRANT ",null,"SP5K374D20 OREC1 DECARLI ADC P30 CENTER GRANT",null,null,null,null,""]
[null,null,null,null,null,null,null,null,null,null,null,null,null,null,null,null,null,null,null,null,null,null,null,null,null,null,null,null,null,null,null,null,"","SPFKL81F48",null,"LOS ANGELES: FY24 CURRICULUM CALFRESH ",null,"LOS ANGELES: FY24 CURRICULUM CALFRESH",null,null,null,null,""]
[null,null,null,null,null,null,null,null,null,null,null,null,null,null,null,null,null,null,null,null,null,null,null,null,null,null,null,null,null,null,null,null,"","SPPK379C94",null,"SPPK379C94,UHDMP GBMF NURSE LEADERS INNOVATORS ",null,"SPPK379C94,UHDMP GBMF NURSE LEADERS INNOVATORS",null,null,null,null,""]
[null,null,null,null,null,null,null,null,null,null,null,null,null,null,null,null,null,null,null,null,null,null,null,null,null,null,null,null,null,null,null,null,"","SPZKL81F48",null,"SPZKL81F48 STATE OFFICE: FY24 STENCIL & MURAL PROJECTS CALFRESH ",null,"SPZKL81F48 STATE OFFICE: FY24 STENCIL & MURAL PROJECTS CALFRESH",null,null,null,null,""]
[null,null,null,null,null,null,null,null,null,null,null,null,null,null,null,null,null,null,null,null,null,null,null,null,null,null,null,null,null,null,null,null,"","21305020N1",null,"21305020N1 LFSJ2 Smelt Juvenile System 2 ",null,"21305020N1 LFSJ2 Smelt Juvenile System 2",null,null,null,null,""]
[null,null,null,null,null,null,null,null,null,null,null,null,null,null,null,null,null,null,null,null,null,null,null,null,null,null,null,null,null,null,null,null,"","233005915U",null,"233005915U Optical TSV System ",null,"233005915U Optical TSV System",null,null,null,null,""]
[null,null,null,null,null,null,null,null,null,null,null,null,null,null,null,null,null,null,null,null,null,null,null,null,null,null,null,null,null,null,null,null,"","F9AARE1846",null,"Jeffrey Williams AG And RESOURCE ECONOMICS ANR PPM Only ",null,"Jeffrey Williams AG And RESOURCE ECONOMICS ANR PPM Only",null,null,null,null,""]
[null,null,null,null,null,null,null,null,null,null,null,null,null,null,null,null,null,null,null,null,null,null,null,null,null,null,null,null,null,null,null,null,"","F9AARE3753",null,"Aaron Smith AG And RESOURCE ECONOMICS ANR PPM Only ",null,"Aaron Smith AG And RESOURCE ECONOMICS ANR PPM Only",null,null,null,null,""]
[null,null,null,null,null,null,null,null,null,null,null,null,null,null,null,null,null,null,null,null,null,null,null,null,null,null,null,null,null,null,null,null,"","F9ANUT4482",null,"CASSANDRA NGUYEN NUTRITION ANR PPM Only ",null,"CASSANDRA NGUYEN NUTRITION ANR PPM Only",null,null,null,null,""]
[null,null,null,null,null,null,null,null,null,null,null,null,null,null,null,null,null,null,null,null,null,null,null,null,null,null,null,null,null,null,null,null,"","F9APLS5295",null,"Bradley Hanson PLANT SCIENCES ANR PPM Only ",null,"Bradley Hanson PLANT SCIENCES ANR PPM Only",null,null,null,null,""]
[null,null,null,null,null,null,null,null,null,null,null,null,null,null,null,null,null,null,null,null,null,null,null,null,null,null,null,null,null,null,null,null,"","F9VVME3717",null,"Stanley L Marks VM MEDICINE And EPIDEMIOLOGY ANR PPM Only ",null,"Stanley L Marks VM MEDICINE And EPIDEMIOLOGY ANR PPM Only",null,null,null,null,""]
[null,null,null,null,null,null,null,null,null,null,null,null,null,null,null,null,null,null,null,null,null,null,null,null,null,null,null,null,null,null,null,null,"","FPAANS0325",null,"Thomas Famula ANIMAL SCIENCE PPM Only ",null,"Thomas Famula ANIMAL SCIENCE PPM Only",null,null,null,null,""]
[null,null,null,null,null,null,null,null,null,null,null,null,null,null,null,null,null,null,null,null,null,null,null,null,null,null,null,null,null,null,null,null,"","FPAANS4560",null,"Kristina Horback ANIMAL SCIENCE PPM Only ",null,"Kristina Horback ANIMAL SCIENCE PPM Only",null,null,null,null,""]
[null,null,null,null,null,null,null,null,null,null,null,null,null,null,null,null,null,null,null,null,null,null,null,null,null,null,null,null,null,null,null,null,"","FPAANS8776",null,"Amanda Finger ANIMAL SCIENCE PPM Only ",null,"Amanda Finger ANIMAL SCIENCE PPM Only",null,null,null,null,""]
[null,null,null,null,null,null,null,null,null,null,null,null,null,null,null,null,null,null,null,null,null,null,null,null,null,null,null,null,null,null,null,null,"","FPAARE2464",null,"Mark Agerton AG And RESOURCE ECONOMICS PPM Only ",null,"Mark Agerton AG And RESOURCE ECONOMICS PPM Only",null,null,null,null,""]
[null,null,null,null,null,null,null,null,null,null,null,null,null,null,null,null,null,null,null,null,null,null,null,null,null,null,null,null,null,null,null,null,"","FPABAE1288",null,"Alireza Pourreza BIOLOGICAL And AG ENGINEERING PPM Only ",null,"Alireza Pourreza BIOLOGICAL And AG ENGINEERING PPM Only",null,null,null,null,""]
[null,null,null,null,null,null,null,null,null,null,null,null,null,null,null,null,null,null,null,null,null,null,null,null,null,null,null,null,null,null,null,null,"","FPACHE0539",null,"Jonathan London HUMAN ECOLOGY PPM Only ",null,"Jonathan London HUMAN ECOLOGY PPM Only",null,null,null,null,""]
[null,null,null,null,null,null,null,null,null,null,null,null,null,null,null,null,null,null,null,null,null,null,null,null,null,null,null,null,null,null,null,null,"","FPAENM1073",null,"Mary Flint ENTOMOLOGY NEMATOLOGY PPM Only ",null,"Mary Flint ENTOMOLOGY NEMATOLOGY PPM Only",null,null,null,null,""]
[null,null,null,null,null,null,null,null,null,null,null,null,null,null,null,null,null,null,null,null,null,null,null,null,null,null,null,null,null,null,null,null,"","FPAENM2517",null,"Elina Nino ENTOMOLOGY NEMATOLOGY PPM Only ",null,"Elina Nino ENTOMOLOGY NEMATOLOGY PPM Only",null,null,null,null,""]
[null,null,null,null,null,null,null,null,null,null,null,null,null,null,null,null,null,null,null,null,null,null,null,null,null,null,null,null,null,null,null,null,"","FPAETX5347",null,"Christina Pasparakis ENVIRONMENTAL TOXICOLOGY PPM Only ",null,"Christina Pasparakis ENVIRONMENTAL TOXICOLOGY PPM Only",null,null,null,null,""]
[null,null,null,null,null,null,null,null,null,null,null,null,null,null,null,null,null,null,null,null,null,null,null,null,null,null,null,null,null,null,null,null,"","FPAFST1618",null,"Luxin Wang FOOD SCIENCE And TECHNOLOGY PPM Only ",null,"Luxin Wang FOOD SCIENCE And TECHNOLOGY PPM Only",null,null,null,null,""]
[null,null,null,null,null,null,null,null,null,null,null,null,null,null,null,null,null,null,null,null,null,null,null,null,null,null,null,null,null,null,null,null,"","FPAHCE1400",null,"Ryan Galt HUMAN ECOLOGY PPM Only ",null,"Ryan Galt HUMAN ECOLOGY PPM Only",null,null,null,null,""]
[null,null,null,null,null,null,null,null,null,null,null,null,null,null,null,null,null,null,null,null,null,null,null,null,null,null,null,null,null,null,null,null,"","FPAHCE3708",null,"Heath Massey HUMAN ECOLOGY PPM Only ",null,"Heath Massey HUMAN ECOLOGY PPM Only",null,null,null,null,""]
[null,null,null,null,null,null,null,null,null,null,null,null,null,null,null,null,null,null,null,null,null,null,null,null,null,null,null,null,null,null,null,null,"","FPALAW0088",null,"Rebecca Hernandez LAND AIR And WATER RESOURCES PPM Only ",null,"Rebecca Hernandez LAND AIR And WATER RESOURCES PPM Only",null,null,null,null,""]
[null,null,null,null,null,null,null,null,null,null,null,null,null,null,null,null,null,null,null,null,null,null,null,null,null,null,null,null,null,null,null,null,"","FPALAW3560",null,"Ann Dillner LAND AIR And WATER RESOURCES PPM Only ",null,"Ann Dillner LAND AIR And WATER RESOURCES PPM Only",null,null,null,null,""]
[null,null,null,null,null,null,null,null,null,null,null,null,null,null,null,null,null,null,null,null,null,null,null,null,null,null,null,null,null,null,null,null,"","FPALAW5228",null,"Victor Claassen LAND AIR and WATER RESOURCES PPM only ",null,"Victor Claassen LAND AIR and WATER RESOURCES PPM only",null,null,null,null,""]
[null,null,null,null,null,null,null,null,null,null,null,null,null,null,null,null,null,null,null,null,null,null,null,null,null,null,null,null,null,null,null,null,"","FPANUT5039",null,"Carolyn Slupsky NUTRITION PPM Only ",null,"Carolyn Slupsky NUTRITION PPM Only",null,null,null,null,""]
[null,null,null,null,null,null,null,null,null,null,null,null,null,null,null,null,null,null,null,null,null,null,null,null,null,null,null,null,null,null,null,null,"","FPAPLS0425",null,"Thomas Gradziel PLANT SCIENCES PPM Only ",null,"Thomas Gradziel PLANT SCIENCES PPM Only",null,null,null,null,""]
[null,null,null,null,null,null,null,null,null,null,null,null,null,null,null,null,null,null,null,null,null,null,null,null,null,null,null,null,null,null,null,null,"","FPAPLS2082",null,"Amelie Gaudin PLANT SCIENCES PPM Only ",null,"Amelie Gaudin PLANT SCIENCES PPM Only",null,null,null,null,""]
[null,null,null,null,null,null,null,null,null,null,null,null,null,null,null,null,null,null,null,null,null,null,null,null,null,null,null,null,null,null,null,null,"","FPAPLS2858",null,"Matthew Gilbert PLANT SCIENCES PPM Only ",null,"Matthew Gilbert PLANT SCIENCES PPM Only",null,null,null,null,""]
[null,null,null,null,null,null,null,null,null,null,null,null,null,null,null,null,null,null,null,null,null,null,null,null,null,null,null,null,null,null,null,null,"","FPAPLS5552",null,"Robert Walsh PLANT SCIENCES PPM Only ",null,"Robert Walsh PLANT SCIENCES PPM Only",null,null,null,null,""]
[null,null,null,null,null,null,null,null,null,null,null,null,null,null,null,null,null,null,null,null,null,null,null,null,null,null,null,null,null,null,null,null,"","FPAPPA3876",null,"Krishna Subbarao PLANT PATHOLOGY PPM Only ",null,"Krishna Subbarao PLANT PATHOLOGY PPM Only",null,null,null,null,""]
[null,null,null,null,null,null,null,null,null,null,null,null,null,null,null,null,null,null,null,null,null,null,null,null,null,null,null,null,null,null,null,null,"","FPAPPA4520",null,"Mysore Sudarshana PLANT PATHOLOGY PPM Only ",null,"Mysore Sudarshana PLANT PATHOLOGY PPM Only",null,null,null,null,""]
[null,null,null,null,null,null,null,null,null,null,null,null,null,null,null,null,null,null,null,null,null,null,null,null,null,null,null,null,null,null,null,null,"","FPBALESKAR",null,"CNPRC: FACULTY PROJECT / K. BALES ",null,"CNPRC: FACULTY PROJECT / K. BALES",null,null,null,null,""]
[null,null,null,null,null,null,null,null,null,null,null,null,null,null,null,null,null,null,null,null,null,null,null,null,null,null,null,null,null,null,null,null,"","FPBCNS3453",null,"Tsung Yu Chen Center for Neuroscience PPM Only ",null,"Tsung Yu Chen Center for Neuroscience PPM Only",null,null,null,null,""]
[null,null,null,null,null,null,null,null,null,null,null,null,null,null,null,null,null,null,null,null,null,null,null,null,null,null,null,null,null,null,null,null,"","FPBEVE2881",null,"Johanna Schmitt EVOLUTION And ECOLOGY PPM Only ",null,"Johanna Schmitt EVOLUTION And ECOLOGY PPM Only",null,null,null,null,""]
[null,null,null,null,null,null,null,null,null,null,null,null,null,null,null,null,null,null,null,null,null,null,null,null,null,null,null,null,null,null,null,null,"","FPBGEN1160",null,"Jonathan Eisen Genome Center PPM Only ",null,"Jonathan Eisen Genome Center PPM Only",null,null,null,null,""]
[null,null,null,null,null,null,null,null,null,null,null,null,null,null,null,null,null,null,null,null,null,null,null,null,null,null,null,null,null,null,null,null,"","FPBMCB2256",null,"Richard Nuccitelli MOLECULAR And CELLULAR BIO PPM Only ",null,"Richard Nuccitelli MOLECULAR And CELLULAR BIO PPM Only",null,null,null,null,""]
[null,null,null,null,null,null,null,null,null,null,null,null,null,null,null,null,null,null,null,null,null,null,null,null,null,null,null,null,null,null,null,null,"","FPBMCB4832",null,"Peter Armstrong MOLECULAR And CELLULAR BIO PPM Only ",null,"Peter Armstrong MOLECULAR And CELLULAR BIO PPM Only",null,null,null,null,""]
[null,null,null,null,null,null,null,null,null,null,null,null,null,null,null,null,null,null,null,null,null,null,null,null,null,null,null,null,null,null,null,null,"","FPBNPB0102",null,"Natalia Caporale NEURO PHYSIO And BEHAVIOR PPM Only ",null,"Natalia Caporale NEURO PHYSIO And BEHAVIOR PPM Only",null,null,null,null,""]
[null,null,null,null,null,null,null,null,null,null,null,null,null,null,null,null,null,null,null,null,null,null,null,null,null,null,null,null,null,null,null,null,"","FPBNPB3412",null,"Kenneth Britten NEURO PHYSIO And BEHAVIOR PPM Only ",null,"Kenneth Britten NEURO PHYSIO And BEHAVIOR PPM Only",null,null,null,null,""]
[null,null,null,null,null,null,null,null,null,null,null,null,null,null,null,null,null,null,null,null,null,null,null,null,null,null,null,null,null,null,null,null,"","FPBPLB1250",null,"Siobhan Brady PLANT BIOLOGY PPM Only ",null,"Siobhan Brady PLANT BIOLOGY PPM Only",null,null,null,null,""]
[null,null,null,null,null,null,null,null,null,null,null,null,null,null,null,null,null,null,null,null,null,null,null,null,null,null,null,null,null,null,null,null,"","FPCCMP6044",null,"Morgan Doran UCCE CAPITOL CORRIDOR MCP PPM ONLY ",null,"Morgan Doran UCCE CAPITOL CORRIDOR MCP PPM ONLY",null,null,null,null,""]
[null,null,null,null,null,null,null,null,null,null,null,null,null,null,null,null,null,null,null,null,null,null,null,null,null,null,null,null,null,null,null,null,"","FPCHPR9932",null,"Department Funding- Desiree Backman ",null,"Department Funding- Desiree Backman",null,null,null,null,""]
[null,null,null,null,null,null,null,null,null,null,null,null,null,null,null,null,null,null,null,null,null,null,null,null,null,null,null,null,null,null,null,null,"","FPDEDU0082",null,"Jennifer Higgs EDUCATION PPM Only ",null,"Jennifer Higgs EDUCATION PPM Only",null,null,null,null,""]
[null,null,null,null,null,null,null,null,null,null,null,null,null,null,null,null,null,null,null,null,null,null,null,null,null,null,null,null,null,null,null,null,"","FPDEDU3278",null,"Elizabeth Montano EDUCATION PPM Only ",null,"Elizabeth Montano EDUCATION PPM Only",null,null,null,null,""]
[null,null,null,null,null,null,null,null,null,null,null,null,null,null,null,null,null,null,null,null,null,null,null,null,null,null,null,null,null,null,null,null,"","FPDEDU4585",null,"Sophia Mattingly EDUCATION PPM Only ",null,"Sophia Mattingly EDUCATION PPM Only",null,null,null,null,""]
[null,null,null,null,null,null,null,null,null,null,null,null,null,null,null,null,null,null,null,null,null,null,null,null,null,null,null,null,null,null,null,null,"","FPEBME0848",null,"Alyssa Panitch BIOMEDICAL ENGINEERING PPM Only ",null,"Alyssa Panitch BIOMEDICAL ENGINEERING PPM Only",null,null,null,null,""]
[null,null,null,null,null,null,null,null,null,null,null,null,null,null,null,null,null,null,null,null,null,null,null,null,null,null,null,null,null,null,null,null,"","FPEBME3004",null,"Sun Il Kwon EBME PPM ONLY ",null,"Sun Il Kwon EBME PPM ONLY",null,null,null,null,""]
[null,null,null,null,null,null,null,null,null,null,null,null,null,null,null,null,null,null,null,null,null,null,null,null,null,null,null,null,null,null,null,null,"","FPECEE2801",null,"Mark Modera CIVIL And ENVIRONMENTAL ENGR PPM Only ",null,"Mark Modera CIVIL And ENVIRONMENTAL ENGR PPM Only",null,null,null,null,""]
[null,null,null,null,null,null,null,null,null,null,null,null,null,null,null,null,null,null,null,null,null,null,null,null,null,null,null,null,null,null,null,null,"","FPECHE2394",null,"Tonya Kuhl CHEMICAL ENGINEERING PPM Only ",null,"Tonya Kuhl CHEMICAL ENGINEERING PPM Only",null,null,null,null,""]
[null,null,null,null,null,null,null,null,null,null,null,null,null,null,null,null,null,null,null,null,null,null,null,null,null,null,null,null,null,null,null,null,"","FPECHM1971",null,"Troy Topping MATERIALS SCIENCE And ENGINEERING PPM Only ",null,"Troy Topping MATERIALS SCIENCE And ENGINEERING PPM Only",null,null,null,null,""]
[null,null,null,null,null,null,null,null,null,null,null,null,null,null,null,null,null,null,null,null,null,null,null,null,null,null,null,null,null,null,null,null,"","FPECSE0681",null,"Kwan Liu Ma ENGR COMPUTER SCIENCE PPM Only ",null,"Kwan Liu Ma ENGR COMPUTER SCIENCE PPM Only",null,null,null,null,""]
[null,null,null,null,null,null,null,null,null,null,null,null,null,null,null,null,null,null,null,null,null,null,null,null,null,null,null,null,null,null,null,null,"","FPECSE4793",null,"Vladimir Filkov ENGR COMPUTER SCIENCE PPM Only ",null,"Vladimir Filkov ENGR COMPUTER SCIENCE PPM Only",null,null,null,null,""]
[null,null,null,null,null,null,null,null,null,null,null,null,null,null,null,null,null,null,null,null,null,null,null,null,null,null,null,null,null,null,null,null,"","FPEDNT3603",null,"Rebecca Schmidt MED Division of Epidemiology PPM Only ",null,"Rebecca Schmidt MED Division of Epidemiology PPM Only",null,null,null,null,""]
[null,null,null,null,null,null,null,null,null,null,null,null,null,null,null,null,null,null,null,null,null,null,null,null,null,null,null,null,null,null,null,null,"","FPEECE1037",null,"Jeremy Munday ELECT And COMP ENGR PPM Only ",null,"Jeremy Munday ELECT And COMP ENGR PPM Only",null,null,null,null,""]
[null,null,null,null,null,null,null,null,null,null,null,null,null,null,null,null,null,null,null,null,null,null,null,null,null,null,null,null,null,null,null,null,"","FPEECE5482",null,"Neil A Jacklin ELECT And COMP ENGR PPM Only ",null,"Neil A Jacklin ELECT And COMP ENGR PPM Only",null,null,null,null,""]
[null,null,null,null,null,null,null,null,null,null,null,null,null,null,null,null,null,null,null,null,null,null,null,null,null,null,null,null,null,null,null,null,"","FPEMAE0575",null,"Vinod Narayanan MECHANICAL And AEROSPACE ENGR PPM Only ",null,"Vinod Narayanan MECHANICAL And AEROSPACE ENGR PPM Only",null,null,null,null,""]
[null,null,null,null,null,null,null,null,null,null,null,null,null,null,null,null,null,null,null,null,null,null,null,null,null,null,null,null,null,null,null,null,"","FPFMCP0196",null,"Richard Coviello UCCE FRESNO MADERA MCP PPM Only ",null,"Richard Coviello UCCE FRESNO MADERA MCP PPM Only",null,null,null,null,""]
[null,null,null,null,null,null,null,null,null,null,null,null,null,null,null,null,null,null,null,null,null,null,null,null,null,null,null,null,null,null,null,null,"","FPGSM10620",null,"Michael Palazzolo GRADUATE SCHOOL OF MANAGEMENT PPM Only ",null,"Michael Palazzolo GRADUATE SCHOOL OF MANAGEMENT PPM Only",null,null,null,null,""]
[null,null,null,null,null,null,null,null,null,null,null,null,null,null,null,null,null,null,null,null,null,null,null,null,null,null,null,null,null,null,null,null,"","FPGSM13625",null,"Richard Castanias GRADUATE SCHOOL OF MANAGEMENT PPM Only ",null,"Richard Castanias GRADUATE SCHOOL OF MANAGEMENT PPM Only",null,null,null,null,""]
[null,null,null,null,null,null,null,null,null,null,null,null,null,null,null,null,null,null,null,null,null,null,null,null,null,null,null,null,null,null,null,null,"","FPGSM15669",null,"Guruprasad Pundoor GRADUATE SCHOOL OF MANAGEMENT PPM Only ",null,"Guruprasad Pundoor GRADUATE SCHOOL OF MANAGEMENT PPM Only",null,null,null,null,""]
[null,null,null,null,null,null,null,null,null,null,null,null,null,null,null,null,null,null,null,null,null,null,null,null,null,null,null,null,null,null,null,null,"","FPHUMB6206",null,"Jeffery Stackhouse UCCE HUMBOLDT PPM ONLY ",null,"Jeffery Stackhouse UCCE HUMBOLDT PPM ONLY",null,null,null,null,""]
[null,null,null,null,null,null,null,null,null,null,null,null,null,null,null,null,null,null,null,null,null,null,null,null,null,null,null,null,null,null,null,null,"","FPIMCA1656",null,"Ian Chan MED INT MED CARDIOLOGY PPM Only ",null,"Ian Chan MED INT MED CARDIOLOGY PPM Only",null,null,null,null,""]
[null,null,null,null,null,null,null,null,null,null,null,null,null,null,null,null,null,null,null,null,null,null,null,null,null,null,null,null,null,null,null,null,"","FPIMCT1371",null,"Naseem Esteghamat Med Int Med HMCTBMT PPM Only ",null,"Naseem Esteghamat Med Int Med HMCTBMT PPM Only",null,null,null,null,""]
[null,null,null,null,null,null,null,null,null,null,null,null,null,null,null,null,null,null,null,null,null,null,null,null,null,null,null,null,null,null,null,null,"","FPIMEN2144",null,"Siddika Karakas MED Int Med Endocrinology PPM Only ",null,"Siddika Karakas MED Int Med Endocrinology PPM Only",null,null,null,null,""]
[null,null,null,null,null,null,null,null,null,null,null,null,null,null,null,null,null,null,null,null,null,null,null,null,null,null,null,null,null,null,null,null,"","FPIMGI2965",null,"Amar Al Juburi MED Int Med Gastroenterology PPM Only ",null,"Amar Al Juburi MED Int Med Gastroenterology PPM Only",null,null,null,null,""]
[null,null,null,null,null,null,null,null,null,null,null,null,null,null,null,null,null,null,null,null,null,null,null,null,null,null,null,null,null,null,null,null,"","FPIMGIX087",null,"ALEX ZHORNITSKIY MED INT MED GASTROENTEROLOGY PPM Only ",null,"ALEX ZHORNITSKIY MED INT MED GASTROENTEROLOGY PPM Only",null,null,null,null,""]
[null,null,null,null,null,null,null,null,null,null,null,null,null,null,null,null,null,null,null,null,null,null,null,null,null,null,null,null,null,null,null,null,"","FPIMGM4292",null,"Helene Margolis MED Int Med Genl Medicine PPM Only ",null,"Helene Margolis MED Int Med Genl Medicine PPM Only",null,null,null,null,""]
[null,null,null,null,null,null,null,null,null,null,null,null,null,null,null,null,null,null,null,null,null,null,null,null,null,null,null,null,null,null,null,null,"","FPIMHO1299",null,"Jonathan Ducore MED Int Med HEMONC PPM Only ",null,"Jonathan Ducore MED Int Med HEMONC PPM Only",null,null,null,null,""]
[null,null,null,null,null,null,null,null,null,null,null,null,null,null,null,null,null,null,null,null,null,null,null,null,null,null,null,null,null,null,null,null,"","FPIMHO4201",null,"Andrea A Iannucci MED Int Med HEMONC PPM Only ",null,"Andrea A Iannucci MED Int Med HEMONC PPM Only",null,null,null,null,""]
[null,null,null,null,null,null,null,null,null,null,null,null,null,null,null,null,null,null,null,null,null,null,null,null,null,null,null,null,null,null,null,null,"","FPIMHP3245",null,"Oliver J Hentschel MED Int Med Hospitalist PPM Only ",null,"Oliver J Hentschel MED Int Med Hospitalist PPM Only",null,null,null,null,""]
[null,null,null,null,null,null,null,null,null,null,null,null,null,null,null,null,null,null,null,null,null,null,null,null,null,null,null,null,null,null,null,null,"","FPIMHP4264",null,"Mooklan S Iglowitz MED Int Med Hospitalist PPM Only ",null,"Mooklan S Iglowitz MED Int Med Hospitalist PPM Only",null,null,null,null,""]
[null,null,null,null,null,null,null,null,null,null,null,null,null,null,null,null,null,null,null,null,null,null,null,null,null,null,null,null,null,null,null,null,"","FPIMHP6344",null,"Conan Liu MED Int Med Hospitalist PPM Only ",null,"Conan Liu MED Int Med Hospitalist PPM Only",null,null,null,null,""]
[null,null,null,null,null,null,null,null,null,null,null,null,null,null,null,null,null,null,null,null,null,null,null,null,null,null,null,null,null,null,null,null,"","FPIMIDX013",null,"Malik Darwish MED Int Med Infectious Diseases PPM Only ",null,"Malik Darwish MED Int Med Infectious Diseases PPM Only",null,null,null,null,""]
[null,null,null,null,null,null,null,null,null,null,null,null,null,null,null,null,null,null,null,null,null,null,null,null,null,null,null,null,null,null,null,null,"","FPIMNE4350",null,"Robert Weiss MED Int Med Nephrology PPM Only ",null,"Robert Weiss MED Int Med Nephrology PPM Only",null,null,null,null,""]
[null,null,null,null,null,null,null,null,null,null,null,null,null,null,null,null,null,null,null,null,null,null,null,null,null,null,null,null,null,null,null,null,"","FPIMPM5394",null,"Namita Sood MED Int Med Pulmonary PPM Only ",null,"Namita Sood MED Int Med Pulmonary PPM Only",null,null,null,null,""]
[null,null,null,null,null,null,null,null,null,null,null,null,null,null,null,null,null,null,null,null,null,null,null,null,null,null,null,null,null,null,null,null,"","FPIMRH0959",null,"Barton Wise MED Int Med Rheumatology PPM Only ",null,"Barton Wise MED Int Med Rheumatology PPM Only",null,null,null,null,""]
[null,null,null,null,null,null,null,null,null,null,null,null,null,null,null,null,null,null,null,null,null,null,null,null,null,null,null,null,null,null,null,null,"","FPKACP6001",null,"Khaled Bali KEARNEY AGRICULTURAL CNTR PPM ONLY ",null,"Khaled Bali KEARNEY AGRICULTURAL CNTR PPM ONLY",null,null,null,null,""]
[null,null,null,null,null,null,null,null,null,null,null,null,null,null,null,null,null,null,null,null,null,null,null,null,null,null,null,null,null,null,null,null,"","FPKERN6055",null,"Julie Finzel UCCE KERN COUNTY PPM ONLY ",null,"Julie Finzel UCCE KERN COUNTY PPM ONLY",null,null,null,null,""]
[null,null,null,null,null,null,null,null,null,null,null,null,null,null,null,null,null,null,null,null,null,null,null,null,null,null,null,null,null,null,null,null,"","FPLANT3548",null,"Damien Caillaud ANTHROPOLOGY PPM Only ",null,"Damien Caillaud ANTHROPOLOGY PPM Only",null,null,null,null,""]
[null,null,null,null,null,null,null,null,null,null,null,null,null,null,null,null,null,null,null,null,null,null,null,null,null,null,null,null,null,null,null,null,"","FPLANT3737",null,"Tarik Elhaik ANTHROPOLOGY PPM Only ",null,"Tarik Elhaik ANTHROPOLOGY PPM Only",null,null,null,null,""]
[null,null,null,null,null,null,null,null,null,null,null,null,null,null,null,null,null,null,null,null,null,null,null,null,null,null,null,null,null,null,null,null,"","FPLCDM3749",null,"Stephanie Boluk CINEMA And DIGITAL MEDIA PPM Only ",null,"Stephanie Boluk CINEMA And DIGITAL MEDIA PPM Only",null,null,null,null,""]
[null,null,null,null,null,null,null,null,null,null,null,null,null,null,null,null,null,null,null,null,null,null,null,null,null,null,null,null,null,null,null,null,"","FPLCHI0830",null,"Sergio De La Mora CHICANO STUDIES PPM Only ",null,"Sergio De La Mora CHICANO STUDIES PPM Only",null,null,null,null,""]
[null,null,null,null,null,null,null,null,null,null,null,null,null,null,null,null,null,null,null,null,null,null,null,null,null,null,null,null,null,null,null,null,"","FPLCLA2710",null,"Carey Seal CLASSICS PPM Only ",null,"Carey Seal CLASSICS PPM Only",null,null,null,null,""]
[null,null,null,null,null,null,null,null,null,null,null,null,null,null,null,null,null,null,null,null,null,null,null,null,null,null,null,null,null,null,null,null,"","FPLCMN5811",null,"Soojong Kim COMMUNICATION PPM Only ",null,"Soojong Kim COMMUNICATION PPM Only",null,null,null,null,""]
[null,null,null,null,null,null,null,null,null,null,null,null,null,null,null,null,null,null,null,null,null,null,null,null,null,null,null,null,null,null,null,null,"","FPLCOM5057",null,"Michiko Suzuki COMPARATIVE LITERATURE PPM Only ",null,"Michiko Suzuki COMPARATIVE LITERATURE PPM Only",null,null,null,null,""]
[null,null,null,null,null,null,null,null,null,null,null,null,null,null,null,null,null,null,null,null,null,null,null,null,null,null,null,null,null,null,null,null,"","FPLDRA0537",null,"Lawrence Bogad THEATRE And DANCE PPM Only ",null,"Lawrence Bogad THEATRE And DANCE PPM Only",null,null,null,null,""]
[null,null,null,null,null,null,null,null,null,null,null,null,null,null,null,null,null,null,null,null,null,null,null,null,null,null,null,null,null,null,null,null,"","FPLEAL1934",null,"Donald Gibbs EAST ASIAN LANG And CULTURES PPM Only ",null,"Donald Gibbs EAST ASIAN LANG And CULTURES PPM Only",null,null,null,null,""]
[null,null,null,null,null,null,null,null,null,null,null,null,null,null,null,null,null,null,null,null,null,null,null,null,null,null,null,null,null,null,null,null,"","FPLECN2520",null,"Kevin Salyer ECONOMICS PPM Only ",null,"Kevin Salyer ECONOMICS PPM Only",null,null,null,null,""]
[null,null,null,null,null,null,null,null,null,null,null,null,null,null,null,null,null,null,null,null,null,null,null,null,null,null,null,null,null,null,null,null,"","FPLENL0014",null,"Dana Badley III ENGLISH PPM Only ",null,"Dana Badley III ENGLISH PPM Only",null,null,null,null,""]
[null,null,null,null,null,null,null,null,null,null,null,null,null,null,null,null,null,null,null,null,null,null,null,null,null,null,null,null,null,null,null,null,"","FPLENL2307",null,"Clarence Major ENGLISH PPM Only ",null,"Clarence Major ENGLISH PPM Only",null,null,null,null,""]
[null,null,null,null,null,null,null,null,null,null,null,null,null,null,null,null,null,null,null,null,null,null,null,null,null,null,null,null,null,null,null,null,"","FPLEPS0914",null,"Ryosuke Motani EARTH And PLANETARY SCIENCES PPM Only ",null,"Ryosuke Motani EARTH And PLANETARY SCIENCES PPM Only",null,null,null,null,""]
[null,null,null,null,null,null,null,null,null,null,null,null,null,null,null,null,null,null,null,null,null,null,null,null,null,null,null,null,null,null,null,null,"","FPLEPS2563",null,"Geerat Vermeij EARTH And PLANETARY SCIENCES PPM Only ",null,"Geerat Vermeij EARTH And PLANETARY SCIENCES PPM Only",null,null,null,null,""]
[null,null,null,null,null,null,null,null,null,null,null,null,null,null,null,null,null,null,null,null,null,null,null,null,null,null,null,null,null,null,null,null,"","FPLGMC4985",null,"GIOVANNI PERI GLOBAL MIGRATION CENTER PPM ONLY ",null,"GIOVANNI PERI GLOBAL MIGRATION CENTER PPM ONLY",null,null,null,null,""]
[null,null,null,null,null,null,null,null,null,null,null,null,null,null,null,null,null,null,null,null,null,null,null,null,null,null,null,null,null,null,null,null,"","FPLGSW3697",null,"Joanna Regulska GENDERSEXUALITY and WOMENS STUDIES PPM Only ",null,"Joanna Regulska GENDERSEXUALITY and WOMENS STUDIES PPM Only",null,null,null,null,""]
[null,null,null,null,null,null,null,null,null,null,null,null,null,null,null,null,null,null,null,null,null,null,null,null,null,null,null,null,null,null,null,null,"","FPLHIS5041",null,"Louis Warren HISTORY PPM Only ",null,"Louis Warren HISTORY PPM Only",null,null,null,null,""]
[null,null,null,null,null,null,null,null,null,null,null,null,null,null,null,null,null,null,null,null,null,null,null,null,null,null,null,null,null,null,null,null,"","FPLLAW0112",null,"Ashutosh A Bhagwat SCHOOL OF LAW PPM Only ",null,"Ashutosh A Bhagwat SCHOOL OF LAW PPM Only",null,null,null,null,""]
[null,null,null,null,null,null,null,null,null,null,null,null,null,null,null,null,null,null,null,null,null,null,null,null,null,null,null,null,null,null,null,null,"","FPLLAW0399",null,"E Rabin SCHOOL OF LAW PPM Only ",null,"E Rabin SCHOOL OF LAW PPM Only",null,null,null,null,""]
[null,null,null,null,null,null,null,null,null,null,null,null,null,null,null,null,null,null,null,null,null,null,null,null,null,null,null,null,null,null,null,null,"","FPLLAW3986",null,"John Oakley SCHOOL OF LAW PPM Only ",null,"John Oakley SCHOOL OF LAW PPM Only",null,null,null,null,""]
[null,null,null,null,null,null,null,null,null,null,null,null,null,null,null,null,null,null,null,null,null,null,null,null,null,null,null,null,null,null,null,null,"","FPLLAW5416",null,"Richard Sakai SCHOOL OF LAW PPM Only ",null,"Richard Sakai SCHOOL OF LAW PPM Only",null,null,null,null,""]
[null,null,null,null,null,null,null,null,null,null,null,null,null,null,null,null,null,null,null,null,null,null,null,null,null,null,null,null,null,null,null,null,"","FPLMAT0305",null,"Becca Thomases MATHEMATICS PPM Only ",null,"Becca Thomases MATHEMATICS PPM Only",null,null,null,null,""]
[null,null,null,null,null,null,null,null,null,null,null,null,null,null,null,null,null,null,null,null,null,null,null,null,null,null,null,null,null,null,null,null,"","FPLMAT1916",null,"David Barnette MATHEMATICS PPM Only ",null,"David Barnette MATHEMATICS PPM Only",null,null,null,null,""]
[null,null,null,null,null,null,null,null,null,null,null,null,null,null,null,null,null,null,null,null,null,null,null,null,null,null,null,null,null,null,null,null,"","FPLMAT4810",null,"Donald Chakerian MATHEMATICS PPM Only ",null,"Donald Chakerian MATHEMATICS PPM Only",null,null,null,null,""]
[null,null,null,null,null,null,null,null,null,null,null,null,null,null,null,null,null,null,null,null,null,null,null,null,null,null,null,null,null,null,null,null,"","FPLMIL5462",null,"Nathan Rolls MILITARY SCIENCE PPM Only ",null,"Nathan Rolls MILITARY SCIENCE PPM Only",null,null,null,null,""]
[null,null,null,null,null,null,null,null,null,null,null,null,null,null,null,null,null,null,null,null,null,null,null,null,null,null,null,null,null,null,null,null,"","FPLMUS3062",null,"Carol Hess MUSIC PPM Only ",null,"Carol Hess MUSIC PPM Only",null,null,null,null,""]
[null,null,null,null,null,null,null,null,null,null,null,null,null,null,null,null,null,null,null,null,null,null,null,null,null,null,null,null,null,null,null,null,"","FPLNAS2544",null,"Victor Montejo NATIVE AMERICAN STUDIES PPM Only ",null,"Victor Montejo NATIVE AMERICAN STUDIES PPM Only",null,null,null,null,""]
[null,null,null,null,null,null,null,null,null,null,null,null,null,null,null,null,null,null,null,null,null,null,null,null,null,null,null,null,null,null,null,null,"","FPLPHI2008",null,"Robert Cummins PHILOSOPHY PPM Only ",null,"Robert Cummins PHILOSOPHY PPM Only",null,null,null,null,""]
[null,null,null,null,null,null,null,null,null,null,null,null,null,null,null,null,null,null,null,null,null,null,null,null,null,null,null,null,null,null,null,null,"","FPLPHY1646",null,"Douglas Mccolm PHYSICS PPM Only ",null,"Douglas Mccolm PHYSICS PPM Only",null,null,null,null,""]
[null,null,null,null,null,null,null,null,null,null,null,null,null,null,null,null,null,null,null,null,null,null,null,null,null,null,null,null,null,null,null,null,"","FPLPHY3045",null,"Robert Svoboda PHYSICS PPM Only ",null,"Robert Svoboda PHYSICS PPM Only",null,null,null,null,""]
[null,null,null,null,null,null,null,null,null,null,null,null,null,null,null,null,null,null,null,null,null,null,null,null,null,null,null,null,null,null,null,null,"","FPLPHY6935",null,"Nancy Aggarwal PHYSICS PPM Only ",null,"Nancy Aggarwal PHYSICS PPM Only",null,null,null,null,""]
[null,null,null,null,null,null,null,null,null,null,null,null,null,null,null,null,null,null,null,null,null,null,null,null,null,null,null,null,null,null,null,null,"","FPLPOL5145",null,"Joel Landis POLITICAL SCIENCE PPM Only ",null,"Joel Landis POLITICAL SCIENCE PPM Only",null,null,null,null,""]
[null,null,null,null,null,null,null,null,null,null,null,null,null,null,null,null,null,null,null,null,null,null,null,null,null,null,null,null,null,null,null,null,"","FPLPSC4345",null,"Joy Geng PSYCHOLOGY PPM Only ",null,"Joy Geng PSYCHOLOGY PPM Only",null,null,null,null,""]
[null,null,null,null,null,null,null,null,null,null,null,null,null,null,null,null,null,null,null,null,null,null,null,null,null,null,null,null,null,null,null,null,"","FPLREL0084",null,"Layne Little RELIGIOUS STUDIES PPM Only ",null,"Layne Little RELIGIOUS STUDIES PPM Only",null,null,null,null,""]
[null,null,null,null,null,null,null,null,null,null,null,null,null,null,null,null,null,null,null,null,null,null,null,null,null,null,null,null,null,null,null,null,"","FPLSOC0633",null,"Diane Wolf SOCIOLOGY PPM Only ",null,"Diane Wolf SOCIOLOGY PPM Only",null,null,null,null,""]
[null,null,null,null,null,null,null,null,null,null,null,null,null,null,null,null,null,null,null,null,null,null,null,null,null,null,null,null,null,null,null,null,"","FPLSOC3975",null,"John Walton SOCIOLOGY PPM Only ",null,"John Walton SOCIOLOGY PPM Only",null,null,null,null,""]
[null,null,null,null,null,null,null,null,null,null,null,null,null,null,null,null,null,null,null,null,null,null,null,null,null,null,null,null,null,null,null,null,"","FPLSTA4499",null,"JoAnna Whitener STATISTICS PPM Only ",null,"JoAnna Whitener STATISTICS PPM Only",null,null,null,null,""]
[null,null,null,null,null,null,null,null,null,null,null,null,null,null,null,null,null,null,null,null,null,null,null,null,null,null,null,null,null,null,null,null,"","FPLUIS6101",null,"Shannon Klisch UCCE SAN LUIS OBISPO COUNTY PPM ONLY ",null,"Shannon Klisch UCCE SAN LUIS OBISPO COUNTY PPM ONLY",null,null,null,null,""]
[null,null,null,null,null,null,null,null,null,null,null,null,null,null,null,null,null,null,null,null,null,null,null,null,null,null,null,null,null,null,null,null,"","FPLUWP2029",null,"Agnes A Stark UNIVERSITY WRITING PROGRAM PPM Only ",null,"Agnes A Stark UNIVERSITY WRITING PROGRAM PPM Only",null,null,null,null,""]
[null,null,null,null,null,null,null,null,null,null,null,null,null,null,null,null,null,null,null,null,null,null,null,null,null,null,null,null,null,null,null,null,"","FPLUWP4425",null,"Elaine McCollom UNIVERSITY WRITING PROGRAM PPM Only ",null,"Elaine McCollom UNIVERSITY WRITING PROGRAM PPM Only",null,null,null,null,""]
[null,null,null,null,null,null,null,null,null,null,null,null,null,null,null,null,null,null,null,null,null,null,null,null,null,null,null,null,null,null,null,null,"","FPLUWP5749",null,"Brendan Johnston UNIVERSITY WRITING PROGRAM PPM Only ",null,"Brendan Johnston UNIVERSITY WRITING PROGRAM PPM Only",null,null,null,null,""]
[null,null,null,null,null,null,null,null,null,null,null,null,null,null,null,null,null,null,null,null,null,null,null,null,null,null,null,null,null,null,null,null,"","FPMANS2588",null,"John Reitan MED Anesth And Pain Medicine PPM Only ",null,"John Reitan MED Anesth And Pain Medicine PPM Only",null,null,null,null,""]
[null,null,null,null,null,null,null,null,null,null,null,null,null,null,null,null,null,null,null,null,null,null,null,null,null,null,null,null,null,null,null,null,"","FPMANS3301",null,"Craig Belon MED Anesth And Pain Medicine PPM Only ",null,"Craig Belon MED Anesth And Pain Medicine PPM Only",null,null,null,null,""]
[null,null,null,null,null,null,null,null,null,null,null,null,null,null,null,null,null,null,null,null,null,null,null,null,null,null,null,null,null,null,null,null,"","FPMANS5160",null,"Brian R Jones MED Anesth And Pain Medicine PPM Only ",null,"Brian R Jones MED Anesth And Pain Medicine PPM Only",null,null,null,null,""]
[null,null,null,null,null,null,null,null,null,null,null,null,null,null,null,null,null,null,null,null,null,null,null,null,null,null,null,null,null,null,null,null,"","FPMARO4124",null,"Tokihiro Yamamoto MED Radiation Oncology PPM Only ",null,"Tokihiro Yamamoto MED Radiation Oncology PPM Only",null,null,null,null,""]
[null,null,null,null,null,null,null,null,null,null,null,null,null,null,null,null,null,null,null,null,null,null,null,null,null,null,null,null,null,null,null,null,"","FPMBIO4644",null,"Hongwu Chen MED Biochem And Molecular Med PPM Only ",null,"Hongwu Chen MED Biochem And Molecular Med PPM Only",null,null,null,null,""]
[null,null,null,null,null,null,null,null,null,null,null,null,null,null,null,null,null,null,null,null,null,null,null,null,null,null,null,null,null,null,null,null,"","FPMCEL2152",null,"Alice Tarantal - Cell Bio ",null,"Alice Tarantal - Cell Bio",null,null,null,null,""]
[null,null,null,null,null,null,null,null,null,null,null,null,null,null,null,null,null,null,null,null,null,null,null,null,null,null,null,null,null,null,null,null,"","FPMDER3553",null,"Raja Sivamani MED Dermatology PPM Only ",null,"Raja Sivamani MED Dermatology PPM Only",null,null,null,null,""]
[null,null,null,null,null,null,null,null,null,null,null,null,null,null,null,null,null,null,null,null,null,null,null,null,null,null,null,null,null,null,null,null,"","FPMDER5962",null,"Philina Lamb MED Dermatology PPM Only ",null,"Philina Lamb MED Dermatology PPM Only",null,null,null,null,""]
[null,null,null,null,null,null,null,null,null,null,null,null,null,null,null,null,null,null,null,null,null,null,null,null,null,null,null,null,null,null,null,null,"","FPMEPM2124",null,"Rosemary Cress MED Public Health Sciences PPM Only ",null,"Rosemary Cress MED Public Health Sciences PPM Only",null,null,null,null,""]
[null,null,null,null,null,null,null,null,null,null,null,null,null,null,null,null,null,null,null,null,null,null,null,null,null,null,null,null,null,null,null,null,"","FPMEPM5690",null,"Kristen Aiemjoy MED Public Health Sciences PPM Only ",null,"Kristen Aiemjoy MED Public Health Sciences PPM Only",null,null,null,null,""]
[null,null,null,null,null,null,null,null,null,null,null,null,null,null,null,null,null,null,null,null,null,null,null,null,null,null,null,null,null,null,null,null,"","FPMERM1101",null,"EM YAP SEED FUNDS ",null,"EM YAP SEED FUNDS",null,null,null,null,""]
[null,null,null,null,null,null,null,null,null,null,null,null,null,null,null,null,null,null,null,null,null,null,null,null,null,null,null,null,null,null,null,null,"","FPMERM2923",null,"Gilbert Arroyo MED Emergency Medicine PPM Only ",null,"Gilbert Arroyo MED Emergency Medicine PPM Only",null,null,null,null,""]
[null,null,null,null,null,null,null,null,null,null,null,null,null,null,null,null,null,null,null,null,null,null,null,null,null,null,null,null,null,null,null,null,"","FPMERM3981",null,"Michael Luszczak MED Emergency Medicine PPM Only ",null,"Michael Luszczak MED Emergency Medicine PPM Only",null,null,null,null,""]
[null,null,null,null,null,null,null,null,null,null,null,null,null,null,null,null,null,null,null,null,null,null,null,null,null,null,null,null,null,null,null,null,"","FPMERM5945",null,"Philip Buss MED Emergency Medicine PPM Only ",null,"Philip Buss MED Emergency Medicine PPM Only",null,null,null,null,""]
[null,null,null,null,null,null,null,null,null,null,null,null,null,null,null,null,null,null,null,null,null,null,null,null,null,null,null,null,null,null,null,null,"","FPMFCM1870",null,"Upal Sarker MED Family And Community Med PPM Only ",null,"Upal Sarker MED Family And Community Med PPM Only",null,null,null,null,""]
[null,null,null,null,null,null,null,null,null,null,null,null,null,null,null,null,null,null,null,null,null,null,null,null,null,null,null,null,null,null,null,null,"","FPMFCM3029",null,"Theresa Schill MED Family And Community Med PPM Only ",null,"Theresa Schill MED Family And Community Med PPM Only",null,null,null,null,""]
[null,null,null,null,null,null,null,null,null,null,null,null,null,null,null,null,null,null,null,null,null,null,null,null,null,null,null,null,null,null,null,null,"","FPMFCM4587",null,"Magi Aurora MED Family And Community Med PPM Only ",null,"Magi Aurora MED Family And Community Med PPM Only",null,null,null,null,""]
[null,null,null,null,null,null,null,null,null,null,null,null,null,null,null,null,null,null,null,null,null,null,null,null,null,null,null,null,null,null,null,null,"","FPMFCM5335",null,"Thomas Balsbaugh MED Family And Community Med PPM Only ",null,"Thomas Balsbaugh MED Family And Community Med PPM Only",null,null,null,null,""]
[null,null,null,null,null,null,null,null,null,null,null,null,null,null,null,null,null,null,null,null,null,null,null,null,null,null,null,null,null,null,null,null,"","FPMFCM5865",null,"Antoinette Martinez MED Family And Community Med PPM Only ",null,"Antoinette Martinez MED Family And Community Med PPM Only",null,null,null,null,""]
[null,null,null,null,null,null,null,null,null,null,null,null,null,null,null,null,null,null,null,null,null,null,null,null,null,null,null,null,null,null,null,null,"","FPMHPH3556",null,"Eamonn Dickson MED Physiology And Membrane Biol PPM Only ",null,"Eamonn Dickson MED Physiology And Membrane Biol PPM Only",null,null,null,null,""]
[null,null,null,null,null,null,null,null,null,null,null,null,null,null,null,null,null,null,null,null,null,null,null,null,null,null,null,null,null,null,null,null,"","FPMINT1804",null,"Ruth Lawrence MED Internal Medicine PPM Only ",null,"Ruth Lawrence MED Internal Medicine PPM Only",null,null,null,null,""]
[null,null,null,null,null,null,null,null,null,null,null,null,null,null,null,null,null,null,null,null,null,null,null,null,null,null,null,null,null,null,null,null,"","FPMINT5901",null,"Amogh Bhat MED Int Med Admin PPM Only ",null,"Amogh Bhat MED Int Med Admin PPM Only",null,null,null,null,""]
[null,null,null,null,null,null,null,null,null,null,null,null,null,null,null,null,null,null,null,null,null,null,null,null,null,null,null,null,null,null,null,null,"","FPMNAL0661",null,"Oanh MeyerMED Alzheimer CenterPPM Only ",null,"Oanh MeyerMED Alzheimer CenterPPM Only",null,null,null,null,""]
[null,null,null,null,null,null,null,null,null,null,null,null,null,null,null,null,null,null,null,null,null,null,null,null,null,null,null,null,null,null,null,null,"","FPMNEU0051",null,"Kimberly Miller MED Neurology PPM Only ",null,"Kimberly Miller MED Neurology PPM Only",null,null,null,null,""]
[null,null,null,null,null,null,null,null,null,null,null,null,null,null,null,null,null,null,null,null,null,null,null,null,null,null,null,null,null,null,null,null,"","FPMNEU2432",null,"Michelle Chan MED Neurology PPM Only ",null,"Michelle Chan MED Neurology PPM Only",null,null,null,null,""]
[null,null,null,null,null,null,null,null,null,null,null,null,null,null,null,null,null,null,null,null,null,null,null,null,null,null,null,null,null,null,null,null,"","FPMNEU4906",null,"Nazhiyath Vijayan MED Neurology PPM Only ",null,"Nazhiyath Vijayan MED Neurology PPM Only",null,null,null,null,""]
[null,null,null,null,null,null,null,null,null,null,null,null,null,null,null,null,null,null,null,null,null,null,null,null,null,null,null,null,null,null,null,null,"","FPMNSG0005",null,"CAMERON SADEGH MED NEUROLOGICAL SURGERY PPM ONLY ",null,"CAMERON SADEGH MED NEUROLOGICAL SURGERY PPM ONLY",null,null,null,null,""]
[null,null,null,null,null,null,null,null,null,null,null,null,null,null,null,null,null,null,null,null,null,null,null,null,null,null,null,null,null,null,null,null,"","FPMNSG0759",null,"Julius Ebinu MED Neurological Surgery PPM Only ",null,"Julius Ebinu MED Neurological Surgery PPM Only",null,null,null,null,""]
[null,null,null,null,null,null,null,null,null,null,null,null,null,null,null,null,null,null,null,null,null,null,null,null,null,null,null,null,null,null,null,null,"","FPMOBG0451",null,"Gary Leiserowitz MED Obstetrics And Gynecology PPM Only ",null,"Gary Leiserowitz MED Obstetrics And Gynecology PPM Only",null,null,null,null,""]
[null,null,null,null,null,null,null,null,null,null,null,null,null,null,null,null,null,null,null,null,null,null,null,null,null,null,null,null,null,null,null,null,"","FPMOBG1678",null,"Nancy Nguyen MED Obstetrics And Gynecology PPM Only ",null,"Nancy Nguyen MED Obstetrics And Gynecology PPM Only",null,null,null,null,""]
[null,null,null,null,null,null,null,null,null,null,null,null,null,null,null,null,null,null,null,null,null,null,null,null,null,null,null,null,null,null,null,null,"","FPMOBG5116",null,"Donald Fadjo MED Obstetrics And Gynecology PPM Only ",null,"Donald Fadjo MED Obstetrics And Gynecology PPM Only",null,null,null,null,""]
[null,null,null,null,null,null,null,null,null,null,null,null,null,null,null,null,null,null,null,null,null,null,null,null,null,null,null,null,null,null,null,null,"","FPMOPH0005",null,"Parisa Emami Naeini ",null,"Parisa Emami Naeini",null,null,null,null,""]
[null,null,null,null,null,null,null,null,null,null,null,null,null,null,null,null,null,null,null,null,null,null,null,null,null,null,null,null,null,null,null,null,"","FPMOPH1996",null,"Barbara Arnold MED Eye Center PPM Only ",null,"Barbara Arnold MED Eye Center PPM Only",null,null,null,null,""]
[null,null,null,null,null,null,null,null,null,null,null,null,null,null,null,null,null,null,null,null,null,null,null,null,null,null,null,null,null,null,null,null,"","FPMOPH5286",null,"Alan Roth MED Eye Center PPM Only ",null,"Alan Roth MED Eye Center PPM Only",null,null,null,null,""]
[null,null,null,null,null,null,null,null,null,null,null,null,null,null,null,null,null,null,null,null,null,null,null,null,null,null,null,null,null,null,null,null,"","FPMORT1395",null,"Ellen Fitzpatrick MED Orthopaedic Surgery PPM Only ",null,"Ellen Fitzpatrick MED Orthopaedic Surgery PPM Only",null,null,null,null,""]
[null,null,null,null,null,null,null,null,null,null,null,null,null,null,null,null,null,null,null,null,null,null,null,null,null,null,null,null,null,null,null,null,"","FPMORT5095",null,"Augustine Saiz MED Orthopaedic Surgery PPM Only ",null,"Augustine Saiz MED Orthopaedic Surgery PPM Only",null,null,null,null,""]
[null,null,null,null,null,null,null,null,null,null,null,null,null,null,null,null,null,null,null,null,null,null,null,null,null,null,null,null,null,null,null,null,"","FPMOTO2469",null,"Waleed Soliman MED Otolaryngology PPM Only ",null,"Waleed Soliman MED Otolaryngology PPM Only",null,null,null,null,""]
[null,null,null,null,null,null,null,null,null,null,null,null,null,null,null,null,null,null,null,null,null,null,null,null,null,null,null,null,null,null,null,null,"","FPMPAT1292",null,"Alaa Afify MED Pathology And Lab Medicine PPM Only ",null,"Alaa Afify MED Pathology And Lab Medicine PPM Only",null,null,null,null,""]
[null,null,null,null,null,null,null,null,null,null,null,null,null,null,null,null,null,null,null,null,null,null,null,null,null,null,null,null,null,null,null,null,"","FPMPAT4719",null,"Robert Cardiff MED Pathology And Lab Medicine PPM Only ",null,"Robert Cardiff MED Pathology And Lab Medicine PPM Only",null,null,null,null,""]
[null,null,null,null,null,null,null,null,null,null,null,null,null,null,null,null,null,null,null,null,null,null,null,null,null,null,null,null,null,null,null,null,"","FPMPATNAQA",null,"Nada Qaysi Development Funds ",null,"Nada Qaysi Development Funds",null,null,null,null,""]
[null,null,null,null,null,null,null,null,null,null,null,null,null,null,null,null,null,null,null,null,null,null,null,null,null,null,null,null,null,null,null,null,"","FPMPED0630",null,"Fatema Iqbal MED Pediatrics PPM Only ",null,"Fatema Iqbal MED Pediatrics PPM Only",null,null,null,null,""]
[null,null,null,null,null,null,null,null,null,null,null,null,null,null,null,null,null,null,null,null,null,null,null,null,null,null,null,null,null,null,null,null,"","FPMPED0749",null,"Douglas S Gross MED Pediatrics PPM Only ",null,"Douglas S Gross MED Pediatrics PPM Only",null,null,null,null,""]
[null,null,null,null,null,null,null,null,null,null,null,null,null,null,null,null,null,null,null,null,null,null,null,null,null,null,null,null,null,null,null,null,"","FPMPED1932",null,"Mark Parrish MED Pediatrics PPM Only ",null,"Mark Parrish MED Pediatrics PPM Only",null,null,null,null,""]
[null,null,null,null,null,null,null,null,null,null,null,null,null,null,null,null,null,null,null,null,null,null,null,null,null,null,null,null,null,null,null,null,"","FPMPED2281",null,"David Honeychurch MED Pediatrics PPM Only ",null,"David Honeychurch MED Pediatrics PPM Only",null,null,null,null,""]
[null,null,null,null,null,null,null,null,null,null,null,null,null,null,null,null,null,null,null,null,null,null,null,null,null,null,null,null,null,null,null,null,"","FPMPED3857",null,"Deborah Stewart MED Pediatrics PPM Only ",null,"Deborah Stewart MED Pediatrics PPM Only",null,null,null,null,""]
[null,null,null,null,null,null,null,null,null,null,null,null,null,null,null,null,null,null,null,null,null,null,null,null,null,null,null,null,null,null,null,null,"","FPMPED4435",null,"Else Uglum MED Pediatrics PPM Only ",null,"Else Uglum MED Pediatrics PPM Only",null,null,null,null,""]
[null,null,null,null,null,null,null,null,null,null,null,null,null,null,null,null,null,null,null,null,null,null,null,null,null,null,null,null,null,null,null,null,"","FPMPED5496",null,"Sean Munoz MED Pediatrics PPM Only ",null,"Sean Munoz MED Pediatrics PPM Only",null,null,null,null,""]
[null,null,null,null,null,null,null,null,null,null,null,null,null,null,null,null,null,null,null,null,null,null,null,null,null,null,null,null,null,null,null,null,"","FPMPED6310",null,"Francis Poulain MED Pediatrics PPM Only ",null,"Francis Poulain MED Pediatrics PPM Only",null,null,null,null,""]
[null,null,null,null,null,null,null,null,null,null,null,null,null,null,null,null,null,null,null,null,null,null,null,null,null,null,null,null,null,null,null,null,"","FPMPGN1902",null,"Prabhu Shankar MED Ped GenomicPPM Only ",null,"Prabhu Shankar MED Ped GenomicPPM Only",null,null,null,null,""]
[null,null,null,null,null,null,null,null,null,null,null,null,null,null,null,null,null,null,null,null,null,null,null,null,null,null,null,null,null,null,null,null,"","FPMPMR0666",null,"M Sandel MED Physical Medicine And Rehab PPM Only ",null,"M Sandel MED Physical Medicine And Rehab PPM Only",null,null,null,null,""]
[null,null,null,null,null,null,null,null,null,null,null,null,null,null,null,null,null,null,null,null,null,null,null,null,null,null,null,null,null,null,null,null,"","FPMPMR5917",null,"Vikram Agnish MED Physical Medicine And Rehab PPM Only ",null,"Vikram Agnish MED Physical Medicine And Rehab PPM Only",null,null,null,null,""]
[null,null,null,null,null,null,null,null,null,null,null,null,null,null,null,null,null,null,null,null,null,null,null,null,null,null,null,null,null,null,null,null,"","FPMPSY1441",null,"Resul Ozbayrak MED Psychiatry And Behav Sci PPM Only ",null,"Resul Ozbayrak MED Psychiatry And Behav Sci PPM Only",null,null,null,null,""]
[null,null,null,null,null,null,null,null,null,null,null,null,null,null,null,null,null,null,null,null,null,null,null,null,null,null,null,null,null,null,null,null,"","FPMPSY2295",null,"James Spensley MED Psychiatry And Behav Sci PPM Only ",null,"James Spensley MED Psychiatry And Behav Sci PPM Only",null,null,null,null,""]
[null,null,null,null,null,null,null,null,null,null,null,null,null,null,null,null,null,null,null,null,null,null,null,null,null,null,null,null,null,null,null,null,"","FPMPSY4014",null,"Karl Murray MED Psychiatry And Behav Sci PPM Only ",null,"Karl Murray MED Psychiatry And Behav Sci PPM Only",null,null,null,null,""]
[null,null,null,null,null,null,null,null,null,null,null,null,null,null,null,null,null,null,null,null,null,null,null,null,null,null,null,null,null,null,null,null,"","FPMPSY4714",null,"Cameron Carter MED Psychiatry And Behav Sci PPM Only ",null,"Cameron Carter MED Psychiatry And Behav Sci PPM Only",null,null,null,null,""]
[null,null,null,null,null,null,null,null,null,null,null,null,null,null,null,null,null,null,null,null,null,null,null,null,null,null,null,null,null,null,null,null,"","FPMRAD0010",null,"Benjamin Spencer MED Rad PPM only ",null,"Benjamin Spencer MED Rad PPM only",null,null,null,null,""]
[null,null,null,null,null,null,null,null,null,null,null,null,null,null,null,null,null,null,null,null,null,null,null,null,null,null,null,null,null,null,null,null,"","FPMRAD1083",null,"Colin Brown MED Radiology PPM Only ",null,"Colin Brown MED Radiology PPM Only",null,null,null,null,""]
[null,null,null,null,null,null,null,null,null,null,null,null,null,null,null,null,null,null,null,null,null,null,null,null,null,null,null,null,null,null,null,null,"","FPMRAD4821",null,"Bahman Sayyar Roudsari MED Radiology PPM Only ",null,"Bahman Sayyar Roudsari MED Radiology PPM Only",null,null,null,null,""]
[null,null,null,null,null,null,null,null,null,null,null,null,null,null,null,null,null,null,null,null,null,null,null,null,null,null,null,null,null,null,null,null,"","FPMRAD5815",null,"Sujit Jha MED Rad PPM only ",null,"Sujit Jha MED Rad PPM only",null,null,null,null,""]
[null,null,null,null,null,null,null,null,null,null,null,null,null,null,null,null,null,null,null,null,null,null,null,null,null,null,null,null,null,null,null,null,"","FPMSUR2053",null,"Donald Hause MED Surgery PPM Only ",null,"Donald Hause MED Surgery PPM Only",null,null,null,null,""]
[null,null,null,null,null,null,null,null,null,null,null,null,null,null,null,null,null,null,null,null,null,null,null,null,null,null,null,null,null,null,null,null,"","FPMSUR3893",null,"David Dawson MED Surgery PPM Only ",null,"David Dawson MED Surgery PPM Only",null,null,null,null,""]
[null,null,null,null,null,null,null,null,null,null,null,null,null,null,null,null,null,null,null,null,null,null,null,null,null,null,null,null,null,null,null,null,"","FPMSUR5331",null,"Rachel Callcut MED Surgery PPM Only ",null,"Rachel Callcut MED Surgery PPM Only",null,null,null,null,""]
[null,null,null,null,null,null,null,null,null,null,null,null,null,null,null,null,null,null,null,null,null,null,null,null,null,null,null,null,null,null,null,null,"","FPMURO2786",null,"Chengfei Liu MED Urologic Surgery PPM Only ",null,"Chengfei Liu MED Urologic Surgery PPM Only",null,null,null,null,""]
[null,null,null,null,null,null,null,null,null,null,null,null,null,null,null,null,null,null,null,null,null,null,null,null,null,null,null,null,null,null,null,null,"","FPNBPS5996",null,"Mary Lu Arpaia UCR CE BOTANY PLANT SCIENCES PPM ONLY ",null,"Mary Lu Arpaia UCR CE BOTANY PLANT SCIENCES PPM ONLY",null,null,null,null,""]
[null,null,null,null,null,null,null,null,null,null,null,null,null,null,null,null,null,null,null,null,null,null,null,null,null,null,null,null,null,null,null,null,"","FPNURS0964",null,"Leigh Ann Simmons School of Nursing PPM Only ",null,"Leigh Ann Simmons School of Nursing PPM Only",null,null,null,null,""]
[null,null,null,null,null,null,null,null,null,null,null,null,null,null,null,null,null,null,null,null,null,null,null,null,null,null,null,null,null,null,null,null,"","FPNURS4127",null,"Mary Montemayor Roces School of Nursing PPM Only ",null,"Mary Montemayor Roces School of Nursing PPM Only",null,null,null,null,""]
[null,null,null,null,null,null,null,null,null,null,null,null,null,null,null,null,null,null,null,null,null,null,null,null,null,null,null,null,null,null,null,null,"","FPNURS6305",null,"Rosalyn Seitz School of Nursing PPM Only ",null,"Rosalyn Seitz School of Nursing PPM Only",null,null,null,null,""]
[null,null,null,null,null,null,null,null,null,null,null,null,null,null,null,null,null,null,null,null,null,null,null,null,null,null,null,null,null,null,null,null,"","FPNURS8206",null,"Lisa Gray School of Nursing PPM Only ",null,"Lisa Gray School of Nursing PPM Only",null,null,null,null,""]
[null,null,null,null,null,null,null,null,null,null,null,null,null,null,null,null,null,null,null,null,null,null,null,null,null,null,null,null,null,null,null,null,"","FPSANJ0120",null,"Anna Martin UCCE SAN JOAQUIN COUNTY PPM Only ",null,"Anna Martin UCCE SAN JOAQUIN COUNTY PPM Only",null,null,null,null,""]
[null,null,null,null,null,null,null,null,null,null,null,null,null,null,null,null,null,null,null,null,null,null,null,null,null,null,null,null,null,null,null,null,"","FPSISK6236",null,"Grace Woodmansee UCCE SISKIYOU COUNTY PPM ONLY ",null,"Grace Woodmansee UCCE SISKIYOU COUNTY PPM ONLY",null,null,null,null,""]
[null,null,null,null,null,null,null,null,null,null,null,null,null,null,null,null,null,null,null,null,null,null,null,null,null,null,null,null,null,null,null,null,"","FPSUTY6193",null,"Clarissa Reyes UCCE SUTTER YUBA COUNTIES ",null,"Clarissa Reyes UCCE SUTTER YUBA COUNTIES",null,null,null,null,""]
[null,null,null,null,null,null,null,null,null,null,null,null,null,null,null,null,null,null,null,null,null,null,null,null,null,null,null,null,null,null,null,null,"","FPVAPC3523",null,"Richard Connon VM ANAT PHYSIO And CELL BIOLOGY PPM Only ",null,"Richard Connon VM ANAT PHYSIO And CELL BIOLOGY PPM Only",null,null,null,null,""]
[null,null,null,null,null,null,null,null,null,null,null,null,null,null,null,null,null,null,null,null,null,null,null,null,null,null,null,null,null,null,null,null,"","FPVAPC4192",null,"Benjamin Hart VM ANAT PHYSIO And CELL BIOLOGY PPM Only ",null,"Benjamin Hart VM ANAT PHYSIO And CELL BIOLOGY PPM Only",null,null,null,null,""]
[null,null,null,null,null,null,null,null,null,null,null,null,null,null,null,null,null,null,null,null,null,null,null,null,null,null,null,null,null,null,null,null,"","FPVMEX4263",null,"Lais Costa VM EX Cooperative Extension PPM Only ",null,"Lais Costa VM EX Cooperative Extension PPM Only",null,null,null,null,""]
[null,null,null,null,null,null,null,null,null,null,null,null,null,null,null,null,null,null,null,null,null,null,null,null,null,null,null,null,null,null,null,null,"","FPVPHR0353",null,"Charles Hjerpe VM POPULATION HLTH And REPROD PPM Only ",null,"Charles Hjerpe VM POPULATION HLTH And REPROD PPM Only",null,null,null,null,""]
[null,null,null,null,null,null,null,null,null,null,null,null,null,null,null,null,null,null,null,null,null,null,null,null,null,null,null,null,null,null,null,null,"","FPVPHR6354",null,"Sara Garcia VM POPULATION HLTH And REPROD PPM Only ",null,"Sara Garcia VM POPULATION HLTH And REPROD PPM Only",null,null,null,null,""]
[null,null,null,null,null,null,null,null,null,null,null,null,null,null,null,null,null,null,null,null,null,null,null,null,null,null,null,null,null,null,null,null,"","FPVPMI2440",null,"Laurel Gershwin VM PATHOLOGY MICRO And IMMUN PPM Only ",null,"Laurel Gershwin VM PATHOLOGY MICRO And IMMUN PPM Only",null,null,null,null,""]
[null,null,null,null,null,null,null,null,null,null,null,null,null,null,null,null,null,null,null,null,null,null,null,null,null,null,null,null,null,null,null,null,"","FPVPMI5666",null,"Joao Pinto VM PATHOLOGY MICRO And IMMUN PPM Only ",null,"Joao Pinto VM PATHOLOGY MICRO And IMMUN PPM Only",null,null,null,null,""]
[null,null,null,null,null,null,null,null,null,null,null,null,null,null,null,null,null,null,null,null,null,null,null,null,null,null,null,null,null,null,null,null,"","FPVVMB6357",null,"Ana Cristina Grodski VM MOLECULAR BIO SCIENCES PPM Only ",null,"Ana Cristina Grodski VM MOLECULAR BIO SCIENCES PPM Only",null,null,null,null,""]
[null,null,null,null,null,null,null,null,null,null,null,null,null,null,null,null,null,null,null,null,null,null,null,null,null,null,null,null,null,null,null,null,"","FPVVME1727",null,"Laurie Brignolo VM MEDICINE And EPIDEMIOLOGY PPM Only ",null,"Laurie Brignolo VM MEDICINE And EPIDEMIOLOGY PPM Only",null,null,null,null,""]
[null,null,null,null,null,null,null,null,null,null,null,null,null,null,null,null,null,null,null,null,null,null,null,null,null,null,null,null,null,null,null,null,"","FPVVME4779",null,"Joshua Stern VM MEDICINE And EPIDEMIOLOGY PPM Only ",null,"Joshua Stern VM MEDICINE And EPIDEMIOLOGY PPM Only",null,null,null,null,""]
[null,null,null,null,null,null,null,null,null,null,null,null,null,null,null,null,null,null,null,null,null,null,null,null,null,null,null,null,null,null,null,null,"","FPVVSR0478",null,"Katherine Hansen VM SURGRAD SCIENCE PPM Only ",null,"Katherine Hansen VM SURGRAD SCIENCE PPM Only",null,null,null,null,""]
[null,null,null,null,null,null,null,null,null,null,null,null,null,null,null,null,null,null,null,null,null,null,null,null,null,null,null,null,null,null,null,null,"","FPVVSR3044",null,"Pauline Wong VM SURGRAD SCIENCE PPM Only ",null,"Pauline Wong VM SURGRAD SCIENCE PPM Only",null,null,null,null,""]
[null,null,null,null,null,null,null,null,null,null,null,null,null,null,null,null,null,null,null,null,null,null,null,null,null,null,null,null,null,null,null,null,"","FPVVSR4232",null,"Peter Pascoe VM SURGRAD SCIENCE PPM Only ",null,"Peter Pascoe VM SURGRAD SCIENCE PPM Only",null,null,null,null,""]
[null,null,null,null,null,null,null,null,null,null,null,null,null,null,null,null,null,null,null,null,null,null,null,null,null,null,null,null,null,null,null,null,"","FPVVSR5870",null,"Stephanie Goldschmidt VM SURGRAD SCIENCE PPM Only ",null,"Stephanie Goldschmidt VM SURGRAD SCIENCE PPM Only",null,null,null,null,""]
[null,null,null,null,null,null,null,null,null,null,null,null,null,null,null,null,null,null,null,null,null,null,null,null,null,null,null,null,null,null,null,null,"","K305873625",null,"SB1 Year 5 Hardman 100 ZEV Sales K305873625 ",null,"SB1 Year 5 Hardman 100 ZEV Sales K305873625",null,null,null,null,""]
[null,null,null,null,null,null,null,null,null,null,null,null,null,null,null,null,null,null,null,null,null,null,null,null,null,null,null,null,null,null,null,null,"","K309876058",null,"SB1 yr 7 -Hardman, Trans. to Off-road CA - K309876058 ",null,"SB1 yr 7 -Hardman, Trans. to Off-road CA - K309876058",null,null,null,null,""]
[null,null,null,null,null,null,null,null,null,null,null,null,null,null,null,null,null,null,null,null,null,null,null,null,null,null,null,null,null,null,null,null,"","KS0EDKC709",null,"MED IMED-KEENAN PHC CALMEDFORCE GRANT #2 KS0EDKC709 ",null,"MED IMED-KEENAN PHC CALMEDFORCE GRANT #2 KS0EDKC709",null,null,null,null,""]
[null,null,null,null,null,null,null,null,null,null,null,null,null,null,null,null,null,null,null,null,null,null,null,null,null,null,null,null,null,null,null,null,"","KS0NECC702",null,"MED IMNE-CHEN-UC TRDRP-KIDNEY CANCER KS0NECC702 ",null,"MED IMNE-CHEN-UC TRDRP-KIDNEY CANCER KS0NECC702",null,null,null,null,""]
[null,null,null,null,null,null,null,null,null,null,null,null,null,null,null,null,null,null,null,null,null,null,null,null,null,null,null,null,null,null,null,null,"","KS0PMCC701",null,"MED IMPM-KENYON-UC TRDRP-28IR-0051MED IMPM-CHEN-UCTRDRP-PULMONARY FIBROSIS KS0PMCC701 ",null,"MED IMPM-KENYON-UC TRDRP-28IR-0051MED IMPM-CHEN-UCTRDRP-PULMONARY FIBROSIS KS0PMCC701",null,null,null,null,""]
[null,null,null,null,null,null,null,null,null,null,null,null,null,null,null,null,null,null,null,null,null,null,null,null,null,null,null,null,null,null,null,null,"","KS0PMHA700",null,"MED IMPM-HACZKU-UC TRDRP-27IR-0053 KS0PMHA700 ",null,"MED IMPM-HACZKU-UC TRDRP-27IR-0053 KS0PMHA700",null,null,null,null,""]
[null,null,null,null,null,null,null,null,null,null,null,null,null,null,null,null,null,null,null,null,null,null,null,null,null,null,null,null,null,null,null,null,"","KS0PMKN700",null,"MED IMPM-KENYON-UC TRDRP-28IR-0051 KS0PMKN700 ",null,"MED IMPM-KENYON-UC TRDRP-28IR-0051 KS0PMKN700",null,null,null,null,""]
[null,null,null,null,null,null,null,null,null,null,null,null,null,null,null,null,null,null,null,null,null,null,null,null,null,null,null,null,null,null,null,null,"","KS0SLCALMD",null,"LI CALMEDFORCE RESIDENCY GRANT KS0SLCALMD ",null,"LI CALMEDFORCE RESIDENCY GRANT KS0SLCALMD",null,null,null,null,""]
[null,null,null,null,null,null,null,null,null,null,null,null,null,null,null,null,null,null,null,null,null,null,null,null,null,null,null,null,null,null,null,null,"","KS0SLCAMD2",null,"LI CALMEDFORCE RESIDENCY GRANT 2022-2025 KS0SLCAMD2 ",null,"LI CALMEDFORCE RESIDENCY GRANT 2022-2025 KS0SLCAMD2",null,null,null,null,""]
[null,null,null,null,null,null,null,null,null,null,null,null,null,null,null,null,null,null,null,null,null,null,null,null,null,null,null,null,null,null,null,null,"","KS0SLCAMD3",null,"LI CALMEDFORCE RESIDENCY GRANT 2023-2026 KS0SLCAMD3 ",null,"LI CALMEDFORCE RESIDENCY GRANT 2023-2026 KS0SLCAMD3",null,null,null,null,""]
[null,null,null,null,null,null,null,null,null,null,null,null,null,null,null,null,null,null,null,null,null,null,null,null,null,null,null,null,null,null,null,null,"","KS0TRDRP24",null,"TRDRP ADVANCE ACCOUNT Y1 - TONG KS0TRDRP24 ",null,"TRDRP ADVANCE ACCOUNT Y1 - TONG KS0TRDRP24",null,null,null,null,""]
[null,null,null,null,null,null,null,null,null,null,null,null,null,null,null,null,null,null,null,null,null,null,null,null,null,null,null,null,null,null,null,null,"","KS0UCBC110",null,"UMBC-STATE OF CA-UMBILICAL CORD 18-19 KS0UCBC110 ",null,"UMBC-STATE OF CA-UMBILICAL CORD 18-19 KS0UCBC110",null,null,null,null,""]
[null,null,null,null,null,null,null,null,null,null,null,null,null,null,null,null,null,null,null,null,null,null,null,null,null,null,null,null,null,null,null,null,"","KS0YLTRDRP",null,"DERM LYU TRDRP KS0YLTRDRP ",null,"DERM LYU TRDRP KS0YLTRDRP",null,null,null,null,""]
[null,null,null,null,null,null,null,null,null,null,null,null,null,null,null,null,null,null,null,null,null,null,null,null,null,null,null,null,null,null,null,null,"",null,null,"PPM Scientific Recharge Projects ",null,"PPM Scientific Recharge Projects",null,null,null,null,""]
[null,null,null,null,null,null,null,null,null,null,null,null,null,null,null,null,null,null,null,null,null,null,null,null,null,null,null,null,null,null,null,null,"","PPMCRC0000",null,"EBME EV recharge operations ",null,"EBME EV recharge operations",null,null,null,null,""]
[null,null,null,null,null,null,null,null,null,null,null,null,null,null,null,null,null,null,null,null,null,null,null,null,null,null,null,null,null,null,null,null,"","PPMRC00001",null,"CAES Nutrition Assay Services ",null,"CAES Nutrition Assay Services",null,null,null,null,""]
[null,null,null,null,null,null,null,null,null,null,null,null,null,null,null,null,null,null,null,null,null,null,null,null,null,null,null,null,null,null,null,null,"","PPMRC00002",null,"CAES Nutrition Human Lactation Ctr ",null,"CAES Nutrition Human Lactation Ctr",null,null,null,null,""]
[null,null,null,null,null,null,null,null,null,null,null,null,null,null,null,null,null,null,null,null,null,null,null,null,null,null,null,null,null,null,null,null,"","PPMRC00003",null,"CAES NUTR Lonnderdal Lab Assay Services ",null,"CAES NUTR Lonnderdal Lab Assay Services",null,null,null,null,""]
[null,null,null,null,null,null,null,null,null,null,null,null,null,null,null,null,null,null,null,null,null,null,null,null,null,null,null,null,null,null,null,null,"","PPMRC00004",null,"CAES ETox Signed Air Quality Test ",null,"CAES ETox Signed Air Quality Test",null,null,null,null,""]
[null,null,null,null,null,null,null,null,null,null,null,null,null,null,null,null,null,null,null,null,null,null,null,null,null,null,null,null,null,null,null,null,"","PPMRC00005",null,"CAES ETox Air Quality Testing Services ",null,"CAES ETox Air Quality Testing Services",null,null,null,null,""]
[null,null,null,null,null,null,null,null,null,null,null,null,null,null,null,null,null,null,null,null,null,null,null,null,null,null,null,null,null,null,null,null,"","PPMRC00006",null,"CAES MPSL Granite Canyon Toxicity Env Assmt ",null,"CAES MPSL Granite Canyon Toxicity Env Assmt",null,null,null,null,""]
[null,null,null,null,null,null,null,null,null,null,null,null,null,null,null,null,null,null,null,null,null,null,null,null,null,null,null,null,null,null,null,null,"","PPMRC00007",null,"CAES ENM Nematode Identification Quantification ",null,"CAES ENM Nematode Identification Quantification",null,null,null,null,""]
[null,null,null,null,null,null,null,null,null,null,null,null,null,null,null,null,null,null,null,null,null,null,null,null,null,null,null,null,null,null,null,null,"","PPMRC00008",null,"CAES PLP Hammock Lab Lipid Analysis ",null,"CAES PLP Hammock Lab Lipid Analysis",null,null,null,null,""]
[null,null,null,null,null,null,null,null,null,null,null,null,null,null,null,null,null,null,null,null,null,null,null,null,null,null,null,null,null,null,null,null,"","PPMRC00009",null,"CAES NUTR Slupsky Assay Services ",null,"CAES NUTR Slupsky Assay Services",null,null,null,null,""]
[null,null,null,null,null,null,null,null,null,null,null,null,null,null,null,null,null,null,null,null,null,null,null,null,null,null,null,null,null,null,null,null,"","PPMRC00010",null,"CAES LAWR Horwath Lab Analysis Services ",null,"CAES LAWR Horwath Lab Analysis Services",null,null,null,null,""]
[null,null,null,null,null,null,null,null,null,null,null,null,null,null,null,null,null,null,null,null,null,null,null,null,null,null,null,null,null,null,null,null,"","PPMRC00011",null,"CAES LAWR Dahlke Soil and Water Analysis ",null,"CAES LAWR Dahlke Soil and Water Analysis",null,null,null,null,""]
[null,null,null,null,null,null,null,null,null,null,null,null,null,null,null,null,null,null,null,null,null,null,null,null,null,null,null,null,null,null,null,null,"","PPMRC00012",null,"CAES LAWR Geisseler Lab Analysis Services ",null,"CAES LAWR Geisseler Lab Analysis Services",null,null,null,null,""]
[null,null,null,null,null,null,null,null,null,null,null,null,null,null,null,null,null,null,null,null,null,null,null,null,null,null,null,null,null,null,null,null,"","PPMRC00013",null,"CAES ANS Finger Genomic Lab Services ",null,"CAES ANS Finger Genomic Lab Services",null,null,null,null,""]
[null,null,null,null,null,null,null,null,null,null,null,null,null,null,null,null,null,null,null,null,null,null,null,null,null,null,null,null,null,null,null,null,"","PPMRC00014",null,"CAES ANS Schreier Genomic Variation ",null,"CAES ANS Schreier Genomic Variation",null,null,null,null,""]
[null,null,null,null,null,null,null,null,null,null,null,null,null,null,null,null,null,null,null,null,null,null,null,null,null,null,null,null,null,null,null,null,"","PPMRC00015",null,"CAES ANS Label Free Molecular Phenotyping ",null,"CAES ANS Label Free Molecular Phenotyping",null,null,null,null,""]
[null,null,null,null,null,null,null,null,null,null,null,null,null,null,null,null,null,null,null,null,null,null,null,null,null,null,null,null,null,null,null,null,"","PPMRC00016",null,"CAES ANS Sequence Analysis Services ",null,"CAES ANS Sequence Analysis Services",null,null,null,null,""]
[null,null,null,null,null,null,null,null,null,null,null,null,null,null,null,null,null,null,null,null,null,null,null,null,null,null,null,null,null,null,null,null,"","PPMRC00017",null,"CAES Nutritional Efficacy Testing Services ",null,"CAES Nutritional Efficacy Testing Services",null,null,null,null,""]
[null,null,null,null,null,null,null,null,null,null,null,null,null,null,null,null,null,null,null,null,null,null,null,null,null,null,null,null,null,null,null,null,"","PPMRC00018",null,"CAES Liu Feed Bioactive Products Services ",null,"CAES Liu Feed Bioactive Products Services",null,null,null,null,""]
[null,null,null,null,null,null,null,null,null,null,null,null,null,null,null,null,null,null,null,null,null,null,null,null,null,null,null,null,null,null,null,null,"","PPMRC00019",null,"CAES Genetic Diversity Recharge ",null,"CAES Genetic Diversity Recharge",null,null,null,null,""]
[null,null,null,null,null,null,null,null,null,null,null,null,null,null,null,null,null,null,null,null,null,null,null,null,null,null,null,null,null,null,null,null,"","PPMRC00020",null,"CAES Museum of Wildlife Fish Biology ",null,"CAES Museum of Wildlife Fish Biology",null,null,null,null,""]
[null,null,null,null,null,null,null,null,null,null,null,null,null,null,null,null,null,null,null,null,null,null,null,null,null,null,null,null,null,null,null,null,"","PPMRC00021",null,"CAES Nann Fangue Lab Services ",null,"CAES Nann Fangue Lab Services",null,null,null,null,""]
[null,null,null,null,null,null,null,null,null,null,null,null,null,null,null,null,null,null,null,null,null,null,null,null,null,null,null,null,null,null,null,null,"","PPMRC00022",null,"CAES AWFC Research Boat Services ",null,"CAES AWFC Research Boat Services",null,null,null,null,""]
[null,null,null,null,null,null,null,null,null,null,null,null,null,null,null,null,null,null,null,null,null,null,null,null,null,null,null,null,null,null,null,null,"","PPMRC00023",null,"CAES Milk Processing Lab Services ",null,"CAES Milk Processing Lab Services",null,null,null,null,""]
[null,null,null,null,null,null,null,null,null,null,null,null,null,null,null,null,null,null,null,null,null,null,null,null,null,null,null,null,null,null,null,null,"","PPMRC00024",null,"CAES Biosystematics Consultation Res Inc ",null,"CAES Biosystematics Consultation Res Inc",null,null,null,null,""]
[null,null,null,null,null,null,null,null,null,null,null,null,null,null,null,null,null,null,null,null,null,null,null,null,null,null,null,null,null,null,null,null,"","PPMRC00025",null,"CAES Bohart Museum Tours ",null,"CAES Bohart Museum Tours",null,null,null,null,""]
[null,null,null,null,null,null,null,null,null,null,null,null,null,null,null,null,null,null,null,null,null,null,null,null,null,null,null,null,null,null,null,null,"","PPMRC00026",null,"CEE CGM Program Income ",null,"CEE CGM Program Income",null,null,null,null,""]
[null,null,null,null,null,null,null,null,null,null,null,null,null,null,null,null,null,null,null,null,null,null,null,null,null,null,null,null,null,null,null,null,"","PPMRC00027",null,"CPE Hourly Rate ",null,"CPE Hourly Rate",null,null,null,null,""]
[null,null,null,null,null,null,null,null,null,null,null,null,null,null,null,null,null,null,null,null,null,null,null,null,null,null,null,null,null,null,null,null,"","PPMRC00028",null,"CPS Daily Rate ",null,"CPS Daily Rate",null,null,null,null,""]
[null,null,null,null,null,null,null,null,null,null,null,null,null,null,null,null,null,null,null,null,null,null,null,null,null,null,null,null,null,null,null,null,"","PPMRC00029",null,"CHS Daily Rate ",null,"CHS Daily Rate",null,null,null,null,""]
[null,null,null,null,null,null,null,null,null,null,null,null,null,null,null,null,null,null,null,null,null,null,null,null,null,null,null,null,null,null,null,null,"","PPMRC00030",null,"CAES Healthy Beverage Initiative ",null,"CAES Healthy Beverage Initiative",null,null,null,null,""]
[null,null,null,null,null,null,null,null,null,null,null,null,null,null,null,null,null,null,null,null,null,null,null,null,null,null,null,null,null,null,null,null,"","PPMRC00031",null,"OR HUSBANDRY ",null,"OR HUSBANDRY",null,null,null,null,""]
[null,null,null,null,null,null,null,null,null,null,null,null,null,null,null,null,null,null,null,null,null,null,null,null,null,null,null,null,null,null,null,null,"","PPMRC00032",null,"CAES Glycoproteomics ",null,"CAES Glycoproteomics",null,null,null,null,""]
[null,null,null,null,null,null,null,null,null,null,null,null,null,null,null,null,null,null,null,null,null,null,null,null,null,null,null,null,null,null,null,null,"","PPMRC00033",null,"CAES Phaff Yeast Collection ",null,"CAES Phaff Yeast Collection",null,null,null,null,""]
[null,null,null,null,null,null,null,null,null,null,null,null,null,null,null,null,null,null,null,null,null,null,null,null,null,null,null,null,null,null,null,null,"","PPMRC00035",null,"CAES Sensory and Consumer Test Analysis ",null,"CAES Sensory and Consumer Test Analysis",null,null,null,null,""]
[null,null,null,null,null,null,null,null,null,null,null,null,null,null,null,null,null,null,null,null,null,null,null,null,null,null,null,null,null,null,null,null,"","PPMRC00040",null,"CAES Barker Lab Analysis Services ",null,"CAES Barker Lab Analysis Services",null,null,null,null,""]
[null,null,null,null,null,null,null,null,null,null,null,null,null,null,null,null,null,null,null,null,null,null,null,null,null,null,null,null,null,null,null,null,"","PPMRC00041",null,"CAES Better Process Control School Online with PI Linda Harris ",null,"CAES Better Process Control School Online with PI Linda Harris",null,null,null,null,""]
[null,null,null,null,null,null,null,null,null,null,null,null,null,null,null,null,null,null,null,null,null,null,null,null,null,null,null,null,null,null,null,null,"","PPMRC00042",null,"CAES Food Analysis Extraction Svcs ",null,"CAES Food Analysis Extraction Svcs",null,null,null,null,""]
[null,null,null,null,null,null,null,null,null,null,null,null,null,null,null,null,null,null,null,null,null,null,null,null,null,null,null,null,null,null,null,null,"","PPMRC00043",null,"CAES Food Safety Measurement Facility-1 ",null,"CAES Food Safety Measurement Facility-1",null,null,null,null,""]
[null,null,null,null,null,null,null,null,null,null,null,null,null,null,null,null,null,null,null,null,null,null,null,null,null,null,null,null,null,null,null,null,"","PPMRC00044",null,"CAES Micro Anaerobic Assay Services ",null,"CAES Micro Anaerobic Assay Services",null,null,null,null,""]
[null,null,null,null,null,null,null,null,null,null,null,null,null,null,null,null,null,null,null,null,null,null,null,null,null,null,null,null,null,null,null,null,"","PPMRC00045",null,"CAES Lonnerdal Lab Assay Services ",null,"CAES Lonnerdal Lab Assay Services",null,null,null,null,""]
[null,null,null,null,null,null,null,null,null,null,null,null,null,null,null,null,null,null,null,null,null,null,null,null,null,null,null,null,null,null,null,null,"","PPMRC00046",null,"CAES Oxylipin and Plasmalogen Analysis ",null,"CAES Oxylipin and Plasmalogen Analysis",null,null,null,null,""]
[null,null,null,null,null,null,null,null,null,null,null,null,null,null,null,null,null,null,null,null,null,null,null,null,null,null,null,null,null,null,null,null,"","PPMRC00047",null,"CAES Plant Sci Genome Mapping ",null,"CAES Plant Sci Genome Mapping",null,null,null,null,""]
[null,null,null,null,null,null,null,null,null,null,null,null,null,null,null,null,null,null,null,null,null,null,null,null,null,null,null,null,null,null,null,null,"","PPMRC00048",null,"CAES LAWR XRD Svcs ",null,"CAES LAWR XRD Svcs",null,null,null,null,""]
[null,null,null,null,null,null,null,null,null,null,null,null,null,null,null,null,null,null,null,null,null,null,null,null,null,null,null,null,null,null,null,null,"","PPMRC00049",null,"MICRO ANAEROBIC ASSAY RECHARGE SERVICE UNDER DIRECTION OF DAVID MILLS ",null,"MICRO ANAEROBIC ASSAY RECHARGE SERVICE UNDER DIRECTION OF DAVID MILLS",null,null,null,null,""]
[null,null,null,null,null,null,null,null,null,null,null,null,null,null,null,null,null,null,null,null,null,null,null,null,null,null,null,null,null,null,null,null,"","PPMRC00050",null,"CAES Plant Sci Genome Mapping ",null,"CAES Plant Sci Genome Mapping",null,null,null,null,""]
[null,null,null,null,null,null,null,null,null,null,null,null,null,null,null,null,null,null,null,null,null,null,null,null,null,null,null,null,null,null,null,null,"","PPMRC00051",null,"CAES VEG CROPS WEED SCHOOL CONFERENCE ",null,"CAES VEG CROPS WEED SCHOOL CONFERENCE",null,null,null,null,""]
[null,null,null,null,null,null,null,null,null,null,null,null,null,null,null,null,null,null,null,null,null,null,null,null,null,null,null,null,null,null,null,null,"","PPMRC00052",null,"CAES Plant Sciences Dry Card Sales ",null,"CAES Plant Sciences Dry Card Sales",null,null,null,null,""]
[null,null,null,null,null,null,null,null,null,null,null,null,null,null,null,null,null,null,null,null,null,null,null,null,null,null,null,null,null,null,null,null,"","PPMRC01176",null,"C-STEM Rate Based Activities ",null,"C-STEM Rate Based Activities",null,null,null,null,""]
[null,null,null,null,null,null,null,null,null,null,null,null,null,null,null,null,null,null,null,null,null,null,null,null,null,null,null,null,null,null,null,null,"","PPMRC01519",null,"CAES Plant Sciences Small Grains Trial Services ",null,"CAES Plant Sciences Small Grains Trial Services",null,null,null,null,""]
[null,null,null,null,null,null,null,null,null,null,null,null,null,null,null,null,null,null,null,null,null,null,null,null,null,null,null,null,null,null,null,null,"","PPMRC49001",null,"VMWHC VET SVCS COST RECOVERY ",null,"VMWHC VET SVCS COST RECOVERY",null,null,null,null,""]
[null,null,null,null,null,null,null,null,null,null,null,null,null,null,null,null,null,null,null,null,null,null,null,null,null,null,null,null,null,null,null,null,"","PPMRC49002",null,"WHC Vet Svcs Oiled Wildlife Care Network ",null,"WHC Vet Svcs Oiled Wildlife Care Network",null,null,null,null,""]
[null,null,null,null,null,null,null,null,null,null,null,null,null,null,null,null,null,null,null,null,null,null,null,null,null,null,null,null,null,null,null,null,"","PPMRC49003",null,"WHC Vet Svs SeaDoc Society ",null,"WHC Vet Svs SeaDoc Society",null,null,null,null,""]
[null,null,null,null,null,null,null,null,null,null,null,null,null,null,null,null,null,null,null,null,null,null,null,null,null,null,null,null,null,null,null,null,"","PPMRC49004",null,"VM OHI WHC Vet Svcs Mountain Lion Program ",null,"VM OHI WHC Vet Svcs Mountain Lion Program",null,null,null,null,""]
[null,null,null,null,null,null,null,null,null,null,null,null,null,null,null,null,null,null,null,null,null,null,null,null,null,null,null,null,null,null,null,null,"","PPMRC49005",null,"WHC Vet Svs Marine Mammal Diagnostic Lab ",null,"WHC Vet Svs Marine Mammal Diagnostic Lab",null,null,null,null,""]
[null,null,null,null,null,null,null,null,null,null,null,null,null,null,null,null,null,null,null,null,null,null,null,null,null,null,null,null,null,null,null,null,"","PPMRC87040",null,"CNPRC FLOW CYTOMETRY TRAINING ",null,"CNPRC FLOW CYTOMETRY TRAINING",null,null,null,null,""]
[null,null,null,null,null,null,null,null,null,null,null,null,null,null,null,null,null,null,null,null,null,null,null,null,null,null,null,null,null,null,null,null,"","PPMRC87050",null,"CNPRC CENTRAL SUPPLY RECHARGE ",null,"CNPRC CENTRAL SUPPLY RECHARGE",null,null,null,null,""]
[null,null,null,null,null,null,null,null,null,null,null,null,null,null,null,null,null,null,null,null,null,null,null,null,null,null,null,null,null,null,null,null,"","PPMRC87060",null,"CNPRC GENERAL HUSBANDRY PER DIEM ",null,"CNPRC GENERAL HUSBANDRY PER DIEM",null,null,null,null,""]
[null,null,null,null,null,null,null,null,null,null,null,null,null,null,null,null,null,null,null,null,null,null,null,null,null,null,null,null,null,null,null,null,"","PPMRC87070",null,"CNPRC MOU Autoclave Project ",null,"CNPRC MOU Autoclave Project",null,null,null,null,""]
[null,null,null,null,null,null,null,null,null,null,null,null,null,null,null,null,null,null,null,null,null,null,null,null,null,null,null,null,null,null,null,null,"","PPMRC87080",null,"CNPRC REPEAT SERVICES ",null,"CNPRC REPEAT SERVICES",null,null,null,null,""]
[null,null,null,null,null,null,null,null,null,null,null,null,null,null,null,null,null,null,null,null,null,null,null,null,null,null,null,null,null,null,null,null,"","PPMRC87130",null,"CNPRC LABORATORYMEDICAL SVCS PER DIEM ",null,"CNPRC LABORATORYMEDICAL SVCS PER DIEM",null,null,null,null,""]
[null,null,null,null,null,null,null,null,null,null,null,null,null,null,null,null,null,null,null,null,null,null,null,null,null,null,null,null,null,null,null,null,"","PPMRC87140",null,"CNPRC INDOOR PER DIEM ",null,"CNPRC INDOOR PER DIEM",null,null,null,null,""]
[null,null,null,null,null,null,null,null,null,null,null,null,null,null,null,null,null,null,null,null,null,null,null,null,null,null,null,null,null,null,null,null,"","PPMRC87160",null,"CNPRC FIELD CAGE PER DIEM ",null,"CNPRC FIELD CAGE PER DIEM",null,null,null,null,""]
[null,null,null,null,null,null,null,null,null,null,null,null,null,null,null,null,null,null,null,null,null,null,null,null,null,null,null,null,null,null,null,null,"","PPMRC87170",null,"CNPRC NURSERY PER DIEM ",null,"CNPRC NURSERY PER DIEM",null,null,null,null,""]
[null,null,null,null,null,null,null,null,null,null,null,null,null,null,null,null,null,null,null,null,null,null,null,null,null,null,null,null,null,null,null,null,"","PPMRC87180",null,"CNPRC TECHNICAL SERVICES PER DIEM ",null,"CNPRC TECHNICAL SERVICES PER DIEM",null,null,null,null,""]
[null,null,null,null,null,null,null,null,null,null,null,null,null,null,null,null,null,null,null,null,null,null,null,null,null,null,null,null,null,null,null,null,"","PPMRC87200",null,"CNPRC CORN CRIBS PER DIEM ",null,"CNPRC CORN CRIBS PER DIEM",null,null,null,null,""]
[null,null,null,null,null,null,null,null,null,null,null,null,null,null,null,null,null,null,null,null,null,null,null,null,null,null,null,null,null,null,null,null,"","PPMRC87210",null,"CNPRC ARF GENERAL PER DIEM ",null,"CNPRC ARF GENERAL PER DIEM",null,null,null,null,""]
[null,null,null,null,null,null,null,null,null,null,null,null,null,null,null,null,null,null,null,null,null,null,null,null,null,null,null,null,null,null,null,null,"","PPMRC87220",null,"CNPRC INFECTIOUS INDOORS PER DIEM ",null,"CNPRC INFECTIOUS INDOORS PER DIEM",null,null,null,null,""]
[null,null,null,null,null,null,null,null,null,null,null,null,null,null,null,null,null,null,null,null,null,null,null,null,null,null,null,null,null,null,null,null,"","PPMRC87240",null,"CNPRC STAFF SUPPORT OTHER ",null,"CNPRC STAFF SUPPORT OTHER",null,null,null,null,""]
[null,null,null,null,null,null,null,null,null,null,null,null,null,null,null,null,null,null,null,null,null,null,null,null,null,null,null,null,null,null,null,null,"","PPMRC87260",null,"CNPRC REFUSEGENERAL SANITATION PER DIEM ",null,"CNPRC REFUSEGENERAL SANITATION PER DIEM",null,null,null,null,""]
[null,null,null,null,null,null,null,null,null,null,null,null,null,null,null,null,null,null,null,null,null,null,null,null,null,null,null,null,null,null,null,null,"","PPMRC87300",null,"CNPRC FIELD CAGE INCOME ",null,"CNPRC FIELD CAGE INCOME",null,null,null,null,""]
[null,null,null,null,null,null,null,null,null,null,null,null,null,null,null,null,null,null,null,null,null,null,null,null,null,null,null,null,null,null,null,null,"","PPMRC87330",null,"CNPRC RESEARCH SERVICES INCOME ",null,"CNPRC RESEARCH SERVICES INCOME",null,null,null,null,""]
[null,null,null,null,null,null,null,null,null,null,null,null,null,null,null,null,null,null,null,null,null,null,null,null,null,null,null,null,null,null,null,null,"","PPMRC87340",null,"CNPRC VET SERVICES INCOME ",null,"CNPRC VET SERVICES INCOME",null,null,null,null,""]
[null,null,null,null,null,null,null,null,null,null,null,null,null,null,null,null,null,null,null,null,null,null,null,null,null,null,null,null,null,null,null,null,"","PPMRC87360",null,"CNPRC PULMONARY FUNCTION RECHARGE ",null,"CNPRC PULMONARY FUNCTION RECHARGE",null,null,null,null,""]
[null,null,null,null,null,null,null,null,null,null,null,null,null,null,null,null,null,null,null,null,null,null,null,null,null,null,null,null,null,null,null,null,"","PPMRC87370",null,"CNPRC INHALATION EXPOSURE FACILITY RECHA ",null,"CNPRC INHALATION EXPOSURE FACILITY RECHA",null,null,null,null,""]
[null,null,null,null,null,null,null,null,null,null,null,null,null,null,null,null,null,null,null,null,null,null,null,null,null,null,null,null,null,null,null,null,"","PPMRC87380",null,"CNPRC DATA SERVICES INCOME ",null,"CNPRC DATA SERVICES INCOME",null,null,null,null,""]
[null,null,null,null,null,null,null,null,null,null,null,null,null,null,null,null,null,null,null,null,null,null,null,null,null,null,null,null,null,null,null,null,"","PPMRC87390",null,"CNPRC SHOP INCOME ",null,"CNPRC SHOP INCOME",null,null,null,null,""]
[null,null,null,null,null,null,null,null,null,null,null,null,null,null,null,null,null,null,null,null,null,null,null,null,null,null,null,null,null,null,null,null,"","PPMRC87400",null,"CNPRC ANIMAL SERVICES INCOME ",null,"CNPRC ANIMAL SERVICES INCOME",null,null,null,null,""]
[null,null,null,null,null,null,null,null,null,null,null,null,null,null,null,null,null,null,null,null,null,null,null,null,null,null,null,null,null,null,null,null,"","PPMRC87410",null,"CNPRC MULTIMODAL IMAGING CORE RECHARG ",null,"CNPRC MULTIMODAL IMAGING CORE RECHARG",null,null,null,null,""]
[null,null,null,null,null,null,null,null,null,null,null,null,null,null,null,null,null,null,null,null,null,null,null,null,null,null,null,null,null,null,null,null,"","PPMRC87420",null,"CNPRC NURSERY INCOME ",null,"CNPRC NURSERY INCOME",null,null,null,null,""]
[null,null,null,null,null,null,null,null,null,null,null,null,null,null,null,null,null,null,null,null,null,null,null,null,null,null,null,null,null,null,null,null,"","PPMRC87440",null,"CNPRC GENETICS CORE RECHARGE ",null,"CNPRC GENETICS CORE RECHARGE",null,null,null,null,""]
[null,null,null,null,null,null,null,null,null,null,null,null,null,null,null,null,null,null,null,null,null,null,null,null,null,null,null,null,null,null,null,null,"","PPMRC87450",null,"CNPRC ENDOCRINE CORE MENDOZA RECHARGE ",null,"CNPRC ENDOCRINE CORE MENDOZA RECHARGE",null,null,null,null,""]
[null,null,null,null,null,null,null,null,null,null,null,null,null,null,null,null,null,null,null,null,null,null,null,null,null,null,null,null,null,null,null,null,"","PPMRC87480",null,"CNPRC BEHAVIORAL ASSESSMENT CORE RECHARG ",null,"CNPRC BEHAVIORAL ASSESSMENT CORE RECHARG",null,null,null,null,""]
[null,null,null,null,null,null,null,null,null,null,null,null,null,null,null,null,null,null,null,null,null,null,null,null,null,null,null,null,null,null,null,null,"","PPMRC87510",null,"CNPRC ENDOCRINE CORE LASLEY RECHARGE ",null,"CNPRC ENDOCRINE CORE LASLEY RECHARGE",null,null,null,null,""]
[null,null,null,null,null,null,null,null,null,null,null,null,null,null,null,null,null,null,null,null,null,null,null,null,null,null,null,null,null,null,null,null,"","PPMRC87530",null,"CNPRC RESEARCH SERVICES PER DIEM ",null,"CNPRC RESEARCH SERVICES PER DIEM",null,null,null,null,""]
[null,null,null,null,null,null,null,null,null,null,null,null,null,null,null,null,null,null,null,null,null,null,null,null,null,null,null,null,null,null,null,null,"","PPMRC87560",null,"CNPRC THERAPEUTICSPRIM MED PER DIEM ",null,"CNPRC THERAPEUTICSPRIM MED PER DIEM",null,null,null,null,""]
[null,null,null,null,null,null,null,null,null,null,null,null,null,null,null,null,null,null,null,null,null,null,null,null,null,null,null,null,null,null,null,null,"","PPMRC87570",null,"CNPRC PATHOGEN DETECTION CORE RECHARGE ",null,"CNPRC PATHOGEN DETECTION CORE RECHARGE",null,null,null,null,""]
[null,null,null,null,null,null,null,null,null,null,null,null,null,null,null,null,null,null,null,null,null,null,null,null,null,null,null,null,null,null,null,null,"","PPMRC87580",null,"CNPRC PATHOLOGY PER DIEM ",null,"CNPRC PATHOLOGY PER DIEM",null,null,null,null,""]
[null,null,null,null,null,null,null,null,null,null,null,null,null,null,null,null,null,null,null,null,null,null,null,null,null,null,null,null,null,null,null,null,"","PPMRC87590",null,"CNPRC PD QUARTERLY INDIRECT CLEARING ",null,"CNPRC PD QUARTERLY INDIRECT CLEARING",null,null,null,null,""]
[null,null,null,null,null,null,null,null,null,null,null,null,null,null,null,null,null,null,null,null,null,null,null,null,null,null,null,null,null,null,null,null,"","PPMRC87600",null,"CNPRC CAGE CHANGE PER DIEM ",null,"CNPRC CAGE CHANGE PER DIEM",null,null,null,null,""]
[null,null,null,null,null,null,null,null,null,null,null,null,null,null,null,null,null,null,null,null,null,null,null,null,null,null,null,null,null,null,null,null,"","PPMRC87610",null,"CNPRC CLINICAL LABS INCOME ",null,"CNPRC CLINICAL LABS INCOME",null,null,null,null,""]
[null,null,null,null,null,null,null,null,null,null,null,null,null,null,null,null,null,null,null,null,null,null,null,null,null,null,null,null,null,null,null,null,"","PPMRC87620",null,"CNPRC PATHOLOGY LAB INCOME ",null,"CNPRC PATHOLOGY LAB INCOME",null,null,null,null,""]
[null,null,null,null,null,null,null,null,null,null,null,null,null,null,null,null,null,null,null,null,null,null,null,null,null,null,null,null,null,null,null,null,"","PPMRC87750",null,"CNPRC ENDOCRINE CORE RECHARGE ",null,"CNPRC ENDOCRINE CORE RECHARGE",null,null,null,null,""]
[null,null,null,null,null,null,null,null,null,null,null,null,null,null,null,null,null,null,null,null,null,null,null,null,null,null,null,null,null,null,null,null,"","PPMRC87760",null,"CNPRC VIRUS STOCK RECHARGE ",null,"CNPRC VIRUS STOCK RECHARGE",null,null,null,null,""]
[null,null,null,null,null,null,null,null,null,null,null,null,null,null,null,null,null,null,null,null,null,null,null,null,null,null,null,null,null,null,null,null,"","PPMRC87770",null,"CNPRC FLOW CYTOMETRY RECHARGE ",null,"CNPRC FLOW CYTOMETRY RECHARGE",null,null,null,null,""]
[null,null,null,null,null,null,null,null,null,null,null,null,null,null,null,null,null,null,null,null,null,null,null,null,null,null,null,null,null,null,null,null,"","PPMRC87830",null,"CNPRC IT SERVICES RECHARGE ",null,"CNPRC IT SERVICES RECHARGE",null,null,null,null,""]
[null,null,null,null,null,null,null,null,null,null,null,null,null,null,null,null,null,null,null,null,null,null,null,null,null,null,null,null,null,null,null,null,"","PPMRC87860",null,"CNPRC IMMUNOLOGY CORE RECHARGE ",null,"CNPRC IMMUNOLOGY CORE RECHARGE",null,null,null,null,""]
[null,null,null,null,null,null,null,null,null,null,null,null,null,null,null,null,null,null,null,null,null,null,null,null,null,null,null,null,null,null,null,null,"","PPMRC87930",null,"CNPRC COVID 19 SUPPORT ",null,"CNPRC COVID 19 SUPPORT",null,null,null,null,""]
[null,null,null,null,null,null,null,null,null,null,null,null,null,null,null,null,null,null,null,null,null,null,null,null,null,null,null,null,null,null,null,null,"","PPMRC87940",null,"CNPRC ANIMAL SALES INCOME ",null,"CNPRC ANIMAL SALES INCOME",null,null,null,null,""]
[null,null,null,null,null,null,null,null,null,null,null,null,null,null,null,null,null,null,null,null,null,null,null,null,null,null,null,null,null,null,null,null,"","PPMRC87950",null,"CNPRC PATHOGEN DETECTION LAB MARKUP ",null,"CNPRC PATHOGEN DETECTION LAB MARKUP",null,null,null,null,""]
[null,null,null,null,null,null,null,null,null,null,null,null,null,null,null,null,null,null,null,null,null,null,null,null,null,null,null,null,null,null,null,null,"","PPMRC87970",null,"CNPRC ALLERGY CORE RECHARGE ",null,"CNPRC ALLERGY CORE RECHARGE",null,null,null,null,""]
[null,null,null,null,null,null,null,null,null,null,null,null,null,null,null,null,null,null,null,null,null,null,null,null,null,null,null,null,null,null,null,null,"","PPMRC87990",null,"CNPRC COLONY SUPPORT ",null,"CNPRC COLONY SUPPORT",null,null,null,null,""]
[null,null,null,null,null,null,null,null,null,null,null,null,null,null,null,null,null,null,null,null,null,null,null,null,null,null,null,null,null,null,null,null,"","PPMRC90270",null,"CNPRC VPC8795 SUMMER TUITION FEES ",null,"CNPRC VPC8795 SUMMER TUITION FEES",null,null,null,null,""]
[null,null,null,null,null,null,null,null,null,null,null,null,null,null,null,null,null,null,null,null,null,null,null,null,null,null,null,null,null,null,null,null,"","PPMRC90700",null,"CNPRC B C RATE PROGRAM INCOME ",null,"CNPRC B C RATE PROGRAM INCOME",null,null,null,null,""]
[null,null,null,null,null,null,null,null,null,null,null,null,null,null,null,null,null,null,null,null,null,null,null,null,null,null,null,null,null,null,null,null,"","PPMRC90960",null,"CNPRC B C Rate Admin HR ",null,"CNPRC B C Rate Admin HR",null,null,null,null,""]
[null,null,null,null,null,null,null,null,null,null,null,null,null,null,null,null,null,null,null,null,null,null,null,null,null,null,null,null,null,null,null,null,"","PPMRC90970",null,"CNPRC B C Rate Admin PSO ",null,"CNPRC B C Rate Admin PSO",null,null,null,null,""]
[null,null,null,null,null,null,null,null,null,null,null,null,null,null,null,null,null,null,null,null,null,null,null,null,null,null,null,null,null,null,null,null,"","PPMRC90980",null,"CNPRC B C Rate Admin Facilities ",null,"CNPRC B C Rate Admin Facilities",null,null,null,null,""]
[null,null,null,null,null,null,null,null,null,null,null,null,null,null,null,null,null,null,null,null,null,null,null,null,null,null,null,null,null,null,null,null,"","PPMRCBZ200",null,"CNPRC Roberts NIH OD010990 SPF INCOME ",null,"CNPRC Roberts NIH OD010990 SPF INCOME",null,null,null,null,""]
[null,null,null,null,null,null,null,null,null,null,null,null,null,null,null,null,null,null,null,null,null,null,null,null,null,null,null,null,null,null,null,null,"","PPMRCDCTS8",null,"IET Data Center Recharge ",null,"IET Data Center Recharge",null,null,null,null,""]
[null,null,null,null,null,null,null,null,null,null,null,null,null,null,null,null,null,null,null,null,null,null,null,null,null,null,null,null,null,null,null,null,"","PPMRCDDACR",null,"ANR DESERT REC ACRE RATE ",null,"ANR DESERT REC ACRE RATE",null,null,null,null,""]
[null,null,null,null,null,null,null,null,null,null,null,null,null,null,null,null,null,null,null,null,null,null,null,null,null,null,null,null,null,null,null,null,"","PPMRCDDDRH",null,"ANR DESERT REC DIRECT RESEARCH HOURS RATE ",null,"ANR DESERT REC DIRECT RESEARCH HOURS RATE",null,null,null,null,""]
[null,null,null,null,null,null,null,null,null,null,null,null,null,null,null,null,null,null,null,null,null,null,null,null,null,null,null,null,null,null,null,null,"","PPMRCDDFEP",null,"ANR DESERT REC FEEDYARD PENS RATE ",null,"ANR DESERT REC FEEDYARD PENS RATE",null,null,null,null,""]
[null,null,null,null,null,null,null,null,null,null,null,null,null,null,null,null,null,null,null,null,null,null,null,null,null,null,null,null,null,null,null,null,"","PPMRCDDPIR",null,"ANR DESERT REC PRESSURIZED IRRIGATION RATE ",null,"ANR DESERT REC PRESSURIZED IRRIGATION RATE",null,null,null,null,""]
[null,null,null,null,null,null,null,null,null,null,null,null,null,null,null,null,null,null,null,null,null,null,null,null,null,null,null,null,null,null,null,null,"","PPMRCEDITP",null,"ANR EDITORIAL PUBLICATIONS RATE ",null,"ANR EDITORIAL PUBLICATIONS RATE",null,null,null,null,""]
[null,null,null,null,null,null,null,null,null,null,null,null,null,null,null,null,null,null,null,null,null,null,null,null,null,null,null,null,null,null,null,null,"","PPMRCEZ450",null,"CNPRC B-C RATE ADMIN – IT ",null,"CNPRC B-C RATE ADMIN – IT",null,null,null,null,""]
[null,null,null,null,null,null,null,null,null,null,null,null,null,null,null,null,null,null,null,null,null,null,null,null,null,null,null,null,null,null,null,null,"","PPMRCHAACR",null,"ANR HANSEN REC ACRE RATE ",null,"ANR HANSEN REC ACRE RATE",null,null,null,null,""]
[null,null,null,null,null,null,null,null,null,null,null,null,null,null,null,null,null,null,null,null,null,null,null,null,null,null,null,null,null,null,null,null,"","PPMRCHADRH",null,"ANR HANSEN REC DIRECT RESEARCH HOURS RATE ",null,"ANR HANSEN REC DIRECT RESEARCH HOURS RATE",null,null,null,null,""]
[null,null,null,null,null,null,null,null,null,null,null,null,null,null,null,null,null,null,null,null,null,null,null,null,null,null,null,null,null,null,null,null,"","PPMRCHHANC",null,"ANR HOPLAND REC ANIMAL CARE RATE ",null,"ANR HOPLAND REC ANIMAL CARE RATE",null,null,null,null,""]
[null,null,null,null,null,null,null,null,null,null,null,null,null,null,null,null,null,null,null,null,null,null,null,null,null,null,null,null,null,null,null,null,"","PPMRCHHDRH",null,"ANR HOPLAND REC DIRECT RESEARCH HOURS RATE ",null,"ANR HOPLAND REC DIRECT RESEARCH HOURS RATE",null,null,null,null,""]
[null,null,null,null,null,null,null,null,null,null,null,null,null,null,null,null,null,null,null,null,null,null,null,null,null,null,null,null,null,null,null,null,"","PPMRCHHPRJ",null,"ANR HOPLAND REC PROJECT RATE ",null,"ANR HOPLAND REC PROJECT RATE",null,null,null,null,""]
[null,null,null,null,null,null,null,null,null,null,null,null,null,null,null,null,null,null,null,null,null,null,null,null,null,null,null,null,null,null,null,null,"","PPMRCIGISR",null,"ANR INFORMATICS AND GIS PROGRAM RATE ",null,"ANR INFORMATICS AND GIS PROGRAM RATE",null,null,null,null,""]
[null,null,null,null,null,null,null,null,null,null,null,null,null,null,null,null,null,null,null,null,null,null,null,null,null,null,null,null,null,null,null,null,"","PPMRCIIACR",null,"ANR INTERMOUNTAIN REC UNIFORM CROPPING ACRES RATE ",null,"ANR INTERMOUNTAIN REC UNIFORM CROPPING ACRES RATE",null,null,null,null,""]
[null,null,null,null,null,null,null,null,null,null,null,null,null,null,null,null,null,null,null,null,null,null,null,null,null,null,null,null,null,null,null,null,"","PPMRCIIDRH",null,"ANR INTERMOUNTAIN REC DIRECT RESEARCH HOURS RATE ",null,"ANR INTERMOUNTAIN REC DIRECT RESEARCH HOURS RATE",null,null,null,null,""]
[null,null,null,null,null,null,null,null,null,null,null,null,null,null,null,null,null,null,null,null,null,null,null,null,null,null,null,null,null,null,null,null,"","PPMRCIIWTR",null,"ANR INTERMOUNTAIN REC WATER RATE ",null,"ANR INTERMOUNTAIN REC WATER RATE",null,null,null,null,""]
[null,null,null,null,null,null,null,null,null,null,null,null,null,null,null,null,null,null,null,null,null,null,null,null,null,null,null,null,null,null,null,null,"","PPMRCKKACR",null,"ANR KEARNEY REC ACRE RATE ",null,"ANR KEARNEY REC ACRE RATE",null,null,null,null,""]
[null,null,null,null,null,null,null,null,null,null,null,null,null,null,null,null,null,null,null,null,null,null,null,null,null,null,null,null,null,null,null,null,"","PPMRCKKDRH",null,"ANR KEARNEY REC DIRECT RESEARCH HOURS RATE ",null,"ANR KEARNEY REC DIRECT RESEARCH HOURS RATE",null,null,null,null,""]
[null,null,null,null,null,null,null,null,null,null,null,null,null,null,null,null,null,null,null,null,null,null,null,null,null,null,null,null,null,null,null,null,"","PPMRCLLACR",null,"ANR LINDCOVE REC ACRE RATE ",null,"ANR LINDCOVE REC ACRE RATE",null,null,null,null,""]
[null,null,null,null,null,null,null,null,null,null,null,null,null,null,null,null,null,null,null,null,null,null,null,null,null,null,null,null,null,null,null,null,"","PPMRCLLDRH",null,"ANR LINDCOVE REC DIRECTRESEARCH HOURS RATE ",null,"ANR LINDCOVE REC DIRECTRESEARCH HOURS RATE",null,null,null,null,""]
[null,null,null,null,null,null,null,null,null,null,null,null,null,null,null,null,null,null,null,null,null,null,null,null,null,null,null,null,null,null,null,null,"","PPMRCLLPKL",null,"ANR LINDCOVE REC PACKLINE RATE ",null,"ANR LINDCOVE REC PACKLINE RATE",null,null,null,null,""]
[null,null,null,null,null,null,null,null,null,null,null,null,null,null,null,null,null,null,null,null,null,null,null,null,null,null,null,null,null,null,null,null,"","PPMRCNIOSR",null,"ANR SPANISH TRANSLATION SERVICES RATE ",null,"ANR SPANISH TRANSLATION SERVICES RATE",null,null,null,null,""]
[null,null,null,null,null,null,null,null,null,null,null,null,null,null,null,null,null,null,null,null,null,null,null,null,null,null,null,null,null,null,null,null,"","PPMRCSASSV",null,"IET System Administration Recharge ",null,"IET System Administration Recharge",null,null,null,null,""]
[null,null,null,null,null,null,null,null,null,null,null,null,null,null,null,null,null,null,null,null,null,null,null,null,null,null,null,null,null,null,null,null,"","PPMRCSCACR",null,"ANR SOUTH COAST REC ACRE RATE ",null,"ANR SOUTH COAST REC ACRE RATE",null,null,null,null,""]
[null,null,null,null,null,null,null,null,null,null,null,null,null,null,null,null,null,null,null,null,null,null,null,null,null,null,null,null,null,null,null,null,"","PPMRCSCDRH",null,"ANR SOUTH COAST REC DIRECT RESEARCH HOURS RATE ",null,"ANR SOUTH COAST REC DIRECT RESEARCH HOURS RATE",null,null,null,null,""]
[null,null,null,null,null,null,null,null,null,null,null,null,null,null,null,null,null,null,null,null,null,null,null,null,null,null,null,null,null,null,null,null,"","PPMRCSCSQF",null,"ANR SOUTH COAST REC SQUARE FOOT RATE ",null,"ANR SOUTH COAST REC SQUARE FOOT RATE",null,null,null,null,""]
[null,null,null,null,null,null,null,null,null,null,null,null,null,null,null,null,null,null,null,null,null,null,null,null,null,null,null,null,null,null,null,null,"","PPMRCSFARH",null,"ANR SIERRA FOOTHILL REC DIRECT RESEARCH ANIMAL HOURS RATE ",null,"ANR SIERRA FOOTHILL REC DIRECT RESEARCH ANIMAL HOURS RATE",null,null,null,null,""]
[null,null,null,null,null,null,null,null,null,null,null,null,null,null,null,null,null,null,null,null,null,null,null,null,null,null,null,null,null,null,null,null,"","PPMRCSFDRH",null,"ANR SIERRA FOOTHILL REC DIRECT RESEARCH HOURS RATE ",null,"ANR SIERRA FOOTHILL REC DIRECT RESEARCH HOURS RATE",null,null,null,null,""]
[null,null,null,null,null,null,null,null,null,null,null,null,null,null,null,null,null,null,null,null,null,null,null,null,null,null,null,null,null,null,null,null,"","PPMRCSFPRJ",null,"ANR SIERRA FOOTHILL REC PROJECT RATE ",null,"ANR SIERRA FOOTHILL REC PROJECT RATE",null,null,null,null,""]
[null,null,null,null,null,null,null,null,null,null,null,null,null,null,null,null,null,null,null,null,null,null,null,null,null,null,null,null,null,null,null,null,"","PPMRCWSACR",null,"ANR WEST SIDE REC ACRE RATE ",null,"ANR WEST SIDE REC ACRE RATE",null,null,null,null,""]
[null,null,null,null,null,null,null,null,null,null,null,null,null,null,null,null,null,null,null,null,null,null,null,null,null,null,null,null,null,null,null,null,"","PPMRCWSDRH",null,"ANR WEST SIDE REC DIRECT RESEARCH HOURS RATE ",null,"ANR WEST SIDE REC DIRECT RESEARCH HOURS RATE",null,null,null,null,""]
[null,null,null,null,null,null,null,null,null,null,null,null,null,null,null,null,null,null,null,null,null,null,null,null,null,null,null,null,null,null,null,null,"","PPMRCWSWTR",null,"ANR WEST SIDE REC WATER RATE ",null,"ANR WEST SIDE REC WATER RATE",null,null,null,null,""]
[null,null,null,null,null,null,null,null,null,null,null,null,null,null,null,null,null,null,null,null,null,null,null,null,null,null,null,null,null,null,null,null,"",null,null,"PPM Recharges Non Scientific ",null,"PPM Recharges Non Scientific",null,null,null,null,""]
[null,null,null,null,null,null,null,null,null,null,null,null,null,null,null,null,null,null,null,null,null,null,null,null,null,null,null,null,null,null,null,null,"","PPMIETCGA1",null,"IET CGA ",null,"IET CGA",null,null,null,null,""]
[null,null,null,null,null,null,null,null,null,null,null,null,null,null,null,null,null,null,null,null,null,null,null,null,null,null,null,null,null,null,null,null,"","PPMIETNSC1",null,"IET Network Service Center Recharge ",null,"IET Network Service Center Recharge",null,null,null,null,""]
[null,null,null,null,null,null,null,null,null,null,null,null,null,null,null,null,null,null,null,null,null,null,null,null,null,null,null,null,null,null,null,null,"","PPMRCAPDL8",null,"IET Applications Delivery ",null,"IET Applications Delivery",null,null,null,null,""]
[null,null,null,null,null,null,null,null,null,null,null,null,null,null,null,null,null,null,null,null,null,null,null,null,null,null,null,null,null,null,null,null,"","PPMRCCLMGT",null,"IET Computer Lab Management ",null,"IET Computer Lab Management",null,null,null,null,""]
[null,null,null,null,null,null,null,null,null,null,null,null,null,null,null,null,null,null,null,null,null,null,null,null,null,null,null,null,null,null,null,null,"","PPMRCCTENG",null,"IET Classroom Technology Engineering ",null,"IET Classroom Technology Engineering",null,null,null,null,""]
[null,null,null,null,null,null,null,null,null,null,null,null,null,null,null,null,null,null,null,null,null,null,null,null,null,null,null,null,null,null,null,null,"","PPMRCCTINS",null,"IET Classroom Technology Installation ",null,"IET Classroom Technology Installation",null,null,null,null,""]
[null,null,null,null,null,null,null,null,null,null,null,null,null,null,null,null,null,null,null,null,null,null,null,null,null,null,null,null,null,null,null,null,"","PPMRCDCTI8",null,"IET Data Center Services ",null,"IET Data Center Services",null,null,null,null,""]
[null,null,null,null,null,null,null,null,null,null,null,null,null,null,null,null,null,null,null,null,null,null,null,null,null,null,null,null,null,null,null,null,"","PPMRCINFR8",null,"IET Infrastructure Services ",null,"IET Infrastructure Services",null,null,null,null,""]
[null,null,null,null,null,null,null,null,null,null,null,null,null,null,null,null,null,null,null,null,null,null,null,null,null,null,null,null,null,null,null,null,"","PPMRCNOC08",null,"IET Network Operations Center ",null,"IET Network Operations Center",null,null,null,null,""]
[null,null,null,null,null,null,null,null,null,null,null,null,null,null,null,null,null,null,null,null,null,null,null,null,null,null,null,null,null,null,null,null,"","PPMRCTMANT",null,"IET Classroom Technology Maintenance ",null,"IET Classroom Technology Maintenance",null,null,null,null,""]
[null,null,null,null,null,null,null,null,null,null,null,null,null,null,null,null,null,null,null,null,null,null,null,null,null,null,null,null,null,null,null,null,"","PPMRINSMED",null,"IET Multimedia Service ",null,"IET Multimedia Service",null,null,null,null,""]
[null,null,null,null,null,null,null,null,null,null,null,null,null,null,null,null,null,null,null,null,null,null,null,null,null,null,null,null,null,null,null,null,"",null,null,"Internal Student Awards ",null,"Internal Student Awards",null,null,null,null,""]
[null,null,null,null,null,null,null,null,null,null,null,null,null,null,null,null,null,null,null,null,null,null,null,null,null,null,null,null,null,null,null,null,"","ANUTSA0001",null,"ANUT Student Awards ",null,"ANUT Student Awards",null,null,null,null,""]
[null,null,null,null,null,null,null,null,null,null,null,null,null,null,null,null,null,null,null,null,null,null,null,null,null,null,null,null,null,null,null,null,"","BCNSSA0000",null,"CNS Student Awards ",null,"CNS Student Awards",null,null,null,null,""]
[null,null,null,null,null,null,null,null,null,null,null,null,null,null,null,null,null,null,null,null,null,null,null,null,null,null,null,null,null,null,null,null,"","BCPBSA0000",null,"CPB Student Awards ",null,"CPB Student Awards",null,null,null,null,""]
[null,null,null,null,null,null,null,null,null,null,null,null,null,null,null,null,null,null,null,null,null,null,null,null,null,null,null,null,null,null,null,null,"","BEVESA0000",null,"EVE Student Awards ",null,"EVE Student Awards",null,null,null,null,""]
[null,null,null,null,null,null,null,null,null,null,null,null,null,null,null,null,null,null,null,null,null,null,null,null,null,null,null,null,null,null,null,null,"","BGENSA0000",null,"GEN Student Awards ",null,"GEN Student Awards",null,null,null,null,""]
[null,null,null,null,null,null,null,null,null,null,null,null,null,null,null,null,null,null,null,null,null,null,null,null,null,null,null,null,null,null,null,null,"","BMCBSA0000",null,"MCB Student Awards ",null,"MCB Student Awards",null,null,null,null,""]
[null,null,null,null,null,null,null,null,null,null,null,null,null,null,null,null,null,null,null,null,null,null,null,null,null,null,null,null,null,null,null,null,"","BMMGSA0000",null,"MMG Student Awards ",null,"MMG Student Awards",null,null,null,null,""]
[null,null,null,null,null,null,null,null,null,null,null,null,null,null,null,null,null,null,null,null,null,null,null,null,null,null,null,null,null,null,null,null,"","BNPBSA0000",null,"NPB Student Awards ",null,"NPB Student Awards",null,null,null,null,""]
[null,null,null,null,null,null,null,null,null,null,null,null,null,null,null,null,null,null,null,null,null,null,null,null,null,null,null,null,null,null,null,null,"","BPLBSA0000",null,"PLB Student Awards ",null,"PLB Student Awards",null,null,null,null,""]
[null,null,null,null,null,null,null,null,null,null,null,null,null,null,null,null,null,null,null,null,null,null,null,null,null,null,null,null,null,null,null,null,"","DWSA000001",null,"DEAN WITTERD Student Project ",null,"DEAN WITTERD Student Project",null,null,null,null,""]
[null,null,null,null,null,null,null,null,null,null,null,null,null,null,null,null,null,null,null,null,null,null,null,null,null,null,null,null,null,null,null,null,"","GHYS000001",null,"GHYS Student Awards ",null,"GHYS Student Awards",null,null,null,null,""]
[null,null,null,null,null,null,null,null,null,null,null,null,null,null,null,null,null,null,null,null,null,null,null,null,null,null,null,null,null,null,null,null,"","IMADSA0001",null,"MED IMAD Trainee Research Award ",null,"MED IMAD Trainee Research Award",null,null,null,null,""]
[null,null,null,null,null,null,null,null,null,null,null,null,null,null,null,null,null,null,null,null,null,null,null,null,null,null,null,null,null,null,null,null,"","LAASSA0000",null,"AAS Student Awards ",null,"AAS Student Awards",null,null,null,null,""]
[null,null,null,null,null,null,null,null,null,null,null,null,null,null,null,null,null,null,null,null,null,null,null,null,null,null,null,null,null,null,null,null,"","LAASSAUG00",null,"AAS UG Student Awards ",null,"AAS UG Student Awards",null,null,null,null,""]
[null,null,null,null,null,null,null,null,null,null,null,null,null,null,null,null,null,null,null,null,null,null,null,null,null,null,null,null,null,null,null,null,"","LAHISA0000",null,"AHI Student Awards ",null,"AHI Student Awards",null,null,null,null,""]
[null,null,null,null,null,null,null,null,null,null,null,null,null,null,null,null,null,null,null,null,null,null,null,null,null,null,null,null,null,null,null,null,"","LAHISAUG00",null,"AHI UG Student Awards ",null,"AHI UG Student Awards",null,null,null,null,""]
[null,null,null,null,null,null,null,null,null,null,null,null,null,null,null,null,null,null,null,null,null,null,null,null,null,null,null,null,null,null,null,null,"","LAMSSA0000",null,"AMS Student Awards ",null,"AMS Student Awards",null,null,null,null,""]
[null,null,null,null,null,null,null,null,null,null,null,null,null,null,null,null,null,null,null,null,null,null,null,null,null,null,null,null,null,null,null,null,"","LAMSSAUG00",null,"AMS UG Student Awards ",null,"AMS UG Student Awards",null,null,null,null,""]
[null,null,null,null,null,null,null,null,null,null,null,null,null,null,null,null,null,null,null,null,null,null,null,null,null,null,null,null,null,null,null,null,"","LANTSA0000",null,"ANT Student Awards ",null,"ANT Student Awards",null,null,null,null,""]
[null,null,null,null,null,null,null,null,null,null,null,null,null,null,null,null,null,null,null,null,null,null,null,null,null,null,null,null,null,null,null,null,"","LANTSAUG00",null,"ANT UG Student Awards ",null,"ANT UG Student Awards",null,null,null,null,""]
[null,null,null,null,null,null,null,null,null,null,null,null,null,null,null,null,null,null,null,null,null,null,null,null,null,null,null,null,null,null,null,null,"","LASASA0000",null,"ASA Student Awards ",null,"ASA Student Awards",null,null,null,null,""]
[null,null,null,null,null,null,null,null,null,null,null,null,null,null,null,null,null,null,null,null,null,null,null,null,null,null,null,null,null,null,null,null,"","LASASAUG00",null,"ASA UG Student Awards ",null,"ASA UG Student Awards",null,null,null,null,""]
[null,null,null,null,null,null,null,null,null,null,null,null,null,null,null,null,null,null,null,null,null,null,null,null,null,null,null,null,null,null,null,null,"","LASTSA0000",null,"AST Student Awards ",null,"AST Student Awards",null,null,null,null,""]
[null,null,null,null,null,null,null,null,null,null,null,null,null,null,null,null,null,null,null,null,null,null,null,null,null,null,null,null,null,null,null,null,"","LASTSAUG00",null,"AST UG Student Awards ",null,"AST UG Student Awards",null,null,null,null,""]
[null,null,null,null,null,null,null,null,null,null,null,null,null,null,null,null,null,null,null,null,null,null,null,null,null,null,null,null,null,null,null,null,"","LCHESA0000",null,"CHE Student Awards ",null,"CHE Student Awards",null,null,null,null,""]
[null,null,null,null,null,null,null,null,null,null,null,null,null,null,null,null,null,null,null,null,null,null,null,null,null,null,null,null,null,null,null,null,"","LCHESAUG00",null,"CHE UG Student Awards ",null,"CHE UG Student Awards",null,null,null,null,""]
[null,null,null,null,null,null,null,null,null,null,null,null,null,null,null,null,null,null,null,null,null,null,null,null,null,null,null,null,null,null,null,null,"","LCHISA0000",null,"CHI Student Awards ",null,"CHI Student Awards",null,null,null,null,""]
[null,null,null,null,null,null,null,null,null,null,null,null,null,null,null,null,null,null,null,null,null,null,null,null,null,null,null,null,null,null,null,null,"","LCHISAUG00",null,"CHI UG Student Awards ",null,"CHI UG Student Awards",null,null,null,null,""]
[null,null,null,null,null,null,null,null,null,null,null,null,null,null,null,null,null,null,null,null,null,null,null,null,null,null,null,null,null,null,null,null,"","LCLASAUG00",null,"CLA UG Student Awards ",null,"CLA UG Student Awards",null,null,null,null,""]
[null,null,null,null,null,null,null,null,null,null,null,null,null,null,null,null,null,null,null,null,null,null,null,null,null,null,null,null,null,null,null,null,"","LCMNSA0000",null,"CMN Student Awards ",null,"CMN Student Awards",null,null,null,null,""]
[null,null,null,null,null,null,null,null,null,null,null,null,null,null,null,null,null,null,null,null,null,null,null,null,null,null,null,null,null,null,null,null,"","LCMNSAUG00",null,"CMN UG Student Awards ",null,"CMN UG Student Awards",null,null,null,null,""]
[null,null,null,null,null,null,null,null,null,null,null,null,null,null,null,null,null,null,null,null,null,null,null,null,null,null,null,null,null,null,null,null,"","LCOMSA0000",null,"COM Student Awards ",null,"COM Student Awards",null,null,null,null,""]
[null,null,null,null,null,null,null,null,null,null,null,null,null,null,null,null,null,null,null,null,null,null,null,null,null,null,null,null,null,null,null,null,"","LCOMSAUG00",null,"COM UG Student Awards ",null,"COM UG Student Awards",null,null,null,null,""]
[null,null,null,null,null,null,null,null,null,null,null,null,null,null,null,null,null,null,null,null,null,null,null,null,null,null,null,null,null,null,null,null,"","LCSTSA0000",null,"CST Student Awards ",null,"CST Student Awards",null,null,null,null,""]
[null,null,null,null,null,null,null,null,null,null,null,null,null,null,null,null,null,null,null,null,null,null,null,null,null,null,null,null,null,null,null,null,"","LDESSA0000",null,"DES Student Awards ",null,"DES Student Awards",null,null,null,null,""]
[null,null,null,null,null,null,null,null,null,null,null,null,null,null,null,null,null,null,null,null,null,null,null,null,null,null,null,null,null,null,null,null,"","LDESSAUG00",null,"DES UG Student Awards ",null,"DES UG Student Awards",null,null,null,null,""]
[null,null,null,null,null,null,null,null,null,null,null,null,null,null,null,null,null,null,null,null,null,null,null,null,null,null,null,null,null,null,null,null,"","LDRASA0000",null,"DRA Student Awards ",null,"DRA Student Awards",null,null,null,null,""]
[null,null,null,null,null,null,null,null,null,null,null,null,null,null,null,null,null,null,null,null,null,null,null,null,null,null,null,null,null,null,null,null,"","LDRASAUG00",null,"DRA UG Student Awards ",null,"DRA UG Student Awards",null,null,null,null,""]
[null,null,null,null,null,null,null,null,null,null,null,null,null,null,null,null,null,null,null,null,null,null,null,null,null,null,null,null,null,null,null,null,"","LEALSA0000",null,"EAL Student Awards ",null,"EAL Student Awards",null,null,null,null,""]
[null,null,null,null,null,null,null,null,null,null,null,null,null,null,null,null,null,null,null,null,null,null,null,null,null,null,null,null,null,null,null,null,"","LEALSAUG00",null,"EAL UG Student Awards ",null,"EAL UG Student Awards",null,null,null,null,""]
[null,null,null,null,null,null,null,null,null,null,null,null,null,null,null,null,null,null,null,null,null,null,null,null,null,null,null,null,null,null,null,null,"","LECNSA0000",null,"ECN Student Awards ",null,"ECN Student Awards",null,null,null,null,""]
[null,null,null,null,null,null,null,null,null,null,null,null,null,null,null,null,null,null,null,null,null,null,null,null,null,null,null,null,null,null,null,null,"","LECNSAUG00",null,"ECN UG Student Awards ",null,"ECN UG Student Awards",null,null,null,null,""]
[null,null,null,null,null,null,null,null,null,null,null,null,null,null,null,null,null,null,null,null,null,null,null,null,null,null,null,null,null,null,null,null,"","LENLSA0000",null,"ENL Student Awards ",null,"ENL Student Awards",null,null,null,null,""]
[null,null,null,null,null,null,null,null,null,null,null,null,null,null,null,null,null,null,null,null,null,null,null,null,null,null,null,null,null,null,null,null,"","LENLSAUG00",null,"ENL UG Student Awards ",null,"ENL UG Student Awards",null,null,null,null,""]
[null,null,null,null,null,null,null,null,null,null,null,null,null,null,null,null,null,null,null,null,null,null,null,null,null,null,null,null,null,null,null,null,"","LEPSSA0000",null,"EPS Student Awards ",null,"EPS Student Awards",null,null,null,null,""]
[null,null,null,null,null,null,null,null,null,null,null,null,null,null,null,null,null,null,null,null,null,null,null,null,null,null,null,null,null,null,null,null,"","LEPSSAG000",null,"EPS Graduate Student Awards ",null,"EPS Graduate Student Awards",null,null,null,null,""]
[null,null,null,null,null,null,null,null,null,null,null,null,null,null,null,null,null,null,null,null,null,null,null,null,null,null,null,null,null,null,null,null,"","LEPSSAUG00",null,"EPS UG Student Awards ",null,"EPS UG Student Awards",null,null,null,null,""]
[null,null,null,null,null,null,null,null,null,null,null,null,null,null,null,null,null,null,null,null,null,null,null,null,null,null,null,null,null,null,null,null,"","LFRESA0000",null,"FRE Student Awards ",null,"FRE Student Awards",null,null,null,null,""]
[null,null,null,null,null,null,null,null,null,null,null,null,null,null,null,null,null,null,null,null,null,null,null,null,null,null,null,null,null,null,null,null,"","LFRESAUG00",null,"FRE UG Student Awards ",null,"FRE UG Student Awards",null,null,null,null,""]
[null,null,null,null,null,null,null,null,null,null,null,null,null,null,null,null,null,null,null,null,null,null,null,null,null,null,null,null,null,null,null,null,"","LGERSA0000",null,"GER Student Awards ",null,"GER Student Awards",null,null,null,null,""]
[null,null,null,null,null,null,null,null,null,null,null,null,null,null,null,null,null,null,null,null,null,null,null,null,null,null,null,null,null,null,null,null,"","LGERSAUG00",null,"GER UG Student Awards ",null,"GER UG Student Awards",null,null,null,null,""]
[null,null,null,null,null,null,null,null,null,null,null,null,null,null,null,null,null,null,null,null,null,null,null,null,null,null,null,null,null,null,null,null,"","LGSWSA0000",null,"GSW Student Awards ",null,"GSW Student Awards",null,null,null,null,""]
[null,null,null,null,null,null,null,null,null,null,null,null,null,null,null,null,null,null,null,null,null,null,null,null,null,null,null,null,null,null,null,null,"","LGSWSAUG00",null,"GSW UG Student Awards ",null,"GSW UG Student Awards",null,null,null,null,""]
[null,null,null,null,null,null,null,null,null,null,null,null,null,null,null,null,null,null,null,null,null,null,null,null,null,null,null,null,null,null,null,null,"","LHISSA0000",null,"HIS Student Awards ",null,"HIS Student Awards",null,null,null,null,""]
[null,null,null,null,null,null,null,null,null,null,null,null,null,null,null,null,null,null,null,null,null,null,null,null,null,null,null,null,null,null,null,null,"","LHISSAUG00",null,"HIS UG Student Awards ",null,"HIS UG Student Awards",null,null,null,null,""]
[null,null,null,null,null,null,null,null,null,null,null,null,null,null,null,null,null,null,null,null,null,null,null,null,null,null,null,null,null,null,null,null,"","LJESSA0000",null,"JES Student Awards ",null,"JES Student Awards",null,null,null,null,""]
[null,null,null,null,null,null,null,null,null,null,null,null,null,null,null,null,null,null,null,null,null,null,null,null,null,null,null,null,null,null,null,null,"","LLINSA0000",null,"LIN Student Awards ",null,"LIN Student Awards",null,null,null,null,""]
[null,null,null,null,null,null,null,null,null,null,null,null,null,null,null,null,null,null,null,null,null,null,null,null,null,null,null,null,null,null,null,null,"","LLINSAUG00",null,"LIN UG Student Awards ",null,"LIN UG Student Awards",null,null,null,null,""]
[null,null,null,null,null,null,null,null,null,null,null,null,null,null,null,null,null,null,null,null,null,null,null,null,null,null,null,null,null,null,null,null,"","LMATSA0000",null,"MAT Student Awards ",null,"MAT Student Awards",null,null,null,null,""]
[null,null,null,null,null,null,null,null,null,null,null,null,null,null,null,null,null,null,null,null,null,null,null,null,null,null,null,null,null,null,null,null,"","LMATSAUG00",null,"MAT UG Student Awards ",null,"MAT UG Student Awards",null,null,null,null,""]
[null,null,null,null,null,null,null,null,null,null,null,null,null,null,null,null,null,null,null,null,null,null,null,null,null,null,null,null,null,null,null,null,"","LMSASA0000",null,"MSA Student Awards ",null,"MSA Student Awards",null,null,null,null,""]
[null,null,null,null,null,null,null,null,null,null,null,null,null,null,null,null,null,null,null,null,null,null,null,null,null,null,null,null,null,null,null,null,"","LMSASAUG00",null,"MSA UG Student Awards ",null,"MSA UG Student Awards",null,null,null,null,""]
[null,null,null,null,null,null,null,null,null,null,null,null,null,null,null,null,null,null,null,null,null,null,null,null,null,null,null,null,null,null,null,null,"","LMUSSA0000",null,"MUS Student Awards ",null,"MUS Student Awards",null,null,null,null,""]
[null,null,null,null,null,null,null,null,null,null,null,null,null,null,null,null,null,null,null,null,null,null,null,null,null,null,null,null,null,null,null,null,"","LMUSSAUG00",null,"MUS UG Student Awards ",null,"MUS UG Student Awards",null,null,null,null,""]
[null,null,null,null,null,null,null,null,null,null,null,null,null,null,null,null,null,null,null,null,null,null,null,null,null,null,null,null,null,null,null,null,"","LNASSA0000",null,"NAS Student Awards ",null,"NAS Student Awards",null,null,null,null,""]
[null,null,null,null,null,null,null,null,null,null,null,null,null,null,null,null,null,null,null,null,null,null,null,null,null,null,null,null,null,null,null,null,"","LNASSAUG00",null,"NAS UG Student Awards ",null,"NAS UG Student Awards",null,null,null,null,""]
[null,null,null,null,null,null,null,null,null,null,null,null,null,null,null,null,null,null,null,null,null,null,null,null,null,null,null,null,null,null,null,null,"","LPFSSA0000",null,"PFS Student Awards ",null,"PFS Student Awards",null,null,null,null,""]
[null,null,null,null,null,null,null,null,null,null,null,null,null,null,null,null,null,null,null,null,null,null,null,null,null,null,null,null,null,null,null,null,"","LPHISA0000",null,"PHI Student Awards ",null,"PHI Student Awards",null,null,null,null,""]
[null,null,null,null,null,null,null,null,null,null,null,null,null,null,null,null,null,null,null,null,null,null,null,null,null,null,null,null,null,null,null,null,"","LPHISAUG00",null,"PHI UG Student Awards ",null,"PHI UG Student Awards",null,null,null,null,""]
[null,null,null,null,null,null,null,null,null,null,null,null,null,null,null,null,null,null,null,null,null,null,null,null,null,null,null,null,null,null,null,null,"","LPHYSA0000",null,"PHY Student Awards ",null,"PHY Student Awards",null,null,null,null,""]
[null,null,null,null,null,null,null,null,null,null,null,null,null,null,null,null,null,null,null,null,null,null,null,null,null,null,null,null,null,null,null,null,"","LPHYSAUG00",null,"PHY UG Student Awards ",null,"PHY UG Student Awards",null,null,null,null,""]
[null,null,null,null,null,null,null,null,null,null,null,null,null,null,null,null,null,null,null,null,null,null,null,null,null,null,null,null,null,null,null,null,"","LPOLSA0000",null,"POL Student Awards ",null,"POL Student Awards",null,null,null,null,""]
[null,null,null,null,null,null,null,null,null,null,null,null,null,null,null,null,null,null,null,null,null,null,null,null,null,null,null,null,null,null,null,null,"","LPOLSAUG00",null,"POL UG Student Awards ",null,"POL UG Student Awards",null,null,null,null,""]
[null,null,null,null,null,null,null,null,null,null,null,null,null,null,null,null,null,null,null,null,null,null,null,null,null,null,null,null,null,null,null,null,"","LPSCSA0000",null,"PSC Student Awards ",null,"PSC Student Awards",null,null,null,null,""]
[null,null,null,null,null,null,null,null,null,null,null,null,null,null,null,null,null,null,null,null,null,null,null,null,null,null,null,null,null,null,null,null,"","LPSCSAUG00",null,"PSC UG Student Awards ",null,"PSC UG Student Awards",null,null,null,null,""]
[null,null,null,null,null,null,null,null,null,null,null,null,null,null,null,null,null,null,null,null,null,null,null,null,null,null,null,null,null,null,null,null,"","LRELSA0000",null,"REL Student Awards ",null,"REL Student Awards",null,null,null,null,""]
[null,null,null,null,null,null,null,null,null,null,null,null,null,null,null,null,null,null,null,null,null,null,null,null,null,null,null,null,null,null,null,null,"","LRELSAUG00",null,"REL UG Student Awards ",null,"REL UG Student Awards",null,null,null,null,""]
[null,null,null,null,null,null,null,null,null,null,null,null,null,null,null,null,null,null,null,null,null,null,null,null,null,null,null,null,null,null,null,null,"","LSOCSA0000",null,"SOC Student Awards ",null,"SOC Student Awards",null,null,null,null,""]
[null,null,null,null,null,null,null,null,null,null,null,null,null,null,null,null,null,null,null,null,null,null,null,null,null,null,null,null,null,null,null,null,"","LSOCSAUG00",null,"SOC UG Student Awards ",null,"SOC UG Student Awards",null,null,null,null,""]
[null,null,null,null,null,null,null,null,null,null,null,null,null,null,null,null,null,null,null,null,null,null,null,null,null,null,null,null,null,null,null,null,"","LSPASA0000",null,"SPA Student Awards ",null,"SPA Student Awards",null,null,null,null,""]
[null,null,null,null,null,null,null,null,null,null,null,null,null,null,null,null,null,null,null,null,null,null,null,null,null,null,null,null,null,null,null,null,"","LSPASAUG00",null,"SPA UG Student Awards ",null,"SPA UG Student Awards",null,null,null,null,""]
[null,null,null,null,null,null,null,null,null,null,null,null,null,null,null,null,null,null,null,null,null,null,null,null,null,null,null,null,null,null,null,null,"","LSTASA0000",null,"STA Student Awards ",null,"STA Student Awards",null,null,null,null,""]
[null,null,null,null,null,null,null,null,null,null,null,null,null,null,null,null,null,null,null,null,null,null,null,null,null,null,null,null,null,null,null,null,"","LSTASAUG00",null,"STA UG Student Awards ",null,"STA UG Student Awards",null,null,null,null,""]
[null,null,null,null,null,null,null,null,null,null,null,null,null,null,null,null,null,null,null,null,null,null,null,null,null,null,null,null,null,null,null,null,"","SACWSSTUDG",null,"CWS Student Grants and Awards ",null,"CWS Student Grants and Awards",null,null,null,null,""]
[null,null,null,null,null,null,null,null,null,null,null,null,null,null,null,null,null,null,null,null,null,null,null,null,null,null,null,null,null,null,null,null,"","SASDA00000",null,"Student Development Awards ",null,"Student Development Awards",null,null,null,null,""]
[null,null,null,null,null,null,null,null,null,null,null,null,null,null,null,null,null,null,null,null,null,null,null,null,null,null,null,null,null,null,null,null,"","SASMIND001",null,"MIND Institute Student Awards ",null,"MIND Institute Student Awards",null,null,null,null,""]

{"sheet":"Upload","index":6,"n_rows":1010,"n_cols":20,"rows_kept":1010,"cut":false,"hidden":true,"merged":[]}
["*Indicates Required Field"]
[]
[null,"Journal name"]
["*Journal",{"$f":"Template!E6","v":"RPM REVALC RPM new hire"},null,null,null,"Category","991000B_REVENUE_TRANSFER",null,"Total Entered Debit",{"$f":"Template!J6","v":126192}]
["*Description",{"$f":"Template!B7","v":"new hire for RPM John Smith hired. Initiated by Ann Smith"},null,null,null,null,null,null,"Total Entered Credit",{"$f":"Template!J7","v":126192}]
["Ledger","UCD Primary Ledger",null,null,null,null,null,null,"Journal Validation",{"$f":"Template!J8","v":0}]
["*Accounting Date",{"$f":"Template!B9","v":"2024-08-01"}]
[]
["Journal Lines"]
["*Entity","*Fund","*Department","*Account","*Purpose","*Program","*Project","Activity","Inter Entity","Future 1","Future 2","Currency","*Entered Debit","*Entered Credit","*","*","*","*","*","*Line Description"]
[{"$f":"LEFT(Template!A14,4)","v":"3310"},{"$f":"LEFT(Template!B14,5)","v":"19974"},{"$f":"LEFT(Template!C14,7)","v":"9936111"},{"$f":"LEFT(Template!D14,6)","v":"775B00"},{"$f":"LEFT(Template!E14,2)","v":"80"},{"$f":"LEFT(Template!F14,3)","v":"000"},{"$f":"LEFT(Template!G14,10)","v":"GLANRPERMS"},{"$f":"LEFT(Template!H14,6)","v":"000000"},{"$f":"LEFT(Template!I14,4)","v":"0000"},{"$f":"LEFT(Template!J14,6)","v":"000000"},{"$f":"LEFT(Template!K14,6)","v":"000000"},{"$f":"LEFT(Template!L14,3)","v":"USD"},{"$f":"IF(Template!M14=\"\",\"\",Template!M14)","v":""},{"$f":"IF(Template!N14=\"\",\"\",Template!N14)","v":44000},null,null,null,null,null,{"$f":"IF(Template!O14=\"\",\"\",Template!O14)","v":"44-1 RPM new hire Smith 7/1/24 1.00 FTE @$88,000"}]
[{"$f":"LEFT(Template!A15,4)","v":"3310"},{"$f":"LEFT(Template!B15,5)","v":"21050"},{"$f":"LEFT(Template!C15,7)","v":"9951144"},{"$f":"LEFT(Template!D15,6)","v":"775B00"},{"$f":"LEFT(Template!E15,2)","v":"80"},{"$f":"LEFT(Template!F15,3)","v":"000"},{"$f":"LEFT(Template!G15,10)","v":"GLANRPERMS"},{"$f":"LEFT(Template!H15,6)","v":"000000"},{"$f":"LEFT(Template!I15,4)","v":"0000"},{"$f":"LEFT(Template!J15,6)","v":"000000"},{"$f":"LEFT(Template!K15,6)","v":"000000"},{"$f":"LEFT(Template!L15,3)","v":"USD"},{"$f":"IF(Template!M15=\"\",\"\",Template!M15)","v":44000},{"$f":"IF(Template!N15=\"\",\"\",Template!N15)","v":""},null,null,null,null,null,{"$f":"IF(Template!O15=\"\",\"\",Template!O15)","v":"44-1 RPM new hire Smith 7/1/24 1.00 FTE @$88,000"}]
[{"$f":"LEFT(Template!A16,4)","v":"3310"},{"$f":"LEFT(Template!B16,5)","v":"21056"},{"$f":"LEFT(Template!C16,7)","v":"9936111"},{"$f":"LEFT(Template!D16,6)","v":"775B00"},{"$f":"LEFT(Template!E16,2)","v":"80"},{"$f":"LEFT(Template!F16,3)","v":"000"},{"$f":"LEFT(Template!G16,10)","v":"GLANRPERMS"},{"$f":"LEFT(Template!H16,6)","v":"000000"},{"$f":"LEFT(Template!I16,4)","v":"0000"},{"$f":"LEFT(Template!J16,6)","v":"000000"},{"$f":"LEFT(Template!K16,6)","v":"000000"},{"$f":"LEFT(Template!L16,3)","v":"USD"},{"$f":"IF(Template!M16=\"\",\"\",Template!M16)","v":""},{"$f":"IF(Template!N16=\"\",\"\",Template!N16)","v":44000},null,null,null,null,null,{"$f":"IF(Template!O16=\"\",\"\",Template!O16)","v":"62-1 RPM new hire Smith 7/1/24 1.00 FTE @$88,000"}]
[{"$f":"LEFT(Template!A17,4)","v":"3310"},{"$f":"LEFT(Template!B17,5)","v":"19974"},{"$f":"LEFT(Template!C17,7)","v":"9951162"},{"$f":"LEFT(Template!D17,6)","v":"775B00"},{"$f":"LEFT(Template!E17,2)","v":"80"},{"$f":"LEFT(Template!F17,3)","v":"000"},{"$f":"LEFT(Template!G17,10)","v":"GLANRPERMS"},{"$f":"LEFT(Template!H17,6)","v":"000000"},{"$f":"LEFT(Template!I17,4)","v":"0000"},{"$f":"LEFT(Template!J17,6)","v":"000000"},{"$f":"LEFT(Template!K17,6)","v":"000000"},{"$f":"LEFT(Template!L17,3)","v":"USD"},{"$f":"IF(Template!M17=\"\",\"\",Template!M17)","v":44000},{"$f":"IF(Template!N17=\"\",\"\",Template!N17)","v":""},null,null,null,null,null,{"$f":"IF(Template!O17=\"\",\"\",Template!O17)","v":"62-1 RPM new hire Smith 7/1/24 1.00 FTE @$88,000"}]
[{"$f":"LEFT(Template!A18,4)","v":"3310"},{"$f":"LEFT(Template!B18,5)","v":"19974"},{"$f":"LEFT(Template!C18,7)","v":"9936111"},{"$f":"LEFT(Template!D18,6)","v":"775B00"},{"$f":"LEFT(Template!E18,2)","v":"80"},{"$f":"LEFT(Template!F18,3)","v":"000"},{"$f":"LEFT(Template!G18,10)","v":"GLANRPERMS"},{"$f":"LEFT(Template!H18,6)","v":"200537"},{"$f":"LEFT(Template!I18,4)","v":"0000"},{"$f":"LEFT(Template!J18,6)","v":"000000"},{"$f":"LEFT(Template!K18,6)","v":"000000"},{"$f":"LEFT(Template!L18,3)","v":"USD"},{"$f":"IF(Template!M18=\"\",\"\",Template!M18)","v":""},{"$f":"IF(Template!N18=\"\",\"\",Template!N18)","v":19096},null,null,null,null,null,{"$f":"IF(Template!O18=\"\",\"\",Template!O18)","v":"44-1 RPM new hire Smith 1.00 FTE benefits CBR 43.4%"}]
[{"$f":"LEFT(Template!A19,4)","v":"3310"},{"$f":"LEFT(Template!B19,5)","v":"19974"},{"$f":"LEFT(Template!C19,7)","v":"9951144"},{"$f":"LEFT(Template!D19,6)","v":"775B00"},{"$f":"LEFT(Template!E19,2)","v":"80"},{"$f":"LEFT(Template!F19,3)","v":"000"},{"$f":"LEFT(Template!G19,10)","v":"GLANRPERMS"},{"$f":"LEFT(Template!H19,6)","v":"200537"},{"$f":"LEFT(Template!I19,4)","v":"0000"},{"$f":"LEFT(Template!J19,6)","v":"000000"},{"$f":"LEFT(Template!K19,6)","v":"000000"},{"$f":"LEFT(Template!L19,3)","v":"USD"},{"$f":"IF(Template!M19=\"\",\"\",Template!M19)","v":19096},{"$f":"IF(Template!N19=\"\",\"\",Template!N19)","v":""},null,null,null,null,null,{"$f":"IF(Template!O19=\"\",\"\",Template!O19)","v":"44-1 RPM new hire Smith 1.00 FTE benefits CBR 43.4%"}]
[{"$f":"LEFT(Template!A20,4)","v":"3310"},{"$f":"LEFT(Template!B20,5)","v":"19974"},{"$f":"LEFT(Template!C20,7)","v":"9936111"},{"$f":"LEFT(Template!D20,6)","v":"775B00"},{"$f":"LEFT(Template!E20,2)","v":"80"},{"$f":"LEFT(Template!F20,3)","v":"000"},{"$f":"LEFT(Template!G20,10)","v":"GLANRPERMS"},{"$f":"LEFT(Template!H20,6)","v":"200537"},{"$f":"LEFT(Template!I20,4)","v":"0000"},{"$f":"LEFT(Template!J20,6)","v":"000000"},{"$f":"LEFT(Template!K20,6)","v":"000000"},{"$f":"LEFT(Template!L20,3)","v":"USD"},{"$f":"IF(Template!M20=\"\",\"\",Template!M20)","v":""},{"$f":"IF(Template!N20=\"\",\"\",Template!N20)","v":19096},null,null,null,null,null,{"$f":"IF(Template!O20=\"\",\"\",Template!O20)","v":"62-1 RPM new hire Smith 1.00 FTE benefits CBR 43.4%"}]
[{"$f":"LEFT(Template!A21,4)","v":"3310"},{"$f":"LEFT(Template!B21,5)","v":"19974"},{"$f":"LEFT(Template!C21,7)","v":"9951162"},{"$f":"LEFT(Template!D21,6)","v":"775B00"},{"$f":"LEFT(Template!E21,2)","v":"80"},{"$f":"LEFT(Template!F21,3)","v":"000"},{"$f":"LEFT(Template!G21,10)","v":"GLANRPERMS"},{"$f":"LEFT(Template!H21,6)","v":"200537"},{"$f":"LEFT(Template!I21,4)","v":"0000"},{"$f":"LEFT(Template!J21,6)","v":"000000"},{"$f":"LEFT(Template!K21,6)","v":"000000"},{"$f":"LEFT(Template!L21,3)","v":"USD"},{"$f":"IF(Template!M21=\"\",\"\",Template!M21)","v":19096},{"$f":"IF(Template!N21=\"\",\"\",Template!N21)","v":""},null,null,null,null,null,{"$f":"IF(Template!O21=\"\",\"\",Template!O21)","v":"62-1 RPM new hire Smith 1.00 FTE benefits CBR 43.4%"}]
[{"$f":"LEFT(Template!A22,4)","v":""},{"$f":"LEFT(Template!B22,5)","v":""},{"$f":"LEFT(Template!C22,7)","v":""},{"$f":"LEFT(Template!D22,6)","v":""},{"$f":"LEFT(Template!E22,2)","v":""},{"$f":"LEFT(Template!F22,3)","v":""},{"$f":"LEFT(Template!G22,10)","v":""},{"$f":"LEFT(Template!H22,6)","v":""},{"$f":"LEFT(Template!I22,4)","v":""},{"$f":"LEFT(Template!J22,6)","v":""},{"$f":"LEFT(Template!K22,6)","v":""},{"$f":"LEFT(Template!L22,3)","v":""},{"$f":"IF(Template!M22=\"\",\"\",Template!M22)","v":""},{"$f":"IF(Template!N22=\"\",\"\",Template!N22)","v":""},null,null,null,null,null,{"$f":"IF(Template!O22=\"\",\"\",Template!O22)","v":""}]
[{"$f":"LEFT(Template!A23,4)","v":""},{"$f":"LEFT(Template!B23,5)","v":""},{"$f":"LEFT(Template!C23,7)","v":""},{"$f":"LEFT(Template!D23,6)","v":""},{"$f":"LEFT(Template!E23,2)","v":""},{"$f":"LEFT(Template!F23,3)","v":""},{"$f":"LEFT(Template!G23,10)","v":""},{"$f":"LEFT(Template!H23,6)","v":""},{"$f":"LEFT(Template!I23,4)","v":""},{"$f":"LEFT(Template!J23,6)","v":""},{"$f":"LEFT(Template!K23,6)","v":""},{"$f":"LEFT(Template!L23,3)","v":""},{"$f":"IF(Template!M23=\"\",\"\",Template!M23)","v":""},{"$f":"IF(Template!N23=\"\",\"\",Template!N23)","v":""},null,null,null,null,null,{"$f":"IF(Template!O23=\"\",\"\",Template!O23)","v":""}]
[{"$f":"LEFT(Template!A24,4)","v":""},{"$f":"LEFT(Template!B24,5)","v":""},{"$f":"LEFT(Template!C24,7)","v":""},{"$f":"LEFT(Template!D24,6)","v":""},{"$f":"LEFT(Template!E24,2)","v":""},{"$f":"LEFT(Template!F24,3)","v":""},{"$f":"LEFT(Template!G24,10)","v":""},{"$f":"LEFT(Template!H24,6)","v":""},{"$f":"LEFT(Template!I24,4)","v":""},{"$f":"LEFT(Template!J24,6)","v":""},{"$f":"LEFT(Template!K24,6)","v":""},{"$f":"LEFT(Template!L24,3)","v":""},{"$f":"IF(Template!M24=\"\",\"\",Template!M24)","v":""},{"$f":"IF(Template!N24=\"\",\"\",Template!N24)","v":""},null,null,null,null,null,{"$f":"IF(Template!O24=\"\",\"\",Template!O24)","v":""}]
[{"$f":"LEFT(Template!A25,4)","v":""},{"$f":"LEFT(Template!B25,5)","v":""},{"$f":"LEFT(Template!C25,7)","v":""},{"$f":"LEFT(Template!D25,6)","v":""},{"$f":"LEFT(Template!E25,2)","v":""},{"$f":"LEFT(Template!F25,3)","v":""},{"$f":"LEFT(Template!G25,10)","v":""},{"$f":"LEFT(Template!H25,6)","v":""},{"$f":"LEFT(Template!I25,4)","v":""},{"$f":"LEFT(Template!J25,6)","v":""},{"$f":"LEFT(Template!K25,6)","v":""},{"$f":"LEFT(Template!L25,3)","v":""},{"$f":"IF(Template!M25=\"\",\"\",Template!M25)","v":""},{"$f":"IF(Template!N25=\"\",\"\",Template!N25)","v":""},null,null,null,null,null,{"$f":"IF(Template!O25=\"\",\"\",Template!O25)","v":""}]
[{"$f":"LEFT(Template!A26,4)","v":""},{"$f":"LEFT(Template!B26,5)","v":""},{"$f":"LEFT(Template!C26,7)","v":""},{"$f":"LEFT(Template!D26,6)","v":""},{"$f":"LEFT(Template!E26,2)","v":""},{"$f":"LEFT(Template!F26,3)","v":""},{"$f":"LEFT(Template!G26,10)","v":""},{"$f":"LEFT(Template!H26,6)","v":""},{"$f":"LEFT(Template!I26,4)","v":""},{"$f":"LEFT(Template!J26,6)","v":""},{"$f":"LEFT(Template!K26,6)","v":""},{"$f":"LEFT(Template!L26,3)","v":""},{"$f":"IF(Template!M26=\"\",\"\",Template!M26)","v":""},{"$f":"IF(Template!N26=\"\",\"\",Template!N26)","v":""},null,null,null,null,null,{"$f":"IF(Template!O26=\"\",\"\",Template!O26)","v":""}]
[{"$f":"LEFT(Template!A27,4)","v":""},{"$f":"LEFT(Template!B27,5)","v":""},{"$f":"LEFT(Template!C27,7)","v":""},{"$f":"LEFT(Template!D27,6)","v":""},{"$f":"LEFT(Template!E27,2)","v":""},{"$f":"LEFT(Template!F27,3)","v":""},{"$f":"LEFT(Template!G27,10)","v":""},{"$f":"LEFT(Template!H27,6)","v":""},{"$f":"LEFT(Template!I27,4)","v":""},{"$f":"LEFT(Template!J27,6)","v":""},{"$f":"LEFT(Template!K27,6)","v":""},{"$f":"LEFT(Template!L27,3)","v":""},{"$f":"IF(Template!M27=\"\",\"\",Template!M27)","v":""},{"$f":"IF(Template!N27=\"\",\"\",Template!N27)","v":""},null,null,null,null,null,{"$f":"IF(Template!O27=\"\",\"\",Template!O27)","v":""}]
[{"$f":"LEFT(Template!A28,4)","v":""},{"$f":"LEFT(Template!B28,5)","v":""},{"$f":"LEFT(Template!C28,7)","v":""},{"$f":"LEFT(Template!D28,6)","v":""},{"$f":"LEFT(Template!E28,2)","v":""},{"$f":"LEFT(Template!F28,3)","v":""},{"$f":"LEFT(Template!G28,10)","v":""},{"$f":"LEFT(Template!H28,6)","v":""},{"$f":"LEFT(Template!I28,4)","v":""},{"$f":"LEFT(Template!J28,6)","v":""},{"$f":"LEFT(Template!K28,6)","v":""},{"$f":"LEFT(Template!L28,3)","v":""},{"$f":"IF(Template!M28=\"\",\"\",Template!M28)","v":""},{"$f":"IF(Template!N28=\"\",\"\",Template!N28)","v":""},null,null,null,null,null,{"$f":"IF(Template!O28=\"\",\"\",Template!O28)","v":""}]
[{"$f":"LEFT(Template!A29,4)","v":""},{"$f":"LEFT(Template!B29,5)","v":""},{"$f":"LEFT(Template!C29,7)","v":""},{"$f":"LEFT(Template!D29,6)","v":""},{"$f":"LEFT(Template!E29,2)","v":""},{"$f":"LEFT(Template!F29,3)","v":""},{"$f":"LEFT(Template!G29,10)","v":""},{"$f":"LEFT(Template!H29,6)","v":""},{"$f":"LEFT(Template!I29,4)","v":""},{"$f":"LEFT(Template!J29,6)","v":""},{"$f":"LEFT(Template!K29,6)","v":""},{"$f":"LEFT(Template!L29,3)","v":""},{"$f":"IF(Template!M29=\"\",\"\",Template!M29)","v":""},{"$f":"IF(Template!N29=\"\",\"\",Template!N29)","v":""},null,null,null,null,null,{"$f":"IF(Template!O29=\"\",\"\",Template!O29)","v":""}]
[{"$f":"LEFT(Template!A30,4)","v":""},{"$f":"LEFT(Template!B30,5)","v":""},{"$f":"LEFT(Template!C30,7)","v":""},{"$f":"LEFT(Template!D30,6)","v":""},{"$f":"LEFT(Template!E30,2)","v":""},{"$f":"LEFT(Template!F30,3)","v":""},{"$f":"LEFT(Template!G30,10)","v":""},{"$f":"LEFT(Template!H30,6)","v":""},{"$f":"LEFT(Template!I30,4)","v":""},{"$f":"LEFT(Template!J30,6)","v":""},{"$f":"LEFT(Template!K30,6)","v":""},{"$f":"LEFT(Template!L30,3)","v":""},{"$f":"IF(Template!M30=\"\",\"\",Template!M30)","v":""},{"$f":"IF(Template!N30=\"\",\"\",Template!N30)","v":""},null,null,null,null,null,{"$f":"IF(Template!O30=\"\",\"\",Template!O30)","v":""}]
[{"$f":"LEFT(Template!A31,4)","v":""},{"$f":"LEFT(Template!B31,5)","v":""},{"$f":"LEFT(Template!C31,7)","v":""},{"$f":"LEFT(Template!D31,6)","v":""},{"$f":"LEFT(Template!E31,2)","v":""},{"$f":"LEFT(Template!F31,3)","v":""},{"$f":"LEFT(Template!G31,10)","v":""},{"$f":"LEFT(Template!H31,6)","v":""},{"$f":"LEFT(Template!I31,4)","v":""},{"$f":"LEFT(Template!J31,6)","v":""},{"$f":"LEFT(Template!K31,6)","v":""},{"$f":"LEFT(Template!L31,3)","v":""},{"$f":"IF(Template!M31=\"\",\"\",Template!M31)","v":""},{"$f":"IF(Template!N31=\"\",\"\",Template!N31)","v":""},null,null,null,null,null,{"$f":"IF(Template!O31=\"\",\"\",Template!O31)","v":""}]
[{"$f":"LEFT(Template!A32,4)","v":""},{"$f":"LEFT(Template!B32,5)","v":""},{"$f":"LEFT(Template!C32,7)","v":""},{"$f":"LEFT(Template!D32,6)","v":""},{"$f":"LEFT(Template!E32,2)","v":""},{"$f":"LEFT(Template!F32,3)","v":""},{"$f":"LEFT(Template!G32,10)","v":""},{"$f":"LEFT(Template!H32,6)","v":""},{"$f":"LEFT(Template!I32,4)","v":""},{"$f":"LEFT(Template!J32,6)","v":""},{"$f":"LEFT(Template!K32,6)","v":""},{"$f":"LEFT(Template!L32,3)","v":""},{"$f":"IF(Template!M32=\"\",\"\",Template!M32)","v":""},{"$f":"IF(Template!N32=\"\",\"\",Template!N32)","v":""},null,null,null,null,null,{"$f":"IF(Template!O32=\"\",\"\",Template!O32)","v":""}]
[{"$f":"LEFT(Template!A33,4)","v":""},{"$f":"LEFT(Template!B33,5)","v":""},{"$f":"LEFT(Template!C33,7)","v":""},{"$f":"LEFT(Template!D33,6)","v":""},{"$f":"LEFT(Template!E33,2)","v":""},{"$f":"LEFT(Template!F33,3)","v":""},{"$f":"LEFT(Template!G33,10)","v":""},{"$f":"LEFT(Template!H33,6)","v":""},{"$f":"LEFT(Template!I33,4)","v":""},{"$f":"LEFT(Template!J33,6)","v":""},{"$f":"LEFT(Template!K33,6)","v":""},{"$f":"LEFT(Template!L33,3)","v":""},{"$f":"IF(Template!M33=\"\",\"\",Template!M33)","v":""},{"$f":"IF(Template!N33=\"\",\"\",Template!N33)","v":""},null,null,null,null,null,{"$f":"IF(Template!O33=\"\",\"\",Template!O33)","v":""}]
[{"$f":"LEFT(Template!A34,4)","v":""},{"$f":"LEFT(Template!B34,5)","v":""},{"$f":"LEFT(Template!C34,7)","v":""},{"$f":"LEFT(Template!D34,6)","v":""},{"$f":"LEFT(Template!E34,2)","v":""},{"$f":"LEFT(Template!F34,3)","v":""},{"$f":"LEFT(Template!G34,10)","v":""},{"$f":"LEFT(Template!H34,6)","v":""},{"$f":"LEFT(Template!I34,4)","v":""},{"$f":"LEFT(Template!J34,6)","v":""},{"$f":"LEFT(Template!K34,6)","v":""},{"$f":"LEFT(Template!L34,3)","v":""},{"$f":"IF(Template!M34=\"\",\"\",Template!M34)","v":""},{"$f":"IF(Template!N34=\"\",\"\",Template!N34)","v":""},null,null,null,null,null,{"$f":"IF(Template!O34=\"\",\"\",Template!O34)","v":""}]
[{"$f":"LEFT(Template!A35,4)","v":""},{"$f":"LEFT(Template!B35,5)","v":""},{"$f":"LEFT(Template!C35,7)","v":""},{"$f":"LEFT(Template!D35,6)","v":""},{"$f":"LEFT(Template!E35,2)","v":""},{"$f":"LEFT(Template!F35,3)","v":""},{"$f":"LEFT(Template!G35,10)","v":""},{"$f":"LEFT(Template!H35,6)","v":""},{"$f":"LEFT(Template!I35,4)","v":""},{"$f":"LEFT(Template!J35,6)","v":""},{"$f":"LEFT(Template!K35,6)","v":""},{"$f":"LEFT(Template!L35,3)","v":""},{"$f":"IF(Template!M35=\"\",\"\",Template!M35)","v":""},{"$f":"IF(Template!N35=\"\",\"\",Template!N35)","v":""},null,null,null,null,null,{"$f":"IF(Template!O35=\"\",\"\",Template!O35)","v":""}]
[{"$f":"LEFT(Template!A36,4)","v":""},{"$f":"LEFT(Template!B36,5)","v":""},{"$f":"LEFT(Template!C36,7)","v":""},{"$f":"LEFT(Template!D36,6)","v":""},{"$f":"LEFT(Template!E36,2)","v":""},{"$f":"LEFT(Template!F36,3)","v":""},{"$f":"LEFT(Template!G36,10)","v":""},{"$f":"LEFT(Template!H36,6)","v":""},{"$f":"LEFT(Template!I36,4)","v":""},{"$f":"LEFT(Template!J36,6)","v":""},{"$f":"LEFT(Template!K36,6)","v":""},{"$f":"LEFT(Template!L36,3)","v":""},{"$f":"IF(Template!M36=\"\",\"\",Template!M36)","v":""},{"$f":"IF(Template!N36=\"\",\"\",Template!N36)","v":""},null,null,null,null,null,{"$f":"IF(Template!O36=\"\",\"\",Template!O36)","v":""}]
[{"$f":"LEFT(Template!A37,4)","v":""},{"$f":"LEFT(Template!B37,5)","v":""},{"$f":"LEFT(Template!C37,7)","v":""},{"$f":"LEFT(Template!D37,6)","v":""},{"$f":"LEFT(Template!E37,2)","v":""},{"$f":"LEFT(Template!F37,3)","v":""},{"$f":"LEFT(Template!G37,10)","v":""},{"$f":"LEFT(Template!H37,6)","v":""},{"$f":"LEFT(Template!I37,4)","v":""},{"$f":"LEFT(Template!J37,6)","v":""},{"$f":"LEFT(Template!K37,6)","v":""},{"$f":"LEFT(Template!L37,3)","v":""},{"$f":"IF(Template!M37=\"\",\"\",Template!M37)","v":""},{"$f":"IF(Template!N37=\"\",\"\",Template!N37)","v":""},null,null,null,null,null,{"$f":"IF(Template!O37=\"\",\"\",Template!O37)","v":""}]
[{"$f":"LEFT(Template!A38,4)","v":""},{"$f":"LEFT(Template!B38,5)","v":""},{"$f":"LEFT(Template!C38,7)","v":""},{"$f":"LEFT(Template!D38,6)","v":""},{"$f":"LEFT(Template!E38,2)","v":""},{"$f":"LEFT(Template!F38,3)","v":""},{"$f":"LEFT(Template!G38,10)","v":""},{"$f":"LEFT(Template!H38,6)","v":""},{"$f":"LEFT(Template!I38,4)","v":""},{"$f":"LEFT(Template!J38,6)","v":""},{"$f":"LEFT(Template!K38,6)","v":""},{"$f":"LEFT(Template!L38,3)","v":""},{"$f":"IF(Template!M38=\"\",\"\",Template!M38)","v":""},{"$f":"IF(Template!N38=\"\",\"\",Template!N38)","v":""},null,null,null,null,null,{"$f":"IF(Template!O38=\"\",\"\",Template!O38)","v":""}]
[{"$f":"LEFT(Template!A39,4)","v":""},{"$f":"LEFT(Template!B39,5)","v":""},{"$f":"LEFT(Template!C39,7)","v":""},{"$f":"LEFT(Template!D39,6)","v":""},{"$f":"LEFT(Template!E39,2)","v":""},{"$f":"LEFT(Template!F39,3)","v":""},{"$f":"LEFT(Template!G39,10)","v":""},{"$f":"LEFT(Template!H39,6)","v":""},{"$f":"LEFT(Template!I39,4)","v":""},{"$f":"LEFT(Template!J39,6)","v":""},{"$f":"LEFT(Template!K39,6)","v":""},{"$f":"LEFT(Template!L39,3)","v":""},{"$f":"IF(Template!M39=\"\",\"\",Template!M39)","v":""},{"$f":"IF(Template!N39=\"\",\"\",Template!N39)","v":""},null,null,null,null,null,{"$f":"IF(Template!O39=\"\",\"\",Template!O39)","v":""}]
[{"$f":"LEFT(Template!A40,4)","v":""},{"$f":"LEFT(Template!B40,5)","v":""},{"$f":"LEFT(Template!C40,7)","v":""},{"$f":"LEFT(Template!D40,6)","v":""},{"$f":"LEFT(Template!E40,2)","v":""},{"$f":"LEFT(Template!F40,3)","v":""},{"$f":"LEFT(Template!G40,10)","v":""},{"$f":"LEFT(Template!H40,6)","v":""},{"$f":"LEFT(Template!I40,4)","v":""},{"$f":"LEFT(Template!J40,6)","v":""},{"$f":"LEFT(Template!K40,6)","v":""},{"$f":"LEFT(Template!L40,3)","v":""},{"$f":"IF(Template!M40=\"\",\"\",Template!M40)","v":""},{"$f":"IF(Template!N40=\"\",\"\",Template!N40)","v":""},null,null,null,null,null,{"$f":"IF(Template!O40=\"\",\"\",Template!O40)","v":""}]
[{"$f":"LEFT(Template!A41,4)","v":""},{"$f":"LEFT(Template!B41,5)","v":""},{"$f":"LEFT(Template!C41,7)","v":""},{"$f":"LEFT(Template!D41,6)","v":""},{"$f":"LEFT(Template!E41,2)","v":""},{"$f":"LEFT(Template!F41,3)","v":""},{"$f":"LEFT(Template!G41,10)","v":""},{"$f":"LEFT(Template!H41,6)","v":""},{"$f":"LEFT(Template!I41,4)","v":""},{"$f":"LEFT(Template!J41,6)","v":""},{"$f":"LEFT(Template!K41,6)","v":""},{"$f":"LEFT(Template!L41,3)","v":""},{"$f":"IF(Template!M41=\"\",\"\",Template!M41)","v":""},{"$f":"IF(Template!N41=\"\",\"\",Template!N41)","v":""},null,null,null,null,null,{"$f":"IF(Template!O41=\"\",\"\",Template!O41)","v":""}]
[{"$f":"LEFT(Template!A42,4)","v":""},{"$f":"LEFT(Template!B42,5)","v":""},{"$f":"LEFT(Template!C42,7)","v":""},{"$f":"LEFT(Template!D42,6)","v":""},{"$f":"LEFT(Template!E42,2)","v":""},{"$f":"LEFT(Template!F42,3)","v":""},{"$f":"LEFT(Template!G42,10)","v":""},{"$f":"LEFT(Template!H42,6)","v":""},{"$f":"LEFT(Template!I42,4)","v":""},{"$f":"LEFT(Template!J42,6)","v":""},{"$f":"LEFT(Template!K42,6)","v":""},{"$f":"LEFT(Template!L42,3)","v":""},{"$f":"IF(Template!M42=\"\",\"\",Template!M42)","v":""},{"$f":"IF(Template!N42=\"\",\"\",Template!N42)","v":""},null,null,null,null,null,{"$f":"IF(Template!O42=\"\",\"\",Template!O42)","v":""}]
[{"$f":"LEFT(Template!A43,4)","v":""},{"$f":"LEFT(Template!B43,5)","v":""},{"$f":"LEFT(Template!C43,7)","v":""},{"$f":"LEFT(Template!D43,6)","v":""},{"$f":"LEFT(Template!E43,2)","v":""},{"$f":"LEFT(Template!F43,3)","v":""},{"$f":"LEFT(Template!G43,10)","v":""},{"$f":"LEFT(Template!H43,6)","v":""},{"$f":"LEFT(Template!I43,4)","v":""},{"$f":"LEFT(Template!J43,6)","v":""},{"$f":"LEFT(Template!K43,6)","v":""},{"$f":"LEFT(Template!L43,3)","v":""},{"$f":"IF(Template!M43=\"\",\"\",Template!M43)","v":""},{"$f":"IF(Template!N43=\"\",\"\",Template!N43)","v":""},null,null,null,null,null,{"$f":"IF(Template!O43=\"\",\"\",Template!O43)","v":""}]
[{"$f":"LEFT(Template!A44,4)","v":""},{"$f":"LEFT(Template!B44,5)","v":""},{"$f":"LEFT(Template!C44,7)","v":""},{"$f":"LEFT(Template!D44,6)","v":""},{"$f":"LEFT(Template!E44,2)","v":""},{"$f":"LEFT(Template!F44,3)","v":""},{"$f":"LEFT(Template!G44,10)","v":""},{"$f":"LEFT(Template!H44,6)","v":""},{"$f":"LEFT(Template!I44,4)","v":""},{"$f":"LEFT(Template!J44,6)","v":""},{"$f":"LEFT(Template!K44,6)","v":""},{"$f":"LEFT(Template!L44,3)","v":""},{"$f":"IF(Template!M44=\"\",\"\",Template!M44)","v":""},{"$f":"IF(Template!N44=\"\",\"\",Template!N44)","v":""},null,null,null,null,null,{"$f":"IF(Template!O44=\"\",\"\",Template!O44)","v":""}]
[{"$f":"LEFT(Template!A45,4)","v":""},{"$f":"LEFT(Template!B45,5)","v":""},{"$f":"LEFT(Template!C45,7)","v":""},{"$f":"LEFT(Template!D45,6)","v":""},{"$f":"LEFT(Template!E45,2)","v":""},{"$f":"LEFT(Template!F45,3)","v":""},{"$f":"LEFT(Template!G45,10)","v":""},{"$f":"LEFT(Template!H45,6)","v":""},{"$f":"LEFT(Template!I45,4)","v":""},{"$f":"LEFT(Template!J45,6)","v":""},{"$f":"LEFT(Template!K45,6)","v":""},{"$f":"LEFT(Template!L45,3)","v":""},{"$f":"IF(Template!M45=\"\",\"\",Template!M45)","v":""},{"$f":"IF(Template!N45=\"\",\"\",Template!N45)","v":""},null,null,null,null,null,{"$f":"IF(Template!O45=\"\",\"\",Template!O45)","v":""}]
[{"$f":"LEFT(Template!A46,4)","v":""},{"$f":"LEFT(Template!B46,5)","v":""},{"$f":"LEFT(Template!C46,7)","v":""},{"$f":"LEFT(Template!D46,6)","v":""},{"$f":"LEFT(Template!E46,2)","v":""},{"$f":"LEFT(Template!F46,3)","v":""},{"$f":"LEFT(Template!G46,10)","v":""},{"$f":"LEFT(Template!H46,6)","v":""},{"$f":"LEFT(Template!I46,4)","v":""},{"$f":"LEFT(Template!J46,6)","v":""},{"$f":"LEFT(Template!K46,6)","v":""},{"$f":"LEFT(Template!L46,3)","v":""},{"$f":"IF(Template!M46=\"\",\"\",Template!M46)","v":""},{"$f":"IF(Template!N46=\"\",\"\",Template!N46)","v":""},null,null,null,null,null,{"$f":"IF(Template!O46=\"\",\"\",Template!O46)","v":""}]
[{"$f":"LEFT(Template!A47,4)","v":""},{"$f":"LEFT(Template!B47,5)","v":""},{"$f":"LEFT(Template!C47,7)","v":""},{"$f":"LEFT(Template!D47,6)","v":""},{"$f":"LEFT(Template!E47,2)","v":""},{"$f":"LEFT(Template!F47,3)","v":""},{"$f":"LEFT(Template!G47,10)","v":""},{"$f":"LEFT(Template!H47,6)","v":""},{"$f":"LEFT(Template!I47,4)","v":""},{"$f":"LEFT(Template!J47,6)","v":""},{"$f":"LEFT(Template!K47,6)","v":""},{"$f":"LEFT(Template!L47,3)","v":""},{"$f":"IF(Template!M47=\"\",\"\",Template!M47)","v":""},{"$f":"IF(Template!N47=\"\",\"\",Template!N47)","v":""},null,null,null,null,null,{"$f":"IF(Template!O47=\"\",\"\",Template!O47)","v":""}]
[{"$f":"LEFT(Template!A48,4)","v":""},{"$f":"LEFT(Template!B48,5)","v":""},{"$f":"LEFT(Template!C48,7)","v":""},{"$f":"LEFT(Template!D48,6)","v":""},{"$f":"LEFT(Template!E48,2)","v":""},{"$f":"LEFT(Template!F48,3)","v":""},{"$f":"LEFT(Template!G48,10)","v":""},{"$f":"LEFT(Template!H48,6)","v":""},{"$f":"LEFT(Template!I48,4)","v":""},{"$f":"LEFT(Template!J48,6)","v":""},{"$f":"LEFT(Template!K48,6)","v":""},{"$f":"LEFT(Template!L48,3)","v":""},{"$f":"IF(Template!M48=\"\",\"\",Template!M48)","v":""},{"$f":"IF(Template!N48=\"\",\"\",Template!N48)","v":""},null,null,null,null,null,{"$f":"IF(Template!O48=\"\",\"\",Template!O48)","v":""}]
[{"$f":"LEFT(Template!A49,4)","v":""},{"$f":"LEFT(Template!B49,5)","v":""},{"$f":"LEFT(Template!C49,7)","v":""},{"$f":"LEFT(Template!D49,6)","v":""},{"$f":"LEFT(Template!E49,2)","v":""},{"$f":"LEFT(Template!F49,3)","v":""},{"$f":"LEFT(Template!G49,10)","v":""},{"$f":"LEFT(Template!H49,6)","v":""},{"$f":"LEFT(Template!I49,4)","v":""},{"$f":"LEFT(Template!J49,6)","v":""},{"$f":"LEFT(Template!K49,6)","v":""},{"$f":"LEFT(Template!L49,3)","v":""},{"$f":"IF(Template!M49=\"\",\"\",Template!M49)","v":""},{"$f":"IF(Template!N49=\"\",\"\",Template!N49)","v":""},null,null,null,null,null,{"$f":"IF(Template!O49=\"\",\"\",Template!O49)","v":""}]
[{"$f":"LEFT(Template!A50,4)","v":""},{"$f":"LEFT(Template!B50,5)","v":""},{"$f":"LEFT(Template!C50,7)","v":""},{"$f":"LEFT(Template!D50,6)","v":""},{"$f":"LEFT(Template!E50,2)","v":""},{"$f":"LEFT(Template!F50,3)","v":""},{"$f":"LEFT(Template!G50,10)","v":""},{"$f":"LEFT(Template!H50,6)","v":""},{"$f":"LEFT(Template!I50,4)","v":""},{"$f":"LEFT(Template!J50,6)","v":""},{"$f":"LEFT(Template!K50,6)","v":""},{"$f":"LEFT(Template!L50,3)","v":""},{"$f":"IF(Template!M50=\"\",\"\",Template!M50)","v":""},{"$f":"IF(Template!N50=\"\",\"\",Template!N50)","v":""},null,null,null,null,null,{"$f":"IF(Template!O50=\"\",\"\",Template!O50)","v":""}]
[{"$f":"LEFT(Template!A51,4)","v":""},{"$f":"LEFT(Template!B51,5)","v":""},{"$f":"LEFT(Template!C51,7)","v":""},{"$f":"LEFT(Template!D51,6)","v":""},{"$f":"LEFT(Template!E51,2)","v":""},{"$f":"LEFT(Template!F51,3)","v":""},{"$f":"LEFT(Template!G51,10)","v":""},{"$f":"LEFT(Template!H51,6)","v":""},{"$f":"LEFT(Template!I51,4)","v":""},{"$f":"LEFT(Template!J51,6)","v":""},{"$f":"LEFT(Template!K51,6)","v":""},{"$f":"LEFT(Template!L51,3)","v":""},{"$f":"IF(Template!M51=\"\",\"\",Template!M51)","v":""},{"$f":"IF(Template!N51=\"\",\"\",Template!N51)","v":""},null,null,null,null,null,{"$f":"IF(Template!O51=\"\",\"\",Template!O51)","v":""}]
[{"$f":"LEFT(Template!A52,4)","v":""},{"$f":"LEFT(Template!B52,5)","v":""},{"$f":"LEFT(Template!C52,7)","v":""},{"$f":"LEFT(Template!D52,6)","v":""},{"$f":"LEFT(Template!E52,2)","v":""},{"$f":"LEFT(Template!F52,3)","v":""},{"$f":"LEFT(Template!G52,10)","v":""},{"$f":"LEFT(Template!H52,6)","v":""},{"$f":"LEFT(Template!I52,4)","v":""},{"$f":"LEFT(Template!J52,6)","v":""},{"$f":"LEFT(Template!K52,6)","v":""},{"$f":"LEFT(Template!L52,3)","v":""},{"$f":"IF(Template!M52=\"\",\"\",Template!M52)","v":""},{"$f":"IF(Template!N52=\"\",\"\",Template!N52)","v":""},null,null,null,null,null,{"$f":"IF(Template!O52=\"\",\"\",Template!O52)","v":""}]
[{"$f":"LEFT(Template!A53,4)","v":""},{"$f":"LEFT(Template!B53,5)","v":""},{"$f":"LEFT(Template!C53,7)","v":""},{"$f":"LEFT(Template!D53,6)","v":""},{"$f":"LEFT(Template!E53,2)","v":""},{"$f":"LEFT(Template!F53,3)","v":""},{"$f":"LEFT(Template!G53,10)","v":""},{"$f":"LEFT(Template!H53,6)","v":""},{"$f":"LEFT(Template!I53,4)","v":""},{"$f":"LEFT(Template!J53,6)","v":""},{"$f":"LEFT(Template!K53,6)","v":""},{"$f":"LEFT(Template!L53,3)","v":""},{"$f":"IF(Template!M53=\"\",\"\",Template!M53)","v":""},{"$f":"IF(Template!N53=\"\",\"\",Template!N53)","v":""},null,null,null,null,null,{"$f":"IF(Template!O53=\"\",\"\",Template!O53)","v":""}]
[{"$f":"LEFT(Template!A54,4)","v":""},{"$f":"LEFT(Template!B54,5)","v":""},{"$f":"LEFT(Template!C54,7)","v":""},{"$f":"LEFT(Template!D54,6)","v":""},{"$f":"LEFT(Template!E54,2)","v":""},{"$f":"LEFT(Template!F54,3)","v":""},{"$f":"LEFT(Template!G54,10)","v":""},{"$f":"LEFT(Template!H54,6)","v":""},{"$f":"LEFT(Template!I54,4)","v":""},{"$f":"LEFT(Template!J54,6)","v":""},{"$f":"LEFT(Template!K54,6)","v":""},{"$f":"LEFT(Template!L54,3)","v":""},{"$f":"IF(Template!M54=\"\",\"\",Template!M54)","v":""},{"$f":"IF(Template!N54=\"\",\"\",Template!N54)","v":""},null,null,null,null,null,{"$f":"IF(Template!O54=\"\",\"\",Template!O54)","v":""}]
[{"$f":"LEFT(Template!A55,4)","v":""},{"$f":"LEFT(Template!B55,5)","v":""},{"$f":"LEFT(Template!C55,7)","v":""},{"$f":"LEFT(Template!D55,6)","v":""},{"$f":"LEFT(Template!E55,2)","v":""},{"$f":"LEFT(Template!F55,3)","v":""},{"$f":"LEFT(Template!G55,10)","v":""},{"$f":"LEFT(Template!H55,6)","v":""},{"$f":"LEFT(Template!I55,4)","v":""},{"$f":"LEFT(Template!J55,6)","v":""},{"$f":"LEFT(Template!K55,6)","v":""},{"$f":"LEFT(Template!L55,3)","v":""},{"$f":"IF(Template!M55=\"\",\"\",Template!M55)","v":""},{"$f":"IF(Template!N55=\"\",\"\",Template!N55)","v":""},null,null,null,null,null,{"$f":"IF(Template!O55=\"\",\"\",Template!O55)","v":""}]
[{"$f":"LEFT(Template!A56,4)","v":""},{"$f":"LEFT(Template!B56,5)","v":""},{"$f":"LEFT(Template!C56,7)","v":""},{"$f":"LEFT(Template!D56,6)","v":""},{"$f":"LEFT(Template!E56,2)","v":""},{"$f":"LEFT(Template!F56,3)","v":""},{"$f":"LEFT(Template!G56,10)","v":""},{"$f":"LEFT(Template!H56,6)","v":""},{"$f":"LEFT(Template!I56,4)","v":""},{"$f":"LEFT(Template!J56,6)","v":""},{"$f":"LEFT(Template!K56,6)","v":""},{"$f":"LEFT(Template!L56,3)","v":""},{"$f":"IF(Template!M56=\"\",\"\",Template!M56)","v":""},{"$f":"IF(Template!N56=\"\",\"\",Template!N56)","v":""},null,null,null,null,null,{"$f":"IF(Template!O56=\"\",\"\",Template!O56)","v":""}]
[{"$f":"LEFT(Template!A57,4)","v":""},{"$f":"LEFT(Template!B57,5)","v":""},{"$f":"LEFT(Template!C57,7)","v":""},{"$f":"LEFT(Template!D57,6)","v":""},{"$f":"LEFT(Template!E57,2)","v":""},{"$f":"LEFT(Template!F57,3)","v":""},{"$f":"LEFT(Template!G57,10)","v":""},{"$f":"LEFT(Template!H57,6)","v":""},{"$f":"LEFT(Template!I57,4)","v":""},{"$f":"LEFT(Template!J57,6)","v":""},{"$f":"LEFT(Template!K57,6)","v":""},{"$f":"LEFT(Template!L57,3)","v":""},{"$f":"IF(Template!M57=\"\",\"\",Template!M57)","v":""},{"$f":"IF(Template!N57=\"\",\"\",Template!N57)","v":""},null,null,null,null,null,{"$f":"IF(Template!O57=\"\",\"\",Template!O57)","v":""}]
[{"$f":"LEFT(Template!A58,4)","v":""},{"$f":"LEFT(Template!B58,5)","v":""},{"$f":"LEFT(Template!C58,7)","v":""},{"$f":"LEFT(Template!D58,6)","v":""},{"$f":"LEFT(Template!E58,2)","v":""},{"$f":"LEFT(Template!F58,3)","v":""},{"$f":"LEFT(Template!G58,10)","v":""},{"$f":"LEFT(Template!H58,6)","v":""},{"$f":"LEFT(Template!I58,4)","v":""},{"$f":"LEFT(Template!J58,6)","v":""},{"$f":"LEFT(Template!K58,6)","v":""},{"$f":"LEFT(Template!L58,3)","v":""},{"$f":"IF(Template!M58=\"\",\"\",Template!M58)","v":""},{"$f":"IF(Template!N58=\"\",\"\",Template!N58)","v":""},null,null,null,null,null,{"$f":"IF(Template!O58=\"\",\"\",Template!O58)","v":""}]
[{"$f":"LEFT(Template!A59,4)","v":""},{"$f":"LEFT(Template!B59,5)","v":""},{"$f":"LEFT(Template!C59,7)","v":""},{"$f":"LEFT(Template!D59,6)","v":""},{"$f":"LEFT(Template!E59,2)","v":""},{"$f":"LEFT(Template!F59,3)","v":""},{"$f":"LEFT(Template!G59,10)","v":""},{"$f":"LEFT(Template!H59,6)","v":""},{"$f":"LEFT(Template!I59,4)","v":""},{"$f":"LEFT(Template!J59,6)","v":""},{"$f":"LEFT(Template!K59,6)","v":""},{"$f":"LEFT(Template!L59,3)","v":""},{"$f":"IF(Template!M59=\"\",\"\",Template!M59)","v":""},{"$f":"IF(Template!N59=\"\",\"\",Template!N59)","v":""},null,null,null,null,null,{"$f":"IF(Template!O59=\"\",\"\",Template!O59)","v":""}]
[{"$f":"LEFT(Template!A60,4)","v":""},{"$f":"LEFT(Template!B60,5)","v":""},{"$f":"LEFT(Template!C60,7)","v":""},{"$f":"LEFT(Template!D60,6)","v":""},{"$f":"LEFT(Template!E60,2)","v":""},{"$f":"LEFT(Template!F60,3)","v":""},{"$f":"LEFT(Template!G60,10)","v":""},{"$f":"LEFT(Template!H60,6)","v":""},{"$f":"LEFT(Template!I60,4)","v":""},{"$f":"LEFT(Template!J60,6)","v":""},{"$f":"LEFT(Template!K60,6)","v":""},{"$f":"LEFT(Template!L60,3)","v":""},{"$f":"IF(Template!M60=\"\",\"\",Template!M60)","v":""},{"$f":"IF(Template!N60=\"\",\"\",Template!N60)","v":""},null,null,null,null,null,{"$f":"IF(Template!O60=\"\",\"\",Template!O60)","v":""}]
[{"$f":"LEFT(Template!A61,4)","v":""},{"$f":"LEFT(Template!B61,5)","v":""},{"$f":"LEFT(Template!C61,7)","v":""},{"$f":"LEFT(Template!D61,6)","v":""},{"$f":"LEFT(Template!E61,2)","v":""},{"$f":"LEFT(Template!F61,3)","v":""},{"$f":"LEFT(Template!G61,10)","v":""},{"$f":"LEFT(Template!H61,6)","v":""},{"$f":"LEFT(Template!I61,4)","v":""},{"$f":"LEFT(Template!J61,6)","v":""},{"$f":"LEFT(Template!K61,6)","v":""},{"$f":"LEFT(Template!L61,3)","v":""},{"$f":"IF(Template!M61=\"\",\"\",Template!M61)","v":""},{"$f":"IF(Template!N61=\"\",\"\",Template!N61)","v":""},null,null,null,null,null,{"$f":"IF(Template!O61=\"\",\"\",Template!O61)","v":""}]
[{"$f":"LEFT(Template!A62,4)","v":""},{"$f":"LEFT(Template!B62,5)","v":""},{"$f":"LEFT(Template!C62,7)","v":""},{"$f":"LEFT(Template!D62,6)","v":""},{"$f":"LEFT(Template!E62,2)","v":""},{"$f":"LEFT(Template!F62,3)","v":""},{"$f":"LEFT(Template!G62,10)","v":""},{"$f":"LEFT(Template!H62,6)","v":""},{"$f":"LEFT(Template!I62,4)","v":""},{"$f":"LEFT(Template!J62,6)","v":""},{"$f":"LEFT(Template!K62,6)","v":""},{"$f":"LEFT(Template!L62,3)","v":""},{"$f":"IF(Template!M62=\"\",\"\",Template!M62)","v":""},{"$f":"IF(Template!N62=\"\",\"\",Template!N62)","v":""},null,null,null,null,null,{"$f":"IF(Template!O62=\"\",\"\",Template!O62)","v":""}]
[{"$f":"LEFT(Template!A63,4)","v":""},{"$f":"LEFT(Template!B63,5)","v":""},{"$f":"LEFT(Template!C63,7)","v":""},{"$f":"LEFT(Template!D63,6)","v":""},{"$f":"LEFT(Template!E63,2)","v":""},{"$f":"LEFT(Template!F63,3)","v":""},{"$f":"LEFT(Template!G63,10)","v":""},{"$f":"LEFT(Template!H63,6)","v":""},{"$f":"LEFT(Template!I63,4)","v":""},{"$f":"LEFT(Template!J63,6)","v":""},{"$f":"LEFT(Template!K63,6)","v":""},{"$f":"LEFT(Template!L63,3)","v":""},{"$f":"IF(Template!M63=\"\",\"\",Template!M63)","v":""},{"$f":"IF(Template!N63=\"\",\"\",Template!N63)","v":""},null,null,null,null,null,{"$f":"IF(Template!O63=\"\",\"\",Template!O63)","v":""}]
[{"$f":"LEFT(Template!A64,4)","v":""},{"$f":"LEFT(Template!B64,5)","v":""},{"$f":"LEFT(Template!C64,7)","v":""},{"$f":"LEFT(Template!D64,6)","v":""},{"$f":"LEFT(Template!E64,2)","v":""},{"$f":"LEFT(Template!F64,3)","v":""},{"$f":"LEFT(Template!G64,10)","v":""},{"$f":"LEFT(Template!H64,6)","v":""},{"$f":"LEFT(Template!I64,4)","v":""},{"$f":"LEFT(Template!J64,6)","v":""},{"$f":"LEFT(Template!K64,6)","v":""},{"$f":"LEFT(Template!L64,3)","v":""},{"$f":"IF(Template!M64=\"\",\"\",Template!M64)","v":""},{"$f":"IF(Template!N64=\"\",\"\",Template!N64)","v":""},null,null,null,null,null,{"$f":"IF(Template!O64=\"\",\"\",Template!O64)","v":""}]
[{"$f":"LEFT(Template!A65,4)","v":""},{"$f":"LEFT(Template!B65,5)","v":""},{"$f":"LEFT(Template!C65,7)","v":""},{"$f":"LEFT(Template!D65,6)","v":""},{"$f":"LEFT(Template!E65,2)","v":""},{"$f":"LEFT(Template!F65,3)","v":""},{"$f":"LEFT(Template!G65,10)","v":""},{"$f":"LEFT(Template!H65,6)","v":""},{"$f":"LEFT(Template!I65,4)","v":""},{"$f":"LEFT(Template!J65,6)","v":""},{"$f":"LEFT(Template!K65,6)","v":""},{"$f":"LEFT(Template!L65,3)","v":""},{"$f":"IF(Template!M65=\"\",\"\",Template!M65)","v":""},{"$f":"IF(Template!N65=\"\",\"\",Template!N65)","v":""},null,null,null,null,null,{"$f":"IF(Template!O65=\"\",\"\",Template!O65)","v":""}]
[{"$f":"LEFT(Template!A66,4)","v":""},{"$f":"LEFT(Template!B66,5)","v":""},{"$f":"LEFT(Template!C66,7)","v":""},{"$f":"LEFT(Template!D66,6)","v":""},{"$f":"LEFT(Template!E66,2)","v":""},{"$f":"LEFT(Template!F66,3)","v":""},{"$f":"LEFT(Template!G66,10)","v":""},{"$f":"LEFT(Template!H66,6)","v":""},{"$f":"LEFT(Template!I66,4)","v":""},{"$f":"LEFT(Template!J66,6)","v":""},{"$f":"LEFT(Template!K66,6)","v":""},{"$f":"LEFT(Template!L66,3)","v":""},{"$f":"IF(Template!M66=\"\",\"\",Template!M66)","v":""},{"$f":"IF(Template!N66=\"\",\"\",Template!N66)","v":""},null,null,null,null,null,{"$f":"IF(Template!O66=\"\",\"\",Template!O66)","v":""}]
[{"$f":"LEFT(Template!A67,4)","v":""},{"$f":"LEFT(Template!B67,5)","v":""},{"$f":"LEFT(Template!C67,7)","v":""},{"$f":"LEFT(Template!D67,6)","v":""},{"$f":"LEFT(Template!E67,2)","v":""},{"$f":"LEFT(Template!F67,3)","v":""},{"$f":"LEFT(Template!G67,10)","v":""},{"$f":"LEFT(Template!H67,6)","v":""},{"$f":"LEFT(Template!I67,4)","v":""},{"$f":"LEFT(Template!J67,6)","v":""},{"$f":"LEFT(Template!K67,6)","v":""},{"$f":"LEFT(Template!L67,3)","v":""},{"$f":"IF(Template!M67=\"\",\"\",Template!M67)","v":""},{"$f":"IF(Template!N67=\"\",\"\",Template!N67)","v":""},null,null,null,null,null,{"$f":"IF(Template!O67=\"\",\"\",Template!O67)","v":""}]
[{"$f":"LEFT(Template!A68,4)","v":""},{"$f":"LEFT(Template!B68,5)","v":""},{"$f":"LEFT(Template!C68,7)","v":""},{"$f":"LEFT(Template!D68,6)","v":""},{"$f":"LEFT(Template!E68,2)","v":""},{"$f":"LEFT(Template!F68,3)","v":""},{"$f":"LEFT(Template!G68,10)","v":""},{"$f":"LEFT(Template!H68,6)","v":""},{"$f":"LEFT(Template!I68,4)","v":""},{"$f":"LEFT(Template!J68,6)","v":""},{"$f":"LEFT(Template!K68,6)","v":""},{"$f":"LEFT(Template!L68,3)","v":""},{"$f":"IF(Template!M68=\"\",\"\",Template!M68)","v":""},{"$f":"IF(Template!N68=\"\",\"\",Template!N68)","v":""},null,null,null,null,null,{"$f":"IF(Template!O68=\"\",\"\",Template!O68)","v":""}]
[{"$f":"LEFT(Template!A69,4)","v":""},{"$f":"LEFT(Template!B69,5)","v":""},{"$f":"LEFT(Template!C69,7)","v":""},{"$f":"LEFT(Template!D69,6)","v":""},{"$f":"LEFT(Template!E69,2)","v":""},{"$f":"LEFT(Template!F69,3)","v":""},{"$f":"LEFT(Template!G69,10)","v":""},{"$f":"LEFT(Template!H69,6)","v":""},{"$f":"LEFT(Template!I69,4)","v":""},{"$f":"LEFT(Template!J69,6)","v":""},{"$f":"LEFT(Template!K69,6)","v":""},{"$f":"LEFT(Template!L69,3)","v":""},{"$f":"IF(Template!M69=\"\",\"\",Template!M69)","v":""},{"$f":"IF(Template!N69=\"\",\"\",Template!N69)","v":""},null,null,null,null,null,{"$f":"IF(Template!O69=\"\",\"\",Template!O69)","v":""}]
[{"$f":"LEFT(Template!A70,4)","v":""},{"$f":"LEFT(Template!B70,5)","v":""},{"$f":"LEFT(Template!C70,7)","v":""},{"$f":"LEFT(Template!D70,6)","v":""},{"$f":"LEFT(Template!E70,2)","v":""},{"$f":"LEFT(Template!F70,3)","v":""},{"$f":"LEFT(Template!G70,10)","v":""},{"$f":"LEFT(Template!H70,6)","v":""},{"$f":"LEFT(Template!I70,4)","v":""},{"$f":"LEFT(Template!J70,6)","v":""},{"$f":"LEFT(Template!K70,6)","v":""},{"$f":"LEFT(Template!L70,3)","v":""},{"$f":"IF(Template!M70=\"\",\"\",Template!M70)","v":""},{"$f":"IF(Template!N70=\"\",\"\",Template!N70)","v":""},null,null,null,null,null,{"$f":"IF(Template!O70=\"\",\"\",Template!O70)","v":""}]
[{"$f":"LEFT(Template!A71,4)","v":""},{"$f":"LEFT(Template!B71,5)","v":""},{"$f":"LEFT(Template!C71,7)","v":""},{"$f":"LEFT(Template!D71,6)","v":""},{"$f":"LEFT(Template!E71,2)","v":""},{"$f":"LEFT(Template!F71,3)","v":""},{"$f":"LEFT(Template!G71,10)","v":""},{"$f":"LEFT(Template!H71,6)","v":""},{"$f":"LEFT(Template!I71,4)","v":""},{"$f":"LEFT(Template!J71,6)","v":""},{"$f":"LEFT(Template!K71,6)","v":""},{"$f":"LEFT(Template!L71,3)","v":""},{"$f":"IF(Template!M71=\"\",\"\",Template!M71)","v":""},{"$f":"IF(Template!N71=\"\",\"\",Template!N71)","v":""},null,null,null,null,null,{"$f":"IF(Template!O71=\"\",\"\",Template!O71)","v":""}]
[{"$f":"LEFT(Template!A72,4)","v":""},{"$f":"LEFT(Template!B72,5)","v":""},{"$f":"LEFT(Template!C72,7)","v":""},{"$f":"LEFT(Template!D72,6)","v":""},{"$f":"LEFT(Template!E72,2)","v":""},{"$f":"LEFT(Template!F72,3)","v":""},{"$f":"LEFT(Template!G72,10)","v":""},{"$f":"LEFT(Template!H72,6)","v":""},{"$f":"LEFT(Template!I72,4)","v":""},{"$f":"LEFT(Template!J72,6)","v":""},{"$f":"LEFT(Template!K72,6)","v":""},{"$f":"LEFT(Template!L72,3)","v":""},{"$f":"IF(Template!M72=\"\",\"\",Template!M72)","v":""},{"$f":"IF(Template!N72=\"\",\"\",Template!N72)","v":""},null,null,null,null,null,{"$f":"IF(Template!O72=\"\",\"\",Template!O72)","v":""}]
[{"$f":"LEFT(Template!A73,4)","v":""},{"$f":"LEFT(Template!B73,5)","v":""},{"$f":"LEFT(Template!C73,7)","v":""},{"$f":"LEFT(Template!D73,6)","v":""},{"$f":"LEFT(Template!E73,2)","v":""},{"$f":"LEFT(Template!F73,3)","v":""},{"$f":"LEFT(Template!G73,10)","v":""},{"$f":"LEFT(Template!H73,6)","v":""},{"$f":"LEFT(Template!I73,4)","v":""},{"$f":"LEFT(Template!J73,6)","v":""},{"$f":"LEFT(Template!K73,6)","v":""},{"$f":"LEFT(Template!L73,3)","v":""},{"$f":"IF(Template!M73=\"\",\"\",Template!M73)","v":""},{"$f":"IF(Template!N73=\"\",\"\",Template!N73)","v":""},null,null,null,null,null,{"$f":"IF(Template!O73=\"\",\"\",Template!O73)","v":""}]
[{"$f":"LEFT(Template!A74,4)","v":""},{"$f":"LEFT(Template!B74,5)","v":""},{"$f":"LEFT(Template!C74,7)","v":""},{"$f":"LEFT(Template!D74,6)","v":""},{"$f":"LEFT(Template!E74,2)","v":""},{"$f":"LEFT(Template!F74,3)","v":""},{"$f":"LEFT(Template!G74,10)","v":""},{"$f":"LEFT(Template!H74,6)","v":""},{"$f":"LEFT(Template!I74,4)","v":""},{"$f":"LEFT(Template!J74,6)","v":""},{"$f":"LEFT(Template!K74,6)","v":""},{"$f":"LEFT(Template!L74,3)","v":""},{"$f":"IF(Template!M74=\"\",\"\",Template!M74)","v":""},{"$f":"IF(Template!N74=\"\",\"\",Template!N74)","v":""},null,null,null,null,null,{"$f":"IF(Template!O74=\"\",\"\",Template!O74)","v":""}]
[{"$f":"LEFT(Template!A75,4)","v":""},{"$f":"LEFT(Template!B75,5)","v":""},{"$f":"LEFT(Template!C75,7)","v":""},{"$f":"LEFT(Template!D75,6)","v":""},{"$f":"LEFT(Template!E75,2)","v":""},{"$f":"LEFT(Template!F75,3)","v":""},{"$f":"LEFT(Template!G75,10)","v":""},{"$f":"LEFT(Template!H75,6)","v":""},{"$f":"LEFT(Template!I75,4)","v":""},{"$f":"LEFT(Template!J75,6)","v":""},{"$f":"LEFT(Template!K75,6)","v":""},{"$f":"LEFT(Template!L75,3)","v":""},{"$f":"IF(Template!M75=\"\",\"\",Template!M75)","v":""},{"$f":"IF(Template!N75=\"\",\"\",Template!N75)","v":""},null,null,null,null,null,{"$f":"IF(Template!O75=\"\",\"\",Template!O75)","v":""}]
[{"$f":"LEFT(Template!A76,4)","v":""},{"$f":"LEFT(Template!B76,5)","v":""},{"$f":"LEFT(Template!C76,7)","v":""},{"$f":"LEFT(Template!D76,6)","v":""},{"$f":"LEFT(Template!E76,2)","v":""},{"$f":"LEFT(Template!F76,3)","v":""},{"$f":"LEFT(Template!G76,10)","v":""},{"$f":"LEFT(Template!H76,6)","v":""},{"$f":"LEFT(Template!I76,4)","v":""},{"$f":"LEFT(Template!J76,6)","v":""},{"$f":"LEFT(Template!K76,6)","v":""},{"$f":"LEFT(Template!L76,3)","v":""},{"$f":"IF(Template!M76=\"\",\"\",Template!M76)","v":""},{"$f":"IF(Template!N76=\"\",\"\",Template!N76)","v":""},null,null,null,null,null,{"$f":"IF(Template!O76=\"\",\"\",Template!O76)","v":""}]
[{"$f":"LEFT(Template!A77,4)","v":""},{"$f":"LEFT(Template!B77,5)","v":""},{"$f":"LEFT(Template!C77,7)","v":""},{"$f":"LEFT(Template!D77,6)","v":""},{"$f":"LEFT(Template!E77,2)","v":""},{"$f":"LEFT(Template!F77,3)","v":""},{"$f":"LEFT(Template!G77,10)","v":""},{"$f":"LEFT(Template!H77,6)","v":""},{"$f":"LEFT(Template!I77,4)","v":""},{"$f":"LEFT(Template!J77,6)","v":""},{"$f":"LEFT(Template!K77,6)","v":""},{"$f":"LEFT(Template!L77,3)","v":""},{"$f":"IF(Template!M77=\"\",\"\",Template!M77)","v":""},{"$f":"IF(Template!N77=\"\",\"\",Template!N77)","v":""},null,null,null,null,null,{"$f":"IF(Template!O77=\"\",\"\",Template!O77)","v":""}]
[{"$f":"LEFT(Template!A78,4)","v":""},{"$f":"LEFT(Template!B78,5)","v":""},{"$f":"LEFT(Template!C78,7)","v":""},{"$f":"LEFT(Template!D78,6)","v":""},{"$f":"LEFT(Template!E78,2)","v":""},{"$f":"LEFT(Template!F78,3)","v":""},{"$f":"LEFT(Template!G78,10)","v":""},{"$f":"LEFT(Template!H78,6)","v":""},{"$f":"LEFT(Template!I78,4)","v":""},{"$f":"LEFT(Template!J78,6)","v":""},{"$f":"LEFT(Template!K78,6)","v":""},{"$f":"LEFT(Template!L78,3)","v":""},{"$f":"IF(Template!M78=\"\",\"\",Template!M78)","v":""},{"$f":"IF(Template!N78=\"\",\"\",Template!N78)","v":""},null,null,null,null,null,{"$f":"IF(Template!O78=\"\",\"\",Template!O78)","v":""}]
[{"$f":"LEFT(Template!A79,4)","v":""},{"$f":"LEFT(Template!B79,5)","v":""},{"$f":"LEFT(Template!C79,7)","v":""},{"$f":"LEFT(Template!D79,6)","v":""},{"$f":"LEFT(Template!E79,2)","v":""},{"$f":"LEFT(Template!F79,3)","v":""},{"$f":"LEFT(Template!G79,10)","v":""},{"$f":"LEFT(Template!H79,6)","v":""},{"$f":"LEFT(Template!I79,4)","v":""},{"$f":"LEFT(Template!J79,6)","v":""},{"$f":"LEFT(Template!K79,6)","v":""},{"$f":"LEFT(Template!L79,3)","v":""},{"$f":"IF(Template!M79=\"\",\"\",Template!M79)","v":""},{"$f":"IF(Template!N79=\"\",\"\",Template!N79)","v":""},null,null,null,null,null,{"$f":"IF(Template!O79=\"\",\"\",Template!O79)","v":""}]
[{"$f":"LEFT(Template!A80,4)","v":""},{"$f":"LEFT(Template!B80,5)","v":""},{"$f":"LEFT(Template!C80,7)","v":""},{"$f":"LEFT(Template!D80,6)","v":""},{"$f":"LEFT(Template!E80,2)","v":""},{"$f":"LEFT(Template!F80,3)","v":""},{"$f":"LEFT(Template!G80,10)","v":""},{"$f":"LEFT(Template!H80,6)","v":""},{"$f":"LEFT(Template!I80,4)","v":""},{"$f":"LEFT(Template!J80,6)","v":""},{"$f":"LEFT(Template!K80,6)","v":""},{"$f":"LEFT(Template!L80,3)","v":""},{"$f":"IF(Template!M80=\"\",\"\",Template!M80)","v":""},{"$f":"IF(Template!N80=\"\",\"\",Template!N80)","v":""},null,null,null,null,null,{"$f":"IF(Template!O80=\"\",\"\",Template!O80)","v":""}]
[{"$f":"LEFT(Template!A81,4)","v":""},{"$f":"LEFT(Template!B81,5)","v":""},{"$f":"LEFT(Template!C81,7)","v":""},{"$f":"LEFT(Template!D81,6)","v":""},{"$f":"LEFT(Template!E81,2)","v":""},{"$f":"LEFT(Template!F81,3)","v":""},{"$f":"LEFT(Template!G81,10)","v":""},{"$f":"LEFT(Template!H81,6)","v":""},{"$f":"LEFT(Template!I81,4)","v":""},{"$f":"LEFT(Template!J81,6)","v":""},{"$f":"LEFT(Template!K81,6)","v":""},{"$f":"LEFT(Template!L81,3)","v":""},{"$f":"IF(Template!M81=\"\",\"\",Template!M81)","v":""},{"$f":"IF(Template!N81=\"\",\"\",Template!N81)","v":""},null,null,null,null,null,{"$f":"IF(Template!O81=\"\",\"\",Template!O81)","v":""}]
[{"$f":"LEFT(Template!A82,4)","v":""},{"$f":"LEFT(Template!B82,5)","v":""},{"$f":"LEFT(Template!C82,7)","v":""},{"$f":"LEFT(Template!D82,6)","v":""},{"$f":"LEFT(Template!E82,2)","v":""},{"$f":"LEFT(Template!F82,3)","v":""},{"$f":"LEFT(Template!G82,10)","v":""},{"$f":"LEFT(Template!H82,6)","v":""},{"$f":"LEFT(Template!I82,4)","v":""},{"$f":"LEFT(Template!J82,6)","v":""},{"$f":"LEFT(Template!K82,6)","v":""},{"$f":"LEFT(Template!L82,3)","v":""},{"$f":"IF(Template!M82=\"\",\"\",Template!M82)","v":""},{"$f":"IF(Template!N82=\"\",\"\",Template!N82)","v":""},null,null,null,null,null,{"$f":"IF(Template!O82=\"\",\"\",Template!O82)","v":""}]
[{"$f":"LEFT(Template!A83,4)","v":""},{"$f":"LEFT(Template!B83,5)","v":""},{"$f":"LEFT(Template!C83,7)","v":""},{"$f":"LEFT(Template!D83,6)","v":""},{"$f":"LEFT(Template!E83,2)","v":""},{"$f":"LEFT(Template!F83,3)","v":""},{"$f":"LEFT(Template!G83,10)","v":""},{"$f":"LEFT(Template!H83,6)","v":""},{"$f":"LEFT(Template!I83,4)","v":""},{"$f":"LEFT(Template!J83,6)","v":""},{"$f":"LEFT(Template!K83,6)","v":""},{"$f":"LEFT(Template!L83,3)","v":""},{"$f":"IF(Template!M83=\"\",\"\",Template!M83)","v":""},{"$f":"IF(Template!N83=\"\",\"\",Template!N83)","v":""},null,null,null,null,null,{"$f":"IF(Template!O83=\"\",\"\",Template!O83)","v":""}]
[{"$f":"LEFT(Template!A84,4)","v":""},{"$f":"LEFT(Template!B84,5)","v":""},{"$f":"LEFT(Template!C84,7)","v":""},{"$f":"LEFT(Template!D84,6)","v":""},{"$f":"LEFT(Template!E84,2)","v":""},{"$f":"LEFT(Template!F84,3)","v":""},{"$f":"LEFT(Template!G84,10)","v":""},{"$f":"LEFT(Template!H84,6)","v":""},{"$f":"LEFT(Template!I84,4)","v":""},{"$f":"LEFT(Template!J84,6)","v":""},{"$f":"LEFT(Template!K84,6)","v":""},{"$f":"LEFT(Template!L84,3)","v":""},{"$f":"IF(Template!M84=\"\",\"\",Template!M84)","v":""},{"$f":"IF(Template!N84=\"\",\"\",Template!N84)","v":""},null,null,null,null,null,{"$f":"IF(Template!O84=\"\",\"\",Template!O84)","v":""}]
[{"$f":"LEFT(Template!A85,4)","v":""},{"$f":"LEFT(Template!B85,5)","v":""},{"$f":"LEFT(Template!C85,7)","v":""},{"$f":"LEFT(Template!D85,6)","v":""},{"$f":"LEFT(Template!E85,2)","v":""},{"$f":"LEFT(Template!F85,3)","v":""},{"$f":"LEFT(Template!G85,10)","v":""},{"$f":"LEFT(Template!H85,6)","v":""},{"$f":"LEFT(Template!I85,4)","v":""},{"$f":"LEFT(Template!J85,6)","v":""},{"$f":"LEFT(Template!K85,6)","v":""},{"$f":"LEFT(Template!L85,3)","v":""},{"$f":"IF(Template!M85=\"\",\"\",Template!M85)","v":""},{"$f":"IF(Template!N85=\"\",\"\",Template!N85)","v":""},null,null,null,null,null,{"$f":"IF(Template!O85=\"\",\"\",Template!O85)","v":""}]
[{"$f":"LEFT(Template!A86,4)","v":""},{"$f":"LEFT(Template!B86,5)","v":""},{"$f":"LEFT(Template!C86,7)","v":""},{"$f":"LEFT(Template!D86,6)","v":""},{"$f":"LEFT(Template!E86,2)","v":""},{"$f":"LEFT(Template!F86,3)","v":""},{"$f":"LEFT(Template!G86,10)","v":""},{"$f":"LEFT(Template!H86,6)","v":""},{"$f":"LEFT(Template!I86,4)","v":""},{"$f":"LEFT(Template!J86,6)","v":""},{"$f":"LEFT(Template!K86,6)","v":""},{"$f":"LEFT(Template!L86,3)","v":""},{"$f":"IF(Template!M86=\"\",\"\",Template!M86)","v":""},{"$f":"IF(Template!N86=\"\",\"\",Template!N86)","v":""},null,null,null,null,null,{"$f":"IF(Template!O86=\"\",\"\",Template!O86)","v":""}]
[{"$f":"LEFT(Template!A87,4)","v":""},{"$f":"LEFT(Template!B87,5)","v":""},{"$f":"LEFT(Template!C87,7)","v":""},{"$f":"LEFT(Template!D87,6)","v":""},{"$f":"LEFT(Template!E87,2)","v":""},{"$f":"LEFT(Template!F87,3)","v":""},{"$f":"LEFT(Template!G87,10)","v":""},{"$f":"LEFT(Template!H87,6)","v":""},{"$f":"LEFT(Template!I87,4)","v":""},{"$f":"LEFT(Template!J87,6)","v":""},{"$f":"LEFT(Template!K87,6)","v":""},{"$f":"LEFT(Template!L87,3)","v":""},{"$f":"IF(Template!M87=\"\",\"\",Template!M87)","v":""},{"$f":"IF(Template!N87=\"\",\"\",Template!N87)","v":""},null,null,null,null,null,{"$f":"IF(Template!O87=\"\",\"\",Template!O87)","v":""}]
[{"$f":"LEFT(Template!A88,4)","v":""},{"$f":"LEFT(Template!B88,5)","v":""},{"$f":"LEFT(Template!C88,7)","v":""},{"$f":"LEFT(Template!D88,6)","v":""},{"$f":"LEFT(Template!E88,2)","v":""},{"$f":"LEFT(Template!F88,3)","v":""},{"$f":"LEFT(Template!G88,10)","v":""},{"$f":"LEFT(Template!H88,6)","v":""},{"$f":"LEFT(Template!I88,4)","v":""},{"$f":"LEFT(Template!J88,6)","v":""},{"$f":"LEFT(Template!K88,6)","v":""},{"$f":"LEFT(Template!L88,3)","v":""},{"$f":"IF(Template!M88=\"\",\"\",Template!M88)","v":""},{"$f":"IF(Template!N88=\"\",\"\",Template!N88)","v":""},null,null,null,null,null,{"$f":"IF(Template!O88=\"\",\"\",Template!O88)","v":""}]
[{"$f":"LEFT(Template!A89,4)","v":""},{"$f":"LEFT(Template!B89,5)","v":""},{"$f":"LEFT(Template!C89,7)","v":""},{"$f":"LEFT(Template!D89,6)","v":""},{"$f":"LEFT(Template!E89,2)","v":""},{"$f":"LEFT(Template!F89,3)","v":""},{"$f":"LEFT(Template!G89,10)","v":""},{"$f":"LEFT(Template!H89,6)","v":""},{"$f":"LEFT(Template!I89,4)","v":""},{"$f":"LEFT(Template!J89,6)","v":""},{"$f":"LEFT(Template!K89,6)","v":""},{"$f":"LEFT(Template!L89,3)","v":""},{"$f":"IF(Template!M89=\"\",\"\",Template!M89)","v":""},{"$f":"IF(Template!N89=\"\",\"\",Template!N89)","v":""},null,null,null,null,null,{"$f":"IF(Template!O89=\"\",\"\",Template!O89)","v":""}]
[{"$f":"LEFT(Template!A90,4)","v":""},{"$f":"LEFT(Template!B90,5)","v":""},{"$f":"LEFT(Template!C90,7)","v":""},{"$f":"LEFT(Template!D90,6)","v":""},{"$f":"LEFT(Template!E90,2)","v":""},{"$f":"LEFT(Template!F90,3)","v":""},{"$f":"LEFT(Template!G90,10)","v":""},{"$f":"LEFT(Template!H90,6)","v":""},{"$f":"LEFT(Template!I90,4)","v":""},{"$f":"LEFT(Template!J90,6)","v":""},{"$f":"LEFT(Template!K90,6)","v":""},{"$f":"LEFT(Template!L90,3)","v":""},{"$f":"IF(Template!M90=\"\",\"\",Template!M90)","v":""},{"$f":"IF(Template!N90=\"\",\"\",Template!N90)","v":""},null,null,null,null,null,{"$f":"IF(Template!O90=\"\",\"\",Template!O90)","v":""}]
[{"$f":"LEFT(Template!A91,4)","v":""},{"$f":"LEFT(Template!B91,5)","v":""},{"$f":"LEFT(Template!C91,7)","v":""},{"$f":"LEFT(Template!D91,6)","v":""},{"$f":"LEFT(Template!E91,2)","v":""},{"$f":"LEFT(Template!F91,3)","v":""},{"$f":"LEFT(Template!G91,10)","v":""},{"$f":"LEFT(Template!H91,6)","v":""},{"$f":"LEFT(Template!I91,4)","v":""},{"$f":"LEFT(Template!J91,6)","v":""},{"$f":"LEFT(Template!K91,6)","v":""},{"$f":"LEFT(Template!L91,3)","v":""},{"$f":"IF(Template!M91=\"\",\"\",Template!M91)","v":""},{"$f":"IF(Template!N91=\"\",\"\",Template!N91)","v":""},null,null,null,null,null,{"$f":"IF(Template!O91=\"\",\"\",Template!O91)","v":""}]
[{"$f":"LEFT(Template!A92,4)","v":""},{"$f":"LEFT(Template!B92,5)","v":""},{"$f":"LEFT(Template!C92,7)","v":""},{"$f":"LEFT(Template!D92,6)","v":""},{"$f":"LEFT(Template!E92,2)","v":""},{"$f":"LEFT(Template!F92,3)","v":""},{"$f":"LEFT(Template!G92,10)","v":""},{"$f":"LEFT(Template!H92,6)","v":""},{"$f":"LEFT(Template!I92,4)","v":""},{"$f":"LEFT(Template!J92,6)","v":""},{"$f":"LEFT(Template!K92,6)","v":""},{"$f":"LEFT(Template!L92,3)","v":""},{"$f":"IF(Template!M92=\"\",\"\",Template!M92)","v":""},{"$f":"IF(Template!N92=\"\",\"\",Template!N92)","v":""},null,null,null,null,null,{"$f":"IF(Template!O92=\"\",\"\",Template!O92)","v":""}]
[{"$f":"LEFT(Template!A93,4)","v":""},{"$f":"LEFT(Template!B93,5)","v":""},{"$f":"LEFT(Template!C93,7)","v":""},{"$f":"LEFT(Template!D93,6)","v":""},{"$f":"LEFT(Template!E93,2)","v":""},{"$f":"LEFT(Template!F93,3)","v":""},{"$f":"LEFT(Template!G93,10)","v":""},{"$f":"LEFT(Template!H93,6)","v":""},{"$f":"LEFT(Template!I93,4)","v":""},{"$f":"LEFT(Template!J93,6)","v":""},{"$f":"LEFT(Template!K93,6)","v":""},{"$f":"LEFT(Template!L93,3)","v":""},{"$f":"IF(Template!M93=\"\",\"\",Template!M93)","v":""},{"$f":"IF(Template!N93=\"\",\"\",Template!N93)","v":""},null,null,null,null,null,{"$f":"IF(Template!O93=\"\",\"\",Template!O93)","v":""}]
[{"$f":"LEFT(Template!A94,4)","v":""},{"$f":"LEFT(Template!B94,5)","v":""},{"$f":"LEFT(Template!C94,7)","v":""},{"$f":"LEFT(Template!D94,6)","v":""},{"$f":"LEFT(Template!E94,2)","v":""},{"$f":"LEFT(Template!F94,3)","v":""},{"$f":"LEFT(Template!G94,10)","v":""},{"$f":"LEFT(Template!H94,6)","v":""},{"$f":"LEFT(Template!I94,4)","v":""},{"$f":"LEFT(Template!J94,6)","v":""},{"$f":"LEFT(Template!K94,6)","v":""},{"$f":"LEFT(Template!L94,3)","v":""},{"$f":"IF(Template!M94=\"\",\"\",Template!M94)","v":""},{"$f":"IF(Template!N94=\"\",\"\",Template!N94)","v":""},null,null,null,null,null,{"$f":"IF(Template!O94=\"\",\"\",Template!O94)","v":""}]
[{"$f":"LEFT(Template!A95,4)","v":""},{"$f":"LEFT(Template!B95,5)","v":""},{"$f":"LEFT(Template!C95,7)","v":""},{"$f":"LEFT(Template!D95,6)","v":""},{"$f":"LEFT(Template!E95,2)","v":""},{"$f":"LEFT(Template!F95,3)","v":""},{"$f":"LEFT(Template!G95,10)","v":""},{"$f":"LEFT(Template!H95,6)","v":""},{"$f":"LEFT(Template!I95,4)","v":""},{"$f":"LEFT(Template!J95,6)","v":""},{"$f":"LEFT(Template!K95,6)","v":""},{"$f":"LEFT(Template!L95,3)","v":""},{"$f":"IF(Template!M95=\"\",\"\",Template!M95)","v":""},{"$f":"IF(Template!N95=\"\",\"\",Template!N95)","v":""},null,null,null,null,null,{"$f":"IF(Template!O95=\"\",\"\",Template!O95)","v":""}]
[{"$f":"LEFT(Template!A96,4)","v":""},{"$f":"LEFT(Template!B96,5)","v":""},{"$f":"LEFT(Template!C96,7)","v":""},{"$f":"LEFT(Template!D96,6)","v":""},{"$f":"LEFT(Template!E96,2)","v":""},{"$f":"LEFT(Template!F96,3)","v":""},{"$f":"LEFT(Template!G96,10)","v":""},{"$f":"LEFT(Template!H96,6)","v":""},{"$f":"LEFT(Template!I96,4)","v":""},{"$f":"LEFT(Template!J96,6)","v":""},{"$f":"LEFT(Template!K96,6)","v":""},{"$f":"LEFT(Template!L96,3)","v":""},{"$f":"IF(Template!M96=\"\",\"\",Template!M96)","v":""},{"$f":"IF(Template!N96=\"\",\"\",Template!N96)","v":""},null,null,null,null,null,{"$f":"IF(Template!O96=\"\",\"\",Template!O96)","v":""}]
[{"$f":"LEFT(Template!A97,4)","v":""},{"$f":"LEFT(Template!B97,5)","v":""},{"$f":"LEFT(Template!C97,7)","v":""},{"$f":"LEFT(Template!D97,6)","v":""},{"$f":"LEFT(Template!E97,2)","v":""},{"$f":"LEFT(Template!F97,3)","v":""},{"$f":"LEFT(Template!G97,10)","v":""},{"$f":"LEFT(Template!H97,6)","v":""},{"$f":"LEFT(Template!I97,4)","v":""},{"$f":"LEFT(Template!J97,6)","v":""},{"$f":"LEFT(Template!K97,6)","v":""},{"$f":"LEFT(Template!L97,3)","v":""},{"$f":"IF(Template!M97=\"\",\"\",Template!M97)","v":""},{"$f":"IF(Template!N97=\"\",\"\",Template!N97)","v":""},null,null,null,null,null,{"$f":"IF(Template!O97=\"\",\"\",Template!O97)","v":""}]
[{"$f":"LEFT(Template!A98,4)","v":""},{"$f":"LEFT(Template!B98,5)","v":""},{"$f":"LEFT(Template!C98,7)","v":""},{"$f":"LEFT(Template!D98,6)","v":""},{"$f":"LEFT(Template!E98,2)","v":""},{"$f":"LEFT(Template!F98,3)","v":""},{"$f":"LEFT(Template!G98,10)","v":""},{"$f":"LEFT(Template!H98,6)","v":""},{"$f":"LEFT(Template!I98,4)","v":""},{"$f":"LEFT(Template!J98,6)","v":""},{"$f":"LEFT(Template!K98,6)","v":""},{"$f":"LEFT(Template!L98,3)","v":""},{"$f":"IF(Template!M98=\"\",\"\",Template!M98)","v":""},{"$f":"IF(Template!N98=\"\",\"\",Template!N98)","v":""},null,null,null,null,null,{"$f":"IF(Template!O98=\"\",\"\",Template!O98)","v":""}]
[{"$f":"LEFT(Template!A99,4)","v":""},{"$f":"LEFT(Template!B99,5)","v":""},{"$f":"LEFT(Template!C99,7)","v":""},{"$f":"LEFT(Template!D99,6)","v":""},{"$f":"LEFT(Template!E99,2)","v":""},{"$f":"LEFT(Template!F99,3)","v":""},{"$f":"LEFT(Template!G99,10)","v":""},{"$f":"LEFT(Template!H99,6)","v":""},{"$f":"LEFT(Template!I99,4)","v":""},{"$f":"LEFT(Template!J99,6)","v":""},{"$f":"LEFT(Template!K99,6)","v":""},{"$f":"LEFT(Template!L99,3)","v":""},{"$f":"IF(Template!M99=\"\",\"\",Template!M99)","v":""},{"$f":"IF(Template!N99=\"\",\"\",Template!N99)","v":""},null,null,null,null,null,{"$f":"IF(Template!O99=\"\",\"\",Template!O99)","v":""}]
[{"$f":"LEFT(Template!A100,4)","v":""},{"$f":"LEFT(Template!B100,5)","v":""},{"$f":"LEFT(Template!C100,7)","v":""},{"$f":"LEFT(Template!D100,6)","v":""},{"$f":"LEFT(Template!E100,2)","v":""},{"$f":"LEFT(Template!F100,3)","v":""},{"$f":"LEFT(Template!G100,10)","v":""},{"$f":"LEFT(Template!H100,6)","v":""},{"$f":"LEFT(Template!I100,4)","v":""},{"$f":"LEFT(Template!J100,6)","v":""},{"$f":"LEFT(Template!K100,6)","v":""},{"$f":"LEFT(Template!L100,3)","v":""},{"$f":"IF(Template!M100=\"\",\"\",Template!M100)","v":""},{"$f":"IF(Template!N100=\"\",\"\",Template!N100)","v":""},null,null,null,null,null,{"$f":"IF(Template!O100=\"\",\"\",Template!O100)","v":""}]
[{"$f":"LEFT(Template!A101,4)","v":""},{"$f":"LEFT(Template!B101,5)","v":""},{"$f":"LEFT(Template!C101,7)","v":""},{"$f":"LEFT(Template!D101,6)","v":""},{"$f":"LEFT(Template!E101,2)","v":""},{"$f":"LEFT(Template!F101,3)","v":""},{"$f":"LEFT(Template!G101,10)","v":""},{"$f":"LEFT(Template!H101,6)","v":""},{"$f":"LEFT(Template!I101,4)","v":""},{"$f":"LEFT(Template!J101,6)","v":""},{"$f":"LEFT(Template!K101,6)","v":""},{"$f":"LEFT(Template!L101,3)","v":""},{"$f":"IF(Template!M101=\"\",\"\",Template!M101)","v":""},{"$f":"IF(Template!N101=\"\",\"\",Template!N101)","v":""},null,null,null,null,null,{"$f":"IF(Template!O101=\"\",\"\",Template!O101)","v":""}]
[{"$f":"LEFT(Template!A102,4)","v":""},{"$f":"LEFT(Template!B102,5)","v":""},{"$f":"LEFT(Template!C102,7)","v":""},{"$f":"LEFT(Template!D102,6)","v":""},{"$f":"LEFT(Template!E102,2)","v":""},{"$f":"LEFT(Template!F102,3)","v":""},{"$f":"LEFT(Template!G102,10)","v":""},{"$f":"LEFT(Template!H102,6)","v":""},{"$f":"LEFT(Template!I102,4)","v":""},{"$f":"LEFT(Template!J102,6)","v":""},{"$f":"LEFT(Template!K102,6)","v":""},{"$f":"LEFT(Template!L102,3)","v":""},{"$f":"IF(Template!M102=\"\",\"\",Template!M102)","v":""},{"$f":"IF(Template!N102=\"\",\"\",Template!N102)","v":""},null,null,null,null,null,{"$f":"IF(Template!O102=\"\",\"\",Template!O102)","v":""}]
[{"$f":"LEFT(Template!A103,4)","v":""},{"$f":"LEFT(Template!B103,5)","v":""},{"$f":"LEFT(Template!C103,7)","v":""},{"$f":"LEFT(Template!D103,6)","v":""},{"$f":"LEFT(Template!E103,2)","v":""},{"$f":"LEFT(Template!F103,3)","v":""},{"$f":"LEFT(Template!G103,10)","v":""},{"$f":"LEFT(Template!H103,6)","v":""},{"$f":"LEFT(Template!I103,4)","v":""},{"$f":"LEFT(Template!J103,6)","v":""},{"$f":"LEFT(Template!K103,6)","v":""},{"$f":"LEFT(Template!L103,3)","v":""},{"$f":"IF(Template!M103=\"\",\"\",Template!M103)","v":""},{"$f":"IF(Template!N103=\"\",\"\",Template!N103)","v":""},null,null,null,null,null,{"$f":"IF(Template!O103=\"\",\"\",Template!O103)","v":""}]
[{"$f":"LEFT(Template!A104,4)","v":""},{"$f":"LEFT(Template!B104,5)","v":""},{"$f":"LEFT(Template!C104,7)","v":""},{"$f":"LEFT(Template!D104,6)","v":""},{"$f":"LEFT(Template!E104,2)","v":""},{"$f":"LEFT(Template!F104,3)","v":""},{"$f":"LEFT(Template!G104,10)","v":""},{"$f":"LEFT(Template!H104,6)","v":""},{"$f":"LEFT(Template!I104,4)","v":""},{"$f":"LEFT(Template!J104,6)","v":""},{"$f":"LEFT(Template!K104,6)","v":""},{"$f":"LEFT(Template!L104,3)","v":""},{"$f":"IF(Template!M104=\"\",\"\",Template!M104)","v":""},{"$f":"IF(Template!N104=\"\",\"\",Template!N104)","v":""},null,null,null,null,null,{"$f":"IF(Template!O104=\"\",\"\",Template!O104)","v":""}]
[{"$f":"LEFT(Template!A105,4)","v":""},{"$f":"LEFT(Template!B105,5)","v":""},{"$f":"LEFT(Template!C105,7)","v":""},{"$f":"LEFT(Template!D105,6)","v":""},{"$f":"LEFT(Template!E105,2)","v":""},{"$f":"LEFT(Template!F105,3)","v":""},{"$f":"LEFT(Template!G105,10)","v":""},{"$f":"LEFT(Template!H105,6)","v":""},{"$f":"LEFT(Template!I105,4)","v":""},{"$f":"LEFT(Template!J105,6)","v":""},{"$f":"LEFT(Template!K105,6)","v":""},{"$f":"LEFT(Template!L105,3)","v":""},{"$f":"IF(Template!M105=\"\",\"\",Template!M105)","v":""},{"$f":"IF(Template!N105=\"\",\"\",Template!N105)","v":""},null,null,null,null,null,{"$f":"IF(Template!O105=\"\",\"\",Template!O105)","v":""}]
[{"$f":"LEFT(Template!A106,4)","v":""},{"$f":"LEFT(Template!B106,5)","v":""},{"$f":"LEFT(Template!C106,7)","v":""},{"$f":"LEFT(Template!D106,6)","v":""},{"$f":"LEFT(Template!E106,2)","v":""},{"$f":"LEFT(Template!F106,3)","v":""},{"$f":"LEFT(Template!G106,10)","v":""},{"$f":"LEFT(Template!H106,6)","v":""},{"$f":"LEFT(Template!I106,4)","v":""},{"$f":"LEFT(Template!J106,6)","v":""},{"$f":"LEFT(Template!K106,6)","v":""},{"$f":"LEFT(Template!L106,3)","v":""},{"$f":"IF(Template!M106=\"\",\"\",Template!M106)","v":""},{"$f":"IF(Template!N106=\"\",\"\",Template!N106)","v":""},null,null,null,null,null,{"$f":"IF(Template!O106=\"\",\"\",Template!O106)","v":""}]
[{"$f":"LEFT(Template!A107,4)","v":""},{"$f":"LEFT(Template!B107,5)","v":""},{"$f":"LEFT(Template!C107,7)","v":""},{"$f":"LEFT(Template!D107,6)","v":""},{"$f":"LEFT(Template!E107,2)","v":""},{"$f":"LEFT(Template!F107,3)","v":""},{"$f":"LEFT(Template!G107,10)","v":""},{"$f":"LEFT(Template!H107,6)","v":""},{"$f":"LEFT(Template!I107,4)","v":""},{"$f":"LEFT(Template!J107,6)","v":""},{"$f":"LEFT(Template!K107,6)","v":""},{"$f":"LEFT(Template!L107,3)","v":""},{"$f":"IF(Template!M107=\"\",\"\",Template!M107)","v":""},{"$f":"IF(Template!N107=\"\",\"\",Template!N107)","v":""},null,null,null,null,null,{"$f":"IF(Template!O107=\"\",\"\",Template!O107)","v":""}]
[{"$f":"LEFT(Template!A108,4)","v":""},{"$f":"LEFT(Template!B108,5)","v":""},{"$f":"LEFT(Template!C108,7)","v":""},{"$f":"LEFT(Template!D108,6)","v":""},{"$f":"LEFT(Template!E108,2)","v":""},{"$f":"LEFT(Template!F108,3)","v":""},{"$f":"LEFT(Template!G108,10)","v":""},{"$f":"LEFT(Template!H108,6)","v":""},{"$f":"LEFT(Template!I108,4)","v":""},{"$f":"LEFT(Template!J108,6)","v":""},{"$f":"LEFT(Template!K108,6)","v":""},{"$f":"LEFT(Template!L108,3)","v":""},{"$f":"IF(Template!M108=\"\",\"\",Template!M108)","v":""},{"$f":"IF(Template!N108=\"\",\"\",Template!N108)","v":""},null,null,null,null,null,{"$f":"IF(Template!O108=\"\",\"\",Template!O108)","v":""}]
[{"$f":"LEFT(Template!A109,4)","v":""},{"$f":"LEFT(Template!B109,5)","v":""},{"$f":"LEFT(Template!C109,7)","v":""},{"$f":"LEFT(Template!D109,6)","v":""},{"$f":"LEFT(Template!E109,2)","v":""},{"$f":"LEFT(Template!F109,3)","v":""},{"$f":"LEFT(Template!G109,10)","v":""},{"$f":"LEFT(Template!H109,6)","v":""},{"$f":"LEFT(Template!I109,4)","v":""},{"$f":"LEFT(Template!J109,6)","v":""},{"$f":"LEFT(Template!K109,6)","v":""},{"$f":"LEFT(Template!L109,3)","v":""},{"$f":"IF(Template!M109=\"\",\"\",Template!M109)","v":""},{"$f":"IF(Template!N109=\"\",\"\",Template!N109)","v":""},null,null,null,null,null,{"$f":"IF(Template!O109=\"\",\"\",Template!O109)","v":""}]
[{"$f":"LEFT(Template!A110,4)","v":""},{"$f":"LEFT(Template!B110,5)","v":""},{"$f":"LEFT(Template!C110,7)","v":""},{"$f":"LEFT(Template!D110,6)","v":""},{"$f":"LEFT(Template!E110,2)","v":""},{"$f":"LEFT(Template!F110,3)","v":""},{"$f":"LEFT(Template!G110,10)","v":""},{"$f":"LEFT(Template!H110,6)","v":""},{"$f":"LEFT(Template!I110,4)","v":""},{"$f":"LEFT(Template!J110,6)","v":""},{"$f":"LEFT(Template!K110,6)","v":""},{"$f":"LEFT(Template!L110,3)","v":""},{"$f":"IF(Template!M110=\"\",\"\",Template!M110)","v":""},{"$f":"IF(Template!N110=\"\",\"\",Template!N110)","v":""},null,null,null,null,null,{"$f":"IF(Template!O110=\"\",\"\",Template!O110)","v":""}]
[{"$f":"LEFT(Template!A111,4)","v":""},{"$f":"LEFT(Template!B111,5)","v":""},{"$f":"LEFT(Template!C111,7)","v":""},{"$f":"LEFT(Template!D111,6)","v":""},{"$f":"LEFT(Template!E111,2)","v":""},{"$f":"LEFT(Template!F111,3)","v":""},{"$f":"LEFT(Template!G111,10)","v":""},{"$f":"LEFT(Template!H111,6)","v":""},{"$f":"LEFT(Template!I111,4)","v":""},{"$f":"LEFT(Template!J111,6)","v":""},{"$f":"LEFT(Template!K111,6)","v":""},{"$f":"LEFT(Template!L111,3)","v":""},{"$f":"IF(Template!M111=\"\",\"\",Template!M111)","v":""},{"$f":"IF(Template!N111=\"\",\"\",Template!N111)","v":""},null,null,null,null,null,{"$f":"IF(Template!O111=\"\",\"\",Template!O111)","v":""}]
[{"$f":"LEFT(Template!A112,4)","v":""},{"$f":"LEFT(Template!B112,5)","v":""},{"$f":"LEFT(Template!C112,7)","v":""},{"$f":"LEFT(Template!D112,6)","v":""},{"$f":"LEFT(Template!E112,2)","v":""},{"$f":"LEFT(Template!F112,3)","v":""},{"$f":"LEFT(Template!G112,10)","v":""},{"$f":"LEFT(Template!H112,6)","v":""},{"$f":"LEFT(Template!I112,4)","v":""},{"$f":"LEFT(Template!J112,6)","v":""},{"$f":"LEFT(Template!K112,6)","v":""},{"$f":"LEFT(Template!L112,3)","v":""},{"$f":"IF(Template!M112=\"\",\"\",Template!M112)","v":""},{"$f":"IF(Template!N112=\"\",\"\",Template!N112)","v":""},null,null,null,null,null,{"$f":"IF(Template!O112=\"\",\"\",Template!O112)","v":""}]
[{"$f":"LEFT(Template!A113,4)","v":""},{"$f":"LEFT(Template!B113,5)","v":""},{"$f":"LEFT(Template!C113,7)","v":""},{"$f":"LEFT(Template!D113,6)","v":""},{"$f":"LEFT(Template!E113,2)","v":""},{"$f":"LEFT(Template!F113,3)","v":""},{"$f":"LEFT(Template!G113,10)","v":""},{"$f":"LEFT(Template!H113,6)","v":""},{"$f":"LEFT(Template!I113,4)","v":""},{"$f":"LEFT(Template!J113,6)","v":""},{"$f":"LEFT(Template!K113,6)","v":""},{"$f":"LEFT(Template!L113,3)","v":""},{"$f":"IF(Template!M113=\"\",\"\",Template!M113)","v":""},{"$f":"IF(Template!N113=\"\",\"\",Template!N113)","v":""},null,null,null,null,null,{"$f":"IF(Template!O113=\"\",\"\",Template!O113)","v":""}]
[{"$f":"LEFT(Template!A114,4)","v":""},{"$f":"LEFT(Template!B114,5)","v":""},{"$f":"LEFT(Template!C114,7)","v":""},{"$f":"LEFT(Template!D114,6)","v":""},{"$f":"LEFT(Template!E114,2)","v":""},{"$f":"LEFT(Template!F114,3)","v":""},{"$f":"LEFT(Template!G114,10)","v":""},{"$f":"LEFT(Template!H114,6)","v":""},{"$f":"LEFT(Template!I114,4)","v":""},{"$f":"LEFT(Template!J114,6)","v":""},{"$f":"LEFT(Template!K114,6)","v":""},{"$f":"LEFT(Template!L114,3)","v":""},{"$f":"IF(Template!M114=\"\",\"\",Template!M114)","v":""},{"$f":"IF(Template!N114=\"\",\"\",Template!N114)","v":""},null,null,null,null,null,{"$f":"IF(Template!O114=\"\",\"\",Template!O114)","v":""}]
[{"$f":"LEFT(Template!A115,4)","v":""},{"$f":"LEFT(Template!B115,5)","v":""},{"$f":"LEFT(Template!C115,7)","v":""},{"$f":"LEFT(Template!D115,6)","v":""},{"$f":"LEFT(Template!E115,2)","v":""},{"$f":"LEFT(Template!F115,3)","v":""},{"$f":"LEFT(Template!G115,10)","v":""},{"$f":"LEFT(Template!H115,6)","v":""},{"$f":"LEFT(Template!I115,4)","v":""},{"$f":"LEFT(Template!J115,6)","v":""},{"$f":"LEFT(Template!K115,6)","v":""},{"$f":"LEFT(Template!L115,3)","v":""},{"$f":"IF(Template!M115=\"\",\"\",Template!M115)","v":""},{"$f":"IF(Template!N115=\"\",\"\",Template!N115)","v":""},null,null,null,null,null,{"$f":"IF(Template!O115=\"\",\"\",Template!O115)","v":""}]
[{"$f":"LEFT(Template!A116,4)","v":""},{"$f":"LEFT(Template!B116,5)","v":""},{"$f":"LEFT(Template!C116,7)","v":""},{"$f":"LEFT(Template!D116,6)","v":""},{"$f":"LEFT(Template!E116,2)","v":""},{"$f":"LEFT(Template!F116,3)","v":""},{"$f":"LEFT(Template!G116,10)","v":""},{"$f":"LEFT(Template!H116,6)","v":""},{"$f":"LEFT(Template!I116,4)","v":""},{"$f":"LEFT(Template!J116,6)","v":""},{"$f":"LEFT(Template!K116,6)","v":""},{"$f":"LEFT(Template!L116,3)","v":""},{"$f":"IF(Template!M116=\"\",\"\",Template!M116)","v":""},{"$f":"IF(Template!N116=\"\",\"\",Template!N116)","v":""},null,null,null,null,null,{"$f":"IF(Template!O116=\"\",\"\",Template!O116)","v":""}]
[{"$f":"LEFT(Template!A117,4)","v":""},{"$f":"LEFT(Template!B117,5)","v":""},{"$f":"LEFT(Template!C117,7)","v":""},{"$f":"LEFT(Template!D117,6)","v":""},{"$f":"LEFT(Template!E117,2)","v":""},{"$f":"LEFT(Template!F117,3)","v":""},{"$f":"LEFT(Template!G117,10)","v":""},{"$f":"LEFT(Template!H117,6)","v":""},{"$f":"LEFT(Template!I117,4)","v":""},{"$f":"LEFT(Template!J117,6)","v":""},{"$f":"LEFT(Template!K117,6)","v":""},{"$f":"LEFT(Template!L117,3)","v":""},{"$f":"IF(Template!M117=\"\",\"\",Template!M117)","v":""},{"$f":"IF(Template!N117=\"\",\"\",Template!N117)","v":""},null,null,null,null,null,{"$f":"IF(Template!O117=\"\",\"\",Template!O117)","v":""}]
[{"$f":"LEFT(Template!A118,4)","v":""},{"$f":"LEFT(Template!B118,5)","v":""},{"$f":"LEFT(Template!C118,7)","v":""},{"$f":"LEFT(Template!D118,6)","v":""},{"$f":"LEFT(Template!E118,2)","v":""},{"$f":"LEFT(Template!F118,3)","v":""},{"$f":"LEFT(Template!G118,10)","v":""},{"$f":"LEFT(Template!H118,6)","v":""},{"$f":"LEFT(Template!I118,4)","v":""},{"$f":"LEFT(Template!J118,6)","v":""},{"$f":"LEFT(Template!K118,6)","v":""},{"$f":"LEFT(Template!L118,3)","v":""},{"$f":"IF(Template!M118=\"\",\"\",Template!M118)","v":""},{"$f":"IF(Template!N118=\"\",\"\",Template!N118)","v":""},null,null,null,null,null,{"$f":"IF(Template!O118=\"\",\"\",Template!O118)","v":""}]
[{"$f":"LEFT(Template!A119,4)","v":""},{"$f":"LEFT(Template!B119,5)","v":""},{"$f":"LEFT(Template!C119,7)","v":""},{"$f":"LEFT(Template!D119,6)","v":""},{"$f":"LEFT(Template!E119,2)","v":""},{"$f":"LEFT(Template!F119,3)","v":""},{"$f":"LEFT(Template!G119,10)","v":""},{"$f":"LEFT(Template!H119,6)","v":""},{"$f":"LEFT(Template!I119,4)","v":""},{"$f":"LEFT(Template!J119,6)","v":""},{"$f":"LEFT(Template!K119,6)","v":""},{"$f":"LEFT(Template!L119,3)","v":""},{"$f":"IF(Template!M119=\"\",\"\",Template!M119)","v":""},{"$f":"IF(Template!N119=\"\",\"\",Template!N119)","v":""},null,null,null,null,null,{"$f":"IF(Template!O119=\"\",\"\",Template!O119)","v":""}]
[{"$f":"LEFT(Template!A120,4)","v":""},{"$f":"LEFT(Template!B120,5)","v":""},{"$f":"LEFT(Template!C120,7)","v":""},{"$f":"LEFT(Template!D120,6)","v":""},{"$f":"LEFT(Template!E120,2)","v":""},{"$f":"LEFT(Template!F120,3)","v":""},{"$f":"LEFT(Template!G120,10)","v":""},{"$f":"LEFT(Template!H120,6)","v":""},{"$f":"LEFT(Template!I120,4)","v":""},{"$f":"LEFT(Template!J120,6)","v":""},{"$f":"LEFT(Template!K120,6)","v":""},{"$f":"LEFT(Template!L120,3)","v":""},{"$f":"IF(Template!M120=\"\",\"\",Template!M120)","v":""},{"$f":"IF(Template!N120=\"\",\"\",Template!N120)","v":""},null,null,null,null,null,{"$f":"IF(Template!O120=\"\",\"\",Template!O120)","v":""}]
[{"$f":"LEFT(Template!A121,4)","v":""},{"$f":"LEFT(Template!B121,5)","v":""},{"$f":"LEFT(Template!C121,7)","v":""},{"$f":"LEFT(Template!D121,6)","v":""},{"$f":"LEFT(Template!E121,2)","v":""},{"$f":"LEFT(Template!F121,3)","v":""},{"$f":"LEFT(Template!G121,10)","v":""},{"$f":"LEFT(Template!H121,6)","v":""},{"$f":"LEFT(Template!I121,4)","v":""},{"$f":"LEFT(Template!J121,6)","v":""},{"$f":"LEFT(Template!K121,6)","v":""},{"$f":"LEFT(Template!L121,3)","v":""},{"$f":"IF(Template!M121=\"\",\"\",Template!M121)","v":""},{"$f":"IF(Template!N121=\"\",\"\",Template!N121)","v":""},null,null,null,null,null,{"$f":"IF(Template!O121=\"\",\"\",Template!O121)","v":""}]
[{"$f":"LEFT(Template!A122,4)","v":""},{"$f":"LEFT(Template!B122,5)","v":""},{"$f":"LEFT(Template!C122,7)","v":""},{"$f":"LEFT(Template!D122,6)","v":""},{"$f":"LEFT(Template!E122,2)","v":""},{"$f":"LEFT(Template!F122,3)","v":""},{"$f":"LEFT(Template!G122,10)","v":""},{"$f":"LEFT(Template!H122,6)","v":""},{"$f":"LEFT(Template!I122,4)","v":""},{"$f":"LEFT(Template!J122,6)","v":""},{"$f":"LEFT(Template!K122,6)","v":""},{"$f":"LEFT(Template!L122,3)","v":""},{"$f":"IF(Template!M122=\"\",\"\",Template!M122)","v":""},{"$f":"IF(Template!N122=\"\",\"\",Template!N122)","v":""},null,null,null,null,null,{"$f":"IF(Template!O122=\"\",\"\",Template!O122)","v":""}]
[{"$f":"LEFT(Template!A123,4)","v":""},{"$f":"LEFT(Template!B123,5)","v":""},{"$f":"LEFT(Template!C123,7)","v":""},{"$f":"LEFT(Template!D123,6)","v":""},{"$f":"LEFT(Template!E123,2)","v":""},{"$f":"LEFT(Template!F123,3)","v":""},{"$f":"LEFT(Template!G123,10)","v":""},{"$f":"LEFT(Template!H123,6)","v":""},{"$f":"LEFT(Template!I123,4)","v":""},{"$f":"LEFT(Template!J123,6)","v":""},{"$f":"LEFT(Template!K123,6)","v":""},{"$f":"LEFT(Template!L123,3)","v":""},{"$f":"IF(Template!M123=\"\",\"\",Template!M123)","v":""},{"$f":"IF(Template!N123=\"\",\"\",Template!N123)","v":""},null,null,null,null,null,{"$f":"IF(Template!O123=\"\",\"\",Template!O123)","v":""}]
[{"$f":"LEFT(Template!A124,4)","v":""},{"$f":"LEFT(Template!B124,5)","v":""},{"$f":"LEFT(Template!C124,7)","v":""},{"$f":"LEFT(Template!D124,6)","v":""},{"$f":"LEFT(Template!E124,2)","v":""},{"$f":"LEFT(Template!F124,3)","v":""},{"$f":"LEFT(Template!G124,10)","v":""},{"$f":"LEFT(Template!H124,6)","v":""},{"$f":"LEFT(Template!I124,4)","v":""},{"$f":"LEFT(Template!J124,6)","v":""},{"$f":"LEFT(Template!K124,6)","v":""},{"$f":"LEFT(Template!L124,3)","v":""},{"$f":"IF(Template!M124=\"\",\"\",Template!M124)","v":""},{"$f":"IF(Template!N124=\"\",\"\",Template!N124)","v":""},null,null,null,null,null,{"$f":"IF(Template!O124=\"\",\"\",Template!O124)","v":""}]
[{"$f":"LEFT(Template!A125,4)","v":""},{"$f":"LEFT(Template!B125,5)","v":""},{"$f":"LEFT(Template!C125,7)","v":""},{"$f":"LEFT(Template!D125,6)","v":""},{"$f":"LEFT(Template!E125,2)","v":""},{"$f":"LEFT(Template!F125,3)","v":""},{"$f":"LEFT(Template!G125,10)","v":""},{"$f":"LEFT(Template!H125,6)","v":""},{"$f":"LEFT(Template!I125,4)","v":""},{"$f":"LEFT(Template!J125,6)","v":""},{"$f":"LEFT(Template!K125,6)","v":""},{"$f":"LEFT(Template!L125,3)","v":""},{"$f":"IF(Template!M125=\"\",\"\",Template!M125)","v":""},{"$f":"IF(Template!N125=\"\",\"\",Template!N125)","v":""},null,null,null,null,null,{"$f":"IF(Template!O125=\"\",\"\",Template!O125)","v":""}]
[{"$f":"LEFT(Template!A126,4)","v":""},{"$f":"LEFT(Template!B126,5)","v":""},{"$f":"LEFT(Template!C126,7)","v":""},{"$f":"LEFT(Template!D126,6)","v":""},{"$f":"LEFT(Template!E126,2)","v":""},{"$f":"LEFT(Template!F126,3)","v":""},{"$f":"LEFT(Template!G126,10)","v":""},{"$f":"LEFT(Template!H126,6)","v":""},{"$f":"LEFT(Template!I126,4)","v":""},{"$f":"LEFT(Template!J126,6)","v":""},{"$f":"LEFT(Template!K126,6)","v":""},{"$f":"LEFT(Template!L126,3)","v":""},{"$f":"IF(Template!M126=\"\",\"\",Template!M126)","v":""},{"$f":"IF(Template!N126=\"\",\"\",Template!N126)","v":""},null,null,null,null,null,{"$f":"IF(Template!O126=\"\",\"\",Template!O126)","v":""}]
[{"$f":"LEFT(Template!A127,4)","v":""},{"$f":"LEFT(Template!B127,5)","v":""},{"$f":"LEFT(Template!C127,7)","v":""},{"$f":"LEFT(Template!D127,6)","v":""},{"$f":"LEFT(Template!E127,2)","v":""},{"$f":"LEFT(Template!F127,3)","v":""},{"$f":"LEFT(Template!G127,10)","v":""},{"$f":"LEFT(Template!H127,6)","v":""},{"$f":"LEFT(Template!I127,4)","v":""},{"$f":"LEFT(Template!J127,6)","v":""},{"$f":"LEFT(Template!K127,6)","v":""},{"$f":"LEFT(Template!L127,3)","v":""},{"$f":"IF(Template!M127=\"\",\"\",Template!M127)","v":""},{"$f":"IF(Template!N127=\"\",\"\",Template!N127)","v":""},null,null,null,null,null,{"$f":"IF(Template!O127=\"\",\"\",Template!O127)","v":""}]
[{"$f":"LEFT(Template!A128,4)","v":""},{"$f":"LEFT(Template!B128,5)","v":""},{"$f":"LEFT(Template!C128,7)","v":""},{"$f":"LEFT(Template!D128,6)","v":""},{"$f":"LEFT(Template!E128,2)","v":""},{"$f":"LEFT(Template!F128,3)","v":""},{"$f":"LEFT(Template!G128,10)","v":""},{"$f":"LEFT(Template!H128,6)","v":""},{"$f":"LEFT(Template!I128,4)","v":""},{"$f":"LEFT(Template!J128,6)","v":""},{"$f":"LEFT(Template!K128,6)","v":""},{"$f":"LEFT(Template!L128,3)","v":""},{"$f":"IF(Template!M128=\"\",\"\",Template!M128)","v":""},{"$f":"IF(Template!N128=\"\",\"\",Template!N128)","v":""},null,null,null,null,null,{"$f":"IF(Template!O128=\"\",\"\",Template!O128)","v":""}]
[{"$f":"LEFT(Template!A129,4)","v":""},{"$f":"LEFT(Template!B129,5)","v":""},{"$f":"LEFT(Template!C129,7)","v":""},{"$f":"LEFT(Template!D129,6)","v":""},{"$f":"LEFT(Template!E129,2)","v":""},{"$f":"LEFT(Template!F129,3)","v":""},{"$f":"LEFT(Template!G129,10)","v":""},{"$f":"LEFT(Template!H129,6)","v":""},{"$f":"LEFT(Template!I129,4)","v":""},{"$f":"LEFT(Template!J129,6)","v":""},{"$f":"LEFT(Template!K129,6)","v":""},{"$f":"LEFT(Template!L129,3)","v":""},{"$f":"IF(Template!M129=\"\",\"\",Template!M129)","v":""},{"$f":"IF(Template!N129=\"\",\"\",Template!N129)","v":""},null,null,null,null,null,{"$f":"IF(Template!O129=\"\",\"\",Template!O129)","v":""}]
[{"$f":"LEFT(Template!A130,4)","v":""},{"$f":"LEFT(Template!B130,5)","v":""},{"$f":"LEFT(Template!C130,7)","v":""},{"$f":"LEFT(Template!D130,6)","v":""},{"$f":"LEFT(Template!E130,2)","v":""},{"$f":"LEFT(Template!F130,3)","v":""},{"$f":"LEFT(Template!G130,10)","v":""},{"$f":"LEFT(Template!H130,6)","v":""},{"$f":"LEFT(Template!I130,4)","v":""},{"$f":"LEFT(Template!J130,6)","v":""},{"$f":"LEFT(Template!K130,6)","v":""},{"$f":"LEFT(Template!L130,3)","v":""},{"$f":"IF(Template!M130=\"\",\"\",Template!M130)","v":""},{"$f":"IF(Template!N130=\"\",\"\",Template!N130)","v":""},null,null,null,null,null,{"$f":"IF(Template!O130=\"\",\"\",Template!O130)","v":""}]
[{"$f":"LEFT(Template!A131,4)","v":""},{"$f":"LEFT(Template!B131,5)","v":""},{"$f":"LEFT(Template!C131,7)","v":""},{"$f":"LEFT(Template!D131,6)","v":""},{"$f":"LEFT(Template!E131,2)","v":""},{"$f":"LEFT(Template!F131,3)","v":""},{"$f":"LEFT(Template!G131,10)","v":""},{"$f":"LEFT(Template!H131,6)","v":""},{"$f":"LEFT(Template!I131,4)","v":""},{"$f":"LEFT(Template!J131,6)","v":""},{"$f":"LEFT(Template!K131,6)","v":""},{"$f":"LEFT(Template!L131,3)","v":""},{"$f":"IF(Template!M131=\"\",\"\",Template!M131)","v":""},{"$f":"IF(Template!N131=\"\",\"\",Template!N131)","v":""},null,null,null,null,null,{"$f":"IF(Template!O131=\"\",\"\",Template!O131)","v":""}]
[{"$f":"LEFT(Template!A132,4)","v":""},{"$f":"LEFT(Template!B132,5)","v":""},{"$f":"LEFT(Template!C132,7)","v":""},{"$f":"LEFT(Template!D132,6)","v":""},{"$f":"LEFT(Template!E132,2)","v":""},{"$f":"LEFT(Template!F132,3)","v":""},{"$f":"LEFT(Template!G132,10)","v":""},{"$f":"LEFT(Template!H132,6)","v":""},{"$f":"LEFT(Template!I132,4)","v":""},{"$f":"LEFT(Template!J132,6)","v":""},{"$f":"LEFT(Template!K132,6)","v":""},{"$f":"LEFT(Template!L132,3)","v":""},{"$f":"IF(Template!M132=\"\",\"\",Template!M132)","v":""},{"$f":"IF(Template!N132=\"\",\"\",Template!N132)","v":""},null,null,null,null,null,{"$f":"IF(Template!O132=\"\",\"\",Template!O132)","v":""}]
[{"$f":"LEFT(Template!A133,4)","v":""},{"$f":"LEFT(Template!B133,5)","v":""},{"$f":"LEFT(Template!C133,7)","v":""},{"$f":"LEFT(Template!D133,6)","v":""},{"$f":"LEFT(Template!E133,2)","v":""},{"$f":"LEFT(Template!F133,3)","v":""},{"$f":"LEFT(Template!G133,10)","v":""},{"$f":"LEFT(Template!H133,6)","v":""},{"$f":"LEFT(Template!I133,4)","v":""},{"$f":"LEFT(Template!J133,6)","v":""},{"$f":"LEFT(Template!K133,6)","v":""},{"$f":"LEFT(Template!L133,3)","v":""},{"$f":"IF(Template!M133=\"\",\"\",Template!M133)","v":""},{"$f":"IF(Template!N133=\"\",\"\",Template!N133)","v":""},null,null,null,null,null,{"$f":"IF(Template!O133=\"\",\"\",Template!O133)","v":""}]
[{"$f":"LEFT(Template!A134,4)","v":""},{"$f":"LEFT(Template!B134,5)","v":""},{"$f":"LEFT(Template!C134,7)","v":""},{"$f":"LEFT(Template!D134,6)","v":""},{"$f":"LEFT(Template!E134,2)","v":""},{"$f":"LEFT(Template!F134,3)","v":""},{"$f":"LEFT(Template!G134,10)","v":""},{"$f":"LEFT(Template!H134,6)","v":""},{"$f":"LEFT(Template!I134,4)","v":""},{"$f":"LEFT(Template!J134,6)","v":""},{"$f":"LEFT(Template!K134,6)","v":""},{"$f":"LEFT(Template!L134,3)","v":""},{"$f":"IF(Template!M134=\"\",\"\",Template!M134)","v":""},{"$f":"IF(Template!N134=\"\",\"\",Template!N134)","v":""},null,null,null,null,null,{"$f":"IF(Template!O134=\"\",\"\",Template!O134)","v":""}]
[{"$f":"LEFT(Template!A135,4)","v":""},{"$f":"LEFT(Template!B135,5)","v":""},{"$f":"LEFT(Template!C135,7)","v":""},{"$f":"LEFT(Template!D135,6)","v":""},{"$f":"LEFT(Template!E135,2)","v":""},{"$f":"LEFT(Template!F135,3)","v":""},{"$f":"LEFT(Template!G135,10)","v":""},{"$f":"LEFT(Template!H135,6)","v":""},{"$f":"LEFT(Template!I135,4)","v":""},{"$f":"LEFT(Template!J135,6)","v":""},{"$f":"LEFT(Template!K135,6)","v":""},{"$f":"LEFT(Template!L135,3)","v":""},{"$f":"IF(Template!M135=\"\",\"\",Template!M135)","v":""},{"$f":"IF(Template!N135=\"\",\"\",Template!N135)","v":""},null,null,null,null,null,{"$f":"IF(Template!O135=\"\",\"\",Template!O135)","v":""}]
[{"$f":"LEFT(Template!A136,4)","v":""},{"$f":"LEFT(Template!B136,5)","v":""},{"$f":"LEFT(Template!C136,7)","v":""},{"$f":"LEFT(Template!D136,6)","v":""},{"$f":"LEFT(Template!E136,2)","v":""},{"$f":"LEFT(Template!F136,3)","v":""},{"$f":"LEFT(Template!G136,10)","v":""},{"$f":"LEFT(Template!H136,6)","v":""},{"$f":"LEFT(Template!I136,4)","v":""},{"$f":"LEFT(Template!J136,6)","v":""},{"$f":"LEFT(Template!K136,6)","v":""},{"$f":"LEFT(Template!L136,3)","v":""},{"$f":"IF(Template!M136=\"\",\"\",Template!M136)","v":""},{"$f":"IF(Template!N136=\"\",\"\",Template!N136)","v":""},null,null,null,null,null,{"$f":"IF(Template!O136=\"\",\"\",Template!O136)","v":""}]
[{"$f":"LEFT(Template!A137,4)","v":""},{"$f":"LEFT(Template!B137,5)","v":""},{"$f":"LEFT(Template!C137,7)","v":""},{"$f":"LEFT(Template!D137,6)","v":""},{"$f":"LEFT(Template!E137,2)","v":""},{"$f":"LEFT(Template!F137,3)","v":""},{"$f":"LEFT(Template!G137,10)","v":""},{"$f":"LEFT(Template!H137,6)","v":""},{"$f":"LEFT(Template!I137,4)","v":""},{"$f":"LEFT(Template!J137,6)","v":""},{"$f":"LEFT(Template!K137,6)","v":""},{"$f":"LEFT(Template!L137,3)","v":""},{"$f":"IF(Template!M137=\"\",\"\",Template!M137)","v":""},{"$f":"IF(Template!N137=\"\",\"\",Template!N137)","v":""},null,null,null,null,null,{"$f":"IF(Template!O137=\"\",\"\",Template!O137)","v":""}]
[{"$f":"LEFT(Template!A138,4)","v":""},{"$f":"LEFT(Template!B138,5)","v":""},{"$f":"LEFT(Template!C138,7)","v":""},{"$f":"LEFT(Template!D138,6)","v":""},{"$f":"LEFT(Template!E138,2)","v":""},{"$f":"LEFT(Template!F138,3)","v":""},{"$f":"LEFT(Template!G138,10)","v":""},{"$f":"LEFT(Template!H138,6)","v":""},{"$f":"LEFT(Template!I138,4)","v":""},{"$f":"LEFT(Template!J138,6)","v":""},{"$f":"LEFT(Template!K138,6)","v":""},{"$f":"LEFT(Template!L138,3)","v":""},{"$f":"IF(Template!M138=\"\",\"\",Template!M138)","v":""},{"$f":"IF(Template!N138=\"\",\"\",Template!N138)","v":""},null,null,null,null,null,{"$f":"IF(Template!O138=\"\",\"\",Template!O138)","v":""}]
[{"$f":"LEFT(Template!A139,4)","v":""},{"$f":"LEFT(Template!B139,5)","v":""},{"$f":"LEFT(Template!C139,7)","v":""},{"$f":"LEFT(Template!D139,6)","v":""},{"$f":"LEFT(Template!E139,2)","v":""},{"$f":"LEFT(Template!F139,3)","v":""},{"$f":"LEFT(Template!G139,10)","v":""},{"$f":"LEFT(Template!H139,6)","v":""},{"$f":"LEFT(Template!I139,4)","v":""},{"$f":"LEFT(Template!J139,6)","v":""},{"$f":"LEFT(Template!K139,6)","v":""},{"$f":"LEFT(Template!L139,3)","v":""},{"$f":"IF(Template!M139=\"\",\"\",Template!M139)","v":""},{"$f":"IF(Template!N139=\"\",\"\",Template!N139)","v":""},null,null,null,null,null,{"$f":"IF(Template!O139=\"\",\"\",Template!O139)","v":""}]
[{"$f":"LEFT(Template!A140,4)","v":""},{"$f":"LEFT(Template!B140,5)","v":""},{"$f":"LEFT(Template!C140,7)","v":""},{"$f":"LEFT(Template!D140,6)","v":""},{"$f":"LEFT(Template!E140,2)","v":""},{"$f":"LEFT(Template!F140,3)","v":""},{"$f":"LEFT(Template!G140,10)","v":""},{"$f":"LEFT(Template!H140,6)","v":""},{"$f":"LEFT(Template!I140,4)","v":""},{"$f":"LEFT(Template!J140,6)","v":""},{"$f":"LEFT(Template!K140,6)","v":""},{"$f":"LEFT(Template!L140,3)","v":""},{"$f":"IF(Template!M140=\"\",\"\",Template!M140)","v":""},{"$f":"IF(Template!N140=\"\",\"\",Template!N140)","v":""},null,null,null,null,null,{"$f":"IF(Template!O140=\"\",\"\",Template!O140)","v":""}]
[{"$f":"LEFT(Template!A141,4)","v":""},{"$f":"LEFT(Template!B141,5)","v":""},{"$f":"LEFT(Template!C141,7)","v":""},{"$f":"LEFT(Template!D141,6)","v":""},{"$f":"LEFT(Template!E141,2)","v":""},{"$f":"LEFT(Template!F141,3)","v":""},{"$f":"LEFT(Template!G141,10)","v":""},{"$f":"LEFT(Template!H141,6)","v":""},{"$f":"LEFT(Template!I141,4)","v":""},{"$f":"LEFT(Template!J141,6)","v":""},{"$f":"LEFT(Template!K141,6)","v":""},{"$f":"LEFT(Template!L141,3)","v":""},{"$f":"IF(Template!M141=\"\",\"\",Template!M141)","v":""},{"$f":"IF(Template!N141=\"\",\"\",Template!N141)","v":""},null,null,null,null,null,{"$f":"IF(Template!O141=\"\",\"\",Template!O141)","v":""}]
[{"$f":"LEFT(Template!A142,4)","v":""},{"$f":"LEFT(Template!B142,5)","v":""},{"$f":"LEFT(Template!C142,7)","v":""},{"$f":"LEFT(Template!D142,6)","v":""},{"$f":"LEFT(Template!E142,2)","v":""},{"$f":"LEFT(Template!F142,3)","v":""},{"$f":"LEFT(Template!G142,10)","v":""},{"$f":"LEFT(Template!H142,6)","v":""},{"$f":"LEFT(Template!I142,4)","v":""},{"$f":"LEFT(Template!J142,6)","v":""},{"$f":"LEFT(Template!K142,6)","v":""},{"$f":"LEFT(Template!L142,3)","v":""},{"$f":"IF(Template!M142=\"\",\"\",Template!M142)","v":""},{"$f":"IF(Template!N142=\"\",\"\",Template!N142)","v":""},null,null,null,null,null,{"$f":"IF(Template!O142=\"\",\"\",Template!O142)","v":""}]
[{"$f":"LEFT(Template!A143,4)","v":""},{"$f":"LEFT(Template!B143,5)","v":""},{"$f":"LEFT(Template!C143,7)","v":""},{"$f":"LEFT(Template!D143,6)","v":""},{"$f":"LEFT(Template!E143,2)","v":""},{"$f":"LEFT(Template!F143,3)","v":""},{"$f":"LEFT(Template!G143,10)","v":""},{"$f":"LEFT(Template!H143,6)","v":""},{"$f":"LEFT(Template!I143,4)","v":""},{"$f":"LEFT(Template!J143,6)","v":""},{"$f":"LEFT(Template!K143,6)","v":""},{"$f":"LEFT(Template!L143,3)","v":""},{"$f":"IF(Template!M143=\"\",\"\",Template!M143)","v":""},{"$f":"IF(Template!N143=\"\",\"\",Template!N143)","v":""},null,null,null,null,null,{"$f":"IF(Template!O143=\"\",\"\",Template!O143)","v":""}]
[{"$f":"LEFT(Template!A144,4)","v":""},{"$f":"LEFT(Template!B144,5)","v":""},{"$f":"LEFT(Template!C144,7)","v":""},{"$f":"LEFT(Template!D144,6)","v":""},{"$f":"LEFT(Template!E144,2)","v":""},{"$f":"LEFT(Template!F144,3)","v":""},{"$f":"LEFT(Template!G144,10)","v":""},{"$f":"LEFT(Template!H144,6)","v":""},{"$f":"LEFT(Template!I144,4)","v":""},{"$f":"LEFT(Template!J144,6)","v":""},{"$f":"LEFT(Template!K144,6)","v":""},{"$f":"LEFT(Template!L144,3)","v":""},{"$f":"IF(Template!M144=\"\",\"\",Template!M144)","v":""},{"$f":"IF(Template!N144=\"\",\"\",Template!N144)","v":""},null,null,null,null,null,{"$f":"IF(Template!O144=\"\",\"\",Template!O144)","v":""}]
[{"$f":"LEFT(Template!A145,4)","v":""},{"$f":"LEFT(Template!B145,5)","v":""},{"$f":"LEFT(Template!C145,7)","v":""},{"$f":"LEFT(Template!D145,6)","v":""},{"$f":"LEFT(Template!E145,2)","v":""},{"$f":"LEFT(Template!F145,3)","v":""},{"$f":"LEFT(Template!G145,10)","v":""},{"$f":"LEFT(Template!H145,6)","v":""},{"$f":"LEFT(Template!I145,4)","v":""},{"$f":"LEFT(Template!J145,6)","v":""},{"$f":"LEFT(Template!K145,6)","v":""},{"$f":"LEFT(Template!L145,3)","v":""},{"$f":"IF(Template!M145=\"\",\"\",Template!M145)","v":""},{"$f":"IF(Template!N145=\"\",\"\",Template!N145)","v":""},null,null,null,null,null,{"$f":"IF(Template!O145=\"\",\"\",Template!O145)","v":""}]
[{"$f":"LEFT(Template!A146,4)","v":""},{"$f":"LEFT(Template!B146,5)","v":""},{"$f":"LEFT(Template!C146,7)","v":""},{"$f":"LEFT(Template!D146,6)","v":""},{"$f":"LEFT(Template!E146,2)","v":""},{"$f":"LEFT(Template!F146,3)","v":""},{"$f":"LEFT(Template!G146,10)","v":""},{"$f":"LEFT(Template!H146,6)","v":""},{"$f":"LEFT(Template!I146,4)","v":""},{"$f":"LEFT(Template!J146,6)","v":""},{"$f":"LEFT(Template!K146,6)","v":""},{"$f":"LEFT(Template!L146,3)","v":""},{"$f":"IF(Template!M146=\"\",\"\",Template!M146)","v":""},{"$f":"IF(Template!N146=\"\",\"\",Template!N146)","v":""},null,null,null,null,null,{"$f":"IF(Template!O146=\"\",\"\",Template!O146)","v":""}]
[{"$f":"LEFT(Template!A147,4)","v":""},{"$f":"LEFT(Template!B147,5)","v":""},{"$f":"LEFT(Template!C147,7)","v":""},{"$f":"LEFT(Template!D147,6)","v":""},{"$f":"LEFT(Template!E147,2)","v":""},{"$f":"LEFT(Template!F147,3)","v":""},{"$f":"LEFT(Template!G147,10)","v":""},{"$f":"LEFT(Template!H147,6)","v":""},{"$f":"LEFT(Template!I147,4)","v":""},{"$f":"LEFT(Template!J147,6)","v":""},{"$f":"LEFT(Template!K147,6)","v":""},{"$f":"LEFT(Template!L147,3)","v":""},{"$f":"IF(Template!M147=\"\",\"\",Template!M147)","v":""},{"$f":"IF(Template!N147=\"\",\"\",Template!N147)","v":""},null,null,null,null,null,{"$f":"IF(Template!O147=\"\",\"\",Template!O147)","v":""}]
[{"$f":"LEFT(Template!A148,4)","v":""},{"$f":"LEFT(Template!B148,5)","v":""},{"$f":"LEFT(Template!C148,7)","v":""},{"$f":"LEFT(Template!D148,6)","v":""},{"$f":"LEFT(Template!E148,2)","v":""},{"$f":"LEFT(Template!F148,3)","v":""},{"$f":"LEFT(Template!G148,10)","v":""},{"$f":"LEFT(Template!H148,6)","v":""},{"$f":"LEFT(Template!I148,4)","v":""},{"$f":"LEFT(Template!J148,6)","v":""},{"$f":"LEFT(Template!K148,6)","v":""},{"$f":"LEFT(Template!L148,3)","v":""},{"$f":"IF(Template!M148=\"\",\"\",Template!M148)","v":""},{"$f":"IF(Template!N148=\"\",\"\",Template!N148)","v":""},null,null,null,null,null,{"$f":"IF(Template!O148=\"\",\"\",Template!O148)","v":""}]
[{"$f":"LEFT(Template!A149,4)","v":""},{"$f":"LEFT(Template!B149,5)","v":""},{"$f":"LEFT(Template!C149,7)","v":""},{"$f":"LEFT(Template!D149,6)","v":""},{"$f":"LEFT(Template!E149,2)","v":""},{"$f":"LEFT(Template!F149,3)","v":""},{"$f":"LEFT(Template!G149,10)","v":""},{"$f":"LEFT(Template!H149,6)","v":""},{"$f":"LEFT(Template!I149,4)","v":""},{"$f":"LEFT(Template!J149,6)","v":""},{"$f":"LEFT(Template!K149,6)","v":""},{"$f":"LEFT(Template!L149,3)","v":""},{"$f":"IF(Template!M149=\"\",\"\",Template!M149)","v":""},{"$f":"IF(Template!N149=\"\",\"\",Template!N149)","v":""},null,null,null,null,null,{"$f":"IF(Template!O149=\"\",\"\",Template!O149)","v":""}]
[{"$f":"LEFT(Template!A150,4)","v":""},{"$f":"LEFT(Template!B150,5)","v":""},{"$f":"LEFT(Template!C150,7)","v":""},{"$f":"LEFT(Template!D150,6)","v":""},{"$f":"LEFT(Template!E150,2)","v":""},{"$f":"LEFT(Template!F150,3)","v":""},{"$f":"LEFT(Template!G150,10)","v":""},{"$f":"LEFT(Template!H150,6)","v":""},{"$f":"LEFT(Template!I150,4)","v":""},{"$f":"LEFT(Template!J150,6)","v":""},{"$f":"LEFT(Template!K150,6)","v":""},{"$f":"LEFT(Template!L150,3)","v":""},{"$f":"IF(Template!M150=\"\",\"\",Template!M150)","v":""},{"$f":"IF(Template!N150=\"\",\"\",Template!N150)","v":""},null,null,null,null,null,{"$f":"IF(Template!O150=\"\",\"\",Template!O150)","v":""}]
[{"$f":"LEFT(Template!A151,4)","v":""},{"$f":"LEFT(Template!B151,5)","v":""},{"$f":"LEFT(Template!C151,7)","v":""},{"$f":"LEFT(Template!D151,6)","v":""},{"$f":"LEFT(Template!E151,2)","v":""},{"$f":"LEFT(Template!F151,3)","v":""},{"$f":"LEFT(Template!G151,10)","v":""},{"$f":"LEFT(Template!H151,6)","v":""},{"$f":"LEFT(Template!I151,4)","v":""},{"$f":"LEFT(Template!J151,6)","v":""},{"$f":"LEFT(Template!K151,6)","v":""},{"$f":"LEFT(Template!L151,3)","v":""},{"$f":"IF(Template!M151=\"\",\"\",Template!M151)","v":""},{"$f":"IF(Template!N151=\"\",\"\",Template!N151)","v":""},null,null,null,null,null,{"$f":"IF(Template!O151=\"\",\"\",Template!O151)","v":""}]
[{"$f":"LEFT(Template!A152,4)","v":""},{"$f":"LEFT(Template!B152,5)","v":""},{"$f":"LEFT(Template!C152,7)","v":""},{"$f":"LEFT(Template!D152,6)","v":""},{"$f":"LEFT(Template!E152,2)","v":""},{"$f":"LEFT(Template!F152,3)","v":""},{"$f":"LEFT(Template!G152,10)","v":""},{"$f":"LEFT(Template!H152,6)","v":""},{"$f":"LEFT(Template!I152,4)","v":""},{"$f":"LEFT(Template!J152,6)","v":""},{"$f":"LEFT(Template!K152,6)","v":""},{"$f":"LEFT(Template!L152,3)","v":""},{"$f":"IF(Template!M152=\"\",\"\",Template!M152)","v":""},{"$f":"IF(Template!N152=\"\",\"\",Template!N152)","v":""},null,null,null,null,null,{"$f":"IF(Template!O152=\"\",\"\",Template!O152)","v":""}]
[{"$f":"LEFT(Template!A153,4)","v":""},{"$f":"LEFT(Template!B153,5)","v":""},{"$f":"LEFT(Template!C153,7)","v":""},{"$f":"LEFT(Template!D153,6)","v":""},{"$f":"LEFT(Template!E153,2)","v":""},{"$f":"LEFT(Template!F153,3)","v":""},{"$f":"LEFT(Template!G153,10)","v":""},{"$f":"LEFT(Template!H153,6)","v":""},{"$f":"LEFT(Template!I153,4)","v":""},{"$f":"LEFT(Template!J153,6)","v":""},{"$f":"LEFT(Template!K153,6)","v":""},{"$f":"LEFT(Template!L153,3)","v":""},{"$f":"IF(Template!M153=\"\",\"\",Template!M153)","v":""},{"$f":"IF(Template!N153=\"\",\"\",Template!N153)","v":""},null,null,null,null,null,{"$f":"IF(Template!O153=\"\",\"\",Template!O153)","v":""}]
[{"$f":"LEFT(Template!A154,4)","v":""},{"$f":"LEFT(Template!B154,5)","v":""},{"$f":"LEFT(Template!C154,7)","v":""},{"$f":"LEFT(Template!D154,6)","v":""},{"$f":"LEFT(Template!E154,2)","v":""},{"$f":"LEFT(Template!F154,3)","v":""},{"$f":"LEFT(Template!G154,10)","v":""},{"$f":"LEFT(Template!H154,6)","v":""},{"$f":"LEFT(Template!I154,4)","v":""},{"$f":"LEFT(Template!J154,6)","v":""},{"$f":"LEFT(Template!K154,6)","v":""},{"$f":"LEFT(Template!L154,3)","v":""},{"$f":"IF(Template!M154=\"\",\"\",Template!M154)","v":""},{"$f":"IF(Template!N154=\"\",\"\",Template!N154)","v":""},null,null,null,null,null,{"$f":"IF(Template!O154=\"\",\"\",Template!O154)","v":""}]
[{"$f":"LEFT(Template!A155,4)","v":""},{"$f":"LEFT(Template!B155,5)","v":""},{"$f":"LEFT(Template!C155,7)","v":""},{"$f":"LEFT(Template!D155,6)","v":""},{"$f":"LEFT(Template!E155,2)","v":""},{"$f":"LEFT(Template!F155,3)","v":""},{"$f":"LEFT(Template!G155,10)","v":""},{"$f":"LEFT(Template!H155,6)","v":""},{"$f":"LEFT(Template!I155,4)","v":""},{"$f":"LEFT(Template!J155,6)","v":""},{"$f":"LEFT(Template!K155,6)","v":""},{"$f":"LEFT(Template!L155,3)","v":""},{"$f":"IF(Template!M155=\"\",\"\",Template!M155)","v":""},{"$f":"IF(Template!N155=\"\",\"\",Template!N155)","v":""},null,null,null,null,null,{"$f":"IF(Template!O155=\"\",\"\",Template!O155)","v":""}]
[{"$f":"LEFT(Template!A156,4)","v":""},{"$f":"LEFT(Template!B156,5)","v":""},{"$f":"LEFT(Template!C156,7)","v":""},{"$f":"LEFT(Template!D156,6)","v":""},{"$f":"LEFT(Template!E156,2)","v":""},{"$f":"LEFT(Template!F156,3)","v":""},{"$f":"LEFT(Template!G156,10)","v":""},{"$f":"LEFT(Template!H156,6)","v":""},{"$f":"LEFT(Template!I156,4)","v":""},{"$f":"LEFT(Template!J156,6)","v":""},{"$f":"LEFT(Template!K156,6)","v":""},{"$f":"LEFT(Template!L156,3)","v":""},{"$f":"IF(Template!M156=\"\",\"\",Template!M156)","v":""},{"$f":"IF(Template!N156=\"\",\"\",Template!N156)","v":""},null,null,null,null,null,{"$f":"IF(Template!O156=\"\",\"\",Template!O156)","v":""}]
[{"$f":"LEFT(Template!A157,4)","v":""},{"$f":"LEFT(Template!B157,5)","v":""},{"$f":"LEFT(Template!C157,7)","v":""},{"$f":"LEFT(Template!D157,6)","v":""},{"$f":"LEFT(Template!E157,2)","v":""},{"$f":"LEFT(Template!F157,3)","v":""},{"$f":"LEFT(Template!G157,10)","v":""},{"$f":"LEFT(Template!H157,6)","v":""},{"$f":"LEFT(Template!I157,4)","v":""},{"$f":"LEFT(Template!J157,6)","v":""},{"$f":"LEFT(Template!K157,6)","v":""},{"$f":"LEFT(Template!L157,3)","v":""},{"$f":"IF(Template!M157=\"\",\"\",Template!M157)","v":""},{"$f":"IF(Template!N157=\"\",\"\",Template!N157)","v":""},null,null,null,null,null,{"$f":"IF(Template!O157=\"\",\"\",Template!O157)","v":""}]
[{"$f":"LEFT(Template!A158,4)","v":""},{"$f":"LEFT(Template!B158,5)","v":""},{"$f":"LEFT(Template!C158,7)","v":""},{"$f":"LEFT(Template!D158,6)","v":""},{"$f":"LEFT(Template!E158,2)","v":""},{"$f":"LEFT(Template!F158,3)","v":""},{"$f":"LEFT(Template!G158,10)","v":""},{"$f":"LEFT(Template!H158,6)","v":""},{"$f":"LEFT(Template!I158,4)","v":""},{"$f":"LEFT(Template!J158,6)","v":""},{"$f":"LEFT(Template!K158,6)","v":""},{"$f":"LEFT(Template!L158,3)","v":""},{"$f":"IF(Template!M158=\"\",\"\",Template!M158)","v":""},{"$f":"IF(Template!N158=\"\",\"\",Template!N158)","v":""},null,null,null,null,null,{"$f":"IF(Template!O158=\"\",\"\",Template!O158)","v":""}]
[{"$f":"LEFT(Template!A159,4)","v":""},{"$f":"LEFT(Template!B159,5)","v":""},{"$f":"LEFT(Template!C159,7)","v":""},{"$f":"LEFT(Template!D159,6)","v":""},{"$f":"LEFT(Template!E159,2)","v":""},{"$f":"LEFT(Template!F159,3)","v":""},{"$f":"LEFT(Template!G159,10)","v":""},{"$f":"LEFT(Template!H159,6)","v":""},{"$f":"LEFT(Template!I159,4)","v":""},{"$f":"LEFT(Template!J159,6)","v":""},{"$f":"LEFT(Template!K159,6)","v":""},{"$f":"LEFT(Template!L159,3)","v":""},{"$f":"IF(Template!M159=\"\",\"\",Template!M159)","v":""},{"$f":"IF(Template!N159=\"\",\"\",Template!N159)","v":""},null,null,null,null,null,{"$f":"IF(Template!O159=\"\",\"\",Template!O159)","v":""}]
[{"$f":"LEFT(Template!A160,4)","v":""},{"$f":"LEFT(Template!B160,5)","v":""},{"$f":"LEFT(Template!C160,7)","v":""},{"$f":"LEFT(Template!D160,6)","v":""},{"$f":"LEFT(Template!E160,2)","v":""},{"$f":"LEFT(Template!F160,3)","v":""},{"$f":"LEFT(Template!G160,10)","v":""},{"$f":"LEFT(Template!H160,6)","v":""},{"$f":"LEFT(Template!I160,4)","v":""},{"$f":"LEFT(Template!J160,6)","v":""},{"$f":"LEFT(Template!K160,6)","v":""},{"$f":"LEFT(Template!L160,3)","v":""},{"$f":"IF(Template!M160=\"\",\"\",Template!M160)","v":""},{"$f":"IF(Template!N160=\"\",\"\",Template!N160)","v":""},null,null,null,null,null,{"$f":"IF(Template!O160=\"\",\"\",Template!O160)","v":""}]
[{"$f":"LEFT(Template!A161,4)","v":""},{"$f":"LEFT(Template!B161,5)","v":""},{"$f":"LEFT(Template!C161,7)","v":""},{"$f":"LEFT(Template!D161,6)","v":""},{"$f":"LEFT(Template!E161,2)","v":""},{"$f":"LEFT(Template!F161,3)","v":""},{"$f":"LEFT(Template!G161,10)","v":""},{"$f":"LEFT(Template!H161,6)","v":""},{"$f":"LEFT(Template!I161,4)","v":""},{"$f":"LEFT(Template!J161,6)","v":""},{"$f":"LEFT(Template!K161,6)","v":""},{"$f":"LEFT(Template!L161,3)","v":""},{"$f":"IF(Template!M161=\"\",\"\",Template!M161)","v":""},{"$f":"IF(Template!N161=\"\",\"\",Template!N161)","v":""},null,null,null,null,null,{"$f":"IF(Template!O161=\"\",\"\",Template!O161)","v":""}]
[{"$f":"LEFT(Template!A162,4)","v":""},{"$f":"LEFT(Template!B162,5)","v":""},{"$f":"LEFT(Template!C162,7)","v":""},{"$f":"LEFT(Template!D162,6)","v":""},{"$f":"LEFT(Template!E162,2)","v":""},{"$f":"LEFT(Template!F162,3)","v":""},{"$f":"LEFT(Template!G162,10)","v":""},{"$f":"LEFT(Template!H162,6)","v":""},{"$f":"LEFT(Template!I162,4)","v":""},{"$f":"LEFT(Template!J162,6)","v":""},{"$f":"LEFT(Template!K162,6)","v":""},{"$f":"LEFT(Template!L162,3)","v":""},{"$f":"IF(Template!M162=\"\",\"\",Template!M162)","v":""},{"$f":"IF(Template!N162=\"\",\"\",Template!N162)","v":""},null,null,null,null,null,{"$f":"IF(Template!O162=\"\",\"\",Template!O162)","v":""}]
[{"$f":"LEFT(Template!A163,4)","v":""},{"$f":"LEFT(Template!B163,5)","v":""},{"$f":"LEFT(Template!C163,7)","v":""},{"$f":"LEFT(Template!D163,6)","v":""},{"$f":"LEFT(Template!E163,2)","v":""},{"$f":"LEFT(Template!F163,3)","v":""},{"$f":"LEFT(Template!G163,10)","v":""},{"$f":"LEFT(Template!H163,6)","v":""},{"$f":"LEFT(Template!I163,4)","v":""},{"$f":"LEFT(Template!J163,6)","v":""},{"$f":"LEFT(Template!K163,6)","v":""},{"$f":"LEFT(Template!L163,3)","v":""},{"$f":"IF(Template!M163=\"\",\"\",Template!M163)","v":""},{"$f":"IF(Template!N163=\"\",\"\",Template!N163)","v":""},null,null,null,null,null,{"$f":"IF(Template!O163=\"\",\"\",Template!O163)","v":""}]
[{"$f":"LEFT(Template!A164,4)","v":""},{"$f":"LEFT(Template!B164,5)","v":""},{"$f":"LEFT(Template!C164,7)","v":""},{"$f":"LEFT(Template!D164,6)","v":""},{"$f":"LEFT(Template!E164,2)","v":""},{"$f":"LEFT(Template!F164,3)","v":""},{"$f":"LEFT(Template!G164,10)","v":""},{"$f":"LEFT(Template!H164,6)","v":""},{"$f":"LEFT(Template!I164,4)","v":""},{"$f":"LEFT(Template!J164,6)","v":""},{"$f":"LEFT(Template!K164,6)","v":""},{"$f":"LEFT(Template!L164,3)","v":""},{"$f":"IF(Template!M164=\"\",\"\",Template!M164)","v":""},{"$f":"IF(Template!N164=\"\",\"\",Template!N164)","v":""},null,null,null,null,null,{"$f":"IF(Template!O164=\"\",\"\",Template!O164)","v":""}]
[{"$f":"LEFT(Template!A165,4)","v":""},{"$f":"LEFT(Template!B165,5)","v":""},{"$f":"LEFT(Template!C165,7)","v":""},{"$f":"LEFT(Template!D165,6)","v":""},{"$f":"LEFT(Template!E165,2)","v":""},{"$f":"LEFT(Template!F165,3)","v":""},{"$f":"LEFT(Template!G165,10)","v":""},{"$f":"LEFT(Template!H165,6)","v":""},{"$f":"LEFT(Template!I165,4)","v":""},{"$f":"LEFT(Template!J165,6)","v":""},{"$f":"LEFT(Template!K165,6)","v":""},{"$f":"LEFT(Template!L165,3)","v":""},{"$f":"IF(Template!M165=\"\",\"\",Template!M165)","v":""},{"$f":"IF(Template!N165=\"\",\"\",Template!N165)","v":""},null,null,null,null,null,{"$f":"IF(Template!O165=\"\",\"\",Template!O165)","v":""}]
[{"$f":"LEFT(Template!A166,4)","v":""},{"$f":"LEFT(Template!B166,5)","v":""},{"$f":"LEFT(Template!C166,7)","v":""},{"$f":"LEFT(Template!D166,6)","v":""},{"$f":"LEFT(Template!E166,2)","v":""},{"$f":"LEFT(Template!F166,3)","v":""},{"$f":"LEFT(Template!G166,10)","v":""},{"$f":"LEFT(Template!H166,6)","v":""},{"$f":"LEFT(Template!I166,4)","v":""},{"$f":"LEFT(Template!J166,6)","v":""},{"$f":"LEFT(Template!K166,6)","v":""},{"$f":"LEFT(Template!L166,3)","v":""},{"$f":"IF(Template!M166=\"\",\"\",Template!M166)","v":""},{"$f":"IF(Template!N166=\"\",\"\",Template!N166)","v":""},null,null,null,null,null,{"$f":"IF(Template!O166=\"\",\"\",Template!O166)","v":""}]
[{"$f":"LEFT(Template!A167,4)","v":""},{"$f":"LEFT(Template!B167,5)","v":""},{"$f":"LEFT(Template!C167,7)","v":""},{"$f":"LEFT(Template!D167,6)","v":""},{"$f":"LEFT(Template!E167,2)","v":""},{"$f":"LEFT(Template!F167,3)","v":""},{"$f":"LEFT(Template!G167,10)","v":""},{"$f":"LEFT(Template!H167,6)","v":""},{"$f":"LEFT(Template!I167,4)","v":""},{"$f":"LEFT(Template!J167,6)","v":""},{"$f":"LEFT(Template!K167,6)","v":""},{"$f":"LEFT(Template!L167,3)","v":""},{"$f":"IF(Template!M167=\"\",\"\",Template!M167)","v":""},{"$f":"IF(Template!N167=\"\",\"\",Template!N167)","v":""},null,null,null,null,null,{"$f":"IF(Template!O167=\"\",\"\",Template!O167)","v":""}]
[{"$f":"LEFT(Template!A168,4)","v":""},{"$f":"LEFT(Template!B168,5)","v":""},{"$f":"LEFT(Template!C168,7)","v":""},{"$f":"LEFT(Template!D168,6)","v":""},{"$f":"LEFT(Template!E168,2)","v":""},{"$f":"LEFT(Template!F168,3)","v":""},{"$f":"LEFT(Template!G168,10)","v":""},{"$f":"LEFT(Template!H168,6)","v":""},{"$f":"LEFT(Template!I168,4)","v":""},{"$f":"LEFT(Template!J168,6)","v":""},{"$f":"LEFT(Template!K168,6)","v":""},{"$f":"LEFT(Template!L168,3)","v":""},{"$f":"IF(Template!M168=\"\",\"\",Template!M168)","v":""},{"$f":"IF(Template!N168=\"\",\"\",Template!N168)","v":""},null,null,null,null,null,{"$f":"IF(Template!O168=\"\",\"\",Template!O168)","v":""}]
[{"$f":"LEFT(Template!A169,4)","v":""},{"$f":"LEFT(Template!B169,5)","v":""},{"$f":"LEFT(Template!C169,7)","v":""},{"$f":"LEFT(Template!D169,6)","v":""},{"$f":"LEFT(Template!E169,2)","v":""},{"$f":"LEFT(Template!F169,3)","v":""},{"$f":"LEFT(Template!G169,10)","v":""},{"$f":"LEFT(Template!H169,6)","v":""},{"$f":"LEFT(Template!I169,4)","v":""},{"$f":"LEFT(Template!J169,6)","v":""},{"$f":"LEFT(Template!K169,6)","v":""},{"$f":"LEFT(Template!L169,3)","v":""},{"$f":"IF(Template!M169=\"\",\"\",Template!M169)","v":""},{"$f":"IF(Template!N169=\"\",\"\",Template!N169)","v":""},null,null,null,null,null,{"$f":"IF(Template!O169=\"\",\"\",Template!O169)","v":""}]
[{"$f":"LEFT(Template!A170,4)","v":""},{"$f":"LEFT(Template!B170,5)","v":""},{"$f":"LEFT(Template!C170,7)","v":""},{"$f":"LEFT(Template!D170,6)","v":""},{"$f":"LEFT(Template!E170,2)","v":""},{"$f":"LEFT(Template!F170,3)","v":""},{"$f":"LEFT(Template!G170,10)","v":""},{"$f":"LEFT(Template!H170,6)","v":""},{"$f":"LEFT(Template!I170,4)","v":""},{"$f":"LEFT(Template!J170,6)","v":""},{"$f":"LEFT(Template!K170,6)","v":""},{"$f":"LEFT(Template!L170,3)","v":""},{"$f":"IF(Template!M170=\"\",\"\",Template!M170)","v":""},{"$f":"IF(Template!N170=\"\",\"\",Template!N170)","v":""},null,null,null,null,null,{"$f":"IF(Template!O170=\"\",\"\",Template!O170)","v":""}]
[{"$f":"LEFT(Template!A171,4)","v":""},{"$f":"LEFT(Template!B171,5)","v":""},{"$f":"LEFT(Template!C171,7)","v":""},{"$f":"LEFT(Template!D171,6)","v":""},{"$f":"LEFT(Template!E171,2)","v":""},{"$f":"LEFT(Template!F171,3)","v":""},{"$f":"LEFT(Template!G171,10)","v":""},{"$f":"LEFT(Template!H171,6)","v":""},{"$f":"LEFT(Template!I171,4)","v":""},{"$f":"LEFT(Template!J171,6)","v":""},{"$f":"LEFT(Template!K171,6)","v":""},{"$f":"LEFT(Template!L171,3)","v":""},{"$f":"IF(Template!M171=\"\",\"\",Template!M171)","v":""},{"$f":"IF(Template!N171=\"\",\"\",Template!N171)","v":""},null,null,null,null,null,{"$f":"IF(Template!O171=\"\",\"\",Template!O171)","v":""}]
[{"$f":"LEFT(Template!A172,4)","v":""},{"$f":"LEFT(Template!B172,5)","v":""},{"$f":"LEFT(Template!C172,7)","v":""},{"$f":"LEFT(Template!D172,6)","v":""},{"$f":"LEFT(Template!E172,2)","v":""},{"$f":"LEFT(Template!F172,3)","v":""},{"$f":"LEFT(Template!G172,10)","v":""},{"$f":"LEFT(Template!H172,6)","v":""},{"$f":"LEFT(Template!I172,4)","v":""},{"$f":"LEFT(Template!J172,6)","v":""},{"$f":"LEFT(Template!K172,6)","v":""},{"$f":"LEFT(Template!L172,3)","v":""},{"$f":"IF(Template!M172=\"\",\"\",Template!M172)","v":""},{"$f":"IF(Template!N172=\"\",\"\",Template!N172)","v":""},null,null,null,null,null,{"$f":"IF(Template!O172=\"\",\"\",Template!O172)","v":""}]
[{"$f":"LEFT(Template!A173,4)","v":""},{"$f":"LEFT(Template!B173,5)","v":""},{"$f":"LEFT(Template!C173,7)","v":""},{"$f":"LEFT(Template!D173,6)","v":""},{"$f":"LEFT(Template!E173,2)","v":""},{"$f":"LEFT(Template!F173,3)","v":""},{"$f":"LEFT(Template!G173,10)","v":""},{"$f":"LEFT(Template!H173,6)","v":""},{"$f":"LEFT(Template!I173,4)","v":""},{"$f":"LEFT(Template!J173,6)","v":""},{"$f":"LEFT(Template!K173,6)","v":""},{"$f":"LEFT(Template!L173,3)","v":""},{"$f":"IF(Template!M173=\"\",\"\",Template!M173)","v":""},{"$f":"IF(Template!N173=\"\",\"\",Template!N173)","v":""},null,null,null,null,null,{"$f":"IF(Template!O173=\"\",\"\",Template!O173)","v":""}]
[{"$f":"LEFT(Template!A174,4)","v":""},{"$f":"LEFT(Template!B174,5)","v":""},{"$f":"LEFT(Template!C174,7)","v":""},{"$f":"LEFT(Template!D174,6)","v":""},{"$f":"LEFT(Template!E174,2)","v":""},{"$f":"LEFT(Template!F174,3)","v":""},{"$f":"LEFT(Template!G174,10)","v":""},{"$f":"LEFT(Template!H174,6)","v":""},{"$f":"LEFT(Template!I174,4)","v":""},{"$f":"LEFT(Template!J174,6)","v":""},{"$f":"LEFT(Template!K174,6)","v":""},{"$f":"LEFT(Template!L174,3)","v":""},{"$f":"IF(Template!M174=\"\",\"\",Template!M174)","v":""},{"$f":"IF(Template!N174=\"\",\"\",Template!N174)","v":""},null,null,null,null,null,{"$f":"IF(Template!O174=\"\",\"\",Template!O174)","v":""}]
[{"$f":"LEFT(Template!A175,4)","v":""},{"$f":"LEFT(Template!B175,5)","v":""},{"$f":"LEFT(Template!C175,7)","v":""},{"$f":"LEFT(Template!D175,6)","v":""},{"$f":"LEFT(Template!E175,2)","v":""},{"$f":"LEFT(Template!F175,3)","v":""},{"$f":"LEFT(Template!G175,10)","v":""},{"$f":"LEFT(Template!H175,6)","v":""},{"$f":"LEFT(Template!I175,4)","v":""},{"$f":"LEFT(Template!J175,6)","v":""},{"$f":"LEFT(Template!K175,6)","v":""},{"$f":"LEFT(Template!L175,3)","v":""},{"$f":"IF(Template!M175=\"\",\"\",Template!M175)","v":""},{"$f":"IF(Template!N175=\"\",\"\",Template!N175)","v":""},null,null,null,null,null,{"$f":"IF(Template!O175=\"\",\"\",Template!O175)","v":""}]
[{"$f":"LEFT(Template!A176,4)","v":""},{"$f":"LEFT(Template!B176,5)","v":""},{"$f":"LEFT(Template!C176,7)","v":""},{"$f":"LEFT(Template!D176,6)","v":""},{"$f":"LEFT(Template!E176,2)","v":""},{"$f":"LEFT(Template!F176,3)","v":""},{"$f":"LEFT(Template!G176,10)","v":""},{"$f":"LEFT(Template!H176,6)","v":""},{"$f":"LEFT(Template!I176,4)","v":""},{"$f":"LEFT(Template!J176,6)","v":""},{"$f":"LEFT(Template!K176,6)","v":""},{"$f":"LEFT(Template!L176,3)","v":""},{"$f":"IF(Template!M176=\"\",\"\",Template!M176)","v":""},{"$f":"IF(Template!N176=\"\",\"\",Template!N176)","v":""},null,null,null,null,null,{"$f":"IF(Template!O176=\"\",\"\",Template!O176)","v":""}]
[{"$f":"LEFT(Template!A177,4)","v":""},{"$f":"LEFT(Template!B177,5)","v":""},{"$f":"LEFT(Template!C177,7)","v":""},{"$f":"LEFT(Template!D177,6)","v":""},{"$f":"LEFT(Template!E177,2)","v":""},{"$f":"LEFT(Template!F177,3)","v":""},{"$f":"LEFT(Template!G177,10)","v":""},{"$f":"LEFT(Template!H177,6)","v":""},{"$f":"LEFT(Template!I177,4)","v":""},{"$f":"LEFT(Template!J177,6)","v":""},{"$f":"LEFT(Template!K177,6)","v":""},{"$f":"LEFT(Template!L177,3)","v":""},{"$f":"IF(Template!M177=\"\",\"\",Template!M177)","v":""},{"$f":"IF(Template!N177=\"\",\"\",Template!N177)","v":""},null,null,null,null,null,{"$f":"IF(Template!O177=\"\",\"\",Template!O177)","v":""}]
[{"$f":"LEFT(Template!A178,4)","v":""},{"$f":"LEFT(Template!B178,5)","v":""},{"$f":"LEFT(Template!C178,7)","v":""},{"$f":"LEFT(Template!D178,6)","v":""},{"$f":"LEFT(Template!E178,2)","v":""},{"$f":"LEFT(Template!F178,3)","v":""},{"$f":"LEFT(Template!G178,10)","v":""},{"$f":"LEFT(Template!H178,6)","v":""},{"$f":"LEFT(Template!I178,4)","v":""},{"$f":"LEFT(Template!J178,6)","v":""},{"$f":"LEFT(Template!K178,6)","v":""},{"$f":"LEFT(Template!L178,3)","v":""},{"$f":"IF(Template!M178=\"\",\"\",Template!M178)","v":""},{"$f":"IF(Template!N178=\"\",\"\",Template!N178)","v":""},null,null,null,null,null,{"$f":"IF(Template!O178=\"\",\"\",Template!O178)","v":""}]
[{"$f":"LEFT(Template!A179,4)","v":""},{"$f":"LEFT(Template!B179,5)","v":""},{"$f":"LEFT(Template!C179,7)","v":""},{"$f":"LEFT(Template!D179,6)","v":""},{"$f":"LEFT(Template!E179,2)","v":""},{"$f":"LEFT(Template!F179,3)","v":""},{"$f":"LEFT(Template!G179,10)","v":""},{"$f":"LEFT(Template!H179,6)","v":""},{"$f":"LEFT(Template!I179,4)","v":""},{"$f":"LEFT(Template!J179,6)","v":""},{"$f":"LEFT(Template!K179,6)","v":""},{"$f":"LEFT(Template!L179,3)","v":""},{"$f":"IF(Template!M179=\"\",\"\",Template!M179)","v":""},{"$f":"IF(Template!N179=\"\",\"\",Template!N179)","v":""},null,null,null,null,null,{"$f":"IF(Template!O179=\"\",\"\",Template!O179)","v":""}]
[{"$f":"LEFT(Template!A180,4)","v":""},{"$f":"LEFT(Template!B180,5)","v":""},{"$f":"LEFT(Template!C180,7)","v":""},{"$f":"LEFT(Template!D180,6)","v":""},{"$f":"LEFT(Template!E180,2)","v":""},{"$f":"LEFT(Template!F180,3)","v":""},{"$f":"LEFT(Template!G180,10)","v":""},{"$f":"LEFT(Template!H180,6)","v":""},{"$f":"LEFT(Template!I180,4)","v":""},{"$f":"LEFT(Template!J180,6)","v":""},{"$f":"LEFT(Template!K180,6)","v":""},{"$f":"LEFT(Template!L180,3)","v":""},{"$f":"IF(Template!M180=\"\",\"\",Template!M180)","v":""},{"$f":"IF(Template!N180=\"\",\"\",Template!N180)","v":""},null,null,null,null,null,{"$f":"IF(Template!O180=\"\",\"\",Template!O180)","v":""}]
[{"$f":"LEFT(Template!A181,4)","v":""},{"$f":"LEFT(Template!B181,5)","v":""},{"$f":"LEFT(Template!C181,7)","v":""},{"$f":"LEFT(Template!D181,6)","v":""},{"$f":"LEFT(Template!E181,2)","v":""},{"$f":"LEFT(Template!F181,3)","v":""},{"$f":"LEFT(Template!G181,10)","v":""},{"$f":"LEFT(Template!H181,6)","v":""},{"$f":"LEFT(Template!I181,4)","v":""},{"$f":"LEFT(Template!J181,6)","v":""},{"$f":"LEFT(Template!K181,6)","v":""},{"$f":"LEFT(Template!L181,3)","v":""},{"$f":"IF(Template!M181=\"\",\"\",Template!M181)","v":""},{"$f":"IF(Template!N181=\"\",\"\",Template!N181)","v":""},null,null,null,null,null,{"$f":"IF(Template!O181=\"\",\"\",Template!O181)","v":""}]
[{"$f":"LEFT(Template!A182,4)","v":""},{"$f":"LEFT(Template!B182,5)","v":""},{"$f":"LEFT(Template!C182,7)","v":""},{"$f":"LEFT(Template!D182,6)","v":""},{"$f":"LEFT(Template!E182,2)","v":""},{"$f":"LEFT(Template!F182,3)","v":""},{"$f":"LEFT(Template!G182,10)","v":""},{"$f":"LEFT(Template!H182,6)","v":""},{"$f":"LEFT(Template!I182,4)","v":""},{"$f":"LEFT(Template!J182,6)","v":""},{"$f":"LEFT(Template!K182,6)","v":""},{"$f":"LEFT(Template!L182,3)","v":""},{"$f":"IF(Template!M182=\"\",\"\",Template!M182)","v":""},{"$f":"IF(Template!N182=\"\",\"\",Template!N182)","v":""},null,null,null,null,null,{"$f":"IF(Template!O182=\"\",\"\",Template!O182)","v":""}]
[{"$f":"LEFT(Template!A183,4)","v":""},{"$f":"LEFT(Template!B183,5)","v":""},{"$f":"LEFT(Template!C183,7)","v":""},{"$f":"LEFT(Template!D183,6)","v":""},{"$f":"LEFT(Template!E183,2)","v":""},{"$f":"LEFT(Template!F183,3)","v":""},{"$f":"LEFT(Template!G183,10)","v":""},{"$f":"LEFT(Template!H183,6)","v":""},{"$f":"LEFT(Template!I183,4)","v":""},{"$f":"LEFT(Template!J183,6)","v":""},{"$f":"LEFT(Template!K183,6)","v":""},{"$f":"LEFT(Template!L183,3)","v":""},{"$f":"IF(Template!M183=\"\",\"\",Template!M183)","v":""},{"$f":"IF(Template!N183=\"\",\"\",Template!N183)","v":""},null,null,null,null,null,{"$f":"IF(Template!O183=\"\",\"\",Template!O183)","v":""}]
[{"$f":"LEFT(Template!A184,4)","v":""},{"$f":"LEFT(Template!B184,5)","v":""},{"$f":"LEFT(Template!C184,7)","v":""},{"$f":"LEFT(Template!D184,6)","v":""},{"$f":"LEFT(Template!E184,2)","v":""},{"$f":"LEFT(Template!F184,3)","v":""},{"$f":"LEFT(Template!G184,10)","v":""},{"$f":"LEFT(Template!H184,6)","v":""},{"$f":"LEFT(Template!I184,4)","v":""},{"$f":"LEFT(Template!J184,6)","v":""},{"$f":"LEFT(Template!K184,6)","v":""},{"$f":"LEFT(Template!L184,3)","v":""},{"$f":"IF(Template!M184=\"\",\"\",Template!M184)","v":""},{"$f":"IF(Template!N184=\"\",\"\",Template!N184)","v":""},null,null,null,null,null,{"$f":"IF(Template!O184=\"\",\"\",Template!O184)","v":""}]
[{"$f":"LEFT(Template!A185,4)","v":""},{"$f":"LEFT(Template!B185,5)","v":""},{"$f":"LEFT(Template!C185,7)","v":""},{"$f":"LEFT(Template!D185,6)","v":""},{"$f":"LEFT(Template!E185,2)","v":""},{"$f":"LEFT(Template!F185,3)","v":""},{"$f":"LEFT(Template!G185,10)","v":""},{"$f":"LEFT(Template!H185,6)","v":""},{"$f":"LEFT(Template!I185,4)","v":""},{"$f":"LEFT(Template!J185,6)","v":""},{"$f":"LEFT(Template!K185,6)","v":""},{"$f":"LEFT(Template!L185,3)","v":""},{"$f":"IF(Template!M185=\"\",\"\",Template!M185)","v":""},{"$f":"IF(Template!N185=\"\",\"\",Template!N185)","v":""},null,null,null,null,null,{"$f":"IF(Template!O185=\"\",\"\",Template!O185)","v":""}]
[{"$f":"LEFT(Template!A186,4)","v":""},{"$f":"LEFT(Template!B186,5)","v":""},{"$f":"LEFT(Template!C186,7)","v":""},{"$f":"LEFT(Template!D186,6)","v":""},{"$f":"LEFT(Template!E186,2)","v":""},{"$f":"LEFT(Template!F186,3)","v":""},{"$f":"LEFT(Template!G186,10)","v":""},{"$f":"LEFT(Template!H186,6)","v":""},{"$f":"LEFT(Template!I186,4)","v":""},{"$f":"LEFT(Template!J186,6)","v":""},{"$f":"LEFT(Template!K186,6)","v":""},{"$f":"LEFT(Template!L186,3)","v":""},{"$f":"IF(Template!M186=\"\",\"\",Template!M186)","v":""},{"$f":"IF(Template!N186=\"\",\"\",Template!N186)","v":""},null,null,null,null,null,{"$f":"IF(Template!O186=\"\",\"\",Template!O186)","v":""}]
[{"$f":"LEFT(Template!A187,4)","v":""},{"$f":"LEFT(Template!B187,5)","v":""},{"$f":"LEFT(Template!C187,7)","v":""},{"$f":"LEFT(Template!D187,6)","v":""},{"$f":"LEFT(Template!E187,2)","v":""},{"$f":"LEFT(Template!F187,3)","v":""},{"$f":"LEFT(Template!G187,10)","v":""},{"$f":"LEFT(Template!H187,6)","v":""},{"$f":"LEFT(Template!I187,4)","v":""},{"$f":"LEFT(Template!J187,6)","v":""},{"$f":"LEFT(Template!K187,6)","v":""},{"$f":"LEFT(Template!L187,3)","v":""},{"$f":"IF(Template!M187=\"\",\"\",Template!M187)","v":""},{"$f":"IF(Template!N187=\"\",\"\",Template!N187)","v":""},null,null,null,null,null,{"$f":"IF(Template!O187=\"\",\"\",Template!O187)","v":""}]
[{"$f":"LEFT(Template!A188,4)","v":""},{"$f":"LEFT(Template!B188,5)","v":""},{"$f":"LEFT(Template!C188,7)","v":""},{"$f":"LEFT(Template!D188,6)","v":""},{"$f":"LEFT(Template!E188,2)","v":""},{"$f":"LEFT(Template!F188,3)","v":""},{"$f":"LEFT(Template!G188,10)","v":""},{"$f":"LEFT(Template!H188,6)","v":""},{"$f":"LEFT(Template!I188,4)","v":""},{"$f":"LEFT(Template!J188,6)","v":""},{"$f":"LEFT(Template!K188,6)","v":""},{"$f":"LEFT(Template!L188,3)","v":""},{"$f":"IF(Template!M188=\"\",\"\",Template!M188)","v":""},{"$f":"IF(Template!N188=\"\",\"\",Template!N188)","v":""},null,null,null,null,null,{"$f":"IF(Template!O188=\"\",\"\",Template!O188)","v":""}]
[{"$f":"LEFT(Template!A189,4)","v":""},{"$f":"LEFT(Template!B189,5)","v":""},{"$f":"LEFT(Template!C189,7)","v":""},{"$f":"LEFT(Template!D189,6)","v":""},{"$f":"LEFT(Template!E189,2)","v":""},{"$f":"LEFT(Template!F189,3)","v":""},{"$f":"LEFT(Template!G189,10)","v":""},{"$f":"LEFT(Template!H189,6)","v":""},{"$f":"LEFT(Template!I189,4)","v":""},{"$f":"LEFT(Template!J189,6)","v":""},{"$f":"LEFT(Template!K189,6)","v":""},{"$f":"LEFT(Template!L189,3)","v":""},{"$f":"IF(Template!M189=\"\",\"\",Template!M189)","v":""},{"$f":"IF(Template!N189=\"\",\"\",Template!N189)","v":""},null,null,null,null,null,{"$f":"IF(Template!O189=\"\",\"\",Template!O189)","v":""}]
[{"$f":"LEFT(Template!A190,4)","v":""},{"$f":"LEFT(Template!B190,5)","v":""},{"$f":"LEFT(Template!C190,7)","v":""},{"$f":"LEFT(Template!D190,6)","v":""},{"$f":"LEFT(Template!E190,2)","v":""},{"$f":"LEFT(Template!F190,3)","v":""},{"$f":"LEFT(Template!G190,10)","v":""},{"$f":"LEFT(Template!H190,6)","v":""},{"$f":"LEFT(Template!I190,4)","v":""},{"$f":"LEFT(Template!J190,6)","v":""},{"$f":"LEFT(Template!K190,6)","v":""},{"$f":"LEFT(Template!L190,3)","v":""},{"$f":"IF(Template!M190=\"\",\"\",Template!M190)","v":""},{"$f":"IF(Template!N190=\"\",\"\",Template!N190)","v":""},null,null,null,null,null,{"$f":"IF(Template!O190=\"\",\"\",Template!O190)","v":""}]
[{"$f":"LEFT(Template!A191,4)","v":""},{"$f":"LEFT(Template!B191,5)","v":""},{"$f":"LEFT(Template!C191,7)","v":""},{"$f":"LEFT(Template!D191,6)","v":""},{"$f":"LEFT(Template!E191,2)","v":""},{"$f":"LEFT(Template!F191,3)","v":""},{"$f":"LEFT(Template!G191,10)","v":""},{"$f":"LEFT(Template!H191,6)","v":""},{"$f":"LEFT(Template!I191,4)","v":""},{"$f":"LEFT(Template!J191,6)","v":""},{"$f":"LEFT(Template!K191,6)","v":""},{"$f":"LEFT(Template!L191,3)","v":""},{"$f":"IF(Template!M191=\"\",\"\",Template!M191)","v":""},{"$f":"IF(Template!N191=\"\",\"\",Template!N191)","v":""},null,null,null,null,null,{"$f":"IF(Template!O191=\"\",\"\",Template!O191)","v":""}]
[{"$f":"LEFT(Template!A192,4)","v":""},{"$f":"LEFT(Template!B192,5)","v":""},{"$f":"LEFT(Template!C192,7)","v":""},{"$f":"LEFT(Template!D192,6)","v":""},{"$f":"LEFT(Template!E192,2)","v":""},{"$f":"LEFT(Template!F192,3)","v":""},{"$f":"LEFT(Template!G192,10)","v":""},{"$f":"LEFT(Template!H192,6)","v":""},{"$f":"LEFT(Template!I192,4)","v":""},{"$f":"LEFT(Template!J192,6)","v":""},{"$f":"LEFT(Template!K192,6)","v":""},{"$f":"LEFT(Template!L192,3)","v":""},{"$f":"IF(Template!M192=\"\",\"\",Template!M192)","v":""},{"$f":"IF(Template!N192=\"\",\"\",Template!N192)","v":""},null,null,null,null,null,{"$f":"IF(Template!O192=\"\",\"\",Template!O192)","v":""}]
[{"$f":"LEFT(Template!A193,4)","v":""},{"$f":"LEFT(Template!B193,5)","v":""},{"$f":"LEFT(Template!C193,7)","v":""},{"$f":"LEFT(Template!D193,6)","v":""},{"$f":"LEFT(Template!E193,2)","v":""},{"$f":"LEFT(Template!F193,3)","v":""},{"$f":"LEFT(Template!G193,10)","v":""},{"$f":"LEFT(Template!H193,6)","v":""},{"$f":"LEFT(Template!I193,4)","v":""},{"$f":"LEFT(Template!J193,6)","v":""},{"$f":"LEFT(Template!K193,6)","v":""},{"$f":"LEFT(Template!L193,3)","v":""},{"$f":"IF(Template!M193=\"\",\"\",Template!M193)","v":""},{"$f":"IF(Template!N193=\"\",\"\",Template!N193)","v":""},null,null,null,null,null,{"$f":"IF(Template!O193=\"\",\"\",Template!O193)","v":""}]
[{"$f":"LEFT(Template!A194,4)","v":""},{"$f":"LEFT(Template!B194,5)","v":""},{"$f":"LEFT(Template!C194,7)","v":""},{"$f":"LEFT(Template!D194,6)","v":""},{"$f":"LEFT(Template!E194,2)","v":""},{"$f":"LEFT(Template!F194,3)","v":""},{"$f":"LEFT(Template!G194,10)","v":""},{"$f":"LEFT(Template!H194,6)","v":""},{"$f":"LEFT(Template!I194,4)","v":""},{"$f":"LEFT(Template!J194,6)","v":""},{"$f":"LEFT(Template!K194,6)","v":""},{"$f":"LEFT(Template!L194,3)","v":""},{"$f":"IF(Template!M194=\"\",\"\",Template!M194)","v":""},{"$f":"IF(Template!N194=\"\",\"\",Template!N194)","v":""},null,null,null,null,null,{"$f":"IF(Template!O194=\"\",\"\",Template!O194)","v":""}]
[{"$f":"LEFT(Template!A195,4)","v":""},{"$f":"LEFT(Template!B195,5)","v":""},{"$f":"LEFT(Template!C195,7)","v":""},{"$f":"LEFT(Template!D195,6)","v":""},{"$f":"LEFT(Template!E195,2)","v":""},{"$f":"LEFT(Template!F195,3)","v":""},{"$f":"LEFT(Template!G195,10)","v":""},{"$f":"LEFT(Template!H195,6)","v":""},{"$f":"LEFT(Template!I195,4)","v":""},{"$f":"LEFT(Template!J195,6)","v":""},{"$f":"LEFT(Template!K195,6)","v":""},{"$f":"LEFT(Template!L195,3)","v":""},{"$f":"IF(Template!M195=\"\",\"\",Template!M195)","v":""},{"$f":"IF(Template!N195=\"\",\"\",Template!N195)","v":""},null,null,null,null,null,{"$f":"IF(Template!O195=\"\",\"\",Template!O195)","v":""}]
[{"$f":"LEFT(Template!A196,4)","v":""},{"$f":"LEFT(Template!B196,5)","v":""},{"$f":"LEFT(Template!C196,7)","v":""},{"$f":"LEFT(Template!D196,6)","v":""},{"$f":"LEFT(Template!E196,2)","v":""},{"$f":"LEFT(Template!F196,3)","v":""},{"$f":"LEFT(Template!G196,10)","v":""},{"$f":"LEFT(Template!H196,6)","v":""},{"$f":"LEFT(Template!I196,4)","v":""},{"$f":"LEFT(Template!J196,6)","v":""},{"$f":"LEFT(Template!K196,6)","v":""},{"$f":"LEFT(Template!L196,3)","v":""},{"$f":"IF(Template!M196=\"\",\"\",Template!M196)","v":""},{"$f":"IF(Template!N196=\"\",\"\",Template!N196)","v":""},null,null,null,null,null,{"$f":"IF(Template!O196=\"\",\"\",Template!O196)","v":""}]
[{"$f":"LEFT(Template!A197,4)","v":""},{"$f":"LEFT(Template!B197,5)","v":""},{"$f":"LEFT(Template!C197,7)","v":""},{"$f":"LEFT(Template!D197,6)","v":""},{"$f":"LEFT(Template!E197,2)","v":""},{"$f":"LEFT(Template!F197,3)","v":""},{"$f":"LEFT(Template!G197,10)","v":""},{"$f":"LEFT(Template!H197,6)","v":""},{"$f":"LEFT(Template!I197,4)","v":""},{"$f":"LEFT(Template!J197,6)","v":""},{"$f":"LEFT(Template!K197,6)","v":""},{"$f":"LEFT(Template!L197,3)","v":""},{"$f":"IF(Template!M197=\"\",\"\",Template!M197)","v":""},{"$f":"IF(Template!N197=\"\",\"\",Template!N197)","v":""},null,null,null,null,null,{"$f":"IF(Template!O197=\"\",\"\",Template!O197)","v":""}]
[{"$f":"LEFT(Template!A198,4)","v":""},{"$f":"LEFT(Template!B198,5)","v":""},{"$f":"LEFT(Template!C198,7)","v":""},{"$f":"LEFT(Template!D198,6)","v":""},{"$f":"LEFT(Template!E198,2)","v":""},{"$f":"LEFT(Template!F198,3)","v":""},{"$f":"LEFT(Template!G198,10)","v":""},{"$f":"LEFT(Template!H198,6)","v":""},{"$f":"LEFT(Template!I198,4)","v":""},{"$f":"LEFT(Template!J198,6)","v":""},{"$f":"LEFT(Template!K198,6)","v":""},{"$f":"LEFT(Template!L198,3)","v":""},{"$f":"IF(Template!M198=\"\",\"\",Template!M198)","v":""},{"$f":"IF(Template!N198=\"\",\"\",Template!N198)","v":""},null,null,null,null,null,{"$f":"IF(Template!O198=\"\",\"\",Template!O198)","v":""}]
[{"$f":"LEFT(Template!A199,4)","v":""},{"$f":"LEFT(Template!B199,5)","v":""},{"$f":"LEFT(Template!C199,7)","v":""},{"$f":"LEFT(Template!D199,6)","v":""},{"$f":"LEFT(Template!E199,2)","v":""},{"$f":"LEFT(Template!F199,3)","v":""},{"$f":"LEFT(Template!G199,10)","v":""},{"$f":"LEFT(Template!H199,6)","v":""},{"$f":"LEFT(Template!I199,4)","v":""},{"$f":"LEFT(Template!J199,6)","v":""},{"$f":"LEFT(Template!K199,6)","v":""},{"$f":"LEFT(Template!L199,3)","v":""},{"$f":"IF(Template!M199=\"\",\"\",Template!M199)","v":""},{"$f":"IF(Template!N199=\"\",\"\",Template!N199)","v":""},null,null,null,null,null,{"$f":"IF(Template!O199=\"\",\"\",Template!O199)","v":""}]
[{"$f":"LEFT(Template!A200,4)","v":""},{"$f":"LEFT(Template!B200,5)","v":""},{"$f":"LEFT(Template!C200,7)","v":""},{"$f":"LEFT(Template!D200,6)","v":""},{"$f":"LEFT(Template!E200,2)","v":""},{"$f":"LEFT(Template!F200,3)","v":""},{"$f":"LEFT(Template!G200,10)","v":""},{"$f":"LEFT(Template!H200,6)","v":""},{"$f":"LEFT(Template!I200,4)","v":""},{"$f":"LEFT(Template!J200,6)","v":""},{"$f":"LEFT(Template!K200,6)","v":""},{"$f":"LEFT(Template!L200,3)","v":""},{"$f":"IF(Template!M200=\"\",\"\",Template!M200)","v":""},{"$f":"IF(Template!N200=\"\",\"\",Template!N200)","v":""},null,null,null,null,null,{"$f":"IF(Template!O200=\"\",\"\",Template!O200)","v":""}]
[{"$f":"LEFT(Template!A201,4)","v":""},{"$f":"LEFT(Template!B201,5)","v":""},{"$f":"LEFT(Template!C201,7)","v":""},{"$f":"LEFT(Template!D201,6)","v":""},{"$f":"LEFT(Template!E201,2)","v":""},{"$f":"LEFT(Template!F201,3)","v":""},{"$f":"LEFT(Template!G201,10)","v":""},{"$f":"LEFT(Template!H201,6)","v":""},{"$f":"LEFT(Template!I201,4)","v":""},{"$f":"LEFT(Template!J201,6)","v":""},{"$f":"LEFT(Template!K201,6)","v":""},{"$f":"LEFT(Template!L201,3)","v":""},{"$f":"IF(Template!M201=\"\",\"\",Template!M201)","v":""},{"$f":"IF(Template!N201=\"\",\"\",Template!N201)","v":""},null,null,null,null,null,{"$f":"IF(Template!O201=\"\",\"\",Template!O201)","v":""}]
[{"$f":"LEFT(Template!A202,4)","v":""},{"$f":"LEFT(Template!B202,5)","v":""},{"$f":"LEFT(Template!C202,7)","v":""},{"$f":"LEFT(Template!D202,6)","v":""},{"$f":"LEFT(Template!E202,2)","v":""},{"$f":"LEFT(Template!F202,3)","v":""},{"$f":"LEFT(Template!G202,10)","v":""},{"$f":"LEFT(Template!H202,6)","v":""},{"$f":"LEFT(Template!I202,4)","v":""},{"$f":"LEFT(Template!J202,6)","v":""},{"$f":"LEFT(Template!K202,6)","v":""},{"$f":"LEFT(Template!L202,3)","v":""},{"$f":"IF(Template!M202=\"\",\"\",Template!M202)","v":""},{"$f":"IF(Template!N202=\"\",\"\",Template!N202)","v":""},null,null,null,null,null,{"$f":"IF(Template!O202=\"\",\"\",Template!O202)","v":""}]
[{"$f":"LEFT(Template!A203,4)","v":""},{"$f":"LEFT(Template!B203,5)","v":""},{"$f":"LEFT(Template!C203,7)","v":""},{"$f":"LEFT(Template!D203,6)","v":""},{"$f":"LEFT(Template!E203,2)","v":""},{"$f":"LEFT(Template!F203,3)","v":""},{"$f":"LEFT(Template!G203,10)","v":""},{"$f":"LEFT(Template!H203,6)","v":""},{"$f":"LEFT(Template!I203,4)","v":""},{"$f":"LEFT(Template!J203,6)","v":""},{"$f":"LEFT(Template!K203,6)","v":""},{"$f":"LEFT(Template!L203,3)","v":""},{"$f":"IF(Template!M203=\"\",\"\",Template!M203)","v":""},{"$f":"IF(Template!N203=\"\",\"\",Template!N203)","v":""},null,null,null,null,null,{"$f":"IF(Template!O203=\"\",\"\",Template!O203)","v":""}]
[{"$f":"LEFT(Template!A204,4)","v":""},{"$f":"LEFT(Template!B204,5)","v":""},{"$f":"LEFT(Template!C204,7)","v":""},{"$f":"LEFT(Template!D204,6)","v":""},{"$f":"LEFT(Template!E204,2)","v":""},{"$f":"LEFT(Template!F204,3)","v":""},{"$f":"LEFT(Template!G204,10)","v":""},{"$f":"LEFT(Template!H204,6)","v":""},{"$f":"LEFT(Template!I204,4)","v":""},{"$f":"LEFT(Template!J204,6)","v":""},{"$f":"LEFT(Template!K204,6)","v":""},{"$f":"LEFT(Template!L204,3)","v":""},{"$f":"IF(Template!M204=\"\",\"\",Template!M204)","v":""},{"$f":"IF(Template!N204=\"\",\"\",Template!N204)","v":""},null,null,null,null,null,{"$f":"IF(Template!O204=\"\",\"\",Template!O204)","v":""}]
[{"$f":"LEFT(Template!A205,4)","v":""},{"$f":"LEFT(Template!B205,5)","v":""},{"$f":"LEFT(Template!C205,7)","v":""},{"$f":"LEFT(Template!D205,6)","v":""},{"$f":"LEFT(Template!E205,2)","v":""},{"$f":"LEFT(Template!F205,3)","v":""},{"$f":"LEFT(Template!G205,10)","v":""},{"$f":"LEFT(Template!H205,6)","v":""},{"$f":"LEFT(Template!I205,4)","v":""},{"$f":"LEFT(Template!J205,6)","v":""},{"$f":"LEFT(Template!K205,6)","v":""},{"$f":"LEFT(Template!L205,3)","v":""},{"$f":"IF(Template!M205=\"\",\"\",Template!M205)","v":""},{"$f":"IF(Template!N205=\"\",\"\",Template!N205)","v":""},null,null,null,null,null,{"$f":"IF(Template!O205=\"\",\"\",Template!O205)","v":""}]
[{"$f":"LEFT(Template!A206,4)","v":""},{"$f":"LEFT(Template!B206,5)","v":""},{"$f":"LEFT(Template!C206,7)","v":""},{"$f":"LEFT(Template!D206,6)","v":""},{"$f":"LEFT(Template!E206,2)","v":""},{"$f":"LEFT(Template!F206,3)","v":""},{"$f":"LEFT(Template!G206,10)","v":""},{"$f":"LEFT(Template!H206,6)","v":""},{"$f":"LEFT(Template!I206,4)","v":""},{"$f":"LEFT(Template!J206,6)","v":""},{"$f":"LEFT(Template!K206,6)","v":""},{"$f":"LEFT(Template!L206,3)","v":""},{"$f":"IF(Template!M206=\"\",\"\",Template!M206)","v":""},{"$f":"IF(Template!N206=\"\",\"\",Template!N206)","v":""},null,null,null,null,null,{"$f":"IF(Template!O206=\"\",\"\",Template!O206)","v":""}]
[{"$f":"LEFT(Template!A207,4)","v":""},{"$f":"LEFT(Template!B207,5)","v":""},{"$f":"LEFT(Template!C207,7)","v":""},{"$f":"LEFT(Template!D207,6)","v":""},{"$f":"LEFT(Template!E207,2)","v":""},{"$f":"LEFT(Template!F207,3)","v":""},{"$f":"LEFT(Template!G207,10)","v":""},{"$f":"LEFT(Template!H207,6)","v":""},{"$f":"LEFT(Template!I207,4)","v":""},{"$f":"LEFT(Template!J207,6)","v":""},{"$f":"LEFT(Template!K207,6)","v":""},{"$f":"LEFT(Template!L207,3)","v":""},{"$f":"IF(Template!M207=\"\",\"\",Template!M207)","v":""},{"$f":"IF(Template!N207=\"\",\"\",Template!N207)","v":""},null,null,null,null,null,{"$f":"IF(Template!O207=\"\",\"\",Template!O207)","v":""}]
[{"$f":"LEFT(Template!A208,4)","v":""},{"$f":"LEFT(Template!B208,5)","v":""},{"$f":"LEFT(Template!C208,7)","v":""},{"$f":"LEFT(Template!D208,6)","v":""},{"$f":"LEFT(Template!E208,2)","v":""},{"$f":"LEFT(Template!F208,3)","v":""},{"$f":"LEFT(Template!G208,10)","v":""},{"$f":"LEFT(Template!H208,6)","v":""},{"$f":"LEFT(Template!I208,4)","v":""},{"$f":"LEFT(Template!J208,6)","v":""},{"$f":"LEFT(Template!K208,6)","v":""},{"$f":"LEFT(Template!L208,3)","v":""},{"$f":"IF(Template!M208=\"\",\"\",Template!M208)","v":""},{"$f":"IF(Template!N208=\"\",\"\",Template!N208)","v":""},null,null,null,null,null,{"$f":"IF(Template!O208=\"\",\"\",Template!O208)","v":""}]
[{"$f":"LEFT(Template!A209,4)","v":""},{"$f":"LEFT(Template!B209,5)","v":""},{"$f":"LEFT(Template!C209,7)","v":""},{"$f":"LEFT(Template!D209,6)","v":""},{"$f":"LEFT(Template!E209,2)","v":""},{"$f":"LEFT(Template!F209,3)","v":""},{"$f":"LEFT(Template!G209,10)","v":""},{"$f":"LEFT(Template!H209,6)","v":""},{"$f":"LEFT(Template!I209,4)","v":""},{"$f":"LEFT(Template!J209,6)","v":""},{"$f":"LEFT(Template!K209,6)","v":""},{"$f":"LEFT(Template!L209,3)","v":""},{"$f":"IF(Template!M209=\"\",\"\",Template!M209)","v":""},{"$f":"IF(Template!N209=\"\",\"\",Template!N209)","v":""},null,null,null,null,null,{"$f":"IF(Template!O209=\"\",\"\",Template!O209)","v":""}]
[{"$f":"LEFT(Template!A210,4)","v":""},{"$f":"LEFT(Template!B210,5)","v":""},{"$f":"LEFT(Template!C210,7)","v":""},{"$f":"LEFT(Template!D210,6)","v":""},{"$f":"LEFT(Template!E210,2)","v":""},{"$f":"LEFT(Template!F210,3)","v":""},{"$f":"LEFT(Template!G210,10)","v":""},{"$f":"LEFT(Template!H210,6)","v":""},{"$f":"LEFT(Template!I210,4)","v":""},{"$f":"LEFT(Template!J210,6)","v":""},{"$f":"LEFT(Template!K210,6)","v":""},{"$f":"LEFT(Template!L210,3)","v":""},{"$f":"IF(Template!M210=\"\",\"\",Template!M210)","v":""},{"$f":"IF(Template!N210=\"\",\"\",Template!N210)","v":""},null,null,null,null,null,{"$f":"IF(Template!O210=\"\",\"\",Template!O210)","v":""}]
[{"$f":"LEFT(Template!A211,4)","v":""},{"$f":"LEFT(Template!B211,5)","v":""},{"$f":"LEFT(Template!C211,7)","v":""},{"$f":"LEFT(Template!D211,6)","v":""},{"$f":"LEFT(Template!E211,2)","v":""},{"$f":"LEFT(Template!F211,3)","v":""},{"$f":"LEFT(Template!G211,10)","v":""},{"$f":"LEFT(Template!H211,6)","v":""},{"$f":"LEFT(Template!I211,4)","v":""},{"$f":"LEFT(Template!J211,6)","v":""},{"$f":"LEFT(Template!K211,6)","v":""},{"$f":"LEFT(Template!L211,3)","v":""},{"$f":"IF(Template!M211=\"\",\"\",Template!M211)","v":""},{"$f":"IF(Template!N211=\"\",\"\",Template!N211)","v":""},null,null,null,null,null,{"$f":"IF(Template!O211=\"\",\"\",Template!O211)","v":""}]
[{"$f":"LEFT(Template!A212,4)","v":""},{"$f":"LEFT(Template!B212,5)","v":""},{"$f":"LEFT(Template!C212,7)","v":""},{"$f":"LEFT(Template!D212,6)","v":""},{"$f":"LEFT(Template!E212,2)","v":""},{"$f":"LEFT(Template!F212,3)","v":""},{"$f":"LEFT(Template!G212,10)","v":""},{"$f":"LEFT(Template!H212,6)","v":""},{"$f":"LEFT(Template!I212,4)","v":""},{"$f":"LEFT(Template!J212,6)","v":""},{"$f":"LEFT(Template!K212,6)","v":""},{"$f":"LEFT(Template!L212,3)","v":""},{"$f":"IF(Template!M212=\"\",\"\",Template!M212)","v":""},{"$f":"IF(Template!N212=\"\",\"\",Template!N212)","v":""},null,null,null,null,null,{"$f":"IF(Template!O212=\"\",\"\",Template!O212)","v":""}]
[{"$f":"LEFT(Template!A213,4)","v":""},{"$f":"LEFT(Template!B213,5)","v":""},{"$f":"LEFT(Template!C213,7)","v":""},{"$f":"LEFT(Template!D213,6)","v":""},{"$f":"LEFT(Template!E213,2)","v":""},{"$f":"LEFT(Template!F213,3)","v":""},{"$f":"LEFT(Template!G213,10)","v":""},{"$f":"LEFT(Template!H213,6)","v":""},{"$f":"LEFT(Template!I213,4)","v":""},{"$f":"LEFT(Template!J213,6)","v":""},{"$f":"LEFT(Template!K213,6)","v":""},{"$f":"LEFT(Template!L213,3)","v":""},{"$f":"IF(Template!M213=\"\",\"\",Template!M213)","v":""},{"$f":"IF(Template!N213=\"\",\"\",Template!N213)","v":""},null,null,null,null,null,{"$f":"IF(Template!O213=\"\",\"\",Template!O213)","v":""}]
[{"$f":"LEFT(Template!A214,4)","v":""},{"$f":"LEFT(Template!B214,5)","v":""},{"$f":"LEFT(Template!C214,7)","v":""},{"$f":"LEFT(Template!D214,6)","v":""},{"$f":"LEFT(Template!E214,2)","v":""},{"$f":"LEFT(Template!F214,3)","v":""},{"$f":"LEFT(Template!G214,10)","v":""},{"$f":"LEFT(Template!H214,6)","v":""},{"$f":"LEFT(Template!I214,4)","v":""},{"$f":"LEFT(Template!J214,6)","v":""},{"$f":"LEFT(Template!K214,6)","v":""},{"$f":"LEFT(Template!L214,3)","v":""},{"$f":"IF(Template!M214=\"\",\"\",Template!M214)","v":""},{"$f":"IF(Template!N214=\"\",\"\",Template!N214)","v":""},null,null,null,null,null,{"$f":"IF(Template!O214=\"\",\"\",Template!O214)","v":""}]
[{"$f":"LEFT(Template!A215,4)","v":""},{"$f":"LEFT(Template!B215,5)","v":""},{"$f":"LEFT(Template!C215,7)","v":""},{"$f":"LEFT(Template!D215,6)","v":""},{"$f":"LEFT(Template!E215,2)","v":""},{"$f":"LEFT(Template!F215,3)","v":""},{"$f":"LEFT(Template!G215,10)","v":""},{"$f":"LEFT(Template!H215,6)","v":""},{"$f":"LEFT(Template!I215,4)","v":""},{"$f":"LEFT(Template!J215,6)","v":""},{"$f":"LEFT(Template!K215,6)","v":""},{"$f":"LEFT(Template!L215,3)","v":""},{"$f":"IF(Template!M215=\"\",\"\",Template!M215)","v":""},{"$f":"IF(Template!N215=\"\",\"\",Template!N215)","v":""},null,null,null,null,null,{"$f":"IF(Template!O215=\"\",\"\",Template!O215)","v":""}]
[{"$f":"LEFT(Template!A216,4)","v":""},{"$f":"LEFT(Template!B216,5)","v":""},{"$f":"LEFT(Template!C216,7)","v":""},{"$f":"LEFT(Template!D216,6)","v":""},{"$f":"LEFT(Template!E216,2)","v":""},{"$f":"LEFT(Template!F216,3)","v":""},{"$f":"LEFT(Template!G216,10)","v":""},{"$f":"LEFT(Template!H216,6)","v":""},{"$f":"LEFT(Template!I216,4)","v":""},{"$f":"LEFT(Template!J216,6)","v":""},{"$f":"LEFT(Template!K216,6)","v":""},{"$f":"LEFT(Template!L216,3)","v":""},{"$f":"IF(Template!M216=\"\",\"\",Template!M216)","v":""},{"$f":"IF(Template!N216=\"\",\"\",Template!N216)","v":""},null,null,null,null,null,{"$f":"IF(Template!O216=\"\",\"\",Template!O216)","v":""}]
[{"$f":"LEFT(Template!A217,4)","v":""},{"$f":"LEFT(Template!B217,5)","v":""},{"$f":"LEFT(Template!C217,7)","v":""},{"$f":"LEFT(Template!D217,6)","v":""},{"$f":"LEFT(Template!E217,2)","v":""},{"$f":"LEFT(Template!F217,3)","v":""},{"$f":"LEFT(Template!G217,10)","v":""},{"$f":"LEFT(Template!H217,6)","v":""},{"$f":"LEFT(Template!I217,4)","v":""},{"$f":"LEFT(Template!J217,6)","v":""},{"$f":"LEFT(Template!K217,6)","v":""},{"$f":"LEFT(Template!L217,3)","v":""},{"$f":"IF(Template!M217=\"\",\"\",Template!M217)","v":""},{"$f":"IF(Template!N217=\"\",\"\",Template!N217)","v":""},null,null,null,null,null,{"$f":"IF(Template!O217=\"\",\"\",Template!O217)","v":""}]
[{"$f":"LEFT(Template!A218,4)","v":""},{"$f":"LEFT(Template!B218,5)","v":""},{"$f":"LEFT(Template!C218,7)","v":""},{"$f":"LEFT(Template!D218,6)","v":""},{"$f":"LEFT(Template!E218,2)","v":""},{"$f":"LEFT(Template!F218,3)","v":""},{"$f":"LEFT(Template!G218,10)","v":""},{"$f":"LEFT(Template!H218,6)","v":""},{"$f":"LEFT(Template!I218,4)","v":""},{"$f":"LEFT(Template!J218,6)","v":""},{"$f":"LEFT(Template!K218,6)","v":""},{"$f":"LEFT(Template!L218,3)","v":""},{"$f":"IF(Template!M218=\"\",\"\",Template!M218)","v":""},{"$f":"IF(Template!N218=\"\",\"\",Template!N218)","v":""},null,null,null,null,null,{"$f":"IF(Template!O218=\"\",\"\",Template!O218)","v":""}]
[{"$f":"LEFT(Template!A219,4)","v":""},{"$f":"LEFT(Template!B219,5)","v":""},{"$f":"LEFT(Template!C219,7)","v":""},{"$f":"LEFT(Template!D219,6)","v":""},{"$f":"LEFT(Template!E219,2)","v":""},{"$f":"LEFT(Template!F219,3)","v":""},{"$f":"LEFT(Template!G219,10)","v":""},{"$f":"LEFT(Template!H219,6)","v":""},{"$f":"LEFT(Template!I219,4)","v":""},{"$f":"LEFT(Template!J219,6)","v":""},{"$f":"LEFT(Template!K219,6)","v":""},{"$f":"LEFT(Template!L219,3)","v":""},{"$f":"IF(Template!M219=\"\",\"\",Template!M219)","v":""},{"$f":"IF(Template!N219=\"\",\"\",Template!N219)","v":""},null,null,null,null,null,{"$f":"IF(Template!O219=\"\",\"\",Template!O219)","v":""}]
[{"$f":"LEFT(Template!A220,4)","v":""},{"$f":"LEFT(Template!B220,5)","v":""},{"$f":"LEFT(Template!C220,7)","v":""},{"$f":"LEFT(Template!D220,6)","v":""},{"$f":"LEFT(Template!E220,2)","v":""},{"$f":"LEFT(Template!F220,3)","v":""},{"$f":"LEFT(Template!G220,10)","v":""},{"$f":"LEFT(Template!H220,6)","v":""},{"$f":"LEFT(Template!I220,4)","v":""},{"$f":"LEFT(Template!J220,6)","v":""},{"$f":"LEFT(Template!K220,6)","v":""},{"$f":"LEFT(Template!L220,3)","v":""},{"$f":"IF(Template!M220=\"\",\"\",Template!M220)","v":""},{"$f":"IF(Template!N220=\"\",\"\",Template!N220)","v":""},null,null,null,null,null,{"$f":"IF(Template!O220=\"\",\"\",Template!O220)","v":""}]
[{"$f":"LEFT(Template!A221,4)","v":""},{"$f":"LEFT(Template!B221,5)","v":""},{"$f":"LEFT(Template!C221,7)","v":""},{"$f":"LEFT(Template!D221,6)","v":""},{"$f":"LEFT(Template!E221,2)","v":""},{"$f":"LEFT(Template!F221,3)","v":""},{"$f":"LEFT(Template!G221,10)","v":""},{"$f":"LEFT(Template!H221,6)","v":""},{"$f":"LEFT(Template!I221,4)","v":""},{"$f":"LEFT(Template!J221,6)","v":""},{"$f":"LEFT(Template!K221,6)","v":""},{"$f":"LEFT(Template!L221,3)","v":""},{"$f":"IF(Template!M221=\"\",\"\",Template!M221)","v":""},{"$f":"IF(Template!N221=\"\",\"\",Template!N221)","v":""},null,null,null,null,null,{"$f":"IF(Template!O221=\"\",\"\",Template!O221)","v":""}]
[{"$f":"LEFT(Template!A222,4)","v":""},{"$f":"LEFT(Template!B222,5)","v":""},{"$f":"LEFT(Template!C222,7)","v":""},{"$f":"LEFT(Template!D222,6)","v":""},{"$f":"LEFT(Template!E222,2)","v":""},{"$f":"LEFT(Template!F222,3)","v":""},{"$f":"LEFT(Template!G222,10)","v":""},{"$f":"LEFT(Template!H222,6)","v":""},{"$f":"LEFT(Template!I222,4)","v":""},{"$f":"LEFT(Template!J222,6)","v":""},{"$f":"LEFT(Template!K222,6)","v":""},{"$f":"LEFT(Template!L222,3)","v":""},{"$f":"IF(Template!M222=\"\",\"\",Template!M222)","v":""},{"$f":"IF(Template!N222=\"\",\"\",Template!N222)","v":""},null,null,null,null,null,{"$f":"IF(Template!O222=\"\",\"\",Template!O222)","v":""}]
[{"$f":"LEFT(Template!A223,4)","v":""},{"$f":"LEFT(Template!B223,5)","v":""},{"$f":"LEFT(Template!C223,7)","v":""},{"$f":"LEFT(Template!D223,6)","v":""},{"$f":"LEFT(Template!E223,2)","v":""},{"$f":"LEFT(Template!F223,3)","v":""},{"$f":"LEFT(Template!G223,10)","v":""},{"$f":"LEFT(Template!H223,6)","v":""},{"$f":"LEFT(Template!I223,4)","v":""},{"$f":"LEFT(Template!J223,6)","v":""},{"$f":"LEFT(Template!K223,6)","v":""},{"$f":"LEFT(Template!L223,3)","v":""},{"$f":"IF(Template!M223=\"\",\"\",Template!M223)","v":""},{"$f":"IF(Template!N223=\"\",\"\",Template!N223)","v":""},null,null,null,null,null,{"$f":"IF(Template!O223=\"\",\"\",Template!O223)","v":""}]
[{"$f":"LEFT(Template!A224,4)","v":""},{"$f":"LEFT(Template!B224,5)","v":""},{"$f":"LEFT(Template!C224,7)","v":""},{"$f":"LEFT(Template!D224,6)","v":""},{"$f":"LEFT(Template!E224,2)","v":""},{"$f":"LEFT(Template!F224,3)","v":""},{"$f":"LEFT(Template!G224,10)","v":""},{"$f":"LEFT(Template!H224,6)","v":""},{"$f":"LEFT(Template!I224,4)","v":""},{"$f":"LEFT(Template!J224,6)","v":""},{"$f":"LEFT(Template!K224,6)","v":""},{"$f":"LEFT(Template!L224,3)","v":""},{"$f":"IF(Template!M224=\"\",\"\",Template!M224)","v":""},{"$f":"IF(Template!N224=\"\",\"\",Template!N224)","v":""},null,null,null,null,null,{"$f":"IF(Template!O224=\"\",\"\",Template!O224)","v":""}]
[{"$f":"LEFT(Template!A225,4)","v":""},{"$f":"LEFT(Template!B225,5)","v":""},{"$f":"LEFT(Template!C225,7)","v":""},{"$f":"LEFT(Template!D225,6)","v":""},{"$f":"LEFT(Template!E225,2)","v":""},{"$f":"LEFT(Template!F225,3)","v":""},{"$f":"LEFT(Template!G225,10)","v":""},{"$f":"LEFT(Template!H225,6)","v":""},{"$f":"LEFT(Template!I225,4)","v":""},{"$f":"LEFT(Template!J225,6)","v":""},{"$f":"LEFT(Template!K225,6)","v":""},{"$f":"LEFT(Template!L225,3)","v":""},{"$f":"IF(Template!M225=\"\",\"\",Template!M225)","v":""},{"$f":"IF(Template!N225=\"\",\"\",Template!N225)","v":""},null,null,null,null,null,{"$f":"IF(Template!O225=\"\",\"\",Template!O225)","v":""}]
[{"$f":"LEFT(Template!A226,4)","v":""},{"$f":"LEFT(Template!B226,5)","v":""},{"$f":"LEFT(Template!C226,7)","v":""},{"$f":"LEFT(Template!D226,6)","v":""},{"$f":"LEFT(Template!E226,2)","v":""},{"$f":"LEFT(Template!F226,3)","v":""},{"$f":"LEFT(Template!G226,10)","v":""},{"$f":"LEFT(Template!H226,6)","v":""},{"$f":"LEFT(Template!I226,4)","v":""},{"$f":"LEFT(Template!J226,6)","v":""},{"$f":"LEFT(Template!K226,6)","v":""},{"$f":"LEFT(Template!L226,3)","v":""},{"$f":"IF(Template!M226=\"\",\"\",Template!M226)","v":""},{"$f":"IF(Template!N226=\"\",\"\",Template!N226)","v":""},null,null,null,null,null,{"$f":"IF(Template!O226=\"\",\"\",Template!O226)","v":""}]
[{"$f":"LEFT(Template!A227,4)","v":""},{"$f":"LEFT(Template!B227,5)","v":""},{"$f":"LEFT(Template!C227,7)","v":""},{"$f":"LEFT(Template!D227,6)","v":""},{"$f":"LEFT(Template!E227,2)","v":""},{"$f":"LEFT(Template!F227,3)","v":""},{"$f":"LEFT(Template!G227,10)","v":""},{"$f":"LEFT(Template!H227,6)","v":""},{"$f":"LEFT(Template!I227,4)","v":""},{"$f":"LEFT(Template!J227,6)","v":""},{"$f":"LEFT(Template!K227,6)","v":""},{"$f":"LEFT(Template!L227,3)","v":""},{"$f":"IF(Template!M227=\"\",\"\",Template!M227)","v":""},{"$f":"IF(Template!N227=\"\",\"\",Template!N227)","v":""},null,null,null,null,null,{"$f":"IF(Template!O227=\"\",\"\",Template!O227)","v":""}]
[{"$f":"LEFT(Template!A228,4)","v":""},{"$f":"LEFT(Template!B228,5)","v":""},{"$f":"LEFT(Template!C228,7)","v":""},{"$f":"LEFT(Template!D228,6)","v":""},{"$f":"LEFT(Template!E228,2)","v":""},{"$f":"LEFT(Template!F228,3)","v":""},{"$f":"LEFT(Template!G228,10)","v":""},{"$f":"LEFT(Template!H228,6)","v":""},{"$f":"LEFT(Template!I228,4)","v":""},{"$f":"LEFT(Template!J228,6)","v":""},{"$f":"LEFT(Template!K228,6)","v":""},{"$f":"LEFT(Template!L228,3)","v":""},{"$f":"IF(Template!M228=\"\",\"\",Template!M228)","v":""},{"$f":"IF(Template!N228=\"\",\"\",Template!N228)","v":""},null,null,null,null,null,{"$f":"IF(Template!O228=\"\",\"\",Template!O228)","v":""}]
[{"$f":"LEFT(Template!A229,4)","v":""},{"$f":"LEFT(Template!B229,5)","v":""},{"$f":"LEFT(Template!C229,7)","v":""},{"$f":"LEFT(Template!D229,6)","v":""},{"$f":"LEFT(Template!E229,2)","v":""},{"$f":"LEFT(Template!F229,3)","v":""},{"$f":"LEFT(Template!G229,10)","v":""},{"$f":"LEFT(Template!H229,6)","v":""},{"$f":"LEFT(Template!I229,4)","v":""},{"$f":"LEFT(Template!J229,6)","v":""},{"$f":"LEFT(Template!K229,6)","v":""},{"$f":"LEFT(Template!L229,3)","v":""},{"$f":"IF(Template!M229=\"\",\"\",Template!M229)","v":""},{"$f":"IF(Template!N229=\"\",\"\",Template!N229)","v":""},null,null,null,null,null,{"$f":"IF(Template!O229=\"\",\"\",Template!O229)","v":""}]
[{"$f":"LEFT(Template!A230,4)","v":""},{"$f":"LEFT(Template!B230,5)","v":""},{"$f":"LEFT(Template!C230,7)","v":""},{"$f":"LEFT(Template!D230,6)","v":""},{"$f":"LEFT(Template!E230,2)","v":""},{"$f":"LEFT(Template!F230,3)","v":""},{"$f":"LEFT(Template!G230,10)","v":""},{"$f":"LEFT(Template!H230,6)","v":""},{"$f":"LEFT(Template!I230,4)","v":""},{"$f":"LEFT(Template!J230,6)","v":""},{"$f":"LEFT(Template!K230,6)","v":""},{"$f":"LEFT(Template!L230,3)","v":""},{"$f":"IF(Template!M230=\"\",\"\",Template!M230)","v":""},{"$f":"IF(Template!N230=\"\",\"\",Template!N230)","v":""},null,null,null,null,null,{"$f":"IF(Template!O230=\"\",\"\",Template!O230)","v":""}]
[{"$f":"LEFT(Template!A231,4)","v":""},{"$f":"LEFT(Template!B231,5)","v":""},{"$f":"LEFT(Template!C231,7)","v":""},{"$f":"LEFT(Template!D231,6)","v":""},{"$f":"LEFT(Template!E231,2)","v":""},{"$f":"LEFT(Template!F231,3)","v":""},{"$f":"LEFT(Template!G231,10)","v":""},{"$f":"LEFT(Template!H231,6)","v":""},{"$f":"LEFT(Template!I231,4)","v":""},{"$f":"LEFT(Template!J231,6)","v":""},{"$f":"LEFT(Template!K231,6)","v":""},{"$f":"LEFT(Template!L231,3)","v":""},{"$f":"IF(Template!M231=\"\",\"\",Template!M231)","v":""},{"$f":"IF(Template!N231=\"\",\"\",Template!N231)","v":""},null,null,null,null,null,{"$f":"IF(Template!O231=\"\",\"\",Template!O231)","v":""}]
[{"$f":"LEFT(Template!A232,4)","v":""},{"$f":"LEFT(Template!B232,5)","v":""},{"$f":"LEFT(Template!C232,7)","v":""},{"$f":"LEFT(Template!D232,6)","v":""},{"$f":"LEFT(Template!E232,2)","v":""},{"$f":"LEFT(Template!F232,3)","v":""},{"$f":"LEFT(Template!G232,10)","v":""},{"$f":"LEFT(Template!H232,6)","v":""},{"$f":"LEFT(Template!I232,4)","v":""},{"$f":"LEFT(Template!J232,6)","v":""},{"$f":"LEFT(Template!K232,6)","v":""},{"$f":"LEFT(Template!L232,3)","v":""},{"$f":"IF(Template!M232=\"\",\"\",Template!M232)","v":""},{"$f":"IF(Template!N232=\"\",\"\",Template!N232)","v":""},null,null,null,null,null,{"$f":"IF(Template!O232=\"\",\"\",Template!O232)","v":""}]
[{"$f":"LEFT(Template!A233,4)","v":""},{"$f":"LEFT(Template!B233,5)","v":""},{"$f":"LEFT(Template!C233,7)","v":""},{"$f":"LEFT(Template!D233,6)","v":""},{"$f":"LEFT(Template!E233,2)","v":""},{"$f":"LEFT(Template!F233,3)","v":""},{"$f":"LEFT(Template!G233,10)","v":""},{"$f":"LEFT(Template!H233,6)","v":""},{"$f":"LEFT(Template!I233,4)","v":""},{"$f":"LEFT(Template!J233,6)","v":""},{"$f":"LEFT(Template!K233,6)","v":""},{"$f":"LEFT(Template!L233,3)","v":""},{"$f":"IF(Template!M233=\"\",\"\",Template!M233)","v":""},{"$f":"IF(Template!N233=\"\",\"\",Template!N233)","v":""},null,null,null,null,null,{"$f":"IF(Template!O233=\"\",\"\",Template!O233)","v":""}]
[{"$f":"LEFT(Template!A234,4)","v":""},{"$f":"LEFT(Template!B234,5)","v":""},{"$f":"LEFT(Template!C234,7)","v":""},{"$f":"LEFT(Template!D234,6)","v":""},{"$f":"LEFT(Template!E234,2)","v":""},{"$f":"LEFT(Template!F234,3)","v":""},{"$f":"LEFT(Template!G234,10)","v":""},{"$f":"LEFT(Template!H234,6)","v":""},{"$f":"LEFT(Template!I234,4)","v":""},{"$f":"LEFT(Template!J234,6)","v":""},{"$f":"LEFT(Template!K234,6)","v":""},{"$f":"LEFT(Template!L234,3)","v":""},{"$f":"IF(Template!M234=\"\",\"\",Template!M234)","v":""},{"$f":"IF(Template!N234=\"\",\"\",Template!N234)","v":""},null,null,null,null,null,{"$f":"IF(Template!O234=\"\",\"\",Template!O234)","v":""}]
[{"$f":"LEFT(Template!A235,4)","v":""},{"$f":"LEFT(Template!B235,5)","v":""},{"$f":"LEFT(Template!C235,7)","v":""},{"$f":"LEFT(Template!D235,6)","v":""},{"$f":"LEFT(Template!E235,2)","v":""},{"$f":"LEFT(Template!F235,3)","v":""},{"$f":"LEFT(Template!G235,10)","v":""},{"$f":"LEFT(Template!H235,6)","v":""},{"$f":"LEFT(Template!I235,4)","v":""},{"$f":"LEFT(Template!J235,6)","v":""},{"$f":"LEFT(Template!K235,6)","v":""},{"$f":"LEFT(Template!L235,3)","v":""},{"$f":"IF(Template!M235=\"\",\"\",Template!M235)","v":""},{"$f":"IF(Template!N235=\"\",\"\",Template!N235)","v":""},null,null,null,null,null,{"$f":"IF(Template!O235=\"\",\"\",Template!O235)","v":""}]
[{"$f":"LEFT(Template!A236,4)","v":""},{"$f":"LEFT(Template!B236,5)","v":""},{"$f":"LEFT(Template!C236,7)","v":""},{"$f":"LEFT(Template!D236,6)","v":""},{"$f":"LEFT(Template!E236,2)","v":""},{"$f":"LEFT(Template!F236,3)","v":""},{"$f":"LEFT(Template!G236,10)","v":""},{"$f":"LEFT(Template!H236,6)","v":""},{"$f":"LEFT(Template!I236,4)","v":""},{"$f":"LEFT(Template!J236,6)","v":""},{"$f":"LEFT(Template!K236,6)","v":""},{"$f":"LEFT(Template!L236,3)","v":""},{"$f":"IF(Template!M236=\"\",\"\",Template!M236)","v":""},{"$f":"IF(Template!N236=\"\",\"\",Template!N236)","v":""},null,null,null,null,null,{"$f":"IF(Template!O236=\"\",\"\",Template!O236)","v":""}]
[{"$f":"LEFT(Template!A237,4)","v":""},{"$f":"LEFT(Template!B237,5)","v":""},{"$f":"LEFT(Template!C237,7)","v":""},{"$f":"LEFT(Template!D237,6)","v":""},{"$f":"LEFT(Template!E237,2)","v":""},{"$f":"LEFT(Template!F237,3)","v":""},{"$f":"LEFT(Template!G237,10)","v":""},{"$f":"LEFT(Template!H237,6)","v":""},{"$f":"LEFT(Template!I237,4)","v":""},{"$f":"LEFT(Template!J237,6)","v":""},{"$f":"LEFT(Template!K237,6)","v":""},{"$f":"LEFT(Template!L237,3)","v":""},{"$f":"IF(Template!M237=\"\",\"\",Template!M237)","v":""},{"$f":"IF(Template!N237=\"\",\"\",Template!N237)","v":""},null,null,null,null,null,{"$f":"IF(Template!O237=\"\",\"\",Template!O237)","v":""}]
[{"$f":"LEFT(Template!A238,4)","v":""},{"$f":"LEFT(Template!B238,5)","v":""},{"$f":"LEFT(Template!C238,7)","v":""},{"$f":"LEFT(Template!D238,6)","v":""},{"$f":"LEFT(Template!E238,2)","v":""},{"$f":"LEFT(Template!F238,3)","v":""},{"$f":"LEFT(Template!G238,10)","v":""},{"$f":"LEFT(Template!H238,6)","v":""},{"$f":"LEFT(Template!I238,4)","v":""},{"$f":"LEFT(Template!J238,6)","v":""},{"$f":"LEFT(Template!K238,6)","v":""},{"$f":"LEFT(Template!L238,3)","v":""},{"$f":"IF(Template!M238=\"\",\"\",Template!M238)","v":""},{"$f":"IF(Template!N238=\"\",\"\",Template!N238)","v":""},null,null,null,null,null,{"$f":"IF(Template!O238=\"\",\"\",Template!O238)","v":""}]
[{"$f":"LEFT(Template!A239,4)","v":""},{"$f":"LEFT(Template!B239,5)","v":""},{"$f":"LEFT(Template!C239,7)","v":""},{"$f":"LEFT(Template!D239,6)","v":""},{"$f":"LEFT(Template!E239,2)","v":""},{"$f":"LEFT(Template!F239,3)","v":""},{"$f":"LEFT(Template!G239,10)","v":""},{"$f":"LEFT(Template!H239,6)","v":""},{"$f":"LEFT(Template!I239,4)","v":""},{"$f":"LEFT(Template!J239,6)","v":""},{"$f":"LEFT(Template!K239,6)","v":""},{"$f":"LEFT(Template!L239,3)","v":""},{"$f":"IF(Template!M239=\"\",\"\",Template!M239)","v":""},{"$f":"IF(Template!N239=\"\",\"\",Template!N239)","v":""},null,null,null,null,null,{"$f":"IF(Template!O239=\"\",\"\",Template!O239)","v":""}]
[{"$f":"LEFT(Template!A240,4)","v":""},{"$f":"LEFT(Template!B240,5)","v":""},{"$f":"LEFT(Template!C240,7)","v":""},{"$f":"LEFT(Template!D240,6)","v":""},{"$f":"LEFT(Template!E240,2)","v":""},{"$f":"LEFT(Template!F240,3)","v":""},{"$f":"LEFT(Template!G240,10)","v":""},{"$f":"LEFT(Template!H240,6)","v":""},{"$f":"LEFT(Template!I240,4)","v":""},{"$f":"LEFT(Template!J240,6)","v":""},{"$f":"LEFT(Template!K240,6)","v":""},{"$f":"LEFT(Template!L240,3)","v":""},{"$f":"IF(Template!M240=\"\",\"\",Template!M240)","v":""},{"$f":"IF(Template!N240=\"\",\"\",Template!N240)","v":""},null,null,null,null,null,{"$f":"IF(Template!O240=\"\",\"\",Template!O240)","v":""}]
[{"$f":"LEFT(Template!A241,4)","v":""},{"$f":"LEFT(Template!B241,5)","v":""},{"$f":"LEFT(Template!C241,7)","v":""},{"$f":"LEFT(Template!D241,6)","v":""},{"$f":"LEFT(Template!E241,2)","v":""},{"$f":"LEFT(Template!F241,3)","v":""},{"$f":"LEFT(Template!G241,10)","v":""},{"$f":"LEFT(Template!H241,6)","v":""},{"$f":"LEFT(Template!I241,4)","v":""},{"$f":"LEFT(Template!J241,6)","v":""},{"$f":"LEFT(Template!K241,6)","v":""},{"$f":"LEFT(Template!L241,3)","v":""},{"$f":"IF(Template!M241=\"\",\"\",Template!M241)","v":""},{"$f":"IF(Template!N241=\"\",\"\",Template!N241)","v":""},null,null,null,null,null,{"$f":"IF(Template!O241=\"\",\"\",Template!O241)","v":""}]
[{"$f":"LEFT(Template!A242,4)","v":""},{"$f":"LEFT(Template!B242,5)","v":""},{"$f":"LEFT(Template!C242,7)","v":""},{"$f":"LEFT(Template!D242,6)","v":""},{"$f":"LEFT(Template!E242,2)","v":""},{"$f":"LEFT(Template!F242,3)","v":""},{"$f":"LEFT(Template!G242,10)","v":""},{"$f":"LEFT(Template!H242,6)","v":""},{"$f":"LEFT(Template!I242,4)","v":""},{"$f":"LEFT(Template!J242,6)","v":""},{"$f":"LEFT(Template!K242,6)","v":""},{"$f":"LEFT(Template!L242,3)","v":""},{"$f":"IF(Template!M242=\"\",\"\",Template!M242)","v":""},{"$f":"IF(Template!N242=\"\",\"\",Template!N242)","v":""},null,null,null,null,null,{"$f":"IF(Template!O242=\"\",\"\",Template!O242)","v":""}]
[{"$f":"LEFT(Template!A243,4)","v":""},{"$f":"LEFT(Template!B243,5)","v":""},{"$f":"LEFT(Template!C243,7)","v":""},{"$f":"LEFT(Template!D243,6)","v":""},{"$f":"LEFT(Template!E243,2)","v":""},{"$f":"LEFT(Template!F243,3)","v":""},{"$f":"LEFT(Template!G243,10)","v":""},{"$f":"LEFT(Template!H243,6)","v":""},{"$f":"LEFT(Template!I243,4)","v":""},{"$f":"LEFT(Template!J243,6)","v":""},{"$f":"LEFT(Template!K243,6)","v":""},{"$f":"LEFT(Template!L243,3)","v":""},{"$f":"IF(Template!M243=\"\",\"\",Template!M243)","v":""},{"$f":"IF(Template!N243=\"\",\"\",Template!N243)","v":""},null,null,null,null,null,{"$f":"IF(Template!O243=\"\",\"\",Template!O243)","v":""}]
[{"$f":"LEFT(Template!A244,4)","v":""},{"$f":"LEFT(Template!B244,5)","v":""},{"$f":"LEFT(Template!C244,7)","v":""},{"$f":"LEFT(Template!D244,6)","v":""},{"$f":"LEFT(Template!E244,2)","v":""},{"$f":"LEFT(Template!F244,3)","v":""},{"$f":"LEFT(Template!G244,10)","v":""},{"$f":"LEFT(Template!H244,6)","v":""},{"$f":"LEFT(Template!I244,4)","v":""},{"$f":"LEFT(Template!J244,6)","v":""},{"$f":"LEFT(Template!K244,6)","v":""},{"$f":"LEFT(Template!L244,3)","v":""},{"$f":"IF(Template!M244=\"\",\"\",Template!M244)","v":""},{"$f":"IF(Template!N244=\"\",\"\",Template!N244)","v":""},null,null,null,null,null,{"$f":"IF(Template!O244=\"\",\"\",Template!O244)","v":""}]
[{"$f":"LEFT(Template!A245,4)","v":""},{"$f":"LEFT(Template!B245,5)","v":""},{"$f":"LEFT(Template!C245,7)","v":""},{"$f":"LEFT(Template!D245,6)","v":""},{"$f":"LEFT(Template!E245,2)","v":""},{"$f":"LEFT(Template!F245,3)","v":""},{"$f":"LEFT(Template!G245,10)","v":""},{"$f":"LEFT(Template!H245,6)","v":""},{"$f":"LEFT(Template!I245,4)","v":""},{"$f":"LEFT(Template!J245,6)","v":""},{"$f":"LEFT(Template!K245,6)","v":""},{"$f":"LEFT(Template!L245,3)","v":""},{"$f":"IF(Template!M245=\"\",\"\",Template!M245)","v":""},{"$f":"IF(Template!N245=\"\",\"\",Template!N245)","v":""},null,null,null,null,null,{"$f":"IF(Template!O245=\"\",\"\",Template!O245)","v":""}]
[{"$f":"LEFT(Template!A246,4)","v":""},{"$f":"LEFT(Template!B246,5)","v":""},{"$f":"LEFT(Template!C246,7)","v":""},{"$f":"LEFT(Template!D246,6)","v":""},{"$f":"LEFT(Template!E246,2)","v":""},{"$f":"LEFT(Template!F246,3)","v":""},{"$f":"LEFT(Template!G246,10)","v":""},{"$f":"LEFT(Template!H246,6)","v":""},{"$f":"LEFT(Template!I246,4)","v":""},{"$f":"LEFT(Template!J246,6)","v":""},{"$f":"LEFT(Template!K246,6)","v":""},{"$f":"LEFT(Template!L246,3)","v":""},{"$f":"IF(Template!M246=\"\",\"\",Template!M246)","v":""},{"$f":"IF(Template!N246=\"\",\"\",Template!N246)","v":""},null,null,null,null,null,{"$f":"IF(Template!O246=\"\",\"\",Template!O246)","v":""}]
[{"$f":"LEFT(Template!A247,4)","v":""},{"$f":"LEFT(Template!B247,5)","v":""},{"$f":"LEFT(Template!C247,7)","v":""},{"$f":"LEFT(Template!D247,6)","v":""},{"$f":"LEFT(Template!E247,2)","v":""},{"$f":"LEFT(Template!F247,3)","v":""},{"$f":"LEFT(Template!G247,10)","v":""},{"$f":"LEFT(Template!H247,6)","v":""},{"$f":"LEFT(Template!I247,4)","v":""},{"$f":"LEFT(Template!J247,6)","v":""},{"$f":"LEFT(Template!K247,6)","v":""},{"$f":"LEFT(Template!L247,3)","v":""},{"$f":"IF(Template!M247=\"\",\"\",Template!M247)","v":""},{"$f":"IF(Template!N247=\"\",\"\",Template!N247)","v":""},null,null,null,null,null,{"$f":"IF(Template!O247=\"\",\"\",Template!O247)","v":""}]
[{"$f":"LEFT(Template!A248,4)","v":""},{"$f":"LEFT(Template!B248,5)","v":""},{"$f":"LEFT(Template!C248,7)","v":""},{"$f":"LEFT(Template!D248,6)","v":""},{"$f":"LEFT(Template!E248,2)","v":""},{"$f":"LEFT(Template!F248,3)","v":""},{"$f":"LEFT(Template!G248,10)","v":""},{"$f":"LEFT(Template!H248,6)","v":""},{"$f":"LEFT(Template!I248,4)","v":""},{"$f":"LEFT(Template!J248,6)","v":""},{"$f":"LEFT(Template!K248,6)","v":""},{"$f":"LEFT(Template!L248,3)","v":""},{"$f":"IF(Template!M248=\"\",\"\",Template!M248)","v":""},{"$f":"IF(Template!N248=\"\",\"\",Template!N248)","v":""},null,null,null,null,null,{"$f":"IF(Template!O248=\"\",\"\",Template!O248)","v":""}]
[{"$f":"LEFT(Template!A249,4)","v":""},{"$f":"LEFT(Template!B249,5)","v":""},{"$f":"LEFT(Template!C249,7)","v":""},{"$f":"LEFT(Template!D249,6)","v":""},{"$f":"LEFT(Template!E249,2)","v":""},{"$f":"LEFT(Template!F249,3)","v":""},{"$f":"LEFT(Template!G249,10)","v":""},{"$f":"LEFT(Template!H249,6)","v":""},{"$f":"LEFT(Template!I249,4)","v":""},{"$f":"LEFT(Template!J249,6)","v":""},{"$f":"LEFT(Template!K249,6)","v":""},{"$f":"LEFT(Template!L249,3)","v":""},{"$f":"IF(Template!M249=\"\",\"\",Template!M249)","v":""},{"$f":"IF(Template!N249=\"\",\"\",Template!N249)","v":""},null,null,null,null,null,{"$f":"IF(Template!O249=\"\",\"\",Template!O249)","v":""}]
[{"$f":"LEFT(Template!A250,4)","v":""},{"$f":"LEFT(Template!B250,5)","v":""},{"$f":"LEFT(Template!C250,7)","v":""},{"$f":"LEFT(Template!D250,6)","v":""},{"$f":"LEFT(Template!E250,2)","v":""},{"$f":"LEFT(Template!F250,3)","v":""},{"$f":"LEFT(Template!G250,10)","v":""},{"$f":"LEFT(Template!H250,6)","v":""},{"$f":"LEFT(Template!I250,4)","v":""},{"$f":"LEFT(Template!J250,6)","v":""},{"$f":"LEFT(Template!K250,6)","v":""},{"$f":"LEFT(Template!L250,3)","v":""},{"$f":"IF(Template!M250=\"\",\"\",Template!M250)","v":""},{"$f":"IF(Template!N250=\"\",\"\",Template!N250)","v":""},null,null,null,null,null,{"$f":"IF(Template!O250=\"\",\"\",Template!O250)","v":""}]
[{"$f":"LEFT(Template!A251,4)","v":""},{"$f":"LEFT(Template!B251,5)","v":""},{"$f":"LEFT(Template!C251,7)","v":""},{"$f":"LEFT(Template!D251,6)","v":""},{"$f":"LEFT(Template!E251,2)","v":""},{"$f":"LEFT(Template!F251,3)","v":""},{"$f":"LEFT(Template!G251,10)","v":""},{"$f":"LEFT(Template!H251,6)","v":""},{"$f":"LEFT(Template!I251,4)","v":""},{"$f":"LEFT(Template!J251,6)","v":""},{"$f":"LEFT(Template!K251,6)","v":""},{"$f":"LEFT(Template!L251,3)","v":""},{"$f":"IF(Template!M251=\"\",\"\",Template!M251)","v":""},{"$f":"IF(Template!N251=\"\",\"\",Template!N251)","v":""},null,null,null,null,null,{"$f":"IF(Template!O251=\"\",\"\",Template!O251)","v":""}]
[{"$f":"LEFT(Template!A252,4)","v":""},{"$f":"LEFT(Template!B252,5)","v":""},{"$f":"LEFT(Template!C252,7)","v":""},{"$f":"LEFT(Template!D252,6)","v":""},{"$f":"LEFT(Template!E252,2)","v":""},{"$f":"LEFT(Template!F252,3)","v":""},{"$f":"LEFT(Template!G252,10)","v":""},{"$f":"LEFT(Template!H252,6)","v":""},{"$f":"LEFT(Template!I252,4)","v":""},{"$f":"LEFT(Template!J252,6)","v":""},{"$f":"LEFT(Template!K252,6)","v":""},{"$f":"LEFT(Template!L252,3)","v":""},{"$f":"IF(Template!M252=\"\",\"\",Template!M252)","v":""},{"$f":"IF(Template!N252=\"\",\"\",Template!N252)","v":""},null,null,null,null,null,{"$f":"IF(Template!O252=\"\",\"\",Template!O252)","v":""}]
[{"$f":"LEFT(Template!A253,4)","v":""},{"$f":"LEFT(Template!B253,5)","v":""},{"$f":"LEFT(Template!C253,7)","v":""},{"$f":"LEFT(Template!D253,6)","v":""},{"$f":"LEFT(Template!E253,2)","v":""},{"$f":"LEFT(Template!F253,3)","v":""},{"$f":"LEFT(Template!G253,10)","v":""},{"$f":"LEFT(Template!H253,6)","v":""},{"$f":"LEFT(Template!I253,4)","v":""},{"$f":"LEFT(Template!J253,6)","v":""},{"$f":"LEFT(Template!K253,6)","v":""},{"$f":"LEFT(Template!L253,3)","v":""},{"$f":"IF(Template!M253=\"\",\"\",Template!M253)","v":""},{"$f":"IF(Template!N253=\"\",\"\",Template!N253)","v":""},null,null,null,null,null,{"$f":"IF(Template!O253=\"\",\"\",Template!O253)","v":""}]
[{"$f":"LEFT(Template!A254,4)","v":""},{"$f":"LEFT(Template!B254,5)","v":""},{"$f":"LEFT(Template!C254,7)","v":""},{"$f":"LEFT(Template!D254,6)","v":""},{"$f":"LEFT(Template!E254,2)","v":""},{"$f":"LEFT(Template!F254,3)","v":""},{"$f":"LEFT(Template!G254,10)","v":""},{"$f":"LEFT(Template!H254,6)","v":""},{"$f":"LEFT(Template!I254,4)","v":""},{"$f":"LEFT(Template!J254,6)","v":""},{"$f":"LEFT(Template!K254,6)","v":""},{"$f":"LEFT(Template!L254,3)","v":""},{"$f":"IF(Template!M254=\"\",\"\",Template!M254)","v":""},{"$f":"IF(Template!N254=\"\",\"\",Template!N254)","v":""},null,null,null,null,null,{"$f":"IF(Template!O254=\"\",\"\",Template!O254)","v":""}]
[{"$f":"LEFT(Template!A255,4)","v":""},{"$f":"LEFT(Template!B255,5)","v":""},{"$f":"LEFT(Template!C255,7)","v":""},{"$f":"LEFT(Template!D255,6)","v":""},{"$f":"LEFT(Template!E255,2)","v":""},{"$f":"LEFT(Template!F255,3)","v":""},{"$f":"LEFT(Template!G255,10)","v":""},{"$f":"LEFT(Template!H255,6)","v":""},{"$f":"LEFT(Template!I255,4)","v":""},{"$f":"LEFT(Template!J255,6)","v":""},{"$f":"LEFT(Template!K255,6)","v":""},{"$f":"LEFT(Template!L255,3)","v":""},{"$f":"IF(Template!M255=\"\",\"\",Template!M255)","v":""},{"$f":"IF(Template!N255=\"\",\"\",Template!N255)","v":""},null,null,null,null,null,{"$f":"IF(Template!O255=\"\",\"\",Template!O255)","v":""}]
[{"$f":"LEFT(Template!A256,4)","v":""},{"$f":"LEFT(Template!B256,5)","v":""},{"$f":"LEFT(Template!C256,7)","v":""},{"$f":"LEFT(Template!D256,6)","v":""},{"$f":"LEFT(Template!E256,2)","v":""},{"$f":"LEFT(Template!F256,3)","v":""},{"$f":"LEFT(Template!G256,10)","v":""},{"$f":"LEFT(Template!H256,6)","v":""},{"$f":"LEFT(Template!I256,4)","v":""},{"$f":"LEFT(Template!J256,6)","v":""},{"$f":"LEFT(Template!K256,6)","v":""},{"$f":"LEFT(Template!L256,3)","v":""},{"$f":"IF(Template!M256=\"\",\"\",Template!M256)","v":""},{"$f":"IF(Template!N256=\"\",\"\",Template!N256)","v":""},null,null,null,null,null,{"$f":"IF(Template!O256=\"\",\"\",Template!O256)","v":""}]
[{"$f":"LEFT(Template!A257,4)","v":""},{"$f":"LEFT(Template!B257,5)","v":""},{"$f":"LEFT(Template!C257,7)","v":""},{"$f":"LEFT(Template!D257,6)","v":""},{"$f":"LEFT(Template!E257,2)","v":""},{"$f":"LEFT(Template!F257,3)","v":""},{"$f":"LEFT(Template!G257,10)","v":""},{"$f":"LEFT(Template!H257,6)","v":""},{"$f":"LEFT(Template!I257,4)","v":""},{"$f":"LEFT(Template!J257,6)","v":""},{"$f":"LEFT(Template!K257,6)","v":""},{"$f":"LEFT(Template!L257,3)","v":""},{"$f":"IF(Template!M257=\"\",\"\",Template!M257)","v":""},{"$f":"IF(Template!N257=\"\",\"\",Template!N257)","v":""},null,null,null,null,null,{"$f":"IF(Template!O257=\"\",\"\",Template!O257)","v":""}]
[{"$f":"LEFT(Template!A258,4)","v":""},{"$f":"LEFT(Template!B258,5)","v":""},{"$f":"LEFT(Template!C258,7)","v":""},{"$f":"LEFT(Template!D258,6)","v":""},{"$f":"LEFT(Template!E258,2)","v":""},{"$f":"LEFT(Template!F258,3)","v":""},{"$f":"LEFT(Template!G258,10)","v":""},{"$f":"LEFT(Template!H258,6)","v":""},{"$f":"LEFT(Template!I258,4)","v":""},{"$f":"LEFT(Template!J258,6)","v":""},{"$f":"LEFT(Template!K258,6)","v":""},{"$f":"LEFT(Template!L258,3)","v":""},{"$f":"IF(Template!M258=\"\",\"\",Template!M258)","v":""},{"$f":"IF(Template!N258=\"\",\"\",Template!N258)","v":""},null,null,null,null,null,{"$f":"IF(Template!O258=\"\",\"\",Template!O258)","v":""}]
[{"$f":"LEFT(Template!A259,4)","v":""},{"$f":"LEFT(Template!B259,5)","v":""},{"$f":"LEFT(Template!C259,7)","v":""},{"$f":"LEFT(Template!D259,6)","v":""},{"$f":"LEFT(Template!E259,2)","v":""},{"$f":"LEFT(Template!F259,3)","v":""},{"$f":"LEFT(Template!G259,10)","v":""},{"$f":"LEFT(Template!H259,6)","v":""},{"$f":"LEFT(Template!I259,4)","v":""},{"$f":"LEFT(Template!J259,6)","v":""},{"$f":"LEFT(Template!K259,6)","v":""},{"$f":"LEFT(Template!L259,3)","v":""},{"$f":"IF(Template!M259=\"\",\"\",Template!M259)","v":""},{"$f":"IF(Template!N259=\"\",\"\",Template!N259)","v":""},null,null,null,null,null,{"$f":"IF(Template!O259=\"\",\"\",Template!O259)","v":""}]
[{"$f":"LEFT(Template!A260,4)","v":""},{"$f":"LEFT(Template!B260,5)","v":""},{"$f":"LEFT(Template!C260,7)","v":""},{"$f":"LEFT(Template!D260,6)","v":""},{"$f":"LEFT(Template!E260,2)","v":""},{"$f":"LEFT(Template!F260,3)","v":""},{"$f":"LEFT(Template!G260,10)","v":""},{"$f":"LEFT(Template!H260,6)","v":""},{"$f":"LEFT(Template!I260,4)","v":""},{"$f":"LEFT(Template!J260,6)","v":""},{"$f":"LEFT(Template!K260,6)","v":""},{"$f":"LEFT(Template!L260,3)","v":""},{"$f":"IF(Template!M260=\"\",\"\",Template!M260)","v":""},{"$f":"IF(Template!N260=\"\",\"\",Template!N260)","v":""},null,null,null,null,null,{"$f":"IF(Template!O260=\"\",\"\",Template!O260)","v":""}]
[{"$f":"LEFT(Template!A261,4)","v":""},{"$f":"LEFT(Template!B261,5)","v":""},{"$f":"LEFT(Template!C261,7)","v":""},{"$f":"LEFT(Template!D261,6)","v":""},{"$f":"LEFT(Template!E261,2)","v":""},{"$f":"LEFT(Template!F261,3)","v":""},{"$f":"LEFT(Template!G261,10)","v":""},{"$f":"LEFT(Template!H261,6)","v":""},{"$f":"LEFT(Template!I261,4)","v":""},{"$f":"LEFT(Template!J261,6)","v":""},{"$f":"LEFT(Template!K261,6)","v":""},{"$f":"LEFT(Template!L261,3)","v":""},{"$f":"IF(Template!M261=\"\",\"\",Template!M261)","v":""},{"$f":"IF(Template!N261=\"\",\"\",Template!N261)","v":""},null,null,null,null,null,{"$f":"IF(Template!O261=\"\",\"\",Template!O261)","v":""}]
[{"$f":"LEFT(Template!A262,4)","v":""},{"$f":"LEFT(Template!B262,5)","v":""},{"$f":"LEFT(Template!C262,7)","v":""},{"$f":"LEFT(Template!D262,6)","v":""},{"$f":"LEFT(Template!E262,2)","v":""},{"$f":"LEFT(Template!F262,3)","v":""},{"$f":"LEFT(Template!G262,10)","v":""},{"$f":"LEFT(Template!H262,6)","v":""},{"$f":"LEFT(Template!I262,4)","v":""},{"$f":"LEFT(Template!J262,6)","v":""},{"$f":"LEFT(Template!K262,6)","v":""},{"$f":"LEFT(Template!L262,3)","v":""},{"$f":"IF(Template!M262=\"\",\"\",Template!M262)","v":""},{"$f":"IF(Template!N262=\"\",\"\",Template!N262)","v":""},null,null,null,null,null,{"$f":"IF(Template!O262=\"\",\"\",Template!O262)","v":""}]
[{"$f":"LEFT(Template!A263,4)","v":""},{"$f":"LEFT(Template!B263,5)","v":""},{"$f":"LEFT(Template!C263,7)","v":""},{"$f":"LEFT(Template!D263,6)","v":""},{"$f":"LEFT(Template!E263,2)","v":""},{"$f":"LEFT(Template!F263,3)","v":""},{"$f":"LEFT(Template!G263,10)","v":""},{"$f":"LEFT(Template!H263,6)","v":""},{"$f":"LEFT(Template!I263,4)","v":""},{"$f":"LEFT(Template!J263,6)","v":""},{"$f":"LEFT(Template!K263,6)","v":""},{"$f":"LEFT(Template!L263,3)","v":""},{"$f":"IF(Template!M263=\"\",\"\",Template!M263)","v":""},{"$f":"IF(Template!N263=\"\",\"\",Template!N263)","v":""},null,null,null,null,null,{"$f":"IF(Template!O263=\"\",\"\",Template!O263)","v":""}]
[{"$f":"LEFT(Template!A264,4)","v":""},{"$f":"LEFT(Template!B264,5)","v":""},{"$f":"LEFT(Template!C264,7)","v":""},{"$f":"LEFT(Template!D264,6)","v":""},{"$f":"LEFT(Template!E264,2)","v":""},{"$f":"LEFT(Template!F264,3)","v":""},{"$f":"LEFT(Template!G264,10)","v":""},{"$f":"LEFT(Template!H264,6)","v":""},{"$f":"LEFT(Template!I264,4)","v":""},{"$f":"LEFT(Template!J264,6)","v":""},{"$f":"LEFT(Template!K264,6)","v":""},{"$f":"LEFT(Template!L264,3)","v":""},{"$f":"IF(Template!M264=\"\",\"\",Template!M264)","v":""},{"$f":"IF(Template!N264=\"\",\"\",Template!N264)","v":""},null,null,null,null,null,{"$f":"IF(Template!O264=\"\",\"\",Template!O264)","v":""}]
[{"$f":"LEFT(Template!A265,4)","v":""},{"$f":"LEFT(Template!B265,5)","v":""},{"$f":"LEFT(Template!C265,7)","v":""},{"$f":"LEFT(Template!D265,6)","v":""},{"$f":"LEFT(Template!E265,2)","v":""},{"$f":"LEFT(Template!F265,3)","v":""},{"$f":"LEFT(Template!G265,10)","v":""},{"$f":"LEFT(Template!H265,6)","v":""},{"$f":"LEFT(Template!I265,4)","v":""},{"$f":"LEFT(Template!J265,6)","v":""},{"$f":"LEFT(Template!K265,6)","v":""},{"$f":"LEFT(Template!L265,3)","v":""},{"$f":"IF(Template!M265=\"\",\"\",Template!M265)","v":""},{"$f":"IF(Template!N265=\"\",\"\",Template!N265)","v":""},null,null,null,null,null,{"$f":"IF(Template!O265=\"\",\"\",Template!O265)","v":""}]
[{"$f":"LEFT(Template!A266,4)","v":""},{"$f":"LEFT(Template!B266,5)","v":""},{"$f":"LEFT(Template!C266,7)","v":""},{"$f":"LEFT(Template!D266,6)","v":""},{"$f":"LEFT(Template!E266,2)","v":""},{"$f":"LEFT(Template!F266,3)","v":""},{"$f":"LEFT(Template!G266,10)","v":""},{"$f":"LEFT(Template!H266,6)","v":""},{"$f":"LEFT(Template!I266,4)","v":""},{"$f":"LEFT(Template!J266,6)","v":""},{"$f":"LEFT(Template!K266,6)","v":""},{"$f":"LEFT(Template!L266,3)","v":""},{"$f":"IF(Template!M266=\"\",\"\",Template!M266)","v":""},{"$f":"IF(Template!N266=\"\",\"\",Template!N266)","v":""},null,null,null,null,null,{"$f":"IF(Template!O266=\"\",\"\",Template!O266)","v":""}]
[{"$f":"LEFT(Template!A267,4)","v":""},{"$f":"LEFT(Template!B267,5)","v":""},{"$f":"LEFT(Template!C267,7)","v":""},{"$f":"LEFT(Template!D267,6)","v":""},{"$f":"LEFT(Template!E267,2)","v":""},{"$f":"LEFT(Template!F267,3)","v":""},{"$f":"LEFT(Template!G267,10)","v":""},{"$f":"LEFT(Template!H267,6)","v":""},{"$f":"LEFT(Template!I267,4)","v":""},{"$f":"LEFT(Template!J267,6)","v":""},{"$f":"LEFT(Template!K267,6)","v":""},{"$f":"LEFT(Template!L267,3)","v":""},{"$f":"IF(Template!M267=\"\",\"\",Template!M267)","v":""},{"$f":"IF(Template!N267=\"\",\"\",Template!N267)","v":""},null,null,null,null,null,{"$f":"IF(Template!O267=\"\",\"\",Template!O267)","v":""}]
[{"$f":"LEFT(Template!A268,4)","v":""},{"$f":"LEFT(Template!B268,5)","v":""},{"$f":"LEFT(Template!C268,7)","v":""},{"$f":"LEFT(Template!D268,6)","v":""},{"$f":"LEFT(Template!E268,2)","v":""},{"$f":"LEFT(Template!F268,3)","v":""},{"$f":"LEFT(Template!G268,10)","v":""},{"$f":"LEFT(Template!H268,6)","v":""},{"$f":"LEFT(Template!I268,4)","v":""},{"$f":"LEFT(Template!J268,6)","v":""},{"$f":"LEFT(Template!K268,6)","v":""},{"$f":"LEFT(Template!L268,3)","v":""},{"$f":"IF(Template!M268=\"\",\"\",Template!M268)","v":""},{"$f":"IF(Template!N268=\"\",\"\",Template!N268)","v":""},null,null,null,null,null,{"$f":"IF(Template!O268=\"\",\"\",Template!O268)","v":""}]
[{"$f":"LEFT(Template!A269,4)","v":""},{"$f":"LEFT(Template!B269,5)","v":""},{"$f":"LEFT(Template!C269,7)","v":""},{"$f":"LEFT(Template!D269,6)","v":""},{"$f":"LEFT(Template!E269,2)","v":""},{"$f":"LEFT(Template!F269,3)","v":""},{"$f":"LEFT(Template!G269,10)","v":""},{"$f":"LEFT(Template!H269,6)","v":""},{"$f":"LEFT(Template!I269,4)","v":""},{"$f":"LEFT(Template!J269,6)","v":""},{"$f":"LEFT(Template!K269,6)","v":""},{"$f":"LEFT(Template!L269,3)","v":""},{"$f":"IF(Template!M269=\"\",\"\",Template!M269)","v":""},{"$f":"IF(Template!N269=\"\",\"\",Template!N269)","v":""},null,null,null,null,null,{"$f":"IF(Template!O269=\"\",\"\",Template!O269)","v":""}]
[{"$f":"LEFT(Template!A270,4)","v":""},{"$f":"LEFT(Template!B270,5)","v":""},{"$f":"LEFT(Template!C270,7)","v":""},{"$f":"LEFT(Template!D270,6)","v":""},{"$f":"LEFT(Template!E270,2)","v":""},{"$f":"LEFT(Template!F270,3)","v":""},{"$f":"LEFT(Template!G270,10)","v":""},{"$f":"LEFT(Template!H270,6)","v":""},{"$f":"LEFT(Template!I270,4)","v":""},{"$f":"LEFT(Template!J270,6)","v":""},{"$f":"LEFT(Template!K270,6)","v":""},{"$f":"LEFT(Template!L270,3)","v":""},{"$f":"IF(Template!M270=\"\",\"\",Template!M270)","v":""},{"$f":"IF(Template!N270=\"\",\"\",Template!N270)","v":""},null,null,null,null,null,{"$f":"IF(Template!O270=\"\",\"\",Template!O270)","v":""}]
[{"$f":"LEFT(Template!A271,4)","v":""},{"$f":"LEFT(Template!B271,5)","v":""},{"$f":"LEFT(Template!C271,7)","v":""},{"$f":"LEFT(Template!D271,6)","v":""},{"$f":"LEFT(Template!E271,2)","v":""},{"$f":"LEFT(Template!F271,3)","v":""},{"$f":"LEFT(Template!G271,10)","v":""},{"$f":"LEFT(Template!H271,6)","v":""},{"$f":"LEFT(Template!I271,4)","v":""},{"$f":"LEFT(Template!J271,6)","v":""},{"$f":"LEFT(Template!K271,6)","v":""},{"$f":"LEFT(Template!L271,3)","v":""},{"$f":"IF(Template!M271=\"\",\"\",Template!M271)","v":""},{"$f":"IF(Template!N271=\"\",\"\",Template!N271)","v":""},null,null,null,null,null,{"$f":"IF(Template!O271=\"\",\"\",Template!O271)","v":""}]
[{"$f":"LEFT(Template!A272,4)","v":""},{"$f":"LEFT(Template!B272,5)","v":""},{"$f":"LEFT(Template!C272,7)","v":""},{"$f":"LEFT(Template!D272,6)","v":""},{"$f":"LEFT(Template!E272,2)","v":""},{"$f":"LEFT(Template!F272,3)","v":""},{"$f":"LEFT(Template!G272,10)","v":""},{"$f":"LEFT(Template!H272,6)","v":""},{"$f":"LEFT(Template!I272,4)","v":""},{"$f":"LEFT(Template!J272,6)","v":""},{"$f":"LEFT(Template!K272,6)","v":""},{"$f":"LEFT(Template!L272,3)","v":""},{"$f":"IF(Template!M272=\"\",\"\",Template!M272)","v":""},{"$f":"IF(Template!N272=\"\",\"\",Template!N272)","v":""},null,null,null,null,null,{"$f":"IF(Template!O272=\"\",\"\",Template!O272)","v":""}]
[{"$f":"LEFT(Template!A273,4)","v":""},{"$f":"LEFT(Template!B273,5)","v":""},{"$f":"LEFT(Template!C273,7)","v":""},{"$f":"LEFT(Template!D273,6)","v":""},{"$f":"LEFT(Template!E273,2)","v":""},{"$f":"LEFT(Template!F273,3)","v":""},{"$f":"LEFT(Template!G273,10)","v":""},{"$f":"LEFT(Template!H273,6)","v":""},{"$f":"LEFT(Template!I273,4)","v":""},{"$f":"LEFT(Template!J273,6)","v":""},{"$f":"LEFT(Template!K273,6)","v":""},{"$f":"LEFT(Template!L273,3)","v":""},{"$f":"IF(Template!M273=\"\",\"\",Template!M273)","v":""},{"$f":"IF(Template!N273=\"\",\"\",Template!N273)","v":""},null,null,null,null,null,{"$f":"IF(Template!O273=\"\",\"\",Template!O273)","v":""}]
[{"$f":"LEFT(Template!A274,4)","v":""},{"$f":"LEFT(Template!B274,5)","v":""},{"$f":"LEFT(Template!C274,7)","v":""},{"$f":"LEFT(Template!D274,6)","v":""},{"$f":"LEFT(Template!E274,2)","v":""},{"$f":"LEFT(Template!F274,3)","v":""},{"$f":"LEFT(Template!G274,10)","v":""},{"$f":"LEFT(Template!H274,6)","v":""},{"$f":"LEFT(Template!I274,4)","v":""},{"$f":"LEFT(Template!J274,6)","v":""},{"$f":"LEFT(Template!K274,6)","v":""},{"$f":"LEFT(Template!L274,3)","v":""},{"$f":"IF(Template!M274=\"\",\"\",Template!M274)","v":""},{"$f":"IF(Template!N274=\"\",\"\",Template!N274)","v":""},null,null,null,null,null,{"$f":"IF(Template!O274=\"\",\"\",Template!O274)","v":""}]
[{"$f":"LEFT(Template!A275,4)","v":""},{"$f":"LEFT(Template!B275,5)","v":""},{"$f":"LEFT(Template!C275,7)","v":""},{"$f":"LEFT(Template!D275,6)","v":""},{"$f":"LEFT(Template!E275,2)","v":""},{"$f":"LEFT(Template!F275,3)","v":""},{"$f":"LEFT(Template!G275,10)","v":""},{"$f":"LEFT(Template!H275,6)","v":""},{"$f":"LEFT(Template!I275,4)","v":""},{"$f":"LEFT(Template!J275,6)","v":""},{"$f":"LEFT(Template!K275,6)","v":""},{"$f":"LEFT(Template!L275,3)","v":""},{"$f":"IF(Template!M275=\"\",\"\",Template!M275)","v":""},{"$f":"IF(Template!N275=\"\",\"\",Template!N275)","v":""},null,null,null,null,null,{"$f":"IF(Template!O275=\"\",\"\",Template!O275)","v":""}]
[{"$f":"LEFT(Template!A276,4)","v":""},{"$f":"LEFT(Template!B276,5)","v":""},{"$f":"LEFT(Template!C276,7)","v":""},{"$f":"LEFT(Template!D276,6)","v":""},{"$f":"LEFT(Template!E276,2)","v":""},{"$f":"LEFT(Template!F276,3)","v":""},{"$f":"LEFT(Template!G276,10)","v":""},{"$f":"LEFT(Template!H276,6)","v":""},{"$f":"LEFT(Template!I276,4)","v":""},{"$f":"LEFT(Template!J276,6)","v":""},{"$f":"LEFT(Template!K276,6)","v":""},{"$f":"LEFT(Template!L276,3)","v":""},{"$f":"IF(Template!M276=\"\",\"\",Template!M276)","v":""},{"$f":"IF(Template!N276=\"\",\"\",Template!N276)","v":""},null,null,null,null,null,{"$f":"IF(Template!O276=\"\",\"\",Template!O276)","v":""}]
[{"$f":"LEFT(Template!A277,4)","v":""},{"$f":"LEFT(Template!B277,5)","v":""},{"$f":"LEFT(Template!C277,7)","v":""},{"$f":"LEFT(Template!D277,6)","v":""},{"$f":"LEFT(Template!E277,2)","v":""},{"$f":"LEFT(Template!F277,3)","v":""},{"$f":"LEFT(Template!G277,10)","v":""},{"$f":"LEFT(Template!H277,6)","v":""},{"$f":"LEFT(Template!I277,4)","v":""},{"$f":"LEFT(Template!J277,6)","v":""},{"$f":"LEFT(Template!K277,6)","v":""},{"$f":"LEFT(Template!L277,3)","v":""},{"$f":"IF(Template!M277=\"\",\"\",Template!M277)","v":""},{"$f":"IF(Template!N277=\"\",\"\",Template!N277)","v":""},null,null,null,null,null,{"$f":"IF(Template!O277=\"\",\"\",Template!O277)","v":""}]
[{"$f":"LEFT(Template!A278,4)","v":""},{"$f":"LEFT(Template!B278,5)","v":""},{"$f":"LEFT(Template!C278,7)","v":""},{"$f":"LEFT(Template!D278,6)","v":""},{"$f":"LEFT(Template!E278,2)","v":""},{"$f":"LEFT(Template!F278,3)","v":""},{"$f":"LEFT(Template!G278,10)","v":""},{"$f":"LEFT(Template!H278,6)","v":""},{"$f":"LEFT(Template!I278,4)","v":""},{"$f":"LEFT(Template!J278,6)","v":""},{"$f":"LEFT(Template!K278,6)","v":""},{"$f":"LEFT(Template!L278,3)","v":""},{"$f":"IF(Template!M278=\"\",\"\",Template!M278)","v":""},{"$f":"IF(Template!N278=\"\",\"\",Template!N278)","v":""},null,null,null,null,null,{"$f":"IF(Template!O278=\"\",\"\",Template!O278)","v":""}]
[{"$f":"LEFT(Template!A279,4)","v":""},{"$f":"LEFT(Template!B279,5)","v":""},{"$f":"LEFT(Template!C279,7)","v":""},{"$f":"LEFT(Template!D279,6)","v":""},{"$f":"LEFT(Template!E279,2)","v":""},{"$f":"LEFT(Template!F279,3)","v":""},{"$f":"LEFT(Template!G279,10)","v":""},{"$f":"LEFT(Template!H279,6)","v":""},{"$f":"LEFT(Template!I279,4)","v":""},{"$f":"LEFT(Template!J279,6)","v":""},{"$f":"LEFT(Template!K279,6)","v":""},{"$f":"LEFT(Template!L279,3)","v":""},{"$f":"IF(Template!M279=\"\",\"\",Template!M279)","v":""},{"$f":"IF(Template!N279=\"\",\"\",Template!N279)","v":""},null,null,null,null,null,{"$f":"IF(Template!O279=\"\",\"\",Template!O279)","v":""}]
[{"$f":"LEFT(Template!A280,4)","v":""},{"$f":"LEFT(Template!B280,5)","v":""},{"$f":"LEFT(Template!C280,7)","v":""},{"$f":"LEFT(Template!D280,6)","v":""},{"$f":"LEFT(Template!E280,2)","v":""},{"$f":"LEFT(Template!F280,3)","v":""},{"$f":"LEFT(Template!G280,10)","v":""},{"$f":"LEFT(Template!H280,6)","v":""},{"$f":"LEFT(Template!I280,4)","v":""},{"$f":"LEFT(Template!J280,6)","v":""},{"$f":"LEFT(Template!K280,6)","v":""},{"$f":"LEFT(Template!L280,3)","v":""},{"$f":"IF(Template!M280=\"\",\"\",Template!M280)","v":""},{"$f":"IF(Template!N280=\"\",\"\",Template!N280)","v":""},null,null,null,null,null,{"$f":"IF(Template!O280=\"\",\"\",Template!O280)","v":""}]
[{"$f":"LEFT(Template!A281,4)","v":""},{"$f":"LEFT(Template!B281,5)","v":""},{"$f":"LEFT(Template!C281,7)","v":""},{"$f":"LEFT(Template!D281,6)","v":""},{"$f":"LEFT(Template!E281,2)","v":""},{"$f":"LEFT(Template!F281,3)","v":""},{"$f":"LEFT(Template!G281,10)","v":""},{"$f":"LEFT(Template!H281,6)","v":""},{"$f":"LEFT(Template!I281,4)","v":""},{"$f":"LEFT(Template!J281,6)","v":""},{"$f":"LEFT(Template!K281,6)","v":""},{"$f":"LEFT(Template!L281,3)","v":""},{"$f":"IF(Template!M281=\"\",\"\",Template!M281)","v":""},{"$f":"IF(Template!N281=\"\",\"\",Template!N281)","v":""},null,null,null,null,null,{"$f":"IF(Template!O281=\"\",\"\",Template!O281)","v":""}]
[{"$f":"LEFT(Template!A282,4)","v":""},{"$f":"LEFT(Template!B282,5)","v":""},{"$f":"LEFT(Template!C282,7)","v":""},{"$f":"LEFT(Template!D282,6)","v":""},{"$f":"LEFT(Template!E282,2)","v":""},{"$f":"LEFT(Template!F282,3)","v":""},{"$f":"LEFT(Template!G282,10)","v":""},{"$f":"LEFT(Template!H282,6)","v":""},{"$f":"LEFT(Template!I282,4)","v":""},{"$f":"LEFT(Template!J282,6)","v":""},{"$f":"LEFT(Template!K282,6)","v":""},{"$f":"LEFT(Template!L282,3)","v":""},{"$f":"IF(Template!M282=\"\",\"\",Template!M282)","v":""},{"$f":"IF(Template!N282=\"\",\"\",Template!N282)","v":""},null,null,null,null,null,{"$f":"IF(Template!O282=\"\",\"\",Template!O282)","v":""}]
[{"$f":"LEFT(Template!A283,4)","v":""},{"$f":"LEFT(Template!B283,5)","v":""},{"$f":"LEFT(Template!C283,7)","v":""},{"$f":"LEFT(Template!D283,6)","v":""},{"$f":"LEFT(Template!E283,2)","v":""},{"$f":"LEFT(Template!F283,3)","v":""},{"$f":"LEFT(Template!G283,10)","v":""},{"$f":"LEFT(Template!H283,6)","v":""},{"$f":"LEFT(Template!I283,4)","v":""},{"$f":"LEFT(Template!J283,6)","v":""},{"$f":"LEFT(Template!K283,6)","v":""},{"$f":"LEFT(Template!L283,3)","v":""},{"$f":"IF(Template!M283=\"\",\"\",Template!M283)","v":""},{"$f":"IF(Template!N283=\"\",\"\",Template!N283)","v":""},null,null,null,null,null,{"$f":"IF(Template!O283=\"\",\"\",Template!O283)","v":""}]
[{"$f":"LEFT(Template!A284,4)","v":""},{"$f":"LEFT(Template!B284,5)","v":""},{"$f":"LEFT(Template!C284,7)","v":""},{"$f":"LEFT(Template!D284,6)","v":""},{"$f":"LEFT(Template!E284,2)","v":""},{"$f":"LEFT(Template!F284,3)","v":""},{"$f":"LEFT(Template!G284,10)","v":""},{"$f":"LEFT(Template!H284,6)","v":""},{"$f":"LEFT(Template!I284,4)","v":""},{"$f":"LEFT(Template!J284,6)","v":""},{"$f":"LEFT(Template!K284,6)","v":""},{"$f":"LEFT(Template!L284,3)","v":""},{"$f":"IF(Template!M284=\"\",\"\",Template!M284)","v":""},{"$f":"IF(Template!N284=\"\",\"\",Template!N284)","v":""},null,null,null,null,null,{"$f":"IF(Template!O284=\"\",\"\",Template!O284)","v":""}]
[{"$f":"LEFT(Template!A285,4)","v":""},{"$f":"LEFT(Template!B285,5)","v":""},{"$f":"LEFT(Template!C285,7)","v":""},{"$f":"LEFT(Template!D285,6)","v":""},{"$f":"LEFT(Template!E285,2)","v":""},{"$f":"LEFT(Template!F285,3)","v":""},{"$f":"LEFT(Template!G285,10)","v":""},{"$f":"LEFT(Template!H285,6)","v":""},{"$f":"LEFT(Template!I285,4)","v":""},{"$f":"LEFT(Template!J285,6)","v":""},{"$f":"LEFT(Template!K285,6)","v":""},{"$f":"LEFT(Template!L285,3)","v":""},{"$f":"IF(Template!M285=\"\",\"\",Template!M285)","v":""},{"$f":"IF(Template!N285=\"\",\"\",Template!N285)","v":""},null,null,null,null,null,{"$f":"IF(Template!O285=\"\",\"\",Template!O285)","v":""}]
[{"$f":"LEFT(Template!A286,4)","v":""},{"$f":"LEFT(Template!B286,5)","v":""},{"$f":"LEFT(Template!C286,7)","v":""},{"$f":"LEFT(Template!D286,6)","v":""},{"$f":"LEFT(Template!E286,2)","v":""},{"$f":"LEFT(Template!F286,3)","v":""},{"$f":"LEFT(Template!G286,10)","v":""},{"$f":"LEFT(Template!H286,6)","v":""},{"$f":"LEFT(Template!I286,4)","v":""},{"$f":"LEFT(Template!J286,6)","v":""},{"$f":"LEFT(Template!K286,6)","v":""},{"$f":"LEFT(Template!L286,3)","v":""},{"$f":"IF(Template!M286=\"\",\"\",Template!M286)","v":""},{"$f":"IF(Template!N286=\"\",\"\",Template!N286)","v":""},null,null,null,null,null,{"$f":"IF(Template!O286=\"\",\"\",Template!O286)","v":""}]
[{"$f":"LEFT(Template!A287,4)","v":""},{"$f":"LEFT(Template!B287,5)","v":""},{"$f":"LEFT(Template!C287,7)","v":""},{"$f":"LEFT(Template!D287,6)","v":""},{"$f":"LEFT(Template!E287,2)","v":""},{"$f":"LEFT(Template!F287,3)","v":""},{"$f":"LEFT(Template!G287,10)","v":""},{"$f":"LEFT(Template!H287,6)","v":""},{"$f":"LEFT(Template!I287,4)","v":""},{"$f":"LEFT(Template!J287,6)","v":""},{"$f":"LEFT(Template!K287,6)","v":""},{"$f":"LEFT(Template!L287,3)","v":""},{"$f":"IF(Template!M287=\"\",\"\",Template!M287)","v":""},{"$f":"IF(Template!N287=\"\",\"\",Template!N287)","v":""},null,null,null,null,null,{"$f":"IF(Template!O287=\"\",\"\",Template!O287)","v":""}]
[{"$f":"LEFT(Template!A288,4)","v":""},{"$f":"LEFT(Template!B288,5)","v":""},{"$f":"LEFT(Template!C288,7)","v":""},{"$f":"LEFT(Template!D288,6)","v":""},{"$f":"LEFT(Template!E288,2)","v":""},{"$f":"LEFT(Template!F288,3)","v":""},{"$f":"LEFT(Template!G288,10)","v":""},{"$f":"LEFT(Template!H288,6)","v":""},{"$f":"LEFT(Template!I288,4)","v":""},{"$f":"LEFT(Template!J288,6)","v":""},{"$f":"LEFT(Template!K288,6)","v":""},{"$f":"LEFT(Template!L288,3)","v":""},{"$f":"IF(Template!M288=\"\",\"\",Template!M288)","v":""},{"$f":"IF(Template!N288=\"\",\"\",Template!N288)","v":""},null,null,null,null,null,{"$f":"IF(Template!O288=\"\",\"\",Template!O288)","v":""}]
[{"$f":"LEFT(Template!A289,4)","v":""},{"$f":"LEFT(Template!B289,5)","v":""},{"$f":"LEFT(Template!C289,7)","v":""},{"$f":"LEFT(Template!D289,6)","v":""},{"$f":"LEFT(Template!E289,2)","v":""},{"$f":"LEFT(Template!F289,3)","v":""},{"$f":"LEFT(Template!G289,10)","v":""},{"$f":"LEFT(Template!H289,6)","v":""},{"$f":"LEFT(Template!I289,4)","v":""},{"$f":"LEFT(Template!J289,6)","v":""},{"$f":"LEFT(Template!K289,6)","v":""},{"$f":"LEFT(Template!L289,3)","v":""},{"$f":"IF(Template!M289=\"\",\"\",Template!M289)","v":""},{"$f":"IF(Template!N289=\"\",\"\",Template!N289)","v":""},null,null,null,null,null,{"$f":"IF(Template!O289=\"\",\"\",Template!O289)","v":""}]
[{"$f":"LEFT(Template!A290,4)","v":""},{"$f":"LEFT(Template!B290,5)","v":""},{"$f":"LEFT(Template!C290,7)","v":""},{"$f":"LEFT(Template!D290,6)","v":""},{"$f":"LEFT(Template!E290,2)","v":""},{"$f":"LEFT(Template!F290,3)","v":""},{"$f":"LEFT(Template!G290,10)","v":""},{"$f":"LEFT(Template!H290,6)","v":""},{"$f":"LEFT(Template!I290,4)","v":""},{"$f":"LEFT(Template!J290,6)","v":""},{"$f":"LEFT(Template!K290,6)","v":""},{"$f":"LEFT(Template!L290,3)","v":""},{"$f":"IF(Template!M290=\"\",\"\",Template!M290)","v":""},{"$f":"IF(Template!N290=\"\",\"\",Template!N290)","v":""},null,null,null,null,null,{"$f":"IF(Template!O290=\"\",\"\",Template!O290)","v":""}]
[{"$f":"LEFT(Template!A291,4)","v":""},{"$f":"LEFT(Template!B291,5)","v":""},{"$f":"LEFT(Template!C291,7)","v":""},{"$f":"LEFT(Template!D291,6)","v":""},{"$f":"LEFT(Template!E291,2)","v":""},{"$f":"LEFT(Template!F291,3)","v":""},{"$f":"LEFT(Template!G291,10)","v":""},{"$f":"LEFT(Template!H291,6)","v":""},{"$f":"LEFT(Template!I291,4)","v":""},{"$f":"LEFT(Template!J291,6)","v":""},{"$f":"LEFT(Template!K291,6)","v":""},{"$f":"LEFT(Template!L291,3)","v":""},{"$f":"IF(Template!M291=\"\",\"\",Template!M291)","v":""},{"$f":"IF(Template!N291=\"\",\"\",Template!N291)","v":""},null,null,null,null,null,{"$f":"IF(Template!O291=\"\",\"\",Template!O291)","v":""}]
[{"$f":"LEFT(Template!A292,4)","v":""},{"$f":"LEFT(Template!B292,5)","v":""},{"$f":"LEFT(Template!C292,7)","v":""},{"$f":"LEFT(Template!D292,6)","v":""},{"$f":"LEFT(Template!E292,2)","v":""},{"$f":"LEFT(Template!F292,3)","v":""},{"$f":"LEFT(Template!G292,10)","v":""},{"$f":"LEFT(Template!H292,6)","v":""},{"$f":"LEFT(Template!I292,4)","v":""},{"$f":"LEFT(Template!J292,6)","v":""},{"$f":"LEFT(Template!K292,6)","v":""},{"$f":"LEFT(Template!L292,3)","v":""},{"$f":"IF(Template!M292=\"\",\"\",Template!M292)","v":""},{"$f":"IF(Template!N292=\"\",\"\",Template!N292)","v":""},null,null,null,null,null,{"$f":"IF(Template!O292=\"\",\"\",Template!O292)","v":""}]
[{"$f":"LEFT(Template!A293,4)","v":""},{"$f":"LEFT(Template!B293,5)","v":""},{"$f":"LEFT(Template!C293,7)","v":""},{"$f":"LEFT(Template!D293,6)","v":""},{"$f":"LEFT(Template!E293,2)","v":""},{"$f":"LEFT(Template!F293,3)","v":""},{"$f":"LEFT(Template!G293,10)","v":""},{"$f":"LEFT(Template!H293,6)","v":""},{"$f":"LEFT(Template!I293,4)","v":""},{"$f":"LEFT(Template!J293,6)","v":""},{"$f":"LEFT(Template!K293,6)","v":""},{"$f":"LEFT(Template!L293,3)","v":""},{"$f":"IF(Template!M293=\"\",\"\",Template!M293)","v":""},{"$f":"IF(Template!N293=\"\",\"\",Template!N293)","v":""},null,null,null,null,null,{"$f":"IF(Template!O293=\"\",\"\",Template!O293)","v":""}]
[{"$f":"LEFT(Template!A294,4)","v":""},{"$f":"LEFT(Template!B294,5)","v":""},{"$f":"LEFT(Template!C294,7)","v":""},{"$f":"LEFT(Template!D294,6)","v":""},{"$f":"LEFT(Template!E294,2)","v":""},{"$f":"LEFT(Template!F294,3)","v":""},{"$f":"LEFT(Template!G294,10)","v":""},{"$f":"LEFT(Template!H294,6)","v":""},{"$f":"LEFT(Template!I294,4)","v":""},{"$f":"LEFT(Template!J294,6)","v":""},{"$f":"LEFT(Template!K294,6)","v":""},{"$f":"LEFT(Template!L294,3)","v":""},{"$f":"IF(Template!M294=\"\",\"\",Template!M294)","v":""},{"$f":"IF(Template!N294=\"\",\"\",Template!N294)","v":""},null,null,null,null,null,{"$f":"IF(Template!O294=\"\",\"\",Template!O294)","v":""}]
[{"$f":"LEFT(Template!A295,4)","v":""},{"$f":"LEFT(Template!B295,5)","v":""},{"$f":"LEFT(Template!C295,7)","v":""},{"$f":"LEFT(Template!D295,6)","v":""},{"$f":"LEFT(Template!E295,2)","v":""},{"$f":"LEFT(Template!F295,3)","v":""},{"$f":"LEFT(Template!G295,10)","v":""},{"$f":"LEFT(Template!H295,6)","v":""},{"$f":"LEFT(Template!I295,4)","v":""},{"$f":"LEFT(Template!J295,6)","v":""},{"$f":"LEFT(Template!K295,6)","v":""},{"$f":"LEFT(Template!L295,3)","v":""},{"$f":"IF(Template!M295=\"\",\"\",Template!M295)","v":""},{"$f":"IF(Template!N295=\"\",\"\",Template!N295)","v":""},null,null,null,null,null,{"$f":"IF(Template!O295=\"\",\"\",Template!O295)","v":""}]
[{"$f":"LEFT(Template!A296,4)","v":""},{"$f":"LEFT(Template!B296,5)","v":""},{"$f":"LEFT(Template!C296,7)","v":""},{"$f":"LEFT(Template!D296,6)","v":""},{"$f":"LEFT(Template!E296,2)","v":""},{"$f":"LEFT(Template!F296,3)","v":""},{"$f":"LEFT(Template!G296,10)","v":""},{"$f":"LEFT(Template!H296,6)","v":""},{"$f":"LEFT(Template!I296,4)","v":""},{"$f":"LEFT(Template!J296,6)","v":""},{"$f":"LEFT(Template!K296,6)","v":""},{"$f":"LEFT(Template!L296,3)","v":""},{"$f":"IF(Template!M296=\"\",\"\",Template!M296)","v":""},{"$f":"IF(Template!N296=\"\",\"\",Template!N296)","v":""},null,null,null,null,null,{"$f":"IF(Template!O296=\"\",\"\",Template!O296)","v":""}]
[{"$f":"LEFT(Template!A297,4)","v":""},{"$f":"LEFT(Template!B297,5)","v":""},{"$f":"LEFT(Template!C297,7)","v":""},{"$f":"LEFT(Template!D297,6)","v":""},{"$f":"LEFT(Template!E297,2)","v":""},{"$f":"LEFT(Template!F297,3)","v":""},{"$f":"LEFT(Template!G297,10)","v":""},{"$f":"LEFT(Template!H297,6)","v":""},{"$f":"LEFT(Template!I297,4)","v":""},{"$f":"LEFT(Template!J297,6)","v":""},{"$f":"LEFT(Template!K297,6)","v":""},{"$f":"LEFT(Template!L297,3)","v":""},{"$f":"IF(Template!M297=\"\",\"\",Template!M297)","v":""},{"$f":"IF(Template!N297=\"\",\"\",Template!N297)","v":""},null,null,null,null,null,{"$f":"IF(Template!O297=\"\",\"\",Template!O297)","v":""}]
[{"$f":"LEFT(Template!A298,4)","v":""},{"$f":"LEFT(Template!B298,5)","v":""},{"$f":"LEFT(Template!C298,7)","v":""},{"$f":"LEFT(Template!D298,6)","v":""},{"$f":"LEFT(Template!E298,2)","v":""},{"$f":"LEFT(Template!F298,3)","v":""},{"$f":"LEFT(Template!G298,10)","v":""},{"$f":"LEFT(Template!H298,6)","v":""},{"$f":"LEFT(Template!I298,4)","v":""},{"$f":"LEFT(Template!J298,6)","v":""},{"$f":"LEFT(Template!K298,6)","v":""},{"$f":"LEFT(Template!L298,3)","v":""},{"$f":"IF(Template!M298=\"\",\"\",Template!M298)","v":""},{"$f":"IF(Template!N298=\"\",\"\",Template!N298)","v":""},null,null,null,null,null,{"$f":"IF(Template!O298=\"\",\"\",Template!O298)","v":""}]
[{"$f":"LEFT(Template!A299,4)","v":""},{"$f":"LEFT(Template!B299,5)","v":""},{"$f":"LEFT(Template!C299,7)","v":""},{"$f":"LEFT(Template!D299,6)","v":""},{"$f":"LEFT(Template!E299,2)","v":""},{"$f":"LEFT(Template!F299,3)","v":""},{"$f":"LEFT(Template!G299,10)","v":""},{"$f":"LEFT(Template!H299,6)","v":""},{"$f":"LEFT(Template!I299,4)","v":""},{"$f":"LEFT(Template!J299,6)","v":""},{"$f":"LEFT(Template!K299,6)","v":""},{"$f":"LEFT(Template!L299,3)","v":""},{"$f":"IF(Template!M299=\"\",\"\",Template!M299)","v":""},{"$f":"IF(Template!N299=\"\",\"\",Template!N299)","v":""},null,null,null,null,null,{"$f":"IF(Template!O299=\"\",\"\",Template!O299)","v":""}]
[{"$f":"LEFT(Template!A300,4)","v":""},{"$f":"LEFT(Template!B300,5)","v":""},{"$f":"LEFT(Template!C300,7)","v":""},{"$f":"LEFT(Template!D300,6)","v":""},{"$f":"LEFT(Template!E300,2)","v":""},{"$f":"LEFT(Template!F300,3)","v":""},{"$f":"LEFT(Template!G300,10)","v":""},{"$f":"LEFT(Template!H300,6)","v":""},{"$f":"LEFT(Template!I300,4)","v":""},{"$f":"LEFT(Template!J300,6)","v":""},{"$f":"LEFT(Template!K300,6)","v":""},{"$f":"LEFT(Template!L300,3)","v":""},{"$f":"IF(Template!M300=\"\",\"\",Template!M300)","v":""},{"$f":"IF(Template!N300=\"\",\"\",Template!N300)","v":""},null,null,null,null,null,{"$f":"IF(Template!O300=\"\",\"\",Template!O300)","v":""}]
[{"$f":"LEFT(Template!A301,4)","v":""},{"$f":"LEFT(Template!B301,5)","v":""},{"$f":"LEFT(Template!C301,7)","v":""},{"$f":"LEFT(Template!D301,6)","v":""},{"$f":"LEFT(Template!E301,2)","v":""},{"$f":"LEFT(Template!F301,3)","v":""},{"$f":"LEFT(Template!G301,10)","v":""},{"$f":"LEFT(Template!H301,6)","v":""},{"$f":"LEFT(Template!I301,4)","v":""},{"$f":"LEFT(Template!J301,6)","v":""},{"$f":"LEFT(Template!K301,6)","v":""},{"$f":"LEFT(Template!L301,3)","v":""},{"$f":"IF(Template!M301=\"\",\"\",Template!M301)","v":""},{"$f":"IF(Template!N301=\"\",\"\",Template!N301)","v":""},null,null,null,null,null,{"$f":"IF(Template!O301=\"\",\"\",Template!O301)","v":""}]
[{"$f":"LEFT(Template!A302,4)","v":""},{"$f":"LEFT(Template!B302,5)","v":""},{"$f":"LEFT(Template!C302,7)","v":""},{"$f":"LEFT(Template!D302,6)","v":""},{"$f":"LEFT(Template!E302,2)","v":""},{"$f":"LEFT(Template!F302,3)","v":""},{"$f":"LEFT(Template!G302,10)","v":""},{"$f":"LEFT(Template!H302,6)","v":""},{"$f":"LEFT(Template!I302,4)","v":""},{"$f":"LEFT(Template!J302,6)","v":""},{"$f":"LEFT(Template!K302,6)","v":""},{"$f":"LEFT(Template!L302,3)","v":""},{"$f":"IF(Template!M302=\"\",\"\",Template!M302)","v":""},{"$f":"IF(Template!N302=\"\",\"\",Template!N302)","v":""},null,null,null,null,null,{"$f":"IF(Template!O302=\"\",\"\",Template!O302)","v":""}]
[{"$f":"LEFT(Template!A303,4)","v":""},{"$f":"LEFT(Template!B303,5)","v":""},{"$f":"LEFT(Template!C303,7)","v":""},{"$f":"LEFT(Template!D303,6)","v":""},{"$f":"LEFT(Template!E303,2)","v":""},{"$f":"LEFT(Template!F303,3)","v":""},{"$f":"LEFT(Template!G303,10)","v":""},{"$f":"LEFT(Template!H303,6)","v":""},{"$f":"LEFT(Template!I303,4)","v":""},{"$f":"LEFT(Template!J303,6)","v":""},{"$f":"LEFT(Template!K303,6)","v":""},{"$f":"LEFT(Template!L303,3)","v":""},{"$f":"IF(Template!M303=\"\",\"\",Template!M303)","v":""},{"$f":"IF(Template!N303=\"\",\"\",Template!N303)","v":""},null,null,null,null,null,{"$f":"IF(Template!O303=\"\",\"\",Template!O303)","v":""}]
[{"$f":"LEFT(Template!A304,4)","v":""},{"$f":"LEFT(Template!B304,5)","v":""},{"$f":"LEFT(Template!C304,7)","v":""},{"$f":"LEFT(Template!D304,6)","v":""},{"$f":"LEFT(Template!E304,2)","v":""},{"$f":"LEFT(Template!F304,3)","v":""},{"$f":"LEFT(Template!G304,10)","v":""},{"$f":"LEFT(Template!H304,6)","v":""},{"$f":"LEFT(Template!I304,4)","v":""},{"$f":"LEFT(Template!J304,6)","v":""},{"$f":"LEFT(Template!K304,6)","v":""},{"$f":"LEFT(Template!L304,3)","v":""},{"$f":"IF(Template!M304=\"\",\"\",Template!M304)","v":""},{"$f":"IF(Template!N304=\"\",\"\",Template!N304)","v":""},null,null,null,null,null,{"$f":"IF(Template!O304=\"\",\"\",Template!O304)","v":""}]
[{"$f":"LEFT(Template!A305,4)","v":""},{"$f":"LEFT(Template!B305,5)","v":""},{"$f":"LEFT(Template!C305,7)","v":""},{"$f":"LEFT(Template!D305,6)","v":""},{"$f":"LEFT(Template!E305,2)","v":""},{"$f":"LEFT(Template!F305,3)","v":""},{"$f":"LEFT(Template!G305,10)","v":""},{"$f":"LEFT(Template!H305,6)","v":""},{"$f":"LEFT(Template!I305,4)","v":""},{"$f":"LEFT(Template!J305,6)","v":""},{"$f":"LEFT(Template!K305,6)","v":""},{"$f":"LEFT(Template!L305,3)","v":""},{"$f":"IF(Template!M305=\"\",\"\",Template!M305)","v":""},{"$f":"IF(Template!N305=\"\",\"\",Template!N305)","v":""},null,null,null,null,null,{"$f":"IF(Template!O305=\"\",\"\",Template!O305)","v":""}]
[{"$f":"LEFT(Template!A306,4)","v":""},{"$f":"LEFT(Template!B306,5)","v":""},{"$f":"LEFT(Template!C306,7)","v":""},{"$f":"LEFT(Template!D306,6)","v":""},{"$f":"LEFT(Template!E306,2)","v":""},{"$f":"LEFT(Template!F306,3)","v":""},{"$f":"LEFT(Template!G306,10)","v":""},{"$f":"LEFT(Template!H306,6)","v":""},{"$f":"LEFT(Template!I306,4)","v":""},{"$f":"LEFT(Template!J306,6)","v":""},{"$f":"LEFT(Template!K306,6)","v":""},{"$f":"LEFT(Template!L306,3)","v":""},{"$f":"IF(Template!M306=\"\",\"\",Template!M306)","v":""},{"$f":"IF(Template!N306=\"\",\"\",Template!N306)","v":""},null,null,null,null,null,{"$f":"IF(Template!O306=\"\",\"\",Template!O306)","v":""}]
[{"$f":"LEFT(Template!A307,4)","v":""},{"$f":"LEFT(Template!B307,5)","v":""},{"$f":"LEFT(Template!C307,7)","v":""},{"$f":"LEFT(Template!D307,6)","v":""},{"$f":"LEFT(Template!E307,2)","v":""},{"$f":"LEFT(Template!F307,3)","v":""},{"$f":"LEFT(Template!G307,10)","v":""},{"$f":"LEFT(Template!H307,6)","v":""},{"$f":"LEFT(Template!I307,4)","v":""},{"$f":"LEFT(Template!J307,6)","v":""},{"$f":"LEFT(Template!K307,6)","v":""},{"$f":"LEFT(Template!L307,3)","v":""},{"$f":"IF(Template!M307=\"\",\"\",Template!M307)","v":""},{"$f":"IF(Template!N307=\"\",\"\",Template!N307)","v":""},null,null,null,null,null,{"$f":"IF(Template!O307=\"\",\"\",Template!O307)","v":""}]
[{"$f":"LEFT(Template!A308,4)","v":""},{"$f":"LEFT(Template!B308,5)","v":""},{"$f":"LEFT(Template!C308,7)","v":""},{"$f":"LEFT(Template!D308,6)","v":""},{"$f":"LEFT(Template!E308,2)","v":""},{"$f":"LEFT(Template!F308,3)","v":""},{"$f":"LEFT(Template!G308,10)","v":""},{"$f":"LEFT(Template!H308,6)","v":""},{"$f":"LEFT(Template!I308,4)","v":""},{"$f":"LEFT(Template!J308,6)","v":""},{"$f":"LEFT(Template!K308,6)","v":""},{"$f":"LEFT(Template!L308,3)","v":""},{"$f":"IF(Template!M308=\"\",\"\",Template!M308)","v":""},{"$f":"IF(Template!N308=\"\",\"\",Template!N308)","v":""},null,null,null,null,null,{"$f":"IF(Template!O308=\"\",\"\",Template!O308)","v":""}]
[{"$f":"LEFT(Template!A309,4)","v":""},{"$f":"LEFT(Template!B309,5)","v":""},{"$f":"LEFT(Template!C309,7)","v":""},{"$f":"LEFT(Template!D309,6)","v":""},{"$f":"LEFT(Template!E309,2)","v":""},{"$f":"LEFT(Template!F309,3)","v":""},{"$f":"LEFT(Template!G309,10)","v":""},{"$f":"LEFT(Template!H309,6)","v":""},{"$f":"LEFT(Template!I309,4)","v":""},{"$f":"LEFT(Template!J309,6)","v":""},{"$f":"LEFT(Template!K309,6)","v":""},{"$f":"LEFT(Template!L309,3)","v":""},{"$f":"IF(Template!M309=\"\",\"\",Template!M309)","v":""},{"$f":"IF(Template!N309=\"\",\"\",Template!N309)","v":""},null,null,null,null,null,{"$f":"IF(Template!O309=\"\",\"\",Template!O309)","v":""}]
[{"$f":"LEFT(Template!A310,4)","v":""},{"$f":"LEFT(Template!B310,5)","v":""},{"$f":"LEFT(Template!C310,7)","v":""},{"$f":"LEFT(Template!D310,6)","v":""},{"$f":"LEFT(Template!E310,2)","v":""},{"$f":"LEFT(Template!F310,3)","v":""},{"$f":"LEFT(Template!G310,10)","v":""},{"$f":"LEFT(Template!H310,6)","v":""},{"$f":"LEFT(Template!I310,4)","v":""},{"$f":"LEFT(Template!J310,6)","v":""},{"$f":"LEFT(Template!K310,6)","v":""},{"$f":"LEFT(Template!L310,3)","v":""},{"$f":"IF(Template!M310=\"\",\"\",Template!M310)","v":""},{"$f":"IF(Template!N310=\"\",\"\",Template!N310)","v":""},null,null,null,null,null,{"$f":"IF(Template!O310=\"\",\"\",Template!O310)","v":""}]
[{"$f":"LEFT(Template!A311,4)","v":""},{"$f":"LEFT(Template!B311,5)","v":""},{"$f":"LEFT(Template!C311,7)","v":""},{"$f":"LEFT(Template!D311,6)","v":""},{"$f":"LEFT(Template!E311,2)","v":""},{"$f":"LEFT(Template!F311,3)","v":""},{"$f":"LEFT(Template!G311,10)","v":""},{"$f":"LEFT(Template!H311,6)","v":""},{"$f":"LEFT(Template!I311,4)","v":""},{"$f":"LEFT(Template!J311,6)","v":""},{"$f":"LEFT(Template!K311,6)","v":""},{"$f":"LEFT(Template!L311,3)","v":""},{"$f":"IF(Template!M311=\"\",\"\",Template!M311)","v":""},{"$f":"IF(Template!N311=\"\",\"\",Template!N311)","v":""},null,null,null,null,null,{"$f":"IF(Template!O311=\"\",\"\",Template!O311)","v":""}]
[{"$f":"LEFT(Template!A312,4)","v":""},{"$f":"LEFT(Template!B312,5)","v":""},{"$f":"LEFT(Template!C312,7)","v":""},{"$f":"LEFT(Template!D312,6)","v":""},{"$f":"LEFT(Template!E312,2)","v":""},{"$f":"LEFT(Template!F312,3)","v":""},{"$f":"LEFT(Template!G312,10)","v":""},{"$f":"LEFT(Template!H312,6)","v":""},{"$f":"LEFT(Template!I312,4)","v":""},{"$f":"LEFT(Template!J312,6)","v":""},{"$f":"LEFT(Template!K312,6)","v":""},{"$f":"LEFT(Template!L312,3)","v":""},{"$f":"IF(Template!M312=\"\",\"\",Template!M312)","v":""},{"$f":"IF(Template!N312=\"\",\"\",Template!N312)","v":""},null,null,null,null,null,{"$f":"IF(Template!O312=\"\",\"\",Template!O312)","v":""}]
[{"$f":"LEFT(Template!A313,4)","v":""},{"$f":"LEFT(Template!B313,5)","v":""},{"$f":"LEFT(Template!C313,7)","v":""},{"$f":"LEFT(Template!D313,6)","v":""},{"$f":"LEFT(Template!E313,2)","v":""},{"$f":"LEFT(Template!F313,3)","v":""},{"$f":"LEFT(Template!G313,10)","v":""},{"$f":"LEFT(Template!H313,6)","v":""},{"$f":"LEFT(Template!I313,4)","v":""},{"$f":"LEFT(Template!J313,6)","v":""},{"$f":"LEFT(Template!K313,6)","v":""},{"$f":"LEFT(Template!L313,3)","v":""},{"$f":"IF(Template!M313=\"\",\"\",Template!M313)","v":""},{"$f":"IF(Template!N313=\"\",\"\",Template!N313)","v":""},null,null,null,null,null,{"$f":"IF(Template!O313=\"\",\"\",Template!O313)","v":""}]
[{"$f":"LEFT(Template!A314,4)","v":""},{"$f":"LEFT(Template!B314,5)","v":""},{"$f":"LEFT(Template!C314,7)","v":""},{"$f":"LEFT(Template!D314,6)","v":""},{"$f":"LEFT(Template!E314,2)","v":""},{"$f":"LEFT(Template!F314,3)","v":""},{"$f":"LEFT(Template!G314,10)","v":""},{"$f":"LEFT(Template!H314,6)","v":""},{"$f":"LEFT(Template!I314,4)","v":""},{"$f":"LEFT(Template!J314,6)","v":""},{"$f":"LEFT(Template!K314,6)","v":""},{"$f":"LEFT(Template!L314,3)","v":""},{"$f":"IF(Template!M314=\"\",\"\",Template!M314)","v":""},{"$f":"IF(Template!N314=\"\",\"\",Template!N314)","v":""},null,null,null,null,null,{"$f":"IF(Template!O314=\"\",\"\",Template!O314)","v":""}]
[{"$f":"LEFT(Template!A315,4)","v":""},{"$f":"LEFT(Template!B315,5)","v":""},{"$f":"LEFT(Template!C315,7)","v":""},{"$f":"LEFT(Template!D315,6)","v":""},{"$f":"LEFT(Template!E315,2)","v":""},{"$f":"LEFT(Template!F315,3)","v":""},{"$f":"LEFT(Template!G315,10)","v":""},{"$f":"LEFT(Template!H315,6)","v":""},{"$f":"LEFT(Template!I315,4)","v":""},{"$f":"LEFT(Template!J315,6)","v":""},{"$f":"LEFT(Template!K315,6)","v":""},{"$f":"LEFT(Template!L315,3)","v":""},{"$f":"IF(Template!M315=\"\",\"\",Template!M315)","v":""},{"$f":"IF(Template!N315=\"\",\"\",Template!N315)","v":""},null,null,null,null,null,{"$f":"IF(Template!O315=\"\",\"\",Template!O315)","v":""}]
[{"$f":"LEFT(Template!A316,4)","v":""},{"$f":"LEFT(Template!B316,5)","v":""},{"$f":"LEFT(Template!C316,7)","v":""},{"$f":"LEFT(Template!D316,6)","v":""},{"$f":"LEFT(Template!E316,2)","v":""},{"$f":"LEFT(Template!F316,3)","v":""},{"$f":"LEFT(Template!G316,10)","v":""},{"$f":"LEFT(Template!H316,6)","v":""},{"$f":"LEFT(Template!I316,4)","v":""},{"$f":"LEFT(Template!J316,6)","v":""},{"$f":"LEFT(Template!K316,6)","v":""},{"$f":"LEFT(Template!L316,3)","v":""},{"$f":"IF(Template!M316=\"\",\"\",Template!M316)","v":""},{"$f":"IF(Template!N316=\"\",\"\",Template!N316)","v":""},null,null,null,null,null,{"$f":"IF(Template!O316=\"\",\"\",Template!O316)","v":""}]
[{"$f":"LEFT(Template!A317,4)","v":""},{"$f":"LEFT(Template!B317,5)","v":""},{"$f":"LEFT(Template!C317,7)","v":""},{"$f":"LEFT(Template!D317,6)","v":""},{"$f":"LEFT(Template!E317,2)","v":""},{"$f":"LEFT(Template!F317,3)","v":""},{"$f":"LEFT(Template!G317,10)","v":""},{"$f":"LEFT(Template!H317,6)","v":""},{"$f":"LEFT(Template!I317,4)","v":""},{"$f":"LEFT(Template!J317,6)","v":""},{"$f":"LEFT(Template!K317,6)","v":""},{"$f":"LEFT(Template!L317,3)","v":""},{"$f":"IF(Template!M317=\"\",\"\",Template!M317)","v":""},{"$f":"IF(Template!N317=\"\",\"\",Template!N317)","v":""},null,null,null,null,null,{"$f":"IF(Template!O317=\"\",\"\",Template!O317)","v":""}]
[{"$f":"LEFT(Template!A318,4)","v":""},{"$f":"LEFT(Template!B318,5)","v":""},{"$f":"LEFT(Template!C318,7)","v":""},{"$f":"LEFT(Template!D318,6)","v":""},{"$f":"LEFT(Template!E318,2)","v":""},{"$f":"LEFT(Template!F318,3)","v":""},{"$f":"LEFT(Template!G318,10)","v":""},{"$f":"LEFT(Template!H318,6)","v":""},{"$f":"LEFT(Template!I318,4)","v":""},{"$f":"LEFT(Template!J318,6)","v":""},{"$f":"LEFT(Template!K318,6)","v":""},{"$f":"LEFT(Template!L318,3)","v":""},{"$f":"IF(Template!M318=\"\",\"\",Template!M318)","v":""},{"$f":"IF(Template!N318=\"\",\"\",Template!N318)","v":""},null,null,null,null,null,{"$f":"IF(Template!O318=\"\",\"\",Template!O318)","v":""}]
[{"$f":"LEFT(Template!A319,4)","v":""},{"$f":"LEFT(Template!B319,5)","v":""},{"$f":"LEFT(Template!C319,7)","v":""},{"$f":"LEFT(Template!D319,6)","v":""},{"$f":"LEFT(Template!E319,2)","v":""},{"$f":"LEFT(Template!F319,3)","v":""},{"$f":"LEFT(Template!G319,10)","v":""},{"$f":"LEFT(Template!H319,6)","v":""},{"$f":"LEFT(Template!I319,4)","v":""},{"$f":"LEFT(Template!J319,6)","v":""},{"$f":"LEFT(Template!K319,6)","v":""},{"$f":"LEFT(Template!L319,3)","v":""},{"$f":"IF(Template!M319=\"\",\"\",Template!M319)","v":""},{"$f":"IF(Template!N319=\"\",\"\",Template!N319)","v":""},null,null,null,null,null,{"$f":"IF(Template!O319=\"\",\"\",Template!O319)","v":""}]
[{"$f":"LEFT(Template!A320,4)","v":""},{"$f":"LEFT(Template!B320,5)","v":""},{"$f":"LEFT(Template!C320,7)","v":""},{"$f":"LEFT(Template!D320,6)","v":""},{"$f":"LEFT(Template!E320,2)","v":""},{"$f":"LEFT(Template!F320,3)","v":""},{"$f":"LEFT(Template!G320,10)","v":""},{"$f":"LEFT(Template!H320,6)","v":""},{"$f":"LEFT(Template!I320,4)","v":""},{"$f":"LEFT(Template!J320,6)","v":""},{"$f":"LEFT(Template!K320,6)","v":""},{"$f":"LEFT(Template!L320,3)","v":""},{"$f":"IF(Template!M320=\"\",\"\",Template!M320)","v":""},{"$f":"IF(Template!N320=\"\",\"\",Template!N320)","v":""},null,null,null,null,null,{"$f":"IF(Template!O320=\"\",\"\",Template!O320)","v":""}]
[{"$f":"LEFT(Template!A321,4)","v":""},{"$f":"LEFT(Template!B321,5)","v":""},{"$f":"LEFT(Template!C321,7)","v":""},{"$f":"LEFT(Template!D321,6)","v":""},{"$f":"LEFT(Template!E321,2)","v":""},{"$f":"LEFT(Template!F321,3)","v":""},{"$f":"LEFT(Template!G321,10)","v":""},{"$f":"LEFT(Template!H321,6)","v":""},{"$f":"LEFT(Template!I321,4)","v":""},{"$f":"LEFT(Template!J321,6)","v":""},{"$f":"LEFT(Template!K321,6)","v":""},{"$f":"LEFT(Template!L321,3)","v":""},{"$f":"IF(Template!M321=\"\",\"\",Template!M321)","v":""},{"$f":"IF(Template!N321=\"\",\"\",Template!N321)","v":""},null,null,null,null,null,{"$f":"IF(Template!O321=\"\",\"\",Template!O321)","v":""}]
[{"$f":"LEFT(Template!A322,4)","v":""},{"$f":"LEFT(Template!B322,5)","v":""},{"$f":"LEFT(Template!C322,7)","v":""},{"$f":"LEFT(Template!D322,6)","v":""},{"$f":"LEFT(Template!E322,2)","v":""},{"$f":"LEFT(Template!F322,3)","v":""},{"$f":"LEFT(Template!G322,10)","v":""},{"$f":"LEFT(Template!H322,6)","v":""},{"$f":"LEFT(Template!I322,4)","v":""},{"$f":"LEFT(Template!J322,6)","v":""},{"$f":"LEFT(Template!K322,6)","v":""},{"$f":"LEFT(Template!L322,3)","v":""},{"$f":"IF(Template!M322=\"\",\"\",Template!M322)","v":""},{"$f":"IF(Template!N322=\"\",\"\",Template!N322)","v":""},null,null,null,null,null,{"$f":"IF(Template!O322=\"\",\"\",Template!O322)","v":""}]
[{"$f":"LEFT(Template!A323,4)","v":""},{"$f":"LEFT(Template!B323,5)","v":""},{"$f":"LEFT(Template!C323,7)","v":""},{"$f":"LEFT(Template!D323,6)","v":""},{"$f":"LEFT(Template!E323,2)","v":""},{"$f":"LEFT(Template!F323,3)","v":""},{"$f":"LEFT(Template!G323,10)","v":""},{"$f":"LEFT(Template!H323,6)","v":""},{"$f":"LEFT(Template!I323,4)","v":""},{"$f":"LEFT(Template!J323,6)","v":""},{"$f":"LEFT(Template!K323,6)","v":""},{"$f":"LEFT(Template!L323,3)","v":""},{"$f":"IF(Template!M323=\"\",\"\",Template!M323)","v":""},{"$f":"IF(Template!N323=\"\",\"\",Template!N323)","v":""},null,null,null,null,null,{"$f":"IF(Template!O323=\"\",\"\",Template!O323)","v":""}]
[{"$f":"LEFT(Template!A324,4)","v":""},{"$f":"LEFT(Template!B324,5)","v":""},{"$f":"LEFT(Template!C324,7)","v":""},{"$f":"LEFT(Template!D324,6)","v":""},{"$f":"LEFT(Template!E324,2)","v":""},{"$f":"LEFT(Template!F324,3)","v":""},{"$f":"LEFT(Template!G324,10)","v":""},{"$f":"LEFT(Template!H324,6)","v":""},{"$f":"LEFT(Template!I324,4)","v":""},{"$f":"LEFT(Template!J324,6)","v":""},{"$f":"LEFT(Template!K324,6)","v":""},{"$f":"LEFT(Template!L324,3)","v":""},{"$f":"IF(Template!M324=\"\",\"\",Template!M324)","v":""},{"$f":"IF(Template!N324=\"\",\"\",Template!N324)","v":""},null,null,null,null,null,{"$f":"IF(Template!O324=\"\",\"\",Template!O324)","v":""}]
[{"$f":"LEFT(Template!A325,4)","v":""},{"$f":"LEFT(Template!B325,5)","v":""},{"$f":"LEFT(Template!C325,7)","v":""},{"$f":"LEFT(Template!D325,6)","v":""},{"$f":"LEFT(Template!E325,2)","v":""},{"$f":"LEFT(Template!F325,3)","v":""},{"$f":"LEFT(Template!G325,10)","v":""},{"$f":"LEFT(Template!H325,6)","v":""},{"$f":"LEFT(Template!I325,4)","v":""},{"$f":"LEFT(Template!J325,6)","v":""},{"$f":"LEFT(Template!K325,6)","v":""},{"$f":"LEFT(Template!L325,3)","v":""},{"$f":"IF(Template!M325=\"\",\"\",Template!M325)","v":""},{"$f":"IF(Template!N325=\"\",\"\",Template!N325)","v":""},null,null,null,null,null,{"$f":"IF(Template!O325=\"\",\"\",Template!O325)","v":""}]
[{"$f":"LEFT(Template!A326,4)","v":""},{"$f":"LEFT(Template!B326,5)","v":""},{"$f":"LEFT(Template!C326,7)","v":""},{"$f":"LEFT(Template!D326,6)","v":""},{"$f":"LEFT(Template!E326,2)","v":""},{"$f":"LEFT(Template!F326,3)","v":""},{"$f":"LEFT(Template!G326,10)","v":""},{"$f":"LEFT(Template!H326,6)","v":""},{"$f":"LEFT(Template!I326,4)","v":""},{"$f":"LEFT(Template!J326,6)","v":""},{"$f":"LEFT(Template!K326,6)","v":""},{"$f":"LEFT(Template!L326,3)","v":""},{"$f":"IF(Template!M326=\"\",\"\",Template!M326)","v":""},{"$f":"IF(Template!N326=\"\",\"\",Template!N326)","v":""},null,null,null,null,null,{"$f":"IF(Template!O326=\"\",\"\",Template!O326)","v":""}]
[{"$f":"LEFT(Template!A327,4)","v":""},{"$f":"LEFT(Template!B327,5)","v":""},{"$f":"LEFT(Template!C327,7)","v":""},{"$f":"LEFT(Template!D327,6)","v":""},{"$f":"LEFT(Template!E327,2)","v":""},{"$f":"LEFT(Template!F327,3)","v":""},{"$f":"LEFT(Template!G327,10)","v":""},{"$f":"LEFT(Template!H327,6)","v":""},{"$f":"LEFT(Template!I327,4)","v":""},{"$f":"LEFT(Template!J327,6)","v":""},{"$f":"LEFT(Template!K327,6)","v":""},{"$f":"LEFT(Template!L327,3)","v":""},{"$f":"IF(Template!M327=\"\",\"\",Template!M327)","v":""},{"$f":"IF(Template!N327=\"\",\"\",Template!N327)","v":""},null,null,null,null,null,{"$f":"IF(Template!O327=\"\",\"\",Template!O327)","v":""}]
[{"$f":"LEFT(Template!A328,4)","v":""},{"$f":"LEFT(Template!B328,5)","v":""},{"$f":"LEFT(Template!C328,7)","v":""},{"$f":"LEFT(Template!D328,6)","v":""},{"$f":"LEFT(Template!E328,2)","v":""},{"$f":"LEFT(Template!F328,3)","v":""},{"$f":"LEFT(Template!G328,10)","v":""},{"$f":"LEFT(Template!H328,6)","v":""},{"$f":"LEFT(Template!I328,4)","v":""},{"$f":"LEFT(Template!J328,6)","v":""},{"$f":"LEFT(Template!K328,6)","v":""},{"$f":"LEFT(Template!L328,3)","v":""},{"$f":"IF(Template!M328=\"\",\"\",Template!M328)","v":""},{"$f":"IF(Template!N328=\"\",\"\",Template!N328)","v":""},null,null,null,null,null,{"$f":"IF(Template!O328=\"\",\"\",Template!O328)","v":""}]
[{"$f":"LEFT(Template!A329,4)","v":""},{"$f":"LEFT(Template!B329,5)","v":""},{"$f":"LEFT(Template!C329,7)","v":""},{"$f":"LEFT(Template!D329,6)","v":""},{"$f":"LEFT(Template!E329,2)","v":""},{"$f":"LEFT(Template!F329,3)","v":""},{"$f":"LEFT(Template!G329,10)","v":""},{"$f":"LEFT(Template!H329,6)","v":""},{"$f":"LEFT(Template!I329,4)","v":""},{"$f":"LEFT(Template!J329,6)","v":""},{"$f":"LEFT(Template!K329,6)","v":""},{"$f":"LEFT(Template!L329,3)","v":""},{"$f":"IF(Template!M329=\"\",\"\",Template!M329)","v":""},{"$f":"IF(Template!N329=\"\",\"\",Template!N329)","v":""},null,null,null,null,null,{"$f":"IF(Template!O329=\"\",\"\",Template!O329)","v":""}]
[{"$f":"LEFT(Template!A330,4)","v":""},{"$f":"LEFT(Template!B330,5)","v":""},{"$f":"LEFT(Template!C330,7)","v":""},{"$f":"LEFT(Template!D330,6)","v":""},{"$f":"LEFT(Template!E330,2)","v":""},{"$f":"LEFT(Template!F330,3)","v":""},{"$f":"LEFT(Template!G330,10)","v":""},{"$f":"LEFT(Template!H330,6)","v":""},{"$f":"LEFT(Template!I330,4)","v":""},{"$f":"LEFT(Template!J330,6)","v":""},{"$f":"LEFT(Template!K330,6)","v":""},{"$f":"LEFT(Template!L330,3)","v":""},{"$f":"IF(Template!M330=\"\",\"\",Template!M330)","v":""},{"$f":"IF(Template!N330=\"\",\"\",Template!N330)","v":""},null,null,null,null,null,{"$f":"IF(Template!O330=\"\",\"\",Template!O330)","v":""}]
[{"$f":"LEFT(Template!A331,4)","v":""},{"$f":"LEFT(Template!B331,5)","v":""},{"$f":"LEFT(Template!C331,7)","v":""},{"$f":"LEFT(Template!D331,6)","v":""},{"$f":"LEFT(Template!E331,2)","v":""},{"$f":"LEFT(Template!F331,3)","v":""},{"$f":"LEFT(Template!G331,10)","v":""},{"$f":"LEFT(Template!H331,6)","v":""},{"$f":"LEFT(Template!I331,4)","v":""},{"$f":"LEFT(Template!J331,6)","v":""},{"$f":"LEFT(Template!K331,6)","v":""},{"$f":"LEFT(Template!L331,3)","v":""},{"$f":"IF(Template!M331=\"\",\"\",Template!M331)","v":""},{"$f":"IF(Template!N331=\"\",\"\",Template!N331)","v":""},null,null,null,null,null,{"$f":"IF(Template!O331=\"\",\"\",Template!O331)","v":""}]
[{"$f":"LEFT(Template!A332,4)","v":""},{"$f":"LEFT(Template!B332,5)","v":""},{"$f":"LEFT(Template!C332,7)","v":""},{"$f":"LEFT(Template!D332,6)","v":""},{"$f":"LEFT(Template!E332,2)","v":""},{"$f":"LEFT(Template!F332,3)","v":""},{"$f":"LEFT(Template!G332,10)","v":""},{"$f":"LEFT(Template!H332,6)","v":""},{"$f":"LEFT(Template!I332,4)","v":""},{"$f":"LEFT(Template!J332,6)","v":""},{"$f":"LEFT(Template!K332,6)","v":""},{"$f":"LEFT(Template!L332,3)","v":""},{"$f":"IF(Template!M332=\"\",\"\",Template!M332)","v":""},{"$f":"IF(Template!N332=\"\",\"\",Template!N332)","v":""},null,null,null,null,null,{"$f":"IF(Template!O332=\"\",\"\",Template!O332)","v":""}]
[{"$f":"LEFT(Template!A333,4)","v":""},{"$f":"LEFT(Template!B333,5)","v":""},{"$f":"LEFT(Template!C333,7)","v":""},{"$f":"LEFT(Template!D333,6)","v":""},{"$f":"LEFT(Template!E333,2)","v":""},{"$f":"LEFT(Template!F333,3)","v":""},{"$f":"LEFT(Template!G333,10)","v":""},{"$f":"LEFT(Template!H333,6)","v":""},{"$f":"LEFT(Template!I333,4)","v":""},{"$f":"LEFT(Template!J333,6)","v":""},{"$f":"LEFT(Template!K333,6)","v":""},{"$f":"LEFT(Template!L333,3)","v":""},{"$f":"IF(Template!M333=\"\",\"\",Template!M333)","v":""},{"$f":"IF(Template!N333=\"\",\"\",Template!N333)","v":""},null,null,null,null,null,{"$f":"IF(Template!O333=\"\",\"\",Template!O333)","v":""}]
[{"$f":"LEFT(Template!A334,4)","v":""},{"$f":"LEFT(Template!B334,5)","v":""},{"$f":"LEFT(Template!C334,7)","v":""},{"$f":"LEFT(Template!D334,6)","v":""},{"$f":"LEFT(Template!E334,2)","v":""},{"$f":"LEFT(Template!F334,3)","v":""},{"$f":"LEFT(Template!G334,10)","v":""},{"$f":"LEFT(Template!H334,6)","v":""},{"$f":"LEFT(Template!I334,4)","v":""},{"$f":"LEFT(Template!J334,6)","v":""},{"$f":"LEFT(Template!K334,6)","v":""},{"$f":"LEFT(Template!L334,3)","v":""},{"$f":"IF(Template!M334=\"\",\"\",Template!M334)","v":""},{"$f":"IF(Template!N334=\"\",\"\",Template!N334)","v":""},null,null,null,null,null,{"$f":"IF(Template!O334=\"\",\"\",Template!O334)","v":""}]
[{"$f":"LEFT(Template!A335,4)","v":""},{"$f":"LEFT(Template!B335,5)","v":""},{"$f":"LEFT(Template!C335,7)","v":""},{"$f":"LEFT(Template!D335,6)","v":""},{"$f":"LEFT(Template!E335,2)","v":""},{"$f":"LEFT(Template!F335,3)","v":""},{"$f":"LEFT(Template!G335,10)","v":""},{"$f":"LEFT(Template!H335,6)","v":""},{"$f":"LEFT(Template!I335,4)","v":""},{"$f":"LEFT(Template!J335,6)","v":""},{"$f":"LEFT(Template!K335,6)","v":""},{"$f":"LEFT(Template!L335,3)","v":""},{"$f":"IF(Template!M335=\"\",\"\",Template!M335)","v":""},{"$f":"IF(Template!N335=\"\",\"\",Template!N335)","v":""},null,null,null,null,null,{"$f":"IF(Template!O335=\"\",\"\",Template!O335)","v":""}]
[{"$f":"LEFT(Template!A336,4)","v":""},{"$f":"LEFT(Template!B336,5)","v":""},{"$f":"LEFT(Template!C336,7)","v":""},{"$f":"LEFT(Template!D336,6)","v":""},{"$f":"LEFT(Template!E336,2)","v":""},{"$f":"LEFT(Template!F336,3)","v":""},{"$f":"LEFT(Template!G336,10)","v":""},{"$f":"LEFT(Template!H336,6)","v":""},{"$f":"LEFT(Template!I336,4)","v":""},{"$f":"LEFT(Template!J336,6)","v":""},{"$f":"LEFT(Template!K336,6)","v":""},{"$f":"LEFT(Template!L336,3)","v":""},{"$f":"IF(Template!M336=\"\",\"\",Template!M336)","v":""},{"$f":"IF(Template!N336=\"\",\"\",Template!N336)","v":""},null,null,null,null,null,{"$f":"IF(Template!O336=\"\",\"\",Template!O336)","v":""}]
[{"$f":"LEFT(Template!A337,4)","v":""},{"$f":"LEFT(Template!B337,5)","v":""},{"$f":"LEFT(Template!C337,7)","v":""},{"$f":"LEFT(Template!D337,6)","v":""},{"$f":"LEFT(Template!E337,2)","v":""},{"$f":"LEFT(Template!F337,3)","v":""},{"$f":"LEFT(Template!G337,10)","v":""},{"$f":"LEFT(Template!H337,6)","v":""},{"$f":"LEFT(Template!I337,4)","v":""},{"$f":"LEFT(Template!J337,6)","v":""},{"$f":"LEFT(Template!K337,6)","v":""},{"$f":"LEFT(Template!L337,3)","v":""},{"$f":"IF(Template!M337=\"\",\"\",Template!M337)","v":""},{"$f":"IF(Template!N337=\"\",\"\",Template!N337)","v":""},null,null,null,null,null,{"$f":"IF(Template!O337=\"\",\"\",Template!O337)","v":""}]
[{"$f":"LEFT(Template!A338,4)","v":""},{"$f":"LEFT(Template!B338,5)","v":""},{"$f":"LEFT(Template!C338,7)","v":""},{"$f":"LEFT(Template!D338,6)","v":""},{"$f":"LEFT(Template!E338,2)","v":""},{"$f":"LEFT(Template!F338,3)","v":""},{"$f":"LEFT(Template!G338,10)","v":""},{"$f":"LEFT(Template!H338,6)","v":""},{"$f":"LEFT(Template!I338,4)","v":""},{"$f":"LEFT(Template!J338,6)","v":""},{"$f":"LEFT(Template!K338,6)","v":""},{"$f":"LEFT(Template!L338,3)","v":""},{"$f":"IF(Template!M338=\"\",\"\",Template!M338)","v":""},{"$f":"IF(Template!N338=\"\",\"\",Template!N338)","v":""},null,null,null,null,null,{"$f":"IF(Template!O338=\"\",\"\",Template!O338)","v":""}]
[{"$f":"LEFT(Template!A339,4)","v":""},{"$f":"LEFT(Template!B339,5)","v":""},{"$f":"LEFT(Template!C339,7)","v":""},{"$f":"LEFT(Template!D339,6)","v":""},{"$f":"LEFT(Template!E339,2)","v":""},{"$f":"LEFT(Template!F339,3)","v":""},{"$f":"LEFT(Template!G339,10)","v":""},{"$f":"LEFT(Template!H339,6)","v":""},{"$f":"LEFT(Template!I339,4)","v":""},{"$f":"LEFT(Template!J339,6)","v":""},{"$f":"LEFT(Template!K339,6)","v":""},{"$f":"LEFT(Template!L339,3)","v":""},{"$f":"IF(Template!M339=\"\",\"\",Template!M339)","v":""},{"$f":"IF(Template!N339=\"\",\"\",Template!N339)","v":""},null,null,null,null,null,{"$f":"IF(Template!O339=\"\",\"\",Template!O339)","v":""}]
[{"$f":"LEFT(Template!A340,4)","v":""},{"$f":"LEFT(Template!B340,5)","v":""},{"$f":"LEFT(Template!C340,7)","v":""},{"$f":"LEFT(Template!D340,6)","v":""},{"$f":"LEFT(Template!E340,2)","v":""},{"$f":"LEFT(Template!F340,3)","v":""},{"$f":"LEFT(Template!G340,10)","v":""},{"$f":"LEFT(Template!H340,6)","v":""},{"$f":"LEFT(Template!I340,4)","v":""},{"$f":"LEFT(Template!J340,6)","v":""},{"$f":"LEFT(Template!K340,6)","v":""},{"$f":"LEFT(Template!L340,3)","v":""},{"$f":"IF(Template!M340=\"\",\"\",Template!M340)","v":""},{"$f":"IF(Template!N340=\"\",\"\",Template!N340)","v":""},null,null,null,null,null,{"$f":"IF(Template!O340=\"\",\"\",Template!O340)","v":""}]
[{"$f":"LEFT(Template!A341,4)","v":""},{"$f":"LEFT(Template!B341,5)","v":""},{"$f":"LEFT(Template!C341,7)","v":""},{"$f":"LEFT(Template!D341,6)","v":""},{"$f":"LEFT(Template!E341,2)","v":""},{"$f":"LEFT(Template!F341,3)","v":""},{"$f":"LEFT(Template!G341,10)","v":""},{"$f":"LEFT(Template!H341,6)","v":""},{"$f":"LEFT(Template!I341,4)","v":""},{"$f":"LEFT(Template!J341,6)","v":""},{"$f":"LEFT(Template!K341,6)","v":""},{"$f":"LEFT(Template!L341,3)","v":""},{"$f":"IF(Template!M341=\"\",\"\",Template!M341)","v":""},{"$f":"IF(Template!N341=\"\",\"\",Template!N341)","v":""},null,null,null,null,null,{"$f":"IF(Template!O341=\"\",\"\",Template!O341)","v":""}]
[{"$f":"LEFT(Template!A342,4)","v":""},{"$f":"LEFT(Template!B342,5)","v":""},{"$f":"LEFT(Template!C342,7)","v":""},{"$f":"LEFT(Template!D342,6)","v":""},{"$f":"LEFT(Template!E342,2)","v":""},{"$f":"LEFT(Template!F342,3)","v":""},{"$f":"LEFT(Template!G342,10)","v":""},{"$f":"LEFT(Template!H342,6)","v":""},{"$f":"LEFT(Template!I342,4)","v":""},{"$f":"LEFT(Template!J342,6)","v":""},{"$f":"LEFT(Template!K342,6)","v":""},{"$f":"LEFT(Template!L342,3)","v":""},{"$f":"IF(Template!M342=\"\",\"\",Template!M342)","v":""},{"$f":"IF(Template!N342=\"\",\"\",Template!N342)","v":""},null,null,null,null,null,{"$f":"IF(Template!O342=\"\",\"\",Template!O342)","v":""}]
[{"$f":"LEFT(Template!A343,4)","v":""},{"$f":"LEFT(Template!B343,5)","v":""},{"$f":"LEFT(Template!C343,7)","v":""},{"$f":"LEFT(Template!D343,6)","v":""},{"$f":"LEFT(Template!E343,2)","v":""},{"$f":"LEFT(Template!F343,3)","v":""},{"$f":"LEFT(Template!G343,10)","v":""},{"$f":"LEFT(Template!H343,6)","v":""},{"$f":"LEFT(Template!I343,4)","v":""},{"$f":"LEFT(Template!J343,6)","v":""},{"$f":"LEFT(Template!K343,6)","v":""},{"$f":"LEFT(Template!L343,3)","v":""},{"$f":"IF(Template!M343=\"\",\"\",Template!M343)","v":""},{"$f":"IF(Template!N343=\"\",\"\",Template!N343)","v":""},null,null,null,null,null,{"$f":"IF(Template!O343=\"\",\"\",Template!O343)","v":""}]
[{"$f":"LEFT(Template!A344,4)","v":""},{"$f":"LEFT(Template!B344,5)","v":""},{"$f":"LEFT(Template!C344,7)","v":""},{"$f":"LEFT(Template!D344,6)","v":""},{"$f":"LEFT(Template!E344,2)","v":""},{"$f":"LEFT(Template!F344,3)","v":""},{"$f":"LEFT(Template!G344,10)","v":""},{"$f":"LEFT(Template!H344,6)","v":""},{"$f":"LEFT(Template!I344,4)","v":""},{"$f":"LEFT(Template!J344,6)","v":""},{"$f":"LEFT(Template!K344,6)","v":""},{"$f":"LEFT(Template!L344,3)","v":""},{"$f":"IF(Template!M344=\"\",\"\",Template!M344)","v":""},{"$f":"IF(Template!N344=\"\",\"\",Template!N344)","v":""},null,null,null,null,null,{"$f":"IF(Template!O344=\"\",\"\",Template!O344)","v":""}]
[{"$f":"LEFT(Template!A345,4)","v":""},{"$f":"LEFT(Template!B345,5)","v":""},{"$f":"LEFT(Template!C345,7)","v":""},{"$f":"LEFT(Template!D345,6)","v":""},{"$f":"LEFT(Template!E345,2)","v":""},{"$f":"LEFT(Template!F345,3)","v":""},{"$f":"LEFT(Template!G345,10)","v":""},{"$f":"LEFT(Template!H345,6)","v":""},{"$f":"LEFT(Template!I345,4)","v":""},{"$f":"LEFT(Template!J345,6)","v":""},{"$f":"LEFT(Template!K345,6)","v":""},{"$f":"LEFT(Template!L345,3)","v":""},{"$f":"IF(Template!M345=\"\",\"\",Template!M345)","v":""},{"$f":"IF(Template!N345=\"\",\"\",Template!N345)","v":""},null,null,null,null,null,{"$f":"IF(Template!O345=\"\",\"\",Template!O345)","v":""}]
[{"$f":"LEFT(Template!A346,4)","v":""},{"$f":"LEFT(Template!B346,5)","v":""},{"$f":"LEFT(Template!C346,7)","v":""},{"$f":"LEFT(Template!D346,6)","v":""},{"$f":"LEFT(Template!E346,2)","v":""},{"$f":"LEFT(Template!F346,3)","v":""},{"$f":"LEFT(Template!G346,10)","v":""},{"$f":"LEFT(Template!H346,6)","v":""},{"$f":"LEFT(Template!I346,4)","v":""},{"$f":"LEFT(Template!J346,6)","v":""},{"$f":"LEFT(Template!K346,6)","v":""},{"$f":"LEFT(Template!L346,3)","v":""},{"$f":"IF(Template!M346=\"\",\"\",Template!M346)","v":""},{"$f":"IF(Template!N346=\"\",\"\",Template!N346)","v":""},null,null,null,null,null,{"$f":"IF(Template!O346=\"\",\"\",Template!O346)","v":""}]
[{"$f":"LEFT(Template!A347,4)","v":""},{"$f":"LEFT(Template!B347,5)","v":""},{"$f":"LEFT(Template!C347,7)","v":""},{"$f":"LEFT(Template!D347,6)","v":""},{"$f":"LEFT(Template!E347,2)","v":""},{"$f":"LEFT(Template!F347,3)","v":""},{"$f":"LEFT(Template!G347,10)","v":""},{"$f":"LEFT(Template!H347,6)","v":""},{"$f":"LEFT(Template!I347,4)","v":""},{"$f":"LEFT(Template!J347,6)","v":""},{"$f":"LEFT(Template!K347,6)","v":""},{"$f":"LEFT(Template!L347,3)","v":""},{"$f":"IF(Template!M347=\"\",\"\",Template!M347)","v":""},{"$f":"IF(Template!N347=\"\",\"\",Template!N347)","v":""},null,null,null,null,null,{"$f":"IF(Template!O347=\"\",\"\",Template!O347)","v":""}]
[{"$f":"LEFT(Template!A348,4)","v":""},{"$f":"LEFT(Template!B348,5)","v":""},{"$f":"LEFT(Template!C348,7)","v":""},{"$f":"LEFT(Template!D348,6)","v":""},{"$f":"LEFT(Template!E348,2)","v":""},{"$f":"LEFT(Template!F348,3)","v":""},{"$f":"LEFT(Template!G348,10)","v":""},{"$f":"LEFT(Template!H348,6)","v":""},{"$f":"LEFT(Template!I348,4)","v":""},{"$f":"LEFT(Template!J348,6)","v":""},{"$f":"LEFT(Template!K348,6)","v":""},{"$f":"LEFT(Template!L348,3)","v":""},{"$f":"IF(Template!M348=\"\",\"\",Template!M348)","v":""},{"$f":"IF(Template!N348=\"\",\"\",Template!N348)","v":""},null,null,null,null,null,{"$f":"IF(Template!O348=\"\",\"\",Template!O348)","v":""}]
[{"$f":"LEFT(Template!A349,4)","v":""},{"$f":"LEFT(Template!B349,5)","v":""},{"$f":"LEFT(Template!C349,7)","v":""},{"$f":"LEFT(Template!D349,6)","v":""},{"$f":"LEFT(Template!E349,2)","v":""},{"$f":"LEFT(Template!F349,3)","v":""},{"$f":"LEFT(Template!G349,10)","v":""},{"$f":"LEFT(Template!H349,6)","v":""},{"$f":"LEFT(Template!I349,4)","v":""},{"$f":"LEFT(Template!J349,6)","v":""},{"$f":"LEFT(Template!K349,6)","v":""},{"$f":"LEFT(Template!L349,3)","v":""},{"$f":"IF(Template!M349=\"\",\"\",Template!M349)","v":""},{"$f":"IF(Template!N349=\"\",\"\",Template!N349)","v":""},null,null,null,null,null,{"$f":"IF(Template!O349=\"\",\"\",Template!O349)","v":""}]
[{"$f":"LEFT(Template!A350,4)","v":""},{"$f":"LEFT(Template!B350,5)","v":""},{"$f":"LEFT(Template!C350,7)","v":""},{"$f":"LEFT(Template!D350,6)","v":""},{"$f":"LEFT(Template!E350,2)","v":""},{"$f":"LEFT(Template!F350,3)","v":""},{"$f":"LEFT(Template!G350,10)","v":""},{"$f":"LEFT(Template!H350,6)","v":""},{"$f":"LEFT(Template!I350,4)","v":""},{"$f":"LEFT(Template!J350,6)","v":""},{"$f":"LEFT(Template!K350,6)","v":""},{"$f":"LEFT(Template!L350,3)","v":""},{"$f":"IF(Template!M350=\"\",\"\",Template!M350)","v":""},{"$f":"IF(Template!N350=\"\",\"\",Template!N350)","v":""},null,null,null,null,null,{"$f":"IF(Template!O350=\"\",\"\",Template!O350)","v":""}]
[{"$f":"LEFT(Template!A351,4)","v":""},{"$f":"LEFT(Template!B351,5)","v":""},{"$f":"LEFT(Template!C351,7)","v":""},{"$f":"LEFT(Template!D351,6)","v":""},{"$f":"LEFT(Template!E351,2)","v":""},{"$f":"LEFT(Template!F351,3)","v":""},{"$f":"LEFT(Template!G351,10)","v":""},{"$f":"LEFT(Template!H351,6)","v":""},{"$f":"LEFT(Template!I351,4)","v":""},{"$f":"LEFT(Template!J351,6)","v":""},{"$f":"LEFT(Template!K351,6)","v":""},{"$f":"LEFT(Template!L351,3)","v":""},{"$f":"IF(Template!M351=\"\",\"\",Template!M351)","v":""},{"$f":"IF(Template!N351=\"\",\"\",Template!N351)","v":""},null,null,null,null,null,{"$f":"IF(Template!O351=\"\",\"\",Template!O351)","v":""}]
[{"$f":"LEFT(Template!A352,4)","v":""},{"$f":"LEFT(Template!B352,5)","v":""},{"$f":"LEFT(Template!C352,7)","v":""},{"$f":"LEFT(Template!D352,6)","v":""},{"$f":"LEFT(Template!E352,2)","v":""},{"$f":"LEFT(Template!F352,3)","v":""},{"$f":"LEFT(Template!G352,10)","v":""},{"$f":"LEFT(Template!H352,6)","v":""},{"$f":"LEFT(Template!I352,4)","v":""},{"$f":"LEFT(Template!J352,6)","v":""},{"$f":"LEFT(Template!K352,6)","v":""},{"$f":"LEFT(Template!L352,3)","v":""},{"$f":"IF(Template!M352=\"\",\"\",Template!M352)","v":""},{"$f":"IF(Template!N352=\"\",\"\",Template!N352)","v":""},null,null,null,null,null,{"$f":"IF(Template!O352=\"\",\"\",Template!O352)","v":""}]
[{"$f":"LEFT(Template!A353,4)","v":""},{"$f":"LEFT(Template!B353,5)","v":""},{"$f":"LEFT(Template!C353,7)","v":""},{"$f":"LEFT(Template!D353,6)","v":""},{"$f":"LEFT(Template!E353,2)","v":""},{"$f":"LEFT(Template!F353,3)","v":""},{"$f":"LEFT(Template!G353,10)","v":""},{"$f":"LEFT(Template!H353,6)","v":""},{"$f":"LEFT(Template!I353,4)","v":""},{"$f":"LEFT(Template!J353,6)","v":""},{"$f":"LEFT(Template!K353,6)","v":""},{"$f":"LEFT(Template!L353,3)","v":""},{"$f":"IF(Template!M353=\"\",\"\",Template!M353)","v":""},{"$f":"IF(Template!N353=\"\",\"\",Template!N353)","v":""},null,null,null,null,null,{"$f":"IF(Template!O353=\"\",\"\",Template!O353)","v":""}]
[{"$f":"LEFT(Template!A354,4)","v":""},{"$f":"LEFT(Template!B354,5)","v":""},{"$f":"LEFT(Template!C354,7)","v":""},{"$f":"LEFT(Template!D354,6)","v":""},{"$f":"LEFT(Template!E354,2)","v":""},{"$f":"LEFT(Template!F354,3)","v":""},{"$f":"LEFT(Template!G354,10)","v":""},{"$f":"LEFT(Template!H354,6)","v":""},{"$f":"LEFT(Template!I354,4)","v":""},{"$f":"LEFT(Template!J354,6)","v":""},{"$f":"LEFT(Template!K354,6)","v":""},{"$f":"LEFT(Template!L354,3)","v":""},{"$f":"IF(Template!M354=\"\",\"\",Template!M354)","v":""},{"$f":"IF(Template!N354=\"\",\"\",Template!N354)","v":""},null,null,null,null,null,{"$f":"IF(Template!O354=\"\",\"\",Template!O354)","v":""}]
[{"$f":"LEFT(Template!A355,4)","v":""},{"$f":"LEFT(Template!B355,5)","v":""},{"$f":"LEFT(Template!C355,7)","v":""},{"$f":"LEFT(Template!D355,6)","v":""},{"$f":"LEFT(Template!E355,2)","v":""},{"$f":"LEFT(Template!F355,3)","v":""},{"$f":"LEFT(Template!G355,10)","v":""},{"$f":"LEFT(Template!H355,6)","v":""},{"$f":"LEFT(Template!I355,4)","v":""},{"$f":"LEFT(Template!J355,6)","v":""},{"$f":"LEFT(Template!K355,6)","v":""},{"$f":"LEFT(Template!L355,3)","v":""},{"$f":"IF(Template!M355=\"\",\"\",Template!M355)","v":""},{"$f":"IF(Template!N355=\"\",\"\",Template!N355)","v":""},null,null,null,null,null,{"$f":"IF(Template!O355=\"\",\"\",Template!O355)","v":""}]
[{"$f":"LEFT(Template!A356,4)","v":""},{"$f":"LEFT(Template!B356,5)","v":""},{"$f":"LEFT(Template!C356,7)","v":""},{"$f":"LEFT(Template!D356,6)","v":""},{"$f":"LEFT(Template!E356,2)","v":""},{"$f":"LEFT(Template!F356,3)","v":""},{"$f":"LEFT(Template!G356,10)","v":""},{"$f":"LEFT(Template!H356,6)","v":""},{"$f":"LEFT(Template!I356,4)","v":""},{"$f":"LEFT(Template!J356,6)","v":""},{"$f":"LEFT(Template!K356,6)","v":""},{"$f":"LEFT(Template!L356,3)","v":""},{"$f":"IF(Template!M356=\"\",\"\",Template!M356)","v":""},{"$f":"IF(Template!N356=\"\",\"\",Template!N356)","v":""},null,null,null,null,null,{"$f":"IF(Template!O356=\"\",\"\",Template!O356)","v":""}]
[{"$f":"LEFT(Template!A357,4)","v":""},{"$f":"LEFT(Template!B357,5)","v":""},{"$f":"LEFT(Template!C357,7)","v":""},{"$f":"LEFT(Template!D357,6)","v":""},{"$f":"LEFT(Template!E357,2)","v":""},{"$f":"LEFT(Template!F357,3)","v":""},{"$f":"LEFT(Template!G357,10)","v":""},{"$f":"LEFT(Template!H357,6)","v":""},{"$f":"LEFT(Template!I357,4)","v":""},{"$f":"LEFT(Template!J357,6)","v":""},{"$f":"LEFT(Template!K357,6)","v":""},{"$f":"LEFT(Template!L357,3)","v":""},{"$f":"IF(Template!M357=\"\",\"\",Template!M357)","v":""},{"$f":"IF(Template!N357=\"\",\"\",Template!N357)","v":""},null,null,null,null,null,{"$f":"IF(Template!O357=\"\",\"\",Template!O357)","v":""}]
[{"$f":"LEFT(Template!A358,4)","v":""},{"$f":"LEFT(Template!B358,5)","v":""},{"$f":"LEFT(Template!C358,7)","v":""},{"$f":"LEFT(Template!D358,6)","v":""},{"$f":"LEFT(Template!E358,2)","v":""},{"$f":"LEFT(Template!F358,3)","v":""},{"$f":"LEFT(Template!G358,10)","v":""},{"$f":"LEFT(Template!H358,6)","v":""},{"$f":"LEFT(Template!I358,4)","v":""},{"$f":"LEFT(Template!J358,6)","v":""},{"$f":"LEFT(Template!K358,6)","v":""},{"$f":"LEFT(Template!L358,3)","v":""},{"$f":"IF(Template!M358=\"\",\"\",Template!M358)","v":""},{"$f":"IF(Template!N358=\"\",\"\",Template!N358)","v":""},null,null,null,null,null,{"$f":"IF(Template!O358=\"\",\"\",Template!O358)","v":""}]
[{"$f":"LEFT(Template!A359,4)","v":""},{"$f":"LEFT(Template!B359,5)","v":""},{"$f":"LEFT(Template!C359,7)","v":""},{"$f":"LEFT(Template!D359,6)","v":""},{"$f":"LEFT(Template!E359,2)","v":""},{"$f":"LEFT(Template!F359,3)","v":""},{"$f":"LEFT(Template!G359,10)","v":""},{"$f":"LEFT(Template!H359,6)","v":""},{"$f":"LEFT(Template!I359,4)","v":""},{"$f":"LEFT(Template!J359,6)","v":""},{"$f":"LEFT(Template!K359,6)","v":""},{"$f":"LEFT(Template!L359,3)","v":""},{"$f":"IF(Template!M359=\"\",\"\",Template!M359)","v":""},{"$f":"IF(Template!N359=\"\",\"\",Template!N359)","v":""},null,null,null,null,null,{"$f":"IF(Template!O359=\"\",\"\",Template!O359)","v":""}]
[{"$f":"LEFT(Template!A360,4)","v":""},{"$f":"LEFT(Template!B360,5)","v":""},{"$f":"LEFT(Template!C360,7)","v":""},{"$f":"LEFT(Template!D360,6)","v":""},{"$f":"LEFT(Template!E360,2)","v":""},{"$f":"LEFT(Template!F360,3)","v":""},{"$f":"LEFT(Template!G360,10)","v":""},{"$f":"LEFT(Template!H360,6)","v":""},{"$f":"LEFT(Template!I360,4)","v":""},{"$f":"LEFT(Template!J360,6)","v":""},{"$f":"LEFT(Template!K360,6)","v":""},{"$f":"LEFT(Template!L360,3)","v":""},{"$f":"IF(Template!M360=\"\",\"\",Template!M360)","v":""},{"$f":"IF(Template!N360=\"\",\"\",Template!N360)","v":""},null,null,null,null,null,{"$f":"IF(Template!O360=\"\",\"\",Template!O360)","v":""}]
[{"$f":"LEFT(Template!A361,4)","v":""},{"$f":"LEFT(Template!B361,5)","v":""},{"$f":"LEFT(Template!C361,7)","v":""},{"$f":"LEFT(Template!D361,6)","v":""},{"$f":"LEFT(Template!E361,2)","v":""},{"$f":"LEFT(Template!F361,3)","v":""},{"$f":"LEFT(Template!G361,10)","v":""},{"$f":"LEFT(Template!H361,6)","v":""},{"$f":"LEFT(Template!I361,4)","v":""},{"$f":"LEFT(Template!J361,6)","v":""},{"$f":"LEFT(Template!K361,6)","v":""},{"$f":"LEFT(Template!L361,3)","v":""},{"$f":"IF(Template!M361=\"\",\"\",Template!M361)","v":""},{"$f":"IF(Template!N361=\"\",\"\",Template!N361)","v":""},null,null,null,null,null,{"$f":"IF(Template!O361=\"\",\"\",Template!O361)","v":""}]
[{"$f":"LEFT(Template!A362,4)","v":""},{"$f":"LEFT(Template!B362,5)","v":""},{"$f":"LEFT(Template!C362,7)","v":""},{"$f":"LEFT(Template!D362,6)","v":""},{"$f":"LEFT(Template!E362,2)","v":""},{"$f":"LEFT(Template!F362,3)","v":""},{"$f":"LEFT(Template!G362,10)","v":""},{"$f":"LEFT(Template!H362,6)","v":""},{"$f":"LEFT(Template!I362,4)","v":""},{"$f":"LEFT(Template!J362,6)","v":""},{"$f":"LEFT(Template!K362,6)","v":""},{"$f":"LEFT(Template!L362,3)","v":""},{"$f":"IF(Template!M362=\"\",\"\",Template!M362)","v":""},{"$f":"IF(Template!N362=\"\",\"\",Template!N362)","v":""},null,null,null,null,null,{"$f":"IF(Template!O362=\"\",\"\",Template!O362)","v":""}]
[{"$f":"LEFT(Template!A363,4)","v":""},{"$f":"LEFT(Template!B363,5)","v":""},{"$f":"LEFT(Template!C363,7)","v":""},{"$f":"LEFT(Template!D363,6)","v":""},{"$f":"LEFT(Template!E363,2)","v":""},{"$f":"LEFT(Template!F363,3)","v":""},{"$f":"LEFT(Template!G363,10)","v":""},{"$f":"LEFT(Template!H363,6)","v":""},{"$f":"LEFT(Template!I363,4)","v":""},{"$f":"LEFT(Template!J363,6)","v":""},{"$f":"LEFT(Template!K363,6)","v":""},{"$f":"LEFT(Template!L363,3)","v":""},{"$f":"IF(Template!M363=\"\",\"\",Template!M363)","v":""},{"$f":"IF(Template!N363=\"\",\"\",Template!N363)","v":""},null,null,null,null,null,{"$f":"IF(Template!O363=\"\",\"\",Template!O363)","v":""}]
[{"$f":"LEFT(Template!A364,4)","v":""},{"$f":"LEFT(Template!B364,5)","v":""},{"$f":"LEFT(Template!C364,7)","v":""},{"$f":"LEFT(Template!D364,6)","v":""},{"$f":"LEFT(Template!E364,2)","v":""},{"$f":"LEFT(Template!F364,3)","v":""},{"$f":"LEFT(Template!G364,10)","v":""},{"$f":"LEFT(Template!H364,6)","v":""},{"$f":"LEFT(Template!I364,4)","v":""},{"$f":"LEFT(Template!J364,6)","v":""},{"$f":"LEFT(Template!K364,6)","v":""},{"$f":"LEFT(Template!L364,3)","v":""},{"$f":"IF(Template!M364=\"\",\"\",Template!M364)","v":""},{"$f":"IF(Template!N364=\"\",\"\",Template!N364)","v":""},null,null,null,null,null,{"$f":"IF(Template!O364=\"\",\"\",Template!O364)","v":""}]
[{"$f":"LEFT(Template!A365,4)","v":""},{"$f":"LEFT(Template!B365,5)","v":""},{"$f":"LEFT(Template!C365,7)","v":""},{"$f":"LEFT(Template!D365,6)","v":""},{"$f":"LEFT(Template!E365,2)","v":""},{"$f":"LEFT(Template!F365,3)","v":""},{"$f":"LEFT(Template!G365,10)","v":""},{"$f":"LEFT(Template!H365,6)","v":""},{"$f":"LEFT(Template!I365,4)","v":""},{"$f":"LEFT(Template!J365,6)","v":""},{"$f":"LEFT(Template!K365,6)","v":""},{"$f":"LEFT(Template!L365,3)","v":""},{"$f":"IF(Template!M365=\"\",\"\",Template!M365)","v":""},{"$f":"IF(Template!N365=\"\",\"\",Template!N365)","v":""},null,null,null,null,null,{"$f":"IF(Template!O365=\"\",\"\",Template!O365)","v":""}]
[{"$f":"LEFT(Template!A366,4)","v":""},{"$f":"LEFT(Template!B366,5)","v":""},{"$f":"LEFT(Template!C366,7)","v":""},{"$f":"LEFT(Template!D366,6)","v":""},{"$f":"LEFT(Template!E366,2)","v":""},{"$f":"LEFT(Template!F366,3)","v":""},{"$f":"LEFT(Template!G366,10)","v":""},{"$f":"LEFT(Template!H366,6)","v":""},{"$f":"LEFT(Template!I366,4)","v":""},{"$f":"LEFT(Template!J366,6)","v":""},{"$f":"LEFT(Template!K366,6)","v":""},{"$f":"LEFT(Template!L366,3)","v":""},{"$f":"IF(Template!M366=\"\",\"\",Template!M366)","v":""},{"$f":"IF(Template!N366=\"\",\"\",Template!N366)","v":""},null,null,null,null,null,{"$f":"IF(Template!O366=\"\",\"\",Template!O366)","v":""}]
[{"$f":"LEFT(Template!A367,4)","v":""},{"$f":"LEFT(Template!B367,5)","v":""},{"$f":"LEFT(Template!C367,7)","v":""},{"$f":"LEFT(Template!D367,6)","v":""},{"$f":"LEFT(Template!E367,2)","v":""},{"$f":"LEFT(Template!F367,3)","v":""},{"$f":"LEFT(Template!G367,10)","v":""},{"$f":"LEFT(Template!H367,6)","v":""},{"$f":"LEFT(Template!I367,4)","v":""},{"$f":"LEFT(Template!J367,6)","v":""},{"$f":"LEFT(Template!K367,6)","v":""},{"$f":"LEFT(Template!L367,3)","v":""},{"$f":"IF(Template!M367=\"\",\"\",Template!M367)","v":""},{"$f":"IF(Template!N367=\"\",\"\",Template!N367)","v":""},null,null,null,null,null,{"$f":"IF(Template!O367=\"\",\"\",Template!O367)","v":""}]
[{"$f":"LEFT(Template!A368,4)","v":""},{"$f":"LEFT(Template!B368,5)","v":""},{"$f":"LEFT(Template!C368,7)","v":""},{"$f":"LEFT(Template!D368,6)","v":""},{"$f":"LEFT(Template!E368,2)","v":""},{"$f":"LEFT(Template!F368,3)","v":""},{"$f":"LEFT(Template!G368,10)","v":""},{"$f":"LEFT(Template!H368,6)","v":""},{"$f":"LEFT(Template!I368,4)","v":""},{"$f":"LEFT(Template!J368,6)","v":""},{"$f":"LEFT(Template!K368,6)","v":""},{"$f":"LEFT(Template!L368,3)","v":""},{"$f":"IF(Template!M368=\"\",\"\",Template!M368)","v":""},{"$f":"IF(Template!N368=\"\",\"\",Template!N368)","v":""},null,null,null,null,null,{"$f":"IF(Template!O368=\"\",\"\",Template!O368)","v":""}]
[{"$f":"LEFT(Template!A369,4)","v":""},{"$f":"LEFT(Template!B369,5)","v":""},{"$f":"LEFT(Template!C369,7)","v":""},{"$f":"LEFT(Template!D369,6)","v":""},{"$f":"LEFT(Template!E369,2)","v":""},{"$f":"LEFT(Template!F369,3)","v":""},{"$f":"LEFT(Template!G369,10)","v":""},{"$f":"LEFT(Template!H369,6)","v":""},{"$f":"LEFT(Template!I369,4)","v":""},{"$f":"LEFT(Template!J369,6)","v":""},{"$f":"LEFT(Template!K369,6)","v":""},{"$f":"LEFT(Template!L369,3)","v":""},{"$f":"IF(Template!M369=\"\",\"\",Template!M369)","v":""},{"$f":"IF(Template!N369=\"\",\"\",Template!N369)","v":""},null,null,null,null,null,{"$f":"IF(Template!O369=\"\",\"\",Template!O369)","v":""}]
[{"$f":"LEFT(Template!A370,4)","v":""},{"$f":"LEFT(Template!B370,5)","v":""},{"$f":"LEFT(Template!C370,7)","v":""},{"$f":"LEFT(Template!D370,6)","v":""},{"$f":"LEFT(Template!E370,2)","v":""},{"$f":"LEFT(Template!F370,3)","v":""},{"$f":"LEFT(Template!G370,10)","v":""},{"$f":"LEFT(Template!H370,6)","v":""},{"$f":"LEFT(Template!I370,4)","v":""},{"$f":"LEFT(Template!J370,6)","v":""},{"$f":"LEFT(Template!K370,6)","v":""},{"$f":"LEFT(Template!L370,3)","v":""},{"$f":"IF(Template!M370=\"\",\"\",Template!M370)","v":""},{"$f":"IF(Template!N370=\"\",\"\",Template!N370)","v":""},null,null,null,null,null,{"$f":"IF(Template!O370=\"\",\"\",Template!O370)","v":""}]
[{"$f":"LEFT(Template!A371,4)","v":""},{"$f":"LEFT(Template!B371,5)","v":""},{"$f":"LEFT(Template!C371,7)","v":""},{"$f":"LEFT(Template!D371,6)","v":""},{"$f":"LEFT(Template!E371,2)","v":""},{"$f":"LEFT(Template!F371,3)","v":""},{"$f":"LEFT(Template!G371,10)","v":""},{"$f":"LEFT(Template!H371,6)","v":""},{"$f":"LEFT(Template!I371,4)","v":""},{"$f":"LEFT(Template!J371,6)","v":""},{"$f":"LEFT(Template!K371,6)","v":""},{"$f":"LEFT(Template!L371,3)","v":""},{"$f":"IF(Template!M371=\"\",\"\",Template!M371)","v":""},{"$f":"IF(Template!N371=\"\",\"\",Template!N371)","v":""},null,null,null,null,null,{"$f":"IF(Template!O371=\"\",\"\",Template!O371)","v":""}]
[{"$f":"LEFT(Template!A372,4)","v":""},{"$f":"LEFT(Template!B372,5)","v":""},{"$f":"LEFT(Template!C372,7)","v":""},{"$f":"LEFT(Template!D372,6)","v":""},{"$f":"LEFT(Template!E372,2)","v":""},{"$f":"LEFT(Template!F372,3)","v":""},{"$f":"LEFT(Template!G372,10)","v":""},{"$f":"LEFT(Template!H372,6)","v":""},{"$f":"LEFT(Template!I372,4)","v":""},{"$f":"LEFT(Template!J372,6)","v":""},{"$f":"LEFT(Template!K372,6)","v":""},{"$f":"LEFT(Template!L372,3)","v":""},{"$f":"IF(Template!M372=\"\",\"\",Template!M372)","v":""},{"$f":"IF(Template!N372=\"\",\"\",Template!N372)","v":""},null,null,null,null,null,{"$f":"IF(Template!O372=\"\",\"\",Template!O372)","v":""}]
[{"$f":"LEFT(Template!A373,4)","v":""},{"$f":"LEFT(Template!B373,5)","v":""},{"$f":"LEFT(Template!C373,7)","v":""},{"$f":"LEFT(Template!D373,6)","v":""},{"$f":"LEFT(Template!E373,2)","v":""},{"$f":"LEFT(Template!F373,3)","v":""},{"$f":"LEFT(Template!G373,10)","v":""},{"$f":"LEFT(Template!H373,6)","v":""},{"$f":"LEFT(Template!I373,4)","v":""},{"$f":"LEFT(Template!J373,6)","v":""},{"$f":"LEFT(Template!K373,6)","v":""},{"$f":"LEFT(Template!L373,3)","v":""},{"$f":"IF(Template!M373=\"\",\"\",Template!M373)","v":""},{"$f":"IF(Template!N373=\"\",\"\",Template!N373)","v":""},null,null,null,null,null,{"$f":"IF(Template!O373=\"\",\"\",Template!O373)","v":""}]
[{"$f":"LEFT(Template!A374,4)","v":""},{"$f":"LEFT(Template!B374,5)","v":""},{"$f":"LEFT(Template!C374,7)","v":""},{"$f":"LEFT(Template!D374,6)","v":""},{"$f":"LEFT(Template!E374,2)","v":""},{"$f":"LEFT(Template!F374,3)","v":""},{"$f":"LEFT(Template!G374,10)","v":""},{"$f":"LEFT(Template!H374,6)","v":""},{"$f":"LEFT(Template!I374,4)","v":""},{"$f":"LEFT(Template!J374,6)","v":""},{"$f":"LEFT(Template!K374,6)","v":""},{"$f":"LEFT(Template!L374,3)","v":""},{"$f":"IF(Template!M374=\"\",\"\",Template!M374)","v":""},{"$f":"IF(Template!N374=\"\",\"\",Template!N374)","v":""},null,null,null,null,null,{"$f":"IF(Template!O374=\"\",\"\",Template!O374)","v":""}]
[{"$f":"LEFT(Template!A375,4)","v":""},{"$f":"LEFT(Template!B375,5)","v":""},{"$f":"LEFT(Template!C375,7)","v":""},{"$f":"LEFT(Template!D375,6)","v":""},{"$f":"LEFT(Template!E375,2)","v":""},{"$f":"LEFT(Template!F375,3)","v":""},{"$f":"LEFT(Template!G375,10)","v":""},{"$f":"LEFT(Template!H375,6)","v":""},{"$f":"LEFT(Template!I375,4)","v":""},{"$f":"LEFT(Template!J375,6)","v":""},{"$f":"LEFT(Template!K375,6)","v":""},{"$f":"LEFT(Template!L375,3)","v":""},{"$f":"IF(Template!M375=\"\",\"\",Template!M375)","v":""},{"$f":"IF(Template!N375=\"\",\"\",Template!N375)","v":""},null,null,null,null,null,{"$f":"IF(Template!O375=\"\",\"\",Template!O375)","v":""}]
[{"$f":"LEFT(Template!A376,4)","v":""},{"$f":"LEFT(Template!B376,5)","v":""},{"$f":"LEFT(Template!C376,7)","v":""},{"$f":"LEFT(Template!D376,6)","v":""},{"$f":"LEFT(Template!E376,2)","v":""},{"$f":"LEFT(Template!F376,3)","v":""},{"$f":"LEFT(Template!G376,10)","v":""},{"$f":"LEFT(Template!H376,6)","v":""},{"$f":"LEFT(Template!I376,4)","v":""},{"$f":"LEFT(Template!J376,6)","v":""},{"$f":"LEFT(Template!K376,6)","v":""},{"$f":"LEFT(Template!L376,3)","v":""},{"$f":"IF(Template!M376=\"\",\"\",Template!M376)","v":""},{"$f":"IF(Template!N376=\"\",\"\",Template!N376)","v":""},null,null,null,null,null,{"$f":"IF(Template!O376=\"\",\"\",Template!O376)","v":""}]
[{"$f":"LEFT(Template!A377,4)","v":""},{"$f":"LEFT(Template!B377,5)","v":""},{"$f":"LEFT(Template!C377,7)","v":""},{"$f":"LEFT(Template!D377,6)","v":""},{"$f":"LEFT(Template!E377,2)","v":""},{"$f":"LEFT(Template!F377,3)","v":""},{"$f":"LEFT(Template!G377,10)","v":""},{"$f":"LEFT(Template!H377,6)","v":""},{"$f":"LEFT(Template!I377,4)","v":""},{"$f":"LEFT(Template!J377,6)","v":""},{"$f":"LEFT(Template!K377,6)","v":""},{"$f":"LEFT(Template!L377,3)","v":""},{"$f":"IF(Template!M377=\"\",\"\",Template!M377)","v":""},{"$f":"IF(Template!N377=\"\",\"\",Template!N377)","v":""},null,null,null,null,null,{"$f":"IF(Template!O377=\"\",\"\",Template!O377)","v":""}]
[{"$f":"LEFT(Template!A378,4)","v":""},{"$f":"LEFT(Template!B378,5)","v":""},{"$f":"LEFT(Template!C378,7)","v":""},{"$f":"LEFT(Template!D378,6)","v":""},{"$f":"LEFT(Template!E378,2)","v":""},{"$f":"LEFT(Template!F378,3)","v":""},{"$f":"LEFT(Template!G378,10)","v":""},{"$f":"LEFT(Template!H378,6)","v":""},{"$f":"LEFT(Template!I378,4)","v":""},{"$f":"LEFT(Template!J378,6)","v":""},{"$f":"LEFT(Template!K378,6)","v":""},{"$f":"LEFT(Template!L378,3)","v":""},{"$f":"IF(Template!M378=\"\",\"\",Template!M378)","v":""},{"$f":"IF(Template!N378=\"\",\"\",Template!N378)","v":""},null,null,null,null,null,{"$f":"IF(Template!O378=\"\",\"\",Template!O378)","v":""}]
[{"$f":"LEFT(Template!A379,4)","v":""},{"$f":"LEFT(Template!B379,5)","v":""},{"$f":"LEFT(Template!C379,7)","v":""},{"$f":"LEFT(Template!D379,6)","v":""},{"$f":"LEFT(Template!E379,2)","v":""},{"$f":"LEFT(Template!F379,3)","v":""},{"$f":"LEFT(Template!G379,10)","v":""},{"$f":"LEFT(Template!H379,6)","v":""},{"$f":"LEFT(Template!I379,4)","v":""},{"$f":"LEFT(Template!J379,6)","v":""},{"$f":"LEFT(Template!K379,6)","v":""},{"$f":"LEFT(Template!L379,3)","v":""},{"$f":"IF(Template!M379=\"\",\"\",Template!M379)","v":""},{"$f":"IF(Template!N379=\"\",\"\",Template!N379)","v":""},null,null,null,null,null,{"$f":"IF(Template!O379=\"\",\"\",Template!O379)","v":""}]
[{"$f":"LEFT(Template!A380,4)","v":""},{"$f":"LEFT(Template!B380,5)","v":""},{"$f":"LEFT(Template!C380,7)","v":""},{"$f":"LEFT(Template!D380,6)","v":""},{"$f":"LEFT(Template!E380,2)","v":""},{"$f":"LEFT(Template!F380,3)","v":""},{"$f":"LEFT(Template!G380,10)","v":""},{"$f":"LEFT(Template!H380,6)","v":""},{"$f":"LEFT(Template!I380,4)","v":""},{"$f":"LEFT(Template!J380,6)","v":""},{"$f":"LEFT(Template!K380,6)","v":""},{"$f":"LEFT(Template!L380,3)","v":""},{"$f":"IF(Template!M380=\"\",\"\",Template!M380)","v":""},{"$f":"IF(Template!N380=\"\",\"\",Template!N380)","v":""},null,null,null,null,null,{"$f":"IF(Template!O380=\"\",\"\",Template!O380)","v":""}]
[{"$f":"LEFT(Template!A381,4)","v":""},{"$f":"LEFT(Template!B381,5)","v":""},{"$f":"LEFT(Template!C381,7)","v":""},{"$f":"LEFT(Template!D381,6)","v":""},{"$f":"LEFT(Template!E381,2)","v":""},{"$f":"LEFT(Template!F381,3)","v":""},{"$f":"LEFT(Template!G381,10)","v":""},{"$f":"LEFT(Template!H381,6)","v":""},{"$f":"LEFT(Template!I381,4)","v":""},{"$f":"LEFT(Template!J381,6)","v":""},{"$f":"LEFT(Template!K381,6)","v":""},{"$f":"LEFT(Template!L381,3)","v":""},{"$f":"IF(Template!M381=\"\",\"\",Template!M381)","v":""},{"$f":"IF(Template!N381=\"\",\"\",Template!N381)","v":""},null,null,null,null,null,{"$f":"IF(Template!O381=\"\",\"\",Template!O381)","v":""}]
[{"$f":"LEFT(Template!A382,4)","v":""},{"$f":"LEFT(Template!B382,5)","v":""},{"$f":"LEFT(Template!C382,7)","v":""},{"$f":"LEFT(Template!D382,6)","v":""},{"$f":"LEFT(Template!E382,2)","v":""},{"$f":"LEFT(Template!F382,3)","v":""},{"$f":"LEFT(Template!G382,10)","v":""},{"$f":"LEFT(Template!H382,6)","v":""},{"$f":"LEFT(Template!I382,4)","v":""},{"$f":"LEFT(Template!J382,6)","v":""},{"$f":"LEFT(Template!K382,6)","v":""},{"$f":"LEFT(Template!L382,3)","v":""},{"$f":"IF(Template!M382=\"\",\"\",Template!M382)","v":""},{"$f":"IF(Template!N382=\"\",\"\",Template!N382)","v":""},null,null,null,null,null,{"$f":"IF(Template!O382=\"\",\"\",Template!O382)","v":""}]
[{"$f":"LEFT(Template!A383,4)","v":""},{"$f":"LEFT(Template!B383,5)","v":""},{"$f":"LEFT(Template!C383,7)","v":""},{"$f":"LEFT(Template!D383,6)","v":""},{"$f":"LEFT(Template!E383,2)","v":""},{"$f":"LEFT(Template!F383,3)","v":""},{"$f":"LEFT(Template!G383,10)","v":""},{"$f":"LEFT(Template!H383,6)","v":""},{"$f":"LEFT(Template!I383,4)","v":""},{"$f":"LEFT(Template!J383,6)","v":""},{"$f":"LEFT(Template!K383,6)","v":""},{"$f":"LEFT(Template!L383,3)","v":""},{"$f":"IF(Template!M383=\"\",\"\",Template!M383)","v":""},{"$f":"IF(Template!N383=\"\",\"\",Template!N383)","v":""},null,null,null,null,null,{"$f":"IF(Template!O383=\"\",\"\",Template!O383)","v":""}]
[{"$f":"LEFT(Template!A384,4)","v":""},{"$f":"LEFT(Template!B384,5)","v":""},{"$f":"LEFT(Template!C384,7)","v":""},{"$f":"LEFT(Template!D384,6)","v":""},{"$f":"LEFT(Template!E384,2)","v":""},{"$f":"LEFT(Template!F384,3)","v":""},{"$f":"LEFT(Template!G384,10)","v":""},{"$f":"LEFT(Template!H384,6)","v":""},{"$f":"LEFT(Template!I384,4)","v":""},{"$f":"LEFT(Template!J384,6)","v":""},{"$f":"LEFT(Template!K384,6)","v":""},{"$f":"LEFT(Template!L384,3)","v":""},{"$f":"IF(Template!M384=\"\",\"\",Template!M384)","v":""},{"$f":"IF(Template!N384=\"\",\"\",Template!N384)","v":""},null,null,null,null,null,{"$f":"IF(Template!O384=\"\",\"\",Template!O384)","v":""}]
[{"$f":"LEFT(Template!A385,4)","v":""},{"$f":"LEFT(Template!B385,5)","v":""},{"$f":"LEFT(Template!C385,7)","v":""},{"$f":"LEFT(Template!D385,6)","v":""},{"$f":"LEFT(Template!E385,2)","v":""},{"$f":"LEFT(Template!F385,3)","v":""},{"$f":"LEFT(Template!G385,10)","v":""},{"$f":"LEFT(Template!H385,6)","v":""},{"$f":"LEFT(Template!I385,4)","v":""},{"$f":"LEFT(Template!J385,6)","v":""},{"$f":"LEFT(Template!K385,6)","v":""},{"$f":"LEFT(Template!L385,3)","v":""},{"$f":"IF(Template!M385=\"\",\"\",Template!M385)","v":""},{"$f":"IF(Template!N385=\"\",\"\",Template!N385)","v":""},null,null,null,null,null,{"$f":"IF(Template!O385=\"\",\"\",Template!O385)","v":""}]
[{"$f":"LEFT(Template!A386,4)","v":""},{"$f":"LEFT(Template!B386,5)","v":""},{"$f":"LEFT(Template!C386,7)","v":""},{"$f":"LEFT(Template!D386,6)","v":""},{"$f":"LEFT(Template!E386,2)","v":""},{"$f":"LEFT(Template!F386,3)","v":""},{"$f":"LEFT(Template!G386,10)","v":""},{"$f":"LEFT(Template!H386,6)","v":""},{"$f":"LEFT(Template!I386,4)","v":""},{"$f":"LEFT(Template!J386,6)","v":""},{"$f":"LEFT(Template!K386,6)","v":""},{"$f":"LEFT(Template!L386,3)","v":""},{"$f":"IF(Template!M386=\"\",\"\",Template!M386)","v":""},{"$f":"IF(Template!N386=\"\",\"\",Template!N386)","v":""},null,null,null,null,null,{"$f":"IF(Template!O386=\"\",\"\",Template!O386)","v":""}]
[{"$f":"LEFT(Template!A387,4)","v":""},{"$f":"LEFT(Template!B387,5)","v":""},{"$f":"LEFT(Template!C387,7)","v":""},{"$f":"LEFT(Template!D387,6)","v":""},{"$f":"LEFT(Template!E387,2)","v":""},{"$f":"LEFT(Template!F387,3)","v":""},{"$f":"LEFT(Template!G387,10)","v":""},{"$f":"LEFT(Template!H387,6)","v":""},{"$f":"LEFT(Template!I387,4)","v":""},{"$f":"LEFT(Template!J387,6)","v":""},{"$f":"LEFT(Template!K387,6)","v":""},{"$f":"LEFT(Template!L387,3)","v":""},{"$f":"IF(Template!M387=\"\",\"\",Template!M387)","v":""},{"$f":"IF(Template!N387=\"\",\"\",Template!N387)","v":""},null,null,null,null,null,{"$f":"IF(Template!O387=\"\",\"\",Template!O387)","v":""}]
[{"$f":"LEFT(Template!A388,4)","v":""},{"$f":"LEFT(Template!B388,5)","v":""},{"$f":"LEFT(Template!C388,7)","v":""},{"$f":"LEFT(Template!D388,6)","v":""},{"$f":"LEFT(Template!E388,2)","v":""},{"$f":"LEFT(Template!F388,3)","v":""},{"$f":"LEFT(Template!G388,10)","v":""},{"$f":"LEFT(Template!H388,6)","v":""},{"$f":"LEFT(Template!I388,4)","v":""},{"$f":"LEFT(Template!J388,6)","v":""},{"$f":"LEFT(Template!K388,6)","v":""},{"$f":"LEFT(Template!L388,3)","v":""},{"$f":"IF(Template!M388=\"\",\"\",Template!M388)","v":""},{"$f":"IF(Template!N388=\"\",\"\",Template!N388)","v":""},null,null,null,null,null,{"$f":"IF(Template!O388=\"\",\"\",Template!O388)","v":""}]
[{"$f":"LEFT(Template!A389,4)","v":""},{"$f":"LEFT(Template!B389,5)","v":""},{"$f":"LEFT(Template!C389,7)","v":""},{"$f":"LEFT(Template!D389,6)","v":""},{"$f":"LEFT(Template!E389,2)","v":""},{"$f":"LEFT(Template!F389,3)","v":""},{"$f":"LEFT(Template!G389,10)","v":""},{"$f":"LEFT(Template!H389,6)","v":""},{"$f":"LEFT(Template!I389,4)","v":""},{"$f":"LEFT(Template!J389,6)","v":""},{"$f":"LEFT(Template!K389,6)","v":""},{"$f":"LEFT(Template!L389,3)","v":""},{"$f":"IF(Template!M389=\"\",\"\",Template!M389)","v":""},{"$f":"IF(Template!N389=\"\",\"\",Template!N389)","v":""},null,null,null,null,null,{"$f":"IF(Template!O389=\"\",\"\",Template!O389)","v":""}]
[{"$f":"LEFT(Template!A390,4)","v":""},{"$f":"LEFT(Template!B390,5)","v":""},{"$f":"LEFT(Template!C390,7)","v":""},{"$f":"LEFT(Template!D390,6)","v":""},{"$f":"LEFT(Template!E390,2)","v":""},{"$f":"LEFT(Template!F390,3)","v":""},{"$f":"LEFT(Template!G390,10)","v":""},{"$f":"LEFT(Template!H390,6)","v":""},{"$f":"LEFT(Template!I390,4)","v":""},{"$f":"LEFT(Template!J390,6)","v":""},{"$f":"LEFT(Template!K390,6)","v":""},{"$f":"LEFT(Template!L390,3)","v":""},{"$f":"IF(Template!M390=\"\",\"\",Template!M390)","v":""},{"$f":"IF(Template!N390=\"\",\"\",Template!N390)","v":""},null,null,null,null,null,{"$f":"IF(Template!O390=\"\",\"\",Template!O390)","v":""}]
[{"$f":"LEFT(Template!A391,4)","v":""},{"$f":"LEFT(Template!B391,5)","v":""},{"$f":"LEFT(Template!C391,7)","v":""},{"$f":"LEFT(Template!D391,6)","v":""},{"$f":"LEFT(Template!E391,2)","v":""},{"$f":"LEFT(Template!F391,3)","v":""},{"$f":"LEFT(Template!G391,10)","v":""},{"$f":"LEFT(Template!H391,6)","v":""},{"$f":"LEFT(Template!I391,4)","v":""},{"$f":"LEFT(Template!J391,6)","v":""},{"$f":"LEFT(Template!K391,6)","v":""},{"$f":"LEFT(Template!L391,3)","v":""},{"$f":"IF(Template!M391=\"\",\"\",Template!M391)","v":""},{"$f":"IF(Template!N391=\"\",\"\",Template!N391)","v":""},null,null,null,null,null,{"$f":"IF(Template!O391=\"\",\"\",Template!O391)","v":""}]
[{"$f":"LEFT(Template!A392,4)","v":""},{"$f":"LEFT(Template!B392,5)","v":""},{"$f":"LEFT(Template!C392,7)","v":""},{"$f":"LEFT(Template!D392,6)","v":""},{"$f":"LEFT(Template!E392,2)","v":""},{"$f":"LEFT(Template!F392,3)","v":""},{"$f":"LEFT(Template!G392,10)","v":""},{"$f":"LEFT(Template!H392,6)","v":""},{"$f":"LEFT(Template!I392,4)","v":""},{"$f":"LEFT(Template!J392,6)","v":""},{"$f":"LEFT(Template!K392,6)","v":""},{"$f":"LEFT(Template!L392,3)","v":""},{"$f":"IF(Template!M392=\"\",\"\",Template!M392)","v":""},{"$f":"IF(Template!N392=\"\",\"\",Template!N392)","v":""},null,null,null,null,null,{"$f":"IF(Template!O392=\"\",\"\",Template!O392)","v":""}]
[{"$f":"LEFT(Template!A393,4)","v":""},{"$f":"LEFT(Template!B393,5)","v":""},{"$f":"LEFT(Template!C393,7)","v":""},{"$f":"LEFT(Template!D393,6)","v":""},{"$f":"LEFT(Template!E393,2)","v":""},{"$f":"LEFT(Template!F393,3)","v":""},{"$f":"LEFT(Template!G393,10)","v":""},{"$f":"LEFT(Template!H393,6)","v":""},{"$f":"LEFT(Template!I393,4)","v":""},{"$f":"LEFT(Template!J393,6)","v":""},{"$f":"LEFT(Template!K393,6)","v":""},{"$f":"LEFT(Template!L393,3)","v":""},{"$f":"IF(Template!M393=\"\",\"\",Template!M393)","v":""},{"$f":"IF(Template!N393=\"\",\"\",Template!N393)","v":""},null,null,null,null,null,{"$f":"IF(Template!O393=\"\",\"\",Template!O393)","v":""}]
[{"$f":"LEFT(Template!A394,4)","v":""},{"$f":"LEFT(Template!B394,5)","v":""},{"$f":"LEFT(Template!C394,7)","v":""},{"$f":"LEFT(Template!D394,6)","v":""},{"$f":"LEFT(Template!E394,2)","v":""},{"$f":"LEFT(Template!F394,3)","v":""},{"$f":"LEFT(Template!G394,10)","v":""},{"$f":"LEFT(Template!H394,6)","v":""},{"$f":"LEFT(Template!I394,4)","v":""},{"$f":"LEFT(Template!J394,6)","v":""},{"$f":"LEFT(Template!K394,6)","v":""},{"$f":"LEFT(Template!L394,3)","v":""},{"$f":"IF(Template!M394=\"\",\"\",Template!M394)","v":""},{"$f":"IF(Template!N394=\"\",\"\",Template!N394)","v":""},null,null,null,null,null,{"$f":"IF(Template!O394=\"\",\"\",Template!O394)","v":""}]
[{"$f":"LEFT(Template!A395,4)","v":""},{"$f":"LEFT(Template!B395,5)","v":""},{"$f":"LEFT(Template!C395,7)","v":""},{"$f":"LEFT(Template!D395,6)","v":""},{"$f":"LEFT(Template!E395,2)","v":""},{"$f":"LEFT(Template!F395,3)","v":""},{"$f":"LEFT(Template!G395,10)","v":""},{"$f":"LEFT(Template!H395,6)","v":""},{"$f":"LEFT(Template!I395,4)","v":""},{"$f":"LEFT(Template!J395,6)","v":""},{"$f":"LEFT(Template!K395,6)","v":""},{"$f":"LEFT(Template!L395,3)","v":""},{"$f":"IF(Template!M395=\"\",\"\",Template!M395)","v":""},{"$f":"IF(Template!N395=\"\",\"\",Template!N395)","v":""},null,null,null,null,null,{"$f":"IF(Template!O395=\"\",\"\",Template!O395)","v":""}]
[{"$f":"LEFT(Template!A396,4)","v":""},{"$f":"LEFT(Template!B396,5)","v":""},{"$f":"LEFT(Template!C396,7)","v":""},{"$f":"LEFT(Template!D396,6)","v":""},{"$f":"LEFT(Template!E396,2)","v":""},{"$f":"LEFT(Template!F396,3)","v":""},{"$f":"LEFT(Template!G396,10)","v":""},{"$f":"LEFT(Template!H396,6)","v":""},{"$f":"LEFT(Template!I396,4)","v":""},{"$f":"LEFT(Template!J396,6)","v":""},{"$f":"LEFT(Template!K396,6)","v":""},{"$f":"LEFT(Template!L396,3)","v":""},{"$f":"IF(Template!M396=\"\",\"\",Template!M396)","v":""},{"$f":"IF(Template!N396=\"\",\"\",Template!N396)","v":""},null,null,null,null,null,{"$f":"IF(Template!O396=\"\",\"\",Template!O396)","v":""}]
[{"$f":"LEFT(Template!A397,4)","v":""},{"$f":"LEFT(Template!B397,5)","v":""},{"$f":"LEFT(Template!C397,7)","v":""},{"$f":"LEFT(Template!D397,6)","v":""},{"$f":"LEFT(Template!E397,2)","v":""},{"$f":"LEFT(Template!F397,3)","v":""},{"$f":"LEFT(Template!G397,10)","v":""},{"$f":"LEFT(Template!H397,6)","v":""},{"$f":"LEFT(Template!I397,4)","v":""},{"$f":"LEFT(Template!J397,6)","v":""},{"$f":"LEFT(Template!K397,6)","v":""},{"$f":"LEFT(Template!L397,3)","v":""},{"$f":"IF(Template!M397=\"\",\"\",Template!M397)","v":""},{"$f":"IF(Template!N397=\"\",\"\",Template!N397)","v":""},null,null,null,null,null,{"$f":"IF(Template!O397=\"\",\"\",Template!O397)","v":""}]
[{"$f":"LEFT(Template!A398,4)","v":""},{"$f":"LEFT(Template!B398,5)","v":""},{"$f":"LEFT(Template!C398,7)","v":""},{"$f":"LEFT(Template!D398,6)","v":""},{"$f":"LEFT(Template!E398,2)","v":""},{"$f":"LEFT(Template!F398,3)","v":""},{"$f":"LEFT(Template!G398,10)","v":""},{"$f":"LEFT(Template!H398,6)","v":""},{"$f":"LEFT(Template!I398,4)","v":""},{"$f":"LEFT(Template!J398,6)","v":""},{"$f":"LEFT(Template!K398,6)","v":""},{"$f":"LEFT(Template!L398,3)","v":""},{"$f":"IF(Template!M398=\"\",\"\",Template!M398)","v":""},{"$f":"IF(Template!N398=\"\",\"\",Template!N398)","v":""},null,null,null,null,null,{"$f":"IF(Template!O398=\"\",\"\",Template!O398)","v":""}]
[{"$f":"LEFT(Template!A399,4)","v":""},{"$f":"LEFT(Template!B399,5)","v":""},{"$f":"LEFT(Template!C399,7)","v":""},{"$f":"LEFT(Template!D399,6)","v":""},{"$f":"LEFT(Template!E399,2)","v":""},{"$f":"LEFT(Template!F399,3)","v":""},{"$f":"LEFT(Template!G399,10)","v":""},{"$f":"LEFT(Template!H399,6)","v":""},{"$f":"LEFT(Template!I399,4)","v":""},{"$f":"LEFT(Template!J399,6)","v":""},{"$f":"LEFT(Template!K399,6)","v":""},{"$f":"LEFT(Template!L399,3)","v":""},{"$f":"IF(Template!M399=\"\",\"\",Template!M399)","v":""},{"$f":"IF(Template!N399=\"\",\"\",Template!N399)","v":""},null,null,null,null,null,{"$f":"IF(Template!O399=\"\",\"\",Template!O399)","v":""}]
[{"$f":"LEFT(Template!A400,4)","v":""},{"$f":"LEFT(Template!B400,5)","v":""},{"$f":"LEFT(Template!C400,7)","v":""},{"$f":"LEFT(Template!D400,6)","v":""},{"$f":"LEFT(Template!E400,2)","v":""},{"$f":"LEFT(Template!F400,3)","v":""},{"$f":"LEFT(Template!G400,10)","v":""},{"$f":"LEFT(Template!H400,6)","v":""},{"$f":"LEFT(Template!I400,4)","v":""},{"$f":"LEFT(Template!J400,6)","v":""},{"$f":"LEFT(Template!K400,6)","v":""},{"$f":"LEFT(Template!L400,3)","v":""},{"$f":"IF(Template!M400=\"\",\"\",Template!M400)","v":""},{"$f":"IF(Template!N400=\"\",\"\",Template!N400)","v":""},null,null,null,null,null,{"$f":"IF(Template!O400=\"\",\"\",Template!O400)","v":""}]
[{"$f":"LEFT(Template!A401,4)","v":""},{"$f":"LEFT(Template!B401,5)","v":""},{"$f":"LEFT(Template!C401,7)","v":""},{"$f":"LEFT(Template!D401,6)","v":""},{"$f":"LEFT(Template!E401,2)","v":""},{"$f":"LEFT(Template!F401,3)","v":""},{"$f":"LEFT(Template!G401,10)","v":""},{"$f":"LEFT(Template!H401,6)","v":""},{"$f":"LEFT(Template!I401,4)","v":""},{"$f":"LEFT(Template!J401,6)","v":""},{"$f":"LEFT(Template!K401,6)","v":""},{"$f":"LEFT(Template!L401,3)","v":""},{"$f":"IF(Template!M401=\"\",\"\",Template!M401)","v":""},{"$f":"IF(Template!N401=\"\",\"\",Template!N401)","v":""},null,null,null,null,null,{"$f":"IF(Template!O401=\"\",\"\",Template!O401)","v":""}]
[{"$f":"LEFT(Template!A402,4)","v":""},{"$f":"LEFT(Template!B402,5)","v":""},{"$f":"LEFT(Template!C402,7)","v":""},{"$f":"LEFT(Template!D402,6)","v":""},{"$f":"LEFT(Template!E402,2)","v":""},{"$f":"LEFT(Template!F402,3)","v":""},{"$f":"LEFT(Template!G402,10)","v":""},{"$f":"LEFT(Template!H402,6)","v":""},{"$f":"LEFT(Template!I402,4)","v":""},{"$f":"LEFT(Template!J402,6)","v":""},{"$f":"LEFT(Template!K402,6)","v":""},{"$f":"LEFT(Template!L402,3)","v":""},{"$f":"IF(Template!M402=\"\",\"\",Template!M402)","v":""},{"$f":"IF(Template!N402=\"\",\"\",Template!N402)","v":""},null,null,null,null,null,{"$f":"IF(Template!O402=\"\",\"\",Template!O402)","v":""}]
[{"$f":"LEFT(Template!A403,4)","v":""},{"$f":"LEFT(Template!B403,5)","v":""},{"$f":"LEFT(Template!C403,7)","v":""},{"$f":"LEFT(Template!D403,6)","v":""},{"$f":"LEFT(Template!E403,2)","v":""},{"$f":"LEFT(Template!F403,3)","v":""},{"$f":"LEFT(Template!G403,10)","v":""},{"$f":"LEFT(Template!H403,6)","v":""},{"$f":"LEFT(Template!I403,4)","v":""},{"$f":"LEFT(Template!J403,6)","v":""},{"$f":"LEFT(Template!K403,6)","v":""},{"$f":"LEFT(Template!L403,3)","v":""},{"$f":"IF(Template!M403=\"\",\"\",Template!M403)","v":""},{"$f":"IF(Template!N403=\"\",\"\",Template!N403)","v":""},null,null,null,null,null,{"$f":"IF(Template!O403=\"\",\"\",Template!O403)","v":""}]
[{"$f":"LEFT(Template!A404,4)","v":""},{"$f":"LEFT(Template!B404,5)","v":""},{"$f":"LEFT(Template!C404,7)","v":""},{"$f":"LEFT(Template!D404,6)","v":""},{"$f":"LEFT(Template!E404,2)","v":""},{"$f":"LEFT(Template!F404,3)","v":""},{"$f":"LEFT(Template!G404,10)","v":""},{"$f":"LEFT(Template!H404,6)","v":""},{"$f":"LEFT(Template!I404,4)","v":""},{"$f":"LEFT(Template!J404,6)","v":""},{"$f":"LEFT(Template!K404,6)","v":""},{"$f":"LEFT(Template!L404,3)","v":""},{"$f":"IF(Template!M404=\"\",\"\",Template!M404)","v":""},{"$f":"IF(Template!N404=\"\",\"\",Template!N404)","v":""},null,null,null,null,null,{"$f":"IF(Template!O404=\"\",\"\",Template!O404)","v":""}]
[{"$f":"LEFT(Template!A405,4)","v":""},{"$f":"LEFT(Template!B405,5)","v":""},{"$f":"LEFT(Template!C405,7)","v":""},{"$f":"LEFT(Template!D405,6)","v":""},{"$f":"LEFT(Template!E405,2)","v":""},{"$f":"LEFT(Template!F405,3)","v":""},{"$f":"LEFT(Template!G405,10)","v":""},{"$f":"LEFT(Template!H405,6)","v":""},{"$f":"LEFT(Template!I405,4)","v":""},{"$f":"LEFT(Template!J405,6)","v":""},{"$f":"LEFT(Template!K405,6)","v":""},{"$f":"LEFT(Template!L405,3)","v":""},{"$f":"IF(Template!M405=\"\",\"\",Template!M405)","v":""},{"$f":"IF(Template!N405=\"\",\"\",Template!N405)","v":""},null,null,null,null,null,{"$f":"IF(Template!O405=\"\",\"\",Template!O405)","v":""}]
[{"$f":"LEFT(Template!A406,4)","v":""},{"$f":"LEFT(Template!B406,5)","v":""},{"$f":"LEFT(Template!C406,7)","v":""},{"$f":"LEFT(Template!D406,6)","v":""},{"$f":"LEFT(Template!E406,2)","v":""},{"$f":"LEFT(Template!F406,3)","v":""},{"$f":"LEFT(Template!G406,10)","v":""},{"$f":"LEFT(Template!H406,6)","v":""},{"$f":"LEFT(Template!I406,4)","v":""},{"$f":"LEFT(Template!J406,6)","v":""},{"$f":"LEFT(Template!K406,6)","v":""},{"$f":"LEFT(Template!L406,3)","v":""},{"$f":"IF(Template!M406=\"\",\"\",Template!M406)","v":""},{"$f":"IF(Template!N406=\"\",\"\",Template!N406)","v":""},null,null,null,null,null,{"$f":"IF(Template!O406=\"\",\"\",Template!O406)","v":""}]
[{"$f":"LEFT(Template!A407,4)","v":""},{"$f":"LEFT(Template!B407,5)","v":""},{"$f":"LEFT(Template!C407,7)","v":""},{"$f":"LEFT(Template!D407,6)","v":""},{"$f":"LEFT(Template!E407,2)","v":""},{"$f":"LEFT(Template!F407,3)","v":""},{"$f":"LEFT(Template!G407,10)","v":""},{"$f":"LEFT(Template!H407,6)","v":""},{"$f":"LEFT(Template!I407,4)","v":""},{"$f":"LEFT(Template!J407,6)","v":""},{"$f":"LEFT(Template!K407,6)","v":""},{"$f":"LEFT(Template!L407,3)","v":""},{"$f":"IF(Template!M407=\"\",\"\",Template!M407)","v":""},{"$f":"IF(Template!N407=\"\",\"\",Template!N407)","v":""},null,null,null,null,null,{"$f":"IF(Template!O407=\"\",\"\",Template!O407)","v":""}]
[{"$f":"LEFT(Template!A408,4)","v":""},{"$f":"LEFT(Template!B408,5)","v":""},{"$f":"LEFT(Template!C408,7)","v":""},{"$f":"LEFT(Template!D408,6)","v":""},{"$f":"LEFT(Template!E408,2)","v":""},{"$f":"LEFT(Template!F408,3)","v":""},{"$f":"LEFT(Template!G408,10)","v":""},{"$f":"LEFT(Template!H408,6)","v":""},{"$f":"LEFT(Template!I408,4)","v":""},{"$f":"LEFT(Template!J408,6)","v":""},{"$f":"LEFT(Template!K408,6)","v":""},{"$f":"LEFT(Template!L408,3)","v":""},{"$f":"IF(Template!M408=\"\",\"\",Template!M408)","v":""},{"$f":"IF(Template!N408=\"\",\"\",Template!N408)","v":""},null,null,null,null,null,{"$f":"IF(Template!O408=\"\",\"\",Template!O408)","v":""}]
[{"$f":"LEFT(Template!A409,4)","v":""},{"$f":"LEFT(Template!B409,5)","v":""},{"$f":"LEFT(Template!C409,7)","v":""},{"$f":"LEFT(Template!D409,6)","v":""},{"$f":"LEFT(Template!E409,2)","v":""},{"$f":"LEFT(Template!F409,3)","v":""},{"$f":"LEFT(Template!G409,10)","v":""},{"$f":"LEFT(Template!H409,6)","v":""},{"$f":"LEFT(Template!I409,4)","v":""},{"$f":"LEFT(Template!J409,6)","v":""},{"$f":"LEFT(Template!K409,6)","v":""},{"$f":"LEFT(Template!L409,3)","v":""},{"$f":"IF(Template!M409=\"\",\"\",Template!M409)","v":""},{"$f":"IF(Template!N409=\"\",\"\",Template!N409)","v":""},null,null,null,null,null,{"$f":"IF(Template!O409=\"\",\"\",Template!O409)","v":""}]
[{"$f":"LEFT(Template!A410,4)","v":""},{"$f":"LEFT(Template!B410,5)","v":""},{"$f":"LEFT(Template!C410,7)","v":""},{"$f":"LEFT(Template!D410,6)","v":""},{"$f":"LEFT(Template!E410,2)","v":""},{"$f":"LEFT(Template!F410,3)","v":""},{"$f":"LEFT(Template!G410,10)","v":""},{"$f":"LEFT(Template!H410,6)","v":""},{"$f":"LEFT(Template!I410,4)","v":""},{"$f":"LEFT(Template!J410,6)","v":""},{"$f":"LEFT(Template!K410,6)","v":""},{"$f":"LEFT(Template!L410,3)","v":""},{"$f":"IF(Template!M410=\"\",\"\",Template!M410)","v":""},{"$f":"IF(Template!N410=\"\",\"\",Template!N410)","v":""},null,null,null,null,null,{"$f":"IF(Template!O410=\"\",\"\",Template!O410)","v":""}]
[{"$f":"LEFT(Template!A411,4)","v":""},{"$f":"LEFT(Template!B411,5)","v":""},{"$f":"LEFT(Template!C411,7)","v":""},{"$f":"LEFT(Template!D411,6)","v":""},{"$f":"LEFT(Template!E411,2)","v":""},{"$f":"LEFT(Template!F411,3)","v":""},{"$f":"LEFT(Template!G411,10)","v":""},{"$f":"LEFT(Template!H411,6)","v":""},{"$f":"LEFT(Template!I411,4)","v":""},{"$f":"LEFT(Template!J411,6)","v":""},{"$f":"LEFT(Template!K411,6)","v":""},{"$f":"LEFT(Template!L411,3)","v":""},{"$f":"IF(Template!M411=\"\",\"\",Template!M411)","v":""},{"$f":"IF(Template!N411=\"\",\"\",Template!N411)","v":""},null,null,null,null,null,{"$f":"IF(Template!O411=\"\",\"\",Template!O411)","v":""}]
[{"$f":"LEFT(Template!A412,4)","v":""},{"$f":"LEFT(Template!B412,5)","v":""},{"$f":"LEFT(Template!C412,7)","v":""},{"$f":"LEFT(Template!D412,6)","v":""},{"$f":"LEFT(Template!E412,2)","v":""},{"$f":"LEFT(Template!F412,3)","v":""},{"$f":"LEFT(Template!G412,10)","v":""},{"$f":"LEFT(Template!H412,6)","v":""},{"$f":"LEFT(Template!I412,4)","v":""},{"$f":"LEFT(Template!J412,6)","v":""},{"$f":"LEFT(Template!K412,6)","v":""},{"$f":"LEFT(Template!L412,3)","v":""},{"$f":"IF(Template!M412=\"\",\"\",Template!M412)","v":""},{"$f":"IF(Template!N412=\"\",\"\",Template!N412)","v":""},null,null,null,null,null,{"$f":"IF(Template!O412=\"\",\"\",Template!O412)","v":""}]
[{"$f":"LEFT(Template!A413,4)","v":""},{"$f":"LEFT(Template!B413,5)","v":""},{"$f":"LEFT(Template!C413,7)","v":""},{"$f":"LEFT(Template!D413,6)","v":""},{"$f":"LEFT(Template!E413,2)","v":""},{"$f":"LEFT(Template!F413,3)","v":""},{"$f":"LEFT(Template!G413,10)","v":""},{"$f":"LEFT(Template!H413,6)","v":""},{"$f":"LEFT(Template!I413,4)","v":""},{"$f":"LEFT(Template!J413,6)","v":""},{"$f":"LEFT(Template!K413,6)","v":""},{"$f":"LEFT(Template!L413,3)","v":""},{"$f":"IF(Template!M413=\"\",\"\",Template!M413)","v":""},{"$f":"IF(Template!N413=\"\",\"\",Template!N413)","v":""},null,null,null,null,null,{"$f":"IF(Template!O413=\"\",\"\",Template!O413)","v":""}]
[{"$f":"LEFT(Template!A414,4)","v":""},{"$f":"LEFT(Template!B414,5)","v":""},{"$f":"LEFT(Template!C414,7)","v":""},{"$f":"LEFT(Template!D414,6)","v":""},{"$f":"LEFT(Template!E414,2)","v":""},{"$f":"LEFT(Template!F414,3)","v":""},{"$f":"LEFT(Template!G414,10)","v":""},{"$f":"LEFT(Template!H414,6)","v":""},{"$f":"LEFT(Template!I414,4)","v":""},{"$f":"LEFT(Template!J414,6)","v":""},{"$f":"LEFT(Template!K414,6)","v":""},{"$f":"LEFT(Template!L414,3)","v":""},{"$f":"IF(Template!M414=\"\",\"\",Template!M414)","v":""},{"$f":"IF(Template!N414=\"\",\"\",Template!N414)","v":""},null,null,null,null,null,{"$f":"IF(Template!O414=\"\",\"\",Template!O414)","v":""}]
[{"$f":"LEFT(Template!A415,4)","v":""},{"$f":"LEFT(Template!B415,5)","v":""},{"$f":"LEFT(Template!C415,7)","v":""},{"$f":"LEFT(Template!D415,6)","v":""},{"$f":"LEFT(Template!E415,2)","v":""},{"$f":"LEFT(Template!F415,3)","v":""},{"$f":"LEFT(Template!G415,10)","v":""},{"$f":"LEFT(Template!H415,6)","v":""},{"$f":"LEFT(Template!I415,4)","v":""},{"$f":"LEFT(Template!J415,6)","v":""},{"$f":"LEFT(Template!K415,6)","v":""},{"$f":"LEFT(Template!L415,3)","v":""},{"$f":"IF(Template!M415=\"\",\"\",Template!M415)","v":""},{"$f":"IF(Template!N415=\"\",\"\",Template!N415)","v":""},null,null,null,null,null,{"$f":"IF(Template!O415=\"\",\"\",Template!O415)","v":""}]
[{"$f":"LEFT(Template!A416,4)","v":""},{"$f":"LEFT(Template!B416,5)","v":""},{"$f":"LEFT(Template!C416,7)","v":""},{"$f":"LEFT(Template!D416,6)","v":""},{"$f":"LEFT(Template!E416,2)","v":""},{"$f":"LEFT(Template!F416,3)","v":""},{"$f":"LEFT(Template!G416,10)","v":""},{"$f":"LEFT(Template!H416,6)","v":""},{"$f":"LEFT(Template!I416,4)","v":""},{"$f":"LEFT(Template!J416,6)","v":""},{"$f":"LEFT(Template!K416,6)","v":""},{"$f":"LEFT(Template!L416,3)","v":""},{"$f":"IF(Template!M416=\"\",\"\",Template!M416)","v":""},{"$f":"IF(Template!N416=\"\",\"\",Template!N416)","v":""},null,null,null,null,null,{"$f":"IF(Template!O416=\"\",\"\",Template!O416)","v":""}]
[{"$f":"LEFT(Template!A417,4)","v":""},{"$f":"LEFT(Template!B417,5)","v":""},{"$f":"LEFT(Template!C417,7)","v":""},{"$f":"LEFT(Template!D417,6)","v":""},{"$f":"LEFT(Template!E417,2)","v":""},{"$f":"LEFT(Template!F417,3)","v":""},{"$f":"LEFT(Template!G417,10)","v":""},{"$f":"LEFT(Template!H417,6)","v":""},{"$f":"LEFT(Template!I417,4)","v":""},{"$f":"LEFT(Template!J417,6)","v":""},{"$f":"LEFT(Template!K417,6)","v":""},{"$f":"LEFT(Template!L417,3)","v":""},{"$f":"IF(Template!M417=\"\",\"\",Template!M417)","v":""},{"$f":"IF(Template!N417=\"\",\"\",Template!N417)","v":""},null,null,null,null,null,{"$f":"IF(Template!O417=\"\",\"\",Template!O417)","v":""}]
[{"$f":"LEFT(Template!A418,4)","v":""},{"$f":"LEFT(Template!B418,5)","v":""},{"$f":"LEFT(Template!C418,7)","v":""},{"$f":"LEFT(Template!D418,6)","v":""},{"$f":"LEFT(Template!E418,2)","v":""},{"$f":"LEFT(Template!F418,3)","v":""},{"$f":"LEFT(Template!G418,10)","v":""},{"$f":"LEFT(Template!H418,6)","v":""},{"$f":"LEFT(Template!I418,4)","v":""},{"$f":"LEFT(Template!J418,6)","v":""},{"$f":"LEFT(Template!K418,6)","v":""},{"$f":"LEFT(Template!L418,3)","v":""},{"$f":"IF(Template!M418=\"\",\"\",Template!M418)","v":""},{"$f":"IF(Template!N418=\"\",\"\",Template!N418)","v":""},null,null,null,null,null,{"$f":"IF(Template!O418=\"\",\"\",Template!O418)","v":""}]
[{"$f":"LEFT(Template!A419,4)","v":""},{"$f":"LEFT(Template!B419,5)","v":""},{"$f":"LEFT(Template!C419,7)","v":""},{"$f":"LEFT(Template!D419,6)","v":""},{"$f":"LEFT(Template!E419,2)","v":""},{"$f":"LEFT(Template!F419,3)","v":""},{"$f":"LEFT(Template!G419,10)","v":""},{"$f":"LEFT(Template!H419,6)","v":""},{"$f":"LEFT(Template!I419,4)","v":""},{"$f":"LEFT(Template!J419,6)","v":""},{"$f":"LEFT(Template!K419,6)","v":""},{"$f":"LEFT(Template!L419,3)","v":""},{"$f":"IF(Template!M419=\"\",\"\",Template!M419)","v":""},{"$f":"IF(Template!N419=\"\",\"\",Template!N419)","v":""},null,null,null,null,null,{"$f":"IF(Template!O419=\"\",\"\",Template!O419)","v":""}]
[{"$f":"LEFT(Template!A420,4)","v":""},{"$f":"LEFT(Template!B420,5)","v":""},{"$f":"LEFT(Template!C420,7)","v":""},{"$f":"LEFT(Template!D420,6)","v":""},{"$f":"LEFT(Template!E420,2)","v":""},{"$f":"LEFT(Template!F420,3)","v":""},{"$f":"LEFT(Template!G420,10)","v":""},{"$f":"LEFT(Template!H420,6)","v":""},{"$f":"LEFT(Template!I420,4)","v":""},{"$f":"LEFT(Template!J420,6)","v":""},{"$f":"LEFT(Template!K420,6)","v":""},{"$f":"LEFT(Template!L420,3)","v":""},{"$f":"IF(Template!M420=\"\",\"\",Template!M420)","v":""},{"$f":"IF(Template!N420=\"\",\"\",Template!N420)","v":""},null,null,null,null,null,{"$f":"IF(Template!O420=\"\",\"\",Template!O420)","v":""}]
[{"$f":"LEFT(Template!A421,4)","v":""},{"$f":"LEFT(Template!B421,5)","v":""},{"$f":"LEFT(Template!C421,7)","v":""},{"$f":"LEFT(Template!D421,6)","v":""},{"$f":"LEFT(Template!E421,2)","v":""},{"$f":"LEFT(Template!F421,3)","v":""},{"$f":"LEFT(Template!G421,10)","v":""},{"$f":"LEFT(Template!H421,6)","v":""},{"$f":"LEFT(Template!I421,4)","v":""},{"$f":"LEFT(Template!J421,6)","v":""},{"$f":"LEFT(Template!K421,6)","v":""},{"$f":"LEFT(Template!L421,3)","v":""},{"$f":"IF(Template!M421=\"\",\"\",Template!M421)","v":""},{"$f":"IF(Template!N421=\"\",\"\",Template!N421)","v":""},null,null,null,null,null,{"$f":"IF(Template!O421=\"\",\"\",Template!O421)","v":""}]
[{"$f":"LEFT(Template!A422,4)","v":""},{"$f":"LEFT(Template!B422,5)","v":""},{"$f":"LEFT(Template!C422,7)","v":""},{"$f":"LEFT(Template!D422,6)","v":""},{"$f":"LEFT(Template!E422,2)","v":""},{"$f":"LEFT(Template!F422,3)","v":""},{"$f":"LEFT(Template!G422,10)","v":""},{"$f":"LEFT(Template!H422,6)","v":""},{"$f":"LEFT(Template!I422,4)","v":""},{"$f":"LEFT(Template!J422,6)","v":""},{"$f":"LEFT(Template!K422,6)","v":""},{"$f":"LEFT(Template!L422,3)","v":""},{"$f":"IF(Template!M422=\"\",\"\",Template!M422)","v":""},{"$f":"IF(Template!N422=\"\",\"\",Template!N422)","v":""},null,null,null,null,null,{"$f":"IF(Template!O422=\"\",\"\",Template!O422)","v":""}]
[{"$f":"LEFT(Template!A423,4)","v":""},{"$f":"LEFT(Template!B423,5)","v":""},{"$f":"LEFT(Template!C423,7)","v":""},{"$f":"LEFT(Template!D423,6)","v":""},{"$f":"LEFT(Template!E423,2)","v":""},{"$f":"LEFT(Template!F423,3)","v":""},{"$f":"LEFT(Template!G423,10)","v":""},{"$f":"LEFT(Template!H423,6)","v":""},{"$f":"LEFT(Template!I423,4)","v":""},{"$f":"LEFT(Template!J423,6)","v":""},{"$f":"LEFT(Template!K423,6)","v":""},{"$f":"LEFT(Template!L423,3)","v":""},{"$f":"IF(Template!M423=\"\",\"\",Template!M423)","v":""},{"$f":"IF(Template!N423=\"\",\"\",Template!N423)","v":""},null,null,null,null,null,{"$f":"IF(Template!O423=\"\",\"\",Template!O423)","v":""}]
[{"$f":"LEFT(Template!A424,4)","v":""},{"$f":"LEFT(Template!B424,5)","v":""},{"$f":"LEFT(Template!C424,7)","v":""},{"$f":"LEFT(Template!D424,6)","v":""},{"$f":"LEFT(Template!E424,2)","v":""},{"$f":"LEFT(Template!F424,3)","v":""},{"$f":"LEFT(Template!G424,10)","v":""},{"$f":"LEFT(Template!H424,6)","v":""},{"$f":"LEFT(Template!I424,4)","v":""},{"$f":"LEFT(Template!J424,6)","v":""},{"$f":"LEFT(Template!K424,6)","v":""},{"$f":"LEFT(Template!L424,3)","v":""},{"$f":"IF(Template!M424=\"\",\"\",Template!M424)","v":""},{"$f":"IF(Template!N424=\"\",\"\",Template!N424)","v":""},null,null,null,null,null,{"$f":"IF(Template!O424=\"\",\"\",Template!O424)","v":""}]
[{"$f":"LEFT(Template!A425,4)","v":""},{"$f":"LEFT(Template!B425,5)","v":""},{"$f":"LEFT(Template!C425,7)","v":""},{"$f":"LEFT(Template!D425,6)","v":""},{"$f":"LEFT(Template!E425,2)","v":""},{"$f":"LEFT(Template!F425,3)","v":""},{"$f":"LEFT(Template!G425,10)","v":""},{"$f":"LEFT(Template!H425,6)","v":""},{"$f":"LEFT(Template!I425,4)","v":""},{"$f":"LEFT(Template!J425,6)","v":""},{"$f":"LEFT(Template!K425,6)","v":""},{"$f":"LEFT(Template!L425,3)","v":""},{"$f":"IF(Template!M425=\"\",\"\",Template!M425)","v":""},{"$f":"IF(Template!N425=\"\",\"\",Template!N425)","v":""},null,null,null,null,null,{"$f":"IF(Template!O425=\"\",\"\",Template!O425)","v":""}]
[{"$f":"LEFT(Template!A426,4)","v":""},{"$f":"LEFT(Template!B426,5)","v":""},{"$f":"LEFT(Template!C426,7)","v":""},{"$f":"LEFT(Template!D426,6)","v":""},{"$f":"LEFT(Template!E426,2)","v":""},{"$f":"LEFT(Template!F426,3)","v":""},{"$f":"LEFT(Template!G426,10)","v":""},{"$f":"LEFT(Template!H426,6)","v":""},{"$f":"LEFT(Template!I426,4)","v":""},{"$f":"LEFT(Template!J426,6)","v":""},{"$f":"LEFT(Template!K426,6)","v":""},{"$f":"LEFT(Template!L426,3)","v":""},{"$f":"IF(Template!M426=\"\",\"\",Template!M426)","v":""},{"$f":"IF(Template!N426=\"\",\"\",Template!N426)","v":""},null,null,null,null,null,{"$f":"IF(Template!O426=\"\",\"\",Template!O426)","v":""}]
[{"$f":"LEFT(Template!A427,4)","v":""},{"$f":"LEFT(Template!B427,5)","v":""},{"$f":"LEFT(Template!C427,7)","v":""},{"$f":"LEFT(Template!D427,6)","v":""},{"$f":"LEFT(Template!E427,2)","v":""},{"$f":"LEFT(Template!F427,3)","v":""},{"$f":"LEFT(Template!G427,10)","v":""},{"$f":"LEFT(Template!H427,6)","v":""},{"$f":"LEFT(Template!I427,4)","v":""},{"$f":"LEFT(Template!J427,6)","v":""},{"$f":"LEFT(Template!K427,6)","v":""},{"$f":"LEFT(Template!L427,3)","v":""},{"$f":"IF(Template!M427=\"\",\"\",Template!M427)","v":""},{"$f":"IF(Template!N427=\"\",\"\",Template!N427)","v":""},null,null,null,null,null,{"$f":"IF(Template!O427=\"\",\"\",Template!O427)","v":""}]
[{"$f":"LEFT(Template!A428,4)","v":""},{"$f":"LEFT(Template!B428,5)","v":""},{"$f":"LEFT(Template!C428,7)","v":""},{"$f":"LEFT(Template!D428,6)","v":""},{"$f":"LEFT(Template!E428,2)","v":""},{"$f":"LEFT(Template!F428,3)","v":""},{"$f":"LEFT(Template!G428,10)","v":""},{"$f":"LEFT(Template!H428,6)","v":""},{"$f":"LEFT(Template!I428,4)","v":""},{"$f":"LEFT(Template!J428,6)","v":""},{"$f":"LEFT(Template!K428,6)","v":""},{"$f":"LEFT(Template!L428,3)","v":""},{"$f":"IF(Template!M428=\"\",\"\",Template!M428)","v":""},{"$f":"IF(Template!N428=\"\",\"\",Template!N428)","v":""},null,null,null,null,null,{"$f":"IF(Template!O428=\"\",\"\",Template!O428)","v":""}]
[{"$f":"LEFT(Template!A429,4)","v":""},{"$f":"LEFT(Template!B429,5)","v":""},{"$f":"LEFT(Template!C429,7)","v":""},{"$f":"LEFT(Template!D429,6)","v":""},{"$f":"LEFT(Template!E429,2)","v":""},{"$f":"LEFT(Template!F429,3)","v":""},{"$f":"LEFT(Template!G429,10)","v":""},{"$f":"LEFT(Template!H429,6)","v":""},{"$f":"LEFT(Template!I429,4)","v":""},{"$f":"LEFT(Template!J429,6)","v":""},{"$f":"LEFT(Template!K429,6)","v":""},{"$f":"LEFT(Template!L429,3)","v":""},{"$f":"IF(Template!M429=\"\",\"\",Template!M429)","v":""},{"$f":"IF(Template!N429=\"\",\"\",Template!N429)","v":""},null,null,null,null,null,{"$f":"IF(Template!O429=\"\",\"\",Template!O429)","v":""}]
[{"$f":"LEFT(Template!A430,4)","v":""},{"$f":"LEFT(Template!B430,5)","v":""},{"$f":"LEFT(Template!C430,7)","v":""},{"$f":"LEFT(Template!D430,6)","v":""},{"$f":"LEFT(Template!E430,2)","v":""},{"$f":"LEFT(Template!F430,3)","v":""},{"$f":"LEFT(Template!G430,10)","v":""},{"$f":"LEFT(Template!H430,6)","v":""},{"$f":"LEFT(Template!I430,4)","v":""},{"$f":"LEFT(Template!J430,6)","v":""},{"$f":"LEFT(Template!K430,6)","v":""},{"$f":"LEFT(Template!L430,3)","v":""},{"$f":"IF(Template!M430=\"\",\"\",Template!M430)","v":""},{"$f":"IF(Template!N430=\"\",\"\",Template!N430)","v":""},null,null,null,null,null,{"$f":"IF(Template!O430=\"\",\"\",Template!O430)","v":""}]
[{"$f":"LEFT(Template!A431,4)","v":""},{"$f":"LEFT(Template!B431,5)","v":""},{"$f":"LEFT(Template!C431,7)","v":""},{"$f":"LEFT(Template!D431,6)","v":""},{"$f":"LEFT(Template!E431,2)","v":""},{"$f":"LEFT(Template!F431,3)","v":""},{"$f":"LEFT(Template!G431,10)","v":""},{"$f":"LEFT(Template!H431,6)","v":""},{"$f":"LEFT(Template!I431,4)","v":""},{"$f":"LEFT(Template!J431,6)","v":""},{"$f":"LEFT(Template!K431,6)","v":""},{"$f":"LEFT(Template!L431,3)","v":""},{"$f":"IF(Template!M431=\"\",\"\",Template!M431)","v":""},{"$f":"IF(Template!N431=\"\",\"\",Template!N431)","v":""},null,null,null,null,null,{"$f":"IF(Template!O431=\"\",\"\",Template!O431)","v":""}]
[{"$f":"LEFT(Template!A432,4)","v":""},{"$f":"LEFT(Template!B432,5)","v":""},{"$f":"LEFT(Template!C432,7)","v":""},{"$f":"LEFT(Template!D432,6)","v":""},{"$f":"LEFT(Template!E432,2)","v":""},{"$f":"LEFT(Template!F432,3)","v":""},{"$f":"LEFT(Template!G432,10)","v":""},{"$f":"LEFT(Template!H432,6)","v":""},{"$f":"LEFT(Template!I432,4)","v":""},{"$f":"LEFT(Template!J432,6)","v":""},{"$f":"LEFT(Template!K432,6)","v":""},{"$f":"LEFT(Template!L432,3)","v":""},{"$f":"IF(Template!M432=\"\",\"\",Template!M432)","v":""},{"$f":"IF(Template!N432=\"\",\"\",Template!N432)","v":""},null,null,null,null,null,{"$f":"IF(Template!O432=\"\",\"\",Template!O432)","v":""}]
[{"$f":"LEFT(Template!A433,4)","v":""},{"$f":"LEFT(Template!B433,5)","v":""},{"$f":"LEFT(Template!C433,7)","v":""},{"$f":"LEFT(Template!D433,6)","v":""},{"$f":"LEFT(Template!E433,2)","v":""},{"$f":"LEFT(Template!F433,3)","v":""},{"$f":"LEFT(Template!G433,10)","v":""},{"$f":"LEFT(Template!H433,6)","v":""},{"$f":"LEFT(Template!I433,4)","v":""},{"$f":"LEFT(Template!J433,6)","v":""},{"$f":"LEFT(Template!K433,6)","v":""},{"$f":"LEFT(Template!L433,3)","v":""},{"$f":"IF(Template!M433=\"\",\"\",Template!M433)","v":""},{"$f":"IF(Template!N433=\"\",\"\",Template!N433)","v":""},null,null,null,null,null,{"$f":"IF(Template!O433=\"\",\"\",Template!O433)","v":""}]
[{"$f":"LEFT(Template!A434,4)","v":""},{"$f":"LEFT(Template!B434,5)","v":""},{"$f":"LEFT(Template!C434,7)","v":""},{"$f":"LEFT(Template!D434,6)","v":""},{"$f":"LEFT(Template!E434,2)","v":""},{"$f":"LEFT(Template!F434,3)","v":""},{"$f":"LEFT(Template!G434,10)","v":""},{"$f":"LEFT(Template!H434,6)","v":""},{"$f":"LEFT(Template!I434,4)","v":""},{"$f":"LEFT(Template!J434,6)","v":""},{"$f":"LEFT(Template!K434,6)","v":""},{"$f":"LEFT(Template!L434,3)","v":""},{"$f":"IF(Template!M434=\"\",\"\",Template!M434)","v":""},{"$f":"IF(Template!N434=\"\",\"\",Template!N434)","v":""},null,null,null,null,null,{"$f":"IF(Template!O434=\"\",\"\",Template!O434)","v":""}]
[{"$f":"LEFT(Template!A435,4)","v":""},{"$f":"LEFT(Template!B435,5)","v":""},{"$f":"LEFT(Template!C435,7)","v":""},{"$f":"LEFT(Template!D435,6)","v":""},{"$f":"LEFT(Template!E435,2)","v":""},{"$f":"LEFT(Template!F435,3)","v":""},{"$f":"LEFT(Template!G435,10)","v":""},{"$f":"LEFT(Template!H435,6)","v":""},{"$f":"LEFT(Template!I435,4)","v":""},{"$f":"LEFT(Template!J435,6)","v":""},{"$f":"LEFT(Template!K435,6)","v":""},{"$f":"LEFT(Template!L435,3)","v":""},{"$f":"IF(Template!M435=\"\",\"\",Template!M435)","v":""},{"$f":"IF(Template!N435=\"\",\"\",Template!N435)","v":""},null,null,null,null,null,{"$f":"IF(Template!O435=\"\",\"\",Template!O435)","v":""}]
[{"$f":"LEFT(Template!A436,4)","v":""},{"$f":"LEFT(Template!B436,5)","v":""},{"$f":"LEFT(Template!C436,7)","v":""},{"$f":"LEFT(Template!D436,6)","v":""},{"$f":"LEFT(Template!E436,2)","v":""},{"$f":"LEFT(Template!F436,3)","v":""},{"$f":"LEFT(Template!G436,10)","v":""},{"$f":"LEFT(Template!H436,6)","v":""},{"$f":"LEFT(Template!I436,4)","v":""},{"$f":"LEFT(Template!J436,6)","v":""},{"$f":"LEFT(Template!K436,6)","v":""},{"$f":"LEFT(Template!L436,3)","v":""},{"$f":"IF(Template!M436=\"\",\"\",Template!M436)","v":""},{"$f":"IF(Template!N436=\"\",\"\",Template!N436)","v":""},null,null,null,null,null,{"$f":"IF(Template!O436=\"\",\"\",Template!O436)","v":""}]
[{"$f":"LEFT(Template!A437,4)","v":""},{"$f":"LEFT(Template!B437,5)","v":""},{"$f":"LEFT(Template!C437,7)","v":""},{"$f":"LEFT(Template!D437,6)","v":""},{"$f":"LEFT(Template!E437,2)","v":""},{"$f":"LEFT(Template!F437,3)","v":""},{"$f":"LEFT(Template!G437,10)","v":""},{"$f":"LEFT(Template!H437,6)","v":""},{"$f":"LEFT(Template!I437,4)","v":""},{"$f":"LEFT(Template!J437,6)","v":""},{"$f":"LEFT(Template!K437,6)","v":""},{"$f":"LEFT(Template!L437,3)","v":""},{"$f":"IF(Template!M437=\"\",\"\",Template!M437)","v":""},{"$f":"IF(Template!N437=\"\",\"\",Template!N437)","v":""},null,null,null,null,null,{"$f":"IF(Template!O437=\"\",\"\",Template!O437)","v":""}]
[{"$f":"LEFT(Template!A438,4)","v":""},{"$f":"LEFT(Template!B438,5)","v":""},{"$f":"LEFT(Template!C438,7)","v":""},{"$f":"LEFT(Template!D438,6)","v":""},{"$f":"LEFT(Template!E438,2)","v":""},{"$f":"LEFT(Template!F438,3)","v":""},{"$f":"LEFT(Template!G438,10)","v":""},{"$f":"LEFT(Template!H438,6)","v":""},{"$f":"LEFT(Template!I438,4)","v":""},{"$f":"LEFT(Template!J438,6)","v":""},{"$f":"LEFT(Template!K438,6)","v":""},{"$f":"LEFT(Template!L438,3)","v":""},{"$f":"IF(Template!M438=\"\",\"\",Template!M438)","v":""},{"$f":"IF(Template!N438=\"\",\"\",Template!N438)","v":""},null,null,null,null,null,{"$f":"IF(Template!O438=\"\",\"\",Template!O438)","v":""}]
[{"$f":"LEFT(Template!A439,4)","v":""},{"$f":"LEFT(Template!B439,5)","v":""},{"$f":"LEFT(Template!C439,7)","v":""},{"$f":"LEFT(Template!D439,6)","v":""},{"$f":"LEFT(Template!E439,2)","v":""},{"$f":"LEFT(Template!F439,3)","v":""},{"$f":"LEFT(Template!G439,10)","v":""},{"$f":"LEFT(Template!H439,6)","v":""},{"$f":"LEFT(Template!I439,4)","v":""},{"$f":"LEFT(Template!J439,6)","v":""},{"$f":"LEFT(Template!K439,6)","v":""},{"$f":"LEFT(Template!L439,3)","v":""},{"$f":"IF(Template!M439=\"\",\"\",Template!M439)","v":""},{"$f":"IF(Template!N439=\"\",\"\",Template!N439)","v":""},null,null,null,null,null,{"$f":"IF(Template!O439=\"\",\"\",Template!O439)","v":""}]
[{"$f":"LEFT(Template!A440,4)","v":""},{"$f":"LEFT(Template!B440,5)","v":""},{"$f":"LEFT(Template!C440,7)","v":""},{"$f":"LEFT(Template!D440,6)","v":""},{"$f":"LEFT(Template!E440,2)","v":""},{"$f":"LEFT(Template!F440,3)","v":""},{"$f":"LEFT(Template!G440,10)","v":""},{"$f":"LEFT(Template!H440,6)","v":""},{"$f":"LEFT(Template!I440,4)","v":""},{"$f":"LEFT(Template!J440,6)","v":""},{"$f":"LEFT(Template!K440,6)","v":""},{"$f":"LEFT(Template!L440,3)","v":""},{"$f":"IF(Template!M440=\"\",\"\",Template!M440)","v":""},{"$f":"IF(Template!N440=\"\",\"\",Template!N440)","v":""},null,null,null,null,null,{"$f":"IF(Template!O440=\"\",\"\",Template!O440)","v":""}]
[{"$f":"LEFT(Template!A441,4)","v":""},{"$f":"LEFT(Template!B441,5)","v":""},{"$f":"LEFT(Template!C441,7)","v":""},{"$f":"LEFT(Template!D441,6)","v":""},{"$f":"LEFT(Template!E441,2)","v":""},{"$f":"LEFT(Template!F441,3)","v":""},{"$f":"LEFT(Template!G441,10)","v":""},{"$f":"LEFT(Template!H441,6)","v":""},{"$f":"LEFT(Template!I441,4)","v":""},{"$f":"LEFT(Template!J441,6)","v":""},{"$f":"LEFT(Template!K441,6)","v":""},{"$f":"LEFT(Template!L441,3)","v":""},{"$f":"IF(Template!M441=\"\",\"\",Template!M441)","v":""},{"$f":"IF(Template!N441=\"\",\"\",Template!N441)","v":""},null,null,null,null,null,{"$f":"IF(Template!O441=\"\",\"\",Template!O441)","v":""}]
[{"$f":"LEFT(Template!A442,4)","v":""},{"$f":"LEFT(Template!B442,5)","v":""},{"$f":"LEFT(Template!C442,7)","v":""},{"$f":"LEFT(Template!D442,6)","v":""},{"$f":"LEFT(Template!E442,2)","v":""},{"$f":"LEFT(Template!F442,3)","v":""},{"$f":"LEFT(Template!G442,10)","v":""},{"$f":"LEFT(Template!H442,6)","v":""},{"$f":"LEFT(Template!I442,4)","v":""},{"$f":"LEFT(Template!J442,6)","v":""},{"$f":"LEFT(Template!K442,6)","v":""},{"$f":"LEFT(Template!L442,3)","v":""},{"$f":"IF(Template!M442=\"\",\"\",Template!M442)","v":""},{"$f":"IF(Template!N442=\"\",\"\",Template!N442)","v":""},null,null,null,null,null,{"$f":"IF(Template!O442=\"\",\"\",Template!O442)","v":""}]
[{"$f":"LEFT(Template!A443,4)","v":""},{"$f":"LEFT(Template!B443,5)","v":""},{"$f":"LEFT(Template!C443,7)","v":""},{"$f":"LEFT(Template!D443,6)","v":""},{"$f":"LEFT(Template!E443,2)","v":""},{"$f":"LEFT(Template!F443,3)","v":""},{"$f":"LEFT(Template!G443,10)","v":""},{"$f":"LEFT(Template!H443,6)","v":""},{"$f":"LEFT(Template!I443,4)","v":""},{"$f":"LEFT(Template!J443,6)","v":""},{"$f":"LEFT(Template!K443,6)","v":""},{"$f":"LEFT(Template!L443,3)","v":""},{"$f":"IF(Template!M443=\"\",\"\",Template!M443)","v":""},{"$f":"IF(Template!N443=\"\",\"\",Template!N443)","v":""},null,null,null,null,null,{"$f":"IF(Template!O443=\"\",\"\",Template!O443)","v":""}]
[{"$f":"LEFT(Template!A444,4)","v":""},{"$f":"LEFT(Template!B444,5)","v":""},{"$f":"LEFT(Template!C444,7)","v":""},{"$f":"LEFT(Template!D444,6)","v":""},{"$f":"LEFT(Template!E444,2)","v":""},{"$f":"LEFT(Template!F444,3)","v":""},{"$f":"LEFT(Template!G444,10)","v":""},{"$f":"LEFT(Template!H444,6)","v":""},{"$f":"LEFT(Template!I444,4)","v":""},{"$f":"LEFT(Template!J444,6)","v":""},{"$f":"LEFT(Template!K444,6)","v":""},{"$f":"LEFT(Template!L444,3)","v":""},{"$f":"IF(Template!M444=\"\",\"\",Template!M444)","v":""},{"$f":"IF(Template!N444=\"\",\"\",Template!N444)","v":""},null,null,null,null,null,{"$f":"IF(Template!O444=\"\",\"\",Template!O444)","v":""}]
[{"$f":"LEFT(Template!A445,4)","v":""},{"$f":"LEFT(Template!B445,5)","v":""},{"$f":"LEFT(Template!C445,7)","v":""},{"$f":"LEFT(Template!D445,6)","v":""},{"$f":"LEFT(Template!E445,2)","v":""},{"$f":"LEFT(Template!F445,3)","v":""},{"$f":"LEFT(Template!G445,10)","v":""},{"$f":"LEFT(Template!H445,6)","v":""},{"$f":"LEFT(Template!I445,4)","v":""},{"$f":"LEFT(Template!J445,6)","v":""},{"$f":"LEFT(Template!K445,6)","v":""},{"$f":"LEFT(Template!L445,3)","v":""},{"$f":"IF(Template!M445=\"\",\"\",Template!M445)","v":""},{"$f":"IF(Template!N445=\"\",\"\",Template!N445)","v":""},null,null,null,null,null,{"$f":"IF(Template!O445=\"\",\"\",Template!O445)","v":""}]
[{"$f":"LEFT(Template!A446,4)","v":""},{"$f":"LEFT(Template!B446,5)","v":""},{"$f":"LEFT(Template!C446,7)","v":""},{"$f":"LEFT(Template!D446,6)","v":""},{"$f":"LEFT(Template!E446,2)","v":""},{"$f":"LEFT(Template!F446,3)","v":""},{"$f":"LEFT(Template!G446,10)","v":""},{"$f":"LEFT(Template!H446,6)","v":""},{"$f":"LEFT(Template!I446,4)","v":""},{"$f":"LEFT(Template!J446,6)","v":""},{"$f":"LEFT(Template!K446,6)","v":""},{"$f":"LEFT(Template!L446,3)","v":""},{"$f":"IF(Template!M446=\"\",\"\",Template!M446)","v":""},{"$f":"IF(Template!N446=\"\",\"\",Template!N446)","v":""},null,null,null,null,null,{"$f":"IF(Template!O446=\"\",\"\",Template!O446)","v":""}]
[{"$f":"LEFT(Template!A447,4)","v":""},{"$f":"LEFT(Template!B447,5)","v":""},{"$f":"LEFT(Template!C447,7)","v":""},{"$f":"LEFT(Template!D447,6)","v":""},{"$f":"LEFT(Template!E447,2)","v":""},{"$f":"LEFT(Template!F447,3)","v":""},{"$f":"LEFT(Template!G447,10)","v":""},{"$f":"LEFT(Template!H447,6)","v":""},{"$f":"LEFT(Template!I447,4)","v":""},{"$f":"LEFT(Template!J447,6)","v":""},{"$f":"LEFT(Template!K447,6)","v":""},{"$f":"LEFT(Template!L447,3)","v":""},{"$f":"IF(Template!M447=\"\",\"\",Template!M447)","v":""},{"$f":"IF(Template!N447=\"\",\"\",Template!N447)","v":""},null,null,null,null,null,{"$f":"IF(Template!O447=\"\",\"\",Template!O447)","v":""}]
[{"$f":"LEFT(Template!A448,4)","v":""},{"$f":"LEFT(Template!B448,5)","v":""},{"$f":"LEFT(Template!C448,7)","v":""},{"$f":"LEFT(Template!D448,6)","v":""},{"$f":"LEFT(Template!E448,2)","v":""},{"$f":"LEFT(Template!F448,3)","v":""},{"$f":"LEFT(Template!G448,10)","v":""},{"$f":"LEFT(Template!H448,6)","v":""},{"$f":"LEFT(Template!I448,4)","v":""},{"$f":"LEFT(Template!J448,6)","v":""},{"$f":"LEFT(Template!K448,6)","v":""},{"$f":"LEFT(Template!L448,3)","v":""},{"$f":"IF(Template!M448=\"\",\"\",Template!M448)","v":""},{"$f":"IF(Template!N448=\"\",\"\",Template!N448)","v":""},null,null,null,null,null,{"$f":"IF(Template!O448=\"\",\"\",Template!O448)","v":""}]
[{"$f":"LEFT(Template!A449,4)","v":""},{"$f":"LEFT(Template!B449,5)","v":""},{"$f":"LEFT(Template!C449,7)","v":""},{"$f":"LEFT(Template!D449,6)","v":""},{"$f":"LEFT(Template!E449,2)","v":""},{"$f":"LEFT(Template!F449,3)","v":""},{"$f":"LEFT(Template!G449,10)","v":""},{"$f":"LEFT(Template!H449,6)","v":""},{"$f":"LEFT(Template!I449,4)","v":""},{"$f":"LEFT(Template!J449,6)","v":""},{"$f":"LEFT(Template!K449,6)","v":""},{"$f":"LEFT(Template!L449,3)","v":""},{"$f":"IF(Template!M449=\"\",\"\",Template!M449)","v":""},{"$f":"IF(Template!N449=\"\",\"\",Template!N449)","v":""},null,null,null,null,null,{"$f":"IF(Template!O449=\"\",\"\",Template!O449)","v":""}]
[{"$f":"LEFT(Template!A450,4)","v":""},{"$f":"LEFT(Template!B450,5)","v":""},{"$f":"LEFT(Template!C450,7)","v":""},{"$f":"LEFT(Template!D450,6)","v":""},{"$f":"LEFT(Template!E450,2)","v":""},{"$f":"LEFT(Template!F450,3)","v":""},{"$f":"LEFT(Template!G450,10)","v":""},{"$f":"LEFT(Template!H450,6)","v":""},{"$f":"LEFT(Template!I450,4)","v":""},{"$f":"LEFT(Template!J450,6)","v":""},{"$f":"LEFT(Template!K450,6)","v":""},{"$f":"LEFT(Template!L450,3)","v":""},{"$f":"IF(Template!M450=\"\",\"\",Template!M450)","v":""},{"$f":"IF(Template!N450=\"\",\"\",Template!N450)","v":""},null,null,null,null,null,{"$f":"IF(Template!O450=\"\",\"\",Template!O450)","v":""}]
[{"$f":"LEFT(Template!A451,4)","v":""},{"$f":"LEFT(Template!B451,5)","v":""},{"$f":"LEFT(Template!C451,7)","v":""},{"$f":"LEFT(Template!D451,6)","v":""},{"$f":"LEFT(Template!E451,2)","v":""},{"$f":"LEFT(Template!F451,3)","v":""},{"$f":"LEFT(Template!G451,10)","v":""},{"$f":"LEFT(Template!H451,6)","v":""},{"$f":"LEFT(Template!I451,4)","v":""},{"$f":"LEFT(Template!J451,6)","v":""},{"$f":"LEFT(Template!K451,6)","v":""},{"$f":"LEFT(Template!L451,3)","v":""},{"$f":"IF(Template!M451=\"\",\"\",Template!M451)","v":""},{"$f":"IF(Template!N451=\"\",\"\",Template!N451)","v":""},null,null,null,null,null,{"$f":"IF(Template!O451=\"\",\"\",Template!O451)","v":""}]
[{"$f":"LEFT(Template!A452,4)","v":""},{"$f":"LEFT(Template!B452,5)","v":""},{"$f":"LEFT(Template!C452,7)","v":""},{"$f":"LEFT(Template!D452,6)","v":""},{"$f":"LEFT(Template!E452,2)","v":""},{"$f":"LEFT(Template!F452,3)","v":""},{"$f":"LEFT(Template!G452,10)","v":""},{"$f":"LEFT(Template!H452,6)","v":""},{"$f":"LEFT(Template!I452,4)","v":""},{"$f":"LEFT(Template!J452,6)","v":""},{"$f":"LEFT(Template!K452,6)","v":""},{"$f":"LEFT(Template!L452,3)","v":""},{"$f":"IF(Template!M452=\"\",\"\",Template!M452)","v":""},{"$f":"IF(Template!N452=\"\",\"\",Template!N452)","v":""},null,null,null,null,null,{"$f":"IF(Template!O452=\"\",\"\",Template!O452)","v":""}]
[{"$f":"LEFT(Template!A453,4)","v":""},{"$f":"LEFT(Template!B453,5)","v":""},{"$f":"LEFT(Template!C453,7)","v":""},{"$f":"LEFT(Template!D453,6)","v":""},{"$f":"LEFT(Template!E453,2)","v":""},{"$f":"LEFT(Template!F453,3)","v":""},{"$f":"LEFT(Template!G453,10)","v":""},{"$f":"LEFT(Template!H453,6)","v":""},{"$f":"LEFT(Template!I453,4)","v":""},{"$f":"LEFT(Template!J453,6)","v":""},{"$f":"LEFT(Template!K453,6)","v":""},{"$f":"LEFT(Template!L453,3)","v":""},{"$f":"IF(Template!M453=\"\",\"\",Template!M453)","v":""},{"$f":"IF(Template!N453=\"\",\"\",Template!N453)","v":""},null,null,null,null,null,{"$f":"IF(Template!O453=\"\",\"\",Template!O453)","v":""}]
[{"$f":"LEFT(Template!A454,4)","v":""},{"$f":"LEFT(Template!B454,5)","v":""},{"$f":"LEFT(Template!C454,7)","v":""},{"$f":"LEFT(Template!D454,6)","v":""},{"$f":"LEFT(Template!E454,2)","v":""},{"$f":"LEFT(Template!F454,3)","v":""},{"$f":"LEFT(Template!G454,10)","v":""},{"$f":"LEFT(Template!H454,6)","v":""},{"$f":"LEFT(Template!I454,4)","v":""},{"$f":"LEFT(Template!J454,6)","v":""},{"$f":"LEFT(Template!K454,6)","v":""},{"$f":"LEFT(Template!L454,3)","v":""},{"$f":"IF(Template!M454=\"\",\"\",Template!M454)","v":""},{"$f":"IF(Template!N454=\"\",\"\",Template!N454)","v":""},null,null,null,null,null,{"$f":"IF(Template!O454=\"\",\"\",Template!O454)","v":""}]
[{"$f":"LEFT(Template!A455,4)","v":""},{"$f":"LEFT(Template!B455,5)","v":""},{"$f":"LEFT(Template!C455,7)","v":""},{"$f":"LEFT(Template!D455,6)","v":""},{"$f":"LEFT(Template!E455,2)","v":""},{"$f":"LEFT(Template!F455,3)","v":""},{"$f":"LEFT(Template!G455,10)","v":""},{"$f":"LEFT(Template!H455,6)","v":""},{"$f":"LEFT(Template!I455,4)","v":""},{"$f":"LEFT(Template!J455,6)","v":""},{"$f":"LEFT(Template!K455,6)","v":""},{"$f":"LEFT(Template!L455,3)","v":""},{"$f":"IF(Template!M455=\"\",\"\",Template!M455)","v":""},{"$f":"IF(Template!N455=\"\",\"\",Template!N455)","v":""},null,null,null,null,null,{"$f":"IF(Template!O455=\"\",\"\",Template!O455)","v":""}]
[{"$f":"LEFT(Template!A456,4)","v":""},{"$f":"LEFT(Template!B456,5)","v":""},{"$f":"LEFT(Template!C456,7)","v":""},{"$f":"LEFT(Template!D456,6)","v":""},{"$f":"LEFT(Template!E456,2)","v":""},{"$f":"LEFT(Template!F456,3)","v":""},{"$f":"LEFT(Template!G456,10)","v":""},{"$f":"LEFT(Template!H456,6)","v":""},{"$f":"LEFT(Template!I456,4)","v":""},{"$f":"LEFT(Template!J456,6)","v":""},{"$f":"LEFT(Template!K456,6)","v":""},{"$f":"LEFT(Template!L456,3)","v":""},{"$f":"IF(Template!M456=\"\",\"\",Template!M456)","v":""},{"$f":"IF(Template!N456=\"\",\"\",Template!N456)","v":""},null,null,null,null,null,{"$f":"IF(Template!O456=\"\",\"\",Template!O456)","v":""}]
[{"$f":"LEFT(Template!A457,4)","v":""},{"$f":"LEFT(Template!B457,5)","v":""},{"$f":"LEFT(Template!C457,7)","v":""},{"$f":"LEFT(Template!D457,6)","v":""},{"$f":"LEFT(Template!E457,2)","v":""},{"$f":"LEFT(Template!F457,3)","v":""},{"$f":"LEFT(Template!G457,10)","v":""},{"$f":"LEFT(Template!H457,6)","v":""},{"$f":"LEFT(Template!I457,4)","v":""},{"$f":"LEFT(Template!J457,6)","v":""},{"$f":"LEFT(Template!K457,6)","v":""},{"$f":"LEFT(Template!L457,3)","v":""},{"$f":"IF(Template!M457=\"\",\"\",Template!M457)","v":""},{"$f":"IF(Template!N457=\"\",\"\",Template!N457)","v":""},null,null,null,null,null,{"$f":"IF(Template!O457=\"\",\"\",Template!O457)","v":""}]
[{"$f":"LEFT(Template!A458,4)","v":""},{"$f":"LEFT(Template!B458,5)","v":""},{"$f":"LEFT(Template!C458,7)","v":""},{"$f":"LEFT(Template!D458,6)","v":""},{"$f":"LEFT(Template!E458,2)","v":""},{"$f":"LEFT(Template!F458,3)","v":""},{"$f":"LEFT(Template!G458,10)","v":""},{"$f":"LEFT(Template!H458,6)","v":""},{"$f":"LEFT(Template!I458,4)","v":""},{"$f":"LEFT(Template!J458,6)","v":""},{"$f":"LEFT(Template!K458,6)","v":""},{"$f":"LEFT(Template!L458,3)","v":""},{"$f":"IF(Template!M458=\"\",\"\",Template!M458)","v":""},{"$f":"IF(Template!N458=\"\",\"\",Template!N458)","v":""},null,null,null,null,null,{"$f":"IF(Template!O458=\"\",\"\",Template!O458)","v":""}]
[{"$f":"LEFT(Template!A459,4)","v":""},{"$f":"LEFT(Template!B459,5)","v":""},{"$f":"LEFT(Template!C459,7)","v":""},{"$f":"LEFT(Template!D459,6)","v":""},{"$f":"LEFT(Template!E459,2)","v":""},{"$f":"LEFT(Template!F459,3)","v":""},{"$f":"LEFT(Template!G459,10)","v":""},{"$f":"LEFT(Template!H459,6)","v":""},{"$f":"LEFT(Template!I459,4)","v":""},{"$f":"LEFT(Template!J459,6)","v":""},{"$f":"LEFT(Template!K459,6)","v":""},{"$f":"LEFT(Template!L459,3)","v":""},{"$f":"IF(Template!M459=\"\",\"\",Template!M459)","v":""},{"$f":"IF(Template!N459=\"\",\"\",Template!N459)","v":""},null,null,null,null,null,{"$f":"IF(Template!O459=\"\",\"\",Template!O459)","v":""}]
[{"$f":"LEFT(Template!A460,4)","v":""},{"$f":"LEFT(Template!B460,5)","v":""},{"$f":"LEFT(Template!C460,7)","v":""},{"$f":"LEFT(Template!D460,6)","v":""},{"$f":"LEFT(Template!E460,2)","v":""},{"$f":"LEFT(Template!F460,3)","v":""},{"$f":"LEFT(Template!G460,10)","v":""},{"$f":"LEFT(Template!H460,6)","v":""},{"$f":"LEFT(Template!I460,4)","v":""},{"$f":"LEFT(Template!J460,6)","v":""},{"$f":"LEFT(Template!K460,6)","v":""},{"$f":"LEFT(Template!L460,3)","v":""},{"$f":"IF(Template!M460=\"\",\"\",Template!M460)","v":""},{"$f":"IF(Template!N460=\"\",\"\",Template!N460)","v":""},null,null,null,null,null,{"$f":"IF(Template!O460=\"\",\"\",Template!O460)","v":""}]
[{"$f":"LEFT(Template!A461,4)","v":""},{"$f":"LEFT(Template!B461,5)","v":""},{"$f":"LEFT(Template!C461,7)","v":""},{"$f":"LEFT(Template!D461,6)","v":""},{"$f":"LEFT(Template!E461,2)","v":""},{"$f":"LEFT(Template!F461,3)","v":""},{"$f":"LEFT(Template!G461,10)","v":""},{"$f":"LEFT(Template!H461,6)","v":""},{"$f":"LEFT(Template!I461,4)","v":""},{"$f":"LEFT(Template!J461,6)","v":""},{"$f":"LEFT(Template!K461,6)","v":""},{"$f":"LEFT(Template!L461,3)","v":""},{"$f":"IF(Template!M461=\"\",\"\",Template!M461)","v":""},{"$f":"IF(Template!N461=\"\",\"\",Template!N461)","v":""},null,null,null,null,null,{"$f":"IF(Template!O461=\"\",\"\",Template!O461)","v":""}]
[{"$f":"LEFT(Template!A462,4)","v":""},{"$f":"LEFT(Template!B462,5)","v":""},{"$f":"LEFT(Template!C462,7)","v":""},{"$f":"LEFT(Template!D462,6)","v":""},{"$f":"LEFT(Template!E462,2)","v":""},{"$f":"LEFT(Template!F462,3)","v":""},{"$f":"LEFT(Template!G462,10)","v":""},{"$f":"LEFT(Template!H462,6)","v":""},{"$f":"LEFT(Template!I462,4)","v":""},{"$f":"LEFT(Template!J462,6)","v":""},{"$f":"LEFT(Template!K462,6)","v":""},{"$f":"LEFT(Template!L462,3)","v":""},{"$f":"IF(Template!M462=\"\",\"\",Template!M462)","v":""},{"$f":"IF(Template!N462=\"\",\"\",Template!N462)","v":""},null,null,null,null,null,{"$f":"IF(Template!O462=\"\",\"\",Template!O462)","v":""}]
[{"$f":"LEFT(Template!A463,4)","v":""},{"$f":"LEFT(Template!B463,5)","v":""},{"$f":"LEFT(Template!C463,7)","v":""},{"$f":"LEFT(Template!D463,6)","v":""},{"$f":"LEFT(Template!E463,2)","v":""},{"$f":"LEFT(Template!F463,3)","v":""},{"$f":"LEFT(Template!G463,10)","v":""},{"$f":"LEFT(Template!H463,6)","v":""},{"$f":"LEFT(Template!I463,4)","v":""},{"$f":"LEFT(Template!J463,6)","v":""},{"$f":"LEFT(Template!K463,6)","v":""},{"$f":"LEFT(Template!L463,3)","v":""},{"$f":"IF(Template!M463=\"\",\"\",Template!M463)","v":""},{"$f":"IF(Template!N463=\"\",\"\",Template!N463)","v":""},null,null,null,null,null,{"$f":"IF(Template!O463=\"\",\"\",Template!O463)","v":""}]
[{"$f":"LEFT(Template!A464,4)","v":""},{"$f":"LEFT(Template!B464,5)","v":""},{"$f":"LEFT(Template!C464,7)","v":""},{"$f":"LEFT(Template!D464,6)","v":""},{"$f":"LEFT(Template!E464,2)","v":""},{"$f":"LEFT(Template!F464,3)","v":""},{"$f":"LEFT(Template!G464,10)","v":""},{"$f":"LEFT(Template!H464,6)","v":""},{"$f":"LEFT(Template!I464,4)","v":""},{"$f":"LEFT(Template!J464,6)","v":""},{"$f":"LEFT(Template!K464,6)","v":""},{"$f":"LEFT(Template!L464,3)","v":""},{"$f":"IF(Template!M464=\"\",\"\",Template!M464)","v":""},{"$f":"IF(Template!N464=\"\",\"\",Template!N464)","v":""},null,null,null,null,null,{"$f":"IF(Template!O464=\"\",\"\",Template!O464)","v":""}]
[{"$f":"LEFT(Template!A465,4)","v":""},{"$f":"LEFT(Template!B465,5)","v":""},{"$f":"LEFT(Template!C465,7)","v":""},{"$f":"LEFT(Template!D465,6)","v":""},{"$f":"LEFT(Template!E465,2)","v":""},{"$f":"LEFT(Template!F465,3)","v":""},{"$f":"LEFT(Template!G465,10)","v":""},{"$f":"LEFT(Template!H465,6)","v":""},{"$f":"LEFT(Template!I465,4)","v":""},{"$f":"LEFT(Template!J465,6)","v":""},{"$f":"LEFT(Template!K465,6)","v":""},{"$f":"LEFT(Template!L465,3)","v":""},{"$f":"IF(Template!M465=\"\",\"\",Template!M465)","v":""},{"$f":"IF(Template!N465=\"\",\"\",Template!N465)","v":""},null,null,null,null,null,{"$f":"IF(Template!O465=\"\",\"\",Template!O465)","v":""}]
[{"$f":"LEFT(Template!A466,4)","v":""},{"$f":"LEFT(Template!B466,5)","v":""},{"$f":"LEFT(Template!C466,7)","v":""},{"$f":"LEFT(Template!D466,6)","v":""},{"$f":"LEFT(Template!E466,2)","v":""},{"$f":"LEFT(Template!F466,3)","v":""},{"$f":"LEFT(Template!G466,10)","v":""},{"$f":"LEFT(Template!H466,6)","v":""},{"$f":"LEFT(Template!I466,4)","v":""},{"$f":"LEFT(Template!J466,6)","v":""},{"$f":"LEFT(Template!K466,6)","v":""},{"$f":"LEFT(Template!L466,3)","v":""},{"$f":"IF(Template!M466=\"\",\"\",Template!M466)","v":""},{"$f":"IF(Template!N466=\"\",\"\",Template!N466)","v":""},null,null,null,null,null,{"$f":"IF(Template!O466=\"\",\"\",Template!O466)","v":""}]
[{"$f":"LEFT(Template!A467,4)","v":""},{"$f":"LEFT(Template!B467,5)","v":""},{"$f":"LEFT(Template!C467,7)","v":""},{"$f":"LEFT(Template!D467,6)","v":""},{"$f":"LEFT(Template!E467,2)","v":""},{"$f":"LEFT(Template!F467,3)","v":""},{"$f":"LEFT(Template!G467,10)","v":""},{"$f":"LEFT(Template!H467,6)","v":""},{"$f":"LEFT(Template!I467,4)","v":""},{"$f":"LEFT(Template!J467,6)","v":""},{"$f":"LEFT(Template!K467,6)","v":""},{"$f":"LEFT(Template!L467,3)","v":""},{"$f":"IF(Template!M467=\"\",\"\",Template!M467)","v":""},{"$f":"IF(Template!N467=\"\",\"\",Template!N467)","v":""},null,null,null,null,null,{"$f":"IF(Template!O467=\"\",\"\",Template!O467)","v":""}]
[{"$f":"LEFT(Template!A468,4)","v":""},{"$f":"LEFT(Template!B468,5)","v":""},{"$f":"LEFT(Template!C468,7)","v":""},{"$f":"LEFT(Template!D468,6)","v":""},{"$f":"LEFT(Template!E468,2)","v":""},{"$f":"LEFT(Template!F468,3)","v":""},{"$f":"LEFT(Template!G468,10)","v":""},{"$f":"LEFT(Template!H468,6)","v":""},{"$f":"LEFT(Template!I468,4)","v":""},{"$f":"LEFT(Template!J468,6)","v":""},{"$f":"LEFT(Template!K468,6)","v":""},{"$f":"LEFT(Template!L468,3)","v":""},{"$f":"IF(Template!M468=\"\",\"\",Template!M468)","v":""},{"$f":"IF(Template!N468=\"\",\"\",Template!N468)","v":""},null,null,null,null,null,{"$f":"IF(Template!O468=\"\",\"\",Template!O468)","v":""}]
[{"$f":"LEFT(Template!A469,4)","v":""},{"$f":"LEFT(Template!B469,5)","v":""},{"$f":"LEFT(Template!C469,7)","v":""},{"$f":"LEFT(Template!D469,6)","v":""},{"$f":"LEFT(Template!E469,2)","v":""},{"$f":"LEFT(Template!F469,3)","v":""},{"$f":"LEFT(Template!G469,10)","v":""},{"$f":"LEFT(Template!H469,6)","v":""},{"$f":"LEFT(Template!I469,4)","v":""},{"$f":"LEFT(Template!J469,6)","v":""},{"$f":"LEFT(Template!K469,6)","v":""},{"$f":"LEFT(Template!L469,3)","v":""},{"$f":"IF(Template!M469=\"\",\"\",Template!M469)","v":""},{"$f":"IF(Template!N469=\"\",\"\",Template!N469)","v":""},null,null,null,null,null,{"$f":"IF(Template!O469=\"\",\"\",Template!O469)","v":""}]
[{"$f":"LEFT(Template!A470,4)","v":""},{"$f":"LEFT(Template!B470,5)","v":""},{"$f":"LEFT(Template!C470,7)","v":""},{"$f":"LEFT(Template!D470,6)","v":""},{"$f":"LEFT(Template!E470,2)","v":""},{"$f":"LEFT(Template!F470,3)","v":""},{"$f":"LEFT(Template!G470,10)","v":""},{"$f":"LEFT(Template!H470,6)","v":""},{"$f":"LEFT(Template!I470,4)","v":""},{"$f":"LEFT(Template!J470,6)","v":""},{"$f":"LEFT(Template!K470,6)","v":""},{"$f":"LEFT(Template!L470,3)","v":""},{"$f":"IF(Template!M470=\"\",\"\",Template!M470)","v":""},{"$f":"IF(Template!N470=\"\",\"\",Template!N470)","v":""},null,null,null,null,null,{"$f":"IF(Template!O470=\"\",\"\",Template!O470)","v":""}]
[{"$f":"LEFT(Template!A471,4)","v":""},{"$f":"LEFT(Template!B471,5)","v":""},{"$f":"LEFT(Template!C471,7)","v":""},{"$f":"LEFT(Template!D471,6)","v":""},{"$f":"LEFT(Template!E471,2)","v":""},{"$f":"LEFT(Template!F471,3)","v":""},{"$f":"LEFT(Template!G471,10)","v":""},{"$f":"LEFT(Template!H471,6)","v":""},{"$f":"LEFT(Template!I471,4)","v":""},{"$f":"LEFT(Template!J471,6)","v":""},{"$f":"LEFT(Template!K471,6)","v":""},{"$f":"LEFT(Template!L471,3)","v":""},{"$f":"IF(Template!M471=\"\",\"\",Template!M471)","v":""},{"$f":"IF(Template!N471=\"\",\"\",Template!N471)","v":""},null,null,null,null,null,{"$f":"IF(Template!O471=\"\",\"\",Template!O471)","v":""}]
[{"$f":"LEFT(Template!A472,4)","v":""},{"$f":"LEFT(Template!B472,5)","v":""},{"$f":"LEFT(Template!C472,7)","v":""},{"$f":"LEFT(Template!D472,6)","v":""},{"$f":"LEFT(Template!E472,2)","v":""},{"$f":"LEFT(Template!F472,3)","v":""},{"$f":"LEFT(Template!G472,10)","v":""},{"$f":"LEFT(Template!H472,6)","v":""},{"$f":"LEFT(Template!I472,4)","v":""},{"$f":"LEFT(Template!J472,6)","v":""},{"$f":"LEFT(Template!K472,6)","v":""},{"$f":"LEFT(Template!L472,3)","v":""},{"$f":"IF(Template!M472=\"\",\"\",Template!M472)","v":""},{"$f":"IF(Template!N472=\"\",\"\",Template!N472)","v":""},null,null,null,null,null,{"$f":"IF(Template!O472=\"\",\"\",Template!O472)","v":""}]
[{"$f":"LEFT(Template!A473,4)","v":""},{"$f":"LEFT(Template!B473,5)","v":""},{"$f":"LEFT(Template!C473,7)","v":""},{"$f":"LEFT(Template!D473,6)","v":""},{"$f":"LEFT(Template!E473,2)","v":""},{"$f":"LEFT(Template!F473,3)","v":""},{"$f":"LEFT(Template!G473,10)","v":""},{"$f":"LEFT(Template!H473,6)","v":""},{"$f":"LEFT(Template!I473,4)","v":""},{"$f":"LEFT(Template!J473,6)","v":""},{"$f":"LEFT(Template!K473,6)","v":""},{"$f":"LEFT(Template!L473,3)","v":""},{"$f":"IF(Template!M473=\"\",\"\",Template!M473)","v":""},{"$f":"IF(Template!N473=\"\",\"\",Template!N473)","v":""},null,null,null,null,null,{"$f":"IF(Template!O473=\"\",\"\",Template!O473)","v":""}]
[{"$f":"LEFT(Template!A474,4)","v":""},{"$f":"LEFT(Template!B474,5)","v":""},{"$f":"LEFT(Template!C474,7)","v":""},{"$f":"LEFT(Template!D474,6)","v":""},{"$f":"LEFT(Template!E474,2)","v":""},{"$f":"LEFT(Template!F474,3)","v":""},{"$f":"LEFT(Template!G474,10)","v":""},{"$f":"LEFT(Template!H474,6)","v":""},{"$f":"LEFT(Template!I474,4)","v":""},{"$f":"LEFT(Template!J474,6)","v":""},{"$f":"LEFT(Template!K474,6)","v":""},{"$f":"LEFT(Template!L474,3)","v":""},{"$f":"IF(Template!M474=\"\",\"\",Template!M474)","v":""},{"$f":"IF(Template!N474=\"\",\"\",Template!N474)","v":""},null,null,null,null,null,{"$f":"IF(Template!O474=\"\",\"\",Template!O474)","v":""}]
[{"$f":"LEFT(Template!A475,4)","v":""},{"$f":"LEFT(Template!B475,5)","v":""},{"$f":"LEFT(Template!C475,7)","v":""},{"$f":"LEFT(Template!D475,6)","v":""},{"$f":"LEFT(Template!E475,2)","v":""},{"$f":"LEFT(Template!F475,3)","v":""},{"$f":"LEFT(Template!G475,10)","v":""},{"$f":"LEFT(Template!H475,6)","v":""},{"$f":"LEFT(Template!I475,4)","v":""},{"$f":"LEFT(Template!J475,6)","v":""},{"$f":"LEFT(Template!K475,6)","v":""},{"$f":"LEFT(Template!L475,3)","v":""},{"$f":"IF(Template!M475=\"\",\"\",Template!M475)","v":""},{"$f":"IF(Template!N475=\"\",\"\",Template!N475)","v":""},null,null,null,null,null,{"$f":"IF(Template!O475=\"\",\"\",Template!O475)","v":""}]
[{"$f":"LEFT(Template!A476,4)","v":""},{"$f":"LEFT(Template!B476,5)","v":""},{"$f":"LEFT(Template!C476,7)","v":""},{"$f":"LEFT(Template!D476,6)","v":""},{"$f":"LEFT(Template!E476,2)","v":""},{"$f":"LEFT(Template!F476,3)","v":""},{"$f":"LEFT(Template!G476,10)","v":""},{"$f":"LEFT(Template!H476,6)","v":""},{"$f":"LEFT(Template!I476,4)","v":""},{"$f":"LEFT(Template!J476,6)","v":""},{"$f":"LEFT(Template!K476,6)","v":""},{"$f":"LEFT(Template!L476,3)","v":""},{"$f":"IF(Template!M476=\"\",\"\",Template!M476)","v":""},{"$f":"IF(Template!N476=\"\",\"\",Template!N476)","v":""},null,null,null,null,null,{"$f":"IF(Template!O476=\"\",\"\",Template!O476)","v":""}]
[{"$f":"LEFT(Template!A477,4)","v":""},{"$f":"LEFT(Template!B477,5)","v":""},{"$f":"LEFT(Template!C477,7)","v":""},{"$f":"LEFT(Template!D477,6)","v":""},{"$f":"LEFT(Template!E477,2)","v":""},{"$f":"LEFT(Template!F477,3)","v":""},{"$f":"LEFT(Template!G477,10)","v":""},{"$f":"LEFT(Template!H477,6)","v":""},{"$f":"LEFT(Template!I477,4)","v":""},{"$f":"LEFT(Template!J477,6)","v":""},{"$f":"LEFT(Template!K477,6)","v":""},{"$f":"LEFT(Template!L477,3)","v":""},{"$f":"IF(Template!M477=\"\",\"\",Template!M477)","v":""},{"$f":"IF(Template!N477=\"\",\"\",Template!N477)","v":""},null,null,null,null,null,{"$f":"IF(Template!O477=\"\",\"\",Template!O477)","v":""}]
[{"$f":"LEFT(Template!A478,4)","v":""},{"$f":"LEFT(Template!B478,5)","v":""},{"$f":"LEFT(Template!C478,7)","v":""},{"$f":"LEFT(Template!D478,6)","v":""},{"$f":"LEFT(Template!E478,2)","v":""},{"$f":"LEFT(Template!F478,3)","v":""},{"$f":"LEFT(Template!G478,10)","v":""},{"$f":"LEFT(Template!H478,6)","v":""},{"$f":"LEFT(Template!I478,4)","v":""},{"$f":"LEFT(Template!J478,6)","v":""},{"$f":"LEFT(Template!K478,6)","v":""},{"$f":"LEFT(Template!L478,3)","v":""},{"$f":"IF(Template!M478=\"\",\"\",Template!M478)","v":""},{"$f":"IF(Template!N478=\"\",\"\",Template!N478)","v":""},null,null,null,null,null,{"$f":"IF(Template!O478=\"\",\"\",Template!O478)","v":""}]
[{"$f":"LEFT(Template!A479,4)","v":""},{"$f":"LEFT(Template!B479,5)","v":""},{"$f":"LEFT(Template!C479,7)","v":""},{"$f":"LEFT(Template!D479,6)","v":""},{"$f":"LEFT(Template!E479,2)","v":""},{"$f":"LEFT(Template!F479,3)","v":""},{"$f":"LEFT(Template!G479,10)","v":""},{"$f":"LEFT(Template!H479,6)","v":""},{"$f":"LEFT(Template!I479,4)","v":""},{"$f":"LEFT(Template!J479,6)","v":""},{"$f":"LEFT(Template!K479,6)","v":""},{"$f":"LEFT(Template!L479,3)","v":""},{"$f":"IF(Template!M479=\"\",\"\",Template!M479)","v":""},{"$f":"IF(Template!N479=\"\",\"\",Template!N479)","v":""},null,null,null,null,null,{"$f":"IF(Template!O479=\"\",\"\",Template!O479)","v":""}]
[{"$f":"LEFT(Template!A480,4)","v":""},{"$f":"LEFT(Template!B480,5)","v":""},{"$f":"LEFT(Template!C480,7)","v":""},{"$f":"LEFT(Template!D480,6)","v":""},{"$f":"LEFT(Template!E480,2)","v":""},{"$f":"LEFT(Template!F480,3)","v":""},{"$f":"LEFT(Template!G480,10)","v":""},{"$f":"LEFT(Template!H480,6)","v":""},{"$f":"LEFT(Template!I480,4)","v":""},{"$f":"LEFT(Template!J480,6)","v":""},{"$f":"LEFT(Template!K480,6)","v":""},{"$f":"LEFT(Template!L480,3)","v":""},{"$f":"IF(Template!M480=\"\",\"\",Template!M480)","v":""},{"$f":"IF(Template!N480=\"\",\"\",Template!N480)","v":""},null,null,null,null,null,{"$f":"IF(Template!O480=\"\",\"\",Template!O480)","v":""}]
[{"$f":"LEFT(Template!A481,4)","v":""},{"$f":"LEFT(Template!B481,5)","v":""},{"$f":"LEFT(Template!C481,7)","v":""},{"$f":"LEFT(Template!D481,6)","v":""},{"$f":"LEFT(Template!E481,2)","v":""},{"$f":"LEFT(Template!F481,3)","v":""},{"$f":"LEFT(Template!G481,10)","v":""},{"$f":"LEFT(Template!H481,6)","v":""},{"$f":"LEFT(Template!I481,4)","v":""},{"$f":"LEFT(Template!J481,6)","v":""},{"$f":"LEFT(Template!K481,6)","v":""},{"$f":"LEFT(Template!L481,3)","v":""},{"$f":"IF(Template!M481=\"\",\"\",Template!M481)","v":""},{"$f":"IF(Template!N481=\"\",\"\",Template!N481)","v":""},null,null,null,null,null,{"$f":"IF(Template!O481=\"\",\"\",Template!O481)","v":""}]
[{"$f":"LEFT(Template!A482,4)","v":""},{"$f":"LEFT(Template!B482,5)","v":""},{"$f":"LEFT(Template!C482,7)","v":""},{"$f":"LEFT(Template!D482,6)","v":""},{"$f":"LEFT(Template!E482,2)","v":""},{"$f":"LEFT(Template!F482,3)","v":""},{"$f":"LEFT(Template!G482,10)","v":""},{"$f":"LEFT(Template!H482,6)","v":""},{"$f":"LEFT(Template!I482,4)","v":""},{"$f":"LEFT(Template!J482,6)","v":""},{"$f":"LEFT(Template!K482,6)","v":""},{"$f":"LEFT(Template!L482,3)","v":""},{"$f":"IF(Template!M482=\"\",\"\",Template!M482)","v":""},{"$f":"IF(Template!N482=\"\",\"\",Template!N482)","v":""},null,null,null,null,null,{"$f":"IF(Template!O482=\"\",\"\",Template!O482)","v":""}]
[{"$f":"LEFT(Template!A483,4)","v":""},{"$f":"LEFT(Template!B483,5)","v":""},{"$f":"LEFT(Template!C483,7)","v":""},{"$f":"LEFT(Template!D483,6)","v":""},{"$f":"LEFT(Template!E483,2)","v":""},{"$f":"LEFT(Template!F483,3)","v":""},{"$f":"LEFT(Template!G483,10)","v":""},{"$f":"LEFT(Template!H483,6)","v":""},{"$f":"LEFT(Template!I483,4)","v":""},{"$f":"LEFT(Template!J483,6)","v":""},{"$f":"LEFT(Template!K483,6)","v":""},{"$f":"LEFT(Template!L483,3)","v":""},{"$f":"IF(Template!M483=\"\",\"\",Template!M483)","v":""},{"$f":"IF(Template!N483=\"\",\"\",Template!N483)","v":""},null,null,null,null,null,{"$f":"IF(Template!O483=\"\",\"\",Template!O483)","v":""}]
[{"$f":"LEFT(Template!A484,4)","v":""},{"$f":"LEFT(Template!B484,5)","v":""},{"$f":"LEFT(Template!C484,7)","v":""},{"$f":"LEFT(Template!D484,6)","v":""},{"$f":"LEFT(Template!E484,2)","v":""},{"$f":"LEFT(Template!F484,3)","v":""},{"$f":"LEFT(Template!G484,10)","v":""},{"$f":"LEFT(Template!H484,6)","v":""},{"$f":"LEFT(Template!I484,4)","v":""},{"$f":"LEFT(Template!J484,6)","v":""},{"$f":"LEFT(Template!K484,6)","v":""},{"$f":"LEFT(Template!L484,3)","v":""},{"$f":"IF(Template!M484=\"\",\"\",Template!M484)","v":""},{"$f":"IF(Template!N484=\"\",\"\",Template!N484)","v":""},null,null,null,null,null,{"$f":"IF(Template!O484=\"\",\"\",Template!O484)","v":""}]
[{"$f":"LEFT(Template!A485,4)","v":""},{"$f":"LEFT(Template!B485,5)","v":""},{"$f":"LEFT(Template!C485,7)","v":""},{"$f":"LEFT(Template!D485,6)","v":""},{"$f":"LEFT(Template!E485,2)","v":""},{"$f":"LEFT(Template!F485,3)","v":""},{"$f":"LEFT(Template!G485,10)","v":""},{"$f":"LEFT(Template!H485,6)","v":""},{"$f":"LEFT(Template!I485,4)","v":""},{"$f":"LEFT(Template!J485,6)","v":""},{"$f":"LEFT(Template!K485,6)","v":""},{"$f":"LEFT(Template!L485,3)","v":""},{"$f":"IF(Template!M485=\"\",\"\",Template!M485)","v":""},{"$f":"IF(Template!N485=\"\",\"\",Template!N485)","v":""},null,null,null,null,null,{"$f":"IF(Template!O485=\"\",\"\",Template!O485)","v":""}]
[{"$f":"LEFT(Template!A486,4)","v":""},{"$f":"LEFT(Template!B486,5)","v":""},{"$f":"LEFT(Template!C486,7)","v":""},{"$f":"LEFT(Template!D486,6)","v":""},{"$f":"LEFT(Template!E486,2)","v":""},{"$f":"LEFT(Template!F486,3)","v":""},{"$f":"LEFT(Template!G486,10)","v":""},{"$f":"LEFT(Template!H486,6)","v":""},{"$f":"LEFT(Template!I486,4)","v":""},{"$f":"LEFT(Template!J486,6)","v":""},{"$f":"LEFT(Template!K486,6)","v":""},{"$f":"LEFT(Template!L486,3)","v":""},{"$f":"IF(Template!M486=\"\",\"\",Template!M486)","v":""},{"$f":"IF(Template!N486=\"\",\"\",Template!N486)","v":""},null,null,null,null,null,{"$f":"IF(Template!O486=\"\",\"\",Template!O486)","v":""}]
[{"$f":"LEFT(Template!A487,4)","v":""},{"$f":"LEFT(Template!B487,5)","v":""},{"$f":"LEFT(Template!C487,7)","v":""},{"$f":"LEFT(Template!D487,6)","v":""},{"$f":"LEFT(Template!E487,2)","v":""},{"$f":"LEFT(Template!F487,3)","v":""},{"$f":"LEFT(Template!G487,10)","v":""},{"$f":"LEFT(Template!H487,6)","v":""},{"$f":"LEFT(Template!I487,4)","v":""},{"$f":"LEFT(Template!J487,6)","v":""},{"$f":"LEFT(Template!K487,6)","v":""},{"$f":"LEFT(Template!L487,3)","v":""},{"$f":"IF(Template!M487=\"\",\"\",Template!M487)","v":""},{"$f":"IF(Template!N487=\"\",\"\",Template!N487)","v":""},null,null,null,null,null,{"$f":"IF(Template!O487=\"\",\"\",Template!O487)","v":""}]
[{"$f":"LEFT(Template!A488,4)","v":""},{"$f":"LEFT(Template!B488,5)","v":""},{"$f":"LEFT(Template!C488,7)","v":""},{"$f":"LEFT(Template!D488,6)","v":""},{"$f":"LEFT(Template!E488,2)","v":""},{"$f":"LEFT(Template!F488,3)","v":""},{"$f":"LEFT(Template!G488,10)","v":""},{"$f":"LEFT(Template!H488,6)","v":""},{"$f":"LEFT(Template!I488,4)","v":""},{"$f":"LEFT(Template!J488,6)","v":""},{"$f":"LEFT(Template!K488,6)","v":""},{"$f":"LEFT(Template!L488,3)","v":""},{"$f":"IF(Template!M488=\"\",\"\",Template!M488)","v":""},{"$f":"IF(Template!N488=\"\",\"\",Template!N488)","v":""},null,null,null,null,null,{"$f":"IF(Template!O488=\"\",\"\",Template!O488)","v":""}]
[{"$f":"LEFT(Template!A489,4)","v":""},{"$f":"LEFT(Template!B489,5)","v":""},{"$f":"LEFT(Template!C489,7)","v":""},{"$f":"LEFT(Template!D489,6)","v":""},{"$f":"LEFT(Template!E489,2)","v":""},{"$f":"LEFT(Template!F489,3)","v":""},{"$f":"LEFT(Template!G489,10)","v":""},{"$f":"LEFT(Template!H489,6)","v":""},{"$f":"LEFT(Template!I489,4)","v":""},{"$f":"LEFT(Template!J489,6)","v":""},{"$f":"LEFT(Template!K489,6)","v":""},{"$f":"LEFT(Template!L489,3)","v":""},{"$f":"IF(Template!M489=\"\",\"\",Template!M489)","v":""},{"$f":"IF(Template!N489=\"\",\"\",Template!N489)","v":""},null,null,null,null,null,{"$f":"IF(Template!O489=\"\",\"\",Template!O489)","v":""}]
[{"$f":"LEFT(Template!A490,4)","v":""},{"$f":"LEFT(Template!B490,5)","v":""},{"$f":"LEFT(Template!C490,7)","v":""},{"$f":"LEFT(Template!D490,6)","v":""},{"$f":"LEFT(Template!E490,2)","v":""},{"$f":"LEFT(Template!F490,3)","v":""},{"$f":"LEFT(Template!G490,10)","v":""},{"$f":"LEFT(Template!H490,6)","v":""},{"$f":"LEFT(Template!I490,4)","v":""},{"$f":"LEFT(Template!J490,6)","v":""},{"$f":"LEFT(Template!K490,6)","v":""},{"$f":"LEFT(Template!L490,3)","v":""},{"$f":"IF(Template!M490=\"\",\"\",Template!M490)","v":""},{"$f":"IF(Template!N490=\"\",\"\",Template!N490)","v":""},null,null,null,null,null,{"$f":"IF(Template!O490=\"\",\"\",Template!O490)","v":""}]
[{"$f":"LEFT(Template!A491,4)","v":""},{"$f":"LEFT(Template!B491,5)","v":""},{"$f":"LEFT(Template!C491,7)","v":""},{"$f":"LEFT(Template!D491,6)","v":""},{"$f":"LEFT(Template!E491,2)","v":""},{"$f":"LEFT(Template!F491,3)","v":""},{"$f":"LEFT(Template!G491,10)","v":""},{"$f":"LEFT(Template!H491,6)","v":""},{"$f":"LEFT(Template!I491,4)","v":""},{"$f":"LEFT(Template!J491,6)","v":""},{"$f":"LEFT(Template!K491,6)","v":""},{"$f":"LEFT(Template!L491,3)","v":""},{"$f":"IF(Template!M491=\"\",\"\",Template!M491)","v":""},{"$f":"IF(Template!N491=\"\",\"\",Template!N491)","v":""},null,null,null,null,null,{"$f":"IF(Template!O491=\"\",\"\",Template!O491)","v":""}]
[{"$f":"LEFT(Template!A492,4)","v":""},{"$f":"LEFT(Template!B492,5)","v":""},{"$f":"LEFT(Template!C492,7)","v":""},{"$f":"LEFT(Template!D492,6)","v":""},{"$f":"LEFT(Template!E492,2)","v":""},{"$f":"LEFT(Template!F492,3)","v":""},{"$f":"LEFT(Template!G492,10)","v":""},{"$f":"LEFT(Template!H492,6)","v":""},{"$f":"LEFT(Template!I492,4)","v":""},{"$f":"LEFT(Template!J492,6)","v":""},{"$f":"LEFT(Template!K492,6)","v":""},{"$f":"LEFT(Template!L492,3)","v":""},{"$f":"IF(Template!M492=\"\",\"\",Template!M492)","v":""},{"$f":"IF(Template!N492=\"\",\"\",Template!N492)","v":""},null,null,null,null,null,{"$f":"IF(Template!O492=\"\",\"\",Template!O492)","v":""}]
[{"$f":"LEFT(Template!A493,4)","v":""},{"$f":"LEFT(Template!B493,5)","v":""},{"$f":"LEFT(Template!C493,7)","v":""},{"$f":"LEFT(Template!D493,6)","v":""},{"$f":"LEFT(Template!E493,2)","v":""},{"$f":"LEFT(Template!F493,3)","v":""},{"$f":"LEFT(Template!G493,10)","v":""},{"$f":"LEFT(Template!H493,6)","v":""},{"$f":"LEFT(Template!I493,4)","v":""},{"$f":"LEFT(Template!J493,6)","v":""},{"$f":"LEFT(Template!K493,6)","v":""},{"$f":"LEFT(Template!L493,3)","v":""},{"$f":"IF(Template!M493=\"\",\"\",Template!M493)","v":""},{"$f":"IF(Template!N493=\"\",\"\",Template!N493)","v":""},null,null,null,null,null,{"$f":"IF(Template!O493=\"\",\"\",Template!O493)","v":""}]
[{"$f":"LEFT(Template!A494,4)","v":""},{"$f":"LEFT(Template!B494,5)","v":""},{"$f":"LEFT(Template!C494,7)","v":""},{"$f":"LEFT(Template!D494,6)","v":""},{"$f":"LEFT(Template!E494,2)","v":""},{"$f":"LEFT(Template!F494,3)","v":""},{"$f":"LEFT(Template!G494,10)","v":""},{"$f":"LEFT(Template!H494,6)","v":""},{"$f":"LEFT(Template!I494,4)","v":""},{"$f":"LEFT(Template!J494,6)","v":""},{"$f":"LEFT(Template!K494,6)","v":""},{"$f":"LEFT(Template!L494,3)","v":""},{"$f":"IF(Template!M494=\"\",\"\",Template!M494)","v":""},{"$f":"IF(Template!N494=\"\",\"\",Template!N494)","v":""},null,null,null,null,null,{"$f":"IF(Template!O494=\"\",\"\",Template!O494)","v":""}]
[{"$f":"LEFT(Template!A495,4)","v":""},{"$f":"LEFT(Template!B495,5)","v":""},{"$f":"LEFT(Template!C495,7)","v":""},{"$f":"LEFT(Template!D495,6)","v":""},{"$f":"LEFT(Template!E495,2)","v":""},{"$f":"LEFT(Template!F495,3)","v":""},{"$f":"LEFT(Template!G495,10)","v":""},{"$f":"LEFT(Template!H495,6)","v":""},{"$f":"LEFT(Template!I495,4)","v":""},{"$f":"LEFT(Template!J495,6)","v":""},{"$f":"LEFT(Template!K495,6)","v":""},{"$f":"LEFT(Template!L495,3)","v":""},{"$f":"IF(Template!M495=\"\",\"\",Template!M495)","v":""},{"$f":"IF(Template!N495=\"\",\"\",Template!N495)","v":""},null,null,null,null,null,{"$f":"IF(Template!O495=\"\",\"\",Template!O495)","v":""}]
[{"$f":"LEFT(Template!A496,4)","v":""},{"$f":"LEFT(Template!B496,5)","v":""},{"$f":"LEFT(Template!C496,7)","v":""},{"$f":"LEFT(Template!D496,6)","v":""},{"$f":"LEFT(Template!E496,2)","v":""},{"$f":"LEFT(Template!F496,3)","v":""},{"$f":"LEFT(Template!G496,10)","v":""},{"$f":"LEFT(Template!H496,6)","v":""},{"$f":"LEFT(Template!I496,4)","v":""},{"$f":"LEFT(Template!J496,6)","v":""},{"$f":"LEFT(Template!K496,6)","v":""},{"$f":"LEFT(Template!L496,3)","v":""},{"$f":"IF(Template!M496=\"\",\"\",Template!M496)","v":""},{"$f":"IF(Template!N496=\"\",\"\",Template!N496)","v":""},null,null,null,null,null,{"$f":"IF(Template!O496=\"\",\"\",Template!O496)","v":""}]
[{"$f":"LEFT(Template!A497,4)","v":""},{"$f":"LEFT(Template!B497,5)","v":""},{"$f":"LEFT(Template!C497,7)","v":""},{"$f":"LEFT(Template!D497,6)","v":""},{"$f":"LEFT(Template!E497,2)","v":""},{"$f":"LEFT(Template!F497,3)","v":""},{"$f":"LEFT(Template!G497,10)","v":""},{"$f":"LEFT(Template!H497,6)","v":""},{"$f":"LEFT(Template!I497,4)","v":""},{"$f":"LEFT(Template!J497,6)","v":""},{"$f":"LEFT(Template!K497,6)","v":""},{"$f":"LEFT(Template!L497,3)","v":""},{"$f":"IF(Template!M497=\"\",\"\",Template!M497)","v":""},{"$f":"IF(Template!N497=\"\",\"\",Template!N497)","v":""},null,null,null,null,null,{"$f":"IF(Template!O497=\"\",\"\",Template!O497)","v":""}]
[{"$f":"LEFT(Template!A498,4)","v":""},{"$f":"LEFT(Template!B498,5)","v":""},{"$f":"LEFT(Template!C498,7)","v":""},{"$f":"LEFT(Template!D498,6)","v":""},{"$f":"LEFT(Template!E498,2)","v":""},{"$f":"LEFT(Template!F498,3)","v":""},{"$f":"LEFT(Template!G498,10)","v":""},{"$f":"LEFT(Template!H498,6)","v":""},{"$f":"LEFT(Template!I498,4)","v":""},{"$f":"LEFT(Template!J498,6)","v":""},{"$f":"LEFT(Template!K498,6)","v":""},{"$f":"LEFT(Template!L498,3)","v":""},{"$f":"IF(Template!M498=\"\",\"\",Template!M498)","v":""},{"$f":"IF(Template!N498=\"\",\"\",Template!N498)","v":""},null,null,null,null,null,{"$f":"IF(Template!O498=\"\",\"\",Template!O498)","v":""}]
[{"$f":"LEFT(Template!A499,4)","v":""},{"$f":"LEFT(Template!B499,5)","v":""},{"$f":"LEFT(Template!C499,7)","v":""},{"$f":"LEFT(Template!D499,6)","v":""},{"$f":"LEFT(Template!E499,2)","v":""},{"$f":"LEFT(Template!F499,3)","v":""},{"$f":"LEFT(Template!G499,10)","v":""},{"$f":"LEFT(Template!H499,6)","v":""},{"$f":"LEFT(Template!I499,4)","v":""},{"$f":"LEFT(Template!J499,6)","v":""},{"$f":"LEFT(Template!K499,6)","v":""},{"$f":"LEFT(Template!L499,3)","v":""},{"$f":"IF(Template!M499=\"\",\"\",Template!M499)","v":""},{"$f":"IF(Template!N499=\"\",\"\",Template!N499)","v":""},null,null,null,null,null,{"$f":"IF(Template!O499=\"\",\"\",Template!O499)","v":""}]
[{"$f":"LEFT(Template!A500,4)","v":""},{"$f":"LEFT(Template!B500,5)","v":""},{"$f":"LEFT(Template!C500,7)","v":""},{"$f":"LEFT(Template!D500,6)","v":""},{"$f":"LEFT(Template!E500,2)","v":""},{"$f":"LEFT(Template!F500,3)","v":""},{"$f":"LEFT(Template!G500,10)","v":""},{"$f":"LEFT(Template!H500,6)","v":""},{"$f":"LEFT(Template!I500,4)","v":""},{"$f":"LEFT(Template!J500,6)","v":""},{"$f":"LEFT(Template!K500,6)","v":""},{"$f":"LEFT(Template!L500,3)","v":""},{"$f":"IF(Template!M500=\"\",\"\",Template!M500)","v":""},{"$f":"IF(Template!N500=\"\",\"\",Template!N500)","v":""},null,null,null,null,null,{"$f":"IF(Template!O500=\"\",\"\",Template!O500)","v":""}]
[{"$f":"LEFT(Template!A501,4)","v":""},{"$f":"LEFT(Template!B501,5)","v":""},{"$f":"LEFT(Template!C501,7)","v":""},{"$f":"LEFT(Template!D501,6)","v":""},{"$f":"LEFT(Template!E501,2)","v":""},{"$f":"LEFT(Template!F501,3)","v":""},{"$f":"LEFT(Template!G501,10)","v":""},{"$f":"LEFT(Template!H501,6)","v":""},{"$f":"LEFT(Template!I501,4)","v":""},{"$f":"LEFT(Template!J501,6)","v":""},{"$f":"LEFT(Template!K501,6)","v":""},{"$f":"LEFT(Template!L501,3)","v":""},{"$f":"IF(Template!M501=\"\",\"\",Template!M501)","v":""},{"$f":"IF(Template!N501=\"\",\"\",Template!N501)","v":""},null,null,null,null,null,{"$f":"IF(Template!O501=\"\",\"\",Template!O501)","v":""}]
[{"$f":"LEFT(Template!A502,4)","v":""},{"$f":"LEFT(Template!B502,5)","v":""},{"$f":"LEFT(Template!C502,7)","v":""},{"$f":"LEFT(Template!D502,6)","v":""},{"$f":"LEFT(Template!E502,2)","v":""},{"$f":"LEFT(Template!F502,3)","v":""},{"$f":"LEFT(Template!G502,10)","v":""},{"$f":"LEFT(Template!H502,6)","v":""},{"$f":"LEFT(Template!I502,4)","v":""},{"$f":"LEFT(Template!J502,6)","v":""},{"$f":"LEFT(Template!K502,6)","v":""},{"$f":"LEFT(Template!L502,3)","v":""},{"$f":"IF(Template!M502=\"\",\"\",Template!M502)","v":""},{"$f":"IF(Template!N502=\"\",\"\",Template!N502)","v":""},null,null,null,null,null,{"$f":"IF(Template!O502=\"\",\"\",Template!O502)","v":""}]
[{"$f":"LEFT(Template!A503,4)","v":""},{"$f":"LEFT(Template!B503,5)","v":""},{"$f":"LEFT(Template!C503,7)","v":""},{"$f":"LEFT(Template!D503,6)","v":""},{"$f":"LEFT(Template!E503,2)","v":""},{"$f":"LEFT(Template!F503,3)","v":""},{"$f":"LEFT(Template!G503,10)","v":""},{"$f":"LEFT(Template!H503,6)","v":""},{"$f":"LEFT(Template!I503,4)","v":""},{"$f":"LEFT(Template!J503,6)","v":""},{"$f":"LEFT(Template!K503,6)","v":""},{"$f":"LEFT(Template!L503,3)","v":""},{"$f":"IF(Template!M503=\"\",\"\",Template!M503)","v":""},{"$f":"IF(Template!N503=\"\",\"\",Template!N503)","v":""},null,null,null,null,null,{"$f":"IF(Template!O503=\"\",\"\",Template!O503)","v":""}]
[{"$f":"LEFT(Template!A504,4)","v":""},{"$f":"LEFT(Template!B504,5)","v":""},{"$f":"LEFT(Template!C504,7)","v":""},{"$f":"LEFT(Template!D504,6)","v":""},{"$f":"LEFT(Template!E504,2)","v":""},{"$f":"LEFT(Template!F504,3)","v":""},{"$f":"LEFT(Template!G504,10)","v":""},{"$f":"LEFT(Template!H504,6)","v":""},{"$f":"LEFT(Template!I504,4)","v":""},{"$f":"LEFT(Template!J504,6)","v":""},{"$f":"LEFT(Template!K504,6)","v":""},{"$f":"LEFT(Template!L504,3)","v":""},{"$f":"IF(Template!M504=\"\",\"\",Template!M504)","v":""},{"$f":"IF(Template!N504=\"\",\"\",Template!N504)","v":""},null,null,null,null,null,{"$f":"IF(Template!O504=\"\",\"\",Template!O504)","v":""}]
[{"$f":"LEFT(Template!A505,4)","v":""},{"$f":"LEFT(Template!B505,5)","v":""},{"$f":"LEFT(Template!C505,7)","v":""},{"$f":"LEFT(Template!D505,6)","v":""},{"$f":"LEFT(Template!E505,2)","v":""},{"$f":"LEFT(Template!F505,3)","v":""},{"$f":"LEFT(Template!G505,10)","v":""},{"$f":"LEFT(Template!H505,6)","v":""},{"$f":"LEFT(Template!I505,4)","v":""},{"$f":"LEFT(Template!J505,6)","v":""},{"$f":"LEFT(Template!K505,6)","v":""},{"$f":"LEFT(Template!L505,3)","v":""},{"$f":"IF(Template!M505=\"\",\"\",Template!M505)","v":""},{"$f":"IF(Template!N505=\"\",\"\",Template!N505)","v":""},null,null,null,null,null,{"$f":"IF(Template!O505=\"\",\"\",Template!O505)","v":""}]
[{"$f":"LEFT(Template!A506,4)","v":""},{"$f":"LEFT(Template!B506,5)","v":""},{"$f":"LEFT(Template!C506,7)","v":""},{"$f":"LEFT(Template!D506,6)","v":""},{"$f":"LEFT(Template!E506,2)","v":""},{"$f":"LEFT(Template!F506,3)","v":""},{"$f":"LEFT(Template!G506,10)","v":""},{"$f":"LEFT(Template!H506,6)","v":""},{"$f":"LEFT(Template!I506,4)","v":""},{"$f":"LEFT(Template!J506,6)","v":""},{"$f":"LEFT(Template!K506,6)","v":""},{"$f":"LEFT(Template!L506,3)","v":""},{"$f":"IF(Template!M506=\"\",\"\",Template!M506)","v":""},{"$f":"IF(Template!N506=\"\",\"\",Template!N506)","v":""},null,null,null,null,null,{"$f":"IF(Template!O506=\"\",\"\",Template!O506)","v":""}]
[{"$f":"LEFT(Template!A507,4)","v":""},{"$f":"LEFT(Template!B507,5)","v":""},{"$f":"LEFT(Template!C507,7)","v":""},{"$f":"LEFT(Template!D507,6)","v":""},{"$f":"LEFT(Template!E507,2)","v":""},{"$f":"LEFT(Template!F507,3)","v":""},{"$f":"LEFT(Template!G507,10)","v":""},{"$f":"LEFT(Template!H507,6)","v":""},{"$f":"LEFT(Template!I507,4)","v":""},{"$f":"LEFT(Template!J507,6)","v":""},{"$f":"LEFT(Template!K507,6)","v":""},{"$f":"LEFT(Template!L507,3)","v":""},{"$f":"IF(Template!M507=\"\",\"\",Template!M507)","v":""},{"$f":"IF(Template!N507=\"\",\"\",Template!N507)","v":""},null,null,null,null,null,{"$f":"IF(Template!O507=\"\",\"\",Template!O507)","v":""}]
[{"$f":"LEFT(Template!A508,4)","v":""},{"$f":"LEFT(Template!B508,5)","v":""},{"$f":"LEFT(Template!C508,7)","v":""},{"$f":"LEFT(Template!D508,6)","v":""},{"$f":"LEFT(Template!E508,2)","v":""},{"$f":"LEFT(Template!F508,3)","v":""},{"$f":"LEFT(Template!G508,10)","v":""},{"$f":"LEFT(Template!H508,6)","v":""},{"$f":"LEFT(Template!I508,4)","v":""},{"$f":"LEFT(Template!J508,6)","v":""},{"$f":"LEFT(Template!K508,6)","v":""},{"$f":"LEFT(Template!L508,3)","v":""},{"$f":"IF(Template!M508=\"\",\"\",Template!M508)","v":""},{"$f":"IF(Template!N508=\"\",\"\",Template!N508)","v":""},null,null,null,null,null,{"$f":"IF(Template!O508=\"\",\"\",Template!O508)","v":""}]
[{"$f":"LEFT(Template!A509,4)","v":""},{"$f":"LEFT(Template!B509,5)","v":""},{"$f":"LEFT(Template!C509,7)","v":""},{"$f":"LEFT(Template!D509,6)","v":""},{"$f":"LEFT(Template!E509,2)","v":""},{"$f":"LEFT(Template!F509,3)","v":""},{"$f":"LEFT(Template!G509,10)","v":""},{"$f":"LEFT(Template!H509,6)","v":""},{"$f":"LEFT(Template!I509,4)","v":""},{"$f":"LEFT(Template!J509,6)","v":""},{"$f":"LEFT(Template!K509,6)","v":""},{"$f":"LEFT(Template!L509,3)","v":""},{"$f":"IF(Template!M509=\"\",\"\",Template!M509)","v":""},{"$f":"IF(Template!N509=\"\",\"\",Template!N509)","v":""},null,null,null,null,null,{"$f":"IF(Template!O509=\"\",\"\",Template!O509)","v":""}]
[{"$f":"LEFT(Template!A510,4)","v":""},{"$f":"LEFT(Template!B510,5)","v":""},{"$f":"LEFT(Template!C510,7)","v":""},{"$f":"LEFT(Template!D510,6)","v":""},{"$f":"LEFT(Template!E510,2)","v":""},{"$f":"LEFT(Template!F510,3)","v":""},{"$f":"LEFT(Template!G510,10)","v":""},{"$f":"LEFT(Template!H510,6)","v":""},{"$f":"LEFT(Template!I510,4)","v":""},{"$f":"LEFT(Template!J510,6)","v":""},{"$f":"LEFT(Template!K510,6)","v":""},{"$f":"LEFT(Template!L510,3)","v":""},{"$f":"IF(Template!M510=\"\",\"\",Template!M510)","v":""},{"$f":"IF(Template!N510=\"\",\"\",Template!N510)","v":""},null,null,null,null,null,{"$f":"IF(Template!O510=\"\",\"\",Template!O510)","v":""}]
[{"$f":"LEFT(Template!A511,4)","v":""},{"$f":"LEFT(Template!B511,5)","v":""},{"$f":"LEFT(Template!C511,7)","v":""},{"$f":"LEFT(Template!D511,6)","v":""},{"$f":"LEFT(Template!E511,2)","v":""},{"$f":"LEFT(Template!F511,3)","v":""},{"$f":"LEFT(Template!G511,10)","v":""},{"$f":"LEFT(Template!H511,6)","v":""},{"$f":"LEFT(Template!I511,4)","v":""},{"$f":"LEFT(Template!J511,6)","v":""},{"$f":"LEFT(Template!K511,6)","v":""},{"$f":"LEFT(Template!L511,3)","v":""},{"$f":"IF(Template!M511=\"\",\"\",Template!M511)","v":""},{"$f":"IF(Template!N511=\"\",\"\",Template!N511)","v":""},null,null,null,null,null,{"$f":"IF(Template!O511=\"\",\"\",Template!O511)","v":""}]
[{"$f":"LEFT(Template!A512,4)","v":""},{"$f":"LEFT(Template!B512,5)","v":""},{"$f":"LEFT(Template!C512,7)","v":""},{"$f":"LEFT(Template!D512,6)","v":""},{"$f":"LEFT(Template!E512,2)","v":""},{"$f":"LEFT(Template!F512,3)","v":""},{"$f":"LEFT(Template!G512,10)","v":""},{"$f":"LEFT(Template!H512,6)","v":""},{"$f":"LEFT(Template!I512,4)","v":""},{"$f":"LEFT(Template!J512,6)","v":""},{"$f":"LEFT(Template!K512,6)","v":""},{"$f":"LEFT(Template!L512,3)","v":""},{"$f":"IF(Template!M512=\"\",\"\",Template!M512)","v":""},{"$f":"IF(Template!N512=\"\",\"\",Template!N512)","v":""},null,null,null,null,null,{"$f":"IF(Template!O512=\"\",\"\",Template!O512)","v":""}]
[{"$f":"LEFT(Template!A513,4)","v":""},{"$f":"LEFT(Template!B513,5)","v":""},{"$f":"LEFT(Template!C513,7)","v":""},{"$f":"LEFT(Template!D513,6)","v":""},{"$f":"LEFT(Template!E513,2)","v":""},{"$f":"LEFT(Template!F513,3)","v":""},{"$f":"LEFT(Template!G513,10)","v":""},{"$f":"LEFT(Template!H513,6)","v":""},{"$f":"LEFT(Template!I513,4)","v":""},{"$f":"LEFT(Template!J513,6)","v":""},{"$f":"LEFT(Template!K513,6)","v":""},{"$f":"LEFT(Template!L513,3)","v":""},{"$f":"IF(Template!M513=\"\",\"\",Template!M513)","v":""},{"$f":"IF(Template!N513=\"\",\"\",Template!N513)","v":""},null,null,null,null,null,{"$f":"IF(Template!O513=\"\",\"\",Template!O513)","v":""}]
[{"$f":"LEFT(Template!A514,4)","v":""},{"$f":"LEFT(Template!B514,5)","v":""},{"$f":"LEFT(Template!C514,7)","v":""},{"$f":"LEFT(Template!D514,6)","v":""},{"$f":"LEFT(Template!E514,2)","v":""},{"$f":"LEFT(Template!F514,3)","v":""},{"$f":"LEFT(Template!G514,10)","v":""},{"$f":"LEFT(Template!H514,6)","v":""},{"$f":"LEFT(Template!I514,4)","v":""},{"$f":"LEFT(Template!J514,6)","v":""},{"$f":"LEFT(Template!K514,6)","v":""},{"$f":"LEFT(Template!L514,3)","v":""},{"$f":"IF(Template!M514=\"\",\"\",Template!M514)","v":""},{"$f":"IF(Template!N514=\"\",\"\",Template!N514)","v":""},null,null,null,null,null,{"$f":"IF(Template!O514=\"\",\"\",Template!O514)","v":""}]
[{"$f":"LEFT(Template!A515,4)","v":""},{"$f":"LEFT(Template!B515,5)","v":""},{"$f":"LEFT(Template!C515,7)","v":""},{"$f":"LEFT(Template!D515,6)","v":""},{"$f":"LEFT(Template!E515,2)","v":""},{"$f":"LEFT(Template!F515,3)","v":""},{"$f":"LEFT(Template!G515,10)","v":""},{"$f":"LEFT(Template!H515,6)","v":""},{"$f":"LEFT(Template!I515,4)","v":""},{"$f":"LEFT(Template!J515,6)","v":""},{"$f":"LEFT(Template!K515,6)","v":""},{"$f":"LEFT(Template!L515,3)","v":""},{"$f":"IF(Template!M515=\"\",\"\",Template!M515)","v":""},{"$f":"IF(Template!N515=\"\",\"\",Template!N515)","v":""},null,null,null,null,null,{"$f":"IF(Template!O515=\"\",\"\",Template!O515)","v":""}]
[{"$f":"LEFT(Template!A516,4)","v":""},{"$f":"LEFT(Template!B516,5)","v":""},{"$f":"LEFT(Template!C516,7)","v":""},{"$f":"LEFT(Template!D516,6)","v":""},{"$f":"LEFT(Template!E516,2)","v":""},{"$f":"LEFT(Template!F516,3)","v":""},{"$f":"LEFT(Template!G516,10)","v":""},{"$f":"LEFT(Template!H516,6)","v":""},{"$f":"LEFT(Template!I516,4)","v":""},{"$f":"LEFT(Template!J516,6)","v":""},{"$f":"LEFT(Template!K516,6)","v":""},{"$f":"LEFT(Template!L516,3)","v":""},{"$f":"IF(Template!M516=\"\",\"\",Template!M516)","v":""},{"$f":"IF(Template!N516=\"\",\"\",Template!N516)","v":""},null,null,null,null,null,{"$f":"IF(Template!O516=\"\",\"\",Template!O516)","v":""}]
[{"$f":"LEFT(Template!A517,4)","v":""},{"$f":"LEFT(Template!B517,5)","v":""},{"$f":"LEFT(Template!C517,7)","v":""},{"$f":"LEFT(Template!D517,6)","v":""},{"$f":"LEFT(Template!E517,2)","v":""},{"$f":"LEFT(Template!F517,3)","v":""},{"$f":"LEFT(Template!G517,10)","v":""},{"$f":"LEFT(Template!H517,6)","v":""},{"$f":"LEFT(Template!I517,4)","v":""},{"$f":"LEFT(Template!J517,6)","v":""},{"$f":"LEFT(Template!K517,6)","v":""},{"$f":"LEFT(Template!L517,3)","v":""},{"$f":"IF(Template!M517=\"\",\"\",Template!M517)","v":""},{"$f":"IF(Template!N517=\"\",\"\",Template!N517)","v":""},null,null,null,null,null,{"$f":"IF(Template!O517=\"\",\"\",Template!O517)","v":""}]
[{"$f":"LEFT(Template!A518,4)","v":""},{"$f":"LEFT(Template!B518,5)","v":""},{"$f":"LEFT(Template!C518,7)","v":""},{"$f":"LEFT(Template!D518,6)","v":""},{"$f":"LEFT(Template!E518,2)","v":""},{"$f":"LEFT(Template!F518,3)","v":""},{"$f":"LEFT(Template!G518,10)","v":""},{"$f":"LEFT(Template!H518,6)","v":""},{"$f":"LEFT(Template!I518,4)","v":""},{"$f":"LEFT(Template!J518,6)","v":""},{"$f":"LEFT(Template!K518,6)","v":""},{"$f":"LEFT(Template!L518,3)","v":""},{"$f":"IF(Template!M518=\"\",\"\",Template!M518)","v":""},{"$f":"IF(Template!N518=\"\",\"\",Template!N518)","v":""},null,null,null,null,null,{"$f":"IF(Template!O518=\"\",\"\",Template!O518)","v":""}]
[{"$f":"LEFT(Template!A519,4)","v":""},{"$f":"LEFT(Template!B519,5)","v":""},{"$f":"LEFT(Template!C519,7)","v":""},{"$f":"LEFT(Template!D519,6)","v":""},{"$f":"LEFT(Template!E519,2)","v":""},{"$f":"LEFT(Template!F519,3)","v":""},{"$f":"LEFT(Template!G519,10)","v":""},{"$f":"LEFT(Template!H519,6)","v":""},{"$f":"LEFT(Template!I519,4)","v":""},{"$f":"LEFT(Template!J519,6)","v":""},{"$f":"LEFT(Template!K519,6)","v":""},{"$f":"LEFT(Template!L519,3)","v":""},{"$f":"IF(Template!M519=\"\",\"\",Template!M519)","v":""},{"$f":"IF(Template!N519=\"\",\"\",Template!N519)","v":""},null,null,null,null,null,{"$f":"IF(Template!O519=\"\",\"\",Template!O519)","v":""}]
[{"$f":"LEFT(Template!A520,4)","v":""},{"$f":"LEFT(Template!B520,5)","v":""},{"$f":"LEFT(Template!C520,7)","v":""},{"$f":"LEFT(Template!D520,6)","v":""},{"$f":"LEFT(Template!E520,2)","v":""},{"$f":"LEFT(Template!F520,3)","v":""},{"$f":"LEFT(Template!G520,10)","v":""},{"$f":"LEFT(Template!H520,6)","v":""},{"$f":"LEFT(Template!I520,4)","v":""},{"$f":"LEFT(Template!J520,6)","v":""},{"$f":"LEFT(Template!K520,6)","v":""},{"$f":"LEFT(Template!L520,3)","v":""},{"$f":"IF(Template!M520=\"\",\"\",Template!M520)","v":""},{"$f":"IF(Template!N520=\"\",\"\",Template!N520)","v":""},null,null,null,null,null,{"$f":"IF(Template!O520=\"\",\"\",Template!O520)","v":""}]
[{"$f":"LEFT(Template!A521,4)","v":""},{"$f":"LEFT(Template!B521,5)","v":""},{"$f":"LEFT(Template!C521,7)","v":""},{"$f":"LEFT(Template!D521,6)","v":""},{"$f":"LEFT(Template!E521,2)","v":""},{"$f":"LEFT(Template!F521,3)","v":""},{"$f":"LEFT(Template!G521,10)","v":""},{"$f":"LEFT(Template!H521,6)","v":""},{"$f":"LEFT(Template!I521,4)","v":""},{"$f":"LEFT(Template!J521,6)","v":""},{"$f":"LEFT(Template!K521,6)","v":""},{"$f":"LEFT(Template!L521,3)","v":""},{"$f":"IF(Template!M521=\"\",\"\",Template!M521)","v":""},{"$f":"IF(Template!N521=\"\",\"\",Template!N521)","v":""},null,null,null,null,null,{"$f":"IF(Template!O521=\"\",\"\",Template!O521)","v":""}]
[{"$f":"LEFT(Template!A522,4)","v":""},{"$f":"LEFT(Template!B522,5)","v":""},{"$f":"LEFT(Template!C522,7)","v":""},{"$f":"LEFT(Template!D522,6)","v":""},{"$f":"LEFT(Template!E522,2)","v":""},{"$f":"LEFT(Template!F522,3)","v":""},{"$f":"LEFT(Template!G522,10)","v":""},{"$f":"LEFT(Template!H522,6)","v":""},{"$f":"LEFT(Template!I522,4)","v":""},{"$f":"LEFT(Template!J522,6)","v":""},{"$f":"LEFT(Template!K522,6)","v":""},{"$f":"LEFT(Template!L522,3)","v":""},{"$f":"IF(Template!M522=\"\",\"\",Template!M522)","v":""},{"$f":"IF(Template!N522=\"\",\"\",Template!N522)","v":""},null,null,null,null,null,{"$f":"IF(Template!O522=\"\",\"\",Template!O522)","v":""}]
[{"$f":"LEFT(Template!A523,4)","v":""},{"$f":"LEFT(Template!B523,5)","v":""},{"$f":"LEFT(Template!C523,7)","v":""},{"$f":"LEFT(Template!D523,6)","v":""},{"$f":"LEFT(Template!E523,2)","v":""},{"$f":"LEFT(Template!F523,3)","v":""},{"$f":"LEFT(Template!G523,10)","v":""},{"$f":"LEFT(Template!H523,6)","v":""},{"$f":"LEFT(Template!I523,4)","v":""},{"$f":"LEFT(Template!J523,6)","v":""},{"$f":"LEFT(Template!K523,6)","v":""},{"$f":"LEFT(Template!L523,3)","v":""},{"$f":"IF(Template!M523=\"\",\"\",Template!M523)","v":""},{"$f":"IF(Template!N523=\"\",\"\",Template!N523)","v":""},null,null,null,null,null,{"$f":"IF(Template!O523=\"\",\"\",Template!O523)","v":""}]
[{"$f":"LEFT(Template!A524,4)","v":""},{"$f":"LEFT(Template!B524,5)","v":""},{"$f":"LEFT(Template!C524,7)","v":""},{"$f":"LEFT(Template!D524,6)","v":""},{"$f":"LEFT(Template!E524,2)","v":""},{"$f":"LEFT(Template!F524,3)","v":""},{"$f":"LEFT(Template!G524,10)","v":""},{"$f":"LEFT(Template!H524,6)","v":""},{"$f":"LEFT(Template!I524,4)","v":""},{"$f":"LEFT(Template!J524,6)","v":""},{"$f":"LEFT(Template!K524,6)","v":""},{"$f":"LEFT(Template!L524,3)","v":""},{"$f":"IF(Template!M524=\"\",\"\",Template!M524)","v":""},{"$f":"IF(Template!N524=\"\",\"\",Template!N524)","v":""},null,null,null,null,null,{"$f":"IF(Template!O524=\"\",\"\",Template!O524)","v":""}]
[{"$f":"LEFT(Template!A525,4)","v":""},{"$f":"LEFT(Template!B525,5)","v":""},{"$f":"LEFT(Template!C525,7)","v":""},{"$f":"LEFT(Template!D525,6)","v":""},{"$f":"LEFT(Template!E525,2)","v":""},{"$f":"LEFT(Template!F525,3)","v":""},{"$f":"LEFT(Template!G525,10)","v":""},{"$f":"LEFT(Template!H525,6)","v":""},{"$f":"LEFT(Template!I525,4)","v":""},{"$f":"LEFT(Template!J525,6)","v":""},{"$f":"LEFT(Template!K525,6)","v":""},{"$f":"LEFT(Template!L525,3)","v":""},{"$f":"IF(Template!M525=\"\",\"\",Template!M525)","v":""},{"$f":"IF(Template!N525=\"\",\"\",Template!N525)","v":""},null,null,null,null,null,{"$f":"IF(Template!O525=\"\",\"\",Template!O525)","v":""}]
[{"$f":"LEFT(Template!A526,4)","v":""},{"$f":"LEFT(Template!B526,5)","v":""},{"$f":"LEFT(Template!C526,7)","v":""},{"$f":"LEFT(Template!D526,6)","v":""},{"$f":"LEFT(Template!E526,2)","v":""},{"$f":"LEFT(Template!F526,3)","v":""},{"$f":"LEFT(Template!G526,10)","v":""},{"$f":"LEFT(Template!H526,6)","v":""},{"$f":"LEFT(Template!I526,4)","v":""},{"$f":"LEFT(Template!J526,6)","v":""},{"$f":"LEFT(Template!K526,6)","v":""},{"$f":"LEFT(Template!L526,3)","v":""},{"$f":"IF(Template!M526=\"\",\"\",Template!M526)","v":""},{"$f":"IF(Template!N526=\"\",\"\",Template!N526)","v":""},null,null,null,null,null,{"$f":"IF(Template!O526=\"\",\"\",Template!O526)","v":""}]
[{"$f":"LEFT(Template!A527,4)","v":""},{"$f":"LEFT(Template!B527,5)","v":""},{"$f":"LEFT(Template!C527,7)","v":""},{"$f":"LEFT(Template!D527,6)","v":""},{"$f":"LEFT(Template!E527,2)","v":""},{"$f":"LEFT(Template!F527,3)","v":""},{"$f":"LEFT(Template!G527,10)","v":""},{"$f":"LEFT(Template!H527,6)","v":""},{"$f":"LEFT(Template!I527,4)","v":""},{"$f":"LEFT(Template!J527,6)","v":""},{"$f":"LEFT(Template!K527,6)","v":""},{"$f":"LEFT(Template!L527,3)","v":""},{"$f":"IF(Template!M527=\"\",\"\",Template!M527)","v":""},{"$f":"IF(Template!N527=\"\",\"\",Template!N527)","v":""},null,null,null,null,null,{"$f":"IF(Template!O527=\"\",\"\",Template!O527)","v":""}]
[{"$f":"LEFT(Template!A528,4)","v":""},{"$f":"LEFT(Template!B528,5)","v":""},{"$f":"LEFT(Template!C528,7)","v":""},{"$f":"LEFT(Template!D528,6)","v":""},{"$f":"LEFT(Template!E528,2)","v":""},{"$f":"LEFT(Template!F528,3)","v":""},{"$f":"LEFT(Template!G528,10)","v":""},{"$f":"LEFT(Template!H528,6)","v":""},{"$f":"LEFT(Template!I528,4)","v":""},{"$f":"LEFT(Template!J528,6)","v":""},{"$f":"LEFT(Template!K528,6)","v":""},{"$f":"LEFT(Template!L528,3)","v":""},{"$f":"IF(Template!M528=\"\",\"\",Template!M528)","v":""},{"$f":"IF(Template!N528=\"\",\"\",Template!N528)","v":""},null,null,null,null,null,{"$f":"IF(Template!O528=\"\",\"\",Template!O528)","v":""}]
[{"$f":"LEFT(Template!A529,4)","v":""},{"$f":"LEFT(Template!B529,5)","v":""},{"$f":"LEFT(Template!C529,7)","v":""},{"$f":"LEFT(Template!D529,6)","v":""},{"$f":"LEFT(Template!E529,2)","v":""},{"$f":"LEFT(Template!F529,3)","v":""},{"$f":"LEFT(Template!G529,10)","v":""},{"$f":"LEFT(Template!H529,6)","v":""},{"$f":"LEFT(Template!I529,4)","v":""},{"$f":"LEFT(Template!J529,6)","v":""},{"$f":"LEFT(Template!K529,6)","v":""},{"$f":"LEFT(Template!L529,3)","v":""},{"$f":"IF(Template!M529=\"\",\"\",Template!M529)","v":""},{"$f":"IF(Template!N529=\"\",\"\",Template!N529)","v":""},null,null,null,null,null,{"$f":"IF(Template!O529=\"\",\"\",Template!O529)","v":""}]
[{"$f":"LEFT(Template!A530,4)","v":""},{"$f":"LEFT(Template!B530,5)","v":""},{"$f":"LEFT(Template!C530,7)","v":""},{"$f":"LEFT(Template!D530,6)","v":""},{"$f":"LEFT(Template!E530,2)","v":""},{"$f":"LEFT(Template!F530,3)","v":""},{"$f":"LEFT(Template!G530,10)","v":""},{"$f":"LEFT(Template!H530,6)","v":""},{"$f":"LEFT(Template!I530,4)","v":""},{"$f":"LEFT(Template!J530,6)","v":""},{"$f":"LEFT(Template!K530,6)","v":""},{"$f":"LEFT(Template!L530,3)","v":""},{"$f":"IF(Template!M530=\"\",\"\",Template!M530)","v":""},{"$f":"IF(Template!N530=\"\",\"\",Template!N530)","v":""},null,null,null,null,null,{"$f":"IF(Template!O530=\"\",\"\",Template!O530)","v":""}]
[{"$f":"LEFT(Template!A531,4)","v":""},{"$f":"LEFT(Template!B531,5)","v":""},{"$f":"LEFT(Template!C531,7)","v":""},{"$f":"LEFT(Template!D531,6)","v":""},{"$f":"LEFT(Template!E531,2)","v":""},{"$f":"LEFT(Template!F531,3)","v":""},{"$f":"LEFT(Template!G531,10)","v":""},{"$f":"LEFT(Template!H531,6)","v":""},{"$f":"LEFT(Template!I531,4)","v":""},{"$f":"LEFT(Template!J531,6)","v":""},{"$f":"LEFT(Template!K531,6)","v":""},{"$f":"LEFT(Template!L531,3)","v":""},{"$f":"IF(Template!M531=\"\",\"\",Template!M531)","v":""},{"$f":"IF(Template!N531=\"\",\"\",Template!N531)","v":""},null,null,null,null,null,{"$f":"IF(Template!O531=\"\",\"\",Template!O531)","v":""}]
[{"$f":"LEFT(Template!A532,4)","v":""},{"$f":"LEFT(Template!B532,5)","v":""},{"$f":"LEFT(Template!C532,7)","v":""},{"$f":"LEFT(Template!D532,6)","v":""},{"$f":"LEFT(Template!E532,2)","v":""},{"$f":"LEFT(Template!F532,3)","v":""},{"$f":"LEFT(Template!G532,10)","v":""},{"$f":"LEFT(Template!H532,6)","v":""},{"$f":"LEFT(Template!I532,4)","v":""},{"$f":"LEFT(Template!J532,6)","v":""},{"$f":"LEFT(Template!K532,6)","v":""},{"$f":"LEFT(Template!L532,3)","v":""},{"$f":"IF(Template!M532=\"\",\"\",Template!M532)","v":""},{"$f":"IF(Template!N532=\"\",\"\",Template!N532)","v":""},null,null,null,null,null,{"$f":"IF(Template!O532=\"\",\"\",Template!O532)","v":""}]
[{"$f":"LEFT(Template!A533,4)","v":""},{"$f":"LEFT(Template!B533,5)","v":""},{"$f":"LEFT(Template!C533,7)","v":""},{"$f":"LEFT(Template!D533,6)","v":""},{"$f":"LEFT(Template!E533,2)","v":""},{"$f":"LEFT(Template!F533,3)","v":""},{"$f":"LEFT(Template!G533,10)","v":""},{"$f":"LEFT(Template!H533,6)","v":""},{"$f":"LEFT(Template!I533,4)","v":""},{"$f":"LEFT(Template!J533,6)","v":""},{"$f":"LEFT(Template!K533,6)","v":""},{"$f":"LEFT(Template!L533,3)","v":""},{"$f":"IF(Template!M533=\"\",\"\",Template!M533)","v":""},{"$f":"IF(Template!N533=\"\",\"\",Template!N533)","v":""},null,null,null,null,null,{"$f":"IF(Template!O533=\"\",\"\",Template!O533)","v":""}]
[{"$f":"LEFT(Template!A534,4)","v":""},{"$f":"LEFT(Template!B534,5)","v":""},{"$f":"LEFT(Template!C534,7)","v":""},{"$f":"LEFT(Template!D534,6)","v":""},{"$f":"LEFT(Template!E534,2)","v":""},{"$f":"LEFT(Template!F534,3)","v":""},{"$f":"LEFT(Template!G534,10)","v":""},{"$f":"LEFT(Template!H534,6)","v":""},{"$f":"LEFT(Template!I534,4)","v":""},{"$f":"LEFT(Template!J534,6)","v":""},{"$f":"LEFT(Template!K534,6)","v":""},{"$f":"LEFT(Template!L534,3)","v":""},{"$f":"IF(Template!M534=\"\",\"\",Template!M534)","v":""},{"$f":"IF(Template!N534=\"\",\"\",Template!N534)","v":""},null,null,null,null,null,{"$f":"IF(Template!O534=\"\",\"\",Template!O534)","v":""}]
[{"$f":"LEFT(Template!A535,4)","v":""},{"$f":"LEFT(Template!B535,5)","v":""},{"$f":"LEFT(Template!C535,7)","v":""},{"$f":"LEFT(Template!D535,6)","v":""},{"$f":"LEFT(Template!E535,2)","v":""},{"$f":"LEFT(Template!F535,3)","v":""},{"$f":"LEFT(Template!G535,10)","v":""},{"$f":"LEFT(Template!H535,6)","v":""},{"$f":"LEFT(Template!I535,4)","v":""},{"$f":"LEFT(Template!J535,6)","v":""},{"$f":"LEFT(Template!K535,6)","v":""},{"$f":"LEFT(Template!L535,3)","v":""},{"$f":"IF(Template!M535=\"\",\"\",Template!M535)","v":""},{"$f":"IF(Template!N535=\"\",\"\",Template!N535)","v":""},null,null,null,null,null,{"$f":"IF(Template!O535=\"\",\"\",Template!O535)","v":""}]
[{"$f":"LEFT(Template!A536,4)","v":""},{"$f":"LEFT(Template!B536,5)","v":""},{"$f":"LEFT(Template!C536,7)","v":""},{"$f":"LEFT(Template!D536,6)","v":""},{"$f":"LEFT(Template!E536,2)","v":""},{"$f":"LEFT(Template!F536,3)","v":""},{"$f":"LEFT(Template!G536,10)","v":""},{"$f":"LEFT(Template!H536,6)","v":""},{"$f":"LEFT(Template!I536,4)","v":""},{"$f":"LEFT(Template!J536,6)","v":""},{"$f":"LEFT(Template!K536,6)","v":""},{"$f":"LEFT(Template!L536,3)","v":""},{"$f":"IF(Template!M536=\"\",\"\",Template!M536)","v":""},{"$f":"IF(Template!N536=\"\",\"\",Template!N536)","v":""},null,null,null,null,null,{"$f":"IF(Template!O536=\"\",\"\",Template!O536)","v":""}]
[{"$f":"LEFT(Template!A537,4)","v":""},{"$f":"LEFT(Template!B537,5)","v":""},{"$f":"LEFT(Template!C537,7)","v":""},{"$f":"LEFT(Template!D537,6)","v":""},{"$f":"LEFT(Template!E537,2)","v":""},{"$f":"LEFT(Template!F537,3)","v":""},{"$f":"LEFT(Template!G537,10)","v":""},{"$f":"LEFT(Template!H537,6)","v":""},{"$f":"LEFT(Template!I537,4)","v":""},{"$f":"LEFT(Template!J537,6)","v":""},{"$f":"LEFT(Template!K537,6)","v":""},{"$f":"LEFT(Template!L537,3)","v":""},{"$f":"IF(Template!M537=\"\",\"\",Template!M537)","v":""},{"$f":"IF(Template!N537=\"\",\"\",Template!N537)","v":""},null,null,null,null,null,{"$f":"IF(Template!O537=\"\",\"\",Template!O537)","v":""}]
[{"$f":"LEFT(Template!A538,4)","v":""},{"$f":"LEFT(Template!B538,5)","v":""},{"$f":"LEFT(Template!C538,7)","v":""},{"$f":"LEFT(Template!D538,6)","v":""},{"$f":"LEFT(Template!E538,2)","v":""},{"$f":"LEFT(Template!F538,3)","v":""},{"$f":"LEFT(Template!G538,10)","v":""},{"$f":"LEFT(Template!H538,6)","v":""},{"$f":"LEFT(Template!I538,4)","v":""},{"$f":"LEFT(Template!J538,6)","v":""},{"$f":"LEFT(Template!K538,6)","v":""},{"$f":"LEFT(Template!L538,3)","v":""},{"$f":"IF(Template!M538=\"\",\"\",Template!M538)","v":""},{"$f":"IF(Template!N538=\"\",\"\",Template!N538)","v":""},null,null,null,null,null,{"$f":"IF(Template!O538=\"\",\"\",Template!O538)","v":""}]
[{"$f":"LEFT(Template!A539,4)","v":""},{"$f":"LEFT(Template!B539,5)","v":""},{"$f":"LEFT(Template!C539,7)","v":""},{"$f":"LEFT(Template!D539,6)","v":""},{"$f":"LEFT(Template!E539,2)","v":""},{"$f":"LEFT(Template!F539,3)","v":""},{"$f":"LEFT(Template!G539,10)","v":""},{"$f":"LEFT(Template!H539,6)","v":""},{"$f":"LEFT(Template!I539,4)","v":""},{"$f":"LEFT(Template!J539,6)","v":""},{"$f":"LEFT(Template!K539,6)","v":""},{"$f":"LEFT(Template!L539,3)","v":""},{"$f":"IF(Template!M539=\"\",\"\",Template!M539)","v":""},{"$f":"IF(Template!N539=\"\",\"\",Template!N539)","v":""},null,null,null,null,null,{"$f":"IF(Template!O539=\"\",\"\",Template!O539)","v":""}]
[{"$f":"LEFT(Template!A540,4)","v":""},{"$f":"LEFT(Template!B540,5)","v":""},{"$f":"LEFT(Template!C540,7)","v":""},{"$f":"LEFT(Template!D540,6)","v":""},{"$f":"LEFT(Template!E540,2)","v":""},{"$f":"LEFT(Template!F540,3)","v":""},{"$f":"LEFT(Template!G540,10)","v":""},{"$f":"LEFT(Template!H540,6)","v":""},{"$f":"LEFT(Template!I540,4)","v":""},{"$f":"LEFT(Template!J540,6)","v":""},{"$f":"LEFT(Template!K540,6)","v":""},{"$f":"LEFT(Template!L540,3)","v":""},{"$f":"IF(Template!M540=\"\",\"\",Template!M540)","v":""},{"$f":"IF(Template!N540=\"\",\"\",Template!N540)","v":""},null,null,null,null,null,{"$f":"IF(Template!O540=\"\",\"\",Template!O540)","v":""}]
[{"$f":"LEFT(Template!A541,4)","v":""},{"$f":"LEFT(Template!B541,5)","v":""},{"$f":"LEFT(Template!C541,7)","v":""},{"$f":"LEFT(Template!D541,6)","v":""},{"$f":"LEFT(Template!E541,2)","v":""},{"$f":"LEFT(Template!F541,3)","v":""},{"$f":"LEFT(Template!G541,10)","v":""},{"$f":"LEFT(Template!H541,6)","v":""},{"$f":"LEFT(Template!I541,4)","v":""},{"$f":"LEFT(Template!J541,6)","v":""},{"$f":"LEFT(Template!K541,6)","v":""},{"$f":"LEFT(Template!L541,3)","v":""},{"$f":"IF(Template!M541=\"\",\"\",Template!M541)","v":""},{"$f":"IF(Template!N541=\"\",\"\",Template!N541)","v":""},null,null,null,null,null,{"$f":"IF(Template!O541=\"\",\"\",Template!O541)","v":""}]
[{"$f":"LEFT(Template!A542,4)","v":""},{"$f":"LEFT(Template!B542,5)","v":""},{"$f":"LEFT(Template!C542,7)","v":""},{"$f":"LEFT(Template!D542,6)","v":""},{"$f":"LEFT(Template!E542,2)","v":""},{"$f":"LEFT(Template!F542,3)","v":""},{"$f":"LEFT(Template!G542,10)","v":""},{"$f":"LEFT(Template!H542,6)","v":""},{"$f":"LEFT(Template!I542,4)","v":""},{"$f":"LEFT(Template!J542,6)","v":""},{"$f":"LEFT(Template!K542,6)","v":""},{"$f":"LEFT(Template!L542,3)","v":""},{"$f":"IF(Template!M542=\"\",\"\",Template!M542)","v":""},{"$f":"IF(Template!N542=\"\",\"\",Template!N542)","v":""},null,null,null,null,null,{"$f":"IF(Template!O542=\"\",\"\",Template!O542)","v":""}]
[{"$f":"LEFT(Template!A543,4)","v":""},{"$f":"LEFT(Template!B543,5)","v":""},{"$f":"LEFT(Template!C543,7)","v":""},{"$f":"LEFT(Template!D543,6)","v":""},{"$f":"LEFT(Template!E543,2)","v":""},{"$f":"LEFT(Template!F543,3)","v":""},{"$f":"LEFT(Template!G543,10)","v":""},{"$f":"LEFT(Template!H543,6)","v":""},{"$f":"LEFT(Template!I543,4)","v":""},{"$f":"LEFT(Template!J543,6)","v":""},{"$f":"LEFT(Template!K543,6)","v":""},{"$f":"LEFT(Template!L543,3)","v":""},{"$f":"IF(Template!M543=\"\",\"\",Template!M543)","v":""},{"$f":"IF(Template!N543=\"\",\"\",Template!N543)","v":""},null,null,null,null,null,{"$f":"IF(Template!O543=\"\",\"\",Template!O543)","v":""}]
[{"$f":"LEFT(Template!A544,4)","v":""},{"$f":"LEFT(Template!B544,5)","v":""},{"$f":"LEFT(Template!C544,7)","v":""},{"$f":"LEFT(Template!D544,6)","v":""},{"$f":"LEFT(Template!E544,2)","v":""},{"$f":"LEFT(Template!F544,3)","v":""},{"$f":"LEFT(Template!G544,10)","v":""},{"$f":"LEFT(Template!H544,6)","v":""},{"$f":"LEFT(Template!I544,4)","v":""},{"$f":"LEFT(Template!J544,6)","v":""},{"$f":"LEFT(Template!K544,6)","v":""},{"$f":"LEFT(Template!L544,3)","v":""},{"$f":"IF(Template!M544=\"\",\"\",Template!M544)","v":""},{"$f":"IF(Template!N544=\"\",\"\",Template!N544)","v":""},null,null,null,null,null,{"$f":"IF(Template!O544=\"\",\"\",Template!O544)","v":""}]
[{"$f":"LEFT(Template!A545,4)","v":""},{"$f":"LEFT(Template!B545,5)","v":""},{"$f":"LEFT(Template!C545,7)","v":""},{"$f":"LEFT(Template!D545,6)","v":""},{"$f":"LEFT(Template!E545,2)","v":""},{"$f":"LEFT(Template!F545,3)","v":""},{"$f":"LEFT(Template!G545,10)","v":""},{"$f":"LEFT(Template!H545,6)","v":""},{"$f":"LEFT(Template!I545,4)","v":""},{"$f":"LEFT(Template!J545,6)","v":""},{"$f":"LEFT(Template!K545,6)","v":""},{"$f":"LEFT(Template!L545,3)","v":""},{"$f":"IF(Template!M545=\"\",\"\",Template!M545)","v":""},{"$f":"IF(Template!N545=\"\",\"\",Template!N545)","v":""},null,null,null,null,null,{"$f":"IF(Template!O545=\"\",\"\",Template!O545)","v":""}]
[{"$f":"LEFT(Template!A546,4)","v":""},{"$f":"LEFT(Template!B546,5)","v":""},{"$f":"LEFT(Template!C546,7)","v":""},{"$f":"LEFT(Template!D546,6)","v":""},{"$f":"LEFT(Template!E546,2)","v":""},{"$f":"LEFT(Template!F546,3)","v":""},{"$f":"LEFT(Template!G546,10)","v":""},{"$f":"LEFT(Template!H546,6)","v":""},{"$f":"LEFT(Template!I546,4)","v":""},{"$f":"LEFT(Template!J546,6)","v":""},{"$f":"LEFT(Template!K546,6)","v":""},{"$f":"LEFT(Template!L546,3)","v":""},{"$f":"IF(Template!M546=\"\",\"\",Template!M546)","v":""},{"$f":"IF(Template!N546=\"\",\"\",Template!N546)","v":""},null,null,null,null,null,{"$f":"IF(Template!O546=\"\",\"\",Template!O546)","v":""}]
[{"$f":"LEFT(Template!A547,4)","v":""},{"$f":"LEFT(Template!B547,5)","v":""},{"$f":"LEFT(Template!C547,7)","v":""},{"$f":"LEFT(Template!D547,6)","v":""},{"$f":"LEFT(Template!E547,2)","v":""},{"$f":"LEFT(Template!F547,3)","v":""},{"$f":"LEFT(Template!G547,10)","v":""},{"$f":"LEFT(Template!H547,6)","v":""},{"$f":"LEFT(Template!I547,4)","v":""},{"$f":"LEFT(Template!J547,6)","v":""},{"$f":"LEFT(Template!K547,6)","v":""},{"$f":"LEFT(Template!L547,3)","v":""},{"$f":"IF(Template!M547=\"\",\"\",Template!M547)","v":""},{"$f":"IF(Template!N547=\"\",\"\",Template!N547)","v":""},null,null,null,null,null,{"$f":"IF(Template!O547=\"\",\"\",Template!O547)","v":""}]
[{"$f":"LEFT(Template!A548,4)","v":""},{"$f":"LEFT(Template!B548,5)","v":""},{"$f":"LEFT(Template!C548,7)","v":""},{"$f":"LEFT(Template!D548,6)","v":""},{"$f":"LEFT(Template!E548,2)","v":""},{"$f":"LEFT(Template!F548,3)","v":""},{"$f":"LEFT(Template!G548,10)","v":""},{"$f":"LEFT(Template!H548,6)","v":""},{"$f":"LEFT(Template!I548,4)","v":""},{"$f":"LEFT(Template!J548,6)","v":""},{"$f":"LEFT(Template!K548,6)","v":""},{"$f":"LEFT(Template!L548,3)","v":""},{"$f":"IF(Template!M548=\"\",\"\",Template!M548)","v":""},{"$f":"IF(Template!N548=\"\",\"\",Template!N548)","v":""},null,null,null,null,null,{"$f":"IF(Template!O548=\"\",\"\",Template!O548)","v":""}]
[{"$f":"LEFT(Template!A549,4)","v":""},{"$f":"LEFT(Template!B549,5)","v":""},{"$f":"LEFT(Template!C549,7)","v":""},{"$f":"LEFT(Template!D549,6)","v":""},{"$f":"LEFT(Template!E549,2)","v":""},{"$f":"LEFT(Template!F549,3)","v":""},{"$f":"LEFT(Template!G549,10)","v":""},{"$f":"LEFT(Template!H549,6)","v":""},{"$f":"LEFT(Template!I549,4)","v":""},{"$f":"LEFT(Template!J549,6)","v":""},{"$f":"LEFT(Template!K549,6)","v":""},{"$f":"LEFT(Template!L549,3)","v":""},{"$f":"IF(Template!M549=\"\",\"\",Template!M549)","v":""},{"$f":"IF(Template!N549=\"\",\"\",Template!N549)","v":""},null,null,null,null,null,{"$f":"IF(Template!O549=\"\",\"\",Template!O549)","v":""}]
[{"$f":"LEFT(Template!A550,4)","v":""},{"$f":"LEFT(Template!B550,5)","v":""},{"$f":"LEFT(Template!C550,7)","v":""},{"$f":"LEFT(Template!D550,6)","v":""},{"$f":"LEFT(Template!E550,2)","v":""},{"$f":"LEFT(Template!F550,3)","v":""},{"$f":"LEFT(Template!G550,10)","v":""},{"$f":"LEFT(Template!H550,6)","v":""},{"$f":"LEFT(Template!I550,4)","v":""},{"$f":"LEFT(Template!J550,6)","v":""},{"$f":"LEFT(Template!K550,6)","v":""},{"$f":"LEFT(Template!L550,3)","v":""},{"$f":"IF(Template!M550=\"\",\"\",Template!M550)","v":""},{"$f":"IF(Template!N550=\"\",\"\",Template!N550)","v":""},null,null,null,null,null,{"$f":"IF(Template!O550=\"\",\"\",Template!O550)","v":""}]
[{"$f":"LEFT(Template!A551,4)","v":""},{"$f":"LEFT(Template!B551,5)","v":""},{"$f":"LEFT(Template!C551,7)","v":""},{"$f":"LEFT(Template!D551,6)","v":""},{"$f":"LEFT(Template!E551,2)","v":""},{"$f":"LEFT(Template!F551,3)","v":""},{"$f":"LEFT(Template!G551,10)","v":""},{"$f":"LEFT(Template!H551,6)","v":""},{"$f":"LEFT(Template!I551,4)","v":""},{"$f":"LEFT(Template!J551,6)","v":""},{"$f":"LEFT(Template!K551,6)","v":""},{"$f":"LEFT(Template!L551,3)","v":""},{"$f":"IF(Template!M551=\"\",\"\",Template!M551)","v":""},{"$f":"IF(Template!N551=\"\",\"\",Template!N551)","v":""},null,null,null,null,null,{"$f":"IF(Template!O551=\"\",\"\",Template!O551)","v":""}]
[{"$f":"LEFT(Template!A552,4)","v":""},{"$f":"LEFT(Template!B552,5)","v":""},{"$f":"LEFT(Template!C552,7)","v":""},{"$f":"LEFT(Template!D552,6)","v":""},{"$f":"LEFT(Template!E552,2)","v":""},{"$f":"LEFT(Template!F552,3)","v":""},{"$f":"LEFT(Template!G552,10)","v":""},{"$f":"LEFT(Template!H552,6)","v":""},{"$f":"LEFT(Template!I552,4)","v":""},{"$f":"LEFT(Template!J552,6)","v":""},{"$f":"LEFT(Template!K552,6)","v":""},{"$f":"LEFT(Template!L552,3)","v":""},{"$f":"IF(Template!M552=\"\",\"\",Template!M552)","v":""},{"$f":"IF(Template!N552=\"\",\"\",Template!N552)","v":""},null,null,null,null,null,{"$f":"IF(Template!O552=\"\",\"\",Template!O552)","v":""}]
[{"$f":"LEFT(Template!A553,4)","v":""},{"$f":"LEFT(Template!B553,5)","v":""},{"$f":"LEFT(Template!C553,7)","v":""},{"$f":"LEFT(Template!D553,6)","v":""},{"$f":"LEFT(Template!E553,2)","v":""},{"$f":"LEFT(Template!F553,3)","v":""},{"$f":"LEFT(Template!G553,10)","v":""},{"$f":"LEFT(Template!H553,6)","v":""},{"$f":"LEFT(Template!I553,4)","v":""},{"$f":"LEFT(Template!J553,6)","v":""},{"$f":"LEFT(Template!K553,6)","v":""},{"$f":"LEFT(Template!L553,3)","v":""},{"$f":"IF(Template!M553=\"\",\"\",Template!M553)","v":""},{"$f":"IF(Template!N553=\"\",\"\",Template!N553)","v":""},null,null,null,null,null,{"$f":"IF(Template!O553=\"\",\"\",Template!O553)","v":""}]
[{"$f":"LEFT(Template!A554,4)","v":""},{"$f":"LEFT(Template!B554,5)","v":""},{"$f":"LEFT(Template!C554,7)","v":""},{"$f":"LEFT(Template!D554,6)","v":""},{"$f":"LEFT(Template!E554,2)","v":""},{"$f":"LEFT(Template!F554,3)","v":""},{"$f":"LEFT(Template!G554,10)","v":""},{"$f":"LEFT(Template!H554,6)","v":""},{"$f":"LEFT(Template!I554,4)","v":""},{"$f":"LEFT(Template!J554,6)","v":""},{"$f":"LEFT(Template!K554,6)","v":""},{"$f":"LEFT(Template!L554,3)","v":""},{"$f":"IF(Template!M554=\"\",\"\",Template!M554)","v":""},{"$f":"IF(Template!N554=\"\",\"\",Template!N554)","v":""},null,null,null,null,null,{"$f":"IF(Template!O554=\"\",\"\",Template!O554)","v":""}]
[{"$f":"LEFT(Template!A555,4)","v":""},{"$f":"LEFT(Template!B555,5)","v":""},{"$f":"LEFT(Template!C555,7)","v":""},{"$f":"LEFT(Template!D555,6)","v":""},{"$f":"LEFT(Template!E555,2)","v":""},{"$f":"LEFT(Template!F555,3)","v":""},{"$f":"LEFT(Template!G555,10)","v":""},{"$f":"LEFT(Template!H555,6)","v":""},{"$f":"LEFT(Template!I555,4)","v":""},{"$f":"LEFT(Template!J555,6)","v":""},{"$f":"LEFT(Template!K555,6)","v":""},{"$f":"LEFT(Template!L555,3)","v":""},{"$f":"IF(Template!M555=\"\",\"\",Template!M555)","v":""},{"$f":"IF(Template!N555=\"\",\"\",Template!N555)","v":""},null,null,null,null,null,{"$f":"IF(Template!O555=\"\",\"\",Template!O555)","v":""}]
[{"$f":"LEFT(Template!A556,4)","v":""},{"$f":"LEFT(Template!B556,5)","v":""},{"$f":"LEFT(Template!C556,7)","v":""},{"$f":"LEFT(Template!D556,6)","v":""},{"$f":"LEFT(Template!E556,2)","v":""},{"$f":"LEFT(Template!F556,3)","v":""},{"$f":"LEFT(Template!G556,10)","v":""},{"$f":"LEFT(Template!H556,6)","v":""},{"$f":"LEFT(Template!I556,4)","v":""},{"$f":"LEFT(Template!J556,6)","v":""},{"$f":"LEFT(Template!K556,6)","v":""},{"$f":"LEFT(Template!L556,3)","v":""},{"$f":"IF(Template!M556=\"\",\"\",Template!M556)","v":""},{"$f":"IF(Template!N556=\"\",\"\",Template!N556)","v":""},null,null,null,null,null,{"$f":"IF(Template!O556=\"\",\"\",Template!O556)","v":""}]
[{"$f":"LEFT(Template!A557,4)","v":""},{"$f":"LEFT(Template!B557,5)","v":""},{"$f":"LEFT(Template!C557,7)","v":""},{"$f":"LEFT(Template!D557,6)","v":""},{"$f":"LEFT(Template!E557,2)","v":""},{"$f":"LEFT(Template!F557,3)","v":""},{"$f":"LEFT(Template!G557,10)","v":""},{"$f":"LEFT(Template!H557,6)","v":""},{"$f":"LEFT(Template!I557,4)","v":""},{"$f":"LEFT(Template!J557,6)","v":""},{"$f":"LEFT(Template!K557,6)","v":""},{"$f":"LEFT(Template!L557,3)","v":""},{"$f":"IF(Template!M557=\"\",\"\",Template!M557)","v":""},{"$f":"IF(Template!N557=\"\",\"\",Template!N557)","v":""},null,null,null,null,null,{"$f":"IF(Template!O557=\"\",\"\",Template!O557)","v":""}]
[{"$f":"LEFT(Template!A558,4)","v":""},{"$f":"LEFT(Template!B558,5)","v":""},{"$f":"LEFT(Template!C558,7)","v":""},{"$f":"LEFT(Template!D558,6)","v":""},{"$f":"LEFT(Template!E558,2)","v":""},{"$f":"LEFT(Template!F558,3)","v":""},{"$f":"LEFT(Template!G558,10)","v":""},{"$f":"LEFT(Template!H558,6)","v":""},{"$f":"LEFT(Template!I558,4)","v":""},{"$f":"LEFT(Template!J558,6)","v":""},{"$f":"LEFT(Template!K558,6)","v":""},{"$f":"LEFT(Template!L558,3)","v":""},{"$f":"IF(Template!M558=\"\",\"\",Template!M558)","v":""},{"$f":"IF(Template!N558=\"\",\"\",Template!N558)","v":""},null,null,null,null,null,{"$f":"IF(Template!O558=\"\",\"\",Template!O558)","v":""}]
[{"$f":"LEFT(Template!A559,4)","v":""},{"$f":"LEFT(Template!B559,5)","v":""},{"$f":"LEFT(Template!C559,7)","v":""},{"$f":"LEFT(Template!D559,6)","v":""},{"$f":"LEFT(Template!E559,2)","v":""},{"$f":"LEFT(Template!F559,3)","v":""},{"$f":"LEFT(Template!G559,10)","v":""},{"$f":"LEFT(Template!H559,6)","v":""},{"$f":"LEFT(Template!I559,4)","v":""},{"$f":"LEFT(Template!J559,6)","v":""},{"$f":"LEFT(Template!K559,6)","v":""},{"$f":"LEFT(Template!L559,3)","v":""},{"$f":"IF(Template!M559=\"\",\"\",Template!M559)","v":""},{"$f":"IF(Template!N559=\"\",\"\",Template!N559)","v":""},null,null,null,null,null,{"$f":"IF(Template!O559=\"\",\"\",Template!O559)","v":""}]
[{"$f":"LEFT(Template!A560,4)","v":""},{"$f":"LEFT(Template!B560,5)","v":""},{"$f":"LEFT(Template!C560,7)","v":""},{"$f":"LEFT(Template!D560,6)","v":""},{"$f":"LEFT(Template!E560,2)","v":""},{"$f":"LEFT(Template!F560,3)","v":""},{"$f":"LEFT(Template!G560,10)","v":""},{"$f":"LEFT(Template!H560,6)","v":""},{"$f":"LEFT(Template!I560,4)","v":""},{"$f":"LEFT(Template!J560,6)","v":""},{"$f":"LEFT(Template!K560,6)","v":""},{"$f":"LEFT(Template!L560,3)","v":""},{"$f":"IF(Template!M560=\"\",\"\",Template!M560)","v":""},{"$f":"IF(Template!N560=\"\",\"\",Template!N560)","v":""},null,null,null,null,null,{"$f":"IF(Template!O560=\"\",\"\",Template!O560)","v":""}]
[{"$f":"LEFT(Template!A561,4)","v":""},{"$f":"LEFT(Template!B561,5)","v":""},{"$f":"LEFT(Template!C561,7)","v":""},{"$f":"LEFT(Template!D561,6)","v":""},{"$f":"LEFT(Template!E561,2)","v":""},{"$f":"LEFT(Template!F561,3)","v":""},{"$f":"LEFT(Template!G561,10)","v":""},{"$f":"LEFT(Template!H561,6)","v":""},{"$f":"LEFT(Template!I561,4)","v":""},{"$f":"LEFT(Template!J561,6)","v":""},{"$f":"LEFT(Template!K561,6)","v":""},{"$f":"LEFT(Template!L561,3)","v":""},{"$f":"IF(Template!M561=\"\",\"\",Template!M561)","v":""},{"$f":"IF(Template!N561=\"\",\"\",Template!N561)","v":""},null,null,null,null,null,{"$f":"IF(Template!O561=\"\",\"\",Template!O561)","v":""}]
[{"$f":"LEFT(Template!A562,4)","v":""},{"$f":"LEFT(Template!B562,5)","v":""},{"$f":"LEFT(Template!C562,7)","v":""},{"$f":"LEFT(Template!D562,6)","v":""},{"$f":"LEFT(Template!E562,2)","v":""},{"$f":"LEFT(Template!F562,3)","v":""},{"$f":"LEFT(Template!G562,10)","v":""},{"$f":"LEFT(Template!H562,6)","v":""},{"$f":"LEFT(Template!I562,4)","v":""},{"$f":"LEFT(Template!J562,6)","v":""},{"$f":"LEFT(Template!K562,6)","v":""},{"$f":"LEFT(Template!L562,3)","v":""},{"$f":"IF(Template!M562=\"\",\"\",Template!M562)","v":""},{"$f":"IF(Template!N562=\"\",\"\",Template!N562)","v":""},null,null,null,null,null,{"$f":"IF(Template!O562=\"\",\"\",Template!O562)","v":""}]
[{"$f":"LEFT(Template!A563,4)","v":""},{"$f":"LEFT(Template!B563,5)","v":""},{"$f":"LEFT(Template!C563,7)","v":""},{"$f":"LEFT(Template!D563,6)","v":""},{"$f":"LEFT(Template!E563,2)","v":""},{"$f":"LEFT(Template!F563,3)","v":""},{"$f":"LEFT(Template!G563,10)","v":""},{"$f":"LEFT(Template!H563,6)","v":""},{"$f":"LEFT(Template!I563,4)","v":""},{"$f":"LEFT(Template!J563,6)","v":""},{"$f":"LEFT(Template!K563,6)","v":""},{"$f":"LEFT(Template!L563,3)","v":""},{"$f":"IF(Template!M563=\"\",\"\",Template!M563)","v":""},{"$f":"IF(Template!N563=\"\",\"\",Template!N563)","v":""},null,null,null,null,null,{"$f":"IF(Template!O563=\"\",\"\",Template!O563)","v":""}]
[{"$f":"LEFT(Template!A564,4)","v":""},{"$f":"LEFT(Template!B564,5)","v":""},{"$f":"LEFT(Template!C564,7)","v":""},{"$f":"LEFT(Template!D564,6)","v":""},{"$f":"LEFT(Template!E564,2)","v":""},{"$f":"LEFT(Template!F564,3)","v":""},{"$f":"LEFT(Template!G564,10)","v":""},{"$f":"LEFT(Template!H564,6)","v":""},{"$f":"LEFT(Template!I564,4)","v":""},{"$f":"LEFT(Template!J564,6)","v":""},{"$f":"LEFT(Template!K564,6)","v":""},{"$f":"LEFT(Template!L564,3)","v":""},{"$f":"IF(Template!M564=\"\",\"\",Template!M564)","v":""},{"$f":"IF(Template!N564=\"\",\"\",Template!N564)","v":""},null,null,null,null,null,{"$f":"IF(Template!O564=\"\",\"\",Template!O564)","v":""}]
[{"$f":"LEFT(Template!A565,4)","v":""},{"$f":"LEFT(Template!B565,5)","v":""},{"$f":"LEFT(Template!C565,7)","v":""},{"$f":"LEFT(Template!D565,6)","v":""},{"$f":"LEFT(Template!E565,2)","v":""},{"$f":"LEFT(Template!F565,3)","v":""},{"$f":"LEFT(Template!G565,10)","v":""},{"$f":"LEFT(Template!H565,6)","v":""},{"$f":"LEFT(Template!I565,4)","v":""},{"$f":"LEFT(Template!J565,6)","v":""},{"$f":"LEFT(Template!K565,6)","v":""},{"$f":"LEFT(Template!L565,3)","v":""},{"$f":"IF(Template!M565=\"\",\"\",Template!M565)","v":""},{"$f":"IF(Template!N565=\"\",\"\",Template!N565)","v":""},null,null,null,null,null,{"$f":"IF(Template!O565=\"\",\"\",Template!O565)","v":""}]
[{"$f":"LEFT(Template!A566,4)","v":""},{"$f":"LEFT(Template!B566,5)","v":""},{"$f":"LEFT(Template!C566,7)","v":""},{"$f":"LEFT(Template!D566,6)","v":""},{"$f":"LEFT(Template!E566,2)","v":""},{"$f":"LEFT(Template!F566,3)","v":""},{"$f":"LEFT(Template!G566,10)","v":""},{"$f":"LEFT(Template!H566,6)","v":""},{"$f":"LEFT(Template!I566,4)","v":""},{"$f":"LEFT(Template!J566,6)","v":""},{"$f":"LEFT(Template!K566,6)","v":""},{"$f":"LEFT(Template!L566,3)","v":""},{"$f":"IF(Template!M566=\"\",\"\",Template!M566)","v":""},{"$f":"IF(Template!N566=\"\",\"\",Template!N566)","v":""},null,null,null,null,null,{"$f":"IF(Template!O566=\"\",\"\",Template!O566)","v":""}]
[{"$f":"LEFT(Template!A567,4)","v":""},{"$f":"LEFT(Template!B567,5)","v":""},{"$f":"LEFT(Template!C567,7)","v":""},{"$f":"LEFT(Template!D567,6)","v":""},{"$f":"LEFT(Template!E567,2)","v":""},{"$f":"LEFT(Template!F567,3)","v":""},{"$f":"LEFT(Template!G567,10)","v":""},{"$f":"LEFT(Template!H567,6)","v":""},{"$f":"LEFT(Template!I567,4)","v":""},{"$f":"LEFT(Template!J567,6)","v":""},{"$f":"LEFT(Template!K567,6)","v":""},{"$f":"LEFT(Template!L567,3)","v":""},{"$f":"IF(Template!M567=\"\",\"\",Template!M567)","v":""},{"$f":"IF(Template!N567=\"\",\"\",Template!N567)","v":""},null,null,null,null,null,{"$f":"IF(Template!O567=\"\",\"\",Template!O567)","v":""}]
[{"$f":"LEFT(Template!A568,4)","v":""},{"$f":"LEFT(Template!B568,5)","v":""},{"$f":"LEFT(Template!C568,7)","v":""},{"$f":"LEFT(Template!D568,6)","v":""},{"$f":"LEFT(Template!E568,2)","v":""},{"$f":"LEFT(Template!F568,3)","v":""},{"$f":"LEFT(Template!G568,10)","v":""},{"$f":"LEFT(Template!H568,6)","v":""},{"$f":"LEFT(Template!I568,4)","v":""},{"$f":"LEFT(Template!J568,6)","v":""},{"$f":"LEFT(Template!K568,6)","v":""},{"$f":"LEFT(Template!L568,3)","v":""},{"$f":"IF(Template!M568=\"\",\"\",Template!M568)","v":""},{"$f":"IF(Template!N568=\"\",\"\",Template!N568)","v":""},null,null,null,null,null,{"$f":"IF(Template!O568=\"\",\"\",Template!O568)","v":""}]
[{"$f":"LEFT(Template!A569,4)","v":""},{"$f":"LEFT(Template!B569,5)","v":""},{"$f":"LEFT(Template!C569,7)","v":""},{"$f":"LEFT(Template!D569,6)","v":""},{"$f":"LEFT(Template!E569,2)","v":""},{"$f":"LEFT(Template!F569,3)","v":""},{"$f":"LEFT(Template!G569,10)","v":""},{"$f":"LEFT(Template!H569,6)","v":""},{"$f":"LEFT(Template!I569,4)","v":""},{"$f":"LEFT(Template!J569,6)","v":""},{"$f":"LEFT(Template!K569,6)","v":""},{"$f":"LEFT(Template!L569,3)","v":""},{"$f":"IF(Template!M569=\"\",\"\",Template!M569)","v":""},{"$f":"IF(Template!N569=\"\",\"\",Template!N569)","v":""},null,null,null,null,null,{"$f":"IF(Template!O569=\"\",\"\",Template!O569)","v":""}]
[{"$f":"LEFT(Template!A570,4)","v":""},{"$f":"LEFT(Template!B570,5)","v":""},{"$f":"LEFT(Template!C570,7)","v":""},{"$f":"LEFT(Template!D570,6)","v":""},{"$f":"LEFT(Template!E570,2)","v":""},{"$f":"LEFT(Template!F570,3)","v":""},{"$f":"LEFT(Template!G570,10)","v":""},{"$f":"LEFT(Template!H570,6)","v":""},{"$f":"LEFT(Template!I570,4)","v":""},{"$f":"LEFT(Template!J570,6)","v":""},{"$f":"LEFT(Template!K570,6)","v":""},{"$f":"LEFT(Template!L570,3)","v":""},{"$f":"IF(Template!M570=\"\",\"\",Template!M570)","v":""},{"$f":"IF(Template!N570=\"\",\"\",Template!N570)","v":""},null,null,null,null,null,{"$f":"IF(Template!O570=\"\",\"\",Template!O570)","v":""}]
[{"$f":"LEFT(Template!A571,4)","v":""},{"$f":"LEFT(Template!B571,5)","v":""},{"$f":"LEFT(Template!C571,7)","v":""},{"$f":"LEFT(Template!D571,6)","v":""},{"$f":"LEFT(Template!E571,2)","v":""},{"$f":"LEFT(Template!F571,3)","v":""},{"$f":"LEFT(Template!G571,10)","v":""},{"$f":"LEFT(Template!H571,6)","v":""},{"$f":"LEFT(Template!I571,4)","v":""},{"$f":"LEFT(Template!J571,6)","v":""},{"$f":"LEFT(Template!K571,6)","v":""},{"$f":"LEFT(Template!L571,3)","v":""},{"$f":"IF(Template!M571=\"\",\"\",Template!M571)","v":""},{"$f":"IF(Template!N571=\"\",\"\",Template!N571)","v":""},null,null,null,null,null,{"$f":"IF(Template!O571=\"\",\"\",Template!O571)","v":""}]
[{"$f":"LEFT(Template!A572,4)","v":""},{"$f":"LEFT(Template!B572,5)","v":""},{"$f":"LEFT(Template!C572,7)","v":""},{"$f":"LEFT(Template!D572,6)","v":""},{"$f":"LEFT(Template!E572,2)","v":""},{"$f":"LEFT(Template!F572,3)","v":""},{"$f":"LEFT(Template!G572,10)","v":""},{"$f":"LEFT(Template!H572,6)","v":""},{"$f":"LEFT(Template!I572,4)","v":""},{"$f":"LEFT(Template!J572,6)","v":""},{"$f":"LEFT(Template!K572,6)","v":""},{"$f":"LEFT(Template!L572,3)","v":""},{"$f":"IF(Template!M572=\"\",\"\",Template!M572)","v":""},{"$f":"IF(Template!N572=\"\",\"\",Template!N572)","v":""},null,null,null,null,null,{"$f":"IF(Template!O572=\"\",\"\",Template!O572)","v":""}]
[{"$f":"LEFT(Template!A573,4)","v":""},{"$f":"LEFT(Template!B573,5)","v":""},{"$f":"LEFT(Template!C573,7)","v":""},{"$f":"LEFT(Template!D573,6)","v":""},{"$f":"LEFT(Template!E573,2)","v":""},{"$f":"LEFT(Template!F573,3)","v":""},{"$f":"LEFT(Template!G573,10)","v":""},{"$f":"LEFT(Template!H573,6)","v":""},{"$f":"LEFT(Template!I573,4)","v":""},{"$f":"LEFT(Template!J573,6)","v":""},{"$f":"LEFT(Template!K573,6)","v":""},{"$f":"LEFT(Template!L573,3)","v":""},{"$f":"IF(Template!M573=\"\",\"\",Template!M573)","v":""},{"$f":"IF(Template!N573=\"\",\"\",Template!N573)","v":""},null,null,null,null,null,{"$f":"IF(Template!O573=\"\",\"\",Template!O573)","v":""}]
[{"$f":"LEFT(Template!A574,4)","v":""},{"$f":"LEFT(Template!B574,5)","v":""},{"$f":"LEFT(Template!C574,7)","v":""},{"$f":"LEFT(Template!D574,6)","v":""},{"$f":"LEFT(Template!E574,2)","v":""},{"$f":"LEFT(Template!F574,3)","v":""},{"$f":"LEFT(Template!G574,10)","v":""},{"$f":"LEFT(Template!H574,6)","v":""},{"$f":"LEFT(Template!I574,4)","v":""},{"$f":"LEFT(Template!J574,6)","v":""},{"$f":"LEFT(Template!K574,6)","v":""},{"$f":"LEFT(Template!L574,3)","v":""},{"$f":"IF(Template!M574=\"\",\"\",Template!M574)","v":""},{"$f":"IF(Template!N574=\"\",\"\",Template!N574)","v":""},null,null,null,null,null,{"$f":"IF(Template!O574=\"\",\"\",Template!O574)","v":""}]
[{"$f":"LEFT(Template!A575,4)","v":""},{"$f":"LEFT(Template!B575,5)","v":""},{"$f":"LEFT(Template!C575,7)","v":""},{"$f":"LEFT(Template!D575,6)","v":""},{"$f":"LEFT(Template!E575,2)","v":""},{"$f":"LEFT(Template!F575,3)","v":""},{"$f":"LEFT(Template!G575,10)","v":""},{"$f":"LEFT(Template!H575,6)","v":""},{"$f":"LEFT(Template!I575,4)","v":""},{"$f":"LEFT(Template!J575,6)","v":""},{"$f":"LEFT(Template!K575,6)","v":""},{"$f":"LEFT(Template!L575,3)","v":""},{"$f":"IF(Template!M575=\"\",\"\",Template!M575)","v":""},{"$f":"IF(Template!N575=\"\",\"\",Template!N575)","v":""},null,null,null,null,null,{"$f":"IF(Template!O575=\"\",\"\",Template!O575)","v":""}]
[{"$f":"LEFT(Template!A576,4)","v":""},{"$f":"LEFT(Template!B576,5)","v":""},{"$f":"LEFT(Template!C576,7)","v":""},{"$f":"LEFT(Template!D576,6)","v":""},{"$f":"LEFT(Template!E576,2)","v":""},{"$f":"LEFT(Template!F576,3)","v":""},{"$f":"LEFT(Template!G576,10)","v":""},{"$f":"LEFT(Template!H576,6)","v":""},{"$f":"LEFT(Template!I576,4)","v":""},{"$f":"LEFT(Template!J576,6)","v":""},{"$f":"LEFT(Template!K576,6)","v":""},{"$f":"LEFT(Template!L576,3)","v":""},{"$f":"IF(Template!M576=\"\",\"\",Template!M576)","v":""},{"$f":"IF(Template!N576=\"\",\"\",Template!N576)","v":""},null,null,null,null,null,{"$f":"IF(Template!O576=\"\",\"\",Template!O576)","v":""}]
[{"$f":"LEFT(Template!A577,4)","v":""},{"$f":"LEFT(Template!B577,5)","v":""},{"$f":"LEFT(Template!C577,7)","v":""},{"$f":"LEFT(Template!D577,6)","v":""},{"$f":"LEFT(Template!E577,2)","v":""},{"$f":"LEFT(Template!F577,3)","v":""},{"$f":"LEFT(Template!G577,10)","v":""},{"$f":"LEFT(Template!H577,6)","v":""},{"$f":"LEFT(Template!I577,4)","v":""},{"$f":"LEFT(Template!J577,6)","v":""},{"$f":"LEFT(Template!K577,6)","v":""},{"$f":"LEFT(Template!L577,3)","v":""},{"$f":"IF(Template!M577=\"\",\"\",Template!M577)","v":""},{"$f":"IF(Template!N577=\"\",\"\",Template!N577)","v":""},null,null,null,null,null,{"$f":"IF(Template!O577=\"\",\"\",Template!O577)","v":""}]
[{"$f":"LEFT(Template!A578,4)","v":""},{"$f":"LEFT(Template!B578,5)","v":""},{"$f":"LEFT(Template!C578,7)","v":""},{"$f":"LEFT(Template!D578,6)","v":""},{"$f":"LEFT(Template!E578,2)","v":""},{"$f":"LEFT(Template!F578,3)","v":""},{"$f":"LEFT(Template!G578,10)","v":""},{"$f":"LEFT(Template!H578,6)","v":""},{"$f":"LEFT(Template!I578,4)","v":""},{"$f":"LEFT(Template!J578,6)","v":""},{"$f":"LEFT(Template!K578,6)","v":""},{"$f":"LEFT(Template!L578,3)","v":""},{"$f":"IF(Template!M578=\"\",\"\",Template!M578)","v":""},{"$f":"IF(Template!N578=\"\",\"\",Template!N578)","v":""},null,null,null,null,null,{"$f":"IF(Template!O578=\"\",\"\",Template!O578)","v":""}]
[{"$f":"LEFT(Template!A579,4)","v":""},{"$f":"LEFT(Template!B579,5)","v":""},{"$f":"LEFT(Template!C579,7)","v":""},{"$f":"LEFT(Template!D579,6)","v":""},{"$f":"LEFT(Template!E579,2)","v":""},{"$f":"LEFT(Template!F579,3)","v":""},{"$f":"LEFT(Template!G579,10)","v":""},{"$f":"LEFT(Template!H579,6)","v":""},{"$f":"LEFT(Template!I579,4)","v":""},{"$f":"LEFT(Template!J579,6)","v":""},{"$f":"LEFT(Template!K579,6)","v":""},{"$f":"LEFT(Template!L579,3)","v":""},{"$f":"IF(Template!M579=\"\",\"\",Template!M579)","v":""},{"$f":"IF(Template!N579=\"\",\"\",Template!N579)","v":""},null,null,null,null,null,{"$f":"IF(Template!O579=\"\",\"\",Template!O579)","v":""}]
[{"$f":"LEFT(Template!A580,4)","v":""},{"$f":"LEFT(Template!B580,5)","v":""},{"$f":"LEFT(Template!C580,7)","v":""},{"$f":"LEFT(Template!D580,6)","v":""},{"$f":"LEFT(Template!E580,2)","v":""},{"$f":"LEFT(Template!F580,3)","v":""},{"$f":"LEFT(Template!G580,10)","v":""},{"$f":"LEFT(Template!H580,6)","v":""},{"$f":"LEFT(Template!I580,4)","v":""},{"$f":"LEFT(Template!J580,6)","v":""},{"$f":"LEFT(Template!K580,6)","v":""},{"$f":"LEFT(Template!L580,3)","v":""},{"$f":"IF(Template!M580=\"\",\"\",Template!M580)","v":""},{"$f":"IF(Template!N580=\"\",\"\",Template!N580)","v":""},null,null,null,null,null,{"$f":"IF(Template!O580=\"\",\"\",Template!O580)","v":""}]
[{"$f":"LEFT(Template!A581,4)","v":""},{"$f":"LEFT(Template!B581,5)","v":""},{"$f":"LEFT(Template!C581,7)","v":""},{"$f":"LEFT(Template!D581,6)","v":""},{"$f":"LEFT(Template!E581,2)","v":""},{"$f":"LEFT(Template!F581,3)","v":""},{"$f":"LEFT(Template!G581,10)","v":""},{"$f":"LEFT(Template!H581,6)","v":""},{"$f":"LEFT(Template!I581,4)","v":""},{"$f":"LEFT(Template!J581,6)","v":""},{"$f":"LEFT(Template!K581,6)","v":""},{"$f":"LEFT(Template!L581,3)","v":""},{"$f":"IF(Template!M581=\"\",\"\",Template!M581)","v":""},{"$f":"IF(Template!N581=\"\",\"\",Template!N581)","v":""},null,null,null,null,null,{"$f":"IF(Template!O581=\"\",\"\",Template!O581)","v":""}]
[{"$f":"LEFT(Template!A582,4)","v":""},{"$f":"LEFT(Template!B582,5)","v":""},{"$f":"LEFT(Template!C582,7)","v":""},{"$f":"LEFT(Template!D582,6)","v":""},{"$f":"LEFT(Template!E582,2)","v":""},{"$f":"LEFT(Template!F582,3)","v":""},{"$f":"LEFT(Template!G582,10)","v":""},{"$f":"LEFT(Template!H582,6)","v":""},{"$f":"LEFT(Template!I582,4)","v":""},{"$f":"LEFT(Template!J582,6)","v":""},{"$f":"LEFT(Template!K582,6)","v":""},{"$f":"LEFT(Template!L582,3)","v":""},{"$f":"IF(Template!M582=\"\",\"\",Template!M582)","v":""},{"$f":"IF(Template!N582=\"\",\"\",Template!N582)","v":""},null,null,null,null,null,{"$f":"IF(Template!O582=\"\",\"\",Template!O582)","v":""}]
[{"$f":"LEFT(Template!A583,4)","v":""},{"$f":"LEFT(Template!B583,5)","v":""},{"$f":"LEFT(Template!C583,7)","v":""},{"$f":"LEFT(Template!D583,6)","v":""},{"$f":"LEFT(Template!E583,2)","v":""},{"$f":"LEFT(Template!F583,3)","v":""},{"$f":"LEFT(Template!G583,10)","v":""},{"$f":"LEFT(Template!H583,6)","v":""},{"$f":"LEFT(Template!I583,4)","v":""},{"$f":"LEFT(Template!J583,6)","v":""},{"$f":"LEFT(Template!K583,6)","v":""},{"$f":"LEFT(Template!L583,3)","v":""},{"$f":"IF(Template!M583=\"\",\"\",Template!M583)","v":""},{"$f":"IF(Template!N583=\"\",\"\",Template!N583)","v":""},null,null,null,null,null,{"$f":"IF(Template!O583=\"\",\"\",Template!O583)","v":""}]
[{"$f":"LEFT(Template!A584,4)","v":""},{"$f":"LEFT(Template!B584,5)","v":""},{"$f":"LEFT(Template!C584,7)","v":""},{"$f":"LEFT(Template!D584,6)","v":""},{"$f":"LEFT(Template!E584,2)","v":""},{"$f":"LEFT(Template!F584,3)","v":""},{"$f":"LEFT(Template!G584,10)","v":""},{"$f":"LEFT(Template!H584,6)","v":""},{"$f":"LEFT(Template!I584,4)","v":""},{"$f":"LEFT(Template!J584,6)","v":""},{"$f":"LEFT(Template!K584,6)","v":""},{"$f":"LEFT(Template!L584,3)","v":""},{"$f":"IF(Template!M584=\"\",\"\",Template!M584)","v":""},{"$f":"IF(Template!N584=\"\",\"\",Template!N584)","v":""},null,null,null,null,null,{"$f":"IF(Template!O584=\"\",\"\",Template!O584)","v":""}]
[{"$f":"LEFT(Template!A585,4)","v":""},{"$f":"LEFT(Template!B585,5)","v":""},{"$f":"LEFT(Template!C585,7)","v":""},{"$f":"LEFT(Template!D585,6)","v":""},{"$f":"LEFT(Template!E585,2)","v":""},{"$f":"LEFT(Template!F585,3)","v":""},{"$f":"LEFT(Template!G585,10)","v":""},{"$f":"LEFT(Template!H585,6)","v":""},{"$f":"LEFT(Template!I585,4)","v":""},{"$f":"LEFT(Template!J585,6)","v":""},{"$f":"LEFT(Template!K585,6)","v":""},{"$f":"LEFT(Template!L585,3)","v":""},{"$f":"IF(Template!M585=\"\",\"\",Template!M585)","v":""},{"$f":"IF(Template!N585=\"\",\"\",Template!N585)","v":""},null,null,null,null,null,{"$f":"IF(Template!O585=\"\",\"\",Template!O585)","v":""}]
[{"$f":"LEFT(Template!A586,4)","v":""},{"$f":"LEFT(Template!B586,5)","v":""},{"$f":"LEFT(Template!C586,7)","v":""},{"$f":"LEFT(Template!D586,6)","v":""},{"$f":"LEFT(Template!E586,2)","v":""},{"$f":"LEFT(Template!F586,3)","v":""},{"$f":"LEFT(Template!G586,10)","v":""},{"$f":"LEFT(Template!H586,6)","v":""},{"$f":"LEFT(Template!I586,4)","v":""},{"$f":"LEFT(Template!J586,6)","v":""},{"$f":"LEFT(Template!K586,6)","v":""},{"$f":"LEFT(Template!L586,3)","v":""},{"$f":"IF(Template!M586=\"\",\"\",Template!M586)","v":""},{"$f":"IF(Template!N586=\"\",\"\",Template!N586)","v":""},null,null,null,null,null,{"$f":"IF(Template!O586=\"\",\"\",Template!O586)","v":""}]
[{"$f":"LEFT(Template!A587,4)","v":""},{"$f":"LEFT(Template!B587,5)","v":""},{"$f":"LEFT(Template!C587,7)","v":""},{"$f":"LEFT(Template!D587,6)","v":""},{"$f":"LEFT(Template!E587,2)","v":""},{"$f":"LEFT(Template!F587,3)","v":""},{"$f":"LEFT(Template!G587,10)","v":""},{"$f":"LEFT(Template!H587,6)","v":""},{"$f":"LEFT(Template!I587,4)","v":""},{"$f":"LEFT(Template!J587,6)","v":""},{"$f":"LEFT(Template!K587,6)","v":""},{"$f":"LEFT(Template!L587,3)","v":""},{"$f":"IF(Template!M587=\"\",\"\",Template!M587)","v":""},{"$f":"IF(Template!N587=\"\",\"\",Template!N587)","v":""},null,null,null,null,null,{"$f":"IF(Template!O587=\"\",\"\",Template!O587)","v":""}]
[{"$f":"LEFT(Template!A588,4)","v":""},{"$f":"LEFT(Template!B588,5)","v":""},{"$f":"LEFT(Template!C588,7)","v":""},{"$f":"LEFT(Template!D588,6)","v":""},{"$f":"LEFT(Template!E588,2)","v":""},{"$f":"LEFT(Template!F588,3)","v":""},{"$f":"LEFT(Template!G588,10)","v":""},{"$f":"LEFT(Template!H588,6)","v":""},{"$f":"LEFT(Template!I588,4)","v":""},{"$f":"LEFT(Template!J588,6)","v":""},{"$f":"LEFT(Template!K588,6)","v":""},{"$f":"LEFT(Template!L588,3)","v":""},{"$f":"IF(Template!M588=\"\",\"\",Template!M588)","v":""},{"$f":"IF(Template!N588=\"\",\"\",Template!N588)","v":""},null,null,null,null,null,{"$f":"IF(Template!O588=\"\",\"\",Template!O588)","v":""}]
[{"$f":"LEFT(Template!A589,4)","v":""},{"$f":"LEFT(Template!B589,5)","v":""},{"$f":"LEFT(Template!C589,7)","v":""},{"$f":"LEFT(Template!D589,6)","v":""},{"$f":"LEFT(Template!E589,2)","v":""},{"$f":"LEFT(Template!F589,3)","v":""},{"$f":"LEFT(Template!G589,10)","v":""},{"$f":"LEFT(Template!H589,6)","v":""},{"$f":"LEFT(Template!I589,4)","v":""},{"$f":"LEFT(Template!J589,6)","v":""},{"$f":"LEFT(Template!K589,6)","v":""},{"$f":"LEFT(Template!L589,3)","v":""},{"$f":"IF(Template!M589=\"\",\"\",Template!M589)","v":""},{"$f":"IF(Template!N589=\"\",\"\",Template!N589)","v":""},null,null,null,null,null,{"$f":"IF(Template!O589=\"\",\"\",Template!O589)","v":""}]
[{"$f":"LEFT(Template!A590,4)","v":""},{"$f":"LEFT(Template!B590,5)","v":""},{"$f":"LEFT(Template!C590,7)","v":""},{"$f":"LEFT(Template!D590,6)","v":""},{"$f":"LEFT(Template!E590,2)","v":""},{"$f":"LEFT(Template!F590,3)","v":""},{"$f":"LEFT(Template!G590,10)","v":""},{"$f":"LEFT(Template!H590,6)","v":""},{"$f":"LEFT(Template!I590,4)","v":""},{"$f":"LEFT(Template!J590,6)","v":""},{"$f":"LEFT(Template!K590,6)","v":""},{"$f":"LEFT(Template!L590,3)","v":""},{"$f":"IF(Template!M590=\"\",\"\",Template!M590)","v":""},{"$f":"IF(Template!N590=\"\",\"\",Template!N590)","v":""},null,null,null,null,null,{"$f":"IF(Template!O590=\"\",\"\",Template!O590)","v":""}]
[{"$f":"LEFT(Template!A591,4)","v":""},{"$f":"LEFT(Template!B591,5)","v":""},{"$f":"LEFT(Template!C591,7)","v":""},{"$f":"LEFT(Template!D591,6)","v":""},{"$f":"LEFT(Template!E591,2)","v":""},{"$f":"LEFT(Template!F591,3)","v":""},{"$f":"LEFT(Template!G591,10)","v":""},{"$f":"LEFT(Template!H591,6)","v":""},{"$f":"LEFT(Template!I591,4)","v":""},{"$f":"LEFT(Template!J591,6)","v":""},{"$f":"LEFT(Template!K591,6)","v":""},{"$f":"LEFT(Template!L591,3)","v":""},{"$f":"IF(Template!M591=\"\",\"\",Template!M591)","v":""},{"$f":"IF(Template!N591=\"\",\"\",Template!N591)","v":""},null,null,null,null,null,{"$f":"IF(Template!O591=\"\",\"\",Template!O591)","v":""}]
[{"$f":"LEFT(Template!A592,4)","v":""},{"$f":"LEFT(Template!B592,5)","v":""},{"$f":"LEFT(Template!C592,7)","v":""},{"$f":"LEFT(Template!D592,6)","v":""},{"$f":"LEFT(Template!E592,2)","v":""},{"$f":"LEFT(Template!F592,3)","v":""},{"$f":"LEFT(Template!G592,10)","v":""},{"$f":"LEFT(Template!H592,6)","v":""},{"$f":"LEFT(Template!I592,4)","v":""},{"$f":"LEFT(Template!J592,6)","v":""},{"$f":"LEFT(Template!K592,6)","v":""},{"$f":"LEFT(Template!L592,3)","v":""},{"$f":"IF(Template!M592=\"\",\"\",Template!M592)","v":""},{"$f":"IF(Template!N592=\"\",\"\",Template!N592)","v":""},null,null,null,null,null,{"$f":"IF(Template!O592=\"\",\"\",Template!O592)","v":""}]
[{"$f":"LEFT(Template!A593,4)","v":""},{"$f":"LEFT(Template!B593,5)","v":""},{"$f":"LEFT(Template!C593,7)","v":""},{"$f":"LEFT(Template!D593,6)","v":""},{"$f":"LEFT(Template!E593,2)","v":""},{"$f":"LEFT(Template!F593,3)","v":""},{"$f":"LEFT(Template!G593,10)","v":""},{"$f":"LEFT(Template!H593,6)","v":""},{"$f":"LEFT(Template!I593,4)","v":""},{"$f":"LEFT(Template!J593,6)","v":""},{"$f":"LEFT(Template!K593,6)","v":""},{"$f":"LEFT(Template!L593,3)","v":""},{"$f":"IF(Template!M593=\"\",\"\",Template!M593)","v":""},{"$f":"IF(Template!N593=\"\",\"\",Template!N593)","v":""},null,null,null,null,null,{"$f":"IF(Template!O593=\"\",\"\",Template!O593)","v":""}]
[{"$f":"LEFT(Template!A594,4)","v":""},{"$f":"LEFT(Template!B594,5)","v":""},{"$f":"LEFT(Template!C594,7)","v":""},{"$f":"LEFT(Template!D594,6)","v":""},{"$f":"LEFT(Template!E594,2)","v":""},{"$f":"LEFT(Template!F594,3)","v":""},{"$f":"LEFT(Template!G594,10)","v":""},{"$f":"LEFT(Template!H594,6)","v":""},{"$f":"LEFT(Template!I594,4)","v":""},{"$f":"LEFT(Template!J594,6)","v":""},{"$f":"LEFT(Template!K594,6)","v":""},{"$f":"LEFT(Template!L594,3)","v":""},{"$f":"IF(Template!M594=\"\",\"\",Template!M594)","v":""},{"$f":"IF(Template!N594=\"\",\"\",Template!N594)","v":""},null,null,null,null,null,{"$f":"IF(Template!O594=\"\",\"\",Template!O594)","v":""}]
[{"$f":"LEFT(Template!A595,4)","v":""},{"$f":"LEFT(Template!B595,5)","v":""},{"$f":"LEFT(Template!C595,7)","v":""},{"$f":"LEFT(Template!D595,6)","v":""},{"$f":"LEFT(Template!E595,2)","v":""},{"$f":"LEFT(Template!F595,3)","v":""},{"$f":"LEFT(Template!G595,10)","v":""},{"$f":"LEFT(Template!H595,6)","v":""},{"$f":"LEFT(Template!I595,4)","v":""},{"$f":"LEFT(Template!J595,6)","v":""},{"$f":"LEFT(Template!K595,6)","v":""},{"$f":"LEFT(Template!L595,3)","v":""},{"$f":"IF(Template!M595=\"\",\"\",Template!M595)","v":""},{"$f":"IF(Template!N595=\"\",\"\",Template!N595)","v":""},null,null,null,null,null,{"$f":"IF(Template!O595=\"\",\"\",Template!O595)","v":""}]
[{"$f":"LEFT(Template!A596,4)","v":""},{"$f":"LEFT(Template!B596,5)","v":""},{"$f":"LEFT(Template!C596,7)","v":""},{"$f":"LEFT(Template!D596,6)","v":""},{"$f":"LEFT(Template!E596,2)","v":""},{"$f":"LEFT(Template!F596,3)","v":""},{"$f":"LEFT(Template!G596,10)","v":""},{"$f":"LEFT(Template!H596,6)","v":""},{"$f":"LEFT(Template!I596,4)","v":""},{"$f":"LEFT(Template!J596,6)","v":""},{"$f":"LEFT(Template!K596,6)","v":""},{"$f":"LEFT(Template!L596,3)","v":""},{"$f":"IF(Template!M596=\"\",\"\",Template!M596)","v":""},{"$f":"IF(Template!N596=\"\",\"\",Template!N596)","v":""},null,null,null,null,null,{"$f":"IF(Template!O596=\"\",\"\",Template!O596)","v":""}]
[{"$f":"LEFT(Template!A597,4)","v":""},{"$f":"LEFT(Template!B597,5)","v":""},{"$f":"LEFT(Template!C597,7)","v":""},{"$f":"LEFT(Template!D597,6)","v":""},{"$f":"LEFT(Template!E597,2)","v":""},{"$f":"LEFT(Template!F597,3)","v":""},{"$f":"LEFT(Template!G597,10)","v":""},{"$f":"LEFT(Template!H597,6)","v":""},{"$f":"LEFT(Template!I597,4)","v":""},{"$f":"LEFT(Template!J597,6)","v":""},{"$f":"LEFT(Template!K597,6)","v":""},{"$f":"LEFT(Template!L597,3)","v":""},{"$f":"IF(Template!M597=\"\",\"\",Template!M597)","v":""},{"$f":"IF(Template!N597=\"\",\"\",Template!N597)","v":""},null,null,null,null,null,{"$f":"IF(Template!O597=\"\",\"\",Template!O597)","v":""}]
[{"$f":"LEFT(Template!A598,4)","v":""},{"$f":"LEFT(Template!B598,5)","v":""},{"$f":"LEFT(Template!C598,7)","v":""},{"$f":"LEFT(Template!D598,6)","v":""},{"$f":"LEFT(Template!E598,2)","v":""},{"$f":"LEFT(Template!F598,3)","v":""},{"$f":"LEFT(Template!G598,10)","v":""},{"$f":"LEFT(Template!H598,6)","v":""},{"$f":"LEFT(Template!I598,4)","v":""},{"$f":"LEFT(Template!J598,6)","v":""},{"$f":"LEFT(Template!K598,6)","v":""},{"$f":"LEFT(Template!L598,3)","v":""},{"$f":"IF(Template!M598=\"\",\"\",Template!M598)","v":""},{"$f":"IF(Template!N598=\"\",\"\",Template!N598)","v":""},null,null,null,null,null,{"$f":"IF(Template!O598=\"\",\"\",Template!O598)","v":""}]
[{"$f":"LEFT(Template!A599,4)","v":""},{"$f":"LEFT(Template!B599,5)","v":""},{"$f":"LEFT(Template!C599,7)","v":""},{"$f":"LEFT(Template!D599,6)","v":""},{"$f":"LEFT(Template!E599,2)","v":""},{"$f":"LEFT(Template!F599,3)","v":""},{"$f":"LEFT(Template!G599,10)","v":""},{"$f":"LEFT(Template!H599,6)","v":""},{"$f":"LEFT(Template!I599,4)","v":""},{"$f":"LEFT(Template!J599,6)","v":""},{"$f":"LEFT(Template!K599,6)","v":""},{"$f":"LEFT(Template!L599,3)","v":""},{"$f":"IF(Template!M599=\"\",\"\",Template!M599)","v":""},{"$f":"IF(Template!N599=\"\",\"\",Template!N599)","v":""},null,null,null,null,null,{"$f":"IF(Template!O599=\"\",\"\",Template!O599)","v":""}]
[{"$f":"LEFT(Template!A600,4)","v":""},{"$f":"LEFT(Template!B600,5)","v":""},{"$f":"LEFT(Template!C600,7)","v":""},{"$f":"LEFT(Template!D600,6)","v":""},{"$f":"LEFT(Template!E600,2)","v":""},{"$f":"LEFT(Template!F600,3)","v":""},{"$f":"LEFT(Template!G600,10)","v":""},{"$f":"LEFT(Template!H600,6)","v":""},{"$f":"LEFT(Template!I600,4)","v":""},{"$f":"LEFT(Template!J600,6)","v":""},{"$f":"LEFT(Template!K600,6)","v":""},{"$f":"LEFT(Template!L600,3)","v":""},{"$f":"IF(Template!M600=\"\",\"\",Template!M600)","v":""},{"$f":"IF(Template!N600=\"\",\"\",Template!N600)","v":""},null,null,null,null,null,{"$f":"IF(Template!O600=\"\",\"\",Template!O600)","v":""}]
[{"$f":"LEFT(Template!A601,4)","v":""},{"$f":"LEFT(Template!B601,5)","v":""},{"$f":"LEFT(Template!C601,7)","v":""},{"$f":"LEFT(Template!D601,6)","v":""},{"$f":"LEFT(Template!E601,2)","v":""},{"$f":"LEFT(Template!F601,3)","v":""},{"$f":"LEFT(Template!G601,10)","v":""},{"$f":"LEFT(Template!H601,6)","v":""},{"$f":"LEFT(Template!I601,4)","v":""},{"$f":"LEFT(Template!J601,6)","v":""},{"$f":"LEFT(Template!K601,6)","v":""},{"$f":"LEFT(Template!L601,3)","v":""},{"$f":"IF(Template!M601=\"\",\"\",Template!M601)","v":""},{"$f":"IF(Template!N601=\"\",\"\",Template!N601)","v":""},null,null,null,null,null,{"$f":"IF(Template!O601=\"\",\"\",Template!O601)","v":""}]
[{"$f":"LEFT(Template!A602,4)","v":""},{"$f":"LEFT(Template!B602,5)","v":""},{"$f":"LEFT(Template!C602,7)","v":""},{"$f":"LEFT(Template!D602,6)","v":""},{"$f":"LEFT(Template!E602,2)","v":""},{"$f":"LEFT(Template!F602,3)","v":""},{"$f":"LEFT(Template!G602,10)","v":""},{"$f":"LEFT(Template!H602,6)","v":""},{"$f":"LEFT(Template!I602,4)","v":""},{"$f":"LEFT(Template!J602,6)","v":""},{"$f":"LEFT(Template!K602,6)","v":""},{"$f":"LEFT(Template!L602,3)","v":""},{"$f":"IF(Template!M602=\"\",\"\",Template!M602)","v":""},{"$f":"IF(Template!N602=\"\",\"\",Template!N602)","v":""},null,null,null,null,null,{"$f":"IF(Template!O602=\"\",\"\",Template!O602)","v":""}]
[{"$f":"LEFT(Template!A603,4)","v":""},{"$f":"LEFT(Template!B603,5)","v":""},{"$f":"LEFT(Template!C603,7)","v":""},{"$f":"LEFT(Template!D603,6)","v":""},{"$f":"LEFT(Template!E603,2)","v":""},{"$f":"LEFT(Template!F603,3)","v":""},{"$f":"LEFT(Template!G603,10)","v":""},{"$f":"LEFT(Template!H603,6)","v":""},{"$f":"LEFT(Template!I603,4)","v":""},{"$f":"LEFT(Template!J603,6)","v":""},{"$f":"LEFT(Template!K603,6)","v":""},{"$f":"LEFT(Template!L603,3)","v":""},{"$f":"IF(Template!M603=\"\",\"\",Template!M603)","v":""},{"$f":"IF(Template!N603=\"\",\"\",Template!N603)","v":""},null,null,null,null,null,{"$f":"IF(Template!O603=\"\",\"\",Template!O603)","v":""}]
[{"$f":"LEFT(Template!A604,4)","v":""},{"$f":"LEFT(Template!B604,5)","v":""},{"$f":"LEFT(Template!C604,7)","v":""},{"$f":"LEFT(Template!D604,6)","v":""},{"$f":"LEFT(Template!E604,2)","v":""},{"$f":"LEFT(Template!F604,3)","v":""},{"$f":"LEFT(Template!G604,10)","v":""},{"$f":"LEFT(Template!H604,6)","v":""},{"$f":"LEFT(Template!I604,4)","v":""},{"$f":"LEFT(Template!J604,6)","v":""},{"$f":"LEFT(Template!K604,6)","v":""},{"$f":"LEFT(Template!L604,3)","v":""},{"$f":"IF(Template!M604=\"\",\"\",Template!M604)","v":""},{"$f":"IF(Template!N604=\"\",\"\",Template!N604)","v":""},null,null,null,null,null,{"$f":"IF(Template!O604=\"\",\"\",Template!O604)","v":""}]
[{"$f":"LEFT(Template!A605,4)","v":""},{"$f":"LEFT(Template!B605,5)","v":""},{"$f":"LEFT(Template!C605,7)","v":""},{"$f":"LEFT(Template!D605,6)","v":""},{"$f":"LEFT(Template!E605,2)","v":""},{"$f":"LEFT(Template!F605,3)","v":""},{"$f":"LEFT(Template!G605,10)","v":""},{"$f":"LEFT(Template!H605,6)","v":""},{"$f":"LEFT(Template!I605,4)","v":""},{"$f":"LEFT(Template!J605,6)","v":""},{"$f":"LEFT(Template!K605,6)","v":""},{"$f":"LEFT(Template!L605,3)","v":""},{"$f":"IF(Template!M605=\"\",\"\",Template!M605)","v":""},{"$f":"IF(Template!N605=\"\",\"\",Template!N605)","v":""},null,null,null,null,null,{"$f":"IF(Template!O605=\"\",\"\",Template!O605)","v":""}]
[{"$f":"LEFT(Template!A606,4)","v":""},{"$f":"LEFT(Template!B606,5)","v":""},{"$f":"LEFT(Template!C606,7)","v":""},{"$f":"LEFT(Template!D606,6)","v":""},{"$f":"LEFT(Template!E606,2)","v":""},{"$f":"LEFT(Template!F606,3)","v":""},{"$f":"LEFT(Template!G606,10)","v":""},{"$f":"LEFT(Template!H606,6)","v":""},{"$f":"LEFT(Template!I606,4)","v":""},{"$f":"LEFT(Template!J606,6)","v":""},{"$f":"LEFT(Template!K606,6)","v":""},{"$f":"LEFT(Template!L606,3)","v":""},{"$f":"IF(Template!M606=\"\",\"\",Template!M606)","v":""},{"$f":"IF(Template!N606=\"\",\"\",Template!N606)","v":""},null,null,null,null,null,{"$f":"IF(Template!O606=\"\",\"\",Template!O606)","v":""}]
[{"$f":"LEFT(Template!A607,4)","v":""},{"$f":"LEFT(Template!B607,5)","v":""},{"$f":"LEFT(Template!C607,7)","v":""},{"$f":"LEFT(Template!D607,6)","v":""},{"$f":"LEFT(Template!E607,2)","v":""},{"$f":"LEFT(Template!F607,3)","v":""},{"$f":"LEFT(Template!G607,10)","v":""},{"$f":"LEFT(Template!H607,6)","v":""},{"$f":"LEFT(Template!I607,4)","v":""},{"$f":"LEFT(Template!J607,6)","v":""},{"$f":"LEFT(Template!K607,6)","v":""},{"$f":"LEFT(Template!L607,3)","v":""},{"$f":"IF(Template!M607=\"\",\"\",Template!M607)","v":""},{"$f":"IF(Template!N607=\"\",\"\",Template!N607)","v":""},null,null,null,null,null,{"$f":"IF(Template!O607=\"\",\"\",Template!O607)","v":""}]
[{"$f":"LEFT(Template!A608,4)","v":""},{"$f":"LEFT(Template!B608,5)","v":""},{"$f":"LEFT(Template!C608,7)","v":""},{"$f":"LEFT(Template!D608,6)","v":""},{"$f":"LEFT(Template!E608,2)","v":""},{"$f":"LEFT(Template!F608,3)","v":""},{"$f":"LEFT(Template!G608,10)","v":""},{"$f":"LEFT(Template!H608,6)","v":""},{"$f":"LEFT(Template!I608,4)","v":""},{"$f":"LEFT(Template!J608,6)","v":""},{"$f":"LEFT(Template!K608,6)","v":""},{"$f":"LEFT(Template!L608,3)","v":""},{"$f":"IF(Template!M608=\"\",\"\",Template!M608)","v":""},{"$f":"IF(Template!N608=\"\",\"\",Template!N608)","v":""},null,null,null,null,null,{"$f":"IF(Template!O608=\"\",\"\",Template!O608)","v":""}]
[{"$f":"LEFT(Template!A609,4)","v":""},{"$f":"LEFT(Template!B609,5)","v":""},{"$f":"LEFT(Template!C609,7)","v":""},{"$f":"LEFT(Template!D609,6)","v":""},{"$f":"LEFT(Template!E609,2)","v":""},{"$f":"LEFT(Template!F609,3)","v":""},{"$f":"LEFT(Template!G609,10)","v":""},{"$f":"LEFT(Template!H609,6)","v":""},{"$f":"LEFT(Template!I609,4)","v":""},{"$f":"LEFT(Template!J609,6)","v":""},{"$f":"LEFT(Template!K609,6)","v":""},{"$f":"LEFT(Template!L609,3)","v":""},{"$f":"IF(Template!M609=\"\",\"\",Template!M609)","v":""},{"$f":"IF(Template!N609=\"\",\"\",Template!N609)","v":""},null,null,null,null,null,{"$f":"IF(Template!O609=\"\",\"\",Template!O609)","v":""}]
[{"$f":"LEFT(Template!A610,4)","v":""},{"$f":"LEFT(Template!B610,5)","v":""},{"$f":"LEFT(Template!C610,7)","v":""},{"$f":"LEFT(Template!D610,6)","v":""},{"$f":"LEFT(Template!E610,2)","v":""},{"$f":"LEFT(Template!F610,3)","v":""},{"$f":"LEFT(Template!G610,10)","v":""},{"$f":"LEFT(Template!H610,6)","v":""},{"$f":"LEFT(Template!I610,4)","v":""},{"$f":"LEFT(Template!J610,6)","v":""},{"$f":"LEFT(Template!K610,6)","v":""},{"$f":"LEFT(Template!L610,3)","v":""},{"$f":"IF(Template!M610=\"\",\"\",Template!M610)","v":""},{"$f":"IF(Template!N610=\"\",\"\",Template!N610)","v":""},null,null,null,null,null,{"$f":"IF(Template!O610=\"\",\"\",Template!O610)","v":""}]
[{"$f":"LEFT(Template!A611,4)","v":""},{"$f":"LEFT(Template!B611,5)","v":""},{"$f":"LEFT(Template!C611,7)","v":""},{"$f":"LEFT(Template!D611,6)","v":""},{"$f":"LEFT(Template!E611,2)","v":""},{"$f":"LEFT(Template!F611,3)","v":""},{"$f":"LEFT(Template!G611,10)","v":""},{"$f":"LEFT(Template!H611,6)","v":""},{"$f":"LEFT(Template!I611,4)","v":""},{"$f":"LEFT(Template!J611,6)","v":""},{"$f":"LEFT(Template!K611,6)","v":""},{"$f":"LEFT(Template!L611,3)","v":""},{"$f":"IF(Template!M611=\"\",\"\",Template!M611)","v":""},{"$f":"IF(Template!N611=\"\",\"\",Template!N611)","v":""},null,null,null,null,null,{"$f":"IF(Template!O611=\"\",\"\",Template!O611)","v":""}]
[{"$f":"LEFT(Template!A612,4)","v":""},{"$f":"LEFT(Template!B612,5)","v":""},{"$f":"LEFT(Template!C612,7)","v":""},{"$f":"LEFT(Template!D612,6)","v":""},{"$f":"LEFT(Template!E612,2)","v":""},{"$f":"LEFT(Template!F612,3)","v":""},{"$f":"LEFT(Template!G612,10)","v":""},{"$f":"LEFT(Template!H612,6)","v":""},{"$f":"LEFT(Template!I612,4)","v":""},{"$f":"LEFT(Template!J612,6)","v":""},{"$f":"LEFT(Template!K612,6)","v":""},{"$f":"LEFT(Template!L612,3)","v":""},{"$f":"IF(Template!M612=\"\",\"\",Template!M612)","v":""},{"$f":"IF(Template!N612=\"\",\"\",Template!N612)","v":""},null,null,null,null,null,{"$f":"IF(Template!O612=\"\",\"\",Template!O612)","v":""}]
[{"$f":"LEFT(Template!A613,4)","v":""},{"$f":"LEFT(Template!B613,5)","v":""},{"$f":"LEFT(Template!C613,7)","v":""},{"$f":"LEFT(Template!D613,6)","v":""},{"$f":"LEFT(Template!E613,2)","v":""},{"$f":"LEFT(Template!F613,3)","v":""},{"$f":"LEFT(Template!G613,10)","v":""},{"$f":"LEFT(Template!H613,6)","v":""},{"$f":"LEFT(Template!I613,4)","v":""},{"$f":"LEFT(Template!J613,6)","v":""},{"$f":"LEFT(Template!K613,6)","v":""},{"$f":"LEFT(Template!L613,3)","v":""},{"$f":"IF(Template!M613=\"\",\"\",Template!M613)","v":""},{"$f":"IF(Template!N613=\"\",\"\",Template!N613)","v":""},null,null,null,null,null,{"$f":"IF(Template!O613=\"\",\"\",Template!O613)","v":""}]
[{"$f":"LEFT(Template!A614,4)","v":""},{"$f":"LEFT(Template!B614,5)","v":""},{"$f":"LEFT(Template!C614,7)","v":""},{"$f":"LEFT(Template!D614,6)","v":""},{"$f":"LEFT(Template!E614,2)","v":""},{"$f":"LEFT(Template!F614,3)","v":""},{"$f":"LEFT(Template!G614,10)","v":""},{"$f":"LEFT(Template!H614,6)","v":""},{"$f":"LEFT(Template!I614,4)","v":""},{"$f":"LEFT(Template!J614,6)","v":""},{"$f":"LEFT(Template!K614,6)","v":""},{"$f":"LEFT(Template!L614,3)","v":""},{"$f":"IF(Template!M614=\"\",\"\",Template!M614)","v":""},{"$f":"IF(Template!N614=\"\",\"\",Template!N614)","v":""},null,null,null,null,null,{"$f":"IF(Template!O614=\"\",\"\",Template!O614)","v":""}]
[{"$f":"LEFT(Template!A615,4)","v":""},{"$f":"LEFT(Template!B615,5)","v":""},{"$f":"LEFT(Template!C615,7)","v":""},{"$f":"LEFT(Template!D615,6)","v":""},{"$f":"LEFT(Template!E615,2)","v":""},{"$f":"LEFT(Template!F615,3)","v":""},{"$f":"LEFT(Template!G615,10)","v":""},{"$f":"LEFT(Template!H615,6)","v":""},{"$f":"LEFT(Template!I615,4)","v":""},{"$f":"LEFT(Template!J615,6)","v":""},{"$f":"LEFT(Template!K615,6)","v":""},{"$f":"LEFT(Template!L615,3)","v":""},{"$f":"IF(Template!M615=\"\",\"\",Template!M615)","v":""},{"$f":"IF(Template!N615=\"\",\"\",Template!N615)","v":""},null,null,null,null,null,{"$f":"IF(Template!O615=\"\",\"\",Template!O615)","v":""}]
[{"$f":"LEFT(Template!A616,4)","v":""},{"$f":"LEFT(Template!B616,5)","v":""},{"$f":"LEFT(Template!C616,7)","v":""},{"$f":"LEFT(Template!D616,6)","v":""},{"$f":"LEFT(Template!E616,2)","v":""},{"$f":"LEFT(Template!F616,3)","v":""},{"$f":"LEFT(Template!G616,10)","v":""},{"$f":"LEFT(Template!H616,6)","v":""},{"$f":"LEFT(Template!I616,4)","v":""},{"$f":"LEFT(Template!J616,6)","v":""},{"$f":"LEFT(Template!K616,6)","v":""},{"$f":"LEFT(Template!L616,3)","v":""},{"$f":"IF(Template!M616=\"\",\"\",Template!M616)","v":""},{"$f":"IF(Template!N616=\"\",\"\",Template!N616)","v":""},null,null,null,null,null,{"$f":"IF(Template!O616=\"\",\"\",Template!O616)","v":""}]
[{"$f":"LEFT(Template!A617,4)","v":""},{"$f":"LEFT(Template!B617,5)","v":""},{"$f":"LEFT(Template!C617,7)","v":""},{"$f":"LEFT(Template!D617,6)","v":""},{"$f":"LEFT(Template!E617,2)","v":""},{"$f":"LEFT(Template!F617,3)","v":""},{"$f":"LEFT(Template!G617,10)","v":""},{"$f":"LEFT(Template!H617,6)","v":""},{"$f":"LEFT(Template!I617,4)","v":""},{"$f":"LEFT(Template!J617,6)","v":""},{"$f":"LEFT(Template!K617,6)","v":""},{"$f":"LEFT(Template!L617,3)","v":""},{"$f":"IF(Template!M617=\"\",\"\",Template!M617)","v":""},{"$f":"IF(Template!N617=\"\",\"\",Template!N617)","v":""},null,null,null,null,null,{"$f":"IF(Template!O617=\"\",\"\",Template!O617)","v":""}]
[{"$f":"LEFT(Template!A618,4)","v":""},{"$f":"LEFT(Template!B618,5)","v":""},{"$f":"LEFT(Template!C618,7)","v":""},{"$f":"LEFT(Template!D618,6)","v":""},{"$f":"LEFT(Template!E618,2)","v":""},{"$f":"LEFT(Template!F618,3)","v":""},{"$f":"LEFT(Template!G618,10)","v":""},{"$f":"LEFT(Template!H618,6)","v":""},{"$f":"LEFT(Template!I618,4)","v":""},{"$f":"LEFT(Template!J618,6)","v":""},{"$f":"LEFT(Template!K618,6)","v":""},{"$f":"LEFT(Template!L618,3)","v":""},{"$f":"IF(Template!M618=\"\",\"\",Template!M618)","v":""},{"$f":"IF(Template!N618=\"\",\"\",Template!N618)","v":""},null,null,null,null,null,{"$f":"IF(Template!O618=\"\",\"\",Template!O618)","v":""}]
[{"$f":"LEFT(Template!A619,4)","v":""},{"$f":"LEFT(Template!B619,5)","v":""},{"$f":"LEFT(Template!C619,7)","v":""},{"$f":"LEFT(Template!D619,6)","v":""},{"$f":"LEFT(Template!E619,2)","v":""},{"$f":"LEFT(Template!F619,3)","v":""},{"$f":"LEFT(Template!G619,10)","v":""},{"$f":"LEFT(Template!H619,6)","v":""},{"$f":"LEFT(Template!I619,4)","v":""},{"$f":"LEFT(Template!J619,6)","v":""},{"$f":"LEFT(Template!K619,6)","v":""},{"$f":"LEFT(Template!L619,3)","v":""},{"$f":"IF(Template!M619=\"\",\"\",Template!M619)","v":""},{"$f":"IF(Template!N619=\"\",\"\",Template!N619)","v":""},null,null,null,null,null,{"$f":"IF(Template!O619=\"\",\"\",Template!O619)","v":""}]
[{"$f":"LEFT(Template!A620,4)","v":""},{"$f":"LEFT(Template!B620,5)","v":""},{"$f":"LEFT(Template!C620,7)","v":""},{"$f":"LEFT(Template!D620,6)","v":""},{"$f":"LEFT(Template!E620,2)","v":""},{"$f":"LEFT(Template!F620,3)","v":""},{"$f":"LEFT(Template!G620,10)","v":""},{"$f":"LEFT(Template!H620,6)","v":""},{"$f":"LEFT(Template!I620,4)","v":""},{"$f":"LEFT(Template!J620,6)","v":""},{"$f":"LEFT(Template!K620,6)","v":""},{"$f":"LEFT(Template!L620,3)","v":""},{"$f":"IF(Template!M620=\"\",\"\",Template!M620)","v":""},{"$f":"IF(Template!N620=\"\",\"\",Template!N620)","v":""},null,null,null,null,null,{"$f":"IF(Template!O620=\"\",\"\",Template!O620)","v":""}]
[{"$f":"LEFT(Template!A621,4)","v":""},{"$f":"LEFT(Template!B621,5)","v":""},{"$f":"LEFT(Template!C621,7)","v":""},{"$f":"LEFT(Template!D621,6)","v":""},{"$f":"LEFT(Template!E621,2)","v":""},{"$f":"LEFT(Template!F621,3)","v":""},{"$f":"LEFT(Template!G621,10)","v":""},{"$f":"LEFT(Template!H621,6)","v":""},{"$f":"LEFT(Template!I621,4)","v":""},{"$f":"LEFT(Template!J621,6)","v":""},{"$f":"LEFT(Template!K621,6)","v":""},{"$f":"LEFT(Template!L621,3)","v":""},{"$f":"IF(Template!M621=\"\",\"\",Template!M621)","v":""},{"$f":"IF(Template!N621=\"\",\"\",Template!N621)","v":""},null,null,null,null,null,{"$f":"IF(Template!O621=\"\",\"\",Template!O621)","v":""}]
[{"$f":"LEFT(Template!A622,4)","v":""},{"$f":"LEFT(Template!B622,5)","v":""},{"$f":"LEFT(Template!C622,7)","v":""},{"$f":"LEFT(Template!D622,6)","v":""},{"$f":"LEFT(Template!E622,2)","v":""},{"$f":"LEFT(Template!F622,3)","v":""},{"$f":"LEFT(Template!G622,10)","v":""},{"$f":"LEFT(Template!H622,6)","v":""},{"$f":"LEFT(Template!I622,4)","v":""},{"$f":"LEFT(Template!J622,6)","v":""},{"$f":"LEFT(Template!K622,6)","v":""},{"$f":"LEFT(Template!L622,3)","v":""},{"$f":"IF(Template!M622=\"\",\"\",Template!M622)","v":""},{"$f":"IF(Template!N622=\"\",\"\",Template!N622)","v":""},null,null,null,null,null,{"$f":"IF(Template!O622=\"\",\"\",Template!O622)","v":""}]
[{"$f":"LEFT(Template!A623,4)","v":""},{"$f":"LEFT(Template!B623,5)","v":""},{"$f":"LEFT(Template!C623,7)","v":""},{"$f":"LEFT(Template!D623,6)","v":""},{"$f":"LEFT(Template!E623,2)","v":""},{"$f":"LEFT(Template!F623,3)","v":""},{"$f":"LEFT(Template!G623,10)","v":""},{"$f":"LEFT(Template!H623,6)","v":""},{"$f":"LEFT(Template!I623,4)","v":""},{"$f":"LEFT(Template!J623,6)","v":""},{"$f":"LEFT(Template!K623,6)","v":""},{"$f":"LEFT(Template!L623,3)","v":""},{"$f":"IF(Template!M623=\"\",\"\",Template!M623)","v":""},{"$f":"IF(Template!N623=\"\",\"\",Template!N623)","v":""},null,null,null,null,null,{"$f":"IF(Template!O623=\"\",\"\",Template!O623)","v":""}]
[{"$f":"LEFT(Template!A624,4)","v":""},{"$f":"LEFT(Template!B624,5)","v":""},{"$f":"LEFT(Template!C624,7)","v":""},{"$f":"LEFT(Template!D624,6)","v":""},{"$f":"LEFT(Template!E624,2)","v":""},{"$f":"LEFT(Template!F624,3)","v":""},{"$f":"LEFT(Template!G624,10)","v":""},{"$f":"LEFT(Template!H624,6)","v":""},{"$f":"LEFT(Template!I624,4)","v":""},{"$f":"LEFT(Template!J624,6)","v":""},{"$f":"LEFT(Template!K624,6)","v":""},{"$f":"LEFT(Template!L624,3)","v":""},{"$f":"IF(Template!M624=\"\",\"\",Template!M624)","v":""},{"$f":"IF(Template!N624=\"\",\"\",Template!N624)","v":""},null,null,null,null,null,{"$f":"IF(Template!O624=\"\",\"\",Template!O624)","v":""}]
[{"$f":"LEFT(Template!A625,4)","v":""},{"$f":"LEFT(Template!B625,5)","v":""},{"$f":"LEFT(Template!C625,7)","v":""},{"$f":"LEFT(Template!D625,6)","v":""},{"$f":"LEFT(Template!E625,2)","v":""},{"$f":"LEFT(Template!F625,3)","v":""},{"$f":"LEFT(Template!G625,10)","v":""},{"$f":"LEFT(Template!H625,6)","v":""},{"$f":"LEFT(Template!I625,4)","v":""},{"$f":"LEFT(Template!J625,6)","v":""},{"$f":"LEFT(Template!K625,6)","v":""},{"$f":"LEFT(Template!L625,3)","v":""},{"$f":"IF(Template!M625=\"\",\"\",Template!M625)","v":""},{"$f":"IF(Template!N625=\"\",\"\",Template!N625)","v":""},null,null,null,null,null,{"$f":"IF(Template!O625=\"\",\"\",Template!O625)","v":""}]
[{"$f":"LEFT(Template!A626,4)","v":""},{"$f":"LEFT(Template!B626,5)","v":""},{"$f":"LEFT(Template!C626,7)","v":""},{"$f":"LEFT(Template!D626,6)","v":""},{"$f":"LEFT(Template!E626,2)","v":""},{"$f":"LEFT(Template!F626,3)","v":""},{"$f":"LEFT(Template!G626,10)","v":""},{"$f":"LEFT(Template!H626,6)","v":""},{"$f":"LEFT(Template!I626,4)","v":""},{"$f":"LEFT(Template!J626,6)","v":""},{"$f":"LEFT(Template!K626,6)","v":""},{"$f":"LEFT(Template!L626,3)","v":""},{"$f":"IF(Template!M626=\"\",\"\",Template!M626)","v":""},{"$f":"IF(Template!N626=\"\",\"\",Template!N626)","v":""},null,null,null,null,null,{"$f":"IF(Template!O626=\"\",\"\",Template!O626)","v":""}]
[{"$f":"LEFT(Template!A627,4)","v":""},{"$f":"LEFT(Template!B627,5)","v":""},{"$f":"LEFT(Template!C627,7)","v":""},{"$f":"LEFT(Template!D627,6)","v":""},{"$f":"LEFT(Template!E627,2)","v":""},{"$f":"LEFT(Template!F627,3)","v":""},{"$f":"LEFT(Template!G627,10)","v":""},{"$f":"LEFT(Template!H627,6)","v":""},{"$f":"LEFT(Template!I627,4)","v":""},{"$f":"LEFT(Template!J627,6)","v":""},{"$f":"LEFT(Template!K627,6)","v":""},{"$f":"LEFT(Template!L627,3)","v":""},{"$f":"IF(Template!M627=\"\",\"\",Template!M627)","v":""},{"$f":"IF(Template!N627=\"\",\"\",Template!N627)","v":""},null,null,null,null,null,{"$f":"IF(Template!O627=\"\",\"\",Template!O627)","v":""}]
[{"$f":"LEFT(Template!A628,4)","v":""},{"$f":"LEFT(Template!B628,5)","v":""},{"$f":"LEFT(Template!C628,7)","v":""},{"$f":"LEFT(Template!D628,6)","v":""},{"$f":"LEFT(Template!E628,2)","v":""},{"$f":"LEFT(Template!F628,3)","v":""},{"$f":"LEFT(Template!G628,10)","v":""},{"$f":"LEFT(Template!H628,6)","v":""},{"$f":"LEFT(Template!I628,4)","v":""},{"$f":"LEFT(Template!J628,6)","v":""},{"$f":"LEFT(Template!K628,6)","v":""},{"$f":"LEFT(Template!L628,3)","v":""},{"$f":"IF(Template!M628=\"\",\"\",Template!M628)","v":""},{"$f":"IF(Template!N628=\"\",\"\",Template!N628)","v":""},null,null,null,null,null,{"$f":"IF(Template!O628=\"\",\"\",Template!O628)","v":""}]
[{"$f":"LEFT(Template!A629,4)","v":""},{"$f":"LEFT(Template!B629,5)","v":""},{"$f":"LEFT(Template!C629,7)","v":""},{"$f":"LEFT(Template!D629,6)","v":""},{"$f":"LEFT(Template!E629,2)","v":""},{"$f":"LEFT(Template!F629,3)","v":""},{"$f":"LEFT(Template!G629,10)","v":""},{"$f":"LEFT(Template!H629,6)","v":""},{"$f":"LEFT(Template!I629,4)","v":""},{"$f":"LEFT(Template!J629,6)","v":""},{"$f":"LEFT(Template!K629,6)","v":""},{"$f":"LEFT(Template!L629,3)","v":""},{"$f":"IF(Template!M629=\"\",\"\",Template!M629)","v":""},{"$f":"IF(Template!N629=\"\",\"\",Template!N629)","v":""},null,null,null,null,null,{"$f":"IF(Template!O629=\"\",\"\",Template!O629)","v":""}]
[{"$f":"LEFT(Template!A630,4)","v":""},{"$f":"LEFT(Template!B630,5)","v":""},{"$f":"LEFT(Template!C630,7)","v":""},{"$f":"LEFT(Template!D630,6)","v":""},{"$f":"LEFT(Template!E630,2)","v":""},{"$f":"LEFT(Template!F630,3)","v":""},{"$f":"LEFT(Template!G630,10)","v":""},{"$f":"LEFT(Template!H630,6)","v":""},{"$f":"LEFT(Template!I630,4)","v":""},{"$f":"LEFT(Template!J630,6)","v":""},{"$f":"LEFT(Template!K630,6)","v":""},{"$f":"LEFT(Template!L630,3)","v":""},{"$f":"IF(Template!M630=\"\",\"\",Template!M630)","v":""},{"$f":"IF(Template!N630=\"\",\"\",Template!N630)","v":""},null,null,null,null,null,{"$f":"IF(Template!O630=\"\",\"\",Template!O630)","v":""}]
[{"$f":"LEFT(Template!A631,4)","v":""},{"$f":"LEFT(Template!B631,5)","v":""},{"$f":"LEFT(Template!C631,7)","v":""},{"$f":"LEFT(Template!D631,6)","v":""},{"$f":"LEFT(Template!E631,2)","v":""},{"$f":"LEFT(Template!F631,3)","v":""},{"$f":"LEFT(Template!G631,10)","v":""},{"$f":"LEFT(Template!H631,6)","v":""},{"$f":"LEFT(Template!I631,4)","v":""},{"$f":"LEFT(Template!J631,6)","v":""},{"$f":"LEFT(Template!K631,6)","v":""},{"$f":"LEFT(Template!L631,3)","v":""},{"$f":"IF(Template!M631=\"\",\"\",Template!M631)","v":""},{"$f":"IF(Template!N631=\"\",\"\",Template!N631)","v":""},null,null,null,null,null,{"$f":"IF(Template!O631=\"\",\"\",Template!O631)","v":""}]
[{"$f":"LEFT(Template!A632,4)","v":""},{"$f":"LEFT(Template!B632,5)","v":""},{"$f":"LEFT(Template!C632,7)","v":""},{"$f":"LEFT(Template!D632,6)","v":""},{"$f":"LEFT(Template!E632,2)","v":""},{"$f":"LEFT(Template!F632,3)","v":""},{"$f":"LEFT(Template!G632,10)","v":""},{"$f":"LEFT(Template!H632,6)","v":""},{"$f":"LEFT(Template!I632,4)","v":""},{"$f":"LEFT(Template!J632,6)","v":""},{"$f":"LEFT(Template!K632,6)","v":""},{"$f":"LEFT(Template!L632,3)","v":""},{"$f":"IF(Template!M632=\"\",\"\",Template!M632)","v":""},{"$f":"IF(Template!N632=\"\",\"\",Template!N632)","v":""},null,null,null,null,null,{"$f":"IF(Template!O632=\"\",\"\",Template!O632)","v":""}]
[{"$f":"LEFT(Template!A633,4)","v":""},{"$f":"LEFT(Template!B633,5)","v":""},{"$f":"LEFT(Template!C633,7)","v":""},{"$f":"LEFT(Template!D633,6)","v":""},{"$f":"LEFT(Template!E633,2)","v":""},{"$f":"LEFT(Template!F633,3)","v":""},{"$f":"LEFT(Template!G633,10)","v":""},{"$f":"LEFT(Template!H633,6)","v":""},{"$f":"LEFT(Template!I633,4)","v":""},{"$f":"LEFT(Template!J633,6)","v":""},{"$f":"LEFT(Template!K633,6)","v":""},{"$f":"LEFT(Template!L633,3)","v":""},{"$f":"IF(Template!M633=\"\",\"\",Template!M633)","v":""},{"$f":"IF(Template!N633=\"\",\"\",Template!N633)","v":""},null,null,null,null,null,{"$f":"IF(Template!O633=\"\",\"\",Template!O633)","v":""}]
[{"$f":"LEFT(Template!A634,4)","v":""},{"$f":"LEFT(Template!B634,5)","v":""},{"$f":"LEFT(Template!C634,7)","v":""},{"$f":"LEFT(Template!D634,6)","v":""},{"$f":"LEFT(Template!E634,2)","v":""},{"$f":"LEFT(Template!F634,3)","v":""},{"$f":"LEFT(Template!G634,10)","v":""},{"$f":"LEFT(Template!H634,6)","v":""},{"$f":"LEFT(Template!I634,4)","v":""},{"$f":"LEFT(Template!J634,6)","v":""},{"$f":"LEFT(Template!K634,6)","v":""},{"$f":"LEFT(Template!L634,3)","v":""},{"$f":"IF(Template!M634=\"\",\"\",Template!M634)","v":""},{"$f":"IF(Template!N634=\"\",\"\",Template!N634)","v":""},null,null,null,null,null,{"$f":"IF(Template!O634=\"\",\"\",Template!O634)","v":""}]
[{"$f":"LEFT(Template!A635,4)","v":""},{"$f":"LEFT(Template!B635,5)","v":""},{"$f":"LEFT(Template!C635,7)","v":""},{"$f":"LEFT(Template!D635,6)","v":""},{"$f":"LEFT(Template!E635,2)","v":""},{"$f":"LEFT(Template!F635,3)","v":""},{"$f":"LEFT(Template!G635,10)","v":""},{"$f":"LEFT(Template!H635,6)","v":""},{"$f":"LEFT(Template!I635,4)","v":""},{"$f":"LEFT(Template!J635,6)","v":""},{"$f":"LEFT(Template!K635,6)","v":""},{"$f":"LEFT(Template!L635,3)","v":""},{"$f":"IF(Template!M635=\"\",\"\",Template!M635)","v":""},{"$f":"IF(Template!N635=\"\",\"\",Template!N635)","v":""},null,null,null,null,null,{"$f":"IF(Template!O635=\"\",\"\",Template!O635)","v":""}]
[{"$f":"LEFT(Template!A636,4)","v":""},{"$f":"LEFT(Template!B636,5)","v":""},{"$f":"LEFT(Template!C636,7)","v":""},{"$f":"LEFT(Template!D636,6)","v":""},{"$f":"LEFT(Template!E636,2)","v":""},{"$f":"LEFT(Template!F636,3)","v":""},{"$f":"LEFT(Template!G636,10)","v":""},{"$f":"LEFT(Template!H636,6)","v":""},{"$f":"LEFT(Template!I636,4)","v":""},{"$f":"LEFT(Template!J636,6)","v":""},{"$f":"LEFT(Template!K636,6)","v":""},{"$f":"LEFT(Template!L636,3)","v":""},{"$f":"IF(Template!M636=\"\",\"\",Template!M636)","v":""},{"$f":"IF(Template!N636=\"\",\"\",Template!N636)","v":""},null,null,null,null,null,{"$f":"IF(Template!O636=\"\",\"\",Template!O636)","v":""}]
[{"$f":"LEFT(Template!A637,4)","v":""},{"$f":"LEFT(Template!B637,5)","v":""},{"$f":"LEFT(Template!C637,7)","v":""},{"$f":"LEFT(Template!D637,6)","v":""},{"$f":"LEFT(Template!E637,2)","v":""},{"$f":"LEFT(Template!F637,3)","v":""},{"$f":"LEFT(Template!G637,10)","v":""},{"$f":"LEFT(Template!H637,6)","v":""},{"$f":"LEFT(Template!I637,4)","v":""},{"$f":"LEFT(Template!J637,6)","v":""},{"$f":"LEFT(Template!K637,6)","v":""},{"$f":"LEFT(Template!L637,3)","v":""},{"$f":"IF(Template!M637=\"\",\"\",Template!M637)","v":""},{"$f":"IF(Template!N637=\"\",\"\",Template!N637)","v":""},null,null,null,null,null,{"$f":"IF(Template!O637=\"\",\"\",Template!O637)","v":""}]
[{"$f":"LEFT(Template!A638,4)","v":""},{"$f":"LEFT(Template!B638,5)","v":""},{"$f":"LEFT(Template!C638,7)","v":""},{"$f":"LEFT(Template!D638,6)","v":""},{"$f":"LEFT(Template!E638,2)","v":""},{"$f":"LEFT(Template!F638,3)","v":""},{"$f":"LEFT(Template!G638,10)","v":""},{"$f":"LEFT(Template!H638,6)","v":""},{"$f":"LEFT(Template!I638,4)","v":""},{"$f":"LEFT(Template!J638,6)","v":""},{"$f":"LEFT(Template!K638,6)","v":""},{"$f":"LEFT(Template!L638,3)","v":""},{"$f":"IF(Template!M638=\"\",\"\",Template!M638)","v":""},{"$f":"IF(Template!N638=\"\",\"\",Template!N638)","v":""},null,null,null,null,null,{"$f":"IF(Template!O638=\"\",\"\",Template!O638)","v":""}]
[{"$f":"LEFT(Template!A639,4)","v":""},{"$f":"LEFT(Template!B639,5)","v":""},{"$f":"LEFT(Template!C639,7)","v":""},{"$f":"LEFT(Template!D639,6)","v":""},{"$f":"LEFT(Template!E639,2)","v":""},{"$f":"LEFT(Template!F639,3)","v":""},{"$f":"LEFT(Template!G639,10)","v":""},{"$f":"LEFT(Template!H639,6)","v":""},{"$f":"LEFT(Template!I639,4)","v":""},{"$f":"LEFT(Template!J639,6)","v":""},{"$f":"LEFT(Template!K639,6)","v":""},{"$f":"LEFT(Template!L639,3)","v":""},{"$f":"IF(Template!M639=\"\",\"\",Template!M639)","v":""},{"$f":"IF(Template!N639=\"\",\"\",Template!N639)","v":""},null,null,null,null,null,{"$f":"IF(Template!O639=\"\",\"\",Template!O639)","v":""}]
[{"$f":"LEFT(Template!A640,4)","v":""},{"$f":"LEFT(Template!B640,5)","v":""},{"$f":"LEFT(Template!C640,7)","v":""},{"$f":"LEFT(Template!D640,6)","v":""},{"$f":"LEFT(Template!E640,2)","v":""},{"$f":"LEFT(Template!F640,3)","v":""},{"$f":"LEFT(Template!G640,10)","v":""},{"$f":"LEFT(Template!H640,6)","v":""},{"$f":"LEFT(Template!I640,4)","v":""},{"$f":"LEFT(Template!J640,6)","v":""},{"$f":"LEFT(Template!K640,6)","v":""},{"$f":"LEFT(Template!L640,3)","v":""},{"$f":"IF(Template!M640=\"\",\"\",Template!M640)","v":""},{"$f":"IF(Template!N640=\"\",\"\",Template!N640)","v":""},null,null,null,null,null,{"$f":"IF(Template!O640=\"\",\"\",Template!O640)","v":""}]
[{"$f":"LEFT(Template!A641,4)","v":""},{"$f":"LEFT(Template!B641,5)","v":""},{"$f":"LEFT(Template!C641,7)","v":""},{"$f":"LEFT(Template!D641,6)","v":""},{"$f":"LEFT(Template!E641,2)","v":""},{"$f":"LEFT(Template!F641,3)","v":""},{"$f":"LEFT(Template!G641,10)","v":""},{"$f":"LEFT(Template!H641,6)","v":""},{"$f":"LEFT(Template!I641,4)","v":""},{"$f":"LEFT(Template!J641,6)","v":""},{"$f":"LEFT(Template!K641,6)","v":""},{"$f":"LEFT(Template!L641,3)","v":""},{"$f":"IF(Template!M641=\"\",\"\",Template!M641)","v":""},{"$f":"IF(Template!N641=\"\",\"\",Template!N641)","v":""},null,null,null,null,null,{"$f":"IF(Template!O641=\"\",\"\",Template!O641)","v":""}]
[{"$f":"LEFT(Template!A642,4)","v":""},{"$f":"LEFT(Template!B642,5)","v":""},{"$f":"LEFT(Template!C642,7)","v":""},{"$f":"LEFT(Template!D642,6)","v":""},{"$f":"LEFT(Template!E642,2)","v":""},{"$f":"LEFT(Template!F642,3)","v":""},{"$f":"LEFT(Template!G642,10)","v":""},{"$f":"LEFT(Template!H642,6)","v":""},{"$f":"LEFT(Template!I642,4)","v":""},{"$f":"LEFT(Template!J642,6)","v":""},{"$f":"LEFT(Template!K642,6)","v":""},{"$f":"LEFT(Template!L642,3)","v":""},{"$f":"IF(Template!M642=\"\",\"\",Template!M642)","v":""},{"$f":"IF(Template!N642=\"\",\"\",Template!N642)","v":""},null,null,null,null,null,{"$f":"IF(Template!O642=\"\",\"\",Template!O642)","v":""}]
[{"$f":"LEFT(Template!A643,4)","v":""},{"$f":"LEFT(Template!B643,5)","v":""},{"$f":"LEFT(Template!C643,7)","v":""},{"$f":"LEFT(Template!D643,6)","v":""},{"$f":"LEFT(Template!E643,2)","v":""},{"$f":"LEFT(Template!F643,3)","v":""},{"$f":"LEFT(Template!G643,10)","v":""},{"$f":"LEFT(Template!H643,6)","v":""},{"$f":"LEFT(Template!I643,4)","v":""},{"$f":"LEFT(Template!J643,6)","v":""},{"$f":"LEFT(Template!K643,6)","v":""},{"$f":"LEFT(Template!L643,3)","v":""},{"$f":"IF(Template!M643=\"\",\"\",Template!M643)","v":""},{"$f":"IF(Template!N643=\"\",\"\",Template!N643)","v":""},null,null,null,null,null,{"$f":"IF(Template!O643=\"\",\"\",Template!O643)","v":""}]
[{"$f":"LEFT(Template!A644,4)","v":""},{"$f":"LEFT(Template!B644,5)","v":""},{"$f":"LEFT(Template!C644,7)","v":""},{"$f":"LEFT(Template!D644,6)","v":""},{"$f":"LEFT(Template!E644,2)","v":""},{"$f":"LEFT(Template!F644,3)","v":""},{"$f":"LEFT(Template!G644,10)","v":""},{"$f":"LEFT(Template!H644,6)","v":""},{"$f":"LEFT(Template!I644,4)","v":""},{"$f":"LEFT(Template!J644,6)","v":""},{"$f":"LEFT(Template!K644,6)","v":""},{"$f":"LEFT(Template!L644,3)","v":""},{"$f":"IF(Template!M644=\"\",\"\",Template!M644)","v":""},{"$f":"IF(Template!N644=\"\",\"\",Template!N644)","v":""},null,null,null,null,null,{"$f":"IF(Template!O644=\"\",\"\",Template!O644)","v":""}]
[{"$f":"LEFT(Template!A645,4)","v":""},{"$f":"LEFT(Template!B645,5)","v":""},{"$f":"LEFT(Template!C645,7)","v":""},{"$f":"LEFT(Template!D645,6)","v":""},{"$f":"LEFT(Template!E645,2)","v":""},{"$f":"LEFT(Template!F645,3)","v":""},{"$f":"LEFT(Template!G645,10)","v":""},{"$f":"LEFT(Template!H645,6)","v":""},{"$f":"LEFT(Template!I645,4)","v":""},{"$f":"LEFT(Template!J645,6)","v":""},{"$f":"LEFT(Template!K645,6)","v":""},{"$f":"LEFT(Template!L645,3)","v":""},{"$f":"IF(Template!M645=\"\",\"\",Template!M645)","v":""},{"$f":"IF(Template!N645=\"\",\"\",Template!N645)","v":""},null,null,null,null,null,{"$f":"IF(Template!O645=\"\",\"\",Template!O645)","v":""}]
[{"$f":"LEFT(Template!A646,4)","v":""},{"$f":"LEFT(Template!B646,5)","v":""},{"$f":"LEFT(Template!C646,7)","v":""},{"$f":"LEFT(Template!D646,6)","v":""},{"$f":"LEFT(Template!E646,2)","v":""},{"$f":"LEFT(Template!F646,3)","v":""},{"$f":"LEFT(Template!G646,10)","v":""},{"$f":"LEFT(Template!H646,6)","v":""},{"$f":"LEFT(Template!I646,4)","v":""},{"$f":"LEFT(Template!J646,6)","v":""},{"$f":"LEFT(Template!K646,6)","v":""},{"$f":"LEFT(Template!L646,3)","v":""},{"$f":"IF(Template!M646=\"\",\"\",Template!M646)","v":""},{"$f":"IF(Template!N646=\"\",\"\",Template!N646)","v":""},null,null,null,null,null,{"$f":"IF(Template!O646=\"\",\"\",Template!O646)","v":""}]
[{"$f":"LEFT(Template!A647,4)","v":""},{"$f":"LEFT(Template!B647,5)","v":""},{"$f":"LEFT(Template!C647,7)","v":""},{"$f":"LEFT(Template!D647,6)","v":""},{"$f":"LEFT(Template!E647,2)","v":""},{"$f":"LEFT(Template!F647,3)","v":""},{"$f":"LEFT(Template!G647,10)","v":""},{"$f":"LEFT(Template!H647,6)","v":""},{"$f":"LEFT(Template!I647,4)","v":""},{"$f":"LEFT(Template!J647,6)","v":""},{"$f":"LEFT(Template!K647,6)","v":""},{"$f":"LEFT(Template!L647,3)","v":""},{"$f":"IF(Template!M647=\"\",\"\",Template!M647)","v":""},{"$f":"IF(Template!N647=\"\",\"\",Template!N647)","v":""},null,null,null,null,null,{"$f":"IF(Template!O647=\"\",\"\",Template!O647)","v":""}]
[{"$f":"LEFT(Template!A648,4)","v":""},{"$f":"LEFT(Template!B648,5)","v":""},{"$f":"LEFT(Template!C648,7)","v":""},{"$f":"LEFT(Template!D648,6)","v":""},{"$f":"LEFT(Template!E648,2)","v":""},{"$f":"LEFT(Template!F648,3)","v":""},{"$f":"LEFT(Template!G648,10)","v":""},{"$f":"LEFT(Template!H648,6)","v":""},{"$f":"LEFT(Template!I648,4)","v":""},{"$f":"LEFT(Template!J648,6)","v":""},{"$f":"LEFT(Template!K648,6)","v":""},{"$f":"LEFT(Template!L648,3)","v":""},{"$f":"IF(Template!M648=\"\",\"\",Template!M648)","v":""},{"$f":"IF(Template!N648=\"\",\"\",Template!N648)","v":""},null,null,null,null,null,{"$f":"IF(Template!O648=\"\",\"\",Template!O648)","v":""}]
[{"$f":"LEFT(Template!A649,4)","v":""},{"$f":"LEFT(Template!B649,5)","v":""},{"$f":"LEFT(Template!C649,7)","v":""},{"$f":"LEFT(Template!D649,6)","v":""},{"$f":"LEFT(Template!E649,2)","v":""},{"$f":"LEFT(Template!F649,3)","v":""},{"$f":"LEFT(Template!G649,10)","v":""},{"$f":"LEFT(Template!H649,6)","v":""},{"$f":"LEFT(Template!I649,4)","v":""},{"$f":"LEFT(Template!J649,6)","v":""},{"$f":"LEFT(Template!K649,6)","v":""},{"$f":"LEFT(Template!L649,3)","v":""},{"$f":"IF(Template!M649=\"\",\"\",Template!M649)","v":""},{"$f":"IF(Template!N649=\"\",\"\",Template!N649)","v":""},null,null,null,null,null,{"$f":"IF(Template!O649=\"\",\"\",Template!O649)","v":""}]
[{"$f":"LEFT(Template!A650,4)","v":""},{"$f":"LEFT(Template!B650,5)","v":""},{"$f":"LEFT(Template!C650,7)","v":""},{"$f":"LEFT(Template!D650,6)","v":""},{"$f":"LEFT(Template!E650,2)","v":""},{"$f":"LEFT(Template!F650,3)","v":""},{"$f":"LEFT(Template!G650,10)","v":""},{"$f":"LEFT(Template!H650,6)","v":""},{"$f":"LEFT(Template!I650,4)","v":""},{"$f":"LEFT(Template!J650,6)","v":""},{"$f":"LEFT(Template!K650,6)","v":""},{"$f":"LEFT(Template!L650,3)","v":""},{"$f":"IF(Template!M650=\"\",\"\",Template!M650)","v":""},{"$f":"IF(Template!N650=\"\",\"\",Template!N650)","v":""},null,null,null,null,null,{"$f":"IF(Template!O650=\"\",\"\",Template!O650)","v":""}]
[{"$f":"LEFT(Template!A651,4)","v":""},{"$f":"LEFT(Template!B651,5)","v":""},{"$f":"LEFT(Template!C651,7)","v":""},{"$f":"LEFT(Template!D651,6)","v":""},{"$f":"LEFT(Template!E651,2)","v":""},{"$f":"LEFT(Template!F651,3)","v":""},{"$f":"LEFT(Template!G651,10)","v":""},{"$f":"LEFT(Template!H651,6)","v":""},{"$f":"LEFT(Template!I651,4)","v":""},{"$f":"LEFT(Template!J651,6)","v":""},{"$f":"LEFT(Template!K651,6)","v":""},{"$f":"LEFT(Template!L651,3)","v":""},{"$f":"IF(Template!M651=\"\",\"\",Template!M651)","v":""},{"$f":"IF(Template!N651=\"\",\"\",Template!N651)","v":""},null,null,null,null,null,{"$f":"IF(Template!O651=\"\",\"\",Template!O651)","v":""}]
[{"$f":"LEFT(Template!A652,4)","v":""},{"$f":"LEFT(Template!B652,5)","v":""},{"$f":"LEFT(Template!C652,7)","v":""},{"$f":"LEFT(Template!D652,6)","v":""},{"$f":"LEFT(Template!E652,2)","v":""},{"$f":"LEFT(Template!F652,3)","v":""},{"$f":"LEFT(Template!G652,10)","v":""},{"$f":"LEFT(Template!H652,6)","v":""},{"$f":"LEFT(Template!I652,4)","v":""},{"$f":"LEFT(Template!J652,6)","v":""},{"$f":"LEFT(Template!K652,6)","v":""},{"$f":"LEFT(Template!L652,3)","v":""},{"$f":"IF(Template!M652=\"\",\"\",Template!M652)","v":""},{"$f":"IF(Template!N652=\"\",\"\",Template!N652)","v":""},null,null,null,null,null,{"$f":"IF(Template!O652=\"\",\"\",Template!O652)","v":""}]
[{"$f":"LEFT(Template!A653,4)","v":""},{"$f":"LEFT(Template!B653,5)","v":""},{"$f":"LEFT(Template!C653,7)","v":""},{"$f":"LEFT(Template!D653,6)","v":""},{"$f":"LEFT(Template!E653,2)","v":""},{"$f":"LEFT(Template!F653,3)","v":""},{"$f":"LEFT(Template!G653,10)","v":""},{"$f":"LEFT(Template!H653,6)","v":""},{"$f":"LEFT(Template!I653,4)","v":""},{"$f":"LEFT(Template!J653,6)","v":""},{"$f":"LEFT(Template!K653,6)","v":""},{"$f":"LEFT(Template!L653,3)","v":""},{"$f":"IF(Template!M653=\"\",\"\",Template!M653)","v":""},{"$f":"IF(Template!N653=\"\",\"\",Template!N653)","v":""},null,null,null,null,null,{"$f":"IF(Template!O653=\"\",\"\",Template!O653)","v":""}]
[{"$f":"LEFT(Template!A654,4)","v":""},{"$f":"LEFT(Template!B654,5)","v":""},{"$f":"LEFT(Template!C654,7)","v":""},{"$f":"LEFT(Template!D654,6)","v":""},{"$f":"LEFT(Template!E654,2)","v":""},{"$f":"LEFT(Template!F654,3)","v":""},{"$f":"LEFT(Template!G654,10)","v":""},{"$f":"LEFT(Template!H654,6)","v":""},{"$f":"LEFT(Template!I654,4)","v":""},{"$f":"LEFT(Template!J654,6)","v":""},{"$f":"LEFT(Template!K654,6)","v":""},{"$f":"LEFT(Template!L654,3)","v":""},{"$f":"IF(Template!M654=\"\",\"\",Template!M654)","v":""},{"$f":"IF(Template!N654=\"\",\"\",Template!N654)","v":""},null,null,null,null,null,{"$f":"IF(Template!O654=\"\",\"\",Template!O654)","v":""}]
[{"$f":"LEFT(Template!A655,4)","v":""},{"$f":"LEFT(Template!B655,5)","v":""},{"$f":"LEFT(Template!C655,7)","v":""},{"$f":"LEFT(Template!D655,6)","v":""},{"$f":"LEFT(Template!E655,2)","v":""},{"$f":"LEFT(Template!F655,3)","v":""},{"$f":"LEFT(Template!G655,10)","v":""},{"$f":"LEFT(Template!H655,6)","v":""},{"$f":"LEFT(Template!I655,4)","v":""},{"$f":"LEFT(Template!J655,6)","v":""},{"$f":"LEFT(Template!K655,6)","v":""},{"$f":"LEFT(Template!L655,3)","v":""},{"$f":"IF(Template!M655=\"\",\"\",Template!M655)","v":""},{"$f":"IF(Template!N655=\"\",\"\",Template!N655)","v":""},null,null,null,null,null,{"$f":"IF(Template!O655=\"\",\"\",Template!O655)","v":""}]
[{"$f":"LEFT(Template!A656,4)","v":""},{"$f":"LEFT(Template!B656,5)","v":""},{"$f":"LEFT(Template!C656,7)","v":""},{"$f":"LEFT(Template!D656,6)","v":""},{"$f":"LEFT(Template!E656,2)","v":""},{"$f":"LEFT(Template!F656,3)","v":""},{"$f":"LEFT(Template!G656,10)","v":""},{"$f":"LEFT(Template!H656,6)","v":""},{"$f":"LEFT(Template!I656,4)","v":""},{"$f":"LEFT(Template!J656,6)","v":""},{"$f":"LEFT(Template!K656,6)","v":""},{"$f":"LEFT(Template!L656,3)","v":""},{"$f":"IF(Template!M656=\"\",\"\",Template!M656)","v":""},{"$f":"IF(Template!N656=\"\",\"\",Template!N656)","v":""},null,null,null,null,null,{"$f":"IF(Template!O656=\"\",\"\",Template!O656)","v":""}]
[{"$f":"LEFT(Template!A657,4)","v":""},{"$f":"LEFT(Template!B657,5)","v":""},{"$f":"LEFT(Template!C657,7)","v":""},{"$f":"LEFT(Template!D657,6)","v":""},{"$f":"LEFT(Template!E657,2)","v":""},{"$f":"LEFT(Template!F657,3)","v":""},{"$f":"LEFT(Template!G657,10)","v":""},{"$f":"LEFT(Template!H657,6)","v":""},{"$f":"LEFT(Template!I657,4)","v":""},{"$f":"LEFT(Template!J657,6)","v":""},{"$f":"LEFT(Template!K657,6)","v":""},{"$f":"LEFT(Template!L657,3)","v":""},{"$f":"IF(Template!M657=\"\",\"\",Template!M657)","v":""},{"$f":"IF(Template!N657=\"\",\"\",Template!N657)","v":""},null,null,null,null,null,{"$f":"IF(Template!O657=\"\",\"\",Template!O657)","v":""}]
[{"$f":"LEFT(Template!A658,4)","v":""},{"$f":"LEFT(Template!B658,5)","v":""},{"$f":"LEFT(Template!C658,7)","v":""},{"$f":"LEFT(Template!D658,6)","v":""},{"$f":"LEFT(Template!E658,2)","v":""},{"$f":"LEFT(Template!F658,3)","v":""},{"$f":"LEFT(Template!G658,10)","v":""},{"$f":"LEFT(Template!H658,6)","v":""},{"$f":"LEFT(Template!I658,4)","v":""},{"$f":"LEFT(Template!J658,6)","v":""},{"$f":"LEFT(Template!K658,6)","v":""},{"$f":"LEFT(Template!L658,3)","v":""},{"$f":"IF(Template!M658=\"\",\"\",Template!M658)","v":""},{"$f":"IF(Template!N658=\"\",\"\",Template!N658)","v":""},null,null,null,null,null,{"$f":"IF(Template!O658=\"\",\"\",Template!O658)","v":""}]
[{"$f":"LEFT(Template!A659,4)","v":""},{"$f":"LEFT(Template!B659,5)","v":""},{"$f":"LEFT(Template!C659,7)","v":""},{"$f":"LEFT(Template!D659,6)","v":""},{"$f":"LEFT(Template!E659,2)","v":""},{"$f":"LEFT(Template!F659,3)","v":""},{"$f":"LEFT(Template!G659,10)","v":""},{"$f":"LEFT(Template!H659,6)","v":""},{"$f":"LEFT(Template!I659,4)","v":""},{"$f":"LEFT(Template!J659,6)","v":""},{"$f":"LEFT(Template!K659,6)","v":""},{"$f":"LEFT(Template!L659,3)","v":""},{"$f":"IF(Template!M659=\"\",\"\",Template!M659)","v":""},{"$f":"IF(Template!N659=\"\",\"\",Template!N659)","v":""},null,null,null,null,null,{"$f":"IF(Template!O659=\"\",\"\",Template!O659)","v":""}]
[{"$f":"LEFT(Template!A660,4)","v":""},{"$f":"LEFT(Template!B660,5)","v":""},{"$f":"LEFT(Template!C660,7)","v":""},{"$f":"LEFT(Template!D660,6)","v":""},{"$f":"LEFT(Template!E660,2)","v":""},{"$f":"LEFT(Template!F660,3)","v":""},{"$f":"LEFT(Template!G660,10)","v":""},{"$f":"LEFT(Template!H660,6)","v":""},{"$f":"LEFT(Template!I660,4)","v":""},{"$f":"LEFT(Template!J660,6)","v":""},{"$f":"LEFT(Template!K660,6)","v":""},{"$f":"LEFT(Template!L660,3)","v":""},{"$f":"IF(Template!M660=\"\",\"\",Template!M660)","v":""},{"$f":"IF(Template!N660=\"\",\"\",Template!N660)","v":""},null,null,null,null,null,{"$f":"IF(Template!O660=\"\",\"\",Template!O660)","v":""}]
[{"$f":"LEFT(Template!A661,4)","v":""},{"$f":"LEFT(Template!B661,5)","v":""},{"$f":"LEFT(Template!C661,7)","v":""},{"$f":"LEFT(Template!D661,6)","v":""},{"$f":"LEFT(Template!E661,2)","v":""},{"$f":"LEFT(Template!F661,3)","v":""},{"$f":"LEFT(Template!G661,10)","v":""},{"$f":"LEFT(Template!H661,6)","v":""},{"$f":"LEFT(Template!I661,4)","v":""},{"$f":"LEFT(Template!J661,6)","v":""},{"$f":"LEFT(Template!K661,6)","v":""},{"$f":"LEFT(Template!L661,3)","v":""},{"$f":"IF(Template!M661=\"\",\"\",Template!M661)","v":""},{"$f":"IF(Template!N661=\"\",\"\",Template!N661)","v":""},null,null,null,null,null,{"$f":"IF(Template!O661=\"\",\"\",Template!O661)","v":""}]
[{"$f":"LEFT(Template!A662,4)","v":""},{"$f":"LEFT(Template!B662,5)","v":""},{"$f":"LEFT(Template!C662,7)","v":""},{"$f":"LEFT(Template!D662,6)","v":""},{"$f":"LEFT(Template!E662,2)","v":""},{"$f":"LEFT(Template!F662,3)","v":""},{"$f":"LEFT(Template!G662,10)","v":""},{"$f":"LEFT(Template!H662,6)","v":""},{"$f":"LEFT(Template!I662,4)","v":""},{"$f":"LEFT(Template!J662,6)","v":""},{"$f":"LEFT(Template!K662,6)","v":""},{"$f":"LEFT(Template!L662,3)","v":""},{"$f":"IF(Template!M662=\"\",\"\",Template!M662)","v":""},{"$f":"IF(Template!N662=\"\",\"\",Template!N662)","v":""},null,null,null,null,null,{"$f":"IF(Template!O662=\"\",\"\",Template!O662)","v":""}]
[{"$f":"LEFT(Template!A663,4)","v":""},{"$f":"LEFT(Template!B663,5)","v":""},{"$f":"LEFT(Template!C663,7)","v":""},{"$f":"LEFT(Template!D663,6)","v":""},{"$f":"LEFT(Template!E663,2)","v":""},{"$f":"LEFT(Template!F663,3)","v":""},{"$f":"LEFT(Template!G663,10)","v":""},{"$f":"LEFT(Template!H663,6)","v":""},{"$f":"LEFT(Template!I663,4)","v":""},{"$f":"LEFT(Template!J663,6)","v":""},{"$f":"LEFT(Template!K663,6)","v":""},{"$f":"LEFT(Template!L663,3)","v":""},{"$f":"IF(Template!M663=\"\",\"\",Template!M663)","v":""},{"$f":"IF(Template!N663=\"\",\"\",Template!N663)","v":""},null,null,null,null,null,{"$f":"IF(Template!O663=\"\",\"\",Template!O663)","v":""}]
[{"$f":"LEFT(Template!A664,4)","v":""},{"$f":"LEFT(Template!B664,5)","v":""},{"$f":"LEFT(Template!C664,7)","v":""},{"$f":"LEFT(Template!D664,6)","v":""},{"$f":"LEFT(Template!E664,2)","v":""},{"$f":"LEFT(Template!F664,3)","v":""},{"$f":"LEFT(Template!G664,10)","v":""},{"$f":"LEFT(Template!H664,6)","v":""},{"$f":"LEFT(Template!I664,4)","v":""},{"$f":"LEFT(Template!J664,6)","v":""},{"$f":"LEFT(Template!K664,6)","v":""},{"$f":"LEFT(Template!L664,3)","v":""},{"$f":"IF(Template!M664=\"\",\"\",Template!M664)","v":""},{"$f":"IF(Template!N664=\"\",\"\",Template!N664)","v":""},null,null,null,null,null,{"$f":"IF(Template!O664=\"\",\"\",Template!O664)","v":""}]
[{"$f":"LEFT(Template!A665,4)","v":""},{"$f":"LEFT(Template!B665,5)","v":""},{"$f":"LEFT(Template!C665,7)","v":""},{"$f":"LEFT(Template!D665,6)","v":""},{"$f":"LEFT(Template!E665,2)","v":""},{"$f":"LEFT(Template!F665,3)","v":""},{"$f":"LEFT(Template!G665,10)","v":""},{"$f":"LEFT(Template!H665,6)","v":""},{"$f":"LEFT(Template!I665,4)","v":""},{"$f":"LEFT(Template!J665,6)","v":""},{"$f":"LEFT(Template!K665,6)","v":""},{"$f":"LEFT(Template!L665,3)","v":""},{"$f":"IF(Template!M665=\"\",\"\",Template!M665)","v":""},{"$f":"IF(Template!N665=\"\",\"\",Template!N665)","v":""},null,null,null,null,null,{"$f":"IF(Template!O665=\"\",\"\",Template!O665)","v":""}]
[{"$f":"LEFT(Template!A666,4)","v":""},{"$f":"LEFT(Template!B666,5)","v":""},{"$f":"LEFT(Template!C666,7)","v":""},{"$f":"LEFT(Template!D666,6)","v":""},{"$f":"LEFT(Template!E666,2)","v":""},{"$f":"LEFT(Template!F666,3)","v":""},{"$f":"LEFT(Template!G666,10)","v":""},{"$f":"LEFT(Template!H666,6)","v":""},{"$f":"LEFT(Template!I666,4)","v":""},{"$f":"LEFT(Template!J666,6)","v":""},{"$f":"LEFT(Template!K666,6)","v":""},{"$f":"LEFT(Template!L666,3)","v":""},{"$f":"IF(Template!M666=\"\",\"\",Template!M666)","v":""},{"$f":"IF(Template!N666=\"\",\"\",Template!N666)","v":""},null,null,null,null,null,{"$f":"IF(Template!O666=\"\",\"\",Template!O666)","v":""}]
[{"$f":"LEFT(Template!A667,4)","v":""},{"$f":"LEFT(Template!B667,5)","v":""},{"$f":"LEFT(Template!C667,7)","v":""},{"$f":"LEFT(Template!D667,6)","v":""},{"$f":"LEFT(Template!E667,2)","v":""},{"$f":"LEFT(Template!F667,3)","v":""},{"$f":"LEFT(Template!G667,10)","v":""},{"$f":"LEFT(Template!H667,6)","v":""},{"$f":"LEFT(Template!I667,4)","v":""},{"$f":"LEFT(Template!J667,6)","v":""},{"$f":"LEFT(Template!K667,6)","v":""},{"$f":"LEFT(Template!L667,3)","v":""},{"$f":"IF(Template!M667=\"\",\"\",Template!M667)","v":""},{"$f":"IF(Template!N667=\"\",\"\",Template!N667)","v":""},null,null,null,null,null,{"$f":"IF(Template!O667=\"\",\"\",Template!O667)","v":""}]
[{"$f":"LEFT(Template!A668,4)","v":""},{"$f":"LEFT(Template!B668,5)","v":""},{"$f":"LEFT(Template!C668,7)","v":""},{"$f":"LEFT(Template!D668,6)","v":""},{"$f":"LEFT(Template!E668,2)","v":""},{"$f":"LEFT(Template!F668,3)","v":""},{"$f":"LEFT(Template!G668,10)","v":""},{"$f":"LEFT(Template!H668,6)","v":""},{"$f":"LEFT(Template!I668,4)","v":""},{"$f":"LEFT(Template!J668,6)","v":""},{"$f":"LEFT(Template!K668,6)","v":""},{"$f":"LEFT(Template!L668,3)","v":""},{"$f":"IF(Template!M668=\"\",\"\",Template!M668)","v":""},{"$f":"IF(Template!N668=\"\",\"\",Template!N668)","v":""},null,null,null,null,null,{"$f":"IF(Template!O668=\"\",\"\",Template!O668)","v":""}]
[{"$f":"LEFT(Template!A669,4)","v":""},{"$f":"LEFT(Template!B669,5)","v":""},{"$f":"LEFT(Template!C669,7)","v":""},{"$f":"LEFT(Template!D669,6)","v":""},{"$f":"LEFT(Template!E669,2)","v":""},{"$f":"LEFT(Template!F669,3)","v":""},{"$f":"LEFT(Template!G669,10)","v":""},{"$f":"LEFT(Template!H669,6)","v":""},{"$f":"LEFT(Template!I669,4)","v":""},{"$f":"LEFT(Template!J669,6)","v":""},{"$f":"LEFT(Template!K669,6)","v":""},{"$f":"LEFT(Template!L669,3)","v":""},{"$f":"IF(Template!M669=\"\",\"\",Template!M669)","v":""},{"$f":"IF(Template!N669=\"\",\"\",Template!N669)","v":""},null,null,null,null,null,{"$f":"IF(Template!O669=\"\",\"\",Template!O669)","v":""}]
[{"$f":"LEFT(Template!A670,4)","v":""},{"$f":"LEFT(Template!B670,5)","v":""},{"$f":"LEFT(Template!C670,7)","v":""},{"$f":"LEFT(Template!D670,6)","v":""},{"$f":"LEFT(Template!E670,2)","v":""},{"$f":"LEFT(Template!F670,3)","v":""},{"$f":"LEFT(Template!G670,10)","v":""},{"$f":"LEFT(Template!H670,6)","v":""},{"$f":"LEFT(Template!I670,4)","v":""},{"$f":"LEFT(Template!J670,6)","v":""},{"$f":"LEFT(Template!K670,6)","v":""},{"$f":"LEFT(Template!L670,3)","v":""},{"$f":"IF(Template!M670=\"\",\"\",Template!M670)","v":""},{"$f":"IF(Template!N670=\"\",\"\",Template!N670)","v":""},null,null,null,null,null,{"$f":"IF(Template!O670=\"\",\"\",Template!O670)","v":""}]
[{"$f":"LEFT(Template!A671,4)","v":""},{"$f":"LEFT(Template!B671,5)","v":""},{"$f":"LEFT(Template!C671,7)","v":""},{"$f":"LEFT(Template!D671,6)","v":""},{"$f":"LEFT(Template!E671,2)","v":""},{"$f":"LEFT(Template!F671,3)","v":""},{"$f":"LEFT(Template!G671,10)","v":""},{"$f":"LEFT(Template!H671,6)","v":""},{"$f":"LEFT(Template!I671,4)","v":""},{"$f":"LEFT(Template!J671,6)","v":""},{"$f":"LEFT(Template!K671,6)","v":""},{"$f":"LEFT(Template!L671,3)","v":""},{"$f":"IF(Template!M671=\"\",\"\",Template!M671)","v":""},{"$f":"IF(Template!N671=\"\",\"\",Template!N671)","v":""},null,null,null,null,null,{"$f":"IF(Template!O671=\"\",\"\",Template!O671)","v":""}]
[{"$f":"LEFT(Template!A672,4)","v":""},{"$f":"LEFT(Template!B672,5)","v":""},{"$f":"LEFT(Template!C672,7)","v":""},{"$f":"LEFT(Template!D672,6)","v":""},{"$f":"LEFT(Template!E672,2)","v":""},{"$f":"LEFT(Template!F672,3)","v":""},{"$f":"LEFT(Template!G672,10)","v":""},{"$f":"LEFT(Template!H672,6)","v":""},{"$f":"LEFT(Template!I672,4)","v":""},{"$f":"LEFT(Template!J672,6)","v":""},{"$f":"LEFT(Template!K672,6)","v":""},{"$f":"LEFT(Template!L672,3)","v":""},{"$f":"IF(Template!M672=\"\",\"\",Template!M672)","v":""},{"$f":"IF(Template!N672=\"\",\"\",Template!N672)","v":""},null,null,null,null,null,{"$f":"IF(Template!O672=\"\",\"\",Template!O672)","v":""}]
[{"$f":"LEFT(Template!A673,4)","v":""},{"$f":"LEFT(Template!B673,5)","v":""},{"$f":"LEFT(Template!C673,7)","v":""},{"$f":"LEFT(Template!D673,6)","v":""},{"$f":"LEFT(Template!E673,2)","v":""},{"$f":"LEFT(Template!F673,3)","v":""},{"$f":"LEFT(Template!G673,10)","v":""},{"$f":"LEFT(Template!H673,6)","v":""},{"$f":"LEFT(Template!I673,4)","v":""},{"$f":"LEFT(Template!J673,6)","v":""},{"$f":"LEFT(Template!K673,6)","v":""},{"$f":"LEFT(Template!L673,3)","v":""},{"$f":"IF(Template!M673=\"\",\"\",Template!M673)","v":""},{"$f":"IF(Template!N673=\"\",\"\",Template!N673)","v":""},null,null,null,null,null,{"$f":"IF(Template!O673=\"\",\"\",Template!O673)","v":""}]
[{"$f":"LEFT(Template!A674,4)","v":""},{"$f":"LEFT(Template!B674,5)","v":""},{"$f":"LEFT(Template!C674,7)","v":""},{"$f":"LEFT(Template!D674,6)","v":""},{"$f":"LEFT(Template!E674,2)","v":""},{"$f":"LEFT(Template!F674,3)","v":""},{"$f":"LEFT(Template!G674,10)","v":""},{"$f":"LEFT(Template!H674,6)","v":""},{"$f":"LEFT(Template!I674,4)","v":""},{"$f":"LEFT(Template!J674,6)","v":""},{"$f":"LEFT(Template!K674,6)","v":""},{"$f":"LEFT(Template!L674,3)","v":""},{"$f":"IF(Template!M674=\"\",\"\",Template!M674)","v":""},{"$f":"IF(Template!N674=\"\",\"\",Template!N674)","v":""},null,null,null,null,null,{"$f":"IF(Template!O674=\"\",\"\",Template!O674)","v":""}]
[{"$f":"LEFT(Template!A675,4)","v":""},{"$f":"LEFT(Template!B675,5)","v":""},{"$f":"LEFT(Template!C675,7)","v":""},{"$f":"LEFT(Template!D675,6)","v":""},{"$f":"LEFT(Template!E675,2)","v":""},{"$f":"LEFT(Template!F675,3)","v":""},{"$f":"LEFT(Template!G675,10)","v":""},{"$f":"LEFT(Template!H675,6)","v":""},{"$f":"LEFT(Template!I675,4)","v":""},{"$f":"LEFT(Template!J675,6)","v":""},{"$f":"LEFT(Template!K675,6)","v":""},{"$f":"LEFT(Template!L675,3)","v":""},{"$f":"IF(Template!M675=\"\",\"\",Template!M675)","v":""},{"$f":"IF(Template!N675=\"\",\"\",Template!N675)","v":""},null,null,null,null,null,{"$f":"IF(Template!O675=\"\",\"\",Template!O675)","v":""}]
[{"$f":"LEFT(Template!A676,4)","v":""},{"$f":"LEFT(Template!B676,5)","v":""},{"$f":"LEFT(Template!C676,7)","v":""},{"$f":"LEFT(Template!D676,6)","v":""},{"$f":"LEFT(Template!E676,2)","v":""},{"$f":"LEFT(Template!F676,3)","v":""},{"$f":"LEFT(Template!G676,10)","v":""},{"$f":"LEFT(Template!H676,6)","v":""},{"$f":"LEFT(Template!I676,4)","v":""},{"$f":"LEFT(Template!J676,6)","v":""},{"$f":"LEFT(Template!K676,6)","v":""},{"$f":"LEFT(Template!L676,3)","v":""},{"$f":"IF(Template!M676=\"\",\"\",Template!M676)","v":""},{"$f":"IF(Template!N676=\"\",\"\",Template!N676)","v":""},null,null,null,null,null,{"$f":"IF(Template!O676=\"\",\"\",Template!O676)","v":""}]
[{"$f":"LEFT(Template!A677,4)","v":""},{"$f":"LEFT(Template!B677,5)","v":""},{"$f":"LEFT(Template!C677,7)","v":""},{"$f":"LEFT(Template!D677,6)","v":""},{"$f":"LEFT(Template!E677,2)","v":""},{"$f":"LEFT(Template!F677,3)","v":""},{"$f":"LEFT(Template!G677,10)","v":""},{"$f":"LEFT(Template!H677,6)","v":""},{"$f":"LEFT(Template!I677,4)","v":""},{"$f":"LEFT(Template!J677,6)","v":""},{"$f":"LEFT(Template!K677,6)","v":""},{"$f":"LEFT(Template!L677,3)","v":""},{"$f":"IF(Template!M677=\"\",\"\",Template!M677)","v":""},{"$f":"IF(Template!N677=\"\",\"\",Template!N677)","v":""},null,null,null,null,null,{"$f":"IF(Template!O677=\"\",\"\",Template!O677)","v":""}]
[{"$f":"LEFT(Template!A678,4)","v":""},{"$f":"LEFT(Template!B678,5)","v":""},{"$f":"LEFT(Template!C678,7)","v":""},{"$f":"LEFT(Template!D678,6)","v":""},{"$f":"LEFT(Template!E678,2)","v":""},{"$f":"LEFT(Template!F678,3)","v":""},{"$f":"LEFT(Template!G678,10)","v":""},{"$f":"LEFT(Template!H678,6)","v":""},{"$f":"LEFT(Template!I678,4)","v":""},{"$f":"LEFT(Template!J678,6)","v":""},{"$f":"LEFT(Template!K678,6)","v":""},{"$f":"LEFT(Template!L678,3)","v":""},{"$f":"IF(Template!M678=\"\",\"\",Template!M678)","v":""},{"$f":"IF(Template!N678=\"\",\"\",Template!N678)","v":""},null,null,null,null,null,{"$f":"IF(Template!O678=\"\",\"\",Template!O678)","v":""}]
[{"$f":"LEFT(Template!A679,4)","v":""},{"$f":"LEFT(Template!B679,5)","v":""},{"$f":"LEFT(Template!C679,7)","v":""},{"$f":"LEFT(Template!D679,6)","v":""},{"$f":"LEFT(Template!E679,2)","v":""},{"$f":"LEFT(Template!F679,3)","v":""},{"$f":"LEFT(Template!G679,10)","v":""},{"$f":"LEFT(Template!H679,6)","v":""},{"$f":"LEFT(Template!I679,4)","v":""},{"$f":"LEFT(Template!J679,6)","v":""},{"$f":"LEFT(Template!K679,6)","v":""},{"$f":"LEFT(Template!L679,3)","v":""},{"$f":"IF(Template!M679=\"\",\"\",Template!M679)","v":""},{"$f":"IF(Template!N679=\"\",\"\",Template!N679)","v":""},null,null,null,null,null,{"$f":"IF(Template!O679=\"\",\"\",Template!O679)","v":""}]
[{"$f":"LEFT(Template!A680,4)","v":""},{"$f":"LEFT(Template!B680,5)","v":""},{"$f":"LEFT(Template!C680,7)","v":""},{"$f":"LEFT(Template!D680,6)","v":""},{"$f":"LEFT(Template!E680,2)","v":""},{"$f":"LEFT(Template!F680,3)","v":""},{"$f":"LEFT(Template!G680,10)","v":""},{"$f":"LEFT(Template!H680,6)","v":""},{"$f":"LEFT(Template!I680,4)","v":""},{"$f":"LEFT(Template!J680,6)","v":""},{"$f":"LEFT(Template!K680,6)","v":""},{"$f":"LEFT(Template!L680,3)","v":""},{"$f":"IF(Template!M680=\"\",\"\",Template!M680)","v":""},{"$f":"IF(Template!N680=\"\",\"\",Template!N680)","v":""},null,null,null,null,null,{"$f":"IF(Template!O680=\"\",\"\",Template!O680)","v":""}]
[{"$f":"LEFT(Template!A681,4)","v":""},{"$f":"LEFT(Template!B681,5)","v":""},{"$f":"LEFT(Template!C681,7)","v":""},{"$f":"LEFT(Template!D681,6)","v":""},{"$f":"LEFT(Template!E681,2)","v":""},{"$f":"LEFT(Template!F681,3)","v":""},{"$f":"LEFT(Template!G681,10)","v":""},{"$f":"LEFT(Template!H681,6)","v":""},{"$f":"LEFT(Template!I681,4)","v":""},{"$f":"LEFT(Template!J681,6)","v":""},{"$f":"LEFT(Template!K681,6)","v":""},{"$f":"LEFT(Template!L681,3)","v":""},{"$f":"IF(Template!M681=\"\",\"\",Template!M681)","v":""},{"$f":"IF(Template!N681=\"\",\"\",Template!N681)","v":""},null,null,null,null,null,{"$f":"IF(Template!O681=\"\",\"\",Template!O681)","v":""}]
[{"$f":"LEFT(Template!A682,4)","v":""},{"$f":"LEFT(Template!B682,5)","v":""},{"$f":"LEFT(Template!C682,7)","v":""},{"$f":"LEFT(Template!D682,6)","v":""},{"$f":"LEFT(Template!E682,2)","v":""},{"$f":"LEFT(Template!F682,3)","v":""},{"$f":"LEFT(Template!G682,10)","v":""},{"$f":"LEFT(Template!H682,6)","v":""},{"$f":"LEFT(Template!I682,4)","v":""},{"$f":"LEFT(Template!J682,6)","v":""},{"$f":"LEFT(Template!K682,6)","v":""},{"$f":"LEFT(Template!L682,3)","v":""},{"$f":"IF(Template!M682=\"\",\"\",Template!M682)","v":""},{"$f":"IF(Template!N682=\"\",\"\",Template!N682)","v":""},null,null,null,null,null,{"$f":"IF(Template!O682=\"\",\"\",Template!O682)","v":""}]
[{"$f":"LEFT(Template!A683,4)","v":""},{"$f":"LEFT(Template!B683,5)","v":""},{"$f":"LEFT(Template!C683,7)","v":""},{"$f":"LEFT(Template!D683,6)","v":""},{"$f":"LEFT(Template!E683,2)","v":""},{"$f":"LEFT(Template!F683,3)","v":""},{"$f":"LEFT(Template!G683,10)","v":""},{"$f":"LEFT(Template!H683,6)","v":""},{"$f":"LEFT(Template!I683,4)","v":""},{"$f":"LEFT(Template!J683,6)","v":""},{"$f":"LEFT(Template!K683,6)","v":""},{"$f":"LEFT(Template!L683,3)","v":""},{"$f":"IF(Template!M683=\"\",\"\",Template!M683)","v":""},{"$f":"IF(Template!N683=\"\",\"\",Template!N683)","v":""},null,null,null,null,null,{"$f":"IF(Template!O683=\"\",\"\",Template!O683)","v":""}]
[{"$f":"LEFT(Template!A684,4)","v":""},{"$f":"LEFT(Template!B684,5)","v":""},{"$f":"LEFT(Template!C684,7)","v":""},{"$f":"LEFT(Template!D684,6)","v":""},{"$f":"LEFT(Template!E684,2)","v":""},{"$f":"LEFT(Template!F684,3)","v":""},{"$f":"LEFT(Template!G684,10)","v":""},{"$f":"LEFT(Template!H684,6)","v":""},{"$f":"LEFT(Template!I684,4)","v":""},{"$f":"LEFT(Template!J684,6)","v":""},{"$f":"LEFT(Template!K684,6)","v":""},{"$f":"LEFT(Template!L684,3)","v":""},{"$f":"IF(Template!M684=\"\",\"\",Template!M684)","v":""},{"$f":"IF(Template!N684=\"\",\"\",Template!N684)","v":""},null,null,null,null,null,{"$f":"IF(Template!O684=\"\",\"\",Template!O684)","v":""}]
[{"$f":"LEFT(Template!A685,4)","v":""},{"$f":"LEFT(Template!B685,5)","v":""},{"$f":"LEFT(Template!C685,7)","v":""},{"$f":"LEFT(Template!D685,6)","v":""},{"$f":"LEFT(Template!E685,2)","v":""},{"$f":"LEFT(Template!F685,3)","v":""},{"$f":"LEFT(Template!G685,10)","v":""},{"$f":"LEFT(Template!H685,6)","v":""},{"$f":"LEFT(Template!I685,4)","v":""},{"$f":"LEFT(Template!J685,6)","v":""},{"$f":"LEFT(Template!K685,6)","v":""},{"$f":"LEFT(Template!L685,3)","v":""},{"$f":"IF(Template!M685=\"\",\"\",Template!M685)","v":""},{"$f":"IF(Template!N685=\"\",\"\",Template!N685)","v":""},null,null,null,null,null,{"$f":"IF(Template!O685=\"\",\"\",Template!O685)","v":""}]
[{"$f":"LEFT(Template!A686,4)","v":""},{"$f":"LEFT(Template!B686,5)","v":""},{"$f":"LEFT(Template!C686,7)","v":""},{"$f":"LEFT(Template!D686,6)","v":""},{"$f":"LEFT(Template!E686,2)","v":""},{"$f":"LEFT(Template!F686,3)","v":""},{"$f":"LEFT(Template!G686,10)","v":""},{"$f":"LEFT(Template!H686,6)","v":""},{"$f":"LEFT(Template!I686,4)","v":""},{"$f":"LEFT(Template!J686,6)","v":""},{"$f":"LEFT(Template!K686,6)","v":""},{"$f":"LEFT(Template!L686,3)","v":""},{"$f":"IF(Template!M686=\"\",\"\",Template!M686)","v":""},{"$f":"IF(Template!N686=\"\",\"\",Template!N686)","v":""},null,null,null,null,null,{"$f":"IF(Template!O686=\"\",\"\",Template!O686)","v":""}]
[{"$f":"LEFT(Template!A687,4)","v":""},{"$f":"LEFT(Template!B687,5)","v":""},{"$f":"LEFT(Template!C687,7)","v":""},{"$f":"LEFT(Template!D687,6)","v":""},{"$f":"LEFT(Template!E687,2)","v":""},{"$f":"LEFT(Template!F687,3)","v":""},{"$f":"LEFT(Template!G687,10)","v":""},{"$f":"LEFT(Template!H687,6)","v":""},{"$f":"LEFT(Template!I687,4)","v":""},{"$f":"LEFT(Template!J687,6)","v":""},{"$f":"LEFT(Template!K687,6)","v":""},{"$f":"LEFT(Template!L687,3)","v":""},{"$f":"IF(Template!M687=\"\",\"\",Template!M687)","v":""},{"$f":"IF(Template!N687=\"\",\"\",Template!N687)","v":""},null,null,null,null,null,{"$f":"IF(Template!O687=\"\",\"\",Template!O687)","v":""}]
[{"$f":"LEFT(Template!A688,4)","v":""},{"$f":"LEFT(Template!B688,5)","v":""},{"$f":"LEFT(Template!C688,7)","v":""},{"$f":"LEFT(Template!D688,6)","v":""},{"$f":"LEFT(Template!E688,2)","v":""},{"$f":"LEFT(Template!F688,3)","v":""},{"$f":"LEFT(Template!G688,10)","v":""},{"$f":"LEFT(Template!H688,6)","v":""},{"$f":"LEFT(Template!I688,4)","v":""},{"$f":"LEFT(Template!J688,6)","v":""},{"$f":"LEFT(Template!K688,6)","v":""},{"$f":"LEFT(Template!L688,3)","v":""},{"$f":"IF(Template!M688=\"\",\"\",Template!M688)","v":""},{"$f":"IF(Template!N688=\"\",\"\",Template!N688)","v":""},null,null,null,null,null,{"$f":"IF(Template!O688=\"\",\"\",Template!O688)","v":""}]
[{"$f":"LEFT(Template!A689,4)","v":""},{"$f":"LEFT(Template!B689,5)","v":""},{"$f":"LEFT(Template!C689,7)","v":""},{"$f":"LEFT(Template!D689,6)","v":""},{"$f":"LEFT(Template!E689,2)","v":""},{"$f":"LEFT(Template!F689,3)","v":""},{"$f":"LEFT(Template!G689,10)","v":""},{"$f":"LEFT(Template!H689,6)","v":""},{"$f":"LEFT(Template!I689,4)","v":""},{"$f":"LEFT(Template!J689,6)","v":""},{"$f":"LEFT(Template!K689,6)","v":""},{"$f":"LEFT(Template!L689,3)","v":""},{"$f":"IF(Template!M689=\"\",\"\",Template!M689)","v":""},{"$f":"IF(Template!N689=\"\",\"\",Template!N689)","v":""},null,null,null,null,null,{"$f":"IF(Template!O689=\"\",\"\",Template!O689)","v":""}]
[{"$f":"LEFT(Template!A690,4)","v":""},{"$f":"LEFT(Template!B690,5)","v":""},{"$f":"LEFT(Template!C690,7)","v":""},{"$f":"LEFT(Template!D690,6)","v":""},{"$f":"LEFT(Template!E690,2)","v":""},{"$f":"LEFT(Template!F690,3)","v":""},{"$f":"LEFT(Template!G690,10)","v":""},{"$f":"LEFT(Template!H690,6)","v":""},{"$f":"LEFT(Template!I690,4)","v":""},{"$f":"LEFT(Template!J690,6)","v":""},{"$f":"LEFT(Template!K690,6)","v":""},{"$f":"LEFT(Template!L690,3)","v":""},{"$f":"IF(Template!M690=\"\",\"\",Template!M690)","v":""},{"$f":"IF(Template!N690=\"\",\"\",Template!N690)","v":""},null,null,null,null,null,{"$f":"IF(Template!O690=\"\",\"\",Template!O690)","v":""}]
[{"$f":"LEFT(Template!A691,4)","v":""},{"$f":"LEFT(Template!B691,5)","v":""},{"$f":"LEFT(Template!C691,7)","v":""},{"$f":"LEFT(Template!D691,6)","v":""},{"$f":"LEFT(Template!E691,2)","v":""},{"$f":"LEFT(Template!F691,3)","v":""},{"$f":"LEFT(Template!G691,10)","v":""},{"$f":"LEFT(Template!H691,6)","v":""},{"$f":"LEFT(Template!I691,4)","v":""},{"$f":"LEFT(Template!J691,6)","v":""},{"$f":"LEFT(Template!K691,6)","v":""},{"$f":"LEFT(Template!L691,3)","v":""},{"$f":"IF(Template!M691=\"\",\"\",Template!M691)","v":""},{"$f":"IF(Template!N691=\"\",\"\",Template!N691)","v":""},null,null,null,null,null,{"$f":"IF(Template!O691=\"\",\"\",Template!O691)","v":""}]
[{"$f":"LEFT(Template!A692,4)","v":""},{"$f":"LEFT(Template!B692,5)","v":""},{"$f":"LEFT(Template!C692,7)","v":""},{"$f":"LEFT(Template!D692,6)","v":""},{"$f":"LEFT(Template!E692,2)","v":""},{"$f":"LEFT(Template!F692,3)","v":""},{"$f":"LEFT(Template!G692,10)","v":""},{"$f":"LEFT(Template!H692,6)","v":""},{"$f":"LEFT(Template!I692,4)","v":""},{"$f":"LEFT(Template!J692,6)","v":""},{"$f":"LEFT(Template!K692,6)","v":""},{"$f":"LEFT(Template!L692,3)","v":""},{"$f":"IF(Template!M692=\"\",\"\",Template!M692)","v":""},{"$f":"IF(Template!N692=\"\",\"\",Template!N692)","v":""},null,null,null,null,null,{"$f":"IF(Template!O692=\"\",\"\",Template!O692)","v":""}]
[{"$f":"LEFT(Template!A693,4)","v":""},{"$f":"LEFT(Template!B693,5)","v":""},{"$f":"LEFT(Template!C693,7)","v":""},{"$f":"LEFT(Template!D693,6)","v":""},{"$f":"LEFT(Template!E693,2)","v":""},{"$f":"LEFT(Template!F693,3)","v":""},{"$f":"LEFT(Template!G693,10)","v":""},{"$f":"LEFT(Template!H693,6)","v":""},{"$f":"LEFT(Template!I693,4)","v":""},{"$f":"LEFT(Template!J693,6)","v":""},{"$f":"LEFT(Template!K693,6)","v":""},{"$f":"LEFT(Template!L693,3)","v":""},{"$f":"IF(Template!M693=\"\",\"\",Template!M693)","v":""},{"$f":"IF(Template!N693=\"\",\"\",Template!N693)","v":""},null,null,null,null,null,{"$f":"IF(Template!O693=\"\",\"\",Template!O693)","v":""}]
[{"$f":"LEFT(Template!A694,4)","v":""},{"$f":"LEFT(Template!B694,5)","v":""},{"$f":"LEFT(Template!C694,7)","v":""},{"$f":"LEFT(Template!D694,6)","v":""},{"$f":"LEFT(Template!E694,2)","v":""},{"$f":"LEFT(Template!F694,3)","v":""},{"$f":"LEFT(Template!G694,10)","v":""},{"$f":"LEFT(Template!H694,6)","v":""},{"$f":"LEFT(Template!I694,4)","v":""},{"$f":"LEFT(Template!J694,6)","v":""},{"$f":"LEFT(Template!K694,6)","v":""},{"$f":"LEFT(Template!L694,3)","v":""},{"$f":"IF(Template!M694=\"\",\"\",Template!M694)","v":""},{"$f":"IF(Template!N694=\"\",\"\",Template!N694)","v":""},null,null,null,null,null,{"$f":"IF(Template!O694=\"\",\"\",Template!O694)","v":""}]
[{"$f":"LEFT(Template!A695,4)","v":""},{"$f":"LEFT(Template!B695,5)","v":""},{"$f":"LEFT(Template!C695,7)","v":""},{"$f":"LEFT(Template!D695,6)","v":""},{"$f":"LEFT(Template!E695,2)","v":""},{"$f":"LEFT(Template!F695,3)","v":""},{"$f":"LEFT(Template!G695,10)","v":""},{"$f":"LEFT(Template!H695,6)","v":""},{"$f":"LEFT(Template!I695,4)","v":""},{"$f":"LEFT(Template!J695,6)","v":""},{"$f":"LEFT(Template!K695,6)","v":""},{"$f":"LEFT(Template!L695,3)","v":""},{"$f":"IF(Template!M695=\"\",\"\",Template!M695)","v":""},{"$f":"IF(Template!N695=\"\",\"\",Template!N695)","v":""},null,null,null,null,null,{"$f":"IF(Template!O695=\"\",\"\",Template!O695)","v":""}]
[{"$f":"LEFT(Template!A696,4)","v":""},{"$f":"LEFT(Template!B696,5)","v":""},{"$f":"LEFT(Template!C696,7)","v":""},{"$f":"LEFT(Template!D696,6)","v":""},{"$f":"LEFT(Template!E696,2)","v":""},{"$f":"LEFT(Template!F696,3)","v":""},{"$f":"LEFT(Template!G696,10)","v":""},{"$f":"LEFT(Template!H696,6)","v":""},{"$f":"LEFT(Template!I696,4)","v":""},{"$f":"LEFT(Template!J696,6)","v":""},{"$f":"LEFT(Template!K696,6)","v":""},{"$f":"LEFT(Template!L696,3)","v":""},{"$f":"IF(Template!M696=\"\",\"\",Template!M696)","v":""},{"$f":"IF(Template!N696=\"\",\"\",Template!N696)","v":""},null,null,null,null,null,{"$f":"IF(Template!O696=\"\",\"\",Template!O696)","v":""}]
[{"$f":"LEFT(Template!A697,4)","v":""},{"$f":"LEFT(Template!B697,5)","v":""},{"$f":"LEFT(Template!C697,7)","v":""},{"$f":"LEFT(Template!D697,6)","v":""},{"$f":"LEFT(Template!E697,2)","v":""},{"$f":"LEFT(Template!F697,3)","v":""},{"$f":"LEFT(Template!G697,10)","v":""},{"$f":"LEFT(Template!H697,6)","v":""},{"$f":"LEFT(Template!I697,4)","v":""},{"$f":"LEFT(Template!J697,6)","v":""},{"$f":"LEFT(Template!K697,6)","v":""},{"$f":"LEFT(Template!L697,3)","v":""},{"$f":"IF(Template!M697=\"\",\"\",Template!M697)","v":""},{"$f":"IF(Template!N697=\"\",\"\",Template!N697)","v":""},null,null,null,null,null,{"$f":"IF(Template!O697=\"\",\"\",Template!O697)","v":""}]
[{"$f":"LEFT(Template!A698,4)","v":""},{"$f":"LEFT(Template!B698,5)","v":""},{"$f":"LEFT(Template!C698,7)","v":""},{"$f":"LEFT(Template!D698,6)","v":""},{"$f":"LEFT(Template!E698,2)","v":""},{"$f":"LEFT(Template!F698,3)","v":""},{"$f":"LEFT(Template!G698,10)","v":""},{"$f":"LEFT(Template!H698,6)","v":""},{"$f":"LEFT(Template!I698,4)","v":""},{"$f":"LEFT(Template!J698,6)","v":""},{"$f":"LEFT(Template!K698,6)","v":""},{"$f":"LEFT(Template!L698,3)","v":""},{"$f":"IF(Template!M698=\"\",\"\",Template!M698)","v":""},{"$f":"IF(Template!N698=\"\",\"\",Template!N698)","v":""},null,null,null,null,null,{"$f":"IF(Template!O698=\"\",\"\",Template!O698)","v":""}]
[{"$f":"LEFT(Template!A699,4)","v":""},{"$f":"LEFT(Template!B699,5)","v":""},{"$f":"LEFT(Template!C699,7)","v":""},{"$f":"LEFT(Template!D699,6)","v":""},{"$f":"LEFT(Template!E699,2)","v":""},{"$f":"LEFT(Template!F699,3)","v":""},{"$f":"LEFT(Template!G699,10)","v":""},{"$f":"LEFT(Template!H699,6)","v":""},{"$f":"LEFT(Template!I699,4)","v":""},{"$f":"LEFT(Template!J699,6)","v":""},{"$f":"LEFT(Template!K699,6)","v":""},{"$f":"LEFT(Template!L699,3)","v":""},{"$f":"IF(Template!M699=\"\",\"\",Template!M699)","v":""},{"$f":"IF(Template!N699=\"\",\"\",Template!N699)","v":""},null,null,null,null,null,{"$f":"IF(Template!O699=\"\",\"\",Template!O699)","v":""}]
[{"$f":"LEFT(Template!A700,4)","v":""},{"$f":"LEFT(Template!B700,5)","v":""},{"$f":"LEFT(Template!C700,7)","v":""},{"$f":"LEFT(Template!D700,6)","v":""},{"$f":"LEFT(Template!E700,2)","v":""},{"$f":"LEFT(Template!F700,3)","v":""},{"$f":"LEFT(Template!G700,10)","v":""},{"$f":"LEFT(Template!H700,6)","v":""},{"$f":"LEFT(Template!I700,4)","v":""},{"$f":"LEFT(Template!J700,6)","v":""},{"$f":"LEFT(Template!K700,6)","v":""},{"$f":"LEFT(Template!L700,3)","v":""},{"$f":"IF(Template!M700=\"\",\"\",Template!M700)","v":""},{"$f":"IF(Template!N700=\"\",\"\",Template!N700)","v":""},null,null,null,null,null,{"$f":"IF(Template!O700=\"\",\"\",Template!O700)","v":""}]
[{"$f":"LEFT(Template!A701,4)","v":""},{"$f":"LEFT(Template!B701,5)","v":""},{"$f":"LEFT(Template!C701,7)","v":""},{"$f":"LEFT(Template!D701,6)","v":""},{"$f":"LEFT(Template!E701,2)","v":""},{"$f":"LEFT(Template!F701,3)","v":""},{"$f":"LEFT(Template!G701,10)","v":""},{"$f":"LEFT(Template!H701,6)","v":""},{"$f":"LEFT(Template!I701,4)","v":""},{"$f":"LEFT(Template!J701,6)","v":""},{"$f":"LEFT(Template!K701,6)","v":""},{"$f":"LEFT(Template!L701,3)","v":""},{"$f":"IF(Template!M701=\"\",\"\",Template!M701)","v":""},{"$f":"IF(Template!N701=\"\",\"\",Template!N701)","v":""},null,null,null,null,null,{"$f":"IF(Template!O701=\"\",\"\",Template!O701)","v":""}]
[{"$f":"LEFT(Template!A702,4)","v":""},{"$f":"LEFT(Template!B702,5)","v":""},{"$f":"LEFT(Template!C702,7)","v":""},{"$f":"LEFT(Template!D702,6)","v":""},{"$f":"LEFT(Template!E702,2)","v":""},{"$f":"LEFT(Template!F702,3)","v":""},{"$f":"LEFT(Template!G702,10)","v":""},{"$f":"LEFT(Template!H702,6)","v":""},{"$f":"LEFT(Template!I702,4)","v":""},{"$f":"LEFT(Template!J702,6)","v":""},{"$f":"LEFT(Template!K702,6)","v":""},{"$f":"LEFT(Template!L702,3)","v":""},{"$f":"IF(Template!M702=\"\",\"\",Template!M702)","v":""},{"$f":"IF(Template!N702=\"\",\"\",Template!N702)","v":""},null,null,null,null,null,{"$f":"IF(Template!O702=\"\",\"\",Template!O702)","v":""}]
[{"$f":"LEFT(Template!A703,4)","v":""},{"$f":"LEFT(Template!B703,5)","v":""},{"$f":"LEFT(Template!C703,7)","v":""},{"$f":"LEFT(Template!D703,6)","v":""},{"$f":"LEFT(Template!E703,2)","v":""},{"$f":"LEFT(Template!F703,3)","v":""},{"$f":"LEFT(Template!G703,10)","v":""},{"$f":"LEFT(Template!H703,6)","v":""},{"$f":"LEFT(Template!I703,4)","v":""},{"$f":"LEFT(Template!J703,6)","v":""},{"$f":"LEFT(Template!K703,6)","v":""},{"$f":"LEFT(Template!L703,3)","v":""},{"$f":"IF(Template!M703=\"\",\"\",Template!M703)","v":""},{"$f":"IF(Template!N703=\"\",\"\",Template!N703)","v":""},null,null,null,null,null,{"$f":"IF(Template!O703=\"\",\"\",Template!O703)","v":""}]
[{"$f":"LEFT(Template!A704,4)","v":""},{"$f":"LEFT(Template!B704,5)","v":""},{"$f":"LEFT(Template!C704,7)","v":""},{"$f":"LEFT(Template!D704,6)","v":""},{"$f":"LEFT(Template!E704,2)","v":""},{"$f":"LEFT(Template!F704,3)","v":""},{"$f":"LEFT(Template!G704,10)","v":""},{"$f":"LEFT(Template!H704,6)","v":""},{"$f":"LEFT(Template!I704,4)","v":""},{"$f":"LEFT(Template!J704,6)","v":""},{"$f":"LEFT(Template!K704,6)","v":""},{"$f":"LEFT(Template!L704,3)","v":""},{"$f":"IF(Template!M704=\"\",\"\",Template!M704)","v":""},{"$f":"IF(Template!N704=\"\",\"\",Template!N704)","v":""},null,null,null,null,null,{"$f":"IF(Template!O704=\"\",\"\",Template!O704)","v":""}]
[{"$f":"LEFT(Template!A705,4)","v":""},{"$f":"LEFT(Template!B705,5)","v":""},{"$f":"LEFT(Template!C705,7)","v":""},{"$f":"LEFT(Template!D705,6)","v":""},{"$f":"LEFT(Template!E705,2)","v":""},{"$f":"LEFT(Template!F705,3)","v":""},{"$f":"LEFT(Template!G705,10)","v":""},{"$f":"LEFT(Template!H705,6)","v":""},{"$f":"LEFT(Template!I705,4)","v":""},{"$f":"LEFT(Template!J705,6)","v":""},{"$f":"LEFT(Template!K705,6)","v":""},{"$f":"LEFT(Template!L705,3)","v":""},{"$f":"IF(Template!M705=\"\",\"\",Template!M705)","v":""},{"$f":"IF(Template!N705=\"\",\"\",Template!N705)","v":""},null,null,null,null,null,{"$f":"IF(Template!O705=\"\",\"\",Template!O705)","v":""}]
[{"$f":"LEFT(Template!A706,4)","v":""},{"$f":"LEFT(Template!B706,5)","v":""},{"$f":"LEFT(Template!C706,7)","v":""},{"$f":"LEFT(Template!D706,6)","v":""},{"$f":"LEFT(Template!E706,2)","v":""},{"$f":"LEFT(Template!F706,3)","v":""},{"$f":"LEFT(Template!G706,10)","v":""},{"$f":"LEFT(Template!H706,6)","v":""},{"$f":"LEFT(Template!I706,4)","v":""},{"$f":"LEFT(Template!J706,6)","v":""},{"$f":"LEFT(Template!K706,6)","v":""},{"$f":"LEFT(Template!L706,3)","v":""},{"$f":"IF(Template!M706=\"\",\"\",Template!M706)","v":""},{"$f":"IF(Template!N706=\"\",\"\",Template!N706)","v":""},null,null,null,null,null,{"$f":"IF(Template!O706=\"\",\"\",Template!O706)","v":""}]
[{"$f":"LEFT(Template!A707,4)","v":""},{"$f":"LEFT(Template!B707,5)","v":""},{"$f":"LEFT(Template!C707,7)","v":""},{"$f":"LEFT(Template!D707,6)","v":""},{"$f":"LEFT(Template!E707,2)","v":""},{"$f":"LEFT(Template!F707,3)","v":""},{"$f":"LEFT(Template!G707,10)","v":""},{"$f":"LEFT(Template!H707,6)","v":""},{"$f":"LEFT(Template!I707,4)","v":""},{"$f":"LEFT(Template!J707,6)","v":""},{"$f":"LEFT(Template!K707,6)","v":""},{"$f":"LEFT(Template!L707,3)","v":""},{"$f":"IF(Template!M707=\"\",\"\",Template!M707)","v":""},{"$f":"IF(Template!N707=\"\",\"\",Template!N707)","v":""},null,null,null,null,null,{"$f":"IF(Template!O707=\"\",\"\",Template!O707)","v":""}]
[{"$f":"LEFT(Template!A708,4)","v":""},{"$f":"LEFT(Template!B708,5)","v":""},{"$f":"LEFT(Template!C708,7)","v":""},{"$f":"LEFT(Template!D708,6)","v":""},{"$f":"LEFT(Template!E708,2)","v":""},{"$f":"LEFT(Template!F708,3)","v":""},{"$f":"LEFT(Template!G708,10)","v":""},{"$f":"LEFT(Template!H708,6)","v":""},{"$f":"LEFT(Template!I708,4)","v":""},{"$f":"LEFT(Template!J708,6)","v":""},{"$f":"LEFT(Template!K708,6)","v":""},{"$f":"LEFT(Template!L708,3)","v":""},{"$f":"IF(Template!M708=\"\",\"\",Template!M708)","v":""},{"$f":"IF(Template!N708=\"\",\"\",Template!N708)","v":""},null,null,null,null,null,{"$f":"IF(Template!O708=\"\",\"\",Template!O708)","v":""}]
[{"$f":"LEFT(Template!A709,4)","v":""},{"$f":"LEFT(Template!B709,5)","v":""},{"$f":"LEFT(Template!C709,7)","v":""},{"$f":"LEFT(Template!D709,6)","v":""},{"$f":"LEFT(Template!E709,2)","v":""},{"$f":"LEFT(Template!F709,3)","v":""},{"$f":"LEFT(Template!G709,10)","v":""},{"$f":"LEFT(Template!H709,6)","v":""},{"$f":"LEFT(Template!I709,4)","v":""},{"$f":"LEFT(Template!J709,6)","v":""},{"$f":"LEFT(Template!K709,6)","v":""},{"$f":"LEFT(Template!L709,3)","v":""},{"$f":"IF(Template!M709=\"\",\"\",Template!M709)","v":""},{"$f":"IF(Template!N709=\"\",\"\",Template!N709)","v":""},null,null,null,null,null,{"$f":"IF(Template!O709=\"\",\"\",Template!O709)","v":""}]
[{"$f":"LEFT(Template!A710,4)","v":""},{"$f":"LEFT(Template!B710,5)","v":""},{"$f":"LEFT(Template!C710,7)","v":""},{"$f":"LEFT(Template!D710,6)","v":""},{"$f":"LEFT(Template!E710,2)","v":""},{"$f":"LEFT(Template!F710,3)","v":""},{"$f":"LEFT(Template!G710,10)","v":""},{"$f":"LEFT(Template!H710,6)","v":""},{"$f":"LEFT(Template!I710,4)","v":""},{"$f":"LEFT(Template!J710,6)","v":""},{"$f":"LEFT(Template!K710,6)","v":""},{"$f":"LEFT(Template!L710,3)","v":""},{"$f":"IF(Template!M710=\"\",\"\",Template!M710)","v":""},{"$f":"IF(Template!N710=\"\",\"\",Template!N710)","v":""},null,null,null,null,null,{"$f":"IF(Template!O710=\"\",\"\",Template!O710)","v":""}]
[{"$f":"LEFT(Template!A711,4)","v":""},{"$f":"LEFT(Template!B711,5)","v":""},{"$f":"LEFT(Template!C711,7)","v":""},{"$f":"LEFT(Template!D711,6)","v":""},{"$f":"LEFT(Template!E711,2)","v":""},{"$f":"LEFT(Template!F711,3)","v":""},{"$f":"LEFT(Template!G711,10)","v":""},{"$f":"LEFT(Template!H711,6)","v":""},{"$f":"LEFT(Template!I711,4)","v":""},{"$f":"LEFT(Template!J711,6)","v":""},{"$f":"LEFT(Template!K711,6)","v":""},{"$f":"LEFT(Template!L711,3)","v":""},{"$f":"IF(Template!M711=\"\",\"\",Template!M711)","v":""},{"$f":"IF(Template!N711=\"\",\"\",Template!N711)","v":""},null,null,null,null,null,{"$f":"IF(Template!O711=\"\",\"\",Template!O711)","v":""}]
[{"$f":"LEFT(Template!A712,4)","v":""},{"$f":"LEFT(Template!B712,5)","v":""},{"$f":"LEFT(Template!C712,7)","v":""},{"$f":"LEFT(Template!D712,6)","v":""},{"$f":"LEFT(Template!E712,2)","v":""},{"$f":"LEFT(Template!F712,3)","v":""},{"$f":"LEFT(Template!G712,10)","v":""},{"$f":"LEFT(Template!H712,6)","v":""},{"$f":"LEFT(Template!I712,4)","v":""},{"$f":"LEFT(Template!J712,6)","v":""},{"$f":"LEFT(Template!K712,6)","v":""},{"$f":"LEFT(Template!L712,3)","v":""},{"$f":"IF(Template!M712=\"\",\"\",Template!M712)","v":""},{"$f":"IF(Template!N712=\"\",\"\",Template!N712)","v":""},null,null,null,null,null,{"$f":"IF(Template!O712=\"\",\"\",Template!O712)","v":""}]
[{"$f":"LEFT(Template!A713,4)","v":""},{"$f":"LEFT(Template!B713,5)","v":""},{"$f":"LEFT(Template!C713,7)","v":""},{"$f":"LEFT(Template!D713,6)","v":""},{"$f":"LEFT(Template!E713,2)","v":""},{"$f":"LEFT(Template!F713,3)","v":""},{"$f":"LEFT(Template!G713,10)","v":""},{"$f":"LEFT(Template!H713,6)","v":""},{"$f":"LEFT(Template!I713,4)","v":""},{"$f":"LEFT(Template!J713,6)","v":""},{"$f":"LEFT(Template!K713,6)","v":""},{"$f":"LEFT(Template!L713,3)","v":""},{"$f":"IF(Template!M713=\"\",\"\",Template!M713)","v":""},{"$f":"IF(Template!N713=\"\",\"\",Template!N713)","v":""},null,null,null,null,null,{"$f":"IF(Template!O713=\"\",\"\",Template!O713)","v":""}]
[{"$f":"LEFT(Template!A714,4)","v":""},{"$f":"LEFT(Template!B714,5)","v":""},{"$f":"LEFT(Template!C714,7)","v":""},{"$f":"LEFT(Template!D714,6)","v":""},{"$f":"LEFT(Template!E714,2)","v":""},{"$f":"LEFT(Template!F714,3)","v":""},{"$f":"LEFT(Template!G714,10)","v":""},{"$f":"LEFT(Template!H714,6)","v":""},{"$f":"LEFT(Template!I714,4)","v":""},{"$f":"LEFT(Template!J714,6)","v":""},{"$f":"LEFT(Template!K714,6)","v":""},{"$f":"LEFT(Template!L714,3)","v":""},{"$f":"IF(Template!M714=\"\",\"\",Template!M714)","v":""},{"$f":"IF(Template!N714=\"\",\"\",Template!N714)","v":""},null,null,null,null,null,{"$f":"IF(Template!O714=\"\",\"\",Template!O714)","v":""}]
[{"$f":"LEFT(Template!A715,4)","v":""},{"$f":"LEFT(Template!B715,5)","v":""},{"$f":"LEFT(Template!C715,7)","v":""},{"$f":"LEFT(Template!D715,6)","v":""},{"$f":"LEFT(Template!E715,2)","v":""},{"$f":"LEFT(Template!F715,3)","v":""},{"$f":"LEFT(Template!G715,10)","v":""},{"$f":"LEFT(Template!H715,6)","v":""},{"$f":"LEFT(Template!I715,4)","v":""},{"$f":"LEFT(Template!J715,6)","v":""},{"$f":"LEFT(Template!K715,6)","v":""},{"$f":"LEFT(Template!L715,3)","v":""},{"$f":"IF(Template!M715=\"\",\"\",Template!M715)","v":""},{"$f":"IF(Template!N715=\"\",\"\",Template!N715)","v":""},null,null,null,null,null,{"$f":"IF(Template!O715=\"\",\"\",Template!O715)","v":""}]
[{"$f":"LEFT(Template!A716,4)","v":""},{"$f":"LEFT(Template!B716,5)","v":""},{"$f":"LEFT(Template!C716,7)","v":""},{"$f":"LEFT(Template!D716,6)","v":""},{"$f":"LEFT(Template!E716,2)","v":""},{"$f":"LEFT(Template!F716,3)","v":""},{"$f":"LEFT(Template!G716,10)","v":""},{"$f":"LEFT(Template!H716,6)","v":""},{"$f":"LEFT(Template!I716,4)","v":""},{"$f":"LEFT(Template!J716,6)","v":""},{"$f":"LEFT(Template!K716,6)","v":""},{"$f":"LEFT(Template!L716,3)","v":""},{"$f":"IF(Template!M716=\"\",\"\",Template!M716)","v":""},{"$f":"IF(Template!N716=\"\",\"\",Template!N716)","v":""},null,null,null,null,null,{"$f":"IF(Template!O716=\"\",\"\",Template!O716)","v":""}]
[{"$f":"LEFT(Template!A717,4)","v":""},{"$f":"LEFT(Template!B717,5)","v":""},{"$f":"LEFT(Template!C717,7)","v":""},{"$f":"LEFT(Template!D717,6)","v":""},{"$f":"LEFT(Template!E717,2)","v":""},{"$f":"LEFT(Template!F717,3)","v":""},{"$f":"LEFT(Template!G717,10)","v":""},{"$f":"LEFT(Template!H717,6)","v":""},{"$f":"LEFT(Template!I717,4)","v":""},{"$f":"LEFT(Template!J717,6)","v":""},{"$f":"LEFT(Template!K717,6)","v":""},{"$f":"LEFT(Template!L717,3)","v":""},{"$f":"IF(Template!M717=\"\",\"\",Template!M717)","v":""},{"$f":"IF(Template!N717=\"\",\"\",Template!N717)","v":""},null,null,null,null,null,{"$f":"IF(Template!O717=\"\",\"\",Template!O717)","v":""}]
[{"$f":"LEFT(Template!A718,4)","v":""},{"$f":"LEFT(Template!B718,5)","v":""},{"$f":"LEFT(Template!C718,7)","v":""},{"$f":"LEFT(Template!D718,6)","v":""},{"$f":"LEFT(Template!E718,2)","v":""},{"$f":"LEFT(Template!F718,3)","v":""},{"$f":"LEFT(Template!G718,10)","v":""},{"$f":"LEFT(Template!H718,6)","v":""},{"$f":"LEFT(Template!I718,4)","v":""},{"$f":"LEFT(Template!J718,6)","v":""},{"$f":"LEFT(Template!K718,6)","v":""},{"$f":"LEFT(Template!L718,3)","v":""},{"$f":"IF(Template!M718=\"\",\"\",Template!M718)","v":""},{"$f":"IF(Template!N718=\"\",\"\",Template!N718)","v":""},null,null,null,null,null,{"$f":"IF(Template!O718=\"\",\"\",Template!O718)","v":""}]
[{"$f":"LEFT(Template!A719,4)","v":""},{"$f":"LEFT(Template!B719,5)","v":""},{"$f":"LEFT(Template!C719,7)","v":""},{"$f":"LEFT(Template!D719,6)","v":""},{"$f":"LEFT(Template!E719,2)","v":""},{"$f":"LEFT(Template!F719,3)","v":""},{"$f":"LEFT(Template!G719,10)","v":""},{"$f":"LEFT(Template!H719,6)","v":""},{"$f":"LEFT(Template!I719,4)","v":""},{"$f":"LEFT(Template!J719,6)","v":""},{"$f":"LEFT(Template!K719,6)","v":""},{"$f":"LEFT(Template!L719,3)","v":""},{"$f":"IF(Template!M719=\"\",\"\",Template!M719)","v":""},{"$f":"IF(Template!N719=\"\",\"\",Template!N719)","v":""},null,null,null,null,null,{"$f":"IF(Template!O719=\"\",\"\",Template!O719)","v":""}]
[{"$f":"LEFT(Template!A720,4)","v":""},{"$f":"LEFT(Template!B720,5)","v":""},{"$f":"LEFT(Template!C720,7)","v":""},{"$f":"LEFT(Template!D720,6)","v":""},{"$f":"LEFT(Template!E720,2)","v":""},{"$f":"LEFT(Template!F720,3)","v":""},{"$f":"LEFT(Template!G720,10)","v":""},{"$f":"LEFT(Template!H720,6)","v":""},{"$f":"LEFT(Template!I720,4)","v":""},{"$f":"LEFT(Template!J720,6)","v":""},{"$f":"LEFT(Template!K720,6)","v":""},{"$f":"LEFT(Template!L720,3)","v":""},{"$f":"IF(Template!M720=\"\",\"\",Template!M720)","v":""},{"$f":"IF(Template!N720=\"\",\"\",Template!N720)","v":""},null,null,null,null,null,{"$f":"IF(Template!O720=\"\",\"\",Template!O720)","v":""}]
[{"$f":"LEFT(Template!A721,4)","v":""},{"$f":"LEFT(Template!B721,5)","v":""},{"$f":"LEFT(Template!C721,7)","v":""},{"$f":"LEFT(Template!D721,6)","v":""},{"$f":"LEFT(Template!E721,2)","v":""},{"$f":"LEFT(Template!F721,3)","v":""},{"$f":"LEFT(Template!G721,10)","v":""},{"$f":"LEFT(Template!H721,6)","v":""},{"$f":"LEFT(Template!I721,4)","v":""},{"$f":"LEFT(Template!J721,6)","v":""},{"$f":"LEFT(Template!K721,6)","v":""},{"$f":"LEFT(Template!L721,3)","v":""},{"$f":"IF(Template!M721=\"\",\"\",Template!M721)","v":""},{"$f":"IF(Template!N721=\"\",\"\",Template!N721)","v":""},null,null,null,null,null,{"$f":"IF(Template!O721=\"\",\"\",Template!O721)","v":""}]
[{"$f":"LEFT(Template!A722,4)","v":""},{"$f":"LEFT(Template!B722,5)","v":""},{"$f":"LEFT(Template!C722,7)","v":""},{"$f":"LEFT(Template!D722,6)","v":""},{"$f":"LEFT(Template!E722,2)","v":""},{"$f":"LEFT(Template!F722,3)","v":""},{"$f":"LEFT(Template!G722,10)","v":""},{"$f":"LEFT(Template!H722,6)","v":""},{"$f":"LEFT(Template!I722,4)","v":""},{"$f":"LEFT(Template!J722,6)","v":""},{"$f":"LEFT(Template!K722,6)","v":""},{"$f":"LEFT(Template!L722,3)","v":""},{"$f":"IF(Template!M722=\"\",\"\",Template!M722)","v":""},{"$f":"IF(Template!N722=\"\",\"\",Template!N722)","v":""},null,null,null,null,null,{"$f":"IF(Template!O722=\"\",\"\",Template!O722)","v":""}]
[{"$f":"LEFT(Template!A723,4)","v":""},{"$f":"LEFT(Template!B723,5)","v":""},{"$f":"LEFT(Template!C723,7)","v":""},{"$f":"LEFT(Template!D723,6)","v":""},{"$f":"LEFT(Template!E723,2)","v":""},{"$f":"LEFT(Template!F723,3)","v":""},{"$f":"LEFT(Template!G723,10)","v":""},{"$f":"LEFT(Template!H723,6)","v":""},{"$f":"LEFT(Template!I723,4)","v":""},{"$f":"LEFT(Template!J723,6)","v":""},{"$f":"LEFT(Template!K723,6)","v":""},{"$f":"LEFT(Template!L723,3)","v":""},{"$f":"IF(Template!M723=\"\",\"\",Template!M723)","v":""},{"$f":"IF(Template!N723=\"\",\"\",Template!N723)","v":""},null,null,null,null,null,{"$f":"IF(Template!O723=\"\",\"\",Template!O723)","v":""}]
[{"$f":"LEFT(Template!A724,4)","v":""},{"$f":"LEFT(Template!B724,5)","v":""},{"$f":"LEFT(Template!C724,7)","v":""},{"$f":"LEFT(Template!D724,6)","v":""},{"$f":"LEFT(Template!E724,2)","v":""},{"$f":"LEFT(Template!F724,3)","v":""},{"$f":"LEFT(Template!G724,10)","v":""},{"$f":"LEFT(Template!H724,6)","v":""},{"$f":"LEFT(Template!I724,4)","v":""},{"$f":"LEFT(Template!J724,6)","v":""},{"$f":"LEFT(Template!K724,6)","v":""},{"$f":"LEFT(Template!L724,3)","v":""},{"$f":"IF(Template!M724=\"\",\"\",Template!M724)","v":""},{"$f":"IF(Template!N724=\"\",\"\",Template!N724)","v":""},null,null,null,null,null,{"$f":"IF(Template!O724=\"\",\"\",Template!O724)","v":""}]
[{"$f":"LEFT(Template!A725,4)","v":""},{"$f":"LEFT(Template!B725,5)","v":""},{"$f":"LEFT(Template!C725,7)","v":""},{"$f":"LEFT(Template!D725,6)","v":""},{"$f":"LEFT(Template!E725,2)","v":""},{"$f":"LEFT(Template!F725,3)","v":""},{"$f":"LEFT(Template!G725,10)","v":""},{"$f":"LEFT(Template!H725,6)","v":""},{"$f":"LEFT(Template!I725,4)","v":""},{"$f":"LEFT(Template!J725,6)","v":""},{"$f":"LEFT(Template!K725,6)","v":""},{"$f":"LEFT(Template!L725,3)","v":""},{"$f":"IF(Template!M725=\"\",\"\",Template!M725)","v":""},{"$f":"IF(Template!N725=\"\",\"\",Template!N725)","v":""},null,null,null,null,null,{"$f":"IF(Template!O725=\"\",\"\",Template!O725)","v":""}]
[{"$f":"LEFT(Template!A726,4)","v":""},{"$f":"LEFT(Template!B726,5)","v":""},{"$f":"LEFT(Template!C726,7)","v":""},{"$f":"LEFT(Template!D726,6)","v":""},{"$f":"LEFT(Template!E726,2)","v":""},{"$f":"LEFT(Template!F726,3)","v":""},{"$f":"LEFT(Template!G726,10)","v":""},{"$f":"LEFT(Template!H726,6)","v":""},{"$f":"LEFT(Template!I726,4)","v":""},{"$f":"LEFT(Template!J726,6)","v":""},{"$f":"LEFT(Template!K726,6)","v":""},{"$f":"LEFT(Template!L726,3)","v":""},{"$f":"IF(Template!M726=\"\",\"\",Template!M726)","v":""},{"$f":"IF(Template!N726=\"\",\"\",Template!N726)","v":""},null,null,null,null,null,{"$f":"IF(Template!O726=\"\",\"\",Template!O726)","v":""}]
[{"$f":"LEFT(Template!A727,4)","v":""},{"$f":"LEFT(Template!B727,5)","v":""},{"$f":"LEFT(Template!C727,7)","v":""},{"$f":"LEFT(Template!D727,6)","v":""},{"$f":"LEFT(Template!E727,2)","v":""},{"$f":"LEFT(Template!F727,3)","v":""},{"$f":"LEFT(Template!G727,10)","v":""},{"$f":"LEFT(Template!H727,6)","v":""},{"$f":"LEFT(Template!I727,4)","v":""},{"$f":"LEFT(Template!J727,6)","v":""},{"$f":"LEFT(Template!K727,6)","v":""},{"$f":"LEFT(Template!L727,3)","v":""},{"$f":"IF(Template!M727=\"\",\"\",Template!M727)","v":""},{"$f":"IF(Template!N727=\"\",\"\",Template!N727)","v":""},null,null,null,null,null,{"$f":"IF(Template!O727=\"\",\"\",Template!O727)","v":""}]
[{"$f":"LEFT(Template!A728,4)","v":""},{"$f":"LEFT(Template!B728,5)","v":""},{"$f":"LEFT(Template!C728,7)","v":""},{"$f":"LEFT(Template!D728,6)","v":""},{"$f":"LEFT(Template!E728,2)","v":""},{"$f":"LEFT(Template!F728,3)","v":""},{"$f":"LEFT(Template!G728,10)","v":""},{"$f":"LEFT(Template!H728,6)","v":""},{"$f":"LEFT(Template!I728,4)","v":""},{"$f":"LEFT(Template!J728,6)","v":""},{"$f":"LEFT(Template!K728,6)","v":""},{"$f":"LEFT(Template!L728,3)","v":""},{"$f":"IF(Template!M728=\"\",\"\",Template!M728)","v":""},{"$f":"IF(Template!N728=\"\",\"\",Template!N728)","v":""},null,null,null,null,null,{"$f":"IF(Template!O728=\"\",\"\",Template!O728)","v":""}]
[{"$f":"LEFT(Template!A729,4)","v":""},{"$f":"LEFT(Template!B729,5)","v":""},{"$f":"LEFT(Template!C729,7)","v":""},{"$f":"LEFT(Template!D729,6)","v":""},{"$f":"LEFT(Template!E729,2)","v":""},{"$f":"LEFT(Template!F729,3)","v":""},{"$f":"LEFT(Template!G729,10)","v":""},{"$f":"LEFT(Template!H729,6)","v":""},{"$f":"LEFT(Template!I729,4)","v":""},{"$f":"LEFT(Template!J729,6)","v":""},{"$f":"LEFT(Template!K729,6)","v":""},{"$f":"LEFT(Template!L729,3)","v":""},{"$f":"IF(Template!M729=\"\",\"\",Template!M729)","v":""},{"$f":"IF(Template!N729=\"\",\"\",Template!N729)","v":""},null,null,null,null,null,{"$f":"IF(Template!O729=\"\",\"\",Template!O729)","v":""}]
[{"$f":"LEFT(Template!A730,4)","v":""},{"$f":"LEFT(Template!B730,5)","v":""},{"$f":"LEFT(Template!C730,7)","v":""},{"$f":"LEFT(Template!D730,6)","v":""},{"$f":"LEFT(Template!E730,2)","v":""},{"$f":"LEFT(Template!F730,3)","v":""},{"$f":"LEFT(Template!G730,10)","v":""},{"$f":"LEFT(Template!H730,6)","v":""},{"$f":"LEFT(Template!I730,4)","v":""},{"$f":"LEFT(Template!J730,6)","v":""},{"$f":"LEFT(Template!K730,6)","v":""},{"$f":"LEFT(Template!L730,3)","v":""},{"$f":"IF(Template!M730=\"\",\"\",Template!M730)","v":""},{"$f":"IF(Template!N730=\"\",\"\",Template!N730)","v":""},null,null,null,null,null,{"$f":"IF(Template!O730=\"\",\"\",Template!O730)","v":""}]
[{"$f":"LEFT(Template!A731,4)","v":""},{"$f":"LEFT(Template!B731,5)","v":""},{"$f":"LEFT(Template!C731,7)","v":""},{"$f":"LEFT(Template!D731,6)","v":""},{"$f":"LEFT(Template!E731,2)","v":""},{"$f":"LEFT(Template!F731,3)","v":""},{"$f":"LEFT(Template!G731,10)","v":""},{"$f":"LEFT(Template!H731,6)","v":""},{"$f":"LEFT(Template!I731,4)","v":""},{"$f":"LEFT(Template!J731,6)","v":""},{"$f":"LEFT(Template!K731,6)","v":""},{"$f":"LEFT(Template!L731,3)","v":""},{"$f":"IF(Template!M731=\"\",\"\",Template!M731)","v":""},{"$f":"IF(Template!N731=\"\",\"\",Template!N731)","v":""},null,null,null,null,null,{"$f":"IF(Template!O731=\"\",\"\",Template!O731)","v":""}]
[{"$f":"LEFT(Template!A732,4)","v":""},{"$f":"LEFT(Template!B732,5)","v":""},{"$f":"LEFT(Template!C732,7)","v":""},{"$f":"LEFT(Template!D732,6)","v":""},{"$f":"LEFT(Template!E732,2)","v":""},{"$f":"LEFT(Template!F732,3)","v":""},{"$f":"LEFT(Template!G732,10)","v":""},{"$f":"LEFT(Template!H732,6)","v":""},{"$f":"LEFT(Template!I732,4)","v":""},{"$f":"LEFT(Template!J732,6)","v":""},{"$f":"LEFT(Template!K732,6)","v":""},{"$f":"LEFT(Template!L732,3)","v":""},{"$f":"IF(Template!M732=\"\",\"\",Template!M732)","v":""},{"$f":"IF(Template!N732=\"\",\"\",Template!N732)","v":""},null,null,null,null,null,{"$f":"IF(Template!O732=\"\",\"\",Template!O732)","v":""}]
[{"$f":"LEFT(Template!A733,4)","v":""},{"$f":"LEFT(Template!B733,5)","v":""},{"$f":"LEFT(Template!C733,7)","v":""},{"$f":"LEFT(Template!D733,6)","v":""},{"$f":"LEFT(Template!E733,2)","v":""},{"$f":"LEFT(Template!F733,3)","v":""},{"$f":"LEFT(Template!G733,10)","v":""},{"$f":"LEFT(Template!H733,6)","v":""},{"$f":"LEFT(Template!I733,4)","v":""},{"$f":"LEFT(Template!J733,6)","v":""},{"$f":"LEFT(Template!K733,6)","v":""},{"$f":"LEFT(Template!L733,3)","v":""},{"$f":"IF(Template!M733=\"\",\"\",Template!M733)","v":""},{"$f":"IF(Template!N733=\"\",\"\",Template!N733)","v":""},null,null,null,null,null,{"$f":"IF(Template!O733=\"\",\"\",Template!O733)","v":""}]
[{"$f":"LEFT(Template!A734,4)","v":""},{"$f":"LEFT(Template!B734,5)","v":""},{"$f":"LEFT(Template!C734,7)","v":""},{"$f":"LEFT(Template!D734,6)","v":""},{"$f":"LEFT(Template!E734,2)","v":""},{"$f":"LEFT(Template!F734,3)","v":""},{"$f":"LEFT(Template!G734,10)","v":""},{"$f":"LEFT(Template!H734,6)","v":""},{"$f":"LEFT(Template!I734,4)","v":""},{"$f":"LEFT(Template!J734,6)","v":""},{"$f":"LEFT(Template!K734,6)","v":""},{"$f":"LEFT(Template!L734,3)","v":""},{"$f":"IF(Template!M734=\"\",\"\",Template!M734)","v":""},{"$f":"IF(Template!N734=\"\",\"\",Template!N734)","v":""},null,null,null,null,null,{"$f":"IF(Template!O734=\"\",\"\",Template!O734)","v":""}]
[{"$f":"LEFT(Template!A735,4)","v":""},{"$f":"LEFT(Template!B735,5)","v":""},{"$f":"LEFT(Template!C735,7)","v":""},{"$f":"LEFT(Template!D735,6)","v":""},{"$f":"LEFT(Template!E735,2)","v":""},{"$f":"LEFT(Template!F735,3)","v":""},{"$f":"LEFT(Template!G735,10)","v":""},{"$f":"LEFT(Template!H735,6)","v":""},{"$f":"LEFT(Template!I735,4)","v":""},{"$f":"LEFT(Template!J735,6)","v":""},{"$f":"LEFT(Template!K735,6)","v":""},{"$f":"LEFT(Template!L735,3)","v":""},{"$f":"IF(Template!M735=\"\",\"\",Template!M735)","v":""},{"$f":"IF(Template!N735=\"\",\"\",Template!N735)","v":""},null,null,null,null,null,{"$f":"IF(Template!O735=\"\",\"\",Template!O735)","v":""}]
[{"$f":"LEFT(Template!A736,4)","v":""},{"$f":"LEFT(Template!B736,5)","v":""},{"$f":"LEFT(Template!C736,7)","v":""},{"$f":"LEFT(Template!D736,6)","v":""},{"$f":"LEFT(Template!E736,2)","v":""},{"$f":"LEFT(Template!F736,3)","v":""},{"$f":"LEFT(Template!G736,10)","v":""},{"$f":"LEFT(Template!H736,6)","v":""},{"$f":"LEFT(Template!I736,4)","v":""},{"$f":"LEFT(Template!J736,6)","v":""},{"$f":"LEFT(Template!K736,6)","v":""},{"$f":"LEFT(Template!L736,3)","v":""},{"$f":"IF(Template!M736=\"\",\"\",Template!M736)","v":""},{"$f":"IF(Template!N736=\"\",\"\",Template!N736)","v":""},null,null,null,null,null,{"$f":"IF(Template!O736=\"\",\"\",Template!O736)","v":""}]
[{"$f":"LEFT(Template!A737,4)","v":""},{"$f":"LEFT(Template!B737,5)","v":""},{"$f":"LEFT(Template!C737,7)","v":""},{"$f":"LEFT(Template!D737,6)","v":""},{"$f":"LEFT(Template!E737,2)","v":""},{"$f":"LEFT(Template!F737,3)","v":""},{"$f":"LEFT(Template!G737,10)","v":""},{"$f":"LEFT(Template!H737,6)","v":""},{"$f":"LEFT(Template!I737,4)","v":""},{"$f":"LEFT(Template!J737,6)","v":""},{"$f":"LEFT(Template!K737,6)","v":""},{"$f":"LEFT(Template!L737,3)","v":""},{"$f":"IF(Template!M737=\"\",\"\",Template!M737)","v":""},{"$f":"IF(Template!N737=\"\",\"\",Template!N737)","v":""},null,null,null,null,null,{"$f":"IF(Template!O737=\"\",\"\",Template!O737)","v":""}]
[{"$f":"LEFT(Template!A738,4)","v":""},{"$f":"LEFT(Template!B738,5)","v":""},{"$f":"LEFT(Template!C738,7)","v":""},{"$f":"LEFT(Template!D738,6)","v":""},{"$f":"LEFT(Template!E738,2)","v":""},{"$f":"LEFT(Template!F738,3)","v":""},{"$f":"LEFT(Template!G738,10)","v":""},{"$f":"LEFT(Template!H738,6)","v":""},{"$f":"LEFT(Template!I738,4)","v":""},{"$f":"LEFT(Template!J738,6)","v":""},{"$f":"LEFT(Template!K738,6)","v":""},{"$f":"LEFT(Template!L738,3)","v":""},{"$f":"IF(Template!M738=\"\",\"\",Template!M738)","v":""},{"$f":"IF(Template!N738=\"\",\"\",Template!N738)","v":""},null,null,null,null,null,{"$f":"IF(Template!O738=\"\",\"\",Template!O738)","v":""}]
[{"$f":"LEFT(Template!A739,4)","v":""},{"$f":"LEFT(Template!B739,5)","v":""},{"$f":"LEFT(Template!C739,7)","v":""},{"$f":"LEFT(Template!D739,6)","v":""},{"$f":"LEFT(Template!E739,2)","v":""},{"$f":"LEFT(Template!F739,3)","v":""},{"$f":"LEFT(Template!G739,10)","v":""},{"$f":"LEFT(Template!H739,6)","v":""},{"$f":"LEFT(Template!I739,4)","v":""},{"$f":"LEFT(Template!J739,6)","v":""},{"$f":"LEFT(Template!K739,6)","v":""},{"$f":"LEFT(Template!L739,3)","v":""},{"$f":"IF(Template!M739=\"\",\"\",Template!M739)","v":""},{"$f":"IF(Template!N739=\"\",\"\",Template!N739)","v":""},null,null,null,null,null,{"$f":"IF(Template!O739=\"\",\"\",Template!O739)","v":""}]
[{"$f":"LEFT(Template!A740,4)","v":""},{"$f":"LEFT(Template!B740,5)","v":""},{"$f":"LEFT(Template!C740,7)","v":""},{"$f":"LEFT(Template!D740,6)","v":""},{"$f":"LEFT(Template!E740,2)","v":""},{"$f":"LEFT(Template!F740,3)","v":""},{"$f":"LEFT(Template!G740,10)","v":""},{"$f":"LEFT(Template!H740,6)","v":""},{"$f":"LEFT(Template!I740,4)","v":""},{"$f":"LEFT(Template!J740,6)","v":""},{"$f":"LEFT(Template!K740,6)","v":""},{"$f":"LEFT(Template!L740,3)","v":""},{"$f":"IF(Template!M740=\"\",\"\",Template!M740)","v":""},{"$f":"IF(Template!N740=\"\",\"\",Template!N740)","v":""},null,null,null,null,null,{"$f":"IF(Template!O740=\"\",\"\",Template!O740)","v":""}]
[{"$f":"LEFT(Template!A741,4)","v":""},{"$f":"LEFT(Template!B741,5)","v":""},{"$f":"LEFT(Template!C741,7)","v":""},{"$f":"LEFT(Template!D741,6)","v":""},{"$f":"LEFT(Template!E741,2)","v":""},{"$f":"LEFT(Template!F741,3)","v":""},{"$f":"LEFT(Template!G741,10)","v":""},{"$f":"LEFT(Template!H741,6)","v":""},{"$f":"LEFT(Template!I741,4)","v":""},{"$f":"LEFT(Template!J741,6)","v":""},{"$f":"LEFT(Template!K741,6)","v":""},{"$f":"LEFT(Template!L741,3)","v":""},{"$f":"IF(Template!M741=\"\",\"\",Template!M741)","v":""},{"$f":"IF(Template!N741=\"\",\"\",Template!N741)","v":""},null,null,null,null,null,{"$f":"IF(Template!O741=\"\",\"\",Template!O741)","v":""}]
[{"$f":"LEFT(Template!A742,4)","v":""},{"$f":"LEFT(Template!B742,5)","v":""},{"$f":"LEFT(Template!C742,7)","v":""},{"$f":"LEFT(Template!D742,6)","v":""},{"$f":"LEFT(Template!E742,2)","v":""},{"$f":"LEFT(Template!F742,3)","v":""},{"$f":"LEFT(Template!G742,10)","v":""},{"$f":"LEFT(Template!H742,6)","v":""},{"$f":"LEFT(Template!I742,4)","v":""},{"$f":"LEFT(Template!J742,6)","v":""},{"$f":"LEFT(Template!K742,6)","v":""},{"$f":"LEFT(Template!L742,3)","v":""},{"$f":"IF(Template!M742=\"\",\"\",Template!M742)","v":""},{"$f":"IF(Template!N742=\"\",\"\",Template!N742)","v":""},null,null,null,null,null,{"$f":"IF(Template!O742=\"\",\"\",Template!O742)","v":""}]
[{"$f":"LEFT(Template!A743,4)","v":""},{"$f":"LEFT(Template!B743,5)","v":""},{"$f":"LEFT(Template!C743,7)","v":""},{"$f":"LEFT(Template!D743,6)","v":""},{"$f":"LEFT(Template!E743,2)","v":""},{"$f":"LEFT(Template!F743,3)","v":""},{"$f":"LEFT(Template!G743,10)","v":""},{"$f":"LEFT(Template!H743,6)","v":""},{"$f":"LEFT(Template!I743,4)","v":""},{"$f":"LEFT(Template!J743,6)","v":""},{"$f":"LEFT(Template!K743,6)","v":""},{"$f":"LEFT(Template!L743,3)","v":""},{"$f":"IF(Template!M743=\"\",\"\",Template!M743)","v":""},{"$f":"IF(Template!N743=\"\",\"\",Template!N743)","v":""},null,null,null,null,null,{"$f":"IF(Template!O743=\"\",\"\",Template!O743)","v":""}]
[{"$f":"LEFT(Template!A744,4)","v":""},{"$f":"LEFT(Template!B744,5)","v":""},{"$f":"LEFT(Template!C744,7)","v":""},{"$f":"LEFT(Template!D744,6)","v":""},{"$f":"LEFT(Template!E744,2)","v":""},{"$f":"LEFT(Template!F744,3)","v":""},{"$f":"LEFT(Template!G744,10)","v":""},{"$f":"LEFT(Template!H744,6)","v":""},{"$f":"LEFT(Template!I744,4)","v":""},{"$f":"LEFT(Template!J744,6)","v":""},{"$f":"LEFT(Template!K744,6)","v":""},{"$f":"LEFT(Template!L744,3)","v":""},{"$f":"IF(Template!M744=\"\",\"\",Template!M744)","v":""},{"$f":"IF(Template!N744=\"\",\"\",Template!N744)","v":""},null,null,null,null,null,{"$f":"IF(Template!O744=\"\",\"\",Template!O744)","v":""}]
[{"$f":"LEFT(Template!A745,4)","v":""},{"$f":"LEFT(Template!B745,5)","v":""},{"$f":"LEFT(Template!C745,7)","v":""},{"$f":"LEFT(Template!D745,6)","v":""},{"$f":"LEFT(Template!E745,2)","v":""},{"$f":"LEFT(Template!F745,3)","v":""},{"$f":"LEFT(Template!G745,10)","v":""},{"$f":"LEFT(Template!H745,6)","v":""},{"$f":"LEFT(Template!I745,4)","v":""},{"$f":"LEFT(Template!J745,6)","v":""},{"$f":"LEFT(Template!K745,6)","v":""},{"$f":"LEFT(Template!L745,3)","v":""},{"$f":"IF(Template!M745=\"\",\"\",Template!M745)","v":""},{"$f":"IF(Template!N745=\"\",\"\",Template!N745)","v":""},null,null,null,null,null,{"$f":"IF(Template!O745=\"\",\"\",Template!O745)","v":""}]
[{"$f":"LEFT(Template!A746,4)","v":""},{"$f":"LEFT(Template!B746,5)","v":""},{"$f":"LEFT(Template!C746,7)","v":""},{"$f":"LEFT(Template!D746,6)","v":""},{"$f":"LEFT(Template!E746,2)","v":""},{"$f":"LEFT(Template!F746,3)","v":""},{"$f":"LEFT(Template!G746,10)","v":""},{"$f":"LEFT(Template!H746,6)","v":""},{"$f":"LEFT(Template!I746,4)","v":""},{"$f":"LEFT(Template!J746,6)","v":""},{"$f":"LEFT(Template!K746,6)","v":""},{"$f":"LEFT(Template!L746,3)","v":""},{"$f":"IF(Template!M746=\"\",\"\",Template!M746)","v":""},{"$f":"IF(Template!N746=\"\",\"\",Template!N746)","v":""},null,null,null,null,null,{"$f":"IF(Template!O746=\"\",\"\",Template!O746)","v":""}]
[{"$f":"LEFT(Template!A747,4)","v":""},{"$f":"LEFT(Template!B747,5)","v":""},{"$f":"LEFT(Template!C747,7)","v":""},{"$f":"LEFT(Template!D747,6)","v":""},{"$f":"LEFT(Template!E747,2)","v":""},{"$f":"LEFT(Template!F747,3)","v":""},{"$f":"LEFT(Template!G747,10)","v":""},{"$f":"LEFT(Template!H747,6)","v":""},{"$f":"LEFT(Template!I747,4)","v":""},{"$f":"LEFT(Template!J747,6)","v":""},{"$f":"LEFT(Template!K747,6)","v":""},{"$f":"LEFT(Template!L747,3)","v":""},{"$f":"IF(Template!M747=\"\",\"\",Template!M747)","v":""},{"$f":"IF(Template!N747=\"\",\"\",Template!N747)","v":""},null,null,null,null,null,{"$f":"IF(Template!O747=\"\",\"\",Template!O747)","v":""}]
[{"$f":"LEFT(Template!A748,4)","v":""},{"$f":"LEFT(Template!B748,5)","v":""},{"$f":"LEFT(Template!C748,7)","v":""},{"$f":"LEFT(Template!D748,6)","v":""},{"$f":"LEFT(Template!E748,2)","v":""},{"$f":"LEFT(Template!F748,3)","v":""},{"$f":"LEFT(Template!G748,10)","v":""},{"$f":"LEFT(Template!H748,6)","v":""},{"$f":"LEFT(Template!I748,4)","v":""},{"$f":"LEFT(Template!J748,6)","v":""},{"$f":"LEFT(Template!K748,6)","v":""},{"$f":"LEFT(Template!L748,3)","v":""},{"$f":"IF(Template!M748=\"\",\"\",Template!M748)","v":""},{"$f":"IF(Template!N748=\"\",\"\",Template!N748)","v":""},null,null,null,null,null,{"$f":"IF(Template!O748=\"\",\"\",Template!O748)","v":""}]
[{"$f":"LEFT(Template!A749,4)","v":""},{"$f":"LEFT(Template!B749,5)","v":""},{"$f":"LEFT(Template!C749,7)","v":""},{"$f":"LEFT(Template!D749,6)","v":""},{"$f":"LEFT(Template!E749,2)","v":""},{"$f":"LEFT(Template!F749,3)","v":""},{"$f":"LEFT(Template!G749,10)","v":""},{"$f":"LEFT(Template!H749,6)","v":""},{"$f":"LEFT(Template!I749,4)","v":""},{"$f":"LEFT(Template!J749,6)","v":""},{"$f":"LEFT(Template!K749,6)","v":""},{"$f":"LEFT(Template!L749,3)","v":""},{"$f":"IF(Template!M749=\"\",\"\",Template!M749)","v":""},{"$f":"IF(Template!N749=\"\",\"\",Template!N749)","v":""},null,null,null,null,null,{"$f":"IF(Template!O749=\"\",\"\",Template!O749)","v":""}]
[{"$f":"LEFT(Template!A750,4)","v":""},{"$f":"LEFT(Template!B750,5)","v":""},{"$f":"LEFT(Template!C750,7)","v":""},{"$f":"LEFT(Template!D750,6)","v":""},{"$f":"LEFT(Template!E750,2)","v":""},{"$f":"LEFT(Template!F750,3)","v":""},{"$f":"LEFT(Template!G750,10)","v":""},{"$f":"LEFT(Template!H750,6)","v":""},{"$f":"LEFT(Template!I750,4)","v":""},{"$f":"LEFT(Template!J750,6)","v":""},{"$f":"LEFT(Template!K750,6)","v":""},{"$f":"LEFT(Template!L750,3)","v":""},{"$f":"IF(Template!M750=\"\",\"\",Template!M750)","v":""},{"$f":"IF(Template!N750=\"\",\"\",Template!N750)","v":""},null,null,null,null,null,{"$f":"IF(Template!O750=\"\",\"\",Template!O750)","v":""}]
[{"$f":"LEFT(Template!A751,4)","v":""},{"$f":"LEFT(Template!B751,5)","v":""},{"$f":"LEFT(Template!C751,7)","v":""},{"$f":"LEFT(Template!D751,6)","v":""},{"$f":"LEFT(Template!E751,2)","v":""},{"$f":"LEFT(Template!F751,3)","v":""},{"$f":"LEFT(Template!G751,10)","v":""},{"$f":"LEFT(Template!H751,6)","v":""},{"$f":"LEFT(Template!I751,4)","v":""},{"$f":"LEFT(Template!J751,6)","v":""},{"$f":"LEFT(Template!K751,6)","v":""},{"$f":"LEFT(Template!L751,3)","v":""},{"$f":"IF(Template!M751=\"\",\"\",Template!M751)","v":""},{"$f":"IF(Template!N751=\"\",\"\",Template!N751)","v":""},null,null,null,null,null,{"$f":"IF(Template!O751=\"\",\"\",Template!O751)","v":""}]
[{"$f":"LEFT(Template!A752,4)","v":""},{"$f":"LEFT(Template!B752,5)","v":""},{"$f":"LEFT(Template!C752,7)","v":""},{"$f":"LEFT(Template!D752,6)","v":""},{"$f":"LEFT(Template!E752,2)","v":""},{"$f":"LEFT(Template!F752,3)","v":""},{"$f":"LEFT(Template!G752,10)","v":""},{"$f":"LEFT(Template!H752,6)","v":""},{"$f":"LEFT(Template!I752,4)","v":""},{"$f":"LEFT(Template!J752,6)","v":""},{"$f":"LEFT(Template!K752,6)","v":""},{"$f":"LEFT(Template!L752,3)","v":""},{"$f":"IF(Template!M752=\"\",\"\",Template!M752)","v":""},{"$f":"IF(Template!N752=\"\",\"\",Template!N752)","v":""},null,null,null,null,null,{"$f":"IF(Template!O752=\"\",\"\",Template!O752)","v":""}]
[{"$f":"LEFT(Template!A753,4)","v":""},{"$f":"LEFT(Template!B753,5)","v":""},{"$f":"LEFT(Template!C753,7)","v":""},{"$f":"LEFT(Template!D753,6)","v":""},{"$f":"LEFT(Template!E753,2)","v":""},{"$f":"LEFT(Template!F753,3)","v":""},{"$f":"LEFT(Template!G753,10)","v":""},{"$f":"LEFT(Template!H753,6)","v":""},{"$f":"LEFT(Template!I753,4)","v":""},{"$f":"LEFT(Template!J753,6)","v":""},{"$f":"LEFT(Template!K753,6)","v":""},{"$f":"LEFT(Template!L753,3)","v":""},{"$f":"IF(Template!M753=\"\",\"\",Template!M753)","v":""},{"$f":"IF(Template!N753=\"\",\"\",Template!N753)","v":""},null,null,null,null,null,{"$f":"IF(Template!O753=\"\",\"\",Template!O753)","v":""}]
[{"$f":"LEFT(Template!A754,4)","v":""},{"$f":"LEFT(Template!B754,5)","v":""},{"$f":"LEFT(Template!C754,7)","v":""},{"$f":"LEFT(Template!D754,6)","v":""},{"$f":"LEFT(Template!E754,2)","v":""},{"$f":"LEFT(Template!F754,3)","v":""},{"$f":"LEFT(Template!G754,10)","v":""},{"$f":"LEFT(Template!H754,6)","v":""},{"$f":"LEFT(Template!I754,4)","v":""},{"$f":"LEFT(Template!J754,6)","v":""},{"$f":"LEFT(Template!K754,6)","v":""},{"$f":"LEFT(Template!L754,3)","v":""},{"$f":"IF(Template!M754=\"\",\"\",Template!M754)","v":""},{"$f":"IF(Template!N754=\"\",\"\",Template!N754)","v":""},null,null,null,null,null,{"$f":"IF(Template!O754=\"\",\"\",Template!O754)","v":""}]
[{"$f":"LEFT(Template!A755,4)","v":""},{"$f":"LEFT(Template!B755,5)","v":""},{"$f":"LEFT(Template!C755,7)","v":""},{"$f":"LEFT(Template!D755,6)","v":""},{"$f":"LEFT(Template!E755,2)","v":""},{"$f":"LEFT(Template!F755,3)","v":""},{"$f":"LEFT(Template!G755,10)","v":""},{"$f":"LEFT(Template!H755,6)","v":""},{"$f":"LEFT(Template!I755,4)","v":""},{"$f":"LEFT(Template!J755,6)","v":""},{"$f":"LEFT(Template!K755,6)","v":""},{"$f":"LEFT(Template!L755,3)","v":""},{"$f":"IF(Template!M755=\"\",\"\",Template!M755)","v":""},{"$f":"IF(Template!N755=\"\",\"\",Template!N755)","v":""},null,null,null,null,null,{"$f":"IF(Template!O755=\"\",\"\",Template!O755)","v":""}]
[{"$f":"LEFT(Template!A756,4)","v":""},{"$f":"LEFT(Template!B756,5)","v":""},{"$f":"LEFT(Template!C756,7)","v":""},{"$f":"LEFT(Template!D756,6)","v":""},{"$f":"LEFT(Template!E756,2)","v":""},{"$f":"LEFT(Template!F756,3)","v":""},{"$f":"LEFT(Template!G756,10)","v":""},{"$f":"LEFT(Template!H756,6)","v":""},{"$f":"LEFT(Template!I756,4)","v":""},{"$f":"LEFT(Template!J756,6)","v":""},{"$f":"LEFT(Template!K756,6)","v":""},{"$f":"LEFT(Template!L756,3)","v":""},{"$f":"IF(Template!M756=\"\",\"\",Template!M756)","v":""},{"$f":"IF(Template!N756=\"\",\"\",Template!N756)","v":""},null,null,null,null,null,{"$f":"IF(Template!O756=\"\",\"\",Template!O756)","v":""}]
[{"$f":"LEFT(Template!A757,4)","v":""},{"$f":"LEFT(Template!B757,5)","v":""},{"$f":"LEFT(Template!C757,7)","v":""},{"$f":"LEFT(Template!D757,6)","v":""},{"$f":"LEFT(Template!E757,2)","v":""},{"$f":"LEFT(Template!F757,3)","v":""},{"$f":"LEFT(Template!G757,10)","v":""},{"$f":"LEFT(Template!H757,6)","v":""},{"$f":"LEFT(Template!I757,4)","v":""},{"$f":"LEFT(Template!J757,6)","v":""},{"$f":"LEFT(Template!K757,6)","v":""},{"$f":"LEFT(Template!L757,3)","v":""},{"$f":"IF(Template!M757=\"\",\"\",Template!M757)","v":""},{"$f":"IF(Template!N757=\"\",\"\",Template!N757)","v":""},null,null,null,null,null,{"$f":"IF(Template!O757=\"\",\"\",Template!O757)","v":""}]
[{"$f":"LEFT(Template!A758,4)","v":""},{"$f":"LEFT(Template!B758,5)","v":""},{"$f":"LEFT(Template!C758,7)","v":""},{"$f":"LEFT(Template!D758,6)","v":""},{"$f":"LEFT(Template!E758,2)","v":""},{"$f":"LEFT(Template!F758,3)","v":""},{"$f":"LEFT(Template!G758,10)","v":""},{"$f":"LEFT(Template!H758,6)","v":""},{"$f":"LEFT(Template!I758,4)","v":""},{"$f":"LEFT(Template!J758,6)","v":""},{"$f":"LEFT(Template!K758,6)","v":""},{"$f":"LEFT(Template!L758,3)","v":""},{"$f":"IF(Template!M758=\"\",\"\",Template!M758)","v":""},{"$f":"IF(Template!N758=\"\",\"\",Template!N758)","v":""},null,null,null,null,null,{"$f":"IF(Template!O758=\"\",\"\",Template!O758)","v":""}]
[{"$f":"LEFT(Template!A759,4)","v":""},{"$f":"LEFT(Template!B759,5)","v":""},{"$f":"LEFT(Template!C759,7)","v":""},{"$f":"LEFT(Template!D759,6)","v":""},{"$f":"LEFT(Template!E759,2)","v":""},{"$f":"LEFT(Template!F759,3)","v":""},{"$f":"LEFT(Template!G759,10)","v":""},{"$f":"LEFT(Template!H759,6)","v":""},{"$f":"LEFT(Template!I759,4)","v":""},{"$f":"LEFT(Template!J759,6)","v":""},{"$f":"LEFT(Template!K759,6)","v":""},{"$f":"LEFT(Template!L759,3)","v":""},{"$f":"IF(Template!M759=\"\",\"\",Template!M759)","v":""},{"$f":"IF(Template!N759=\"\",\"\",Template!N759)","v":""},null,null,null,null,null,{"$f":"IF(Template!O759=\"\",\"\",Template!O759)","v":""}]
[{"$f":"LEFT(Template!A760,4)","v":""},{"$f":"LEFT(Template!B760,5)","v":""},{"$f":"LEFT(Template!C760,7)","v":""},{"$f":"LEFT(Template!D760,6)","v":""},{"$f":"LEFT(Template!E760,2)","v":""},{"$f":"LEFT(Template!F760,3)","v":""},{"$f":"LEFT(Template!G760,10)","v":""},{"$f":"LEFT(Template!H760,6)","v":""},{"$f":"LEFT(Template!I760,4)","v":""},{"$f":"LEFT(Template!J760,6)","v":""},{"$f":"LEFT(Template!K760,6)","v":""},{"$f":"LEFT(Template!L760,3)","v":""},{"$f":"IF(Template!M760=\"\",\"\",Template!M760)","v":""},{"$f":"IF(Template!N760=\"\",\"\",Template!N760)","v":""},null,null,null,null,null,{"$f":"IF(Template!O760=\"\",\"\",Template!O760)","v":""}]
[{"$f":"LEFT(Template!A761,4)","v":""},{"$f":"LEFT(Template!B761,5)","v":""},{"$f":"LEFT(Template!C761,7)","v":""},{"$f":"LEFT(Template!D761,6)","v":""},{"$f":"LEFT(Template!E761,2)","v":""},{"$f":"LEFT(Template!F761,3)","v":""},{"$f":"LEFT(Template!G761,10)","v":""},{"$f":"LEFT(Template!H761,6)","v":""},{"$f":"LEFT(Template!I761,4)","v":""},{"$f":"LEFT(Template!J761,6)","v":""},{"$f":"LEFT(Template!K761,6)","v":""},{"$f":"LEFT(Template!L761,3)","v":""},{"$f":"IF(Template!M761=\"\",\"\",Template!M761)","v":""},{"$f":"IF(Template!N761=\"\",\"\",Template!N761)","v":""},null,null,null,null,null,{"$f":"IF(Template!O761=\"\",\"\",Template!O761)","v":""}]
[{"$f":"LEFT(Template!A762,4)","v":""},{"$f":"LEFT(Template!B762,5)","v":""},{"$f":"LEFT(Template!C762,7)","v":""},{"$f":"LEFT(Template!D762,6)","v":""},{"$f":"LEFT(Template!E762,2)","v":""},{"$f":"LEFT(Template!F762,3)","v":""},{"$f":"LEFT(Template!G762,10)","v":""},{"$f":"LEFT(Template!H762,6)","v":""},{"$f":"LEFT(Template!I762,4)","v":""},{"$f":"LEFT(Template!J762,6)","v":""},{"$f":"LEFT(Template!K762,6)","v":""},{"$f":"LEFT(Template!L762,3)","v":""},{"$f":"IF(Template!M762=\"\",\"\",Template!M762)","v":""},{"$f":"IF(Template!N762=\"\",\"\",Template!N762)","v":""},null,null,null,null,null,{"$f":"IF(Template!O762=\"\",\"\",Template!O762)","v":""}]
[{"$f":"LEFT(Template!A763,4)","v":""},{"$f":"LEFT(Template!B763,5)","v":""},{"$f":"LEFT(Template!C763,7)","v":""},{"$f":"LEFT(Template!D763,6)","v":""},{"$f":"LEFT(Template!E763,2)","v":""},{"$f":"LEFT(Template!F763,3)","v":""},{"$f":"LEFT(Template!G763,10)","v":""},{"$f":"LEFT(Template!H763,6)","v":""},{"$f":"LEFT(Template!I763,4)","v":""},{"$f":"LEFT(Template!J763,6)","v":""},{"$f":"LEFT(Template!K763,6)","v":""},{"$f":"LEFT(Template!L763,3)","v":""},{"$f":"IF(Template!M763=\"\",\"\",Template!M763)","v":""},{"$f":"IF(Template!N763=\"\",\"\",Template!N763)","v":""},null,null,null,null,null,{"$f":"IF(Template!O763=\"\",\"\",Template!O763)","v":""}]
[{"$f":"LEFT(Template!A764,4)","v":""},{"$f":"LEFT(Template!B764,5)","v":""},{"$f":"LEFT(Template!C764,7)","v":""},{"$f":"LEFT(Template!D764,6)","v":""},{"$f":"LEFT(Template!E764,2)","v":""},{"$f":"LEFT(Template!F764,3)","v":""},{"$f":"LEFT(Template!G764,10)","v":""},{"$f":"LEFT(Template!H764,6)","v":""},{"$f":"LEFT(Template!I764,4)","v":""},{"$f":"LEFT(Template!J764,6)","v":""},{"$f":"LEFT(Template!K764,6)","v":""},{"$f":"LEFT(Template!L764,3)","v":""},{"$f":"IF(Template!M764=\"\",\"\",Template!M764)","v":""},{"$f":"IF(Template!N764=\"\",\"\",Template!N764)","v":""},null,null,null,null,null,{"$f":"IF(Template!O764=\"\",\"\",Template!O764)","v":""}]
[{"$f":"LEFT(Template!A765,4)","v":""},{"$f":"LEFT(Template!B765,5)","v":""},{"$f":"LEFT(Template!C765,7)","v":""},{"$f":"LEFT(Template!D765,6)","v":""},{"$f":"LEFT(Template!E765,2)","v":""},{"$f":"LEFT(Template!F765,3)","v":""},{"$f":"LEFT(Template!G765,10)","v":""},{"$f":"LEFT(Template!H765,6)","v":""},{"$f":"LEFT(Template!I765,4)","v":""},{"$f":"LEFT(Template!J765,6)","v":""},{"$f":"LEFT(Template!K765,6)","v":""},{"$f":"LEFT(Template!L765,3)","v":""},{"$f":"IF(Template!M765=\"\",\"\",Template!M765)","v":""},{"$f":"IF(Template!N765=\"\",\"\",Template!N765)","v":""},null,null,null,null,null,{"$f":"IF(Template!O765=\"\",\"\",Template!O765)","v":""}]
[{"$f":"LEFT(Template!A766,4)","v":""},{"$f":"LEFT(Template!B766,5)","v":""},{"$f":"LEFT(Template!C766,7)","v":""},{"$f":"LEFT(Template!D766,6)","v":""},{"$f":"LEFT(Template!E766,2)","v":""},{"$f":"LEFT(Template!F766,3)","v":""},{"$f":"LEFT(Template!G766,10)","v":""},{"$f":"LEFT(Template!H766,6)","v":""},{"$f":"LEFT(Template!I766,4)","v":""},{"$f":"LEFT(Template!J766,6)","v":""},{"$f":"LEFT(Template!K766,6)","v":""},{"$f":"LEFT(Template!L766,3)","v":""},{"$f":"IF(Template!M766=\"\",\"\",Template!M766)","v":""},{"$f":"IF(Template!N766=\"\",\"\",Template!N766)","v":""},null,null,null,null,null,{"$f":"IF(Template!O766=\"\",\"\",Template!O766)","v":""}]
[{"$f":"LEFT(Template!A767,4)","v":""},{"$f":"LEFT(Template!B767,5)","v":""},{"$f":"LEFT(Template!C767,7)","v":""},{"$f":"LEFT(Template!D767,6)","v":""},{"$f":"LEFT(Template!E767,2)","v":""},{"$f":"LEFT(Template!F767,3)","v":""},{"$f":"LEFT(Template!G767,10)","v":""},{"$f":"LEFT(Template!H767,6)","v":""},{"$f":"LEFT(Template!I767,4)","v":""},{"$f":"LEFT(Template!J767,6)","v":""},{"$f":"LEFT(Template!K767,6)","v":""},{"$f":"LEFT(Template!L767,3)","v":""},{"$f":"IF(Template!M767=\"\",\"\",Template!M767)","v":""},{"$f":"IF(Template!N767=\"\",\"\",Template!N767)","v":""},null,null,null,null,null,{"$f":"IF(Template!O767=\"\",\"\",Template!O767)","v":""}]
[{"$f":"LEFT(Template!A768,4)","v":""},{"$f":"LEFT(Template!B768,5)","v":""},{"$f":"LEFT(Template!C768,7)","v":""},{"$f":"LEFT(Template!D768,6)","v":""},{"$f":"LEFT(Template!E768,2)","v":""},{"$f":"LEFT(Template!F768,3)","v":""},{"$f":"LEFT(Template!G768,10)","v":""},{"$f":"LEFT(Template!H768,6)","v":""},{"$f":"LEFT(Template!I768,4)","v":""},{"$f":"LEFT(Template!J768,6)","v":""},{"$f":"LEFT(Template!K768,6)","v":""},{"$f":"LEFT(Template!L768,3)","v":""},{"$f":"IF(Template!M768=\"\",\"\",Template!M768)","v":""},{"$f":"IF(Template!N768=\"\",\"\",Template!N768)","v":""},null,null,null,null,null,{"$f":"IF(Template!O768=\"\",\"\",Template!O768)","v":""}]
[{"$f":"LEFT(Template!A769,4)","v":""},{"$f":"LEFT(Template!B769,5)","v":""},{"$f":"LEFT(Template!C769,7)","v":""},{"$f":"LEFT(Template!D769,6)","v":""},{"$f":"LEFT(Template!E769,2)","v":""},{"$f":"LEFT(Template!F769,3)","v":""},{"$f":"LEFT(Template!G769,10)","v":""},{"$f":"LEFT(Template!H769,6)","v":""},{"$f":"LEFT(Template!I769,4)","v":""},{"$f":"LEFT(Template!J769,6)","v":""},{"$f":"LEFT(Template!K769,6)","v":""},{"$f":"LEFT(Template!L769,3)","v":""},{"$f":"IF(Template!M769=\"\",\"\",Template!M769)","v":""},{"$f":"IF(Template!N769=\"\",\"\",Template!N769)","v":""},null,null,null,null,null,{"$f":"IF(Template!O769=\"\",\"\",Template!O769)","v":""}]
[{"$f":"LEFT(Template!A770,4)","v":""},{"$f":"LEFT(Template!B770,5)","v":""},{"$f":"LEFT(Template!C770,7)","v":""},{"$f":"LEFT(Template!D770,6)","v":""},{"$f":"LEFT(Template!E770,2)","v":""},{"$f":"LEFT(Template!F770,3)","v":""},{"$f":"LEFT(Template!G770,10)","v":""},{"$f":"LEFT(Template!H770,6)","v":""},{"$f":"LEFT(Template!I770,4)","v":""},{"$f":"LEFT(Template!J770,6)","v":""},{"$f":"LEFT(Template!K770,6)","v":""},{"$f":"LEFT(Template!L770,3)","v":""},{"$f":"IF(Template!M770=\"\",\"\",Template!M770)","v":""},{"$f":"IF(Template!N770=\"\",\"\",Template!N770)","v":""},null,null,null,null,null,{"$f":"IF(Template!O770=\"\",\"\",Template!O770)","v":""}]
[{"$f":"LEFT(Template!A771,4)","v":""},{"$f":"LEFT(Template!B771,5)","v":""},{"$f":"LEFT(Template!C771,7)","v":""},{"$f":"LEFT(Template!D771,6)","v":""},{"$f":"LEFT(Template!E771,2)","v":""},{"$f":"LEFT(Template!F771,3)","v":""},{"$f":"LEFT(Template!G771,10)","v":""},{"$f":"LEFT(Template!H771,6)","v":""},{"$f":"LEFT(Template!I771,4)","v":""},{"$f":"LEFT(Template!J771,6)","v":""},{"$f":"LEFT(Template!K771,6)","v":""},{"$f":"LEFT(Template!L771,3)","v":""},{"$f":"IF(Template!M771=\"\",\"\",Template!M771)","v":""},{"$f":"IF(Template!N771=\"\",\"\",Template!N771)","v":""},null,null,null,null,null,{"$f":"IF(Template!O771=\"\",\"\",Template!O771)","v":""}]
[{"$f":"LEFT(Template!A772,4)","v":""},{"$f":"LEFT(Template!B772,5)","v":""},{"$f":"LEFT(Template!C772,7)","v":""},{"$f":"LEFT(Template!D772,6)","v":""},{"$f":"LEFT(Template!E772,2)","v":""},{"$f":"LEFT(Template!F772,3)","v":""},{"$f":"LEFT(Template!G772,10)","v":""},{"$f":"LEFT(Template!H772,6)","v":""},{"$f":"LEFT(Template!I772,4)","v":""},{"$f":"LEFT(Template!J772,6)","v":""},{"$f":"LEFT(Template!K772,6)","v":""},{"$f":"LEFT(Template!L772,3)","v":""},{"$f":"IF(Template!M772=\"\",\"\",Template!M772)","v":""},{"$f":"IF(Template!N772=\"\",\"\",Template!N772)","v":""},null,null,null,null,null,{"$f":"IF(Template!O772=\"\",\"\",Template!O772)","v":""}]
[{"$f":"LEFT(Template!A773,4)","v":""},{"$f":"LEFT(Template!B773,5)","v":""},{"$f":"LEFT(Template!C773,7)","v":""},{"$f":"LEFT(Template!D773,6)","v":""},{"$f":"LEFT(Template!E773,2)","v":""},{"$f":"LEFT(Template!F773,3)","v":""},{"$f":"LEFT(Template!G773,10)","v":""},{"$f":"LEFT(Template!H773,6)","v":""},{"$f":"LEFT(Template!I773,4)","v":""},{"$f":"LEFT(Template!J773,6)","v":""},{"$f":"LEFT(Template!K773,6)","v":""},{"$f":"LEFT(Template!L773,3)","v":""},{"$f":"IF(Template!M773=\"\",\"\",Template!M773)","v":""},{"$f":"IF(Template!N773=\"\",\"\",Template!N773)","v":""},null,null,null,null,null,{"$f":"IF(Template!O773=\"\",\"\",Template!O773)","v":""}]
[{"$f":"LEFT(Template!A774,4)","v":""},{"$f":"LEFT(Template!B774,5)","v":""},{"$f":"LEFT(Template!C774,7)","v":""},{"$f":"LEFT(Template!D774,6)","v":""},{"$f":"LEFT(Template!E774,2)","v":""},{"$f":"LEFT(Template!F774,3)","v":""},{"$f":"LEFT(Template!G774,10)","v":""},{"$f":"LEFT(Template!H774,6)","v":""},{"$f":"LEFT(Template!I774,4)","v":""},{"$f":"LEFT(Template!J774,6)","v":""},{"$f":"LEFT(Template!K774,6)","v":""},{"$f":"LEFT(Template!L774,3)","v":""},{"$f":"IF(Template!M774=\"\",\"\",Template!M774)","v":""},{"$f":"IF(Template!N774=\"\",\"\",Template!N774)","v":""},null,null,null,null,null,{"$f":"IF(Template!O774=\"\",\"\",Template!O774)","v":""}]
[{"$f":"LEFT(Template!A775,4)","v":""},{"$f":"LEFT(Template!B775,5)","v":""},{"$f":"LEFT(Template!C775,7)","v":""},{"$f":"LEFT(Template!D775,6)","v":""},{"$f":"LEFT(Template!E775,2)","v":""},{"$f":"LEFT(Template!F775,3)","v":""},{"$f":"LEFT(Template!G775,10)","v":""},{"$f":"LEFT(Template!H775,6)","v":""},{"$f":"LEFT(Template!I775,4)","v":""},{"$f":"LEFT(Template!J775,6)","v":""},{"$f":"LEFT(Template!K775,6)","v":""},{"$f":"LEFT(Template!L775,3)","v":""},{"$f":"IF(Template!M775=\"\",\"\",Template!M775)","v":""},{"$f":"IF(Template!N775=\"\",\"\",Template!N775)","v":""},null,null,null,null,null,{"$f":"IF(Template!O775=\"\",\"\",Template!O775)","v":""}]
[{"$f":"LEFT(Template!A776,4)","v":""},{"$f":"LEFT(Template!B776,5)","v":""},{"$f":"LEFT(Template!C776,7)","v":""},{"$f":"LEFT(Template!D776,6)","v":""},{"$f":"LEFT(Template!E776,2)","v":""},{"$f":"LEFT(Template!F776,3)","v":""},{"$f":"LEFT(Template!G776,10)","v":""},{"$f":"LEFT(Template!H776,6)","v":""},{"$f":"LEFT(Template!I776,4)","v":""},{"$f":"LEFT(Template!J776,6)","v":""},{"$f":"LEFT(Template!K776,6)","v":""},{"$f":"LEFT(Template!L776,3)","v":""},{"$f":"IF(Template!M776=\"\",\"\",Template!M776)","v":""},{"$f":"IF(Template!N776=\"\",\"\",Template!N776)","v":""},null,null,null,null,null,{"$f":"IF(Template!O776=\"\",\"\",Template!O776)","v":""}]
[{"$f":"LEFT(Template!A777,4)","v":""},{"$f":"LEFT(Template!B777,5)","v":""},{"$f":"LEFT(Template!C777,7)","v":""},{"$f":"LEFT(Template!D777,6)","v":""},{"$f":"LEFT(Template!E777,2)","v":""},{"$f":"LEFT(Template!F777,3)","v":""},{"$f":"LEFT(Template!G777,10)","v":""},{"$f":"LEFT(Template!H777,6)","v":""},{"$f":"LEFT(Template!I777,4)","v":""},{"$f":"LEFT(Template!J777,6)","v":""},{"$f":"LEFT(Template!K777,6)","v":""},{"$f":"LEFT(Template!L777,3)","v":""},{"$f":"IF(Template!M777=\"\",\"\",Template!M777)","v":""},{"$f":"IF(Template!N777=\"\",\"\",Template!N777)","v":""},null,null,null,null,null,{"$f":"IF(Template!O777=\"\",\"\",Template!O777)","v":""}]
[{"$f":"LEFT(Template!A778,4)","v":""},{"$f":"LEFT(Template!B778,5)","v":""},{"$f":"LEFT(Template!C778,7)","v":""},{"$f":"LEFT(Template!D778,6)","v":""},{"$f":"LEFT(Template!E778,2)","v":""},{"$f":"LEFT(Template!F778,3)","v":""},{"$f":"LEFT(Template!G778,10)","v":""},{"$f":"LEFT(Template!H778,6)","v":""},{"$f":"LEFT(Template!I778,4)","v":""},{"$f":"LEFT(Template!J778,6)","v":""},{"$f":"LEFT(Template!K778,6)","v":""},{"$f":"LEFT(Template!L778,3)","v":""},{"$f":"IF(Template!M778=\"\",\"\",Template!M778)","v":""},{"$f":"IF(Template!N778=\"\",\"\",Template!N778)","v":""},null,null,null,null,null,{"$f":"IF(Template!O778=\"\",\"\",Template!O778)","v":""}]
[{"$f":"LEFT(Template!A779,4)","v":""},{"$f":"LEFT(Template!B779,5)","v":""},{"$f":"LEFT(Template!C779,7)","v":""},{"$f":"LEFT(Template!D779,6)","v":""},{"$f":"LEFT(Template!E779,2)","v":""},{"$f":"LEFT(Template!F779,3)","v":""},{"$f":"LEFT(Template!G779,10)","v":""},{"$f":"LEFT(Template!H779,6)","v":""},{"$f":"LEFT(Template!I779,4)","v":""},{"$f":"LEFT(Template!J779,6)","v":""},{"$f":"LEFT(Template!K779,6)","v":""},{"$f":"LEFT(Template!L779,3)","v":""},{"$f":"IF(Template!M779=\"\",\"\",Template!M779)","v":""},{"$f":"IF(Template!N779=\"\",\"\",Template!N779)","v":""},null,null,null,null,null,{"$f":"IF(Template!O779=\"\",\"\",Template!O779)","v":""}]
[{"$f":"LEFT(Template!A780,4)","v":""},{"$f":"LEFT(Template!B780,5)","v":""},{"$f":"LEFT(Template!C780,7)","v":""},{"$f":"LEFT(Template!D780,6)","v":""},{"$f":"LEFT(Template!E780,2)","v":""},{"$f":"LEFT(Template!F780,3)","v":""},{"$f":"LEFT(Template!G780,10)","v":""},{"$f":"LEFT(Template!H780,6)","v":""},{"$f":"LEFT(Template!I780,4)","v":""},{"$f":"LEFT(Template!J780,6)","v":""},{"$f":"LEFT(Template!K780,6)","v":""},{"$f":"LEFT(Template!L780,3)","v":""},{"$f":"IF(Template!M780=\"\",\"\",Template!M780)","v":""},{"$f":"IF(Template!N780=\"\",\"\",Template!N780)","v":""},null,null,null,null,null,{"$f":"IF(Template!O780=\"\",\"\",Template!O780)","v":""}]
[{"$f":"LEFT(Template!A781,4)","v":""},{"$f":"LEFT(Template!B781,5)","v":""},{"$f":"LEFT(Template!C781,7)","v":""},{"$f":"LEFT(Template!D781,6)","v":""},{"$f":"LEFT(Template!E781,2)","v":""},{"$f":"LEFT(Template!F781,3)","v":""},{"$f":"LEFT(Template!G781,10)","v":""},{"$f":"LEFT(Template!H781,6)","v":""},{"$f":"LEFT(Template!I781,4)","v":""},{"$f":"LEFT(Template!J781,6)","v":""},{"$f":"LEFT(Template!K781,6)","v":""},{"$f":"LEFT(Template!L781,3)","v":""},{"$f":"IF(Template!M781=\"\",\"\",Template!M781)","v":""},{"$f":"IF(Template!N781=\"\",\"\",Template!N781)","v":""},null,null,null,null,null,{"$f":"IF(Template!O781=\"\",\"\",Template!O781)","v":""}]
[{"$f":"LEFT(Template!A782,4)","v":""},{"$f":"LEFT(Template!B782,5)","v":""},{"$f":"LEFT(Template!C782,7)","v":""},{"$f":"LEFT(Template!D782,6)","v":""},{"$f":"LEFT(Template!E782,2)","v":""},{"$f":"LEFT(Template!F782,3)","v":""},{"$f":"LEFT(Template!G782,10)","v":""},{"$f":"LEFT(Template!H782,6)","v":""},{"$f":"LEFT(Template!I782,4)","v":""},{"$f":"LEFT(Template!J782,6)","v":""},{"$f":"LEFT(Template!K782,6)","v":""},{"$f":"LEFT(Template!L782,3)","v":""},{"$f":"IF(Template!M782=\"\",\"\",Template!M782)","v":""},{"$f":"IF(Template!N782=\"\",\"\",Template!N782)","v":""},null,null,null,null,null,{"$f":"IF(Template!O782=\"\",\"\",Template!O782)","v":""}]
[{"$f":"LEFT(Template!A783,4)","v":""},{"$f":"LEFT(Template!B783,5)","v":""},{"$f":"LEFT(Template!C783,7)","v":""},{"$f":"LEFT(Template!D783,6)","v":""},{"$f":"LEFT(Template!E783,2)","v":""},{"$f":"LEFT(Template!F783,3)","v":""},{"$f":"LEFT(Template!G783,10)","v":""},{"$f":"LEFT(Template!H783,6)","v":""},{"$f":"LEFT(Template!I783,4)","v":""},{"$f":"LEFT(Template!J783,6)","v":""},{"$f":"LEFT(Template!K783,6)","v":""},{"$f":"LEFT(Template!L783,3)","v":""},{"$f":"IF(Template!M783=\"\",\"\",Template!M783)","v":""},{"$f":"IF(Template!N783=\"\",\"\",Template!N783)","v":""},null,null,null,null,null,{"$f":"IF(Template!O783=\"\",\"\",Template!O783)","v":""}]
[{"$f":"LEFT(Template!A784,4)","v":""},{"$f":"LEFT(Template!B784,5)","v":""},{"$f":"LEFT(Template!C784,7)","v":""},{"$f":"LEFT(Template!D784,6)","v":""},{"$f":"LEFT(Template!E784,2)","v":""},{"$f":"LEFT(Template!F784,3)","v":""},{"$f":"LEFT(Template!G784,10)","v":""},{"$f":"LEFT(Template!H784,6)","v":""},{"$f":"LEFT(Template!I784,4)","v":""},{"$f":"LEFT(Template!J784,6)","v":""},{"$f":"LEFT(Template!K784,6)","v":""},{"$f":"LEFT(Template!L784,3)","v":""},{"$f":"IF(Template!M784=\"\",\"\",Template!M784)","v":""},{"$f":"IF(Template!N784=\"\",\"\",Template!N784)","v":""},null,null,null,null,null,{"$f":"IF(Template!O784=\"\",\"\",Template!O784)","v":""}]
[{"$f":"LEFT(Template!A785,4)","v":""},{"$f":"LEFT(Template!B785,5)","v":""},{"$f":"LEFT(Template!C785,7)","v":""},{"$f":"LEFT(Template!D785,6)","v":""},{"$f":"LEFT(Template!E785,2)","v":""},{"$f":"LEFT(Template!F785,3)","v":""},{"$f":"LEFT(Template!G785,10)","v":""},{"$f":"LEFT(Template!H785,6)","v":""},{"$f":"LEFT(Template!I785,4)","v":""},{"$f":"LEFT(Template!J785,6)","v":""},{"$f":"LEFT(Template!K785,6)","v":""},{"$f":"LEFT(Template!L785,3)","v":""},{"$f":"IF(Template!M785=\"\",\"\",Template!M785)","v":""},{"$f":"IF(Template!N785=\"\",\"\",Template!N785)","v":""},null,null,null,null,null,{"$f":"IF(Template!O785=\"\",\"\",Template!O785)","v":""}]
[{"$f":"LEFT(Template!A786,4)","v":""},{"$f":"LEFT(Template!B786,5)","v":""},{"$f":"LEFT(Template!C786,7)","v":""},{"$f":"LEFT(Template!D786,6)","v":""},{"$f":"LEFT(Template!E786,2)","v":""},{"$f":"LEFT(Template!F786,3)","v":""},{"$f":"LEFT(Template!G786,10)","v":""},{"$f":"LEFT(Template!H786,6)","v":""},{"$f":"LEFT(Template!I786,4)","v":""},{"$f":"LEFT(Template!J786,6)","v":""},{"$f":"LEFT(Template!K786,6)","v":""},{"$f":"LEFT(Template!L786,3)","v":""},{"$f":"IF(Template!M786=\"\",\"\",Template!M786)","v":""},{"$f":"IF(Template!N786=\"\",\"\",Template!N786)","v":""},null,null,null,null,null,{"$f":"IF(Template!O786=\"\",\"\",Template!O786)","v":""}]
[{"$f":"LEFT(Template!A787,4)","v":""},{"$f":"LEFT(Template!B787,5)","v":""},{"$f":"LEFT(Template!C787,7)","v":""},{"$f":"LEFT(Template!D787,6)","v":""},{"$f":"LEFT(Template!E787,2)","v":""},{"$f":"LEFT(Template!F787,3)","v":""},{"$f":"LEFT(Template!G787,10)","v":""},{"$f":"LEFT(Template!H787,6)","v":""},{"$f":"LEFT(Template!I787,4)","v":""},{"$f":"LEFT(Template!J787,6)","v":""},{"$f":"LEFT(Template!K787,6)","v":""},{"$f":"LEFT(Template!L787,3)","v":""},{"$f":"IF(Template!M787=\"\",\"\",Template!M787)","v":""},{"$f":"IF(Template!N787=\"\",\"\",Template!N787)","v":""},null,null,null,null,null,{"$f":"IF(Template!O787=\"\",\"\",Template!O787)","v":""}]
[{"$f":"LEFT(Template!A788,4)","v":""},{"$f":"LEFT(Template!B788,5)","v":""},{"$f":"LEFT(Template!C788,7)","v":""},{"$f":"LEFT(Template!D788,6)","v":""},{"$f":"LEFT(Template!E788,2)","v":""},{"$f":"LEFT(Template!F788,3)","v":""},{"$f":"LEFT(Template!G788,10)","v":""},{"$f":"LEFT(Template!H788,6)","v":""},{"$f":"LEFT(Template!I788,4)","v":""},{"$f":"LEFT(Template!J788,6)","v":""},{"$f":"LEFT(Template!K788,6)","v":""},{"$f":"LEFT(Template!L788,3)","v":""},{"$f":"IF(Template!M788=\"\",\"\",Template!M788)","v":""},{"$f":"IF(Template!N788=\"\",\"\",Template!N788)","v":""},null,null,null,null,null,{"$f":"IF(Template!O788=\"\",\"\",Template!O788)","v":""}]
[{"$f":"LEFT(Template!A789,4)","v":""},{"$f":"LEFT(Template!B789,5)","v":""},{"$f":"LEFT(Template!C789,7)","v":""},{"$f":"LEFT(Template!D789,6)","v":""},{"$f":"LEFT(Template!E789,2)","v":""},{"$f":"LEFT(Template!F789,3)","v":""},{"$f":"LEFT(Template!G789,10)","v":""},{"$f":"LEFT(Template!H789,6)","v":""},{"$f":"LEFT(Template!I789,4)","v":""},{"$f":"LEFT(Template!J789,6)","v":""},{"$f":"LEFT(Template!K789,6)","v":""},{"$f":"LEFT(Template!L789,3)","v":""},{"$f":"IF(Template!M789=\"\",\"\",Template!M789)","v":""},{"$f":"IF(Template!N789=\"\",\"\",Template!N789)","v":""},null,null,null,null,null,{"$f":"IF(Template!O789=\"\",\"\",Template!O789)","v":""}]
[{"$f":"LEFT(Template!A790,4)","v":""},{"$f":"LEFT(Template!B790,5)","v":""},{"$f":"LEFT(Template!C790,7)","v":""},{"$f":"LEFT(Template!D790,6)","v":""},{"$f":"LEFT(Template!E790,2)","v":""},{"$f":"LEFT(Template!F790,3)","v":""},{"$f":"LEFT(Template!G790,10)","v":""},{"$f":"LEFT(Template!H790,6)","v":""},{"$f":"LEFT(Template!I790,4)","v":""},{"$f":"LEFT(Template!J790,6)","v":""},{"$f":"LEFT(Template!K790,6)","v":""},{"$f":"LEFT(Template!L790,3)","v":""},{"$f":"IF(Template!M790=\"\",\"\",Template!M790)","v":""},{"$f":"IF(Template!N790=\"\",\"\",Template!N790)","v":""},null,null,null,null,null,{"$f":"IF(Template!O790=\"\",\"\",Template!O790)","v":""}]
[{"$f":"LEFT(Template!A791,4)","v":""},{"$f":"LEFT(Template!B791,5)","v":""},{"$f":"LEFT(Template!C791,7)","v":""},{"$f":"LEFT(Template!D791,6)","v":""},{"$f":"LEFT(Template!E791,2)","v":""},{"$f":"LEFT(Template!F791,3)","v":""},{"$f":"LEFT(Template!G791,10)","v":""},{"$f":"LEFT(Template!H791,6)","v":""},{"$f":"LEFT(Template!I791,4)","v":""},{"$f":"LEFT(Template!J791,6)","v":""},{"$f":"LEFT(Template!K791,6)","v":""},{"$f":"LEFT(Template!L791,3)","v":""},{"$f":"IF(Template!M791=\"\",\"\",Template!M791)","v":""},{"$f":"IF(Template!N791=\"\",\"\",Template!N791)","v":""},null,null,null,null,null,{"$f":"IF(Template!O791=\"\",\"\",Template!O791)","v":""}]
[{"$f":"LEFT(Template!A792,4)","v":""},{"$f":"LEFT(Template!B792,5)","v":""},{"$f":"LEFT(Template!C792,7)","v":""},{"$f":"LEFT(Template!D792,6)","v":""},{"$f":"LEFT(Template!E792,2)","v":""},{"$f":"LEFT(Template!F792,3)","v":""},{"$f":"LEFT(Template!G792,10)","v":""},{"$f":"LEFT(Template!H792,6)","v":""},{"$f":"LEFT(Template!I792,4)","v":""},{"$f":"LEFT(Template!J792,6)","v":""},{"$f":"LEFT(Template!K792,6)","v":""},{"$f":"LEFT(Template!L792,3)","v":""},{"$f":"IF(Template!M792=\"\",\"\",Template!M792)","v":""},{"$f":"IF(Template!N792=\"\",\"\",Template!N792)","v":""},null,null,null,null,null,{"$f":"IF(Template!O792=\"\",\"\",Template!O792)","v":""}]
[{"$f":"LEFT(Template!A793,4)","v":""},{"$f":"LEFT(Template!B793,5)","v":""},{"$f":"LEFT(Template!C793,7)","v":""},{"$f":"LEFT(Template!D793,6)","v":""},{"$f":"LEFT(Template!E793,2)","v":""},{"$f":"LEFT(Template!F793,3)","v":""},{"$f":"LEFT(Template!G793,10)","v":""},{"$f":"LEFT(Template!H793,6)","v":""},{"$f":"LEFT(Template!I793,4)","v":""},{"$f":"LEFT(Template!J793,6)","v":""},{"$f":"LEFT(Template!K793,6)","v":""},{"$f":"LEFT(Template!L793,3)","v":""},{"$f":"IF(Template!M793=\"\",\"\",Template!M793)","v":""},{"$f":"IF(Template!N793=\"\",\"\",Template!N793)","v":""},null,null,null,null,null,{"$f":"IF(Template!O793=\"\",\"\",Template!O793)","v":""}]
[{"$f":"LEFT(Template!A794,4)","v":""},{"$f":"LEFT(Template!B794,5)","v":""},{"$f":"LEFT(Template!C794,7)","v":""},{"$f":"LEFT(Template!D794,6)","v":""},{"$f":"LEFT(Template!E794,2)","v":""},{"$f":"LEFT(Template!F794,3)","v":""},{"$f":"LEFT(Template!G794,10)","v":""},{"$f":"LEFT(Template!H794,6)","v":""},{"$f":"LEFT(Template!I794,4)","v":""},{"$f":"LEFT(Template!J794,6)","v":""},{"$f":"LEFT(Template!K794,6)","v":""},{"$f":"LEFT(Template!L794,3)","v":""},{"$f":"IF(Template!M794=\"\",\"\",Template!M794)","v":""},{"$f":"IF(Template!N794=\"\",\"\",Template!N794)","v":""},null,null,null,null,null,{"$f":"IF(Template!O794=\"\",\"\",Template!O794)","v":""}]
[{"$f":"LEFT(Template!A795,4)","v":""},{"$f":"LEFT(Template!B795,5)","v":""},{"$f":"LEFT(Template!C795,7)","v":""},{"$f":"LEFT(Template!D795,6)","v":""},{"$f":"LEFT(Template!E795,2)","v":""},{"$f":"LEFT(Template!F795,3)","v":""},{"$f":"LEFT(Template!G795,10)","v":""},{"$f":"LEFT(Template!H795,6)","v":""},{"$f":"LEFT(Template!I795,4)","v":""},{"$f":"LEFT(Template!J795,6)","v":""},{"$f":"LEFT(Template!K795,6)","v":""},{"$f":"LEFT(Template!L795,3)","v":""},{"$f":"IF(Template!M795=\"\",\"\",Template!M795)","v":""},{"$f":"IF(Template!N795=\"\",\"\",Template!N795)","v":""},null,null,null,null,null,{"$f":"IF(Template!O795=\"\",\"\",Template!O795)","v":""}]
[{"$f":"LEFT(Template!A796,4)","v":""},{"$f":"LEFT(Template!B796,5)","v":""},{"$f":"LEFT(Template!C796,7)","v":""},{"$f":"LEFT(Template!D796,6)","v":""},{"$f":"LEFT(Template!E796,2)","v":""},{"$f":"LEFT(Template!F796,3)","v":""},{"$f":"LEFT(Template!G796,10)","v":""},{"$f":"LEFT(Template!H796,6)","v":""},{"$f":"LEFT(Template!I796,4)","v":""},{"$f":"LEFT(Template!J796,6)","v":""},{"$f":"LEFT(Template!K796,6)","v":""},{"$f":"LEFT(Template!L796,3)","v":""},{"$f":"IF(Template!M796=\"\",\"\",Template!M796)","v":""},{"$f":"IF(Template!N796=\"\",\"\",Template!N796)","v":""},null,null,null,null,null,{"$f":"IF(Template!O796=\"\",\"\",Template!O796)","v":""}]
[{"$f":"LEFT(Template!A797,4)","v":""},{"$f":"LEFT(Template!B797,5)","v":""},{"$f":"LEFT(Template!C797,7)","v":""},{"$f":"LEFT(Template!D797,6)","v":""},{"$f":"LEFT(Template!E797,2)","v":""},{"$f":"LEFT(Template!F797,3)","v":""},{"$f":"LEFT(Template!G797,10)","v":""},{"$f":"LEFT(Template!H797,6)","v":""},{"$f":"LEFT(Template!I797,4)","v":""},{"$f":"LEFT(Template!J797,6)","v":""},{"$f":"LEFT(Template!K797,6)","v":""},{"$f":"LEFT(Template!L797,3)","v":""},{"$f":"IF(Template!M797=\"\",\"\",Template!M797)","v":""},{"$f":"IF(Template!N797=\"\",\"\",Template!N797)","v":""},null,null,null,null,null,{"$f":"IF(Template!O797=\"\",\"\",Template!O797)","v":""}]
[{"$f":"LEFT(Template!A798,4)","v":""},{"$f":"LEFT(Template!B798,5)","v":""},{"$f":"LEFT(Template!C798,7)","v":""},{"$f":"LEFT(Template!D798,6)","v":""},{"$f":"LEFT(Template!E798,2)","v":""},{"$f":"LEFT(Template!F798,3)","v":""},{"$f":"LEFT(Template!G798,10)","v":""},{"$f":"LEFT(Template!H798,6)","v":""},{"$f":"LEFT(Template!I798,4)","v":""},{"$f":"LEFT(Template!J798,6)","v":""},{"$f":"LEFT(Template!K798,6)","v":""},{"$f":"LEFT(Template!L798,3)","v":""},{"$f":"IF(Template!M798=\"\",\"\",Template!M798)","v":""},{"$f":"IF(Template!N798=\"\",\"\",Template!N798)","v":""},null,null,null,null,null,{"$f":"IF(Template!O798=\"\",\"\",Template!O798)","v":""}]
[{"$f":"LEFT(Template!A799,4)","v":""},{"$f":"LEFT(Template!B799,5)","v":""},{"$f":"LEFT(Template!C799,7)","v":""},{"$f":"LEFT(Template!D799,6)","v":""},{"$f":"LEFT(Template!E799,2)","v":""},{"$f":"LEFT(Template!F799,3)","v":""},{"$f":"LEFT(Template!G799,10)","v":""},{"$f":"LEFT(Template!H799,6)","v":""},{"$f":"LEFT(Template!I799,4)","v":""},{"$f":"LEFT(Template!J799,6)","v":""},{"$f":"LEFT(Template!K799,6)","v":""},{"$f":"LEFT(Template!L799,3)","v":""},{"$f":"IF(Template!M799=\"\",\"\",Template!M799)","v":""},{"$f":"IF(Template!N799=\"\",\"\",Template!N799)","v":""},null,null,null,null,null,{"$f":"IF(Template!O799=\"\",\"\",Template!O799)","v":""}]
[{"$f":"LEFT(Template!A800,4)","v":""},{"$f":"LEFT(Template!B800,5)","v":""},{"$f":"LEFT(Template!C800,7)","v":""},{"$f":"LEFT(Template!D800,6)","v":""},{"$f":"LEFT(Template!E800,2)","v":""},{"$f":"LEFT(Template!F800,3)","v":""},{"$f":"LEFT(Template!G800,10)","v":""},{"$f":"LEFT(Template!H800,6)","v":""},{"$f":"LEFT(Template!I800,4)","v":""},{"$f":"LEFT(Template!J800,6)","v":""},{"$f":"LEFT(Template!K800,6)","v":""},{"$f":"LEFT(Template!L800,3)","v":""},{"$f":"IF(Template!M800=\"\",\"\",Template!M800)","v":""},{"$f":"IF(Template!N800=\"\",\"\",Template!N800)","v":""},null,null,null,null,null,{"$f":"IF(Template!O800=\"\",\"\",Template!O800)","v":""}]
[{"$f":"LEFT(Template!A801,4)","v":""},{"$f":"LEFT(Template!B801,5)","v":""},{"$f":"LEFT(Template!C801,7)","v":""},{"$f":"LEFT(Template!D801,6)","v":""},{"$f":"LEFT(Template!E801,2)","v":""},{"$f":"LEFT(Template!F801,3)","v":""},{"$f":"LEFT(Template!G801,10)","v":""},{"$f":"LEFT(Template!H801,6)","v":""},{"$f":"LEFT(Template!I801,4)","v":""},{"$f":"LEFT(Template!J801,6)","v":""},{"$f":"LEFT(Template!K801,6)","v":""},{"$f":"LEFT(Template!L801,3)","v":""},{"$f":"IF(Template!M801=\"\",\"\",Template!M801)","v":""},{"$f":"IF(Template!N801=\"\",\"\",Template!N801)","v":""},null,null,null,null,null,{"$f":"IF(Template!O801=\"\",\"\",Template!O801)","v":""}]
[{"$f":"LEFT(Template!A802,4)","v":""},{"$f":"LEFT(Template!B802,5)","v":""},{"$f":"LEFT(Template!C802,7)","v":""},{"$f":"LEFT(Template!D802,6)","v":""},{"$f":"LEFT(Template!E802,2)","v":""},{"$f":"LEFT(Template!F802,3)","v":""},{"$f":"LEFT(Template!G802,10)","v":""},{"$f":"LEFT(Template!H802,6)","v":""},{"$f":"LEFT(Template!I802,4)","v":""},{"$f":"LEFT(Template!J802,6)","v":""},{"$f":"LEFT(Template!K802,6)","v":""},{"$f":"LEFT(Template!L802,3)","v":""},{"$f":"IF(Template!M802=\"\",\"\",Template!M802)","v":""},{"$f":"IF(Template!N802=\"\",\"\",Template!N802)","v":""},null,null,null,null,null,{"$f":"IF(Template!O802=\"\",\"\",Template!O802)","v":""}]
[{"$f":"LEFT(Template!A803,4)","v":""},{"$f":"LEFT(Template!B803,5)","v":""},{"$f":"LEFT(Template!C803,7)","v":""},{"$f":"LEFT(Template!D803,6)","v":""},{"$f":"LEFT(Template!E803,2)","v":""},{"$f":"LEFT(Template!F803,3)","v":""},{"$f":"LEFT(Template!G803,10)","v":""},{"$f":"LEFT(Template!H803,6)","v":""},{"$f":"LEFT(Template!I803,4)","v":""},{"$f":"LEFT(Template!J803,6)","v":""},{"$f":"LEFT(Template!K803,6)","v":""},{"$f":"LEFT(Template!L803,3)","v":""},{"$f":"IF(Template!M803=\"\",\"\",Template!M803)","v":""},{"$f":"IF(Template!N803=\"\",\"\",Template!N803)","v":""},null,null,null,null,null,{"$f":"IF(Template!O803=\"\",\"\",Template!O803)","v":""}]
[{"$f":"LEFT(Template!A804,4)","v":""},{"$f":"LEFT(Template!B804,5)","v":""},{"$f":"LEFT(Template!C804,7)","v":""},{"$f":"LEFT(Template!D804,6)","v":""},{"$f":"LEFT(Template!E804,2)","v":""},{"$f":"LEFT(Template!F804,3)","v":""},{"$f":"LEFT(Template!G804,10)","v":""},{"$f":"LEFT(Template!H804,6)","v":""},{"$f":"LEFT(Template!I804,4)","v":""},{"$f":"LEFT(Template!J804,6)","v":""},{"$f":"LEFT(Template!K804,6)","v":""},{"$f":"LEFT(Template!L804,3)","v":""},{"$f":"IF(Template!M804=\"\",\"\",Template!M804)","v":""},{"$f":"IF(Template!N804=\"\",\"\",Template!N804)","v":""},null,null,null,null,null,{"$f":"IF(Template!O804=\"\",\"\",Template!O804)","v":""}]
[{"$f":"LEFT(Template!A805,4)","v":""},{"$f":"LEFT(Template!B805,5)","v":""},{"$f":"LEFT(Template!C805,7)","v":""},{"$f":"LEFT(Template!D805,6)","v":""},{"$f":"LEFT(Template!E805,2)","v":""},{"$f":"LEFT(Template!F805,3)","v":""},{"$f":"LEFT(Template!G805,10)","v":""},{"$f":"LEFT(Template!H805,6)","v":""},{"$f":"LEFT(Template!I805,4)","v":""},{"$f":"LEFT(Template!J805,6)","v":""},{"$f":"LEFT(Template!K805,6)","v":""},{"$f":"LEFT(Template!L805,3)","v":""},{"$f":"IF(Template!M805=\"\",\"\",Template!M805)","v":""},{"$f":"IF(Template!N805=\"\",\"\",Template!N805)","v":""},null,null,null,null,null,{"$f":"IF(Template!O805=\"\",\"\",Template!O805)","v":""}]
[{"$f":"LEFT(Template!A806,4)","v":""},{"$f":"LEFT(Template!B806,5)","v":""},{"$f":"LEFT(Template!C806,7)","v":""},{"$f":"LEFT(Template!D806,6)","v":""},{"$f":"LEFT(Template!E806,2)","v":""},{"$f":"LEFT(Template!F806,3)","v":""},{"$f":"LEFT(Template!G806,10)","v":""},{"$f":"LEFT(Template!H806,6)","v":""},{"$f":"LEFT(Template!I806,4)","v":""},{"$f":"LEFT(Template!J806,6)","v":""},{"$f":"LEFT(Template!K806,6)","v":""},{"$f":"LEFT(Template!L806,3)","v":""},{"$f":"IF(Template!M806=\"\",\"\",Template!M806)","v":""},{"$f":"IF(Template!N806=\"\",\"\",Template!N806)","v":""},null,null,null,null,null,{"$f":"IF(Template!O806=\"\",\"\",Template!O806)","v":""}]
[{"$f":"LEFT(Template!A807,4)","v":""},{"$f":"LEFT(Template!B807,5)","v":""},{"$f":"LEFT(Template!C807,7)","v":""},{"$f":"LEFT(Template!D807,6)","v":""},{"$f":"LEFT(Template!E807,2)","v":""},{"$f":"LEFT(Template!F807,3)","v":""},{"$f":"LEFT(Template!G807,10)","v":""},{"$f":"LEFT(Template!H807,6)","v":""},{"$f":"LEFT(Template!I807,4)","v":""},{"$f":"LEFT(Template!J807,6)","v":""},{"$f":"LEFT(Template!K807,6)","v":""},{"$f":"LEFT(Template!L807,3)","v":""},{"$f":"IF(Template!M807=\"\",\"\",Template!M807)","v":""},{"$f":"IF(Template!N807=\"\",\"\",Template!N807)","v":""},null,null,null,null,null,{"$f":"IF(Template!O807=\"\",\"\",Template!O807)","v":""}]
[{"$f":"LEFT(Template!A808,4)","v":""},{"$f":"LEFT(Template!B808,5)","v":""},{"$f":"LEFT(Template!C808,7)","v":""},{"$f":"LEFT(Template!D808,6)","v":""},{"$f":"LEFT(Template!E808,2)","v":""},{"$f":"LEFT(Template!F808,3)","v":""},{"$f":"LEFT(Template!G808,10)","v":""},{"$f":"LEFT(Template!H808,6)","v":""},{"$f":"LEFT(Template!I808,4)","v":""},{"$f":"LEFT(Template!J808,6)","v":""},{"$f":"LEFT(Template!K808,6)","v":""},{"$f":"LEFT(Template!L808,3)","v":""},{"$f":"IF(Template!M808=\"\",\"\",Template!M808)","v":""},{"$f":"IF(Template!N808=\"\",\"\",Template!N808)","v":""},null,null,null,null,null,{"$f":"IF(Template!O808=\"\",\"\",Template!O808)","v":""}]
[{"$f":"LEFT(Template!A809,4)","v":""},{"$f":"LEFT(Template!B809,5)","v":""},{"$f":"LEFT(Template!C809,7)","v":""},{"$f":"LEFT(Template!D809,6)","v":""},{"$f":"LEFT(Template!E809,2)","v":""},{"$f":"LEFT(Template!F809,3)","v":""},{"$f":"LEFT(Template!G809,10)","v":""},{"$f":"LEFT(Template!H809,6)","v":""},{"$f":"LEFT(Template!I809,4)","v":""},{"$f":"LEFT(Template!J809,6)","v":""},{"$f":"LEFT(Template!K809,6)","v":""},{"$f":"LEFT(Template!L809,3)","v":""},{"$f":"IF(Template!M809=\"\",\"\",Template!M809)","v":""},{"$f":"IF(Template!N809=\"\",\"\",Template!N809)","v":""},null,null,null,null,null,{"$f":"IF(Template!O809=\"\",\"\",Template!O809)","v":""}]
[{"$f":"LEFT(Template!A810,4)","v":""},{"$f":"LEFT(Template!B810,5)","v":""},{"$f":"LEFT(Template!C810,7)","v":""},{"$f":"LEFT(Template!D810,6)","v":""},{"$f":"LEFT(Template!E810,2)","v":""},{"$f":"LEFT(Template!F810,3)","v":""},{"$f":"LEFT(Template!G810,10)","v":""},{"$f":"LEFT(Template!H810,6)","v":""},{"$f":"LEFT(Template!I810,4)","v":""},{"$f":"LEFT(Template!J810,6)","v":""},{"$f":"LEFT(Template!K810,6)","v":""},{"$f":"LEFT(Template!L810,3)","v":""},{"$f":"IF(Template!M810=\"\",\"\",Template!M810)","v":""},{"$f":"IF(Template!N810=\"\",\"\",Template!N810)","v":""},null,null,null,null,null,{"$f":"IF(Template!O810=\"\",\"\",Template!O810)","v":""}]
[{"$f":"LEFT(Template!A811,4)","v":""},{"$f":"LEFT(Template!B811,5)","v":""},{"$f":"LEFT(Template!C811,7)","v":""},{"$f":"LEFT(Template!D811,6)","v":""},{"$f":"LEFT(Template!E811,2)","v":""},{"$f":"LEFT(Template!F811,3)","v":""},{"$f":"LEFT(Template!G811,10)","v":""},{"$f":"LEFT(Template!H811,6)","v":""},{"$f":"LEFT(Template!I811,4)","v":""},{"$f":"LEFT(Template!J811,6)","v":""},{"$f":"LEFT(Template!K811,6)","v":""},{"$f":"LEFT(Template!L811,3)","v":""},{"$f":"IF(Template!M811=\"\",\"\",Template!M811)","v":""},{"$f":"IF(Template!N811=\"\",\"\",Template!N811)","v":""},null,null,null,null,null,{"$f":"IF(Template!O811=\"\",\"\",Template!O811)","v":""}]
[{"$f":"LEFT(Template!A812,4)","v":""},{"$f":"LEFT(Template!B812,5)","v":""},{"$f":"LEFT(Template!C812,7)","v":""},{"$f":"LEFT(Template!D812,6)","v":""},{"$f":"LEFT(Template!E812,2)","v":""},{"$f":"LEFT(Template!F812,3)","v":""},{"$f":"LEFT(Template!G812,10)","v":""},{"$f":"LEFT(Template!H812,6)","v":""},{"$f":"LEFT(Template!I812,4)","v":""},{"$f":"LEFT(Template!J812,6)","v":""},{"$f":"LEFT(Template!K812,6)","v":""},{"$f":"LEFT(Template!L812,3)","v":""},{"$f":"IF(Template!M812=\"\",\"\",Template!M812)","v":""},{"$f":"IF(Template!N812=\"\",\"\",Template!N812)","v":""},null,null,null,null,null,{"$f":"IF(Template!O812=\"\",\"\",Template!O812)","v":""}]
[{"$f":"LEFT(Template!A813,4)","v":""},{"$f":"LEFT(Template!B813,5)","v":""},{"$f":"LEFT(Template!C813,7)","v":""},{"$f":"LEFT(Template!D813,6)","v":""},{"$f":"LEFT(Template!E813,2)","v":""},{"$f":"LEFT(Template!F813,3)","v":""},{"$f":"LEFT(Template!G813,10)","v":""},{"$f":"LEFT(Template!H813,6)","v":""},{"$f":"LEFT(Template!I813,4)","v":""},{"$f":"LEFT(Template!J813,6)","v":""},{"$f":"LEFT(Template!K813,6)","v":""},{"$f":"LEFT(Template!L813,3)","v":""},{"$f":"IF(Template!M813=\"\",\"\",Template!M813)","v":""},{"$f":"IF(Template!N813=\"\",\"\",Template!N813)","v":""},null,null,null,null,null,{"$f":"IF(Template!O813=\"\",\"\",Template!O813)","v":""}]
[{"$f":"LEFT(Template!A814,4)","v":""},{"$f":"LEFT(Template!B814,5)","v":""},{"$f":"LEFT(Template!C814,7)","v":""},{"$f":"LEFT(Template!D814,6)","v":""},{"$f":"LEFT(Template!E814,2)","v":""},{"$f":"LEFT(Template!F814,3)","v":""},{"$f":"LEFT(Template!G814,10)","v":""},{"$f":"LEFT(Template!H814,6)","v":""},{"$f":"LEFT(Template!I814,4)","v":""},{"$f":"LEFT(Template!J814,6)","v":""},{"$f":"LEFT(Template!K814,6)","v":""},{"$f":"LEFT(Template!L814,3)","v":""},{"$f":"IF(Template!M814=\"\",\"\",Template!M814)","v":""},{"$f":"IF(Template!N814=\"\",\"\",Template!N814)","v":""},null,null,null,null,null,{"$f":"IF(Template!O814=\"\",\"\",Template!O814)","v":""}]
[{"$f":"LEFT(Template!A815,4)","v":""},{"$f":"LEFT(Template!B815,5)","v":""},{"$f":"LEFT(Template!C815,7)","v":""},{"$f":"LEFT(Template!D815,6)","v":""},{"$f":"LEFT(Template!E815,2)","v":""},{"$f":"LEFT(Template!F815,3)","v":""},{"$f":"LEFT(Template!G815,10)","v":""},{"$f":"LEFT(Template!H815,6)","v":""},{"$f":"LEFT(Template!I815,4)","v":""},{"$f":"LEFT(Template!J815,6)","v":""},{"$f":"LEFT(Template!K815,6)","v":""},{"$f":"LEFT(Template!L815,3)","v":""},{"$f":"IF(Template!M815=\"\",\"\",Template!M815)","v":""},{"$f":"IF(Template!N815=\"\",\"\",Template!N815)","v":""},null,null,null,null,null,{"$f":"IF(Template!O815=\"\",\"\",Template!O815)","v":""}]
[{"$f":"LEFT(Template!A816,4)","v":""},{"$f":"LEFT(Template!B816,5)","v":""},{"$f":"LEFT(Template!C816,7)","v":""},{"$f":"LEFT(Template!D816,6)","v":""},{"$f":"LEFT(Template!E816,2)","v":""},{"$f":"LEFT(Template!F816,3)","v":""},{"$f":"LEFT(Template!G816,10)","v":""},{"$f":"LEFT(Template!H816,6)","v":""},{"$f":"LEFT(Template!I816,4)","v":""},{"$f":"LEFT(Template!J816,6)","v":""},{"$f":"LEFT(Template!K816,6)","v":""},{"$f":"LEFT(Template!L816,3)","v":""},{"$f":"IF(Template!M816=\"\",\"\",Template!M816)","v":""},{"$f":"IF(Template!N816=\"\",\"\",Template!N816)","v":""},null,null,null,null,null,{"$f":"IF(Template!O816=\"\",\"\",Template!O816)","v":""}]
[{"$f":"LEFT(Template!A817,4)","v":""},{"$f":"LEFT(Template!B817,5)","v":""},{"$f":"LEFT(Template!C817,7)","v":""},{"$f":"LEFT(Template!D817,6)","v":""},{"$f":"LEFT(Template!E817,2)","v":""},{"$f":"LEFT(Template!F817,3)","v":""},{"$f":"LEFT(Template!G817,10)","v":""},{"$f":"LEFT(Template!H817,6)","v":""},{"$f":"LEFT(Template!I817,4)","v":""},{"$f":"LEFT(Template!J817,6)","v":""},{"$f":"LEFT(Template!K817,6)","v":""},{"$f":"LEFT(Template!L817,3)","v":""},{"$f":"IF(Template!M817=\"\",\"\",Template!M817)","v":""},{"$f":"IF(Template!N817=\"\",\"\",Template!N817)","v":""},null,null,null,null,null,{"$f":"IF(Template!O817=\"\",\"\",Template!O817)","v":""}]
[{"$f":"LEFT(Template!A818,4)","v":""},{"$f":"LEFT(Template!B818,5)","v":""},{"$f":"LEFT(Template!C818,7)","v":""},{"$f":"LEFT(Template!D818,6)","v":""},{"$f":"LEFT(Template!E818,2)","v":""},{"$f":"LEFT(Template!F818,3)","v":""},{"$f":"LEFT(Template!G818,10)","v":""},{"$f":"LEFT(Template!H818,6)","v":""},{"$f":"LEFT(Template!I818,4)","v":""},{"$f":"LEFT(Template!J818,6)","v":""},{"$f":"LEFT(Template!K818,6)","v":""},{"$f":"LEFT(Template!L818,3)","v":""},{"$f":"IF(Template!M818=\"\",\"\",Template!M818)","v":""},{"$f":"IF(Template!N818=\"\",\"\",Template!N818)","v":""},null,null,null,null,null,{"$f":"IF(Template!O818=\"\",\"\",Template!O818)","v":""}]
[{"$f":"LEFT(Template!A819,4)","v":""},{"$f":"LEFT(Template!B819,5)","v":""},{"$f":"LEFT(Template!C819,7)","v":""},{"$f":"LEFT(Template!D819,6)","v":""},{"$f":"LEFT(Template!E819,2)","v":""},{"$f":"LEFT(Template!F819,3)","v":""},{"$f":"LEFT(Template!G819,10)","v":""},{"$f":"LEFT(Template!H819,6)","v":""},{"$f":"LEFT(Template!I819,4)","v":""},{"$f":"LEFT(Template!J819,6)","v":""},{"$f":"LEFT(Template!K819,6)","v":""},{"$f":"LEFT(Template!L819,3)","v":""},{"$f":"IF(Template!M819=\"\",\"\",Template!M819)","v":""},{"$f":"IF(Template!N819=\"\",\"\",Template!N819)","v":""},null,null,null,null,null,{"$f":"IF(Template!O819=\"\",\"\",Template!O819)","v":""}]
[{"$f":"LEFT(Template!A820,4)","v":""},{"$f":"LEFT(Template!B820,5)","v":""},{"$f":"LEFT(Template!C820,7)","v":""},{"$f":"LEFT(Template!D820,6)","v":""},{"$f":"LEFT(Template!E820,2)","v":""},{"$f":"LEFT(Template!F820,3)","v":""},{"$f":"LEFT(Template!G820,10)","v":""},{"$f":"LEFT(Template!H820,6)","v":""},{"$f":"LEFT(Template!I820,4)","v":""},{"$f":"LEFT(Template!J820,6)","v":""},{"$f":"LEFT(Template!K820,6)","v":""},{"$f":"LEFT(Template!L820,3)","v":""},{"$f":"IF(Template!M820=\"\",\"\",Template!M820)","v":""},{"$f":"IF(Template!N820=\"\",\"\",Template!N820)","v":""},null,null,null,null,null,{"$f":"IF(Template!O820=\"\",\"\",Template!O820)","v":""}]
[{"$f":"LEFT(Template!A821,4)","v":""},{"$f":"LEFT(Template!B821,5)","v":""},{"$f":"LEFT(Template!C821,7)","v":""},{"$f":"LEFT(Template!D821,6)","v":""},{"$f":"LEFT(Template!E821,2)","v":""},{"$f":"LEFT(Template!F821,3)","v":""},{"$f":"LEFT(Template!G821,10)","v":""},{"$f":"LEFT(Template!H821,6)","v":""},{"$f":"LEFT(Template!I821,4)","v":""},{"$f":"LEFT(Template!J821,6)","v":""},{"$f":"LEFT(Template!K821,6)","v":""},{"$f":"LEFT(Template!L821,3)","v":""},{"$f":"IF(Template!M821=\"\",\"\",Template!M821)","v":""},{"$f":"IF(Template!N821=\"\",\"\",Template!N821)","v":""},null,null,null,null,null,{"$f":"IF(Template!O821=\"\",\"\",Template!O821)","v":""}]
[{"$f":"LEFT(Template!A822,4)","v":""},{"$f":"LEFT(Template!B822,5)","v":""},{"$f":"LEFT(Template!C822,7)","v":""},{"$f":"LEFT(Template!D822,6)","v":""},{"$f":"LEFT(Template!E822,2)","v":""},{"$f":"LEFT(Template!F822,3)","v":""},{"$f":"LEFT(Template!G822,10)","v":""},{"$f":"LEFT(Template!H822,6)","v":""},{"$f":"LEFT(Template!I822,4)","v":""},{"$f":"LEFT(Template!J822,6)","v":""},{"$f":"LEFT(Template!K822,6)","v":""},{"$f":"LEFT(Template!L822,3)","v":""},{"$f":"IF(Template!M822=\"\",\"\",Template!M822)","v":""},{"$f":"IF(Template!N822=\"\",\"\",Template!N822)","v":""},null,null,null,null,null,{"$f":"IF(Template!O822=\"\",\"\",Template!O822)","v":""}]
[{"$f":"LEFT(Template!A823,4)","v":""},{"$f":"LEFT(Template!B823,5)","v":""},{"$f":"LEFT(Template!C823,7)","v":""},{"$f":"LEFT(Template!D823,6)","v":""},{"$f":"LEFT(Template!E823,2)","v":""},{"$f":"LEFT(Template!F823,3)","v":""},{"$f":"LEFT(Template!G823,10)","v":""},{"$f":"LEFT(Template!H823,6)","v":""},{"$f":"LEFT(Template!I823,4)","v":""},{"$f":"LEFT(Template!J823,6)","v":""},{"$f":"LEFT(Template!K823,6)","v":""},{"$f":"LEFT(Template!L823,3)","v":""},{"$f":"IF(Template!M823=\"\",\"\",Template!M823)","v":""},{"$f":"IF(Template!N823=\"\",\"\",Template!N823)","v":""},null,null,null,null,null,{"$f":"IF(Template!O823=\"\",\"\",Template!O823)","v":""}]
[{"$f":"LEFT(Template!A824,4)","v":""},{"$f":"LEFT(Template!B824,5)","v":""},{"$f":"LEFT(Template!C824,7)","v":""},{"$f":"LEFT(Template!D824,6)","v":""},{"$f":"LEFT(Template!E824,2)","v":""},{"$f":"LEFT(Template!F824,3)","v":""},{"$f":"LEFT(Template!G824,10)","v":""},{"$f":"LEFT(Template!H824,6)","v":""},{"$f":"LEFT(Template!I824,4)","v":""},{"$f":"LEFT(Template!J824,6)","v":""},{"$f":"LEFT(Template!K824,6)","v":""},{"$f":"LEFT(Template!L824,3)","v":""},{"$f":"IF(Template!M824=\"\",\"\",Template!M824)","v":""},{"$f":"IF(Template!N824=\"\",\"\",Template!N824)","v":""},null,null,null,null,null,{"$f":"IF(Template!O824=\"\",\"\",Template!O824)","v":""}]
[{"$f":"LEFT(Template!A825,4)","v":""},{"$f":"LEFT(Template!B825,5)","v":""},{"$f":"LEFT(Template!C825,7)","v":""},{"$f":"LEFT(Template!D825,6)","v":""},{"$f":"LEFT(Template!E825,2)","v":""},{"$f":"LEFT(Template!F825,3)","v":""},{"$f":"LEFT(Template!G825,10)","v":""},{"$f":"LEFT(Template!H825,6)","v":""},{"$f":"LEFT(Template!I825,4)","v":""},{"$f":"LEFT(Template!J825,6)","v":""},{"$f":"LEFT(Template!K825,6)","v":""},{"$f":"LEFT(Template!L825,3)","v":""},{"$f":"IF(Template!M825=\"\",\"\",Template!M825)","v":""},{"$f":"IF(Template!N825=\"\",\"\",Template!N825)","v":""},null,null,null,null,null,{"$f":"IF(Template!O825=\"\",\"\",Template!O825)","v":""}]
[{"$f":"LEFT(Template!A826,4)","v":""},{"$f":"LEFT(Template!B826,5)","v":""},{"$f":"LEFT(Template!C826,7)","v":""},{"$f":"LEFT(Template!D826,6)","v":""},{"$f":"LEFT(Template!E826,2)","v":""},{"$f":"LEFT(Template!F826,3)","v":""},{"$f":"LEFT(Template!G826,10)","v":""},{"$f":"LEFT(Template!H826,6)","v":""},{"$f":"LEFT(Template!I826,4)","v":""},{"$f":"LEFT(Template!J826,6)","v":""},{"$f":"LEFT(Template!K826,6)","v":""},{"$f":"LEFT(Template!L826,3)","v":""},{"$f":"IF(Template!M826=\"\",\"\",Template!M826)","v":""},{"$f":"IF(Template!N826=\"\",\"\",Template!N826)","v":""},null,null,null,null,null,{"$f":"IF(Template!O826=\"\",\"\",Template!O826)","v":""}]
[{"$f":"LEFT(Template!A827,4)","v":""},{"$f":"LEFT(Template!B827,5)","v":""},{"$f":"LEFT(Template!C827,7)","v":""},{"$f":"LEFT(Template!D827,6)","v":""},{"$f":"LEFT(Template!E827,2)","v":""},{"$f":"LEFT(Template!F827,3)","v":""},{"$f":"LEFT(Template!G827,10)","v":""},{"$f":"LEFT(Template!H827,6)","v":""},{"$f":"LEFT(Template!I827,4)","v":""},{"$f":"LEFT(Template!J827,6)","v":""},{"$f":"LEFT(Template!K827,6)","v":""},{"$f":"LEFT(Template!L827,3)","v":""},{"$f":"IF(Template!M827=\"\",\"\",Template!M827)","v":""},{"$f":"IF(Template!N827=\"\",\"\",Template!N827)","v":""},null,null,null,null,null,{"$f":"IF(Template!O827=\"\",\"\",Template!O827)","v":""}]
[{"$f":"LEFT(Template!A828,4)","v":""},{"$f":"LEFT(Template!B828,5)","v":""},{"$f":"LEFT(Template!C828,7)","v":""},{"$f":"LEFT(Template!D828,6)","v":""},{"$f":"LEFT(Template!E828,2)","v":""},{"$f":"LEFT(Template!F828,3)","v":""},{"$f":"LEFT(Template!G828,10)","v":""},{"$f":"LEFT(Template!H828,6)","v":""},{"$f":"LEFT(Template!I828,4)","v":""},{"$f":"LEFT(Template!J828,6)","v":""},{"$f":"LEFT(Template!K828,6)","v":""},{"$f":"LEFT(Template!L828,3)","v":""},{"$f":"IF(Template!M828=\"\",\"\",Template!M828)","v":""},{"$f":"IF(Template!N828=\"\",\"\",Template!N828)","v":""},null,null,null,null,null,{"$f":"IF(Template!O828=\"\",\"\",Template!O828)","v":""}]
[{"$f":"LEFT(Template!A829,4)","v":""},{"$f":"LEFT(Template!B829,5)","v":""},{"$f":"LEFT(Template!C829,7)","v":""},{"$f":"LEFT(Template!D829,6)","v":""},{"$f":"LEFT(Template!E829,2)","v":""},{"$f":"LEFT(Template!F829,3)","v":""},{"$f":"LEFT(Template!G829,10)","v":""},{"$f":"LEFT(Template!H829,6)","v":""},{"$f":"LEFT(Template!I829,4)","v":""},{"$f":"LEFT(Template!J829,6)","v":""},{"$f":"LEFT(Template!K829,6)","v":""},{"$f":"LEFT(Template!L829,3)","v":""},{"$f":"IF(Template!M829=\"\",\"\",Template!M829)","v":""},{"$f":"IF(Template!N829=\"\",\"\",Template!N829)","v":""},null,null,null,null,null,{"$f":"IF(Template!O829=\"\",\"\",Template!O829)","v":""}]
[{"$f":"LEFT(Template!A830,4)","v":""},{"$f":"LEFT(Template!B830,5)","v":""},{"$f":"LEFT(Template!C830,7)","v":""},{"$f":"LEFT(Template!D830,6)","v":""},{"$f":"LEFT(Template!E830,2)","v":""},{"$f":"LEFT(Template!F830,3)","v":""},{"$f":"LEFT(Template!G830,10)","v":""},{"$f":"LEFT(Template!H830,6)","v":""},{"$f":"LEFT(Template!I830,4)","v":""},{"$f":"LEFT(Template!J830,6)","v":""},{"$f":"LEFT(Template!K830,6)","v":""},{"$f":"LEFT(Template!L830,3)","v":""},{"$f":"IF(Template!M830=\"\",\"\",Template!M830)","v":""},{"$f":"IF(Template!N830=\"\",\"\",Template!N830)","v":""},null,null,null,null,null,{"$f":"IF(Template!O830=\"\",\"\",Template!O830)","v":""}]
[{"$f":"LEFT(Template!A831,4)","v":""},{"$f":"LEFT(Template!B831,5)","v":""},{"$f":"LEFT(Template!C831,7)","v":""},{"$f":"LEFT(Template!D831,6)","v":""},{"$f":"LEFT(Template!E831,2)","v":""},{"$f":"LEFT(Template!F831,3)","v":""},{"$f":"LEFT(Template!G831,10)","v":""},{"$f":"LEFT(Template!H831,6)","v":""},{"$f":"LEFT(Template!I831,4)","v":""},{"$f":"LEFT(Template!J831,6)","v":""},{"$f":"LEFT(Template!K831,6)","v":""},{"$f":"LEFT(Template!L831,3)","v":""},{"$f":"IF(Template!M831=\"\",\"\",Template!M831)","v":""},{"$f":"IF(Template!N831=\"\",\"\",Template!N831)","v":""},null,null,null,null,null,{"$f":"IF(Template!O831=\"\",\"\",Template!O831)","v":""}]
[{"$f":"LEFT(Template!A832,4)","v":""},{"$f":"LEFT(Template!B832,5)","v":""},{"$f":"LEFT(Template!C832,7)","v":""},{"$f":"LEFT(Template!D832,6)","v":""},{"$f":"LEFT(Template!E832,2)","v":""},{"$f":"LEFT(Template!F832,3)","v":""},{"$f":"LEFT(Template!G832,10)","v":""},{"$f":"LEFT(Template!H832,6)","v":""},{"$f":"LEFT(Template!I832,4)","v":""},{"$f":"LEFT(Template!J832,6)","v":""},{"$f":"LEFT(Template!K832,6)","v":""},{"$f":"LEFT(Template!L832,3)","v":""},{"$f":"IF(Template!M832=\"\",\"\",Template!M832)","v":""},{"$f":"IF(Template!N832=\"\",\"\",Template!N832)","v":""},null,null,null,null,null,{"$f":"IF(Template!O832=\"\",\"\",Template!O832)","v":""}]
[{"$f":"LEFT(Template!A833,4)","v":""},{"$f":"LEFT(Template!B833,5)","v":""},{"$f":"LEFT(Template!C833,7)","v":""},{"$f":"LEFT(Template!D833,6)","v":""},{"$f":"LEFT(Template!E833,2)","v":""},{"$f":"LEFT(Template!F833,3)","v":""},{"$f":"LEFT(Template!G833,10)","v":""},{"$f":"LEFT(Template!H833,6)","v":""},{"$f":"LEFT(Template!I833,4)","v":""},{"$f":"LEFT(Template!J833,6)","v":""},{"$f":"LEFT(Template!K833,6)","v":""},{"$f":"LEFT(Template!L833,3)","v":""},{"$f":"IF(Template!M833=\"\",\"\",Template!M833)","v":""},{"$f":"IF(Template!N833=\"\",\"\",Template!N833)","v":""},null,null,null,null,null,{"$f":"IF(Template!O833=\"\",\"\",Template!O833)","v":""}]
[{"$f":"LEFT(Template!A834,4)","v":""},{"$f":"LEFT(Template!B834,5)","v":""},{"$f":"LEFT(Template!C834,7)","v":""},{"$f":"LEFT(Template!D834,6)","v":""},{"$f":"LEFT(Template!E834,2)","v":""},{"$f":"LEFT(Template!F834,3)","v":""},{"$f":"LEFT(Template!G834,10)","v":""},{"$f":"LEFT(Template!H834,6)","v":""},{"$f":"LEFT(Template!I834,4)","v":""},{"$f":"LEFT(Template!J834,6)","v":""},{"$f":"LEFT(Template!K834,6)","v":""},{"$f":"LEFT(Template!L834,3)","v":""},{"$f":"IF(Template!M834=\"\",\"\",Template!M834)","v":""},{"$f":"IF(Template!N834=\"\",\"\",Template!N834)","v":""},null,null,null,null,null,{"$f":"IF(Template!O834=\"\",\"\",Template!O834)","v":""}]
[{"$f":"LEFT(Template!A835,4)","v":""},{"$f":"LEFT(Template!B835,5)","v":""},{"$f":"LEFT(Template!C835,7)","v":""},{"$f":"LEFT(Template!D835,6)","v":""},{"$f":"LEFT(Template!E835,2)","v":""},{"$f":"LEFT(Template!F835,3)","v":""},{"$f":"LEFT(Template!G835,10)","v":""},{"$f":"LEFT(Template!H835,6)","v":""},{"$f":"LEFT(Template!I835,4)","v":""},{"$f":"LEFT(Template!J835,6)","v":""},{"$f":"LEFT(Template!K835,6)","v":""},{"$f":"LEFT(Template!L835,3)","v":""},{"$f":"IF(Template!M835=\"\",\"\",Template!M835)","v":""},{"$f":"IF(Template!N835=\"\",\"\",Template!N835)","v":""},null,null,null,null,null,{"$f":"IF(Template!O835=\"\",\"\",Template!O835)","v":""}]
[{"$f":"LEFT(Template!A836,4)","v":""},{"$f":"LEFT(Template!B836,5)","v":""},{"$f":"LEFT(Template!C836,7)","v":""},{"$f":"LEFT(Template!D836,6)","v":""},{"$f":"LEFT(Template!E836,2)","v":""},{"$f":"LEFT(Template!F836,3)","v":""},{"$f":"LEFT(Template!G836,10)","v":""},{"$f":"LEFT(Template!H836,6)","v":""},{"$f":"LEFT(Template!I836,4)","v":""},{"$f":"LEFT(Template!J836,6)","v":""},{"$f":"LEFT(Template!K836,6)","v":""},{"$f":"LEFT(Template!L836,3)","v":""},{"$f":"IF(Template!M836=\"\",\"\",Template!M836)","v":""},{"$f":"IF(Template!N836=\"\",\"\",Template!N836)","v":""},null,null,null,null,null,{"$f":"IF(Template!O836=\"\",\"\",Template!O836)","v":""}]
[{"$f":"LEFT(Template!A837,4)","v":""},{"$f":"LEFT(Template!B837,5)","v":""},{"$f":"LEFT(Template!C837,7)","v":""},{"$f":"LEFT(Template!D837,6)","v":""},{"$f":"LEFT(Template!E837,2)","v":""},{"$f":"LEFT(Template!F837,3)","v":""},{"$f":"LEFT(Template!G837,10)","v":""},{"$f":"LEFT(Template!H837,6)","v":""},{"$f":"LEFT(Template!I837,4)","v":""},{"$f":"LEFT(Template!J837,6)","v":""},{"$f":"LEFT(Template!K837,6)","v":""},{"$f":"LEFT(Template!L837,3)","v":""},{"$f":"IF(Template!M837=\"\",\"\",Template!M837)","v":""},{"$f":"IF(Template!N837=\"\",\"\",Template!N837)","v":""},null,null,null,null,null,{"$f":"IF(Template!O837=\"\",\"\",Template!O837)","v":""}]
[{"$f":"LEFT(Template!A838,4)","v":""},{"$f":"LEFT(Template!B838,5)","v":""},{"$f":"LEFT(Template!C838,7)","v":""},{"$f":"LEFT(Template!D838,6)","v":""},{"$f":"LEFT(Template!E838,2)","v":""},{"$f":"LEFT(Template!F838,3)","v":""},{"$f":"LEFT(Template!G838,10)","v":""},{"$f":"LEFT(Template!H838,6)","v":""},{"$f":"LEFT(Template!I838,4)","v":""},{"$f":"LEFT(Template!J838,6)","v":""},{"$f":"LEFT(Template!K838,6)","v":""},{"$f":"LEFT(Template!L838,3)","v":""},{"$f":"IF(Template!M838=\"\",\"\",Template!M838)","v":""},{"$f":"IF(Template!N838=\"\",\"\",Template!N838)","v":""},null,null,null,null,null,{"$f":"IF(Template!O838=\"\",\"\",Template!O838)","v":""}]
[{"$f":"LEFT(Template!A839,4)","v":""},{"$f":"LEFT(Template!B839,5)","v":""},{"$f":"LEFT(Template!C839,7)","v":""},{"$f":"LEFT(Template!D839,6)","v":""},{"$f":"LEFT(Template!E839,2)","v":""},{"$f":"LEFT(Template!F839,3)","v":""},{"$f":"LEFT(Template!G839,10)","v":""},{"$f":"LEFT(Template!H839,6)","v":""},{"$f":"LEFT(Template!I839,4)","v":""},{"$f":"LEFT(Template!J839,6)","v":""},{"$f":"LEFT(Template!K839,6)","v":""},{"$f":"LEFT(Template!L839,3)","v":""},{"$f":"IF(Template!M839=\"\",\"\",Template!M839)","v":""},{"$f":"IF(Template!N839=\"\",\"\",Template!N839)","v":""},null,null,null,null,null,{"$f":"IF(Template!O839=\"\",\"\",Template!O839)","v":""}]
[{"$f":"LEFT(Template!A840,4)","v":""},{"$f":"LEFT(Template!B840,5)","v":""},{"$f":"LEFT(Template!C840,7)","v":""},{"$f":"LEFT(Template!D840,6)","v":""},{"$f":"LEFT(Template!E840,2)","v":""},{"$f":"LEFT(Template!F840,3)","v":""},{"$f":"LEFT(Template!G840,10)","v":""},{"$f":"LEFT(Template!H840,6)","v":""},{"$f":"LEFT(Template!I840,4)","v":""},{"$f":"LEFT(Template!J840,6)","v":""},{"$f":"LEFT(Template!K840,6)","v":""},{"$f":"LEFT(Template!L840,3)","v":""},{"$f":"IF(Template!M840=\"\",\"\",Template!M840)","v":""},{"$f":"IF(Template!N840=\"\",\"\",Template!N840)","v":""},null,null,null,null,null,{"$f":"IF(Template!O840=\"\",\"\",Template!O840)","v":""}]
[{"$f":"LEFT(Template!A841,4)","v":""},{"$f":"LEFT(Template!B841,5)","v":""},{"$f":"LEFT(Template!C841,7)","v":""},{"$f":"LEFT(Template!D841,6)","v":""},{"$f":"LEFT(Template!E841,2)","v":""},{"$f":"LEFT(Template!F841,3)","v":""},{"$f":"LEFT(Template!G841,10)","v":""},{"$f":"LEFT(Template!H841,6)","v":""},{"$f":"LEFT(Template!I841,4)","v":""},{"$f":"LEFT(Template!J841,6)","v":""},{"$f":"LEFT(Template!K841,6)","v":""},{"$f":"LEFT(Template!L841,3)","v":""},{"$f":"IF(Template!M841=\"\",\"\",Template!M841)","v":""},{"$f":"IF(Template!N841=\"\",\"\",Template!N841)","v":""},null,null,null,null,null,{"$f":"IF(Template!O841=\"\",\"\",Template!O841)","v":""}]
[{"$f":"LEFT(Template!A842,4)","v":""},{"$f":"LEFT(Template!B842,5)","v":""},{"$f":"LEFT(Template!C842,7)","v":""},{"$f":"LEFT(Template!D842,6)","v":""},{"$f":"LEFT(Template!E842,2)","v":""},{"$f":"LEFT(Template!F842,3)","v":""},{"$f":"LEFT(Template!G842,10)","v":""},{"$f":"LEFT(Template!H842,6)","v":""},{"$f":"LEFT(Template!I842,4)","v":""},{"$f":"LEFT(Template!J842,6)","v":""},{"$f":"LEFT(Template!K842,6)","v":""},{"$f":"LEFT(Template!L842,3)","v":""},{"$f":"IF(Template!M842=\"\",\"\",Template!M842)","v":""},{"$f":"IF(Template!N842=\"\",\"\",Template!N842)","v":""},null,null,null,null,null,{"$f":"IF(Template!O842=\"\",\"\",Template!O842)","v":""}]
[{"$f":"LEFT(Template!A843,4)","v":""},{"$f":"LEFT(Template!B843,5)","v":""},{"$f":"LEFT(Template!C843,7)","v":""},{"$f":"LEFT(Template!D843,6)","v":""},{"$f":"LEFT(Template!E843,2)","v":""},{"$f":"LEFT(Template!F843,3)","v":""},{"$f":"LEFT(Template!G843,10)","v":""},{"$f":"LEFT(Template!H843,6)","v":""},{"$f":"LEFT(Template!I843,4)","v":""},{"$f":"LEFT(Template!J843,6)","v":""},{"$f":"LEFT(Template!K843,6)","v":""},{"$f":"LEFT(Template!L843,3)","v":""},{"$f":"IF(Template!M843=\"\",\"\",Template!M843)","v":""},{"$f":"IF(Template!N843=\"\",\"\",Template!N843)","v":""},null,null,null,null,null,{"$f":"IF(Template!O843=\"\",\"\",Template!O843)","v":""}]
[{"$f":"LEFT(Template!A844,4)","v":""},{"$f":"LEFT(Template!B844,5)","v":""},{"$f":"LEFT(Template!C844,7)","v":""},{"$f":"LEFT(Template!D844,6)","v":""},{"$f":"LEFT(Template!E844,2)","v":""},{"$f":"LEFT(Template!F844,3)","v":""},{"$f":"LEFT(Template!G844,10)","v":""},{"$f":"LEFT(Template!H844,6)","v":""},{"$f":"LEFT(Template!I844,4)","v":""},{"$f":"LEFT(Template!J844,6)","v":""},{"$f":"LEFT(Template!K844,6)","v":""},{"$f":"LEFT(Template!L844,3)","v":""},{"$f":"IF(Template!M844=\"\",\"\",Template!M844)","v":""},{"$f":"IF(Template!N844=\"\",\"\",Template!N844)","v":""},null,null,null,null,null,{"$f":"IF(Template!O844=\"\",\"\",Template!O844)","v":""}]
[{"$f":"LEFT(Template!A845,4)","v":""},{"$f":"LEFT(Template!B845,5)","v":""},{"$f":"LEFT(Template!C845,7)","v":""},{"$f":"LEFT(Template!D845,6)","v":""},{"$f":"LEFT(Template!E845,2)","v":""},{"$f":"LEFT(Template!F845,3)","v":""},{"$f":"LEFT(Template!G845,10)","v":""},{"$f":"LEFT(Template!H845,6)","v":""},{"$f":"LEFT(Template!I845,4)","v":""},{"$f":"LEFT(Template!J845,6)","v":""},{"$f":"LEFT(Template!K845,6)","v":""},{"$f":"LEFT(Template!L845,3)","v":""},{"$f":"IF(Template!M845=\"\",\"\",Template!M845)","v":""},{"$f":"IF(Template!N845=\"\",\"\",Template!N845)","v":""},null,null,null,null,null,{"$f":"IF(Template!O845=\"\",\"\",Template!O845)","v":""}]
[{"$f":"LEFT(Template!A846,4)","v":""},{"$f":"LEFT(Template!B846,5)","v":""},{"$f":"LEFT(Template!C846,7)","v":""},{"$f":"LEFT(Template!D846,6)","v":""},{"$f":"LEFT(Template!E846,2)","v":""},{"$f":"LEFT(Template!F846,3)","v":""},{"$f":"LEFT(Template!G846,10)","v":""},{"$f":"LEFT(Template!H846,6)","v":""},{"$f":"LEFT(Template!I846,4)","v":""},{"$f":"LEFT(Template!J846,6)","v":""},{"$f":"LEFT(Template!K846,6)","v":""},{"$f":"LEFT(Template!L846,3)","v":""},{"$f":"IF(Template!M846=\"\",\"\",Template!M846)","v":""},{"$f":"IF(Template!N846=\"\",\"\",Template!N846)","v":""},null,null,null,null,null,{"$f":"IF(Template!O846=\"\",\"\",Template!O846)","v":""}]
[{"$f":"LEFT(Template!A847,4)","v":""},{"$f":"LEFT(Template!B847,5)","v":""},{"$f":"LEFT(Template!C847,7)","v":""},{"$f":"LEFT(Template!D847,6)","v":""},{"$f":"LEFT(Template!E847,2)","v":""},{"$f":"LEFT(Template!F847,3)","v":""},{"$f":"LEFT(Template!G847,10)","v":""},{"$f":"LEFT(Template!H847,6)","v":""},{"$f":"LEFT(Template!I847,4)","v":""},{"$f":"LEFT(Template!J847,6)","v":""},{"$f":"LEFT(Template!K847,6)","v":""},{"$f":"LEFT(Template!L847,3)","v":""},{"$f":"IF(Template!M847=\"\",\"\",Template!M847)","v":""},{"$f":"IF(Template!N847=\"\",\"\",Template!N847)","v":""},null,null,null,null,null,{"$f":"IF(Template!O847=\"\",\"\",Template!O847)","v":""}]
[{"$f":"LEFT(Template!A848,4)","v":""},{"$f":"LEFT(Template!B848,5)","v":""},{"$f":"LEFT(Template!C848,7)","v":""},{"$f":"LEFT(Template!D848,6)","v":""},{"$f":"LEFT(Template!E848,2)","v":""},{"$f":"LEFT(Template!F848,3)","v":""},{"$f":"LEFT(Template!G848,10)","v":""},{"$f":"LEFT(Template!H848,6)","v":""},{"$f":"LEFT(Template!I848,4)","v":""},{"$f":"LEFT(Template!J848,6)","v":""},{"$f":"LEFT(Template!K848,6)","v":""},{"$f":"LEFT(Template!L848,3)","v":""},{"$f":"IF(Template!M848=\"\",\"\",Template!M848)","v":""},{"$f":"IF(Template!N848=\"\",\"\",Template!N848)","v":""},null,null,null,null,null,{"$f":"IF(Template!O848=\"\",\"\",Template!O848)","v":""}]
[{"$f":"LEFT(Template!A849,4)","v":""},{"$f":"LEFT(Template!B849,5)","v":""},{"$f":"LEFT(Template!C849,7)","v":""},{"$f":"LEFT(Template!D849,6)","v":""},{"$f":"LEFT(Template!E849,2)","v":""},{"$f":"LEFT(Template!F849,3)","v":""},{"$f":"LEFT(Template!G849,10)","v":""},{"$f":"LEFT(Template!H849,6)","v":""},{"$f":"LEFT(Template!I849,4)","v":""},{"$f":"LEFT(Template!J849,6)","v":""},{"$f":"LEFT(Template!K849,6)","v":""},{"$f":"LEFT(Template!L849,3)","v":""},{"$f":"IF(Template!M849=\"\",\"\",Template!M849)","v":""},{"$f":"IF(Template!N849=\"\",\"\",Template!N849)","v":""},null,null,null,null,null,{"$f":"IF(Template!O849=\"\",\"\",Template!O849)","v":""}]
[{"$f":"LEFT(Template!A850,4)","v":""},{"$f":"LEFT(Template!B850,5)","v":""},{"$f":"LEFT(Template!C850,7)","v":""},{"$f":"LEFT(Template!D850,6)","v":""},{"$f":"LEFT(Template!E850,2)","v":""},{"$f":"LEFT(Template!F850,3)","v":""},{"$f":"LEFT(Template!G850,10)","v":""},{"$f":"LEFT(Template!H850,6)","v":""},{"$f":"LEFT(Template!I850,4)","v":""},{"$f":"LEFT(Template!J850,6)","v":""},{"$f":"LEFT(Template!K850,6)","v":""},{"$f":"LEFT(Template!L850,3)","v":""},{"$f":"IF(Template!M850=\"\",\"\",Template!M850)","v":""},{"$f":"IF(Template!N850=\"\",\"\",Template!N850)","v":""},null,null,null,null,null,{"$f":"IF(Template!O850=\"\",\"\",Template!O850)","v":""}]
[{"$f":"LEFT(Template!A851,4)","v":""},{"$f":"LEFT(Template!B851,5)","v":""},{"$f":"LEFT(Template!C851,7)","v":""},{"$f":"LEFT(Template!D851,6)","v":""},{"$f":"LEFT(Template!E851,2)","v":""},{"$f":"LEFT(Template!F851,3)","v":""},{"$f":"LEFT(Template!G851,10)","v":""},{"$f":"LEFT(Template!H851,6)","v":""},{"$f":"LEFT(Template!I851,4)","v":""},{"$f":"LEFT(Template!J851,6)","v":""},{"$f":"LEFT(Template!K851,6)","v":""},{"$f":"LEFT(Template!L851,3)","v":""},{"$f":"IF(Template!M851=\"\",\"\",Template!M851)","v":""},{"$f":"IF(Template!N851=\"\",\"\",Template!N851)","v":""},null,null,null,null,null,{"$f":"IF(Template!O851=\"\",\"\",Template!O851)","v":""}]
[{"$f":"LEFT(Template!A852,4)","v":""},{"$f":"LEFT(Template!B852,5)","v":""},{"$f":"LEFT(Template!C852,7)","v":""},{"$f":"LEFT(Template!D852,6)","v":""},{"$f":"LEFT(Template!E852,2)","v":""},{"$f":"LEFT(Template!F852,3)","v":""},{"$f":"LEFT(Template!G852,10)","v":""},{"$f":"LEFT(Template!H852,6)","v":""},{"$f":"LEFT(Template!I852,4)","v":""},{"$f":"LEFT(Template!J852,6)","v":""},{"$f":"LEFT(Template!K852,6)","v":""},{"$f":"LEFT(Template!L852,3)","v":""},{"$f":"IF(Template!M852=\"\",\"\",Template!M852)","v":""},{"$f":"IF(Template!N852=\"\",\"\",Template!N852)","v":""},null,null,null,null,null,{"$f":"IF(Template!O852=\"\",\"\",Template!O852)","v":""}]
[{"$f":"LEFT(Template!A853,4)","v":""},{"$f":"LEFT(Template!B853,5)","v":""},{"$f":"LEFT(Template!C853,7)","v":""},{"$f":"LEFT(Template!D853,6)","v":""},{"$f":"LEFT(Template!E853,2)","v":""},{"$f":"LEFT(Template!F853,3)","v":""},{"$f":"LEFT(Template!G853,10)","v":""},{"$f":"LEFT(Template!H853,6)","v":""},{"$f":"LEFT(Template!I853,4)","v":""},{"$f":"LEFT(Template!J853,6)","v":""},{"$f":"LEFT(Template!K853,6)","v":""},{"$f":"LEFT(Template!L853,3)","v":""},{"$f":"IF(Template!M853=\"\",\"\",Template!M853)","v":""},{"$f":"IF(Template!N853=\"\",\"\",Template!N853)","v":""},null,null,null,null,null,{"$f":"IF(Template!O853=\"\",\"\",Template!O853)","v":""}]
[{"$f":"LEFT(Template!A854,4)","v":""},{"$f":"LEFT(Template!B854,5)","v":""},{"$f":"LEFT(Template!C854,7)","v":""},{"$f":"LEFT(Template!D854,6)","v":""},{"$f":"LEFT(Template!E854,2)","v":""},{"$f":"LEFT(Template!F854,3)","v":""},{"$f":"LEFT(Template!G854,10)","v":""},{"$f":"LEFT(Template!H854,6)","v":""},{"$f":"LEFT(Template!I854,4)","v":""},{"$f":"LEFT(Template!J854,6)","v":""},{"$f":"LEFT(Template!K854,6)","v":""},{"$f":"LEFT(Template!L854,3)","v":""},{"$f":"IF(Template!M854=\"\",\"\",Template!M854)","v":""},{"$f":"IF(Template!N854=\"\",\"\",Template!N854)","v":""},null,null,null,null,null,{"$f":"IF(Template!O854=\"\",\"\",Template!O854)","v":""}]
[{"$f":"LEFT(Template!A855,4)","v":""},{"$f":"LEFT(Template!B855,5)","v":""},{"$f":"LEFT(Template!C855,7)","v":""},{"$f":"LEFT(Template!D855,6)","v":""},{"$f":"LEFT(Template!E855,2)","v":""},{"$f":"LEFT(Template!F855,3)","v":""},{"$f":"LEFT(Template!G855,10)","v":""},{"$f":"LEFT(Template!H855,6)","v":""},{"$f":"LEFT(Template!I855,4)","v":""},{"$f":"LEFT(Template!J855,6)","v":""},{"$f":"LEFT(Template!K855,6)","v":""},{"$f":"LEFT(Template!L855,3)","v":""},{"$f":"IF(Template!M855=\"\",\"\",Template!M855)","v":""},{"$f":"IF(Template!N855=\"\",\"\",Template!N855)","v":""},null,null,null,null,null,{"$f":"IF(Template!O855=\"\",\"\",Template!O855)","v":""}]
[{"$f":"LEFT(Template!A856,4)","v":""},{"$f":"LEFT(Template!B856,5)","v":""},{"$f":"LEFT(Template!C856,7)","v":""},{"$f":"LEFT(Template!D856,6)","v":""},{"$f":"LEFT(Template!E856,2)","v":""},{"$f":"LEFT(Template!F856,3)","v":""},{"$f":"LEFT(Template!G856,10)","v":""},{"$f":"LEFT(Template!H856,6)","v":""},{"$f":"LEFT(Template!I856,4)","v":""},{"$f":"LEFT(Template!J856,6)","v":""},{"$f":"LEFT(Template!K856,6)","v":""},{"$f":"LEFT(Template!L856,3)","v":""},{"$f":"IF(Template!M856=\"\",\"\",Template!M856)","v":""},{"$f":"IF(Template!N856=\"\",\"\",Template!N856)","v":""},null,null,null,null,null,{"$f":"IF(Template!O856=\"\",\"\",Template!O856)","v":""}]
[{"$f":"LEFT(Template!A857,4)","v":""},{"$f":"LEFT(Template!B857,5)","v":""},{"$f":"LEFT(Template!C857,7)","v":""},{"$f":"LEFT(Template!D857,6)","v":""},{"$f":"LEFT(Template!E857,2)","v":""},{"$f":"LEFT(Template!F857,3)","v":""},{"$f":"LEFT(Template!G857,10)","v":""},{"$f":"LEFT(Template!H857,6)","v":""},{"$f":"LEFT(Template!I857,4)","v":""},{"$f":"LEFT(Template!J857,6)","v":""},{"$f":"LEFT(Template!K857,6)","v":""},{"$f":"LEFT(Template!L857,3)","v":""},{"$f":"IF(Template!M857=\"\",\"\",Template!M857)","v":""},{"$f":"IF(Template!N857=\"\",\"\",Template!N857)","v":""},null,null,null,null,null,{"$f":"IF(Template!O857=\"\",\"\",Template!O857)","v":""}]
[{"$f":"LEFT(Template!A858,4)","v":""},{"$f":"LEFT(Template!B858,5)","v":""},{"$f":"LEFT(Template!C858,7)","v":""},{"$f":"LEFT(Template!D858,6)","v":""},{"$f":"LEFT(Template!E858,2)","v":""},{"$f":"LEFT(Template!F858,3)","v":""},{"$f":"LEFT(Template!G858,10)","v":""},{"$f":"LEFT(Template!H858,6)","v":""},{"$f":"LEFT(Template!I858,4)","v":""},{"$f":"LEFT(Template!J858,6)","v":""},{"$f":"LEFT(Template!K858,6)","v":""},{"$f":"LEFT(Template!L858,3)","v":""},{"$f":"IF(Template!M858=\"\",\"\",Template!M858)","v":""},{"$f":"IF(Template!N858=\"\",\"\",Template!N858)","v":""},null,null,null,null,null,{"$f":"IF(Template!O858=\"\",\"\",Template!O858)","v":""}]
[{"$f":"LEFT(Template!A859,4)","v":""},{"$f":"LEFT(Template!B859,5)","v":""},{"$f":"LEFT(Template!C859,7)","v":""},{"$f":"LEFT(Template!D859,6)","v":""},{"$f":"LEFT(Template!E859,2)","v":""},{"$f":"LEFT(Template!F859,3)","v":""},{"$f":"LEFT(Template!G859,10)","v":""},{"$f":"LEFT(Template!H859,6)","v":""},{"$f":"LEFT(Template!I859,4)","v":""},{"$f":"LEFT(Template!J859,6)","v":""},{"$f":"LEFT(Template!K859,6)","v":""},{"$f":"LEFT(Template!L859,3)","v":""},{"$f":"IF(Template!M859=\"\",\"\",Template!M859)","v":""},{"$f":"IF(Template!N859=\"\",\"\",Template!N859)","v":""},null,null,null,null,null,{"$f":"IF(Template!O859=\"\",\"\",Template!O859)","v":""}]
[{"$f":"LEFT(Template!A860,4)","v":""},{"$f":"LEFT(Template!B860,5)","v":""},{"$f":"LEFT(Template!C860,7)","v":""},{"$f":"LEFT(Template!D860,6)","v":""},{"$f":"LEFT(Template!E860,2)","v":""},{"$f":"LEFT(Template!F860,3)","v":""},{"$f":"LEFT(Template!G860,10)","v":""},{"$f":"LEFT(Template!H860,6)","v":""},{"$f":"LEFT(Template!I860,4)","v":""},{"$f":"LEFT(Template!J860,6)","v":""},{"$f":"LEFT(Template!K860,6)","v":""},{"$f":"LEFT(Template!L860,3)","v":""},{"$f":"IF(Template!M860=\"\",\"\",Template!M860)","v":""},{"$f":"IF(Template!N860=\"\",\"\",Template!N860)","v":""},null,null,null,null,null,{"$f":"IF(Template!O860=\"\",\"\",Template!O860)","v":""}]
[{"$f":"LEFT(Template!A861,4)","v":""},{"$f":"LEFT(Template!B861,5)","v":""},{"$f":"LEFT(Template!C861,7)","v":""},{"$f":"LEFT(Template!D861,6)","v":""},{"$f":"LEFT(Template!E861,2)","v":""},{"$f":"LEFT(Template!F861,3)","v":""},{"$f":"LEFT(Template!G861,10)","v":""},{"$f":"LEFT(Template!H861,6)","v":""},{"$f":"LEFT(Template!I861,4)","v":""},{"$f":"LEFT(Template!J861,6)","v":""},{"$f":"LEFT(Template!K861,6)","v":""},{"$f":"LEFT(Template!L861,3)","v":""},{"$f":"IF(Template!M861=\"\",\"\",Template!M861)","v":""},{"$f":"IF(Template!N861=\"\",\"\",Template!N861)","v":""},null,null,null,null,null,{"$f":"IF(Template!O861=\"\",\"\",Template!O861)","v":""}]
[{"$f":"LEFT(Template!A862,4)","v":""},{"$f":"LEFT(Template!B862,5)","v":""},{"$f":"LEFT(Template!C862,7)","v":""},{"$f":"LEFT(Template!D862,6)","v":""},{"$f":"LEFT(Template!E862,2)","v":""},{"$f":"LEFT(Template!F862,3)","v":""},{"$f":"LEFT(Template!G862,10)","v":""},{"$f":"LEFT(Template!H862,6)","v":""},{"$f":"LEFT(Template!I862,4)","v":""},{"$f":"LEFT(Template!J862,6)","v":""},{"$f":"LEFT(Template!K862,6)","v":""},{"$f":"LEFT(Template!L862,3)","v":""},{"$f":"IF(Template!M862=\"\",\"\",Template!M862)","v":""},{"$f":"IF(Template!N862=\"\",\"\",Template!N862)","v":""},null,null,null,null,null,{"$f":"IF(Template!O862=\"\",\"\",Template!O862)","v":""}]
[{"$f":"LEFT(Template!A863,4)","v":""},{"$f":"LEFT(Template!B863,5)","v":""},{"$f":"LEFT(Template!C863,7)","v":""},{"$f":"LEFT(Template!D863,6)","v":""},{"$f":"LEFT(Template!E863,2)","v":""},{"$f":"LEFT(Template!F863,3)","v":""},{"$f":"LEFT(Template!G863,10)","v":""},{"$f":"LEFT(Template!H863,6)","v":""},{"$f":"LEFT(Template!I863,4)","v":""},{"$f":"LEFT(Template!J863,6)","v":""},{"$f":"LEFT(Template!K863,6)","v":""},{"$f":"LEFT(Template!L863,3)","v":""},{"$f":"IF(Template!M863=\"\",\"\",Template!M863)","v":""},{"$f":"IF(Template!N863=\"\",\"\",Template!N863)","v":""},null,null,null,null,null,{"$f":"IF(Template!O863=\"\",\"\",Template!O863)","v":""}]
[{"$f":"LEFT(Template!A864,4)","v":""},{"$f":"LEFT(Template!B864,5)","v":""},{"$f":"LEFT(Template!C864,7)","v":""},{"$f":"LEFT(Template!D864,6)","v":""},{"$f":"LEFT(Template!E864,2)","v":""},{"$f":"LEFT(Template!F864,3)","v":""},{"$f":"LEFT(Template!G864,10)","v":""},{"$f":"LEFT(Template!H864,6)","v":""},{"$f":"LEFT(Template!I864,4)","v":""},{"$f":"LEFT(Template!J864,6)","v":""},{"$f":"LEFT(Template!K864,6)","v":""},{"$f":"LEFT(Template!L864,3)","v":""},{"$f":"IF(Template!M864=\"\",\"\",Template!M864)","v":""},{"$f":"IF(Template!N864=\"\",\"\",Template!N864)","v":""},null,null,null,null,null,{"$f":"IF(Template!O864=\"\",\"\",Template!O864)","v":""}]
[{"$f":"LEFT(Template!A865,4)","v":""},{"$f":"LEFT(Template!B865,5)","v":""},{"$f":"LEFT(Template!C865,7)","v":""},{"$f":"LEFT(Template!D865,6)","v":""},{"$f":"LEFT(Template!E865,2)","v":""},{"$f":"LEFT(Template!F865,3)","v":""},{"$f":"LEFT(Template!G865,10)","v":""},{"$f":"LEFT(Template!H865,6)","v":""},{"$f":"LEFT(Template!I865,4)","v":""},{"$f":"LEFT(Template!J865,6)","v":""},{"$f":"LEFT(Template!K865,6)","v":""},{"$f":"LEFT(Template!L865,3)","v":""},{"$f":"IF(Template!M865=\"\",\"\",Template!M865)","v":""},{"$f":"IF(Template!N865=\"\",\"\",Template!N865)","v":""},null,null,null,null,null,{"$f":"IF(Template!O865=\"\",\"\",Template!O865)","v":""}]
[{"$f":"LEFT(Template!A866,4)","v":""},{"$f":"LEFT(Template!B866,5)","v":""},{"$f":"LEFT(Template!C866,7)","v":""},{"$f":"LEFT(Template!D866,6)","v":""},{"$f":"LEFT(Template!E866,2)","v":""},{"$f":"LEFT(Template!F866,3)","v":""},{"$f":"LEFT(Template!G866,10)","v":""},{"$f":"LEFT(Template!H866,6)","v":""},{"$f":"LEFT(Template!I866,4)","v":""},{"$f":"LEFT(Template!J866,6)","v":""},{"$f":"LEFT(Template!K866,6)","v":""},{"$f":"LEFT(Template!L866,3)","v":""},{"$f":"IF(Template!M866=\"\",\"\",Template!M866)","v":""},{"$f":"IF(Template!N866=\"\",\"\",Template!N866)","v":""},null,null,null,null,null,{"$f":"IF(Template!O866=\"\",\"\",Template!O866)","v":""}]
[{"$f":"LEFT(Template!A867,4)","v":""},{"$f":"LEFT(Template!B867,5)","v":""},{"$f":"LEFT(Template!C867,7)","v":""},{"$f":"LEFT(Template!D867,6)","v":""},{"$f":"LEFT(Template!E867,2)","v":""},{"$f":"LEFT(Template!F867,3)","v":""},{"$f":"LEFT(Template!G867,10)","v":""},{"$f":"LEFT(Template!H867,6)","v":""},{"$f":"LEFT(Template!I867,4)","v":""},{"$f":"LEFT(Template!J867,6)","v":""},{"$f":"LEFT(Template!K867,6)","v":""},{"$f":"LEFT(Template!L867,3)","v":""},{"$f":"IF(Template!M867=\"\",\"\",Template!M867)","v":""},{"$f":"IF(Template!N867=\"\",\"\",Template!N867)","v":""},null,null,null,null,null,{"$f":"IF(Template!O867=\"\",\"\",Template!O867)","v":""}]
[{"$f":"LEFT(Template!A868,4)","v":""},{"$f":"LEFT(Template!B868,5)","v":""},{"$f":"LEFT(Template!C868,7)","v":""},{"$f":"LEFT(Template!D868,6)","v":""},{"$f":"LEFT(Template!E868,2)","v":""},{"$f":"LEFT(Template!F868,3)","v":""},{"$f":"LEFT(Template!G868,10)","v":""},{"$f":"LEFT(Template!H868,6)","v":""},{"$f":"LEFT(Template!I868,4)","v":""},{"$f":"LEFT(Template!J868,6)","v":""},{"$f":"LEFT(Template!K868,6)","v":""},{"$f":"LEFT(Template!L868,3)","v":""},{"$f":"IF(Template!M868=\"\",\"\",Template!M868)","v":""},{"$f":"IF(Template!N868=\"\",\"\",Template!N868)","v":""},null,null,null,null,null,{"$f":"IF(Template!O868=\"\",\"\",Template!O868)","v":""}]
[{"$f":"LEFT(Template!A869,4)","v":""},{"$f":"LEFT(Template!B869,5)","v":""},{"$f":"LEFT(Template!C869,7)","v":""},{"$f":"LEFT(Template!D869,6)","v":""},{"$f":"LEFT(Template!E869,2)","v":""},{"$f":"LEFT(Template!F869,3)","v":""},{"$f":"LEFT(Template!G869,10)","v":""},{"$f":"LEFT(Template!H869,6)","v":""},{"$f":"LEFT(Template!I869,4)","v":""},{"$f":"LEFT(Template!J869,6)","v":""},{"$f":"LEFT(Template!K869,6)","v":""},{"$f":"LEFT(Template!L869,3)","v":""},{"$f":"IF(Template!M869=\"\",\"\",Template!M869)","v":""},{"$f":"IF(Template!N869=\"\",\"\",Template!N869)","v":""},null,null,null,null,null,{"$f":"IF(Template!O869=\"\",\"\",Template!O869)","v":""}]
[{"$f":"LEFT(Template!A870,4)","v":""},{"$f":"LEFT(Template!B870,5)","v":""},{"$f":"LEFT(Template!C870,7)","v":""},{"$f":"LEFT(Template!D870,6)","v":""},{"$f":"LEFT(Template!E870,2)","v":""},{"$f":"LEFT(Template!F870,3)","v":""},{"$f":"LEFT(Template!G870,10)","v":""},{"$f":"LEFT(Template!H870,6)","v":""},{"$f":"LEFT(Template!I870,4)","v":""},{"$f":"LEFT(Template!J870,6)","v":""},{"$f":"LEFT(Template!K870,6)","v":""},{"$f":"LEFT(Template!L870,3)","v":""},{"$f":"IF(Template!M870=\"\",\"\",Template!M870)","v":""},{"$f":"IF(Template!N870=\"\",\"\",Template!N870)","v":""},null,null,null,null,null,{"$f":"IF(Template!O870=\"\",\"\",Template!O870)","v":""}]
[{"$f":"LEFT(Template!A871,4)","v":""},{"$f":"LEFT(Template!B871,5)","v":""},{"$f":"LEFT(Template!C871,7)","v":""},{"$f":"LEFT(Template!D871,6)","v":""},{"$f":"LEFT(Template!E871,2)","v":""},{"$f":"LEFT(Template!F871,3)","v":""},{"$f":"LEFT(Template!G871,10)","v":""},{"$f":"LEFT(Template!H871,6)","v":""},{"$f":"LEFT(Template!I871,4)","v":""},{"$f":"LEFT(Template!J871,6)","v":""},{"$f":"LEFT(Template!K871,6)","v":""},{"$f":"LEFT(Template!L871,3)","v":""},{"$f":"IF(Template!M871=\"\",\"\",Template!M871)","v":""},{"$f":"IF(Template!N871=\"\",\"\",Template!N871)","v":""},null,null,null,null,null,{"$f":"IF(Template!O871=\"\",\"\",Template!O871)","v":""}]
[{"$f":"LEFT(Template!A872,4)","v":""},{"$f":"LEFT(Template!B872,5)","v":""},{"$f":"LEFT(Template!C872,7)","v":""},{"$f":"LEFT(Template!D872,6)","v":""},{"$f":"LEFT(Template!E872,2)","v":""},{"$f":"LEFT(Template!F872,3)","v":""},{"$f":"LEFT(Template!G872,10)","v":""},{"$f":"LEFT(Template!H872,6)","v":""},{"$f":"LEFT(Template!I872,4)","v":""},{"$f":"LEFT(Template!J872,6)","v":""},{"$f":"LEFT(Template!K872,6)","v":""},{"$f":"LEFT(Template!L872,3)","v":""},{"$f":"IF(Template!M872=\"\",\"\",Template!M872)","v":""},{"$f":"IF(Template!N872=\"\",\"\",Template!N872)","v":""},null,null,null,null,null,{"$f":"IF(Template!O872=\"\",\"\",Template!O872)","v":""}]
[{"$f":"LEFT(Template!A873,4)","v":""},{"$f":"LEFT(Template!B873,5)","v":""},{"$f":"LEFT(Template!C873,7)","v":""},{"$f":"LEFT(Template!D873,6)","v":""},{"$f":"LEFT(Template!E873,2)","v":""},{"$f":"LEFT(Template!F873,3)","v":""},{"$f":"LEFT(Template!G873,10)","v":""},{"$f":"LEFT(Template!H873,6)","v":""},{"$f":"LEFT(Template!I873,4)","v":""},{"$f":"LEFT(Template!J873,6)","v":""},{"$f":"LEFT(Template!K873,6)","v":""},{"$f":"LEFT(Template!L873,3)","v":""},{"$f":"IF(Template!M873=\"\",\"\",Template!M873)","v":""},{"$f":"IF(Template!N873=\"\",\"\",Template!N873)","v":""},null,null,null,null,null,{"$f":"IF(Template!O873=\"\",\"\",Template!O873)","v":""}]
[{"$f":"LEFT(Template!A874,4)","v":""},{"$f":"LEFT(Template!B874,5)","v":""},{"$f":"LEFT(Template!C874,7)","v":""},{"$f":"LEFT(Template!D874,6)","v":""},{"$f":"LEFT(Template!E874,2)","v":""},{"$f":"LEFT(Template!F874,3)","v":""},{"$f":"LEFT(Template!G874,10)","v":""},{"$f":"LEFT(Template!H874,6)","v":""},{"$f":"LEFT(Template!I874,4)","v":""},{"$f":"LEFT(Template!J874,6)","v":""},{"$f":"LEFT(Template!K874,6)","v":""},{"$f":"LEFT(Template!L874,3)","v":""},{"$f":"IF(Template!M874=\"\",\"\",Template!M874)","v":""},{"$f":"IF(Template!N874=\"\",\"\",Template!N874)","v":""},null,null,null,null,null,{"$f":"IF(Template!O874=\"\",\"\",Template!O874)","v":""}]
[{"$f":"LEFT(Template!A875,4)","v":""},{"$f":"LEFT(Template!B875,5)","v":""},{"$f":"LEFT(Template!C875,7)","v":""},{"$f":"LEFT(Template!D875,6)","v":""},{"$f":"LEFT(Template!E875,2)","v":""},{"$f":"LEFT(Template!F875,3)","v":""},{"$f":"LEFT(Template!G875,10)","v":""},{"$f":"LEFT(Template!H875,6)","v":""},{"$f":"LEFT(Template!I875,4)","v":""},{"$f":"LEFT(Template!J875,6)","v":""},{"$f":"LEFT(Template!K875,6)","v":""},{"$f":"LEFT(Template!L875,3)","v":""},{"$f":"IF(Template!M875=\"\",\"\",Template!M875)","v":""},{"$f":"IF(Template!N875=\"\",\"\",Template!N875)","v":""},null,null,null,null,null,{"$f":"IF(Template!O875=\"\",\"\",Template!O875)","v":""}]
[{"$f":"LEFT(Template!A876,4)","v":""},{"$f":"LEFT(Template!B876,5)","v":""},{"$f":"LEFT(Template!C876,7)","v":""},{"$f":"LEFT(Template!D876,6)","v":""},{"$f":"LEFT(Template!E876,2)","v":""},{"$f":"LEFT(Template!F876,3)","v":""},{"$f":"LEFT(Template!G876,10)","v":""},{"$f":"LEFT(Template!H876,6)","v":""},{"$f":"LEFT(Template!I876,4)","v":""},{"$f":"LEFT(Template!J876,6)","v":""},{"$f":"LEFT(Template!K876,6)","v":""},{"$f":"LEFT(Template!L876,3)","v":""},{"$f":"IF(Template!M876=\"\",\"\",Template!M876)","v":""},{"$f":"IF(Template!N876=\"\",\"\",Template!N876)","v":""},null,null,null,null,null,{"$f":"IF(Template!O876=\"\",\"\",Template!O876)","v":""}]
[{"$f":"LEFT(Template!A877,4)","v":""},{"$f":"LEFT(Template!B877,5)","v":""},{"$f":"LEFT(Template!C877,7)","v":""},{"$f":"LEFT(Template!D877,6)","v":""},{"$f":"LEFT(Template!E877,2)","v":""},{"$f":"LEFT(Template!F877,3)","v":""},{"$f":"LEFT(Template!G877,10)","v":""},{"$f":"LEFT(Template!H877,6)","v":""},{"$f":"LEFT(Template!I877,4)","v":""},{"$f":"LEFT(Template!J877,6)","v":""},{"$f":"LEFT(Template!K877,6)","v":""},{"$f":"LEFT(Template!L877,3)","v":""},{"$f":"IF(Template!M877=\"\",\"\",Template!M877)","v":""},{"$f":"IF(Template!N877=\"\",\"\",Template!N877)","v":""},null,null,null,null,null,{"$f":"IF(Template!O877=\"\",\"\",Template!O877)","v":""}]
[{"$f":"LEFT(Template!A878,4)","v":""},{"$f":"LEFT(Template!B878,5)","v":""},{"$f":"LEFT(Template!C878,7)","v":""},{"$f":"LEFT(Template!D878,6)","v":""},{"$f":"LEFT(Template!E878,2)","v":""},{"$f":"LEFT(Template!F878,3)","v":""},{"$f":"LEFT(Template!G878,10)","v":""},{"$f":"LEFT(Template!H878,6)","v":""},{"$f":"LEFT(Template!I878,4)","v":""},{"$f":"LEFT(Template!J878,6)","v":""},{"$f":"LEFT(Template!K878,6)","v":""},{"$f":"LEFT(Template!L878,3)","v":""},{"$f":"IF(Template!M878=\"\",\"\",Template!M878)","v":""},{"$f":"IF(Template!N878=\"\",\"\",Template!N878)","v":""},null,null,null,null,null,{"$f":"IF(Template!O878=\"\",\"\",Template!O878)","v":""}]
[{"$f":"LEFT(Template!A879,4)","v":""},{"$f":"LEFT(Template!B879,5)","v":""},{"$f":"LEFT(Template!C879,7)","v":""},{"$f":"LEFT(Template!D879,6)","v":""},{"$f":"LEFT(Template!E879,2)","v":""},{"$f":"LEFT(Template!F879,3)","v":""},{"$f":"LEFT(Template!G879,10)","v":""},{"$f":"LEFT(Template!H879,6)","v":""},{"$f":"LEFT(Template!I879,4)","v":""},{"$f":"LEFT(Template!J879,6)","v":""},{"$f":"LEFT(Template!K879,6)","v":""},{"$f":"LEFT(Template!L879,3)","v":""},{"$f":"IF(Template!M879=\"\",\"\",Template!M879)","v":""},{"$f":"IF(Template!N879=\"\",\"\",Template!N879)","v":""},null,null,null,null,null,{"$f":"IF(Template!O879=\"\",\"\",Template!O879)","v":""}]
[{"$f":"LEFT(Template!A880,4)","v":""},{"$f":"LEFT(Template!B880,5)","v":""},{"$f":"LEFT(Template!C880,7)","v":""},{"$f":"LEFT(Template!D880,6)","v":""},{"$f":"LEFT(Template!E880,2)","v":""},{"$f":"LEFT(Template!F880,3)","v":""},{"$f":"LEFT(Template!G880,10)","v":""},{"$f":"LEFT(Template!H880,6)","v":""},{"$f":"LEFT(Template!I880,4)","v":""},{"$f":"LEFT(Template!J880,6)","v":""},{"$f":"LEFT(Template!K880,6)","v":""},{"$f":"LEFT(Template!L880,3)","v":""},{"$f":"IF(Template!M880=\"\",\"\",Template!M880)","v":""},{"$f":"IF(Template!N880=\"\",\"\",Template!N880)","v":""},null,null,null,null,null,{"$f":"IF(Template!O880=\"\",\"\",Template!O880)","v":""}]
[{"$f":"LEFT(Template!A881,4)","v":""},{"$f":"LEFT(Template!B881,5)","v":""},{"$f":"LEFT(Template!C881,7)","v":""},{"$f":"LEFT(Template!D881,6)","v":""},{"$f":"LEFT(Template!E881,2)","v":""},{"$f":"LEFT(Template!F881,3)","v":""},{"$f":"LEFT(Template!G881,10)","v":""},{"$f":"LEFT(Template!H881,6)","v":""},{"$f":"LEFT(Template!I881,4)","v":""},{"$f":"LEFT(Template!J881,6)","v":""},{"$f":"LEFT(Template!K881,6)","v":""},{"$f":"LEFT(Template!L881,3)","v":""},{"$f":"IF(Template!M881=\"\",\"\",Template!M881)","v":""},{"$f":"IF(Template!N881=\"\",\"\",Template!N881)","v":""},null,null,null,null,null,{"$f":"IF(Template!O881=\"\",\"\",Template!O881)","v":""}]
[{"$f":"LEFT(Template!A882,4)","v":""},{"$f":"LEFT(Template!B882,5)","v":""},{"$f":"LEFT(Template!C882,7)","v":""},{"$f":"LEFT(Template!D882,6)","v":""},{"$f":"LEFT(Template!E882,2)","v":""},{"$f":"LEFT(Template!F882,3)","v":""},{"$f":"LEFT(Template!G882,10)","v":""},{"$f":"LEFT(Template!H882,6)","v":""},{"$f":"LEFT(Template!I882,4)","v":""},{"$f":"LEFT(Template!J882,6)","v":""},{"$f":"LEFT(Template!K882,6)","v":""},{"$f":"LEFT(Template!L882,3)","v":""},{"$f":"IF(Template!M882=\"\",\"\",Template!M882)","v":""},{"$f":"IF(Template!N882=\"\",\"\",Template!N882)","v":""},null,null,null,null,null,{"$f":"IF(Template!O882=\"\",\"\",Template!O882)","v":""}]
[{"$f":"LEFT(Template!A883,4)","v":""},{"$f":"LEFT(Template!B883,5)","v":""},{"$f":"LEFT(Template!C883,7)","v":""},{"$f":"LEFT(Template!D883,6)","v":""},{"$f":"LEFT(Template!E883,2)","v":""},{"$f":"LEFT(Template!F883,3)","v":""},{"$f":"LEFT(Template!G883,10)","v":""},{"$f":"LEFT(Template!H883,6)","v":""},{"$f":"LEFT(Template!I883,4)","v":""},{"$f":"LEFT(Template!J883,6)","v":""},{"$f":"LEFT(Template!K883,6)","v":""},{"$f":"LEFT(Template!L883,3)","v":""},{"$f":"IF(Template!M883=\"\",\"\",Template!M883)","v":""},{"$f":"IF(Template!N883=\"\",\"\",Template!N883)","v":""},null,null,null,null,null,{"$f":"IF(Template!O883=\"\",\"\",Template!O883)","v":""}]
[{"$f":"LEFT(Template!A884,4)","v":""},{"$f":"LEFT(Template!B884,5)","v":""},{"$f":"LEFT(Template!C884,7)","v":""},{"$f":"LEFT(Template!D884,6)","v":""},{"$f":"LEFT(Template!E884,2)","v":""},{"$f":"LEFT(Template!F884,3)","v":""},{"$f":"LEFT(Template!G884,10)","v":""},{"$f":"LEFT(Template!H884,6)","v":""},{"$f":"LEFT(Template!I884,4)","v":""},{"$f":"LEFT(Template!J884,6)","v":""},{"$f":"LEFT(Template!K884,6)","v":""},{"$f":"LEFT(Template!L884,3)","v":""},{"$f":"IF(Template!M884=\"\",\"\",Template!M884)","v":""},{"$f":"IF(Template!N884=\"\",\"\",Template!N884)","v":""},null,null,null,null,null,{"$f":"IF(Template!O884=\"\",\"\",Template!O884)","v":""}]
[{"$f":"LEFT(Template!A885,4)","v":""},{"$f":"LEFT(Template!B885,5)","v":""},{"$f":"LEFT(Template!C885,7)","v":""},{"$f":"LEFT(Template!D885,6)","v":""},{"$f":"LEFT(Template!E885,2)","v":""},{"$f":"LEFT(Template!F885,3)","v":""},{"$f":"LEFT(Template!G885,10)","v":""},{"$f":"LEFT(Template!H885,6)","v":""},{"$f":"LEFT(Template!I885,4)","v":""},{"$f":"LEFT(Template!J885,6)","v":""},{"$f":"LEFT(Template!K885,6)","v":""},{"$f":"LEFT(Template!L885,3)","v":""},{"$f":"IF(Template!M885=\"\",\"\",Template!M885)","v":""},{"$f":"IF(Template!N885=\"\",\"\",Template!N885)","v":""},null,null,null,null,null,{"$f":"IF(Template!O885=\"\",\"\",Template!O885)","v":""}]
[{"$f":"LEFT(Template!A886,4)","v":""},{"$f":"LEFT(Template!B886,5)","v":""},{"$f":"LEFT(Template!C886,7)","v":""},{"$f":"LEFT(Template!D886,6)","v":""},{"$f":"LEFT(Template!E886,2)","v":""},{"$f":"LEFT(Template!F886,3)","v":""},{"$f":"LEFT(Template!G886,10)","v":""},{"$f":"LEFT(Template!H886,6)","v":""},{"$f":"LEFT(Template!I886,4)","v":""},{"$f":"LEFT(Template!J886,6)","v":""},{"$f":"LEFT(Template!K886,6)","v":""},{"$f":"LEFT(Template!L886,3)","v":""},{"$f":"IF(Template!M886=\"\",\"\",Template!M886)","v":""},{"$f":"IF(Template!N886=\"\",\"\",Template!N886)","v":""},null,null,null,null,null,{"$f":"IF(Template!O886=\"\",\"\",Template!O886)","v":""}]
[{"$f":"LEFT(Template!A887,4)","v":""},{"$f":"LEFT(Template!B887,5)","v":""},{"$f":"LEFT(Template!C887,7)","v":""},{"$f":"LEFT(Template!D887,6)","v":""},{"$f":"LEFT(Template!E887,2)","v":""},{"$f":"LEFT(Template!F887,3)","v":""},{"$f":"LEFT(Template!G887,10)","v":""},{"$f":"LEFT(Template!H887,6)","v":""},{"$f":"LEFT(Template!I887,4)","v":""},{"$f":"LEFT(Template!J887,6)","v":""},{"$f":"LEFT(Template!K887,6)","v":""},{"$f":"LEFT(Template!L887,3)","v":""},{"$f":"IF(Template!M887=\"\",\"\",Template!M887)","v":""},{"$f":"IF(Template!N887=\"\",\"\",Template!N887)","v":""},null,null,null,null,null,{"$f":"IF(Template!O887=\"\",\"\",Template!O887)","v":""}]
[{"$f":"LEFT(Template!A888,4)","v":""},{"$f":"LEFT(Template!B888,5)","v":""},{"$f":"LEFT(Template!C888,7)","v":""},{"$f":"LEFT(Template!D888,6)","v":""},{"$f":"LEFT(Template!E888,2)","v":""},{"$f":"LEFT(Template!F888,3)","v":""},{"$f":"LEFT(Template!G888,10)","v":""},{"$f":"LEFT(Template!H888,6)","v":""},{"$f":"LEFT(Template!I888,4)","v":""},{"$f":"LEFT(Template!J888,6)","v":""},{"$f":"LEFT(Template!K888,6)","v":""},{"$f":"LEFT(Template!L888,3)","v":""},{"$f":"IF(Template!M888=\"\",\"\",Template!M888)","v":""},{"$f":"IF(Template!N888=\"\",\"\",Template!N888)","v":""},null,null,null,null,null,{"$f":"IF(Template!O888=\"\",\"\",Template!O888)","v":""}]
[{"$f":"LEFT(Template!A889,4)","v":""},{"$f":"LEFT(Template!B889,5)","v":""},{"$f":"LEFT(Template!C889,7)","v":""},{"$f":"LEFT(Template!D889,6)","v":""},{"$f":"LEFT(Template!E889,2)","v":""},{"$f":"LEFT(Template!F889,3)","v":""},{"$f":"LEFT(Template!G889,10)","v":""},{"$f":"LEFT(Template!H889,6)","v":""},{"$f":"LEFT(Template!I889,4)","v":""},{"$f":"LEFT(Template!J889,6)","v":""},{"$f":"LEFT(Template!K889,6)","v":""},{"$f":"LEFT(Template!L889,3)","v":""},{"$f":"IF(Template!M889=\"\",\"\",Template!M889)","v":""},{"$f":"IF(Template!N889=\"\",\"\",Template!N889)","v":""},null,null,null,null,null,{"$f":"IF(Template!O889=\"\",\"\",Template!O889)","v":""}]
[{"$f":"LEFT(Template!A890,4)","v":""},{"$f":"LEFT(Template!B890,5)","v":""},{"$f":"LEFT(Template!C890,7)","v":""},{"$f":"LEFT(Template!D890,6)","v":""},{"$f":"LEFT(Template!E890,2)","v":""},{"$f":"LEFT(Template!F890,3)","v":""},{"$f":"LEFT(Template!G890,10)","v":""},{"$f":"LEFT(Template!H890,6)","v":""},{"$f":"LEFT(Template!I890,4)","v":""},{"$f":"LEFT(Template!J890,6)","v":""},{"$f":"LEFT(Template!K890,6)","v":""},{"$f":"LEFT(Template!L890,3)","v":""},{"$f":"IF(Template!M890=\"\",\"\",Template!M890)","v":""},{"$f":"IF(Template!N890=\"\",\"\",Template!N890)","v":""},null,null,null,null,null,{"$f":"IF(Template!O890=\"\",\"\",Template!O890)","v":""}]
[{"$f":"LEFT(Template!A891,4)","v":""},{"$f":"LEFT(Template!B891,5)","v":""},{"$f":"LEFT(Template!C891,7)","v":""},{"$f":"LEFT(Template!D891,6)","v":""},{"$f":"LEFT(Template!E891,2)","v":""},{"$f":"LEFT(Template!F891,3)","v":""},{"$f":"LEFT(Template!G891,10)","v":""},{"$f":"LEFT(Template!H891,6)","v":""},{"$f":"LEFT(Template!I891,4)","v":""},{"$f":"LEFT(Template!J891,6)","v":""},{"$f":"LEFT(Template!K891,6)","v":""},{"$f":"LEFT(Template!L891,3)","v":""},{"$f":"IF(Template!M891=\"\",\"\",Template!M891)","v":""},{"$f":"IF(Template!N891=\"\",\"\",Template!N891)","v":""},null,null,null,null,null,{"$f":"IF(Template!O891=\"\",\"\",Template!O891)","v":""}]
[{"$f":"LEFT(Template!A892,4)","v":""},{"$f":"LEFT(Template!B892,5)","v":""},{"$f":"LEFT(Template!C892,7)","v":""},{"$f":"LEFT(Template!D892,6)","v":""},{"$f":"LEFT(Template!E892,2)","v":""},{"$f":"LEFT(Template!F892,3)","v":""},{"$f":"LEFT(Template!G892,10)","v":""},{"$f":"LEFT(Template!H892,6)","v":""},{"$f":"LEFT(Template!I892,4)","v":""},{"$f":"LEFT(Template!J892,6)","v":""},{"$f":"LEFT(Template!K892,6)","v":""},{"$f":"LEFT(Template!L892,3)","v":""},{"$f":"IF(Template!M892=\"\",\"\",Template!M892)","v":""},{"$f":"IF(Template!N892=\"\",\"\",Template!N892)","v":""},null,null,null,null,null,{"$f":"IF(Template!O892=\"\",\"\",Template!O892)","v":""}]
[{"$f":"LEFT(Template!A893,4)","v":""},{"$f":"LEFT(Template!B893,5)","v":""},{"$f":"LEFT(Template!C893,7)","v":""},{"$f":"LEFT(Template!D893,6)","v":""},{"$f":"LEFT(Template!E893,2)","v":""},{"$f":"LEFT(Template!F893,3)","v":""},{"$f":"LEFT(Template!G893,10)","v":""},{"$f":"LEFT(Template!H893,6)","v":""},{"$f":"LEFT(Template!I893,4)","v":""},{"$f":"LEFT(Template!J893,6)","v":""},{"$f":"LEFT(Template!K893,6)","v":""},{"$f":"LEFT(Template!L893,3)","v":""},{"$f":"IF(Template!M893=\"\",\"\",Template!M893)","v":""},{"$f":"IF(Template!N893=\"\",\"\",Template!N893)","v":""},null,null,null,null,null,{"$f":"IF(Template!O893=\"\",\"\",Template!O893)","v":""}]
[{"$f":"LEFT(Template!A894,4)","v":""},{"$f":"LEFT(Template!B894,5)","v":""},{"$f":"LEFT(Template!C894,7)","v":""},{"$f":"LEFT(Template!D894,6)","v":""},{"$f":"LEFT(Template!E894,2)","v":""},{"$f":"LEFT(Template!F894,3)","v":""},{"$f":"LEFT(Template!G894,10)","v":""},{"$f":"LEFT(Template!H894,6)","v":""},{"$f":"LEFT(Template!I894,4)","v":""},{"$f":"LEFT(Template!J894,6)","v":""},{"$f":"LEFT(Template!K894,6)","v":""},{"$f":"LEFT(Template!L894,3)","v":""},{"$f":"IF(Template!M894=\"\",\"\",Template!M894)","v":""},{"$f":"IF(Template!N894=\"\",\"\",Template!N894)","v":""},null,null,null,null,null,{"$f":"IF(Template!O894=\"\",\"\",Template!O894)","v":""}]
[{"$f":"LEFT(Template!A895,4)","v":""},{"$f":"LEFT(Template!B895,5)","v":""},{"$f":"LEFT(Template!C895,7)","v":""},{"$f":"LEFT(Template!D895,6)","v":""},{"$f":"LEFT(Template!E895,2)","v":""},{"$f":"LEFT(Template!F895,3)","v":""},{"$f":"LEFT(Template!G895,10)","v":""},{"$f":"LEFT(Template!H895,6)","v":""},{"$f":"LEFT(Template!I895,4)","v":""},{"$f":"LEFT(Template!J895,6)","v":""},{"$f":"LEFT(Template!K895,6)","v":""},{"$f":"LEFT(Template!L895,3)","v":""},{"$f":"IF(Template!M895=\"\",\"\",Template!M895)","v":""},{"$f":"IF(Template!N895=\"\",\"\",Template!N895)","v":""},null,null,null,null,null,{"$f":"IF(Template!O895=\"\",\"\",Template!O895)","v":""}]
[{"$f":"LEFT(Template!A896,4)","v":""},{"$f":"LEFT(Template!B896,5)","v":""},{"$f":"LEFT(Template!C896,7)","v":""},{"$f":"LEFT(Template!D896,6)","v":""},{"$f":"LEFT(Template!E896,2)","v":""},{"$f":"LEFT(Template!F896,3)","v":""},{"$f":"LEFT(Template!G896,10)","v":""},{"$f":"LEFT(Template!H896,6)","v":""},{"$f":"LEFT(Template!I896,4)","v":""},{"$f":"LEFT(Template!J896,6)","v":""},{"$f":"LEFT(Template!K896,6)","v":""},{"$f":"LEFT(Template!L896,3)","v":""},{"$f":"IF(Template!M896=\"\",\"\",Template!M896)","v":""},{"$f":"IF(Template!N896=\"\",\"\",Template!N896)","v":""},null,null,null,null,null,{"$f":"IF(Template!O896=\"\",\"\",Template!O896)","v":""}]
[{"$f":"LEFT(Template!A897,4)","v":""},{"$f":"LEFT(Template!B897,5)","v":""},{"$f":"LEFT(Template!C897,7)","v":""},{"$f":"LEFT(Template!D897,6)","v":""},{"$f":"LEFT(Template!E897,2)","v":""},{"$f":"LEFT(Template!F897,3)","v":""},{"$f":"LEFT(Template!G897,10)","v":""},{"$f":"LEFT(Template!H897,6)","v":""},{"$f":"LEFT(Template!I897,4)","v":""},{"$f":"LEFT(Template!J897,6)","v":""},{"$f":"LEFT(Template!K897,6)","v":""},{"$f":"LEFT(Template!L897,3)","v":""},{"$f":"IF(Template!M897=\"\",\"\",Template!M897)","v":""},{"$f":"IF(Template!N897=\"\",\"\",Template!N897)","v":""},null,null,null,null,null,{"$f":"IF(Template!O897=\"\",\"\",Template!O897)","v":""}]
[{"$f":"LEFT(Template!A898,4)","v":""},{"$f":"LEFT(Template!B898,5)","v":""},{"$f":"LEFT(Template!C898,7)","v":""},{"$f":"LEFT(Template!D898,6)","v":""},{"$f":"LEFT(Template!E898,2)","v":""},{"$f":"LEFT(Template!F898,3)","v":""},{"$f":"LEFT(Template!G898,10)","v":""},{"$f":"LEFT(Template!H898,6)","v":""},{"$f":"LEFT(Template!I898,4)","v":""},{"$f":"LEFT(Template!J898,6)","v":""},{"$f":"LEFT(Template!K898,6)","v":""},{"$f":"LEFT(Template!L898,3)","v":""},{"$f":"IF(Template!M898=\"\",\"\",Template!M898)","v":""},{"$f":"IF(Template!N898=\"\",\"\",Template!N898)","v":""},null,null,null,null,null,{"$f":"IF(Template!O898=\"\",\"\",Template!O898)","v":""}]
[{"$f":"LEFT(Template!A899,4)","v":""},{"$f":"LEFT(Template!B899,5)","v":""},{"$f":"LEFT(Template!C899,7)","v":""},{"$f":"LEFT(Template!D899,6)","v":""},{"$f":"LEFT(Template!E899,2)","v":""},{"$f":"LEFT(Template!F899,3)","v":""},{"$f":"LEFT(Template!G899,10)","v":""},{"$f":"LEFT(Template!H899,6)","v":""},{"$f":"LEFT(Template!I899,4)","v":""},{"$f":"LEFT(Template!J899,6)","v":""},{"$f":"LEFT(Template!K899,6)","v":""},{"$f":"LEFT(Template!L899,3)","v":""},{"$f":"IF(Template!M899=\"\",\"\",Template!M899)","v":""},{"$f":"IF(Template!N899=\"\",\"\",Template!N899)","v":""},null,null,null,null,null,{"$f":"IF(Template!O899=\"\",\"\",Template!O899)","v":""}]
[{"$f":"LEFT(Template!A900,4)","v":""},{"$f":"LEFT(Template!B900,5)","v":""},{"$f":"LEFT(Template!C900,7)","v":""},{"$f":"LEFT(Template!D900,6)","v":""},{"$f":"LEFT(Template!E900,2)","v":""},{"$f":"LEFT(Template!F900,3)","v":""},{"$f":"LEFT(Template!G900,10)","v":""},{"$f":"LEFT(Template!H900,6)","v":""},{"$f":"LEFT(Template!I900,4)","v":""},{"$f":"LEFT(Template!J900,6)","v":""},{"$f":"LEFT(Template!K900,6)","v":""},{"$f":"LEFT(Template!L900,3)","v":""},{"$f":"IF(Template!M900=\"\",\"\",Template!M900)","v":""},{"$f":"IF(Template!N900=\"\",\"\",Template!N900)","v":""},null,null,null,null,null,{"$f":"IF(Template!O900=\"\",\"\",Template!O900)","v":""}]
[{"$f":"LEFT(Template!A901,4)","v":""},{"$f":"LEFT(Template!B901,5)","v":""},{"$f":"LEFT(Template!C901,7)","v":""},{"$f":"LEFT(Template!D901,6)","v":""},{"$f":"LEFT(Template!E901,2)","v":""},{"$f":"LEFT(Template!F901,3)","v":""},{"$f":"LEFT(Template!G901,10)","v":""},{"$f":"LEFT(Template!H901,6)","v":""},{"$f":"LEFT(Template!I901,4)","v":""},{"$f":"LEFT(Template!J901,6)","v":""},{"$f":"LEFT(Template!K901,6)","v":""},{"$f":"LEFT(Template!L901,3)","v":""},{"$f":"IF(Template!M901=\"\",\"\",Template!M901)","v":""},{"$f":"IF(Template!N901=\"\",\"\",Template!N901)","v":""},null,null,null,null,null,{"$f":"IF(Template!O901=\"\",\"\",Template!O901)","v":""}]
[{"$f":"LEFT(Template!A902,4)","v":""},{"$f":"LEFT(Template!B902,5)","v":""},{"$f":"LEFT(Template!C902,7)","v":""},{"$f":"LEFT(Template!D902,6)","v":""},{"$f":"LEFT(Template!E902,2)","v":""},{"$f":"LEFT(Template!F902,3)","v":""},{"$f":"LEFT(Template!G902,10)","v":""},{"$f":"LEFT(Template!H902,6)","v":""},{"$f":"LEFT(Template!I902,4)","v":""},{"$f":"LEFT(Template!J902,6)","v":""},{"$f":"LEFT(Template!K902,6)","v":""},{"$f":"LEFT(Template!L902,3)","v":""},{"$f":"IF(Template!M902=\"\",\"\",Template!M902)","v":""},{"$f":"IF(Template!N902=\"\",\"\",Template!N902)","v":""},null,null,null,null,null,{"$f":"IF(Template!O902=\"\",\"\",Template!O902)","v":""}]
[{"$f":"LEFT(Template!A903,4)","v":""},{"$f":"LEFT(Template!B903,5)","v":""},{"$f":"LEFT(Template!C903,7)","v":""},{"$f":"LEFT(Template!D903,6)","v":""},{"$f":"LEFT(Template!E903,2)","v":""},{"$f":"LEFT(Template!F903,3)","v":""},{"$f":"LEFT(Template!G903,10)","v":""},{"$f":"LEFT(Template!H903,6)","v":""},{"$f":"LEFT(Template!I903,4)","v":""},{"$f":"LEFT(Template!J903,6)","v":""},{"$f":"LEFT(Template!K903,6)","v":""},{"$f":"LEFT(Template!L903,3)","v":""},{"$f":"IF(Template!M903=\"\",\"\",Template!M903)","v":""},{"$f":"IF(Template!N903=\"\",\"\",Template!N903)","v":""},null,null,null,null,null,{"$f":"IF(Template!O903=\"\",\"\",Template!O903)","v":""}]
[{"$f":"LEFT(Template!A904,4)","v":""},{"$f":"LEFT(Template!B904,5)","v":""},{"$f":"LEFT(Template!C904,7)","v":""},{"$f":"LEFT(Template!D904,6)","v":""},{"$f":"LEFT(Template!E904,2)","v":""},{"$f":"LEFT(Template!F904,3)","v":""},{"$f":"LEFT(Template!G904,10)","v":""},{"$f":"LEFT(Template!H904,6)","v":""},{"$f":"LEFT(Template!I904,4)","v":""},{"$f":"LEFT(Template!J904,6)","v":""},{"$f":"LEFT(Template!K904,6)","v":""},{"$f":"LEFT(Template!L904,3)","v":""},{"$f":"IF(Template!M904=\"\",\"\",Template!M904)","v":""},{"$f":"IF(Template!N904=\"\",\"\",Template!N904)","v":""},null,null,null,null,null,{"$f":"IF(Template!O904=\"\",\"\",Template!O904)","v":""}]
[{"$f":"LEFT(Template!A905,4)","v":""},{"$f":"LEFT(Template!B905,5)","v":""},{"$f":"LEFT(Template!C905,7)","v":""},{"$f":"LEFT(Template!D905,6)","v":""},{"$f":"LEFT(Template!E905,2)","v":""},{"$f":"LEFT(Template!F905,3)","v":""},{"$f":"LEFT(Template!G905,10)","v":""},{"$f":"LEFT(Template!H905,6)","v":""},{"$f":"LEFT(Template!I905,4)","v":""},{"$f":"LEFT(Template!J905,6)","v":""},{"$f":"LEFT(Template!K905,6)","v":""},{"$f":"LEFT(Template!L905,3)","v":""},{"$f":"IF(Template!M905=\"\",\"\",Template!M905)","v":""},{"$f":"IF(Template!N905=\"\",\"\",Template!N905)","v":""},null,null,null,null,null,{"$f":"IF(Template!O905=\"\",\"\",Template!O905)","v":""}]
[{"$f":"LEFT(Template!A906,4)","v":""},{"$f":"LEFT(Template!B906,5)","v":""},{"$f":"LEFT(Template!C906,7)","v":""},{"$f":"LEFT(Template!D906,6)","v":""},{"$f":"LEFT(Template!E906,2)","v":""},{"$f":"LEFT(Template!F906,3)","v":""},{"$f":"LEFT(Template!G906,10)","v":""},{"$f":"LEFT(Template!H906,6)","v":""},{"$f":"LEFT(Template!I906,4)","v":""},{"$f":"LEFT(Template!J906,6)","v":""},{"$f":"LEFT(Template!K906,6)","v":""},{"$f":"LEFT(Template!L906,3)","v":""},{"$f":"IF(Template!M906=\"\",\"\",Template!M906)","v":""},{"$f":"IF(Template!N906=\"\",\"\",Template!N906)","v":""},null,null,null,null,null,{"$f":"IF(Template!O906=\"\",\"\",Template!O906)","v":""}]
[{"$f":"LEFT(Template!A907,4)","v":""},{"$f":"LEFT(Template!B907,5)","v":""},{"$f":"LEFT(Template!C907,7)","v":""},{"$f":"LEFT(Template!D907,6)","v":""},{"$f":"LEFT(Template!E907,2)","v":""},{"$f":"LEFT(Template!F907,3)","v":""},{"$f":"LEFT(Template!G907,10)","v":""},{"$f":"LEFT(Template!H907,6)","v":""},{"$f":"LEFT(Template!I907,4)","v":""},{"$f":"LEFT(Template!J907,6)","v":""},{"$f":"LEFT(Template!K907,6)","v":""},{"$f":"LEFT(Template!L907,3)","v":""},{"$f":"IF(Template!M907=\"\",\"\",Template!M907)","v":""},{"$f":"IF(Template!N907=\"\",\"\",Template!N907)","v":""},null,null,null,null,null,{"$f":"IF(Template!O907=\"\",\"\",Template!O907)","v":""}]
[{"$f":"LEFT(Template!A908,4)","v":""},{"$f":"LEFT(Template!B908,5)","v":""},{"$f":"LEFT(Template!C908,7)","v":""},{"$f":"LEFT(Template!D908,6)","v":""},{"$f":"LEFT(Template!E908,2)","v":""},{"$f":"LEFT(Template!F908,3)","v":""},{"$f":"LEFT(Template!G908,10)","v":""},{"$f":"LEFT(Template!H908,6)","v":""},{"$f":"LEFT(Template!I908,4)","v":""},{"$f":"LEFT(Template!J908,6)","v":""},{"$f":"LEFT(Template!K908,6)","v":""},{"$f":"LEFT(Template!L908,3)","v":""},{"$f":"IF(Template!M908=\"\",\"\",Template!M908)","v":""},{"$f":"IF(Template!N908=\"\",\"\",Template!N908)","v":""},null,null,null,null,null,{"$f":"IF(Template!O908=\"\",\"\",Template!O908)","v":""}]
[{"$f":"LEFT(Template!A909,4)","v":""},{"$f":"LEFT(Template!B909,5)","v":""},{"$f":"LEFT(Template!C909,7)","v":""},{"$f":"LEFT(Template!D909,6)","v":""},{"$f":"LEFT(Template!E909,2)","v":""},{"$f":"LEFT(Template!F909,3)","v":""},{"$f":"LEFT(Template!G909,10)","v":""},{"$f":"LEFT(Template!H909,6)","v":""},{"$f":"LEFT(Template!I909,4)","v":""},{"$f":"LEFT(Template!J909,6)","v":""},{"$f":"LEFT(Template!K909,6)","v":""},{"$f":"LEFT(Template!L909,3)","v":""},{"$f":"IF(Template!M909=\"\",\"\",Template!M909)","v":""},{"$f":"IF(Template!N909=\"\",\"\",Template!N909)","v":""},null,null,null,null,null,{"$f":"IF(Template!O909=\"\",\"\",Template!O909)","v":""}]
[{"$f":"LEFT(Template!A910,4)","v":""},{"$f":"LEFT(Template!B910,5)","v":""},{"$f":"LEFT(Template!C910,7)","v":""},{"$f":"LEFT(Template!D910,6)","v":""},{"$f":"LEFT(Template!E910,2)","v":""},{"$f":"LEFT(Template!F910,3)","v":""},{"$f":"LEFT(Template!G910,10)","v":""},{"$f":"LEFT(Template!H910,6)","v":""},{"$f":"LEFT(Template!I910,4)","v":""},{"$f":"LEFT(Template!J910,6)","v":""},{"$f":"LEFT(Template!K910,6)","v":""},{"$f":"LEFT(Template!L910,3)","v":""},{"$f":"IF(Template!M910=\"\",\"\",Template!M910)","v":""},{"$f":"IF(Template!N910=\"\",\"\",Template!N910)","v":""},null,null,null,null,null,{"$f":"IF(Template!O910=\"\",\"\",Template!O910)","v":""}]
[{"$f":"LEFT(Template!A911,4)","v":""},{"$f":"LEFT(Template!B911,5)","v":""},{"$f":"LEFT(Template!C911,7)","v":""},{"$f":"LEFT(Template!D911,6)","v":""},{"$f":"LEFT(Template!E911,2)","v":""},{"$f":"LEFT(Template!F911,3)","v":""},{"$f":"LEFT(Template!G911,10)","v":""},{"$f":"LEFT(Template!H911,6)","v":""},{"$f":"LEFT(Template!I911,4)","v":""},{"$f":"LEFT(Template!J911,6)","v":""},{"$f":"LEFT(Template!K911,6)","v":""},{"$f":"LEFT(Template!L911,3)","v":""},{"$f":"IF(Template!M911=\"\",\"\",Template!M911)","v":""},{"$f":"IF(Template!N911=\"\",\"\",Template!N911)","v":""},null,null,null,null,null,{"$f":"IF(Template!O911=\"\",\"\",Template!O911)","v":""}]
[{"$f":"LEFT(Template!A912,4)","v":""},{"$f":"LEFT(Template!B912,5)","v":""},{"$f":"LEFT(Template!C912,7)","v":""},{"$f":"LEFT(Template!D912,6)","v":""},{"$f":"LEFT(Template!E912,2)","v":""},{"$f":"LEFT(Template!F912,3)","v":""},{"$f":"LEFT(Template!G912,10)","v":""},{"$f":"LEFT(Template!H912,6)","v":""},{"$f":"LEFT(Template!I912,4)","v":""},{"$f":"LEFT(Template!J912,6)","v":""},{"$f":"LEFT(Template!K912,6)","v":""},{"$f":"LEFT(Template!L912,3)","v":""},{"$f":"IF(Template!M912=\"\",\"\",Template!M912)","v":""},{"$f":"IF(Template!N912=\"\",\"\",Template!N912)","v":""},null,null,null,null,null,{"$f":"IF(Template!O912=\"\",\"\",Template!O912)","v":""}]
[{"$f":"LEFT(Template!A913,4)","v":""},{"$f":"LEFT(Template!B913,5)","v":""},{"$f":"LEFT(Template!C913,7)","v":""},{"$f":"LEFT(Template!D913,6)","v":""},{"$f":"LEFT(Template!E913,2)","v":""},{"$f":"LEFT(Template!F913,3)","v":""},{"$f":"LEFT(Template!G913,10)","v":""},{"$f":"LEFT(Template!H913,6)","v":""},{"$f":"LEFT(Template!I913,4)","v":""},{"$f":"LEFT(Template!J913,6)","v":""},{"$f":"LEFT(Template!K913,6)","v":""},{"$f":"LEFT(Template!L913,3)","v":""},{"$f":"IF(Template!M913=\"\",\"\",Template!M913)","v":""},{"$f":"IF(Template!N913=\"\",\"\",Template!N913)","v":""},null,null,null,null,null,{"$f":"IF(Template!O913=\"\",\"\",Template!O913)","v":""}]
[{"$f":"LEFT(Template!A914,4)","v":""},{"$f":"LEFT(Template!B914,5)","v":""},{"$f":"LEFT(Template!C914,7)","v":""},{"$f":"LEFT(Template!D914,6)","v":""},{"$f":"LEFT(Template!E914,2)","v":""},{"$f":"LEFT(Template!F914,3)","v":""},{"$f":"LEFT(Template!G914,10)","v":""},{"$f":"LEFT(Template!H914,6)","v":""},{"$f":"LEFT(Template!I914,4)","v":""},{"$f":"LEFT(Template!J914,6)","v":""},{"$f":"LEFT(Template!K914,6)","v":""},{"$f":"LEFT(Template!L914,3)","v":""},{"$f":"IF(Template!M914=\"\",\"\",Template!M914)","v":""},{"$f":"IF(Template!N914=\"\",\"\",Template!N914)","v":""},null,null,null,null,null,{"$f":"IF(Template!O914=\"\",\"\",Template!O914)","v":""}]
[{"$f":"LEFT(Template!A915,4)","v":""},{"$f":"LEFT(Template!B915,5)","v":""},{"$f":"LEFT(Template!C915,7)","v":""},{"$f":"LEFT(Template!D915,6)","v":""},{"$f":"LEFT(Template!E915,2)","v":""},{"$f":"LEFT(Template!F915,3)","v":""},{"$f":"LEFT(Template!G915,10)","v":""},{"$f":"LEFT(Template!H915,6)","v":""},{"$f":"LEFT(Template!I915,4)","v":""},{"$f":"LEFT(Template!J915,6)","v":""},{"$f":"LEFT(Template!K915,6)","v":""},{"$f":"LEFT(Template!L915,3)","v":""},{"$f":"IF(Template!M915=\"\",\"\",Template!M915)","v":""},{"$f":"IF(Template!N915=\"\",\"\",Template!N915)","v":""},null,null,null,null,null,{"$f":"IF(Template!O915=\"\",\"\",Template!O915)","v":""}]
[{"$f":"LEFT(Template!A916,4)","v":""},{"$f":"LEFT(Template!B916,5)","v":""},{"$f":"LEFT(Template!C916,7)","v":""},{"$f":"LEFT(Template!D916,6)","v":""},{"$f":"LEFT(Template!E916,2)","v":""},{"$f":"LEFT(Template!F916,3)","v":""},{"$f":"LEFT(Template!G916,10)","v":""},{"$f":"LEFT(Template!H916,6)","v":""},{"$f":"LEFT(Template!I916,4)","v":""},{"$f":"LEFT(Template!J916,6)","v":""},{"$f":"LEFT(Template!K916,6)","v":""},{"$f":"LEFT(Template!L916,3)","v":""},{"$f":"IF(Template!M916=\"\",\"\",Template!M916)","v":""},{"$f":"IF(Template!N916=\"\",\"\",Template!N916)","v":""},null,null,null,null,null,{"$f":"IF(Template!O916=\"\",\"\",Template!O916)","v":""}]
[{"$f":"LEFT(Template!A917,4)","v":""},{"$f":"LEFT(Template!B917,5)","v":""},{"$f":"LEFT(Template!C917,7)","v":""},{"$f":"LEFT(Template!D917,6)","v":""},{"$f":"LEFT(Template!E917,2)","v":""},{"$f":"LEFT(Template!F917,3)","v":""},{"$f":"LEFT(Template!G917,10)","v":""},{"$f":"LEFT(Template!H917,6)","v":""},{"$f":"LEFT(Template!I917,4)","v":""},{"$f":"LEFT(Template!J917,6)","v":""},{"$f":"LEFT(Template!K917,6)","v":""},{"$f":"LEFT(Template!L917,3)","v":""},{"$f":"IF(Template!M917=\"\",\"\",Template!M917)","v":""},{"$f":"IF(Template!N917=\"\",\"\",Template!N917)","v":""},null,null,null,null,null,{"$f":"IF(Template!O917=\"\",\"\",Template!O917)","v":""}]
[{"$f":"LEFT(Template!A918,4)","v":""},{"$f":"LEFT(Template!B918,5)","v":""},{"$f":"LEFT(Template!C918,7)","v":""},{"$f":"LEFT(Template!D918,6)","v":""},{"$f":"LEFT(Template!E918,2)","v":""},{"$f":"LEFT(Template!F918,3)","v":""},{"$f":"LEFT(Template!G918,10)","v":""},{"$f":"LEFT(Template!H918,6)","v":""},{"$f":"LEFT(Template!I918,4)","v":""},{"$f":"LEFT(Template!J918,6)","v":""},{"$f":"LEFT(Template!K918,6)","v":""},{"$f":"LEFT(Template!L918,3)","v":""},{"$f":"IF(Template!M918=\"\",\"\",Template!M918)","v":""},{"$f":"IF(Template!N918=\"\",\"\",Template!N918)","v":""},null,null,null,null,null,{"$f":"IF(Template!O918=\"\",\"\",Template!O918)","v":""}]
[{"$f":"LEFT(Template!A919,4)","v":""},{"$f":"LEFT(Template!B919,5)","v":""},{"$f":"LEFT(Template!C919,7)","v":""},{"$f":"LEFT(Template!D919,6)","v":""},{"$f":"LEFT(Template!E919,2)","v":""},{"$f":"LEFT(Template!F919,3)","v":""},{"$f":"LEFT(Template!G919,10)","v":""},{"$f":"LEFT(Template!H919,6)","v":""},{"$f":"LEFT(Template!I919,4)","v":""},{"$f":"LEFT(Template!J919,6)","v":""},{"$f":"LEFT(Template!K919,6)","v":""},{"$f":"LEFT(Template!L919,3)","v":""},{"$f":"IF(Template!M919=\"\",\"\",Template!M919)","v":""},{"$f":"IF(Template!N919=\"\",\"\",Template!N919)","v":""},null,null,null,null,null,{"$f":"IF(Template!O919=\"\",\"\",Template!O919)","v":""}]
[{"$f":"LEFT(Template!A920,4)","v":""},{"$f":"LEFT(Template!B920,5)","v":""},{"$f":"LEFT(Template!C920,7)","v":""},{"$f":"LEFT(Template!D920,6)","v":""},{"$f":"LEFT(Template!E920,2)","v":""},{"$f":"LEFT(Template!F920,3)","v":""},{"$f":"LEFT(Template!G920,10)","v":""},{"$f":"LEFT(Template!H920,6)","v":""},{"$f":"LEFT(Template!I920,4)","v":""},{"$f":"LEFT(Template!J920,6)","v":""},{"$f":"LEFT(Template!K920,6)","v":""},{"$f":"LEFT(Template!L920,3)","v":""},{"$f":"IF(Template!M920=\"\",\"\",Template!M920)","v":""},{"$f":"IF(Template!N920=\"\",\"\",Template!N920)","v":""},null,null,null,null,null,{"$f":"IF(Template!O920=\"\",\"\",Template!O920)","v":""}]
[{"$f":"LEFT(Template!A921,4)","v":""},{"$f":"LEFT(Template!B921,5)","v":""},{"$f":"LEFT(Template!C921,7)","v":""},{"$f":"LEFT(Template!D921,6)","v":""},{"$f":"LEFT(Template!E921,2)","v":""},{"$f":"LEFT(Template!F921,3)","v":""},{"$f":"LEFT(Template!G921,10)","v":""},{"$f":"LEFT(Template!H921,6)","v":""},{"$f":"LEFT(Template!I921,4)","v":""},{"$f":"LEFT(Template!J921,6)","v":""},{"$f":"LEFT(Template!K921,6)","v":""},{"$f":"LEFT(Template!L921,3)","v":""},{"$f":"IF(Template!M921=\"\",\"\",Template!M921)","v":""},{"$f":"IF(Template!N921=\"\",\"\",Template!N921)","v":""},null,null,null,null,null,{"$f":"IF(Template!O921=\"\",\"\",Template!O921)","v":""}]
[{"$f":"LEFT(Template!A922,4)","v":""},{"$f":"LEFT(Template!B922,5)","v":""},{"$f":"LEFT(Template!C922,7)","v":""},{"$f":"LEFT(Template!D922,6)","v":""},{"$f":"LEFT(Template!E922,2)","v":""},{"$f":"LEFT(Template!F922,3)","v":""},{"$f":"LEFT(Template!G922,10)","v":""},{"$f":"LEFT(Template!H922,6)","v":""},{"$f":"LEFT(Template!I922,4)","v":""},{"$f":"LEFT(Template!J922,6)","v":""},{"$f":"LEFT(Template!K922,6)","v":""},{"$f":"LEFT(Template!L922,3)","v":""},{"$f":"IF(Template!M922=\"\",\"\",Template!M922)","v":""},{"$f":"IF(Template!N922=\"\",\"\",Template!N922)","v":""},null,null,null,null,null,{"$f":"IF(Template!O922=\"\",\"\",Template!O922)","v":""}]
[{"$f":"LEFT(Template!A923,4)","v":""},{"$f":"LEFT(Template!B923,5)","v":""},{"$f":"LEFT(Template!C923,7)","v":""},{"$f":"LEFT(Template!D923,6)","v":""},{"$f":"LEFT(Template!E923,2)","v":""},{"$f":"LEFT(Template!F923,3)","v":""},{"$f":"LEFT(Template!G923,10)","v":""},{"$f":"LEFT(Template!H923,6)","v":""},{"$f":"LEFT(Template!I923,4)","v":""},{"$f":"LEFT(Template!J923,6)","v":""},{"$f":"LEFT(Template!K923,6)","v":""},{"$f":"LEFT(Template!L923,3)","v":""},{"$f":"IF(Template!M923=\"\",\"\",Template!M923)","v":""},{"$f":"IF(Template!N923=\"\",\"\",Template!N923)","v":""},null,null,null,null,null,{"$f":"IF(Template!O923=\"\",\"\",Template!O923)","v":""}]
[{"$f":"LEFT(Template!A924,4)","v":""},{"$f":"LEFT(Template!B924,5)","v":""},{"$f":"LEFT(Template!C924,7)","v":""},{"$f":"LEFT(Template!D924,6)","v":""},{"$f":"LEFT(Template!E924,2)","v":""},{"$f":"LEFT(Template!F924,3)","v":""},{"$f":"LEFT(Template!G924,10)","v":""},{"$f":"LEFT(Template!H924,6)","v":""},{"$f":"LEFT(Template!I924,4)","v":""},{"$f":"LEFT(Template!J924,6)","v":""},{"$f":"LEFT(Template!K924,6)","v":""},{"$f":"LEFT(Template!L924,3)","v":""},{"$f":"IF(Template!M924=\"\",\"\",Template!M924)","v":""},{"$f":"IF(Template!N924=\"\",\"\",Template!N924)","v":""},null,null,null,null,null,{"$f":"IF(Template!O924=\"\",\"\",Template!O924)","v":""}]
[{"$f":"LEFT(Template!A925,4)","v":""},{"$f":"LEFT(Template!B925,5)","v":""},{"$f":"LEFT(Template!C925,7)","v":""},{"$f":"LEFT(Template!D925,6)","v":""},{"$f":"LEFT(Template!E925,2)","v":""},{"$f":"LEFT(Template!F925,3)","v":""},{"$f":"LEFT(Template!G925,10)","v":""},{"$f":"LEFT(Template!H925,6)","v":""},{"$f":"LEFT(Template!I925,4)","v":""},{"$f":"LEFT(Template!J925,6)","v":""},{"$f":"LEFT(Template!K925,6)","v":""},{"$f":"LEFT(Template!L925,3)","v":""},{"$f":"IF(Template!M925=\"\",\"\",Template!M925)","v":""},{"$f":"IF(Template!N925=\"\",\"\",Template!N925)","v":""},null,null,null,null,null,{"$f":"IF(Template!O925=\"\",\"\",Template!O925)","v":""}]
[{"$f":"LEFT(Template!A926,4)","v":""},{"$f":"LEFT(Template!B926,5)","v":""},{"$f":"LEFT(Template!C926,7)","v":""},{"$f":"LEFT(Template!D926,6)","v":""},{"$f":"LEFT(Template!E926,2)","v":""},{"$f":"LEFT(Template!F926,3)","v":""},{"$f":"LEFT(Template!G926,10)","v":""},{"$f":"LEFT(Template!H926,6)","v":""},{"$f":"LEFT(Template!I926,4)","v":""},{"$f":"LEFT(Template!J926,6)","v":""},{"$f":"LEFT(Template!K926,6)","v":""},{"$f":"LEFT(Template!L926,3)","v":""},{"$f":"IF(Template!M926=\"\",\"\",Template!M926)","v":""},{"$f":"IF(Template!N926=\"\",\"\",Template!N926)","v":""},null,null,null,null,null,{"$f":"IF(Template!O926=\"\",\"\",Template!O926)","v":""}]
[{"$f":"LEFT(Template!A927,4)","v":""},{"$f":"LEFT(Template!B927,5)","v":""},{"$f":"LEFT(Template!C927,7)","v":""},{"$f":"LEFT(Template!D927,6)","v":""},{"$f":"LEFT(Template!E927,2)","v":""},{"$f":"LEFT(Template!F927,3)","v":""},{"$f":"LEFT(Template!G927,10)","v":""},{"$f":"LEFT(Template!H927,6)","v":""},{"$f":"LEFT(Template!I927,4)","v":""},{"$f":"LEFT(Template!J927,6)","v":""},{"$f":"LEFT(Template!K927,6)","v":""},{"$f":"LEFT(Template!L927,3)","v":""},{"$f":"IF(Template!M927=\"\",\"\",Template!M927)","v":""},{"$f":"IF(Template!N927=\"\",\"\",Template!N927)","v":""},null,null,null,null,null,{"$f":"IF(Template!O927=\"\",\"\",Template!O927)","v":""}]
[{"$f":"LEFT(Template!A928,4)","v":""},{"$f":"LEFT(Template!B928,5)","v":""},{"$f":"LEFT(Template!C928,7)","v":""},{"$f":"LEFT(Template!D928,6)","v":""},{"$f":"LEFT(Template!E928,2)","v":""},{"$f":"LEFT(Template!F928,3)","v":""},{"$f":"LEFT(Template!G928,10)","v":""},{"$f":"LEFT(Template!H928,6)","v":""},{"$f":"LEFT(Template!I928,4)","v":""},{"$f":"LEFT(Template!J928,6)","v":""},{"$f":"LEFT(Template!K928,6)","v":""},{"$f":"LEFT(Template!L928,3)","v":""},{"$f":"IF(Template!M928=\"\",\"\",Template!M928)","v":""},{"$f":"IF(Template!N928=\"\",\"\",Template!N928)","v":""},null,null,null,null,null,{"$f":"IF(Template!O928=\"\",\"\",Template!O928)","v":""}]
[{"$f":"LEFT(Template!A929,4)","v":""},{"$f":"LEFT(Template!B929,5)","v":""},{"$f":"LEFT(Template!C929,7)","v":""},{"$f":"LEFT(Template!D929,6)","v":""},{"$f":"LEFT(Template!E929,2)","v":""},{"$f":"LEFT(Template!F929,3)","v":""},{"$f":"LEFT(Template!G929,10)","v":""},{"$f":"LEFT(Template!H929,6)","v":""},{"$f":"LEFT(Template!I929,4)","v":""},{"$f":"LEFT(Template!J929,6)","v":""},{"$f":"LEFT(Template!K929,6)","v":""},{"$f":"LEFT(Template!L929,3)","v":""},{"$f":"IF(Template!M929=\"\",\"\",Template!M929)","v":""},{"$f":"IF(Template!N929=\"\",\"\",Template!N929)","v":""},null,null,null,null,null,{"$f":"IF(Template!O929=\"\",\"\",Template!O929)","v":""}]
[{"$f":"LEFT(Template!A930,4)","v":""},{"$f":"LEFT(Template!B930,5)","v":""},{"$f":"LEFT(Template!C930,7)","v":""},{"$f":"LEFT(Template!D930,6)","v":""},{"$f":"LEFT(Template!E930,2)","v":""},{"$f":"LEFT(Template!F930,3)","v":""},{"$f":"LEFT(Template!G930,10)","v":""},{"$f":"LEFT(Template!H930,6)","v":""},{"$f":"LEFT(Template!I930,4)","v":""},{"$f":"LEFT(Template!J930,6)","v":""},{"$f":"LEFT(Template!K930,6)","v":""},{"$f":"LEFT(Template!L930,3)","v":""},{"$f":"IF(Template!M930=\"\",\"\",Template!M930)","v":""},{"$f":"IF(Template!N930=\"\",\"\",Template!N930)","v":""},null,null,null,null,null,{"$f":"IF(Template!O930=\"\",\"\",Template!O930)","v":""}]
[{"$f":"LEFT(Template!A931,4)","v":""},{"$f":"LEFT(Template!B931,5)","v":""},{"$f":"LEFT(Template!C931,7)","v":""},{"$f":"LEFT(Template!D931,6)","v":""},{"$f":"LEFT(Template!E931,2)","v":""},{"$f":"LEFT(Template!F931,3)","v":""},{"$f":"LEFT(Template!G931,10)","v":""},{"$f":"LEFT(Template!H931,6)","v":""},{"$f":"LEFT(Template!I931,4)","v":""},{"$f":"LEFT(Template!J931,6)","v":""},{"$f":"LEFT(Template!K931,6)","v":""},{"$f":"LEFT(Template!L931,3)","v":""},{"$f":"IF(Template!M931=\"\",\"\",Template!M931)","v":""},{"$f":"IF(Template!N931=\"\",\"\",Template!N931)","v":""},null,null,null,null,null,{"$f":"IF(Template!O931=\"\",\"\",Template!O931)","v":""}]
[{"$f":"LEFT(Template!A932,4)","v":""},{"$f":"LEFT(Template!B932,5)","v":""},{"$f":"LEFT(Template!C932,7)","v":""},{"$f":"LEFT(Template!D932,6)","v":""},{"$f":"LEFT(Template!E932,2)","v":""},{"$f":"LEFT(Template!F932,3)","v":""},{"$f":"LEFT(Template!G932,10)","v":""},{"$f":"LEFT(Template!H932,6)","v":""},{"$f":"LEFT(Template!I932,4)","v":""},{"$f":"LEFT(Template!J932,6)","v":""},{"$f":"LEFT(Template!K932,6)","v":""},{"$f":"LEFT(Template!L932,3)","v":""},{"$f":"IF(Template!M932=\"\",\"\",Template!M932)","v":""},{"$f":"IF(Template!N932=\"\",\"\",Template!N932)","v":""},null,null,null,null,null,{"$f":"IF(Template!O932=\"\",\"\",Template!O932)","v":""}]
[{"$f":"LEFT(Template!A933,4)","v":""},{"$f":"LEFT(Template!B933,5)","v":""},{"$f":"LEFT(Template!C933,7)","v":""},{"$f":"LEFT(Template!D933,6)","v":""},{"$f":"LEFT(Template!E933,2)","v":""},{"$f":"LEFT(Template!F933,3)","v":""},{"$f":"LEFT(Template!G933,10)","v":""},{"$f":"LEFT(Template!H933,6)","v":""},{"$f":"LEFT(Template!I933,4)","v":""},{"$f":"LEFT(Template!J933,6)","v":""},{"$f":"LEFT(Template!K933,6)","v":""},{"$f":"LEFT(Template!L933,3)","v":""},{"$f":"IF(Template!M933=\"\",\"\",Template!M933)","v":""},{"$f":"IF(Template!N933=\"\",\"\",Template!N933)","v":""},null,null,null,null,null,{"$f":"IF(Template!O933=\"\",\"\",Template!O933)","v":""}]
[{"$f":"LEFT(Template!A934,4)","v":""},{"$f":"LEFT(Template!B934,5)","v":""},{"$f":"LEFT(Template!C934,7)","v":""},{"$f":"LEFT(Template!D934,6)","v":""},{"$f":"LEFT(Template!E934,2)","v":""},{"$f":"LEFT(Template!F934,3)","v":""},{"$f":"LEFT(Template!G934,10)","v":""},{"$f":"LEFT(Template!H934,6)","v":""},{"$f":"LEFT(Template!I934,4)","v":""},{"$f":"LEFT(Template!J934,6)","v":""},{"$f":"LEFT(Template!K934,6)","v":""},{"$f":"LEFT(Template!L934,3)","v":""},{"$f":"IF(Template!M934=\"\",\"\",Template!M934)","v":""},{"$f":"IF(Template!N934=\"\",\"\",Template!N934)","v":""},null,null,null,null,null,{"$f":"IF(Template!O934=\"\",\"\",Template!O934)","v":""}]
[{"$f":"LEFT(Template!A935,4)","v":""},{"$f":"LEFT(Template!B935,5)","v":""},{"$f":"LEFT(Template!C935,7)","v":""},{"$f":"LEFT(Template!D935,6)","v":""},{"$f":"LEFT(Template!E935,2)","v":""},{"$f":"LEFT(Template!F935,3)","v":""},{"$f":"LEFT(Template!G935,10)","v":""},{"$f":"LEFT(Template!H935,6)","v":""},{"$f":"LEFT(Template!I935,4)","v":""},{"$f":"LEFT(Template!J935,6)","v":""},{"$f":"LEFT(Template!K935,6)","v":""},{"$f":"LEFT(Template!L935,3)","v":""},{"$f":"IF(Template!M935=\"\",\"\",Template!M935)","v":""},{"$f":"IF(Template!N935=\"\",\"\",Template!N935)","v":""},null,null,null,null,null,{"$f":"IF(Template!O935=\"\",\"\",Template!O935)","v":""}]
[{"$f":"LEFT(Template!A936,4)","v":""},{"$f":"LEFT(Template!B936,5)","v":""},{"$f":"LEFT(Template!C936,7)","v":""},{"$f":"LEFT(Template!D936,6)","v":""},{"$f":"LEFT(Template!E936,2)","v":""},{"$f":"LEFT(Template!F936,3)","v":""},{"$f":"LEFT(Template!G936,10)","v":""},{"$f":"LEFT(Template!H936,6)","v":""},{"$f":"LEFT(Template!I936,4)","v":""},{"$f":"LEFT(Template!J936,6)","v":""},{"$f":"LEFT(Template!K936,6)","v":""},{"$f":"LEFT(Template!L936,3)","v":""},{"$f":"IF(Template!M936=\"\",\"\",Template!M936)","v":""},{"$f":"IF(Template!N936=\"\",\"\",Template!N936)","v":""},null,null,null,null,null,{"$f":"IF(Template!O936=\"\",\"\",Template!O936)","v":""}]
[{"$f":"LEFT(Template!A937,4)","v":""},{"$f":"LEFT(Template!B937,5)","v":""},{"$f":"LEFT(Template!C937,7)","v":""},{"$f":"LEFT(Template!D937,6)","v":""},{"$f":"LEFT(Template!E937,2)","v":""},{"$f":"LEFT(Template!F937,3)","v":""},{"$f":"LEFT(Template!G937,10)","v":""},{"$f":"LEFT(Template!H937,6)","v":""},{"$f":"LEFT(Template!I937,4)","v":""},{"$f":"LEFT(Template!J937,6)","v":""},{"$f":"LEFT(Template!K937,6)","v":""},{"$f":"LEFT(Template!L937,3)","v":""},{"$f":"IF(Template!M937=\"\",\"\",Template!M937)","v":""},{"$f":"IF(Template!N937=\"\",\"\",Template!N937)","v":""},null,null,null,null,null,{"$f":"IF(Template!O937=\"\",\"\",Template!O937)","v":""}]
[{"$f":"LEFT(Template!A938,4)","v":""},{"$f":"LEFT(Template!B938,5)","v":""},{"$f":"LEFT(Template!C938,7)","v":""},{"$f":"LEFT(Template!D938,6)","v":""},{"$f":"LEFT(Template!E938,2)","v":""},{"$f":"LEFT(Template!F938,3)","v":""},{"$f":"LEFT(Template!G938,10)","v":""},{"$f":"LEFT(Template!H938,6)","v":""},{"$f":"LEFT(Template!I938,4)","v":""},{"$f":"LEFT(Template!J938,6)","v":""},{"$f":"LEFT(Template!K938,6)","v":""},{"$f":"LEFT(Template!L938,3)","v":""},{"$f":"IF(Template!M938=\"\",\"\",Template!M938)","v":""},{"$f":"IF(Template!N938=\"\",\"\",Template!N938)","v":""},null,null,null,null,null,{"$f":"IF(Template!O938=\"\",\"\",Template!O938)","v":""}]
[{"$f":"LEFT(Template!A939,4)","v":""},{"$f":"LEFT(Template!B939,5)","v":""},{"$f":"LEFT(Template!C939,7)","v":""},{"$f":"LEFT(Template!D939,6)","v":""},{"$f":"LEFT(Template!E939,2)","v":""},{"$f":"LEFT(Template!F939,3)","v":""},{"$f":"LEFT(Template!G939,10)","v":""},{"$f":"LEFT(Template!H939,6)","v":""},{"$f":"LEFT(Template!I939,4)","v":""},{"$f":"LEFT(Template!J939,6)","v":""},{"$f":"LEFT(Template!K939,6)","v":""},{"$f":"LEFT(Template!L939,3)","v":""},{"$f":"IF(Template!M939=\"\",\"\",Template!M939)","v":""},{"$f":"IF(Template!N939=\"\",\"\",Template!N939)","v":""},null,null,null,null,null,{"$f":"IF(Template!O939=\"\",\"\",Template!O939)","v":""}]
[{"$f":"LEFT(Template!A940,4)","v":""},{"$f":"LEFT(Template!B940,5)","v":""},{"$f":"LEFT(Template!C940,7)","v":""},{"$f":"LEFT(Template!D940,6)","v":""},{"$f":"LEFT(Template!E940,2)","v":""},{"$f":"LEFT(Template!F940,3)","v":""},{"$f":"LEFT(Template!G940,10)","v":""},{"$f":"LEFT(Template!H940,6)","v":""},{"$f":"LEFT(Template!I940,4)","v":""},{"$f":"LEFT(Template!J940,6)","v":""},{"$f":"LEFT(Template!K940,6)","v":""},{"$f":"LEFT(Template!L940,3)","v":""},{"$f":"IF(Template!M940=\"\",\"\",Template!M940)","v":""},{"$f":"IF(Template!N940=\"\",\"\",Template!N940)","v":""},null,null,null,null,null,{"$f":"IF(Template!O940=\"\",\"\",Template!O940)","v":""}]
[{"$f":"LEFT(Template!A941,4)","v":""},{"$f":"LEFT(Template!B941,5)","v":""},{"$f":"LEFT(Template!C941,7)","v":""},{"$f":"LEFT(Template!D941,6)","v":""},{"$f":"LEFT(Template!E941,2)","v":""},{"$f":"LEFT(Template!F941,3)","v":""},{"$f":"LEFT(Template!G941,10)","v":""},{"$f":"LEFT(Template!H941,6)","v":""},{"$f":"LEFT(Template!I941,4)","v":""},{"$f":"LEFT(Template!J941,6)","v":""},{"$f":"LEFT(Template!K941,6)","v":""},{"$f":"LEFT(Template!L941,3)","v":""},{"$f":"IF(Template!M941=\"\",\"\",Template!M941)","v":""},{"$f":"IF(Template!N941=\"\",\"\",Template!N941)","v":""},null,null,null,null,null,{"$f":"IF(Template!O941=\"\",\"\",Template!O941)","v":""}]
[{"$f":"LEFT(Template!A942,4)","v":""},{"$f":"LEFT(Template!B942,5)","v":""},{"$f":"LEFT(Template!C942,7)","v":""},{"$f":"LEFT(Template!D942,6)","v":""},{"$f":"LEFT(Template!E942,2)","v":""},{"$f":"LEFT(Template!F942,3)","v":""},{"$f":"LEFT(Template!G942,10)","v":""},{"$f":"LEFT(Template!H942,6)","v":""},{"$f":"LEFT(Template!I942,4)","v":""},{"$f":"LEFT(Template!J942,6)","v":""},{"$f":"LEFT(Template!K942,6)","v":""},{"$f":"LEFT(Template!L942,3)","v":""},{"$f":"IF(Template!M942=\"\",\"\",Template!M942)","v":""},{"$f":"IF(Template!N942=\"\",\"\",Template!N942)","v":""},null,null,null,null,null,{"$f":"IF(Template!O942=\"\",\"\",Template!O942)","v":""}]
[{"$f":"LEFT(Template!A943,4)","v":""},{"$f":"LEFT(Template!B943,5)","v":""},{"$f":"LEFT(Template!C943,7)","v":""},{"$f":"LEFT(Template!D943,6)","v":""},{"$f":"LEFT(Template!E943,2)","v":""},{"$f":"LEFT(Template!F943,3)","v":""},{"$f":"LEFT(Template!G943,10)","v":""},{"$f":"LEFT(Template!H943,6)","v":""},{"$f":"LEFT(Template!I943,4)","v":""},{"$f":"LEFT(Template!J943,6)","v":""},{"$f":"LEFT(Template!K943,6)","v":""},{"$f":"LEFT(Template!L943,3)","v":""},{"$f":"IF(Template!M943=\"\",\"\",Template!M943)","v":""},{"$f":"IF(Template!N943=\"\",\"\",Template!N943)","v":""},null,null,null,null,null,{"$f":"IF(Template!O943=\"\",\"\",Template!O943)","v":""}]
[{"$f":"LEFT(Template!A944,4)","v":""},{"$f":"LEFT(Template!B944,5)","v":""},{"$f":"LEFT(Template!C944,7)","v":""},{"$f":"LEFT(Template!D944,6)","v":""},{"$f":"LEFT(Template!E944,2)","v":""},{"$f":"LEFT(Template!F944,3)","v":""},{"$f":"LEFT(Template!G944,10)","v":""},{"$f":"LEFT(Template!H944,6)","v":""},{"$f":"LEFT(Template!I944,4)","v":""},{"$f":"LEFT(Template!J944,6)","v":""},{"$f":"LEFT(Template!K944,6)","v":""},{"$f":"LEFT(Template!L944,3)","v":""},{"$f":"IF(Template!M944=\"\",\"\",Template!M944)","v":""},{"$f":"IF(Template!N944=\"\",\"\",Template!N944)","v":""},null,null,null,null,null,{"$f":"IF(Template!O944=\"\",\"\",Template!O944)","v":""}]
[{"$f":"LEFT(Template!A945,4)","v":""},{"$f":"LEFT(Template!B945,5)","v":""},{"$f":"LEFT(Template!C945,7)","v":""},{"$f":"LEFT(Template!D945,6)","v":""},{"$f":"LEFT(Template!E945,2)","v":""},{"$f":"LEFT(Template!F945,3)","v":""},{"$f":"LEFT(Template!G945,10)","v":""},{"$f":"LEFT(Template!H945,6)","v":""},{"$f":"LEFT(Template!I945,4)","v":""},{"$f":"LEFT(Template!J945,6)","v":""},{"$f":"LEFT(Template!K945,6)","v":""},{"$f":"LEFT(Template!L945,3)","v":""},{"$f":"IF(Template!M945=\"\",\"\",Template!M945)","v":""},{"$f":"IF(Template!N945=\"\",\"\",Template!N945)","v":""},null,null,null,null,null,{"$f":"IF(Template!O945=\"\",\"\",Template!O945)","v":""}]
[{"$f":"LEFT(Template!A946,4)","v":""},{"$f":"LEFT(Template!B946,5)","v":""},{"$f":"LEFT(Template!C946,7)","v":""},{"$f":"LEFT(Template!D946,6)","v":""},{"$f":"LEFT(Template!E946,2)","v":""},{"$f":"LEFT(Template!F946,3)","v":""},{"$f":"LEFT(Template!G946,10)","v":""},{"$f":"LEFT(Template!H946,6)","v":""},{"$f":"LEFT(Template!I946,4)","v":""},{"$f":"LEFT(Template!J946,6)","v":""},{"$f":"LEFT(Template!K946,6)","v":""},{"$f":"LEFT(Template!L946,3)","v":""},{"$f":"IF(Template!M946=\"\",\"\",Template!M946)","v":""},{"$f":"IF(Template!N946=\"\",\"\",Template!N946)","v":""},null,null,null,null,null,{"$f":"IF(Template!O946=\"\",\"\",Template!O946)","v":""}]
[{"$f":"LEFT(Template!A947,4)","v":""},{"$f":"LEFT(Template!B947,5)","v":""},{"$f":"LEFT(Template!C947,7)","v":""},{"$f":"LEFT(Template!D947,6)","v":""},{"$f":"LEFT(Template!E947,2)","v":""},{"$f":"LEFT(Template!F947,3)","v":""},{"$f":"LEFT(Template!G947,10)","v":""},{"$f":"LEFT(Template!H947,6)","v":""},{"$f":"LEFT(Template!I947,4)","v":""},{"$f":"LEFT(Template!J947,6)","v":""},{"$f":"LEFT(Template!K947,6)","v":""},{"$f":"LEFT(Template!L947,3)","v":""},{"$f":"IF(Template!M947=\"\",\"\",Template!M947)","v":""},{"$f":"IF(Template!N947=\"\",\"\",Template!N947)","v":""},null,null,null,null,null,{"$f":"IF(Template!O947=\"\",\"\",Template!O947)","v":""}]
[{"$f":"LEFT(Template!A948,4)","v":""},{"$f":"LEFT(Template!B948,5)","v":""},{"$f":"LEFT(Template!C948,7)","v":""},{"$f":"LEFT(Template!D948,6)","v":""},{"$f":"LEFT(Template!E948,2)","v":""},{"$f":"LEFT(Template!F948,3)","v":""},{"$f":"LEFT(Template!G948,10)","v":""},{"$f":"LEFT(Template!H948,6)","v":""},{"$f":"LEFT(Template!I948,4)","v":""},{"$f":"LEFT(Template!J948,6)","v":""},{"$f":"LEFT(Template!K948,6)","v":""},{"$f":"LEFT(Template!L948,3)","v":""},{"$f":"IF(Template!M948=\"\",\"\",Template!M948)","v":""},{"$f":"IF(Template!N948=\"\",\"\",Template!N948)","v":""},null,null,null,null,null,{"$f":"IF(Template!O948=\"\",\"\",Template!O948)","v":""}]
[{"$f":"LEFT(Template!A949,4)","v":""},{"$f":"LEFT(Template!B949,5)","v":""},{"$f":"LEFT(Template!C949,7)","v":""},{"$f":"LEFT(Template!D949,6)","v":""},{"$f":"LEFT(Template!E949,2)","v":""},{"$f":"LEFT(Template!F949,3)","v":""},{"$f":"LEFT(Template!G949,10)","v":""},{"$f":"LEFT(Template!H949,6)","v":""},{"$f":"LEFT(Template!I949,4)","v":""},{"$f":"LEFT(Template!J949,6)","v":""},{"$f":"LEFT(Template!K949,6)","v":""},{"$f":"LEFT(Template!L949,3)","v":""},{"$f":"IF(Template!M949=\"\",\"\",Template!M949)","v":""},{"$f":"IF(Template!N949=\"\",\"\",Template!N949)","v":""},null,null,null,null,null,{"$f":"IF(Template!O949=\"\",\"\",Template!O949)","v":""}]
[{"$f":"LEFT(Template!A950,4)","v":""},{"$f":"LEFT(Template!B950,5)","v":""},{"$f":"LEFT(Template!C950,7)","v":""},{"$f":"LEFT(Template!D950,6)","v":""},{"$f":"LEFT(Template!E950,2)","v":""},{"$f":"LEFT(Template!F950,3)","v":""},{"$f":"LEFT(Template!G950,10)","v":""},{"$f":"LEFT(Template!H950,6)","v":""},{"$f":"LEFT(Template!I950,4)","v":""},{"$f":"LEFT(Template!J950,6)","v":""},{"$f":"LEFT(Template!K950,6)","v":""},{"$f":"LEFT(Template!L950,3)","v":""},{"$f":"IF(Template!M950=\"\",\"\",Template!M950)","v":""},{"$f":"IF(Template!N950=\"\",\"\",Template!N950)","v":""},null,null,null,null,null,{"$f":"IF(Template!O950=\"\",\"\",Template!O950)","v":""}]
[{"$f":"LEFT(Template!A951,4)","v":""},{"$f":"LEFT(Template!B951,5)","v":""},{"$f":"LEFT(Template!C951,7)","v":""},{"$f":"LEFT(Template!D951,6)","v":""},{"$f":"LEFT(Template!E951,2)","v":""},{"$f":"LEFT(Template!F951,3)","v":""},{"$f":"LEFT(Template!G951,10)","v":""},{"$f":"LEFT(Template!H951,6)","v":""},{"$f":"LEFT(Template!I951,4)","v":""},{"$f":"LEFT(Template!J951,6)","v":""},{"$f":"LEFT(Template!K951,6)","v":""},{"$f":"LEFT(Template!L951,3)","v":""},{"$f":"IF(Template!M951=\"\",\"\",Template!M951)","v":""},{"$f":"IF(Template!N951=\"\",\"\",Template!N951)","v":""},null,null,null,null,null,{"$f":"IF(Template!O951=\"\",\"\",Template!O951)","v":""}]
[{"$f":"LEFT(Template!A952,4)","v":""},{"$f":"LEFT(Template!B952,5)","v":""},{"$f":"LEFT(Template!C952,7)","v":""},{"$f":"LEFT(Template!D952,6)","v":""},{"$f":"LEFT(Template!E952,2)","v":""},{"$f":"LEFT(Template!F952,3)","v":""},{"$f":"LEFT(Template!G952,10)","v":""},{"$f":"LEFT(Template!H952,6)","v":""},{"$f":"LEFT(Template!I952,4)","v":""},{"$f":"LEFT(Template!J952,6)","v":""},{"$f":"LEFT(Template!K952,6)","v":""},{"$f":"LEFT(Template!L952,3)","v":""},{"$f":"IF(Template!M952=\"\",\"\",Template!M952)","v":""},{"$f":"IF(Template!N952=\"\",\"\",Template!N952)","v":""},null,null,null,null,null,{"$f":"IF(Template!O952=\"\",\"\",Template!O952)","v":""}]
[{"$f":"LEFT(Template!A953,4)","v":""},{"$f":"LEFT(Template!B953,5)","v":""},{"$f":"LEFT(Template!C953,7)","v":""},{"$f":"LEFT(Template!D953,6)","v":""},{"$f":"LEFT(Template!E953,2)","v":""},{"$f":"LEFT(Template!F953,3)","v":""},{"$f":"LEFT(Template!G953,10)","v":""},{"$f":"LEFT(Template!H953,6)","v":""},{"$f":"LEFT(Template!I953,4)","v":""},{"$f":"LEFT(Template!J953,6)","v":""},{"$f":"LEFT(Template!K953,6)","v":""},{"$f":"LEFT(Template!L953,3)","v":""},{"$f":"IF(Template!M953=\"\",\"\",Template!M953)","v":""},{"$f":"IF(Template!N953=\"\",\"\",Template!N953)","v":""},null,null,null,null,null,{"$f":"IF(Template!O953=\"\",\"\",Template!O953)","v":""}]
[{"$f":"LEFT(Template!A954,4)","v":""},{"$f":"LEFT(Template!B954,5)","v":""},{"$f":"LEFT(Template!C954,7)","v":""},{"$f":"LEFT(Template!D954,6)","v":""},{"$f":"LEFT(Template!E954,2)","v":""},{"$f":"LEFT(Template!F954,3)","v":""},{"$f":"LEFT(Template!G954,10)","v":""},{"$f":"LEFT(Template!H954,6)","v":""},{"$f":"LEFT(Template!I954,4)","v":""},{"$f":"LEFT(Template!J954,6)","v":""},{"$f":"LEFT(Template!K954,6)","v":""},{"$f":"LEFT(Template!L954,3)","v":""},{"$f":"IF(Template!M954=\"\",\"\",Template!M954)","v":""},{"$f":"IF(Template!N954=\"\",\"\",Template!N954)","v":""},null,null,null,null,null,{"$f":"IF(Template!O954=\"\",\"\",Template!O954)","v":""}]
[{"$f":"LEFT(Template!A955,4)","v":""},{"$f":"LEFT(Template!B955,5)","v":""},{"$f":"LEFT(Template!C955,7)","v":""},{"$f":"LEFT(Template!D955,6)","v":""},{"$f":"LEFT(Template!E955,2)","v":""},{"$f":"LEFT(Template!F955,3)","v":""},{"$f":"LEFT(Template!G955,10)","v":""},{"$f":"LEFT(Template!H955,6)","v":""},{"$f":"LEFT(Template!I955,4)","v":""},{"$f":"LEFT(Template!J955,6)","v":""},{"$f":"LEFT(Template!K955,6)","v":""},{"$f":"LEFT(Template!L955,3)","v":""},{"$f":"IF(Template!M955=\"\",\"\",Template!M955)","v":""},{"$f":"IF(Template!N955=\"\",\"\",Template!N955)","v":""},null,null,null,null,null,{"$f":"IF(Template!O955=\"\",\"\",Template!O955)","v":""}]
[{"$f":"LEFT(Template!A956,4)","v":""},{"$f":"LEFT(Template!B956,5)","v":""},{"$f":"LEFT(Template!C956,7)","v":""},{"$f":"LEFT(Template!D956,6)","v":""},{"$f":"LEFT(Template!E956,2)","v":""},{"$f":"LEFT(Template!F956,3)","v":""},{"$f":"LEFT(Template!G956,10)","v":""},{"$f":"LEFT(Template!H956,6)","v":""},{"$f":"LEFT(Template!I956,4)","v":""},{"$f":"LEFT(Template!J956,6)","v":""},{"$f":"LEFT(Template!K956,6)","v":""},{"$f":"LEFT(Template!L956,3)","v":""},{"$f":"IF(Template!M956=\"\",\"\",Template!M956)","v":""},{"$f":"IF(Template!N956=\"\",\"\",Template!N956)","v":""},null,null,null,null,null,{"$f":"IF(Template!O956=\"\",\"\",Template!O956)","v":""}]
[{"$f":"LEFT(Template!A957,4)","v":""},{"$f":"LEFT(Template!B957,5)","v":""},{"$f":"LEFT(Template!C957,7)","v":""},{"$f":"LEFT(Template!D957,6)","v":""},{"$f":"LEFT(Template!E957,2)","v":""},{"$f":"LEFT(Template!F957,3)","v":""},{"$f":"LEFT(Template!G957,10)","v":""},{"$f":"LEFT(Template!H957,6)","v":""},{"$f":"LEFT(Template!I957,4)","v":""},{"$f":"LEFT(Template!J957,6)","v":""},{"$f":"LEFT(Template!K957,6)","v":""},{"$f":"LEFT(Template!L957,3)","v":""},{"$f":"IF(Template!M957=\"\",\"\",Template!M957)","v":""},{"$f":"IF(Template!N957=\"\",\"\",Template!N957)","v":""},null,null,null,null,null,{"$f":"IF(Template!O957=\"\",\"\",Template!O957)","v":""}]
[{"$f":"LEFT(Template!A958,4)","v":""},{"$f":"LEFT(Template!B958,5)","v":""},{"$f":"LEFT(Template!C958,7)","v":""},{"$f":"LEFT(Template!D958,6)","v":""},{"$f":"LEFT(Template!E958,2)","v":""},{"$f":"LEFT(Template!F958,3)","v":""},{"$f":"LEFT(Template!G958,10)","v":""},{"$f":"LEFT(Template!H958,6)","v":""},{"$f":"LEFT(Template!I958,4)","v":""},{"$f":"LEFT(Template!J958,6)","v":""},{"$f":"LEFT(Template!K958,6)","v":""},{"$f":"LEFT(Template!L958,3)","v":""},{"$f":"IF(Template!M958=\"\",\"\",Template!M958)","v":""},{"$f":"IF(Template!N958=\"\",\"\",Template!N958)","v":""},null,null,null,null,null,{"$f":"IF(Template!O958=\"\",\"\",Template!O958)","v":""}]
[{"$f":"LEFT(Template!A959,4)","v":""},{"$f":"LEFT(Template!B959,5)","v":""},{"$f":"LEFT(Template!C959,7)","v":""},{"$f":"LEFT(Template!D959,6)","v":""},{"$f":"LEFT(Template!E959,2)","v":""},{"$f":"LEFT(Template!F959,3)","v":""},{"$f":"LEFT(Template!G959,10)","v":""},{"$f":"LEFT(Template!H959,6)","v":""},{"$f":"LEFT(Template!I959,4)","v":""},{"$f":"LEFT(Template!J959,6)","v":""},{"$f":"LEFT(Template!K959,6)","v":""},{"$f":"LEFT(Template!L959,3)","v":""},{"$f":"IF(Template!M959=\"\",\"\",Template!M959)","v":""},{"$f":"IF(Template!N959=\"\",\"\",Template!N959)","v":""},null,null,null,null,null,{"$f":"IF(Template!O959=\"\",\"\",Template!O959)","v":""}]
[{"$f":"LEFT(Template!A960,4)","v":""},{"$f":"LEFT(Template!B960,5)","v":""},{"$f":"LEFT(Template!C960,7)","v":""},{"$f":"LEFT(Template!D960,6)","v":""},{"$f":"LEFT(Template!E960,2)","v":""},{"$f":"LEFT(Template!F960,3)","v":""},{"$f":"LEFT(Template!G960,10)","v":""},{"$f":"LEFT(Template!H960,6)","v":""},{"$f":"LEFT(Template!I960,4)","v":""},{"$f":"LEFT(Template!J960,6)","v":""},{"$f":"LEFT(Template!K960,6)","v":""},{"$f":"LEFT(Template!L960,3)","v":""},{"$f":"IF(Template!M960=\"\",\"\",Template!M960)","v":""},{"$f":"IF(Template!N960=\"\",\"\",Template!N960)","v":""},null,null,null,null,null,{"$f":"IF(Template!O960=\"\",\"\",Template!O960)","v":""}]
[{"$f":"LEFT(Template!A961,4)","v":""},{"$f":"LEFT(Template!B961,5)","v":""},{"$f":"LEFT(Template!C961,7)","v":""},{"$f":"LEFT(Template!D961,6)","v":""},{"$f":"LEFT(Template!E961,2)","v":""},{"$f":"LEFT(Template!F961,3)","v":""},{"$f":"LEFT(Template!G961,10)","v":""},{"$f":"LEFT(Template!H961,6)","v":""},{"$f":"LEFT(Template!I961,4)","v":""},{"$f":"LEFT(Template!J961,6)","v":""},{"$f":"LEFT(Template!K961,6)","v":""},{"$f":"LEFT(Template!L961,3)","v":""},{"$f":"IF(Template!M961=\"\",\"\",Template!M961)","v":""},{"$f":"IF(Template!N961=\"\",\"\",Template!N961)","v":""},null,null,null,null,null,{"$f":"IF(Template!O961=\"\",\"\",Template!O961)","v":""}]
[{"$f":"LEFT(Template!A962,4)","v":""},{"$f":"LEFT(Template!B962,5)","v":""},{"$f":"LEFT(Template!C962,7)","v":""},{"$f":"LEFT(Template!D962,6)","v":""},{"$f":"LEFT(Template!E962,2)","v":""},{"$f":"LEFT(Template!F962,3)","v":""},{"$f":"LEFT(Template!G962,10)","v":""},{"$f":"LEFT(Template!H962,6)","v":""},{"$f":"LEFT(Template!I962,4)","v":""},{"$f":"LEFT(Template!J962,6)","v":""},{"$f":"LEFT(Template!K962,6)","v":""},{"$f":"LEFT(Template!L962,3)","v":""},{"$f":"IF(Template!M962=\"\",\"\",Template!M962)","v":""},{"$f":"IF(Template!N962=\"\",\"\",Template!N962)","v":""},null,null,null,null,null,{"$f":"IF(Template!O962=\"\",\"\",Template!O962)","v":""}]
[{"$f":"LEFT(Template!A963,4)","v":""},{"$f":"LEFT(Template!B963,5)","v":""},{"$f":"LEFT(Template!C963,7)","v":""},{"$f":"LEFT(Template!D963,6)","v":""},{"$f":"LEFT(Template!E963,2)","v":""},{"$f":"LEFT(Template!F963,3)","v":""},{"$f":"LEFT(Template!G963,10)","v":""},{"$f":"LEFT(Template!H963,6)","v":""},{"$f":"LEFT(Template!I963,4)","v":""},{"$f":"LEFT(Template!J963,6)","v":""},{"$f":"LEFT(Template!K963,6)","v":""},{"$f":"LEFT(Template!L963,3)","v":""},{"$f":"IF(Template!M963=\"\",\"\",Template!M963)","v":""},{"$f":"IF(Template!N963=\"\",\"\",Template!N963)","v":""},null,null,null,null,null,{"$f":"IF(Template!O963=\"\",\"\",Template!O963)","v":""}]
[{"$f":"LEFT(Template!A964,4)","v":""},{"$f":"LEFT(Template!B964,5)","v":""},{"$f":"LEFT(Template!C964,7)","v":""},{"$f":"LEFT(Template!D964,6)","v":""},{"$f":"LEFT(Template!E964,2)","v":""},{"$f":"LEFT(Template!F964,3)","v":""},{"$f":"LEFT(Template!G964,10)","v":""},{"$f":"LEFT(Template!H964,6)","v":""},{"$f":"LEFT(Template!I964,4)","v":""},{"$f":"LEFT(Template!J964,6)","v":""},{"$f":"LEFT(Template!K964,6)","v":""},{"$f":"LEFT(Template!L964,3)","v":""},{"$f":"IF(Template!M964=\"\",\"\",Template!M964)","v":""},{"$f":"IF(Template!N964=\"\",\"\",Template!N964)","v":""},null,null,null,null,null,{"$f":"IF(Template!O964=\"\",\"\",Template!O964)","v":""}]
[{"$f":"LEFT(Template!A965,4)","v":""},{"$f":"LEFT(Template!B965,5)","v":""},{"$f":"LEFT(Template!C965,7)","v":""},{"$f":"LEFT(Template!D965,6)","v":""},{"$f":"LEFT(Template!E965,2)","v":""},{"$f":"LEFT(Template!F965,3)","v":""},{"$f":"LEFT(Template!G965,10)","v":""},{"$f":"LEFT(Template!H965,6)","v":""},{"$f":"LEFT(Template!I965,4)","v":""},{"$f":"LEFT(Template!J965,6)","v":""},{"$f":"LEFT(Template!K965,6)","v":""},{"$f":"LEFT(Template!L965,3)","v":""},{"$f":"IF(Template!M965=\"\",\"\",Template!M965)","v":""},{"$f":"IF(Template!N965=\"\",\"\",Template!N965)","v":""},null,null,null,null,null,{"$f":"IF(Template!O965=\"\",\"\",Template!O965)","v":""}]
[{"$f":"LEFT(Template!A966,4)","v":""},{"$f":"LEFT(Template!B966,5)","v":""},{"$f":"LEFT(Template!C966,7)","v":""},{"$f":"LEFT(Template!D966,6)","v":""},{"$f":"LEFT(Template!E966,2)","v":""},{"$f":"LEFT(Template!F966,3)","v":""},{"$f":"LEFT(Template!G966,10)","v":""},{"$f":"LEFT(Template!H966,6)","v":""},{"$f":"LEFT(Template!I966,4)","v":""},{"$f":"LEFT(Template!J966,6)","v":""},{"$f":"LEFT(Template!K966,6)","v":""},{"$f":"LEFT(Template!L966,3)","v":""},{"$f":"IF(Template!M966=\"\",\"\",Template!M966)","v":""},{"$f":"IF(Template!N966=\"\",\"\",Template!N966)","v":""},null,null,null,null,null,{"$f":"IF(Template!O966=\"\",\"\",Template!O966)","v":""}]
[{"$f":"LEFT(Template!A967,4)","v":""},{"$f":"LEFT(Template!B967,5)","v":""},{"$f":"LEFT(Template!C967,7)","v":""},{"$f":"LEFT(Template!D967,6)","v":""},{"$f":"LEFT(Template!E967,2)","v":""},{"$f":"LEFT(Template!F967,3)","v":""},{"$f":"LEFT(Template!G967,10)","v":""},{"$f":"LEFT(Template!H967,6)","v":""},{"$f":"LEFT(Template!I967,4)","v":""},{"$f":"LEFT(Template!J967,6)","v":""},{"$f":"LEFT(Template!K967,6)","v":""},{"$f":"LEFT(Template!L967,3)","v":""},{"$f":"IF(Template!M967=\"\",\"\",Template!M967)","v":""},{"$f":"IF(Template!N967=\"\",\"\",Template!N967)","v":""},null,null,null,null,null,{"$f":"IF(Template!O967=\"\",\"\",Template!O967)","v":""}]
[{"$f":"LEFT(Template!A968,4)","v":""},{"$f":"LEFT(Template!B968,5)","v":""},{"$f":"LEFT(Template!C968,7)","v":""},{"$f":"LEFT(Template!D968,6)","v":""},{"$f":"LEFT(Template!E968,2)","v":""},{"$f":"LEFT(Template!F968,3)","v":""},{"$f":"LEFT(Template!G968,10)","v":""},{"$f":"LEFT(Template!H968,6)","v":""},{"$f":"LEFT(Template!I968,4)","v":""},{"$f":"LEFT(Template!J968,6)","v":""},{"$f":"LEFT(Template!K968,6)","v":""},{"$f":"LEFT(Template!L968,3)","v":""},{"$f":"IF(Template!M968=\"\",\"\",Template!M968)","v":""},{"$f":"IF(Template!N968=\"\",\"\",Template!N968)","v":""},null,null,null,null,null,{"$f":"IF(Template!O968=\"\",\"\",Template!O968)","v":""}]
[{"$f":"LEFT(Template!A969,4)","v":""},{"$f":"LEFT(Template!B969,5)","v":""},{"$f":"LEFT(Template!C969,7)","v":""},{"$f":"LEFT(Template!D969,6)","v":""},{"$f":"LEFT(Template!E969,2)","v":""},{"$f":"LEFT(Template!F969,3)","v":""},{"$f":"LEFT(Template!G969,10)","v":""},{"$f":"LEFT(Template!H969,6)","v":""},{"$f":"LEFT(Template!I969,4)","v":""},{"$f":"LEFT(Template!J969,6)","v":""},{"$f":"LEFT(Template!K969,6)","v":""},{"$f":"LEFT(Template!L969,3)","v":""},{"$f":"IF(Template!M969=\"\",\"\",Template!M969)","v":""},{"$f":"IF(Template!N969=\"\",\"\",Template!N969)","v":""},null,null,null,null,null,{"$f":"IF(Template!O969=\"\",\"\",Template!O969)","v":""}]
[{"$f":"LEFT(Template!A970,4)","v":""},{"$f":"LEFT(Template!B970,5)","v":""},{"$f":"LEFT(Template!C970,7)","v":""},{"$f":"LEFT(Template!D970,6)","v":""},{"$f":"LEFT(Template!E970,2)","v":""},{"$f":"LEFT(Template!F970,3)","v":""},{"$f":"LEFT(Template!G970,10)","v":""},{"$f":"LEFT(Template!H970,6)","v":""},{"$f":"LEFT(Template!I970,4)","v":""},{"$f":"LEFT(Template!J970,6)","v":""},{"$f":"LEFT(Template!K970,6)","v":""},{"$f":"LEFT(Template!L970,3)","v":""},{"$f":"IF(Template!M970=\"\",\"\",Template!M970)","v":""},{"$f":"IF(Template!N970=\"\",\"\",Template!N970)","v":""},null,null,null,null,null,{"$f":"IF(Template!O970=\"\",\"\",Template!O970)","v":""}]
[{"$f":"LEFT(Template!A971,4)","v":""},{"$f":"LEFT(Template!B971,5)","v":""},{"$f":"LEFT(Template!C971,7)","v":""},{"$f":"LEFT(Template!D971,6)","v":""},{"$f":"LEFT(Template!E971,2)","v":""},{"$f":"LEFT(Template!F971,3)","v":""},{"$f":"LEFT(Template!G971,10)","v":""},{"$f":"LEFT(Template!H971,6)","v":""},{"$f":"LEFT(Template!I971,4)","v":""},{"$f":"LEFT(Template!J971,6)","v":""},{"$f":"LEFT(Template!K971,6)","v":""},{"$f":"LEFT(Template!L971,3)","v":""},{"$f":"IF(Template!M971=\"\",\"\",Template!M971)","v":""},{"$f":"IF(Template!N971=\"\",\"\",Template!N971)","v":""},null,null,null,null,null,{"$f":"IF(Template!O971=\"\",\"\",Template!O971)","v":""}]
[{"$f":"LEFT(Template!A972,4)","v":""},{"$f":"LEFT(Template!B972,5)","v":""},{"$f":"LEFT(Template!C972,7)","v":""},{"$f":"LEFT(Template!D972,6)","v":""},{"$f":"LEFT(Template!E972,2)","v":""},{"$f":"LEFT(Template!F972,3)","v":""},{"$f":"LEFT(Template!G972,10)","v":""},{"$f":"LEFT(Template!H972,6)","v":""},{"$f":"LEFT(Template!I972,4)","v":""},{"$f":"LEFT(Template!J972,6)","v":""},{"$f":"LEFT(Template!K972,6)","v":""},{"$f":"LEFT(Template!L972,3)","v":""},{"$f":"IF(Template!M972=\"\",\"\",Template!M972)","v":""},{"$f":"IF(Template!N972=\"\",\"\",Template!N972)","v":""},null,null,null,null,null,{"$f":"IF(Template!O972=\"\",\"\",Template!O972)","v":""}]
[{"$f":"LEFT(Template!A973,4)","v":""},{"$f":"LEFT(Template!B973,5)","v":""},{"$f":"LEFT(Template!C973,7)","v":""},{"$f":"LEFT(Template!D973,6)","v":""},{"$f":"LEFT(Template!E973,2)","v":""},{"$f":"LEFT(Template!F973,3)","v":""},{"$f":"LEFT(Template!G973,10)","v":""},{"$f":"LEFT(Template!H973,6)","v":""},{"$f":"LEFT(Template!I973,4)","v":""},{"$f":"LEFT(Template!J973,6)","v":""},{"$f":"LEFT(Template!K973,6)","v":""},{"$f":"LEFT(Template!L973,3)","v":""},{"$f":"IF(Template!M973=\"\",\"\",Template!M973)","v":""},{"$f":"IF(Template!N973=\"\",\"\",Template!N973)","v":""},null,null,null,null,null,{"$f":"IF(Template!O973=\"\",\"\",Template!O973)","v":""}]
[{"$f":"LEFT(Template!A974,4)","v":""},{"$f":"LEFT(Template!B974,5)","v":""},{"$f":"LEFT(Template!C974,7)","v":""},{"$f":"LEFT(Template!D974,6)","v":""},{"$f":"LEFT(Template!E974,2)","v":""},{"$f":"LEFT(Template!F974,3)","v":""},{"$f":"LEFT(Template!G974,10)","v":""},{"$f":"LEFT(Template!H974,6)","v":""},{"$f":"LEFT(Template!I974,4)","v":""},{"$f":"LEFT(Template!J974,6)","v":""},{"$f":"LEFT(Template!K974,6)","v":""},{"$f":"LEFT(Template!L974,3)","v":""},{"$f":"IF(Template!M974=\"\",\"\",Template!M974)","v":""},{"$f":"IF(Template!N974=\"\",\"\",Template!N974)","v":""},null,null,null,null,null,{"$f":"IF(Template!O974=\"\",\"\",Template!O974)","v":""}]
[{"$f":"LEFT(Template!A975,4)","v":""},{"$f":"LEFT(Template!B975,5)","v":""},{"$f":"LEFT(Template!C975,7)","v":""},{"$f":"LEFT(Template!D975,6)","v":""},{"$f":"LEFT(Template!E975,2)","v":""},{"$f":"LEFT(Template!F975,3)","v":""},{"$f":"LEFT(Template!G975,10)","v":""},{"$f":"LEFT(Template!H975,6)","v":""},{"$f":"LEFT(Template!I975,4)","v":""},{"$f":"LEFT(Template!J975,6)","v":""},{"$f":"LEFT(Template!K975,6)","v":""},{"$f":"LEFT(Template!L975,3)","v":""},{"$f":"IF(Template!M975=\"\",\"\",Template!M975)","v":""},{"$f":"IF(Template!N975=\"\",\"\",Template!N975)","v":""},null,null,null,null,null,{"$f":"IF(Template!O975=\"\",\"\",Template!O975)","v":""}]
[{"$f":"LEFT(Template!A976,4)","v":""},{"$f":"LEFT(Template!B976,5)","v":""},{"$f":"LEFT(Template!C976,7)","v":""},{"$f":"LEFT(Template!D976,6)","v":""},{"$f":"LEFT(Template!E976,2)","v":""},{"$f":"LEFT(Template!F976,3)","v":""},{"$f":"LEFT(Template!G976,10)","v":""},{"$f":"LEFT(Template!H976,6)","v":""},{"$f":"LEFT(Template!I976,4)","v":""},{"$f":"LEFT(Template!J976,6)","v":""},{"$f":"LEFT(Template!K976,6)","v":""},{"$f":"LEFT(Template!L976,3)","v":""},{"$f":"IF(Template!M976=\"\",\"\",Template!M976)","v":""},{"$f":"IF(Template!N976=\"\",\"\",Template!N976)","v":""},null,null,null,null,null,{"$f":"IF(Template!O976=\"\",\"\",Template!O976)","v":""}]
[{"$f":"LEFT(Template!A977,4)","v":""},{"$f":"LEFT(Template!B977,5)","v":""},{"$f":"LEFT(Template!C977,7)","v":""},{"$f":"LEFT(Template!D977,6)","v":""},{"$f":"LEFT(Template!E977,2)","v":""},{"$f":"LEFT(Template!F977,3)","v":""},{"$f":"LEFT(Template!G977,10)","v":""},{"$f":"LEFT(Template!H977,6)","v":""},{"$f":"LEFT(Template!I977,4)","v":""},{"$f":"LEFT(Template!J977,6)","v":""},{"$f":"LEFT(Template!K977,6)","v":""},{"$f":"LEFT(Template!L977,3)","v":""},{"$f":"IF(Template!M977=\"\",\"\",Template!M977)","v":""},{"$f":"IF(Template!N977=\"\",\"\",Template!N977)","v":""},null,null,null,null,null,{"$f":"IF(Template!O977=\"\",\"\",Template!O977)","v":""}]
[{"$f":"LEFT(Template!A978,4)","v":""},{"$f":"LEFT(Template!B978,5)","v":""},{"$f":"LEFT(Template!C978,7)","v":""},{"$f":"LEFT(Template!D978,6)","v":""},{"$f":"LEFT(Template!E978,2)","v":""},{"$f":"LEFT(Template!F978,3)","v":""},{"$f":"LEFT(Template!G978,10)","v":""},{"$f":"LEFT(Template!H978,6)","v":""},{"$f":"LEFT(Template!I978,4)","v":""},{"$f":"LEFT(Template!J978,6)","v":""},{"$f":"LEFT(Template!K978,6)","v":""},{"$f":"LEFT(Template!L978,3)","v":""},{"$f":"IF(Template!M978=\"\",\"\",Template!M978)","v":""},{"$f":"IF(Template!N978=\"\",\"\",Template!N978)","v":""},null,null,null,null,null,{"$f":"IF(Template!O978=\"\",\"\",Template!O978)","v":""}]
[{"$f":"LEFT(Template!A979,4)","v":""},{"$f":"LEFT(Template!B979,5)","v":""},{"$f":"LEFT(Template!C979,7)","v":""},{"$f":"LEFT(Template!D979,6)","v":""},{"$f":"LEFT(Template!E979,2)","v":""},{"$f":"LEFT(Template!F979,3)","v":""},{"$f":"LEFT(Template!G979,10)","v":""},{"$f":"LEFT(Template!H979,6)","v":""},{"$f":"LEFT(Template!I979,4)","v":""},{"$f":"LEFT(Template!J979,6)","v":""},{"$f":"LEFT(Template!K979,6)","v":""},{"$f":"LEFT(Template!L979,3)","v":""},{"$f":"IF(Template!M979=\"\",\"\",Template!M979)","v":""},{"$f":"IF(Template!N979=\"\",\"\",Template!N979)","v":""},null,null,null,null,null,{"$f":"IF(Template!O979=\"\",\"\",Template!O979)","v":""}]
[{"$f":"LEFT(Template!A980,4)","v":""},{"$f":"LEFT(Template!B980,5)","v":""},{"$f":"LEFT(Template!C980,7)","v":""},{"$f":"LEFT(Template!D980,6)","v":""},{"$f":"LEFT(Template!E980,2)","v":""},{"$f":"LEFT(Template!F980,3)","v":""},{"$f":"LEFT(Template!G980,10)","v":""},{"$f":"LEFT(Template!H980,6)","v":""},{"$f":"LEFT(Template!I980,4)","v":""},{"$f":"LEFT(Template!J980,6)","v":""},{"$f":"LEFT(Template!K980,6)","v":""},{"$f":"LEFT(Template!L980,3)","v":""},{"$f":"IF(Template!M980=\"\",\"\",Template!M980)","v":""},{"$f":"IF(Template!N980=\"\",\"\",Template!N980)","v":""},null,null,null,null,null,{"$f":"IF(Template!O980=\"\",\"\",Template!O980)","v":""}]
[{"$f":"LEFT(Template!A981,4)","v":""},{"$f":"LEFT(Template!B981,5)","v":""},{"$f":"LEFT(Template!C981,7)","v":""},{"$f":"LEFT(Template!D981,6)","v":""},{"$f":"LEFT(Template!E981,2)","v":""},{"$f":"LEFT(Template!F981,3)","v":""},{"$f":"LEFT(Template!G981,10)","v":""},{"$f":"LEFT(Template!H981,6)","v":""},{"$f":"LEFT(Template!I981,4)","v":""},{"$f":"LEFT(Template!J981,6)","v":""},{"$f":"LEFT(Template!K981,6)","v":""},{"$f":"LEFT(Template!L981,3)","v":""},{"$f":"IF(Template!M981=\"\",\"\",Template!M981)","v":""},{"$f":"IF(Template!N981=\"\",\"\",Template!N981)","v":""},null,null,null,null,null,{"$f":"IF(Template!O981=\"\",\"\",Template!O981)","v":""}]
[{"$f":"LEFT(Template!A982,4)","v":""},{"$f":"LEFT(Template!B982,5)","v":""},{"$f":"LEFT(Template!C982,7)","v":""},{"$f":"LEFT(Template!D982,6)","v":""},{"$f":"LEFT(Template!E982,2)","v":""},{"$f":"LEFT(Template!F982,3)","v":""},{"$f":"LEFT(Template!G982,10)","v":""},{"$f":"LEFT(Template!H982,6)","v":""},{"$f":"LEFT(Template!I982,4)","v":""},{"$f":"LEFT(Template!J982,6)","v":""},{"$f":"LEFT(Template!K982,6)","v":""},{"$f":"LEFT(Template!L982,3)","v":""},{"$f":"IF(Template!M982=\"\",\"\",Template!M982)","v":""},{"$f":"IF(Template!N982=\"\",\"\",Template!N982)","v":""},null,null,null,null,null,{"$f":"IF(Template!O982=\"\",\"\",Template!O982)","v":""}]
[{"$f":"LEFT(Template!A983,4)","v":""},{"$f":"LEFT(Template!B983,5)","v":""},{"$f":"LEFT(Template!C983,7)","v":""},{"$f":"LEFT(Template!D983,6)","v":""},{"$f":"LEFT(Template!E983,2)","v":""},{"$f":"LEFT(Template!F983,3)","v":""},{"$f":"LEFT(Template!G983,10)","v":""},{"$f":"LEFT(Template!H983,6)","v":""},{"$f":"LEFT(Template!I983,4)","v":""},{"$f":"LEFT(Template!J983,6)","v":""},{"$f":"LEFT(Template!K983,6)","v":""},{"$f":"LEFT(Template!L983,3)","v":""},{"$f":"IF(Template!M983=\"\",\"\",Template!M983)","v":""},{"$f":"IF(Template!N983=\"\",\"\",Template!N983)","v":""},null,null,null,null,null,{"$f":"IF(Template!O983=\"\",\"\",Template!O983)","v":""}]
[{"$f":"LEFT(Template!A984,4)","v":""},{"$f":"LEFT(Template!B984,5)","v":""},{"$f":"LEFT(Template!C984,7)","v":""},{"$f":"LEFT(Template!D984,6)","v":""},{"$f":"LEFT(Template!E984,2)","v":""},{"$f":"LEFT(Template!F984,3)","v":""},{"$f":"LEFT(Template!G984,10)","v":""},{"$f":"LEFT(Template!H984,6)","v":""},{"$f":"LEFT(Template!I984,4)","v":""},{"$f":"LEFT(Template!J984,6)","v":""},{"$f":"LEFT(Template!K984,6)","v":""},{"$f":"LEFT(Template!L984,3)","v":""},{"$f":"IF(Template!M984=\"\",\"\",Template!M984)","v":""},{"$f":"IF(Template!N984=\"\",\"\",Template!N984)","v":""},null,null,null,null,null,{"$f":"IF(Template!O984=\"\",\"\",Template!O984)","v":""}]
[{"$f":"LEFT(Template!A985,4)","v":""},{"$f":"LEFT(Template!B985,5)","v":""},{"$f":"LEFT(Template!C985,7)","v":""},{"$f":"LEFT(Template!D985,6)","v":""},{"$f":"LEFT(Template!E985,2)","v":""},{"$f":"LEFT(Template!F985,3)","v":""},{"$f":"LEFT(Template!G985,10)","v":""},{"$f":"LEFT(Template!H985,6)","v":""},{"$f":"LEFT(Template!I985,4)","v":""},{"$f":"LEFT(Template!J985,6)","v":""},{"$f":"LEFT(Template!K985,6)","v":""},{"$f":"LEFT(Template!L985,3)","v":""},{"$f":"IF(Template!M985=\"\",\"\",Template!M985)","v":""},{"$f":"IF(Template!N985=\"\",\"\",Template!N985)","v":""},null,null,null,null,null,{"$f":"IF(Template!O985=\"\",\"\",Template!O985)","v":""}]
[{"$f":"LEFT(Template!A986,4)","v":""},{"$f":"LEFT(Template!B986,5)","v":""},{"$f":"LEFT(Template!C986,7)","v":""},{"$f":"LEFT(Template!D986,6)","v":""},{"$f":"LEFT(Template!E986,2)","v":""},{"$f":"LEFT(Template!F986,3)","v":""},{"$f":"LEFT(Template!G986,10)","v":""},{"$f":"LEFT(Template!H986,6)","v":""},{"$f":"LEFT(Template!I986,4)","v":""},{"$f":"LEFT(Template!J986,6)","v":""},{"$f":"LEFT(Template!K986,6)","v":""},{"$f":"LEFT(Template!L986,3)","v":""},{"$f":"IF(Template!M986=\"\",\"\",Template!M986)","v":""},{"$f":"IF(Template!N986=\"\",\"\",Template!N986)","v":""},null,null,null,null,null,{"$f":"IF(Template!O986=\"\",\"\",Template!O986)","v":""}]
[{"$f":"LEFT(Template!A987,4)","v":""},{"$f":"LEFT(Template!B987,5)","v":""},{"$f":"LEFT(Template!C987,7)","v":""},{"$f":"LEFT(Template!D987,6)","v":""},{"$f":"LEFT(Template!E987,2)","v":""},{"$f":"LEFT(Template!F987,3)","v":""},{"$f":"LEFT(Template!G987,10)","v":""},{"$f":"LEFT(Template!H987,6)","v":""},{"$f":"LEFT(Template!I987,4)","v":""},{"$f":"LEFT(Template!J987,6)","v":""},{"$f":"LEFT(Template!K987,6)","v":""},{"$f":"LEFT(Template!L987,3)","v":""},{"$f":"IF(Template!M987=\"\",\"\",Template!M987)","v":""},{"$f":"IF(Template!N987=\"\",\"\",Template!N987)","v":""},null,null,null,null,null,{"$f":"IF(Template!O987=\"\",\"\",Template!O987)","v":""}]
[{"$f":"LEFT(Template!A988,4)","v":""},{"$f":"LEFT(Template!B988,5)","v":""},{"$f":"LEFT(Template!C988,7)","v":""},{"$f":"LEFT(Template!D988,6)","v":""},{"$f":"LEFT(Template!E988,2)","v":""},{"$f":"LEFT(Template!F988,3)","v":""},{"$f":"LEFT(Template!G988,10)","v":""},{"$f":"LEFT(Template!H988,6)","v":""},{"$f":"LEFT(Template!I988,4)","v":""},{"$f":"LEFT(Template!J988,6)","v":""},{"$f":"LEFT(Template!K988,6)","v":""},{"$f":"LEFT(Template!L988,3)","v":""},{"$f":"IF(Template!M988=\"\",\"\",Template!M988)","v":""},{"$f":"IF(Template!N988=\"\",\"\",Template!N988)","v":""},null,null,null,null,null,{"$f":"IF(Template!O988=\"\",\"\",Template!O988)","v":""}]
[{"$f":"LEFT(Template!A989,4)","v":""},{"$f":"LEFT(Template!B989,5)","v":""},{"$f":"LEFT(Template!C989,7)","v":""},{"$f":"LEFT(Template!D989,6)","v":""},{"$f":"LEFT(Template!E989,2)","v":""},{"$f":"LEFT(Template!F989,3)","v":""},{"$f":"LEFT(Template!G989,10)","v":""},{"$f":"LEFT(Template!H989,6)","v":""},{"$f":"LEFT(Template!I989,4)","v":""},{"$f":"LEFT(Template!J989,6)","v":""},{"$f":"LEFT(Template!K989,6)","v":""},{"$f":"LEFT(Template!L989,3)","v":""},{"$f":"IF(Template!M989=\"\",\"\",Template!M989)","v":""},{"$f":"IF(Template!N989=\"\",\"\",Template!N989)","v":""},null,null,null,null,null,{"$f":"IF(Template!O989=\"\",\"\",Template!O989)","v":""}]
[{"$f":"LEFT(Template!A990,4)","v":""},{"$f":"LEFT(Template!B990,5)","v":""},{"$f":"LEFT(Template!C990,7)","v":""},{"$f":"LEFT(Template!D990,6)","v":""},{"$f":"LEFT(Template!E990,2)","v":""},{"$f":"LEFT(Template!F990,3)","v":""},{"$f":"LEFT(Template!G990,10)","v":""},{"$f":"LEFT(Template!H990,6)","v":""},{"$f":"LEFT(Template!I990,4)","v":""},{"$f":"LEFT(Template!J990,6)","v":""},{"$f":"LEFT(Template!K990,6)","v":""},{"$f":"LEFT(Template!L990,3)","v":""},{"$f":"IF(Template!M990=\"\",\"\",Template!M990)","v":""},{"$f":"IF(Template!N990=\"\",\"\",Template!N990)","v":""},null,null,null,null,null,{"$f":"IF(Template!O990=\"\",\"\",Template!O990)","v":""}]
[{"$f":"LEFT(Template!A991,4)","v":""},{"$f":"LEFT(Template!B991,5)","v":""},{"$f":"LEFT(Template!C991,7)","v":""},{"$f":"LEFT(Template!D991,6)","v":""},{"$f":"LEFT(Template!E991,2)","v":""},{"$f":"LEFT(Template!F991,3)","v":""},{"$f":"LEFT(Template!G991,10)","v":""},{"$f":"LEFT(Template!H991,6)","v":""},{"$f":"LEFT(Template!I991,4)","v":""},{"$f":"LEFT(Template!J991,6)","v":""},{"$f":"LEFT(Template!K991,6)","v":""},{"$f":"LEFT(Template!L991,3)","v":""},{"$f":"IF(Template!M991=\"\",\"\",Template!M991)","v":""},{"$f":"IF(Template!N991=\"\",\"\",Template!N991)","v":""},null,null,null,null,null,{"$f":"IF(Template!O991=\"\",\"\",Template!O991)","v":""}]
[{"$f":"LEFT(Template!A992,4)","v":""},{"$f":"LEFT(Template!B992,5)","v":""},{"$f":"LEFT(Template!C992,7)","v":""},{"$f":"LEFT(Template!D992,6)","v":""},{"$f":"LEFT(Template!E992,2)","v":""},{"$f":"LEFT(Template!F992,3)","v":""},{"$f":"LEFT(Template!G992,10)","v":""},{"$f":"LEFT(Template!H992,6)","v":""},{"$f":"LEFT(Template!I992,4)","v":""},{"$f":"LEFT(Template!J992,6)","v":""},{"$f":"LEFT(Template!K992,6)","v":""},{"$f":"LEFT(Template!L992,3)","v":""},{"$f":"IF(Template!M992=\"\",\"\",Template!M992)","v":""},{"$f":"IF(Template!N992=\"\",\"\",Template!N992)","v":""},null,null,null,null,null,{"$f":"IF(Template!O992=\"\",\"\",Template!O992)","v":""}]
[{"$f":"LEFT(Template!A993,4)","v":""},{"$f":"LEFT(Template!B993,5)","v":""},{"$f":"LEFT(Template!C993,7)","v":""},{"$f":"LEFT(Template!D993,6)","v":""},{"$f":"LEFT(Template!E993,2)","v":""},{"$f":"LEFT(Template!F993,3)","v":""},{"$f":"LEFT(Template!G993,10)","v":""},{"$f":"LEFT(Template!H993,6)","v":""},{"$f":"LEFT(Template!I993,4)","v":""},{"$f":"LEFT(Template!J993,6)","v":""},{"$f":"LEFT(Template!K993,6)","v":""},{"$f":"LEFT(Template!L993,3)","v":""},{"$f":"IF(Template!M993=\"\",\"\",Template!M993)","v":""},{"$f":"IF(Template!N993=\"\",\"\",Template!N993)","v":""},null,null,null,null,null,{"$f":"IF(Template!O993=\"\",\"\",Template!O993)","v":""}]
[{"$f":"LEFT(Template!A994,4)","v":""},{"$f":"LEFT(Template!B994,5)","v":""},{"$f":"LEFT(Template!C994,7)","v":""},{"$f":"LEFT(Template!D994,6)","v":""},{"$f":"LEFT(Template!E994,2)","v":""},{"$f":"LEFT(Template!F994,3)","v":""},{"$f":"LEFT(Template!G994,10)","v":""},{"$f":"LEFT(Template!H994,6)","v":""},{"$f":"LEFT(Template!I994,4)","v":""},{"$f":"LEFT(Template!J994,6)","v":""},{"$f":"LEFT(Template!K994,6)","v":""},{"$f":"LEFT(Template!L994,3)","v":""},{"$f":"IF(Template!M994=\"\",\"\",Template!M994)","v":""},{"$f":"IF(Template!N994=\"\",\"\",Template!N994)","v":""},null,null,null,null,null,{"$f":"IF(Template!O994=\"\",\"\",Template!O994)","v":""}]
[{"$f":"LEFT(Template!A995,4)","v":""},{"$f":"LEFT(Template!B995,5)","v":""},{"$f":"LEFT(Template!C995,7)","v":""},{"$f":"LEFT(Template!D995,6)","v":""},{"$f":"LEFT(Template!E995,2)","v":""},{"$f":"LEFT(Template!F995,3)","v":""},{"$f":"LEFT(Template!G995,10)","v":""},{"$f":"LEFT(Template!H995,6)","v":""},{"$f":"LEFT(Template!I995,4)","v":""},{"$f":"LEFT(Template!J995,6)","v":""},{"$f":"LEFT(Template!K995,6)","v":""},{"$f":"LEFT(Template!L995,3)","v":""},{"$f":"IF(Template!M995=\"\",\"\",Template!M995)","v":""},{"$f":"IF(Template!N995=\"\",\"\",Template!N995)","v":""},null,null,null,null,null,{"$f":"IF(Template!O995=\"\",\"\",Template!O995)","v":""}]
[{"$f":"LEFT(Template!A996,4)","v":""},{"$f":"LEFT(Template!B996,5)","v":""},{"$f":"LEFT(Template!C996,7)","v":""},{"$f":"LEFT(Template!D996,6)","v":""},{"$f":"LEFT(Template!E996,2)","v":""},{"$f":"LEFT(Template!F996,3)","v":""},{"$f":"LEFT(Template!G996,10)","v":""},{"$f":"LEFT(Template!H996,6)","v":""},{"$f":"LEFT(Template!I996,4)","v":""},{"$f":"LEFT(Template!J996,6)","v":""},{"$f":"LEFT(Template!K996,6)","v":""},{"$f":"LEFT(Template!L996,3)","v":""},{"$f":"IF(Template!M996=\"\",\"\",Template!M996)","v":""},{"$f":"IF(Template!N996=\"\",\"\",Template!N996)","v":""},null,null,null,null,null,{"$f":"IF(Template!O996=\"\",\"\",Template!O996)","v":""}]
[{"$f":"LEFT(Template!A997,4)","v":""},{"$f":"LEFT(Template!B997,5)","v":""},{"$f":"LEFT(Template!C997,7)","v":""},{"$f":"LEFT(Template!D997,6)","v":""},{"$f":"LEFT(Template!E997,2)","v":""},{"$f":"LEFT(Template!F997,3)","v":""},{"$f":"LEFT(Template!G997,10)","v":""},{"$f":"LEFT(Template!H997,6)","v":""},{"$f":"LEFT(Template!I997,4)","v":""},{"$f":"LEFT(Template!J997,6)","v":""},{"$f":"LEFT(Template!K997,6)","v":""},{"$f":"LEFT(Template!L997,3)","v":""},{"$f":"IF(Template!M997=\"\",\"\",Template!M997)","v":""},{"$f":"IF(Template!N997=\"\",\"\",Template!N997)","v":""},null,null,null,null,null,{"$f":"IF(Template!O997=\"\",\"\",Template!O997)","v":""}]
[{"$f":"LEFT(Template!A998,4)","v":""},{"$f":"LEFT(Template!B998,5)","v":""},{"$f":"LEFT(Template!C998,7)","v":""},{"$f":"LEFT(Template!D998,6)","v":""},{"$f":"LEFT(Template!E998,2)","v":""},{"$f":"LEFT(Template!F998,3)","v":""},{"$f":"LEFT(Template!G998,10)","v":""},{"$f":"LEFT(Template!H998,6)","v":""},{"$f":"LEFT(Template!I998,4)","v":""},{"$f":"LEFT(Template!J998,6)","v":""},{"$f":"LEFT(Template!K998,6)","v":""},{"$f":"LEFT(Template!L998,3)","v":""},{"$f":"IF(Template!M998=\"\",\"\",Template!M998)","v":""},{"$f":"IF(Template!N998=\"\",\"\",Template!N998)","v":""},null,null,null,null,null,{"$f":"IF(Template!O998=\"\",\"\",Template!O998)","v":""}]
[{"$f":"LEFT(Template!A999,4)","v":""},{"$f":"LEFT(Template!B999,5)","v":""},{"$f":"LEFT(Template!C999,7)","v":""},{"$f":"LEFT(Template!D999,6)","v":""},{"$f":"LEFT(Template!E999,2)","v":""},{"$f":"LEFT(Template!F999,3)","v":""},{"$f":"LEFT(Template!G999,10)","v":""},{"$f":"LEFT(Template!H999,6)","v":""},{"$f":"LEFT(Template!I999,4)","v":""},{"$f":"LEFT(Template!J999,6)","v":""},{"$f":"LEFT(Template!K999,6)","v":""},{"$f":"LEFT(Template!L999,3)","v":""},{"$f":"IF(Template!M999=\"\",\"\",Template!M999)","v":""},{"$f":"IF(Template!N999=\"\",\"\",Template!N999)","v":""},null,null,null,null,null,{"$f":"IF(Template!O999=\"\",\"\",Template!O999)","v":""}]
[{"$f":"LEFT(Template!A1000,4)","v":""},{"$f":"LEFT(Template!B1000,5)","v":""},{"$f":"LEFT(Template!C1000,7)","v":""},{"$f":"LEFT(Template!D1000,6)","v":""},{"$f":"LEFT(Template!E1000,2)","v":""},{"$f":"LEFT(Template!F1000,3)","v":""},{"$f":"LEFT(Template!G1000,10)","v":""},{"$f":"LEFT(Template!H1000,6)","v":""},{"$f":"LEFT(Template!I1000,4)","v":""},{"$f":"LEFT(Template!J1000,6)","v":""},{"$f":"LEFT(Template!K1000,6)","v":""},{"$f":"LEFT(Template!L1000,3)","v":""},{"$f":"IF(Template!M1000=\"\",\"\",Template!M1000)","v":""},{"$f":"IF(Template!N1000=\"\",\"\",Template!N1000)","v":""},null,null,null,null,null,{"$f":"IF(Template!O1000=\"\",\"\",Template!O1000)","v":""}]
[{"$f":"LEFT(Template!A1001,4)","v":""},{"$f":"LEFT(Template!B1001,5)","v":""},{"$f":"LEFT(Template!C1001,7)","v":""},{"$f":"LEFT(Template!D1001,6)","v":""},{"$f":"LEFT(Template!E1001,2)","v":""},{"$f":"LEFT(Template!F1001,3)","v":""},{"$f":"LEFT(Template!G1001,10)","v":""},{"$f":"LEFT(Template!H1001,6)","v":""},{"$f":"LEFT(Template!I1001,4)","v":""},{"$f":"LEFT(Template!J1001,6)","v":""},{"$f":"LEFT(Template!K1001,6)","v":""},{"$f":"LEFT(Template!L1001,3)","v":""},{"$f":"IF(Template!M1001=\"\",\"\",Template!M1001)","v":""},{"$f":"IF(Template!N1001=\"\",\"\",Template!N1001)","v":""},null,null,null,null,null,{"$f":"IF(Template!O1001=\"\",\"\",Template!O1001)","v":""}]
[{"$f":"LEFT(Template!A1002,4)","v":""},{"$f":"LEFT(Template!B1002,5)","v":""},{"$f":"LEFT(Template!C1002,7)","v":""},{"$f":"LEFT(Template!D1002,6)","v":""},{"$f":"LEFT(Template!E1002,2)","v":""},{"$f":"LEFT(Template!F1002,3)","v":""},{"$f":"LEFT(Template!G1002,10)","v":""},{"$f":"LEFT(Template!H1002,6)","v":""},{"$f":"LEFT(Template!I1002,4)","v":""},{"$f":"LEFT(Template!J1002,6)","v":""},{"$f":"LEFT(Template!K1002,6)","v":""},{"$f":"LEFT(Template!L1002,3)","v":""},{"$f":"IF(Template!M1002=\"\",\"\",Template!M1002)","v":""},{"$f":"IF(Template!N1002=\"\",\"\",Template!N1002)","v":""},null,null,null,null,null,{"$f":"IF(Template!O1002=\"\",\"\",Template!O1002)","v":""}]
[{"$f":"LEFT(Template!A1003,4)","v":""},{"$f":"LEFT(Template!B1003,5)","v":""},{"$f":"LEFT(Template!C1003,7)","v":""},{"$f":"LEFT(Template!D1003,6)","v":""},{"$f":"LEFT(Template!E1003,2)","v":""},{"$f":"LEFT(Template!F1003,3)","v":""},{"$f":"LEFT(Template!G1003,10)","v":""},{"$f":"LEFT(Template!H1003,6)","v":""},{"$f":"LEFT(Template!I1003,4)","v":""},{"$f":"LEFT(Template!J1003,6)","v":""},{"$f":"LEFT(Template!K1003,6)","v":""},{"$f":"LEFT(Template!L1003,3)","v":""},{"$f":"IF(Template!M1003=\"\",\"\",Template!M1003)","v":""},{"$f":"IF(Template!N1003=\"\",\"\",Template!N1003)","v":""},null,null,null,null,null,{"$f":"IF(Template!O1003=\"\",\"\",Template!O1003)","v":""}]
[{"$f":"LEFT(Template!A1004,4)","v":""},{"$f":"LEFT(Template!B1004,5)","v":""},{"$f":"LEFT(Template!C1004,7)","v":""},{"$f":"LEFT(Template!D1004,6)","v":""},{"$f":"LEFT(Template!E1004,2)","v":""},{"$f":"LEFT(Template!F1004,3)","v":""},{"$f":"LEFT(Template!G1004,10)","v":""},{"$f":"LEFT(Template!H1004,6)","v":""},{"$f":"LEFT(Template!I1004,4)","v":""},{"$f":"LEFT(Template!J1004,6)","v":""},{"$f":"LEFT(Template!K1004,6)","v":""},{"$f":"LEFT(Template!L1004,3)","v":""},{"$f":"IF(Template!M1004=\"\",\"\",Template!M1004)","v":""},{"$f":"IF(Template!N1004=\"\",\"\",Template!N1004)","v":""},null,null,null,null,null,{"$f":"IF(Template!O1004=\"\",\"\",Template!O1004)","v":""}]
[{"$f":"LEFT(Template!A1005,4)","v":""},{"$f":"LEFT(Template!B1005,5)","v":""},{"$f":"LEFT(Template!C1005,7)","v":""},{"$f":"LEFT(Template!D1005,6)","v":""},{"$f":"LEFT(Template!E1005,2)","v":""},{"$f":"LEFT(Template!F1005,3)","v":""},{"$f":"LEFT(Template!G1005,10)","v":""},{"$f":"LEFT(Template!H1005,6)","v":""},{"$f":"LEFT(Template!I1005,4)","v":""},{"$f":"LEFT(Template!J1005,6)","v":""},{"$f":"LEFT(Template!K1005,6)","v":""},{"$f":"LEFT(Template!L1005,3)","v":""},{"$f":"IF(Template!M1005=\"\",\"\",Template!M1005)","v":""},{"$f":"IF(Template!N1005=\"\",\"\",Template!N1005)","v":""},null,null,null,null,null,{"$f":"IF(Template!O1005=\"\",\"\",Template!O1005)","v":""}]
[{"$f":"LEFT(Template!A1006,4)","v":""},{"$f":"LEFT(Template!B1006,5)","v":""},{"$f":"LEFT(Template!C1006,7)","v":""},{"$f":"LEFT(Template!D1006,6)","v":""},{"$f":"LEFT(Template!E1006,2)","v":""},{"$f":"LEFT(Template!F1006,3)","v":""},{"$f":"LEFT(Template!G1006,10)","v":""},{"$f":"LEFT(Template!H1006,6)","v":""},{"$f":"LEFT(Template!I1006,4)","v":""},{"$f":"LEFT(Template!J1006,6)","v":""},{"$f":"LEFT(Template!K1006,6)","v":""},{"$f":"LEFT(Template!L1006,3)","v":""},{"$f":"IF(Template!M1006=\"\",\"\",Template!M1006)","v":""},{"$f":"IF(Template!N1006=\"\",\"\",Template!N1006)","v":""},null,null,null,null,null,{"$f":"IF(Template!O1006=\"\",\"\",Template!O1006)","v":""}]
[{"$f":"LEFT(Template!A1007,4)","v":""},{"$f":"LEFT(Template!B1007,5)","v":""},{"$f":"LEFT(Template!C1007,7)","v":""},{"$f":"LEFT(Template!D1007,6)","v":""},{"$f":"LEFT(Template!E1007,2)","v":""},{"$f":"LEFT(Template!F1007,3)","v":""},{"$f":"LEFT(Template!G1007,10)","v":""},{"$f":"LEFT(Template!H1007,6)","v":""},{"$f":"LEFT(Template!I1007,4)","v":""},{"$f":"LEFT(Template!J1007,6)","v":""},{"$f":"LEFT(Template!K1007,6)","v":""},{"$f":"LEFT(Template!L1007,3)","v":""},{"$f":"IF(Template!M1007=\"\",\"\",Template!M1007)","v":""},{"$f":"IF(Template!N1007=\"\",\"\",Template!N1007)","v":""},null,null,null,null,null,{"$f":"IF(Template!O1007=\"\",\"\",Template!O1007)","v":""}]
[{"$f":"LEFT(Template!A1008,4)","v":""},{"$f":"LEFT(Template!B1008,5)","v":""},{"$f":"LEFT(Template!C1008,7)","v":""},{"$f":"LEFT(Template!D1008,6)","v":""},{"$f":"LEFT(Template!E1008,2)","v":""},{"$f":"LEFT(Template!F1008,3)","v":""},{"$f":"LEFT(Template!G1008,10)","v":""},{"$f":"LEFT(Template!H1008,6)","v":""},{"$f":"LEFT(Template!I1008,4)","v":""},{"$f":"LEFT(Template!J1008,6)","v":""},{"$f":"LEFT(Template!K1008,6)","v":""},{"$f":"LEFT(Template!L1008,3)","v":""},{"$f":"IF(Template!M1008=\"\",\"\",Template!M1008)","v":""},{"$f":"IF(Template!N1008=\"\",\"\",Template!N1008)","v":""},null,null,null,null,null,{"$f":"IF(Template!O1008=\"\",\"\",Template!O1008)","v":""}]
[{"$f":"LEFT(Template!A1009,4)","v":""},{"$f":"LEFT(Template!B1009,5)","v":""},{"$f":"LEFT(Template!C1009,7)","v":""},{"$f":"LEFT(Template!D1009,6)","v":""},{"$f":"LEFT(Template!E1009,2)","v":""},{"$f":"LEFT(Template!F1009,3)","v":""},{"$f":"LEFT(Template!G1009,10)","v":""},{"$f":"LEFT(Template!H1009,6)","v":""},{"$f":"LEFT(Template!I1009,4)","v":""},{"$f":"LEFT(Template!J1009,6)","v":""},{"$f":"LEFT(Template!K1009,6)","v":""},{"$f":"LEFT(Template!L1009,3)","v":""},{"$f":"IF(Template!M1009=\"\",\"\",Template!M1009)","v":""},{"$f":"IF(Template!N1009=\"\",\"\",Template!N1009)","v":""},null,null,null,null,null,{"$f":"IF(Template!O1009=\"\",\"\",Template!O1009)","v":""}]
[{"$f":"LEFT(Template!A1010,4)","v":""},{"$f":"LEFT(Template!B1010,5)","v":""},{"$f":"LEFT(Template!C1010,7)","v":""},{"$f":"LEFT(Template!D1010,6)","v":""},{"$f":"LEFT(Template!E1010,2)","v":""},{"$f":"LEFT(Template!F1010,3)","v":""},{"$f":"LEFT(Template!G1010,10)","v":""},{"$f":"LEFT(Template!H1010,6)","v":""},{"$f":"LEFT(Template!I1010,4)","v":""},{"$f":"LEFT(Template!J1010,6)","v":""},{"$f":"LEFT(Template!K1010,6)","v":""},{"$f":"LEFT(Template!L1010,3)","v":""},{"$f":"IF(Template!M1010=\"\",\"\",Template!M1010)","v":""},{"$f":"IF(Template!N1010=\"\",\"\",Template!N1010)","v":""},null,null,null,null,null,{"$f":"IF(Template!O1010=\"\",\"\",Template!O1010)","v":""}]
[{"$f":"LEFT(Template!A1011,4)","v":""},{"$f":"LEFT(Template!B1011,5)","v":""},{"$f":"LEFT(Template!C1011,7)","v":""},{"$f":"LEFT(Template!D1011,6)","v":""},{"$f":"LEFT(Template!E1011,2)","v":""},{"$f":"LEFT(Template!F1011,3)","v":""},{"$f":"LEFT(Template!G1011,10)","v":""},{"$f":"LEFT(Template!H1011,6)","v":""},{"$f":"LEFT(Template!I1011,4)","v":""},{"$f":"LEFT(Template!J1011,6)","v":""},{"$f":"LEFT(Template!K1011,6)","v":""},{"$f":"LEFT(Template!L1011,3)","v":""},{"$f":"IF(Template!M1011=\"\",\"\",Template!M1011)","v":""},{"$f":"IF(Template!N1011=\"\",\"\",Template!N1011)","v":""},null,null,null,null,null,{"$f":"IF(Template!O1011=\"\",\"\",Template!O1011)","v":""}]
[{"$f":"LEFT(Template!A1012,4)","v":""},{"$f":"LEFT(Template!B1012,5)","v":""},{"$f":"LEFT(Template!C1012,7)","v":""},{"$f":"LEFT(Template!D1012,6)","v":""},{"$f":"LEFT(Template!E1012,2)","v":""},{"$f":"LEFT(Template!F1012,3)","v":""},{"$f":"LEFT(Template!G1012,10)","v":""},{"$f":"LEFT(Template!H1012,6)","v":""},{"$f":"LEFT(Template!I1012,4)","v":""},{"$f":"LEFT(Template!J1012,6)","v":""},{"$f":"LEFT(Template!K1012,6)","v":""},{"$f":"LEFT(Template!L1012,3)","v":""},{"$f":"IF(Template!M1012=\"\",\"\",Template!M1012)","v":""},{"$f":"IF(Template!N1012=\"\",\"\",Template!N1012)","v":""},null,null,null,null,null,{"$f":"IF(Template!O1012=\"\",\"\",Template!O1012)","v":""}]
[{"$f":"LEFT(Template!A1013,4)","v":""},{"$f":"LEFT(Template!B1013,5)","v":""},{"$f":"LEFT(Template!C1013,7)","v":""},{"$f":"LEFT(Template!D1013,6)","v":""},{"$f":"LEFT(Template!E1013,2)","v":""},{"$f":"LEFT(Template!F1013,3)","v":""},{"$f":"LEFT(Template!G1013,10)","v":""},{"$f":"LEFT(Template!H1013,6)","v":""},{"$f":"LEFT(Template!I1013,4)","v":""},{"$f":"LEFT(Template!J1013,6)","v":""},{"$f":"LEFT(Template!K1013,6)","v":""},{"$f":"LEFT(Template!L1013,3)","v":""},{"$f":"IF(Template!M1013=\"\",\"\",Template!M1013)","v":""},{"$f":"IF(Template!N1013=\"\",\"\",Template!N1013)","v":""},null,null,null,null,null,{"$f":"IF(Template!O1013=\"\",\"\",Template!O1013)","v":""}]

{"sheet":"Values","index":7,"n_rows":34516,"n_cols":16,"rows_kept":4500,"cut":true,"hidden":false,"merged":[],"bounds":{"rows_first":2000,"rows_last":500,"rows_between":2000,"halvings":0}}
["JV transaction code","Approval Org","Entity (4 Numeric)","Fund (5 Alpha-Numeric)","Financial Dept (7 Alpha Numeric)","AE Natural Account (6 Numeric)","Purpose (2 Numeric)","Program (3 Alpha Numeric)","Activity","Inter Entity","Future 1","Future 2","Currency","Category","Ledger","Project"]
["REVINC","RPM","3310 - UC ANR","A0001 - PRN Foundation Operations 011011 ","9911111 - Vice President Immediate Office ","100000 - Bank of America Deposits X4115 ","80 - Provisions for Allocations ","000 - Default","000000 - Default Activity Value ","0000","000000","000000","USD","991000B_REVENUE_TRANSFER","UCD Primary Ledger","0000000000 - Default Project "]
["REVSWP",null,null,"A0002 - PRN Chancellor Unrestricted Fund 322803 49503 ","9911112 - Program Support Unit ","100001 - Bank of America Returned Checks X4114 ",null,"APS - Animal Systems","100000 - Fall Welcome ",null,null,null,null,null,null,"AR00000001 - GENOME COVID Testing "]
["REVALC",null,null,"A0003 - PRN UCDF Matching Fund for Student Support 322818 ","9911113 - VP Contingency Funds ","100002 - BNY Mellon ACH Deposits X2884 ",null,"FAF - Forestry and Fire","100001 - Homecoming ",null,null,null,null,null,null,"AR00000002 - TERC Personnel Hourly Rates "]
[null,null,null,"A0004 - PRN Suspense Intent Unclear 901001 ","9912111 - Chief Innovation Office ","100003 - Bank of America Credit Card X0068 ",null,"IPM - Pest Management","100002 - Commencement ",null,null,null,null,null,null,"AR06001000 - CLAS APPLIED MUSIC PROGRAM INCOME "]
[null,null,null,"A0005 - PRN UCDF Endowment Clearing Fund 199999 ","9913111 - Development Services ","100004 - BNY Mellon MC AP ",null,"NUT - Nutrition","100003 - Picnic Day ",null,null,null,null,null,null,"AR06001101 - FOUNDATION SEED PROGRAM "]
[null,null,null,"A0006 - PRN GEP Administration Fee 011112 ","9913112 - 4 H Foundation ","100020 - Wells Fargo Law School Client Trust X0279 ",null,"PPS - Plant System","100004 - Thank Goodness for Staff ",null,null,null,null,null,null,"AR06001301 - ENGR OFFCAMPUS INST INCITV PROGRAM "]
[null,null,null,"L0001 - IN Foundation Operations 011011 ","9914111 - Government and Community Services ","100021 - Bodega Bay Marine Disbursements BOA X9073 ",null,"WLS - Working Landscapes","100005 - Retreats ",null,null,null,null,null,null,"AR06001601 - AVIAN SCIENCE RES SURPLUS PRODUCTS "]
[null,null,null,"L0002 - IN Chancellor Unrestricted Fund 322803 49503 ","9921111 - Assoc VP and Office of Provost Imm Off ","100022 - ASUCD Checking X2274 ",null,"WTR - Water Resources","100006 - Cultural Events ",null,null,null,null,null,null,"AR06001701 - CAES PLANT TESTINGTHERAPYMAINTENANCE "]
[null,null,null,"L0003 - IN UCDF Matching Fund for Student Support 322818 ","9921112 - AVP Contingency Fund ","100023 - Tahoe Research and Education Facility Capital Trust X3849 ",null,"YCD - Community & Youth Development","100007 - Student Events ",null,null,null,null,null,null,"AR06002101 - HUMAN ANATOMY DONATED BODY PROG INC "]
[null,null,null,"L0004 - IN Suspense Intent Unclear 901001 ","9921211 - Vice Provost Academic Personnel and Development ","100030 - Wells Fargo AP X6791 ",null,null,"100008 - Deans Events ",null,null,null,null,null,null,"AR06002301 - DESTAHOE RESEARCH GROUP WATER CHEM "]
[null,null,null,"L0005 - IN GEP Administration Fee 011112 ","9921212 - Academic Assembly Council ","100031 - Bank of America EFT X3496 ",null,null,"100009 - College Wide Events ",null,null,null,null,null,null,"AR06002801 - MECH ENGR WIND TUNNEL TESTING INC "]
[null,null,null,"L0006 - IN UCDF Endowment Clearing Fund 199999 ","9921221 - UCCE Kearney Ag Center Academics ","100032 - BNY Mellon Vendor EFT X9964 ",null,null,"100010 - Orientation ",null,null,null,null,null,null,"AR06002901 - CENTER FOR AQUATIC BIOLOGY "]
[null,null,null,"M0001 - Annual Giving Program Allocations 39800 ","9921222 - UCCE UC Merced ","100033 - Wells Fargo Payroll Checks X6791 ",null,null,"100011 - Whole Earth Festival ",null,null,null,null,null,null,"AR06003101 - LAWR SOIL SAMPLES DRILLS "]
[null,null,null,"13017 - Faith Fitzgeral Teaching Fund FFE ","9921223 - UCCE UC Santa Barbara ","100034 - Wells Fargo Sure pay ",null,null,"100012 - Colloquium Expenses ",null,null,null,null,null,null,"AR06003401 - CAES CONTAINED RESEARCH FACILITY "]
[null,null,null,"13027 - Deleuze Family Fund Non Toxic Cure ","9921224 - UCCE UC Santa Cruz ","100035 - Medical Center Disbursement Account ",null,null,"100013 - Visiting Artists ",null,null,null,null,null,null,"AR06003501 - FS T PILOT PROCESSING PLANT INCOM "]
[null,null,null,"13040 - Dermatology Faculty Support Fund ","9921225 - UCCE UC San Francisco ","100050 - CAAA Wells Fargo ",null,null,"100014 - Sacramento Area Youth Speaks Equity Summit ",null,null,null,null,null,null,"AR06003601 - FPMSMOLECULAR DIAGNOSTIC TECHNOLOGY SVC "]
[null,null,null,"13042 - Devere White Prfshp Urologic Oncology ","9921226 - UCCE UC Irvine ","100051 - Wells Fargo Iranian Chapter ",null,null,"100015 - Aggie Day First Years Event Expenses ",null,null,null,null,null,null,"AR06003801 - VEG CROPS STABLE ISOTOPE FACILITY "]
[null,null,null,"13052 - Roger Tatarian Prfsrshp In Cardio ","9921227 - UCCE UC Los Angeles ","100052 - Wells Fargo Animal Science Chapter ",null,null,"100016 - Aggie Transfer Student Day ",null,null,null,null,null,null,"AR06003901 - AG CAMPUS GRAPES BYPRODUCTS "]
[null,null,null,"13055 - Mind Research Support Fund ","9921228 - UCCE UC San Diego ","100054 - Wells Fargo X4569 5A Chapter ",null,null,"100017 - Experience UC Davis First Year Students ",null,null,null,null,null,null,"AR06004001 - VEG CROPS WEED SCHOOL CONFERENCE "]
[null,null,null,"13090 - Emergency Medicine Education Fund ","9921311 - Strategic Communications ","100056 - Wells Fargo Savings ",null,null,"100018 - Experience UC Davis Transfer Students ",null,null,null,null,null,null,"AR06004501 - POMOLOGYWOLFSKILL ORCHARD SALE OF CROPS "]
[null,null,null,"13091 - Pulmonary Vascular Matching Fund ","9921312 - News Info and Outreach ","100057 - Life Member Reserve GEP STIP ",null,null,"100019 - UC for You ",null,null,null,null,null,null,"AR06004901 - BODEGA RV MUSSEL POINT BOAT RENTAL "]
[null,null,null,"13121 - Health Informatics Fund ","9921411 - Publications ","100058 - Board Reserve Fund GEP STIP ",null,null,"900146 - Sustainable Youth summer Camp ",null,null,null,null,null,null,"AR06005001 - RESHBML AQUATIC RESOURCES GROUP SVCS "]
[null,null,null,"13131 - Hematology Oncology Ed Rsch Fund ","9921511 - Program Planning and Evaluation ","100070 - Wells Fargo Bank X1538 ",null,null,"900147 - Harvest Festival ",null,null,null,null,null,null,"AR06005301 - MCB ELECTRONICS SHOP "]
[null,null,null,"13201 - Gibbe Parsons Fmly End Prfshp ","9921611 - Statewide Prog and REC Operations ","100071 - Cash Development Fund ",null,null,"900148 - Biogas Mendocino ",null,null,null,null,null,null,"AR06005401 - MCB IMAGING FACILITY "]
[null,null,null,"13210 - Theatre and Dance Dept Enhancement Endow ","9921711 - Vice Provost SPSI ","100072 - Cash UCD Ledgers ",null,null,"120000 - Ticketing Office ",null,null,null,null,null,null,"AR06005701 - EVOL ECOL DNA SEQUENCER INCOME "]
[null,null,null,"13298 - Cancer Care Network Fund ","9921811 - Statewide Operations ","100073 - Cash TPG UCD Ledgers ",null,null,"120001 - Front of House ",null,null,null,null,null,null,"AR06006201 - CAES OLIVE OIL TASTE PANEL RATE "]
[null,null,null,"13364 - Ophthalmology Program Support Fund ","9922111 - REC Admin Office ","100074 - Cash UCOP Regents STIP ",null,null,"200100 - Faculty Recruiting ",null,null,null,null,null,null,"AR06006401 - INTERNATIONAL VISITORS OFFICE "]
[null,null,null,"13384 - Internal Medicine Dept Chair Support ","9922121 - Desert REC ","100075 - Cash Accumulated Earnings ",null,null,"200101 - Resident Graduate Student Recruiting and Outreach ",null,null,null,null,null,null,"AR06006701 - PLANT SCI HERBARIUM "]
[null,null,null,"13385 - Internal Medicine Enhancement Support ","9922131 - Hansen REC ","100076 - Cash Earnings at OP ",null,null,"200102 - Executive Recruiting ",null,null,null,null,null,null,"AR06006801 - CAES COMPUTING RESOURCES "]
[null,null,null,"13386 - Internal Medicine Mission Support Fund ","9922141 - Hopland REC ","100077 - UCDF Wells Fargo ",null,null,"200103 - Nonresident Graduate Student Recruiting and Outreach ",null,null,null,null,null,null,"AR06007301 - NUTR MEYER HALLANIMAL FACILITY SERVICE "]
[null,null,null,"13406 - Public Health Sciences Faculty Enhanceme ","9922151 - Intermountain REC ","100100 - Clearing Cash Deposits ",null,null,"200104 - International Graduate Student Recruiting and Outreach ",null,null,null,null,null,null,"AR06008201 - ANTHRO MUSEUM CURATION ACCESS INC "]
[null,null,null,"13414 - Cbs TheoretICAl and Computational Biology ","9922161 - Kearney REC ","100101 - Bank of America Transfers X990 ",null,null,"200105 - Graduate Program Travel Recruiting ",null,null,null,null,null,null,"AR06008601 - SOE CRESS RATEBASED SERVICES "]
[null,null,null,"13434 - Vision Sci and Adv Retinal Imaging Lab Sup ","9922171 - Lindcove REC ","100102 - Deposit In Transit ",null,null,"200350 - Student Resident Recruiting ",null,null,null,null,null,null,"AR06008701 - SOE RATEBASED SERVICES "]
[null,null,null,"13454 - Pathology Strategic Fund ","9922181 - Sierra Foothill ","100103 - Cash Adjustments Stale Dated Checks ",null,null,"200351 - Student Nonresident and International Recruit ",null,null,null,null,null,null,"AR06008901 - EECS MICRO FABRICATION LAB INCOME "]
[null,null,null,"13542 - Volunteer Services Nursing Shlp Fund ","9922191 - South Coast ","100104 - Cash Controlled Disbursements AP ",null,null,"200352 - Staff Recruiting ",null,null,null,null,null,null,"AR06009201 - CAMPUS WRITING CENTERJOURNAL INCOM "]
[null,null,null,"13546 - Emergency Medicine Clinical Support Fund ","9922201 - Westside ","100105 - Merchant Account Clearing ",null,null,"200353 - Academic Staff Recruiting ",null,null,null,null,null,null,"AR06009701 - CLAS PROG INC SUBJECT MATTER AWARDS "]
[null,null,null,"13557 - Felix D Battistella Lectureship FFE ","9923111 - Vice Provost County Cooperative Extension ","100300 - MC BNY MELLON BANK ",null,null,"202209 - Fall Semester 2022 ",null,null,null,null,null,null,"AR06009801 - MIND INSTITUTE SERVICES "]
[null,null,null,"13588 - C and J Reynoso Schp For Legal Access ","9923211 - UCCE Alameda County ","100301 - MC WELLS FARGO BANK ",null,null,"202210 - Fall Quarter 2022 ",null,null,null,null,null,null,"AR06012001 - VM SFT SAL PLAN INCOME "]
[null,null,null,"13594 - DeanS Professorship In Biostatistics ","9923212 - UCCE Amador County ","100302 - MC STALE DATED AP CHECKS ",null,null,"202301 - Winter Quarter 2023 ",null,null,null,null,null,null,"AR06013201 - CBS GREENHOUSE RECHARGE "]
[null,null,null,"13603 - H D Kubo Lectureship Support Fund ","9923213 - UCCE Butte County ","100303 - MC BANK OF AMERICA Depository ",null,null,"202302 - Spring Semester 2023 ",null,null,null,null,null,null,"AR06013501 - CBS EVE DROSOPHILA MEDIUM FACILITY "]
[null,null,null,"13604 - GSM Program and Operations Fund ","9923214 - UCCE Calaveras County ","100304 - MC CREDIT CARD MERCHANT SERVICES ",null,null,"202303 - Spring Quarter 2023 ",null,null,null,null,null,null,"AR06013601 - CBS GENOME DNA ANALYSIS "]
[null,null,null,"13606 - Emma Lin Support Fund ","9923215 - UCCE Colusa County ","100400 - Intecompany Cash Clearing ",null,null,"202304 - Summer Semester 2023 ",null,null,null,null,null,null,"AR06013901 - CBS CONSERVATORY TOUR FEES "]
[null,null,null,"13618 - Joe Sullivan Support Fund ","9923216 - UCCE Contra Costa County ","14X000 - Intercompany Due from Due to Account ",null,null,"202305 - Summer Session 1 2023 ",null,null,null,null,null,null,"AR06014301 - ENG CIVIL ENVIRON ENG TECH SERV "]
[null,null,null,"13638 - Jan and Beta Popper Support Fund ","9923217 - UCCE El Dorado County ","101000 - Petty Cash ",null,null,"202306 - Summer Quarter Special Summer Session 2023 ",null,null,null,null,null,null,"AR06014801 - CE MS SERVO MATLS TEST SYSTEM "]
[null,null,null,"13640 - Coulson Grad Student For Atmospheric Sci ","9923218 - UCCE Fresno County ","101001 - Change Funds ",null,null,"202307 - Summer Session 2 2023 ",null,null,null,null,null,null,"AR06015001 - ENGR CEE NEES RECHARGE "]
[null,null,null,"13641 - Radiation Oncology Chief Physicist Suppt ","9923219 - UCCE Glenn County ","101002 - Other Cash ",null,null,"202308 - Summer Quarter 2023 ",null,null,null,null,null,null,"AR06015201 - RMI WINE MICROBE COLLECTION RATE "]
[null,null,null,"13656 - Deans Scholarship Fund Ii ","9923220 - UCCE Humboldt and Del Norte County ","101700 - Medical Center Cash Clearing ",null,null,"202309 - Fall Semester 2023 ",null,null,null,null,null,null,"AR06015301 - ENGR BIOMEDICAL ENGR MACHINE SHOP "]
[null,null,null,"13673 - Developmental Therapeutics In Gu Cancer ","9923221 - UCCE Imperial County ","101701 - Medical Center OP Cash Clearing ",null,null,"202310 - Fall Quarter 2023 ",null,null,null,null,null,null,"AR06015801 - ENGR DAVIS MILLIMETER WAVE RESEARCH CTR "]
[null,null,null,"13709 - Deans Med Microbio and Immun Support ","9923222 - UCCE Inyo and Mono County ","101702 - MC Cash Clearing from Deposits at Campus ",null,null,"202401 - Winter Quarter 2024 ",null,null,null,null,null,null,"AR06015901 - ENGR CALIBRATION RECHARGE "]
[null,null,null,"13729 - Molecular Imaging Admin Chair Radiology ","9923223 - UCCE Kern County ","101703 - SOM Patient Cash Clearing from Deposit at Campus ",null,null,"202402 - Spring Semester 2024 ",null,null,null,null,null,null,"AR06016201 - ENGR BIOMED DEV ENGRandLAB MGR "]
[null,null,null,"13731 - Youmans Chair In Neurological Surgery ","9923224 - UCCE Kings County ","101704 - Campus Cash Transfer to SOH from Deposit at MC ",null,null,"202403 - Spring Quarter 2024 ",null,null,null,null,null,null,"AR06018101 - CBS PLANT BIOLOGY CONFOCAL MICROSCOPE "]
[null,null,null,"13762 - BakerTeret Chair In Violence Prevention ","9923225 - UCCE Lake County ","101705 - Cash Transfer to Campus from Deposit at MC ",null,null,"202404 - Summer Semester 2024 ",null,null,null,null,null,null,"AR06018901 - CBS CNS ANNEX SURGERY ROOM SVCS "]
[null,null,null,"13763 - Helen Marian Bart Professor Support Fd ","9923226 - UCCE Lassen County ","101706 - Campus Cash from SOH Deposit at MC ",null,null,"202405 - Summer Session 1 2024 ",null,null,null,null,null,null,"AR06020501 - BETTER FOOD PROCESS "]
[null,null,null,"13767 - Oates Family Support Fund ","9923227 - UCCE Los Angeles County ","101707 - MISCELLANEOUS AR CASH CLEARLING ",null,null,"202406 - Summer Quarter Special Summer Session 2024 ",null,null,null,null,null,null,"AR06021001 - AGRONOMY RANGE SCI ROTATION CROP "]
[null,null,null,"13771 - Neurosciences Research Fund ","9923228 - UCCE Madera County ","102010 - Financial Control UC Berkeley ",null,null,"202407 - Summer Session 2 2024 ",null,null,null,null,null,null,"AR06022201 - CAES CENTRALIZED GREENHOUSE "]
[null,null,null,"13772 - Faculty Support Fund I ","9923229 - UCCE Marin County ","102020 - Financial Control UC San Francisco ",null,null,"202408 - Summer Quarter 2024 ",null,null,null,null,null,null,"AR06022401 - IACUC PROTOCOL ASSISTANCE "]
[null,null,null,"13773 - Faculty Support Fund II ","9923230 - UCCE Mariposa County ","102030 - Financial Control UC Davis ",null,null,"202409 - Fall Semester 2024 ",null,null,null,null,null,null,"AR06022901 - CAES Russell Ranch "]
[null,null,null,"13774 - Faculty Support Fund III ","9923231 - UCCE Mendocino County ","1020A1 - IRR Accounts Receivable ",null,null,"202410 - Fall Quarter 2024 ",null,null,null,null,null,null,"AR06023201 - UC Davis Analytical Lab "]
[null,null,null,"13834 - Thormund and Hannah Miller Scholarship ","9923232 - UCCE Merced County ","102040 - Financial Control UC Los Angeles ",null,null,"202501 - Winter Quarter 2025 ",null,null,null,null,null,null,"AR06023301 - CAES GREENHOUSE GAS SOLUTIONS "]
[null,null,null,"13837 - Valentine Scholarship Support Fund ","9923233 - UCCE Modoc County ","102050 - Financial Control UC Riverside ",null,null,"202502 - Spring Semester 2025 ",null,null,null,null,null,null,"AR06023401 - CAES INFORMATICS FACILITY "]
[null,null,null,"13850 - Faculty Salary Support Fund II ","9923234 - UCCE Monterey County ","102060 - Financial Control UC San Diego ",null,null,"202503 - Spring Quarter 2025 ",null,null,null,null,null,null,"AR06023501 - CAMI RATE "]
[null,null,null,"13851 - Faculty Salary Support Fund III ","9923235 - UCCE Napa County ","102070 - Financial Control UC Santa Cruz ",null,null,"202504 - Summer Semester 2025 ",null,null,null,null,null,null,"AR06023601 - CAES BIOANALYSIS ENVIRONMENTAL EXTRACTS "]
[null,null,null,"13857 - Harmon End Chair Cancer Clinical Rsch ","9923236 - UCCE Nevada County ","102080 - Financial Control UC Santa Barabara ",null,null,"202505 - Summer Session 1 2025 ",null,null,null,null,null,null,"AR06023801 - CAES ANHEUSERBUSCH BREWERY "]
[null,null,null,"13859 - Faculty Salary Support Fund I ","9923237 - UCCE Orange County ","102090 - Financial Control UC Irvine ",null,null,"202506 - Summer Quarter Special Summer Session 2025 ",null,null,null,null,null,null,"AR06024101 - CAES BEE GARDEN TOURS "]
[null,null,null,"13886 - VGL Program and Operations Fund ","9923238 - UCCE Placer County ","102100 - Financial Control UC Merced ",null,null,"202507 - Summer Session 2 2025 ",null,null,null,null,null,null,"AR06024601 - CAES LONNERDAL LABORATORY SERVICES "]
[null,null,null,"16019 - Earl and Lois Wolfman Professorship ","9923239 - UCCE Plumas and Sierra County ","102110 - Financial Control UC Office of the President ",null,null,"202508 - Summer Quarter 2025 ",null,null,null,null,null,null,"AR06024801 - CAES HONEYandPOLLINATION CTR SALES "]
[null,null,null,"16022 - Faculty Support Fund 201314 ","9923240 - UCCE Riverside County ","102120 - Financial Control UC ANR ",null,null,"202509 - Fall Semester 2025 ",null,null,null,null,null,null,"AR06024901 - CAES THORP INSECT IDENTIFICATION SVC "]
[null,null,null,"16023 - Hildy Jackman Support Fund ","9923241 - UCCE Sacramento County ","105000 - TRIP Investment ",null,null,"202510 - Fall Quarter 2025 ",null,null,null,null,null,null,"AR06025001 - BODEGA BAY SHOP LABOR "]
[null,null,null,"16028 - Simon Chan Memorial Fund ","9923242 - UCCE San Benito County ","105020 - ASUCD Temporary Investments ",null,null,"202601 - Winter Quarter 2026 ",null,null,null,null,null,null,"AR06025101 - BODEGA BAY SMALL BOAT "]
[null,null,null,"16048 - Radiology Education Fund ","9923243 - UCCE San Bernardino County ","105080 - UCD Foundation General Account ",null,null,"202602 - Spring Semester 2026 ",null,null,null,null,null,null,"AR06025501 - NEAT CCOAFM SERVICES "]
[null,null,null,"16106 - Faculty Support Fund I Fy 14 15 ","9923244 - UCCE San Diego County ","105081 - UCD Foundation Cash Undistributed ",null,null,"202603 - Spring Quarter 2026 ",null,null,null,null,null,null,"AR06025701 - NRS OVERNIGHT ACCOMMMODATIONS "]
[null,null,null,"16107 - Faculty Support Fund Ii Fy 14 15 ","9923245 - UCCE San Francisco County ","105082 - UCD Foundation Payroll Deductions ",null,null,"202604 - Summer Semester 2026 ",null,null,null,null,null,null,"AR06025801 - COOL WESTERN COOLING EFFICIENCY CENTER "]
[null,null,null,"16108 - Faculty Support Fund Iii Fy 14 15 ","9923246 - UCCE San Joaquin County ","106000 - Securities Lending Current ",null,null,"202605 - Summer Session 1 2026 ",null,null,null,null,null,null,"AR06026501 - LAWR WEB DESIGN SUPPORT "]
[null,null,null,"16109 - Faculty Support Fund Iv Fy 14 15 ","9923247 - UCCE San Luis Obispo County ","107000 - Self Insurance Current ",null,null,"202606 - Summer Quarter Special Summer Session 2026 ",null,null,null,null,null,null,"AR06026701 - LAWR SERVICES "]
[null,null,null,"16120 - Molecular Medicine Fund ","9923248 - UCCE San Mateo County ","107100 - Long Term Debt Current ",null,null,"202607 - Summer Session 2 2026 ",null,null,null,null,null,null,"AR06027001 - PSYCH ANIMAL QTRS PER DIEM RATE "]
[null,null,null,"16143 - Lum and Dere Prfsrshp Cardiovascular Med ","9923249 - UCCE Santa Barbara County ","107200 - Capital Current ",null,null,"202608 - Summer Quarter 2026 ",null,null,null,null,null,null,"AR06027601 - STEM CELL PROGRAM GMP TEST LAB "]
[null,null,null,"16162 - Century Bond FFE ","9923250 - UCCE Santa Clara County ","107300 - Investments Unspent Current ",null,null,"202609 - Fall Semester 2026 ",null,null,null,null,null,null,"AR06027701 - STEM CELL PRGM GMP "]
[null,null,null,"16167 - Fruit and Vegetable Faculty Fellowship ","9923251 - UCCE Santa Cruz County ","107310 - Investments Spent Current ",null,null,"202610 - Fall Quarter 2026 ",null,null,null,null,null,null,"AR06027801 - STEM CELL PRGM VECTOR "]
[null,null,null,"16245 - Radiology Translational Imaging Research ","9923252 - UCCE Shasta County ","120000 - Accounts Receivable Deferred Student Fees ",null,null,"202701 - Winter Quarter 2027 ",null,null,null,null,null,null,"AR06027901 - STEM CELL PRGM TEREATOME "]
[null,null,null,"16319 - Depner Awd Chronic Kidney Disease Rsch ","9923253 - UCCE Sierra County ","120001 - Accounts Receivable Course Material Fees ",null,null,"202702 - Spring Semester 2027 ",null,null,null,null,null,null,"AR06028001 - GENOMICSandEXPRESS RESOURCE RATE "]
[null,null,null,"16320 - Gastroenterology Division Chief Support ","9923254 - UCCE Siskiyou County ","120002 - Accounts Receivable Other Tuition and Fees ",null,null,"202703 - Spring Quarter 2027 ",null,null,null,null,null,null,"AR06028101 - MED PATH PROTEOMICS LAB "]
[null,null,null,"16337 - SurgICAl Oncology Lectureship ","9923255 - UCCE Solano County ","120003 - Accounts Receivable Registration Fees Fall Quarter ",null,null,"202704 - Summer Semester 2027 ",null,null,null,null,null,null,"AR06028201 - IMAGING RESEARCH CENTER "]
[null,null,null,"16338 - Agroecology Professorship Support ","9923256 - UCCE Sonoma County ","120004 - Accounts Receivable Registration Fees Winter Quarter ",null,null,"202705 - Summer Session 1 2027 ",null,null,null,null,null,null,"AR06028601 - CANCER CENTER SPECIMEN "]
[null,null,null,"16339 - Developmental Therapeutics In Cancer ","9923257 - UCCE Stanislaus County ","120005 - Accounts Receivable Registration Fees Spring Quarter ",null,null,"202706 - Summer Quarter Special Summer Session 2027 ",null,null,null,null,null,null,"AR06028801 - PUBLIC HEALTH BIOSTATICS "]
[null,null,null,"16340 - Strawberry Research Fund ","9923258 - UCCE Sutter and Yuba County ","120006 - Accounts Receivable Registration Fees Summer Quarter ",null,null,"202707 - Summer Session 2 2027 ",null,null,null,null,null,null,"AR06029301 - MED MICRO MICROARRAY CORE FACILITY "]
[null,null,null,"16392 - Gastro Faculty Support Fund ","9923259 - UCCE Tehama County ","120007 - Accounts Receivable Registration Fees Fall Semester ",null,null,"202708 - Summer Quarter 2027 ",null,null,null,null,null,null,"AR06029501 - SOM OPTICAL BIOLOGY SHARED RESOURCE "]
[null,null,null,"16399 - Thomas W North Grad Stdt Mem Flshp ","9923260 - UCCE Trinity County ","120008 - Accounts Receivable Registration Fees Spring Semester ",null,null,"21EXPS - 2021 Expense Activity ",null,null,null,null,null,null,"AR06029601 - PHYS MEMBRANE BIOL MICROSCOPY RATE "]
[null,null,null,"16431 - Division Of Endocrinology ","9923261 - UCCE Tulare County ","120800 - Allowance for Uncollectible Student Tuition and Fees ",null,null,"22EXPS - 2022 Expense Activity ",null,null,null,null,null,null,"AR06029701 - SOM STEM CELL PROGRAM VIVARIUM RATE "]
[null,null,null,"16457 - Anthropology Collections Facility Fund ","9923262 - UCCE Tuolumne County ","121000 - Accounts Receivable Federal Appropriations ",null,null,"23EXPS - 2023 Expense Activity ",null,null,null,null,null,null,"AR06029801 - SOM STEM CELL PROG IPSC LINES RATE "]
[null,null,null,"16494 - Inflammatory Bowel Disease Research Fund ","9923263 - UCCE Ventura County ","121100 - Allowance for Uncollectible Federal Appropriations ",null,null,"24EXPS - 2024 Expense Activity ",null,null,null,null,null,null,"AR06029901 - SOM STEM CELL PROGRAM KARYOTYPING "]
[null,null,null,"16495 - Div Of Pulmonary Critical Care and Sleep ","9923264 - UCCE Yolo County ","121200 - Accounts Receivable Federal Contracts and Grants ",null,null,"25EXPS - 2025 Expense Activity ",null,null,null,null,null,null,"AR06030101 - SOM UMBILICAL CORD BLOOD COLLECT PROG "]
[null,null,null,"16502 - Holliday Equine and Comp Neuro Pres Chr Mt ","9923265 - UCCE Capitol Corridor MCP ","121600 - Allowance For Uncollectible Federal Contracts and Grants ",null,null,"26EXPS - 2026 Expense Activity ",null,null,null,null,null,null,"AR06030201 - SOM COMBIOCHEM SHARED RESOURCE "]
[null,null,null,"16503 - Pmcf UCD Daryabari Presidential Chr Mtch ","9923266 - UCCE Central Sierra Nevada MCP ","121700 - Accounts Receivable Pell Grants ",null,null,"EVENYR - Even Years ",null,null,null,null,null,null,"AR06030401 - SOM SOH EDUCATION OUTCOMES EVALUATION "]
[null,null,null,"16551 - Pmcf UCD Mohini Jain Pres Chair Match ","9923267 - UCCE Fresno Madera MCP ","121800 - Accounts Receivable Build America Bond Interest Subsidies ",null,null,"FALQTR - Fall Quarter ",null,null,null,null,null,null,"AR06030501 - SOM CCR DATA DISCLOSURE "]
[null,null,null,"16557 - Pmcf UCD ChancellorS Pres Chair Match ","9923281 - UCCE Academic Compensation ","122000 - Accounts Receivable State Appropriations Educ and UCOP Operating ",null,null,"FALSEM - Fall Semester ",null,null,null,null,null,null,"AR06030601 - SOM BIOCHEM PKPD CORE FACILITY "]
[null,null,null,"16558 - Pmcf UCD Sue Jane Leung Pres Chair Match ","9924111 - UC Environmental Stewards ","122100 - Allowance for Uncollectible State Appropriations Educ Operating ",null,null,"ODDYR1 - Odd Years ",null,null,null,null,null,null,"AR06030701 - MEDICTSCCLINICAL RESEARCH SUPPORT SVCS "]
[null,null,null,"16559 - Pmcf UCD Hurlston Pres Chair Match ","9924161 - Agricultural Issue Center ","122200 - Accounts Receivable State Appropriations Capital ",null,null,"SPRQTR - Spring Quarter ",null,null,null,null,null,null,"AR06030801 - MEDIMINDIDDRC CORE SERVICES "]
[null,null,null,"16564 - Pmcf UCD C Bryan Cameron Pres Chr Match ","9924211 - Informatics and GIS Program ","122400 - Accounts Receivable State Contracts and Grants ",null,null,"SPRSMR - Spring Semester ",null,null,null,null,null,null,"AR06030901 - MEDIMICROSURGERY SUPPORT CORE SVCS "]
[null,null,null,"16788 - Neurology Education Fund ","9924261 - Community Nutrition and Health ","122401 - PPM Contracts and Grants Receivables ",null,null,"SUM001 - Summer Session 1 ",null,null,null,null,null,null,"AR06031501 - CBS GENOME CENTER PROTEOMICS "]
[null,null,null,"16790 - Dr Kevin Coulter Pediatric Endowment ","9924262 - Master Food Preserver Program ","122402 - PPM Contracts and Grants Unbilled Receivables ",null,null,"SUM002 - Summer Session 2 ",null,null,null,null,null,null,"AR06031601 - CBS GENOME CENTER YEAST 1 HYBRID "]
[null,null,null,"16791 - Brodie Resident Educational Excel Sppt ","9924301 - Nutrition Policy Institute ","122800 - Allowance for Uncollectible State Contracts and Grants ",null,null,"SUM003 - Summer ",null,null,null,null,null,null,"AR06032001 - CBSGENOMEBIOINFORMATICSDATA ANALYSIS "]
[null,null,null,"16792 - Div Chief Rheumatology Allergy Immuno ","9924361 - 4H Youth Development Program ","124000 - Accounts Receivable Local Contracts and Grants ",null,null,"SUMQTR - Summer Quarter ",null,null,null,null,null,null,"AR06032101 - CBSGENOMEBIOINFORMATICS HPC SVCS "]
[null,null,null,"16795 - Orthopaedic Surgery Rsch and Ed Fund ","9924401 - California Inst for Water Resources ","124300 - Allowance for Uncollectible Local Contracts and Grants ",null,null,"SUMSEM - Summer Semester ",null,null,null,null,null,null,"AR06032201 - CBS GENOME CENTER METABOLOMICS "]
[null,null,null,"16851 - UC Davis Campus Enhancement Fund ","9924461 - UC Master Gardener Program ","124500 - Accounts Receivable Private Contracts and Grants ",null,null,"WINQTR - Winter Quarter ",null,null,null,null,null,null,"AR06032401 - CBS GENOME CENTER TILLING CORE "]
[null,null,null,"16884 - UC Davis Infrastructure Investment Fund ","9924501 - UC Organic Agriculture Institute ","124800 - Allowance for Uncollectible Private Contracts and Grants ",null,null,"200500 - Executive ",null,null,null,null,null,null,"AR06033101 - CBS MCB Electron Microscope Facility Briggs Hall "]
[null,null,null,"16894 - Dept Of Obgyn Support and Education Fund ","9924561 - UC Integrated Pest Management Program ","125000 - Patient Accounts Receivable CPG ",null,null,"200501 - Board of Directors ",null,null,null,null,null,null,"AR06033102 - CBS MCB ELECTRON MICROSCOPE FACILITY Tupper Hall "]
[null,null,null,"16923 - UCD Ctr For Valley Fever Supporting Fund ","9924562 - Western IPM Center ","125001 - Patient Accounts Receivable Clearing CPG ",null,null,"200502 - Business and Finance ",null,null,null,null,null,null,"AR06033201 - SOM ANTIBODIES SALES "]
[null,null,null,"16942 - Foundation Plant Services Endowment ","9924611 - UC Sustainable Ag Research and Ed Prog ","125002 - Patient Cash Clearing CPG ",null,null,"200503 - Facilities and Maintenance Operations ",null,null,null,null,null,null,"AR06034201 - MEDISTEM CELL RESEARCH ANIMAL SURGERY "]
[null,null,null,"16951 - Pediatric Vice Chair Academic Affairs ","9924711 - Elkus Ranch Youth and Developmet Center ","125003 - Patient Accounts Receivable Midlevel ",null,null,"200504 - General Administration ",null,null,null,null,null,null,"AR06034301 - MEDIELECTROPHYSIOLOGY SVCS CORE "]
[null,null,null,"16952 - Pediatric Vice Chair Clinical Research ","9924811 - ANR Fire Network ","125004 - Patient Accounts Receivable HB ",null,null,"200505 - Marketing and Communications ",null,null,null,null,null,null,"AR06034501 - MEDIDERM IMMUNE MONITORING CORE SVCS "]
[null,null,null,"16990 - Urologic Surgery Research and Education Fd ","9931111 - AVPBO Immediate Office ","125005 - Patient Accounts Receivable Clearing HB ",null,null,"200507 - Computer Replacement ",null,null,null,null,null,null,"AR06034601 - MEDISTEM CELL EXOSOME CORE SVCS "]
[null,null,null,"34276 - Barrett Edward L Lectureship Fd ","9931112 - AVPBO Contingency Fund ","125006 - Patient Cash Clearing HB ",null,null,"200508 - Procurement ",null,null,null,null,null,null,"AR06034901 - MEDIMINDBIOLOGICAL ANALYSIS CORE SVCS "]
[null,null,null,"34708 - SOM FW Blaisdell Resident Education ","9931113 - Real Estate and Facilities Development ","125007 - Accounts Receivable Pharmacy ",null,null,"200509 - Professional Development and Training ",null,null,null,null,null,null,"AR06035001 - MEDILEICA FLIM IMAGING SVCS "]
[null,null,null,"35121 - ConsultLiaison Stoudemire Professorship ","9932111 - Controllers Imm Office ","125008 - Accounts Receivable Dental Patient ",null,null,"200510 - Staff Appreciation ",null,null,null,null,null,null,"AR06039201 - RESH TAHOE RESEARCH VESSEL SVC "]
[null,null,null,"35196 - Davis Summer Sessions Endowment Fd ","9932211 - Financial Services ","125600 - Accounts Receivable Bad Debt CPG ",null,null,"200512 - Human Resource Activities ",null,null,null,null,null,null,"AR06039301 - RESH SINGLE IRB SERVICES "]
[null,null,null,"35233 - SOM DO DeanS Diversity Mission Fund ","9932311 - Policies Compl and Prog Agreements ","125601 - Allowance for Contractuals CPG ",null,null,"200513 - Diversity Equity Inclusion ",null,null,null,null,null,null,"AR06039401 - RESHCNLSSRLMASS OPTICS SVC "]
[null,null,null,"35236 - Med DeanS Faculty Career Develp Supprt ","9932411 - Risk and Safety Services ","125602 - Allowance for Uncollectible CPG ",null,null,"200514 - Departmental Support Activities ",null,null,null,null,null,null,"AR06039501 - RESHCNL FTIR SVC "]
[null,null,null,"35426 - Lawrence J Ellison Chair In Molecul ","9933111 - Business Operations Center ","125603 - Accounts Receivable Bad Debt Midlevel ",null,null,"200516 - Engagement and Outreach ",null,null,null,null,null,null,"AR06039601 - RESHENDOCRINE CORE SERVICES "]
[null,null,null,"36089 - DeanS Prfrship For Clinical Teach ","9934111 - Facilities Management ","125604 - Allowance for Uncollectible Midlevel ",null,null,"200517 - Affiliate Memberships ",null,null,null,null,null,null,"AR06039801 - RESHAQRCHIPS ANALYSIS SVCS "]
[null,null,null,"36129 - Emergency Medicine Research Fund ","9935111 - ANR Human Resources ","125605 - Allowance for Contractuals Midlevel ",null,null,"200518 - Marketing ",null,null,null,null,null,null,"AR06040001 - RESHTERC MALYJ MANOR "]
[null,null,null,"36204 - Med Imid Infectious Diseases Fund ","9935112 - ANR Learning and Development ","125606 - Accounts Receivable Bad Debt HB ",null,null,"200519 - Sales and Services ",null,null,null,null,null,null,"AR06040301 - CLAS DSS IT SVC CTR DATA STORAGE RATE "]
[null,null,null,"36778 - Linn David Chair In Orthopaedics ","9951144 - Provision 44 ","125607 - Allowance for Contractuals HB ",null,null,"200520 - Business Partnerships ",null,null,null,null,null,null,"AR06040401 - CLAS IT SUPPLIESandSERVICES RATE "]
[null,null,null,"37252 - Mind Fragile X Endowed Chair ","9951162 - Provision 62 ","125608 - Allowance for Uncollectible HB ",null,null,"200521 - Print Media ",null,null,null,null,null,null,"AR06040501 - CLAS SSHP CURRICULUM ENRICHMENT SVCS "]
[null,null,null,"37253 - Mind High Func Autism and Aspergers Synd ","9951164 - Provision 64 ","125609 - Allowance for Bad Debt Adjustments ",null,null,"200522 - Digital Media ",null,null,null,null,null,null,"AR06040601 - CLAS UCDMP PROFESSIONAL DEVELOPMENT SVC "]
[null,null,null,"37261 - SOM Chason Chair Translational Rsch ","9935121 - Workplace Inclusion and Belonging ","125610 - Allowance for Contractual Home infusion ",null,null,"200523 - Accreditation ",null,null,null,null,null,null,"AR06040701 - CLASCHSSP PROFESSIONAL DEVELOPMENT SVCS "]
[null,null,null,"37265 - Med Dermatology Novy Lectureship ","9936111 - Resource Planning and Management ","125611 - Allowance for Uncollectible Home Infusion ",null,null,"200524 - Graphic Design ",null,null,null,null,null,null,"AR06040801 - CLAS CHEM GLYCAN ANALYSIS SVCS "]
[null,null,null,"37447 - Mpat Pathology Fund ","9937111 - Contracts and Grants ","126000 - Medi Cal Waiver Receivables ",null,null,"200525 - Photography ",null,null,null,null,null,null,"AR06040901 - CLAS PHYSICS FIT SVCS "]
[null,null,null,"37465 - Physiology and Membrane Biology Faculty Fd ","9938111 - CIO IT Office ","126200 - Third Party Reimbursement Medicare ",null,null,"200526 - Social Media ",null,null,null,null,null,null,"AR06045401 - CAES COMPUTING RESOURCES FARM SVCS "]
[null,null,null,"37468 - Med MphaPharm Tox Faculty Support Fund ","9938112 - CIO Web Group ","126201 - Medicare PIP Clearing ",null,null,"200527 - Video Production ",null,null,null,null,null,null,"AR06045501 - CAES PLANT SCIENCES STRAIN ID SVCS "]
[null,null,null,"37488 - Med Psych Endowed Professorship ","9938113 - CIO IT Services ","126400 - Third Party Reimbursement Tricare and Other ",null,null,"200528 - Writing ",null,null,null,null,null,null,"AR06045601 - CAES CTR FOR REGIONAL CHANGE CDC SVCS "]
[null,null,null,"37508 - SOM Reinsch Lectureship ","9939111 - Chief Information Security Office ","126500 - Accounts Receivable Patient Care Clinical ",null,null,"200529 - Websites ",null,null,null,null,null,null,"AR06045701 - CAES PLANT SCI LIGHTBAR SERVICES "]
[null,null,null,"37649 - Pomology Research Endowment Fd ","9941110 - UCB Rausser College of Natural Resources RCNR ","126501 - Accounts Receivable EPIC MG ",null,null,"200530 - Lawrence Berkeley National Laboratory ",null,null,null,null,null,null,"AR06045901 - CAES PLANT SCIENCES DRY CARD SALES "]
[null,null,null,"37899 - Edward B Roessler Endowed Chair ","9941111 - UCB CNR Ag and Resource Econ Policy ","126502 - Cash Clearing EPIC MG ",null,null,"200531 - Space Renovation ",null,null,null,null,null,null,"AR06046201 - CAES PLANT SCI SEED CONDITIONING SVCS "]
[null,null,null,"37943 - Med Radiology Fund Endowment ","9941112 - UCB CNR Env Science Policy Management ","126503 - Accounts Receivable Medical Professional Group ",null,null,"200532 - Warehouse ",null,null,null,null,null,null,"AR06046301 - CAESFOOD SCIMICRO ANAEROBIC ASSAY SVCS "]
[null,null,null,"38183 - Schizophrenia Professorship ","9941113 - UCB ESPM Ecosystem Science Division ","126504 - Cash Clearing SOM ",null,null,"200533 - Student Mentors ",null,null,null,null,null,null,"AR06046401 - CAESCOMMUNICATIONS UNIT "]
[null,null,null,"38366 - Somdo DeanS Chair In Teaching Excel ","9941114 - UCB ESPM Insect Biology ","126505 - System Clearing EPIC ",null,null,"200534 - Merchandise ",null,null,null,null,null,null,"AR06046501 - VETMVETERINARY CTR FOR CLINICAL TRIALS "]
[null,null,null,"38453 - Med PsychTupin End Chair Match ","9941115 - UCB ESPM Society and Environ Division ","126506 - Default Clearing EPIC ",null,null,"200535 - Analysis ",null,null,null,null,null,null,"AR06046701 - SOM CVRI RECHARGE INSTITUTE SVCS "]
[null,null,null,"38557 - UCDMC Health System End Res Fd ","9941116 - UCB ESPM Central Office ","126507 - Receivable Accruals Medcomp Plan ",null,null,"200536 - Student Research ",null,null,null,null,null,null,"AR06046801 - CAES FARM MANAGEMENT SERVICES "]
[null,null,null,"38558 - Uc Davis ChancellorS Endowment ","9941117 - UCB CNR Nutr Sci and Toxicology ","126508 - Other Receivables Medical Nonpatient Care ",null,null,"200537 - Allocated Benefits ",null,null,null,null,null,null,"AR06047101 - CAES FOOD ANALYSIS EXTRACTION SVCS "]
[null,null,null,"38563 - Msdo Jumpstart Endowed Fund ","9941118 - UCB CNR Plant and Microbiology ","126700 - Contractual Allowance MG EPIC ",null,null,"200538 - Faculty Support ",null,null,null,null,null,null,"AR06120101 - CAES PLANT SCIENCES IT SVCS "]
[null,null,null,"38666 - UCD Ag Machinery Collection Endowment ","9941120 - UCB School of Public Health ","126701 - Contractual Allowance Medical Professional ",null,null,"200539 - Postage ",null,null,null,null,null,null,"AR06120501 - CAES ETHYLENE SHOT SERVICES "]
[null,null,null,"38667 - Vogt Phillip J Md Memorial Lectureship ","9941121 - UCB SPH Ag Extension Program ","126900 - Accounts Receivable Bad Debt EPIC MG ",null,null,"200540 - Freight Management ",null,null,null,null,null,null,"AR06120801 - CAESFOOD SAFETY MEASUREMNT FAC FSMF "]
[null,null,null,"38916 - Imad UCDF Valente Matching Prof Meyers ","9942110 - UCR College of Natural and Agricultural Sciences CNAS ","126901 - Allowance for Bad Debt EPIC MG ",null,null,"200541 - Accident Claims and Reimbursements ",null,null,null,null,null,null,"AR06210101 - UWP AREA 3 WRITING INSTRUCTION SERVICES "]
[null,null,null,"38950 - Som Deans Prof In Bioethics ","9942111 - UCR CNAS Campus CE Specs ","126902 - Accounts Receivable Bad Debt SOM EPIC ",null,null,"200542 - Bindery Services ",null,null,null,null,null,null,"AR06225001 - VET MED VIDEOTAPE DISTR INCOME "]
[null,null,null,"38959 - Med Psych Kim Endowment 38959 ","9942112 - UCR CE Botany And Plant Sciences ","126920 - Allowance For Uncollectible Hospital and Clinics ",null,null,"200543 - Equipment Rentals ",null,null,null,null,null,null,"AR06225101 - VET MED CCAH VET SVCS VARIOUS COUNTIES "]
[null,null,null,"39423 - Presidents Chair Endowment Fund ","9942113 - UCR CE Entomology ","127000 - Accounts Receivable Professional Fees Non Medical ",null,null,"200544 - Dept Owned Vehicles ",null,null,null,null,null,null,"AR06243201 - VM POULTRYMED LABORATORY SERVICES "]
[null,null,null,"93001 - PmcfUCD Kelly Prs Chr Vitreoretinal Mtc ","9942114 - UCR CE Environmental Sciences ","127200 - Allowance for Uncollectible Educational Professional Fees ",null,null,"200545 - Design Services ",null,null,null,null,null,null,"AR06243301 - VM PMI ISOLATION DETECTION SVCS "]
[null,null,null,"93003 - Pediatrics Wellness and Resilience Endmt ","9942115 - UCR CE Nematology ","127300 - Accounts Receivable Educational Activities ",null,null,"200546 - Production Services ",null,null,null,null,null,null,"AR06243401 - VM BIOANALYTICAL RESEARCH CORE SVCS "]
[null,null,null,"93011 - Division Of Neonatology Endowed Chair ","9942116 - UCR CE Plant Pathology ","127301 - Interorganizational Receivables ",null,null,"200547 - Equipment Repair and Maintenance ",null,null,null,null,null,null,"AR06243501 - VM AQUATIC TOXICOLOGY LAB "]
[null,null,null,"93102 - PmcfUCD A Gabor Md Pres Chair Match ","9942117 - UCR Entomology ","127500 - Accounts Receivable Auxiliary Fee ",null,null,"200548 - Event Mangagment and Services ",null,null,null,null,null,null,"AR06243601 - VM LECTURE HALL MEETING ROOM RATES "]
[null,null,null,"93114 - D Kilmer Md Memorial Lecture Series Sp ","9942118 - UCR Nematology ","127501 - Accounts Receivable Retail ",null,null,"200549 - Fundraising ",null,null,null,null,null,null,"AR06243701 - VM VET GENETICS LAB RESEARCH SERVICES "]
[null,null,null,"93115 - Western Health Advantage Prfsrshp Sppt ","9942119 - UCR Plant Path And Microbiology ","127502 - Accounts Receivable Student Charges ",null,null,"200550 - Formatting Services ",null,null,null,null,null,null,"AR06243901 - VM MOL BIOSCI FORTE BIO OCTET SERVICES "]
[null,null,null,"93116 - Childrens Hosp Media and Child Health Ed ","9942120 - UCR SPP Deans Office ","127503 - Accounts Receivable Ticket Sales ",null,null,"200551 - Outside Vendor Services ",null,null,null,null,null,null,"AR06244001 - VM MOLECULAR BIOSCIENCES SPF PET CA "]
[null,null,null,"93127 - Internal Medicine Mission Support Fnd Ii ","9951211 - Misc Overdrafts ","127800 - Allowance for Uncollectible Auxiliary Fees ",null,null,"200552 - Copy Services ",null,null,null,null,null,null,"AR06244301 - VM CADMS PROGRAMMINGandDATA ANALYSIS "]
[null,null,null,"93138 - Pediatric DevelopmentalBehavioral Fund ","9951311 - Capital Project Funding ","128000 - Investment Interest Receivable ",null,null,"200553 - Disposal Services ",null,null,null,null,null,null,"AR06246001 - VETERINARY GENETICS LABORATORY INC "]
[null,null,null,"93175 - Jain Fmly Pres Chr InnovationEntreprene ","9952111 - UCANR General Accounting ","128200 - Commercial Paper Receivable ",null,null,"200554 - Document Retention ",null,null,null,null,null,null,"AR06246701 - VM PMIMARINE MAMMAL IMMUNOLOGY INC "]
[null,null,null,"93176 - Messmer Fmly Pres Chr Comp Exotic Animal ","9952112 - UCANR AP ","128300 - Securities Sold Sales Receivables ",null,null,"200556 - Flow Through Expenses ",null,null,null,null,null,null,"AR06247601 - VM VECTORBORNE DISEASE RESEARCH "]
[null,null,null,"93248 - James Wolpert Endowed Internship FFE ","9952113 - UCANR Payroll ","128400 - Securities Sold Settlements Receivables ",null,null,"200557 - Student Services ",null,null,null,null,null,null,"AR06248101 - VM OXIDATIVE STRESS DIAGNOSTIC LAB "]
[null,null,null,"B0001 - IN Foundation Investments for Operations 011013 ","9952114 - UCANR Tax Reporting and Compliance ","129000 - Employee Receivables ",null,null,"200558 - Grad Student Support ",null,null,null,null,null,null,"AR06248501 - OWCN OIL SPILL RESPONSE COST RECOVERY "]
[null,null,null,"B0002 - IN Development Fund Board Designated 011423 ","9952115 - UCANR Contracts and Grants Accounting ","129001 - Payroll Advances ",null,null,"200559 - Grad Group Support ",null,null,null,null,null,null,"AR06252501 - VM EQUINE RES LAB INCOME "]
[null,null,null,"4184 - Earle C Anthony Income Fund ","9952116 - UCANR Cashiers office ","129002 - Other Receivables ",null,null,"200560 - Resident Research ",null,null,null,null,null,null,"AR06252601 - VM CEH CARE OF ANIMAL AGREEMENT "]
[null,null,null,"4239 - A and ES Bowley Plt Sci Cntr End 04239 ","9953111 - Loans ","129003 - SPA Receivable SOM ",null,null,"200561 - Lab Support ",null,null,null,null,null,null,"AR06252901 - VM MEDICINE EPIDEMIOLOGY "]
[null,null,null,"4544 - Thomas Casady Jr Memorial Fund Prin ","9931211 - Chief Procurement Office","129005 - Lawson Default ",null,null,"200562 - Safety Expenses ",null,null,null,null,null,null,"AR06253001 - VET MED MEDIA ROOM INCOME "]
[null,null,null,"4600 - Howard W Clark Fund ","9951111 - Provisions","129006 - Interest Receivable Student Loans ",null,null,"200563 - Equipment ",null,null,null,null,null,null,"AR06253701 - VET MED EQUINE INFECTIOUS DISEASE LAB "]
[null,null,null,"4618 - Chia Professional Support 04618 ",null,"129007 - Principal Receivable Student Loans ",null,null,"200564 - Cloud Computing ",null,null,null,null,null,null,"AR06253801 - VM MARINE ECOSYSTEM HEALTH LAB "]
[null,null,null,"4624 - Center For Animal Alternatives 04624 ",null,"129008 - Accounts Receivable Sponsored Students ",null,null,"200565 - Infrastructure ",null,null,null,null,null,null,"AR06420001 - DRAMATIC ART PRODUCTION INC "]
[null,null,null,"4746 - Cosmos Nobel Centennial Fund 04746 ",null,"129009 - Accounts Receivable Leases ",null,null,"200566 - Telecommunications ",null,null,null,null,null,null,"AR06425001 - SVM SPECIAL CLINICAL PROCEDURES LAB "]
[null,null,null,"4990 - Nuclear Science Fund 04990 ",null,"129010 - Taxes Receivable ",null,null,"200567 - Cell Phones ",null,null,null,null,null,null,"AR06425004 - VM Urinary Stone Analysis Lab "]
[null,null,null,"4991 - Nuclear Science Fund 04991 ",null,"129011 - Allowance for Sales Discount ",null,null,"200568 - NAMS ",null,null,null,null,null,null,"AR06425005 - VM PCR LAB "]
[null,null,null,"5004 - Imrh Artz Family Endowment 05004 ",null,"129012 - Davis Faculty Association Receivable ",null,null,"200569 - Assessments ",null,null,null,null,null,null,"AR06425301 - VM CBRCS SEAHORSE RECHARGE SERVICES "]
[null,null,null,"5099 - Wm H Cowger Inc ",null,"129013 - Payroll United Way Receivable ",null,null,"200570 - Printing ",null,null,null,null,null,null,"AR06425401 - VM AMINO ACID ANALYSIS LAB "]
[null,null,null,"5277 - Med Ophth Eye Center Endowed Fund ",null,"129014 - KFS Invoice Conversion ",null,null,"200571 - Cloud Services ",null,null,null,null,null,null,"AR06425501 - VM CENT FOR COMPANION ANIM HLTH GEN PROC "]
[null,null,null,"5317 - General Medicine Division Support ",null,"129015 - Cal Grants AR ",null,null,"200572 - Building ",null,null,null,null,null,null,"AR06425601 - VMCCAH SHELTER MED PROF CLINICAL PROG "]
[null,null,null,"5329 - Natalie Fosse Fund ",null,"129016 - MCS AR ",null,null,"200573 - Indirect Cost Emerg Med Svcs ",null,null,null,null,null,null,"AR06425801 - VETERINARY GENETICS HYPP TESTING "]
[null,null,null,"5397 - Educational Fund ",null,"129017 - CHAFEE Grant AR ",null,null,"200574 - Indirect Cost General Admin ",null,null,null,null,null,null,"AR06426801 - CBS CNS VIRAL FACILITY SERVICES "]
[null,null,null,"5412 - Endowment For Cooperatives 05412 ",null,"129018 - Outside Scholarship AR ",null,null,"200575 - Indirect Cost Information Tech ",null,null,null,null,null,null,"AR06428001 - VM ME MASTITIS QC TESTING SERVICES "]
[null,null,null,"5416 - Equine Research Lab Endowment ",null,"129100 - Other Receivables Leases Current ",null,null,"200576 - Indirect Cost Logistics ",null,null,null,null,null,null,"AR06428101 - VM VIRC INDUSTRY SERVICES "]
[null,null,null,"5545 - Inst Internatl Studies Ford Nw ",null,"129110 - Accrued Interest Lease ",null,null,"200577 - Indirect Cost Public Info Office ",null,null,null,null,null,null,"AR06428201 - CADMS Training and Tech Services "]
[null,null,null,"5548 - The Farm Endowment ",null,"129501 - Allowance for Uncollectible Other Receivables ",null,null,"200578 - Indirect Cost Telecom ",null,null,null,null,null,null,"AR06428202 - Research Park Vivarium "]
[null,null,null,"5612 - Endowment For Cooperatives 05612 ",null,"129550 - Accounts Receivable Commercial Paper Discount ",null,null,"200579 - Direct Cost Community Educ ",null,null,null,null,null,null,"AR06428401 - VM Urinary Stone Nanosight EQ Use Service "]
[null,null,null,"5640 - German Seed and Plant Flshp Fdn ",null,"129600 - Accounts Receivable Commercial Paper Trades ",null,null,"200580 - Direct Cost Emerg Med Svcs ",null,null,null,null,null,null,"AR06428601 - CADMS Bioportal "]
[null,null,null,"5695 - General Research Fund ",null,"129650 - Accounts Receivable Commercial Paper Settlement ",null,null,"200581 - Direct Cost Facilities ",null,null,null,null,null,null,"AR06430301 - CNL XRAY FLUORESCENCE SERVICES "]
[null,null,null,"5696 - General Universitywide Scholarship ",null,"129700 - Accounts Receivable Rebates ",null,null,"200582 - Direct Cost Control ",null,null,null,null,null,null,"AR06430501 - CNL CYCLOTRON OPERATIONS INCOME "]
[null,null,null,"5737 - Eddy Gordon Memorial Scholarship ",null,"131000 - Accounts Receivable Gifts and Pledges Noncapital ",null,null,"200583 - Direct Cost Fleet ",null,null,null,null,null,null,"AR06430701 - CNL ELECTRICAL MECHANICAL SHOP SERVICE "]
[null,null,null,"5842 - Hansen Helen F Nursing Scholarship ",null,"131100 - Accounts Receivable Gifts and Pledges Capital ",null,null,"200584 - Direct Cost Hazmat Response ",null,null,null,null,null,null,"AR06430702 - CNL MECHANICAL SHOP SERVICE "]
[null,null,null,"5915 - Thelma Hansen Fund ",null,"131200 - Allowance For Uncollectible Gifts and Pledges ",null,null,"200585 - Direct Cost Training ",null,null,null,null,null,null,"AR06430801 - CTR FOR PLASMA MASS SPECTROMETRY "]
[null,null,null,"5926 - Med Surg Hause Endowment Principal ",null,"133000 - Mortgages Receivable Current ",null,null,"200586 - FM Asset Management ICAMP DM ",null,null,null,null,null,null,"AR06433301 - ENGR MAT PERM LAB TALYSCAN 250 "]
[null,null,null,"6223 - Som Pediatric Urology Fund 06223 ",null,"133300 - Allowance For Uncollectible Mortgages Receivable Current ",null,null,"200587 - FM UTIL ICAMP DM ",null,null,null,null,null,null,"AR06433401 - ENGR WATERENERGY EFFICIENCY CTR SVC "]
[null,null,null,"6272 - Nutrition Kosuna Endowment 06272 ",null,"133400 - Notes Receivable Current ",null,null,"200588 - FM DM FY21 AB94 ",null,null,null,null,null,null,"AR06433501 - ENGR CSTEM PROFESSIONAL DEVELOPMENT "]
[null,null,null,"6305 - WS and E Insur Res Fund ",null,"133500 - Allowance For Uncollectible Note Receivable Current Portion ",null,null,"200589 - Museum Curation ",null,null,null,null,null,null,"AR06433801 - ENGR COE IT STAFFING "]
[null,null,null,"6307 - Princ Approp Insur Res Fund ",null,"135000 - Inventory Auxiliary ",null,null,"200590 - Base Staff ",null,null,null,null,null,null,"AR06433901 - ENGR DISTANCE LEARNING PROGRAM "]
[null,null,null,"6309 - Insurance Reserve ",null,"136000 - Inventory Storehouse ",null,null,"200591 - Nursing Expenses ",null,null,null,null,null,null,"AR06435001 - NUCLEAR MAG RESONANCE FAC INC "]
[null,null,null,"6417 - Konishi Endowed Fd Functioning 06417 ",null,"136001 - Inventory General Stores ",null,null,"200592 - Call Agreement ",null,null,null,null,null,null,"AR06436001 - CONTROLLED ENVIRON FACILITY INCOME "]
[null,null,null,"6453 - Konishi Research Fund ",null,"136002 - Inventory Pharmacy ",null,null,"200593 - CFTE Agreement ",null,null,null,null,null,null,"AR06437001 - LAW ATTORNEY FEES "]
[null,null,null,"6484 - Max Kleiber Grad Rsch Prize ",null,"136003 - Inventory Central Supply ",null,null,"200594 - Agreements ",null,null,null,null,null,null,"AR06437101 - LAW MISCELLANEOUS JOURNAL "]
[null,null,null,"6725 - MM CW Law Professor Of Med FFE ",null,"136004 - Inventory Plant Operations and Maintenance ",null,null,"200595 - Cost Recovery ",null,null,null,null,null,null,"AR06437501 - LAW REVIEW INCOME "]
[null,null,null,"6726 - MM CW Law Biofilm Research Center ",null,"136005 - Other Inventory ",null,null,"200596 - Academic Senate Operations ",null,null,null,null,null,null,"AR06438201 - CHMS ELECTRON MICROSCOPY "]
[null,null,null,"6727 - MM CW Law Gi Fellowship ",null,"136006 - Inventory Suspense ",null,null,"200597 - Academic Federation Operations ",null,null,null,null,null,null,"AR06438501 - GEOLOGY EXP PETROLOGY MATR LAB "]
[null,null,null,"7164 - Pediatric Critical Care Transport Fund 07164 ",null,"140000 - Prepaid Expenses Financial Aid ",null,null,"200598 - On Campus Meeting Expenses ",null,null,null,null,null,null,"AR06438601 - GEOLOGY ISOTOPE LAB INCOME "]
[null,null,null,"7226 - IMHO Lau Cancer Research Endow 07226 ",null,"140001 - Prepaid Expenses Leases and Rents ",null,null,"200599 - Off Campus Meeting Expenses ",null,null,null,null,null,null,"AR06438701 - GEOLOGY DEPARTMENTAL SERVICES "]
[null,null,null,"7336 - Noel Goat Dairy Fund ",null,"140002 - Prepaid Expenses Travel ",null,null,"200600 - Grad Studies Graduate Group Administrative Support ",null,null,null,null,null,null,"AR06438801 - GEOLOGY MICROPROBE SEM XRAY FAC "]
[null,null,null,"7382 - Paula Winn Oates Cancer Res Fund ",null,"140003 - Prepaid Maintenance and Svc Contracts ",null,null,"200602 - Grad Studies Graduate Program Travel Recruit Funding ",null,null,null,null,null,null,"AR06439001 - HLTH SCI RESEARCH LABS INCOME "]
[null,null,null,"7427 - University Opportunity Fund ",null,"140004 - Other Prepaid Expenses ",null,null,"200603 - DVAR Gift Processing Long Term Holding ",null,null,null,null,null,null,"AR06439101 - MED HLTH SCI INSTRMT FAC INC "]
[null,null,null,"7439 - Rola Ortlieb Scholarship ",null,"140100 - Deferred Cost of Issuance Current Portion ",null,null,"200604 - DVAR Gift Processing Neutral ",null,null,null,null,null,null,"AR06439301 - PHYSICS TECHNICAL SUPPORT CENTER "]
[null,null,null,"7509 - Veg Crop Charles Rick Tomato Genetics ",null,"140200 - Cash Advances Contracts and Grants ",null,null,"200605 - DVAR Gift Processing Cashier Depository ",null,null,null,null,null,null,"AR06449901 - POISON CONTROL INCOME "]
[null,null,null,"7527 - Patterson Seward and Clara Endow 07527 ",null,"140201 - Cash Advances Other ",null,null,"200606 - DVAR Gift Processing Matching Gifts ",null,null,null,null,null,null,"AR06457501 - STATISTICAL LAB INCOME "]
[null,null,null,"7609 - Clemens Von Pirquet Fund ",null,"140202 - Other Miscellaneous Current Assets ",null,null,"200607 - DVAR Gift Processing Online Giving Website ",null,null,null,null,null,null,"AR06463101 - VM COMPARATIVE PATHOLOGY LAB RATES "]
[null,null,null,"7639 - Purcell Endow Fund Princ ",null,"140203 - Asset Clearing ",null,null,"200608 - DVAR Gift Processing Give Day ",null,null,null,null,null,null,"AR06463201 - VM ADVANCED IMAGING FACILITY SVCS "]
[null,null,null,"7658 - Presidents Discretionary Fund ",null,"140204 - Accounts Receivable Clearing ",null,null,"200609 - DVAR Gift Processing Credit Card Gifts ",null,null,null,null,null,null,"AR06463301 - VM VIRTUAL MICROSCOPY SVCS "]
[null,null,null,"7707 - Ragle Florence Endowment Principal ",null,"140205 - Trade Clearing ",null,null,"200610 - EAOP Region 1 ",null,null,null,null,null,null,"AR06463501 - VM ANATOMY VET ORTHOPEDIC RES LAB "]
[null,null,null,"7791 - Marcia Mcdonald Rivas Endowment ",null,"140206 - Trade In transit Valuation ",null,null,"200611 - EAOP Region 3 ",null,null,null,null,null,null,"AR06465001 - VET MED TRC INCOME "]
[null,null,null,"7859 - Albert Rowe Endowed Chair ",null,"140207 - Receiving Inspection ",null,null,"200612 - EAOP Region 4 ",null,null,null,null,null,null,"AR06470001 - CAES AN SCI LIVESTOCK MGMT INCOME "]
[null,null,null,"8392 - Michael Schermer Family Fund 08392 ",null,"140500 - Holding Acct Cost of Issuance ",null,null,"200613 - EAOP Region 5 ",null,null,null,null,null,null,"AR06480001 - UNI LAB NURSERY SCHOOL INCOME "]
[null,null,null,"8447 - Thoracic Oncology Fund ",null,"150000 - Restricted Assets Deposits Held For Hospital Construction ",null,null,"200614 - EAOP Region 6 ",null,null,null,null,null,null,"AR06482401 - MNRC Self Supporting Rate Radiation "]
[null,null,null,"8613 - University Patent Fund ",null,"150001 - Trustee Cash ",null,null,"200615 - EAOP Region 7 ",null,null,null,null,null,null,"AR06482402 - MNRC Self Supporting Rate Irradiation "]
[null,null,null,"8621 - Unrestricted Gifts and Endowment ",null,"150100 - Restricted Assets Donor and Gift Funds ",null,null,"200616 - Notary Authorization ",null,null,null,null,null,null,"AR06490101 - SS TRACS HUSBANDRY ANIMAL PURCHASES "]
[null,null,null,"9498 - University Fund Permanent ",null,"151000 - Long Term Investments Short Term Investment Pool STIP ",null,null,"200617 - EAOP Region 2 ",null,null,null,null,null,null,"AR06491001 - ANIMAL HEALTH CARE PER DIEM "]
[null,null,null,"9499 - University Fund ",null,"151100 - Long Term Investments Total Return Investment Pool TRIP ",null,null,"200618 - Grad Studies Graduate Group Chair AEF Support ",null,null,null,null,null,null,"AR06491501 - SOM MUTANT MOUSE PATHOLOGY LAB SVCS "]
[null,null,null,"9500 - Univ Opportunity Fd Affirm Action ",null,"151200 - Long Term Invests Total Blue and Gold Pool BGP ",null,null,"200619 - Middle School Outreach ",null,null,null,null,null,null,"AR06491601 - SOM STEM CELL REGULATORY ASSISTANCE SVC "]
[null,null,null,"9501 - Management Fellowship Program ",null,"151300 - Long Term Invests General Endowment Pool GEP ",null,null,"200620 - Autoclave Maintenance ",null,null,null,null,null,null,"AR06491801 - SOM STEM CELL ALPHA CLINIC SVCS "]
[null,null,null,"9502 - Ucan Program ",null,"151400 - Long Term Investments EIP ",null,null,"200621 - Support Personnel ",null,null,null,null,null,null,"AR06491901 - SOM PROTEIN STRUCTURE CORE SVCS "]
[null,null,null,"9503 - Univ Opport Fund Faculty EAA Prog ",null,"151500 - Investment Securities Non Current Portion ",null,null,"200622 - Subscriptions ",null,null,null,null,null,null,"AR06492001 - VM MUTANT MOUSE BIOLOGY PROGRAM SVCS "]
[null,null,null,"9504 - Univ Opport Fund Staff EAA Prog ",null,"151510 - Fair Value Adjustments Security Adjustments UC OPEB and UCRS only ",null,null,"200623 - Business Travel ",null,null,null,null,null,null,"AR06492201 - CAES PLANT TRANSFORMATION FACILITY "]
[null,null,null,"9505 - Univ Opport Fund Campuswide EAA Pro ",null,"151600 - Investments Mortgage Loans Noncurrent Portion ",null,null,"900131 - Commodity Sales ",null,null,null,null,null,null,"AR06495101 - CHE TPHRLSMOKE CHAMBER "]
[null,null,null,"9506 - UOP EAA Administrative Costs ",null,"151700 - Investments Derivatives Noncurrent Portion ",null,null,"900143 - Physical Plant Direct Hours ",null,null,null,null,null,null,"AR06495201 - CHE ANIMAL CARE "]
[null,null,null,"9507 - Eaa Faculty Admin Costs ",null,"151800 - Investments Noncurrent Portion Other ",null,null,"900149 - Reimbursements ",null,null,null,null,null,null,"AR06495401 - ENGR CHE ENGINEERING RECHARGE "]
[null,null,null,"9508 - Univ Opport Fund Deferred Main ",null,"152000 - UCDFEF Historical Cost ",null,null,"900150 - Field Research and Maintenance ",null,null,null,null,null,null,"AR06500501 - EPS GEOCHEMISTRYandGEOCHRON LAB SVCS "]
[null,null,null,"9509 - Eaa Other Admin Costs ",null,"152001 - UCDFEF Investment Contra Account ",null,null,"900153 - Leased Facilities ",null,null,null,null,null,null,"AR06502001 - SOM COMPREHENSIVE CANCER LAB SVCS "]
[null,null,null,"9510 - PreTenure Program ",null,"152002 - UCDFEF Investment G L on sale ",null,null,"200700 - Public Information ",null,null,null,null,null,null,"AR06502901 - SOM EXPLORER MOLECULAR IMAGING CTR SVCS "]
[null,null,null,"9520 - Instructional Improvement ",null,"152003 - UCDFEF Investment Earnings Reinvested ",null,null,"200701 - Community Education ",null,null,null,null,null,null,"AR06503001 - SOM BIOANALYSIS PHARMACOKINETICS CORE "]
[null,null,null,"9525 - Institue For Research In The Arts ",null,"152004 - UCDFEF Changes in FV of Investment ",null,null,"200702 - Education Outreach ",null,null,null,null,null,null,"AR06603901 - STUDENT EXPERIMENTAL FARM HARVEST INCOME "]
[null,null,null,"9530 - Univ PreGraduate Mentorship Prog ",null,"153001 - UCDF GIK Securities ",null,null,"200703 - Aggie Ambassadors ",null,null,null,null,null,null,"AR06605500 - CLAS CHEMISTRY SERVICE CENTER "]
[null,null,null,"9531 - Uof UG Minority Scholars Program ",null,"153002 - UCDF GIK Real Estate ",null,null,"200704 - Aggie Jumpstart ",null,null,null,null,null,null,"AR06606501 - PROTEIN STRUCTURE LABORATORY INCOME "]
[null,null,null,"9532 - UofGrad Mentorship Program ",null,"153003 - UCDF GIK Other ",null,null,"200705 - Faculty Orientation ",null,null,null,null,null,null,"AR06606601 - CAMPUS MASS SPECTROMETRY FACILITIES "]
[null,null,null,"9533 - SaaTransfer Program ",null,"154000 - Investments of Cash Collateral Non Current Portion ",null,null,"200706 - Gel Imaging ",null,null,null,null,null,null,"AR06607401 - VM ANATOMY EMCL INCOME "]
[null,null,null,"9534 - Professors For The Future ",null,"154100 - Contra Investments of Cash Collateral Campus Foundation ",null,null,"200707 - Histology ",null,null,null,null,null,null,"AR06627001 - OM OLIVE SALES "]
[null,null,null,"9539 - SaaGeneral ",null,"155000 - Investments Held By Trustees Noncurrent Portion Self Insurance ",null,null,"200708 - Student Yield ",null,null,null,null,null,null,"AR06654501 - CAES PLANT SCIENCE FIELD ACREAGE SVCS "]
[null,null,null,"9551 - Univ Opportunity FundResearch Matc ",null,"155100 - Investments Held By Trustees Long Term Debt Noncurrent ",null,null,"200709 - Undergraduate Outreach ",null,null,null,null,null,null,"AR06654601 - CAES PLANT SCIENCE TILLING SVCS "]
[null,null,null,"9552 - Uof Indirect Cost Recovery ",null,"155200 - Non Current Capital Project Trustees ",null,null,"200506 - Information Technology Activities ",null,null,null,null,null,null,"AR06654801 - CAES WINERY SVCS "]
[null,null,null,"9553 - Univ Opport FundBridge Program ",null,"156000 - Gift and Pledges Receivable UC Operating Noncurrent Portion ",null,null,"200800 - Web Development ",null,null,null,null,null,null,"AR06654901 - CAES PLANT SCI SMALL GRAINS TRIAL SVC "]
[null,null,null,"9554 - Faculty Research Grants ",null,"156100 - Gift and Pledges Receivable Capital Noncurrent Portion ",null,null,"200801 - Storage ",null,null,null,null,null,null,"AR06656001 - CAESPLANT SCIGENOMIC LIBRARY PREP SVCS "]
[null,null,null,"9560 - Presidents Fellowship Program ",null,"156200 - Pledges Receivable Discount ",null,null,"200802 - Fire Walls ",null,null,null,null,null,null,"AR06656501 - CAESANIM SCILABELFREE MOL PHENOTYPING "]
[null,null,null,"9592 - Life Science Informatics Program ",null,"156300 - Allowance For Uncollectible Gifts and Pledges Receivable Noncurrent ",null,null,"200803 - Service Desk ",null,null,null,null,null,null,"AR06656901 - CAESPLANT SCI GENOME MAPPING "]
[null,null,null,"9594 - Dimi Program ",null,"157000 - Mortgages Receivable Issued Mortgage Noncurrent Portion ",null,null,"200804 - Tier 1 Support ",null,null,null,null,null,null,"AR06657101 - CAES RMI SERVICES "]
[null,null,null,"9596 - UCB Smart ProgEndow Prin Ed Funds ",null,"157100 - Mortgages Receivable Collection Non Current ",null,null,"200805 - Tier 2 Support ",null,null,null,null,null,null,"AR06657301 - CAESWFCB TODD LAB SERVICES "]
[null,null,null,"9598 - Endow Funds Summary Unrestricted ",null,"157200 - Allowance For Uncollectible Mortgages Receivable Noncurrent Portion ",null,null,"200807 - Quality Assurance ",null,null,null,null,null,null,"AR06657501 - CAESPLANT PATH RICE MUTANT SVCS "]
[null,null,null,"14210 - Theater and Dance Dept Enhancement ",null,"157300 - Student Loans Receivable Noncurrent ",null,null,"200808 - Software Development ",null,null,null,null,null,null,"AR06657901 - CAES OXYLIPINandPLASMALOGEN ANALYSIS "]
[null,null,null,"14228 - Meg Stallard Leadership Fund ",null,"157301 - Employee Loans Receivable Noncurrent ",null,null,"200809 - Computer Labs ",null,null,null,null,null,null,"AR06658101 - Translational Shared Rsrch Fac TSRF "]
[null,null,null,"14364 - Ophthalmology Program Support Fund 14364 ",null,"157302 - Student Loan Receivable Clearing ",null,null,"200810 - Incident Response Services ",null,null,null,null,null,null,"AR06660001 - VET Diagnostic Lab System Rate "]
[null,null,null,"14434 - Vision Science and Advanced Retinal Imaging Lab Sup ",null,"157400 - Notes Receivable Collections Noncurrent Portion ",null,null,"200811 - Application or Cloud Sec Serv ",null,null,null,null,null,null,"AR06660201 - CAHFS CAMPUS RECHARGES "]
[null,null,null,"14440 - Richard J Elkus Fund ",null,"157500 - Allowance For Uncollectible Student Loans Noncurrent Portion ",null,null,"200812 - Risk and Compliance Sec Serv ",null,null,null,null,null,null,"AR06661601 - Equine Analytical Chemistry Rate EACP "]
[null,null,null,"14788 - Holdsworth and Vandling Memorial Research 14788 ",null,"158100 - Intangibles Subscription Asset SBITA ",null,null,"200813 - Research Supp Sec Serv ",null,null,null,null,null,null,"AR06996501 - BIOMEDICAL ENGR MICRPET SCANNER "]
[null,null,null,"14820 - Frances Mara Botanical Conservatory End 14820 ",null,"158200 - Accumulated amortization intangibles subscription asset SBITA ",null,null,"200814 - Threat Management Sec Serv ",null,null,null,null,null,null,"AR60380001 - Intermountain REC Research Acre "]
[null,null,null,"14844 - Roberta J Schneider Memorial Fund A ",null,"159100 - Intangible Finance Leases ROU Land ",null,null,"200815 - Software ",null,null,null,null,null,null,"AR60380002 - Intermountain REC Research Hourly Rate "]
[null,null,null,"14862 - Kootenay Veterinary Medical Ctr Constr ",null,"159110 - Intangible Finance Lease ROU Building and Improv ",null,null,"200900 - Arson Investigation ",null,null,null,null,null,null,"AR60380003 - Intermountain REC Research Water "]
[null,null,null,"17039 - Beavers Charitable Trust 17039 ",null,"159120 - Intangible Fin Lease ROU Equipment ",null,null,"200901 - Dispatch and Control Center ",null,null,null,null,null,null,"AR60380004 - Kerney REC Research Acre "]
[null,null,null,"17049 - Waldrop Walker Veterinary Hospital Fund ",null,"159200 - Accumulated Amortization Fin Lease Land ",null,null,"200902 - Fleet Services and Rentals ",null,null,null,null,null,null,"AR60380005 - Kerney REC Research Hourly Rate "]
[null,null,null,"17260 - Calm Winds Trust Grief Counselor 17260 ",null,"159210 - Accumulated Amortization Financed Lease Building and Improvement ",null,null,"200903 - Hazardous Materials Response ",null,null,null,null,null,null,"AR60380006 - Lindcove REC Research Acre "]
[null,null,null,"17262 - Calm Winds Vet Med Ctr Construction Fd 17262 ",null,"159220 - Accumulated Amortization Finance Lease Equipment ",null,null,"200904 - Mapping ",null,null,null,null,null,null,"AR60380007 - Lindcove REC Research Hourly Rate "]
[null,null,null,"17878 - Schaal Aquatics Team Center Project 17878 ",null,"160000 - Capital Assets Land ",null,null,"200905 - Prevention ",null,null,null,null,null,null,"AR60380008 - Lindcove REC Packline User Fee "]
[null,null,null,"94248 - James Wolpert Endowed Internship FFE 94248 ",null,"161000 - Capital Assets Parking Lot Improvements ",null,null,"200906 - Urban Search and Rescue ",null,null,null,null,null,null,"AR60380009 - South Coast REC Research Acre "]
[null,null,null,"C0001 - PRN UCDF Unrestricted Fund Functioning as an Endw 222222 ",null,"161100 - Capital Assets Other Land Improvements ",null,null,"200907 - Pass Through Costs ",null,null,null,null,null,null,"AR60380010 - South Coast REC Research Hourly Rate "]
[null,null,null,"C0002 - PRN George and Lena Valente Fund to support UCDF 222213 ",null,"161400 - Capital Assets Infrastructure ",null,null,"200908 - Promotional Giveaway ",null,null,null,null,null,null,"AR60380011 - Sierra Foothill REC Research Rate "]
[null,null,null,"CC001 - CAAA Board Designated Reserve Fund GEP with UCOP 09676 ",null,"162000 - Capital Assets Build and Improvements Service Concession ",null,null,"200909 - K9 Dogs ",null,null,null,null,null,null,"AR60380012 - Sierra Foothill REC Research Hourly Rate "]
[null,null,null,"D0001 - IN UCDF Unrestricted Fund Functioning as an Endw 222222 ",null,"162100 - Capital Assets Student Housing Facilities ",null,null,"200910 - Core Officer ",null,null,null,null,null,null,"AR60380013 - Sierra Foothill REC Reaserch Animal Care "]
[null,null,null,"D0002 - IN George and Lena Valente Fund to support UCDF 222213 ",null,"162200 - Capital Assets Parking Structures ",null,null,"200911 - Cadet ",null,null,null,null,null,null,"AR60380014 - South Coast REC Greenhouse Rate "]
[null,null,null,"DC001 - CAAA Board Designated Reserve Fund STIP with UCOP 09676 ",null,"162300 - Capital Assets Leasehold Improvements ",null,null,"200912 - Special Services ",null,null,null,null,null,null,"AR60380015 - Westside REC Research Acre Rate "]
[null,null,null,"10500 - Summer Sessions Income 20290 ",null,"162400 - Capital Assets Buildings and Improvements Other ",null,null,"200913 - Campus Copier Program ",null,null,null,null,null,null,"AR60380016 - Westside REC Research Hourly Rate "]
[null,null,null,"10501 - Summer Sessions Abroad 20291 ",null,"162900 - Capital Assets General Improvements ",null,null,"200914 - Electrical Commodities and Services ",null,null,null,null,null,null,"AR60380017 - Westside REC Research Water "]
[null,null,null,"10700 - University Ext Activity Campuswide 20087 ",null,"163000 - Capital Assets Equipment ",null,null,"200915 - Fleet Rentals ",null,null,null,null,null,null,"AR60380018 - CPE Course Management Rate "]
[null,null,null,"10701 - UCDE Operational Fund 20300 ",null,"163002 - UCDMC Only Furniture and Minor Equipment ",null,null,"200916 - Courier Services ",null,null,null,null,null,null,"AR60380019 - CAES Seed Sales "]
[null,null,null,"10703 - UCDE Special Purpose Fund 20306 ",null,"163100 - Capital Asset Software greater than 5M ",null,null,"200917 - Fuel Services ",null,null,null,null,null,null,"AR60380020 - Project CAES LAWR Freeze Drier "]
[null,null,null,"10704 - UCDE Statewide Development Fund 20307 ",null,"163150 - Capital Asset Software Less Than or Equal to 5M ",null,null,"200918 - Gas Commodities and Services ",null,null,null,null,null,null,"AR60380021 - CAES LAWR Particle Size Analyzer Service "]
[null,null,null,"10705 - UNEX Special Program 20308 ",null,"163210 - Intangibles Cap and Trade ",null,null,"200919 - Light Duty ",null,null,null,null,null,null,"AR60380022 - CAES Vineyard Labor Support Services "]
[null,null,null,"10706 - Univ Wide UNEX Reserves 20310 ",null,"163200 - Capital Assets Intangibles ",null,null,"200920 - Mail Sorting Services ",null,null,null,null,null,null,"AR60380023 - Center for Urban Horticulture Services "]
[null,null,null,"10707 - UCDE Rates 20329 20325 ",null,"163300 - Capital Assets Libraries and Collections ",null,null,"200921 - Mobility Assistance Shuttles ",null,null,null,null,null,null,"GLCES00001 - CES SWORD AND SANDALS "]
[null,null,null,"10708 - UNEX Campus ICR Transfers 20397 ",null,"163400 - Capital Assets Special Collections ",null,null,"200922 - Central Heating Commodities and Services ",null,null,null,null,null,null,"GLCES00002 - CES 11TH INTL SYMPOSIUM ON LEAF SURFACE "]
[null,null,null,"10709 - VM Extension ",null,"163500 - Capital Assets Construction In Progress ",null,null,"200923 - Water Commodities and Services ",null,null,null,null,null,null,"GLCES00003 - CES FOUNDATIONS OF PROCESS ANALYTICS "]
[null,null,null,"10950 - Fed ContractandGrant OH 69750 ",null,"165000 - Accumulated Depreciation Parking Lot Improvements ",null,null,"200929 - Uniforms ",null,null,null,null,null,null,"GLCES00004 - CES BLOOD DRIVE VITALANT "]
[null,null,null,"10951 - PreOffTheTop Garamendi ICR 69753 ",null,"165100 - Accumulated Depreciation Other Land Improvements ",null,null,"200930 - Foods for Health Institute ",null,null,null,null,null,null,"GLCES00005 - CES LACOMMARE PIPA TOUR OF GAZEBO PCL "]
[null,null,null,"11000 - HousingandDining 70000 ",null,"165500 - Accumulated Depreciation Infrastructure ",null,null,"200931 - Boarding ",null,null,null,null,null,null,"GLCES00006 - CES LILAHS BAT MITZVAH "]
[null,null,null,"11001 - VCSA Housing P3 74161 ",null,"166000 - Accumulated Depreciation Buildings and Improvements Svc Concession Arrangements ",null,null,"200932 - Artist Fees ",null,null,null,null,null,null,"GLCES00007 - CES TRANSLATIONAL ESI CONFERENCE "]
[null,null,null,"11002 - UC Housing System Reserves 70300 ",null,"166100 - Accumulated Depreciation Student Housing Facilities ",null,null,"200933 - Artist Lodging ",null,null,null,null,null,null,"GLCES00008 - CES FPSAC 2023 "]
[null,null,null,"11003 - UCOP Campus Housing Assistance 70301 ",null,"166200 - Accumulated Depreciation Parking Structures ",null,null,"200935 - Art Models ",null,null,null,null,null,null,"GLCES00009 - CES CITY OF DAVIS CAMP PUTAH DAY CAMP "]
[null,null,null,"11004 - Bodega Residence Hall 70160 ",null,"166300 - Accumulated Depreciation Leasehold Improvement ",null,null,"200936 - Print Paint and Draw Shop ",null,null,null,null,null,null,"GLCES00010 - CES MATT AND LIZS WEDDING "]
[null,null,null,"11005 - VM TeachingandResearch Center Housing Income 73240 ",null,"166400 - Accumulated Depreciation Other Buildings and Improvement ",null,null,"200937 - Ceramics Shop ",null,null,null,null,null,null,"GLCES00011 - CES BURNETT DUTTON WEDDING "]
[null,null,null,"11006 - Commissary Services 73171 ",null,"166900 - Accumulated Depreciation General Improvements ",null,null,"200938 - Photo Video Shop ",null,null,null,null,null,null,"GLCES00012 - CES KOINONIA CAMPUS INTEREST GROUP "]
[null,null,null,"11010 - University Airport 73300 ",null,"167000 - Accumulated Depreciation Equipment ",null,null,"200939 - Sculpture Shop ",null,null,null,null,null,null,"GLCES00013 - CES Emergency Medicine Hot Topics "]
[null,null,null,"11020 - ASUCD Aux Enterprises 74008 ",null,"167002 - Accumulated Depreciation UCDMC Only Furniture and Minor Equip ",null,null,"200940 - Wood and Metal Shops ",null,null,null,null,null,null,"GLCES00014 - 6TH ANNUAL STAFF BREWING COMPETITIO "]
[null,null,null,"11021 - ASUCD Unitrans Operations 74009 ",null,"167100 - Accumulated Depreciation Software Greater than 5M ",null,null,"200941 - Computer Lab ",null,null,null,null,null,null,"GLCES00015 - INFECTIOUS DISEASES CONFERENCE "]
[null,null,null,"11030 - Parking Operations 72160 ",null,"167150 - Accumulated Depreciation Software Less Than 5M ",null,null,"200942 - Tool Room ",null,null,null,null,null,null,"GLCES00016 - 5TH INTERNATIONAL CONF OF FMR1 "]
[null,null,null,"11031 - Bicycle Operations 72100 ",null,"167200 - Accumulated Depreciation Intangibles ",null,null,"200943 - Learning Management Systems ",null,null,null,null,null,null,"GLCES00017 - XVI ICSP "]
[null,null,null,"11040 - Retail Major Maintenance 70522 ",null,"167300 - Accumulated Depreciation Libraries and Collections ",null,null,"200944 - Instructional Design Services ",null,null,null,null,null,null,"GLCES00018 - VARSITY SPIRIT CHEER DANCE CAMP "]
[null,null,null,"11041 - UCD Bookstore Equitable Access Fund 73200 ",null,"170000 - Other Receivables Noncurrent Portion ",null,null,"200945 - Lecture Capture ",null,null,null,null,null,null,"GLCES00019 - USTA FALL JR TEAM TENNIS SECTIONALS "]
[null,null,null,"11042 - Retail Services 73160 ",null,"170250 - Lease Receivables Non Current ",null,null,"200946 - Plagiarism Checker ",null,null,null,null,null,null,"GLCES00020 - A GRAND AFFAIR RENTALS "]
[null,null,null,"11043 - UC Davis Stores 72130 ",null,"171000 - Investments In Joint Ventures LLNS ",null,null,"200947 - Proctoring System ",null,null,null,null,null,null,"GLCES00021 - TERPNET 2023 "]
[null,null,null,"11050 - Intercollegiate Athletics 64400 ",null,"171100 - Investment In Joint Ventures LANS ",null,null,"200948 - STINO Student Information System ",null,null,null,null,null,null,"GLCES00022 - BITS AND BITES "]
[null,null,null,"11051 - ICA Sports Camp 64404 ",null,"171200 - Investment In Joint Ventures ",null,null,"200949 - Video Services Tracking ",null,null,null,null,null,null,"GLCES00023 - PSYCHOTIC DISORDERS 2023 "]
[null,null,null,"12000 - UCDMC Hospital Income 63000 ",null,"171300 - Pollution Remediation Obligation Recovery Receivables Noncurrent Portion ",null,null,"200950 - ESA Operations Overhead ",null,null,null,null,null,null,"GLCES00024 - EMERGENCY MEDICINE UPDATE HOT "]
[null,null,null,"12001 - UCDMC 63001 ",null,"171400 - Beneficial Interest Receivable Split Interest Agreements ",null,null,"200951 - Gradescope ",null,null,null,null,null,null,"GLCES00025 - 40TH ANNUAL NPRC SYMPOSIUM "]
[null,null,null,"12002 - UCDMC Volunteers Income Fund 63040 ",null,"171401 - Split Interest Agreement Changes in FV of Investment ",null,null,"200952 - ESA Advising ",null,null,null,null,null,null,"GLCES00026 - 2023 SUMMER TAX INSTITUTE "]
[null,null,null,"12003 - SMC UCD Clinical Teaching Support 63990 ",null,"171402 - Split Interest Agreement Funds held in Trust by Others ",null,null,"200953 - ESA Graduate Studies ",null,null,null,null,null,null,"GLCES00027 - EPA PREP OCTOBER 2023 "]
[null,null,null,"12004 - SalesandServices Hospitals Summary 63999 ",null,"171500 - Deferred Cost of Bond Issuance Noncurrent ",null,null,"200954 - Childcare ",null,null,null,null,null,null,"GLCES00028 - IBD PROFESSIONAL EDUCATION CON "]
[null,null,null,"12005 - UCDMC Vocational Rehabilitation Income 66107 ",null,"171600 - Othe Noncurrent and Long Term Assets ",null,null,"200955 - Biological Safety ",null,null,null,null,null,null,"GLCES00029 - GRADUATE AND LAW SCHOOL FAIR "]
[null,null,null,"12010 - VMTH Income 64100 ",null,"190000 - Deferred Outflow Debt Refunding ",null,null,"200956 - Hazardous Waste ",null,null,null,null,null,null,"GLCES00030 - HORSE DAY 2023 "]
[null,null,null,"12011 - VMTH San Diego 64101 ",null,"190100 - Deferred Outflow Net Pension Liability ",null,null,"200957 - Environmental Compliance ",null,null,null,null,null,null,"GLCES00031 - ANESTHESIOLOGY UPDATE "]
[null,null,null,"12012 - Vet Med Equine Clinical Income ",null,"190200 - Deferred Outflows Net Retiree Health Benefits Liability ",null,null,"200959 - Lab Safety ",null,null,null,null,null,null,"GLCES00032 - GERMAN AM VERTICAL SOLAR AG CONF "]
[null,null,null,"12100 - Sales and Services Rate Based ",null,"190300 - Deferred Outflows Interest Rate Swap Agreements ",null,null,"200960 - Research Safety ",null,null,null,null,null,null,"GLCES00033 - UC SYSTEMWIDE MARKETING MEET "]
[null,null,null,"12101 - Sales and Services NonRate Activities ",null,"190400 - Deferred Outflows Asset Retirement Obligation ",null,null,"200961 - Industrial Hygiene Safety ",null,null,null,null,null,null,"GLCES00034 - VITALANT BLOOD DRIVE OCT23 MAY24 "]
[null,null,null,"12102 - California SW 4H Clubs 66102 ",null,"190500 - Deferred Outflows Sale Leaseback Agreements ",null,null,"200962 - Industrial Safety ",null,null,null,null,null,null,"GLCES00035 - 2023 INFORMATION SECURITY SYM "]
[null,null,null,"12104 - Summer Orientation 66520 ",null,"190900 - Deferred Outflows Other ",null,null,"200963 - Pest Management ",null,null,null,null,null,null,"GLCES00036 - PRE HEALTH CONFERENCE 2023 "]
[null,null,null,"12105 - Cosmos Program 66525 ",null,"200000 - Accounts Payable ",null,null,"200964 - Indirect Cost Logistics INDLOG ",null,null,null,null,null,null,"GLCES00037 - PRE HEALTH CONFERENCE 2023 GRP "]
[null,null,null,"12106 - Inventory Clearing Rate Based ",null,"200001 - Other Accounts Payable Med Center ",null,null,"200976 - Strike Team ",null,null,null,null,null,null,"GLCES00038 - PRE HEALTH CONF 2023 VENDORS "]
[null,null,null,"12107 - CAHFS Diagnostic Testing ",null,"200002 - Sales Tax Payable State ",null,null,"200977 - Patrol ",null,null,null,null,null,null,"GLCES00039 - CAL DAIRY SUSTAINABILITY SUMMIT "]
[null,null,null,"12110 - Primate Perdiem Program Income ",null,"200003 - Sales Tax Payable Yolo County ",null,null,"200978 - Safe Ride Services ",null,null,null,null,null,null,"GLCES00040 - USTA NORCAL JUNIOR TRAINING CAMP "]
[null,null,null,"12111 - Primate Core Services Income ",null,"200004 - Sales Tax Payable Sacramento County ",null,null,"200979 - Internal Assessment ",null,null,null,null,null,null,"GLCES00041 - HUMAN GENOMICS SYMPOSIUM "]
[null,null,null,"12112 - Primate Services Program Income ",null,"200005 - Sales Tax Payable ANR Sales ",null,null,"200980 - Pool Services ",null,null,null,null,null,null,"GLCES00042 - BIOINFORMATICS MAY DEC 2023 "]
[null,null,null,"12113 - Primate Animal Sales ",null,"200006 - Use Tax Payable County California ",null,null,"200981 - Hyatt ",null,null,null,null,null,null,"GLCES00043 - ULTRASOUND UPDATE VIRTUAL CONF "]
[null,null,null,"12114 - Primate IDC Program Income ",null,"200007 - Use Tax Payable State California ",null,null,"200982 - West Village ",null,null,null,null,null,null,"GLCES00044 - GURU GOBIND SINGH FIELD HOCKEY TOUR "]
[null,null,null,"12115 - Primate Program Income Reserve ",null,"200008 - Use Tax Payable City California ",null,null,"200983 - Decentralized Campus Control Account ",null,null,null,null,null,null,"GLCES00045 - GLOBAL LEARNING FAIR "]
[null,null,null,"12120 - Program Income Rates ",null,"200009 - Use Tax Payable District California ",null,null,"200984 - LUPE SOCIAL JUSTICE SCHOLARSHIP ",null,null,null,null,null,null,"GLCES00046 - PSYMCA 2023 "]
[null,null,null,"13C00 - CAAA Operations ",null,"200010 - Use Tax Payable Washington State ",null,null,"200985 - UCD ANNUAL FUND SCHOLARSHIP ",null,null,null,null,null,null,"GLCES00047 - WELLS YAMAMOTO WEDDING "]
[null,null,null,"13F00 - Foundation Operations ",null,"200011 - Sales Use Tax Refunds ",null,null,"200986 - HIGH ACHIEVING UNREPRESENTED AWARDS ",null,null,null,null,null,null,"GLCES00048 - WHEELHOUSE 2024 "]
[null,null,null,"13U00 - COFI University Common Funds 99100 ",null,"200012 - Withholding Tax Federal Non Resident Aliens ",null,null,"200987 - FLOSSFEDER SCHOLARSHIP FOR GRAD STUDENTS ",null,null,null,null,null,null,"GLCES00049 - WHEELHOUSE ADVANCING LEADERS "]
[null,null,null,"13U01 - COFI University Common Funds Development 99200 ",null,"200013 - Withholding Tax California Vendors ",null,null,"200988 - EDWARD F KRAFT PRIZE ",null,null,null,null,null,null,"GLCES00050 - LONDON FARB WEDDING "]
[null,null,null,"13U02 - COFI University Common Funds AES19900 99300 ",null,"200014 - Withholding 1099 Taxes ",null,null,"200989 - Private Tours ",null,null,null,null,null,null,"GLCES00051 - AVEVA SELECT CALIFORNIA WORKSHOP "]
[null,null,null,"13U10 - Unrestricted Campus Control Fund 00200 ",null,"200015 - Withholding Levy Taxes ",null,null,"200990 - Provost Award ",null,null,null,null,null,null,"GLCES00052 - W COLORECTAL CANCER CONSORTIUM CONF "]
[null,null,null,"99U99 - Error Clearing Fund ",null,"201000 - Accounts Payable Capital CIP ",null,null,"200991 - Cleft and Craniofacial Program ",null,null,null,null,null,null,"GLCES00053 - GRACEPOINT SUNDAY WORSHIP SERVICE "]
[null,null,null,"13U20 - Unrestricted Campus Funds ",null,"202000 - Medical Specialists Fees Payable ",null,null,"200992 - Central Cooling Commodities and Services ",null,null,null,null,null,null,"GLCES00054 - AQM FALL PRACTICES 2023 "]
[null,null,null,"13U21 - Howard Hughes Medical Institute HHMI ",null,"202220 - Accrued AP Related Taxes Payable ",null,null,"200993 - BME TEAM 3DMATER ",null,null,null,null,null,null,"GLCES00055 - DARTS FALL PRACTICES 2023 "]
[null,null,null,"13U22 - University Patent Income Fund 68800 ",null,"204000 - Investment Payables Investment Purchases ",null,null,"200994 - BME TEAM 3DPROTO ",null,null,null,null,null,null,"GLCES00056 - DWPC FALL PRACTICES 2023 "]
[null,null,null,"13U23 - User FeesLandfill Closure Costs 66059 ",null,"204100 - Investment Payables Settlements ",null,null,"200995 - BME TEAM RAWMATE ",null,null,null,null,null,null,"GLCES00057 - DAVIS DIVERS FALL PRACTICES 23 "]
[null,null,null,"13U24 - Chan Office Trademark Income 66100 ",null,"205000 - Payables Commercial Paper Purchase ",null,null,"200996 - BME TEAM PREMMAC ",null,null,null,null,null,null,"GLCES00058 - HEALTH OF WOMEN CONF 2024 "]
[null,null,null,"13U25 - Settlements ",null,"205100 - Commercial Paper Settlement Payable ",null,null,"200997 - BME TEAM PREMLAS ",null,null,null,null,null,null,"GLCES00059 - EMERGENCY MEDICINE WINTER CONF "]
[null,null,null,"13U26 - Endowment Admin Cost Recovery Fee 66110 ",null,"210000 - Salaries and Wages Payable ",null,null,"200998 - BME TEAM PREMPCB ",null,null,null,null,null,null,"GLCES00060 - WELSH WEDDING "]
[null,null,null,"13U27 - Wiche Student Exchange Income 66120 ",null,"210001 - Accrued Salaries and Wages ",null,null,"200999 - BME TEAM PRLABOR ",null,null,null,null,null,null,"GLCES00061 - WHEELHOUSE INST ON LEADERSHIP "]
[null,null,null,"13U28 - Aggie Square Revenue 66124 ",null,"210015 - Accrued NRST Scholarship Withholding ",null,null,"203000 - BME TEAM STLABOR ",null,null,null,null,null,null,"GLCES00062 - UC DAVIS HEART FAILURE SUMMIT 2023 "]
[null,null,null,"13U29 - Departmental Assessments ",null,"210016 - Accrued NRA Scholarship Withholding ",null,null,"203001 - BME TEAM UALABOR ",null,null,null,null,null,null,"GLCES00063 - UC DAVIS 2023 SUPPLIER SHOW "]
[null,null,null,"13U30 - Departmental STIP ",null,"210500 - Accrued Incentive Plans Liability ",null,null,"203002 - BME TEAM PREMC3D ",null,null,null,null,null,null,"GLCES00064 - DAVIS FOREST SCHOOL PROGRAM "]
[null,null,null,"13U31 - UCRS Funds 69700 ",null,"211000 - UCRP Employee Retirement Plan Liability ",null,null,"201000 - ADMAN ",null,null,null,null,null,null,"GLCES00065 - KAISER PERMANENTE BIOETHICS CONF "]
[null,null,null,"13U32 - Endowment Stip Income Fund 67700 ",null,"211100 - UCRP Employer Retirement Plan Liability ",null,null,"201001 - Davis Faculty Association ",null,null,null,null,null,null,"GLCES00066 - FALL WINTER SPRING PROGRAM "]
[null,null,null,"13U33 - Student Aff Law Student Health Center Fe 67719 ",null,"211200 - UCRP Employee Retirement Plan Contributions ",null,null,"201002 - Staff Diversity Admin Advisory Committee ",null,null,null,null,null,null,"GLCES00067 - UCD WOMEN IN TECHNOLOGY "]
[null,null,null,"13U34 - UC Path Default 67721 ",null,"211300 - UCRP Employer Retirement Plan Contributions ",null,null,"201003 - Staff Assembly ",null,null,null,null,null,null,"GLCES00068 - CA EXTREME PRECIPITATION SYMPOSIUM "]
[null,null,null,"13U35 - General Obligation Bond Income 67923 ",null,"211400 - UCRP Supplement Choice Employee Retirement Plan Liability ",null,null,"201004 - African American Faculty and Staff Assoc ",null,null,null,null,null,null,"GLCES00069 - CIF SAC JOAQUIN SECTION BASKETBALL "]
[null,null,null,"13U36 - Master Food Preserver 68023 ",null,"211500 - UCRP Supplement Choice Employer Retirement Plan Liability ",null,null,"201005 - Chancellor Committee on LGBTQIA ",null,null,null,null,null,null,"GLCES00070 - CITY OF DAVIS CAMPUS PUTAH DAY CAMP "]
[null,null,null,"13U37 - 4H Program Fees 68052 ",null,"212000 - Employee Retirement Health Benefit Plan Liability OPEB ",null,null,"201006 - Disabilities Issues Administrative Advisory ",null,null,null,null,null,null,"GLCES00071 - INFECTIOUS DISEASES "]
[null,null,null,"13U38 - Master Gardener 68059 ",null,"212100 - Employer Retirement Health Benefit Plan Liability OPEB ",null,null,"201007 - Asian Pacific American Systemwide Alliance ",null,null,null,null,null,null,"GLCES00072 - KAISER EARLY START RETREAT "]
[null,null,null,"13U39 - 4H Non Program Fees 68082 ",null,"212200 - Employee Retirement Health Benefit Plan Contributions OPEB ",null,null,"201008 - Latinx Staff and Faculty Association ",null,null,null,null,null,null,"GLCES00073 - WORD OF LIFE WEDNESDAYS "]
[null,null,null,"13U40 - DANR North Butte County Income 68104 ",null,"212300 - Employer Retirement Health Benefit Plan Contribution ",null,null,"201009 - Native American Faculty and Staff Association ",null,null,null,null,null,null,"GLCES00074 - SOM RESEARCH CELEBRATION EVENT "]
[null,null,null,"13U41 - Ca Light Tech Ctr Cltc Membership Fee 68140 ",null,"212310 - UCRP Contributions to UC Retiree Health Benefit Plan ",null,null,"201010 - Status of Women at Davis Admin Adry ",null,null,null,null,null,null,"GLCES00075 - HEART RESEARCH DAY 2023 "]
[null,null,null,"13U42 - Short Term Program Abroad Income 68180 ",null,"213000 - Fed Income Tax Withheld ",null,null,"201011 - Veteran Constituency Group ",null,null,null,null,null,null,"GLCES00076 - NEXT LEVEL FLAG FOOTBALL "]
[null,null,null,"13U43 - Sale Surplus Property Income 68310 ",null,"213001 - Accrued Income Tax Withholding Federal Resident ",null,null,"201012 - Entertainment Council ",null,null,null,null,null,null,"GLCES00077 - GLOBAL LEARNING CONFERENCE EVENT "]
[null,null,null,"13U44 - Sale Of Surplus PropertyVdls Inc 68314 ",null,"213002 - Accrued Income Tax Withholdings Federal Nonresident ",null,null,"201013 - Institutional Review Board ",null,null,null,null,null,null,"GLCES00078 - EARLY PSYCHOSIS CONFERENCE "]
[null,null,null,"13U45 - Sales Of Surplus Library Materials 68315 ",null,"213100 - Accrued Income Tax Withholdings Social Security ",null,null,"201015 - Asian Pacific American Systemwide Alliance APASA ",null,null,null,null,null,null,"GLCES00079 - CHEERSPORT DAVIS CLASSIC "]
[null,null,null,"13U46 - Its Nextsteps Membership 68610 ",null,"213200 - Accrued Income Tax Withholdings State ",null,null,"201016 - LatinX Staff and Faculty Association LSFA ",null,null,null,null,null,null,"GLCES00080 - VARSITY SPIRIT CHEER CAMP 2024 1 "]
[null,null,null,"13U47 - Campus Royalty and Copyright Income 68700 ",null,"213300 - Accrued Income Tax Withholdings Unemployment ",null,null,"201017 - PRIDE LGBTQ ",null,null,null,null,null,null,"GLCES00081 - VARSITY SPIRIT CHEER CAMP 2024 2 "]
[null,null,null,"13U48 - Capital Equipment Financing Loans 68900 ",null,"213400 - Accrued Income Tax Withholdings and Deductions Other ",null,null,"201018 - Veterans Employee Association VEA ",null,null,null,null,null,null,"GLCES00082 - SOM RESEARCH CELEBRATION "]
[null,null,null,"13U49 - Consol Benefit Central Accts 69001 ",null,"213700 - Accrued Vacation ",null,null,"201019 - DiversABILITIES ",null,null,null,null,null,null,"GLCES00083 - 13TH ANNUAL UCD EQUITY SUMMIT "]
[null,null,null,"13U50 - UC Path Assessment Fee 69080 ",null,"213701 - Accrued Holiday ",null,null,"201020 - CGPSA Chancellors Grad and Prof Student Advisory Board ",null,null,null,null,null,null,"GLCES00084 - DAVIS SR HIGH SCHOOL GRAD 2024 "]
[null,null,null,"13U51 - UCOP Systemwide Assessment 69085 ",null,"213702 - Accrued CTO ",null,null,"201021 - Graduate Studies Advisory Committee GSAC ",null,null,null,null,null,null,"GLCES00085 - AAUW CA TECH TREK "]
[null,null,null,"13U52 - Cws OffCampus Emplyr Admin Fees 69200 ",null,"213800 - Termination Benefits Payables ",null,null,"201022 - Grad Student Advisor Dean of Grad Studies Chancellor GSADC ",null,null,null,null,null,null,"GLCES00086 - GLOBAL LEARNING CONFERENCE "]
[null,null,null,"13U53 - Environmental Impact Reports Income 69235 ",null,"213920 - Accrued GSR Health Remission Payable ",null,null,"201023 - Grad Studies Graduate Students of Color GSOC ",null,null,null,null,null,null,"GLCES00087 - GRIDIRON YOUTH FLAG FOOTBALL "]
[null,null,null,"13U54 - Ctr For Health QualityandInnov Chqi 69322 ",null,"213921 - Accrued Grad Student NRST Remission Payable ",null,null,"201024 - Grad Studies Postdoctoral Scholars Association PSA ",null,null,null,null,null,null,"GLCES00088 - SINGLE CELL RNASEQ SPAT TRANS "]
[null,null,null,"13U55 - Non Univ Differential Income 69500 ",null,"213922 - Accrued Tuition Remission ",null,null,"201025 - Grad Studies Graduate Center at Walker Hall ",null,null,null,null,null,null,"GLCES00089 - 2023 DONKEY WELFARE SYMPOSIUM "]
[null,null,null,"13U56 - Campus Gift Fee Income 69510 ",null,"213923 - Accrued Fee Remission ",null,null,"201500 - Development ",null,null,null,null,null,null,"GLCES00090 - DYNAMICS DAYS 2024 "]
[null,null,null,"13U57 - ORMP Support 69550 ",null,"213924 - Accrued CBR Rate ",null,null,"201501 - Davis Chancellors Club ",null,null,null,null,null,null,"GLCES00091 - CELEBRATION OF LIFE JOHANNES STARK "]
[null,null,null,"13U58 - UCD Education and Research Fund 69640 ",null,"213925 - UCRS Supplemental Interest ",null,null,"201502 - Direct Mail ",null,null,null,null,null,null,"GLCES00092 - ICDDPS 5 "]
[null,null,null,"13U59 - UCOP Alloc Of Prior Yr Balances 69666 ",null,"213926 - Accrued Other Employee Benefits ",null,null,"201503 - Telephone Outreach ",null,null,null,null,null,null,"GLCES00093 - NAPA EYE 2024 "]
[null,null,null,"13U60 - Employee Benefits Admin Fund 69740 ",null,"213930 - Accrued 415M ",null,null,"201504 - Employee Giving ",null,null,null,null,null,null,"GLCES00094 - COMP COURSE FLOW CYTOMETRY "]
[null,null,null,"13U61 - UC Lab Fee Research Prog UCHRI 69763 ",null,"220000 - Unearned Contracts and Grants Revenue Federal Grants ",null,null,"201505 - Give Day ",null,null,null,null,null,null,"GLCES00095 - THE INST FOR ADVANCED STUDIES "]
[null,null,null,"13U62 - UCOP Be Smart About Safety 69790 ",null,"220100 - Unearned Contracts and Grants Revenue State and Local ",null,null,"201506 - Parent Giving ",null,null,null,null,null,null,"GLCES00096 - JOANN LARKEY CELEBRATION OF LIFE "]
[null,null,null,"13U63 - UCOP Workers Comp BSAS Retrospec Prem 69791 ",null,"220200 - Unearned Revenue State Hospital Fee Grants For Medical Centers ",null,null,"201507 - Student Foundation ",null,null,null,null,null,null,"GLCES00097 - SEMINAR SERIES I4CI THOUGHT CONS "]
[null,null,null,"13U64 - UCOP Gen Liability BSAS 69793 ",null,"221000 - Deferred Revenue Tuition and Fees ",null,null,"201508 - Gift Processing ",null,null,null,null,null,null,"GLCES00098 - DAVIS YOUTH SOFTBALL ASSOC BATTING "]
[null,null,null,"13U65 - UCOP Emp Liability BSAS 69794 ",null,"222000 - Deferred Revenue Auxiliaries ",null,null,"201509 - Patent ",null,null,null,null,null,null,"GLCES00099 - SF KOREAN YOUTH CAMP "]
[null,null,null,"13U66 - UCOP Auto BSAS 69795 ",null,"223000 - Other Unearned Revenue ",null,null,"201510 - Donor Gifts ",null,null,null,null,null,null,"GLCES00100 - 2024 Summer Tax Institute "]
[null,null,null,"13U67 - UCOP Prop SelfIns BSAS 69796 ",null,"223001 - EPP Enhances Payment Program ",null,null,"201511 - Donor Travel ",null,null,null,null,null,null,"GLCES00101 - Parkinsons Disease Update 2024 "]
[null,null,null,"13U68 - Incentive PaymentsandVendor Rebates 69820 69926 69927 ",null,"223002 - Unearned Patient Prepay ",null,null,"201512 - Recognition and Stewardship Projects ",null,null,null,null,null,null,"GLCES00102 - National Forest Health Monitoring Work Conference "]
[null,null,null,"13U69 - Internal Borrowing 69233 69821 69822 ",null,"223003 - QIP Quality Improvement Program ",null,null,"201513 - Faculty/Staff Stewardship Award ",null,null,null,null,null,null,"GLCES00103 - Davis Divers Winter Practices 2024 "]
[null,null,null,"13U71 - MNRC Decommission 69824 ",null,"224000 - Collateral Held For Security Lending ",null,null,"201514 - Student Thank-a-Thon ",null,null,null,null,null,null,"GLCES00104 - GGSS Round Table 2024 "]
[null,null,null,"13U72 - Campus Overhead Funds 69825 ",null,"224200 - Contra For Collateral Held For Security Lending Foundations ",null,null,"201515 - Endowment Reporting ",null,null,null,null,null,null,"GLCES00105 - Association of International Education Administrators Thematic Forum "]
[null,null,null,"13U73 - GenandEmp Prac Liab Rechg 69826 ",null,"225000 - Commercial Paper Capital ",null,null,"201516 - Regional Events ",null,null,null,null,null,null,"GLCES00106 - Emergency Medicine Summer Conference "]
[null,null,null,"13U74 - University Preferred Partnership Program 69828 ",null,"225100 - Commercial Pape Noncapital ",null,null,"201517 - California Events ",null,null,null,null,null,null,"GLCES00107 - GEM5 Bootcamp "]
[null,null,null,"13U75 - Campus Investment Rebalancing 69830 ",null,"226000 - General Revenue Bonds Capital Current Portion ",null,null,"201518 - Campus Stewardship Events ",null,null,null,null,null,null,"GLCES00108 - Emergency Medicine Hot Topics "]
[null,null,null,"13U76 - Endowment Infrastructure Fee 69831 ",null,"226050 - General Revenue Bonds Non Capital Current ",null,null,"201519 - Personalized Stewardship ",null,null,null,null,null,null,"GLCES00109 - Ag and Applied Econ Assoc Early Career Workshop "]
[null,null,null,"13U77 - BSAS Reallocation 69906 ",null,"226100 - Limited Project Revenue Bond Current Portion ",null,null,"201520 - Stewardship Communications Program ",null,null,null,null,null,null,"GLCMF00000 - ARE 293 Analysis of California Agriculture Resources "]
[null,null,null,"13U78 - UC Path Implementation 69909 ",null,"226200 - MED Center Pooled Revenue Bonds Capital Current ",null,null,"201521 - Principal Giving Stewardship Events ",null,null,null,null,null,null,"GLCMF00002 - ANG 111 Molecular Biology Laboratory Techniques "]
[null,null,null,"13U79 - Debt Service Recharge 69910 ",null,"226201 - POOLED REVENUE BONDS 2013 J SERIES ",null,null,"201522 - Endowed Chair Celebrations ",null,null,null,null,null,null,"GLCMF00003 - ANS 1 Domestic Animals People "]
[null,null,null,"13U80 - Pollution Remediation 69987 ",null,"226202 - POOLED REVENUE BONDS 2016 L SERIES ",null,null,"201523 - Philanthropic Building Project Events ",null,null,null,null,null,null,"GLCMF00004 - ANS 2 Introductory Animal Science "]
[null,null,null,"13U81 - UCDMC Trauma Program Grant 69988 ",null,"226203 - POOLED REVENUE BONDS 2016 M SERIES ",null,null,"201524 - Teaching Prize ",null,null,null,null,null,null,"GLCMF00005 - ANS 21 Livestock Dairy Cattle Judging "]
[null,null,null,"13U82 - UCDMC Admin Recharges 69990 12101 ",null,"226204 - POOLED REVENUE BONDS 2017 AY SERIES ",null,null,"201525 - International Development Events ",null,null,null,null,null,null,"GLCMF00006 - ANS 041L Domestic Animal Production Laboratory "]
[null,null,null,"13U83 - Campus Assessment Fund 69993 ",null,"226205 - POOLED REVENUE BONDS 2020 N SERIES ",null,null,"201526 - Development Marketing Outsourcing ",null,null,null,null,null,null,"GLCMF00007 - ANS 049F Animal Management Practices "]
[null,null,null,"13U84 - Pepsi Beverages Sponsorship Agreement 73210 ",null,"226206 - 2013 J DEFERRED PREMIUM ",null,null,"201527 - Development Marketing Advertising ",null,null,null,null,null,null,"GLCMF00008 - ANS 106 Domestic Animal Behavior Laboratory "]
[null,null,null,"13U85 - Vending Concession Fund 73305 ",null,"226207 - 2016 L DEFERRED PREMIUM ",null,null,"201528 - CRM Campaign ",null,null,null,null,null,null,"GLCMF00009 - ANS 107 Zoo Biology Research "]
[null,null,null,"13U86 - Property Management 74226 74227 74228 74229 ",null,"226208 - 2017 AY DEFERRED PREMIUM ",null,null,"201529 - Collateral ",null,null,null,null,null,null,"GLCMF00010 - ANS 115 Advanced Horse Production "]
[null,null,null,"14000 - Grad Studies Tuition Income 20094 ",null,"226209 - Current Portion of Long term Debt 22P ",null,null,"201530 - Development Marketing Internal Philanthropy Initiatives ",null,null,null,null,null,null,"GLCMF00011 - ANS 120L Meat Science Laboratory "]
[null,null,null,"14001 - University Tuition Income 20095 ",null,"226210 - Current Portion of Long term Debt 22Q ",null,null,"201531 - Prospect Research Resources ",null,null,null,null,null,null,"GLCMF00012 - ANS 124 Lactation "]
[null,null,null,"14002 - Ed FeeGeneral Fund Fee OffsetSaa 20096 ",null,"226300 - Blended Component Unit Bonds Third Party Revenue Bond Current ",null,null,"201532 - Planned Giving Mailings - Buckslips ",null,null,null,null,null,null,"GLCMF00013 - ANS 129 Environmental Stewardship in Animal Production Systems "]
[null,null,null,"14003 - Educational Fee GF Offset 20097 ",null,"226400 - Capital Financing Lease Obligations ",null,null,"201533 - Planned Giving Mailings - Retiree One Pager ",null,null,null,null,null,null,"GLCMF00014 - ANS 130 Endocrinology Laboratory "]
[null,null,null,"14100 - School Of Medicine Special Student 20026 ",null,"226410 - Finance Lease Obligation Current Portion ",null,null,"201534 - Planned Giving Stelter Program ",null,null,null,null,null,null,"GLCMF00015 - ANS 132 Microbiology of Animal Systems Laboratory "]
[null,null,null,"14102 - LawMedicine Special Fee 20221 ",null,"226420 - Lease Purchase Option Liability Current Portion ",null,null,"201535 - Donor Stewardship and Recognition ",null,null,null,null,null,null,"GLCMF00016 - ANS 133 Animal Cell Culture Laboratory "]
[null,null,null,"14104 - Professional Fee Som Public Health 20223 ",null,"226430 - Subscription Liability SBITA Current Portion ",null,null,"202010 - Faculty Research ",null,null,null,null,null,null,"GLCMF00017 - ANS 134 Animal Cell Culture Laboratory "]
[null,null,null,"14105 - Professional Fee School Of Law Special 20225 ",null,"226500 - Other Borrowings Current Portion of Long Term Debt ",null,null,"202011 - Faculty Academic Enrichment Prof Develop ",null,null,null,null,null,null,"GLCMF00018 - ANS 135 Production Animal Laboratory "]
[null,null,null,"14106 - Professional FeeSchool Of Medicine 20226 ",null,"226600 - GRB Unamortized Bond Prem Current Portion of Long Term Debt ",null,null,"202012 - Faculty Start Up ",null,null,null,null,null,null,"GLCMF00019 - ANS 136 Techniques Practices of Fish Cultures "]
[null,null,null,"14107 - Professional Fee School Of Vet Med 20229 ",null,"226630 - LRPB Unamortized Bond Premiums Current Portion of Long Term Debt ",null,null,"202013 - Leadership Support eg Dept Chair ",null,null,null,null,null,null,"GLCMF00020 - ANS 137 Techniques and Practices of Avian Culture "]
[null,null,null,"14108 - Professional Fee School Of Vet Med DVM 20230 ",null,"226650 - MCPRB Unamortized Bond Premiums Current Portion of Long Term Debt ",null,null,"202014 - Faculty Bridge Funding ",null,null,null,null,null,null,"GLCMF00021 - ANS 138 Advanced Animal Biochemical Techniques "]
[null,null,null,"14109 - Professional FeeGrad Sch Of Management 20231 ",null,"226651 - Deferred Prem 22P Current Portion ",null,null,"202015 - Students Support Provisions ",null,null,null,null,null,null,"GLCMF00022 - ANS 139 Experimental Animal Physiology "]
[null,null,null,"14111 - Professional Fee School Of Nursing 20233 ",null,"226670 - 3rd Party Unamortized Bond Premiums Current Portion of Long Term Debt ",null,null,"202016 - Commitments ",null,null,null,null,null,null,"GLCMF00023 - ANS 140 Management of Laboratory Animals "]
[null,null,null,"14112 - Professional Fee Education Leadership 20240 ",null,"226700 - Bank Lines of Credit Current Portion of Debt ",null,null,"202017 - ICR Return ",null,null,null,null,null,null,"GLCMF00024 - ANS 143 Pig Poultry Care Management "]
[null,null,null,"14113 - Professional FeeSom Health Informatics 20242 ",null,"226800 - Direct Borrowings and Direct Placements Long Term Debt ",null,null,"202018 - Faculty Summer Sessions ",null,null,null,null,null,null,"GLCMF00025 - ANS 144 Beef Cattle Sheep Production "]
[null,null,null,"14117 - Professional Fee MS Physician Assistant Study ",null,"227000 - Agency Funds Held for Others ",null,null,"202019 - Academic Senate Grants ",null,null,null,null,null,null,"GLCMF00026 - ANS 146 Dairy Cattle Production "]
[null,null,null,"14118 - Psychiatric Mental Hlth Nurse PMHNP 20238 ",null,"227001 - Agency Funds Chargebacks ",null,null,"202020 - Provost Funds ",null,null,null,null,null,null,"GLCMF00027 - ANS 160A Stress and Reproduction I "]
[null,null,null,"14300 - SSDP Nursing Masters Program Mepn 20222 ",null,"227200 - Department of Energy Laboratory Liability ",null,null,"202021 - Speaker Funds ",null,null,null,null,null,null,"GLCMF00028 - ANS 160B Stress and Reproduction II "]
[null,null,null,"14301 - SSDP GSM Working Professional MBA Bay Area 20235 ",null,"230000 - Compensated Absences Liabilities ",null,null,"202022 - University Honors ",null,null,null,null,null,null,"GLCMF00029 - AVS 13 Birds Humans the Environment "]
[null,null,null,"14302 - SSDP GSM Working Professional MBA Inc 20236 ",null,"231000 - Medical Malpractice and Professional Current ",null,null,"202023 - Seed Grant ",null,null,null,null,null,null,"GLCMF00030 - AVS 016LC Raptor Migration Population Fluctuations "]
[null,null,null,"14303 - SSDP Master Of Business Analytics 20248 ",null,"231100 - General Auto and Employment Liability Current Portion ",null,null,"202024 - Other Faculty Awards ",null,null,null,null,null,null,"GLCMF00031 - MCP 200L Animal Cell Culture Laboratory "]
[null,null,null,"14304 - SSDP Online Mba Program 20249 ",null,"231200 - Workers Compensation Current Portion ",null,null,"202025 - MOU Memorandum of Understanding ",null,null,null,null,null,null,"GLCMF00032 - NPB 121L Physiology of Reproduction Laboratory "]
[null,null,null,"14305 - SSDP MotherandChild Nutrition 20246 ",null,"231300 - Employee Health Insurance Current Portion ",null,null,"202026 - Additional Compensation ",null,null,null,null,null,null,"GLCMF00033 - NUT 115 Animal Foods and Nutrition "]
[null,null,null,"14306 - SSDP Forensics 20247 ",null,"231400 - Graduate Student Health Insurance Current Portions ",null,null,"202027 - POP Funding ",null,null,null,null,null,null,"GLCMF00034 - ABT 16 Metal Properties Fabrication "]
[null,null,null,"14307 - SSDP Physicians Asst Masters Masters Fee 20219 ",null,"231500 - Undergrad Student Health Insurance Current ",null,null,"202028 - Faculty Retention ",null,null,null,null,null,null,"GLCMF00035 - ABT 49 Field Equipment Operation "]
[null,null,null,"14308 - SSDP School Of Medicine Mas Stdt Fee 20027 ",null,"231600 - Other Programs Current Portions ",null,null,"202029 - Faculty New Hires ",null,null,null,null,null,null,"GLCMF00036 - ABT 52 Field Equipment Welding "]
[null,null,null,"14309 - SSDP GSM Master Of Professional Accountancy 20232 ",null,"232000 - Medicare Specific Reserves ",null,null,"202030 - Faculty Separations ",null,null,null,null,null,null,"GLCMF00037 - ABT 233 Pest Control Practices "]
[null,null,null,"14310 - SSDP Professional Fee School Of Law Icl 20243 ",null,"232001 - Medicare Cost Report Settlement ",null,null,"202031 - Instructional Equipment ",null,null,null,null,null,null,"GLCMF00038 - ABI 050A Animal Biology Laboratory "]
[null,null,null,"14311 - SSDP Professional Fee School Of Law Llm 20244 ",null,"232002 - Medicare Direct Grants ",null,null,"202032 - Publication Assistance ",null,null,null,null,null,null,"GLCMF00039 - ENT 1 Arts Science the World of Insects "]
[null,null,null,"14312 - SSDP Doctor of Nursing Practice Program 20245 ",null,"232100 - Reimbursement Settlement Due to MediCal ",null,null,"202033 - Summer Session Incentive ",null,null,null,null,null,null,"GLCMF00040 - ENT 100L General Entomology "]
[null,null,null,"14400 - Course Materials and Services Fees Undergraduate ",null,"232101 - MediCal Fee for Service Reserve ",null,null,"202034 - Mini Grants ",null,null,null,null,null,null,"GLCMF00041 - ENT 107 California Insect Diversity "]
[null,null,null,"14410 - Course Materials and Services Fees Graduate School Of Vet Med ",null,"232102 - MediCal Waiver Reserve ",null,null,"202035 - Peer Advisors ",null,null,null,null,null,null,"GLCMF00042 - ENT 116 Freshwater Macroinvertebrates "]
[null,null,null,"14411 - Course Materials and Services Fees Graduate School Of Med ",null,"232200 - Reimbursement Settlements Due to Other 3rd Party Payors ",null,null,"202036 - Renovations ",null,null,null,null,null,null,"GLCMF00043 - ENT 156L Biology of Parasitism Laboratory "]
[null,null,null,"14412 - Course Materials and Services Fees Graduate Grad School Of Management ",null,"233000 - Commercial Paper Interest Payable Current ",null,null,"202037 - Base Funded Staff ",null,null,null,null,null,null,"GLCMF00044 - ENT 158 Forensic Entomology "]
[null,null,null,"14500 - Student Services Fee 20000 ",null,"233100 - Long Term Debt Interest Payable Current ",null,null,"202038 - Student Awards ",null,null,null,null,null,null,"GLCMF00045 - ECL 214 Marine Ecology Concepts Practice "]
[null,null,null,"14501 - Student Mental Health Fee 20021 ",null,"233200 - Interest Payable Capital Leases Current ",null,null,"202039 - Seminars ",null,null,null,null,null,null,"GLCMF00046 - ESP 123 Introduction to Field Laboratory Methods in Ecology "]
[null,null,null,"14600 - Student Services Maintenance Fee 20010 ",null,"233250 - Accrued Interest Expense Finance Lease ",null,null,"202040 - ACCD Funding ",null,null,null,null,null,null,"GLCMF00047 - ESP 127 Plant Conservation Biology "]
[null,null,null,"14601 - Student Health Services Fee 20011 ",null,"233260 - Interest Accrued GASB 96 ",null,null,"202041 - Emergency Funds ",null,null,null,null,null,null,"GLCMF00049 - ESP 151L Limnology Laboratory "]
[null,null,null,"14602 - Student Facilities Safety Fee 20012 ",null,"233300 - Interest Payable Other Current ",null,null,"202042 - France Berkeley ",null,null,null,null,null,null,"GLCMF00050 - ETX 102B Quantitative Analysis of Environmental Toxicants "]
[null,null,null,"14603 - Face FacilitiesandCampus Enhancement Fee 20013 ",null,"234000 - Cash Received Undistributed ",null,null,"202043 - Instructional Support ",null,null,null,null,null,null,"GLCMF00051 - ETX 103B Biological Effects of Toxicants Experimental Approaches "]
[null,null,null,"14604 - Lleap Legal Educ EnhanceandAccess Fee 20014 ",null,"234010 - Unclaimed Refunds ",null,null,"202044 - Salary Savings ",null,null,null,null,null,null,"GLCMF00052 - ETX 131 Environmental Toxicology of Air Pollutants "]
[null,null,null,"14605 - Davis Campus Host Admin Fee 20015 ",null,"234011 - Stale Dated Checks ",null,null,"202045 - Innovative Learning Technology Initiative ILTI ",null,null,null,null,null,null,"GLCMF00053 - ETX 220L Analysis of Toxicants Laboratory "]
[null,null,null,"14606 - Grad Cei Campus Expansion Initiative 20016 ",null,"234020 - Clearing Sales Activities ",null,null,"202046 - Programmatic Initiative ",null,null,null,null,null,null,"GLCMF00054 - ETX 228 Gas ChromatographyMass Spectrometry of Toxic Chemicals "]
[null,null,null,"14607 - Ungrad Cei Campus Expansion Initiative 20017 ",null,"234030 - Clearing Tuition and Fees ",null,null,"202047 - First year Student Support ",null,null,null,null,null,null,"GLCMF00055 - ETX FOR 281 Principles and Practice of Forensic DNA Analysis "]
[null,null,null,"14608 - MedVM Cei Campus Expansion Initiative 20018 ",null,"234050 - Security Deposits ",null,null,"202048 - Summer Fellowship ",null,null,null,null,null,null,"GLCMF00056 - FST 50 Introduction to Food Preservation "]
[null,null,null,"14609 - Law Student Health Ctr Fee 20019 ",null,"234090 - Other Deposits ",null,null,"202049 - Faculty Crash Plan ",null,null,null,null,null,null,"GLCMF00057 - FST 101A Food Chemistry Laboratory "]
[null,null,null,"14610 - The Green Initiative Fund TGIF 20023 ",null,"234099 - Other Deposits Clearing ",null,null,"202050 - Faculty Reserves ",null,null,null,null,null,null,"GLCMF00058 - FST 101B Food Properties Laboratory "]
[null,null,null,"14611 - The California Aggie Initiative 20024 ",null,"235000 - Obligations Under Life Income Agreements Liability ",null,null,"202051 - Discretionary Funds ",null,null,null,null,null,null,"GLCMF00059 - FST 102B Practical Malting Brewing Laboratory "]
[null,null,null,"14612 - International Students Addl Fees 20035 ",null,"235100 - UCRP State Deferral Contributions Liabilities ",null,null,"202052 - Matching Funds ",null,null,null,null,null,null,"GLCMF00060 - FST 103 Food Analysis Laboratory "]
[null,null,null,"14613 - Study Abroad Admin Fees 20036 ",null,"237000 - Bank Overdraft ",null,null,"202053 - Patent Funds ",null,null,null,null,null,null,"GLCMF00061 - FST 104L Microbiology Laboratory "]
[null,null,null,"14614 - Candidacy Fee Income 20078 ",null,"237100 - Patient Credit Balance ",null,null,"202054 - Relocations and Removals ",null,null,null,null,null,null,"GLCMF00062 - FST NUT 106 Food Chemistry for Clinical Nutrition "]
[null,null,null,"14615 - ASUCD Unitrans Student Fees 20079 ",null,"237200 - Construction Retention Payables ",null,null,"202055 - Academic Federation Grants ",null,null,null,null,null,null,"GLCMF00063 - FST 110L Food Processing Laboratory "]
[null,null,null,"14616 - ASUCD Fee Eop Program Fund 20081 ",null,"237310 - Other Current and Misc Liabilities ",null,null,"202056 - Grad Student Researcher ",null,null,null,null,null,null,"GLCMF00064 - FST 123L Enzymology Laboratory "]
[null,null,null,"14617 - Student Union Fee Income 20083 ",null,"237400 - Rent Payables ",null,null,"202057 - VM Salary Admin APM 675 ",null,null,null,null,null,null,"GLCMF00065 - FST 127 Sensory Evaluation of Foods "]
[null,null,null,"14618 - Graduate Student Association 20085 ",null,"237500 - Property Tax Payable ",null,null,"202058 - Travel Grants ",null,null,null,null,null,null,"GLCMF00066 - FST 160 Food Product Development "]
[null,null,null,"14619 - Law Student Association 20086 ",null,"237600 - Other Accrued Expenses Payables ",null,null,"202059 - First Year Seminars ",null,null,null,null,null,null,"GLCMF00067 - FST 219 Biochemistry Microbiology Technology of Cheeses "]
[null,null,null,"14620 - Student Fees Summary 20398 ",null,"237700 - Pollution Remediation Obligation Current Portions ",null,null,"202060 - UNEX ",null,null,null,null,null,null,"GLCMF00068 - CRD 20 Food Systems "]
[null,null,null,"14621 - Ship Admin Services 66420 ",null,"237800 - Asset Retirement Obligation Current ",null,null,"202061 - Joint Personnel Committe Funding ",null,null,null,null,null,null,"GLCMF00069 - CRD 250 Professional Skills for Community Development "]
[null,null,null,"14622 - Graduate Health Insurance 66421 ",null,"129004 - Intercompany Receivables ",null,null,"202062 - Research and Education Funding ",null,null,null,null,null,null,"GLCMF00070 - LDA 21 Landscape Drafting Visualization "]
[null,null,null,"14623 - Undergrad Health Insurance Fee 66423 ",null,"163501 - MC LAWSON PPE Clearing ",null,null,"202063 - Student Fellowships ",null,null,null,null,null,null,"GLCMF00071 - LDA 23 Computer Graphics for Landscape Architecture "]
[null,null,null,"14624 - Fee Installment Plan Processing Fee 67250 ",null,"200050 - Intercompany Payables ",null,null,"202064 - Budget Reductions ",null,null,null,null,null,null,"GLCMF00072 - LDA 50 Site Ecology "]
[null,null,null,"14800 - School Of Law Special Student Fee 20025 ",null,"238004 - Intercompany Receivables UCDH ",null,null,"202065 - Restricted Use Funds ",null,null,null,null,null,null,"GLCMF00073 - LDA 60 Technology 1 Grading Drainage "]
[null,null,null,"14801 - School Of Law Seat Deposit Fee 20028 ",null,"238005 - Intercompany Payable UCDH ",null,null,"202066 - Building Funds ",null,null,null,null,null,null,"GLCMF00074 - LDA 70 Introduction to Spacemaking "]
[null,null,null,"14802 - Vet Med Special Student Fee 20029 ",null,"238006 - Interfund Balancing ",null,null,"202067 - Recruitment Allowance ",null,null,null,null,null,null,"GLCMF00075 - LDA 102 Methods in Design Landscape Research "]
[null,null,null,"14803 - Grad Sch Of Management Spec Stdt Fe 20031 ",null,"238X00 - Clearing PPM ",null,null,"202068 - Innovative Development Award ",null,null,null,null,null,null,"GLCMF00076 - LDA 120 Advanced Computer Applications "]
[null,null,null,"14804 - Grad Schl Of Mgmt SSDP Application Fees 20032 ",null,"238500 - Proceeds of Sale Clearing ",null,null,"202069 - Chancellor Fellow Award ",null,null,null,null,null,null,"GLCMF00077 - LDA 140 Green Building Design and Materials "]
[null,null,null,"14805 - Tuition Scholarship Allow Contra Revn 20099 ",null,"238530 - Clearing Student Services Fees ",null,null,"202070 - Teaching Award ",null,null,null,null,null,null,"GLCMF00078 - LDA 141 Community Design Planning "]
[null,null,null,"14806 - Grad Stud Supplemental Application Fee 20201 ",null,"238532 - Clearing Banner Transfers ",null,null,"202071 - Specialist Support ",null,null,null,null,null,null,"GLCMF00079 - LDA 142 Applying Sustainable Strategies "]
[null,null,null,"14807 - School Of Medicine Supplemental App Fee 20202 ",null,"238533 - Clearing Credit Card ",null,null,"202072 - Participant Support ",null,null,null,null,null,null,"GLCMF00080 - LDA ABT 150 Introduction to Geographic Information Systems "]
[null,null,null,"14808 - Mba Supplemental Application Fee 20203 ",null,"238534 - Clearing Short Term Loans and Installment Plan ",null,null,"202073 - Salary Cap or Over the Cap Salary ",null,null,null,null,null,null,"GLCMF00081 - LDA 160 Technology 2 Construction Materials Detailing "]
[null,null,null,"14809 - Vet Med Supplemental Application Fee 20234 ",null,"238535 - Clearing Cash and Cash Equivalents ",null,null,"202074 - Wellness Grant ",null,null,null,null,null,null,"GLCMF00082 - LDA 161 Technology 3 Professional Practice Construction Documents "]
[null,null,null,"14810 - Summer Field Courses Program Fees 20296 ",null,"238536 - Clearing Waivers ",null,null,"202075 - Library Open Access ",null,null,null,null,null,null,"GLCMF00083 - LDA 170 Field Studio in Landscape Architecture "]
[null,null,null,"15000 - SOM University Related Events 60102 ",null,"238537 - Clearing Application Fees ",null,null,"202076 - Financial Aid ",null,null,null,null,null,null,"GLCMF00084 - LDA 171 Urban Design and Planning Studio "]
[null,null,null,"15001 - Med Comp Plan Current Yr Inc 60103 ",null,"238538 - Clearing Payment Application ",null,null,"202077 - State Fair ",null,null,null,null,null,null,"GLCMF00085 - LDA 182 Advanced Landscape Architecture Studio I "]
[null,null,null,"15021 - Medcomplan Academic Enhancement Fd 60105 ",null,"238539 - Clearing Education Abroad ",null,null,"202079 - Human Development Grad Students ",null,null,null,null,null,null,"GLCMF00086 - LDA 183 Advanced Landscape Architecture Studio II "]
[null,null,null,"15022 - MS Clin Sal Pl Uncollected Inc 60107 ",null,"238540 - TouchNet CC Clearing ",null,null,"202080 - Child Development Grad Students ",null,null,null,null,null,null,"GLCMF00087 - LDA 184 Capstone Studio in Landscape Architecture "]
[null,null,null,"15023 - School Of Medicine Comp Plan Income 60108 ",null,"238541 - Loans Noncash Clearing ",null,null,"202081 - Bench Fees ",null,null,null,null,null,null,"GLCMF00088 - ATM 10 Severe and Unusual Weather "]
[null,null,null,"15024 - Med Comp Plan Deans Fund 60109 ",null,"238542 - Sponsored Students Clearing ",null,null,"202082 - Faculty Recruitment ",null,null,null,null,null,null,"GLCMF00089 - ATM 124 Meteorological Instruments and Observations "]
[null,null,null,"15400 - Loan Funds Reserve For Bad Debts 02299 ",null,"238550 - Clearing Housing and Dining ",null,null,"202083 - Research Fellowship ",null,null,null,null,null,null,"GLCMF00090 - ESM 108 Environmental Monitoring "]
[null,null,null,"15401 - Aggi Alumni Loan Fund 02205 ",null,"238560 - Clearing Vet Med Teaching Hospital ",null,null,"202084 - Dean Office Research Grant ",null,null,null,null,null,null,"GLCMF00091 - ESM 121 Water Science and Management "]
[null,null,null,"15402 - Alumni Student Loan Fund 02206 ",null,"238561 - Clearing Vet Med Bankruptcy Cancellation ",null,null,"202086 - Travel Awards ",null,null,null,null,null,null,"GLCMF00092 - HYD 110 Irrigation Principles and Practices "]
[null,null,null,"15403 - American Electronics Assn Loan 02208 ",null,"238562 - Clearing Banner Deposits ",null,null,"202087 - Leadership Support Assistant Dean ",null,null,null,null,null,null,"GLCMF00093 - HYD 134 Aqueous Geochemistry "]
[null,null,null,"15404 - Ama Erf Student Loan Fd 02209 ",null,"238590 - Clearing Travel Card ",null,null,"202088 - Leadership Support Associate Dean 1 ",null,null,null,null,null,null,"GLCMF00094 - HYD 151 Field Methods in Hydrology "]
[null,null,null,"15405 - Anchordoguy Ford Motor Ln Fd 02210 ",null,"238591 - Clearing PCard ",null,null,"202089 - Leadership Support Associate Dean 2 ",null,null,null,null,null,null,"GLCMF00095 - HYD 252 Hillslope Geomorphology "]
[null,null,null,"15406 - Appel Marvin M Loan Fund 02215 ",null,"238592 - Clearing Payroll Deduction Parking ",null,null,"202090 - Leadership Support Associate Dean 3 ",null,null,null,null,null,null,"GLCMF00096 - SSC 100 Principles of Soil Science "]
[null,null,null,"15407 - Avian Science Loan Fund 02216 ",null,"238599 - Clearing Account Other ",null,null,"202091 - Leadership Support Associate Dean 4 ",null,null,null,null,null,null,"GLCMF00097 - SSC 107 Soil Physics "]
[null,null,null,"15408 - RobertAndEa Stowell Endow Loan 02235 ",null,"238600 - Reserve for Encumbrances ",null,null,"202092 - Leadership Support Dean ",null,null,null,null,null,null,"GLCMF00098 - SSC 111 Soil Microbiology "]
[null,null,null,"15409 - Stanley F Bailey Mem Loan Fd 02217 ",null,"238610 - Clearing Miscellaneous AR ",null,null,"202093 - Leadership Support Executive Associate Dean ",null,null,null,null,null,null,"GLCMF00099 - SSC 120 Soil Genesis Morphology Classification "]
[null,null,null,"15410 - Barlow R B Dick Mem Loan Rd 02220 ",null,"238611 - Payment Plus Liability ",null,null,"202094 - Academic Senate Faculty Awards ",null,null,null,null,null,null,"GLCMF00100 - FSM 120L Quantity Food Production Laboratory "]
[null,null,null,"15411 - M Brouette Memorial Loan Fund 02226 ",null,"238612 - Card on File Liability ",null,null,"202095 - Academic Federation Faculty Awards ",null,null,null,null,null,null,"GLCMF00101 - NUT 112 Nutritional Assessment "]
[null,null,null,"15412 - James Blood Mem Loan Fd 02227 ",null,"238613 - PBP Clearing ",null,null,"202100 - Academic Senate Service Compensation ",null,null,null,null,null,null,"GLCMF00102 - NUT 116AL Clinical Nutrition Practicum "]
[null,null,null,"15413 - Jeffrey L Chin Mem Loan Fund 2250 ",null,"238700 - MC Lawson Error Suspense ",null,null,"202101 - Student Ambassadors ",null,null,null,null,null,null,"GLCMF00103 - NUT 117 Experimental Nutrition "]
[null,null,null,"15414 - Dr Robert Bolt House Staff Ln Fd 02228 ",null,"238701 - Lawson SOH Clearing to Campus ",null,null,"202102 - Classroom Instruction ",null,null,null,null,null,null,"GLCMF00104 - PLP 120 Introduction to Plant Pathology "]
[null,null,null,"15415 - Robert KandMary M Brinton Chem Lo 02230 ",null,"238702 - LAWSON TO ORACLE AP CLEARING ",null,null,"202103 - SAYS San Juan Contract ",null,null,null,null,null,null,"GLCMF00105 - PLP PLB 148 Introduction to Mycology "]
[null,null,null,"15416 - DR Tien Hsin Cheng Emergenct Loan 02236 ",null,"238703 - LAWSON TO ORACLE GL CLEARING ",null,null,"202104 - Pepsi Funding ",null,null,null,null,null,null,"GLCMF00106 - BIT 161A Genetics and Biotechnology Laboratory "]
[null,null,null,"15417 - Cruden Student Loan Fund 02254 ",null,"238704 - LAWSON TO ORACLE MISC AR CLEARING ",null,null,"202105 - Pre College Scholars ",null,null,null,null,null,null,"GLCMF00107 - BIT 161B Plant Genetics and Biotechnology Laboratory "]
[null,null,null,"15418 - ASUCD Emercenty Loan Fund 02280 ",null,"238XXX - UCPath Other Campus Deduction Clearing ",null,null,"202106 - ACHIEVE ",null,null,null,null,null,null,"GLCMF00108 - ENH 125 Greenhouse Nursery Crop Production "]
[null,null,null,"15419 - UCD Employee Emergency Loan Fund 02428 ",null,"238900 - Internal Loan Payables ",null,null,"202107 - Public Advisor Students ",null,null,null,null,null,null,"GLCMF00109 - ENH 160L Restoration Ecology Laboratory "]
[null,null,null,"15420 - UCDMC Employee Emergency Loan Fund 02429 ",null,"238901 - TA Loans Clearing ",null,null,"202108 - Tour Guide Students ",null,null,null,null,null,null,"GLCMF00110 - IAD 202N Analysis Determinants of Farming Systems "]
[null,null,null,"15421 - Ora B Butler Mem Loan Fung 02450 ",null,"238970 - Accounts Payable Clearing Account ",null,null,"202109 - Family College Advisors ",null,null,null,null,null,null,"GLCMF00111 - PLB PLS 102 California Floristics "]
[null,null,null,"15422 - Ca Assn Of Resource Conservatio 02475 ",null,"250000 - Federal Capital Contributions ",null,null,"202110 - Leadership Support Associate Dean 5 ",null,null,null,null,null,null,"GLCMF00112 - PLB PLS 116 Plant Morphology and Evolution "]
[null,null,null,"15423 - Calif Federation Womens Club Ln 02482 ",null,"250001 - Federal Capital Contributions Repaid ",null,null,"202111 - Represented Staff ",null,null,null,null,null,null,"GLCMF00113 - PLS 1 Agriculture Nature Society "]
[null,null,null,"15424 - Calif Shorthorn Breeders Assn 02485 ",null,"250002 - Loan Overpayment ",null,null,"202112 - Unrepresented Staff ",null,null,null,null,null,null,"GLCMF00114 - PLS 2 Botany Physiology of Cultivated Plants "]
[null,null,null,"15425 - Dr Frances Carter Mem Loan Fd 02495 ",null,"250003 - Repayable Scholarship ",null,null,"202113 - UCOP SAPEP22 Funding ",null,null,null,null,null,null,"GLCMF00115 - PLS 15 Introduction to Sustainable Agriculture "]
[null,null,null,"15426 - Cmerf Medical Student Loan Fd 02496 ",null,"251000 - Self Insurance Liability Employee Healthcare Noncurrent Portion ",null,null,"202114 - UCOP SAPEP23 Funding ",null,null,null,null,null,null,"GLCMF00116 - PLS 100AL Metabolic Processes of Cultivated Plants Laboratory "]
[null,null,null,"15427 - WingAndLou Chin Emergency Ln Fd 02499 ",null,"251100 - Graduate Insurance Program Liability Noncurrent Portion ",null,null,"202115 - Health Fee Oversight Committee ",null,null,null,null,null,null,"GLCMF00117 - PLS 100BL Growth and Yield of Cultivated Plants Laboratory "]
[null,null,null,"15428 - Cow Belles Loan Fund 02545 ",null,"251200 - Undergrad Student Health Insurance Program SHIP Liability Noncurrent Portion ",null,null,"202116 - SHAB Student Health Advisory Board ",null,null,null,null,null,null,"GLCMF00118 - PLS1 110 Crop Management Systems for Vegetable Production "]
[null,null,null,"15429 - CVMa Registration Loan Fd 02560 ",null,"251300 - Medical Malpractice and Professional Liability Noncurrent Portion ",null,null,"202117 - Joint Seminars ",null,null,null,null,null,null,"GLCMF00119 - PLS 111 Principles of Agronomic Crop Production Systems "]
[null,null,null,"15430 - Davis Homemakers Stdt Loan Fd 02570 ",null,"251400 - General Auto and Employment Liabilities GAEL Noncurrent Portion ",null,null,"202118 - GS3 Storer Lecture ",null,null,null,null,null,null,"GLCMF00120 - PLS 131 Identification and Ecology of Grasses "]
[null,null,null,"15431 - Dohrmann Mem Loan Fund 02590 ",null,"251500 - Workers Compensation Liability Noncurrent Portion ",null,null,"202119 - Graduate Student awards ",null,null,null,null,null,null,"GLCMF00121 - PLS 141 Introduction to Current Topics in Plant Biology "]
[null,null,null,"15432 - Virginia W Eckert Mem Loan Fd 02605 ",null,"251600 - Other Self Insurance Liability Noncurrent Portion ",null,null,"202120 - Undergraduate Student awards ",null,null,null,null,null,null,"GLCMF00122 - PLS 147L California Plant Communities Field Study "]
[null,null,null,"15433 - Notes RecEducational Fee Defer 02612 ",null,"257000 - Annuities Payable Life Income Agreements Noncurrent Portion ",null,null,"202121 - Equipment Restricted ",null,null,null,null,null,null,"GLCMF00123 - PLS 152 Plant Genetics "]
[null,null,null,"15434 - Faculty Short Term Housing Loan Fnd 02705 ",null,"257100 - Liabilities to Life Beneficiaries Life Income Agreements Noncurrent Portion ",null,null,"900151 - Research Funding ",null,null,null,null,null,null,"GLCMF00124 - PLS 158 Mineral Nutrition of Plants "]
[null,null,null,"15435 - RAFreedland Grad Stdt Emergency L 02707 ",null,"260000 - GRB Related Principal Outstanding Capital ",null,null,"220000 - Cancer ",null,null,null,null,null,null,"GLCMF00125 - PLS 164 Practicum in Ecological Restoration "]
[null,null,null,"15436 - Kate Fizell Farm Circle Loan Fd 02710 ",null,"260100 - GRB Related Principal Outstanding Noncapital ",null,null,"220001 - Dog ",null,null,null,null,null,null,"GLCMF00126 - PLS 170A Fruit Nut Cropping Systems "]
[null,null,null,"15437 - Jerry F Fogerty Mem Ln Fd 02715 ",null,"260200 - GRB Bond Premium ",null,null,"220002 - Dog Restricted ",null,null,null,null,null,null,"GLCMF00127 - SAS 006B Career Discovery Seminar "]
[null,null,null,"15438 - General Student Loan Fund 02765 ",null,"260201 - GRB Bond Discount ",null,null,"220003 - Dog Cancer ",null,null,null,null,null,null,"GLCMF00128 - SAS 006C Career Discovery in the Field "]
[null,null,null,"15439 - Graduate Student Transition Loan Fund 02766 ",null,"261000 - LPRB Bonds Payables Principal Outstanding ",null,null,"220004 - Cat ",null,null,null,null,null,null,"GLCMF00129 - SAS 40 Photography Bridging Art Science "]
[null,null,null,"15440 - Alice Glist Loan Fd Vet Student 02770 ",null,"261002 - LPRB Bond Premium ",null,null,"220005 - Cat Restricted ",null,null,null,null,null,null,"GLCMF00130 - VEN 101A Viticultural Practices "]
[null,null,null,"15441 - Grad Student Emergency Ln Fund 02771 ",null,"261003 - LPRB Bond Discount ",null,null,"220006 - Cat Cancer ",null,null,null,null,null,null,"GLCMF00131 - VEN 101B Viticultural Practices "]
[null,null,null,"15442 - Joe Green Mem Stdt Loan Res Fd 02775 ",null,"262000 - MCPRB Related Principal Outstanding Capital ",null,null,"220007 - Mare ",null,null,null,null,null,null,"GLCMF00132 - VEN 101C Viticultural Practices "]
[null,null,null,"15443 - Geo H Hart Loan Fd 02855 ",null,"262001 - Non Current REVENUE BONDS 2016 L SERIES ",null,null,"220008 - Foal ",null,null,null,null,null,null,"GLCMF00133 - VEN 111 World Viticulture "]
[null,null,null,"15444 - Janeway Elizabeth Bixby Loan 03007 ",null,"262002 - Non Current REVENUE BONDS 2016 M SERIES ",null,null,"220009 - Stallion ",null,null,null,null,null,null,"GLCMF00134 - VEN 123L Analysis of Musts and Wines "]
[null,null,null,"15445 - Kenneth E Jessen Mem Loan Fd 03015 ",null,"262003 - Non Current REVENUE BONDS 2017 AY SERIES ",null,null,"220010 - Rabbit ",null,null,null,null,null,null,"GLCMF00135 - VEN 124L Wine Processing "]
[null,null,null,"15446 - Clinton A Jewett Mem Loan Fdn 03021 ",null,"262004 - Non Current REVENUE BONDS 2020 N SERIES ",null,null,"220011 - Rodent ",null,null,null,null,null,null,"GLCMF00136 - VEN 125L Wine Sensory Analysis "]
[null,null,null,"15447 - Jones EhAndEb Foreign Stdt Emer 03025 ",null,"262005 - Non Current REVENUE BONDS 2013 J SERIES ",null,null,"220012 - Hamster ",null,null,null,null,null,null,"GLCMF00137 - VEN 126L Wine Stability "]
[null,null,null,"15448 - Kappa Alpha Psi Loan Fund 03035 ",null,"262006 - Non Current REVENUE BONDS 2020 P SERIES ",null,null,"220013 - Frogs ",null,null,null,null,null,null,"GLCMF00138 - VEN 128L Wine Microbiology "]
[null,null,null,"15449 - WandM Kendall Schp Loan Fund 03045 ",null,"262007 - Non Current REVENUE BONDS 2020 Q SERIES ",null,null,"220014 - Pigs ",null,null,null,null,null,null,"GLCMF00139 - VEN 140 Distilled Beverage Technology "]
[null,null,null,"15450 - Burton A King Mem Loan Fd 03100 ",null,"262200 - MCPRB Bond Premium ",null,null,"220015 - Bees ",null,null,null,null,null,null,"GLCMF00140 - VEN 216 Vineyard Establishment Development "]
[null,null,null,"15451 - King Hall Loan Repay Assist Prog 03102 ",null,"262201 - MCPRB Bond Discount ",null,null,"220016 - Avian ",null,null,null,null,null,null,"GLCMF00141 - VEN 235 Winery Design "]
[null,null,null,"15452 - Matt Kovacevich Mem Loan Fd 03105 ",null,"262202 - Non Current 2013 J DEFERRED PREMIUM ",null,null,"220017 - Mice ",null,null,null,null,null,null,"GLCMF00142 - WFC 101L Wildlife Ecology "]
[null,null,null,"15453 - LA County 4H Alumni Assn Loan F 03110 ",null,"262203 - Non Current 2016 L DEFERRED PREMIUM ",null,null,"220018 - Owl ",null,null,null,null,null,null,"GLCMF00143 - WFC 102L Field Studies in Fish Biology "]
[null,null,null,"15454 - Law Iris Mitgang Emergency Loan Fun 03120 ",null,"262204 - Non Current 2017 AY DEFERRED PREMIUM ",null,null,"220019 - Bird ",null,null,null,null,null,null,"GLCMF00144 - WFC 111L Ecology and Conservation of Wild Birds "]
[null,null,null,"15455 - Levinson Medical Student Loan 03125 ",null,"262205 - Deferred Prem 22P Long term ",null,null,"220020 - Guinea Pig ",null,null,null,null,null,null,"GLCMF00145 - WFC 120L Biology Conservation of Fishes "]
[null,null,null,"15456 - Jack Liter Loan Fund 03135 ",null,"263000 - Third Party Bonds Payable Principal Outstanding ",null,null,"220021 - Iguana ",null,null,null,null,null,null,"GLCMF00146 - WFC 134L Herpetology Laboratory "]
[null,null,null,"15457 - RobertAndEdith Lockhart Mem 03150 ",null,"263100 - 3rd Party Bonds Premium ",null,null,"220022 - NHP ",null,null,null,null,null,null,"GLCMF00147 - WFC 136 Ecology of Waterfowl and Game Birds "]
[null,null,null,"15458 - Rudy Lucero Memorial Ln Fd 03152 ",null,"263101 - 3rd Party Bonds Discount ",null,null,"220023 - Rat ",null,null,null,null,null,null,"GLCMF00148 - WFC EBS 155L 001 Habitat Conservation and Restoration Foundations of Biological Systems Engineering "]
[null,null,null,"15459 - Merck Co Fdn Loan Fd 03155 ",null,"264000 - Capital Lease Finance Obligation ",null,null,"220024 - Large Animal ",null,null,null,null,null,null,"GLCMF00149 - EBS 75 Properties of Materials in Biological Systems "]
[null,null,null,"15460 - Emil Mrak Student Ln Ed 03157 ",null,"264010 - Finance Lease ROU Obligation Non Current ",null,null,"220025 - Cancer Restricted ",null,null,null,null,null,null,"GLCMF00150 - EBS 127 Mass Transfer and Kinetics in Biological Systems "]
[null,null,null,"15461 - JeFFErson Mcgrew Mem Loan Fd 03200 ",null,"264020 - Purchase Option Liability Non Current ",null,null,"900116 - Small Animal ",null,null,null,null,null,null,"GLCMF00151 - EBS 165 Bioinstrumentation and Control "]
[null,null,null,"15462 - Med School Housestaff Loan Fund 03250 ",null,"264030 - Subscription Liability SBITA Non Current Portion ",null,null,"900122 - Horse Foals ",null,null,null,null,null,null,"GLCMF00152 - EBS 170CL Engineering Projects Design Evaluation 2 "]
[null,null,null,"15463 - Midcoast Veterinary Medical Mem L 03278 ",null,"265000 - Bank Line of Credit ",null,null,"900123 - Goats ",null,null,null,null,null,null,"GLCMF00153 - ENG 3 Introduction to Engineering Design "]
[null,null,null,"15464 - NAFV Emergency Loan Vet Stdts 03300 ",null,"265100 - Hybrid Interest Rate Swap ",null,null,"900124 - Horses ",null,null,null,null,null,null,"GLCMF00154 - BIM 107 Mathematical Methods for Biological Systems "]
[null,null,null,"15465 - Lawrence Newsome Loan Fund 03312 ",null,"265200 - Direct Borrowings and Direct Placement ",null,null,"900125 - Desert ",null,null,null,null,null,null,"GLCMF00155 - BIM 110B Biomedical Engineering Senior Design Experience "]
[null,null,null,"15466 - No Ca Vet Med Assoc Loan Fd 03313 ",null,"265300 - Other Borrowing ",null,null,"900126 - Sheep ",null,null,null,null,null,null,"GLCMF00156 - BIM 110C Biomedical Engineering Senior Design Experience "]
[null,null,null,"15467 - Daniel Lee Mem Ln Fd 03315 ",null,"266000 - Long Term Debt Commercial Paper ",null,null,"900127 - Sheep Day ",null,null,null,null,null,null,"GLCMF00157 - BIM 111 Biomedical Instrumentation Laboratory "]
[null,null,null,"15468 - WmAndE E Onion Loan Med 03320 ",null,"266100 - Long Term Debt Century Bond Proceeds ",null,null,"900128 - Sierra ",null,null,null,null,null,null,"GLCMF00158 - BIM 161L Biomolecular Engineering Laboratory "]
[null,null,null,"15469 - Governors Teachers Scholars Repay Schol 03330 ",null,"266200 - Pension Payable to University From Campus and Medical Centers ",null,null,"900129 - Swine ",null,null,null,null,null,null,"GLCMF00159 - ECH 145A Course Material Fee "]
[null,null,null,"15470 - Peo SisterhoodEMcdonald Loan 03424 ",null,"267000 - Net Pension Liabilities ",null,null,"211000 - ANS Animal Biology GSA ",null,null,null,null,null,null,"GLCMF00160 - ECH 145B Course Material Fee "]
[null,null,null,"15471 - Patterson Seward and Clara Loan 03426 ",null,"267010 - Net Pension Liability DOE Lab ",null,null,"211001 - AND Grad Group GSA Agency ",null,null,null,null,null,null,"GLCMF00161 - ECH 155 Course Material Fee "]
[null,null,null,"15472 - Regents Law Loan Fund 03431 ",null,"267020 - Net Pension Liabilities BCHO ",null,null,"211002 - BAE Graduate Student Association ",null,null,null,null,null,null,"GLCMF00162 - ECH 161L Course Material Fee "]
[null,null,null,"15473 - Regents Emergency Stdt Loan Fund 03432 ",null,"267030 - Net Pension Liabilities OCERS ",null,null,"211003 - LDA Geography Graduate Group ",null,null,null,null,null,null,"GLCMF00163 - ECH 001 Course Material Fee "]
[null,null,null,"15474 - Regents Short Term Law Loans 03433 ",null,"268000 - Net Retiree Health Benefit Liabilities ",null,null,"211004 - HD Grad Group Student Organization ",null,null,null,null,null,null,"GLCMF00164 - ECH 005 Course Material Fee "]
[null,null,null,"15475 - Redwood Empire VM Asso Loan Fd 03434 ",null,"270000 - Compensated Absences Noncurrent Liability ",null,null,"211005 - ARE Graduate Group GSA ",null,null,null,null,null,null,"GLCMF00165 - EMS 162L Course Material Fee "]
[null,null,null,"15476 - Regents Short Term Medicine Loans 03435 ",null,"270100 - Fair Value of Interest Rate Swaps Noncurrent ",null,null,"211006 - BMCDB Graduate Group GSA ",null,null,null,null,null,null,"GLCMF00166 - EMS 170L Course Material Fee "]
[null,null,null,"15477 - Sir Francis Drake Club Ln 03451 ",null,"270200 - Termination Benefits Noncurrent Liability ",null,null,"211007 - BPH Graduate Group GSA ",null,null,null,null,null,null,"GLCMF00167 - EMS 172L Course Material Fee "]
[null,null,null,"15478 - Univ Stdt Loan ProgLong Term 03455 ",null,"270300 - Unearned Revenue Noncurrent Liability ",null,null,"211008 - AETX Agchem Graduate Student Org ",null,null,null,null,null,null,"GLCMF00168 - EMS 174L Course Material Fee "]
[null,null,null,"15479 - Univ Stdt Loan ProgShort Term 03456 ",null,"270400 - Deferred Rent Noncurrent Liability ",null,null,"211009 - CHEM Graduate Student Association ",null,null,null,null,null,null,"GLCMF00169 - EMS 188A Course Material Fee "]
[null,null,null,"15480 - Sacto County Student Loan Fund 03457 ",null,"270500 - Pollution Remediation Obligation Noncurrent Liability ",null,null,"211010 - CHMS Graduate Student Organization ",null,null,null,null,null,null,"GLCMF00170 - EMS 188B Course Material Fee "]
[null,null,null,"15481 - Dr Pual Toste Loan Fund 03462 ",null,"270600 - Asset Retirement Obligation Liability Noncurrent Liability ",null,null,"211011 - Comparative Literature Grad Stdnt Assoc ",null,null,null,null,null,null,"GLCMF00171 - EMS 045 Course Material Fee "]
[null,null,null,"15482 - San Gabriel Valley Ln Ed 03500 ",null,"270700 - Other Noncurrent and Miscellaneous Liabilities ",null,null,"211012 - COM GSA Grad Students ",null,null,null,null,null,null,"GLCMF00172 - ECI 135 Structural Design Concrete Elements "]
[null,null,null,"15483 - San Gabriel Valley Ken Club Ln 03501 ",null,"270800 - UCRP State Deferral Contributions Noncurrent Liabilities ",null,null,"211013 - LAWR ATM Grad Student Organization ",null,null,null,null,null,null,"GLCMF00173 - ECI 140A Environmental Analysis of Aqueous Systems "]
[null,null,null,"15484 - Santa Ana Val Kennel Club Ln Fd 03525 ",null,"290000 - Deferred Inflows Service Concession Agreements ",null,null,"211014 - Cultural Studies Graduate Student Assoc ",null,null,null,null,null,null,"GLCMF00174 - ECI 171L Soil Mechanics Laboratory "]
[null,null,null,"15485 - M S Schmulowitz Loan Fd 03550 ",null,"291000 - Deferred Inflows Debt Refund ",null,null,"211015 - Economic Graduate Student Association ",null,null,null,null,null,null,"GLCMF00175 - ECI 235 Cement Composites "]
[null,null,null,"15486 - Laura E Settle Crta Loan Fd 03600 ",null,"292000 - Deferred Inflows Pension Obligations ",null,null,"211016 - French Graduate Student Association ",null,null,null,null,null,null,"GLCMF00176 - ECI 236 Design of Fiber Reinforced Polymer Composite Structures "]
[null,null,null,"15487 - C E Smith R W Huntington Jr 03620 ",null,"293000 - Deferred Inflows Retiree Health OPEB ",null,null,"211017 - German Graduate Student Association ",null,null,null,null,null,null,"GLCMF00177 - ECI4 243L Pilot Plant Laboratory "]
[null,null,null,"15488 - Leslie M Smith Loan Fd 03626 ",null,"294000 - Deferred Inflows Royalty Sale ",null,null,"211018 - Ecology Graduate Student Association ",null,null,null,null,null,null,"GLCMF00178 - ENG 104L Mechanics of Materials Laboratory "]
[null,null,null,"15489 - Solano Napa Cow Belles Loan Fd 03650 ",null,"295000 - Deferred Inflows Changes In Obligation of Split Interest Agreements ",null,null,"211019 - Sociology Graduate Student Association ",null,null,null,null,null,null,"GLCMF00179 - EEC 1 Introduction to Electrical and Computer Engineering "]
[null,null,null,"15490 - Earl Henry Swain Mem Loan Fd 03651 ",null,"295100 - Deferred Inflows Changes In Fair Value of Split Interest Agreements ",null,null,"211020 - History Graduate Student Association ",null,null,null,null,null,null,"GLCMF00180 - EEC 10 Introduction to Digital and Analog Systems "]
[null,null,null,"15491 - Boris Tarassuk Memorial Ln Fd 03655 ",null,"295200 - Deferred Inflows Split Interest Agreements New Gifts ",null,null,"211021 - Geology Graduate Student Association ",null,null,null,null,null,null,"GLCMF00181 - EEC 100 Circuits II "]
[null,null,null,"15492 - Teaching Assistant Loan Fund 03700 ",null,"295300 - Deferred Inflows Outside Held Split Interest Agreements ",null,null,"211022 - Linguistics Graduate Student Association ",null,null,null,null,null,null,"GLCMF00182 - EEC 112 Communication Electronics "]
[null,null,null,"15493 - Edward DTurner Emergency LnFd 03753 ",null,"295401 - Deferred Inflow Split Interest Agreements Noncurrent ",null,null,"211023 - Native American Graduate Student Assoc ",null,null,null,null,null,null,"GLCMF00183 - EEC 132A RF and Microwaves in Wireless Communication "]
[null,null,null,"15494 - Tulare Cnty Med Soc Loan Fnd 03755 ",null,"295501 - Equity held for Others ",null,null,"211024 - Physics Graduate Student Association ",null,null,null,null,null,null,"GLCMF00184 - EEC 132B RF and Microwaves in Wireless Communication "]
[null,null,null,"15495 - UCD Health Ins Stdt Loan 03758 ",null,"296000 - Deferred Inflows Interest Rate Swap Agreements ",null,null,"211025 - Religion Graduate Student Association ",null,null,null,null,null,null,"GLCMF00185 - EEC 132C RF and Microwaves in Wireless Communication "]
[null,null,null,"15496 - UCD Medical Student Loan Fd 03760 ",null,"297000 - Deferred Inflows Lease ",null,null,"211026 - Spanish Graduate Student Association ",null,null,null,null,null,null,"GLCMF00186 - EEC 134A RFMicrowave Systems Design "]
[null,null,null,"15497 - Fradkin Neurology Loan 03761 ",null,"298000 - Deferred Grant Revenue ",null,null,"211028 - Global Disease Biology ",null,null,null,null,null,null,"GLCMF00187 - EEC 134B RFMicrowave Systems Design "]
[null,null,null,"15498 - Fradkin Oncology Loan 03762 ",null,"299000 - Deferred Inflows Capitalized Leases ",null,null,"211030 - EPM Graduate Student Association ",null,null,null,null,null,null,"GLCMF00188 - EEC 136A Electronic Design Project "]
[null,null,null,"15499 - Dr Willis Van Sell Mem Loan Fd 03799 ",null,"300000 - Net Position End of Period ",null,null,"211031 - DOPPS Graduate Student Association ",null,null,null,null,null,null,"GLCMF00189 - EEC 136B Electronic Design Project "]
[null,null,null,"15500 - VM Emergency Student Loan 03800 ",null,"300001 - Net Position Department Share ",null,null,"211032 - ALAW SBG Graduate Student Association ",null,null,null,null,null,null,"GLCMF00190 - EEC 146A Integrated Circuits Fabrication "]
[null,null,null,"15501 - VMTH House Officers Emergency Ln F 03801 ",null,"300050 - Hand Postings to Net Position ",null,null,"211033 - NUT Nutritional Biology GSA ",null,null,null,null,null,null,"GLCMF00191 - EEC 146B Advanced Integrated Circuits Fabrication "]
[null,null,null,"15502 - VM Emerg LT Stdt Loan 03802 ",null,"301000 - Cumulative Effect of Accounting Changes ",null,null,"300002 - Academic Enrichment ",null,null,null,null,null,null,"GLCMF00192 - EEC 157A Control Systems "]
[null,null,null,"15503 - MayAndOtto Zender Mem Fd 03880 ",null,"400000 - Tuition Revenue Undergraduate ",null,null,"300003 - Student Success ",null,null,null,null,null,null,"GLCMF00193 - EEC 172 Embedded Systems "]
[null,null,null,"15504 - State Dream Loan Prog UC Match 03894 ",null,"400001 - Tuition Waivers Undergraduate ",null,null,"300004 - Curriculum Development ",null,null,null,null,null,null,"GLCMF00194 - EEC 195A Autonomous Vehicle Design Project "]
[null,null,null,"15505 - State Dream Loan Prog State Approp 03895 ",null,"400002 - Tuition Write Off Undergraduate ",null,null,"300005 - Class Instructors ",null,null,null,null,null,null,"GLCMF00195 - EEC 195B Autonomous Vehicle Design Project "]
[null,null,null,"15506 - Loan Fund Reserve Pool 03930 ",null,"400100 - Tuition Revenue Graduate Academic ",null,null,"300006 - Faculty Student Mentoring ",null,null,null,null,null,null,"GLCMF00196 - EEC 210 MOS Analog Circuit Design "]
[null,null,null,"16200 - Sales and Service Reserves ",null,"400101 - Tuition Waivers Graduate Academic ",null,null,"300007 - Student Advising ",null,null,null,null,null,null,"GLCMF00197 - EEC 281 VLSI Digital Signal Processing "]
[null,null,null,"16201 - Educational Reserves ",null,"400102 - Tuition Write Off Graduate Academic ",null,null,"300100 - Supplemental Instruction ",null,null,null,null,null,null,"GLCMF00198 - EEC 284 Design and Optimization of Embedded Computing Systems "]
[null,null,null,"16300 - Summer Session Reserve 75025 ",null,"400200 - Tuition Graduate Professional ",null,null,"300101 - Temp Teaching ",null,null,null,null,null,null,"GLCMF00199 - ENG 100 Electronic Circuits and Systems "]
[null,null,null,"16301 - Train and Develop Assessment Reserve 75030 ",null,"400201 - Tuition Waivers Graduate Professional ",null,null,"300102 - ACCD Instruction ",null,null,null,null,null,null,"GLCMF00200 - EME 50 Manufacturing Processes "]
[null,null,null,"16302 - Federal Fin Aid Admin Allowance 75040 ",null,"400202 - Tuition Write Off Graduate Professional ",null,null,"300103 - General Exam Costs ",null,null,null,null,null,null,"GLCMF00201 - BIS 002B Introductory Biology "]
[null,null,null,"16303 - Employee Support Program Reserve 75041 ",null,"400300 - Tuition Post Baccalaureate ",null,null,"300104 - Graduation ",null,null,null,null,null,null,"GLCMF00202 - EVE 16 Wild Davis A California Naturalist Certification Course "]
[null,null,null,"16304 - UCDMC Workers Compensation Admin 75043 ",null,"400301 - Tuition Waivers Post Baccalaureate ",null,null,"300105 - Career Development and Placement ",null,null,null,null,null,null,"GLCMF00203 - EVE 105 Phylogenetic Analysis of Vertebrate Structure "]
[null,null,null,"16305 - Landfill Construction Reserve 75046 ",null,"400400 - Tuition Undergraduate Summer Matriculated ",null,null,"300106 - Undergraduate Advising ",null,null,null,null,null,null,"GLCMF00204 - EVE PLB 108 Systematics and Evolution of Angiosperms "]
[null,null,null,"16306 - UCDMC Equity In Current Assets 75480 ",null,"400401 - Special Summer Field Session Fee Revenue ",null,null,"300107 - Undergraduate Program Review ",null,null,null,null,null,null,"GLCMF00205 - EVE 112L Laboratory for Invertebrate Zoology "]
[null,null,null,"16307 - UC Ready Business Continuity Program 75552 ",null,"400500 - Tuition Graduate Summer Matriculated ",null,null,"300108 - Graduate Program Review ",null,null,null,null,null,null,"GLCMF00206 - EVE 115 Marine Ecology "]
[null,null,null,"16308 - CPE CAMPUS PARTNERS RESERVE FUND ",null,"400510 - Summer Abroad Course Fees Graduates ",null,null,"300109 - Transcript Preparation ",null,null,null,null,null,null,"GLCMF00207 - EVE PLB 117 Plant Ecology "]
[null,null,null,"17000 - Unrestricted Gift Funds for Capital ",null,"400600 - Nonresident Suppl Tuition Revenue Undergrad Gross ",null,null,"300110 - Diploma Generation ",null,null,null,null,null,null,"GLCMF00208 - EVE PLB 119 Population Biology of Weeds "]
[null,null,null,"17100 - University Funds for Capital ",null,"400700 - Nonresident Supplemental Tuition Graduate Academic ",null,null,"300111 - Student Photo ID ",null,null,null,null,null,null,"GLCMF00209 - EVE 140 Paleobotany "]
[null,null,null,"17200 - University Funds for Renewal and Replacement ",null,"400800 - NonResident Supplemental Tuition GradProfessional ",null,null,"300112 - BIS2 series ",null,null,null,null,null,null,"GLCMF00210 - EVE ENT 180A Experimental Ecology Evolution "]
[null,null,null,"17900 - Deferred Maintenance Projects ",null,"400900 - Self Supporting Degree Program Fees ",null,null,"310100 - Master Classes ",null,null,null,null,null,null,"GLCMF00211 - EVE ENT 180B Experimental Ecology Evolution "]
[null,null,null,"17910 - Federal Contract and Grant Overhead ",null,"401000 - Professional Degree Supplement Tuition ",null,null,"310101 - School Matinee Companion Activities ",null,null,null,null,null,null,"GLCMF00212 - MIC5 103L Introductory Microbiology "]
[null,null,null,"17920 - Private Gift or Grant STIP 69240 ",null,"401002 - Professional Degree Supplemental Tuition Waiver ",null,null,"330000 - Editorialship ",null,null,null,null,null,null,"GLCMF00213 - MIC 104L General Bacteriology Laboratory "]
[null,null,null,"17921 - CUF Short Term Investment Pool STIP 69250 ",null,"402000 - CPE Course Income ",null,null,"330100 - Teaching Fellowships ",null,null,null,null,null,null,"GLCMF00214 - MIC MCB 105L 120L Bacterial Diversity Biochemistry laboratory "]
[null,null,null,"19931 - Application Fees ",null,"402001 - CPE Business To Business Income ",null,null,"330101 - Faculty Fellowship ",null,null,null,null,null,null,"GLCMF00215 - MCB 140L Cell Biology Laboratory "]
[null,null,null,"19933 - Federal ICR General Fund Portion ",null,"402002 - CPE Massive Online Course Fee Income ",null,null,"380000 - CPR Courses ",null,null,null,null,null,null,"GLCMF00216 - MCB 160L Principles of Genetics Laboratory "]
[null,null,null,"19934 - State ICR General Fund Portion ",null,"402003 - CPE Open Campus Fee ",null,null,"380001 - EMS Courses ",null,null,null,null,null,null,"GLCMF00217 - BIS 023A Genome Hunters "]
[null,null,null,"19940 - Interest on General Fund Balances ",null,"402010 - CPE Certificate Fee ",null,null,"380002 - EMT Courses ",null,null,null,null,null,null,"GLCMF00218 - NPB 100L Neurobiology Laboratory "]
[null,null,null,"19941 - CIRM ICR ",null,"402011 - CPE Transcript Fee ",null,null,"380003 - Student Fire Fighter Courses ",null,null,null,null,null,null,"GLCMF00219 - NPB 101L Systemic Physiology Laboratory "]
[null,null,null,"19942 - Nonresident Supplemental Tuition ",null,"402012 - CPE Application Fee ",null,null,"380004 - West Valley Consortium Courses ",null,null,null,null,null,null,"GLCMF00220 - BIS 002C Introduction to Plant Biology "]
[null,null,null,"19943 - Other UC General Fund ",null,"402013 - CPE Drop Fee ",null,null,"380005 - Paramedic Courses ",null,null,null,null,null,null,"GLCMF00221 - BIS 185L Systems and Synthetic Biology Laboratory "]
[null,null,null,"19990 - Vacation Accruals SGF UCI ",null,"402018 - CPE Health Insurance Fees ",null,null,"380006 - Short Term Courses ",null,null,null,null,null,null,"GLCMF00222 - ART 2 Beginning Drawing "]
[null,null,null,"19991 - Vacation Accruals UCGF UCI ",null,"402019 - CPE Miscellaneous Fees ",null,null,"381001 - Business Portfolio ",null,null,null,null,null,null,"GLCMF00223 - ART 5 Beginning Sculpture "]
[null,null,null,"18072 - California Cancer Research ",null,"402020 - CPE Campus Housing ",null,null,"381002 - InfraTransportation Development Certificate ",null,null,null,null,null,null,"GLCMF00224 - ART 7 Beginning Painting "]
[null,null,null,"18073 - Institute of Transportation Studies ",null,"402021 - Home Stay Services Income ",null,null,"381003 - Credit Services ",null,null,null,null,null,null,"GLCMF00225 - ART 8 Beginning Ceramic Sculpture "]
[null,null,null,"18081 - Center for Earthquake Engineering Research 2014 through 2017 ",null,"402090 - University Extension Facility Rental Income ",null,null,"381004 - 3D Printing ",null,null,null,null,null,null,"GLCMF00226 - ART 9 Beginning Photography "]
[null,null,null,"18082 - Permanent New Equip Instr Support General ArtsandHumanities Lottery Funds ",null,"402100 - University Student Services Fee Revenue ",null,null,"381005 - Biomanufacturing Courses ",null,null,null,null,null,null,"GLCMF00227 - ART 11 Beginning Printmaking "]
[null,null,null,"18083 - Instructional Computing Lottery Funds ",null,"402101 - Student Mental Health Services Fee Revenue ",null,null,"381006 - Cell Gene Therapy ",null,null,null,null,null,null,"GLCMF00228 - ART 12 Beginning Video "]
[null,null,null,"18084 - Obsolete Equipment Lottery Funds ",null,"402103 - University Registration Fee Waivers ",null,null,"381007 - Regulatory Science Certificate ",null,null,null,null,null,null,"GLCMF00229 - ART 101A Intermediate Painting "]
[null,null,null,"18085 - One Time Inst Support Excess Lottery Funds ",null,"400410 - Summer Internship Course Fees Undergraduates ",null,null,"381008 - Engineering Material Science ",null,null,null,null,null,null,"GLCMF00230 - ART 101E Intermediate Painting Reinterpreting Landscape "]
[null,null,null,"18086 - Reserved for Supplemental Allocations ",null,"400411 - Summer Abroad Course Fees Undergraduates ",null,null,"381009 - Front End Development ",null,null,null,null,null,null,"GLCMF00231 - ART 102A Advanced Painting Studio Projects "]
[null,null,null,"18087 - Lottery Fund Financial Control ",null,"400412 - Summer Domestic Course Fees Undergraduates ",null,null,"381010 - Machine Learning ",null,null,null,null,null,null,"GLCMF00232 - ART 102B Advanced Painting Figure "]
[null,null,null,"18091 - Oiled Wildlife Care Network ",null,"402200 - Summer Sessions Unmatriculated Fee Revenue ",null,null,"381011 - Trilogy Educational Services ",null,null,null,null,null,null,"GLCMF00233 - ART 102C Advanced Painting Special Topics "]
[null,null,null,"18093 - Health Care Benefit Fund ",null,"402210 - Summer Session Unmatriculated Domestic Course Fee ",null,null,"900144 - Cal Naturalist ",null,null,null,null,null,null,"GLCMF00234 - ART 103A Intermediate Drawing Black and White "]
[null,null,null,"18098 - Mental Health Services 2014 through 2017 ",null,"402300 - Campus Fees Compulsory Revenue ",null,null,"900145 - Fire Restoration ",null,null,null,null,null,null,"GLCMF00235 - ART 103B Intermediate Drawing Color "]
[null,null,null,"18102 - Breast Cancer Research ",null,"402409 - Campus Based Fees CBF Voluntary Rev ",null,null,"400000 - ICA Team Equipment ",null,null,null,null,null,null,"GLCMF00236 - ART 103C Intermediate Drawing 3 Dimensions "]
[null,null,null,"18110 - Tobacco Related Disease Research ",null,"402500 - Application Fee Undergraduate ",null,null,"400001 - ICA Fundraising ",null,null,null,null,null,null,"GLCMF00237 - ART 105A Advanced Drawing Studio Projects "]
[null,null,null,"18113 - Umbilical Cord Blood Collection Program ",null,"402510 - Application Fee Graduate ",null,null,"400002 - ICA Game Guarantees ",null,null,null,null,null,null,"GLCMF00238 - ART 105B Advanced Drawing Figure "]
[null,null,null,"18116 - Type 1 Diabetes Research Fund 6440 001 8103 ",null,"402520 - Application Fee Graduate Professional ",null,null,"400003 - ICA Game Expenses ",null,null,null,null,null,null,"GLCMF00239 - ART 110A Intermediate Wet Photography "]
[null,null,null,"18119 - Graduate Medical Education Ca Healthcare Prop 56 ",null,"402530 - Application Fee Self Supporting Degree Programs ",null,null,"400004 - ICA Team Meals ",null,null,null,null,null,null,"GLCMF00240 - ART 110B Intermediate Digital Photography "]
[null,null,null,"18121 - Medical Research Program CA Healthcare Prop 56 ",null,"402590 - Application Fee Planned Educational Leave Program ",null,null,"400005 - ICA Office Supplies ",null,null,null,null,null,null,"GLCMF00241 - ART 110C Intermediate Photography Photographic Lighting "]
[null,null,null,"18125 - Road MaintenanceandRehabilitation ",null,"402591 - Application Fee Planned Educational Leave Program PELP Readmission ",null,null,"400006 - ICA Memberships ",null,null,null,null,null,null,"GLCMF00242 - ART 110DA The Photobook "]
[null,null,null,"18198 - Yearend Accruals ",null,"402600 - Course Material and Service Fees Undergraduate ",null,null,"400007 - ICA Miscellaneous ",null,null,null,null,null,null,"GLCMF00243 - ART 110DB The Photobook "]
[null,null,null,"18199 - Yearend Adjustments ",null,"402601 - Course Material and Service Fees Graduate Professional ",null,null,"400008 - ICA Postage ",null,null,null,null,null,null,"GLCMF00244 - ART 111A Advanced Wet Photography "]
[null,null,null,"18298 - Senate Bill 518 Equine Drug Testing 18298 ",null,"402603 - Course Material and Service Fees Self Supporting Degree Programs ",null,null,"400009 - ICA Printing ",null,null,null,null,null,null,"GLCMF00245 - ART 111B Advanced Digital Photography "]
[null,null,null,"18299 - Senate Bill 518 Equine Drug Testing 18299 ",null,"402609 - Course Material and Service Fees Waivers ",null,null,"400010 - ICA Professional Travel ",null,null,null,null,null,null,"GLCMF00246 - ART 112 Sound for Vision "]
[null,null,null,"18997 - Inactive Special State Programs ",null,"402700 - Student Administration Fees ",null,null,"400011 - ICA Recruiting ",null,null,null,null,null,null,"GLCMF00247 - ART 114A Intermediate Video Animation "]
[null,null,null,"18998 - Other Adjustments ",null,"402701 - Student Fines and Fees ",null,null,"400012 - ICA Team Travel ",null,null,null,null,null,null,"GLCMF00248 - ART 114B Intermediate Video Experimental Documentary "]
[null,null,null,"19900 - State General Fund ",null,"402702 - Student Finance and Other Fees ",null,null,"400013 - ICA Awards ",null,null,null,null,null,null,"GLCMF00249 - ART 114C Intermediate Video Performance Strategies "]
[null,null,null,"19905 - SA Instructional Equip Replacement ",null,"402703 - Study Abroad Programs Admin Fees ",null,null,"400014 - ICA Medical ",null,null,null,null,null,null,"GLCMF00250 - ART 117 Advanced Video and Electronic Arts "]
[null,null,null,"19980 - Indirect Costs Return General ",null,"402704 - New Student Orientation Fees ",null,null,"400015 - ICA Payroll ",null,null,null,null,null,null,"GLCMF00251 - ART 125A Intermediate Printmaking Relief "]
[null,null,null,"19902 - Budget Act Onetime appropriation in 19900 UCLA ",null,"402705 - Study Abroad Accommodation and Services Fees ASA ",null,null,"400016 - ICA Phones ",null,null,null,null,null,null,"GLCMF00252 - ART 125B Intermediate Printmaking Intaglio "]
[null,null,null,"19903 - Purchase Utilities UCSB UCD ",null,"402706 - Other Program Fees ",null,null,"400017 - ICA Banquet ",null,null,null,null,null,null,"GLCMF00253 - ART 125C Intermediate Printmaking Lithography "]
[null,null,null,"19904 - UG Teaching Excellence UCLA UCSB ",null,"402707 - Health Insurance Fees Undergraduate ",null,null,"402000 - Housing Activity ",null,null,null,null,null,null,"GLCMF00254 - ART 125D Intermediate Printmaking Serigraphy "]
[null,null,null,"19906 - Instructional Use of Computers UCSB ",null,"402708 - Health Insurance Fees Grad Professional and Self Supp ",null,null,"402100 - Staff Events Catering Supplies ",null,null,null,null,null,null,"GLCMF00255 - ART 125E Intermediate Printmaking PostDigital Print Media "]
[null,null,null,"19911 - MultiCampus Research ProgsandInitiatives UCI UCSC ",null,"746010 - Systemwide Opt Out Fee for Revenue Transfer ",null,null,"402101 - Staff Meal Product Distribution ",null,null,null,null,null,null,"GLCMF00256 - ART 142A Intermediate Ceramic Sculpture Mold Work "]
[null,null,null,"19912 - Improve Grad Rates for Disadvantaged Students UCM UCR UCSBandUCSC ",null,"746020 - Application Fees Revenue Transfer ",null,null,"402102 - Staff Meal Controllable Distribution ",null,null,null,null,null,null,"GLCMF00257 - ART 142B Intermediate Ceramic Sculpture Clay Glaze and Kiln "]
[null,null,null,"19914 - Academic Senate Grants UCLA ",null,"404000 - Financial Aid and Scholarships Allowance Undergrad Tuition and Fees ",null,null,"402103 - Controllable Distributions ",null,null,null,null,null,null,"GLCMF00258 - ART 142C Intermediate Ceramic Sculpture Ceramics the Painted Surface "]
[null,null,null,"19915 - UC Climate Initiatives UCOP ",null,"404100 - Financial Aid and Scholarships Allowance Graduate all programs ",null,null,"402104 - Marketing Program ",null,null,null,null,null,null,"GLCMF00259 - ART 142D Intermediate Ceramic Sculpture Special Topics "]
[null,null,null,"19916 - UC Climate Initiatives ",null,"404200 - Bad Debt Student Tuition and Fees Revenues ",null,null,"402110 - Taxable ",null,null,null,null,null,null,"GLCMF00260 - ART 143 Advanced Ceramics Sculpture Studio Projects "]
[null,null,null,"19917 - InstructionalandInformation Technology UCSC ",null,"404201 - Credit Card Chargeback Tuition and Fees ",null,null,"402111 - Nontaxable ",null,null,null,null,null,null,"GLCMF00261 - ART 151 Intermediate Sculpture "]
[null,null,null,"19921 - Online Education ",null,"405000 - Federal Appropriations Revenue ",null,null,"402112 - Product Purchases ",null,null,null,null,null,null,"GLCMF00262 - ART 152A Advanced Sculpture Studio Projects "]
[null,null,null,"19922 - MRU General Funds UCSC ",null,"405100 - Federal Appropriation Bad Debt ",null,null,"402113 - Taxable Controllables ",null,null,null,null,null,null,"GLCMF00263 - ART 152B Advanced Sculpture Material Explorations "]
[null,null,null,"19924 - Student Academic Preparation Programs ",null,"405200 - Federal Contracts Revenue ",null,null,"402114 - NonTaxable Products ",null,null,null,null,null,null,"GLCMF00264 - ART 152C Advanced Sculpture Concepts "]
[null,null,null,"19935 - State GF Enrollment Growth UCLA ",null,"405300 - Federal Contracts Bad Debt ",null,null,"402115 - NonTaxable Controllables ",null,null,null,null,null,null,"GLCMF00265 - ART 152D Advanced Sculpture Metals "]
[null,null,null,"19936 - Campus Designated GF UCB ",null,"405400 - Federal Grants Revenue ",null,null,"402116 - Taxable Products ",null,null,null,null,null,null,"GLCMF00266 - ART 152E Advanced Sculpture Site Specific Public Sculpture "]
[null,null,null,"19938 - Aggie Square Satellite Campus Project ",null,"405500 - Federal Grants Bad Debt ",null,null,"402300 - Miscellaneous Commission ",null,null,null,null,null,null,"GLCMF00267 - ART 190 Seminar in Art Practice "]
[null,null,null,"19939 - Temp Allocs from ITFs for 19900 UCLA ",null,"405600 - Federal Student Aid Grants Revenue Excluding Pell ",null,null,"402301 - Key Services ",null,null,null,null,null,null,"GLCMF00268 - CDM 20 Filmmaking Foundations "]
[null,null,null,"19944 - Antibias Training Program 3 ",null,"406000 - Special State Appropriations Revenue ",null,null,"402302 - Cancellation Fee ",null,null,null,null,null,null,"GLCMF00269 - CDM 107 Acting for Camera "]
[null,null,null,"19945 - Jordans Syndrome ",null,"406050 - Special State Appropriations Bad Debt ",null,null,"402303 - Parking Fee ",null,null,null,null,null,null,"GLCMF00270 - CDM 100 Experimental Digital Cinema I "]
[null,null,null,"19946 - Lease Purchase Debt Service ",null,"406100 - State Contracts Revenue ",null,null,"402304 - Late Fee ",null,null,null,null,null,null,"GLCMF00271 - CDM 101 Experimental Digital Cinema I "]
[null,null,null,"19947 - Go Bond Debt Service ",null,"406200 - State Contracts Bad Debts Contra Revenue ",null,null,"402305 - Mail Box ",null,null,null,null,null,null,"GLCMF00272 - DES 70 Introduction to Textile Design Structures "]
[null,null,null,"19948 - Lease Purchase Debt Service Savings ",null,"406300 - State Grants Revenue ",null,null,"402306 - Housekeeping Chemicals ",null,null,null,null,null,null,"GLCMF00273 - DES 77 Introduction to Structural Design for Fashion "]
[null,null,null,"19949 - Legal Services UndocumentedImmigrant ",null,"406400 - State Grants Bad Debts Contra Revenue ",null,null,"402307 - Housekeeping Paper ",null,null,null,null,null,null,"GLCMF00274 - DES 113 Photography and Digital Imaging "]
[null,null,null,"19953 - VectorBorne Disease Surveilance Gateway 3 UCD ",null,"407000 - Local Contracts Revenue ",null,null,"402308 - Housekeeping Disposables ",null,null,null,null,null,null,"GLCMF00275 - DES 115 Letterforms and Typography "]
[null,null,null,"19954 - InnovationandEntrepreneurship Grants ",null,"407100 - Local Contracts Bad Debts Contra Revenue ",null,null,"403001 - Grand Rounds ",null,null,null,null,null,null,"GLCMF00276 - DES 127B Studio Practice in Sustainable Design "]
[null,null,null,"19955 - Support for Low Income URM LCFF plusStudents ",null,"407200 - Local Grants Revenue ",null,null,"403002 - Fellows ",null,null,null,null,null,null,"GLCMF00277 - DES 128 BioDesign Theory and Practice "]
[null,null,null,"19956 - Firearms Violence Research ",null,"407300 - Local Grants Bad Debts Contra Revenue ",null,null,"403003 - Residents ",null,null,null,null,null,null,"GLCMF00278 - DES 132A Textile Design Woven Structures "]
[null,null,null,"19957 - UC Scout ",null,"408000 - Private Contracts Revenue ",null,null,"403004 - Women in Med Health Sciences ",null,null,null,null,null,null,"GLCMF00279 - DES 134A Introduction to Interior Design Residential "]
[null,null,null,"19958 - Faculty Best Practices ",null,"408100 - Private Contracts Bad Debts Contra Revenue ",null,null,"403005 - Forensics ",null,null,null,null,null,null,"GLCMF00280 - DES 134B Introduction to Interior Design Commercial and Technical Spaces "]
[null,null,null,"19959 - Underground Scholars Initiative ",null,"408200 - Private Grants Revenue ",null,null,"450000 - PERK Collections Commissions ",null,null,null,null,null,null,"GLCMF00281 - DES 135A Furniture Design and Detailing "]
[null,null,null,"19960 - Marine Mammal Stranding NetworksandWhale Disentanglement UCD ",null,"408300 - Private Grants Bad Debts Contra Revenue ",null,null,"450001 - PERK Administrative Expense ",null,null,null,null,null,null,"GLCMF00282 - DES 135B Furniture Design and Prototyping "]
[null,null,null,"19962 - UCOP General Fund ",null,"724010 - Subcontract Revenue Awarded from UC Berkeley ",null,null,"450002 - PERK Costs and Losses ",null,null,null,null,null,null,"GLCMF00283 - DES 137A Daylighting and Interior Design "]
[null,null,null,"19963 - Systemwide UC Path General Fund ",null,"724020 - Subcontract Revenue Awarded from UC San Francisco ",null,null,"450003 - PERK Teachers SVC Cancelation ",null,null,null,null,null,null,"GLCMF00284 - DES 150 ComputerAssisted Presentation for Interior Architecture "]
[null,null,null,"19964 - Telemedicine Psychiatry Residency 3 ",null,"724030 - Subcontract Revenue Awarded from UC Davis ",null,null,"450004 - PERK D and D Cancelation ",null,null,null,null,null,null,"GLCMF00285 - DES 155A Pattern Form and Surface "]
[null,null,null,"19965 - Ralph J Bunche Center for African American Studies 3 UCLA ",null,"724040 - Subcontract Revenue Awarded from UC Los Angeles ",null,null,"450005 - PERK Fed Gov Assigned Cancelation ",null,null,null,null,null,null,"GLCMF00286 - DES 159 Design for Understanding "]
[null,null,null,"19967 - Charles R Drew Postgraduate Medical School ",null,"724050 - Subcontract Revenue Awarded from UC Riverside ",null,null,"450006 - PERK Law Enforcement Cancelation ",null,null,null,null,null,null,"GLCMF00287 - DES 160 Textile Surface Design Patterns and Resists "]
[null,null,null,"19968 - AIDS Research ",null,"724060 - Subcontract Revenue Awarded from UC San Diego ",null,null,"450007 - PERK Military Service Cancellation ",null,null,null,null,null,null,"GLCMF00288 - DES 161 Textile Surface Design Screen and Digital Printing "]
[null,null,null,"19969 - Student Financial Aid ",null,"724070 - Subcontract Revenue Awarded from UC Santa Cruz ",null,null,"450008 - PERK Other Cancelations ",null,null,null,null,null,null,"GLCMF00289 - DES 165 Studio Practices in Industrial Design "]
[null,null,null,"19970 - Subject Matter Projects ",null,"724080 - Subcontract Revenue Awarded from UC Santa Barbara ",null,null,"450009 - PERK Fed Reimbursed Cancelations ",null,null,null,null,null,null,"GLCMF00290 - DES 166 HumanCentered Design "]
[null,null,null,"19971 - Presidents Workstudy ",null,"724090 - Subcontract Revenue Awarded from UC Irvine ",null,null,"450010 - PERK Bankruptcy Cancelations ",null,null,null,null,null,null,"GLCMF00291 - DES 167 Prototyping "]
[null,null,null,"19972 - San Joaquin Valley PRIME ",null,"724100 - Subcontract Revenue Awarded from UC Merced ",null,null,"450011 - PERK Volunteer Service Cancelations ",null,null,null,null,null,null,"GLCMF00292 - DES 168 Interactive Objects "]
[null,null,null,"19973 - Dream Loan Program ",null,"724110 - Subcontract Revenue Awarded from UC Office of the President ",null,null,"450012 - PERK C F EI Cancelations ",null,null,null,null,null,null,"GLCMF00293 - DES 169 Adv Explorations in Textile Design "]
[null,null,null,"19974 - UCOP ANR General Fund ",null,"724120 - Subcontract Revenue Awarded from Ag and Natural Resources ",null,null,"450013 - PERK Nurse or Medical Tech Cancelations ",null,null,null,null,null,null,"GLCMF00294 - DES 170 Experimental Fashion Textile Design "]
[null,null,null,"19975 - Presidents Workstudy UCSB ",null,"725010 - Subcontract Expense Awarded to UC Berkeley ",null,null,"450014 - PERK Public Defender ",null,null,null,null,null,null,"GLCMF00295 - DES 177 Computer Assisted Fashion Design "]
[null,null,null,"19976 - ANR Temporary Funding ",null,"725020 - Subcontract Expense Awarded to UC San Francisco ",null,null,"450015 - PERK PreK Child Care Cancelations ",null,null,null,null,null,null,"GLCMF00296 - DES 178 Design and Wearable Technology "]
[null,null,null,"19977 - ANR CE Specialist Support ",null,"725030 - Subcontract Expense Awarded to UC Davis ",null,null,"450016 - PERK Firefighter Cancelations ",null,null,null,null,null,null,"GLCMF00297 - DES 179 Fashion Design Signature Collection "]
[null,null,null,"19978 - ANR Startup Salary Recovery ",null,"725040 - Subcontract Expense Awarded to UC Los Angeles ",null,null,"450017 - PERK Speech Pathology Cancelations ",null,null,null,null,null,null,"GLCMF00298 - DES 180B Advanced Interior Architecture "]
[null,null,null,"19979 - ANR Competitive Grants ",null,"725050 - Subcontract Expense Awarded to UC Riverside ",null,null,"450018 - PERK Librarian Services Cancelations ",null,null,null,null,null,null,"GLCMF00299 - DES 186 Environmental Graphic Design "]
[null,null,null,"19981 - Valley Fever Research 3 ",null,"725060 - Subcontract Expense Awarded to UC San Diego ",null,null,"450019 - PERK VA Disability Cancelations ",null,null,null,null,null,null,"GLCMF00300 - CHE 002A General Chemistry "]
[null,null,null,"19982 - UC Berkeleys Operating Deficit 3 ",null,"725070 - Subcontract Expense Awarded to UC Santa Cruz ",null,null,"450020 - PERK Institutional Share Buyback ",null,null,null,null,null,null,"GLCMF00302 - CHE 002B General Chemistry "]
[null,null,null,"19983 - Conservation Genomics 3 ",null,"725080 - Subcontract Expense Awarded to UC Santa Barbara ",null,null,"450021 - PERK University Contribution ",null,null,null,null,null,null,"GLCMF00304 - CHE 002C General Chemistry "]
[null,null,null,"19984 - Student Basic Needs 2 3 ",null,"725090 - Subcontract Expense Awarded to UC Irvine ",null,null,"450022 - Federal Loan Cost Control ",null,null,null,null,null,null,"GLCMF00306 - CHE 004A General Chemistry for the Physical Sciences Engineering "]
[null,null,null,"19985 - Student Rapid Rehousing 2 3 ",null,"725100 - Subcontract Expense Awarded to UC Merced ",null,null,"800000 - CAAA Membership Services ",null,null,null,null,null,null,"GLCMF00307 - CHE 004B General Chemistry for the Physical Sciences Engineering "]
[null,null,null,"19986 - Student Mental Health Programs 2 3 ",null,"725110 - Subcontract Expense Awarded to UCOP ",null,null,"800001 - Alumni Network Support ",null,null,null,null,null,null,"GLCMF00308 - CHE 004C General Chemistry for the Physical Sciences Engineering "]
[null,null,null,"19987 - Degree Completion Programs at UC Extension ",null,"725120 - Subcontract Expenses Awarded to ANR ",null,null,"800002 - Chapter Support ",null,null,null,null,null,null,"GLCMF00309 - CHE 008B Organic Chemistry "]
[null,null,null,"19988 - Disaster Relief Emergency Student Financial Aid ",null,"410000 - External Sales and Services Revenues ",null,null,"800003 - Athletic Support ",null,null,null,null,null,null,"GLCMF00310 - CHE 104 Forensic Applications of Analytical Chemistry "]
[null,null,null,"19989 - Animal Shelter Grant Program ",null,"410001 - Materials Pass Thru Revenue ",null,null,"800050 - Wine Program ",null,null,null,null,null,null,"GLCMF00311 - CHE 105 Analytical Physical Chemistry Methods "]
[null,null,null,"25020 - SAPEP ",null,"410003 - Farm and Agricultural Sales and Services Revenue ",null,null,"800051 - Beer Program ",null,null,null,null,null,null,"GLCMF00312 - CHE 115 Instrumental Analysis "]
[null,null,null,"20000 - Federal Grants ",null,"410004 - Conferences Workshop Symposium and Seminars Revenue ",null,null,"800052 - Special Interest Chapters ",null,null,null,null,null,null,"GLCMF00313 - CHE 118B Organic Chemistry "]
[null,null,null,"20001 - Pell Grants ",null,"410005 - Continuing Education Courses and Programs ",null,null,"800053 - Parent and Family Programs ",null,null,null,null,null,null,"GLCMF00314 - CHE 118C Organic Chemistry "]
[null,null,null,"20002 - Work Study ",null,"410006 - Performing Arts and Museum Revenue ",null,null,"800054 - Retiree Center ",null,null,null,null,null,null,"GLCMF00315 - CHE 124L Laboratory Methods in Inorganic Chemistry "]
[null,null,null,"20003 - Federal Contracts ",null,"410007 - Sponsorship Revenue Educ Activities ",null,null,"800055 - International Programs ",null,null,null,null,null,null,"GLCMF00316 - CHE 125 Advanced Methods in Physical Chemistry "]
[null,null,null,"20010 - Federal Funds for Capital ",null,"418100 - Sales and Services of Educational Activities Non Clinical Contra Allowance ",null,null,"800056 - General Program ",null,null,null,null,null,null,"GLCMF00317 - CHE 129A Organic Chemistry "]
[null,null,null,"20400 - State Contracts and Grants ",null,"418101 - Credit Card Chargeback Sales and Services ",null,null,"800057 - Careers Program ",null,null,null,null,null,null,"GLCMF00318 - CHE 129B Organic Chemistry "]
[null,null,null,"20401 - Local Contracts and Grants ",null,"418110 - Sales and Services of Educational Activities Non Clinical Contra Bad Debt ",null,null,"800058 - Scholarship Program ",null,null,null,null,null,null,"GLCMF00319 - CHE 129C Organic Chemistry "]
[null,null,null,"20402 - State and Local Contract Flowthrough ",null,"420000 - Contract Inc Exempt MedCompliance Fees ",null,null,"800100 - Camp and Crystal Lake ",null,null,null,null,null,null,"GLCMF00320 - CHE 135 Advanced BioOrganic Chemistry Laboratory "]
[null,null,null,"20403 - State and Local Grant Flowthrough ",null,"420002 - Miscellaneous MedCompliance Income A ",null,null,"800101 - Aggie Adventures Travel ",null,null,null,null,null,null,"GLCMF00321 - CHE 145 Good Quality Practices "]
[null,null,null,"20404 - State LEAP Workstudy ",null,"420003 - Miscellaneous MedCompliance Income B ",null,null,"800102 - Leader Conference ",null,null,null,null,null,null,"GLCMF00322 - GEL 35 Rivers "]
[null,null,null,"20410 - State and Local Contracts and Grants for Capital ",null,"420014 - State Plan Amendment SPA Revenue ",null,null,"800103 - Aggie Welcome ",null,null,null,null,null,null,"GLCMF00323 - GEL 050L Physical Geology Laboratory "]
[null,null,null,"20700 - Private Contracts and Grants ",null,"420050 - Prop 56 Incentive Revenue ",null,null,"800104 - Alumni Awards ",null,null,null,null,null,null,"GLCMF00324 - GEL 60 Earth Materials Introduction "]
[null,null,null,"20701 - Private Contract Flowthrough ",null,"420051 - EHR Incentive Revenue ",null,null,"800150 - Campus collaboration ",null,null,null,null,null,null,"GLCMF00325 - GEL 101L Earth Dynamics II StructureTectonics Laboratory "]
[null,null,null,"20702 - Private Grant Flowthrough ",null,"420052 - Misc Incentive Revenue ",null,null,"800151 - UC Davis ",null,null,null,null,null,null,"GLCMF00326 - GEL 103 Field Geology "]
[null,null,null,"20710 - Private Contacts and Grants for Capital ",null,"420053 - Late Charge Adjustment ",null,null,"800200 - Facilities Operations Building ",null,null,null,null,null,null,"GLCMF00327 - GEL 105 Earth Materials Igneous Rocks "]
[null,null,null,"21005 - Hatch Non Integrated Odd Year ",null,"420054 - Rate Range IGT Revenue ",null,null,"800201 - Association Facilities ",null,null,null,null,null,null,"GLCMF00328 - GEL 106 Earth Materials Metamorphic Rocks "]
[null,null,null,"21006 - Hatch Non Integrated Even Year ",null,"420100 - VMTH Professional Fees ",null,null,"211027 - ESP Student Club ",null,null,null,null,null,null,"GLCMF00329 - GEL 109L Earth History Sediments and Strata Laboratory "]
[null,null,null,"21009 - Hatch Integrated Odd Year ",null,"420109 - VMTH Other Revenue ",null,null,"810000 - Active Minds at UC Davis ",null,null,null,null,null,null,"GLCMF00330 - GEL ESP 116N Oceanography "]
[null,null,null,"21010 - Hatch Integrated Even Year ",null,"420110 - VMTH Fee Discounts ",null,null,"810001 - Actuarial and Decision Science ",null,null,null,null,null,null,"GLCMF00331 - GEL 136 Ecogeomorphology of Rivers and Streams "]
[null,null,null,"20860 - Federal Appropriations MultiState ",null,"420115 - VMTH Credit Card Chargebacks ",null,null,"810002 - Actuarial and Decision Sciences Assoc ",null,null,null,null,null,null,"GLCMF00332 - GEL 140 Intro to Process Geomorphology "]
[null,null,null,"21013 - Hatch Multi State Integrated Odd Yr ",null,"420200 - SON Professional Contract ",null,null,"810004 - Advanced Modeling Aeronautics Team ",null,null,null,null,null,null,"GLCMF00333 - NAS 34 Native American Art Studio "]
[null,null,null,"21014 - Hatch Multi State Integrated Even Yr ",null,"420201 - SON HRSA NP Residency Contracts ",null,null,"810005 - Adventist Christian Fellowship ACF ",null,null,null,null,null,null,"GLCMF00334 - PHE 1 Golf "]
[null,null,null,"21015 - Hatch Multi State Non Integrated Odd Yr ",null,"423000 - Contract Income Subject Med Comp Plan ",null,null,"810006 - Afghan Student Association ",null,null,null,null,null,null,"GLCMF00335 - PSC 124L Comparative Neuroanatomy Laboratory "]
[null,null,null,"21016 - Hatch Multi State Non Integrated Even Yr ",null,"423001 - Contract Income Subject Med Comp Plan with Overhead ",null,null,"810007 - African and Black Coalition ",null,null,null,null,null,null,"GLCMF00336 - PHY 007A General Physics "]
[null,null,null,"21007 - Mcintire Stennis Odd Year Income ",null,"423002 - Expert Witness and Legal Fees ",null,null,"810008 - African American Black Coalition ",null,null,null,null,null,null,"GLCMF00337 - PHY 007B General Physics "]
[null,null,null,"21008 - Mcintire Stennis Act Even Year ",null,"423003 - MCP Tobacco Tax ",null,null,"810009 - Afrovibes ",null,null,null,null,null,null,"GLCMF00338 - PHY 007C General Physics "]
[null,null,null,"21003 - Hatch Regular Animal Health Odd Year ",null,"423004 - MCP Billing ",null,null,"810010 - Agape ",null,null,null,null,null,null,"GLCMF00339 - PHY 009A Classical Physics "]
[null,null,null,"21004 - Hatch Regular Animal Health Even Year ",null,"423005 - MCP Academic ",null,null,"810011 - Agathon ",null,null,null,null,null,null,"GLCMF00340 - PHY 009B Classical Physics "]
[null,null,null,"21011 - Animal Health Research Odd Year ",null,"423006 - MCP Facility ",null,null,"810012 - Aggie Animal Rescue Club ",null,null,null,null,null,null,"GLCMF00341 - PHY 009C Classical Physics "]
[null,null,null,"21012 - Animal Health Research Even Year ",null,"423007 - MCP Department ",null,null,"810013 - Aggie Archery at UC Davis ",null,null,null,null,null,null,"GLCMF00342 - PHY 009D Classical Physics "]
[null,null,null,"21050 - Smith Lever 3 BandC Funds ",null,"423008 - MCP SOM Agreements ",null,null,"810014 - Aggie Barbell Club ",null,null,null,null,null,null,"GLCMF00343 - MGV13 490A Topics in Management "]
[null,null,null,"21056 - Smith Lever Integrated ",null,"423010 - MCP Graduated Plan Fees ",null,null,"810015 - Aggie Gaming at UC Davis ",null,null,null,null,null,null,"GLCMF00344 - ABT 015 Wood Properties and Fabrication "]
[null,null,null,"21057 - Smith Lever Multi State ",null,"423011 - MCP PMB Fees ",null,null,"810017 - Aggie Mock Business Club ",null,null,null,null,null,null,"GLCMF00345 - TXC 162L Textile Fabrics Laboratory "]
[null,null,null,"21058 - Smith Lever IntegratedandMulti State ",null,"423012 - SOM Department Agreements ",null,null,"810018 - Aggie Transcript at UC Davis ",null,null,null,null,null,null,"GLCMF00346 - ANT 181 Archaeological Field Methods "]
[null,null,null,"21064 - Expanded FoodandNutrition Ed Program ",null,"423043 - Charity Care Allowance ",null,null,"810019 - Aggies for Humanity ",null,null,null,null,null,null,"GLCMF00347 - ART 101B Intermediate Painting Figure "]
[null,null,null,"21067 - Smith Lever Renewable Resources ",null,"423084 - SOM Miscellaneous Income ",null,null,"810020 - Aggies for Israel ",null,null,null,null,null,null,"GLCMF00348 - ART 101C Intermediate Painting Watercolor "]
[null,null,null,"20950 - Accts Rec Federal Approp 21000 ",null,"423086 - Faculty Outside Activity OATS ",null,null,"810021 - Aggies for Recovery ",null,null,null,null,null,null,"GLCMF00349 - ART 101D Intermediate Painting Installation "]
[null,null,null,"20951 - United States Appropriation Summary 21099 ",null,"426000 - Educational Activities Medical and Veterinary Clinical Services Contra Allowance ",null,null,"810022 - Aggies of Color ",null,null,null,null,null,null,"GLCMF00350 - ART 103AN Intermediate Drawing "]
[null,null,null,"21063 - Rural Development ",null,"426100 - Educational MED and VET Clinical Services Bad Debt ",null,null,"810023 - Aggies Online Network ",null,null,null,null,null,null,"GLCMF00351 - ART 103BN Intermediate Drawing Figure "]
[null,null,null,"21095 - Fed App Build America Bond Subsidy ",null,"430000 - Regular Session Resident Hall Income ",null,null,"810024 - Agnostic and Atheist Student Association ",null,null,null,null,null,null,"GLCMF00352 - ART 113 Interdisciplinary Art "]
[null,null,null,"20960 - Federal Appropriations for Capital ",null,"430001 - Student Housing Apartment Income ",null,null,"810025 - Alpha Kappa Delta Society ",null,null,null,null,null,null,"GLCMF00353 - ART 129 Advanced Printmaking "]
[null,null,null,"21000 - State Appropriations for Capital 21049 ",null,"430002 - Housing Marketing Flex Fund Income ",null,null,"810026 - Alzheimers Buddies at UC Davis ",null,null,null,null,null,null,"GLCMF00354 - ART 138 The Artists Book "]
[null,null,null,"21001 - CDFA 6601 CAHFS 18652 ",null,"430003 - Privatized Housing Income ",null,null,"810027 - Ambassadors of Mathematical and Physical ",null,null,null,null,null,null,"GLCMF00355 - CDM 104 Documentary Production "]
[null,null,null,"60100 - Restricted Gift Funds for Capital ",null,"430004 - P3 Lease Income ",null,null,"810028 - American Association of University Women ",null,null,null,null,null,null,"GLCMF00356 - DES 16 Graphic Design and Computer Technology "]
[null,null,null,"63000 - CS IT Reasearch OptICAl Network Arcite 40000 ",null,"430005 - Green Housing Income ",null,null,"810029 - American Cancer Society at UC Davis ",null,null,null,null,null,null,"GLCMF00357 - DES 50 Introduction to Three Dimensional Design "]
[null,null,null,"63001 - DANR San Joaquin Entom Res 40000 ",null,"430009 - Housing Sales and Services Income ",null,null,"810030 - American Indian Science and Engineering ",null,null,null,null,null,null,"GLCMF00358 - GEL 116N Oceanography "]
[null,null,null,"63002 - DANR Santa Clara Mushroom Res 40001 ",null,"430030 - Mandatory Aggie Cash Revenue ",null,null,"810031 - American Institute of Chemical Engineers ",null,null,null,null,null,null,"GLCMF00359 - DRA 028 Entertainment Engineering and Management Stagecraft to Stage Management "]
[null,null,null,"63003 - DANR Sf Marine Programs 40002 ",null,"430031 - Mandatory Board Revenue ",null,null,"810032 - American Institute of Professional Geologists ",null,null,null,null,null,null,"GLCMF00360 - VEN135 Wine Technology and Winery Systems "]
[null,null,null,"63005 - IM Research Oxalate Disease 40004 ",null,"430032 - Voluntary Aggie Cash Revenue ",null,null,"810033 - American Red Cross Club ",null,null,null,null,null,null,"GLCMF00361 - CRD 156 Community Economic Development "]
[null,null,null,"63006 - ITS EV Power Systems Lab 40005 ",null,"430033 - Voluntary Board Revenue ",null,null,"810034 - American Society for Biochemistry ",null,null,null,null,null,null,"GLCMF00362 - CRD 164 Theories of Organizations and Their Role in Comm Change "]
[null,null,null,"63008 - Mae Sme Student Chapter 40007 ",null,"430034 - Dining Commission Revenue ",null,null,"810035 - American Society of Civil Engineers ",null,null,null,null,null,null,"GLCMF00363 - PLB 105 Plant Anatomy "]
[null,null,null,"63009 - CAES Science and Society Program 40008 ",null,"430035 - Get Mobile Revenue ",null,null,"810036 - American Society of Heating Refrigeration ",null,null,null,null,null,null,"GLCMF00364 - ETX 020 Introduction to Forensic Science "]
[null,null,null,"63010 - African American Studies Dept Support 40009 ",null,"430036 - Banquet and Catering Income ",null,null,"810037 - American Society of Landscape Architects ",null,null,null,null,null,null,"GLCMF00365 - LDA 191 Landscape Architecture Planning and Design Studio "]
[null,null,null,"63011 - AAES College Fund 40010 ",null,"430037 - SHA Board Revenue ",null,null,"810039 - American Water Works Association Student Chapter ",null,null,null,null,null,null,"GLCMF00366 - LDA 202 Methods in Design and Landscape Research "]
[null,null,null,"63012 - Colleges Grad Education Program 40011 ",null,"430038 - Dining Cash Sales ",null,null,"810040 - Amnesty International ",null,null,null,null,null,null,"GLCMF00367 - LDA 205 Urban Planning and Design "]
[null,null,null,"63013 - BAE CREA Energy Research 40012 ",null,"430039 - Dining Credit Card Sales ",null,null,"810041 - Animal Biology Club ",null,null,null,null,null,null,"GLCMF00368 - LDA 215 What is Infrastructure Critical Infrastructure Studies "]
[null,null,null,"63014 - Tiny Scholarship 40013 ",null,"430040 - Green Board Income ",null,null,"810042 - Anthropology Club at UC Davis ",null,null,null,null,null,null,"GLCMF00369 - LDA 280 Landscape Conservation "]
[null,null,null,"63015 - KFS Conversion Gift Fund ",null,"430041 - Snap Income ",null,null,"810043 - Anthropology Graduate Student Assoc ",null,null,null,null,null,null,"GLCMF00370 - WFC 155 Wildlife Habitat Ecology and Conservation "]
[null,null,null,"63016 - Dr Barbara Sawyer Memorial Schlsp 40015 ",null,"430049 - Other Dining and Retail Income ",null,null,"810044 - Apapa at UC Davis ",null,null,null,null,null,null,"GLCMF00371 - WFC 156 Plant Geography "]
[null,null,null,"63017 - VM Surg Blue Ridge Pharmaceuticals 40016 ",null,"430050 - Conference Housing Income ",null,null,"810045 - APIQ ",null,null,null,null,null,null,"GLCMF00372 - WFC 157 Coastal Ecosystems "]
[null,null,null,"63019 - Marin Co Vet Med Assn Schlsp 40018 ",null,"430051 - Interim Housing Income ",null,null,"810046 - Arab Student Union ",null,null,null,null,null,null,"GLCMF00373 - ANS 018 Introductory Aquaculture "]
[null,null,null,"63020 - VMapc Aquatic Toxicology Research 40019 ",null,"430055 - Conference Dining ",null,null,"810047 - Ascend ",null,null,null,null,null,null,"GLCMF00374 - PLS 150 Sustainability and Agroecosystem Mgmt "]
[null,null,null,"63021 - Krec Research and Operations 40020 ",null,"430063 - Orientation Sponsorships ",null,null,"810048 - Ashrae ",null,null,null,null,null,null,"GLCMF00375 - SSC 109 Sustainable Nutrition Mgmt "]
[null,null,null,"63024 - CabParrott Projects 40022 ",null,"430070 - Food Security Donations Non Restricted ",null,null,"810049 - Asian American Association AAA ",null,null,null,null,null,null,"GLCMF00376 - WFC 100 Field Methods in Wildlife Fish and Cons Bio "]
[null,null,null,"63026 - Commnity Development Research Fujimoto 40024 ",null,"430071 - Food Security Donations Restricted ",null,null,"810050 - Asian American Christian Fellowship ",null,null,null,null,null,null,"GLCMF00377 - DES 145 Visual Communications "]
[null,null,null,"63028 - Agmen Grad Fellowship 40026 ",null,"430080 - Commissions ",null,null,"810051 - Asian Pacific Islanders Queers ",null,null,null,null,null,null,"GLCMF00378 - WFC 120 Biology Conservation of Fishes "]
[null,null,null,"63029 - Acs Fellowship 40027 ",null,"430081 - Gift Card Sales ",null,null,"810052 - Asian Sorority Fraternity Council ",null,null,null,null,null,null,"GLCMF00379 - GLCMF Project for WFC 120 Biology and Conservation of Fishes "]
[null,null,null,"63030 - Biol Sci Life Sci Addition 40028 ",null,"430082 - Vending Sales ",null,null,"810053 - ASLA Student Chapter at UCD ",null,null,null,null,null,null,"GLCMF00380 - EMS 182 Course Material Fee "]
[null,null,null,"63031 - Arcs Fdn SchpMental Health 40029 ",null,"430083 - Housing and Dining Sponsorship Revenue ",null,null,"810054 - Associated Students of Interior Design ",null,null,null,null,null,null,"GLCMF00381 - EME50 Mechanical Design "]
[null,null,null,"63032 - Arcs Foundation Scholarship 40030 ",null,"430084 - Franchise and Promotional Income ",null,null,"810055 - Associated Students of Management ",null,null,null,null,null,null,"GLCMF00382 - VEN 127 Course Material Fee "]
[null,null,null,"63033 - Arcs Fdn Schp Nutrition 40031 ",null,"430085 - UP3 Income ",null,null,"810056 - Association for Women Geoscientists ",null,null,null,null,null,null,"GLCMF00383 - BIM 177 Introduction to Rapid Prototyping for BME "]
[null,null,null,"63034 - Ctr NeuroscienceArcs Fdn 40032 ",null,"430090 - Dining and Retail Sales Tax ",null,null,"810057 - Association of Environmental Professionals ",null,null,null,null,null,null,"GLCMF00384 - BIM 110 BME Senior Design "]
[null,null,null,"63035 - Ctr For Population BiolArcs Fdn 40033 ",null,"430091 - Cash Over Under Dining and Housing ",null,null,"810058 - Athletes in Action ",null,null,null,null,null,null,"GLCMF00385 - BIM 118 Microelectromechanical Systems "]
[null,null,null,"63036 - Arcs FoundationEnv Studies 40034 ",null,"430092 - Dining Retail and Housing Auxiliary Refunds ",null,null,"810059 - Aggie Neurodiversity Community ",null,null,null,null,null,null,"GLCMF00386 - BIM 161 Biomolecular Engineering "]
[null,null,null,"63037 - Arcs Fnd SchlspAn Physiology 40035 ",null,"431000 - Parking Revenue ",null,null,"810060 - Avian and Exotic Animal Medicine Club AEMC ",null,null,null,null,null,null,"GLCMF00387 - CBS Temp Teaching "]
[null,null,null,"63039 - Ellison Gerhardy Memorial Fd 40037 ",null,"431001 - Other Transportation Revenue ",null,null,"810061 - Aviation Club ",null,null,null,null,null,null,"GL02030001 - Cathryn Lawrence ACADEMIC AFFAIRS GL Only "]
[null,null,null,"63040 - Richard Sinopoli Memorial Fd 40038 ",null,"432010 - Athletics Ticket Sales Revenue ",null,null,"810062 - Aviation Club at UC Davis ",null,null,null,null,null,null,"GL4HCO0174 - Constance Schneider CALIFORNIA STATE 4H OFFICE GL Only "]
[null,null,null,"63041 - Chem Research Dr R Bryan Miller 40039 ",null,"432011 - Athletics Ticket Sales Clearing Account ",null,null,"810063 - Ax Dance Crew ",null,null,null,null,null,null,"GL4HCO6145 - Gemma Miner CALIFORNIA STATE 4H OFFICE "]
[null,null,null,"63042 - Cab Avian Bio Res 40040 ",null,"432012 - Athletics Box Office Sales ",null,null,"810064 - BahaI Club at UCD ",null,null,null,null,null,null,"GL4HCO6193 - Linda SchmittMcquitty CALIFORNIA STATE 4H OFFICE "]
[null,null,null,"63043 - Engineering Students Support 40041 ",null,"432019 - NCAA Student Opportunity and Assistance ",null,null,"810065 - Baile De Fuego ",null,null,null,null,null,null,"GLAANS0325 - Thomas Famula ANIMAL SCIENCE GL Only "]
[null,null,null,"63047 - Amer Vet Med Medical Fdn Schlsp 40045 ",null,"432020 - Athletic Invitation Tournament Revenue ",null,null,"810066 - Baja Sae ",null,null,null,null,null,null,"GLAANS0404 - Mary Delany ANIMAL SCIENCE GL Only "]
[null,null,null,"63050 - Annual GivingMed Rstricted 40048 ",null,"432030 - Athletic Facility Fee Income ",null,null,"810067 - Bakuhatsu Taiko Dan ",null,null,null,null,null,null,"GLAANS0492 - Huaijun Zhou ANIMAL SCIENCE GL Only "]
[null,null,null,"63051 - Annual Giving Restricted Gifts 40049 ",null,"432040 - Conference Non Media and Non Bowl Revenue ",null,null,"810068 - Bayanihan Clinic ",null,null,null,null,null,null,"GLAANS0512 - S I Doroshov ANIMAL SCIENCE GL Only "]
[null,null,null,"63052 - UCD Annual Giving Prog Allocations 40050 ",null,"432041 - Conference Bowl Generated Revenue ",null,null,"810069 - Bayside Students at UC Davis ",null,null,null,null,null,null,"GLAANS0522 - James Fadel ANIMAL SCIENCE GL Only "]
[null,null,null,"63053 - Environ Design and Landscape Arch Prgrm 40052 ",null,"432080 - Athletic Sports Camps Revenues ",null,null,"810070 - Behavior Med and Animal Welfare Club ",null,null,null,null,null,null,"GLAANS0589 - Michael Ryan Miller ANIMAL SCIENCE GL Only "]
[null,null,null,"63054 - Engr DiscretionaryIndividuals 40053 ",null,"432090 - Athletic Banquet and Fundraising Event Revenue ",null,null,"810071 - Belly Dance Club ",null,null,null,null,null,null,"GLAANS0640 - Annie King ANIMAL SCIENCE GL Only "]
[null,null,null,"63055 - Engr RestrictedIndividuals 40054 ",null,"432091 - Athletics Royalties Licensing Advertisement and Sponsorships ",null,null,"810072 - Bengali Student Association ",null,null,null,null,null,null,"GLAANS0805 - Anna Denicol ANIMAL SCIENCE GL Only "]
[null,null,null,"63056 - Food Sci Research and Edu Activities Fund 40055 ",null,"432092 - Athletic Licensing Revenue ",null,null,"810073 - Best Buddies ",null,null,null,null,null,null,"GLAANS0807 - Richard Blatchford ANIMAL SCIENCE GL Only "]
[null,null,null,"63059 - UCDAA African Diaspora House 40058 ",null,"432093 - Athletic Consignment Pass Through ",null,null,"810074 - Beyond the Book Club ",null,null,null,null,null,null,"GLAANS0960 - Richard Zinn ANIMAL SCIENCE GL Only "]
[null,null,null,"63060 - UCDMC Cmnt Events 40059 ",null,"432094 - Athletic Program Novelty Parking and Concession Sales ",null,null,"810075 - Beyond The Stats ",null,null,null,null,null,null,"GLAANS1075 - Trish Berger ANIMAL SCIENCE GL Only "]
[null,null,null,"63062 - 93 Childrens Miracle Network Tele 40061 ",null,"432095 - Athletics Concession Revenue ",null,null,"810076 - Bhagat Puran Singh Health Initiative ",null,null,null,null,null,null,"GLAANS1099 - Janet Roser ANIMAL SCIENCE GL Only "]
[null,null,null,"63063 - 94 ChildrenS Miracle Network 40062 ",null,"432099 - Other Athletic Revenue ",null,null,"810077 - Bio Boosters ",null,null,null,null,null,null,"GLAANS1242 - Joy Mench ANIMAL SCIENCE GL Only "]
[null,null,null,"63064 - 89 ChildrenS Miracle Network 40063 ",null,"433200 - NCAA Revenue Distributions ",null,null,"810078 - Bio innovation Group ",null,null,null,null,null,null,"GLAANS1304 - Ralph Ernst ANIMAL SCIENCE GL Only "]
[null,null,null,"63065 - 95 ChildrenS Miracle Network Tele 40064 ",null,"433201 - Athletics Game Guarantee Income ",null,null,"810079 - Biology Owls ",null,null,null,null,null,null,"GLAANS1378 - Andrea Schreier ANIMAL SCIENCE GL Only "]
[null,null,null,"63066 - 90 ChildrenS Miracle Network 40065 ",null,"433202 - Athletics Big West Conference Fees ",null,null,"810080 - Biomedical Engineering Society ",null,null,null,null,null,null,"GLAANS1430 - Matthias Hess ANIMAL SCIENCE GL Only "]
[null,null,null,"63067 - 91 ChildrenS Miracle Network Tele 40066 ",null,"433203 - Athletics Contributions Revenue ",null,null,"810081 - Biotechnology Club of UC Davis ",null,null,null,null,null,null,"GLAANS1460 - Pablo Ross ANIMAL SCIENCE GL Only "]
[null,null,null,"63068 - 92 ChildrenS Miracle Network Tele 40067 ",null,"433000 - Child Care Revenue ",null,null,"810082 - Bird Strike ",null,null,null,null,null,null,"GLAANS1613 - Jason Watters ANIMAL SCIENCE GL Only "]
[null,null,null,"63069 - ChildrenS Miracle Telethon 40068 ",null,"434000 - Student Government Sales Rentals Services ",null,null,"810083 - BIT Project ",null,null,null,null,null,null,"GLAANS1802 - E Price ANIMAL SCIENCE GL Only "]
[null,null,null,"63070 - 96 ChildrenS TelethonUnrestricted 40069 ",null,"434001 - Student Government Dining ",null,null,"810084 - Black Campus Ministries ",null,null,null,null,null,null,"GLAANS1803 - Roberto Sainz ANIMAL SCIENCE GL Only "]
[null,null,null,"63072 - UCDMC Annual Giving 40071 ",null,"434002 - Student Government Catering Revenue ",null,null,"810085 - Black Engineers Association ",null,null,null,null,null,null,"GLAANS1815 - Steven Berry ANIMAL SCIENCE GL Only "]
[null,null,null,"63075 - Med DevCmn Fye Odd 40074 ",null,"434060 - Unitrans Local Operating Grants ",null,null,"810086 - Black Graduate and Professional Studies ",null,null,null,null,null,null,"GLAANS1922 - Gary Anderson ANIMAL SCIENCE GL Only "]
[null,null,null,"63076 - Engr DiscretionaryCorporations 40075 ",null,"434070 - Unitrans Fares Cash ",null,null,"810087 - Black PreLaw Association ",null,null,null,null,null,null,"GLAANS2033 - Gideon Zeidler ANIMAL SCIENCE GL Only "]
[null,null,null,"63078 - Dr Abildgaard Fellowship Program 40077 ",null,"434071 - Unitrans Fares CBO Pass Sales ",null,null,"810088 - Black Student Union ",null,null,null,null,null,null,"GLAANS2143 - Alison Van Eenennaam ANIMAL SCIENCE GL Only "]
[null,null,null,"63079 - Advising Services Fund 40078 ",null,"434072 - Unitrans Outside Pass Sales ",null,null,"810089 - Blockchain ",null,null,null,null,null,null,"GLAANS2199 - Douglas Conklin ANIMAL SCIENCE GL Only "]
[null,null,null,"63080 - Rae S Axelson Memorial Fund 40079 ",null,"434073 - Unitrans Annual Pass Sales ",null,null,"810090 - Blockchain at UC Davis ",null,null,null,null,null,null,"GLAANS2229 - Juan Medrano ANIMAL SCIENCE GL Only "]
[null,null,null,"63081 - Xerox Matching Nsf 94 40080 ",null,"434080 - Student Government Advertising Sales ",null,null,"810091 - Botany Club ",null,null,null,null,null,null,"GLAANS2385 - Timothy Hackmann ANIMAL SCIENCE GL Only "]
[null,null,null,"63082 - Agr EconOak Tree 40081 ",null,"434081 - Student Government Sponsorship Sales ",null,null,"810092 - Breakdance Club at UC Davis ",null,null,null,null,null,null,"GLAANS2404 - E Depeters ANIMAL SCIENCE GL Only "]
[null,null,null,"63083 - Agr Engr Food Engineering 40082 ",null,"434099 - Other Student Government Revenue ",null,null,"810093 - Broad Spectrum Student Chapter of the LGVMA ",null,null,null,null,null,null,"GLAANS2605 - Xiang Yang ANIMAL SCIENCE GL Only "]
[null,null,null,"63084 - A and RS Water Quality Study Kaffka 40083 ",null,"434500 - Campus Recreational Sports ",null,null,"810095 - Brown Issues at UC Davis ",null,null,null,null,null,null,"GLAANS2669 - Ernest Chang ANIMAL SCIENCE GL Only "]
[null,null,null,"63085 - Arco Products Co Schlsp 40084 ",null,"435000 - Student Outpatient Services ",null,null,"810096 - Business Career and Networking Club ",null,null,null,null,null,null,"GLAANS3002 - Maja Makagon Stuart ANIMAL SCIENCE GL Only "]
[null,null,null,"63086 - Arco Seed Veg Crops 40085 ",null,"435500 - Memorial Union Revenue ",null,null,"810097 - CAAA Charter Members Fund Account ",null,null,null,null,null,null,"GLAANS3087 - James Oltjen ANIMAL SCIENCE GL Only "]
[null,null,null,"63087 - Arco Seed Agronomy and Range Sci 40086 ",null,"435501 - Student Passport and Visas ",null,null,"810098 - Cal Aggie Camp ",null,null,null,null,null,null,"GLAANS3224 - Ermias Kebreab ANIMAL SCIENCE GL Only "]
[null,null,null,"63088 - AAES Deans N W Stice 40087 ",null,"436000 - UC Davis Bookstore Sales ",null,null,"810099 - Cal Aggie Christian Association ",null,null,null,null,null,null,"GLAANS3274 - Yanhong Liu ANIMAL SCIENCE GL Only "]
[null,null,null,"63089 - A and RS Research Cotton Cassman 40088 ",null,"436001 - UC Davis Bookstore Rental ",null,null,"810100 - Cal Alumni Association ",null,null,null,null,null,null,"GLAANS3334 - Elizabeth Maga ANIMAL SCIENCE GL Only "]
[null,null,null,"63090 - Agron Ext Ca Beet Growers 40089 ",null,"436002 - UC Davis Bookstore Waivers ",null,null,"810101 - California Health Professionals Student ",null,null,null,null,null,null,"GLAANS3403 - Elisha Hull ANIMAL SCIENCE GL Only "]
[null,null,null,"63091 - ANR Sugarbeet Res BaliKaffka 40089 ",null,"436003 - UC Davis Bookstore Refunds ",null,null,"810102 - California Public Interest Research Group ",null,null,null,null,null,null,"GLAANS3406 - Silas Hung ANIMAL SCIENCE GL Only "]
[null,null,null,"63092 - Agr EconVrsDnrs 40090 ",null,"436009 - Other Bookstore Revenue ",null,null,"810103 - California Student Sustainability Coal ",null,null,null,null,null,null,"GLAANS3422 - Yu Bang Lee ANIMAL SCIENCE GL Only "]
[null,null,null,"63093 - AAES DO Cotton Genetics Prog 40091 ",null,"437000 - Event Space Rental Revenue ",null,null,"810104 - California Womens List at UC Davis ",null,null,null,null,null,null,"GLAANS3467 - Lee Pettey ANIMAL SCIENCE GL Only "]
[null,null,null,"63094 - Agr Engr Plant Genetics 40092 ",null,"437500 - Faculty Owned Housing Revenue and Income ",null,null,"810105 - Cambodian Lao LuMien Coalition CLIC ",null,null,null,null,null,null,"GLAANS3648 - Hao Cheng ANIMAL SCIENCE GL Only "]
[null,null,null,"63095 - A and RS Research Suppport 40093 ",null,"438000 - Mailing and Postage Service ",null,null,"810106 - Camelid Medicine Club ",null,null,null,null,null,null,"GLAANS3771 - Payam Vahmani ANIMAL SCIENCE GL Only "]
[null,null,null,"63096 - Agr Botany Du Pont Ed Aid 40094 ",null,"438500 - Sales and Services of Auxiliaries Contra ",null,null,"810107 - Camp Adventure ",null,null,null,null,null,null,"GLAANS3832 - Francine Bradley ANIMAL SCIENCE GL Only "]
[null,null,null,"63097 - Agr Engr Frioalimentos DArago 40095 ",null,"438501 - Credit Card Chargeback Auxiliaries ",null,null,"810108 - Camp Kesem ",null,null,null,null,null,null,"GLAANS3835 - Michael Mienaltowski ANIMAL SCIENCE GL Only "]
[null,null,null,"63099 - A and ES Deparment Of Managerial Economics 40097 ",null,"438600 - Sales and Services Auxiliaries Rev Bad Debt ",null,null,"810109 - Camped ",null,null,null,null,null,null,"GLAANS3860 - Thomas Adams ANIMAL SCIENCE GL Only "]
[null,null,null,"63102 - A and ES Ca Community Fdn 40100 ",null,"438700 - Sales and Serv of Auxiliary Undergrad Student Fin Aid Allow ",null,null,"810110 - Campus Crusade for Christ ",null,null,null,null,null,null,"GLAANS3973 - Dietmar Kueltz ANIMAL SCIENCE GL Only "]
[null,null,null,"63103 - Agr Engr Forest Resource Prod 40101 ",null,"438701 - Sales and Serv of Auxiliary Grad Student Fin Aid Allow ",null,null,"810111 - Campus Rotaract Club of Davis ",null,null,null,null,null,null,"GLAANS4047 - Kirk Klasing ANIMAL SCIENCE GL Only "]
[null,null,null,"63105 - Agr Engr Discretionary Fd 40103 ",null,"440000 - Nonauxiliary Student Services ",null,null,"810112 - Canine Medicine Club ",null,null,null,null,null,null,"GLAANS4048 - Deanne Meyer ANIMAL SCIENCE GL Only "]
[null,null,null,"63106 - Agr Engr Cotton Res 40104 ",null,"440001 - Agency Fund Revenue ",null,null,"810113 - Catalyst ",null,null,null,null,null,null,"GLAANS4162 - Jason Gross ANIMAL SCIENCE GL Only "]
[null,null,null,"63107 - Ag Alternative Development Program 40105 ",null,"440002 - Library Income ",null,null,"810114 - Central Valley Project ",null,null,null,null,null,null,"GLAANS4194 - G Gall ANIMAL SCIENCE GL Only "]
[null,null,null,"63108 - A and ES Summer Internships Scope 40106 ",null,"440003 - Miscellaneous Fees ",null,null,"810115 - Ceramics Club ",null,null,null,null,null,null,"GLAANS4205 - Amy Mclean ANIMAL SCIENCE GL Only "]
[null,null,null,"63110 - AARC Aquatic Center Support 40108 ",null,"440004 - Fines Forfeiture Revenue ",null,null,"810116 - Chamber Music for Charity ",null,null,null,null,null,null,"GLAANS4398 - Russell Hovey ANIMAL SCIENCE GL Only "]
[null,null,null,"63111 - A and RS Grad Student Support 40109 ",null,"440005 - Student Loan and Financing Plan Revenue ",null,null,"810117 - Chemistry Club at UC Davis ",null,null,null,null,null,null,"GLAANS4429 - Bernard May ANIMAL SCIENCE GL Only "]
[null,null,null,"63113 - Agron Ext Scales Maintenance 40111 ",null,"440006 - Incentive and Rebate Income ",null,null,"810118 - Cherry Pie ",null,null,null,null,null,null,"GLAANS4489 - John Dunbar ANIMAL SCIENCE GL Only "]
[null,null,null,"63114 - A and RS CCIA 40112 ",null,"440007 - Other Property and Lease Incomes ",null,null,"810119 - Cherry Tea Collective ",null,null,null,null,null,null,"GLAANS4560 - Kristina Horback ANIMAL SCIENCE GL Only "]
[null,null,null,"63115 - A and RS American Cyanamid 40113 ",null,"440008 - Utilities Commodity Revenue ",null,null,"810120 - Chess Club ",null,null,null,null,null,null,"GLAANS4597 - Anne Todgham ANIMAL SCIENCE GL Only "]
[null,null,null,"63116 - A and RS CCIA Cotton Rsch 40114 ",null,"440009 - Other Miscellaneous Income ",null,null,"810121 - Chicano Latino Collegiate Association ",null,null,null,null,null,null,"GLAANS4760 - James Millam ANIMAL SCIENCE GL Only "]
[null,null,null,"63117 - A and RS Res CCIA 40115 ",null,"440010 - Discounts ",null,null,"810122 - Chicanos and Latinos Engineering and Scientists ",null,null,null,null,null,null,"GLAANS4799 - C Calvert ANIMAL SCIENCE GL Only "]
[null,null,null,"63120 - A and RS Rockefeller 40118 ",null,"440011 - Earned Discounts ",null,null,"810123 - Chicanos in Health Education ",null,null,null,null,null,null,"GLAANS4874 - W Weathers ANIMAL SCIENCE GL Only "]
[null,null,null,"63122 - Agr and Env Sci Deans Discretionary 40120 ",null,"440012 - Unearned Discounts ",null,null,"810124 - Chicanx and Latinx Engineering and Scientist Society ",null,null,null,null,null,null,"GLAANS4929 - Yeunshin Lee ANIMAL SCIENCE GL Only "]
[null,null,null,"63124 - Agr Engr Irrigation Mgmt Research 40122 ",null,"440013 - Loan Interest Income ",null,null,"810125 - Chicanx Latinx Collegiate Association ",null,null,null,null,null,null,"GLAANS4995 - Cassandra Tucker ANIMAL SCIENCE GL Only "]
[null,null,null,"63125 - A and RS Ccia 40123 ",null,"440014 - Loan Writen Off Uncollectable ",null,null,"810126 - Chicanx or Latinx In Health Education ",null,null,null,null,null,null,"GLAANS5040 - Kathryn Radke ANIMAL SCIENCE GL Only "]
[null,null,null,"63126 - Agr Engr Fruit Res 40124 ",null,"440015 - Loan Late Fees ",null,null,"810127 - Children of Tomorrow ",null,null,null,null,null,null,"GLAANS5073 - Frank Mitloehner ANIMAL SCIENCE GL Only "]
[null,null,null,"63127 - A and RS Bean Research 40125 ",null,"440900 - Unapplied Receipts and Unidentified Cash ",null,null,"810128 - Chinese Drama Club ",null,null,null,null,null,null,"GLAANS5084 - Robert Ashmore ANIMAL SCIENCE GL Only "]
[null,null,null,"63128 - A and Rs Alfalfa Research Tueber 40126 ",null,"440901 - Invoice Adjustments ",null,null,"810129 - Chinese Gaming Social Platform ",null,null,null,null,null,null,"GLAANS5086 - Anita Oberbauer ANIMAL SCIENCE GL Only "]
[null,null,null,"63129 - A and RS CciaSalinity 40127 ",null,"440902 - Invoice Overpayment ",null,null,"810130 - Chinese Graduate and Postdoctoral Scholars ",null,null,null,null,null,null,"GLAANS5456 - Pedro Carvalho ANIMAL SCIENCE GL Only "]
[null,null,null,"63130 - A and RS Alfalfa Research Tueber 40128 ",null,"445000 - Other Operating Revenues Contra Other Allowances ",null,null,"810131 - Chinese Student Association ",null,null,null,null,null,null,"GLAANS5526 - Carly Moody ANIMAL SCIENCE GL Only "]
[null,null,null,"63131 - DANR A and RS TueberMueller 40128 ",null,"445100 - Other Operating Revenues Contra Bad Debts ",null,null,"810132 - Chinese Students and Scholars Association ",null,null,null,null,null,null,"GLAANS5534 - Kathryn Teixeira ANIMAL SCIENCE GL Only "]
[null,null,null,"63132 - A and ES DO Bowley Center 40129 ",null,"445200 - Other Operating Revenues Contra Student Financial Aid Allowance ",null,null,"810133 - Chinese Undergrad Student Union ",null,null,null,null,null,null,"GLAARE0241 - Daniel Sumner AG And RESOURCE ECONOMICS GL Only "]
[null,null,null,"63133 - Agric Engr Spray Analyzer System 40130 ",null,"740000 - Other Intercampus Revenue Transfer ",null,null,"810134 - Chinese Union ",null,null,null,null,null,null,"GLAARE0321 - Warren Johnston AG And RESOURCE ECONOMICS GL Only "]
[null,null,null,"63134 - Agr Engr Serv Recognition Fd 40131 ",null,"450000 - Inpatient Self Pay NonPharmacy ",null,null,"810135 - Christian Veterinary Fellowship ",null,null,null,null,null,null,"GLAARE0748 - Samuel Logan AG And RESOURCE ECONOMICS GL Only "]
[null,null,null,"63135 - A and Rs Alfalfa Rsrch 40132 ",null,"450001 - Inpatient Pharmacy Self Pay ",null,null,"810136 - Christian Science Organization ",null,null,null,null,null,null,"GLAARE0838 - Shermain Hardesty AG And RESOURCE ECONOMICS GL Only "]
[null,null,null,"63136 - A and RsCcia 40133 ",null,"450100 - Inpatient HMO ",null,null,"810137 - Christians on Campus at UC Davis ",null,null,null,null,null,null,"GLAARE0968 - C Mccorkle AG And RESOURCE ECONOMICS GL Only "]
[null,null,null,"63137 - Agr Engr BAE General Support 40134 ",null,"450101 - Inpatient PPO ",null,null,"810138 - Churro Club ",null,null,null,null,null,null,"GLAARE1351 - Richard Sexton AG And RESOURCE ECONOMICS GL Only "]
[null,null,null,"63138 - A and Rs Grad Stdt Support DoudWhite 40135 ",null,"450102 - Inpatient Private Contracts ",null,null,"810139 - Circle K International ",null,null,null,null,null,null,"GLAARE1360 - Rachael Goodhue AG And RESOURCE ECONOMICS GL Only "]
[null,null,null,"63139 - A and Rs Ccia Cotton Jernstedt 40136 ",null,"450109 - Inpatient Other Commercial Contracts ",null,null,"810140 - Class of 2021 School of Vet Medicine ",null,null,null,null,null,null,"GLAARE1473 - Julian Alston AG And RESOURCE ECONOMICS GL Only "]
[null,null,null,"63141 - Ag Ed Fellowship 40138 ",null,"450110 - Inpatient Pharmacy HMO ",null,null,"810141 - Class of 2021 School of Veterinary Medicine ",null,null,null,null,null,null,"GLAARE1524 - Arthur Havenner AG And RESOURCE ECONOMICS GL Only "]
[null,null,null,"63143 - Agr and Env Sci Boswell Discretionar 40140 ",null,"450111 - Inpatient Pharmacy PPO ",null,null,"810143 - Class of 2023 School of Vet Med ",null,null,null,null,null,null,"GLAARE1527 - Bulat Gafarov AG And RESOURCE ECONOMICS GL Only "]
[null,null,null,"63144 - A and RsGrain Research 40141 ",null,"450112 - Inpatient Pharmacy Private Contracts ",null,null,"810145 - Class Studies Association ",null,null,null,null,null,null,"GLAARE1560 - Richard Green AG And RESOURCE ECONOMICS GL Only "]
[null,null,null,"63145 - ABS Agr Education 40142 ",null,"450119 - Inpatient Pharmacy Other Commercial Contracts ",null,null,"810146 - Classical Studies Association ",null,null,null,null,null,null,"GLAARE1579 - Pierre Merel AG And RESOURCE ECONOMICS GL Only "]
[null,null,null,"63147 - A and Rs Vrs Dnrs 40144 ",null,"450200 - Inpatient Workers Compensation NonPharmacy ",null,null,"810147 - Cleftomaniacs ",null,null,null,null,null,null,"GLAARE1812 - Yeganeh Farzin AG And RESOURCE ECONOMICS GL Only "]
[null,null,null,"63149 - A and RsCcia Research Putnam 40146 ",null,"450201 - Inpatient Pharmacy Workers Compensation ",null,null,"810148 - Climate Reality Project Campus Corps ",null,null,null,null,null,null,"GLAARE1846 - Jeffrey Williams AG And RESOURCE ECONOMICS GL Only "]
[null,null,null,"63151 - A and Rs Boswell Ranch Goyal 40148 ",null,"450300 - Inpatient Medicare Incl Pharmacy ",null,null,"810149 - Clinica Tepati ",null,null,null,null,null,null,"GLAARE1938 - Stephen Boucher AG And RESOURCE ECONOMICS GL Only "]
[null,null,null,"63153 - Allergan PharmaceutICAls 40150 ",null,"450400 - Inpatient MediCal incl Pharmacy ",null,null,"810150 - Coalition of African Diaspora Student Athletes ",null,null,null,null,null,null,"GLAARE1966 - Tina Tate AG And RESOURCE ECONOMICS GL Only "]
[null,null,null,"63154 - VM Marjorie S Albert Estate 40151 ",null,"450500 - Inpatient Other Government incl Pharmacy ",null,null,"810151 - Coastal Cleanup Crew ",null,null,null,null,null,null,"GLAARE2018 - James Chalfant AG And RESOURCE ECONOMICS GL Only "]
[null,null,null,"63155 - A and Rs Research Phillips 40152 ",null,"450600 - Inpatient County Indigent Programs incl Pharmacy ",null,null,"810152 - Cognitive Science Club ",null,null,null,null,null,null,"GLAARE2041 - J Taylor AG And RESOURCE ECONOMICS GL Only "]
[null,null,null,"63156 - A and Rs Research George 40153 ",null,"450700 - Other Inpatient Revenue ",null,null,"810153 - Collective Hobbies of Japanese Animation ",null,null,null,null,null,null,"GLAARE2069 - Chanaka T Ekanayake AG And RESOURCE ECONOMICS GL Only "]
[null,null,null,"63157 - A and Rs Research Clawson 40154 ",null,"451000 - Outpatient Self Pay Revenues ",null,null,"810154 - College Life Christian Fellowship Cl ",null,null,null,null,null,null,"GLAARE2091 - Alex Mccalla AG And RESOURCE ECONOMICS GL Only "]
[null,null,null,"63159 - Agr Engr Slaughter 40156 ",null,"451100 - Outpatient Commercial and Contracts Revenues ",null,null,"810155 - Colleges Against Cancer ",null,null,null,null,null,null,"GLAARE2159 - Douglas Larson AG And RESOURCE ECONOMICS GL Only "]
[null,null,null,"63160 - Agr Ext CibaGeigy 40157 ",null,"451200 - Outpatient Worker Comp ",null,null,"810156 - Collegiate 4H at UC Davis ",null,null,null,null,null,null,"GLAARE2236 - Refugio Rochin AG And RESOURCE ECONOMICS GL Only "]
[null,null,null,"63161 - Biol Agric Engr Research Jenkins 40158 ",null,"451300 - Outpatient Medicare Revenues ",null,null,"810157 - Communication Club at UC Davis ",null,null,null,null,null,null,"GLAARE2242 - Stephen Vosti AG And RESOURCE ECONOMICS GL Only "]
[null,null,null,"63163 - Agron Ext Weed Mgt 40160 ",null,"451400 - Outpatient MediCal Revenues ",null,null,"810158 - Community and Regional Development Students ",null,null,null,null,null,null,"GLAARE2292 - Lawrence Shepard AG And RESOURCE ECONOMICS GL Only "]
[null,null,null,"63164 - A and Rs Vrs DnrsLtras ProgramKaffka 40161 ",null,"451500 - Outpatient Other Government Revenues ",null,null,"810159 - Computer Science for Kids ",null,null,null,null,null,null,"GLAARE2451 - Philip Martin AG And RESOURCE ECONOMICS GL Only "]
[null,null,null,"63166 - An Sci Research May 40163 ",null,"451600 - Outpatient County Indigent Programs Revenues ",null,null,"810160 - Concrete Canoe ",null,null,null,null,null,null,"GLAARE2464 - Mark Agerton AG And RESOURCE ECONOMICS GL Only "]
[null,null,null,"63167 - A and RsVarious Donors 40164 ",null,"451700 - Other Outpatient Revenues ",null,null,"810161 - Consult Your Community ",null,null,null,null,null,null,"GLAARE2995 - Lovell Jarvis AG And RESOURCE ECONOMICS GL Only "]
[null,null,null,"63168 - A and RsRice Expert Systems 40165 ",null,"451801 - UCDMC Refunds Rebates Recoveries ",null,null,"810162 - Cricket Club at UC Davis ",null,null,null,null,null,null,"GLAARE3192 - Eric Lee Johnson AG And RESOURCE ECONOMICS GL Only "]
[null,null,null,"63170 - Agron Ext Hill 40167 ",null,"451802 - UCDMC Income ",null,null,"810163 - Cyber Security Club ",null,null,null,null,null,null,"GLAARE3215 - Roberta Cook AG And RESOURCE ECONOMICS GL Only "]
[null,null,null,"63171 - A and RsAlfalfa Management 40168 ",null,"451803 - UCDMC CARES Revenue ",null,null,"810164 - Davis Accounting Society ",null,null,null,null,null,null,"GLAARE3239 - John Constantine AG And RESOURCE ECONOMICS GL Only "]
[null,null,null,"63172 - A and RsCa Hay Testing Consortium 40169 ",null,"451804 - UCDMC Income Default ",null,null,"810165 - Davis Aggies Lions Club ",null,null,null,null,null,null,"GLAARE3240 - Jens Hilscher AG And RESOURCE ECONOMICS GL Only "]
[null,null,null,"63173 - Sch Of Vet Med General Schlsp 40170 ",null,"451805 - UCDMC Credit Card Chage Backs Contra ",null,null,"810166 - Davis Alt Protein Project ",null,null,null,null,null,null,"GLAARE3372 - Timothy Beatty AG And RESOURCE ECONOMICS GL Only "]
[null,null,null,"63174 - A and Rs Research Goyal 40171 ",null,"451806 - UCDMC Contract Inc Subject Medcompla ",null,null,"810167 - Davis Anime Club ",null,null,null,null,null,null,"GLAARE3386 - Steven Blank AG And RESOURCE ECONOMICS GL Only "]
[null,null,null,"63175 - A and RsWeed Resis 40172 ",null,"451808 - UCDMC Miscellaneous Medcomp Plan Income ",null,null,"810168 - Davis Ballet Company ",null,null,null,null,null,null,"GLAARE3417 - James Wilen AG And RESOURCE ECONOMICS GL Only "]
[null,null,null,"63176 - A and RsCcia Wilkins 40173 ",null,"451809 - UCDMC Mcp Returned Checks ",null,null,"810169 - Davis Ballroom Dance ",null,null,null,null,null,null,"GLAARE3455 - Jerry Lundblad AG And RESOURCE ECONOMICS GL Only "]
[null,null,null,"63177 - A and Rs Dry Bean Research Temple 40174 ",null,"451810 - UCDMC NonPatient Revenue ",null,null,"810170 - Davis Bhangra Crew ",null,null,null,null,null,null,"GLAARE3554 - Hoy Carman AG And RESOURCE ECONOMICS GL Only "]
[null,null,null,"63178 - Agr Ext StatictICAl Research 40175 ",null,"451811 - UCDMC Lodi Hospitalist Revenue ",null,null,"810171 - Davis Chamber Choir ",null,null,null,null,null,null,"GLAARE3588 - Kristin Kiesel AG And RESOURCE ECONOMICS GL Only "]
[null,null,null,"63180 - A and RsCcia Gepts 40177 ",null,"451812 - UCDMC Affiliate Billing Revenue ",null,null,"810172 - Davis Chinese Dancers ",null,null,null,null,null,null,"GLAARE3623 - Katrina Jessoe AG And RESOURCE ECONOMICS GL Only "]
[null,null,null,"63181 - A and Rs Research Gepts 40178 ",null,"451813 - UCDMC Hi Tech StimMeaningful Use ",null,null,"810173 - Davis Chinese Orchestra ",null,null,null,null,null,null,"GLAARE3627 - Colin A Carter AG And RESOURCE ECONOMICS GL Only "]
[null,null,null,"63182 - A and Rs Research Kevin Rice 40179 ",null,"452000 - Contractual Adjustment In Patient Medicare ",null,null,"810174 - Davis Christian Fellowship ",null,null,null,null,null,null,"GLAARE3630 - Kevin Novan AG And RESOURCE ECONOMICS GL Only "]
[null,null,null,"63183 - Dr Anthony Stannard Memorial Fd 40180 ",null,"452100 - Contractual Adj Inpatient MediCal ",null,null,"810175 - Davis College Republicans ",null,null,null,null,null,null,"GLAARE3753 - Aaron Smith AG And RESOURCE ECONOMICS GL Only "]
[null,null,null,"63184 - BAE Precision Farming Enterprises 40181 ",null,"452200 - Contractual Adj Inpatient County Indigent Programs ",null,null,"810176 - Davis Collegiate Panhellenic Association ",null,null,null,null,null,null,"GLAARE4172 - Ashish Shenoy AG And RESOURCE ECONOMICS GL Only "]
[null,null,null,"63185 - Env Tox Big BeansShibamoto 40182 ",null,"452300 - Contractual Adj Outpatient Medicare ",null,null,"810177 - Davis Computer Science Club ",null,null,null,null,null,null,"GLAARE4421 - Richard Howitt AG And RESOURCE ECONOMICS GL Only "]
[null,null,null,"63186 - Env Tox YH Products Shibamoto 40183 ",null,"452400 - Contractual Adj Outpatient MediCal ",null,null,"810178 - Davis Culchies Hurling ",null,null,null,null,null,null,"GLAARE4495 - Travis James Lybbert AG And RESOURCE ECONOMICS GL Only "]
[null,null,null,"63187 - WFCB Kelt 40184 ",null,"452500 - Contractual Adj Outpatient County Indigent Program ",null,null,"810179 - Davis Dance Marathon ",null,null,null,null,null,null,"GLAARE4565 - Jamie Hansen Lewis AG And RESOURCE ECONOMICS GL Only "]
[null,null,null,"63188 - IM Cardiology Symons 40185 ",null,"452600 - Contractual Adj Inpatient Contracts Commercial ",null,null,"810180 - Davis Democratic Socialists ",null,null,null,null,null,null,"GLAARE4622 - Michael Carter AG And RESOURCE ECONOMICS GL Only "]
[null,null,null,"63190 - VMCAA Workshops Alternatives to Animal Research 40187 ",null,"452700 - Contractual Adj Outpatient Contracts Commercial ",null,null,"810181 - Davis Drone Club ",null,null,null,null,null,null,"GLAARE5037 - Dalia Adel Ghanem AG And RESOURCE ECONOMICS GL Only "]
[null,null,null,"63191 - Chao L Hsia Memorial Fd 40188 ",null,"452800 - Charity Discount Other Adjustment ",null,null,"810182 - Davis Enology and Viticulture Organization DEVO ",null,null,null,null,null,null,"GLAARE5258 - Ryan Goodrich AG And RESOURCE ECONOMICS GL Only "]
[null,null,null,"63193 - Downey Brand Seymour and Rohwer Award 40190 ",null,"452900 - Restricted Donations and Subsidies Indigent Care Credits ",null,null,"810183 - Davis Fandom Forward ",null,null,null,null,null,null,"GLAARE5282 - Brittney Goodrich AG And RESOURCE ECONOMICS GL Only "]
[null,null,null,"63195 - Sci and Tech Competition Nutrition 40192 ",null,"453000 - Teaching Revenue Allowances ",null,null,"810184 - Davis Filmmaking Society ",null,null,null,null,null,null,"GLAARE5293 - Matthew Reimer AG And RESOURCE ECONOMICS GL Only "]
[null,null,null,"63196 - WM Keck Center Structural Biology 40193 ",null,"453100 - Support For Clinical Teachings Credit Balance ",null,null,"810185 - Davis Financial Analyst Society ",null,null,null,null,null,null,"GLAARE5782 - Mayada Baydas AG And RESOURCE ECONOMICS GL Only "]
[null,null,null,"63197 - Physics NA49 Research Cern Lab Brady 40194 ",null,"453200 - Administrative Adjustments to Revenue ",null,null,"810186 - Davis Fusion Dance ",null,null,null,null,null,null,"GLAARE6301 - Jay Sayre AG And RESOURCE ECONOMICS GL Only "]
[null,null,null,"63198 - VMTH PhysICAl Facility 40195 ",null,"453300 - Deductions from Revenues Other ",null,null,"810187 - Davis Hiking Club ",null,null,null,null,null,null,"GLAARE7252 - Eric Edwards AG And RESOURCE ECONOMICS GL Only "]
[null,null,null,"63199 - DANR San Diego Rsrch and Ed Prgms 40196 ",null,"453400 - Contractual Adj Inpatient Self Pay ",null,null,"810188 - Davis Housing Svcs Agency Acct Homestay ",null,null,null,null,null,null,"GLABAE0238 - Peter Larbi BIOLOGICAL And AG ENGINEERING GL Only "]
[null,null,null,"63200 - Im Child Edu and Outreach Laird 40197 ",null,"453500 - Contractual Adj Inpatient Workers Compensation ",null,null,"810189 - Davis Melee ",null,null,null,null,null,null,"GLABAE0303 - Bruce Hartsough BIOLOGICAL And AG ENGINEERING GL Only "]
[null,null,null,"63205 - MedOphth Ophthalmology Advancement Fun 40202 ",null,"453600 - Contractual Adj Outpatient Self Pay ",null,null,"810190 - Davis Nerf Club ",null,null,null,null,null,null,"GLABAE0567 - Irwin Donis Gonzalez BIOLOGICAL And AG ENGINEERING GL Only "]
[null,null,null,"63207 - CommunICAtion General Support 40204 ",null,"453700 - Contractual Adj Outpatient Workers Compensation ",null,null,"810191 - Davis Personal Development Club ",null,null,null,null,null,null,"GLABAE0591 - James Thompson BIOLOGICAL And AG ENGINEERING GL Only "]
[null,null,null,"63208 - VMCCM Support Barthold 40205 ",null,"453800 - Contra Hospital Fee Programs ",null,null,"810192 - Davis Plastic Models ",null,null,null,null,null,null,"GLABAE0726 - Stavros Vougioukas BIOLOGICAL And AG ENGINEERING GL Only "]
[null,null,null,"63209 - ChemLarock Gift 40206 ",null,"453900 - Contra Medicare Disproportion Share ",null,null,"810193 - Davis Political Review ",null,null,null,null,null,null,"GLABAE0740 - Daniel Frank BIOLOGICAL And AG ENGINEERING GL Only "]
[null,null,null,"63210 - VMphrEquine Reproduction ResearchBall 40207 ",null,"454000 - Contra Supplemntl Funds MediCal ",null,null,"810194 - Davis Pre Med SOMA ",null,null,null,null,null,null,"GLABAE0798 - M Morris BIOLOGICAL And AG ENGINEERING GL Only "]
[null,null,null,"63215 - Ryan Couch Memorial Award 40212 ",null,"454100 - ContraMediCal DSRIP ",null,null,"810195 - Davis Predental Society ",null,null,null,null,null,null,"GLABAE0955 - James Meyers BIOLOGICAL And AG ENGINEERING GL Only "]
[null,null,null,"63216 - VMdo 50Th Annv Campaign 40213 ",null,"454200 - Contra Indigent Care Tobacco Tax and Other Funds ",null,null,"810196 - Davis Premed Soma ",null,null,null,null,null,null,"GLABAE0990 - David Hills BIOLOGICAL And AG ENGINEERING GL Only "]
[null,null,null,"63217 - Med Ortho Bay 40214 ",null,"454600 - Bad Debts In Patient Medicare ",null,null,"810197 - Davis Puppy Pals ",null,null,null,null,null,null,"GLABAE1288 - Alireza Pourreza BIOLOGICAL And AG ENGINEERING GL Only "]
[null,null,null,"63218 - VMpmiMosquito Surveillance 40215 ",null,"454661 - Provision for Bad Debt EPIC ",null,null,"810198 - Davis Racing Dragons Team DRD ",null,null,null,null,null,null,"GLABAE1485 - John Miles BIOLOGICAL And AG ENGINEERING GL Only "]
[null,null,null,"63220 - Center For The Arts Construction 40217 ",null,"454662 - Medi Medi Bad Debt Expense ",null,null,"810199 - Davis Roleplaying Activities and Gaming ",null,null,null,null,null,null,"GLABAE1596 - Zhiliang Fan BIOLOGICAL And AG ENGINEERING GL Only "]
[null,null,null,"63227 - A and RS Rustici Tate 40224 ",null,"454663 - Bad Debt Recovery ",null,null,"810200 - Davis Roleplaying and Activities and Gaming ",null,null,null,null,null,null,"GLABAE1641 - Martha Stiles BIOLOGICAL And AG ENGINEERING GL Only "]
[null,null,null,"63228 - UCD RetireeS Association 40225 ",null,"454664 - MC Bad Debt Expense ",null,null,"810201 - Davis Sailing Team ",null,null,null,null,null,null,"GLABAE1882 - Pictiaw Chen BIOLOGICAL And AG ENGINEERING GL Only "]
[null,null,null,"63229 - Avian Sci Rundel Gift Delany 40226 ",null,"454620 - Bad Debts In Patient MediCal ",null,null,"810202 - Davis Scuba ",null,null,null,null,null,null,"GLABAE1983 - Shrinivasa Upadhyaya BIOLOGICAL And AG ENGINEERING GL Only "]
[null,null,null,"63230 - Frank and Pinkie Matthews Award 40227 ",null,"454640 - Bad Debts Inpatient County Indigent Programs ",null,null,"810203 - Davis Student Veteran Organization ",null,null,null,null,null,null,"GLABAE2066 - Michael Delwiche BIOLOGICAL And AG ENGINEERING GL Only "]
[null,null,null,"63231 - Law Deborah J Frick Current Gift 40228 ",null,"454660 - Bad Debts Out Patient Medicare ",null,null,"810204 - Davis Supply Chain Management Society SCM ",null,null,null,null,null,null,"GLABAE2105 - Rajinder Singh BIOLOGICAL And AG ENGINEERING GL Only "]
[null,null,null,"63232 - Rural SociologICAl SocietyKyle 40229 ",null,"454680 - Bad Debts Outpatient MediCal ",null,null,"810205 - Davis Swing Dancers ",null,null,null,null,null,null,"GLABAE2207 - Wesley Yates BIOLOGICAL And AG ENGINEERING GL Only "]
[null,null,null,"63233 - MusicBuchla Resurrection 40230 ",null,"454700 - Bad Debts Outpatient County Indigent Programs ",null,null,"810206 - Davis Theatre and Comedy Club ",null,null,null,null,null,null,"GLABAE2280 - Durham Giles BIOLOGICAL And AG ENGINEERING GL Only "]
[null,null,null,"63234 - Im Housestaff Education Program 40231 ",null,"454720 - Bad Debts Contracts Commercial In Patient ",null,null,"810207 - Davis Women In Business ",null,null,null,null,null,null,"GLABAE2324 - Ruihong Zhang BIOLOGICAL And AG ENGINEERING GL Only "]
[null,null,null,"63236 - Chem Engr Research Stroeve 40233 ",null,"454740 - Bad Debts Contracts Commercial Outpatient ",null,null,"810208 - Davis Wushu ",null,null,null,null,null,null,"GLABAE2577 - Fadi Fathallah BIOLOGICAL And AG ENGINEERING GL Only "]
[null,null,null,"63237 - DBS Sacramento Area Commerce and Trade Org 40234 ",null,"454760 - Bad Debt Administrative Rev ",null,null,"810209 - Davis Wushu Kung Fu Club ",null,null,null,null,null,null,"GLABAE2735 - Gang Sun BIOLOGICAL And AG ENGINEERING GL Only "]
[null,null,null,"63240 - WFCB Inland Fishes Moyle 40237 ",null,"454780 - Bad Debts Inpatient Self Pay ",null,null,"810210 - Debate at UC Davis ",null,null,null,null,null,null,"GLABAE3108 - Ning Pan BIOLOGICAL And AG ENGINEERING GL Only "]
[null,null,null,"63242 - Entom Mite Resistance 40239 ",null,"454800 - Bad Debts Inpatient Workers Comp ",null,null,"810211 - Design Careers Club ",null,null,null,null,null,null,"GLABAE3237 - Ali Moghimi BIOLOGICAL And AG ENGINEERING GL Only "]
[null,null,null,"63243 - English Ca Literature Project 40240 ",null,"454820 - Bad Debt Outpatient SelfPay ",null,null,"810212 - Design for America ",null,null,null,null,null,null,"GLABAE3241 - Gyongy Laky BIOLOGICAL And AG ENGINEERING GL Only "]
[null,null,null,"63244 - VMTH Hodag Neurology Fd 40241 ",null,"454840 - Bad Debts Outpatient Workers Comp ",null,null,"810213 - Design for America at UC Davis ",null,null,null,null,null,null,"GLABAE3338 - Gail Bornhorst BIOLOGICAL And AG ENGINEERING GL Only "]
[null,null,null,"63245 - Ia Pete Gibson Memeorial Fd 40242 ",null,"455100 - Capitation Premium Revenues Medicare ",null,null,"810214 - Deutsch Club at UC Davis ",null,null,null,null,null,null,"GLABAE3459 - Jeffrey Mason Earles BIOLOGICAL And AG ENGINEERING GL Only "]
[null,null,null,"63248 - Nurti Research Dueker 40246 ",null,"455200 - Capitation Premium Revenues MediCal ",null,null,"810215 - Diabetes Advocacy and Awareness DAAG ",null,null,null,null,null,null,"GLABAE3481 - Roger Garrett BIOLOGICAL And AG ENGINEERING GL Only "]
[null,null,null,"63250 - Nutri Hoffman La Roche LevuongMurphy 40248 ",null,"455300 - Capitation Premium Revenues County Indigent Program ",null,null,"810216 - Diversity in STEM Coalition DISC ",null,null,null,null,null,null,"GLABAE3587 - Jean Vandergheynst BIOLOGICAL And AG ENGINEERING GL Only "]
[null,null,null,"63251 - Im Research Flynn 40249 ",null,"455400 - Capitation Premium Revenues Other Third Party ",null,null,"810217 - DJ Club ",null,null,null,null,null,null,"GLABAE3906 - Raul Piedrahita BIOLOGICAL And AG ENGINEERING GL Only "]
[null,null,null,"63252 - Med Orth Research Sharkey 40250 ",null,"456000 - UCDMC Parking Revenues ",null,null,"810219 - Economics and Business Student Association ",null,null,null,null,null,null,"GLABAE3993 - James Rumsey BIOLOGICAL And AG ENGINEERING GL Only "]
[null,null,null,"63253 - Exercise Sci Am Petroleum InstAdams 40251 ",null,"456100 - UCDMC Cash Discounts and Refunds ",null,null,"810220 - Economics Club ",null,null,null,null,null,null,"GLABAE4145 - Tina Jeoh BIOLOGICAL And AG ENGINEERING GL Only "]
[null,null,null,"63255 - UCDF T Jackson Chair In The History 40253 ",null,"456200 - UCDMC Drugs and Supplies Sold to NonPatients ",null,null,"810221 - EJUC Environmental Justice For ",null,null,null,null,null,null,"GLABAE4171 - Tien Chieh Hung BIOLOGICAL And AG ENGINEERING GL Only "]
[null,null,null,"63257 - Provosts Davis Honors Challng Director 40255 ",null,"456300 - UCDMC Laundry and Linen Revenues ",null,null,"810222 - Electrical Computer Engineering Grad Students ",null,null,null,null,null,null,"GLABAE4235 - David Slaughter BIOLOGICAL And AG ENGINEERING GL Only "]
[null,null,null,"63258 - VM Westminster Kennel Fdn Schlsp 40256 ",null,"456400 - UCDMC Donated Commodities and Materials ",null,null,"810223 - Elite Dance Company ",null,null,null,null,null,null,"GLABAE4275 - S Zeronian BIOLOGICAL And AG ENGINEERING GL Only "]
[null,null,null,"63259 - VM Academic Programs 40257 ",null,"456500 - UCDMC Cafeteria Revenues ",null,null,"810224 - Emergency Medicine Experience Club ",null,null,null,null,null,null,"GLABAE4662 - Margaret Rucker BIOLOGICAL And AG ENGINEERING GL Only "]
[null,null,null,"63263 - BmlDocent Program 40261 ",null,"456600 - UCDMC NonPatient Room Rentals Revenue ",null,null,"810225 - Emergency Medicine Research Assoc Pro ",null,null,null,null,null,null,"GLABAE4742 - Mir Shafii BIOLOGICAL And AG ENGINEERING GL Only "]
[null,null,null,"63264 - Bml Research Chang 40262 ",null,"456700 - UCDMC Data Management Medical Records and Other Business Services Revenues ",null,null,"810226 - Empowered Arab Sisterhood ",null,null,null,null,null,null,"GLABAE5000 - Bryan Jenkins BIOLOGICAL And AG ENGINEERING GL Only "]
[null,null,null,"63266 - Lawr Research Ustin 40264 ",null,"456800 - UCDMC Insurance Recoveries and Refunds ",null,null,"810227 - Energy Club at UC Davis ",null,null,null,null,null,null,"GLABAE5122 - Zhongli Pan BIOLOGICAL And AG ENGINEERING GL Only "]
[null,null,null,"63269 - VM MolMitochondrial Disorders 40267 ",null,"456900 - UCDMC Cost Recoveries ",null,null,"810228 - Engineering Joint Council ",null,null,null,null,null,null,"GLABAE5123 - Farzaneh Khorsandi Kouhanestani BIOLOGICAL And AG ENGINEERING GL Only "]
[null,null,null,"63270 - UG Holman Schlsp 40268 ",null,"457000 - UCDMC Federal Stimulus and Health Reform Funding ",null,null,"810229 - Engineers without Borders at UC Davis ",null,null,null,null,null,null,"GLABAE5156 - S Jett BIOLOGICAL And AG ENGINEERING GL Only "]
[null,null,null,"63271 - UG Lawn and Garden Marketing Assoc Schp 40269 ",null,"457100 - UCDMC Social and Community Service Revenue ",null,null,"810230 - English Country Dancers ",null,null,null,null,null,null,"GLABAE5528 - Md Shamim Ahamed BIOLOGICAL And AG ENGINEERING GL Only "]
[null,null,null,"63272 - VM CCAH Animal Memorial 40270 ",null,"457200 - UCDMC Joint Venture Income Operating ",null,null,"810231 - Entomology Club at UC Davis ",null,null,null,null,null,null,"GLABAE6257 - You Lo Hsieh BIOLOGICAL and AG ENGINEERING GL Only "]
[null,null,null,"63273 - Equine Med Director Support 40271 ",null,"457300 - UCDMC Other Operating Revenues ",null,null,"810232 - Environmental Club ",null,null,null,null,null,null,"GLABAE6292 - Bruno Augusto Carciofi BIOLOGICAL And AG ENGINEERING GL Only "]
[null,null,null,"63275 - FS and T Mcbeth Foundation Harris 40273 ",null,"457400 - UCDMC Rebates ",null,null,"810234 - Environmental Toxicology Club ",null,null,null,null,null,null,"GLABAE6298 - Yi Wang BIOLOGICAL And AG ENGINEERING GL Only "]
[null,null,null,"63276 - DANR Lassen Extension Support Lile 40274 ",null,"457500 - UCDMC Pharmacy Programs Revenue ",null,null,"810235 - Epidemiology Graduate Group Students ",null,null,null,null,null,null,"GLACHE0085 - Noli Brazil HUMAN ECOLOGY GL Only "]
[null,null,null,"63277 - VM CVDLS Polyoma Res St Leger 40275 ",null,"457600 - UCDMC Organ Recovery Fees ",null,null,"810236 - Equine Medicine Club EMC SCAAEP ",null,null,null,null,null,null,"GLACHE0093 - Jennifer Falbe HUMAN ECOLOGY GL Only "]
[null,null,null,"63278 - Natural Reserve System 40276 ",null,"458000 - Medicare Teaching DME and IME ",null,null,"810237 - Equity In Science Technology Engineering Math and Ent ",null,null,null,null,null,null,"GLACHE0105 - Elizabeth Boults HUMAN ECOLOGY GL Only "]
[null,null,null,"63279 - CahPeterson Trust Brain Cancer 40278 ",null,"458100 - UCDMC Clinical Teaching Support Revenues ",null,null,"810238 - Eritrean Ethiopian Student Association ",null,null,null,null,null,null,"GLACHE0114 - Brenna Castro Carlson HUMAN ECOLOGY GL Only "]
[null,null,null,"63282 - MAE Undergraduate Stdt Program 40281 ",null,"458200 - UCDMC Other Revenues Source Funds ",null,null,"810239 - Faces of African Muslim Students at UC Davis ",null,null,null,null,null,null,"GLACHE0292 - Daniel Choe HUMAN ECOLOGY GL Only "]
[null,null,null,"63284 - Med Derm Research Lawry 40283 ",null,"469000 - UCDF Gift Revenue Cash ",null,null,"810240 - Faces of African Muslims ",null,null,null,null,null,null,"GLACHE0348 - Kali Trzesniewski HUMAN ECOLOGY GL Only "]
[null,null,null,"63285 - Chem Metal Chelating Res Mears 40284 ",null,"469001 - UCDF Gift Revenue Pledges ",null,null,"810241 - Fashion and Design Society FADS ",null,null,null,null,null,null,"GLACHE0412 - Eric Larsen HUMAN ECOLOGY GL Only "]
[null,null,null,"63286 - Plant Path Dept Support 40285 ",null,"469002 - UCDF Endowment Revenue Cash ",null,null,"810242 - Feline Medicine Club ",null,null,null,null,null,null,"GLACHE0417 - Nina Napawan HUMAN ECOLOGY GL Only "]
[null,null,null,"63287 - Im Cardiology Res Bonham 40286 ",null,"469010 - UCDF Gift Revenue GIK SecuritiesBonds ",null,null,"810243 - Fellowship of Christian Grads ",null,null,null,null,null,null,"GLACHE0420 - Lorence Oki HUMAN ECOLOGY GL Only "]
[null,null,null,"63288 - Im Endocrinology Res Prescott 40287 ",null,"469011 - UCDF Gift Revenue GIK Real Estate ",null,null,"810244 - Fellowship of Coptic Christian Students ",null,null,null,null,null,null,"GLACHE0539 - Jonathan London HUMAN ECOLOGY GL Only "]
[null,null,null,"63289 - Inter Med Glaxo Educ and Res Meyers 40288 ",null,"469012 - UCDF Gift Revenue GIK Other ",null,null,"810245 - Figure Drawing Club ",null,null,null,null,null,null,"GLACHE0541 - Edward Mcniel HUMAN ECOLOGY GL Only "]
[null,null,null,"63290 - UCDMCAdult Infusion Ctr General Sup 40289 ",null,"469500 - Other IncomeSpecial Events ",null,null,"810246 - Figure Skating Club at UC Davis ",null,null,null,null,null,null,"GLACHE0577 - Lenna Ontai HUMAN ECOLOGY GL Only "]
[null,null,null,"63291 - NematologyVrs DnrsDept Support 40290 ",null,"469501 - Endowment Assets Maintenance Cost ",null,null,"810247 - Filipino Association For Health Careers ",null,null,null,null,null,null,"GLACHE0594 - Michael Rios HUMAN ECOLOGY GL Only "]
[null,null,null,"63292 - VMbPulmonary Fibrosis ResGiri 40291 ",null,"469502 - NonGift Receipts GIK SecuritiesBonds ",null,null,"810248 - Filipinos in Liberal Arts and Humanities ",null,null,null,null,null,null,"GLACHE0601 - Catherine Brinkley HUMAN ECOLOGY GL Only "]
[null,null,null,"63294 - George Antonio Bowman Schlsp 40293 ",null,"469503 - Payouts Returned to Principal ",null,null,"810249 - Filipinx Association For Health Careers ",null,null,null,null,null,null,"GLACHE0607 - Marjorie Visser HUMAN ECOLOGY GL Only "]
[null,null,null,"63295 - MM Bruce A Bailey Schlsp 40294 ",null,"469504 - Transfer of Funds from OP and Other Foundations ",null,null,"810250 - Film Festival ",null,null,null,null,null,null,"GLACHE0638 - Robert Wiener HUMAN ECOLOGY GL Only "]
[null,null,null,"63296 - MM W Brian Crews Schlsp 40295 ",null,"469505 - NonGift Cash Receipts ",null,null,"810251 - Finance and Investment Club ",null,null,null,null,null,null,"GLACHE0893 - R Thayer HUMAN ECOLOGY GL Only "]
[null,null,null,"63297 - Entom Research Summers 40296 ",null,"469100 - University Support for Salaries ",null,null,"810252 - Food Animal and Reproductive Medicine FARM ",null,null,null,null,null,null,"GLACHE0964 - Leigh Ann Simmons HUMAN ECOLOGY GL Only "]
[null,null,null,"63298 - LibKipling Collection 40297 ",null,"469101 - University Support for Programs ",null,null,"810253 - Food Recovery Network at UC Davis ",null,null,null,null,null,null,"GLACHE1009 - Michael Smith HUMAN ECOLOGY GL Only "]
[null,null,null,"63299 - NeurologyHoYe Lin Gift 40298 ",null,"469110 - CAAA Annual Membership ",null,null,"810254 - Food Science Brewing Club ",null,null,null,null,null,null,"GLACHE1232 - Steven Greco HUMAN ECOLOGY GL Only "]
[null,null,null,"63300 - Dennis and Olga Raveling Mem Lectureship 40299 ",null,"469111 - CAAA Life and Emeriti Membership ",null,null,"810255 - Food Tech Club ",null,null,null,null,null,null,"GLACHE1244 - Mark Cooper HUMAN ECOLOGY GL Only "]
[null,null,null,"63301 - VMsrsJapan Racing AssocJones 40300 ",null,"469112 - CAAA Student Life Membership ",null,null,"810256 - Forensic Science Student Org ",null,null,null,null,null,null,"GLACHE1354 - Stephen Brush HUMAN ECOLOGY GL Only "]
[null,null,null,"63302 - WrcCa Biodiversity Council 40301 ",null,"469113 - CAAA Student Life Direct Membership ",null,null,"810257 - Foresight PreOptometry Club ",null,null,null,null,null,null,"GLACHE1399 - Rand Conger HUMAN ECOLOGY GL Only "]
[null,null,null,"63304 - Van Gillis Memorial Fd Goodnight 40303 ",null,"469114 - CAAA Parent Membership ",null,null,"810258 - Fracture Program Club of UCD Vet School ",null,null,null,null,null,null,"GLACHE1400 - Ryan Galt HUMAN ECOLOGY GL Only "]
[null,null,null,"63305 - RM Cello Distinguished Lecture Series 40304 ",null,"469120 - Unrealized Gain Loss BOARD GEP ",null,null,"810259 - French Club at UC Davis ",null,null,null,null,null,null,"GLACHE1435 - Joan Wright HUMAN ECOLOGY GL Only "]
[null,null,null,"63306 - FS and T Various Donors Harris 40305 ",null,"469121 - Realized Gain Loss BOARD GEP ",null,null,"810260 - Friends of Agriculture Student Teachers ",null,null,null,null,null,null,"GLACHE1696 - Clare Cannon HUMAN ECOLOGY GL Only "]
[null,null,null,"63307 - Med Path Res and Edu Morris 40306 ",null,"469122 - Unrealized Gain Loss LMRF GEP ",null,null,"810261 - Future Female Electrical Engineers ",null,null,null,null,null,null,"GLACHE1718 - Keith Taylor HUMAN ECOLOGY GL Only "]
[null,null,null,"63310 - ASUCDKdvsEngineering Equipment 40309 ",null,"469123 - Realized Gain Loss LMRF GEP ",null,null,"810262 - Game Development and Arts Club ",null,null,null,null,null,null,"GLACHE1752 - Patsy Owens HUMAN ECOLOGY GL Only "]
[null,null,null,"63311 - Cs HpMa Research 40310 ",null,"469130 - Business Partnerships ",null,null,"810263 - Genetic Counseling Club ",null,null,null,null,null,null,"GLACHE1823 - Eric Chu HUMAN ECOLOGY GL Only "]
[null,null,null,"63313 - VMBilJac Foods Inc Schlsp 40312 ",null,"469131 - Wine Revenue ",null,null,"810264 - Genetics Club at UC Davis ",null,null,null,null,null,null,"GLACHE1831 - Katherine Conger HUMAN ECOLOGY GL Only "]
[null,null,null,"63314 - VMElsa Fenner Memorial Schlsp 40313 ",null,"469132 - Beer Revenue ",null,null,"810265 - Geo Challenge ",null,null,null,null,null,null,"GLACHE1833 - Siwei Liu HUMAN ECOLOGY GL Only "]
[null,null,null,"63315 - VM Yolanda Hurley Schlsp 40314 ",null,"469134 - Directory Fee Revenue ",null,null,"810266 - Geology Club ",null,null,null,null,null,null,"GLACHE1862 - Barbara Shebloski HUMAN ECOLOGY GL Only "]
[null,null,null,"63316 - Wrrc Educational Activities 40315 ",null,"469135 - Other Marketing Revenue ",null,null,"810267 - Geowall ",null,null,null,null,null,null,"GLACHE2075 - Richard Ponzio HUMAN ECOLOGY GL Only "]
[null,null,null,"63318 - Roland Marchand Memorial 40317 ",null,"469139 - iModules Pass Through Revenues ",null,null,"810268 - Girl Up ",null,null,null,null,null,null,"GLACHE2134 - Luis Guarnizo HUMAN ECOLOGY GL Only "]
[null,null,null,"63320 - LAWR Zeneca Ag Products Zhang 40319 ",null,"469140 - Building and Facility Rental Revenue ",null,null,"810269 - Global Disease Biology Club at UC Davis ",null,null,null,null,null,null,"GLACHE2190 - Amanda Guyer HUMAN ECOLOGY GL Only "]
[null,null,null,"63321 - LAWR ZenecaZhang Wallender 40320 ",null,"469150 - Program Receipts ",null,null,"810270 - Global Environmental Brigades ",null,null,null,null,null,null,"GLACHE2284 - Vikram Swaroop Chandra Koundinya HUMAN ECOLOGY GL Only "]
[null,null,null,"63322 - Pomology RS Livermore Fd 40321 ",null,"469160 - Scholarship Revenue ",null,null,"810271 - Global Graduate Student Association ",null,null,null,null,null,null,"GLACHE2327 - Martin Kenney HUMAN ECOLOGY GL Only "]
[null,null,null,"63323 - An Sci Boyce Jr Gift Feed Mill 40322 ",null,"469170 - Building and Facility Revenue ",null,null,"810272 - Global Human Rights Brigade ",null,null,null,null,null,null,"GLACHE2368 - Janet Momsen HUMAN ECOLOGY GL Only "]
[null,null,null,"63324 - ExssAdams Amer Petro Inst 40323 ",null,"469180 - Interest Incomes ",null,null,"810273 - Global Medical Admissions Alliance ",null,null,null,null,null,null,"GLACHE2383 - Frank Hirtz HUMAN ECOLOGY GL Only "]
[null,null,null,"63325 - DANR Sonoma CoWater QualityBennett 40324 ",null,"469190 - Gifts Grants and Sponsorships Revenue ",null,null,"810274 - Global Medical Brigades ",null,null,null,null,null,null,"GLACHE2489 - Meng Huo HUMAN ECOLOGY GL Only "]
[null,null,null,"63326 - VM Ca Veterinary Medicine Fdn Schp 40325 ",null,"469191 - Gifts in Kind ",null,null,"810275 - Global Medical Training ",null,null,null,null,null,null,"GLACHE2497 - Anna Kiers HUMAN ECOLOGY GL Only "]
[null,null,null,"63327 - CAES The Farm 40326 ",null,"469200 - Other CAAA Operating Revenue ",null,null,"810276 - Global Tea Club at UC Davis ",null,null,null,null,null,null,"GLACHE2526 - Miriam Wells HUMAN ECOLOGY GL Only "]
[null,null,null,"63328 - MAE Department Support 40327 ",null,"480000 - Current Use Gift Revenue ",null,null,"810277 - Global Veterinary Alliance ",null,null,null,null,null,null,"GLACHE2589 - James Grieshop HUMAN ECOLOGY GL Only "]
[null,null,null,"63329 - Med Orth Research Trauner 40328 ",null,"480001 - FFE Gifts ",null,null,"810278 - Global Water Brigades ",null,null,null,null,null,null,"GLACHE2902 - Jay Belsky HUMAN ECOLOGY GL Only "]
[null,null,null,"63330 - Med Orth Smith and Nephew Reddi 40329 ",null,"480007 - Gift Fees ",null,null,"810279 - Global Water Brigades at UC Davis ",null,null,null,null,null,null,"GLACHE2916 - Adrienne Nishina HUMAN ECOLOGY GL Only "]
[null,null,null,"63331 - EntomMosquito ControlLawler 40330 ",null,"480008 - Expected Pledge Revenue ",null,null,"810280 - Goals ",null,null,null,null,null,null,"GLACHE2934 - Stephen Wheeler HUMAN ECOLOGY GL Only "]
[null,null,null,"63332 - Veg CropsNebraska FdnRick 40331 ",null,"480009 - Other Cash Gifts ",null,null,"810281 - Grace Alive ",null,null,null,null,null,null,"GLACHE2974 - Keith Barton HUMAN ECOLOGY GL Only "]
[null,null,null,"63335 - FST Cheese Production Rosenberg 40334 ",null,"480022 - Endowment Income ",null,null,"810282 - Grad Association of Political Science Students ",null,null,null,null,null,null,"GLACHE2984 - David Campbell HUMAN ECOLOGY GL Only "]
[null,null,null,"63336 - A and RS Chicory Research Kaffka 40335 ",null,"480023 - Foundation Gift Fees ",null,null,"810283 - Graduate Arts Group ",null,null,null,null,null,null,"GLACHE3023 - Meredith Branstad HUMAN ECOLOGY GL Only "]
[null,null,null,"63337 - VMSRS Research Pascoe 40336 ",null,"480024 - Transfer Gifts to Foundation ",null,null,"810284 - Hackdavis ",null,null,null,null,null,null,"GLACHE3414 - Beth Ober HUMAN ECOLOGY GL Only "]
[null,null,null,"63338 - VME Fish Health Lab Hendirck 40337 ",null,"480010 - GiftsinKind ",null,null,"810285 - Health Occ Students ",null,null,null,null,null,null,"GLACHE3708 - Heath Massey HUMAN ECOLOGY GL Only "]
[null,null,null,"63339 - Veg Crops Weed Sci Publications Intnl 40338 ",null,"480100 - Private Gifts Revenues Uncollectible ",null,null,"810286 - Health Occupations Students of America ",null,null,null,null,null,null,"GLACHE3911 - Alvin Sokolow HUMAN ECOLOGY GL Only "]
[null,null,null,"63340 - VMSunflower Farms Schlsp 40339 ",null,"480200 - Private Gift Discount on Pledges ",null,null,"810287 - Hearts for the Homeless ",null,null,null,null,null,null,"GLACHE3912 - William Lacy HUMAN ECOLOGY GL Only "]
[null,null,null,"63342 - Alumni Relations Mooney Blue and Gold 40341 ",null,"481000 - State Appropriations General Support ",null,null,"810288 - Help and Education Leading to Prevention ",null,null,null,null,null,null,"GLACHE3943 - Brett Milligan HUMAN ECOLOGY GL Only "]
[null,null,null,"63344 - LandS Develp Nagel Gift 40343 ",null,"481100 - UCDMC State Hospital Fee Grants ",null,null,"810289 - HER Campus at UC Davis ",null,null,null,null,null,null,"GLACHE3962 - Lisa S Miller HUMAN ECOLOGY GL Only "]
[null,null,null,"63345 - CCAH Leptospirosis Charles 40344 ",null,"481200 - State Financing Appropriations ",null,null,"810290 - Hermanas Unidas ",null,null,null,null,null,null,"GLACHE3965 - Anjali C Gupta HUMAN ECOLOGY GL Only "]
[null,null,null,"63346 - DANR Shasta Forero 40345 ",null,"481300 - Federal Financing Appropriation Build America Bonds Subsidies BABS ",null,null,"810291 - Hermanos Macehual ",null,null,null,null,null,null,"GLACHE3969 - L V Harper HUMAN ECOLOGY GL Only "]
[null,null,null,"63347 - Wendy Brown King Memorial 40346 ",null,"481350 - Direct Government Grants Federal ",null,null,"810292 - Hmong in Health ",null,null,null,null,null,null,"GLACHE4248 - Leah Hibel HUMAN ECOLOGY GL Only "]
[null,null,null,"63348 - Barbara Sommer Schlsp 40347 ",null,"481400 - Federal Pell Grants Financial Aid Revenue ",null,null,"810293 - Hmong Lifting Underserved Barriers ",null,null,null,null,null,null,"GLACHE4482 - Lisa Rapalyea HUMAN ECOLOGY GL Only "]
[null,null,null,"63349 - VM PmiPkd Trust 40348 ",null,"482000 - STIP Realized Gain Loss ",null,null,"810294 - Hmong Student Union ",null,null,null,null,null,null,"GLACHE4634 - Cory Parker HUMAN ECOLOGY GL Only "]
[null,null,null,"63351 - Rprc Univ Of Fla GiftTarantal 40350 ",null,"482001 - Foreign Exchange Rate Realized Gain Loss Currency Rounding ",null,null,"810295 - HOME ",null,null,null,null,null,null,"GLACHE4765 - Johnna Swartz HUMAN ECOLOGY GL Only "]
[null,null,null,"63353 - Anthropology Research and Edu 40352 ",null,"482010 - STIP Investment Income ",null,null,"810296 - Home of Multicultural Equality HOME ",null,null,null,null,null,null,"GLACHE4833 - Rosemarie Kraft HUMAN ECOLOGY GL Only "]
[null,null,null,"63355 - Agr and Res EconomicsFarm Fdn 40354 ",null,"741000 - STIP Investment Distribution ",null,null,"810297 - HOME Where Friends Become Family ",null,null,null,null,null,null,"GLACHE4847 - Earl Mcculley HUMAN ECOLOGY GL Only "]
[null,null,null,"63357 - Veg CropsRice Weed Research 40356 ",null,"741010 - STIP Transfer to TRIP ",null,null,"810298 - Homemade ",null,null,null,null,null,null,"GLACHE5029 - S Hutchison HUMAN ECOLOGY GL Only "]
[null,null,null,"63358 - Pomology Research Romani 40357 ",null,"741011 - STIP Transfer from TRIP ",null,null,"810299 - Hong Kong and Cantonese Student Association ",null,null,null,null,null,null,"GLACHE5051 - David Scott De La Pena HUMAN ECOLOGY GL Only "]
[null,null,null,"63359 - Food SciCoFFEe Flavor TestingOMahony 40358 ",null,"741015 - STIP Transfer to GEP ",null,null,"810300 - Hong Kong Political Affairs and Social Services ",null,null,null,null,null,null,"GLACHE5077 - E Maccannell HUMAN ECOLOGY GL Only "]
[null,null,null,"63360 - Harry Marsh Memorial Schlsp 40359 ",null,"741016 - STIP Transfer from GEP ",null,null,"810301 - Hope at UC Davis ",null,null,null,null,null,null,"GLACHE5117 - Marc Pilisuk HUMAN ECOLOGY GL Only "]
[null,null,null,"63361 - Dairy Cattle Nutrition Mgmt Robinson 40360 ",null,"482100 - TRIP Realized Gain or Loss ",null,null,"810302 - Horse Polo at UC Davis ",null,null,null,null,null,null,"GLACHE5228 - Nicole Hollis HUMAN ECOLOGY GL Only "]
[null,null,null,"63362 - MURRPS Minority UG Res Jackson 40361 ",null,"482120 - TRIP Unrealized Gain or Loss ",null,null,"810303 - Horticulture and Agronomy Student Assoc ",null,null,null,null,null,null,"GLACHE5236 - Gabino Marquez HUMAN ECOLOGY GL Only "]
[null,null,null,"63364 - MCB EI Dupont Biotech Doi 40363 ",null,"482110 - TRIP Invest Income ",null,null,"810304 - House of Prayer ",null,null,null,null,null,null,"GLACHE5242 - Maciel Hernandez HUMAN ECOLOGY GL Only "]
[null,null,null,"63365 - Inter Med Research and Edu Activities Fo 40364 ",null,"742000 - TRIP Investment Distribution ",null,null,"810305 - HOX ",null,null,null,null,null,null,"GLACHE5300 - Emily Elizabeth Schlickman HUMAN ECOLOGY GL Only "]
[null,null,null,"63366 - Iga Research Branstetter 40365 ",null,"742001 - TRIP Transfer to STIP ",null,null,"810306 - Human Development Club ",null,null,null,null,null,null,"GLACHE5354 - Brittany Chambers HUMAN ECOLOGY GL Only "]
[null,null,null,"63367 - Inter Med Support Robbins 40366 ",null,"742002 - TRIP Transfer from STIP ",null,null,"810307 - Human Powered Vehicle Team ",null,null,null,null,null,null,"GLACHE5543 - Victoria Mohr Ferron HUMAN ECOLOGY GL Only "]
[null,null,null,"63368 - Ntl Onion Research Conference 40367 ",null,"742003 - TRIP Transfers to GEP ",null,null,"810308 - Hummus for Homeless ",null,null,null,null,null,null,"GLACHE5777 - Chi Yun Moon HUMAN ECOLOGY GL Only "]
[null,null,null,"63370 - LibHurtyPeck Collection 40369 ",null,"742004 - TRIP Transfer from GEP ",null,null,"810309 - Hyphen Apostolic Fellowship ",null,null,null,null,null,null,"GLACHE5954 - Gitanjali Khandagle HUMAN ECOLOGY GL Only "]
[null,null,null,"63371 - PomTree Fruit Postharvest Program 40370 ",null,"482200 - BGP Realized Gain or Loss ",null,null,"810310 - Ignite at UC Davis ",null,null,null,null,null,null,"GLADES0101 - Jesus Barajas ENVIRONMENTAL SCIENCE And POLICY GL Only "]
[null,null,null,"63372 - DANR4H CitizenshipServ Programs 40371 ",null,"482220 - BGP Unrealized Gain or Loss ",null,null,"810311 - Imani Clinic ",null,null,null,null,null,null,"GLADES0624 - Mark Schwartz ENVIRONMENTAL SCIENCE And POLICY GL Only "]
[null,null,null,"63373 - DANR4H Statewide Serv Learning Awards 40372 ",null,"482210 - BGP Investment Income ",null,null,"810312 - Incarnation Ministries ",null,null,null,null,null,null,"GLADES0771 - Michael Springborn ENVIRONMENTAL SCIENCE And POLICY GL Only "]
[null,null,null,"63374 - Entom Seminis Vegetable SeedsZalom 40373 ",null,"743000 - BGP Investment Distribution ",null,null,"810313 - Indian Graduate Student Organization ",null,null,null,null,null,null,"GLADES1229 - Frances Moore ENVIRONMENTAL SCIENCE And POLICY GL Only "]
[null,null,null,"63375 - Som Kenya Med Student Health Project 40374 ",null,"482300 - GEP Realized Gain or Loss ",null,null,"810314 - Indian Student Association ISA ",null,null,null,null,null,null,"GLADES1302 - Edwin Grosholz ENVIRONMENTAL SCIENCE And POLICY GL Only "]
[null,null,null,"63376 - Inter Med Research Wu 40375 ",null,"482320 - GEP Unrealized Gain or Loss ",null,null,"810315 - Indigenous Health Alliance ",null,null,null,null,null,null,"GLADES1307 - Robert Hijmans ENVIRONMENTAL SCIENCE And POLICY GL Only "]
[null,null,null,"63377 - ItsHonda Smart Car 40376 ",null,"482310 - GEP Investment Income ",null,null,"810316 - Inprint Magazine ",null,null,null,null,null,null,"GLADES1375 - Alan Jassby ENVIRONMENTAL SCIENCE And POLICY GL Only "]
[null,null,null,"63381 - BAE Antique Mechanics Program 40380 ",null,"744000 - GEP Annual Payout Income ",null,null,"810317 - Inspire to Aspire ",null,null,null,null,null,null,"GLADES1415 - Debapriya Chakraborty ENVIRONMENTAL SCIENCE And POLICY GL Only "]
[null,null,null,"63383 - Cancer CtrSickle Cell Anemia Research 40382 ",null,"744100 - UCOP GEP Cost Recovery Fee ",null,null,"810318 - Institute of Transportation Engineers ",null,null,null,null,null,null,"GLADES1519 - James Sanchirico ENVIRONMENTAL SCIENCE And POLICY GL Only "]
[null,null,null,"63385 - Grad Studies ARCS Foundation 40384 ",null,"483000 - Securities Lending Realized Gain or Loss ",null,null,"810319 - Integrative Veterinary Medicine Club ",null,null,null,null,null,null,"GLADES1673 - James Thorne ENVIRONMENTAL SCIENCE And POLICY GL Only "]
[null,null,null,"63388 - Tgrb UCD 95 Buffalograss 40387 ",null,"483001 - Securities Lending Unrealized Gain or Loss ",null,null,"810320 - Interclinic Consortium ",null,null,null,null,null,null,"GLADES1864 - Emily L Zakowski ENVIRONMENTAL SCIENCE And POLICY GL Only "]
[null,null,null,"63389 - GSM Pre Mba Program 40388 ",null,"483010 - Securities Lending Investment Income ",null,null,"810321 - VITIS Tasting Group ",null,null,null,null,null,null,"GLADES1867 - Alan Hastings ENVIRONMENTAL SCIENCE And POLICY GL Only "]
[null,null,null,"63390 - VMTRC Baxter Healthcare Osburn 40389 ",null,"483020 - Securities Lending Fees ",null,null,"810322 - Geotechnical Graduate Student Society GGSS ",null,null,null,null,null,null,"GLADES1890 - Andrew Sih ENVIRONMENTAL SCIENCE And POLICY GL Only "]
[null,null,null,"63391 - Dr Leland Matern Mem SchpCurrent 40390 ",null,"483021 - Securities Lending Rebates ",null,null,"810323 - Society of Water and Environmental Grad Students ",null,null,null,null,null,null,"GLADES1949 - John Ives ENVIRONMENTAL SCIENCE And POLICY GL Only "]
[null,null,null,"63392 - Dr Leland Matern Mem SchpEndowment 40391 ",null,"483100 - Other Investments Realized Gain or Loss ",null,null,"810324 - CEE Grad Group Association ",null,null,null,null,null,null,"GLADES1997 - John Largier ENVIRONMENTAL SCIENCE And POLICY GL Only "]
[null,null,null,"63393 - Dr John Hughes Memorial Research Fd 40392 ",null,"483101 - Other Investments Unrealized Gain or Loss ",null,null,"810325 - Areobrick Student Team ",null,null,null,null,null,null,"GLADES2111 - Seymour Schwartz ENVIRONMENTAL SCIENCE And POLICY GL Only "]
[null,null,null,"63394 - VMCEH Cooke Gift 40393 ",null,"483110 - Other Investments Investment Income ",null,null,"810326 - Environmental Engineering Study Group ",null,null,null,null,null,null,"GLADES2138 - Peter Richerson ENVIRONMENTAL SCIENCE And POLICY GL Only "]
[null,null,null,"63395 - ITEH Agr Hlth and Safety Conf 40394 ",null,"483120 - Interest from contributions receivable UCRSOPEB ",null,null,"810327 - Advocates for Rights of Children ",null,null,null,null,null,null,"GLADES2293 - Steven Sadro ENVIRONMENTAL SCIENCE And POLICY GL Only "]
[null,null,null,"63398 - Ceh Dolly Green Fdn 40397 ",null,"483130 - Other Loan Repayments UCRSOPEB ",null,null,"810328 - Health Law Association ",null,null,null,null,null,null,"GLADES2484 - Howard Cornell ENVIRONMENTAL SCIENCE And POLICY GL Only "]
[null,null,null,"63399 - MAE Design Project ClassVelinsky 40398 ",null,"483F00 - Interest Dividends UCDFEF ",null,null,"810329 - King Hall Board and Ski Club ",null,null,null,null,null,null,"GLADES2524 - Hugh Safford ENVIRONMENTAL SCIENCE And POLICY GL Only "]
[null,null,null,"63400 - DANR Kings Res Beede 40399 ",null,"483F01 - Interest Income STIP ",null,null,"810330 - Native American Law Students Association ",null,null,null,null,null,null,"GLADES2570 - Gwendolyn Arnold ENVIRONMENTAL SCIENCE And POLICY GL Only "]
[null,null,null,"63401 - Cfa CapitalConstruction 40400 ",null,"483F02 - Interest Income STIP Non Pooled Investments ",null,null,"810331 - King Hall Wine Law Society ",null,null,null,null,null,null,"GLADES2768 - James Quinn ENVIRONMENTAL SCIENCE And POLICY GL Only "]
[null,null,null,"63402 - Ucp Mondavi Center Program Gifts 40401 ",null,"483F03 - Interest Income HIP ",null,null,"810332 - Students for United Reform Justice ",null,null,null,null,null,null,"GLADES3534 - Susan Handy ENVIRONMENTAL SCIENCE And POLICY GL Only "]
[null,null,null,"63403 - Cfa Campaign Operations 40402 ",null,"483F04 - Investment Income Non Pooled Investments ",null,null,"810333 - King Hall Veterans Association ",null,null,null,null,null,null,"GLADES3598 - Robert Johnston ENVIRONMENTAL SCIENCE And POLICY GL Only "]
[null,null,null,"63404 - Cfa Endowment 40403 ",null,"483F05 - Interest Income Smith Barney Money Funds ",null,null,"810334 - King Hall Softball League ",null,null,null,null,null,null,"GLADES3601 - Michael Mccoy ENVIRONMENTAL SCIENCE And POLICY GL Only "]
[null,null,null,"63405 - Chevron Products Company 40404 ",null,"483F06 - Interest Income Smith Barney Bond Funds ",null,null,"810335 - Armenian Law Students Association ",null,null,null,null,null,null,"GLADES3684 - Xiaoli Dong ENVIRONMENTAL SCIENCE And POLICY GL Only "]
[null,null,null,"63406 - Allie Greene Memorial Scholarship Fund 40405 ",null,"483F07 - Interest Income Wells Fargo Bank ",null,null,"810336 - Juvenile Law Journal ",null,null,null,null,null,null,"GLADES4012 - Marissa Baskett ENVIRONMENTAL SCIENCE And POLICY GL Only "]
[null,null,null,"63408 - VMTH My Best Friends Fund Richman 40407 ",null,"483F08 - STIP Income UCD Account ",null,null,"810337 - King Hall Soccer League ",null,null,null,null,null,null,"GLADES4042 - Marcel Holyoak ENVIRONMENTAL SCIENCE And POLICY GL Only "]
[null,null,null,"63409 - Hardy Erich Brown and Wilson Schp 40408 ",null,"483F09 - Interest Dividend Income Other ",null,null,"810338 - Chinese Law Student Association ",null,null,null,null,null,null,"GLADES4066 - Benjamin Orlove ENVIRONMENTAL SCIENCE And POLICY GL Only "]
[null,null,null,"63410 - AAES DO Donald S Heringer Prize 40409 ",null,"483F10 - Security Lending Income ",null,null,"810339 - King Hall Womens Law Association ",null,null,null,null,null,null,"GLADES4071 - Susan Harrison ENVIRONMENTAL SCIENCE And POLICY GL Only "]
[null,null,null,"63411 - Plt Sci Res and Edu Act Fennimore 40410 ",null,"483F11 - Security Lending Fees ",null,null,"810340 - American Constitution Society ",null,null,null,null,null,null,"GLADES4180 - Tracy Winsor ENVIRONMENTAL SCIENCE And POLICY GL Only "]
[null,null,null,"63412 - Veg Crops Weed Res Fennimore 40410 ",null,"484F00 - Realized Gain Loss Sale of UCDFEF ",null,null,"810341 - Coalition for Equity Diversity and Inclusion ",null,null,null,null,null,null,"GLADES4306 - Thomas Tomich ENVIRONMENTAL SCIENCE And POLICY GL Only "]
[null,null,null,"63414 - VM Jean Lester Estate 40412 ",null,"484F01 - Realized Gain Loss GIK Securities Bonds ",null,null,"810342 - Disability Rights Law Association ",null,null,null,null,null,null,"GLADES4319 - John Reuter ENVIRONMENTAL SCIENCE And POLICY GL Only "]
[null,null,null,"63416 - Intel Corporation Micro 40414 ",null,"484F02 - Realized Gain Loss GIK Real Estate ",null,null,"810343 - Agricultural Law Society ",null,null,null,null,null,null,"GLADES4352 - Charles Goldman ENVIRONMENTAL SCIENCE And POLICY GL Only "]
[null,null,null,"63417 - VME Blue RidgeTell 40415 ",null,"484F03 - Realized Gain Loss GIK Other ",null,null,"810344 - Perfect Tender Infant Care Cooperative ",null,null,null,null,null,null,"GLADES4420 - Erica Fleishman ENVIRONMENTAL SCIENCE And POLICY GL Only "]
[null,null,null,"63418 - Mcb Researchand Teaching Etzler 40416 ",null,"484F04 - Realized Gain Loss HIP ",null,null,"810345 - Entertainment and Sports Law Society ",null,null,null,null,null,null,"GLADES4481 - Tyler Scott ENVIRONMENTAL SCIENCE And POLICY GL Only "]
[null,null,null,"63419 - Rebekah Rosenthal Memorial Schp 40417 ",null,"484F05 - Realized Gain Loss OP Non pooled investments ",null,null,"810346 - American Civil Liberties Union Law Student Association ",null,null,null,null,null,null,"GLADES4557 - Mark Lubell ENVIRONMENTAL SCIENCE And POLICY GL Only "]
[null,null,null,"63420 - Neurology General Electric Co Kwee 40418 ",null,"484F06 - Realized Gain Loss Smith Barney ",null,null,"810347 - Tax Law Society ",null,null,null,null,null,null,"GLADES4600 - Eliska Rejmankova ENVIRONMENTAL SCIENCE And POLICY GL Only "]
[null,null,null,"63421 - EntomMosquito Control ResCornel 40419 ",null,"484F07 - Realized Gain Loss SSGA Trusts ",null,null,"810348 - King Hall Immigration Law Association ",null,null,null,null,null,null,"GLADES4745 - Steven Morgan ENVIRONMENTAL SCIENCE And POLICY GL Only "]
[null,null,null,"63422 - UCDMC WomenS Pavilion 40420 ",null,"485F00 - UCDFEF Unrealized Increase Decrease in Fair Value ",null,null,"810349 - UCD Law Review ",null,null,null,null,null,null,"GLADES5397 - Fernanda Valdovinos ENVIRONMENTAL SCIENCE And POLICY GL Only "]
[null,null,null,"63423 - BiolandAgr Engr14 TractorHill 40421 ",null,"485F01 - HIP Unrealized Net Increase Decrease in Fair Value ",null,null,"810350 - Real Estate Law Student Association ",null,null,null,null,null,null,"GLADES5435 - Alan Meier ENVIRONMENTAL SCIENCE And POLICY GL Only "]
[null,null,null,"63424 - Chem Research Molinski 40422 ",null,"485F02 - SSGA Unrealized Net Increase Decrease in Fair Value ",null,null,"810351 - Society for Industrial and Applied Mathematics ",null,null,null,null,null,null,"GLADES5986 - Jennifer Phillips ENVIRONMENTAL SCIENCE And POLICY GL Only "]
[null,null,null,"63426 - EdCress CtrCa Sci Project SactoPotter 40424 ",null,"485F03 - Other Non pooled Unrealized Increase Decrease in Fair Value ",null,null,"810352 - Philpinx Americans in Science and Engineering ",null,null,null,null,null,null,"GLADES6299 - Sean Godwin ENVIRONMENTAL SCIENCE And POLICY GL Only "]
[null,null,null,"63427 - EntomMaeda Schlrshp Fund 40425 ",null,"485F04 - 3rd Party Trusts Unrealized increase Decrease in Fair Value ",null,null,"810353 - East African Student Association ",null,null,null,null,null,null,"GLADNO0109 - Amy Joy AGR And ENV SCI DEANS OFFICE GL Only "]
[null,null,null,"63429 - MedObGyn Research Gilbert 40427 ",null,"485F05 - Insure Policies Unrealized Net Increase Decrease in Fair Value ",null,null,"810354 - Flipinx in Liberal Arts and Humanities ",null,null,null,null,null,null,"GLADNO0536 - Helene Dillard AGR And ENV SCI DEANS OFFICE GL Only "]
[null,null,null,"63430 - VMtrcCrypto ResAtwill 40428 ",null,"485F06 - Real Estate Unrealized Net Increase Decrease in Fair Value ",null,null,"810355 - Pacific Islander Student Association ",null,null,null,null,null,null,"GLADNO1591 - Mark Van Horn AGR And ENV SCI DEANS OFFICE GL Only "]
[null,null,null,"63431 - VMdoLos Encinos Kennel Club 40429 ",null,"486F00 - Change in Value of Annuity Life Income Liabilities ",null,null,"810356 - Student Commuter Organization ",null,null,null,null,null,null,"GLADNO3291 - Carol Hillhouse AGR And ENV SCI DEANS OFFICE GL Only "]
[null,null,null,"63432 - Ctr For NeurosciNerosci Grad PrgrmHeyn 40430 ",null,"486F01 - Clearing Acct for Trust Liabilities ",null,null,"810357 - FOAM CRAFT GRADUATE NERF and MAKER CLUB ",null,null,null,null,null,null,"GLADNO3844 - Nicelma King AGR And ENV SCI DEANS OFFICE GL Only "]
[null,null,null,"63433 - LawState Capitol Reception 40431 ",null,"486F02 - Trust Payments Taxes ",null,null,"810358 - TechSprint Innovators ",null,null,null,null,null,null,"GLADNO4109 - Andrew Waterhouse AGR And ENV SCI DEANS OFFICE GL Only "]
[null,null,null,"63434 - UCDMCTransplant Hope 40432 ",null,"486F03 - Trust Fees ",null,null,"810359 - Project M Club at UC Davis ",null,null,null,null,null,null,"GLAENM0332 - Christian Nansen ENTOMOLOGY NEMATOLOGY GL Only "]
[null,null,null,"63436 - An SciPrentice FdtnNovakovicRadke 40434 ",null,"486F04 - Trust Income Earned ",null,null,"810360 - Davis Yugioh ",null,null,null,null,null,null,"GLAENM0477 - Norman Gary ENTOMOLOGY NEMATOLOGY GL Only "]
[null,null,null,"63437 - AandEsGifford Ctr For Population Studies 40435 ",null,"486F05 - Trust Gifts ",null,null,"810361 - American Lung Cancer Screening Initiative at UC Davis ",null,null,null,null,null,null,"GLAENM0637 - Robert Kimsey ENTOMOLOGY NEMATOLOGY GL Only "]
[null,null,null,"63439 - StdthousingBekahS Memorial Tree 40437 ",null,"484000 - Proceeds from Sales of Capital Assets ",null,null,"810362 - Astronomy Club ",null,null,null,null,null,null,"GLAENM0768 - Hugh Dingle ENTOMOLOGY NEMATOLOGY GL Only "]
[null,null,null,"63441 - UCDMC1999 Telethon 40439 ",null,"484001 - Fix Asset Trade In ",null,null,"810363 - Cyclone RoboSub ",null,null,null,null,null,null,"GLAENM0903 - Bruce Jaffee ENTOMOLOGY NEMATOLOGY GL Only "]
[null,null,null,"63442 - DANR Ncr4H Ntl Ad CampaignDesmond 40440 ",null,"484010 - Disposals of Original Cost Land ",null,null,"810364 - Punjabi Club ",null,null,null,null,null,null,"GLAENM0924 - Marshall McMunn ENTOMOLOGY NEMATOLOGY GL Only "]
[null,null,null,"63443 - VMdoThermographySnyder 40441 ",null,"484020 - Disposals of Original Cost Land Improvements Parking Lot Improvements ",null,null,"810365 - International EngieConnect Community ",null,null,null,null,null,null,"GLAENM0937 - Frank Zalom ENTOMOLOGY NEMATOLOGY GL Only "]
[null,null,null,"63444 - VMthAngel Fund 40442 ",null,"484030 - Disposals of Original Cost Land Improvements Other Land Improvements ",null,null,"810366 - Arabic Language Club ",null,null,null,null,null,null,"GLAENM0977 - Charles Schaefer ENTOMOLOGY NEMATOLOGY GL Only "]
[null,null,null,"63445 - Ctr NeurosciNeuroscience Grad Program 40443 ",null,"484040 - Disposal of Original Cost Infrastructure ",null,null,"810367 - Davis Songbirds ",null,null,null,null,null,null,"GLAENM0983 - Geoffrey Attardo ENTOMOLOGY NEMATOLOGY GL Only "]
[null,null,null,"63446 - MaeHuman Powered Vehicle 40444 ",null,"484050 - Disposal of Original Cost Building Improvements Service Concession Arrangements ",null,null,"810368 - Art for All ",null,null,null,null,null,null,"GLAENM1073 - Mary Flint ENTOMOLOGY NEMATOLOGY GL Only "]
[null,null,null,"63447 - Center For Anml Welfare Support 40445 ",null,"484060 - Disposals of Original Cost Building Improvements Student Housing Facilities ",null,null,"810369 - Future Health Professionals ",null,null,null,null,null,null,"GLAENM1221 - Sharon Lawler ENTOMOLOGY NEMATOLOGY GL Only "]
[null,null,null,"63448 - DespCommunICAtive Devices In Enducation 40446 ",null,"484070 - Disposal of Original Cost Building Improvements Parking Structures ",null,null,"810370 - CIAO Club at UC Davis ",null,null,null,null,null,null,"GLAENM1284 - Joanna Chiu ENTOMOLOGY NEMATOLOGY GL Only "]
[null,null,null,"63449 - DespGolden Gate BiosphereSchonewald 40447 ",null,"484080 - Disposals of Original Cost Buildings Improvements Leasehold Improvements ",null,null,"810371 - Engineering Collaborative Council ",null,null,null,null,null,null,"GLAENM1300 - Philip Ward ENTOMOLOGY NEMATOLOGY GL Only "]
[null,null,null,"63450 - MaeSeminar Endowment Fund 40448 ",null,"484090 - Disposals of Original Cost Buildings Improvements Other ",null,null,"810372 - Budding Botanists ",null,null,null,null,null,null,"GLAENM1488 - John Edman ENTOMOLOGY NEMATOLOGY GL Only "]
[null,null,null,"63451 - MedBiotechGupta 40449 ",null,"484100 - Disposals of Original Cost Equipment ",null,null,"810373 - Wildlife Photography Club ",null,null,null,null,null,null,"GLAENM1549 - Anthony Cornel ENTOMOLOGY NEMATOLOGY GL Only "]
[null,null,null,"63455 - VMbRalston PurinaHill 40453 ",null,"484101 - Disposal of Original Cost UCDMC Only Furniture and Equipment ",null,null,"810374 - Jack Black Pack ",null,null,null,null,null,null,"GLAENM1889 - Louie Yang ENTOMOLOGY NEMATOLOGY GL Only "]
[null,null,null,"63456 - ImBrofeldt Memeorial Lectureship 40454 ",null,"484110 - Disposals of Original Cost Software Greater Than 5M ",null,null,"810375 - Slaughterhouse Sketch Comedy ",null,null,null,null,null,null,"GLAENM2017 - Edward Caswell Chen ENTOMOLOGY NEMATOLOGY GL Only "]
[null,null,null,"63458 - VMthTgf Beta StudyKyles 40456 ",null,"484120 - Disposals of Original Cost Software Less Than or Equal to 5M ",null,null,"810376 - Research Experience in Surgery ",null,null,null,null,null,null,"GLAENM2108 - Peter Cranston ENTOMOLOGY NEMATOLOGY GL Only "]
[null,null,null,"63459 - VMeAfs EditorialHedrick 40457 ",null,"484130 - Disposals of Original Cost Intangibles ",null,null,"810377 - Davis Data Science Club ",null,null,null,null,null,null,"GLAENM2151 - Shahid Siddique ENTOMOLOGY NEMATOLOGY GL Only "]
[null,null,null,"63460 - PomologyNut Crops ResMicke 40458 ",null,"484140 - Disposals of Original Cost Libraries Collections ",null,null,"810378 - Bass Fishing Club at UC Davis ",null,null,null,null,null,null,"GLAENM2193 - Harry Kaya ENTOMOLOGY NEMATOLOGY GL Only "]
[null,null,null,"63463 - FsandT Fish Feed Reseach Haard 40461 ",null,"484150 - Disposals of Original Cost Special Collections ",null,null,"810379 - Chinese Life Science Association ",null,null,null,null,null,null,"GLAENM2341 - Jason Bond ENTOMOLOGY NEMATOLOGY GL Only "]
[null,null,null,"63464 - MaeTiltTable Model 40462 ",null,"484160 - Disposals of Original Cost Construction in Progress CIP ",null,null,"810380 - Aggie Mahjong Club ",null,null,null,null,null,null,"GLAENM2388 - Bruce Eldridge ENTOMOLOGY NEMATOLOGY GL Only "]
[null,null,null,"63466 - CehPerformance Horse 40464 ",null,"484170 - Disposals of Original Cost General Improvements ",null,null,"810381 - Aspec Club ",null,null,null,null,null,null,"GLAENM2420 - Howard Ferris ENTOMOLOGY NEMATOLOGY GL Only "]
[null,null,null,"63467 - VMsrsMerial LimitedSnyder 40465 ",null,"484200 - Disposal of Accum Depr Parking Lot Improvements ",null,null,"810382 - Magic the Gathering Club ",null,null,null,null,null,null,"GLAENM2517 - Elina Nino ENTOMOLOGY NEMATOLOGY GL Only "]
[null,null,null,"63468 - DANR El Dorado Master Gardener 40466 ",null,"484210 - Disposal of Accum Depreciation Other Land Improvements ",null,null,"810383 - Computer Science Tutoring Club ",null,null,null,null,null,null,"GLAENM2571 - Jay Rosenheim ENTOMOLOGY NEMATOLOGY GL Only "]
[null,null,null,"63469 - Inter Med Research Tuscano 40467 ",null,"484220 - Disposal of Accum Depr Infrastructure ",null,null,"810384 - Small Business Society ",null,null,null,null,null,null,"GLAENM2650 - Thomas Scott ENTOMOLOGY NEMATOLOGY GL Only "]
[null,null,null,"63470 - Musie Sacto Sat Club Schlsp 40468 ",null,"484230 - Disposal of Accum Depreciation Building Improvements Service Concession Arrangements ",null,null,"810385 - Abolition Decolonization and Liberation Collective ",null,null,null,null,null,null,"GLAENM2749 - Michael Parrella ENTOMOLOGY NEMATOLOGY GL Only "]
[null,null,null,"63471 - Inter MedFellows Ed Wchaefer 40469 ",null,"484240 - Disposal of Accum Depr Building Improvements Student Housing ",null,null,"810386 - Student Choral Association at UC Davis ",null,null,null,null,null,null,"GLAENM2871 - Richard Karban ENTOMOLOGY NEMATOLOGY GL Only "]
[null,null,null,"63472 - CawShelter Survey Proj 40470 ",null,"484250 - Disposal of Accum Depr Building Improvements Parking ",null,null,"810387 - Lebanese Student Organization ",null,null,null,null,null,null,"GLAENM2920 - Becky Westerdahl ENTOMOLOGY NEMATOLOGY GL Only "]
[null,null,null,"63473 - ItsAirandWaste Mgmt Assn Schlsp 40471 ",null,"484260 - Disposal of Accum Depr Leasehold Improvements ",null,null,"810388 - Davis De Heere ",null,null,null,null,null,null,"GLAENM3052 - Diane Ullman ENTOMOLOGY NEMATOLOGY GL Only "]
[null,null,null,"63474 - EnglishBridges Fdn 40472 ",null,"484270 - Disposal of Accum Depr Building Improvements Other ",null,null,"810389 - American Society of Mechanical Engineers ",null,null,null,null,null,null,"GLAENM3259 - Bruce Hammock ENTOMOLOGY NEMATOLOGY GL Only "]
[null,null,null,"63476 - Plt PathFallen Leaf Lake Conference 40474 ",null,"484280 - Disposal of Accum Depr Equipment ",null,null,"810390 - American Institute of Aeronautics and Astronautics ",null,null,null,null,null,null,"GLAENM3353 - A Grigarick ENTOMOLOGY NEMATOLOGY GL Only "]
[null,null,null,"63477 - Smith GiftMilk Technology 40475 ",null,"484281 - Disposal of Accum Depr UCDMC Only Furniture and Equipment ",null,null,"810391 - Advanced Modeling and Aeronautics Team ",null,null,null,null,null,null,"GLAENM3685 - Ian Grettenberger ENTOMOLOGY NEMATOLOGY GL Only "]
[null,null,null,"63479 - Civil Engr Building Campaign 40477 ",null,"484290 - Disposal of Accum Depr Software Greater Than 5M ",null,null,"810392 - Aggie Propulsion Lab ",null,null,null,null,null,null,"GLAENM3870 - Penelope Gullan ENTOMOLOGY NEMATOLOGY GL Only "]
[null,null,null,"63481 - Nutrition Research Grivetti 40479 ",null,"484300 - Disposal of Accum Depr Software Less Than or Equal5M ",null,null,"810393 - Formula Racing at UC Davis ",null,null,null,null,null,null,"GLAENM3984 - Robert Page ENTOMOLOGY NEMATOLOGY GL Only "]
[null,null,null,"63482 - Nutri Research Nat Food Extrct Hackma 40480 ",null,"484310 - Disposal of Accum Depr Intangibles ",null,null,"810394 - Eclipse Rocketry ",null,null,null,null,null,null,"GLAENM4087 - Brian Johnson ENTOMOLOGY NEMATOLOGY GL Only "]
[null,null,null,"63484 - Pom Res Aflatoxin Control Gradziel 40482 ",null,"484320 - Disposal of Accum Depr Library Collections ",null,null,"810395 - Indoor Gardening Club ",null,null,null,null,null,null,"GLAENM4261 - James R Carey ENTOMOLOGY NEMATOLOGY GL Only "]
[null,null,null,"63486 - ImResearch Cohen 40484 ",null,"484330 - Disposal of Accum Depr General Improvement ",null,null,"810396 - National Association of Black Journalists Davis ",null,null,null,null,null,null,"GLAENM4405 - Neal Williams ENTOMOLOGY NEMATOLOGY GL Only "]
[null,null,null,"63489 - CaesNorman Risdon Endowment 40487 ",null,"484400 - Disp of original cost intangibles subscription asset SBITA on modification return term ",null,null,"810397 - Rooted Magazine ",null,null,null,null,null,null,"GLAENM4476 - Edwin Lewis ENTOMOLOGY NEMATOLOGY GL Only "]
[null,null,null,"63490 - VMccahResidentDodge 40488 ",null,"484410 - Disposal of accum amort intangibles subscription asset SBITA on modification return term ",null,null,"810398 - GO CLUB AT UC DAVIS ",null,null,null,null,null,null,"GLAENM4711 - Amanda Hodson ENTOMOLOGY NEMATOLOGY GL Only "]
[null,null,null,"63492 - IaUCDF Club Fred 40490 ",null,"484600 - Disposal Original Cost Intangibles Finance Lease ROU on Buyout Land ",null,null,"810399 - Puente at UC Davis ",null,null,null,null,null,null,"GLAENM4747 - Rachel Vannette ENTOMOLOGY NEMATOLOGY GL Only "]
[null,null,null,"63493 - Hayrapetian Mem Scholarship 40491 ",null,"484610 - Disposal Original Cost Intangibles Finance Lease ROU on Buyout Building Improvements ",null,null,"810400 - Theatre for Social Change ",null,null,null,null,null,null,"GLAENM4842 - Lynn Kimsey ENTOMOLOGY NEMATOLOGY GL Only "]
[null,null,null,"63494 - Scalettar Post Doc Research Awrd 40492 ",null,"484620 - Disposal Original Cost Intangibles Finance Lease ROU on Buyout Equipment ",null,null,"810401 - Davis Data Driven Change ",null,null,null,null,null,null,"GLAENM4892 - Jeffrey Granett ENTOMOLOGY NEMATOLOGY GL Only "]
[null,null,null,"63495 - Alpaca Breeders Of So Ca 40493 ",null,"484650 - Disposal of Accum Amortization Intangibles Finance Lease ROU on Buyout Land ",null,null,"810402 - Midwives Self Healing Club ",null,null,null,null,null,null,"GLAENM5001 - Ying Shin Peng ENTOMOLOGY NEMATOLOGY GL Only "]
[null,null,null,"63496 - Envrn Tox Department Support 40494 ",null,"484660 - Disposal Accum Amortization Intangibles Finance Lease ROU Buyout Bldgs Improvements ",null,null,"810403 - Students for the Exploration and Development of Space UC Davis ",null,null,null,null,null,null,"GLAENM5002 - Steven Nadler ENTOMOLOGY NEMATOLOGY GL Only "]
[null,null,null,"63497 - Wetland Ecology Eadie 40495 ",null,"484670 - Disposal Accum Amort Intangibles Finance Lease ROU on Buyout Equipment ",null,null,"810404 - Filipinx Organizing Retention and Cultural Empowerment ",null,null,null,null,null,null,"GLAENM5068 - Robert Washino ENTOMOLOGY NEMATOLOGY GL Only "]
[null,null,null,"63498 - SOM Damon Fawcett Scholarship 40496 ",null,"484700 - Disposal Original Cost Intangibles Finance Lease ROU on Return Land ",null,null,"810405 - LAB ANIMAL AND RESEARCH CLUB ",null,null,null,null,null,null,"GLAENM5303 - Christopher Fettig ENTOMOLOGY NEMATOLOGY GL Only "]
[null,null,null,"63499 - Med Fcm InstandResearch 40497 ",null,"484710 - Disposal Original Cost Intangibles Finance Lease ROU Return Building Improvements ",null,null,"810406 - FRIENDS OF DIALYSIS AT UC DAVIS ",null,null,null,null,null,null,"GLAENM5318 - Emily Meineke ENTOMOLOGY NEMATOLOGY GL Only "]
[null,null,null,"63500 - Opec Med Ped Endocrinology 40498 ",null,"484720 - Disposal of Original Cost Intangibles Finance Lease ROU on Return Equipment ",null,null,"810407 - IMPECKABLE CHICKENS ",null,null,null,null,null,null,"GLAETX0351 - John Whitehead ENVIRONMENTAL TOXICOLOGY GL Only "]
[null,null,null,"63503 - VMCEH Equine Resident Research Prgm 40501 ",null,"484750 - Disposal Accum Amort Intangibles Finance Lease ROU on Return Land ",null,null,"810408 - WOULD YOU RATHER CLUB ",null,null,null,null,null,null,"GLAETX0917 - Wray Winterlin ENVIRONMENTAL TOXICOLOGY GL Only "]
[null,null,null,"63504 - VMCEH MerialSnyder 40502 ",null,"484760 - Disposal of Accum Amort Intangibles Finance Lease Return Building Improvements ",null,null,"810409 - AFRICAN DIASPORA MENTAL HEALTH ",null,null,null,null,null,null,"GLAETX1111 - Qi Zhang ENVIRONMENTAL TOXICOLOGY GL Only "]
[null,null,null,"63505 - Linguistics Steven Lapointe Memorial 40503 ",null,"484770 - Disposal of Accum Amort Intangibles Finance Lease ROU on Return Equipment ",null,null,"810410 - CLASS OF 2027 AT UC DAVIS SVM ",null,null,null,null,null,null,"GLAETX1245 - Michele La Merrill ENVIRONMENTAL TOXICOLOGY GL Only "]
[null,null,null,"63506 - RDorf Awards For Academic Excellence 40504 ",null,"484800 - Disposal of Original Cost Intangibles Finance Lease ROU on Modification Land ",null,null,"810411 - DAVIS YDSA ",null,null,null,null,null,null,"GLAETX1337 - Ronald Tjeerdema ENVIRONMENTAL TOXICOLOGY GL Only "]
[null,null,null,"63507 - Math andPhys Sci Dept Support 40505 ",null,"484810 - Disposal of Original Cost Intangibles Finance Lease Modification Building Improvments ",null,null,"810412 - Aggie International Ministry Undergrad ",null,null,null,null,null,null,"GLAETX1609 - Michael Stimmann ENVIRONMENTAL TOXICOLOGY GL Only "]
[null,null,null,"63508 - WFCB Waterfowl Populations Eadie 40506 ",null,"484820 - Disposal of Original Cost Intangibles Finance Lease ROU on Modification Equipment ",null,null,"810413 - INCLUDE ",null,null,null,null,null,null,"GLAETX1736 - D Crosby ENVIRONMENTAL TOXICOLOGY GL Only "]
[null,null,null,"63509 - VMphrGuidry FdnBondurant 40507 ",null,"484850 - Disposal of Accum Amort Intangibles Finance Lease ROU on Modification Land ",null,null,"810414 - 27 HEARTBEATS ",null,null,null,null,null,null,"GLAETX1849 - Allison Ehrlich ENVIRONMENTAL TOXICOLOGY GL Only "]
[null,null,null,"63513 - Herbert A Young Society 40511 ",null,"484860 - Disposal Accum Amort Intangibles Finance Lease Modification Building Improvements ",null,null,"810415 - 3D ENTHUSIASTS OF DAVIS ",null,null,null,null,null,null,"GLAETX1961 - Theodore Hullar ENVIRONMENTAL TOXICOLOGY GL Only "]
[null,null,null,"63514 - Env Hort Visiting ScientistsDurzan 40512 ",null,"484870 - Disposal of Accum Amort Intangibles Finance Lease ROU on Modification Equipment ",null,null,"810416 - 3D PRINTING CLUB AT UC DAVIS ",null,null,null,null,null,null,"GLAETX2390 - Sascha Nicklisch ENVIRONMENTAL TOXICOLOGY GL Only "]
[null,null,null,"63516 - Calaveras Master Gardener Program 40514 ",null,"484900 - Disposal of Original Cost Intangibles Finance Lease ROU on Termination Land ",null,null,"810417 - ACTIVITREE ",null,null,null,null,null,null,"GLAETX2458 - Arthur Craigmill ENVIRONMENTAL TOXICOLOGY GL Only "]
[null,null,null,"63517 - DANR Master GardenersChurches 40514 ",null,"484910 - Disposal of Original Cost Intangibles Finance Lease Termination Building Improvements ",null,null,"810418 - ACTUARIAL SCIENCE ASSOCIATION ",null,null,null,null,null,null,"GLAETX2796 - Karen Riveles ENVIRONMENTAL TOXICOLOGY GL Only "]
[null,null,null,"63519 - Im RheumatologyAllergy 40516 ",null,"484920 - Disposal of Original Cost Intangibles Finance Lease on Termination Equipment ",null,null,"810419 - ACVIM STUDENT CHAPTER ",null,null,null,null,null,null,"GLAETX2839 - James Seiber ENVIRONMENTAL TOXICOLOGY GL Only "]
[null,null,null,"63520 - Med PediatricsWarden 40517 ",null,"484950 - Disposal of Accum Amort Intangibles Finance Lease ROU on Termination Land ",null,null,"810420 - ADAPTIVE TECHNOLOGY ASSOCIATION ",null,null,null,null,null,null,"GLAETX3015 - Norman Kado ENVIRONMENTAL TOXICOLOGY GL Only "]
[null,null,null,"63521 - Mcb Research Gasser 40518 ",null,"484960 - Disposal Accum Amort Intangibles Finance Lease Termination Building Improvements ",null,null,"810421 - AGGIE ALBUM ASSOCIATES ",null,null,null,null,null,null,"GLAETX3030 - Barry Miller ENVIRONMENTAL TOXICOLOGY GL Only "]
[null,null,null,"63522 - Geology Ecolite Research Fund 40519 ",null,"484970 - Disposal of Accum Amort Intangibles Finance Lease on Termination Equipment ",null,null,"810422 - AGGIE APPLICATION PREPARATION ",null,null,null,null,null,null,"GLAETX3288 - Tran Nguyen ENVIRONMENTAL TOXICOLOGY GL Only "]
[null,null,null,"63523 - Avian Sci Alza Bio Felwshp Fulton Radke 40520 ",null,"484980 - Debt Extinguishment Cost ",null,null,"810423 - AGGIE BAKING CLUB ",null,null,null,null,null,null,"GLAETX3723 - Matthew Wood ENVIRONMENTAL TOXICOLOGY GL Only "]
[null,null,null,"63525 - VMDO Canine Genetic Wroth 40522 ",null,"484990 - Return or Early Termination Fee ",null,null,"810424 - AGGIE BULLET JOURNALING AND PRODUCTIVITY ",null,null,null,null,null,null,"GLAETX4740 - Spencer Walse ENVIRONMENTAL TOXICOLOGY GL Only "]
[null,null,null,"63526 - VMDO Charitable Trust Doelger 40523 ",null,"484500 - Recovery from Impairment of Assets ",null,null,"810425 - AGGIE CHINESE TRADITIONAL TABLE SCRIPT ",null,null,null,null,null,null,"GLAETX4790 - Robert Rice ENVIRONMENTAL TOXICOLOGY GL Only "]
[null,null,null,"63530 - MAE Design and Mfg 40527 ",null,"485000 - Unclaimed Property Transfer Revenue ",null,null,"810426 - AGGIE FICTION WRITING WORKSHOP ",null,null,null,null,null,null,"GLAETX4852 - Christoph Vogel ENVIRONMENTAL TOXICOLOGY GL Only "]
[null,null,null,"63531 - Chemistry Roche UG Award 40528 ",null,"485001 - Sale of Used Excess Inventory ",null,null,"810427 - AGGIE FLY-FISHING ",null,null,null,null,null,null,"GLAETX4975 - Mathew J Hengel ENVIRONMENTAL TOXICOLOGY GL Only "]
[null,null,null,"63534 - Viticulture and Enology Amerine Memorial 40531 ",null,"485002 - Other Misc Additions ",null,null,"810428 - AGGIE GO ",null,null,null,null,null,null,"GLAETX5140 - T Shibamoto ENVIRONMENTAL TOXICOLOGY GL Only "]
[null,null,null,"63535 - Viticulture and Enology Meredith 40532 ",null,"485003 - Other Misc Deductions ",null,null,"810429 - AGGIE GOLF CLUB ",null,null,null,null,null,null,"GLAETX5181 - Mari Golub ENVIRONMENTAL TOXICOLOGY GL Only "]
[null,null,null,"63536 - Viticulture and Enology Nealand Sons Schlp 40533 ",null,"485009 - Additional Nonoperating Revenue Source ",null,null,"810430 - AGGIE HOUSE ",null,null,null,null,null,null,"GLAETX5207 - Jeffrey Rodzen ENVIRONMENTAL TOXICOLOGY GL Only "]
[null,null,null,"63537 - IT American Honda 40534 ",null,"485010 - Federal Loan Received ",null,null,"810431 - AGGIE HURRICANE SKATING CLUB ",null,null,null,null,null,null,"GLAETX5210 - Glendon Parker ENVIRONMENTAL TOXICOLOGY GL Only "]
[null,null,null,"63538 - DANR Computer Corps Program 40535 ",null,"485020 - Federal Loan Disbursed ",null,null,"810432 - AGGIE INTERNATIONAL MINISTRY (AIM) ",null,null,null,null,null,null,"GLAETX5347 - Christina Pasparakis ENVIRONMENTAL TOXICOLOGY GL Only "]
[null,null,null,"63541 - Counseling Ctr Undergraduate Counseling 40537 ",null,"485100 - Joint Venture Non Operating Income ",null,null,"810433 - AGGIE INTERNATIONAL MINISTRY-UNDERGRAD ",null,null,null,null,null,null,"GLAETX5442 - Brett Poulin ENVIRONMENTAL TOXICOLOGY GL Only "]
[null,null,null,"63542 - VMthCritical Care Equipment 40538 ",null,"485200 - Changes in Split Interest Agreements Contract ",null,null,"810434 - AGGIE OPEN MICS ",null,null,null,null,null,null,"GLAETX5619 - Claudio Sorrentino ENVIRONMENTAL TOXICOLOGY GL Only "]
[null,null,null,"63545 - Music Firch Concert Band 40541 ",null,"485300 - Insurance Recoveries ",null,null,"810435 - AGGIE POLO CLUB ",null,null,null,null,null,null,"GLAETX5651 - M Elizabeth Marder ENVIRONMENTAL TOXICOLOGY GL Only "]
[null,null,null,"63546 - Music Firch Cal Aggie Band 40542 ",null,"485400 - Royalty Revenue Income ",null,null,"810436 - AGGIE ROCKET PROPULSION LAB ",null,null,null,null,null,null,"GLAETX5884 - Kimberly Rosvall ENVIRONMENTAL TOXICOLOGY GL Only "]
[null,null,null,"63548 - Law Sch La Raza Journal Of Law and Policy 40544 ",null,"485410 - Trademark Revenue Income ",null,null,"810437 - AGGIE TRADING POST ",null,null,null,null,null,null,"GLAFST0363 - Christopher Simmons FOOD SCIENCE And TECHNOLOGY GL Only "]
[null,null,null,"63550 - Urology Research Evans 40546 ",null,"485500 - Patent Revenue Income ",null,null,"810438 - AGGIE WRESTLING CLUB ",null,null,null,null,null,null,"GLAFST0411 - Everett Bandman FOOD SCIENCE And TECHNOLOGY GL Only "]
[null,null,null,"63551 - Fdn Plt Material ServGrapes 40547 ",null,"486100 - Rental Income Fixed Included in PV ",null,null,"810439 - AGGIEMATION EGGHEADS ",null,null,null,null,null,null,"GLAFST0485 - John German FOOD SCIENCE And TECHNOLOGY GL Only "]
[null,null,null,"63552 - Fdn Plt Material ServAll Amer Rose 40548 ",null,"486110 - Rental Income Variable Exclude from PV ",null,null,"810440 - AGGIES ASL ",null,null,null,null,null,null,"GLAFST0487 - Glenn Young FOOD SCIENCE And TECHNOLOGY GL Only "]
[null,null,null,"63553 - PomPistachio Research Beede 40549 ",null,"486120 - Rental Income Short Term Leases GASB 87 ",null,null,"810441 - AGGIES FOR PALESTINE ",null,null,null,null,null,null,"GLAFST0582 - Chester Price FOOD SCIENCE And TECHNOLOGY GL Only "]
[null,null,null,"63559 - 4H After School Activity Program 40555 ",null,"486200 - Rental Income Fixed Clearing Reversal ",null,null,"810442 - AGGIES NEAR AND FAR ",null,null,null,null,null,null,"GLAFST0602 - Pamela Tom FOOD SCIENCE And TECHNOLOGY GL Only "]
[null,null,null,"63560 - Health Sci Adv Dept Support 40555 ",null,"486300 - Lease Revenues and Income ",null,null,"810443 - AGGIEWORKS ",null,null,null,null,null,null,"GLAFST0615 - Charles Bamforth FOOD SCIENCE And TECHNOLOGY GL Only "]
[null,null,null,"63561 - Cvdls Eacl Discretionary 40556 ",null,"486400 - GASB 87 Interest Income ",null,null,"810444 - AHLUL-BAYT STUDENT ASSOCIATION ",null,null,null,null,null,null,"GLAFST0695 - Linda Harris FOOD SCIENCE And TECHNOLOGY GL Only "]
[null,null,null,"63562 - An Sci Olivera Awards Egg Marketg Assc 40557 ",null,"486910 - Residual Value Guaranteed Revenue ",null,null,"810445 - AI STUDENT COLLECTIVE at UC DAVIS ",null,null,null,null,null,null,"GLAFST0777 - Diane Barrett FOOD SCIENCE And TECHNOLOGY GL Only "]
[null,null,null,"63563 - AgronandRange Sci Research Rice Van K 40558 ",null,"486920 - Lease Termination Revenues ",null,null,"810446 - AMERICAN INST. AERONAUTICS and ASTRONAUTIC ",null,null,null,null,null,null,"GLAFST0792 - Nitin Nitin FOOD SCIENCE And TECHNOLOGY GL Only "]
[null,null,null,"63564 - Clin Affairs TelemedicineMerckandCo 40559 ",null,"745000 - Patent Income Distributions ",null,null,"810447 - AMERICAN SOCIETY FOR MICROBIOLOGY ",null,null,null,null,null,null,"GLAFST0795 - Alyson Mitchell FOOD SCIENCE And TECHNOLOGY GL Only "]
[null,null,null,"63565 - An Science Trailer Fund 40560 ",null,"745010 - Royalty Income Distributions ",null,null,"810448 - ANIMAL NUTRITION STUDENT COMMUNITY ",null,null,null,null,null,null,"GLAFST1196 - Christine Bruhn FOOD SCIENCE And TECHNOLOGY GL Only "]
[null,null,null,"63566 - DANR Elkus Memorial Fund 40560 ",null,"810000 - Gen Rev Bond Debt Principal Received Cap Financing ",null,null,"810449 - ANIMAL SCIENCE STUDENT MENTORSHIP ",null,null,null,null,null,null,"GLAFST1225 - Michael Mccarthy FOOD SCIENCE And TECHNOLOGY GL Only "]
[null,null,null,"63567 - VMdoKlacking Gift 40561 ",null,"810010 - Gen Rev Bond Debt Principal Received NonCap Financing ",null,null,"810450 - ANTIRACIST RESEARCH NETWORK ",null,null,null,null,null,null,"GLAFST1618 - Luxin Wang FOOD SCIENCE And TECHNOLOGY GL Only "]
[null,null,null,"63568 - Med CcmGardner Seminar Series Fd 40562 ",null,"810050 - Gen Rev Bond Premium or Discount ",null,null,"810451 - ARGENTINE TANGO CLUB ",null,null,null,null,null,null,"GLAFST1689 - Daniela Barile FOOD SCIENCE And TECHNOLOGY GL Only "]
[null,null,null,"63569 - WfcEcotoxicology Stdt Support 40563 ",null,"810100 - Gen Rev Bond Debt Svc Payments Principal Scheduled Cap Financing ",null,null,"810452 - ARMENIAN STUDENT ASSOCIATION ",null,null,null,null,null,null,"GLAFST1794 - Erin Dicaprio FOOD SCIENCE And TECHNOLOGY GL Only "]
[null,null,null,"63570 - Law SchoolDavis Venture Club 40564 ",null,"810110 - Gen Rev Bond Debt Svc Payments Principal Scheduled NonCap Financing ",null,null,"810453 - ASIAN CULTURAL FILM ASSOCIATION ",null,null,null,null,null,null,"GLAFST2005 - Gerald Russell FOOD SCIENCE And TECHNOLOGY GL Only "]
[null,null,null,"63571 - Med Surgery Lap Research Nguyen 40565 ",null,"810200 - Gen Rev Bond Debt Svc Payments Principal Refinancing or Prepayment ",null,null,"810454 - ASIAN VETERINARY MEDICAL PROFESSIONALS ",null,null,null,null,null,null,"GLAFST2044 - Richard Merson FOOD SCIENCE And TECHNOLOGY GL Only "]
[null,null,null,"63572 - Med Neurol SurgEller Memorial Fd 40566 ",null,"810300 - Net Change In General Revenue Bonds GRBs ",null,null,"810455 - ASSOCIATION FOR WOMEN IN MATHEMATICS ",null,null,null,null,null,null,"GLAFST2149 - Charles Shoemaker FOOD SCIENCE And TECHNOLOGY GL Only "]
[null,null,null,"63573 - Mind Neurodevelopment Disord 40567 ",null,"811000 - Lmtd Proj Rev Bonds Debt Principal Received ",null,null,"810456 - ATMOSPHERIC AGGIES AMS STUDENT CHAPTER ",null,null,null,null,null,null,"GLAFST2206 - Jennifer Smilowitz FOOD SCIENCE And TECHNOLOGY GL Only "]
[null,null,null,"63574 - LgbtVarious Donors 40568 ",null,"811050 - Lmtd Proj Rev Bonds Premium or Discount ",null,null,"810457 - AUTISM SPEAKS CHAPTER AT UC DAVIS ",null,null,null,null,null,null,"GLAFST2507 - Gary Smith FOOD SCIENCE And TECHNOLOGY GL Only "]
[null,null,null,"63577 - CcahBosackKruger 40571 ",null,"811100 - Lmtd Proj Rev Bonds Debt service payments principal scheduled ",null,null,"810458 - BAHA'I CLUB FOR DISCOURSE AND ACTION ",null,null,null,null,null,null,"GLAFST2532 - Kyria Boundy Mills FOOD SCIENCE And TECHNOLOGY GL Only "]
[null,null,null,"63579 - Anthro Research Borgerhoff Mulder 40573 ",null,"811200 - Lmtd Proj Rev Bonds Debt Service Payments Principal Refinancing or Prepayment ",null,null,"810459 - BANGLADESHI GRADUATE STUDENT ASSOCIATION ",null,null,null,null,null,null,"GLAFST2653 - Ameer Taha FOOD SCIENCE And TECHNOLOGY GL Only "]
[null,null,null,"63580 - Mcb Research Rose 40574 ",null,"811300 - Net Change in Lmtd Project Revenue Bonds ",null,null,"810460 - BAPS CAMPUS FELLOWSHIP ",null,null,null,null,null,null,"GLAFST2658 - Moshe Rosenberg FOOD SCIENCE And TECHNOLOGY GL Only "]
[null,null,null,"63582 - Mech EngrVivid Cnc ResearchYamazaki 40576 ",null,"812000 - MC Pooled Rev Bonds Debt Principal Received ",null,null,"810461 - B-HOURS ENGINEERING GROUP ",null,null,null,null,null,null,"GLAFST3064 - Jean Xavier Guinard FOOD SCIENCE And TECHNOLOGY GL Only "]
[null,null,null,"63584 - VM MedandEpid Res Sturgeon Hedrick 40578 ",null,"812050 - MC Pooled Rev Bond Premium or Discount ",null,null,"810462 - Biological and Agricultural Engineering GSA ",null,null,null,null,null,null,"GLAFST3202 - Sharon Shoemaker FOOD SCIENCE And TECHNOLOGY GL Only "]
[null,null,null,"63586 - American Agric Economics Assoc 40580 ",null,"812100 - MCPRB Debt Service Payment Principal Scheduled ",null,null,"810463 - BIOPHYSICAL SOCIETY STUDENT CHAPTER ",null,null,null,null,null,null,"GLAFST3204 - Carl Winter FOOD SCIENCE And TECHNOLOGY GL Only "]
[null,null,null,"63587 - Am Studies Dept Support 40581 ",null,"812200 - MCPRB Debt Service Payment Principal Refinancing or Prepayment ",null,null,"810464 - BIRDWATCHING CLUB ",null,null,null,null,null,null,"GLAFST3539 - Michael Omahony FOOD SCIENCE And TECHNOLOGY GL Only "]
[null,null,null,"63588 - FsandT Sensoryishii ResOMahoney 40582 ",null,"812300 - Net Change in MC Pooled Revenue Bonds ",null,null,"810465 - BIRTHDAY PARTY FOR MATHEMATICIANS ",null,null,null,null,null,null,"GLAFST3712 - Bwalya Lungu FOOD SCIENCE And TECHNOLOGY GL Only "]
[null,null,null,"63589 - Playwriting Fund 40583 ",null,"813000 - ThirdParty Debt Principal Received ",null,null,"810466 - BLACK GRAD & PROFESSIONAL STUDENTS ASSOC ",null,null,null,null,null,null,"GLAFST3871 - Glen Fox FOOD SCIENCE And TECHNOLOGY GL Only "]
[null,null,null,"63591 - Med Donated Body Memorial Fd 40585 ",null,"813050 - ThirdParty Debt Bond Premium or Discount ",null,null,"810467 - BLOOMS FOR BENEFIT ",null,null,null,null,null,null,"GLAFST3922 - John Krochta FOOD SCIENCE And TECHNOLOGY GL Only "]
[null,null,null,"63592 - American Bioculture 40586 ",null,"813100 - ThirdParty Debt Service Payments Principal Scheduled ",null,null,"810468 - BOARD GAME CLUB ",null,null,null,null,null,null,"GLAFST4157 - Kathryn Mccarthy FOOD SCIENCE And TECHNOLOGY GL Only "]
[null,null,null,"63593 - FsandTAm Frozen Food 40587 ",null,"813200 - Third Party Debt Service Payments Principal Refinancing or Prepayment ",null,null,"810469 - BRAIN AND BEHAVIOR RESEARCH CLUB ",null,null,null,null,null,null,"GLAFST4283 - Stephanie Dungan FOOD SCIENCE And TECHNOLOGY GL Only "]
[null,null,null,"63594 - DANR Calavares Co4H Council 40588 ",null,"813300 - Net Change In Third Party Debt Blended Component Bonds ",null,null,"810470 - BRAIN EXERCISE INITIATIVE ",null,null,null,null,null,null,"GLAFST4535 - Selina Ching Hsuan Wang FOOD SCIENCE And TECHNOLOGY GL Only "]
[null,null,null,"63595 - Med Cell Bio Human Ant Research Enders 40588 ",null,"814000 - Financing Obligation Debt Proceeds Received ",null,null,"810471 - BRAZILIAN CAPOEIRA ANGOLA CLUB ",null,null,null,null,null,null,"GLAFST4549 - Juliana Leite Nobrega De Moura Bell FOOD SCIENCE And TECHNOLOGY GL Only "]
[null,null,null,"63596 - Lgbt Resource Ctr Support 40589 ",null,"814100 - Financing Obligation Debt Service Payments Principal Scheduled ",null,null,"810472 - BREAKING BARRIERS ",null,null,null,null,null,null,"GLAFST4784 - Edward Spang FOOD SCIENCE And TECHNOLOGY GL Only "]
[null,null,null,"63598 - Food Sci Malting and Brewing Prgm 40591 ",null,"814200 - Financing Obligations Debt Service Payments Principal Refinancing or Prepayment ",null,null,"810473 - BURMESE STUDENT ASSOCIATION ",null,null,null,null,null,null,"GLAFST5113 - Keith Ito FOOD SCIENCE And TECHNOLOGY GL Only "]
[null,null,null,"63600 - Civil Eng Air Pollution Res Boulanger 40593 ",null,"814300 - Net Change In Financing Obligations ",null,null,"810474 - CADUCEUS CLUB AT UC DAVIS SCHOOL VETMED ",null,null,null,null,null,null,"GLAFST5205 - Michael Lewis FOOD SCIENCE And TECHNOLOGY GL Only "]
[null,null,null,"63601 - DANR Napa Master Gardeners Donaldson 40594 ",null,"814500 - Other University Borrowing Debt Principal Received ",null,null,"810475 - CAHPSA AT UC DAVIS ",null,null,null,null,null,null,"GLAFST5328 - Julien Delarue FOOD SCIENCE And TECHNOLOGY GL Only "]
[null,null,null,"63602 - VMCCAH Berner Garde Fdn Moore 40595 ",null,"814510 - Other University Borrowings Debt Service Payments Principal Sched ",null,null,"810476 - CAMBODIAN STUDENT ASSOCIATION ",null,null,null,null,null,null,"GLAFST5577 - Andrew Gravelle FOOD SCIENCE And TECHNOLOGY GL Only "]
[null,null,null,"63603 - VMCCAH Cancer Res 40596 ",null,"814520 - Other University Borrowings Debt Service Payments Principal Refinancing or Prepayment ",null,null,"810477 - CHABAD ON CAMPUS ",null,null,null,null,null,null,"GLAFST6258 - Maria Louise Marco FOOD SCIENCE And TECHNOLOGY GL Only "]
[null,null,null,"63604 - VM SurgEquine Hoof Care Wyman 40597 ",null,"814530 - Net Change in Othr Univeristy Borrowings ",null,null,"810478 - CHINESE STUDENT THINK TANK ",null,null,null,null,null,null,"GLAHCE0085 - Noli Brazil HUMAN ECOLOGY GL Only "]
[null,null,null,"63605 - DANR Amador Co4H Vrs Dnrs 40598 ",null,"814600 - Finance Lease ROU Debt Proceed Received ",null,null,"810479 - CLASS OF 2024 SCHOOL OF VETERINARY MED ",null,null,null,null,null,null,"GLAHCE0093 - Jennifer Falbe HUMAN ECOLOGY GL Only "]
[null,null,null,"63606 - Cntr Image Research Algazi 40599 ",null,"814610 - Finance Lease ROU Debt Service PaymentsPrincipal Scheduled ",null,null,"810480 - CLASS OF 2025 SCHOOL OF VET MED ",null,null,null,null,null,null,"GLAHCE0105 - Elizabeth Boults HUMAN ECOLOGY GL Only "]
[null,null,null,"63609 - Dramatic Art ChairS Discretionary Fnd 40602 ",null,"814620 - Finance Lease ROU Debt Serv PaymentsPrincipal RefiorPrepayment ",null,null,"810481 - CLASS OF 2026 AT UC DAVIS SVM ",null,null,null,null,null,null,"GLAHCE0114 - Brenna Castro Carlson HUMAN ECOLOGY GL Only "]
[null,null,null,"63610 - PomNut Crop Extension Fd 40603 ",null,"814630 - Net Changes in Finance Leases ",null,null,"810482 - CLUB DE ESPANOL ",null,null,null,null,null,null,"GLAHCE0292 - Daniel Choe HUMAN ECOLOGY GL Only "]
[null,null,null,"63611 - VMca Library Donations 40604 ",null,"814700 - SBITA Debt proceeds received ",null,null,"810483 - CLUSTER ON LANGUAGE RESEARCH ",null,null,null,null,null,null,"GLAHCE0348 - Kali Trzesniewski HUMAN ECOLOGY GL Only "]
[null,null,null,"63612 - VMth Kubla Khan Epstein Award 40605 ",null,"814710 - SBITA Debt Service Payments principal scheduled ",null,null,"810484 - CODELAB ",null,null,null,null,null,null,"GLAHCE0412 - Eric Larsen HUMAN ECOLOGY GL Only "]
[null,null,null,"63613 - DANR Santa Cruz Strawberry Res 40606 ",null,"814720 - SBITA DSP Principal Refinancing or Prepayment ",null,null,"810485 - COLLEGE BOWL AT UC DAVIS ",null,null,null,null,null,null,"GLAHCE0417 - Nina Napawan HUMAN ECOLOGY GL Only "]
[null,null,null,"63615 - DANR Imperial Livestock Res Guerrero 40608 ",null,"814730 - Net Change in SBITA ",null,null,"810486 - COLLEGIATE SALES SOCIETY ",null,null,null,null,null,null,"GLAHCE0420 - Lorence Oki HUMAN ECOLOGY GL Only "]
[null,null,null,"63616 - Nutri Research King 40609 ",null,"815000 - Commercial Paper Debt Proceed Received Capital ",null,null,"810487 - COMMUNITY CAT PROJECT ",null,null,null,null,null,null,"GLAHCE0539 - Jonathan London HUMAN ECOLOGY GL Only "]
[null,null,null,"63619 - UCDFCharlotte Dunmore Estate 40612 ",null,"815100 - Commercial Paper Debt Service Payment Principal Scheduled Capital ",null,null,"810488 - COMPASS CHRISTIAN FELLOWSHIP ",null,null,null,null,null,null,"GLAHCE0541 - Edward Mcniel HUMAN ECOLOGY GL Only "]
[null,null,null,"63621 - DANR San BernardinoCoop Ext Programs 40613 ",null,"815200 - Commercial Paper Debt Proceed Received Noncapital ",null,null,"810489 - COMUNIDAD IN HEATH EDUCATION ",null,null,null,null,null,null,"GLAHCE0577 - Lenna Ontai HUMAN ECOLOGY GL Only "]
[null,null,null,"63622 - VMdoAnimal Blood Bank Schlsp 40614 ",null,"815300 - Commercial Paper Debt Service Payment Principal Scheduled Noncapital ",null,null,"810490 - CONSTRUCTION MANAGEMENT CLUB ",null,null,null,null,null,null,"GLAHCE0594 - Michael Rios HUMAN ECOLOGY GL Only "]
[null,null,null,"63623 - Med Imho Research Christenson 40615 ",null,"815400 - Net Change In Commercial Paper Borrowings Capital ",null,null,"810491 - CONTACT IMPROVISATION CLUB ",null,null,null,null,null,null,"GLAHCE0601 - Catherine Brinkley HUMAN ECOLOGY GL Only "]
[null,null,null,"63624 - ImResearch Gallay 40616 ",null,"815500 - Net Change In Commercial Paper Borrowings Noncapital ",null,null,"810492 - CORN ON THE COB COMEDY ",null,null,null,null,null,null,"GLAHCE0607 - Marjorie Visser HUMAN ECOLOGY GL Only "]
[null,null,null,"63627 - Nmr Fac Research 40619 ",null,"816000 - Transfer of Debt Services ",null,null,"810493 - COVELO CLINIC ",null,null,null,null,null,null,"GLAHCE0638 - Robert Wiener HUMAN ECOLOGY GL Only "]
[null,null,null,"63628 - English Celest T Wright Memorial Fd 40620 ",null,"816001 - Capital Outlay Transfer ",null,null,"810494 - CUB SUPPORT ",null,null,null,null,null,null,"GLAHCE0893 - R Thayer HUMAN ECOLOGY GL Only "]
[null,null,null,"63629 - VMcehGreenhill FdnEpm Studies 40621 ",null,"816002 - Debt Service Payments ",null,null,"810495 - CUSTOM SMASH AT UC DAVIS ",null,null,null,null,null,null,"GLAHCE0964 - Leigh Ann Simmons HUMAN ECOLOGY GL Only "]
[null,null,null,"63630 - VMdoNo American Vet Conference Award 40622 ",null,"816009 - Other Misc Transfer of Debt ",null,null,"810496 - DABKET WATAN ",null,null,null,null,null,null,"GLAHCE1009 - Michael Smith HUMAN ECOLOGY GL Only "]
[null,null,null,"63631 - Physics Graduate Program 40623 ",null,"816010 - Repayment of Debt Svc Principal from UCB ",null,null,"810497 - Dairy Science Club at Moo-C Davis ",null,null,null,null,null,null,"GLAHCE1232 - Steven Greco HUMAN ECOLOGY GL Only "]
[null,null,null,"63632 - VMdoFloyd Dentistry Service CurrentUse 40624 ",null,"816020 - Repayment of Debt Svc Principal from UCSF ",null,null,"810498 - DANCEHOLIC TEAM ",null,null,null,null,null,null,"GLAHCE1244 - Mark Cooper HUMAN ECOLOGY GL Only "]
[null,null,null,"63633 - VMDO Mixed Animal Track Schlsp 40625 ",null,"816030 - Repayment of Debt Svc Principal from UCD ",null,null,"810499 - DAVIS BRICK SEMINAR ",null,null,null,null,null,null,"GLAHCE1354 - Stephen Brush HUMAN ECOLOGY GL Only "]
[null,null,null,"63634 - VMTH Etta Fd Client Communications 40626 ",null,"816040 - Repayment of Debt Svc Principal from UCLA ",null,null,"810500 - DAVIS CHINESE BUSINESS AND ECONOMICS CLU ",null,null,null,null,null,null,"GLAHCE1399 - Rand Conger HUMAN ECOLOGY GL Only "]
[null,null,null,"63635 - Math Oki American Puckett 40627 ",null,"816050 - Repayment of Debt Svc Principal from UCR ",null,null,"810501 - DAVIS CHINESE DANCE ",null,null,null,null,null,null,"GLAHCE1400 - Ryan Galt HUMAN ECOLOGY GL Only "]
[null,null,null,"63636 - An Sci Gary Moberg Stdt Support Fd 40628 ",null,"816060 - Repayment of Debt Svc Principal from UCSD ",null,null,"810502 - DAVIS CHINESE SOCCER CLUB ",null,null,null,null,null,null,"GLAHCE1435 - Joan Wright HUMAN ECOLOGY GL Only "]
[null,null,null,"63641 - VMDO Virginia and Bill Mckay Fellowship 40633 ",null,"816070 - Repayment of Debt Svc Principal from UCSC ",null,null,"810503 - DAVIS COLLEGE DEMOCRATS ",null,null,null,null,null,null,"GLAHCE1696 - Clare Cannon HUMAN ECOLOGY GL Only "]
[null,null,null,"63642 - AandRs Research Rice Genetics 40634 ",null,"816080 - Repayment of Debt Svc Principal from UCSB ",null,null,"810504 - DAVIS COMEDY CYCLE ",null,null,null,null,null,null,"GLAHCE1718 - Keith Taylor HUMAN ECOLOGY GL Only "]
[null,null,null,"63643 - An Sci Student Support Moberg 40635 ",null,"816090 - Repayment of Debt Svc Principal from UCI ",null,null,"810505 - DAVIS COMPETITIVE PROGRAMMING CLUB ",null,null,null,null,null,null,"GLAHCE1752 - Patsy Owens HUMAN ECOLOGY GL Only "]
[null,null,null,"63644 - Engr Comp SciMicrosoftBishop 40636 ",null,"816100 - Repayment of Debt Svc Principal from UCM ",null,null,"810506 - DAVIS CONSULTING GROUP ",null,null,null,null,null,null,"GLAHCE1823 - Eric Chu HUMAN ECOLOGY GL Only "]
[null,null,null,"63645 - VMPMI DestorelinMunson 40637 ",null,"816110 - Repayment of Debt Svc Principal to UCOP ",null,null,"810507 - DAVIS COUNTRY LINE DANCING CLUB ",null,null,null,null,null,null,"GLAHCE1831 - Katherine Conger HUMAN ECOLOGY GL Only "]
[null,null,null,"63646 - VMdoCcaMerial Senior Schlsp 40638 ",null,"816120 - Repayment of Debt Svc Principal from ANR ",null,null,"810508 - DAVIS DESIGN INTERACTIVE ",null,null,null,null,null,null,"GLAHCE1833 - Siwei Liu HUMAN ECOLOGY GL Only "]
[null,null,null,"63647 - AandRsCalif Alfalfa Symposium 40639 ",null,"816210 - Transfers to UCB for Revenue Bonds and Commercial Paper ",null,null,"810509 - DAVIS DHADKAN ",null,null,null,null,null,null,"GLAHCE1862 - Barbara Shebloski HUMAN ECOLOGY GL Only "]
[null,null,null,"63648 - Med PathAids ResSawai 40639 ",null,"816220 - Transfers to UCSF for Revenue Bonds and Commercial Paper ",null,null,"810510 - DAVIS DISC CLUB ",null,null,null,null,null,null,"GLAHCE2075 - Richard Ponzio HUMAN ECOLOGY GL Only "]
[null,null,null,"63649 - Biomed Engr Research Ferrara 40640 ",null,"816230 - Transfers to and from UCD for Revenue Bonds and Commercial Paper ",null,null,"810511 - DAVIS DOGS ",null,null,null,null,null,null,"GLAHCE2134 - Luis Guarnizo HUMAN ECOLOGY GL Only "]
[null,null,null,"63650 - EngrWhitaker FdnFerrara 40641 ",null,"816240 - Transfers to UCLA for Revenue Bonds and Commercial Paper ",null,null,"810512 - DAVIS ECONOMICS COLLECTIVE ",null,null,null,null,null,null,"GLAHCE2190 - Amanda Guyer HUMAN ECOLOGY GL Only "]
[null,null,null,"63652 - CeeWilliam K Johnson Fd 40643 ",null,"816250 - Transfers to UCR for Revenue Bonds and Commercial Paper ",null,null,"810513 - DAVIS HISTORICAL FENCING CLUB ",null,null,null,null,null,null,"GLAHCE2284 - Vikram Swaroop Chandra Koundinya HUMAN ECOLOGY GL Only "]
[null,null,null,"63655 - VMDO Ardel Azeltine Schlsp 40646 ",null,"816260 - Transfers to UCSD for Revenue Bonds and Commercial Paper ",null,null,"810514 - DAVIS JOURNAL OF LEGAL STUDIES ",null,null,null,null,null,null,"GLAHCE2327 - Martin Kenney HUMAN ECOLOGY GL Only "]
[null,null,null,"63656 - An Sci Mam Program 40647 ",null,"816270 - Transfers to UCSC for Revenue Bonds and Commercial Paper ",null,null,"810515 - DAVIS LEMONS RACING ",null,null,null,null,null,null,"GLAHCE2368 - Janet Momsen HUMAN ECOLOGY GL Only "]
[null,null,null,"63657 - Ivan Pollock and Frank Grasse Mem Schp 40648 ",null,"816280 - Transfers to UCSB for Revenue Bonds and Commercial Paper ",null,null,"810516 - DAVIS MARKSMANSHIP SOCIETY ",null,null,null,null,null,null,"GLAHCE2383 - Frank Hirtz HUMAN ECOLOGY GL Only "]
[null,null,null,"63658 - Vit and Enology Research Block 40649 ",null,"816290 - Transfers to UCI for Revenue Bonds and Commercial Paper ",null,null,"810517 - DAVIS MOTORSPORTS CLUB ",null,null,null,null,null,null,"GLAHCE2489 - Meng Huo HUMAN ECOLOGY GL Only "]
[null,null,null,"63659 - LAWR International Symposium 40650 ",null,"816300 - Transfers to UCM for Revenue Bonds and Commercial Paper ",null,null,"810518 - DAVIS MYCOLOGY CLUB ",null,null,null,null,null,null,"GLAHCE2497 - Anna Kiers HUMAN ECOLOGY GL Only "]
[null,null,null,"63660 - VMpmi Disease Research Murphy 40651 ",null,"816310 - Transfers to UCOP for Revenue Bonds and Commercial Paper ",null,null,"810519 - DAVIS ORIGAMI CLUB ",null,null,null,null,null,null,"GLAHCE2526 - Miriam Wells HUMAN ECOLOGY GL Only "]
[null,null,null,"63661 - VM Surg San Francisco Fdn 40652 ",null,"816320 - Transfers to and from ANR for Revenue Bonds and Commercial Paper ",null,null,"810520 - DAVIS REWILDING SOCIETY ",null,null,null,null,null,null,"GLAHCE2589 - James Grieshop HUMAN ECOLOGY GL Only "]
[null,null,null,"63662 - DANR ImperialFresno Plant Pathology 40653 ",null,"816410 - Transfers to UCB for Construction Draws and COI ",null,null,"810521 - DAVIS ROBOTICS CLUB ",null,null,null,null,null,null,"GLAHCE2902 - Jay Belsky HUMAN ECOLOGY GL Only "]
[null,null,null,"63663 - DANR Research Imperial County 40653 ",null,"816420 - Transfers to UCSF for Construction Draws and COI ",null,null,"810522 - DAVIS SMASH ULTIMATE CLUB ",null,null,null,null,null,null,"GLAHCE2916 - Adrienne Nishina HUMAN ECOLOGY GL Only "]
[null,null,null,"63664 - Rolling Hills 4H Robotics Santa Clara 40654 ",null,"816430 - Transfers to and from UCD for Construction Draws and COI ",null,null,"810523 - DAVIS SPEEDCUBING CLUB ",null,null,null,null,null,null,"GLAHCE2934 - Stephen Wheeler HUMAN ECOLOGY GL Only "]
[null,null,null,"63665 - VM Ext Animal Ambassador Donors 40655 ",null,"816440 - Transfers to UCLA for Construction Draws and COI ",null,null,"810524 - DAVIS STUDENTS FOR LIFE ",null,null,null,null,null,null,"GLAHCE2974 - Keith Barton HUMAN ECOLOGY GL Only "]
[null,null,null,"63669 - Use 41795 FranceBerkeley 40659 ",null,"816450 - Transfers to UCR for Construction Draws and COI ",null,null,"810525 - DAVIS TRICERATOPS ",null,null,null,null,null,null,"GLAHCE2984 - David Campbell HUMAN ECOLOGY GL Only "]
[null,null,null,"63672 - VandE Lactic Acid Bacteria Research 40662 ",null,"816460 - Transfers to UCSD for Construction Draws and COI ",null,null,"810526 - DAVIS UNDERGRADUATE ENGINEERING NETWORK ",null,null,null,null,null,null,"GLAHCE3023 - Meredith Branstad HUMAN ECOLOGY GL Only "]
[null,null,null,"63673 - Ccah Genetic Research 40663 ",null,"816470 - Transfers to UCSC for Construction Draws and COI ",null,null,"810527 - Davis YDSA ",null,null,null,null,null,null,"GLAHCE3414 - Beth Ober HUMAN ECOLOGY GL Only "]
[null,null,null,"63674 - Engr Computer Sci Zeneca 40664 ",null,"816480 - Transfers to UCSB for Construction Draws and COI ",null,null,"810528 - DAYS FOR GIRLS AT UC DAVIS ",null,null,null,null,null,null,"GLAHCE3708 - Heath Massey HUMAN ECOLOGY GL Only "]
[null,null,null,"63675 - Edo Van Dam Retention 40665 ",null,"816490 - Transfers to UCI for Construction Draws and COI ",null,null,"810529 - DECA AT UC DAVIS ",null,null,null,null,null,null,"GLAHCE3911 - Alvin Sokolow HUMAN ECOLOGY GL Only "]
[null,null,null,"63676 - Med MicroValley Fever Proj 40666 ",null,"816500 - Transfers to UCM for Construction Draws and COI ",null,null,"810530 - DESI STUDENT ASSOCIATION ",null,null,null,null,null,null,"GLAHCE3912 - William Lacy HUMAN ECOLOGY GL Only "]
[null,null,null,"63678 - Nutri Research King 40668 ",null,"816510 - Transfers to UCOP for Construction Draws and COI ",null,null,"810531 - DESTINO AT UC DAVIS ",null,null,null,null,null,null,"GLAHCE3943 - Brett Milligan HUMAN ECOLOGY GL Only "]
[null,null,null,"63679 - PhysicsPascoS Conference 40669 ",null,"816520 - Transfers to and from ANR for Construction Draws and COI ",null,null,"810532 - DHVANI AT UC DAVIS ",null,null,null,null,null,null,"GLAHCE3962 - Lisa S Miller HUMAN ECOLOGY GL Only "]
[null,null,null,"63680 - Cahfs Calif Egg Commission 40670 ",null,"816610 - Internal Loans net Changes UCB ",null,null,"810533 - DISABLED STUDENT UNION ",null,null,null,null,null,null,"GLAHCE3965 - Anjali C Gupta HUMAN ECOLOGY GL Only "]
[null,null,null,"63682 - Pom Water Impact On Fruit Research 40672 ",null,"816620 - Internal Loans net Changes UCSF ",null,null,"810534 - DIVERSITY and INCLUSION IN PHYSICS and ASTRO ",null,null,null,null,null,null,"GLAHCE3969 - L V Harper HUMAN ECOLOGY GL Only "]
[null,null,null,"63683 - Med Pat Care Serv Ucan Asthma Educ 40673 ",null,"816630 - Internal Loans net Changes UCD ",null,null,"810535 - DOPE RESOURCES IN LANGUAGE and LITERATURE ",null,null,null,null,null,null,"GLAHCE4248 - Leah Hibel HUMAN ECOLOGY GL Only "]
[null,null,null,"63684 - VM Barron Grad Stdt Fellowship 40674 ",null,"816640 - Internal Loans net Changes UCLA ",null,null,"810536 - DREAMCATCHERS AT UC DAVIS ",null,null,null,null,null,null,"GLAHCE4482 - Lisa Rapalyea HUMAN ECOLOGY GL Only "]
[null,null,null,"63687 - Cnprc Blelloch Project Vandevoort 40677 ",null,"816650 - Internal Loans net Changes UCR ",null,null,"810537 - DUBIS-DUBBING CLUB AT DAVIS ",null,null,null,null,null,null,"GLAHCE4634 - Cory Parker HUMAN ECOLOGY GL Only "]
[null,null,null,"63688 - Entom UsJapan Conference 40678 ",null,"816660 - Internal Loans net Changes UCSD ",null,null,"810538 - EARTHQUAKE ENGR RSCH INST STDT CHAP UCD ",null,null,null,null,null,null,"GLAHCE4765 - Johnna Swartz HUMAN ECOLOGY GL Only "]
[null,null,null,"63690 - Eec Edison Core Gift Funding 40680 ",null,"816670 - Internal Loans net Changes UCSC ",null,null,"810539 - ECLIPSE ROCKETRY ",null,null,null,null,null,null,"GLAHCE4833 - Rosemarie Kraft HUMAN ECOLOGY GL Only "]
[null,null,null,"63691 - Aqrc Dairy Symposium 40681 ",null,"816680 - Internal Loans net Changes UCSB ",null,null,"810540 - EKHO DANCE ",null,null,null,null,null,null,"GLAHCE4847 - Earl Mcculley HUMAN ECOLOGY GL Only "]
[null,null,null,"63694 - DeanS Bldg Funds VM3A 40684 ",null,"816690 - Internal Loans net Changes UCI ",null,null,"810541 - ELECTRONIC DANCE MUSIC CLUB ",null,null,null,null,null,null,"GLAHCE5029 - S Hutchison HUMAN ECOLOGY GL Only "]
[null,null,null,"63695 - VMth Discretionary Acct 40685 ",null,"816700 - Internal Loans net Changes UCM ",null,null,"810542 - ENGINEERING POSSUMS ",null,null,null,null,null,null,"GLAHCE5051 - David Scott De La Pena HUMAN ECOLOGY GL Only "]
[null,null,null,"63697 - Entom PistachioNavel OrangewormWsleal 40687 ",null,"816710 - Internal Loans net Changes UCOP ",null,null,"810543 - ENVIRONMENTAL PROJECT AT UC DAVIS ",null,null,null,null,null,null,"GLAHCE5077 - E Maccannell HUMAN ECOLOGY GL Only "]
[null,null,null,"63699 - Provost TomGinny Cahill Gift 40689 ",null,"816720 - Internal Loans net Changes ANR ",null,null,"810544 - EQUIP AT DAVIS ",null,null,null,null,null,null,"GLAHCE5117 - Marc Pilisuk HUMAN ECOLOGY GL Only "]
[null,null,null,"63701 - DANR Sutter Yuba Mstr Grdnr 40691 ",null,"820000 - Intercampus transfer of Land with another UC ",null,null,"810545 - EVERY NATION CAMPUS AT UC DAVIS ",null,null,null,null,null,null,"GLAHCE5228 - Nicole Hollis HUMAN ECOLOGY GL Only "]
[null,null,null,"63702 - Soe Etecbrg 40692 ",null,"820010 - Intercampus transfer of Parking Lot Improvements with another UC ",null,null,"810546 - FIJIAN STUDENT ASSOCIATION ",null,null,null,null,null,null,"GLAHCE5236 - Gabino Marquez HUMAN ECOLOGY GL Only "]
[null,null,null,"63703 - Soe New Teachers Fund 40693 ",null,"820020 - Intercampus transfer of Other Land Improvements with another UC ",null,null,"810547 - FILIPINXS ORGANIZING RETENTION AND CULTU ",null,null,null,null,null,null,"GLAHCE5242 - Maciel Hernandez HUMAN ECOLOGY GL Only "]
[null,null,null,"63704 - EngrGiedt Facility 40694 ",null,"820030 - Intercampus transfer of Infrastructure with another UC ",null,null,"810548 - FOOD AND AGRIBUSINESS SOCIETY ",null,null,null,null,null,null,"GLAHCE5300 - Emily Elizabeth Schlickman HUMAN ECOLOGY GL Only "]
[null,null,null,"63706 - Gsm Center For Investor Welfare 40696 ",null,"820040 - Intercampus Transfer of Bldgs Imprvmts Service Concession Arrangements with another UC ",null,null,"810549 - FOOD SCIENCE GRAD STUDENT ASSOCIATION ",null,null,null,null,null,null,"GLAHCE5354 - Brittany Chambers HUMAN ECOLOGY GL Only "]
[null,null,null,"63709 - VM Doris DayTerry Melcher Scholarship 40699 ",null,"820050 - Intercampus transfer of Buildings and Improvements Housing Facilities with another UC ",null,null,"810550 - FOODIES AT UC DAVIS ",null,null,null,null,null,null,"GLAHCE5543 - Victoria Mohr Ferron HUMAN ECOLOGY GL Only "]
[null,null,null,"63710 - VMcas DietandBehavior 40700 ",null,"820060 - Intercampus transfer of Parking Structures with another UC ",null,null,"810551 - FORMULA 1 AT UC DAVIS ",null,null,null,null,null,null,"GLAHCE5777 - Chi Yun Moon HUMAN ECOLOGY GL Only "]
[null,null,null,"63711 - Engr Design Clinic Project 40701 ",null,"820070 - Intercampus transfer of Leasehold Improvements with another UC ",null,null,"810552 - FORMULA RACING AT UC DAVIS ",null,null,null,null,null,null,"GLAHCE5954 - Gitanjali Khandagle HUMAN ECOLOGY GL Only "]
[null,null,null,"63713 - EngeceSpencerHurst 40703 ",null,"820080 - Intercampus transfer of Building and Improvements Other with another UC ",null,null,"810553 - FRIENDS OF CHILDREN WITH SPECIAL NEEDS ",null,null,null,null,null,null,"GLAHCE6297 - Anne Iaccopucci HUMAN ECOLOGY GL Only "]
[null,null,null,"63714 - LandSAsian American Unrestricted Pri Fnd 40704 ",null,"820090 - Transfer General Improvements to Another Location ",null,null,"810554 - FRIENDS OF MSF AT UC DAVIS ",null,null,null,null,null,null,"GLALAM0186 - Mohammad Harivandi UCCE ALAMEDA COUNTY GL Only "]
[null,null,null,"63715 - CahfsKenneth L Maddy Memorial Fund 40705 ",null,"821010 - Intercampus transfer of Equipment with UCB ",null,null,"810555 - GATKA AT  UC DAVIS ",null,null,null,null,null,null,"GLALAM6011 - Mary Blackburn UCCE ALAMEDA COUNTY "]
[null,null,null,"63716 - VMtrcCdtc Construction 40706 ",null,"821020 - Intercampus transfer of Equipment with UCSF ",null,null,"810556 - GIRL GAINS ",null,null,null,null,null,null,"GLALAM6211 - Andrew Sutherland UCCE ALAMEDA COUNTY "]
[null,null,null,"63717 - GsmAnnual Fund Grad Student Support 40707 ",null,"821030 - Intercampus transfer of Equipment with UCD ",null,null,"810557 - GIRLS WHO CODE AT UC DAVIS ",null,null,null,null,null,null,"GLALAM6212 - Jessie Godfrey UCCE ALAMEDA COUNTY "]
[null,null,null,"63718 - Med OrthoSpine Research Program 40708 ",null,"821040 - Intercampus transfer of Equipment with UCLA ",null,null,"810558 - GLOBAL (GEOGRAPHY and COMMUNITY DEV GRAD) ",null,null,null,null,null,null,"GLALAW0044 - Won Sik Choi LAND AIR And WATER RESOURCES GL Only "]
[null,null,null,"63720 - Med Mnsg Emil Barth Research Fund 40710 ",null,"821050 - Intercampus transfer of Equipment with UCR ",null,null,"810559 - GOOGLE DEVELOPER STUDENT CLUB AT UCD ",null,null,null,null,null,null,"GLALAW0088 - Rebecca Hernandez LAND AIR And WATER RESOURCES GL Only "]
[null,null,null,"63721 - Ped Family Violence Prevention Fund 40711 ",null,"821060 - Intercampus transfer of Equipment with UCSD ",null,null,"810560 - GRAD & PROF STDT FELLOWSHIP INTERVARSITY ",null,null,null,null,null,null,"GLALAW0323 - Anthony Ogeen LAND AIR And WATER RESOURCES GL Only "]
[null,null,null,"63722 - Med Imho Thoracic OncologyGandara 40712 ",null,"821070 - Intercampus transfer of Equipment with UCSC ",null,null,"810561 - GRAD STDNT and POST-DOC SACNAS ",null,null,null,null,null,null,"GLALAW0440 - Randy Dahlgren LAND AIR And WATER RESOURCES GL Only "]
[null,null,null,"63723 - An Sci Equine Teaching Fund 40713 ",null,"821080 - Intercampus transfer of Equipment with UCSB ",null,null,"810562 - GRAD STUDENT DANCERS AT UCD ",null,null,null,null,null,null,"GLALAW0609 - Shu Hua Chen LAND AIR And WATER RESOURCES GL Only "]
[null,null,null,"63724 - VitSo Ca Restaurant Writers Schlsp 40714 ",null,"821090 - Intercampus transfer of Equipment with UCI ",null,null,"810563 - GRADUATE SCHOLARS OF COLOR plus ",null,null,null,null,null,null,"GLALAW0611 - M Silk LAND AIR And WATER RESOURCES GL Only "]
[null,null,null,"63725 - VitandEnologyWinery Equipment 40715 ",null,"821100 - Intercampus transfer of Equipment with UCM ",null,null,"810564 - GRADUATE STUDENT ENSEMBLE ",null,null,null,null,null,null,"GLALAW0645 - Jan Hopmans LAND AIR And WATER RESOURCES GL Only "]
[null,null,null,"63726 - Med Peds Endo Styne 40716 ",null,"821110 - Intercampus transfer of Equipment with UCOP ",null,null,"810565 - GUITAR CLUB ",null,null,null,null,null,null,"GLALAW0744 - David Goldhamer LAND AIR And WATER RESOURCES GL Only "]
[null,null,null,"63727 - Pom Research Potter 40717 ",null,"821120 - Transfer Equipment to ANR ",null,null,"810566 - H2O DANCE CREW ",null,null,null,null,null,null,"GLALAW0766 - Mark Grismer LAND AIR And WATER RESOURCES GL Only "]
[null,null,null,"63728 - ImArtzt Family Fdn TrustResearch 40719 ",null,"822000 - Intercampus transfer of Software greater than 5M with another UC ",null,null,"810567 - HACKERHUB ",null,null,null,null,null,null,"GLALAW0800 - M Singer LAND AIR And WATER RESOURCES GL Only "]
[null,null,null,"63729 - Med RadGe Med SystemsBuonocore 40720 ",null,"822010 - Intercampus transfer of Software less than 5M with another UC ",null,null,"810568 - HAILUO MENTAL SUPPORT ",null,null,null,null,null,null,"GLALAW0853 - Roland Meyer LAND AIR And WATER RESOURCES GL Only "]
[null,null,null,"63730 - MedOrthopaedicsDickenson 40721 ",null,"822050 - Intercampus transfer of Intangibles with another UC ",null,null,"810569 - HANDS ON THE LAND ",null,null,null,null,null,null,"GLALAW1112 - Louise Jackson LAND AIR And WATER RESOURCES GL Only "]
[null,null,null,"63732 - AandRs Research Jernstedt 40723 ",null,"822100 - Intercampus transfer of Libraries Collections with another UC ",null,null,"810570 - HEALTH, EDUCATION, ADVOCACY AND LAW ",null,null,null,null,null,null,"GLALAW1129 - Da Yang LAND AIR And WATER RESOURCES GL Only "]
[null,null,null,"63733 - Vsr Research Macdonald 40724 ",null,"822150 - Intercampus transfer of Special Collections with another UC ",null,null,"810571 - HEARTS FOR PAWS AT UC DAVIS ",null,null,null,null,null,null,"GLALAW1183 - Robert Flocchini LAND AIR And WATER RESOURCES GL Only "]
[null,null,null,"63734 - Med NeurologICAlEpilepsy Res Program 40725 ",null,"824000 - Intercampus transfer of Accumulated Depreciation Land Improvements with another UC ",null,null,"810572 - HILLEL AT UC DAVIS ",null,null,null,null,null,null,"GLALAW1186 - T Hsiao LAND AIR And WATER RESOURCES GL Only "]
[null,null,null,"63735 - Med Pharm Research Harkey 40726 ",null,"824010 - Intercampus transfer of Accum Depreciation Other Land Improvements with another UC ",null,null,"810573 - HINDI URDU CLUB ",null,null,null,null,null,null,"GLALAW1290 - Robert Zasoski LAND AIR And WATER RESOURCES GL Only "]
[null,null,null,"63736 - MedOrthopaedicsRodrigo 40727 ",null,"824020 - Intercampus transfer of Accumulated Depreciation Infrastructure with another UC ",null,null,"810574 - HINDU STUDENT COUNCIL ",null,null,null,null,null,null,"GLALAW1293 - Roger Shaw LAND AIR And WATER RESOURCES GL Only "]
[null,null,null,"63737 - Env Hort Res At Burger Lab 40728 ",null,"824050 - Intercampus transfer of Accumulated Depreciation Bldgs and Improvements with another UC ",null,null,"810575 - HINDU YUVA ",null,null,null,null,null,null,"GLALAW1353 - Daniel Geisseler LAND AIR And WATER RESOURCES GL Only "]
[null,null,null,"63738 - Computer Sci Research Chong 40729 ",null,"824060 - Intercampus transfer of Accum Depr Bldgs Imprvments Housing Facilities with another UC ",null,null,"810576 - HISTORY CLUB AT UC DAVIS ",null,null,null,null,null,null,"GLALAW1387 - Carlos Puente LAND AIR And WATER RESOURCES GL Only "]
[null,null,null,"63739 - EntomologyInsect Life CyclesDingle 40730 ",null,"824070 - Intercampus transfer of Accumulated Depreciation Parking Structures with another UC ",null,null,"810577 - HISTORY GRADUATE STUDENT ASSOC ",null,null,null,null,null,null,"GLALAW1440 - Su Tzai Soong LAND AIR And WATER RESOURCES GL Only "]
[null,null,null,"63741 - SVMLillian G Young For Bovine Research 40732 ",null,"824080 - Transfer Accumulated Depreciation Leasehold Improvements to Another Location ",null,null,"810578 - IMANI LEGAL CLINIC ",null,null,null,null,null,null,"GLALAW1634 - Paul A Ullrich LAND AIR And WATER RESOURCES GL Only "]
[null,null,null,"63742 - DANRCcandSr4H Club CouncilPat Jones 40733 ",null,"824090 - Intercampus transfer of Accum Depreciation Bldgs and Improvements Other with another UC ",null,null,"810579 - INSPIRE HEALTH AT UC DAVIS ",null,null,null,null,null,null,"GLALAW1635 - Xia Zhu Barker LAND AIR And WATER RESOURCES GL Only "]
[null,null,null,"63743 - MedImerKupperman 40734 ",null,"824100 - Intercampus transfer of Accumulated Depreciation General Improvements with another UC ",null,null,"810580 - INST. OF ELECTRICAL and ELECTRONICS ENGINE ",null,null,null,null,null,null,"GLALAW1715 - Wesley Wallender LAND AIR And WATER RESOURCES GL Only "]
[null,null,null,"63745 - CrprcLab Support Golub 40736 ",null,"825010 - Intercampus transfer of Accumulated Depreciation Equipment with UCB ",null,null,"810581 - INTERNATIONAL LIFE ",null,null,null,null,null,null,"GLALAW1936 - Donald Grimes LAND AIR And WATER RESOURCES GL Only "]
[null,null,null,"63746 - SomImne Research Don Burl 40737 ",null,"825020 - Intercampus transfer of Accum Depr Equipment with UCSF ",null,null,"810582 - IYAGI HOUR ",null,null,null,null,null,null,"GLALAW1944 - Terrence Nathan LAND AIR And WATER RESOURCES GL Only "]
[null,null,null,"63747 - Eecs Research Colinge 40738 ",null,"825030 - Intercampus transfer of Accumulated Depreciation Equipment with UCD ",null,null,"810583 - JEEVA ",null,null,null,null,null,null,"GLALAW1988 - Daniele Zaccaria LAND AIR And WATER RESOURCES GL Only "]
[null,null,null,"63748 - Eecs Research Feher 40739 ",null,"825040 - Intercampus transfer of Accumulated Depreciation Equipment with UCLA ",null,null,"810584 - JUVENILE CADUCEUS ",null,null,null,null,null,null,"GLALAW2141 - Isaya Kisekka LAND AIR And WATER RESOURCES GL Only "]
[null,null,null,"63750 - Eecs Research LewisHurst 40741 ",null,"825050 - Transfer Accumulated Depreciation Equipment to UCR ",null,null,"810585 - KAPPA ALPHA PSI FRATERNITY INC. ",null,null,null,null,null,null,"GLALAW2171 - M Shelton LAND AIR And WATER RESOURCES GL Only "]
[null,null,null,"63751 - EecsResearch Oklobdzija 40742 ",null,"825060 - Intercampus transfer of Accumulated Depreciation Equipment with UCSD ",null,null,"810586 - KEEP DAVIS CLEAN ",null,null,null,null,null,null,"GLALAW2237 - Samuel Sandoval Solis LAND AIR And WATER RESOURCES GL Only "]
[null,null,null,"63752 - Eecs Research Smith 40743 ",null,"825070 - Intercampus transfer of Accumulated Depreciation Equipment with UCSC ",null,null,"810587 - KIDS IN NUTRITION, UC DAVIS CHAPTER ",null,null,null,null,null,null,"GLALAW2309 - Erwan Monier LAND AIR And WATER RESOURCES GL Only "]
[null,null,null,"63753 - Eecs Research Wilken 40744 ",null,"825080 - Intercampus transfer of Accumulated Depreciation Equipment with UCSB ",null,null,"810588 - KJORING CLUB ",null,null,null,null,null,null,"GLALAW2313 - Graham Fogg LAND AIR And WATER RESOURCES GL Only "]
[null,null,null,"63754 - Eecs Microfab Lab 40745 ",null,"825090 - Intercampus transfer of Accumulated Depreciation Equipment with UCI ",null,null,"810589 - KOREAN BOOK CLUB ",null,null,null,null,null,null,"GLALAW2433 - D Rolston LAND AIR And WATER RESOURCES GL Only "]
[null,null,null,"63755 - DANR Central Valley Research M Johns 40746 ",null,"825100 - Intercampus transfer of Accumulated Depreciation Equipment with UCM ",null,null,"810590 - KOREAN FILM COMMUNITY ",null,null,null,null,null,null,"GLALAW2657 - Susan Ustin LAND AIR And WATER RESOURCES GL Only "]
[null,null,null,"63757 - CehLillian YoungEquine Research 40748 ",null,"825110 - Intercampus transfer of Accumulated Depreciation Equipment with UCOP ",null,null,"810591 - LA FAMILIA DE UC DAVIS ",null,null,null,null,null,null,"GLALAW2703 - Ruth Reck LAND AIR And WATER RESOURCES GL Only "]
[null,null,null,"63758 - CcahLillian YoungCanine Research 40749 ",null,"825120 - Intercampus transfer of Accumulated Depreciation Equipment with ANR ",null,null,"810592 - LAB ANIMAL AND RESEARCH CLUB ",null,null,null,null,null,null,"GLALAW2720 - Stephen Grattan LAND AIR And WATER RESOURCES GL Only "]
[null,null,null,"63759 - Fst S Shoemaker Program Support 40750 ",null,"826000 - Intercampus transfer of Accumulated Amortization Software greater than 5M with another UC ",null,null,"810593 - LABash ",null,null,null,null,null,null,"GLALAW2781 - Kyaw Paw U LAND AIR And WATER RESOURCES GL Only "]
[null,null,null,"63760 - Sonoma Tamales Bay Olin 40751 ",null,"826010 - Intercampus transfer of Accumulated Amortization Software less than 5M with another UC ",null,null,"810594 - LASHKARA HINDI FILM DANCE TEAM ",null,null,null,null,null,null,"GLALAW2910 - Cort Anastasio LAND AIR And WATER RESOURCES GL Only "]
[null,null,null,"63761 - MicrobiologyResearch Heyer 40752 ",null,"826050 - Intercampus transfer of Accumulated Amortization Intangibles with another UC ",null,null,"810595 - LATINO MED STDTS ASSOC STDT INTEREST GRP ",null,null,null,null,null,null,"GLALAW2954 - Sanjai Parikh LAND AIR And WATER RESOURCES GL Only "]
[null,null,null,"63762 - Ucce Butte County Support Group 40753 ",null,"826100 - Intercampus transfer of Accum Depreciation Libraries and Collections with another UC ",null,null,"810596 - LATINOS IN AGRICULTURE ",null,null,null,null,null,null,"GLALAW3133 - Peter Hernes LAND AIR And WATER RESOURCES GL Only "]
[null,null,null,"63763 - DANR4H Animal Science 40754 ",null,"829000 - Capitalization Transfers to and from Invstmnt in Plant ",null,null,"810597 - LATINX SUCCESS NETWORK ",null,null,null,null,null,null,"GLALAW3187 - Mallika Nocco LAND AIR And WATER RESOURCES GL Only "]
[null,null,null,"63764 - Div Of Bio Sci 40754 ",null,"829010 - Capitalization Transfer Land to and from Investment in Plant ",null,null,"810598 - LATINX VETERINARY MEDICAL ASSOCIATION ",null,null,null,null,null,null,"GLALAW3247 - Jim Richards LAND AIR And WATER RESOURCES GL Only "]
[null,null,null,"63765 - Lawr Research Bledsoe 40755 ",null,"829020 - Capitalization Transfer Infrastructure to and from Investment in Plant ",null,null,"810599 - LATTER DAY SAINT STUDENT ASSOCIATION ",null,null,null,null,null,null,"GLALAW3285 - Richard Snyder LAND AIR And WATER RESOURCES GL Only "]
[null,null,null,"63766 - BiostarVarious Donors 40756 ",null,"829030 - Capitalization Transfer Buildings and Improvements to and from Investment in Plant ",null,null,"810600 - Los Parceros at UCD ",null,null,null,null,null,null,"GLALAW3398 - Kate Scow LAND AIR And WATER RESOURCES GL Only "]
[null,null,null,"63767 - DANR4H Shooting Sports 40757 ",null,"829040 - Capitalization Transfer Equipment to and from Investment in Plant ",null,null,"810601 - MAD COW COMEDY ",null,null,null,null,null,null,"GLALAW3434 - Blaine Hanson LAND AIR And WATER RESOURCES GL Only "]
[null,null,null,"63768 - Sacto Valley VMa Scholarship 40758 ",null,"829050 - Capitalization Transfer Software Greater than 5M to and from Investment in Plant ",null,null,"810602 - MAHJONG CLUB AT UC DAVIS ",null,null,null,null,null,null,"GLALAW3560 - Ann Dillner LAND AIR And WATER RESOURCES GL Only "]
[null,null,null,"63771 - Ceh Whittier Theon 40761 ",null,"829060 - Capitalization Transfer Software Less than or equal to 5M to and from Investment for Plant ",null,null,"810603 - MANAGERIAL ECONOMICS SOCIETY ",null,null,null,null,null,null,"GLALAW3573 - Helen Dahlke LAND AIR And WATER RESOURCES GL Only "]
[null,null,null,"63772 - Med Path Research Gregg 40762 ",null,"829070 - Capitalization Transfer Intangible Assets to and from Investment for Plant ",null,null,"810604 - MANNMUKTI AT UC DAVIS ",null,null,null,null,null,null,"GLALAW3596 - Richard Grotjahn LAND AIR And WATER RESOURCES GL Only "]
[null,null,null,"63773 - VMcehTalbotEpm Research 40763 ",null,"829080 - Capitalization Transfer Libraries and Collections to and from Investment in Plant ",null,null,"810605 - MASTERS ENTRY PROGRAM IN NURSING ",null,null,null,null,null,null,"GLALAW3607 - Matthew Igel LAND AIR And WATER RESOURCES GL Only "]
[null,null,null,"63775 - Cc Med Skull Base Research 40765 ",null,"829090 - Capitalization Transfer Special Collections to and from Investment in Plant ",null,null,"810606 - MATH CIRCLE AT UC DAVIS ",null,null,null,null,null,null,"GLALAW3615 - Douglas Mackay LAND AIR And WATER RESOURCES GL Only "]
[null,null,null,"63776 - MuSenior Class Project 40766 ",null,"829100 - Capitalization Transfer Construction In Progress to and from Investment in Plant ",null,null,"810607 - MECH KEYS AT UC DAVIS ",null,null,null,null,null,null,"GLALAW3634 - Laura Foglia LAND AIR And WATER RESOURCES GL Only "]
[null,null,null,"63779 - DANR San Bernardino ResandSupport Mcke 40769 ",null,"829170 - Capitalization Transfer Intangibles Finance Lease ROU Land ",null,null,"810608 - MEDICAL INSPIRATION AT UCD ",null,null,null,null,null,null,"GLALAW3639 - Jorge Rodrigues LAND AIR And WATER RESOURCES GL Only "]
[null,null,null,"63780 - UCDMC Hospice Bereavement Outreach 40769 ",null,"829180 - Cap Transfer Intangibles Finance Lease Buildings and Improvements ",null,null,"810609 - MEXICAN GRADUATE STUDENT ASSOCIATION ",null,null,null,null,null,null,"GLALAW3726 - Ian Faloona LAND AIR And WATER RESOURCES GL Only "]
[null,null,null,"63782 - AandEChaine Scholarship Fund 40771 ",null,"829190 - Cap Transfer Intangibles Finance lease ROU Equipment ",null,null,"810610 - MILK'S CLOSET ",null,null,null,null,null,null,"GLALAW3758 - Kerri Steenwerth LAND AIR And WATER RESOURCES GL Only "]
[null,null,null,"63784 - LandSFujimoto Comm Action Award Fnd 40773 ",null,"829200 - Caplitalization Transfer Intangible Asset SBITA ",null,null,"810611 - MINORITY LANDSCAPE ARCHITECTS ",null,null,null,null,null,null,"GLALAW3894 - Adele Igel LAND AIR And WATER RESOURCES GL Only "]
[null,null,null,"63785 - Soe Edward Teller Education Center 40774 ",null,"830010 - Investment Transfers to from UCB ",null,null,"810612 - MOOT COURT AT UC DAVIS ",null,null,null,null,null,null,"GLALAW3967 - E Epstein LAND AIR And WATER RESOURCES GL Only "]
[null,null,null,"63786 - VM Ceh Harriet E Pfleger Fdn 40775 ",null,"830020 - Investment Transfers to from UCSF ",null,null,"810613 - MUSIC PRODUCTION CLUB AT UC DAVIS ",null,null,null,null,null,null,"GLALAW4031 - Maria Lazcano Larkin LAND AIR And WATER RESOURCES GL Only "]
[null,null,null,"63787 - DANR San Bernardino Dairy Program 40776 ",null,"830030 - Investment Transfers to from UCD ",null,null,"810614 - MUSIC THERAPY CLUB ",null,null,null,null,null,null,"GLALAW4090 - J Carroll LAND AIR And WATER RESOURCES GL Only "]
[null,null,null,"63788 - VMCcahAvian 40776 ",null,"830040 - Investment Transfers to from UCLA ",null,null,"810615 - MUSIC UNDERGRADUATE STUDENT ASSOCIATION ",null,null,null,null,null,null,"GLALAW4189 - Lawrence J Schwankl LAND AIR And WATER RESOURCES GL Only "]
[null,null,null,"63789 - DANR Imperial Gonzalez 40777 ",null,"830050 - Investment Transfers to from UCR ",null,null,"810616 - NADEZHDA CLINIC ",null,null,null,null,null,null,"GLALAW4218 - Majdi Abou Najm LAND AIR And WATER RESOURCES GL Only "]
[null,null,null,"63790 - VM Pmi Sea Otter Research Mohr 40777 ",null,"830060 - Investment Transfers to from UCSD ",null,null,"810617 - NATL ORG FOR PROF ADV OF BLACK CHEMISTS ",null,null,null,null,null,null,"GLALAW4692 - Terry Prichard LAND AIR And WATER RESOURCES GL Only "]
[null,null,null,"63791 - DANR Riverside Master Gardener 40778 ",null,"830070 - Investment Transfers to from UCSC ",null,null,"810618 - NEOLIBERAL CLUB ",null,null,null,null,null,null,"GLALAW4753 - Yufang Jin LAND AIR And WATER RESOURCES GL Only "]
[null,null,null,"63792 - Ve Research Wolpert 40778 ",null,"830080 - Investment Transfers to from UCSB ",null,null,"810619 - NEPALI STUDENT ASSOCIATION AT UC DAVIS ",null,null,null,null,null,null,"GLALAW4839 - William Horwath LAND AIR And WATER RESOURCES GL Only "]
[null,null,null,"63793 - An Sci Dairy Facilty 40779 ",null,"830090 - Investment Transfers to from UCI ",null,null,"810620 - NISHKAM SEWA ",null,null,null,null,null,null,"GLALAW4867 - Benjamin Houlton LAND AIR And WATER RESOURCES GL Only "]
[null,null,null,"63794 - VM Dr Larry Seeman Memorial Schp 40780 ",null,"830100 - Investment Transfers to from UCM ",null,null,"810621 - NORSE CLUB ",null,null,null,null,null,null,"GLALAW4976 - Gregory Pasternack LAND AIR And WATER RESOURCES GL Only "]
[null,null,null,"63795 - MedPedsId Dmv Cytomegalovirus Research 40781 ",null,"830110 - Investment Transfers to from UCOP ",null,null,"810622 - NUTRITIONAL BIOLOGY GRADUATE STUDENT ",null,null,null,null,null,null,"GLALAW4993 - George Pettygrove LAND AIR And WATER RESOURCES GL Only "]
[null,null,null,"63797 - DANR Santa Barbara Master Gardners Prgm 40783 ",null,"830120 - Investment Transfers to from ANR ",null,null,"810623 - OPTICS CLUB AT UC DAVIS ",null,null,null,null,null,null,"GLALAW5044 - Caroline Bledsoe LAND AIR And WATER RESOURCES GL Only "]
[null,null,null,"63798 - Med Imho Lung Cancer Res Lara 40784 ",null,"850000 - UCDMC Donated Assets ",null,null,"810624 - ORAL HEALTH SOCIETY ",null,null,null,null,null,null,"GLALAW5046 - Thomas Harter LAND AIR And WATER RESOURCES GL Only "]
[null,null,null,"63799 - DANR Butte Co Research Mutters 40785 ",null,"850050 - UCDMC Contributions Distribution for Building Programs ",null,null,"810625 - P.E.A.C.E. ",null,null,null,null,null,null,"GLALAW5050 - B Weare LAND AIR And WATER RESOURCES GL Only "]
[null,null,null,"63801 - VMpmiPikeNobile Research Project 40787 ",null,"850100 - UCDMC Transfers to University Net ",null,null,"810626 - PERSIAN POETRY CIRCLE ",null,null,null,null,null,null,"GLALAW5118 - Kosana Suvocarev LAND AIR And WATER RESOURCES GL Only "]
[null,null,null,"63802 - MedImem Edu Activities Sokolove 40788 ",null,"850101 - UCDMC Transfers from University Net ",null,null,"810627 - PHI SIGMA PI ",null,null,null,null,null,null,"GLALAW5127 - Randal Southard LAND AIR And WATER RESOURCES GL Only "]
[null,null,null,"63803 - BAE Research Jenkins 40789 ",null,"850150 - UCDMC Changes in Allocation for Pension Payable to University OP ",null,null,"810628 - PI KAPPA ALPHA ",null,null,null,null,null,null,"GLALAW5524 - Rebecca Lybrand LAND AIR And WATER RESOURCES GL Only "]
[null,null,null,"63818 - CHE MS Kellogg Ryu 40804 ",null,"850200 - UCDMC Health Systems Support ",null,null,"810629 - PLANT BIO GRADUATE STUDENT ASSOC ",null,null,null,null,null,null,"GLALAW5594 - Mutez Ali Abdelrahman Ahmed LAND AIR And WATER RESOURCES GL Only "]
[null,null,null,"63819 - Religious Studies Instruction Activitie 40805 ",null,"850201 - Health Systems Support from Campus ",null,null,"810630 - PLANT FUTURES INITIATIVE AT UC DAVIS ",null,null,null,null,null,null,"GLALAW5738 - Line Tau Strand LAND AIR And WATER RESOURCES GL Only "]
[null,null,null,"63820 - DANR Fpm Hrec Timm 40806 ",null,"870000 - Capital Gifts and Grants Non Cash ",null,null,"810631 - POLE DANCE CLUB ",null,null,null,null,null,null,"GLAMCB1268 - Michael Dahmus AG MOLECULAR And CELLULAR BIO GL Only "]
[null,null,null,"63822 - VMB Seminars Buckpitt 40808 ",null,"870010 - Capital Gifts and Grants from Others Non Cash Land ",null,null,"810632 - PRE-HEALTH INDIAN STUDENT ORGANIZATION ",null,null,null,null,null,null,"GLAMCB3845 - Irwin Segel AG MOLECULAR And CELLULAR BIO GL Only "]
[null,null,null,"63823 - Iga General Motors 40809 ",null,"870020 - Capital Gifts and Grants Non Cash Infrastructure ",null,null,"810633 - PROJECT CONNECT ",null,null,null,null,null,null,"GLAMCB3907 - James Clegg AG MOLECULAR And CELLULAR BIO GL Only "]
[null,null,null,"63824 - FST Gift Travel Award 40810 ",null,"870030 - Capital Gifts and Grants Non Cash for Buildings and Improvements ",null,null,"810634 - PROMOTION OF CHINESE CULTURE ",null,null,null,null,null,null,"GLAMCB4956 - John Crowe AG MOLECULAR And CELLULAR BIO GL Only "]
[null,null,null,"63825 - VMTRC Equine Manure Atwill R 40811 ",null,"870040 - Capital Gifts and Grants Non Cash for Equipment ",null,null,"810635 - PUBLIC HEALTH SCIENCE GRAD STUDENT ORG ",null,null,null,null,null,null,"GLANUT0089 - Lauren Au NUTRITION GL Only "]
[null,null,null,"63826 - AandE Food Science 40812 ",null,"870050 - Capital Gifts and Grants Non Cash for Software greater than 5M ",null,null,"810636 - PUBLIC HEALTH SCIENCES CLUB ",null,null,null,null,null,null,"GLANUT0304 - Reina Engle Stone NUTRITION GL Only "]
[null,null,null,"63827 - Med OphthResearch Handa 40813 ",null,"870060 - Capital Gifts and Grants Non Cash for Software Less than or equal to 5M ",null,null,"810637 - RAASLEELA ",null,null,null,null,null,null,"GLANUT0362 - Joan Frank NUTRITION GL Only "]
[null,null,null,"63828 - Med OphthResearch Choo 40814 ",null,"870070 - Capital Gifts and Grants Non Cash for Intangible Assets ",null,null,"810638 - RELEASED CONTEMPORARY DANCE COMPANY ",null,null,null,null,null,null,"GLANUT0493 - Danielle Lemay NUTRITION GL Only "]
[null,null,null,"63829 - MedImne Research Don 40815 ",null,"870080 - Capital Gifts and Grants Non Cash for Libraries and Collections ",null,null,"810639 - RESEARCH EXPOSITION CLUB ",null,null,null,null,null,null,"GLANUT0679 - Mrc Greenwood NUTRITION GL Only "]
[null,null,null,"63830 - VMEvelyn W Jackson Endowed Schlp Fund 40816 ",null,"870090 - Capital Gifts and Grants Non Cash for Special Collections ",null,null,"810640 - RESPECTACLE ",null,null,null,null,null,null,"GLANUT0831 - Sonja Hess NUTRITION GL Only "]
[null,null,null,"63831 - Stud AffBalmr Education Schlp 40817 ",null,"870100 - Capital Gifts and Grants from UCDF Non Cash ",null,null,"810641 - RIVER PEDIATRIC CLINIC ",null,null,null,null,null,null,"GLANUT0928 - Carl Keen NUTRITION GL Only "]
[null,null,null,"63832 - AandEs Research OMahony 40818 ",null,"870110 - Capital Gifts and Grants from UCDF Non Cash Land ",null,null,"810642 - ROCK MEDICINE AT UC DAVIS ",null,null,null,null,null,null,"GLANUT0936 - Marilyn Townsend NUTRITION GL Only "]
[null,null,null,"63833 - AandEsSeed Biotechnology Cntr 40819 ",null,"870120 - Capital Gifts and Grants from UCDF Non Cash Infrastructure ",null,null,"810643 - ROCKY HORROR CLUB ",null,null,null,null,null,null,"GLANUT0975 - John Newman NUTRITION GL Only "]
[null,null,null,"63834 - AandEs Research Alston 40820 ",null,"870130 - Capital Gifts and Grants from UCDF Non Cash Bldgs and Imprvmnts ",null,null,"810644 - SandB FIBER ARTS CLUB ",null,null,null,null,null,null,"GLANUT0993 - Robert Hackman NUTRITION GL Only "]
[null,null,null,"63835 - BAE Research Delwiches 40821 ",null,"870140 - Capital Gifts and Grants from UCDF Non Cash Equipment ",null,null,"810645 - SAUDI STUDENT ASSOCIATION AT UC DAVIS ",null,null,null,null,null,null,"GLANUT0996 - Gerardo Mackenzie NUTRITION GL Only "]
[null,null,null,"63836 - LandSAsian Film Festival 40822 ",null,"870150 - Capital Gifts and Grants from UCDF Non Cash Software greater than 5M ",null,null,"810646 - SCHEDGO ",null,null,null,null,null,null,"GLANUT1240 - Sheri Zidenberg Cherr NUTRITION GL Only "]
[null,null,null,"63838 - LAWR Research Scow 40824 ",null,"870160 - Capital Gifts and Grants from UCDF Non Cash Software less than 5M ",null,null,"810647 - SCREEN ACTORS LEAGUE AT DAVIS ",null,null,null,null,null,null,"GLANUT1573 - Mary Kable NUTRITION GL Only "]
[null,null,null,"63840 - Vet Med Support Atwill 40826 ",null,"870170 - Capital Gifts and Grants from UCDF Non Cash Intangible Assets ",null,null,"810648 - SEMINAR OUTREACH FOR MINORITY ADVOCACY ",null,null,null,null,null,null,"GLANUT1800 - Bo Lonnerdal NUTRITION GL Only "]
[null,null,null,"63841 - VMExtPublic Programs 40827 ",null,"870180 - Capital Gifts and Grants from UCDF Non Cash Libraries Collections ",null,null,"810649 - SHEAPAS ",null,null,null,null,null,null,"GLANUT2046 - Liping Huang NUTRITION GL Only "]
[null,null,null,"63842 - EngComp Sci Res Devanbu 40828 ",null,"870190 - Capital Gifts and Grants from UCDF Non Cash Special Collections ",null,null,"810650 - SHELTER MEDICINE CLUB ",null,null,null,null,null,null,"GLANUT2179 - Bess Caswell NUTRITION GL Only "]
[null,null,null,"63843 - WhcSo Calif Mt Lion Project 40829 ",null,"870200 - Capital Gifts and Grants NonFoundation Cash ",null,null,"810651 - SHE'S THE FIRST ",null,null,null,null,null,null,"GLANUT2303 - Elizabeth Prado NUTRITION GL Only "]
[null,null,null,"63844 - VMb Feline Nutirion Res 40830 ",null,"870300 - Capital Gifts and Grants from UCD Foundation Cash ",null,null,"810652 - SIDE C ALBUM CLUB ",null,null,null,null,null,null,"GLANUT2330 - Nancy Keim NUTRITION GL Only "]
[null,null,null,"63845 - VsrPickford FoundationSnyder 40831 ",null,"871000 - State Capital Appropriation ",null,null,"810653 - SIGMA OMICRON PI ",null,null,null,null,null,null,"GLANUT2680 - Angela Zivkovic NUTRITION GL Only "]
[null,null,null,"63850 - Med Oto Edu Activities 40835 ",null,"872000 - Gifts and Bequests Endowment Cash ",null,null,"810654 - SKIN DEEP ",null,null,null,null,null,null,"GLANUT2721 - Kenneth Brown NUTRITION GL Only "]
[null,null,null,"63851 - Cooperative ExtFresno 40836 ",null,"872100 - Gifts and Bequests Endowment NonCash ",null,null,"810655 - SLAVIC ASSOCIATION ",null,null,null,null,null,null,"GLANUT2793 - Robert Rucker NUTRITION GL Only "]
[null,null,null,"63852 - VM Vsr Construction Snyder 40837 ",null,"872101 - GIK Endowment Securities ",null,null,"810656 - SO K-POP ",null,null,null,null,null,null,"GLANUT2922 - Nancy Hudson NUTRITION GL Only "]
[null,null,null,"63853 - An Sci Susan Vogt Award 40838 ",null,"872102 - GIK Permanent Endowments Real Estate ",null,null,"810657 - SOCIETY OF BIOLOGICAL ENGINEERS ",null,null,null,null,null,null,"GLANUT2991 - Louis Grivetti NUTRITION GL Only "]
[null,null,null,"63854 - Bodega Marine Lab Research Klimley 40839 ",null,"872103 - Cash Gifts Life Income ",null,null,"810658 - SPARK ",null,null,null,null,null,null,"GLANUT3321 - Patricia Oteiza De Fraga NUTRITION GL Only "]
[null,null,null,"63855 - WFCB The Raveling Professorship 40840 ",null,"872104 - GIK Life Income Trusts ",null,null,"810659 - SPEECH LANGUAGE PATHOLOGY CLUB ",null,null,null,null,null,null,"GLANUT3458 - Charles Stephensen NUTRITION GL Only "]
[null,null,null,"63856 - Med Imca Research Derbes 40841 ",null,"872105 - GIK Real Estate Life Income Trusts ",null,null,"810660 - SPORTS ANALYSTICS AT UC DAVIS ",null,null,null,null,null,null,"GLANUT3816 - Peng Ji NUTRITION GL Only "]
[null,null,null,"63858 - ItsChina Auto Industry Study 40843 ",null,"872106 - Gifts GIK Other Life Income Trusts ",null,null,"810661 - STAND UP COMEDY CLUB AT UC DAVIS ",null,null,null,null,null,null,"GLANUT3877 - Marjorie Haskell NUTRITION GL Only "]
[null,null,null,"63860 - VMdoCharles Block DeanS Discretionary 40845 ",null,"872200 - Revaluation of Endowment Investments ",null,null,"810662 - STDNT HEALTH AWARENESS RESOURCES EMPOWER ",null,null,null,null,null,null,"GLANUT4036 - Francene Steinberg NUTRITION GL Only "]
[null,null,null,"63861 - Ecsi Counter Sign Software Bishop 40846 ",null,"500000 - Faculty Salaries Ladder Rank and Equivalent ",null,null,"810663 - STOCK TRADING AND EQUITY CLUB ",null,null,null,null,null,null,"GLANUT4059 - Fawaz Haj NUTRITION GL Only "]
[null,null,null,"63862 - Mae North American Operations 40847 ",null,"500001 - Faculty Salaries Lecturers Continuing ",null,null,"810664 - STUDENT VOICES PROJECT AT UC DAVIS ",null,null,null,null,null,null,"GLANUT4286 - Brian Bennett NUTRITION GL Only "]
[null,null,null,"63863 - Engr Computer Sci IbmDevanbu 40848 ",null,"500002 - Faculty Salaries Lecturers Temporary ",null,null,"810665 - STUDENTS DEMAND ACTION AT UC DAVIS ",null,null,null,null,null,null,"GLANUT4330 - Lindsay Allen NUTRITION GL Only "]
[null,null,null,"63865 - Crprc Gilead SciencesVan Rompays 40850 ",null,"500003 - Faculty Salaries Clinical InResident Adjunct ",null,null,"810666 - STUDENTS FOR RARE AT UC DAVIS ",null,null,null,null,null,null,"GLANUT4376 - Barbara Schneeman NUTRITION GL Only "]
[null,null,null,"63868 - CehStans FdnWest Nile Fever 40853 ",null,"500008 - Other Faculty Salaries ",null,null,"810667 - STUDENTS FOR SOCIALISM ",null,null,null,null,null,null,"GLANUT4482 - CASSANDRA NGUYEN NUTRITION GL Only "]
[null,null,null,"63869 - Med Imca ResearchandEd Whitcomb 40854 ",null,"500010 - Teaching Assistant Salaries and Wages ",null,null,"810668 - SUPPORT ENCOURAGE & DEVELOP FOR CHILDREN ",null,null,null,null,null,null,"GLANUT4556 - Debbie Fetter NUTRITION GL Only "]
[null,null,null,"63871 - VMPharmaciaandUpjohn Scholarship 40856 ",null,"500011 - Associate Instructors Salaries and Wages ",null,null,"810669 - SUSTAINABLE ENVIRONMENTAL DESIGN CLUB ",null,null,null,null,null,null,"GLANUT4561 - Christine Stewart NUTRITION GL Only "]
[null,null,null,"63872 - Med Ped Hearst Foundation 40857 ",null,"500030 - Academic Deans Assoc Deans and Provosts incl Interim ",null,null,"810670 - TAU BETA PI ",null,null,null,null,null,null,"GLANUT4902 - Lucia Kaiser NUTRITION GL Only "]
[null,null,null,"63874 - VM Piir ResearchandEdu Lam 40859 ",null,"500035 - Academic Coordinators and Admin Salaries and Wages ",null,null,"810671 - TEA CLUB AT UC DAVIS ",null,null,null,null,null,null,"GLANUT4941 - Paul Davis NUTRITION GL Only "]
[null,null,null,"63876 - VM CCAH Renal Tech Cowgill 40861 ",null,"500040 - Vet Med Residents and Interns ",null,null,"810672 - TEENS FOR SCREENS AT UC DAVIS ",null,null,null,null,null,null,"GLANUT4971 - Roger Mcdonald NUTRITION GL Only "]
[null,null,null,"63877 - Dbs Sherley Ashton Scholarship Fund 40862 ",null,"500090 - Agronomists and Other NonFaculty Scientists Ladder Rank ",null,null,"810673 - THE AGGIE TRANSCRIPT PSYCHOLOGY ",null,null,null,null,null,null,"GLANUT5020 - Elizabeth Applegate NUTRITION GL Only "]
[null,null,null,"63878 - VME Kirby Memorial Davidson 40863 ",null,"500091 - NonFaculty Instructors ",null,null,"810674 - THE ART OF MEDICINE ",null,null,null,null,null,null,"GLANUT5039 - Carolyn Slupsky NUTRITION GL Only "]
[null,null,null,"63879 - GSM Business Plan Competition 40864 ",null,"500092 - Graduate Student Researchers Salaries and Wages ",null,null,"810675 - THE FILLING AT UC DAVIS ",null,null,null,null,null,null,"GLANUT5129 - Kevin Laugero NUTRITION GL Only "]
[null,null,null,"63880 - GSM Ca Wine Industry Management Ed Award 40865 ",null,"500093 - PostDoctorates and Assistant Researchers ",null,null,"810676 - THE HERPETOLOGICAL SOCIETY ",null,null,null,null,null,null,"GLANUT5204 - Kathryn Dewey NUTRITION GL Only "]
[null,null,null,"63881 - SOM Med Neurology Research Mcguinness 40866 ",null,"500094 - Readers ",null,null,"810677 - THE MOTLEY TROUPE AT UC DAVIS ",null,null,null,null,null,null,"GLANUT5224 - Roberta Hendrick Holt NUTRITION GL Only "]
[null,null,null,"63882 - AES Sci Zeneca Miller 40867 ",null,"500098 - Other Academic Salaries and Wages Expense ",null,null,"810678 - THE OUTDOOR CREW ",null,null,null,null,null,null,"GLANUT5968 - Kendra Addie Byrd NUTRITION GL Only "]
[null,null,null,"63885 - AES Res Mosquito Vandergheynst 40870 ",null,"500099 - Academic Salaries Reimbursement ",null,null,"810679 - THE SHARING CREW ",null,null,null,null,null,null,"GLANUT6286 - Britt Burton Freeman NUTRITION GL Only "]
[null,null,null,"63886 - Engr Deans Office Intel Foundation 40871 ",null,"501000 - Staff Salaries and Wages ",null,null,"810680 - THE SURFRIDER FOUNDATION CLUB AT UCDAVIS ",null,null,null,null,null,null,"GLANUT6345 - Guodong Zhang NUTRITION GL Only "]
[null,null,null,"63887 - Ecsi Research Bruno 40872 ",null,"501001 - Contract Limited Floater and Per Diem Salaries and Wages ",null,null,"810681 - THE VINE ",null,null,null,null,null,null,"GLAPLS0280 - Kenneth Tate PLANT SCIENCES GL Only "]
[null,null,null,"63891 - Engr Mep Student Funds 40876 ",null,"501002 - Student Employee Salaries and Wages ",null,null,"810682 - THE WOMEN'S NETWORK AT UC DAVIS ",null,null,null,null,null,null,"GLAPLS0282 - Wayne Lanini PLANT SCIENCES GL Only "]
[null,null,null,"63894 - Ve American Vineyard Viticulture Schlsp 40879 ",null,"501003 - Campus Overtime Pay ",null,null,"810683 - THEMED ENTERTAINMENT ASSOCIATION AT UCD ",null,null,null,null,null,null,"GLAPLS0327 - Mohsen Mesgaran PLANT SCIENCES GL Only "]
[null,null,null,"63896 - An Sci Research Mench 40881 ",null,"501004 - Campus Shift Differential ",null,null,"810684 - THETA XI FRATERNITY ",null,null,null,null,null,null,"GLAPLS0358 - Cameron Pittelkow PLANT SCIENCES GL Only "]
[null,null,null,"63897 - LandS Schwabe Musical Inst Display 40882 ",null,"501090 - Salary and Wages Default ",null,null,"810685 - TRANSFER RESEARCH SOCIETY ",null,null,null,null,null,null,"GLAPLS0381 - Jeffrey Mitchell PLANT SCIENCES GL Only "]
[null,null,null,"63898 - VMDO Frances Pillsbury Memorial Schsp 40883 ",null,"501091 - VoluntaryTermination ",null,null,"810686 - TRANSFERACE ",null,null,null,null,null,null,"GLAPLS0394 - Lin Wu PLANT SCIENCES GL Only "]
[null,null,null,"63899 - California Grape Treefruit League 40884 ",null,"501092 - Involuntary Termination ",null,null,"810687 - TUTORS FOR IGNITING IMPACT ",null,null,null,null,null,null,"GLAPLS0413 - Daniel Runcie PLANT SCIENCES GL Only "]
[null,null,null,"63900 - DANR Cal Coop Extsn Proj Manton 40885 ",null,"501093 - Staff Recognition and Development ",null,null,"810688 - TYPE ONE AGGIES ",null,null,null,null,null,null,"GLAPLS0415 - Dina St Clair PLANT SCIENCES GL Only "]
[null,null,null,"63902 - Eecs ResearchandEdu Shu Lin 40887 ",null,"501099 - Staff Salaries and Wages Reimbursement ",null,null,"810689 - UNDERGROUND SCHOLARS INITIATIVE ",null,null,null,null,null,null,"GLAPLS0425 - Thomas Gradziel PLANT SCIENCES GL Only "]
[null,null,null,"63906 - Ag Range Sci Research Tate 40891 ",null,"502000 - UCDMC Management and Supervision Salaries and Wages ",null,null,"810690 - VAW MEDICAL OUTREACH ",null,null,null,null,null,null,"GLAPLS0430 - Astrid Volder PLANT SCIENCES GL Only "]
[null,null,null,"63909 - ImhemVarious DonorsGumerlock 40894 ",null,"502100 - UCDMC Technicians and Specialists Salaries and Wages ",null,null,"810691 - VETERINARIANS AS ONE INCL COMM FOR EMPOW ",null,null,null,null,null,null,"GLAPLS0447 - Roger Chetelat PLANT SCIENCES GL Only "]
[null,null,null,"63912 - David Kriegel Memorial Fund 40897 ",null,"502200 - UCDMC Registered Nurses Salaries and Wages ",null,null,"810692 - VETERINARY MEDICINE SURGERY CLUB ",null,null,null,null,null,null,"GLAPLS0459 - Mary Cadenasso PLANT SCIENCES GL Only "]
[null,null,null,"63913 - Counsel CntrDonnell Memorial Fund 40898 ",null,"502300 - UCDMC Licensed Vocational Nurses Salaries and Wages ",null,null,"810693 - VOITHOS AT UC DAVIS ",null,null,null,null,null,null,"GLAPLS0479 - Derek Young PLANT SCIENCES GL Only "]
[null,null,null,"63915 - Bae Strawb Hrvst Prog Delwiche 40900 ",null,"502400 - UCDMC Salaries and Wages Aides and Orderlies ",null,null,"810694 - WOMEN IN GAMING  AT UC DAVIS (WIG) ",null,null,null,null,null,null,"GLAPLS0490 - Thomas Buckley PLANT SCIENCES GL Only "]
[null,null,null,"63917 - Med Im Research Chew 40902 ",null,"502500 - UCDMC Clerical and Other Administrative Salaries and Wages ",null,null,"810695 - WOMEN IN MEDICINE ",null,null,null,null,null,null,"GLAPLS0513 - Montague Demment PLANT SCIENCES GL Only "]
[null,null,null,"63918 - Bio Sci Visiting Professorhsip 40903 ",null,"502600 - UCDMC Environmental and Food Service Salaries and Wages ",null,null,"810696 - WOMEN MACHINISTS CLUB ",null,null,null,null,null,null,"GLAPLS0600 - Georgia Drakakaki PLANT SCIENCES GL Only "]
[null,null,null,"63919 - An Sci Pork Research Lee 40904 ",null,"502700 - UCDMC Physicians Salaries and Wages ",null,null,"810697 - WONDERFUL SCHOLARS ",null,null,null,null,null,null,"GLAPLS0660 - Amanda Crump PLANT SCIENCES GL Only "]
[null,null,null,"63925 - DANR Kings Res Collar 40909 ",null,"502800 - UCDMC NonPhysician Medical Practitioners Salaries and Wages ",null,null,"810698 - YOGA OF THE HEART ",null,null,null,null,null,null,"GLAPLS0750 - Richard Evans PLANT SCIENCES GL Only "]
[null,null,null,"63926 - VMSandRsArques Charitable Ed Trust Flshp 40909 ",null,"502900 - Prod Sal Other Salaries and Wages ",null,null,"810699 - YOUNG CATTLEMENS ASSOCIATION ",null,null,null,null,null,null,"GLAPLS0757 - Alison Berry PLANT SCIENCES GL Only "]
[null,null,null,"63929 - Med BiochemUniv Colorado FdnHagerman 40911 ",null,"502901 - NonProd Salaries and Wages ",null,null,"820001 - International Ag Development Graduate ",null,null,null,null,null,null,"GLAPLS0761 - Paul Gepts PLANT SCIENCES GL Only "]
[null,null,null,"63930 - UCDFICAPaneno Scholarship Fund 40912 ",null,"503000 - Medical SW Leave Accrual Assessment ",null,null,"820002 - International Agricultural Develop Graduate Group ",null,null,null,null,null,null,"GLAPLS0787 - Robert Travis PLANT SCIENCES GL Only "]
[null,null,null,"63931 - MaeHpv Student Project Research Gifts 40913 ",null,"503001 - Medical SW Leave Usage Employee ",null,null,"820003 - International Fitness Club ",null,null,null,null,null,null,"GLAPLS0846 - Imtiyaz Khanday PLANT SCIENCES GL Only "]
[null,null,null,"63932 - Engr Ejc Academic Support 40914 ",null,"503002 - Medical SW Leave Benefit Accrual ",null,null,"820004 - International Graduate Student Ministry ",null,null,null,null,null,null,"GLAPLS0847 - Patrick James Brown PLANT SCIENCES GL Only "]
[null,null,null,"63933 - DANR Cvr Solano Mg Library Outreach 40915 ",null,"503003 - Medical SW Accrued Benefits Compensated Absences ",null,null,"820005 - International Relations Student Assoc ",null,null,null,null,null,null,"GLAPLS0883 - D Rains PLANT SCIENCES GL Only "]
[null,null,null,"63935 - CcahEquipment Fund 40917 ",null,"503100 - UCDMC Therapists and Others Salaries and Wages ",null,null,"820006 - International Society for Pharmaceutical Engineers ",null,null,null,null,null,null,"GLAPLS0892 - Ronald Voss PLANT SCIENCES GL Only "]
[null,null,null,"63936 - VM Pmi Microsporidia Wasson 40918 ",null,"503200 - UCDMC Residents and Interns Salaries and Wages ",null,null,"820007 - International Students Club ",null,null,null,null,null,null,"GLAPLS0934 - Milton Jones PLANT SCIENCES GL Only "]
[null,null,null,"63937 - Som Med Ped Research Butani 40919 ",null,"503300 - MC Registry Nursing Personnel Salaries and Wages ",null,null,"820008 - International Undergraduate Student Ministry ",null,null,null,null,null,null,"GLAPLS0961 - Stephen Kaffka PLANT SCIENCES GL Only "]
[null,null,null,"63938 - Med Imer Research Weiss 40920 ",null,"502001 - Temp Employment Services Management and Supervision ",null,null,"820009 - International Veterinary Outreach ",null,null,null,null,null,null,"GLAPLS0999 - Dan Parfitt PLANT SCIENCES GL Only "]
[null,null,null,"63939 - Raptor Center Brooks 40921 ",null,"502101 - Temp Employment Services Technicians and Specialists ",null,null,"820010 - International Youth and Students for Soc ",null,null,null,null,null,null,"GLAPLS1021 - Donald Phillips PLANT SCIENCES GL Only "]
[null,null,null,"63940 - Dbs Larry Mitich Memorial 40922 ",null,"502201 - Temp Employment Services Registered Nurses ",null,null,"820011 - Intervarsity Christian Fellowship ",null,null,null,null,null,null,"GLAPLS1035 - C Qualset PLANT SCIENCES GL Only "]
[null,null,null,"63941 - Dbs BotanICAl Society 40923 ",null,"502301 - Temp Employment Services Licensed Vocational Nurses ",null,null,"820012 - Iranian Student Organization ",null,null,null,null,null,null,"GLAPLS1121 - James Hill PLANT SCIENCES GL Only "]
[null,null,null,"63942 - Eecs Research Cmos Circuits Spencer 40924 ",null,"502401 - Temp Employment Services Aides and Orderlies ",null,null,"820013 - J Street U ",null,null,null,null,null,null,"GLAPLS1138 - Raymond Valentine PLANT SCIENCES GL Only "]
[null,null,null,"63944 - UCDFWash CntrBring The Best To Dc 40926 ",null,"502501 - Temp Employment Services Clerical and Other Administrative ",null,null,"820014 - Jakara at UC Davis ",null,null,null,null,null,null,"GLAPLS1177 - Melvin George PLANT SCIENCES GL Only "]
[null,null,null,"63945 - LandSArtArtsbridge 40927 ",null,"502601 - Temp Employment Services Environmental and Food Service ",null,null,"820015 - Japanese American Student Society ",null,null,null,null,null,null,"GLAPLS1192 - Steven Fennimore PLANT SCIENCES GL Only "]
[null,null,null,"63946 - SomMed PsychAmaral 40928 ",null,"502701 - Temp Employment Services Physicians ",null,null,"820016 - Japanese Language and Cultural Connection ",null,null,null,null,null,null,"GLAPLS1201 - Maeli Melotto PLANT SCIENCES GL Only "]
[null,null,null,"63947 - DANRVrs DnrsMendocino Coast 4H Prgrm 40929 ",null,"502801 - Temp Employment Services NonPhysician Medical Practitioners ",null,null,"820017 - Jewish Voice for Peace at UC Davis ",null,null,null,null,null,null,"GLAPLS1213 - Husein Ajwa PLANT SCIENCES GL Only "]
[null,null,null,"63948 - Pue GiftHdsa Nurse Salary Support 40929 ",null,"502911 - Temporary Employ Services Other ",null,null,"820018 - Jhankaar ",null,null,null,null,null,null,"GLAPLS1272 - Timothy Hartz PLANT SCIENCES GL Only "]
[null,null,null,"63949 - SomImca Research Low 40930 ",null,"503301 - Temp Employment Services Registry Nursing Personnel ",null,null,"820019 - Joan Viteri Memorial Clinic Undergrad ",null,null,null,null,null,null,"GLAPLS1339 - Abhaya Dandekar PLANT SCIENCES GL Only "]
[null,null,null,"63950 - SomNeurology Bowes 40931 ",null,"503500 - UCDMC Salaries and Wages Salary Payroll Clearing ",null,null,"820020 - Journalism Club ",null,null,null,null,null,null,"GLAPLS1369 - Kevin Rice PLANT SCIENCES GL Only "]
[null,null,null,"63951 - DANR CcandSr Watershed Prog Larsen 40932 ",null,"504000 - Bi Weekly Salary and Wages Accruals ",null,null,"820021 - KAPWA Pilipino Bible Study and Ministry ",null,null,null,null,null,null,"GLAPLS1374 - David Mackill PLANT SCIENCES GL Only "]
[null,null,null,"63952 - VMdo Ann T Bowling Scholarship 40933 ",null,"504002 - Compensatory Time Accrual ",null,null,"820022 - Kendo Club ",null,null,null,null,null,null,"GLAPLS1377 - Albert Fischer PLANT SCIENCES GL Only "]
[null,null,null,"63953 - DANR Monterey ResearchandSupport 40934 ",null,"504003 - Holiday Time Accrual ",null,null,"820023 - King Hall Entertainment and Sports Law ",null,null,null,null,null,null,"GLAPLS1396 - Barbara Blanco Ulate PLANT SCIENCES GL Only "]
[null,null,null,"63954 - Eecs Research Knoesen 40934 ",null,"504004 - SMSPP Accrual ",null,null,"820024 - King Hall Legal Foundation ",null,null,null,null,null,null,"GLAPLS1431 - Mikal Saltveit PLANT SCIENCES GL Only "]
[null,null,null,"63955 - VM Srs Research Jones 40935 ",null,"504500 - Elimination of Capitalized Salary and Wages ",null,null,"820025 - Klesis ",null,null,null,null,null,null,"GLAPLS1474 - R J Romani PLANT SCIENCES GL Only "]
[null,null,null,"63956 - As American PhysICAl Society 40936 ",null,"505000 - UCRP Cash Contributions Expense ",null,null,"820026 - Knights Landing Clinic ",null,null,null,null,null,null,"GLAPLS1569 - Steven Weinbaum PLANT SCIENCES GL Only "]
[null,null,null,"63957 - Med Imgm Older Adult Educ Outreach 40937 ",null,"505100 - UCRP Principal Supplemental Assessment Expense ",null,null,"820027 - Knights Landing One Health Veterinary Clinic ",null,null,null,null,null,null,"GLAPLS1625 - Vern Marble PLANT SCIENCES GL Only "]
[null,null,null,"63958 - VMsrs Equine Recovery PoolMacdonald 40938 ",null,"505200 - Pension Actuarial Adjustments ",null,null,"820028 - Koinonia Christian Fellowship ",null,null,null,null,null,null,"GLAPLS1633 - Theodore Dejong PLANT SCIENCES GL Only "]
[null,null,null,"63960 - DbsPlt Bi0 Lab Support Theg 40940 ",null,"505300 - Defined Benefit DB Supplemental Plan Employer Contribution ",null,null,"820029 - Korean Aggies United ",null,null,null,null,null,null,"GLAPLS1653 - Brian Bailey PLANT SCIENCES GL Only "]
[null,null,null,"63961 - Som Im Research Cohen 40941 ",null,"505400 - Defined Contribution DC Choice Plan Employer Contribution ",null,null,"820030 - Korean American Scientists and Engineering Association ",null,null,null,null,null,null,"GLAPLS1697 - R Breidenbach PLANT SCIENCES GL Only "]
[null,null,null,"63963 - VMCehWhittier FoundationHassel 40943 ",null,"505500 - UCRP Supplemental Assessment Benefits Expense Interest ",null,null,"820031 - Korean American Student Association ",null,null,null,null,null,null,"GLAPLS1728 - Gurdev Khush PLANT SCIENCES GL Only "]
[null,null,null,"63964 - VMdo Ralston PurinaMorris Scholarship 40944 ",null,"505600 - PERS Regents Contribution Benefits Expense ",null,null,"820032 - Korean Graduate Student Association ",null,null,null,null,null,null,"GLAPLS1779 - J Paul PLANT SCIENCES GL Only "]
[null,null,null,"63966 - VMcehGlide Foundation 40946 ",null,"505700 - DC Plan Summer Salaries Contributions ",null,null,"820033 - Korean Job Search ",null,null,null,null,null,null,"GLAPLS1806 - Gail Taylor PLANT SCIENCES GL Only "]
[null,null,null,"63967 - VMeahfsMerialKolliasBaker 40947 ",null,"505800 - DC Plan Senior Management Contributions ",null,null,"820034 - Korean American Scientists and Eng Assoc ",null,null,null,null,null,null,"GLAPLS1819 - Alan B Bennett PLANT SCIENCES GL Only "]
[null,null,null,"63970 - HdandFs Family House Gifts 40950 ",null,"505900 - Other Retirement Plans CHRCO OCERS etc ",null,null,"820035 - La Raza Law Student Association ",null,null,null,null,null,null,"GLAPLS1842 - Trevor Suslow PLANT SCIENCES GL Only "]
[null,null,null,"63971 - An Sci Equine Research 40951 ",null,"506000 - Retiree Health OPEB Cash Contribution ",null,null,"820036 - La Raza Prelaw Student Association ",null,null,null,null,null,null,"GLAPLS1850 - Michael G Barbour PLANT SCIENCES GL Only "]
[null,null,null,"63972 - Mae Gencorp Foundation 40952 ",null,"506100 - OPEB Actuarial Adjustments GASB 75 ",null,null,"820037 - Lashkara at UC Davis ",null,null,null,null,null,null,"GLAPLS1900 - Donald Nevins PLANT SCIENCES GL Only "]
[null,null,null,"63973 - GsmGrad Stdt Schlsp 40953 ",null,"507000 - Graduate Student Health Remission ",null,null,"820038 - Latinx Graduate Student Association ",null,null,null,null,null,null,"GLAPLS2026 - Richard Plant PLANT SCIENCES GL Only "]
[null,null,null,"63974 - Gsm Research Odean 40954 ",null,"507002 - Health Insurance ",null,null,"820039 - Le Fantastique Empirical Modern Art Club ",null,null,null,null,null,null,"GLAPLS2036 - Emilio Laca PLANT SCIENCES GL Only "]
[null,null,null,"63975 - BiolandAg EngBotrytis ResVandergheynst 40955 ",null,"507003 - Dental Insurance ",null,null,"820040 - Leaders Of Achievement In Biological Sci ",null,null,null,null,null,null,"GLAPLS2061 - Leslie Roche PLANT SCIENCES GL Only "]
[null,null,null,"63976 - EceFitel TechYoo 40956 ",null,"507004 - Vision Insurance ",null,null,"820041 - League of Legends Club at UC Davis ",null,null,null,null,null,null,"GLAPLS2076 - Mark Lundy PLANT SCIENCES GL Only "]
[null,null,null,"63978 - Chem Eng Research Navrotsky 40958 ",null,"507020 - Implicit Subsidy ",null,null,"820042 - Lets Dish ",null,null,null,null,null,null,"GLAPLS2082 - Amelie Gaudin PLANT SCIENCES GL Only "]
[null,null,null,"63979 - Plt BiologyTree ResNichol 40959 ",null,"507100 - Life Insurance ",null,null,"820043 - Liberty In North Korea ",null,null,null,null,null,null,"GLAPLS2184 - Arnold Bloom PLANT SCIENCES GL Only "]
[null,null,null,"63980 - Cahfs Stanley 40960 ",null,"507200 - Workers Compensation Insurance Benefits Expense ",null,null,"820044 - Light Ministries ",null,null,null,null,null,null,"GLAPLS2224 - James Harding PLANT SCIENCES GL Only "]
[null,null,null,"63981 - AandRsResearch Laca 40961 ",null,"507300 - Disability Insurance Benefits Expense ",null,null,"820045 - Linguistics Club ",null,null,null,null,null,null,"GLAPLS2331 - Douglas Shaw PLANT SCIENCES GL Only "]
[null,null,null,"63982 - VMcehEdwin Gregson Memorial Fellowship 40962 ",null,"507400 - Accrued Benefits Expense Compensated Absences ",null,null,"820046 - ME ChA ",null,null,null,null,null,null,"GLAPLS2456 - Marita Cantwell PLANT SCIENCES GL Only "]
[null,null,null,"63983 - Med PmandR Dept Gift 40963 ",null,"507410 - Incentive Award Programs Expense ",null,null,"820047 - Malaysian Student Association ",null,null,null,null,null,null,"GLAPLS2478 - S Jain PLANT SCIENCES GL Only "]
[null,null,null,"63985 - Mepm Research Lee 40965 ",null,"507411 - Incentive Award Programs Reimbursement ",null,null,"820048 - Manna Chinese Christian Fellowship ",null,null,null,null,null,null,"GLAPLS2500 - V Polito PLANT SCIENCES GL Only "]
[null,null,null,"63988 - VsrDr Philip Koblik Memorial Fd 40968 ",null,"507420 - Benefits Assessment Administration Expense ",null,null,"820049 - MANRRS ",null,null,null,null,null,null,"GLAPLS2572 - Patrick H Brown PLANT SCIENCES GL Only "]
[null,null,null,"63989 - DANR Srec Shafter ResandExt Center 40969 ",null,"507430 - 415M Restoration Plan Contribution ",null,null,"820050 - Mapping Club at UC Davis ",null,null,null,null,null,null,"GLAPLS2607 - Chris Van Kessel PLANT SCIENCES GL Only "]
[null,null,null,"63991 - SomMed OrthopaedicsChapmanin 40971 ",null,"507499 - Other Miscellaneous Employee Benefits ",null,null,"820051 - Mariachi Cielito Lindo ",null,null,null,null,null,null,"GLAPLS2622 - Sham Goyal PLANT SCIENCES GL Only "]
[null,null,null,"63992 - An Sci Goat FacilityGlide Fdtn Gift 40972 ",null,"507500 - FICA Medicare Tax Expense ",null,null,"820052 - Marine Science Club ",null,null,null,null,null,null,"GLAPLS2672 - Kassim Al Khatib PLANT SCIENCES GL Only "]
[null,null,null,"63993 - An Sci Research Conklin 40973 ",null,"507600 - FICA OASDI Tax Expense ",null,null,"820053 - Marketing and Business Association ",null,null,null,null,null,null,"GLAPLS2699 - R Johnson PLANT SCIENCES GL Only "]
[null,null,null,"63994 - SomMed Glycobiology Research 40974 ",null,"507700 - State and Federal Unemployment Insurance Benefits Expense ",null,null,"820054 - Material Advantage Student Chapter at UC Davis ",null,null,null,null,null,null,"GLAPLS2752 - Elizabeth Mitcham PLANT SCIENCES GL Only "]
[null,null,null,"63995 - Vet MedCcahFt DodgeShelter Program 40975 ",null,"508000 - Composite Benefit Rate Campus Payment CBR Expense ",null,null,"820055 - Math Club at UC Davis ",null,null,null,null,null,null,"GLAPLS2754 - Warren Micke PLANT SCIENCES GL Only "]
[null,null,null,"63996 - Eecs Research Hurst 40976 ",null,"508001 - Un reimbursable Benefits Costs ",null,null,"820056 - Mecha ",null,null,null,null,null,null,"GLAPLS2807 - Valerie Eviner PLANT SCIENCES GL Only "]
[null,null,null,"63998 - Chem Scholarships 40978 ",null,"505001 - CBR Addon Prop 2 ",null,null,"820057 - Mechanism Press ",null,null,null,null,null,null,"GLAPLS2829 - Steven Knapp PLANT SCIENCES GL Only "]
[null,null,null,"63999 - LAWR Opportunity Fund Ug Schlp Current 40979 ",null,"508100 - Relocation Benefits Expense ",null,null,"820058 - Medlife ",null,null,null,null,null,null,"GLAPLS2831 - Richard Michelmore PLANT SCIENCES GL Only "]
[null,null,null,"63CRU - Current Gift Cash Deposits ",null,"508110 - Voluntary and Involuntary Termination Benefits Expense ",null,null,"820059 - Mercer Vet Clinic for the Homeless UG ",null,null,null,null,null,null,"GLAPLS2858 - Matthew Gilbert PLANT SCIENCES GL Only "]
[null,null,null,"64000 - VMs Equine Trnsprt Stress Res Snyder 40980 ",null,"508120 - Graduate Student Fee Remission ",null,null,"820060 - Mercer Veterinary Clinic for the Homeless ",null,null,null,null,null,null,"GLAPLS2884 - David Neale PLANT SCIENCES GL Only "]
[null,null,null,"64002 - Som InstandResearch Reiser 40982 ",null,"508121 - Graduate Student Fee Remission Rebate ",null,null,"820061 - MESA Club ",null,null,null,null,null,null,"GLAPLS2927 - Robert Denison PLANT SCIENCES GL Only "]
[null,null,null,"64003 - Som Neurology Research Bowe 40983 ",null,"508125 - TA Graduate Remission ",null,null,"820062 - MGA Kaibigan Dance Troupe ",null,null,null,null,null,null,"GLAPLS2966 - Gale Mcgranahan PLANT SCIENCES GL Only "]
[null,null,null,"64005 - Ccah3 Ft Dodge2001 Workshop MtngFoley 40985 ",null,"508130 - Nonresident Fee Remission ",null,null,"820063 - MGA Kapatid MK ",null,null,null,null,null,null,"GLAPLS2976 - Carlos Crisosto PLANT SCIENCES GL Only "]
[null,null,null,"64006 - Geology Award Fund Kellogg 40986 ",null,"508132 - 2nd3r Year NRST Remission ",null,null,"820064 - Microwave Theory and Techniques Society ",null,null,null,null,null,null,"GLAPLS3024 - Giulia Marino PLANT SCIENCES GL Only "]
[null,null,null,"64007 - Mind Fragile X Research 40987 ",null,"508139 - Graduate Student Campus Rebate ",null,null,"820065 - Middle Eastern South Asian Law Student Association ",null,null,null,null,null,null,"GLAPLS3146 - Jorge Dubcovsky PLANT SCIENCES GL Only "]
[null,null,null,"64008 - Med Neuro Cerebral Res 40988 ",null,"508140 - Employee Benefit Cost Transfers Expense ",null,null,"820066 - Minority Association of Premed Students ",null,null,null,null,null,null,"GLAPLS3263 - Louise Ferguson PLANT SCIENCES GL Only "]
[null,null,null,"64009 - VMDO Novartis Scholarship Award 40989 ",null,"508190 - Equivalent of Month Earnings Paid to Dependent ",null,null,"820067 - Mixed Student Union ",null,null,null,null,null,null,"GLAPLS3264 - David Ramos PLANT SCIENCES GL Only "]
[null,null,null,"64010 - Eng Comp Sci Research Bishop 40990 ",null,"508191 - Employee Support Programs ",null,null,"820068 - MK Modern ",null,null,null,null,null,null,"GLAPLS3313 - Michael Reid PLANT SCIENCES GL Only "]
[null,null,null,"64011 - Dbs Plant Pathology Jack Major Memorial 40991 ",null,"508199 - Other Local and Campus Specific Benefit Programs ",null,null,"820069 - Mobility ",null,null,null,null,null,null,"GLAPLS3324 - Robert Norris PLANT SCIENCES GL Only "]
[null,null,null,"64012 - CAES Deans Off Pd Conference 40992 ",null,"508210 - Biweekly Benefit Accrual ",null,null,"820070 - Mock Trial at UC Davis ",null,null,null,null,null,null,"GLAPLS3337 - George Martin PLANT SCIENCES GL Only "]
[null,null,null,"64013 - MedImho Hematology Lam 40993 ",null,"508300 - Vacation Accrued Expenses ",null,null,"820071 - Model United Nations ",null,null,null,null,null,null,"GLAPLS3364 - Allen Van Deynze PLANT SCIENCES GL Only "]
[null,null,null,"64014 - VMthEquine Surgery ResidentYang 40994 ",null,"508301 - Vacation and Leave Usage Salaries and Wages ",null,null,"820072 - Molecular and Cellular Biology Club ",null,null,null,null,null,null,"GLAPLS3629 - John Yoder PLANT SCIENCES GL Only "]
[null,null,null,"64015 - Engr Computer SciCiscoRogaway 40995 ",null,"508500 - Elimination of Capitalized Benefits ",null,null,"820073 - Moneyball Club ",null,null,null,null,null,null,"GLAPLS3707 - Kent Tyler PLANT SCIENCES GL Only "]
[null,null,null,"64017 - Vet MedCahfs ArdansInfect Bronchitis 40997 ",null,"510000 - Federal Pell Grant Program ",null,null,"820074 - Morning Sign Out ",null,null,null,null,null,null,"GLAPLS3836 - Bruce Linquist PLANT SCIENCES GL Only "]
[null,null,null,"64019 - GiftsUnallocated Income 40999 ",null,"510001 - Other Federal Grant Program ",null,null,"820075 - Mujeres Ayudando La Raza ",null,null,null,null,null,null,"GLAPLS3858 - Joseph Ditomaso PLANT SCIENCES GL Only "]
[null,null,null,"64020 - SOM Mind Institute Fragile X Hagerman 41000 ",null,"510002 - University Student Aid Program ",null,null,"820076 - Muscular Dystrophy Awareness Club ",null,null,null,null,null,null,"GLAPLS3868 - Jagdish Ladha PLANT SCIENCES GL Only "]
[null,null,null,"64022 - SVM Durbin Family Trust 41002 ",null,"510003 - Campus Based Fees Grant Program ",null,null,"820077 - Music Graduate Student Association ",null,null,null,null,null,null,"GLAPLS3872 - Bruce Lampinen PLANT SCIENCES GL Only "]
[null,null,null,"64023 - Student AffReentry Scholarship Fund 41003 ",null,"510004 - Other State or Institutional Grant Program ",null,null,"820078 - Music Unplugged ",null,null,null,null,null,null,"GLAPLS3897 - Edward Brummer PLANT SCIENCES GL Only "]
[null,null,null,"64025 - Law SchoolStudents First Campaign 41005 ",null,"510005 - Undergraduate Financial Aid and Scholarships Excluding Grants ",null,null,"820079 - Musicians of Davis ",null,null,null,null,null,null,"GLAPLS3899 - Don Durzan PLANT SCIENCES GL Only "]
[null,null,null,"64026 - UCDFEnglezos Funds From UCD Foundation 41006 ",null,"510006 - Scholarship Allowance Undergrad RTA ",null,null,"820080 - Musicow ",null,null,null,null,null,null,"GLAPLS3923 - Johann Lieth PLANT SCIENCES GL Only "]
[null,null,null,"64027 - VMapc Fish Research Marty 41007 ",null,"510007 - Undergrad Scholarship and Fellowship Expense ",null,null,"820081 - Muslim Student Association ",null,null,null,null,null,null,"GLAPLS4002 - Steffen Abel PLANT SCIENCES GL Only "]
[null,null,null,"64029 - DANR4H Student Internship 41009 ",null,"511000 - Graduate Fellowship Tuition and Fees ",null,null,"820082 - Muslims of the West at UC Davis ",null,null,null,null,null,null,"GLAPLS4105 - Lawrence Rappaport PLANT SCIENCES GL Only "]
[null,null,null,"64030 - VMdo ErinandJacob Fink Memorial Schsp 41010 ",null,"511001 - Graduate Fellowship Nonresident ",null,null,"820083 - Mustard Seed Ministry ",null,null,null,null,null,null,"GLAPLS4146 - Fredrick Bliss PLANT SCIENCES GL Only "]
[null,null,null,"64032 - MedRadPriv ContractAaraAbe 41012 ",null,"511002 - Graduate Fellowship Stipend ",null,null,"820084 - Na Keiki O Hawaii ",null,null,null,null,null,null,"GLAPLS4169 - Diane Beckles PLANT SCIENCES GL Only "]
[null,null,null,"64033 - Med Imid Research Solnick 41013 ",null,"511003 - Post Doctorate Fellowship Expense ",null,null,"820085 - Narrative PreHealth at UC Davis ",null,null,null,null,null,null,"GLAPLS4174 - Sat Darshan Khalsa PLANT SCIENCES GL Only "]
[null,null,null,"64034 - Med Surg Research McvICAr 41014 ",null,"511004 - Graduate Scholarship Allowance ",null,null,"820086 - NATCAR HS ",null,null,null,null,null,null,"GLAPLS4234 - Daniel Potter PLANT SCIENCES GL Only "]
[null,null,null,"64035 - DANR Tulare Lamp 41015 ",null,"511007 - Graduate Fellowship Traineeship Unrestricted ",null,null,"820087 - National Alliance on Mental Illness ",null,null,null,null,null,null,"GLAPLS4245 - Christine Diepenbrock PLANT SCIENCES GL Only "]
[null,null,null,"64036 - DANR Ucce Res Fresno Hembree 41016 ",null,"511009 - Graduate Grant Program ",null,null,"820088 - National Association for Music Education ",null,null,null,null,null,null,"GLAPLS4280 - Theodore Foin PLANT SCIENCES GL Only "]
[null,null,null,"64037 - DANR Master Food Preservers Nicholson 41017 ",null,"520000 - Prosthesis Tissues ",null,null,"820089 - National PanHellenic Council ",null,null,null,null,null,null,"GLAPLS4296 - Truman Young PLANT SCIENCES GL Only "]
[null,null,null,"64038 - Plt PathGeorg Nyland Memorial Fd 41018 ",null,"520001 - Prosthesis Grafts Stents ",null,null,"820090 - National Society of Collegiate Scholars ",null,null,null,null,null,null,"GLAPLS4393 - Daniel Putnam PLANT SCIENCES GL Only "]
[null,null,null,"64042 - An SciLivestock Management Program 41023 ",null,"520002 - Prosthesis Bones ",null,null,"820091 - National Society of Leadership and Success ",null,null,null,null,null,null,"GLAPLS4461 - Leland Jackson PLANT SCIENCES GL Only "]
[null,null,null,"64045 - An Sci Scholarship 41025 ",null,"520003 - Prosthesis Knee ",null,null,"820092 - Native American Student Union ",null,null,null,null,null,null,"GLAPLS4487 - Bradley Hanson PLANT SCIENCES GL Only "]
[null,null,null,"64046 - An Sci Horse Facility 41026 ",null,"520004 - Prosthesis Hip ",null,null,"820093 - Native American Studies Grad Student Com ",null,null,null,null,null,null,"GLAPLS4553 - David Burger PLANT SCIENCES GL Only "]
[null,null,null,"64047 - Avian SciBurrowing Owls Research 41027 ",null,"520005 - Prosthesis Spine ",null,null,"820094 - Nepali Student and Scholars Association ",null,null,null,null,null,null,"GLAPLS4575 - Steven Temple PLANT SCIENCES GL Only "]
[null,null,null,"64048 - Animal Sci Research Hung 41028 ",null,"520006 - Prosthesis Screws and Pins ",null,null,"820095 - Net Impact Davis ",null,null,null,null,null,null,"GLAPLS4590 - Peter Freer Smith PLANT SCIENCES GL Only "]
[null,null,null,"64049 - Avian Sci Research Ogasawara 41029 ",null,"520007 - Prosthesis Pacemaker ",null,null,"820096 - Neurobiology Physiology and Behavior Club ",null,null,null,null,null,null,"GLAPLS4610 - Kent Bradford PLANT SCIENCES GL Only "]
[null,null,null,"64050 - American Society Of Enologists 41030 ",null,"520008 - Prosthesis Ankle ",null,null,"820097 - Neurotech at Davis ",null,null,null,null,null,null,"GLAPLS4631 - Jan Dvorak PLANT SCIENCES GL Only "]
[null,null,null,"64051 - Anthropology Graduate Student Travel 41031 ",null,"520009 - Prosthesis Shoulder ",null,null,"820098 - Newman Catholic Student Community ",null,null,null,null,null,null,"GLAPLS4691 - Li Tian PLANT SCIENCES GL Only "]
[null,null,null,"64052 - An Sci Research Medrano 41032 ",null,"520010 - Prosthesis Ocular ",null,null,"820099 - News Real Estate Group ",null,null,null,null,null,null,"GLAPLS4727 - Carlos Quiros PLANT SCIENCES GL Only "]
[null,null,null,"64053 - AvianExotic Awards 41033 ",null,"520011 - Prosthesis Hearing ",null,null,"820100 - Nigerian Student Association ",null,null,null,null,null,null,"GLAPLS4739 - Eduardo Blumwald PLANT SCIENCES GL Only "]
[null,null,null,"64054 - An Sci Org Reas Adams 41034 ",null,"520012 - Prosthesis Other ",null,null,"820101 - Nigerian Student Dance Group ",null,null,null,null,null,null,"GLAPLS4803 - Cai Zhong Jiang PLANT SCIENCES GL Only "]
[null,null,null,"64055 - An Sci Research CoombsHahn 41035 ",null,"520050 - Sutures and Surgical Needles Expense ",null,null,"820102 - Nikkei Student Union ",null,null,null,null,null,null,"GLAPLS4914 - Daniel Kliebenstein PLANT SCIENCES GL Only "]
[null,null,null,"64056 - Anthro Inst RuctionandRes Gift Fund 41036 ",null,"520100 - Surgical Packs and Sheets Expense ",null,null,"820103 - Nintendo Club ",null,null,null,null,null,null,"GLAPLS4991 - Maciej Zwieniecki PLANT SCIENCES GL Only "]
[null,null,null,"64057 - Pediatric CancerandBlood Disorder Rsch 41037 ",null,"520150 - Surgical Supplies General Expense ",null,null,"820104 - Nursing Club ",null,null,null,null,null,null,"GLAPLS5045 - Kenneth Shackel PLANT SCIENCES GL Only "]
[null,null,null,"64058 - Avian An Sci Psittacine Res 41038 ",null,"520200 - Anesthetic Materials Expense ",null,null,"820105 - Older Wiser Learners ",null,null,null,null,null,null,"GLAPLS5099 - Judy Jernstedt PLANT SCIENCES GL Only "]
[null,null,null,"64059 - AnthropologyVarious Donors 41039 ",null,"520250 - Oxygen and Other Medical Gases Expense ",null,null,"820106 - One Campus Health ",null,null,null,null,null,null,"GLAPLS5105 - Clyde Elmore PLANT SCIENCES GL Only "]
[null,null,null,"64060 - Antelope Valley Kennel Club Schlsp 41040 ",null,"520300 - Intravenous IV Solutions ",null,null,"820107 - One Campus Health Coalition ",null,null,null,null,null,null,"GLAPLS5150 - Ann Powell PLANT SCIENCES GL Only "]
[null,null,null,"64062 - NpandBRegulatory Peptides Res 41042 ",null,"520350 - Pharmaceuticals Drugs Expense ",null,null,"820108 - One loop Hyperloop Pod Team ",null,null,null,null,null,null,"GLAPLS5253 - Troy Magney PLANT SCIENCES GL Only "]
[null,null,null,"64064 - Anthro Dept Support 41044 ",null,"520400 - Radioactive Materials Expense ",null,null,"820109 - Operation Smile at UC Davis ",null,null,null,null,null,null,"GLAPLS5340 - Mitchell Feldmann PLANT SCIENCES GL Only "]
[null,null,null,"64065 - Anthropology Dept Support 41045 ",null,"520450 - Radiology Films Expenses ",null,null,"820110 - Orphan Kitten Project at UC Davis ",null,null,null,null,null,null,"GLAPLS5424 - John Monroe PLANT SCIENCES GL Only "]
[null,null,null,"64066 - An Sci Org Reas Depeters 41046 ",null,"520500 - Blood Factors ",null,null,"820111 - Ostem at UC Davis ",null,null,null,null,null,null,"GLAPLS5432 - Jennifer Funk PLANT SCIENCES GL Only "]
[null,null,null,"64067 - NpandB Bio ChemandMol Bio Grad Group 41047 ",null,"520502 - Test Kits ",null,null,"820112 - Other Collective ",null,null,null,null,null,null,"GLAPLS5502 - Alessandro Ossola PLANT SCIENCES GL Only "]
[null,null,null,"64068 - An Phys Lyme Research Barkley 41048 ",null,"520503 - Dietary Tube Feeding ",null,null,"820113 - Page One ",null,null,null,null,null,null,"GLAPLS5552 - Robert Walsh PLANT SCIENCES GL Only "]
[null,null,null,"64069 - An PhysioNeurotoxicology 41049 ",null,"520504 - Organ Acquisition Fees ",null,null,"820114 - Pakistani Student Association ",null,null,null,null,null,null,"GLAPLS5575 - George Sellu PLANT SCIENCES GL Only "]
[null,null,null,"64070 - Anheuser BuschPhaff 41050 ",null,"520505 - Catheters and Catheter Accessories ",null,null,"820116 - Pan African Student Organization PASO ",null,null,null,null,null,null,"GLAPLS5877 - Fetien Abera PLANT SCIENCES GL Only "]
[null,null,null,"64071 - An Sci Organized Research Roser 41051 ",null,"520506 - Bandages and Supports ",null,null,"820117 - Pan Afro ",null,null,null,null,null,null,"GLAPLS6247 - Andrew Latimer PLANT SCIENCES GL Only "]
[null,null,null,"64072 - Avian Sci Organized Research Kratzer 41052 ",null,"520507 - Tubes Cannulas and Accessories ",null,null,"820118 - Pan Afro Student Organization ",null,null,null,null,null,null,"GLAPLS6300 - Justin Valliere PLANT SCIENCES GL Only "]
[null,null,null,"64073 - Anthro InstructionandDept Research 41053 ",null,"520508 - Compressed Gas Cryogenics ",null,null,"820119 - Paul Hom Asian Clinic ",null,null,null,null,null,null,"GLAPPA0006 - Akif Eskalen PLANT PATHOLOGY GL Only "]
[null,null,null,"64074 - An Sci Org Res Berger 41054 ",null,"520529 - Other Medical Supplies ",null,null,"820120 - Period at UC Davis ",null,null,null,null,null,null,"GLAPPA0068 - Tiffany Lowe Power PLANT PATHOLOGY GL Only "]
[null,null,null,"64075 - Aquaculture Dept Support 41055 ",null,"520550 - Blood and Plasma ",null,null,"820121 - Peruvian Student Association at UC Davis ",null,null,null,null,null,null,"GLAPPA0333 - Beth Teviotdale PLANT PATHOLOGY GL Only "]
[null,null,null,"64076 - An Sci Carnation Genetics 41056 ",null,"520600 - Instruments and Minor Medical Equipment Expenses ",null,null,"820122 - Phi Beta Kappa Society ",null,null,null,null,null,null,"GLAPPA0563 - Daniel Kluepfel PLANT PATHOLOGY GL Only "]
[null,null,null,"64077 - An SciFacultyStudent Res 41057 ",null,"522000 - Food Beverage ",null,null,"820123 - Philosophy Club ",null,null,null,null,null,null,"GLAPPA0626 - Johan Leveau PLANT PATHOLOGY GL Only "]
[null,null,null,"64078 - Aquaculture Org Research 41058 ",null,"522001 - Food Equipment and Supplies ",null,null,"820124 - Photography Club at UC Davis ",null,null,null,null,null,null,"GLAPPA0696 - Robert Gilbertson PLANT PATHOLOGY GL Only "]
[null,null,null,"64079 - AquacultureShellfish 41059 ",null,"522010 - MC Fruits Vegtables ",null,null,"820125 - Pilipino American in Science and Engineering ",null,null,null,null,null,null,"GLAPPA0697 - Kendra Baumgartner PLANT PATHOLOGY GL Only "]
[null,null,null,"64080 - Anthrop Department Support 41060 ",null,"522011 - MC Dairy Products ",null,null,"820126 - Pilipinx In Business and Law ",null,null,null,null,null,null,"GLAPPA0735 - Amisha Poret Peterson PLANT PATHOLOGY GL Only "]
[null,null,null,"64081 - Aquaculture Sturgeon Res 41061 ",null,"522012 - MC Baked Goods ",null,null,"820127 - Pixel ",null,null,null,null,null,null,"GLAPPA0837 - Neil McRoberts PLANT PATHOLOGY GL Only "]
[null,null,null,"64082 - An Sci Livestock Judging 41062 ",null,"522013 - MC Meats Fish Poultry ",null,null,"820128 - Pixel Graphic Design Club ",null,null,null,null,null,null,"GLAPPA0842 - Themis Michailides PLANT PATHOLOGY GL Only "]
[null,null,null,"64083 - Animal Res ArdsUCDMC 41063 ",null,"522014 - MC Beverages ",null,null,"820129 - Plant Breeding Grad Student Organization ",null,null,null,null,null,null,"GLAPPA1052 - Joanne Emerson PLANT PATHOLOGY GL Only "]
[null,null,null,"64084 - An Sci Research Fadel 41064 ",null,"522015 - MC Other Food ",null,null,"820130 - Plant Science Club ",null,null,null,null,null,null,"GLAPPA1139 - Florent Trouillas PLANT PATHOLOGY GL Only "]
[null,null,null,"64085 - An PhysPhysiology Grad Program 41065 ",null,"522100 - Course Books for Resale ",null,null,"820131 - Plipinx American in Science and Engineering ",null,null,null,null,null,null,"GLAPPA1241 - Pamela Ronald PLANT PATHOLOGY GL Only "]
[null,null,null,"64087 - An Sci Feedlot Cattle Rsrch 41067 ",null,"522101 - School and Office Supplies for Resale ",null,null,"820132 - Popping Club at UC Davis ",null,null,null,null,null,null,"GLAPPA1391 - George Bruening PLANT PATHOLOGY GL Only "]
[null,null,null,"64090 - Agric Engr Elect Spraying 41069 ",null,"522102 - Sundries and Clinique Items for Resale ",null,null,"820133 - Postpartum Anxiety and Depression Advocacy ",null,null,null,null,null,null,"GLAPPA1453 - Thomas R Gordon PLANT PATHOLOGY GL Only "]
[null,null,null,"64091 - MCB Cheng Research 41070 ",null,"522103 - Gifts for Resale ",null,null,"820134 - Prelaw Association ",null,null,null,null,null,null,"GLAPPA1643 - Douglas Cook PLANT PATHOLOGY GL Only "]
[null,null,null,"64093 - Applied SciStdtFaculty Relations 41072 ",null,"522104 - Gift Cards for Resale ",null,null,"820135 - Premed American Medical Womens Association ",null,null,null,null,null,null,"GLAPPA1829 - Bryce Falk PLANT PATHOLOGY GL Only "]
[null,null,null,"64094 - Applied Sci Organized Research 41073 ",null,"522105 - General Books for Resale ",null,null,"820136 - Premed AMSA ",null,null,null,null,null,null,"GLAPPA1881 - Valerie Williamson PLANT PATHOLOGY GL Only "]
[null,null,null,"64095 - Abs Human Development 41074 ",null,"522106 - Specialty Products for Resale ",null,null,"820137 - PreOccupational Therapy Club ",null,null,null,null,null,null,"GLAPPA1893 - Sara Dye PLANT PATHOLOGY GL Only "]
[null,null,null,"64096 - Hammarskjold House 41075 ",null,"522107 - Food and Beverage for Resale ",null,null,"820138 - Prepharmacy Club ",null,null,null,null,null,null,"GLAPPA2140 - James Macdonald PLANT PATHOLOGY GL Only "]
[null,null,null,"64097 - Applied Sci Research Support 41076 ",null,"522108 - Consumer Electronics for Resale ",null,null,"820139 - PrePhysical Therapy Club ",null,null,null,null,null,null,"GLAPPA2161 - Takao Kasuga PLANT PATHOLOGY GL Only "]
[null,null,null,"64098 - An Sci Organized Research 41077 ",null,"522109 - Computer Hardware for Resale ",null,null,"820140 - PrePhysician Assistant Club ",null,null,null,null,null,null,"GLAPPA2231 - Neal Van Alfen PLANT PATHOLOGY GL Only "]
[null,null,null,"64100 - Applied SciGrad Student Support 41079 ",null,"522110 - Clothing and Apparel Items for Resale ",null,null,"820141 - PreVet Students Supporting Diversity ",null,null,null,null,null,null,"GLAPPA2288 - Cassandra Swett PLANT PATHOLOGY GL Only "]
[null,null,null,"64101 - An Sci Organized Research Bath 41080 ",null,"522111 - Art and Engineering Supplies for Resale ",null,null,"820142 - Pride Student Veterinary Medical Community ",null,null,null,null,null,null,"GLAPPA2342 - Lynn Epstein PLANT PATHOLOGY GL Only "]
[null,null,null,"64103 - Vit and Enol Board Of Visitors and Fellows 41082 ",null,"522112 - Cap and Gowns Rental Supplies ",null,null,"820143 - Primatology Club ",null,null,null,null,null,null,"GLAPPA2367 - Gitta Coaker PLANT PATHOLOGY GL Only "]
[null,null,null,"64104 - Abs Org Research Grieshop 41083 ",null,"522200 - Postage and Mail Supplies ",null,null,"820144 - Princess Pals ",null,null,null,null,null,null,"GLAPPA2414 - Clarence Kado PLANT PATHOLOGY GL Only "]
[null,null,null,"64105 - Integrated Std Dept Support 41084 ",null,"522201 - General Office Supplies ",null,null,"820145 - Prof Sororities and Fraternities Council ",null,null,null,null,null,null,"GLAPPA2665 - David Rizzo PLANT PATHOLOGY GL Only "]
[null,null,null,"64107 - An Sci Jersey Sires Typing 41086 ",null,"522300 - Furniture PPM Expense ",null,null,"820146 - Project Catalyst ",null,null,null,null,null,null,"GLAPPA2842 - Adib Rowhani PLANT PATHOLOGY GL Only "]
[null,null,null,"64108 - Aas Department Support 41087 ",null,"522301 - Construction and Equipment Non CIP Expense ",null,null,"820147 - Project M ",null,null,null,null,null,null,"GLAPPA2981 - Greg Browne PLANT PATHOLOGY GL Only "]
[null,null,null,"64110 - An Sci Lipid Metabolism Peters 41089 ",null,"522302 - Fabrication Non CIP Expense ",null,null,"820148 - Project M at UC Davis ",null,null,null,null,null,null,"GLAPPA3876 - Krishna Subbarao PLANT PATHOLOGY GL Only "]
[null,null,null,"64111 - AasLunar Celebration 41090 ",null,"522400 - Lab Supplies and Accessories ",null,null,"820149 - Project Rishi at UC Davis ",null,null,null,null,null,null,"GLAPPA3879 - Robert Webster PLANT PATHOLOGY GL Only "]
[null,null,null,"64112 - AquacultureCatfish 41091 ",null,"522401 - Lab Chemicals and Gases ",null,null,"820150 - Prytanean Womens Honor Society ",null,null,null,null,null,null,"GLAPPA4135 - David Gilchrist PLANT PATHOLOGY GL Only "]
[null,null,null,"64113 - Abs Dept Support 41092 ",null,"522402 - Lab Animal Purchases ",null,null,"820151 - Psi Chi Honor Society ",null,null,null,null,null,null,"GLAPPA4181 - Richard Bostock PLANT PATHOLOGY GL Only "]
[null,null,null,"64114 - AquacultureTrout Res 41093 ",null,"522403 - Lab Animal Supplies ",null,null,"820152 - Psychology Student Association ",null,null,null,null,null,null,"GLAPPA4496 - J Duniway PLANT PATHOLOGY GL Only "]
[null,null,null,"64115 - Early Childhood Lab 41094 ",null,"522404 - Lab Animal Bedding ",null,null,"820153 - Public Health Brigades ",null,null,null,null,null,null,"GLAPPA4520 - Mysore Sudarshana PLANT PATHOLOGY GL Only "]
[null,null,null,"64117 - An Sci Student Support 41096 ",null,"522405 - Lab Animal Cages Habitat Supplies ",null,null,"820154 - Public Health Club ",null,null,null,null,null,null,"GLAPPA4752 - Ioannis Stergiopoulos PLANT PATHOLOGY GL Only "]
[null,null,null,"64118 - An Sci Teaching Program 41097 ",null,"522406 - Lab Animal Feed ",null,null,"820155 - Public Health Club at UC Davis ",null,null,null,null,null,null,"GLAPPA5024 - Richard Davis PLANT PATHOLOGY GL Only "]
[null,null,null,"64119 - Avian Sci Organized Research 41098 ",null,"522407 - Live Plant Accessories and Supplies ",null,null,"820156 - Puerto Rican Community Association ",null,null,null,null,null,null,"GLAPPA6302 - Yen Wen Kuo PLANT PATHOLOGY GL Only "]
[null,null,null,"64120 - An Sci Outreach 41099 ",null,"522511 - Books and Publications ",null,null,"820157 - Quantum Computing Club at UC Davis ",null,null,null,null,null,null,"GLAVIT0043 - Megan Bartlett VITICULTURE And ENOLOGY GL Only "]
[null,null,null,"64121 - An Sci Alumni and Friends 41100 ",null,"522513 - Library Materials ",null,null,"820158 - Queer Student Union ",null,null,null,null,null,null,"GLAVIT0445 - Hildegarde Heymann VITICULTURE And ENOLOGY GL Only "]
[null,null,null,"64122 - An Sci Research Murray 41101 ",null,"522514 - Book Binding ",null,null,"820159 - Quiz Bowl ",null,null,null,null,null,null,"GLAVIT0655 - Ann Noble VITICULTURE And ENOLOGY GL Only "]
[null,null,null,"64123 - An SciRicoh Kyosan 41102 ",null,"522600 - Subscriptions and Memberships Fed Allowable ",null,null,"820160 - Quiz Bowl at UC Davis ",null,null,null,null,null,null,"GLAVIT1076 - Walter Kliewer VITICULTURE And ENOLOGY GL Only "]
[null,null,null,"64125 - AbsIntL Agr Development Prog 41104 ",null,"522700 - Subscriptions and Memberships Fed Unallowable ",null,null,"820161 - RAVT New Hope ",null,null,null,null,null,null,"GLAVIT1181 - Mark Matthews VITICULTURE And ENOLOGY GL Only "]
[null,null,null,"64126 - An SciSturgeon Research 41105 ",null,"522800 - Employee Wearing Apparel ",null,null,"820162 - React to Film ",null,null,null,null,null,null,"GLAVIT1342 - Sahap Kaan Kurtural VITICULTURE And ENOLOGY GL Only "]
[null,null,null,"64127 - Agr EngrFood Engr 41106 ",null,"522900 - Cleaning Supplies Expense ",null,null,"820163 - Recognizing Illnesses Very Early and Response ",null,null,null,null,null,null,"GLAVIT1366 - Anita Oberholster VITICULTURE And ENOLOGY GL Only "]
[null,null,null,"64128 - Abs Org Research Werner 41107 ",null,"523000 - MC Linen and Bedding Supplies Expense ",null,null,"820164 - Regents Scholar Society ",null,null,null,null,null,null,"GLAVIT1672 - Douglas Adams VITICULTURE And ENOLOGY GL Only "]
[null,null,null,"64129 - DANR Tehama Fulton 41108 ",null,"523100 - Medical Center Nonmedical Equipment ",null,null,"820165 - Religious Studies Club ",null,null,null,null,null,null,"GLAVIT1686 - Michael Walker VITICULTURE And ENOLOGY GL Only "]
[null,null,null,"64132 - Iteh Research Lasley 41110 ",null,"523210 - BUILDING and GROUNDS MAINTENANCE ",null,null,"820166 - Revival Zine ",null,null,null,null,null,null,"GLAVIT1760 - Benjamen Montpetit VITICULTURE And ENOLOGY GL Only "]
[null,null,null,"64133 - Chem R Bryan Miller Memorial Symposium 41111 ",null,"523211 - REPAIR and MAINTENANCE PARTS ",null,null,"820167 - River on Campus ",null,null,null,null,null,null,"GLAVIT1771 - Matthew Fidelibus VITICULTURE And ENOLOGY GL Only "]
[null,null,null,"64134 - Veg Crops Salinas Field Station 41112 ",null,"523212 - COMPUTERS IT SUPPLIES ACCES ",null,null,"820168 - Roller Club at UC Davis ",null,null,null,null,null,null,"GLAVIT1906 - Konrad Miller VITICULTURE And ENOLOGY GL Only "]
[null,null,null,"64137 - HumanandComm Develop Research Sokolow 41115 ",null,"523213 - NONCAPITALIZED SOFTWARE and LI ",null,null,"820169 - Rooh Jawani Dee ",null,null,null,null,null,null,"GLAVIT1995 - Larry Williams VITICULTURE And ENOLOGY GL Only "]
[null,null,null,"64138 - VMbCapecchio FdntAlzheimerS DisGac 41116 ",null,"523214 - ARTWORK UNDER 5K ",null,null,"820170 - Rovecrest at UC Davis ",null,null,null,null,null,null,"GLAVIT2211 - Andrew McElrone VITICULTURE And ENOLOGY GL Only "]
[null,null,null,"64140 - AandRs Research Gallagher 41118 ",null,"523215 - FUELS FUEL ADDITIVES ",null,null,"820171 - Russian Cultural Association ",null,null,null,null,null,null,"GLAVIT2271 - Elisabeth Forrestel VITICULTURE And ENOLOGY GL Only "]
[null,null,null,"64141 - AandRsSmall Grain ResearchDubcovsky 41119 ",null,"523216 - DIETARY PAPER and PLASTIC ",null,null,"820172 - Sachacks ",null,null,null,null,null,null,"GLAVIT2453 - Linda Bisson VITICULTURE And ENOLOGY GL Only "]
[null,null,null,"64142 - Env ToxRohmandHaas CoShibamoto 41120 ",null,"523217 - BOOKS PUBLICATIONS ",null,null,"820173 - Scholars Promoting Edu Awareness and Knowledge ",null,null,null,null,null,null,"GLAVIT2745 - Jennifer Nelson VITICULTURE And ENOLOGY GL Only "]
[null,null,null,"64144 - Inst Gov Affairs Research Branstetter 41122 ",null,"523218 - Non Medical Chemicals ",null,null,"820174 - Science Olympiad ",null,null,null,null,null,null,"GLAVIT2904 - Ron Runnebaum VITICULTURE And ENOLOGY GL Only "]
[null,null,null,"64145 - ItesDrive To TravelMokhtarian 41123 ",null,"523219 - INVENTORY WRITE OFF ",null,null,"820175 - Science Says ",null,null,null,null,null,null,"GLAVIT3382 - Roger Boulton VITICULTURE And ENOLOGY GL Only "]
[null,null,null,"64146 - ItesMobility ModelingMokgtarian 41124 ",null,"523220 - MC Laboratory Supplies ",null,null,"820176 - SCM Society ",null,null,null,null,null,null,"GLAVIT4244 - Patricia Howe VITICULTURE And ENOLOGY GL Only "]
[null,null,null,"64147 - Grad Studies Elaine Russell Memorial Fd 41125 ",null,"523221 - Other Non Medical Supplies ",null,null,"820177 - SedadIranian Students Association ",null,null,null,null,null,null,"GLAVIT4347 - Susan Ebeler VITICULTURE And ENOLOGY GL Only "]
[null,null,null,"64148 - McbSpri PostDoctoral FellowRose 41126 ",null,"523222 - Law Enforcement Supplies and Explosives ",null,null,"820178 - Sensual Daydreams Rocky Horror Sarsh ",null,null,null,null,null,null,"GLAVIT4723 - David Block VITICULTURE And ENOLOGY GL Only "]
[null,null,null,"64149 - Mcb Research Shen 41127 ",null,"523223 - Reimbursement of Supplies and Materials ",null,null,"820179 - Sher Alliance ",null,null,null,null,null,null,"GLAVIT4749 - Carole Meredith VITICULTURE And ENOLOGY GL Only "]
[null,null,null,"64150 - Med OrthopaedicsStrykerOthopaedic Lab 41128 ",null,"524000 - Elimination of Capitalized Suppl Materials Equip ",null,null,"820180 - Shifa Community Clinic ",null,null,null,null,null,null,"GLAVIT4876 - David Mills VITICULTURE And ENOLOGY GL Only "]
[null,null,null,"64154 - VMcasAnimal Behavior 41132 ",null,"524010 - Elimination of Non Cap Suppl Materials Equip ",null,null,"820181 - Sickspits Poetry Collective ",null,null,null,null,null,null,"GLAVIT4903 - Dario Cantu VITICULTURE And ENOLOGY GL Only "]
[null,null,null,"64157 - DANR El Dorado 41134 ",null,"525000 - Capital Expense Land Purchases ",null,null,"820182 - Sickspits Spoken Word Collective ",null,null,null,null,null,null,"GLAVIT5794 - Luis Diaz Garcia VITICULTURE And ENOLOGY GL Only "]
[null,null,null,"64159 - Im Research Mcmahon 41136 ",null,"525100 - Capital Expense Land Impr Parking Lot Improvements ",null,null,"820183 - Sikh Cultural Association ",null,null,null,null,null,null,"GLAVPP6163 - Daniel Obrist VICE PROVOST ACAD PERSNL and DEV "]
[null,null,null,"64162 - CheMsAgilent Technologies Gift 41139 ",null,"525200 - Capital Expense Land Impr Other Land Improvements ",null,null,"820184 - Simplecraft ",null,null,null,null,null,null,"GLAWCF2418 - Johanna Del Castillo Munera PLANT PATHOLOGY GL Only "]
[null,null,null,"64165 - VsrKicking Injuries Horse ResSnyder 41142 ",null,"525300 - Expense to be Capitalized Infrastructure ",null,null,"820185 - Ski or Snowboard Club ",null,null,null,null,null,null,"GLAWFC0067 - Justine Smith WILDLIFE And FISHERIES BIOLOGY GL Only "]
[null,null,null,"64166 - VMdoTalbot Research Fd 41143 ",null,"525400 - Capital Expense Building and Improvements Service Concession Arrangements ",null,null,"820186 - Slavic Assoc of Youth ",null,null,null,null,null,null,"GLAWFC0317 - Robert Furrow WILDLIFE And FISHERIES BIOLOGY GL Only "]
[null,null,null,"64167 - Food SciResearch Dungan 41144 ",null,"525500 - Capital Expenses Building and Improvements Student Housing Facilities ",null,null,"820187 - Slavic Association of Ambitious Youth ",null,null,null,null,null,null,"GLAWFC0698 - C Dewees WILDLIFE And FISHERIES BIOLOGY GL Only "]
[null,null,null,"64169 - McbAqhaRodriquez 41146 ",null,"525600 - Capital Expenses Building and Improvements Parking Structures ",null,null,"820188 - So Pop ",null,null,null,null,null,null,"GLAWFC0981 - Nancy Erman WILDLIFE And FISHERIES BIOLOGY GL Only "]
[null,null,null,"64171 - Dnar NevadaMaster Gardener Program 41148 ",null,"525700 - Capital Expenses Building and Improvements Leasehold Improvements ",null,null,"820189 - Society for Conservation Biology ",null,null,null,null,null,null,"GLAWFC1452 - Dirk Van Vuren WILDLIFE And FISHERIES BIOLOGY GL Only "]
[null,null,null,"64173 - Nutri Research Clifford 41151 ",null,"525800 - Capital Expense Building and Improvements Other ",null,null,"820190 - Society for the Advancement of Chicanos and Hispanic ",null,null,null,null,null,null,"GLAWFC1630 - Louis Botsford WILDLIFE And FISHERIES BIOLOGY GL Only "]
[null,null,null,"64175 - EngComp Sci ResearchFarrens 41153 ",null,"525850 - Capital Expense Building and Improvements General Improvements ",null,null,"820191 - Society of Manufacturing Engineers at UC Davis ",null,null,null,null,null,null,"GLAWFC1792 - E Fitzhugh WILDLIFE And FISHERIES BIOLOGY GL Only "]
[null,null,null,"64176 - LandSMusicGospel Choir 41154 ",null,"525900 - Capital Expense Equipment ",null,null,"820192 - Society of Women Engineers ",null,null,null,null,null,null,"GLAWFC1832 - Terrell Salmon WILDLIFE And FISHERIES BIOLOGY GL Only "]
[null,null,null,"64177 - MedAdmOmeJames Foundation Scholarship 41155 ",null,"525901 - Capital Expense Fabrication ",null,null,"820193 - Sociology Student Association ",null,null,null,null,null,null,"GLAWFC1904 - D Anderson WILDLIFE And FISHERIES BIOLOGY GL Only "]
[null,null,null,"64178 - Fst Pilot Brewery Lab Rebuild 41156 ",null,"525904 - Capital Expense UCDMC Only Furniture and Minor Equipment ",null,null,"820194 - Solar Boat Team ",null,null,null,null,null,null,"GLAWFC2439 - Eric Post WILDLIFE And FISHERIES BIOLOGY GL Only "]
[null,null,null,"64179 - EngAs Spie E Teller Symp Support 41157 ",null,"526000 - Capital Software Greater than 5M ",null,null,"820195 - Solar Car Team at UC Davis ",null,null,null,null,null,null,"GLAWFC3454 - Douglas Kelt WILDLIFE And FISHERIES BIOLOGY GL Only "]
[null,null,null,"64180 - An Sci Swine Facility Heitman 41158 ",null,"526100 - Capital Software Less than 5M ",null,null,"820196 - Sone1 ",null,null,null,null,null,null,"GLAWFC3477 - Peter Moyle WILDLIFE And FISHERIES BIOLOGY GL Only "]
[null,null,null,"64181 - Ceh Louis R Rowan Fellowship 41159 ",null,"526200 - Capital Expense Intangible Assets ",null,null,"820197 - SONORAE ",null,null,null,null,null,null,"GLAWFC3643 - J Cech WILDLIFE And FISHERIES BIOLOGY GL Only "]
[null,null,null,"64182 - MedPmrSpasticity FundL Paulson 41160 ",null,"526300 - Capital Expense Libraries and Collections Excluding Special ",null,null,"820198 - Soul Sistahs ",null,null,null,null,null,null,"GLAWFC3853 - James Hobbs WILDLIFE And FISHERIES BIOLOGY GL Only "]
[null,null,null,"64183 - Med Anesth Pain Div Run Against Pain 41161 ",null,"526400 - Capital Expenses Special Collections ",null,null,"820199 - Southeast Asian Buddhist Association ",null,null,null,null,null,null,"GLAWFC3941 - Don Erman WILDLIFE And FISHERIES BIOLOGY GL Only "]
[null,null,null,"64184 - VMDO Harold Hirsch Scholarship 41162 ",null,"526500 - Capital Expense Construction In Progress ",null,null,"820200 - Southeast Asian Student Alliance ",null,null,null,null,null,null,"GLAWFC4152 - Nann Fangue WILDLIFE And FISHERIES BIOLOGY GL Only "]
[null,null,null,"64187 - DANRRec Hansen Ag Center 41165 ",null,"530000 - Collection Agency Fee Expenses ",null,null,"820201 - Space and Satellite Systems Club ",null,null,null,null,null,null,"GLAWFC4182 - Timothy Caro WILDLIFE And FISHERIES BIOLOGY GL Only "]
[null,null,null,"64188 - AAES WFCB ElliottFisk 41166 ",null,"530101 - Consulting Services Expense ",null,null,"820202 - Spanish Club at UC Davis ",null,null,null,null,null,null,"GLAWFC4250 - Andrew Rypel WILDLIFE And FISHERIES BIOLOGY GL Only "]
[null,null,null,"64189 - ECE Intel CorporationDing 41167 ",null,"530102 - Outside Purchased Services ",null,null,"820203 - Special Olympics Club ",null,null,null,null,null,null,"GLAWFC4519 - Daniel Karp WILDLIFE And FISHERIES BIOLOGY GL Only "]
[null,null,null,"64193 - Pom Research Walnut Tulare 41170 ",null,"530103 - Research Subject Payments ",null,null,"820204 - Specialties Club at UCD School of Veterinary Medicine ",null,null,null,null,null,null,"GLAWFC4530 - Roger Baldwin WILDLIFE And FISHERIES BIOLOGY GL Only "]
[null,null,null,"64194 - DANRCfc Cobank Scholarship Fund 41171 ",null,"530104 - Reimbursement of Services ",null,null,"820205 - Spoon University ",null,null,null,null,null,null,"GLAWFC4534 - Rahel Sollmann WILDLIFE And FISHERIES BIOLOGY GL Only "]
[null,null,null,"64195 - Dbs June Mc Caskill Mem 41172 ",null,"530200 - Property Management Service Expense ",null,null,"820206 - Sports Medicine Club at UC Davis ",null,null,null,null,null,null,"GLAWFC4888 - John Eadie WILDLIFE And FISHERIES BIOLOGY GL Only "]
[null,null,null,"64196 - MCB KaplanW M Keck Foundation 41173 ",null,"530300 - Audit Services Expense ",null,null,"820207 - Sprout Up ",null,null,null,null,null,null,"GLAWFC4921 - Brian D Todd WILDLIFE And FISHERIES BIOLOGY GL Only "]
[null,null,null,"64197 - Mind Phenotyping Research 41174 ",null,"530400 - Promotional Advertising ",null,null,"820208 - Sri Lankan Student Association ",null,null,null,null,null,null,"GLAWFC4926 - Deborah Elliott Fisk WILDLIFE And FISHERIES BIOLOGY GL Only "]
[null,null,null,"64198 - AandRs Research Mutters 41175 ",null,"530401 - Marketing Sponsorships Expense ",null,null,"820209 - Star Trek Club ",null,null,null,null,null,null,"GLAWFC5241 - Mikaela Provost WILDLIFE And FISHERIES BIOLOGY GL Only "]
[null,null,null,"64199 - VM SRS ILKIW Canine Intubation Model 41176 ",null,"530500 - Non Promotional Advertising ",null,null,"820210 - Startup Hub ",null,null,null,null,null,null,"GLBCNS6323 - Martine Therrien Center for Neuroscience GL Only "]
[null,null,null,"64200 - Ve Iwfs Global Internship Award 41177 ",null,"530600 - Bank Service Fees ",null,null,"820211 - Statistics Club ",null,null,null,null,null,null,"GLBEAR6069 - Alexandra Estvan Hill UCB CNR AG AND RESOURCE ECON "]
[null,null,null,"64202 - Envir Design Scholarships 41179 ",null,"530601 - Credit Card Fees ",null,null,"820212 - Statistics Club at UC Davis ",null,null,null,null,null,null,"GLBEAR6072 - David Zilberman UCB CNR AG AND RESOURCE ECON "]
[null,null,null,"64203 - DANR Master GardenersPlacer CoJunge 41180 ",null,"530602 - Investment Management and Broker Fees ",null,null,"820213 - Steel Bridge Team Chrome Ollie ",null,null,null,null,null,null,"GLBEES0074 - Nina Kelly UCB ESPM ECOSYSTEM SCI DIV GL Only "]
[null,null,null,"64204 - DANR NcandMr Wunderlich 41181 ",null,"530701 - Regulatory Fees Permits and Licenses ",null,null,"820214 - StepUp ",null,null,null,null,null,null,"GLBEES6016 - Ellen Bruno UCB CNR AG  RESOURCE ECON POL "]
[null,null,null,"64205 - DANRNcandMt Reg Frost 41182 ",null,"530702 - Legal Service Fees ",null,null,"820215 - Strategies for Ecology Education Develop and Sustain ",null,null,null,null,null,null,"GLBEES6042 - Kristin Dobbin UCB CNR ENV SCI POLICY MGMT "]
[null,null,null,"64206 - EngEceAccel Partners 41182 ",null,"530703 - Legal Settlements ",null,null,"820216 - Student Advocates in Learning ",null,null,null,null,null,null,"GLBEES6063 - Christina Getz UCB ESPM SOCIETY  ENVIRON DIV "]
[null,null,null,"64207 - Vet MedPmiIntervetNeosporosisConrad 41183 ",null,"530800 - Employee Recruiting Services ",null,null,"820217 - Student Alumni Association ",null,null,null,null,null,null,"GLBEES6068 - Ted Grantham UCB ESPM ECOSYSTEM SCI DIV "]
[null,null,null,"64209 - OvcrItsCev Hypermini ProjectVrs Dnrs 41185 ",null,"530900 - Medical Malpractice Insurance ",null,null,"820218 - Student American Veterinary Medical Association ",null,null,null,null,null,null,"GLBEES6071 - Adina Merenlender UCB ESPM ECOSYSTEM SCI DIV "]
[null,null,null,"64210 - VMSrsCanine Intubation ModelBalaban 41186 ",null,"530909 - Hospital and Professional Malpractice Insurance ",null,null,"820219 - Student Antigenocide Coalition STAND ",null,null,null,null,null,null,"GLBEES6189 - Daniel L Sanchez UCB  ESPM ECOSYSTEM SCIENCE DIV "]
[null,null,null,"64212 - Med PmandR Teaching Hospitals Laver 41188 ",null,"531010 - General Liability Insurance ",null,null,"820220 - Student Assistants to Chancellor Grants ",null,null,null,null,null,null,"GLBEES6197 - Kristen Shive UCB CNR ENV SCI POLICY MGMT "]
[null,null,null,"64213 - Engr Applied Sci Research Yeh 41190 ",null,"531011 - Third Party Auto Insurance ",null,null,"820221 - Student Association of Shelter Veterinarians ",null,null,null,null,null,null,"GLBEES6204 - Jennifer Sowerwine UCB ESPM SOCIETY  ENVIRON DIV "]
[null,null,null,"64217 - Fst Research Ogrydziak 41194 ",null,"531012 - Property Insurance ",null,null,"820222 - Student California Teachers Association ",null,null,null,null,null,null,"GLBEES6218 - William Tietje UCB ESPM ECOSYSTEM SCI DIV "]
[null,null,null,"64218 - Fst Research Krochta 41195 ",null,"531019 - Other Insurance ",null,null,"820223 - Student Energy at UC Davis ",null,null,null,null,null,null,"GLBEES6240 - Robert York UCB ESPM ECOSYSTEM SCI DIV "]
[null,null,null,"64219 - FsandT Research Whitaker 41196 ",null,"531100 - License and Taxes Expense excluding Income ",null,null,"820224 - Student Fashion Association ",null,null,null,null,null,null,"GLBENS6132 - Susana Matias Medrano UCB CNR NUTR SCI  TOXICOLOGY "]
[null,null,null,"64220 - FsandT Research Feeney 41197 ",null,"750200 - UCOP Insurance Appropriations BSASGAEL Expense ",null,null,"820225 - Student Leadership In Green Infrastructure ",null,null,null,null,null,null,"GLBEPA6111 - Peggy Lemaux UCB CNR PLANT  MICROBIAL BIO "]
[null,null,null,"64221 - FsandT Research Merson 41198 ",null,"531200 - GSHIP Self insurance Program ",null,null,"820226 - Student Nutrition Association ",null,null,null,null,null,null,"GLBERK6018 - Van Andrew Butsic UCB ESPM ECOSYSTEM SCIENCE DIV "]
[null,null,null,"64222 - EceMicroYoo 41199 ",null,"531300 - USHIP Self Insurance Program ",null,null,"820227 - Student Selfless Service ",null,null,null,null,null,null,"GLBERK6029 - Kent Daane UCB INSECT BIOLOGY DIV "]
[null,null,null,"64224 - ANR Kings Viticulture Research Roberts 41200 ",null,"750000 - Legal Support Recharge from UCOP OGC ",null,null,"820228 - Student Vet Emergency and Critical Care Society SVECCS ",null,null,null,null,null,null,"GLBERK6058 - Matteo Garbelotto UCB  ESPM ECOSYSTEM SCIENCE DIV "]
[null,null,null,"64229 - AES Pomology Res Lampinen 41203 ",null,"750100 - Legal External Fees and Settlements Allocated Specific from UCOP OGC ",null,null,"820229 - Students Against Suicide ",null,null,null,null,null,null,"GLBERK6139 - Adina Merenlender UCB  ESPM ECOSYSTEM SCIENCE DIV "]
[null,null,null,"64230 - DANR Mercer 4H Support 41203 ",null,"532000 - Facilities Construction Expenses ",null,null,"820230 - Students for Justice in Palestine ",null,null,null,null,null,null,"GLBERN0185 - Constance Lexion UCCE SAN BERNARDINO COUNTY GL Only "]
[null,null,null,"64231 - BAE CA GrapeandTree Fruit League JFT 41204 ",null,"532100 - Short Term Building Lease Rental ",null,null,"820231 - Students for One Health ",null,null,null,null,null,null,"GLBERN6074 - Janet Hartin UCCE SAN BERNARDINO COUNTY "]
[null,null,null,"64233 - DANR Cal Pistachio CommKings 41205 ",null,"532110 - Leases and Rentals Expense Variable Land Building Improvement ",null,null,"820232 - Students for Reproductive Freedom at UC Davis ",null,null,null,null,null,null,"GLBERN6134 - Christopher Mcdonald UCCE SAN BERNARDINO COUNTY "]
[null,null,null,"64234 - EceEngMicro AwardBen Yoo 41205 ",null,"532120 - Leases and Rentals Expense Fixed Land Building Improvements ",null,null,"820233 - Students In Vita ",null,null,null,null,null,null,"GLBERN6150 - Amrita Mukherjee UCCE SAN BERNARDINO COUNTY "]
[null,null,null,"64235 - DANR Ipm Pest ManagementGoodell 41206 ",null,"532130 - Leases and Rentals Expense Clearing Land Building Improvements ",null,null,"820234 - Students of Horticulture and Agronomy ",null,null,null,null,null,null,"GLBERN6213 - Etaferahu Takele UCCE SAN BERNARDINO COUNTY "]
[null,null,null,"64236 - Vet MedCahfs EaclKolliasBaker 41206 ",null,"532200 - Equipment Leases or Rentals ",null,null,"820235 - Students of the Vet Emergency Response Team ",null,null,null,null,null,null,"GLBEVE0647 - John Stachowicz EVOLUTION And ECOLOGY GL Only "]
[null,null,null,"64237 - DANR Merced Fruit Crops ResNorton 41207 ",null,"532201 - Vehicle Rentals or Leases ",null,null,"820236 - Studio 301 Productions ",null,null,null,null,null,null,"GLBEVE0926 - Laci Gerhart EVOLUTION And ECOLOGY GL Only "]
[null,null,null,"64238 - Vet MedMedandEpd Research Hird 41207 ",null,"532202 - Capital Lease Principal ",null,null,"820237 - Success through Education Mentoring ",null,null,null,null,null,null,"GLBEVE1000 - Michael Turelli EVOLUTION AND ECOLOGY GL Only "]
[null,null,null,"64239 - DANR Merced Tree Nut ResHendricks 41208 ",null,"532203 - Capital Lease Other Interest ",null,null,"820238 - Sunatya ",null,null,null,null,null,null,"GLBEVE1338 - Eric Sanford EVOLUTION And ECOLOGY GL Only "]
[null,null,null,"64240 - UCDFEast Asian Studies 41208 ",null,"532204 - Installment Payment Other Principal ",null,null,"820239 - Sunrise Davis ",null,null,null,null,null,null,"GLBEVE1636 - Brian Gaylord EVOLUTION And ECOLOGY GL Only "]
[null,null,null,"64241 - DANR Riverside Kallenbach 41209 ",null,"532205 - Installment Payment Other Interest ",null,null,"820240 - Supporting Survivors W 4Legged Friends ",null,null,null,null,null,null,"GLBEVE2070 - Jeffrey Ross Ibarra EVOLUTION And ECOLOGY GL Only "]
[null,null,null,"64242 - Thiebaud Family Scholarship 41209 ",null,"532210 - Leases and Rentals Expense variable equipment ",null,null,"820241 - Surf Club ",null,null,null,null,null,null,"GLBEVE2123 - Rachael Bay EVOLUTION And ECOLOGY GL Only "]
[null,null,null,"64245 - DANR Ventura ResearchandSupport 41211 ",null,"532220 - Leases and Rentals Expense fixed equipment ",null,null,"820242 - Surf Club at UC Davis ",null,null,null,null,null,null,"GLBEVE2213 - Donald Strong EVOLUTION And ECOLOGY GL Only "]
[null,null,null,"64246 - MandAe Research Margolis 41211 ",null,"532230 - Leases and Rentals Expense Clearing Equipment ",null,null,"820243 - Sustainable Resource Operations ",null,null,null,null,null,null,"GLBEVE2552 - Brian Moore EVOLUTION And ECOLOGY GL Only "]
[null,null,null,"64247 - DANR Kern Vegetable Crop Res 41212 ",null,"532300 - Fuel and Lubricants ",null,null,"820244 - Swim Club at UC Davis ",null,null,null,null,null,null,"GLBEVE2647 - Graham Coop EVOLUTION And ECOLOGY GL Only "]
[null,null,null,"64248 - MaeDiscretionary Funding 41212 ",null,"532301 - Vehicle and Fleet Supplies and Equipment ",null,null,"820245 - SYNERGY ",null,null,null,null,null,null,"GLBEVE2656 - James Doyle EVOLUTION And ECOLOGY GL Only "]
[null,null,null,"64249 - DANR Ipm Bentley Vrs DonorsBarnett 41213 ",null,"532302 - Repairs and Maintenance Expenses ",null,null,"820246 - Taiwanese American Organization TAO ",null,null,null,null,null,null,"GLBEVE2799 - Peter Wainwright EVOLUTION And ECOLOGY GL Only "]
[null,null,null,"64250 - MandAe Smartlab Team Research Klijn 41213 ",null,"532303 - Construction Supplies and Services ",null,null,"820247 - Taiwanese Student Association ",null,null,null,null,null,null,"GLBEVE2881 - Johanna Schmitt EVOLUTION And ECOLOGY GL Only "]
[null,null,null,"64257 - DANR Monterey Plant Pathology 41217 ",null,"532304 - Other Materials or Supplies ",null,null,"820248 - Tango Club ",null,null,null,null,null,null,"GLBEVE3319 - Arthur Shapiro EVOLUTION And ECOLOGY GL Only "]
[null,null,null,"64258 - LandSHistory For GradsMann 41217 ",null,"532305 - Furniture Maintenance and Repairs ",null,null,"820249 - Team HBV ",null,null,null,null,null,null,"GLBEVE3719 - Harris Lewin EVOLUTION And ECOLOGY GL Only "]
[null,null,null,"64259 - VMth Pilot Fund 41218 ",null,"532306 - Furniture Services and Rentals ",null,null,"820250 - Tedxdavis ",null,null,null,null,null,null,"GLBEVE3937 - Marcel Rejmanek EVOLUTION And ECOLOGY GL Only "]
[null,null,null,"64260 - DANR Madera Mcdougald 41219 ",null,"532307 - Other Facility Equipment Maintenance and Repairs ",null,null,"820251 - Telemark Dance Troupe ",null,null,null,null,null,null,"GLBEVE4128 - Gail Patricelli EVOLUTION And ECOLOGY GL Only "]
[null,null,null,"64261 - LandS Library Donations 41219 ",null,"532308 - Landscaping and Grounds Maintenance Services ",null,null,"820252 - Textiles Grad Group ",null,null,null,null,null,null,"GLBEVE4213 - Charles Langley EVOLUTION And ECOLOGY GL Only "]
[null,null,null,"64265 - DANR Fresno 4H Camp Fund 41222 ",null,"532309 - Landscaping Supplies ",null,null,"820253 - The Afterglow Mens Acapella ",null,null,null,null,null,null,"GLBEVE4315 - Artyom Kopp EVOLUTION And ECOLOGY GL Only "]
[null,null,null,"64266 - DANR Kern County Support 41223 ",null,"532310 - Cleaning Supplies and Minor Equipment ",null,null,"820254 - The American Society of Biochemistry ",null,null,null,null,null,null,"GLBEVE4332 - Kate Laskowski EVOLUTION And ECOLOGY GL Only "]
[null,null,null,"64267 - DANR Central Valley Research Support 41224 ",null,"532311 - Custodial Services ",null,null,"820255 - The Amigos Backyard Program ",null,null,null,null,null,null,"GLBEVE4367 - Sebastian Schreiber EVOLUTION And ECOLOGY GL Only "]
[null,null,null,"64268 - VMe LivestockPoultry Res Hird 41225 ",null,"532312 - Waste Removal ",null,null,"820256 - The Beautiful Mind Project ",null,null,null,null,null,null,"GLBEVE4497 - Bruce Rannala EVOLUTION And ECOLOGY GL Only "]
[null,null,null,"64271 - DANR Merced Cotton ResWeir 41227 ",null,"532313 - Laundry Service ",null,null,"820257 - The Belfry Lutheran Episcopal Campus Mi ",null,null,null,null,null,null,"GLBEVE4677 - David Begun EVOLUTION And ECOLOGY GL Only "]
[null,null,null,"64275 - DANR Kings County Support 41231 ",null,"532314 - Linen Rental ",null,null,"820258 - The Body Project At UC Davis ",null,null,null,null,null,null,"GLBEVE4741 - Sharon Strauss EVOLUTION And ECOLOGY GL Only "]
[null,null,null,"64276 - DANR Madera 4H Camarillo 41232 ",null,"532315 - Facility Moving Storage Expenses ",null,null,"820259 - The Diaper Bank Project ",null,null,null,null,null,null,"GLBEVE4763 - Richard Grosberg EVOLUTION And ECOLOGY GL Only "]
[null,null,null,"64279 - DANR Stanislaus Ucce Support Kelly 41235 ",null,"532316 - Facilities and Maintenance Tools and Equipment ",null,null,"820260 - The Film Enthusiasts ",null,null,null,null,null,null,"GLBEVE4922 - Susan Lott EVOLUTION And ECOLOGY GL Only "]
[null,null,null,"64280 - DANR Tulare Ucce Support Kevin Day 41236 ",null,"532400 - Pollution Remediation Cost Expenses ",null,null,"820261 - The Happiness Project ",null,null,null,null,null,null,"GLBEVE5814 - Anya Brown EVOLUTION And ECOLOGY GL Only "]
[null,null,null,"64281 - DANR Tulare Ccia Pima CottonVargas 41237 ",null,"532500 - Pollution Remediation Cost Recovery Current Year Expense ",null,null,"820262 - The Harry Potter Alliance at UC Davis ",null,null,null,null,null,null,"GLBEVE5846 - Elizabeth Crone EVOLUTION And ECOLOGY GL Only "]
[null,null,null,"64282 - DANR South Coast Rsrch Cntr Gift Fund 41238 ",null,"532600 - Greenhouse Gas Cap and Trade Costs ",null,null,"820263 - The Liquid Hotplates ",null,null,null,null,null,null,"GLBGEN2831 - Richard Michelmore UC DAVIS GENOME CENTER GL Only "]
[null,null,null,"64283 - DANR Cen Coast Diamond Star 41239 ",null,"533000 - First 25K of Subcontract Services ",null,null,"820264 - The Lounge Lizards ",null,null,null,null,null,null,"GLBGEN6328 - Blake Myers Genome Center GL Only "]
[null,null,null,"64284 - DANR San Benito Ucce Support Coats 41240 ",null,"533100 - Expense In Excess of 25K On Subcontract Services ",null,null,"820265 - The Math and Applied Math Galois Group ",null,null,null,null,null,null,"GLBIOT1276 - Judith Kjelstrom BIOTECHNOLOGY PROGRAM GL Only "]
[null,null,null,"64285 - DANR San Benito 4H Activiites 41241 ",null,"534001 - Software License Maintenance ",null,null,"820266 - The Navigators at UC Davis ",null,null,null,null,null,null,"GLBMCB0481 - Judy Callis MOLECULAR And CELLULAR BIO GL Only "]
[null,null,null,"64286 - DANR Imperial Support Mayberry 41242 ",null,"534010 - SBITA expense fixed and variable if included in PV calc ",null,null,"820267 - The Soon Movement ",null,null,null,null,null,null,"GLBMCB0596 - Celina Juliano MOLECULAR And CELLULAR BIO GL Only "]
[null,null,null,"64287 - DANR Imperial 4H Support 41243 ",null,"534030 - SBITA expense variable not included in PV ",null,null,"820268 - The Spokes ",null,null,null,null,null,null,"GLBMCB0648 - Silvia Carrasco Garcia MOLECULAR And CELLULAR BIO GL Only "]
[null,null,null,"64288 - DANR Los Angeles Home Ec Support Natha 41244 ",null,"534040 - Accounts payable Clearing SBITA ",null,null,"820269 - The Star Trek Club ",null,null,null,null,null,null,"GLBMCB0650 - Raymond Rodriguez MOLECULAR And CELLULAR BIO GL Only "]
[null,null,null,"64289 - DANR Orange Ucce Support 41245 ",null,"534100 - Computer Network Equipment and Supplies ",null,null,"820270 - The Wildlife Society ",null,null,null,null,null,null,"GLBMCB0674 - Jonathan Scholey MOLECULAR And CELLULAR BIO GL Only "]
[null,null,null,"64290 - DANR Riverside Ucce Support Mauk 41246 ",null,"534101 - Software Purchases ",null,null,"820271 - The Willow Clinic ",null,null,null,null,null,null,"GLBMCB0953 - Kassandra Ori Mckenney MOLECULAR And CELLULAR BIO GL Only "]
[null,null,null,"64291 - DANR San Bernardino Support Garrett 41247 ",null,"534200 - Telecommunications Expense and Accessories ",null,null,"820272 - Theatre and Dance Ensemble ",null,null,null,null,null,null,"GLBMCB0997 - Frederic Chedin MOLECULAR And CELLULAR BIO GL Only "]
[null,null,null,"64292 - DANR San Diego 41248 ",null,"534300 - Printers and Scanners ",null,null,"820273 - Theriogenology Club ",null,null,null,null,null,null,"GLBMCB1125 - John Albeck MOLECULAR And CELLULAR BIO GL Only "]
[null,null,null,"64293 - DANR San Diego Pest Mngmt 41248 ",null,"534301 - Audio and Visual Equipment ",null,null,"820274 - Together Representing Unity and Education ",null,null,null,null,null,null,"GLBMCB1159 - Bruce Draper MOLECULAR And CELLULAR BIO GL Only "]
[null,null,null,"64294 - DANR San Luis Obispo Enfield 41249 ",null,"534309 - Other IT Accessories and Peripherals ",null,null,"820275 - Transfer Student Association ",null,null,null,null,null,null,"GLBMCB1311 - Jerry Hedrick MOLECULAR And CELLULAR BIO GL Only "]
[null,null,null,"64295 - DANR Santa Barbara Gaskell 41250 ",null,"535000 - Medical Professional Fees Physicians ",null,null,"820276 - Trap and Skeet Team ",null,null,null,null,null,null,"GLBMCB1357 - James Letts MOLECULAR And CELLULAR BIO GL Only "]
[null,null,null,"64296 - DANR Ipm 41251 ",null,"535001 - Medical Professional Fees Therapists and Others ",null,null,"820277 - Turkish Student Association ",null,null,null,null,null,null,"GLBMCB1365 - John Lagarias MOLECULAR And CELLULAR BIO GL Only "]
[null,null,null,"64297 - DANR Ipm Bentley 41251 ",null,"535002 - Miscellaneous Patient Care ",null,null,"820278 - Turning Point USA at UC Davis ",null,null,null,null,null,null,"GLBMCB1372 - Mark Sanders MOLECULAR And CELLULAR BIO GL Only "]
[null,null,null,"64299 - DANR Merced Lopez 41253 ",null,"535003 - Cap External Expense Distributed ",null,null,"820279 - Tutors for Inmates ",null,null,null,null,null,null,"GLBMCB1503 - Julie Leary MOLECULAR And CELLULAR BIO GL Only "]
[null,null,null,"64300 - DANR Merced Veg Crops 41254 ",null,"535004 - Cap PPD Adj Incent Refunds ",null,null,"820280 - Tzu Chi Collegiate Association ",null,null,null,null,null,null,"GLBMCB1606 - Gerald Quon MOLECULAR And CELLULAR BIO GL Only "]
[null,null,null,"64301 - DANR Kings Ucr Water Res Prosser Fund 41255 ",null,"535005 - Cap IBNR Expense ",null,null,"820281 - UAEM ",null,null,null,null,null,null,"GLBMCB1702 - Edmund Powers MOLECULAR And CELLULAR BIO GL Only "]
[null,null,null,"64302 - DANR 4H Snell 41255 ",null,"535006 - Cap Future Lost Contracts ",null,null,"820282 - Ultimate Frisbee ",null,null,null,null,null,null,"GLBMCB1719 - John Kiger MOLECULAR And CELLULAR BIO GL Only "]
[null,null,null,"64304 - DANR Riverside Veg Research Aguiar 41257 ",null,"535009 - Patient Care Reimbursement ",null,null,"820283 - Unbound Progression Dance Company ",null,null,null,null,null,null,"GLBMCB1743 - S Chaykin MOLECULAR And CELLULAR BIO GL Only "]
[null,null,null,"64305 - Law SchoolBren Fellow Funds 41258 ",null,"535010 - Patient Care Expenses ",null,null,"820284 - Undergraduate Psychology Association ",null,null,null,null,null,null,"GLBMCB1999 - Oliver Fiehn MOLECULAR And CELLULAR BIO GL Only "]
[null,null,null,"64307 - UCDFUc Davis Connect Program 41260 ",null,"535100 - External Laboratory Services ",null,null,"820285 - Undergraduate Students for One ",null,null,null,null,null,null,"GLBMCB2093 - Robert Grey MOLECULAR And CELLULAR BIO GL Only "]
[null,null,null,"64318 - Eng CeandM Research Kreamer 41271 ",null,"535101 - Transcription Services ",null,null,"820286 - Undergraduate Students For One Health ",null,null,null,null,null,null,"GLBMCB2107 - Kenneth Hilt MOLECULAR And CELLULAR BIO GL Only "]
[null,null,null,"64319 - EcsSchlumberger FndtnWu 41272 ",null,"535109 - Other Purchased Medical Services ",null,null,"820287 - Undocumented Graduate Student Union ",null,null,null,null,null,null,"GLBMCB2225 - David K Wilson MOLECULAR And CELLULAR BIO GL Only "]
[null,null,null,"64320 - AandEsVitandEnologyChaine Scholarship Fund 41273 ",null,"536001 - In State Airfare ",null,null,"820288 - UNICEF ",null,null,null,null,null,null,"GLBMCB2256 - Richard Nuccitelli MOLECULAR And CELLULAR BIO GL Only "]
[null,null,null,"64321 - DANR Fresno Veg Crops Turini 41274 ",null,"536002 - In State Lodging ",null,null,"820289 - Universities Allied for Essential Medicine ",null,null,null,null,null,null,"GLBMCB2265 - Paul Stumpf MOLECULAR And CELLULAR BIO GL Only "]
[null,null,null,"64323 - Som Med Neuro Research Alsaadi 41276 ",null,"536003 - In State Transportation ",null,null,"820290 - Unpacking Professionalism ",null,null,null,null,null,null,"GLBMCB2333 - Francis Mcnally MOLECULAR And CELLULAR BIO GL Only "]
[null,null,null,"64325 - Vet MedDeans Off James G Morris 41278 ",null,"536004 - In State Meals Incidentals ",null,null,"820291 - Vet Aide Club ",null,null,null,null,null,null,"GLBMCB2380 - Diana Myles MOLECULAR And CELLULAR BIO GL Only "]
[null,null,null,"64327 - CcahSarnoffShelterInfectious Diseases 41280 ",null,"536005 - In State Travel Expense ",null,null,"820292 - Vet Public Health ",null,null,null,null,null,null,"GLBMCB2455 - Kenneth Burtis MOLECULAR And CELLULAR BIO GL Only "]
[null,null,null,"64328 - DANRCentral Valley4H Support Snell 41281 ",null,"536011 - Out of State Airfare ",null,null,"820293 - Veterinary Business Management Club ",null,null,null,null,null,null,"GLBMCB2505 - Christopher Fraser MOLECULAR And CELLULAR BIO GL Only "]
[null,null,null,"64329 - AgandEnvSciVe The Rhone Rangers Scholar 41282 ",null,"536012 - Out of State Lodging ",null,null,"820294 - Veterinary Pathology Club ",null,null,null,null,null,null,"GLBMCB2634 - Lesilee Rose MOLECULAR And CELLULAR BIO GL Only "]
[null,null,null,"64330 - Vet Med Pmi Research Verneau 41283 ",null,"536013 - Out of State Transportation ",null,null,"820295 - Veterinary Public Health Organization ",null,null,null,null,null,null,"GLBMCB2771 - R Holland Cheng MOLECULAR And CELLULAR BIO GL Only "]
[null,null,null,"64332 - SomMed School WineandArt Auction Gift 41285 ",null,"536014 - Out of State Meals Incidentals ",null,null,"820296 - Veterinary Student Outreach VSO ",null,null,null,null,null,null,"GLBMCB2945 - Daniel Starr MOLECULAR And CELLULAR BIO GL Only "]
[null,null,null,"64335 - All Uc Group In Econ History Conference 41288 ",null,"536015 - Out of State Travel Expense ",null,null,"820297 - Vet Med Health and Wellness Club ",null,null,null,null,null,null,"GLBMCB3014 - Marilynn Etzler MOLECULAR And CELLULAR BIO GL Only "]
[null,null,null,"64338 - AeandSPomology Research Holtz 41291 ",null,"536021 - International Airfare ",null,null,"820298 - Video Game Orchestra at UC Davis ",null,null,null,null,null,null,"GLBMCB3415 - Che Kun Shen MOLECULAR And CELLULAR BIO GL Only "]
[null,null,null,"64339 - AandEsBaeMcdonaldS CorporationSingh 41292 ",null,"536022 - International Lodging ",null,null,"820299 - Vietnamese Cancer Awareness Research Education ",null,null,null,null,null,null,"GLBMCB3426 - Mark Mcnamee MOLECULAR And CELLULAR BIO GL Only "]
[null,null,null,"64341 - Plant Science Veg Crops Research AJWA 41293 ",null,"536023 - International Transportation ",null,null,"820300 - Vietnamese Student Association ",null,null,null,null,null,null,"GLBMCB3450 - Larry Sprechman MOLECULAR And CELLULAR BIO GL Only "]
[null,null,null,"64343 - SomNeurology Support Alsaadi 41295 ",null,"536024 - International Meals Incidentals ",null,null,"820301 - Vine and Branches ",null,null,null,null,null,null,"GLBMCB3518 - Carol Erickson MOLECULAR And CELLULAR BIO GL Only "]
[null,null,null,"64344 - SomMedRadiologyRsdaCarpenter 41296 ",null,"536025 - International Travel Expense ",null,null,"820302 - Virtual Youth Buddies ",null,null,null,null,null,null,"GLBMCB3527 - Jawdat Al Bassam MOLECULAR And CELLULAR BIO GL Only "]
[null,null,null,"64348 - ICA MultiUse Athletic Stadium Campaign 41300 ",null,"536093 - Travel Reimbursement ",null,null,"820303 - Vision Dance Troupe ",null,null,null,null,null,null,"GLBMCB3917 - Sean Burgess MOLECULAR And CELLULAR BIO GL Only "]
[null,null,null,"64349 - Im Valente Foundation 41301 ",null,"536200 - Employee Noncash Awards and Other Gifts ",null,null,"820304 - Volunteers Around the World ",null,null,null,null,null,null,"GLBMCB3934 - Carl Schmid MOLECULAR And CELLULAR BIO GL Only "]
[null,null,null,"64350 - Env HortVarious DonorsBarbour 41302 ",null,"536300 - NonEmployee Gifts ",null,null,"820305 - Water Safety Council ",null,null,null,null,null,null,"GLBMCB4008 - Walter Leal MOLECULAR And CELLULAR BIO GL Only "]
[null,null,null,"64351 - FsandTYeast Culture Collection End 41303 ",null,"536400 - Entertainment Expenses ",null,null,"820306 - West Coast Bhangra ",null,null,null,null,null,null,"GLBMCB4057 - Charles Gasser MOLECULAR And CELLULAR BIO GL Only "]
[null,null,null,"64352 - VMth CornellandMax Lewis Memorial Fd 41304 ",null,"536401 - Entertainment Alcoholic Beverages ",null,null,"820307 - Wild Campus ",null,null,null,null,null,null,"GLBMCB4297 - Enoch Baldwin MOLECULAR And CELLULAR BIO GL Only "]
[null,null,null,"64353 - VitandEnology Le Reve Scholarship 41305 ",null,"536500 - Business Meeting Expense ",null,null,"820308 - Wilderness Medicine Club ",null,null,null,null,null,null,"GLBMCB4344 - Deborah Kimbrell MOLECULAR And CELLULAR BIO GL Only "]
[null,null,null,"64355 - DANR Cvr Viticulture 41307 ",null,"536600 - Honorarium Payments and Expense ",null,null,"820309 - Wildlife and Aquatic Animal Medicine Club ",null,null,null,null,null,null,"GLBMCB4371 - Richard McKenney MOLECULAR And CELLULAR BIO GL Only "]
[null,null,null,"64356 - VitandEnol Res Wolpert 41308 ",null,"536601 - Stipends Non Student ",null,null,"820310 - Women in Computer Science ",null,null,null,null,null,null,"GLBMCB4528 - Joanne Engebrecht MOLECULAR And CELLULAR BIO GL Only "]
[null,null,null,"64357 - Med PsychiatryHilty Scmhtc Educ Fund 41309 ",null,"536700 - Conference and Registration Fees ",null,null,"820311 - Women in Data ",null,null,null,null,null,null,"GLBMCB4669 - Kenneth Kaplan MOLECULAR And CELLULAR BIO GL Only "]
[null,null,null,"64358 - VitandEnol Res ODonnell 41310 ",null,"537000 - Impairments L and ",null,null,"820312 - Women in Science Society ",null,null,null,null,null,null,"GLBMCB4680 - Marina Crowder MOLECULAR And CELLULAR BIO GL Only "]
[null,null,null,"64359 - Genome Ctr DiversaBenham 41311 ",null,"537050 - Impairments Parking Lot Improvements ",null,null,"820313 - Women in STEM at UC Davis ",null,null,null,null,null,null,"GLBMCB4832 - Peter Armstrong MOLECULAR And CELLULAR BIO GL Only "]
[null,null,null,"64360 - VM SurgandRad Res Maggs 41312 ",null,"537100 - Impairments Other Land Improvements ",null,null,"820314 - Women in Transportation Seminar ",null,null,null,null,null,null,"GLBMCB4849 - Mona Monfared MOLECULAR And CELLULAR BIO GL Only "]
[null,null,null,"64361 - Exercise Biology Res Hawkins 41313 ",null,"537150 - Impairments Infrastructure ",null,null,"820315 - Womens List ",null,null,null,null,null,null,"GLBMCB5010 - Ian Korf MOLECULAR And CELLULAR BIO GL Only "]
[null,null,null,"64362 - Pom Research Lampinen 41314 ",null,"537200 - Impairments Building and Improvements Service Concession ",null,null,"820316 - Womens Transportation Seminar ",null,null,null,null,null,null,"GLBMCB5450 - Jennifer Cash MOLECULAR And CELLULAR BIO GL Only "]
[null,null,null,"64363 - EntomArt Sci World Of Insects 41315 ",null,"537250 - Impairments Building and Improvements Student Housing ",null,null,"820317 - Womens Veterinary Leadership Development Initiative ",null,null,null,null,null,null,"GLBMCB6321 - Alice Accorsi MOLECULAR And CELLULAR BIO GL Only "]
[null,null,null,"64365 - NematologyDr Hart Memorial Fd 41317 ",null,"537300 - Impairment of Building and Improvements Parking Structures ",null,null,"820318 - Young Americans for Liberty YAL ",null,null,null,null,null,null,"GLBMCB6329 - Yale Goldman Molecular and Cellular Biology GL Only "]
[null,null,null,"64366 - ChemTaigenLinKurth 41318 ",null,"537350 - Impairments Building and Improv Leasehold Improvements ",null,null,"820319 - Young Democratic Socialists of America ",null,null,null,null,null,null,"GLBMMG0007 - Kenjiro Quides MICROBIOLOGY And MOLEC GENETICS GL Only "]
[null,null,null,"64367 - VMthCello Ophthalology Suite Renovation 41319 ",null,"537400 - Impairments Building and Improvements Other ",null,null,"820320 - Youth Empowerment Program YEP ",null,null,null,null,null,null,"GLBMMG0008 - Wolf D Heyer MICROBIOLOGY And MOLEC GENETICS GL Only "]
[null,null,null,"64368 - DANR Ventura Ucce Support Daugovish 41320 ",null,"537440 - Impairments Building and Improvements General Improvements ",null,null,"820321 - Zero Waste and Sustainability Club ",null,null,null,null,null,null,"GLBMMG0592 - David Pratt MICROBIOLOGY And MOLEC GENETICS GL Only "]
[null,null,null,"64370 - Thiebaud Family Scholarship 41322 ",null,"537450 - Impairments Equipment ",null,null,"820322 - Making Waves Academy ",null,null,null,null,null,null,"GLBMMG0691 - Stephen Kowalczykowski MICROBIOLOGY And MOLEC GENETICS GL Only "]
[null,null,null,"64382 - OtolaryngologyVol Services Gift 41334 ",null,"537500 - Impairments Software Less than 5M ",null,null,"820323 - Swords and S and als ",null,null,null,null,null,null,"GLBMMG0739 - Su Ju Lin MICROBIOLOGY And MOLEC GENETICS GL Only "]
[null,null,null,"64383 - Med Surg Vascular Lab 41335 ",null,"537550 - Impairments Greater than or Equal to 5M ",null,null,"820324 - Vietnamese American Law Students Association ",null,null,null,null,null,null,"GLBMMG0986 - Mark Wheelis MICROBIOLOGY And MOLEC GENETICS GL Only "]
[null,null,null,"64384 - WildlifeandFish Research Klimley 41336 ",null,"537600 - Impairments Intangibles ",null,null,"820325 - THE LEARNED SOCIETY FOR CLASSICAL JAPANESE RESEARCH ",null,null,null,null,null,null,"GLBMMG1212 - Sean Collins MICROBIOLOGY And MOLEC GENETICS GL Only "]
[null,null,null,"64387 - Gs Falke MathewPlant ProtandPest 41339 ",null,"537650 - Impairments Libraries and Collections ",null,null,"820327 - Quimicos Para La Comunidad ",null,null,null,null,null,null,"GLBMMG1282 - Changil Hwang MICROBIOLOGY And MOLEC GENETICS GL Only "]
[null,null,null,"64388 - ANR4H YouthAdult Partnership 41340 ",null,"537660 - Asset impairment expense Intangibles subscription asset SBITA ",null,null,"820328 - ColorStack ",null,null,null,null,null,null,"GLBMMG1931 - Eric Mann MICROBIOLOGY And MOLEC GENETICS GL Only "]
[null,null,null,"64389 - Bae Rp Singh Research 41341 ",null,"537700 - Impairments Special Collections ",null,null,"820329 - Agua de Vida Ministerio Hispano ",null,null,null,null,null,null,"GLBMMG2120 - Mitchell Singer MICROBIOLOGY And MOLEC GENETICS GL Only "]
[null,null,null,"64390 - Med Imen Diabetes ResRutledge 41342 ",null,"538000 - Facilities and Administration Costs FA ",null,null,"820330 - Physics Club ",null,null,null,null,null,null,"GLBMMG2254 - Merna Villarejo MICROBIOLOGY And MOLEC GENETICS GL Only "]
[null,null,null,"64391 - Hedgecock Gift Account 41343 ",null,"538100 - Facilities and Administration FA Offset Recovery ",null,null,"823000 - Alpha Chi Omega ",null,null,null,null,null,null,"GLBMMG2336 - Priya Shah MICROBIOLOGY And MOLEC GENETICS GL Only "]
[null,null,null,"64392 - Ece HeritageUltraFast Optics 41344 ",null,"539000 - Printing of Forms ",null,null,"823001 - Alpha Delta Pi ",null,null,null,null,null,null,"GLBMMG2421 - Paul Baumann MICROBIOLOGY And MOLEC GENETICS GL Only "]
[null,null,null,"64393 - MaeSpace Ed Research Seminar 41345 ",null,"539001 - Printing of Books and Publications ",null,null,"823002 - Alpha Epsilon Pi ",null,null,null,null,null,null,"GLBMMG2586 - Katherine Ralston MICROBIOLOGY And MOLEC GENETICS GL Only "]
[null,null,null,"64394 - EngComp SciMTA GiftWalters 41346 ",null,"539002 - Printing Photography and Other Materials ",null,null,"823003 - Alpha Gamma Rho ",null,null,null,null,null,null,"GLBMMG3003 - Stanley Artz MICROBIOLOGY And MOLEC GENETICS GL Only "]
[null,null,null,"64395 - CahfsEacl Stanley Magna International 41347 ",null,"539100 - Freight and Shipping Services ",null,null,"823004 - Alpha Kappa Alpha Sorority ",null,null,null,null,null,null,"GLBMMG3070 - Neil Hunter MICROBIOLOGY And MOLEC GENETICS GL Only "]
[null,null,null,"64396 - VMWhc So Ca Ecosystem Health Program 41348 ",null,"539200 - Royalty and Patent Expenses ",null,null,"823005 - Alpha Kappa Delta Phi ",null,null,null,null,null,null,"GLBMMG3105 - Scott Dawson MICROBIOLOGY And MOLEC GENETICS GL Only "]
[null,null,null,"64397 - DANR Cvr Tomato Trials Murray 41349 ",null,"539300 - Bad Debt Expense ",null,null,"823006 - Alpha Kappa Psi ",null,null,null,null,null,null,"GLBMMG3226 - Jacqueline Barlow MICROBIOLOGY And MOLEC GENETICS GL Only "]
[null,null,null,"64398 - UCDMC AmbulatoryPhys Continuing Ed 41350 ",null,"539400 - n ",null,null,"823007 - Alpha Phi ",null,null,null,null,null,null,"GLBMMG3258 - Lifeng Xu MICROBIOLOGY And MOLEC GENETICS GL Only "]
[null,null,null,"64399 - Mae Design Clinic Project 41351 ",null,"539500 - Nonpayroll Federal Tax Expense ",null,null,"823008 - Alpha Phi Omega ",null,null,null,null,null,null,"GLBMMG3292 - Samuel Diaz MICROBIOLOGY And MOLEC GENETICS GL Only "]
[null,null,null,"64400 - AES Env Tox Ag Chem 41352 ",null,"539501 - Nonpayroll State Tax Expense ",null,null,"823009 - Alpha Pi Sigma Sorority Inc ",null,null,null,null,null,null,"GLBMMG3432 - Joshua Wood MICROBIOLOGY And MOLEC GENETICS GL Only "]
[null,null,null,"64401 - Samuel C Allen Scholarship Foundation 41353 ",null,"539502 - Fines and Penalties ",null,null,"823010 - Alpha Sigma Phi ",null,null,null,null,null,null,"GLBMMG3456 - Miriam Markum MICROBIOLOGY And MOLEC GENETICS GL Only "]
[null,null,null,"64402 - VMSrs Dept Radiologists 41354 ",null,"539503 - Cancellation Expense ",null,null,"823011 - Beta Theta Pi ",null,null,null,null,null,null,"GLBMMG3612 - Jarue Manning MICROBIOLOGY And MOLEC GENETICS GL Only "]
[null,null,null,"64404 - VM Golden Boy Memorial Scholarship 41356 ",null,"539504 - Loan Write Off Uncollectable ",null,null,"823012 - Chi Delta Theta ",null,null,null,null,null,null,"GLBMMG3614 - J Ingraham MICROBIOLOGY And MOLEC GENETICS GL Only "]
[null,null,null,"64406 - Ecs Michigan UnivMohapatra 41358 ",null,"539505 - Collection Expense ",null,null,"823013 - Chi Epsilon ",null,null,null,null,null,null,"GLBMMG3621 - Mariel Vazquez MICROBIOLOGY And MOLEC GENETICS GL Only "]
[null,null,null,"64407 - CCAHAn Hlth Trust Genetics 41359 ",null,"539506 - Cancellation Interest Loan Exp ",null,null,"823014 - Chi Omega ",null,null,null,null,null,null,"GLBMMG3727 - Rebecca Parales MICROBIOLOGY And MOLEC GENETICS GL Only "]
[null,null,null,"64408 - Med Oto Residents Kossner 41360 ",null,"539507 - Cancellation Principal Loan Exp ",null,null,"823015 - Chi Phi Fraternity ",null,null,null,null,null,null,"GLBMMG3764 - Kazuhiro Shiozaki MICROBIOLOGY And MOLEC GENETICS GL Only "]
[null,null,null,"64409 - Plant Path Sunny Lowe Memorial Fund 41361 ",null,"539508 - Loan Interest Write Off ",null,null,"823016 - Davis Delta Chi ",null,null,null,null,null,null,"GLBMMG3878 - John Roth MICROBIOLOGY And MOLEC GENETICS GL Only "]
[null,null,null,"64410 - UCDFD bs Cost Recovery Opp For Dist Cam 41362 ",null,"539509 - Loan Prinicipal Write Off ",null,null,"823017 - Delta Delta Delta ",null,null,null,null,null,null,"GLBMMG4069 - John Meeks MICROBIOLOGY And MOLEC GENETICS GL Only "]
[null,null,null,"64415 - VMPMI Peter C Kennedy Fellowship 41367 ",null,"539510 - Loan Interest Assignments ",null,null,"823018 - Delta Epsilon Mu ",null,null,null,null,null,null,"GLBMMG4077 - Jonathan Bragg MICROBIOLOGY And MOLEC GENETICS GL Only "]
[null,null,null,"64416 - AAES Env Tox IR4 Regional Program Donors 41368 ",null,"539511 - Loan Prinicipal Assignments ",null,null,"823019 - Delta Gamma Fraternity ",null,null,null,null,null,null,"GLBMMG4736 - Valley Stewart MICROBIOLOGY And MOLEC GENETICS GL Only "]
[null,null,null,"64418 - DANR San Joaquin Canevari 41370 ",null,"539530 - Donations ",null,null,"823020 - Delta Gamma Sorority ",null,null,null,null,null,null,"GLBMMG4920 - Michele Igo MICROBIOLOGY And MOLEC GENETICS GL Only "]
[null,null,null,"64419 - DANR Cvr Fresno Wather Station Vasque 41371 ",null,"539531 - Employee Disaster Payments ",null,null,"823021 - Delta Lambda Phi ",null,null,null,null,null,null,"GLBMMG4963 - Douglas Nelson MICROBIOLOGY And MOLEC GENETICS GL Only "]
[null,null,null,"64420 - DANR CcandSo RegViticulture 41372 ",null,"539590 - Cash Over and Short ",null,null,"823022 - Delta Sigma Pi ",null,null,null,null,null,null,"GLBMMG5481 - Satoshi Namekawa MICROBIOLOGY And MOLEC GENETICS GL Only "]
[null,null,null,"64423 - ANR4H National Conversation 41375 ",null,"539591 - Inventory Offset ",null,null,"823023 - Delta Sigma Theta Sorority ",null,null,null,null,null,null,"GLBNPB0094 - Rebecca Calisi NEURO PHYSIO And BEHAVIOR GL Only "]
[null,null,null,"64425 - Eng Comp Sci Sprint United Mgm Mukherjee 41376 ",null,"539999 - Other Miscellaneous and Other Operating Expense ",null,null,"823024 - Delta Xi Phi Multicultural Sorority ",null,null,null,null,null,null,"GLBNPB0102 - Natalia Caporale NEURO PHYSIO And BEHAVIOR GL Only "]
[null,null,null,"64426 - Med Imgm Vte Rsch White 41377 ",null,"750300 - UCOP Assessment Fees Expense ",null,null,"823025 - Gamma Zeta Alpha Fraternity Inc ",null,null,null,null,null,null,"GLBNPB0376 - Stacey Combes NEURO PHYSIO And BEHAVIOR GL Only "]
[null,null,null,"64427 - Med Impm Hospitalist Education Fund Gill 41378 ",null,"750400 - UC Path Appropriations Fees from UCOP ",null,null,"823026 - Interfraternity Council IFC ",null,null,null,null,null,null,"GLBNPB0424 - John Werner NEURO PHYSIO And BEHAVIOR GL Only "]
[null,null,null,"64429 - Som Med Ophth Research Werner 41380 ",null,"750500 - Other UCOP Expense Appropriations Operating Expense ",null,null,"823027 - Kappa Alpha Theta ",null,null,null,null,null,null,"GLBNPB0463 - Erwin Bautista NEURO PHYSIO And BEHAVIOR GL Only "]
[null,null,null,"64430 - AES Nutrition Zinc Nutrition and Hlth 41381 ",null,"540000 - Depreciation Parking Lot Improvements ",null,null,"823028 - Kappa Gamma Delta ",null,null,null,null,null,null,"GLBNPB0484 - Ann Hedrick NEURO PHYSIO And BEHAVIOR GL Only "]
[null,null,null,"64431 - ANR4H Equipment 41382 ",null,"540100 - Depreciation Other Land Improvements ",null,null,"823029 - Kappa Kappa Gamma ",null,null,null,null,null,null,"GLBNPB0949 - Keith Williams NEURO PHYSIO And BEHAVIOR GL Only "]
[null,null,null,"64435 - CAES Entom Urban Entomology 41386 ",null,"541000 - Depreciation Infrastructure Expenses ",null,null,"823030 - Kappa Psi Epsilon Sorority ",null,null,null,null,null,null,"GLBNPB0963 - Andrew Ishida NEURO PHYSIO And BEHAVIOR GL Only "]
[null,null,null,"64436 - VMSrs Chasehawk International Snyder 41387 ",null,"542000 - Depreciation Building and Improvements Service Concession Arrangements ",null,null,"823031 - Lambda Omicron Xi ",null,null,null,null,null,null,"GLBNPB1022 - Rishidev Chaudhuri NEURO PHYSIO And BEHAVIOR GL Only "]
[null,null,null,"64437 - CAES Entom Urban Entomology Flint 41388 ",null,"542100 - Depreciation Building and Improvements Student housing facilities ",null,null,"823032 - Lambda Sigma Gamma Sorority Inc ",null,null,null,null,null,null,"GLBNPB1053 - Pamela Pappone NEURO PHYSIO And BEHAVIOR GL Only "]
[null,null,null,"64439 - EngCivilandEnv Eng Condolence Fund 41390 ",null,"542200 - Depreciation Building and Improvements Parking structures ",null,null,"823033 - Lambda Theta Alpha ",null,null,null,null,null,null,"GLBNPB1063 - Alexander Mogilner NEURO PHYSIO And BEHAVIOR GL Only "]
[null,null,null,"64440 - Phys SciandEngr Library Support 41391 ",null,"542300 - Depreciation Building and Improvements Leasehold improvements ",null,null,"823034 - Lambda Theta Nu Sorority ",null,null,null,null,null,null,"GLBNPB1243 - Talitha Van Der Meulen NEURO PHYSIO And BEHAVIOR GL Only "]
[null,null,null,"64441 - CAES EntomOrchard Park Greenhouse 41392 ",null,"542400 - Depreciation Building and Improvements Other ",null,null,"823035 - Lambda Theta Phi ",null,null,null,null,null,null,"GLBNPB1316 - Lucas Smith NEURO PHYSIO And BEHAVIOR GL Only "]
[null,null,null,"64444 - VMSrs Sterling Hutto Memorial Fund 41395 ",null,"542900 - Depreciation Building and Improvements General Improvements ",null,null,"823036 - Lambda Theta Phi Latin Fraternity Inc ",null,null,null,null,null,null,"GLBNPB1393 - John Horowitz NEURO PHYSIO And BEHAVIOR GL Only "]
[null,null,null,"64446 - VM Whc Seadoc Society 41397 ",null,"543000 - Depreciation Capitalized Equipment ",null,null,"823037 - Nu Alpha Kappa Fraternity Inc ",null,null,null,null,null,null,"GLBNPB1795 - Diasynou Fioravante NEURO PHYSIO And BEHAVIOR GL Only "]
[null,null,null,"64447 - Vet Med Mb General Research 41398 ",null,"543001 - Depreciation Capitalized Equip UCDMC Only Furniture and Equip ",null,null,"823038 - Order of Omega ",null,null,null,null,null,null,"GLBNPB1826 - Brian Mulloney NEURO PHYSIO And BEHAVIOR GL Only "]
[null,null,null,"64448 - AgEsandPResearchOrlove 41399 ",null,"544000 - Amortization Software Greater than 5M ",null,null,"823039 - Phi Alpha Theta ",null,null,null,null,null,null,"GLBNPB2119 - James Boda NEURO PHYSIO And BEHAVIOR GL Only "]
[null,null,null,"64449 - LandSArtArts Bridge Braitmayer 41400 ",null,"544100 - Amortization Software less than 5M ",null,null,"823040 - Phi Beta Sigma ",null,null,null,null,null,null,"GLBNPB2167 - Aldrin Gomes NEURO PHYSIO And BEHAVIOR GL ONLY "]
[null,null,null,"64451 - UCDF Astronaut Alumni Schp 41402 ",null,"545000 - Amortization Intangibles ",null,null,"823041 - Phi Delta Epsilon ",null,null,null,null,null,null,"GLBNPB2170 - David Hawkins NEURO PHYSIO And BEHAVIOR GL Only "]
[null,null,null,"64452 - LandS Music University Chours 41403 ",null,"545100 - Amortization Expenses for Intangible Asset ROU ",null,null,"823042 - Phi Delta Theta ",null,null,null,null,null,null,"GLBNPB2259 - William Debello NEURO PHYSIO And BEHAVIOR GL Only "]
[null,null,null,"64455 - Vet MedVM ExtVet Leadership Edu Proj 41406 ",null,"546000 - Depreciation Exp Library and Collection ",null,null,"823043 - Phi Delta Theta Fraternity ",null,null,null,null,null,null,"GLBNPB2306 - Karen Zito NEURO PHYSIO And BEHAVIOR GL Only "]
[null,null,null,"64456 - Hcd Iad 195A Support 41407 ",null,"547000 - Amortization Expense ROU Finance Lease for LAND ",null,null,"823044 - Phi Gamma Delta ",null,null,null,null,null,null,"GLBNPB2315 - Mark Huising NEURO PHYSIO And BEHAVIOR GL Only "]
[null,null,null,"64457 - VMCehNutritional Research 41408 ",null,"547010 - Amortization Expense ROU Finance Lease for Buildings ",null,null,"823045 - Pi Beta Phi ",null,null,null,null,null,null,"GLBNPB2337 - Lee Miller NEURO PHYSIO And BEHAVIOR GL Only "]
[null,null,null,"64458 - SOM Med NeurologyEpilepsy Alsaadi 41409 ",null,"547020 - Amortization Expense ROU Finance Lease for Equipment ",null,null,"823046 - Pi Kappa Phi ",null,null,null,null,null,null,"GLBNPB2403 - John Furlow NEURO PHYSIO And BEHAVIOR GL Only "]
[null,null,null,"64459 - AandEsWfandCResearch Suchanek 41410 ",null,"548000 - Amortization expense intangibles subscription asset SBITA ",null,null,"823047 - Psi Chi Omega ",null,null,null,null,null,null,"GLBNPB2646 - Robert Holly NEURO PHYSIO And BEHAVIOR GL Only "]
[null,null,null,"64461 - Med Neurology Neurobehavioral SysWoods 41412 ",null,"550000 - Utilities Maintenance and Repairs Expenses ",null,null,"823048 - Sigma Alpha ",null,null,null,null,null,null,"GLBNPB2692 - John Wingfield NEURO PHYSIO And BEHAVIOR GL Only "]
[null,null,null,"64463 - UCD Connect 41414 ",null,"550001 - Utilities Maintenance and Repairs Supplies and Minor Equipment ",null,null,"823049 - Sigma Alpha Epsilon Pi ",null,null,null,null,null,null,"GLBNPB2827 - W Weidner NEURO PHYSIO And BEHAVIOR GL Only "]
[null,null,null,"64464 - Food Sci Research Price 41415 ",null,"550100 - Utilities Natural Gas Delivery and Usage ",null,null,"823050 - Sigma Alpha Zeta Sorority Inc ",null,null,null,null,null,null,"GLBNPB2932 - Mitchell Sutter NEURO PHYSIO And BEHAVIOR GL Only "]
[null,null,null,"64465 - Vet MedViral Hemorrhagic Septicemia Vir 41416 ",null,"550200 - Utilities Electricity Delivery and Usage ",null,null,"823051 - Sigma Chi ",null,null,null,null,null,null,"GLBNPB3025 - Marilyn Ramenofsky NEURO PHYSIO And BEHAVIOR GL Only "]
[null,null,null,"64466 - VMtrc Atwill Hetch Hetchy 41417 ",null,"550300 - Utilities Water and Sewer Expense ",null,null,"823052 - Sigma Delta Alpha Fraternity ",null,null,null,null,null,null,"GLBNPB3032 - Grace Rosenquist NEURO PHYSIO And BEHAVIOR GL Only "]
[null,null,null,"64467 - Med Sur Research Young 41418 ",null,"550400 - Residential Garbage and Waste Services ",null,null,"823053 - Sigma Kappa Rho ",null,null,null,null,null,null,"GLBNPB3208 - James Shaffrath NEURO PHYSIO And BEHAVIOR GL Only "]
[null,null,null,"64468 - DANR San Luis Obispo CoMaster Grdn 41419 ",null,"550401 - Utilities Oil ",null,null,"823054 - Sigma Lambda Beta ",null,null,null,null,null,null,"GLBNPB3235 - Earl Carstens NEURO PHYSIO And BEHAVIOR GL Only "]
[null,null,null,"64469 - Med RadiologyBoston Scientific 41420 ",null,"550402 - Utilities Propane and Butane Gas ",null,null,"823055 - Sigma Lambda Beta International Fraternity ",null,null,null,null,null,null,"GLBNPB3284 - Gabrielle Nevitt NEURO PHYSIO And BEHAVIOR GL Only "]
[null,null,null,"64470 - Bml Eva Mulder Student Asst Fund 41421 ",null,"550409 - Other Utilities ",null,null,"823056 - Sigma Lambda Gamma National Sorority Inc ",null,null,null,null,null,null,"GLBNPB3326 - Martin Wilson NEURO PHYSIO And BEHAVIOR GL Only "]
[null,null,null,"64471 - Food Sci General FoodPrice 41422 ",null,"560000 - Transfer Fund to Grants ",null,null,"823057 - Sigma Mu Delta Premedical Fraternity ",null,null,null,null,null,null,"GLBNPB3412 - Kenneth Britten NEURO PHYSIO And BEHAVIOR GL Only "]
[null,null,null,"64472 - Ag Econ Research Alston 41423 ",null,"560001 - Gift Fee Transfer to Regents ",null,null,"823058 - Sigma Nu Fraternity ",null,null,null,null,null,null,"GLBNPB3449 - Jack Goldberg NEURO PHYSIO And BEHAVIOR GL Only "]
[null,null,null,"64473 - AES Nutrition Research Hwang 41424 ",null,"560002 - Infrastructure Fee ",null,null,"823059 - Sigma Omega Nu Kappa Colony ",null,null,null,null,null,null,"GLBNPB3626 - Connie Champagne NEURO PHYSIO And BEHAVIOR GL Only "]
[null,null,null,"64474 - Pulmonary MedLouie 41425 ",null,"560003 - Transfer Endowment Payout to Regents ",null,null,"823060 - Sigma Phi Epsilon ",null,null,null,null,null,null,"GLBNPB3730 - Chuck Fuller NEURO PHYSIO And BEHAVIOR GL Only "]
[null,null,null,"64476 - Vet MedWildlife Health Foundation 41427 ",null,"560010 - General Operations Fees and Assessments ",null,null,"823061 - Sigma Pi Alpha Sorority Inc ",null,null,null,null,null,null,"GLBNPB3824 - Barbara Horwitz NEURO PHYSIO And BEHAVIOR GL Only "]
[null,null,null,"64477 - DANR Ucce 4Hh Leaders Confrence 41428 ",null,"560011 - Board Expense ",null,null,"823062 - Tau Kappa Epsilon ",null,null,null,null,null,null,"GLBNPB3851 - Leo Chalupa NEURO PHYSIO And BEHAVIOR GL Only "]
[null,null,null,"64478 - OvcrMclaughlin Gift Fund 41429 ",null,"560012 - Dues and Subscriptions ",null,null,"823063 - Theta Chi Fraternity ",null,null,null,null,null,null,"GLBNPB3854 - Jochen Ditterich NEURO PHYSIO And BEHAVIOR GL Only "]
[null,null,null,"64479 - Crsp Conference Gift Acct 41430 ",null,"560013 - Facility Fees ",null,null,"823064 - Theta Tau ",null,null,null,null,null,null,"GLBNPB4026 - Karen Ryan NEURO PHYSIO And BEHAVIOR GL Only "]
[null,null,null,"64480 - Bae Conagra FoodsZhongli 41431 ",null,"560020 - Member Acquisition ",null,null,"823065 - United Sorority and Fraternity Council ",null,null,null,null,null,null,"GLBNPB4086 - Karen L Bales NEURO PHYSIO And BEHAVIOR GL Only "]
[null,null,null,"64484 - Ve Research Howe 41435 ",null,"560021 - Member Stewardship ",null,null,"823066 - Zeta Beta Tau ",null,null,null,null,null,null,"GLBNPB4377 - Thomas Coombs Hahn NEURO PHYSIO And BEHAVIOR GL Only "]
[null,null,null,"64486 - LandS Chem Pfizer Undergrad Research 41437 ",null,"560022 - Program Supplies ",null,null,"823067 - Zeta Phi Beta Sorority Inc ",null,null,null,null,null,null,"GLBNPB4438 - Paul Salitsky NEURO PHYSIO And BEHAVIOR GL Only "]
[null,null,null,"64487 - Engineering 41438 ",null,"560023 - Sponsorships ",null,null,"823068 - Zeta Psi ",null,null,null,null,null,null,"GLBNPB4859 - Gregg Recanzone NEURO PHYSIO And BEHAVIOR GL Only "]
[null,null,null,"64488 - DANR Ucce San Joaquin County Martin 41439 ",null,"560030 - Volunteer Stewardship ",null,null,"823069 - King Hall Negotiation Team ",null,null,null,null,null,null,"GLBNPB4899 - Marylynn Barkley NEURO PHYSIO And BEHAVIOR GL Only "]
[null,null,null,"64489 - DANR Ucce Yolo Doran 41440 ",null,"560031 - Nonoperating Expense ",null,null,"823070 - Asian Pacific American Law Student Association ",null,null,null,null,null,null,"GLBNPB5072 - Carolynn Patten NEURO PHYSIO And BEHAVIOR GL Only "]
[null,null,null,"64490 - VMdoVet Med Instructional Facility 41441 ",null,"560201 - Chair Discretionary Fund ",null,null,"823071 - Trial Practice Honors Board ",null,null,null,null,null,null,"GLBNPB5527 - Fumika Hamada NEURO PHYSIO And BEHAVIOR GL Only "]
[null,null,null,"64491 - Nutr Research Rucker 41442 ",null,"560202 - Board Projects ",null,null,"823072 - ASP Tutor Program ",null,null,null,null,null,null,"GLBNPB5624 - Xiaomo Chen NEURO PHYSIO And BEHAVIOR GL Only "]
[null,null,null,"64493 - Ccah DowCowgill 41444 ",null,"560203 - Investment Reporting ",null,null,"823073 - Business Law Journal ",null,null,null,null,null,null,"GLBNPB5630 - Brie Tripp NEURO PHYSIO And BEHAVIOR GL Only "]
[null,null,null,"64494 - Npb ResandEdu Wise 41445 ",null,"560204 - Tax Preperation ",null,null,"823074 - Black Law Students Association ",null,null,null,null,null,null,"GLBNPB5712 - Taiyi Kuo NEURO PHYSIO And BEHAVIOR GL Only "]
[null,null,null,"64499 - LandS Language Learning Ctr 41450 ",null,"560205 - Account Expense Teaching Prize Award ",null,null,"823075 - Business Law Society ",null,null,null,null,null,null,"GLBNPB6320 - Felicity Muth NEURO PHYSIO And BEHAVIOR GL Only "]
[null,null,null,"64500 - ItsDaimlerchrysler 41451 ",null,"560206 - Account Expense Teaching Prize Ceremony ",null,null,"823076 - Christian Legal Society ",null,null,null,null,null,null,"GLBNPB6324 - Eva Fischer NEURO PHYSIO and BEHAVIOR GL Only "]
[null,null,null,"64501 - EngCeandMsResearch Stroeve 41452 ",null,"580000 - Interest Expense Capital Financing Commercial Paper Taxable ",null,null,"823077 - Criminal Law Association ",null,null,null,null,null,null,"GLBNTO0139 - Patricia Johns UCCE SAN BENITO COUNTY GL Only "]
[null,null,null,"64502 - AgandEnv SciVitand Enology Res Smart 41453 ",null,"580010 - Interest Expense Noncapital Financing Commercial Paper Taxable ",null,null,"823078 - Disability Justice ",null,null,null,null,null,null,"GLBNTO0216 - Sergio Garcia UCCE SAN BENITO COUNTY GL Only "]
[null,null,null,"64504 - EceEngAgilent Technologies 41455 ",null,"580100 - Interest Expense Commercial Paper Tax Exempt ",null,null,"823079 - Environs Law Journal ",null,null,null,null,null,null,"GLBNTO6178 - Devii Rao UCCE SAN BENITO COUNTY "]
[null,null,null,"64505 - SomMed OthopaedicsWolinsky 41456 ",null,"580200 - Interest Expense Long Term Debt LTD Capital Finance ",null,null,"823080 - Environmental Law Society ",null,null,null,null,null,null,"GLBNTO6190 - Barbara Satink Wolfson UCCE SAN BENITO COUNTY "]
[null,null,null,"64506 - DANR Master Food Preservers Nicholson 41457 ",null,"580210 - Interest Expense Long Term Debt LTD Noncapital Finance ",null,null,"823081 - Federalist Society ",null,null,null,null,null,null,"GLBPLB1218 - Luca Comai PLANT BIOLOGY GL Only "]
[null,null,null,"64507 - DANRNcandMrMaster GardnerLake County 41458 ",null,"580220 - Interest Expense Payment of Interest Between UC Locations ",null,null,"823082 - Filipino Law Students Association ",null,null,null,null,null,null,"GLBPLB1250 - Siobhan Brady PLANT BIOLOGY GL Only "]
[null,null,null,"64510 - Ece VojinFujitsu Micro Match 41461 ",null,"580300 - Interest Expense Paid on Capital Leases ",null,null,"823083 - Humanitarian Aid Legal Organization ",null,null,null,null,null,null,"GLBPLB1481 - Deborah Canington PLANT BIOLOGY GL Only "]
[null,null,null,"64515 - Med PedsUCDF Thomas J Long Foundation 41466 ",null,"580310 - GASB 87 Interest Expense ",null,null,"823084 - Immigration Law Association ",null,null,null,null,null,null,"GLBPLB1498 - Alan Stemler PLANT BIOLOGY GL Only "]
[null,null,null,"64517 - ItsPersonal MobilityPeters 41468 ",null,"580320 - Interest Expense GASB 96 ",null,null,"823085 - International Law Society ",null,null,null,null,null,null,"GLBPLB1529 - John Harada PLANT BIOLOGY GL Only "]
[null,null,null,"64518 - DANR Ucce Santa Clara Baameur 41469 ",null,"580400 - Interest Expense Paid on Bank Loans ",null,null,"823086 - If When How Law Students for Reproductive Justice ",null,null,null,null,null,null,"GLBPLB1557 - Sharman Oneill PLANT BIOLOGY GL Only "]
[null,null,null,"64519 - DANR Ucce Riverside Ganthavorn 41470 ",null,"580500 - Interest Expense Paid on Interest Rate Swaps ",null,null,"823087 - Journal of International Law and Policy ",null,null,null,null,null,null,"GLBPLB1714 - Savithramma Dinesh Kumar PLANT BIOLOGY GL Only "]
[null,null,null,"64522 - NpbBird CommumcationCoombsHahn 41472 ",null,"580600 - Interest Expense Paid on Other Borrowings ",null,null,"823088 - Jewish Law Student Association ",null,null,null,null,null,null,"GLBPLB1808 - Andrew Groover PLANT BIOLOGY GL Only "]
[null,null,null,"64523 - AandRs Pioneer HibredCelorioTeuber 41473 ",null,"580610 - Interest Expense Amort of Off the Market Hybrid Derivative ",null,null,"823089 - King Hall Cannabis Law Society ",null,null,null,null,null,null,"GLBPLB2106 - Donald Kyhos PLANT BIOLOGY GL Only "]
[null,null,null,"64524 - Ece HurstMicro MatchTdk Semiconductor 41474 ",null,"580700 - Interest Expense Paid on Internal Loans ",null,null,"823090 - King Hall Futbol Club ",null,null,null,null,null,null,"GLBPLB2131 - Terence Murphy PLANT BIOLOGY GL Only "]
[null,null,null,"64526 - SomNeuro SurgeryResearch Kim 41476 ",null,"580800 - Interest Expense Amortization of Revenue Bond Premium ",null,null,"823091 - King Hall International Law Association ",null,null,null,null,null,null,"GLBPLB2584 - Deborah Delmer PLANT BIOLOGY GL Only "]
[null,null,null,"64528 - Vet MedPmiPath ClubMaclachlan 41478 ",null,"580900 - Interest Expense Amortization of 3rd Party Bond Premium ",null,null,"823092 - King Hall Intellectual Property Law Association ",null,null,null,null,null,null,"GLBPLB2598 - Kenneth Wells PLANT BIOLOGY GL Only "]
[null,null,null,"64529 - Arts Education Student Ticket Program 41479 ",null,"581000 - Interest Expense Amortization of Deferred Financing Costs ",null,null,"823093 - King Hall Negotiations Team ",null,null,null,null,null,null,"GLBPLB2828 - Nitzan Shabek PLANT BIOLOGY GL Only "]
[null,null,null,"64530 - Vet MedMbPurina MillsFascetti 41480 ",null,"750600 - Interest Expense Internal Loans ",null,null,"823094 - Latinx Law Students Association ",null,null,null,null,null,null,"GLBPLB2938 - Philipp Zerbe PLANT BIOLOGY GL Only "]
[null,null,null,"64531 - Ece SchlumbergerPham 41481 ",null,"583000 - Other Nonoperating Exp ",null,null,"823095 - LAMBDA Law Student Association ",null,null,null,null,null,null,"GLBPLB2994 - Anne Britt PLANT BIOLOGY GL Only "]
[null,null,null,"64532 - Ra Block Cancer Park 41482 ",null,"583001 - Asset Retirement Obligation ARO Expense ",null,null,"823096 - La Raza Law Students Association ",null,null,null,null,null,null,"GLBPLB3561 - Steven Theg PLANT BIOLOGY GL Only "]
[null,null,null,"64534 - DANR CcandSo Reg WootenSwanson 41484 ",null,"583010 - Gain loss on Termination ",null,null,"823097 - Law Cappella ",null,null,null,null,null,null,"GLBPLB3637 - Julin Maloof PLANT BIOLOGY GL Only "]
[null,null,null,"64535 - IandCcJ Stasulat Memorial Fund 41485 ",null,"583510 - Early Termination and Return Fees ",null,null,"823098 - Labor and Employment Law Association ",null,null,null,null,null,null,"GLBPLB3738 - Venkatesan Sundaresan PLANT BIOLOGY GL Only "]
[null,null,null,"64536 - DANRMonterey Pine Forest Ecology Coop 41486 ",null,"583520 - Guaranteed Noncapitalized Expense of residual Value ",null,null,"823099 - Moot Court Board ",null,null,null,null,null,null,"GLBPLB3910 - Neelima Sinha PLANT BIOLOGY GL Only "]
[null,null,null,"64537 - DANR CcandSo Reg Research Chargles Go 41487 ",null,"583F00 - Interfund Transfer among funds ",null,null,"823100 - Middle Eastern North African South Asian ",null,null,null,null,null,null,"GLBPLB3932 - Richard Falk PLANT BIOLOGY GL Only "]
[null,null,null,"64538 - Native Am Studies Language Ctr 41488 ",null,"583F01 - Interfund Transfer Soderquist Award ",null,null,"823101 - Muslim Law Student Association ",null,null,null,null,null,null,"GLBPLB4247 - Maria Maldonado PLANT BIOLOGY GL Only "]
[null,null,null,"64540 - EngBmeIcosSimon 41490 ",null,"583F02 - Intrafund Transfer Correct GASB Code ",null,null,"823102 - Parent Legal Society ",null,null,null,null,null,null,"GLBPLB4699 - Joel Ledford PLANT BIOLOGY GL Only "]
[null,null,null,"64549 - EngComp SciMohapatra Hp 41499 ",null,"583F03 - Interfund Transfer from Life Income Fund ",null,null,"823103 - Students Against Mass Incarceration ",null,null,null,null,null,null,"GLBPLB4948 - William Lucas PLANT BIOLOGY GL Only "]
[null,null,null,"64550 - AAES FST Pilot Plant 41500 ",null,"583F04 - Interfund Transfer between fund types ",null,null,"823104 - Sex Workers Advocacy Project ",null,null,null,null,null,null,"GLBPLB4951 - David Bayer PLANT BIOLOGY GL Only "]
[null,null,null,"64551 - SOM Deans Off Physiological Training 41501 ",null,"583F05 - Interfund GEP Admin Fee ",null,null,"823105 - Water Association of Law and Policy ",null,null,null,null,null,null,"GLBPLB4974 - Stacey Harmer PLANT BIOLOGY GL Only "]
[null,null,null,"64553 - DANRCcandSrKoikeandGliesman 41503 ",null,"583F06 - Interfund Ops Payout ",null,null,"823106 - Workers Justice Law Association ",null,null,null,null,null,null,"GLBPLB4981 - Thomas Rost PLANT BIOLOGY GL Only "]
[null,null,null,"64554 - FST Sensory Lab Gift 41504 ",null,"583F07 - Interfund Gift Fee ",null,null,"823107 - Womens Law Association ",null,null,null,null,null,null,"GLBPLB5101 - Bo Liu PLANT BIOLOGY GL Only "]
[null,null,null,"64555 - Eng Applied Science Optics Lab 41505 ",null,"587000 - UCDMC Maintenance of Restricted Funds Nonoperating Expense ",null,null,"823108 - National Lawyers Guild ",null,null,null,null,null,null,"GLBPLB5220 - Laura Bogar PLANT BIOLOGY GL Only "]
[null,null,null,"64557 - AES Nutr Research A Clifford 41507 ",null,"587400 - UCDMC Physicians Offices and Other Rentals Expense ",null,null,"823109 - Social Justice Law Review ",null,null,null,null,null,null,"GLBPLB5876 - Yann Ru Lou PLANT BIOLOGY GL Only "]
[null,null,null,"64558 - LandS Aas Steffi San Buenaventura Archive 41508 ",null,"587500 - UCDMC Medical Office Building Expenses ",null,null,"823110 - Moot Court Honors Board ",null,null,null,null,null,null,"GLBPLB6322 - Xiaosa Jack Xu PLANT BIOLOGY GL Only "]
[null,null,null,"64559 - OvcrIga Congress Proj Highton B 41509 ",null,"587600 - UCDMC Child Care Services Expense Nonemployees ",null,null,"823111 - Cosmology Club at UC Davis ",null,null,null,null,null,null,"GLBPLB6328 - Blake Myers Plant Biology GL Only "]
[null,null,null,"64560 - UgaEaop Family Programs 41510 ",null,"587700 - UCDMC Family Housing Expenses ",null,null,"823112 - Trans and Gender Nonconforming United ",null,null,null,null,null,null,"GLBSDF1247 - Mark Winey COLLEGE BIO SCI DEANS OFFICE GL Only "]
[null,null,null,"64561 - VMPMI Genentech Couto Maclachlan 41511 ",null,"587800 - UCDMC Retail Operations Expenses ",null,null,"823113 - PHI ALPHA DELTA ",null,null,null,null,null,null,"GLBSDF1567 - Yasmine V Jefferson COLLEGE BIO SCI DEANS OFFICE GL Only "]
[null,null,null,"64563 - Cbs College Medal Award 41513 ",null,"587900 - UCDMC Losses on Bond Retirements ",null,null,"825000 - Alpine Ski Club ",null,null,null,null,null,null,"GLBSPH6070 - Carly Hyland UCB PUBLIC HEALTH ADMIN "]
[null,null,null,"64565 - Som Neurology Sgi Kwee 41515 ",null,"588000 - UCDMC Termination of Hedge Fund Agreements ",null,null,"825001 - Judo ",null,null,null,null,null,null,"GLBUTT0128 - Susan Donohue UCCE BUTTE GL Only "]
[null,null,null,"64566 - Som Med Ophth Fdt2 Werner 41516 ",null,"588100 - UCDMC Hospital Grants Portion Nonoperating Expense ",null,null,"825002 - Archery ",null,null,null,null,null,null,"GLBUTT0160 - Joseph Connell UCCE BUTTE GL Only "]
[null,null,null,"64567 - Som Med Ophth Fdt2 Keltner 41517 ",null,"588200 - UCDMC Other Nonoperating Expenses ",null,null,"825003 - Badminton ",null,null,null,null,null,null,"GLBUTT0215 - William Olson UCCE BUTTE GL Only "]
[null,null,null,"64568 - Eng Ch2M Hill 41518 ",null,"590000 - System Default Errors ",null,null,"825004 - Baseball Club ",null,null,null,null,null,null,"GLBUTT0258 - Randall Mutters UCCE BUTTE GL Only "]
[null,null,null,"64569 - Eng Ch2M Hill 41519 ",null,"730000 - Medical Center Salary and Wage Recharge ",null,null,"825005 - Bowling Club ",null,null,null,null,null,null,"GLBUTT6049 - Luis Espino UCCE BUTTE  COUNTY "]
[null,null,null,"64570 - Eng Ch2M Hill 41520 ",null,"731000 - MC Other Employee Benefits ",null,null,"825006 - Boxing Club ",null,null,null,null,null,null,"GLBUTT6071 - Sudan Gyawaly UCCE BUTTE  COUNTY "]
[null,null,null,"64571 - VMSrs Small Animal 41521 ",null,"732000 - MC Provessional Services ",null,null,"825007 - Climbing Club ",null,null,null,null,null,null,"GLBUTT6127 - Nicole MarshallWheeler UCCE BUTTE  COUNTY "]
[null,null,null,"64572 - VMceh Glide Fdtn Madigan La Extractor 41522 ",null,"733000 - MC Medical Supplies ",null,null,"825008 - Crew Club Mens ",null,null,null,null,null,null,"GLBUTT6144 - Luke Milliron UCCE BUTTE  COUNTY "]
[null,null,null,"64573 - ChandE Research Pinkerton 41523 ",null,"734000 - UCDMC Recharges Other Supplies and Purchased Services ",null,null,"825009 - E Sports Club ",null,null,null,null,null,null,"GLBUTT6146 - Veronica Van Cleave Hunt UCCE BUTTE COUNTY "]
[null,null,null,"64574 - Vit and Enol Sensory Science Research 41524 ",null,"735000 - UCDMC Recharges Insurance and Other Services ",null,null,"825010 - Cross Country and Track Club ",null,null,null,null,null,null,"GLBUTT6370 - Domena Agyeman UCCE Butte COUNTY "]
[null,null,null,"64575 - AES Bio and Ag Eng Fathallah 41525 ",null,"770000 - Facilities and Equipment Maintenance Services ",null,null,"825011 - Cycling ",null,null,null,null,null,null,"GLCCMP0142 - Jack Orr UCCE CAPITOL CORRIDOR MCP GL Only "]
[null,null,null,"64576 - VMCvec Research Foley 41526 ",null,"770001 - Space and Event Services ",null,null,"825012 - Swimming Club ",null,null,null,null,null,null,"GLCCMP0177 - Mario Moratorio UCCE CAPITOL CORRIDOR MCP GL Only "]
[null,null,null,"64577 - DANR NcandMr Mendocino 4H Youth 41527 ",null,"770002 - Materials and Supplies Recharges ",null,null,"825013 - Equestrian Event ",null,null,null,null,null,null,"GLCCMP0184 - Carole Paterson UCCE CAPITOL CORRIDOR MCP GL Only "]
[null,null,null,"64579 - Som Med Surgery Hundahl Resident Researc 41529 ",null,"770003 - Research or Lab Support Services ",null,null,"825014 - Equestrian Hunter Jumper ",null,null,null,null,null,null,"GLCCMP0221 - Lawrence Clement UCCE CAPITOL CORRIDOR MCP GL Only "]
[null,null,null,"64581 - UCDMC Childrens Hosp Bed and Wagon Fund 41531 ",null,"770004 - Transportation Recharges ",null,null,"825015 - Equestrian Dressage ",null,null,null,null,null,null,"GLCCMP0250 - Eugene Miyao UCCE CAPITOL CORRIDOR MCP GL Only "]
[null,null,null,"64582 - Ecs SprintMukherjee 41532 ",null,"770005 - IT Services ",null,null,"825016 - Equestrian Western ",null,null,null,null,null,null,"GLCCMP0251 - Diane Metz UCCE CAPITOL CORRIDOR MCP GL Only "]
[null,null,null,"64583 - MisIicak Payroll Support 41533 ",null,"770006 - Other Support Services ",null,null,"825017 - Field Hockey Club ",null,null,null,null,null,null,"GLCCMP0270 - Thomas Kearney UCCE CAPITOL CORRIDOR MCP GL Only "]
[null,null,null,"64584 - Som Radiation Oncology Chen 41534 ",null,"770007 - DCA Recharge Expense ",null,null,"825018 - Fencing Club ",null,null,null,null,null,null,"GLCCMP6008 - Marianne Bird UCCE CAPITOL CORRIDOR MCP "]
[null,null,null,"64586 - SomBotulinum Toxin Zhang 41536 ",null,"770008 - Central Campus Assessment Expense ",null,null,"825019 - Ultimate Frisbee Mens ",null,null,null,null,null,null,"GLCCMP6044 - Morgan Doran UCCE CAPITOL CORRIDOR MCP "]
[null,null,null,"64587 - UCDMC Peds Patient Care Improvement Proj 41537 ",null,"770009 - Central Campus Income Assessment Expense ",null,null,"825020 - Ultimate Frisbee Womens ",null,null,null,null,null,null,"GLCCMP6080 - Olivia Henry UCCE CAPITOL CORRIDOR MCP "]
[null,null,null,"64589 - Sbc Donation Cress Parkway Collaboration 41539 ",null,"770010 - Departmental Assessment Expense ",null,null,"825021 - Gymnastics Club ",null,null,null,null,null,null,"GLCCMP6087 - Marcel Horowitz UCCE CAPITOL CORRIDOR MCP "]
[null,null,null,"64590 - DbsPlant Biology General Support 41540 ",null,"770011 - CPE Course and Special Fees ",null,null,"825022 - Ice Hockey ",null,null,null,null,null,null,"GLCCMP6091 - Katherine JarvisShean UCCE CAPITOL CORRIDOR MCP "]
[null,null,null,"64593 - Med PedsUCDhsVolunteer Srvs Gift 41543 ",null,"770100 - Admin Cost of Student Aid Expense ",null,null,"825023 - Lacrosse Club Mens ",null,null,null,null,null,null,"GLCCMP6109 - Patricia Lazicki UCCE CAPITOL CORRIDOR MCP "]
[null,null,null,"64594 - Som Med Surg Hundahl 41544 ",null,"770101 - Balances to Reserve Expense ",null,null,"825024 - Lacrosse Club Womens ",null,null,null,null,null,null,"GLCCMP6117 - Margaret Lloyd UCCE CAPITOL CORRIDOR MCP "]
[null,null,null,"64595 - VMVMdo Dr Ralph Barrett Scholarship 41545 ",null,"770102 - Loan Transfer Expense ",null,null,"825025 - Mens Rugby ",null,null,null,null,null,null,"GLCCMP6202 - Joanna Solins UCCE CAPITOL CORRIDOR MCP "]
[null,null,null,"64596 - OvcrItsFriends Of ItsDavis 41546 ",null,"770103 - Fund Transfer Expnese ",null,null,"825026 - Mens Volleyball Club ",null,null,null,null,null,null,"GLCNTR0156 - Janet Caprile UCCE CONTRA COSTA COUNTY GL Only "]
[null,null,null,"64597 - VMSandRsChi InstituteMacdonald 41547 ",null,"770104 - Rate Depreciation Expense ",null,null,"825027 - Mens Club Water Polo ",null,null,null,null,null,null,"GLCNTR0266 - Shelley Murdock UCCE CONTRA COSTA COUNTY GL Only "]
[null,null,null,"64598 - VMdo CVMaS Lifelong Learning Award 41548 ",null,"770501 - CS EXP Funds Flow wRVU Payments ",null,null,"825028 - Racquetball ",null,null,null,null,null,null,"GLCNTR5995 - Kamyar Aram UCCE CONTRA COSTA COUNTY "]
[null,null,null,"64599 - Econ Rapson Research Gift Account 41549 ",null,"770502 - CS EXP Funds Flow cFTE Clinical Coverage Payments ",null,null,"825029 - Rugby Mens ",null,null,null,null,null,null,"GLCNTR6156 - Alexa Erickson UCCE CONTRA COSTA COUNTY "]
[null,null,null,"64600 - Mae Joshi Eng Deans Office 41550 ",null,"770503 - CS EXP Other Funds Flow Faculty Benefits Payments ",null,null,"825030 - Soccer Club Mens ",null,null,null,null,null,null,"GLCOLU0130 - Jerry Schmierer UCCE COLUSA GL Only "]
[null,null,null,"64602 - EceVan Der SchaarPcs Conference 41552 ",null,"770504 - EF EXP Clinical Faculty Paid Leave FMLA ",null,null,"825031 - Softball Club ",null,null,null,null,null,null,"GLCOLU0222 - John Edstrom UCCE COLUSA GL Only "]
[null,null,null,"64603 - Idav Research Hamann 41553 ",null,"770505 - CS EXP Other Funds Flow Admin Allowance ",null,null,"825033 - Table Tennis ",null,null,null,null,null,null,"GLCOLU0268 - Michael Murray UCCE COLUSA GL Only "]
[null,null,null,"64604 - UCDFFst Gift Fund For Dept Support 41554 ",null,"770506 - CS EXP Other Funds Flow Collection Based Pmts CPT Codes ",null,null,"825034 - Tae Kwon Do Club ",null,null,null,null,null,null,"GLCOLU6159 - Franz Niederholzer UCCE COLUSA  COUNTY "]
[null,null,null,"64605 - Esp Mccoy RsrchEdu Gift Account 41555 ",null,"770507 - CS EXP Other Funds Flow Collection Based Pmts Cash Baseed Services ",null,null,"825035 - Tennis Club ",null,null,null,null,null,null,"GLCOLU6225 - Amber VinchesiVahl UCCE COLUSA  COUNTY "]
[null,null,null,"64607 - EngEceDingNortel Networks 41557 ",null,"770508 - CS EXP Funds Flow Advanced Practice Provider Support ",null,null,"825036 - Triathlon Club ",null,null,null,null,null,null,"GLCSNP0253 - William Frost UCCE CENTRAL SIERRA NEVADA MCP GL Only "]
[null,null,null,"64608 - VMCehSeipCushings Disease Rsh 41558 ",null,"770509 - EF EXP Clinical Faculty Administrative Leadership ",null,null,"825037 - Volleyball Club Womens ",null,null,null,null,null,null,"GLCSNP5992 - Brian Allen UCCE CENTRAL SIERRA NEVADA MCP "]
[null,null,null,"64609 - DANR CcandSo Reg Orange Cty4H 41559 ",null,"770510 - EF EXP Research Over the Cap Support ",null,null,"825038 - Water Ski Boat Club ",null,null,null,null,null,null,"GLCSNP5998 - Flavie Audoin UCCE CENTRAL SIERRA NEVADA MCP "]
[null,null,null,"64613 - AesNutritionStephensen 41563 ",null,"770511 - EF EXP Research Grant Matching ",null,null,"825040 - Womens Basketball Club ",null,null,null,null,null,null,"GLCSNP6024 - Cindy Chen UCCE CENTRAL SIERRA NEVADA MCP "]
[null,null,null,"64614 - AandEsCa Assoc Of Nurserymen 41564 ",null,"770512 - EF EXP Research IRB Member Support ",null,null,"825041 - Womens Crew Club ",null,null,null,null,null,null,"GLCSNP6102 - Susan Kocher UCCE CENTRAL SIERRA NEVADA MCP "]
[null,null,null,"64615 - AAES Env Tox Field Research Prgm 41565 ",null,"770513 - EF EXP Research Clinical Trials Incentives ",null,null,"825042 - Womens Rugby Club ",null,null,null,null,null,null,"GLCSNP6143 - JoLynn Miller UCCE CENTRAL SIERRA NEVADA MCP "]
[null,null,null,"64616 - IetMediaworks 41566 ",null,"770514 - Taxes Assesesment Fees Funds Flow EXP ",null,null,"825043 - Womens Soccer Club ",null,null,null,null,null,null,"GLCSNP6165 - Scott Oneto UCCE CENTRAL SIERRA NEVADA MCP "]
[null,null,null,"64619 - EngApp SciUnilever Prof Yeh Con 41569 ",null,"770515 - PET EXP Funds Flow PET Explorer Cash Payments ",null,null,"825044 - Womens Volleyball Club ",null,null,null,null,null,null,"GLCSNP6200 - Hardeep Singh UCCE CENTRAL SIERRA NEVADA MCP "]
[null,null,null,"64620 - Vet MedVMthExotic Pet Fund 41570 ",null,"770516 - PET EXP Funds Flow PET Explorer Faculty Benefit PMTS ",null,null,"825045 - Womens Water Polo Club ",null,null,null,null,null,null,"GLCSNPXXXX - Mackenzie Faith Patton UCCE CENTRAL SIERRA NEVADA MCP "]
[null,null,null,"64621 - SomMed Epm Biostat 41571 ",null,"770601 - EF EXP Clinical Chair Support ",null,null,"825046 - Womens Bowling ",null,null,null,null,null,null,"GLCWRI6173 - Erik Porse CA INST FOR WATER RESOURCES "]
[null,null,null,"64622 - VMPmiVpmi Decock 41572 ",null,"770602 - EF EXP Clinical Clinic Leadership ",null,null,"825047 - Womens Baseball ",null,null,null,null,null,null,"GLCWRI6196 - Rachel M Shellabarger CALIFORNIA INSTITUTE OF WATER RESOURCES "]
[null,null,null,"64623 - AandEsNpb Research Wise 41573 ",null,"770603 - EF EXP Educational Grad Medical Education ",null,null,"825048 - Davis Karate Club ",null,null,null,null,null,null,"GLCWRI6242 - Rachel Shellabarger CALIFORNIA INSTITUTE FOR WATER RESOURCES "]
[null,null,null,"64624 - VMCehWrather Family FndMadigan 41574 ",null,"770604 - EF EXP Clinical Medical Leadership ",null,null,"900001 - 4H Citizenship ",null,null,null,null,null,null,"GLDEDU0069 - Faheemah Mustafaa EDUCATION GL Only "]
[null,null,null,"64625 - Entom Leafminer Pheromone 41575 ",null,"770605 - EF EXP Clinical Other Purchased Services MOUS ",null,null,"900002 - STEM Program ",null,null,null,null,null,null,"GLDEDU0082 - Jennifer Higgs EDUCATION GL Only "]
[null,null,null,"64626 - EceEngMicrosoftYoo 41576 ",null,"770606 - EF EXP Clinical Pager Call and Coverage Support ",null,null,"900003 - Civic Engagement ",null,null,null,null,null,null,"GLDEDU0285 - Megan Bettis EDUCATION GL Only "]
[null,null,null,"64627 - EngEce PhamIeee 41577 ",null,"770607 - EF EXP Clinical Time Limited Faculty Support ",null,null,"900004 - Healthy Living ",null,null,null,null,null,null,"GLDEDU0350 - Richard Figueroa EDUCATION GL Only "]
[null,null,null,"64628 - VMVMthDentistry Resident ReshandTeach 41578 ",null,"770608 - EF EXP Educational Undergrad Medical Education ",null,null,"900005 - Leadership Development ",null,null,null,null,null,null,"GLDEDU0370 - Pauline Holmes EDUCATION GL Only "]
[null,null,null,"64629 - VMCeh Stans Prospective Wnv Study 41579 ",null,"775000 - UCD Recharge Revenue ",null,null,"900006 - Positive Youth Development ",null,null,null,null,null,null,"GLDEDU0553 - Nancy Gorman EDUCATION GL Only "]
[null,null,null,"64630 - Sa Black Leadership Retreat 41580 ",null,"775001 - UCD Recharge Material Pass thru Revenue ",null,null,"900007 - JEDI ",null,null,null,null,null,null,"GLDEDU0670 - Cary Trexler EDUCATION GL Only "]
[null,null,null,"64632 - UCDFEdTeacher Scholar Scholarship 41582 ",null,"775002 - DCA Recharge Revenue ",null,null,"900008 - Workforce Development ",null,null,null,null,null,null,"GLDEDU0733 - Maisha Winn EDUCATION GL Only "]
[null,null,null,"64634 - CAAA Credit Card Program 41584 ",null,"775003 - Central Campus Assessment Revenue ",null,null,"900009 - Volunteer Development ",null,null,null,null,null,null,"GLDEDU0902 - B Merino EDUCATION GL Only "]
[null,null,null,"64637 - SomMed PathKost 41587 ",null,"775004 - Central Campus Income Assessment Revenue ",null,null,"900010 - VMO Council ",null,null,null,null,null,null,"GLDEDU0925 - Lauren Lindstrom EDUCATION GL Only "]
[null,null,null,"64638 - SomMed OphthEye Central Fund 41588 ",null,"775005 - Departmental Assessment Revenue ",null,null,"900011 - Online Content ",null,null,null,null,null,null,"GLDEDU1000 - Alexandrina Ramirez EDUCATION GL Only "]
[null,null,null,"64639 - Nutr Research B Sutherland 41589 ",null,"775B00 - Central Campus Appropriations Ongoing ",null,null,"900012 - Publication Sales App ",null,null,null,null,null,null,"GLDEDU1049 - Lisa Sullivan EDUCATION GL Only "]
[null,null,null,"64640 - VMSrsAll Care Aniaml Referal Cntr 41590 ",null,"775B01 - OP Appropriations Ongoing ",null,null,"900013 - Urban ",null,null,null,null,null,null,"GLDEDU1191 - Yuuko Tonkovich EDUCATION GL Only "]
[null,null,null,"64642 - VMVMcSdCompanion Animal Hemodialysis 41592 ",null,"775B10 - Central Campus Appropriations One Time ",null,null,"900014 - Publication Sales ",null,null,null,null,null,null,"GLDEDU1246 - Alexis Patterson EDUCATION GL Only "]
[null,null,null,"64643 - Cpb Pengelley Supplemental Donations 41593 ",null,"775B11 - OP Appropriations One Time ",null,null,"900015 - Educational Events ",null,null,null,null,null,null,"GLDEDU1303 - Chassidy I Anders EDUCATION GL Only "]
[null,null,null,"64644 - VMGleasonDaniels Pet Over Popultn Shlp 41594 ",null,"775B05 - VC Dean Office Appropriations Ongoing ",null,null,"900016 - CHERIMOYA ",null,null,null,null,null,null,"GLDEDU1314 - Lawrence Winn EDUCATION GL Only "]
[null,null,null,"64645 - VMCeh NeurologICAl DiseaseHorse 41595 ",null,"775B06 - Appropriations Transfer Between Units Ongoing ",null,null,"900017 - Forestry ",null,null,null,null,null,null,"GLDEDU1349 - Manisha Lakhotia Neti EDUCATION GL Only "]
[null,null,null,"64646 - VeGallo FoundationUnrestricted 41596 ",null,"775B14 - VC Dean Office Appropriations One Time ",null,null,"900018 - Online Training ",null,null,null,null,null,null,"GLDEDU1416 - Steven Athanases EDUCATION GL Only "]
[null,null,null,"64648 - UCD FIga PL Dieterich Olmstead 41598 ",null,"775B15 - Appropriations Transfer Btwn Units One Time ",null,null,"900019 - Viticulture ",null,null,null,null,null,null,"GLDEDU1500 - Ariel F Loring EDUCATION GL Only "]
[null,null,null,"64649 - Cpb Population Bio Grad Group 41599 ",null,"775100 - Admin Cost Recovery Federal Aid ",null,null,"900020 - Publications ",null,null,null,null,null,null,"GLDEDU1566 - George Yonge EDUCATION GL Only "]
[null,null,null,"64650 - Som Imrh Research Leung 41600 ",null,"775101 - Balances to Reserve Revenue ",null,null,"900021 - Home Economics ",null,null,null,null,null,null,"GLDEDU1576 - Cynthia Ching EDUCATION GL Only "]
[null,null,null,"64651 - Vet MedCahfsEacl Stanley Indust 41601 ",null,"775102 - Loan Transfer Revenue ",null,null,"900022 - Blueberries ",null,null,null,null,null,null,"GLDEDU1658 - Harold Levine EDUCATION GL Only "]
[null,null,null,"64652 - EngEce ChuahFujitsu 41602 ",null,"775103 - Fund Transfer Revenue ",null,null,"900023 - Grapes ",null,null,null,null,null,null,"GLDEDU1660 - Barbara Goldman EDUCATION GL Only "]
[null,null,null,"64654 - SomMedSurg Res Troppmann 41604 ",null,"775104 - Rate Depreciation Revenue ",null,null,"900024 - Citrus ",null,null,null,null,null,null,"GLDEDU1847 - Raynell Taisha Hamilton Starks EDUCATION GL Only "]
[null,null,null,"64656 - Vet MedVMbMasterfoodsRamsey 41606 ",null,"775501 - CS REV Funds Flow wRVU Payments ",null,null,"900025 - Rosenberg ",null,null,null,null,null,null,"GLDEDU1852 - Megan Welsh EDUCATION GL Only "]
[null,null,null,"64662 - PolitICAl Sci Student Scholarships 41612 ",null,"775502 - CS REV Funds Flow cFTE Clinical Coverage Payments ",null,null,"900026 - Membership Agreements ",null,null,null,null,null,null,"GLDEDU1856 - Michele Fortes EDUCATION GL Only "]
[null,null,null,"64663 - VMthBy The Grace Of God Fund 41613 ",null,"775503 - CS REV Other Funds Flow Faculty Benefits Payments ",null,null,"900027 - Staff Assembly Council ",null,null,null,null,null,null,"GLDEDU1863 - Heather Rose EDUCATION GL Only "]
[null,null,null,"64665 - HumanandComm DevEichhorn Family House 41615 ",null,"775504 - EF REV Clinical Faculty Paid Leave FMLA ",null,null,"900028 - Academic Assembly Council ",null,null,null,null,null,null,"GLDEDU1937 - Sharon S Dugdale EDUCATION GL Only "]
[null,null,null,"64668 - VMCcah Persians Res Lyons 41617 ",null,"775505 - CS REV Other Funds Flow Admin Allowance ",null,null,"900029 - Professional Travel Grants ",null,null,null,null,null,null,"GLDEDU1945 - Heather Sturman EDUCATION GL Only "]
[null,null,null,"64669 - VMCcahPharmaciaLondon 41618 ",null,"775506 - CS REV Other Funds Flow Collection Based Pmts CPT Codes ",null,null,"900030 - Academic Distinguished Service Awards ",null,null,null,null,null,null,"GLDEDU1958 - Douglas Minnis EDUCATION GL Only "]
[null,null,null,"64670 - UCDFGsm Smiley Leadership Award 41619 ",null,"775507 - CS REV Other Funds Flow Collection Based Pmts Cash Baseed Services ",null,null,"900031 - Professional Development ",null,null,null,null,null,null,"GLDEDU1965 - Jonathon Pomeroy EDUCATION GL Only "]
[null,null,null,"64672 - MedNeur PfizerAgius 41621 ",null,"775508 - CS REV Funds Flow Advanced Practice Provider Support ",null,null,"900032 - COMMUNITY EDUCATION OUTREACH ",null,null,null,null,null,null,"GLDEDU2173 - Sylvia Aquino EDUCATION GL Only "]
[null,null,null,"64673 - Mae Asme Student OrgandOutreach 41622 ",null,"775509 - EF REV Clinical Faculty Administrative Leadership ",null,null,"900033 - COMPOST ",null,null,null,null,null,null,"GLDEDU2261 - Concha Delgado Gaitan EDUCATION GL Only "]
[null,null,null,"64675 - VMCcahSchulerudCurrent Use 41624 ",null,"775510 - EF REV Research Over the Cap Support ",null,null,"900034 - DEER HUNT ",null,null,null,null,null,null,"GLDEDU2340 - Margarita Jimenez Silva EDUCATION GL Only "]
[null,null,null,"64676 - VM Srs ThermographySnyder 41625 ",null,"775511 - EF REV Research Grant Matching ",null,null,"900035 - EDUCATION YOUTH PROGRAMS ",null,null,null,null,null,null,"GLDEDU2344 - Carolynn Ranch EDUCATION GL Only "]
[null,null,null,"64677 - CipicSt Microelectronics 41626 ",null,"775512 - EF REV Research IRB Member Support ",null,null,"900036 - EDUCATION ADULT PROGRAMS ",null,null,null,null,null,null,"GLDEDU2350 - Chantal Lacrampe Mace EDUCATION GL Only "]
[null,null,null,"64678 - EngEcsTexasAmenta 41627 ",null,"775513 - EF REV Research Clinical Trials Incentives ",null,null,"900037 - EDUCATION COMMUNICATIONS ",null,null,null,null,null,null,"GLDEDU2512 - Matt Wallace EDUCATION GL Only "]
[null,null,null,"64679 - VMex Poultry Res Support Cardona 41628 ",null,"775514 - Taxes Assesesment Fees Funds Flow Rev ",null,null,"900038 - EDUCATION DEMO GARDENSFIELDS ",null,null,null,null,null,null,"GLDEDU2722 - Lee Martin EDUCATION GL Only "]
[null,null,null,"64680 - VMCehPfleger FoundationViral Disease 41629 ",null,"775515 - PET REV Funds Flow PET Explorer Cash Payments ",null,null,"900039 - FARM PRODUCE FOR SALE ",null,null,null,null,null,null,"GLDEDU2732 - Patricia A Turner EDUCATION GL Only "]
[null,null,null,"64682 - VMVMthFreseniusHemodialysis Develp 41631 ",null,"775516 - PET REV Funds Flow PET Explorer Faculty Benefit PMTS ",null,null,"900040 - FARMS GROW PROGRAM ",null,null,null,null,null,null,"GLDEDU2809 - Heidi Ballard EDUCATION GL Only "]
[null,null,null,"64683 - VMVMthAngel FundHemodialysis 41632 ",null,"775601 - EF Rev Clinical Chair Support ",null,null,"900041 - FISHING CLUBS ",null,null,null,null,null,null,"GLDEDU2815 - Michal Kurlaender EDUCATION GL Only "]
[null,null,null,"64685 - VM Ceh Draft Horse Research 41634 ",null,"775602 - EF REV Clinical Clinic Leadership ",null,null,"900042 - LAMBING SCHOOL ",null,null,null,null,null,null,"GLDEDU2823 - Danny Martinez EDUCATION GL Only "]
[null,null,null,"64686 - EngDoMemorial Fund 41635 ",null,"775603 - EF REV Educational Grad Medical Education ",null,null,"900044 - PRUNING ",null,null,null,null,null,null,"GLDEDU2931 - Cynthia Passmore EDUCATION GL Only "]
[null,null,null,"64687 - Engr ChristoFFErson Memorial 41636 ",null,"775604 - EF Rev Clinical Medical Leadership ",null,null,"900045 - PUBLIC HIKES ",null,null,null,null,null,null,"GLDEDU3168 - Carolynne Beno EDUCATION GL Only "]
[null,null,null,"64688 - UCDFLandS Senior GiftAnnual Fund 41637 ",null,"775605 - EF Rev Clinical Other Purchased Services MOUS ",null,null,"900046 - RUN AROUND THE FARM ",null,null,null,null,null,null,"GLDEDU3267 - Thomas Timar EDUCATION GL Only "]
[null,null,null,"64689 - SomPatient Transportation Fund 41638 ",null,"775606 - EF Rev Clinical Pager Call and Coverage Support ",null,null,"900047 - Shearing School ",null,null,null,null,null,null,"GLDEDU3278 - Elizabeth Montano EDUCATION GL Only "]
[null,null,null,"64690 - DANR Siskiyou Co 4H Shooting Program 41639 ",null,"775607 - EF Rev Clinical Time Limited Faculty Support ",null,null,"900048 - SHEEP DOG PUBLIC EVENTS ",null,null,null,null,null,null,"GLDEDU3305 - G Cartwright EDUCATION GL Only "]
[null,null,null,"64692 - SomImResearch Van De Water 41641 ",null,"775608 - EF REV Educational Undergrad Medical Education ",null,null,"900049 - VOLUNTEER PROGRAM ",null,null,null,null,null,null,"GLDEDU3375 - Margaret Martindale EDUCATION GL Only "]
[null,null,null,"64694 - Nutr Research Townsend 41643 ",null,"775609 - MCP UCDS Program Support ",null,null,"900050 - WEST COAST RODENT ACADEMY ",null,null,null,null,null,null,"GLDEDU3394 - Jamal Abedi EDUCATION GL Only "]
[null,null,null,"64696 - Fst Furniture For Student Rm In Mond Ct 41645 ",null,"780010 - Intercampus Recharges Expense UCB ",null,null,"900051 - Stocker Cattle ",null,null,null,null,null,null,"GLDEDU3444 - Mikael B Villalobos EDUCATION GL Only "]
[null,null,null,"64697 - EngCheMs Masterfoods Usa 41646 ",null,"780020 - Intercampus Recharges Expense UCSF ",null,null,"900054 - Non 4H Clubs ",null,null,null,null,null,null,"GLDEDU3463 - Karen Watson Gegeo EDUCATION GL Only "]
[null,null,null,"64698 - VMCcah Cell GeneDickerson 41647 ",null,"780030 - Intercampus Recharges Expense UCD ",null,null,"900055 - ANIMAL SCIENCE MOU ",null,null,null,null,null,null,"GLDEDU3465 - Jacob S Jackson EDUCATION GL Only "]
[null,null,null,"64699 - Genome Launch Facility 41648 ",null,"780040 - Intercampus Recharges Expense UCLA ",null,null,"900056 - Animal Science ",null,null,null,null,null,null,"GLDEDU3506 - Christian Faltis EDUCATION GL Only "]
[null,null,null,"64702 - Ansci David Robinson Mem Scholrshp Fund 41651 ",null,"780050 - Intercampus Recharges Expense UCR ",null,null,"900057 - Evaluation ",null,null,null,null,null,null,"GLDEDU3624 - Cassandra Hart EDUCATION GL Only "]
[null,null,null,"64704 - MedUroAventis Fellowship Urol Oncology 41653 ",null,"780060 - Intercampus Recharges Expense UCSD ",null,null,"900058 - Incentive Recognition ",null,null,null,null,null,null,"GLDEDU3725 - Kevin Gee EDUCATION GL Only "]
[null,null,null,"64705 - SomMedImho J Lecouteur Memorial Fnd 41654 ",null,"780070 - Intercampus Recharges Expense UCSC ",null,null,"900059 - Military Program ",null,null,null,null,null,null,"GLDEDU3909 - Bridget A Crenshaw Mabunga EDUCATION GL Only "]
[null,null,null,"64708 - SomChild Abuse Prevention 41657 ",null,"780080 - Intercampus Recharges Expense UCSB ",null,null,"900060 - SET Program ",null,null,null,null,null,null,"GLDEDU3913 - Darnel Degand EDUCATION GL Only "]
[null,null,null,"64709 - AgandEvn SciFsandT Krochta 41658 ",null,"780090 - Intercampus Recharges Expense UCI ",null,null,"900061 - Program Administration ",null,null,null,null,null,null,"GLDEDU3978 - Emily D N Montgomery EDUCATION GL Only "]
[null,null,null,"64711 - Undr Grad AdmNs Ets Edu Talent Search 41660 ",null,"780100 - Intercampus Recharges Expense UCM ",null,null,"900062 - Sectional Councils ",null,null,null,null,null,null,"GLDEDU4049 - Nancy Erbstein EDUCATION GL Only "]
[null,null,null,"64712 - AgandEnv SciFsandTJulie Hell Schlp Endowmt 41661 ",null,"780110 - Intercampus Recharges Expense UCOP ",null,null,"900063 - Statewide Program ",null,null,null,null,null,null,"GLDEDU4055 - Kimberly Holsberry EDUCATION GL Only "]
[null,null,null,"64713 - CAES Veg Crops SBC AEV 41662 ",null,"780120 - Intercampus Recharges Expense ANR ",null,null,"900064 - Thrive Education Program ",null,null,null,null,null,null,"GLDEDU4062 - Jon Wagner EDUCATION GL Only "]
[null,null,null,"64714 - UCDMCEmployee Grants 41663 ",null,"780121 - Intercampus Recharge Credit with UCB ",null,null,"900065 - California State 4H Office ",null,null,null,null,null,null,"GLDEDU4082 - Peter Mundy EDUCATION GL Only "]
[null,null,null,"64715 - VMCeh Draft Horse BosackKruger Gift 41664 ",null,"785010 - Intercampus Recharges Credit UCB ",null,null,"900066 - Plant Sales ",null,null,null,null,null,null,"GLDEDU4097 - Sandra Murphy EDUCATION GL Only "]
[null,null,null,"64716 - WarrenandLeta Geidt Hall Project 41665 ",null,"785020 - Intercampus Recharges Credit UCSF ",null,null,"900067 - Cell Tower ",null,null,null,null,null,null,"GLDEDU4223 - Ila Young EDUCATION GL Only "]
[null,null,null,"64717 - SomImBiostatic Rsch Li 41666 ",null,"785030 - Intercampus Recharges Credit UCD ",null,null,"900068 - REC Dorms ",null,null,null,null,null,null,"GLDEDU4295 - Francisco Martorell EDUCATION GL Only "]
[null,null,null,"64718 - Eng Research Support 41667 ",null,"785040 - Intercampus Recharges Credit UCLA ",null,null,"900069 - REC Residence ",null,null,null,null,null,null,"GLDEDU4355 - Patricia Quijada EDUCATION GL Only "]
[null,null,null,"64719 - Som Med Urology Res Low 41668 ",null,"785050 - Intercampus Recharges Credit UCR ",null,null,"900070 - Current Credit Card Pilot ",null,null,null,null,null,null,"GLDEDU4359 - Anthony Albano EDUCATION GL Only "]
[null,null,null,"64720 - Neurobiology Repro Genetics Spearow 41669 ",null,"785060 - Intercampus Recharges Credit UCSD ",null,null,"900072 - PLANTS ",null,null,null,null,null,null,"GLDEDU4445 - Rebecca Rosa Stevens EDUCATION GL Only "]
[null,null,null,"64721 - Mech Engr BioMech Lab Hubbard 41670 ",null,"785070 - Intercampus Recharges Credit UCSC ",null,null,"900077 - Fruits and Vegetables ",null,null,null,null,null,null,"GLDEDU4467 - Nicole J Sparapani EDUCATION GL Only "]
[null,null,null,"64722 - PedBreath Hydrogen AnalyzerHaight 41671 ",null,"785080 - Intercampus Recharges Credit UCSB ",null,null,"900079 - Alfalfa ",null,null,null,null,null,null,"GLDEDU4501 - Nancy Tseng EDUCATION GL Only "]
[null,null,null,"64723 - Beef Cattle Agency Account 41672 ",null,"785090 - Intercampus Recharges Credit UCI ",null,null,"900081 - Student Farm Dining Services Sales ",null,null,null,null,null,null,"GLDEDU4504 - Jonathan Sandoval EDUCATION GL Only "]
[null,null,null,"64724 - Som Pediatrics Wiedeman 41673 ",null,"785100 - Intercampus Recharges Credit UCM ",null,null,"900082 - Student Farm Ecological Garden Sales ",null,null,null,null,null,null,"GLDEDU4585 - Sophia Mattingly EDUCATION GL Only "]
[null,null,null,"64725 - Env HortResearch Neale 41674 ",null,"785110 - Intercampus Recharges Credit UCOP ",null,null,"900083 - Student Farm Field Operations ",null,null,null,null,null,null,"GLDEDU4735 - Julius M Sassenrath EDUCATION GL Only "]
[null,null,null,"64726 - Betty Davis Memorial Grad Fellowshi 41675 ",null,"785120 - Intercampus Recharges Credit ANR ",null,null,"900084 - Student Farm Market Garden Sales ",null,null,null,null,null,null,"GLDEDU4748 - Marcela Cuellar EDUCATION GL Only "]
[null,null,null,"64728 - Som Med Surgery Dawson 41677 ",null,null,null,null,"900085 - Honey Wheel ",null,null,null,null,null,null,"GLDEDU4787 - Gloria Rodriguez EDUCATION GL Only "]
[null,null,null,"64730 - Eng SissKathAnn Gerhardt Scholarship 41679 ",null,null,null,null,"900086 - Olive Center Body Products ",null,null,null,null,null,null,"GLDEDU4805 - Rebecca Ambrose EDUCATION GL Only "]
[null,null,null,"64731 - Dbs Annette Lentz Memorial 41680 ",null,null,null,null,"900087 - Olive Center Oil Products ",null,null,null,null,null,null,"GLDEDU4982 - Lynn Fowler EDUCATION GL Only "]
[null,null,null,"64733 - Eng Comp Sci Cmad Conference Funds 41682 ",null,null,null,null,"900088 - Olive Center Other Products ",null,null,null,null,null,null,"GLDEDU5237 - Gustavo Gonzalez EDUCATION GL Only "]
[null,null,null,"64735 - Eng Comp SciEdo2000 Funds 41684 ",null,null,null,null,"900089 - Queen Bees Workshop ",null,null,null,null,null,null,"GLDEDU5260 - Rachel L Henry EDUCATION GL Only "]
[null,null,null,"64736 - Eng Ece YooSprint 0304 Research 41685 ",null,null,null,null,"900090 - Master Beekeepers Course ",null,null,null,null,null,null,"GLDEDU5269 - Heather Schlaman EDUCATION GL Only "]
[null,null,null,"64737 - Som Impm Pulmonary Gohil 41686 ",null,null,null,null,"900091 - Superfund ",null,null,null,null,null,null,"GLDEDU5270 - Steven Sewell EDUCATION GL Only "]
[null,null,null,"64739 - Eng Comp SciRaid 2001 Conf Funds 41688 ",null,null,null,null,"900092 - Barley ",null,null,null,null,null,null,"GLDEDU5332 - Patti A Fejarang Herrera EDUCATION GL Only "]
[null,null,null,"64740 - Ece Van Der SchaarPhilips 41689 ",null,null,null,null,"900093 - Beans ",null,null,null,null,null,null,"GLDEDU5477 - Susana Mayorga EDUCATION GL Only "]
[null,null,null,"64742 - SomMedMphaJtrimmerSuny Gift Funds 41691 ",null,null,null,null,"900094 - Cowpeas ",null,null,null,null,null,null,"GLDEDU5681 - Doron J Markus EDUCATION GL Only "]
[null,null,null,"64743 - CAES Animal Science Meyer Memorial 41692 ",null,null,null,null,"900095 - Fields ",null,null,null,null,null,null,"GLDEDU5696 - Alicia Herrera EDUCATION GL Only "]
[null,null,null,"64744 - VMTH Behavior Programs Buddys Pals 41693 ",null,null,null,null,"900096 - Garbanzo ",null,null,null,null,null,null,"GLDEDU5697 - Lacey Boatman EDUCATION GL Only "]
[null,null,null,"64745 - DANRCcandSo Reg Ventura Lopez 41694 ",null,null,null,null,"900097 - Germination ",null,null,null,null,null,null,"GLDEDU5819 - Alicia Rusoja EDUCATION GL Only "]
[null,null,null,"64748 - Env SciandPolicy Research Handy 41697 ",null,null,null,null,"900098 - Grass ",null,null,null,null,null,null,"GLDEDU5837 - Yianella Blanco EDUCATION GL Only "]
[null,null,null,"64749 - AAES FST Research Mccarthy 41698 ",null,null,null,null,"900099 - Limas ",null,null,null,null,null,null,"GLDIEG0146 - Cheryl Wilen UCCE SAN DIEGO COUNTY GL Only "]
[null,null,null,"64752 - UCDMC Pediatric Hospice Memorial Fund 41701 ",null,null,null,null,"900100 - Oats ",null,null,null,null,null,null,"GLDIEG0157 - Vincent Lazaneo UCCE SAN DIEGO COUNTY GL Only "]
[null,null,null,"64753 - VMCeh Cushings Disease 41702 ",null,null,null,null,"900101 - Peas ",null,null,null,null,null,null,"GLDIEG0158 - Leigh Johnson UCCE SAN DIEGO COUNTY GL Only "]
[null,null,null,"64754 - Med Human Physiology 41704 ",null,null,null,null,"900102 - Triticale ",null,null,null,null,null,null,"GLDIEG0163 - Carl Bell UCCE SAN DIEGO COUNTY GL Only "]
[null,null,null,"64755 - Som Pediatrics 41705 ",null,null,null,null,"900103 - Wheat ",null,null,null,null,null,null,"GLDIEG0165 - James Bethke UCCE SAN DIEGO COUNTY GL Only "]
[null,null,null,"64756 - Eng Ece Hurst Spencer 0304 TdkMicro 41706 ",null,null,null,null,"900104 - Future Varieties Block ",null,null,null,null,null,null,"GLDIEG0167 - Patti Wooten Swanson UCCE SAN DIEGO COUNTY GL Only "]
[null,null,null,"64758 - DANR Master Gardeners Madera Co 41708 ",null,null,null,null,"900105 - Chemicals ",null,null,null,null,null,null,"GLDIEG0242 - Beverly Wallace UCCE SAN DIEGO COUNTY GL Only "]
[null,null,null,"64759 - Som Path clinical Lab Larkin 41709 ",null,null,null,null,"900106 - Growing containers ",null,null,null,null,null,null,"GLDIEG0263 - Sue Manglallan UCCE SAN DIEGO COUNTY GL Only "]
[null,null,null,"64761 - VM WifssDescretionary Funds 41711 ",null,null,null,null,"900107 - Electrical supplies ",null,null,null,null,null,null,"GLDIEG5135 - Gary Bender UCCE SAN DIEGO COUNTY GL Only "]
[null,null,null,"64762 - Vet MedCahfsWoodsCa Deer Assoc 41712 ",null,null,null,null,"900108 - Fertilizer ",null,null,null,null,null,null,"GLDIEG6118 - Ramiro Lobo UCCE SAN DIEGO COUNTY "]
[null,null,null,"64763 - Maynard A Amerine 41713 ",null,null,null,null,"900109 - Growing media ",null,null,null,null,null,null,"GLDIEG6142 - Eric Middleton UCCE SAN DIEGO COUNTY "]
[null,null,null,"64764 - CAES AnSci Dairy Facility 41714 ",null,null,null,null,"900110 - Irrigation supplies ",null,null,null,null,null,null,"GLDIEG6205 - Gerardo Spinelli UCCE SAN DIEGO COUNTY "]
[null,null,null,"64765 - Vet MedVMth Pharmacy Newsletter 41715 ",null,null,null,null,"900111 - Inventory ",null,null,null,null,null,null,"GLDREC6039 - Jairo DiazRamirez DESERT REC "]
[null,null,null,"64766 - DbsMcb ResearchKimbrell 41716 ",null,null,null,null,"900112 - Farming Equipment ",null,null,null,null,null,null,"GLEBAE1093 - Andre Daccache BIOLOGICAL And AG ENGINEERING GL Only "]
[null,null,null,"64767 - SomPathologyJialal 41717 ",null,null,null,null,"900113 - Beef ",null,null,null,null,null,null,"GLEBAE3019 - Kurt Kornbluth BIOLOGICAL And AG ENGINEERING GL Only "]
[null,null,null,"64768 - DANR West Side and Ext Cntr Support 41718 ",null,null,null,null,"900114 - Beef RIC ",null,null,null,null,null,null,"GLEBAE5087 - Jennifer Mullin BIOLOGICAL And AG ENGINEERING GL Only "]
[null,null,null,"64769 - VMVMth Sara Olson 41719 ",null,null,null,null,"900115 - Surgery Cole A ",null,null,null,null,null,null,"GLEBME0066 - Aaron M Streets BIOMEDICAL ENGINEERING GL Only "]
[null,null,null,"64770 - SomBloch Cancer Survivors Park 41720 ",null,null,null,null,"900117 - Meat Lab ",null,null,null,null,null,null,"GLEBME0076 - Yi Xue BIOMEDICAL ENGINEERING GL Only "]
[null,null,null,"64774 - Winery Campaign 41724 ",null,null,null,null,"900118 - Creamery ",null,null,null,null,null,null,"GLEBME0467 - Steven George BIOMEDICAL ENGINEERING GL Only "]
[null,null,null,"64776 - Vet MedCcahKoret Fdn Exchange Prgm 41726 ",null,null,null,null,"900119 - Dairy ",null,null,null,null,null,null,"GLEBME0552 - Volkmar Heinrich BIOMEDICAL ENGINEERING GL Only "]
[null,null,null,"64777 - Ovcr Tech Maint Of Intellectual Pro 41727 ",null,null,null,null,"900120 - Farming Operations ",null,null,null,null,null,null,"GLEBME0652 - Stephen Howell BIOMEDICAL ENGINEERING GL Only "]
[null,null,null,"64804 - LandS Physics Microsoft 41754 ",null,null,null,null,"920004 - San Benito ",null,null,null,null,null,null,"GLEBME2491 - Jinyi Qi BIOMEDICAL ENGINEERING GL Only "]
[null,null,null,"64830 - EceMarvell 0304 Micro Match 41779 ",null,null,null,null,"920021 - Lake ",null,null,null,null,null,null,"GLEBME5834 - Xianglong Wang BIOMEDICAL ENGINEERING GL Only "]
[null,null,null,"64853 - VMvsrsNovartisKent 41802 ",null,null,null,null,"920038 - Sacramento County ",null,null,null,null,null,null,"GLECEE1644 - Frank Loge CIVIL And ENVIRONMENTAL ENGR GL Only "]
[null,null,null,"64886 - UCDF Flow Through Fund 41835 ",null,null,null,null,"920055 - Trinity ",null,null,null,null,null,null,"GLECEE3116 - Boris Jeremic CIVIL And ENVIRONMENTAL ENGR GL Only "]
[null,null,null,"64911 - Mcb Research Callis 41860 ",null,null,null,null,null,null,null,null,null,null,null,"GLECEE4726 - Hanjiro W Ambrose CIVIL And ENVIRONMENTAL ENGR GL Only "]
[null,null,null,"64934 - Office Of CampusandCommunity Relations 41883 ",null,null,null,null,null,null,null,null,null,null,null,"GLECHE0693 - Robert Powell CHEMICAL ENGINEERING GL Only "]
[null,null,null,"64959 - DANR San Diego 4H Youth Dasher 41908 ",null,null,null,null,null,null,null,null,null,null,null,"GLECHE2880 - Jason White CHEMICAL ENGINEERING GL Only "]
[null,null,null,"64960 - Sylvia and Peter Liebeskind Scholarship 41909 ",null,null,null,null,null,null,null,null,null,null,null,"GLECHE2928 - Gregory Miller CHEMICAL ENGINEERING GL Only "]
[null,null,null,"64983 - AES Deans Office Pearlstein Family Fdn 41932 ",null,null,null,null,null,null,null,null,null,null,null,"GLECHM0604 - Yayoi Takamura MATERIALS SCIENCE And ENGINEERING GL Only "]
[null,null,null,"65009 - Med Ophth Glaucoma Research 41959 ",null,null,null,null,null,null,null,null,null,null,null,"GLECHM4789 - Roopali Kukreja MATERIALS SCIENCE And ENGINEERING GL Only "]
[null,null,null,"65040 - DANR 4H Youth Governance Murdock 41990 ",null,null,null,null,null,null,null,null,null,null,null,"GLECSE0681 - Kwan Liu Ma ENGR COMPUTER SCIENCE GL Only "]
[null,null,null,"65086 - Med Mpho Research West 42036 ",null,null,null,null,null,null,null,null,null,null,null,"GLECSE2434 - Lawrence Kou ENGR COMPUTER SCIENCE GL Only "]
[null,null,null,"65122 - VMdo Brooks Ford Memorial Scholarship 42072 ",null,null,null,null,null,null,null,null,null,null,null,"GLECSE4064 - Hao Chuan Wang ENGR COMPUTER SCIENCE GL Only "]
[null,null,null,"65142 - Patient Care Serv Med SurgICAl Icu Fund 42092 ",null,null,null,null,null,null,null,null,null,null,null,"GLECSE5602 - Jiawei Zhang ENGR COMPUTER SCIENCE GL Only "]
[null,null,null,"65171 - Avian Sci Research Bradley 42121 ",null,null,null,null,null,null,null,null,null,null,null,"GLEECE1600 - Gary Ford ELECT And COMP ENGR GL Only "]
[null,null,null,"65194 - Sch Ed Words Take Wing Lecture Series 42144 ",null,null,null,null,null,null,null,null,null,null,null,"GLEECE2865 - Gary S May ELECT And COMP ENGR GL Only "]
[null,null,null,"65219 - Env Tox Grissom Chevron 42169 ",null,null,null,null,null,null,null,null,null,null,null,"GLEECE3780 - Sung Joo Ben Yoo ELECT And COMP ENGR GL Only "]
[null,null,null,"65248 - Ecs IntelLevitt 42198 ",null,null,null,null,null,null,null,null,null,null,null,"GLEECE4967 - Marina Radulaski ELECT And COMP ENGR GL Only "]
[null,null,null,"65286 - UCDF CarolynandTimothy FerrisSwig Foun 42236 ",null,null,null,null,null,null,null,null,null,null,null,"GLEMAE1176 - Harry Cheng MECHANICAL And AEROSPACE ENGR GL Only "]
[null,null,null,"65310 - VMCehAlamo Pintado Gift April 2009 42260 ",null,null,null,null,null,null,null,null,null,null,null,"GLEMAE3022 - James Schaaf MECHANICAL And AEROSPACE ENGR GL Only "]
[null,null,null,"65342 - Caes Entomology Irene Terry 42292 ",null,null,null,null,null,null,null,null,null,null,null,"GLEMAE5289 - Shima Nazari MECHANICAL And AEROSPACE ENGR GL Only "]
[null,null,null,"65377 - SoVM Brick Campaign 42327 ",null,null,null,null,null,null,null,null,null,null,null,"GLFMCP0259 - Joe Camarillo UCCE FRESNO MADERA MCP GL Only "]
[null,null,null,"65406 - Som Mpha Jean Berry Citizenship Awards 42355 ",null,null,null,null,null,null,null,null,null,null,null,"GLGSM10423 - Peter Clark GRADUATE SCHOOL OF MANAGEMENT GL Only "]
[null,null,null,"65410 - UCDF ChemDietrich Canadian Railway 42360 ",null,null,null,null,null,null,null,null,null,null,null,"GLGSM10473 - Robert Smiley GRADUATE SCHOOL OF MANAGEMENT GL Only "]
[null,null,null,"65437 - Etox Salad Cosmo Usa Corp 42387 ",null,null,null,null,null,null,null,null,null,null,null,"GLGSM11897 - Hemant Bhargava GRADUATE SCHOOL OF MANAGEMENT GL Only "]
[null,null,null,"65462 - VM VM3B Building Campaign Fund 42412 ",null,null,null,null,null,null,null,null,null,null,null,"GLGSM13130 - Hemant Vaidya GRADUATE SCHOOL OF MANAGEMENT GL Only "]
[null,null,null,"65496 - Som Chee Fat 42446 ",null,null,null,null,null,null,null,null,null,null,null,"GLGSM14104 - Daniel Kennedy GRADUATE SCHOOL OF MANAGEMENT GL Only "]
[null,null,null,"65532 - VM Mounted Patrol Foundation Scholarshi 42482 ",null,null,null,null,null,null,null,null,null,null,null,"GLGSM15255 - Marybeth Kavanagh GRADUATE SCHOOL OF MANAGEMENT GL Only "]
[null,null,null,"65567 - Erin Barry Memorial Schp 42519 ",null,null,null,null,null,null,null,null,null,null,null,"GLGSM15765 - Horacio Enriquez GRADUATE SCHOOL OF MANAGEMENT GL Only "]
[null,null,null,"65598 - Bernese Mountain Dog Res 42550 ",null,null,null,null,null,null,null,null,null,null,null,"GLIGIS6122 - Andrew Lyons INFORMATICS  GIS SW PROGRAM "]
[null,null,null,"65621 - Bass Fishing Club Gift Acct 42573 ",null,null,null,null,null,null,null,null,null,null,null,"GLIMCA1068 - Victor O Bonilla MED INT MED CARDIOLOGY GL Only "]
[null,null,null,"65645 - BiochemandBiophy Res Carlson 42597 ",null,null,null,null,null,null,null,null,null,null,null,"GLIMCA2717 - Patricia Applegate MED INT MED CARDIOLOGY GL Only "]
[null,null,null,"65671 - Sveccs Scholarship 42623 ",null,null,null,null,null,null,null,null,null,null,null,"GLIMCA3930 - Imo Ebong MED INT MED CARDIOLOGY GL Only "]
[null,null,null,"65694 - BmlBlack Abalone Res 42646 ",null,null,null,null,null,null,null,null,null,null,null,"GLIMCA5961 - Mark Villalon MED INT MED CARDIOLOGY GL Only "]
[null,null,null,"65718 - Robert Watwood Memorial Fund 42669 ",null,null,null,null,null,null,null,null,null,null,null,"GLIMCT5305 - GULIETA CURTOLA Med Cellular Therapy and BM Transplant GL ONLY "]
[null,null,null,"65739 - Med Cc UCDF Mayra Welch Res End 42689 ",null,null,null,null,null,null,null,null,null,null,null,"GLIMEN1044 - Lowell Wilson MED Int Med Endocrinology GL Only "]
[null,null,null,"65765 - Fienn Grape Metabolic Research 42715 ",null,null,null,null,null,null,null,null,null,null,null,"GLIMEN4772 - Michael Geokas MED Int Med Endocrinology GL Only "]
[null,null,null,"65785 - ANR4H Volunteer Website Development 42735 ",null,null,null,null,null,null,null,null,null,null,null,"GLIMGI1046 - Antonio Mendoza Ladd MED Int Med Gastroenterology GL Only "]
[null,null,null,"65810 - Moot Court Fund 42760 ",null,null,null,null,null,null,null,null,null,null,null,"GLIMGI3318 - Valentina Medici MED Int Med Gastroenterology GL Only "]
[null,null,null,"65811 - Loan Repayment Assistant Program 42761 ",null,null,null,null,null,null,null,null,null,null,null,"GLIMGI3362 - George Meyer MED Int Med Gastroenterology GL Only "]
[null,null,null,"65835 - Friedrich Juenger Mem Schlrshp Fund 42785 ",null,null,null,null,null,null,null,null,null,null,null,"GLIMGI5548 - Ashish Atreja MED Int Med Gastroenterology GL Only "]
[null,null,null,"65856 - MaeFunctional BayCheng 42806 ",null,null,null,null,null,null,null,null,null,null,null,"GLIMGM1406 - Priscilla Yee MED Int Med GM Education GL Only "]
[null,null,null,"65884 - Levine Doniation Account 42835 ",null,null,null,null,null,null,null,null,null,null,null,"GLIMGM3152 - John Landefeld MED Int Med Genl Medicine GL Only "]
[null,null,null,"65904 - Cal Teach 42855 ",null,null,null,null,null,null,null,null,null,null,null,"GLIMGM5190 - Thomas J Ferguson MED Int Med Genl Medicine GL Only "]
[null,null,null,"65932 - Entomology General Funds 42883 ",null,null,null,null,null,null,null,null,null,null,null,"GLIMHO0929 - Jeanna Welborn MED Int Med HEMONC GL Only "]
[null,null,null,"65961 - Dr David H Bruser Memorial Schlsp 42912 ",null,null,null,null,null,null,null,null,null,null,null,"GLIMHO2816 - Theresa Keegan MED Int Med HEMONC GL Only "]
[null,null,null,"65985 - Water Quality Research 42936 ",null,null,null,null,null,null,null,null,null,null,null,"GLIMHO5006 - Kendra Hutchinson MED Int Med HEMONC GL Only "]
[null,null,null,"66008 - MindGala Donations 42959 ",null,null,null,null,null,null,null,null,null,null,null,"GLIMHP0874 - Monica S Srivastava MED Int Med Hospitalist GL Only "]
[null,null,null,"66032 - VMth Wallace Renovation Fund 42984 ",null,null,null,null,null,null,null,null,null,null,null,"GLIMHP2501 - Nisa Hatami MED Int Med Hospitalist GL Only "]
[null,null,null,"66056 - Olive OilandHealth Research Fund 43009 ",null,null,null,null,null,null,null,null,null,null,null,"GLIMHP3542 - Cecilia Sing Sing Huang MED Int Med Hospitalist GL Only "]
[null,null,null,"66079 - DANRMonterey CoEntomology RsrchEd 43032 ",null,null,null,null,null,null,null,null,null,null,null,"GLIMHP4685 - Catherine Chia MED Int Med Hospitalist GL Only "]
[null,null,null,"66104 - Pacific GasandElectric 43057 ",null,null,null,null,null,null,null,null,null,null,null,"GLIMHP5667 - Ali Arif Nasir MED Int Med Hospitalist GL Only "]
[null,null,null,"66128 - Caf Apricot Softening Luh 43082 ",null,null,null,null,null,null,null,null,null,null,null,"GLIMID2522 - George Thompson MED Int Med Infectious Dis GL Only "]
[null,null,null,"66155 - Blanche L Price Scholarship 43109 ",null,null,null,null,null,null,null,null,null,null,null,"GLIMID5805 - Sebastian Winter MED Int Med Infectious Dis GL Only "]
[null,null,null,"66176 - Lawr Soil Research Pettygrove 43130 ",null,null,null,null,null,null,null,null,null,null,null,"GLIMNE1352 - Michael T Sim MED Int Med Nephrology GL Only "]
[null,null,null,"66179 - Rmi Institute For WineandFood Science 43133 ",null,null,null,null,null,null,null,null,null,null,null,"GLIMNE1885 - Burl Don MED Int Med Nephrology GL Only "]
[null,null,null,"66213 - UCSB Sage Fndn Dean Mangun Research 43168 ",null,null,null,null,null,null,null,null,null,null,null,"GLIMPA4826 - Pouria Kashkouli MED Palliative Care GL Only "]
[null,null,null,"66237 - Med Ped Eldon Bachman Fund 43192 ",null,null,null,null,null,null,null,null,null,null,null,"GLIMPM1144 - Hugh Black MED Int Med Pulmonary GL Only "]
[null,null,null,"66271 - Amb Svs Pediatric Support 43226 ",null,null,null,null,null,null,null,null,null,null,null,"GLIMPM3365 - Deepak Shrivastava MED Int Med Pulmonary GL Only "]
[null,null,null,"66299 - Ag Sustainability Institute 43254 ",null,null,null,null,null,null,null,null,null,null,null,"GLIMPM5141 - Aaron J Roberts MED Int Med Pulmonary GL Only "]
[null,null,null,"66322 - Plt Sci FruitandNut Research Info Ctr 43277 ",null,null,null,null,null,null,null,null,null,null,null,"GLIMRH1141 - Suraj Timilsina MED Int Med Rheumatology GL Only "]
[null,null,null,"66347 - ICA Womens Field Hockey Development 43302 ",null,null,null,null,null,null,null,null,null,null,null,"GLIMRH4175 - Shirin Mansoor Shad MED Int Med Rheumatology GL Only "]
[null,null,null,"66365 - ICA Womens Track Development 43320 ",null,null,null,null,null,null,null,null,null,null,null,"GLIPMP6059 - Sandipa Gautam STATEWIDE IPM PROGRAM "]
[null,null,null,"66382 - ICA Schmalenberger Schlp 43337 ",null,null,null,null,null,null,null,null,null,null,null,"GLKERN0206 - John Karlik UCCE KERN COUNTY GL Only "]
[null,null,null,"66401 - DANR Master GardenersMerced 43356 ",null,null,null,null,null,null,null,null,null,null,null,"GLLAAS0469 - Milmon Harrison AFRICAN AMERICAN AFRICAN STDS GL Only "]
[null,null,null,"66422 - Ipm Prgm Field andSpecialty Crops 43377 ",null,null,null,null,null,null,null,null,null,null,null,"GLLAHI1271 - Katharine Burnett ART And ART HISTORY GL Only "]
[null,null,null,"66443 - LAWR Environmentors Program 43398 ",null,null,null,null,null,null,null,null,null,null,null,"GLLAHI5180 - Conrad Atkinson ART And ART HISTORY GL Only "]
[null,null,null,"66460 - Campus Rec Triathlon 43415 ",null,null,null,null,null,null,null,null,null,null,null,"GLLAMS3021 - Eleftheria Arapoglou AMERICAN STUDIES GL Only "]
[null,null,null,"66477 - K HincheeRodriguez PhD Awd Sppt Fnd 43432 ",null,null,null,null,null,null,null,null,null,null,null,"GLLANT0971 - John Darwent ANTHROPOLOGY GL Only "]
[null,null,null,"66496 - Ca CattlemenS Res Assistantship 43451 ",null,null,null,null,null,null,null,null,null,null,null,"GLLANT3376 - Suzana Sawyer ANTHROPOLOGY GL Only "]
[null,null,null,"66526 - VM VMdo ScheringPlough Grad 43481 ",null,null,null,null,null,null,null,null,null,null,null,"GLLASA0676 - Robyn Rodriguez ASIAN AMERICAN GL Only "]
[null,null,null,"66528 - ChildrenS Hospital Picu Support 43483 ",null,null,null,null,null,null,null,null,null,null,null,"GLLASA0721 - Susette Min ASIAN AMERICAN GL Only "]
[null,null,null,"66594 - Plt Sci Research Six Johan 43554 ",null,null,null,null,null,null,null,null,null,null,null,"GLLCDM0558 - Joshua McCoy CINEMA And DIGITAL MEDIA GL Only "]
[null,null,null,"66626 - Ucce Kern Program Support 43586 ",null,null,null,null,null,null,null,null,null,null,null,"GLLCDM4934 - Robert Ostertag CINEMA And DIGITAL MEDIA GL Only "]
[null,null,null,"66652 - Vit and Enol DEVO 43612 ",null,null,null,null,null,null,null,null,null,null,null,"GLLCHE0794 - Davide Donadio CHEMISTRY GL Only "]
[null,null,null,"66679 - Mph Fee Fellowship 43638 ",null,null,null,null,null,null,null,null,null,null,null,"GLLCHE1858 - William Fawcett CHEMISTRY GL Only "]
[null,null,null,"66703 - Orange Co Ucce Prgram Supoort Kabashim 43662 ",null,null,null,null,null,null,null,null,null,null,null,"GLLCHE3657 - Jacquelyn Gervay Hague CHEMISTRY GL Only "]
[null,null,null,"66729 - VMVsr Stem Cell Rsrch 43688 ",null,null,null,null,null,null,null,null,null,null,null,"GLLCHE4910 - Bryan Enderle CHEMISTRY GL Only "]
[null,null,null,"66751 - DANRWestern Reg Leaders Forum 43708 ",null,null,null,null,null,null,null,null,null,null,null,"GLLCHI2244 - Ofelia Cuevas CHICANO STUDIES GL Only "]
[null,null,null,"66771 - VMth Behavior Service 43728 ",null,null,null,null,null,null,null,null,null,null,null,"GLLCLA2710 - Carey Seal CLASSICS GL Only "]
[null,null,null,"66795 - DANR4H Series Sonoma 43751 ",null,null,null,null,null,null,null,null,null,null,null,"GLLCMN1465 - Laramie Taylor COMMUNICATION GL Only "]
[null,null,null,"66819 - VMCcah Feline Cardiomyopathy 43772 ",null,null,null,null,null,null,null,null,null,null,null,"GLLCMN4958 - Jaeho Cho COMMUNICATION GL Only "]
[null,null,null,"66861 - DANR Yolo Co Livestock Prog Support 43812 ",null,null,null,null,null,null,null,null,null,null,null,"GLLCOM1315 - Stefan Uhlig COMPARATIVE LITERATURE GL Only "]
[null,null,null,"66882 - Ldpc CodesCommunICAtionData Storage 43833 ",null,null,null,null,null,null,null,null,null,null,null,"GLLDES0890 - Lloyd Wheeler DEPARTMENT OF DESIGN GL Only "]
[null,null,null,"66917 - VM WildlifeAquatic Ani Med Endow Accrl 43868 ",null,null,null,null,null,null,null,null,null,null,null,"GLLDES3046 - Jiayi Young DEPARTMENT OF DESIGN GL Only "]
[null,null,null,"66944 - LW Flaco Feldmiller Schp Fund 43895 ",null,null,null,null,null,null,null,null,null,null,null,"GLLDES5621 - Meg Quarton DEPARTMENT OF DESIGN GL Only "]
[null,null,null,"66970 - Automotive Computing Using The Gpu 43921 ",null,null,null,null,null,null,null,null,null,null,null,"GLLDRA3298 - Maggie Morgan THEATRE And DANCE GL Only "]
[null,null,null,"66973 - African American Student Scholarship Fnd 43924 ",null,null,null,null,null,null,null,null,null,null,null,"GLLDRA3728 - Peter Lichtenfels THEATRE And DANCE GL Only "]
[null,null,null,"67000 - Erickson Trust Scholarship Fund 43951 ",null,null,null,null,null,null,null,null,null,null,null,"GLLEAL1559 - I Chia Lee EAST ASIAN LANG And CULTURES GL Only "]
[null,null,null,"67022 - Baumann Fellowship Fund 43973 ",null,null,null,null,null,null,null,null,null,null,null,"GLLEAL4682 - Yuming He EAST ASIAN LANG And CULTURES GL Only "]
[null,null,null,"67044 - VM Molecular BiosciFeline Research 43995 ",null,null,null,null,null,null,null,null,null,null,null,"GLLECN1255 - Hiromitsu Kaneda ECONOMICS GL Only "]
[null,null,null,"67067 - Food Animal Medicine Service 44019 ",null,null,null,null,null,null,null,null,null,null,null,"GLLECN3391 - Alan Olmstead ECONOMICS GL Only "]
[null,null,null,"67094 - VM Class Of 82 Scholarship 44046 ",null,null,null,null,null,null,null,null,null,null,null,"GLLECN4537 - Derek Stimel ECONOMICS GL Only "]
[null,null,null,"67121 - Large Animal clinical Discovery 44073 ",null,null,null,null,null,null,null,null,null,null,null,"GLLENL0489 - David Simpson ENGLISH GL Only "]
[null,null,null,"67153 - Leadership Board Student Support Fund 44105 ",null,null,null,null,null,null,null,null,null,null,null,"GLLENL2081 - Parama Roy ENGLISH GL Only "]
[null,null,null,"67182 - History Project General Support 44134 ",null,null,null,null,null,null,null,null,null,null,null,"GLLENL3080 - Hsuan Hsu ENGLISH GL Only "]
[null,null,null,"67203 - Art History Program 44155 ",null,null,null,null,null,null,null,null,null,null,null,"GLLENL4456 - Sandra Mcpherson ENGLISH GL Only "]
[null,null,null,"67229 - Chem Department Support 44181 ",null,null,null,null,null,null,null,null,null,null,null,"GLLEPS0024 - David Gold EARTH And PLANETARY SCIENCES GL Only "]
[null,null,null,"67249 - Cancer Research Heyer Lab 44201 ",null,null,null,null,null,null,null,null,null,null,null,"GLLEPS2186 - Mark Deblois EARTH And PLANETARY SCIENCES GL Only "]
[null,null,null,"67267 - Nextsteps Program 44219 ",null,null,null,null,null,null,null,null,null,null,null,"GLLEPS4729 - Tessa Hill EARTH And PLANETARY SCIENCES GL Only "]
[null,null,null,"67308 - Autism Awareness Month 44261 ",null,null,null,null,null,null,null,null,null,null,null,"GLLFAI2813 - Grace Delmolino FRENCH And ITALIAN GL Only "]
[null,null,null,"67327 - Chem EngrSony 44280 ",null,null,null,null,null,null,null,null,null,null,null,"GLLGAR0896 - Liliana Avramenko GERMAN And RUSSIAN GL Only "]
[null,null,null,"67350 - Dr Wing Chin Memorial Schlsp 44303 ",null,null,null,null,null,null,null,null,null,null,null,"GLLGSW1348 - Judith Newton GENDERSEXUALITY WOMENSSTUDIES GL Only "]
[null,null,null,"67354 - ErikS Fund For Hcm Research 44307 ",null,null,null,null,null,null,null,null,null,null,null,"GLLGSW1681 - Elizabeth Constable GENDERSEXUALITY WOMENSSTUDIES GL Only "]
[null,null,null,"67374 - Bacon Graduate Fellowship Poli Sci 44327 ",null,null,null,null,null,null,null,null,null,null,null,"GLLHIS0480 - Baki Tezcan HISTORY GL Only "]
[null,null,null,"67395 - Education Research Advancement 44348 ",null,null,null,null,null,null,null,null,null,null,null,"GLLHIS2201 - Rachel St John HISTORY GL Only "]
[null,null,null,"67416 - Magruder Graduate Fellowships 44369 ",null,null,null,null,null,null,null,null,null,null,null,"GLLHIS3936 - John Smolenski HISTORY GL Only "]
[null,null,null,"67434 - Bme Faculty Support 44387 ",null,null,null,null,null,null,null,null,null,null,null,"GLLHIS5041 - Louis Warren HISTORY GL Only "]
[null,null,null,"67455 - Cee Structural Engr Faculty Support 44408 ",null,null,null,null,null,null,null,null,null,null,null,"GLLIBR3504 - George Bynon UCDLIBRARY GL Only "]
[null,null,null,"67474 - Ccc clinical Trial Coordinator 44427 ",null,null,null,null,null,null,null,null,null,null,null,"GLLIBR4996 - Carol Larussa UCDLIBRARY GL Only "]
[null,null,null,"67498 - Colt FoundationWheat 44451 ",null,null,null,null,null,null,null,null,null,null,null,"GLLLAW0897 - Clarisa Sudarma SCHOOL OF LAW GL Only "]
[null,null,null,"67522 - Food Research Video Fund 44475 ",null,null,null,null,null,null,null,null,null,null,null,"GLLLAW1948 - Stacy Ann Elvy SCHOOL OF LAW GL Only "]
[null,null,null,"67548 - Blanche Neige Gala 44501 ",null,null,null,null,null,null,null,null,null,null,null,"GLLLAW2980 - Shama Mesiwala SCHOOL OF LAW GL Only "]
[null,null,null,"67572 - Sandra Reed Scholarship Fund 44525 ",null,null,null,null,null,null,null,null,null,null,null,"GLLLAW3885 - Lawrence Brown SCHOOL OF LAW GL Only "]
[null,null,null,"67597 - Ca Homebuilding Foundation Scholarship 44551 ",null,null,null,null,null,null,null,null,null,null,null,"GLLLAW5100 - Darien Shanske SCHOOL OF LAW GL Only "]
[null,null,null,"67620 - Canine OrthopedicsandGait Analysis Rsch 44574 ",null,null,null,null,null,null,null,null,null,null,null,"GLLLAW5643 - Jaclyn Nicole Zumaeta SCHOOL OF LAW GL Only "]
[null,null,null,"67645 - Diversity Leadership 44599 ",null,null,null,null,null,null,null,null,null,null,null,"GLLLIN0288 - David Corina LINGUISTICS GL Only "]
[null,null,null,"67673 - John T Young Bone Marrow Research 44627 ",null,null,null,null,null,null,null,null,null,null,null,"GLLMAT0030 - Joseph Teran MATHEMATICS GL Only "]
[null,null,null,"67693 - Jere Curry Memorial Fd 44647 ",null,null,null,null,null,null,null,null,null,null,null,"GLLMAT1164 - Monica Vazirani MATHEMATICS GL Only "]
[null,null,null,"67694 - CnlRmc Lonestar 44648 ",null,null,null,null,null,null,null,null,null,null,null,"GLLMAT1317 - D Benson MATHEMATICS GL Only "]
[null,null,null,"67718 - Museum Of Art Fund 44672 ",null,null,null,null,null,null,null,null,null,null,null,"GLLMAT1977 - Elena Fuchs MATHEMATICS GL Only "]
[null,null,null,"67737 - Dramatic ArtComputersInternet 44691 ",null,null,null,null,null,null,null,null,null,null,null,"GLLMAT3392 - Korana Burke MATHEMATICS GL Only "]
[null,null,null,"67761 - Badminton Sport Club 44715 ",null,null,null,null,null,null,null,null,null,null,null,"GLLMAT4464 - Robert Guy MATHEMATICS GL Only "]
[null,null,null,"67780 - Darrowby Angel Fund 44734 ",null,null,null,null,null,null,null,null,null,null,null,"GLLMAT5612 - Zhanerke Temirgali MATHEMATICS GL Only "]
[null,null,null,"67804 - Mondavi Center Artistic Ventures Fund 44758 ",null,null,null,null,null,null,null,null,null,null,null,"GLLMAT5801 - Melissa Zhang MATHEMATICS GL Only "]
[null,null,null,"67838 - Ivus Course Support 44792 ",null,null,null,null,null,null,null,null,null,null,null,"GLLMUS0063 - Hrafnhildur Atladottir MUSIC GL Only "]
[null,null,null,"67855 - Ucce Nevada County Fund 44809 ",null,null,null,null,null,null,null,null,null,null,null,"GLLMUS2090 - Susan Lamb MUSIC GL Only "]
[null,null,null,"67872 - The California Stem In Ost Initiative 44826 ",null,null,null,null,null,null,null,null,null,null,null,"GLLMUS3774 - Robert Bloch MUSIC GL Only "]
[null,null,null,"67891 - Lte Technology Research Support 44845 ",null,null,null,null,null,null,null,null,null,null,null,"GLLMUS5761 - Heidi Moss Erickson MUSIC GL Only "]
[null,null,null,"67912 - Family ProtectionandLegal Assistance Sch 44866 ",null,null,null,null,null,null,null,null,null,null,null,"GLLNAS4633 - Zoila Mendoza NATIVE AMERICAN STUDIES GL Only "]
[null,null,null,"67936 - El Cajon Rotary York DVM Schp 44890 ",null,null,null,null,null,null,null,null,null,null,null,"GLLPHI0662 - Zoe Drayson PHILOSOPHY GL Only "]
[null,null,null,"67955 - Animal Biotechnology Fund 44909 ",null,null,null,null,null,null,null,null,null,null,null,"GLLPHI3106 - Jan Szaif PHILOSOPHY GL Only "]
[null,null,null,"67990 - Stephen Davenport Sholarship 44944 ",null,null,null,null,null,null,null,null,null,null,null,"GLLPHY0659 - Albert De Roeck PHYSICS GL Only "]
[null,null,null,"68035 - Energy Efficiency Center Support 44989 ",null,null,null,null,null,null,null,null,null,null,null,"GLLPHY1545 - Maxwell B Chertok PHYSICS GL Only "]
[null,null,null,"68055 - Coe 50Th Anniversary Gala Support 45009 ",null,null,null,null,null,null,null,null,null,null,null,"GLLPHY2852 - Rajiv Singh PHYSICS GL Only "]
[null,null,null,"68056 - Arthur J Neves DVM Memorial 45010 ",null,null,null,null,null,null,null,null,null,null,null,"GLLPHY2886 - Jaroslav Trnka PHYSICS GL Only "]
[null,null,null,"68079 - Ucce Santa Clara Algert 45033 ",null,null,null,null,null,null,null,null,null,null,null,"GLLPHY3772 - Eduardo Higino Da Silva Neto PHYSICS GL Only "]
[null,null,null,"68101 - AnesthandPain Med Support Sheth 45055 ",null,null,null,null,null,null,null,null,null,null,null,"GLLPHY4709 - Xiangdong Zhu PHYSICS GL Only "]
[null,null,null,"68123 - Class Of 92 VMth FacilitiesandEquipment 45077 ",null,null,null,null,null,null,null,null,null,null,null,"GLLPOL0832 - Brandon Kinne POLITICAL SCIENCE GL Only "]
[null,null,null,"68149 - Dbs Epilepsy Research 45103 ",null,null,null,null,null,null,null,null,null,null,null,"GLLPOL3148 - Robert Taylor POLITICAL SCIENCE GL Only "]
[null,null,null,"68169 - VMdo Donna W Walker Scholarship 45123 ",null,null,null,null,null,null,null,null,null,null,null,"GLLPOL5145 - Joel Landis POLITICAL SCIENCE GL Only "]
[null,null,null,"68195 - Poultry Research Zhou 45149 ",null,null,null,null,null,null,null,null,null,null,null,"GLLPSC1456 - Lindsay Bowman PSYCHOLOGY GL Only "]
[null,null,null,"68221 - Dean Donaldson Fund 45175 ",null,null,null,null,null,null,null,null,null,null,null,"GLLPSC2529 - Paul Hastings PSYCHOLOGY GL Only "]
[null,null,null,"68242 - MepEuii Space 45196 ",null,null,null,null,null,null,null,null,null,null,null,"GLLPSC4022 - George Mangun PSYCHOLOGY GL Only "]
[null,null,null,"68260 - EntomOhmicron Immunochem Res 45214 ",null,null,null,null,null,null,null,null,null,null,null,"GLLPSC5193 - Karen Ericksen PSYCHOLOGY GL Only "]
[null,null,null,"68280 - Mae ResearchandEdu Act Dwyer 45234 ",null,null,null,null,null,null,null,null,null,null,null,"GLLREL3628 - Ewa Mroczek RELIGIOUS STUDIES GL Only "]
[null,null,null,"68299 - Eighteenth Century Studies 45251 ",null,null,null,null,null,null,null,null,null,null,null,"GLLSAP1960 - Norma Lopez Burton SPANISH And PORTUGUESE GL Only "]
[null,null,null,"68321 - Entom Ciba Geigy 45273 ",null,null,null,null,null,null,null,null,null,null,null,"GLLSAP6278 - Daniela Gutierrez Flores SPANISH And PORTUGUESE GL Only "]
[null,null,null,"68339 - CsIap 45291 ",null,null,null,null,null,null,null,null,null,null,null,"GLLSOC2243 - Erin Hamilton SOCIOLOGY GL Only "]
[null,null,null,"68356 - Entom ResearchandDept Support 45308 ",null,null,null,null,null,null,null,null,null,null,null,"GLLSOC3388 - James Cramer SOCIOLOGY GL Only "]
[null,null,null,"68376 - EntomBiosys Inc Scholarship 45328 ",null,null,null,null,null,null,null,null,null,null,null,"GLLSTA0907 - George Roussas STATISTICS GL Only "]
[null,null,null,"68377 - Engr Mame Shimano 45329 ",null,null,null,null,null,null,null,null,null,null,null,"GLLSTA1203 - Jiming Jiang STATISTICS GL Only "]
[null,null,null,"68397 - Entom RohmandHaas 45349 ",null,null,null,null,null,null,null,null,null,null,null,"GLLSTA3820 - Robert Shumway STATISTICS GL Only "]
[null,null,null,"68418 - ParkinsonS Disease Research 45370 ",null,null,null,null,null,null,null,null,null,null,null,"GLLSTA5609 - Ruoqi Yu STATISTICS GL Only "]
[null,null,null,"68435 - Dr Anthony Philipps Scholarship Fund 45387 ",null,null,null,null,null,null,null,null,null,null,null,"GLLUIS0191 - Richard Enfield UCCE SAN LUIS OBISPO COUNTY GL Only "]
[null,null,null,"68456 - Yu Fund 45408 ",null,null,null,null,null,null,null,null,null,null,null,"GLLUWP0882 - David Masiel UNIVERSITY WRITING PROGRAM GL Only "]
[null,null,null,"68476 - Cancer Center Auditorium Av Upgrades 45428 ",null,null,null,null,null,null,null,null,null,null,null,"GLLUWP1704 - Dale Flynn UNIVERSITY WRITING PROGRAM GL Only "]
[null,null,null,"68499 - Behavior Medicine Club Scholarship 45451 ",null,null,null,null,null,null,null,null,null,null,null,"GLLUWP2318 - Lisa Jane Klotz UNIVERSITY WRITING PROGRAM GL Only "]
[null,null,null,"68527 - Step Student Opportunity Fund 45478 ",null,null,null,null,null,null,null,null,null,null,null,"GLLUWP3576 - Gregory Miller UNIVERSITY WRITING PROGRAM GL Only "]
[null,null,null,"68550 - CemsFood Science Scholarship 45501 ",null,null,null,null,null,null,null,null,null,null,null,"GLLUWP4506 - Andrew Jones UNIVERSITY WRITING PROGRAM GL Only "]
[null,null,null,"68582 - Students United For ReformandJustice 45533 ",null,null,null,null,null,null,null,null,null,null,null,"GLLUWP5670 - Pamela Chisum UNIVERSITY WRITING PROGRAM GL Only "]
[null,null,null,"68607 - Nas Graduate Student Association 45558 ",null,null,null,null,null,null,null,null,null,null,null,"GLMADM2911 - Robert Hartmann MED Deans Office GL Only "]
[null,null,null,"68626 - Ecs Various Donors 45577 ",null,null,null,null,null,null,null,null,null,null,null,"GLMANS0406 - Lara Moser MED Anesth And Pain Medicine GL Only "]
[null,null,null,"68647 - Farmers Insurance Group CoS Schlsp 45598 ",null,null,null,null,null,null,null,null,null,null,null,"GLMANS1211 - Robert Kriss MED Anesth And Pain Medicine GL Only "]
[null,null,null,"68666 - Equine Reproduction Scholarship 45617 ",null,null,null,null,null,null,null,null,null,null,null,"GLMANS2392 - Marissa Vadi MED Anesth And Pain Medicine GL Only "]
[null,null,null,"68684 - Dar State Honey Bee Research Project 45635 ",null,null,null,null,null,null,null,null,null,null,null,"GLMANS3301 - Craig Belon MED Anesth And Pain Medicine GL Only "]
[null,null,null,"68705 - Deborah J Neff New Biology Fund 45656 ",null,null,null,null,null,null,null,null,null,null,null,"GLMANS4331 - Sharon Ashley MED Anesth And Pain Medicine GL Only "]
[null,null,null,"68706 - Infectious Diseases EducationandResearch 45657 ",null,null,null,null,null,null,null,null,null,null,null,"GLMANS4369 - Sarah Maclean MED Anesth And Pain Medicine GL Only "]
[null,null,null,"68757 - Postharvest General Student Support 45710 ",null,null,null,null,null,null,null,null,null,null,null,"GLMANS5334 - Usha Saldanha MED Anesth And Pain Medicine GL Only "]
[null,null,null,"68779 - UCDAnkai Auto Joint New Energy Vehicle 45732 ",null,null,null,null,null,null,null,null,null,null,null,"GLMANS7265 - Gregory Peterfreund MED Anest And Pain Medicine GL Only "]
[null,null,null,"68804 - Volatile Aroma Compound Research 45757 ",null,null,null,null,null,null,null,null,null,null,null,"GLMARO2080 - Richard Valicenti MED Radiation Oncology GL Only "]
[null,null,null,"68824 - Ccuh Program Support 45777 ",null,null,null,null,null,null,null,null,null,null,null,"GLMBIO0781 - Frank Chuang MED Biochem And Molecular Med GL Only "]
[null,null,null,"68841 - Delta Delta Delta Scholarship 45794 ",null,null,null,null,null,null,null,null,null,null,null,"GLMBIO3760 - Aiming Yu MED Biochem And Molecular Med GL Only "]
[null,null,null,"68859 - King Hall VeteranS Association 45812 ",null,null,null,null,null,null,null,null,null,null,null,"GLMCEL2235 - Robert Hunter MED Cell Biology And Human Anat GL Only "]
[null,null,null,"68885 - Physics Support Kiskis 45838 ",null,null,null,null,null,null,null,null,null,null,null,"GLMDER0432 - Peter Lynch MED Dermatology GL Only "]
[null,null,null,"68909 - Fitzsimons Wine Industry Grad Awd 45862 ",null,null,null,null,null,null,null,null,null,null,null,"GLMDER2125 - William Murphy MED Dermatology GL Only "]
[null,null,null,"68930 - Invasive Plant Risk Assessment 45883 ",null,null,null,null,null,null,null,null,null,null,null,"GLMDER4694 - Michiko Ametani Shimoda MED Dermatology GL Only "]
[null,null,null,"68949 - FsandT Nestle Fellowship 45902 ",null,null,null,null,null,null,null,null,null,null,null,"GLMEND6023 - Christopher Chen UCCE MENDOCINO COUNTY "]
[null,null,null,"68967 - FsandT Ca League Food Processors 45921 ",null,null,null,null,null,null,null,null,null,null,null,"GLMEPM1468 - Christine Rozance MED Public Health Sciences GL Only "]
[null,null,null,"68987 - FsandT Research Pasin 45942 ",null,null,null,null,null,null,null,null,null,null,null,"GLMEPM2447 - Faith Boucher MED Public Health Sciences GL Only "]
[null,null,null,"69009 - French Dept Support 45964 ",null,null,null,null,null,null,null,null,null,null,null,"GLMEPM3971 - James Beaumont MED Public Health Sciences GL Only "]
[null,null,null,"69030 - Eye Center ResearchandEd Moshiri 46407 ",null,null,null,null,null,null,null,null,null,null,null,"GLMEPM4843 - Charlene K Green MED Public Health Sciences GL Only "]
[null,null,null,"69057 - Cardiology Service Ultrasound Transducer 46434 ",null,null,null,null,null,null,null,null,null,null,null,"GLMEPM5736 - Amanda Midboe MED Public Health Sciences GL Only "]
[null,null,null,"69058 - Harold W Solomon Current Use Fund 46435 ",null,null,null,null,null,null,null,null,null,null,null,"GLMEPM5823 - Hong Li MED Public Health Sciences GL Only "]
[null,null,null,"69082 - Cee Geowall Team Support 46459 ",null,null,null,null,null,null,null,null,null,null,null,"GLMERM0801 - James D Kirk MED Emergency Medicine GL Only "]
[null,null,null,"69108 - Wifss Food Safety OutreachandTraining 46485 ",null,null,null,null,null,null,null,null,null,null,null,"GLMERM1547 - Jennifer Kirkpatrick MED Emergency Medicine GL Only "]
[null,null,null,"69137 - Cee Department Support 46514 ",null,null,null,null,null,null,null,null,null,null,null,"GLMERM2176 - Kendra Grether Jones MED Emergency Medicine GL Only "]
[null,null,null,"69161 - Family PlanningandReproductive Health 46539 ",null,null,null,null,null,null,null,null,null,null,null,"GLMERM3016 - David James Betting MED Emergency Medicine GL Only "]
[null,null,null,"69180 - Business Law Journal 46558 ",null,null,null,null,null,null,null,null,null,null,null,"GLMERM3543 - Marjan Siadat MED Emergency Medicine GL Only "]
[null,null,null,"69199 - Dairy Herd HealthandLameness Research 46577 ",null,null,null,null,null,null,null,null,null,null,null,"GLMERM4052 - Leland Bourdon MED Emergency Medicine GL Only "]
[null,null,null,"69225 - GeologyGeomorphology 46601 ",null,null,null,null,null,null,null,null,null,null,null,"GLMERM5090 - Verena Schandera MED Emergency Medicine GL Only "]
[null,null,null,"69250 - MeSa Student Research Symposium 46626 ",null,null,null,null,null,null,null,null,null,null,null,"GLMERM5705 - Henry Chan MED Emergency Medicine GL Only "]
[null,null,null,"69279 - Vensource Program Support 46655 ",null,null,null,null,null,null,null,null,null,null,null,"GLMFCM0431 - Elizabeth Lewis MED Family And Community Med GL Only "]
[null,null,null,"69306 - GermanandRussian Dept Sup 46682 ",null,null,null,null,null,null,null,null,null,null,null,"GLMFCM1334 - Christopher Swales MED Family And Community Med GL Only "]
[null,null,null,"69324 - Women In ScienceandEngineering Wise 46700 ",null,null,null,null,null,null,null,null,null,null,null,"GLMFCM2219 - William B Davis MED Family And Community Med GL Only "]
[null,null,null,"69346 - Huntington Disease Ctr For Excellence 46722 ",null,null,null,null,null,null,null,null,null,null,null,"GLMFCM2708 - Amy Keurentjes MED Family And Community Med GL Only "]
[null,null,null,"69367 - Tmj4 Conference 46743 ",null,null,null,null,null,null,null,null,null,null,null,"GLMFCM3280 - Daniel Fields MED Family And Community Med GL Only "]
[null,null,null,"69385 - Goldberg Memorial Fd 46761 ",null,null,null,null,null,null,null,null,null,null,null,"GLMFCM3983 - Bruce Greenberg MED Family And Community Med GL Only "]
[null,null,null,"69403 - Dmrc Workshop Support 46779 ",null,null,null,null,null,null,null,null,null,null,null,"GLMFCM4505 - Alexandra Hunt MED Family And Community Med GL Only "]
[null,null,null,"69404 - Terc Monthly Lecture Program Support 46780 ",null,null,null,null,null,null,null,null,null,null,null,"GLMFCM4542 - Neal D Kohatsu MED Family And Community Med GL Only "]
[null,null,null,"69423 - Grounds DivisionCampus Memorials 46799 ",null,null,null,null,null,null,null,null,null,null,null,"GLMFCM5055 - Kelly Burke MED Family And Community Med GL Only "]
[null,null,null,"69447 - Geographic Information System Day 46823 ",null,null,null,null,null,null,null,null,null,null,null,"GLMFCM5576 - Maria Nicora Bia MED Family And Community Med GL Only "]
[null,null,null,"69470 - Bvf ChairS Discretionary Fund 46846 ",null,null,null,null,null,null,null,null,null,null,null,"GLMFCM5890 - Robert Assibey MED Family And Community Med GL Only "]
[null,null,null,"69493 - Bob Hamilton Basketball Fd 46869 ",null,null,null,null,null,null,null,null,null,null,null,"GLMHPH1117 - Peter M Cala MED Physiology And Membrane Biol GL Only "]
[null,null,null,"69512 - Kavli Futures Symposium 46888 ",null,null,null,null,null,null,null,null,null,null,null,"GLMHPH3783 - Jon Sack MED Physiology And Membrane Biol GL Only "]
[null,null,null,"69530 - JimandEmily Scheinman Family Award 46906 ",null,null,null,null,null,null,null,null,null,null,null,"GLMINT0700 - Harold Burger MED Internal Medicine GL Only "]
[null,null,null,"69548 - Smart Training Center Enhancements 46924 ",null,null,null,null,null,null,null,null,null,null,null,"GLMINT2204 - Hani Khouzam MED Internal Medicine GL Only "]
[null,null,null,"69573 - Gastroenterology General Support 46950 ",null,null,null,null,null,null,null,null,null,null,null,"GLMINT3692 - Dale Obrien MED Internal Medicine GL Only "]
[null,null,null,"69593 - Pediatric Brain Injury Rsch Lechpammer 46970 ",null,null,null,null,null,null,null,null,null,null,null,"GLMINT5544 - Ashish Tandon MED Int Med Admin GL Only "]
[null,null,null,"69612 - Poodle Genetics Diveristy Research 46989 ",null,null,null,null,null,null,null,null,null,null,null,"GLMINT5873 - Walter Shakespeare MED Int Med Admin GL Only "]
[null,null,null,"69646 - Plant Breeding Center Support 47023 ",null,null,null,null,null,null,null,null,null,null,null,"GLMMIC1160 - Jonathan Eisen MED Medical Microbiology And Imm GL Only "]
[null,null,null,"69679 - Animal Science Goat Dairy 47057 ",null,null,null,null,null,null,null,null,null,null,null,"GLMMIC5687 - Jogender Tushir Singh MED Medical Microbiology And Imm GL Only "]
[null,null,null,"69702 - Resource Elementary Award Fund 47080 ",null,null,null,null,null,null,null,null,null,null,null,"GLMNEU1538 - Timothy Hanks MED Neurology GL Only "]
[null,null,null,"69721 - Charles Heumphreus Mem Lecturship 47099 ",null,null,null,null,null,null,null,null,null,null,null,"GLMNEU2460 - Yan Wang MED Neurology GL Only "]
[null,null,null,"69743 - Son Evaluation MethodsandStatistics 47121 ",null,null,null,null,null,null,null,null,null,null,null,"GLMNEU3453 - Tsung Yu Chen MED Neurology GL Only "]
[null,null,null,"69744 - Plant Risk Evaluation Project 47122 ",null,null,null,null,null,null,null,null,null,null,null,"GLMNEU3466 - Doris Chen MED Neurology GL Only "]
[null,null,null,"69764 - Hogue Scholarship 47142 ",null,null,null,null,null,null,null,null,null,null,null,"GLMNEU4906 - Nazhiyath Vijayan MED Neurology GL Only "]
[null,null,null,"69787 - RoyS Umbrella MotherandSon Creative Art 47165 ",null,null,null,null,null,null,null,null,null,null,null,"GLMNEU5663 - Christina Kim MED Neurology GL Only "]
[null,null,null,"69810 - ChinaUs Zev Policy Lab Support 47188 ",null,null,null,null,null,null,null,null,null,null,null,"GLMNSG1532 - Jan Paul Muizelaar MED Neurological Surgery GL Only "]
[null,null,null,"69831 - Beat Heart Disease Research 47209 ",null,null,null,null,null,null,null,null,null,null,null,"GLMNSG5364 - Jeffrey Vitt MED Neurological Surgery GL Only "]
[null,null,null,"69858 - Radiology Global Education Fund 47236 ",null,null,null,null,null,null,null,null,null,null,null,"GLMOBG0701 - Nancy Field MED Obstetrics And Gynecology GL Only "]
[null,null,null,"69875 - Optimizing Surfaces For Performance Hors 47253 ",null,null,null,null,null,null,null,null,null,null,null,"GLMOBG1818 - Parampal Gill MED Obstetrics And Gynecology GL Only "]
[null,null,null,"69892 - Iteh Andrology Research 47270 ",null,null,null,null,null,null,null,null,null,null,null,"GLMOBG3035 - Ernest Zeringue MED Obstetrics And Gynecology GL Only "]
[null,null,null,"69912 - Iteh Wildlife Conference 47290 ",null,null,null,null,null,null,null,null,null,null,null,"GLMOBG4289 - Amelia Mclennan MED Obstetrics And Gynecology GL Only "]
[null,null,null,"69929 - Ift College Bowl Team Travel 47307 ",null,null,null,null,null,null,null,null,null,null,null,"GLMOBG5596 - Anne Flynn MED Obstetrics And Gynecology GL Only "]
[null,null,null,"69950 - Emergency Med Toxicology Fellowship 47328 ",null,null,null,null,null,null,null,null,null,null,null,"GLMONT6034 - Maria De La Fuente UCCE MONTEREY COUNTY "]
[null,null,null,"69973 - Sociology General Support 47351 ",null,null,null,null,null,null,null,null,null,null,null,"GLMOPH1770 - Daniel Lee MED Eye Center GL Only "]
[null,null,null,"69990 - Yen Chuang Taiwan Fellowship 47368 ",null,null,null,null,null,null,null,null,null,null,null,"GLMOPH3498 - Jennifer Li MED Eye Center GL Only "]
[null,null,null,"70008 - Jepson Reserve General Support 47386 ",null,null,null,null,null,null,null,null,null,null,null,"GLMOPH4890 - Denise Satterfield MED Eye Center GL Only "]
[null,null,null,"70025 - Poultry Medicine Program 47403 ",null,null,null,null,null,null,null,null,null,null,null,"GLMORT1015 - Rakesh Donthineni Rao MED Orthopaedic Surgery GL Only "]
[null,null,null,"70042 - Ucce Sd SubTropICAl Horticulture Rios 47420 ",null,null,null,null,null,null,null,null,null,null,null,"GLMORT1810 - Joel Lerman MED Orthopaedic Surgery GL Only "]
[null,null,null,"70043 - Imo Dr Antonelli Philosophy Grad Stdt 47421 ",null,null,null,null,null,null,null,null,null,null,null,"GLMORT1880 - Mark Lee MED Orthopaedic Surgery GL Only "]
[null,null,null,"70060 - Yocha Dehe Wintun Nation Education Fund 47438 ",null,null,null,null,null,null,null,null,null,null,null,"GLMORT3810 - Michael Fry MED Orthopaedic Surgery GL Only "]
[null,null,null,"70078 - New Faculty Research Funds 47456 ",null,null,null,null,null,null,null,null,null,null,null,"GLMORT5178 - Peter Salamon MED Orthopaedic Surgery GL Only "]
[null,null,null,"70100 - Bode Memorial Scholarship 47478 ",null,null,null,null,null,null,null,null,null,null,null,"GLMOTO1683 - Johnathon Anderson MED Otolaryngology GL Only "]
[null,null,null,"70118 - San Diego Chapter Fund 47496 ",null,null,null,null,null,null,null,null,null,null,null,"GLMOTO3327 - Rodney Diaz MED Otolaryngology GL Only "]
[null,null,null,"70135 - Austin Network Fund 47513 ",null,null,null,null,null,null,null,null,null,null,null,"GLMOTO5280 - Karen Doyle MED Otolaryngology GL Only "]
[null,null,null,"70153 - Drought Tolerant Alfalfa Fund 47530 ",null,null,null,null,null,null,null,null,null,null,null,"GLMPAT0803 - Anthony Karnezis MED Pathology And Lab Medicine GL Only "]
[null,null,null,"70170 - Gold Country Regional Scholarship 47547 ",null,null,null,null,null,null,null,null,null,null,null,"GLMPAT1860 - Alvin Lewis MED Pathology And Lab Medicine GL Only "]
[null,null,null,"70188 - Sacramento Regional Scholarship 47565 ",null,null,null,null,null,null,null,null,null,null,null,"GLMPAT3212 - Gerald Kost MED Pathology And Lab Medicine GL Only "]
[null,null,null,"70216 - Entomology Graduate Student Seminar Supp 47593 ",null,null,null,null,null,null,null,null,null,null,null,"GLMPAT4619 - Murray Gardner MED Pathology And Lab Medicine GL Only "]
[null,null,null,"70247 - Sierra Energy Big Bang Syngas Challenge 47629 ",null,null,null,null,null,null,null,null,null,null,null,"GLMPAT5657 - Maryam Asif MED Pathology And Lab Medicine GL Only "]
[null,null,null,"70265 - ErICA Kelly Memorial Schlsp 47647 ",null,null,null,null,null,null,null,null,null,null,null,"GLMPED0521 - Joseph Schulman MED Pediatrics GL Only "]
[null,null,null,"70286 - Patient Support Animal Program 47668 ",null,null,null,null,null,null,null,null,null,null,null,"GLMPED0878 - Kelly Carter MED Pediatrics GL Only "]
[null,null,null,"70303 - Phd Program In Biochemistry 47685 ",null,null,null,null,null,null,null,null,null,null,null,"GLMPED1298 - Anthony Philipps MED Pediatrics GL Only "]
[null,null,null,"70321 - RobertandBarbara Leidigh Research Fund 47703 ",null,null,null,null,null,null,null,null,null,null,null,"GLMPED1793 - Rosa Rodriguez MED Pediatrics GL Only "]
[null,null,null,"70338 - Knights Of The Vine Scholarship 47720 ",null,null,null,null,null,null,null,null,null,null,null,"GLMPED2334 - Rory Kamerman Kretzmer MED Pediatrics GL Only "]
[null,null,null,"70340 - Uc Davis Traditions Award 47722 ",null,null,null,null,null,null,null,null,null,null,null,"GLMPED2348 - Karen Barretto MED Pediatrics GL Only "]
[null,null,null,"70364 - Law Review Fund 47743 ",null,null,null,null,null,null,null,null,null,null,null,"GLMPED2821 - Mustafa Ammar MED Pediatrics GL Only "]
[null,null,null,"70400 - Conetec Fdn Ggss Awards 47779 ",null,null,null,null,null,null,null,null,null,null,null,"GLMPED3546 - Gary Gathman MED Pediatrics GL Only "]
[null,null,null,"70406 - Big Day Of Giving Marketing 47785 ",null,null,null,null,null,null,null,null,null,null,null,"GLMPED3732 - Yvonne Otani MED Pediatrics GL Only "]
[null,null,null,"70426 - Kh Chinese Law Student Association 47805 ",null,null,null,null,null,null,null,null,null,null,null,"GLMPED4241 - Iman Kahwaji MED Pediatrics GL Only "]
[null,null,null,"70444 - Ogena Solutions Outreach Vet Position 47825 ",null,null,null,null,null,null,null,null,null,null,null,"GLMPED4686 - Samrina Marshall MED Pediatrics GL Only "]
[null,null,null,"70463 - Lsc Dept Support 47844 ",null,null,null,null,null,null,null,null,null,null,null,"GLMPED5189 - Larry Corman MED Pediatrics GL Only "]
[null,null,null,"70485 - Ucce Yolo Strawberry Rsch Fund 47866 ",null,null,null,null,null,null,null,null,null,null,null,"GLMPED5463 - Shaina Willen MED Pediatrics GL Only "]
[null,null,null,"70503 - Ece Ghiasi Lab Support 47884 ",null,null,null,null,null,null,null,null,null,null,null,"GLMPED5841 - Tanaporn Wilaisakditipakorn MED Pediatrics GL Only "]
[null,null,null,"70521 - Cws General Support 47902 ",null,null,null,null,null,null,null,null,null,null,null,"GLMPED6315 - Lavjay Butani MED Pediatrics GL Only "]
[null,null,null,"70540 - Low Practitioner Felwshp Ii 48018 ",null,null,null,null,null,null,null,null,null,null,null,"GLMPHA2312 - Yi Je Chen MED Pharmacology GL Only "]
[null,null,null,"70561 - Lucky Memorial Schlsp 48039 ",null,null,null,null,null,null,null,null,null,null,null,"GLMPMR0666 - M Sandel MED Physical Medicine And Rehab GL Only "]
[null,null,null,"70581 - VM Ceh Stem Cell Factors Research 48059 ",null,null,null,null,null,null,null,null,null,null,null,"GLMPMR3346 - Alexandra Warrick MED Physical Medicine And Rehab GL Only "]
[null,null,null,"70600 - Celebrating King Hall 48078 ",null,null,null,null,null,null,null,null,null,null,null,"GLMPSY0329 - Puja Chadha MED Psychiatry And Behav Sci GL Only "]
[null,null,null,"70619 - Amargosa Vole Conservation 48097 ",null,null,null,null,null,null,null,null,null,null,null,"GLMPSY0778 - Nathaniel Mills MED Psychiatry And Behav Sci GL Only "]
[null,null,null,"70638 - LeonandNancy Robertson Fellowship Fund 48115 ",null,null,null,null,null,null,null,null,null,null,null,"GLMPSY1263 - Mark Servis MED Psychiatry And Behav Sci GL Only "]
[null,null,null,"70639 - BioandAg Engr RschandInstr Vougioukas 48116 ",null,null,null,null,null,null,null,null,null,null,null,"GLMPSY1306 - Barbara Kocsis MED Psychiatry And Behav Sci GL Only "]
[null,null,null,"70661 - Sherman Psychology Lab Support 48138 ",null,null,null,null,null,null,null,null,null,null,null,"GLMPSY1884 - Humberto Temporini MED Psychiatry And Behav Sci GL Only "]
[null,null,null,"70687 - Its 25Th Anniversary Celebration 48165 ",null,null,null,null,null,null,null,null,null,null,null,"GLMPSY2365 - Debra Kahn MED Psychiatry And Behav Sci GL Only "]
[null,null,null,"70707 - Visual Analysis Research Ma 48185 ",null,null,null,null,null,null,null,null,null,null,null,"GLMPSY2894 - Ann Bezmalinovic MED Psychiatry And Behav Sci GL Only "]
[null,null,null,"70724 - Gordon Mannerstedt MemFd 48202 ",null,null,null,null,null,null,null,null,null,null,null,"GLMPSY3390 - Simone Tamara Lew MED Psychiatry And Behav Sci GL Only "]
[null,null,null,"70746 - Med Dermatology LiuDept Chair 48224 ",null,null,null,null,null,null,null,null,null,null,null,"GLMPSY4014 - Karl Murray MED Psychiatry And Behav Sci GL Only "]
[null,null,null,"70764 - Med Reproductive Biology 48242 ",null,null,null,null,null,null,null,null,null,null,null,"GLMPSY4672 - Amy Barnhorst MED Psychiatry And Behav Sci GL Only "]
[null,null,null,"70786 - PcsIv Theapy Dept Education 48264 ",null,null,null,null,null,null,null,null,null,null,null,"GLMPSY4960 - Cynthia Schumann MED Psychiatry And Behav Sci GL Only "]
[null,null,null,"70805 - Med Merm Palchak 48283 ",null,null,null,null,null,null,null,null,null,null,null,"GLMPSY5202 - Elizabeth S Loyola MED Psychiatry And Behav Sci GL Only "]
[null,null,null,"70825 - Bouvier Genetic Rsrch For Heart Disease 48303 ",null,null,null,null,null,null,null,null,null,null,null,"GLMPSY5662 - Alexander Hazel MED Psychiatry And Behav Sci GL Only "]
[null,null,null,"70845 - Med SurgTrauma Research 48323 ",null,null,null,null,null,null,null,null,null,null,null,"GLMRAD0555 - Kriti Gwal MED Radiology GL Only "]
[null,null,null,"70862 - EecsIbm 48340 ",null,null,null,null,null,null,null,null,null,null,null,"GLMRAD1390 - Terry Jones MED Radiology GL Only "]
[null,null,null,"70882 - Human Phys Research Support 48360 ",null,null,null,null,null,null,null,null,null,null,null,"GLMRAD2698 - Sima Naderi MED Radiology GL Only "]
[null,null,null,"70901 - Med FnpPa Program Support 48379 ",null,null,null,null,null,null,null,null,null,null,null,"GLMRAD4092 - Guobao Wang MED Radiology GL Only "]
[null,null,null,"70922 - T MellonandSons Flshp 48400 ",null,null,null,null,null,null,null,null,null,null,null,"GLMRAD4968 - Arthur Dublin MED Radiology GL Only "]
[null,null,null,"70945 - Internal Med Research Denardo 48423 ",null,null,null,null,null,null,null,null,null,null,null,"GLMRAD5815 - Sujit Jha MED Radiology GL Only "]
[null,null,null,"70946 - Ped Trauma Program 48424 ",null,null,null,null,null,null,null,null,null,null,null,"GLMRAD5825 - Hatice Kader Karli Oguz MED Radiology GL Only "]
[null,null,null,"70968 - ImGlaxo WellcomeAdler 48446 ",null,null,null,null,null,null,null,null,null,null,null,"GLMSUR0924 - Debra Johnson MED Surgery GL Only "]
[null,null,null,"70988 - UCD Burn Ctr Ellis Estate 48466 ",null,null,null,null,null,null,null,null,null,null,null,"GLMSUR1912 - Christine Cocanour MED Surgery GL Only "]
[null,null,null,"71011 - Im Nephrology 48489 ",null,null,null,null,null,null,null,null,null,null,null,"GLMSUR3042 - Anders Davidson MED Surgery GL Only "]
[null,null,null,"71031 - Merrill Family Schlsp 48509 ",null,null,null,null,null,null,null,null,null,null,null,"GLMSUR3701 - Earl F Wolfman MED Surgery GL Only "]
[null,null,null,"71049 - UCDMC Coronary Care Unit 48527 ",null,null,null,null,null,null,null,null,null,null,null,"GLMSUR4299 - Paul A Perry MED Surgery GL Only "]
[null,null,null,"71068 - Med Micro Research Support 48546 ",null,null,null,null,null,null,null,null,null,null,null,"GLMSUR5275 - Herbert Berkoff MED Surgery GL Only "]
[null,null,null,"71093 - Inter Med Research Davis 48571 ",null,null,null,null,null,null,null,null,null,null,null,"GLMSUR5566 - Jason Heard MED Surgery GL Only "]
[null,null,null,"71120 - Mha Discretionary Funds Meizel 48599 ",null,null,null,null,null,null,null,null,null,null,null,"GLMSUR5978 - Ian Powelson MED Surgery GL Only "]
[null,null,null,"71143 - UCDMCWomen Med Lectureship 48622 ",null,null,null,null,null,null,null,null,null,null,null,"GLMURO4073 - Paramita Ghosh MED Urologic Surgery GL Only "]
[null,null,null,"71164 - UCDMC Cancer CtrNursing Educ 48643 ",null,null,null,null,null,null,null,null,null,null,null,"GLNBPS6047 - Ashraf El Kereamy UCR CE BOTANY  PLANT SCIENCES "]
[null,null,null,"71184 - Med RadKingston 48663 ",null,null,null,null,null,null,null,null,null,null,null,"GLNNEM6061 - Alec Gerry UCR CE ENTOMOLOGY "]
[null,null,null,"71207 - SmdoMerckManaged Care 48686 ",null,null,null,null,null,null,null,null,null,null,null,"GLNURS1451 - Piri Ackerman School of Nursing GL Only "]
[null,null,null,"71228 - Med OrthopResident Res Projects 48707 ",null,null,null,null,null,null,null,null,null,null,null,"GLNURS4034 - Shana Ruggenberg School of Nursing GL Only "]
[null,null,null,"71251 - Im Researchh Longhurst 48730 ",null,null,null,null,null,null,null,null,null,null,null,"GLNURS5342 - Chris de Belen Wilson School of Nursing GL Only "]
[null,null,null,"71271 - Med Human PhysNaKC1 Res Project 48750 ",null,null,null,null,null,null,null,null,null,null,null,"GLNURS5839 - Gail Powell Cope School of Nursing GL Only "]
[null,null,null,"71272 - Patient Care ServSafe Kids Program 48751 ",null,null,null,null,null,null,null,null,null,null,null,"GLNURS5897 - Kathleen Carlsen School of Nursing GL Only "]
[null,null,null,"71292 - Food Crops Genetic Improvement Research 48771 ",null,null,null,null,null,null,null,null,null,null,null,"GLPLAC6123 - Daniel Macon UCCE NEVADAPLACER COUNTY "]
[null,null,null,"71310 - Jeffrey Owyang Geology Scholarship 48789 ",null,null,null,null,null,null,null,null,null,null,null,"GLRIVE6138 - Yu Meng UCCE RIVERSIDE COUNTY "]
[null,null,null,"71332 - Weed Science Research 48811 ",null,null,null,null,null,null,null,null,null,null,null,"GLSANM6104 - Igor Lacan UCCE SAN MATEO COUNTY "]
[null,null,null,"71350 - Canine Cutaneous Denritic Cell Research 48829 ",null,null,null,null,null,null,null,null,null,null,null,"GLSHAS6019 - Nathaniel Caeton UCCE SHASTA COUNTY "]
[null,null,null,"71369 - Migrant LaborandGlobal Health Conference 48848 ",null,null,null,null,null,null,null,null,null,null,null,"GLSONM6107 - Stephanie Larson UCCE SONOMA COUNTY "]
[null,null,null,"71389 - World Congress On Parasitic Plants 48868 ",null,null,null,null,null,null,null,null,null,null,null,"GLSUTY0133 - Janine Hasey UCCE SUTTERYUBA COUNTIES GL Only "]
[null,null,null,"71406 - Black Soldier Fly Research 48886 ",null,null,null,null,null,null,null,null,null,null,null,"GLTRAN4207 - Scott Hardman INST OF TRANSPORTATION STUDIES GL Only "]
[null,null,null,"71425 - Crankstart ReEntry Scholarship Program 48905 ",null,null,null,null,null,null,null,null,null,null,null,"GLTULA0257 - Rubia Branco Lopes UCCE TULARE COUNTY "]
[null,null,null,"71442 - Dr Cesar Fraga Research 48922 ",null,null,null,null,null,null,null,null,null,null,null,"GLVAPC1382 - Elizabeth Didier VM ANAT PHYSIO And CELL BIOLOGY GL Only "]
[null,null,null,"71461 - Dr Zachary Holt Research 48941 ",null,null,null,null,null,null,null,null,null,null,null,"GLVAPC3699 - Michael Bruss VM ANAT PHYSIO And CELL BIOLOGY GL Only "]
[null,null,null,"71483 - Patient Food Program 48963 ",null,null,null,null,null,null,null,null,null,null,null,"GLVENT6192 - Annemiek Schilder UCCE VENTURA COUNTY "]
[null,null,null,"71502 - Grapevine Rootstock Water Efficiency 48982 ",null,null,null,null,null,null,null,null,null,null,null,"GLVHFS4361 - Richard Chin CA ANIMAL HLTH And FOOD SAFETY LAB GL Only "]
[null,null,null,"71522 - Placer Breast Cancer Foundation Fund 49002 ",null,null,null,null,null,null,null,null,null,null,null,"GLVMEX3139 - Maurice Pitesky VM EX Cooperative Extension GL Only "]
[null,null,null,"71542 - Fiv Latency Research 49022 ",null,null,null,null,null,null,null,null,null,null,null,"GLVPHR1235 - Rebecca Bellone VM POPULATION HLTH And REPROD GL Only "]
[null,null,null,"71560 - Iawti Equine Health ResearchandOutreach 49040 ",null,null,null,null,null,null,null,null,null,null,null,"GLVPHR3149 - Danika Bannasch VM POPULATION HLTH And REPROD GL Only "]
[null,null,null,"71561 - FxsandAsd Research Support 49041 ",null,null,null,null,null,null,null,null,null,null,null,"GLVPHR3164 - Roselle Busch VM POPULATION HLTH And REPROD GL Only "]
[null,null,null,"71585 - Ceea Alliance Initiatives Advancement 49065 ",null,null,null,null,null,null,null,null,null,null,null,"GLVPHR5069 - Domenico Bernoco VM POPULATION HLTH And REPROD GL Only "]
[null,null,null,"71609 - Ucce Kern Almond Day Program 49089 ",null,null,null,null,null,null,null,null,null,null,null,"GLVPMI0706 - Melissa Macias Rioseco VM PATHOLOGY MICRO And IMMUN GL Only "]
[null,null,null,"71629 - Neurology Dr Lee 49109 ",null,null,null,null,null,null,null,null,null,null,null,"GLVPMI2450 - John Osebold VM PATHOLOGY MICRO And IMMUN GL Only "]
[null,null,null,"71650 - ArtNelson Gallery Endowment Fd 49130 ",null,null,null,null,null,null,null,null,null,null,null,"GLVPMI3242 - Judith Rachel Reader VM PATHOLOGY MICRO And IMMUN GL Only "]
[null,null,null,"71669 - Egg Sierra Energy Fellowship 49149 ",null,null,null,null,null,null,null,null,null,null,null,"GLVPMI5474 - Eileen Henderson VM PATHOLOGY MICRO And IMMUN GL Only "]
[null,null,null,"71686 - Lois Frifeld Urgent Needs Cu 49167 ",null,null,null,null,null,null,null,null,null,null,null,"GLVVMB1950 - Elena Dedkova VM MOLECULAR BIO SCIENCES GL Only "]
[null,null,null,"71705 - Table Grape Research Utv Purchase 49186 ",null,null,null,null,null,null,null,null,null,null,null,"GLVVMB4919 - Scott Stanley VM MOLECULAR BIO SCIENCES GL Only "]
[null,null,null,"71726 - Brigitte Bodenheimer Memorial Schp Sppt 49207 ",null,null,null,null,null,null,null,null,null,null,null,"GLVVME1405 - Lyndsay Phillips VM MEDICINE And EPIDEMIOLOGY GL Only "]
[null,null,null,"71745 - Ebony Compassionate Care Award Fund 49226 ",null,null,null,null,null,null,null,null,null,null,null,"GLVVME3081 - Jonna Mazet VM MEDICINE And EPIDEMIOLOGY GL Only "]
[null,null,null,"71777 - Xiang Laboratory Support 49258 ",null,null,null,null,null,null,null,null,null,null,null,"GLVVME4025 - Krystle Reagan VM MEDICINE And EPIDEMIOLOGY GL Only "]
[null,null,null,"71817 - Class Of 58 Scholarship 49298 ",null,null,null,null,null,null,null,null,null,null,null,"GLVVME4882 - Jane Sykes VM MEDICINE And EPIDEMIOLOGY GL Only "]
[null,null,null,"71837 - First Resonder Training Platform 49318 ",null,null,null,null,null,null,null,null,null,null,null,"GLVVSR0531 - Denis Marcellin Little VM SURGRAD SCIENCE GL Only "]
[null,null,null,"71856 - NutriSugar Association 49337 ",null,null,null,null,null,null,null,null,null,null,null,"GLVVSR1318 - Katherine Skorupski VM SURGRAD SCIENCE GL Only "]
[null,null,null,"71877 - NutriAstra Hassle 49358 ",null,null,null,null,null,null,null,null,null,null,null,"GLVVSR2079 - Xinbin Chen VM SURGRAD SCIENCE GL Only "]
[null,null,null,"71903 - Mock Trial Team Support 49383 ",null,null,null,null,null,null,null,null,null,null,null,"GLVVSR2859 - Jin Zhang VM SURGRAD SCIENCE GL Only "]
[null,null,null,"71904 - Assaf Razin Lecture Support 49384 ",null,null,null,null,null,null,null,null,null,null,null,"GLVVSR2890 - Amandeep Chohan VM SURGRAD SCIENCE GL Only "]
[null,null,null,"71922 - CinemaandDigital Media Program Support 49402 ",null,null,null,null,null,null,null,null,null,null,null,"GLVVSR4334 - Christine Toedebusch VM SURGRAD SCIENCE GL Only "]
[null,null,null,"71940 - Immigration Law Clinic Fellow Fund 49420 ",null,null,null,null,null,null,null,null,null,null,null,"GLVVSR4955 - David Canton VM SURGRAD SCIENCE GL Only "]
[null,null,null,"71960 - Computer Vision Lab Research Lee 49440 ",null,null,null,null,null,null,null,null,null,null,null,"GLG0000002 - 2019 20 Grad Prog Fellowship Allocation "]
[null,null,null,"71979 - Van Ligten Schp Managerial Economics 49459 ",null,null,null,null,null,null,null,null,null,null,null,"GLG0000019 - GS Supp NRST Grad Allocation 2021 22 "]
[null,null,null,"71997 - Cee GeotechnICAlandSoils Engineering 49478 ",null,null,null,null,null,null,null,null,null,null,null,"GLG0000036 - GSJeffery Marsha Gibeling Felshp "]
[null,null,null,"72014 - Land Ecology Center 49496 ",null,null,null,null,null,null,null,null,null,null,null,"GLG0000053 - GS Loomis MI Fellowship "]
[null,null,null,"72034 - Env Tox Research and Instruction Tjeerdema 49517 ",null,null,null,null,null,null,null,null,null,null,null,"GLG0000070 - Eugene Cota Robles Fellowship 20094 "]
[null,null,null,"72052 - Infusion Clinic Seating Fund 49535 ",null,null,null,null,null,null,null,null,null,null,null,"GLG0000087 - Grad IRT Undergrad Prep Fellowship "]
[null,null,null,"72076 - Ucce Kern LivestockandNatural Resources 49559 ",null,null,null,null,null,null,null,null,null,null,null,"GLG0000104 - UC HBCU Initiative Funding "]
[null,null,null,"72095 - Nephrology Research Support 49578 ",null,null,null,null,null,null,null,null,null,null,null,"GLG0000121 - 2023 24 Grad Prog Fellowship Allocation "]
[null,null,null,"72115 - Lambda Alumni Scholarship 49598 ",null,null,null,null,null,null,null,null,null,null,null,"GLMEDCEN11 - TEMP SALARY and BENEFITS TRANSFER "]
[null,null,null,"72135 - Guinea Pig Health Fund 49618 ",null,null,null,null,null,null,null,null,null,null,null,"GLMEDCON03 - Napa Contract "]
[null,null,null,"72154 - ChICAnxLatinx Academic Student Success 49637 ",null,null,null,null,null,null,null,null,null,null,null,"GLMEDCON21 - Poison Control "]
[null,null,null,"72173 - Pangborn Sensory Sci Sympossium 49656 ",null,null,null,null,null,null,null,null,null,null,null,"GLOAN00010 - ELL VCSA HOUSING DINING 70300 "]
[null,null,null,"72192 - Mercon Fund 49675 ",null,null,null,null,null,null,null,null,null,null,null,"GLOAN00027 - SUPPLY CHAIN MGMT FUNDING SUPPT 69820 "]
[null,null,null,"72193 - Emergency Services Equipment Fund 49676 ",null,null,null,null,null,null,null,null,null,null,null,"GLOAN00028 - Chemistry Swing Space 4 Admin Modular "]
[null,null,null,"72211 - Tcma Bilingual Authorization Scholarship 49694 ",null,null,null,null,null,null,null,null,null,null,null,"GLCBS00002 - NSTP Faculty Salary Program "]
[null,null,null,"72232 - Peigh Outstanding Achievement Schp 49715 ",null,null,null,null,null,null,null,null,null,null,null,"GLHPC1TM01 - HPCC one-time funding "]
[null,null,null,"72253 - Forage Quality Research 49736 ",null,null,null,null,null,null,null,null,null,null,null,"GLP0000007 - ACCD College of Ag & Env Sciences "]
[null,null,null,"72273 - Viticulture and Enology Internship 49756 ",null,null,null,null,null,null,null,null,null,null,null,"GLPEV00002 - MAE Hyundai Ctr Of Excellence NonGift 50Hmcng "]
[null,null,null,"72291 - School Matinee Tkt Progr Woodland Jusd 49774 ",null,null,null,null,null,null,null,null,null,null,null,"GLPEV00056 - ARE Agribusiness Seminars "]
[null,null,null,"72309 - Pediatrics Gala Dinner Proceeds 49792 ",null,null,null,null,null,null,null,null,null,null,null,"GLPEV00089 - HPCEvent Registrations Hpccon1 "]
[null,null,null,"72338 - Wyatt Pavillion Sound Booth Upgrade 49821 ",null,null,null,null,null,null,null,null,null,null,null,"GLPEV00120 - CAES Registration System Fees Regifee "]
[null,null,null,"72357 - Napa 4H Camp Program 49840 ",null,null,null,null,null,null,null,null,null,null,null,"GLPEV00145 - VEN Tastevin Scholarship Fina Account Tastevn "]
[null,null,null,"72380 - Silicon Processing Research 49863 ",null,null,null,null,null,null,null,null,null,null,null,"GLPEV00178 - CBS UCD PreHealth Conference 2020 Phc2020 "]
[null,null,null,"72397 - Vascular DementiaandAlzheimerS Disease 49880 ",null,null,null,null,null,null,null,null,null,null,null,"GLPEV00224 - Economics Course Buyouts Ecnsbuy "]
[null,null,null,"72419 - Rugby Endowment 49902 ",null,null,null,null,null,null,null,null,null,null,null,"GLPEV00250 - GSMExec Ed Business Fundamentals Series Eebizfn "]
[null,null,null,"72440 - Environmental Soil Chemistry Laboratory 49923 ",null,null,null,null,null,null,null,null,null,null,null,"GLPEV00267 - LAW Arb50 ConferenceJanuary 2018 L11012V "]
[null,null,null,"72459 - PomCa PearsPeaches 49941 ",null,null,null,null,null,null,null,null,null,null,null,"GLPEV00284 - SaysEvent 68525 SAYEVNT "]
[null,null,null,"72478 - PlugIn HybridandElec Vehicle Ctr Uber 49960 ",null,null,null,null,null,null,null,null,null,null,null,"GLPEV00301 - Air Quality Research Center Conferences AQRCcnf "]
[null,null,null,"72499 - Plt GrowthAbc 49981 ",null,null,null,null,null,null,null,null,null,null,null,"GLPEV00319 - CLAAEvent Account Clevent "]
[null,null,null,"72500 - Plt Growth Lab Task Force 49982 ",null,null,null,null,null,null,null,null,null,null,null,"GLPEV00320 - Retiree CenterEvent Account Rcevent "]
[null,null,null,"72521 - Poli Sce Professors Emeriti Fund 50003 ",null,null,null,null,null,null,null,null,null,null,null,"GLPEV00337 - CRU CRew Team 68525 CRUCRew "]
[null,null,null,"72543 - Plt PathPioneer Hybrid 50025 ",null,null,null,null,null,null,null,null,null,null,null,"GLPEV00361 - VPMI West Coast Vet Path Conf Faculty V1Bwcvp "]
[null,null,null,"72565 - PsychEducational Develop Support 50225 ",null,null,null,null,null,null,null,null,null,null,null,"GLPEV00379 - Camp 5 "]
[null,null,null,"72588 - Rosenberg An Sci Beef Res 50986 ",null,null,null,null,null,null,null,null,null,null,null,"GLPEV00396 - Consignment Tickets "]
[null,null,null,"72613 - ScaVMa 51016 ",null,null,null,null,null,null,null,null,null,null,null,"GLPEV00415 - Student Experimental Farm Flower Income "]
[null,null,null,"72635 - TA Shalla Memorial Fd 52099 ",null,null,null,null,null,null,null,null,null,null,null,"GLPEV00434 - Grad Studies Guardian Professors Program "]
[null,null,null,"72659 - SpanishandCl Dept Support 52596 ",null,null,null,null,null,null,null,null,null,null,null,"GLPEVCPE09 - VM CPE ACVO BASIC SCI COURSE "]
[null,null,null,"72685 - Surg Cetus 52942 ",null,null,null,null,null,null,null,null,null,null,null,"GLPEVGA002 - Global Affairs ITS PHEV Center "]
[null,null,null,"72705 - Time MagWine Inst Schp Award 53021 ",null,null,null,null,null,null,null,null,null,null,null,"GLPEVIMAD8 - 4bCFTE Call Agreement "]
[null,null,null,"72727 - Univ Relations Insurance Premiums 53250 ",null,null,null,null,null,null,null,null,null,null,null,"GLRMPSY005 - Freshman Seminar Derek Andrews "]
[null,null,null,"72746 - UCDMC Pharmacist Cont Education Fd 53281 ",null,null,null,null,null,null,null,null,null,null,null,"GLSEMNAR10 - GL Seminar Project 10 "]
[null,null,null,"72770 - Fertility Research Prichard 53392 ",null,null,null,null,null,null,null,null,null,null,null,"GLPMC00004 - MondaviEvents Alexander String Quartet 3 "]
[null,null,null,"72788 - VMth Animal Flood Relief Fund 53411 ",null,null,null,null,null,null,null,null,null,null,null,"GLPMC00021 - MondaviEvents Academy of St Martin "]
[null,null,null,"72805 - Cotton Insect Research Support 53446 ",null,null,null,null,null,null,null,null,null,null,null,"GLPMC00038 - Cory Wong "]
[null,null,null,"72818 - Plant Path Nursery Support 53468 ",null,null,null,null,null,null,null,null,null,null,null,"GLPMC00050 - Lakecia Benjamin Quartet "]
[null,null,null,"72825 - Agr Bot Support 53497 ",null,null,null,null,null,null,null,null,null,null,null,"GLPMC00057 - Nickle Creek "]
[null,null,null,"72843 - UCDMC SurgICAl Icu Support 53525 ",null,null,null,null,null,null,null,null,null,null,null,"GLPMC00075 - Matthew Whitaker Quartet "]
[null,null,null,"72861 - Postharvest Research 53559 ",null,null,null,null,null,null,null,null,null,null,null,"GLR0000016 - SA Staff Assembly "]
[null,null,null,"72879 - Inter Med InstrandDept Silva 53586 ",null,null,null,null,null,null,null,null,null,null,null,"GLR0000035 - SCM Aggie Surplus and Service "]
[null,null,null,"72905 - VitandEnolVarious Donors 53671 ",null,null,null,null,null,null,null,null,null,null,null,"GLR0000052 - CPES University Airport "]
[null,null,null,"72930 - Lawr Coop Ext Program Goldhamer 53767 ",null,null,null,null,null,null,null,null,null,null,null,"GLR0000069 - Mondavi Front of House Service "]
[null,null,null,"72953 - Vet Med ExtVeal Research 53842 ",null,null,null,null,null,null,null,null,null,null,null,"GLR0000086 - CAES Armstrong Field Rate "]
[null,null,null,"72974 - Coop ExtPlacerNevada 54090 ",null,null,null,null,null,null,null,null,null,null,null,"GLR6619901 - DANR NORTH COASTandMTN REGION STIP "]
[null,null,null,"72995 - Invasive Plant Biology EcologyandMgmt 54209 ",null,null,null,null,null,null,null,null,null,null,null,"GLR6649401 - DESIGN SERVICES "]
[null,null,null,"73013 - DANRCciaShafter Station 54280 ",null,null,null,null,null,null,null,null,null,null,null,"GLR6995601 - FOA FACILITIES BUILDING MAINTENANCE "]
[null,null,null,"73035 - DANR Contra Costa Ucce Support 54315 ",null,null,null,null,null,null,null,null,null,null,null,"GLSAFE0004 - BSAS BMS Security Fencing "]
[null,null,null,"73053 - Coop Ext Entom Mussen 54501 ",null,null,null,null,null,null,null,null,null,null,null,"GLSAFE0021 - Healthy UCD Helemet Hair Dont Care "]
[null,null,null,"73083 - DANR ShastaLassen Marcum 54617 ",null,null,null,null,null,null,null,null,null,null,null,"GLSAFE0038 - BSAS Goat Barn Secruity Cameras "]
[null,null,null,"73104 - Ca Commodity Committee 54704 ",null,null,null,null,null,null,null,null,null,null,null,"GLAMS13000 - LS Summer Backstop AMS130 "]
[null,null,null,"73130 - VM SurgHoechst 54830 ",null,null,null,null,null,null,null,null,null,null,null,"GLCHE110A0 - LS Summer Backstop CHE110A "]
[null,null,null,"73147 - Med PedSense Foundation 54848 ",null,null,null,null,null,null,null,null,null,null,null,"GLCMN176V0 - LS Summer Backstop CMN176V "]
[null,null,null,"73148 - Equine Dis Res Alloc 54849 ",null,null,null,null,null,null,null,null,null,null,null,"GLCOM00300 - LS Summer Backstop COM003 "]
[null,null,null,"73168 - Entom Pollination Res 54871 ",null,null,null,null,null,null,null,null,null,null,null,"GLDRA040A0 - LS Summer Backstop DRA040A "]
[null,null,null,"73192 - UCD PresentsCultural Arts Ctr Fd 54893 ",null,null,null,null,null,null,null,null,null,null,null,"GLENL05F00 - LS Summer Backstop ENL05F "]
[null,null,null,"73216 - Avian Sci Research Ernst 54916 ",null,null,null,null,null,null,null,null,null,null,null,"GLHIS195C0 - LS Summer Backstop HIS195C "]
[null,null,null,"73239 - VM Ccah Cancer 55008 ",null,null,null,null,null,null,null,null,null,null,null,"GLMAT150A0 - LS Summer Backstop MAT150A "]
[null,null,null,"73261 - VM Erl Captial RequirementsJackso 55028 ",null,null,null,null,null,null,null,null,null,null,null,"GLNAS00100 - LS Summer Backstop NAS001 "]
[null,null,null,"73286 - VMerlCooke Hearst 55052 ",null,null,null,null,null,null,null,null,null,null,null,"GLPOL011C0 - LS Summer Backstop POL011C "]
[null,null,null,"73305 - Climate Stewards Initiative For Calif 55071 ",null,null,null,null,null,null,null,null,null,null,null,"GLSPA022V0 - LS Summer Backstop SPA022V "]
[null,null,null,"73326 - Mecu Spotted Skunk Conservation 55092 ",null,null,null,null,null,null,null,null,null,null,null,"GLUWP102E0 - LS Summer Backstop UWP102E "]
[null,null,null,"73344 - DANR Lassen Extention Programs 55110 ",null,null,null,null,null,null,null,null,null,null,null,"CP0959329U - PPA NORTH COLONY SHADE STRUCTURES 2024 CP0959329U "]
[null,null,null,"73367 - Climbing Club General Support 55131 ",null,null,null,null,null,null,null,null,null,null,null,"KM0933620U - UMC Acute Care Bed Replacement Plan KM0933620U "]
[null,null,null,"73386 - Deleuze Fmly Endow Professorship Support 55151 ",null,null,null,null,null,null,null,null,null,null,null,"KM0934025U - UCDMC Childrens Hospital Equipment KM0934025U "]
[null,null,null,"73406 - DANR San Diego Fruit Program 55171 ",null,null,null,null,null,null,null,null,null,null,null,"KM0934791U - UMC 13 14 Perioperative Svc Div Equip KM0934791U "]
[null,null,null,"73424 - Scott A Sloan Awd Veterinary Medicine 55189 ",null,null,null,null,null,null,null,null,null,null,null,"KM0953580U - UCD Health Davis Clinic Project KM0953580U "]
[null,null,null,"73442 - WomenS Beach Volleyball Court Fund 55207 ",null,null,null,null,null,null,null,null,null,null,null,"KM0955733U - ASB 1110 IT SmartRow Data Center Rack KM0955733U "]
[null,null,null,"73459 - Green Fellowship Fund 55224 ",null,null,null,null,null,null,null,null,null,null,null,"KM0955755U - C Street Benign Hematology Clinic KM0955755U "]
[null,null,null,"73460 - Npi Crawford Student Fellowship 55225 ",null,null,null,null,null,null,null,null,null,null,null,"KM0955757U - DT 1ST FLR RAD Nuclear Medicine Remodel KM0955757U "]
[null,null,null,"73481 - Police Dept Saferide Program Initiatives 55245 ",null,null,null,null,null,null,null,null,null,null,null,"KM0955794U - NS Demo Red Project KM0955794U "]
[null,null,null,"73501 - JeFFErson 4H Robotics Fund 55263 ",null,null,null,null,null,null,null,null,null,null,null,"KM0955921U - UT Central Processing Unit Upgrades KM0955921U "]
[null,null,null,"73521 - Class Of 1968 Gift Fund 55283 ",null,null,null,null,null,null,null,null,null,null,null,"KM0955945U - DT Rm 1835C Vascular Lab Relocation KM0955945U "]
[null,null,null,"73538 - True AlleleStrmix Comparison Study 55301 ",null,null,null,null,null,null,null,null,null,null,null,"KM0955968U - DTLL 0762 PHARM Install Robotic Dispensi KM0955968U "]
[null,null,null,"73558 - VandE Departmental Support 55320 ",null,null,null,null,null,null,null,null,null,null,null,"KM0955996U - East Wing 1st Floor Seismic Relocations KM0955996U "]
[null,null,null,"73577 - The Bluest Eye Kennedy Center Trip 55339 ",null,null,null,null,null,null,null,null,null,null,null,"KM0957746U - UMC Alhambra Cannery Phase II Furn PEQT KM0957746U "]
[null,null,null,"73597 - Pharm Tox Graduate Group General Support 55359 ",null,null,null,null,null,null,null,null,null,null,null,"KM0957787U - PATH Qmatic Orchestra Suite IT Eq PEQT KM0957787U "]
[null,null,null,"73621 - Plant Path Discr GiftsSubbarao 55381 ",null,null,null,null,null,null,null,null,null,null,null,"KM0957822U - DT7 77697771 PEDS Add EEG IT Equp PEQT KM0957822U "]
[null,null,null,"73639 - Chevron Leadr Engr Scholarship Fund 55399 ",null,null,null,null,null,null,null,null,null,null,null,"KM0957843U - 2020 DAV1 CPPN Reloc Skills Lab SMClssrm KM0957843U "]
[null,null,null,"73656 - Chevron Icc Career Program Support Fund 55416 ",null,null,null,null,null,null,null,null,null,null,null,"KM0957864U - DT7 Child Life Relocation FURN PEQT KM0957864U "]
[null,null,null,"73675 - Treguboff Pediatric Awd For Nppas Suppt 55435 ",null,null,null,null,null,null,null,null,null,null,null,"KM0957886U - UCDH POLICE Upgrade Emerg Call Box KM0957886U "]
[null,null,null,"73693 - Jan Elsea Theatre Workshop Series Fund 55453 ",null,null,null,null,null,null,null,null,null,null,null,"KM0957907U - MAIN HOSP DT SESP ALL FLR IT Nurse Call KM0957907U "]
[null,null,null,"73719 - Crankstart Schp 4 Ca Comm College Trfr 55479 ",null,null,null,null,null,null,null,null,null,null,null,"KM0957927U - DT 8814 ONC Convert Soiled Rm KM0957927U "]
[null,null,null,"73747 - Kidney Research Equipment Fund 55507 ",null,null,null,null,null,null,null,null,null,null,null,"KN0959211U - DREC Pesticides Washdown FRI 19 20 KN0959211U "]
[null,null,null,"73766 - Mariposa 4H Program Support 55526 ",null,null,null,null,null,null,null,null,null,null,null,"KP0933770U - 0625 AGGIE SQUARE LIFELONG LEARNING TEN KP0933770U "]
[null,null,null,"73767 - SutterYuba 4H Program Support 55527 ",null,null,null,null,null,null,null,null,null,null,null,"KP0933780U - 0625 AGGIE SQUARE MUR GROUND FLOOR TENA KP0933780U "]
[null,null,null,"73790 - K Sanborn Todd Memorial Schp Np Sppt 55549 ",null,null,null,null,null,null,null,null,null,null,null,"KP0952410U - 0617 LARGE LECTURE HALL KP0952410U "]
[null,null,null,"73809 - Dermatology Research Fund Joo 55568 ",null,null,null,null,null,null,null,null,null,null,null,"KP0952810U - PPA 0618 VMC SMALL ANIMAL WEST WING 1 KP0952810U "]
[null,null,null,"73827 - Agricultural Water Mgmt Challenges In Ca 55586 ",null,null,null,null,null,null,null,null,null,null,null,"KP0953220U - 0618 CHEMISTRY ADDITION 1st FLOOR REN KP0953220U "]
[null,null,null,"73848 - J Story 77andR Kidd 77 Schp Sppt 55607 ",null,null,null,null,null,null,null,null,null,null,null,"KP0953610U - PPA 0624 SOCIAL SCIENCES HUMANITIES SEISM KP0953610U "]
[null,null,null,"73870 - Santa Clara Composting Education Program 55628 ",null,null,null,null,null,null,null,null,null,null,null,"KP0953820U - 0623 ANIMAL AREA RUNOFF REDUCTION KP0953820U "]
[null,null,null,"73888 - Swegs Group 55646 ",null,null,null,null,null,null,null,null,null,null,null,"KP0955590U - UMC 0610 0512 TELEMED RES CENTER PEQT KP0955590U "]
[null,null,null,"73907 - Rosenfeld Cardiovascular Research Fund 55665 ",null,null,null,null,null,null,null,null,null,null,null,"KP0955976U - Research Buildings Network Refresh KP0955976U "]
[null,null,null,"73925 - School Matinee Prgm Sppt Woodland Sd 55683 ",null,null,null,null,null,null,null,null,null,null,null,"KP0957492U - 0621 BAINER BIONANO TECH LAB KP0957492U "]
[null,null,null,"73942 - Mousebelt Blockchain Innovation Fund 55700 ",null,null,null,null,null,null,null,null,null,null,null,"KP0959148U - 0623 LOBBY STUDY SPACES KP0959148U "]
[null,null,null,"73961 - Cardiovascular EducationandResearch Fund 55719 ",null,null,null,null,null,null,null,null,null,null,null,"KP0959173U - PPA 0624 RMI SENSORY LAB ROOM 2027 KP0959173U "]
[null,null,null,"73978 - Ferguson Pharmacology Toxicology Fund 55736 ",null,null,null,null,null,null,null,null,null,null,null,"KP0959202U - PPA 0624 HR SIDEWALK IMPROVEMENTS KP0959202U "]
[null,null,null,"73998 - Videofluoroscopic Brachycephalic Dog Rsh 55756 ",null,null,null,null,null,null,null,null,null,null,null,"KP0959228U - PPA 0624 CNPRC BACKUP POWER PROJECT KP0959228U "]
[null,null,null,"74018 - Alameda Mg Quarry Lakes Demo Garden 55776 ",null,null,null,null,null,null,null,null,null,null,null,"KP0959262U - PPA 0625 GHAUSI RM 1104 REMODEL KP0959262U "]
[null,null,null,"74037 - Aiche Western Conference 55795 ",null,null,null,null,null,null,null,null,null,null,null,"KP0959283U - PPA 0625 POLICE SECURITY OPER 911 COMM CT KP0959283U "]
[null,null,null,"74059 - Virtual Center For Wellness 55817 ",null,null,null,null,null,null,null,null,null,null,null,"KP0959301U - Art Building Room 308 Renovation KP0959301U "]
[null,null,null,"74060 - Tahoe Env Research Ctr Americorp Sppt 55818 ",null,null,null,null,null,null,null,null,null,null,null,"KP0959302U - AWOS Relocation KP0959302U "]
[null,null,null,"74079 - Otolaryngology Enhancement Fund 55837 ",null,null,null,null,null,null,null,null,null,null,null,"KP953320F1 - 0821 CAMPUS SECURITY MANAGEMENT SYSTEM KP953320F1 "]
[null,null,null,"74102 - Mule and Donkey Behavior Research 55860 ",null,null,null,null,null,null,null,null,null,null,null,"KP953950N1 - 0624 ARBORETUM WATERWAY ENHANCEMENT KP953950N1 "]
[null,null,null,"74123 - Ucce Mont Cropmanage Sustainability 55881 ",null,null,null,null,null,null,null,null,null,null,null,"KP959175F1 - 0124 PRIMATE MODULAR ANIMAL HOUSI KP959175F1 "]
[null,null,null,"74142 - Equity In StemandEntrepreneurship 55900 ",null,null,null,null,null,null,null,null,null,null,null,"BNPBDP0000 - NPB Department Project "]
[null,null,null,"74166 - Gigahertz Bandwidth Mill Channel Rf Spec 55924 ",null,null,null,null,null,null,null,null,null,null,null,"D30VPC9079 - CNPRC - VISION SCIENCE RESEARCH SUPPORT "]
[null,null,null,"74184 - Eval The Potent Of 3Dxpoint Based MemandSt 55942 ",null,null,null,null,null,null,null,null,null,null,null,"DAANS00102 - AANS Faculty Recruitments "]
[null,null,null,"74203 - Avenueb Program 55961 ",null,null,null,null,null,null,null,null,null,null,null,"DADES00104 - ADES Emeriti Faculty Resources "]
[null,null,null,"74223 - Nutrition Research Fund 55981 ",null,null,null,null,null,null,null,null,null,null,null,"DAHCE00103 - AHCE Classes "]
[null,null,null,"74242 - UCDF Invested Gifts FlowThrough 56000 ",null,null,null,null,null,null,null,null,null,null,null,"DANUT00102 - ANUT Faculty Recruitments "]
[null,null,null,"74265 - Geology General Support 56020 ",null,null,null,null,null,null,null,null,null,null,null,"DAVIT00102 - AVIT Faculty Recruitments "]
[null,null,null,"74292 - Vitamin E Gastric Study Fund 56046 ",null,null,null,null,null,null,null,null,null,null,null,"DCM2507870 - Campus Building Access Survey "]
[null,null,null,"74315 - VM Mol BiosciDeptDiscretionary 56065 ",null,null,null,null,null,null,null,null,null,null,null,"DCM2509070 - Bodega Marine Lab North Wing DM "]
[null,null,null,"74334 - VM Anatomy Support 56084 ",null,null,null,null,null,null,null,null,null,null,null,"DCM2509240 - CAHFS Roof Overlay "]
[null,null,null,"74352 - VM Micro Ca Biotechnology 56101 ",null,null,null,null,null,null,null,null,null,null,null,"DCM2700230 - Kemper Hall Clean Room Chilled Water Repairs "]
[null,null,null,"74373 - VMtrcAnnual Vet Stdt Tour 56122 ",null,null,null,null,null,null,null,null,null,null,null,"DCM2831430 - West Village Student Housing P3 Development "]
[null,null,null,"74374 - VMccahUry Estate 56123 ",null,null,null,null,null,null,null,null,null,null,null,"DCM2831440 - West Village Viridian Shade Screens "]
[null,null,null,"74395 - VM Molecular Bio SciFeline Study 56141 ",null,null,null,null,null,null,null,null,null,null,null,"DCM2831740 - TERC Repairs "]
[null,null,null,"74412 - Veg CropsRagu Foods 56158 ",null,null,null,null,null,null,null,null,null,null,null,"DCM2900160 - Airport Hangar and Ground Lease "]
[null,null,null,"74430 - VMphandR Research Support 56176 ",null,null,null,null,null,null,null,null,null,null,null,"DCM2901290 - 2270 Stockton Boulevard Tenant Improvements "]
[null,null,null,"74450 - Cvdls Research Shivaprasad 56196 ",null,null,null,null,null,null,null,null,null,null,null,"DCM2902530 - Veterinary Genetics Lab Space "]
[null,null,null,"74476 - Victor E Lafave Iii Memorial Fxtas Fund 56222 ",null,null,null,null,null,null,null,null,null,null,null,"DCM2903470 - CNPRC UPS at Main Lab Main Admin Bldg "]
[null,null,null,"74493 - Plant Biology Graduate Group Spt Fund 56239 ",null,null,null,null,null,null,null,null,null,null,null,"DCM2904380 - Avian Science Research Facility Zone Q042 HVAC Improvements "]
[null,null,null,"74515 - VMdo Washington State 56270 ",null,null,null,null,null,null,null,null,null,null,null,"DCM2905080 - Red Real Estate Acquisition "]
[null,null,null,"74535 - VitandEnology Mondavi Res 56290 ",null,null,null,null,null,null,null,null,null,null,null,"DCM2906070 - TLC Writing Center Renovation "]
[null,null,null,"74556 - Irving Wagman Mem Fund 56310 ",null,null,null,null,null,null,null,null,null,null,null,"DEP1KWRIMI - KARI WATKINS RIMI PPM ONLY "]
[null,null,null,"74576 - SVM Newborn Foal Support Fund 56330 ",null,null,null,null,null,null,null,null,null,null,null,"DEP4HCO008 - 4H SECTION COUNCIL SET PROGRAMS "]
[null,null,null,"74595 - RWiggins English UG Memorial Fd 56349 ",null,null,null,null,null,null,null,null,null,null,null,"DEPCNTR001 - UCCE CONTRA COSTA COUNTY "]
[null,null,null,"74625 - Ucce Siskiyou 4H Grows Fund 56378 ",null,null,null,null,null,null,null,null,null,null,null,"DEPCWRI002 - CA INST FOR WATER RESOURCES Rosenberg "]
[null,null,null,"74642 - Ucce HumboldtDel Norte 4H Grows Fund 56395 ",null,null,null,null,null,null,null,null,null,null,null,"DEPINYO001 - UCCE INYO MONO COUNTY "]
[null,null,null,"74663 - MenS Tennis Community Engagement Fund 56416 ",null,null,null,null,null,null,null,null,null,null,null,"DEPMERC001 - UCCE MERCED COUNTY "]
[null,null,null,"74686 - Christina E Bullock Sustain Design Sppt 56439 ",null,null,null,null,null,null,null,null,null,null,null,"DEPMPMR007 - Sarcoma Fellowship "]
[null,null,null,"74687 - Breast Cancer Surgery Research Fund 56440 ",null,null,null,null,null,null,null,null,null,null,null,"DEPMPMR008 - Spine Fellowship "]
[null,null,null,"74707 - UCD Std Food InsecurityandOther Bas Needs 56460 ",null,null,null,null,null,null,null,null,null,null,null,"DEPSCRC001 - SOUTH COAST RESEARCH AND EXTENSION CENTER "]
[null,null,null,"74725 - S Schauer Award For Professional Achieve 56478 ",null,null,null,null,null,null,null,null,null,null,null,"DEPTADNO02 - ADNO ASI Misc Commitments "]
[null,null,null,"74743 - Substance Abuse Research Program 56496 ",null,null,null,null,null,null,null,null,null,null,null,"DEPTIMBE0A - IMBE Department Administrative Project "]
[null,null,null,"74762 - Brinson Prize Fellowship 56515 ",null,null,null,null,null,null,null,null,null,null,null,"DEPTIMGI0E - IMGI Department Enhancement Project "]
[null,null,null,"74782 - Chocolate Quality Purity and Nutrition Rrsch 56535 ",null,null,null,null,null,null,null,null,null,null,null,"DEPTIMID00 - IMID Department Research Project "]
[null,null,null,"74802 - Heal Lab Research Fund 56555 ",null,null,null,null,null,null,null,null,null,null,null,"DEPTIMPM0C - IMPM Division Commitments "]
[null,null,null,"74819 - Corvus Award Support Fund 56572 ",null,null,null,null,null,null,null,null,null,null,null,"DEPTMERM09 - MERM Education Program "]
[null,null,null,"74837 - Ucce Rive Master Food Preserver Fund 56590 ",null,null,null,null,null,null,null,null,null,null,null,"DEPTMNEU12 - MNEU Research Administration-1 "]
[null,null,null,"74864 - Gradpathways Institute For Professional 56616 ",null,null,null,null,null,null,null,null,null,null,null,"DEPTMPSY02 - Psychiatry and Behavioral Science Academic Enhancement "]
[null,null,null,"74883 - Graduate Students Basic Needs Fund 56635 ",null,null,null,null,null,null,null,null,null,null,null,"DEPWSRC001 - WEST SIDE RESEARCH AND EXTENSION CENTER "]
[null,null,null,"74902 - Dart Summer Externship Fund 56654 ",null,null,null,null,null,null,null,null,null,null,null,"DFMDM00058 - FM UTIL DM FY21 AB94 "]
[null,null,null,"74919 - DANR Stanislaus Feldman 56671 ",null,null,null,null,null,null,null,null,null,null,null,"DMU0000001 - SA MU Equipment Replacement Project "]
[null,null,null,"74939 - Ophthalmology RsrchandEduc Spt Estrada 56691 ",null,null,null,null,null,null,null,null,null,null,null,"DPAVCDF003 - HEDI-AVC Programmatic Discretionary Use "]
[null,null,null,"74961 - Psu Arnold Lodi Grape Day 56713 ",null,null,null,null,null,null,null,null,null,null,null,"DSHDS00001 - SDHS Dining Major Maintenance "]
[null,null,null,"74979 - Ostem Support Fund 56731 ",null,null,null,null,null,null,null,null,null,null,null,"LS000BFSDP - Bulosan Ctr Department Project "]
[null,null,null,"74980 - Shrem Museum Creative Artwork Room Sppt 56732 ",null,null,null,null,null,null,null,null,null,null,null,"LS000CHEAS - CHE Academic Staff Project "]
[null,null,null,"74999 - Placer County 4H Robotics 56751 ",null,null,null,null,null,null,null,null,null,null,null,"LSCHEDP000 - CHE Department Project "]
[null,null,null,"75018 - Environmental Health Support Fund 56770 ",null,null,null,null,null,null,null,null,null,null,null,"LSEPSDP000 - EPS Department Project "]
[null,null,null,"75039 - Global Aggie Award For Lgbtqia Rights 56791 ",null,null,null,null,null,null,null,null,null,null,null,"LSRELDP000 - REL Department Project "]
[null,null,null,"75059 - Metabolic Research Unit Fund 56812 ",null,null,null,null,null,null,null,null,null,null,null,"VMVSRD0000 - VM VSR Surgical Radiological Sciences Department Project "]
[null,null,null,"75080 - Priv Gifts Restricted Summary 56997 ",null,null,null,null,null,null,null,null,null,null,null,"DKO1009316 - DKO1009316 - ACCOUNTS PAYABLE "]
[null,null,null,"75097 - Neurological Disorders Research Fund 45977 ",null,null,null,null,null,null,null,null,null,null,null,"DKO1009349 - DKO1009349 - LODI MEMORIAL HOSPITALIST PROGRAM "]
[null,null,null,"75114 - ANR CA 4H STEM EDUCATION SHARK TANK 46002 ",null,null,null,null,null,null,null,null,null,null,null,"DKO1009381 - DKO1009381 - BOARDING "]
[null,null,null,"75133 - Anya Mysliwiec Resident Research Award 46033 ",null,null,null,null,null,null,null,null,null,null,null,"DKO1009613 - DKO1009613 - DAVIS6 CARDIOLOGY "]
[null,null,null,"75150 - Albin E Buswell Jr Fund 46061 ",null,null,null,null,null,null,null,null,null,null,null,"DKO1009639 - DKO1009639 - P3 CARDIO THORACIC ICU "]
[null,null,null,"75167 - Orthopaedics Department General Sppt Fd 46082 ",null,null,null,null,null,null,null,null,null,null,null,"DKO1009664 - DKO1009664 - UCDMG PCN LABORATORY "]
[null,null,null,"75187 - Riley Duffield Fund for Dentistry 46115 ",null,null,null,null,null,null,null,null,null,null,null,"DKO1009685 - DKO1009685 - UCDMC LABORATORY "]
[null,null,null,"75199 - Davis Computer Science Student Chapter 46134 ",null,null,null,null,null,null,null,null,null,null,null,"DKO1009699 - DKO1009699 - CYTOLOGY LABORATORY "]
[null,null,null,"75222 - New Mothers in Need Support Fund 46179 ",null,null,null,null,null,null,null,null,null,null,null,"DKO1009724 - DKO1009724 - APHERESIS "]
[null,null,null,"75239 - Integrated Wetland Management Research 46217 ",null,null,null,null,null,null,null,null,null,null,null,"DKO1009741 - DKO1009741 - CDI PROGRAM IP AND ED CODING "]
[null,null,null,"75256 - Winiarksi Wine Writers Coll Support 56821 ",null,null,null,null,null,null,null,null,null,null,null,"DKO1009761 - DKO1009761 - PEDIATRIC IV INFUSION CENTER "]
[null,null,null,"75257 - JOSEPHandRUTH SILVA EDUCATION ABROAD 56822 ",null,null,null,null,null,null,null,null,null,null,null,"DKO1009762 - DKO1009762 - HBC PEDIATRIC NEUROLOGY MIDTOWN "]
[null,null,null,"75274 - Vietnamese American Law Std Assoc Sppt 56842 ",null,null,null,null,null,null,null,null,null,null,null,"DKO1009788 - DKO1009788 - HBC NEUROSURGERY CLINIC MIDTOWN "]
[null,null,null,"75292 - Spencer Charles Martinez Memorial Fund 56878 ",null,null,null,null,null,null,null,null,null,null,null,"DKO1009808 - DKO1009808 - CANCER CENTER ADMIN "]
[null,null,null,"75309 - Wildlife Health Center Truck Fund 56908 ",null,null,null,null,null,null,null,null,null,null,null,"DKO1009826 - DKO1009826 - PURCHASING "]
[null,null,null,"75327 - Nephrology Research Support Fund 56939 ",null,null,null,null,null,null,null,null,null,null,null,"DKO1009846 - DKO1009846 - RISK MANAGEMENT "]
[null,null,null,"75345 - K Keener Pediatric Bone Marrow Transplan 56944 ",null,null,null,null,null,null,null,null,null,null,null,"DKO1009865 - DKO1009865 - NURSING PER DIEM POOL "]
[null,null,null,"75363 - VMCCAH CARDIAOLOGY RESEARCH 40021 ",null,null,null,null,null,null,null,null,null,null,null,"DKO1009893 - DKO1009893 - OTHER UNASSIGNED COSTS "]
[null,null,null,"75385 - Equine Supplement Calcium Research Fund 46229 ",null,null,null,null,null,null,null,null,null,null,null,"DKO1009921 - DKO1009921 - HOME CARE OPERATIONS "]
[null,null,null,"75418 - DASH Diet and Precision Nutrition Fund 46018 ",null,null,null,null,null,null,null,null,null,null,null,"DKO1009947 - DKO1009947 - MED PRAC PEDIATRICS DAVIS "]
[null,null,null,"75452 - UCCE Modoc Madter Food Preserver 46109 ",null,null,null,null,null,null,null,null,null,null,null,"DKO1009967 - DKO1009967 - MED PRAC RADIOLOGY FOLSOM "]
[null,null,null,"75488 - PULMONARYONLINE LUNG FUNCTION CALCULATR 46191 ",null,null,null,null,null,null,null,null,null,null,null,"DKO1617000 - DKO1617000 - SOUTH 3 ADULT ANNEX "]
[null,null,null,"75516 - Controlled Environment Cacao Fund 46244 ",null,null,null,null,null,null,null,null,null,null,null,"DKO1708502 - DKO1708502 - MP PRENATAL DIAGNOSTIC CENTER STOCKTON "]
[null,null,null,"75540 - Carstens DVM Scholarship 46271 ",null,null,null,null,null,null,null,null,null,null,null,"DKO1718012 - DKO1718012 - MED PRAC POINT WEST PRIMARY CARE "]
[null,null,null,"75565 - Marcia and Ronald Foltz MD Education Sppt 46298 ",null,null,null,null,null,null,null,null,null,null,null,"DKO1742200 - DKO1742200 - LIVER TRANSPLANT OPERATIONS "]
[null,null,null,"75588 - Pamela LYH Ching Global Engag Awd Spt Fd 46321 ",null,null,null,null,null,null,null,null,null,null,null,"DKO1848001 - DKO1848001 - IT TECHNOLOGY SERVICES "]
[null,null,null,"75608 - CA Grasslands Research and Conservation Fd 46343 ",null,null,null,null,null,null,null,null,null,null,null,"DKO1865001 - DKO1865001 - ADMINISTRATIVE HOSPITAL FLOAT POOL "]
[null,null,null,"75609 - TJE Quarter at Aggie Square Fund 46345 ",null,null,null,null,null,null,null,null,null,null,null,"DKO1865050 - DKO1865050 - ASAP ACAD STAFF ASSIST PROGRAM "]
[null,null,null,"75628 - Institute for Diversity Equity and Advan 46367 ",null,null,null,null,null,null,null,null,null,null,null,"DKO1889000 - DKO1889000 - UCPATH PAYROLL DEFAULTS "]
[null,null,null,"75649 - The Center for Watershed Sciences DEI Fd 46390 ",null,null,null,null,null,null,null,null,null,null,null,"DKO2707003 - DKO2707003 - CSOM INTERNAL MEDICINE "]
[null,null,null,"75668 - IRANIAN STUDENT ASSOCIATION 47918 ",null,null,null,null,null,null,null,null,null,null,null,"DKO2731000 - DKO2731000 - CSOM PHARMACOLOGY "]
[null,null,null,"75688 - KIND Snacks for Regenerative Ag and Pollin 47938 ",null,null,null,null,null,null,null,null,null,null,null,"DKO2801000 - DKO2801000 - CSOM IMAGING RESEARCH CENTER "]
[null,null,null,"75710 - Templeton Farms Support Fund 47960 ",null,null,null,null,null,null,null,null,null,null,null,"DKO2879001 - DKO2879001 - CSOM OTHER SHARED SERVICES "]
[null,null,null,"75728 - CAPE ICU Fund 47978 ",null,null,null,null,null,null,null,null,null,null,null,"DKO2900155 - DKO2900155 - GSM Full Time Program "]
[null,null,null,"75748 - Nutrient Management and Soil Quality 47998 ",null,null,null,null,null,null,null,null,null,null,null,"DKO3600104 - DKO3600104 - Law Prison Clinic "]
[null,null,null,"75767 - Dr Crain and Earthly Labs Wine Fermenta 49466 ",null,null,null,null,null,null,null,null,null,null,null,"DKO4300070 - DKO4300070 - PHS VIOLENCE PREVENTION CENTER "]
[null,null,null,"75794 - UCVMCSD Building Fund 50066 ",null,null,null,null,null,null,null,null,null,null,null,"DKO4302008 - DKO4302008 - MEPM Health Policy and Management "]
[null,null,null,"75815 - Hops Plants Genetics Research Fund 50087 ",null,null,null,null,null,null,null,null,null,null,null,"DKO4303110 - DKO4303110 - MCAN SWOG Cancer Research Network "]
[null,null,null,"75840 - Dual Tracer PET CT Imaging Fund 50113 ",null,null,null,null,null,null,null,null,null,null,null,"DKO4305201 - DKO4305201 - MERM Emergency Medicine "]
[null,null,null,"75860 - Healthy Central Valley Together Fund 50133 ",null,null,null,null,null,null,null,null,null,null,null,"DKO4305415 - DKO4305415 - MINT Int Med Center for Healthy Aging "]
[null,null,null,"75880 - Beyond the ClassroomPhysics 50153 ",null,null,null,null,null,null,null,null,null,null,null,"DKO4306201 - DKO4306201 - MPED Pediatrics "]
[null,null,null,"75931 - ESports Club 56974 ",null,null,null,null,null,null,null,null,null,null,null,"DKO4306218 - DKO4306218 - MPED Parent Child Therapy "]
[null,null,null,"76077 - ANR UCCE San Diego Support Fund 50172 ",null,null,null,null,null,null,null,null,null,null,null,"DKO4306711 - DKO4306711 - MSUR Trauma "]
[null,null,null,"76079 - ArthurABenjamin Hlth Prof HS Learn Gard 50174 ",null,null,null,null,null,null,null,null,null,null,null,"DKO4306712 - DKO4306712 - MSUR Vascular "]
[null,null,null,"76101 - EllisLinton Innovation Grant Microbiome 50193 ",null,null,null,null,null,null,null,null,null,null,null,"DKO4400059 - DKO4400059 - SON Clinical Education "]
[null,null,null,"76119 - OSS Sustainability Perspctv Wkshp Fund 50240 ",null,null,null,null,null,null,null,null,null,null,null,"DKO5500200 - DKO5500200 - Campus Comm Relations "]
[null,null,null,"76136 - Maggie LS Faculty Rsrch Comp Animal Fund 50270 ",null,null,null,null,null,null,null,null,null,null,null,"DKO6000004 - DKO6000004 - OR Funded Resarch Awards "]
[null,null,null,"76153 - ANR UCCE MEND Pinson Schp 4 H Fund 50287 ",null,null,null,null,null,null,null,null,null,null,null,"DKO6013001 - DKO6013001 - OR Research Center "]
[null,null,null,"76170 - Self Supervise Remote Sensing Rsrch Fund 50304 ",null,null,null,null,null,null,null,null,null,null,null,"DKO6013407 - DKO6013407 - ITS National Center for Sustainable Transportation "]
[null,null,null,"76188 - UCD Transplant Health Equity Sppt Fund 50322 ",null,null,null,null,null,null,null,null,null,null,null,"DKO6015004 - DKO6015004 - Mcclellan Nuclear Research Center "]
[null,null,null,"76205 - CSTEM Center Sppt Fund 4 Fresno County 50339 ",null,null,null,null,null,null,null,null,null,null,null,"DKO6015404 - DKO6015404 - OR MBP Mouse Metabolic Phenotyping Center "]
[null,null,null,"76229 - UCDQuadramNutritionConfSppt Fund 50363 ",null,null,null,null,null,null,null,null,null,null,null,"DKO6025003 - DKO6025003 - OR IACUC Administration "]
[null,null,null,"76253 - Excelerate Opportunity Fund 50387 ",null,null,null,null,null,null,null,null,null,null,null,"DKO7301002 - DKO7301002 - DEVAR UD Marketing and Development Communications "]
[null,null,null,"76271 - ANR SLO 4 H Site Repair 50214 ",null,null,null,null,null,null,null,null,null,null,null,"DKO7302001 - DKO7302001 - DEVAR ADSV Business Intelligence "]
[null,null,null,"76290 - StevenSpurrierWarrenWiniarskiWineInResid 50479 ",null,null,null,null,null,null,null,null,null,null,null,"DKO7320000 - DKO7320000 - Gift Processing "]
[null,null,null,"76309 - Milk Bioactive Research Fund 50431 ",null,null,null,null,null,null,null,null,null,null,null,"DKO7800058 - DKO7800058 - SC Marketing Communications "]
[null,null,null,"76326 - Medacta Knee Research Fund 50228 ",null,null,null,null,null,null,null,null,null,null,null,"DKO8000301 - DKO8000301 - CPE Land Use and Natural Resources Con "]
[null,null,null,"76343 - HBCU Pathways Fellowship 50488 ",null,null,null,null,null,null,null,null,null,null,null,"DKO8000500 - DKO8000500 - CPE Coursera "]
[null,null,null,"76360 - Vineyard Soil Health Research Fund 50524 ",null,null,null,null,null,null,null,null,null,null,null,"DKO8000578 - DKO8000578 - OTHER SPONSORING AGENCIES COSA "]
[null,null,null,"76361 - Teacher Education Hardship Fund 50525 ",null,null,null,null,null,null,null,null,null,null,null,"DKO8000579 - DKO8000579 - OTHER AGENCIES OP "]
[null,null,null,"76378 - QrtrAbroadAcademicOpportunity Fund 50552 ",null,null,null,null,null,null,null,null,null,null,null,"DKO8000608 - DKO8000608 - SPECIFIC RESERVE ADJUSTMENTS "]
[null,null,null,"76395 - CAMPSSAH Programs Support Fund 50243 ",null,null,null,null,null,null,null,null,null,null,null,"DKO8000707 - DKO8000707 - COSA IP OTHER SPONSORING AGENCIES "]
[null,null,null,"76412 - DANR MARIN ORGANICSUSTAINBALEAGSPPT41924 ",null,null,null,null,null,null,null,null,null,null,null,"DKO8000724 - DKO8000724 - SMIL IP SAC CO MI LAST RESORT "]
[null,null,null,"76429 - DANR VEG IRRIGATIONRSRCH MONTEREYCO42636 ",null,null,null,null,null,null,null,null,null,null,null,"DKO8000814 - DKO8000814 - MCRP OP MEDICARE PPS "]
[null,null,null,"76446 - UCCE SAN JOAQUIN SUPPORT REID 43538 ",null,null,null,null,null,null,null,null,null,null,null,"DKO8001903 - DKO8001903 CPE Market Research "]
[null,null,null,"76463 - HANSEN PROPERTY 47317 ",null,null,null,null,null,null,null,null,null,null,null,"DKO8100154 - DKO8100154 - Teacher Education Program "]
[null,null,null,"76480 - DANR SOLANO HOME ECONOMICS 55367 ",null,null,null,null,null,null,null,null,null,null,null,"DKO8500005 - DKO8500005 - BTS Personnel Services Unit "]
[null,null,null,"76498 - EFFLUENT UTILIZATION RESEARCH 54567 ",null,null,null,null,null,null,null,null,null,null,null,"DKO8500354 - DKO8500354 - Registrars Office "]
[null,null,null,"76515 - Labor Center Support Fund 50563 ",null,null,null,null,null,null,null,null,null,null,null,"DKO8500503 - DKO8500503 - UE Academic Advising "]
[null,null,null,"76532 - ECE: Keysight Gift",null,null,null,null,null,null,null,null,null,null,null,"DKO8700100 - DKO8700100 - Library Operations DUL COO "]
[null,null,null,"76549 - Wilson Disease Research Fund 50594 ",null,null,null,null,null,null,null,null,null,null,null,"DKO8700500 - DKO8700500 - Research and Learning AUL "]
[null,null,null,"76566 - Florescence Imaging in Oral Cancer Research Fund 50605 ",null,null,null,null,null,null,null,null,null,null,null,"DKO9921111 - DKO9921111 - Assoc VP and Office of Provost Imm Off "]
[null,null,null,"E0014 - PRN Teaching CredentialMasters Scholarship 322359 40693 ",null,null,null,null,null,null,null,null,null,null,null,"DKO9921711 - DKO9921711 - Vice Provost SPSI "]
[null,null,null,"E0031 - PRN Matthew J Rybicki Memorial Support Fund 322543 43404 ",null,null,null,null,null,null,null,null,null,null,null,"DKO9923215 - DKO9923215 - UCCE Colusa County "]
[null,null,null,"E0048 - PRN Ctn Valley FdtnMcClatchy Lecture 322679 44014 ",null,null,null,null,null,null,null,null,null,null,null,"DKO9923232 - DKO9923232 - UCCE Merced County "]
[null,null,null,"E0049 - PRN Shrem Museum of Art 322680 46887 ",null,null,null,null,null,null,null,null,null,null,null,"DKO9923233 - DKO9923233 - UCCE Modoc County "]
[null,null,null,"E0066 - PRN Kind Family Scholarship for Engr 322833 44750 ",null,null,null,null,null,null,null,null,null,null,null,"DKO9923250 - DKO9923250 - UCCE Santa Clara County "]
[null,null,null,"E0083 - PRN UCD Health System Eye Center Education 322947 44626 ",null,null,null,null,null,null,null,null,null,null,null,"DKO9923267 - DKO9923267 - UCCE Fresno Madera MCP "]
[null,null,null,"E0100 - PRN Surgery Department Support Fund 323000 45508 ",null,null,null,null,null,null,null,null,null,null,null,"DKO9931111 - DKO9931111 - AVPBO Immediate Office "]
[null,null,null,"E0117 - PRN Theater and Dance General Support 323052 44896 ",null,null,null,null,null,null,null,null,null,null,null,"DKO9941111 - DKO9941111 - UCB CNR Ag and Resource Econ Policy "]
[null,null,null,"E0134 - PRN Scott McNiven Memorial Fund 323151 46440 ",null,null,null,null,null,null,null,null,null,null,null,"DKO9942119 - DKO9942119 - UCR Plant Path And Microbiology "]
[null,null,null,"E0151 - PRN Violence Prevention Research Fund 323287 44513 ",null,null,null,null,null,null,null,null,null,null,null,"DKO9AARE03 - DKO9AARE03 - UCD AARE Faculty Compensation "]
[null,null,null,"E0168 - PRN Big Bang Business Competition Fund 323388 40864 ",null,null,null,null,null,null,null,null,null,null,null,"DKO9AENM01 - DKO9AENM01 - UCD AENM Entomology and Nematology "]
[null,null,null,"E0185 - PRN Cancer Research Fund 323445 49158 ",null,null,null,null,null,null,null,null,null,null,null,"DKO9AMCB01 - DKO9AMCB01 - UCD AMCB Molecular and Cellular Biology "]
[null,null,null,"E0202 - PRN Companion Animals Undergraduate Scholars 323494 48869 ",null,null,null,null,null,null,null,null,null,null,null,"DKO9APLS12 - DKO9APLS12 - UCD APLS Weed Research Center "]
[null,null,null,"E0219 - PRN Hawaii Network Fund 323574 47507 ",null,null,null,null,null,null,null,null,null,null,null,"DKO9VPMI01 - DKO9VPMI01 - UCD VM PMI Pathology Micro Immun "]
[null,null,null,"E0236 - PRN John Briggs Memorial Scholarship Support 323653 47863 ",null,null,null,null,null,null,null,null,null,null,null,"DKOAARE002 - DKOAARE002 - AARE Faculty Resources "]
[null,null,null,"E0253 - PRN Home Health Fund 323710 48512 ",null,null,null,null,null,null,null,null,null,null,null,"DKOACL4001 - DKOACL4001 - ACL4 Phoenix Cluster "]
[null,null,null,"E0270 - PRN Hibbard and Sharon Williams Stdnt Schlsp 323800 48761 ",null,null,null,null,null,null,null,null,null,null,null,"DKOADNO003 - DKOADNO003 - ADNO Deans Office Admin "]
[null,null,null,"E0287 - PRN Aggie Life Skills Lectureship 323881 49201 ",null,null,null,null,null,null,null,null,null,null,null,"DKOADNO055 - DKOADNO055 - ADNO Global Engagement "]
[null,null,null,"E0304 - PRN UC Davis Institute of the Environment 323933 49004 ",null,null,null,null,null,null,null,null,null,null,null,"DKOAETX003 - DKOAETX003 - AETX Faculty Compensation "]
[null,null,null,"E0305 - PRN Student Rainy Day Award Support Fund 323934 49424 ",null,null,null,null,null,null,null,null,null,null,null,"DKOAETX004 - DKOAETX004 - AETX Western Region IR4 "]
[null,null,null,"E0322 - PRN John Gina Wasson Chemical Engineering 324007 49171 ",null,null,null,null,null,null,null,null,null,null,null,"DKOAHCE007 - DKOAHCE007 - AHCE GGEO Geography Grad Group "]
[null,null,null,"E0339 - PRN Wes and Yvette Powell Sustain Ag Support 324063 43343 ",null,null,null,null,null,null,null,null,null,null,null,"DKOANPB001 - DKOANPB001 - ANPB Neurobiology Physiology and Behavior "]
[null,null,null,"E0356 - PRN Russell and Dorothy Bilinski BML Fellow 324105 49704 ",null,null,null,null,null,null,null,null,null,null,null,"DKOAPLS006 - DKOAPLS006 - APLS Research and Information Centers "]
[null,null,null,"E0373 - PRN Whitney Joy Engler Equine Scholarship 324146 56951 ",null,null,null,null,null,null,null,null,null,null,null,"DKOAPPA001 - DKOAPPA001 - APPA Plant Pathology "]
[null,null,null,"E0390 - PRN Lori Summa David Awwiller Sppt Fund 324202 49836 ",null,null,null,null,null,null,null,null,null,null,null,"DKOASU0104 - DKOASU0104 INNOVATION and RESEARCH LAB "]
[null,null,null,"E0407 - PRN GSM Staff Appreciation Fund 324268 49947 ",null,null,null,null,null,null,null,null,null,null,null,"DKOATHL006 - DKOATHL006 - Athletics Marketing Communications Media "]
[null,null,null,"E0424 - PRN Dr Shant and Robin Garabedian Scholarsh 324325 55211 ",null,null,null,null,null,null,null,null,null,null,null,"DKOATHL032 - DKOATHL032 - Women Water Polo "]
[null,null,null,"E0441 - PRN Correne Treguboff Ped Awd NP PA Sppt 324391 55435 ",null,null,null,null,null,null,null,null,null,null,null,"DKOAVIT002 - DKOAVIT002 - AVIT Faculty Resources "]
[null,null,null,"E0458 - PRN I Greppi Estate Award 324460 55574 ",null,null,null,null,null,null,null,null,null,null,null,"DKOBCBS009 - DKOBCBS009 - CBS Population Bio Graduate Group "]
[null,null,null,"E0475 - PRN Cardiovascular Education and Research 324506 55719 ",null,null,null,null,null,null,null,null,null,null,null,"DKOBGEN010 - DKOBGEN010 - CBS Genome Ctr Yeast 1 Hybrid Core Facility "]
[null,null,null,"E0492 - PRN Pitzer BML Education Conference Center 324544 55807 ",null,null,null,null,null,null,null,null,null,null,null,"DKOBRMP000 - DKOBRMP000 - BIA Budget "]
[null,null,null,"E0509 - PRN C B Petersen StudentAthlete Perf Ctr 324589 55863 ",null,null,null,null,null,null,null,null,null,null,null,"DKOCFPR000 - DKOCFPR000 - FOA VC Discretionary Projects "]
[null,null,null,"E0526 - PRN SVM Hardship Fund 324616 56225 ",null,null,null,null,null,null,null,null,null,null,null,"DKOCR00002 - DKOCR00002 - CR Ag "]
[null,null,null,"E0543 - PRN Indy Student Award 324655 56418 ",null,null,null,null,null,null,null,null,null,null,null,"DKOCR00201 - DKOCR00201 - CR Sport Clubs Administration "]
[null,null,null,"E0560 - PRN UC Davis Honors Opportunity Fund 324699 56483 ",null,null,null,null,null,null,null,null,null,null,null,"DKOCREM005 - DKOCREM005 - Leadership Investment Funds CIF OPN1 "]
[null,null,null,"E0561 - PRN Khaled Kheiravar Memorial Fund 324700 56484 ",null,null,null,null,null,null,null,null,null,null,null,"DKOCREM006 - DKOCREM006 - Faculty Resources PVRS "]
[null,null,null,"E0578 - PRN Zoetis Dairy Cow Reproduction Research 324741 56666 ",null,null,null,null,null,null,null,null,null,null,null,"DKODCRS000 - DKODCRS000 - DCM Real Estate Services "]
[null,null,null,"E0595 - PRN Ragan Compassionate Care Fund 324790 56647 ",null,null,null,null,null,null,null,null,null,null,null,"DKOECEE183 - DKOECEE183 - CEE Faculty Compensation "]
[null,null,null,"E0612 - PRN CEAM Surgery Service Professional 324834 56804 ",null,null,null,null,null,null,null,null,null,null,null,"DKOECOE015 - DKOECOE015 - COE DO Development "]
[null,null,null,"E0629 - PRN Gynecologic Oncology Fund 324883 56942 ",null,null,null,null,null,null,null,null,null,null,null,"DKOECOE081 - DKOECOE081 - COE DO HR Payroll Shared Service Center "]
[null,null,null,"E0646 - PRN Sister Rosemary Campi Memorial 324918 ",null,null,null,null,null,null,null,null,null,null,null,"DKOEMAE266 - DKOEMAE266 - MAE Student Support "]
[null,null,null,"E0663 - PRN Benjamin Franklin Green MD Scholar 324947 46065 ",null,null,null,null,null,null,null,null,null,null,null,"DKOEOES011 - DKOEOES011 Student Support Services "]
[null,null,null,"E0680 - PRN UC Davis Program for Positive Aging 324982 46120 ",null,null,null,null,null,null,null,null,null,null,null,"DKOFMCS000 - DKOFMCS000 - FM CUST Services "]
[null,null,null,"E0697 - PRN Prose Poetry in Psychotherapy Awd Sppt 325027 46261 ",null,null,null,null,null,null,null,null,null,null,null,"DKOFMUS000 - DKOFMUS000 - FM Util Services "]
[null,null,null,"E0714 - PRN Parkinsons Multidisciplinary Clinic 325087 46258 ",null,null,null,null,null,null,null,null,null,null,null,"DKOFODR002 - DKOFODR002 - FOA Communications "]
[null,null,null,"E0731 - PRN Pamela Ching Global Engagemnt Sppt Fnd 325124 46321 ",null,null,null,null,null,null,null,null,null,null,null,"DKOHRTR004 - DKOHRTR004 - HR Staff Development and Prof Services "]
[null,null,null,"E0748 - PRN Global Leadership Scholarship for ECE 325159 47988 ",null,null,null,null,null,null,null,null,null,null,null,"DKOIETCS07 - DKOIETCS07 - IET IT Express "]
[null,null,null,"E0765 - PRN Veterinary Medicine Alumni Fund 342070 39804 ",null,null,null,null,null,null,null,null,null,null,null,"DKOIETIN05 - DKOIETIN05 - IET System Administration "]
[null,null,null,"E0782 - PRN Hospice General Support 342250 53612 ",null,null,null,null,null,null,null,null,null,null,null,"DKOLAMS003 - DKOLAMS003 - AMS Faculty Resources "]
[null,null,null,"E0799 - PRN Yen Chuang Taiwan Fellowship 323507 47368 ",null,null,null,null,null,null,null,null,null,null,null,"DKOLBST001 - DKOLBST001 - Biostatistics Grad Group "]
[null,null,null,"E0816 - PRN Barth Alzheimers Research Fund 324090 49514 ",null,null,null,null,null,null,null,null,null,null,null,"DKOLCHI002 - DKOLCHI002 - CHI Faculty Compensation "]
[null,null,null,"E0817 - PRN Kendra M Chan Award 324092 49415 ",null,null,null,null,null,null,null,null,null,null,null,"DKOLCHI003 - DKOLCHI003 - CHI Faculty Resources "]
[null,null,null,"E0834 - PRN Charlene Ken Loveland Fund for Cancer 324412 55393 ",null,null,null,null,null,null,null,null,null,null,null,"DKOLCMN003 - DKOLCMN003 - CMN Faculty Resources "]
[null,null,null,"E0851 - PRN David Nicole Holcombe Experiential Lrn 324573 55891 ",null,null,null,null,null,null,null,null,null,null,null,"DKOLDES003 - DKOLDES003 - DES Faculty Resources "]
[null,null,null,"E0868 - PRN Richard A Ward Fellowship 324748 56582 ",null,null,null,null,null,null,null,null,null,null,null,"DKOLEAL003 - DKOLEAL003 - EAL Faculty Resources "]
[null,null,null,"E0885 - PRN Dr An Yen Dermatology Annual Lecture 324934 46045 ",null,null,null,null,null,null,null,null,null,null,null,"DKOLEPS003 - DKOLEPS003 - EPS Faculty Resources "]
[null,null,null,"E0902 - PRN Michael C and Rene Child Flexible Fund 322493 ",null,null,null,null,null,null,null,null,null,null,null,"DKOLGRM001 - DKOLGRM001 - CN Gorman Museum "]
[null,null,null,"E0919 - PRN Robert E Hales Award Clinical Psych 324192 BTE ",null,null,null,null,null,null,null,null,null,null,null,"DKOLHMR001 - DKOLHMR001 - HMR Human Rights "]
[null,null,null,"E0936 - PRN Dr F William Blaisdell Surgery Fund 324638 BTE ",null,null,null,null,null,null,null,null,null,null,null,"DKOLLIN001 - DKOLLIN001 - LIN Linguistics "]
[null,null,null,"E0953 - PRN Schefsky Fdn Political Science Diversity 325150 BTE ",null,null,null,null,null,null,null,null,null,null,null,"DKOLMSA001 - DKOLMSA001 - MSA Middle East South Asia Studies "]
[null,null,null,"E0965 - PRN Mondavi Production Equipment 323070 PG ",null,null,null,null,null,null,null,null,null,null,null,"DKOLNAS004 - DKOLNAS004 - NAS Grad Program "]
[null,null,null,"E0988 - PRN Lonigan Family Caregiving Research Fund 324317 PG ",null,null,null,null,null,null,null,null,null,null,null,"DKOLPOR002 - DKOLPOR002 - POR Faculty Compensation "]
[null,null,null,"E1005 - PRN Kathryn Duun Cancer Genomics Fund 324772 PG ",null,null,null,null,null,null,null,null,null,null,null,"DKOLSDE001 - DKOLSDE001 - LSDO Development "]
[null,null,null,"E1022 - PRN Team Aggie 311935 43102 ",null,null,null,null,null,null,null,null,null,null,null,"DKOLSTA003 - DKOLSTA003 - STA Faculty Resources "]
[null,null,null,"E1039 - PRN Michael Sowerwine Scholarship 325012 46186 ",null,null,null,null,null,null,null,null,null,null,null,"DKOPDPD003 - DKOPDPD003 - PD Support Services "]
[null,null,null,"E1056 - PRN BTC East Asian Studies 325059 ",null,null,null,null,null,null,null,null,null,null,null,"DKOSA00002 - DKOSA00002 - SA VC Student Affairs Provisions "]
[null,null,null,"E1073 - PRN Wildlife Disaster Network 325152 56530 ",null,null,null,null,null,null,null,null,null,null,null,"DKOSCSF000 - DKOSCSF000 - SCM Solutions and Financial Analysis "]
[null,null,null,"E1074 - PRN Charles River Lab Digital Pathology Sppt 325177 47927 ",null,null,null,null,null,null,null,null,null,null,null,"DKOSCSH000 - DKOSCSH000 - SCM Central Store "]
[null,null,null,"E1091 - PRN Lewis Scholarship in Brewing Support Fnd 325215 50124 ",null,null,null,null,null,null,null,null,null,null,null,"DKOSHCS007 - DKOSHCS007 - SHCS Quality Improvement and Risk Management QIRM "]
[null,null,null,"E1108 - PRN Presky Saltman Bio Sci Schlp Support 325244 50136 ",null,null,null,null,null,null,null,null,null,null,null,"DKOSHCS111 - DKOSHCS111 - SHCS Patient Registration PTR "]
[null,null,null,"E1125 - PRN Student Trustee Excellence Award 322909 45439 ",null,null,null,null,null,null,null,null,null,null,null,"DKOSHCS153 - DKOSHCS153 - SDC Mobility Services "]
[null,null,null,"E1142 - PRN CPE Winemaking Program Scholarship Fund 325296 50256 ",null,null,null,null,null,null,null,null,null,null,null,"DKOSHDS151 - DKOSHDS151 - SHDS Residential Services "]
[null,null,null,"E1159 - PRN School of Vet Med Dean s Research Fund 325321 50283 ",null,null,null,null,null,null,null,null,null,null,null,"DKOSHDS214 - DKOSHDS214 - SHDS Peets Silo Stbs "]
[null,null,null,"E1176 - PRN Future Healthcare Workers Serving 325343 56501 ",null,null,null,null,null,null,null,null,null,null,null,"DKOSHDS231 - DKOSHDS231 - SHDS Silo Utility "]
[null,null,null,"E1193 - PRN Global Aggie Award for LGBTQIA Rights 325376 BTE ",null,null,null,null,null,null,null,null,null,null,null,"DKOUCDS000 - DKOUCDS000 - UCD Stores Administration "]
[null,null,null,"E1210 - PRN Medical Oncology Service 325407 43176 ",null,null,null,null,null,null,null,null,null,null,null,"DKOVCAH003 - DKOVCAH003 - VM CCAH Research "]
[null,null,null,"E1227 - PRN Steve and Carol Mertens Scholarship 325430 ",null,null,null,null,null,null,null,null,null,null,null,"DKOVCEH106 - DKOVCEH106 - VM CEH Research Templeton "]
[null,null,null,"E1244 - PRN Center for Arts Building Fund 361432 ",null,null,null,null,null,null,null,null,null,null,null,"DKOVHFS105 - DKOVHFS105 - VM CAHFS Davis Facilities "]
[null,null,null,"E1261 - PRN Boyd Family Fund 323967 49012 ",null,null,null,null,null,null,null,null,null,null,null,"DKOVHFS203 - DKOVHFS203 - VM CAHFS SB Lab Support "]
[null,null,null,"E1278 - PRN Robert J Mills III Memorial Fund 324067 49534 ",null,null,null,null,null,null,null,null,null,null,null,"DKOVHFS401 - DKOVHFS401 - VM CAHFS Tulare "]
[null,null,null,"O0003 - IN SOM Alumni Scholarship Fund 311707 48568 ",null,null,null,null,null,null,null,null,null,null,null,"DKOVHO1080 - DKOVHO1080 - VM VMTH VSAC Dermatology "]
[null,null,null,"O0020 - IN International Scholars Students at UCD 322449 41679 ",null,null,null,null,null,null,null,null,null,null,null,"DKOVHO1410 - DKOVHO1410 - VM VMTH VSAC Surgery "]
[null,null,null,"O0037 - IN Deans Fund for Excellence in Education 322590 43366 ",null,null,null,null,null,null,null,null,null,null,null,"DKOVHO2570 - DKOVHO2570 - VM VMTH VLAC Livestock Repro and HH "]
[null,null,null,"O0038 - IN Shinkoskey Series of Noon Concerts 322594 42987 ",null,null,null,null,null,null,null,null,null,null,null,"DKOVHO2710 - DKOVHO2710 - VM VMTH VLAC Anesthesia "]
[null,null,null,"O0055 - IN ASUCD The Pantry 322731 44205 ",null,null,null,null,null,null,null,null,null,null,null,"DKOVHO3550 - DKOVHO3550 - VM VMTH VLAB PCR Lab "]
[null,null,null,"O0072 - IN MIND Institute Annual Fund 322896 40567 ",null,null,null,null,null,null,null,null,null,null,null,"DKOVHO5001 - DKOVHO5001 - VM VMTH VPCS Procurement Central Services "]
[null,null,null,"O0089 - IN ADHD Research Fund 322960 42895 ",null,null,null,null,null,null,null,null,null,null,null,"DKOVMDO003 - DKOVMDO003 - VM DO SW Faculty Salary Administration Plan "]
[null,null,null,"O0106 - IN African American Studies General 323040 40009 ",null,null,null,null,null,null,null,null,null,null,null,"DKOVMDO182 - DKOVMDO182 - VM DO PE DVM Curricular Support "]
[null,null,null,"O0123 - IN Plant Sciences General Support 323085 42822 ",null,null,null,null,null,null,null,null,null,null,null,"DKOVMDO216 - DKOVMDO216 - VM DO VORG IMM Graduate Education Immunology "]
[null,null,null,"O0140 - IN Boyd Fellows at Tahoe 323181 46518 ",null,null,null,null,null,null,null,null,null,null,null,"DKOVMSD005 - DKOVMSD005 - VM VMC SD Nephrology Urology Hemodialysis "]
[null,null,null,"O0157 - IN Reinhard Scholarship Fund 323335 46849 ",null,null,null,null,null,null,null,null,null,null,null,"DKOVOHI009 - DKOVOHI009 - VM OHI VERT Veterinary Emergency Response Team "]
[null,null,null,"O0174 - IN Gullick UCD Animal Sci Vet Scholarship 323412 47109 ",null,null,null,null,null,null,null,null,null,null,null,"DKOVTRC002 - DKOVTRC002 - VM TRC Administration "]
[null,null,null,"O0191 - IN Phil Wells Memorial Award Current Use 323475 49798 ",null,null,null,null,null,null,null,null,null,null,null,"DKOVVMB003 - DKOVVMB003 - VM VMB Faculty Resources "]
[null,null,null,"O0208 - IN Child Life Program 323519 48351 ",null,null,null,null,null,null,null,null,null,null,null,"K301022594 - NCL INNOVATIVE K301022594 "]
[null,null,null,"O0225 - IN African African American Alumni Assoc 323603 49745 ",null,null,null,null,null,null,null,null,null,null,null,"K302200194 - IPM SMITH LEVER K302200194 "]
[null,null,null,"O0242 - IN Salish Sea Forever Fund 323670 47643 ",null,null,null,null,null,null,null,null,null,null,null,"K302300061 - CS PSU Models Enabling Yr 8 9 X Liu K302300061 "]
[null,null,null,"O0259 - IN Emeritus Prof Jerald Henderson Scholsp 323757 49595 ",null,null,null,null,null,null,null,null,null,null,null,"K302329C85 - CS DOE Visual Analytics Tech Ma K302329C85 "]
[null,null,null,"O0276 - IN Cesar Chavez Youth Leadership Conference 323836 46040 ",null,null,null,null,null,null,null,null,null,null,null,"K302348466 - CS REU NSF Exploit Nat Software Devanbu K302348466 "]
[null,null,null,"O0293 - IN Bird Haven Wood Duck Fund 323900 48975 ",null,null,null,null,null,null,null,null,null,null,null,"K302373REU - CS CCRI REU Moderning gem5 Lowe K302373REU "]
[null,null,null,"O0294 - IN Bird Haven Inventory Fund 323901 48976 ",null,null,null,null,null,null,null,null,null,null,null,"K302374C73 - CS DOE PRECISON TUNING NUMERICAL RUBIO K302374C73 "]
[null,null,null,"O0311 - IN CAAA San Mateo Regional Scholarship 323957 47573 ",null,null,null,null,null,null,null,null,null,null,null,"K302382D66 - NSF CS Self Supervised Recom J Zhang K302382D66 "]
[null,null,null,"O0328 - IN Leslie A Campbell Fund Student Achievemt 324019 BTE ",null,null,null,null,null,null,null,null,null,null,null,"K3023CYMAN - CS DOE YR 2 Clean Energy Manufact MBish K3023CYMAN "]
[null,null,null,"O0345 - IN Lambda Alumni Scholarship 324082 49598 ",null,null,null,null,null,null,null,null,null,null,null,"K302831170 - University Airport ALP Update Support K302831170 "]
[null,null,null,"O0362 - IN Dr Laurel Gershwin Community Service Aw 324124 49539 ",null,null,null,null,null,null,null,null,null,null,null,"K303873036 - CEC PCM Enhanced Insulation Engineer K303873036 "]
[null,null,null,"O0379 - IN Global Education For All Excellence Fund 324161 49428 ",null,null,null,null,null,null,null,null,null,null,null,"K303873056 - CEC Cow Cooling Controls Market K303873056 "]
[null,null,null,"O0396 - IN The RSM Student Scholarship 324221 49766 ",null,null,null,null,null,null,null,null,null,null,null,"K303879025 - Energy Solutions Task Order 1 Dave V K303879025 "]
[null,null,null,"O0413 - IN Lyon Cisneros Family Research Fund 324283 55085 ",null,null,null,null,null,null,null,null,null,null,null,"K303879044 - CalSHAPE Technical Support ADM K303879044 "]
[null,null,null,"O0430 - IN The Scotts MiracleGro Co SmartLandscape 324356 55258 ",null,null,null,null,null,null,null,null,null,null,null,"K304058998 - INSTRUCTION VACATION ACCRUALS K304058998 "]
[null,null,null,"O0447 - IN Aggie Warrior Support Fund 324406 55503 ",null,null,null,null,null,null,null,null,null,null,null,"K304424999 - RESEARCH VACATION ACCRUALS K304424999 "]
[null,null,null,"O0464 - IN John Chuchel Memorial Fund 324484 55610 ",null,null,null,null,null,null,null,null,null,null,null,"K304872153 - DDETFP Student Award Justin Flynn K304872153 "]
[null,null,null,"O0481 - IN EstoestaJurka Family Research Fund 324521 55716 ",null,null,null,null,null,null,null,null,null,null,null,"K304873262 - CalEPA CRC Carbon Neutrality K304873262 "]
[null,null,null,"O0498 - IN Lawrence Lozares Music Lesson Sppt 324557 55803 ",null,null,null,null,null,null,null,null,null,null,null,"K304873288 - Fulton ARB TDA Technical Support K304873288 "]
[null,null,null,"O0515 - IN Vriheas Family Scholarship Support Fund 324599 56488 ",null,null,null,null,null,null,null,null,null,null,null,"K304875114 - CRUISE LLC A21 2679 K304875114 "]
[null,null,null,"O0532 - IN CAES Student Emergency Fund 324625 55980 ",null,null,null,null,null,null,null,null,null,null,null,"K304875137 - I 8 Peninsular Bighorn Sheep Fraser K304875137 "]
[null,null,null,"O0549 - IN Mens Tennis Scholarship Fund 324680 56414 ",null,null,null,null,null,null,null,null,null,null,null,"K304877100 - ITS Sperling NP Trust A21 3458 K304877100 "]
[null,null,null,"O0550 - IN Womens Tennis Scholarship Fund 324681 56415 ",null,null,null,null,null,null,null,null,null,null,null,"K304877101 - LBNL Grid Integrated Electric Mobility K304877101 "]
[null,null,null,"O0567 - IN FitchhornWalker DVM Animal Welfare 324716 56614 ",null,null,null,null,null,null,null,null,null,null,null,"K304877122 - Fulton ZEV Transition Council K304877122 "]
[null,null,null,"O0584 - IN Maud Wrightson Hinchee PhD Undergrad 324760 56591 ",null,null,null,null,null,null,null,null,null,null,null,"K305877010 - Kissock Load Flexibility Hub Prime K305877010 "]
[null,null,null,"O0601 - IN May Art Purchase Prize Support Fund 324808 56811 ",null,null,null,null,null,null,null,null,null,null,null,"K306858998 - STUDENT SERVICE VACATION ACCRUALS K306858998 "]
[null,null,null,"O0618 - IN Dean Keith Simonton Prize for Creativity 324841 56830 ",null,null,null,null,null,null,null,null,null,null,null,"K3074F21SM - 2023 2024 JGS Inc K3074F21SM "]
[null,null,null,"O0635 - IN Keener Pediatric Bone Marrow Transplant 324891 56944 ",null,null,null,null,null,null,null,null,null,null,null,"K307935D52 - GS NSF GRFP 23 24 K307935D52 "]
[null,null,null,"O0652 - IN Anya Mysliwiec Resident Research Award 324929 46033 ",null,null,null,null,null,null,null,null,null,null,null,"K3079EVCHL - MAE EcoCAR EV Challenge ANL DOE Flwship K3079EVCHL "]
[null,null,null,"O0669 - IN Psychedelic Center Pilot Project Fund 324954 46087 ",null,null,null,null,null,null,null,null,null,null,null,"K308GEARUP - 2018 GEAR UP Rural Valley Partnership K308GEARUP "]
[null,null,null,"O0686 - IN GSM MSBA Student Awards and Scholarships 325005 47951 ",null,null,null,null,null,null,null,null,null,null,null,"K309023698 - 23 24 FED WSP UG OFF CAMPUS FOR PROFIT K309023698 "]
[null,null,null,"O0703 - IN Enzo and Luca Cancer Research Fund 325035 46296 ",null,null,null,null,null,null,null,null,null,null,null,"K309871066 - Carb Circella Barriers to Reducr TASK3 K309871066 "]
[null,null,null,"O0720 - IN Stephanie DeGraffHunt David Hunt Sclp 325102 46284 ",null,null,null,null,null,null,null,null,null,null,null,"K309872330 - ENGAGEMENT PSR UTC K309872330 "]
[null,null,null,"O0737 - IN Genes Family Watershed Policy Internship 325135 46338 ",null,null,null,null,null,null,null,null,null,null,null,"K309872523 - NCST G2 Ferguson Potential Solar powered K309872523 "]
[null,null,null,"O0754 - IN The Annual Student Coordinators Award 325171 47604 ",null,null,null,null,null,null,null,null,null,null,null,"K309872560 - NCST Kendall End of Life EV Battery K309872560 "]
[null,null,null,"O0771 - IN Library Annual Fund 342120 39813 ",null,null,null,null,null,null,null,null,null,null,null,"K309872578 - Tal NCST Charging needs K309872578 "]
[null,null,null,"O0788 - IN Industry Relations Manager 322817 44765 ",null,null,null,null,null,null,null,null,null,null,null,"K309872615 - PSR Fitch Cargo Bikes and Light Elect K309872615 "]
[null,null,null,"O0805 - IN Famula Fund for Student Success 323737 48056 ",null,null,null,null,null,null,null,null,null,null,null,"K309872804 - NCST G3 USC Subaward K309872804 "]
[null,null,null,"O0806 - IN BlacuttUnderwood Engineering Dsgn Ctr 323798 48800 ",null,null,null,null,null,null,null,null,null,null,null,"K309872805 - NCST G3 CSULB Subaward K309872805 "]
[null,null,null,"O0823 - IN All Species Imaging Center Fund 324253 49596 ",null,null,null,null,null,null,null,null,null,null,null,"K309873407 - CalTrans G2 Jaller Fight Curbs TO7 K309873407 "]
[null,null,null,"O0840 - IN BioOrganic Catalyst Fund for Oakville 324455 55575 ",null,null,null,null,null,null,null,null,null,null,null,"K309873439 - Caltrans TO 39 Niemeier K309873439 "]
[null,null,null,"O0857 - IN VMC Surgery Services Renovation Fund 324657 56336 ",null,null,null,null,null,null,null,null,null,null,null,"K309873457 - Caltrans TO 57 Davis K309873457 "]
[null,null,null,"O0874 - IN Global Impact Project Fund 324845 56839 ",null,null,null,null,null,null,null,null,null,null,null,"K309873475 - Caltrans TO 75 Harvey K309873475 "]
[null,null,null,"O0891 - IN Justin Meyer Graduate Student Fellowship 325123 47944 ",null,null,null,null,null,null,null,null,null,null,null,"K30AACAUCM - AAS C ALVARADO UC PRES MELLON POSTDOC K30AACAUCM "]
[null,null,null,"O0908 - IN Dr Jennifer Walker FundAnimal Welfare 323323 STIP ",null,null,null,null,null,null,null,null,null,null,null,"K30AAS2J13 - MENCH AES ODD YR 2034 RR K30AAS2J13 "]
[null,null,null,"O0925 - IN Class of 88 Scholarship 324301 BTE ",null,null,null,null,null,null,null,null,null,null,null,"K30AAS2TA1 - ADAMS AES ODD YR K30AAS2TA1 "]
[null,null,null,"O0942 - IN UC Davis Womens Club Rowing Fund 324783 50078 ",null,null,null,null,null,null,null,null,null,null,null,"K30ABA2R19 - CLOSED ASSURING FRUIT VEG PRODUCTION K30ABA2R19 "]
[null,null,null,"O0959 - IN Patricia Gilbert DVM Fund 322953 PG ",null,null,null,null,null,null,null,null,null,null,null,"K30ACDRCZ2 - BME Chaudhari CMGI CZI 2 29 24 K30ACDRCZ2 "]
[null,null,null,"O0976 - IN Wildlife Health Center 323776 56133 ",null,null,null,null,null,null,null,null,null,null,null,"K30ADAR20H - Advancing Diversity in Aging Research K30ADAR20H "]
[null,null,null,"O0993 - IN College of LS Experiential Learning 324369 PG ",null,null,null,null,null,null,null,null,null,null,null,"K30AECREG8 - ARE GOODHUE ECON EFFECTS CDPR REGULAT K30AECREG8 "]
[null,null,null,"O1010 - IN Debbie Rodriguez Homeless Animal 324955 PG ",null,null,null,null,null,null,null,null,null,null,null,"K30AEX1D07 - Valley Oak Wilt Disease Ambrosia Beetle K30AEX1D07 "]
[null,null,null,"O1027 - IN AMPAC Undrgrd Rsrch Awd Chem Engineering 325147 46362 ",null,null,null,null,null,null,null,null,null,null,null,"K30AEX9D86 - Pear Pest Management Research A21 3377 K30AEX9D86 "]
[null,null,null,"O1044 - IN BTC Art Studio 325046 50359 ",null,null,null,null,null,null,null,null,null,null,null,"K30AG1KP23 - WCAHS Project 1 YR 2 K30AG1KP23 "]
[null,null,null,"O1061 - IN BTC Mathematics 325066 ",null,null,null,null,null,null,null,null,null,null,null,"K30AGOUT21 - WCAHS OUTREACH SIMMONS YR6 K30AGOUT21 "]
[null,null,null,"O1062 - IN BTC Middle EastSouth Asia Studies 325067 ",null,null,null,null,null,null,null,null,null,null,null,"K30AGOUT22 - WCAHS OUTREACH YR 1 K30AGOUT22 "]
[null,null,null,"O1079 - IN John Felipe Bowman Support Fund 325162 48012 ",null,null,null,null,null,null,null,null,null,null,null,"K30AHUCLBZ - NUTR HALL UCL Biofortification with Z K30AHUCLBZ "]
[null,null,null,"O1096 - IN Coulter Tominaga Pediatric Resident Supp 325226 50120 ",null,null,null,null,null,null,null,null,null,null,null,"K30AIFSP07 - AIFS Ethics Trust in AI Food Systems K30AIFSP07 "]
[null,null,null,"O1113 - IN Mars Veterinary Residency Research Fund 325250 50159 ",null,null,null,null,null,null,null,null,null,null,null,"K30AJC2428 - PacVec Year 1 K30AJC2428 "]
[null,null,null,"O1130 - IN Valley Fever Research Fund 325274 50198 ",null,null,null,null,null,null,null,null,null,null,null,"K30AJM3F97 - 04 15 24 AVF IRT Method Irrigate K30AJM3F97 "]
[null,null,null,"O1147 - IN Inaba Petfood Company Support Fund 325306 50427 ",null,null,null,null,null,null,null,null,null,null,null,"K30AKH4D41 - CDFA Recycled olive waste K30AKH4D41 "]
[null,null,null,"O1164 - IN Class of 1971 Scholarship Fund 322810 BTE ",null,null,null,null,null,null,null,null,null,null,null,"K30ALIANZA - Chem Britt Alianza UCMX K30ALIANZA "]
[null,null,null,"O1181 - IN Alberini Grad Fellowshp in Design Sppt 325359 50472 ",null,null,null,null,null,null,null,null,null,null,null,"K30ALW4R57 - THE NATIONAL ATMOSPHERIC DEPOSITION PROG K30ALW4R57 "]
[null,null,null,"O1198 - IN Psychology General Support 325392 44132 ",null,null,null,null,null,null,null,null,null,null,null,"K30AMDOE23 - CHE MOULE DOE Using Phonon Mode Analysi K30AMDOE23 "]
[null,null,null,"O1215 - IN ECExpo Event Fund 325414 50560 ",null,null,null,null,null,null,null,null,null,null,null,"K30AMSBOR1 - ANS Schreier Bureau of Reclamation K30AMSBOR1 "]
[null,null,null,"O1232 - IN Multi Use Athletics Stadium 322159 41300 ",null,null,null,null,null,null,null,null,null,null,null,"K30AMSLCTT - Schreier Lahontan Cutthroat Trout Gene K30AMSLCTT "]
[null,null,null,"O1249 - IN Stanley and Jacqueline Schilling Fund 323093 45858 ",null,null,null,null,null,null,null,null,null,null,null,"K30ANA1336 - LAWR ANASTASIO NSF PHOTOCHEMISTRY K30ANA1336 "]
[null,null,null,"O1266 - IN Phyllis J Heppe Wildlife Residency Prog 323983 49510 ",null,null,null,null,null,null,null,null,null,null,null,"K30ANT3RO1 - CLOSED NUTRIENT BIOAVAILABILITY PHYTO K30ANT3RO1 "]
[null,null,null,"O1283 - IN Healthy Aging in a Digital World Excelln 324141 49741 ",null,null,null,null,null,null,null,null,null,null,null,"K30APO9C12 - Fund Share w Gail Taylor Plant Sciences K30APO9C12 "]
[null,null,null,"P0008 - TO Kluger Sunsweet Scholarship 111093 52941 ",null,null,null,null,null,null,null,null,null,null,null,"K30APSAA11 - PS PITTEKOW NAFA 2023 CARBON FOOTPRINT K30APSAA11 "]
[null,null,null,"P0025 - Russell Memorial Scholarship Fund 111490 50992 ",null,null,null,null,null,null,null,null,null,null,null,"K30APSAW27 - PS CWC FFAR MATCHING LUNDY K30APSAW27 "]
[null,null,null,"P0026 - Ranchers Cotton OilEarl J Cecil Schol 111507 44087 ",null,null,null,null,null,null,null,null,null,null,null,"K30APSAW28 - PS DUBCOVSKY CWC WHEAT 4 30 2024 K30APSAW28 "]
[null,null,null,"P0043 - Leadership CouncilWalter W Rohrer 111639 48583 ",null,null,null,null,null,null,null,null,null,null,null,"K30APSD246 - PS VAN DEYNZE 2021 CDFA SPBG TSVW PEPPER K30APSD246 "]
[null,null,null,"P0060 - Christine M Doyle Scholarship 111717 40211 ",null,null,null,null,null,null,null,null,null,null,null,"K30APSD267 - PS ZWIENIECKI CDFA UCANR DEVELOPI 063025 K30APSD267 "]
[null,null,null,"P0077 - Gerdes Rohrich Awards 111769 40803 ",null,null,null,null,null,null,null,null,null,null,null,"K30APSF750 - PS LUO 2018 SCRI VIA UC RIVERSIDE K30APSF750 "]
[null,null,null,"P0094 - Androus Prof Rice Weed Cntrl 111839 50508 ",null,null,null,null,null,null,null,null,null,null,null,"K30APSF942 - USDA SCRI STRAWBERRY KNAPP K30APSF942 "]
[null,null,null,"P0111 - William E Stuke Walnut Research Flwship 111909 40208 ",null,null,null,null,null,null,null,null,null,null,null,"K30APSF9PR - PS KLIEBENSTEIN NSF BOTRYTIS 7 31 25 K30APSF9PR "]
[null,null,null,"P0128 - Harold O Carter Endowment 111974 41178 ",null,null,null,null,null,null,null,null,null,null,null,"K30APSFA25 - PS RUNCIE USDAGENOMIC PREDICTION 5 31 23 K30APSFA25 "]
[null,null,null,"P0145 - Stumpf Plant Biochemistry Professorship 122017 40759 ",null,null,null,null,null,null,null,null,null,null,null,"K30APSFA58 - PS FUNK USDA NIFA AFRI CAN DROUGHT RESP K30APSFA58 "]
[null,null,null,"P0162 - Sander Wilson Memorial Award 122056 40890 ",null,null,null,null,null,null,null,null,null,null,null,"K30APSFA85 - PS JSI USAID ADV NUTRITION 21 22 CRUMP K30APSFA85 "]
[null,null,null,"P0179 - Brunos Fund 122091 42960 ",null,null,null,null,null,null,null,null,null,null,null,"K30APSFB05 - PS YOUNG NSF COLLABORATIVE RES 08312027 K30APSFB05 "]
[null,null,null,"P0196 - Avian Development Genetics Endowment 122122 46609 ",null,null,null,null,null,null,null,null,null,null,null,"K30APSFB24 - PS PJBROWN 2022 USDA SCRI PISTACHIO K30APSFB24 "]
[null,null,null,"P0213 - BriegerKrevans Scholarship 122147 41496 ",null,null,null,null,null,null,null,null,null,null,null,"K30APSFB42 - PS STEWART ESP Thorne Seed Transfer K30APSFB42 "]
[null,null,null,"P0230 - Nematology Graduate Fellowship 122182 41325 ",null,null,null,null,null,null,null,null,null,null,null,"K30APSFB59 - PS USDA ARS UG99 SENTINEL DEL BLANCO K30APSFB59 "]
[null,null,null,"P0247 - Castelfranco Comparative Religion Endow 122212 41751 ",null,null,null,null,null,null,null,null,null,null,null,"K30APSFB74 - PS MARINO 2022 USDA SCRI PISTACHIO K30APSFB74 "]
[null,null,null,"P0264 - Yocha Dehe Chair in Ped Endocrinology 122238 41746 ",null,null,null,null,null,null,null,null,null,null,null,"K30APSFB91 - PS DANDEKAR CDFA SCBG VIA ARS KASUGA K30APSFB91 "]
[null,null,null,"P0281 - Sterling Scholarship 122284 41936 ",null,null,null,null,null,null,null,null,null,null,null,"K30APSFC08 - PS USDA NIFA WHEAT CAP KSU DUBCOVSKY K30APSFC08 "]
[null,null,null,"P0282 - Michael Bonaccorsi Sclrshp 122288 41816 ",null,null,null,null,null,null,null,null,null,null,null,"K30APSFC09 - PS USDA NIFA WHEAT CAP MICH DUBCOVSKY K30APSFC09 "]
[null,null,null,"P0299 - Charles R Duncan Endowed Fund 122316 42229 ",null,null,null,null,null,null,null,null,null,null,null,"K30APSFC26 - PS GREWELL USDA RSA 58 2030 3 031 K30APSFC26 "]
[null,null,null,"P0316 - John and Jeanne Pryor Fund 122350 42324 ",null,null,null,null,null,null,null,null,null,null,null,"K30APSFDHP - PS PUTNAM USDACOOP AGREE 58 2034 9 032 K30APSFDHP "]
[null,null,null,"P0333 - Albert T Bottini Chemistry Collection 122378 44095 ",null,null,null,null,null,null,null,null,null,null,null,"K30APSJB25 - PS VAN DEYNZE 2022 USDA NIFA MSP FINA K30APSJB25 "]
[null,null,null,"P0350 - Integrated Studies Honors Program 122408 43519 ",null,null,null,null,null,null,null,null,null,null,null,"K30APSM587 - PS LATIMER GABMF MEGAFIRES CONDIT 123121 K30APSM587 "]
[null,null,null,"P0367 - Sailer Endowment Fund for Undergrad Ed 122444 43515 ",null,null,null,null,null,null,null,null,null,null,null,"K30APSM636 - PS FFAR SEEDX BRADFORD K30APSM636 "]
[null,null,null,"P0379 - Gibbe Parsons Family Professorship 122477 45673 ",null,null,null,null,null,null,null,null,null,null,null,"K30APSM666 - PS LIETH ROBERT LIEN CHEN FAMILYA22 3074 K30APSM666 "]
[null,null,null,"P0402 - Robert M Natalie Dorn Infancy Chair 122515 45697 ",null,null,null,null,null,null,null,null,null,null,null,"K30APSM689 - PS PUTNAM CA A AND F Testing Yi 06302024 K30APSM689 "]
[null,null,null,"P0419 - Nate Mlyniec Memorial Scholarship 122550 42756 ",null,null,null,null,null,null,null,null,null,null,null,"K30APSM785 - PS Del Blanco CCIA 2023 24 by 6 30 24 K30APSM785 "]
[null,null,null,"P0436 - Child Family Womens Water Polo 122586 43849 ",null,null,null,null,null,null,null,null,null,null,null,"K30APSPAM1 - PS BAILEY ALMOND BOARD THREE DIME 123123 K30APSPAM1 "]
[null,null,null,"P0453 - Thompson Softball Scholar Award 122623 43850 ",null,null,null,null,null,null,null,null,null,null,null,"K30APSPC13 - PS MARINO ZWIENI CHERRY DORMANCY 113023 K30APSPC13 "]
[null,null,null,"P0470 - Albrecht Chair in Basic Science 122660 43777 ",null,null,null,null,null,null,null,null,null,null,null,"K30APSPP54 - PS GRADZIEL CALIF CLING PEACH DEV 053123 K30APSPP54 "]
[null,null,null,"P0487 - Adler Graduate Student Fellowship 122697 44025 ",null,null,null,null,null,null,null,null,null,null,null,"K30APSPR95 - PS Tian CPRB PISTACHIO 2 28 2023 K30APSPR95 "]
[null,null,null,"P0504 - University Medal Honorarium Fund 122730 44231 ",null,null,null,null,null,null,null,null,null,null,null,"K30APSPRB4 - PS PJ BROWN 2023 CPRB ROOTSTOCK BREEDING K30APSPRB4 "]
[null,null,null,"P0521 - Templeton Endowed Chair 122767 44965 ",null,null,null,null,null,null,null,null,null,null,null,"K30APSPWH9 - PS CWB 21 22 LAMPINEN SHACKEL K30APSPWH9 "]
[null,null,null,"P0538 - VC Chair in Violence Prevention 122799 44927 ",null,null,null,null,null,null,null,null,null,null,null,"K30APSRHRR - PL SCI ORG RES REG RES ODD YEAR K30APSRHRR "]
[null,null,null,"P0539 - Lawrence E Shepard Scholarship 122800 44563 ",null,null,null,null,null,null,null,null,null,null,null,"K30APSTL67 - PS CA LEAFY GREENS 21 22 MELOTTO K30APSTL67 "]
[null,null,null,"P0556 - Lewis Arboretum Endowment 122840 49289 ",null,null,null,null,null,null,null,null,null,null,null,"K30APSXS02 - PS HortInnLab ICED Kenya S002 Mitcham K30APSXS02 "]
[null,null,null,"P0573 - Class of 1977 LRAP Fund 122902 49799 ",null,null,null,null,null,null,null,null,null,null,null,"K30APSXS19 - PS HortInnLab Prado Acceso S019 McGuire K30APSXS19 "]
[null,null,null,"P0590 - Ko Professorship in Science Leadership 122946 46676 ",null,null,null,null,null,null,null,null,null,null,null,"K30AQADNAS - Dillner JET NASA K30AQADNAS "]
[null,null,null,"P0607 - ODonnell Family Scholarship 123010 46620 ",null,null,null,null,null,null,null,null,null,null,null,"K30AQCSN08 - DO 8 EPA CHEMICAL SPEC NETWORK K30AQCSN08 "]
[null,null,null,"P0624 - The Waltons Class of 1988 Scholarship Fu 123075 47012 ",null,null,null,null,null,null,null,null,null,null,null,"K30AQKB008 - Bein Wildfire Toxicology Fingerprinting K30AQKB008 "]
[null,null,null,"P0641 - SolisMcClain Veterans Scholarship Fund 123124 46422 ",null,null,null,null,null,null,null,null,null,null,null,"K30AQTAH23 - Hyslop Tahoe 7 1 23 6 30 24 K30AQTAH23 "]
[null,null,null,"P0658 - Dr Frank Boutin Sr Memorial Fund 123160 46805 ",null,null,null,null,null,null,null,null,null,null,null,"K30ARRICE3 - JMIE RYPL CA RICE COMMISSION SALMON CON K30ARRICE3 "]
[null,null,null,"P0675 - Pat Doyleen Bradford Endowment Fund 123211 46800 ",null,null,null,null,null,null,null,null,null,null,null,"K30ASIYSA2 - Carl Moyer Program Charger K30ASIYSA2 "]
[null,null,null,"P0692 - Ben McCoy Undergraduate Award Fund 123274 47026 ",null,null,null,null,null,null,null,null,null,null,null,"K30ATX3131 - PERSONAL PROTECTIVE TECH ENV HAZARDS K30ATX3131 "]
[null,null,null,"P0709 - CleanTech Award Sponsored by Clean Start 123336 46851 ",null,null,null,null,null,null,null,null,null,null,null,"K30AWFRHMS - WFB MCINTYRE STENNIS FUNDS K30AWFRHMS "]
[null,null,null,"P0726 - Sandra J Gardner Award 123393 55920 ",null,null,null,null,null,null,null,null,null,null,null,"K30AXOPHEN - 04 30 24 SCBGP Volatile Phenol Absorb K30AXOPHEN "]
[null,null,null,"P0743 - Seiber Fellowship for Innovation 123454 47221 ",null,null,null,null,null,null,null,null,null,null,null,"K30BALD787 - WBAL ANTICOAGULANT RODENTICIDES K30BALD787 "]
[null,null,null,"P0760 - Award for Innovation Creative Vision 123539 55065 ",null,null,null,null,null,null,null,null,null,null,null,"K30BCD5NIM - HE HD Chambers NIH NIMHHD 84D50 K30BCD5NIM "]
[null,null,null,"P0777 - YoumansWagner Neurological Surgery Fund 123630 49275 ",null,null,null,null,null,null,null,null,null,null,null,"K30BGINVRF - INVERTEBRATE CALCIFICATION AND BEHAVIOR K30BGINVRF "]
[null,null,null,"P0794 - La Rue Frederick Scholarship for Nursing 123678 49737 ",null,null,null,null,null,null,null,null,null,null,null,"K30BJ71F99 - ECNS CARB 22ISD013 J BUSHNELL 71F99 K30BJ71F99 "]
[null,null,null,"P0795 - Bees Family Interprofessional Scholarsh 123684 56213 ",null,null,null,null,null,null,null,null,null,null,null,"K30BJ80D52 - ECNS U CHICAGO NSF J BUSHNELL 80D52 K30BJ80D52 "]
[null,null,null,"P0812 - Class of 1994 Endowed Scholarship Fund 123733 49072 ",null,null,null,null,null,null,null,null,null,null,null,"K30BKG7CDF - ARE Goodrich CA Dept Food CRS Corn K30BKG7CDF "]
[null,null,null,"P0829 - Aditi H Mandpe MD Award 123769 48788 ",null,null,null,null,null,null,null,null,null,null,null,"K30BLANS18 - CHEM BERBEN NSF CHE 1763821 K30BLANS18 "]
[null,null,null,"P0846 - Jackie Chang and Joe Matunis Award 123838 48805 ",null,null,null,null,null,null,null,null,null,null,null,"K30BM85DA2 - ECNS UCSF CDC 12423sc02 M BITLER 85D00 K30BM85DA2 "]
[null,null,null,"P0863 - RC Roberts Endowed Fund Applied Ecology 123903 50489 ",null,null,null,null,null,null,null,null,null,null,null,"K30BPCAZ90 - CNPRC Miller UCSF U01 Chapman K30BPCAZ90 "]
[null,null,null,"P0880 - Helge Gerda Evensen Endowed Fund 124013 49311 ",null,null,null,null,null,null,null,null,null,null,null,"K30BPCCZ25 - CNPRC Van Rompay UNC 5111994 K30BPCCZ25 "]
[null,null,null,"P0897 - Discovery of Future Nutrition Research 124076 49389 ",null,null,null,null,null,null,null,null,null,null,null,"K30BPCCZ75 - CNPRC Baylor U24 Thomasy Roberts YR2 K30BPCCZ75 "]
[null,null,null,"P0914 - Powering Aggies Scholarship 124188 55548 ",null,null,null,null,null,null,null,null,null,null,null,"K30BPCDZ23 - CNPRC Baylor U24 Thomasy YR3 SUP YR2 K30BPCDZ23 "]
[null,null,null,"P0931 - Ruth R Mehlhaff Endowed Fund for People 124252 49891 ",null,null,null,null,null,null,null,null,null,null,null,"K30BPCDZ57 - CNPRC Roberts UCSF NIH R01 K30BPCDZ57 "]
[null,null,null,"P0948 - David Dana Loury Industry Career Dev 124310 55176 ",null,null,null,null,null,null,null,null,null,null,null,"K30BPCDZ86 - CNPRC Hartigan OConnor CCHC U01ES029234 K30BPCDZ86 "]
[null,null,null,"P0965 - Victor and Meg Chan Graduate Student Awd 124371 43441 ",null,null,null,null,null,null,null,null,null,null,null,"K30BPCEZ20 - CNPRC Baylor U24 Thomasy YR5 SUP YR4 K30BPCEZ20 "]
[null,null,null,"P0982 - Ginger David Moehring Fund for Global 124427 55443 ",null,null,null,null,null,null,null,null,null,null,null,"K30BPCEZ48 - CNPRC VandeVoort Standford 63085271 KAQA K30BPCEZ48 "]
[null,null,null,"P0999 - Jill M Hancock Scholarship Endowment 124464 ",null,null,null,null,null,null,null,null,null,null,null,"K30BPCEZ81 - CNPRC Roberts NIH SPF U42OD010990 23S1 K30BPCEZ81 "]
[null,null,null,"P1016 - JL Fong Ophthalmic Clinical Trial 124540 55769 ",null,null,null,null,null,null,null,null,null,null,null,"K30BUT22E1 - BUT Butte County EW 2022 03 C000114293 K30BUT22E1 "]
[null,null,null,"P1033 - Jenn Thatcher 88 Womens Cross Country 124582 ",null,null,null,null,null,null,null,null,null,null,null,"K30BYAFOSR - Brain Derived Neuromorphic Computing K30BYAFOSR "]
[null,null,null,"P1050 - Synthetic Biology Genome Center Endow 124666 56417 ",null,null,null,null,null,null,null,null,null,null,null,"K30BYHPE22 - HPE Reconfig Heterogns Comptg Systems K30BYHPE22 "]
[null,null,null,"P1051 - Innovation Institute for Food Health 124667 56366 ",null,null,null,null,null,null,null,null,null,null,null,"K30BYM0005 - ECE YOO INTEL GRANT 20107229 K30BYM0005 "]
[null,null,null,"P1068 - Urban Family Scholarship 124752 56906 ",null,null,null,null,null,null,null,null,null,null,null,"K30CALFR22 - CalFresh State Office Administration 22 K30CALFR22 "]
[null,null,null,"P1085 - Bacchetti Scholarship in Animal Science 124797 56693 ",null,null,null,null,null,null,null,null,null,null,null,"K30CALJH14 - Scoping Next Gen PMS K30CALJH14 "]
[null,null,null,"P1102 - Mark and Carole McNamee Endowment Fund 124852 56845 ",null,null,null,null,null,null,null,null,null,null,null,"K30CBNIF23 - INC NATIONAL INSTITUTE FOR 2021 70007 3 K30CBNIF23 "]
[null,null,null,"P1119 - Sister Rosemary Campi Memorial 124918 46003 ",null,null,null,null,null,null,null,null,null,null,null,"K30CCCNPR5 - CONTE CENTER PROJECT 3 CNPRC YR2 K30CCCNPR5 "]
[null,null,null,"P1136 - Hall Diversity in Engineering Scholar 124973 46101 ",null,null,null,null,null,null,null,null,null,null,null,"K30CCMP1Y6 - CNS Carter Conte 2P50MH106438 YR6 Proj 1 K30CCMP1Y6 "]
[null,null,null,"P1153 - Fernandes Guardian Teacher Scholarship 125009 46175 ",null,null,null,null,null,null,null,null,null,null,null,"K30CCR5024 - CCR5024 CDSS FY21 22 IV E 50 K30CCR5024 "]
[null,null,null,"P1170 - Elaine R Fingerett Learning by Leading 125040 46232 ",null,null,null,null,null,null,null,null,null,null,null,"K30CDPHMH4 - NUTR WIC VIRTUAL ED STAFF TRAINING K30CDPHMH4 "]
[null,null,null,"P1187 - Ariat International Scholarship Endow 125119 46313 ",null,null,null,null,null,null,null,null,null,null,null,"K30CH25D17 - HISS CCK FDN H CHIANG 25D17 K30CH25D17 "]
[null,null,null,"P1204 - Fischer Frey Human Rights Scholarship 125185 47952 ",null,null,null,null,null,null,null,null,null,null,null,"K30CHEUGTM - Chem Toney Univ of Georgia K30CHEUGTM "]
[null,null,null,"P1221 - Library Special Collections Fund 141588 47897 ",null,null,null,null,null,null,null,null,null,null,null,"K30CHUJIMA - MAE H Cheng NSF Ujima GIRL Camp K30CHUJIMA "]
[null,null,null,"P1238 - Nancy John Jungerman Award 150017 44233 ",null,null,null,null,null,null,null,null,null,null,null,"K30CJCTFP3 - JMIE CAJ1 Floodplain food webs task 3 K30CJCTFP3 "]
[null,null,null,"P1255 - Gary B Anderson Food Animal Award 150107 45459 ",null,null,null,null,null,null,null,null,null,null,null,"K30CJWILLO - JMIE CAJ1 RIVER PARTNERS WILLOW BEND K30CJWILLO "]
[null,null,null,"P1272 - Dorf Graduate Award with UCDF Matching 150125 45525 ",null,null,null,null,null,null,null,null,null,null,null,"K30CLCAMPS - SUPPLEMENT NCI UCaMP U54 COGGINS K30CLCAMPS "]
[null,null,null,"P1289 - James and Marilyn Lugg Graduate Student 150212 BTE ",null,null,null,null,null,null,null,null,null,null,null,"K30CLNCISP - NCI OF COLOMBIA SPLICING SIGN CANCER K30CLNCISP "]
[null,null,null,"P1306 - F Paul Brady Grad Fellowshp w Matching 150229 ATP 49054 ",null,null,null,null,null,null,null,null,null,null,null,"K30CLS2F16 - CDRP Current and Future Fungicide Use K30CLS2F16 "]
[null,null,null,"P1307 - Eivind Lange and Mary Puma Grad Fellowsh 150230 BTE ",null,null,null,null,null,null,null,null,null,null,null,"K30CLS2F1A - CDRP Pennsylvania State U David Geiser K30CLS2F1A "]
[null,null,null,"P1324 - Prem C Jain Family Presidential Chair 150310 55147 ",null,null,null,null,null,null,null,null,null,null,null,"K30CLSARSS - NIFA AFRI Pathogenomics based developme K30CLSARSS "]
[null,null,null,"P1341 - Michele Dyke Memorial Award 123660 STIP ",null,null,null,null,null,null,null,null,null,null,null,"K30CM24F13 - SOCS ACLS EVF 2022 24 M CRAIG 24F31 K30CM24F13 "]
[null,null,null,"P1358 - Miranda M Alexander Endowment Fund 122942 PG ",null,null,null,null,null,null,null,null,null,null,null,"K30CMSCC21 - CMGI CC P30 7 1 21 6 30 22 K30CMSCC21 "]
[null,null,null,"P1375 - McConnell Endowed Fund 123058 PG ",null,null,null,null,null,null,null,null,null,null,null,"K30CMUAD21 - CNS USREY VRC ADMIN CORE YR21 CLOSED K30CMUAD21 "]
[null,null,null,"P1392 - Ten Haken Scholarship Endowed Fund 123169 PG ",null,null,null,null,null,null,null,null,null,null,null,"K30CNPP3Y6 - CONTE CENTER PROJECT 3 CNPRC YR6 K30CNPP3Y6 "]
[null,null,null,"P1409 - Susan Mathews Undergraduate Award 123284 PG ",null,null,null,null,null,null,null,null,null,null,null,"K30CNSAN16 - CNS NORD Subaward UCSF YR2 R01MH081880 K30CNSAN16 "]
[null,null,null,"P1426 - Program Enrichment Endowment Fund 123510 PG ",null,null,null,null,null,null,null,null,null,null,null,"K30CNSBCF1 - CNS B Cohn Sheehy F30AG062053 Stipend Y1 K30CNSBCF1 "]
[null,null,null,"P1443 - Funny Face Sims Scholarship Endowed Fund 123644 PG ",null,null,null,null,null,null,null,null,null,null,null,"K30CNSCC30 - CNS CARTER Subaward UCSC BRAIN RES K30CNSCC30 "]
[null,null,null,"P1460 - The Barbara Pearce Student Farm Endowed 123780 PG ",null,null,null,null,null,null,null,null,null,null,null,"K30CNSDF17 - CNS FIORAVANTE 1R01MH128744 K30CNSDF17 "]
[null,null,null,"P1477 - Robert Juilien Svoboda Grad Fellowsp 123891 PG ",null,null,null,null,null,null,null,null,null,null,null,"K30CNSKM36 - CNS McALLISTER R21AG071884 K30CNSKM36 "]
[null,null,null,"P1494 - Machado HArCS Student Experience Endow 124052 PG ",null,null,null,null,null,null,null,null,null,null,null,"K30CNSKZ44 - CNS ZITO CLAIBORNE GILLIAM INST FNS Y3 K30CNSKZ44 "]
[null,null,null,"P1511 - Karl F Gerdes Endowment 124129 PG ",null,null,null,null,null,null,null,null,null,null,null,"K30CNSMG17 - CNS GOLDMAN HHMI AWARD 52008137 YR 2 K30CNSMG17 "]
[null,null,null,"P1528 - W Harry Lange Jr Facilities Maintenance 124233 PG ",null,null,null,null,null,null,null,null,null,null,null,"K30CNSMG49 - GOLDMAN CORNELL R01NS104926 YR5 CLOSED K30CNSMG49 "]
[null,null,null,"P1545 - CAES Experiential Learning Endowment 124367 PG ",null,null,null,null,null,null,null,null,null,null,null,"K30CNSP1FA - FINA CNS McALLISTER CONTE P50 PROJECT 1 K30CNSP1FA "]
[null,null,null,"P1562 - Mondavi Center Performing Arts Endowment 124473 PG ",null,null,null,null,null,null,null,null,null,null,null,"K30CNSP4Y6 - CNS Carter Conte P50MH106438 YR6 PROJ4 K30CNSP4Y6 "]
[null,null,null,"P1563 - Gracie Johnson Feline Clinical Trial End 124478 PG ",null,null,null,null,null,null,null,null,null,null,null,"K30CNSRC03 - CNS Chaudhuri Alfred P Sloan Fnd award K30CNSRC03 "]
[null,null,null,"P1580 - College of Engineering Endowment 124572 PG ",null,null,null,null,null,null,null,null,null,null,null,"K30CNSTKE6 - CNS McAllister T32MH112507 Exp YR6 K30CNSTKE6 "]
[null,null,null,"P1597 - Dixon Hummingbird Health Conservation 124679 PG ",null,null,null,null,null,null,null,null,null,null,null,"K30CNSTMF1 - BURNS T32 VISION TRAINING STIP CLOSED K30CNSTMF1 "]
[null,null,null,"P1614 - The William R Bornhorst Scholarship 124810 PG ",null,null,null,null,null,null,null,null,null,null,null,"K30COL17E1 - COL COLUSA CO C000113579 EW 2017 05 K30COL17E1 "]
[null,null,null,"P1631 - Hadra Wildlife Care and Conservation 124872 PG ",null,null,null,null,null,null,null,null,null,null,null,"K30COSORPF - RALPH M PARSONS FOUNDATION A19 4489 0 K30COSORPF "]
[null,null,null,"P1648 - Kathryn E Yee Engel Campus Tour Guides 125131 PG ",null,null,null,null,null,null,null,null,null,null,null,"K30CPCEZ61 - CNPRC ROBERTS GRITSTONE A23 3751 K30CPCEZ61 "]
[null,null,null,"P1665 - Lake Tahoe Endowment 125206 48013 ",null,null,null,null,null,null,null,null,null,null,null,"K30CPMBERP - C Passmore MBER Participant Support K30CPMBERP "]
[null,null,null,"P1682 - Delores Ann Jones Scholarship 125213 50279 ",null,null,null,null,null,null,null,null,null,null,null,"K30CRFCATG - CA TABLE GRAPE Invasive Pests K30CRFCATG "]
[null,null,null,"P1699 - Barrett and Buhlert Memorial Award 123762 50497 ",null,null,null,null,null,null,null,null,null,null,null,"K30CS22C89 - INTL LETTUCE GENOMICS CONSORTIUM 3 K30CS22C89 "]
[null,null,null,"P1716 - Sablan Koi Aquatic Animal Hlth Endow 125292 PG ",null,null,null,null,null,null,null,null,null,null,null,"K30CSN015A - ORDER1 CNL EPA CHEMICAL SPEC NETWORK K30CSN015A "]
[null,null,null,"P1733 - Dr Chan Rsrch Education Endowed Fund 125312 50349 ",null,null,null,null,null,null,null,null,null,null,null,"K30CTMUE14 - CNS USREY TRAINING GRANT EXPENSE YR14 K30CTMUE14 "]
[null,null,null,"P1750 - Thomas M Kaiser Endowed Chair 125339 PG ",null,null,null,null,null,null,null,null,null,null,null,"K30CUHWUCV - CCUH WUCOLS DATABASE UPDATE VERSION V K30CUHWUCV "]
[null,null,null,"P1767 - Kattman Endowed Fund 124286 PG ",null,null,null,null,null,null,null,null,null,null,null,"K30CWSCLF2 - 3 31 24 BOD Removal Rinse Water K30CWSCLF2 "]
[null,null,null,"P1784 - Miller Fund International Community Ec 125380 50437 ",null,null,null,null,null,null,null,null,null,null,null,"K30CXN3F77 - CDFA BCTVCP new Leafhopper 35 060 K30CXN3F77 "]
[null,null,null,"P1801 - Reddi Endowed Seminar in DevBio & RegMed 125410 50545 ",null,null,null,null,null,null,null,null,null,null,null,"K30DACFUI4 - 3 31 24 UC IRVINE GENOMIC DIVERSITY DAC K30DACFUI4 "]
[null,null,null,"P1818 - Watts",null,null,null,null,null,null,null,null,null,null,null,"K30DAMARLA - 12 31 22 Arla Foods Bovine Milk Osacc K30DAMARLA "]
[null,null,null,"P1819 - Gregory H. Rosecrans Memorial Award 125387 ",null,null,null,null,null,null,null,null,null,null,null,"K30DAMBEAN - 12 31 24 USDA Lentil Dry Beans DAM K30DAMBEAN "]
[null,null,null,"P9979 - John W Ernestine Heinrich Scholarship 111763 46871 3 7746871 ",null,null,null,null,null,null,null,null,null,null,null,"K30DAS7SEE - Closed ARE DAS Seeds K30DAS7SEE "]
[null,null,null,"P9996 - Jennings Graduate Student Fellowship 150001 43788 3 JENGRAD ",null,null,null,null,null,null,null,null,null,null,null,"K30DCNAVY1 - MAE C DAVIS LEIDOS NAVY A20 3459 K30DCNAVY1 "]
[null,null,null,"PG012 - Harry C Kohl Jr Graduate Student Spt 222069 42098 ",null,null,null,null,null,null,null,null,null,null,null,"K30DDGAMES - Degand CA Gov E Games award K30DDGAMES "]
[null,null,null,"PG029 - Maurice Prize Fiction 222479 45671 ",null,null,null,null,null,null,null,null,null,null,null,"K30DESTMGE - DES NSF Germination Investigator Wkshop K30DESTMGE "]
[null,null,null,"PG046 - Snyder Chair HACS 222696 44054 ",null,null,null,null,null,null,null,null,null,null,null,"K30DIX22OD - Chem Delix 22 Grant K30DIX22OD "]
[null,null,null,"PG063 - Hildy Jackman Endowment 223106 46451 ",null,null,null,null,null,null,null,null,null,null,null,"K30DKTOBAM - PLB  Dinesh USDA-NIFA 20236701339900-0 - K30DKTOBAM "]
[null,null,null,"PG080 - Yoshimi and Grace Shibata Scholarship 224892 56949 ",null,null,null,null,null,null,null,null,null,null,null,"K30DMMDRIA - AN SCI MEYER DRI US DAIRY K30DMMDRIA "]
[null,null,null,"PG097 - Gandara Thoracic Program Fund 223154 ",null,null,null,null,null,null,null,null,null,null,null,"K30DNM1DPS - CDFA Penn State 2021 22 K30DNM1DPS "]
[null,null,null,"PG114 - Glock Fund for Excellence Busess Ed 225386 50484 ",null,null,null,null,null,null,null,null,null,null,null,"K30DNM2F88 - GRAPE GWSS Population Projection Model K30DNM2F88 "]
[null,null,null,"PKC10 - Schwarze Scholarship 122047 40797 ",null,null,null,null,null,null,null,null,null,null,null,"K30DNM80DK - USDA NIFA 2021 22 WPDN Washington K30DNM80DK "]
[null,null,null,"PKC27 - Sandeen Swingle Scholarship 122465 44494 ",null,null,null,null,null,null,null,null,null,null,null,"K30DOE2020 - EH S DOE LEHR REMEDY GRANT Period 1 K30DOE2020 "]
[null,null,null,"PKC44 - CAAA Charter Members Fund 161024 47826 ",null,null,null,null,null,null,null,null,null,null,null,"K30DRC77C2 - GRDC USA Ethiopia Initiative 1 632 000 K30DRC77C2 "]
[null,null,null,"7516I - TomandMeg Stallard CAAA Scholarship 122125I ",null,null,null,null,null,null,null,null,null,null,null,"K30DW71F03 - 16th triannual International Conference K30DW71F03 "]
[null,null,null,"7533I - Mary Bigelow Horton CAAA Scholarship 122535I ",null,null,null,null,null,null,null,null,null,null,null,"K30DWYAUTI - CMB DWYER AUTISM SPEAKS K30DWYAUTI "]
[null,null,null,"13020 - Freemond Gadberry Student Award ",null,null,null,null,null,null,null,null,null,null,null,"K30EAD1146 - WFCB J EADIE DWR UCD SUISUN MARSH STUDY K30EAD1146 "]
[null,null,null,"13021 - Brooks Ford DVM Memorial Schlp Fund ",null,null,null,null,null,null,null,null,null,null,null,"K30EAD1462 - WFCB J EADIE DWR SUISUN MARSH STUDY YR2 K30EAD1462 "]
[null,null,null,"13151 - Lenora Grant Mayer End Fund Imo Palari ",null,null,null,null,null,null,null,null,null,null,null,"K30EDG7PSX - ESP Grosholz P Shukla Sea Grant College K30EDG7PSX "]
[null,null,null,"13253 - CharlesandViolet Stenson Schp Fund ",null,null,null,null,null,null,null,null,null,null,null,"K30EFSCASF - JMIE EFPR CLIMATE EXTREMES FINA K30EFSCASF "]
[null,null,null,"13376 - Rex R Perschbacher Scholarship ",null,null,null,null,null,null,null,null,null,null,null,"K30EL80F81 - MSE LA PLANTE NSF Career Alt Cements K30EL80F81 "]
[null,null,null,"13498 - Class Of 1958 Endowed Centennial Schp ",null,null,null,null,null,null,null,null,null,null,null,"K30EMUCSF2 - AN SCI MAGA UCSF GYRENCEPHALIC YR 2 K30EMUCSF2 "]
[null,null,null,"13600 - Natural Reserve System SW ",null,null,null,null,null,null,null,null,null,null,null,"K30ENG0847 - ENGILIS SCWA LPCCC BIOMONITORING K30ENG0847 "]
[null,null,null,"13671 - Rolkin Chair In PhysioandMembrane Bio ",null,null,null,null,null,null,null,null,null,null,null,"K30EPH2PWR - MAE ERICKSON H2 POWERTECH A22 2882 K30EPH2PWR "]
[null,null,null,"13768 - Paul and Anita Munk Scholarship Fund ",null,null,null,null,null,null,null,null,null,null,null,"K30ERBCMSC - Fermilab Sub 698216 CMS Board Chair K30ERBCMSC "]
[null,null,null,"13861 - JamesandEleanor Morris Fund ",null,null,null,null,null,null,null,null,null,null,null,"K30ERCAMP6 - CEE Martinez ERC Probe YR 6 K30ERCAMP6 "]
[null,null,null,"13942 - Lisa Nash Holmes Award In Animal Science ",null,null,null,null,null,null,null,null,null,null,null,"K30ERCCB88 - CEE Bronner ERC Yr 8 K30ERCCB88 "]
[null,null,null,"16011 - Pan American Scholarship Fund ",null,null,null,null,null,null,null,null,null,null,null,"K30ERCJD82 - CEE ENGINEERING RESEARCH CENTER AWD JD K30ERCJD82 "]
[null,null,null,"16074 - Wallace Canine Studies ",null,null,null,null,null,null,null,null,null,null,null,"K30ERCP185 - CEE DeJong ERC MICP YR 5 K30ERCP185 "]
[null,null,null,"16169 - Marv Kinsey Graduate Award ",null,null,null,null,null,null,null,null,null,null,null,"K30ERCTG80 - CEE ENGINEERING RESEARCH CENTER AWD TG K30ERCTG80 "]
[null,null,null,"16312 - Ucce Presidential Chr Tree Nut Soil Sci ",null,null,null,null,null,null,null,null,null,null,null,"K30ESSAMUN - 09 30 2026 American University RECIPES K30ESSAMUN "]
[null,null,null,"16474 - Rand Schaal Field Fund ",null,null,null,null,null,null,null,null,null,null,null,"K30ETNANIN - UB Etna No Indirect Costs K30ETNANIN "]
[null,null,null,"16878 - Schaal Aquatics Team Center Project ",null,null,null,null,null,null,null,null,null,null,null,"K30EXN4D21 - ABC 21 22 Y2 A Tough Nut to Crack K30EXN4D21 "]
[null,null,null,"16889 - Burden Family Valley Fever Support Fund ",null,null,null,null,null,null,null,null,null,null,null,"K30EXN6C25 - USDA Modeling Honey Bee Exposure to Pes K30EXN6C25 "]
[null,null,null,"34019 - Not In Use 34019 ",null,null,null,null,null,null,null,null,null,null,null,"K30F4CB002 - CEE BRONNER NSF BBG REU PTS K30F4CB002 "]
[null,null,null,"34156 - Alfred E Alquist Fund ",null,null,null,null,null,null,null,null,null,null,null,"K30F4JH005 - FAA LCA Tool for Airports K30F4JH005 "]
[null,null,null,"34239 - AandEs Bowley Plt Sci Cntr End ",null,null,null,null,null,null,null,null,null,null,null,"K30F4NSVEM - CEE Sukumar Sandia VEM K30F4NSVEM "]
[null,null,null,"34278 - Balzer Robert Lawrence Schlsp ",null,null,null,null,null,null,null,null,null,null,null,"K30F4TY005 - CEE T YOUNG SUPERFUND YEAR 3 K30F4TY005 "]
[null,null,null,"34384 - AJBowie Memorial Fd ",null,null,null,null,null,null,null,null,null,null,null,"K30F7AFNA3 - CEE FORREST SHARP NASA OSE FELLOW YR3 K30F7AFNA3 "]
[null,null,null,"34465 - Kruszelnicki Memorial Schlsp ",null,null,null,null,null,null,null,null,null,null,null,"K30FAFADVA - BAE Fadi Fathallah AgrAbility K30FAFADVA "]
[null,null,null,"34544 - Thomas Casady Jr Memorial Fund ",null,null,null,null,null,null,null,null,null,null,null,"K30FANG077 - WFCB FANGUE CDFW DELTA SMELT K30FANG077 "]
[null,null,null,"34651 - Frances M Benton Endowed Schlsp ",null,null,null,null,null,null,null,null,null,null,null,"K30FB22515 - AS NCL FABRICATION INNOVATIVE K30FB22515 "]
[null,null,null,"34767 - VMdo Bankowski Memorial Endowment ",null,null,null,null,null,null,null,null,null,null,null,"K30FF83C06 - DCM Requisition Projects Fund 83C06 K30FF83C06 "]
[null,null,null,"35035 - Mind Beneto Foundation Chair Fund ",null,null,null,null,null,null,null,null,null,null,null,"K30FGZ7D27 - YR4 Analyses of Potential Regs Fruiting K30FGZ7D27 "]
[null,null,null,"35113 - Ryan Couch Memorial End ",null,null,null,null,null,null,null,null,null,null,null,"K30FJCDCY3 - CHPR Patterns and Trajectories w OD Y3 K30FJCDCY3 "]
[null,null,null,"35191 - Brad DavisAlpha Gamma Rho Felshp ",null,null,null,null,null,null,null,null,null,null,null,"K30FMHCOH1 - NBP Huising NIH HIRN City of Hope K30FMHCOH1 "]
[null,null,null,"35278 - Ccah Mildred Federico End Feline Res ",null,null,null,null,null,null,null,null,null,null,null,"K30FOG0D42 - LAWR FOGLIA NSF Integrated Assessment o K30FOG0D42 "]
[null,null,null,"35359 - DurrellCordellandHelen Mem Fd ",null,null,null,null,null,null,null,null,null,null,null,"K30FPS8F26 - CDFA 2023 2024 IAB Support 1 564 342 K30FPS8F26 "]
[null,null,null,"35455 - George L Everett Fund ",null,null,null,null,null,null,null,null,null,null,null,"K30FRE21T1 - FRE Fresno Co GENT 2021 08 C000114188 K30FRE21T1 "]
[null,null,null,"35456 - Eynon Katherine Heart Fund ",null,null,null,null,null,null,null,null,null,null,null,"K30FRE23T1 - FRE Fresno Co GENT 2023 08 C114432 K30FRE23T1 "]
[null,null,null,"35528 - Gertrude H Fischer Research Endowment ",null,null,null,null,null,null,null,null,null,null,null,"K30FSV5BCP - ESP Valdovinos Bio of Changing Planet K30FSV5BCP "]
[null,null,null,"35626 - FulmorJamesandLela Schlsp ",null,null,null,null,null,null,null,null,null,null,null,"K30GANHR01 - BME A ESTRADA R01 REAL TIME IN VIVO K30GANHR01 "]
[null,null,null,"35769 - GreenwellSwitzer Schlsp ",null,null,null,null,null,null,null,null,null,null,null,"K30GDSFRYX - GEL SUMNER LAKE FRYXELL K30GDSFRYX "]
[null,null,null,"35849 - Boyd Harrold Mem Schp ",null,null,null,null,null,null,null,null,null,null,null,"K30GEGGRIP - GEL GRANT GRAD RESARCH INTERNSHIP K30GEGGRIP "]
[null,null,null,"35964 - William and Flora Hewlett Fdn End ",null,null,null,null,null,null,null,null,null,null,null,"K30GENENS3 - GENENTECH UCD STUDENT STIPENDS YR 3 K30GENENS3 "]
[null,null,null,"36058 - VM Pub Prog Charles Heumphreus Mem Lect ",null,null,null,null,null,null,null,null,null,null,null,"K30GESHBEE - USDA Serbia Herzegovina Beer K30GESHBEE "]
[null,null,null,"36131 - Howe Endowed Scholarship In Vet Med ",null,null,null,null,null,null,null,null,null,null,null,"K30GIMWEVA - EPS MONTANEZ CRITICAL ZONE DYNAMICS K30GIMWEVA "]
[null,null,null,"36211 - Clara M Love Scholarship Fund ",null,null,null,null,null,null,null,null,null,null,null,"K30GLC7C83 - NIFA Farm Bill Combat HLB K30GLC7C83 "]
[null,null,null,"36287 - VMDO Virginia Mink Knippa Scholarship ",null,null,null,null,null,null,null,null,null,null,null,"K30GLPNDW3 - EVE PATRICELLI NEVA DEPT WILDLIFE YR3 K30GLPNDW3 "]
[null,null,null,"36373 - Hulda M Johnson Fund ",null,null,null,null,null,null,null,null,null,null,null,"K30GMCCP02 - GMC NSF Reunited Families K30GMCCP02 "]
[null,null,null,"36441 - Kaiser Teaching Award ",null,null,null,null,null,null,null,null,null,null,null,"K30GNPCDWR - GEL PINTER ANALYSIS OF FLOOD RISK K30GNPCDWR "]
[null,null,null,"36536 - Herbert Kraft ",null,null,null,null,null,null,null,null,null,null,null,"K30GRAFNSF - CMB NSF Dynamics of Early Bilingual Dev K30GRAFNSF "]
[null,null,null,"36683 - Lee Fang J Memorial Fd ",null,null,null,null,null,null,null,null,null,null,null,"K30GSSEMWO - GEL STEWART EARTH LIKE PLANETS K30GSSEMWO "]
[null,null,null,"36734 - Leadership CouncilRohrer Med Stdt Schlp ",null,null,null,null,null,null,null,null,null,null,null,"K30GTCJHZC - GTC UPENN ZCH42 K30GTCJHZC "]
[null,null,null,"36845 - Ken Ross Levy Endowed Memorial Schlsp ",null,null,null,null,null,null,null,null,null,null,null,"K30H3NAMES - MAE M Hafez 80NSSC22M0066 K30H3NAMES "]
[null,null,null,"36849 - VMdoChristine Parker Marino End Schlsp ",null,null,null,null,null,null,null,null,null,null,null,"K30H4ALAMS - MAE M HILL LANS 581414 K30H4ALAMS "]
[null,null,null,"36976 - Louis P Martini Research Fund ",null,null,null,null,null,null,null,null,null,null,null,"K30HAMUMI1 - ENT University of Michigan Subcontract K30HAMUMI1 "]
[null,null,null,"37072 - Meyer Mary Regan Prize ",null,null,null,null,null,null,null,null,null,null,null,"K30HAR3570 - Butte Valley Groundwater Sustainability K30HAR3570 "]
[null,null,null,"37158 - John MMott JrLectureship ",null,null,null,null,null,null,null,null,null,null,null,"K30HCPAKRD - MAE C HARVEY PACKARD FELLOW 2023 76158 K30HCPAKRD "]
[null,null,null,"37249 - Koret Uc Leads Symposium ",null,null,null,null,null,null,null,null,null,null,null,"K30HED0692 - LAWR DAHLKE UCB Enhanced Aquifier K30HED0692 "]
[null,null,null,"37362 - Thomas Nickerson Memorial Fund ",null,null,null,null,null,null,null,null,null,null,null,"K30HER1333 - LAWR HERNANDEZ NORIA ENERGY K30HER1333 "]
[null,null,null,"37425 - Hilda Oppenheimer Schp ",null,null,null,null,null,null,null,null,null,null,null,"K30HHCNS25 - ECE HOMAYOUN CNS CORE SM NV RGRA K30HHCNS25 "]
[null,null,null,"37499 - Env Sci Norris Endow NRS Harrison ",null,null,null,null,null,null,null,null,null,null,null,"K30HJTOBA4 - CHPR Healthy Living Clinic Init YR 4 K30HJTOBA4 "]
[null,null,null,"37581 - Pena Edward Scholarship ",null,null,null,null,null,null,null,null,null,null,null,"K30HMGFI66 - CHE Good Food Inst Simult modeling K30HMGFI66 "]
[null,null,null,"37651 - Public Interest Law Assistance Fund ",null,null,null,null,null,null,null,null,null,null,null,"K30HORW373 - LAWR Horwath Acquision of Goods Services K30HORW373 "]
[null,null,null,"37714 - George Quist Memorial Schlsp ",null,null,null,null,null,null,null,null,null,null,null,"K30HUBPENN - Univ of Pennsylvania DOE DE SC0020360 K30HUBPENN "]
[null,null,null,"37789 - Risling Intertribal Award ",null,null,null,null,null,null,null,null,null,null,null,"K30I4TYEPA - CEE Young EPA subaward PI Segarra K30I4TYEPA "]
[null,null,null,"37876 - Salsbury Vet Med Schlsp ",null,null,null,null,null,null,null,null,null,null,null,"K30ICMPGMB - PHYP EPIQS EXCHANGE PRGM UCD 5305 0 K30ICMPGMB "]
[null,null,null,"37975 - Schalk HermanandHelen Fund ",null,null,null,null,null,null,null,null,null,null,null,"K30IFHRFFS - IIFH Rockefeller Foundation Food System K30IFHRFFS "]
[null,null,null,"38070 - Searles Fund ",null,null,null,null,null,null,null,null,null,null,null,"K30IKB3967 - IGN Brown A21 3967 K30IKB3967 "]
[null,null,null,"38152 - BaeHaroldandHelen Smith Endowment ",null,null,null,null,null,null,null,null,null,null,null,"K30IMG1D94 - CDFA Research Pest Detection 2021 23 K30IMG1D94 "]
[null,null,null,"38154 - Harold and Helen Smith Endowment ",null,null,null,null,null,null,null,null,null,null,null,"K30IMG1F29 - CA Melon Improved Mgmt Strategies stripe K30IMG1F29 "]
[null,null,null,"38231 - Steindler John Discretionary ",null,null,null,null,null,null,null,null,null,null,null,"K30IMG5F19 - CA Cotton Alliance 2022 23 K30IMG5F19 "]
[null,null,null,"38335 - Ruth Storer Arboretum Garden ",null,null,null,null,null,null,null,null,null,null,null,"K30IMSD02A - NPB Gomes IMSD at UC Davis 2021 2022 K30IMSD02A "]
[null,null,null,"38424 - BillandPolly Swinerton Fund ",null,null,null,null,null,null,null,null,null,null,null,"K30IR419HH - IR 4 2019 UN Allocated 8 31 20 K30IR419HH "]
[null,null,null,"38488 - Toland Thomas Memorial Schp ",null,null,null,null,null,null,null,null,null,null,null,"K30IR421JJ - IR 4 2021 CONSULTANT ACCT 7 31 22 K30IR421JJ "]
[null,null,null,"38582 - Undergraduate Mathematics End Fd ",null,null,null,null,null,null,null,null,null,null,null,"K30IR4EQT2 - IR 4 2021 Lease Lab Equipment K30IR4EQT2 "]
[null,null,null,"38659 - VM Dairy Herd HlthFood Safety End ",null,null,null,null,null,null,null,null,null,null,null,"K30ITSPR21 - SUPERFUND PROJECT 2020 2021 K30ITSPR21 "]
[null,null,null,"38743 - Webb Nancy M Mem Schlsp ",null,null,null,null,null,null,null,null,null,null,null,"K30JAR6D20 - CDPR Pesticide Use in CA Role of PCA K30JAR6D20 "]
[null,null,null,"38840 - Elizabeth P Wood Schp ",null,null,null,null,null,null,null,null,null,null,null,"K30JC27F38 - ANTS LEAKEY FDN C JOHNSON 27F38 K30JC27F38 "]
[null,null,null,"38940 - Stott Alexander Fund ",null,null,null,null,null,null,null,null,null,null,null,"K30JD36F43 - CHPR CDPH Effectiveness Study K30JD36F43 "]
[null,null,null,"93073 - Shapiro Feline Research Endowment ",null,null,null,null,null,null,null,null,null,null,null,"K30JDM8F67 - USDA APHIS Developing a rapid diagnostic K30JDM8F67 "]
[null,null,null,"93153 - Joy Marie Susko Research Endowment ",null,null,null,null,null,null,null,null,null,null,null,"K30JDSMT63 - JMIE JRD1 SUISUN MARSH STUDY YR 3 TSK 6 K30JDSMT63 "]
[null,null,null,"93422 - PaulandSheila Truschke Student Enrichment ",null,null,null,null,null,null,null,null,null,null,null,"K30JFQ5CFS - ESP Safford CA Fire Sci Consorti K30JFQ5CFS "]
[null,null,null,"93625 - Jensen Family SOVM Scholarship ",null,null,null,null,null,null,null,null,null,null,null,"K30JHBSEIS - MMG U MICH SEISMIC BRAGG 22D69 K30JHBSEIS "]
[null,null,null,"93817 - San Mateo County 4H Scholarship I Endow ",null,null,null,null,null,null,null,null,null,null,null,"K30JIN2931 - LAWR JIN MSU INTERGRATED FIELD K30JIN2931 "]
[null,null,null,"F0013 - IN Thomas W Mary S Whitaker Scholarship 111399 56355 ",null,null,null,null,null,null,null,null,null,null,null,"K30JJNSF22 - STAT JIANG NSF DMS 2210569 K30JJNSF22 "]
[null,null,null,"F0014 - IN Milton D and Mary M Miller Fund 111412 40121 ",null,null,null,null,null,null,null,null,null,null,null,"K30JJSNSF0 - EVE STACHOWICZ NSF 2311578 0 K30JJSNSF0 "]
[null,null,null,"F0031 - IN Robert C Arneson Fellowship 111543 41873 ",null,null,null,null,null,null,null,null,null,null,null,"K30JL4317L - SCWA RUSSIAN RIVER ESTUARY STUDY 2014 17 K30JL4317L "]
[null,null,null,"F0048 - IN Class of 94 Scholarship Fund 111659 44391 ",null,null,null,null,null,null,null,null,null,null,null,"K30JLHAB2F - CeNCOOS HAB FY22REG022 T 001 004 HABMAP K30JLHAB2F "]
[null,null,null,"F0065 - IN E S Woody Wilson Scholarship 111729 56448 ",null,null,null,null,null,null,null,null,null,null,null,"K30JLWTRSG - LARGIER PESCADERO WATERSHED SCIENCES K30JLWTRSG "]
[null,null,null,"F0082 - IN Pelissier Scholarship 111791 49725 ",null,null,null,null,null,null,null,null,null,null,null,"K30JMLALMD - 4 30 2024 CDFA Almond Milk K30JMLALMD "]
[null,null,null,"F0099 - IN Allan T Nunn MD Memorial Scholarship 111863 40553 ",null,null,null,null,null,null,null,null,null,null,null,"K30JNS5SAF - ESP Sanchirico Sust Alaska Fisheries K30JNS5SAF "]
[null,null,null,"F0116 - IN Pengelley Evolutionary Biology Rsch 111923 40223 ",null,null,null,null,null,null,null,null,null,null,null,"K30JONLIG1 - Jones GBMF Liger Keck Adaptv Optics Inst K30JONLIG1 "]
[null,null,null,"F0133 - IN Roy J Shlemon Applied Geosciences Chair 111987 40875 ",null,null,null,null,null,null,null,null,null,null,null,"K30JQYALE2 - BME Qi Yale subaward FFT K30JQYALE2 "]
[null,null,null,"F0150 - IN Williams Forage Research Outreach 122028 40632 ",null,null,null,null,null,null,null,null,null,null,null,"K30JRINSFZ - EVE ROSS IBARRA NSF DEB 1754098 K30JRINSFZ "]
[null,null,null,"F0167 - IN Marvin Sands Endowed Chair 122070 40906 ",null,null,null,null,null,null,null,null,null,null,null,"K30JSP8C49 - JESS ISRAEL INST TEACH FELLOW 78C49 K30JSP8C49 "]
[null,null,null,"F0184 - IN Graduate School of Management Endowment 122097 43790 ",null,null,null,null,null,null,null,null,null,null,null,"K30JWTURTL - CHE WAN TURTLE MF approach eff lact prod K30JWTURTL "]
[null,null,null,"F0201 - IN Boyd Scholarship 122130 41266 ",null,null,null,null,null,null,null,null,null,null,null,"K30JZRINGS - ECE ZHANG RINGS K30JZRINGS "]
[null,null,null,"F0218 - IN Fair Business Practices Chair 122163 55968 ",null,null,null,null,null,null,null,null,null,null,null,"K30KBIIFH2 - NPB BAAR 2nd IIFH Pilot funds K30KBIIFH2 "]
[null,null,null,"F0235 - IN Orlob Water Resource Engr Prof 122190 41747 ",null,null,null,null,null,null,null,null,null,null,null,"K30KCLC028 - OR MBP MMRRC YR22 RESOURCE K30KCLC028 "]
[null,null,null,"F0252 - IN Adria Cronk Memorial 122224 44224 ",null,null,null,null,null,null,null,null,null,null,null,"K30KCLC049 - OR MBP MMRRC YR 22 Research 1 2 CF K30KCLC049 "]
[null,null,null,"F0269 - IN Philip Wilkins Memorial 122253 42002 ",null,null,null,null,null,null,null,null,null,null,null,"K30KCLC067 - OR LLOYD CORTOPASSI NIH PPG YR05 K30KCLC067 "]
[null,null,null,"F0270 - IN King Hall Scholarship Fund 122257 42003 ",null,null,null,null,null,null,null,null,null,null,null,"K30KCLC068 - OR LLOYD CC RESOURCE CORE YR 8 K30KCLC068 "]
[null,null,null,"F0287 - IN Richard C Woodard Memorial Endowment 122294 42221 ",null,null,null,null,null,null,null,null,null,null,null,"K30KFCASP8 - Fidelis NIH R01GM100482 CASP Y10 13 K30KFCASP8 "]
[null,null,null,"F0304 - IN Betty Randecker Rogers Endw 122329 42256 ",null,null,null,null,null,null,null,null,null,null,null,"K30KIS3712 - LAWR KISEKKA EVAL SONY SOIL MOISTURE K30KIS3712 "]
[null,null,null,"F0321 - IN Roger Tatarian Professorship 122357 43559 ",null,null,null,null,null,null,null,null,null,null,null,"K30KJSFP23 - CHPR SFP Supporting self med abortion K30KJSFP23 "]
[null,null,null,"F0338 - IN G Thomas Sallee Mathematics Endow 122390 43555 ",null,null,null,null,null,null,null,null,null,null,null,"K30KM1MEAT - CHE MCDONALD NSF Cultured Meat K30KM1MEAT "]
[null,null,null,"F0355 - IN Juliette Weston Suhr End Rsch 122420 43510 ",null,null,null,null,null,null,null,null,null,null,null,"K30KMDRP14 - BME Moxon DARPA Phase 1 Task 4 K30KMDRP14 "]
[null,null,null,"F0372 - IN Arthur and Julia Suran Scholarship 122460 45687 ",null,null,null,null,null,null,null,null,null,null,null,"K30KMJ7ISH - CLOSED JETTER K INVASIVE SHOT HOLE BORER K30KMJ7ISH "]
[null,null,null,"F0389 - IN Academic Senate Distinguished Scholarly 122499 55050 ",null,null,null,null,null,null,null,null,null,null,null,"K30KMTRIPY - CHE MCDONALD Baylor NASA TRISH PAYROLL K30KMTRIPY "]
[null,null,null,"F0406 - IN Pam GillFisher Scholarship Fund 122521 49241 ",null,null,null,null,null,null,null,null,null,null,null,"K30KPNHIR4 - Respiratory Ocular Tox of Inaled Nano K30KPNHIR4 "]
[null,null,null,"F0423 - IN Arthur J Dorothy D Palm Ag Schol 122558 43086 ",null,null,null,null,null,null,null,null,null,null,null,"K30KVS1F65 - CLGR Sclerotinia Resistance in Lettuce K30KVS1F65 "]
[null,null,null,"F0440 - IN Bradford Rominger Ag Award 122593 43838 ",null,null,null,null,null,null,null,null,null,null,null,"K30KZ27D96 - MAE Z KONG NSF 2024526 K30KZ27D96 "]
[null,null,null,"F0457 - IN Wadi Arabian Horse Scholarship 122631 43085 ",null,null,null,null,null,null,null,null,null,null,null,"K30LAK18E1 - LAK LAKE CO EW 2018 14 C000113701 K30LAK18E1 "]
[null,null,null,"F0474 - IN Schubot Endowed Scholarship 122665 43783 ",null,null,null,null,null,null,null,null,null,null,null,"K30LAZ5D95 - LAWR LAZCANO USDA RSA 58 2032 1 039 K30LAZ5D95 "]
[null,null,null,"F0491 - IN Dr Gregory L Ferraro Endowed Directshp 122707 44108 ",null,null,null,null,null,null,null,null,null,null,null,"K30LCH5R01 - HE HD Hibel R01HD Grant 35B11 K30LCH5R01 "]
[null,null,null,"F0508 - IN Carolyn Crosby Lundgren Endowed Fund 122739 44305 ",null,null,null,null,null,null,null,null,null,null,null,"K30LEVLFS3 - Eff 7 1 2023 LFSCD Program YR 3 K30LEVLFS3 "]
[null,null,null,"F0525 - IN Kay Lehr Endowment 122771 56903 ",null,null,null,null,null,null,null,null,null,null,null,"K30LHA3015 - NUTR Allen RSA 58 2032 3 015 K30LHA3015 "]
[null,null,null,"F0526 - IN Mike Renee Child Inst for Innov Endow 122777 44749 ",null,null,null,null,null,null,null,null,null,null,null,"K30LHA7049 - NUTR 58 2032 7 049 NACA K30LHA7049 "]
[null,null,null,"F0543 - IN Sustainable Agriculture and Food Sys 122806 46644 ",null,null,null,null,null,null,null,null,null,null,null,"K30LJHWC21 - Closed WCFS Harris Year 9 Project 3 K30LJHWC21 "]
[null,null,null,"F0560 - IN Fullerton Endowed Chair in Pain Med 122859 49245 ",null,null,null,null,null,null,null,null,null,null,null,"K30LMISR02 - BME Marcu NIH R01 w Intuitive Surg K30LMISR02 "]
[null,null,null,"F0577 - IN Muller Supporting Vet Dermatology 122910 45163 ",null,null,null,null,null,null,null,null,null,null,null,"K30LRSGFIA - NPB Smith The Good Food Institute Award K30LRSGFIA "]
[null,null,null,"F0594 - IN LacyKerr Education Abroad Award 122967 46506 ",null,null,null,null,null,null,null,null,null,null,null,"K30LTFOTKT - MAE AHMCT WSDOT T3372 AC 0 K30LTFOTKT "]
[null,null,null,"F0611 - IN Grivetti Education Abroad Award 123031 55614 ",null,null,null,null,null,null,null,null,null,null,null,"K30LTTMACC - MAE AHMCT CT 65A0749 TASK ID 3685 K30LTTMACC "]
[null,null,null,"F0628 - IN Crowe Family Arboretum Endowment 123089 44962 ",null,null,null,null,null,null,null,null,null,null,null,"K30LVNHIR4 - Respiratory Ocular Tox of Inaled Nano K30LVNHIR4 "]
[null,null,null,"F0645 - IN The Fred Bogott MD Family Fund 123130 46491 ",null,null,null,null,null,null,null,null,null,null,null,"K30LXWNIFA - 5 31 24 Reusable Ice Cubes NIFA K30LXWNIFA "]
[null,null,null,"F0662 - IN Johnsen Family Planning Reproductive 123173 56687 ",null,null,null,null,null,null,null,null,null,null,null,"K30MAR20T1 - MAR Marin Co GENT 2020 17 C000114162 K30MAR20T1 "]
[null,null,null,"F0679 - IN Nickel Family Scholarship for Education 123229 47041 ",null,null,null,null,null,null,null,null,null,null,null,"K30MATAK04 - A Krener AFOSR Workshop 2023 K30MATAK04 "]
[null,null,null,"F0696 - IN Guardian Scholars Study Abroad Award 123292 ",null,null,null,null,null,null,null,null,null,null,null,"K30MATFLSF - F Liu SIMONS FDN 2016 21 x23 K30MATFLSF "]
[null,null,null,"F0713 - IN John D Cole III Memorial Endowed 123348 47613 ",null,null,null,null,null,null,null,null,null,null,null,"K30MATJT01 - J Teran ORNL 2021 x23 K30MATJT01 "]
[null,null,null,"F0730 - IN Emery Gee MD 78 Memorial Scholarship 123406 47194 ",null,null,null,null,null,null,null,null,null,null,null,"K30MATNS14 - N Saito ONR 2020 23 x24 K30MATNS14 "]
[null,null,null,"F0747 - IN Murphy Endowed Memorial Scholarship 123472 47591 ",null,null,null,null,null,null,null,null,null,null,null,"K30MATTLC2 - TLewis CClancy NIH SPARC YR1 2018 19 K30MATTLC2 "]
[null,null,null,"F0764 - IN Joan and Herbert Stark Endowed Scholarsh 123557 47663 ",null,null,null,null,null,null,null,null,null,null,null,"K30MBCEJWK - MCB CEJ WM KECK RICE UNIV K30MBCEJWK "]
[null,null,null,"F0781 - IN Robert W Allard Award 123641 49290 ",null,null,null,null,null,null,null,null,null,null,null,"K30MBGQDP2 - MCB QUON NIH DP2MH129987 K30MBGQDP2 "]
[null,null,null,"F0782 - IN Urologic Oncology Research Fund 123648 ATP ",null,null,null,null,null,null,null,null,null,null,null,"K30MBGQNSF - CAREER ENVIRONMENTAL PERTURBATIONS K30MBGQNSF "]
[null,null,null,"F0799 - IN UC Davis Leadership Award 123699 ",null,null,null,null,null,null,null,null,null,null,null,"K30MBJMNKF - MCB JMN SUBRAMANIAN FINA NSF K30MBJMNKF "]
[null,null,null,"F0816 - IN Barbara Kollin Endowed Scholarship 123742 48158 ",null,null,null,null,null,null,null,null,null,null,null,"K30MBRJMAD - MCB RJM ADRC 2023 K30MBRJMAD "]
[null,null,null,"F0833 - IN Patricia Z Weiscoph Breast Cancer 123791 56030 ",null,null,null,null,null,null,null,null,null,null,null,"K30MBTG23C - MCB MCBTG 2023 24 CHILDCARE ALLOWANCE K30MBTG23C "]
[null,null,null,"F0850 - IN Ken Grossman and Kathryn Gonser Fund 123859 49030 ",null,null,null,null,null,null,null,null,null,null,null,"K30MDASDZF - Dennis NIH Parallel Neurodevelopment K30MDASDZF "]
[null,null,null,"F0867 - IN Mitchell and Cannon Global Warming Fund 123914 48994 ",null,null,null,null,null,null,null,null,null,null,null,"K30MELNFD3 - MELLON GRANT PARENT ACCT 2019 2022 K30MELNFD3 "]
[null,null,null,"F0884 - IN Full Speed Ahead Scholarship 124022 49173 ",null,null,null,null,null,null,null,null,null,null,null,"K30MESS22R - T Lewis CMP ESSA 2021 22 K30MESS22R "]
[null,null,null,"F0901 - IN Ctr for Equine Hlth Teaching Herd Endow 124121 56913 ",null,null,null,null,null,null,null,null,null,null,null,"K30MHC3CLI - HE CD COOPER NIFA Climate Hub K30MHC3CLI "]
[null,null,null,"F0918 - IN UC DavisTaiwan Collaborative Research 124212 56007 ",null,null,null,null,null,null,null,null,null,null,null,"K30MJDDCF1 - Jung DDCF SEED Grant K30MJDDCF1 "]
[null,null,null,"F0935 - IN Arley Firch Endowmnt for Concert Band 124273 55074 ",null,null,null,null,null,null,null,null,null,null,null,"K30MKBBERR - 4 15 24 AVF Berry Hydraulics K30MKBBERR "]
[null,null,null,"F0952 - IN Kathryn S HincheeRodriguez Award 124324 43433 ",null,null,null,null,null,null,null,null,null,null,null,"K30MLB5SEA - ESP Baskett UC SEA GRANT Kelp Reintro K30MLB5SEA "]
[null,null,null,"F0969 - IN The Savageau Award Fund 124378 55322 ",null,null,null,null,null,null,null,null,null,null,null,"K30MLDWR04 - DWR Dept of Water Resources Yr 5 K30MLDWR04 "]
[null,null,null,"F0986 - IN Mrs Marian Lo Dr Winnie Lo Endowmt 124432 55911 ",null,null,null,null,null,null,null,null,null,null,null,"K30MLMNCLA - 5 31 24 NCI UCLA Oral microbiome K30MLMNCLA "]
[null,null,null,"F1003 - IN Mondavi Center Piano Performance Fund 124480 55604 ",null,null,null,null,null,null,null,null,null,null,null,"K30MLTWT01 - MLP Twitter Training and Coaching 22 23 K30MLTWT01 "]
[null,null,null,"F1020 - IN Phyllis Steckel Student Farm Fund 124550 55782 ",null,null,null,null,null,null,null,null,null,null,null,"K30MOD20E1 - MOD Modoc Co EW 2020 20 C000114097 K30MOD20E1 "]
[null,null,null,"F1037 - IN Vriheas Family Scholarship in Nursing 124599 55948 ",null,null,null,null,null,null,null,null,null,null,null,"K30MOOFEL3 - CMB MOONEY GSR fellowship K30MOOFEL3 "]
[null,null,null,"F1049 - IN Biomolecular Design Endowment 124665 56493 ",null,null,null,null,null,null,null,null,null,null,null,"K30MOY0061 - YR 9 LPCCC FISHERIES MONITORING PUTAH CK K30MOY0061 "]
[null,null,null,"F1056 - IN Christina E Bullock Endowment 124685 56438 ",null,null,null,null,null,null,null,null,null,null,null,"K30MRAFYIP - Air Force Young Investigator K30MRAFYIP "]
[null,null,null,"F1073 - IN Mahaffey Afghan Sighthound Compassion 124767 46287 ",null,null,null,null,null,null,null,null,null,null,null,"K30MSACANS - CANERS FOUNDATION ENDOWMENT K30MSACANS "]
[null,null,null,"F1090 - IN LeShelle and Gary May Art Purchase Prize 124808 56799 ",null,null,null,null,null,null,null,null,null,null,null,"K30MTY22T1 - MTY Monterey Co GENT 2022 22 C000114298 K30MTY22T1 "]
[null,null,null,"F1107 - IN Maria Bainer Memorial Blues Endowment 124875 56869 ",null,null,null,null,null,null,null,null,null,null,null,"K30MWF5F65 - 4 30 24 Abscission Agents Table Grapes K30MWF5F65 "]
[null,null,null,"F1124 - IN Dept of Dermatology Endowed Chair Sppt 124932 ATP ",null,null,null,null,null,null,null,null,null,null,null,"K30MXS1F35 - USDA 58 2032 2 077 K30MXS1F35 "]
[null,null,null,"F1141 - IN Energy Transportation Career Awd 124986 46159 ",null,null,null,null,null,null,null,null,null,null,null,"K30NAEMNI4 - NAS B R MIDDLETON SUPERFUND CORE C YR4 K30NAEMNI4 "]
[null,null,null,"F1158 - IN Deirdre Hackett Endowment in English 125018 46290 ",null,null,null,null,null,null,null,null,null,null,null,"K30NAP21T1 - NAP Napa County GENT 2021 23 C000114193 K30NAP21T1 "]
[null,null,null,"F1175 - IN Cote Family Award 125088 46251 ",null,null,null,null,null,null,null,null,null,null,null,"K30NC7523T - SSA Northern CA Training Academy FY21 22 K30NC7523T "]
[null,null,null,"F1192 - IN Zimmerman Endwmt Experiential Learning 125129 ",null,null,null,null,null,null,null,null,null,null,null,"K30NCCCL03 - NCW Chabot Lake Consult 22 23 K30NCCCL03 "]
[null,null,null,"F1209 - IN Richard M and Margaret ER Bohart Fund 141025 41902 ",null,null,null,null,null,null,null,null,null,null,null,"K30NCELH01 - NCW El Hogar 22 23 K30NCELH01 "]
[null,null,null,"F1226 - IN Leon H Mayhew Prize in Sociology 150005 44785 ",null,null,null,null,null,null,null,null,null,null,null,"K30NCSS23T - SSA Northern CA Training Academy FY21 22 K30NCSS23T "]
[null,null,null,"F1243 - IN Seiber International Graduate Award 150022 44242 ",null,null,null,null,null,null,null,null,null,null,null,"K30NERFS21 - Erbstein CalFresh CDSS USDA 20 21 K30NERFS21 "]
[null,null,null,"F1260 - IN Kauzlarich Inorganic Award 150112 ",null,null,null,null,null,null,null,null,null,null,null,"K30NHERRI3 - CEE NHERI PARTICIPANT SUPPORT K30NHERRI3 "]
[null,null,null,"F1277 - IN Tara K Telford Graduate Student Award 150200 BTE ",null,null,null,null,null,null,null,null,null,null,null,"K30NIH22XC - CHEM Atsumi R01GM145842 2022 K30NIH22XC "]
[null,null,null,"F1294 - IN Emile G Scholz Prize with Matching 150217 BTE ",null,null,null,null,null,null,null,null,null,null,null,"K30NLIFUSE - NCL INFUSE USPR K30NLIFUSE "]
[null,null,null,"F1295 - IN Dianne Walter Harrison Fund 150218 ATP ",null,null,null,null,null,null,null,null,null,null,null,"K30NLIMAGE - NCL Imaging K30NLIMAGE "]
[null,null,null,"F1312 - IN GoldmanSchladow Limnology Fellowship 150236 ",null,null,null,null,null,null,null,null,null,null,null,"K30NNNFUMA - 5 14 26 FUMA Processing of Plant Protein K30NNNFUMA "]
[null,null,null,"F1329 - IN DCC FellowsUG Research 151596 40047 ",null,null,null,null,null,null,null,null,null,null,null,"K30NOCCD92 - Sustaining Groundwater and Irrigated Agriculture in the Southwestern United States under a Changing Climate "]
[null,null,null,"F1346 - IN JohnsonCarlson Library Endowment 124031 PG ",null,null,null,null,null,null,null,null,null,null,null,"K30NSCTITM - MAE AHMCT CT 65A0749 TASK ID 4159 K30NSCTITM "]
[null,null,null,"F1363 - IN Cockerill Kennedy Endowment 122973 PG ",null,null,null,null,null,null,null,null,null,null,null,"K30NSF23DT - Tantillo 2023 NSF Award 2247836 K30NSF23DT "]
[null,null,null,"F1380 - IN Robert A Kucer Scholarship 123080 PG ",null,null,null,null,null,null,null,null,null,null,null,"K30NT1USDA - TAUTGES USDA FORAGE CROPPING STRATEGIES K30NT1USDA "]
[null,null,null,"F1397 - IN Corbin Endowed Fund for Canine Research 123190 PG ",null,null,null,null,null,null,null,null,null,null,null,"K30NXP2023 - 6 30 2023 CDPH DUBLIN LAB K30NXP2023 "]
[null,null,null,"F1414 - IN Salas Canine Research Endowed Fund 123347 PG ",null,null,null,null,null,null,null,null,null,null,null,"K30OFHEDCO - HEDCO FND Brukers timsTOF fleX LC MS K30OFHEDCO "]
[null,null,null,"F1431 - IN Cameron Anne Gibbs PE Endowed Fellows 123556 PG ",null,null,null,null,null,null,null,null,null,null,null,"K30OFOMICS - WAKE FOREST OMICS ANALYSIS OF PAIN K30OFOMICS "]
[null,null,null,"F1448 - IN Bruce and Marie West Graduate Fellowship 123705 PG ",null,null,null,null,null,null,null,null,null,null,null,"K30OMF0006 - LOW PWR MICROW OSILATOR LMO PHS II AOS K30OMF0006 "]
[null,null,null,"F1465 - IN Chris Valerie Day Cal Aggie Water Polo 123794 PG ",null,null,null,null,null,null,null,null,null,null,null,"K30OSUJH71 - Cellulose Nanocrystals with Limestone K30OSUJH71 "]
[null,null,null,"F1482 - IN Joanne R Bethlahmy Student Scholarship 123997 50267 ",null,null,null,null,null,null,null,null,null,null,null,"K30P4MKHEI - CEE KLEEMAN HEI PROJECT FFT EPA K30P4MKHEI "]
[null,null,null,"F1499 - IN Robin Wonder Siefkin James Siefkin Awd 124078 PG ",null,null,null,null,null,null,null,null,null,null,null,"K30PAR3583 - LAWR PARIKH SHELL BIOCHAR A23 3583 K30PAR3583 "]
[null,null,null,"F1516 - IN Maud Hinchee PhD Endowment 124151 PG ",null,null,null,null,null,null,null,null,null,null,null,"K30PCR2B57 - 2017 NIH ACTIVATION OF IMMUNE RECEPTOR K30PCR2B57 "]
[null,null,null,"F1533 - IN Kevin D Olsen Endowed Fund for Pomology 124271 PG ",null,null,null,null,null,null,null,null,null,null,null,"K30PG79F78 - GMCR RSF 2211 41017 0 G Peri 79F78 K30PG79F78 "]
[null,null,null,"F1550 - IN Joanne Knowles Equine Compassionate Care 124393 PG ",null,null,null,null,null,null,null,null,null,null,null,"K30PJBNIH3 - GENETIC PHYSIOLOGIC REGULATION OF PIG K30PJBNIH3 "]
[null,null,null,"F1551 - IN Joanne Knowles Companion Animl Comp Care 124394 PG ",null,null,null,null,null,null,null,null,null,null,null,"K30PJCALEP - MAE PARK CEC EPC 17 034 CAL EPE HUB K30PJCALEP "]
[null,null,null,"F1568 - IN Leks Cancer Research Endowment Fund 124512 PG ",null,null,null,null,null,null,null,null,null,null,null,"K30PLETIC5 - PLETICS Evaluation of Project Benefits K30PLETIC5 "]
[null,null,null,"F1585 - IN Sophie Ziva Leone Holly Beech Canine 124628 PG ",null,null,null,null,null,null,null,null,null,null,null,"K30POUL148 - ETOX Poulin UofPenn MEGA K30POUL148 "]
[null,null,null,"F1602 - IN Joyce S Wong Fund 124750 PG ",null,null,null,null,null,null,null,null,null,null,null,"K30PRELIF2 - Life E Dept of Energy Phase II K30PRELIF2 "]
[null,null,null,"F1619 - IN McCalla International House Fund 124842 PG ",null,null,null,null,null,null,null,null,null,null,null,"K30PS0YREK - UB Yreka 2022 27 Part Supp Acct K30PS0YREK "]
[null,null,null,"F1636 - IN Butler Equine Compassionate Care Endowed 124936 PG ",null,null,null,null,null,null,null,null,null,null,null,"K30PSNIH03 - MMG SHAH NIH R03NS130489 K30PSNIH03 "]
[null,null,null,"F1653 - IN Annie s Shelter Medicine Program Endwmt 125176 PG ",null,null,null,null,null,null,null,null,null,null,null,"K30PSW37C3 - Camponotine Ants and their Little Helper K30PSW37C3 "]
[null,null,null,"F1670 - IN Chao Wei Yu Memorial Award 123837 50071 ",null,null,null,null,null,null,null,null,null,null,null,"K30PSYRF93 - PSY Bleidorn Hibel R01 Grant 35B11 K30PSYRF93 "]
[null,null,null,"F1687 - IN Campbell 77 Scholarship Social Justice 125233 50102 ",null,null,null,null,null,null,null,null,null,null,null,"K30PSYRFC7 - PSY Fox U of Maryland Using theory K30PSYRFC7 "]
[null,null,null,"F1704 - IN Nelson Ranch Fund for Regenerative Ophth 125273 50239 ",null,null,null,null,null,null,null,null,null,null,null,"K30PTFSCRI - USDA NIFA 2017 51181 26833 K30PTFSCRI "]
[null,null,null,"F1721 - IN Olmstead Inorganic Chemistry Research 124712 50344 ",null,null,null,null,null,null,null,null,null,null,null,"K30RA24C88 - ECNS CEPR PEDL A REZAEE 24C88 K30RA24C88 "]
[null,null,null,"F1738 - IN Art History Student Research Fund 125326 PG ",null,null,null,null,null,null,null,null,null,null,null,"K30RALLNP3 - ECE AMIRTHARAJAH PHASE 3 ROBOT FOR PCS K30RALLNP3 "]
[null,null,null,"F1755 - IN Shen Yang Mai Family Global Education 125347 50381 ",null,null,null,null,null,null,null,null,null,null,null,"K30RCAREER - BME Carney NSF CAREER 7 1 23 6 30 28 K30RCAREER "]
[null,null,null,"F1772 - IN Michael A Maynard DVM 17 Scholarship 124874 ",null,null,null,null,null,null,null,null,null,null,null,"K30RCCA26C - CDSS FY 25 26 CAPTA 0 CAPTA K30RCCA26C "]
[null,null,null,"F1789 - IN Fong Compassionate Care Endow Shelter 125385 50447 ",null,null,null,null,null,null,null,null,null,null,null,"K30RCE525T - CDSS FY 24 25 IV E 50 Travel K30RCE525T "]
[null,null,null,"F1806 - IN E. Davis Canine Research Endowment 125417 PG ",null,null,null,null,null,null,null,null,null,null,null,"K30RCE726S - CDSS FY 25 26 IV E 75 S B K30RCE726S "]
[null,null,null,"F1807 - IN L.A.W. End for Food Science Student Exp 125419 ",null,null,null,null,null,null,null,null,null,null,null,"K30RCE726T - CDSS FY 25 26 IV E 75 TRAVEL K30RCE726T "]
[null,null,null,"F9977 - IN Drake Endowment Fund 111515 44564 ",null,null,null,null,null,null,null,null,null,null,null,"K30RCF725S - CDSS FY 24 25 FFPSA 75 S B K30RCF725S "]
[null,null,null,"FC006 - IN Lassen County Scholarship 122039 40793 ",null,null,null,null,null,null,null,null,null,null,null,"K30RCPWB26 - RCPWB26 CDSS FY 23 24 PWBI K30RCPWB26 "]
[null,null,null,"FC023 - IN Familia Ruedas Scholarship 122437 44970 ",null,null,null,null,null,null,null,null,null,null,null,"K30RCSO26A - State Staff Training FY 25 26 Expenses K30RCSO26A "]
[null,null,null,"FC040 - IN Parent Family Council Scholarship 123616 49203 ",null,null,null,null,null,null,null,null,null,null,null,"K30REG5CDP - CLOSED GOODHUE ECON EFFECTS CDPR REGULAT K30REG5CDP "]
[null,null,null,"G0012 - PRN Harry C Kohl Jr Graduate Student Spt 222069 42098 ",null,null,null,null,null,null,null,null,null,null,null,"K30RET23PB - CHEM Beal RSRT 2023 K30RET23PB "]
[null,null,null,"G0029 - PRN Maurice Prize in Fiction 222479 45671 ",null,null,null,null,null,null,null,null,null,null,null,"K30RHZEPA1 - 1 31 2024 Zhang Environmental Protectio K30RHZEPA1 "]
[null,null,null,"G0046 - PRN Snyder Chair in HACS 222696 44054 ",null,null,null,null,null,null,null,null,null,null,null,"K30RIRACLS - R IRWIN ACLS VP CECILIA VAZQUEZ K30RIRACLS "]
[null,null,null,"G0063 - PRN Hildy Jackman Endowment 223106 46451 ",null,null,null,null,null,null,null,null,null,null,null,"K30RKGNSFM - GROSBERG NSF REU Site 1950536 SUPP M S K30RKGNSFM "]
[null,null,null,"G0080 - PRN Yoshimi and Grace Shibata Scholarship 224892 56949 ",null,null,null,null,null,null,null,null,null,null,null,"K30RLG1D94 - CDFA Research Pest Detection 2021 23 K30RLG1D94 "]
[null,null,null,"G0097 - PRN Gandara Thoracic Program Fund 223154 ",null,null,null,null,null,null,null,null,null,null,null,"K30RLPSCDR - Lusardi Cal Trout TO 37 Pescadero Lagoon K30RLPSCDR "]
[null,null,null,"G0114 - PRN Glock Fund for Excellence in Business Ed 225386 50484 ",null,null,null,null,null,null,null,null,null,null,null,"K30RLV70CS - NSF CAREER REPS Materials and Supplie K30RLV70CS "]
[null,null,null,"H0011 - IN Bruce A Wolk Scholarship 222031 41610 ",null,null,null,null,null,null,null,null,null,null,null,"K30RMHMSKN - NUTR HACK Nat Mango Mango Microbiome K30RMHMSKN "]
[null,null,null,"H0028 - IN George and Lois Root Fund 222474 43637 ",null,null,null,null,null,null,null,null,null,null,null,"K30RMPST22 - CPRB MOLECULAR MARKERS A22 3976 K30RMPST22 "]
[null,null,null,"H0045 - IN Stone Asthma Endowed Fund 222694 44038 ",null,null,null,null,null,null,null,null,null,null,null,"K30RPAHQIS - CHPR Area Level Quality Indicators K30RPAHQIS "]
[null,null,null,"H0062 - IN Stanley and Jacqueline Schilling 223093 45833 ",null,null,null,null,null,null,null,null,null,null,null,"K30RPPSNT1 - CHPR PSNET ROMANO OY2 K30RPPSNT1 "]
[null,null,null,"H0063 - IN Hildy Jackman Endowment 223106 46451 ",null,null,null,null,null,null,null,null,null,null,null,"K30RPPSNT2 - CHPR PSNET ROMANO OY3 K30RPPSNT2 "]
[null,null,null,"H0080 - IN Yoshimi and Grace Shibata Scholarship 224892 56949 ",null,null,null,null,null,null,null,null,null,null,null,"K30RSDEV14 - DDS Consumer Quality Assurance 22 25 Yr2 K30RSDEV14 "]
[null,null,null,"H0097 - IN Gandara Thoracic Program Fund 223154 ",null,null,null,null,null,null,null,null,null,null,null,"K30RSSOL01 - RSE Solano CSA RSSOL01 K30RSSOL01 "]
[null,null,null,"H0114 - IN Glock Fund for Excellence in Business Ed 225386 50484 ",null,null,null,null,null,null,null,null,null,null,null,"K30S22MARC - MARC SCHOLAR SUMMER TRAVEL YEAR 2 K30S22MARC "]
[null,null,null,"I0011 - PRN Marjorie Loyd Lavetta Loyd McCure CRUT 822107 ",null,null,null,null,null,null,null,null,null,null,null,"K30S4JD009 - CEE DWR PROP 50 RESEARCH COSTS K30S4JD009 "]
[null,null,null,"I0028 - PRN Thomas W Crawford Jr and Jeanne T Crawfor 824654 ",null,null,null,null,null,null,null,null,null,null,null,"K30SAC23T1 - SAC Sacramento GENT 2023 49 C114471 K30SAC23T1 "]
[null,null,null,"J0005 - IN John Constance MCCabe CRUT 811861 ",null,null,null,null,null,null,null,null,null,null,null,"K30SAND824 - ASSS SWRC TASK 4 HYDRO GEOMOR 3 31 19 K30SAND824 "]
[null,null,null,"J0022 - IN Wesley Pinkerton Student Farm Mentor Trust 823369 ",null,null,null,null,null,null,null,null,null,null,null,"K30SARFET2 - CMB SARON FETZER K30SARFET2 "]
[null,null,null,"J0039 - IN Wong Marion Family Cancer Fund ",null,null,null,null,null,null,null,null,null,null,null,"K30SBHUGH2 - Brady Howard Hughes Medical Inst Award K30SBHUGH2 "]
[null,null,null,"24015 - Restricted Debt Service GRB 2013 Series AG ",null,null,null,null,null,null,null,null,null,null,null,"K30SC88D98 - COMS NSF SaTC 2150716 C SHEN 88D98 K30SC88D98 "]
[null,null,null,"24032 - Restricted Debt Service GRB 2017Series AX Noncap ",null,null,null,null,null,null,null,null,null,null,null,"K30SCO0019 - ENTOM NIH MEASURING ENTOMOLOGICAL RISK K30SCO0019 "]
[null,null,null,"24049 - Restricted Debt Service GRB 2023 Series BO ",null,null,null,null,null,null,null,null,null,null,null,"K30SCW4F52 - 8 31 24 CWB Rancidity Measurement Tools K30SCW4F52 "]
[null,null,null,"24114 - Restricted Debt Service LPRB 2022 Series S ",null,null,null,null,null,null,null,null,null,null,null,"K30SCWPOMW - 9 30 24 Extend Pomegranate Arils K30SCWPOMW "]
[null,null,null,"24302 - Restricted Debt Service CIEDB 2017 UCSF 2130 Third Street ",null,null,null,null,null,null,null,null,null,null,null,"K30SDO19E1 - SDO San Diego EW 2019 51 C000113982 K30SDO19E1 "]
[null,null,null,"26004 - Perkins Univ Educ Fee Capital Contb 03981 ",null,null,null,null,null,null,null,null,null,null,null,"K30SGCOVID - BME George UH3 Supplement 9 1 20 8 31 2 K30SGCOVID "]
[null,null,null,"26021 - Federal Unsub Student Loan Funds 03942 ",null,null,null,null,null,null,null,null,null,null,null,"K30SGUH3Y5 - BME George UH3 HL141800 8 1 21 7 31 22 K30SGUH3Y5 "]
[null,null,null,"26022 - Federal Plus Student Loan Funds 03943 ",null,null,null,null,null,null,null,null,null,null,null,"K30SGVAFRI - 8 14 24 AFRI Mech Mass Harvesting Fruit K30SGVAFRI "]
[null,null,null,"K0009 - PRN UC Davis Foundation Endowment 111111 UCDF ",null,null,null,null,null,null,null,null,null,null,null,"K30SIBPI21 - BANPIL PHOTONICS 2021 22 K30SIBPI21 "]
[null,null,null,"K0026 - PRN Ranchers Cotton OilEarl J Cecil Schol 111507 44087 ",null,null,null,null,null,null,null,null,null,null,null,"K30SIMNMV2 - Dept SIMONS Monica Vaz Year 2 K30SIMNMV2 "]
[null,null,null,"K0043 - PRN Leadership CouncilWalter W Rohrer 111639 48583 ",null,null,null,null,null,null,null,null,null,null,null,"K30SISAI3B - BME Simon AI renewal exp 6 30 22 K30SISAI3B "]
[null,null,null,"K0060 - PRN Christine M Doyle Scholarship 111717 40211 ",null,null,null,null,null,null,null,null,null,null,null,"K30SJD2PRT - NSF RCN UBE DESIGN DATA NET PARTICIPANT K30SJD2PRT "]
[null,null,null,"K0077 - PRN Gerdes Rohrich Awards 111769 40803 ",null,null,null,null,null,null,null,null,null,null,null,"K30SJQ22Q1 - SJQ San Joaquin Co XX 2022 28 C000114311 K30SJQ22Q1 "]
[null,null,null,"K0094 - PRN Androus Prof Rice Weed Cntrl 111839 50508 ",null,null,null,null,null,null,null,null,null,null,null,"K30SJSUPY5 - SUPERFUND PROJECT 1 YEAR 5 K30SJSUPY5 "]
[null,null,null,"K0111 - PRN William E Stuke Walnut Research Flwship 111909 40208 ",null,null,null,null,null,null,null,null,null,null,null,"K30SKPETY1 - BME SUN IL KWON Ultra dense and fast K30SKPETY1 "]
[null,null,null,"K0128 - PRN Harold O Carter Endowment 111974 41178 ",null,null,null,null,null,null,null,null,null,null,null,"K30SMLLNL1 - MSE MCCORMACK LLNL Liquidus K30SMLLNL1 "]
[null,null,null,"K0145 - PRN Stumpf Plant Biochemistry Professorship 122017 40759 ",null,null,null,null,null,null,null,null,null,null,null,"K30SNARI09 - NARI CA Endowmnt Grant GRAD FINA 34D00 K30SNARI09 "]
[null,null,null,"K0162 - PRN Sander Wilson Memorial Award 122056 40890 ",null,null,null,null,null,null,null,null,null,null,null,"K30SOEDF15 - SOED K16 Los Rios Comm College K30SOEDF15 "]
[null,null,null,"K0179 - PRN Brunos Fund 122091 42960 ",null,null,null,null,null,null,null,null,null,null,null,"K30SP22551 - NCL INNOVATIVE Supplemental K30SP22551 "]
[null,null,null,"K0196 - PRN Avian Development Genetics Endowment 122122 46609 ",null,null,null,null,null,null,null,null,null,null,null,"K30ST80F45 - ANTS NSF 2234847 0 TSTEELE 80F45 K30ST80F45 "]
[null,null,null,"K0213 - PRN BriegerKrevans Scholarship 122147 41496 ",null,null,null,null,null,null,null,null,null,null,null,"K30STGEM55 - CHE S TAYLOR GEM AWARD K30STGEM55 "]
[null,null,null,"K0230 - PRN Nematology Graduate Fellowship 122182 41325 ",null,null,null,null,null,null,null,null,null,null,null,"K30SU2DSC4 - JMIE USTI DSC Remote Sensing YR 4 K30SU2DSC4 "]
[null,null,null,"K0247 - PRN Castelfranco Comparative Religion Endow 122212 41751 ",null,null,null,null,null,null,null,null,null,null,null,"K30SUNECKS - 12 31 23 AATCC N95 Masks Eckstein K30SUNECKS "]
[null,null,null,"K0248 - PRN Lena Valente Professorship 122214 41739 ",null,null,null,null,null,null,null,null,null,null,null,"K30SUNLGHT - 4 30 24 USDA NIFA Light driven K30SUNLGHT "]
[null,null,null,"K0265 - PRN Susan Schnitzer Endowed Fund 122247 42051 ",null,null,null,null,null,null,null,null,null,null,null,"K30SUPRD34 - SUPERFUND Core D ACCOUNT YEAR 34 K30SUPRD34 "]
[null,null,null,"K0282 - PRN Michael Bonaccorsi Sclrshp 122288 41816 ",null,null,null,null,null,null,null,null,null,null,null,"K30SUVGMAR - LAWR SUB ACCOUNT Prime Dr G Marino K30SUVGMAR "]
[null,null,null,"K0299 - PRN Charles R Duncan Endowed Fund 122316 42229 ",null,null,null,null,null,null,null,null,null,null,null,"K30SVOAIT2 - UC LBNL AIT NEO IUT 7567181 K30SVOAIT2 "]
[null,null,null,"K0316 - PRN John and Jeanne Pryor Fund 122350 42324 ",null,null,null,null,null,null,null,null,null,null,null,"K30SYNGVKS - PLB Sundar Syngenta match on FFAR award K30SYNGVKS "]
[null,null,null,"K0333 - PRN Albert T Bottini Chemistry Collection 122378 44095 ",null,null,null,null,null,null,null,null,null,null,null,"K30T32CARE - CHEM Beal NIH T32 Training 2021 K30T32CARE "]
[null,null,null,"K0350 - PRN Integrated Studies Honors Program 122408 43519 ",null,null,null,null,null,null,null,null,null,null,null,"K30TEH22C1 - TEH Tehama Co CW 2022 36 C000114343 K30TEH22C1 "]
[null,null,null,"K0367 - PRN Sailer Endowment Fund for Undergrad Ed 122444 43515 ",null,null,null,null,null,null,null,null,null,null,null,"K30TEQUIT3 - CA Quits State Contract Tong Year 3 K30TEQUIT3 "]
[null,null,null,"K0384 - PRN Shang Eleanor Yang Scholarly Exchange 122490 43614 ",null,null,null,null,null,null,null,null,null,null,null,"K30TERC234 - TENV TRPA Water Quality Monitoring YR 2 K30TERC234 "]
[null,null,null,"K0401 - PRN Santiago and Gregoria Gonzalez Award 122514 45686 ",null,null,null,null,null,null,null,null,null,null,null,"K30TERC270 - TENV TRUCKEE TAHOE COMMUNITY FUND K30TERC270 "]
[null,null,null,"K0418 - PRN Willison and Carol Crites Fund 122549 42569 ",null,null,null,null,null,null,null,null,null,null,null,"K30TH2080G - Oceanographic Ecological Insights OA K30TH2080G "]
[null,null,null,"K0435 - PRN MaroneyBryan Fund 122583 43365 ",null,null,null,null,null,null,null,null,null,null,null,"K30TJM2F32 - CA Walnut Board Determining levels Bot K30TJM2F32 "]
[null,null,null,"K0452 - PRN KLC Adler Award Fund 122621 43197 ",null,null,null,null,null,null,null,null,null,null,null,"K30TKB5RET - ARE BEATTY RETAIL FED FOOD ASST 60 YRS K30TKB5RET "]
[null,null,null,"K0469 - PRN Linda Sue Herman Scholarship 122657 43781 ",null,null,null,null,null,null,null,null,null,null,null,"K30TLP3D16 - USDA Ralstonia in Water 273 394 K30TLP3D16 "]
[null,null,null,"K0486 - PRN Alan Nields Whitten Memorial Fund 122695 44586 ",null,null,null,null,null,null,null,null,null,null,null,"K30TODBLM3 - Eff 10 1 20 DoI Survival Impact K30TODBLM3 "]
[null,null,null,"K0503 - PRN KerrLacy Study Abroad Scholarship 122729 45461 ",null,null,null,null,null,null,null,null,null,null,null,"K30TRGR44H - ETOX NIH TG YEAR 44 HEALTH INSUR6 30 22 K30TRGR44H "]
[null,null,null,"K0504 - PRN University Medal Honorarium Fund 122730 44231 ",null,null,null,null,null,null,null,null,null,null,null,"K30TRGR44S - ETOX NIH TG YEAR 44 STIPENDS FEES K30TRGR44S "]
[null,null,null,"K0521 - PRN Templeton Endowed Chair 122767 44965 ",null,null,null,null,null,null,null,null,null,null,null,"K30TRIOFN2 - TRIO Scholars FINA 26D25 K30TRIOFN2 "]
[null,null,null,"K0538 - PRN VC Chair in Violence Prevention 122799 44927 ",null,null,null,null,null,null,null,null,null,null,null,"K30TYSLEOS - NSF 2205095 LEO Satellite Constellations K30TYSLEOS "]
[null,null,null,"K0555 - PRN Brunner Family Endowed Scholarship 122838 47346 ",null,null,null,null,null,null,null,null,null,null,null,"K30UBETNA8 - UB Etna Grant 2022 27 K30UBETNA8 "]
[null,null,null,"K0572 - PRN Mansoor Ally Memorial Award 122899 45128 ",null,null,null,null,null,null,null,null,null,null,null,"K30ULL6605 - LAWR DOE INTERSECTORAL DYNAMICS 9 1 22 K30ULL6605 "]
[null,null,null,"K0589 - PRN Frank and Margaret Johns Scholarship 122944 55241 ",null,null,null,null,null,null,null,null,null,null,null,"K30USISASN - Atsumi INDO US USISTEF 2023 K30USISASN "]
[null,null,null,"K0606 - PRN Billie Fern Payne Memorial Scholarship 123007 ",null,null,null,null,null,null,null,null,null,null,null,"K30V073MM5 - VM OHI OHW NG USAID Myanmar Burma Y5 K30V073MM5 "]
[null,null,null,"K0623 - PRN Chao Family Education Abroad Award 123073 BTE ",null,null,null,null,null,null,null,null,null,null,null,"K30V0D16ST - VMDO See Us Be Us Inspiring future Vet K30V0D16ST "]
[null,null,null,"K0640 - PRN Chinn Family Endowment for Excellence 123121 46425 ",null,null,null,null,null,null,null,null,null,null,null,"K30V419AMS - Okello Antimicrobial Resistance Science K30V419AMS "]
[null,null,null,"K0657 - PRN Earl and Linda Ault Endowed Fund 123159 46582 ",null,null,null,null,null,null,null,null,null,null,null,"K30V425108 - CAHFS CA NAHLN INFRASTRUCTURE II FY 21 K30V425108 "]
[null,null,null,"K0674 - PRN Freischlag Roethle Medical Award 123208 ",null,null,null,null,null,null,null,null,null,null,null,"K30V431CY5 - VM YELLOWLEY NIH R01 HIFs IN OSTEOCYTES K30V431CY5 "]
[null,null,null,"K0691 - PRN Resident Scholars Award in Public Psych 123271 46826 ",null,null,null,null,null,null,null,null,null,null,null,"K30V431R27 - APC Raybould MMPC CORE E YEAR 3 K30V431R27 "]
[null,null,null,"K0708 - PRN GSM Alumni Association Board of Director 123333 46839 ",null,null,null,null,null,null,null,null,null,null,null,"K30V431T58 - TEH CA DIV BOATING WATERWAYS RECHARGE K30V431T58 "]
[null,null,null,"K0720 - PRN Class of 1958 Scholarship 123377 55043 ",null,null,null,null,null,null,null,null,null,null,null,"K30V435085 - CDFW Research contract 2019 22 K30V435085 "]
[null,null,null,"K0743 - PRN Seiber Fellowship for Innovation 123454 47221 ",null,null,null,null,null,null,null,null,null,null,null,"K30V435D73 - ASSOCIATION OF AVIAN VETERINAR A22 1987 K30V435D73 "]
[null,null,null,"K0760 - PRN Award for Innovation Creative Vision 123539 55065 ",null,null,null,null,null,null,null,null,null,null,null,"K30V435F33 - HARRISON AVIAN A24 1102 K30V435F33 "]
[null,null,null,"K0761 - PRN John Glenn Small Ruminant Endowed Schlsp 123542 48945 ",null,null,null,null,null,null,null,null,null,null,null,"K30V435F34 - Mississippi State Year 2 A23 2998 K30V435F34 "]
[null,null,null,"K0778 - PRN Cahill Riparian Preserve Endowment 123638 56402 ",null,null,null,null,null,null,null,null,null,null,null,"K30V435FSC - Winn Foundation Frailty Scale K30V435FSC "]
[null,null,null,"K0795 - PRN Bees Family Interprofessional Scholarsh 123684 56213 ",null,null,null,null,null,null,null,null,null,null,null,"K30V435TTS - Pires APHIS Train the Trainer BML K30V435TTS "]
[null,null,null,"K0812 - PRN Class of 1994 Endowed Scholarship Fund 123733 49072 ",null,null,null,null,null,null,null,null,null,null,null,"K30V440C78 - VMB CORTOPASSI NIA PPG PROJ 1 Y1 K30V440C78 "]
[null,null,null,"K0829 - PRN Aditi H Mandpe MD Award 123769 48788 ",null,null,null,null,null,null,null,null,null,null,null,"K30V440CA9 - CACT ADMIN LEIN VMB YR 9 K30V440CA9 "]
[null,null,null,"K0846 - PRN Jackie Chang and Joe Matunis Award 123838 48805 ",null,null,null,null,null,null,null,null,null,null,null,"K30V440H46 - VMB EHSCC Pilot Award Havel K30V440H46 "]
[null,null,null,"K0863 - PRN RC Roberts Endowed Fund Applied Ecology 123903 50489 ",null,null,null,null,null,null,null,null,null,null,null,"K30V440KS1 - VMB NIH R01HL137716 OASIS Project K30V440KS1 "]
[null,null,null,"K0880 - PRN Helge Gerda Evensen Endowed Fund 124013 49311 ",null,null,null,null,null,null,null,null,null,null,null,"K30V440L93 - COUNTERACT PROJECT 1 LEIN VMB YR 01 K30V440L93 "]
[null,null,null,"K0897 - PRN Discovery of Future Nutrition Research 124076 49389 ",null,null,null,null,null,null,null,null,null,null,null,"K30V440N54 - VMB SUPERFUND CORE B 21 22 PESSAH K30V440N54 "]
[null,null,null,"K0914 - PRN Powering Aggies Scholarship 124188 55548 ",null,null,null,null,null,null,null,null,null,null,null,"K30V450650 - RED WOLF WHOLE GENOME K30V450650 "]
[null,null,null,"K0931 - PRN Ruth R Mehlhaff Endowed Fund for People 124252 49891 ",null,null,null,null,null,null,null,null,null,null,null,"K30V451CFM - WCFS All Yrs Carryforward Jay Russell K30V451CFM "]
[null,null,null,"K0948 - PRN David Dana Loury Industry Career Dev 124310 55176 ",null,null,null,null,null,null,null,null,null,null,null,"K30V451GRX - Brown NSF BBSRC NSF BIO genomeRxiv K30V451GRX "]
[null,null,null,"K0965 - PRN Victor and Meg Chan Graduate Student Awd 124371 43441 ",null,null,null,null,null,null,null,null,null,null,null,"K30V451ND0 - Conley NDSU USDA Fetal pregnanes metab K30V451ND0 "]
[null,null,null,"K0982 - PRN Ginger David Moehring Fund for Global 124427 55443 ",null,null,null,null,null,null,null,null,null,null,null,"K30V451TXT - Lima USDA TxTech sub Metritis Cure K30V451TXT "]
[null,null,null,"K0999 - PRN Jill M Hancock Scholarship Endowment 124464 ",null,null,null,null,null,null,null,null,null,null,null,"K30V465Y63 - WCFS Harris Year 6 Project 3 K30V465Y63 "]
[null,null,null,"K1016 - PRN JL Fong Ophthalmic Clinical Trial 124540 55769 ",null,null,null,null,null,null,null,null,null,null,null,"K30V470PSO - Prescott Award Stranded Sea Otters K30V470PSO "]
[null,null,null,"K1017 - PRN Reignier Global Learning Scholarship 124543 55773 ",null,null,null,null,null,null,null,null,null,null,null,"K30V470SDZ - VM WHC Najera SD Zoo Society Mtn Lion K30V470SDZ "]
[null,null,null,"K1034 - PRN Zimmerman Family Study Abroad Fund 124584 55846 ",null,null,null,null,null,null,null,null,null,null,null,"K30V473BMH - VM Bwindi mHealth Project R21 33 K30V473BMH "]
[null,null,null,"K1051 - PRN Innovation Institute for Food Health 124667 56366 ",null,null,null,null,null,null,null,null,null,null,null,"K30V473SND - VM NOAA Sarcocystis Neurona Diagnostics K30V473SND "]
[null,null,null,"K1068 - PRN Urban Family Scholarship 124752 56906 ",null,null,null,null,null,null,null,null,null,null,null,"K30V4ADMRP - Pandey CDFA Dairy Methane Reduction Prg K30V4ADMRP "]
[null,null,null,"K1085 - PRN Bacchetti Scholarship in Animal Science 124797 56693 ",null,null,null,null,null,null,null,null,null,null,null,"K30V4B1306 - Osburn RDPC FY19 K30V4B1306 "]
[null,null,null,"K1102 - PRN Mark and Carole McNamee Endowment Fund 124852 56845 ",null,null,null,null,null,null,null,null,null,null,null,"K30V4B3021 - Coffey NIH R21 SLEV CC K30V4B3021 "]
[null,null,null,"K1119 - PRN Sister Rosemary Campi Memorial 124918 46003 ",null,null,null,null,null,null,null,null,null,null,null,"K30V4B3216 - NIH R21 CRISPR Cas9 K30V4B3216 "]
[null,null,null,"K1136 - PRN Hall Diversity in Engineering Scholar 124973 46101 ",null,null,null,null,null,null,null,null,null,null,null,"K30V4B4622 - Kol R21 MSCs to enhance cytotoxic T cel K30V4B4622 "]
[null,null,null,"K1153 - PRN Fernandes Guardian Teacher Scholarship 125009 46175 ",null,null,null,null,null,null,null,null,null,null,null,"K30V4BOPHI - VPMI Lanzaro Open Philanthropy K30V4BOPHI "]
[null,null,null,"K1170 - PRN Elaine R Fingerett Learning by Leading 125040 46232 ",null,null,null,null,null,null,null,null,null,null,null,"K30V4C2NB3 - VM CIID BAUMGARTH GLOBAL LYME ALLIANCE K30V4C2NB3 "]
[null,null,null,"K1187 - PRN Ariat International Scholarship Endow 125119 46313 ",null,null,null,null,null,null,null,null,null,null,null,"K30V4D1502 - Soltero Rivera Gallant Pet FCGS K30V4D1502 "]
[null,null,null,"K1204 - PRN Fischer Frey Human Rights Scholarship 125185 47952 ",null,null,null,null,null,null,null,null,null,null,null,"K30V4D2421 - Culp Stanford Ultrasound Liver Study K30V4D2421 "]
[null,null,null,"K1221 - PRN Library Special Collections Fund 141588 47897 ",null,null,null,null,null,null,null,null,null,null,null,"K30V4D2440 - Rebhun NIH Osteosarcoma VCCT Salary K30V4D2440 "]
[null,null,null,"K1238 - PRN Nancy John Jungerman Award 150017 44233 ",null,null,null,null,null,null,null,null,null,null,null,"K30V4S6854 - Brosnan Expanesthetics Four Volatile Ag K30V4S6854 "]
[null,null,null,"K1255 - PRN Gary B Anderson Food Animal Award 150107 45459 ",null,null,null,null,null,null,null,null,null,null,null,"K30V4S7016 - Brosnan Expanesthetics EXP GA 23A dogs K30V4S7016 "]
[null,null,null,"K1272 - PRN Dorf Graduate Award with UCDF Matching 150125 45525 ",null,null,null,null,null,null,null,null,null,null,null,"K30V4SMSC1 - CMSTP T32 CHILD CARE Year 1 K30V4SMSC1 "]
[null,null,null,"K1273 - PRN The Joe Singleton Athletic Scholarship 150126 45636 ",null,null,null,null,null,null,null,null,null,null,null,"K30V4SNWEI - VSR Comp Onc T32 Nina Wei Research K30V4SNWEI "]
[null,null,null,"K1290 - PRN Wych Plant Science Fellowship 150213 ",null,null,null,null,null,null,null,null,null,null,null,"K30V4V0088 - R21 Toxoplasma genes of the eye research K30V4V0088 "]
[null,null,null,"K1307 - PRN Eivind Lange and Mary Puma Grad Fellowsh 150230 BTE ",null,null,null,null,null,null,null,null,null,null,null,"K30V625171 - FY23 NAHLN Infrastructure K30V625171 "]
[null,null,null,"K1324 - PRN Prem C Jain Family Presidential Chair 150310 55147 ",null,null,null,null,null,null,null,null,null,null,null,"K30V625327 - CAHFS DAVIS IMMUNOLOGY K30V625327 "]
[null,null,null,"K1341 - PRN Michele Dyke Memorial Award 123660 STIP ",null,null,null,null,null,null,null,null,null,null,null,"K30V625385 - CAHFS TULARE MULTI LAB SUPPORT K30V625385 "]
[null,null,null,"K1358 - PRN Miranda M Alexander Endowment Fund 122942 PG ",null,null,null,null,null,null,null,null,null,null,null,"K30V731T74 - APC TEH CA SEA GRANT Chelsea Lam Fee K30V731T74 "]
[null,null,null,"K1375 - PRN McConnell Endowed Fund 123058 PG ",null,null,null,null,null,null,null,null,null,null,null,"K30V751FL1 - J R UFL FINA SCRI Produce Safety Regultn K30V751FL1 "]
[null,null,null,"K1392 - PRN Ten Haken Scholarship Endowed Fund 123169 PG ",null,null,null,null,null,null,null,null,null,null,null,"K30V7DF470 - Ayswarya Sundaram NIGMS F30 Stipend YR 4 K30V7DF470 "]
[null,null,null,"K1409 - PRN Susan Mathews Undergraduate Award 123284 PG ",null,null,null,null,null,null,null,null,null,null,null,"K30VAL7132 - HST GO 17132 First Observation Supernova K30VAL7132 "]
[null,null,null,"K1426 - PRN Program Enrichment Endowment Fund 123510 PG ",null,null,null,null,null,null,null,null,null,null,null,"K30VP70062 - CNPRC DIRECTORS OFFICE K30VP70062 "]
[null,null,null,"K1443 - PRN Funny Face Sims Scholarship Endowed Fund 123644 PG ",null,null,null,null,null,null,null,null,null,null,null,"K30VP71062 - CNPRC OUTREACH K30VP71062 "]
[null,null,null,"K1460 - PRN The Barbara Pearce Student Farm Endowed 123780 PG ",null,null,null,null,null,null,null,null,null,null,null,"K30VP72359 - CNPRC ANIMAL PER CLEARING K30VP72359 "]
[null,null,null,"K1477 - PRN Robert Juilien Svoboda Grad Fellowsp 123891 PG ",null,null,null,null,null,null,null,null,null,null,null,"K30VP73260 - CNPRC NEUROSCIENCE BEHAVIOR RSCH UNIT K30VP73260 "]
[null,null,null,"K1494 - PRN Machado HArCS Student Experience Endow 124052 PG ",null,null,null,null,null,null,null,null,null,null,null,"K30VP74760 - CNPRC PILOT RESEARCH PROGRAM K30VP74760 "]
[null,null,null,"K1511 - PRN Karl F Gerdes Endowment 124129 PG ",null,null,null,null,null,null,null,null,null,null,null,"K30VP75461 - CNPRC YR59 SUP1 NIA EXPANSION K30VP75461 "]
[null,null,null,"K1528 - PRN W Harry Lange Jr Facilities Maintenance 124233 PG ",null,null,null,null,null,null,null,null,null,null,null,"K30VP76562 - CNPRC PRIMATE ASSAY LABORATORY CORE K30VP76562 "]
[null,null,null,"K1529 - PRN Garrett C Dailey Family Law Chair 124239 PG ",null,null,null,null,null,null,null,null,null,null,null,"K30VP76759 - CNPRC YR57 SUP2 EQUIPMENT K30VP76759 "]
[null,null,null,"K1546 - PRN Pauline Donald Clancy Endow Homeless 124374 PG ",null,null,null,null,null,null,null,null,null,null,null,"K30VP77561 - CNPRC YR61 PILOT ROSSI VAN ROMPAY K30VP77561 "]
[null,null,null,"K1563 - PRN Gracie Johnson Feline Clinical Trial End 124478 PG ",null,null,null,null,null,null,null,null,null,null,null,"K30VP78461 - CNPRC ANATOMICAL AND CLINICAL PATHOLOGY K30VP78461 "]
[null,null,null,"K1580 - PRN College of Engineering Endowment 124572 PG ",null,null,null,null,null,null,null,null,null,null,null,"K30VP79060 - CNPRC Gen Genomic Project CM McCowan K30VP79060 "]
[null,null,null,"K1597 - PRN Dixon Hummingbird Health Conservation 124679 PG ",null,null,null,null,null,null,null,null,null,null,null,"K30VP79760 - CNPRC YR59 SUP2 BioBehaviorial Assess K30VP79760 "]
[null,null,null,"K1614 - PRN The William R Bornhorst Scholarship 124810 PG ",null,null,null,null,null,null,null,null,null,null,null,"K30VPCDZ14 - CNPRC Beckman Morrison Alzheimers YR3 K30VPCDZ14 "]
[null,null,null,"K1631 - PRN Hadra Wildlife Care and Conservation 124872 PG ",null,null,null,null,null,null,null,null,null,null,null,"K30VPCEZ12 - CNPRC FINA Charbonneau Fellowship K30VPCEZ12 "]
[null,null,null,"K1648 - PRN Kathryn E Yee Engel Campus Tour Guides 125131 PG ",null,null,null,null,null,null,null,null,null,null,null,"K30VSK8IRC - INTERNATIONAL RESCUE COMMITTEE K30VSK8IRC "]
[null,null,null,"K1665 - PRN Lake Tahoe Endowment 125206 48013 ",null,null,null,null,null,null,null,null,null,null,null,"K30WASWR08 - SWRCB Training Academy K30WASWR08 "]
[null,null,null,"K1682 - PRN Delores Ann Jones Scholarship 125213 50279 ",null,null,null,null,null,null,null,null,null,null,null,"K30WETNSFM - AWET NSF A22 0847 K30WETNSFM "]
[null,null,null,"K1699 - PRN Barrett and Buhlert Memorial Award 123762 50497 ",null,null,null,null,null,null,null,null,null,null,null,"K30WHIT689 - ETOX WHITEHEAD NSF COMP GENOMICS K30WHIT689 "]
[null,null,null,"K1716 - PRN Sablan Koi Aquatic Animal Hlth Endow 125292 PG ",null,null,null,null,null,null,null,null,null,null,null,"K30WMJAZA1 - Joiner Alzhemers Association K30WMJAZA1 "]
[null,null,null,"K1733 - PRN Dr Chan Rsrch Education Endowed Fund 125312 50349 ",null,null,null,null,null,null,null,null,null,null,null,"K30WR79F29 - CHE RISTENPART NSF Salivary Rheology K30WR79F29 "]
[null,null,null,"K1750 - PRN Thomas M Kaiser Endowed Chair 125339 PG ",null,null,null,null,null,null,null,null,null,null,null,"K30XLONRAV - MAE LIN X ONR A21 3027 K30XLONRAV "]
[null,null,null,"K1767 - PRN Kattman Endowed Fund 124286 PG ",null,null,null,null,null,null,null,null,null,null,null,"K30YLO21T1 - YLO Yolo County GENT 2021 40 C000114231 K30YLO21T1 "]
[null,null,null,"K1784 - PRN Miller Fund International Community Ec 125380 50437 ",null,null,null,null,null,null,null,null,null,null,null,"K30YT20DPY - MSE TAKAMURA Q MEEN C DOE EFRC PAY YR3 K30YT20DPY "]
[null,null,null,"K1785 - PRN Zaharas Family Retinal Research Endow 125381 ",null,null,null,null,null,null,null,null,null,null,null,"K30YT21DOE - MSE TAKAMURA Q MEEN C DOE EFRC UCSD Yr4 K30YT21DOE "]
[null,null,null,"K1802 - PRN Murtha Family Scholarship Endowment 125411 50532 ",null,null,null,null,null,null,null,null,null,null,null,"K30ZAC0833 - LAWR ZACCARIA USDA IMPROVE REMOTE SENSI K30ZAC0833 "]
[null,null,null,"K1819 - PRN Gregory H. Rosecrans Memorial Award 125387 ",null,null,null,null,null,null,null,null,null,null,null,"K30ZDNSF23 - ECE Ding NSF CIF K30ZDNSF23 "]
[null,null,null,"K9989 - PRN Sullivan Environmental Sci Scholarship 122736 44297 ",null,null,null,null,null,null,null,null,null,null,null,"K30ZIEREB7 - NSF REU 2150515 Base Support K30ZIEREB7 "]
[null,null,null,"KC012 - PRN Charlie and Janie Soderquist Scholarship 122049 40799 ",null,null,null,null,null,null,null,null,null,null,null,"K31AYLCRCC - BME Louie Cancer Center Pilot Award K31AYLCRCC "]
[null,null,null,"KC029 - PRN Marjorie J Watson CAAA Scholarship 122469 43505 ",null,null,null,null,null,null,null,null,null,null,null,"K31KCLC068 - OR LLOYD CC RESOURCE CORE YR 8 K31KCLC068 "]
[null,null,null,"40000 - Net Investment in Capital Federal Sponsor 00609 ",null,null,null,null,null,null,null,null,null,null,null,"KL0104AMPT - 22 23 Armyworm monitoring usng pheromene KL0104AMPT "]
[null,null,null,null,null,null,null,null,null,null,null,null,null,null,null,"KL0104FEA0 - 19 12 22 Field Evaluation of Almond Var KL0104FEA0 "]
[null,null,null,null,null,null,null,null,null,null,null,null,null,null,null,"KL0104RAV1 - 19 25 Regional Almond Variety Trial KL0104RAV1 "]
[null,null,null,null,null,null,null,null,null,null,null,null,null,null,null,"KL0106IMM1 - 21 22 CA MELON RES BOARD Improved Monit KL0106IMM1 "]
[null,null,null,null,null,null,null,null,null,null,null,null,null,null,null,"KL0111MMP0 - 23 25 Cost Benefit Alt Manure Mgmt Pract KL0111MMP0 "]
[null,null,null,null,null,null,null,null,null,null,null,null,null,null,null,"KL0131PDSL - UCCE PLACER PROGRAM SUPPORT KL0131PDSL "]
[null,null,null,null,null,null,null,null,null,null,null,null,null,null,null,"KL0151EAH1 - 21 24 CA ALFALFA FORAGE Eval of Almond KL0151EAH1 "]
[null,null,null,null,null,null,null,null,null,null,null,null,null,null,null,"KL0151PDSL - UCCE SUTTER YUBA PROGRAM SUPPORT KL0151PDSL "]
[null,null,null,null,null,null,null,null,null,null,null,null,null,null,null,"KL0152CEGS - UCCE Tehama General Support KL0152CEGS "]
[null,null,null,null,null,null,null,null,null,null,null,null,null,null,null,"KL0234CF22 - 21 22 CARRY FORWARD SACRAMENTO UC CALFRE KL0234CF22 "]
[null,null,null,null,null,null,null,null,null,null,null,null,null,null,null,"KL0234EFPA - SACRAMENTO EFNEP ADULT KL0234EFPA "]
[null,null,null,null,null,null,null,null,null,null,null,null,null,null,null,"KL0239CF21 - 20 21 Carry forward SANJ UCCE CalFresh KL0239CF21 "]
[null,null,null,null,null,null,null,null,null,null,null,null,null,null,null,"KL0239LWR3 - 22 23 LAWRA M Nouri KL0239LWR3 "]
[null,null,null,null,null,null,null,null,null,null,null,null,null,null,null,"KL0257ASML - Advisor Support Margaret G Lloyd KL0257ASML "]
[null,null,null,null,null,null,null,null,null,null,null,null,null,null,null,"KL0257FS23 - 22 23 YOLO UCCE CalFresh KL0257FS23 "]
[null,null,null,null,null,null,null,null,null,null,null,null,null,null,null,"KL0260ERC1 - Elkus Ranch Composting Project KL0260ERC1 "]
[null,null,null,null,null,null,null,null,null,null,null,null,null,null,null,"KL0309KDG3 - 22 23 Kids Day in the Garden 2023 KL0309KDG3 "]
[null,null,null,null,null,null,null,null,null,null,null,null,null,null,null,"KL0312BCCS - 22 25 BLDG Res Local Food Sys Costshare KL0312BCCS "]
[null,null,null,null,null,null,null,null,null,null,null,null,null,null,null,"KL0312SCF1 - 19 20 TNC USDA FIS Support Coop Fire Mgm KL0312SCF1 "]
[null,null,null,null,null,null,null,null,null,null,null,null,null,null,null,"KL0317LWR2 - 21 22 Movemt Monitor Worm in Walnuts KL0317LWR2 "]
[null,null,null,null,null,null,null,null,null,null,null,null,null,null,null,"KL0318SRPM - 22 24 SUSANVILLE RANCH PARK MOUNTAIN KL0318SRPM "]
[null,null,null,null,null,null,null,null,null,null,null,null,null,null,null,"KL0321MFP3 - 22 23 Marin Food Policy Council Partner KL0321MFP3 "]
[null,null,null,null,null,null,null,null,null,null,null,null,null,null,null,"KL0325ASLS - Advisor Support Laura K Snell KL0325ASLS "]
[null,null,null,null,null,null,null,null,null,null,null,null,null,null,null,"KL0328IGR1 - 20 24 Napa Cnty Imprv Growr Respns Pierc KL0328IGR1 "]
[null,null,null,null,null,null,null,null,null,null,null,null,null,null,null,"KL0331ASDM - Advisory Support Dan Macon KL0331ASDM "]
[null,null,null,null,null,null,null,null,null,null,null,null,null,null,null,"KL0332ASDL - Advisory Support David Lile KL0332ASDL "]
[null,null,null,null,null,null,null,null,null,null,null,null,null,null,null,"KL0332BCRC - 21 23 Building Capacity to Reduce Human KL0332BCRC "]
[null,null,null,null,null,null,null,null,null,null,null,null,null,null,null,"KL0345FS24 - 23 24 Cal Fresh Shasta Trinity Tehama KL0345FS24 "]
[null,null,null,null,null,null,null,null,null,null,null,null,null,null,null,"KL0349GSWA - 20 21 Garden Sense KL0349GSWA "]
[null,null,null,null,null,null,null,null,null,null,null,null,null,null,null,"KL0410ABH0 - 22 26 USDA NRCS Addressing Barriers SJV KL0410ABH0 "]
[null,null,null,null,null,null,null,null,null,null,null,null,null,null,null,"KL0410CWY2 - 21 24 CWB Regional Research Support KL0410CWY2 "]
[null,null,null,null,null,null,null,null,null,null,null,null,null,null,null,"KL0410FSM1 - 22 24 CDFA FSMA Training Tech Ast FRES KL0410FSM1 "]
[null,null,null,null,null,null,null,null,null,null,null,null,null,null,null,"KL0410OAI0 - 22 25 CDFA Organic Agriculture Institute KL0410OAI0 "]
[null,null,null,null,null,null,null,null,null,null,null,null,null,null,null,"KL0410VIB0 - 20 23 UCR CDFA Varietal Improvement Bean KL0410VIB0 "]
[null,null,null,null,null,null,null,null,null,null,null,null,null,null,null,"KL0415CCS0 - 23 26 Cover Crop Sheep Graze Almond Orch KL0415CCS0 "]
[null,null,null,null,null,null,null,null,null,null,null,null,null,null,null,"KL0415EHN2 - 22 23 Eval Herb Nutsedge Cont Potatoes KL0415EHN2 "]
[null,null,null,null,null,null,null,null,null,null,null,null,null,null,null,"KL0415J4H3 - 23 24 Juntos 4 H Program KL0415J4H3 "]
[null,null,null,null,null,null,null,null,null,null,null,null,null,null,null,"KL0415PSB1 - 22 23 Pistachio Scion Breeding Eval KL0415PSB1 "]
[null,null,null,null,null,null,null,null,null,null,null,null,null,null,null,"KL0416DRI2 - 22 23 UCD FFAR SOW Dairy Research FFAR KL0416DRI2 "]
[null,null,null,null,null,null,null,null,null,null,null,null,null,null,null,"KL0420DSI0 - 22 23 CPRB Determ Severity Internal Kern KL0420DSI0 "]
[null,null,null,null,null,null,null,null,null,null,null,null,null,null,null,"KL0420RAV2 - 19 25 Regional Almond Variety Trial KL0420RAV2 "]
[null,null,null,null,null,null,null,null,null,null,null,null,null,null,null,"KL0424SWTP - 22 25 Sweet Potato seed programs KL0424SWTP "]
[null,null,null,null,null,null,null,null,null,null,null,null,null,null,null,"KL04418498 - ORG RESEARCH SUMMARY KL04418498 "]
[null,null,null,null,null,null,null,null,null,null,null,null,null,null,null,"KL0450BMF1 - 23 24 Biology Mngmnt Walnut Husky Fly KL0450BMF1 "]
[null,null,null,null,null,null,null,null,null,null,null,null,null,null,null,"KL0450ESW2 - 22 23 Early Season Water Management KL0450ESW2 "]
[null,null,null,null,null,null,null,null,null,null,null,null,null,null,null,"KL0450IR48 - 19 21 UCD USDA NIFA IR 4 Sulfentrazone KL0450IR48 "]
[null,null,null,null,null,null,null,null,null,null,null,null,null,null,null,"KL0450RAV2 - 19 25 Regional Almond Variety Trial KL0450RAV2 "]
[null,null,null,null,null,null,null,null,null,null,null,null,null,null,null,"KL0454CF21 - 20 21 Carry forward Tulare Kings CFHLUC KL0454CF21 "]
[null,null,null,null,null,null,null,null,null,null,null,null,null,null,null,"KL0454PDSL - UCCE TULARE PROGRAM SUPPORT KL0454PDSL "]
[null,null,null,null,null,null,null,null,null,null,null,null,null,null,null,"KL05IPASCG - Advisor Support Christopher Greer KL05IPASCG "]
[null,null,null,null,null,null,null,null,null,null,null,null,null,null,null,"KL05P70F84 - IPM Farrar Expanding IPM Adoption KL05P70F84 "]
[null,null,null,null,null,null,null,null,null,null,null,null,null,null,null,"KL05PESKA2 - IPM Farrar ISHB Eskalen Endophytes KL05PESKA2 "]
[null,null,null,null,null,null,null,null,null,null,null,null,null,null,null,"KL05SML050 - SAREP SMALL GRANTS PROGRAM 21050 KL05SML050 "]
[null,null,null,null,null,null,null,null,null,null,null,null,null,null,null,"KL06DD6553 - 2024 FARM TO PRESCHOOL KL06DD6553 "]
[null,null,null,null,null,null,null,null,null,null,null,null,null,null,null,"KL06IIONR4 - Y19 4599 WSU STOP THE ROT IN ONIONS KL06IIONR4 "]
[null,null,null,null,null,null,null,null,null,null,null,null,null,null,null,"KL06SCASSM - Advisor Support Stephanie Mar KL06SCASSM "]
[null,null,null,null,null,null,null,null,null,null,null,null,null,null,null,"KL0701BSC1 - 18 20 UCR CDCA Baiting Strategies Cntrl KL0701BSC1 "]
[null,null,null,null,null,null,null,null,null,null,null,null,null,null,null,"KL0701PGP0 - 23 Oakland USD Preschool Garden Project KL0701PGP0 "]
[null,null,null,null,null,null,null,null,null,null,null,null,null,null,null,"KL0701PHI1 - 19 22 PHI IPM Adoption Housing Dev KL0701PHI1 "]
[null,null,null,null,null,null,null,null,null,null,null,null,null,null,null,"KL0707MG11 - 22 23 Master Gardener Fixed Price KL0707MG11 "]
[null,null,null,null,null,null,null,null,null,null,null,null,null,null,null,"KL0713DIE1 - 23 24 Developing info on effective irrig KL0713DIE1 "]
[null,null,null,null,null,null,null,null,null,null,null,null,null,null,null,"KL0713IMGP - 21 22 UCCE Imperial MG Program KL0713IMGP "]
[null,null,null,null,null,null,null,null,null,null,null,null,null,null,null,"KL0719ASCS - advisor support Chris Shogren UCCE LA KL0719ASCS "]
[null,null,null,null,null,null,null,null,null,null,null,null,null,null,null,"KL0719MU23 - 21 22 LOS ANGELES HOUSING AUTH 20 23 LA KL0719MU23 "]
[null,null,null,null,null,null,null,null,null,null,null,null,null,null,null,"KL0727EEI1 - 22 23 IMPROVE WATER NITROGETN LETTUCE KL0727EEI1 "]
[null,null,null,null,null,null,null,null,null,null,null,null,null,null,null,"KL0727PIS1 - 20 22 GEOVISUAL Precision Irrigation Sch KL0727PIS1 "]
[null,null,null,null,null,null,null,null,null,null,null,null,null,null,null,"KL0730ARML - 21 23 Anticoagulant rodenticides in mama KL0730ARML "]
[null,null,null,null,null,null,null,null,null,null,null,null,null,null,null,"KL0730ISB1 - 23 26 Invasive Shothole Borers in Cali KL0730ISB1 "]
[null,null,null,null,null,null,null,null,null,null,null,null,null,null,null,"KL0733ASPW - Advisor Support Philip Waisen KL0733ASPW "]
[null,null,null,null,null,null,null,null,null,null,null,null,null,null,null,"KL0733GPD1 - 22 23 AVF Grape Pest and Disease Mgmt Tr KL0733GPD1 "]
[null,null,null,null,null,null,null,null,null,null,null,null,null,null,null,"KL0733TRN1 - 23 24 Treatment Root Knot Nematodes KL0733TRN1 "]
[null,null,null,null,null,null,null,null,null,null,null,null,null,null,null,"KL0736ASCM - Advisor support Chris McDonald San Bern KL0736ASCM "]
[null,null,null,null,null,null,null,null,null,null,null,null,null,null,null,"KL0736STE2 - 23 24 San Bernardino STEAM Hub KL0736STE2 "]
[null,null,null,null,null,null,null,null,null,null,null,null,null,null,null,"KL0737INM0 - 22 25 Irrigation Nutrient Mngmt Train KL0737INM0 "]
[null,null,null,null,null,null,null,null,null,null,null,null,null,null,null,"KL0737MFS0 - 23 Gardening Food Preservation Trainings KL0737MFS0 "]
[null,null,null,null,null,null,null,null,null,null,null,null,null,null,null,"KL0740ECM1 - 20 23 CSU MONT BAY U CORP Ext of CropMan KL0740ECM1 "]
[null,null,null,null,null,null,null,null,null,null,null,null,null,null,null,"KL0741EEL0 - 21 22 SAREP Eval Effects of Livestock Gu KL0741EEL0 "]
[null,null,null,null,null,null,null,null,null,null,null,null,null,null,null,"KL0741SUS1 - 23 24 Supporting Universal School Meals KL0741SUS1 "]
[null,null,null,null,null,null,null,null,null,null,null,null,null,null,null,"KL0743ASSB - Advisor Support Sheila J Barry KL0743ASSB "]
[null,null,null,null,null,null,null,null,null,null,null,null,null,null,null,"KL0743FS24 - 23 24 SANTA CLARA SAN MATEO SAN FRANCISC KL0743FS24 "]
[null,null,null,null,null,null,null,null,null,null,null,null,null,null,null,"KL0743WKF1 - 21 24 WK Kellogg Fnd National 4 H Coun KL0743WKF1 "]
[null,null,null,null,null,null,null,null,null,null,null,null,null,null,null,"KL0756ASHC - Advisor Support Hamutahl Cohen Ventura KL0756ASHC "]
[null,null,null,null,null,null,null,null,null,null,null,null,null,null,null,"KL0756ISP1 - 17 22 UCSC USDA NIFA Integration Strawbe KL0756ISP1 "]
[null,null,null,null,null,null,null,null,null,null,null,null,null,null,null,"KL0AASCSAB - SMITH LEVER MULTISTATE INTEGRATED KL0AASCSAB "]
[null,null,null,null,null,null,null,null,null,null,null,null,null,null,null,"KL0AASTB01 - FFF BERGER ODD 7366 RR KL0AASTB01 "]
[null,null,null,null,null,null,null,null,null,null,null,null,null,null,null,"KL0AECCC01 - FFF CARTER ODD 7820 H KL0AECCC01 "]
[null,null,null,null,null,null,null,null,null,null,null,null,null,null,null,"KL0AENGA01 - FFF ATTARDO ODD 2477 H KL0AENGA01 "]
[null,null,null,null,null,null,null,null,null,null,null,null,null,null,null,"KL0AETAE00 - FFF EHRLICH EVEN 2612 RR KL0AETAE00 "]
[null,null,null,null,null,null,null,null,null,null,null,null,null,null,null,"KL0AFSJL03 - FFF LEITE ODD 2348 RR KL0AFSJL03 "]
[null,null,null,null,null,null,null,null,null,null,null,null,null,null,null,"KL0AHHCSAB - SMITH LEVER MULTISTATE INTEGRATED KL0AHHCSAB "]
[null,null,null,null,null,null,null,null,null,null,null,null,null,null,null,"KL0AIMGF29 - 2022 CMR Improved Strategies West KL0AIMGF29 "]
[null,null,null,null,null,null,null,null,null,null,null,null,null,null,null,"KL0AMBRC01 - FFF CHENG ODD 7399 H KL0AMBRC01 "]
[null,null,null,null,null,null,null,null,null,null,null,null,null,null,null,"KL0ANTPJ01 - FFF JI ODD 2428 RR KL0ANTPJ01 "]
[null,null,null,null,null,null,null,null,null,null,null,null,null,null,null,"KL0APSF014 - PS HUTMACHER USDA BACTERIAL ENRIC 021423 KL0APSF014 "]
[null,null,null,null,null,null,null,null,null,null,null,null,null,null,null,"KL0APSY151 - FFF GAUDIN ODD 2332 H KL0APSY151 "]
[null,null,null,null,null,null,null,null,null,null,null,null,null,null,null,"KL0AVEEF00 - FFF FORRESTEL EVEN 2595 RR KL0AVEEF00 "]
[null,null,null,null,null,null,null,null,null,null,null,null,null,null,null,"KL0BESTG57 - UCB Grantham Multi State Smith Lever KL0BESTG57 "]
[null,null,null,null,null,null,null,null,null,null,null,null,null,null,null,"KL0CEGNIE2 - CIG NIE2 NITROGEN ED GRANT 2 KL0CEGNIE2 "]
[null,null,null,null,null,null,null,null,null,null,null,null,null,null,null,"KL0CEMSLNR - CE M STATE SL NATL RESOURCES ENVIRON KL0CEMSLNR "]
[null,null,null,null,null,null,null,null,null,null,null,null,null,null,null,"KL0CNP604P - Yr 4 PC CA Resilient Careers GJC KL0CNP604P "]
[null,null,null,null,null,null,null,null,null,null,null,null,null,null,null,"KL0CSNTACP - 21 23 CDFA Tuolumne Agricultural Connect KL0CSNTACP "]
[null,null,null,null,null,null,null,null,null,null,null,null,null,null,null,"KL0CWRN102 - NIWR 21 22 PI Duggan Cal State Montere KL0CWRN102 "]
[null,null,null,null,null,null,null,null,null,null,null,null,null,null,null,"KL0CWRN210 - NIWR 22 23 PI Galdi UCANR KL0CWRN210 "]
[null,null,null,null,null,null,null,null,null,null,null,null,null,null,null,"KL0FOOD001 - USDA AMS SW Regional Food Business Ctr KL0FOOD001 "]
[null,null,null,null,null,null,null,null,null,null,null,null,null,null,null,"KL0FOODS17 - USDA AMS SWRFBC S17 UC Davis VM KL0FOODS17 "]
[null,null,null,null,null,null,null,null,null,null,null,null,null,null,null,"KL0GFCDF2S - FEENSTRA CDFA FARM TO SCHOOL F2S KL0GFCDF2S "]
[null,null,null,null,null,null,null,null,null,null,null,null,null,null,null,"KL0IGISHIO - AES INFORMATICS AND GIS ODD KL0IGISHIO "]
[null,null,null,null,null,null,null,null,null,null,null,null,null,null,null,"KL0JETISHB - Jetter ISHB grant IPM CDFA KL0JETISHB "]
[null,null,null,null,null,null,null,null,null,null,null,null,null,null,null,"KL0KKBDISA - Bali USDA ARS Alfalfa Irrigation KL0KKBDISA "]
[null,null,null,null,null,null,null,null,null,null,null,null,null,null,null,"KL0MER6342 - Collective Action for Biodiversity UCOP KL0MER6342 "]
[null,null,null,null,null,null,null,null,null,null,null,null,null,null,null,"KL0MRT5635 - CDF Enhanced Fire Probability Modeling 2 KL0MRT5635 "]
[null,null,null,null,null,null,null,null,null,null,null,null,null,null,null,"KL0NBPR058 - UCR Philippe Rolshaus Intgr Multi St S KL0NBPR058 "]
[null,null,null,null,null,null,null,null,null,null,null,null,null,null,null,"KL0NNOB058 - UCR Ole J Becker Intgr Multi State SL KL0NNOB058 "]
[null,null,null,null,null,null,null,null,null,null,null,null,null,null,null,"KL0NPIINSL - NPI INTEGRATED SMITH LEVER KL0NPIINSL "]
[null,null,null,null,null,null,null,null,null,null,null,null,null,null,null,"KL0NPIPH21 - NPI WOODWARD LOPEZ CDPH CFHL FFY22 carry KL0NPIPH21 "]
[null,null,null,null,null,null,null,null,null,null,null,null,null,null,null,"KL0NPIST04 - NPI C Hecht Stanford OCE KL0NPIST04 "]
[null,null,null,null,null,null,null,null,null,null,null,null,null,null,null,"KL0PR21050 - PROV FOR SMITH LEVER KL0PR21050 "]
[null,null,null,null,null,null,null,null,null,null,null,null,null,null,null,"KL0SC3USDA - SPLC USDA NIFA ELDERBERRY KL0SC3USDA "]
[null,null,null,null,null,null,null,null,null,null,null,null,null,null,null,"KL0SWPMB01 - SWP MB FOOD FOR PROGRESS PROGRAM KL0SWPMB01 "]
[null,null,null,null,null,null,null,null,null,null,null,null,null,null,null,"KL0V419AP5 - Pires 22 23 CFAH STEC Research KL0V419AP5 "]
[null,null,null,null,null,null,null,null,null,null,null,null,null,null,null,"KL0V435733 - Award CA V VME 4123 H KL0V435733 "]
[null,null,null,null,null,null,null,null,null,null,null,null,null,null,null,"KL0V480A73 - Aly CFAH 21 22 Antimicrobial resistance KL0V480A73 "]
[null,null,null,null,null,null,null,null,null,null,null,null,null,null,null,"KL0V480A74 - Aly CFAH 21 22 Simplified group housing KL0V480A74 "]
[null,null,null,null,null,null,null,null,null,null,null,null,null,null,null,"KL0V4D1459 - VMDO ANIMAL HEALTH FORMULA FUND EVEN YR KL0V4D1459 "]
[null,null,null,null,null,null,null,null,null,null,null,null,null,null,null,"KL0VGYEDAF - ANR GY ECON DEVLOP ADMIN KL0VGYEDAF "]
[null,null,null,null,null,null,null,null,null,null,null,null,null,null,null,"KL0WPCA053 - CLOSED WIPM MKlamath Watershed Chapple KL0WPCA053 "]
[null,null,null,null,null,null,null,null,null,null,null,null,null,null,null,"KL0WPNM012 - CLOSED WIPM NMSU Bowers KL0WPNM012 "]
[null,null,null,null,null,null,null,null,null,null,null,null,null,null,null,"KL0WPUT007 - CLOSED WIPM Utah State Kettenring KL0WPUT007 "]
[null,null,null,null,null,null,null,null,null,null,null,null,null,null,null,"KP951790N2 - 6/12 6/17 HUTCHISON CORRIDOR IMPROVE KP951790N2 "]
[null,null,null,null,null,null,null,null,null,null,null,null,null,null,null,"KS02118972 - JOHNSON CADPH CENTER GRANT 06 2021 KS02118972 "]
[null,null,null,null,null,null,null,null,null,null,null,null,null,null,null,"KS085D93Y5 - CHILD H H DEVELOP NUTRITION UG1HD107711 KS085D93Y5 "]
[null,null,null,null,null,null,null,null,null,null,null,null,null,null,null,"KS0ABKBU01 - Boston U STAT3 response 4 22 KS0ABKBU01 "]
[null,null,null,null,null,null,null,null,null,null,null,null,null,null,null,"KS0ADBOSCI - DUFFY BOSTON SCI IM STUDY 11 19 KS0ADBOSCI "]
[null,null,null,null,null,null,null,null,null,null,null,null,null,null,null,"KS0AFP2022 - MED OB GYN AFP 21 22 KS0AFP2022 "]
[null,null,null,null,null,null,null,null,null,null,null,null,null,null,null,"KS0AGRO108 - MED URO GAO RO1 STS 9 20 5 25 KS0AGRO108 "]
[null,null,null,null,null,null,null,null,null,null,null,null,null,null,null,"KS0ALVJ313 - MED IMAL RFMH EPOD BLOODSPOT VAN DE WAT KS0ALVJ313 "]
[null,null,null,null,null,null,null,null,null,null,null,null,null,null,null,"KS0AMPROAF - MOSHIRI RANDOMIZED TRIAL EVALUATING KS0AMPROAF "]
[null,null,null,null,null,null,null,null,null,null,null,null,null,null,null,"KS0APPL009 - APPLEGATE SEDLINE PROJECT KS0APPL009 "]
[null,null,null,null,null,null,null,null,null,null,null,null,null,null,null,"KS0APPL010 - APPL010 PI Richard L Applegate MD KS0APPL010 "]
[null,null,null,null,null,null,null,null,null,null,null,null,null,null,null,"KS0ASAIRB3 - MED PSYCH STAHMER HRSA 0915 0816 KS0ASAIRB3 "]
[null,null,null,null,null,null,null,null,null,null,null,null,null,null,null,"KS0ASLEN22 - Stahmer LEND 2021 2022 KS0ASLEN22 "]
[null,null,null,null,null,null,null,null,null,null,null,null,null,null,null,"KS0ASWTG01 - Stahmer William T Grant SPO 21 1332 KS0ASWTG01 "]
[null,null,null,null,null,null,null,null,null,null,null,null,null,null,null,"KS0AWLSR01 - MED SURG AIJUN WANG NHIP KS0AWLSR01 "]
[null,null,null,null,null,null,null,null,null,null,null,null,null,null,null,"KS0B202CRC - MED Neurology Actelion B202 EXT Study KS0B202CRC "]
[null,null,null,null,null,null,null,null,null,null,null,null,null,null,null,"KS0BEYM501 - MED IMGM YARBOROUGH VENTURES FND SVC CON KS0BEYM501 "]
[null,null,null,null,null,null,null,null,null,null,null,null,null,null,null,"KS0BIMSTIP - SON OPERATING EXPENSES KS0BIMSTIP "]
[null,null,null,null,null,null,null,null,null,null,null,null,null,null,null,"KS0BPSHAI4 - YR 1 MED PHS POLLOCK CDPH HAI KS0BPSHAI4 "]
[null,null,null,null,null,null,null,null,null,null,null,null,null,null,null,"KS0CA29F29 - Anaclet Neuro Disorders Stroke 08 31 24 KS0CA29F29 "]
[null,null,null,null,null,null,null,null,null,null,null,null,null,null,null,"KS0CACN242 - MED IMCA T32 RELATED 2018 19 CHIAMVIMON KS0CACN242 "]
[null,null,null,null,null,null,null,null,null,null,null,null,null,null,null,"KS0CACN267 - MED IMCA CHIAMVIMONVAT NIH ION CHANNEL KS0CACN267 "]
[null,null,null,null,null,null,null,null,null,null,null,null,null,null,null,"KS0CACN310 - MED IMCA CHIAMVIMONVAT-NWU HEARTSHARE - KS0CACN310 "]
[null,null,null,null,null,null,null,null,null,null,null,null,null,null,null,"KS0CAJL507 - MED IMCA LOPEZ ACC COBRE PF KS0CAJL507 "]
[null,null,null,null,null,null,null,null,null,null,null,null,null,null,null,"KS0CAPN504 - MED IMCA PEZESHKIAN ABBOTT EP FLLW FY24 KS0CAPN504 "]
[null,null,null,null,null,null,null,null,null,null,null,null,null,null,null,"KS0CASG800 - MED IMCA SING ABBOTT VASC ABT CIP 10249 KS0CASG800 "]
[null,null,null,null,null,null,null,null,null,null,null,null,null,null,null,"KS0CASG801 - MED IMCA SINGH BOSTON SCIENTIFIC S2436 KS0CASG801 "]
[null,null,null,null,null,null,null,null,null,null,null,null,null,null,null,"KS0CATP500 - MED IMCA THAI GENEEN TRUST AWARD KS0CATP500 "]
[null,null,null,null,null,null,null,null,null,null,null,null,null,null,null,"KS0CC20S3C - MED CC CCSG 21 22 COVID SUPPLEMENT KS0CC20S3C "]
[null,null,null,null,null,null,null,null,null,null,null,null,null,null,null,"KS0CC82C97 - MED CC Breast Cancer Research Placer KS0CC82C97 "]
[null,null,null,null,null,null,null,null,null,null,null,null,null,null,null,"KS0CCG20S2 - MED CC CCSG 20 21 CCITLA SUPPLEMENT KS0CCG20S2 "]
[null,null,null,null,null,null,null,null,null,null,null,null,null,null,null,"KS0CCRURA1 - MED CC CCSG RURAL CF 19 20 KS0CCRURA1 "]
[null,null,null,null,null,null,null,null,null,null,null,null,null,null,null,"KS0CDCUR21 - DECARLI PRECURSORS OF STROKE 02 28 23 KS0CDCUR21 "]
[null,null,null,null,null,null,null,null,null,null,null,null,null,null,null,"KS0CDNACC6 - DECARLI NACC Univ of Wash 05 31 22 KS0CDNACC6 "]
[null,null,null,null,null,null,null,null,null,null,null,null,null,null,null,"KS0CDU19C2 - DECARLI U19 Clinical 8 31 24 KS0CDU19C2 "]
[null,null,null,null,null,null,null,null,null,null,null,null,null,null,null,"KS0CELTECH - MRAD CELLSIGHT TECH 3 37D04 A21 3451 0 KS0CELTECH "]
[null,null,null,null,null,null,null,null,null,null,null,null,null,null,null,"KS0CMHRTRI - CMHR Baylor NASA TRISH BRASH KS0CMHRTRI "]
[null,null,null,null,null,null,null,null,null,null,null,null,null,null,null,"KS0CRAS105 - CRHD LATINO TECH ASSIST PROV AGUILAR GAX KS0CRAS105 "]
[null,null,null,null,null,null,null,null,null,null,null,null,null,null,null,"KS0CRASD62 - CRHD CA MENTAL HLTH FEMA AGUILAR GAXIOLA KS0CRASD62 "]
[null,null,null,null,null,null,null,null,null,null,null,null,null,null,null,"KS0CSR0123 - Schumann NIH R01MH135390 0 KS0CSR0123 "]
[null,null,null,null,null,null,null,null,null,null,null,null,null,null,null,"KS0CTSCT16 - CTSC NIH LINKED TL1 MEDICI EXP 05 2022 KS0CTSCT16 "]
[null,null,null,null,null,null,null,null,null,null,null,null,null,null,null,"KS0CZAHA21 - MPHA CHAOQUN AHA AWARD KS0CZAHA21 "]
[null,null,null,null,null,null,null,null,null,null,null,null,null,null,null,"KS0CZAHA22 - MPHA CHAOQUN AHA AWARD KS0CZAHA22 "]
[null,null,null,null,null,null,null,null,null,null,null,null,null,null,null,"KS0DAT32S1 - AMARAL T32MH073124 20 21 KS0DAT32S1 "]
[null,null,null,null,null,null,null,null,null,null,null,null,null,null,null,"KS0DBFTTH2 - MED PHS BENNETT TOOTH STUDY KS0DBFTTH2 "]
[null,null,null,null,null,null,null,null,null,null,null,null,null,null,null,"KS0DCNSFAW - MED OTO Cates NSF award KS0DCNSFAW "]
[null,null,null,null,null,null,null,null,null,null,null,null,null,null,null,"KS0DGSTED1 - Greenhalgh Stedical Scientific KS0DGSTED1 "]
[null,null,null,null,null,null,null,null,null,null,null,null,null,null,null,"KS0DHIMSUP - Improved RhCMV SIV Supplement Award KS0DHIMSUP "]
[null,null,null,null,null,null,null,null,null,null,null,null,null,null,null,"KS0DHP01MI - Role of Reservoir Composition Miami KS0DHP01MI "]
[null,null,null,null,null,null,null,null,null,null,null,null,null,null,null,"KS0DHR43PR - R43 Subcontract fromTendel Primate KS0DHR43PR "]
[null,null,null,null,null,null,null,null,null,null,null,null,null,null,null,"KS0DMFBI12 - MED PHS MIGLIORETTI CCSG BIOSTAT CORE KS0DMFBI12 "]
[null,null,null,null,null,null,null,null,null,null,null,null,null,null,null,"KS0DRNMD01 - RICHMAN NMD Pharm Chloride Channel 12 23 KS0DRNMD01 "]
[null,null,null,null,null,null,null,null,null,null,null,null,null,null,null,"KS0DTCACT9 - TANCREDI CORE C COUNTERACT PROJECT YR 9 KS0DTCACT9 "]
[null,null,null,null,null,null,null,null,null,null,null,null,null,null,null,"KS0ECHOED5 - Peds Cardio Echo Education fund KS0ECHOED5 "]
[null,null,null,null,null,null,null,null,null,null,null,null,null,null,null,"KS0EDNOTR2 - E Dickson A24 1436 Notre Dame 2 KS0EDNOTR2 "]
[null,null,null,null,null,null,null,null,null,null,null,null,null,null,null,"KS0EHMDA02 - HENRICSON MDA GRANT YEAR 2 03 23 KS0EHMDA02 "]
[null,null,null,null,null,null,null,null,null,null,null,null,null,null,null,"KS0EMAVR21 - MAVR FY20 21Immuothrpy Biomrkrs Supp KS0EMAVR21 "]
[null,null,null,null,null,null,null,null,null,null,null,null,null,null,null,"KS0EMUCSF1 - MAVERAKIS UCSF SUB A23 2463 KS0EMUCSF1 "]
[null,null,null,null,null,null,null,null,null,null,null,null,null,null,null,"KS0ENBE207 - MED IMEN BYAMBAA NIH R01HL157535 KS0ENBE207 "]
[null,null,null,null,null,null,null,null,null,null,null,null,null,null,null,"KS0EPPIC01 - MED CTSC UCSD HEAL EPPIC NET FISHMAN KS0EPPIC01 "]
[null,null,null,null,null,null,null,null,null,null,null,null,null,null,null,"KS0ERDA640 - MERM RAND WINTEMUTE DE BIASI KS0ERDA640 "]
[null,null,null,null,null,null,null,null,null,null,null,null,null,null,null,"KS0ERJT504 - MERM CHILDRENS HOSP CHICAGO JOHNSON KS0ERJT504 "]
[null,null,null,null,null,null,null,null,null,null,null,null,null,null,null,"KS0ERKN252 - MERM LURIE CHILDRENS PEDCAP KUPPERMANN KS0ERKN252 "]
[null,null,null,null,null,null,null,null,null,null,null,null,null,null,null,"KS0ERLM646 - MERM INFLAMMATIX MAY KS0ERLM646 "]
[null,null,null,null,null,null,null,null,null,null,null,null,null,null,null,"KS0ERML642 - MERM BECKMAN COULTER MILLS KS0ERML642 "]
[null,null,null,null,null,null,null,null,null,null,null,null,null,null,null,"KS0ERTE640 - MERM CTR FOR INSTITUTIONAL COUR TOMSICH KS0ERTE640 "]
[null,null,null,null,null,null,null,null,null,null,null,null,null,null,null,"KS0ESAHA23 - MPHA Eric AHA YR1 KS0ESAHA23 "]
[null,null,null,null,null,null,null,null,null,null,null,null,null,null,null,"KS0FFNCI23 - NATIONAL CANCER INSTITUTE R01CA277527 KS0FFNCI23 "]
[null,null,null,null,null,null,null,null,null,null,null,null,null,null,null,"KS0FINAT16 - MED CTSC NIH LINKED TL1 FINA EXP 5 2022 KS0FINAT16 "]
[null,null,null,null,null,null,null,null,null,null,null,null,null,null,null,"KS0FS88B36 - MPHA SANTANA Clancy NIH SPARC AWARD KS0FS88B36 "]
[null,null,null,null,null,null,null,null,null,null,null,null,null,null,null,"KS0G229F29 - Gurkoff Lien CounterACT 8 31 24 KS0G229F29 "]
[null,null,null,null,null,null,null,null,null,null,null,null,null,null,null,"KS0GIBC604 - MED IMGI TARGETPHARMAS TARGET IBD MAO KS0GIBC604 "]
[null,null,null,null,null,null,null,null,null,null,null,null,null,null,null,"KS0GIBC838 - MED IMGI BOWLUS CYMABAY CB8025 32048 KS0GIBC838 "]
[null,null,null,null,null,null,null,null,null,null,null,null,null,null,null,"KS0GICE604 - MED IMGI CHAK TARGET PHARM TARGET HBV2 KS0GICE604 "]
[null,null,null,null,null,null,null,null,null,null,null,null,null,null,null,"KS0GICE800 - MED IMGI CHAK GLAXOSMITHKLINE GSK3228836 KS0GICE800 "]
[null,null,null,null,null,null,null,null,null,null,null,null,null,null,null,"KS0GIMV601 - MED IMGI MEDICI ARBORMED KS0GIMV601 "]
[null,null,null,null,null,null,null,null,null,null,null,null,null,null,null,"KS0GITS800 - MED IMGI BOWLUS BOSTON SCIENTIFIC E7136 KS0GITS800 "]
[null,null,null,null,null,null,null,null,null,null,null,null,null,null,null,"KS0GMBS201 - MED IMGI BROWN NIH R01HL142996 03S1 KS0GMBS201 "]
[null,null,null,null,null,null,null,null,null,null,null,null,null,null,null,"KS0GMHS500 - MED IMGM HENRY NY UNIVERSITY KS0GMHS500 "]
[null,null,null,null,null,null,null,null,null,null,null,null,null,null,null,"KS0GRGENZY - GENZYME POLYCLONALS KS0GRGENZY "]
[null,null,null,null,null,null,null,null,null,null,null,null,null,null,null,"KS0GXCAT05 - Xiong R01HS025395 05 6 1 21 5 31 22 KS0GXCAT05 "]
[null,null,null,null,null,null,null,null,null,null,null,null,null,null,null,"KS0HAMAC21 - MPHA WULFF ACT BRUCE KS0HAMAC21 "]
[null,null,null,null,null,null,null,null,null,null,null,null,null,null,null,"KS0HOAM701 - IMED IMHO ABEDI CIRM INDIANA UNIV OM 1 KS0HOAM701 "]
[null,null,null,null,null,null,null,null,null,null,null,null,null,null,null,"KS0HOAM819 - MED IMCT ABEDI POSEIDA P BCMA 101 002 KS0HOAM819 "]
[null,null,null,null,null,null,null,null,null,null,null,null,null,null,null,"KS0HOCH825 - MED IMHO CHEW ELI I3Y MC JPCF KS0HOCH825 "]
[null,null,null,null,null,null,null,null,null,null,null,null,null,null,null,"KS0HODJ311 - MED IMHO DUCORE CIBDIX2020CDC KS0HODJ311 "]
[null,null,null,null,null,null,null,null,null,null,null,null,null,null,null,"KS0HOGA807 - MED IMHO GIERMASZ UNIQURE CT AMT 061 02 KS0HOGA807 "]
[null,null,null,null,null,null,null,null,null,null,null,null,null,null,null,"KS0HOGD316 - MED:IMHO/GANDARA/OSHU/1004086 001 UCD KS0HOGD316 "]
[null,null,null,null,null,null,null,null,null,null,null,null,null,null,null,"KS0HOJB806 - MED IMCT JONAS SIGMA TAU UCSD SUB KS0HOJB806 "]
[null,null,null,null,null,null,null,null,null,null,null,null,null,null,null,"KS0HOJB826 - MED IMCT JONAS LOXO ONCOLOGY KS0HOJB826 "]
[null,null,null,null,null,null,null,null,null,null,null,null,null,null,null,"KS0HOJB828 - MED IMCT JONAS IMMUNE ONC KS0HOJB828 "]
[null,null,null,null,null,null,null,null,null,null,null,null,null,null,null,"KS0HOKE819 - MED IMHO KIM SEATTLE GENETICS SGNTUC 022 KS0HOKE819 "]
[null,null,null,null,null,null,null,null,null,null,null,null,null,null,null,"KS0HOKK828 - MED IMHO LARA REGENERON R3767ONC1613 KS0HOKK828 "]
[null,null,null,null,null,null,null,null,null,null,null,null,null,null,null,"KS0HOKT301 - MED IMHO KEEGAN KAISER NCI Cores A B KS0HOKT301 "]
[null,null,null,null,null,null,null,null,null,null,null,null,null,null,null,"KS0HOLP309 - MED IMHO LARA NCI OREGON H S YEAR 3 KS0HOLP309 "]
[null,null,null,null,null,null,null,null,null,null,null,null,null,null,null,"KS0HOLT802 - MED IMHO LI HENGRUI SHRUS 1001 KS0HOLT802 "]
[null,null,null,null,null,null,null,null,null,null,null,null,null,null,null,"KS0HOMC810 - MED IMHO CHO IMMUNOCORE LIMITED KS0HOMC810 "]
[null,null,null,null,null,null,null,null,null,null,null,null,null,null,null,"KS0HOPC815 - MED IMHO PARIKH USC VASGENE THERAP KS0HOPC815 "]
[null,null,null,null,null,null,null,null,null,null,null,null,null,null,null,"KS0HORJ301 - MED IMHO RIESS SLOAN KETTERING C21930143 KS0HORJ301 "]
[null,null,null,null,null,null,null,null,null,null,null,null,null,null,null,"KS0HORJ823 - MED IMHO RIESS ARRIVENT FURMO 002 KS0HORJ823 "]
[null,null,null,null,null,null,null,null,null,null,null,null,null,null,null,"KS0HOSJ211 - MED IMHO SUTCLIFFE NCI U01 COVID KS0HOSJ211 "]
[null,null,null,null,null,null,null,null,null,null,null,null,null,null,null,"KS0HOTJ809 - MED IMCT TUSCANO CELGENE RV PI NHL 044 KS0HOTJ809 "]
[null,null,null,null,null,null,null,null,null,null,null,null,null,null,null,"KS0HOTJ828 - MED IMCT TUSCANO GENENTECH KS0HOTJ828 "]
[null,null,null,null,null,null,null,null,null,null,null,null,null,null,null,"KS0HSF32Y1 - NIH F32 For Hannah Savage KS0HSF32Y1 "]
[null,null,null,null,null,null,null,null,null,null,null,null,null,null,null,"KS0HWACT07 - MPHA WULFF ACT NIH KS0HWACT07 "]
[null,null,null,null,null,null,null,null,null,null,null,null,null,null,null,"KS0HWR2122 - MPHA Heike NIH R21 KCA2 Channel KS0HWR2122 "]
[null,null,null,null,null,null,null,null,null,null,null,null,null,null,null,"KS0HWR61VY - VYY R61 Cayuse A22 1977 KS0HWR61VY "]
[null,null,null,null,null,null,null,null,null,null,null,null,null,null,null,"KS0IDCS306 - MED IMID COHEN PPD ACTIV CAMOSTAT KS0IDCS306 "]
[null,null,null,null,null,null,null,null,null,null,null,null,null,null,null,"KS0IDCS841 - MED IMID Cohen Amplyx APX001 202 KS0IDCS841 "]
[null,null,null,null,null,null,null,null,null,null,null,null,null,null,null,"KS0IDGV302 - MED IMID GO UCSF AETC P T FY19 20 KS0IDGV302 "]
[null,null,null,null,null,null,null,null,null,null,null,null,null,null,null,"KS0IDSW200 - MED IMID WINTER NIAID R21AI171537 KS0IDSW200 "]
[null,null,null,null,null,null,null,null,null,null,null,null,null,null,null,"KS0IDTG604 - MED IMID THOMPSON UCSD ASTELLAS CRES20J0 KS0IDTG604 "]
[null,null,null,null,null,null,null,null,null,null,null,null,null,null,null,"KS0IDVJ305 - MED IMID VANG UCSF AETC MAI FY19 20 KS0IDVJ305 "]
[null,null,null,null,null,null,null,null,null,null,null,null,null,null,null,"KS0IDVJ329 - MED IMDI VANG UCSF AETC EHE FY23 24 KS0IDVJ329 "]
[null,null,null,null,null,null,null,null,null,null,null,null,null,null,null,"KS0IHFMTL3 - MED PHS HERTZ P JOHNS HOPKINS METALS KS0IHFMTL3 "]
[null,null,null,null,null,null,null,null,null,null,null,null,null,null,null,"KS0IHFP3O8 - MED PHS HERTZ PICCIOTTO EHSC OUTREACH KS0IHFP3O8 "]
[null,null,null,null,null,null,null,null,null,null,null,null,null,null,null,"KS0IPKK12S - MED IPHI CAL CANCER REGISTRY STATE YR 5 KS0IPKK12S "]
[null,null,null,null,null,null,null,null,null,null,null,null,null,null,null,"KS0IVSPAR4 - Igor SPARC Year 4 KS0IVSPAR4 "]
[null,null,null,null,null,null,null,null,null,null,null,null,null,null,null,"KS0JBSRI02 - MRAD Boone SRI award Y2 02 28 19 KS0JBSRI02 "]
[null,null,null,null,null,null,null,null,null,null,null,null,null,null,null,"KS0JCSUBSF - CHUNG UCSF SUBAWARD 12044 KS0JCSUBSF "]
[null,null,null,null,null,null,null,null,null,null,null,null,null,null,null,"KS0JHMZEDC - MA NYU NEI ZEDS 2020 2021 KS0JHMZEDC "]
[null,null,null,null,null,null,null,null,null,null,null,null,null,null,null,"KS0JLFRCH3 - MMI LASALLE HERTZ PICCIOTTO ECHO RECHARG KS0JLFRCH3 "]
[null,null,null,null,null,null,null,null,null,null,null,null,null,null,null,"KS0JLFRCH4 - MMI LASALLE HERTZ PICCIOTTO ECHO RECHARG KS0JLFRCH4 "]
[null,null,null,null,null,null,null,null,null,null,null,null,null,null,null,"KS0JMP3022 - CCSG P30 FY22 23 GSR McPherson KS0JMP3022 "]
[null,null,null,null,null,null,null,null,null,null,null,null,null,null,null,"KS0JNCIRMS - STEM JAN NOLTA CIRM SCHOLAR 11 21 10 26 KS0JNCIRMS "]
[null,null,null,null,null,null,null,null,null,null,null,null,null,null,null,"KS0JOA4OL2 - OLICHNEY A4 OLE STUDY USC 02 2024 KS0JOA4OL2 "]
[null,null,null,null,null,null,null,null,null,null,null,null,null,null,null,"KS0JOHUBSM - OLICHNEY ACTC U24 HUB 11 30 2021 KS0JOHUBSM "]
[null,null,null,null,null,null,null,null,null,null,null,null,null,null,null,"KS0JSBOST1 - SNIDER BOSTON SCIENTIFIC FLLWSHIP 22 23 KS0JSBOST1 "]
[null,null,null,null,null,null,null,null,null,null,null,null,null,null,null,"KS0JSMED01 - SNIDER MEDTRONIC MVMT FLLWSHIP 22 23 KS0JSMED01 "]
[null,null,null,null,null,null,null,null,null,null,null,null,null,null,null,"KS0JT24C69 - MPHA TRIMMER NIH U24 AWARD KS0JT24C69 "]
[null,null,null,null,null,null,null,null,null,null,null,null,null,null,null,"KS0JYLKOWA - Dr Lis KOWA RESEARCH INSTITUTE INC K KS0JYLKOWA "]
[null,null,null,null,null,null,null,null,null,null,null,null,null,null,null,"KS0KAFESMS - MED PHS AIEMJOY FOGARTY K01 KS0KAFESMS "]
[null,null,null,null,null,null,null,null,null,null,null,null,null,null,null,"KS0KCLC015 - OR MBP MMRRC YR 21 KS0KCLC015 "]
[null,null,null,null,null,null,null,null,null,null,null,null,null,null,null,"KS0KK33F78 - KIM MEDTRONIC TLIF MDT17074SD1706 KS0KK33F78 "]
[null,null,null,null,null,null,null,null,null,null,null,null,null,null,null,"KS0KL75D26 - CCSG21 22 Lam Comb Chem Shared Resource KS0KL75D26 "]
[null,null,null,null,null,null,null,null,null,null,null,null,null,null,null,"KS0KMAFSUR - MILLAR AMERICAN FOUNDATION 12 31 2023 KS0KMAFSUR "]
[null,null,null,null,null,null,null,null,null,null,null,null,null,null,null,"KS0KTCL600 - MED IMKT CHEN TRANSPLANT GENOMICS TGRP06 KS0KTCL600 "]
[null,null,null,null,null,null,null,null,null,null,null,null,null,null,null,"KS0KZ28F66 - CHILD HEALTH HUMAN DEVELO 1R01HD107489 KS0KZ28F66 "]
[null,null,null,null,null,null,null,null,null,null,null,null,null,null,null,"KS0L230B46 - Zimmermann Yr 2 NIH UCS Epibios 11 30 18 KS0L230B46 "]
[null,null,null,null,null,null,null,null,null,null,null,null,null,null,null,"KS0LAIDD22 - Abbeduto IDDRC 2022 2023 KS0LAIDD22 "]
[null,null,null,null,null,null,null,null,null,null,null,null,null,null,null,"KS0LASPRK7 - MED PSYCH Abbeduto SFARI 0316 0223 yr7 KS0LASPRK7 "]
[null,null,null,null,null,null,null,null,null,null,null,null,null,null,null,"KS0LBFCBI4 - MED PHS BECKETT LLNL B639943 KS0LBFCBI4 "]
[null,null,null,null,null,null,null,null,null,null,null,null,null,null,null,"KS0LHNTNLA - LA COUNTY LHCN NIENDAM A20 3471 KS0LHNTNLA "]
[null,null,null,null,null,null,null,null,null,null,null,null,null,null,null,"KS0LJBIO22 - JIN ADC P30 CENTER GRANT 06 2023 KS0LJBIO22 "]
[null,null,null,null,null,null,null,null,null,null,null,null,null,null,null,"KS0LNNOV02 - LNardo Novartis GuideView 02 KS0LNNOV02 "]
[null,null,null,null,null,null,null,null,null,null,null,null,null,null,null,"KS0LTCSHL4 - A20 2449 Tian CSHL YR4 KS0LTCSHL4 "]
[null,null,null,null,null,null,null,null,null,null,null,null,null,null,null,"KS0LTSAM02 - GALVEZ SAMSHA SPO A22 0903 KS0LTSAM02 "]
[null,null,null,null,null,null,null,null,null,null,null,null,null,null,null,"KS0LZADAPT - ZHANG PD 1105 12 01 2021 KS0LZADAPT "]
[null,null,null,null,null,null,null,null,null,null,null,null,null,null,null,"KS0MAABB18 - APPERSON ABBVIE INC M18 918 0 12 31 24 KS0MAABB18 "]
[null,null,null,null,null,null,null,null,null,null,null,null,null,null,null,"KS0MAORCA1 - ASCC ORCA GRAFT M ABEDI KS0MAORCA1 "]
[null,null,null,null,null,null,null,null,null,null,null,null,null,null,null,"KS0MCCHEMO - MED OBGYN CREININ CHEMO RESEARCH S L KS0MCCHEMO "]
[null,null,null,null,null,null,null,null,null,null,null,null,null,null,null,"KS0MCMYOVA - MED OBGYN MYOVANT MVT 601 050 KS0MCMYOVA "]
[null,null,null,null,null,null,null,null,null,null,null,null,null,null,null,"KS0MDSTC23 - MED PHS DOVE TCEC 21 25 KS0MDSTC23 "]
[null,null,null,null,null,null,null,null,null,null,null,null,null,null,null,"KS0MEHMOHS - OME Hendereson OHSU KS0MEHMOHS "]
[null,null,null,null,null,null,null,null,null,null,null,null,null,null,null,"KS0MESAIA1 - SOM A Stull Lane Inst Allw FY2022 KS0MESAIA1 "]
[null,null,null,null,null,null,null,null,null,null,null,null,null,null,null,"KS0MEYRMRF - DR SUMMER MEYER MRF A23 2954 0 KS0MEYRMRF "]
[null,null,null,null,null,null,null,null,null,null,null,null,null,null,null,"KS0MKPRHE1 - MED PHS KOGA REPRODUCTIVE HEALTH EQUITY KS0MKPRHE1 "]
[null,null,null,null,null,null,null,null,null,null,null,null,null,null,null,"KS0MMEROP4 - ESTRADA JAEB CENTER FOR HEALTH KS0MMEROP4 "]
[null,null,null,null,null,null,null,null,null,null,null,null,null,null,null,"KS0MMR01AS - Miller NIMH R01 Supplement A20 0908 KS0MMR01AS "]
[null,null,null,null,null,null,null,null,null,null,null,null,null,null,null,"KS0MPADRF1 - LWJ Lein NIH Atmosphere AD RF1 KS0MPADRF1 "]
[null,null,null,null,null,null,null,null,null,null,null,null,null,null,null,"KS0MPLJ260 - MED PATH WAN NIH NCI R01CA222490 KS0MPLJ260 "]
[null,null,null,null,null,null,null,null,null,null,null,null,null,null,null,"KS0MPYW100 - 06 30 20 CDPH Alzheimers YR1 KS0MPYW100 "]
[null,null,null,null,null,null,null,null,null,null,null,null,null,null,null,"KS0MRAH601 - MED RES KRUEGER V WYETH SETTLEMENT KS0MRAH601 "]
[null,null,null,null,null,null,null,null,null,null,null,null,null,null,null,"KS0MSFEP14 - MED PHS SCHENKER CDPH EMERG KS0MSFEP14 "]
[null,null,null,null,null,null,null,null,null,null,null,null,null,null,null,"KS0MTK2022 - Talbott CTSC KL2 6 1 22 5 31 23 KS0MTK2022 "]
[null,null,null,null,null,null,null,null,null,null,null,null,null,null,null,"KS0NAPDHIP - MED PHS ANDERSON UCB LINGNAN KS0NAPDHIP "]
[null,null,null,null,null,null,null,null,null,null,null,null,null,null,null,"KS0NEVRO23 - Pritzlaff Nevro Edu Grant PAIN KS0NEVRO23 "]
[null,null,null,null,null,null,null,null,null,null,null,null,null,null,null,"KS0NNEXT11 - MCDONALD NIH NEURONEXT YEAR 11 06 22 KS0NNEXT11 "]
[null,null,null,null,null,null,null,null,null,null,null,null,null,null,null,"KS0NRBD212 - PHS HEALTH RESOURCES AND SERV NP PRACTIC KS0NRBD212 "]
[null,null,null,null,null,null,null,null,null,null,null,null,null,null,null,"KS0NRCS605 - SEATTLE INSTITUTE FOR BIOMEDIC YR4 KS0NRCS605 "]
[null,null,null,null,null,null,null,null,null,null,null,null,null,null,null,"KS0NRCS606 - SEATTLE INSTITUTE FOR BIOMEDIC YR5 KS0NRCS606 "]
[null,null,null,null,null,null,null,null,null,null,null,null,null,null,null,"KS0NRHY102 - CDA LOCAL AGING AND DISABILITY ACTION KS0NRHY102 "]
[null,null,null,null,null,null,null,null,null,null,null,null,null,null,null,"KS0NRJJ502 - SON CITRIS AWARD UCB JJ Amend1 KS0NRJJ502 "]
[null,null,null,null,null,null,null,null,null,null,null,null,null,null,null,"KS0NSPHAR2 - MCDONALD NS 065 NCNP 01 202 12 23 KS0NSPHAR2 "]
[null,null,null,null,null,null,null,null,null,null,null,null,null,null,null,"KS0OMR2422 - MEYER R24 UCSF 05 31 2022 KS0OMR2422 "]
[null,null,null,null,null,null,null,null,null,null,null,null,null,null,null,"KS0ONST501 - THORPE S MCMASTER SAFETY 1 31 2024 KS0ONST501 "]
[null,null,null,null,null,null,null,null,null,null,null,null,null,null,null,"KS0PAIRAUT - MMI Immune regulation and autism KS0PAIRAUT "]
[null,null,null,null,null,null,null,null,null,null,null,null,null,null,null,"KS0PF75D32 - Fuller BIDMC Sleep Apnea 6 30 25 KS0PF75D32 "]
[null,null,null,null,null,null,null,null,null,null,null,null,null,null,null,"KS0PMAM807 - MED IMPM AVDALOVIC ALTAVANT RVT 1201 200 KS0PMAM807 "]
[null,null,null,null,null,null,null,null,null,null,null,null,null,null,null,"KS0PMAT345 - MED IMPM ALBERTSON NYU ACTIV 4 ACUTE KS0PMAT345 "]
[null,null,null,null,null,null,null,null,null,null,null,null,null,null,null,"KS0PMAT844 - MED IMPM ALBERTSON AETHLON AEMD 2020 02 KS0PMAT844 "]
[null,null,null,null,null,null,null,null,null,null,null,null,null,null,null,"KS0PMHR802 - MED IMPM HARPER CONTRAFECT 301 105 KS0PMHR802 "]
[null,null,null,null,null,null,null,null,null,null,null,null,null,null,null,"KS0PMKN218 - MED IMPM KENYON NIH T32 SUPPLY YR 44 KS0PMKN218 "]
[null,null,null,null,null,null,null,null,null,null,null,null,null,null,null,"KS0PMKN303 - MED IMPM KENYON UCSF PRECISE SMART SA YR KS0PMKN303 "]
[null,null,null,null,null,null,null,null,null,null,null,null,null,null,null,"KS0PMMB827 - MED IMPM MORRISSEY VERTEX VX14 661 110 KS0PMMB827 "]
[null,null,null,null,null,null,null,null,null,null,null,null,null,null,null,"KS0PMMB845 - MED IMPM MORRISSEY LAURENT LAU 20 01 KS0PMMB845 "]
[null,null,null,null,null,null,null,null,null,null,null,null,null,null,null,"KS0PMMB846 - MED IMPM MORRISSEY BOEHRINGER BI1291583 KS0PMMB846 "]
[null,null,null,null,null,null,null,null,null,null,null,null,null,null,null,"KS0PMOJ807 - MED IMPM OLDHAM GENETECH WA42294 KS0PMOJ807 "]
[null,null,null,null,null,null,null,null,null,null,null,null,null,null,null,"KS0PMSN808 - MED IMPM SOOD BAYER ROAR REGISTRY KS0PMSN808 "]
[null,null,null,null,null,null,null,null,null,null,null,null,null,null,null,"KS0PMZA208 - MED IMPM ZEKI NHLBI R01 KS0PMZA208 "]
[null,null,null,null,null,null,null,null,null,null,null,null,null,null,null,"KS0QG71D37 - Gong A21 1838 NIH R21 KS0QG71D37 "]
[null,null,null,null,null,null,null,null,null,null,null,null,null,null,null,"KS0RBR01S2 - MRAD Badawi Breast PET CT Suppl2 KS0RBR01S2 "]
[null,null,null,null,null,null,null,null,null,null,null,null,null,null,null,"KS0RCT32K1 - Med Surg Canter T32 Kara Kleber KS0RCT32K1 "]
[null,null,null,null,null,null,null,null,null,null,null,null,null,null,null,"KS0RGCTSC1 - MRAD Goldman CTSC Data Analystic KS0RGCTSC1 "]
[null,null,null,null,null,null,null,null,null,null,null,null,null,null,null,"KS0RHLN206 - MED IMRH LANE BIRCWH YR 4 KS0RHLN206 "]
[null,null,null,null,null,null,null,null,null,null,null,null,null,null,null,"KS0RHRS604 - MED IMRH RAYCHAUDHURI NPF KS0RHRS604 "]
[null,null,null,null,null,null,null,null,null,null,null,null,null,null,null,"KS0RL74C17 - Liu DoD A20 0186 KS0RL74C17 "]
[null,null,null,null,null,null,null,null,null,null,null,null,null,null,null,"KS0ROMDD83 - ROCG Daly DOD Radionuclide Therapy KS0ROMDD83 "]
[null,null,null,null,null,null,null,null,null,null,null,null,null,null,null,"KS0RSBC510 - CHRISTIANSEN NIH R01 11 24 KS0RSBC510 "]
[null,null,null,null,null,null,null,null,null,null,null,null,null,null,null,"KS0RSFECH7 - MED PHS SCHMIDT DREXEL ECHO KS0RSFECH7 "]
[null,null,null,null,null,null,null,null,null,null,null,null,null,null,null,"KS0RTMECHR - Mechanism of Colonization Resistance KS0RTMECHR "]
[null,null,null,null,null,null,null,null,null,null,null,null,null,null,null,"KS0RWFLIF4 - MED PHS WHITMER LIFE AFTER 90 RENEWAL KS0RWFLIF4 "]
[null,null,null,null,null,null,null,null,null,null,null,null,null,null,null,"KS0RWFLIF5 - MED PHS WHITMER LIFE AFTER 90 RENEWAL KS0RWFLIF5 "]
[null,null,null,null,null,null,null,null,null,null,null,null,null,null,null,"KS0RWPIDE5 - MED PHS WHITMER IDEAS II KS0RWPIDE5 "]
[null,null,null,null,null,null,null,null,null,null,null,null,null,null,null,"KS0SAMPMOD - SA MBP MPMOD YR 1 ANIMAL CORE KS0SAMPMOD "]
[null,null,null,null,null,null,null,null,null,null,null,null,null,null,null,"KS0SBTRIMA - TRIM37 is a genetic determinant KS0SBTRIMA "]
[null,null,null,null,null,null,null,null,null,null,null,null,null,null,null,"KS0SDUP3Y2 - Molecules Molecules U19 Project 3 KS0SDUP3Y2 "]
[null,null,null,null,null,null,null,null,null,null,null,null,null,null,null,"KS0SHFDDR1 - MED PHS HUSSAIN CEDARS SINAI COVID KS0SHFDDR1 "]
[null,null,null,null,null,null,null,null,null,null,null,null,null,null,null,"KS0SJRSBS3 - SAN JOAQUIN EVAL HBI BSCC 19 20 10 TC KS0SJRSBS3 "]
[null,null,null,null,null,null,null,null,null,null,null,null,null,null,null,"KS0SMDDCF1 - Morotti DDCF SEED Grant KS0SMDDCF1 "]
[null,null,null,null,null,null,null,null,null,null,null,null,null,null,null,"KS0SMFPMF7 - MED PHS MCCURDY CDPH PREV MED RES PGRM KS0SMFPMF7 "]
[null,null,null,null,null,null,null,null,null,null,null,null,null,null,null,"KS0SOTAP01 - MED PSYCH Ozonoff VUMC95241 0 KS0SOTAP01 "]
[null,null,null,null,null,null,null,null,null,null,null,null,null,null,null,"KS0SPTRU13 - MED OPH PI PARK NEI UG1 2018 2023 KS0SPTRU13 "]
[null,null,null,null,null,null,null,null,null,null,null,null,null,null,null,"KS0SPYJ533 - 22 23 SPINE FELLOW NuVasive 07 31 2023 KS0SPYJ533 "]
[null,null,null,null,null,null,null,null,null,null,null,null,null,null,null,"KS0SS77F64 - Stavisky Pershing Square 5 30 26 KS0SS77F64 "]
[null,null,null,null,null,null,null,null,null,null,null,null,null,null,null,"KS0STAES02 - TOPRANI AES AWARD 05 01 2023 KS0STAES02 "]
[null,null,null,null,null,null,null,null,null,null,null,null,null,null,null,"KS0SWANCO2 - MED OBGYN Dr Waetjen SWAN Supplement KS0SWANCO2 "]
[null,null,null,null,null,null,null,null,null,null,null,null,null,null,null,"KS0TASK123 - NICHD TASK 1 CORE FUNCTIONS KS0TASK123 "]
[null,null,null,null,null,null,null,null,null,null,null,null,null,null,null,"KS0TBTBI03 - Med Surg Tina Palmieri TBI Year3 KS0TBTBI03 "]
[null,null,null,null,null,null,null,null,null,null,null,null,null,null,null,"KS0TNEPTTA - Niendam State of CA MHSO SPO 21 3954 KS0TNEPTTA "]
[null,null,null,null,null,null,null,null,null,null,null,null,null,null,null,"KS0TPMEDIC - Dr Palmieri Cong Directed Medic KS0TPMEDIC "]
[null,null,null,null,null,null,null,null,null,null,null,null,null,null,null,"KS0TTPHEX2 - MED OTO Tollefson Phoenix Child Hospt KS0TTPHEX2 "]
[null,null,null,null,null,null,null,null,null,null,null,null,null,null,null,"KS0VDUCLA1 - V DIMITRIADES UCLA SUBAWARD KS0VDUCLA1 "]
[null,null,null,null,null,null,null,null,null,null,null,null,null,null,null,"KS0VWCHQI1 - WHEELOCK CHQI HIGH Q FDTN 12 31 14 KS0VWCHQI1 "]
[null,null,null,null,null,null,null,null,null,null,null,null,null,null,null,"KS0WB74F53 - WALDAU MEDTRONIC NEURVAS FLLWSHIP 23 24 KS0WB74F53 "]
[null,null,null,null,null,null,null,null,null,null,null,null,null,null,null,"KS0YCNIH19 - MPHA CHEN IZU NIH 2019 AWARD KS0YCNIH19 "]
[null,null,null,null,null,null,null,null,null,null,null,null,null,null,null,"KS0YLNIH22 - Li NIH Biomed Imaging A23 0442 KS0YLNIH22 "]
[null,null,null,null,null,null,null,null,null,null,null,null,null,null,null,"SP0A224212 - A224212 SP0A224212 BO42354 - A Phase III, Multicenter, Single-Arm Study Evaluating The Efficacy, Safety, Pharmacodynamics of Crovalimab in Pediatric Patients with Atypical Hemolytic Uremic Syndrome (aHUS) "]
[null,null,null,null,null,null,null,null,null,null,null,null,null,null,null,"SP0A232934 - A232934 SP0A232934 Aqueous Aerosol Chemistry: Elucidating the mechanisms causing mismatch between Field and Laboratory Chemical Composition of Biomass Burning Organic Aerosol "]
[null,null,null,null,null,null,null,null,null,null,null,null,null,null,null,"SP0A234018 - A234018 SP0A234018 Targeting SIV macrophage reservoirs in the CNS by CSF1R inhibition "]
[null,null,null,null,null,null,null,null,null,null,null,null,null,null,null,"SP0A241092 - A241092 SP0A241092 Two-way magnetic resonance tuning and enhanced subtraction imaging for precision diagnosis of brain metastases "]
[null,null,null,null,null,null,null,null,null,null,null,null,null,null,null,"SP0A241725 - A241725 SP0A241725 What is the relationship of cross-program utilization of Medicaid, SNAP, and WIC with diet quality and weight status of low-income children? "]
[null,null,null,null,null,null,null,null,null,null,null,null,null,null,null,"SP0A242210 - A242210 SP0A242210 SPLASH Translating the Science of Milk Genomics 2024 "]
[null,null,null,null,null,null,null,null,null,null,null,null,null,null,null,"SP0A242562 - A242562 SP0A242562 The Persistence of Wild Religious Traditions: How the Handling of Misfortune Influences the Dynamics of Folk Religions "]
[null,null,null,null,null,null,null,null,null,null,null,null,null,null,null,"SP0A242588 - A242588 SP0A242588 CAB-201-001 - A Phase 1/2, Open-Label Study to Evaluate the Safety and Efficacy of Autologous CD19-specific Chimeric Antigen Receptor T cells (CABA-201) in Subjects with Active Systemic Lupus Erythematosus "]
[null,null,null,null,null,null,null,null,null,null,null,null,null,null,null,"SP0A242888 - A242888 SP0A242888 Investigating the Fatigue and Creep properties of Strong and Ductile Refractory Multiple Principal Element Alloys (RMPEAs) "]
[null,null,null,null,null,null,null,null,null,null,null,null,null,null,null,"SP0A243034 - A243034 SP0A243034 Seminar Gaming for Social Problems: Pilot Seminar on Behavioral Health Emergency Response "]
[null,null,null,null,null,null,null,null,null,null,null,null,null,null,null,"SP0A250104 - A250104 SP0A250104 Feed Industry fellowship with a focus on dairy feeding systems "]
[null,null,null,null,null,null,null,null,null,null,null,null,null,null,null,"18305054F1 - 18305054F1 AI NCM EON "]
[null,null,null,null,null,null,null,null,null,null,null,null,null,null,null,"21305018N1 - 21305018N1 LFSE2 Smelt Egg System 2 "]
[null,null,null,null,null,null,null,null,null,null,null,null,null,null,null,"23304637F1 - 23304637F1 LAMP FURNACE HIGH TEMPERATURE SYSTEM "]
[null,null,null,null,null,null,null,null,null,null,null,null,null,null,null,"F9AANS0927 - James Murray ANIMAL SCIENCE ANR PPM Only "]
[null,null,null,null,null,null,null,null,null,null,null,null,null,null,null,"F9AANS3467 - Lee Pettey ANIMAL SCIENCE ANR PPM Only "]
[null,null,null,null,null,null,null,null,null,null,null,null,null,null,null,"F9AARE0241 - Daniel Sumner AG And RESOURCE ECONOMICS ANR PPM Only "]
[null,null,null,null,null,null,null,null,null,null,null,null,null,null,null,"F9AARE3588 - Kristin Kiesel AG And RESOURCE ECONOMICS ANR PPM Only "]
[null,null,null,null,null,null,null,null,null,null,null,null,null,null,null,"F9ABAE5283 - Ruihong Zhang BIOLOGICAL and AG ENGINEERING ANR PPM Only "]
[null,null,null,null,null,null,null,null,null,null,null,null,null,null,null,"F9AFST2658 - Moshe Rosenberg FOOD SCIENCE And TECHNOLOGY ANR PPM Only "]
[null,null,null,null,null,null,null,null,null,null,null,null,null,null,null,"F9ALAW1988 - Daniele Zaccaria LAND AIR And WATER RESOURCES ANR PPM Only "]
[null,null,null,null,null,null,null,null,null,null,null,null,null,null,null,"F9APLS3263 - Louise Ferguson PLANT SCIENCES ANR PPM Only "]
[null,null,null,null,null,null,null,null,null,null,null,null,null,null,null,"F9APLS5218 - Thomas Gradziel PLANT SCIENCES ANR PPM Only "]
[null,null,null,null,null,null,null,null,null,null,null,null,null,null,null,"F9APLS5219 - William Olson PLANT SCIENCES ANR PPM only "]
[null,null,null,null,null,null,null,null,null,null,null,null,null,null,null,"F9APPA2418 - Johanna Del Castillo Munera ANR PPM Only "]
[null,null,null,null,null,null,null,null,null,null,null,null,null,null,null,"F9VPHR0927 - James Murray VM POPULATION HLTH And REPROD ANR PPM Only "]
[null,null,null,null,null,null,null,null,null,null,null,null,null,null,null,"F9VVME3815 - Esteban Soto Martinez VM MEDICINE And EPIDEMIOLOGY ANR PPM Only "]
[null,null,null,null,null,null,null,null,null,null,null,null,null,null,null,"FP4HCO6145 - Gemma Miner CALIFORNIA STATE 4H OFFICE PPM ONLY "]
[null,null,null,null,null,null,null,null,null,null,null,null,null,null,null,"FPAANS1242 - Joy Mench ANIMAL SCIENCE PPM Only "]
[null,null,null,null,null,null,null,null,null,null,null,null,null,null,null,"FPAANS2605 - Xiang Yang ANIMAL SCIENCE PPM Only "]
[null,null,null,null,null,null,null,null,null,null,null,null,null,null,null,"FPAANS4047 - Kirk Klasing ANIMAL SCIENCE PPM Only "]
[null,null,null,null,null,null,null,null,null,null,null,null,null,null,null,"FPAANS5084 - Robert Ashmore ANIMAL SCIENCE PPM Only "]
[null,null,null,null,null,null,null,null,null,null,null,null,null,null,null,"FPAARE1560 - Richard Green AG And RESOURCE ECONOMICS PPM Only "]
[null,null,null,null,null,null,null,null,null,null,null,null,null,null,null,"FPAARE3192 - Eric Lee Johnson AG And RESOURCE ECONOMICS PPM Only "]
[null,null,null,null,null,null,null,null,null,null,null,null,null,null,null,"FPAARE4565 - Jamie Hansen Lewis AG And RESOURCE ECONOMICS PPM Only "]
[null,null,null,null,null,null,null,null,null,null,null,null,null,null,null,"FPABAE0990 - David Hills BIOLOGICAL And AG ENGINEERING PPM Only "]
[null,null,null,null,null,null,null,null,null,null,null,null,null,null,null,"FPABAE3459 - Jeffrey Mason Earles BIOLOGICAL And AG ENGINEERING PPM Only "]
[null,null,null,null,null,null,null,null,null,null,null,null,null,null,null,"FPABAE6298 - Yi Wang BIOLOGICAL And AG ENGINEERING PPM Only "]
[null,null,null,null,null,null,null,null,null,null,null,null,null,null,null,"FPADES1229 - Frances Moore ENVIRONMENTAL SCIENCE And POLICY PPM Only "]
[null,null,null,null,null,null,null,null,null,null,null,null,null,null,null,"FPADES1302 - Edwin Grosholz ENVIRONMENTAL SCIENCE And POLICY PPM Only "]
[null,null,null,null,null,null,null,null,null,null,null,null,null,null,null,"FPADES2768 - James Quinn ENVIRONMENTAL SCIENCE And POLICY PPM Only "]
[null,null,null,null,null,null,null,null,null,null,null,null,null,null,null,"FPADES4745 - Steven Morgan ENVIRONMENTAL SCIENCE And POLICY PPM Only "]
[null,null,null,null,null,null,null,null,null,null,null,null,null,null,null,"FPAENM0768 - Hugh Dingle ENTOMOLOGY NEMATOLOGY PPM Only "]
[null,null,null,null,null,null,null,null,null,null,null,null,null,null,null,"FPAENM2341 - Jason Bond ENTOMOLOGY NEMATOLOGY PPM Only "]
[null,null,null,null,null,null,null,null,null,null,null,null,null,null,null,"FPAENM4405 - Neal Williams ENTOMOLOGY NEMATOLOGY PPM Only "]
[null,null,null,null,null,null,null,null,null,null,null,null,null,null,null,"FPAETX1609 - Michael Stimmann ENVIRONMENTAL TOXICOLOGY PPM Only "]
[null,null,null,null,null,null,null,null,null,null,null,null,null,null,null,"FPAETX4852 - Christoph Vogel ENVIRONMENTAL TOXICOLOGY PPM Only "]
[null,null,null,null,null,null,null,null,null,null,null,null,null,null,null,"FPAFST0582 - Chester Price FOOD SCIENCE And TECHNOLOGY PPM Only "]
[null,null,null,null,null,null,null,null,null,null,null,null,null,null,null,"FPAFST2206 - Jennifer Smilowitz FOOD SCIENCE And TECHNOLOGY PPM Only "]
[null,null,null,null,null,null,null,null,null,null,null,null,null,null,null,"FPAFST5039 - Carolyn Slupsky FOOD SCIENCE And TECHNOLOGY PPM Only "]
[null,null,null,null,null,null,null,null,null,null,null,null,null,null,null,"FPAHCE0577 - Lenna Ontai HUMAN ECOLOGY PPM Only (rev) "]
[null,null,null,null,null,null,null,null,null,null,null,null,null,null,null,"FPAHCE1823 - Eric Chu HUMAN ECOLOGY PPM Only "]
[null,null,null,null,null,null,null,null,null,null,null,null,null,null,null,"FPAHCE2934 - Stephen Wheeler HUMAN ECOLOGY PPM Only "]
[null,null,null,null,null,null,null,null,null,null,null,null,null,null,null,"FPAHCE4847 - Earl Mcculley HUMAN ECOLOGY PPM Only "]
[null,null,null,null,null,null,null,null,null,null,null,null,null,null,null,"FPAHEC1862 - Barbara Shebloski HUMAN ECOLOGY PPM Only "]
[null,null,null,null,null,null,null,null,null,null,null,null,null,null,null,"FPAHEC5051 - David Scott De La Pena HUMAN ECOLOGY PPM Only "]
[null,null,null,null,null,null,null,null,null,null,null,null,null,null,null,"FPALAW1112 - Louise Jackson LAND AIR And WATER RESOURCES PPM Only "]
[null,null,null,null,null,null,null,null,null,null,null,null,null,null,null,"FPALAW2237 - Samuel Sandoval Solis LAND AIR And WATER RESOURCES PPM Only "]
[null,null,null,null,null,null,null,null,null,null,null,null,null,null,null,"FPALAW3573 - Helen Dahlke LAND AIR And WATER RESOURCES PPM Only "]
[null,null,null,null,null,null,null,null,null,null,null,null,null,null,null,"FPALAW4867 - Benjamin Houlton LAND AIR And WATER RESOURCES PPM Only "]
[null,null,null,null,null,null,null,null,null,null,null,null,null,null,null,"FPAMCB3907 - James Clegg AG MOLECULAR And CELLULAR BIO PPM Only "]
[null,null,null,null,null,null,null,null,null,null,null,null,null,null,null,"FPANUT2046 - Liping Huang NUTRITION PPM Only "]
[null,null,null,null,null,null,null,null,null,null,null,null,null,null,null,"FPANUT4286 - Brian Bennett NUTRITION PPM Only "]
[null,null,null,null,null,null,null,null,null,null,null,null,null,null,null,"FPANUT5865 - Joan Stayboldt Frank NUTRITION PPM Only "]
[null,null,null,null,null,null,null,null,null,null,null,null,null,null,null,"FPAPLS0459 - Mary Cadenasso PLANT SCIENCES PPM Only "]
[null,null,null,null,null,null,null,null,null,null,null,null,null,null,null,"FPAPLS0999 - Dan Parfitt PLANT SCIENCES PPM Only "]
[null,null,null,null,null,null,null,null,null,null,null,null,null,null,null,"FPAPLS1569 - Steven Weinbaum PLANT SCIENCES PPM Only "]
[null,null,null,null,null,null,null,null,null,null,null,null,null,null,null,"FPAPLS2184 - Arnold Bloom PLANT SCIENCES PPM Only "]
[null,null,null,null,null,null,null,null,null,null,null,null,null,null,null,"FPAPLS2884 - David Neale PLANT SCIENCES PPM Only "]
[null,null,null,null,null,null,null,null,null,null,null,null,null,null,null,"FPAPLS3868 - Jagdish Ladha PLANT SCIENCES PPM Only "]
[null,null,null,null,null,null,null,null,null,null,null,null,null,null,null,"FPAPLS4553 - David Burger PLANT SCIENCES PPM Only "]
[null,null,null,null,null,null,null,null,null,null,null,null,null,null,null,"FPAPLS4575 - Steven Temple PLANT SCIENCES PPM Only "]
[null,null,null,null,null,null,null,null,null,null,null,null,null,null,null,"FPAPLS5552 - Robert Walsh PLANT SCIENCES PPM Only "]
[null,null,null,null,null,null,null,null,null,null,null,null,null,null,null,"FPAPPA0006 - Akif Eskalen PLANT PATHOLOGY PPM Only "]
[null,null,null,null,null,null,null,null,null,null,null,null,null,null,null,"FPAPPA1881 - Valerie Williamson PLANT PATHOLOGY PPM Only "]
[null,null,null,null,null,null,null,null,null,null,null,null,null,null,null,"FPAPPA4496 - J Duniway PLANT PATHOLOGY PPM Only "]
[null,null,null,null,null,null,null,null,null,null,null,null,null,null,null,"FPAVIT1906 - Konrad Miller VITICULTURE And ENOLOGY PPM Only "]
[null,null,null,null,null,null,null,null,null,null,null,null,null,null,null,"FPAVPP6163 - Daniel Obrist VICE PROVOST ACAD PERSNL and DEV PPM ONLY "]
[null,null,null,null,null,null,null,null,null,null,null,null,null,null,null,"FPAWFC4182 - Timothy Caro WILDLIFE And FISHERIES BIOLOGY PPM Only "]
[null,null,null,null,null,null,null,null,null,null,null,null,null,null,null,"FPBCNS1538 - Timothy Hanks Center for Neuroscience PPM Only "]
[null,null,null,null,null,null,null,null,null,null,null,null,null,null,null,"FPBCNS4860 - Hwai Jong Cheng Center for Neuroscience PPM Only "]
[null,null,null,null,null,null,null,null,null,null,null,null,null,null,null,"FPBERK6018 - Van Andrew Butsic UCB PPM ONLY "]
[null,null,null,null,null,null,null,null,null,null,null,null,null,null,null,"FPBEVE2123 - Rachael Bay EVOLUTION And ECOLOGY PPM Only "]
[null,null,null,null,null,null,null,null,null,null,null,null,null,null,null,"FPBEVE4741 - Sharon Strauss EVOLUTION And ECOLOGY PPM Only "]
[null,null,null,null,null,null,null,null,null,null,null,null,null,null,null,"FPBGEN3092 - Patrice Koehl Genome Center PPM Only "]
[null,null,null,null,null,null,null,null,null,null,null,null,null,null,null,"FPBMCB0481 - Judy Callis MOLECULAR And CELLULAR BIO PPM Only "]
[null,null,null,null,null,null,null,null,null,null,null,null,null,null,null,"FPBMCB1719 - John Kiger MOLECULAR And CELLULAR BIO PPM Only "]
[null,null,null,null,null,null,null,null,null,null,null,null,null,null,null,"FPBMCB1743 - S Chaykin MOLECULAR And CELLULAR BIO PPM Only "]
[null,null,null,null,null,null,null,null,null,null,null,null,null,null,null,"FPBMCB3450 - Larry Sprechman MOLECULAR And CELLULAR BIO PPM Only "]
[null,null,null,null,null,null,null,null,null,null,null,null,null,null,null,"FPBMCB6321 - Alice Accorsi MOLECULAR And CELLULAR BIO PPM Only "]
[null,null,null,null,null,null,null,null,null,null,null,null,null,null,null,"FPBMMG3070 - Neil Hunter MICROBIOLOGY And MOLEC GENETICS PPM Only "]
[null,null,null,null,null,null,null,null,null,null,null,null,null,null,null,"FPBMMG4920 - Michele Igo MICROBIOLOGY And MOLEC GENETICS PPM Only "]
[null,null,null,null,null,null,null,null,null,null,null,null,null,null,null,"FPBNPB1393 - John Horowitz NEURO PHYSIO And BEHAVIOR PPM Only "]
[null,null,null,null,null,null,null,null,null,null,null,null,null,null,null,"FPBNPB3032 - Grace Rosenquist NEURO PHYSIO And BEHAVIOR PPM Only "]
[null,null,null,null,null,null,null,null,null,null,null,null,null,null,null,"FPBNPB4377 - Thomas Coombs Hahn NEURO PHYSIO And BEHAVIOR PPM Only "]
[null,null,null,null,null,null,null,null,null,null,null,null,null,null,null,"FPBPLB1218 - Luca Comai PLANT BIOLOGY PPM Only "]
[null,null,null,null,null,null,null,null,null,null,null,null,null,null,null,"FPBPLB3738 - Venkatesan Sundaresan PLANT BIOLOGY PPM Only "]
[null,null,null,null,null,null,null,null,null,null,null,null,null,null,null,"FPBUTT0160 - Joseph Connell UCCE BUTTE PPM Only "]
[null,null,null,null,null,null,null,null,null,null,null,null,null,null,null,"FPCCMP6080 - Olivia Henry UCCE CAPITOL CORRIDOR MCP PPM ONLY "]
[null,null,null,null,null,null,null,null,null,null,null,null,null,null,null,"FPCNTR6156 - ALEXA ERICKSON UCCE CONTRA COSTA COUNTY "]
[null,null,null,null,null,null,null,null,null,null,null,null,null,null,null,"FPCSOM1030 - Thomas Ambrosi MED Orthopaedic Surgery PPM Only "]
[null,null,null,null,null,null,null,null,null,null,null,null,null,null,null,"FPDEDU1000 - Alexandrina Ramirez EDUCATION PPM Only "]
[null,null,null,null,null,null,null,null,null,null,null,null,null,null,null,"FPDEDU1937 - Sharon S Dugdale EDUCATION PPM Only "]
[null,null,null,null,null,null,null,null,null,null,null,null,null,null,null,"FPDEDU1945 - Heather Sturman EDUCATION PPM Only "]
[null,null,null,null,null,null,null,null,null,null,null,null,null,null,null,"FPDEDU3278 - Elizabeth Montano EDUCATION PPM Only "]
[null,null,null,null,null,null,null,null,null,null,null,null,null,null,null,"FPDEDU4097 - Sandra Murphy EDUCATION PPM Only "]
[null,null,null,null,null,null,null,null,null,null,null,null,null,null,null,"FPDEDU5269 - Heather Schlaman EDUCATION PPM Only "]
[null,null,null,null,null,null,null,null,null,null,null,null,null,null,null,"FPDIEG0242 - Beverly Wallace UCCE SAN DIEGO COUNTY PPM Only "]
[null,null,null,null,null,null,null,null,null,null,null,null,null,null,null,"FPEBIO2700 - Miriam Nuno MED Division of Biostatistics PPM Only "]
[null,null,null,null,null,null,null,null,null,null,null,null,null,null,null,"FPEBME2405 - Marc Facciotti BIOMEDICAL ENGINEERING PPM Only "]
[null,null,null,null,null,null,null,null,null,null,null,null,null,null,null,"FPEBME4841 - Sanjeevi Sivasankar BIOMEDICAL ENGINEERING PPM Only "]
[null,null,null,null,null,null,null,null,null,null,null,null,null,null,null,"FPECEE1269 - Bassam Younis CIVIL And ENVIRONMENTAL ENGR PPM Only "]
[null,null,null,null,null,null,null,null,null,null,null,null,null,null,null,"FPECEE2397 - Stefan Wuertz CIVIL And ENVIRONMENTAL ENGR PPM Only "]
[null,null,null,null,null,null,null,null,null,null,null,null,null,null,null,"FPECEE4260 - Veronica Morales CIVIL And ENVIRONMENTAL ENGR PPM Only "]
[null,null,null,null,null,null,null,null,null,null,null,null,null,null,null,"FPECEE5314 - Jasquelin Pena CIVIL And ENVIRONMENTAL ENGR PPM Only "]
[null,null,null,null,null,null,null,null,null,null,null,null,null,null,null,"FPECHE2148 - Bruce Gates CHEMICAL ENGINEERING PPM Only "]
[null,null,null,null,null,null,null,null,null,null,null,null,null,null,null,"FPECHE4362 - Jiandi Wan CHEMICAL ENGINEERING PPM Only "]
[null,null,null,null,null,null,null,null,null,null,null,null,null,null,null,"FPECHM3132 - Douglas L Medlin MATERIALS SCIENCE And ENGINEERING PPM Only "]
[null,null,null,null,null,null,null,null,null,null,null,null,null,null,null,"FPECOE3246 - Richard Post ENGINEERING DEANS OFFICE PPM Only "]
[null,null,null,null,null,null,null,null,null,null,null,null,null,null,null,"FPECOE4305 - R Christensen ENGINEERING DEANS OFFICE PPM Only "]
[null,null,null,null,null,null,null,null,null,null,null,null,null,null,null,"FPECSE1706 - Prasant Mohapatra ENGR COMPUTER SCIENCE PPM Only "]
[null,null,null,null,null,null,null,null,null,null,null,null,null,null,null,"FPECSE3063 - Hao Chen ENGR COMPUTER SCIENCE PPM Only "]
[null,null,null,null,null,null,null,null,null,null,null,null,null,null,null,"FPECSE4395 - Charles Martel ENGR COMPUTER SCIENCE PPM Only "]
[null,null,null,null,null,null,null,null,null,null,null,null,null,null,null,"FPECSE6293 - Alex Gamero Garrido Computer Science PPM Only "]
[null,null,null,null,null,null,null,null,null,null,null,null,null,null,null,"FPEDNT4650 - Deborah Bennett MED Division of Epidemiology PPM Only "]
[null,null,null,null,null,null,null,null,null,null,null,null,null,null,null,"FPEECE1778 - Tien Hsia ELECT And COMP ENGR PPM Only "]
[null,null,null,null,null,null,null,null,null,null,null,null,null,null,null,"FPEECE2917 - Houman Homayoun ELECT And COMP ENGR PPM Only "]
[null,null,null,null,null,null,null,null,null,null,null,null,null,null,null,"FPEECE3802 - Stephen Lewis ELECT And COMP ENGR PPM Only "]
[null,null,null,null,null,null,null,null,null,null,null,null,null,null,null,"FPEECE5530 - Mahdi Orooji ELECT And COMP ENGR PPM Only "]
[null,null,null,null,null,null,null,null,null,null,null,null,null,null,null,"FPEMAE0741 - Stephen Robinson MECHANICAL And AEROSPACE ENGR PPM Only "]
[null,null,null,null,null,null,null,null,null,null,null,null,null,null,null,"FPEMAE2542 - Zhaodan Kong MECHANICAL And AEROSPACE ENGR PPM Only "]
[null,null,null,null,null,null,null,null,null,null,null,null,null,null,null,"FPEMAE4933 - Mohamed Hafez MECHANICAL And AEROSPACE ENGR PPM Only "]
[null,null,null,null,null,null,null,null,null,null,null,null,null,null,null,"FPFMCP0196 - Richard Coviello UCCE FRESNO MADERA MCP PPM Only "]
[null,null,null,null,null,null,null,null,null,null,null,null,null,null,null,"FPGLEN6171 - Curt Pierce UCCE GLENN COUNTY PPM ONLY "]
[null,null,null,null,null,null,null,null,null,null,null,null,null,null,null,"FPGSM11329 - Panteleimon Loupos GRADUATE SCHOOL OF MANAGEMENT PPM Only "]
[null,null,null,null,null,null,null,null,null,null,null,null,null,null,null,"FPGSM11482 - Justin Virrey GRADUATE SCHOOL OF MANAGEMENT PPM Only "]
[null,null,null,null,null,null,null,null,null,null,null,null,null,null,null,"FPGSM12707 - Donald Palmer GRADUATE SCHOOL OF MANAGEMENT PPM Only "]
[null,null,null,null,null,null,null,null,null,null,null,null,null,null,null,"FPGSM13745 - David Woodruff GRADUATE SCHOOL OF MANAGEMENT PPM Only "]
[null,null,null,null,null,null,null,null,null,null,null,null,null,null,null,"FPGSM15080 - Kimberly Elsbach GRADUATE SCHOOL OF MANAGEMENT PPM Only "]
[null,null,null,null,null,null,null,null,null,null,null,null,null,null,null,"FPGSM15605 - Vanessa Errecarte GRADUATE SCHOOL OF MANAGEMENT PPM Only "]
[null,null,null,null,null,null,null,null,null,null,null,null,null,null,null,"FPHUMB0218 - Deborah Giraud UCCE HUMBOLDT PPM Only "]
[null,null,null,null,null,null,null,null,null,null,null,null,null,null,null,"FPIGNU5204 - Kathryn Dewey Inst for Global Nutrition PPM Only "]
[null,null,null,null,null,null,null,null,null,null,null,null,null,null,null,"FPIMAD3903 - Shiro Urayama MED Int Med Medicine AdminPPM Only "]
[null,null,null,null,null,null,null,null,null,null,null,null,null,null,null,"FPIMCA1068 - Victor O Bonilla MED INT MED CARDIOLOGY PPM Only "]
[null,null,null,null,null,null,null,null,null,null,null,null,null,null,null,"FPIMCA2717 - Patricia Applegate MED INT MED CARDIOLOGY PPM Only "]
[null,null,null,null,null,null,null,null,null,null,null,null,null,null,null,"FPIMCA3930 - Imo Ebong MED INT MED CARDIOLOGY PPM Only "]
[null,null,null,null,null,null,null,null,null,null,null,null,null,null,null,"FPIMCA5737 - Matthew Lam MED INT MED CARDIOLOGY PPM Only "]
[null,null,null,null,null,null,null,null,null,null,null,null,null,null,null,"FPIMEN0713 - Lars Berglund MED Int Med Endocrinology PPM Only "]
[null,null,null,null,null,null,null,null,null,null,null,null,null,null,null,"FPIMEN3980 - Craig Smith MED Int Med Endocrinology PPM Only "]
[null,null,null,null,null,null,null,null,null,null,null,null,null,null,null,"FPIMGI0326 - Jeffrey Ko MED Int Med Gastroenterology PPM Only "]
[null,null,null,null,null,null,null,null,null,null,null,null,null,null,null,"FPIMGI2398 - Sooraj Tejaswi MED Int Med Gastroenterology PPM Only "]
[null,null,null,null,null,null,null,null,null,null,null,null,null,null,null,"FPIMGI2697 - Virmeet Singh MED Int Med Gastroenterology PPM Only "]
[null,null,null,null,null,null,null,null,null,null,null,null,null,null,null,"FPIMGI5377 - Lien Le MED Int Med Gastroenterology PPM Only "]
[null,null,null,null,null,null,null,null,null,null,null,null,null,null,null,"FPIMGM0932 - Patrick Romano MED Int Med Genl Medicine PPM Only "]
[null,null,null,null,null,null,null,null,null,null,null,null,null,null,null,"FPIMGM2188 - Mark Blum MED Int Med Genl Medicine PPM Only "]
[null,null,null,null,null,null,null,null,null,null,null,null,null,null,null,"FPIMGM4407 - Richard White MED Int Med Genl Medicine PPM Only "]
[null,null,null,null,null,null,null,null,null,null,null,null,null,null,null,"FPIMHO0314 - Michael Degregorio MED Int Med HEMONC PPM Only "]
[null,null,null,null,null,null,null,null,null,null,null,null,null,null,null,"FPIMHO2089 - Gerhard Bauer MED Int Med HEMONC PPM Only "]
[null,null,null,null,null,null,null,null,null,null,null,null,null,null,null,"FPIMHO4151 - Karen Kelly MED Int Med HEMONC PPM Only "]
[null,null,null,null,null,null,null,null,null,null,null,null,null,null,null,"FPIMHO6339 - Anterpreet Neki Med Int Med HEMONC PPM Only "]
[null,null,null,null,null,null,null,null,null,null,null,null,null,null,null,"FPIMHP1943 - Voltaire Sinigayan MED Int Med Hospitalist PPM Only "]
[null,null,null,null,null,null,null,null,null,null,null,null,null,null,null,"FPIMHP3073 - Garima Agrawal MED Int Med Hospitalist PPM Only "]
[null,null,null,null,null,null,null,null,null,null,null,null,null,null,null,"FPIMHP4033 - Elise Harris MED Int Med Hospitalist PPM Only "]
[null,null,null,null,null,null,null,null,null,null,null,null,null,null,null,"FPIMHP5343 - Mindy Shapiro MED Int Med Hospitalist PPM Only "]
[null,null,null,null,null,null,null,null,null,null,null,null,null,null,null,"FPIMID0730 - David Gibson MED Int Med Infectious Dis PPM Only "]
[null,null,null,null,null,null,null,null,null,null,null,null,null,null,null,"FPIMID4471 - Vera Go MED Int Med Infectious Dis PPM Only "]
[null,null,null,null,null,null,null,null,null,null,null,null,null,null,null,"FPIMKT5592 - Aileen Wang MED INT MED KIDNEY TRANSPLANT PPM Only "]
[null,null,null,null,null,null,null,null,null,null,null,null,null,null,null,"FPIMKT5610 - Sana Shaikh MED INT MED KIDNEY TRANSPLANT PPM Only "]
[null,null,null,null,null,null,null,null,null,null,null,null,null,null,null,"FPIMNE3232 - Hiroshi Yamauchi MED Int Med Nephrology PPM Only "]
[null,null,null,null,null,null,null,null,null,null,null,null,null,null,null,"FPIMPE0264 - Eric Natwick UCCE IMPERIAL COUNTY PPM Only "]
[null,null,null,null,null,null,null,null,null,null,null,null,null,null,null,"FPIMPM1637 - Tzipora Goldkorn MED Int Med Pulmonary PPM Only "]
[null,null,null,null,null,null,null,null,null,null,null,null,null,null,null,"FPIMPM3577 - Nicholas Stollenwerk MED Int Med Pulmonary PPM Only "]
[null,null,null,null,null,null,null,null,null,null,null,null,null,null,null,"FPIMPM6340 - Gabrielle Liu MED Int Med Pulmonary PPM Only "]
[null,null,null,null,null,null,null,null,null,null,null,null,null,null,null,"FPIMRH1807 - Stanley Naguwa MED Int Med Rheumatology PPM Only "]
[null,null,null,null,null,null,null,null,null,null,null,null,null,null,null,"FPIMRH5115 - Judith Van De Water MED Int Med Rheumatology PPM Only "]
[null,null,null,null,null,null,null,null,null,null,null,null,null,null,null,"FPIPMP6207 - James Stapleton STATEWIDE IPM PROGRAM PPM ONLY "]
[null,null,null,null,null,null,null,null,null,null,null,null,null,null,null,"FPKERN6055 - Julie Finzel UCCE KERN COUNTY PPM ONLY "]
[null,null,null,null,null,null,null,null,null,null,null,null,null,null,null,"FPLAAS0469 - Milmon Harrison AFRICAN AMERICAN AFRICAN STDS PPM Only "]
[null,null,null,null,null,null,null,null,null,null,null,null,null,null,null,"FPLAHI1271 - Katharine Burnett ART And ART HISTORY PPM Only "]
[null,null,null,null,null,null,null,null,null,null,null,null,null,null,null,"FPLAHI5180 - Conrad Atkinson ART And ART HISTORY PPM Only "]
[null,null,null,null,null,null,null,null,null,null,null,null,null,null,null,"FPLAMS3021 - Eleftheria Arapoglou AMERICAN STUDIES PPM Only "]
[null,null,null,null,null,null,null,null,null,null,null,null,null,null,null,"FPLANT0971 - John Darwent ANTHROPOLOGY PPM Only "]
[null,null,null,null,null,null,null,null,null,null,null,null,null,null,null,"FPLANT3357 - Bruce Winterhalder ANTHROPOLOGY PPM Only "]
[null,null,null,null,null,null,null,null,null,null,null,null,null,null,null,"FPLANT3376 - Suzana Sawyer ANTHROPOLOGY PPM Only "]
[null,null,null,null,null,null,null,null,null,null,null,null,null,null,null,"FPLASA0033 - Kent Wong ASIAN AMERICAN PPM Only "]
[null,null,null,null,null,null,null,null,null,null,null,null,null,null,null,"FPLAST3227 - Darrin Martin ART And ART HISTORY PPM Only "]
[null,null,null,null,null,null,null,null,null,null,null,null,null,null,null,"FPLCDM3881 - Lynn Hershman CINEMA And DIGITAL MEDIA PPM Only "]
[null,null,null,null,null,null,null,null,null,null,null,null,null,null,null,"FPLCHE0476 - Kyle Crabtree CHEMISTRY PPM Only "]
[null,null,null,null,null,null,null,null,null,null,null,null,null,null,null,"FPLCHE1594 - Susan Kauzlarich CHEMISTRY PPM Only "]
[null,null,null,null,null,null,null,null,null,null,null,null,null,null,null,"FPLCHE2885 - Carlito Lebrilla CHEMISTRY PPM Only "]
[null,null,null,null,null,null,null,null,null,null,null,null,null,null,null,"FPLCHE4346 - Justin Siegel CHEMISTRY PPM Only "]
[null,null,null,null,null,null,null,null,null,null,null,null,null,null,null,"FPLCHI1115 - Maceo Montoya CHICANO STUDIES PPM Only "]
[null,null,null,null,null,null,null,null,null,null,null,null,null,null,null,"FPLCLA0100 - Elizabeth G Harvey CLASSICS PPM Only "]
[null,null,null,null,null,null,null,null,null,null,null,null,null,null,null,"FPLCLC5751 - Jae Yong Suk LIGHTING TECHNOLOGY CENTER PPM Only "]
[null,null,null,null,null,null,null,null,null,null,null,null,null,null,null,"FPLCMN1536 - Narine Yegiyan COMMUNICATION PPM Only "]
[null,null,null,null,null,null,null,null,null,null,null,null,null,null,null,"FPLCMN4986 - Drew Cingel COMMUNICATION PPM Only "]
[null,null,null,null,null,null,null,null,null,null,null,null,null,null,null,"FPLCOM1691 - Michael Subialka COMPARATIVE LITERATURE PPM Only "]
[null,null,null,null,null,null,null,null,null,null,null,null,null,null,null,"FPLDES0071 - Rosemary Kelly DEPARTMENT OF DESIGN PPM Only "]
[null,null,null,null,null,null,null,null,null,null,null,null,null,null,null,"FPLDES3125 - Morissa Rubin DEPARTMENT OF DESIGN PPM Only "]
[null,null,null,null,null,null,null,null,null,null,null,null,null,null,null,"FPLDES3137 - Timothy Mcneil DEPARTMENT OF DESIGN PPM Only "]
[null,null,null,null,null,null,null,null,null,null,null,null,null,null,null,"FPLDES5751 - Jae Yong Suk DEPARTMENT OF DESIGN PPM Only "]
[null,null,null,null,null,null,null,null,null,null,null,null,null,null,null,"FPLDRA3298 - Maggie Morgan THEATRE And DANCE PPM Only "]
[null,null,null,null,null,null,null,null,null,null,null,null,null,null,null,"FPLEAL1559 - I Chia Lee EAST ASIAN LANG And CULTURES PPM Only "]
[null,null,null,null,null,null,null,null,null,null,null,null,null,null,null,"FPLEAL4682 - Yuming He EAST ASIAN LANG And CULTURES PPM Only "]
[null,null,null,null,null,null,null,null,null,null,null,null,null,null,null,"FPLECN1255 - Hiromitsu Kaneda ECONOMICS PPM Only "]
[null,null,null,null,null,null,null,null,null,null,null,null,null,null,null,"FPLECN3391 - Alan Olmstead ECONOMICS PPM Only "]
[null,null,null,null,null,null,null,null,null,null,null,null,null,null,null,"FPLECN4537 - Derek Stimel ECONOMICS PPM Only "]
[null,null,null,null,null,null,null,null,null,null,null,null,null,null,null,"FPLENL0409 - Linda Morris ENGLISH PPM Only "]
[null,null,null,null,null,null,null,null,null,null,null,null,null,null,null,"FPLENL1835 - Peter Dale ENGLISH PPM Only "]
[null,null,null,null,null,null,null,null,null,null,null,null,null,null,null,"FPLENL3072 - Kathleen Frederickson ENGLISH PPM Only "]
[null,null,null,null,null,null,null,null,null,null,null,null,null,null,null,"FPLENL4417 - W Schleiner ENGLISH PPM Only "]
[null,null,null,null,null,null,null,null,null,null,null,null,null,null,null,"FPLENL6267 - Ruben Zecena ENGLISH PPM Only "]
[null,null,null,null,null,null,null,null,null,null,null,null,null,null,null,"FPLEPS2103 - Robert Zierenberg EARTH And PLANETARY SCIENCES PPM Only "]
[null,null,null,null,null,null,null,null,null,null,null,null,null,null,null,"FPLEPS4562 - James Mcclain EARTH And PLANETARY SCIENCES PPM Only "]
[null,null,null,null,null,null,null,null,null,null,null,null,null,null,null,"FPLFAI1691 - Michael Subialka FRENCH And ITALIAN PPM Only "]
[null,null,null,null,null,null,null,null,null,null,null,null,null,null,null,"FPLFAI1975 - Jay Grossi FRENCH And ITALIAN PPM Only "]
[null,null,null,null,null,null,null,null,null,null,null,null,null,null,null,"FPLGAR0554 - Olga Stuchebrukhov GERMAN And RUSSIAN PPM Only "]
[null,null,null,null,null,null,null,null,null,null,null,null,null,null,null,"FPLGER5012 - Jaimey R Fisher German PPM Only "]
[null,null,null,null,null,null,null,null,null,null,null,null,null,null,null,"FPLHCS0052 - Harvey Dong HISTORY PROJECT UCD PPM Only "]
[null,null,null,null,null,null,null,null,null,null,null,null,null,null,null,"FPLHIS1768 - Thomas Holloway HISTORY PPM Only "]
[null,null,null,null,null,null,null,null,null,null,null,null,null,null,null,"FPLHIS3071 - Rachel Jean Baptiste HISTORY PPM Only "]
[null,null,null,null,null,null,null,null,null,null,null,null,null,null,null,"FPLHIS4498 - Omnia El Shakry HISTORY PPM Only "]
[null,null,null,null,null,null,null,null,null,null,null,null,null,null,null,"FPLIBR1776 - Daryl Morrison UCDLIBRARY PPM Only "]
[null,null,null,null,null,null,null,null,null,null,null,null,null,null,null,"FPLIBR4449 - Gail Nichols UCDLIBRARY PPM Only "]
[null,null,null,null,null,null,null,null,null,null,null,null,null,null,null,"FPLLAW0504 - Menesh Patel SCHOOL OF LAW PPM Only "]
[null,null,null,null,null,null,null,null,null,null,null,null,null,null,null,"FPLLAW1657 - Amagda Perez SCHOOL OF LAW PPM Only "]
[null,null,null,null,null,null,null,null,null,null,null,null,null,null,null,"FPLLAW2527 - Aaron Tang SCHOOL OF LAW PPM Only "]
[null,null,null,null,null,null,null,null,null,null,null,null,null,null,null,"FPLLAW3402 - John Ayer SCHOOL OF LAW PPM Only "]
[null,null,null,null,null,null,null,null,null,null,null,null,null,null,null,"FPLLAW4713 - Lynn Starr SCHOOL OF LAW PPM Only "]
[null,null,null,null,null,null,null,null,null,null,null,null,null,null,null,"FPLLAW5597 - Lawrence Lin SCHOOL OF LAW PPM Only "]
[null,null,null,null,null,null,null,null,null,null,null,null,null,null,null,"FPLLAW5880 - Wadie Edward Said SCHOOL OF LAW PPM Only "]
[null,null,null,null,null,null,null,null,null,null,null,null,null,null,null,"FPLLAW5987 - Suzanne Miller SCHOOL OF LAW PPM Only "]
[null,null,null,null,null,null,null,null,null,null,null,null,null,null,null,"FPLLIN3447 - John Hawkins LINGUISTICS PPM Only "]
[null,null,null,null,null,null,null,null,null,null,null,null,null,null,null,"FPLMAT0791 - T Tamura MATHEMATICS PPM Only "]
[null,null,null,null,null,null,null,null,null,null,null,null,null,null,null,"FPLMAT1652 - Kurt Kreith MATHEMATICS PPM Only "]
[null,null,null,null,null,null,null,null,null,null,null,null,null,null,null,"FPLMAT2371 - William Tavernetti MATHEMATICS PPM Only "]
[null,null,null,null,null,null,null,null,null,null,null,null,null,null,null,"FPLMAT3921 - Yonggyu Lee MATHEMATICS PPM Only "]
[null,null,null,null,null,null,null,null,null,null,null,null,null,null,null,"FPLMAT4845 - Naoki Saito MATHEMATICS PPM Only "]
[null,null,null,null,null,null,null,null,null,null,null,null,null,null,null,"FPLMAT5773 - Luze Xu MATHEMATICS PPM Only "]
[null,null,null,null,null,null,null,null,null,null,null,null,null,null,null,"FPLMSA2600 - Shayma Hassouna MIDDLE EAST SOUTH ASIA PROGRAM PPM Only "]
[null,null,null,null,null,null,null,null,null,null,null,null,null,null,null,"FPLMUS1132 - I Hui Chen MUSIC PPM Only "]
[null,null,null,null,null,null,null,null,null,null,null,null,null,null,null,"FPLMUS3089 - Matilda Hofman MUSIC PPM Only "]
[null,null,null,null,null,null,null,null,null,null,null,null,null,null,null,"FPLMUS5120 - Beth Levy MUSIC PPM Only "]
[null,null,null,null,null,null,null,null,null,null,null,null,null,null,null,"FPLNAS0530 - Jessica Perea NATIVE AMERICAN STUDIES PPM Only "]
[null,null,null,null,null,null,null,null,null,null,null,null,null,null,null,"FPLOSA6086 - Ashley Hooper UCCE LOS ANGELES COUNTY PPM ONLY "]
[null,null,null,null,null,null,null,null,null,null,null,null,null,null,null,"FPLPHI2419 - Adam Sennet PHILOSOPHY PPM Only "]
[null,null,null,null,null,null,null,null,null,null,null,null,null,null,null,"FPLPHI5451 - David Glick PHILOSOPHY PPM Only "]
[null,null,null,null,null,null,null,null,null,null,null,null,null,null,null,"FPLPHI5457 - Hannah Tierney PHILOSOPHY PPM Only "]
[null,null,null,null,null,null,null,null,null,null,null,null,null,null,null,"FPLPHY0995 - Matt Richter PHYSICS PPM Only "]
[null,null,null,null,null,null,null,null,null,null,null,null,null,null,null,"FPLPHY2021 - Inna Vishik PHYSICS PPM Only "]
[null,null,null,null,null,null,null,null,null,null,null,null,null,null,null,"FPLPHY3277 - Sudhindra Tripathi PHYSICS PPM Only "]
[null,null,null,null,null,null,null,null,null,null,null,null,null,null,null,"FPLPHY4193 - Claude Garrod PHYSICS PPM Only "]
[null,null,null,null,null,null,null,null,null,null,null,null,null,null,null,"FPLPOL0039 - Lauren Peritz POLITICAL SCIENCE PPM Only "]
[null,null,null,null,null,null,null,null,null,null,null,null,null,null,null,"FPLPOL1356 - Richard W Gable POLITICAL SCIENCE PPM Only "]
[null,null,null,null,null,null,null,null,null,null,null,null,null,null,null,"FPLPOL3812 - Lauren Young POLITICAL SCIENCE PPM Only "]
[null,null,null,null,null,null,null,null,null,null,null,null,null,null,null,"FPLPSC0486 - Camelia Hostinar Caudill PSYCHOLOGY PPM Only "]
[null,null,null,null,null,null,null,null,null,null,null,null,null,null,null,"FPLPSC1930 - Randall C Oreilly PSYCHOLOGY PPM Only "]
[null,null,null,null,null,null,null,null,null,null,null,null,null,null,null,"FPLPSC3211 - Fernanda Ferreira PSYCHOLOGY PPM Only "]
[null,null,null,null,null,null,null,null,null,null,null,null,null,null,null,"FPLPSC4396 - Priscilla San Souci PSYCHOLOGY PPM Only "]
[null,null,null,null,null,null,null,null,null,null,null,null,null,null,null,"FPLPSC6275 - Tomiko Yoneda PSYCHOLOGY PPM Only "]
[null,null,null,null,null,null,null,null,null,null,null,null,null,null,null,"FPLSAP0593 - Claudia Sanchez Gutierrez SPANISH And PORTUGUESE PPM Only "]
[null,null,null,null,null,null,null,null,null,null,null,null,null,null,null,"FPLSAP2677 - Ana Peluffo SPANISH And PORTUGUESE PPM Only "]
[null,null,null,null,null,null,null,null,null,null,null,null,null,null,null,"FPLSOC0657 - John Hall SOCIOLOGY PPM Only "]
[null,null,null,null,null,null,null,null,null,null,null,null,null,null,null,"FPLSOC0852 - Victoria Smith SOCIOLOGY PPM Only "]
[null,null,null,null,null,null,null,null,null,null,null,null,null,null,null,"FPLSOC2687 - Stephanie L Mudge SOCIOLOGY PPM Only "]
[null,null,null,null,null,null,null,null,null,null,null,null,null,null,null,"FPLSOC4773 - Courtney Caviness SOCIOLOGY PPM Only "]
[null,null,null,null,null,null,null,null,null,null,null,null,null,null,null,"FPLSTA2441 - Maxime Pouokam STATISTICS PPM Only "]
[null,null,null,null,null,null,null,null,null,null,null,null,null,null,null,"FPLSTA4499 - JoAnna Whitener STATISTICS PPM Only "]
[null,null,null,null,null,null,null,null,null,null,null,null,null,null,null,"FPLSTS2214 - Emily Rose Merchant SCIENCE And TECHNOLOGY STUDIES PPM Only "]
[null,null,null,null,null,null,null,null,null,null,null,null,null,null,null,"FPLUIS6223 - Liliana Vega UCCE SAN LUIS OBISPO COUNTY PPM ONLY "]
[null,null,null,null,null,null,null,null,null,null,null,null,null,null,null,"FPLUWP1214 - Nancy Pearsall UNIVERSITY WRITING PROGRAM PPM Only "]
[null,null,null,null,null,null,null,null,null,null,null,null,null,null,null,"FPLUWP2029 - Agnes A Stark UNIVERSITY WRITING PROGRAM PPM Only "]
[null,null,null,null,null,null,null,null,null,null,null,null,null,null,null,"FPLUWP2695 - Shannah Lester UNIVERSITY WRITING PROGRAM PPM Only "]
[null,null,null,null,null,null,null,null,null,null,null,null,null,null,null,"FPLUWP3850 - Katherine Gossett UNIVERSITY WRITING PROGRAM PPM Only "]
[null,null,null,null,null,null,null,null,null,null,null,null,null,null,null,"FPLUWP4992 - Mary Bly UNIVERSITY WRITING PROGRAM PPM Only "]
[null,null,null,null,null,null,null,null,null,null,null,null,null,null,null,"FPMADM0628 - Luz Guerrero MED Deans Office PPM Only "]
[null,null,null,null,null,null,null,null,null,null,null,null,null,null,null,"FPMADM4278 - Sara Choudhry MED Deans Office PPM Only "]
[null,null,null,null,null,null,null,null,null,null,null,null,null,null,null,"FPMANS0829 - Cristina Chandler MED Anesth And Pain Medicine PPM Only "]
[null,null,null,null,null,null,null,null,null,null,null,null,null,null,null,"FPMANS2217 - Casey Stondell MED Anesth And Pain Medicine PPM Only "]
[null,null,null,null,null,null,null,null,null,null,null,null,null,null,null,"FPMANS2392 - Marissa Vadi MED Anesth And Pain Medicine PPM Only "]
[null,null,null,null,null,null,null,null,null,null,null,null,null,null,null,"FPMANS3496 - Matthew Grow MED Anesth And Pain Medicine PPM Only "]
[null,null,null,null,null,null,null,null,null,null,null,null,null,null,null,"FPMANS4369 - Sarah Maclean MED Anesth And Pain Medicine PPM Only "]
[null,null,null,null,null,null,null,null,null,null,null,null,null,null,null,"FPMANS5465 - Paul Frank MED Anesth And Pain Medicine PPM Only "]
[null,null,null,null,null,null,null,null,null,null,null,null,null,null,null,"FPMARN6212 - Steven Swain UCCE MARIN COUNTY PPM ONLY "]
[null,null,null,null,null,null,null,null,null,null,null,null,null,null,null,"FPMARO4446 - Jian Jian Li MED Radiation Oncology PPM Only "]
[null,null,null,null,null,null,null,null,null,null,null,null,null,null,null,"FPMBIO2189 - J Hershey MED Biochem And Molecular Med PPM Only "]
[null,null,null,null,null,null,null,null,null,null,null,null,null,null,null,"FPMBIO5042 - Megan Dennis MED Biochem And Molecular Med PPM Only "]
[null,null,null,null,null,null,null,null,null,null,null,null,null,null,null,"FPMCEL0641 - John Hess MED Cell Biology And Human Anat PPM Only "]
[null,null,null,null,null,null,null,null,null,null,null,null,null,null,null,"FPMCEL4616 - Li En Jao MED Cell Biology And Human Anat PPM Only "]
[null,null,null,null,null,null,null,null,null,null,null,null,null,null,null,"FPMDER1773 - Samuel Hwang MED Dermatology PPM Only "]
[null,null,null,null,null,null,null,null,null,null,null,null,null,null,null,"FPMDER4304 - Margaret Parsons MED Dermatology PPM Only "]
[null,null,null,null,null,null,null,null,null,null,null,null,null,null,null,"FPMDER5555 - Philip Cohen MED Dermatology PPM Only "]
[null,null,null,null,null,null,null,null,null,null,null,null,null,null,null,"FPMEPM0754 - Lorena Garcia MED Public Health Sciences PPM Only "]
[null,null,null,null,null,null,null,null,null,null,null,null,null,null,null,"FPMEPM1859 - Donald Lyman MED Public Health Sciences PPM Only "]
[null,null,null,null,null,null,null,null,null,null,null,null,null,null,null,"FPMEPM3393 - Maria Lucia Pecoraro MED Public Health Sciences PPM Only "]
[null,null,null,null,null,null,null,null,null,null,null,null,null,null,null,"FPMEPM3419 - Melanie Dove MED Public Health Sciences PPM Only "]
[null,null,null,null,null,null,null,null,null,null,null,null,null,null,null,"FPMEPM4357 - Robert W Davis MED Public Health Sciences PPM Only "]
[null,null,null,null,null,null,null,null,null,null,null,null,null,null,null,"FPMEPM5563 - James Greene MED Public Health Sciences PPM Only "]
[null,null,null,null,null,null,null,null,null,null,null,null,null,null,null,"FPMERM0087 - Rose Kagawa MED Emergency Medicine PPM Only "]
[null,null,null,null,null,null,null,null,null,null,null,null,null,null,null,"FPMERM1264 - John Richards MED Emergency Medicine PPM Only "]
[null,null,null,null,null,null,null,null,null,null,null,null,null,null,null,"FPMERM2078 - Larissa May MED Emergency Medicine PPM Only "]
[null,null,null,null,null,null,null,null,null,null,null,null,null,null,null,"FPMERM2923 - Gilbert Arroyo MED Emergency Medicine PPM Only "]
[null,null,null,null,null,null,null,null,null,null,null,null,null,null,null,"FPMERM3483 - Sarah Heringer MED Emergency Medicine PPM Only "]
[null,null,null,null,null,null,null,null,null,null,null,null,null,null,null,"FPMERM3981 - Michael Luszczak MED Emergency Medicine PPM Only "]
[null,null,null,null,null,null,null,null,null,null,null,null,null,null,null,"FPMERM5223 - Christine McBeth MED Emergency Medicine PPM Only "]
[null,null,null,null,null,null,null,null,null,null,null,null,null,null,null,"FPMERM5812 - Cosby Arnold MED Emergency Medicine PPM Only "]
[null,null,null,null,null,null,null,null,null,null,null,null,null,null,null,"FPMFCM0724 - Donna Holscher MED Family And Community Med PPM Only "]
[null,null,null,null,null,null,null,null,null,null,null,null,null,null,null,"FPMFCM1595 - Howard Coren MED Family And Community Med PPM Only "]
[null,null,null,null,null,null,null,null,null,null,null,null,null,null,null,"FPMFCM2345 - Alicia Agnoli MED Family And Community Med PPM Only "]
[null,null,null,null,null,null,null,null,null,null,null,null,null,null,null,"FPMFCM3036 - Grace Amadi MED Family And Community Med PPM Only "]
[null,null,null,null,null,null,null,null,null,null,null,null,null,null,null,"FPMFCM3575 - Amy Sekhon MED Family And Community Med PPM Only "]
[null,null,null,null,null,null,null,null,null,null,null,null,null,null,null,"FPMFCM3606 - Sheila Attaie MED Family And Community Med PPM Only "]
[null,null,null,null,null,null,null,null,null,null,null,null,null,null,null,"FPMFCM4159 - Kris Srinivasan MED Family And Community Med PPM Only "]
[null,null,null,null,null,null,null,null,null,null,null,null,null,null,null,"FPMFCM4615 - Barbara Spinelli MED Family And Community Med PPM Only "]
[null,null,null,null,null,null,null,null,null,null,null,null,null,null,null,"FPMFCM5484 - Frances Southwick MED Family And Community Med PPM Only "]
[null,null,null,null,null,null,null,null,null,null,null,null,null,null,null,"FPMFCM5797 - April Leonardo MED Family And Community Med PPM Only "]
[null,null,null,null,null,null,null,null,null,null,null,null,null,null,null,"FPMFCM5965 - Gabriel Briscoe MED Family And Community Med PPM Only "]
[null,null,null,null,null,null,null,null,null,null,null,null,null,null,null,"FPMHPH2167 - Aldrin Gomes MED Physiology And Membrane Biol PPM Only "]
[null,null,null,null,null,null,null,null,null,null,null,null,null,null,null,"FPMHPH4226 - Keith Baar MED Physiology And Membrane Biol PPM Only "]
[null,null,null,null,null,null,null,null,null,null,null,null,null,null,null,"FPMINT1000 - Nayereh Pezeshkian MED Int Med Admin PPM Only "]
[null,null,null,null,null,null,null,null,null,null,null,null,null,null,null,"FPMINT2438 - Pranay Bahuguna MED Int Med Admin PPM Only "]
[null,null,null,null,null,null,null,null,null,null,null,null,null,null,null,"FPMINT3904 - Debora Paterniti MED Internal Medicine PPM Only "]
[null,null,null,null,null,null,null,null,null,null,null,null,null,null,null,"FPMINT5263 - Jacqueline Abdalla MED Int Med Admin PPM Only "]
[null,null,null,null,null,null,null,null,null,null,null,null,null,null,null,"FPMINT5888 - Gurjeet Duhra MED Int Med Admin PPM Only "]
[null,null,null,null,null,null,null,null,null,null,null,null,null,null,null,"FPMMIC1160 - Jonathan Eisen MED Medical Microbiology And Imm PPM Only "]
[null,null,null,null,null,null,null,null,null,null,null,null,null,null,null,"FPMMIC5687 - Jogender Tushir Singh MED Medical Microbiology And Imm PPM Only "]
[null,null,null,null,null,null,null,null,null,null,null,null,null,null,null,"FPMNDR5676 - Sanchita Bhatnagar MNDR MIND Institute PPM Only "]
[null,null,null,null,null,null,null,null,null,null,null,null,null,null,null,"FPMNEU0014 - Sasikanth Gorantla MED Neurology PPM-1 "]
[null,null,null,null,null,null,null,null,null,null,null,null,null,null,null,"FPMNEU0070 - Nina Dronkers MED Neurology PPM Only "]
[null,null,null,null,null,null,null,null,null,null,null,null,null,null,null,"FPMNEU1962 - Barry Tharp MED Neurology PPM Only "]
[null,null,null,null,null,null,null,null,null,null,null,null,null,null,null,"FPMNEU2645 - Kyle Fink MED Neurology PPM Only "]
[null,null,null,null,null,null,null,null,null,null,null,null,null,null,null,"FPMNEU3574 - Olivia C Tong MED Neurology PPM Only "]
[null,null,null,null,null,null,null,null,null,null,null,null,null,null,null,"FPMNEU4997 - Alan Yee MED Neurology PPM Only "]
[null,null,null,null,null,null,null,null,null,null,null,null,null,null,null,"FPMNEU5803 - Rochelle Frank MED Neurology PPM Only "]
[null,null,null,null,null,null,null,null,null,null,null,null,null,null,null,"FPMNSG0705 - Kee Kim MED Neurological Surgery PPM Only "]
[null,null,null,null,null,null,null,null,null,null,null,null,null,null,null,"FPMNSG3478 - Griffith Harsh MED Neurological Surgery PPM Only "]
[null,null,null,null,null,null,null,null,null,null,null,null,null,null,null,"FPMNSG5755 - Jonghoon Kim MED Neurological Surgery PPM Only "]
[null,null,null,null,null,null,null,null,null,null,null,null,null,null,null,"FPMOBG1110 - Lara Arndal MED Obstetrics And Gynecology PPM Only "]
[null,null,null,null,null,null,null,null,null,null,null,null,null,null,null,"FPMOBG2406 - Herman Hedriana MED Obstetrics And Gynecology PPM Only "]
[null,null,null,null,null,null,null,null,null,null,null,null,null,null,null,"FPMOBG3499 - Michael Trifiro MED Obstetrics And Gynecology PPM Only "]
[null,null,null,null,null,null,null,null,null,null,null,null,null,null,null,"FPMOBG4758 - Richard Sweet MED Obstetrics And Gynecology PPM Only "]
[null,null,null,null,null,null,null,null,null,null,null,null,null,null,null,"FPMODO0001 - SIMARJEET SINGH UCCE MODOC COUNTY "]
[null,null,null,null,null,null,null,null,null,null,null,null,null,null,null,"FPMOPH0931 - Marie Burns MED Eye Center PPM Only "]
[null,null,null,null,null,null,null,null,null,null,null,null,null,null,null,"FPMOPH1020 - Linda Margulies MED Eye Center PPM Only "]
[null,null,null,null,null,null,null,null,null,null,null,null,null,null,null,"FPMOPH2729 - David Chu MED Eye Center PPM Only "]
[null,null,null,null,null,null,null,null,null,null,null,null,null,null,null,"FPMOPH4184 - John Zeiter MED Eye Center PPM Only "]
[null,null,null,null,null,null,null,null,null,null,null,null,null,null,null,"FPMOPH5292 - Parisa Emami Naeini MED Eye Center PPM Only "]
[null,null,null,null,null,null,null,null,null,null,null,null,null,null,null,"FPMORT1048 - Christopher Kreulen MED Orthopaedic Surgery PPM Only "]
[null,null,null,null,null,null,null,null,null,null,null,null,null,null,null,"FPMORT1810 - Joel Lerman MED Orthopaedic Surgery PPM Only "]
[null,null,null,null,null,null,null,null,null,null,null,null,null,null,null,"FPMORT3309 - Philip Wolinsky MED Orthopaedic Surgery PPM Only "]
[null,null,null,null,null,null,null,null,null,null,null,null,null,null,null,"FPMORT5025 - Anh Le MED Orthopaedic Surgery PPM Only "]
[null,null,null,null,null,null,null,null,null,null,null,null,null,null,null,"FPMOTO1456 - Erynne Faucett MED Otolaryngology PPM Only "]
[null,null,null,null,null,null,null,null,null,null,null,null,null,null,null,"FPMOTO2909 - Edward Strong MED Otolaryngology PPM Only "]
[null,null,null,null,null,null,null,null,null,null,null,null,null,null,null,"FPMOTO4907 - Jonathan Sykes MED Otolaryngology PPM Only "]
[null,null,null,null,null,null,null,null,null,null,null,null,null,null,null,"FPMPAD2689 - Marcio Malogolowkin MED Ped HematologyOncologyPPM Only "]
[null,null,null,null,null,null,null,null,null,null,null,null,null,null,null,"FPMPAT1537 - Veronica Martinez Cerdeno MED Pathology And Lab Medicine PPM Only "]
[null,null,null,null,null,null,null,null,null,null,null,null,null,null,null,"FPMPAT2723 - Konstantinos Zarbalis MED Pathology And Lab Medicine PPM Only "]
[null,null,null,null,null,null,null,null,null,null,null,null,null,null,null,"FPMPAT4080 - Hwai Jong Cheng MED Pathology And Lab Medicine PPM Only "]
[null,null,null,null,null,null,null,null,null,null,null,null,null,null,null,"FPMPAT5220 - Renu Gahlaut MED Pathology And Lab Medicine PPM Only "]
[null,null,null,null,null,null,null,null,null,null,null,null,null,null,null,"FPMPAT5221 - Rajib Gupta MED Pathology And Lab Medicine PPM Only "]
[null,null,null,null,null,null,null,null,null,null,null,null,null,null,null,"FPMPAT8093 - Jonathan Hughes MED Pathology And Lab Medicine PPM Only "]
[null,null,null,null,null,null,null,null,null,null,null,null,null,null,null,"FPMPED0004 - PEDIATRICS PRIOR YEAR Dr. Pundi start up $75K exp 6.30.29 "]
[null,null,null,null,null,null,null,null,null,null,null,null,null,null,null,"FPMPED0454 - Jeanny Park MED Pediatrics PPM Only "]
[null,null,null,null,null,null,null,null,null,null,null,null,null,null,null,"FPMPED0797 - Theresa Murdock Vlautin MED Pediatrics PPM Only "]
[null,null,null,null,null,null,null,null,null,null,null,null,null,null,null,"FPMPED1070 - Daphne Say MED Pediatrics PPM Only "]
[null,null,null,null,null,null,null,null,null,null,null,null,null,null,null,"FPMPED1572 - Ritu Cheema MED Pediatrics PPM Only "]
[null,null,null,null,null,null,null,null,null,null,null,null,null,null,null,"FPMPED2037 - Sean Dugan MED Pediatrics PPM Only "]
[null,null,null,null,null,null,null,null,null,null,null,null,null,null,null,"FPMPED2578 - Tisha K Yeh MED Pediatrics PPM Only "]
[null,null,null,null,null,null,null,null,null,null,null,null,null,null,null,"FPMPED2948 - Shiwaji Pawar MED Pediatrics PPM Only "]
[null,null,null,null,null,null,null,null,null,null,null,null,null,null,null,"FPMPED3366 - Jason Leu MED Pediatrics PPM Only "]
[null,null,null,null,null,null,null,null,null,null,null,null,null,null,null,"FPMPED3865 - Abigail Fruzza MED Pediatrics PPM Only "]
[null,null,null,null,null,null,null,null,null,null,null,null,null,null,null,"FPMPED4466 - C Abildgaard MED Pediatrics PPM Only "]
[null,null,null,null,null,null,null,null,null,null,null,null,null,null,null,"FPMPED4831 - Jong Hee Chung MED Pediatrics PPM Only "]
[null,null,null,null,null,null,null,null,null,null,null,null,null,null,null,"FPMPED5351 - Bruce Blumberg MED Pediatrics PPM Only "]
[null,null,null,null,null,null,null,null,null,null,null,null,null,null,null,"FPMPED5635 - Christina Sollinger MED Pediatrics PPM Only "]
[null,null,null,null,null,null,null,null,null,null,null,null,null,null,null,"FPMPED5636 - Daniel Cortez MED Pediatrics PPM Only "]
[null,null,null,null,null,null,null,null,null,null,null,null,null,null,null,"FPMPED5894 - Sheila Saguinsin MED Pediatrics PPM Only "]
[null,null,null,null,null,null,null,null,null,null,null,null,null,null,null,"FPMPED6316 - Nandita Sharma MED Pediatrics PPM Only "]
[null,null,null,null,null,null,null,null,null,null,null,null,null,null,null,"FPMPHA0952 - Manuel Navedo Morales MED Pharmacology PPM Only "]
[null,null,null,null,null,null,null,null,null,null,null,null,null,null,null,"FPMPHA4030 - Madeline Nieves Cintron MED Pharmacology PPM Only "]
[null,null,null,null,null,null,null,null,null,null,null,null,null,null,null,"FPMPMR0742 - Craig Mcdonald MED Physical Medicine And Rehab PPM Only "]
[null,null,null,null,null,null,null,null,null,null,null,null,null,null,null,"FPMPMR3346 - Alexandra Warrick MED Physical Medicine And Rehab PPM Only "]
[null,null,null,null,null,null,null,null,null,null,null,null,null,null,null,"FPMPSY0299 - Sarah Hays MED Psychiatry And Behav Sci PPM Only "]
[null,null,null,null,null,null,null,null,null,null,null,null,null,null,null,"FPMPSY0747 - Glen Xiong MED Psychiatry And Behav Sci PPM Only "]
[null,null,null,null,null,null,null,null,null,null,null,null,null,null,null,"FPMPSY1224 - Angela John Thurman MED Psychiatry And Behav Sci PPM Only "]
[null,null,null,null,null,null,null,null,null,null,null,null,null,null,null,"FPMPSY1735 - James Bourgeois MED Psychiatry And Behav Sci PPM Only "]
[null,null,null,null,null,null,null,null,null,null,null,null,null,null,null,"FPMPSY2363 - Barbara McDermott MED Psychiatry And Behav Sci PPM Only "]
[null,null,null,null,null,null,null,null,null,null,null,null,null,null,null,"FPMPSY2867 - Sarah Jackson MED Psychiatry And Behav Sci PPM Only "]
[null,null,null,null,null,null,null,null,null,null,null,null,null,null,null,"FPMPSY3294 - Michael Meek MED Psychiatry And Behav Sci PPM Only "]
[null,null,null,null,null,null,null,null,null,null,null,null,null,null,null,"FPMPSY4003 - Marlene Mirassou MED Psychiatry And Behav Sci PPM Only "]
[null,null,null,null,null,null,null,null,null,null,null,null,null,null,null,"FPMPSY4666 - David Smith MED Psychiatry And Behav Sci PPM Only "]
[null,null,null,null,null,null,null,null,null,null,null,null,null,null,null,"FPMPSY4672 - Amy Barnhorst MED Psychiatry And Behav Sci PPM Only "]
[null,null,null,null,null,null,null,null,null,null,null,null,null,null,null,"FPMPSY4950 - Christopher Horne MED Psychiatry And Behav Sci PPM Only "]
[null,null,null,null,null,null,null,null,null,null,null,null,null,null,null,"FPMPSY5213 - Jessica Ann Ferranti MED Psychiatry And Behav Sci PPM Only "]
[null,null,null,null,null,null,null,null,null,null,null,null,null,null,null,"FPMPSY5719 - Ligia Berci MED Psychiatry And Behav Sci PPM Only "]
[null,null,null,null,null,null,null,null,null,null,null,null,null,null,null,"FPMRAD0841 - Shannon Navarro MED Radiology PPM Only "]
[null,null,null,null,null,null,null,null,null,null,null,null,null,null,null,"FPMRAD1492 - Brian Dahlin MED Radiology PPM Only "]
[null,null,null,null,null,null,null,null,null,null,null,null,null,null,null,"FPMRAD2833 - Karen Lindfors MED Radiology PPM Only "]
[null,null,null,null,null,null,null,null,null,null,null,null,null,null,null,"FPMRAD4422 - Brandon Doskocil MED Radiology PPM Only "]
[null,null,null,null,null,null,null,null,null,null,null,null,null,null,null,"FPMRAD5188 - Jaideep Sohi MED Radiology PPM Only "]
[null,null,null,null,null,null,null,null,null,null,null,null,null,null,null,"FPMRAD5947 - Tracy Yarbrough MED Radiology PPM Only "]
[null,null,null,null,null,null,null,null,null,null,null,null,null,null,null,"FPMSUR0905 - Junichiro Sageshima MED Surgery PPM Only "]
[null,null,null,null,null,null,null,null,null,null,null,null,null,null,null,"FPMSUR1759 - Hazem Shamseddeen MED Surgery PPM Only "]
[null,null,null,null,null,null,null,null,null,null,null,null,null,null,null,"FPMSUR2975 - Misty Humphries MED Surgery PPM Only "]
[null,null,null,null,null,null,null,null,null,null,null,null,null,null,null,"FPMSUR3659 - Sabrina Evans MED Surgery PPM Only "]
[null,null,null,null,null,null,null,null,null,null,null,null,null,null,null,"FPMSUR4284 - Granger B Wong MED Surgery PPM Only "]
[null,null,null,null,null,null,null,null,null,null,null,null,null,null,null,"FPMSUR5239 - Eleanor E Curtis MED Surgery PPM Only "]
[null,null,null,null,null,null,null,null,null,null,null,null,null,null,null,"FPMSUR5275 - Herbert Berkoff MED Surgery PPM Only "]
[null,null,null,null,null,null,null,null,null,null,null,null,null,null,null,"FPMSUR5566 - Jason Heard MED Surgery PPM Only "]
[null,null,null,null,null,null,null,null,null,null,null,null,null,null,null,"FPMSUR5978 - Ian Powelson MED Surgery PPM Only "]
[null,null,null,null,null,null,null,null,null,null,null,null,null,null,null,"FPMURO4073 - Paramita Ghosh MED Urologic Surgery PPM Only "]
[null,null,null,null,null,null,null,null,null,null,null,null,null,null,null,"FPNBPS5996 - Mary Lu Arpaia UCR CE BOTANY PLANT SCIENCES PPM ONLY "]
[null,null,null,null,null,null,null,null,null,null,null,null,null,null,null,"FPNMPP6175 - Alexander Putman UCR PLANT PATH MICROBIOLOGY PPM ONLY "]
[null,null,null,null,null,null,null,null,null,null,null,null,null,null,null,"FPNPIN6179 - Suzanne Rauzon NUTRITION POLICY INSTITUTE PPM ONLY "]
[null,null,null,null,null,null,null,null,null,null,null,null,null,null,null,"FPNURS1777 - Deborah Greenwood School of Nursing PPM Only "]
[null,null,null,null,null,null,null,null,null,null,null,null,null,null,null,"FPNURS4293 - Kathryn Sexson School of Nursing PPM Only "]
[null,null,null,null,null,null,null,null,null,null,null,null,null,null,null,"FPNURS5342 - Chris de Belen Wilson School of Nursing PPM Only "]
[null,null,null,null,null,null,null,null,null,null,null,null,null,null,null,"FPNURS5839 - Gail Powell Cope School of Nursing PPM Only "]
[null,null,null,null,null,null,null,null,null,null,null,null,null,null,null,"FPNURS6318 - FadumaSara Ali School of Nursing PPM Only "]
[null,null,null,null,null,null,null,null,null,null,null,null,null,null,null,"FPPROG0001 - Barbara Allen Diaz STATEWIDE PROGRAM OPERATIONS PPM Only "]
[null,null,null,null,null,null,null,null,null,null,null,null,null,null,null,"FPSANJ0120 - Anna Martin UCCE SAN JOAQUIN COUNTY PPM Only "]
[null,null,null,null,null,null,null,null,null,null,null,null,null,null,null,"FPSANM6232 - Carolyn Whitesell UCCE SAN MATEO COUNTY PPM ONLY "]
[null,null,null,null,null,null,null,null,null,null,null,null,null,null,null,"FPSISK6022 - Giuliano Carneiro Galdi UCCE SISKIYOU COUNTY PPM ONLY "]
[null,null,null,null,null,null,null,null,null,null,null,null,null,null,null,"FPSISK6234 - Robert Wilson UCCE SISKIYOU COUNTY PPM ONLY "]
[null,null,null,null,null,null,null,null,null,null,null,null,null,null,null,"FPSONM6161 - Tori Norville UCCE SONOMA COUNTY PPM ONLY "]
[null,null,null,null,null,null,null,null,null,null,null,null,null,null,null,"FPSUST2802 - Gail Feenstra SUSTAINABLE AG RESEARCH And EDU PPM Only "]
[null,null,null,null,null,null,null,null,null,null,null,null,null,null,null,"FPTEHA6033 - Josh Davy UCCE TEHAMA COUNTY PPM ONLY "]
[null,null,null,null,null,null,null,null,null,null,null,null,null,null,null,"FPTULA0170 - Thomas Shultz UCCE TULARE COUNTY PPM Only "]
[null,null,null,null,null,null,null,null,null,null,null,null,null,null,null,"FPUCSC6242 - Margherita Zavatta ANR CE SPECIALISTS UCSC PPM ONLY "]
[null,null,null,null,null,null,null,null,null,null,null,null,null,null,null,"FPVAPC3431 - Helen Raybould VM ANAT PHYSIO And CELL BIOLOGY PPM Only "]
[null,null,null,null,null,null,null,null,null,null,null,null,null,null,null,"FPVAPC6350 - Gary Marty VM ANAT PHYSIO And CELL BIOLOGY PPM Only "]
[null,null,null,null,null,null,null,null,null,null,null,null,null,null,null,"FPVENT6196 - Hamutahl Cohen UCCE Ventura "]
[null,null,null,null,null,null,null,null,null,null,null,null,null,null,null,"FPVHFS4361 - Richard Chin CA ANIMAL HLTH And FOOD SAFETY LAB PPM Only "]
[null,null,null,null,null,null,null,null,null,null,null,null,null,null,null,"FPVMEX0833 - Martin Smith VM EX Cooperative Extension PPM Only "]
[null,null,null,null,null,null,null,null,null,null,null,null,null,null,null,"FPVPHR0849 - Leslie Lyons VM POPULATION HLTH And REPROD PPM Only "]
[null,null,null,null,null,null,null,null,null,null,null,null,null,null,null,"FPVPHR2659 - Bruno Chomel VM POPULATION HLTH And REPROD PPM Only "]
[null,null,null,null,null,null,null,null,null,null,null,null,null,null,null,"FPVPHR4136 - Noelia Silva Del Rio VM POPULATION HLTH And REPROD PPM Only "]
[null,null,null,null,null,null,null,null,null,null,null,null,null,null,null,"FPVPHR6939 - Brenda McCowan POPULATION HLTH and REPROD PPM ONLY "]
[null,null,null,null,null,null,null,null,null,null,null,null,null,null,null,"FPVPMI1128 - Francisco Uzal VM PATHOLOGY MICRO And IMMUN PPM Only "]
[null,null,null,null,null,null,null,null,null,null,null,null,null,null,null,"FPVPMI1153 - William Reisen VM PATHOLOGY MICRO And IMMUN PPM Only "]
[null,null,null,null,null,null,null,null,null,null,null,null,null,null,null,"FPVPMI2806 - Robert Higgins VM PATHOLOGY MICRO And IMMUN PPM Only "]
[null,null,null,null,null,null,null,null,null,null,null,null,null,null,null,"FPVPMI4291 - Dwight Hirsh VM PATHOLOGY MICRO And IMMUN PPM Only "]
[null,null,null,null,null,null,null,null,null,null,null,null,null,null,null,"FPVPRC2772 - Hong ji Primate Center Research Programs PPM Only "]
[null,null,null,null,null,null,null,null,null,null,null,null,null,null,null,"FPVVMB1950 - Elena Dedkova VM MOLECULAR BIO SCIENCES PPM Only "]
[null,null,null,null,null,null,null,null,null,null,null,null,null,null,null,"FPVVMB5551 - Bethany Cummings VM MOLECULAR BIO SCIENCES PPM Only "]
[null,null,null,null,null,null,null,null,null,null,null,null,null,null,null,"FPVVME1330 - Sina Marsilio VM MEDICINE And EPIDEMIOLOGY PPM Only "]
[null,null,null,null,null,null,null,null,null,null,null,null,null,null,null,"FPVVME2935 - Lynelle Johnson VM MEDICINE And EPIDEMIOLOGY PPM Only "]
[null,null,null,null,null,null,null,null,null,null,null,null,null,null,null,"FPVVME3373 - Ian Gardner VM MEDICINE And EPIDEMIOLOGY PPM Only "]
[null,null,null,null,null,null,null,null,null,null,null,null,null,null,null,"FPVVME4147 - Michael H Ziccardi VM MEDICINE And EPIDEMIOLOGY PPM Only "]
[null,null,null,null,null,null,null,null,null,null,null,null,null,null,null,"FPVVME4211 - Woutrina Smith VM MEDICINE And EPIDEMIOLOGY PPM Only "]
[null,null,null,null,null,null,null,null,null,null,null,null,null,null,null,"FPVVME4212 - Janet Foley VM MEDICINE And EPIDEMIOLOGY PPM Only "]
[null,null,null,null,null,null,null,null,null,null,null,null,null,null,null,"FPVVME4302 - Larry Cowgill VM MEDICINE And EPIDEMIOLOGY PPM Only "]
[null,null,null,null,null,null,null,null,null,null,null,null,null,null,null,"FPVVME4320 - Nicola Pusterla VM MEDICINE And EPIDEMIOLOGY PPM Only "]
[null,null,null,null,null,null,null,null,null,null,null,null,null,null,null,"FPVVME4391 - Kirsten Vk Gilardi VM MEDICINE And EPIDEMIOLOGY PPM Only "]
[null,null,null,null,null,null,null,null,null,null,null,null,null,null,null,"FPVVME4426 - Meera Heller VM MEDICINE And EPIDEMIOLOGY PPM Only "]
[null,null,null,null,null,null,null,null,null,null,null,null,null,null,null,"FPVVME4558 - Martha Monica Aleman Rivera VM MEDICINE And EPIDEMIOLOGY PPM Only "]
[null,null,null,null,null,null,null,null,null,null,null,null,null,null,null,"FPVVME4779 - Joshua Stern VM MEDICINE And EPIDEMIOLOGY PPM Only "]
[null,null,null,null,null,null,null,null,null,null,null,null,null,null,null,"FPVVME4796 - Melissa Bain VM MEDICINE And EPIDEMIOLOGY PPM Only "]
[null,null,null,null,null,null,null,null,null,null,null,null,null,null,null,"FPVVME4797 - Daniel Hershberger VM MEDICINE And EPIDEMIOLOGY PPM Only "]
[null,null,null,null,null,null,null,null,null,null,null,null,null,null,null,"FPVVME4811 - John Angelos VM MEDICINE And EPIDEMIOLOGY PPM Only "]
[null,null,null,null,null,null,null,null,null,null,null,null,null,null,null,"FPVVME4834 - Jeffrey Roberts VM MEDICINE And EPIDEMIOLOGY PPM Only "]
[null,null,null,null,null,null,null,null,null,null,null,null,null,null,null,"FPVVME4870 - Sharon Hietala VM MEDICINE And EPIDEMIOLOGY PPM Only "]
[null,null,null,null,null,null,null,null,null,null,null,null,null,null,null,"FPVVME4882 - Jane Sykes VM MEDICINE And EPIDEMIOLOGY PPM Only "]
[null,null,null,null,null,null,null,null,null,null,null,null,null,null,null,"FPVVME4897 - Andrea Lam VM MEDICINE And EPIDEMIOLOGY PPM Only "]
[null,null,null,null,null,null,null,null,null,null,null,null,null,null,null,"FPVVME4898 - Tyler Jordan VM MEDICINE And EPIDEMIOLOGY PPM Only "]
[null,null,null,null,null,null,null,null,null,null,null,null,null,null,null,"FPVVME4904 - Sean Hulsebosch VM MEDICINE And EPIDEMIOLOGY PPM Only "]
[null,null,null,null,null,null,null,null,null,null,null,null,null,null,null,"FPVVME4990 - Joellen Westropp VM MEDICINE And EPIDEMIOLOGY PPM Only "]
[null,null,null,null,null,null,null,null,null,null,null,null,null,null,null,"FPVVME5112 - Charles Buffington VM MEDICINE And EPIDEMIOLOGY PPM Only "]
[null,null,null,null,null,null,null,null,null,null,null,null,null,null,null,"FPVVME5131 - Jennifer Cassano VM MEDICINE And EPIDEMIOLOGY PPM Only "]
[null,null,null,null,null,null,null,null,null,null,null,null,null,null,null,"FPVVME5306 - Erik Olstad VM MEDICINE And EPIDEMIOLOGY PPM Only "]
[null,null,null,null,null,null,null,null,null,null,null,null,null,null,null,"FPVVME5312 - Kristin Jankowski VM MEDICINE And EPIDEMIOLOGY PPM Only "]
[null,null,null,null,null,null,null,null,null,null,null,null,null,null,null,"FPVVME5512 - Marisa Ames VM MEDICINE And EPIDEMIOLOGY PPM Only "]
[null,null,null,null,null,null,null,null,null,null,null,null,null,null,null,"FPVVME5536 - Stefano Borio VM MEDICINE And EPIDEMIOLOGY PPM Only "]
[null,null,null,null,null,null,null,null,null,null,null,null,null,null,null,"FPVVME5653 - Brian Speer VM MEDICINE And EPIDEMIOLOGY PPM Only "]
[null,null,null,null,null,null,null,null,null,null,null,null,null,null,null,"FPVVME5675 - Hugues Beaufrere VM MEDICINE And EPIDEMIOLOGY PPM Only "]
[null,null,null,null,null,null,null,null,null,null,null,null,null,null,null,"FPVVME5730 - Allison Gagnon VM MEDICINE And EPIDEMIOLOGY PPM Only "]
[null,null,null,null,null,null,null,null,null,null,null,null,null,null,null,"FPVVME5754 - Grace VanHoy VM MEDICINE And EPIDEMIOLOGY PPM Only "]
[null,null,null,null,null,null,null,null,null,null,null,null,null,null,null,"FPVVME6331 - Lisa Tell VM MEDICINE And EPIDEMIOLOGY PPM Only "]
[null,null,null,null,null,null,null,null,null,null,null,null,null,null,null,"FPVVME6604 - Joanne Paul Murphy VM MEDICINE And EPIDEMIOLOGY PPM Only "]
[null,null,null,null,null,null,null,null,null,null,null,null,null,null,null,"FPVVSR0322 - Eric Johnson VM SURGRAD SCIENCE PPM Only "]
[null,null,null,null,null,null,null,null,null,null,null,null,null,null,null,"FPVVSR0478 - Katherine Hansen VM SURGRAD SCIENCE PPM Only "]
[null,null,null,null,null,null,null,null,null,null,null,null,null,null,null,"FPVVSR0531 - Denis Marcellin Little VM SURGRAD SCIENCE PPM Only "]
[null,null,null,null,null,null,null,null,null,null,null,null,null,null,null,"FPVVSR0533 - Kathryn Koehler VM SURGRAD SCIENCE PPM Only "]
[null,null,null,null,null,null,null,null,null,null,null,null,null,null,null,"FPVVSR0557 - Gregg Kortz VM SURGRAD SCIENCE PPM Only "]
[null,null,null,null,null,null,null,null,null,null,null,null,null,null,null,"FPVVSR0599 - Kelsey Brust VM SURGRAD SCIENCE PPM Only "]
[null,null,null,null,null,null,null,null,null,null,null,null,null,null,null,"FPVVSR0758 - Lane W Johnson VM SURGRAD SCIENCE PPM Only "]
[null,null,null,null,null,null,null,null,null,null,null,null,null,null,null,"FPVVSR0762 - Derek D Cissell VM SURGRAD SCIENCE PPM Only "]
[null,null,null,null,null,null,null,null,null,null,null,null,null,null,null,"FPVVSR0765 - Milinda Lommer VM SURGRAD SCIENCE PPM Only "]
[null,null,null,null,null,null,null,null,null,null,null,null,null,null,null,"FPVVSR0767 - Ehren Mclarty VM SURGRAD SCIENCE PPM Only "]
[null,null,null,null,null,null,null,null,null,null,null,null,null,null,null,"FPVVSR0862 - Richard Lecouteur VM SURGRAD SCIENCE PPM Only "]
[null,null,null,null,null,null,null,null,null,null,null,null,null,null,null,"FPVVSR0900 - Joao Henrique Neves Soares VM SURGRAD SCIENCE PPM Only "]
[null,null,null,null,null,null,null,null,null,null,null,null,null,null,null,"FPVVSR1014 - Eugene Steffey VM SURGRAD SCIENCE PPM Only "]
[null,null,null,null,null,null,null,null,null,null,null,null,null,null,null,"FPVVSR1018 - Karen Vernau VM SURGRAD SCIENCE PPM Only "]
[null,null,null,null,null,null,null,null,null,null,null,null,null,null,null,"FPVVSR1039 - Mathieu Spriet VM SURGRAD SCIENCE PPM Only "]
[null,null,null,null,null,null,null,null,null,null,null,null,null,null,null,"FPVVSR1142 - Michael Kent VM SURGRAD SCIENCE PPM Only "]
[null,null,null,null,null,null,null,null,null,null,null,null,null,null,null,"FPVVSR1154 - Po Yen Chou VM SURGRAD SCIENCE PPM Only "]
[null,null,null,null,null,null,null,null,null,null,null,null,null,null,null,"FPVVSR1265 - Michele Steffey VM SURGRAD SCIENCE PPM Only "]
[null,null,null,null,null,null,null,null,null,null,null,null,null,null,null,"FPVVSR1309 - Beverly Sturges VM SURGRAD SCIENCE PPM Only "]
[null,null,null,null,null,null,null,null,null,null,null,null,null,null,null,"FPVVSR1318 - Katherine Skorupski VM SURGRAD SCIENCE PPM Only "]
[null,null,null,null,null,null,null,null,null,null,null,null,null,null,null,"FPVVSR1418 - Erik Wisner VM SURGRAD SCIENCE PPM Only "]
[null,null,null,null,null,null,null,null,null,null,null,null,null,null,null,"FPVVSR1443 - Barbro Filliquist VM SURGRAD SCIENCE PPM Only "]
[null,null,null,null,null,null,null,null,null,null,null,null,null,null,null,"FPVVSR1499 - Nedim Buyukmihci VM SURGRAD SCIENCE PPM Only "]
[null,null,null,null,null,null,null,null,null,null,null,null,null,null,null,"FPVVSR1522 - Jorge Nieto VM SURGRAD SCIENCE PPM Only "]
[null,null,null,null,null,null,null,null,null,null,null,null,null,null,null,"FPVVSR1577 - Karl Jandrey VM SURGRAD SCIENCE PPM Only "]
[null,null,null,null,null,null,null,null,null,null,null,null,null,null,null,"FPVVSR1580 - Dennis Meagher VM SURGRAD SCIENCE PPM Only "]
[null,null,null,null,null,null,null,null,null,null,null,null,null,null,null,"FPVVSR1756 - Bruno Pypendop VM SURGRAD SCIENCE PPM Only "]
[null,null,null,null,null,null,null,null,null,null,null,null,null,null,null,"FPVVSR1853 - Alain Theon VM SURGRAD SCIENCE PPM Only "]
[null,null,null,null,null,null,null,null,null,null,null,null,null,null,null,"FPVVSR1887 - Harriet Flynn VM SURGRAD SCIENCE PPM Only "]
[null,null,null,null,null,null,null,null,null,null,null,null,null,null,null,"FPVVSR1888 - Boaz Arzi VM SURGRAD SCIENCE PPM Only "]
[null,null,null,null,null,null,null,null,null,null,null,null,null,null,null,"FPVVSR1976 - Philipp Mayhew VM SURGRAD SCIENCE PPM Only "]
[null,null,null,null,null,null,null,null,null,null,null,null,null,null,null,"FPVVSR1981 - Thomas Nyland VM SURGRAD SCIENCE PPM Only "]
[null,null,null,null,null,null,null,null,null,null,null,null,null,null,null,"FPVVSR1993 - Geraldine Hunt VM SURGRAD SCIENCE PPM Only "]
[null,null,null,null,null,null,null,null,null,null,null,null,null,null,null,"FPVVSR1998 - John Pascoe VM SURGRAD SCIENCE PPM Only "]
[null,null,null,null,null,null,null,null,null,null,null,null,null,null,null,"FPVVSR2000 - Frank Verstraete VM SURGRAD SCIENCE PPM Only "]
[null,null,null,null,null,null,null,null,null,null,null,null,null,null,null,"FPVVSR2071 - Chai Fei Li VM SURGRAD SCIENCE PPM Only "]
[null,null,null,null,null,null,null,null,null,null,null,null,null,null,null,"FPVVSR2079 - Xinbin Chen VM SURGRAD SCIENCE PPM Only "]
[null,null,null,null,null,null,null,null,null,null,null,null,null,null,null,"FPVVSR2084 - Larry Galuppo VM SURGRAD SCIENCE PPM Only "]
[null,null,null,null,null,null,null,null,null,null,null,null,null,null,null,"FPVVSR2142 - Mary Whitcomb VM SURGRAD SCIENCE PPM Only "]
[null,null,null,null,null,null,null,null,null,null,null,null,null,null,null,"FPVVSR2147 - Allison Zwingenberger VM SURGRAD SCIENCE PPM Only "]
[null,null,null,null,null,null,null,null,null,null,null,null,null,null,null,"FPVVSR2191 - Susan Hildebrand VM SURGRAD SCIENCE PPM Only "]
[null,null,null,null,null,null,null,null,null,null,null,null,null,null,null,"FPVVSR2200 - Alessia Cenani VM SURGRAD SCIENCE PPM Only "]
[null,null,null,null,null,null,null,null,null,null,null,null,null,null,null,"FPVVSR2239 - Amy Kapatkin VM SURGRAD SCIENCE PPM Only "]
[null,null,null,null,null,null,null,null,null,null,null,null,null,null,null,"FPVVSR2245 - Christopher Murphy VM SURGRAD SCIENCE PPM Only "]
[null,null,null,null,null,null,null,null,null,null,null,null,null,null,null,"FPVVSR2302 - Eugene Breznock VM SURGRAD SCIENCE PPM Only "]
[null,null,null,null,null,null,null,null,null,null,null,null,null,null,null,"FPVVSR2339 - Cleta Bailey VM SURGRAD SCIENCE PPM Only "]
[null,null,null,null,null,null,null,null,null,null,null,null,null,null,null,"FPVVSR2407 - Jessica Lawrence VM SURGRAD SCIENCE PPM Only "]
[null,null,null,null,null,null,null,null,null,null,null,null,null,null,null,"FPVVSR2461 - Steven Epstein VM SURGRAD SCIENCE PPM Only "]
[null,null,null,null,null,null,null,null,null,null,null,null,null,null,null,"FPVVSR2731 - Linda Barter VM SURGRAD SCIENCE PPM Only "]
[null,null,null,null,null,null,null,null,null,null,null,null,null,null,null,"FPVVSR2762 - Alida Wind VM SURGRAD SCIENCE PPM Only "]
[null,null,null,null,null,null,null,null,null,null,null,null,null,null,null,"FPVVSR2844 - Rachel Pollard VM SURGRAD SCIENCE PPM Only "]
[null,null,null,null,null,null,null,null,null,null,null,null,null,null,null,"FPVVSR2851 - Jack Snyder VM SURGRAD SCIENCE PPM Only "]
[null,null,null,null,null,null,null,null,null,null,null,null,null,null,null,"FPVVSR2857 - Craig Glaiberman VM SURGRAD SCIENCE PPM Only "]
[null,null,null,null,null,null,null,null,null,null,null,null,null,null,null,"FPVVSR2859 - Jin Zhang VM SURGRAD SCIENCE PPM Only "]
[null,null,null,null,null,null,null,null,null,null,null,null,null,null,null,"FPVVSR2890 - Amandeep Chohan VM SURGRAD SCIENCE PPM Only "]
[null,null,null,null,null,null,null,null,null,null,null,null,null,null,null,"FPVVSR2985 - Marguerite Knipe VM SURGRAD SCIENCE PPM Only "]
[null,null,null,null,null,null,null,null,null,null,null,null,null,null,null,"FPVVSR3044 - Pauline Wong VM SURGRAD SCIENCE PPM Only "]
[null,null,null,null,null,null,null,null,null,null,null,null,null,null,null,"FPVVSR3144 - Robert Rebhun VM SURGRAD SCIENCE PPM Only "]
[null,null,null,null,null,null,null,null,null,null,null,null,null,null,null,"FPVVSR3248 - Roy Bellhorn VM SURGRAD SCIENCE PPM Only "]
[null,null,null,null,null,null,null,null,null,null,null,null,null,null,null,"FPVVSR3289 - Jan Ilkiw VM SURGRAD SCIENCE PPM Only "]
[null,null,null,null,null,null,null,null,null,null,null,null,null,null,null,"FPVVSR3317 - Joe Morgan VM SURGRAD SCIENCE PPM Only "]
[null,null,null,null,null,null,null,null,null,null,null,null,null,null,null,"FPVVSR3439 - Robert Brosnan VM SURGRAD SCIENCE PPM Only "]
[null,null,null,null,null,null,null,null,null,null,null,null,null,null,null,"FPVVSR3457 - Soohyun Kim VM SURGRAD SCIENCE PPM Only "]
[null,null,null,null,null,null,null,null,null,null,null,null,null,null,null,"FPVVSR3583 - Susan Stover VM SURGRAD SCIENCE PPM Only "]
[null,null,null,null,null,null,null,null,null,null,null,null,null,null,null,"FPVVSR3664 - James H Jones VM SURGRAD SCIENCE PPM Only "]
[null,null,null,null,null,null,null,null,null,null,null,null,null,null,null,"FPVVSR3676 - Brian Leonard VM SURGRAD SCIENCE PPM Only "]
[null,null,null,null,null,null,null,null,null,null,null,null,null,null,null,"FPVVSR3915 - Scott Katzman VM SURGRAD SCIENCE PPM Only "]
[null,null,null,null,null,null,null,null,null,null,null,null,null,null,null,"FPVVSR4016 - Kathryn Phillips VM SURGRAD SCIENCE PPM Only "]
[null,null,null,null,null,null,null,null,null,null,null,null,null,null,null,"FPVVSR4140 - Sonia Le Jeune VM SURGRAD SCIENCE PPM Only "]
[null,null,null,null,null,null,null,null,null,null,null,null,null,null,null,"FPVVSR4158 - Nicole Baumgarth VM SURGRAD SCIENCE PPM Only "]
[null,null,null,null,null,null,null,null,null,null,null,null,null,null,null,"FPVVSR4160 - Isabelle Kilcoyne VM SURGRAD SCIENCE PPM Only "]
[null,null,null,null,null,null,null,null,null,null,null,null,null,null,null,"FPVVSR4232 - Peter Pascoe VM SURGRAD SCIENCE PPM Only "]
[null,null,null,null,null,null,null,null,null,null,null,null,null,null,null,"FPVVSR4334 - Christine Toedebusch VM SURGRAD SCIENCE PPM Only "]
[null,null,null,null,null,null,null,null,null,null,null,null,null,null,null,"FPVVSR4348 - Clare Gregory VM SURGRAD SCIENCE PPM Only "]
[null,null,null,null,null,null,null,null,null,null,null,null,null,null,null,"FPVVSR4368 - William Hornof VM SURGRAD SCIENCE PPM Only "]
[null,null,null,null,null,null,null,null,null,null,null,null,null,null,null,"FPVVSR4386 - Peter Dickinson VM SURGRAD SCIENCE PPM Only "]
[null,null,null,null,null,null,null,null,null,null,null,null,null,null,null,"FPVVSR4411 - Katrina Hopper VM SURGRAD SCIENCE PPM Only "]
[null,null,null,null,null,null,null,null,null,null,null,null,null,null,null,"FPVVSR4468 - Marvin Goldman VM SURGRAD SCIENCE PPM Only "]
[null,null,null,null,null,null,null,null,null,null,null,null,null,null,null,"FPVVSR4550 - Ronald Li VM SURGRAD SCIENCE PPM Only "]
[null,null,null,null,null,null,null,null,null,null,null,null,null,null,null,"FPVVSR4609 - Sabrina Hoehne VM SURGRAD SCIENCE PPM Only "]
[null,null,null,null,null,null,null,null,null,null,null,null,null,null,null,"FPVVSR4629 - William Culp VM SURGRAD SCIENCE PPM Only "]
[null,null,null,null,null,null,null,null,null,null,null,null,null,null,null,"FPVVSR4640 - Mary Vaughan VM SURGRAD SCIENCE PPM Only "]
[null,null,null,null,null,null,null,null,null,null,null,null,null,null,null,"FPVVSR4647 - Steven Hollingsworth VM SURGRAD SCIENCE PPM Only "]
[null,null,null,null,null,null,null,null,null,null,null,null,null,null,null,"FPVVSR4668 - David Maggs VM SURGRAD SCIENCE PPM Only "]
[null,null,null,null,null,null,null,null,null,null,null,null,null,null,null,"FPVVSR4689 - Sara M Thomasy VM SURGRAD SCIENCE PPM Only "]
[null,null,null,null,null,null,null,null,null,null,null,null,null,null,null,"FPVVSR4770 - Jamie Burkitt Creedon VM SURGRAD SCIENCE PPM Only "]
[null,null,null,null,null,null,null,null,null,null,null,null,null,null,null,"FPVVSR4817 - Michelle Giuffrida VM SURGRAD SCIENCE PPM Only "]
[null,null,null,null,null,null,null,null,null,null,null,null,null,null,null,"FPVVSR4844 - Luke Wittenburg VM SURGRAD SCIENCE PPM Only "]
[null,null,null,null,null,null,null,null,null,null,null,null,null,null,null,"FPVVSR4863 - Kate Farrell VM SURGRAD SCIENCE PPM Only "]
[null,null,null,null,null,null,null,null,null,null,null,null,null,null,null,"FPVVSR4955 - David Canton VM SURGRAD SCIENCE PPM Only "]
[null,null,null,null,null,null,null,null,null,null,null,null,null,null,null,"FPVVSR5005 - Julie Dechant VM SURGRAD SCIENCE PPM Only "]
[null,null,null,null,null,null,null,null,null,null,null,null,null,null,null,"FPVVSR5059 - Carolyn Craig VM SURGRAD SCIENCE PPM Only "]
[null,null,null,null,null,null,null,null,null,null,null,null,null,null,null,"FPVVSR5173 - Maria Soltero Rivera VM SURGRAD SCIENCE PPM Only "]
[null,null,null,null,null,null,null,null,null,null,null,null,null,null,null,"FPVVSR5219 - Casey Kohen VM SURGRAD SCIENCE PPM Only "]
[null,null,null,null,null,null,null,null,null,null,null,null,null,null,null,"FPVVSR5231 - Sami Al Nadaf VM SURGRAD SCIENCE PPM Only "]
[null,null,null,null,null,null,null,null,null,null,null,null,null,null,null,"FPVVSR5267 - Douglas Dos Santos E Castro VM SURGRAD SCIENCE PPM Only "]
[null,null,null,null,null,null,null,null,null,null,null,null,null,null,null,"FPVVSR5309 - Bianca Da Costa Martins VM SURGRAD SCIENCE PPM Only "]
[null,null,null,null,null,null,null,null,null,null,null,null,null,null,null,"FPVVSR5531 - Amandine Lejeune VM SURGRAD SCIENCE PPM Only "]
[null,null,null,null,null,null,null,null,null,null,null,null,null,null,null,"FPVVSR5673 - Krzysztof Marycz VM SURGRAD SCIENCE PPM Only "]
[null,null,null,null,null,null,null,null,null,null,null,null,null,null,null,"FPVVSR5870 - Stephanie Goldschmidt VM SURGRAD SCIENCE PPM Only "]
[null,null,null,null,null,null,null,null,null,null,null,null,null,null,null,"FPVVSR6317 - Ingrid Balsa VM SURG RAD SCIENCE PPM Only "]
[null,null,null,null,null,null,null,null,null,null,null,null,null,null,null,"FPVVSR6319 - Lauren Charnock VM SURG RAD SCIENCE PPM Only "]
[null,null,null,null,null,null,null,null,null,null,null,null,null,null,null,"FPVVSR6320 - Wei Chen Kuo VM SURG RAD SCIENCE PPM Only "]
[null,null,null,null,null,null,null,null,null,null,null,null,null,null,null,"FPVVSR6321 - Jennifer Willcox VM SURG RAD SCIENCE PPM Only "]
[null,null,null,null,null,null,null,null,null,null,null,null,null,null,null,"FPWATR4221 - Sarah Yarnell Hayes CENTER FOR WATERSHED SCIENCES PPM Only "]
[null,null,null,null,null,null,null,null,null,null,null,null,null,null,null,"FPWATR4353 - Robert Lusardi CENTER FOR WATERSHED SCIENCES PPM Only "]
[null,null,null,null,null,null,null,null,null,null,null,null,null,null,null,"FPWATR4404 - John Durand CENTER FOR WATERSHED SCIENCES PPM Only "]
[null,null,null,null,null,null,null,null,null,null,null,null,null,null,null,"FPYOLO6087 - Marcel Horowitz UCCE YOLO COUNTY "]
[null,null,null,null,null,null,null,null,null,null,null,null,null,null,null,"FPYOLO6202 - Joanna Solins UCCE YOLO COUNTY "]
[null,null,null,null,null,null,null,null,null,null,null,null,null,null,null,"K3023CR569 - CS/Award C23CR5696/Imp Patients w/Cancer K3023CR569 "]
[null,null,null,null,null,null,null,null,null,null,null,null,null,null,null,"K304871063 - ITS Systemwide Allocation 2015-16 K304871063 "]
[null,null,null,null,null,null,null,null,null,null,null,null,null,null,null,"K304871071 - ITS Systemwide Allocation 2016-19 PTA K304871071 "]
[null,null,null,null,null,null,null,null,null,null,null,null,null,null,null,"K305873610 - SB1 Year 4 Rodier Covid Data in LA K305873610 "]
[null,null,null,null,null,null,null,null,null,null,null,null,null,null,null,"K305873614 - SB1-Year 4 Circella  Covid Travel Survey - K305873614 "]
[null,null,null,null,null,null,null,null,null,null,null,null,null,null,null,"K305873617 - SB1 Year 4: Harvey CCPIC K305873617 "]
[null,null,null,null,null,null,null,null,null,null,null,null,null,null,null,"K305873621 - SB1 Year 5 - Sanguinetti - Univ Mobility - K305873621 "]
[null,null,null,null,null,null,null,null,null,null,null,null,null,null,null,"K305873623 - SB1 Year 5 Barbor Barriers 12 31 22 K305873623 "]
[null,null,null,null,null,null,null,null,null,null,null,null,null,null,null,"K305873624 - SB1 Year 5 - Circella HSR Abroad - K305873624 "]
[null,null,null,null,null,null,null,null,null,null,null,null,null,null,null,"K305873625 - SB1 Year 5 Hardman 100 ZEV Sales K305873625 "]
[null,null,null,null,null,null,null,null,null,null,null,null,null,null,null,"K305873626 - SB1 Year 5 Jaller Idling and Parking K305873626 "]
[null,null,null,null,null,null,null,null,null,null,null,null,null,null,null,"K305873627 - SB1 Year 5 Jenn Performance Pricing K305873627 "]
[null,null,null,null,null,null,null,null,null,null,null,null,null,null,null,"K305873628 - SB1 Year 5 - Pike UCD Transit Center - K305873628 "]
[null,null,null,null,null,null,null,null,null,null,null,null,null,null,null,"K305873629 - SB1 Year 5-Rodier Mobile 9-30-22 - K305873629 "]
[null,null,null,null,null,null,null,null,null,null,null,null,null,null,null,"K305873632 - SB1 Year 5 Circella The New Normal K305873632 "]
[null,null,null,null,null,null,null,null,null,null,null,null,null,null,null,"K305873634 - SB1 Year 5 - Li Safety Effectiveness - K305873634 "]
[null,null,null,null,null,null,null,null,null,null,null,null,null,null,null,"K305873635 - SB1 Year 4 Fitch Micromobility K305873635 "]
[null,null,null,null,null,null,null,null,null,null,null,null,null,null,null,"K305873638 - SB1 Yr 6 - Tal Rural EV Charging - K305873638 "]
[null,null,null,null,null,null,null,null,null,null,null,null,null,null,null,"K306873601 - SB1 Year 4 Central Expenses K306873601 "]
[null,null,null,null,null,null,null,null,null,null,null,null,null,null,null,"K306873602 - SB1 Year 4 Admin Support K306873602 "]
[null,null,null,null,null,null,null,null,null,null,null,null,null,null,null,"K306873622 - SB1 Year 5 - Harvey CCPIC - K306873622 "]
[null,null,null,null,null,null,null,null,null,null,null,null,null,null,null,"K306873700 - SB1 Holding Account 7-01-21 - 06-30-23 - K306873700 "]
[null,null,null,null,null,null,null,null,null,null,null,null,null,null,null,"K306873701 - SB1 Year 5 - Central Expenses - K306873701 "]
[null,null,null,null,null,null,null,null,null,null,null,null,null,null,null,"K306873702 - SB1 Year 5 Admin Support K306873702 "]
[null,null,null,null,null,null,null,null,null,null,null,null,null,null,null,"K306873703 - SB1 Year 5 - Equity Initiatives-Activity - K306873703 "]
[null,null,null,null,null,null,null,null,null,null,null,null,null,null,null,"K306873704 - SB1 Year 5 UCD Travel and Supplies - K306873704 "]
[null,null,null,null,null,null,null,null,null,null,null,null,null,null,null,"K306873706 - SB1 Year 5 - Program Management Staff - K306873706 "]
[null,null,null,null,null,null,null,null,null,null,null,null,null,null,null,"K3079CR569 - CS: FINA 23CR569- GSR SUPPORT/FEES/HCW K3079CR569 "]
[null,null,null,null,null,null,null,null,null,null,null,null,null,null,null,"K309873531 - SB1 Central Expenses yr 6 - K309873531 "]
[null,null,null,null,null,null,null,null,null,null,null,null,null,null,null,"K309873532 - SB1 Admin Support yr 6 - K309873532 "]
[null,null,null,null,null,null,null,null,null,null,null,null,null,null,null,"K309873533 - SB1 Program Management Staff yr 6 - K309873533 "]
[null,null,null,null,null,null,null,null,null,null,null,null,null,null,null,"K309873534 - SB1 Policy Engagement & Outreach yr 6 - K309873534 "]
[null,null,null,null,null,null,null,null,null,null,null,null,null,null,null,"K309873539 - SB1 UCD Travel and Supplies yr 6 - K309873539 "]
[null,null,null,null,null,null,null,null,null,null,null,null,null,null,null,"K309873540 - SB1 Equity Initiative & Activities yr 6 - K309873540 "]
[null,null,null,null,null,null,null,null,null,null,null,null,null,null,null,"K309873638 - SB1 Hold Acct Yr 6 FY 22-23 - K309873638 "]
[null,null,null,null,null,null,null,null,null,null,null,null,null,null,null,"K309876040 - SB1 Hold Acct Yr 6 FY 22-23 - K309876040 "]
[null,null,null,null,null,null,null,null,null,null,null,null,null,null,null,"K309876041 - SB1 yr 6 - Barajas Reassessing Traffic - K309876041 "]
[null,null,null,null,null,null,null,null,null,null,null,null,null,null,null,"K309876042 - SB1 yr6  Hardman Rural EV Charging Par 2 - K309876042 "]
[null,null,null,null,null,null,null,null,null,null,null,null,null,null,null,"K309876043 - SB1 yr6  Zhang Data-driven HOT Lane Mgmt - K309876043 "]
[null,null,null,null,null,null,null,null,null,null,null,null,null,null,null,"K309876044 - SB1 yr6-Barajas Tools for Transp Equity - K309876044 "]
[null,null,null,null,null,null,null,null,null,null,null,null,null,null,null,"K309876045 - SB1 yr 6 - Rodier UMB Wallet Eval - K309876045 "]
[null,null,null,null,null,null,null,null,null,null,null,null,null,null,null,"K309876046 - SB1 y 6-Fitch Complex Daily Trip Chains - K309876046 "]
[null,null,null,null,null,null,null,null,null,null,null,null,null,null,null,"K309876047 - SB1 yr5  Fulton CA vs. Euro low carbon - K309876047 "]
[null,null,null,null,null,null,null,null,null,null,null,null,null,null,null,"K309876048 - SB1 yr 5 - Fitch Bike Theft - K309876048 "]
[null,null,null,null,null,null,null,null,null,null,null,null,null,null,null,"K309876049 - SB1 yr5  Nassiri Road Resilience to Wild - K309876049 "]
[null,null,null,null,null,null,null,null,null,null,null,null,null,null,null,"K309876050 - SB1 yr5 Sanguinetti Share Micromobility K309876050 "]
[null,null,null,null,null,null,null,null,null,null,null,null,null,null,null,"K309876051 - SB1 YR6  Venkataram Effect of Collisions - K309876051 "]
[null,null,null,null,null,null,null,null,null,null,null,null,null,null,null,"K309876052 - SB1 yr6  Ferguson Shared Micromobility - K309876052 "]
[null,null,null,null,null,null,null,null,null,null,null,null,null,null,null,"K309876053 - Postdoc support for Siddhartha Gulhare - K309876053 "]
[null,null,null,null,null,null,null,null,null,null,null,null,null,null,null,"K309876054 - SB1 Y6  Postdoc support Basar Ozbilen - K309876054 "]
[null,null,null,null,null,null,null,null,null,null,null,null,null,null,null,"K309876055 - SB1 Year 6 - Circella - New Normal - K309876055 "]
[null,null,null,null,null,null,null,null,null,null,null,null,null,null,null,"K309876056 - SB1 UC ITS CCPIC Harvey yr 6 - K309876056 "]
[null,null,null,null,null,null,null,null,null,null,null,null,null,null,null,"K309876057 - SB1 - Postdoc support for Patrick Loa - K309876057 "]
[null,null,null,null,null,null,null,null,null,null,null,null,null,null,null,"K309876058 - SB1 yr 7 -Hardman, Trans. to Off-road CA - K309876058 "]
[null,null,null,null,null,null,null,null,null,null,null,null,null,null,null,"K309876059 - SB1 yr 7 - Fan, Public Transport for ZEV - K309876059 "]
[null,null,null,null,null,null,null,null,null,null,null,null,null,null,null,"K309876060 - SB1 yr 7 - Chuah Synthetic Mobility Data - K309876060 "]
[null,null,null,null,null,null,null,null,null,null,null,null,null,null,null,"K309876061 - SB1 yr 7 - Barajas Comprehensive Eval - K309876061 "]
[null,null,null,null,null,null,null,null,null,null,null,null,null,null,null,"K309876062 - SB1 yr 7 - Hardman, EVs Used Vehicle - K309876062 "]
[null,null,null,null,null,null,null,null,null,null,null,null,null,null,null,"K309876063 - SB1 yr 7 - Jaller, Supporting Infra ZEV - K309876063 "]
[null,null,null,null,null,null,null,null,null,null,null,null,null,null,null,"K309876064 - SB1 yr 7 - Jenn, Equity Considerations - K309876064 "]
[null,null,null,null,null,null,null,null,null,null,null,null,null,null,null,"K309876066 - SB1 yr 7 - Sanguinetti, UBM Trans. Webs. - K309876066 "]
[null,null,null,null,null,null,null,null,null,null,null,null,null,null,null,"K309876067 - SB1 yr 7 - Venkataram, Transport Concern - K309876067 "]
[null,null,null,null,null,null,null,null,null,null,null,null,null,null,null,"K309876068 - SB1 yr 7 - Fitch, Benefits Achieved ATPS - K309876068 "]
[null,null,null,null,null,null,null,null,null,null,null,null,null,null,null,"K30AQAW056 - TRDRP Local Lung dose smoke from product K30AQAW056 "]
[null,null,null,null,null,null,null,null,null,null,null,null,null,null,null,"K30BPCEZ89 - CNPRC Roberts NIH A20 0177 UCSF K30BPCEZ89 "]
[null,null,null,null,null,null,null,null,null,null,null,null,null,null,null,"K30CHBFINA - CHPR CHBRP FINA K30CHBFINA "]
[null,null,null,null,null,null,null,null,null,null,null,null,null,null,null,"K30CHBRP21 - CHPR CHBRP FY21 Melnikow K30CHBRP21 "]
[null,null,null,null,null,null,null,null,null,null,null,null,null,null,null,"K30CHBRP22 - CHPR CHBRP FY22 - Melnikow K30CHBRP22 "]
[null,null,null,null,null,null,null,null,null,null,null,null,null,null,null,"K30DCTRDRP - MAE  DAVIS. C TRDRP AWARD T31IR1614 K30DCTRDRP "]
[null,null,null,null,null,null,null,null,null,null,null,null,null,null,null,"K30DENI826 - ETOX DENISON UCOP Young UBCR K30DENI826 "]
[null,null,null,null,null,null,null,null,null,null,null,null,null,null,null,"K30ETADMIN - CHPR Tong TRDRP Admin Supplement K30ETADMIN "]
[null,null,null,null,null,null,null,null,null,null,null,null,null,null,null,"K30ETTRDR1 - EXPANDING LA eCONSULT CESSATION SERVICES K30ETTRDR1 "]
[null,null,null,null,null,null,null,null,null,null,null,null,null,null,null,"K30GXMIKET - NUTR: MACKENZIE: UC CRCC KETO CACHEXIA K30GXMIKET "]
[null,null,null,null,null,null,null,null,null,null,null,null,null,null,null,"K30KPVAPE2 - E-cig vaping, chemical composition TRDRP K30KPVAPE2 "]
[null,null,null,null,null,null,null,null,null,null,null,null,null,null,null,"K30KPVAPE3 - E cig vaping chemical composition TRDRP K30KPVAPE3 "]
[null,null,null,null,null,null,null,null,null,null,null,null,null,null,null,"K30NGUY505 - ETOX NGUYEN UCOP TRDP T32IR4957 K30NGUY505 "]
[null,null,null,null,null,null,null,null,null,null,null,null,null,null,null,"K30O4TYBCP - CEE T YOUNG BREAST CANCER RSRCH PROGRAM K30O4TYBCP "]
[null,null,null,null,null,null,null,null,null,null,null,null,null,null,null,"K30PINK505 - Pinkerton UCOP TRDPT T32IR4957 K30PINK505 "]
[null,null,null,null,null,null,null,null,null,null,null,null,null,null,null,"K30POUL505 - ETOX POULIN UCOP TRDP T32IR4957 K30POUL505 "]
[null,null,null,null,null,null,null,null,null,null,null,null,null,null,null,"K30RHCBCRP - AN SCI  HOVEY  CBCRP BEEF GROW PROMOTANT K30RHCBCRP "]
[null,null,null,null,null,null,null,null,null,null,null,null,null,null,null,"K30S4JDPTR - CEE DeJong PEER Award 1170-NCTRDE K30S4JDPTR "]
[null,null,null,null,null,null,null,null,null,null,null,null,null,null,null,"K30TET33IR - CHPR  TRDRP - Health Equity in Tobacco K30TET33IR "]
[null,null,null,null,null,null,null,null,null,null,null,null,null,null,null,"K30V4V0059 - TRDRP Exploring DNA Polymerase in NSCLC K30V4V0059 "]
[null,null,null,null,null,null,null,null,null,null,null,null,null,null,null,"K30V671023 - OILED WILDLIFE CARE NETWORK  ADMIN K30V671023 "]
[null,null,null,null,null,null,null,null,null,null,null,null,null,null,null,"K30V671134 - OILED WILDLIFE CARE NETWORK ADMIN K30V671134 "]
[null,null,null,null,null,null,null,null,null,null,null,null,null,null,null,"K30V671145 - OILED WILDLIFE CARE NETWORK ADMIN K30V671145 "]
[null,null,null,null,null,null,null,null,null,null,null,null,null,null,null,"K30V671156 - OILED WILDLIFE CARE NETWORK ADMIN K30V671156 "]
[null,null,null,null,null,null,null,null,null,null,null,null,null,null,null,"K30V671167 - OILED WILDLIFE CARE NETWORK ADMIN K30V671167 "]
[null,null,null,null,null,null,null,null,null,null,null,null,null,null,null,"K30V671178 - OILED WILDLIFE CARE NETWORK ADMIN K30V671178 "]
[null,null,null,null,null,null,null,null,null,null,null,null,null,null,null,"K30V671189 - OILED WILDLIFE CARE NETWORK ADMIN K30V671189 "]
[null,null,null,null,null,null,null,null,null,null,null,null,null,null,null,"K30V671190 - OILED WILDLIFE CARE NETWORK ADMIN K30V671190 "]
[null,null,null,null,null,null,null,null,null,null,null,null,null,null,null,"K30V671201 - OILED WILDLIFE CARE NETWORK ADMIN K30V671201 "]
[null,null,null,null,null,null,null,null,null,null,null,null,null,null,null,"K30V67120R - VM  OWCN 20-21 COMPETITIVE GRANTS K30V67120R "]
[null,null,null,null,null,null,null,null,null,null,null,null,null,null,null,"K30V671212 - OILED WILDLIFE CARE NETWORK ADMIN K30V671212 "]
[null,null,null,null,null,null,null,null,null,null,null,null,null,null,null,"K30V67121R - VM OWCN 21-22 COMPETITIVE GRANTS K30V67121R "]
[null,null,null,null,null,null,null,null,null,null,null,null,null,null,null,"K30V671223 - OILED WILDLIFE CARE NETWORK ADMIN K30V671223 "]
[null,null,null,null,null,null,null,null,null,null,null,null,null,null,null,"K30V67122R - VM OWCN 22-23 COMPETITIVE GRANTS K30V67122R "]
[null,null,null,null,null,null,null,null,null,null,null,null,null,null,null,"K30V671324 - OILED WILDLIFE CARE NETWORK ADMIN K30V671324 "]
[null,null,null,null,null,null,null,null,null,null,null,null,null,null,null,"K30V67132R - VM OWCN 23-24 COMPETITIVE GRANTS K30V67132R "]
[null,null,null,null,null,null,null,null,null,null,null,null,null,null,null,"K30V671RO1 - OILED WILDLIFE CARE NETWORK K30V671RO1 "]
[null,null,null,null,null,null,null,null,null,null,null,null,null,null,null,"K30VPCBZ49 - CNPRC Miller-TRDRP-UCSF COPD K30VPCBZ49 "]
[null,null,null,null,null,null,null,null,null,null,null,null,null,null,null,"K30VPCDZ10 - CNPRC  Royer-UCTRDRP-T31IP1762 K30VPCDZ10 "]
[null,null,null,null,null,null,null,null,null,null,null,null,null,null,null,"KL018121UB - UNEXPENDED BALANCE KL018121UB "]
[null,null,null,null,null,null,null,null,null,null,null,null,null,null,null,"KS0AWTRDRP - Med  Surg  Aijun Wang TRDRP KS0AWTRDRP "]
[null,null,null,null,null,null,null,null,null,null,null,null,null,null,null,"KS0BKICH13 - MEDPHS CHBRP COST TEAM KS0BKICH13 "]
[null,null,null,null,null,null,null,null,null,null,null,null,null,null,null,"KS0CALMED1 - MED  OBGYN RESIDENCY- CALMEDFORCE KS0CALMED1 "]
[null,null,null,null,null,null,null,null,null,null,null,null,null,null,null,"KS0CALMED2 - MED  OBGYN RESIDENCY- CALMEDFORCE KS0CALMED2 "]
[null,null,null,null,null,null,null,null,null,null,null,null,null,null,null,"KS0CASP700 - MED IMCA-SIRISH-TRDRP-T32KT4729 KS0CASP700 "]
[null,null,null,null,null,null,null,null,null,null,null,null,null,null,null,"KS0CSCRCC1 - Med: Surg: Candice Sauder KS0CSCRCC1 "]
[null,null,null,null,null,null,null,null,null,null,null,null,null,null,null,"KS0CTEN700 - MED:IMCT/ESTEGHAMAT/CRCC C24CR7692 KS0CTEN700 "]
[null,null,null,null,null,null,null,null,null,null,null,null,null,null,null,"KS0EDKC709 - MED IMED-KEENAN PHC CALMEDFORCE GRANT #2 KS0EDKC709 "]
[null,null,null,null,null,null,null,null,null,null,null,null,null,null,null,"KS0FMCALM2 - FCM CALMEDFORCE GRANT 2022-2025 KS0FMCALM2 "]
[null,null,null,null,null,null,null,null,null,null,null,null,null,null,null,"KS0FMCALMF - FCM RESIDENCY- CALMEDFORCE GRANT KS0FMCALMF "]
[null,null,null,null,null,null,null,null,null,null,null,null,null,null,null,"KS0FSTOB01 - SHARP  UC Tobacco 3-31-2021 KS0FSTOB01 "]
[null,null,null,null,null,null,null,null,null,null,null,null,null,null,null,"KS0GYMRPI2 - YIU MRPI 2023 Program Award - 2nd Acct KS0GYMRPI2 "]
[null,null,null,null,null,null,null,null,null,null,null,null,null,null,null,"KS0JCUCOP1 - 20-3714 - UCOP GRANT ID C21CR2104 KS0JCUCOP1 "]
[null,null,null,null,null,null,null,null,null,null,null,null,null,null,null,"KS0KLSEED1 - FACULTY SEED GRANT 9/30/2024 KS0KLSEED1 "]
[null,null,null,null,null,null,null,null,null,null,null,null,null,null,null,"KS0KLTRDRP - Tobacco-Related Disease Research Program KS0KLTRDRP "]
[null,null,null,null,null,null,null,null,null,null,null,null,null,null,null,"KS0LPTRDRX - Med Surg L Ramasubramanian TRDRP FINA KS0LPTRDRX "]
[null,null,null,null,null,null,null,null,null,null,null,null,null,null,null,"KS0MCCRCC1 - Med: Surg: Michael Campbell: UCOP CRCC KS0MCCRCC1 "]
[null,null,null,null,null,null,null,null,null,null,null,null,null,null,null,"KS0MDSIFTS - MED PHS DOVE TRDRP T33KT6684 KS0MDSIFTS "]
[null,null,null,null,null,null,null,null,null,null,null,null,null,null,null,"KS0NECC701 - MED:IMNE/CHEN/UC TRDRP/MARCKS-AXL KS0NECC701 "]
[null,null,null,null,null,null,null,null,null,null,null,null,null,null,null,"KS0NECC702 - MED IMNE-CHEN-UC TRDRP-KIDNEY CANCER KS0NECC702 "]
[null,null,null,null,null,null,null,null,null,null,null,null,null,null,null,"KS0PMCC701 - MED IMPM-KENYON-UC TRDRP-28IR-0051MED IMPM-CHEN-UCTRDRP-PULMONARY FIBROSIS KS0PMCC701 "]
[null,null,null,null,null,null,null,null,null,null,null,null,null,null,null,"KS0PMHA700 - MED IMPM-HACZKU-UC TRDRP-27IR-0053 KS0PMHA700 "]
[null,null,null,null,null,null,null,null,null,null,null,null,null,null,null,"KS0PMKN700 - MED IMPM-KENYON-UC TRDRP-28IR-0051 KS0PMKN700 "]
[null,null,null,null,null,null,null,null,null,null,null,null,null,null,null,"KS0SLCALMD - LI CALMEDFORCE RESIDENCY GRANT KS0SLCALMD "]
[null,null,null,null,null,null,null,null,null,null,null,null,null,null,null,"KS0SLCAMD2 - LI CALMEDFORCE RESIDENCY GRANT 2022-2025 KS0SLCAMD2 "]
[null,null,null,null,null,null,null,null,null,null,null,null,null,null,null,"KS0SLCAMD3 - LI CALMEDFORCE RESIDENCY GRANT 2023-2026 KS0SLCAMD3 "]
[null,null,null,null,null,null,null,null,null,null,null,null,null,null,null,"KS0TRDRP24 - TRDRP ADVANCE ACCOUNT Y1 - TONG KS0TRDRP24 "]
[null,null,null,null,null,null,null,null,null,null,null,null,null,null,null,"KS0UCBC110 - UMBC-STATE OF CA-UMBILICAL CORD 18-19 KS0UCBC110 "]
[null,null,null,null,null,null,null,null,null,null,null,null,null,null,null,"KS0YLTRDRP - DERM LYU TRDRP KS0YLTRDRP "]
[null,null,null,null,null,null,null,null,null,null,null,null,null,null,null,"PPMCRC0000 - EBME EV recharge operations "]
[null,null,null,null,null,null,null,null,null,null,null,null,null,null,null,"PPMRC00001 - CAES Nutrition Assay Services "]
[null,null,null,null,null,null,null,null,null,null,null,null,null,null,null,"PPMRC00002 - CAES Nutrition Human Lactation Ctr "]
[null,null,null,null,null,null,null,null,null,null,null,null,null,null,null,"PPMRC00003 - CAES NUTR Lonnderdal Lab Assay Services "]
[null,null,null,null,null,null,null,null,null,null,null,null,null,null,null,"PPMRC00004 - CAES ETox Signed Air Quality Test "]
[null,null,null,null,null,null,null,null,null,null,null,null,null,null,null,"PPMRC00005 - CAES ETox Air Quality Testing Services "]
[null,null,null,null,null,null,null,null,null,null,null,null,null,null,null,"PPMRC00006 - CAES MPSL Granite Canyon Toxicity Env Assmt "]
[null,null,null,null,null,null,null,null,null,null,null,null,null,null,null,"PPMRC00007 - CAES ENM Nematode Identification Quantification "]
[null,null,null,null,null,null,null,null,null,null,null,null,null,null,null,"PPMRC00008 - CAES PLP Hammock Lab Lipid Analysis "]
[null,null,null,null,null,null,null,null,null,null,null,null,null,null,null,"PPMRC00009 - CAES NUTR Slupsky Assay Services "]
[null,null,null,null,null,null,null,null,null,null,null,null,null,null,null,"PPMRC00010 - CAES LAWR Horwath Lab Analysis Services "]
[null,null,null,null,null,null,null,null,null,null,null,null,null,null,null,"PPMRC00011 - CAES LAWR Dahlke Soil and Water Analysis "]
[null,null,null,null,null,null,null,null,null,null,null,null,null,null,null,"PPMRC00012 - CAES LAWR Geisseler Lab Analysis Services "]
[null,null,null,null,null,null,null,null,null,null,null,null,null,null,null,"PPMRC00013 - CAES ANS Finger Genomic Lab Services "]
[null,null,null,null,null,null,null,null,null,null,null,null,null,null,null,"PPMRC00014 - CAES ANS Schreier Genomic Variation "]
[null,null,null,null,null,null,null,null,null,null,null,null,null,null,null,"PPMRC00015 - CAES ANS Label Free Molecular Phenotyping "]
[null,null,null,null,null,null,null,null,null,null,null,null,null,null,null,"PPMRC00016 - CAES ANS Sequence Analysis Services "]
[null,null,null,null,null,null,null,null,null,null,null,null,null,null,null,"PPMRC00017 - CAES Nutritional Efficacy Testing Services "]
[null,null,null,null,null,null,null,null,null,null,null,null,null,null,null,"PPMRC00018 - CAES Liu Feed Bioactive Products Services "]
[null,null,null,null,null,null,null,null,null,null,null,null,null,null,null,"PPMRC00019 - CAES Genetic Diversity Recharge "]
[null,null,null,null,null,null,null,null,null,null,null,null,null,null,null,"PPMRC00020 - CAES Museum of Wildlife Fish Biology "]
[null,null,null,null,null,null,null,null,null,null,null,null,null,null,null,"PPMRC00021 - CAES Nann Fangue Lab Services "]
[null,null,null,null,null,null,null,null,null,null,null,null,null,null,null,"PPMRC00022 - CAES AWFC Research Boat Services "]
[null,null,null,null,null,null,null,null,null,null,null,null,null,null,null,"PPMRC00023 - CAES Milk Processing Lab Services "]
[null,null,null,null,null,null,null,null,null,null,null,null,null,null,null,"PPMRC00024 - CAES Biosystematics Consultation Res Inc "]
[null,null,null,null,null,null,null,null,null,null,null,null,null,null,null,"PPMRC00025 - CAES Bohart Museum Tours "]
[null,null,null,null,null,null,null,null,null,null,null,null,null,null,null,"PPMRC00026 - CEE CGM Program Income "]
[null,null,null,null,null,null,null,null,null,null,null,null,null,null,null,"PPMRC00027 - CPE Hourly Rate "]
[null,null,null,null,null,null,null,null,null,null,null,null,null,null,null,"PPMRC00028 - CPS Daily Rate "]
[null,null,null,null,null,null,null,null,null,null,null,null,null,null,null,"PPMRC00029 - CHS Daily Rate "]
[null,null,null,null,null,null,null,null,null,null,null,null,null,null,null,"PPMRC00030 - CAES Healthy Beverage Initiative "]
[null,null,null,null,null,null,null,null,null,null,null,null,null,null,null,"PPMRC00031 - OR HUSBANDRY "]
[null,null,null,null,null,null,null,null,null,null,null,null,null,null,null,"PPMRC00032 - CAES Glycoproteomics "]
[null,null,null,null,null,null,null,null,null,null,null,null,null,null,null,"PPMRC00033 - CAES Phaff Yeast Collection "]
[null,null,null,null,null,null,null,null,null,null,null,null,null,null,null,"PPMRC00035 - CAES Sensory and Consumer Test Analysis "]
[null,null,null,null,null,null,null,null,null,null,null,null,null,null,null,"PPMRC00040 - CAES Barker Lab Analysis Services "]
[null,null,null,null,null,null,null,null,null,null,null,null,null,null,null,"PPMRC00041 - CAES Better Process Control School Online with PI Linda Harris "]
[null,null,null,null,null,null,null,null,null,null,null,null,null,null,null,"PPMRC00042 - CAES FOOD ANALYSIS EXTRACTION SVCS with PI Selina Wang in AFST002 "]
[null,null,null,null,null,null,null,null,null,null,null,null,null,null,null,"PPMRC00043 - CAES Food Safety Measurement Facility with PI Susan Ebeler in AVIT002 "]
[null,null,null,null,null,null,null,null,null,null,null,null,null,null,null,"PPMRC00044 - CAES FST Micro Anaerobic Assay Services with PI David Mills in AFST002 "]
[null,null,null,null,null,null,null,null,null,null,null,null,null,null,null,"PPMRC00045 - CAES Lonnerdal Lab Assay Services "]
[null,null,null,null,null,null,null,null,null,null,null,null,null,null,null,"PPMRC00046 - CAES OXYLIPIN and PLASMALOGEN ANALYSIS with PI Ameer Taha "]
[null,null,null,null,null,null,null,null,null,null,null,null,null,null,null,"PPMRC00047 - CAES Plant Sci Genome Mapping for Mingcheng Luo "]
[null,null,null,null,null,null,null,null,null,null,null,null,null,null,null,"PPMRC00048 - CAES LAWR XRD "]
[null,null,null,null,null,null,null,null,null,null,null,null,null,null,null,"PPMRC00049 - MICRO ANAEROBIC ASSAY RECHARGE SERVICE UNDER DIRECTION OF DAVID MILLS "]
[null,null,null,null,null,null,null,null,null,null,null,null,null,null,null,"PPMRC01519 - CAES Plant Sciences Small Grains Trial Services "]
[null,null,null,null,null,null,null,null,null,null,null,null,null,null,null,"PPMRC49001 - VMWHC VET SVCS COST RECOVERY "]
[null,null,null,null,null,null,null,null,null,null,null,null,null,null,null,"PPMRC49002 - VM OHI WHC Vet Svcs Oiled Wildlife Care Network "]
[null,null,null,null,null,null,null,null,null,null,null,null,null,null,null,"PPMRC49003 - VM OHI WHC Vet Svcs SeaDoc Society "]
[null,null,null,null,null,null,null,null,null,null,null,null,null,null,null,"PPMRC49004 - VM OHI WHC Vet Svcs Mountain Lion Program "]
[null,null,null,null,null,null,null,null,null,null,null,null,null,null,null,"PPMRC49005 - VM OHI WHC Vet Svcs Marine Mammal Diagnostic Lab "]
[null,null,null,null,null,null,null,null,null,null,null,null,null,null,null,"PPMRC87040 - CNPRC FLOW CYTOMETRY TRAINING "]
[null,null,null,null,null,null,null,null,null,null,null,null,null,null,null,"PPMRC87050 - CNPRC CENTRAL SUPPLY RECHARGE "]
[null,null,null,null,null,null,null,null,null,null,null,null,null,null,null,"PPMRC87060 - CNPRC GENERAL HUSBANDRY PER DIEM "]
[null,null,null,null,null,null,null,null,null,null,null,null,null,null,null,"PPMRC87070 - CNPRC MOU Autoclave Project "]
[null,null,null,null,null,null,null,null,null,null,null,null,null,null,null,"PPMRC87080 - CNPRC REPEAT SERVICES "]
[null,null,null,null,null,null,null,null,null,null,null,null,null,null,null,"PPMRC87130 - CNPRC LABORATORYMEDICAL SVCS PER DIEM "]
[null,null,null,null,null,null,null,null,null,null,null,null,null,null,null,"PPMRC87140 - CNPRC INDOOR PER DIEM "]
[null,null,null,null,null,null,null,null,null,null,null,null,null,null,null,"PPMRC87160 - CNPRC FIELD CAGE PER DIEM "]
[null,null,null,null,null,null,null,null,null,null,null,null,null,null,null,"PPMRC87170 - CNPRC NURSERY PER DIEM "]
[null,null,null,null,null,null,null,null,null,null,null,null,null,null,null,"PPMRC87180 - CNPRC TECHNICAL SERVICES PER DIEM "]
[null,null,null,null,null,null,null,null,null,null,null,null,null,null,null,"PPMRC87200 - CNPRC CORN CRIBS PER DIEM "]
[null,null,null,null,null,null,null,null,null,null,null,null,null,null,null,"PPMRC87210 - CNPRC ARF GENERAL PER DIEM "]
[null,null,null,null,null,null,null,null,null,null,null,null,null,null,null,"PPMRC87220 - CNPRC INFECTIOUS INDOORS PER DIEM "]
[null,null,null,null,null,null,null,null,null,null,null,null,null,null,null,"PPMRC87240 - CNPRC STAFF SUPPORT OTHER "]
[null,null,null,null,null,null,null,null,null,null,null,null,null,null,null,"PPMRC87260 - CNPRC REFUSEGENERAL SANITATION PER DIEM "]
[null,null,null,null,null,null,null,null,null,null,null,null,null,null,null,"PPMRC87300 - CNPRC FIELD CAGE INCOME "]
[null,null,null,null,null,null,null,null,null,null,null,null,null,null,null,"PPMRC87330 - CNPRC RESEARCH SERVICES INCOME "]
[null,null,null,null,null,null,null,null,null,null,null,null,null,null,null,"PPMRC87340 - CNPRC VET SERVICES INCOME "]
[null,null,null,null,null,null,null,null,null,null,null,null,null,null,null,"PPMRC87360 - CNPRC PULMONARY FUNCTION RECHARGE "]
[null,null,null,null,null,null,null,null,null,null,null,null,null,null,null,"PPMRC87370 - CNPRC INHALATION EXPOSURE FACILITY RECHA "]
[null,null,null,null,null,null,null,null,null,null,null,null,null,null,null,"PPMRC87380 - CNPRC DATA SERVICES INCOME "]
[null,null,null,null,null,null,null,null,null,null,null,null,null,null,null,"PPMRC87390 - CNPRC SHOP INCOME "]
[null,null,null,null,null,null,null,null,null,null,null,null,null,null,null,"PPMRC87400 - CNPRC ANIMAL SERVICES INCOME "]
[null,null,null,null,null,null,null,null,null,null,null,null,null,null,null,"PPMRC87410 - CNPRC MULTIMODAL IMAGING CORE RECHARG "]
[null,null,null,null,null,null,null,null,null,null,null,null,null,null,null,"PPMRC87420 - CNPRC NURSERY INCOME "]
[null,null,null,null,null,null,null,null,null,null,null,null,null,null,null,"PPMRC87440 - CNPRC GENETICS CORE RECHARGE "]
[null,null,null,null,null,null,null,null,null,null,null,null,null,null,null,"PPMRC87450 - CNPRC ENDOCRINE CORE MENDOZA RECHARGE "]
[null,null,null,null,null,null,null,null,null,null,null,null,null,null,null,"PPMRC87480 - CNPRC BEHAVIORAL ASSESSMENT CORE RECHARG "]
[null,null,null,null,null,null,null,null,null,null,null,null,null,null,null,"PPMRC87510 - CNPRC ENDOCRINE CORE LASLEY RECHARGE "]
[null,null,null,null,null,null,null,null,null,null,null,null,null,null,null,"PPMRC87530 - CNPRC RESEARCH SERVICES PER DIEM "]
[null,null,null,null,null,null,null,null,null,null,null,null,null,null,null,"PPMRC87560 - CNPRC THERAPEUTICSPRIM MED PER DIEM "]
[null,null,null,null,null,null,null,null,null,null,null,null,null,null,null,"PPMRC87570 - CNPRC PATHOGEN DETECTION CORE RECHARGE "]
[null,null,null,null,null,null,null,null,null,null,null,null,null,null,null,"PPMRC87580 - CNPRC PATHOLOGY PER DIEM "]
[null,null,null,null,null,null,null,null,null,null,null,null,null,null,null,"PPMRC87590 - CNPRC PD QUARTERLY INDIRECT CLEARING "]
[null,null,null,null,null,null,null,null,null,null,null,null,null,null,null,"PPMRC87600 - CNPRC CAGE CHANGE PER DIEM "]
[null,null,null,null,null,null,null,null,null,null,null,null,null,null,null,"PPMRC87610 - CNPRC CLINICAL LABS INCOME "]
[null,null,null,null,null,null,null,null,null,null,null,null,null,null,null,"PPMRC87620 - CNPRC PATHOLOGY LAB INCOME "]
[null,null,null,null,null,null,null,null,null,null,null,null,null,null,null,"PPMRC87750 - CNPRC ENDOCRINE CORE RECHARGE "]
[null,null,null,null,null,null,null,null,null,null,null,null,null,null,null,"PPMRC87760 - CNPRC VIRUS STOCK RECHARGE "]
[null,null,null,null,null,null,null,null,null,null,null,null,null,null,null,"PPMRC87770 - CNPRC FLOW CYTOMETRY RECHARGE "]
[null,null,null,null,null,null,null,null,null,null,null,null,null,null,null,"PPMRC87830 - CNPRC IT SERVICES RECHARGE "]
[null,null,null,null,null,null,null,null,null,null,null,null,null,null,null,"PPMRC87860 - CNPRC IMMUNOLOGY CORE RECHARGE "]
[null,null,null,null,null,null,null,null,null,null,null,null,null,null,null,"PPMRC87930 - CNPRC COVID 19 SUPPORT "]
[null,null,null,null,null,null,null,null,null,null,null,null,null,null,null,"PPMRC87940 - CNPRC ANIMAL SALES INCOME "]
[null,null,null,null,null,null,null,null,null,null,null,null,null,null,null,"PPMRC87950 - CNPRC PATHOGEN DETECTION LAB MARKUP "]
[null,null,null,null,null,null,null,null,null,null,null,null,null,null,null,"PPMRC87970 - CNPRC ALLERGY CORE RECHARGE "]
[null,null,null,null,null,null,null,null,null,null,null,null,null,null,null,"PPMRC87990 - CNPRC COLONY SUPPORT "]
[null,null,null,null,null,null,null,null,null,null,null,null,null,null,null,"PPMRC90270 - CNPRC VPC8795 SUMMER TUITION FEES "]
[null,null,null,null,null,null,null,null,null,null,null,null,null,null,null,"PPMRC90700 - CNPRC B C RATE PROGRAM INCOME "]
[null,null,null,null,null,null,null,null,null,null,null,null,null,null,null,"PPMRC90960 - CNPRC B C Rate Admin HR "]
[null,null,null,null,null,null,null,null,null,null,null,null,null,null,null,"PPMRC90970 - CNPRC B C Rate Admin PSO "]
[null,null,null,null,null,null,null,null,null,null,null,null,null,null,null,"PPMRC90980 - CNPRC B C Rate Admin Facilities "]
[null,null,null,null,null,null,null,null,null,null,null,null,null,null,null,"PPMRCDDACR - ANR DESERT REC ACRE RATE "]
[null,null,null,null,null,null,null,null,null,null,null,null,null,null,null,"PPMRCDDDRH - ANR DESERT REC DIRECT RESEARCH HOURS RATE "]
[null,null,null,null,null,null,null,null,null,null,null,null,null,null,null,"PPMRCDDFEP - ANR DESERT REC FEEDYARD PENS RATE "]
[null,null,null,null,null,null,null,null,null,null,null,null,null,null,null,"PPMRCDDPIR - ANR DESERT REC PRESSURIZED IRRIGATION RATE "]
[null,null,null,null,null,null,null,null,null,null,null,null,null,null,null,"PPMRCEDITP - ANR EDITORIAL PUBLICATIONS RATE "]
[null,null,null,null,null,null,null,null,null,null,null,null,null,null,null,"PPMRCEZ450 - CNPRC B-C RATE ADMIN – IT "]
[null,null,null,null,null,null,null,null,null,null,null,null,null,null,null,"PPMRCHAACR - ANR HANSEN REC ACRE RATE "]
[null,null,null,null,null,null,null,null,null,null,null,null,null,null,null,"PPMRCHADRH - ANR HANSEN REC DIRECT RESEARCH HOURS RATE "]
[null,null,null,null,null,null,null,null,null,null,null,null,null,null,null,"PPMRCHHANC - ANR HOPLAND REC ANIMAL CARE RATE "]
[null,null,null,null,null,null,null,null,null,null,null,null,null,null,null,"PPMRCHHDRH - ANR HOPLAND REC DIRECT RESEARCH HOURS RATE "]
[null,null,null,null,null,null,null,null,null,null,null,null,null,null,null,"PPMRCHHPRJ - ANR HOPLAND REC PROJECT RATE "]
[null,null,null,null,null,null,null,null,null,null,null,null,null,null,null,"PPMRCIGISR - ANR INFORMATICS AND GIS PROGRAM RATE "]
[null,null,null,null,null,null,null,null,null,null,null,null,null,null,null,"PPMRCIIACR - ANR INTERMOUNTAIN REC UNIFORM CROPPING ACRES RATE "]
[null,null,null,null,null,null,null,null,null,null,null,null,null,null,null,"PPMRCIIDRH - ANR INTERMOUNTAIN REC DIRECT RESEARCH HOURS RATE "]
[null,null,null,null,null,null,null,null,null,null,null,null,null,null,null,"PPMRCIIWTR - ANR INTERMOUNTAIN REC WATER RATE "]
[null,null,null,null,null,null,null,null,null,null,null,null,null,null,null,"PPMRCKKACR - ANR KEARNEY REC ACRE RATE "]
[null,null,null,null,null,null,null,null,null,null,null,null,null,null,null,"PPMRCKKDRH - ANR KEARNEY REC DIRECT RESEARCH HOURS RATE "]
[null,null,null,null,null,null,null,null,null,null,null,null,null,null,null,"PPMRCLLACR - ANR LINDCOVE REC ACRE RATE "]
[null,null,null,null,null,null,null,null,null,null,null,null,null,null,null,"PPMRCLLDRH - ANR LINDCOVE REC DIRECTRESEARCH HOURS RATE "]
[null,null,null,null,null,null,null,null,null,null,null,null,null,null,null,"PPMRCLLPKL - ANR LINDCOVE REC PACKLINE RATE "]
[null,null,null,null,null,null,null,null,null,null,null,null,null,null,null,"PPMRCNIOSR - ANR SPANISH TRANSLATION SERVICES RATE "]
[null,null,null,null,null,null,null,null,null,null,null,null,null,null,null,"PPMRCSCACR - ANR SOUTH COAST REC ACRE RATE "]
[null,null,null,null,null,null,null,null,null,null,null,null,null,null,null,"PPMRCSCDRH - ANR SOUTH COAST REC DIRECT RESEARCH HOURS RATE "]
[null,null,null,null,null,null,null,null,null,null,null,null,null,null,null,"PPMRCSCSQF - ANR SOUTH COAST REC SQUARE FOOT RATE "]
[null,null,null,null,null,null,null,null,null,null,null,null,null,null,null,"PPMRCSFARH - ANR SIERRA FOOTHILL REC DIRECT RESEARCH ANIMAL HOURS RATE "]
[null,null,null,null,null,null,null,null,null,null,null,null,null,null,null,"PPMRCSFDRH - ANR SIERRA FOOTHILL REC DIRECT RESEARCH HOURS RATE "]
[null,null,null,null,null,null,null,null,null,null,null,null,null,null,null,"PPMRCSFPRJ - ANR SIERRA FOOTHILL REC PROJECT RATE "]
[null,null,null,null,null,null,null,null,null,null,null,null,null,null,null,"PPMRCWSACR - ANR WEST SIDE REC ACRE RATE "]
[null,null,null,null,null,null,null,null,null,null,null,null,null,null,null,"PPMRCWSDRH - ANR WEST SIDE REC DIRECT RESEARCH HOURS RATE "]
[null,null,null,null,null,null,null,null,null,null,null,null,null,null,null,"PPMRCWSWTR - ANR WEST SIDE REC WATER RATE "]
[null,null,null,null,null,null,null,null,null,null,null,null,null,null,null,"PPMIETCGA1 - IET CGA "]
[null,null,null,null,null,null,null,null,null,null,null,null,null,null,null,"PPMRCAPDL8 - IET Applications Delivery "]
[null,null,null,null,null,null,null,null,null,null,null,null,null,null,null,"PPMRCCLMGT - IET Computer Lab Management "]
[null,null,null,null,null,null,null,null,null,null,null,null,null,null,null,"PPMRCCTENG - IET Classroom Technology Engineering "]
[null,null,null,null,null,null,null,null,null,null,null,null,null,null,null,"PPMRCCTINS - IET Classroom Technology Installation "]
[null,null,null,null,null,null,null,null,null,null,null,null,null,null,null,"PPMRCDCTI8 - IET Data Center Services "]
[null,null,null,null,null,null,null,null,null,null,null,null,null,null,null,"PPMRCINFR8 - IET Infrastructure Services "]
[null,null,null,null,null,null,null,null,null,null,null,null,null,null,null,"PPMRCNOC08 - IET Network Operations Center "]
[null,null,null,null,null,null,null,null,null,null,null,null,null,null,null,"PPMRCTMANT - IET Classroom Technology Maintenance "]
[null,null,null,null,null,null,null,null,null,null,null,null,null,null,null,"PPMRINSMED - IET Multimedia Service "]
[null,null,null,null,null,null,null,null,null,null,null,null,null,null,null,"ANUTSA0001 - ANUT Student Awards "]
[null,null,null,null,null,null,null,null,null,null,null,null,null,null,null,"BCNSSA0000 - CNS Student Awards "]
[null,null,null,null,null,null,null,null,null,null,null,null,null,null,null,"BCPBSA0000 - CPB Student Awards "]
[null,null,null,null,null,null,null,null,null,null,null,null,null,null,null,"BEVESA0000 - EVE Student Awards "]
[null,null,null,null,null,null,null,null,null,null,null,null,null,null,null,"BGENSA0000 - GEN Student Awards "]
[null,null,null,null,null,null,null,null,null,null,null,null,null,null,null,"BMCBSA0000 - MCB Student Awards "]
[null,null,null,null,null,null,null,null,null,null,null,null,null,null,null,"BMMGSA0000 - MMG Student Awards "]
[null,null,null,null,null,null,null,null,null,null,null,null,null,null,null,"BNPBSA0000 - NPB Student Awards "]
[null,null,null,null,null,null,null,null,null,null,null,null,null,null,null,"BPLBSA0000 - PLB Student Awards "]
[null,null,null,null,null,null,null,null,null,null,null,null,null,null,null,"DWSA000001 - DEAN WITTERD Student Project "]
[null,null,null,null,null,null,null,null,null,null,null,null,null,null,null,"GHYS000001 - GHYS Student Awards "]
[null,null,null,null,null,null,null,null,null,null,null,null,null,null,null,"IMADSA0001 - MED IMAD Trainee Research Award "]
[null,null,null,null,null,null,null,null,null,null,null,null,null,null,null,"LAASSA0000 - AAS Student Awards "]
[null,null,null,null,null,null,null,null,null,null,null,null,null,null,null,"LAASSAUG00 - AAS UG Student Awards "]
[null,null,null,null,null,null,null,null,null,null,null,null,null,null,null,"LAHISA0000 - AHI Student Awards "]
[null,null,null,null,null,null,null,null,null,null,null,null,null,null,null,"LAHISAUG00 - AHI UG Student Awards "]
[null,null,null,null,null,null,null,null,null,null,null,null,null,null,null,"LAMSSA0000 - AMS Student Awards "]
[null,null,null,null,null,null,null,null,null,null,null,null,null,null,null,"LAMSSAUG00 - AMS UG Student Awards "]
[null,null,null,null,null,null,null,null,null,null,null,null,null,null,null,"LANTSA0000 - ANT Student Awards "]
[null,null,null,null,null,null,null,null,null,null,null,null,null,null,null,"LANTSAUG00 - ANT UG Student Awards "]
[null,null,null,null,null,null,null,null,null,null,null,null,null,null,null,"LASASA0000 - ASA Student Awards "]
[null,null,null,null,null,null,null,null,null,null,null,null,null,null,null,"LASASAUG00 - ASA UG Student Awards "]
[null,null,null,null,null,null,null,null,null,null,null,null,null,null,null,"LASTSA0000 - AST Student Awards "]
[null,null,null,null,null,null,null,null,null,null,null,null,null,null,null,"LASTSAUG00 - AST UG Student Awards "]
[null,null,null,null,null,null,null,null,null,null,null,null,null,null,null,"LCHESA0000 - CHE Student Awards "]
[null,null,null,null,null,null,null,null,null,null,null,null,null,null,null,"LCHESAUG00 - CHE UG Student Awards "]
[null,null,null,null,null,null,null,null,null,null,null,null,null,null,null,"LCHISA0000 - CHI Student Awards "]
[null,null,null,null,null,null,null,null,null,null,null,null,null,null,null,"LCHISAUG00 - CHI UG Student Awards "]
[null,null,null,null,null,null,null,null,null,null,null,null,null,null,null,"LCLASAUG00 - CLA UG Student Awards "]
[null,null,null,null,null,null,null,null,null,null,null,null,null,null,null,"LCMNSA0000 - CMN Student Awards "]
[null,null,null,null,null,null,null,null,null,null,null,null,null,null,null,"LCMNSAUG00 - CMN UG Student Awards "]
[null,null,null,null,null,null,null,null,null,null,null,null,null,null,null,"LCOMSA0000 - COM Student Awards "]
[null,null,null,null,null,null,null,null,null,null,null,null,null,null,null,"LCOMSAUG00 - COM UG Student Awards "]
[null,null,null,null,null,null,null,null,null,null,null,null,null,null,null,"LCSTSA0000 - CST Student Awards "]
[null,null,null,null,null,null,null,null,null,null,null,null,null,null,null,"LDESSA0000 - DES Student Awards "]
[null,null,null,null,null,null,null,null,null,null,null,null,null,null,null,"LDESSAUG00 - DES UG Student Awards "]
[null,null,null,null,null,null,null,null,null,null,null,null,null,null,null,"LDRASA0000 - DRA Student Awards "]
[null,null,null,null,null,null,null,null,null,null,null,null,null,null,null,"LDRASAUG00 - DRA UG Student Awards "]
[null,null,null,null,null,null,null,null,null,null,null,null,null,null,null,"LEALSA0000 - EAL Student Awards "]
[null,null,null,null,null,null,null,null,null,null,null,null,null,null,null,"LEALSAUG00 - EAL UG Student Awards "]
[null,null,null,null,null,null,null,null,null,null,null,null,null,null,null,"LECNSA0000 - ECN Student Awards "]
[null,null,null,null,null,null,null,null,null,null,null,null,null,null,null,"LECNSAUG00 - ECN UG Student Awards "]
[null,null,null,null,null,null,null,null,null,null,null,null,null,null,null,"LENLSA0000 - ENL Student Awards "]
[null,null,null,null,null,null,null,null,null,null,null,null,null,null,null,"LENLSAUG00 - ENL UG Student Awards "]
[null,null,null,null,null,null,null,null,null,null,null,null,null,null,null,"LEPSSA0000 - EPS Student Awards "]
[null,null,null,null,null,null,null,null,null,null,null,null,null,null,null,"LEPSSAG000 - EPS Graduate Student Awards "]
[null,null,null,null,null,null,null,null,null,null,null,null,null,null,null,"LEPSSAUG00 - EPS UG Student Awards "]
[null,null,null,null,null,null,null,null,null,null,null,null,null,null,null,"LFRESA0000 - FRE Student Awards "]
[null,null,null,null,null,null,null,null,null,null,null,null,null,null,null,"LFRESAUG00 - FRE UG Student Awards "]
[null,null,null,null,null,null,null,null,null,null,null,null,null,null,null,"LGERSA0000 - GER Student Awards "]
[null,null,null,null,null,null,null,null,null,null,null,null,null,null,null,"LGERSAUG00 - GER UG Student Awards "]
[null,null,null,null,null,null,null,null,null,null,null,null,null,null,null,"LGSWSA0000 - GSW Student Awards "]
[null,null,null,null,null,null,null,null,null,null,null,null,null,null,null,"LGSWSAUG00 - GSW UG Student Awards "]
[null,null,null,null,null,null,null,null,null,null,null,null,null,null,null,"LHISSA0000 - HIS Student Awards "]
[null,null,null,null,null,null,null,null,null,null,null,null,null,null,null,"LHISSAUG00 - HIS UG Student Awards "]
[null,null,null,null,null,null,null,null,null,null,null,null,null,null,null,"LJESSA0000 - JES Student Awards "]
[null,null,null,null,null,null,null,null,null,null,null,null,null,null,null,"LLINSA0000 - LIN Student Awards "]
[null,null,null,null,null,null,null,null,null,null,null,null,null,null,null,"LLINSAUG00 - LIN UG Student Awards "]
[null,null,null,null,null,null,null,null,null,null,null,null,null,null,null,"LMATSA0000 - MAT Student Awards "]
[null,null,null,null,null,null,null,null,null,null,null,null,null,null,null,"LMATSAUG00 - MAT UG Student Awards "]
[null,null,null,null,null,null,null,null,null,null,null,null,null,null,null,"LMSASA0000 - MSA Student Awards "]
[null,null,null,null,null,null,null,null,null,null,null,null,null,null,null,"LMSASAUG00 - MSA UG Student Awards "]
[null,null,null,null,null,null,null,null,null,null,null,null,null,null,null,"LMUSSA0000 - MUS Student Awards "]
[null,null,null,null,null,null,null,null,null,null,null,null,null,null,null,"LMUSSAUG00 - MUS UG Student Awards "]
[null,null,null,null,null,null,null,null,null,null,null,null,null,null,null,"LNASSA0000 - NAS Student Awards "]
[null,null,null,null,null,null,null,null,null,null,null,null,null,null,null,"LNASSAUG00 - NAS UG Student Awards "]
[null,null,null,null,null,null,null,null,null,null,null,null,null,null,null,"LPFSSA0000 - PFS Student Awards "]
[null,null,null,null,null,null,null,null,null,null,null,null,null,null,null,"LPHISA0000 - PHI Student Awards "]
[null,null,null,null,null,null,null,null,null,null,null,null,null,null,null,"LPHISAUG00 - PHI UG Student Awards "]
[null,null,null,null,null,null,null,null,null,null,null,null,null,null,null,"LPHYSA0000 - PHY Student Awards "]
[null,null,null,null,null,null,null,null,null,null,null,null,null,null,null,"LPHYSAUG00 - PHY UG Student Awards "]
[null,null,null,null,null,null,null,null,null,null,null,null,null,null,null,"LPOLSA0000 - POL Student Awards "]
[null,null,null,null,null,null,null,null,null,null,null,null,null,null,null,"LPOLSAUG00 - POL UG Student Awards "]
[null,null,null,null,null,null,null,null,null,null,null,null,null,null,null,"LPSCSA0000 - PSC Student Awards "]
[null,null,null,null,null,null,null,null,null,null,null,null,null,null,null,"LPSCSAUG00 - PSC UG Student Awards "]
[null,null,null,null,null,null,null,null,null,null,null,null,null,null,null,"LRELSA0000 - REL Student Awards "]
[null,null,null,null,null,null,null,null,null,null,null,null,null,null,null,"LRELSAUG00 - REL UG Student Awards "]
[null,null,null,null,null,null,null,null,null,null,null,null,null,null,null,"LSOCSA0000 - SOC Student Awards "]
[null,null,null,null,null,null,null,null,null,null,null,null,null,null,null,"LSOCSAUG00 - SOC UG Student Awards "]
[null,null,null,null,null,null,null,null,null,null,null,null,null,null,null,"LSPASA0000 - SPA Student Awards "]
[null,null,null,null,null,null,null,null,null,null,null,null,null,null,null,"LSPASAUG00 - SPA UG Student Awards "]
[null,null,null,null,null,null,null,null,null,null,null,null,null,null,null,"LSTASA0000 - STA Student Awards "]
[null,null,null,null,null,null,null,null,null,null,null,null,null,null,null,"LSTASAUG00 - STA UG Student Awards "]
[null,null,null,null,null,null,null,null,null,null,null,null,null,null,null,"SASDA00000 - Student Development Awards "]
[null,null,null,null,null,null,null,null,null,null,null,null,null,null,null,"SASMIND001 - MIND Institute Student Awards "]